{"text_format":"1","workbook":"xlsx","n_sheets":32,"sheets":["Instructions","Customer Information","Terms & Conditions","Payment Assignment","Select Project Type & Stage","NEW CONSTR -->","Facility Information","Exterior Information","Project Information","New Construction Inspection","Project Summary","NC Processing","RETROFIT -->","Pre-Install Information","Pre-Install Inspection","Post-Install Information","Post-Install Inspection","Project Retrofit Summary","Retrofit Processing","COMMON -->","Inspection Photos","Project Report","Eligibility Requirements","F.A.Q.","CI Table","Measure Tables","ASHRAE 90.1-2013 Interior","ASHRAE 90.1-2013 Exterior","ASHRAE 90.1-2016 Interior","ASHRAE 90.1-2016 Exterior","Ref","Debug"],"not_rendered":{"charts":0,"images":14,"macros":1,"external_links":0,"defined_names":143,"comments":17,"pivot_tables":2},"unopened":[],"bounds":{"document_bytes":16777216,"sheet_cells":100000,"rows_first":2000,"rows_last":500,"rows_between":2000,"halvings":0,"cell_chars":16384,"cell_head_chars":4096},"cells_cut":0,"cells_raw":0,"read":"whole","date_system":"1900"}

{"sheet":"Instructions","index":0,"n_rows":65,"n_cols":12,"rows_kept":65,"cut":false,"hidden":false,"merged":[[31,2,31,5],[60,2,61,7],[54,2,54,7],[55,2,55,7],[56,2,56,7],[57,2,57,7],[58,2,58,7],[50,2,50,5],[51,2,51,5],[51,6,51,7],[52,2,52,5],[52,6,52,7],[45,2,45,5],[46,2,46,5],[47,2,47,5],[48,2,48,5],[49,2,49,5],[42,2,42,5],[43,2,43,5],[43,6,43,7],[44,2,44,5],[44,6,44,7],[38,2,38,7],[39,2,39,5],[39,6,40,7],[40,2,40,5],[41,2,41,5],[41,6,41,7],[32,2,32,5],[32,6,32,7],[33,2,33,5],[34,2,34,5],[36,2,36,5],[36,6,36,7],[35,2,35,5],[27,2,27,5],[27,6,27,7],[28,2,28,5],[29,2,29,7],[30,2,30,5],[30,6,30,7],[4,2,4,7],[5,2,5,7],[5,9,5,11],[6,2,6,7],[20,2,20,5],[17,2,17,5],[18,2,18,5],[18,6,18,7],[19,2,19,5],[19,6,19,7],[7,2,7,7],[8,2,10,7],[8,9,10,11],[11,2,11,7],[13,2,13,7],[14,2,14,5],[25,2,25,7],[26,2,26,5],[26,6,26,7],[23,2,23,5],[24,2,24,5],[24,6,24,7],[14,6,15,7],[15,2,15,5],[16,2,16,5],[16,6,16,7],[22,2,22,5],[21,2,21,5],[21,6,21,7]]}
[null,{"$f":"Version_ID & \" - \" & Date_ID","v":"FY26.3.5 - Version 20250811"},null,null,null,null,null,null,null,"HIDE","HIDE","HIDE"]
[]
[null,null,{"$f":"'Customer Information'!$P$3","v":"FY26 SRP Standard Business Solutions Lighting"},null,null,null,null,{"$f":"Project_Type","v":"Retrofit"}]
[]
[null,null,"Instructions"]
[null,null,{"$f":"SUBSTITUTE(J6,\"XX\",RIGHT(Curr_FY,2))","v":"This application packet contains the forms, instructions, eligibility requirements, and rebate amounts for qualifying equipment under the FY26 SRP Business Solutions Standard Program. Please read the following sections carefully to ensure that you purchase and install qualifying equipment."},null,null,null,null,null,null,"This application packet contains the forms, instructions, eligibility requirements, and rebate amounts for qualifying equipment under the FYXX SRP Business Solutions Standard Program. Please read the following sections carefully to ensure that you purchase and install qualifying equipment."]
[null,null,"Sending this application confirms that all measures have been fully installed and all of the required supporting documents have been collected. If clarification regarding the submitted information is not submitted within  14-days of being requested, any funds reserved for this rebate application may be released and the rebate application may be canceled. You may resubmit the application once all required information becomes available."]
[null,null,"In order to be eligible for rebates through the SRP Business Solutions Standard Program all equipment must meet the following requirements:"]
[null,null,{"$f":"SUBSTITUTE(SUBSTITUTE(J9,\"XXXX\",1999+RIGHT(Curr_FY,2)),\"YYYY\",2000+RIGHT(Curr_FY,2))","v":"• Equipment must be purchased on or after May 1, 2025. Applications for lighting equipment purchased during the eligible period between May 1, 2025 and April 30, 2026 must be received no later than October 31, 2026 to be eligible for rebates (subject to rebate availability). Rebate eligibility is determined based on the eligibility rules in place on the purchase date.\n• Equipment must be new and installed in a manner that meets or exceeds code requirements.\n• [Retrofit] Replaced equipment must be disposed of in accordance with local, state, or federal codes and regulations and cannot be re-installed elsewhere."},null,null,null,null,null,null,"• Equipment must be purchased on or after May 1, XXXX. Applications for lighting equipment purchased during the eligible period between May 1, XXXX and April 30, YYYY must be received no later than October 31, YYYY to be eligible for rebates (subject to rebate availability). Rebate eligibility is determined based on the eligibility rules in place on the purchase date.\n• Equipment must be new and installed in a manner that meets or exceeds code requirements.\n• [Retrofit] Replaced equipment must be disposed of in accordance with local, state, or federal codes and regulations and cannot be re-installed elsewhere."]
[]
[]
[null,null,"[Retrofit] All retrofit lighting equipment and/or retrofit lighting controls projects require SRP Business Solutions Program pre-approval prior to any purchases or commitments to purchase lighting equipment, lighting controls, or any installation services."]
[]
[null,null,"Before Beginning a Lighting Retrofit Project",null,null,null,null,null,null,"Retro"]
[null,null,"Step 1: Complete all sections on the Customer Information tab, as applicable.",null,null,null,{"$f":"'Customer Information'!$S$5","v":"MI: Project Information"}]
[null,null,"(Go to Customer Information)"]
[null,null,"Step 2: Read and sign the Terms & Conditions and submit it with a current W-9 tax form."]
[null,null,"(Go to Terms & Conditions)"]
[null,null,"Step 3: Review the Eligibility tab to ensure that the proposed equipment meets program eligibility requirements."]
[null,null,"Step 4: Complete the Pre-Install Information tab. Provide a detailed room-by-room breakdown of the project. In the \"Space Description\" column, enter either a room number or clear descriptor for each room."]
[null,null,"(Go to Pre-Install Information)"]
[null,null,"Step 5: Review this document for any missing information. Please ensure that any supporting documentation is submitted, such DesignLights Consortium (DLC) and/or Energy Star Screenshots (and if applicable, PDF of the manufacture cut sheet for Linear Type B LEDs showing the dual-end wiring configuration). Model numbers & equipment wattages must match the information provided on the screen shots."]
[null,null,"Step 6 (Optional): It is highly encouraged for all active EEA participants to send documents for a preliminary review to your assigned SRP/RI representative. A preliminary review does not grant pre-approval for a project and the application must be submitted for the normal application review process."]
[null,null,"Step 6: Submit the rebate application and all supporting documents to savewithsrpbiz@srpnet.com."]
[null,null,"Step 7: Comply with any additional requests and wait for a pre-approval email to be sent before ordering, purchasing, or installing any equipment. Projects may be subject to a pre-installation inspection at the discretion of SRP and their affiliates."]
[null,null,"After Receiving Pre-Approval",null,null,null,null,null,null,"Retro"]
[null,null,"Step 1: Save a copy of the Lighting Retrofit Application pre-approval email for your records."]
[null,null,"Step 2: Note the application installation deadline in the pre-approval notice, which is 90 days from the pre-approval date. Coordinate with your representative if the project deadline cannot be met."]
[null,null,"Step 3: Begin purchasing and installing the lighting equipment."]
[null,null,"After Purchase and Installation",null,null,null,null,null,null,"Retro"]
[null,null,"Step 1: When project installation is complete, update the Post-Install Information tab to reflect any changes in scope in the final installation."]
[null,null,"(Go to Post-Install Information)"]
[null,null,"Step 2: Review this document for any missing information. Resubmit the application along with the following supporting and required documents:"]
[null,null,"- Dated invoice(s), including the material and labor costs for the project. The material invoice(s) must include the detailed manufacturers' part numbers for all purchased lighting equipment."]
[null,null,"- Cut sheets or screenshots showing product eligibility for any product added to the scope or revised after pre-approval."]
[null,null,"Step 3: Submit the final Retrofit Lighting Application and all required and supporting documents to savewithsrpbiz@srpnet.com. Comply with any additional requests. Projects may be subject to a post-installation inspection at the discretion of SRP and their affiliates."]
[null,null,"Step 4: Please allow up to 4 weeks for application review following the receipt of the final submission."]
[]
[null,null,"Before Beginning a New Construction Application",null,null,null,null,null,null,"NC"]
[null,null,"Step 1: Complete all sections on the Customer Information tab, as applicable.",null,null,null,{"$f":"'Customer Information'!$S$5","v":"MI: Project Information"}]
[null,null,"(Go to Customer Information)"]
[null,null,"Step 2: Read and sign the Terms & Conditions and submit it with a current W-9 tax form."]
[null,null,"(Go to Terms & Conditions)"]
[null,null,"Step 3: Review the Eligibility tab to ensure that the proposed equipment meets program eligibility requirements."]
[null,null,"Step 4: Complete the Project Information tab."]
[null,null,"(Go to Project Information)"]
[null,null,"Step 5: Gather the following supporting documents:"]
[null,null,"- Interior and/or Exterior ComCheck(s)."]
[null,null,"- Site lighting and/or reflected ceiling plans showing the tags and locations of the proposed lighting equipment."]
[null,null,"- Fixture schedule(s) or lighting fixture submittals detailing the fixture tags, rated wattage(s), and manufacturers' part numbers."]
[null,null,"- (Optional) Networked Lighting Control (NLC) submittals, lighting control layouts, and DesignLights Consortium (DLC) for a NLC system."]
[null,null,"Step 6: Review this document for any missing information. Submit the final Retrofit Lighting Application and all required and supporting documents to savewithsrpbiz@srpnet.com. Comply with any additional requests. Projects may be subject to a post-installation inspection at the discretion of SRP and their affiliates."]
[null,null,"Step 7: Please allow up to 4 weeks for application review following the receipt of the final submission."]
[]
[null,null,"Completed Application may also be sent to:"]
[null,null,"SRP Business Solutions Standard Program"]
[null,null,"3100 W Ray Rd, Suite 230"]
[null,null,"Chandler, AZ 85226"]
[null,null,"Email: savewithsrpbiz@srpnet.com "]
[]
[null,null,"For More Information about the SRP Business Solutions Standard Program, measure eligibility, rebates, or other SRP programs please contact us:"]
[]
[null,null,"Online at:","www.savewithsrpbiz.com"]
[null,null,"By phone:","(602) 236 – 3054 "]
[null,null,"Email:","savewithsrpbiz@srpnet.com"]

{"sheet":"Customer Information","index":1,"n_rows":36,"n_cols":27,"rows_kept":36,"cut":false,"hidden":false,"merged":[[12,11,12,13],[29,2,29,3],[29,4,29,6],[13,11,14,13],[13,8,14,10],[24,3,24,4],[24,5,24,6],[21,13,21,15],[24,13,24,15],[21,9,21,12],[22,9,22,12],[23,9,23,12],[20,2,20,4],[21,3,21,6],[22,3,22,6],[23,3,23,4],[14,22,14,23],[15,22,15,23],[32,3,32,6],[24,9,24,12],[22,13,22,15],[23,13,23,15],[20,13,20,15],[20,9,20,12],[15,8,15,15],[25,4,25,6],[25,11,25,12],[25,13,25,15],[19,13,19,15],[18,8,18,15],[19,9,19,12],[18,3,18,6],[27,8,27,9],[26,8,26,15],[25,9,25,10],[34,2,35,6],[27,2,27,6],[28,2,28,3],[28,4,28,6],[30,3,30,4],[30,5,30,6],[31,3,31,6],[33,3,33,4],[11,18,11,19],[16,3,16,4],[16,5,16,6],[17,4,17,6],[12,18,12,19],[17,8,17,9],[17,10,17,11],[17,12,17,13],[17,14,17,15],[15,3,15,4],[13,3,13,6],[14,3,14,6],[12,2,12,6],[13,18,13,19],[14,18,14,19],[12,8,12,10],[7,21,8,26],[7,3,7,4],[7,5,7,6],[16,8,16,9],[16,10,16,11],[16,12,16,13],[16,14,16,15],[10,8,10,10],[11,8,11,10],[10,11,10,13],[8,3,8,6],[7,18,7,19],[8,18,8,19],[9,3,9,4],[9,18,9,19],[11,11,11,13],[3,18,3,20],[4,18,4,20],[5,2,5,6],[9,8,9,10],[9,11,9,13],[6,18,6,19],[6,3,6,6],[10,3,10,5],[1,14,1,15],[3,14,3,15],[6,8,6,10],[7,8,7,10],[8,8,8,10],[6,11,6,13],[7,11,7,13],[8,11,8,13],[5,8,5,13]]}
[null,{"$f":"Version_ID & \" - \" & Date_ID","v":"FY26.3.5 - Version 20250811"},null,null,null,null,null,null,null,null,null,null,null,null,null,null,null,null,"HIDE","HIDE","HIDE","HIDE","HIDE","HIDE"]
[]
[null,null,null,null,null,null,null,null,null,null,null,null,null,null,null,{"$f":"\"FY\" & MID(Version_ID,3,2) & \" SRP\"&\" Standard Business Solutions Lighting\"","v":"FY26 SRP Standard Business Solutions Lighting"}]
[null,null,null,null,null,null,null,null,null,null,null,null,null,{"$f":"Project_Type & \" \" & SUBSTITUTE(SUBSTITUTE(Project_Stage,\"(\",\"\"),\")\",\"\") & \" Application\"","v":"Retrofit Pre-Install Application"},{"$f":"Version_ID","v":"FY26.3.5"},null,null,null,"Complete?",null,null,null,null,null,null,null,"yellow cells indicate input is required"]
[null,null,null,null,null,null,null,null,{"$f":"IF(OR($J$32=\"\",$J$33=\"\",$J$35=\"\",$J$34=\"\"),\"\",SUM(INDIRECT(\"OpSch_\"&$J$32&\"_Hrs_List\"))*IF($J$34=52,52.14285714,$J$34)+SUM(INDIRECT(\"OpSch_\"&$J$33&\"_Hrs_List\"))*(52.14285714-IF($J$34=52,52.14285714,$J$34)))","v":""},null,null,null,null,null,null,{"$f":"Date_ID","v":"Version 20250811"},null,null,{"$f":"IF(AND($U$7:$U$15),\"Complete\",IF(NOT(OR($U$7:$U$15)),\"No Information\",\"MI: \" & INDEX($S$7:$S$15,MATCH(FALSE,$U$7:$U$15,0))))","v":"MI: Project Information"},null,null,null,null,null,null,null,"light gray cells indicate auto-calculation based on other inputs"]
[null,null,"Project Information",null,null,null,null,null,"Processing Information"]
[null,null,"Project Name",null,null,null,null,null,"Project ID",null,null,null,null,null,null,null,null,null,"Project Information",null,{"$f":"COUNTA(D7:G11)=9","v":false}]
[null,null,"Construction Type, Stage","Retrofit",null,"(Pre-Install)",null,null,"Creation Date",null,null,null,null,null,null,null,null,null,"Participant Information",null,{"$f":"COUNTA($D$14:$G$19)=10","v":false}]
[null,null,"Installation Address",null,null,null,null,null,"Application Prepared by",null,null,null,null,null,null,null,null,null,"Installer Information",null,{"$f":"OR(COUNTA($D$22:$G$26)=0,COUNTA($D$22:$G$26)=8)","v":true}]
[null,null,"City, State, Zip",null,null,"AZ",null,null,"Estimated Install Date",null,null,null,null,null,null,null,null,null,"Payee Information",null,{"$f":"AND(RebateAddressedTo<>\"\",OR(RebateAddressedTo<>\"Other: Please Specify\",COUNTA($D$31:$G$34)=7))","v":false}]
[null,null,"Account Number, Rate",null,null,null,null,null,"Invoice Date"]
[null,null,null,null,null,null,null,null,"How did you hear about us?",null,null,null,null,null,null,null,null,null,"Reference Information",null,{"$f":"IF(OR(Project_Stage=\"(Post-Install)\",Project_Stage=\"(Installed)\"),COUNTA($L$9:$N$15)>=6,COUNTA(PreparedBy,$L$12:$N$15)>=4)","v":false}]
[null,null,"Participant Information",null,null,null,null,null,"Do you have a Sustainability Plan?",null,null,null,null,null,null,null,null,null,"Project Cost",null,{"$f":"COUNTA($I$18:$N$18)>0","v":false}]
[null,null,"Business Name",null,null,null,null,null,"Did this project help you with part of your Plan?  ",null,null,null,null,null,null,null,null,null,"Facility Space Types & Size",null,{"$f":"COUNTA(J21:P25)>0","v":false}]
[null,null,"Address",null,null,null,null,null,null,null,null,null,null,null,null,null,null,null,"Lighting Schedules",null,{"$f":"AND(COUNTA($J$29:$J$30)=2,COUNTA($L$29:$P$35)>=1)","v":false},null,"Primary Facil. Type"]
[null,null,"City, State, Zip",null,null,null,null,null,"Project Cost",null,null,null,null,null,null,null,null,null,null,null,null,null,{"$f":"IFERROR(INDEX($J$21:$J$25,MATCH(MAX($N$21:$N$25),$N$21:$N$25,0)),\"\")","v":""}]
[null,null,"Contact, Title",null,null,null,null,null,"Material Cost",null,"Labor Cost",null,"Other",null,"Total Project Cost"]
[null,null,"Phone, Email",null,null,null,null,null,null,null,null,null,null,null,{"$f":"SUM(I18:N18)","v":0}]
[null,null,"Participant is:",null,null,null,null,null,"Facility Space Types & Size (Retrofit)",null,null,null,null,null,null,null,null,null,"EIF","DIF","CF (Ltg)","DF (Ltg)","CF (HVAC)","DF (HVAC)"]
[null,null,null,null,null,null,null,null,"Zone #","Zone Facility Type",null,null,null,"Square Footage",null,null,null,null,{"$f":"IFERROR(VLOOKUP($J21,Table_BuildingFactors[],2,FALSE),\"\")","v":""},{"$f":"IFERROR(VLOOKUP($J21,Table_BuildingFactors[],3,FALSE),\"\")","v":""},{"$f":"IFERROR(VLOOKUP($J21,Table_BuildingFactors[],4,FALSE),\"\")","v":""},{"$f":"IFERROR(VLOOKUP($J21,Table_BuildingFactors[],5,FALSE),\"\")","v":""},{"$f":"IFERROR(VLOOKUP($J21,Table_BuildingFactors[],6,FALSE),\"\")","v":""},{"$f":"IFERROR(VLOOKUP($J21,Table_BuildingFactors[],7,FALSE),\"\")","v":""}]
[null,null,"Contractor/Trade Ally Information (Optional)",null,null,"Self-Install?",null,null,{"$f":"IF(J21<>\"\",MAX($I$20:$I20)+1,\"\")","v":""},null,null,null,null,null,null,null,null,null,{"$f":"IFERROR(VLOOKUP($J22,Table_BuildingFactors[],2,FALSE),\"\")","v":""},{"$f":"IFERROR(VLOOKUP($J22,Table_BuildingFactors[],3,FALSE),\"\")","v":""},{"$f":"IFERROR(VLOOKUP($J22,Table_BuildingFactors[],4,FALSE),\"\")","v":""},{"$f":"IFERROR(VLOOKUP($J22,Table_BuildingFactors[],5,FALSE),\"\")","v":""},{"$f":"IFERROR(VLOOKUP($J22,Table_BuildingFactors[],6,FALSE),\"\")","v":""},{"$f":"IFERROR(VLOOKUP($J22,Table_BuildingFactors[],7,FALSE),\"\")","v":""}]
[null,null,"Business Name",null,null,null,null,null,{"$f":"IF(J22<>\"\",MAX($I$20:$I21)+1,\"\")","v":""},null,null,null,null,null,null,null,null,null,{"$f":"IFERROR(VLOOKUP($J23,Table_BuildingFactors[],2,FALSE),\"\")","v":""},{"$f":"IFERROR(VLOOKUP($J23,Table_BuildingFactors[],3,FALSE),\"\")","v":""},{"$f":"IFERROR(VLOOKUP($J23,Table_BuildingFactors[],4,FALSE),\"\")","v":""},{"$f":"IFERROR(VLOOKUP($J23,Table_BuildingFactors[],5,FALSE),\"\")","v":""},{"$f":"IFERROR(VLOOKUP($J23,Table_BuildingFactors[],6,FALSE),\"\")","v":""},{"$f":"IFERROR(VLOOKUP($J23,Table_BuildingFactors[],7,FALSE),\"\")","v":""}]
[null,null,"Address",null,null,null,null,null,{"$f":"IF(J23<>\"\",MAX($I$20:$I22)+1,\"\")","v":""},null,null,null,null,null,null,null,null,null,{"$f":"IFERROR(VLOOKUP($J24,Table_BuildingFactors[],2,FALSE),\"\")","v":""},{"$f":"IFERROR(VLOOKUP($J24,Table_BuildingFactors[],3,FALSE),\"\")","v":""},{"$f":"IFERROR(VLOOKUP($J24,Table_BuildingFactors[],4,FALSE),\"\")","v":""},{"$f":"IFERROR(VLOOKUP($J24,Table_BuildingFactors[],5,FALSE),\"\")","v":""},{"$f":"IFERROR(VLOOKUP($J24,Table_BuildingFactors[],6,FALSE),\"\")","v":""},{"$f":"IFERROR(VLOOKUP($J24,Table_BuildingFactors[],7,FALSE),\"\")","v":""}]
[null,null,"City, State, Zip",null,null,null,null,null,{"$f":"IF(J24<>\"\",MAX($I$20:$I23)+1,\"\")","v":""},null,null,null,null,null,null,null,null,null,{"$f":"IFERROR(VLOOKUP($J25,Table_BuildingFactors[],2,FALSE),\"\")","v":""},{"$f":"IFERROR(VLOOKUP($J25,Table_BuildingFactors[],3,FALSE),\"\")","v":""},{"$f":"IFERROR(VLOOKUP($J25,Table_BuildingFactors[],4,FALSE),\"\")","v":""},{"$f":"IFERROR(VLOOKUP($J25,Table_BuildingFactors[],5,FALSE),\"\")","v":""},{"$f":"IFERROR(VLOOKUP($J25,Table_BuildingFactors[],6,FALSE),\"\")","v":""},{"$f":"IFERROR(VLOOKUP($J25,Table_BuildingFactors[],7,FALSE),\"\")","v":""}]
[null,null,"Contact, Title",null,null,null,null,null,{"$f":"IF(J25<>\"\",MAX($I$20:$I24)+1,\"\")","v":""},null,null,null,null,null,null,null,null,null,{"$f":"SUMPRODUCT(S$20:S$24,$N$21:$N$25)/SUM($N$21:$N$25)","v":{"$error":"#DIV/0!"}},{"$error":"#DIV/0!"},{"$error":"#DIV/0!"},{"$error":"#DIV/0!"},{"$error":"#DIV/0!"},{"$error":"#DIV/0!"}]
[null,null,"Phone, Email",null,null,null,null,null,"Year Built",null,null,"Total Sq. Ft.",null,{"$f":"IF(Project_Type=\"Retrofit\",SUM(Facility_SF),SUMIFS(Table_IntInputs[Area Sq Ft],Table_IntInputs[Space Type],\"<>Exterior\"))","v":0}]
[null,null,null,null,null,null,null,null,"Lighting Operation Schedules"]
[null,null,"Rebate Payee Information",null,null,null,null,null,"Standard Schedule",null,"Day","A","B","C","D","E",null,null,"X",8760]
[null,null,"Rebate Should Be Addressed To",null,null,null,null,null,"Weeks Per Year",null,"Mon",null,null,null,null,null,null,null,"Y",4314]
[null,null,"Rebate Check Memo (30 characters or less)",null,null,null,null,null,"Number of Holidays",null,"Tue",null,null,null,null,null,null,null,{"$f":"IF(OpSch_A<>0,$L$28,\"\")","v":""},{"$f":"OpSch_A","v":0}]
[null,null,"Attention, Phone",{"$f":"IF(RebateAddressedTo<>\"\",IF(RebateAddressedTo=\"Participant Address\",Participant_Contact,\nIF(RebateAddressedTo=\"Installation Address\",Participant_Contact,\nIF(RebateAddressedTo=\"Trade Ally Address\",TA_Contact,\"\"))),\n\"\")","v":""},null,{"$f":"IF(RebateAddressedTo<>\"\",IF(RebateAddressedTo=\"Participant Address\",Participant_Phone,\nIF(RebateAddressedTo=\"Installation Address\",Participant_Phone,\nIF(RebateAddressedTo=\"Trade Ally Address\",TA_Phone,\"\"))),\n\"\")","v":""},null,null,null,null,"Wed",null,null,null,null,null,null,null,{"$f":"IF(OpSch_B<>0,$M$28,\"\")","v":""},{"$f":"OpSch_B","v":0}]
[null,null,"Business Name",{"$f":"IF(RebateAddressedTo<>\"\",IF(RebateAddressedTo=\"Participant Address\",Participant_Name,\nIF(RebateAddressedTo=\"Installation Address\",Participant_Name,\nIF(RebateAddressedTo=\"Trade Ally Address\",TA_Name,\"\"))),\n\"\")","v":""},null,null,null,null,null,null,"Thu",null,null,null,null,null,null,null,{"$f":"IF(OpSch_C<>0,$N$28,\"\")","v":""},{"$f":"OpSch_C","v":0}]
[null,null,"Address",{"$f":"IF(RebateAddressedTo<>\"\",IF(RebateAddressedTo=\"Participant Address\",Participant_Address1,\nIF(RebateAddressedTo=\"Installation Address\",Project_Address1,\nIF(RebateAddressedTo=\"Trade Ally Address\",TA_Address1,\"\"))),\n\"\")","v":""},null,null,null,null,null,null,"Fri",null,null,null,null,null,null,null,{"$f":"IF(OpSch_D<>0,$O$28,\"\")","v":""},{"$f":"OpSch_D","v":0}]
[null,null,"City, State, Zip",{"$f":"IF(RebateAddressedTo<>\"\",IF(RebateAddressedTo=\"Participant Address\",Participant_Address2,\nIF(RebateAddressedTo=\"Installation Address\",Project_Address2,\nIF(RebateAddressedTo=\"Trade Ally Address\",TA_Address2,\"\"))),\n\"\")","v":""},null,{"$f":"IF(RebateAddressedTo<>\"\",IF(RebateAddressedTo=\"Participant Address\",Participant_Address3,\nIF(RebateAddressedTo=\"Installation Address\",Project_Address3,\nIF(RebateAddressedTo=\"Trade Ally Address\",TA_Address3,\"\"))),\n\"\")","v":""},{"$f":"IF(RebateAddressedTo<>\"\",IF(RebateAddressedTo=\"Participant Address\",Participant_Address4,\nIF(RebateAddressedTo=\"Installation Address\",Project_Address4,\nIF(RebateAddressedTo=\"Trade Ally Address\",TA_Address4,\"\"))),\n\"\")","v":""},null,null,null,"Sat",null,null,null,null,null,null,null,{"$f":"IF(OpSch_E<>0,$P$28,\"\")","v":""},{"$f":"OpSch_E","v":0}]
[null,null," Payment of rebates is subject to Customer's continued compliance with the current fiscal year's Program Terms and Conditions signed by the customer. Customer may request a copy of its signed Terms and Conditions by submitting a request to the SRP Business Solutions Program Administrators (Resource Innovations).",null,null,null,null,null,null,null,"Sun"]
[null,null,null,null,null,null,null,null,{"$f":"IF(OR($J$32=\"\",$J$33=\"\",$J$35=\"\",$J$34=\"\"),\"\",SUM(INDIRECT(\"OpSch_\"&$J$32&\"_Hrs_List\"))*IF($J$34=52,52.14285714,$J$34)+SUM(INDIRECT(\"OpSch_\"&$J$33&\"_Hrs_List\"))*(52.14285714-IF($J$34=52,52.14285714,$J$34)))","v":""},null,"Total",{"$f":"IF(OR($J$30=\"\",$J$29=\"\",SUM(L$29:L$35)=0),0,ROUND(SUM(L$29:L$35)*IF($J$29=52,52.14285714,$J$29)*((365-$J$30)/365),0))","v":0},{"$f":"IF(OR($J$30=\"\",$J$29=\"\",SUM(M$29:M$35)=0),0,ROUND(SUM(M$29:M$35)*IF($J$29=52,52.14285714,$J$29)*((365-$J$30)/365),0))","v":0},{"$f":"IF(OR($J$30=\"\",$J$29=\"\",SUM(N$29:N$35)=0),0,ROUND(SUM(N$29:N$35)*IF($J$29=52,52.14285714,$J$29)*((365-$J$30)/365),0))","v":0},{"$f":"IF(OR($J$30=\"\",$J$29=\"\",SUM(O$29:O$35)=0),0,ROUND(SUM(O$29:O$35)*IF($J$29=52,52.14285714,$J$29)*((365-$J$30)/365),0))","v":0},{"$f":"IF(OR($J$30=\"\",$J$29=\"\",SUM(P$29:P$35)=0),0,ROUND(SUM(P$29:P$35)*IF($J$29=52,52.14285714,$J$29)*((365-$J$30)/365),0))","v":0}]

{"sheet":"Terms & Conditions","index":2,"n_rows":216,"n_cols":20,"rows_kept":216,"cut":false,"hidden":false,"merged":[[25,19,25,22],[0,1,0,18],[1,19,1,22],[5,2,5,17],[6,2,6,17],[7,2,7,17],[8,2,11,17],[12,3,15,17],[16,3,23,17],[24,3,24,17],[25,3,25,17],[3,2,3,17],[44,4,47,17],[26,3,28,17],[29,3,29,5],[29,6,29,17],[29,19,29,22],[30,3,34,17],[35,3,36,17],[37,4,37,17],[38,4,41,17],[38,19,41,22],[42,4,42,17],[43,4,43,17],[119,3,127,17],[77,19,85,22],[48,4,50,17],[51,4,57,17],[58,4,59,17],[60,3,63,17],[64,3,66,17],[67,4,70,17],[71,4,72,17],[73,4,74,17],[75,4,75,17],[76,3,76,17],[77,3,85,17],[86,3,91,17],[92,3,96,17],[97,3,105,17],[106,3,110,17],[111,3,118,17],[207,2,207,17],[208,2,209,17],[190,3,190,17],[196,2,196,10],[196,12,196,17],[197,2,197,10],[197,12,197,17],[201,2,201,7],[201,9,201,14],[201,16,201,17],[202,2,202,7],[202,9,202,14],[202,16,202,17],[204,2,205,17],[188,3,189,17],[128,3,137,17],[138,3,143,17],[144,3,153,17],[154,3,160,17],[161,3,166,17],[170,3,172,17],[173,3,179,17],[181,3,184,17],[185,2,185,17],[187,2,187,17],[167,3,169,17],[211,4,211,15],[212,4,212,15],[213,4,213,15],[214,4,214,15],[215,4,215,15]]}
[null,"This document is also available to sign through DocuSign. Reach out to a program representative to start the process."]
[null,{"$f":"Version_ID & \" - \" & Date_ID","v":"FY26.3.5 - Version 20250811"},null,null,null,null,null,null,null,null,null,null,null,null,null,null,null,null,null,"HIDE"]
[]
[null,null,{"$f":"\"FY\" & RIGHT(Curr_FY,2) & \" SRP Business Solutions Standard and Custom Program\"","v":"FY26 SRP Business Solutions Standard and Custom Program"}]
[]
[null,null,"TERMS AND CONDITIONS"]
[]
[null,null,"Important:  This form is to be read, signed and submitted with the Application."]
[null,null,"Salt River Project (“SRP”) offers the SRP Business Solutions Standard Program (“Standard Program”) and SRP Business Solutions Custom Program (“Custom Program”) (each generally referred to as “Program”) to provide customers with rebates to facilitate the installation of qualifying energy efficient equipment. These Terms and Conditions set forth terms governing a customer’s participation in the Program selected by customer. By signing below, the customer named in the Customer Signature section (“Customer”) is agreeing to comply with and be bound by these Terms and Conditions for the Program selected by Customer."]
[]
[]
[]
[null,null,"1.","Program Administrator: SRP has contracted Resource Innovations, Inc. (“RI”) to act as the Program Administrator and authorizes RI to administer the SRP Business Solutions programs including, but not limited to, such activities: review, processing, and approval of customer applications; pre and post inspections of customer facilities and project information requests from customer; measurement and verification activities; and issuing rebate checks."]
[]
[]
[]
[null,null,"2.","Alliance Participants: As a convenience to customers, SRP provides a list of contractors, engineers, architects, distributors, manufacturers, and other organizations that may assist customers with SRP programs (“EEA Member”).  In addition, some EEA Members have been approved to assist customers under certain SRP programs (“Qualified Service Provider” or “QSP”) (EEA Members and QSPs collectively referred to as “Alliance Participants”). Customer acknowledges that Alliance Participants are independent contractors with respect to the SRP programs and are not authorized to make representations or incur obligations on behalf of SRP. Participation as an Alliance Participant does not constitute an endorsement by SRP, nor does it certify or guarantee the quality of work performed. SRP is not responsible if an Alliance Participant or other contractor, retailer, vendor or other party provides you with inaccurate information about the amount or conditions of an SRP program."]
[]
[]
[]
[]
[]
[]
[]
[null,null,"3.","Program Term: Funds are limited and applications to the Program are accepted on a first-come, first-serve basis.  "]
[null,null,null,{"$f":"SUBSTITUTE(SUBSTITUTE(SUBSTITUTE(T26,\"XX\",RIGHT(Curr_FY,2),1),\"YYYY\",1999+RIGHT(Curr_FY,2),1),\"ZZZZ\",2000+RIGHT(Curr_FY,2),1)","v":"The FY26 Program is effective from May 1, 2025 through April 30, 2026 (“Program Term”)."},null,null,null,null,null,null,null,null,null,null,null,null,null,null,null,"The FYXX Program is effective from May 1, YYYY through April 30, ZZZZ (“Program Term”)."]
[null,null,"4.","Customer Eligibility: To be eligible for the Program, Customer must be a current SRP non-residential retail electric customer and meet the customer eligibility requirements outlined in the SRP Business Solutions Standard Program Manual and SRP Business Solutions Custom Program Manual."]
[]
[]
[null,null,"5.","Program Manual:",null,null,{"$f":"SUBSTITUTE(SUBSTITUTE(T30,\"XX1\",RIGHT(Curr_FY,2),1),\"XX2\",RIGHT(Curr_FY,2),1)","v":"The FY26 SRP Business Solutions Standard Program Manual and FY26 SRP Business"},null,null,null,null,null,null,null,null,null,null,null,null,"The FYXX1 SRP Business Solutions Standard Program Manual and FYXX2 SRP Business"]
[null,null,null,"Solutions Custom Program Manual (each referred to as “Program Manual”) describe in detail the customer and equipment eligibility requirements, rebate information, and program participation process for customers participating in the Program. Customer must read and comply with the Program Manual for the selected Program available at https://www.savewithsrpbiz.com/contractortools/rebateapplicationsanddocuments.aspx and incorporated herein by reference."]
[]
[]
[]
[]
[null,null,"6.","Program Participation Process: To be considered for participation in the Program and to qualify for rebates through the Program, Customer must complete the following:"]
[]
[null,null,null,"a.","Customer must\n"]
[null,null,null,null,{"$f":"SUBSTITUTE(T39,\"XX\",RIGHT(Curr_FY,2),1)","v":"1. Submit a completed FY26 SRP Business Solutions Application (“Rebate Application”) for each installation address. All information provided by Customer in the Rebate Application, including, but not limited to, attachments, must be accurate and complete, and Customer shall notify SRP and RI immediately of any changes to the information."},null,null,null,null,null,null,null,null,null,null,null,null,null,null,"1. Submit a completed FYXX SRP Business Solutions Application (“Rebate Application”) for each installation address. All information provided by Customer in the Rebate Application, including, but not limited to, attachments, must be accurate and complete, and Customer shall notify SRP and RI immediately of any changes to the information."]
[]
[]
[]
[null,null,null,null,"2. Sign and submit these Terms and Conditions."]
[null,null,null,null,"3. Provide all requested supplemental documentation."]
[null,null,null,null,"4. Provide a valid and signed W-9 form. Customers receiving the benefit of Business Solutions incentives, in an amount of $600 or more per calendar year, whether paid directly to the customer or assigned by the customer to a third party, will be issued a Form 1099 unless the customer is a corporation or otherwise exempt under the IRS regulations."]
[]
[]
[]
[null,null,null,"b.","For the Custom Program: Eligible customers approved by SRP to receive preliminary and technical assessments will be notified by SRP and must secure pre-authorizations for these assessments before engaging a Program approved QSP to perform the assessments to be reimbursed by the program.  "]
[]
[]
[null,null,null,"c.","For the Custom Program and the Standard Program (but only as to Lighting portion): To be considered for equipment rebates, Customer must \n   1. Obtain SRP’s pre-approval in writing prior to purchasing or installing energy efficiency equipment. Customers who purchase, install, or sign a purchase order agreeing to purchase or install equipment prior to receiving pre-approval in writing of their Rebate Application from SRP will not be eligible for rebates under the Program.\n   2. Once Customer has received pre-approval in writing from SRP, Customer may purchase, install and commission qualifying equipment as specified in the Program Manual and/or as instructed by SRP. \n"]
[]
[]
[]
[]
[]
[]
[null,null,null,"d.","Failure to provide or complete any of the requested information or Program steps may result in denial of the application, even if work has commenced.  "]
[]
[null,null,"7.","Rebate Application: Customer understands that submission of an application, even if correct and complete, does not guarantee that Customer will receive a rebate. Failure to complete or provide any of the required information, including, but not limited to, signatures, forms, or other requested documentation, may result in the return of the Rebate Application. "]
[]
[]
[]
[null,null,"8.","Program Rebates: The Program offers service and equipment rebates as outlined in the Program Manual. Payment of any rebate is subject to Customer’s satisfactory completion of all Program requirements and compliance with these Terms and Conditions."]
[]
[]
[null,null,null,"a.","Final approved equipment rebates may exceed the amount reserved in the Rebate Application approval letter only when funds remain in the program budget and no projects have been placed on a waitlist for program participation.  In no instance will the rebate amount issued exceed the rebate amount reserved by more than 150% for the Custom Program and 120% for the Standard Program."]
[]
[]
[]
[null,null,null,"b.","Qualifying equipment as defined in the Program Manual receiving rebates under the Program may not receive purchase and installation rebates or credits under any other SRP programs."]
[]
[null,null,null,"c.","One rebate check will be issued per approved Rebate Application to the Customer specified on the application or the authorized third party assignee specified by Customer, as applicable."]
[]
[null,null,null,"d.","For the Custom Program only: All service rebates will be paid directly to the service providers (QSPs)."]
[null,null,"9.","Rebate Caps: Equipment rebates under the Custom Program are capped at 75% of the customer’s eligible project"]
[null,null,null,{"$f":"SUBSTITUTE(T78,\"XX\",RIGHT(Curr_FY,2),1)","v":"incremental cost. Equipment rebates under the Standard Program are capped at 100% of the customer’s invoiced cost. SRP allows customers to participate in multiple programs subject to an annual rebate cap, which is the maximum rebate amount a customer is eligible to be paid for the Program Term. For FY26, the rebate cap is $300,000 per customer for all SRP Business Solutions programs in aggregate. A customer may be a holder of a single account, multiple accounts in aggregate or corporate accounts. For purposes of rebate caps, a customer who is the holder of multiple accounts or corporate accounts with a single SRP customer identification number will be considered a single customer. An organization of this type can participate in multiple SRP programs, but will be subject to any applicable customer rebate caps. SRP retains the right to make final determination of customer eligibility."},null,null,null,null,null,null,null,null,null,null,null,null,null,null,null,"incremental cost. Equipment rebates under the Standard Program are capped at 100% of the customer’s invoiced cost. SRP allows customers to participate in multiple programs subject to an annual rebate cap, which is the maximum rebate amount a customer is eligible to be paid for the Program Term. For FYXX, the rebate cap is $300,000 per customer for all SRP Business Solutions programs in aggregate. A customer may be a holder of a single account, multiple accounts in aggregate or corporate accounts. For purposes of rebate caps, a customer who is the holder of multiple accounts or corporate accounts with a single SRP customer identification number will be considered a single customer. An organization of this type can participate in multiple SRP programs, but will be subject to any applicable customer rebate caps. SRP retains the right to make final determination of customer eligibility."]
[]
[]
[]
[]
[]
[]
[]
[]
[null,null,"10.","Right to Inspect: SRP reserves the right to inspect the installed equipment for compliance with the Program requirements. Inspection may include a telephone survey, site visit, and/or the installation of temporary monitoring equipment at any time up to two years after installation for quality control. Within 14 days of the request, Customer shall allow SRP and RI reasonable access to and egress from the installation site during normal business hours, and make available at least one person familiar with the facility and measures installed.  If selected for inspection, the rebate will be withheld pending outcome of the inspection. If the equipment is found to be in compliance with Program requirements, the rebate will be paid. If the equipment is not in compliance, Customer will be notified."]
[]
[]
[]
[]
[]
[null,null,"11.","Hazardous Materials: SRP, RI, or their respective agents, consultants, and subcontractors shall not have any responsibility for the discovery, presence, handling, removal, or disposal of or exposure of persons to hazardous materials of any kind in connection with Customer's facility, including without limitation, asbestos, asbestos products, PCBs, or other toxic substances. Customer shall dispose of replaced equipment in accordance with local, state, or federal codes and regulations and cannot reinstall the equipment in another location."]
[]
[]
[]
[]
[null,null,"12.","Energy Benefits: In exchange for any approved equipment and/or service rebates for energy efficiency measures, Customer hereby sells, transfers and conveys to SRP all Environmental Attributes and Environmental Attributes Reporting Rights, as such terms are defined below, associated with the energy savings attributable to the qualifying measure(s) or its operation. “Environmental Attributes” means those aspects, claims, characteristics and benefits of avoided energy use associated with the measure(s), as well as any and all fuel, emissions, air quality, or other environmental characteristics, including, but not limited to, white and green energy tags, renewable energy credits, energy efficiency credits, carbon credits, or certificates attributable to the energy savings or avoided use associated with the qualifying measure(s). \"Environmental Attributes Reporting Rights\" means all rights to report ownership of the Environmental Attributes to any person or entity under Section 1605(b) of the Energy Policy Act of 1992, any successor or replacement statutes, or otherwise."]
[]
[]
[]
[]
[]
[]
[]
[]
[null,null,"13.","Compliance with Law: Customer, at its own expense, is responsible for meeting all requirements and complying with all local and state laws and codes concerning the Program, including without limitation, the installation and maintenance of eligible equipment. Customer shall, at its own expense, obtain and maintain licenses and permits needed to install eligible equipment. Failure to obtain and maintain necessary licenses and permits constitutes a material breach of Customer’s obligations under these Terms and Conditions."]
[]
[]
[]
[]
[null,null,"14.","Project Installations: Customer acknowledges that while the Program may provide rebates supporting the installation of qualifying equipment and related measures, energy assessments and identification of energy efficiency opportunities available at the Customer’s facility, neither SRP nor RI will install or implement such equipment or measures and the installation of and implementation of any qualifying equipment or measures will be carried out by the contractor working with Customer. Responsibility for delivery and workmanship related to any equipment or services the customer procures exclusively rests with the contractor or retailer selected by Customer. SRP and RI assume no responsibility for oversight of contractor services or for any claims the Customer might have against the contractor, the manufacturer, or the retailer with regard to the energy efficiency services or measures implemented under the Program."]
[]
[]
[]
[]
[]
[]
[]
[null,null,"15.","No Warranties: Customer shall independently evaluate any advice or direction given by SRP or RI related to estimates of energy savings or the cost, selection or installation of energy efficiency measures. Customer is solely responsible for the selection of equipment or measures to be installed or implemented. SRP and RI make no representations and provide no warranty or guaranty with respect to the design, manufacture, construction, safety, potential energy or cost savings, performance or effectiveness of any equipment installed, measures implemented, and/or services rendered by any person or entity in connection with the Program. SRP AND RI DISCLAIM ALL WARRANTIES, EXPRESS OR IMPLIED, TO THE MAXIMUM EXTENT PERMITTED UNDER LAW, WHETHER STATUTORY OR OTHERWISE, INCLUDING WITHOUT LIMITATION ANY WARRANTIES OF MERCHANTABILITY OR FITNESS FOR A PARTICULAR PURPOSE, USE, ENERGY SAVINGS, APPLICATION AND NON-INFRINGEMENT."]
[]
[]
[]
[]
[]
[]
[]
[]
[null,null,"16.","Customer Information: By signing the Application Agreement, Customer hereby authorizes and acknowledges that SRP may disclose Customer’s information relating to a Rebate Application (including the entirety of its contents), and any other information related to the Customer’s participation in the Program including, but not limited to, customer contact information, account information and billing data, energy usage, and tax identification numbers to RI and Alliance Participants, as applicable, and any other third party utilized by SRP for the purposes of processing the Customer’s application; to confirm eligibility for participation in the Program; to verify or audit program records or system installation, operation and results; to issue payment on behalf of the Program; to monitor compliance with Program requirements and terms; or as required to comply with state and/or federal law, fraud prevention, regulation, and other legal action. In those cases, SRP, RI, Alliance Participant, and authorized third parties shall comply with all legal requirements of the jurisdiction of the individual whose Customer data would be disclosed before making such disclosure."]
[]
[]
[]
[]
[]
[]
[]
[]
[]
[null,null,"17.","Fraud: Any person who knowingly files an application containing any materially false information or who purposely or misleadingly conceals information subjects such person to criminal and civil penalties.  Any and all funds determined to have been acquired on the basis of inaccurate or fraudulent information must be returned to SRP.  Any customer found to be engaged in fraudulent activity or misrepresentation of any kind will be removed from the Program.  This section shall not limit other remedies that may be available for the filing of a false or fraudulent application, including, but not limited to, referral to law enforcement authorities."]
[]
[]
[]
[]
[]
[null,null,"18.","Limitation of Liability: To the fullest extent allowed by law, SRP and RI’s total liability, regardless of the number of claims, is limited to the amount of the rebate payment approved in accordance with Program requirements, and SRP, RI, and their respective governing bodies’ members, officers, employees, contractors, and agents shall not be liable to the Customer or any other individual or entity for any other obligations. Notwithstanding anything in these Terms and Conditions to the contrary, SRP, RI, and their respective governing bodies’ members, officers, employees, contractors, and agents shall not be liable hereunder for any type of damages, whether indirect, special, incidental, consequential, exemplary, reliance or punitive (even if advised of the possibility of such damages), including, without limitation, loss of use or loss of profits, regardless of the form of action whether in contract, indemnity, warranty, strict liability or tort, including, without limitation, negligence of any kind. Customer waives any claims it might have against SRP, RI, and their respective governing bodies’ members, officers, employees, contractors, and agents. "]
[]
[]
[]
[]
[]
[]
[]
[]
[]
[null,null,"19.","Indemnification: Customer shall defend, protect, indemnify and hold harmless SRP, RI and their respective parent company, subsidiaries, board members, employees, subcontractors, and agents (collectively, the “Indemnified Parties”) against all claims, losses, costs, expenses, attorney’s fees, damages, demands, judgments, causes of action, suits, and liability of every kind and character whatsoever (\"Claims\") arising out of or incident to, or related in any way to, directly or indirectly, Customer’s participation in the  Program; provided however, that Customer shall not be required to indemnify and hold harmless any Indemnified Party member against claims adjudicated to have been caused by an Indemnified Party’s gross negligence or willful misconduct."]
[]
[]
[]
[]
[]
[]
[null,null,"20.","Taxable Income: Customer acknowledges that receipt of any rebate pursuant to the Program may result in taxable income to the Customer, even if Customer does not directly receive a payment, and that Customer is solely responsible for payment and reporting with respect to Customer’s taxes. Customer should consult his or her own tax advisor with respect to the tax treatment of rebates provided pursuant to the Program. Nothing in these Terms and Conditions is intended to constitute tax advice and cannot be used for the purpose of avoiding penalties under the Internal Revenue Code."]
[]
[]
[]
[]
[]
[null,null,"21.","Attorneys' Fees: If arbitration or litigation is commenced by either party to enforce or interpret any of the provisions of these terms and conditions, the prevailing party shall be entitled to recover reasonable costs and attorneys' fees at the arbitration, at trial, on appeal, and on any petition for review."]
[]
[]
[null,null,"22.","Disputes/Governing Law: These terms and conditions shall be exclusively governed by and interpreted in accordance with the laws of the state of Arizona. Any litigation between the parties shall be prosecuted only in the state or federal courts of the state of Arizona."]
[]
[]
[null,null,"23.","Program Changes: SRP reserves the right to modify, update, and amend the terms and conditions of the Program, including, but not limited to, making adjustments to incentive amounts, qualifying measures, and changing or cancelling the Program by providing notice to Customer at the Customer’s primary contact’s email address provided in Customer’s Rebate Application. Material changes will only be effective if Customer communicates its assent directly or indirectly by the acceptance of a payment or other Program benefits or by failing to terminate this Agreement within ten (10) business days of its receipt of notice of the proposed amendment, update or modification. Pre-approved applications, for which the applicant has completed all Program requirements, will be processed to completion under the terms and conditions in effect at the time of the pre-approval by SRP. Sections 10-23 will survive the termination of this agreement and remain in full force and effect."]
[]
[]
[]
[]
[]
[]
[]
[null,null,"24.","Entire Agreement: The terms and conditions set forth herein, including all attachments and incorporated references,  constitute a complete statement of the terms applicable to the Program and supersede all prior representations or understandings, whether written or oral. SRP shall not be bound by or be liable for any statement, representation, promise, inducement or understanding of any kind that is not set forth herein. "]
[]
[]
[]
[null,null,"CUSTOMER ACCEPTANCE AND SIGNATURE"]
[]
[null,null,"Under penalties of perjury, I hereby certify by my signature below that:"]
[null,null,"1.","As the representative of Customer, I have the authority to bind Customer to these Terms and Conditions and sign on Customer’s behalf;"]
[]
[null,null,"2.","I have read, understand, and agree to be bound by these Terms and Conditions."]
[]
[]
[]
[]
[]
[null,null,{"$f":"IF(Participant_Name=\"\",\"\",Participant_Name)","v":""},null,null,null,null,null,null,null,null,null,{"$f":"IF(Project_AcctNum=\"\",\"\",Project_AcctNum)","v":""}]
[null,null,"Customer",null,null,null,null,null,null,null,null,null,"Customer Bill Account Number"]
[]
[]
[]
[]
[null,null,"Printed Name & Title",null,null,null,null,null,null,"Customer Representative signature",null,null,null,null,null,null,"Date"]
[]
[null,null,"(Ink signature or digital signature required. Contact a program representative if you would like the form sent to you so you can sign it digitally.)"]
[]
[]
[null,null,"W-9 Tax Form Link:"]
[null,null,"This link redirects you to the webpage with the location of the W-9 form on the IRS website. The form has to be downloaded and filled as part of the application. Click here to access IRS website to download a copy of the W-9 form."]
[]
[]
[null,null,null,null,"SEND COMPLETED FORMS TO:"]
[null,null,null,null,"SRP Business Solutions Programs"]
[null,null,null,null,"3100 W Ray Road, Suite 230"]
[null,null,null,null,"Chandler, AZ 85226"]
[null,null,null,null,"Email: savewithsrpbiz@srpnet.com"]

{"sheet":"Payment Assignment","index":3,"n_rows":54,"n_cols":20,"rows_kept":54,"cut":false,"hidden":false,"merged":[[1,19,1,22],[5,2,5,17],[6,2,6,8],[6,9,7,14],[6,15,7,17],[7,2,7,8],[18,11,18,13],[18,14,18,15],[18,16,18,17],[0,1,0,18],[9,2,9,17],[10,2,15,17],[10,19,15,22],[16,2,16,17],[17,2,17,17],[28,3,28,17],[19,2,19,10],[19,11,19,13],[19,14,19,15],[19,16,19,17],[20,2,20,10],[20,11,20,17],[21,2,21,10],[21,11,21,17],[23,2,23,17],[25,2,25,17],[26,3,27,17],[18,2,18,10],[40,16,40,17],[42,2,43,17],[45,2,47,17],[49,4,49,15],[34,2,34,10],[34,12,34,17],[35,2,35,10],[35,12,35,17],[39,2,39,7],[39,9,39,14],[39,16,39,17],[50,4,50,15],[51,4,51,15],[52,4,52,15],[53,4,53,15],[40,2,40,7],[40,9,40,14]]}
[null,"This document is also available to sign through DocuSign. Reach out to a program representative to start the process."]
[null,{"$f":"Version_ID & \" - \" & Date_ID","v":"FY26.3.5 - Version 20250811"},null,null,null,null,null,null,null,null,null,null,null,null,null,null,null,null,null,"HIDE"]
[]
[null,null,{"$f":"\"FY\" & RIGHT(Curr_FY,2) & \" SRP Business Solutions Standard and Custom Program\"","v":"FY26 SRP Business Solutions Standard and Custom Program"},null,null,null,null,null,null,null,null,null,null,null,null,null,null,"Payment Assignment Form"]
[]
[null,null,"PROJECT INFORMATION  "]
[null,null,"Facility/Project Name & Number (if available): ",null,null,null,null,null,null,"Bill Account Number – nine digits:\n (If multiple meters at site only enter one)",null,null,null,null,null,{"$f":"IF(Project_AcctNum=\"\",\"\",Project_AcctNum)","v":""}]
[null,null,{"$f":"IF(Project_SBSName=\"\",\"\",Project_SBSName)","v":""}]
[]
[null,null,"PAYMENT ASSIGNMENT  (Complete only if incentive is to be assigned to someone other than participant)"]
[null,null,{"$f":"SUBSTITUTE(T11,\"XX\",RIGHT(Curr_FY,2),1)","v":"IN CONNECTION WITH THE FY26 SRP BUSINESS SOLUTIONS STANDARD AND CUSTOM PROGRAMS TERMS AND CONDITIONS (“TERMS AND CONDITIONS”) TO BE EXECUTED BY CUSTOMER CONTEMPORANEOUSLY HEREWITH, CUSTOMER AUTHORIZES SRP TO ISSUE THE REBATE PAYMENT TO THE THIRD PARTY NAMED BELOW AND CUSTOMER UNDERSTANDS THAT CUSTOMER WILL NOT BE RECEIVING THE REBATE PAYMENT CHECK FROM SRP. CUSTOMER ALSO UNDERSTANDS THAT ITS RELEASE OF PAYMENT TO THE THIRD PARTY DOES NOT EXEMPT CUSTOMER FROM THE REBATE REQUIREMENTS OUTLINED IN THE TERMS AND CONDITIONS AND MAY NOT AFFECT CUSTOMER’S TAX LIABILITY FOR REBATES PAID BY THE PROGRAM."},null,null,null,null,null,null,null,null,null,null,null,null,null,null,null,null,"IN CONNECTION WITH THE FYXX SRP BUSINESS SOLUTIONS STANDARD AND CUSTOM PROGRAMS TERMS AND CONDITIONS (“TERMS AND CONDITIONS”) TO BE EXECUTED BY CUSTOMER CONTEMPORANEOUSLY HEREWITH, CUSTOMER AUTHORIZES SRP TO ISSUE THE REBATE PAYMENT TO THE THIRD PARTY NAMED BELOW AND CUSTOMER UNDERSTANDS THAT CUSTOMER WILL NOT BE RECEIVING THE REBATE PAYMENT CHECK FROM SRP. CUSTOMER ALSO UNDERSTANDS THAT ITS RELEASE OF PAYMENT TO THE THIRD PARTY DOES NOT EXEMPT CUSTOMER FROM THE REBATE REQUIREMENTS OUTLINED IN THE TERMS AND CONDITIONS AND MAY NOT AFFECT CUSTOMER’S TAX LIABILITY FOR REBATES PAID BY THE PROGRAM."]
[]
[]
[]
[]
[]
[null,null,"Check should be made out to:"]
[null,null,{"$f":"IF(OR(Payee_Name=\"\",RebateAddressedTo=\"Participant Address\",RebateAddressedTo=\"Installation Address\"),\"\",Payee_Name)","v":""}]
[null,null,"Mailing address:",null,null,null,null,null,null,null,null,"City:",null,null,"State:",null,"Zip:"]
[null,null,{"$f":"IF(OR(Payee_Name=\"\",RebateAddressedTo=\"Participant Address\",RebateAddressedTo=\"Installation Address\"),\"\",Payee_Address1)","v":""},null,null,null,null,null,null,null,null,{"$f":"IF(OR(Payee_Name=\"\",RebateAddressedTo=\"Participant Address\",RebateAddressedTo=\"Installation Address\"),\"\",Payee_Address2)","v":""},null,null,{"$f":"IF(OR(Payee_Name=\"\",RebateAddressedTo=\"Participant Address\",RebateAddressedTo=\"Installation Address\"),\"\",Payee_Address3)","v":""},null,{"$f":"IF(OR(Payee_Name=\"\",RebateAddressedTo=\"Participant Address\",RebateAddressedTo=\"Installation Address\"),\"\",Payee_Address4)","v":""}]
[null,null,"Contact name:",null,null,null,null,null,null,null,null,"Contact telephone:"]
[null,null,{"$f":"IF(OR(Payee_Name=\"\",RebateAddressedTo=\"Participant Address\",RebateAddressedTo=\"Installation Address\"),\"\",Payee_Attn)","v":""},null,null,null,null,null,null,null,null,{"$f":"IF(OR(Payee_Name=\"\",RebateAddressedTo=\"Participant Address\",RebateAddressedTo=\"Installation Address\"),\"\",Payee_Phone)","v":""}]
[]
[null,null,"CUSTOMER ACCEPTANCE AND SIGNATURE"]
[]
[null,null,"Under penalties of perjury, I hereby certify by my signature below that:"]
[null,null,"1.","As the representative of Customer, I have the authority to bind Customer to the terms provided for herein and sign on Customer’s behalf;"]
[]
[null,null,"2.","I have read, understand, and agree to be bound by the terms provided for herein."]
[]
[]
[]
[]
[]
[null,null,{"$f":"IF(Participant_Name=\"\",\"\",Participant_Name)","v":""},null,null,null,null,null,null,null,null,null,{"$f":"IF(Project_AcctNum=\"\",\"\",Project_AcctNum)","v":""}]
[null,null,"Customer: ",null,null,null,null,null,null,null,null,null,"Customer Bill Account Number"]
[]
[]
[]
[]
[null,null,"Printed Name & Title",null,null,null,null,null,null,"Customer Representative signature",null,null,null,null,null,null,"Date"]
[]
[null,null,"(Ink signature or digital signature required. Contact a program representative if you would like the form sent to you so you can sign it digitally.)"]
[]
[]
[null,null,"Tax Information: Customers receiving the benefit of Business Solutions incentives, in an amount of $600 or more per calendar year, whether paid directly to the customer or assigned by the customer to a third party, will be issued a Form 1099 unless the customer is a corporation or otherwise exempt under the IRS regulations."]
[]
[]
[]
[null,null,null,null,"SEND COMPLETED FORMS TO:"]
[null,null,null,null,"SRP Business Solutions Programs"]
[null,null,null,null,"3100 W Ray Road, Suite 230"]
[null,null,null,null,"Chandler, AZ 85226"]
[null,null,null,null,"Email: savewithsrpbiz@srpnet.com"]

{"sheet":"Select Project Type & Stage","index":4,"n_rows":0,"n_cols":0,"rows_kept":0,"cut":false,"hidden":true,"merged":[]}

{"sheet":"NEW CONSTR -->","index":5,"n_rows":0,"n_cols":0,"rows_kept":0,"cut":false,"hidden":true,"merged":[]}

{"sheet":"Facility Information","index":6,"n_rows":45,"n_cols":28,"rows_kept":45,"cut":false,"hidden":true,"merged":[]}
[null,"HIDE",null,"Methodology","Building Area",null,null,null,null,null,null,"Total",{"$f":"SUMIFS(Table_IntInputs[Total Wattage],Table_IntInputs[Space Type],\"<>Exterior\")","v":0},"Watts",null,null,null,"HIDE","HIDE","HIDE","HIDE","HIDE","HIDE","HIDE","HIDE","HIDE","HIDE","HIDE"]
[null,null,null,"Program Year (Override)",{"$f":"IF(AND(Project_InvoiceDate>0,Project_InvoiceDate<DATE(2025,5,1)),\"FY25\",\"FY26\")","v":"FY26"}]
[]
[1,2,3,4,5,6,7,8,9,10,11,12,13,14,15,16,null,1,2,3,4,5,6,7,8,9,10,11]
["Zone","Concatenate(Wndw-Sp Type)","Windows?","Space Type","Area Sq Ft","Perimeter","Room Cavity Height","Width","RCR","RCR,W_m","LPD","Units","Total Wattage","Minimum Controls","Additional Controls?","Notes",null,"Zone#","Description","Dropdown","EIF","DIF","CFltg","DFltg","Cfhvac","Dfhvac","B. CSF","Zone Allowance"]
[1,{"$f":"IF(Table_IntInputs[[#This Row],[Space Type]]=\"Exterior\",\"Exterior\",IF(Table_IntInputs[[#This Row],[Space Type]]=\"\",\"\",IF(AND($E$1=\"Building Area\",ISNUMBER(MATCH(Table_IntInputs[[#This Row],[Space Type]],Table_BldgArea_2016[Building Area Type],0))),Table_IntInputs[[#This Row],[Space Type]],CONCATENATE(IF(Table_IntInputs[[#This Row],[Windows?]]=\"\",\"No\",Table_IntInputs[[#This Row],[Windows?]]),\" - \",Table_IntInputs[[#This Row],[Space Type]]))))","v":"Exterior"},null,"Exterior",0,null,null,null,{"$f":"IFERROR(IF(AND($E$1=\"Space-by-Space\",ISNUMBER(FIND(\"Corridor\",Table_IntInputs[[#This Row],[Space Type]],1))),Table_IntInputs[[#This Row],[Width]],2.5*Table_IntInputs[[#This Row],[Perimeter]]*Table_IntInputs[[#This Row],[Room Cavity Height]]/Table_IntInputs[[#This Row],[Area Sq Ft]]),\"\")","v":""},{"$f":"IFERROR(IF(ASHRAEMethod=\"Space-By-Space\",IF(ISNUMBER(FIND(\"Corridor\",Table_IntInputs[[#This Row],[Space Type]],1)),VLOOKUP(Table_IntInputs[[#This Row],[Space Type]],IF(FiscalYear=\"FY25\",SpaceBySpace_2016[],SpaceBySpace_2016[]),5,FALSE),VLOOKUP(Table_IntInputs[[#This Row],[Space Type]],IF(FiscalYear=\"FY25\",SpaceBySpace_2016[],SpaceBySpace_2016[]),4,FALSE)),\"\"),\"\")","v":""},{"$f":"IFERROR(\n    ROUND(IF(AND(ASHRAEMethod=\"Space-By-Space\",Table_IntInputs[[#This Row],[Space Type]]=\"Atrium, above 40ft\"),0.4+Table_IntInputs[[#This Row],[Room Cavity Height]]*0.02,IF(AND(ASHRAEMethod=\"Space-By-Space\",ISNUMBER(FIND(\"Atrium\",Table_IntInputs[[#This Row],[Space Type]],1))),Table_IntInputs[[#This Row],[Room Cavity Height]]*0.03,VLOOKUP(Table_IntInputs[[#This Row],[Space Type]],IF($E$1=\"Space-By-Space\",IF(FiscalYear=\"FY25\",SpaceBySpace_2016[],SpaceBySpace_2016[]),IF(FiscalYear=\"FY25\",Table_BldgArea_2016[],Table_BldgArea_2016[])),2,FALSE)))  *\n        IF(OR(AND($E$1=\"Space-By-Space\",ISNUMBER(FIND(\"Corridor\",Table_IntInputs[[#This Row],[Space Type]],1)),Table_IntInputs[[#This Row],[RCR]]>=Table_IntInputs[[#This Row],[RCR,W_m]]),\n        AND($E$1=\"Space-By-Space\",NOT(ISNUMBER(FIND(\"Corridor\",Table_IntInputs[[#This Row],[Space Type]],1))),Table_IntInputs[[#This Row],[RCR]]>=Table_IntInputs[[#This Row],[RCR,W_m]],Table_IntInputs[[#This Row],[RCR,W_m]]>0)),1.2,1),2)  *\n        IFERROR(IF(ISNUMBER(MATCH(Table_IntInputs[[#This Row],[Space Type]],Table_AddlControl_2016[Facility Type],0)),1+INDEX(Table_AddlControl_2016[#All],MATCH(Table_IntInputs[[#This Row],[Space Type]],Table_AddlControl_2016[[#All],[Facility Type]],0),MATCH(IF(Table_IntInputs[[#This Row],[Additional Controls?]]=\"\",\"None\",Table_IntInputs[[#This Row],[Additional Controls?]]),Table_AddlControl_2016[#Headers],0)),1),1),\"\")","v":""},{"$f":"IFERROR(VLOOKUP(Table_IntInputs[[#This Row],[Space Type]],IF(ASHRAEMethod=\"Space-By-Space\",IF(FiscalYear=\"FY25\",SpaceBySpace_2016[],SpaceBySpace_2016[]),IF(FiscalYear=\"FY25\",Table_BldgArea_2016[],Table_BldgArea_2016[])),3,FALSE),\"\")","v":""},{"$f":"IFERROR(IF(Table_IntInputs[[#This Row],[Space Type]]=\"Exterior\",'Exterior Information'!$J$3,ROUND(IF(Table_IntInputs[[#This Row],[Units]]=\"W/ft2\",Table_IntInputs[[#This Row],[Area Sq Ft]]*Table_IntInputs[[#This Row],[LPD]],Table_IntInputs[[#This Row],[Area Sq Ft]]*Table_IntInputs[[#This Row],[Room Cavity Height]]*Table_IntInputs[[#This Row],[LPD]]),2)),\"\")","v":0},{"$f":"IFERROR(IF(AND(Table_IntInputs[[#This Row],[Windows?]]=\"No\",VLOOKUP(Table_IntInputs[[#This Row],[Space Type]],IF(FiscalYear=\"FY24\",SpaceBySpace_2016[],SpaceBySpace_2016[]),6,FALSE)=\"Occ + DL\"),\"Occ\",IF(AND(Table_IntInputs[[#This Row],[Windows?]]=\"No\",VLOOKUP(Table_IntInputs[[#This Row],[Space Type]],IF(FiscalYear=\"FY24\",SpaceBySpace_2016[],SpaceBySpace_2016[]),6,FALSE)=\"DL\"),\"\",VLOOKUP(Table_IntInputs[[#This Row],[Space Type]],IF(FiscalYear=\"FY24\",SpaceBySpace_2016[],SpaceBySpace_2016[]),6,FALSE))),\"\")","v":""},null,null,null,null,null,null,{"$f":"IFERROR(IF(Table_IntLookups[[#This Row],[Zone'#]]<>\"\",VLOOKUP(INDEX(Table_IntInputs[],MATCH(Table_IntLookups[[#This Row],[Zone'#]],Table_IntInputs[Zone],0),4),Table_BuildingFactors[#Data],2,FALSE),\"\"),0)","v":""},{"$f":"IFERROR(IF(Table_IntLookups[[#This Row],[Zone'#]]<>\"\",VLOOKUP(INDEX(Table_IntInputs[],MATCH(Table_IntLookups[[#This Row],[Zone'#]],Table_IntInputs[Zone],0),4),Table_BuildingFactors[#Data],3,FALSE),\"\"),0)","v":""},{"$f":"IFERROR(IF(Table_IntLookups[[#This Row],[Zone'#]]<>\"\",VLOOKUP(INDEX(Table_IntInputs[],MATCH(Table_IntLookups[[#This Row],[Zone'#]],Table_IntInputs[Zone],0),4),Table_BuildingFactors[#Data],3,FALSE),\"\"),0)","v":""},{"$f":"IFERROR(IF(Table_IntLookups[[#This Row],[Zone'#]]<>\"\",VLOOKUP(INDEX(Table_IntInputs[],MATCH(Table_IntLookups[[#This Row],[Zone'#]],Table_IntInputs[Zone],0),4),Table_BuildingFactors[#Data],5,FALSE),\"\"),0)","v":""},{"$f":"IFERROR(IF(Table_IntLookups[[#This Row],[Zone'#]]<>\"\",VLOOKUP(INDEX(Table_IntInputs[],MATCH(Table_IntLookups[[#This Row],[Zone'#]],Table_IntInputs[Zone],0),4),Table_BuildingFactors[#Data],6,FALSE),\"\"),0)","v":""},{"$f":"IFERROR(IF(Table_IntLookups[[#This Row],[Zone'#]]<>\"\",VLOOKUP(INDEX(Table_IntInputs[],MATCH(Table_IntLookups[[#This Row],[Zone'#]],Table_IntInputs[Zone],0),4),Table_BuildingFactors[#Data],7,FALSE),\"\"),0)","v":""},{"$f":"IFERROR(IF(Table_IntLookups[[#This Row],[Zone'#]]<>\"\",VLOOKUP(Table_IntLookups[[#This Row],[Description]],INDIRECT(\"Table_BldgArea_\" & IF(FiscalYear=\"FY24\",2013,2016)),4,FALSE),\"\"),0)","v":""},{"$f":"IF($R6=\"\",\"\",SUMIFS(Table_IntInputs[Total Wattage],Table_IntInputs[Zone],$R6))","v":""}]
[{"$f":"IF(OR(Table_IntInputs[[#This Row],[LPD]]=\"\",Table_IntInputs[[#This Row],[Concatenate(Wndw-Sp Type)]]=\"\"),\"\",IF(AND(ISNUMBER(MATCH(Table_IntInputs[[#This Row],[Concatenate(Wndw-Sp Type)]],$B$5:$B6,0))),IF(A6=\"Zone\",1,INDIRECT(\"A\" & MATCH(Table_IntInputs[[#This Row],[Concatenate(Wndw-Sp Type)]],$B$5:$B6,0)+4)),IF(A6=\"Zone\",1,MAX($A$5:$A6)+1)))","v":""},{"$f":"IF(Table_IntInputs[[#This Row],[Space Type]]=\"Exterior\",\"Exterior\",IF(Table_IntInputs[[#This Row],[Space Type]]=\"\",\"\",IF(AND($E$1=\"Building Area\",ISNUMBER(MATCH(Table_IntInputs[[#This Row],[Space Type]],Table_BldgArea_2016[Building Area Type],0))),Table_IntInputs[[#This Row],[Space Type]],CONCATENATE(IF(Table_IntInputs[[#This Row],[Windows?]]=\"\",\"No\",Table_IntInputs[[#This Row],[Windows?]]),\" - \",Table_IntInputs[[#This Row],[Space Type]]))))","v":""},null,null,null,null,null,null,{"$f":"IFERROR(IF(AND($E$1=\"Space-by-Space\",ISNUMBER(FIND(\"Corridor\",Table_IntInputs[[#This Row],[Space Type]],1))),Table_IntInputs[[#This Row],[Width]],2.5*Table_IntInputs[[#This Row],[Perimeter]]*Table_IntInputs[[#This Row],[Room Cavity Height]]/Table_IntInputs[[#This Row],[Area Sq Ft]]),\"\")","v":""},{"$f":"IFERROR(IF(ASHRAEMethod=\"Space-By-Space\",IF(ISNUMBER(FIND(\"Corridor\",Table_IntInputs[[#This Row],[Space Type]],1)),VLOOKUP(Table_IntInputs[[#This Row],[Space Type]],IF(FiscalYear=\"FY25\",SpaceBySpace_2016[],SpaceBySpace_2016[]),5,FALSE),VLOOKUP(Table_IntInputs[[#This Row],[Space Type]],IF(FiscalYear=\"FY25\",SpaceBySpace_2016[],SpaceBySpace_2016[]),4,FALSE)),\"\"),\"\")","v":""},{"$f":"IFERROR(\n    ROUND(IF(AND(ASHRAEMethod=\"Space-By-Space\",Table_IntInputs[[#This Row],[Space Type]]=\"Atrium, above 40ft\"),0.4+Table_IntInputs[[#This Row],[Room Cavity Height]]*0.02,IF(AND(ASHRAEMethod=\"Space-By-Space\",ISNUMBER(FIND(\"Atrium\",Table_IntInputs[[#This Row],[Space Type]],1))),Table_IntInputs[[#This Row],[Room Cavity Height]]*0.03,VLOOKUP(Table_IntInputs[[#This Row],[Space Type]],IF($E$1=\"Space-By-Space\",IF(FiscalYear=\"FY25\",SpaceBySpace_2016[],SpaceBySpace_2016[]),IF(FiscalYear=\"FY25\",Table_BldgArea_2016[],Table_BldgArea_2016[])),2,FALSE)))  *\n        IF(OR(AND($E$1=\"Space-By-Space\",ISNUMBER(FIND(\"Corridor\",Table_IntInputs[[#This Row],[Space Type]],1)),Table_IntInputs[[#This Row],[RCR]]>=Table_IntInputs[[#This Row],[RCR,W_m]]),\n        AND($E$1=\"Space-By-Space\",NOT(ISNUMBER(FIND(\"Corridor\",Table_IntInputs[[#This Row],[Space Type]],1))),Table_IntInputs[[#This Row],[RCR]]>=Table_IntInputs[[#This Row],[RCR,W_m]],Table_IntInputs[[#This Row],[RCR,W_m]]>0)),1.2,1),2)  *\n        IFERROR(IF(ISNUMBER(MATCH(Table_IntInputs[[#This Row],[Space Type]],Table_AddlControl_2016[Facility Type],0)),1+INDEX(Table_AddlControl_2016[#All],MATCH(Table_IntInputs[[#This Row],[Space Type]],Table_AddlControl_2016[[#All],[Facility Type]],0),MATCH(IF(Table_IntInputs[[#This Row],[Additional Controls?]]=\"\",\"None\",Table_IntInputs[[#This Row],[Additional Controls?]]),Table_AddlControl_2016[#Headers],0)),1),1),\"\")","v":""},{"$f":"IFERROR(VLOOKUP(Table_IntInputs[[#This Row],[Space Type]],IF(ASHRAEMethod=\"Space-By-Space\",IF(FiscalYear=\"FY25\",SpaceBySpace_2016[],SpaceBySpace_2016[]),IF(FiscalYear=\"FY25\",Table_BldgArea_2016[],Table_BldgArea_2016[])),3,FALSE),\"\")","v":""},{"$f":"IFERROR(IF(Table_IntInputs[[#This Row],[Space Type]]=\"Exterior\",'Exterior Information'!$J$3,ROUND(IF(Table_IntInputs[[#This Row],[Units]]=\"W/ft2\",Table_IntInputs[[#This Row],[Area Sq Ft]]*Table_IntInputs[[#This Row],[LPD]],Table_IntInputs[[#This Row],[Area Sq Ft]]*Table_IntInputs[[#This Row],[Room Cavity Height]]*Table_IntInputs[[#This Row],[LPD]]),2)),\"\")","v":""},{"$f":"IFERROR(IF(AND(Table_IntInputs[[#This Row],[Windows?]]=\"No\",VLOOKUP(Table_IntInputs[[#This Row],[Space Type]],IF(FiscalYear=\"FY24\",SpaceBySpace_2016[],SpaceBySpace_2016[]),6,FALSE)=\"Occ + DL\"),\"Occ\",IF(AND(Table_IntInputs[[#This Row],[Windows?]]=\"No\",VLOOKUP(Table_IntInputs[[#This Row],[Space Type]],IF(FiscalYear=\"FY24\",SpaceBySpace_2016[],SpaceBySpace_2016[]),6,FALSE)=\"DL\"),\"\",VLOOKUP(Table_IntInputs[[#This Row],[Space Type]],IF(FiscalYear=\"FY24\",SpaceBySpace_2016[],SpaceBySpace_2016[]),6,FALSE))),\"\")","v":""},null,null,null,1,{"$f":"IFERROR(VLOOKUP(R7,Table_IntInputs[[Zone]:[Concatenate(Wndw-Sp Type)]],2,FALSE),\"\")","v":"Exterior"},{"$f":"IF(S7=\"\",\"\",CONCATENATE(\"Zone #\",R7,\": \",S7))","v":"Zone #1: Exterior"},{"$f":"IFERROR(IF(Table_IntLookups[[#This Row],[Zone'#]]<>\"\",VLOOKUP(INDEX(Table_IntInputs[],MATCH(Table_IntLookups[[#This Row],[Zone'#]],Table_IntInputs[Zone],0),4),Table_BuildingFactors[#Data],2,FALSE),\"\"),0)","v":0},{"$f":"IFERROR(IF(Table_IntLookups[[#This Row],[Zone'#]]<>\"\",VLOOKUP(INDEX(Table_IntInputs[],MATCH(Table_IntLookups[[#This Row],[Zone'#]],Table_IntInputs[Zone],0),4),Table_BuildingFactors[#Data],3,FALSE),\"\"),0)","v":0},{"$f":"IFERROR(IF(Table_IntLookups[[#This Row],[Zone'#]]<>\"\",VLOOKUP(INDEX(Table_IntInputs[],MATCH(Table_IntLookups[[#This Row],[Zone'#]],Table_IntInputs[Zone],0),4),Table_BuildingFactors[#Data],3,FALSE),\"\"),0)","v":0},{"$f":"IFERROR(IF(Table_IntLookups[[#This Row],[Zone'#]]<>\"\",VLOOKUP(INDEX(Table_IntInputs[],MATCH(Table_IntLookups[[#This Row],[Zone'#]],Table_IntInputs[Zone],0),4),Table_BuildingFactors[#Data],5,FALSE),\"\"),0)","v":0},{"$f":"IFERROR(IF(Table_IntLookups[[#This Row],[Zone'#]]<>\"\",VLOOKUP(INDEX(Table_IntInputs[],MATCH(Table_IntLookups[[#This Row],[Zone'#]],Table_IntInputs[Zone],0),4),Table_BuildingFactors[#Data],6,FALSE),\"\"),0)","v":0},{"$f":"IFERROR(IF(Table_IntLookups[[#This Row],[Zone'#]]<>\"\",VLOOKUP(INDEX(Table_IntInputs[],MATCH(Table_IntLookups[[#This Row],[Zone'#]],Table_IntInputs[Zone],0),4),Table_BuildingFactors[#Data],7,FALSE),\"\"),0)","v":0},{"$f":"IFERROR(IF(Table_IntLookups[[#This Row],[Zone'#]]<>\"\",VLOOKUP(Table_IntLookups[[#This Row],[Description]],INDIRECT(\"Table_BldgArea_\" & IF(FiscalYear=\"FY24\",2013,2016)),4,FALSE),\"\"),0)","v":0},{"$f":"IF($R7=\"\",\"\",SUMIFS(Table_IntInputs[Total Wattage],Table_IntInputs[Zone],$R7))","v":0}]
[{"$f":"IF(OR(Table_IntInputs[[#This Row],[LPD]]=\"\",Table_IntInputs[[#This Row],[Concatenate(Wndw-Sp Type)]]=\"\"),\"\",IF(AND(ISNUMBER(MATCH(Table_IntInputs[[#This Row],[Concatenate(Wndw-Sp Type)]],$B$5:$B7,0))),IF(A7=\"Zone\",1,INDIRECT(\"A\" & MATCH(Table_IntInputs[[#This Row],[Concatenate(Wndw-Sp Type)]],$B$5:$B7,0)+4)),IF(A7=\"Zone\",1,MAX($A$5:$A7)+1)))","v":""},{"$f":"IF(Table_IntInputs[[#This Row],[Space Type]]=\"Exterior\",\"Exterior\",IF(Table_IntInputs[[#This Row],[Space Type]]=\"\",\"\",IF(AND($E$1=\"Building Area\",ISNUMBER(MATCH(Table_IntInputs[[#This Row],[Space Type]],Table_BldgArea_2016[Building Area Type],0))),Table_IntInputs[[#This Row],[Space Type]],CONCATENATE(IF(Table_IntInputs[[#This Row],[Windows?]]=\"\",\"No\",Table_IntInputs[[#This Row],[Windows?]]),\" - \",Table_IntInputs[[#This Row],[Space Type]]))))","v":""},null,null,null,null,null,null,{"$f":"IFERROR(IF(AND($E$1=\"Space-by-Space\",ISNUMBER(FIND(\"Corridor\",Table_IntInputs[[#This Row],[Space Type]],1))),Table_IntInputs[[#This Row],[Width]],2.5*Table_IntInputs[[#This Row],[Perimeter]]*Table_IntInputs[[#This Row],[Room Cavity Height]]/Table_IntInputs[[#This Row],[Area Sq Ft]]),\"\")","v":""},{"$f":"IFERROR(IF(ASHRAEMethod=\"Space-By-Space\",IF(ISNUMBER(FIND(\"Corridor\",Table_IntInputs[[#This Row],[Space Type]],1)),VLOOKUP(Table_IntInputs[[#This Row],[Space Type]],IF(FiscalYear=\"FY25\",SpaceBySpace_2016[],SpaceBySpace_2016[]),5,FALSE),VLOOKUP(Table_IntInputs[[#This Row],[Space Type]],IF(FiscalYear=\"FY25\",SpaceBySpace_2016[],SpaceBySpace_2016[]),4,FALSE)),\"\"),\"\")","v":""},{"$f":"IFERROR(\n    ROUND(IF(AND(ASHRAEMethod=\"Space-By-Space\",Table_IntInputs[[#This Row],[Space Type]]=\"Atrium, above 40ft\"),0.4+Table_IntInputs[[#This Row],[Room Cavity Height]]*0.02,IF(AND(ASHRAEMethod=\"Space-By-Space\",ISNUMBER(FIND(\"Atrium\",Table_IntInputs[[#This Row],[Space Type]],1))),Table_IntInputs[[#This Row],[Room Cavity Height]]*0.03,VLOOKUP(Table_IntInputs[[#This Row],[Space Type]],IF($E$1=\"Space-By-Space\",IF(FiscalYear=\"FY25\",SpaceBySpace_2016[],SpaceBySpace_2016[]),IF(FiscalYear=\"FY25\",Table_BldgArea_2016[],Table_BldgArea_2016[])),2,FALSE)))  *\n        IF(OR(AND($E$1=\"Space-By-Space\",ISNUMBER(FIND(\"Corridor\",Table_IntInputs[[#This Row],[Space Type]],1)),Table_IntInputs[[#This Row],[RCR]]>=Table_IntInputs[[#This Row],[RCR,W_m]]),\n        AND($E$1=\"Space-By-Space\",NOT(ISNUMBER(FIND(\"Corridor\",Table_IntInputs[[#This Row],[Space Type]],1))),Table_IntInputs[[#This Row],[RCR]]>=Table_IntInputs[[#This Row],[RCR,W_m]],Table_IntInputs[[#This Row],[RCR,W_m]]>0)),1.2,1),2)  *\n        IFERROR(IF(ISNUMBER(MATCH(Table_IntInputs[[#This Row],[Space Type]],Table_AddlControl_2016[Facility Type],0)),1+INDEX(Table_AddlControl_2016[#All],MATCH(Table_IntInputs[[#This Row],[Space Type]],Table_AddlControl_2016[[#All],[Facility Type]],0),MATCH(IF(Table_IntInputs[[#This Row],[Additional Controls?]]=\"\",\"None\",Table_IntInputs[[#This Row],[Additional Controls?]]),Table_AddlControl_2016[#Headers],0)),1),1),\"\")","v":""},{"$f":"IFERROR(VLOOKUP(Table_IntInputs[[#This Row],[Space Type]],IF(ASHRAEMethod=\"Space-By-Space\",IF(FiscalYear=\"FY25\",SpaceBySpace_2016[],SpaceBySpace_2016[]),IF(FiscalYear=\"FY25\",Table_BldgArea_2016[],Table_BldgArea_2016[])),3,FALSE),\"\")","v":""},{"$f":"IFERROR(IF(Table_IntInputs[[#This Row],[Space Type]]=\"Exterior\",'Exterior Information'!$J$3,ROUND(IF(Table_IntInputs[[#This Row],[Units]]=\"W/ft2\",Table_IntInputs[[#This Row],[Area Sq Ft]]*Table_IntInputs[[#This Row],[LPD]],Table_IntInputs[[#This Row],[Area Sq Ft]]*Table_IntInputs[[#This Row],[Room Cavity Height]]*Table_IntInputs[[#This Row],[LPD]]),2)),\"\")","v":""},{"$f":"IFERROR(IF(AND(Table_IntInputs[[#This Row],[Windows?]]=\"No\",VLOOKUP(Table_IntInputs[[#This Row],[Space Type]],IF(FiscalYear=\"FY24\",SpaceBySpace_2016[],SpaceBySpace_2016[]),6,FALSE)=\"Occ + DL\"),\"Occ\",IF(AND(Table_IntInputs[[#This Row],[Windows?]]=\"No\",VLOOKUP(Table_IntInputs[[#This Row],[Space Type]],IF(FiscalYear=\"FY24\",SpaceBySpace_2016[],SpaceBySpace_2016[]),6,FALSE)=\"DL\"),\"\",VLOOKUP(Table_IntInputs[[#This Row],[Space Type]],IF(FiscalYear=\"FY24\",SpaceBySpace_2016[],SpaceBySpace_2016[]),6,FALSE))),\"\")","v":""},null,null,null,{"$f":"IFERROR(IF(R7+1>MAX(Table_IntInputs[Zone]),\"\",R7+1),\"\")","v":""},{"$f":"VLOOKUP(R8,Table_IntInputs[[Zone]:[Concatenate(Wndw-Sp Type)]],2,FALSE)","v":""},{"$f":"IF(R8=\"\",\"\",CONCATENATE(\"Zone #\",R8,\": \",S8))","v":""},{"$f":"IFERROR(IF(Table_IntLookups[[#This Row],[Zone'#]]<>\"\",VLOOKUP(INDEX(Table_IntInputs[],MATCH(Table_IntLookups[[#This Row],[Zone'#]],Table_IntInputs[Zone],0),4),Table_BuildingFactors[#Data],2,FALSE),\"\"),0)","v":""},{"$f":"IFERROR(IF(Table_IntLookups[[#This Row],[Zone'#]]<>\"\",VLOOKUP(INDEX(Table_IntInputs[],MATCH(Table_IntLookups[[#This Row],[Zone'#]],Table_IntInputs[Zone],0),4),Table_BuildingFactors[#Data],3,FALSE),\"\"),0)","v":""},{"$f":"IFERROR(IF(Table_IntLookups[[#This Row],[Zone'#]]<>\"\",VLOOKUP(INDEX(Table_IntInputs[],MATCH(Table_IntLookups[[#This Row],[Zone'#]],Table_IntInputs[Zone],0),4),Table_BuildingFactors[#Data],3,FALSE),\"\"),0)","v":""},{"$f":"IFERROR(IF(Table_IntLookups[[#This Row],[Zone'#]]<>\"\",VLOOKUP(INDEX(Table_IntInputs[],MATCH(Table_IntLookups[[#This Row],[Zone'#]],Table_IntInputs[Zone],0),4),Table_BuildingFactors[#Data],5,FALSE),\"\"),0)","v":""},{"$f":"IFERROR(IF(Table_IntLookups[[#This Row],[Zone'#]]<>\"\",VLOOKUP(INDEX(Table_IntInputs[],MATCH(Table_IntLookups[[#This Row],[Zone'#]],Table_IntInputs[Zone],0),4),Table_BuildingFactors[#Data],6,FALSE),\"\"),0)","v":""},{"$f":"IFERROR(IF(Table_IntLookups[[#This Row],[Zone'#]]<>\"\",VLOOKUP(INDEX(Table_IntInputs[],MATCH(Table_IntLookups[[#This Row],[Zone'#]],Table_IntInputs[Zone],0),4),Table_BuildingFactors[#Data],7,FALSE),\"\"),0)","v":""},{"$f":"IFERROR(IF(Table_IntLookups[[#This Row],[Zone'#]]<>\"\",VLOOKUP(Table_IntLookups[[#This Row],[Description]],INDIRECT(\"Table_BldgArea_\" & IF(FiscalYear=\"FY24\",2013,2016)),4,FALSE),\"\"),0)","v":""},{"$f":"IF($R8=\"\",\"\",SUMIFS(Table_IntInputs[Total Wattage],Table_IntInputs[Zone],$R8))","v":""}]
[{"$f":"IF(OR(Table_IntInputs[[#This Row],[LPD]]=\"\",Table_IntInputs[[#This Row],[Concatenate(Wndw-Sp Type)]]=\"\"),\"\",IF(AND(ISNUMBER(MATCH(Table_IntInputs[[#This Row],[Concatenate(Wndw-Sp Type)]],$B$5:$B8,0))),IF(A8=\"Zone\",1,INDIRECT(\"A\" & MATCH(Table_IntInputs[[#This Row],[Concatenate(Wndw-Sp Type)]],$B$5:$B8,0)+4)),IF(A8=\"Zone\",1,MAX($A$5:$A8)+1)))","v":""},{"$f":"IF(Table_IntInputs[[#This Row],[Space Type]]=\"Exterior\",\"Exterior\",IF(Table_IntInputs[[#This Row],[Space Type]]=\"\",\"\",IF(AND($E$1=\"Building Area\",ISNUMBER(MATCH(Table_IntInputs[[#This Row],[Space Type]],Table_BldgArea_2016[Building Area Type],0))),Table_IntInputs[[#This Row],[Space Type]],CONCATENATE(IF(Table_IntInputs[[#This Row],[Windows?]]=\"\",\"No\",Table_IntInputs[[#This Row],[Windows?]]),\" - \",Table_IntInputs[[#This Row],[Space Type]]))))","v":""},null,null,null,null,null,null,{"$f":"IFERROR(IF(AND($E$1=\"Space-by-Space\",ISNUMBER(FIND(\"Corridor\",Table_IntInputs[[#This Row],[Space Type]],1))),Table_IntInputs[[#This Row],[Width]],2.5*Table_IntInputs[[#This Row],[Perimeter]]*Table_IntInputs[[#This Row],[Room Cavity Height]]/Table_IntInputs[[#This Row],[Area Sq Ft]]),\"\")","v":""},{"$f":"IFERROR(IF(ASHRAEMethod=\"Space-By-Space\",IF(ISNUMBER(FIND(\"Corridor\",Table_IntInputs[[#This Row],[Space Type]],1)),VLOOKUP(Table_IntInputs[[#This Row],[Space Type]],IF(FiscalYear=\"FY25\",SpaceBySpace_2016[],SpaceBySpace_2016[]),5,FALSE),VLOOKUP(Table_IntInputs[[#This Row],[Space Type]],IF(FiscalYear=\"FY25\",SpaceBySpace_2016[],SpaceBySpace_2016[]),4,FALSE)),\"\"),\"\")","v":""},{"$f":"IFERROR(\n    ROUND(IF(AND(ASHRAEMethod=\"Space-By-Space\",Table_IntInputs[[#This Row],[Space Type]]=\"Atrium, above 40ft\"),0.4+Table_IntInputs[[#This Row],[Room Cavity Height]]*0.02,IF(AND(ASHRAEMethod=\"Space-By-Space\",ISNUMBER(FIND(\"Atrium\",Table_IntInputs[[#This Row],[Space Type]],1))),Table_IntInputs[[#This Row],[Room Cavity Height]]*0.03,VLOOKUP(Table_IntInputs[[#This Row],[Space Type]],IF($E$1=\"Space-By-Space\",IF(FiscalYear=\"FY25\",SpaceBySpace_2016[],SpaceBySpace_2016[]),IF(FiscalYear=\"FY25\",Table_BldgArea_2016[],Table_BldgArea_2016[])),2,FALSE)))  *\n        IF(OR(AND($E$1=\"Space-By-Space\",ISNUMBER(FIND(\"Corridor\",Table_IntInputs[[#This Row],[Space Type]],1)),Table_IntInputs[[#This Row],[RCR]]>=Table_IntInputs[[#This Row],[RCR,W_m]]),\n        AND($E$1=\"Space-By-Space\",NOT(ISNUMBER(FIND(\"Corridor\",Table_IntInputs[[#This Row],[Space Type]],1))),Table_IntInputs[[#This Row],[RCR]]>=Table_IntInputs[[#This Row],[RCR,W_m]],Table_IntInputs[[#This Row],[RCR,W_m]]>0)),1.2,1),2)  *\n        IFERROR(IF(ISNUMBER(MATCH(Table_IntInputs[[#This Row],[Space Type]],Table_AddlControl_2016[Facility Type],0)),1+INDEX(Table_AddlControl_2016[#All],MATCH(Table_IntInputs[[#This Row],[Space Type]],Table_AddlControl_2016[[#All],[Facility Type]],0),MATCH(IF(Table_IntInputs[[#This Row],[Additional Controls?]]=\"\",\"None\",Table_IntInputs[[#This Row],[Additional Controls?]]),Table_AddlControl_2016[#Headers],0)),1),1),\"\")","v":""},{"$f":"IFERROR(VLOOKUP(Table_IntInputs[[#This Row],[Space Type]],IF(ASHRAEMethod=\"Space-By-Space\",IF(FiscalYear=\"FY25\",SpaceBySpace_2016[],SpaceBySpace_2016[]),IF(FiscalYear=\"FY25\",Table_BldgArea_2016[],Table_BldgArea_2016[])),3,FALSE),\"\")","v":""},{"$f":"IFERROR(IF(Table_IntInputs[[#This Row],[Space Type]]=\"Exterior\",'Exterior Information'!$J$3,ROUND(IF(Table_IntInputs[[#This Row],[Units]]=\"W/ft2\",Table_IntInputs[[#This Row],[Area Sq Ft]]*Table_IntInputs[[#This Row],[LPD]],Table_IntInputs[[#This Row],[Area Sq Ft]]*Table_IntInputs[[#This Row],[Room Cavity Height]]*Table_IntInputs[[#This Row],[LPD]]),2)),\"\")","v":""},{"$f":"IFERROR(IF(AND(Table_IntInputs[[#This Row],[Windows?]]=\"No\",VLOOKUP(Table_IntInputs[[#This Row],[Space Type]],IF(FiscalYear=\"FY24\",SpaceBySpace_2016[],SpaceBySpace_2016[]),6,FALSE)=\"Occ + DL\"),\"Occ\",IF(AND(Table_IntInputs[[#This Row],[Windows?]]=\"No\",VLOOKUP(Table_IntInputs[[#This Row],[Space Type]],IF(FiscalYear=\"FY24\",SpaceBySpace_2016[],SpaceBySpace_2016[]),6,FALSE)=\"DL\"),\"\",VLOOKUP(Table_IntInputs[[#This Row],[Space Type]],IF(FiscalYear=\"FY24\",SpaceBySpace_2016[],SpaceBySpace_2016[]),6,FALSE))),\"\")","v":""},null,null,null,{"$f":"IFERROR(IF(R8+1>MAX(Table_IntInputs[Zone]),\"\",R8+1),\"\")","v":""},{"$f":"VLOOKUP(R9,Table_IntInputs[[Zone]:[Concatenate(Wndw-Sp Type)]],2,FALSE)","v":""},{"$f":"IF(R9=\"\",\"\",CONCATENATE(\"Zone #\",R9,\": \",S9))","v":""},{"$f":"IFERROR(IF(Table_IntLookups[[#This Row],[Zone'#]]<>\"\",VLOOKUP(INDEX(Table_IntInputs[],MATCH(Table_IntLookups[[#This Row],[Zone'#]],Table_IntInputs[Zone],0),4),Table_BuildingFactors[#Data],2,FALSE),\"\"),0)","v":""},{"$f":"IFERROR(IF(Table_IntLookups[[#This Row],[Zone'#]]<>\"\",VLOOKUP(INDEX(Table_IntInputs[],MATCH(Table_IntLookups[[#This Row],[Zone'#]],Table_IntInputs[Zone],0),4),Table_BuildingFactors[#Data],3,FALSE),\"\"),0)","v":""},{"$f":"IFERROR(IF(Table_IntLookups[[#This Row],[Zone'#]]<>\"\",VLOOKUP(INDEX(Table_IntInputs[],MATCH(Table_IntLookups[[#This Row],[Zone'#]],Table_IntInputs[Zone],0),4),Table_BuildingFactors[#Data],3,FALSE),\"\"),0)","v":""},{"$f":"IFERROR(IF(Table_IntLookups[[#This Row],[Zone'#]]<>\"\",VLOOKUP(INDEX(Table_IntInputs[],MATCH(Table_IntLookups[[#This Row],[Zone'#]],Table_IntInputs[Zone],0),4),Table_BuildingFactors[#Data],5,FALSE),\"\"),0)","v":""},{"$f":"IFERROR(IF(Table_IntLookups[[#This Row],[Zone'#]]<>\"\",VLOOKUP(INDEX(Table_IntInputs[],MATCH(Table_IntLookups[[#This Row],[Zone'#]],Table_IntInputs[Zone],0),4),Table_BuildingFactors[#Data],6,FALSE),\"\"),0)","v":""},{"$f":"IFERROR(IF(Table_IntLookups[[#This Row],[Zone'#]]<>\"\",VLOOKUP(INDEX(Table_IntInputs[],MATCH(Table_IntLookups[[#This Row],[Zone'#]],Table_IntInputs[Zone],0),4),Table_BuildingFactors[#Data],7,FALSE),\"\"),0)","v":""},{"$f":"IFERROR(IF(Table_IntLookups[[#This Row],[Zone'#]]<>\"\",VLOOKUP(Table_IntLookups[[#This Row],[Description]],INDIRECT(\"Table_BldgArea_\" & IF(FiscalYear=\"FY24\",2013,2016)),4,FALSE),\"\"),0)","v":""},{"$f":"IF($R9=\"\",\"\",SUMIFS(Table_IntInputs[Total Wattage],Table_IntInputs[Zone],$R9))","v":""}]
[{"$f":"IF(OR(Table_IntInputs[[#This Row],[LPD]]=\"\",Table_IntInputs[[#This Row],[Concatenate(Wndw-Sp Type)]]=\"\"),\"\",IF(AND(ISNUMBER(MATCH(Table_IntInputs[[#This Row],[Concatenate(Wndw-Sp Type)]],$B$5:$B9,0))),IF(A9=\"Zone\",1,INDIRECT(\"A\" & MATCH(Table_IntInputs[[#This Row],[Concatenate(Wndw-Sp Type)]],$B$5:$B9,0)+4)),IF(A9=\"Zone\",1,MAX($A$5:$A9)+1)))","v":""},{"$f":"IF(Table_IntInputs[[#This Row],[Space Type]]=\"Exterior\",\"Exterior\",IF(Table_IntInputs[[#This Row],[Space Type]]=\"\",\"\",IF(AND($E$1=\"Building Area\",ISNUMBER(MATCH(Table_IntInputs[[#This Row],[Space Type]],Table_BldgArea_2016[Building Area Type],0))),Table_IntInputs[[#This Row],[Space Type]],CONCATENATE(IF(Table_IntInputs[[#This Row],[Windows?]]=\"\",\"No\",Table_IntInputs[[#This Row],[Windows?]]),\" - \",Table_IntInputs[[#This Row],[Space Type]]))))","v":""},null,null,null,null,null,null,{"$f":"IFERROR(IF(AND($E$1=\"Space-by-Space\",ISNUMBER(FIND(\"Corridor\",Table_IntInputs[[#This Row],[Space Type]],1))),Table_IntInputs[[#This Row],[Width]],2.5*Table_IntInputs[[#This Row],[Perimeter]]*Table_IntInputs[[#This Row],[Room Cavity Height]]/Table_IntInputs[[#This Row],[Area Sq Ft]]),\"\")","v":""},{"$f":"IFERROR(IF(ASHRAEMethod=\"Space-By-Space\",IF(ISNUMBER(FIND(\"Corridor\",Table_IntInputs[[#This Row],[Space Type]],1)),VLOOKUP(Table_IntInputs[[#This Row],[Space Type]],IF(FiscalYear=\"FY25\",SpaceBySpace_2016[],SpaceBySpace_2016[]),5,FALSE),VLOOKUP(Table_IntInputs[[#This Row],[Space Type]],IF(FiscalYear=\"FY25\",SpaceBySpace_2016[],SpaceBySpace_2016[]),4,FALSE)),\"\"),\"\")","v":""},{"$f":"IFERROR(\n    ROUND(IF(AND(ASHRAEMethod=\"Space-By-Space\",Table_IntInputs[[#This Row],[Space Type]]=\"Atrium, above 40ft\"),0.4+Table_IntInputs[[#This Row],[Room Cavity Height]]*0.02,IF(AND(ASHRAEMethod=\"Space-By-Space\",ISNUMBER(FIND(\"Atrium\",Table_IntInputs[[#This Row],[Space Type]],1))),Table_IntInputs[[#This Row],[Room Cavity Height]]*0.03,VLOOKUP(Table_IntInputs[[#This Row],[Space Type]],IF($E$1=\"Space-By-Space\",IF(FiscalYear=\"FY25\",SpaceBySpace_2016[],SpaceBySpace_2016[]),IF(FiscalYear=\"FY25\",Table_BldgArea_2016[],Table_BldgArea_2016[])),2,FALSE)))  *\n        IF(OR(AND($E$1=\"Space-By-Space\",ISNUMBER(FIND(\"Corridor\",Table_IntInputs[[#This Row],[Space Type]],1)),Table_IntInputs[[#This Row],[RCR]]>=Table_IntInputs[[#This Row],[RCR,W_m]]),\n        AND($E$1=\"Space-By-Space\",NOT(ISNUMBER(FIND(\"Corridor\",Table_IntInputs[[#This Row],[Space Type]],1))),Table_IntInputs[[#This Row],[RCR]]>=Table_IntInputs[[#This Row],[RCR,W_m]],Table_IntInputs[[#This Row],[RCR,W_m]]>0)),1.2,1),2)  *\n        IFERROR(IF(ISNUMBER(MATCH(Table_IntInputs[[#This Row],[Space Type]],Table_AddlControl_2016[Facility Type],0)),1+INDEX(Table_AddlControl_2016[#All],MATCH(Table_IntInputs[[#This Row],[Space Type]],Table_AddlControl_2016[[#All],[Facility Type]],0),MATCH(IF(Table_IntInputs[[#This Row],[Additional Controls?]]=\"\",\"None\",Table_IntInputs[[#This Row],[Additional Controls?]]),Table_AddlControl_2016[#Headers],0)),1),1),\"\")","v":""},{"$f":"IFERROR(VLOOKUP(Table_IntInputs[[#This Row],[Space Type]],IF(ASHRAEMethod=\"Space-By-Space\",IF(FiscalYear=\"FY25\",SpaceBySpace_2016[],SpaceBySpace_2016[]),IF(FiscalYear=\"FY25\",Table_BldgArea_2016[],Table_BldgArea_2016[])),3,FALSE),\"\")","v":""},{"$f":"IFERROR(IF(Table_IntInputs[[#This Row],[Space Type]]=\"Exterior\",'Exterior Information'!$J$3,ROUND(IF(Table_IntInputs[[#This Row],[Units]]=\"W/ft2\",Table_IntInputs[[#This Row],[Area Sq Ft]]*Table_IntInputs[[#This Row],[LPD]],Table_IntInputs[[#This Row],[Area Sq Ft]]*Table_IntInputs[[#This Row],[Room Cavity Height]]*Table_IntInputs[[#This Row],[LPD]]),2)),\"\")","v":""},{"$f":"IFERROR(IF(AND(Table_IntInputs[[#This Row],[Windows?]]=\"No\",VLOOKUP(Table_IntInputs[[#This Row],[Space Type]],IF(FiscalYear=\"FY24\",SpaceBySpace_2016[],SpaceBySpace_2016[]),6,FALSE)=\"Occ + DL\"),\"Occ\",IF(AND(Table_IntInputs[[#This Row],[Windows?]]=\"No\",VLOOKUP(Table_IntInputs[[#This Row],[Space Type]],IF(FiscalYear=\"FY24\",SpaceBySpace_2016[],SpaceBySpace_2016[]),6,FALSE)=\"DL\"),\"\",VLOOKUP(Table_IntInputs[[#This Row],[Space Type]],IF(FiscalYear=\"FY24\",SpaceBySpace_2016[],SpaceBySpace_2016[]),6,FALSE))),\"\")","v":""},null,null,null,{"$f":"IFERROR(IF(R9+1>MAX(Table_IntInputs[Zone]),\"\",R9+1),\"\")","v":""},{"$f":"VLOOKUP(R10,Table_IntInputs[[Zone]:[Concatenate(Wndw-Sp Type)]],2,FALSE)","v":""},"",{"$f":"IFERROR(IF(Table_IntLookups[[#This Row],[Zone'#]]<>\"\",VLOOKUP(INDEX(Table_IntInputs[],MATCH(Table_IntLookups[[#This Row],[Zone'#]],Table_IntInputs[Zone],0),4),Table_BuildingFactors[#Data],2,FALSE),\"\"),0)","v":""},{"$f":"IFERROR(IF(Table_IntLookups[[#This Row],[Zone'#]]<>\"\",VLOOKUP(INDEX(Table_IntInputs[],MATCH(Table_IntLookups[[#This Row],[Zone'#]],Table_IntInputs[Zone],0),4),Table_BuildingFactors[#Data],3,FALSE),\"\"),0)","v":""},{"$f":"IFERROR(IF(Table_IntLookups[[#This Row],[Zone'#]]<>\"\",VLOOKUP(INDEX(Table_IntInputs[],MATCH(Table_IntLookups[[#This Row],[Zone'#]],Table_IntInputs[Zone],0),4),Table_BuildingFactors[#Data],3,FALSE),\"\"),0)","v":""},{"$f":"IFERROR(IF(Table_IntLookups[[#This Row],[Zone'#]]<>\"\",VLOOKUP(INDEX(Table_IntInputs[],MATCH(Table_IntLookups[[#This Row],[Zone'#]],Table_IntInputs[Zone],0),4),Table_BuildingFactors[#Data],5,FALSE),\"\"),0)","v":""},{"$f":"IFERROR(IF(Table_IntLookups[[#This Row],[Zone'#]]<>\"\",VLOOKUP(INDEX(Table_IntInputs[],MATCH(Table_IntLookups[[#This Row],[Zone'#]],Table_IntInputs[Zone],0),4),Table_BuildingFactors[#Data],6,FALSE),\"\"),0)","v":""},{"$f":"IFERROR(IF(Table_IntLookups[[#This Row],[Zone'#]]<>\"\",VLOOKUP(INDEX(Table_IntInputs[],MATCH(Table_IntLookups[[#This Row],[Zone'#]],Table_IntInputs[Zone],0),4),Table_BuildingFactors[#Data],7,FALSE),\"\"),0)","v":""},{"$f":"IFERROR(IF(Table_IntLookups[[#This Row],[Zone'#]]<>\"\",VLOOKUP(Table_IntLookups[[#This Row],[Description]],INDIRECT(\"Table_BldgArea_\" & IF(FiscalYear=\"FY24\",2013,2016)),4,FALSE),\"\"),0)","v":""},{"$f":"IF($R10=\"\",\"\",SUMIFS(Table_IntInputs[Total Wattage],Table_IntInputs[Zone],$R10))","v":""}]
[{"$f":"IF(OR(Table_IntInputs[[#This Row],[LPD]]=\"\",Table_IntInputs[[#This Row],[Concatenate(Wndw-Sp Type)]]=\"\"),\"\",IF(AND(ISNUMBER(MATCH(Table_IntInputs[[#This Row],[Concatenate(Wndw-Sp Type)]],$B$5:$B10,0))),IF(A10=\"Zone\",1,INDIRECT(\"A\" & MATCH(Table_IntInputs[[#This Row],[Concatenate(Wndw-Sp Type)]],$B$5:$B10,0)+4)),IF(A10=\"Zone\",1,MAX($A$5:$A10)+1)))","v":""},{"$f":"IF(Table_IntInputs[[#This Row],[Space Type]]=\"Exterior\",\"Exterior\",IF(Table_IntInputs[[#This Row],[Space Type]]=\"\",\"\",IF(AND($E$1=\"Building Area\",ISNUMBER(MATCH(Table_IntInputs[[#This Row],[Space Type]],Table_BldgArea_2016[Building Area Type],0))),Table_IntInputs[[#This Row],[Space Type]],CONCATENATE(IF(Table_IntInputs[[#This Row],[Windows?]]=\"\",\"No\",Table_IntInputs[[#This Row],[Windows?]]),\" - \",Table_IntInputs[[#This Row],[Space Type]]))))","v":""},null,null,null,null,null,null,{"$f":"IFERROR(IF(AND($E$1=\"Space-by-Space\",ISNUMBER(FIND(\"Corridor\",Table_IntInputs[[#This Row],[Space Type]],1))),Table_IntInputs[[#This Row],[Width]],2.5*Table_IntInputs[[#This Row],[Perimeter]]*Table_IntInputs[[#This Row],[Room Cavity Height]]/Table_IntInputs[[#This Row],[Area Sq Ft]]),\"\")","v":""},{"$f":"IFERROR(IF(ASHRAEMethod=\"Space-By-Space\",IF(ISNUMBER(FIND(\"Corridor\",Table_IntInputs[[#This Row],[Space Type]],1)),VLOOKUP(Table_IntInputs[[#This Row],[Space Type]],IF(FiscalYear=\"FY25\",SpaceBySpace_2016[],SpaceBySpace_2016[]),5,FALSE),VLOOKUP(Table_IntInputs[[#This Row],[Space Type]],IF(FiscalYear=\"FY25\",SpaceBySpace_2016[],SpaceBySpace_2016[]),4,FALSE)),\"\"),\"\")","v":""},{"$f":"IFERROR(\n    ROUND(IF(AND(ASHRAEMethod=\"Space-By-Space\",Table_IntInputs[[#This Row],[Space Type]]=\"Atrium, above 40ft\"),0.4+Table_IntInputs[[#This Row],[Room Cavity Height]]*0.02,IF(AND(ASHRAEMethod=\"Space-By-Space\",ISNUMBER(FIND(\"Atrium\",Table_IntInputs[[#This Row],[Space Type]],1))),Table_IntInputs[[#This Row],[Room Cavity Height]]*0.03,VLOOKUP(Table_IntInputs[[#This Row],[Space Type]],IF($E$1=\"Space-By-Space\",IF(FiscalYear=\"FY25\",SpaceBySpace_2016[],SpaceBySpace_2016[]),IF(FiscalYear=\"FY25\",Table_BldgArea_2016[],Table_BldgArea_2016[])),2,FALSE)))  *\n        IF(OR(AND($E$1=\"Space-By-Space\",ISNUMBER(FIND(\"Corridor\",Table_IntInputs[[#This Row],[Space Type]],1)),Table_IntInputs[[#This Row],[RCR]]>=Table_IntInputs[[#This Row],[RCR,W_m]]),\n        AND($E$1=\"Space-By-Space\",NOT(ISNUMBER(FIND(\"Corridor\",Table_IntInputs[[#This Row],[Space Type]],1))),Table_IntInputs[[#This Row],[RCR]]>=Table_IntInputs[[#This Row],[RCR,W_m]],Table_IntInputs[[#This Row],[RCR,W_m]]>0)),1.2,1),2)  *\n        IFERROR(IF(ISNUMBER(MATCH(Table_IntInputs[[#This Row],[Space Type]],Table_AddlControl_2016[Facility Type],0)),1+INDEX(Table_AddlControl_2016[#All],MATCH(Table_IntInputs[[#This Row],[Space Type]],Table_AddlControl_2016[[#All],[Facility Type]],0),MATCH(IF(Table_IntInputs[[#This Row],[Additional Controls?]]=\"\",\"None\",Table_IntInputs[[#This Row],[Additional Controls?]]),Table_AddlControl_2016[#Headers],0)),1),1),\"\")","v":""},{"$f":"IFERROR(VLOOKUP(Table_IntInputs[[#This Row],[Space Type]],IF(ASHRAEMethod=\"Space-By-Space\",IF(FiscalYear=\"FY25\",SpaceBySpace_2016[],SpaceBySpace_2016[]),IF(FiscalYear=\"FY25\",Table_BldgArea_2016[],Table_BldgArea_2016[])),3,FALSE),\"\")","v":""},{"$f":"IFERROR(IF(Table_IntInputs[[#This Row],[Space Type]]=\"Exterior\",'Exterior Information'!$J$3,ROUND(IF(Table_IntInputs[[#This Row],[Units]]=\"W/ft2\",Table_IntInputs[[#This Row],[Area Sq Ft]]*Table_IntInputs[[#This Row],[LPD]],Table_IntInputs[[#This Row],[Area Sq Ft]]*Table_IntInputs[[#This Row],[Room Cavity Height]]*Table_IntInputs[[#This Row],[LPD]]),2)),\"\")","v":""},{"$f":"IFERROR(IF(AND(Table_IntInputs[[#This Row],[Windows?]]=\"No\",VLOOKUP(Table_IntInputs[[#This Row],[Space Type]],IF(FiscalYear=\"FY24\",SpaceBySpace_2016[],SpaceBySpace_2016[]),6,FALSE)=\"Occ + DL\"),\"Occ\",IF(AND(Table_IntInputs[[#This Row],[Windows?]]=\"No\",VLOOKUP(Table_IntInputs[[#This Row],[Space Type]],IF(FiscalYear=\"FY24\",SpaceBySpace_2016[],SpaceBySpace_2016[]),6,FALSE)=\"DL\"),\"\",VLOOKUP(Table_IntInputs[[#This Row],[Space Type]],IF(FiscalYear=\"FY24\",SpaceBySpace_2016[],SpaceBySpace_2016[]),6,FALSE))),\"\")","v":""},null,null,null,{"$f":"IFERROR(IF(R10+1>MAX(Table_IntInputs[Zone]),\"\",R10+1),\"\")","v":""},{"$f":"VLOOKUP(R11,Table_IntInputs[[Zone]:[Concatenate(Wndw-Sp Type)]],2,FALSE)","v":""},"",{"$f":"IFERROR(IF(Table_IntLookups[[#This Row],[Zone'#]]<>\"\",VLOOKUP(INDEX(Table_IntInputs[],MATCH(Table_IntLookups[[#This Row],[Zone'#]],Table_IntInputs[Zone],0),4),Table_BuildingFactors[#Data],2,FALSE),\"\"),0)","v":""},{"$f":"IFERROR(IF(Table_IntLookups[[#This Row],[Zone'#]]<>\"\",VLOOKUP(INDEX(Table_IntInputs[],MATCH(Table_IntLookups[[#This Row],[Zone'#]],Table_IntInputs[Zone],0),4),Table_BuildingFactors[#Data],3,FALSE),\"\"),0)","v":""},{"$f":"IFERROR(IF(Table_IntLookups[[#This Row],[Zone'#]]<>\"\",VLOOKUP(INDEX(Table_IntInputs[],MATCH(Table_IntLookups[[#This Row],[Zone'#]],Table_IntInputs[Zone],0),4),Table_BuildingFactors[#Data],3,FALSE),\"\"),0)","v":""},{"$f":"IFERROR(IF(Table_IntLookups[[#This Row],[Zone'#]]<>\"\",VLOOKUP(INDEX(Table_IntInputs[],MATCH(Table_IntLookups[[#This Row],[Zone'#]],Table_IntInputs[Zone],0),4),Table_BuildingFactors[#Data],5,FALSE),\"\"),0)","v":""},{"$f":"IFERROR(IF(Table_IntLookups[[#This Row],[Zone'#]]<>\"\",VLOOKUP(INDEX(Table_IntInputs[],MATCH(Table_IntLookups[[#This Row],[Zone'#]],Table_IntInputs[Zone],0),4),Table_BuildingFactors[#Data],6,FALSE),\"\"),0)","v":""},{"$f":"IFERROR(IF(Table_IntLookups[[#This Row],[Zone'#]]<>\"\",VLOOKUP(INDEX(Table_IntInputs[],MATCH(Table_IntLookups[[#This Row],[Zone'#]],Table_IntInputs[Zone],0),4),Table_BuildingFactors[#Data],7,FALSE),\"\"),0)","v":""},{"$f":"IFERROR(IF(Table_IntLookups[[#This Row],[Zone'#]]<>\"\",VLOOKUP(Table_IntLookups[[#This Row],[Description]],INDIRECT(\"Table_BldgArea_\" & IF(FiscalYear=\"FY24\",2013,2016)),4,FALSE),\"\"),0)","v":""},{"$f":"IF($R11=\"\",\"\",SUMIFS(Table_IntInputs[Total Wattage],Table_IntInputs[Zone],$R11))","v":""}]
[{"$f":"IF(OR(Table_IntInputs[[#This Row],[LPD]]=\"\",Table_IntInputs[[#This Row],[Concatenate(Wndw-Sp Type)]]=\"\"),\"\",IF(AND(ISNUMBER(MATCH(Table_IntInputs[[#This Row],[Concatenate(Wndw-Sp Type)]],$B$5:$B11,0))),IF(A11=\"Zone\",1,INDIRECT(\"A\" & MATCH(Table_IntInputs[[#This Row],[Concatenate(Wndw-Sp Type)]],$B$5:$B11,0)+4)),IF(A11=\"Zone\",1,MAX($A$5:$A11)+1)))","v":""},{"$f":"IF(Table_IntInputs[[#This Row],[Space Type]]=\"Exterior\",\"Exterior\",IF(Table_IntInputs[[#This Row],[Space Type]]=\"\",\"\",IF(AND($E$1=\"Building Area\",ISNUMBER(MATCH(Table_IntInputs[[#This Row],[Space Type]],Table_BldgArea_2016[Building Area Type],0))),Table_IntInputs[[#This Row],[Space Type]],CONCATENATE(IF(Table_IntInputs[[#This Row],[Windows?]]=\"\",\"No\",Table_IntInputs[[#This Row],[Windows?]]),\" - \",Table_IntInputs[[#This Row],[Space Type]]))))","v":""},null,null,null,null,null,null,{"$f":"IFERROR(IF(AND($E$1=\"Space-by-Space\",ISNUMBER(FIND(\"Corridor\",Table_IntInputs[[#This Row],[Space Type]],1))),Table_IntInputs[[#This Row],[Width]],2.5*Table_IntInputs[[#This Row],[Perimeter]]*Table_IntInputs[[#This Row],[Room Cavity Height]]/Table_IntInputs[[#This Row],[Area Sq Ft]]),\"\")","v":""},{"$f":"IFERROR(IF(ASHRAEMethod=\"Space-By-Space\",IF(ISNUMBER(FIND(\"Corridor\",Table_IntInputs[[#This Row],[Space Type]],1)),VLOOKUP(Table_IntInputs[[#This Row],[Space Type]],IF(FiscalYear=\"FY25\",SpaceBySpace_2016[],SpaceBySpace_2016[]),5,FALSE),VLOOKUP(Table_IntInputs[[#This Row],[Space Type]],IF(FiscalYear=\"FY25\",SpaceBySpace_2016[],SpaceBySpace_2016[]),4,FALSE)),\"\"),\"\")","v":""},{"$f":"IFERROR(\n    ROUND(IF(AND(ASHRAEMethod=\"Space-By-Space\",Table_IntInputs[[#This Row],[Space Type]]=\"Atrium, above 40ft\"),0.4+Table_IntInputs[[#This Row],[Room Cavity Height]]*0.02,IF(AND(ASHRAEMethod=\"Space-By-Space\",ISNUMBER(FIND(\"Atrium\",Table_IntInputs[[#This Row],[Space Type]],1))),Table_IntInputs[[#This Row],[Room Cavity Height]]*0.03,VLOOKUP(Table_IntInputs[[#This Row],[Space Type]],IF($E$1=\"Space-By-Space\",IF(FiscalYear=\"FY25\",SpaceBySpace_2016[],SpaceBySpace_2016[]),IF(FiscalYear=\"FY25\",Table_BldgArea_2016[],Table_BldgArea_2016[])),2,FALSE)))  *\n        IF(OR(AND($E$1=\"Space-By-Space\",ISNUMBER(FIND(\"Corridor\",Table_IntInputs[[#This Row],[Space Type]],1)),Table_IntInputs[[#This Row],[RCR]]>=Table_IntInputs[[#This Row],[RCR,W_m]]),\n        AND($E$1=\"Space-By-Space\",NOT(ISNUMBER(FIND(\"Corridor\",Table_IntInputs[[#This Row],[Space Type]],1))),Table_IntInputs[[#This Row],[RCR]]>=Table_IntInputs[[#This Row],[RCR,W_m]],Table_IntInputs[[#This Row],[RCR,W_m]]>0)),1.2,1),2)  *\n        IFERROR(IF(ISNUMBER(MATCH(Table_IntInputs[[#This Row],[Space Type]],Table_AddlControl_2016[Facility Type],0)),1+INDEX(Table_AddlControl_2016[#All],MATCH(Table_IntInputs[[#This Row],[Space Type]],Table_AddlControl_2016[[#All],[Facility Type]],0),MATCH(IF(Table_IntInputs[[#This Row],[Additional Controls?]]=\"\",\"None\",Table_IntInputs[[#This Row],[Additional Controls?]]),Table_AddlControl_2016[#Headers],0)),1),1),\"\")","v":""},{"$f":"IFERROR(VLOOKUP(Table_IntInputs[[#This Row],[Space Type]],IF(ASHRAEMethod=\"Space-By-Space\",IF(FiscalYear=\"FY25\",SpaceBySpace_2016[],SpaceBySpace_2016[]),IF(FiscalYear=\"FY25\",Table_BldgArea_2016[],Table_BldgArea_2016[])),3,FALSE),\"\")","v":""},{"$f":"IFERROR(IF(Table_IntInputs[[#This Row],[Space Type]]=\"Exterior\",'Exterior Information'!$J$3,ROUND(IF(Table_IntInputs[[#This Row],[Units]]=\"W/ft2\",Table_IntInputs[[#This Row],[Area Sq Ft]]*Table_IntInputs[[#This Row],[LPD]],Table_IntInputs[[#This Row],[Area Sq Ft]]*Table_IntInputs[[#This Row],[Room Cavity Height]]*Table_IntInputs[[#This Row],[LPD]]),2)),\"\")","v":""},{"$f":"IFERROR(IF(AND(Table_IntInputs[[#This Row],[Windows?]]=\"No\",VLOOKUP(Table_IntInputs[[#This Row],[Space Type]],IF(FiscalYear=\"FY24\",SpaceBySpace_2016[],SpaceBySpace_2016[]),6,FALSE)=\"Occ + DL\"),\"Occ\",IF(AND(Table_IntInputs[[#This Row],[Windows?]]=\"No\",VLOOKUP(Table_IntInputs[[#This Row],[Space Type]],IF(FiscalYear=\"FY24\",SpaceBySpace_2016[],SpaceBySpace_2016[]),6,FALSE)=\"DL\"),\"\",VLOOKUP(Table_IntInputs[[#This Row],[Space Type]],IF(FiscalYear=\"FY24\",SpaceBySpace_2016[],SpaceBySpace_2016[]),6,FALSE))),\"\")","v":""},null,null,null,{"$f":"IFERROR(IF(R11+1>MAX(Table_IntInputs[Zone]),\"\",R11+1),\"\")","v":""},{"$f":"VLOOKUP(R12,Table_IntInputs[[Zone]:[Concatenate(Wndw-Sp Type)]],2,FALSE)","v":""},"",{"$f":"IFERROR(IF(Table_IntLookups[[#This Row],[Zone'#]]<>\"\",VLOOKUP(INDEX(Table_IntInputs[],MATCH(Table_IntLookups[[#This Row],[Zone'#]],Table_IntInputs[Zone],0),4),Table_BuildingFactors[#Data],2,FALSE),\"\"),0)","v":""},{"$f":"IFERROR(IF(Table_IntLookups[[#This Row],[Zone'#]]<>\"\",VLOOKUP(INDEX(Table_IntInputs[],MATCH(Table_IntLookups[[#This Row],[Zone'#]],Table_IntInputs[Zone],0),4),Table_BuildingFactors[#Data],3,FALSE),\"\"),0)","v":""},{"$f":"IFERROR(IF(Table_IntLookups[[#This Row],[Zone'#]]<>\"\",VLOOKUP(INDEX(Table_IntInputs[],MATCH(Table_IntLookups[[#This Row],[Zone'#]],Table_IntInputs[Zone],0),4),Table_BuildingFactors[#Data],3,FALSE),\"\"),0)","v":""},{"$f":"IFERROR(IF(Table_IntLookups[[#This Row],[Zone'#]]<>\"\",VLOOKUP(INDEX(Table_IntInputs[],MATCH(Table_IntLookups[[#This Row],[Zone'#]],Table_IntInputs[Zone],0),4),Table_BuildingFactors[#Data],5,FALSE),\"\"),0)","v":""},{"$f":"IFERROR(IF(Table_IntLookups[[#This Row],[Zone'#]]<>\"\",VLOOKUP(INDEX(Table_IntInputs[],MATCH(Table_IntLookups[[#This Row],[Zone'#]],Table_IntInputs[Zone],0),4),Table_BuildingFactors[#Data],6,FALSE),\"\"),0)","v":""},{"$f":"IFERROR(IF(Table_IntLookups[[#This Row],[Zone'#]]<>\"\",VLOOKUP(INDEX(Table_IntInputs[],MATCH(Table_IntLookups[[#This Row],[Zone'#]],Table_IntInputs[Zone],0),4),Table_BuildingFactors[#Data],7,FALSE),\"\"),0)","v":""},{"$f":"IFERROR(IF(Table_IntLookups[[#This Row],[Zone'#]]<>\"\",VLOOKUP(Table_IntLookups[[#This Row],[Description]],INDIRECT(\"Table_BldgArea_\" & IF(FiscalYear=\"FY24\",2013,2016)),4,FALSE),\"\"),0)","v":""},{"$f":"IF($R12=\"\",\"\",SUMIFS(Table_IntInputs[Total Wattage],Table_IntInputs[Zone],$R12))","v":""}]
[{"$f":"IF(OR(Table_IntInputs[[#This Row],[LPD]]=\"\",Table_IntInputs[[#This Row],[Concatenate(Wndw-Sp Type)]]=\"\"),\"\",IF(AND(ISNUMBER(MATCH(Table_IntInputs[[#This Row],[Concatenate(Wndw-Sp Type)]],$B$5:$B12,0))),IF(A12=\"Zone\",1,INDIRECT(\"A\" & MATCH(Table_IntInputs[[#This Row],[Concatenate(Wndw-Sp Type)]],$B$5:$B12,0)+4)),IF(A12=\"Zone\",1,MAX($A$5:$A12)+1)))","v":""},{"$f":"IF(Table_IntInputs[[#This Row],[Space Type]]=\"Exterior\",\"Exterior\",IF(Table_IntInputs[[#This Row],[Space Type]]=\"\",\"\",IF(AND($E$1=\"Building Area\",ISNUMBER(MATCH(Table_IntInputs[[#This Row],[Space Type]],Table_BldgArea_2016[Building Area Type],0))),Table_IntInputs[[#This Row],[Space Type]],CONCATENATE(IF(Table_IntInputs[[#This Row],[Windows?]]=\"\",\"No\",Table_IntInputs[[#This Row],[Windows?]]),\" - \",Table_IntInputs[[#This Row],[Space Type]]))))","v":""},null,null,null,null,null,null,{"$f":"IFERROR(IF(AND($E$1=\"Space-by-Space\",ISNUMBER(FIND(\"Corridor\",Table_IntInputs[[#This Row],[Space Type]],1))),Table_IntInputs[[#This Row],[Width]],2.5*Table_IntInputs[[#This Row],[Perimeter]]*Table_IntInputs[[#This Row],[Room Cavity Height]]/Table_IntInputs[[#This Row],[Area Sq Ft]]),\"\")","v":""},{"$f":"IFERROR(IF(ASHRAEMethod=\"Space-By-Space\",IF(ISNUMBER(FIND(\"Corridor\",Table_IntInputs[[#This Row],[Space Type]],1)),VLOOKUP(Table_IntInputs[[#This Row],[Space Type]],IF(FiscalYear=\"FY25\",SpaceBySpace_2016[],SpaceBySpace_2016[]),5,FALSE),VLOOKUP(Table_IntInputs[[#This Row],[Space Type]],IF(FiscalYear=\"FY25\",SpaceBySpace_2016[],SpaceBySpace_2016[]),4,FALSE)),\"\"),\"\")","v":""},{"$f":"IFERROR(\n    ROUND(IF(AND(ASHRAEMethod=\"Space-By-Space\",Table_IntInputs[[#This Row],[Space Type]]=\"Atrium, above 40ft\"),0.4+Table_IntInputs[[#This Row],[Room Cavity Height]]*0.02,IF(AND(ASHRAEMethod=\"Space-By-Space\",ISNUMBER(FIND(\"Atrium\",Table_IntInputs[[#This Row],[Space Type]],1))),Table_IntInputs[[#This Row],[Room Cavity Height]]*0.03,VLOOKUP(Table_IntInputs[[#This Row],[Space Type]],IF($E$1=\"Space-By-Space\",IF(FiscalYear=\"FY25\",SpaceBySpace_2016[],SpaceBySpace_2016[]),IF(FiscalYear=\"FY25\",Table_BldgArea_2016[],Table_BldgArea_2016[])),2,FALSE)))  *\n        IF(OR(AND($E$1=\"Space-By-Space\",ISNUMBER(FIND(\"Corridor\",Table_IntInputs[[#This Row],[Space Type]],1)),Table_IntInputs[[#This Row],[RCR]]>=Table_IntInputs[[#This Row],[RCR,W_m]]),\n        AND($E$1=\"Space-By-Space\",NOT(ISNUMBER(FIND(\"Corridor\",Table_IntInputs[[#This Row],[Space Type]],1))),Table_IntInputs[[#This Row],[RCR]]>=Table_IntInputs[[#This Row],[RCR,W_m]],Table_IntInputs[[#This Row],[RCR,W_m]]>0)),1.2,1),2)  *\n        IFERROR(IF(ISNUMBER(MATCH(Table_IntInputs[[#This Row],[Space Type]],Table_AddlControl_2016[Facility Type],0)),1+INDEX(Table_AddlControl_2016[#All],MATCH(Table_IntInputs[[#This Row],[Space Type]],Table_AddlControl_2016[[#All],[Facility Type]],0),MATCH(IF(Table_IntInputs[[#This Row],[Additional Controls?]]=\"\",\"None\",Table_IntInputs[[#This Row],[Additional Controls?]]),Table_AddlControl_2016[#Headers],0)),1),1),\"\")","v":""},{"$f":"IFERROR(VLOOKUP(Table_IntInputs[[#This Row],[Space Type]],IF(ASHRAEMethod=\"Space-By-Space\",IF(FiscalYear=\"FY25\",SpaceBySpace_2016[],SpaceBySpace_2016[]),IF(FiscalYear=\"FY25\",Table_BldgArea_2016[],Table_BldgArea_2016[])),3,FALSE),\"\")","v":""},{"$f":"IFERROR(IF(Table_IntInputs[[#This Row],[Space Type]]=\"Exterior\",'Exterior Information'!$J$3,ROUND(IF(Table_IntInputs[[#This Row],[Units]]=\"W/ft2\",Table_IntInputs[[#This Row],[Area Sq Ft]]*Table_IntInputs[[#This Row],[LPD]],Table_IntInputs[[#This Row],[Area Sq Ft]]*Table_IntInputs[[#This Row],[Room Cavity Height]]*Table_IntInputs[[#This Row],[LPD]]),2)),\"\")","v":""},{"$f":"IFERROR(IF(AND(Table_IntInputs[[#This Row],[Windows?]]=\"No\",VLOOKUP(Table_IntInputs[[#This Row],[Space Type]],IF(FiscalYear=\"FY24\",SpaceBySpace_2016[],SpaceBySpace_2016[]),6,FALSE)=\"Occ + DL\"),\"Occ\",IF(AND(Table_IntInputs[[#This Row],[Windows?]]=\"No\",VLOOKUP(Table_IntInputs[[#This Row],[Space Type]],IF(FiscalYear=\"FY24\",SpaceBySpace_2016[],SpaceBySpace_2016[]),6,FALSE)=\"DL\"),\"\",VLOOKUP(Table_IntInputs[[#This Row],[Space Type]],IF(FiscalYear=\"FY24\",SpaceBySpace_2016[],SpaceBySpace_2016[]),6,FALSE))),\"\")","v":""},null,null,null,{"$f":"IFERROR(IF(R12+1>MAX(Table_IntInputs[Zone]),\"\",R12+1),\"\")","v":""},{"$f":"VLOOKUP(R13,Table_IntInputs[[Zone]:[Concatenate(Wndw-Sp Type)]],2,FALSE)","v":""},"",{"$f":"IFERROR(IF(Table_IntLookups[[#This Row],[Zone'#]]<>\"\",VLOOKUP(INDEX(Table_IntInputs[],MATCH(Table_IntLookups[[#This Row],[Zone'#]],Table_IntInputs[Zone],0),4),Table_BuildingFactors[#Data],2,FALSE),\"\"),0)","v":""},{"$f":"IFERROR(IF(Table_IntLookups[[#This Row],[Zone'#]]<>\"\",VLOOKUP(INDEX(Table_IntInputs[],MATCH(Table_IntLookups[[#This Row],[Zone'#]],Table_IntInputs[Zone],0),4),Table_BuildingFactors[#Data],3,FALSE),\"\"),0)","v":""},{"$f":"IFERROR(IF(Table_IntLookups[[#This Row],[Zone'#]]<>\"\",VLOOKUP(INDEX(Table_IntInputs[],MATCH(Table_IntLookups[[#This Row],[Zone'#]],Table_IntInputs[Zone],0),4),Table_BuildingFactors[#Data],3,FALSE),\"\"),0)","v":""},{"$f":"IFERROR(IF(Table_IntLookups[[#This Row],[Zone'#]]<>\"\",VLOOKUP(INDEX(Table_IntInputs[],MATCH(Table_IntLookups[[#This Row],[Zone'#]],Table_IntInputs[Zone],0),4),Table_BuildingFactors[#Data],5,FALSE),\"\"),0)","v":""},{"$f":"IFERROR(IF(Table_IntLookups[[#This Row],[Zone'#]]<>\"\",VLOOKUP(INDEX(Table_IntInputs[],MATCH(Table_IntLookups[[#This Row],[Zone'#]],Table_IntInputs[Zone],0),4),Table_BuildingFactors[#Data],6,FALSE),\"\"),0)","v":""},{"$f":"IFERROR(IF(Table_IntLookups[[#This Row],[Zone'#]]<>\"\",VLOOKUP(INDEX(Table_IntInputs[],MATCH(Table_IntLookups[[#This Row],[Zone'#]],Table_IntInputs[Zone],0),4),Table_BuildingFactors[#Data],7,FALSE),\"\"),0)","v":""},{"$f":"IFERROR(IF(Table_IntLookups[[#This Row],[Zone'#]]<>\"\",VLOOKUP(Table_IntLookups[[#This Row],[Description]],INDIRECT(\"Table_BldgArea_\" & IF(FiscalYear=\"FY24\",2013,2016)),4,FALSE),\"\"),0)","v":""},{"$f":"IF($R13=\"\",\"\",SUMIFS(Table_IntInputs[Total Wattage],Table_IntInputs[Zone],$R13))","v":""}]
[{"$f":"IF(OR(Table_IntInputs[[#This Row],[LPD]]=\"\",Table_IntInputs[[#This Row],[Concatenate(Wndw-Sp Type)]]=\"\"),\"\",IF(AND(ISNUMBER(MATCH(Table_IntInputs[[#This Row],[Concatenate(Wndw-Sp Type)]],$B$5:$B13,0))),IF(A13=\"Zone\",1,INDIRECT(\"A\" & MATCH(Table_IntInputs[[#This Row],[Concatenate(Wndw-Sp Type)]],$B$5:$B13,0)+4)),IF(A13=\"Zone\",1,MAX($A$5:$A13)+1)))","v":""},{"$f":"IF(Table_IntInputs[[#This Row],[Space Type]]=\"Exterior\",\"Exterior\",IF(Table_IntInputs[[#This Row],[Space Type]]=\"\",\"\",IF(AND($E$1=\"Building Area\",ISNUMBER(MATCH(Table_IntInputs[[#This Row],[Space Type]],Table_BldgArea_2016[Building Area Type],0))),Table_IntInputs[[#This Row],[Space Type]],CONCATENATE(IF(Table_IntInputs[[#This Row],[Windows?]]=\"\",\"No\",Table_IntInputs[[#This Row],[Windows?]]),\" - \",Table_IntInputs[[#This Row],[Space Type]]))))","v":""},null,null,null,null,null,null,{"$f":"IFERROR(IF(AND($E$1=\"Space-by-Space\",ISNUMBER(FIND(\"Corridor\",Table_IntInputs[[#This Row],[Space Type]],1))),Table_IntInputs[[#This Row],[Width]],2.5*Table_IntInputs[[#This Row],[Perimeter]]*Table_IntInputs[[#This Row],[Room Cavity Height]]/Table_IntInputs[[#This Row],[Area Sq Ft]]),\"\")","v":""},{"$f":"IFERROR(IF(ASHRAEMethod=\"Space-By-Space\",IF(ISNUMBER(FIND(\"Corridor\",Table_IntInputs[[#This Row],[Space Type]],1)),VLOOKUP(Table_IntInputs[[#This Row],[Space Type]],IF(FiscalYear=\"FY25\",SpaceBySpace_2016[],SpaceBySpace_2016[]),5,FALSE),VLOOKUP(Table_IntInputs[[#This Row],[Space Type]],IF(FiscalYear=\"FY25\",SpaceBySpace_2016[],SpaceBySpace_2016[]),4,FALSE)),\"\"),\"\")","v":""},{"$f":"IFERROR(\n    ROUND(IF(AND(ASHRAEMethod=\"Space-By-Space\",Table_IntInputs[[#This Row],[Space Type]]=\"Atrium, above 40ft\"),0.4+Table_IntInputs[[#This Row],[Room Cavity Height]]*0.02,IF(AND(ASHRAEMethod=\"Space-By-Space\",ISNUMBER(FIND(\"Atrium\",Table_IntInputs[[#This Row],[Space Type]],1))),Table_IntInputs[[#This Row],[Room Cavity Height]]*0.03,VLOOKUP(Table_IntInputs[[#This Row],[Space Type]],IF($E$1=\"Space-By-Space\",IF(FiscalYear=\"FY25\",SpaceBySpace_2016[],SpaceBySpace_2016[]),IF(FiscalYear=\"FY25\",Table_BldgArea_2016[],Table_BldgArea_2016[])),2,FALSE)))  *\n        IF(OR(AND($E$1=\"Space-By-Space\",ISNUMBER(FIND(\"Corridor\",Table_IntInputs[[#This Row],[Space Type]],1)),Table_IntInputs[[#This Row],[RCR]]>=Table_IntInputs[[#This Row],[RCR,W_m]]),\n        AND($E$1=\"Space-By-Space\",NOT(ISNUMBER(FIND(\"Corridor\",Table_IntInputs[[#This Row],[Space Type]],1))),Table_IntInputs[[#This Row],[RCR]]>=Table_IntInputs[[#This Row],[RCR,W_m]],Table_IntInputs[[#This Row],[RCR,W_m]]>0)),1.2,1),2)  *\n        IFERROR(IF(ISNUMBER(MATCH(Table_IntInputs[[#This Row],[Space Type]],Table_AddlControl_2016[Facility Type],0)),1+INDEX(Table_AddlControl_2016[#All],MATCH(Table_IntInputs[[#This Row],[Space Type]],Table_AddlControl_2016[[#All],[Facility Type]],0),MATCH(IF(Table_IntInputs[[#This Row],[Additional Controls?]]=\"\",\"None\",Table_IntInputs[[#This Row],[Additional Controls?]]),Table_AddlControl_2016[#Headers],0)),1),1),\"\")","v":""},{"$f":"IFERROR(VLOOKUP(Table_IntInputs[[#This Row],[Space Type]],IF(ASHRAEMethod=\"Space-By-Space\",IF(FiscalYear=\"FY25\",SpaceBySpace_2016[],SpaceBySpace_2016[]),IF(FiscalYear=\"FY25\",Table_BldgArea_2016[],Table_BldgArea_2016[])),3,FALSE),\"\")","v":""},{"$f":"IFERROR(IF(Table_IntInputs[[#This Row],[Space Type]]=\"Exterior\",'Exterior Information'!$J$3,ROUND(IF(Table_IntInputs[[#This Row],[Units]]=\"W/ft2\",Table_IntInputs[[#This Row],[Area Sq Ft]]*Table_IntInputs[[#This Row],[LPD]],Table_IntInputs[[#This Row],[Area Sq Ft]]*Table_IntInputs[[#This Row],[Room Cavity Height]]*Table_IntInputs[[#This Row],[LPD]]),2)),\"\")","v":""},{"$f":"IFERROR(IF(AND(Table_IntInputs[[#This Row],[Windows?]]=\"No\",VLOOKUP(Table_IntInputs[[#This Row],[Space Type]],IF(FiscalYear=\"FY24\",SpaceBySpace_2016[],SpaceBySpace_2016[]),6,FALSE)=\"Occ + DL\"),\"Occ\",IF(AND(Table_IntInputs[[#This Row],[Windows?]]=\"No\",VLOOKUP(Table_IntInputs[[#This Row],[Space Type]],IF(FiscalYear=\"FY24\",SpaceBySpace_2016[],SpaceBySpace_2016[]),6,FALSE)=\"DL\"),\"\",VLOOKUP(Table_IntInputs[[#This Row],[Space Type]],IF(FiscalYear=\"FY24\",SpaceBySpace_2016[],SpaceBySpace_2016[]),6,FALSE))),\"\")","v":""},null,null,null,{"$f":"IFERROR(IF(R13+1>MAX(Table_IntInputs[Zone]),\"\",R13+1),\"\")","v":""},{"$f":"VLOOKUP(R14,Table_IntInputs[[Zone]:[Concatenate(Wndw-Sp Type)]],2,FALSE)","v":""},"",{"$f":"IFERROR(IF(Table_IntLookups[[#This Row],[Zone'#]]<>\"\",VLOOKUP(INDEX(Table_IntInputs[],MATCH(Table_IntLookups[[#This Row],[Zone'#]],Table_IntInputs[Zone],0),4),Table_BuildingFactors[#Data],2,FALSE),\"\"),0)","v":""},{"$f":"IFERROR(IF(Table_IntLookups[[#This Row],[Zone'#]]<>\"\",VLOOKUP(INDEX(Table_IntInputs[],MATCH(Table_IntLookups[[#This Row],[Zone'#]],Table_IntInputs[Zone],0),4),Table_BuildingFactors[#Data],3,FALSE),\"\"),0)","v":""},{"$f":"IFERROR(IF(Table_IntLookups[[#This Row],[Zone'#]]<>\"\",VLOOKUP(INDEX(Table_IntInputs[],MATCH(Table_IntLookups[[#This Row],[Zone'#]],Table_IntInputs[Zone],0),4),Table_BuildingFactors[#Data],3,FALSE),\"\"),0)","v":""},{"$f":"IFERROR(IF(Table_IntLookups[[#This Row],[Zone'#]]<>\"\",VLOOKUP(INDEX(Table_IntInputs[],MATCH(Table_IntLookups[[#This Row],[Zone'#]],Table_IntInputs[Zone],0),4),Table_BuildingFactors[#Data],5,FALSE),\"\"),0)","v":""},{"$f":"IFERROR(IF(Table_IntLookups[[#This Row],[Zone'#]]<>\"\",VLOOKUP(INDEX(Table_IntInputs[],MATCH(Table_IntLookups[[#This Row],[Zone'#]],Table_IntInputs[Zone],0),4),Table_BuildingFactors[#Data],6,FALSE),\"\"),0)","v":""},{"$f":"IFERROR(IF(Table_IntLookups[[#This Row],[Zone'#]]<>\"\",VLOOKUP(INDEX(Table_IntInputs[],MATCH(Table_IntLookups[[#This Row],[Zone'#]],Table_IntInputs[Zone],0),4),Table_BuildingFactors[#Data],7,FALSE),\"\"),0)","v":""},{"$f":"IFERROR(IF(Table_IntLookups[[#This Row],[Zone'#]]<>\"\",VLOOKUP(Table_IntLookups[[#This Row],[Description]],INDIRECT(\"Table_BldgArea_\" & IF(FiscalYear=\"FY24\",2013,2016)),4,FALSE),\"\"),0)","v":""},{"$f":"IF($R14=\"\",\"\",SUMIFS(Table_IntInputs[Total Wattage],Table_IntInputs[Zone],$R14))","v":""}]
[{"$f":"IF(OR(Table_IntInputs[[#This Row],[LPD]]=\"\",Table_IntInputs[[#This Row],[Concatenate(Wndw-Sp Type)]]=\"\"),\"\",IF(AND(ISNUMBER(MATCH(Table_IntInputs[[#This Row],[Concatenate(Wndw-Sp Type)]],$B$5:$B14,0))),IF(A14=\"Zone\",1,INDIRECT(\"A\" & MATCH(Table_IntInputs[[#This Row],[Concatenate(Wndw-Sp Type)]],$B$5:$B14,0)+4)),IF(A14=\"Zone\",1,MAX($A$5:$A14)+1)))","v":""},{"$f":"IF(Table_IntInputs[[#This Row],[Space Type]]=\"Exterior\",\"Exterior\",IF(Table_IntInputs[[#This Row],[Space Type]]=\"\",\"\",IF(AND($E$1=\"Building Area\",ISNUMBER(MATCH(Table_IntInputs[[#This Row],[Space Type]],Table_BldgArea_2016[Building Area Type],0))),Table_IntInputs[[#This Row],[Space Type]],CONCATENATE(IF(Table_IntInputs[[#This Row],[Windows?]]=\"\",\"No\",Table_IntInputs[[#This Row],[Windows?]]),\" - \",Table_IntInputs[[#This Row],[Space Type]]))))","v":""},null,null,null,null,null,null,{"$f":"IFERROR(IF(AND($E$1=\"Space-by-Space\",ISNUMBER(FIND(\"Corridor\",Table_IntInputs[[#This Row],[Space Type]],1))),Table_IntInputs[[#This Row],[Width]],2.5*Table_IntInputs[[#This Row],[Perimeter]]*Table_IntInputs[[#This Row],[Room Cavity Height]]/Table_IntInputs[[#This Row],[Area Sq Ft]]),\"\")","v":""},{"$f":"IFERROR(IF(ASHRAEMethod=\"Space-By-Space\",IF(ISNUMBER(FIND(\"Corridor\",Table_IntInputs[[#This Row],[Space Type]],1)),VLOOKUP(Table_IntInputs[[#This Row],[Space Type]],IF(FiscalYear=\"FY25\",SpaceBySpace_2016[],SpaceBySpace_2016[]),5,FALSE),VLOOKUP(Table_IntInputs[[#This Row],[Space Type]],IF(FiscalYear=\"FY25\",SpaceBySpace_2016[],SpaceBySpace_2016[]),4,FALSE)),\"\"),\"\")","v":""},{"$f":"IFERROR(\n    ROUND(IF(AND(ASHRAEMethod=\"Space-By-Space\",Table_IntInputs[[#This Row],[Space Type]]=\"Atrium, above 40ft\"),0.4+Table_IntInputs[[#This Row],[Room Cavity Height]]*0.02,IF(AND(ASHRAEMethod=\"Space-By-Space\",ISNUMBER(FIND(\"Atrium\",Table_IntInputs[[#This Row],[Space Type]],1))),Table_IntInputs[[#This Row],[Room Cavity Height]]*0.03,VLOOKUP(Table_IntInputs[[#This Row],[Space Type]],IF($E$1=\"Space-By-Space\",IF(FiscalYear=\"FY25\",SpaceBySpace_2016[],SpaceBySpace_2016[]),IF(FiscalYear=\"FY25\",Table_BldgArea_2016[],Table_BldgArea_2016[])),2,FALSE)))  *\n        IF(OR(AND($E$1=\"Space-By-Space\",ISNUMBER(FIND(\"Corridor\",Table_IntInputs[[#This Row],[Space Type]],1)),Table_IntInputs[[#This Row],[RCR]]>=Table_IntInputs[[#This Row],[RCR,W_m]]),\n        AND($E$1=\"Space-By-Space\",NOT(ISNUMBER(FIND(\"Corridor\",Table_IntInputs[[#This Row],[Space Type]],1))),Table_IntInputs[[#This Row],[RCR]]>=Table_IntInputs[[#This Row],[RCR,W_m]],Table_IntInputs[[#This Row],[RCR,W_m]]>0)),1.2,1),2)  *\n        IFERROR(IF(ISNUMBER(MATCH(Table_IntInputs[[#This Row],[Space Type]],Table_AddlControl_2016[Facility Type],0)),1+INDEX(Table_AddlControl_2016[#All],MATCH(Table_IntInputs[[#This Row],[Space Type]],Table_AddlControl_2016[[#All],[Facility Type]],0),MATCH(IF(Table_IntInputs[[#This Row],[Additional Controls?]]=\"\",\"None\",Table_IntInputs[[#This Row],[Additional Controls?]]),Table_AddlControl_2016[#Headers],0)),1),1),\"\")","v":""},{"$f":"IFERROR(VLOOKUP(Table_IntInputs[[#This Row],[Space Type]],IF(ASHRAEMethod=\"Space-By-Space\",IF(FiscalYear=\"FY25\",SpaceBySpace_2016[],SpaceBySpace_2016[]),IF(FiscalYear=\"FY25\",Table_BldgArea_2016[],Table_BldgArea_2016[])),3,FALSE),\"\")","v":""},{"$f":"IFERROR(IF(Table_IntInputs[[#This Row],[Space Type]]=\"Exterior\",'Exterior Information'!$J$3,ROUND(IF(Table_IntInputs[[#This Row],[Units]]=\"W/ft2\",Table_IntInputs[[#This Row],[Area Sq Ft]]*Table_IntInputs[[#This Row],[LPD]],Table_IntInputs[[#This Row],[Area Sq Ft]]*Table_IntInputs[[#This Row],[Room Cavity Height]]*Table_IntInputs[[#This Row],[LPD]]),2)),\"\")","v":""},{"$f":"IFERROR(IF(AND(Table_IntInputs[[#This Row],[Windows?]]=\"No\",VLOOKUP(Table_IntInputs[[#This Row],[Space Type]],IF(FiscalYear=\"FY24\",SpaceBySpace_2016[],SpaceBySpace_2016[]),6,FALSE)=\"Occ + DL\"),\"Occ\",IF(AND(Table_IntInputs[[#This Row],[Windows?]]=\"No\",VLOOKUP(Table_IntInputs[[#This Row],[Space Type]],IF(FiscalYear=\"FY24\",SpaceBySpace_2016[],SpaceBySpace_2016[]),6,FALSE)=\"DL\"),\"\",VLOOKUP(Table_IntInputs[[#This Row],[Space Type]],IF(FiscalYear=\"FY24\",SpaceBySpace_2016[],SpaceBySpace_2016[]),6,FALSE))),\"\")","v":""},null,null,null,{"$f":"IFERROR(IF(R14+1>MAX(Table_IntInputs[Zone]),\"\",R14+1),\"\")","v":""},{"$f":"VLOOKUP(R15,Table_IntInputs[[Zone]:[Concatenate(Wndw-Sp Type)]],2,FALSE)","v":""},"",{"$f":"IFERROR(IF(Table_IntLookups[[#This Row],[Zone'#]]<>\"\",VLOOKUP(INDEX(Table_IntInputs[],MATCH(Table_IntLookups[[#This Row],[Zone'#]],Table_IntInputs[Zone],0),4),Table_BuildingFactors[#Data],2,FALSE),\"\"),0)","v":""},{"$f":"IFERROR(IF(Table_IntLookups[[#This Row],[Zone'#]]<>\"\",VLOOKUP(INDEX(Table_IntInputs[],MATCH(Table_IntLookups[[#This Row],[Zone'#]],Table_IntInputs[Zone],0),4),Table_BuildingFactors[#Data],3,FALSE),\"\"),0)","v":""},{"$f":"IFERROR(IF(Table_IntLookups[[#This Row],[Zone'#]]<>\"\",VLOOKUP(INDEX(Table_IntInputs[],MATCH(Table_IntLookups[[#This Row],[Zone'#]],Table_IntInputs[Zone],0),4),Table_BuildingFactors[#Data],3,FALSE),\"\"),0)","v":""},{"$f":"IFERROR(IF(Table_IntLookups[[#This Row],[Zone'#]]<>\"\",VLOOKUP(INDEX(Table_IntInputs[],MATCH(Table_IntLookups[[#This Row],[Zone'#]],Table_IntInputs[Zone],0),4),Table_BuildingFactors[#Data],5,FALSE),\"\"),0)","v":""},{"$f":"IFERROR(IF(Table_IntLookups[[#This Row],[Zone'#]]<>\"\",VLOOKUP(INDEX(Table_IntInputs[],MATCH(Table_IntLookups[[#This Row],[Zone'#]],Table_IntInputs[Zone],0),4),Table_BuildingFactors[#Data],6,FALSE),\"\"),0)","v":""},{"$f":"IFERROR(IF(Table_IntLookups[[#This Row],[Zone'#]]<>\"\",VLOOKUP(INDEX(Table_IntInputs[],MATCH(Table_IntLookups[[#This Row],[Zone'#]],Table_IntInputs[Zone],0),4),Table_BuildingFactors[#Data],7,FALSE),\"\"),0)","v":""},{"$f":"IFERROR(IF(Table_IntLookups[[#This Row],[Zone'#]]<>\"\",VLOOKUP(Table_IntLookups[[#This Row],[Description]],INDIRECT(\"Table_BldgArea_\" & IF(FiscalYear=\"FY24\",2013,2016)),4,FALSE),\"\"),0)","v":""},{"$f":"IF($R15=\"\",\"\",SUMIFS(Table_IntInputs[Total Wattage],Table_IntInputs[Zone],$R15))","v":""}]
[{"$f":"IF(OR(Table_IntInputs[[#This Row],[LPD]]=\"\",Table_IntInputs[[#This Row],[Concatenate(Wndw-Sp Type)]]=\"\"),\"\",IF(AND(ISNUMBER(MATCH(Table_IntInputs[[#This Row],[Concatenate(Wndw-Sp Type)]],$B$5:$B15,0))),IF(A15=\"Zone\",1,INDIRECT(\"A\" & MATCH(Table_IntInputs[[#This Row],[Concatenate(Wndw-Sp Type)]],$B$5:$B15,0)+4)),IF(A15=\"Zone\",1,MAX($A$5:$A15)+1)))","v":""},{"$f":"IF(Table_IntInputs[[#This Row],[Space Type]]=\"Exterior\",\"Exterior\",IF(Table_IntInputs[[#This Row],[Space Type]]=\"\",\"\",IF(AND($E$1=\"Building Area\",ISNUMBER(MATCH(Table_IntInputs[[#This Row],[Space Type]],Table_BldgArea_2016[Building Area Type],0))),Table_IntInputs[[#This Row],[Space Type]],CONCATENATE(IF(Table_IntInputs[[#This Row],[Windows?]]=\"\",\"No\",Table_IntInputs[[#This Row],[Windows?]]),\" - \",Table_IntInputs[[#This Row],[Space Type]]))))","v":""},null,null,null,null,null,null,{"$f":"IFERROR(IF(AND($E$1=\"Space-by-Space\",ISNUMBER(FIND(\"Corridor\",Table_IntInputs[[#This Row],[Space Type]],1))),Table_IntInputs[[#This Row],[Width]],2.5*Table_IntInputs[[#This Row],[Perimeter]]*Table_IntInputs[[#This Row],[Room Cavity Height]]/Table_IntInputs[[#This Row],[Area Sq Ft]]),\"\")","v":""},{"$f":"IFERROR(IF(ASHRAEMethod=\"Space-By-Space\",IF(ISNUMBER(FIND(\"Corridor\",Table_IntInputs[[#This Row],[Space Type]],1)),VLOOKUP(Table_IntInputs[[#This Row],[Space Type]],IF(FiscalYear=\"FY25\",SpaceBySpace_2016[],SpaceBySpace_2016[]),5,FALSE),VLOOKUP(Table_IntInputs[[#This Row],[Space Type]],IF(FiscalYear=\"FY25\",SpaceBySpace_2016[],SpaceBySpace_2016[]),4,FALSE)),\"\"),\"\")","v":""},{"$f":"IFERROR(\n    ROUND(IF(AND(ASHRAEMethod=\"Space-By-Space\",Table_IntInputs[[#This Row],[Space Type]]=\"Atrium, above 40ft\"),0.4+Table_IntInputs[[#This Row],[Room Cavity Height]]*0.02,IF(AND(ASHRAEMethod=\"Space-By-Space\",ISNUMBER(FIND(\"Atrium\",Table_IntInputs[[#This Row],[Space Type]],1))),Table_IntInputs[[#This Row],[Room Cavity Height]]*0.03,VLOOKUP(Table_IntInputs[[#This Row],[Space Type]],IF($E$1=\"Space-By-Space\",IF(FiscalYear=\"FY25\",SpaceBySpace_2016[],SpaceBySpace_2016[]),IF(FiscalYear=\"FY25\",Table_BldgArea_2016[],Table_BldgArea_2016[])),2,FALSE)))  *\n        IF(OR(AND($E$1=\"Space-By-Space\",ISNUMBER(FIND(\"Corridor\",Table_IntInputs[[#This Row],[Space Type]],1)),Table_IntInputs[[#This Row],[RCR]]>=Table_IntInputs[[#This Row],[RCR,W_m]]),\n        AND($E$1=\"Space-By-Space\",NOT(ISNUMBER(FIND(\"Corridor\",Table_IntInputs[[#This Row],[Space Type]],1))),Table_IntInputs[[#This Row],[RCR]]>=Table_IntInputs[[#This Row],[RCR,W_m]],Table_IntInputs[[#This Row],[RCR,W_m]]>0)),1.2,1),2)  *\n        IFERROR(IF(ISNUMBER(MATCH(Table_IntInputs[[#This Row],[Space Type]],Table_AddlControl_2016[Facility Type],0)),1+INDEX(Table_AddlControl_2016[#All],MATCH(Table_IntInputs[[#This Row],[Space Type]],Table_AddlControl_2016[[#All],[Facility Type]],0),MATCH(IF(Table_IntInputs[[#This Row],[Additional Controls?]]=\"\",\"None\",Table_IntInputs[[#This Row],[Additional Controls?]]),Table_AddlControl_2016[#Headers],0)),1),1),\"\")","v":""},{"$f":"IFERROR(VLOOKUP(Table_IntInputs[[#This Row],[Space Type]],IF(ASHRAEMethod=\"Space-By-Space\",IF(FiscalYear=\"FY25\",SpaceBySpace_2016[],SpaceBySpace_2016[]),IF(FiscalYear=\"FY25\",Table_BldgArea_2016[],Table_BldgArea_2016[])),3,FALSE),\"\")","v":""},{"$f":"IFERROR(IF(Table_IntInputs[[#This Row],[Space Type]]=\"Exterior\",'Exterior Information'!$J$3,ROUND(IF(Table_IntInputs[[#This Row],[Units]]=\"W/ft2\",Table_IntInputs[[#This Row],[Area Sq Ft]]*Table_IntInputs[[#This Row],[LPD]],Table_IntInputs[[#This Row],[Area Sq Ft]]*Table_IntInputs[[#This Row],[Room Cavity Height]]*Table_IntInputs[[#This Row],[LPD]]),2)),\"\")","v":""},{"$f":"IFERROR(IF(AND(Table_IntInputs[[#This Row],[Windows?]]=\"No\",VLOOKUP(Table_IntInputs[[#This Row],[Space Type]],IF(FiscalYear=\"FY24\",SpaceBySpace_2016[],SpaceBySpace_2016[]),6,FALSE)=\"Occ + DL\"),\"Occ\",IF(AND(Table_IntInputs[[#This Row],[Windows?]]=\"No\",VLOOKUP(Table_IntInputs[[#This Row],[Space Type]],IF(FiscalYear=\"FY24\",SpaceBySpace_2016[],SpaceBySpace_2016[]),6,FALSE)=\"DL\"),\"\",VLOOKUP(Table_IntInputs[[#This Row],[Space Type]],IF(FiscalYear=\"FY24\",SpaceBySpace_2016[],SpaceBySpace_2016[]),6,FALSE))),\"\")","v":""},null,null,null,{"$f":"IFERROR(IF(R15+1>MAX(Table_IntInputs[Zone]),\"\",R15+1),\"\")","v":""},{"$f":"VLOOKUP(R16,Table_IntInputs[[Zone]:[Concatenate(Wndw-Sp Type)]],2,FALSE)","v":""},"",{"$f":"IFERROR(IF(Table_IntLookups[[#This Row],[Zone'#]]<>\"\",VLOOKUP(INDEX(Table_IntInputs[],MATCH(Table_IntLookups[[#This Row],[Zone'#]],Table_IntInputs[Zone],0),4),Table_BuildingFactors[#Data],2,FALSE),\"\"),0)","v":""},{"$f":"IFERROR(IF(Table_IntLookups[[#This Row],[Zone'#]]<>\"\",VLOOKUP(INDEX(Table_IntInputs[],MATCH(Table_IntLookups[[#This Row],[Zone'#]],Table_IntInputs[Zone],0),4),Table_BuildingFactors[#Data],3,FALSE),\"\"),0)","v":""},{"$f":"IFERROR(IF(Table_IntLookups[[#This Row],[Zone'#]]<>\"\",VLOOKUP(INDEX(Table_IntInputs[],MATCH(Table_IntLookups[[#This Row],[Zone'#]],Table_IntInputs[Zone],0),4),Table_BuildingFactors[#Data],3,FALSE),\"\"),0)","v":""},{"$f":"IFERROR(IF(Table_IntLookups[[#This Row],[Zone'#]]<>\"\",VLOOKUP(INDEX(Table_IntInputs[],MATCH(Table_IntLookups[[#This Row],[Zone'#]],Table_IntInputs[Zone],0),4),Table_BuildingFactors[#Data],5,FALSE),\"\"),0)","v":""},{"$f":"IFERROR(IF(Table_IntLookups[[#This Row],[Zone'#]]<>\"\",VLOOKUP(INDEX(Table_IntInputs[],MATCH(Table_IntLookups[[#This Row],[Zone'#]],Table_IntInputs[Zone],0),4),Table_BuildingFactors[#Data],6,FALSE),\"\"),0)","v":""},{"$f":"IFERROR(IF(Table_IntLookups[[#This Row],[Zone'#]]<>\"\",VLOOKUP(INDEX(Table_IntInputs[],MATCH(Table_IntLookups[[#This Row],[Zone'#]],Table_IntInputs[Zone],0),4),Table_BuildingFactors[#Data],7,FALSE),\"\"),0)","v":""},{"$f":"IFERROR(IF(Table_IntLookups[[#This Row],[Zone'#]]<>\"\",VLOOKUP(Table_IntLookups[[#This Row],[Description]],INDIRECT(\"Table_BldgArea_\" & IF(FiscalYear=\"FY24\",2013,2016)),4,FALSE),\"\"),0)","v":""},{"$f":"IF($R16=\"\",\"\",SUMIFS(Table_IntInputs[Total Wattage],Table_IntInputs[Zone],$R16))","v":""}]
[{"$f":"IF(OR(Table_IntInputs[[#This Row],[LPD]]=\"\",Table_IntInputs[[#This Row],[Concatenate(Wndw-Sp Type)]]=\"\"),\"\",IF(AND(ISNUMBER(MATCH(Table_IntInputs[[#This Row],[Concatenate(Wndw-Sp Type)]],$B$5:$B16,0))),IF(A16=\"Zone\",1,INDIRECT(\"A\" & MATCH(Table_IntInputs[[#This Row],[Concatenate(Wndw-Sp Type)]],$B$5:$B16,0)+4)),IF(A16=\"Zone\",1,MAX($A$5:$A16)+1)))","v":""},{"$f":"IF(Table_IntInputs[[#This Row],[Space Type]]=\"Exterior\",\"Exterior\",IF(Table_IntInputs[[#This Row],[Space Type]]=\"\",\"\",IF(AND($E$1=\"Building Area\",ISNUMBER(MATCH(Table_IntInputs[[#This Row],[Space Type]],Table_BldgArea_2016[Building Area Type],0))),Table_IntInputs[[#This Row],[Space Type]],CONCATENATE(IF(Table_IntInputs[[#This Row],[Windows?]]=\"\",\"No\",Table_IntInputs[[#This Row],[Windows?]]),\" - \",Table_IntInputs[[#This Row],[Space Type]]))))","v":""},null,null,null,null,null,null,{"$f":"IFERROR(IF(AND($E$1=\"Space-by-Space\",ISNUMBER(FIND(\"Corridor\",Table_IntInputs[[#This Row],[Space Type]],1))),Table_IntInputs[[#This Row],[Width]],2.5*Table_IntInputs[[#This Row],[Perimeter]]*Table_IntInputs[[#This Row],[Room Cavity Height]]/Table_IntInputs[[#This Row],[Area Sq Ft]]),\"\")","v":""},{"$f":"IFERROR(IF(ASHRAEMethod=\"Space-By-Space\",IF(ISNUMBER(FIND(\"Corridor\",Table_IntInputs[[#This Row],[Space Type]],1)),VLOOKUP(Table_IntInputs[[#This Row],[Space Type]],IF(FiscalYear=\"FY25\",SpaceBySpace_2016[],SpaceBySpace_2016[]),5,FALSE),VLOOKUP(Table_IntInputs[[#This Row],[Space Type]],IF(FiscalYear=\"FY25\",SpaceBySpace_2016[],SpaceBySpace_2016[]),4,FALSE)),\"\"),\"\")","v":""},{"$f":"IFERROR(\n    ROUND(IF(AND(ASHRAEMethod=\"Space-By-Space\",Table_IntInputs[[#This Row],[Space Type]]=\"Atrium, above 40ft\"),0.4+Table_IntInputs[[#This Row],[Room Cavity Height]]*0.02,IF(AND(ASHRAEMethod=\"Space-By-Space\",ISNUMBER(FIND(\"Atrium\",Table_IntInputs[[#This Row],[Space Type]],1))),Table_IntInputs[[#This Row],[Room Cavity Height]]*0.03,VLOOKUP(Table_IntInputs[[#This Row],[Space Type]],IF($E$1=\"Space-By-Space\",IF(FiscalYear=\"FY25\",SpaceBySpace_2016[],SpaceBySpace_2016[]),IF(FiscalYear=\"FY25\",Table_BldgArea_2016[],Table_BldgArea_2016[])),2,FALSE)))  *\n        IF(OR(AND($E$1=\"Space-By-Space\",ISNUMBER(FIND(\"Corridor\",Table_IntInputs[[#This Row],[Space Type]],1)),Table_IntInputs[[#This Row],[RCR]]>=Table_IntInputs[[#This Row],[RCR,W_m]]),\n        AND($E$1=\"Space-By-Space\",NOT(ISNUMBER(FIND(\"Corridor\",Table_IntInputs[[#This Row],[Space Type]],1))),Table_IntInputs[[#This Row],[RCR]]>=Table_IntInputs[[#This Row],[RCR,W_m]],Table_IntInputs[[#This Row],[RCR,W_m]]>0)),1.2,1),2)  *\n        IFERROR(IF(ISNUMBER(MATCH(Table_IntInputs[[#This Row],[Space Type]],Table_AddlControl_2016[Facility Type],0)),1+INDEX(Table_AddlControl_2016[#All],MATCH(Table_IntInputs[[#This Row],[Space Type]],Table_AddlControl_2016[[#All],[Facility Type]],0),MATCH(IF(Table_IntInputs[[#This Row],[Additional Controls?]]=\"\",\"None\",Table_IntInputs[[#This Row],[Additional Controls?]]),Table_AddlControl_2016[#Headers],0)),1),1),\"\")","v":""},{"$f":"IFERROR(VLOOKUP(Table_IntInputs[[#This Row],[Space Type]],IF(ASHRAEMethod=\"Space-By-Space\",IF(FiscalYear=\"FY25\",SpaceBySpace_2016[],SpaceBySpace_2016[]),IF(FiscalYear=\"FY25\",Table_BldgArea_2016[],Table_BldgArea_2016[])),3,FALSE),\"\")","v":""},{"$f":"IFERROR(IF(Table_IntInputs[[#This Row],[Space Type]]=\"Exterior\",'Exterior Information'!$J$3,ROUND(IF(Table_IntInputs[[#This Row],[Units]]=\"W/ft2\",Table_IntInputs[[#This Row],[Area Sq Ft]]*Table_IntInputs[[#This Row],[LPD]],Table_IntInputs[[#This Row],[Area Sq Ft]]*Table_IntInputs[[#This Row],[Room Cavity Height]]*Table_IntInputs[[#This Row],[LPD]]),2)),\"\")","v":""},{"$f":"IFERROR(IF(AND(Table_IntInputs[[#This Row],[Windows?]]=\"No\",VLOOKUP(Table_IntInputs[[#This Row],[Space Type]],IF(FiscalYear=\"FY24\",SpaceBySpace_2016[],SpaceBySpace_2016[]),6,FALSE)=\"Occ + DL\"),\"Occ\",IF(AND(Table_IntInputs[[#This Row],[Windows?]]=\"No\",VLOOKUP(Table_IntInputs[[#This Row],[Space Type]],IF(FiscalYear=\"FY24\",SpaceBySpace_2016[],SpaceBySpace_2016[]),6,FALSE)=\"DL\"),\"\",VLOOKUP(Table_IntInputs[[#This Row],[Space Type]],IF(FiscalYear=\"FY24\",SpaceBySpace_2016[],SpaceBySpace_2016[]),6,FALSE))),\"\")","v":""},null,null,null,{"$f":"IFERROR(IF(R16+1>MAX(Table_IntInputs[Zone]),\"\",R16+1),\"\")","v":""},{"$f":"VLOOKUP(R17,Table_IntInputs[[Zone]:[Concatenate(Wndw-Sp Type)]],2,FALSE)","v":""},"",{"$f":"IFERROR(IF(Table_IntLookups[[#This Row],[Zone'#]]<>\"\",VLOOKUP(INDEX(Table_IntInputs[],MATCH(Table_IntLookups[[#This Row],[Zone'#]],Table_IntInputs[Zone],0),4),Table_BuildingFactors[#Data],2,FALSE),\"\"),0)","v":""},{"$f":"IFERROR(IF(Table_IntLookups[[#This Row],[Zone'#]]<>\"\",VLOOKUP(INDEX(Table_IntInputs[],MATCH(Table_IntLookups[[#This Row],[Zone'#]],Table_IntInputs[Zone],0),4),Table_BuildingFactors[#Data],3,FALSE),\"\"),0)","v":""},{"$f":"IFERROR(IF(Table_IntLookups[[#This Row],[Zone'#]]<>\"\",VLOOKUP(INDEX(Table_IntInputs[],MATCH(Table_IntLookups[[#This Row],[Zone'#]],Table_IntInputs[Zone],0),4),Table_BuildingFactors[#Data],3,FALSE),\"\"),0)","v":""},{"$f":"IFERROR(IF(Table_IntLookups[[#This Row],[Zone'#]]<>\"\",VLOOKUP(INDEX(Table_IntInputs[],MATCH(Table_IntLookups[[#This Row],[Zone'#]],Table_IntInputs[Zone],0),4),Table_BuildingFactors[#Data],5,FALSE),\"\"),0)","v":""},{"$f":"IFERROR(IF(Table_IntLookups[[#This Row],[Zone'#]]<>\"\",VLOOKUP(INDEX(Table_IntInputs[],MATCH(Table_IntLookups[[#This Row],[Zone'#]],Table_IntInputs[Zone],0),4),Table_BuildingFactors[#Data],6,FALSE),\"\"),0)","v":""},{"$f":"IFERROR(IF(Table_IntLookups[[#This Row],[Zone'#]]<>\"\",VLOOKUP(INDEX(Table_IntInputs[],MATCH(Table_IntLookups[[#This Row],[Zone'#]],Table_IntInputs[Zone],0),4),Table_BuildingFactors[#Data],7,FALSE),\"\"),0)","v":""},{"$f":"IFERROR(IF(Table_IntLookups[[#This Row],[Zone'#]]<>\"\",VLOOKUP(Table_IntLookups[[#This Row],[Description]],INDIRECT(\"Table_BldgArea_\" & IF(FiscalYear=\"FY24\",2013,2016)),4,FALSE),\"\"),0)","v":""},{"$f":"IF($R17=\"\",\"\",SUMIFS(Table_IntInputs[Total Wattage],Table_IntInputs[Zone],$R17))","v":""}]
[{"$f":"IF(OR(Table_IntInputs[[#This Row],[LPD]]=\"\",Table_IntInputs[[#This Row],[Concatenate(Wndw-Sp Type)]]=\"\"),\"\",IF(AND(ISNUMBER(MATCH(Table_IntInputs[[#This Row],[Concatenate(Wndw-Sp Type)]],$B$5:$B17,0))),IF(A17=\"Zone\",1,INDIRECT(\"A\" & MATCH(Table_IntInputs[[#This Row],[Concatenate(Wndw-Sp Type)]],$B$5:$B17,0)+4)),IF(A17=\"Zone\",1,MAX($A$5:$A17)+1)))","v":""},{"$f":"IF(Table_IntInputs[[#This Row],[Space Type]]=\"Exterior\",\"Exterior\",IF(Table_IntInputs[[#This Row],[Space Type]]=\"\",\"\",IF(AND($E$1=\"Building Area\",ISNUMBER(MATCH(Table_IntInputs[[#This Row],[Space Type]],Table_BldgArea_2016[Building Area Type],0))),Table_IntInputs[[#This Row],[Space Type]],CONCATENATE(IF(Table_IntInputs[[#This Row],[Windows?]]=\"\",\"No\",Table_IntInputs[[#This Row],[Windows?]]),\" - \",Table_IntInputs[[#This Row],[Space Type]]))))","v":""},null,null,null,null,null,null,{"$f":"IFERROR(IF(AND($E$1=\"Space-by-Space\",ISNUMBER(FIND(\"Corridor\",Table_IntInputs[[#This Row],[Space Type]],1))),Table_IntInputs[[#This Row],[Width]],2.5*Table_IntInputs[[#This Row],[Perimeter]]*Table_IntInputs[[#This Row],[Room Cavity Height]]/Table_IntInputs[[#This Row],[Area Sq Ft]]),\"\")","v":""},{"$f":"IFERROR(IF(ASHRAEMethod=\"Space-By-Space\",IF(ISNUMBER(FIND(\"Corridor\",Table_IntInputs[[#This Row],[Space Type]],1)),VLOOKUP(Table_IntInputs[[#This Row],[Space Type]],IF(FiscalYear=\"FY25\",SpaceBySpace_2016[],SpaceBySpace_2016[]),5,FALSE),VLOOKUP(Table_IntInputs[[#This Row],[Space Type]],IF(FiscalYear=\"FY25\",SpaceBySpace_2016[],SpaceBySpace_2016[]),4,FALSE)),\"\"),\"\")","v":""},{"$f":"IFERROR(\n    ROUND(IF(AND(ASHRAEMethod=\"Space-By-Space\",Table_IntInputs[[#This Row],[Space Type]]=\"Atrium, above 40ft\"),0.4+Table_IntInputs[[#This Row],[Room Cavity Height]]*0.02,IF(AND(ASHRAEMethod=\"Space-By-Space\",ISNUMBER(FIND(\"Atrium\",Table_IntInputs[[#This Row],[Space Type]],1))),Table_IntInputs[[#This Row],[Room Cavity Height]]*0.03,VLOOKUP(Table_IntInputs[[#This Row],[Space Type]],IF($E$1=\"Space-By-Space\",IF(FiscalYear=\"FY25\",SpaceBySpace_2016[],SpaceBySpace_2016[]),IF(FiscalYear=\"FY25\",Table_BldgArea_2016[],Table_BldgArea_2016[])),2,FALSE)))  *\n        IF(OR(AND($E$1=\"Space-By-Space\",ISNUMBER(FIND(\"Corridor\",Table_IntInputs[[#This Row],[Space Type]],1)),Table_IntInputs[[#This Row],[RCR]]>=Table_IntInputs[[#This Row],[RCR,W_m]]),\n        AND($E$1=\"Space-By-Space\",NOT(ISNUMBER(FIND(\"Corridor\",Table_IntInputs[[#This Row],[Space Type]],1))),Table_IntInputs[[#This Row],[RCR]]>=Table_IntInputs[[#This Row],[RCR,W_m]],Table_IntInputs[[#This Row],[RCR,W_m]]>0)),1.2,1),2)  *\n        IFERROR(IF(ISNUMBER(MATCH(Table_IntInputs[[#This Row],[Space Type]],Table_AddlControl_2016[Facility Type],0)),1+INDEX(Table_AddlControl_2016[#All],MATCH(Table_IntInputs[[#This Row],[Space Type]],Table_AddlControl_2016[[#All],[Facility Type]],0),MATCH(IF(Table_IntInputs[[#This Row],[Additional Controls?]]=\"\",\"None\",Table_IntInputs[[#This Row],[Additional Controls?]]),Table_AddlControl_2016[#Headers],0)),1),1),\"\")","v":""},{"$f":"IFERROR(VLOOKUP(Table_IntInputs[[#This Row],[Space Type]],IF(ASHRAEMethod=\"Space-By-Space\",IF(FiscalYear=\"FY25\",SpaceBySpace_2016[],SpaceBySpace_2016[]),IF(FiscalYear=\"FY25\",Table_BldgArea_2016[],Table_BldgArea_2016[])),3,FALSE),\"\")","v":""},{"$f":"IFERROR(IF(Table_IntInputs[[#This Row],[Space Type]]=\"Exterior\",'Exterior Information'!$J$3,ROUND(IF(Table_IntInputs[[#This Row],[Units]]=\"W/ft2\",Table_IntInputs[[#This Row],[Area Sq Ft]]*Table_IntInputs[[#This Row],[LPD]],Table_IntInputs[[#This Row],[Area Sq Ft]]*Table_IntInputs[[#This Row],[Room Cavity Height]]*Table_IntInputs[[#This Row],[LPD]]),2)),\"\")","v":""},{"$f":"IFERROR(IF(AND(Table_IntInputs[[#This Row],[Windows?]]=\"No\",VLOOKUP(Table_IntInputs[[#This Row],[Space Type]],IF(FiscalYear=\"FY24\",SpaceBySpace_2016[],SpaceBySpace_2016[]),6,FALSE)=\"Occ + DL\"),\"Occ\",IF(AND(Table_IntInputs[[#This Row],[Windows?]]=\"No\",VLOOKUP(Table_IntInputs[[#This Row],[Space Type]],IF(FiscalYear=\"FY24\",SpaceBySpace_2016[],SpaceBySpace_2016[]),6,FALSE)=\"DL\"),\"\",VLOOKUP(Table_IntInputs[[#This Row],[Space Type]],IF(FiscalYear=\"FY24\",SpaceBySpace_2016[],SpaceBySpace_2016[]),6,FALSE))),\"\")","v":""},null,null,null,{"$f":"IFERROR(IF(R17+1>MAX(Table_IntInputs[Zone]),\"\",R17+1),\"\")","v":""},{"$f":"VLOOKUP(R18,Table_IntInputs[[Zone]:[Concatenate(Wndw-Sp Type)]],2,FALSE)","v":""},"",{"$f":"IFERROR(IF(Table_IntLookups[[#This Row],[Zone'#]]<>\"\",VLOOKUP(INDEX(Table_IntInputs[],MATCH(Table_IntLookups[[#This Row],[Zone'#]],Table_IntInputs[Zone],0),4),Table_BuildingFactors[#Data],2,FALSE),\"\"),0)","v":""},{"$f":"IFERROR(IF(Table_IntLookups[[#This Row],[Zone'#]]<>\"\",VLOOKUP(INDEX(Table_IntInputs[],MATCH(Table_IntLookups[[#This Row],[Zone'#]],Table_IntInputs[Zone],0),4),Table_BuildingFactors[#Data],3,FALSE),\"\"),0)","v":""},{"$f":"IFERROR(IF(Table_IntLookups[[#This Row],[Zone'#]]<>\"\",VLOOKUP(INDEX(Table_IntInputs[],MATCH(Table_IntLookups[[#This Row],[Zone'#]],Table_IntInputs[Zone],0),4),Table_BuildingFactors[#Data],3,FALSE),\"\"),0)","v":""},{"$f":"IFERROR(IF(Table_IntLookups[[#This Row],[Zone'#]]<>\"\",VLOOKUP(INDEX(Table_IntInputs[],MATCH(Table_IntLookups[[#This Row],[Zone'#]],Table_IntInputs[Zone],0),4),Table_BuildingFactors[#Data],5,FALSE),\"\"),0)","v":""},{"$f":"IFERROR(IF(Table_IntLookups[[#This Row],[Zone'#]]<>\"\",VLOOKUP(INDEX(Table_IntInputs[],MATCH(Table_IntLookups[[#This Row],[Zone'#]],Table_IntInputs[Zone],0),4),Table_BuildingFactors[#Data],6,FALSE),\"\"),0)","v":""},{"$f":"IFERROR(IF(Table_IntLookups[[#This Row],[Zone'#]]<>\"\",VLOOKUP(INDEX(Table_IntInputs[],MATCH(Table_IntLookups[[#This Row],[Zone'#]],Table_IntInputs[Zone],0),4),Table_BuildingFactors[#Data],7,FALSE),\"\"),0)","v":""},{"$f":"IFERROR(IF(Table_IntLookups[[#This Row],[Zone'#]]<>\"\",VLOOKUP(Table_IntLookups[[#This Row],[Description]],INDIRECT(\"Table_BldgArea_\" & IF(FiscalYear=\"FY24\",2013,2016)),4,FALSE),\"\"),0)","v":""},{"$f":"IF($R18=\"\",\"\",SUMIFS(Table_IntInputs[Total Wattage],Table_IntInputs[Zone],$R18))","v":""}]
[{"$f":"IF(OR(Table_IntInputs[[#This Row],[LPD]]=\"\",Table_IntInputs[[#This Row],[Concatenate(Wndw-Sp Type)]]=\"\"),\"\",IF(AND(ISNUMBER(MATCH(Table_IntInputs[[#This Row],[Concatenate(Wndw-Sp Type)]],$B$5:$B18,0))),IF(A18=\"Zone\",1,INDIRECT(\"A\" & MATCH(Table_IntInputs[[#This Row],[Concatenate(Wndw-Sp Type)]],$B$5:$B18,0)+4)),IF(A18=\"Zone\",1,MAX($A$5:$A18)+1)))","v":""},{"$f":"IF(Table_IntInputs[[#This Row],[Space Type]]=\"Exterior\",\"Exterior\",IF(Table_IntInputs[[#This Row],[Space Type]]=\"\",\"\",IF(AND($E$1=\"Building Area\",ISNUMBER(MATCH(Table_IntInputs[[#This Row],[Space Type]],Table_BldgArea_2016[Building Area Type],0))),Table_IntInputs[[#This Row],[Space Type]],CONCATENATE(IF(Table_IntInputs[[#This Row],[Windows?]]=\"\",\"No\",Table_IntInputs[[#This Row],[Windows?]]),\" - \",Table_IntInputs[[#This Row],[Space Type]]))))","v":""},null,null,null,null,null,null,{"$f":"IFERROR(IF(AND($E$1=\"Space-by-Space\",ISNUMBER(FIND(\"Corridor\",Table_IntInputs[[#This Row],[Space Type]],1))),Table_IntInputs[[#This Row],[Width]],2.5*Table_IntInputs[[#This Row],[Perimeter]]*Table_IntInputs[[#This Row],[Room Cavity Height]]/Table_IntInputs[[#This Row],[Area Sq Ft]]),\"\")","v":""},{"$f":"IFERROR(IF(ASHRAEMethod=\"Space-By-Space\",IF(ISNUMBER(FIND(\"Corridor\",Table_IntInputs[[#This Row],[Space Type]],1)),VLOOKUP(Table_IntInputs[[#This Row],[Space Type]],IF(FiscalYear=\"FY25\",SpaceBySpace_2016[],SpaceBySpace_2016[]),5,FALSE),VLOOKUP(Table_IntInputs[[#This Row],[Space Type]],IF(FiscalYear=\"FY25\",SpaceBySpace_2016[],SpaceBySpace_2016[]),4,FALSE)),\"\"),\"\")","v":""},{"$f":"IFERROR(\n    ROUND(IF(AND(ASHRAEMethod=\"Space-By-Space\",Table_IntInputs[[#This Row],[Space Type]]=\"Atrium, above 40ft\"),0.4+Table_IntInputs[[#This Row],[Room Cavity Height]]*0.02,IF(AND(ASHRAEMethod=\"Space-By-Space\",ISNUMBER(FIND(\"Atrium\",Table_IntInputs[[#This Row],[Space Type]],1))),Table_IntInputs[[#This Row],[Room Cavity Height]]*0.03,VLOOKUP(Table_IntInputs[[#This Row],[Space Type]],IF($E$1=\"Space-By-Space\",IF(FiscalYear=\"FY25\",SpaceBySpace_2016[],SpaceBySpace_2016[]),IF(FiscalYear=\"FY25\",Table_BldgArea_2016[],Table_BldgArea_2016[])),2,FALSE)))  *\n        IF(OR(AND($E$1=\"Space-By-Space\",ISNUMBER(FIND(\"Corridor\",Table_IntInputs[[#This Row],[Space Type]],1)),Table_IntInputs[[#This Row],[RCR]]>=Table_IntInputs[[#This Row],[RCR,W_m]]),\n        AND($E$1=\"Space-By-Space\",NOT(ISNUMBER(FIND(\"Corridor\",Table_IntInputs[[#This Row],[Space Type]],1))),Table_IntInputs[[#This Row],[RCR]]>=Table_IntInputs[[#This Row],[RCR,W_m]],Table_IntInputs[[#This Row],[RCR,W_m]]>0)),1.2,1),2)  *\n        IFERROR(IF(ISNUMBER(MATCH(Table_IntInputs[[#This Row],[Space Type]],Table_AddlControl_2016[Facility Type],0)),1+INDEX(Table_AddlControl_2016[#All],MATCH(Table_IntInputs[[#This Row],[Space Type]],Table_AddlControl_2016[[#All],[Facility Type]],0),MATCH(IF(Table_IntInputs[[#This Row],[Additional Controls?]]=\"\",\"None\",Table_IntInputs[[#This Row],[Additional Controls?]]),Table_AddlControl_2016[#Headers],0)),1),1),\"\")","v":""},{"$f":"IFERROR(VLOOKUP(Table_IntInputs[[#This Row],[Space Type]],IF(ASHRAEMethod=\"Space-By-Space\",IF(FiscalYear=\"FY25\",SpaceBySpace_2016[],SpaceBySpace_2016[]),IF(FiscalYear=\"FY25\",Table_BldgArea_2016[],Table_BldgArea_2016[])),3,FALSE),\"\")","v":""},{"$f":"IFERROR(IF(Table_IntInputs[[#This Row],[Space Type]]=\"Exterior\",'Exterior Information'!$J$3,ROUND(IF(Table_IntInputs[[#This Row],[Units]]=\"W/ft2\",Table_IntInputs[[#This Row],[Area Sq Ft]]*Table_IntInputs[[#This Row],[LPD]],Table_IntInputs[[#This Row],[Area Sq Ft]]*Table_IntInputs[[#This Row],[Room Cavity Height]]*Table_IntInputs[[#This Row],[LPD]]),2)),\"\")","v":""},{"$f":"IFERROR(IF(AND(Table_IntInputs[[#This Row],[Windows?]]=\"No\",VLOOKUP(Table_IntInputs[[#This Row],[Space Type]],IF(FiscalYear=\"FY24\",SpaceBySpace_2016[],SpaceBySpace_2016[]),6,FALSE)=\"Occ + DL\"),\"Occ\",IF(AND(Table_IntInputs[[#This Row],[Windows?]]=\"No\",VLOOKUP(Table_IntInputs[[#This Row],[Space Type]],IF(FiscalYear=\"FY24\",SpaceBySpace_2016[],SpaceBySpace_2016[]),6,FALSE)=\"DL\"),\"\",VLOOKUP(Table_IntInputs[[#This Row],[Space Type]],IF(FiscalYear=\"FY24\",SpaceBySpace_2016[],SpaceBySpace_2016[]),6,FALSE))),\"\")","v":""},null,null,null,{"$f":"IFERROR(IF(R18+1>MAX(Table_IntInputs[Zone]),\"\",R18+1),\"\")","v":""},{"$f":"VLOOKUP(R19,Table_IntInputs[[Zone]:[Concatenate(Wndw-Sp Type)]],2,FALSE)","v":""},"",{"$f":"IFERROR(IF(Table_IntLookups[[#This Row],[Zone'#]]<>\"\",VLOOKUP(INDEX(Table_IntInputs[],MATCH(Table_IntLookups[[#This Row],[Zone'#]],Table_IntInputs[Zone],0),4),Table_BuildingFactors[#Data],2,FALSE),\"\"),0)","v":""},{"$f":"IFERROR(IF(Table_IntLookups[[#This Row],[Zone'#]]<>\"\",VLOOKUP(INDEX(Table_IntInputs[],MATCH(Table_IntLookups[[#This Row],[Zone'#]],Table_IntInputs[Zone],0),4),Table_BuildingFactors[#Data],3,FALSE),\"\"),0)","v":""},{"$f":"IFERROR(IF(Table_IntLookups[[#This Row],[Zone'#]]<>\"\",VLOOKUP(INDEX(Table_IntInputs[],MATCH(Table_IntLookups[[#This Row],[Zone'#]],Table_IntInputs[Zone],0),4),Table_BuildingFactors[#Data],3,FALSE),\"\"),0)","v":""},{"$f":"IFERROR(IF(Table_IntLookups[[#This Row],[Zone'#]]<>\"\",VLOOKUP(INDEX(Table_IntInputs[],MATCH(Table_IntLookups[[#This Row],[Zone'#]],Table_IntInputs[Zone],0),4),Table_BuildingFactors[#Data],5,FALSE),\"\"),0)","v":""},{"$f":"IFERROR(IF(Table_IntLookups[[#This Row],[Zone'#]]<>\"\",VLOOKUP(INDEX(Table_IntInputs[],MATCH(Table_IntLookups[[#This Row],[Zone'#]],Table_IntInputs[Zone],0),4),Table_BuildingFactors[#Data],6,FALSE),\"\"),0)","v":""},{"$f":"IFERROR(IF(Table_IntLookups[[#This Row],[Zone'#]]<>\"\",VLOOKUP(INDEX(Table_IntInputs[],MATCH(Table_IntLookups[[#This Row],[Zone'#]],Table_IntInputs[Zone],0),4),Table_BuildingFactors[#Data],7,FALSE),\"\"),0)","v":""},{"$f":"IFERROR(IF(Table_IntLookups[[#This Row],[Zone'#]]<>\"\",VLOOKUP(Table_IntLookups[[#This Row],[Description]],INDIRECT(\"Table_BldgArea_\" & IF(FiscalYear=\"FY24\",2013,2016)),4,FALSE),\"\"),0)","v":""},{"$f":"IF($R19=\"\",\"\",SUMIFS(Table_IntInputs[Total Wattage],Table_IntInputs[Zone],$R19))","v":""}]
[{"$f":"IF(OR(Table_IntInputs[[#This Row],[LPD]]=\"\",Table_IntInputs[[#This Row],[Concatenate(Wndw-Sp Type)]]=\"\"),\"\",IF(AND(ISNUMBER(MATCH(Table_IntInputs[[#This Row],[Concatenate(Wndw-Sp Type)]],$B$5:$B19,0))),IF(A19=\"Zone\",1,INDIRECT(\"A\" & MATCH(Table_IntInputs[[#This Row],[Concatenate(Wndw-Sp Type)]],$B$5:$B19,0)+4)),IF(A19=\"Zone\",1,MAX($A$5:$A19)+1)))","v":""},{"$f":"IF(Table_IntInputs[[#This Row],[Space Type]]=\"Exterior\",\"Exterior\",IF(Table_IntInputs[[#This Row],[Space Type]]=\"\",\"\",IF(AND($E$1=\"Building Area\",ISNUMBER(MATCH(Table_IntInputs[[#This Row],[Space Type]],Table_BldgArea_2016[Building Area Type],0))),Table_IntInputs[[#This Row],[Space Type]],CONCATENATE(IF(Table_IntInputs[[#This Row],[Windows?]]=\"\",\"No\",Table_IntInputs[[#This Row],[Windows?]]),\" - \",Table_IntInputs[[#This Row],[Space Type]]))))","v":""},null,null,null,null,null,null,{"$f":"IFERROR(IF(AND($E$1=\"Space-by-Space\",ISNUMBER(FIND(\"Corridor\",Table_IntInputs[[#This Row],[Space Type]],1))),Table_IntInputs[[#This Row],[Width]],2.5*Table_IntInputs[[#This Row],[Perimeter]]*Table_IntInputs[[#This Row],[Room Cavity Height]]/Table_IntInputs[[#This Row],[Area Sq Ft]]),\"\")","v":""},{"$f":"IFERROR(IF(ASHRAEMethod=\"Space-By-Space\",IF(ISNUMBER(FIND(\"Corridor\",Table_IntInputs[[#This Row],[Space Type]],1)),VLOOKUP(Table_IntInputs[[#This Row],[Space Type]],IF(FiscalYear=\"FY25\",SpaceBySpace_2016[],SpaceBySpace_2016[]),5,FALSE),VLOOKUP(Table_IntInputs[[#This Row],[Space Type]],IF(FiscalYear=\"FY25\",SpaceBySpace_2016[],SpaceBySpace_2016[]),4,FALSE)),\"\"),\"\")","v":""},{"$f":"IFERROR(\n    ROUND(IF(AND(ASHRAEMethod=\"Space-By-Space\",Table_IntInputs[[#This Row],[Space Type]]=\"Atrium, above 40ft\"),0.4+Table_IntInputs[[#This Row],[Room Cavity Height]]*0.02,IF(AND(ASHRAEMethod=\"Space-By-Space\",ISNUMBER(FIND(\"Atrium\",Table_IntInputs[[#This Row],[Space Type]],1))),Table_IntInputs[[#This Row],[Room Cavity Height]]*0.03,VLOOKUP(Table_IntInputs[[#This Row],[Space Type]],IF($E$1=\"Space-By-Space\",IF(FiscalYear=\"FY25\",SpaceBySpace_2016[],SpaceBySpace_2016[]),IF(FiscalYear=\"FY25\",Table_BldgArea_2016[],Table_BldgArea_2016[])),2,FALSE)))  *\n        IF(OR(AND($E$1=\"Space-By-Space\",ISNUMBER(FIND(\"Corridor\",Table_IntInputs[[#This Row],[Space Type]],1)),Table_IntInputs[[#This Row],[RCR]]>=Table_IntInputs[[#This Row],[RCR,W_m]]),\n        AND($E$1=\"Space-By-Space\",NOT(ISNUMBER(FIND(\"Corridor\",Table_IntInputs[[#This Row],[Space Type]],1))),Table_IntInputs[[#This Row],[RCR]]>=Table_IntInputs[[#This Row],[RCR,W_m]],Table_IntInputs[[#This Row],[RCR,W_m]]>0)),1.2,1),2)  *\n        IFERROR(IF(ISNUMBER(MATCH(Table_IntInputs[[#This Row],[Space Type]],Table_AddlControl_2016[Facility Type],0)),1+INDEX(Table_AddlControl_2016[#All],MATCH(Table_IntInputs[[#This Row],[Space Type]],Table_AddlControl_2016[[#All],[Facility Type]],0),MATCH(IF(Table_IntInputs[[#This Row],[Additional Controls?]]=\"\",\"None\",Table_IntInputs[[#This Row],[Additional Controls?]]),Table_AddlControl_2016[#Headers],0)),1),1),\"\")","v":""},{"$f":"IFERROR(VLOOKUP(Table_IntInputs[[#This Row],[Space Type]],IF(ASHRAEMethod=\"Space-By-Space\",IF(FiscalYear=\"FY25\",SpaceBySpace_2016[],SpaceBySpace_2016[]),IF(FiscalYear=\"FY25\",Table_BldgArea_2016[],Table_BldgArea_2016[])),3,FALSE),\"\")","v":""},{"$f":"IFERROR(IF(Table_IntInputs[[#This Row],[Space Type]]=\"Exterior\",'Exterior Information'!$J$3,ROUND(IF(Table_IntInputs[[#This Row],[Units]]=\"W/ft2\",Table_IntInputs[[#This Row],[Area Sq Ft]]*Table_IntInputs[[#This Row],[LPD]],Table_IntInputs[[#This Row],[Area Sq Ft]]*Table_IntInputs[[#This Row],[Room Cavity Height]]*Table_IntInputs[[#This Row],[LPD]]),2)),\"\")","v":""},{"$f":"IFERROR(IF(AND(Table_IntInputs[[#This Row],[Windows?]]=\"No\",VLOOKUP(Table_IntInputs[[#This Row],[Space Type]],IF(FiscalYear=\"FY24\",SpaceBySpace_2016[],SpaceBySpace_2016[]),6,FALSE)=\"Occ + DL\"),\"Occ\",IF(AND(Table_IntInputs[[#This Row],[Windows?]]=\"No\",VLOOKUP(Table_IntInputs[[#This Row],[Space Type]],IF(FiscalYear=\"FY24\",SpaceBySpace_2016[],SpaceBySpace_2016[]),6,FALSE)=\"DL\"),\"\",VLOOKUP(Table_IntInputs[[#This Row],[Space Type]],IF(FiscalYear=\"FY24\",SpaceBySpace_2016[],SpaceBySpace_2016[]),6,FALSE))),\"\")","v":""},null,null,null,{"$f":"IFERROR(IF(R19+1>MAX(Table_IntInputs[Zone]),\"\",R19+1),\"\")","v":""},{"$f":"VLOOKUP(R20,Table_IntInputs[[Zone]:[Concatenate(Wndw-Sp Type)]],2,FALSE)","v":""},"",{"$f":"IFERROR(IF(Table_IntLookups[[#This Row],[Zone'#]]<>\"\",VLOOKUP(INDEX(Table_IntInputs[],MATCH(Table_IntLookups[[#This Row],[Zone'#]],Table_IntInputs[Zone],0),4),Table_BuildingFactors[#Data],2,FALSE),\"\"),0)","v":""},{"$f":"IFERROR(IF(Table_IntLookups[[#This Row],[Zone'#]]<>\"\",VLOOKUP(INDEX(Table_IntInputs[],MATCH(Table_IntLookups[[#This Row],[Zone'#]],Table_IntInputs[Zone],0),4),Table_BuildingFactors[#Data],3,FALSE),\"\"),0)","v":""},{"$f":"IFERROR(IF(Table_IntLookups[[#This Row],[Zone'#]]<>\"\",VLOOKUP(INDEX(Table_IntInputs[],MATCH(Table_IntLookups[[#This Row],[Zone'#]],Table_IntInputs[Zone],0),4),Table_BuildingFactors[#Data],3,FALSE),\"\"),0)","v":""},{"$f":"IFERROR(IF(Table_IntLookups[[#This Row],[Zone'#]]<>\"\",VLOOKUP(INDEX(Table_IntInputs[],MATCH(Table_IntLookups[[#This Row],[Zone'#]],Table_IntInputs[Zone],0),4),Table_BuildingFactors[#Data],5,FALSE),\"\"),0)","v":""},{"$f":"IFERROR(IF(Table_IntLookups[[#This Row],[Zone'#]]<>\"\",VLOOKUP(INDEX(Table_IntInputs[],MATCH(Table_IntLookups[[#This Row],[Zone'#]],Table_IntInputs[Zone],0),4),Table_BuildingFactors[#Data],6,FALSE),\"\"),0)","v":""},{"$f":"IFERROR(IF(Table_IntLookups[[#This Row],[Zone'#]]<>\"\",VLOOKUP(INDEX(Table_IntInputs[],MATCH(Table_IntLookups[[#This Row],[Zone'#]],Table_IntInputs[Zone],0),4),Table_BuildingFactors[#Data],7,FALSE),\"\"),0)","v":""},{"$f":"IFERROR(IF(Table_IntLookups[[#This Row],[Zone'#]]<>\"\",VLOOKUP(Table_IntLookups[[#This Row],[Description]],INDIRECT(\"Table_BldgArea_\" & IF(FiscalYear=\"FY24\",2013,2016)),4,FALSE),\"\"),0)","v":""},{"$f":"IF($R20=\"\",\"\",SUMIFS(Table_IntInputs[Total Wattage],Table_IntInputs[Zone],$R20))","v":""}]
[{"$f":"IF(OR(Table_IntInputs[[#This Row],[LPD]]=\"\",Table_IntInputs[[#This Row],[Concatenate(Wndw-Sp Type)]]=\"\"),\"\",IF(AND(ISNUMBER(MATCH(Table_IntInputs[[#This Row],[Concatenate(Wndw-Sp Type)]],$B$5:$B20,0))),IF(A20=\"Zone\",1,INDIRECT(\"A\" & MATCH(Table_IntInputs[[#This Row],[Concatenate(Wndw-Sp Type)]],$B$5:$B20,0)+4)),IF(A20=\"Zone\",1,MAX($A$5:$A20)+1)))","v":""},{"$f":"IF(Table_IntInputs[[#This Row],[Space Type]]=\"Exterior\",\"Exterior\",IF(Table_IntInputs[[#This Row],[Space Type]]=\"\",\"\",IF(AND($E$1=\"Building Area\",ISNUMBER(MATCH(Table_IntInputs[[#This Row],[Space Type]],Table_BldgArea_2016[Building Area Type],0))),Table_IntInputs[[#This Row],[Space Type]],CONCATENATE(IF(Table_IntInputs[[#This Row],[Windows?]]=\"\",\"No\",Table_IntInputs[[#This Row],[Windows?]]),\" - \",Table_IntInputs[[#This Row],[Space Type]]))))","v":""},null,null,null,null,null,null,{"$f":"IFERROR(IF(AND($E$1=\"Space-by-Space\",ISNUMBER(FIND(\"Corridor\",Table_IntInputs[[#This Row],[Space Type]],1))),Table_IntInputs[[#This Row],[Width]],2.5*Table_IntInputs[[#This Row],[Perimeter]]*Table_IntInputs[[#This Row],[Room Cavity Height]]/Table_IntInputs[[#This Row],[Area Sq Ft]]),\"\")","v":""},{"$f":"IFERROR(IF(ASHRAEMethod=\"Space-By-Space\",IF(ISNUMBER(FIND(\"Corridor\",Table_IntInputs[[#This Row],[Space Type]],1)),VLOOKUP(Table_IntInputs[[#This Row],[Space Type]],IF(FiscalYear=\"FY25\",SpaceBySpace_2016[],SpaceBySpace_2016[]),5,FALSE),VLOOKUP(Table_IntInputs[[#This Row],[Space Type]],IF(FiscalYear=\"FY25\",SpaceBySpace_2016[],SpaceBySpace_2016[]),4,FALSE)),\"\"),\"\")","v":""},{"$f":"IFERROR(\n    ROUND(IF(AND(ASHRAEMethod=\"Space-By-Space\",Table_IntInputs[[#This Row],[Space Type]]=\"Atrium, above 40ft\"),0.4+Table_IntInputs[[#This Row],[Room Cavity Height]]*0.02,IF(AND(ASHRAEMethod=\"Space-By-Space\",ISNUMBER(FIND(\"Atrium\",Table_IntInputs[[#This Row],[Space Type]],1))),Table_IntInputs[[#This Row],[Room Cavity Height]]*0.03,VLOOKUP(Table_IntInputs[[#This Row],[Space Type]],IF($E$1=\"Space-By-Space\",IF(FiscalYear=\"FY25\",SpaceBySpace_2016[],SpaceBySpace_2016[]),IF(FiscalYear=\"FY25\",Table_BldgArea_2016[],Table_BldgArea_2016[])),2,FALSE)))  *\n        IF(OR(AND($E$1=\"Space-By-Space\",ISNUMBER(FIND(\"Corridor\",Table_IntInputs[[#This Row],[Space Type]],1)),Table_IntInputs[[#This Row],[RCR]]>=Table_IntInputs[[#This Row],[RCR,W_m]]),\n        AND($E$1=\"Space-By-Space\",NOT(ISNUMBER(FIND(\"Corridor\",Table_IntInputs[[#This Row],[Space Type]],1))),Table_IntInputs[[#This Row],[RCR]]>=Table_IntInputs[[#This Row],[RCR,W_m]],Table_IntInputs[[#This Row],[RCR,W_m]]>0)),1.2,1),2)  *\n        IFERROR(IF(ISNUMBER(MATCH(Table_IntInputs[[#This Row],[Space Type]],Table_AddlControl_2016[Facility Type],0)),1+INDEX(Table_AddlControl_2016[#All],MATCH(Table_IntInputs[[#This Row],[Space Type]],Table_AddlControl_2016[[#All],[Facility Type]],0),MATCH(IF(Table_IntInputs[[#This Row],[Additional Controls?]]=\"\",\"None\",Table_IntInputs[[#This Row],[Additional Controls?]]),Table_AddlControl_2016[#Headers],0)),1),1),\"\")","v":""},{"$f":"IFERROR(VLOOKUP(Table_IntInputs[[#This Row],[Space Type]],IF(ASHRAEMethod=\"Space-By-Space\",IF(FiscalYear=\"FY25\",SpaceBySpace_2016[],SpaceBySpace_2016[]),IF(FiscalYear=\"FY25\",Table_BldgArea_2016[],Table_BldgArea_2016[])),3,FALSE),\"\")","v":""},{"$f":"IFERROR(IF(Table_IntInputs[[#This Row],[Space Type]]=\"Exterior\",'Exterior Information'!$J$3,ROUND(IF(Table_IntInputs[[#This Row],[Units]]=\"W/ft2\",Table_IntInputs[[#This Row],[Area Sq Ft]]*Table_IntInputs[[#This Row],[LPD]],Table_IntInputs[[#This Row],[Area Sq Ft]]*Table_IntInputs[[#This Row],[Room Cavity Height]]*Table_IntInputs[[#This Row],[LPD]]),2)),\"\")","v":""},{"$f":"IFERROR(IF(AND(Table_IntInputs[[#This Row],[Windows?]]=\"No\",VLOOKUP(Table_IntInputs[[#This Row],[Space Type]],IF(FiscalYear=\"FY24\",SpaceBySpace_2016[],SpaceBySpace_2016[]),6,FALSE)=\"Occ + DL\"),\"Occ\",IF(AND(Table_IntInputs[[#This Row],[Windows?]]=\"No\",VLOOKUP(Table_IntInputs[[#This Row],[Space Type]],IF(FiscalYear=\"FY24\",SpaceBySpace_2016[],SpaceBySpace_2016[]),6,FALSE)=\"DL\"),\"\",VLOOKUP(Table_IntInputs[[#This Row],[Space Type]],IF(FiscalYear=\"FY24\",SpaceBySpace_2016[],SpaceBySpace_2016[]),6,FALSE))),\"\")","v":""},null,null,null,{"$f":"IFERROR(IF(R20+1>MAX(Table_IntInputs[Zone]),\"\",R20+1),\"\")","v":""},{"$f":"VLOOKUP(R21,Table_IntInputs[[Zone]:[Concatenate(Wndw-Sp Type)]],2,FALSE)","v":""},"",{"$f":"IFERROR(IF(Table_IntLookups[[#This Row],[Zone'#]]<>\"\",VLOOKUP(INDEX(Table_IntInputs[],MATCH(Table_IntLookups[[#This Row],[Zone'#]],Table_IntInputs[Zone],0),4),Table_BuildingFactors[#Data],2,FALSE),\"\"),0)","v":""},{"$f":"IFERROR(IF(Table_IntLookups[[#This Row],[Zone'#]]<>\"\",VLOOKUP(INDEX(Table_IntInputs[],MATCH(Table_IntLookups[[#This Row],[Zone'#]],Table_IntInputs[Zone],0),4),Table_BuildingFactors[#Data],3,FALSE),\"\"),0)","v":""},{"$f":"IFERROR(IF(Table_IntLookups[[#This Row],[Zone'#]]<>\"\",VLOOKUP(INDEX(Table_IntInputs[],MATCH(Table_IntLookups[[#This Row],[Zone'#]],Table_IntInputs[Zone],0),4),Table_BuildingFactors[#Data],3,FALSE),\"\"),0)","v":""},{"$f":"IFERROR(IF(Table_IntLookups[[#This Row],[Zone'#]]<>\"\",VLOOKUP(INDEX(Table_IntInputs[],MATCH(Table_IntLookups[[#This Row],[Zone'#]],Table_IntInputs[Zone],0),4),Table_BuildingFactors[#Data],5,FALSE),\"\"),0)","v":""},{"$f":"IFERROR(IF(Table_IntLookups[[#This Row],[Zone'#]]<>\"\",VLOOKUP(INDEX(Table_IntInputs[],MATCH(Table_IntLookups[[#This Row],[Zone'#]],Table_IntInputs[Zone],0),4),Table_BuildingFactors[#Data],6,FALSE),\"\"),0)","v":""},{"$f":"IFERROR(IF(Table_IntLookups[[#This Row],[Zone'#]]<>\"\",VLOOKUP(INDEX(Table_IntInputs[],MATCH(Table_IntLookups[[#This Row],[Zone'#]],Table_IntInputs[Zone],0),4),Table_BuildingFactors[#Data],7,FALSE),\"\"),0)","v":""},{"$f":"IFERROR(IF(Table_IntLookups[[#This Row],[Zone'#]]<>\"\",VLOOKUP(Table_IntLookups[[#This Row],[Description]],INDIRECT(\"Table_BldgArea_\" & IF(FiscalYear=\"FY24\",2013,2016)),4,FALSE),\"\"),0)","v":""},{"$f":"IF($R21=\"\",\"\",SUMIFS(Table_IntInputs[Total Wattage],Table_IntInputs[Zone],$R21))","v":""}]
[{"$f":"IF(OR(Table_IntInputs[[#This Row],[LPD]]=\"\",Table_IntInputs[[#This Row],[Concatenate(Wndw-Sp Type)]]=\"\"),\"\",IF(AND(ISNUMBER(MATCH(Table_IntInputs[[#This Row],[Concatenate(Wndw-Sp Type)]],$B$5:$B21,0))),IF(A21=\"Zone\",1,INDIRECT(\"A\" & MATCH(Table_IntInputs[[#This Row],[Concatenate(Wndw-Sp Type)]],$B$5:$B21,0)+4)),IF(A21=\"Zone\",1,MAX($A$5:$A21)+1)))","v":""},{"$f":"IF(Table_IntInputs[[#This Row],[Space Type]]=\"Exterior\",\"Exterior\",IF(Table_IntInputs[[#This Row],[Space Type]]=\"\",\"\",IF(AND($E$1=\"Building Area\",ISNUMBER(MATCH(Table_IntInputs[[#This Row],[Space Type]],Table_BldgArea_2016[Building Area Type],0))),Table_IntInputs[[#This Row],[Space Type]],CONCATENATE(IF(Table_IntInputs[[#This Row],[Windows?]]=\"\",\"No\",Table_IntInputs[[#This Row],[Windows?]]),\" - \",Table_IntInputs[[#This Row],[Space Type]]))))","v":""},null,null,null,null,null,null,{"$f":"IFERROR(IF(AND($E$1=\"Space-by-Space\",ISNUMBER(FIND(\"Corridor\",Table_IntInputs[[#This Row],[Space Type]],1))),Table_IntInputs[[#This Row],[Width]],2.5*Table_IntInputs[[#This Row],[Perimeter]]*Table_IntInputs[[#This Row],[Room Cavity Height]]/Table_IntInputs[[#This Row],[Area Sq Ft]]),\"\")","v":""},{"$f":"IFERROR(IF(ASHRAEMethod=\"Space-By-Space\",IF(ISNUMBER(FIND(\"Corridor\",Table_IntInputs[[#This Row],[Space Type]],1)),VLOOKUP(Table_IntInputs[[#This Row],[Space Type]],IF(FiscalYear=\"FY25\",SpaceBySpace_2016[],SpaceBySpace_2016[]),5,FALSE),VLOOKUP(Table_IntInputs[[#This Row],[Space Type]],IF(FiscalYear=\"FY25\",SpaceBySpace_2016[],SpaceBySpace_2016[]),4,FALSE)),\"\"),\"\")","v":""},{"$f":"IFERROR(\n    ROUND(IF(AND(ASHRAEMethod=\"Space-By-Space\",Table_IntInputs[[#This Row],[Space Type]]=\"Atrium, above 40ft\"),0.4+Table_IntInputs[[#This Row],[Room Cavity Height]]*0.02,IF(AND(ASHRAEMethod=\"Space-By-Space\",ISNUMBER(FIND(\"Atrium\",Table_IntInputs[[#This Row],[Space Type]],1))),Table_IntInputs[[#This Row],[Room Cavity Height]]*0.03,VLOOKUP(Table_IntInputs[[#This Row],[Space Type]],IF($E$1=\"Space-By-Space\",IF(FiscalYear=\"FY25\",SpaceBySpace_2016[],SpaceBySpace_2016[]),IF(FiscalYear=\"FY25\",Table_BldgArea_2016[],Table_BldgArea_2016[])),2,FALSE)))  *\n        IF(OR(AND($E$1=\"Space-By-Space\",ISNUMBER(FIND(\"Corridor\",Table_IntInputs[[#This Row],[Space Type]],1)),Table_IntInputs[[#This Row],[RCR]]>=Table_IntInputs[[#This Row],[RCR,W_m]]),\n        AND($E$1=\"Space-By-Space\",NOT(ISNUMBER(FIND(\"Corridor\",Table_IntInputs[[#This Row],[Space Type]],1))),Table_IntInputs[[#This Row],[RCR]]>=Table_IntInputs[[#This Row],[RCR,W_m]],Table_IntInputs[[#This Row],[RCR,W_m]]>0)),1.2,1),2)  *\n        IFERROR(IF(ISNUMBER(MATCH(Table_IntInputs[[#This Row],[Space Type]],Table_AddlControl_2016[Facility Type],0)),1+INDEX(Table_AddlControl_2016[#All],MATCH(Table_IntInputs[[#This Row],[Space Type]],Table_AddlControl_2016[[#All],[Facility Type]],0),MATCH(IF(Table_IntInputs[[#This Row],[Additional Controls?]]=\"\",\"None\",Table_IntInputs[[#This Row],[Additional Controls?]]),Table_AddlControl_2016[#Headers],0)),1),1),\"\")","v":""},{"$f":"IFERROR(VLOOKUP(Table_IntInputs[[#This Row],[Space Type]],IF(ASHRAEMethod=\"Space-By-Space\",IF(FiscalYear=\"FY25\",SpaceBySpace_2016[],SpaceBySpace_2016[]),IF(FiscalYear=\"FY25\",Table_BldgArea_2016[],Table_BldgArea_2016[])),3,FALSE),\"\")","v":""},{"$f":"IFERROR(IF(Table_IntInputs[[#This Row],[Space Type]]=\"Exterior\",'Exterior Information'!$J$3,ROUND(IF(Table_IntInputs[[#This Row],[Units]]=\"W/ft2\",Table_IntInputs[[#This Row],[Area Sq Ft]]*Table_IntInputs[[#This Row],[LPD]],Table_IntInputs[[#This Row],[Area Sq Ft]]*Table_IntInputs[[#This Row],[Room Cavity Height]]*Table_IntInputs[[#This Row],[LPD]]),2)),\"\")","v":""},{"$f":"IFERROR(IF(AND(Table_IntInputs[[#This Row],[Windows?]]=\"No\",VLOOKUP(Table_IntInputs[[#This Row],[Space Type]],IF(FiscalYear=\"FY24\",SpaceBySpace_2016[],SpaceBySpace_2016[]),6,FALSE)=\"Occ + DL\"),\"Occ\",IF(AND(Table_IntInputs[[#This Row],[Windows?]]=\"No\",VLOOKUP(Table_IntInputs[[#This Row],[Space Type]],IF(FiscalYear=\"FY24\",SpaceBySpace_2016[],SpaceBySpace_2016[]),6,FALSE)=\"DL\"),\"\",VLOOKUP(Table_IntInputs[[#This Row],[Space Type]],IF(FiscalYear=\"FY24\",SpaceBySpace_2016[],SpaceBySpace_2016[]),6,FALSE))),\"\")","v":""},null,null,null,{"$f":"IFERROR(IF(R21+1>MAX(Table_IntInputs[Zone]),\"\",R21+1),\"\")","v":""},{"$f":"VLOOKUP(R22,Table_IntInputs[[Zone]:[Concatenate(Wndw-Sp Type)]],2,FALSE)","v":""},"",{"$f":"IFERROR(IF(Table_IntLookups[[#This Row],[Zone'#]]<>\"\",VLOOKUP(INDEX(Table_IntInputs[],MATCH(Table_IntLookups[[#This Row],[Zone'#]],Table_IntInputs[Zone],0),4),Table_BuildingFactors[#Data],2,FALSE),\"\"),0)","v":""},{"$f":"IFERROR(IF(Table_IntLookups[[#This Row],[Zone'#]]<>\"\",VLOOKUP(INDEX(Table_IntInputs[],MATCH(Table_IntLookups[[#This Row],[Zone'#]],Table_IntInputs[Zone],0),4),Table_BuildingFactors[#Data],3,FALSE),\"\"),0)","v":""},{"$f":"IFERROR(IF(Table_IntLookups[[#This Row],[Zone'#]]<>\"\",VLOOKUP(INDEX(Table_IntInputs[],MATCH(Table_IntLookups[[#This Row],[Zone'#]],Table_IntInputs[Zone],0),4),Table_BuildingFactors[#Data],3,FALSE),\"\"),0)","v":""},{"$f":"IFERROR(IF(Table_IntLookups[[#This Row],[Zone'#]]<>\"\",VLOOKUP(INDEX(Table_IntInputs[],MATCH(Table_IntLookups[[#This Row],[Zone'#]],Table_IntInputs[Zone],0),4),Table_BuildingFactors[#Data],5,FALSE),\"\"),0)","v":""},{"$f":"IFERROR(IF(Table_IntLookups[[#This Row],[Zone'#]]<>\"\",VLOOKUP(INDEX(Table_IntInputs[],MATCH(Table_IntLookups[[#This Row],[Zone'#]],Table_IntInputs[Zone],0),4),Table_BuildingFactors[#Data],6,FALSE),\"\"),0)","v":""},{"$f":"IFERROR(IF(Table_IntLookups[[#This Row],[Zone'#]]<>\"\",VLOOKUP(INDEX(Table_IntInputs[],MATCH(Table_IntLookups[[#This Row],[Zone'#]],Table_IntInputs[Zone],0),4),Table_BuildingFactors[#Data],7,FALSE),\"\"),0)","v":""},{"$f":"IFERROR(IF(Table_IntLookups[[#This Row],[Zone'#]]<>\"\",VLOOKUP(Table_IntLookups[[#This Row],[Description]],INDIRECT(\"Table_BldgArea_\" & IF(FiscalYear=\"FY24\",2013,2016)),4,FALSE),\"\"),0)","v":""},{"$f":"IF($R22=\"\",\"\",SUMIFS(Table_IntInputs[Total Wattage],Table_IntInputs[Zone],$R22))","v":""}]
[{"$f":"IF(OR(Table_IntInputs[[#This Row],[LPD]]=\"\",Table_IntInputs[[#This Row],[Concatenate(Wndw-Sp Type)]]=\"\"),\"\",IF(AND(ISNUMBER(MATCH(Table_IntInputs[[#This Row],[Concatenate(Wndw-Sp Type)]],$B$5:$B22,0))),IF(A22=\"Zone\",1,INDIRECT(\"A\" & MATCH(Table_IntInputs[[#This Row],[Concatenate(Wndw-Sp Type)]],$B$5:$B22,0)+4)),IF(A22=\"Zone\",1,MAX($A$5:$A22)+1)))","v":""},{"$f":"IF(Table_IntInputs[[#This Row],[Space Type]]=\"Exterior\",\"Exterior\",IF(Table_IntInputs[[#This Row],[Space Type]]=\"\",\"\",IF(AND($E$1=\"Building Area\",ISNUMBER(MATCH(Table_IntInputs[[#This Row],[Space Type]],Table_BldgArea_2016[Building Area Type],0))),Table_IntInputs[[#This Row],[Space Type]],CONCATENATE(IF(Table_IntInputs[[#This Row],[Windows?]]=\"\",\"No\",Table_IntInputs[[#This Row],[Windows?]]),\" - \",Table_IntInputs[[#This Row],[Space Type]]))))","v":""},null,null,null,null,null,null,{"$f":"IFERROR(IF(AND($E$1=\"Space-by-Space\",ISNUMBER(FIND(\"Corridor\",Table_IntInputs[[#This Row],[Space Type]],1))),Table_IntInputs[[#This Row],[Width]],2.5*Table_IntInputs[[#This Row],[Perimeter]]*Table_IntInputs[[#This Row],[Room Cavity Height]]/Table_IntInputs[[#This Row],[Area Sq Ft]]),\"\")","v":""},{"$f":"IFERROR(IF(ASHRAEMethod=\"Space-By-Space\",IF(ISNUMBER(FIND(\"Corridor\",Table_IntInputs[[#This Row],[Space Type]],1)),VLOOKUP(Table_IntInputs[[#This Row],[Space Type]],IF(FiscalYear=\"FY25\",SpaceBySpace_2016[],SpaceBySpace_2016[]),5,FALSE),VLOOKUP(Table_IntInputs[[#This Row],[Space Type]],IF(FiscalYear=\"FY25\",SpaceBySpace_2016[],SpaceBySpace_2016[]),4,FALSE)),\"\"),\"\")","v":""},{"$f":"IFERROR(\n    ROUND(IF(AND(ASHRAEMethod=\"Space-By-Space\",Table_IntInputs[[#This Row],[Space Type]]=\"Atrium, above 40ft\"),0.4+Table_IntInputs[[#This Row],[Room Cavity Height]]*0.02,IF(AND(ASHRAEMethod=\"Space-By-Space\",ISNUMBER(FIND(\"Atrium\",Table_IntInputs[[#This Row],[Space Type]],1))),Table_IntInputs[[#This Row],[Room Cavity Height]]*0.03,VLOOKUP(Table_IntInputs[[#This Row],[Space Type]],IF($E$1=\"Space-By-Space\",IF(FiscalYear=\"FY25\",SpaceBySpace_2016[],SpaceBySpace_2016[]),IF(FiscalYear=\"FY25\",Table_BldgArea_2016[],Table_BldgArea_2016[])),2,FALSE)))  *\n        IF(OR(AND($E$1=\"Space-By-Space\",ISNUMBER(FIND(\"Corridor\",Table_IntInputs[[#This Row],[Space Type]],1)),Table_IntInputs[[#This Row],[RCR]]>=Table_IntInputs[[#This Row],[RCR,W_m]]),\n        AND($E$1=\"Space-By-Space\",NOT(ISNUMBER(FIND(\"Corridor\",Table_IntInputs[[#This Row],[Space Type]],1))),Table_IntInputs[[#This Row],[RCR]]>=Table_IntInputs[[#This Row],[RCR,W_m]],Table_IntInputs[[#This Row],[RCR,W_m]]>0)),1.2,1),2)  *\n        IFERROR(IF(ISNUMBER(MATCH(Table_IntInputs[[#This Row],[Space Type]],Table_AddlControl_2016[Facility Type],0)),1+INDEX(Table_AddlControl_2016[#All],MATCH(Table_IntInputs[[#This Row],[Space Type]],Table_AddlControl_2016[[#All],[Facility Type]],0),MATCH(IF(Table_IntInputs[[#This Row],[Additional Controls?]]=\"\",\"None\",Table_IntInputs[[#This Row],[Additional Controls?]]),Table_AddlControl_2016[#Headers],0)),1),1),\"\")","v":""},{"$f":"IFERROR(VLOOKUP(Table_IntInputs[[#This Row],[Space Type]],IF(ASHRAEMethod=\"Space-By-Space\",IF(FiscalYear=\"FY25\",SpaceBySpace_2016[],SpaceBySpace_2016[]),IF(FiscalYear=\"FY25\",Table_BldgArea_2016[],Table_BldgArea_2016[])),3,FALSE),\"\")","v":""},{"$f":"IFERROR(IF(Table_IntInputs[[#This Row],[Space Type]]=\"Exterior\",'Exterior Information'!$J$3,ROUND(IF(Table_IntInputs[[#This Row],[Units]]=\"W/ft2\",Table_IntInputs[[#This Row],[Area Sq Ft]]*Table_IntInputs[[#This Row],[LPD]],Table_IntInputs[[#This Row],[Area Sq Ft]]*Table_IntInputs[[#This Row],[Room Cavity Height]]*Table_IntInputs[[#This Row],[LPD]]),2)),\"\")","v":""},{"$f":"IFERROR(IF(AND(Table_IntInputs[[#This Row],[Windows?]]=\"No\",VLOOKUP(Table_IntInputs[[#This Row],[Space Type]],IF(FiscalYear=\"FY24\",SpaceBySpace_2016[],SpaceBySpace_2016[]),6,FALSE)=\"Occ + DL\"),\"Occ\",IF(AND(Table_IntInputs[[#This Row],[Windows?]]=\"No\",VLOOKUP(Table_IntInputs[[#This Row],[Space Type]],IF(FiscalYear=\"FY24\",SpaceBySpace_2016[],SpaceBySpace_2016[]),6,FALSE)=\"DL\"),\"\",VLOOKUP(Table_IntInputs[[#This Row],[Space Type]],IF(FiscalYear=\"FY24\",SpaceBySpace_2016[],SpaceBySpace_2016[]),6,FALSE))),\"\")","v":""},null,null,null,{"$f":"IFERROR(IF(R22+1>MAX(Table_IntInputs[Zone]),\"\",R22+1),\"\")","v":""},{"$f":"VLOOKUP(R23,Table_IntInputs[[Zone]:[Concatenate(Wndw-Sp Type)]],2,FALSE)","v":""},"",{"$f":"IFERROR(IF(Table_IntLookups[[#This Row],[Zone'#]]<>\"\",VLOOKUP(INDEX(Table_IntInputs[],MATCH(Table_IntLookups[[#This Row],[Zone'#]],Table_IntInputs[Zone],0),4),Table_BuildingFactors[#Data],2,FALSE),\"\"),0)","v":""},{"$f":"IFERROR(IF(Table_IntLookups[[#This Row],[Zone'#]]<>\"\",VLOOKUP(INDEX(Table_IntInputs[],MATCH(Table_IntLookups[[#This Row],[Zone'#]],Table_IntInputs[Zone],0),4),Table_BuildingFactors[#Data],3,FALSE),\"\"),0)","v":""},{"$f":"IFERROR(IF(Table_IntLookups[[#This Row],[Zone'#]]<>\"\",VLOOKUP(INDEX(Table_IntInputs[],MATCH(Table_IntLookups[[#This Row],[Zone'#]],Table_IntInputs[Zone],0),4),Table_BuildingFactors[#Data],3,FALSE),\"\"),0)","v":""},{"$f":"IFERROR(IF(Table_IntLookups[[#This Row],[Zone'#]]<>\"\",VLOOKUP(INDEX(Table_IntInputs[],MATCH(Table_IntLookups[[#This Row],[Zone'#]],Table_IntInputs[Zone],0),4),Table_BuildingFactors[#Data],5,FALSE),\"\"),0)","v":""},{"$f":"IFERROR(IF(Table_IntLookups[[#This Row],[Zone'#]]<>\"\",VLOOKUP(INDEX(Table_IntInputs[],MATCH(Table_IntLookups[[#This Row],[Zone'#]],Table_IntInputs[Zone],0),4),Table_BuildingFactors[#Data],6,FALSE),\"\"),0)","v":""},{"$f":"IFERROR(IF(Table_IntLookups[[#This Row],[Zone'#]]<>\"\",VLOOKUP(INDEX(Table_IntInputs[],MATCH(Table_IntLookups[[#This Row],[Zone'#]],Table_IntInputs[Zone],0),4),Table_BuildingFactors[#Data],7,FALSE),\"\"),0)","v":""},{"$f":"IFERROR(IF(Table_IntLookups[[#This Row],[Zone'#]]<>\"\",VLOOKUP(Table_IntLookups[[#This Row],[Description]],INDIRECT(\"Table_BldgArea_\" & IF(FiscalYear=\"FY24\",2013,2016)),4,FALSE),\"\"),0)","v":""},{"$f":"IF($R23=\"\",\"\",SUMIFS(Table_IntInputs[Total Wattage],Table_IntInputs[Zone],$R23))","v":""}]
[{"$f":"IF(OR(Table_IntInputs[[#This Row],[LPD]]=\"\",Table_IntInputs[[#This Row],[Concatenate(Wndw-Sp Type)]]=\"\"),\"\",IF(AND(ISNUMBER(MATCH(Table_IntInputs[[#This Row],[Concatenate(Wndw-Sp Type)]],$B$5:$B23,0))),IF(A23=\"Zone\",1,INDIRECT(\"A\" & MATCH(Table_IntInputs[[#This Row],[Concatenate(Wndw-Sp Type)]],$B$5:$B23,0)+4)),IF(A23=\"Zone\",1,MAX($A$5:$A23)+1)))","v":""},{"$f":"IF(Table_IntInputs[[#This Row],[Space Type]]=\"Exterior\",\"Exterior\",IF(Table_IntInputs[[#This Row],[Space Type]]=\"\",\"\",IF(AND($E$1=\"Building Area\",ISNUMBER(MATCH(Table_IntInputs[[#This Row],[Space Type]],Table_BldgArea_2016[Building Area Type],0))),Table_IntInputs[[#This Row],[Space Type]],CONCATENATE(IF(Table_IntInputs[[#This Row],[Windows?]]=\"\",\"No\",Table_IntInputs[[#This Row],[Windows?]]),\" - \",Table_IntInputs[[#This Row],[Space Type]]))))","v":""},null,null,null,null,null,null,{"$f":"IFERROR(IF(AND($E$1=\"Space-by-Space\",ISNUMBER(FIND(\"Corridor\",Table_IntInputs[[#This Row],[Space Type]],1))),Table_IntInputs[[#This Row],[Width]],2.5*Table_IntInputs[[#This Row],[Perimeter]]*Table_IntInputs[[#This Row],[Room Cavity Height]]/Table_IntInputs[[#This Row],[Area Sq Ft]]),\"\")","v":""},{"$f":"IFERROR(IF(ASHRAEMethod=\"Space-By-Space\",IF(ISNUMBER(FIND(\"Corridor\",Table_IntInputs[[#This Row],[Space Type]],1)),VLOOKUP(Table_IntInputs[[#This Row],[Space Type]],IF(FiscalYear=\"FY25\",SpaceBySpace_2016[],SpaceBySpace_2016[]),5,FALSE),VLOOKUP(Table_IntInputs[[#This Row],[Space Type]],IF(FiscalYear=\"FY25\",SpaceBySpace_2016[],SpaceBySpace_2016[]),4,FALSE)),\"\"),\"\")","v":""},{"$f":"IFERROR(\n    ROUND(IF(AND(ASHRAEMethod=\"Space-By-Space\",Table_IntInputs[[#This Row],[Space Type]]=\"Atrium, above 40ft\"),0.4+Table_IntInputs[[#This Row],[Room Cavity Height]]*0.02,IF(AND(ASHRAEMethod=\"Space-By-Space\",ISNUMBER(FIND(\"Atrium\",Table_IntInputs[[#This Row],[Space Type]],1))),Table_IntInputs[[#This Row],[Room Cavity Height]]*0.03,VLOOKUP(Table_IntInputs[[#This Row],[Space Type]],IF($E$1=\"Space-By-Space\",IF(FiscalYear=\"FY25\",SpaceBySpace_2016[],SpaceBySpace_2016[]),IF(FiscalYear=\"FY25\",Table_BldgArea_2016[],Table_BldgArea_2016[])),2,FALSE)))  *\n        IF(OR(AND($E$1=\"Space-By-Space\",ISNUMBER(FIND(\"Corridor\",Table_IntInputs[[#This Row],[Space Type]],1)),Table_IntInputs[[#This Row],[RCR]]>=Table_IntInputs[[#This Row],[RCR,W_m]]),\n        AND($E$1=\"Space-By-Space\",NOT(ISNUMBER(FIND(\"Corridor\",Table_IntInputs[[#This Row],[Space Type]],1))),Table_IntInputs[[#This Row],[RCR]]>=Table_IntInputs[[#This Row],[RCR,W_m]],Table_IntInputs[[#This Row],[RCR,W_m]]>0)),1.2,1),2)  *\n        IFERROR(IF(ISNUMBER(MATCH(Table_IntInputs[[#This Row],[Space Type]],Table_AddlControl_2016[Facility Type],0)),1+INDEX(Table_AddlControl_2016[#All],MATCH(Table_IntInputs[[#This Row],[Space Type]],Table_AddlControl_2016[[#All],[Facility Type]],0),MATCH(IF(Table_IntInputs[[#This Row],[Additional Controls?]]=\"\",\"None\",Table_IntInputs[[#This Row],[Additional Controls?]]),Table_AddlControl_2016[#Headers],0)),1),1),\"\")","v":""},{"$f":"IFERROR(VLOOKUP(Table_IntInputs[[#This Row],[Space Type]],IF(ASHRAEMethod=\"Space-By-Space\",IF(FiscalYear=\"FY25\",SpaceBySpace_2016[],SpaceBySpace_2016[]),IF(FiscalYear=\"FY25\",Table_BldgArea_2016[],Table_BldgArea_2016[])),3,FALSE),\"\")","v":""},{"$f":"IFERROR(IF(Table_IntInputs[[#This Row],[Space Type]]=\"Exterior\",'Exterior Information'!$J$3,ROUND(IF(Table_IntInputs[[#This Row],[Units]]=\"W/ft2\",Table_IntInputs[[#This Row],[Area Sq Ft]]*Table_IntInputs[[#This Row],[LPD]],Table_IntInputs[[#This Row],[Area Sq Ft]]*Table_IntInputs[[#This Row],[Room Cavity Height]]*Table_IntInputs[[#This Row],[LPD]]),2)),\"\")","v":""},{"$f":"IFERROR(IF(AND(Table_IntInputs[[#This Row],[Windows?]]=\"No\",VLOOKUP(Table_IntInputs[[#This Row],[Space Type]],IF(FiscalYear=\"FY24\",SpaceBySpace_2016[],SpaceBySpace_2016[]),6,FALSE)=\"Occ + DL\"),\"Occ\",IF(AND(Table_IntInputs[[#This Row],[Windows?]]=\"No\",VLOOKUP(Table_IntInputs[[#This Row],[Space Type]],IF(FiscalYear=\"FY24\",SpaceBySpace_2016[],SpaceBySpace_2016[]),6,FALSE)=\"DL\"),\"\",VLOOKUP(Table_IntInputs[[#This Row],[Space Type]],IF(FiscalYear=\"FY24\",SpaceBySpace_2016[],SpaceBySpace_2016[]),6,FALSE))),\"\")","v":""},null,null,null,{"$f":"IFERROR(IF(R23+1>MAX(Table_IntInputs[Zone]),\"\",R23+1),\"\")","v":""},{"$f":"VLOOKUP(R24,Table_IntInputs[[Zone]:[Concatenate(Wndw-Sp Type)]],2,FALSE)","v":""},"",{"$f":"IFERROR(IF(Table_IntLookups[[#This Row],[Zone'#]]<>\"\",VLOOKUP(INDEX(Table_IntInputs[],MATCH(Table_IntLookups[[#This Row],[Zone'#]],Table_IntInputs[Zone],0),4),Table_BuildingFactors[#Data],2,FALSE),\"\"),0)","v":""},{"$f":"IFERROR(IF(Table_IntLookups[[#This Row],[Zone'#]]<>\"\",VLOOKUP(INDEX(Table_IntInputs[],MATCH(Table_IntLookups[[#This Row],[Zone'#]],Table_IntInputs[Zone],0),4),Table_BuildingFactors[#Data],3,FALSE),\"\"),0)","v":""},{"$f":"IFERROR(IF(Table_IntLookups[[#This Row],[Zone'#]]<>\"\",VLOOKUP(INDEX(Table_IntInputs[],MATCH(Table_IntLookups[[#This Row],[Zone'#]],Table_IntInputs[Zone],0),4),Table_BuildingFactors[#Data],3,FALSE),\"\"),0)","v":""},{"$f":"IFERROR(IF(Table_IntLookups[[#This Row],[Zone'#]]<>\"\",VLOOKUP(INDEX(Table_IntInputs[],MATCH(Table_IntLookups[[#This Row],[Zone'#]],Table_IntInputs[Zone],0),4),Table_BuildingFactors[#Data],5,FALSE),\"\"),0)","v":""},{"$f":"IFERROR(IF(Table_IntLookups[[#This Row],[Zone'#]]<>\"\",VLOOKUP(INDEX(Table_IntInputs[],MATCH(Table_IntLookups[[#This Row],[Zone'#]],Table_IntInputs[Zone],0),4),Table_BuildingFactors[#Data],6,FALSE),\"\"),0)","v":""},{"$f":"IFERROR(IF(Table_IntLookups[[#This Row],[Zone'#]]<>\"\",VLOOKUP(INDEX(Table_IntInputs[],MATCH(Table_IntLookups[[#This Row],[Zone'#]],Table_IntInputs[Zone],0),4),Table_BuildingFactors[#Data],7,FALSE),\"\"),0)","v":""},{"$f":"IFERROR(IF(Table_IntLookups[[#This Row],[Zone'#]]<>\"\",VLOOKUP(Table_IntLookups[[#This Row],[Description]],INDIRECT(\"Table_BldgArea_\" & IF(FiscalYear=\"FY24\",2013,2016)),4,FALSE),\"\"),0)","v":""},{"$f":"IF($R24=\"\",\"\",SUMIFS(Table_IntInputs[Total Wattage],Table_IntInputs[Zone],$R24))","v":""}]
[{"$f":"IF(OR(Table_IntInputs[[#This Row],[LPD]]=\"\",Table_IntInputs[[#This Row],[Concatenate(Wndw-Sp Type)]]=\"\"),\"\",IF(AND(ISNUMBER(MATCH(Table_IntInputs[[#This Row],[Concatenate(Wndw-Sp Type)]],$B$5:$B24,0))),IF(A24=\"Zone\",1,INDIRECT(\"A\" & MATCH(Table_IntInputs[[#This Row],[Concatenate(Wndw-Sp Type)]],$B$5:$B24,0)+4)),IF(A24=\"Zone\",1,MAX($A$5:$A24)+1)))","v":""},{"$f":"IF(Table_IntInputs[[#This Row],[Space Type]]=\"Exterior\",\"Exterior\",IF(Table_IntInputs[[#This Row],[Space Type]]=\"\",\"\",IF(AND($E$1=\"Building Area\",ISNUMBER(MATCH(Table_IntInputs[[#This Row],[Space Type]],Table_BldgArea_2016[Building Area Type],0))),Table_IntInputs[[#This Row],[Space Type]],CONCATENATE(IF(Table_IntInputs[[#This Row],[Windows?]]=\"\",\"No\",Table_IntInputs[[#This Row],[Windows?]]),\" - \",Table_IntInputs[[#This Row],[Space Type]]))))","v":""},null,null,null,null,null,null,{"$f":"IFERROR(IF(AND($E$1=\"Space-by-Space\",ISNUMBER(FIND(\"Corridor\",Table_IntInputs[[#This Row],[Space Type]],1))),Table_IntInputs[[#This Row],[Width]],2.5*Table_IntInputs[[#This Row],[Perimeter]]*Table_IntInputs[[#This Row],[Room Cavity Height]]/Table_IntInputs[[#This Row],[Area Sq Ft]]),\"\")","v":""},{"$f":"IFERROR(IF(ASHRAEMethod=\"Space-By-Space\",IF(ISNUMBER(FIND(\"Corridor\",Table_IntInputs[[#This Row],[Space Type]],1)),VLOOKUP(Table_IntInputs[[#This Row],[Space Type]],IF(FiscalYear=\"FY25\",SpaceBySpace_2016[],SpaceBySpace_2016[]),5,FALSE),VLOOKUP(Table_IntInputs[[#This Row],[Space Type]],IF(FiscalYear=\"FY25\",SpaceBySpace_2016[],SpaceBySpace_2016[]),4,FALSE)),\"\"),\"\")","v":""},{"$f":"IFERROR(\n    ROUND(IF(AND(ASHRAEMethod=\"Space-By-Space\",Table_IntInputs[[#This Row],[Space Type]]=\"Atrium, above 40ft\"),0.4+Table_IntInputs[[#This Row],[Room Cavity Height]]*0.02,IF(AND(ASHRAEMethod=\"Space-By-Space\",ISNUMBER(FIND(\"Atrium\",Table_IntInputs[[#This Row],[Space Type]],1))),Table_IntInputs[[#This Row],[Room Cavity Height]]*0.03,VLOOKUP(Table_IntInputs[[#This Row],[Space Type]],IF($E$1=\"Space-By-Space\",IF(FiscalYear=\"FY25\",SpaceBySpace_2016[],SpaceBySpace_2016[]),IF(FiscalYear=\"FY25\",Table_BldgArea_2016[],Table_BldgArea_2016[])),2,FALSE)))  *\n        IF(OR(AND($E$1=\"Space-By-Space\",ISNUMBER(FIND(\"Corridor\",Table_IntInputs[[#This Row],[Space Type]],1)),Table_IntInputs[[#This Row],[RCR]]>=Table_IntInputs[[#This Row],[RCR,W_m]]),\n        AND($E$1=\"Space-By-Space\",NOT(ISNUMBER(FIND(\"Corridor\",Table_IntInputs[[#This Row],[Space Type]],1))),Table_IntInputs[[#This Row],[RCR]]>=Table_IntInputs[[#This Row],[RCR,W_m]],Table_IntInputs[[#This Row],[RCR,W_m]]>0)),1.2,1),2)  *\n        IFERROR(IF(ISNUMBER(MATCH(Table_IntInputs[[#This Row],[Space Type]],Table_AddlControl_2016[Facility Type],0)),1+INDEX(Table_AddlControl_2016[#All],MATCH(Table_IntInputs[[#This Row],[Space Type]],Table_AddlControl_2016[[#All],[Facility Type]],0),MATCH(IF(Table_IntInputs[[#This Row],[Additional Controls?]]=\"\",\"None\",Table_IntInputs[[#This Row],[Additional Controls?]]),Table_AddlControl_2016[#Headers],0)),1),1),\"\")","v":""},{"$f":"IFERROR(VLOOKUP(Table_IntInputs[[#This Row],[Space Type]],IF(ASHRAEMethod=\"Space-By-Space\",IF(FiscalYear=\"FY25\",SpaceBySpace_2016[],SpaceBySpace_2016[]),IF(FiscalYear=\"FY25\",Table_BldgArea_2016[],Table_BldgArea_2016[])),3,FALSE),\"\")","v":""},{"$f":"IFERROR(IF(Table_IntInputs[[#This Row],[Space Type]]=\"Exterior\",'Exterior Information'!$J$3,ROUND(IF(Table_IntInputs[[#This Row],[Units]]=\"W/ft2\",Table_IntInputs[[#This Row],[Area Sq Ft]]*Table_IntInputs[[#This Row],[LPD]],Table_IntInputs[[#This Row],[Area Sq Ft]]*Table_IntInputs[[#This Row],[Room Cavity Height]]*Table_IntInputs[[#This Row],[LPD]]),2)),\"\")","v":""},{"$f":"IFERROR(IF(AND(Table_IntInputs[[#This Row],[Windows?]]=\"No\",VLOOKUP(Table_IntInputs[[#This Row],[Space Type]],IF(FiscalYear=\"FY24\",SpaceBySpace_2016[],SpaceBySpace_2016[]),6,FALSE)=\"Occ + DL\"),\"Occ\",IF(AND(Table_IntInputs[[#This Row],[Windows?]]=\"No\",VLOOKUP(Table_IntInputs[[#This Row],[Space Type]],IF(FiscalYear=\"FY24\",SpaceBySpace_2016[],SpaceBySpace_2016[]),6,FALSE)=\"DL\"),\"\",VLOOKUP(Table_IntInputs[[#This Row],[Space Type]],IF(FiscalYear=\"FY24\",SpaceBySpace_2016[],SpaceBySpace_2016[]),6,FALSE))),\"\")","v":""},null,null,null,{"$f":"IFERROR(IF(R24+1>MAX(Table_IntInputs[Zone]),\"\",R24+1),\"\")","v":""},{"$f":"VLOOKUP(R25,Table_IntInputs[[Zone]:[Concatenate(Wndw-Sp Type)]],2,FALSE)","v":""},"",{"$f":"IFERROR(IF(Table_IntLookups[[#This Row],[Zone'#]]<>\"\",VLOOKUP(INDEX(Table_IntInputs[],MATCH(Table_IntLookups[[#This Row],[Zone'#]],Table_IntInputs[Zone],0),4),Table_BuildingFactors[#Data],2,FALSE),\"\"),0)","v":""},{"$f":"IFERROR(IF(Table_IntLookups[[#This Row],[Zone'#]]<>\"\",VLOOKUP(INDEX(Table_IntInputs[],MATCH(Table_IntLookups[[#This Row],[Zone'#]],Table_IntInputs[Zone],0),4),Table_BuildingFactors[#Data],3,FALSE),\"\"),0)","v":""},{"$f":"IFERROR(IF(Table_IntLookups[[#This Row],[Zone'#]]<>\"\",VLOOKUP(INDEX(Table_IntInputs[],MATCH(Table_IntLookups[[#This Row],[Zone'#]],Table_IntInputs[Zone],0),4),Table_BuildingFactors[#Data],3,FALSE),\"\"),0)","v":""},{"$f":"IFERROR(IF(Table_IntLookups[[#This Row],[Zone'#]]<>\"\",VLOOKUP(INDEX(Table_IntInputs[],MATCH(Table_IntLookups[[#This Row],[Zone'#]],Table_IntInputs[Zone],0),4),Table_BuildingFactors[#Data],5,FALSE),\"\"),0)","v":""},{"$f":"IFERROR(IF(Table_IntLookups[[#This Row],[Zone'#]]<>\"\",VLOOKUP(INDEX(Table_IntInputs[],MATCH(Table_IntLookups[[#This Row],[Zone'#]],Table_IntInputs[Zone],0),4),Table_BuildingFactors[#Data],6,FALSE),\"\"),0)","v":""},{"$f":"IFERROR(IF(Table_IntLookups[[#This Row],[Zone'#]]<>\"\",VLOOKUP(INDEX(Table_IntInputs[],MATCH(Table_IntLookups[[#This Row],[Zone'#]],Table_IntInputs[Zone],0),4),Table_BuildingFactors[#Data],7,FALSE),\"\"),0)","v":""},{"$f":"IFERROR(IF(Table_IntLookups[[#This Row],[Zone'#]]<>\"\",VLOOKUP(Table_IntLookups[[#This Row],[Description]],INDIRECT(\"Table_BldgArea_\" & IF(FiscalYear=\"FY24\",2013,2016)),4,FALSE),\"\"),0)","v":""},{"$f":"IF($R25=\"\",\"\",SUMIFS(Table_IntInputs[Total Wattage],Table_IntInputs[Zone],$R25))","v":""}]
[{"$f":"IF(OR(Table_IntInputs[[#This Row],[LPD]]=\"\",Table_IntInputs[[#This Row],[Concatenate(Wndw-Sp Type)]]=\"\"),\"\",IF(AND(ISNUMBER(MATCH(Table_IntInputs[[#This Row],[Concatenate(Wndw-Sp Type)]],$B$5:$B25,0))),IF(A25=\"Zone\",1,INDIRECT(\"A\" & MATCH(Table_IntInputs[[#This Row],[Concatenate(Wndw-Sp Type)]],$B$5:$B25,0)+4)),IF(A25=\"Zone\",1,MAX($A$5:$A25)+1)))","v":""},{"$f":"IF(Table_IntInputs[[#This Row],[Space Type]]=\"Exterior\",\"Exterior\",IF(Table_IntInputs[[#This Row],[Space Type]]=\"\",\"\",IF(AND($E$1=\"Building Area\",ISNUMBER(MATCH(Table_IntInputs[[#This Row],[Space Type]],Table_BldgArea_2016[Building Area Type],0))),Table_IntInputs[[#This Row],[Space Type]],CONCATENATE(IF(Table_IntInputs[[#This Row],[Windows?]]=\"\",\"No\",Table_IntInputs[[#This Row],[Windows?]]),\" - \",Table_IntInputs[[#This Row],[Space Type]]))))","v":""},null,null,null,null,null,null,{"$f":"IFERROR(IF(AND($E$1=\"Space-by-Space\",ISNUMBER(FIND(\"Corridor\",Table_IntInputs[[#This Row],[Space Type]],1))),Table_IntInputs[[#This Row],[Width]],2.5*Table_IntInputs[[#This Row],[Perimeter]]*Table_IntInputs[[#This Row],[Room Cavity Height]]/Table_IntInputs[[#This Row],[Area Sq Ft]]),\"\")","v":""},{"$f":"IFERROR(IF(ASHRAEMethod=\"Space-By-Space\",IF(ISNUMBER(FIND(\"Corridor\",Table_IntInputs[[#This Row],[Space Type]],1)),VLOOKUP(Table_IntInputs[[#This Row],[Space Type]],IF(FiscalYear=\"FY25\",SpaceBySpace_2016[],SpaceBySpace_2016[]),5,FALSE),VLOOKUP(Table_IntInputs[[#This Row],[Space Type]],IF(FiscalYear=\"FY25\",SpaceBySpace_2016[],SpaceBySpace_2016[]),4,FALSE)),\"\"),\"\")","v":""},{"$f":"IFERROR(\n    ROUND(IF(AND(ASHRAEMethod=\"Space-By-Space\",Table_IntInputs[[#This Row],[Space Type]]=\"Atrium, above 40ft\"),0.4+Table_IntInputs[[#This Row],[Room Cavity Height]]*0.02,IF(AND(ASHRAEMethod=\"Space-By-Space\",ISNUMBER(FIND(\"Atrium\",Table_IntInputs[[#This Row],[Space Type]],1))),Table_IntInputs[[#This Row],[Room Cavity Height]]*0.03,VLOOKUP(Table_IntInputs[[#This Row],[Space Type]],IF($E$1=\"Space-By-Space\",IF(FiscalYear=\"FY25\",SpaceBySpace_2016[],SpaceBySpace_2016[]),IF(FiscalYear=\"FY25\",Table_BldgArea_2016[],Table_BldgArea_2016[])),2,FALSE)))  *\n        IF(OR(AND($E$1=\"Space-By-Space\",ISNUMBER(FIND(\"Corridor\",Table_IntInputs[[#This Row],[Space Type]],1)),Table_IntInputs[[#This Row],[RCR]]>=Table_IntInputs[[#This Row],[RCR,W_m]]),\n        AND($E$1=\"Space-By-Space\",NOT(ISNUMBER(FIND(\"Corridor\",Table_IntInputs[[#This Row],[Space Type]],1))),Table_IntInputs[[#This Row],[RCR]]>=Table_IntInputs[[#This Row],[RCR,W_m]],Table_IntInputs[[#This Row],[RCR,W_m]]>0)),1.2,1),2)  *\n        IFERROR(IF(ISNUMBER(MATCH(Table_IntInputs[[#This Row],[Space Type]],Table_AddlControl_2016[Facility Type],0)),1+INDEX(Table_AddlControl_2016[#All],MATCH(Table_IntInputs[[#This Row],[Space Type]],Table_AddlControl_2016[[#All],[Facility Type]],0),MATCH(IF(Table_IntInputs[[#This Row],[Additional Controls?]]=\"\",\"None\",Table_IntInputs[[#This Row],[Additional Controls?]]),Table_AddlControl_2016[#Headers],0)),1),1),\"\")","v":""},{"$f":"IFERROR(VLOOKUP(Table_IntInputs[[#This Row],[Space Type]],IF(ASHRAEMethod=\"Space-By-Space\",IF(FiscalYear=\"FY25\",SpaceBySpace_2016[],SpaceBySpace_2016[]),IF(FiscalYear=\"FY25\",Table_BldgArea_2016[],Table_BldgArea_2016[])),3,FALSE),\"\")","v":""},{"$f":"IFERROR(IF(Table_IntInputs[[#This Row],[Space Type]]=\"Exterior\",'Exterior Information'!$J$3,ROUND(IF(Table_IntInputs[[#This Row],[Units]]=\"W/ft2\",Table_IntInputs[[#This Row],[Area Sq Ft]]*Table_IntInputs[[#This Row],[LPD]],Table_IntInputs[[#This Row],[Area Sq Ft]]*Table_IntInputs[[#This Row],[Room Cavity Height]]*Table_IntInputs[[#This Row],[LPD]]),2)),\"\")","v":""},{"$f":"IFERROR(IF(AND(Table_IntInputs[[#This Row],[Windows?]]=\"No\",VLOOKUP(Table_IntInputs[[#This Row],[Space Type]],IF(FiscalYear=\"FY24\",SpaceBySpace_2016[],SpaceBySpace_2016[]),6,FALSE)=\"Occ + DL\"),\"Occ\",IF(AND(Table_IntInputs[[#This Row],[Windows?]]=\"No\",VLOOKUP(Table_IntInputs[[#This Row],[Space Type]],IF(FiscalYear=\"FY24\",SpaceBySpace_2016[],SpaceBySpace_2016[]),6,FALSE)=\"DL\"),\"\",VLOOKUP(Table_IntInputs[[#This Row],[Space Type]],IF(FiscalYear=\"FY24\",SpaceBySpace_2016[],SpaceBySpace_2016[]),6,FALSE))),\"\")","v":""},null,null,null,{"$f":"IFERROR(IF(R25+1>MAX(Table_IntInputs[Zone]),\"\",R25+1),\"\")","v":""},{"$f":"VLOOKUP(R26,Table_IntInputs[[Zone]:[Concatenate(Wndw-Sp Type)]],2,FALSE)","v":""},"",{"$f":"IFERROR(IF(Table_IntLookups[[#This Row],[Zone'#]]<>\"\",VLOOKUP(INDEX(Table_IntInputs[],MATCH(Table_IntLookups[[#This Row],[Zone'#]],Table_IntInputs[Zone],0),4),Table_BuildingFactors[#Data],2,FALSE),\"\"),0)","v":""},{"$f":"IFERROR(IF(Table_IntLookups[[#This Row],[Zone'#]]<>\"\",VLOOKUP(INDEX(Table_IntInputs[],MATCH(Table_IntLookups[[#This Row],[Zone'#]],Table_IntInputs[Zone],0),4),Table_BuildingFactors[#Data],3,FALSE),\"\"),0)","v":""},{"$f":"IFERROR(IF(Table_IntLookups[[#This Row],[Zone'#]]<>\"\",VLOOKUP(INDEX(Table_IntInputs[],MATCH(Table_IntLookups[[#This Row],[Zone'#]],Table_IntInputs[Zone],0),4),Table_BuildingFactors[#Data],3,FALSE),\"\"),0)","v":""},{"$f":"IFERROR(IF(Table_IntLookups[[#This Row],[Zone'#]]<>\"\",VLOOKUP(INDEX(Table_IntInputs[],MATCH(Table_IntLookups[[#This Row],[Zone'#]],Table_IntInputs[Zone],0),4),Table_BuildingFactors[#Data],5,FALSE),\"\"),0)","v":""},{"$f":"IFERROR(IF(Table_IntLookups[[#This Row],[Zone'#]]<>\"\",VLOOKUP(INDEX(Table_IntInputs[],MATCH(Table_IntLookups[[#This Row],[Zone'#]],Table_IntInputs[Zone],0),4),Table_BuildingFactors[#Data],6,FALSE),\"\"),0)","v":""},{"$f":"IFERROR(IF(Table_IntLookups[[#This Row],[Zone'#]]<>\"\",VLOOKUP(INDEX(Table_IntInputs[],MATCH(Table_IntLookups[[#This Row],[Zone'#]],Table_IntInputs[Zone],0),4),Table_BuildingFactors[#Data],7,FALSE),\"\"),0)","v":""},{"$f":"IFERROR(IF(Table_IntLookups[[#This Row],[Zone'#]]<>\"\",VLOOKUP(Table_IntLookups[[#This Row],[Description]],INDIRECT(\"Table_BldgArea_\" & IF(FiscalYear=\"FY24\",2013,2016)),4,FALSE),\"\"),0)","v":""},{"$f":"IF($R26=\"\",\"\",SUMIFS(Table_IntInputs[Total Wattage],Table_IntInputs[Zone],$R26))","v":""}]
[{"$f":"IF(OR(Table_IntInputs[[#This Row],[LPD]]=\"\",Table_IntInputs[[#This Row],[Concatenate(Wndw-Sp Type)]]=\"\"),\"\",IF(AND(ISNUMBER(MATCH(Table_IntInputs[[#This Row],[Concatenate(Wndw-Sp Type)]],$B$5:$B26,0))),IF(A26=\"Zone\",1,INDIRECT(\"A\" & MATCH(Table_IntInputs[[#This Row],[Concatenate(Wndw-Sp Type)]],$B$5:$B26,0)+4)),IF(A26=\"Zone\",1,MAX($A$5:$A26)+1)))","v":""},{"$f":"IF(Table_IntInputs[[#This Row],[Space Type]]=\"Exterior\",\"Exterior\",IF(Table_IntInputs[[#This Row],[Space Type]]=\"\",\"\",IF(AND($E$1=\"Building Area\",ISNUMBER(MATCH(Table_IntInputs[[#This Row],[Space Type]],Table_BldgArea_2016[Building Area Type],0))),Table_IntInputs[[#This Row],[Space Type]],CONCATENATE(IF(Table_IntInputs[[#This Row],[Windows?]]=\"\",\"No\",Table_IntInputs[[#This Row],[Windows?]]),\" - \",Table_IntInputs[[#This Row],[Space Type]]))))","v":""},null,null,null,null,null,null,{"$f":"IFERROR(IF(AND($E$1=\"Space-by-Space\",ISNUMBER(FIND(\"Corridor\",Table_IntInputs[[#This Row],[Space Type]],1))),Table_IntInputs[[#This Row],[Width]],2.5*Table_IntInputs[[#This Row],[Perimeter]]*Table_IntInputs[[#This Row],[Room Cavity Height]]/Table_IntInputs[[#This Row],[Area Sq Ft]]),\"\")","v":""},{"$f":"IFERROR(IF(ASHRAEMethod=\"Space-By-Space\",IF(ISNUMBER(FIND(\"Corridor\",Table_IntInputs[[#This Row],[Space Type]],1)),VLOOKUP(Table_IntInputs[[#This Row],[Space Type]],IF(FiscalYear=\"FY25\",SpaceBySpace_2016[],SpaceBySpace_2016[]),5,FALSE),VLOOKUP(Table_IntInputs[[#This Row],[Space Type]],IF(FiscalYear=\"FY25\",SpaceBySpace_2016[],SpaceBySpace_2016[]),4,FALSE)),\"\"),\"\")","v":""},{"$f":"IFERROR(\n    ROUND(IF(AND(ASHRAEMethod=\"Space-By-Space\",Table_IntInputs[[#This Row],[Space Type]]=\"Atrium, above 40ft\"),0.4+Table_IntInputs[[#This Row],[Room Cavity Height]]*0.02,IF(AND(ASHRAEMethod=\"Space-By-Space\",ISNUMBER(FIND(\"Atrium\",Table_IntInputs[[#This Row],[Space Type]],1))),Table_IntInputs[[#This Row],[Room Cavity Height]]*0.03,VLOOKUP(Table_IntInputs[[#This Row],[Space Type]],IF($E$1=\"Space-By-Space\",IF(FiscalYear=\"FY25\",SpaceBySpace_2016[],SpaceBySpace_2016[]),IF(FiscalYear=\"FY25\",Table_BldgArea_2016[],Table_BldgArea_2016[])),2,FALSE)))  *\n        IF(OR(AND($E$1=\"Space-By-Space\",ISNUMBER(FIND(\"Corridor\",Table_IntInputs[[#This Row],[Space Type]],1)),Table_IntInputs[[#This Row],[RCR]]>=Table_IntInputs[[#This Row],[RCR,W_m]]),\n        AND($E$1=\"Space-By-Space\",NOT(ISNUMBER(FIND(\"Corridor\",Table_IntInputs[[#This Row],[Space Type]],1))),Table_IntInputs[[#This Row],[RCR]]>=Table_IntInputs[[#This Row],[RCR,W_m]],Table_IntInputs[[#This Row],[RCR,W_m]]>0)),1.2,1),2)  *\n        IFERROR(IF(ISNUMBER(MATCH(Table_IntInputs[[#This Row],[Space Type]],Table_AddlControl_2016[Facility Type],0)),1+INDEX(Table_AddlControl_2016[#All],MATCH(Table_IntInputs[[#This Row],[Space Type]],Table_AddlControl_2016[[#All],[Facility Type]],0),MATCH(IF(Table_IntInputs[[#This Row],[Additional Controls?]]=\"\",\"None\",Table_IntInputs[[#This Row],[Additional Controls?]]),Table_AddlControl_2016[#Headers],0)),1),1),\"\")","v":""},{"$f":"IFERROR(VLOOKUP(Table_IntInputs[[#This Row],[Space Type]],IF(ASHRAEMethod=\"Space-By-Space\",IF(FiscalYear=\"FY25\",SpaceBySpace_2016[],SpaceBySpace_2016[]),IF(FiscalYear=\"FY25\",Table_BldgArea_2016[],Table_BldgArea_2016[])),3,FALSE),\"\")","v":""},{"$f":"IFERROR(IF(Table_IntInputs[[#This Row],[Space Type]]=\"Exterior\",'Exterior Information'!$J$3,ROUND(IF(Table_IntInputs[[#This Row],[Units]]=\"W/ft2\",Table_IntInputs[[#This Row],[Area Sq Ft]]*Table_IntInputs[[#This Row],[LPD]],Table_IntInputs[[#This Row],[Area Sq Ft]]*Table_IntInputs[[#This Row],[Room Cavity Height]]*Table_IntInputs[[#This Row],[LPD]]),2)),\"\")","v":""},{"$f":"IFERROR(IF(AND(Table_IntInputs[[#This Row],[Windows?]]=\"No\",VLOOKUP(Table_IntInputs[[#This Row],[Space Type]],IF(FiscalYear=\"FY24\",SpaceBySpace_2016[],SpaceBySpace_2016[]),6,FALSE)=\"Occ + DL\"),\"Occ\",IF(AND(Table_IntInputs[[#This Row],[Windows?]]=\"No\",VLOOKUP(Table_IntInputs[[#This Row],[Space Type]],IF(FiscalYear=\"FY24\",SpaceBySpace_2016[],SpaceBySpace_2016[]),6,FALSE)=\"DL\"),\"\",VLOOKUP(Table_IntInputs[[#This Row],[Space Type]],IF(FiscalYear=\"FY24\",SpaceBySpace_2016[],SpaceBySpace_2016[]),6,FALSE))),\"\")","v":""},null,null,null,{"$f":"IFERROR(IF(R26+1>MAX(Table_IntInputs[Zone]),\"\",R26+1),\"\")","v":""},{"$f":"VLOOKUP(R27,Table_IntInputs[[Zone]:[Concatenate(Wndw-Sp Type)]],2,FALSE)","v":""},"",{"$f":"IFERROR(IF(Table_IntLookups[[#This Row],[Zone'#]]<>\"\",VLOOKUP(INDEX(Table_IntInputs[],MATCH(Table_IntLookups[[#This Row],[Zone'#]],Table_IntInputs[Zone],0),4),Table_BuildingFactors[#Data],2,FALSE),\"\"),0)","v":""},{"$f":"IFERROR(IF(Table_IntLookups[[#This Row],[Zone'#]]<>\"\",VLOOKUP(INDEX(Table_IntInputs[],MATCH(Table_IntLookups[[#This Row],[Zone'#]],Table_IntInputs[Zone],0),4),Table_BuildingFactors[#Data],3,FALSE),\"\"),0)","v":""},{"$f":"IFERROR(IF(Table_IntLookups[[#This Row],[Zone'#]]<>\"\",VLOOKUP(INDEX(Table_IntInputs[],MATCH(Table_IntLookups[[#This Row],[Zone'#]],Table_IntInputs[Zone],0),4),Table_BuildingFactors[#Data],3,FALSE),\"\"),0)","v":""},{"$f":"IFERROR(IF(Table_IntLookups[[#This Row],[Zone'#]]<>\"\",VLOOKUP(INDEX(Table_IntInputs[],MATCH(Table_IntLookups[[#This Row],[Zone'#]],Table_IntInputs[Zone],0),4),Table_BuildingFactors[#Data],5,FALSE),\"\"),0)","v":""},{"$f":"IFERROR(IF(Table_IntLookups[[#This Row],[Zone'#]]<>\"\",VLOOKUP(INDEX(Table_IntInputs[],MATCH(Table_IntLookups[[#This Row],[Zone'#]],Table_IntInputs[Zone],0),4),Table_BuildingFactors[#Data],6,FALSE),\"\"),0)","v":""},{"$f":"IFERROR(IF(Table_IntLookups[[#This Row],[Zone'#]]<>\"\",VLOOKUP(INDEX(Table_IntInputs[],MATCH(Table_IntLookups[[#This Row],[Zone'#]],Table_IntInputs[Zone],0),4),Table_BuildingFactors[#Data],7,FALSE),\"\"),0)","v":""},{"$f":"IFERROR(IF(Table_IntLookups[[#This Row],[Zone'#]]<>\"\",VLOOKUP(Table_IntLookups[[#This Row],[Description]],INDIRECT(\"Table_BldgArea_\" & IF(FiscalYear=\"FY24\",2013,2016)),4,FALSE),\"\"),0)","v":""},{"$f":"IF($R27=\"\",\"\",SUMIFS(Table_IntInputs[Total Wattage],Table_IntInputs[Zone],$R27))","v":""}]
[{"$f":"IF(OR(Table_IntInputs[[#This Row],[LPD]]=\"\",Table_IntInputs[[#This Row],[Concatenate(Wndw-Sp Type)]]=\"\"),\"\",IF(AND(ISNUMBER(MATCH(Table_IntInputs[[#This Row],[Concatenate(Wndw-Sp Type)]],$B$5:$B27,0))),IF(A27=\"Zone\",1,INDIRECT(\"A\" & MATCH(Table_IntInputs[[#This Row],[Concatenate(Wndw-Sp Type)]],$B$5:$B27,0)+4)),IF(A27=\"Zone\",1,MAX($A$5:$A27)+1)))","v":""},{"$f":"IF(Table_IntInputs[[#This Row],[Space Type]]=\"Exterior\",\"Exterior\",IF(Table_IntInputs[[#This Row],[Space Type]]=\"\",\"\",IF(AND($E$1=\"Building Area\",ISNUMBER(MATCH(Table_IntInputs[[#This Row],[Space Type]],Table_BldgArea_2016[Building Area Type],0))),Table_IntInputs[[#This Row],[Space Type]],CONCATENATE(IF(Table_IntInputs[[#This Row],[Windows?]]=\"\",\"No\",Table_IntInputs[[#This Row],[Windows?]]),\" - \",Table_IntInputs[[#This Row],[Space Type]]))))","v":""},null,null,null,null,null,null,{"$f":"IFERROR(IF(AND($E$1=\"Space-by-Space\",ISNUMBER(FIND(\"Corridor\",Table_IntInputs[[#This Row],[Space Type]],1))),Table_IntInputs[[#This Row],[Width]],2.5*Table_IntInputs[[#This Row],[Perimeter]]*Table_IntInputs[[#This Row],[Room Cavity Height]]/Table_IntInputs[[#This Row],[Area Sq Ft]]),\"\")","v":""},{"$f":"IFERROR(IF(ASHRAEMethod=\"Space-By-Space\",IF(ISNUMBER(FIND(\"Corridor\",Table_IntInputs[[#This Row],[Space Type]],1)),VLOOKUP(Table_IntInputs[[#This Row],[Space Type]],IF(FiscalYear=\"FY25\",SpaceBySpace_2016[],SpaceBySpace_2016[]),5,FALSE),VLOOKUP(Table_IntInputs[[#This Row],[Space Type]],IF(FiscalYear=\"FY25\",SpaceBySpace_2016[],SpaceBySpace_2016[]),4,FALSE)),\"\"),\"\")","v":""},{"$f":"IFERROR(\n    ROUND(IF(AND(ASHRAEMethod=\"Space-By-Space\",Table_IntInputs[[#This Row],[Space Type]]=\"Atrium, above 40ft\"),0.4+Table_IntInputs[[#This Row],[Room Cavity Height]]*0.02,IF(AND(ASHRAEMethod=\"Space-By-Space\",ISNUMBER(FIND(\"Atrium\",Table_IntInputs[[#This Row],[Space Type]],1))),Table_IntInputs[[#This Row],[Room Cavity Height]]*0.03,VLOOKUP(Table_IntInputs[[#This Row],[Space Type]],IF($E$1=\"Space-By-Space\",IF(FiscalYear=\"FY25\",SpaceBySpace_2016[],SpaceBySpace_2016[]),IF(FiscalYear=\"FY25\",Table_BldgArea_2016[],Table_BldgArea_2016[])),2,FALSE)))  *\n        IF(OR(AND($E$1=\"Space-By-Space\",ISNUMBER(FIND(\"Corridor\",Table_IntInputs[[#This Row],[Space Type]],1)),Table_IntInputs[[#This Row],[RCR]]>=Table_IntInputs[[#This Row],[RCR,W_m]]),\n        AND($E$1=\"Space-By-Space\",NOT(ISNUMBER(FIND(\"Corridor\",Table_IntInputs[[#This Row],[Space Type]],1))),Table_IntInputs[[#This Row],[RCR]]>=Table_IntInputs[[#This Row],[RCR,W_m]],Table_IntInputs[[#This Row],[RCR,W_m]]>0)),1.2,1),2)  *\n        IFERROR(IF(ISNUMBER(MATCH(Table_IntInputs[[#This Row],[Space Type]],Table_AddlControl_2016[Facility Type],0)),1+INDEX(Table_AddlControl_2016[#All],MATCH(Table_IntInputs[[#This Row],[Space Type]],Table_AddlControl_2016[[#All],[Facility Type]],0),MATCH(IF(Table_IntInputs[[#This Row],[Additional Controls?]]=\"\",\"None\",Table_IntInputs[[#This Row],[Additional Controls?]]),Table_AddlControl_2016[#Headers],0)),1),1),\"\")","v":""},{"$f":"IFERROR(VLOOKUP(Table_IntInputs[[#This Row],[Space Type]],IF(ASHRAEMethod=\"Space-By-Space\",IF(FiscalYear=\"FY25\",SpaceBySpace_2016[],SpaceBySpace_2016[]),IF(FiscalYear=\"FY25\",Table_BldgArea_2016[],Table_BldgArea_2016[])),3,FALSE),\"\")","v":""},{"$f":"IFERROR(IF(Table_IntInputs[[#This Row],[Space Type]]=\"Exterior\",'Exterior Information'!$J$3,ROUND(IF(Table_IntInputs[[#This Row],[Units]]=\"W/ft2\",Table_IntInputs[[#This Row],[Area Sq Ft]]*Table_IntInputs[[#This Row],[LPD]],Table_IntInputs[[#This Row],[Area Sq Ft]]*Table_IntInputs[[#This Row],[Room Cavity Height]]*Table_IntInputs[[#This Row],[LPD]]),2)),\"\")","v":""},{"$f":"IFERROR(IF(AND(Table_IntInputs[[#This Row],[Windows?]]=\"No\",VLOOKUP(Table_IntInputs[[#This Row],[Space Type]],IF(FiscalYear=\"FY24\",SpaceBySpace_2016[],SpaceBySpace_2016[]),6,FALSE)=\"Occ + DL\"),\"Occ\",IF(AND(Table_IntInputs[[#This Row],[Windows?]]=\"No\",VLOOKUP(Table_IntInputs[[#This Row],[Space Type]],IF(FiscalYear=\"FY24\",SpaceBySpace_2016[],SpaceBySpace_2016[]),6,FALSE)=\"DL\"),\"\",VLOOKUP(Table_IntInputs[[#This Row],[Space Type]],IF(FiscalYear=\"FY24\",SpaceBySpace_2016[],SpaceBySpace_2016[]),6,FALSE))),\"\")","v":""},null,null,null,{"$f":"IFERROR(IF(R27+1>MAX(Table_IntInputs[Zone]),\"\",R27+1),\"\")","v":""},{"$f":"VLOOKUP(R28,Table_IntInputs[[Zone]:[Concatenate(Wndw-Sp Type)]],2,FALSE)","v":""},"",{"$f":"IFERROR(IF(Table_IntLookups[[#This Row],[Zone'#]]<>\"\",VLOOKUP(INDEX(Table_IntInputs[],MATCH(Table_IntLookups[[#This Row],[Zone'#]],Table_IntInputs[Zone],0),4),Table_BuildingFactors[#Data],2,FALSE),\"\"),0)","v":""},{"$f":"IFERROR(IF(Table_IntLookups[[#This Row],[Zone'#]]<>\"\",VLOOKUP(INDEX(Table_IntInputs[],MATCH(Table_IntLookups[[#This Row],[Zone'#]],Table_IntInputs[Zone],0),4),Table_BuildingFactors[#Data],3,FALSE),\"\"),0)","v":""},{"$f":"IFERROR(IF(Table_IntLookups[[#This Row],[Zone'#]]<>\"\",VLOOKUP(INDEX(Table_IntInputs[],MATCH(Table_IntLookups[[#This Row],[Zone'#]],Table_IntInputs[Zone],0),4),Table_BuildingFactors[#Data],3,FALSE),\"\"),0)","v":""},{"$f":"IFERROR(IF(Table_IntLookups[[#This Row],[Zone'#]]<>\"\",VLOOKUP(INDEX(Table_IntInputs[],MATCH(Table_IntLookups[[#This Row],[Zone'#]],Table_IntInputs[Zone],0),4),Table_BuildingFactors[#Data],5,FALSE),\"\"),0)","v":""},{"$f":"IFERROR(IF(Table_IntLookups[[#This Row],[Zone'#]]<>\"\",VLOOKUP(INDEX(Table_IntInputs[],MATCH(Table_IntLookups[[#This Row],[Zone'#]],Table_IntInputs[Zone],0),4),Table_BuildingFactors[#Data],6,FALSE),\"\"),0)","v":""},{"$f":"IFERROR(IF(Table_IntLookups[[#This Row],[Zone'#]]<>\"\",VLOOKUP(INDEX(Table_IntInputs[],MATCH(Table_IntLookups[[#This Row],[Zone'#]],Table_IntInputs[Zone],0),4),Table_BuildingFactors[#Data],7,FALSE),\"\"),0)","v":""},{"$f":"IFERROR(IF(Table_IntLookups[[#This Row],[Zone'#]]<>\"\",VLOOKUP(Table_IntLookups[[#This Row],[Description]],INDIRECT(\"Table_BldgArea_\" & IF(FiscalYear=\"FY24\",2013,2016)),4,FALSE),\"\"),0)","v":""},{"$f":"IF($R28=\"\",\"\",SUMIFS(Table_IntInputs[Total Wattage],Table_IntInputs[Zone],$R28))","v":""}]
[{"$f":"IF(OR(Table_IntInputs[[#This Row],[LPD]]=\"\",Table_IntInputs[[#This Row],[Concatenate(Wndw-Sp Type)]]=\"\"),\"\",IF(AND(ISNUMBER(MATCH(Table_IntInputs[[#This Row],[Concatenate(Wndw-Sp Type)]],$B$5:$B28,0))),IF(A28=\"Zone\",1,INDIRECT(\"A\" & MATCH(Table_IntInputs[[#This Row],[Concatenate(Wndw-Sp Type)]],$B$5:$B28,0)+4)),IF(A28=\"Zone\",1,MAX($A$5:$A28)+1)))","v":""},{"$f":"IF(Table_IntInputs[[#This Row],[Space Type]]=\"Exterior\",\"Exterior\",IF(Table_IntInputs[[#This Row],[Space Type]]=\"\",\"\",IF(AND($E$1=\"Building Area\",ISNUMBER(MATCH(Table_IntInputs[[#This Row],[Space Type]],Table_BldgArea_2016[Building Area Type],0))),Table_IntInputs[[#This Row],[Space Type]],CONCATENATE(IF(Table_IntInputs[[#This Row],[Windows?]]=\"\",\"No\",Table_IntInputs[[#This Row],[Windows?]]),\" - \",Table_IntInputs[[#This Row],[Space Type]]))))","v":""},null,null,null,null,null,null,{"$f":"IFERROR(IF(AND($E$1=\"Space-by-Space\",ISNUMBER(FIND(\"Corridor\",Table_IntInputs[[#This Row],[Space Type]],1))),Table_IntInputs[[#This Row],[Width]],2.5*Table_IntInputs[[#This Row],[Perimeter]]*Table_IntInputs[[#This Row],[Room Cavity Height]]/Table_IntInputs[[#This Row],[Area Sq Ft]]),\"\")","v":""},{"$f":"IFERROR(IF(ASHRAEMethod=\"Space-By-Space\",IF(ISNUMBER(FIND(\"Corridor\",Table_IntInputs[[#This Row],[Space Type]],1)),VLOOKUP(Table_IntInputs[[#This Row],[Space Type]],IF(FiscalYear=\"FY25\",SpaceBySpace_2016[],SpaceBySpace_2016[]),5,FALSE),VLOOKUP(Table_IntInputs[[#This Row],[Space Type]],IF(FiscalYear=\"FY25\",SpaceBySpace_2016[],SpaceBySpace_2016[]),4,FALSE)),\"\"),\"\")","v":""},{"$f":"IFERROR(\n    ROUND(IF(AND(ASHRAEMethod=\"Space-By-Space\",Table_IntInputs[[#This Row],[Space Type]]=\"Atrium, above 40ft\"),0.4+Table_IntInputs[[#This Row],[Room Cavity Height]]*0.02,IF(AND(ASHRAEMethod=\"Space-By-Space\",ISNUMBER(FIND(\"Atrium\",Table_IntInputs[[#This Row],[Space Type]],1))),Table_IntInputs[[#This Row],[Room Cavity Height]]*0.03,VLOOKUP(Table_IntInputs[[#This Row],[Space Type]],IF($E$1=\"Space-By-Space\",IF(FiscalYear=\"FY25\",SpaceBySpace_2016[],SpaceBySpace_2016[]),IF(FiscalYear=\"FY25\",Table_BldgArea_2016[],Table_BldgArea_2016[])),2,FALSE)))  *\n        IF(OR(AND($E$1=\"Space-By-Space\",ISNUMBER(FIND(\"Corridor\",Table_IntInputs[[#This Row],[Space Type]],1)),Table_IntInputs[[#This Row],[RCR]]>=Table_IntInputs[[#This Row],[RCR,W_m]]),\n        AND($E$1=\"Space-By-Space\",NOT(ISNUMBER(FIND(\"Corridor\",Table_IntInputs[[#This Row],[Space Type]],1))),Table_IntInputs[[#This Row],[RCR]]>=Table_IntInputs[[#This Row],[RCR,W_m]],Table_IntInputs[[#This Row],[RCR,W_m]]>0)),1.2,1),2)  *\n        IFERROR(IF(ISNUMBER(MATCH(Table_IntInputs[[#This Row],[Space Type]],Table_AddlControl_2016[Facility Type],0)),1+INDEX(Table_AddlControl_2016[#All],MATCH(Table_IntInputs[[#This Row],[Space Type]],Table_AddlControl_2016[[#All],[Facility Type]],0),MATCH(IF(Table_IntInputs[[#This Row],[Additional Controls?]]=\"\",\"None\",Table_IntInputs[[#This Row],[Additional Controls?]]),Table_AddlControl_2016[#Headers],0)),1),1),\"\")","v":""},{"$f":"IFERROR(VLOOKUP(Table_IntInputs[[#This Row],[Space Type]],IF(ASHRAEMethod=\"Space-By-Space\",IF(FiscalYear=\"FY25\",SpaceBySpace_2016[],SpaceBySpace_2016[]),IF(FiscalYear=\"FY25\",Table_BldgArea_2016[],Table_BldgArea_2016[])),3,FALSE),\"\")","v":""},{"$f":"IFERROR(IF(Table_IntInputs[[#This Row],[Space Type]]=\"Exterior\",'Exterior Information'!$J$3,ROUND(IF(Table_IntInputs[[#This Row],[Units]]=\"W/ft2\",Table_IntInputs[[#This Row],[Area Sq Ft]]*Table_IntInputs[[#This Row],[LPD]],Table_IntInputs[[#This Row],[Area Sq Ft]]*Table_IntInputs[[#This Row],[Room Cavity Height]]*Table_IntInputs[[#This Row],[LPD]]),2)),\"\")","v":""},{"$f":"IFERROR(IF(AND(Table_IntInputs[[#This Row],[Windows?]]=\"No\",VLOOKUP(Table_IntInputs[[#This Row],[Space Type]],IF(FiscalYear=\"FY24\",SpaceBySpace_2016[],SpaceBySpace_2016[]),6,FALSE)=\"Occ + DL\"),\"Occ\",IF(AND(Table_IntInputs[[#This Row],[Windows?]]=\"No\",VLOOKUP(Table_IntInputs[[#This Row],[Space Type]],IF(FiscalYear=\"FY24\",SpaceBySpace_2016[],SpaceBySpace_2016[]),6,FALSE)=\"DL\"),\"\",VLOOKUP(Table_IntInputs[[#This Row],[Space Type]],IF(FiscalYear=\"FY24\",SpaceBySpace_2016[],SpaceBySpace_2016[]),6,FALSE))),\"\")","v":""},null,null,null,{"$f":"IFERROR(IF(R28+1>MAX(Table_IntInputs[Zone]),\"\",R28+1),\"\")","v":""},{"$f":"VLOOKUP(R29,Table_IntInputs[[Zone]:[Concatenate(Wndw-Sp Type)]],2,FALSE)","v":""},"",{"$f":"IFERROR(IF(Table_IntLookups[[#This Row],[Zone'#]]<>\"\",VLOOKUP(INDEX(Table_IntInputs[],MATCH(Table_IntLookups[[#This Row],[Zone'#]],Table_IntInputs[Zone],0),4),Table_BuildingFactors[#Data],2,FALSE),\"\"),0)","v":""},{"$f":"IFERROR(IF(Table_IntLookups[[#This Row],[Zone'#]]<>\"\",VLOOKUP(INDEX(Table_IntInputs[],MATCH(Table_IntLookups[[#This Row],[Zone'#]],Table_IntInputs[Zone],0),4),Table_BuildingFactors[#Data],3,FALSE),\"\"),0)","v":""},{"$f":"IFERROR(IF(Table_IntLookups[[#This Row],[Zone'#]]<>\"\",VLOOKUP(INDEX(Table_IntInputs[],MATCH(Table_IntLookups[[#This Row],[Zone'#]],Table_IntInputs[Zone],0),4),Table_BuildingFactors[#Data],3,FALSE),\"\"),0)","v":""},{"$f":"IFERROR(IF(Table_IntLookups[[#This Row],[Zone'#]]<>\"\",VLOOKUP(INDEX(Table_IntInputs[],MATCH(Table_IntLookups[[#This Row],[Zone'#]],Table_IntInputs[Zone],0),4),Table_BuildingFactors[#Data],5,FALSE),\"\"),0)","v":""},{"$f":"IFERROR(IF(Table_IntLookups[[#This Row],[Zone'#]]<>\"\",VLOOKUP(INDEX(Table_IntInputs[],MATCH(Table_IntLookups[[#This Row],[Zone'#]],Table_IntInputs[Zone],0),4),Table_BuildingFactors[#Data],6,FALSE),\"\"),0)","v":""},{"$f":"IFERROR(IF(Table_IntLookups[[#This Row],[Zone'#]]<>\"\",VLOOKUP(INDEX(Table_IntInputs[],MATCH(Table_IntLookups[[#This Row],[Zone'#]],Table_IntInputs[Zone],0),4),Table_BuildingFactors[#Data],7,FALSE),\"\"),0)","v":""},{"$f":"IFERROR(IF(Table_IntLookups[[#This Row],[Zone'#]]<>\"\",VLOOKUP(Table_IntLookups[[#This Row],[Description]],INDIRECT(\"Table_BldgArea_\" & IF(FiscalYear=\"FY24\",2013,2016)),4,FALSE),\"\"),0)","v":""},{"$f":"IF($R29=\"\",\"\",SUMIFS(Table_IntInputs[Total Wattage],Table_IntInputs[Zone],$R29))","v":""}]
[{"$f":"IF(OR(Table_IntInputs[[#This Row],[LPD]]=\"\",Table_IntInputs[[#This Row],[Concatenate(Wndw-Sp Type)]]=\"\"),\"\",IF(AND(ISNUMBER(MATCH(Table_IntInputs[[#This Row],[Concatenate(Wndw-Sp Type)]],$B$5:$B29,0))),IF(A29=\"Zone\",1,INDIRECT(\"A\" & MATCH(Table_IntInputs[[#This Row],[Concatenate(Wndw-Sp Type)]],$B$5:$B29,0)+4)),IF(A29=\"Zone\",1,MAX($A$5:$A29)+1)))","v":""},{"$f":"IF(Table_IntInputs[[#This Row],[Space Type]]=\"Exterior\",\"Exterior\",IF(Table_IntInputs[[#This Row],[Space Type]]=\"\",\"\",IF(AND($E$1=\"Building Area\",ISNUMBER(MATCH(Table_IntInputs[[#This Row],[Space Type]],Table_BldgArea_2016[Building Area Type],0))),Table_IntInputs[[#This Row],[Space Type]],CONCATENATE(IF(Table_IntInputs[[#This Row],[Windows?]]=\"\",\"No\",Table_IntInputs[[#This Row],[Windows?]]),\" - \",Table_IntInputs[[#This Row],[Space Type]]))))","v":""},null,null,null,null,null,null,{"$f":"IFERROR(IF(AND($E$1=\"Space-by-Space\",ISNUMBER(FIND(\"Corridor\",Table_IntInputs[[#This Row],[Space Type]],1))),Table_IntInputs[[#This Row],[Width]],2.5*Table_IntInputs[[#This Row],[Perimeter]]*Table_IntInputs[[#This Row],[Room Cavity Height]]/Table_IntInputs[[#This Row],[Area Sq Ft]]),\"\")","v":""},{"$f":"IFERROR(IF(ASHRAEMethod=\"Space-By-Space\",IF(ISNUMBER(FIND(\"Corridor\",Table_IntInputs[[#This Row],[Space Type]],1)),VLOOKUP(Table_IntInputs[[#This Row],[Space Type]],IF(FiscalYear=\"FY25\",SpaceBySpace_2016[],SpaceBySpace_2016[]),5,FALSE),VLOOKUP(Table_IntInputs[[#This Row],[Space Type]],IF(FiscalYear=\"FY25\",SpaceBySpace_2016[],SpaceBySpace_2016[]),4,FALSE)),\"\"),\"\")","v":""},{"$f":"IFERROR(\n    ROUND(IF(AND(ASHRAEMethod=\"Space-By-Space\",Table_IntInputs[[#This Row],[Space Type]]=\"Atrium, above 40ft\"),0.4+Table_IntInputs[[#This Row],[Room Cavity Height]]*0.02,IF(AND(ASHRAEMethod=\"Space-By-Space\",ISNUMBER(FIND(\"Atrium\",Table_IntInputs[[#This Row],[Space Type]],1))),Table_IntInputs[[#This Row],[Room Cavity Height]]*0.03,VLOOKUP(Table_IntInputs[[#This Row],[Space Type]],IF($E$1=\"Space-By-Space\",IF(FiscalYear=\"FY25\",SpaceBySpace_2016[],SpaceBySpace_2016[]),IF(FiscalYear=\"FY25\",Table_BldgArea_2016[],Table_BldgArea_2016[])),2,FALSE)))  *\n        IF(OR(AND($E$1=\"Space-By-Space\",ISNUMBER(FIND(\"Corridor\",Table_IntInputs[[#This Row],[Space Type]],1)),Table_IntInputs[[#This Row],[RCR]]>=Table_IntInputs[[#This Row],[RCR,W_m]]),\n        AND($E$1=\"Space-By-Space\",NOT(ISNUMBER(FIND(\"Corridor\",Table_IntInputs[[#This Row],[Space Type]],1))),Table_IntInputs[[#This Row],[RCR]]>=Table_IntInputs[[#This Row],[RCR,W_m]],Table_IntInputs[[#This Row],[RCR,W_m]]>0)),1.2,1),2)  *\n        IFERROR(IF(ISNUMBER(MATCH(Table_IntInputs[[#This Row],[Space Type]],Table_AddlControl_2016[Facility Type],0)),1+INDEX(Table_AddlControl_2016[#All],MATCH(Table_IntInputs[[#This Row],[Space Type]],Table_AddlControl_2016[[#All],[Facility Type]],0),MATCH(IF(Table_IntInputs[[#This Row],[Additional Controls?]]=\"\",\"None\",Table_IntInputs[[#This Row],[Additional Controls?]]),Table_AddlControl_2016[#Headers],0)),1),1),\"\")","v":""},{"$f":"IFERROR(VLOOKUP(Table_IntInputs[[#This Row],[Space Type]],IF(ASHRAEMethod=\"Space-By-Space\",IF(FiscalYear=\"FY25\",SpaceBySpace_2016[],SpaceBySpace_2016[]),IF(FiscalYear=\"FY25\",Table_BldgArea_2016[],Table_BldgArea_2016[])),3,FALSE),\"\")","v":""},{"$f":"IFERROR(IF(Table_IntInputs[[#This Row],[Space Type]]=\"Exterior\",'Exterior Information'!$J$3,ROUND(IF(Table_IntInputs[[#This Row],[Units]]=\"W/ft2\",Table_IntInputs[[#This Row],[Area Sq Ft]]*Table_IntInputs[[#This Row],[LPD]],Table_IntInputs[[#This Row],[Area Sq Ft]]*Table_IntInputs[[#This Row],[Room Cavity Height]]*Table_IntInputs[[#This Row],[LPD]]),2)),\"\")","v":""},{"$f":"IFERROR(IF(AND(Table_IntInputs[[#This Row],[Windows?]]=\"No\",VLOOKUP(Table_IntInputs[[#This Row],[Space Type]],IF(FiscalYear=\"FY24\",SpaceBySpace_2016[],SpaceBySpace_2016[]),6,FALSE)=\"Occ + DL\"),\"Occ\",IF(AND(Table_IntInputs[[#This Row],[Windows?]]=\"No\",VLOOKUP(Table_IntInputs[[#This Row],[Space Type]],IF(FiscalYear=\"FY24\",SpaceBySpace_2016[],SpaceBySpace_2016[]),6,FALSE)=\"DL\"),\"\",VLOOKUP(Table_IntInputs[[#This Row],[Space Type]],IF(FiscalYear=\"FY24\",SpaceBySpace_2016[],SpaceBySpace_2016[]),6,FALSE))),\"\")","v":""},null,null,null,{"$f":"IFERROR(IF(R29+1>MAX(Table_IntInputs[Zone]),\"\",R29+1),\"\")","v":""},{"$f":"VLOOKUP(R30,Table_IntInputs[[Zone]:[Concatenate(Wndw-Sp Type)]],2,FALSE)","v":""},"",{"$f":"IFERROR(IF(Table_IntLookups[[#This Row],[Zone'#]]<>\"\",VLOOKUP(INDEX(Table_IntInputs[],MATCH(Table_IntLookups[[#This Row],[Zone'#]],Table_IntInputs[Zone],0),4),Table_BuildingFactors[#Data],2,FALSE),\"\"),0)","v":""},{"$f":"IFERROR(IF(Table_IntLookups[[#This Row],[Zone'#]]<>\"\",VLOOKUP(INDEX(Table_IntInputs[],MATCH(Table_IntLookups[[#This Row],[Zone'#]],Table_IntInputs[Zone],0),4),Table_BuildingFactors[#Data],3,FALSE),\"\"),0)","v":""},{"$f":"IFERROR(IF(Table_IntLookups[[#This Row],[Zone'#]]<>\"\",VLOOKUP(INDEX(Table_IntInputs[],MATCH(Table_IntLookups[[#This Row],[Zone'#]],Table_IntInputs[Zone],0),4),Table_BuildingFactors[#Data],3,FALSE),\"\"),0)","v":""},{"$f":"IFERROR(IF(Table_IntLookups[[#This Row],[Zone'#]]<>\"\",VLOOKUP(INDEX(Table_IntInputs[],MATCH(Table_IntLookups[[#This Row],[Zone'#]],Table_IntInputs[Zone],0),4),Table_BuildingFactors[#Data],5,FALSE),\"\"),0)","v":""},{"$f":"IFERROR(IF(Table_IntLookups[[#This Row],[Zone'#]]<>\"\",VLOOKUP(INDEX(Table_IntInputs[],MATCH(Table_IntLookups[[#This Row],[Zone'#]],Table_IntInputs[Zone],0),4),Table_BuildingFactors[#Data],6,FALSE),\"\"),0)","v":""},{"$f":"IFERROR(IF(Table_IntLookups[[#This Row],[Zone'#]]<>\"\",VLOOKUP(INDEX(Table_IntInputs[],MATCH(Table_IntLookups[[#This Row],[Zone'#]],Table_IntInputs[Zone],0),4),Table_BuildingFactors[#Data],7,FALSE),\"\"),0)","v":""},{"$f":"IFERROR(IF(Table_IntLookups[[#This Row],[Zone'#]]<>\"\",VLOOKUP(Table_IntLookups[[#This Row],[Description]],INDIRECT(\"Table_BldgArea_\" & IF(FiscalYear=\"FY24\",2013,2016)),4,FALSE),\"\"),0)","v":""},{"$f":"IF($R30=\"\",\"\",SUMIFS(Table_IntInputs[Total Wattage],Table_IntInputs[Zone],$R30))","v":""}]
[{"$f":"IF(OR(Table_IntInputs[[#This Row],[LPD]]=\"\",Table_IntInputs[[#This Row],[Concatenate(Wndw-Sp Type)]]=\"\"),\"\",IF(AND(ISNUMBER(MATCH(Table_IntInputs[[#This Row],[Concatenate(Wndw-Sp Type)]],$B$5:$B30,0))),IF(A30=\"Zone\",1,INDIRECT(\"A\" & MATCH(Table_IntInputs[[#This Row],[Concatenate(Wndw-Sp Type)]],$B$5:$B30,0)+4)),IF(A30=\"Zone\",1,MAX($A$5:$A30)+1)))","v":""},{"$f":"IF(Table_IntInputs[[#This Row],[Space Type]]=\"Exterior\",\"Exterior\",IF(Table_IntInputs[[#This Row],[Space Type]]=\"\",\"\",IF(AND($E$1=\"Building Area\",ISNUMBER(MATCH(Table_IntInputs[[#This Row],[Space Type]],Table_BldgArea_2016[Building Area Type],0))),Table_IntInputs[[#This Row],[Space Type]],CONCATENATE(IF(Table_IntInputs[[#This Row],[Windows?]]=\"\",\"No\",Table_IntInputs[[#This Row],[Windows?]]),\" - \",Table_IntInputs[[#This Row],[Space Type]]))))","v":""},null,null,null,null,null,null,{"$f":"IFERROR(IF(AND($E$1=\"Space-by-Space\",ISNUMBER(FIND(\"Corridor\",Table_IntInputs[[#This Row],[Space Type]],1))),Table_IntInputs[[#This Row],[Width]],2.5*Table_IntInputs[[#This Row],[Perimeter]]*Table_IntInputs[[#This Row],[Room Cavity Height]]/Table_IntInputs[[#This Row],[Area Sq Ft]]),\"\")","v":""},{"$f":"IFERROR(IF(ASHRAEMethod=\"Space-By-Space\",IF(ISNUMBER(FIND(\"Corridor\",Table_IntInputs[[#This Row],[Space Type]],1)),VLOOKUP(Table_IntInputs[[#This Row],[Space Type]],IF(FiscalYear=\"FY25\",SpaceBySpace_2016[],SpaceBySpace_2016[]),5,FALSE),VLOOKUP(Table_IntInputs[[#This Row],[Space Type]],IF(FiscalYear=\"FY25\",SpaceBySpace_2016[],SpaceBySpace_2016[]),4,FALSE)),\"\"),\"\")","v":""},{"$f":"IFERROR(\n    ROUND(IF(AND(ASHRAEMethod=\"Space-By-Space\",Table_IntInputs[[#This Row],[Space Type]]=\"Atrium, above 40ft\"),0.4+Table_IntInputs[[#This Row],[Room Cavity Height]]*0.02,IF(AND(ASHRAEMethod=\"Space-By-Space\",ISNUMBER(FIND(\"Atrium\",Table_IntInputs[[#This Row],[Space Type]],1))),Table_IntInputs[[#This Row],[Room Cavity Height]]*0.03,VLOOKUP(Table_IntInputs[[#This Row],[Space Type]],IF($E$1=\"Space-By-Space\",IF(FiscalYear=\"FY25\",SpaceBySpace_2016[],SpaceBySpace_2016[]),IF(FiscalYear=\"FY25\",Table_BldgArea_2016[],Table_BldgArea_2016[])),2,FALSE)))  *\n        IF(OR(AND($E$1=\"Space-By-Space\",ISNUMBER(FIND(\"Corridor\",Table_IntInputs[[#This Row],[Space Type]],1)),Table_IntInputs[[#This Row],[RCR]]>=Table_IntInputs[[#This Row],[RCR,W_m]]),\n        AND($E$1=\"Space-By-Space\",NOT(ISNUMBER(FIND(\"Corridor\",Table_IntInputs[[#This Row],[Space Type]],1))),Table_IntInputs[[#This Row],[RCR]]>=Table_IntInputs[[#This Row],[RCR,W_m]],Table_IntInputs[[#This Row],[RCR,W_m]]>0)),1.2,1),2)  *\n        IFERROR(IF(ISNUMBER(MATCH(Table_IntInputs[[#This Row],[Space Type]],Table_AddlControl_2016[Facility Type],0)),1+INDEX(Table_AddlControl_2016[#All],MATCH(Table_IntInputs[[#This Row],[Space Type]],Table_AddlControl_2016[[#All],[Facility Type]],0),MATCH(IF(Table_IntInputs[[#This Row],[Additional Controls?]]=\"\",\"None\",Table_IntInputs[[#This Row],[Additional Controls?]]),Table_AddlControl_2016[#Headers],0)),1),1),\"\")","v":""},{"$f":"IFERROR(VLOOKUP(Table_IntInputs[[#This Row],[Space Type]],IF(ASHRAEMethod=\"Space-By-Space\",IF(FiscalYear=\"FY25\",SpaceBySpace_2016[],SpaceBySpace_2016[]),IF(FiscalYear=\"FY25\",Table_BldgArea_2016[],Table_BldgArea_2016[])),3,FALSE),\"\")","v":""},{"$f":"IFERROR(IF(Table_IntInputs[[#This Row],[Space Type]]=\"Exterior\",'Exterior Information'!$J$3,ROUND(IF(Table_IntInputs[[#This Row],[Units]]=\"W/ft2\",Table_IntInputs[[#This Row],[Area Sq Ft]]*Table_IntInputs[[#This Row],[LPD]],Table_IntInputs[[#This Row],[Area Sq Ft]]*Table_IntInputs[[#This Row],[Room Cavity Height]]*Table_IntInputs[[#This Row],[LPD]]),2)),\"\")","v":""},{"$f":"IFERROR(IF(AND(Table_IntInputs[[#This Row],[Windows?]]=\"No\",VLOOKUP(Table_IntInputs[[#This Row],[Space Type]],IF(FiscalYear=\"FY24\",SpaceBySpace_2016[],SpaceBySpace_2016[]),6,FALSE)=\"Occ + DL\"),\"Occ\",IF(AND(Table_IntInputs[[#This Row],[Windows?]]=\"No\",VLOOKUP(Table_IntInputs[[#This Row],[Space Type]],IF(FiscalYear=\"FY24\",SpaceBySpace_2016[],SpaceBySpace_2016[]),6,FALSE)=\"DL\"),\"\",VLOOKUP(Table_IntInputs[[#This Row],[Space Type]],IF(FiscalYear=\"FY24\",SpaceBySpace_2016[],SpaceBySpace_2016[]),6,FALSE))),\"\")","v":""},null,null,null,{"$f":"IFERROR(IF(R30+1>MAX(Table_IntInputs[Zone]),\"\",R30+1),\"\")","v":""},{"$f":"VLOOKUP(R31,Table_IntInputs[[Zone]:[Concatenate(Wndw-Sp Type)]],2,FALSE)","v":""},"",{"$f":"IFERROR(IF(Table_IntLookups[[#This Row],[Zone'#]]<>\"\",VLOOKUP(INDEX(Table_IntInputs[],MATCH(Table_IntLookups[[#This Row],[Zone'#]],Table_IntInputs[Zone],0),4),Table_BuildingFactors[#Data],2,FALSE),\"\"),0)","v":""},{"$f":"IFERROR(IF(Table_IntLookups[[#This Row],[Zone'#]]<>\"\",VLOOKUP(INDEX(Table_IntInputs[],MATCH(Table_IntLookups[[#This Row],[Zone'#]],Table_IntInputs[Zone],0),4),Table_BuildingFactors[#Data],3,FALSE),\"\"),0)","v":""},{"$f":"IFERROR(IF(Table_IntLookups[[#This Row],[Zone'#]]<>\"\",VLOOKUP(INDEX(Table_IntInputs[],MATCH(Table_IntLookups[[#This Row],[Zone'#]],Table_IntInputs[Zone],0),4),Table_BuildingFactors[#Data],3,FALSE),\"\"),0)","v":""},{"$f":"IFERROR(IF(Table_IntLookups[[#This Row],[Zone'#]]<>\"\",VLOOKUP(INDEX(Table_IntInputs[],MATCH(Table_IntLookups[[#This Row],[Zone'#]],Table_IntInputs[Zone],0),4),Table_BuildingFactors[#Data],5,FALSE),\"\"),0)","v":""},{"$f":"IFERROR(IF(Table_IntLookups[[#This Row],[Zone'#]]<>\"\",VLOOKUP(INDEX(Table_IntInputs[],MATCH(Table_IntLookups[[#This Row],[Zone'#]],Table_IntInputs[Zone],0),4),Table_BuildingFactors[#Data],6,FALSE),\"\"),0)","v":""},{"$f":"IFERROR(IF(Table_IntLookups[[#This Row],[Zone'#]]<>\"\",VLOOKUP(INDEX(Table_IntInputs[],MATCH(Table_IntLookups[[#This Row],[Zone'#]],Table_IntInputs[Zone],0),4),Table_BuildingFactors[#Data],7,FALSE),\"\"),0)","v":""},{"$f":"IFERROR(IF(Table_IntLookups[[#This Row],[Zone'#]]<>\"\",VLOOKUP(Table_IntLookups[[#This Row],[Description]],INDIRECT(\"Table_BldgArea_\" & IF(FiscalYear=\"FY24\",2013,2016)),4,FALSE),\"\"),0)","v":""},{"$f":"IF($R31=\"\",\"\",SUMIFS(Table_IntInputs[Total Wattage],Table_IntInputs[Zone],$R31))","v":""}]
[{"$f":"IF(OR(Table_IntInputs[[#This Row],[LPD]]=\"\",Table_IntInputs[[#This Row],[Concatenate(Wndw-Sp Type)]]=\"\"),\"\",IF(AND(ISNUMBER(MATCH(Table_IntInputs[[#This Row],[Concatenate(Wndw-Sp Type)]],$B$5:$B31,0))),IF(A31=\"Zone\",1,INDIRECT(\"A\" & MATCH(Table_IntInputs[[#This Row],[Concatenate(Wndw-Sp Type)]],$B$5:$B31,0)+4)),IF(A31=\"Zone\",1,MAX($A$5:$A31)+1)))","v":""},{"$f":"IF(Table_IntInputs[[#This Row],[Space Type]]=\"Exterior\",\"Exterior\",IF(Table_IntInputs[[#This Row],[Space Type]]=\"\",\"\",IF(AND($E$1=\"Building Area\",ISNUMBER(MATCH(Table_IntInputs[[#This Row],[Space Type]],Table_BldgArea_2016[Building Area Type],0))),Table_IntInputs[[#This Row],[Space Type]],CONCATENATE(IF(Table_IntInputs[[#This Row],[Windows?]]=\"\",\"No\",Table_IntInputs[[#This Row],[Windows?]]),\" - \",Table_IntInputs[[#This Row],[Space Type]]))))","v":""},null,null,null,null,null,null,{"$f":"IFERROR(IF(AND($E$1=\"Space-by-Space\",ISNUMBER(FIND(\"Corridor\",Table_IntInputs[[#This Row],[Space Type]],1))),Table_IntInputs[[#This Row],[Width]],2.5*Table_IntInputs[[#This Row],[Perimeter]]*Table_IntInputs[[#This Row],[Room Cavity Height]]/Table_IntInputs[[#This Row],[Area Sq Ft]]),\"\")","v":""},{"$f":"IFERROR(IF(ASHRAEMethod=\"Space-By-Space\",IF(ISNUMBER(FIND(\"Corridor\",Table_IntInputs[[#This Row],[Space Type]],1)),VLOOKUP(Table_IntInputs[[#This Row],[Space Type]],IF(FiscalYear=\"FY25\",SpaceBySpace_2016[],SpaceBySpace_2016[]),5,FALSE),VLOOKUP(Table_IntInputs[[#This Row],[Space Type]],IF(FiscalYear=\"FY25\",SpaceBySpace_2016[],SpaceBySpace_2016[]),4,FALSE)),\"\"),\"\")","v":""},{"$f":"IFERROR(\n    ROUND(IF(AND(ASHRAEMethod=\"Space-By-Space\",Table_IntInputs[[#This Row],[Space Type]]=\"Atrium, above 40ft\"),0.4+Table_IntInputs[[#This Row],[Room Cavity Height]]*0.02,IF(AND(ASHRAEMethod=\"Space-By-Space\",ISNUMBER(FIND(\"Atrium\",Table_IntInputs[[#This Row],[Space Type]],1))),Table_IntInputs[[#This Row],[Room Cavity Height]]*0.03,VLOOKUP(Table_IntInputs[[#This Row],[Space Type]],IF($E$1=\"Space-By-Space\",IF(FiscalYear=\"FY25\",SpaceBySpace_2016[],SpaceBySpace_2016[]),IF(FiscalYear=\"FY25\",Table_BldgArea_2016[],Table_BldgArea_2016[])),2,FALSE)))  *\n        IF(OR(AND($E$1=\"Space-By-Space\",ISNUMBER(FIND(\"Corridor\",Table_IntInputs[[#This Row],[Space Type]],1)),Table_IntInputs[[#This Row],[RCR]]>=Table_IntInputs[[#This Row],[RCR,W_m]]),\n        AND($E$1=\"Space-By-Space\",NOT(ISNUMBER(FIND(\"Corridor\",Table_IntInputs[[#This Row],[Space Type]],1))),Table_IntInputs[[#This Row],[RCR]]>=Table_IntInputs[[#This Row],[RCR,W_m]],Table_IntInputs[[#This Row],[RCR,W_m]]>0)),1.2,1),2)  *\n        IFERROR(IF(ISNUMBER(MATCH(Table_IntInputs[[#This Row],[Space Type]],Table_AddlControl_2016[Facility Type],0)),1+INDEX(Table_AddlControl_2016[#All],MATCH(Table_IntInputs[[#This Row],[Space Type]],Table_AddlControl_2016[[#All],[Facility Type]],0),MATCH(IF(Table_IntInputs[[#This Row],[Additional Controls?]]=\"\",\"None\",Table_IntInputs[[#This Row],[Additional Controls?]]),Table_AddlControl_2016[#Headers],0)),1),1),\"\")","v":""},{"$f":"IFERROR(VLOOKUP(Table_IntInputs[[#This Row],[Space Type]],IF(ASHRAEMethod=\"Space-By-Space\",IF(FiscalYear=\"FY25\",SpaceBySpace_2016[],SpaceBySpace_2016[]),IF(FiscalYear=\"FY25\",Table_BldgArea_2016[],Table_BldgArea_2016[])),3,FALSE),\"\")","v":""},{"$f":"IFERROR(IF(Table_IntInputs[[#This Row],[Space Type]]=\"Exterior\",'Exterior Information'!$J$3,ROUND(IF(Table_IntInputs[[#This Row],[Units]]=\"W/ft2\",Table_IntInputs[[#This Row],[Area Sq Ft]]*Table_IntInputs[[#This Row],[LPD]],Table_IntInputs[[#This Row],[Area Sq Ft]]*Table_IntInputs[[#This Row],[Room Cavity Height]]*Table_IntInputs[[#This Row],[LPD]]),2)),\"\")","v":""},{"$f":"IFERROR(IF(AND(Table_IntInputs[[#This Row],[Windows?]]=\"No\",VLOOKUP(Table_IntInputs[[#This Row],[Space Type]],IF(FiscalYear=\"FY24\",SpaceBySpace_2016[],SpaceBySpace_2016[]),6,FALSE)=\"Occ + DL\"),\"Occ\",IF(AND(Table_IntInputs[[#This Row],[Windows?]]=\"No\",VLOOKUP(Table_IntInputs[[#This Row],[Space Type]],IF(FiscalYear=\"FY24\",SpaceBySpace_2016[],SpaceBySpace_2016[]),6,FALSE)=\"DL\"),\"\",VLOOKUP(Table_IntInputs[[#This Row],[Space Type]],IF(FiscalYear=\"FY24\",SpaceBySpace_2016[],SpaceBySpace_2016[]),6,FALSE))),\"\")","v":""},null,null,null,{"$f":"IFERROR(IF(R31+1>MAX(Table_IntInputs[Zone]),\"\",R31+1),\"\")","v":""},{"$f":"VLOOKUP(R32,Table_IntInputs[[Zone]:[Concatenate(Wndw-Sp Type)]],2,FALSE)","v":""},"",{"$f":"IFERROR(IF(Table_IntLookups[[#This Row],[Zone'#]]<>\"\",VLOOKUP(INDEX(Table_IntInputs[],MATCH(Table_IntLookups[[#This Row],[Zone'#]],Table_IntInputs[Zone],0),4),Table_BuildingFactors[#Data],2,FALSE),\"\"),0)","v":""},{"$f":"IFERROR(IF(Table_IntLookups[[#This Row],[Zone'#]]<>\"\",VLOOKUP(INDEX(Table_IntInputs[],MATCH(Table_IntLookups[[#This Row],[Zone'#]],Table_IntInputs[Zone],0),4),Table_BuildingFactors[#Data],3,FALSE),\"\"),0)","v":""},{"$f":"IFERROR(IF(Table_IntLookups[[#This Row],[Zone'#]]<>\"\",VLOOKUP(INDEX(Table_IntInputs[],MATCH(Table_IntLookups[[#This Row],[Zone'#]],Table_IntInputs[Zone],0),4),Table_BuildingFactors[#Data],3,FALSE),\"\"),0)","v":""},{"$f":"IFERROR(IF(Table_IntLookups[[#This Row],[Zone'#]]<>\"\",VLOOKUP(INDEX(Table_IntInputs[],MATCH(Table_IntLookups[[#This Row],[Zone'#]],Table_IntInputs[Zone],0),4),Table_BuildingFactors[#Data],5,FALSE),\"\"),0)","v":""},{"$f":"IFERROR(IF(Table_IntLookups[[#This Row],[Zone'#]]<>\"\",VLOOKUP(INDEX(Table_IntInputs[],MATCH(Table_IntLookups[[#This Row],[Zone'#]],Table_IntInputs[Zone],0),4),Table_BuildingFactors[#Data],6,FALSE),\"\"),0)","v":""},{"$f":"IFERROR(IF(Table_IntLookups[[#This Row],[Zone'#]]<>\"\",VLOOKUP(INDEX(Table_IntInputs[],MATCH(Table_IntLookups[[#This Row],[Zone'#]],Table_IntInputs[Zone],0),4),Table_BuildingFactors[#Data],7,FALSE),\"\"),0)","v":""},{"$f":"IFERROR(IF(Table_IntLookups[[#This Row],[Zone'#]]<>\"\",VLOOKUP(Table_IntLookups[[#This Row],[Description]],INDIRECT(\"Table_BldgArea_\" & IF(FiscalYear=\"FY24\",2013,2016)),4,FALSE),\"\"),0)","v":""},{"$f":"IF($R32=\"\",\"\",SUMIFS(Table_IntInputs[Total Wattage],Table_IntInputs[Zone],$R32))","v":""}]
[{"$f":"IF(OR(Table_IntInputs[[#This Row],[LPD]]=\"\",Table_IntInputs[[#This Row],[Concatenate(Wndw-Sp Type)]]=\"\"),\"\",IF(AND(ISNUMBER(MATCH(Table_IntInputs[[#This Row],[Concatenate(Wndw-Sp Type)]],$B$5:$B32,0))),IF(A32=\"Zone\",1,INDIRECT(\"A\" & MATCH(Table_IntInputs[[#This Row],[Concatenate(Wndw-Sp Type)]],$B$5:$B32,0)+4)),IF(A32=\"Zone\",1,MAX($A$5:$A32)+1)))","v":""},{"$f":"IF(Table_IntInputs[[#This Row],[Space Type]]=\"Exterior\",\"Exterior\",IF(Table_IntInputs[[#This Row],[Space Type]]=\"\",\"\",IF(AND($E$1=\"Building Area\",ISNUMBER(MATCH(Table_IntInputs[[#This Row],[Space Type]],Table_BldgArea_2016[Building Area Type],0))),Table_IntInputs[[#This Row],[Space Type]],CONCATENATE(IF(Table_IntInputs[[#This Row],[Windows?]]=\"\",\"No\",Table_IntInputs[[#This Row],[Windows?]]),\" - \",Table_IntInputs[[#This Row],[Space Type]]))))","v":""},null,null,null,null,null,null,{"$f":"IFERROR(IF(AND($E$1=\"Space-by-Space\",ISNUMBER(FIND(\"Corridor\",Table_IntInputs[[#This Row],[Space Type]],1))),Table_IntInputs[[#This Row],[Width]],2.5*Table_IntInputs[[#This Row],[Perimeter]]*Table_IntInputs[[#This Row],[Room Cavity Height]]/Table_IntInputs[[#This Row],[Area Sq Ft]]),\"\")","v":""},{"$f":"IFERROR(IF(ASHRAEMethod=\"Space-By-Space\",IF(ISNUMBER(FIND(\"Corridor\",Table_IntInputs[[#This Row],[Space Type]],1)),VLOOKUP(Table_IntInputs[[#This Row],[Space Type]],IF(FiscalYear=\"FY25\",SpaceBySpace_2016[],SpaceBySpace_2016[]),5,FALSE),VLOOKUP(Table_IntInputs[[#This Row],[Space Type]],IF(FiscalYear=\"FY25\",SpaceBySpace_2016[],SpaceBySpace_2016[]),4,FALSE)),\"\"),\"\")","v":""},{"$f":"IFERROR(\n    ROUND(IF(AND(ASHRAEMethod=\"Space-By-Space\",Table_IntInputs[[#This Row],[Space Type]]=\"Atrium, above 40ft\"),0.4+Table_IntInputs[[#This Row],[Room Cavity Height]]*0.02,IF(AND(ASHRAEMethod=\"Space-By-Space\",ISNUMBER(FIND(\"Atrium\",Table_IntInputs[[#This Row],[Space Type]],1))),Table_IntInputs[[#This Row],[Room Cavity Height]]*0.03,VLOOKUP(Table_IntInputs[[#This Row],[Space Type]],IF($E$1=\"Space-By-Space\",IF(FiscalYear=\"FY25\",SpaceBySpace_2016[],SpaceBySpace_2016[]),IF(FiscalYear=\"FY25\",Table_BldgArea_2016[],Table_BldgArea_2016[])),2,FALSE)))  *\n        IF(OR(AND($E$1=\"Space-By-Space\",ISNUMBER(FIND(\"Corridor\",Table_IntInputs[[#This Row],[Space Type]],1)),Table_IntInputs[[#This Row],[RCR]]>=Table_IntInputs[[#This Row],[RCR,W_m]]),\n        AND($E$1=\"Space-By-Space\",NOT(ISNUMBER(FIND(\"Corridor\",Table_IntInputs[[#This Row],[Space Type]],1))),Table_IntInputs[[#This Row],[RCR]]>=Table_IntInputs[[#This Row],[RCR,W_m]],Table_IntInputs[[#This Row],[RCR,W_m]]>0)),1.2,1),2)  *\n        IFERROR(IF(ISNUMBER(MATCH(Table_IntInputs[[#This Row],[Space Type]],Table_AddlControl_2016[Facility Type],0)),1+INDEX(Table_AddlControl_2016[#All],MATCH(Table_IntInputs[[#This Row],[Space Type]],Table_AddlControl_2016[[#All],[Facility Type]],0),MATCH(IF(Table_IntInputs[[#This Row],[Additional Controls?]]=\"\",\"None\",Table_IntInputs[[#This Row],[Additional Controls?]]),Table_AddlControl_2016[#Headers],0)),1),1),\"\")","v":""},{"$f":"IFERROR(VLOOKUP(Table_IntInputs[[#This Row],[Space Type]],IF(ASHRAEMethod=\"Space-By-Space\",IF(FiscalYear=\"FY25\",SpaceBySpace_2016[],SpaceBySpace_2016[]),IF(FiscalYear=\"FY25\",Table_BldgArea_2016[],Table_BldgArea_2016[])),3,FALSE),\"\")","v":""},{"$f":"IFERROR(IF(Table_IntInputs[[#This Row],[Space Type]]=\"Exterior\",'Exterior Information'!$J$3,ROUND(IF(Table_IntInputs[[#This Row],[Units]]=\"W/ft2\",Table_IntInputs[[#This Row],[Area Sq Ft]]*Table_IntInputs[[#This Row],[LPD]],Table_IntInputs[[#This Row],[Area Sq Ft]]*Table_IntInputs[[#This Row],[Room Cavity Height]]*Table_IntInputs[[#This Row],[LPD]]),2)),\"\")","v":""},{"$f":"IFERROR(IF(AND(Table_IntInputs[[#This Row],[Windows?]]=\"No\",VLOOKUP(Table_IntInputs[[#This Row],[Space Type]],IF(FiscalYear=\"FY24\",SpaceBySpace_2016[],SpaceBySpace_2016[]),6,FALSE)=\"Occ + DL\"),\"Occ\",IF(AND(Table_IntInputs[[#This Row],[Windows?]]=\"No\",VLOOKUP(Table_IntInputs[[#This Row],[Space Type]],IF(FiscalYear=\"FY24\",SpaceBySpace_2016[],SpaceBySpace_2016[]),6,FALSE)=\"DL\"),\"\",VLOOKUP(Table_IntInputs[[#This Row],[Space Type]],IF(FiscalYear=\"FY24\",SpaceBySpace_2016[],SpaceBySpace_2016[]),6,FALSE))),\"\")","v":""},null,null,null,{"$f":"IFERROR(IF(R32+1>MAX(Table_IntInputs[Zone]),\"\",R32+1),\"\")","v":""},{"$f":"VLOOKUP(R33,Table_IntInputs[[Zone]:[Concatenate(Wndw-Sp Type)]],2,FALSE)","v":""},"",{"$f":"IFERROR(IF(Table_IntLookups[[#This Row],[Zone'#]]<>\"\",VLOOKUP(INDEX(Table_IntInputs[],MATCH(Table_IntLookups[[#This Row],[Zone'#]],Table_IntInputs[Zone],0),4),Table_BuildingFactors[#Data],2,FALSE),\"\"),0)","v":""},{"$f":"IFERROR(IF(Table_IntLookups[[#This Row],[Zone'#]]<>\"\",VLOOKUP(INDEX(Table_IntInputs[],MATCH(Table_IntLookups[[#This Row],[Zone'#]],Table_IntInputs[Zone],0),4),Table_BuildingFactors[#Data],3,FALSE),\"\"),0)","v":""},{"$f":"IFERROR(IF(Table_IntLookups[[#This Row],[Zone'#]]<>\"\",VLOOKUP(INDEX(Table_IntInputs[],MATCH(Table_IntLookups[[#This Row],[Zone'#]],Table_IntInputs[Zone],0),4),Table_BuildingFactors[#Data],3,FALSE),\"\"),0)","v":""},{"$f":"IFERROR(IF(Table_IntLookups[[#This Row],[Zone'#]]<>\"\",VLOOKUP(INDEX(Table_IntInputs[],MATCH(Table_IntLookups[[#This Row],[Zone'#]],Table_IntInputs[Zone],0),4),Table_BuildingFactors[#Data],5,FALSE),\"\"),0)","v":""},{"$f":"IFERROR(IF(Table_IntLookups[[#This Row],[Zone'#]]<>\"\",VLOOKUP(INDEX(Table_IntInputs[],MATCH(Table_IntLookups[[#This Row],[Zone'#]],Table_IntInputs[Zone],0),4),Table_BuildingFactors[#Data],6,FALSE),\"\"),0)","v":""},{"$f":"IFERROR(IF(Table_IntLookups[[#This Row],[Zone'#]]<>\"\",VLOOKUP(INDEX(Table_IntInputs[],MATCH(Table_IntLookups[[#This Row],[Zone'#]],Table_IntInputs[Zone],0),4),Table_BuildingFactors[#Data],7,FALSE),\"\"),0)","v":""},{"$f":"IFERROR(IF(Table_IntLookups[[#This Row],[Zone'#]]<>\"\",VLOOKUP(Table_IntLookups[[#This Row],[Description]],INDIRECT(\"Table_BldgArea_\" & IF(FiscalYear=\"FY24\",2013,2016)),4,FALSE),\"\"),0)","v":""},{"$f":"IF($R33=\"\",\"\",SUMIFS(Table_IntInputs[Total Wattage],Table_IntInputs[Zone],$R33))","v":""}]
[{"$f":"IF(OR(Table_IntInputs[[#This Row],[LPD]]=\"\",Table_IntInputs[[#This Row],[Concatenate(Wndw-Sp Type)]]=\"\"),\"\",IF(AND(ISNUMBER(MATCH(Table_IntInputs[[#This Row],[Concatenate(Wndw-Sp Type)]],$B$5:$B33,0))),IF(A33=\"Zone\",1,INDIRECT(\"A\" & MATCH(Table_IntInputs[[#This Row],[Concatenate(Wndw-Sp Type)]],$B$5:$B33,0)+4)),IF(A33=\"Zone\",1,MAX($A$5:$A33)+1)))","v":""},{"$f":"IF(Table_IntInputs[[#This Row],[Space Type]]=\"Exterior\",\"Exterior\",IF(Table_IntInputs[[#This Row],[Space Type]]=\"\",\"\",IF(AND($E$1=\"Building Area\",ISNUMBER(MATCH(Table_IntInputs[[#This Row],[Space Type]],Table_BldgArea_2016[Building Area Type],0))),Table_IntInputs[[#This Row],[Space Type]],CONCATENATE(IF(Table_IntInputs[[#This Row],[Windows?]]=\"\",\"No\",Table_IntInputs[[#This Row],[Windows?]]),\" - \",Table_IntInputs[[#This Row],[Space Type]]))))","v":""},null,null,null,null,null,null,{"$f":"IFERROR(IF(AND($E$1=\"Space-by-Space\",ISNUMBER(FIND(\"Corridor\",Table_IntInputs[[#This Row],[Space Type]],1))),Table_IntInputs[[#This Row],[Width]],2.5*Table_IntInputs[[#This Row],[Perimeter]]*Table_IntInputs[[#This Row],[Room Cavity Height]]/Table_IntInputs[[#This Row],[Area Sq Ft]]),\"\")","v":""},{"$f":"IFERROR(IF(ASHRAEMethod=\"Space-By-Space\",IF(ISNUMBER(FIND(\"Corridor\",Table_IntInputs[[#This Row],[Space Type]],1)),VLOOKUP(Table_IntInputs[[#This Row],[Space Type]],IF(FiscalYear=\"FY25\",SpaceBySpace_2016[],SpaceBySpace_2016[]),5,FALSE),VLOOKUP(Table_IntInputs[[#This Row],[Space Type]],IF(FiscalYear=\"FY25\",SpaceBySpace_2016[],SpaceBySpace_2016[]),4,FALSE)),\"\"),\"\")","v":""},{"$f":"IFERROR(\n    ROUND(IF(AND(ASHRAEMethod=\"Space-By-Space\",Table_IntInputs[[#This Row],[Space Type]]=\"Atrium, above 40ft\"),0.4+Table_IntInputs[[#This Row],[Room Cavity Height]]*0.02,IF(AND(ASHRAEMethod=\"Space-By-Space\",ISNUMBER(FIND(\"Atrium\",Table_IntInputs[[#This Row],[Space Type]],1))),Table_IntInputs[[#This Row],[Room Cavity Height]]*0.03,VLOOKUP(Table_IntInputs[[#This Row],[Space Type]],IF($E$1=\"Space-By-Space\",IF(FiscalYear=\"FY25\",SpaceBySpace_2016[],SpaceBySpace_2016[]),IF(FiscalYear=\"FY25\",Table_BldgArea_2016[],Table_BldgArea_2016[])),2,FALSE)))  *\n        IF(OR(AND($E$1=\"Space-By-Space\",ISNUMBER(FIND(\"Corridor\",Table_IntInputs[[#This Row],[Space Type]],1)),Table_IntInputs[[#This Row],[RCR]]>=Table_IntInputs[[#This Row],[RCR,W_m]]),\n        AND($E$1=\"Space-By-Space\",NOT(ISNUMBER(FIND(\"Corridor\",Table_IntInputs[[#This Row],[Space Type]],1))),Table_IntInputs[[#This Row],[RCR]]>=Table_IntInputs[[#This Row],[RCR,W_m]],Table_IntInputs[[#This Row],[RCR,W_m]]>0)),1.2,1),2)  *\n        IFERROR(IF(ISNUMBER(MATCH(Table_IntInputs[[#This Row],[Space Type]],Table_AddlControl_2016[Facility Type],0)),1+INDEX(Table_AddlControl_2016[#All],MATCH(Table_IntInputs[[#This Row],[Space Type]],Table_AddlControl_2016[[#All],[Facility Type]],0),MATCH(IF(Table_IntInputs[[#This Row],[Additional Controls?]]=\"\",\"None\",Table_IntInputs[[#This Row],[Additional Controls?]]),Table_AddlControl_2016[#Headers],0)),1),1),\"\")","v":""},{"$f":"IFERROR(VLOOKUP(Table_IntInputs[[#This Row],[Space Type]],IF(ASHRAEMethod=\"Space-By-Space\",IF(FiscalYear=\"FY25\",SpaceBySpace_2016[],SpaceBySpace_2016[]),IF(FiscalYear=\"FY25\",Table_BldgArea_2016[],Table_BldgArea_2016[])),3,FALSE),\"\")","v":""},{"$f":"IFERROR(IF(Table_IntInputs[[#This Row],[Space Type]]=\"Exterior\",'Exterior Information'!$J$3,ROUND(IF(Table_IntInputs[[#This Row],[Units]]=\"W/ft2\",Table_IntInputs[[#This Row],[Area Sq Ft]]*Table_IntInputs[[#This Row],[LPD]],Table_IntInputs[[#This Row],[Area Sq Ft]]*Table_IntInputs[[#This Row],[Room Cavity Height]]*Table_IntInputs[[#This Row],[LPD]]),2)),\"\")","v":""},{"$f":"IFERROR(IF(AND(Table_IntInputs[[#This Row],[Windows?]]=\"No\",VLOOKUP(Table_IntInputs[[#This Row],[Space Type]],IF(FiscalYear=\"FY24\",SpaceBySpace_2016[],SpaceBySpace_2016[]),6,FALSE)=\"Occ + DL\"),\"Occ\",IF(AND(Table_IntInputs[[#This Row],[Windows?]]=\"No\",VLOOKUP(Table_IntInputs[[#This Row],[Space Type]],IF(FiscalYear=\"FY24\",SpaceBySpace_2016[],SpaceBySpace_2016[]),6,FALSE)=\"DL\"),\"\",VLOOKUP(Table_IntInputs[[#This Row],[Space Type]],IF(FiscalYear=\"FY24\",SpaceBySpace_2016[],SpaceBySpace_2016[]),6,FALSE))),\"\")","v":""},null,null,null,{"$f":"IFERROR(IF(R33+1>MAX(Table_IntInputs[Zone]),\"\",R33+1),\"\")","v":""},{"$f":"VLOOKUP(R34,Table_IntInputs[[Zone]:[Concatenate(Wndw-Sp Type)]],2,FALSE)","v":""},"",{"$f":"IFERROR(IF(Table_IntLookups[[#This Row],[Zone'#]]<>\"\",VLOOKUP(INDEX(Table_IntInputs[],MATCH(Table_IntLookups[[#This Row],[Zone'#]],Table_IntInputs[Zone],0),4),Table_BuildingFactors[#Data],2,FALSE),\"\"),0)","v":""},{"$f":"IFERROR(IF(Table_IntLookups[[#This Row],[Zone'#]]<>\"\",VLOOKUP(INDEX(Table_IntInputs[],MATCH(Table_IntLookups[[#This Row],[Zone'#]],Table_IntInputs[Zone],0),4),Table_BuildingFactors[#Data],3,FALSE),\"\"),0)","v":""},{"$f":"IFERROR(IF(Table_IntLookups[[#This Row],[Zone'#]]<>\"\",VLOOKUP(INDEX(Table_IntInputs[],MATCH(Table_IntLookups[[#This Row],[Zone'#]],Table_IntInputs[Zone],0),4),Table_BuildingFactors[#Data],3,FALSE),\"\"),0)","v":""},{"$f":"IFERROR(IF(Table_IntLookups[[#This Row],[Zone'#]]<>\"\",VLOOKUP(INDEX(Table_IntInputs[],MATCH(Table_IntLookups[[#This Row],[Zone'#]],Table_IntInputs[Zone],0),4),Table_BuildingFactors[#Data],5,FALSE),\"\"),0)","v":""},{"$f":"IFERROR(IF(Table_IntLookups[[#This Row],[Zone'#]]<>\"\",VLOOKUP(INDEX(Table_IntInputs[],MATCH(Table_IntLookups[[#This Row],[Zone'#]],Table_IntInputs[Zone],0),4),Table_BuildingFactors[#Data],6,FALSE),\"\"),0)","v":""},{"$f":"IFERROR(IF(Table_IntLookups[[#This Row],[Zone'#]]<>\"\",VLOOKUP(INDEX(Table_IntInputs[],MATCH(Table_IntLookups[[#This Row],[Zone'#]],Table_IntInputs[Zone],0),4),Table_BuildingFactors[#Data],7,FALSE),\"\"),0)","v":""},{"$f":"IFERROR(IF(Table_IntLookups[[#This Row],[Zone'#]]<>\"\",VLOOKUP(Table_IntLookups[[#This Row],[Description]],INDIRECT(\"Table_BldgArea_\" & IF(FiscalYear=\"FY24\",2013,2016)),4,FALSE),\"\"),0)","v":""},{"$f":"IF($R34=\"\",\"\",SUMIFS(Table_IntInputs[Total Wattage],Table_IntInputs[Zone],$R34))","v":""}]
[{"$f":"IF(OR(Table_IntInputs[[#This Row],[LPD]]=\"\",Table_IntInputs[[#This Row],[Concatenate(Wndw-Sp Type)]]=\"\"),\"\",IF(AND(ISNUMBER(MATCH(Table_IntInputs[[#This Row],[Concatenate(Wndw-Sp Type)]],$B$5:$B34,0))),IF(A34=\"Zone\",1,INDIRECT(\"A\" & MATCH(Table_IntInputs[[#This Row],[Concatenate(Wndw-Sp Type)]],$B$5:$B34,0)+4)),IF(A34=\"Zone\",1,MAX($A$5:$A34)+1)))","v":""},{"$f":"IF(Table_IntInputs[[#This Row],[Space Type]]=\"Exterior\",\"Exterior\",IF(Table_IntInputs[[#This Row],[Space Type]]=\"\",\"\",IF(AND($E$1=\"Building Area\",ISNUMBER(MATCH(Table_IntInputs[[#This Row],[Space Type]],Table_BldgArea_2016[Building Area Type],0))),Table_IntInputs[[#This Row],[Space Type]],CONCATENATE(IF(Table_IntInputs[[#This Row],[Windows?]]=\"\",\"No\",Table_IntInputs[[#This Row],[Windows?]]),\" - \",Table_IntInputs[[#This Row],[Space Type]]))))","v":""},null,null,null,null,null,null,{"$f":"IFERROR(IF(AND($E$1=\"Space-by-Space\",ISNUMBER(FIND(\"Corridor\",Table_IntInputs[[#This Row],[Space Type]],1))),Table_IntInputs[[#This Row],[Width]],2.5*Table_IntInputs[[#This Row],[Perimeter]]*Table_IntInputs[[#This Row],[Room Cavity Height]]/Table_IntInputs[[#This Row],[Area Sq Ft]]),\"\")","v":""},{"$f":"IFERROR(IF(ASHRAEMethod=\"Space-By-Space\",IF(ISNUMBER(FIND(\"Corridor\",Table_IntInputs[[#This Row],[Space Type]],1)),VLOOKUP(Table_IntInputs[[#This Row],[Space Type]],IF(FiscalYear=\"FY25\",SpaceBySpace_2016[],SpaceBySpace_2016[]),5,FALSE),VLOOKUP(Table_IntInputs[[#This Row],[Space Type]],IF(FiscalYear=\"FY25\",SpaceBySpace_2016[],SpaceBySpace_2016[]),4,FALSE)),\"\"),\"\")","v":""},{"$f":"IFERROR(\n    ROUND(IF(AND(ASHRAEMethod=\"Space-By-Space\",Table_IntInputs[[#This Row],[Space Type]]=\"Atrium, above 40ft\"),0.4+Table_IntInputs[[#This Row],[Room Cavity Height]]*0.02,IF(AND(ASHRAEMethod=\"Space-By-Space\",ISNUMBER(FIND(\"Atrium\",Table_IntInputs[[#This Row],[Space Type]],1))),Table_IntInputs[[#This Row],[Room Cavity Height]]*0.03,VLOOKUP(Table_IntInputs[[#This Row],[Space Type]],IF($E$1=\"Space-By-Space\",IF(FiscalYear=\"FY25\",SpaceBySpace_2016[],SpaceBySpace_2016[]),IF(FiscalYear=\"FY25\",Table_BldgArea_2016[],Table_BldgArea_2016[])),2,FALSE)))  *\n        IF(OR(AND($E$1=\"Space-By-Space\",ISNUMBER(FIND(\"Corridor\",Table_IntInputs[[#This Row],[Space Type]],1)),Table_IntInputs[[#This Row],[RCR]]>=Table_IntInputs[[#This Row],[RCR,W_m]]),\n        AND($E$1=\"Space-By-Space\",NOT(ISNUMBER(FIND(\"Corridor\",Table_IntInputs[[#This Row],[Space Type]],1))),Table_IntInputs[[#This Row],[RCR]]>=Table_IntInputs[[#This Row],[RCR,W_m]],Table_IntInputs[[#This Row],[RCR,W_m]]>0)),1.2,1),2)  *\n        IFERROR(IF(ISNUMBER(MATCH(Table_IntInputs[[#This Row],[Space Type]],Table_AddlControl_2016[Facility Type],0)),1+INDEX(Table_AddlControl_2016[#All],MATCH(Table_IntInputs[[#This Row],[Space Type]],Table_AddlControl_2016[[#All],[Facility Type]],0),MATCH(IF(Table_IntInputs[[#This Row],[Additional Controls?]]=\"\",\"None\",Table_IntInputs[[#This Row],[Additional Controls?]]),Table_AddlControl_2016[#Headers],0)),1),1),\"\")","v":""},{"$f":"IFERROR(VLOOKUP(Table_IntInputs[[#This Row],[Space Type]],IF(ASHRAEMethod=\"Space-By-Space\",IF(FiscalYear=\"FY25\",SpaceBySpace_2016[],SpaceBySpace_2016[]),IF(FiscalYear=\"FY25\",Table_BldgArea_2016[],Table_BldgArea_2016[])),3,FALSE),\"\")","v":""},{"$f":"IFERROR(IF(Table_IntInputs[[#This Row],[Space Type]]=\"Exterior\",'Exterior Information'!$J$3,ROUND(IF(Table_IntInputs[[#This Row],[Units]]=\"W/ft2\",Table_IntInputs[[#This Row],[Area Sq Ft]]*Table_IntInputs[[#This Row],[LPD]],Table_IntInputs[[#This Row],[Area Sq Ft]]*Table_IntInputs[[#This Row],[Room Cavity Height]]*Table_IntInputs[[#This Row],[LPD]]),2)),\"\")","v":""},{"$f":"IFERROR(IF(AND(Table_IntInputs[[#This Row],[Windows?]]=\"No\",VLOOKUP(Table_IntInputs[[#This Row],[Space Type]],IF(FiscalYear=\"FY24\",SpaceBySpace_2016[],SpaceBySpace_2016[]),6,FALSE)=\"Occ + DL\"),\"Occ\",IF(AND(Table_IntInputs[[#This Row],[Windows?]]=\"No\",VLOOKUP(Table_IntInputs[[#This Row],[Space Type]],IF(FiscalYear=\"FY24\",SpaceBySpace_2016[],SpaceBySpace_2016[]),6,FALSE)=\"DL\"),\"\",VLOOKUP(Table_IntInputs[[#This Row],[Space Type]],IF(FiscalYear=\"FY24\",SpaceBySpace_2016[],SpaceBySpace_2016[]),6,FALSE))),\"\")","v":""},null,null,null,{"$f":"IFERROR(IF(R34+1>MAX(Table_IntInputs[Zone]),\"\",R34+1),\"\")","v":""},{"$f":"VLOOKUP(R35,Table_IntInputs[[Zone]:[Concatenate(Wndw-Sp Type)]],2,FALSE)","v":""},"",{"$f":"IFERROR(IF(Table_IntLookups[[#This Row],[Zone'#]]<>\"\",VLOOKUP(INDEX(Table_IntInputs[],MATCH(Table_IntLookups[[#This Row],[Zone'#]],Table_IntInputs[Zone],0),4),Table_BuildingFactors[#Data],2,FALSE),\"\"),0)","v":""},{"$f":"IFERROR(IF(Table_IntLookups[[#This Row],[Zone'#]]<>\"\",VLOOKUP(INDEX(Table_IntInputs[],MATCH(Table_IntLookups[[#This Row],[Zone'#]],Table_IntInputs[Zone],0),4),Table_BuildingFactors[#Data],3,FALSE),\"\"),0)","v":""},{"$f":"IFERROR(IF(Table_IntLookups[[#This Row],[Zone'#]]<>\"\",VLOOKUP(INDEX(Table_IntInputs[],MATCH(Table_IntLookups[[#This Row],[Zone'#]],Table_IntInputs[Zone],0),4),Table_BuildingFactors[#Data],3,FALSE),\"\"),0)","v":""},{"$f":"IFERROR(IF(Table_IntLookups[[#This Row],[Zone'#]]<>\"\",VLOOKUP(INDEX(Table_IntInputs[],MATCH(Table_IntLookups[[#This Row],[Zone'#]],Table_IntInputs[Zone],0),4),Table_BuildingFactors[#Data],5,FALSE),\"\"),0)","v":""},{"$f":"IFERROR(IF(Table_IntLookups[[#This Row],[Zone'#]]<>\"\",VLOOKUP(INDEX(Table_IntInputs[],MATCH(Table_IntLookups[[#This Row],[Zone'#]],Table_IntInputs[Zone],0),4),Table_BuildingFactors[#Data],6,FALSE),\"\"),0)","v":""},{"$f":"IFERROR(IF(Table_IntLookups[[#This Row],[Zone'#]]<>\"\",VLOOKUP(INDEX(Table_IntInputs[],MATCH(Table_IntLookups[[#This Row],[Zone'#]],Table_IntInputs[Zone],0),4),Table_BuildingFactors[#Data],7,FALSE),\"\"),0)","v":""},{"$f":"IFERROR(IF(Table_IntLookups[[#This Row],[Zone'#]]<>\"\",VLOOKUP(Table_IntLookups[[#This Row],[Description]],INDIRECT(\"Table_BldgArea_\" & IF(FiscalYear=\"FY24\",2013,2016)),4,FALSE),\"\"),0)","v":""},{"$f":"IF($R35=\"\",\"\",SUMIFS(Table_IntInputs[Total Wattage],Table_IntInputs[Zone],$R35))","v":""}]
[{"$f":"IF(OR(Table_IntInputs[[#This Row],[LPD]]=\"\",Table_IntInputs[[#This Row],[Concatenate(Wndw-Sp Type)]]=\"\"),\"\",IF(AND(ISNUMBER(MATCH(Table_IntInputs[[#This Row],[Concatenate(Wndw-Sp Type)]],$B$5:$B35,0))),IF(A35=\"Zone\",1,INDIRECT(\"A\" & MATCH(Table_IntInputs[[#This Row],[Concatenate(Wndw-Sp Type)]],$B$5:$B35,0)+4)),IF(A35=\"Zone\",1,MAX($A$5:$A35)+1)))","v":""},{"$f":"IF(Table_IntInputs[[#This Row],[Space Type]]=\"Exterior\",\"Exterior\",IF(Table_IntInputs[[#This Row],[Space Type]]=\"\",\"\",IF(AND($E$1=\"Building Area\",ISNUMBER(MATCH(Table_IntInputs[[#This Row],[Space Type]],Table_BldgArea_2016[Building Area Type],0))),Table_IntInputs[[#This Row],[Space Type]],CONCATENATE(IF(Table_IntInputs[[#This Row],[Windows?]]=\"\",\"No\",Table_IntInputs[[#This Row],[Windows?]]),\" - \",Table_IntInputs[[#This Row],[Space Type]]))))","v":""},null,null,null,null,null,null,{"$f":"IFERROR(IF(AND($E$1=\"Space-by-Space\",ISNUMBER(FIND(\"Corridor\",Table_IntInputs[[#This Row],[Space Type]],1))),Table_IntInputs[[#This Row],[Width]],2.5*Table_IntInputs[[#This Row],[Perimeter]]*Table_IntInputs[[#This Row],[Room Cavity Height]]/Table_IntInputs[[#This Row],[Area Sq Ft]]),\"\")","v":""},{"$f":"IFERROR(IF(ASHRAEMethod=\"Space-By-Space\",IF(ISNUMBER(FIND(\"Corridor\",Table_IntInputs[[#This Row],[Space Type]],1)),VLOOKUP(Table_IntInputs[[#This Row],[Space Type]],IF(FiscalYear=\"FY25\",SpaceBySpace_2016[],SpaceBySpace_2016[]),5,FALSE),VLOOKUP(Table_IntInputs[[#This Row],[Space Type]],IF(FiscalYear=\"FY25\",SpaceBySpace_2016[],SpaceBySpace_2016[]),4,FALSE)),\"\"),\"\")","v":""},{"$f":"IFERROR(\n    ROUND(IF(AND(ASHRAEMethod=\"Space-By-Space\",Table_IntInputs[[#This Row],[Space Type]]=\"Atrium, above 40ft\"),0.4+Table_IntInputs[[#This Row],[Room Cavity Height]]*0.02,IF(AND(ASHRAEMethod=\"Space-By-Space\",ISNUMBER(FIND(\"Atrium\",Table_IntInputs[[#This Row],[Space Type]],1))),Table_IntInputs[[#This Row],[Room Cavity Height]]*0.03,VLOOKUP(Table_IntInputs[[#This Row],[Space Type]],IF($E$1=\"Space-By-Space\",IF(FiscalYear=\"FY25\",SpaceBySpace_2016[],SpaceBySpace_2016[]),IF(FiscalYear=\"FY25\",Table_BldgArea_2016[],Table_BldgArea_2016[])),2,FALSE)))  *\n        IF(OR(AND($E$1=\"Space-By-Space\",ISNUMBER(FIND(\"Corridor\",Table_IntInputs[[#This Row],[Space Type]],1)),Table_IntInputs[[#This Row],[RCR]]>=Table_IntInputs[[#This Row],[RCR,W_m]]),\n        AND($E$1=\"Space-By-Space\",NOT(ISNUMBER(FIND(\"Corridor\",Table_IntInputs[[#This Row],[Space Type]],1))),Table_IntInputs[[#This Row],[RCR]]>=Table_IntInputs[[#This Row],[RCR,W_m]],Table_IntInputs[[#This Row],[RCR,W_m]]>0)),1.2,1),2)  *\n        IFERROR(IF(ISNUMBER(MATCH(Table_IntInputs[[#This Row],[Space Type]],Table_AddlControl_2016[Facility Type],0)),1+INDEX(Table_AddlControl_2016[#All],MATCH(Table_IntInputs[[#This Row],[Space Type]],Table_AddlControl_2016[[#All],[Facility Type]],0),MATCH(IF(Table_IntInputs[[#This Row],[Additional Controls?]]=\"\",\"None\",Table_IntInputs[[#This Row],[Additional Controls?]]),Table_AddlControl_2016[#Headers],0)),1),1),\"\")","v":""},{"$f":"IFERROR(VLOOKUP(Table_IntInputs[[#This Row],[Space Type]],IF(ASHRAEMethod=\"Space-By-Space\",IF(FiscalYear=\"FY25\",SpaceBySpace_2016[],SpaceBySpace_2016[]),IF(FiscalYear=\"FY25\",Table_BldgArea_2016[],Table_BldgArea_2016[])),3,FALSE),\"\")","v":""},{"$f":"IFERROR(IF(Table_IntInputs[[#This Row],[Space Type]]=\"Exterior\",'Exterior Information'!$J$3,ROUND(IF(Table_IntInputs[[#This Row],[Units]]=\"W/ft2\",Table_IntInputs[[#This Row],[Area Sq Ft]]*Table_IntInputs[[#This Row],[LPD]],Table_IntInputs[[#This Row],[Area Sq Ft]]*Table_IntInputs[[#This Row],[Room Cavity Height]]*Table_IntInputs[[#This Row],[LPD]]),2)),\"\")","v":""},{"$f":"IFERROR(IF(AND(Table_IntInputs[[#This Row],[Windows?]]=\"No\",VLOOKUP(Table_IntInputs[[#This Row],[Space Type]],IF(FiscalYear=\"FY24\",SpaceBySpace_2016[],SpaceBySpace_2016[]),6,FALSE)=\"Occ + DL\"),\"Occ\",IF(AND(Table_IntInputs[[#This Row],[Windows?]]=\"No\",VLOOKUP(Table_IntInputs[[#This Row],[Space Type]],IF(FiscalYear=\"FY24\",SpaceBySpace_2016[],SpaceBySpace_2016[]),6,FALSE)=\"DL\"),\"\",VLOOKUP(Table_IntInputs[[#This Row],[Space Type]],IF(FiscalYear=\"FY24\",SpaceBySpace_2016[],SpaceBySpace_2016[]),6,FALSE))),\"\")","v":""},null,null,null,{"$f":"IFERROR(IF(R35+1>MAX(Table_IntInputs[Zone]),\"\",R35+1),\"\")","v":""},{"$f":"VLOOKUP(R36,Table_IntInputs[[Zone]:[Concatenate(Wndw-Sp Type)]],2,FALSE)","v":""},"",{"$f":"IFERROR(IF(Table_IntLookups[[#This Row],[Zone'#]]<>\"\",VLOOKUP(INDEX(Table_IntInputs[],MATCH(Table_IntLookups[[#This Row],[Zone'#]],Table_IntInputs[Zone],0),4),Table_BuildingFactors[#Data],2,FALSE),\"\"),0)","v":""},{"$f":"IFERROR(IF(Table_IntLookups[[#This Row],[Zone'#]]<>\"\",VLOOKUP(INDEX(Table_IntInputs[],MATCH(Table_IntLookups[[#This Row],[Zone'#]],Table_IntInputs[Zone],0),4),Table_BuildingFactors[#Data],3,FALSE),\"\"),0)","v":""},{"$f":"IFERROR(IF(Table_IntLookups[[#This Row],[Zone'#]]<>\"\",VLOOKUP(INDEX(Table_IntInputs[],MATCH(Table_IntLookups[[#This Row],[Zone'#]],Table_IntInputs[Zone],0),4),Table_BuildingFactors[#Data],3,FALSE),\"\"),0)","v":""},{"$f":"IFERROR(IF(Table_IntLookups[[#This Row],[Zone'#]]<>\"\",VLOOKUP(INDEX(Table_IntInputs[],MATCH(Table_IntLookups[[#This Row],[Zone'#]],Table_IntInputs[Zone],0),4),Table_BuildingFactors[#Data],5,FALSE),\"\"),0)","v":""},{"$f":"IFERROR(IF(Table_IntLookups[[#This Row],[Zone'#]]<>\"\",VLOOKUP(INDEX(Table_IntInputs[],MATCH(Table_IntLookups[[#This Row],[Zone'#]],Table_IntInputs[Zone],0),4),Table_BuildingFactors[#Data],6,FALSE),\"\"),0)","v":""},{"$f":"IFERROR(IF(Table_IntLookups[[#This Row],[Zone'#]]<>\"\",VLOOKUP(INDEX(Table_IntInputs[],MATCH(Table_IntLookups[[#This Row],[Zone'#]],Table_IntInputs[Zone],0),4),Table_BuildingFactors[#Data],7,FALSE),\"\"),0)","v":""},{"$f":"IFERROR(IF(Table_IntLookups[[#This Row],[Zone'#]]<>\"\",VLOOKUP(Table_IntLookups[[#This Row],[Description]],INDIRECT(\"Table_BldgArea_\" & IF(FiscalYear=\"FY24\",2013,2016)),4,FALSE),\"\"),0)","v":""},{"$f":"IF($R36=\"\",\"\",SUMIFS(Table_IntInputs[Total Wattage],Table_IntInputs[Zone],$R36))","v":""}]
[{"$f":"IF(OR(Table_IntInputs[[#This Row],[LPD]]=\"\",Table_IntInputs[[#This Row],[Concatenate(Wndw-Sp Type)]]=\"\"),\"\",IF(AND(ISNUMBER(MATCH(Table_IntInputs[[#This Row],[Concatenate(Wndw-Sp Type)]],$B$5:$B36,0))),IF(A36=\"Zone\",1,INDIRECT(\"A\" & MATCH(Table_IntInputs[[#This Row],[Concatenate(Wndw-Sp Type)]],$B$5:$B36,0)+4)),IF(A36=\"Zone\",1,MAX($A$5:$A36)+1)))","v":""},{"$f":"IF(Table_IntInputs[[#This Row],[Space Type]]=\"Exterior\",\"Exterior\",IF(Table_IntInputs[[#This Row],[Space Type]]=\"\",\"\",IF(AND($E$1=\"Building Area\",ISNUMBER(MATCH(Table_IntInputs[[#This Row],[Space Type]],Table_BldgArea_2016[Building Area Type],0))),Table_IntInputs[[#This Row],[Space Type]],CONCATENATE(IF(Table_IntInputs[[#This Row],[Windows?]]=\"\",\"No\",Table_IntInputs[[#This Row],[Windows?]]),\" - \",Table_IntInputs[[#This Row],[Space Type]]))))","v":""},null,null,null,null,null,null,{"$f":"IFERROR(IF(AND($E$1=\"Space-by-Space\",ISNUMBER(FIND(\"Corridor\",Table_IntInputs[[#This Row],[Space Type]],1))),Table_IntInputs[[#This Row],[Width]],2.5*Table_IntInputs[[#This Row],[Perimeter]]*Table_IntInputs[[#This Row],[Room Cavity Height]]/Table_IntInputs[[#This Row],[Area Sq Ft]]),\"\")","v":""},{"$f":"IFERROR(IF(ASHRAEMethod=\"Space-By-Space\",IF(ISNUMBER(FIND(\"Corridor\",Table_IntInputs[[#This Row],[Space Type]],1)),VLOOKUP(Table_IntInputs[[#This Row],[Space Type]],IF(FiscalYear=\"FY25\",SpaceBySpace_2016[],SpaceBySpace_2016[]),5,FALSE),VLOOKUP(Table_IntInputs[[#This Row],[Space Type]],IF(FiscalYear=\"FY25\",SpaceBySpace_2016[],SpaceBySpace_2016[]),4,FALSE)),\"\"),\"\")","v":""},{"$f":"IFERROR(\n    ROUND(IF(AND(ASHRAEMethod=\"Space-By-Space\",Table_IntInputs[[#This Row],[Space Type]]=\"Atrium, above 40ft\"),0.4+Table_IntInputs[[#This Row],[Room Cavity Height]]*0.02,IF(AND(ASHRAEMethod=\"Space-By-Space\",ISNUMBER(FIND(\"Atrium\",Table_IntInputs[[#This Row],[Space Type]],1))),Table_IntInputs[[#This Row],[Room Cavity Height]]*0.03,VLOOKUP(Table_IntInputs[[#This Row],[Space Type]],IF($E$1=\"Space-By-Space\",IF(FiscalYear=\"FY25\",SpaceBySpace_2016[],SpaceBySpace_2016[]),IF(FiscalYear=\"FY25\",Table_BldgArea_2016[],Table_BldgArea_2016[])),2,FALSE)))  *\n        IF(OR(AND($E$1=\"Space-By-Space\",ISNUMBER(FIND(\"Corridor\",Table_IntInputs[[#This Row],[Space Type]],1)),Table_IntInputs[[#This Row],[RCR]]>=Table_IntInputs[[#This Row],[RCR,W_m]]),\n        AND($E$1=\"Space-By-Space\",NOT(ISNUMBER(FIND(\"Corridor\",Table_IntInputs[[#This Row],[Space Type]],1))),Table_IntInputs[[#This Row],[RCR]]>=Table_IntInputs[[#This Row],[RCR,W_m]],Table_IntInputs[[#This Row],[RCR,W_m]]>0)),1.2,1),2)  *\n        IFERROR(IF(ISNUMBER(MATCH(Table_IntInputs[[#This Row],[Space Type]],Table_AddlControl_2016[Facility Type],0)),1+INDEX(Table_AddlControl_2016[#All],MATCH(Table_IntInputs[[#This Row],[Space Type]],Table_AddlControl_2016[[#All],[Facility Type]],0),MATCH(IF(Table_IntInputs[[#This Row],[Additional Controls?]]=\"\",\"None\",Table_IntInputs[[#This Row],[Additional Controls?]]),Table_AddlControl_2016[#Headers],0)),1),1),\"\")","v":""},{"$f":"IFERROR(VLOOKUP(Table_IntInputs[[#This Row],[Space Type]],IF(ASHRAEMethod=\"Space-By-Space\",IF(FiscalYear=\"FY25\",SpaceBySpace_2016[],SpaceBySpace_2016[]),IF(FiscalYear=\"FY25\",Table_BldgArea_2016[],Table_BldgArea_2016[])),3,FALSE),\"\")","v":""},{"$f":"IFERROR(IF(Table_IntInputs[[#This Row],[Space Type]]=\"Exterior\",'Exterior Information'!$J$3,ROUND(IF(Table_IntInputs[[#This Row],[Units]]=\"W/ft2\",Table_IntInputs[[#This Row],[Area Sq Ft]]*Table_IntInputs[[#This Row],[LPD]],Table_IntInputs[[#This Row],[Area Sq Ft]]*Table_IntInputs[[#This Row],[Room Cavity Height]]*Table_IntInputs[[#This Row],[LPD]]),2)),\"\")","v":""},{"$f":"IFERROR(IF(AND(Table_IntInputs[[#This Row],[Windows?]]=\"No\",VLOOKUP(Table_IntInputs[[#This Row],[Space Type]],IF(FiscalYear=\"FY24\",SpaceBySpace_2016[],SpaceBySpace_2016[]),6,FALSE)=\"Occ + DL\"),\"Occ\",IF(AND(Table_IntInputs[[#This Row],[Windows?]]=\"No\",VLOOKUP(Table_IntInputs[[#This Row],[Space Type]],IF(FiscalYear=\"FY24\",SpaceBySpace_2016[],SpaceBySpace_2016[]),6,FALSE)=\"DL\"),\"\",VLOOKUP(Table_IntInputs[[#This Row],[Space Type]],IF(FiscalYear=\"FY24\",SpaceBySpace_2016[],SpaceBySpace_2016[]),6,FALSE))),\"\")","v":""},null,null,null,{"$f":"IFERROR(IF(R36+1>MAX(Table_IntInputs[Zone]),\"\",R36+1),\"\")","v":""},{"$f":"VLOOKUP(R37,Table_IntInputs[[Zone]:[Concatenate(Wndw-Sp Type)]],2,FALSE)","v":""},"",{"$f":"IFERROR(IF(Table_IntLookups[[#This Row],[Zone'#]]<>\"\",VLOOKUP(INDEX(Table_IntInputs[],MATCH(Table_IntLookups[[#This Row],[Zone'#]],Table_IntInputs[Zone],0),4),Table_BuildingFactors[#Data],2,FALSE),\"\"),0)","v":""},{"$f":"IFERROR(IF(Table_IntLookups[[#This Row],[Zone'#]]<>\"\",VLOOKUP(INDEX(Table_IntInputs[],MATCH(Table_IntLookups[[#This Row],[Zone'#]],Table_IntInputs[Zone],0),4),Table_BuildingFactors[#Data],3,FALSE),\"\"),0)","v":""},{"$f":"IFERROR(IF(Table_IntLookups[[#This Row],[Zone'#]]<>\"\",VLOOKUP(INDEX(Table_IntInputs[],MATCH(Table_IntLookups[[#This Row],[Zone'#]],Table_IntInputs[Zone],0),4),Table_BuildingFactors[#Data],3,FALSE),\"\"),0)","v":""},{"$f":"IFERROR(IF(Table_IntLookups[[#This Row],[Zone'#]]<>\"\",VLOOKUP(INDEX(Table_IntInputs[],MATCH(Table_IntLookups[[#This Row],[Zone'#]],Table_IntInputs[Zone],0),4),Table_BuildingFactors[#Data],5,FALSE),\"\"),0)","v":""},{"$f":"IFERROR(IF(Table_IntLookups[[#This Row],[Zone'#]]<>\"\",VLOOKUP(INDEX(Table_IntInputs[],MATCH(Table_IntLookups[[#This Row],[Zone'#]],Table_IntInputs[Zone],0),4),Table_BuildingFactors[#Data],6,FALSE),\"\"),0)","v":""},{"$f":"IFERROR(IF(Table_IntLookups[[#This Row],[Zone'#]]<>\"\",VLOOKUP(INDEX(Table_IntInputs[],MATCH(Table_IntLookups[[#This Row],[Zone'#]],Table_IntInputs[Zone],0),4),Table_BuildingFactors[#Data],7,FALSE),\"\"),0)","v":""},{"$f":"IFERROR(IF(Table_IntLookups[[#This Row],[Zone'#]]<>\"\",VLOOKUP(Table_IntLookups[[#This Row],[Description]],INDIRECT(\"Table_BldgArea_\" & IF(FiscalYear=\"FY24\",2013,2016)),4,FALSE),\"\"),0)","v":""},{"$f":"IF($R37=\"\",\"\",SUMIFS(Table_IntInputs[Total Wattage],Table_IntInputs[Zone],$R37))","v":""}]
[{"$f":"IF(OR(Table_IntInputs[[#This Row],[LPD]]=\"\",Table_IntInputs[[#This Row],[Concatenate(Wndw-Sp Type)]]=\"\"),\"\",IF(AND(ISNUMBER(MATCH(Table_IntInputs[[#This Row],[Concatenate(Wndw-Sp Type)]],$B$5:$B37,0))),IF(A37=\"Zone\",1,INDIRECT(\"A\" & MATCH(Table_IntInputs[[#This Row],[Concatenate(Wndw-Sp Type)]],$B$5:$B37,0)+4)),IF(A37=\"Zone\",1,MAX($A$5:$A37)+1)))","v":""},{"$f":"IF(Table_IntInputs[[#This Row],[Space Type]]=\"Exterior\",\"Exterior\",IF(Table_IntInputs[[#This Row],[Space Type]]=\"\",\"\",IF(AND($E$1=\"Building Area\",ISNUMBER(MATCH(Table_IntInputs[[#This Row],[Space Type]],Table_BldgArea_2016[Building Area Type],0))),Table_IntInputs[[#This Row],[Space Type]],CONCATENATE(IF(Table_IntInputs[[#This Row],[Windows?]]=\"\",\"No\",Table_IntInputs[[#This Row],[Windows?]]),\" - \",Table_IntInputs[[#This Row],[Space Type]]))))","v":""},null,null,null,null,null,null,{"$f":"IFERROR(IF(AND($E$1=\"Space-by-Space\",ISNUMBER(FIND(\"Corridor\",Table_IntInputs[[#This Row],[Space Type]],1))),Table_IntInputs[[#This Row],[Width]],2.5*Table_IntInputs[[#This Row],[Perimeter]]*Table_IntInputs[[#This Row],[Room Cavity Height]]/Table_IntInputs[[#This Row],[Area Sq Ft]]),\"\")","v":""},{"$f":"IFERROR(IF(ASHRAEMethod=\"Space-By-Space\",IF(ISNUMBER(FIND(\"Corridor\",Table_IntInputs[[#This Row],[Space Type]],1)),VLOOKUP(Table_IntInputs[[#This Row],[Space Type]],IF(FiscalYear=\"FY25\",SpaceBySpace_2016[],SpaceBySpace_2016[]),5,FALSE),VLOOKUP(Table_IntInputs[[#This Row],[Space Type]],IF(FiscalYear=\"FY25\",SpaceBySpace_2016[],SpaceBySpace_2016[]),4,FALSE)),\"\"),\"\")","v":""},{"$f":"IFERROR(\n    ROUND(IF(AND(ASHRAEMethod=\"Space-By-Space\",Table_IntInputs[[#This Row],[Space Type]]=\"Atrium, above 40ft\"),0.4+Table_IntInputs[[#This Row],[Room Cavity Height]]*0.02,IF(AND(ASHRAEMethod=\"Space-By-Space\",ISNUMBER(FIND(\"Atrium\",Table_IntInputs[[#This Row],[Space Type]],1))),Table_IntInputs[[#This Row],[Room Cavity Height]]*0.03,VLOOKUP(Table_IntInputs[[#This Row],[Space Type]],IF($E$1=\"Space-By-Space\",IF(FiscalYear=\"FY25\",SpaceBySpace_2016[],SpaceBySpace_2016[]),IF(FiscalYear=\"FY25\",Table_BldgArea_2016[],Table_BldgArea_2016[])),2,FALSE)))  *\n        IF(OR(AND($E$1=\"Space-By-Space\",ISNUMBER(FIND(\"Corridor\",Table_IntInputs[[#This Row],[Space Type]],1)),Table_IntInputs[[#This Row],[RCR]]>=Table_IntInputs[[#This Row],[RCR,W_m]]),\n        AND($E$1=\"Space-By-Space\",NOT(ISNUMBER(FIND(\"Corridor\",Table_IntInputs[[#This Row],[Space Type]],1))),Table_IntInputs[[#This Row],[RCR]]>=Table_IntInputs[[#This Row],[RCR,W_m]],Table_IntInputs[[#This Row],[RCR,W_m]]>0)),1.2,1),2)  *\n        IFERROR(IF(ISNUMBER(MATCH(Table_IntInputs[[#This Row],[Space Type]],Table_AddlControl_2016[Facility Type],0)),1+INDEX(Table_AddlControl_2016[#All],MATCH(Table_IntInputs[[#This Row],[Space Type]],Table_AddlControl_2016[[#All],[Facility Type]],0),MATCH(IF(Table_IntInputs[[#This Row],[Additional Controls?]]=\"\",\"None\",Table_IntInputs[[#This Row],[Additional Controls?]]),Table_AddlControl_2016[#Headers],0)),1),1),\"\")","v":""},{"$f":"IFERROR(VLOOKUP(Table_IntInputs[[#This Row],[Space Type]],IF(ASHRAEMethod=\"Space-By-Space\",IF(FiscalYear=\"FY25\",SpaceBySpace_2016[],SpaceBySpace_2016[]),IF(FiscalYear=\"FY25\",Table_BldgArea_2016[],Table_BldgArea_2016[])),3,FALSE),\"\")","v":""},{"$f":"IFERROR(IF(Table_IntInputs[[#This Row],[Space Type]]=\"Exterior\",'Exterior Information'!$J$3,ROUND(IF(Table_IntInputs[[#This Row],[Units]]=\"W/ft2\",Table_IntInputs[[#This Row],[Area Sq Ft]]*Table_IntInputs[[#This Row],[LPD]],Table_IntInputs[[#This Row],[Area Sq Ft]]*Table_IntInputs[[#This Row],[Room Cavity Height]]*Table_IntInputs[[#This Row],[LPD]]),2)),\"\")","v":""},{"$f":"IFERROR(IF(AND(Table_IntInputs[[#This Row],[Windows?]]=\"No\",VLOOKUP(Table_IntInputs[[#This Row],[Space Type]],IF(FiscalYear=\"FY24\",SpaceBySpace_2016[],SpaceBySpace_2016[]),6,FALSE)=\"Occ + DL\"),\"Occ\",IF(AND(Table_IntInputs[[#This Row],[Windows?]]=\"No\",VLOOKUP(Table_IntInputs[[#This Row],[Space Type]],IF(FiscalYear=\"FY24\",SpaceBySpace_2016[],SpaceBySpace_2016[]),6,FALSE)=\"DL\"),\"\",VLOOKUP(Table_IntInputs[[#This Row],[Space Type]],IF(FiscalYear=\"FY24\",SpaceBySpace_2016[],SpaceBySpace_2016[]),6,FALSE))),\"\")","v":""},null,null,null,{"$f":"IFERROR(IF(R37+1>MAX(Table_IntInputs[Zone]),\"\",R37+1),\"\")","v":""},{"$f":"VLOOKUP(R38,Table_IntInputs[[Zone]:[Concatenate(Wndw-Sp Type)]],2,FALSE)","v":""},"",{"$f":"IFERROR(IF(Table_IntLookups[[#This Row],[Zone'#]]<>\"\",VLOOKUP(INDEX(Table_IntInputs[],MATCH(Table_IntLookups[[#This Row],[Zone'#]],Table_IntInputs[Zone],0),4),Table_BuildingFactors[#Data],2,FALSE),\"\"),0)","v":""},{"$f":"IFERROR(IF(Table_IntLookups[[#This Row],[Zone'#]]<>\"\",VLOOKUP(INDEX(Table_IntInputs[],MATCH(Table_IntLookups[[#This Row],[Zone'#]],Table_IntInputs[Zone],0),4),Table_BuildingFactors[#Data],3,FALSE),\"\"),0)","v":""},{"$f":"IFERROR(IF(Table_IntLookups[[#This Row],[Zone'#]]<>\"\",VLOOKUP(INDEX(Table_IntInputs[],MATCH(Table_IntLookups[[#This Row],[Zone'#]],Table_IntInputs[Zone],0),4),Table_BuildingFactors[#Data],3,FALSE),\"\"),0)","v":""},{"$f":"IFERROR(IF(Table_IntLookups[[#This Row],[Zone'#]]<>\"\",VLOOKUP(INDEX(Table_IntInputs[],MATCH(Table_IntLookups[[#This Row],[Zone'#]],Table_IntInputs[Zone],0),4),Table_BuildingFactors[#Data],5,FALSE),\"\"),0)","v":""},{"$f":"IFERROR(IF(Table_IntLookups[[#This Row],[Zone'#]]<>\"\",VLOOKUP(INDEX(Table_IntInputs[],MATCH(Table_IntLookups[[#This Row],[Zone'#]],Table_IntInputs[Zone],0),4),Table_BuildingFactors[#Data],6,FALSE),\"\"),0)","v":""},{"$f":"IFERROR(IF(Table_IntLookups[[#This Row],[Zone'#]]<>\"\",VLOOKUP(INDEX(Table_IntInputs[],MATCH(Table_IntLookups[[#This Row],[Zone'#]],Table_IntInputs[Zone],0),4),Table_BuildingFactors[#Data],7,FALSE),\"\"),0)","v":""},{"$f":"IFERROR(IF(Table_IntLookups[[#This Row],[Zone'#]]<>\"\",VLOOKUP(Table_IntLookups[[#This Row],[Description]],INDIRECT(\"Table_BldgArea_\" & IF(FiscalYear=\"FY24\",2013,2016)),4,FALSE),\"\"),0)","v":""},{"$f":"IF($R38=\"\",\"\",SUMIFS(Table_IntInputs[Total Wattage],Table_IntInputs[Zone],$R38))","v":""}]
[{"$f":"IF(OR(Table_IntInputs[[#This Row],[LPD]]=\"\",Table_IntInputs[[#This Row],[Concatenate(Wndw-Sp Type)]]=\"\"),\"\",IF(AND(ISNUMBER(MATCH(Table_IntInputs[[#This Row],[Concatenate(Wndw-Sp Type)]],$B$5:$B38,0))),IF(A38=\"Zone\",1,INDIRECT(\"A\" & MATCH(Table_IntInputs[[#This Row],[Concatenate(Wndw-Sp Type)]],$B$5:$B38,0)+4)),IF(A38=\"Zone\",1,MAX($A$5:$A38)+1)))","v":""},{"$f":"IF(Table_IntInputs[[#This Row],[Space Type]]=\"Exterior\",\"Exterior\",IF(Table_IntInputs[[#This Row],[Space Type]]=\"\",\"\",IF(AND($E$1=\"Building Area\",ISNUMBER(MATCH(Table_IntInputs[[#This Row],[Space Type]],Table_BldgArea_2016[Building Area Type],0))),Table_IntInputs[[#This Row],[Space Type]],CONCATENATE(IF(Table_IntInputs[[#This Row],[Windows?]]=\"\",\"No\",Table_IntInputs[[#This Row],[Windows?]]),\" - \",Table_IntInputs[[#This Row],[Space Type]]))))","v":""},null,null,null,null,null,null,{"$f":"IFERROR(IF(AND($E$1=\"Space-by-Space\",ISNUMBER(FIND(\"Corridor\",Table_IntInputs[[#This Row],[Space Type]],1))),Table_IntInputs[[#This Row],[Width]],2.5*Table_IntInputs[[#This Row],[Perimeter]]*Table_IntInputs[[#This Row],[Room Cavity Height]]/Table_IntInputs[[#This Row],[Area Sq Ft]]),\"\")","v":""},{"$f":"IFERROR(IF(ASHRAEMethod=\"Space-By-Space\",IF(ISNUMBER(FIND(\"Corridor\",Table_IntInputs[[#This Row],[Space Type]],1)),VLOOKUP(Table_IntInputs[[#This Row],[Space Type]],IF(FiscalYear=\"FY25\",SpaceBySpace_2016[],SpaceBySpace_2016[]),5,FALSE),VLOOKUP(Table_IntInputs[[#This Row],[Space Type]],IF(FiscalYear=\"FY25\",SpaceBySpace_2016[],SpaceBySpace_2016[]),4,FALSE)),\"\"),\"\")","v":""},{"$f":"IFERROR(\n    ROUND(IF(AND(ASHRAEMethod=\"Space-By-Space\",Table_IntInputs[[#This Row],[Space Type]]=\"Atrium, above 40ft\"),0.4+Table_IntInputs[[#This Row],[Room Cavity Height]]*0.02,IF(AND(ASHRAEMethod=\"Space-By-Space\",ISNUMBER(FIND(\"Atrium\",Table_IntInputs[[#This Row],[Space Type]],1))),Table_IntInputs[[#This Row],[Room Cavity Height]]*0.03,VLOOKUP(Table_IntInputs[[#This Row],[Space Type]],IF($E$1=\"Space-By-Space\",IF(FiscalYear=\"FY25\",SpaceBySpace_2016[],SpaceBySpace_2016[]),IF(FiscalYear=\"FY25\",Table_BldgArea_2016[],Table_BldgArea_2016[])),2,FALSE)))  *\n        IF(OR(AND($E$1=\"Space-By-Space\",ISNUMBER(FIND(\"Corridor\",Table_IntInputs[[#This Row],[Space Type]],1)),Table_IntInputs[[#This Row],[RCR]]>=Table_IntInputs[[#This Row],[RCR,W_m]]),\n        AND($E$1=\"Space-By-Space\",NOT(ISNUMBER(FIND(\"Corridor\",Table_IntInputs[[#This Row],[Space Type]],1))),Table_IntInputs[[#This Row],[RCR]]>=Table_IntInputs[[#This Row],[RCR,W_m]],Table_IntInputs[[#This Row],[RCR,W_m]]>0)),1.2,1),2)  *\n        IFERROR(IF(ISNUMBER(MATCH(Table_IntInputs[[#This Row],[Space Type]],Table_AddlControl_2016[Facility Type],0)),1+INDEX(Table_AddlControl_2016[#All],MATCH(Table_IntInputs[[#This Row],[Space Type]],Table_AddlControl_2016[[#All],[Facility Type]],0),MATCH(IF(Table_IntInputs[[#This Row],[Additional Controls?]]=\"\",\"None\",Table_IntInputs[[#This Row],[Additional Controls?]]),Table_AddlControl_2016[#Headers],0)),1),1),\"\")","v":""},{"$f":"IFERROR(VLOOKUP(Table_IntInputs[[#This Row],[Space Type]],IF(ASHRAEMethod=\"Space-By-Space\",IF(FiscalYear=\"FY25\",SpaceBySpace_2016[],SpaceBySpace_2016[]),IF(FiscalYear=\"FY25\",Table_BldgArea_2016[],Table_BldgArea_2016[])),3,FALSE),\"\")","v":""},{"$f":"IFERROR(IF(Table_IntInputs[[#This Row],[Space Type]]=\"Exterior\",'Exterior Information'!$J$3,ROUND(IF(Table_IntInputs[[#This Row],[Units]]=\"W/ft2\",Table_IntInputs[[#This Row],[Area Sq Ft]]*Table_IntInputs[[#This Row],[LPD]],Table_IntInputs[[#This Row],[Area Sq Ft]]*Table_IntInputs[[#This Row],[Room Cavity Height]]*Table_IntInputs[[#This Row],[LPD]]),2)),\"\")","v":""},{"$f":"IFERROR(IF(AND(Table_IntInputs[[#This Row],[Windows?]]=\"No\",VLOOKUP(Table_IntInputs[[#This Row],[Space Type]],IF(FiscalYear=\"FY24\",SpaceBySpace_2016[],SpaceBySpace_2016[]),6,FALSE)=\"Occ + DL\"),\"Occ\",IF(AND(Table_IntInputs[[#This Row],[Windows?]]=\"No\",VLOOKUP(Table_IntInputs[[#This Row],[Space Type]],IF(FiscalYear=\"FY24\",SpaceBySpace_2016[],SpaceBySpace_2016[]),6,FALSE)=\"DL\"),\"\",VLOOKUP(Table_IntInputs[[#This Row],[Space Type]],IF(FiscalYear=\"FY24\",SpaceBySpace_2016[],SpaceBySpace_2016[]),6,FALSE))),\"\")","v":""},null,null,null,{"$f":"IFERROR(IF(R38+1>MAX(Table_IntInputs[Zone]),\"\",R38+1),\"\")","v":""},{"$f":"VLOOKUP(R39,Table_IntInputs[[Zone]:[Concatenate(Wndw-Sp Type)]],2,FALSE)","v":""},"",{"$f":"IFERROR(IF(Table_IntLookups[[#This Row],[Zone'#]]<>\"\",VLOOKUP(INDEX(Table_IntInputs[],MATCH(Table_IntLookups[[#This Row],[Zone'#]],Table_IntInputs[Zone],0),4),Table_BuildingFactors[#Data],2,FALSE),\"\"),0)","v":""},{"$f":"IFERROR(IF(Table_IntLookups[[#This Row],[Zone'#]]<>\"\",VLOOKUP(INDEX(Table_IntInputs[],MATCH(Table_IntLookups[[#This Row],[Zone'#]],Table_IntInputs[Zone],0),4),Table_BuildingFactors[#Data],3,FALSE),\"\"),0)","v":""},{"$f":"IFERROR(IF(Table_IntLookups[[#This Row],[Zone'#]]<>\"\",VLOOKUP(INDEX(Table_IntInputs[],MATCH(Table_IntLookups[[#This Row],[Zone'#]],Table_IntInputs[Zone],0),4),Table_BuildingFactors[#Data],3,FALSE),\"\"),0)","v":""},{"$f":"IFERROR(IF(Table_IntLookups[[#This Row],[Zone'#]]<>\"\",VLOOKUP(INDEX(Table_IntInputs[],MATCH(Table_IntLookups[[#This Row],[Zone'#]],Table_IntInputs[Zone],0),4),Table_BuildingFactors[#Data],5,FALSE),\"\"),0)","v":""},{"$f":"IFERROR(IF(Table_IntLookups[[#This Row],[Zone'#]]<>\"\",VLOOKUP(INDEX(Table_IntInputs[],MATCH(Table_IntLookups[[#This Row],[Zone'#]],Table_IntInputs[Zone],0),4),Table_BuildingFactors[#Data],6,FALSE),\"\"),0)","v":""},{"$f":"IFERROR(IF(Table_IntLookups[[#This Row],[Zone'#]]<>\"\",VLOOKUP(INDEX(Table_IntInputs[],MATCH(Table_IntLookups[[#This Row],[Zone'#]],Table_IntInputs[Zone],0),4),Table_BuildingFactors[#Data],7,FALSE),\"\"),0)","v":""},{"$f":"IFERROR(IF(Table_IntLookups[[#This Row],[Zone'#]]<>\"\",VLOOKUP(Table_IntLookups[[#This Row],[Description]],INDIRECT(\"Table_BldgArea_\" & IF(FiscalYear=\"FY24\",2013,2016)),4,FALSE),\"\"),0)","v":""},{"$f":"IF($R39=\"\",\"\",SUMIFS(Table_IntInputs[Total Wattage],Table_IntInputs[Zone],$R39))","v":""}]
[{"$f":"IF(OR(Table_IntInputs[[#This Row],[LPD]]=\"\",Table_IntInputs[[#This Row],[Concatenate(Wndw-Sp Type)]]=\"\"),\"\",IF(AND(ISNUMBER(MATCH(Table_IntInputs[[#This Row],[Concatenate(Wndw-Sp Type)]],$B$5:$B39,0))),IF(A39=\"Zone\",1,INDIRECT(\"A\" & MATCH(Table_IntInputs[[#This Row],[Concatenate(Wndw-Sp Type)]],$B$5:$B39,0)+4)),IF(A39=\"Zone\",1,MAX($A$5:$A39)+1)))","v":""},{"$f":"IF(Table_IntInputs[[#This Row],[Space Type]]=\"Exterior\",\"Exterior\",IF(Table_IntInputs[[#This Row],[Space Type]]=\"\",\"\",IF(AND($E$1=\"Building Area\",ISNUMBER(MATCH(Table_IntInputs[[#This Row],[Space Type]],Table_BldgArea_2016[Building Area Type],0))),Table_IntInputs[[#This Row],[Space Type]],CONCATENATE(IF(Table_IntInputs[[#This Row],[Windows?]]=\"\",\"No\",Table_IntInputs[[#This Row],[Windows?]]),\" - \",Table_IntInputs[[#This Row],[Space Type]]))))","v":""},null,null,null,null,null,null,{"$f":"IFERROR(IF(AND($E$1=\"Space-by-Space\",ISNUMBER(FIND(\"Corridor\",Table_IntInputs[[#This Row],[Space Type]],1))),Table_IntInputs[[#This Row],[Width]],2.5*Table_IntInputs[[#This Row],[Perimeter]]*Table_IntInputs[[#This Row],[Room Cavity Height]]/Table_IntInputs[[#This Row],[Area Sq Ft]]),\"\")","v":""},{"$f":"IFERROR(IF(ASHRAEMethod=\"Space-By-Space\",IF(ISNUMBER(FIND(\"Corridor\",Table_IntInputs[[#This Row],[Space Type]],1)),VLOOKUP(Table_IntInputs[[#This Row],[Space Type]],IF(FiscalYear=\"FY25\",SpaceBySpace_2016[],SpaceBySpace_2016[]),5,FALSE),VLOOKUP(Table_IntInputs[[#This Row],[Space Type]],IF(FiscalYear=\"FY25\",SpaceBySpace_2016[],SpaceBySpace_2016[]),4,FALSE)),\"\"),\"\")","v":""},{"$f":"IFERROR(\n    ROUND(IF(AND(ASHRAEMethod=\"Space-By-Space\",Table_IntInputs[[#This Row],[Space Type]]=\"Atrium, above 40ft\"),0.4+Table_IntInputs[[#This Row],[Room Cavity Height]]*0.02,IF(AND(ASHRAEMethod=\"Space-By-Space\",ISNUMBER(FIND(\"Atrium\",Table_IntInputs[[#This Row],[Space Type]],1))),Table_IntInputs[[#This Row],[Room Cavity Height]]*0.03,VLOOKUP(Table_IntInputs[[#This Row],[Space Type]],IF($E$1=\"Space-By-Space\",IF(FiscalYear=\"FY25\",SpaceBySpace_2016[],SpaceBySpace_2016[]),IF(FiscalYear=\"FY25\",Table_BldgArea_2016[],Table_BldgArea_2016[])),2,FALSE)))  *\n        IF(OR(AND($E$1=\"Space-By-Space\",ISNUMBER(FIND(\"Corridor\",Table_IntInputs[[#This Row],[Space Type]],1)),Table_IntInputs[[#This Row],[RCR]]>=Table_IntInputs[[#This Row],[RCR,W_m]]),\n        AND($E$1=\"Space-By-Space\",NOT(ISNUMBER(FIND(\"Corridor\",Table_IntInputs[[#This Row],[Space Type]],1))),Table_IntInputs[[#This Row],[RCR]]>=Table_IntInputs[[#This Row],[RCR,W_m]],Table_IntInputs[[#This Row],[RCR,W_m]]>0)),1.2,1),2)  *\n        IFERROR(IF(ISNUMBER(MATCH(Table_IntInputs[[#This Row],[Space Type]],Table_AddlControl_2016[Facility Type],0)),1+INDEX(Table_AddlControl_2016[#All],MATCH(Table_IntInputs[[#This Row],[Space Type]],Table_AddlControl_2016[[#All],[Facility Type]],0),MATCH(IF(Table_IntInputs[[#This Row],[Additional Controls?]]=\"\",\"None\",Table_IntInputs[[#This Row],[Additional Controls?]]),Table_AddlControl_2016[#Headers],0)),1),1),\"\")","v":""},{"$f":"IFERROR(VLOOKUP(Table_IntInputs[[#This Row],[Space Type]],IF(ASHRAEMethod=\"Space-By-Space\",IF(FiscalYear=\"FY25\",SpaceBySpace_2016[],SpaceBySpace_2016[]),IF(FiscalYear=\"FY25\",Table_BldgArea_2016[],Table_BldgArea_2016[])),3,FALSE),\"\")","v":""},{"$f":"IFERROR(IF(Table_IntInputs[[#This Row],[Space Type]]=\"Exterior\",'Exterior Information'!$J$3,ROUND(IF(Table_IntInputs[[#This Row],[Units]]=\"W/ft2\",Table_IntInputs[[#This Row],[Area Sq Ft]]*Table_IntInputs[[#This Row],[LPD]],Table_IntInputs[[#This Row],[Area Sq Ft]]*Table_IntInputs[[#This Row],[Room Cavity Height]]*Table_IntInputs[[#This Row],[LPD]]),2)),\"\")","v":""},{"$f":"IFERROR(IF(AND(Table_IntInputs[[#This Row],[Windows?]]=\"No\",VLOOKUP(Table_IntInputs[[#This Row],[Space Type]],IF(FiscalYear=\"FY24\",SpaceBySpace_2016[],SpaceBySpace_2016[]),6,FALSE)=\"Occ + DL\"),\"Occ\",IF(AND(Table_IntInputs[[#This Row],[Windows?]]=\"No\",VLOOKUP(Table_IntInputs[[#This Row],[Space Type]],IF(FiscalYear=\"FY24\",SpaceBySpace_2016[],SpaceBySpace_2016[]),6,FALSE)=\"DL\"),\"\",VLOOKUP(Table_IntInputs[[#This Row],[Space Type]],IF(FiscalYear=\"FY24\",SpaceBySpace_2016[],SpaceBySpace_2016[]),6,FALSE))),\"\")","v":""},null,null,null,{"$f":"IFERROR(IF(R39+1>MAX(Table_IntInputs[Zone]),\"\",R39+1),\"\")","v":""},{"$f":"VLOOKUP(R40,Table_IntInputs[[Zone]:[Concatenate(Wndw-Sp Type)]],2,FALSE)","v":""},"",{"$f":"IFERROR(IF(Table_IntLookups[[#This Row],[Zone'#]]<>\"\",VLOOKUP(INDEX(Table_IntInputs[],MATCH(Table_IntLookups[[#This Row],[Zone'#]],Table_IntInputs[Zone],0),4),Table_BuildingFactors[#Data],2,FALSE),\"\"),0)","v":""},{"$f":"IFERROR(IF(Table_IntLookups[[#This Row],[Zone'#]]<>\"\",VLOOKUP(INDEX(Table_IntInputs[],MATCH(Table_IntLookups[[#This Row],[Zone'#]],Table_IntInputs[Zone],0),4),Table_BuildingFactors[#Data],3,FALSE),\"\"),0)","v":""},{"$f":"IFERROR(IF(Table_IntLookups[[#This Row],[Zone'#]]<>\"\",VLOOKUP(INDEX(Table_IntInputs[],MATCH(Table_IntLookups[[#This Row],[Zone'#]],Table_IntInputs[Zone],0),4),Table_BuildingFactors[#Data],3,FALSE),\"\"),0)","v":""},{"$f":"IFERROR(IF(Table_IntLookups[[#This Row],[Zone'#]]<>\"\",VLOOKUP(INDEX(Table_IntInputs[],MATCH(Table_IntLookups[[#This Row],[Zone'#]],Table_IntInputs[Zone],0),4),Table_BuildingFactors[#Data],5,FALSE),\"\"),0)","v":""},{"$f":"IFERROR(IF(Table_IntLookups[[#This Row],[Zone'#]]<>\"\",VLOOKUP(INDEX(Table_IntInputs[],MATCH(Table_IntLookups[[#This Row],[Zone'#]],Table_IntInputs[Zone],0),4),Table_BuildingFactors[#Data],6,FALSE),\"\"),0)","v":""},{"$f":"IFERROR(IF(Table_IntLookups[[#This Row],[Zone'#]]<>\"\",VLOOKUP(INDEX(Table_IntInputs[],MATCH(Table_IntLookups[[#This Row],[Zone'#]],Table_IntInputs[Zone],0),4),Table_BuildingFactors[#Data],7,FALSE),\"\"),0)","v":""},{"$f":"IFERROR(IF(Table_IntLookups[[#This Row],[Zone'#]]<>\"\",VLOOKUP(Table_IntLookups[[#This Row],[Description]],INDIRECT(\"Table_BldgArea_\" & IF(FiscalYear=\"FY24\",2013,2016)),4,FALSE),\"\"),0)","v":""},{"$f":"IF($R40=\"\",\"\",SUMIFS(Table_IntInputs[Total Wattage],Table_IntInputs[Zone],$R40))","v":""}]
[{"$f":"IF(OR(Table_IntInputs[[#This Row],[LPD]]=\"\",Table_IntInputs[[#This Row],[Concatenate(Wndw-Sp Type)]]=\"\"),\"\",IF(AND(ISNUMBER(MATCH(Table_IntInputs[[#This Row],[Concatenate(Wndw-Sp Type)]],$B$5:$B40,0))),IF(A40=\"Zone\",1,INDIRECT(\"A\" & MATCH(Table_IntInputs[[#This Row],[Concatenate(Wndw-Sp Type)]],$B$5:$B40,0)+4)),IF(A40=\"Zone\",1,MAX($A$5:$A40)+1)))","v":""},{"$f":"IF(Table_IntInputs[[#This Row],[Space Type]]=\"Exterior\",\"Exterior\",IF(Table_IntInputs[[#This Row],[Space Type]]=\"\",\"\",IF(AND($E$1=\"Building Area\",ISNUMBER(MATCH(Table_IntInputs[[#This Row],[Space Type]],Table_BldgArea_2016[Building Area Type],0))),Table_IntInputs[[#This Row],[Space Type]],CONCATENATE(IF(Table_IntInputs[[#This Row],[Windows?]]=\"\",\"No\",Table_IntInputs[[#This Row],[Windows?]]),\" - \",Table_IntInputs[[#This Row],[Space Type]]))))","v":""},null,null,null,null,null,null,{"$f":"IFERROR(IF(AND($E$1=\"Space-by-Space\",ISNUMBER(FIND(\"Corridor\",Table_IntInputs[[#This Row],[Space Type]],1))),Table_IntInputs[[#This Row],[Width]],2.5*Table_IntInputs[[#This Row],[Perimeter]]*Table_IntInputs[[#This Row],[Room Cavity Height]]/Table_IntInputs[[#This Row],[Area Sq Ft]]),\"\")","v":""},{"$f":"IFERROR(IF(ASHRAEMethod=\"Space-By-Space\",IF(ISNUMBER(FIND(\"Corridor\",Table_IntInputs[[#This Row],[Space Type]],1)),VLOOKUP(Table_IntInputs[[#This Row],[Space Type]],IF(FiscalYear=\"FY25\",SpaceBySpace_2016[],SpaceBySpace_2016[]),5,FALSE),VLOOKUP(Table_IntInputs[[#This Row],[Space Type]],IF(FiscalYear=\"FY25\",SpaceBySpace_2016[],SpaceBySpace_2016[]),4,FALSE)),\"\"),\"\")","v":""},{"$f":"IFERROR(\n    ROUND(IF(AND(ASHRAEMethod=\"Space-By-Space\",Table_IntInputs[[#This Row],[Space Type]]=\"Atrium, above 40ft\"),0.4+Table_IntInputs[[#This Row],[Room Cavity Height]]*0.02,IF(AND(ASHRAEMethod=\"Space-By-Space\",ISNUMBER(FIND(\"Atrium\",Table_IntInputs[[#This Row],[Space Type]],1))),Table_IntInputs[[#This Row],[Room Cavity Height]]*0.03,VLOOKUP(Table_IntInputs[[#This Row],[Space Type]],IF($E$1=\"Space-By-Space\",IF(FiscalYear=\"FY25\",SpaceBySpace_2016[],SpaceBySpace_2016[]),IF(FiscalYear=\"FY25\",Table_BldgArea_2016[],Table_BldgArea_2016[])),2,FALSE)))  *\n        IF(OR(AND($E$1=\"Space-By-Space\",ISNUMBER(FIND(\"Corridor\",Table_IntInputs[[#This Row],[Space Type]],1)),Table_IntInputs[[#This Row],[RCR]]>=Table_IntInputs[[#This Row],[RCR,W_m]]),\n        AND($E$1=\"Space-By-Space\",NOT(ISNUMBER(FIND(\"Corridor\",Table_IntInputs[[#This Row],[Space Type]],1))),Table_IntInputs[[#This Row],[RCR]]>=Table_IntInputs[[#This Row],[RCR,W_m]],Table_IntInputs[[#This Row],[RCR,W_m]]>0)),1.2,1),2)  *\n        IFERROR(IF(ISNUMBER(MATCH(Table_IntInputs[[#This Row],[Space Type]],Table_AddlControl_2016[Facility Type],0)),1+INDEX(Table_AddlControl_2016[#All],MATCH(Table_IntInputs[[#This Row],[Space Type]],Table_AddlControl_2016[[#All],[Facility Type]],0),MATCH(IF(Table_IntInputs[[#This Row],[Additional Controls?]]=\"\",\"None\",Table_IntInputs[[#This Row],[Additional Controls?]]),Table_AddlControl_2016[#Headers],0)),1),1),\"\")","v":""},{"$f":"IFERROR(VLOOKUP(Table_IntInputs[[#This Row],[Space Type]],IF(ASHRAEMethod=\"Space-By-Space\",IF(FiscalYear=\"FY25\",SpaceBySpace_2016[],SpaceBySpace_2016[]),IF(FiscalYear=\"FY25\",Table_BldgArea_2016[],Table_BldgArea_2016[])),3,FALSE),\"\")","v":""},{"$f":"IFERROR(IF(Table_IntInputs[[#This Row],[Space Type]]=\"Exterior\",'Exterior Information'!$J$3,ROUND(IF(Table_IntInputs[[#This Row],[Units]]=\"W/ft2\",Table_IntInputs[[#This Row],[Area Sq Ft]]*Table_IntInputs[[#This Row],[LPD]],Table_IntInputs[[#This Row],[Area Sq Ft]]*Table_IntInputs[[#This Row],[Room Cavity Height]]*Table_IntInputs[[#This Row],[LPD]]),2)),\"\")","v":""},{"$f":"IFERROR(IF(AND(Table_IntInputs[[#This Row],[Windows?]]=\"No\",VLOOKUP(Table_IntInputs[[#This Row],[Space Type]],IF(FiscalYear=\"FY24\",SpaceBySpace_2016[],SpaceBySpace_2016[]),6,FALSE)=\"Occ + DL\"),\"Occ\",IF(AND(Table_IntInputs[[#This Row],[Windows?]]=\"No\",VLOOKUP(Table_IntInputs[[#This Row],[Space Type]],IF(FiscalYear=\"FY24\",SpaceBySpace_2016[],SpaceBySpace_2016[]),6,FALSE)=\"DL\"),\"\",VLOOKUP(Table_IntInputs[[#This Row],[Space Type]],IF(FiscalYear=\"FY24\",SpaceBySpace_2016[],SpaceBySpace_2016[]),6,FALSE))),\"\")","v":""},null,null,null,{"$f":"IFERROR(IF(R40+1>MAX(Table_IntInputs[Zone]),\"\",R40+1),\"\")","v":""},{"$f":"VLOOKUP(R41,Table_IntInputs[[Zone]:[Concatenate(Wndw-Sp Type)]],2,FALSE)","v":""},"",{"$f":"IFERROR(IF(Table_IntLookups[[#This Row],[Zone'#]]<>\"\",VLOOKUP(INDEX(Table_IntInputs[],MATCH(Table_IntLookups[[#This Row],[Zone'#]],Table_IntInputs[Zone],0),4),Table_BuildingFactors[#Data],2,FALSE),\"\"),0)","v":""},{"$f":"IFERROR(IF(Table_IntLookups[[#This Row],[Zone'#]]<>\"\",VLOOKUP(INDEX(Table_IntInputs[],MATCH(Table_IntLookups[[#This Row],[Zone'#]],Table_IntInputs[Zone],0),4),Table_BuildingFactors[#Data],3,FALSE),\"\"),0)","v":""},{"$f":"IFERROR(IF(Table_IntLookups[[#This Row],[Zone'#]]<>\"\",VLOOKUP(INDEX(Table_IntInputs[],MATCH(Table_IntLookups[[#This Row],[Zone'#]],Table_IntInputs[Zone],0),4),Table_BuildingFactors[#Data],3,FALSE),\"\"),0)","v":""},{"$f":"IFERROR(IF(Table_IntLookups[[#This Row],[Zone'#]]<>\"\",VLOOKUP(INDEX(Table_IntInputs[],MATCH(Table_IntLookups[[#This Row],[Zone'#]],Table_IntInputs[Zone],0),4),Table_BuildingFactors[#Data],5,FALSE),\"\"),0)","v":""},{"$f":"IFERROR(IF(Table_IntLookups[[#This Row],[Zone'#]]<>\"\",VLOOKUP(INDEX(Table_IntInputs[],MATCH(Table_IntLookups[[#This Row],[Zone'#]],Table_IntInputs[Zone],0),4),Table_BuildingFactors[#Data],6,FALSE),\"\"),0)","v":""},{"$f":"IFERROR(IF(Table_IntLookups[[#This Row],[Zone'#]]<>\"\",VLOOKUP(INDEX(Table_IntInputs[],MATCH(Table_IntLookups[[#This Row],[Zone'#]],Table_IntInputs[Zone],0),4),Table_BuildingFactors[#Data],7,FALSE),\"\"),0)","v":""},{"$f":"IFERROR(IF(Table_IntLookups[[#This Row],[Zone'#]]<>\"\",VLOOKUP(Table_IntLookups[[#This Row],[Description]],INDIRECT(\"Table_BldgArea_\" & IF(FiscalYear=\"FY24\",2013,2016)),4,FALSE),\"\"),0)","v":""},{"$f":"IF($R41=\"\",\"\",SUMIFS(Table_IntInputs[Total Wattage],Table_IntInputs[Zone],$R41))","v":""}]
[{"$f":"IF(OR(Table_IntInputs[[#This Row],[LPD]]=\"\",Table_IntInputs[[#This Row],[Concatenate(Wndw-Sp Type)]]=\"\"),\"\",IF(AND(ISNUMBER(MATCH(Table_IntInputs[[#This Row],[Concatenate(Wndw-Sp Type)]],$B$5:$B41,0))),IF(A41=\"Zone\",1,INDIRECT(\"A\" & MATCH(Table_IntInputs[[#This Row],[Concatenate(Wndw-Sp Type)]],$B$5:$B41,0)+4)),IF(A41=\"Zone\",1,MAX($A$5:$A41)+1)))","v":""},{"$f":"IF(Table_IntInputs[[#This Row],[Space Type]]=\"Exterior\",\"Exterior\",IF(Table_IntInputs[[#This Row],[Space Type]]=\"\",\"\",IF(AND($E$1=\"Building Area\",ISNUMBER(MATCH(Table_IntInputs[[#This Row],[Space Type]],Table_BldgArea_2016[Building Area Type],0))),Table_IntInputs[[#This Row],[Space Type]],CONCATENATE(IF(Table_IntInputs[[#This Row],[Windows?]]=\"\",\"No\",Table_IntInputs[[#This Row],[Windows?]]),\" - \",Table_IntInputs[[#This Row],[Space Type]]))))","v":""},null,null,null,null,null,null,{"$f":"IFERROR(IF(AND($E$1=\"Space-by-Space\",ISNUMBER(FIND(\"Corridor\",Table_IntInputs[[#This Row],[Space Type]],1))),Table_IntInputs[[#This Row],[Width]],2.5*Table_IntInputs[[#This Row],[Perimeter]]*Table_IntInputs[[#This Row],[Room Cavity Height]]/Table_IntInputs[[#This Row],[Area Sq Ft]]),\"\")","v":""},{"$f":"IFERROR(IF(ASHRAEMethod=\"Space-By-Space\",IF(ISNUMBER(FIND(\"Corridor\",Table_IntInputs[[#This Row],[Space Type]],1)),VLOOKUP(Table_IntInputs[[#This Row],[Space Type]],IF(FiscalYear=\"FY25\",SpaceBySpace_2016[],SpaceBySpace_2016[]),5,FALSE),VLOOKUP(Table_IntInputs[[#This Row],[Space Type]],IF(FiscalYear=\"FY25\",SpaceBySpace_2016[],SpaceBySpace_2016[]),4,FALSE)),\"\"),\"\")","v":""},{"$f":"IFERROR(\n    ROUND(IF(AND(ASHRAEMethod=\"Space-By-Space\",Table_IntInputs[[#This Row],[Space Type]]=\"Atrium, above 40ft\"),0.4+Table_IntInputs[[#This Row],[Room Cavity Height]]*0.02,IF(AND(ASHRAEMethod=\"Space-By-Space\",ISNUMBER(FIND(\"Atrium\",Table_IntInputs[[#This Row],[Space Type]],1))),Table_IntInputs[[#This Row],[Room Cavity Height]]*0.03,VLOOKUP(Table_IntInputs[[#This Row],[Space Type]],IF($E$1=\"Space-By-Space\",IF(FiscalYear=\"FY25\",SpaceBySpace_2016[],SpaceBySpace_2016[]),IF(FiscalYear=\"FY25\",Table_BldgArea_2016[],Table_BldgArea_2016[])),2,FALSE)))  *\n        IF(OR(AND($E$1=\"Space-By-Space\",ISNUMBER(FIND(\"Corridor\",Table_IntInputs[[#This Row],[Space Type]],1)),Table_IntInputs[[#This Row],[RCR]]>=Table_IntInputs[[#This Row],[RCR,W_m]]),\n        AND($E$1=\"Space-By-Space\",NOT(ISNUMBER(FIND(\"Corridor\",Table_IntInputs[[#This Row],[Space Type]],1))),Table_IntInputs[[#This Row],[RCR]]>=Table_IntInputs[[#This Row],[RCR,W_m]],Table_IntInputs[[#This Row],[RCR,W_m]]>0)),1.2,1),2)  *\n        IFERROR(IF(ISNUMBER(MATCH(Table_IntInputs[[#This Row],[Space Type]],Table_AddlControl_2016[Facility Type],0)),1+INDEX(Table_AddlControl_2016[#All],MATCH(Table_IntInputs[[#This Row],[Space Type]],Table_AddlControl_2016[[#All],[Facility Type]],0),MATCH(IF(Table_IntInputs[[#This Row],[Additional Controls?]]=\"\",\"None\",Table_IntInputs[[#This Row],[Additional Controls?]]),Table_AddlControl_2016[#Headers],0)),1),1),\"\")","v":""},{"$f":"IFERROR(VLOOKUP(Table_IntInputs[[#This Row],[Space Type]],IF(ASHRAEMethod=\"Space-By-Space\",IF(FiscalYear=\"FY25\",SpaceBySpace_2016[],SpaceBySpace_2016[]),IF(FiscalYear=\"FY25\",Table_BldgArea_2016[],Table_BldgArea_2016[])),3,FALSE),\"\")","v":""},{"$f":"IFERROR(IF(Table_IntInputs[[#This Row],[Space Type]]=\"Exterior\",'Exterior Information'!$J$3,ROUND(IF(Table_IntInputs[[#This Row],[Units]]=\"W/ft2\",Table_IntInputs[[#This Row],[Area Sq Ft]]*Table_IntInputs[[#This Row],[LPD]],Table_IntInputs[[#This Row],[Area Sq Ft]]*Table_IntInputs[[#This Row],[Room Cavity Height]]*Table_IntInputs[[#This Row],[LPD]]),2)),\"\")","v":""},{"$f":"IFERROR(IF(AND(Table_IntInputs[[#This Row],[Windows?]]=\"No\",VLOOKUP(Table_IntInputs[[#This Row],[Space Type]],IF(FiscalYear=\"FY24\",SpaceBySpace_2016[],SpaceBySpace_2016[]),6,FALSE)=\"Occ + DL\"),\"Occ\",IF(AND(Table_IntInputs[[#This Row],[Windows?]]=\"No\",VLOOKUP(Table_IntInputs[[#This Row],[Space Type]],IF(FiscalYear=\"FY24\",SpaceBySpace_2016[],SpaceBySpace_2016[]),6,FALSE)=\"DL\"),\"\",VLOOKUP(Table_IntInputs[[#This Row],[Space Type]],IF(FiscalYear=\"FY24\",SpaceBySpace_2016[],SpaceBySpace_2016[]),6,FALSE))),\"\")","v":""},null,null,null,{"$f":"IFERROR(IF(R41+1>MAX(Table_IntInputs[Zone]),\"\",R41+1),\"\")","v":""},{"$f":"VLOOKUP(R42,Table_IntInputs[[Zone]:[Concatenate(Wndw-Sp Type)]],2,FALSE)","v":""},"",{"$f":"IFERROR(IF(Table_IntLookups[[#This Row],[Zone'#]]<>\"\",VLOOKUP(INDEX(Table_IntInputs[],MATCH(Table_IntLookups[[#This Row],[Zone'#]],Table_IntInputs[Zone],0),4),Table_BuildingFactors[#Data],2,FALSE),\"\"),0)","v":""},{"$f":"IFERROR(IF(Table_IntLookups[[#This Row],[Zone'#]]<>\"\",VLOOKUP(INDEX(Table_IntInputs[],MATCH(Table_IntLookups[[#This Row],[Zone'#]],Table_IntInputs[Zone],0),4),Table_BuildingFactors[#Data],3,FALSE),\"\"),0)","v":""},{"$f":"IFERROR(IF(Table_IntLookups[[#This Row],[Zone'#]]<>\"\",VLOOKUP(INDEX(Table_IntInputs[],MATCH(Table_IntLookups[[#This Row],[Zone'#]],Table_IntInputs[Zone],0),4),Table_BuildingFactors[#Data],3,FALSE),\"\"),0)","v":""},{"$f":"IFERROR(IF(Table_IntLookups[[#This Row],[Zone'#]]<>\"\",VLOOKUP(INDEX(Table_IntInputs[],MATCH(Table_IntLookups[[#This Row],[Zone'#]],Table_IntInputs[Zone],0),4),Table_BuildingFactors[#Data],5,FALSE),\"\"),0)","v":""},{"$f":"IFERROR(IF(Table_IntLookups[[#This Row],[Zone'#]]<>\"\",VLOOKUP(INDEX(Table_IntInputs[],MATCH(Table_IntLookups[[#This Row],[Zone'#]],Table_IntInputs[Zone],0),4),Table_BuildingFactors[#Data],6,FALSE),\"\"),0)","v":""},{"$f":"IFERROR(IF(Table_IntLookups[[#This Row],[Zone'#]]<>\"\",VLOOKUP(INDEX(Table_IntInputs[],MATCH(Table_IntLookups[[#This Row],[Zone'#]],Table_IntInputs[Zone],0),4),Table_BuildingFactors[#Data],7,FALSE),\"\"),0)","v":""},{"$f":"IFERROR(IF(Table_IntLookups[[#This Row],[Zone'#]]<>\"\",VLOOKUP(Table_IntLookups[[#This Row],[Description]],INDIRECT(\"Table_BldgArea_\" & IF(FiscalYear=\"FY24\",2013,2016)),4,FALSE),\"\"),0)","v":""},{"$f":"IF($R42=\"\",\"\",SUMIFS(Table_IntInputs[Total Wattage],Table_IntInputs[Zone],$R42))","v":""}]
[{"$f":"IF(OR(Table_IntInputs[[#This Row],[LPD]]=\"\",Table_IntInputs[[#This Row],[Concatenate(Wndw-Sp Type)]]=\"\"),\"\",IF(AND(ISNUMBER(MATCH(Table_IntInputs[[#This Row],[Concatenate(Wndw-Sp Type)]],$B$5:$B42,0))),IF(A42=\"Zone\",1,INDIRECT(\"A\" & MATCH(Table_IntInputs[[#This Row],[Concatenate(Wndw-Sp Type)]],$B$5:$B42,0)+4)),IF(A42=\"Zone\",1,MAX($A$5:$A42)+1)))","v":""},{"$f":"IF(Table_IntInputs[[#This Row],[Space Type]]=\"Exterior\",\"Exterior\",IF(Table_IntInputs[[#This Row],[Space Type]]=\"\",\"\",IF(AND($E$1=\"Building Area\",ISNUMBER(MATCH(Table_IntInputs[[#This Row],[Space Type]],Table_BldgArea_2016[Building Area Type],0))),Table_IntInputs[[#This Row],[Space Type]],CONCATENATE(IF(Table_IntInputs[[#This Row],[Windows?]]=\"\",\"No\",Table_IntInputs[[#This Row],[Windows?]]),\" - \",Table_IntInputs[[#This Row],[Space Type]]))))","v":""},null,null,null,null,null,null,{"$f":"IFERROR(IF(AND($E$1=\"Space-by-Space\",ISNUMBER(FIND(\"Corridor\",Table_IntInputs[[#This Row],[Space Type]],1))),Table_IntInputs[[#This Row],[Width]],2.5*Table_IntInputs[[#This Row],[Perimeter]]*Table_IntInputs[[#This Row],[Room Cavity Height]]/Table_IntInputs[[#This Row],[Area Sq Ft]]),\"\")","v":""},{"$f":"IFERROR(IF(ASHRAEMethod=\"Space-By-Space\",IF(ISNUMBER(FIND(\"Corridor\",Table_IntInputs[[#This Row],[Space Type]],1)),VLOOKUP(Table_IntInputs[[#This Row],[Space Type]],IF(FiscalYear=\"FY25\",SpaceBySpace_2016[],SpaceBySpace_2016[]),5,FALSE),VLOOKUP(Table_IntInputs[[#This Row],[Space Type]],IF(FiscalYear=\"FY25\",SpaceBySpace_2016[],SpaceBySpace_2016[]),4,FALSE)),\"\"),\"\")","v":""},{"$f":"IFERROR(\n    ROUND(IF(AND(ASHRAEMethod=\"Space-By-Space\",Table_IntInputs[[#This Row],[Space Type]]=\"Atrium, above 40ft\"),0.4+Table_IntInputs[[#This Row],[Room Cavity Height]]*0.02,IF(AND(ASHRAEMethod=\"Space-By-Space\",ISNUMBER(FIND(\"Atrium\",Table_IntInputs[[#This Row],[Space Type]],1))),Table_IntInputs[[#This Row],[Room Cavity Height]]*0.03,VLOOKUP(Table_IntInputs[[#This Row],[Space Type]],IF($E$1=\"Space-By-Space\",IF(FiscalYear=\"FY25\",SpaceBySpace_2016[],SpaceBySpace_2016[]),IF(FiscalYear=\"FY25\",Table_BldgArea_2016[],Table_BldgArea_2016[])),2,FALSE)))  *\n        IF(OR(AND($E$1=\"Space-By-Space\",ISNUMBER(FIND(\"Corridor\",Table_IntInputs[[#This Row],[Space Type]],1)),Table_IntInputs[[#This Row],[RCR]]>=Table_IntInputs[[#This Row],[RCR,W_m]]),\n        AND($E$1=\"Space-By-Space\",NOT(ISNUMBER(FIND(\"Corridor\",Table_IntInputs[[#This Row],[Space Type]],1))),Table_IntInputs[[#This Row],[RCR]]>=Table_IntInputs[[#This Row],[RCR,W_m]],Table_IntInputs[[#This Row],[RCR,W_m]]>0)),1.2,1),2)  *\n        IFERROR(IF(ISNUMBER(MATCH(Table_IntInputs[[#This Row],[Space Type]],Table_AddlControl_2016[Facility Type],0)),1+INDEX(Table_AddlControl_2016[#All],MATCH(Table_IntInputs[[#This Row],[Space Type]],Table_AddlControl_2016[[#All],[Facility Type]],0),MATCH(IF(Table_IntInputs[[#This Row],[Additional Controls?]]=\"\",\"None\",Table_IntInputs[[#This Row],[Additional Controls?]]),Table_AddlControl_2016[#Headers],0)),1),1),\"\")","v":""},{"$f":"IFERROR(VLOOKUP(Table_IntInputs[[#This Row],[Space Type]],IF(ASHRAEMethod=\"Space-By-Space\",IF(FiscalYear=\"FY25\",SpaceBySpace_2016[],SpaceBySpace_2016[]),IF(FiscalYear=\"FY25\",Table_BldgArea_2016[],Table_BldgArea_2016[])),3,FALSE),\"\")","v":""},{"$f":"IFERROR(IF(Table_IntInputs[[#This Row],[Space Type]]=\"Exterior\",'Exterior Information'!$J$3,ROUND(IF(Table_IntInputs[[#This Row],[Units]]=\"W/ft2\",Table_IntInputs[[#This Row],[Area Sq Ft]]*Table_IntInputs[[#This Row],[LPD]],Table_IntInputs[[#This Row],[Area Sq Ft]]*Table_IntInputs[[#This Row],[Room Cavity Height]]*Table_IntInputs[[#This Row],[LPD]]),2)),\"\")","v":""},{"$f":"IFERROR(IF(AND(Table_IntInputs[[#This Row],[Windows?]]=\"No\",VLOOKUP(Table_IntInputs[[#This Row],[Space Type]],IF(FiscalYear=\"FY24\",SpaceBySpace_2016[],SpaceBySpace_2016[]),6,FALSE)=\"Occ + DL\"),\"Occ\",IF(AND(Table_IntInputs[[#This Row],[Windows?]]=\"No\",VLOOKUP(Table_IntInputs[[#This Row],[Space Type]],IF(FiscalYear=\"FY24\",SpaceBySpace_2016[],SpaceBySpace_2016[]),6,FALSE)=\"DL\"),\"\",VLOOKUP(Table_IntInputs[[#This Row],[Space Type]],IF(FiscalYear=\"FY24\",SpaceBySpace_2016[],SpaceBySpace_2016[]),6,FALSE))),\"\")","v":""},null,null,null,{"$f":"IFERROR(IF(R42+1>MAX(Table_IntInputs[Zone]),\"\",R42+1),\"\")","v":""},{"$f":"VLOOKUP(R43,Table_IntInputs[[Zone]:[Concatenate(Wndw-Sp Type)]],2,FALSE)","v":""},"",{"$f":"IFERROR(IF(Table_IntLookups[[#This Row],[Zone'#]]<>\"\",VLOOKUP(INDEX(Table_IntInputs[],MATCH(Table_IntLookups[[#This Row],[Zone'#]],Table_IntInputs[Zone],0),4),Table_BuildingFactors[#Data],2,FALSE),\"\"),0)","v":""},{"$f":"IFERROR(IF(Table_IntLookups[[#This Row],[Zone'#]]<>\"\",VLOOKUP(INDEX(Table_IntInputs[],MATCH(Table_IntLookups[[#This Row],[Zone'#]],Table_IntInputs[Zone],0),4),Table_BuildingFactors[#Data],3,FALSE),\"\"),0)","v":""},{"$f":"IFERROR(IF(Table_IntLookups[[#This Row],[Zone'#]]<>\"\",VLOOKUP(INDEX(Table_IntInputs[],MATCH(Table_IntLookups[[#This Row],[Zone'#]],Table_IntInputs[Zone],0),4),Table_BuildingFactors[#Data],3,FALSE),\"\"),0)","v":""},{"$f":"IFERROR(IF(Table_IntLookups[[#This Row],[Zone'#]]<>\"\",VLOOKUP(INDEX(Table_IntInputs[],MATCH(Table_IntLookups[[#This Row],[Zone'#]],Table_IntInputs[Zone],0),4),Table_BuildingFactors[#Data],5,FALSE),\"\"),0)","v":""},{"$f":"IFERROR(IF(Table_IntLookups[[#This Row],[Zone'#]]<>\"\",VLOOKUP(INDEX(Table_IntInputs[],MATCH(Table_IntLookups[[#This Row],[Zone'#]],Table_IntInputs[Zone],0),4),Table_BuildingFactors[#Data],6,FALSE),\"\"),0)","v":""},{"$f":"IFERROR(IF(Table_IntLookups[[#This Row],[Zone'#]]<>\"\",VLOOKUP(INDEX(Table_IntInputs[],MATCH(Table_IntLookups[[#This Row],[Zone'#]],Table_IntInputs[Zone],0),4),Table_BuildingFactors[#Data],7,FALSE),\"\"),0)","v":""},{"$f":"IFERROR(IF(Table_IntLookups[[#This Row],[Zone'#]]<>\"\",VLOOKUP(Table_IntLookups[[#This Row],[Description]],INDIRECT(\"Table_BldgArea_\" & IF(FiscalYear=\"FY24\",2013,2016)),4,FALSE),\"\"),0)","v":""},{"$f":"IF($R43=\"\",\"\",SUMIFS(Table_IntInputs[Total Wattage],Table_IntInputs[Zone],$R43))","v":""}]
[{"$f":"IF(OR(Table_IntInputs[[#This Row],[LPD]]=\"\",Table_IntInputs[[#This Row],[Concatenate(Wndw-Sp Type)]]=\"\"),\"\",IF(AND(ISNUMBER(MATCH(Table_IntInputs[[#This Row],[Concatenate(Wndw-Sp Type)]],$B$5:$B43,0))),IF(A43=\"Zone\",1,INDIRECT(\"A\" & MATCH(Table_IntInputs[[#This Row],[Concatenate(Wndw-Sp Type)]],$B$5:$B43,0)+4)),IF(A43=\"Zone\",1,MAX($A$5:$A43)+1)))","v":""},{"$f":"IF(Table_IntInputs[[#This Row],[Space Type]]=\"Exterior\",\"Exterior\",IF(Table_IntInputs[[#This Row],[Space Type]]=\"\",\"\",IF(AND($E$1=\"Building Area\",ISNUMBER(MATCH(Table_IntInputs[[#This Row],[Space Type]],Table_BldgArea_2016[Building Area Type],0))),Table_IntInputs[[#This Row],[Space Type]],CONCATENATE(IF(Table_IntInputs[[#This Row],[Windows?]]=\"\",\"No\",Table_IntInputs[[#This Row],[Windows?]]),\" - \",Table_IntInputs[[#This Row],[Space Type]]))))","v":""},null,null,null,null,null,null,{"$f":"IFERROR(IF(AND($E$1=\"Space-by-Space\",ISNUMBER(FIND(\"Corridor\",Table_IntInputs[[#This Row],[Space Type]],1))),Table_IntInputs[[#This Row],[Width]],2.5*Table_IntInputs[[#This Row],[Perimeter]]*Table_IntInputs[[#This Row],[Room Cavity Height]]/Table_IntInputs[[#This Row],[Area Sq Ft]]),\"\")","v":""},{"$f":"IFERROR(IF(ASHRAEMethod=\"Space-By-Space\",IF(ISNUMBER(FIND(\"Corridor\",Table_IntInputs[[#This Row],[Space Type]],1)),VLOOKUP(Table_IntInputs[[#This Row],[Space Type]],IF(FiscalYear=\"FY25\",SpaceBySpace_2016[],SpaceBySpace_2016[]),5,FALSE),VLOOKUP(Table_IntInputs[[#This Row],[Space Type]],IF(FiscalYear=\"FY25\",SpaceBySpace_2016[],SpaceBySpace_2016[]),4,FALSE)),\"\"),\"\")","v":""},{"$f":"IFERROR(\n    ROUND(IF(AND(ASHRAEMethod=\"Space-By-Space\",Table_IntInputs[[#This Row],[Space Type]]=\"Atrium, above 40ft\"),0.4+Table_IntInputs[[#This Row],[Room Cavity Height]]*0.02,IF(AND(ASHRAEMethod=\"Space-By-Space\",ISNUMBER(FIND(\"Atrium\",Table_IntInputs[[#This Row],[Space Type]],1))),Table_IntInputs[[#This Row],[Room Cavity Height]]*0.03,VLOOKUP(Table_IntInputs[[#This Row],[Space Type]],IF($E$1=\"Space-By-Space\",IF(FiscalYear=\"FY25\",SpaceBySpace_2016[],SpaceBySpace_2016[]),IF(FiscalYear=\"FY25\",Table_BldgArea_2016[],Table_BldgArea_2016[])),2,FALSE)))  *\n        IF(OR(AND($E$1=\"Space-By-Space\",ISNUMBER(FIND(\"Corridor\",Table_IntInputs[[#This Row],[Space Type]],1)),Table_IntInputs[[#This Row],[RCR]]>=Table_IntInputs[[#This Row],[RCR,W_m]]),\n        AND($E$1=\"Space-By-Space\",NOT(ISNUMBER(FIND(\"Corridor\",Table_IntInputs[[#This Row],[Space Type]],1))),Table_IntInputs[[#This Row],[RCR]]>=Table_IntInputs[[#This Row],[RCR,W_m]],Table_IntInputs[[#This Row],[RCR,W_m]]>0)),1.2,1),2)  *\n        IFERROR(IF(ISNUMBER(MATCH(Table_IntInputs[[#This Row],[Space Type]],Table_AddlControl_2016[Facility Type],0)),1+INDEX(Table_AddlControl_2016[#All],MATCH(Table_IntInputs[[#This Row],[Space Type]],Table_AddlControl_2016[[#All],[Facility Type]],0),MATCH(IF(Table_IntInputs[[#This Row],[Additional Controls?]]=\"\",\"None\",Table_IntInputs[[#This Row],[Additional Controls?]]),Table_AddlControl_2016[#Headers],0)),1),1),\"\")","v":""},{"$f":"IFERROR(VLOOKUP(Table_IntInputs[[#This Row],[Space Type]],IF(ASHRAEMethod=\"Space-By-Space\",IF(FiscalYear=\"FY25\",SpaceBySpace_2016[],SpaceBySpace_2016[]),IF(FiscalYear=\"FY25\",Table_BldgArea_2016[],Table_BldgArea_2016[])),3,FALSE),\"\")","v":""},{"$f":"IFERROR(IF(Table_IntInputs[[#This Row],[Space Type]]=\"Exterior\",'Exterior Information'!$J$3,ROUND(IF(Table_IntInputs[[#This Row],[Units]]=\"W/ft2\",Table_IntInputs[[#This Row],[Area Sq Ft]]*Table_IntInputs[[#This Row],[LPD]],Table_IntInputs[[#This Row],[Area Sq Ft]]*Table_IntInputs[[#This Row],[Room Cavity Height]]*Table_IntInputs[[#This Row],[LPD]]),2)),\"\")","v":""},{"$f":"IFERROR(IF(AND(Table_IntInputs[[#This Row],[Windows?]]=\"No\",VLOOKUP(Table_IntInputs[[#This Row],[Space Type]],IF(FiscalYear=\"FY24\",SpaceBySpace_2016[],SpaceBySpace_2016[]),6,FALSE)=\"Occ + DL\"),\"Occ\",IF(AND(Table_IntInputs[[#This Row],[Windows?]]=\"No\",VLOOKUP(Table_IntInputs[[#This Row],[Space Type]],IF(FiscalYear=\"FY24\",SpaceBySpace_2016[],SpaceBySpace_2016[]),6,FALSE)=\"DL\"),\"\",VLOOKUP(Table_IntInputs[[#This Row],[Space Type]],IF(FiscalYear=\"FY24\",SpaceBySpace_2016[],SpaceBySpace_2016[]),6,FALSE))),\"\")","v":""},null,null,null,{"$f":"IFERROR(IF(R43+1>MAX(Table_IntInputs[Zone]),\"\",R43+1),\"\")","v":""},{"$f":"VLOOKUP(R44,Table_IntInputs[[Zone]:[Concatenate(Wndw-Sp Type)]],2,FALSE)","v":""},"",{"$f":"IFERROR(IF(Table_IntLookups[[#This Row],[Zone'#]]<>\"\",VLOOKUP(INDEX(Table_IntInputs[],MATCH(Table_IntLookups[[#This Row],[Zone'#]],Table_IntInputs[Zone],0),4),Table_BuildingFactors[#Data],2,FALSE),\"\"),0)","v":""},{"$f":"IFERROR(IF(Table_IntLookups[[#This Row],[Zone'#]]<>\"\",VLOOKUP(INDEX(Table_IntInputs[],MATCH(Table_IntLookups[[#This Row],[Zone'#]],Table_IntInputs[Zone],0),4),Table_BuildingFactors[#Data],3,FALSE),\"\"),0)","v":""},{"$f":"IFERROR(IF(Table_IntLookups[[#This Row],[Zone'#]]<>\"\",VLOOKUP(INDEX(Table_IntInputs[],MATCH(Table_IntLookups[[#This Row],[Zone'#]],Table_IntInputs[Zone],0),4),Table_BuildingFactors[#Data],3,FALSE),\"\"),0)","v":""},{"$f":"IFERROR(IF(Table_IntLookups[[#This Row],[Zone'#]]<>\"\",VLOOKUP(INDEX(Table_IntInputs[],MATCH(Table_IntLookups[[#This Row],[Zone'#]],Table_IntInputs[Zone],0),4),Table_BuildingFactors[#Data],5,FALSE),\"\"),0)","v":""},{"$f":"IFERROR(IF(Table_IntLookups[[#This Row],[Zone'#]]<>\"\",VLOOKUP(INDEX(Table_IntInputs[],MATCH(Table_IntLookups[[#This Row],[Zone'#]],Table_IntInputs[Zone],0),4),Table_BuildingFactors[#Data],6,FALSE),\"\"),0)","v":""},{"$f":"IFERROR(IF(Table_IntLookups[[#This Row],[Zone'#]]<>\"\",VLOOKUP(INDEX(Table_IntInputs[],MATCH(Table_IntLookups[[#This Row],[Zone'#]],Table_IntInputs[Zone],0),4),Table_BuildingFactors[#Data],7,FALSE),\"\"),0)","v":""},{"$f":"IFERROR(IF(Table_IntLookups[[#This Row],[Zone'#]]<>\"\",VLOOKUP(Table_IntLookups[[#This Row],[Description]],INDIRECT(\"Table_BldgArea_\" & IF(FiscalYear=\"FY24\",2013,2016)),4,FALSE),\"\"),0)","v":""},{"$f":"IF($R44=\"\",\"\",SUMIFS(Table_IntInputs[Total Wattage],Table_IntInputs[Zone],$R44))","v":""}]
[{"$f":"IF(OR(Table_IntInputs[[#This Row],[LPD]]=\"\",Table_IntInputs[[#This Row],[Concatenate(Wndw-Sp Type)]]=\"\"),\"\",IF(AND(ISNUMBER(MATCH(Table_IntInputs[[#This Row],[Concatenate(Wndw-Sp Type)]],$B$5:$B44,0))),IF(A44=\"Zone\",1,INDIRECT(\"A\" & MATCH(Table_IntInputs[[#This Row],[Concatenate(Wndw-Sp Type)]],$B$5:$B44,0)+4)),IF(A44=\"Zone\",1,MAX($A$5:$A44)+1)))","v":""},{"$f":"IF(Table_IntInputs[[#This Row],[Space Type]]=\"Exterior\",\"Exterior\",IF(Table_IntInputs[[#This Row],[Space Type]]=\"\",\"\",IF(AND($E$1=\"Building Area\",ISNUMBER(MATCH(Table_IntInputs[[#This Row],[Space Type]],Table_BldgArea_2016[Building Area Type],0))),Table_IntInputs[[#This Row],[Space Type]],CONCATENATE(IF(Table_IntInputs[[#This Row],[Windows?]]=\"\",\"No\",Table_IntInputs[[#This Row],[Windows?]]),\" - \",Table_IntInputs[[#This Row],[Space Type]]))))","v":""},null,null,null,null,null,null,{"$f":"IFERROR(IF(AND($E$1=\"Space-by-Space\",ISNUMBER(FIND(\"Corridor\",Table_IntInputs[[#This Row],[Space Type]],1))),Table_IntInputs[[#This Row],[Width]],2.5*Table_IntInputs[[#This Row],[Perimeter]]*Table_IntInputs[[#This Row],[Room Cavity Height]]/Table_IntInputs[[#This Row],[Area Sq Ft]]),\"\")","v":""},{"$f":"IFERROR(IF(ASHRAEMethod=\"Space-By-Space\",IF(ISNUMBER(FIND(\"Corridor\",Table_IntInputs[[#This Row],[Space Type]],1)),VLOOKUP(Table_IntInputs[[#This Row],[Space Type]],IF(FiscalYear=\"FY25\",SpaceBySpace_2016[],SpaceBySpace_2016[]),5,FALSE),VLOOKUP(Table_IntInputs[[#This Row],[Space Type]],IF(FiscalYear=\"FY25\",SpaceBySpace_2016[],SpaceBySpace_2016[]),4,FALSE)),\"\"),\"\")","v":""},{"$f":"IFERROR(\n    ROUND(IF(AND(ASHRAEMethod=\"Space-By-Space\",Table_IntInputs[[#This Row],[Space Type]]=\"Atrium, above 40ft\"),0.4+Table_IntInputs[[#This Row],[Room Cavity Height]]*0.02,IF(AND(ASHRAEMethod=\"Space-By-Space\",ISNUMBER(FIND(\"Atrium\",Table_IntInputs[[#This Row],[Space Type]],1))),Table_IntInputs[[#This Row],[Room Cavity Height]]*0.03,VLOOKUP(Table_IntInputs[[#This Row],[Space Type]],IF($E$1=\"Space-By-Space\",IF(FiscalYear=\"FY25\",SpaceBySpace_2016[],SpaceBySpace_2016[]),IF(FiscalYear=\"FY25\",Table_BldgArea_2016[],Table_BldgArea_2016[])),2,FALSE)))  *\n        IF(OR(AND($E$1=\"Space-By-Space\",ISNUMBER(FIND(\"Corridor\",Table_IntInputs[[#This Row],[Space Type]],1)),Table_IntInputs[[#This Row],[RCR]]>=Table_IntInputs[[#This Row],[RCR,W_m]]),\n        AND($E$1=\"Space-By-Space\",NOT(ISNUMBER(FIND(\"Corridor\",Table_IntInputs[[#This Row],[Space Type]],1))),Table_IntInputs[[#This Row],[RCR]]>=Table_IntInputs[[#This Row],[RCR,W_m]],Table_IntInputs[[#This Row],[RCR,W_m]]>0)),1.2,1),2)  *\n        IFERROR(IF(ISNUMBER(MATCH(Table_IntInputs[[#This Row],[Space Type]],Table_AddlControl_2016[Facility Type],0)),1+INDEX(Table_AddlControl_2016[#All],MATCH(Table_IntInputs[[#This Row],[Space Type]],Table_AddlControl_2016[[#All],[Facility Type]],0),MATCH(IF(Table_IntInputs[[#This Row],[Additional Controls?]]=\"\",\"None\",Table_IntInputs[[#This Row],[Additional Controls?]]),Table_AddlControl_2016[#Headers],0)),1),1),\"\")","v":""},{"$f":"IFERROR(VLOOKUP(Table_IntInputs[[#This Row],[Space Type]],IF(ASHRAEMethod=\"Space-By-Space\",IF(FiscalYear=\"FY25\",SpaceBySpace_2016[],SpaceBySpace_2016[]),IF(FiscalYear=\"FY25\",Table_BldgArea_2016[],Table_BldgArea_2016[])),3,FALSE),\"\")","v":""},{"$f":"IFERROR(IF(Table_IntInputs[[#This Row],[Space Type]]=\"Exterior\",'Exterior Information'!$J$3,ROUND(IF(Table_IntInputs[[#This Row],[Units]]=\"W/ft2\",Table_IntInputs[[#This Row],[Area Sq Ft]]*Table_IntInputs[[#This Row],[LPD]],Table_IntInputs[[#This Row],[Area Sq Ft]]*Table_IntInputs[[#This Row],[Room Cavity Height]]*Table_IntInputs[[#This Row],[LPD]]),2)),\"\")","v":""},{"$f":"IFERROR(IF(AND(Table_IntInputs[[#This Row],[Windows?]]=\"No\",VLOOKUP(Table_IntInputs[[#This Row],[Space Type]],IF(FiscalYear=\"FY24\",SpaceBySpace_2016[],SpaceBySpace_2016[]),6,FALSE)=\"Occ + DL\"),\"Occ\",IF(AND(Table_IntInputs[[#This Row],[Windows?]]=\"No\",VLOOKUP(Table_IntInputs[[#This Row],[Space Type]],IF(FiscalYear=\"FY24\",SpaceBySpace_2016[],SpaceBySpace_2016[]),6,FALSE)=\"DL\"),\"\",VLOOKUP(Table_IntInputs[[#This Row],[Space Type]],IF(FiscalYear=\"FY24\",SpaceBySpace_2016[],SpaceBySpace_2016[]),6,FALSE))),\"\")","v":""},null,null,null,{"$f":"IFERROR(IF(R44+1>MAX(Table_IntInputs[Zone]),\"\",R44+1),\"\")","v":""},{"$f":"VLOOKUP(R45,Table_IntInputs[[Zone]:[Concatenate(Wndw-Sp Type)]],2,FALSE)","v":""},{"$f":"IF(R45=\"\",\"\",CONCATENATE(\"Zone #\",R45,\": \",S45))","v":""},{"$f":"IFERROR(IF(Table_IntLookups[[#This Row],[Zone'#]]<>\"\",VLOOKUP(INDEX(Table_IntInputs[],MATCH(Table_IntLookups[[#This Row],[Zone'#]],Table_IntInputs[Zone],0),4),Table_BuildingFactors[#Data],2,FALSE),\"\"),0)","v":""},{"$f":"IFERROR(IF(Table_IntLookups[[#This Row],[Zone'#]]<>\"\",VLOOKUP(INDEX(Table_IntInputs[],MATCH(Table_IntLookups[[#This Row],[Zone'#]],Table_IntInputs[Zone],0),4),Table_BuildingFactors[#Data],3,FALSE),\"\"),0)","v":""},{"$f":"IFERROR(IF(Table_IntLookups[[#This Row],[Zone'#]]<>\"\",VLOOKUP(INDEX(Table_IntInputs[],MATCH(Table_IntLookups[[#This Row],[Zone'#]],Table_IntInputs[Zone],0),4),Table_BuildingFactors[#Data],3,FALSE),\"\"),0)","v":""},{"$f":"IFERROR(IF(Table_IntLookups[[#This Row],[Zone'#]]<>\"\",VLOOKUP(INDEX(Table_IntInputs[],MATCH(Table_IntLookups[[#This Row],[Zone'#]],Table_IntInputs[Zone],0),4),Table_BuildingFactors[#Data],5,FALSE),\"\"),0)","v":""},{"$f":"IFERROR(IF(Table_IntLookups[[#This Row],[Zone'#]]<>\"\",VLOOKUP(INDEX(Table_IntInputs[],MATCH(Table_IntLookups[[#This Row],[Zone'#]],Table_IntInputs[Zone],0),4),Table_BuildingFactors[#Data],6,FALSE),\"\"),0)","v":""},{"$f":"IFERROR(IF(Table_IntLookups[[#This Row],[Zone'#]]<>\"\",VLOOKUP(INDEX(Table_IntInputs[],MATCH(Table_IntLookups[[#This Row],[Zone'#]],Table_IntInputs[Zone],0),4),Table_BuildingFactors[#Data],7,FALSE),\"\"),0)","v":""},{"$f":"IFERROR(IF(Table_IntLookups[[#This Row],[Zone'#]]<>\"\",VLOOKUP(Table_IntLookups[[#This Row],[Description]],INDIRECT(\"Table_BldgArea_\" & IF(FiscalYear=\"FY24\",2013,2016)),4,FALSE),\"\"),0)","v":""},{"$f":"IF($R45=\"\",\"\",SUMIFS(Table_IntInputs[Total Wattage],Table_IntInputs[Zone],$R45))","v":""}]

{"sheet":"Exterior Information","index":7,"n_rows":41,"n_cols":11,"rows_kept":41,"cut":false,"hidden":true,"merged":[[34,1,40,1],[34,2,35,2],[34,7,35,7],[34,9,35,9],[3,6,4,7],[11,1,11,2],[11,3,11,4],[15,1,32,1],[15,2,15,7],[17,2,17,7],[24,2,24,7],[28,2,28,7],[30,2,30,7]]}
[]
[null,null,null,null,null,null,null,null,null,"TOTAL"]
[null,null,null,null,null,null,null,null,null,{"$f":"IF($J$7>0,$J$7,SUM(J14:J41))","v":0},"Watts"]
[]
[]
[null,null,null,null,null,null,null,null,null,"Ext Allowance (Import)"]
[null,null,null,"Zone Type",0,null,null,null,null,null,"Watts"]
[]
[]
[]
[]
[null,null,null,"USER INPUTS"]
[null,null,null,"Area/Length/Quantity","Unit Required","Linear/Area Allowance","Quantity Input","Space Allowance",null,"Watt Allowance"]
[null,null,"Base Allowance",1,"per Facility",{"$f":"HLOOKUP(\"Zone \"&E7,IF(FiscalYear=\"FY25\",'ASHRAE 90.1-2016 Exterior'!$C$3:$G$4,'ASHRAE 90.1-2016 Exterior'!$C$3:$G$4),2,FALSE)","v":"No Allowance"},null,{"$f":"IF(F14=\"No Allowance\",0,F14) & \" W \" & E14","v":"0 W per Facility"},null,{"$f":"IFERROR(IF(F14=\"No Allowance\",0,F14),0)","v":0}]
[]
[null,"Tradable Surfaces (Lighting power densities for uncovered parking areas, building grounds, building entrances and eits, canopies and overhangs, and otdoor sales areas may be traded.)                                                   ","Uncovered Parking Areas"]
[null,null,"Parking Lots and Drives",null,"Square Feet",{"$f":"IF(VLOOKUP(C17,IF(FiscalYear=\"FY25\",'ASHRAE 90.1-2016 Exterior'!$B$4:$H$39,'ASHRAE 90.1-2016 Exterior'!$B$4:$H$40),$E$7+2,FALSE)=\"No Allowance\",0,VLOOKUP(C17,IF(FiscalYear=\"FY25\",'ASHRAE 90.1-2016 Exterior'!$B$4:$H$39,'ASHRAE 90.1-2016 Exterior'!$B$4:$H$40),$E$7+2,FALSE))","v":0},null,{"$f":"F17& \" W/ft²\"","v":"0 W/ft²"},null,{"$f":"IFERROR(D17*F17,0)","v":0}]
[null,null,"Building Grounds"]
[null,null,"Walkways less than 10 feet wide",null,"Linear feet",{"$f":"IF(VLOOKUP(C19,IF(FiscalYear=\"FY25\",'ASHRAE 90.1-2016 Exterior'!$B$4:$H$39,'ASHRAE 90.1-2016 Exterior'!$B$4:$H$40),$E$7+2,FALSE)=\"No Allowance\",0,VLOOKUP(C19,IF(FiscalYear=\"FY25\",'ASHRAE 90.1-2016 Exterior'!$B$4:$H$39,'ASHRAE 90.1-2016 Exterior'!$B$4:$H$40),$E$7+2,FALSE))","v":0},null,{"$f":"F19 & \" W/linear foot\"","v":"0 W/linear foot"},null,{"$f":"IFERROR(D19*F19,0)","v":0}]
[null,null,"Walkways 10 feet wide or greater",null,"Square Feet",{"$f":"IF(VLOOKUP(C20,IF(FiscalYear=\"FY25\",'ASHRAE 90.1-2016 Exterior'!$B$4:$H$39,'ASHRAE 90.1-2016 Exterior'!$B$4:$H$40),$E$7+2,FALSE)=\"No Allowance\",0,VLOOKUP(C20,IF(FiscalYear=\"FY25\",'ASHRAE 90.1-2016 Exterior'!$B$4:$H$39,'ASHRAE 90.1-2016 Exterior'!$B$4:$H$40),$E$7+2,FALSE))","v":0},null,{"$f":"F20& \" W/ft²\"","v":"0 W/ft²"},null,0]
[null,null,"Plaza areas",null,"Square Feet",{"$f":"IF(VLOOKUP(C21,IF(FiscalYear=\"FY25\",'ASHRAE 90.1-2016 Exterior'!$B$4:$H$39,'ASHRAE 90.1-2016 Exterior'!$B$4:$H$40),$E$7+2,FALSE)=\"No Allowance\",0,VLOOKUP(C21,IF(FiscalYear=\"FY25\",'ASHRAE 90.1-2016 Exterior'!$B$4:$H$39,'ASHRAE 90.1-2016 Exterior'!$B$4:$H$40),$E$7+2,FALSE))","v":0},null,{"$f":"F21& \" W/ft²\"","v":"0 W/ft²"},null,0]
[null,null,"Special Feature areas",null,"Square Feet",{"$f":"IF(VLOOKUP(C22,IF(FiscalYear=\"FY25\",'ASHRAE 90.1-2016 Exterior'!$B$4:$H$39,'ASHRAE 90.1-2016 Exterior'!$B$4:$H$40),$E$7+2,FALSE)=\"No Allowance\",0,VLOOKUP(C22,IF(FiscalYear=\"FY25\",'ASHRAE 90.1-2016 Exterior'!$B$4:$H$39,'ASHRAE 90.1-2016 Exterior'!$B$4:$H$40),$E$7+2,FALSE))","v":0},null,{"$f":"F22& \" W/ft²\"","v":"0 W/ft²"},null,0]
[null,null,"Stairways",null,"Square Feet",{"$f":"IF(VLOOKUP(C23,IF(FiscalYear=\"FY25\",'ASHRAE 90.1-2016 Exterior'!$B$4:$H$39,'ASHRAE 90.1-2016 Exterior'!$B$4:$H$40),$E$7+2,FALSE)=\"No Allowance\",0,VLOOKUP(C23,IF(FiscalYear=\"FY25\",'ASHRAE 90.1-2016 Exterior'!$B$4:$H$39,'ASHRAE 90.1-2016 Exterior'!$B$4:$H$40),$E$7+2,FALSE))","v":0},null,{"$f":"F23& \" W/ft²\"","v":"0 W/ft²"},null,0]
[null,null,"Landscaping",null,"Square Feet",{"$f":"IF(VLOOKUP(C24,IF(FiscalYear=\"FY25\",'ASHRAE 90.1-2016 Exterior'!$B$4:$H$39,'ASHRAE 90.1-2016 Exterior'!$B$4:$H$40),$E$7+2,FALSE)=\"No Allowance\",0,VLOOKUP(C24,IF(FiscalYear=\"FY25\",'ASHRAE 90.1-2016 Exterior'!$B$4:$H$39,'ASHRAE 90.1-2016 Exterior'!$B$4:$H$40),$E$7+2,FALSE))","v":0},null,{"$f":"F24& \" W/ft²\"","v":"0 W/ft²"},null,0]
[null,null,"Building Entrances and Exits"]
[null,null,"Main entries",null,"Linear feet",{"$f":"IF(VLOOKUP(C26,IF(FiscalYear=\"FY25\",'ASHRAE 90.1-2016 Exterior'!$B$4:$H$39,'ASHRAE 90.1-2016 Exterior'!$B$4:$H$40),$E$7+2,FALSE)=\"No Allowance\",0,VLOOKUP(C26,IF(FiscalYear=\"FY25\",'ASHRAE 90.1-2016 Exterior'!$B$4:$H$39,'ASHRAE 90.1-2016 Exterior'!$B$4:$H$40),$E$7+2,FALSE))","v":0},null,{"$f":"F26 & \" W/linear foot of door width\"","v":"0 W/linear foot of door width"},null,{"$f":"IFERROR(D26*F26,0)","v":0}]
[null,null,"Other doors",null,"Linear feet",{"$f":"IF(VLOOKUP(C27,IF(FiscalYear=\"FY25\",'ASHRAE 90.1-2016 Exterior'!$B$4:$H$39,'ASHRAE 90.1-2016 Exterior'!$B$4:$H$40),$E$7+2,FALSE)=\"No Allowance\",0,VLOOKUP(C27,IF(FiscalYear=\"FY25\",'ASHRAE 90.1-2016 Exterior'!$B$4:$H$39,'ASHRAE 90.1-2016 Exterior'!$B$4:$H$40),$E$7+2,FALSE))","v":0},null,{"$f":"F27 & \" W/linear foot of door width\"","v":"0 W/linear foot of door width"},null,0]
[null,null,"Loading Docks",null,"Square Feet",{"$f":"IF(VLOOKUP(C28,IF(FiscalYear=\"FY25\",'ASHRAE 90.1-2016 Exterior'!$B$4:$H$39,'ASHRAE 90.1-2016 Exterior'!$B$4:$H$40),$E$7+2,FALSE)=\"No Allowance\",0,VLOOKUP(C28,IF(FiscalYear=\"FY25\",'ASHRAE 90.1-2016 Exterior'!$B$4:$H$39,'ASHRAE 90.1-2016 Exterior'!$B$4:$H$40),$E$7+2,FALSE))","v":0},null,{"$f":"F28& \" W/ft²\"","v":"0 W/ft²"},null,0]
[null,null,"Canopies and Overhangs"]
[null,null,"Canopies (free standing and attached)",null,"Square Feet",{"$f":"IF(VLOOKUP(C30,IF(FiscalYear=\"FY25\",'ASHRAE 90.1-2016 Exterior'!$B$4:$H$39,'ASHRAE 90.1-2016 Exterior'!$B$4:$H$40),$E$7+2,FALSE)=\"No Allowance\",0,VLOOKUP(C30,IF(FiscalYear=\"FY25\",'ASHRAE 90.1-2016 Exterior'!$B$4:$H$39,'ASHRAE 90.1-2016 Exterior'!$B$4:$H$40),$E$7+2,FALSE))","v":0},null,{"$f":"F30& \" W/ft²\"","v":"0 W/ft²"},null,{"$f":"IFERROR(D30*F30,0)","v":0}]
[null,null,"Outdoor Sales"]
[null,null,"Open areas (including vehicle sales lots)",null,"Square Feet",{"$f":"IF(VLOOKUP(C32,IF(FiscalYear=\"FY25\",'ASHRAE 90.1-2016 Exterior'!$B$4:$H$39,'ASHRAE 90.1-2016 Exterior'!$B$4:$H$40),$E$7+2,FALSE)=\"No Allowance\",0,VLOOKUP(C32,IF(FiscalYear=\"FY25\",'ASHRAE 90.1-2016 Exterior'!$B$4:$H$39,'ASHRAE 90.1-2016 Exterior'!$B$4:$H$40),$E$7+2,FALSE))","v":0},null,{"$f":"F32& \" W/ft²\"","v":"0 W/ft²"},null,{"$f":"IFERROR(D32*F32,0)","v":0}]
[null,null,"Street frontage for vehicle sales lots in addition to \"open area\" allowance",null,"Linear feet",{"$f":"IF(VLOOKUP(C33,IF(FiscalYear=\"FY25\",'ASHRAE 90.1-2016 Exterior'!$B$4:$H$39,'ASHRAE 90.1-2016 Exterior'!$B$4:$H$40),$E$7+2,FALSE)=\"No Allowance\",0,VLOOKUP(C33,IF(FiscalYear=\"FY25\",'ASHRAE 90.1-2016 Exterior'!$B$4:$H$39,'ASHRAE 90.1-2016 Exterior'!$B$4:$H$40),$E$7+2,FALSE))","v":0},null,{"$f":"F33 & \" W/linear foot\"","v":"0 W/linear foot"},null,0]
[]
[null,"Non-Tradable Surfaces (Lighting power density calculations for the following applications can be used only for the specific application and cannot be traded between surfaces or with other exterior lighting.  The following allowances are in addition to any allowance otherwise permitted in the \"tradable surfaces\" section of this table.)","Building Facades",null,"Linear Feet",{"$f":"IF(VLOOKUP(C35,IF(FiscalYear=\"FY25\",'ASHRAE 90.1-2016 Exterior'!$B$4:$H$39,'ASHRAE 90.1-2016 Exterior'!$B$4:$H$40),$E$7+2,FALSE)=\"No Allowance\",0,VLOOKUP(C35,IF(FiscalYear=\"FY25\",'ASHRAE 90.1-2016 Exterior'!$B$4:$H$39,'ASHRAE 90.1-2016 Exterior'!$B$4:$H$40),$E$7+2,FALSE))","v":0},null,{"$f":"F35 & \" W/ft² for each illuminated wall OR \" &F36 & \" W/linear foot for each illuminated wall or surface length\"","v":"0 W/ft² for each illuminated wall OR 0 W/linear foot for each illuminated wall or surface length"},null,{"$f":"IFERROR(IF(D35>0,D35*F35,D36*F36),0)","v":0}]
[null,null,null,null,"Square Feet",{"$f":"IF($E$7=2,IF(FiscalYear=\"FY25\",'ASHRAE 90.1-2016 Exterior'!$E$31,'ASHRAE 90.1-2016 Exterior'!$E$32),IF($E$7=3,IF(FiscalYear=\"FY25\",'ASHRAE 90.1-2016 Exterior'!$F$31,'ASHRAE 90.1-2016 Exterior'!$F$32),IF($E$7=4,IF(FiscalYear=\"FY25\",'ASHRAE 90.1-2016 Exterior'!$G$31,'ASHRAE 90.1-2016 Exterior'!$G$32),0)))","v":0}]
[null,null,"Automated teller machines and night depositories",null,"Quantity",{"$f":"IF(VLOOKUP(C37 & \" (per facility)\",IF(FiscalYear=\"FY25\",'ASHRAE 90.1-2016 Exterior'!$B$4:$H$39,'ASHRAE 90.1-2016 Exterior'!$B$4:$H$40),$E$7+2,FALSE)=\"No Allowance\",0,VLOOKUP(C37 & \" (per facility)\",IF(FiscalYear=\"FY25\",'ASHRAE 90.1-2016 Exterior'!$B$4:$H$39,'ASHRAE 90.1-2016 Exterior'!$B$4:$H$40),$E$7+2,FALSE))","v":0},{"$f":"IF(VLOOKUP(C37 & \" (additional ATM)\",IF(FiscalYear=\"FY25\",'ASHRAE 90.1-2016 Exterior'!$B$4:$H$39,'ASHRAE 90.1-2016 Exterior'!$B$4:$H$40),$E$7+2,FALSE)=\"No Allowance\",0,VLOOKUP(C37 & \" (additional ATM)\",IF(FiscalYear=\"FY25\",'ASHRAE 90.1-2016 Exterior'!$B$4:$H$39,'ASHRAE 90.1-2016 Exterior'!$B$4:$H$40),$E$7+2,FALSE))","v":0},{"$f":"F37 & \" W per location plus \" & G37 & \" W per additional ATM per location\"","v":"0 W per location plus 0 W per additional ATM per location"},null,{"$f":"IFERROR(IF(D37>0,F37+D37*G37,0),0)","v":0}]
[null,null,{"$f":"IF(FiscalYear=\"FY25\",'ASHRAE 90.1-2016 Exterior'!$B$34,'ASHRAE 90.1-2016 Exterior'!$B$34)","v":"Uncovered entrances and gatehouse inspection station at guarded facilities"},null,"Square Feet",{"$f":"IF(VLOOKUP(C38,IF(FiscalYear=\"FY25\",'ASHRAE 90.1-2016 Exterior'!$B$4:$H$39,'ASHRAE 90.1-2016 Exterior'!$B$4:$H$40),$E$7+2,FALSE)=\"No Allowance\",0,VLOOKUP(C38,IF(FiscalYear=\"FY25\",'ASHRAE 90.1-2016 Exterior'!$B$4:$H$39,'ASHRAE 90.1-2016 Exterior'!$B$4:$H$40),$E$7+2,FALSE))","v":0},null,{"$f":"F38 & \" W/ft² of uncovered area (covered areas are included in the 'canopies and overhangs' section of 'tradable surfaces')\"","v":"0 W/ft² of uncovered area (covered areas are included in the 'canopies and overhangs' section of 'tradable surfaces')"},null,{"$f":"IFERROR(D38*F38,0)","v":0}]
[null,null,{"$f":"IF(FiscalYear=\"FY25\",'ASHRAE 90.1-2016 Exterior'!$B$35,'ASHRAE 90.1-2016 Exterior'!$B$35)","v":"Uncovered loading areas for law enforcement, fire, ambulance, and other emergency service vehicles"},null,"Square Feet",{"$f":"IF(VLOOKUP(C39,IF(FiscalYear=\"FY25\",'ASHRAE 90.1-2016 Exterior'!$B$4:$H$39,'ASHRAE 90.1-2016 Exterior'!$B$4:$H$40),$E$7+2,FALSE)=\"No Allowance\",0,VLOOKUP(C39,IF(FiscalYear=\"FY25\",'ASHRAE 90.1-2016 Exterior'!$B$4:$H$39,'ASHRAE 90.1-2016 Exterior'!$B$4:$H$40),$E$7+2,FALSE))","v":0},null,{"$f":"F39 & \" W/ft² of uncovered area a (covered areas are included in the 'canopies and overhangs' section of 'tradable surfaces')\"","v":"0 W/ft² of uncovered area a (covered areas are included in the 'canopies and overhangs' section of 'tradable surfaces')"},null,0]
[null,null,{"$f":"IF(FiscalYear=\"FY25\",'ASHRAE 90.1-2016 Exterior'!$B$37,'ASHRAE 90.1-2016 Exterior'!$B$37)","v":"Drive-through windows/doors"},null,"Quantity",null,{"$f":"IF(VLOOKUP(C40,IF(FiscalYear=\"FY25\",'ASHRAE 90.1-2016 Exterior'!$B$4:$H$39,'ASHRAE 90.1-2016 Exterior'!$B$4:$H$40),$E$7+2,FALSE)=\"No Allowance\",0,VLOOKUP(C40,IF(FiscalYear=\"FY25\",'ASHRAE 90.1-2016 Exterior'!$B$4:$H$39,'ASHRAE 90.1-2016 Exterior'!$B$4:$H$40),$E$7+2,FALSE))","v":0},{"$f":"G40 & \" W per drive-through\"","v":"0 W per drive-through"},null,0]
[null,null,"Parking near 24-hour retail entrances",null,"Quantity",null,{"$f":"IF(VLOOKUP(C41,IF(FiscalYear=\"FY25\",'ASHRAE 90.1-2016 Exterior'!$B$4:$H$39,'ASHRAE 90.1-2016 Exterior'!$B$4:$H$40),$E$7+2,FALSE)=\"No Allowance\",0,VLOOKUP(C41,IF(FiscalYear=\"FY25\",'ASHRAE 90.1-2016 Exterior'!$B$4:$H$39,'ASHRAE 90.1-2016 Exterior'!$B$4:$H$40),$E$7+2,FALSE))","v":0},{"$f":"G41 & \" W per main entry\"","v":"0 W per main entry"},null,{"$f":"IFERROR(D41*G41,0)","v":0}]

{"sheet":"Project Information","index":8,"n_rows":44,"n_cols":24,"rows_kept":44,"cut":false,"hidden":true,"merged":[[1,10,1,21],[1,0,1,8]]}
[null,"HIDE","HIDE",null,null,null,"HIDE","HIDE",null,null,null,null,null,null,null,null,"HIDE",null,null,"HIDE"]
["Zone Information",null,null,null,null,null,null,null,null,null,"Fixture Information [P]"]
[1,2,3,4,5,6,7,8,9,10,11,12,13,14,15,16,17,18,19,20,21,22,23,24]
["Line","IsActive","LI (Filled)","Schedule","Interior/ Exterior","Zone Description","Zone #","Baseline Wattage","Space Description","1","Fixture Qty [P]","Fixture Technology [P]","# Lamps/ Fixture [P]","Fixture/ Lamp Wattage [P]","Ballast/ Driver [P]","Fixture Wattage [P]","Wattage [P]","Fixture Type [P]","Controls [P]","Fixture Description [P]","Manufacturer [P]","Model Number [P]","2","Notes"]
[{"$f":"IF($A4=\"Line\",1,MAX($A$4:$A4)+1)","v":1},{"$f":"COUNTA(Table_NCInfo[[#This Row],[Schedule]:[Notes]])>6","v":false},{"$f":"IF(Table_NCInfo[[#This Row],[IsActive]],Table_NCInfo[[#This Row],[Line]],\"\")","v":""},null,null,null,{"$f":"IFERROR(INDEX(Table_IntLookups[Zone'#],MATCH(Table_NCInfo[[#This Row],[Zone Description]],Table_IntLookups[Dropdown],0),0),\"\")","v":""},{"$f":"IF(Table_NCInfo[[#This Row],[Zone '#]]<>\"\",IFERROR(VLOOKUP(Table_NCInfo[[#This Row],[Zone '#]],Table_IntLookups[],'Facility Information'!$AB$4,FALSE) * (Table_NCInfo[[#This Row],[Fixture Qty '[P']]]*Table_NCInfo[[#This Row],[Fixture Wattage '[P']]])/SUMIFS(Table_NCInfo[Wattage '[P']],Table_NCInfo[Zone '#],Table_NCInfo[[#This Row],[Zone '#]]),0),\"\")","v":""},null,null,null,null,null,{"$f":"IF(Table_NCInfo[[#This Row],[Fixture Technology '[P']]]=\"LED Tube\",\"[Enter]\",\"\")","v":""},null,{"$f":"IFERROR(\nIFERROR(OFFSET(Table_TypWattage[[#Headers],[Technology]],MATCH(Table_NCInfo[[#This Row],[Fixture Technology '[P']]],Table_TypWattage[Technology],0)+MATCH(Table_NCInfo[[#This Row],[Fixture/ Lamp Wattage '[P']]],INDIRECT(SUBSTITUTE(SUBSTITUTE(Table_NCInfo[[#This Row],[Fixture Technology '[P']]],\" \",\"_\"),\"-\",\"_\")),0)-1,MATCH(Table_NCInfo[[#This Row],['# Lamps/ Fixture '[P']]],'Measure Tables'!$Q$2:$V$2,0)+1),IF(Table_NCInfo[[#This Row],[Schedule]]<>\"\",IF(AND(Table_NCInfo[[#This Row],['# Lamps/ Fixture '[P']]]>0,Table_NCInfo[[#This Row],[Fixture/ Lamp Wattage '[P']]]>0),Table_NCInfo[[#This Row],['# Lamps/ Fixture '[P']]]*Table_NCInfo[[#This Row],[Fixture/ Lamp Wattage '[P']]],Table_NCInfo[[#This Row],[Fixture/ Lamp Wattage '[P']]]),\"\")),\n\"\")","v":""},{"$f":"IF(AND(Table_NCInfo[[#This Row],[Fixture Qty '[P']]]<>\"\",Table_NCInfo[[#This Row],[Fixture Qty '[P']]]>0,Table_NCInfo[[#This Row],[Fixture Wattage '[P']]]<>\"\",Table_NCInfo[[#This Row],[Fixture Wattage '[P']]]>0),IFERROR(Table_NCInfo[[#This Row],[Fixture Qty '[P']]]*Table_NCInfo[[#This Row],[Fixture Wattage '[P']]],0),\"\")","v":""},null,null,{"$f":"IFERROR(IF(Table_NCInfo[[#This Row],[Interior/ Exterior]]<>\"\",\n  CONCATENATE(\n  Table_NCInfo[[#This Row],[Interior/ Exterior]],\": \",\n  Table_NCInfo[[#This Row],[Fixture Technology '[P']]],\n  \" - \",Table_NCInfo[[#This Row],[Fixture Type '[P']]],\" [\",\n  IF(AND(Table_NCInfo[[#This Row],['# Lamps/ Fixture '[P']]]<>\"\",Table_NCInfo[[#This Row],['# Lamps/ Fixture '[P']]]>0),Table_NCInfo[[#This Row],['# Lamps/ Fixture '[P']]] & \"L - \" & Table_NCInfo[[#This Row],[Fixture/ Lamp Wattage '[P']]] & \"W\" & IF(Table_NCInfo[[#This Row],[Ballast/ Driver '[P']]]<>\"\",\" - \" & Table_NCInfo[[#This Row],[Ballast/ Driver '[P']]],\"\"),Table_NCInfo[[#This Row],[Fixture Wattage '[P']]] & \"W\"),\"]\",\n  IF(AND(Table_NCInfo[[#This Row],[Controls '[P']]]<>\"\"),\" - \" & Table_NCInfo[[#This Row],[Controls '[P']]],\"\")\n  ),\n\"\"),\"\")","v":""}]
[{"$f":"IF($A5=\"Line\",1,MAX($A$4:$A5)+1)","v":2},{"$f":"COUNTA(Table_NCInfo[[#This Row],[Schedule]:[Notes]])>6","v":false},{"$f":"IF(Table_NCInfo[[#This Row],[IsActive]],Table_NCInfo[[#This Row],[Line]],\"\")","v":""},null,null,null,{"$f":"IFERROR(INDEX(Table_IntLookups[Zone'#],MATCH(Table_NCInfo[[#This Row],[Zone Description]],Table_IntLookups[Dropdown],0),0),\"\")","v":""},{"$f":"IF(Table_NCInfo[[#This Row],[Zone '#]]<>\"\",IFERROR(VLOOKUP(Table_NCInfo[[#This Row],[Zone '#]],Table_IntLookups[],'Facility Information'!$AB$4,FALSE) * (Table_NCInfo[[#This Row],[Fixture Qty '[P']]]*Table_NCInfo[[#This Row],[Fixture Wattage '[P']]])/SUMIFS(Table_NCInfo[Wattage '[P']],Table_NCInfo[Zone '#],Table_NCInfo[[#This Row],[Zone '#]]),0),\"\")","v":""},null,null,null,null,null,{"$f":"IF(Table_NCInfo[[#This Row],[Fixture Technology '[P']]]=\"LED Tube\",\"[Enter]\",\"\")","v":""},null,{"$f":"IFERROR(\nIFERROR(OFFSET(Table_TypWattage[[#Headers],[Technology]],MATCH(Table_NCInfo[[#This Row],[Fixture Technology '[P']]],Table_TypWattage[Technology],0)+MATCH(Table_NCInfo[[#This Row],[Fixture/ Lamp Wattage '[P']]],INDIRECT(SUBSTITUTE(SUBSTITUTE(Table_NCInfo[[#This Row],[Fixture Technology '[P']]],\" \",\"_\"),\"-\",\"_\")),0)-1,MATCH(Table_NCInfo[[#This Row],['# Lamps/ Fixture '[P']]],'Measure Tables'!$Q$2:$V$2,0)+1),IF(Table_NCInfo[[#This Row],[Schedule]]<>\"\",IF(AND(Table_NCInfo[[#This Row],['# Lamps/ Fixture '[P']]]>0,Table_NCInfo[[#This Row],[Fixture/ Lamp Wattage '[P']]]>0),Table_NCInfo[[#This Row],['# Lamps/ Fixture '[P']]]*Table_NCInfo[[#This Row],[Fixture/ Lamp Wattage '[P']]],Table_NCInfo[[#This Row],[Fixture/ Lamp Wattage '[P']]]),\"\")),\n\"\")","v":""},{"$f":"IF(AND(Table_NCInfo[[#This Row],[Fixture Qty '[P']]]<>\"\",Table_NCInfo[[#This Row],[Fixture Qty '[P']]]>0,Table_NCInfo[[#This Row],[Fixture Wattage '[P']]]<>\"\",Table_NCInfo[[#This Row],[Fixture Wattage '[P']]]>0),IFERROR(Table_NCInfo[[#This Row],[Fixture Qty '[P']]]*Table_NCInfo[[#This Row],[Fixture Wattage '[P']]],0),\"\")","v":""},null,null,{"$f":"IFERROR(IF(Table_NCInfo[[#This Row],[Interior/ Exterior]]<>\"\",\n  CONCATENATE(\n  Table_NCInfo[[#This Row],[Interior/ Exterior]],\": \",\n  Table_NCInfo[[#This Row],[Fixture Technology '[P']]],\n  \" - \",Table_NCInfo[[#This Row],[Fixture Type '[P']]],\" [\",\n  IF(AND(Table_NCInfo[[#This Row],['# Lamps/ Fixture '[P']]]<>\"\",Table_NCInfo[[#This Row],['# Lamps/ Fixture '[P']]]>0),Table_NCInfo[[#This Row],['# Lamps/ Fixture '[P']]] & \"L - \" & Table_NCInfo[[#This Row],[Fixture/ Lamp Wattage '[P']]] & \"W\" & IF(Table_NCInfo[[#This Row],[Ballast/ Driver '[P']]]<>\"\",\" - \" & Table_NCInfo[[#This Row],[Ballast/ Driver '[P']]],\"\"),Table_NCInfo[[#This Row],[Fixture Wattage '[P']]] & \"W\"),\"]\",\n  IF(AND(Table_NCInfo[[#This Row],[Controls '[P']]]<>\"\"),\" - \" & Table_NCInfo[[#This Row],[Controls '[P']]],\"\")\n  ),\n\"\"),\"\")","v":""}]
[{"$f":"IF($A6=\"Line\",1,MAX($A$4:$A6)+1)","v":3},{"$f":"COUNTA(Table_NCInfo[[#This Row],[Schedule]:[Notes]])>6","v":false},{"$f":"IF(Table_NCInfo[[#This Row],[IsActive]],Table_NCInfo[[#This Row],[Line]],\"\")","v":""},null,null,null,{"$f":"IFERROR(INDEX(Table_IntLookups[Zone'#],MATCH(Table_NCInfo[[#This Row],[Zone Description]],Table_IntLookups[Dropdown],0),0),\"\")","v":""},{"$f":"IF(Table_NCInfo[[#This Row],[Zone '#]]<>\"\",IFERROR(VLOOKUP(Table_NCInfo[[#This Row],[Zone '#]],Table_IntLookups[],'Facility Information'!$AB$4,FALSE) * (Table_NCInfo[[#This Row],[Fixture Qty '[P']]]*Table_NCInfo[[#This Row],[Fixture Wattage '[P']]])/SUMIFS(Table_NCInfo[Wattage '[P']],Table_NCInfo[Zone '#],Table_NCInfo[[#This Row],[Zone '#]]),0),\"\")","v":""},null,null,null,null,null,{"$f":"IF(Table_NCInfo[[#This Row],[Fixture Technology '[P']]]=\"LED Tube\",\"[Enter]\",\"\")","v":""},null,{"$f":"IFERROR(\nIFERROR(OFFSET(Table_TypWattage[[#Headers],[Technology]],MATCH(Table_NCInfo[[#This Row],[Fixture Technology '[P']]],Table_TypWattage[Technology],0)+MATCH(Table_NCInfo[[#This Row],[Fixture/ Lamp Wattage '[P']]],INDIRECT(SUBSTITUTE(SUBSTITUTE(Table_NCInfo[[#This Row],[Fixture Technology '[P']]],\" \",\"_\"),\"-\",\"_\")),0)-1,MATCH(Table_NCInfo[[#This Row],['# Lamps/ Fixture '[P']]],'Measure Tables'!$Q$2:$V$2,0)+1),IF(Table_NCInfo[[#This Row],[Schedule]]<>\"\",IF(AND(Table_NCInfo[[#This Row],['# Lamps/ Fixture '[P']]]>0,Table_NCInfo[[#This Row],[Fixture/ Lamp Wattage '[P']]]>0),Table_NCInfo[[#This Row],['# Lamps/ Fixture '[P']]]*Table_NCInfo[[#This Row],[Fixture/ Lamp Wattage '[P']]],Table_NCInfo[[#This Row],[Fixture/ Lamp Wattage '[P']]]),\"\")),\n\"\")","v":""},{"$f":"IF(AND(Table_NCInfo[[#This Row],[Fixture Qty '[P']]]<>\"\",Table_NCInfo[[#This Row],[Fixture Qty '[P']]]>0,Table_NCInfo[[#This Row],[Fixture Wattage '[P']]]<>\"\",Table_NCInfo[[#This Row],[Fixture Wattage '[P']]]>0),IFERROR(Table_NCInfo[[#This Row],[Fixture Qty '[P']]]*Table_NCInfo[[#This Row],[Fixture Wattage '[P']]],0),\"\")","v":""},null,null,{"$f":"IFERROR(IF(Table_NCInfo[[#This Row],[Interior/ Exterior]]<>\"\",\n  CONCATENATE(\n  Table_NCInfo[[#This Row],[Interior/ Exterior]],\": \",\n  Table_NCInfo[[#This Row],[Fixture Technology '[P']]],\n  \" - \",Table_NCInfo[[#This Row],[Fixture Type '[P']]],\" [\",\n  IF(AND(Table_NCInfo[[#This Row],['# Lamps/ Fixture '[P']]]<>\"\",Table_NCInfo[[#This Row],['# Lamps/ Fixture '[P']]]>0),Table_NCInfo[[#This Row],['# Lamps/ Fixture '[P']]] & \"L - \" & Table_NCInfo[[#This Row],[Fixture/ Lamp Wattage '[P']]] & \"W\" & IF(Table_NCInfo[[#This Row],[Ballast/ Driver '[P']]]<>\"\",\" - \" & Table_NCInfo[[#This Row],[Ballast/ Driver '[P']]],\"\"),Table_NCInfo[[#This Row],[Fixture Wattage '[P']]] & \"W\"),\"]\",\n  IF(AND(Table_NCInfo[[#This Row],[Controls '[P']]]<>\"\"),\" - \" & Table_NCInfo[[#This Row],[Controls '[P']]],\"\")\n  ),\n\"\"),\"\")","v":""}]
[{"$f":"IF($A7=\"Line\",1,MAX($A$4:$A7)+1)","v":4},{"$f":"COUNTA(Table_NCInfo[[#This Row],[Schedule]:[Notes]])>6","v":false},{"$f":"IF(Table_NCInfo[[#This Row],[IsActive]],Table_NCInfo[[#This Row],[Line]],\"\")","v":""},null,null,null,{"$f":"IFERROR(INDEX(Table_IntLookups[Zone'#],MATCH(Table_NCInfo[[#This Row],[Zone Description]],Table_IntLookups[Dropdown],0),0),\"\")","v":""},{"$f":"IF(Table_NCInfo[[#This Row],[Zone '#]]<>\"\",IFERROR(VLOOKUP(Table_NCInfo[[#This Row],[Zone '#]],Table_IntLookups[],'Facility Information'!$AB$4,FALSE) * (Table_NCInfo[[#This Row],[Fixture Qty '[P']]]*Table_NCInfo[[#This Row],[Fixture Wattage '[P']]])/SUMIFS(Table_NCInfo[Wattage '[P']],Table_NCInfo[Zone '#],Table_NCInfo[[#This Row],[Zone '#]]),0),\"\")","v":""},null,null,null,null,null,{"$f":"IF(Table_NCInfo[[#This Row],[Fixture Technology '[P']]]=\"LED Tube\",\"[Enter]\",\"\")","v":""},null,{"$f":"IFERROR(\nIFERROR(OFFSET(Table_TypWattage[[#Headers],[Technology]],MATCH(Table_NCInfo[[#This Row],[Fixture Technology '[P']]],Table_TypWattage[Technology],0)+MATCH(Table_NCInfo[[#This Row],[Fixture/ Lamp Wattage '[P']]],INDIRECT(SUBSTITUTE(SUBSTITUTE(Table_NCInfo[[#This Row],[Fixture Technology '[P']]],\" \",\"_\"),\"-\",\"_\")),0)-1,MATCH(Table_NCInfo[[#This Row],['# Lamps/ Fixture '[P']]],'Measure Tables'!$Q$2:$V$2,0)+1),IF(Table_NCInfo[[#This Row],[Schedule]]<>\"\",IF(AND(Table_NCInfo[[#This Row],['# Lamps/ Fixture '[P']]]>0,Table_NCInfo[[#This Row],[Fixture/ Lamp Wattage '[P']]]>0),Table_NCInfo[[#This Row],['# Lamps/ Fixture '[P']]]*Table_NCInfo[[#This Row],[Fixture/ Lamp Wattage '[P']]],Table_NCInfo[[#This Row],[Fixture/ Lamp Wattage '[P']]]),\"\")),\n\"\")","v":""},{"$f":"IF(AND(Table_NCInfo[[#This Row],[Fixture Qty '[P']]]<>\"\",Table_NCInfo[[#This Row],[Fixture Qty '[P']]]>0,Table_NCInfo[[#This Row],[Fixture Wattage '[P']]]<>\"\",Table_NCInfo[[#This Row],[Fixture Wattage '[P']]]>0),IFERROR(Table_NCInfo[[#This Row],[Fixture Qty '[P']]]*Table_NCInfo[[#This Row],[Fixture Wattage '[P']]],0),\"\")","v":""},null,null,{"$f":"IFERROR(IF(Table_NCInfo[[#This Row],[Interior/ Exterior]]<>\"\",\n  CONCATENATE(\n  Table_NCInfo[[#This Row],[Interior/ Exterior]],\": \",\n  Table_NCInfo[[#This Row],[Fixture Technology '[P']]],\n  \" - \",Table_NCInfo[[#This Row],[Fixture Type '[P']]],\" [\",\n  IF(AND(Table_NCInfo[[#This Row],['# Lamps/ Fixture '[P']]]<>\"\",Table_NCInfo[[#This Row],['# Lamps/ Fixture '[P']]]>0),Table_NCInfo[[#This Row],['# Lamps/ Fixture '[P']]] & \"L - \" & Table_NCInfo[[#This Row],[Fixture/ Lamp Wattage '[P']]] & \"W\" & IF(Table_NCInfo[[#This Row],[Ballast/ Driver '[P']]]<>\"\",\" - \" & Table_NCInfo[[#This Row],[Ballast/ Driver '[P']]],\"\"),Table_NCInfo[[#This Row],[Fixture Wattage '[P']]] & \"W\"),\"]\",\n  IF(AND(Table_NCInfo[[#This Row],[Controls '[P']]]<>\"\"),\" - \" & Table_NCInfo[[#This Row],[Controls '[P']]],\"\")\n  ),\n\"\"),\"\")","v":""}]
[{"$f":"IF($A8=\"Line\",1,MAX($A$4:$A8)+1)","v":5},{"$f":"COUNTA(Table_NCInfo[[#This Row],[Schedule]:[Notes]])>6","v":false},{"$f":"IF(Table_NCInfo[[#This Row],[IsActive]],Table_NCInfo[[#This Row],[Line]],\"\")","v":""},null,null,null,{"$f":"IFERROR(INDEX(Table_IntLookups[Zone'#],MATCH(Table_NCInfo[[#This Row],[Zone Description]],Table_IntLookups[Dropdown],0),0),\"\")","v":""},{"$f":"IF(Table_NCInfo[[#This Row],[Zone '#]]<>\"\",IFERROR(VLOOKUP(Table_NCInfo[[#This Row],[Zone '#]],Table_IntLookups[],'Facility Information'!$AB$4,FALSE) * (Table_NCInfo[[#This Row],[Fixture Qty '[P']]]*Table_NCInfo[[#This Row],[Fixture Wattage '[P']]])/SUMIFS(Table_NCInfo[Wattage '[P']],Table_NCInfo[Zone '#],Table_NCInfo[[#This Row],[Zone '#]]),0),\"\")","v":""},null,null,null,null,null,{"$f":"IF(Table_NCInfo[[#This Row],[Fixture Technology '[P']]]=\"LED Tube\",\"[Enter]\",\"\")","v":""},null,{"$f":"IFERROR(\nIFERROR(OFFSET(Table_TypWattage[[#Headers],[Technology]],MATCH(Table_NCInfo[[#This Row],[Fixture Technology '[P']]],Table_TypWattage[Technology],0)+MATCH(Table_NCInfo[[#This Row],[Fixture/ Lamp Wattage '[P']]],INDIRECT(SUBSTITUTE(SUBSTITUTE(Table_NCInfo[[#This Row],[Fixture Technology '[P']]],\" \",\"_\"),\"-\",\"_\")),0)-1,MATCH(Table_NCInfo[[#This Row],['# Lamps/ Fixture '[P']]],'Measure Tables'!$Q$2:$V$2,0)+1),IF(Table_NCInfo[[#This Row],[Schedule]]<>\"\",IF(AND(Table_NCInfo[[#This Row],['# Lamps/ Fixture '[P']]]>0,Table_NCInfo[[#This Row],[Fixture/ Lamp Wattage '[P']]]>0),Table_NCInfo[[#This Row],['# Lamps/ Fixture '[P']]]*Table_NCInfo[[#This Row],[Fixture/ Lamp Wattage '[P']]],Table_NCInfo[[#This Row],[Fixture/ Lamp Wattage '[P']]]),\"\")),\n\"\")","v":""},{"$f":"IF(AND(Table_NCInfo[[#This Row],[Fixture Qty '[P']]]<>\"\",Table_NCInfo[[#This Row],[Fixture Qty '[P']]]>0,Table_NCInfo[[#This Row],[Fixture Wattage '[P']]]<>\"\",Table_NCInfo[[#This Row],[Fixture Wattage '[P']]]>0),IFERROR(Table_NCInfo[[#This Row],[Fixture Qty '[P']]]*Table_NCInfo[[#This Row],[Fixture Wattage '[P']]],0),\"\")","v":""},null,null,{"$f":"IFERROR(IF(Table_NCInfo[[#This Row],[Interior/ Exterior]]<>\"\",\n  CONCATENATE(\n  Table_NCInfo[[#This Row],[Interior/ Exterior]],\": \",\n  Table_NCInfo[[#This Row],[Fixture Technology '[P']]],\n  \" - \",Table_NCInfo[[#This Row],[Fixture Type '[P']]],\" [\",\n  IF(AND(Table_NCInfo[[#This Row],['# Lamps/ Fixture '[P']]]<>\"\",Table_NCInfo[[#This Row],['# Lamps/ Fixture '[P']]]>0),Table_NCInfo[[#This Row],['# Lamps/ Fixture '[P']]] & \"L - \" & Table_NCInfo[[#This Row],[Fixture/ Lamp Wattage '[P']]] & \"W\" & IF(Table_NCInfo[[#This Row],[Ballast/ Driver '[P']]]<>\"\",\" - \" & Table_NCInfo[[#This Row],[Ballast/ Driver '[P']]],\"\"),Table_NCInfo[[#This Row],[Fixture Wattage '[P']]] & \"W\"),\"]\",\n  IF(AND(Table_NCInfo[[#This Row],[Controls '[P']]]<>\"\"),\" - \" & Table_NCInfo[[#This Row],[Controls '[P']]],\"\")\n  ),\n\"\"),\"\")","v":""}]
[{"$f":"IF($A9=\"Line\",1,MAX($A$4:$A9)+1)","v":6},{"$f":"COUNTA(Table_NCInfo[[#This Row],[Schedule]:[Notes]])>6","v":false},{"$f":"IF(Table_NCInfo[[#This Row],[IsActive]],Table_NCInfo[[#This Row],[Line]],\"\")","v":""},null,null,null,{"$f":"IFERROR(INDEX(Table_IntLookups[Zone'#],MATCH(Table_NCInfo[[#This Row],[Zone Description]],Table_IntLookups[Dropdown],0),0),\"\")","v":""},{"$f":"IF(Table_NCInfo[[#This Row],[Zone '#]]<>\"\",IFERROR(VLOOKUP(Table_NCInfo[[#This Row],[Zone '#]],Table_IntLookups[],'Facility Information'!$AB$4,FALSE) * (Table_NCInfo[[#This Row],[Fixture Qty '[P']]]*Table_NCInfo[[#This Row],[Fixture Wattage '[P']]])/SUMIFS(Table_NCInfo[Wattage '[P']],Table_NCInfo[Zone '#],Table_NCInfo[[#This Row],[Zone '#]]),0),\"\")","v":""},null,null,null,null,null,{"$f":"IF(Table_NCInfo[[#This Row],[Fixture Technology '[P']]]=\"LED Tube\",\"[Enter]\",\"\")","v":""},null,{"$f":"IFERROR(\nIFERROR(OFFSET(Table_TypWattage[[#Headers],[Technology]],MATCH(Table_NCInfo[[#This Row],[Fixture Technology '[P']]],Table_TypWattage[Technology],0)+MATCH(Table_NCInfo[[#This Row],[Fixture/ Lamp Wattage '[P']]],INDIRECT(SUBSTITUTE(SUBSTITUTE(Table_NCInfo[[#This Row],[Fixture Technology '[P']]],\" \",\"_\"),\"-\",\"_\")),0)-1,MATCH(Table_NCInfo[[#This Row],['# Lamps/ Fixture '[P']]],'Measure Tables'!$Q$2:$V$2,0)+1),IF(Table_NCInfo[[#This Row],[Schedule]]<>\"\",IF(AND(Table_NCInfo[[#This Row],['# Lamps/ Fixture '[P']]]>0,Table_NCInfo[[#This Row],[Fixture/ Lamp Wattage '[P']]]>0),Table_NCInfo[[#This Row],['# Lamps/ Fixture '[P']]]*Table_NCInfo[[#This Row],[Fixture/ Lamp Wattage '[P']]],Table_NCInfo[[#This Row],[Fixture/ Lamp Wattage '[P']]]),\"\")),\n\"\")","v":""},{"$f":"IF(AND(Table_NCInfo[[#This Row],[Fixture Qty '[P']]]<>\"\",Table_NCInfo[[#This Row],[Fixture Qty '[P']]]>0,Table_NCInfo[[#This Row],[Fixture Wattage '[P']]]<>\"\",Table_NCInfo[[#This Row],[Fixture Wattage '[P']]]>0),IFERROR(Table_NCInfo[[#This Row],[Fixture Qty '[P']]]*Table_NCInfo[[#This Row],[Fixture Wattage '[P']]],0),\"\")","v":""},null,null,{"$f":"IFERROR(IF(Table_NCInfo[[#This Row],[Interior/ Exterior]]<>\"\",\n  CONCATENATE(\n  Table_NCInfo[[#This Row],[Interior/ Exterior]],\": \",\n  Table_NCInfo[[#This Row],[Fixture Technology '[P']]],\n  \" - \",Table_NCInfo[[#This Row],[Fixture Type '[P']]],\" [\",\n  IF(AND(Table_NCInfo[[#This Row],['# Lamps/ Fixture '[P']]]<>\"\",Table_NCInfo[[#This Row],['# Lamps/ Fixture '[P']]]>0),Table_NCInfo[[#This Row],['# Lamps/ Fixture '[P']]] & \"L - \" & Table_NCInfo[[#This Row],[Fixture/ Lamp Wattage '[P']]] & \"W\" & IF(Table_NCInfo[[#This Row],[Ballast/ Driver '[P']]]<>\"\",\" - \" & Table_NCInfo[[#This Row],[Ballast/ Driver '[P']]],\"\"),Table_NCInfo[[#This Row],[Fixture Wattage '[P']]] & \"W\"),\"]\",\n  IF(AND(Table_NCInfo[[#This Row],[Controls '[P']]]<>\"\"),\" - \" & Table_NCInfo[[#This Row],[Controls '[P']]],\"\")\n  ),\n\"\"),\"\")","v":""}]
[{"$f":"IF($A10=\"Line\",1,MAX($A$4:$A10)+1)","v":7},{"$f":"COUNTA(Table_NCInfo[[#This Row],[Schedule]:[Notes]])>6","v":false},{"$f":"IF(Table_NCInfo[[#This Row],[IsActive]],Table_NCInfo[[#This Row],[Line]],\"\")","v":""},null,null,null,{"$f":"IFERROR(INDEX(Table_IntLookups[Zone'#],MATCH(Table_NCInfo[[#This Row],[Zone Description]],Table_IntLookups[Dropdown],0),0),\"\")","v":""},{"$f":"IF(Table_NCInfo[[#This Row],[Zone '#]]<>\"\",IFERROR(VLOOKUP(Table_NCInfo[[#This Row],[Zone '#]],Table_IntLookups[],'Facility Information'!$AB$4,FALSE) * (Table_NCInfo[[#This Row],[Fixture Qty '[P']]]*Table_NCInfo[[#This Row],[Fixture Wattage '[P']]])/SUMIFS(Table_NCInfo[Wattage '[P']],Table_NCInfo[Zone '#],Table_NCInfo[[#This Row],[Zone '#]]),0),\"\")","v":""},null,null,null,null,null,{"$f":"IF(Table_NCInfo[[#This Row],[Fixture Technology '[P']]]=\"LED Tube\",\"[Enter]\",\"\")","v":""},null,{"$f":"IFERROR(\nIFERROR(OFFSET(Table_TypWattage[[#Headers],[Technology]],MATCH(Table_NCInfo[[#This Row],[Fixture Technology '[P']]],Table_TypWattage[Technology],0)+MATCH(Table_NCInfo[[#This Row],[Fixture/ Lamp Wattage '[P']]],INDIRECT(SUBSTITUTE(SUBSTITUTE(Table_NCInfo[[#This Row],[Fixture Technology '[P']]],\" \",\"_\"),\"-\",\"_\")),0)-1,MATCH(Table_NCInfo[[#This Row],['# Lamps/ Fixture '[P']]],'Measure Tables'!$Q$2:$V$2,0)+1),IF(Table_NCInfo[[#This Row],[Schedule]]<>\"\",IF(AND(Table_NCInfo[[#This Row],['# Lamps/ Fixture '[P']]]>0,Table_NCInfo[[#This Row],[Fixture/ Lamp Wattage '[P']]]>0),Table_NCInfo[[#This Row],['# Lamps/ Fixture '[P']]]*Table_NCInfo[[#This Row],[Fixture/ Lamp Wattage '[P']]],Table_NCInfo[[#This Row],[Fixture/ Lamp Wattage '[P']]]),\"\")),\n\"\")","v":""},{"$f":"IF(AND(Table_NCInfo[[#This Row],[Fixture Qty '[P']]]<>\"\",Table_NCInfo[[#This Row],[Fixture Qty '[P']]]>0,Table_NCInfo[[#This Row],[Fixture Wattage '[P']]]<>\"\",Table_NCInfo[[#This Row],[Fixture Wattage '[P']]]>0),IFERROR(Table_NCInfo[[#This Row],[Fixture Qty '[P']]]*Table_NCInfo[[#This Row],[Fixture Wattage '[P']]],0),\"\")","v":""},null,null,{"$f":"IFERROR(IF(Table_NCInfo[[#This Row],[Interior/ Exterior]]<>\"\",\n  CONCATENATE(\n  Table_NCInfo[[#This Row],[Interior/ Exterior]],\": \",\n  Table_NCInfo[[#This Row],[Fixture Technology '[P']]],\n  \" - \",Table_NCInfo[[#This Row],[Fixture Type '[P']]],\" [\",\n  IF(AND(Table_NCInfo[[#This Row],['# Lamps/ Fixture '[P']]]<>\"\",Table_NCInfo[[#This Row],['# Lamps/ Fixture '[P']]]>0),Table_NCInfo[[#This Row],['# Lamps/ Fixture '[P']]] & \"L - \" & Table_NCInfo[[#This Row],[Fixture/ Lamp Wattage '[P']]] & \"W\" & IF(Table_NCInfo[[#This Row],[Ballast/ Driver '[P']]]<>\"\",\" - \" & Table_NCInfo[[#This Row],[Ballast/ Driver '[P']]],\"\"),Table_NCInfo[[#This Row],[Fixture Wattage '[P']]] & \"W\"),\"]\",\n  IF(AND(Table_NCInfo[[#This Row],[Controls '[P']]]<>\"\"),\" - \" & Table_NCInfo[[#This Row],[Controls '[P']]],\"\")\n  ),\n\"\"),\"\")","v":""}]
[{"$f":"IF($A11=\"Line\",1,MAX($A$4:$A11)+1)","v":8},{"$f":"COUNTA(Table_NCInfo[[#This Row],[Schedule]:[Notes]])>6","v":false},{"$f":"IF(Table_NCInfo[[#This Row],[IsActive]],Table_NCInfo[[#This Row],[Line]],\"\")","v":""},null,null,null,{"$f":"IFERROR(INDEX(Table_IntLookups[Zone'#],MATCH(Table_NCInfo[[#This Row],[Zone Description]],Table_IntLookups[Dropdown],0),0),\"\")","v":""},{"$f":"IF(Table_NCInfo[[#This Row],[Zone '#]]<>\"\",IFERROR(VLOOKUP(Table_NCInfo[[#This Row],[Zone '#]],Table_IntLookups[],'Facility Information'!$AB$4,FALSE) * (Table_NCInfo[[#This Row],[Fixture Qty '[P']]]*Table_NCInfo[[#This Row],[Fixture Wattage '[P']]])/SUMIFS(Table_NCInfo[Wattage '[P']],Table_NCInfo[Zone '#],Table_NCInfo[[#This Row],[Zone '#]]),0),\"\")","v":""},null,null,null,null,null,{"$f":"IF(Table_NCInfo[[#This Row],[Fixture Technology '[P']]]=\"LED Tube\",\"[Enter]\",\"\")","v":""},null,{"$f":"IFERROR(\nIFERROR(OFFSET(Table_TypWattage[[#Headers],[Technology]],MATCH(Table_NCInfo[[#This Row],[Fixture Technology '[P']]],Table_TypWattage[Technology],0)+MATCH(Table_NCInfo[[#This Row],[Fixture/ Lamp Wattage '[P']]],INDIRECT(SUBSTITUTE(SUBSTITUTE(Table_NCInfo[[#This Row],[Fixture Technology '[P']]],\" \",\"_\"),\"-\",\"_\")),0)-1,MATCH(Table_NCInfo[[#This Row],['# Lamps/ Fixture '[P']]],'Measure Tables'!$Q$2:$V$2,0)+1),IF(Table_NCInfo[[#This Row],[Schedule]]<>\"\",IF(AND(Table_NCInfo[[#This Row],['# Lamps/ Fixture '[P']]]>0,Table_NCInfo[[#This Row],[Fixture/ Lamp Wattage '[P']]]>0),Table_NCInfo[[#This Row],['# Lamps/ Fixture '[P']]]*Table_NCInfo[[#This Row],[Fixture/ Lamp Wattage '[P']]],Table_NCInfo[[#This Row],[Fixture/ Lamp Wattage '[P']]]),\"\")),\n\"\")","v":""},{"$f":"IF(AND(Table_NCInfo[[#This Row],[Fixture Qty '[P']]]<>\"\",Table_NCInfo[[#This Row],[Fixture Qty '[P']]]>0,Table_NCInfo[[#This Row],[Fixture Wattage '[P']]]<>\"\",Table_NCInfo[[#This Row],[Fixture Wattage '[P']]]>0),IFERROR(Table_NCInfo[[#This Row],[Fixture Qty '[P']]]*Table_NCInfo[[#This Row],[Fixture Wattage '[P']]],0),\"\")","v":""},null,null,{"$f":"IFERROR(IF(Table_NCInfo[[#This Row],[Interior/ Exterior]]<>\"\",\n  CONCATENATE(\n  Table_NCInfo[[#This Row],[Interior/ Exterior]],\": \",\n  Table_NCInfo[[#This Row],[Fixture Technology '[P']]],\n  \" - \",Table_NCInfo[[#This Row],[Fixture Type '[P']]],\" [\",\n  IF(AND(Table_NCInfo[[#This Row],['# Lamps/ Fixture '[P']]]<>\"\",Table_NCInfo[[#This Row],['# Lamps/ Fixture '[P']]]>0),Table_NCInfo[[#This Row],['# Lamps/ Fixture '[P']]] & \"L - \" & Table_NCInfo[[#This Row],[Fixture/ Lamp Wattage '[P']]] & \"W\" & IF(Table_NCInfo[[#This Row],[Ballast/ Driver '[P']]]<>\"\",\" - \" & Table_NCInfo[[#This Row],[Ballast/ Driver '[P']]],\"\"),Table_NCInfo[[#This Row],[Fixture Wattage '[P']]] & \"W\"),\"]\",\n  IF(AND(Table_NCInfo[[#This Row],[Controls '[P']]]<>\"\"),\" - \" & Table_NCInfo[[#This Row],[Controls '[P']]],\"\")\n  ),\n\"\"),\"\")","v":""}]
[{"$f":"IF($A12=\"Line\",1,MAX($A$4:$A12)+1)","v":9},{"$f":"COUNTA(Table_NCInfo[[#This Row],[Schedule]:[Notes]])>6","v":false},{"$f":"IF(Table_NCInfo[[#This Row],[IsActive]],Table_NCInfo[[#This Row],[Line]],\"\")","v":""},null,null,null,{"$f":"IFERROR(INDEX(Table_IntLookups[Zone'#],MATCH(Table_NCInfo[[#This Row],[Zone Description]],Table_IntLookups[Dropdown],0),0),\"\")","v":""},{"$f":"IF(Table_NCInfo[[#This Row],[Zone '#]]<>\"\",IFERROR(VLOOKUP(Table_NCInfo[[#This Row],[Zone '#]],Table_IntLookups[],'Facility Information'!$AB$4,FALSE) * (Table_NCInfo[[#This Row],[Fixture Qty '[P']]]*Table_NCInfo[[#This Row],[Fixture Wattage '[P']]])/SUMIFS(Table_NCInfo[Wattage '[P']],Table_NCInfo[Zone '#],Table_NCInfo[[#This Row],[Zone '#]]),0),\"\")","v":""},null,null,null,null,null,{"$f":"IF(Table_NCInfo[[#This Row],[Fixture Technology '[P']]]=\"LED Tube\",\"[Enter]\",\"\")","v":""},null,{"$f":"IFERROR(\nIFERROR(OFFSET(Table_TypWattage[[#Headers],[Technology]],MATCH(Table_NCInfo[[#This Row],[Fixture Technology '[P']]],Table_TypWattage[Technology],0)+MATCH(Table_NCInfo[[#This Row],[Fixture/ Lamp Wattage '[P']]],INDIRECT(SUBSTITUTE(SUBSTITUTE(Table_NCInfo[[#This Row],[Fixture Technology '[P']]],\" \",\"_\"),\"-\",\"_\")),0)-1,MATCH(Table_NCInfo[[#This Row],['# Lamps/ Fixture '[P']]],'Measure Tables'!$Q$2:$V$2,0)+1),IF(Table_NCInfo[[#This Row],[Schedule]]<>\"\",IF(AND(Table_NCInfo[[#This Row],['# Lamps/ Fixture '[P']]]>0,Table_NCInfo[[#This Row],[Fixture/ Lamp Wattage '[P']]]>0),Table_NCInfo[[#This Row],['# Lamps/ Fixture '[P']]]*Table_NCInfo[[#This Row],[Fixture/ Lamp Wattage '[P']]],Table_NCInfo[[#This Row],[Fixture/ Lamp Wattage '[P']]]),\"\")),\n\"\")","v":""},{"$f":"IF(AND(Table_NCInfo[[#This Row],[Fixture Qty '[P']]]<>\"\",Table_NCInfo[[#This Row],[Fixture Qty '[P']]]>0,Table_NCInfo[[#This Row],[Fixture Wattage '[P']]]<>\"\",Table_NCInfo[[#This Row],[Fixture Wattage '[P']]]>0),IFERROR(Table_NCInfo[[#This Row],[Fixture Qty '[P']]]*Table_NCInfo[[#This Row],[Fixture Wattage '[P']]],0),\"\")","v":""},null,null,{"$f":"IFERROR(IF(Table_NCInfo[[#This Row],[Interior/ Exterior]]<>\"\",\n  CONCATENATE(\n  Table_NCInfo[[#This Row],[Interior/ Exterior]],\": \",\n  Table_NCInfo[[#This Row],[Fixture Technology '[P']]],\n  \" - \",Table_NCInfo[[#This Row],[Fixture Type '[P']]],\" [\",\n  IF(AND(Table_NCInfo[[#This Row],['# Lamps/ Fixture '[P']]]<>\"\",Table_NCInfo[[#This Row],['# Lamps/ Fixture '[P']]]>0),Table_NCInfo[[#This Row],['# Lamps/ Fixture '[P']]] & \"L - \" & Table_NCInfo[[#This Row],[Fixture/ Lamp Wattage '[P']]] & \"W\" & IF(Table_NCInfo[[#This Row],[Ballast/ Driver '[P']]]<>\"\",\" - \" & Table_NCInfo[[#This Row],[Ballast/ Driver '[P']]],\"\"),Table_NCInfo[[#This Row],[Fixture Wattage '[P']]] & \"W\"),\"]\",\n  IF(AND(Table_NCInfo[[#This Row],[Controls '[P']]]<>\"\"),\" - \" & Table_NCInfo[[#This Row],[Controls '[P']]],\"\")\n  ),\n\"\"),\"\")","v":""}]
[{"$f":"IF($A13=\"Line\",1,MAX($A$4:$A13)+1)","v":10},{"$f":"COUNTA(Table_NCInfo[[#This Row],[Schedule]:[Notes]])>6","v":false},{"$f":"IF(Table_NCInfo[[#This Row],[IsActive]],Table_NCInfo[[#This Row],[Line]],\"\")","v":""},null,null,null,{"$f":"IFERROR(INDEX(Table_IntLookups[Zone'#],MATCH(Table_NCInfo[[#This Row],[Zone Description]],Table_IntLookups[Dropdown],0),0),\"\")","v":""},{"$f":"IF(Table_NCInfo[[#This Row],[Zone '#]]<>\"\",IFERROR(VLOOKUP(Table_NCInfo[[#This Row],[Zone '#]],Table_IntLookups[],'Facility Information'!$AB$4,FALSE) * (Table_NCInfo[[#This Row],[Fixture Qty '[P']]]*Table_NCInfo[[#This Row],[Fixture Wattage '[P']]])/SUMIFS(Table_NCInfo[Wattage '[P']],Table_NCInfo[Zone '#],Table_NCInfo[[#This Row],[Zone '#]]),0),\"\")","v":""},null,null,null,null,null,{"$f":"IF(Table_NCInfo[[#This Row],[Fixture Technology '[P']]]=\"LED Tube\",\"[Enter]\",\"\")","v":""},null,{"$f":"IFERROR(\nIFERROR(OFFSET(Table_TypWattage[[#Headers],[Technology]],MATCH(Table_NCInfo[[#This Row],[Fixture Technology '[P']]],Table_TypWattage[Technology],0)+MATCH(Table_NCInfo[[#This Row],[Fixture/ Lamp Wattage '[P']]],INDIRECT(SUBSTITUTE(SUBSTITUTE(Table_NCInfo[[#This Row],[Fixture Technology '[P']]],\" \",\"_\"),\"-\",\"_\")),0)-1,MATCH(Table_NCInfo[[#This Row],['# Lamps/ Fixture '[P']]],'Measure Tables'!$Q$2:$V$2,0)+1),IF(Table_NCInfo[[#This Row],[Schedule]]<>\"\",IF(AND(Table_NCInfo[[#This Row],['# Lamps/ Fixture '[P']]]>0,Table_NCInfo[[#This Row],[Fixture/ Lamp Wattage '[P']]]>0),Table_NCInfo[[#This Row],['# Lamps/ Fixture '[P']]]*Table_NCInfo[[#This Row],[Fixture/ Lamp Wattage '[P']]],Table_NCInfo[[#This Row],[Fixture/ Lamp Wattage '[P']]]),\"\")),\n\"\")","v":""},{"$f":"IF(AND(Table_NCInfo[[#This Row],[Fixture Qty '[P']]]<>\"\",Table_NCInfo[[#This Row],[Fixture Qty '[P']]]>0,Table_NCInfo[[#This Row],[Fixture Wattage '[P']]]<>\"\",Table_NCInfo[[#This Row],[Fixture Wattage '[P']]]>0),IFERROR(Table_NCInfo[[#This Row],[Fixture Qty '[P']]]*Table_NCInfo[[#This Row],[Fixture Wattage '[P']]],0),\"\")","v":""},null,null,{"$f":"IFERROR(IF(Table_NCInfo[[#This Row],[Interior/ Exterior]]<>\"\",\n  CONCATENATE(\n  Table_NCInfo[[#This Row],[Interior/ Exterior]],\": \",\n  Table_NCInfo[[#This Row],[Fixture Technology '[P']]],\n  \" - \",Table_NCInfo[[#This Row],[Fixture Type '[P']]],\" [\",\n  IF(AND(Table_NCInfo[[#This Row],['# Lamps/ Fixture '[P']]]<>\"\",Table_NCInfo[[#This Row],['# Lamps/ Fixture '[P']]]>0),Table_NCInfo[[#This Row],['# Lamps/ Fixture '[P']]] & \"L - \" & Table_NCInfo[[#This Row],[Fixture/ Lamp Wattage '[P']]] & \"W\" & IF(Table_NCInfo[[#This Row],[Ballast/ Driver '[P']]]<>\"\",\" - \" & Table_NCInfo[[#This Row],[Ballast/ Driver '[P']]],\"\"),Table_NCInfo[[#This Row],[Fixture Wattage '[P']]] & \"W\"),\"]\",\n  IF(AND(Table_NCInfo[[#This Row],[Controls '[P']]]<>\"\"),\" - \" & Table_NCInfo[[#This Row],[Controls '[P']]],\"\")\n  ),\n\"\"),\"\")","v":""}]
[{"$f":"IF($A14=\"Line\",1,MAX($A$4:$A14)+1)","v":11},{"$f":"COUNTA(Table_NCInfo[[#This Row],[Schedule]:[Notes]])>6","v":false},{"$f":"IF(Table_NCInfo[[#This Row],[IsActive]],Table_NCInfo[[#This Row],[Line]],\"\")","v":""},null,null,null,{"$f":"IFERROR(INDEX(Table_IntLookups[Zone'#],MATCH(Table_NCInfo[[#This Row],[Zone Description]],Table_IntLookups[Dropdown],0),0),\"\")","v":""},{"$f":"IF(Table_NCInfo[[#This Row],[Zone '#]]<>\"\",IFERROR(VLOOKUP(Table_NCInfo[[#This Row],[Zone '#]],Table_IntLookups[],'Facility Information'!$AB$4,FALSE) * (Table_NCInfo[[#This Row],[Fixture Qty '[P']]]*Table_NCInfo[[#This Row],[Fixture Wattage '[P']]])/SUMIFS(Table_NCInfo[Wattage '[P']],Table_NCInfo[Zone '#],Table_NCInfo[[#This Row],[Zone '#]]),0),\"\")","v":""},null,null,null,null,null,{"$f":"IF(Table_NCInfo[[#This Row],[Fixture Technology '[P']]]=\"LED Tube\",\"[Enter]\",\"\")","v":""},null,{"$f":"IFERROR(\nIFERROR(OFFSET(Table_TypWattage[[#Headers],[Technology]],MATCH(Table_NCInfo[[#This Row],[Fixture Technology '[P']]],Table_TypWattage[Technology],0)+MATCH(Table_NCInfo[[#This Row],[Fixture/ Lamp Wattage '[P']]],INDIRECT(SUBSTITUTE(SUBSTITUTE(Table_NCInfo[[#This Row],[Fixture Technology '[P']]],\" \",\"_\"),\"-\",\"_\")),0)-1,MATCH(Table_NCInfo[[#This Row],['# Lamps/ Fixture '[P']]],'Measure Tables'!$Q$2:$V$2,0)+1),IF(Table_NCInfo[[#This Row],[Schedule]]<>\"\",IF(AND(Table_NCInfo[[#This Row],['# Lamps/ Fixture '[P']]]>0,Table_NCInfo[[#This Row],[Fixture/ Lamp Wattage '[P']]]>0),Table_NCInfo[[#This Row],['# Lamps/ Fixture '[P']]]*Table_NCInfo[[#This Row],[Fixture/ Lamp Wattage '[P']]],Table_NCInfo[[#This Row],[Fixture/ Lamp Wattage '[P']]]),\"\")),\n\"\")","v":""},{"$f":"IF(AND(Table_NCInfo[[#This Row],[Fixture Qty '[P']]]<>\"\",Table_NCInfo[[#This Row],[Fixture Qty '[P']]]>0,Table_NCInfo[[#This Row],[Fixture Wattage '[P']]]<>\"\",Table_NCInfo[[#This Row],[Fixture Wattage '[P']]]>0),IFERROR(Table_NCInfo[[#This Row],[Fixture Qty '[P']]]*Table_NCInfo[[#This Row],[Fixture Wattage '[P']]],0),\"\")","v":""},null,null,{"$f":"IFERROR(IF(Table_NCInfo[[#This Row],[Interior/ Exterior]]<>\"\",\n  CONCATENATE(\n  Table_NCInfo[[#This Row],[Interior/ Exterior]],\": \",\n  Table_NCInfo[[#This Row],[Fixture Technology '[P']]],\n  \" - \",Table_NCInfo[[#This Row],[Fixture Type '[P']]],\" [\",\n  IF(AND(Table_NCInfo[[#This Row],['# Lamps/ Fixture '[P']]]<>\"\",Table_NCInfo[[#This Row],['# Lamps/ Fixture '[P']]]>0),Table_NCInfo[[#This Row],['# Lamps/ Fixture '[P']]] & \"L - \" & Table_NCInfo[[#This Row],[Fixture/ Lamp Wattage '[P']]] & \"W\" & IF(Table_NCInfo[[#This Row],[Ballast/ Driver '[P']]]<>\"\",\" - \" & Table_NCInfo[[#This Row],[Ballast/ Driver '[P']]],\"\"),Table_NCInfo[[#This Row],[Fixture Wattage '[P']]] & \"W\"),\"]\",\n  IF(AND(Table_NCInfo[[#This Row],[Controls '[P']]]<>\"\"),\" - \" & Table_NCInfo[[#This Row],[Controls '[P']]],\"\")\n  ),\n\"\"),\"\")","v":""}]
[{"$f":"IF($A15=\"Line\",1,MAX($A$4:$A15)+1)","v":12},{"$f":"COUNTA(Table_NCInfo[[#This Row],[Schedule]:[Notes]])>6","v":false},{"$f":"IF(Table_NCInfo[[#This Row],[IsActive]],Table_NCInfo[[#This Row],[Line]],\"\")","v":""},null,null,null,{"$f":"IFERROR(INDEX(Table_IntLookups[Zone'#],MATCH(Table_NCInfo[[#This Row],[Zone Description]],Table_IntLookups[Dropdown],0),0),\"\")","v":""},{"$f":"IF(Table_NCInfo[[#This Row],[Zone '#]]<>\"\",IFERROR(VLOOKUP(Table_NCInfo[[#This Row],[Zone '#]],Table_IntLookups[],'Facility Information'!$AB$4,FALSE) * (Table_NCInfo[[#This Row],[Fixture Qty '[P']]]*Table_NCInfo[[#This Row],[Fixture Wattage '[P']]])/SUMIFS(Table_NCInfo[Wattage '[P']],Table_NCInfo[Zone '#],Table_NCInfo[[#This Row],[Zone '#]]),0),\"\")","v":""},null,null,null,null,null,{"$f":"IF(Table_NCInfo[[#This Row],[Fixture Technology '[P']]]=\"LED Tube\",\"[Enter]\",\"\")","v":""},null,{"$f":"IFERROR(\nIFERROR(OFFSET(Table_TypWattage[[#Headers],[Technology]],MATCH(Table_NCInfo[[#This Row],[Fixture Technology '[P']]],Table_TypWattage[Technology],0)+MATCH(Table_NCInfo[[#This Row],[Fixture/ Lamp Wattage '[P']]],INDIRECT(SUBSTITUTE(SUBSTITUTE(Table_NCInfo[[#This Row],[Fixture Technology '[P']]],\" \",\"_\"),\"-\",\"_\")),0)-1,MATCH(Table_NCInfo[[#This Row],['# Lamps/ Fixture '[P']]],'Measure Tables'!$Q$2:$V$2,0)+1),IF(Table_NCInfo[[#This Row],[Schedule]]<>\"\",IF(AND(Table_NCInfo[[#This Row],['# Lamps/ Fixture '[P']]]>0,Table_NCInfo[[#This Row],[Fixture/ Lamp Wattage '[P']]]>0),Table_NCInfo[[#This Row],['# Lamps/ Fixture '[P']]]*Table_NCInfo[[#This Row],[Fixture/ Lamp Wattage '[P']]],Table_NCInfo[[#This Row],[Fixture/ Lamp Wattage '[P']]]),\"\")),\n\"\")","v":""},{"$f":"IF(AND(Table_NCInfo[[#This Row],[Fixture Qty '[P']]]<>\"\",Table_NCInfo[[#This Row],[Fixture Qty '[P']]]>0,Table_NCInfo[[#This Row],[Fixture Wattage '[P']]]<>\"\",Table_NCInfo[[#This Row],[Fixture Wattage '[P']]]>0),IFERROR(Table_NCInfo[[#This Row],[Fixture Qty '[P']]]*Table_NCInfo[[#This Row],[Fixture Wattage '[P']]],0),\"\")","v":""},null,null,{"$f":"IFERROR(IF(Table_NCInfo[[#This Row],[Interior/ Exterior]]<>\"\",\n  CONCATENATE(\n  Table_NCInfo[[#This Row],[Interior/ Exterior]],\": \",\n  Table_NCInfo[[#This Row],[Fixture Technology '[P']]],\n  \" - \",Table_NCInfo[[#This Row],[Fixture Type '[P']]],\" [\",\n  IF(AND(Table_NCInfo[[#This Row],['# Lamps/ Fixture '[P']]]<>\"\",Table_NCInfo[[#This Row],['# Lamps/ Fixture '[P']]]>0),Table_NCInfo[[#This Row],['# Lamps/ Fixture '[P']]] & \"L - \" & Table_NCInfo[[#This Row],[Fixture/ Lamp Wattage '[P']]] & \"W\" & IF(Table_NCInfo[[#This Row],[Ballast/ Driver '[P']]]<>\"\",\" - \" & Table_NCInfo[[#This Row],[Ballast/ Driver '[P']]],\"\"),Table_NCInfo[[#This Row],[Fixture Wattage '[P']]] & \"W\"),\"]\",\n  IF(AND(Table_NCInfo[[#This Row],[Controls '[P']]]<>\"\"),\" - \" & Table_NCInfo[[#This Row],[Controls '[P']]],\"\")\n  ),\n\"\"),\"\")","v":""}]
[{"$f":"IF($A16=\"Line\",1,MAX($A$4:$A16)+1)","v":13},{"$f":"COUNTA(Table_NCInfo[[#This Row],[Schedule]:[Notes]])>6","v":false},{"$f":"IF(Table_NCInfo[[#This Row],[IsActive]],Table_NCInfo[[#This Row],[Line]],\"\")","v":""},null,null,null,{"$f":"IFERROR(INDEX(Table_IntLookups[Zone'#],MATCH(Table_NCInfo[[#This Row],[Zone Description]],Table_IntLookups[Dropdown],0),0),\"\")","v":""},{"$f":"IF(Table_NCInfo[[#This Row],[Zone '#]]<>\"\",IFERROR(VLOOKUP(Table_NCInfo[[#This Row],[Zone '#]],Table_IntLookups[],'Facility Information'!$AB$4,FALSE) * (Table_NCInfo[[#This Row],[Fixture Qty '[P']]]*Table_NCInfo[[#This Row],[Fixture Wattage '[P']]])/SUMIFS(Table_NCInfo[Wattage '[P']],Table_NCInfo[Zone '#],Table_NCInfo[[#This Row],[Zone '#]]),0),\"\")","v":""},null,null,null,null,null,{"$f":"IF(Table_NCInfo[[#This Row],[Fixture Technology '[P']]]=\"LED Tube\",\"[Enter]\",\"\")","v":""},null,{"$f":"IFERROR(\nIFERROR(OFFSET(Table_TypWattage[[#Headers],[Technology]],MATCH(Table_NCInfo[[#This Row],[Fixture Technology '[P']]],Table_TypWattage[Technology],0)+MATCH(Table_NCInfo[[#This Row],[Fixture/ Lamp Wattage '[P']]],INDIRECT(SUBSTITUTE(SUBSTITUTE(Table_NCInfo[[#This Row],[Fixture Technology '[P']]],\" \",\"_\"),\"-\",\"_\")),0)-1,MATCH(Table_NCInfo[[#This Row],['# Lamps/ Fixture '[P']]],'Measure Tables'!$Q$2:$V$2,0)+1),IF(Table_NCInfo[[#This Row],[Schedule]]<>\"\",IF(AND(Table_NCInfo[[#This Row],['# Lamps/ Fixture '[P']]]>0,Table_NCInfo[[#This Row],[Fixture/ Lamp Wattage '[P']]]>0),Table_NCInfo[[#This Row],['# Lamps/ Fixture '[P']]]*Table_NCInfo[[#This Row],[Fixture/ Lamp Wattage '[P']]],Table_NCInfo[[#This Row],[Fixture/ Lamp Wattage '[P']]]),\"\")),\n\"\")","v":""},{"$f":"IF(AND(Table_NCInfo[[#This Row],[Fixture Qty '[P']]]<>\"\",Table_NCInfo[[#This Row],[Fixture Qty '[P']]]>0,Table_NCInfo[[#This Row],[Fixture Wattage '[P']]]<>\"\",Table_NCInfo[[#This Row],[Fixture Wattage '[P']]]>0),IFERROR(Table_NCInfo[[#This Row],[Fixture Qty '[P']]]*Table_NCInfo[[#This Row],[Fixture Wattage '[P']]],0),\"\")","v":""},null,null,{"$f":"IFERROR(IF(Table_NCInfo[[#This Row],[Interior/ Exterior]]<>\"\",\n  CONCATENATE(\n  Table_NCInfo[[#This Row],[Interior/ Exterior]],\": \",\n  Table_NCInfo[[#This Row],[Fixture Technology '[P']]],\n  \" - \",Table_NCInfo[[#This Row],[Fixture Type '[P']]],\" [\",\n  IF(AND(Table_NCInfo[[#This Row],['# Lamps/ Fixture '[P']]]<>\"\",Table_NCInfo[[#This Row],['# Lamps/ Fixture '[P']]]>0),Table_NCInfo[[#This Row],['# Lamps/ Fixture '[P']]] & \"L - \" & Table_NCInfo[[#This Row],[Fixture/ Lamp Wattage '[P']]] & \"W\" & IF(Table_NCInfo[[#This Row],[Ballast/ Driver '[P']]]<>\"\",\" - \" & Table_NCInfo[[#This Row],[Ballast/ Driver '[P']]],\"\"),Table_NCInfo[[#This Row],[Fixture Wattage '[P']]] & \"W\"),\"]\",\n  IF(AND(Table_NCInfo[[#This Row],[Controls '[P']]]<>\"\"),\" - \" & Table_NCInfo[[#This Row],[Controls '[P']]],\"\")\n  ),\n\"\"),\"\")","v":""}]
[{"$f":"IF($A17=\"Line\",1,MAX($A$4:$A17)+1)","v":14},{"$f":"COUNTA(Table_NCInfo[[#This Row],[Schedule]:[Notes]])>6","v":false},{"$f":"IF(Table_NCInfo[[#This Row],[IsActive]],Table_NCInfo[[#This Row],[Line]],\"\")","v":""},null,null,null,{"$f":"IFERROR(INDEX(Table_IntLookups[Zone'#],MATCH(Table_NCInfo[[#This Row],[Zone Description]],Table_IntLookups[Dropdown],0),0),\"\")","v":""},{"$f":"IF(Table_NCInfo[[#This Row],[Zone '#]]<>\"\",IFERROR(VLOOKUP(Table_NCInfo[[#This Row],[Zone '#]],Table_IntLookups[],'Facility Information'!$AB$4,FALSE) * (Table_NCInfo[[#This Row],[Fixture Qty '[P']]]*Table_NCInfo[[#This Row],[Fixture Wattage '[P']]])/SUMIFS(Table_NCInfo[Wattage '[P']],Table_NCInfo[Zone '#],Table_NCInfo[[#This Row],[Zone '#]]),0),\"\")","v":""},null,null,null,null,null,{"$f":"IF(Table_NCInfo[[#This Row],[Fixture Technology '[P']]]=\"LED Tube\",\"[Enter]\",\"\")","v":""},null,{"$f":"IFERROR(\nIFERROR(OFFSET(Table_TypWattage[[#Headers],[Technology]],MATCH(Table_NCInfo[[#This Row],[Fixture Technology '[P']]],Table_TypWattage[Technology],0)+MATCH(Table_NCInfo[[#This Row],[Fixture/ Lamp Wattage '[P']]],INDIRECT(SUBSTITUTE(SUBSTITUTE(Table_NCInfo[[#This Row],[Fixture Technology '[P']]],\" \",\"_\"),\"-\",\"_\")),0)-1,MATCH(Table_NCInfo[[#This Row],['# Lamps/ Fixture '[P']]],'Measure Tables'!$Q$2:$V$2,0)+1),IF(Table_NCInfo[[#This Row],[Schedule]]<>\"\",IF(AND(Table_NCInfo[[#This Row],['# Lamps/ Fixture '[P']]]>0,Table_NCInfo[[#This Row],[Fixture/ Lamp Wattage '[P']]]>0),Table_NCInfo[[#This Row],['# Lamps/ Fixture '[P']]]*Table_NCInfo[[#This Row],[Fixture/ Lamp Wattage '[P']]],Table_NCInfo[[#This Row],[Fixture/ Lamp Wattage '[P']]]),\"\")),\n\"\")","v":""},{"$f":"IF(AND(Table_NCInfo[[#This Row],[Fixture Qty '[P']]]<>\"\",Table_NCInfo[[#This Row],[Fixture Qty '[P']]]>0,Table_NCInfo[[#This Row],[Fixture Wattage '[P']]]<>\"\",Table_NCInfo[[#This Row],[Fixture Wattage '[P']]]>0),IFERROR(Table_NCInfo[[#This Row],[Fixture Qty '[P']]]*Table_NCInfo[[#This Row],[Fixture Wattage '[P']]],0),\"\")","v":""},null,null,{"$f":"IFERROR(IF(Table_NCInfo[[#This Row],[Interior/ Exterior]]<>\"\",\n  CONCATENATE(\n  Table_NCInfo[[#This Row],[Interior/ Exterior]],\": \",\n  Table_NCInfo[[#This Row],[Fixture Technology '[P']]],\n  \" - \",Table_NCInfo[[#This Row],[Fixture Type '[P']]],\" [\",\n  IF(AND(Table_NCInfo[[#This Row],['# Lamps/ Fixture '[P']]]<>\"\",Table_NCInfo[[#This Row],['# Lamps/ Fixture '[P']]]>0),Table_NCInfo[[#This Row],['# Lamps/ Fixture '[P']]] & \"L - \" & Table_NCInfo[[#This Row],[Fixture/ Lamp Wattage '[P']]] & \"W\" & IF(Table_NCInfo[[#This Row],[Ballast/ Driver '[P']]]<>\"\",\" - \" & Table_NCInfo[[#This Row],[Ballast/ Driver '[P']]],\"\"),Table_NCInfo[[#This Row],[Fixture Wattage '[P']]] & \"W\"),\"]\",\n  IF(AND(Table_NCInfo[[#This Row],[Controls '[P']]]<>\"\"),\" - \" & Table_NCInfo[[#This Row],[Controls '[P']]],\"\")\n  ),\n\"\"),\"\")","v":""}]
[{"$f":"IF($A18=\"Line\",1,MAX($A$4:$A18)+1)","v":15},{"$f":"COUNTA(Table_NCInfo[[#This Row],[Schedule]:[Notes]])>6","v":false},{"$f":"IF(Table_NCInfo[[#This Row],[IsActive]],Table_NCInfo[[#This Row],[Line]],\"\")","v":""},null,null,null,{"$f":"IFERROR(INDEX(Table_IntLookups[Zone'#],MATCH(Table_NCInfo[[#This Row],[Zone Description]],Table_IntLookups[Dropdown],0),0),\"\")","v":""},{"$f":"IF(Table_NCInfo[[#This Row],[Zone '#]]<>\"\",IFERROR(VLOOKUP(Table_NCInfo[[#This Row],[Zone '#]],Table_IntLookups[],'Facility Information'!$AB$4,FALSE) * (Table_NCInfo[[#This Row],[Fixture Qty '[P']]]*Table_NCInfo[[#This Row],[Fixture Wattage '[P']]])/SUMIFS(Table_NCInfo[Wattage '[P']],Table_NCInfo[Zone '#],Table_NCInfo[[#This Row],[Zone '#]]),0),\"\")","v":""},null,null,null,null,null,{"$f":"IF(Table_NCInfo[[#This Row],[Fixture Technology '[P']]]=\"LED Tube\",\"[Enter]\",\"\")","v":""},null,{"$f":"IFERROR(\nIFERROR(OFFSET(Table_TypWattage[[#Headers],[Technology]],MATCH(Table_NCInfo[[#This Row],[Fixture Technology '[P']]],Table_TypWattage[Technology],0)+MATCH(Table_NCInfo[[#This Row],[Fixture/ Lamp Wattage '[P']]],INDIRECT(SUBSTITUTE(SUBSTITUTE(Table_NCInfo[[#This Row],[Fixture Technology '[P']]],\" \",\"_\"),\"-\",\"_\")),0)-1,MATCH(Table_NCInfo[[#This Row],['# Lamps/ Fixture '[P']]],'Measure Tables'!$Q$2:$V$2,0)+1),IF(Table_NCInfo[[#This Row],[Schedule]]<>\"\",IF(AND(Table_NCInfo[[#This Row],['# Lamps/ Fixture '[P']]]>0,Table_NCInfo[[#This Row],[Fixture/ Lamp Wattage '[P']]]>0),Table_NCInfo[[#This Row],['# Lamps/ Fixture '[P']]]*Table_NCInfo[[#This Row],[Fixture/ Lamp Wattage '[P']]],Table_NCInfo[[#This Row],[Fixture/ Lamp Wattage '[P']]]),\"\")),\n\"\")","v":""},{"$f":"IF(AND(Table_NCInfo[[#This Row],[Fixture Qty '[P']]]<>\"\",Table_NCInfo[[#This Row],[Fixture Qty '[P']]]>0,Table_NCInfo[[#This Row],[Fixture Wattage '[P']]]<>\"\",Table_NCInfo[[#This Row],[Fixture Wattage '[P']]]>0),IFERROR(Table_NCInfo[[#This Row],[Fixture Qty '[P']]]*Table_NCInfo[[#This Row],[Fixture Wattage '[P']]],0),\"\")","v":""},null,null,{"$f":"IFERROR(IF(Table_NCInfo[[#This Row],[Interior/ Exterior]]<>\"\",\n  CONCATENATE(\n  Table_NCInfo[[#This Row],[Interior/ Exterior]],\": \",\n  Table_NCInfo[[#This Row],[Fixture Technology '[P']]],\n  \" - \",Table_NCInfo[[#This Row],[Fixture Type '[P']]],\" [\",\n  IF(AND(Table_NCInfo[[#This Row],['# Lamps/ Fixture '[P']]]<>\"\",Table_NCInfo[[#This Row],['# Lamps/ Fixture '[P']]]>0),Table_NCInfo[[#This Row],['# Lamps/ Fixture '[P']]] & \"L - \" & Table_NCInfo[[#This Row],[Fixture/ Lamp Wattage '[P']]] & \"W\" & IF(Table_NCInfo[[#This Row],[Ballast/ Driver '[P']]]<>\"\",\" - \" & Table_NCInfo[[#This Row],[Ballast/ Driver '[P']]],\"\"),Table_NCInfo[[#This Row],[Fixture Wattage '[P']]] & \"W\"),\"]\",\n  IF(AND(Table_NCInfo[[#This Row],[Controls '[P']]]<>\"\"),\" - \" & Table_NCInfo[[#This Row],[Controls '[P']]],\"\")\n  ),\n\"\"),\"\")","v":""}]
[{"$f":"IF($A19=\"Line\",1,MAX($A$4:$A19)+1)","v":16},{"$f":"COUNTA(Table_NCInfo[[#This Row],[Schedule]:[Notes]])>6","v":false},{"$f":"IF(Table_NCInfo[[#This Row],[IsActive]],Table_NCInfo[[#This Row],[Line]],\"\")","v":""},null,null,null,{"$f":"IFERROR(INDEX(Table_IntLookups[Zone'#],MATCH(Table_NCInfo[[#This Row],[Zone Description]],Table_IntLookups[Dropdown],0),0),\"\")","v":""},{"$f":"IF(Table_NCInfo[[#This Row],[Zone '#]]<>\"\",IFERROR(VLOOKUP(Table_NCInfo[[#This Row],[Zone '#]],Table_IntLookups[],'Facility Information'!$AB$4,FALSE) * (Table_NCInfo[[#This Row],[Fixture Qty '[P']]]*Table_NCInfo[[#This Row],[Fixture Wattage '[P']]])/SUMIFS(Table_NCInfo[Wattage '[P']],Table_NCInfo[Zone '#],Table_NCInfo[[#This Row],[Zone '#]]),0),\"\")","v":""},null,null,null,null,null,{"$f":"IF(Table_NCInfo[[#This Row],[Fixture Technology '[P']]]=\"LED Tube\",\"[Enter]\",\"\")","v":""},null,{"$f":"IFERROR(\nIFERROR(OFFSET(Table_TypWattage[[#Headers],[Technology]],MATCH(Table_NCInfo[[#This Row],[Fixture Technology '[P']]],Table_TypWattage[Technology],0)+MATCH(Table_NCInfo[[#This Row],[Fixture/ Lamp Wattage '[P']]],INDIRECT(SUBSTITUTE(SUBSTITUTE(Table_NCInfo[[#This Row],[Fixture Technology '[P']]],\" \",\"_\"),\"-\",\"_\")),0)-1,MATCH(Table_NCInfo[[#This Row],['# Lamps/ Fixture '[P']]],'Measure Tables'!$Q$2:$V$2,0)+1),IF(Table_NCInfo[[#This Row],[Schedule]]<>\"\",IF(AND(Table_NCInfo[[#This Row],['# Lamps/ Fixture '[P']]]>0,Table_NCInfo[[#This Row],[Fixture/ Lamp Wattage '[P']]]>0),Table_NCInfo[[#This Row],['# Lamps/ Fixture '[P']]]*Table_NCInfo[[#This Row],[Fixture/ Lamp Wattage '[P']]],Table_NCInfo[[#This Row],[Fixture/ Lamp Wattage '[P']]]),\"\")),\n\"\")","v":""},{"$f":"IF(AND(Table_NCInfo[[#This Row],[Fixture Qty '[P']]]<>\"\",Table_NCInfo[[#This Row],[Fixture Qty '[P']]]>0,Table_NCInfo[[#This Row],[Fixture Wattage '[P']]]<>\"\",Table_NCInfo[[#This Row],[Fixture Wattage '[P']]]>0),IFERROR(Table_NCInfo[[#This Row],[Fixture Qty '[P']]]*Table_NCInfo[[#This Row],[Fixture Wattage '[P']]],0),\"\")","v":""},null,null,{"$f":"IFERROR(IF(Table_NCInfo[[#This Row],[Interior/ Exterior]]<>\"\",\n  CONCATENATE(\n  Table_NCInfo[[#This Row],[Interior/ Exterior]],\": \",\n  Table_NCInfo[[#This Row],[Fixture Technology '[P']]],\n  \" - \",Table_NCInfo[[#This Row],[Fixture Type '[P']]],\" [\",\n  IF(AND(Table_NCInfo[[#This Row],['# Lamps/ Fixture '[P']]]<>\"\",Table_NCInfo[[#This Row],['# Lamps/ Fixture '[P']]]>0),Table_NCInfo[[#This Row],['# Lamps/ Fixture '[P']]] & \"L - \" & Table_NCInfo[[#This Row],[Fixture/ Lamp Wattage '[P']]] & \"W\" & IF(Table_NCInfo[[#This Row],[Ballast/ Driver '[P']]]<>\"\",\" - \" & Table_NCInfo[[#This Row],[Ballast/ Driver '[P']]],\"\"),Table_NCInfo[[#This Row],[Fixture Wattage '[P']]] & \"W\"),\"]\",\n  IF(AND(Table_NCInfo[[#This Row],[Controls '[P']]]<>\"\"),\" - \" & Table_NCInfo[[#This Row],[Controls '[P']]],\"\")\n  ),\n\"\"),\"\")","v":""}]
[{"$f":"IF($A20=\"Line\",1,MAX($A$4:$A20)+1)","v":17},{"$f":"COUNTA(Table_NCInfo[[#This Row],[Schedule]:[Notes]])>6","v":false},{"$f":"IF(Table_NCInfo[[#This Row],[IsActive]],Table_NCInfo[[#This Row],[Line]],\"\")","v":""},null,null,null,{"$f":"IFERROR(INDEX(Table_IntLookups[Zone'#],MATCH(Table_NCInfo[[#This Row],[Zone Description]],Table_IntLookups[Dropdown],0),0),\"\")","v":""},{"$f":"IF(Table_NCInfo[[#This Row],[Zone '#]]<>\"\",IFERROR(VLOOKUP(Table_NCInfo[[#This Row],[Zone '#]],Table_IntLookups[],'Facility Information'!$AB$4,FALSE) * (Table_NCInfo[[#This Row],[Fixture Qty '[P']]]*Table_NCInfo[[#This Row],[Fixture Wattage '[P']]])/SUMIFS(Table_NCInfo[Wattage '[P']],Table_NCInfo[Zone '#],Table_NCInfo[[#This Row],[Zone '#]]),0),\"\")","v":""},null,null,null,null,null,{"$f":"IF(Table_NCInfo[[#This Row],[Fixture Technology '[P']]]=\"LED Tube\",\"[Enter]\",\"\")","v":""},null,{"$f":"IFERROR(\nIFERROR(OFFSET(Table_TypWattage[[#Headers],[Technology]],MATCH(Table_NCInfo[[#This Row],[Fixture Technology '[P']]],Table_TypWattage[Technology],0)+MATCH(Table_NCInfo[[#This Row],[Fixture/ Lamp Wattage '[P']]],INDIRECT(SUBSTITUTE(SUBSTITUTE(Table_NCInfo[[#This Row],[Fixture Technology '[P']]],\" \",\"_\"),\"-\",\"_\")),0)-1,MATCH(Table_NCInfo[[#This Row],['# Lamps/ Fixture '[P']]],'Measure Tables'!$Q$2:$V$2,0)+1),IF(Table_NCInfo[[#This Row],[Schedule]]<>\"\",IF(AND(Table_NCInfo[[#This Row],['# Lamps/ Fixture '[P']]]>0,Table_NCInfo[[#This Row],[Fixture/ Lamp Wattage '[P']]]>0),Table_NCInfo[[#This Row],['# Lamps/ Fixture '[P']]]*Table_NCInfo[[#This Row],[Fixture/ Lamp Wattage '[P']]],Table_NCInfo[[#This Row],[Fixture/ Lamp Wattage '[P']]]),\"\")),\n\"\")","v":""},{"$f":"IF(AND(Table_NCInfo[[#This Row],[Fixture Qty '[P']]]<>\"\",Table_NCInfo[[#This Row],[Fixture Qty '[P']]]>0,Table_NCInfo[[#This Row],[Fixture Wattage '[P']]]<>\"\",Table_NCInfo[[#This Row],[Fixture Wattage '[P']]]>0),IFERROR(Table_NCInfo[[#This Row],[Fixture Qty '[P']]]*Table_NCInfo[[#This Row],[Fixture Wattage '[P']]],0),\"\")","v":""},null,null,{"$f":"IFERROR(IF(Table_NCInfo[[#This Row],[Interior/ Exterior]]<>\"\",\n  CONCATENATE(\n  Table_NCInfo[[#This Row],[Interior/ Exterior]],\": \",\n  Table_NCInfo[[#This Row],[Fixture Technology '[P']]],\n  \" - \",Table_NCInfo[[#This Row],[Fixture Type '[P']]],\" [\",\n  IF(AND(Table_NCInfo[[#This Row],['# Lamps/ Fixture '[P']]]<>\"\",Table_NCInfo[[#This Row],['# Lamps/ Fixture '[P']]]>0),Table_NCInfo[[#This Row],['# Lamps/ Fixture '[P']]] & \"L - \" & Table_NCInfo[[#This Row],[Fixture/ Lamp Wattage '[P']]] & \"W\" & IF(Table_NCInfo[[#This Row],[Ballast/ Driver '[P']]]<>\"\",\" - \" & Table_NCInfo[[#This Row],[Ballast/ Driver '[P']]],\"\"),Table_NCInfo[[#This Row],[Fixture Wattage '[P']]] & \"W\"),\"]\",\n  IF(AND(Table_NCInfo[[#This Row],[Controls '[P']]]<>\"\"),\" - \" & Table_NCInfo[[#This Row],[Controls '[P']]],\"\")\n  ),\n\"\"),\"\")","v":""}]
[{"$f":"IF($A21=\"Line\",1,MAX($A$4:$A21)+1)","v":18},{"$f":"COUNTA(Table_NCInfo[[#This Row],[Schedule]:[Notes]])>6","v":false},{"$f":"IF(Table_NCInfo[[#This Row],[IsActive]],Table_NCInfo[[#This Row],[Line]],\"\")","v":""},null,null,null,{"$f":"IFERROR(INDEX(Table_IntLookups[Zone'#],MATCH(Table_NCInfo[[#This Row],[Zone Description]],Table_IntLookups[Dropdown],0),0),\"\")","v":""},{"$f":"IF(Table_NCInfo[[#This Row],[Zone '#]]<>\"\",IFERROR(VLOOKUP(Table_NCInfo[[#This Row],[Zone '#]],Table_IntLookups[],'Facility Information'!$AB$4,FALSE) * (Table_NCInfo[[#This Row],[Fixture Qty '[P']]]*Table_NCInfo[[#This Row],[Fixture Wattage '[P']]])/SUMIFS(Table_NCInfo[Wattage '[P']],Table_NCInfo[Zone '#],Table_NCInfo[[#This Row],[Zone '#]]),0),\"\")","v":""},null,null,null,null,null,{"$f":"IF(Table_NCInfo[[#This Row],[Fixture Technology '[P']]]=\"LED Tube\",\"[Enter]\",\"\")","v":""},null,{"$f":"IFERROR(\nIFERROR(OFFSET(Table_TypWattage[[#Headers],[Technology]],MATCH(Table_NCInfo[[#This Row],[Fixture Technology '[P']]],Table_TypWattage[Technology],0)+MATCH(Table_NCInfo[[#This Row],[Fixture/ Lamp Wattage '[P']]],INDIRECT(SUBSTITUTE(SUBSTITUTE(Table_NCInfo[[#This Row],[Fixture Technology '[P']]],\" \",\"_\"),\"-\",\"_\")),0)-1,MATCH(Table_NCInfo[[#This Row],['# Lamps/ Fixture '[P']]],'Measure Tables'!$Q$2:$V$2,0)+1),IF(Table_NCInfo[[#This Row],[Schedule]]<>\"\",IF(AND(Table_NCInfo[[#This Row],['# Lamps/ Fixture '[P']]]>0,Table_NCInfo[[#This Row],[Fixture/ Lamp Wattage '[P']]]>0),Table_NCInfo[[#This Row],['# Lamps/ Fixture '[P']]]*Table_NCInfo[[#This Row],[Fixture/ Lamp Wattage '[P']]],Table_NCInfo[[#This Row],[Fixture/ Lamp Wattage '[P']]]),\"\")),\n\"\")","v":""},{"$f":"IF(AND(Table_NCInfo[[#This Row],[Fixture Qty '[P']]]<>\"\",Table_NCInfo[[#This Row],[Fixture Qty '[P']]]>0,Table_NCInfo[[#This Row],[Fixture Wattage '[P']]]<>\"\",Table_NCInfo[[#This Row],[Fixture Wattage '[P']]]>0),IFERROR(Table_NCInfo[[#This Row],[Fixture Qty '[P']]]*Table_NCInfo[[#This Row],[Fixture Wattage '[P']]],0),\"\")","v":""},null,null,{"$f":"IFERROR(IF(Table_NCInfo[[#This Row],[Interior/ Exterior]]<>\"\",\n  CONCATENATE(\n  Table_NCInfo[[#This Row],[Interior/ Exterior]],\": \",\n  Table_NCInfo[[#This Row],[Fixture Technology '[P']]],\n  \" - \",Table_NCInfo[[#This Row],[Fixture Type '[P']]],\" [\",\n  IF(AND(Table_NCInfo[[#This Row],['# Lamps/ Fixture '[P']]]<>\"\",Table_NCInfo[[#This Row],['# Lamps/ Fixture '[P']]]>0),Table_NCInfo[[#This Row],['# Lamps/ Fixture '[P']]] & \"L - \" & Table_NCInfo[[#This Row],[Fixture/ Lamp Wattage '[P']]] & \"W\" & IF(Table_NCInfo[[#This Row],[Ballast/ Driver '[P']]]<>\"\",\" - \" & Table_NCInfo[[#This Row],[Ballast/ Driver '[P']]],\"\"),Table_NCInfo[[#This Row],[Fixture Wattage '[P']]] & \"W\"),\"]\",\n  IF(AND(Table_NCInfo[[#This Row],[Controls '[P']]]<>\"\"),\" - \" & Table_NCInfo[[#This Row],[Controls '[P']]],\"\")\n  ),\n\"\"),\"\")","v":""}]
[{"$f":"IF($A22=\"Line\",1,MAX($A$4:$A22)+1)","v":19},{"$f":"COUNTA(Table_NCInfo[[#This Row],[Schedule]:[Notes]])>6","v":false},{"$f":"IF(Table_NCInfo[[#This Row],[IsActive]],Table_NCInfo[[#This Row],[Line]],\"\")","v":""},null,null,null,{"$f":"IFERROR(INDEX(Table_IntLookups[Zone'#],MATCH(Table_NCInfo[[#This Row],[Zone Description]],Table_IntLookups[Dropdown],0),0),\"\")","v":""},{"$f":"IF(Table_NCInfo[[#This Row],[Zone '#]]<>\"\",IFERROR(VLOOKUP(Table_NCInfo[[#This Row],[Zone '#]],Table_IntLookups[],'Facility Information'!$AB$4,FALSE) * (Table_NCInfo[[#This Row],[Fixture Qty '[P']]]*Table_NCInfo[[#This Row],[Fixture Wattage '[P']]])/SUMIFS(Table_NCInfo[Wattage '[P']],Table_NCInfo[Zone '#],Table_NCInfo[[#This Row],[Zone '#]]),0),\"\")","v":""},null,null,null,null,null,{"$f":"IF(Table_NCInfo[[#This Row],[Fixture Technology '[P']]]=\"LED Tube\",\"[Enter]\",\"\")","v":""},null,{"$f":"IFERROR(\nIFERROR(OFFSET(Table_TypWattage[[#Headers],[Technology]],MATCH(Table_NCInfo[[#This Row],[Fixture Technology '[P']]],Table_TypWattage[Technology],0)+MATCH(Table_NCInfo[[#This Row],[Fixture/ Lamp Wattage '[P']]],INDIRECT(SUBSTITUTE(SUBSTITUTE(Table_NCInfo[[#This Row],[Fixture Technology '[P']]],\" \",\"_\"),\"-\",\"_\")),0)-1,MATCH(Table_NCInfo[[#This Row],['# Lamps/ Fixture '[P']]],'Measure Tables'!$Q$2:$V$2,0)+1),IF(Table_NCInfo[[#This Row],[Schedule]]<>\"\",IF(AND(Table_NCInfo[[#This Row],['# Lamps/ Fixture '[P']]]>0,Table_NCInfo[[#This Row],[Fixture/ Lamp Wattage '[P']]]>0),Table_NCInfo[[#This Row],['# Lamps/ Fixture '[P']]]*Table_NCInfo[[#This Row],[Fixture/ Lamp Wattage '[P']]],Table_NCInfo[[#This Row],[Fixture/ Lamp Wattage '[P']]]),\"\")),\n\"\")","v":""},{"$f":"IF(AND(Table_NCInfo[[#This Row],[Fixture Qty '[P']]]<>\"\",Table_NCInfo[[#This Row],[Fixture Qty '[P']]]>0,Table_NCInfo[[#This Row],[Fixture Wattage '[P']]]<>\"\",Table_NCInfo[[#This Row],[Fixture Wattage '[P']]]>0),IFERROR(Table_NCInfo[[#This Row],[Fixture Qty '[P']]]*Table_NCInfo[[#This Row],[Fixture Wattage '[P']]],0),\"\")","v":""},null,null,{"$f":"IFERROR(IF(Table_NCInfo[[#This Row],[Interior/ Exterior]]<>\"\",\n  CONCATENATE(\n  Table_NCInfo[[#This Row],[Interior/ Exterior]],\": \",\n  Table_NCInfo[[#This Row],[Fixture Technology '[P']]],\n  \" - \",Table_NCInfo[[#This Row],[Fixture Type '[P']]],\" [\",\n  IF(AND(Table_NCInfo[[#This Row],['# Lamps/ Fixture '[P']]]<>\"\",Table_NCInfo[[#This Row],['# Lamps/ Fixture '[P']]]>0),Table_NCInfo[[#This Row],['# Lamps/ Fixture '[P']]] & \"L - \" & Table_NCInfo[[#This Row],[Fixture/ Lamp Wattage '[P']]] & \"W\" & IF(Table_NCInfo[[#This Row],[Ballast/ Driver '[P']]]<>\"\",\" - \" & Table_NCInfo[[#This Row],[Ballast/ Driver '[P']]],\"\"),Table_NCInfo[[#This Row],[Fixture Wattage '[P']]] & \"W\"),\"]\",\n  IF(AND(Table_NCInfo[[#This Row],[Controls '[P']]]<>\"\"),\" - \" & Table_NCInfo[[#This Row],[Controls '[P']]],\"\")\n  ),\n\"\"),\"\")","v":""}]
[{"$f":"IF($A23=\"Line\",1,MAX($A$4:$A23)+1)","v":20},{"$f":"COUNTA(Table_NCInfo[[#This Row],[Schedule]:[Notes]])>6","v":false},{"$f":"IF(Table_NCInfo[[#This Row],[IsActive]],Table_NCInfo[[#This Row],[Line]],\"\")","v":""},null,null,null,{"$f":"IFERROR(INDEX(Table_IntLookups[Zone'#],MATCH(Table_NCInfo[[#This Row],[Zone Description]],Table_IntLookups[Dropdown],0),0),\"\")","v":""},{"$f":"IF(Table_NCInfo[[#This Row],[Zone '#]]<>\"\",IFERROR(VLOOKUP(Table_NCInfo[[#This Row],[Zone '#]],Table_IntLookups[],'Facility Information'!$AB$4,FALSE) * (Table_NCInfo[[#This Row],[Fixture Qty '[P']]]*Table_NCInfo[[#This Row],[Fixture Wattage '[P']]])/SUMIFS(Table_NCInfo[Wattage '[P']],Table_NCInfo[Zone '#],Table_NCInfo[[#This Row],[Zone '#]]),0),\"\")","v":""},null,null,null,null,null,{"$f":"IF(Table_NCInfo[[#This Row],[Fixture Technology '[P']]]=\"LED Tube\",\"[Enter]\",\"\")","v":""},null,{"$f":"IFERROR(\nIFERROR(OFFSET(Table_TypWattage[[#Headers],[Technology]],MATCH(Table_NCInfo[[#This Row],[Fixture Technology '[P']]],Table_TypWattage[Technology],0)+MATCH(Table_NCInfo[[#This Row],[Fixture/ Lamp Wattage '[P']]],INDIRECT(SUBSTITUTE(SUBSTITUTE(Table_NCInfo[[#This Row],[Fixture Technology '[P']]],\" \",\"_\"),\"-\",\"_\")),0)-1,MATCH(Table_NCInfo[[#This Row],['# Lamps/ Fixture '[P']]],'Measure Tables'!$Q$2:$V$2,0)+1),IF(Table_NCInfo[[#This Row],[Schedule]]<>\"\",IF(AND(Table_NCInfo[[#This Row],['# Lamps/ Fixture '[P']]]>0,Table_NCInfo[[#This Row],[Fixture/ Lamp Wattage '[P']]]>0),Table_NCInfo[[#This Row],['# Lamps/ Fixture '[P']]]*Table_NCInfo[[#This Row],[Fixture/ Lamp Wattage '[P']]],Table_NCInfo[[#This Row],[Fixture/ Lamp Wattage '[P']]]),\"\")),\n\"\")","v":""},{"$f":"IF(AND(Table_NCInfo[[#This Row],[Fixture Qty '[P']]]<>\"\",Table_NCInfo[[#This Row],[Fixture Qty '[P']]]>0,Table_NCInfo[[#This Row],[Fixture Wattage '[P']]]<>\"\",Table_NCInfo[[#This Row],[Fixture Wattage '[P']]]>0),IFERROR(Table_NCInfo[[#This Row],[Fixture Qty '[P']]]*Table_NCInfo[[#This Row],[Fixture Wattage '[P']]],0),\"\")","v":""},null,null,{"$f":"IFERROR(IF(Table_NCInfo[[#This Row],[Interior/ Exterior]]<>\"\",\n  CONCATENATE(\n  Table_NCInfo[[#This Row],[Interior/ Exterior]],\": \",\n  Table_NCInfo[[#This Row],[Fixture Technology '[P']]],\n  \" - \",Table_NCInfo[[#This Row],[Fixture Type '[P']]],\" [\",\n  IF(AND(Table_NCInfo[[#This Row],['# Lamps/ Fixture '[P']]]<>\"\",Table_NCInfo[[#This Row],['# Lamps/ Fixture '[P']]]>0),Table_NCInfo[[#This Row],['# Lamps/ Fixture '[P']]] & \"L - \" & Table_NCInfo[[#This Row],[Fixture/ Lamp Wattage '[P']]] & \"W\" & IF(Table_NCInfo[[#This Row],[Ballast/ Driver '[P']]]<>\"\",\" - \" & Table_NCInfo[[#This Row],[Ballast/ Driver '[P']]],\"\"),Table_NCInfo[[#This Row],[Fixture Wattage '[P']]] & \"W\"),\"]\",\n  IF(AND(Table_NCInfo[[#This Row],[Controls '[P']]]<>\"\"),\" - \" & Table_NCInfo[[#This Row],[Controls '[P']]],\"\")\n  ),\n\"\"),\"\")","v":""}]
[{"$f":"IF($A24=\"Line\",1,MAX($A$4:$A24)+1)","v":21},{"$f":"COUNTA(Table_NCInfo[[#This Row],[Schedule]:[Notes]])>6","v":false},{"$f":"IF(Table_NCInfo[[#This Row],[IsActive]],Table_NCInfo[[#This Row],[Line]],\"\")","v":""},null,null,null,{"$f":"IFERROR(INDEX(Table_IntLookups[Zone'#],MATCH(Table_NCInfo[[#This Row],[Zone Description]],Table_IntLookups[Dropdown],0),0),\"\")","v":""},{"$f":"IF(Table_NCInfo[[#This Row],[Zone '#]]<>\"\",IFERROR(VLOOKUP(Table_NCInfo[[#This Row],[Zone '#]],Table_IntLookups[],'Facility Information'!$AB$4,FALSE) * (Table_NCInfo[[#This Row],[Fixture Qty '[P']]]*Table_NCInfo[[#This Row],[Fixture Wattage '[P']]])/SUMIFS(Table_NCInfo[Wattage '[P']],Table_NCInfo[Zone '#],Table_NCInfo[[#This Row],[Zone '#]]),0),\"\")","v":""},null,null,null,null,null,{"$f":"IF(Table_NCInfo[[#This Row],[Fixture Technology '[P']]]=\"LED Tube\",\"[Enter]\",\"\")","v":""},null,{"$f":"IFERROR(\nIFERROR(OFFSET(Table_TypWattage[[#Headers],[Technology]],MATCH(Table_NCInfo[[#This Row],[Fixture Technology '[P']]],Table_TypWattage[Technology],0)+MATCH(Table_NCInfo[[#This Row],[Fixture/ Lamp Wattage '[P']]],INDIRECT(SUBSTITUTE(SUBSTITUTE(Table_NCInfo[[#This Row],[Fixture Technology '[P']]],\" \",\"_\"),\"-\",\"_\")),0)-1,MATCH(Table_NCInfo[[#This Row],['# Lamps/ Fixture '[P']]],'Measure Tables'!$Q$2:$V$2,0)+1),IF(Table_NCInfo[[#This Row],[Schedule]]<>\"\",IF(AND(Table_NCInfo[[#This Row],['# Lamps/ Fixture '[P']]]>0,Table_NCInfo[[#This Row],[Fixture/ Lamp Wattage '[P']]]>0),Table_NCInfo[[#This Row],['# Lamps/ Fixture '[P']]]*Table_NCInfo[[#This Row],[Fixture/ Lamp Wattage '[P']]],Table_NCInfo[[#This Row],[Fixture/ Lamp Wattage '[P']]]),\"\")),\n\"\")","v":""},{"$f":"IF(AND(Table_NCInfo[[#This Row],[Fixture Qty '[P']]]<>\"\",Table_NCInfo[[#This Row],[Fixture Qty '[P']]]>0,Table_NCInfo[[#This Row],[Fixture Wattage '[P']]]<>\"\",Table_NCInfo[[#This Row],[Fixture Wattage '[P']]]>0),IFERROR(Table_NCInfo[[#This Row],[Fixture Qty '[P']]]*Table_NCInfo[[#This Row],[Fixture Wattage '[P']]],0),\"\")","v":""},null,null,{"$f":"IFERROR(IF(Table_NCInfo[[#This Row],[Interior/ Exterior]]<>\"\",\n  CONCATENATE(\n  Table_NCInfo[[#This Row],[Interior/ Exterior]],\": \",\n  Table_NCInfo[[#This Row],[Fixture Technology '[P']]],\n  \" - \",Table_NCInfo[[#This Row],[Fixture Type '[P']]],\" [\",\n  IF(AND(Table_NCInfo[[#This Row],['# Lamps/ Fixture '[P']]]<>\"\",Table_NCInfo[[#This Row],['# Lamps/ Fixture '[P']]]>0),Table_NCInfo[[#This Row],['# Lamps/ Fixture '[P']]] & \"L - \" & Table_NCInfo[[#This Row],[Fixture/ Lamp Wattage '[P']]] & \"W\" & IF(Table_NCInfo[[#This Row],[Ballast/ Driver '[P']]]<>\"\",\" - \" & Table_NCInfo[[#This Row],[Ballast/ Driver '[P']]],\"\"),Table_NCInfo[[#This Row],[Fixture Wattage '[P']]] & \"W\"),\"]\",\n  IF(AND(Table_NCInfo[[#This Row],[Controls '[P']]]<>\"\"),\" - \" & Table_NCInfo[[#This Row],[Controls '[P']]],\"\")\n  ),\n\"\"),\"\")","v":""}]
[{"$f":"IF($A25=\"Line\",1,MAX($A$4:$A25)+1)","v":22},{"$f":"COUNTA(Table_NCInfo[[#This Row],[Schedule]:[Notes]])>6","v":false},{"$f":"IF(Table_NCInfo[[#This Row],[IsActive]],Table_NCInfo[[#This Row],[Line]],\"\")","v":""},null,null,null,{"$f":"IFERROR(INDEX(Table_IntLookups[Zone'#],MATCH(Table_NCInfo[[#This Row],[Zone Description]],Table_IntLookups[Dropdown],0),0),\"\")","v":""},{"$f":"IF(Table_NCInfo[[#This Row],[Zone '#]]<>\"\",IFERROR(VLOOKUP(Table_NCInfo[[#This Row],[Zone '#]],Table_IntLookups[],'Facility Information'!$AB$4,FALSE) * (Table_NCInfo[[#This Row],[Fixture Qty '[P']]]*Table_NCInfo[[#This Row],[Fixture Wattage '[P']]])/SUMIFS(Table_NCInfo[Wattage '[P']],Table_NCInfo[Zone '#],Table_NCInfo[[#This Row],[Zone '#]]),0),\"\")","v":""},null,null,null,null,null,{"$f":"IF(Table_NCInfo[[#This Row],[Fixture Technology '[P']]]=\"LED Tube\",\"[Enter]\",\"\")","v":""},null,{"$f":"IFERROR(\nIFERROR(OFFSET(Table_TypWattage[[#Headers],[Technology]],MATCH(Table_NCInfo[[#This Row],[Fixture Technology '[P']]],Table_TypWattage[Technology],0)+MATCH(Table_NCInfo[[#This Row],[Fixture/ Lamp Wattage '[P']]],INDIRECT(SUBSTITUTE(SUBSTITUTE(Table_NCInfo[[#This Row],[Fixture Technology '[P']]],\" \",\"_\"),\"-\",\"_\")),0)-1,MATCH(Table_NCInfo[[#This Row],['# Lamps/ Fixture '[P']]],'Measure Tables'!$Q$2:$V$2,0)+1),IF(Table_NCInfo[[#This Row],[Schedule]]<>\"\",IF(AND(Table_NCInfo[[#This Row],['# Lamps/ Fixture '[P']]]>0,Table_NCInfo[[#This Row],[Fixture/ Lamp Wattage '[P']]]>0),Table_NCInfo[[#This Row],['# Lamps/ Fixture '[P']]]*Table_NCInfo[[#This Row],[Fixture/ Lamp Wattage '[P']]],Table_NCInfo[[#This Row],[Fixture/ Lamp Wattage '[P']]]),\"\")),\n\"\")","v":""},{"$f":"IF(AND(Table_NCInfo[[#This Row],[Fixture Qty '[P']]]<>\"\",Table_NCInfo[[#This Row],[Fixture Qty '[P']]]>0,Table_NCInfo[[#This Row],[Fixture Wattage '[P']]]<>\"\",Table_NCInfo[[#This Row],[Fixture Wattage '[P']]]>0),IFERROR(Table_NCInfo[[#This Row],[Fixture Qty '[P']]]*Table_NCInfo[[#This Row],[Fixture Wattage '[P']]],0),\"\")","v":""},null,null,{"$f":"IFERROR(IF(Table_NCInfo[[#This Row],[Interior/ Exterior]]<>\"\",\n  CONCATENATE(\n  Table_NCInfo[[#This Row],[Interior/ Exterior]],\": \",\n  Table_NCInfo[[#This Row],[Fixture Technology '[P']]],\n  \" - \",Table_NCInfo[[#This Row],[Fixture Type '[P']]],\" [\",\n  IF(AND(Table_NCInfo[[#This Row],['# Lamps/ Fixture '[P']]]<>\"\",Table_NCInfo[[#This Row],['# Lamps/ Fixture '[P']]]>0),Table_NCInfo[[#This Row],['# Lamps/ Fixture '[P']]] & \"L - \" & Table_NCInfo[[#This Row],[Fixture/ Lamp Wattage '[P']]] & \"W\" & IF(Table_NCInfo[[#This Row],[Ballast/ Driver '[P']]]<>\"\",\" - \" & Table_NCInfo[[#This Row],[Ballast/ Driver '[P']]],\"\"),Table_NCInfo[[#This Row],[Fixture Wattage '[P']]] & \"W\"),\"]\",\n  IF(AND(Table_NCInfo[[#This Row],[Controls '[P']]]<>\"\"),\" - \" & Table_NCInfo[[#This Row],[Controls '[P']]],\"\")\n  ),\n\"\"),\"\")","v":""}]
[{"$f":"IF($A26=\"Line\",1,MAX($A$4:$A26)+1)","v":23},{"$f":"COUNTA(Table_NCInfo[[#This Row],[Schedule]:[Notes]])>6","v":false},{"$f":"IF(Table_NCInfo[[#This Row],[IsActive]],Table_NCInfo[[#This Row],[Line]],\"\")","v":""},null,null,null,{"$f":"IFERROR(INDEX(Table_IntLookups[Zone'#],MATCH(Table_NCInfo[[#This Row],[Zone Description]],Table_IntLookups[Dropdown],0),0),\"\")","v":""},{"$f":"IF(Table_NCInfo[[#This Row],[Zone '#]]<>\"\",IFERROR(VLOOKUP(Table_NCInfo[[#This Row],[Zone '#]],Table_IntLookups[],'Facility Information'!$AB$4,FALSE) * (Table_NCInfo[[#This Row],[Fixture Qty '[P']]]*Table_NCInfo[[#This Row],[Fixture Wattage '[P']]])/SUMIFS(Table_NCInfo[Wattage '[P']],Table_NCInfo[Zone '#],Table_NCInfo[[#This Row],[Zone '#]]),0),\"\")","v":""},null,null,null,null,null,{"$f":"IF(Table_NCInfo[[#This Row],[Fixture Technology '[P']]]=\"LED Tube\",\"[Enter]\",\"\")","v":""},null,{"$f":"IFERROR(\nIFERROR(OFFSET(Table_TypWattage[[#Headers],[Technology]],MATCH(Table_NCInfo[[#This Row],[Fixture Technology '[P']]],Table_TypWattage[Technology],0)+MATCH(Table_NCInfo[[#This Row],[Fixture/ Lamp Wattage '[P']]],INDIRECT(SUBSTITUTE(SUBSTITUTE(Table_NCInfo[[#This Row],[Fixture Technology '[P']]],\" \",\"_\"),\"-\",\"_\")),0)-1,MATCH(Table_NCInfo[[#This Row],['# Lamps/ Fixture '[P']]],'Measure Tables'!$Q$2:$V$2,0)+1),IF(Table_NCInfo[[#This Row],[Schedule]]<>\"\",IF(AND(Table_NCInfo[[#This Row],['# Lamps/ Fixture '[P']]]>0,Table_NCInfo[[#This Row],[Fixture/ Lamp Wattage '[P']]]>0),Table_NCInfo[[#This Row],['# Lamps/ Fixture '[P']]]*Table_NCInfo[[#This Row],[Fixture/ Lamp Wattage '[P']]],Table_NCInfo[[#This Row],[Fixture/ Lamp Wattage '[P']]]),\"\")),\n\"\")","v":""},{"$f":"IF(AND(Table_NCInfo[[#This Row],[Fixture Qty '[P']]]<>\"\",Table_NCInfo[[#This Row],[Fixture Qty '[P']]]>0,Table_NCInfo[[#This Row],[Fixture Wattage '[P']]]<>\"\",Table_NCInfo[[#This Row],[Fixture Wattage '[P']]]>0),IFERROR(Table_NCInfo[[#This Row],[Fixture Qty '[P']]]*Table_NCInfo[[#This Row],[Fixture Wattage '[P']]],0),\"\")","v":""},null,null,{"$f":"IFERROR(IF(Table_NCInfo[[#This Row],[Interior/ Exterior]]<>\"\",\n  CONCATENATE(\n  Table_NCInfo[[#This Row],[Interior/ Exterior]],\": \",\n  Table_NCInfo[[#This Row],[Fixture Technology '[P']]],\n  \" - \",Table_NCInfo[[#This Row],[Fixture Type '[P']]],\" [\",\n  IF(AND(Table_NCInfo[[#This Row],['# Lamps/ Fixture '[P']]]<>\"\",Table_NCInfo[[#This Row],['# Lamps/ Fixture '[P']]]>0),Table_NCInfo[[#This Row],['# Lamps/ Fixture '[P']]] & \"L - \" & Table_NCInfo[[#This Row],[Fixture/ Lamp Wattage '[P']]] & \"W\" & IF(Table_NCInfo[[#This Row],[Ballast/ Driver '[P']]]<>\"\",\" - \" & Table_NCInfo[[#This Row],[Ballast/ Driver '[P']]],\"\"),Table_NCInfo[[#This Row],[Fixture Wattage '[P']]] & \"W\"),\"]\",\n  IF(AND(Table_NCInfo[[#This Row],[Controls '[P']]]<>\"\"),\" - \" & Table_NCInfo[[#This Row],[Controls '[P']]],\"\")\n  ),\n\"\"),\"\")","v":""}]
[{"$f":"IF($A27=\"Line\",1,MAX($A$4:$A27)+1)","v":24},{"$f":"COUNTA(Table_NCInfo[[#This Row],[Schedule]:[Notes]])>6","v":false},{"$f":"IF(Table_NCInfo[[#This Row],[IsActive]],Table_NCInfo[[#This Row],[Line]],\"\")","v":""},null,null,null,{"$f":"IFERROR(INDEX(Table_IntLookups[Zone'#],MATCH(Table_NCInfo[[#This Row],[Zone Description]],Table_IntLookups[Dropdown],0),0),\"\")","v":""},{"$f":"IF(Table_NCInfo[[#This Row],[Zone '#]]<>\"\",IFERROR(VLOOKUP(Table_NCInfo[[#This Row],[Zone '#]],Table_IntLookups[],'Facility Information'!$AB$4,FALSE) * (Table_NCInfo[[#This Row],[Fixture Qty '[P']]]*Table_NCInfo[[#This Row],[Fixture Wattage '[P']]])/SUMIFS(Table_NCInfo[Wattage '[P']],Table_NCInfo[Zone '#],Table_NCInfo[[#This Row],[Zone '#]]),0),\"\")","v":""},null,null,null,null,null,{"$f":"IF(Table_NCInfo[[#This Row],[Fixture Technology '[P']]]=\"LED Tube\",\"[Enter]\",\"\")","v":""},null,{"$f":"IFERROR(\nIFERROR(OFFSET(Table_TypWattage[[#Headers],[Technology]],MATCH(Table_NCInfo[[#This Row],[Fixture Technology '[P']]],Table_TypWattage[Technology],0)+MATCH(Table_NCInfo[[#This Row],[Fixture/ Lamp Wattage '[P']]],INDIRECT(SUBSTITUTE(SUBSTITUTE(Table_NCInfo[[#This Row],[Fixture Technology '[P']]],\" \",\"_\"),\"-\",\"_\")),0)-1,MATCH(Table_NCInfo[[#This Row],['# Lamps/ Fixture '[P']]],'Measure Tables'!$Q$2:$V$2,0)+1),IF(Table_NCInfo[[#This Row],[Schedule]]<>\"\",IF(AND(Table_NCInfo[[#This Row],['# Lamps/ Fixture '[P']]]>0,Table_NCInfo[[#This Row],[Fixture/ Lamp Wattage '[P']]]>0),Table_NCInfo[[#This Row],['# Lamps/ Fixture '[P']]]*Table_NCInfo[[#This Row],[Fixture/ Lamp Wattage '[P']]],Table_NCInfo[[#This Row],[Fixture/ Lamp Wattage '[P']]]),\"\")),\n\"\")","v":""},{"$f":"IF(AND(Table_NCInfo[[#This Row],[Fixture Qty '[P']]]<>\"\",Table_NCInfo[[#This Row],[Fixture Qty '[P']]]>0,Table_NCInfo[[#This Row],[Fixture Wattage '[P']]]<>\"\",Table_NCInfo[[#This Row],[Fixture Wattage '[P']]]>0),IFERROR(Table_NCInfo[[#This Row],[Fixture Qty '[P']]]*Table_NCInfo[[#This Row],[Fixture Wattage '[P']]],0),\"\")","v":""},null,null,{"$f":"IFERROR(IF(Table_NCInfo[[#This Row],[Interior/ Exterior]]<>\"\",\n  CONCATENATE(\n  Table_NCInfo[[#This Row],[Interior/ Exterior]],\": \",\n  Table_NCInfo[[#This Row],[Fixture Technology '[P']]],\n  \" - \",Table_NCInfo[[#This Row],[Fixture Type '[P']]],\" [\",\n  IF(AND(Table_NCInfo[[#This Row],['# Lamps/ Fixture '[P']]]<>\"\",Table_NCInfo[[#This Row],['# Lamps/ Fixture '[P']]]>0),Table_NCInfo[[#This Row],['# Lamps/ Fixture '[P']]] & \"L - \" & Table_NCInfo[[#This Row],[Fixture/ Lamp Wattage '[P']]] & \"W\" & IF(Table_NCInfo[[#This Row],[Ballast/ Driver '[P']]]<>\"\",\" - \" & Table_NCInfo[[#This Row],[Ballast/ Driver '[P']]],\"\"),Table_NCInfo[[#This Row],[Fixture Wattage '[P']]] & \"W\"),\"]\",\n  IF(AND(Table_NCInfo[[#This Row],[Controls '[P']]]<>\"\"),\" - \" & Table_NCInfo[[#This Row],[Controls '[P']]],\"\")\n  ),\n\"\"),\"\")","v":""}]
[{"$f":"IF($A28=\"Line\",1,MAX($A$4:$A28)+1)","v":25},{"$f":"COUNTA(Table_NCInfo[[#This Row],[Schedule]:[Notes]])>6","v":false},{"$f":"IF(Table_NCInfo[[#This Row],[IsActive]],Table_NCInfo[[#This Row],[Line]],\"\")","v":""},null,null,null,{"$f":"IFERROR(INDEX(Table_IntLookups[Zone'#],MATCH(Table_NCInfo[[#This Row],[Zone Description]],Table_IntLookups[Dropdown],0),0),\"\")","v":""},{"$f":"IF(Table_NCInfo[[#This Row],[Zone '#]]<>\"\",IFERROR(VLOOKUP(Table_NCInfo[[#This Row],[Zone '#]],Table_IntLookups[],'Facility Information'!$AB$4,FALSE) * (Table_NCInfo[[#This Row],[Fixture Qty '[P']]]*Table_NCInfo[[#This Row],[Fixture Wattage '[P']]])/SUMIFS(Table_NCInfo[Wattage '[P']],Table_NCInfo[Zone '#],Table_NCInfo[[#This Row],[Zone '#]]),0),\"\")","v":""},null,null,null,null,null,{"$f":"IF(Table_NCInfo[[#This Row],[Fixture Technology '[P']]]=\"LED Tube\",\"[Enter]\",\"\")","v":""},null,{"$f":"IFERROR(\nIFERROR(OFFSET(Table_TypWattage[[#Headers],[Technology]],MATCH(Table_NCInfo[[#This Row],[Fixture Technology '[P']]],Table_TypWattage[Technology],0)+MATCH(Table_NCInfo[[#This Row],[Fixture/ Lamp Wattage '[P']]],INDIRECT(SUBSTITUTE(SUBSTITUTE(Table_NCInfo[[#This Row],[Fixture Technology '[P']]],\" \",\"_\"),\"-\",\"_\")),0)-1,MATCH(Table_NCInfo[[#This Row],['# Lamps/ Fixture '[P']]],'Measure Tables'!$Q$2:$V$2,0)+1),IF(Table_NCInfo[[#This Row],[Schedule]]<>\"\",IF(AND(Table_NCInfo[[#This Row],['# Lamps/ Fixture '[P']]]>0,Table_NCInfo[[#This Row],[Fixture/ Lamp Wattage '[P']]]>0),Table_NCInfo[[#This Row],['# Lamps/ Fixture '[P']]]*Table_NCInfo[[#This Row],[Fixture/ Lamp Wattage '[P']]],Table_NCInfo[[#This Row],[Fixture/ Lamp Wattage '[P']]]),\"\")),\n\"\")","v":""},{"$f":"IF(AND(Table_NCInfo[[#This Row],[Fixture Qty '[P']]]<>\"\",Table_NCInfo[[#This Row],[Fixture Qty '[P']]]>0,Table_NCInfo[[#This Row],[Fixture Wattage '[P']]]<>\"\",Table_NCInfo[[#This Row],[Fixture Wattage '[P']]]>0),IFERROR(Table_NCInfo[[#This Row],[Fixture Qty '[P']]]*Table_NCInfo[[#This Row],[Fixture Wattage '[P']]],0),\"\")","v":""},null,null,{"$f":"IFERROR(IF(Table_NCInfo[[#This Row],[Interior/ Exterior]]<>\"\",\n  CONCATENATE(\n  Table_NCInfo[[#This Row],[Interior/ Exterior]],\": \",\n  Table_NCInfo[[#This Row],[Fixture Technology '[P']]],\n  \" - \",Table_NCInfo[[#This Row],[Fixture Type '[P']]],\" [\",\n  IF(AND(Table_NCInfo[[#This Row],['# Lamps/ Fixture '[P']]]<>\"\",Table_NCInfo[[#This Row],['# Lamps/ Fixture '[P']]]>0),Table_NCInfo[[#This Row],['# Lamps/ Fixture '[P']]] & \"L - \" & Table_NCInfo[[#This Row],[Fixture/ Lamp Wattage '[P']]] & \"W\" & IF(Table_NCInfo[[#This Row],[Ballast/ Driver '[P']]]<>\"\",\" - \" & Table_NCInfo[[#This Row],[Ballast/ Driver '[P']]],\"\"),Table_NCInfo[[#This Row],[Fixture Wattage '[P']]] & \"W\"),\"]\",\n  IF(AND(Table_NCInfo[[#This Row],[Controls '[P']]]<>\"\"),\" - \" & Table_NCInfo[[#This Row],[Controls '[P']]],\"\")\n  ),\n\"\"),\"\")","v":""}]
[{"$f":"IF($A29=\"Line\",1,MAX($A$4:$A29)+1)","v":26},{"$f":"COUNTA(Table_NCInfo[[#This Row],[Schedule]:[Notes]])>6","v":false},{"$f":"IF(Table_NCInfo[[#This Row],[IsActive]],Table_NCInfo[[#This Row],[Line]],\"\")","v":""},null,null,null,{"$f":"IFERROR(INDEX(Table_IntLookups[Zone'#],MATCH(Table_NCInfo[[#This Row],[Zone Description]],Table_IntLookups[Dropdown],0),0),\"\")","v":""},{"$f":"IF(Table_NCInfo[[#This Row],[Zone '#]]<>\"\",IFERROR(VLOOKUP(Table_NCInfo[[#This Row],[Zone '#]],Table_IntLookups[],'Facility Information'!$AB$4,FALSE) * (Table_NCInfo[[#This Row],[Fixture Qty '[P']]]*Table_NCInfo[[#This Row],[Fixture Wattage '[P']]])/SUMIFS(Table_NCInfo[Wattage '[P']],Table_NCInfo[Zone '#],Table_NCInfo[[#This Row],[Zone '#]]),0),\"\")","v":""},null,null,null,null,null,{"$f":"IF(Table_NCInfo[[#This Row],[Fixture Technology '[P']]]=\"LED Tube\",\"[Enter]\",\"\")","v":""},null,{"$f":"IFERROR(\nIFERROR(OFFSET(Table_TypWattage[[#Headers],[Technology]],MATCH(Table_NCInfo[[#This Row],[Fixture Technology '[P']]],Table_TypWattage[Technology],0)+MATCH(Table_NCInfo[[#This Row],[Fixture/ Lamp Wattage '[P']]],INDIRECT(SUBSTITUTE(SUBSTITUTE(Table_NCInfo[[#This Row],[Fixture Technology '[P']]],\" \",\"_\"),\"-\",\"_\")),0)-1,MATCH(Table_NCInfo[[#This Row],['# Lamps/ Fixture '[P']]],'Measure Tables'!$Q$2:$V$2,0)+1),IF(Table_NCInfo[[#This Row],[Schedule]]<>\"\",IF(AND(Table_NCInfo[[#This Row],['# Lamps/ Fixture '[P']]]>0,Table_NCInfo[[#This Row],[Fixture/ Lamp Wattage '[P']]]>0),Table_NCInfo[[#This Row],['# Lamps/ Fixture '[P']]]*Table_NCInfo[[#This Row],[Fixture/ Lamp Wattage '[P']]],Table_NCInfo[[#This Row],[Fixture/ Lamp Wattage '[P']]]),\"\")),\n\"\")","v":""},{"$f":"IF(AND(Table_NCInfo[[#This Row],[Fixture Qty '[P']]]<>\"\",Table_NCInfo[[#This Row],[Fixture Qty '[P']]]>0,Table_NCInfo[[#This Row],[Fixture Wattage '[P']]]<>\"\",Table_NCInfo[[#This Row],[Fixture Wattage '[P']]]>0),IFERROR(Table_NCInfo[[#This Row],[Fixture Qty '[P']]]*Table_NCInfo[[#This Row],[Fixture Wattage '[P']]],0),\"\")","v":""},null,null,{"$f":"IFERROR(IF(Table_NCInfo[[#This Row],[Interior/ Exterior]]<>\"\",\n  CONCATENATE(\n  Table_NCInfo[[#This Row],[Interior/ Exterior]],\": \",\n  Table_NCInfo[[#This Row],[Fixture Technology '[P']]],\n  \" - \",Table_NCInfo[[#This Row],[Fixture Type '[P']]],\" [\",\n  IF(AND(Table_NCInfo[[#This Row],['# Lamps/ Fixture '[P']]]<>\"\",Table_NCInfo[[#This Row],['# Lamps/ Fixture '[P']]]>0),Table_NCInfo[[#This Row],['# Lamps/ Fixture '[P']]] & \"L - \" & Table_NCInfo[[#This Row],[Fixture/ Lamp Wattage '[P']]] & \"W\" & IF(Table_NCInfo[[#This Row],[Ballast/ Driver '[P']]]<>\"\",\" - \" & Table_NCInfo[[#This Row],[Ballast/ Driver '[P']]],\"\"),Table_NCInfo[[#This Row],[Fixture Wattage '[P']]] & \"W\"),\"]\",\n  IF(AND(Table_NCInfo[[#This Row],[Controls '[P']]]<>\"\"),\" - \" & Table_NCInfo[[#This Row],[Controls '[P']]],\"\")\n  ),\n\"\"),\"\")","v":""}]
[{"$f":"IF($A30=\"Line\",1,MAX($A$4:$A30)+1)","v":27},{"$f":"COUNTA(Table_NCInfo[[#This Row],[Schedule]:[Notes]])>6","v":false},{"$f":"IF(Table_NCInfo[[#This Row],[IsActive]],Table_NCInfo[[#This Row],[Line]],\"\")","v":""},null,null,null,{"$f":"IFERROR(INDEX(Table_IntLookups[Zone'#],MATCH(Table_NCInfo[[#This Row],[Zone Description]],Table_IntLookups[Dropdown],0),0),\"\")","v":""},{"$f":"IF(Table_NCInfo[[#This Row],[Zone '#]]<>\"\",IFERROR(VLOOKUP(Table_NCInfo[[#This Row],[Zone '#]],Table_IntLookups[],'Facility Information'!$AB$4,FALSE) * (Table_NCInfo[[#This Row],[Fixture Qty '[P']]]*Table_NCInfo[[#This Row],[Fixture Wattage '[P']]])/SUMIFS(Table_NCInfo[Wattage '[P']],Table_NCInfo[Zone '#],Table_NCInfo[[#This Row],[Zone '#]]),0),\"\")","v":""},null,null,null,null,null,{"$f":"IF(Table_NCInfo[[#This Row],[Fixture Technology '[P']]]=\"LED Tube\",\"[Enter]\",\"\")","v":""},null,{"$f":"IFERROR(\nIFERROR(OFFSET(Table_TypWattage[[#Headers],[Technology]],MATCH(Table_NCInfo[[#This Row],[Fixture Technology '[P']]],Table_TypWattage[Technology],0)+MATCH(Table_NCInfo[[#This Row],[Fixture/ Lamp Wattage '[P']]],INDIRECT(SUBSTITUTE(SUBSTITUTE(Table_NCInfo[[#This Row],[Fixture Technology '[P']]],\" \",\"_\"),\"-\",\"_\")),0)-1,MATCH(Table_NCInfo[[#This Row],['# Lamps/ Fixture '[P']]],'Measure Tables'!$Q$2:$V$2,0)+1),IF(Table_NCInfo[[#This Row],[Schedule]]<>\"\",IF(AND(Table_NCInfo[[#This Row],['# Lamps/ Fixture '[P']]]>0,Table_NCInfo[[#This Row],[Fixture/ Lamp Wattage '[P']]]>0),Table_NCInfo[[#This Row],['# Lamps/ Fixture '[P']]]*Table_NCInfo[[#This Row],[Fixture/ Lamp Wattage '[P']]],Table_NCInfo[[#This Row],[Fixture/ Lamp Wattage '[P']]]),\"\")),\n\"\")","v":""},{"$f":"IF(AND(Table_NCInfo[[#This Row],[Fixture Qty '[P']]]<>\"\",Table_NCInfo[[#This Row],[Fixture Qty '[P']]]>0,Table_NCInfo[[#This Row],[Fixture Wattage '[P']]]<>\"\",Table_NCInfo[[#This Row],[Fixture Wattage '[P']]]>0),IFERROR(Table_NCInfo[[#This Row],[Fixture Qty '[P']]]*Table_NCInfo[[#This Row],[Fixture Wattage '[P']]],0),\"\")","v":""},null,null,{"$f":"IFERROR(IF(Table_NCInfo[[#This Row],[Interior/ Exterior]]<>\"\",\n  CONCATENATE(\n  Table_NCInfo[[#This Row],[Interior/ Exterior]],\": \",\n  Table_NCInfo[[#This Row],[Fixture Technology '[P']]],\n  \" - \",Table_NCInfo[[#This Row],[Fixture Type '[P']]],\" [\",\n  IF(AND(Table_NCInfo[[#This Row],['# Lamps/ Fixture '[P']]]<>\"\",Table_NCInfo[[#This Row],['# Lamps/ Fixture '[P']]]>0),Table_NCInfo[[#This Row],['# Lamps/ Fixture '[P']]] & \"L - \" & Table_NCInfo[[#This Row],[Fixture/ Lamp Wattage '[P']]] & \"W\" & IF(Table_NCInfo[[#This Row],[Ballast/ Driver '[P']]]<>\"\",\" - \" & Table_NCInfo[[#This Row],[Ballast/ Driver '[P']]],\"\"),Table_NCInfo[[#This Row],[Fixture Wattage '[P']]] & \"W\"),\"]\",\n  IF(AND(Table_NCInfo[[#This Row],[Controls '[P']]]<>\"\"),\" - \" & Table_NCInfo[[#This Row],[Controls '[P']]],\"\")\n  ),\n\"\"),\"\")","v":""}]
[{"$f":"IF($A31=\"Line\",1,MAX($A$4:$A31)+1)","v":28},{"$f":"COUNTA(Table_NCInfo[[#This Row],[Schedule]:[Notes]])>6","v":false},{"$f":"IF(Table_NCInfo[[#This Row],[IsActive]],Table_NCInfo[[#This Row],[Line]],\"\")","v":""},null,null,null,{"$f":"IFERROR(INDEX(Table_IntLookups[Zone'#],MATCH(Table_NCInfo[[#This Row],[Zone Description]],Table_IntLookups[Dropdown],0),0),\"\")","v":""},{"$f":"IF(Table_NCInfo[[#This Row],[Zone '#]]<>\"\",IFERROR(VLOOKUP(Table_NCInfo[[#This Row],[Zone '#]],Table_IntLookups[],'Facility Information'!$AB$4,FALSE) * (Table_NCInfo[[#This Row],[Fixture Qty '[P']]]*Table_NCInfo[[#This Row],[Fixture Wattage '[P']]])/SUMIFS(Table_NCInfo[Wattage '[P']],Table_NCInfo[Zone '#],Table_NCInfo[[#This Row],[Zone '#]]),0),\"\")","v":""},null,null,null,null,null,{"$f":"IF(Table_NCInfo[[#This Row],[Fixture Technology '[P']]]=\"LED Tube\",\"[Enter]\",\"\")","v":""},null,{"$f":"IFERROR(\nIFERROR(OFFSET(Table_TypWattage[[#Headers],[Technology]],MATCH(Table_NCInfo[[#This Row],[Fixture Technology '[P']]],Table_TypWattage[Technology],0)+MATCH(Table_NCInfo[[#This Row],[Fixture/ Lamp Wattage '[P']]],INDIRECT(SUBSTITUTE(SUBSTITUTE(Table_NCInfo[[#This Row],[Fixture Technology '[P']]],\" \",\"_\"),\"-\",\"_\")),0)-1,MATCH(Table_NCInfo[[#This Row],['# Lamps/ Fixture '[P']]],'Measure Tables'!$Q$2:$V$2,0)+1),IF(Table_NCInfo[[#This Row],[Schedule]]<>\"\",IF(AND(Table_NCInfo[[#This Row],['# Lamps/ Fixture '[P']]]>0,Table_NCInfo[[#This Row],[Fixture/ Lamp Wattage '[P']]]>0),Table_NCInfo[[#This Row],['# Lamps/ Fixture '[P']]]*Table_NCInfo[[#This Row],[Fixture/ Lamp Wattage '[P']]],Table_NCInfo[[#This Row],[Fixture/ Lamp Wattage '[P']]]),\"\")),\n\"\")","v":""},{"$f":"IF(AND(Table_NCInfo[[#This Row],[Fixture Qty '[P']]]<>\"\",Table_NCInfo[[#This Row],[Fixture Qty '[P']]]>0,Table_NCInfo[[#This Row],[Fixture Wattage '[P']]]<>\"\",Table_NCInfo[[#This Row],[Fixture Wattage '[P']]]>0),IFERROR(Table_NCInfo[[#This Row],[Fixture Qty '[P']]]*Table_NCInfo[[#This Row],[Fixture Wattage '[P']]],0),\"\")","v":""},null,null,{"$f":"IFERROR(IF(Table_NCInfo[[#This Row],[Interior/ Exterior]]<>\"\",\n  CONCATENATE(\n  Table_NCInfo[[#This Row],[Interior/ Exterior]],\": \",\n  Table_NCInfo[[#This Row],[Fixture Technology '[P']]],\n  \" - \",Table_NCInfo[[#This Row],[Fixture Type '[P']]],\" [\",\n  IF(AND(Table_NCInfo[[#This Row],['# Lamps/ Fixture '[P']]]<>\"\",Table_NCInfo[[#This Row],['# Lamps/ Fixture '[P']]]>0),Table_NCInfo[[#This Row],['# Lamps/ Fixture '[P']]] & \"L - \" & Table_NCInfo[[#This Row],[Fixture/ Lamp Wattage '[P']]] & \"W\" & IF(Table_NCInfo[[#This Row],[Ballast/ Driver '[P']]]<>\"\",\" - \" & Table_NCInfo[[#This Row],[Ballast/ Driver '[P']]],\"\"),Table_NCInfo[[#This Row],[Fixture Wattage '[P']]] & \"W\"),\"]\",\n  IF(AND(Table_NCInfo[[#This Row],[Controls '[P']]]<>\"\"),\" - \" & Table_NCInfo[[#This Row],[Controls '[P']]],\"\")\n  ),\n\"\"),\"\")","v":""}]
[{"$f":"IF($A32=\"Line\",1,MAX($A$4:$A32)+1)","v":29},{"$f":"COUNTA(Table_NCInfo[[#This Row],[Schedule]:[Notes]])>6","v":false},{"$f":"IF(Table_NCInfo[[#This Row],[IsActive]],Table_NCInfo[[#This Row],[Line]],\"\")","v":""},null,null,null,{"$f":"IFERROR(INDEX(Table_IntLookups[Zone'#],MATCH(Table_NCInfo[[#This Row],[Zone Description]],Table_IntLookups[Dropdown],0),0),\"\")","v":""},{"$f":"IF(Table_NCInfo[[#This Row],[Zone '#]]<>\"\",IFERROR(VLOOKUP(Table_NCInfo[[#This Row],[Zone '#]],Table_IntLookups[],'Facility Information'!$AB$4,FALSE) * (Table_NCInfo[[#This Row],[Fixture Qty '[P']]]*Table_NCInfo[[#This Row],[Fixture Wattage '[P']]])/SUMIFS(Table_NCInfo[Wattage '[P']],Table_NCInfo[Zone '#],Table_NCInfo[[#This Row],[Zone '#]]),0),\"\")","v":""},null,null,null,null,null,{"$f":"IF(Table_NCInfo[[#This Row],[Fixture Technology '[P']]]=\"LED Tube\",\"[Enter]\",\"\")","v":""},null,{"$f":"IFERROR(\nIFERROR(OFFSET(Table_TypWattage[[#Headers],[Technology]],MATCH(Table_NCInfo[[#This Row],[Fixture Technology '[P']]],Table_TypWattage[Technology],0)+MATCH(Table_NCInfo[[#This Row],[Fixture/ Lamp Wattage '[P']]],INDIRECT(SUBSTITUTE(SUBSTITUTE(Table_NCInfo[[#This Row],[Fixture Technology '[P']]],\" \",\"_\"),\"-\",\"_\")),0)-1,MATCH(Table_NCInfo[[#This Row],['# Lamps/ Fixture '[P']]],'Measure Tables'!$Q$2:$V$2,0)+1),IF(Table_NCInfo[[#This Row],[Schedule]]<>\"\",IF(AND(Table_NCInfo[[#This Row],['# Lamps/ Fixture '[P']]]>0,Table_NCInfo[[#This Row],[Fixture/ Lamp Wattage '[P']]]>0),Table_NCInfo[[#This Row],['# Lamps/ Fixture '[P']]]*Table_NCInfo[[#This Row],[Fixture/ Lamp Wattage '[P']]],Table_NCInfo[[#This Row],[Fixture/ Lamp Wattage '[P']]]),\"\")),\n\"\")","v":""},{"$f":"IF(AND(Table_NCInfo[[#This Row],[Fixture Qty '[P']]]<>\"\",Table_NCInfo[[#This Row],[Fixture Qty '[P']]]>0,Table_NCInfo[[#This Row],[Fixture Wattage '[P']]]<>\"\",Table_NCInfo[[#This Row],[Fixture Wattage '[P']]]>0),IFERROR(Table_NCInfo[[#This Row],[Fixture Qty '[P']]]*Table_NCInfo[[#This Row],[Fixture Wattage '[P']]],0),\"\")","v":""},null,null,{"$f":"IFERROR(IF(Table_NCInfo[[#This Row],[Interior/ Exterior]]<>\"\",\n  CONCATENATE(\n  Table_NCInfo[[#This Row],[Interior/ Exterior]],\": \",\n  Table_NCInfo[[#This Row],[Fixture Technology '[P']]],\n  \" - \",Table_NCInfo[[#This Row],[Fixture Type '[P']]],\" [\",\n  IF(AND(Table_NCInfo[[#This Row],['# Lamps/ Fixture '[P']]]<>\"\",Table_NCInfo[[#This Row],['# Lamps/ Fixture '[P']]]>0),Table_NCInfo[[#This Row],['# Lamps/ Fixture '[P']]] & \"L - \" & Table_NCInfo[[#This Row],[Fixture/ Lamp Wattage '[P']]] & \"W\" & IF(Table_NCInfo[[#This Row],[Ballast/ Driver '[P']]]<>\"\",\" - \" & Table_NCInfo[[#This Row],[Ballast/ Driver '[P']]],\"\"),Table_NCInfo[[#This Row],[Fixture Wattage '[P']]] & \"W\"),\"]\",\n  IF(AND(Table_NCInfo[[#This Row],[Controls '[P']]]<>\"\"),\" - \" & Table_NCInfo[[#This Row],[Controls '[P']]],\"\")\n  ),\n\"\"),\"\")","v":""}]
[{"$f":"IF($A33=\"Line\",1,MAX($A$4:$A33)+1)","v":30},{"$f":"COUNTA(Table_NCInfo[[#This Row],[Schedule]:[Notes]])>6","v":false},{"$f":"IF(Table_NCInfo[[#This Row],[IsActive]],Table_NCInfo[[#This Row],[Line]],\"\")","v":""},null,null,null,{"$f":"IFERROR(INDEX(Table_IntLookups[Zone'#],MATCH(Table_NCInfo[[#This Row],[Zone Description]],Table_IntLookups[Dropdown],0),0),\"\")","v":""},{"$f":"IF(Table_NCInfo[[#This Row],[Zone '#]]<>\"\",IFERROR(VLOOKUP(Table_NCInfo[[#This Row],[Zone '#]],Table_IntLookups[],'Facility Information'!$AB$4,FALSE) * (Table_NCInfo[[#This Row],[Fixture Qty '[P']]]*Table_NCInfo[[#This Row],[Fixture Wattage '[P']]])/SUMIFS(Table_NCInfo[Wattage '[P']],Table_NCInfo[Zone '#],Table_NCInfo[[#This Row],[Zone '#]]),0),\"\")","v":""},null,null,null,null,null,{"$f":"IF(Table_NCInfo[[#This Row],[Fixture Technology '[P']]]=\"LED Tube\",\"[Enter]\",\"\")","v":""},null,{"$f":"IFERROR(\nIFERROR(OFFSET(Table_TypWattage[[#Headers],[Technology]],MATCH(Table_NCInfo[[#This Row],[Fixture Technology '[P']]],Table_TypWattage[Technology],0)+MATCH(Table_NCInfo[[#This Row],[Fixture/ Lamp Wattage '[P']]],INDIRECT(SUBSTITUTE(SUBSTITUTE(Table_NCInfo[[#This Row],[Fixture Technology '[P']]],\" \",\"_\"),\"-\",\"_\")),0)-1,MATCH(Table_NCInfo[[#This Row],['# Lamps/ Fixture '[P']]],'Measure Tables'!$Q$2:$V$2,0)+1),IF(Table_NCInfo[[#This Row],[Schedule]]<>\"\",IF(AND(Table_NCInfo[[#This Row],['# Lamps/ Fixture '[P']]]>0,Table_NCInfo[[#This Row],[Fixture/ Lamp Wattage '[P']]]>0),Table_NCInfo[[#This Row],['# Lamps/ Fixture '[P']]]*Table_NCInfo[[#This Row],[Fixture/ Lamp Wattage '[P']]],Table_NCInfo[[#This Row],[Fixture/ Lamp Wattage '[P']]]),\"\")),\n\"\")","v":""},{"$f":"IF(AND(Table_NCInfo[[#This Row],[Fixture Qty '[P']]]<>\"\",Table_NCInfo[[#This Row],[Fixture Qty '[P']]]>0,Table_NCInfo[[#This Row],[Fixture Wattage '[P']]]<>\"\",Table_NCInfo[[#This Row],[Fixture Wattage '[P']]]>0),IFERROR(Table_NCInfo[[#This Row],[Fixture Qty '[P']]]*Table_NCInfo[[#This Row],[Fixture Wattage '[P']]],0),\"\")","v":""},null,null,{"$f":"IFERROR(IF(Table_NCInfo[[#This Row],[Interior/ Exterior]]<>\"\",\n  CONCATENATE(\n  Table_NCInfo[[#This Row],[Interior/ Exterior]],\": \",\n  Table_NCInfo[[#This Row],[Fixture Technology '[P']]],\n  \" - \",Table_NCInfo[[#This Row],[Fixture Type '[P']]],\" [\",\n  IF(AND(Table_NCInfo[[#This Row],['# Lamps/ Fixture '[P']]]<>\"\",Table_NCInfo[[#This Row],['# Lamps/ Fixture '[P']]]>0),Table_NCInfo[[#This Row],['# Lamps/ Fixture '[P']]] & \"L - \" & Table_NCInfo[[#This Row],[Fixture/ Lamp Wattage '[P']]] & \"W\" & IF(Table_NCInfo[[#This Row],[Ballast/ Driver '[P']]]<>\"\",\" - \" & Table_NCInfo[[#This Row],[Ballast/ Driver '[P']]],\"\"),Table_NCInfo[[#This Row],[Fixture Wattage '[P']]] & \"W\"),\"]\",\n  IF(AND(Table_NCInfo[[#This Row],[Controls '[P']]]<>\"\"),\" - \" & Table_NCInfo[[#This Row],[Controls '[P']]],\"\")\n  ),\n\"\"),\"\")","v":""}]
[{"$f":"IF($A34=\"Line\",1,MAX($A$4:$A34)+1)","v":31},{"$f":"COUNTA(Table_NCInfo[[#This Row],[Schedule]:[Notes]])>6","v":false},{"$f":"IF(Table_NCInfo[[#This Row],[IsActive]],Table_NCInfo[[#This Row],[Line]],\"\")","v":""},null,null,null,{"$f":"IFERROR(INDEX(Table_IntLookups[Zone'#],MATCH(Table_NCInfo[[#This Row],[Zone Description]],Table_IntLookups[Dropdown],0),0),\"\")","v":""},{"$f":"IF(Table_NCInfo[[#This Row],[Zone '#]]<>\"\",IFERROR(VLOOKUP(Table_NCInfo[[#This Row],[Zone '#]],Table_IntLookups[],'Facility Information'!$AB$4,FALSE) * (Table_NCInfo[[#This Row],[Fixture Qty '[P']]]*Table_NCInfo[[#This Row],[Fixture Wattage '[P']]])/SUMIFS(Table_NCInfo[Wattage '[P']],Table_NCInfo[Zone '#],Table_NCInfo[[#This Row],[Zone '#]]),0),\"\")","v":""},null,null,null,null,null,{"$f":"IF(Table_NCInfo[[#This Row],[Fixture Technology '[P']]]=\"LED Tube\",\"[Enter]\",\"\")","v":""},null,{"$f":"IFERROR(\nIFERROR(OFFSET(Table_TypWattage[[#Headers],[Technology]],MATCH(Table_NCInfo[[#This Row],[Fixture Technology '[P']]],Table_TypWattage[Technology],0)+MATCH(Table_NCInfo[[#This Row],[Fixture/ Lamp Wattage '[P']]],INDIRECT(SUBSTITUTE(SUBSTITUTE(Table_NCInfo[[#This Row],[Fixture Technology '[P']]],\" \",\"_\"),\"-\",\"_\")),0)-1,MATCH(Table_NCInfo[[#This Row],['# Lamps/ Fixture '[P']]],'Measure Tables'!$Q$2:$V$2,0)+1),IF(Table_NCInfo[[#This Row],[Schedule]]<>\"\",IF(AND(Table_NCInfo[[#This Row],['# Lamps/ Fixture '[P']]]>0,Table_NCInfo[[#This Row],[Fixture/ Lamp Wattage '[P']]]>0),Table_NCInfo[[#This Row],['# Lamps/ Fixture '[P']]]*Table_NCInfo[[#This Row],[Fixture/ Lamp Wattage '[P']]],Table_NCInfo[[#This Row],[Fixture/ Lamp Wattage '[P']]]),\"\")),\n\"\")","v":""},{"$f":"IF(AND(Table_NCInfo[[#This Row],[Fixture Qty '[P']]]<>\"\",Table_NCInfo[[#This Row],[Fixture Qty '[P']]]>0,Table_NCInfo[[#This Row],[Fixture Wattage '[P']]]<>\"\",Table_NCInfo[[#This Row],[Fixture Wattage '[P']]]>0),IFERROR(Table_NCInfo[[#This Row],[Fixture Qty '[P']]]*Table_NCInfo[[#This Row],[Fixture Wattage '[P']]],0),\"\")","v":""},null,null,{"$f":"IFERROR(IF(Table_NCInfo[[#This Row],[Interior/ Exterior]]<>\"\",\n  CONCATENATE(\n  Table_NCInfo[[#This Row],[Interior/ Exterior]],\": \",\n  Table_NCInfo[[#This Row],[Fixture Technology '[P']]],\n  \" - \",Table_NCInfo[[#This Row],[Fixture Type '[P']]],\" [\",\n  IF(AND(Table_NCInfo[[#This Row],['# Lamps/ Fixture '[P']]]<>\"\",Table_NCInfo[[#This Row],['# Lamps/ Fixture '[P']]]>0),Table_NCInfo[[#This Row],['# Lamps/ Fixture '[P']]] & \"L - \" & Table_NCInfo[[#This Row],[Fixture/ Lamp Wattage '[P']]] & \"W\" & IF(Table_NCInfo[[#This Row],[Ballast/ Driver '[P']]]<>\"\",\" - \" & Table_NCInfo[[#This Row],[Ballast/ Driver '[P']]],\"\"),Table_NCInfo[[#This Row],[Fixture Wattage '[P']]] & \"W\"),\"]\",\n  IF(AND(Table_NCInfo[[#This Row],[Controls '[P']]]<>\"\"),\" - \" & Table_NCInfo[[#This Row],[Controls '[P']]],\"\")\n  ),\n\"\"),\"\")","v":""}]
[{"$f":"IF($A35=\"Line\",1,MAX($A$4:$A35)+1)","v":32},{"$f":"COUNTA(Table_NCInfo[[#This Row],[Schedule]:[Notes]])>6","v":false},{"$f":"IF(Table_NCInfo[[#This Row],[IsActive]],Table_NCInfo[[#This Row],[Line]],\"\")","v":""},null,null,null,{"$f":"IFERROR(INDEX(Table_IntLookups[Zone'#],MATCH(Table_NCInfo[[#This Row],[Zone Description]],Table_IntLookups[Dropdown],0),0),\"\")","v":""},{"$f":"IF(Table_NCInfo[[#This Row],[Zone '#]]<>\"\",IFERROR(VLOOKUP(Table_NCInfo[[#This Row],[Zone '#]],Table_IntLookups[],'Facility Information'!$AB$4,FALSE) * (Table_NCInfo[[#This Row],[Fixture Qty '[P']]]*Table_NCInfo[[#This Row],[Fixture Wattage '[P']]])/SUMIFS(Table_NCInfo[Wattage '[P']],Table_NCInfo[Zone '#],Table_NCInfo[[#This Row],[Zone '#]]),0),\"\")","v":""},null,null,null,null,null,{"$f":"IF(Table_NCInfo[[#This Row],[Fixture Technology '[P']]]=\"LED Tube\",\"[Enter]\",\"\")","v":""},null,{"$f":"IFERROR(\nIFERROR(OFFSET(Table_TypWattage[[#Headers],[Technology]],MATCH(Table_NCInfo[[#This Row],[Fixture Technology '[P']]],Table_TypWattage[Technology],0)+MATCH(Table_NCInfo[[#This Row],[Fixture/ Lamp Wattage '[P']]],INDIRECT(SUBSTITUTE(SUBSTITUTE(Table_NCInfo[[#This Row],[Fixture Technology '[P']]],\" \",\"_\"),\"-\",\"_\")),0)-1,MATCH(Table_NCInfo[[#This Row],['# Lamps/ Fixture '[P']]],'Measure Tables'!$Q$2:$V$2,0)+1),IF(Table_NCInfo[[#This Row],[Schedule]]<>\"\",IF(AND(Table_NCInfo[[#This Row],['# Lamps/ Fixture '[P']]]>0,Table_NCInfo[[#This Row],[Fixture/ Lamp Wattage '[P']]]>0),Table_NCInfo[[#This Row],['# Lamps/ Fixture '[P']]]*Table_NCInfo[[#This Row],[Fixture/ Lamp Wattage '[P']]],Table_NCInfo[[#This Row],[Fixture/ Lamp Wattage '[P']]]),\"\")),\n\"\")","v":""},{"$f":"IF(AND(Table_NCInfo[[#This Row],[Fixture Qty '[P']]]<>\"\",Table_NCInfo[[#This Row],[Fixture Qty '[P']]]>0,Table_NCInfo[[#This Row],[Fixture Wattage '[P']]]<>\"\",Table_NCInfo[[#This Row],[Fixture Wattage '[P']]]>0),IFERROR(Table_NCInfo[[#This Row],[Fixture Qty '[P']]]*Table_NCInfo[[#This Row],[Fixture Wattage '[P']]],0),\"\")","v":""},null,null,{"$f":"IFERROR(IF(Table_NCInfo[[#This Row],[Interior/ Exterior]]<>\"\",\n  CONCATENATE(\n  Table_NCInfo[[#This Row],[Interior/ Exterior]],\": \",\n  Table_NCInfo[[#This Row],[Fixture Technology '[P']]],\n  \" - \",Table_NCInfo[[#This Row],[Fixture Type '[P']]],\" [\",\n  IF(AND(Table_NCInfo[[#This Row],['# Lamps/ Fixture '[P']]]<>\"\",Table_NCInfo[[#This Row],['# Lamps/ Fixture '[P']]]>0),Table_NCInfo[[#This Row],['# Lamps/ Fixture '[P']]] & \"L - \" & Table_NCInfo[[#This Row],[Fixture/ Lamp Wattage '[P']]] & \"W\" & IF(Table_NCInfo[[#This Row],[Ballast/ Driver '[P']]]<>\"\",\" - \" & Table_NCInfo[[#This Row],[Ballast/ Driver '[P']]],\"\"),Table_NCInfo[[#This Row],[Fixture Wattage '[P']]] & \"W\"),\"]\",\n  IF(AND(Table_NCInfo[[#This Row],[Controls '[P']]]<>\"\"),\" - \" & Table_NCInfo[[#This Row],[Controls '[P']]],\"\")\n  ),\n\"\"),\"\")","v":""}]
[{"$f":"IF($A36=\"Line\",1,MAX($A$4:$A36)+1)","v":33},{"$f":"COUNTA(Table_NCInfo[[#This Row],[Schedule]:[Notes]])>6","v":false},{"$f":"IF(Table_NCInfo[[#This Row],[IsActive]],Table_NCInfo[[#This Row],[Line]],\"\")","v":""},null,null,null,{"$f":"IFERROR(INDEX(Table_IntLookups[Zone'#],MATCH(Table_NCInfo[[#This Row],[Zone Description]],Table_IntLookups[Dropdown],0),0),\"\")","v":""},{"$f":"IF(Table_NCInfo[[#This Row],[Zone '#]]<>\"\",IFERROR(VLOOKUP(Table_NCInfo[[#This Row],[Zone '#]],Table_IntLookups[],'Facility Information'!$AB$4,FALSE) * (Table_NCInfo[[#This Row],[Fixture Qty '[P']]]*Table_NCInfo[[#This Row],[Fixture Wattage '[P']]])/SUMIFS(Table_NCInfo[Wattage '[P']],Table_NCInfo[Zone '#],Table_NCInfo[[#This Row],[Zone '#]]),0),\"\")","v":""},null,null,null,null,null,{"$f":"IF(Table_NCInfo[[#This Row],[Fixture Technology '[P']]]=\"LED Tube\",\"[Enter]\",\"\")","v":""},null,{"$f":"IFERROR(\nIFERROR(OFFSET(Table_TypWattage[[#Headers],[Technology]],MATCH(Table_NCInfo[[#This Row],[Fixture Technology '[P']]],Table_TypWattage[Technology],0)+MATCH(Table_NCInfo[[#This Row],[Fixture/ Lamp Wattage '[P']]],INDIRECT(SUBSTITUTE(SUBSTITUTE(Table_NCInfo[[#This Row],[Fixture Technology '[P']]],\" \",\"_\"),\"-\",\"_\")),0)-1,MATCH(Table_NCInfo[[#This Row],['# Lamps/ Fixture '[P']]],'Measure Tables'!$Q$2:$V$2,0)+1),IF(Table_NCInfo[[#This Row],[Schedule]]<>\"\",IF(AND(Table_NCInfo[[#This Row],['# Lamps/ Fixture '[P']]]>0,Table_NCInfo[[#This Row],[Fixture/ Lamp Wattage '[P']]]>0),Table_NCInfo[[#This Row],['# Lamps/ Fixture '[P']]]*Table_NCInfo[[#This Row],[Fixture/ Lamp Wattage '[P']]],Table_NCInfo[[#This Row],[Fixture/ Lamp Wattage '[P']]]),\"\")),\n\"\")","v":""},{"$f":"IF(AND(Table_NCInfo[[#This Row],[Fixture Qty '[P']]]<>\"\",Table_NCInfo[[#This Row],[Fixture Qty '[P']]]>0,Table_NCInfo[[#This Row],[Fixture Wattage '[P']]]<>\"\",Table_NCInfo[[#This Row],[Fixture Wattage '[P']]]>0),IFERROR(Table_NCInfo[[#This Row],[Fixture Qty '[P']]]*Table_NCInfo[[#This Row],[Fixture Wattage '[P']]],0),\"\")","v":""},null,null,{"$f":"IFERROR(IF(Table_NCInfo[[#This Row],[Interior/ Exterior]]<>\"\",\n  CONCATENATE(\n  Table_NCInfo[[#This Row],[Interior/ Exterior]],\": \",\n  Table_NCInfo[[#This Row],[Fixture Technology '[P']]],\n  \" - \",Table_NCInfo[[#This Row],[Fixture Type '[P']]],\" [\",\n  IF(AND(Table_NCInfo[[#This Row],['# Lamps/ Fixture '[P']]]<>\"\",Table_NCInfo[[#This Row],['# Lamps/ Fixture '[P']]]>0),Table_NCInfo[[#This Row],['# Lamps/ Fixture '[P']]] & \"L - \" & Table_NCInfo[[#This Row],[Fixture/ Lamp Wattage '[P']]] & \"W\" & IF(Table_NCInfo[[#This Row],[Ballast/ Driver '[P']]]<>\"\",\" - \" & Table_NCInfo[[#This Row],[Ballast/ Driver '[P']]],\"\"),Table_NCInfo[[#This Row],[Fixture Wattage '[P']]] & \"W\"),\"]\",\n  IF(AND(Table_NCInfo[[#This Row],[Controls '[P']]]<>\"\"),\" - \" & Table_NCInfo[[#This Row],[Controls '[P']]],\"\")\n  ),\n\"\"),\"\")","v":""}]
[{"$f":"IF($A37=\"Line\",1,MAX($A$4:$A37)+1)","v":34},{"$f":"COUNTA(Table_NCInfo[[#This Row],[Schedule]:[Notes]])>6","v":false},{"$f":"IF(Table_NCInfo[[#This Row],[IsActive]],Table_NCInfo[[#This Row],[Line]],\"\")","v":""},null,null,null,{"$f":"IFERROR(INDEX(Table_IntLookups[Zone'#],MATCH(Table_NCInfo[[#This Row],[Zone Description]],Table_IntLookups[Dropdown],0),0),\"\")","v":""},{"$f":"IF(Table_NCInfo[[#This Row],[Zone '#]]<>\"\",IFERROR(VLOOKUP(Table_NCInfo[[#This Row],[Zone '#]],Table_IntLookups[],'Facility Information'!$AB$4,FALSE) * (Table_NCInfo[[#This Row],[Fixture Qty '[P']]]*Table_NCInfo[[#This Row],[Fixture Wattage '[P']]])/SUMIFS(Table_NCInfo[Wattage '[P']],Table_NCInfo[Zone '#],Table_NCInfo[[#This Row],[Zone '#]]),0),\"\")","v":""},null,null,null,null,null,{"$f":"IF(Table_NCInfo[[#This Row],[Fixture Technology '[P']]]=\"LED Tube\",\"[Enter]\",\"\")","v":""},null,{"$f":"IFERROR(\nIFERROR(OFFSET(Table_TypWattage[[#Headers],[Technology]],MATCH(Table_NCInfo[[#This Row],[Fixture Technology '[P']]],Table_TypWattage[Technology],0)+MATCH(Table_NCInfo[[#This Row],[Fixture/ Lamp Wattage '[P']]],INDIRECT(SUBSTITUTE(SUBSTITUTE(Table_NCInfo[[#This Row],[Fixture Technology '[P']]],\" \",\"_\"),\"-\",\"_\")),0)-1,MATCH(Table_NCInfo[[#This Row],['# Lamps/ Fixture '[P']]],'Measure Tables'!$Q$2:$V$2,0)+1),IF(Table_NCInfo[[#This Row],[Schedule]]<>\"\",IF(AND(Table_NCInfo[[#This Row],['# Lamps/ Fixture '[P']]]>0,Table_NCInfo[[#This Row],[Fixture/ Lamp Wattage '[P']]]>0),Table_NCInfo[[#This Row],['# Lamps/ Fixture '[P']]]*Table_NCInfo[[#This Row],[Fixture/ Lamp Wattage '[P']]],Table_NCInfo[[#This Row],[Fixture/ Lamp Wattage '[P']]]),\"\")),\n\"\")","v":""},{"$f":"IF(AND(Table_NCInfo[[#This Row],[Fixture Qty '[P']]]<>\"\",Table_NCInfo[[#This Row],[Fixture Qty '[P']]]>0,Table_NCInfo[[#This Row],[Fixture Wattage '[P']]]<>\"\",Table_NCInfo[[#This Row],[Fixture Wattage '[P']]]>0),IFERROR(Table_NCInfo[[#This Row],[Fixture Qty '[P']]]*Table_NCInfo[[#This Row],[Fixture Wattage '[P']]],0),\"\")","v":""},null,null,{"$f":"IFERROR(IF(Table_NCInfo[[#This Row],[Interior/ Exterior]]<>\"\",\n  CONCATENATE(\n  Table_NCInfo[[#This Row],[Interior/ Exterior]],\": \",\n  Table_NCInfo[[#This Row],[Fixture Technology '[P']]],\n  \" - \",Table_NCInfo[[#This Row],[Fixture Type '[P']]],\" [\",\n  IF(AND(Table_NCInfo[[#This Row],['# Lamps/ Fixture '[P']]]<>\"\",Table_NCInfo[[#This Row],['# Lamps/ Fixture '[P']]]>0),Table_NCInfo[[#This Row],['# Lamps/ Fixture '[P']]] & \"L - \" & Table_NCInfo[[#This Row],[Fixture/ Lamp Wattage '[P']]] & \"W\" & IF(Table_NCInfo[[#This Row],[Ballast/ Driver '[P']]]<>\"\",\" - \" & Table_NCInfo[[#This Row],[Ballast/ Driver '[P']]],\"\"),Table_NCInfo[[#This Row],[Fixture Wattage '[P']]] & \"W\"),\"]\",\n  IF(AND(Table_NCInfo[[#This Row],[Controls '[P']]]<>\"\"),\" - \" & Table_NCInfo[[#This Row],[Controls '[P']]],\"\")\n  ),\n\"\"),\"\")","v":""}]
[{"$f":"IF($A38=\"Line\",1,MAX($A$4:$A38)+1)","v":35},{"$f":"COUNTA(Table_NCInfo[[#This Row],[Schedule]:[Notes]])>6","v":false},{"$f":"IF(Table_NCInfo[[#This Row],[IsActive]],Table_NCInfo[[#This Row],[Line]],\"\")","v":""},null,null,null,{"$f":"IFERROR(INDEX(Table_IntLookups[Zone'#],MATCH(Table_NCInfo[[#This Row],[Zone Description]],Table_IntLookups[Dropdown],0),0),\"\")","v":""},{"$f":"IF(Table_NCInfo[[#This Row],[Zone '#]]<>\"\",IFERROR(VLOOKUP(Table_NCInfo[[#This Row],[Zone '#]],Table_IntLookups[],'Facility Information'!$AB$4,FALSE) * (Table_NCInfo[[#This Row],[Fixture Qty '[P']]]*Table_NCInfo[[#This Row],[Fixture Wattage '[P']]])/SUMIFS(Table_NCInfo[Wattage '[P']],Table_NCInfo[Zone '#],Table_NCInfo[[#This Row],[Zone '#]]),0),\"\")","v":""},null,null,null,null,null,{"$f":"IF(Table_NCInfo[[#This Row],[Fixture Technology '[P']]]=\"LED Tube\",\"[Enter]\",\"\")","v":""},null,{"$f":"IFERROR(\nIFERROR(OFFSET(Table_TypWattage[[#Headers],[Technology]],MATCH(Table_NCInfo[[#This Row],[Fixture Technology '[P']]],Table_TypWattage[Technology],0)+MATCH(Table_NCInfo[[#This Row],[Fixture/ Lamp Wattage '[P']]],INDIRECT(SUBSTITUTE(SUBSTITUTE(Table_NCInfo[[#This Row],[Fixture Technology '[P']]],\" \",\"_\"),\"-\",\"_\")),0)-1,MATCH(Table_NCInfo[[#This Row],['# Lamps/ Fixture '[P']]],'Measure Tables'!$Q$2:$V$2,0)+1),IF(Table_NCInfo[[#This Row],[Schedule]]<>\"\",IF(AND(Table_NCInfo[[#This Row],['# Lamps/ Fixture '[P']]]>0,Table_NCInfo[[#This Row],[Fixture/ Lamp Wattage '[P']]]>0),Table_NCInfo[[#This Row],['# Lamps/ Fixture '[P']]]*Table_NCInfo[[#This Row],[Fixture/ Lamp Wattage '[P']]],Table_NCInfo[[#This Row],[Fixture/ Lamp Wattage '[P']]]),\"\")),\n\"\")","v":""},{"$f":"IF(AND(Table_NCInfo[[#This Row],[Fixture Qty '[P']]]<>\"\",Table_NCInfo[[#This Row],[Fixture Qty '[P']]]>0,Table_NCInfo[[#This Row],[Fixture Wattage '[P']]]<>\"\",Table_NCInfo[[#This Row],[Fixture Wattage '[P']]]>0),IFERROR(Table_NCInfo[[#This Row],[Fixture Qty '[P']]]*Table_NCInfo[[#This Row],[Fixture Wattage '[P']]],0),\"\")","v":""},null,null,{"$f":"IFERROR(IF(Table_NCInfo[[#This Row],[Interior/ Exterior]]<>\"\",\n  CONCATENATE(\n  Table_NCInfo[[#This Row],[Interior/ Exterior]],\": \",\n  Table_NCInfo[[#This Row],[Fixture Technology '[P']]],\n  \" - \",Table_NCInfo[[#This Row],[Fixture Type '[P']]],\" [\",\n  IF(AND(Table_NCInfo[[#This Row],['# Lamps/ Fixture '[P']]]<>\"\",Table_NCInfo[[#This Row],['# Lamps/ Fixture '[P']]]>0),Table_NCInfo[[#This Row],['# Lamps/ Fixture '[P']]] & \"L - \" & Table_NCInfo[[#This Row],[Fixture/ Lamp Wattage '[P']]] & \"W\" & IF(Table_NCInfo[[#This Row],[Ballast/ Driver '[P']]]<>\"\",\" - \" & Table_NCInfo[[#This Row],[Ballast/ Driver '[P']]],\"\"),Table_NCInfo[[#This Row],[Fixture Wattage '[P']]] & \"W\"),\"]\",\n  IF(AND(Table_NCInfo[[#This Row],[Controls '[P']]]<>\"\"),\" - \" & Table_NCInfo[[#This Row],[Controls '[P']]],\"\")\n  ),\n\"\"),\"\")","v":""}]
[{"$f":"IF($A39=\"Line\",1,MAX($A$4:$A39)+1)","v":36},{"$f":"COUNTA(Table_NCInfo[[#This Row],[Schedule]:[Notes]])>6","v":false},{"$f":"IF(Table_NCInfo[[#This Row],[IsActive]],Table_NCInfo[[#This Row],[Line]],\"\")","v":""},null,null,null,{"$f":"IFERROR(INDEX(Table_IntLookups[Zone'#],MATCH(Table_NCInfo[[#This Row],[Zone Description]],Table_IntLookups[Dropdown],0),0),\"\")","v":""},{"$f":"IF(Table_NCInfo[[#This Row],[Zone '#]]<>\"\",IFERROR(VLOOKUP(Table_NCInfo[[#This Row],[Zone '#]],Table_IntLookups[],'Facility Information'!$AB$4,FALSE) * (Table_NCInfo[[#This Row],[Fixture Qty '[P']]]*Table_NCInfo[[#This Row],[Fixture Wattage '[P']]])/SUMIFS(Table_NCInfo[Wattage '[P']],Table_NCInfo[Zone '#],Table_NCInfo[[#This Row],[Zone '#]]),0),\"\")","v":""},null,null,null,null,null,{"$f":"IF(Table_NCInfo[[#This Row],[Fixture Technology '[P']]]=\"LED Tube\",\"[Enter]\",\"\")","v":""},null,{"$f":"IFERROR(\nIFERROR(OFFSET(Table_TypWattage[[#Headers],[Technology]],MATCH(Table_NCInfo[[#This Row],[Fixture Technology '[P']]],Table_TypWattage[Technology],0)+MATCH(Table_NCInfo[[#This Row],[Fixture/ Lamp Wattage '[P']]],INDIRECT(SUBSTITUTE(SUBSTITUTE(Table_NCInfo[[#This Row],[Fixture Technology '[P']]],\" \",\"_\"),\"-\",\"_\")),0)-1,MATCH(Table_NCInfo[[#This Row],['# Lamps/ Fixture '[P']]],'Measure Tables'!$Q$2:$V$2,0)+1),IF(Table_NCInfo[[#This Row],[Schedule]]<>\"\",IF(AND(Table_NCInfo[[#This Row],['# Lamps/ Fixture '[P']]]>0,Table_NCInfo[[#This Row],[Fixture/ Lamp Wattage '[P']]]>0),Table_NCInfo[[#This Row],['# Lamps/ Fixture '[P']]]*Table_NCInfo[[#This Row],[Fixture/ Lamp Wattage '[P']]],Table_NCInfo[[#This Row],[Fixture/ Lamp Wattage '[P']]]),\"\")),\n\"\")","v":""},{"$f":"IF(AND(Table_NCInfo[[#This Row],[Fixture Qty '[P']]]<>\"\",Table_NCInfo[[#This Row],[Fixture Qty '[P']]]>0,Table_NCInfo[[#This Row],[Fixture Wattage '[P']]]<>\"\",Table_NCInfo[[#This Row],[Fixture Wattage '[P']]]>0),IFERROR(Table_NCInfo[[#This Row],[Fixture Qty '[P']]]*Table_NCInfo[[#This Row],[Fixture Wattage '[P']]],0),\"\")","v":""},null,null,{"$f":"IFERROR(IF(Table_NCInfo[[#This Row],[Interior/ Exterior]]<>\"\",\n  CONCATENATE(\n  Table_NCInfo[[#This Row],[Interior/ Exterior]],\": \",\n  Table_NCInfo[[#This Row],[Fixture Technology '[P']]],\n  \" - \",Table_NCInfo[[#This Row],[Fixture Type '[P']]],\" [\",\n  IF(AND(Table_NCInfo[[#This Row],['# Lamps/ Fixture '[P']]]<>\"\",Table_NCInfo[[#This Row],['# Lamps/ Fixture '[P']]]>0),Table_NCInfo[[#This Row],['# Lamps/ Fixture '[P']]] & \"L - \" & Table_NCInfo[[#This Row],[Fixture/ Lamp Wattage '[P']]] & \"W\" & IF(Table_NCInfo[[#This Row],[Ballast/ Driver '[P']]]<>\"\",\" - \" & Table_NCInfo[[#This Row],[Ballast/ Driver '[P']]],\"\"),Table_NCInfo[[#This Row],[Fixture Wattage '[P']]] & \"W\"),\"]\",\n  IF(AND(Table_NCInfo[[#This Row],[Controls '[P']]]<>\"\"),\" - \" & Table_NCInfo[[#This Row],[Controls '[P']]],\"\")\n  ),\n\"\"),\"\")","v":""}]
[{"$f":"IF($A40=\"Line\",1,MAX($A$4:$A40)+1)","v":37},{"$f":"COUNTA(Table_NCInfo[[#This Row],[Schedule]:[Notes]])>6","v":false},{"$f":"IF(Table_NCInfo[[#This Row],[IsActive]],Table_NCInfo[[#This Row],[Line]],\"\")","v":""},null,null,null,{"$f":"IFERROR(INDEX(Table_IntLookups[Zone'#],MATCH(Table_NCInfo[[#This Row],[Zone Description]],Table_IntLookups[Dropdown],0),0),\"\")","v":""},{"$f":"IF(Table_NCInfo[[#This Row],[Zone '#]]<>\"\",IFERROR(VLOOKUP(Table_NCInfo[[#This Row],[Zone '#]],Table_IntLookups[],'Facility Information'!$AB$4,FALSE) * (Table_NCInfo[[#This Row],[Fixture Qty '[P']]]*Table_NCInfo[[#This Row],[Fixture Wattage '[P']]])/SUMIFS(Table_NCInfo[Wattage '[P']],Table_NCInfo[Zone '#],Table_NCInfo[[#This Row],[Zone '#]]),0),\"\")","v":""},null,null,null,null,null,{"$f":"IF(Table_NCInfo[[#This Row],[Fixture Technology '[P']]]=\"LED Tube\",\"[Enter]\",\"\")","v":""},null,{"$f":"IFERROR(\nIFERROR(OFFSET(Table_TypWattage[[#Headers],[Technology]],MATCH(Table_NCInfo[[#This Row],[Fixture Technology '[P']]],Table_TypWattage[Technology],0)+MATCH(Table_NCInfo[[#This Row],[Fixture/ Lamp Wattage '[P']]],INDIRECT(SUBSTITUTE(SUBSTITUTE(Table_NCInfo[[#This Row],[Fixture Technology '[P']]],\" \",\"_\"),\"-\",\"_\")),0)-1,MATCH(Table_NCInfo[[#This Row],['# Lamps/ Fixture '[P']]],'Measure Tables'!$Q$2:$V$2,0)+1),IF(Table_NCInfo[[#This Row],[Schedule]]<>\"\",IF(AND(Table_NCInfo[[#This Row],['# Lamps/ Fixture '[P']]]>0,Table_NCInfo[[#This Row],[Fixture/ Lamp Wattage '[P']]]>0),Table_NCInfo[[#This Row],['# Lamps/ Fixture '[P']]]*Table_NCInfo[[#This Row],[Fixture/ Lamp Wattage '[P']]],Table_NCInfo[[#This Row],[Fixture/ Lamp Wattage '[P']]]),\"\")),\n\"\")","v":""},{"$f":"IF(AND(Table_NCInfo[[#This Row],[Fixture Qty '[P']]]<>\"\",Table_NCInfo[[#This Row],[Fixture Qty '[P']]]>0,Table_NCInfo[[#This Row],[Fixture Wattage '[P']]]<>\"\",Table_NCInfo[[#This Row],[Fixture Wattage '[P']]]>0),IFERROR(Table_NCInfo[[#This Row],[Fixture Qty '[P']]]*Table_NCInfo[[#This Row],[Fixture Wattage '[P']]],0),\"\")","v":""},null,null,{"$f":"IFERROR(IF(Table_NCInfo[[#This Row],[Interior/ Exterior]]<>\"\",\n  CONCATENATE(\n  Table_NCInfo[[#This Row],[Interior/ Exterior]],\": \",\n  Table_NCInfo[[#This Row],[Fixture Technology '[P']]],\n  \" - \",Table_NCInfo[[#This Row],[Fixture Type '[P']]],\" [\",\n  IF(AND(Table_NCInfo[[#This Row],['# Lamps/ Fixture '[P']]]<>\"\",Table_NCInfo[[#This Row],['# Lamps/ Fixture '[P']]]>0),Table_NCInfo[[#This Row],['# Lamps/ Fixture '[P']]] & \"L - \" & Table_NCInfo[[#This Row],[Fixture/ Lamp Wattage '[P']]] & \"W\" & IF(Table_NCInfo[[#This Row],[Ballast/ Driver '[P']]]<>\"\",\" - \" & Table_NCInfo[[#This Row],[Ballast/ Driver '[P']]],\"\"),Table_NCInfo[[#This Row],[Fixture Wattage '[P']]] & \"W\"),\"]\",\n  IF(AND(Table_NCInfo[[#This Row],[Controls '[P']]]<>\"\"),\" - \" & Table_NCInfo[[#This Row],[Controls '[P']]],\"\")\n  ),\n\"\"),\"\")","v":""}]
[{"$f":"IF($A41=\"Line\",1,MAX($A$4:$A41)+1)","v":38},{"$f":"COUNTA(Table_NCInfo[[#This Row],[Schedule]:[Notes]])>6","v":false},{"$f":"IF(Table_NCInfo[[#This Row],[IsActive]],Table_NCInfo[[#This Row],[Line]],\"\")","v":""},null,null,null,{"$f":"IFERROR(INDEX(Table_IntLookups[Zone'#],MATCH(Table_NCInfo[[#This Row],[Zone Description]],Table_IntLookups[Dropdown],0),0),\"\")","v":""},{"$f":"IF(Table_NCInfo[[#This Row],[Zone '#]]<>\"\",IFERROR(VLOOKUP(Table_NCInfo[[#This Row],[Zone '#]],Table_IntLookups[],'Facility Information'!$AB$4,FALSE) * (Table_NCInfo[[#This Row],[Fixture Qty '[P']]]*Table_NCInfo[[#This Row],[Fixture Wattage '[P']]])/SUMIFS(Table_NCInfo[Wattage '[P']],Table_NCInfo[Zone '#],Table_NCInfo[[#This Row],[Zone '#]]),0),\"\")","v":""},null,null,null,null,null,{"$f":"IF(Table_NCInfo[[#This Row],[Fixture Technology '[P']]]=\"LED Tube\",\"[Enter]\",\"\")","v":""},null,{"$f":"IFERROR(\nIFERROR(OFFSET(Table_TypWattage[[#Headers],[Technology]],MATCH(Table_NCInfo[[#This Row],[Fixture Technology '[P']]],Table_TypWattage[Technology],0)+MATCH(Table_NCInfo[[#This Row],[Fixture/ Lamp Wattage '[P']]],INDIRECT(SUBSTITUTE(SUBSTITUTE(Table_NCInfo[[#This Row],[Fixture Technology '[P']]],\" \",\"_\"),\"-\",\"_\")),0)-1,MATCH(Table_NCInfo[[#This Row],['# Lamps/ Fixture '[P']]],'Measure Tables'!$Q$2:$V$2,0)+1),IF(Table_NCInfo[[#This Row],[Schedule]]<>\"\",IF(AND(Table_NCInfo[[#This Row],['# Lamps/ Fixture '[P']]]>0,Table_NCInfo[[#This Row],[Fixture/ Lamp Wattage '[P']]]>0),Table_NCInfo[[#This Row],['# Lamps/ Fixture '[P']]]*Table_NCInfo[[#This Row],[Fixture/ Lamp Wattage '[P']]],Table_NCInfo[[#This Row],[Fixture/ Lamp Wattage '[P']]]),\"\")),\n\"\")","v":""},{"$f":"IF(AND(Table_NCInfo[[#This Row],[Fixture Qty '[P']]]<>\"\",Table_NCInfo[[#This Row],[Fixture Qty '[P']]]>0,Table_NCInfo[[#This Row],[Fixture Wattage '[P']]]<>\"\",Table_NCInfo[[#This Row],[Fixture Wattage '[P']]]>0),IFERROR(Table_NCInfo[[#This Row],[Fixture Qty '[P']]]*Table_NCInfo[[#This Row],[Fixture Wattage '[P']]],0),\"\")","v":""},null,null,{"$f":"IFERROR(IF(Table_NCInfo[[#This Row],[Interior/ Exterior]]<>\"\",\n  CONCATENATE(\n  Table_NCInfo[[#This Row],[Interior/ Exterior]],\": \",\n  Table_NCInfo[[#This Row],[Fixture Technology '[P']]],\n  \" - \",Table_NCInfo[[#This Row],[Fixture Type '[P']]],\" [\",\n  IF(AND(Table_NCInfo[[#This Row],['# Lamps/ Fixture '[P']]]<>\"\",Table_NCInfo[[#This Row],['# Lamps/ Fixture '[P']]]>0),Table_NCInfo[[#This Row],['# Lamps/ Fixture '[P']]] & \"L - \" & Table_NCInfo[[#This Row],[Fixture/ Lamp Wattage '[P']]] & \"W\" & IF(Table_NCInfo[[#This Row],[Ballast/ Driver '[P']]]<>\"\",\" - \" & Table_NCInfo[[#This Row],[Ballast/ Driver '[P']]],\"\"),Table_NCInfo[[#This Row],[Fixture Wattage '[P']]] & \"W\"),\"]\",\n  IF(AND(Table_NCInfo[[#This Row],[Controls '[P']]]<>\"\"),\" - \" & Table_NCInfo[[#This Row],[Controls '[P']]],\"\")\n  ),\n\"\"),\"\")","v":""}]
[{"$f":"IF($A42=\"Line\",1,MAX($A$4:$A42)+1)","v":39},{"$f":"COUNTA(Table_NCInfo[[#This Row],[Schedule]:[Notes]])>6","v":false},{"$f":"IF(Table_NCInfo[[#This Row],[IsActive]],Table_NCInfo[[#This Row],[Line]],\"\")","v":""},null,null,null,{"$f":"IFERROR(INDEX(Table_IntLookups[Zone'#],MATCH(Table_NCInfo[[#This Row],[Zone Description]],Table_IntLookups[Dropdown],0),0),\"\")","v":""},{"$f":"IF(Table_NCInfo[[#This Row],[Zone '#]]<>\"\",IFERROR(VLOOKUP(Table_NCInfo[[#This Row],[Zone '#]],Table_IntLookups[],'Facility Information'!$AB$4,FALSE) * (Table_NCInfo[[#This Row],[Fixture Qty '[P']]]*Table_NCInfo[[#This Row],[Fixture Wattage '[P']]])/SUMIFS(Table_NCInfo[Wattage '[P']],Table_NCInfo[Zone '#],Table_NCInfo[[#This Row],[Zone '#]]),0),\"\")","v":""},null,null,null,null,null,{"$f":"IF(Table_NCInfo[[#This Row],[Fixture Technology '[P']]]=\"LED Tube\",\"[Enter]\",\"\")","v":""},null,{"$f":"IFERROR(\nIFERROR(OFFSET(Table_TypWattage[[#Headers],[Technology]],MATCH(Table_NCInfo[[#This Row],[Fixture Technology '[P']]],Table_TypWattage[Technology],0)+MATCH(Table_NCInfo[[#This Row],[Fixture/ Lamp Wattage '[P']]],INDIRECT(SUBSTITUTE(SUBSTITUTE(Table_NCInfo[[#This Row],[Fixture Technology '[P']]],\" \",\"_\"),\"-\",\"_\")),0)-1,MATCH(Table_NCInfo[[#This Row],['# Lamps/ Fixture '[P']]],'Measure Tables'!$Q$2:$V$2,0)+1),IF(Table_NCInfo[[#This Row],[Schedule]]<>\"\",IF(AND(Table_NCInfo[[#This Row],['# Lamps/ Fixture '[P']]]>0,Table_NCInfo[[#This Row],[Fixture/ Lamp Wattage '[P']]]>0),Table_NCInfo[[#This Row],['# Lamps/ Fixture '[P']]]*Table_NCInfo[[#This Row],[Fixture/ Lamp Wattage '[P']]],Table_NCInfo[[#This Row],[Fixture/ Lamp Wattage '[P']]]),\"\")),\n\"\")","v":""},{"$f":"IF(AND(Table_NCInfo[[#This Row],[Fixture Qty '[P']]]<>\"\",Table_NCInfo[[#This Row],[Fixture Qty '[P']]]>0,Table_NCInfo[[#This Row],[Fixture Wattage '[P']]]<>\"\",Table_NCInfo[[#This Row],[Fixture Wattage '[P']]]>0),IFERROR(Table_NCInfo[[#This Row],[Fixture Qty '[P']]]*Table_NCInfo[[#This Row],[Fixture Wattage '[P']]],0),\"\")","v":""},null,null,{"$f":"IFERROR(IF(Table_NCInfo[[#This Row],[Interior/ Exterior]]<>\"\",\n  CONCATENATE(\n  Table_NCInfo[[#This Row],[Interior/ Exterior]],\": \",\n  Table_NCInfo[[#This Row],[Fixture Technology '[P']]],\n  \" - \",Table_NCInfo[[#This Row],[Fixture Type '[P']]],\" [\",\n  IF(AND(Table_NCInfo[[#This Row],['# Lamps/ Fixture '[P']]]<>\"\",Table_NCInfo[[#This Row],['# Lamps/ Fixture '[P']]]>0),Table_NCInfo[[#This Row],['# Lamps/ Fixture '[P']]] & \"L - \" & Table_NCInfo[[#This Row],[Fixture/ Lamp Wattage '[P']]] & \"W\" & IF(Table_NCInfo[[#This Row],[Ballast/ Driver '[P']]]<>\"\",\" - \" & Table_NCInfo[[#This Row],[Ballast/ Driver '[P']]],\"\"),Table_NCInfo[[#This Row],[Fixture Wattage '[P']]] & \"W\"),\"]\",\n  IF(AND(Table_NCInfo[[#This Row],[Controls '[P']]]<>\"\"),\" - \" & Table_NCInfo[[#This Row],[Controls '[P']]],\"\")\n  ),\n\"\"),\"\")","v":""}]
[{"$f":"IF($A43=\"Line\",1,MAX($A$4:$A43)+1)","v":40},{"$f":"COUNTA(Table_NCInfo[[#This Row],[Schedule]:[Notes]])>6","v":false},{"$f":"IF(Table_NCInfo[[#This Row],[IsActive]],Table_NCInfo[[#This Row],[Line]],\"\")","v":""},null,null,null,{"$f":"IFERROR(INDEX(Table_IntLookups[Zone'#],MATCH(Table_NCInfo[[#This Row],[Zone Description]],Table_IntLookups[Dropdown],0),0),\"\")","v":""},{"$f":"IF(Table_NCInfo[[#This Row],[Zone '#]]<>\"\",IFERROR(VLOOKUP(Table_NCInfo[[#This Row],[Zone '#]],Table_IntLookups[],'Facility Information'!$AB$4,FALSE) * (Table_NCInfo[[#This Row],[Fixture Qty '[P']]]*Table_NCInfo[[#This Row],[Fixture Wattage '[P']]])/SUMIFS(Table_NCInfo[Wattage '[P']],Table_NCInfo[Zone '#],Table_NCInfo[[#This Row],[Zone '#]]),0),\"\")","v":""},null,null,null,null,null,{"$f":"IF(Table_NCInfo[[#This Row],[Fixture Technology '[P']]]=\"LED Tube\",\"[Enter]\",\"\")","v":""},null,{"$f":"IFERROR(\nIFERROR(OFFSET(Table_TypWattage[[#Headers],[Technology]],MATCH(Table_NCInfo[[#This Row],[Fixture Technology '[P']]],Table_TypWattage[Technology],0)+MATCH(Table_NCInfo[[#This Row],[Fixture/ Lamp Wattage '[P']]],INDIRECT(SUBSTITUTE(SUBSTITUTE(Table_NCInfo[[#This Row],[Fixture Technology '[P']]],\" \",\"_\"),\"-\",\"_\")),0)-1,MATCH(Table_NCInfo[[#This Row],['# Lamps/ Fixture '[P']]],'Measure Tables'!$Q$2:$V$2,0)+1),IF(Table_NCInfo[[#This Row],[Schedule]]<>\"\",IF(AND(Table_NCInfo[[#This Row],['# Lamps/ Fixture '[P']]]>0,Table_NCInfo[[#This Row],[Fixture/ Lamp Wattage '[P']]]>0),Table_NCInfo[[#This Row],['# Lamps/ Fixture '[P']]]*Table_NCInfo[[#This Row],[Fixture/ Lamp Wattage '[P']]],Table_NCInfo[[#This Row],[Fixture/ Lamp Wattage '[P']]]),\"\")),\n\"\")","v":""},{"$f":"IF(AND(Table_NCInfo[[#This Row],[Fixture Qty '[P']]]<>\"\",Table_NCInfo[[#This Row],[Fixture Qty '[P']]]>0,Table_NCInfo[[#This Row],[Fixture Wattage '[P']]]<>\"\",Table_NCInfo[[#This Row],[Fixture Wattage '[P']]]>0),IFERROR(Table_NCInfo[[#This Row],[Fixture Qty '[P']]]*Table_NCInfo[[#This Row],[Fixture Wattage '[P']]],0),\"\")","v":""},null,null,{"$f":"IFERROR(IF(Table_NCInfo[[#This Row],[Interior/ Exterior]]<>\"\",\n  CONCATENATE(\n  Table_NCInfo[[#This Row],[Interior/ Exterior]],\": \",\n  Table_NCInfo[[#This Row],[Fixture Technology '[P']]],\n  \" - \",Table_NCInfo[[#This Row],[Fixture Type '[P']]],\" [\",\n  IF(AND(Table_NCInfo[[#This Row],['# Lamps/ Fixture '[P']]]<>\"\",Table_NCInfo[[#This Row],['# Lamps/ Fixture '[P']]]>0),Table_NCInfo[[#This Row],['# Lamps/ Fixture '[P']]] & \"L - \" & Table_NCInfo[[#This Row],[Fixture/ Lamp Wattage '[P']]] & \"W\" & IF(Table_NCInfo[[#This Row],[Ballast/ Driver '[P']]]<>\"\",\" - \" & Table_NCInfo[[#This Row],[Ballast/ Driver '[P']]],\"\"),Table_NCInfo[[#This Row],[Fixture Wattage '[P']]] & \"W\"),\"]\",\n  IF(AND(Table_NCInfo[[#This Row],[Controls '[P']]]<>\"\"),\" - \" & Table_NCInfo[[#This Row],[Controls '[P']]],\"\")\n  ),\n\"\"),\"\")","v":""}]

{"sheet":"New Construction Inspection","index":9,"n_rows":54,"n_cols":21,"rows_kept":54,"cut":false,"hidden":true,"merged":[[1,8,1,18],[1,0,1,6]]}
[null,null,null,null,"HIDE","HIDE",null,null,null,null,null,null,null,null,null,null,"HIDE"]
["Facility Information",null,null,null,null,null,null,null,"Proposed Fixture Information [P]"]
[1,4,5,6,7,8,9,null,11,12,13,14,15,16,18,19,20,21,22]
["Line","Schedule","Interior/ Exterior","Zone Description","Zone #","Baseline Wattage","Space Description","1","Fixture Qty [P]","Fixture Technology [P]","# Lamps/ Fixture [P]","Fixture/ Lamp Wattage [P]","Ballast/ Driver [P]","Fixture Wattage [P]","Fixture Type [P]","Controls [P]","Fixture Description [P]","Manufacturer [P]","Model Number [P]","Column1","Notes"]
[null,{"$f":"IFERROR(IF(OR(Table_NCInspection[[#This Row],[Line]]=\"\",INDEX(Table_NCInfo[],Table_NCInspection[[#This Row],[Line]],B$3)=\"\"),\"\",INDEX(Table_NCInfo[],Table_NCInspection[[#This Row],[Line]],B$3)),\"\")","v":""},{"$f":"IFERROR(IF(OR(Table_NCInspection[[#This Row],[Line]]=\"\",INDEX(Table_NCInfo[],Table_NCInspection[[#This Row],[Line]],C$3)=\"\"),\"\",INDEX(Table_NCInfo[],Table_NCInspection[[#This Row],[Line]],C$3)),\"\")","v":""},{"$f":"IFERROR(IF(OR(Table_NCInspection[[#This Row],[Line]]=\"\",INDEX(Table_NCInfo[],Table_NCInspection[[#This Row],[Line]],D$3)=\"\"),\"\",INDEX(Table_NCInfo[],Table_NCInspection[[#This Row],[Line]],D$3)),\"\")","v":""},{"$f":"IF(OR(Table_NCInspection[[#This Row],[Line]]<=0,IFERROR(INDEX(Table_NCInfo[],$A5,E$3),\"\")=\"\"),\"\",IF(Table_NCInspection[[#This Row],[Zone Description]]=INDEX(Table_NCInfo[],Table_NCInspection[[#This Row],[Line]],$D$3),INDEX(Table_NCInfo[],Table_NCInspection[[#This Row],[Line]],E$3),INDEX(Table_IntLookups[Zone'#],MATCH(Table_NCInspection[[#This Row],[Zone Description]],Table_IntLookups[Dropdown],0))))","v":""},{"$f":"IF(OR(Table_NCInspection[[#This Row],[Line]]<=0,IFERROR(INDEX(Table_NCInfo[],Table_NCInspection[[#This Row],[Line]],F$3),\"\")=\"\"),\"\",IF(Table_NCInspection[[#This Row],[Zone Description]]=INDEX(Table_NCInfo[],Table_NCInspection[[#This Row],[Line]],$D$3),INDEX(Table_NCInfo[],Table_NCInspection[[#This Row],[Line]],F$3),IFERROR(VLOOKUP(Table_NCInspection[[#This Row],[Zone '#]],Table_IntLookups[],'Facility Information'!$AB$4,FALSE),0)*INDEX(Table_NCInfo[Baseline Wattage],MATCH(Table_NCInspection[[#This Row],[Line]],Table_NCInfo[Line],0)/VLOOKUP(INDEX(Table_NCInfo[Zone '#],MATCH(Table_NCInspection[[#This Row],[Line]],Table_NCInfo[Line],0)),Table_IntLookups[],'Facility Information'!$AB$4,FALSE),0)))","v":""},{"$f":"IFERROR(IF(OR(Table_NCInspection[[#This Row],[Line]]=\"\",INDEX(Table_NCInfo[],Table_NCInspection[[#This Row],[Line]],G$3)=\"\"),\"\",INDEX(Table_NCInfo[],Table_NCInspection[[#This Row],[Line]],G$3)),\"\")","v":""},null,{"$f":"IFERROR(IF(OR(Table_NCInspection[[#This Row],[Line]]=\"\",INDEX(Table_NCInfo[],Table_NCInspection[[#This Row],[Line]],I$3)=\"\"),\"\",INDEX(Table_NCInfo[],Table_NCInspection[[#This Row],[Line]],I$3)),\"\")","v":""},{"$f":"IFERROR(IF(OR(Table_NCInspection[[#This Row],[Line]]=\"\",INDEX(Table_NCInfo[],Table_NCInspection[[#This Row],[Line]],J$3)=\"\"),\"\",INDEX(Table_NCInfo[],Table_NCInspection[[#This Row],[Line]],J$3)),\"\")","v":""},{"$f":"IFERROR(IF(OR(Table_NCInspection[[#This Row],[Line]]=\"\",INDEX(Table_NCInfo[],Table_NCInspection[[#This Row],[Line]],K$3)=\"\"),\"\",INDEX(Table_NCInfo[],Table_NCInspection[[#This Row],[Line]],K$3)),\"\")","v":""},{"$f":"IFERROR(IF(OR(Table_NCInspection[[#This Row],[Line]]=\"\",INDEX(Table_NCInfo[],Table_NCInspection[[#This Row],[Line]],L$3)=\"\"),\"\",INDEX(Table_NCInfo[],Table_NCInspection[[#This Row],[Line]],L$3)),\"\")","v":""},{"$f":"IFERROR(IF(OR(Table_NCInspection[[#This Row],[Line]]=\"\",INDEX(Table_NCInfo[],Table_NCInspection[[#This Row],[Line]],M$3)=\"\"),\"\",INDEX(Table_NCInfo[],Table_NCInspection[[#This Row],[Line]],M$3)),\"\")","v":""},{"$f":"IFERROR(\nIFERROR(OFFSET(Table_TypWattage[[#Headers],[Technology]],MATCH($J5,Table_TypWattage[Technology],0)+MATCH($L5,INDIRECT(SUBSTITUTE(SUBSTITUTE($J5,\" \",\"_\"),\"-\",\"_\")),0)-1,MATCH($K5,'Measure Tables'!$Q$2:$V$2,0)+1),IF(Table_NCInspection[[#This Row],[Line]]<>\"\",IF(AND(Table_NCInspection[[#This Row],['# Lamps/ Fixture '[P']]]<>\"\",$K5>0,$L5>0),$K5*$L5,$L5),\"\")),\n\"\")","v":""},{"$f":"IFERROR(IF(OR(Table_NCInspection[[#This Row],[Line]]=\"\",INDEX(Table_NCInfo[],Table_NCInspection[[#This Row],[Line]],O$3)=\"\"),\"\",INDEX(Table_NCInfo[],Table_NCInspection[[#This Row],[Line]],O$3)),\"\")","v":""},{"$f":"IFERROR(IF(OR(Table_NCInspection[[#This Row],[Line]]=\"\",INDEX(Table_NCInfo[],Table_NCInspection[[#This Row],[Line]],P$3)=\"\"),\"\",INDEX(Table_NCInfo[],Table_NCInspection[[#This Row],[Line]],P$3)),\"\")","v":""},{"$f":"IFERROR(IF(Table_NCInspection[[#This Row],[Interior/ Exterior]]<>\"\",\n  CONCATENATE(\n  Table_NCInspection[[#This Row],[Interior/ Exterior]],\": \",\n  Table_NCInspection[[#This Row],[Fixture Technology '[P']]],\n  \" - \",Table_NCInspection[[#This Row],[Fixture Type '[P']]],\" [\",\n  IF(AND(Table_NCInspection[[#This Row],['# Lamps/ Fixture '[P']]]<>\"\",Table_NCInspection[[#This Row],['# Lamps/ Fixture '[P']]]>0),Table_NCInspection[[#This Row],['# Lamps/ Fixture '[P']]] & \"L - \" & Table_NCInspection[[#This Row],[Fixture/ Lamp Wattage '[P']]] & \"W\" & IF(Table_NCInspection[[#This Row],[Ballast/ Driver '[P']]]<>\"\",\" - \" & Table_NCInspection[[#This Row],[Ballast/ Driver '[P']]],\"\"),Table_NCInspection[[#This Row],[Fixture Wattage '[P']]] & \"W\"),\"]\",\n  IF(AND(Table_NCInspection[[#This Row],[Controls '[P']]]<>\"\"),\" - \" & Table_NCInspection[[#This Row],[Controls '[P']]],\"\")\n  ),\n\"\"),\"\")","v":""},{"$f":"IFERROR(IF(OR(Table_NCInspection[[#This Row],[Line]]=\"\",INDEX(Table_NCInfo[],Table_NCInspection[[#This Row],[Line]],R$3)=\"\"),\"\",INDEX(Table_NCInfo[],Table_NCInspection[[#This Row],[Line]],R$3)),\"\")","v":""},{"$f":"IFERROR(IF(OR(Table_NCInspection[[#This Row],[Line]]=\"\",INDEX(Table_NCInfo[],Table_NCInspection[[#This Row],[Line]],S$3)=\"\"),\"\",INDEX(Table_NCInfo[],Table_NCInspection[[#This Row],[Line]],S$3)),\"\")","v":""}]
[null,{"$f":"IFERROR(IF(OR(Table_NCInspection[[#This Row],[Line]]=\"\",INDEX(Table_NCInfo[],Table_NCInspection[[#This Row],[Line]],B$3)=\"\"),\"\",INDEX(Table_NCInfo[],Table_NCInspection[[#This Row],[Line]],B$3)),\"\")","v":""},{"$f":"IFERROR(IF(OR(Table_NCInspection[[#This Row],[Line]]=\"\",INDEX(Table_NCInfo[],Table_NCInspection[[#This Row],[Line]],C$3)=\"\"),\"\",INDEX(Table_NCInfo[],Table_NCInspection[[#This Row],[Line]],C$3)),\"\")","v":""},{"$f":"IFERROR(IF(OR(Table_NCInspection[[#This Row],[Line]]=\"\",INDEX(Table_NCInfo[],Table_NCInspection[[#This Row],[Line]],D$3)=\"\"),\"\",INDEX(Table_NCInfo[],Table_NCInspection[[#This Row],[Line]],D$3)),\"\")","v":""},{"$f":"IF(OR(Table_NCInspection[[#This Row],[Line]]<=0,IFERROR(INDEX(Table_NCInfo[],$A6,E$3),\"\")=\"\"),\"\",IF(Table_NCInspection[[#This Row],[Zone Description]]=INDEX(Table_NCInfo[],Table_NCInspection[[#This Row],[Line]],$D$3),INDEX(Table_NCInfo[],Table_NCInspection[[#This Row],[Line]],E$3),INDEX(Table_IntLookups[Zone'#],MATCH(Table_NCInspection[[#This Row],[Zone Description]],Table_IntLookups[Dropdown],0))))","v":""},{"$f":"IF(OR(Table_NCInspection[[#This Row],[Line]]<=0,IFERROR(INDEX(Table_NCInfo[],Table_NCInspection[[#This Row],[Line]],F$3),\"\")=\"\"),\"\",IF(Table_NCInspection[[#This Row],[Zone Description]]=INDEX(Table_NCInfo[],Table_NCInspection[[#This Row],[Line]],$D$3),INDEX(Table_NCInfo[],Table_NCInspection[[#This Row],[Line]],F$3),IFERROR(VLOOKUP(Table_NCInspection[[#This Row],[Zone '#]],Table_IntLookups[],'Facility Information'!$AB$4,FALSE),0)*INDEX(Table_NCInfo[Baseline Wattage],MATCH(Table_NCInspection[[#This Row],[Line]],Table_NCInfo[Line],0)/VLOOKUP(INDEX(Table_NCInfo[Zone '#],MATCH(Table_NCInspection[[#This Row],[Line]],Table_NCInfo[Line],0)),Table_IntLookups[],'Facility Information'!$AB$4,FALSE),0)))","v":""},{"$f":"IFERROR(IF(OR(Table_NCInspection[[#This Row],[Line]]=\"\",INDEX(Table_NCInfo[],Table_NCInspection[[#This Row],[Line]],G$3)=\"\"),\"\",INDEX(Table_NCInfo[],Table_NCInspection[[#This Row],[Line]],G$3)),\"\")","v":""},null,{"$f":"IFERROR(IF(OR(Table_NCInspection[[#This Row],[Line]]=\"\",INDEX(Table_NCInfo[],Table_NCInspection[[#This Row],[Line]],I$3)=\"\"),\"\",INDEX(Table_NCInfo[],Table_NCInspection[[#This Row],[Line]],I$3)),\"\")","v":""},{"$f":"IFERROR(IF(OR(Table_NCInspection[[#This Row],[Line]]=\"\",INDEX(Table_NCInfo[],Table_NCInspection[[#This Row],[Line]],J$3)=\"\"),\"\",INDEX(Table_NCInfo[],Table_NCInspection[[#This Row],[Line]],J$3)),\"\")","v":""},{"$f":"IFERROR(IF(OR(Table_NCInspection[[#This Row],[Line]]=\"\",INDEX(Table_NCInfo[],Table_NCInspection[[#This Row],[Line]],K$3)=\"\"),\"\",INDEX(Table_NCInfo[],Table_NCInspection[[#This Row],[Line]],K$3)),\"\")","v":""},{"$f":"IFERROR(IF(OR(Table_NCInspection[[#This Row],[Line]]=\"\",INDEX(Table_NCInfo[],Table_NCInspection[[#This Row],[Line]],L$3)=\"\"),\"\",INDEX(Table_NCInfo[],Table_NCInspection[[#This Row],[Line]],L$3)),\"\")","v":""},{"$f":"IFERROR(IF(OR(Table_NCInspection[[#This Row],[Line]]=\"\",INDEX(Table_NCInfo[],Table_NCInspection[[#This Row],[Line]],M$3)=\"\"),\"\",INDEX(Table_NCInfo[],Table_NCInspection[[#This Row],[Line]],M$3)),\"\")","v":""},{"$f":"IFERROR(\nIFERROR(OFFSET(Table_TypWattage[[#Headers],[Technology]],MATCH($J6,Table_TypWattage[Technology],0)+MATCH($L6,INDIRECT(SUBSTITUTE(SUBSTITUTE($J6,\" \",\"_\"),\"-\",\"_\")),0)-1,MATCH($K6,'Measure Tables'!$Q$2:$V$2,0)+1),IF(Table_NCInspection[[#This Row],[Line]]<>\"\",IF(AND(Table_NCInspection[[#This Row],['# Lamps/ Fixture '[P']]]<>\"\",$K6>0,$L6>0),$K6*$L6,$L6),\"\")),\n\"\")","v":""},{"$f":"IFERROR(IF(OR(Table_NCInspection[[#This Row],[Line]]=\"\",INDEX(Table_NCInfo[],Table_NCInspection[[#This Row],[Line]],O$3)=\"\"),\"\",INDEX(Table_NCInfo[],Table_NCInspection[[#This Row],[Line]],O$3)),\"\")","v":""},{"$f":"IFERROR(IF(OR(Table_NCInspection[[#This Row],[Line]]=\"\",INDEX(Table_NCInfo[],Table_NCInspection[[#This Row],[Line]],P$3)=\"\"),\"\",INDEX(Table_NCInfo[],Table_NCInspection[[#This Row],[Line]],P$3)),\"\")","v":""},{"$f":"IFERROR(IF(Table_NCInspection[[#This Row],[Interior/ Exterior]]<>\"\",\n  CONCATENATE(\n  Table_NCInspection[[#This Row],[Interior/ Exterior]],\": \",\n  Table_NCInspection[[#This Row],[Fixture Technology '[P']]],\n  \" - \",Table_NCInspection[[#This Row],[Fixture Type '[P']]],\" [\",\n  IF(AND(Table_NCInspection[[#This Row],['# Lamps/ Fixture '[P']]]<>\"\",Table_NCInspection[[#This Row],['# Lamps/ Fixture '[P']]]>0),Table_NCInspection[[#This Row],['# Lamps/ Fixture '[P']]] & \"L - \" & Table_NCInspection[[#This Row],[Fixture/ Lamp Wattage '[P']]] & \"W\" & IF(Table_NCInspection[[#This Row],[Ballast/ Driver '[P']]]<>\"\",\" - \" & Table_NCInspection[[#This Row],[Ballast/ Driver '[P']]],\"\"),Table_NCInspection[[#This Row],[Fixture Wattage '[P']]] & \"W\"),\"]\",\n  IF(AND(Table_NCInspection[[#This Row],[Controls '[P']]]<>\"\"),\" - \" & Table_NCInspection[[#This Row],[Controls '[P']]],\"\")\n  ),\n\"\"),\"\")","v":""},{"$f":"IFERROR(IF(OR(Table_NCInspection[[#This Row],[Line]]=\"\",INDEX(Table_NCInfo[],Table_NCInspection[[#This Row],[Line]],R$3)=\"\"),\"\",INDEX(Table_NCInfo[],Table_NCInspection[[#This Row],[Line]],R$3)),\"\")","v":""},{"$f":"IFERROR(IF(OR(Table_NCInspection[[#This Row],[Line]]=\"\",INDEX(Table_NCInfo[],Table_NCInspection[[#This Row],[Line]],S$3)=\"\"),\"\",INDEX(Table_NCInfo[],Table_NCInspection[[#This Row],[Line]],S$3)),\"\")","v":""}]
[null,{"$f":"IFERROR(IF(OR(Table_NCInspection[[#This Row],[Line]]=\"\",INDEX(Table_NCInfo[],Table_NCInspection[[#This Row],[Line]],B$3)=\"\"),\"\",INDEX(Table_NCInfo[],Table_NCInspection[[#This Row],[Line]],B$3)),\"\")","v":""},{"$f":"IFERROR(IF(OR(Table_NCInspection[[#This Row],[Line]]=\"\",INDEX(Table_NCInfo[],Table_NCInspection[[#This Row],[Line]],C$3)=\"\"),\"\",INDEX(Table_NCInfo[],Table_NCInspection[[#This Row],[Line]],C$3)),\"\")","v":""},{"$f":"IFERROR(IF(OR(Table_NCInspection[[#This Row],[Line]]=\"\",INDEX(Table_NCInfo[],Table_NCInspection[[#This Row],[Line]],D$3)=\"\"),\"\",INDEX(Table_NCInfo[],Table_NCInspection[[#This Row],[Line]],D$3)),\"\")","v":""},{"$f":"IF(OR(Table_NCInspection[[#This Row],[Line]]<=0,IFERROR(INDEX(Table_NCInfo[],$A7,E$3),\"\")=\"\"),\"\",IF(Table_NCInspection[[#This Row],[Zone Description]]=INDEX(Table_NCInfo[],Table_NCInspection[[#This Row],[Line]],$D$3),INDEX(Table_NCInfo[],Table_NCInspection[[#This Row],[Line]],E$3),INDEX(Table_IntLookups[Zone'#],MATCH(Table_NCInspection[[#This Row],[Zone Description]],Table_IntLookups[Dropdown],0))))","v":""},{"$f":"IF(OR(Table_NCInspection[[#This Row],[Line]]<=0,IFERROR(INDEX(Table_NCInfo[],Table_NCInspection[[#This Row],[Line]],F$3),\"\")=\"\"),\"\",IF(Table_NCInspection[[#This Row],[Zone Description]]=INDEX(Table_NCInfo[],Table_NCInspection[[#This Row],[Line]],$D$3),INDEX(Table_NCInfo[],Table_NCInspection[[#This Row],[Line]],F$3),IFERROR(VLOOKUP(Table_NCInspection[[#This Row],[Zone '#]],Table_IntLookups[],'Facility Information'!$AB$4,FALSE),0)*INDEX(Table_NCInfo[Baseline Wattage],MATCH(Table_NCInspection[[#This Row],[Line]],Table_NCInfo[Line],0)/VLOOKUP(INDEX(Table_NCInfo[Zone '#],MATCH(Table_NCInspection[[#This Row],[Line]],Table_NCInfo[Line],0)),Table_IntLookups[],'Facility Information'!$AB$4,FALSE),0)))","v":""},{"$f":"IFERROR(IF(OR(Table_NCInspection[[#This Row],[Line]]=\"\",INDEX(Table_NCInfo[],Table_NCInspection[[#This Row],[Line]],G$3)=\"\"),\"\",INDEX(Table_NCInfo[],Table_NCInspection[[#This Row],[Line]],G$3)),\"\")","v":""},null,{"$f":"IFERROR(IF(OR(Table_NCInspection[[#This Row],[Line]]=\"\",INDEX(Table_NCInfo[],Table_NCInspection[[#This Row],[Line]],I$3)=\"\"),\"\",INDEX(Table_NCInfo[],Table_NCInspection[[#This Row],[Line]],I$3)),\"\")","v":""},{"$f":"IFERROR(IF(OR(Table_NCInspection[[#This Row],[Line]]=\"\",INDEX(Table_NCInfo[],Table_NCInspection[[#This Row],[Line]],J$3)=\"\"),\"\",INDEX(Table_NCInfo[],Table_NCInspection[[#This Row],[Line]],J$3)),\"\")","v":""},{"$f":"IFERROR(IF(OR(Table_NCInspection[[#This Row],[Line]]=\"\",INDEX(Table_NCInfo[],Table_NCInspection[[#This Row],[Line]],K$3)=\"\"),\"\",INDEX(Table_NCInfo[],Table_NCInspection[[#This Row],[Line]],K$3)),\"\")","v":""},{"$f":"IFERROR(IF(OR(Table_NCInspection[[#This Row],[Line]]=\"\",INDEX(Table_NCInfo[],Table_NCInspection[[#This Row],[Line]],L$3)=\"\"),\"\",INDEX(Table_NCInfo[],Table_NCInspection[[#This Row],[Line]],L$3)),\"\")","v":""},{"$f":"IFERROR(IF(OR(Table_NCInspection[[#This Row],[Line]]=\"\",INDEX(Table_NCInfo[],Table_NCInspection[[#This Row],[Line]],M$3)=\"\"),\"\",INDEX(Table_NCInfo[],Table_NCInspection[[#This Row],[Line]],M$3)),\"\")","v":""},{"$f":"IFERROR(\nIFERROR(OFFSET(Table_TypWattage[[#Headers],[Technology]],MATCH($J7,Table_TypWattage[Technology],0)+MATCH($L7,INDIRECT(SUBSTITUTE(SUBSTITUTE($J7,\" \",\"_\"),\"-\",\"_\")),0)-1,MATCH($K7,'Measure Tables'!$Q$2:$V$2,0)+1),IF(Table_NCInspection[[#This Row],[Line]]<>\"\",IF(AND(Table_NCInspection[[#This Row],['# Lamps/ Fixture '[P']]]<>\"\",$K7>0,$L7>0),$K7*$L7,$L7),\"\")),\n\"\")","v":""},{"$f":"IFERROR(IF(OR(Table_NCInspection[[#This Row],[Line]]=\"\",INDEX(Table_NCInfo[],Table_NCInspection[[#This Row],[Line]],O$3)=\"\"),\"\",INDEX(Table_NCInfo[],Table_NCInspection[[#This Row],[Line]],O$3)),\"\")","v":""},{"$f":"IFERROR(IF(OR(Table_NCInspection[[#This Row],[Line]]=\"\",INDEX(Table_NCInfo[],Table_NCInspection[[#This Row],[Line]],P$3)=\"\"),\"\",INDEX(Table_NCInfo[],Table_NCInspection[[#This Row],[Line]],P$3)),\"\")","v":""},{"$f":"IFERROR(IF(Table_NCInspection[[#This Row],[Interior/ Exterior]]<>\"\",\n  CONCATENATE(\n  Table_NCInspection[[#This Row],[Interior/ Exterior]],\": \",\n  Table_NCInspection[[#This Row],[Fixture Technology '[P']]],\n  \" - \",Table_NCInspection[[#This Row],[Fixture Type '[P']]],\" [\",\n  IF(AND(Table_NCInspection[[#This Row],['# Lamps/ Fixture '[P']]]<>\"\",Table_NCInspection[[#This Row],['# Lamps/ Fixture '[P']]]>0),Table_NCInspection[[#This Row],['# Lamps/ Fixture '[P']]] & \"L - \" & Table_NCInspection[[#This Row],[Fixture/ Lamp Wattage '[P']]] & \"W\" & IF(Table_NCInspection[[#This Row],[Ballast/ Driver '[P']]]<>\"\",\" - \" & Table_NCInspection[[#This Row],[Ballast/ Driver '[P']]],\"\"),Table_NCInspection[[#This Row],[Fixture Wattage '[P']]] & \"W\"),\"]\",\n  IF(AND(Table_NCInspection[[#This Row],[Controls '[P']]]<>\"\"),\" - \" & Table_NCInspection[[#This Row],[Controls '[P']]],\"\")\n  ),\n\"\"),\"\")","v":""},{"$f":"IFERROR(IF(OR(Table_NCInspection[[#This Row],[Line]]=\"\",INDEX(Table_NCInfo[],Table_NCInspection[[#This Row],[Line]],R$3)=\"\"),\"\",INDEX(Table_NCInfo[],Table_NCInspection[[#This Row],[Line]],R$3)),\"\")","v":""},{"$f":"IFERROR(IF(OR(Table_NCInspection[[#This Row],[Line]]=\"\",INDEX(Table_NCInfo[],Table_NCInspection[[#This Row],[Line]],S$3)=\"\"),\"\",INDEX(Table_NCInfo[],Table_NCInspection[[#This Row],[Line]],S$3)),\"\")","v":""}]
[null,{"$f":"IFERROR(IF(OR(Table_NCInspection[[#This Row],[Line]]=\"\",INDEX(Table_NCInfo[],Table_NCInspection[[#This Row],[Line]],B$3)=\"\"),\"\",INDEX(Table_NCInfo[],Table_NCInspection[[#This Row],[Line]],B$3)),\"\")","v":""},{"$f":"IFERROR(IF(OR(Table_NCInspection[[#This Row],[Line]]=\"\",INDEX(Table_NCInfo[],Table_NCInspection[[#This Row],[Line]],C$3)=\"\"),\"\",INDEX(Table_NCInfo[],Table_NCInspection[[#This Row],[Line]],C$3)),\"\")","v":""},{"$f":"IFERROR(IF(OR(Table_NCInspection[[#This Row],[Line]]=\"\",INDEX(Table_NCInfo[],Table_NCInspection[[#This Row],[Line]],D$3)=\"\"),\"\",INDEX(Table_NCInfo[],Table_NCInspection[[#This Row],[Line]],D$3)),\"\")","v":""},{"$f":"IF(OR(Table_NCInspection[[#This Row],[Line]]<=0,IFERROR(INDEX(Table_NCInfo[],$A8,E$3),\"\")=\"\"),\"\",IF(Table_NCInspection[[#This Row],[Zone Description]]=INDEX(Table_NCInfo[],Table_NCInspection[[#This Row],[Line]],$D$3),INDEX(Table_NCInfo[],Table_NCInspection[[#This Row],[Line]],E$3),INDEX(Table_IntLookups[Zone'#],MATCH(Table_NCInspection[[#This Row],[Zone Description]],Table_IntLookups[Dropdown],0))))","v":""},{"$f":"IF(OR(Table_NCInspection[[#This Row],[Line]]<=0,IFERROR(INDEX(Table_NCInfo[],Table_NCInspection[[#This Row],[Line]],F$3),\"\")=\"\"),\"\",IF(Table_NCInspection[[#This Row],[Zone Description]]=INDEX(Table_NCInfo[],Table_NCInspection[[#This Row],[Line]],$D$3),INDEX(Table_NCInfo[],Table_NCInspection[[#This Row],[Line]],F$3),IFERROR(VLOOKUP(Table_NCInspection[[#This Row],[Zone '#]],Table_IntLookups[],'Facility Information'!$AB$4,FALSE),0)*INDEX(Table_NCInfo[Baseline Wattage],MATCH(Table_NCInspection[[#This Row],[Line]],Table_NCInfo[Line],0)/VLOOKUP(INDEX(Table_NCInfo[Zone '#],MATCH(Table_NCInspection[[#This Row],[Line]],Table_NCInfo[Line],0)),Table_IntLookups[],'Facility Information'!$AB$4,FALSE),0)))","v":""},{"$f":"IFERROR(IF(OR(Table_NCInspection[[#This Row],[Line]]=\"\",INDEX(Table_NCInfo[],Table_NCInspection[[#This Row],[Line]],G$3)=\"\"),\"\",INDEX(Table_NCInfo[],Table_NCInspection[[#This Row],[Line]],G$3)),\"\")","v":""},null,{"$f":"IFERROR(IF(OR(Table_NCInspection[[#This Row],[Line]]=\"\",INDEX(Table_NCInfo[],Table_NCInspection[[#This Row],[Line]],I$3)=\"\"),\"\",INDEX(Table_NCInfo[],Table_NCInspection[[#This Row],[Line]],I$3)),\"\")","v":""},{"$f":"IFERROR(IF(OR(Table_NCInspection[[#This Row],[Line]]=\"\",INDEX(Table_NCInfo[],Table_NCInspection[[#This Row],[Line]],J$3)=\"\"),\"\",INDEX(Table_NCInfo[],Table_NCInspection[[#This Row],[Line]],J$3)),\"\")","v":""},{"$f":"IFERROR(IF(OR(Table_NCInspection[[#This Row],[Line]]=\"\",INDEX(Table_NCInfo[],Table_NCInspection[[#This Row],[Line]],K$3)=\"\"),\"\",INDEX(Table_NCInfo[],Table_NCInspection[[#This Row],[Line]],K$3)),\"\")","v":""},{"$f":"IFERROR(IF(OR(Table_NCInspection[[#This Row],[Line]]=\"\",INDEX(Table_NCInfo[],Table_NCInspection[[#This Row],[Line]],L$3)=\"\"),\"\",INDEX(Table_NCInfo[],Table_NCInspection[[#This Row],[Line]],L$3)),\"\")","v":""},{"$f":"IFERROR(IF(OR(Table_NCInspection[[#This Row],[Line]]=\"\",INDEX(Table_NCInfo[],Table_NCInspection[[#This Row],[Line]],M$3)=\"\"),\"\",INDEX(Table_NCInfo[],Table_NCInspection[[#This Row],[Line]],M$3)),\"\")","v":""},{"$f":"IFERROR(\nIFERROR(OFFSET(Table_TypWattage[[#Headers],[Technology]],MATCH($J8,Table_TypWattage[Technology],0)+MATCH($L8,INDIRECT(SUBSTITUTE(SUBSTITUTE($J8,\" \",\"_\"),\"-\",\"_\")),0)-1,MATCH($K8,'Measure Tables'!$Q$2:$V$2,0)+1),IF(Table_NCInspection[[#This Row],[Line]]<>\"\",IF(AND(Table_NCInspection[[#This Row],['# Lamps/ Fixture '[P']]]<>\"\",$K8>0,$L8>0),$K8*$L8,$L8),\"\")),\n\"\")","v":""},{"$f":"IFERROR(IF(OR(Table_NCInspection[[#This Row],[Line]]=\"\",INDEX(Table_NCInfo[],Table_NCInspection[[#This Row],[Line]],O$3)=\"\"),\"\",INDEX(Table_NCInfo[],Table_NCInspection[[#This Row],[Line]],O$3)),\"\")","v":""},{"$f":"IFERROR(IF(OR(Table_NCInspection[[#This Row],[Line]]=\"\",INDEX(Table_NCInfo[],Table_NCInspection[[#This Row],[Line]],P$3)=\"\"),\"\",INDEX(Table_NCInfo[],Table_NCInspection[[#This Row],[Line]],P$3)),\"\")","v":""},{"$f":"IFERROR(IF(Table_NCInspection[[#This Row],[Interior/ Exterior]]<>\"\",\n  CONCATENATE(\n  Table_NCInspection[[#This Row],[Interior/ Exterior]],\": \",\n  Table_NCInspection[[#This Row],[Fixture Technology '[P']]],\n  \" - \",Table_NCInspection[[#This Row],[Fixture Type '[P']]],\" [\",\n  IF(AND(Table_NCInspection[[#This Row],['# Lamps/ Fixture '[P']]]<>\"\",Table_NCInspection[[#This Row],['# Lamps/ Fixture '[P']]]>0),Table_NCInspection[[#This Row],['# Lamps/ Fixture '[P']]] & \"L - \" & Table_NCInspection[[#This Row],[Fixture/ Lamp Wattage '[P']]] & \"W\" & IF(Table_NCInspection[[#This Row],[Ballast/ Driver '[P']]]<>\"\",\" - \" & Table_NCInspection[[#This Row],[Ballast/ Driver '[P']]],\"\"),Table_NCInspection[[#This Row],[Fixture Wattage '[P']]] & \"W\"),\"]\",\n  IF(AND(Table_NCInspection[[#This Row],[Controls '[P']]]<>\"\"),\" - \" & Table_NCInspection[[#This Row],[Controls '[P']]],\"\")\n  ),\n\"\"),\"\")","v":""},{"$f":"IFERROR(IF(OR(Table_NCInspection[[#This Row],[Line]]=\"\",INDEX(Table_NCInfo[],Table_NCInspection[[#This Row],[Line]],R$3)=\"\"),\"\",INDEX(Table_NCInfo[],Table_NCInspection[[#This Row],[Line]],R$3)),\"\")","v":""},{"$f":"IFERROR(IF(OR(Table_NCInspection[[#This Row],[Line]]=\"\",INDEX(Table_NCInfo[],Table_NCInspection[[#This Row],[Line]],S$3)=\"\"),\"\",INDEX(Table_NCInfo[],Table_NCInspection[[#This Row],[Line]],S$3)),\"\")","v":""}]
[null,{"$f":"IFERROR(IF(OR(Table_NCInspection[[#This Row],[Line]]=\"\",INDEX(Table_NCInfo[],Table_NCInspection[[#This Row],[Line]],B$3)=\"\"),\"\",INDEX(Table_NCInfo[],Table_NCInspection[[#This Row],[Line]],B$3)),\"\")","v":""},{"$f":"IFERROR(IF(OR(Table_NCInspection[[#This Row],[Line]]=\"\",INDEX(Table_NCInfo[],Table_NCInspection[[#This Row],[Line]],C$3)=\"\"),\"\",INDEX(Table_NCInfo[],Table_NCInspection[[#This Row],[Line]],C$3)),\"\")","v":""},{"$f":"IFERROR(IF(OR(Table_NCInspection[[#This Row],[Line]]=\"\",INDEX(Table_NCInfo[],Table_NCInspection[[#This Row],[Line]],D$3)=\"\"),\"\",INDEX(Table_NCInfo[],Table_NCInspection[[#This Row],[Line]],D$3)),\"\")","v":""},{"$f":"IF(OR(Table_NCInspection[[#This Row],[Line]]<=0,IFERROR(INDEX(Table_NCInfo[],$A9,E$3),\"\")=\"\"),\"\",IF(Table_NCInspection[[#This Row],[Zone Description]]=INDEX(Table_NCInfo[],Table_NCInspection[[#This Row],[Line]],$D$3),INDEX(Table_NCInfo[],Table_NCInspection[[#This Row],[Line]],E$3),INDEX(Table_IntLookups[Zone'#],MATCH(Table_NCInspection[[#This Row],[Zone Description]],Table_IntLookups[Dropdown],0))))","v":""},{"$f":"IF(OR(Table_NCInspection[[#This Row],[Line]]<=0,IFERROR(INDEX(Table_NCInfo[],Table_NCInspection[[#This Row],[Line]],F$3),\"\")=\"\"),\"\",IF(Table_NCInspection[[#This Row],[Zone Description]]=INDEX(Table_NCInfo[],Table_NCInspection[[#This Row],[Line]],$D$3),INDEX(Table_NCInfo[],Table_NCInspection[[#This Row],[Line]],F$3),IFERROR(VLOOKUP(Table_NCInspection[[#This Row],[Zone '#]],Table_IntLookups[],'Facility Information'!$AB$4,FALSE),0)*INDEX(Table_NCInfo[Baseline Wattage],MATCH(Table_NCInspection[[#This Row],[Line]],Table_NCInfo[Line],0)/VLOOKUP(INDEX(Table_NCInfo[Zone '#],MATCH(Table_NCInspection[[#This Row],[Line]],Table_NCInfo[Line],0)),Table_IntLookups[],'Facility Information'!$AB$4,FALSE),0)))","v":""},{"$f":"IFERROR(IF(OR(Table_NCInspection[[#This Row],[Line]]=\"\",INDEX(Table_NCInfo[],Table_NCInspection[[#This Row],[Line]],G$3)=\"\"),\"\",INDEX(Table_NCInfo[],Table_NCInspection[[#This Row],[Line]],G$3)),\"\")","v":""},null,{"$f":"IFERROR(IF(OR(Table_NCInspection[[#This Row],[Line]]=\"\",INDEX(Table_NCInfo[],Table_NCInspection[[#This Row],[Line]],I$3)=\"\"),\"\",INDEX(Table_NCInfo[],Table_NCInspection[[#This Row],[Line]],I$3)),\"\")","v":""},{"$f":"IFERROR(IF(OR(Table_NCInspection[[#This Row],[Line]]=\"\",INDEX(Table_NCInfo[],Table_NCInspection[[#This Row],[Line]],J$3)=\"\"),\"\",INDEX(Table_NCInfo[],Table_NCInspection[[#This Row],[Line]],J$3)),\"\")","v":""},{"$f":"IFERROR(IF(OR(Table_NCInspection[[#This Row],[Line]]=\"\",INDEX(Table_NCInfo[],Table_NCInspection[[#This Row],[Line]],K$3)=\"\"),\"\",INDEX(Table_NCInfo[],Table_NCInspection[[#This Row],[Line]],K$3)),\"\")","v":""},{"$f":"IFERROR(IF(OR(Table_NCInspection[[#This Row],[Line]]=\"\",INDEX(Table_NCInfo[],Table_NCInspection[[#This Row],[Line]],L$3)=\"\"),\"\",INDEX(Table_NCInfo[],Table_NCInspection[[#This Row],[Line]],L$3)),\"\")","v":""},{"$f":"IFERROR(IF(OR(Table_NCInspection[[#This Row],[Line]]=\"\",INDEX(Table_NCInfo[],Table_NCInspection[[#This Row],[Line]],M$3)=\"\"),\"\",INDEX(Table_NCInfo[],Table_NCInspection[[#This Row],[Line]],M$3)),\"\")","v":""},{"$f":"IFERROR(\nIFERROR(OFFSET(Table_TypWattage[[#Headers],[Technology]],MATCH($J9,Table_TypWattage[Technology],0)+MATCH($L9,INDIRECT(SUBSTITUTE(SUBSTITUTE($J9,\" \",\"_\"),\"-\",\"_\")),0)-1,MATCH($K9,'Measure Tables'!$Q$2:$V$2,0)+1),IF(Table_NCInspection[[#This Row],[Line]]<>\"\",IF(AND(Table_NCInspection[[#This Row],['# Lamps/ Fixture '[P']]]<>\"\",$K9>0,$L9>0),$K9*$L9,$L9),\"\")),\n\"\")","v":""},{"$f":"IFERROR(IF(OR(Table_NCInspection[[#This Row],[Line]]=\"\",INDEX(Table_NCInfo[],Table_NCInspection[[#This Row],[Line]],O$3)=\"\"),\"\",INDEX(Table_NCInfo[],Table_NCInspection[[#This Row],[Line]],O$3)),\"\")","v":""},{"$f":"IFERROR(IF(OR(Table_NCInspection[[#This Row],[Line]]=\"\",INDEX(Table_NCInfo[],Table_NCInspection[[#This Row],[Line]],P$3)=\"\"),\"\",INDEX(Table_NCInfo[],Table_NCInspection[[#This Row],[Line]],P$3)),\"\")","v":""},{"$f":"IFERROR(IF(Table_NCInspection[[#This Row],[Interior/ Exterior]]<>\"\",\n  CONCATENATE(\n  Table_NCInspection[[#This Row],[Interior/ Exterior]],\": \",\n  Table_NCInspection[[#This Row],[Fixture Technology '[P']]],\n  \" - \",Table_NCInspection[[#This Row],[Fixture Type '[P']]],\" [\",\n  IF(AND(Table_NCInspection[[#This Row],['# Lamps/ Fixture '[P']]]<>\"\",Table_NCInspection[[#This Row],['# Lamps/ Fixture '[P']]]>0),Table_NCInspection[[#This Row],['# Lamps/ Fixture '[P']]] & \"L - \" & Table_NCInspection[[#This Row],[Fixture/ Lamp Wattage '[P']]] & \"W\" & IF(Table_NCInspection[[#This Row],[Ballast/ Driver '[P']]]<>\"\",\" - \" & Table_NCInspection[[#This Row],[Ballast/ Driver '[P']]],\"\"),Table_NCInspection[[#This Row],[Fixture Wattage '[P']]] & \"W\"),\"]\",\n  IF(AND(Table_NCInspection[[#This Row],[Controls '[P']]]<>\"\"),\" - \" & Table_NCInspection[[#This Row],[Controls '[P']]],\"\")\n  ),\n\"\"),\"\")","v":""},{"$f":"IFERROR(IF(OR(Table_NCInspection[[#This Row],[Line]]=\"\",INDEX(Table_NCInfo[],Table_NCInspection[[#This Row],[Line]],R$3)=\"\"),\"\",INDEX(Table_NCInfo[],Table_NCInspection[[#This Row],[Line]],R$3)),\"\")","v":""},{"$f":"IFERROR(IF(OR(Table_NCInspection[[#This Row],[Line]]=\"\",INDEX(Table_NCInfo[],Table_NCInspection[[#This Row],[Line]],S$3)=\"\"),\"\",INDEX(Table_NCInfo[],Table_NCInspection[[#This Row],[Line]],S$3)),\"\")","v":""}]
[null,{"$f":"IFERROR(IF(OR(Table_NCInspection[[#This Row],[Line]]=\"\",INDEX(Table_NCInfo[],Table_NCInspection[[#This Row],[Line]],B$3)=\"\"),\"\",INDEX(Table_NCInfo[],Table_NCInspection[[#This Row],[Line]],B$3)),\"\")","v":""},{"$f":"IFERROR(IF(OR(Table_NCInspection[[#This Row],[Line]]=\"\",INDEX(Table_NCInfo[],Table_NCInspection[[#This Row],[Line]],C$3)=\"\"),\"\",INDEX(Table_NCInfo[],Table_NCInspection[[#This Row],[Line]],C$3)),\"\")","v":""},{"$f":"IFERROR(IF(OR(Table_NCInspection[[#This Row],[Line]]=\"\",INDEX(Table_NCInfo[],Table_NCInspection[[#This Row],[Line]],D$3)=\"\"),\"\",INDEX(Table_NCInfo[],Table_NCInspection[[#This Row],[Line]],D$3)),\"\")","v":""},{"$f":"IF(OR(Table_NCInspection[[#This Row],[Line]]<=0,IFERROR(INDEX(Table_NCInfo[],$A10,E$3),\"\")=\"\"),\"\",IF(Table_NCInspection[[#This Row],[Zone Description]]=INDEX(Table_NCInfo[],Table_NCInspection[[#This Row],[Line]],$D$3),INDEX(Table_NCInfo[],Table_NCInspection[[#This Row],[Line]],E$3),INDEX(Table_IntLookups[Zone'#],MATCH(Table_NCInspection[[#This Row],[Zone Description]],Table_IntLookups[Dropdown],0))))","v":""},{"$f":"IF(OR(Table_NCInspection[[#This Row],[Line]]<=0,IFERROR(INDEX(Table_NCInfo[],Table_NCInspection[[#This Row],[Line]],F$3),\"\")=\"\"),\"\",IF(Table_NCInspection[[#This Row],[Zone Description]]=INDEX(Table_NCInfo[],Table_NCInspection[[#This Row],[Line]],$D$3),INDEX(Table_NCInfo[],Table_NCInspection[[#This Row],[Line]],F$3),IFERROR(VLOOKUP(Table_NCInspection[[#This Row],[Zone '#]],Table_IntLookups[],'Facility Information'!$AB$4,FALSE),0)*INDEX(Table_NCInfo[Baseline Wattage],MATCH(Table_NCInspection[[#This Row],[Line]],Table_NCInfo[Line],0)/VLOOKUP(INDEX(Table_NCInfo[Zone '#],MATCH(Table_NCInspection[[#This Row],[Line]],Table_NCInfo[Line],0)),Table_IntLookups[],'Facility Information'!$AB$4,FALSE),0)))","v":""},{"$f":"IFERROR(IF(OR(Table_NCInspection[[#This Row],[Line]]=\"\",INDEX(Table_NCInfo[],Table_NCInspection[[#This Row],[Line]],G$3)=\"\"),\"\",INDEX(Table_NCInfo[],Table_NCInspection[[#This Row],[Line]],G$3)),\"\")","v":""},null,{"$f":"IFERROR(IF(OR(Table_NCInspection[[#This Row],[Line]]=\"\",INDEX(Table_NCInfo[],Table_NCInspection[[#This Row],[Line]],I$3)=\"\"),\"\",INDEX(Table_NCInfo[],Table_NCInspection[[#This Row],[Line]],I$3)),\"\")","v":""},{"$f":"IFERROR(IF(OR(Table_NCInspection[[#This Row],[Line]]=\"\",INDEX(Table_NCInfo[],Table_NCInspection[[#This Row],[Line]],J$3)=\"\"),\"\",INDEX(Table_NCInfo[],Table_NCInspection[[#This Row],[Line]],J$3)),\"\")","v":""},{"$f":"IFERROR(IF(OR(Table_NCInspection[[#This Row],[Line]]=\"\",INDEX(Table_NCInfo[],Table_NCInspection[[#This Row],[Line]],K$3)=\"\"),\"\",INDEX(Table_NCInfo[],Table_NCInspection[[#This Row],[Line]],K$3)),\"\")","v":""},{"$f":"IFERROR(IF(OR(Table_NCInspection[[#This Row],[Line]]=\"\",INDEX(Table_NCInfo[],Table_NCInspection[[#This Row],[Line]],L$3)=\"\"),\"\",INDEX(Table_NCInfo[],Table_NCInspection[[#This Row],[Line]],L$3)),\"\")","v":""},{"$f":"IFERROR(IF(OR(Table_NCInspection[[#This Row],[Line]]=\"\",INDEX(Table_NCInfo[],Table_NCInspection[[#This Row],[Line]],M$3)=\"\"),\"\",INDEX(Table_NCInfo[],Table_NCInspection[[#This Row],[Line]],M$3)),\"\")","v":""},{"$f":"IFERROR(\nIFERROR(OFFSET(Table_TypWattage[[#Headers],[Technology]],MATCH($J10,Table_TypWattage[Technology],0)+MATCH($L10,INDIRECT(SUBSTITUTE(SUBSTITUTE($J10,\" \",\"_\"),\"-\",\"_\")),0)-1,MATCH($K10,'Measure Tables'!$Q$2:$V$2,0)+1),IF(Table_NCInspection[[#This Row],[Line]]<>\"\",IF(AND(Table_NCInspection[[#This Row],['# Lamps/ Fixture '[P']]]<>\"\",$K10>0,$L10>0),$K10*$L10,$L10),\"\")),\n\"\")","v":""},{"$f":"IFERROR(IF(OR(Table_NCInspection[[#This Row],[Line]]=\"\",INDEX(Table_NCInfo[],Table_NCInspection[[#This Row],[Line]],O$3)=\"\"),\"\",INDEX(Table_NCInfo[],Table_NCInspection[[#This Row],[Line]],O$3)),\"\")","v":""},{"$f":"IFERROR(IF(OR(Table_NCInspection[[#This Row],[Line]]=\"\",INDEX(Table_NCInfo[],Table_NCInspection[[#This Row],[Line]],P$3)=\"\"),\"\",INDEX(Table_NCInfo[],Table_NCInspection[[#This Row],[Line]],P$3)),\"\")","v":""},{"$f":"IFERROR(IF(Table_NCInspection[[#This Row],[Interior/ Exterior]]<>\"\",\n  CONCATENATE(\n  Table_NCInspection[[#This Row],[Interior/ Exterior]],\": \",\n  Table_NCInspection[[#This Row],[Fixture Technology '[P']]],\n  \" - \",Table_NCInspection[[#This Row],[Fixture Type '[P']]],\" [\",\n  IF(AND(Table_NCInspection[[#This Row],['# Lamps/ Fixture '[P']]]<>\"\",Table_NCInspection[[#This Row],['# Lamps/ Fixture '[P']]]>0),Table_NCInspection[[#This Row],['# Lamps/ Fixture '[P']]] & \"L - \" & Table_NCInspection[[#This Row],[Fixture/ Lamp Wattage '[P']]] & \"W\" & IF(Table_NCInspection[[#This Row],[Ballast/ Driver '[P']]]<>\"\",\" - \" & Table_NCInspection[[#This Row],[Ballast/ Driver '[P']]],\"\"),Table_NCInspection[[#This Row],[Fixture Wattage '[P']]] & \"W\"),\"]\",\n  IF(AND(Table_NCInspection[[#This Row],[Controls '[P']]]<>\"\"),\" - \" & Table_NCInspection[[#This Row],[Controls '[P']]],\"\")\n  ),\n\"\"),\"\")","v":""},{"$f":"IFERROR(IF(OR(Table_NCInspection[[#This Row],[Line]]=\"\",INDEX(Table_NCInfo[],Table_NCInspection[[#This Row],[Line]],R$3)=\"\"),\"\",INDEX(Table_NCInfo[],Table_NCInspection[[#This Row],[Line]],R$3)),\"\")","v":""},{"$f":"IFERROR(IF(OR(Table_NCInspection[[#This Row],[Line]]=\"\",INDEX(Table_NCInfo[],Table_NCInspection[[#This Row],[Line]],S$3)=\"\"),\"\",INDEX(Table_NCInfo[],Table_NCInspection[[#This Row],[Line]],S$3)),\"\")","v":""}]
[null,{"$f":"IFERROR(IF(OR(Table_NCInspection[[#This Row],[Line]]=\"\",INDEX(Table_NCInfo[],Table_NCInspection[[#This Row],[Line]],B$3)=\"\"),\"\",INDEX(Table_NCInfo[],Table_NCInspection[[#This Row],[Line]],B$3)),\"\")","v":""},{"$f":"IFERROR(IF(OR(Table_NCInspection[[#This Row],[Line]]=\"\",INDEX(Table_NCInfo[],Table_NCInspection[[#This Row],[Line]],C$3)=\"\"),\"\",INDEX(Table_NCInfo[],Table_NCInspection[[#This Row],[Line]],C$3)),\"\")","v":""},{"$f":"IFERROR(IF(OR(Table_NCInspection[[#This Row],[Line]]=\"\",INDEX(Table_NCInfo[],Table_NCInspection[[#This Row],[Line]],D$3)=\"\"),\"\",INDEX(Table_NCInfo[],Table_NCInspection[[#This Row],[Line]],D$3)),\"\")","v":""},{"$f":"IF(OR(Table_NCInspection[[#This Row],[Line]]<=0,IFERROR(INDEX(Table_NCInfo[],$A11,E$3),\"\")=\"\"),\"\",IF(Table_NCInspection[[#This Row],[Zone Description]]=INDEX(Table_NCInfo[],Table_NCInspection[[#This Row],[Line]],$D$3),INDEX(Table_NCInfo[],Table_NCInspection[[#This Row],[Line]],E$3),INDEX(Table_IntLookups[Zone'#],MATCH(Table_NCInspection[[#This Row],[Zone Description]],Table_IntLookups[Dropdown],0))))","v":""},{"$f":"IF(OR(Table_NCInspection[[#This Row],[Line]]<=0,IFERROR(INDEX(Table_NCInfo[],Table_NCInspection[[#This Row],[Line]],F$3),\"\")=\"\"),\"\",IF(Table_NCInspection[[#This Row],[Zone Description]]=INDEX(Table_NCInfo[],Table_NCInspection[[#This Row],[Line]],$D$3),INDEX(Table_NCInfo[],Table_NCInspection[[#This Row],[Line]],F$3),IFERROR(VLOOKUP(Table_NCInspection[[#This Row],[Zone '#]],Table_IntLookups[],'Facility Information'!$AB$4,FALSE),0)*INDEX(Table_NCInfo[Baseline Wattage],MATCH(Table_NCInspection[[#This Row],[Line]],Table_NCInfo[Line],0)/VLOOKUP(INDEX(Table_NCInfo[Zone '#],MATCH(Table_NCInspection[[#This Row],[Line]],Table_NCInfo[Line],0)),Table_IntLookups[],'Facility Information'!$AB$4,FALSE),0)))","v":""},{"$f":"IFERROR(IF(OR(Table_NCInspection[[#This Row],[Line]]=\"\",INDEX(Table_NCInfo[],Table_NCInspection[[#This Row],[Line]],G$3)=\"\"),\"\",INDEX(Table_NCInfo[],Table_NCInspection[[#This Row],[Line]],G$3)),\"\")","v":""},null,{"$f":"IFERROR(IF(OR(Table_NCInspection[[#This Row],[Line]]=\"\",INDEX(Table_NCInfo[],Table_NCInspection[[#This Row],[Line]],I$3)=\"\"),\"\",INDEX(Table_NCInfo[],Table_NCInspection[[#This Row],[Line]],I$3)),\"\")","v":""},{"$f":"IFERROR(IF(OR(Table_NCInspection[[#This Row],[Line]]=\"\",INDEX(Table_NCInfo[],Table_NCInspection[[#This Row],[Line]],J$3)=\"\"),\"\",INDEX(Table_NCInfo[],Table_NCInspection[[#This Row],[Line]],J$3)),\"\")","v":""},{"$f":"IFERROR(IF(OR(Table_NCInspection[[#This Row],[Line]]=\"\",INDEX(Table_NCInfo[],Table_NCInspection[[#This Row],[Line]],K$3)=\"\"),\"\",INDEX(Table_NCInfo[],Table_NCInspection[[#This Row],[Line]],K$3)),\"\")","v":""},{"$f":"IFERROR(IF(OR(Table_NCInspection[[#This Row],[Line]]=\"\",INDEX(Table_NCInfo[],Table_NCInspection[[#This Row],[Line]],L$3)=\"\"),\"\",INDEX(Table_NCInfo[],Table_NCInspection[[#This Row],[Line]],L$3)),\"\")","v":""},{"$f":"IFERROR(IF(OR(Table_NCInspection[[#This Row],[Line]]=\"\",INDEX(Table_NCInfo[],Table_NCInspection[[#This Row],[Line]],M$3)=\"\"),\"\",INDEX(Table_NCInfo[],Table_NCInspection[[#This Row],[Line]],M$3)),\"\")","v":""},{"$f":"IFERROR(\nIFERROR(OFFSET(Table_TypWattage[[#Headers],[Technology]],MATCH($J11,Table_TypWattage[Technology],0)+MATCH($L11,INDIRECT(SUBSTITUTE(SUBSTITUTE($J11,\" \",\"_\"),\"-\",\"_\")),0)-1,MATCH($K11,'Measure Tables'!$Q$2:$V$2,0)+1),IF(Table_NCInspection[[#This Row],[Line]]<>\"\",IF(AND(Table_NCInspection[[#This Row],['# Lamps/ Fixture '[P']]]<>\"\",$K11>0,$L11>0),$K11*$L11,$L11),\"\")),\n\"\")","v":""},{"$f":"IFERROR(IF(OR(Table_NCInspection[[#This Row],[Line]]=\"\",INDEX(Table_NCInfo[],Table_NCInspection[[#This Row],[Line]],O$3)=\"\"),\"\",INDEX(Table_NCInfo[],Table_NCInspection[[#This Row],[Line]],O$3)),\"\")","v":""},{"$f":"IFERROR(IF(OR(Table_NCInspection[[#This Row],[Line]]=\"\",INDEX(Table_NCInfo[],Table_NCInspection[[#This Row],[Line]],P$3)=\"\"),\"\",INDEX(Table_NCInfo[],Table_NCInspection[[#This Row],[Line]],P$3)),\"\")","v":""},{"$f":"IFERROR(IF(Table_NCInspection[[#This Row],[Interior/ Exterior]]<>\"\",\n  CONCATENATE(\n  Table_NCInspection[[#This Row],[Interior/ Exterior]],\": \",\n  Table_NCInspection[[#This Row],[Fixture Technology '[P']]],\n  \" - \",Table_NCInspection[[#This Row],[Fixture Type '[P']]],\" [\",\n  IF(AND(Table_NCInspection[[#This Row],['# Lamps/ Fixture '[P']]]<>\"\",Table_NCInspection[[#This Row],['# Lamps/ Fixture '[P']]]>0),Table_NCInspection[[#This Row],['# Lamps/ Fixture '[P']]] & \"L - \" & Table_NCInspection[[#This Row],[Fixture/ Lamp Wattage '[P']]] & \"W\" & IF(Table_NCInspection[[#This Row],[Ballast/ Driver '[P']]]<>\"\",\" - \" & Table_NCInspection[[#This Row],[Ballast/ Driver '[P']]],\"\"),Table_NCInspection[[#This Row],[Fixture Wattage '[P']]] & \"W\"),\"]\",\n  IF(AND(Table_NCInspection[[#This Row],[Controls '[P']]]<>\"\"),\" - \" & Table_NCInspection[[#This Row],[Controls '[P']]],\"\")\n  ),\n\"\"),\"\")","v":""},{"$f":"IFERROR(IF(OR(Table_NCInspection[[#This Row],[Line]]=\"\",INDEX(Table_NCInfo[],Table_NCInspection[[#This Row],[Line]],R$3)=\"\"),\"\",INDEX(Table_NCInfo[],Table_NCInspection[[#This Row],[Line]],R$3)),\"\")","v":""},{"$f":"IFERROR(IF(OR(Table_NCInspection[[#This Row],[Line]]=\"\",INDEX(Table_NCInfo[],Table_NCInspection[[#This Row],[Line]],S$3)=\"\"),\"\",INDEX(Table_NCInfo[],Table_NCInspection[[#This Row],[Line]],S$3)),\"\")","v":""}]
[null,{"$f":"IFERROR(IF(OR(Table_NCInspection[[#This Row],[Line]]=\"\",INDEX(Table_NCInfo[],Table_NCInspection[[#This Row],[Line]],B$3)=\"\"),\"\",INDEX(Table_NCInfo[],Table_NCInspection[[#This Row],[Line]],B$3)),\"\")","v":""},{"$f":"IFERROR(IF(OR(Table_NCInspection[[#This Row],[Line]]=\"\",INDEX(Table_NCInfo[],Table_NCInspection[[#This Row],[Line]],C$3)=\"\"),\"\",INDEX(Table_NCInfo[],Table_NCInspection[[#This Row],[Line]],C$3)),\"\")","v":""},{"$f":"IFERROR(IF(OR(Table_NCInspection[[#This Row],[Line]]=\"\",INDEX(Table_NCInfo[],Table_NCInspection[[#This Row],[Line]],D$3)=\"\"),\"\",INDEX(Table_NCInfo[],Table_NCInspection[[#This Row],[Line]],D$3)),\"\")","v":""},{"$f":"IF(OR(Table_NCInspection[[#This Row],[Line]]<=0,IFERROR(INDEX(Table_NCInfo[],$A12,E$3),\"\")=\"\"),\"\",IF(Table_NCInspection[[#This Row],[Zone Description]]=INDEX(Table_NCInfo[],Table_NCInspection[[#This Row],[Line]],$D$3),INDEX(Table_NCInfo[],Table_NCInspection[[#This Row],[Line]],E$3),INDEX(Table_IntLookups[Zone'#],MATCH(Table_NCInspection[[#This Row],[Zone Description]],Table_IntLookups[Dropdown],0))))","v":""},{"$f":"IF(OR(Table_NCInspection[[#This Row],[Line]]<=0,IFERROR(INDEX(Table_NCInfo[],Table_NCInspection[[#This Row],[Line]],F$3),\"\")=\"\"),\"\",IF(Table_NCInspection[[#This Row],[Zone Description]]=INDEX(Table_NCInfo[],Table_NCInspection[[#This Row],[Line]],$D$3),INDEX(Table_NCInfo[],Table_NCInspection[[#This Row],[Line]],F$3),IFERROR(VLOOKUP(Table_NCInspection[[#This Row],[Zone '#]],Table_IntLookups[],'Facility Information'!$AB$4,FALSE),0)*INDEX(Table_NCInfo[Baseline Wattage],MATCH(Table_NCInspection[[#This Row],[Line]],Table_NCInfo[Line],0)/VLOOKUP(INDEX(Table_NCInfo[Zone '#],MATCH(Table_NCInspection[[#This Row],[Line]],Table_NCInfo[Line],0)),Table_IntLookups[],'Facility Information'!$AB$4,FALSE),0)))","v":""},{"$f":"IFERROR(IF(OR(Table_NCInspection[[#This Row],[Line]]=\"\",INDEX(Table_NCInfo[],Table_NCInspection[[#This Row],[Line]],G$3)=\"\"),\"\",INDEX(Table_NCInfo[],Table_NCInspection[[#This Row],[Line]],G$3)),\"\")","v":""},null,{"$f":"IFERROR(IF(OR(Table_NCInspection[[#This Row],[Line]]=\"\",INDEX(Table_NCInfo[],Table_NCInspection[[#This Row],[Line]],I$3)=\"\"),\"\",INDEX(Table_NCInfo[],Table_NCInspection[[#This Row],[Line]],I$3)),\"\")","v":""},{"$f":"IFERROR(IF(OR(Table_NCInspection[[#This Row],[Line]]=\"\",INDEX(Table_NCInfo[],Table_NCInspection[[#This Row],[Line]],J$3)=\"\"),\"\",INDEX(Table_NCInfo[],Table_NCInspection[[#This Row],[Line]],J$3)),\"\")","v":""},{"$f":"IFERROR(IF(OR(Table_NCInspection[[#This Row],[Line]]=\"\",INDEX(Table_NCInfo[],Table_NCInspection[[#This Row],[Line]],K$3)=\"\"),\"\",INDEX(Table_NCInfo[],Table_NCInspection[[#This Row],[Line]],K$3)),\"\")","v":""},{"$f":"IFERROR(IF(OR(Table_NCInspection[[#This Row],[Line]]=\"\",INDEX(Table_NCInfo[],Table_NCInspection[[#This Row],[Line]],L$3)=\"\"),\"\",INDEX(Table_NCInfo[],Table_NCInspection[[#This Row],[Line]],L$3)),\"\")","v":""},{"$f":"IFERROR(IF(OR(Table_NCInspection[[#This Row],[Line]]=\"\",INDEX(Table_NCInfo[],Table_NCInspection[[#This Row],[Line]],M$3)=\"\"),\"\",INDEX(Table_NCInfo[],Table_NCInspection[[#This Row],[Line]],M$3)),\"\")","v":""},{"$f":"IFERROR(\nIFERROR(OFFSET(Table_TypWattage[[#Headers],[Technology]],MATCH($J12,Table_TypWattage[Technology],0)+MATCH($L12,INDIRECT(SUBSTITUTE(SUBSTITUTE($J12,\" \",\"_\"),\"-\",\"_\")),0)-1,MATCH($K12,'Measure Tables'!$Q$2:$V$2,0)+1),IF(Table_NCInspection[[#This Row],[Line]]<>\"\",IF(AND(Table_NCInspection[[#This Row],['# Lamps/ Fixture '[P']]]<>\"\",$K12>0,$L12>0),$K12*$L12,$L12),\"\")),\n\"\")","v":""},{"$f":"IFERROR(IF(OR(Table_NCInspection[[#This Row],[Line]]=\"\",INDEX(Table_NCInfo[],Table_NCInspection[[#This Row],[Line]],O$3)=\"\"),\"\",INDEX(Table_NCInfo[],Table_NCInspection[[#This Row],[Line]],O$3)),\"\")","v":""},{"$f":"IFERROR(IF(OR(Table_NCInspection[[#This Row],[Line]]=\"\",INDEX(Table_NCInfo[],Table_NCInspection[[#This Row],[Line]],P$3)=\"\"),\"\",INDEX(Table_NCInfo[],Table_NCInspection[[#This Row],[Line]],P$3)),\"\")","v":""},{"$f":"IFERROR(IF(Table_NCInspection[[#This Row],[Interior/ Exterior]]<>\"\",\n  CONCATENATE(\n  Table_NCInspection[[#This Row],[Interior/ Exterior]],\": \",\n  Table_NCInspection[[#This Row],[Fixture Technology '[P']]],\n  \" - \",Table_NCInspection[[#This Row],[Fixture Type '[P']]],\" [\",\n  IF(AND(Table_NCInspection[[#This Row],['# Lamps/ Fixture '[P']]]<>\"\",Table_NCInspection[[#This Row],['# Lamps/ Fixture '[P']]]>0),Table_NCInspection[[#This Row],['# Lamps/ Fixture '[P']]] & \"L - \" & Table_NCInspection[[#This Row],[Fixture/ Lamp Wattage '[P']]] & \"W\" & IF(Table_NCInspection[[#This Row],[Ballast/ Driver '[P']]]<>\"\",\" - \" & Table_NCInspection[[#This Row],[Ballast/ Driver '[P']]],\"\"),Table_NCInspection[[#This Row],[Fixture Wattage '[P']]] & \"W\"),\"]\",\n  IF(AND(Table_NCInspection[[#This Row],[Controls '[P']]]<>\"\"),\" - \" & Table_NCInspection[[#This Row],[Controls '[P']]],\"\")\n  ),\n\"\"),\"\")","v":""},{"$f":"IFERROR(IF(OR(Table_NCInspection[[#This Row],[Line]]=\"\",INDEX(Table_NCInfo[],Table_NCInspection[[#This Row],[Line]],R$3)=\"\"),\"\",INDEX(Table_NCInfo[],Table_NCInspection[[#This Row],[Line]],R$3)),\"\")","v":""},{"$f":"IFERROR(IF(OR(Table_NCInspection[[#This Row],[Line]]=\"\",INDEX(Table_NCInfo[],Table_NCInspection[[#This Row],[Line]],S$3)=\"\"),\"\",INDEX(Table_NCInfo[],Table_NCInspection[[#This Row],[Line]],S$3)),\"\")","v":""}]
[null,{"$f":"IFERROR(IF(OR(Table_NCInspection[[#This Row],[Line]]=\"\",INDEX(Table_NCInfo[],Table_NCInspection[[#This Row],[Line]],B$3)=\"\"),\"\",INDEX(Table_NCInfo[],Table_NCInspection[[#This Row],[Line]],B$3)),\"\")","v":""},{"$f":"IFERROR(IF(OR(Table_NCInspection[[#This Row],[Line]]=\"\",INDEX(Table_NCInfo[],Table_NCInspection[[#This Row],[Line]],C$3)=\"\"),\"\",INDEX(Table_NCInfo[],Table_NCInspection[[#This Row],[Line]],C$3)),\"\")","v":""},{"$f":"IFERROR(IF(OR(Table_NCInspection[[#This Row],[Line]]=\"\",INDEX(Table_NCInfo[],Table_NCInspection[[#This Row],[Line]],D$3)=\"\"),\"\",INDEX(Table_NCInfo[],Table_NCInspection[[#This Row],[Line]],D$3)),\"\")","v":""},{"$f":"IF(OR(Table_NCInspection[[#This Row],[Line]]<=0,IFERROR(INDEX(Table_NCInfo[],$A13,E$3),\"\")=\"\"),\"\",IF(Table_NCInspection[[#This Row],[Zone Description]]=INDEX(Table_NCInfo[],Table_NCInspection[[#This Row],[Line]],$D$3),INDEX(Table_NCInfo[],Table_NCInspection[[#This Row],[Line]],E$3),INDEX(Table_IntLookups[Zone'#],MATCH(Table_NCInspection[[#This Row],[Zone Description]],Table_IntLookups[Dropdown],0))))","v":""},{"$f":"IF(OR(Table_NCInspection[[#This Row],[Line]]<=0,IFERROR(INDEX(Table_NCInfo[],Table_NCInspection[[#This Row],[Line]],F$3),\"\")=\"\"),\"\",IF(Table_NCInspection[[#This Row],[Zone Description]]=INDEX(Table_NCInfo[],Table_NCInspection[[#This Row],[Line]],$D$3),INDEX(Table_NCInfo[],Table_NCInspection[[#This Row],[Line]],F$3),IFERROR(VLOOKUP(Table_NCInspection[[#This Row],[Zone '#]],Table_IntLookups[],'Facility Information'!$AB$4,FALSE),0)*INDEX(Table_NCInfo[Baseline Wattage],MATCH(Table_NCInspection[[#This Row],[Line]],Table_NCInfo[Line],0)/VLOOKUP(INDEX(Table_NCInfo[Zone '#],MATCH(Table_NCInspection[[#This Row],[Line]],Table_NCInfo[Line],0)),Table_IntLookups[],'Facility Information'!$AB$4,FALSE),0)))","v":""},{"$f":"IFERROR(IF(OR(Table_NCInspection[[#This Row],[Line]]=\"\",INDEX(Table_NCInfo[],Table_NCInspection[[#This Row],[Line]],G$3)=\"\"),\"\",INDEX(Table_NCInfo[],Table_NCInspection[[#This Row],[Line]],G$3)),\"\")","v":""},null,{"$f":"IFERROR(IF(OR(Table_NCInspection[[#This Row],[Line]]=\"\",INDEX(Table_NCInfo[],Table_NCInspection[[#This Row],[Line]],I$3)=\"\"),\"\",INDEX(Table_NCInfo[],Table_NCInspection[[#This Row],[Line]],I$3)),\"\")","v":""},{"$f":"IFERROR(IF(OR(Table_NCInspection[[#This Row],[Line]]=\"\",INDEX(Table_NCInfo[],Table_NCInspection[[#This Row],[Line]],J$3)=\"\"),\"\",INDEX(Table_NCInfo[],Table_NCInspection[[#This Row],[Line]],J$3)),\"\")","v":""},{"$f":"IFERROR(IF(OR(Table_NCInspection[[#This Row],[Line]]=\"\",INDEX(Table_NCInfo[],Table_NCInspection[[#This Row],[Line]],K$3)=\"\"),\"\",INDEX(Table_NCInfo[],Table_NCInspection[[#This Row],[Line]],K$3)),\"\")","v":""},{"$f":"IFERROR(IF(OR(Table_NCInspection[[#This Row],[Line]]=\"\",INDEX(Table_NCInfo[],Table_NCInspection[[#This Row],[Line]],L$3)=\"\"),\"\",INDEX(Table_NCInfo[],Table_NCInspection[[#This Row],[Line]],L$3)),\"\")","v":""},{"$f":"IFERROR(IF(OR(Table_NCInspection[[#This Row],[Line]]=\"\",INDEX(Table_NCInfo[],Table_NCInspection[[#This Row],[Line]],M$3)=\"\"),\"\",INDEX(Table_NCInfo[],Table_NCInspection[[#This Row],[Line]],M$3)),\"\")","v":""},{"$f":"IFERROR(\nIFERROR(OFFSET(Table_TypWattage[[#Headers],[Technology]],MATCH($J13,Table_TypWattage[Technology],0)+MATCH($L13,INDIRECT(SUBSTITUTE(SUBSTITUTE($J13,\" \",\"_\"),\"-\",\"_\")),0)-1,MATCH($K13,'Measure Tables'!$Q$2:$V$2,0)+1),IF(Table_NCInspection[[#This Row],[Line]]<>\"\",IF(AND(Table_NCInspection[[#This Row],['# Lamps/ Fixture '[P']]]<>\"\",$K13>0,$L13>0),$K13*$L13,$L13),\"\")),\n\"\")","v":""},{"$f":"IFERROR(IF(OR(Table_NCInspection[[#This Row],[Line]]=\"\",INDEX(Table_NCInfo[],Table_NCInspection[[#This Row],[Line]],O$3)=\"\"),\"\",INDEX(Table_NCInfo[],Table_NCInspection[[#This Row],[Line]],O$3)),\"\")","v":""},{"$f":"IFERROR(IF(OR(Table_NCInspection[[#This Row],[Line]]=\"\",INDEX(Table_NCInfo[],Table_NCInspection[[#This Row],[Line]],P$3)=\"\"),\"\",INDEX(Table_NCInfo[],Table_NCInspection[[#This Row],[Line]],P$3)),\"\")","v":""},{"$f":"IFERROR(IF(Table_NCInspection[[#This Row],[Interior/ Exterior]]<>\"\",\n  CONCATENATE(\n  Table_NCInspection[[#This Row],[Interior/ Exterior]],\": \",\n  Table_NCInspection[[#This Row],[Fixture Technology '[P']]],\n  \" - \",Table_NCInspection[[#This Row],[Fixture Type '[P']]],\" [\",\n  IF(AND(Table_NCInspection[[#This Row],['# Lamps/ Fixture '[P']]]<>\"\",Table_NCInspection[[#This Row],['# Lamps/ Fixture '[P']]]>0),Table_NCInspection[[#This Row],['# Lamps/ Fixture '[P']]] & \"L - \" & Table_NCInspection[[#This Row],[Fixture/ Lamp Wattage '[P']]] & \"W\" & IF(Table_NCInspection[[#This Row],[Ballast/ Driver '[P']]]<>\"\",\" - \" & Table_NCInspection[[#This Row],[Ballast/ Driver '[P']]],\"\"),Table_NCInspection[[#This Row],[Fixture Wattage '[P']]] & \"W\"),\"]\",\n  IF(AND(Table_NCInspection[[#This Row],[Controls '[P']]]<>\"\"),\" - \" & Table_NCInspection[[#This Row],[Controls '[P']]],\"\")\n  ),\n\"\"),\"\")","v":""},{"$f":"IFERROR(IF(OR(Table_NCInspection[[#This Row],[Line]]=\"\",INDEX(Table_NCInfo[],Table_NCInspection[[#This Row],[Line]],R$3)=\"\"),\"\",INDEX(Table_NCInfo[],Table_NCInspection[[#This Row],[Line]],R$3)),\"\")","v":""},{"$f":"IFERROR(IF(OR(Table_NCInspection[[#This Row],[Line]]=\"\",INDEX(Table_NCInfo[],Table_NCInspection[[#This Row],[Line]],S$3)=\"\"),\"\",INDEX(Table_NCInfo[],Table_NCInspection[[#This Row],[Line]],S$3)),\"\")","v":""}]
[null,{"$f":"IFERROR(IF(OR(Table_NCInspection[[#This Row],[Line]]=\"\",INDEX(Table_NCInfo[],Table_NCInspection[[#This Row],[Line]],B$3)=\"\"),\"\",INDEX(Table_NCInfo[],Table_NCInspection[[#This Row],[Line]],B$3)),\"\")","v":""},{"$f":"IFERROR(IF(OR(Table_NCInspection[[#This Row],[Line]]=\"\",INDEX(Table_NCInfo[],Table_NCInspection[[#This Row],[Line]],C$3)=\"\"),\"\",INDEX(Table_NCInfo[],Table_NCInspection[[#This Row],[Line]],C$3)),\"\")","v":""},{"$f":"IFERROR(IF(OR(Table_NCInspection[[#This Row],[Line]]=\"\",INDEX(Table_NCInfo[],Table_NCInspection[[#This Row],[Line]],D$3)=\"\"),\"\",INDEX(Table_NCInfo[],Table_NCInspection[[#This Row],[Line]],D$3)),\"\")","v":""},{"$f":"IF(OR(Table_NCInspection[[#This Row],[Line]]<=0,IFERROR(INDEX(Table_NCInfo[],$A14,E$3),\"\")=\"\"),\"\",IF(Table_NCInspection[[#This Row],[Zone Description]]=INDEX(Table_NCInfo[],Table_NCInspection[[#This Row],[Line]],$D$3),INDEX(Table_NCInfo[],Table_NCInspection[[#This Row],[Line]],E$3),INDEX(Table_IntLookups[Zone'#],MATCH(Table_NCInspection[[#This Row],[Zone Description]],Table_IntLookups[Dropdown],0))))","v":""},{"$f":"IF(OR(Table_NCInspection[[#This Row],[Line]]<=0,IFERROR(INDEX(Table_NCInfo[],Table_NCInspection[[#This Row],[Line]],F$3),\"\")=\"\"),\"\",IF(Table_NCInspection[[#This Row],[Zone Description]]=INDEX(Table_NCInfo[],Table_NCInspection[[#This Row],[Line]],$D$3),INDEX(Table_NCInfo[],Table_NCInspection[[#This Row],[Line]],F$3),IFERROR(VLOOKUP(Table_NCInspection[[#This Row],[Zone '#]],Table_IntLookups[],'Facility Information'!$AB$4,FALSE),0)*INDEX(Table_NCInfo[Baseline Wattage],MATCH(Table_NCInspection[[#This Row],[Line]],Table_NCInfo[Line],0)/VLOOKUP(INDEX(Table_NCInfo[Zone '#],MATCH(Table_NCInspection[[#This Row],[Line]],Table_NCInfo[Line],0)),Table_IntLookups[],'Facility Information'!$AB$4,FALSE),0)))","v":""},{"$f":"IFERROR(IF(OR(Table_NCInspection[[#This Row],[Line]]=\"\",INDEX(Table_NCInfo[],Table_NCInspection[[#This Row],[Line]],G$3)=\"\"),\"\",INDEX(Table_NCInfo[],Table_NCInspection[[#This Row],[Line]],G$3)),\"\")","v":""},null,{"$f":"IFERROR(IF(OR(Table_NCInspection[[#This Row],[Line]]=\"\",INDEX(Table_NCInfo[],Table_NCInspection[[#This Row],[Line]],I$3)=\"\"),\"\",INDEX(Table_NCInfo[],Table_NCInspection[[#This Row],[Line]],I$3)),\"\")","v":""},{"$f":"IFERROR(IF(OR(Table_NCInspection[[#This Row],[Line]]=\"\",INDEX(Table_NCInfo[],Table_NCInspection[[#This Row],[Line]],J$3)=\"\"),\"\",INDEX(Table_NCInfo[],Table_NCInspection[[#This Row],[Line]],J$3)),\"\")","v":""},{"$f":"IFERROR(IF(OR(Table_NCInspection[[#This Row],[Line]]=\"\",INDEX(Table_NCInfo[],Table_NCInspection[[#This Row],[Line]],K$3)=\"\"),\"\",INDEX(Table_NCInfo[],Table_NCInspection[[#This Row],[Line]],K$3)),\"\")","v":""},{"$f":"IFERROR(IF(OR(Table_NCInspection[[#This Row],[Line]]=\"\",INDEX(Table_NCInfo[],Table_NCInspection[[#This Row],[Line]],L$3)=\"\"),\"\",INDEX(Table_NCInfo[],Table_NCInspection[[#This Row],[Line]],L$3)),\"\")","v":""},{"$f":"IFERROR(IF(OR(Table_NCInspection[[#This Row],[Line]]=\"\",INDEX(Table_NCInfo[],Table_NCInspection[[#This Row],[Line]],M$3)=\"\"),\"\",INDEX(Table_NCInfo[],Table_NCInspection[[#This Row],[Line]],M$3)),\"\")","v":""},{"$f":"IFERROR(\nIFERROR(OFFSET(Table_TypWattage[[#Headers],[Technology]],MATCH($J14,Table_TypWattage[Technology],0)+MATCH($L14,INDIRECT(SUBSTITUTE(SUBSTITUTE($J14,\" \",\"_\"),\"-\",\"_\")),0)-1,MATCH($K14,'Measure Tables'!$Q$2:$V$2,0)+1),IF(Table_NCInspection[[#This Row],[Line]]<>\"\",IF(AND(Table_NCInspection[[#This Row],['# Lamps/ Fixture '[P']]]<>\"\",$K14>0,$L14>0),$K14*$L14,$L14),\"\")),\n\"\")","v":""},{"$f":"IFERROR(IF(OR(Table_NCInspection[[#This Row],[Line]]=\"\",INDEX(Table_NCInfo[],Table_NCInspection[[#This Row],[Line]],O$3)=\"\"),\"\",INDEX(Table_NCInfo[],Table_NCInspection[[#This Row],[Line]],O$3)),\"\")","v":""},{"$f":"IFERROR(IF(OR(Table_NCInspection[[#This Row],[Line]]=\"\",INDEX(Table_NCInfo[],Table_NCInspection[[#This Row],[Line]],P$3)=\"\"),\"\",INDEX(Table_NCInfo[],Table_NCInspection[[#This Row],[Line]],P$3)),\"\")","v":""},{"$f":"IFERROR(IF(Table_NCInspection[[#This Row],[Interior/ Exterior]]<>\"\",\n  CONCATENATE(\n  Table_NCInspection[[#This Row],[Interior/ Exterior]],\": \",\n  Table_NCInspection[[#This Row],[Fixture Technology '[P']]],\n  \" - \",Table_NCInspection[[#This Row],[Fixture Type '[P']]],\" [\",\n  IF(AND(Table_NCInspection[[#This Row],['# Lamps/ Fixture '[P']]]<>\"\",Table_NCInspection[[#This Row],['# Lamps/ Fixture '[P']]]>0),Table_NCInspection[[#This Row],['# Lamps/ Fixture '[P']]] & \"L - \" & Table_NCInspection[[#This Row],[Fixture/ Lamp Wattage '[P']]] & \"W\" & IF(Table_NCInspection[[#This Row],[Ballast/ Driver '[P']]]<>\"\",\" - \" & Table_NCInspection[[#This Row],[Ballast/ Driver '[P']]],\"\"),Table_NCInspection[[#This Row],[Fixture Wattage '[P']]] & \"W\"),\"]\",\n  IF(AND(Table_NCInspection[[#This Row],[Controls '[P']]]<>\"\"),\" - \" & Table_NCInspection[[#This Row],[Controls '[P']]],\"\")\n  ),\n\"\"),\"\")","v":""},{"$f":"IFERROR(IF(OR(Table_NCInspection[[#This Row],[Line]]=\"\",INDEX(Table_NCInfo[],Table_NCInspection[[#This Row],[Line]],R$3)=\"\"),\"\",INDEX(Table_NCInfo[],Table_NCInspection[[#This Row],[Line]],R$3)),\"\")","v":""},{"$f":"IFERROR(IF(OR(Table_NCInspection[[#This Row],[Line]]=\"\",INDEX(Table_NCInfo[],Table_NCInspection[[#This Row],[Line]],S$3)=\"\"),\"\",INDEX(Table_NCInfo[],Table_NCInspection[[#This Row],[Line]],S$3)),\"\")","v":""}]
[null,{"$f":"IFERROR(IF(OR(Table_NCInspection[[#This Row],[Line]]=\"\",INDEX(Table_NCInfo[],Table_NCInspection[[#This Row],[Line]],B$3)=\"\"),\"\",INDEX(Table_NCInfo[],Table_NCInspection[[#This Row],[Line]],B$3)),\"\")","v":""},{"$f":"IFERROR(IF(OR(Table_NCInspection[[#This Row],[Line]]=\"\",INDEX(Table_NCInfo[],Table_NCInspection[[#This Row],[Line]],C$3)=\"\"),\"\",INDEX(Table_NCInfo[],Table_NCInspection[[#This Row],[Line]],C$3)),\"\")","v":""},{"$f":"IFERROR(IF(OR(Table_NCInspection[[#This Row],[Line]]=\"\",INDEX(Table_NCInfo[],Table_NCInspection[[#This Row],[Line]],D$3)=\"\"),\"\",INDEX(Table_NCInfo[],Table_NCInspection[[#This Row],[Line]],D$3)),\"\")","v":""},{"$f":"IF(OR(Table_NCInspection[[#This Row],[Line]]<=0,IFERROR(INDEX(Table_NCInfo[],$A15,E$3),\"\")=\"\"),\"\",IF(Table_NCInspection[[#This Row],[Zone Description]]=INDEX(Table_NCInfo[],Table_NCInspection[[#This Row],[Line]],$D$3),INDEX(Table_NCInfo[],Table_NCInspection[[#This Row],[Line]],E$3),INDEX(Table_IntLookups[Zone'#],MATCH(Table_NCInspection[[#This Row],[Zone Description]],Table_IntLookups[Dropdown],0))))","v":""},{"$f":"IF(OR(Table_NCInspection[[#This Row],[Line]]<=0,IFERROR(INDEX(Table_NCInfo[],Table_NCInspection[[#This Row],[Line]],F$3),\"\")=\"\"),\"\",IF(Table_NCInspection[[#This Row],[Zone Description]]=INDEX(Table_NCInfo[],Table_NCInspection[[#This Row],[Line]],$D$3),INDEX(Table_NCInfo[],Table_NCInspection[[#This Row],[Line]],F$3),IFERROR(VLOOKUP(Table_NCInspection[[#This Row],[Zone '#]],Table_IntLookups[],'Facility Information'!$AB$4,FALSE),0)*INDEX(Table_NCInfo[Baseline Wattage],MATCH(Table_NCInspection[[#This Row],[Line]],Table_NCInfo[Line],0)/VLOOKUP(INDEX(Table_NCInfo[Zone '#],MATCH(Table_NCInspection[[#This Row],[Line]],Table_NCInfo[Line],0)),Table_IntLookups[],'Facility Information'!$AB$4,FALSE),0)))","v":""},{"$f":"IFERROR(IF(OR(Table_NCInspection[[#This Row],[Line]]=\"\",INDEX(Table_NCInfo[],Table_NCInspection[[#This Row],[Line]],G$3)=\"\"),\"\",INDEX(Table_NCInfo[],Table_NCInspection[[#This Row],[Line]],G$3)),\"\")","v":""},null,{"$f":"IFERROR(IF(OR(Table_NCInspection[[#This Row],[Line]]=\"\",INDEX(Table_NCInfo[],Table_NCInspection[[#This Row],[Line]],I$3)=\"\"),\"\",INDEX(Table_NCInfo[],Table_NCInspection[[#This Row],[Line]],I$3)),\"\")","v":""},{"$f":"IFERROR(IF(OR(Table_NCInspection[[#This Row],[Line]]=\"\",INDEX(Table_NCInfo[],Table_NCInspection[[#This Row],[Line]],J$3)=\"\"),\"\",INDEX(Table_NCInfo[],Table_NCInspection[[#This Row],[Line]],J$3)),\"\")","v":""},{"$f":"IFERROR(IF(OR(Table_NCInspection[[#This Row],[Line]]=\"\",INDEX(Table_NCInfo[],Table_NCInspection[[#This Row],[Line]],K$3)=\"\"),\"\",INDEX(Table_NCInfo[],Table_NCInspection[[#This Row],[Line]],K$3)),\"\")","v":""},{"$f":"IFERROR(IF(OR(Table_NCInspection[[#This Row],[Line]]=\"\",INDEX(Table_NCInfo[],Table_NCInspection[[#This Row],[Line]],L$3)=\"\"),\"\",INDEX(Table_NCInfo[],Table_NCInspection[[#This Row],[Line]],L$3)),\"\")","v":""},{"$f":"IFERROR(IF(OR(Table_NCInspection[[#This Row],[Line]]=\"\",INDEX(Table_NCInfo[],Table_NCInspection[[#This Row],[Line]],M$3)=\"\"),\"\",INDEX(Table_NCInfo[],Table_NCInspection[[#This Row],[Line]],M$3)),\"\")","v":""},{"$f":"IFERROR(\nIFERROR(OFFSET(Table_TypWattage[[#Headers],[Technology]],MATCH($J15,Table_TypWattage[Technology],0)+MATCH($L15,INDIRECT(SUBSTITUTE(SUBSTITUTE($J15,\" \",\"_\"),\"-\",\"_\")),0)-1,MATCH($K15,'Measure Tables'!$Q$2:$V$2,0)+1),IF(Table_NCInspection[[#This Row],[Line]]<>\"\",IF(AND(Table_NCInspection[[#This Row],['# Lamps/ Fixture '[P']]]<>\"\",$K15>0,$L15>0),$K15*$L15,$L15),\"\")),\n\"\")","v":""},{"$f":"IFERROR(IF(OR(Table_NCInspection[[#This Row],[Line]]=\"\",INDEX(Table_NCInfo[],Table_NCInspection[[#This Row],[Line]],O$3)=\"\"),\"\",INDEX(Table_NCInfo[],Table_NCInspection[[#This Row],[Line]],O$3)),\"\")","v":""},{"$f":"IFERROR(IF(OR(Table_NCInspection[[#This Row],[Line]]=\"\",INDEX(Table_NCInfo[],Table_NCInspection[[#This Row],[Line]],P$3)=\"\"),\"\",INDEX(Table_NCInfo[],Table_NCInspection[[#This Row],[Line]],P$3)),\"\")","v":""},{"$f":"IFERROR(IF(Table_NCInspection[[#This Row],[Interior/ Exterior]]<>\"\",\n  CONCATENATE(\n  Table_NCInspection[[#This Row],[Interior/ Exterior]],\": \",\n  Table_NCInspection[[#This Row],[Fixture Technology '[P']]],\n  \" - \",Table_NCInspection[[#This Row],[Fixture Type '[P']]],\" [\",\n  IF(AND(Table_NCInspection[[#This Row],['# Lamps/ Fixture '[P']]]<>\"\",Table_NCInspection[[#This Row],['# Lamps/ Fixture '[P']]]>0),Table_NCInspection[[#This Row],['# Lamps/ Fixture '[P']]] & \"L - \" & Table_NCInspection[[#This Row],[Fixture/ Lamp Wattage '[P']]] & \"W\" & IF(Table_NCInspection[[#This Row],[Ballast/ Driver '[P']]]<>\"\",\" - \" & Table_NCInspection[[#This Row],[Ballast/ Driver '[P']]],\"\"),Table_NCInspection[[#This Row],[Fixture Wattage '[P']]] & \"W\"),\"]\",\n  IF(AND(Table_NCInspection[[#This Row],[Controls '[P']]]<>\"\"),\" - \" & Table_NCInspection[[#This Row],[Controls '[P']]],\"\")\n  ),\n\"\"),\"\")","v":""},{"$f":"IFERROR(IF(OR(Table_NCInspection[[#This Row],[Line]]=\"\",INDEX(Table_NCInfo[],Table_NCInspection[[#This Row],[Line]],R$3)=\"\"),\"\",INDEX(Table_NCInfo[],Table_NCInspection[[#This Row],[Line]],R$3)),\"\")","v":""},{"$f":"IFERROR(IF(OR(Table_NCInspection[[#This Row],[Line]]=\"\",INDEX(Table_NCInfo[],Table_NCInspection[[#This Row],[Line]],S$3)=\"\"),\"\",INDEX(Table_NCInfo[],Table_NCInspection[[#This Row],[Line]],S$3)),\"\")","v":""}]
[null,{"$f":"IFERROR(IF(OR(Table_NCInspection[[#This Row],[Line]]=\"\",INDEX(Table_NCInfo[],Table_NCInspection[[#This Row],[Line]],B$3)=\"\"),\"\",INDEX(Table_NCInfo[],Table_NCInspection[[#This Row],[Line]],B$3)),\"\")","v":""},{"$f":"IFERROR(IF(OR(Table_NCInspection[[#This Row],[Line]]=\"\",INDEX(Table_NCInfo[],Table_NCInspection[[#This Row],[Line]],C$3)=\"\"),\"\",INDEX(Table_NCInfo[],Table_NCInspection[[#This Row],[Line]],C$3)),\"\")","v":""},{"$f":"IFERROR(IF(OR(Table_NCInspection[[#This Row],[Line]]=\"\",INDEX(Table_NCInfo[],Table_NCInspection[[#This Row],[Line]],D$3)=\"\"),\"\",INDEX(Table_NCInfo[],Table_NCInspection[[#This Row],[Line]],D$3)),\"\")","v":""},{"$f":"IF(OR(Table_NCInspection[[#This Row],[Line]]<=0,IFERROR(INDEX(Table_NCInfo[],$A16,E$3),\"\")=\"\"),\"\",IF(Table_NCInspection[[#This Row],[Zone Description]]=INDEX(Table_NCInfo[],Table_NCInspection[[#This Row],[Line]],$D$3),INDEX(Table_NCInfo[],Table_NCInspection[[#This Row],[Line]],E$3),INDEX(Table_IntLookups[Zone'#],MATCH(Table_NCInspection[[#This Row],[Zone Description]],Table_IntLookups[Dropdown],0))))","v":""},{"$f":"IF(OR(Table_NCInspection[[#This Row],[Line]]<=0,IFERROR(INDEX(Table_NCInfo[],Table_NCInspection[[#This Row],[Line]],F$3),\"\")=\"\"),\"\",IF(Table_NCInspection[[#This Row],[Zone Description]]=INDEX(Table_NCInfo[],Table_NCInspection[[#This Row],[Line]],$D$3),INDEX(Table_NCInfo[],Table_NCInspection[[#This Row],[Line]],F$3),IFERROR(VLOOKUP(Table_NCInspection[[#This Row],[Zone '#]],Table_IntLookups[],'Facility Information'!$AB$4,FALSE),0)*INDEX(Table_NCInfo[Baseline Wattage],MATCH(Table_NCInspection[[#This Row],[Line]],Table_NCInfo[Line],0)/VLOOKUP(INDEX(Table_NCInfo[Zone '#],MATCH(Table_NCInspection[[#This Row],[Line]],Table_NCInfo[Line],0)),Table_IntLookups[],'Facility Information'!$AB$4,FALSE),0)))","v":""},{"$f":"IFERROR(IF(OR(Table_NCInspection[[#This Row],[Line]]=\"\",INDEX(Table_NCInfo[],Table_NCInspection[[#This Row],[Line]],G$3)=\"\"),\"\",INDEX(Table_NCInfo[],Table_NCInspection[[#This Row],[Line]],G$3)),\"\")","v":""},null,{"$f":"IFERROR(IF(OR(Table_NCInspection[[#This Row],[Line]]=\"\",INDEX(Table_NCInfo[],Table_NCInspection[[#This Row],[Line]],I$3)=\"\"),\"\",INDEX(Table_NCInfo[],Table_NCInspection[[#This Row],[Line]],I$3)),\"\")","v":""},{"$f":"IFERROR(IF(OR(Table_NCInspection[[#This Row],[Line]]=\"\",INDEX(Table_NCInfo[],Table_NCInspection[[#This Row],[Line]],J$3)=\"\"),\"\",INDEX(Table_NCInfo[],Table_NCInspection[[#This Row],[Line]],J$3)),\"\")","v":""},{"$f":"IFERROR(IF(OR(Table_NCInspection[[#This Row],[Line]]=\"\",INDEX(Table_NCInfo[],Table_NCInspection[[#This Row],[Line]],K$3)=\"\"),\"\",INDEX(Table_NCInfo[],Table_NCInspection[[#This Row],[Line]],K$3)),\"\")","v":""},{"$f":"IFERROR(IF(OR(Table_NCInspection[[#This Row],[Line]]=\"\",INDEX(Table_NCInfo[],Table_NCInspection[[#This Row],[Line]],L$3)=\"\"),\"\",INDEX(Table_NCInfo[],Table_NCInspection[[#This Row],[Line]],L$3)),\"\")","v":""},{"$f":"IFERROR(IF(OR(Table_NCInspection[[#This Row],[Line]]=\"\",INDEX(Table_NCInfo[],Table_NCInspection[[#This Row],[Line]],M$3)=\"\"),\"\",INDEX(Table_NCInfo[],Table_NCInspection[[#This Row],[Line]],M$3)),\"\")","v":""},{"$f":"IFERROR(\nIFERROR(OFFSET(Table_TypWattage[[#Headers],[Technology]],MATCH($J16,Table_TypWattage[Technology],0)+MATCH($L16,INDIRECT(SUBSTITUTE(SUBSTITUTE($J16,\" \",\"_\"),\"-\",\"_\")),0)-1,MATCH($K16,'Measure Tables'!$Q$2:$V$2,0)+1),IF(Table_NCInspection[[#This Row],[Line]]<>\"\",IF(AND(Table_NCInspection[[#This Row],['# Lamps/ Fixture '[P']]]<>\"\",$K16>0,$L16>0),$K16*$L16,$L16),\"\")),\n\"\")","v":""},{"$f":"IFERROR(IF(OR(Table_NCInspection[[#This Row],[Line]]=\"\",INDEX(Table_NCInfo[],Table_NCInspection[[#This Row],[Line]],O$3)=\"\"),\"\",INDEX(Table_NCInfo[],Table_NCInspection[[#This Row],[Line]],O$3)),\"\")","v":""},{"$f":"IFERROR(IF(OR(Table_NCInspection[[#This Row],[Line]]=\"\",INDEX(Table_NCInfo[],Table_NCInspection[[#This Row],[Line]],P$3)=\"\"),\"\",INDEX(Table_NCInfo[],Table_NCInspection[[#This Row],[Line]],P$3)),\"\")","v":""},{"$f":"IFERROR(IF(Table_NCInspection[[#This Row],[Interior/ Exterior]]<>\"\",\n  CONCATENATE(\n  Table_NCInspection[[#This Row],[Interior/ Exterior]],\": \",\n  Table_NCInspection[[#This Row],[Fixture Technology '[P']]],\n  \" - \",Table_NCInspection[[#This Row],[Fixture Type '[P']]],\" [\",\n  IF(AND(Table_NCInspection[[#This Row],['# Lamps/ Fixture '[P']]]<>\"\",Table_NCInspection[[#This Row],['# Lamps/ Fixture '[P']]]>0),Table_NCInspection[[#This Row],['# Lamps/ Fixture '[P']]] & \"L - \" & Table_NCInspection[[#This Row],[Fixture/ Lamp Wattage '[P']]] & \"W\" & IF(Table_NCInspection[[#This Row],[Ballast/ Driver '[P']]]<>\"\",\" - \" & Table_NCInspection[[#This Row],[Ballast/ Driver '[P']]],\"\"),Table_NCInspection[[#This Row],[Fixture Wattage '[P']]] & \"W\"),\"]\",\n  IF(AND(Table_NCInspection[[#This Row],[Controls '[P']]]<>\"\"),\" - \" & Table_NCInspection[[#This Row],[Controls '[P']]],\"\")\n  ),\n\"\"),\"\")","v":""},{"$f":"IFERROR(IF(OR(Table_NCInspection[[#This Row],[Line]]=\"\",INDEX(Table_NCInfo[],Table_NCInspection[[#This Row],[Line]],R$3)=\"\"),\"\",INDEX(Table_NCInfo[],Table_NCInspection[[#This Row],[Line]],R$3)),\"\")","v":""},{"$f":"IFERROR(IF(OR(Table_NCInspection[[#This Row],[Line]]=\"\",INDEX(Table_NCInfo[],Table_NCInspection[[#This Row],[Line]],S$3)=\"\"),\"\",INDEX(Table_NCInfo[],Table_NCInspection[[#This Row],[Line]],S$3)),\"\")","v":""}]
[null,{"$f":"IFERROR(IF(OR(Table_NCInspection[[#This Row],[Line]]=\"\",INDEX(Table_NCInfo[],Table_NCInspection[[#This Row],[Line]],B$3)=\"\"),\"\",INDEX(Table_NCInfo[],Table_NCInspection[[#This Row],[Line]],B$3)),\"\")","v":""},{"$f":"IFERROR(IF(OR(Table_NCInspection[[#This Row],[Line]]=\"\",INDEX(Table_NCInfo[],Table_NCInspection[[#This Row],[Line]],C$3)=\"\"),\"\",INDEX(Table_NCInfo[],Table_NCInspection[[#This Row],[Line]],C$3)),\"\")","v":""},{"$f":"IFERROR(IF(OR(Table_NCInspection[[#This Row],[Line]]=\"\",INDEX(Table_NCInfo[],Table_NCInspection[[#This Row],[Line]],D$3)=\"\"),\"\",INDEX(Table_NCInfo[],Table_NCInspection[[#This Row],[Line]],D$3)),\"\")","v":""},{"$f":"IF(OR(Table_NCInspection[[#This Row],[Line]]<=0,IFERROR(INDEX(Table_NCInfo[],$A17,E$3),\"\")=\"\"),\"\",IF(Table_NCInspection[[#This Row],[Zone Description]]=INDEX(Table_NCInfo[],Table_NCInspection[[#This Row],[Line]],$D$3),INDEX(Table_NCInfo[],Table_NCInspection[[#This Row],[Line]],E$3),INDEX(Table_IntLookups[Zone'#],MATCH(Table_NCInspection[[#This Row],[Zone Description]],Table_IntLookups[Dropdown],0))))","v":""},{"$f":"IF(OR(Table_NCInspection[[#This Row],[Line]]<=0,IFERROR(INDEX(Table_NCInfo[],Table_NCInspection[[#This Row],[Line]],F$3),\"\")=\"\"),\"\",IF(Table_NCInspection[[#This Row],[Zone Description]]=INDEX(Table_NCInfo[],Table_NCInspection[[#This Row],[Line]],$D$3),INDEX(Table_NCInfo[],Table_NCInspection[[#This Row],[Line]],F$3),IFERROR(VLOOKUP(Table_NCInspection[[#This Row],[Zone '#]],Table_IntLookups[],'Facility Information'!$AB$4,FALSE),0)*INDEX(Table_NCInfo[Baseline Wattage],MATCH(Table_NCInspection[[#This Row],[Line]],Table_NCInfo[Line],0)/VLOOKUP(INDEX(Table_NCInfo[Zone '#],MATCH(Table_NCInspection[[#This Row],[Line]],Table_NCInfo[Line],0)),Table_IntLookups[],'Facility Information'!$AB$4,FALSE),0)))","v":""},{"$f":"IFERROR(IF(OR(Table_NCInspection[[#This Row],[Line]]=\"\",INDEX(Table_NCInfo[],Table_NCInspection[[#This Row],[Line]],G$3)=\"\"),\"\",INDEX(Table_NCInfo[],Table_NCInspection[[#This Row],[Line]],G$3)),\"\")","v":""},null,{"$f":"IFERROR(IF(OR(Table_NCInspection[[#This Row],[Line]]=\"\",INDEX(Table_NCInfo[],Table_NCInspection[[#This Row],[Line]],I$3)=\"\"),\"\",INDEX(Table_NCInfo[],Table_NCInspection[[#This Row],[Line]],I$3)),\"\")","v":""},{"$f":"IFERROR(IF(OR(Table_NCInspection[[#This Row],[Line]]=\"\",INDEX(Table_NCInfo[],Table_NCInspection[[#This Row],[Line]],J$3)=\"\"),\"\",INDEX(Table_NCInfo[],Table_NCInspection[[#This Row],[Line]],J$3)),\"\")","v":""},{"$f":"IFERROR(IF(OR(Table_NCInspection[[#This Row],[Line]]=\"\",INDEX(Table_NCInfo[],Table_NCInspection[[#This Row],[Line]],K$3)=\"\"),\"\",INDEX(Table_NCInfo[],Table_NCInspection[[#This Row],[Line]],K$3)),\"\")","v":""},{"$f":"IFERROR(IF(OR(Table_NCInspection[[#This Row],[Line]]=\"\",INDEX(Table_NCInfo[],Table_NCInspection[[#This Row],[Line]],L$3)=\"\"),\"\",INDEX(Table_NCInfo[],Table_NCInspection[[#This Row],[Line]],L$3)),\"\")","v":""},{"$f":"IFERROR(IF(OR(Table_NCInspection[[#This Row],[Line]]=\"\",INDEX(Table_NCInfo[],Table_NCInspection[[#This Row],[Line]],M$3)=\"\"),\"\",INDEX(Table_NCInfo[],Table_NCInspection[[#This Row],[Line]],M$3)),\"\")","v":""},{"$f":"IFERROR(\nIFERROR(OFFSET(Table_TypWattage[[#Headers],[Technology]],MATCH($J17,Table_TypWattage[Technology],0)+MATCH($L17,INDIRECT(SUBSTITUTE(SUBSTITUTE($J17,\" \",\"_\"),\"-\",\"_\")),0)-1,MATCH($K17,'Measure Tables'!$Q$2:$V$2,0)+1),IF(Table_NCInspection[[#This Row],[Line]]<>\"\",IF(AND(Table_NCInspection[[#This Row],['# Lamps/ Fixture '[P']]]<>\"\",$K17>0,$L17>0),$K17*$L17,$L17),\"\")),\n\"\")","v":""},{"$f":"IFERROR(IF(OR(Table_NCInspection[[#This Row],[Line]]=\"\",INDEX(Table_NCInfo[],Table_NCInspection[[#This Row],[Line]],O$3)=\"\"),\"\",INDEX(Table_NCInfo[],Table_NCInspection[[#This Row],[Line]],O$3)),\"\")","v":""},{"$f":"IFERROR(IF(OR(Table_NCInspection[[#This Row],[Line]]=\"\",INDEX(Table_NCInfo[],Table_NCInspection[[#This Row],[Line]],P$3)=\"\"),\"\",INDEX(Table_NCInfo[],Table_NCInspection[[#This Row],[Line]],P$3)),\"\")","v":""},{"$f":"IFERROR(IF(Table_NCInspection[[#This Row],[Interior/ Exterior]]<>\"\",\n  CONCATENATE(\n  Table_NCInspection[[#This Row],[Interior/ Exterior]],\": \",\n  Table_NCInspection[[#This Row],[Fixture Technology '[P']]],\n  \" - \",Table_NCInspection[[#This Row],[Fixture Type '[P']]],\" [\",\n  IF(AND(Table_NCInspection[[#This Row],['# Lamps/ Fixture '[P']]]<>\"\",Table_NCInspection[[#This Row],['# Lamps/ Fixture '[P']]]>0),Table_NCInspection[[#This Row],['# Lamps/ Fixture '[P']]] & \"L - \" & Table_NCInspection[[#This Row],[Fixture/ Lamp Wattage '[P']]] & \"W\" & IF(Table_NCInspection[[#This Row],[Ballast/ Driver '[P']]]<>\"\",\" - \" & Table_NCInspection[[#This Row],[Ballast/ Driver '[P']]],\"\"),Table_NCInspection[[#This Row],[Fixture Wattage '[P']]] & \"W\"),\"]\",\n  IF(AND(Table_NCInspection[[#This Row],[Controls '[P']]]<>\"\"),\" - \" & Table_NCInspection[[#This Row],[Controls '[P']]],\"\")\n  ),\n\"\"),\"\")","v":""},{"$f":"IFERROR(IF(OR(Table_NCInspection[[#This Row],[Line]]=\"\",INDEX(Table_NCInfo[],Table_NCInspection[[#This Row],[Line]],R$3)=\"\"),\"\",INDEX(Table_NCInfo[],Table_NCInspection[[#This Row],[Line]],R$3)),\"\")","v":""},{"$f":"IFERROR(IF(OR(Table_NCInspection[[#This Row],[Line]]=\"\",INDEX(Table_NCInfo[],Table_NCInspection[[#This Row],[Line]],S$3)=\"\"),\"\",INDEX(Table_NCInfo[],Table_NCInspection[[#This Row],[Line]],S$3)),\"\")","v":""}]
[null,{"$f":"IFERROR(IF(OR(Table_NCInspection[[#This Row],[Line]]=\"\",INDEX(Table_NCInfo[],Table_NCInspection[[#This Row],[Line]],B$3)=\"\"),\"\",INDEX(Table_NCInfo[],Table_NCInspection[[#This Row],[Line]],B$3)),\"\")","v":""},{"$f":"IFERROR(IF(OR(Table_NCInspection[[#This Row],[Line]]=\"\",INDEX(Table_NCInfo[],Table_NCInspection[[#This Row],[Line]],C$3)=\"\"),\"\",INDEX(Table_NCInfo[],Table_NCInspection[[#This Row],[Line]],C$3)),\"\")","v":""},{"$f":"IFERROR(IF(OR(Table_NCInspection[[#This Row],[Line]]=\"\",INDEX(Table_NCInfo[],Table_NCInspection[[#This Row],[Line]],D$3)=\"\"),\"\",INDEX(Table_NCInfo[],Table_NCInspection[[#This Row],[Line]],D$3)),\"\")","v":""},{"$f":"IF(OR(Table_NCInspection[[#This Row],[Line]]<=0,IFERROR(INDEX(Table_NCInfo[],$A18,E$3),\"\")=\"\"),\"\",IF(Table_NCInspection[[#This Row],[Zone Description]]=INDEX(Table_NCInfo[],Table_NCInspection[[#This Row],[Line]],$D$3),INDEX(Table_NCInfo[],Table_NCInspection[[#This Row],[Line]],E$3),INDEX(Table_IntLookups[Zone'#],MATCH(Table_NCInspection[[#This Row],[Zone Description]],Table_IntLookups[Dropdown],0))))","v":""},{"$f":"IF(OR(Table_NCInspection[[#This Row],[Line]]<=0,IFERROR(INDEX(Table_NCInfo[],Table_NCInspection[[#This Row],[Line]],F$3),\"\")=\"\"),\"\",IF(Table_NCInspection[[#This Row],[Zone Description]]=INDEX(Table_NCInfo[],Table_NCInspection[[#This Row],[Line]],$D$3),INDEX(Table_NCInfo[],Table_NCInspection[[#This Row],[Line]],F$3),IFERROR(VLOOKUP(Table_NCInspection[[#This Row],[Zone '#]],Table_IntLookups[],'Facility Information'!$AB$4,FALSE),0)*INDEX(Table_NCInfo[Baseline Wattage],MATCH(Table_NCInspection[[#This Row],[Line]],Table_NCInfo[Line],0)/VLOOKUP(INDEX(Table_NCInfo[Zone '#],MATCH(Table_NCInspection[[#This Row],[Line]],Table_NCInfo[Line],0)),Table_IntLookups[],'Facility Information'!$AB$4,FALSE),0)))","v":""},{"$f":"IFERROR(IF(OR(Table_NCInspection[[#This Row],[Line]]=\"\",INDEX(Table_NCInfo[],Table_NCInspection[[#This Row],[Line]],G$3)=\"\"),\"\",INDEX(Table_NCInfo[],Table_NCInspection[[#This Row],[Line]],G$3)),\"\")","v":""},null,{"$f":"IFERROR(IF(OR(Table_NCInspection[[#This Row],[Line]]=\"\",INDEX(Table_NCInfo[],Table_NCInspection[[#This Row],[Line]],I$3)=\"\"),\"\",INDEX(Table_NCInfo[],Table_NCInspection[[#This Row],[Line]],I$3)),\"\")","v":""},{"$f":"IFERROR(IF(OR(Table_NCInspection[[#This Row],[Line]]=\"\",INDEX(Table_NCInfo[],Table_NCInspection[[#This Row],[Line]],J$3)=\"\"),\"\",INDEX(Table_NCInfo[],Table_NCInspection[[#This Row],[Line]],J$3)),\"\")","v":""},{"$f":"IFERROR(IF(OR(Table_NCInspection[[#This Row],[Line]]=\"\",INDEX(Table_NCInfo[],Table_NCInspection[[#This Row],[Line]],K$3)=\"\"),\"\",INDEX(Table_NCInfo[],Table_NCInspection[[#This Row],[Line]],K$3)),\"\")","v":""},{"$f":"IFERROR(IF(OR(Table_NCInspection[[#This Row],[Line]]=\"\",INDEX(Table_NCInfo[],Table_NCInspection[[#This Row],[Line]],L$3)=\"\"),\"\",INDEX(Table_NCInfo[],Table_NCInspection[[#This Row],[Line]],L$3)),\"\")","v":""},{"$f":"IFERROR(IF(OR(Table_NCInspection[[#This Row],[Line]]=\"\",INDEX(Table_NCInfo[],Table_NCInspection[[#This Row],[Line]],M$3)=\"\"),\"\",INDEX(Table_NCInfo[],Table_NCInspection[[#This Row],[Line]],M$3)),\"\")","v":""},{"$f":"IFERROR(\nIFERROR(OFFSET(Table_TypWattage[[#Headers],[Technology]],MATCH($J18,Table_TypWattage[Technology],0)+MATCH($L18,INDIRECT(SUBSTITUTE(SUBSTITUTE($J18,\" \",\"_\"),\"-\",\"_\")),0)-1,MATCH($K18,'Measure Tables'!$Q$2:$V$2,0)+1),IF(Table_NCInspection[[#This Row],[Line]]<>\"\",IF(AND(Table_NCInspection[[#This Row],['# Lamps/ Fixture '[P']]]<>\"\",$K18>0,$L18>0),$K18*$L18,$L18),\"\")),\n\"\")","v":""},{"$f":"IFERROR(IF(OR(Table_NCInspection[[#This Row],[Line]]=\"\",INDEX(Table_NCInfo[],Table_NCInspection[[#This Row],[Line]],O$3)=\"\"),\"\",INDEX(Table_NCInfo[],Table_NCInspection[[#This Row],[Line]],O$3)),\"\")","v":""},{"$f":"IFERROR(IF(OR(Table_NCInspection[[#This Row],[Line]]=\"\",INDEX(Table_NCInfo[],Table_NCInspection[[#This Row],[Line]],P$3)=\"\"),\"\",INDEX(Table_NCInfo[],Table_NCInspection[[#This Row],[Line]],P$3)),\"\")","v":""},{"$f":"IFERROR(IF(Table_NCInspection[[#This Row],[Interior/ Exterior]]<>\"\",\n  CONCATENATE(\n  Table_NCInspection[[#This Row],[Interior/ Exterior]],\": \",\n  Table_NCInspection[[#This Row],[Fixture Technology '[P']]],\n  \" - \",Table_NCInspection[[#This Row],[Fixture Type '[P']]],\" [\",\n  IF(AND(Table_NCInspection[[#This Row],['# Lamps/ Fixture '[P']]]<>\"\",Table_NCInspection[[#This Row],['# Lamps/ Fixture '[P']]]>0),Table_NCInspection[[#This Row],['# Lamps/ Fixture '[P']]] & \"L - \" & Table_NCInspection[[#This Row],[Fixture/ Lamp Wattage '[P']]] & \"W\" & IF(Table_NCInspection[[#This Row],[Ballast/ Driver '[P']]]<>\"\",\" - \" & Table_NCInspection[[#This Row],[Ballast/ Driver '[P']]],\"\"),Table_NCInspection[[#This Row],[Fixture Wattage '[P']]] & \"W\"),\"]\",\n  IF(AND(Table_NCInspection[[#This Row],[Controls '[P']]]<>\"\"),\" - \" & Table_NCInspection[[#This Row],[Controls '[P']]],\"\")\n  ),\n\"\"),\"\")","v":""},{"$f":"IFERROR(IF(OR(Table_NCInspection[[#This Row],[Line]]=\"\",INDEX(Table_NCInfo[],Table_NCInspection[[#This Row],[Line]],R$3)=\"\"),\"\",INDEX(Table_NCInfo[],Table_NCInspection[[#This Row],[Line]],R$3)),\"\")","v":""},{"$f":"IFERROR(IF(OR(Table_NCInspection[[#This Row],[Line]]=\"\",INDEX(Table_NCInfo[],Table_NCInspection[[#This Row],[Line]],S$3)=\"\"),\"\",INDEX(Table_NCInfo[],Table_NCInspection[[#This Row],[Line]],S$3)),\"\")","v":""}]
[null,{"$f":"IFERROR(IF(OR(Table_NCInspection[[#This Row],[Line]]=\"\",INDEX(Table_NCInfo[],Table_NCInspection[[#This Row],[Line]],B$3)=\"\"),\"\",INDEX(Table_NCInfo[],Table_NCInspection[[#This Row],[Line]],B$3)),\"\")","v":""},{"$f":"IFERROR(IF(OR(Table_NCInspection[[#This Row],[Line]]=\"\",INDEX(Table_NCInfo[],Table_NCInspection[[#This Row],[Line]],C$3)=\"\"),\"\",INDEX(Table_NCInfo[],Table_NCInspection[[#This Row],[Line]],C$3)),\"\")","v":""},{"$f":"IFERROR(IF(OR(Table_NCInspection[[#This Row],[Line]]=\"\",INDEX(Table_NCInfo[],Table_NCInspection[[#This Row],[Line]],D$3)=\"\"),\"\",INDEX(Table_NCInfo[],Table_NCInspection[[#This Row],[Line]],D$3)),\"\")","v":""},{"$f":"IF(OR(Table_NCInspection[[#This Row],[Line]]<=0,IFERROR(INDEX(Table_NCInfo[],$A19,E$3),\"\")=\"\"),\"\",IF(Table_NCInspection[[#This Row],[Zone Description]]=INDEX(Table_NCInfo[],Table_NCInspection[[#This Row],[Line]],$D$3),INDEX(Table_NCInfo[],Table_NCInspection[[#This Row],[Line]],E$3),INDEX(Table_IntLookups[Zone'#],MATCH(Table_NCInspection[[#This Row],[Zone Description]],Table_IntLookups[Dropdown],0))))","v":""},{"$f":"IF(OR(Table_NCInspection[[#This Row],[Line]]<=0,IFERROR(INDEX(Table_NCInfo[],Table_NCInspection[[#This Row],[Line]],F$3),\"\")=\"\"),\"\",IF(Table_NCInspection[[#This Row],[Zone Description]]=INDEX(Table_NCInfo[],Table_NCInspection[[#This Row],[Line]],$D$3),INDEX(Table_NCInfo[],Table_NCInspection[[#This Row],[Line]],F$3),IFERROR(VLOOKUP(Table_NCInspection[[#This Row],[Zone '#]],Table_IntLookups[],'Facility Information'!$AB$4,FALSE),0)*INDEX(Table_NCInfo[Baseline Wattage],MATCH(Table_NCInspection[[#This Row],[Line]],Table_NCInfo[Line],0)/VLOOKUP(INDEX(Table_NCInfo[Zone '#],MATCH(Table_NCInspection[[#This Row],[Line]],Table_NCInfo[Line],0)),Table_IntLookups[],'Facility Information'!$AB$4,FALSE),0)))","v":""},{"$f":"IFERROR(IF(OR(Table_NCInspection[[#This Row],[Line]]=\"\",INDEX(Table_NCInfo[],Table_NCInspection[[#This Row],[Line]],G$3)=\"\"),\"\",INDEX(Table_NCInfo[],Table_NCInspection[[#This Row],[Line]],G$3)),\"\")","v":""},null,{"$f":"IFERROR(IF(OR(Table_NCInspection[[#This Row],[Line]]=\"\",INDEX(Table_NCInfo[],Table_NCInspection[[#This Row],[Line]],I$3)=\"\"),\"\",INDEX(Table_NCInfo[],Table_NCInspection[[#This Row],[Line]],I$3)),\"\")","v":""},{"$f":"IFERROR(IF(OR(Table_NCInspection[[#This Row],[Line]]=\"\",INDEX(Table_NCInfo[],Table_NCInspection[[#This Row],[Line]],J$3)=\"\"),\"\",INDEX(Table_NCInfo[],Table_NCInspection[[#This Row],[Line]],J$3)),\"\")","v":""},{"$f":"IFERROR(IF(OR(Table_NCInspection[[#This Row],[Line]]=\"\",INDEX(Table_NCInfo[],Table_NCInspection[[#This Row],[Line]],K$3)=\"\"),\"\",INDEX(Table_NCInfo[],Table_NCInspection[[#This Row],[Line]],K$3)),\"\")","v":""},{"$f":"IFERROR(IF(OR(Table_NCInspection[[#This Row],[Line]]=\"\",INDEX(Table_NCInfo[],Table_NCInspection[[#This Row],[Line]],L$3)=\"\"),\"\",INDEX(Table_NCInfo[],Table_NCInspection[[#This Row],[Line]],L$3)),\"\")","v":""},{"$f":"IFERROR(IF(OR(Table_NCInspection[[#This Row],[Line]]=\"\",INDEX(Table_NCInfo[],Table_NCInspection[[#This Row],[Line]],M$3)=\"\"),\"\",INDEX(Table_NCInfo[],Table_NCInspection[[#This Row],[Line]],M$3)),\"\")","v":""},{"$f":"IFERROR(\nIFERROR(OFFSET(Table_TypWattage[[#Headers],[Technology]],MATCH($J19,Table_TypWattage[Technology],0)+MATCH($L19,INDIRECT(SUBSTITUTE(SUBSTITUTE($J19,\" \",\"_\"),\"-\",\"_\")),0)-1,MATCH($K19,'Measure Tables'!$Q$2:$V$2,0)+1),IF(Table_NCInspection[[#This Row],[Line]]<>\"\",IF(AND(Table_NCInspection[[#This Row],['# Lamps/ Fixture '[P']]]<>\"\",$K19>0,$L19>0),$K19*$L19,$L19),\"\")),\n\"\")","v":""},{"$f":"IFERROR(IF(OR(Table_NCInspection[[#This Row],[Line]]=\"\",INDEX(Table_NCInfo[],Table_NCInspection[[#This Row],[Line]],O$3)=\"\"),\"\",INDEX(Table_NCInfo[],Table_NCInspection[[#This Row],[Line]],O$3)),\"\")","v":""},{"$f":"IFERROR(IF(OR(Table_NCInspection[[#This Row],[Line]]=\"\",INDEX(Table_NCInfo[],Table_NCInspection[[#This Row],[Line]],P$3)=\"\"),\"\",INDEX(Table_NCInfo[],Table_NCInspection[[#This Row],[Line]],P$3)),\"\")","v":""},{"$f":"IFERROR(IF(Table_NCInspection[[#This Row],[Interior/ Exterior]]<>\"\",\n  CONCATENATE(\n  Table_NCInspection[[#This Row],[Interior/ Exterior]],\": \",\n  Table_NCInspection[[#This Row],[Fixture Technology '[P']]],\n  \" - \",Table_NCInspection[[#This Row],[Fixture Type '[P']]],\" [\",\n  IF(AND(Table_NCInspection[[#This Row],['# Lamps/ Fixture '[P']]]<>\"\",Table_NCInspection[[#This Row],['# Lamps/ Fixture '[P']]]>0),Table_NCInspection[[#This Row],['# Lamps/ Fixture '[P']]] & \"L - \" & Table_NCInspection[[#This Row],[Fixture/ Lamp Wattage '[P']]] & \"W\" & IF(Table_NCInspection[[#This Row],[Ballast/ Driver '[P']]]<>\"\",\" - \" & Table_NCInspection[[#This Row],[Ballast/ Driver '[P']]],\"\"),Table_NCInspection[[#This Row],[Fixture Wattage '[P']]] & \"W\"),\"]\",\n  IF(AND(Table_NCInspection[[#This Row],[Controls '[P']]]<>\"\"),\" - \" & Table_NCInspection[[#This Row],[Controls '[P']]],\"\")\n  ),\n\"\"),\"\")","v":""},{"$f":"IFERROR(IF(OR(Table_NCInspection[[#This Row],[Line]]=\"\",INDEX(Table_NCInfo[],Table_NCInspection[[#This Row],[Line]],R$3)=\"\"),\"\",INDEX(Table_NCInfo[],Table_NCInspection[[#This Row],[Line]],R$3)),\"\")","v":""},{"$f":"IFERROR(IF(OR(Table_NCInspection[[#This Row],[Line]]=\"\",INDEX(Table_NCInfo[],Table_NCInspection[[#This Row],[Line]],S$3)=\"\"),\"\",INDEX(Table_NCInfo[],Table_NCInspection[[#This Row],[Line]],S$3)),\"\")","v":""}]
[null,{"$f":"IFERROR(IF(OR(Table_NCInspection[[#This Row],[Line]]=\"\",INDEX(Table_NCInfo[],Table_NCInspection[[#This Row],[Line]],B$3)=\"\"),\"\",INDEX(Table_NCInfo[],Table_NCInspection[[#This Row],[Line]],B$3)),\"\")","v":""},{"$f":"IFERROR(IF(OR(Table_NCInspection[[#This Row],[Line]]=\"\",INDEX(Table_NCInfo[],Table_NCInspection[[#This Row],[Line]],C$3)=\"\"),\"\",INDEX(Table_NCInfo[],Table_NCInspection[[#This Row],[Line]],C$3)),\"\")","v":""},{"$f":"IFERROR(IF(OR(Table_NCInspection[[#This Row],[Line]]=\"\",INDEX(Table_NCInfo[],Table_NCInspection[[#This Row],[Line]],D$3)=\"\"),\"\",INDEX(Table_NCInfo[],Table_NCInspection[[#This Row],[Line]],D$3)),\"\")","v":""},{"$f":"IF(OR(Table_NCInspection[[#This Row],[Line]]<=0,IFERROR(INDEX(Table_NCInfo[],$A20,E$3),\"\")=\"\"),\"\",IF(Table_NCInspection[[#This Row],[Zone Description]]=INDEX(Table_NCInfo[],Table_NCInspection[[#This Row],[Line]],$D$3),INDEX(Table_NCInfo[],Table_NCInspection[[#This Row],[Line]],E$3),INDEX(Table_IntLookups[Zone'#],MATCH(Table_NCInspection[[#This Row],[Zone Description]],Table_IntLookups[Dropdown],0))))","v":""},{"$f":"IF(OR(Table_NCInspection[[#This Row],[Line]]<=0,IFERROR(INDEX(Table_NCInfo[],Table_NCInspection[[#This Row],[Line]],F$3),\"\")=\"\"),\"\",IF(Table_NCInspection[[#This Row],[Zone Description]]=INDEX(Table_NCInfo[],Table_NCInspection[[#This Row],[Line]],$D$3),INDEX(Table_NCInfo[],Table_NCInspection[[#This Row],[Line]],F$3),IFERROR(VLOOKUP(Table_NCInspection[[#This Row],[Zone '#]],Table_IntLookups[],'Facility Information'!$AB$4,FALSE),0)*INDEX(Table_NCInfo[Baseline Wattage],MATCH(Table_NCInspection[[#This Row],[Line]],Table_NCInfo[Line],0)/VLOOKUP(INDEX(Table_NCInfo[Zone '#],MATCH(Table_NCInspection[[#This Row],[Line]],Table_NCInfo[Line],0)),Table_IntLookups[],'Facility Information'!$AB$4,FALSE),0)))","v":""},{"$f":"IFERROR(IF(OR(Table_NCInspection[[#This Row],[Line]]=\"\",INDEX(Table_NCInfo[],Table_NCInspection[[#This Row],[Line]],G$3)=\"\"),\"\",INDEX(Table_NCInfo[],Table_NCInspection[[#This Row],[Line]],G$3)),\"\")","v":""},null,{"$f":"IFERROR(IF(OR(Table_NCInspection[[#This Row],[Line]]=\"\",INDEX(Table_NCInfo[],Table_NCInspection[[#This Row],[Line]],I$3)=\"\"),\"\",INDEX(Table_NCInfo[],Table_NCInspection[[#This Row],[Line]],I$3)),\"\")","v":""},{"$f":"IFERROR(IF(OR(Table_NCInspection[[#This Row],[Line]]=\"\",INDEX(Table_NCInfo[],Table_NCInspection[[#This Row],[Line]],J$3)=\"\"),\"\",INDEX(Table_NCInfo[],Table_NCInspection[[#This Row],[Line]],J$3)),\"\")","v":""},{"$f":"IFERROR(IF(OR(Table_NCInspection[[#This Row],[Line]]=\"\",INDEX(Table_NCInfo[],Table_NCInspection[[#This Row],[Line]],K$3)=\"\"),\"\",INDEX(Table_NCInfo[],Table_NCInspection[[#This Row],[Line]],K$3)),\"\")","v":""},{"$f":"IFERROR(IF(OR(Table_NCInspection[[#This Row],[Line]]=\"\",INDEX(Table_NCInfo[],Table_NCInspection[[#This Row],[Line]],L$3)=\"\"),\"\",INDEX(Table_NCInfo[],Table_NCInspection[[#This Row],[Line]],L$3)),\"\")","v":""},{"$f":"IFERROR(IF(OR(Table_NCInspection[[#This Row],[Line]]=\"\",INDEX(Table_NCInfo[],Table_NCInspection[[#This Row],[Line]],M$3)=\"\"),\"\",INDEX(Table_NCInfo[],Table_NCInspection[[#This Row],[Line]],M$3)),\"\")","v":""},{"$f":"IFERROR(\nIFERROR(OFFSET(Table_TypWattage[[#Headers],[Technology]],MATCH($J20,Table_TypWattage[Technology],0)+MATCH($L20,INDIRECT(SUBSTITUTE(SUBSTITUTE($J20,\" \",\"_\"),\"-\",\"_\")),0)-1,MATCH($K20,'Measure Tables'!$Q$2:$V$2,0)+1),IF(Table_NCInspection[[#This Row],[Line]]<>\"\",IF(AND(Table_NCInspection[[#This Row],['# Lamps/ Fixture '[P']]]<>\"\",$K20>0,$L20>0),$K20*$L20,$L20),\"\")),\n\"\")","v":""},{"$f":"IFERROR(IF(OR(Table_NCInspection[[#This Row],[Line]]=\"\",INDEX(Table_NCInfo[],Table_NCInspection[[#This Row],[Line]],O$3)=\"\"),\"\",INDEX(Table_NCInfo[],Table_NCInspection[[#This Row],[Line]],O$3)),\"\")","v":""},{"$f":"IFERROR(IF(OR(Table_NCInspection[[#This Row],[Line]]=\"\",INDEX(Table_NCInfo[],Table_NCInspection[[#This Row],[Line]],P$3)=\"\"),\"\",INDEX(Table_NCInfo[],Table_NCInspection[[#This Row],[Line]],P$3)),\"\")","v":""},{"$f":"IFERROR(IF(Table_NCInspection[[#This Row],[Interior/ Exterior]]<>\"\",\n  CONCATENATE(\n  Table_NCInspection[[#This Row],[Interior/ Exterior]],\": \",\n  Table_NCInspection[[#This Row],[Fixture Technology '[P']]],\n  \" - \",Table_NCInspection[[#This Row],[Fixture Type '[P']]],\" [\",\n  IF(AND(Table_NCInspection[[#This Row],['# Lamps/ Fixture '[P']]]<>\"\",Table_NCInspection[[#This Row],['# Lamps/ Fixture '[P']]]>0),Table_NCInspection[[#This Row],['# Lamps/ Fixture '[P']]] & \"L - \" & Table_NCInspection[[#This Row],[Fixture/ Lamp Wattage '[P']]] & \"W\" & IF(Table_NCInspection[[#This Row],[Ballast/ Driver '[P']]]<>\"\",\" - \" & Table_NCInspection[[#This Row],[Ballast/ Driver '[P']]],\"\"),Table_NCInspection[[#This Row],[Fixture Wattage '[P']]] & \"W\"),\"]\",\n  IF(AND(Table_NCInspection[[#This Row],[Controls '[P']]]<>\"\"),\" - \" & Table_NCInspection[[#This Row],[Controls '[P']]],\"\")\n  ),\n\"\"),\"\")","v":""},{"$f":"IFERROR(IF(OR(Table_NCInspection[[#This Row],[Line]]=\"\",INDEX(Table_NCInfo[],Table_NCInspection[[#This Row],[Line]],R$3)=\"\"),\"\",INDEX(Table_NCInfo[],Table_NCInspection[[#This Row],[Line]],R$3)),\"\")","v":""},{"$f":"IFERROR(IF(OR(Table_NCInspection[[#This Row],[Line]]=\"\",INDEX(Table_NCInfo[],Table_NCInspection[[#This Row],[Line]],S$3)=\"\"),\"\",INDEX(Table_NCInfo[],Table_NCInspection[[#This Row],[Line]],S$3)),\"\")","v":""}]
[null,{"$f":"IFERROR(IF(OR(Table_NCInspection[[#This Row],[Line]]=\"\",INDEX(Table_NCInfo[],Table_NCInspection[[#This Row],[Line]],B$3)=\"\"),\"\",INDEX(Table_NCInfo[],Table_NCInspection[[#This Row],[Line]],B$3)),\"\")","v":""},{"$f":"IFERROR(IF(OR(Table_NCInspection[[#This Row],[Line]]=\"\",INDEX(Table_NCInfo[],Table_NCInspection[[#This Row],[Line]],C$3)=\"\"),\"\",INDEX(Table_NCInfo[],Table_NCInspection[[#This Row],[Line]],C$3)),\"\")","v":""},{"$f":"IFERROR(IF(OR(Table_NCInspection[[#This Row],[Line]]=\"\",INDEX(Table_NCInfo[],Table_NCInspection[[#This Row],[Line]],D$3)=\"\"),\"\",INDEX(Table_NCInfo[],Table_NCInspection[[#This Row],[Line]],D$3)),\"\")","v":""},{"$f":"IF(OR(Table_NCInspection[[#This Row],[Line]]<=0,IFERROR(INDEX(Table_NCInfo[],$A21,E$3),\"\")=\"\"),\"\",IF(Table_NCInspection[[#This Row],[Zone Description]]=INDEX(Table_NCInfo[],Table_NCInspection[[#This Row],[Line]],$D$3),INDEX(Table_NCInfo[],Table_NCInspection[[#This Row],[Line]],E$3),INDEX(Table_IntLookups[Zone'#],MATCH(Table_NCInspection[[#This Row],[Zone Description]],Table_IntLookups[Dropdown],0))))","v":""},{"$f":"IF(OR(Table_NCInspection[[#This Row],[Line]]<=0,IFERROR(INDEX(Table_NCInfo[],Table_NCInspection[[#This Row],[Line]],F$3),\"\")=\"\"),\"\",IF(Table_NCInspection[[#This Row],[Zone Description]]=INDEX(Table_NCInfo[],Table_NCInspection[[#This Row],[Line]],$D$3),INDEX(Table_NCInfo[],Table_NCInspection[[#This Row],[Line]],F$3),IFERROR(VLOOKUP(Table_NCInspection[[#This Row],[Zone '#]],Table_IntLookups[],'Facility Information'!$AB$4,FALSE),0)*INDEX(Table_NCInfo[Baseline Wattage],MATCH(Table_NCInspection[[#This Row],[Line]],Table_NCInfo[Line],0)/VLOOKUP(INDEX(Table_NCInfo[Zone '#],MATCH(Table_NCInspection[[#This Row],[Line]],Table_NCInfo[Line],0)),Table_IntLookups[],'Facility Information'!$AB$4,FALSE),0)))","v":""},{"$f":"IFERROR(IF(OR(Table_NCInspection[[#This Row],[Line]]=\"\",INDEX(Table_NCInfo[],Table_NCInspection[[#This Row],[Line]],G$3)=\"\"),\"\",INDEX(Table_NCInfo[],Table_NCInspection[[#This Row],[Line]],G$3)),\"\")","v":""},null,{"$f":"IFERROR(IF(OR(Table_NCInspection[[#This Row],[Line]]=\"\",INDEX(Table_NCInfo[],Table_NCInspection[[#This Row],[Line]],I$3)=\"\"),\"\",INDEX(Table_NCInfo[],Table_NCInspection[[#This Row],[Line]],I$3)),\"\")","v":""},{"$f":"IFERROR(IF(OR(Table_NCInspection[[#This Row],[Line]]=\"\",INDEX(Table_NCInfo[],Table_NCInspection[[#This Row],[Line]],J$3)=\"\"),\"\",INDEX(Table_NCInfo[],Table_NCInspection[[#This Row],[Line]],J$3)),\"\")","v":""},{"$f":"IFERROR(IF(OR(Table_NCInspection[[#This Row],[Line]]=\"\",INDEX(Table_NCInfo[],Table_NCInspection[[#This Row],[Line]],K$3)=\"\"),\"\",INDEX(Table_NCInfo[],Table_NCInspection[[#This Row],[Line]],K$3)),\"\")","v":""},{"$f":"IFERROR(IF(OR(Table_NCInspection[[#This Row],[Line]]=\"\",INDEX(Table_NCInfo[],Table_NCInspection[[#This Row],[Line]],L$3)=\"\"),\"\",INDEX(Table_NCInfo[],Table_NCInspection[[#This Row],[Line]],L$3)),\"\")","v":""},{"$f":"IFERROR(IF(OR(Table_NCInspection[[#This Row],[Line]]=\"\",INDEX(Table_NCInfo[],Table_NCInspection[[#This Row],[Line]],M$3)=\"\"),\"\",INDEX(Table_NCInfo[],Table_NCInspection[[#This Row],[Line]],M$3)),\"\")","v":""},{"$f":"IFERROR(\nIFERROR(OFFSET(Table_TypWattage[[#Headers],[Technology]],MATCH($J21,Table_TypWattage[Technology],0)+MATCH($L21,INDIRECT(SUBSTITUTE(SUBSTITUTE($J21,\" \",\"_\"),\"-\",\"_\")),0)-1,MATCH($K21,'Measure Tables'!$Q$2:$V$2,0)+1),IF(Table_NCInspection[[#This Row],[Line]]<>\"\",IF(AND(Table_NCInspection[[#This Row],['# Lamps/ Fixture '[P']]]<>\"\",$K21>0,$L21>0),$K21*$L21,$L21),\"\")),\n\"\")","v":""},{"$f":"IFERROR(IF(OR(Table_NCInspection[[#This Row],[Line]]=\"\",INDEX(Table_NCInfo[],Table_NCInspection[[#This Row],[Line]],O$3)=\"\"),\"\",INDEX(Table_NCInfo[],Table_NCInspection[[#This Row],[Line]],O$3)),\"\")","v":""},{"$f":"IFERROR(IF(OR(Table_NCInspection[[#This Row],[Line]]=\"\",INDEX(Table_NCInfo[],Table_NCInspection[[#This Row],[Line]],P$3)=\"\"),\"\",INDEX(Table_NCInfo[],Table_NCInspection[[#This Row],[Line]],P$3)),\"\")","v":""},{"$f":"IFERROR(IF(Table_NCInspection[[#This Row],[Interior/ Exterior]]<>\"\",\n  CONCATENATE(\n  Table_NCInspection[[#This Row],[Interior/ Exterior]],\": \",\n  Table_NCInspection[[#This Row],[Fixture Technology '[P']]],\n  \" - \",Table_NCInspection[[#This Row],[Fixture Type '[P']]],\" [\",\n  IF(AND(Table_NCInspection[[#This Row],['# Lamps/ Fixture '[P']]]<>\"\",Table_NCInspection[[#This Row],['# Lamps/ Fixture '[P']]]>0),Table_NCInspection[[#This Row],['# Lamps/ Fixture '[P']]] & \"L - \" & Table_NCInspection[[#This Row],[Fixture/ Lamp Wattage '[P']]] & \"W\" & IF(Table_NCInspection[[#This Row],[Ballast/ Driver '[P']]]<>\"\",\" - \" & Table_NCInspection[[#This Row],[Ballast/ Driver '[P']]],\"\"),Table_NCInspection[[#This Row],[Fixture Wattage '[P']]] & \"W\"),\"]\",\n  IF(AND(Table_NCInspection[[#This Row],[Controls '[P']]]<>\"\"),\" - \" & Table_NCInspection[[#This Row],[Controls '[P']]],\"\")\n  ),\n\"\"),\"\")","v":""},{"$f":"IFERROR(IF(OR(Table_NCInspection[[#This Row],[Line]]=\"\",INDEX(Table_NCInfo[],Table_NCInspection[[#This Row],[Line]],R$3)=\"\"),\"\",INDEX(Table_NCInfo[],Table_NCInspection[[#This Row],[Line]],R$3)),\"\")","v":""},{"$f":"IFERROR(IF(OR(Table_NCInspection[[#This Row],[Line]]=\"\",INDEX(Table_NCInfo[],Table_NCInspection[[#This Row],[Line]],S$3)=\"\"),\"\",INDEX(Table_NCInfo[],Table_NCInspection[[#This Row],[Line]],S$3)),\"\")","v":""}]
[null,{"$f":"IFERROR(IF(OR(Table_NCInspection[[#This Row],[Line]]=\"\",INDEX(Table_NCInfo[],Table_NCInspection[[#This Row],[Line]],B$3)=\"\"),\"\",INDEX(Table_NCInfo[],Table_NCInspection[[#This Row],[Line]],B$3)),\"\")","v":""},{"$f":"IFERROR(IF(OR(Table_NCInspection[[#This Row],[Line]]=\"\",INDEX(Table_NCInfo[],Table_NCInspection[[#This Row],[Line]],C$3)=\"\"),\"\",INDEX(Table_NCInfo[],Table_NCInspection[[#This Row],[Line]],C$3)),\"\")","v":""},{"$f":"IFERROR(IF(OR(Table_NCInspection[[#This Row],[Line]]=\"\",INDEX(Table_NCInfo[],Table_NCInspection[[#This Row],[Line]],D$3)=\"\"),\"\",INDEX(Table_NCInfo[],Table_NCInspection[[#This Row],[Line]],D$3)),\"\")","v":""},{"$f":"IF(OR(Table_NCInspection[[#This Row],[Line]]<=0,IFERROR(INDEX(Table_NCInfo[],$A22,E$3),\"\")=\"\"),\"\",IF(Table_NCInspection[[#This Row],[Zone Description]]=INDEX(Table_NCInfo[],Table_NCInspection[[#This Row],[Line]],$D$3),INDEX(Table_NCInfo[],Table_NCInspection[[#This Row],[Line]],E$3),INDEX(Table_IntLookups[Zone'#],MATCH(Table_NCInspection[[#This Row],[Zone Description]],Table_IntLookups[Dropdown],0))))","v":""},{"$f":"IF(OR(Table_NCInspection[[#This Row],[Line]]<=0,IFERROR(INDEX(Table_NCInfo[],Table_NCInspection[[#This Row],[Line]],F$3),\"\")=\"\"),\"\",IF(Table_NCInspection[[#This Row],[Zone Description]]=INDEX(Table_NCInfo[],Table_NCInspection[[#This Row],[Line]],$D$3),INDEX(Table_NCInfo[],Table_NCInspection[[#This Row],[Line]],F$3),IFERROR(VLOOKUP(Table_NCInspection[[#This Row],[Zone '#]],Table_IntLookups[],'Facility Information'!$AB$4,FALSE),0)*INDEX(Table_NCInfo[Baseline Wattage],MATCH(Table_NCInspection[[#This Row],[Line]],Table_NCInfo[Line],0)/VLOOKUP(INDEX(Table_NCInfo[Zone '#],MATCH(Table_NCInspection[[#This Row],[Line]],Table_NCInfo[Line],0)),Table_IntLookups[],'Facility Information'!$AB$4,FALSE),0)))","v":""},{"$f":"IFERROR(IF(OR(Table_NCInspection[[#This Row],[Line]]=\"\",INDEX(Table_NCInfo[],Table_NCInspection[[#This Row],[Line]],G$3)=\"\"),\"\",INDEX(Table_NCInfo[],Table_NCInspection[[#This Row],[Line]],G$3)),\"\")","v":""},null,{"$f":"IFERROR(IF(OR(Table_NCInspection[[#This Row],[Line]]=\"\",INDEX(Table_NCInfo[],Table_NCInspection[[#This Row],[Line]],I$3)=\"\"),\"\",INDEX(Table_NCInfo[],Table_NCInspection[[#This Row],[Line]],I$3)),\"\")","v":""},{"$f":"IFERROR(IF(OR(Table_NCInspection[[#This Row],[Line]]=\"\",INDEX(Table_NCInfo[],Table_NCInspection[[#This Row],[Line]],J$3)=\"\"),\"\",INDEX(Table_NCInfo[],Table_NCInspection[[#This Row],[Line]],J$3)),\"\")","v":""},{"$f":"IFERROR(IF(OR(Table_NCInspection[[#This Row],[Line]]=\"\",INDEX(Table_NCInfo[],Table_NCInspection[[#This Row],[Line]],K$3)=\"\"),\"\",INDEX(Table_NCInfo[],Table_NCInspection[[#This Row],[Line]],K$3)),\"\")","v":""},{"$f":"IFERROR(IF(OR(Table_NCInspection[[#This Row],[Line]]=\"\",INDEX(Table_NCInfo[],Table_NCInspection[[#This Row],[Line]],L$3)=\"\"),\"\",INDEX(Table_NCInfo[],Table_NCInspection[[#This Row],[Line]],L$3)),\"\")","v":""},{"$f":"IFERROR(IF(OR(Table_NCInspection[[#This Row],[Line]]=\"\",INDEX(Table_NCInfo[],Table_NCInspection[[#This Row],[Line]],M$3)=\"\"),\"\",INDEX(Table_NCInfo[],Table_NCInspection[[#This Row],[Line]],M$3)),\"\")","v":""},{"$f":"IFERROR(\nIFERROR(OFFSET(Table_TypWattage[[#Headers],[Technology]],MATCH($J22,Table_TypWattage[Technology],0)+MATCH($L22,INDIRECT(SUBSTITUTE(SUBSTITUTE($J22,\" \",\"_\"),\"-\",\"_\")),0)-1,MATCH($K22,'Measure Tables'!$Q$2:$V$2,0)+1),IF(Table_NCInspection[[#This Row],[Line]]<>\"\",IF(AND(Table_NCInspection[[#This Row],['# Lamps/ Fixture '[P']]]<>\"\",$K22>0,$L22>0),$K22*$L22,$L22),\"\")),\n\"\")","v":""},{"$f":"IFERROR(IF(OR(Table_NCInspection[[#This Row],[Line]]=\"\",INDEX(Table_NCInfo[],Table_NCInspection[[#This Row],[Line]],O$3)=\"\"),\"\",INDEX(Table_NCInfo[],Table_NCInspection[[#This Row],[Line]],O$3)),\"\")","v":""},{"$f":"IFERROR(IF(OR(Table_NCInspection[[#This Row],[Line]]=\"\",INDEX(Table_NCInfo[],Table_NCInspection[[#This Row],[Line]],P$3)=\"\"),\"\",INDEX(Table_NCInfo[],Table_NCInspection[[#This Row],[Line]],P$3)),\"\")","v":""},{"$f":"IFERROR(IF(Table_NCInspection[[#This Row],[Interior/ Exterior]]<>\"\",\n  CONCATENATE(\n  Table_NCInspection[[#This Row],[Interior/ Exterior]],\": \",\n  Table_NCInspection[[#This Row],[Fixture Technology '[P']]],\n  \" - \",Table_NCInspection[[#This Row],[Fixture Type '[P']]],\" [\",\n  IF(AND(Table_NCInspection[[#This Row],['# Lamps/ Fixture '[P']]]<>\"\",Table_NCInspection[[#This Row],['# Lamps/ Fixture '[P']]]>0),Table_NCInspection[[#This Row],['# Lamps/ Fixture '[P']]] & \"L - \" & Table_NCInspection[[#This Row],[Fixture/ Lamp Wattage '[P']]] & \"W\" & IF(Table_NCInspection[[#This Row],[Ballast/ Driver '[P']]]<>\"\",\" - \" & Table_NCInspection[[#This Row],[Ballast/ Driver '[P']]],\"\"),Table_NCInspection[[#This Row],[Fixture Wattage '[P']]] & \"W\"),\"]\",\n  IF(AND(Table_NCInspection[[#This Row],[Controls '[P']]]<>\"\"),\" - \" & Table_NCInspection[[#This Row],[Controls '[P']]],\"\")\n  ),\n\"\"),\"\")","v":""},{"$f":"IFERROR(IF(OR(Table_NCInspection[[#This Row],[Line]]=\"\",INDEX(Table_NCInfo[],Table_NCInspection[[#This Row],[Line]],R$3)=\"\"),\"\",INDEX(Table_NCInfo[],Table_NCInspection[[#This Row],[Line]],R$3)),\"\")","v":""},{"$f":"IFERROR(IF(OR(Table_NCInspection[[#This Row],[Line]]=\"\",INDEX(Table_NCInfo[],Table_NCInspection[[#This Row],[Line]],S$3)=\"\"),\"\",INDEX(Table_NCInfo[],Table_NCInspection[[#This Row],[Line]],S$3)),\"\")","v":""}]
[null,{"$f":"IFERROR(IF(OR(Table_NCInspection[[#This Row],[Line]]=\"\",INDEX(Table_NCInfo[],Table_NCInspection[[#This Row],[Line]],B$3)=\"\"),\"\",INDEX(Table_NCInfo[],Table_NCInspection[[#This Row],[Line]],B$3)),\"\")","v":""},{"$f":"IFERROR(IF(OR(Table_NCInspection[[#This Row],[Line]]=\"\",INDEX(Table_NCInfo[],Table_NCInspection[[#This Row],[Line]],C$3)=\"\"),\"\",INDEX(Table_NCInfo[],Table_NCInspection[[#This Row],[Line]],C$3)),\"\")","v":""},{"$f":"IFERROR(IF(OR(Table_NCInspection[[#This Row],[Line]]=\"\",INDEX(Table_NCInfo[],Table_NCInspection[[#This Row],[Line]],D$3)=\"\"),\"\",INDEX(Table_NCInfo[],Table_NCInspection[[#This Row],[Line]],D$3)),\"\")","v":""},{"$f":"IF(OR(Table_NCInspection[[#This Row],[Line]]<=0,IFERROR(INDEX(Table_NCInfo[],$A23,E$3),\"\")=\"\"),\"\",IF(Table_NCInspection[[#This Row],[Zone Description]]=INDEX(Table_NCInfo[],Table_NCInspection[[#This Row],[Line]],$D$3),INDEX(Table_NCInfo[],Table_NCInspection[[#This Row],[Line]],E$3),INDEX(Table_IntLookups[Zone'#],MATCH(Table_NCInspection[[#This Row],[Zone Description]],Table_IntLookups[Dropdown],0))))","v":""},{"$f":"IF(OR(Table_NCInspection[[#This Row],[Line]]<=0,IFERROR(INDEX(Table_NCInfo[],Table_NCInspection[[#This Row],[Line]],F$3),\"\")=\"\"),\"\",IF(Table_NCInspection[[#This Row],[Zone Description]]=INDEX(Table_NCInfo[],Table_NCInspection[[#This Row],[Line]],$D$3),INDEX(Table_NCInfo[],Table_NCInspection[[#This Row],[Line]],F$3),IFERROR(VLOOKUP(Table_NCInspection[[#This Row],[Zone '#]],Table_IntLookups[],'Facility Information'!$AB$4,FALSE),0)*INDEX(Table_NCInfo[Baseline Wattage],MATCH(Table_NCInspection[[#This Row],[Line]],Table_NCInfo[Line],0)/VLOOKUP(INDEX(Table_NCInfo[Zone '#],MATCH(Table_NCInspection[[#This Row],[Line]],Table_NCInfo[Line],0)),Table_IntLookups[],'Facility Information'!$AB$4,FALSE),0)))","v":""},{"$f":"IFERROR(IF(OR(Table_NCInspection[[#This Row],[Line]]=\"\",INDEX(Table_NCInfo[],Table_NCInspection[[#This Row],[Line]],G$3)=\"\"),\"\",INDEX(Table_NCInfo[],Table_NCInspection[[#This Row],[Line]],G$3)),\"\")","v":""},null,{"$f":"IFERROR(IF(OR(Table_NCInspection[[#This Row],[Line]]=\"\",INDEX(Table_NCInfo[],Table_NCInspection[[#This Row],[Line]],I$3)=\"\"),\"\",INDEX(Table_NCInfo[],Table_NCInspection[[#This Row],[Line]],I$3)),\"\")","v":""},{"$f":"IFERROR(IF(OR(Table_NCInspection[[#This Row],[Line]]=\"\",INDEX(Table_NCInfo[],Table_NCInspection[[#This Row],[Line]],J$3)=\"\"),\"\",INDEX(Table_NCInfo[],Table_NCInspection[[#This Row],[Line]],J$3)),\"\")","v":""},{"$f":"IFERROR(IF(OR(Table_NCInspection[[#This Row],[Line]]=\"\",INDEX(Table_NCInfo[],Table_NCInspection[[#This Row],[Line]],K$3)=\"\"),\"\",INDEX(Table_NCInfo[],Table_NCInspection[[#This Row],[Line]],K$3)),\"\")","v":""},{"$f":"IFERROR(IF(OR(Table_NCInspection[[#This Row],[Line]]=\"\",INDEX(Table_NCInfo[],Table_NCInspection[[#This Row],[Line]],L$3)=\"\"),\"\",INDEX(Table_NCInfo[],Table_NCInspection[[#This Row],[Line]],L$3)),\"\")","v":""},{"$f":"IFERROR(IF(OR(Table_NCInspection[[#This Row],[Line]]=\"\",INDEX(Table_NCInfo[],Table_NCInspection[[#This Row],[Line]],M$3)=\"\"),\"\",INDEX(Table_NCInfo[],Table_NCInspection[[#This Row],[Line]],M$3)),\"\")","v":""},{"$f":"IFERROR(\nIFERROR(OFFSET(Table_TypWattage[[#Headers],[Technology]],MATCH($J23,Table_TypWattage[Technology],0)+MATCH($L23,INDIRECT(SUBSTITUTE(SUBSTITUTE($J23,\" \",\"_\"),\"-\",\"_\")),0)-1,MATCH($K23,'Measure Tables'!$Q$2:$V$2,0)+1),IF(Table_NCInspection[[#This Row],[Line]]<>\"\",IF(AND(Table_NCInspection[[#This Row],['# Lamps/ Fixture '[P']]]<>\"\",$K23>0,$L23>0),$K23*$L23,$L23),\"\")),\n\"\")","v":""},{"$f":"IFERROR(IF(OR(Table_NCInspection[[#This Row],[Line]]=\"\",INDEX(Table_NCInfo[],Table_NCInspection[[#This Row],[Line]],O$3)=\"\"),\"\",INDEX(Table_NCInfo[],Table_NCInspection[[#This Row],[Line]],O$3)),\"\")","v":""},{"$f":"IFERROR(IF(OR(Table_NCInspection[[#This Row],[Line]]=\"\",INDEX(Table_NCInfo[],Table_NCInspection[[#This Row],[Line]],P$3)=\"\"),\"\",INDEX(Table_NCInfo[],Table_NCInspection[[#This Row],[Line]],P$3)),\"\")","v":""},{"$f":"IFERROR(IF(Table_NCInspection[[#This Row],[Interior/ Exterior]]<>\"\",\n  CONCATENATE(\n  Table_NCInspection[[#This Row],[Interior/ Exterior]],\": \",\n  Table_NCInspection[[#This Row],[Fixture Technology '[P']]],\n  \" - \",Table_NCInspection[[#This Row],[Fixture Type '[P']]],\" [\",\n  IF(AND(Table_NCInspection[[#This Row],['# Lamps/ Fixture '[P']]]<>\"\",Table_NCInspection[[#This Row],['# Lamps/ Fixture '[P']]]>0),Table_NCInspection[[#This Row],['# Lamps/ Fixture '[P']]] & \"L - \" & Table_NCInspection[[#This Row],[Fixture/ Lamp Wattage '[P']]] & \"W\" & IF(Table_NCInspection[[#This Row],[Ballast/ Driver '[P']]]<>\"\",\" - \" & Table_NCInspection[[#This Row],[Ballast/ Driver '[P']]],\"\"),Table_NCInspection[[#This Row],[Fixture Wattage '[P']]] & \"W\"),\"]\",\n  IF(AND(Table_NCInspection[[#This Row],[Controls '[P']]]<>\"\"),\" - \" & Table_NCInspection[[#This Row],[Controls '[P']]],\"\")\n  ),\n\"\"),\"\")","v":""},{"$f":"IFERROR(IF(OR(Table_NCInspection[[#This Row],[Line]]=\"\",INDEX(Table_NCInfo[],Table_NCInspection[[#This Row],[Line]],R$3)=\"\"),\"\",INDEX(Table_NCInfo[],Table_NCInspection[[#This Row],[Line]],R$3)),\"\")","v":""},{"$f":"IFERROR(IF(OR(Table_NCInspection[[#This Row],[Line]]=\"\",INDEX(Table_NCInfo[],Table_NCInspection[[#This Row],[Line]],S$3)=\"\"),\"\",INDEX(Table_NCInfo[],Table_NCInspection[[#This Row],[Line]],S$3)),\"\")","v":""}]
[null,{"$f":"IFERROR(IF(OR(Table_NCInspection[[#This Row],[Line]]=\"\",INDEX(Table_NCInfo[],Table_NCInspection[[#This Row],[Line]],B$3)=\"\"),\"\",INDEX(Table_NCInfo[],Table_NCInspection[[#This Row],[Line]],B$3)),\"\")","v":""},{"$f":"IFERROR(IF(OR(Table_NCInspection[[#This Row],[Line]]=\"\",INDEX(Table_NCInfo[],Table_NCInspection[[#This Row],[Line]],C$3)=\"\"),\"\",INDEX(Table_NCInfo[],Table_NCInspection[[#This Row],[Line]],C$3)),\"\")","v":""},{"$f":"IFERROR(IF(OR(Table_NCInspection[[#This Row],[Line]]=\"\",INDEX(Table_NCInfo[],Table_NCInspection[[#This Row],[Line]],D$3)=\"\"),\"\",INDEX(Table_NCInfo[],Table_NCInspection[[#This Row],[Line]],D$3)),\"\")","v":""},{"$f":"IF(OR(Table_NCInspection[[#This Row],[Line]]<=0,IFERROR(INDEX(Table_NCInfo[],$A24,E$3),\"\")=\"\"),\"\",IF(Table_NCInspection[[#This Row],[Zone Description]]=INDEX(Table_NCInfo[],Table_NCInspection[[#This Row],[Line]],$D$3),INDEX(Table_NCInfo[],Table_NCInspection[[#This Row],[Line]],E$3),INDEX(Table_IntLookups[Zone'#],MATCH(Table_NCInspection[[#This Row],[Zone Description]],Table_IntLookups[Dropdown],0))))","v":""},{"$f":"IF(OR(Table_NCInspection[[#This Row],[Line]]<=0,IFERROR(INDEX(Table_NCInfo[],Table_NCInspection[[#This Row],[Line]],F$3),\"\")=\"\"),\"\",IF(Table_NCInspection[[#This Row],[Zone Description]]=INDEX(Table_NCInfo[],Table_NCInspection[[#This Row],[Line]],$D$3),INDEX(Table_NCInfo[],Table_NCInspection[[#This Row],[Line]],F$3),IFERROR(VLOOKUP(Table_NCInspection[[#This Row],[Zone '#]],Table_IntLookups[],'Facility Information'!$AB$4,FALSE),0)*INDEX(Table_NCInfo[Baseline Wattage],MATCH(Table_NCInspection[[#This Row],[Line]],Table_NCInfo[Line],0)/VLOOKUP(INDEX(Table_NCInfo[Zone '#],MATCH(Table_NCInspection[[#This Row],[Line]],Table_NCInfo[Line],0)),Table_IntLookups[],'Facility Information'!$AB$4,FALSE),0)))","v":""},{"$f":"IFERROR(IF(OR(Table_NCInspection[[#This Row],[Line]]=\"\",INDEX(Table_NCInfo[],Table_NCInspection[[#This Row],[Line]],G$3)=\"\"),\"\",INDEX(Table_NCInfo[],Table_NCInspection[[#This Row],[Line]],G$3)),\"\")","v":""},null,{"$f":"IFERROR(IF(OR(Table_NCInspection[[#This Row],[Line]]=\"\",INDEX(Table_NCInfo[],Table_NCInspection[[#This Row],[Line]],I$3)=\"\"),\"\",INDEX(Table_NCInfo[],Table_NCInspection[[#This Row],[Line]],I$3)),\"\")","v":""},{"$f":"IFERROR(IF(OR(Table_NCInspection[[#This Row],[Line]]=\"\",INDEX(Table_NCInfo[],Table_NCInspection[[#This Row],[Line]],J$3)=\"\"),\"\",INDEX(Table_NCInfo[],Table_NCInspection[[#This Row],[Line]],J$3)),\"\")","v":""},{"$f":"IFERROR(IF(OR(Table_NCInspection[[#This Row],[Line]]=\"\",INDEX(Table_NCInfo[],Table_NCInspection[[#This Row],[Line]],K$3)=\"\"),\"\",INDEX(Table_NCInfo[],Table_NCInspection[[#This Row],[Line]],K$3)),\"\")","v":""},{"$f":"IFERROR(IF(OR(Table_NCInspection[[#This Row],[Line]]=\"\",INDEX(Table_NCInfo[],Table_NCInspection[[#This Row],[Line]],L$3)=\"\"),\"\",INDEX(Table_NCInfo[],Table_NCInspection[[#This Row],[Line]],L$3)),\"\")","v":""},{"$f":"IFERROR(IF(OR(Table_NCInspection[[#This Row],[Line]]=\"\",INDEX(Table_NCInfo[],Table_NCInspection[[#This Row],[Line]],M$3)=\"\"),\"\",INDEX(Table_NCInfo[],Table_NCInspection[[#This Row],[Line]],M$3)),\"\")","v":""},{"$f":"IFERROR(\nIFERROR(OFFSET(Table_TypWattage[[#Headers],[Technology]],MATCH($J24,Table_TypWattage[Technology],0)+MATCH($L24,INDIRECT(SUBSTITUTE(SUBSTITUTE($J24,\" \",\"_\"),\"-\",\"_\")),0)-1,MATCH($K24,'Measure Tables'!$Q$2:$V$2,0)+1),IF(Table_NCInspection[[#This Row],[Line]]<>\"\",IF(AND(Table_NCInspection[[#This Row],['# Lamps/ Fixture '[P']]]<>\"\",$K24>0,$L24>0),$K24*$L24,$L24),\"\")),\n\"\")","v":""},{"$f":"IFERROR(IF(OR(Table_NCInspection[[#This Row],[Line]]=\"\",INDEX(Table_NCInfo[],Table_NCInspection[[#This Row],[Line]],O$3)=\"\"),\"\",INDEX(Table_NCInfo[],Table_NCInspection[[#This Row],[Line]],O$3)),\"\")","v":""},{"$f":"IFERROR(IF(OR(Table_NCInspection[[#This Row],[Line]]=\"\",INDEX(Table_NCInfo[],Table_NCInspection[[#This Row],[Line]],P$3)=\"\"),\"\",INDEX(Table_NCInfo[],Table_NCInspection[[#This Row],[Line]],P$3)),\"\")","v":""},{"$f":"IFERROR(IF(Table_NCInspection[[#This Row],[Interior/ Exterior]]<>\"\",\n  CONCATENATE(\n  Table_NCInspection[[#This Row],[Interior/ Exterior]],\": \",\n  Table_NCInspection[[#This Row],[Fixture Technology '[P']]],\n  \" - \",Table_NCInspection[[#This Row],[Fixture Type '[P']]],\" [\",\n  IF(AND(Table_NCInspection[[#This Row],['# Lamps/ Fixture '[P']]]<>\"\",Table_NCInspection[[#This Row],['# Lamps/ Fixture '[P']]]>0),Table_NCInspection[[#This Row],['# Lamps/ Fixture '[P']]] & \"L - \" & Table_NCInspection[[#This Row],[Fixture/ Lamp Wattage '[P']]] & \"W\" & IF(Table_NCInspection[[#This Row],[Ballast/ Driver '[P']]]<>\"\",\" - \" & Table_NCInspection[[#This Row],[Ballast/ Driver '[P']]],\"\"),Table_NCInspection[[#This Row],[Fixture Wattage '[P']]] & \"W\"),\"]\",\n  IF(AND(Table_NCInspection[[#This Row],[Controls '[P']]]<>\"\"),\" - \" & Table_NCInspection[[#This Row],[Controls '[P']]],\"\")\n  ),\n\"\"),\"\")","v":""},{"$f":"IFERROR(IF(OR(Table_NCInspection[[#This Row],[Line]]=\"\",INDEX(Table_NCInfo[],Table_NCInspection[[#This Row],[Line]],R$3)=\"\"),\"\",INDEX(Table_NCInfo[],Table_NCInspection[[#This Row],[Line]],R$3)),\"\")","v":""},{"$f":"IFERROR(IF(OR(Table_NCInspection[[#This Row],[Line]]=\"\",INDEX(Table_NCInfo[],Table_NCInspection[[#This Row],[Line]],S$3)=\"\"),\"\",INDEX(Table_NCInfo[],Table_NCInspection[[#This Row],[Line]],S$3)),\"\")","v":""}]
[null,{"$f":"IFERROR(IF(OR(Table_NCInspection[[#This Row],[Line]]=\"\",INDEX(Table_NCInfo[],Table_NCInspection[[#This Row],[Line]],B$3)=\"\"),\"\",INDEX(Table_NCInfo[],Table_NCInspection[[#This Row],[Line]],B$3)),\"\")","v":""},{"$f":"IFERROR(IF(OR(Table_NCInspection[[#This Row],[Line]]=\"\",INDEX(Table_NCInfo[],Table_NCInspection[[#This Row],[Line]],C$3)=\"\"),\"\",INDEX(Table_NCInfo[],Table_NCInspection[[#This Row],[Line]],C$3)),\"\")","v":""},{"$f":"IFERROR(IF(OR(Table_NCInspection[[#This Row],[Line]]=\"\",INDEX(Table_NCInfo[],Table_NCInspection[[#This Row],[Line]],D$3)=\"\"),\"\",INDEX(Table_NCInfo[],Table_NCInspection[[#This Row],[Line]],D$3)),\"\")","v":""},{"$f":"IF(OR(Table_NCInspection[[#This Row],[Line]]<=0,IFERROR(INDEX(Table_NCInfo[],$A25,E$3),\"\")=\"\"),\"\",IF(Table_NCInspection[[#This Row],[Zone Description]]=INDEX(Table_NCInfo[],Table_NCInspection[[#This Row],[Line]],$D$3),INDEX(Table_NCInfo[],Table_NCInspection[[#This Row],[Line]],E$3),INDEX(Table_IntLookups[Zone'#],MATCH(Table_NCInspection[[#This Row],[Zone Description]],Table_IntLookups[Dropdown],0))))","v":""},{"$f":"IF(OR(Table_NCInspection[[#This Row],[Line]]<=0,IFERROR(INDEX(Table_NCInfo[],Table_NCInspection[[#This Row],[Line]],F$3),\"\")=\"\"),\"\",IF(Table_NCInspection[[#This Row],[Zone Description]]=INDEX(Table_NCInfo[],Table_NCInspection[[#This Row],[Line]],$D$3),INDEX(Table_NCInfo[],Table_NCInspection[[#This Row],[Line]],F$3),IFERROR(VLOOKUP(Table_NCInspection[[#This Row],[Zone '#]],Table_IntLookups[],'Facility Information'!$AB$4,FALSE),0)*INDEX(Table_NCInfo[Baseline Wattage],MATCH(Table_NCInspection[[#This Row],[Line]],Table_NCInfo[Line],0)/VLOOKUP(INDEX(Table_NCInfo[Zone '#],MATCH(Table_NCInspection[[#This Row],[Line]],Table_NCInfo[Line],0)),Table_IntLookups[],'Facility Information'!$AB$4,FALSE),0)))","v":""},{"$f":"IFERROR(IF(OR(Table_NCInspection[[#This Row],[Line]]=\"\",INDEX(Table_NCInfo[],Table_NCInspection[[#This Row],[Line]],G$3)=\"\"),\"\",INDEX(Table_NCInfo[],Table_NCInspection[[#This Row],[Line]],G$3)),\"\")","v":""},null,{"$f":"IFERROR(IF(OR(Table_NCInspection[[#This Row],[Line]]=\"\",INDEX(Table_NCInfo[],Table_NCInspection[[#This Row],[Line]],I$3)=\"\"),\"\",INDEX(Table_NCInfo[],Table_NCInspection[[#This Row],[Line]],I$3)),\"\")","v":""},{"$f":"IFERROR(IF(OR(Table_NCInspection[[#This Row],[Line]]=\"\",INDEX(Table_NCInfo[],Table_NCInspection[[#This Row],[Line]],J$3)=\"\"),\"\",INDEX(Table_NCInfo[],Table_NCInspection[[#This Row],[Line]],J$3)),\"\")","v":""},{"$f":"IFERROR(IF(OR(Table_NCInspection[[#This Row],[Line]]=\"\",INDEX(Table_NCInfo[],Table_NCInspection[[#This Row],[Line]],K$3)=\"\"),\"\",INDEX(Table_NCInfo[],Table_NCInspection[[#This Row],[Line]],K$3)),\"\")","v":""},{"$f":"IFERROR(IF(OR(Table_NCInspection[[#This Row],[Line]]=\"\",INDEX(Table_NCInfo[],Table_NCInspection[[#This Row],[Line]],L$3)=\"\"),\"\",INDEX(Table_NCInfo[],Table_NCInspection[[#This Row],[Line]],L$3)),\"\")","v":""},{"$f":"IFERROR(IF(OR(Table_NCInspection[[#This Row],[Line]]=\"\",INDEX(Table_NCInfo[],Table_NCInspection[[#This Row],[Line]],M$3)=\"\"),\"\",INDEX(Table_NCInfo[],Table_NCInspection[[#This Row],[Line]],M$3)),\"\")","v":""},{"$f":"IFERROR(\nIFERROR(OFFSET(Table_TypWattage[[#Headers],[Technology]],MATCH($J25,Table_TypWattage[Technology],0)+MATCH($L25,INDIRECT(SUBSTITUTE(SUBSTITUTE($J25,\" \",\"_\"),\"-\",\"_\")),0)-1,MATCH($K25,'Measure Tables'!$Q$2:$V$2,0)+1),IF(Table_NCInspection[[#This Row],[Line]]<>\"\",IF(AND(Table_NCInspection[[#This Row],['# Lamps/ Fixture '[P']]]<>\"\",$K25>0,$L25>0),$K25*$L25,$L25),\"\")),\n\"\")","v":""},{"$f":"IFERROR(IF(OR(Table_NCInspection[[#This Row],[Line]]=\"\",INDEX(Table_NCInfo[],Table_NCInspection[[#This Row],[Line]],O$3)=\"\"),\"\",INDEX(Table_NCInfo[],Table_NCInspection[[#This Row],[Line]],O$3)),\"\")","v":""},{"$f":"IFERROR(IF(OR(Table_NCInspection[[#This Row],[Line]]=\"\",INDEX(Table_NCInfo[],Table_NCInspection[[#This Row],[Line]],P$3)=\"\"),\"\",INDEX(Table_NCInfo[],Table_NCInspection[[#This Row],[Line]],P$3)),\"\")","v":""},{"$f":"IFERROR(IF(Table_NCInspection[[#This Row],[Interior/ Exterior]]<>\"\",\n  CONCATENATE(\n  Table_NCInspection[[#This Row],[Interior/ Exterior]],\": \",\n  Table_NCInspection[[#This Row],[Fixture Technology '[P']]],\n  \" - \",Table_NCInspection[[#This Row],[Fixture Type '[P']]],\" [\",\n  IF(AND(Table_NCInspection[[#This Row],['# Lamps/ Fixture '[P']]]<>\"\",Table_NCInspection[[#This Row],['# Lamps/ Fixture '[P']]]>0),Table_NCInspection[[#This Row],['# Lamps/ Fixture '[P']]] & \"L - \" & Table_NCInspection[[#This Row],[Fixture/ Lamp Wattage '[P']]] & \"W\" & IF(Table_NCInspection[[#This Row],[Ballast/ Driver '[P']]]<>\"\",\" - \" & Table_NCInspection[[#This Row],[Ballast/ Driver '[P']]],\"\"),Table_NCInspection[[#This Row],[Fixture Wattage '[P']]] & \"W\"),\"]\",\n  IF(AND(Table_NCInspection[[#This Row],[Controls '[P']]]<>\"\"),\" - \" & Table_NCInspection[[#This Row],[Controls '[P']]],\"\")\n  ),\n\"\"),\"\")","v":""},{"$f":"IFERROR(IF(OR(Table_NCInspection[[#This Row],[Line]]=\"\",INDEX(Table_NCInfo[],Table_NCInspection[[#This Row],[Line]],R$3)=\"\"),\"\",INDEX(Table_NCInfo[],Table_NCInspection[[#This Row],[Line]],R$3)),\"\")","v":""},{"$f":"IFERROR(IF(OR(Table_NCInspection[[#This Row],[Line]]=\"\",INDEX(Table_NCInfo[],Table_NCInspection[[#This Row],[Line]],S$3)=\"\"),\"\",INDEX(Table_NCInfo[],Table_NCInspection[[#This Row],[Line]],S$3)),\"\")","v":""}]
[null,{"$f":"IFERROR(IF(OR(Table_NCInspection[[#This Row],[Line]]=\"\",INDEX(Table_NCInfo[],Table_NCInspection[[#This Row],[Line]],B$3)=\"\"),\"\",INDEX(Table_NCInfo[],Table_NCInspection[[#This Row],[Line]],B$3)),\"\")","v":""},{"$f":"IFERROR(IF(OR(Table_NCInspection[[#This Row],[Line]]=\"\",INDEX(Table_NCInfo[],Table_NCInspection[[#This Row],[Line]],C$3)=\"\"),\"\",INDEX(Table_NCInfo[],Table_NCInspection[[#This Row],[Line]],C$3)),\"\")","v":""},{"$f":"IFERROR(IF(OR(Table_NCInspection[[#This Row],[Line]]=\"\",INDEX(Table_NCInfo[],Table_NCInspection[[#This Row],[Line]],D$3)=\"\"),\"\",INDEX(Table_NCInfo[],Table_NCInspection[[#This Row],[Line]],D$3)),\"\")","v":""},{"$f":"IF(OR(Table_NCInspection[[#This Row],[Line]]<=0,IFERROR(INDEX(Table_NCInfo[],$A26,E$3),\"\")=\"\"),\"\",IF(Table_NCInspection[[#This Row],[Zone Description]]=INDEX(Table_NCInfo[],Table_NCInspection[[#This Row],[Line]],$D$3),INDEX(Table_NCInfo[],Table_NCInspection[[#This Row],[Line]],E$3),INDEX(Table_IntLookups[Zone'#],MATCH(Table_NCInspection[[#This Row],[Zone Description]],Table_IntLookups[Dropdown],0))))","v":""},{"$f":"IF(OR(Table_NCInspection[[#This Row],[Line]]<=0,IFERROR(INDEX(Table_NCInfo[],Table_NCInspection[[#This Row],[Line]],F$3),\"\")=\"\"),\"\",IF(Table_NCInspection[[#This Row],[Zone Description]]=INDEX(Table_NCInfo[],Table_NCInspection[[#This Row],[Line]],$D$3),INDEX(Table_NCInfo[],Table_NCInspection[[#This Row],[Line]],F$3),IFERROR(VLOOKUP(Table_NCInspection[[#This Row],[Zone '#]],Table_IntLookups[],'Facility Information'!$AB$4,FALSE),0)*INDEX(Table_NCInfo[Baseline Wattage],MATCH(Table_NCInspection[[#This Row],[Line]],Table_NCInfo[Line],0)/VLOOKUP(INDEX(Table_NCInfo[Zone '#],MATCH(Table_NCInspection[[#This Row],[Line]],Table_NCInfo[Line],0)),Table_IntLookups[],'Facility Information'!$AB$4,FALSE),0)))","v":""},{"$f":"IFERROR(IF(OR(Table_NCInspection[[#This Row],[Line]]=\"\",INDEX(Table_NCInfo[],Table_NCInspection[[#This Row],[Line]],G$3)=\"\"),\"\",INDEX(Table_NCInfo[],Table_NCInspection[[#This Row],[Line]],G$3)),\"\")","v":""},null,{"$f":"IFERROR(IF(OR(Table_NCInspection[[#This Row],[Line]]=\"\",INDEX(Table_NCInfo[],Table_NCInspection[[#This Row],[Line]],I$3)=\"\"),\"\",INDEX(Table_NCInfo[],Table_NCInspection[[#This Row],[Line]],I$3)),\"\")","v":""},{"$f":"IFERROR(IF(OR(Table_NCInspection[[#This Row],[Line]]=\"\",INDEX(Table_NCInfo[],Table_NCInspection[[#This Row],[Line]],J$3)=\"\"),\"\",INDEX(Table_NCInfo[],Table_NCInspection[[#This Row],[Line]],J$3)),\"\")","v":""},{"$f":"IFERROR(IF(OR(Table_NCInspection[[#This Row],[Line]]=\"\",INDEX(Table_NCInfo[],Table_NCInspection[[#This Row],[Line]],K$3)=\"\"),\"\",INDEX(Table_NCInfo[],Table_NCInspection[[#This Row],[Line]],K$3)),\"\")","v":""},{"$f":"IFERROR(IF(OR(Table_NCInspection[[#This Row],[Line]]=\"\",INDEX(Table_NCInfo[],Table_NCInspection[[#This Row],[Line]],L$3)=\"\"),\"\",INDEX(Table_NCInfo[],Table_NCInspection[[#This Row],[Line]],L$3)),\"\")","v":""},{"$f":"IFERROR(IF(OR(Table_NCInspection[[#This Row],[Line]]=\"\",INDEX(Table_NCInfo[],Table_NCInspection[[#This Row],[Line]],M$3)=\"\"),\"\",INDEX(Table_NCInfo[],Table_NCInspection[[#This Row],[Line]],M$3)),\"\")","v":""},{"$f":"IFERROR(\nIFERROR(OFFSET(Table_TypWattage[[#Headers],[Technology]],MATCH($J26,Table_TypWattage[Technology],0)+MATCH($L26,INDIRECT(SUBSTITUTE(SUBSTITUTE($J26,\" \",\"_\"),\"-\",\"_\")),0)-1,MATCH($K26,'Measure Tables'!$Q$2:$V$2,0)+1),IF(Table_NCInspection[[#This Row],[Line]]<>\"\",IF(AND(Table_NCInspection[[#This Row],['# Lamps/ Fixture '[P']]]<>\"\",$K26>0,$L26>0),$K26*$L26,$L26),\"\")),\n\"\")","v":""},{"$f":"IFERROR(IF(OR(Table_NCInspection[[#This Row],[Line]]=\"\",INDEX(Table_NCInfo[],Table_NCInspection[[#This Row],[Line]],O$3)=\"\"),\"\",INDEX(Table_NCInfo[],Table_NCInspection[[#This Row],[Line]],O$3)),\"\")","v":""},{"$f":"IFERROR(IF(OR(Table_NCInspection[[#This Row],[Line]]=\"\",INDEX(Table_NCInfo[],Table_NCInspection[[#This Row],[Line]],P$3)=\"\"),\"\",INDEX(Table_NCInfo[],Table_NCInspection[[#This Row],[Line]],P$3)),\"\")","v":""},{"$f":"IFERROR(IF(Table_NCInspection[[#This Row],[Interior/ Exterior]]<>\"\",\n  CONCATENATE(\n  Table_NCInspection[[#This Row],[Interior/ Exterior]],\": \",\n  Table_NCInspection[[#This Row],[Fixture Technology '[P']]],\n  \" - \",Table_NCInspection[[#This Row],[Fixture Type '[P']]],\" [\",\n  IF(AND(Table_NCInspection[[#This Row],['# Lamps/ Fixture '[P']]]<>\"\",Table_NCInspection[[#This Row],['# Lamps/ Fixture '[P']]]>0),Table_NCInspection[[#This Row],['# Lamps/ Fixture '[P']]] & \"L - \" & Table_NCInspection[[#This Row],[Fixture/ Lamp Wattage '[P']]] & \"W\" & IF(Table_NCInspection[[#This Row],[Ballast/ Driver '[P']]]<>\"\",\" - \" & Table_NCInspection[[#This Row],[Ballast/ Driver '[P']]],\"\"),Table_NCInspection[[#This Row],[Fixture Wattage '[P']]] & \"W\"),\"]\",\n  IF(AND(Table_NCInspection[[#This Row],[Controls '[P']]]<>\"\"),\" - \" & Table_NCInspection[[#This Row],[Controls '[P']]],\"\")\n  ),\n\"\"),\"\")","v":""},{"$f":"IFERROR(IF(OR(Table_NCInspection[[#This Row],[Line]]=\"\",INDEX(Table_NCInfo[],Table_NCInspection[[#This Row],[Line]],R$3)=\"\"),\"\",INDEX(Table_NCInfo[],Table_NCInspection[[#This Row],[Line]],R$3)),\"\")","v":""},{"$f":"IFERROR(IF(OR(Table_NCInspection[[#This Row],[Line]]=\"\",INDEX(Table_NCInfo[],Table_NCInspection[[#This Row],[Line]],S$3)=\"\"),\"\",INDEX(Table_NCInfo[],Table_NCInspection[[#This Row],[Line]],S$3)),\"\")","v":""}]
[null,{"$f":"IFERROR(IF(OR(Table_NCInspection[[#This Row],[Line]]=\"\",INDEX(Table_NCInfo[],Table_NCInspection[[#This Row],[Line]],B$3)=\"\"),\"\",INDEX(Table_NCInfo[],Table_NCInspection[[#This Row],[Line]],B$3)),\"\")","v":""},{"$f":"IFERROR(IF(OR(Table_NCInspection[[#This Row],[Line]]=\"\",INDEX(Table_NCInfo[],Table_NCInspection[[#This Row],[Line]],C$3)=\"\"),\"\",INDEX(Table_NCInfo[],Table_NCInspection[[#This Row],[Line]],C$3)),\"\")","v":""},{"$f":"IFERROR(IF(OR(Table_NCInspection[[#This Row],[Line]]=\"\",INDEX(Table_NCInfo[],Table_NCInspection[[#This Row],[Line]],D$3)=\"\"),\"\",INDEX(Table_NCInfo[],Table_NCInspection[[#This Row],[Line]],D$3)),\"\")","v":""},{"$f":"IF(OR(Table_NCInspection[[#This Row],[Line]]<=0,IFERROR(INDEX(Table_NCInfo[],$A27,E$3),\"\")=\"\"),\"\",IF(Table_NCInspection[[#This Row],[Zone Description]]=INDEX(Table_NCInfo[],Table_NCInspection[[#This Row],[Line]],$D$3),INDEX(Table_NCInfo[],Table_NCInspection[[#This Row],[Line]],E$3),INDEX(Table_IntLookups[Zone'#],MATCH(Table_NCInspection[[#This Row],[Zone Description]],Table_IntLookups[Dropdown],0))))","v":""},{"$f":"IF(OR(Table_NCInspection[[#This Row],[Line]]<=0,IFERROR(INDEX(Table_NCInfo[],Table_NCInspection[[#This Row],[Line]],F$3),\"\")=\"\"),\"\",IF(Table_NCInspection[[#This Row],[Zone Description]]=INDEX(Table_NCInfo[],Table_NCInspection[[#This Row],[Line]],$D$3),INDEX(Table_NCInfo[],Table_NCInspection[[#This Row],[Line]],F$3),IFERROR(VLOOKUP(Table_NCInspection[[#This Row],[Zone '#]],Table_IntLookups[],'Facility Information'!$AB$4,FALSE),0)*INDEX(Table_NCInfo[Baseline Wattage],MATCH(Table_NCInspection[[#This Row],[Line]],Table_NCInfo[Line],0)/VLOOKUP(INDEX(Table_NCInfo[Zone '#],MATCH(Table_NCInspection[[#This Row],[Line]],Table_NCInfo[Line],0)),Table_IntLookups[],'Facility Information'!$AB$4,FALSE),0)))","v":""},{"$f":"IFERROR(IF(OR(Table_NCInspection[[#This Row],[Line]]=\"\",INDEX(Table_NCInfo[],Table_NCInspection[[#This Row],[Line]],G$3)=\"\"),\"\",INDEX(Table_NCInfo[],Table_NCInspection[[#This Row],[Line]],G$3)),\"\")","v":""},null,{"$f":"IFERROR(IF(OR(Table_NCInspection[[#This Row],[Line]]=\"\",INDEX(Table_NCInfo[],Table_NCInspection[[#This Row],[Line]],I$3)=\"\"),\"\",INDEX(Table_NCInfo[],Table_NCInspection[[#This Row],[Line]],I$3)),\"\")","v":""},{"$f":"IFERROR(IF(OR(Table_NCInspection[[#This Row],[Line]]=\"\",INDEX(Table_NCInfo[],Table_NCInspection[[#This Row],[Line]],J$3)=\"\"),\"\",INDEX(Table_NCInfo[],Table_NCInspection[[#This Row],[Line]],J$3)),\"\")","v":""},{"$f":"IFERROR(IF(OR(Table_NCInspection[[#This Row],[Line]]=\"\",INDEX(Table_NCInfo[],Table_NCInspection[[#This Row],[Line]],K$3)=\"\"),\"\",INDEX(Table_NCInfo[],Table_NCInspection[[#This Row],[Line]],K$3)),\"\")","v":""},{"$f":"IFERROR(IF(OR(Table_NCInspection[[#This Row],[Line]]=\"\",INDEX(Table_NCInfo[],Table_NCInspection[[#This Row],[Line]],L$3)=\"\"),\"\",INDEX(Table_NCInfo[],Table_NCInspection[[#This Row],[Line]],L$3)),\"\")","v":""},{"$f":"IFERROR(IF(OR(Table_NCInspection[[#This Row],[Line]]=\"\",INDEX(Table_NCInfo[],Table_NCInspection[[#This Row],[Line]],M$3)=\"\"),\"\",INDEX(Table_NCInfo[],Table_NCInspection[[#This Row],[Line]],M$3)),\"\")","v":""},{"$f":"IFERROR(\nIFERROR(OFFSET(Table_TypWattage[[#Headers],[Technology]],MATCH($J27,Table_TypWattage[Technology],0)+MATCH($L27,INDIRECT(SUBSTITUTE(SUBSTITUTE($J27,\" \",\"_\"),\"-\",\"_\")),0)-1,MATCH($K27,'Measure Tables'!$Q$2:$V$2,0)+1),IF(Table_NCInspection[[#This Row],[Line]]<>\"\",IF(AND(Table_NCInspection[[#This Row],['# Lamps/ Fixture '[P']]]<>\"\",$K27>0,$L27>0),$K27*$L27,$L27),\"\")),\n\"\")","v":""},{"$f":"IFERROR(IF(OR(Table_NCInspection[[#This Row],[Line]]=\"\",INDEX(Table_NCInfo[],Table_NCInspection[[#This Row],[Line]],O$3)=\"\"),\"\",INDEX(Table_NCInfo[],Table_NCInspection[[#This Row],[Line]],O$3)),\"\")","v":""},{"$f":"IFERROR(IF(OR(Table_NCInspection[[#This Row],[Line]]=\"\",INDEX(Table_NCInfo[],Table_NCInspection[[#This Row],[Line]],P$3)=\"\"),\"\",INDEX(Table_NCInfo[],Table_NCInspection[[#This Row],[Line]],P$3)),\"\")","v":""},{"$f":"IFERROR(IF(Table_NCInspection[[#This Row],[Interior/ Exterior]]<>\"\",\n  CONCATENATE(\n  Table_NCInspection[[#This Row],[Interior/ Exterior]],\": \",\n  Table_NCInspection[[#This Row],[Fixture Technology '[P']]],\n  \" - \",Table_NCInspection[[#This Row],[Fixture Type '[P']]],\" [\",\n  IF(AND(Table_NCInspection[[#This Row],['# Lamps/ Fixture '[P']]]<>\"\",Table_NCInspection[[#This Row],['# Lamps/ Fixture '[P']]]>0),Table_NCInspection[[#This Row],['# Lamps/ Fixture '[P']]] & \"L - \" & Table_NCInspection[[#This Row],[Fixture/ Lamp Wattage '[P']]] & \"W\" & IF(Table_NCInspection[[#This Row],[Ballast/ Driver '[P']]]<>\"\",\" - \" & Table_NCInspection[[#This Row],[Ballast/ Driver '[P']]],\"\"),Table_NCInspection[[#This Row],[Fixture Wattage '[P']]] & \"W\"),\"]\",\n  IF(AND(Table_NCInspection[[#This Row],[Controls '[P']]]<>\"\"),\" - \" & Table_NCInspection[[#This Row],[Controls '[P']]],\"\")\n  ),\n\"\"),\"\")","v":""},{"$f":"IFERROR(IF(OR(Table_NCInspection[[#This Row],[Line]]=\"\",INDEX(Table_NCInfo[],Table_NCInspection[[#This Row],[Line]],R$3)=\"\"),\"\",INDEX(Table_NCInfo[],Table_NCInspection[[#This Row],[Line]],R$3)),\"\")","v":""},{"$f":"IFERROR(IF(OR(Table_NCInspection[[#This Row],[Line]]=\"\",INDEX(Table_NCInfo[],Table_NCInspection[[#This Row],[Line]],S$3)=\"\"),\"\",INDEX(Table_NCInfo[],Table_NCInspection[[#This Row],[Line]],S$3)),\"\")","v":""}]
[null,{"$f":"IFERROR(IF(OR(Table_NCInspection[[#This Row],[Line]]=\"\",INDEX(Table_NCInfo[],Table_NCInspection[[#This Row],[Line]],B$3)=\"\"),\"\",INDEX(Table_NCInfo[],Table_NCInspection[[#This Row],[Line]],B$3)),\"\")","v":""},{"$f":"IFERROR(IF(OR(Table_NCInspection[[#This Row],[Line]]=\"\",INDEX(Table_NCInfo[],Table_NCInspection[[#This Row],[Line]],C$3)=\"\"),\"\",INDEX(Table_NCInfo[],Table_NCInspection[[#This Row],[Line]],C$3)),\"\")","v":""},{"$f":"IFERROR(IF(OR(Table_NCInspection[[#This Row],[Line]]=\"\",INDEX(Table_NCInfo[],Table_NCInspection[[#This Row],[Line]],D$3)=\"\"),\"\",INDEX(Table_NCInfo[],Table_NCInspection[[#This Row],[Line]],D$3)),\"\")","v":""},{"$f":"IF(OR(Table_NCInspection[[#This Row],[Line]]<=0,IFERROR(INDEX(Table_NCInfo[],$A28,E$3),\"\")=\"\"),\"\",IF(Table_NCInspection[[#This Row],[Zone Description]]=INDEX(Table_NCInfo[],Table_NCInspection[[#This Row],[Line]],$D$3),INDEX(Table_NCInfo[],Table_NCInspection[[#This Row],[Line]],E$3),INDEX(Table_IntLookups[Zone'#],MATCH(Table_NCInspection[[#This Row],[Zone Description]],Table_IntLookups[Dropdown],0))))","v":""},{"$f":"IF(OR(Table_NCInspection[[#This Row],[Line]]<=0,IFERROR(INDEX(Table_NCInfo[],Table_NCInspection[[#This Row],[Line]],F$3),\"\")=\"\"),\"\",IF(Table_NCInspection[[#This Row],[Zone Description]]=INDEX(Table_NCInfo[],Table_NCInspection[[#This Row],[Line]],$D$3),INDEX(Table_NCInfo[],Table_NCInspection[[#This Row],[Line]],F$3),IFERROR(VLOOKUP(Table_NCInspection[[#This Row],[Zone '#]],Table_IntLookups[],'Facility Information'!$AB$4,FALSE),0)*INDEX(Table_NCInfo[Baseline Wattage],MATCH(Table_NCInspection[[#This Row],[Line]],Table_NCInfo[Line],0)/VLOOKUP(INDEX(Table_NCInfo[Zone '#],MATCH(Table_NCInspection[[#This Row],[Line]],Table_NCInfo[Line],0)),Table_IntLookups[],'Facility Information'!$AB$4,FALSE),0)))","v":""},{"$f":"IFERROR(IF(OR(Table_NCInspection[[#This Row],[Line]]=\"\",INDEX(Table_NCInfo[],Table_NCInspection[[#This Row],[Line]],G$3)=\"\"),\"\",INDEX(Table_NCInfo[],Table_NCInspection[[#This Row],[Line]],G$3)),\"\")","v":""},null,{"$f":"IFERROR(IF(OR(Table_NCInspection[[#This Row],[Line]]=\"\",INDEX(Table_NCInfo[],Table_NCInspection[[#This Row],[Line]],I$3)=\"\"),\"\",INDEX(Table_NCInfo[],Table_NCInspection[[#This Row],[Line]],I$3)),\"\")","v":""},{"$f":"IFERROR(IF(OR(Table_NCInspection[[#This Row],[Line]]=\"\",INDEX(Table_NCInfo[],Table_NCInspection[[#This Row],[Line]],J$3)=\"\"),\"\",INDEX(Table_NCInfo[],Table_NCInspection[[#This Row],[Line]],J$3)),\"\")","v":""},{"$f":"IFERROR(IF(OR(Table_NCInspection[[#This Row],[Line]]=\"\",INDEX(Table_NCInfo[],Table_NCInspection[[#This Row],[Line]],K$3)=\"\"),\"\",INDEX(Table_NCInfo[],Table_NCInspection[[#This Row],[Line]],K$3)),\"\")","v":""},{"$f":"IFERROR(IF(OR(Table_NCInspection[[#This Row],[Line]]=\"\",INDEX(Table_NCInfo[],Table_NCInspection[[#This Row],[Line]],L$3)=\"\"),\"\",INDEX(Table_NCInfo[],Table_NCInspection[[#This Row],[Line]],L$3)),\"\")","v":""},{"$f":"IFERROR(IF(OR(Table_NCInspection[[#This Row],[Line]]=\"\",INDEX(Table_NCInfo[],Table_NCInspection[[#This Row],[Line]],M$3)=\"\"),\"\",INDEX(Table_NCInfo[],Table_NCInspection[[#This Row],[Line]],M$3)),\"\")","v":""},{"$f":"IFERROR(\nIFERROR(OFFSET(Table_TypWattage[[#Headers],[Technology]],MATCH($J28,Table_TypWattage[Technology],0)+MATCH($L28,INDIRECT(SUBSTITUTE(SUBSTITUTE($J28,\" \",\"_\"),\"-\",\"_\")),0)-1,MATCH($K28,'Measure Tables'!$Q$2:$V$2,0)+1),IF(Table_NCInspection[[#This Row],[Line]]<>\"\",IF(AND(Table_NCInspection[[#This Row],['# Lamps/ Fixture '[P']]]<>\"\",$K28>0,$L28>0),$K28*$L28,$L28),\"\")),\n\"\")","v":""},{"$f":"IFERROR(IF(OR(Table_NCInspection[[#This Row],[Line]]=\"\",INDEX(Table_NCInfo[],Table_NCInspection[[#This Row],[Line]],O$3)=\"\"),\"\",INDEX(Table_NCInfo[],Table_NCInspection[[#This Row],[Line]],O$3)),\"\")","v":""},{"$f":"IFERROR(IF(OR(Table_NCInspection[[#This Row],[Line]]=\"\",INDEX(Table_NCInfo[],Table_NCInspection[[#This Row],[Line]],P$3)=\"\"),\"\",INDEX(Table_NCInfo[],Table_NCInspection[[#This Row],[Line]],P$3)),\"\")","v":""},{"$f":"IFERROR(IF(Table_NCInspection[[#This Row],[Interior/ Exterior]]<>\"\",\n  CONCATENATE(\n  Table_NCInspection[[#This Row],[Interior/ Exterior]],\": \",\n  Table_NCInspection[[#This Row],[Fixture Technology '[P']]],\n  \" - \",Table_NCInspection[[#This Row],[Fixture Type '[P']]],\" [\",\n  IF(AND(Table_NCInspection[[#This Row],['# Lamps/ Fixture '[P']]]<>\"\",Table_NCInspection[[#This Row],['# Lamps/ Fixture '[P']]]>0),Table_NCInspection[[#This Row],['# Lamps/ Fixture '[P']]] & \"L - \" & Table_NCInspection[[#This Row],[Fixture/ Lamp Wattage '[P']]] & \"W\" & IF(Table_NCInspection[[#This Row],[Ballast/ Driver '[P']]]<>\"\",\" - \" & Table_NCInspection[[#This Row],[Ballast/ Driver '[P']]],\"\"),Table_NCInspection[[#This Row],[Fixture Wattage '[P']]] & \"W\"),\"]\",\n  IF(AND(Table_NCInspection[[#This Row],[Controls '[P']]]<>\"\"),\" - \" & Table_NCInspection[[#This Row],[Controls '[P']]],\"\")\n  ),\n\"\"),\"\")","v":""},{"$f":"IFERROR(IF(OR(Table_NCInspection[[#This Row],[Line]]=\"\",INDEX(Table_NCInfo[],Table_NCInspection[[#This Row],[Line]],R$3)=\"\"),\"\",INDEX(Table_NCInfo[],Table_NCInspection[[#This Row],[Line]],R$3)),\"\")","v":""},{"$f":"IFERROR(IF(OR(Table_NCInspection[[#This Row],[Line]]=\"\",INDEX(Table_NCInfo[],Table_NCInspection[[#This Row],[Line]],S$3)=\"\"),\"\",INDEX(Table_NCInfo[],Table_NCInspection[[#This Row],[Line]],S$3)),\"\")","v":""}]
[null,{"$f":"IFERROR(IF(OR(Table_NCInspection[[#This Row],[Line]]=\"\",INDEX(Table_NCInfo[],Table_NCInspection[[#This Row],[Line]],B$3)=\"\"),\"\",INDEX(Table_NCInfo[],Table_NCInspection[[#This Row],[Line]],B$3)),\"\")","v":""},{"$f":"IFERROR(IF(OR(Table_NCInspection[[#This Row],[Line]]=\"\",INDEX(Table_NCInfo[],Table_NCInspection[[#This Row],[Line]],C$3)=\"\"),\"\",INDEX(Table_NCInfo[],Table_NCInspection[[#This Row],[Line]],C$3)),\"\")","v":""},{"$f":"IFERROR(IF(OR(Table_NCInspection[[#This Row],[Line]]=\"\",INDEX(Table_NCInfo[],Table_NCInspection[[#This Row],[Line]],D$3)=\"\"),\"\",INDEX(Table_NCInfo[],Table_NCInspection[[#This Row],[Line]],D$3)),\"\")","v":""},{"$f":"IF(OR(Table_NCInspection[[#This Row],[Line]]<=0,IFERROR(INDEX(Table_NCInfo[],$A29,E$3),\"\")=\"\"),\"\",IF(Table_NCInspection[[#This Row],[Zone Description]]=INDEX(Table_NCInfo[],Table_NCInspection[[#This Row],[Line]],$D$3),INDEX(Table_NCInfo[],Table_NCInspection[[#This Row],[Line]],E$3),INDEX(Table_IntLookups[Zone'#],MATCH(Table_NCInspection[[#This Row],[Zone Description]],Table_IntLookups[Dropdown],0))))","v":""},{"$f":"IF(OR(Table_NCInspection[[#This Row],[Line]]<=0,IFERROR(INDEX(Table_NCInfo[],Table_NCInspection[[#This Row],[Line]],F$3),\"\")=\"\"),\"\",IF(Table_NCInspection[[#This Row],[Zone Description]]=INDEX(Table_NCInfo[],Table_NCInspection[[#This Row],[Line]],$D$3),INDEX(Table_NCInfo[],Table_NCInspection[[#This Row],[Line]],F$3),IFERROR(VLOOKUP(Table_NCInspection[[#This Row],[Zone '#]],Table_IntLookups[],'Facility Information'!$AB$4,FALSE),0)*INDEX(Table_NCInfo[Baseline Wattage],MATCH(Table_NCInspection[[#This Row],[Line]],Table_NCInfo[Line],0)/VLOOKUP(INDEX(Table_NCInfo[Zone '#],MATCH(Table_NCInspection[[#This Row],[Line]],Table_NCInfo[Line],0)),Table_IntLookups[],'Facility Information'!$AB$4,FALSE),0)))","v":""},{"$f":"IFERROR(IF(OR(Table_NCInspection[[#This Row],[Line]]=\"\",INDEX(Table_NCInfo[],Table_NCInspection[[#This Row],[Line]],G$3)=\"\"),\"\",INDEX(Table_NCInfo[],Table_NCInspection[[#This Row],[Line]],G$3)),\"\")","v":""},null,{"$f":"IFERROR(IF(OR(Table_NCInspection[[#This Row],[Line]]=\"\",INDEX(Table_NCInfo[],Table_NCInspection[[#This Row],[Line]],I$3)=\"\"),\"\",INDEX(Table_NCInfo[],Table_NCInspection[[#This Row],[Line]],I$3)),\"\")","v":""},{"$f":"IFERROR(IF(OR(Table_NCInspection[[#This Row],[Line]]=\"\",INDEX(Table_NCInfo[],Table_NCInspection[[#This Row],[Line]],J$3)=\"\"),\"\",INDEX(Table_NCInfo[],Table_NCInspection[[#This Row],[Line]],J$3)),\"\")","v":""},{"$f":"IFERROR(IF(OR(Table_NCInspection[[#This Row],[Line]]=\"\",INDEX(Table_NCInfo[],Table_NCInspection[[#This Row],[Line]],K$3)=\"\"),\"\",INDEX(Table_NCInfo[],Table_NCInspection[[#This Row],[Line]],K$3)),\"\")","v":""},{"$f":"IFERROR(IF(OR(Table_NCInspection[[#This Row],[Line]]=\"\",INDEX(Table_NCInfo[],Table_NCInspection[[#This Row],[Line]],L$3)=\"\"),\"\",INDEX(Table_NCInfo[],Table_NCInspection[[#This Row],[Line]],L$3)),\"\")","v":""},{"$f":"IFERROR(IF(OR(Table_NCInspection[[#This Row],[Line]]=\"\",INDEX(Table_NCInfo[],Table_NCInspection[[#This Row],[Line]],M$3)=\"\"),\"\",INDEX(Table_NCInfo[],Table_NCInspection[[#This Row],[Line]],M$3)),\"\")","v":""},{"$f":"IFERROR(\nIFERROR(OFFSET(Table_TypWattage[[#Headers],[Technology]],MATCH($J29,Table_TypWattage[Technology],0)+MATCH($L29,INDIRECT(SUBSTITUTE(SUBSTITUTE($J29,\" \",\"_\"),\"-\",\"_\")),0)-1,MATCH($K29,'Measure Tables'!$Q$2:$V$2,0)+1),IF(Table_NCInspection[[#This Row],[Line]]<>\"\",IF(AND(Table_NCInspection[[#This Row],['# Lamps/ Fixture '[P']]]<>\"\",$K29>0,$L29>0),$K29*$L29,$L29),\"\")),\n\"\")","v":""},{"$f":"IFERROR(IF(OR(Table_NCInspection[[#This Row],[Line]]=\"\",INDEX(Table_NCInfo[],Table_NCInspection[[#This Row],[Line]],O$3)=\"\"),\"\",INDEX(Table_NCInfo[],Table_NCInspection[[#This Row],[Line]],O$3)),\"\")","v":""},{"$f":"IFERROR(IF(OR(Table_NCInspection[[#This Row],[Line]]=\"\",INDEX(Table_NCInfo[],Table_NCInspection[[#This Row],[Line]],P$3)=\"\"),\"\",INDEX(Table_NCInfo[],Table_NCInspection[[#This Row],[Line]],P$3)),\"\")","v":""},{"$f":"IFERROR(IF(Table_NCInspection[[#This Row],[Interior/ Exterior]]<>\"\",\n  CONCATENATE(\n  Table_NCInspection[[#This Row],[Interior/ Exterior]],\": \",\n  Table_NCInspection[[#This Row],[Fixture Technology '[P']]],\n  \" - \",Table_NCInspection[[#This Row],[Fixture Type '[P']]],\" [\",\n  IF(AND(Table_NCInspection[[#This Row],['# Lamps/ Fixture '[P']]]<>\"\",Table_NCInspection[[#This Row],['# Lamps/ Fixture '[P']]]>0),Table_NCInspection[[#This Row],['# Lamps/ Fixture '[P']]] & \"L - \" & Table_NCInspection[[#This Row],[Fixture/ Lamp Wattage '[P']]] & \"W\" & IF(Table_NCInspection[[#This Row],[Ballast/ Driver '[P']]]<>\"\",\" - \" & Table_NCInspection[[#This Row],[Ballast/ Driver '[P']]],\"\"),Table_NCInspection[[#This Row],[Fixture Wattage '[P']]] & \"W\"),\"]\",\n  IF(AND(Table_NCInspection[[#This Row],[Controls '[P']]]<>\"\"),\" - \" & Table_NCInspection[[#This Row],[Controls '[P']]],\"\")\n  ),\n\"\"),\"\")","v":""},{"$f":"IFERROR(IF(OR(Table_NCInspection[[#This Row],[Line]]=\"\",INDEX(Table_NCInfo[],Table_NCInspection[[#This Row],[Line]],R$3)=\"\"),\"\",INDEX(Table_NCInfo[],Table_NCInspection[[#This Row],[Line]],R$3)),\"\")","v":""},{"$f":"IFERROR(IF(OR(Table_NCInspection[[#This Row],[Line]]=\"\",INDEX(Table_NCInfo[],Table_NCInspection[[#This Row],[Line]],S$3)=\"\"),\"\",INDEX(Table_NCInfo[],Table_NCInspection[[#This Row],[Line]],S$3)),\"\")","v":""}]
[null,{"$f":"IFERROR(IF(OR(Table_NCInspection[[#This Row],[Line]]=\"\",INDEX(Table_NCInfo[],Table_NCInspection[[#This Row],[Line]],B$3)=\"\"),\"\",INDEX(Table_NCInfo[],Table_NCInspection[[#This Row],[Line]],B$3)),\"\")","v":""},{"$f":"IFERROR(IF(OR(Table_NCInspection[[#This Row],[Line]]=\"\",INDEX(Table_NCInfo[],Table_NCInspection[[#This Row],[Line]],C$3)=\"\"),\"\",INDEX(Table_NCInfo[],Table_NCInspection[[#This Row],[Line]],C$3)),\"\")","v":""},{"$f":"IFERROR(IF(OR(Table_NCInspection[[#This Row],[Line]]=\"\",INDEX(Table_NCInfo[],Table_NCInspection[[#This Row],[Line]],D$3)=\"\"),\"\",INDEX(Table_NCInfo[],Table_NCInspection[[#This Row],[Line]],D$3)),\"\")","v":""},{"$f":"IF(OR(Table_NCInspection[[#This Row],[Line]]<=0,IFERROR(INDEX(Table_NCInfo[],$A30,E$3),\"\")=\"\"),\"\",IF(Table_NCInspection[[#This Row],[Zone Description]]=INDEX(Table_NCInfo[],Table_NCInspection[[#This Row],[Line]],$D$3),INDEX(Table_NCInfo[],Table_NCInspection[[#This Row],[Line]],E$3),INDEX(Table_IntLookups[Zone'#],MATCH(Table_NCInspection[[#This Row],[Zone Description]],Table_IntLookups[Dropdown],0))))","v":""},{"$f":"IF(OR(Table_NCInspection[[#This Row],[Line]]<=0,IFERROR(INDEX(Table_NCInfo[],Table_NCInspection[[#This Row],[Line]],F$3),\"\")=\"\"),\"\",IF(Table_NCInspection[[#This Row],[Zone Description]]=INDEX(Table_NCInfo[],Table_NCInspection[[#This Row],[Line]],$D$3),INDEX(Table_NCInfo[],Table_NCInspection[[#This Row],[Line]],F$3),IFERROR(VLOOKUP(Table_NCInspection[[#This Row],[Zone '#]],Table_IntLookups[],'Facility Information'!$AB$4,FALSE),0)*INDEX(Table_NCInfo[Baseline Wattage],MATCH(Table_NCInspection[[#This Row],[Line]],Table_NCInfo[Line],0)/VLOOKUP(INDEX(Table_NCInfo[Zone '#],MATCH(Table_NCInspection[[#This Row],[Line]],Table_NCInfo[Line],0)),Table_IntLookups[],'Facility Information'!$AB$4,FALSE),0)))","v":""},{"$f":"IFERROR(IF(OR(Table_NCInspection[[#This Row],[Line]]=\"\",INDEX(Table_NCInfo[],Table_NCInspection[[#This Row],[Line]],G$3)=\"\"),\"\",INDEX(Table_NCInfo[],Table_NCInspection[[#This Row],[Line]],G$3)),\"\")","v":""},null,{"$f":"IFERROR(IF(OR(Table_NCInspection[[#This Row],[Line]]=\"\",INDEX(Table_NCInfo[],Table_NCInspection[[#This Row],[Line]],I$3)=\"\"),\"\",INDEX(Table_NCInfo[],Table_NCInspection[[#This Row],[Line]],I$3)),\"\")","v":""},{"$f":"IFERROR(IF(OR(Table_NCInspection[[#This Row],[Line]]=\"\",INDEX(Table_NCInfo[],Table_NCInspection[[#This Row],[Line]],J$3)=\"\"),\"\",INDEX(Table_NCInfo[],Table_NCInspection[[#This Row],[Line]],J$3)),\"\")","v":""},{"$f":"IFERROR(IF(OR(Table_NCInspection[[#This Row],[Line]]=\"\",INDEX(Table_NCInfo[],Table_NCInspection[[#This Row],[Line]],K$3)=\"\"),\"\",INDEX(Table_NCInfo[],Table_NCInspection[[#This Row],[Line]],K$3)),\"\")","v":""},{"$f":"IFERROR(IF(OR(Table_NCInspection[[#This Row],[Line]]=\"\",INDEX(Table_NCInfo[],Table_NCInspection[[#This Row],[Line]],L$3)=\"\"),\"\",INDEX(Table_NCInfo[],Table_NCInspection[[#This Row],[Line]],L$3)),\"\")","v":""},{"$f":"IFERROR(IF(OR(Table_NCInspection[[#This Row],[Line]]=\"\",INDEX(Table_NCInfo[],Table_NCInspection[[#This Row],[Line]],M$3)=\"\"),\"\",INDEX(Table_NCInfo[],Table_NCInspection[[#This Row],[Line]],M$3)),\"\")","v":""},{"$f":"IFERROR(\nIFERROR(OFFSET(Table_TypWattage[[#Headers],[Technology]],MATCH($J30,Table_TypWattage[Technology],0)+MATCH($L30,INDIRECT(SUBSTITUTE(SUBSTITUTE($J30,\" \",\"_\"),\"-\",\"_\")),0)-1,MATCH($K30,'Measure Tables'!$Q$2:$V$2,0)+1),IF(Table_NCInspection[[#This Row],[Line]]<>\"\",IF(AND(Table_NCInspection[[#This Row],['# Lamps/ Fixture '[P']]]<>\"\",$K30>0,$L30>0),$K30*$L30,$L30),\"\")),\n\"\")","v":""},{"$f":"IFERROR(IF(OR(Table_NCInspection[[#This Row],[Line]]=\"\",INDEX(Table_NCInfo[],Table_NCInspection[[#This Row],[Line]],O$3)=\"\"),\"\",INDEX(Table_NCInfo[],Table_NCInspection[[#This Row],[Line]],O$3)),\"\")","v":""},{"$f":"IFERROR(IF(OR(Table_NCInspection[[#This Row],[Line]]=\"\",INDEX(Table_NCInfo[],Table_NCInspection[[#This Row],[Line]],P$3)=\"\"),\"\",INDEX(Table_NCInfo[],Table_NCInspection[[#This Row],[Line]],P$3)),\"\")","v":""},{"$f":"IFERROR(IF(Table_NCInspection[[#This Row],[Interior/ Exterior]]<>\"\",\n  CONCATENATE(\n  Table_NCInspection[[#This Row],[Interior/ Exterior]],\": \",\n  Table_NCInspection[[#This Row],[Fixture Technology '[P']]],\n  \" - \",Table_NCInspection[[#This Row],[Fixture Type '[P']]],\" [\",\n  IF(AND(Table_NCInspection[[#This Row],['# Lamps/ Fixture '[P']]]<>\"\",Table_NCInspection[[#This Row],['# Lamps/ Fixture '[P']]]>0),Table_NCInspection[[#This Row],['# Lamps/ Fixture '[P']]] & \"L - \" & Table_NCInspection[[#This Row],[Fixture/ Lamp Wattage '[P']]] & \"W\" & IF(Table_NCInspection[[#This Row],[Ballast/ Driver '[P']]]<>\"\",\" - \" & Table_NCInspection[[#This Row],[Ballast/ Driver '[P']]],\"\"),Table_NCInspection[[#This Row],[Fixture Wattage '[P']]] & \"W\"),\"]\",\n  IF(AND(Table_NCInspection[[#This Row],[Controls '[P']]]<>\"\"),\" - \" & Table_NCInspection[[#This Row],[Controls '[P']]],\"\")\n  ),\n\"\"),\"\")","v":""},{"$f":"IFERROR(IF(OR(Table_NCInspection[[#This Row],[Line]]=\"\",INDEX(Table_NCInfo[],Table_NCInspection[[#This Row],[Line]],R$3)=\"\"),\"\",INDEX(Table_NCInfo[],Table_NCInspection[[#This Row],[Line]],R$3)),\"\")","v":""},{"$f":"IFERROR(IF(OR(Table_NCInspection[[#This Row],[Line]]=\"\",INDEX(Table_NCInfo[],Table_NCInspection[[#This Row],[Line]],S$3)=\"\"),\"\",INDEX(Table_NCInfo[],Table_NCInspection[[#This Row],[Line]],S$3)),\"\")","v":""}]
[null,{"$f":"IFERROR(IF(OR(Table_NCInspection[[#This Row],[Line]]=\"\",INDEX(Table_NCInfo[],Table_NCInspection[[#This Row],[Line]],B$3)=\"\"),\"\",INDEX(Table_NCInfo[],Table_NCInspection[[#This Row],[Line]],B$3)),\"\")","v":""},{"$f":"IFERROR(IF(OR(Table_NCInspection[[#This Row],[Line]]=\"\",INDEX(Table_NCInfo[],Table_NCInspection[[#This Row],[Line]],C$3)=\"\"),\"\",INDEX(Table_NCInfo[],Table_NCInspection[[#This Row],[Line]],C$3)),\"\")","v":""},{"$f":"IFERROR(IF(OR(Table_NCInspection[[#This Row],[Line]]=\"\",INDEX(Table_NCInfo[],Table_NCInspection[[#This Row],[Line]],D$3)=\"\"),\"\",INDEX(Table_NCInfo[],Table_NCInspection[[#This Row],[Line]],D$3)),\"\")","v":""},{"$f":"IF(OR(Table_NCInspection[[#This Row],[Line]]<=0,IFERROR(INDEX(Table_NCInfo[],$A31,E$3),\"\")=\"\"),\"\",IF(Table_NCInspection[[#This Row],[Zone Description]]=INDEX(Table_NCInfo[],Table_NCInspection[[#This Row],[Line]],$D$3),INDEX(Table_NCInfo[],Table_NCInspection[[#This Row],[Line]],E$3),INDEX(Table_IntLookups[Zone'#],MATCH(Table_NCInspection[[#This Row],[Zone Description]],Table_IntLookups[Dropdown],0))))","v":""},{"$f":"IF(OR(Table_NCInspection[[#This Row],[Line]]<=0,IFERROR(INDEX(Table_NCInfo[],Table_NCInspection[[#This Row],[Line]],F$3),\"\")=\"\"),\"\",IF(Table_NCInspection[[#This Row],[Zone Description]]=INDEX(Table_NCInfo[],Table_NCInspection[[#This Row],[Line]],$D$3),INDEX(Table_NCInfo[],Table_NCInspection[[#This Row],[Line]],F$3),IFERROR(VLOOKUP(Table_NCInspection[[#This Row],[Zone '#]],Table_IntLookups[],'Facility Information'!$AB$4,FALSE),0)*INDEX(Table_NCInfo[Baseline Wattage],MATCH(Table_NCInspection[[#This Row],[Line]],Table_NCInfo[Line],0)/VLOOKUP(INDEX(Table_NCInfo[Zone '#],MATCH(Table_NCInspection[[#This Row],[Line]],Table_NCInfo[Line],0)),Table_IntLookups[],'Facility Information'!$AB$4,FALSE),0)))","v":""},{"$f":"IFERROR(IF(OR(Table_NCInspection[[#This Row],[Line]]=\"\",INDEX(Table_NCInfo[],Table_NCInspection[[#This Row],[Line]],G$3)=\"\"),\"\",INDEX(Table_NCInfo[],Table_NCInspection[[#This Row],[Line]],G$3)),\"\")","v":""},null,{"$f":"IFERROR(IF(OR(Table_NCInspection[[#This Row],[Line]]=\"\",INDEX(Table_NCInfo[],Table_NCInspection[[#This Row],[Line]],I$3)=\"\"),\"\",INDEX(Table_NCInfo[],Table_NCInspection[[#This Row],[Line]],I$3)),\"\")","v":""},{"$f":"IFERROR(IF(OR(Table_NCInspection[[#This Row],[Line]]=\"\",INDEX(Table_NCInfo[],Table_NCInspection[[#This Row],[Line]],J$3)=\"\"),\"\",INDEX(Table_NCInfo[],Table_NCInspection[[#This Row],[Line]],J$3)),\"\")","v":""},{"$f":"IFERROR(IF(OR(Table_NCInspection[[#This Row],[Line]]=\"\",INDEX(Table_NCInfo[],Table_NCInspection[[#This Row],[Line]],K$3)=\"\"),\"\",INDEX(Table_NCInfo[],Table_NCInspection[[#This Row],[Line]],K$3)),\"\")","v":""},{"$f":"IFERROR(IF(OR(Table_NCInspection[[#This Row],[Line]]=\"\",INDEX(Table_NCInfo[],Table_NCInspection[[#This Row],[Line]],L$3)=\"\"),\"\",INDEX(Table_NCInfo[],Table_NCInspection[[#This Row],[Line]],L$3)),\"\")","v":""},{"$f":"IFERROR(IF(OR(Table_NCInspection[[#This Row],[Line]]=\"\",INDEX(Table_NCInfo[],Table_NCInspection[[#This Row],[Line]],M$3)=\"\"),\"\",INDEX(Table_NCInfo[],Table_NCInspection[[#This Row],[Line]],M$3)),\"\")","v":""},{"$f":"IFERROR(\nIFERROR(OFFSET(Table_TypWattage[[#Headers],[Technology]],MATCH($J31,Table_TypWattage[Technology],0)+MATCH($L31,INDIRECT(SUBSTITUTE(SUBSTITUTE($J31,\" \",\"_\"),\"-\",\"_\")),0)-1,MATCH($K31,'Measure Tables'!$Q$2:$V$2,0)+1),IF(Table_NCInspection[[#This Row],[Line]]<>\"\",IF(AND(Table_NCInspection[[#This Row],['# Lamps/ Fixture '[P']]]<>\"\",$K31>0,$L31>0),$K31*$L31,$L31),\"\")),\n\"\")","v":""},{"$f":"IFERROR(IF(OR(Table_NCInspection[[#This Row],[Line]]=\"\",INDEX(Table_NCInfo[],Table_NCInspection[[#This Row],[Line]],O$3)=\"\"),\"\",INDEX(Table_NCInfo[],Table_NCInspection[[#This Row],[Line]],O$3)),\"\")","v":""},{"$f":"IFERROR(IF(OR(Table_NCInspection[[#This Row],[Line]]=\"\",INDEX(Table_NCInfo[],Table_NCInspection[[#This Row],[Line]],P$3)=\"\"),\"\",INDEX(Table_NCInfo[],Table_NCInspection[[#This Row],[Line]],P$3)),\"\")","v":""},{"$f":"IFERROR(IF(Table_NCInspection[[#This Row],[Interior/ Exterior]]<>\"\",\n  CONCATENATE(\n  Table_NCInspection[[#This Row],[Interior/ Exterior]],\": \",\n  Table_NCInspection[[#This Row],[Fixture Technology '[P']]],\n  \" - \",Table_NCInspection[[#This Row],[Fixture Type '[P']]],\" [\",\n  IF(AND(Table_NCInspection[[#This Row],['# Lamps/ Fixture '[P']]]<>\"\",Table_NCInspection[[#This Row],['# Lamps/ Fixture '[P']]]>0),Table_NCInspection[[#This Row],['# Lamps/ Fixture '[P']]] & \"L - \" & Table_NCInspection[[#This Row],[Fixture/ Lamp Wattage '[P']]] & \"W\" & IF(Table_NCInspection[[#This Row],[Ballast/ Driver '[P']]]<>\"\",\" - \" & Table_NCInspection[[#This Row],[Ballast/ Driver '[P']]],\"\"),Table_NCInspection[[#This Row],[Fixture Wattage '[P']]] & \"W\"),\"]\",\n  IF(AND(Table_NCInspection[[#This Row],[Controls '[P']]]<>\"\"),\" - \" & Table_NCInspection[[#This Row],[Controls '[P']]],\"\")\n  ),\n\"\"),\"\")","v":""},{"$f":"IFERROR(IF(OR(Table_NCInspection[[#This Row],[Line]]=\"\",INDEX(Table_NCInfo[],Table_NCInspection[[#This Row],[Line]],R$3)=\"\"),\"\",INDEX(Table_NCInfo[],Table_NCInspection[[#This Row],[Line]],R$3)),\"\")","v":""},{"$f":"IFERROR(IF(OR(Table_NCInspection[[#This Row],[Line]]=\"\",INDEX(Table_NCInfo[],Table_NCInspection[[#This Row],[Line]],S$3)=\"\"),\"\",INDEX(Table_NCInfo[],Table_NCInspection[[#This Row],[Line]],S$3)),\"\")","v":""}]
[null,{"$f":"IFERROR(IF(OR(Table_NCInspection[[#This Row],[Line]]=\"\",INDEX(Table_NCInfo[],Table_NCInspection[[#This Row],[Line]],B$3)=\"\"),\"\",INDEX(Table_NCInfo[],Table_NCInspection[[#This Row],[Line]],B$3)),\"\")","v":""},{"$f":"IFERROR(IF(OR(Table_NCInspection[[#This Row],[Line]]=\"\",INDEX(Table_NCInfo[],Table_NCInspection[[#This Row],[Line]],C$3)=\"\"),\"\",INDEX(Table_NCInfo[],Table_NCInspection[[#This Row],[Line]],C$3)),\"\")","v":""},{"$f":"IFERROR(IF(OR(Table_NCInspection[[#This Row],[Line]]=\"\",INDEX(Table_NCInfo[],Table_NCInspection[[#This Row],[Line]],D$3)=\"\"),\"\",INDEX(Table_NCInfo[],Table_NCInspection[[#This Row],[Line]],D$3)),\"\")","v":""},{"$f":"IF(OR(Table_NCInspection[[#This Row],[Line]]<=0,IFERROR(INDEX(Table_NCInfo[],$A32,E$3),\"\")=\"\"),\"\",IF(Table_NCInspection[[#This Row],[Zone Description]]=INDEX(Table_NCInfo[],Table_NCInspection[[#This Row],[Line]],$D$3),INDEX(Table_NCInfo[],Table_NCInspection[[#This Row],[Line]],E$3),INDEX(Table_IntLookups[Zone'#],MATCH(Table_NCInspection[[#This Row],[Zone Description]],Table_IntLookups[Dropdown],0))))","v":""},{"$f":"IF(OR(Table_NCInspection[[#This Row],[Line]]<=0,IFERROR(INDEX(Table_NCInfo[],Table_NCInspection[[#This Row],[Line]],F$3),\"\")=\"\"),\"\",IF(Table_NCInspection[[#This Row],[Zone Description]]=INDEX(Table_NCInfo[],Table_NCInspection[[#This Row],[Line]],$D$3),INDEX(Table_NCInfo[],Table_NCInspection[[#This Row],[Line]],F$3),IFERROR(VLOOKUP(Table_NCInspection[[#This Row],[Zone '#]],Table_IntLookups[],'Facility Information'!$AB$4,FALSE),0)*INDEX(Table_NCInfo[Baseline Wattage],MATCH(Table_NCInspection[[#This Row],[Line]],Table_NCInfo[Line],0)/VLOOKUP(INDEX(Table_NCInfo[Zone '#],MATCH(Table_NCInspection[[#This Row],[Line]],Table_NCInfo[Line],0)),Table_IntLookups[],'Facility Information'!$AB$4,FALSE),0)))","v":""},{"$f":"IFERROR(IF(OR(Table_NCInspection[[#This Row],[Line]]=\"\",INDEX(Table_NCInfo[],Table_NCInspection[[#This Row],[Line]],G$3)=\"\"),\"\",INDEX(Table_NCInfo[],Table_NCInspection[[#This Row],[Line]],G$3)),\"\")","v":""},null,{"$f":"IFERROR(IF(OR(Table_NCInspection[[#This Row],[Line]]=\"\",INDEX(Table_NCInfo[],Table_NCInspection[[#This Row],[Line]],I$3)=\"\"),\"\",INDEX(Table_NCInfo[],Table_NCInspection[[#This Row],[Line]],I$3)),\"\")","v":""},{"$f":"IFERROR(IF(OR(Table_NCInspection[[#This Row],[Line]]=\"\",INDEX(Table_NCInfo[],Table_NCInspection[[#This Row],[Line]],J$3)=\"\"),\"\",INDEX(Table_NCInfo[],Table_NCInspection[[#This Row],[Line]],J$3)),\"\")","v":""},{"$f":"IFERROR(IF(OR(Table_NCInspection[[#This Row],[Line]]=\"\",INDEX(Table_NCInfo[],Table_NCInspection[[#This Row],[Line]],K$3)=\"\"),\"\",INDEX(Table_NCInfo[],Table_NCInspection[[#This Row],[Line]],K$3)),\"\")","v":""},{"$f":"IFERROR(IF(OR(Table_NCInspection[[#This Row],[Line]]=\"\",INDEX(Table_NCInfo[],Table_NCInspection[[#This Row],[Line]],L$3)=\"\"),\"\",INDEX(Table_NCInfo[],Table_NCInspection[[#This Row],[Line]],L$3)),\"\")","v":""},{"$f":"IFERROR(IF(OR(Table_NCInspection[[#This Row],[Line]]=\"\",INDEX(Table_NCInfo[],Table_NCInspection[[#This Row],[Line]],M$3)=\"\"),\"\",INDEX(Table_NCInfo[],Table_NCInspection[[#This Row],[Line]],M$3)),\"\")","v":""},{"$f":"IFERROR(\nIFERROR(OFFSET(Table_TypWattage[[#Headers],[Technology]],MATCH($J32,Table_TypWattage[Technology],0)+MATCH($L32,INDIRECT(SUBSTITUTE(SUBSTITUTE($J32,\" \",\"_\"),\"-\",\"_\")),0)-1,MATCH($K32,'Measure Tables'!$Q$2:$V$2,0)+1),IF(Table_NCInspection[[#This Row],[Line]]<>\"\",IF(AND(Table_NCInspection[[#This Row],['# Lamps/ Fixture '[P']]]<>\"\",$K32>0,$L32>0),$K32*$L32,$L32),\"\")),\n\"\")","v":""},{"$f":"IFERROR(IF(OR(Table_NCInspection[[#This Row],[Line]]=\"\",INDEX(Table_NCInfo[],Table_NCInspection[[#This Row],[Line]],O$3)=\"\"),\"\",INDEX(Table_NCInfo[],Table_NCInspection[[#This Row],[Line]],O$3)),\"\")","v":""},{"$f":"IFERROR(IF(OR(Table_NCInspection[[#This Row],[Line]]=\"\",INDEX(Table_NCInfo[],Table_NCInspection[[#This Row],[Line]],P$3)=\"\"),\"\",INDEX(Table_NCInfo[],Table_NCInspection[[#This Row],[Line]],P$3)),\"\")","v":""},{"$f":"IFERROR(IF(Table_NCInspection[[#This Row],[Interior/ Exterior]]<>\"\",\n  CONCATENATE(\n  Table_NCInspection[[#This Row],[Interior/ Exterior]],\": \",\n  Table_NCInspection[[#This Row],[Fixture Technology '[P']]],\n  \" - \",Table_NCInspection[[#This Row],[Fixture Type '[P']]],\" [\",\n  IF(AND(Table_NCInspection[[#This Row],['# Lamps/ Fixture '[P']]]<>\"\",Table_NCInspection[[#This Row],['# Lamps/ Fixture '[P']]]>0),Table_NCInspection[[#This Row],['# Lamps/ Fixture '[P']]] & \"L - \" & Table_NCInspection[[#This Row],[Fixture/ Lamp Wattage '[P']]] & \"W\" & IF(Table_NCInspection[[#This Row],[Ballast/ Driver '[P']]]<>\"\",\" - \" & Table_NCInspection[[#This Row],[Ballast/ Driver '[P']]],\"\"),Table_NCInspection[[#This Row],[Fixture Wattage '[P']]] & \"W\"),\"]\",\n  IF(AND(Table_NCInspection[[#This Row],[Controls '[P']]]<>\"\"),\" - \" & Table_NCInspection[[#This Row],[Controls '[P']]],\"\")\n  ),\n\"\"),\"\")","v":""},{"$f":"IFERROR(IF(OR(Table_NCInspection[[#This Row],[Line]]=\"\",INDEX(Table_NCInfo[],Table_NCInspection[[#This Row],[Line]],R$3)=\"\"),\"\",INDEX(Table_NCInfo[],Table_NCInspection[[#This Row],[Line]],R$3)),\"\")","v":""},{"$f":"IFERROR(IF(OR(Table_NCInspection[[#This Row],[Line]]=\"\",INDEX(Table_NCInfo[],Table_NCInspection[[#This Row],[Line]],S$3)=\"\"),\"\",INDEX(Table_NCInfo[],Table_NCInspection[[#This Row],[Line]],S$3)),\"\")","v":""}]
[null,{"$f":"IFERROR(IF(OR(Table_NCInspection[[#This Row],[Line]]=\"\",INDEX(Table_NCInfo[],Table_NCInspection[[#This Row],[Line]],B$3)=\"\"),\"\",INDEX(Table_NCInfo[],Table_NCInspection[[#This Row],[Line]],B$3)),\"\")","v":""},{"$f":"IFERROR(IF(OR(Table_NCInspection[[#This Row],[Line]]=\"\",INDEX(Table_NCInfo[],Table_NCInspection[[#This Row],[Line]],C$3)=\"\"),\"\",INDEX(Table_NCInfo[],Table_NCInspection[[#This Row],[Line]],C$3)),\"\")","v":""},{"$f":"IFERROR(IF(OR(Table_NCInspection[[#This Row],[Line]]=\"\",INDEX(Table_NCInfo[],Table_NCInspection[[#This Row],[Line]],D$3)=\"\"),\"\",INDEX(Table_NCInfo[],Table_NCInspection[[#This Row],[Line]],D$3)),\"\")","v":""},{"$f":"IF(OR(Table_NCInspection[[#This Row],[Line]]<=0,IFERROR(INDEX(Table_NCInfo[],$A33,E$3),\"\")=\"\"),\"\",IF(Table_NCInspection[[#This Row],[Zone Description]]=INDEX(Table_NCInfo[],Table_NCInspection[[#This Row],[Line]],$D$3),INDEX(Table_NCInfo[],Table_NCInspection[[#This Row],[Line]],E$3),INDEX(Table_IntLookups[Zone'#],MATCH(Table_NCInspection[[#This Row],[Zone Description]],Table_IntLookups[Dropdown],0))))","v":""},{"$f":"IF(OR(Table_NCInspection[[#This Row],[Line]]<=0,IFERROR(INDEX(Table_NCInfo[],Table_NCInspection[[#This Row],[Line]],F$3),\"\")=\"\"),\"\",IF(Table_NCInspection[[#This Row],[Zone Description]]=INDEX(Table_NCInfo[],Table_NCInspection[[#This Row],[Line]],$D$3),INDEX(Table_NCInfo[],Table_NCInspection[[#This Row],[Line]],F$3),IFERROR(VLOOKUP(Table_NCInspection[[#This Row],[Zone '#]],Table_IntLookups[],'Facility Information'!$AB$4,FALSE),0)*INDEX(Table_NCInfo[Baseline Wattage],MATCH(Table_NCInspection[[#This Row],[Line]],Table_NCInfo[Line],0)/VLOOKUP(INDEX(Table_NCInfo[Zone '#],MATCH(Table_NCInspection[[#This Row],[Line]],Table_NCInfo[Line],0)),Table_IntLookups[],'Facility Information'!$AB$4,FALSE),0)))","v":""},{"$f":"IFERROR(IF(OR(Table_NCInspection[[#This Row],[Line]]=\"\",INDEX(Table_NCInfo[],Table_NCInspection[[#This Row],[Line]],G$3)=\"\"),\"\",INDEX(Table_NCInfo[],Table_NCInspection[[#This Row],[Line]],G$3)),\"\")","v":""},null,{"$f":"IFERROR(IF(OR(Table_NCInspection[[#This Row],[Line]]=\"\",INDEX(Table_NCInfo[],Table_NCInspection[[#This Row],[Line]],I$3)=\"\"),\"\",INDEX(Table_NCInfo[],Table_NCInspection[[#This Row],[Line]],I$3)),\"\")","v":""},{"$f":"IFERROR(IF(OR(Table_NCInspection[[#This Row],[Line]]=\"\",INDEX(Table_NCInfo[],Table_NCInspection[[#This Row],[Line]],J$3)=\"\"),\"\",INDEX(Table_NCInfo[],Table_NCInspection[[#This Row],[Line]],J$3)),\"\")","v":""},{"$f":"IFERROR(IF(OR(Table_NCInspection[[#This Row],[Line]]=\"\",INDEX(Table_NCInfo[],Table_NCInspection[[#This Row],[Line]],K$3)=\"\"),\"\",INDEX(Table_NCInfo[],Table_NCInspection[[#This Row],[Line]],K$3)),\"\")","v":""},{"$f":"IFERROR(IF(OR(Table_NCInspection[[#This Row],[Line]]=\"\",INDEX(Table_NCInfo[],Table_NCInspection[[#This Row],[Line]],L$3)=\"\"),\"\",INDEX(Table_NCInfo[],Table_NCInspection[[#This Row],[Line]],L$3)),\"\")","v":""},{"$f":"IFERROR(IF(OR(Table_NCInspection[[#This Row],[Line]]=\"\",INDEX(Table_NCInfo[],Table_NCInspection[[#This Row],[Line]],M$3)=\"\"),\"\",INDEX(Table_NCInfo[],Table_NCInspection[[#This Row],[Line]],M$3)),\"\")","v":""},{"$f":"IFERROR(\nIFERROR(OFFSET(Table_TypWattage[[#Headers],[Technology]],MATCH($J33,Table_TypWattage[Technology],0)+MATCH($L33,INDIRECT(SUBSTITUTE(SUBSTITUTE($J33,\" \",\"_\"),\"-\",\"_\")),0)-1,MATCH($K33,'Measure Tables'!$Q$2:$V$2,0)+1),IF(Table_NCInspection[[#This Row],[Line]]<>\"\",IF(AND(Table_NCInspection[[#This Row],['# Lamps/ Fixture '[P']]]<>\"\",$K33>0,$L33>0),$K33*$L33,$L33),\"\")),\n\"\")","v":""},{"$f":"IFERROR(IF(OR(Table_NCInspection[[#This Row],[Line]]=\"\",INDEX(Table_NCInfo[],Table_NCInspection[[#This Row],[Line]],O$3)=\"\"),\"\",INDEX(Table_NCInfo[],Table_NCInspection[[#This Row],[Line]],O$3)),\"\")","v":""},{"$f":"IFERROR(IF(OR(Table_NCInspection[[#This Row],[Line]]=\"\",INDEX(Table_NCInfo[],Table_NCInspection[[#This Row],[Line]],P$3)=\"\"),\"\",INDEX(Table_NCInfo[],Table_NCInspection[[#This Row],[Line]],P$3)),\"\")","v":""},{"$f":"IFERROR(IF(Table_NCInspection[[#This Row],[Interior/ Exterior]]<>\"\",\n  CONCATENATE(\n  Table_NCInspection[[#This Row],[Interior/ Exterior]],\": \",\n  Table_NCInspection[[#This Row],[Fixture Technology '[P']]],\n  \" - \",Table_NCInspection[[#This Row],[Fixture Type '[P']]],\" [\",\n  IF(AND(Table_NCInspection[[#This Row],['# Lamps/ Fixture '[P']]]<>\"\",Table_NCInspection[[#This Row],['# Lamps/ Fixture '[P']]]>0),Table_NCInspection[[#This Row],['# Lamps/ Fixture '[P']]] & \"L - \" & Table_NCInspection[[#This Row],[Fixture/ Lamp Wattage '[P']]] & \"W\" & IF(Table_NCInspection[[#This Row],[Ballast/ Driver '[P']]]<>\"\",\" - \" & Table_NCInspection[[#This Row],[Ballast/ Driver '[P']]],\"\"),Table_NCInspection[[#This Row],[Fixture Wattage '[P']]] & \"W\"),\"]\",\n  IF(AND(Table_NCInspection[[#This Row],[Controls '[P']]]<>\"\"),\" - \" & Table_NCInspection[[#This Row],[Controls '[P']]],\"\")\n  ),\n\"\"),\"\")","v":""},{"$f":"IFERROR(IF(OR(Table_NCInspection[[#This Row],[Line]]=\"\",INDEX(Table_NCInfo[],Table_NCInspection[[#This Row],[Line]],R$3)=\"\"),\"\",INDEX(Table_NCInfo[],Table_NCInspection[[#This Row],[Line]],R$3)),\"\")","v":""},{"$f":"IFERROR(IF(OR(Table_NCInspection[[#This Row],[Line]]=\"\",INDEX(Table_NCInfo[],Table_NCInspection[[#This Row],[Line]],S$3)=\"\"),\"\",INDEX(Table_NCInfo[],Table_NCInspection[[#This Row],[Line]],S$3)),\"\")","v":""}]
[null,{"$f":"IFERROR(IF(OR(Table_NCInspection[[#This Row],[Line]]=\"\",INDEX(Table_NCInfo[],Table_NCInspection[[#This Row],[Line]],B$3)=\"\"),\"\",INDEX(Table_NCInfo[],Table_NCInspection[[#This Row],[Line]],B$3)),\"\")","v":""},{"$f":"IFERROR(IF(OR(Table_NCInspection[[#This Row],[Line]]=\"\",INDEX(Table_NCInfo[],Table_NCInspection[[#This Row],[Line]],C$3)=\"\"),\"\",INDEX(Table_NCInfo[],Table_NCInspection[[#This Row],[Line]],C$3)),\"\")","v":""},{"$f":"IFERROR(IF(OR(Table_NCInspection[[#This Row],[Line]]=\"\",INDEX(Table_NCInfo[],Table_NCInspection[[#This Row],[Line]],D$3)=\"\"),\"\",INDEX(Table_NCInfo[],Table_NCInspection[[#This Row],[Line]],D$3)),\"\")","v":""},{"$f":"IF(OR(Table_NCInspection[[#This Row],[Line]]<=0,IFERROR(INDEX(Table_NCInfo[],$A34,E$3),\"\")=\"\"),\"\",IF(Table_NCInspection[[#This Row],[Zone Description]]=INDEX(Table_NCInfo[],Table_NCInspection[[#This Row],[Line]],$D$3),INDEX(Table_NCInfo[],Table_NCInspection[[#This Row],[Line]],E$3),INDEX(Table_IntLookups[Zone'#],MATCH(Table_NCInspection[[#This Row],[Zone Description]],Table_IntLookups[Dropdown],0))))","v":""},{"$f":"IF(OR(Table_NCInspection[[#This Row],[Line]]<=0,IFERROR(INDEX(Table_NCInfo[],Table_NCInspection[[#This Row],[Line]],F$3),\"\")=\"\"),\"\",IF(Table_NCInspection[[#This Row],[Zone Description]]=INDEX(Table_NCInfo[],Table_NCInspection[[#This Row],[Line]],$D$3),INDEX(Table_NCInfo[],Table_NCInspection[[#This Row],[Line]],F$3),IFERROR(VLOOKUP(Table_NCInspection[[#This Row],[Zone '#]],Table_IntLookups[],'Facility Information'!$AB$4,FALSE),0)*INDEX(Table_NCInfo[Baseline Wattage],MATCH(Table_NCInspection[[#This Row],[Line]],Table_NCInfo[Line],0)/VLOOKUP(INDEX(Table_NCInfo[Zone '#],MATCH(Table_NCInspection[[#This Row],[Line]],Table_NCInfo[Line],0)),Table_IntLookups[],'Facility Information'!$AB$4,FALSE),0)))","v":""},{"$f":"IFERROR(IF(OR(Table_NCInspection[[#This Row],[Line]]=\"\",INDEX(Table_NCInfo[],Table_NCInspection[[#This Row],[Line]],G$3)=\"\"),\"\",INDEX(Table_NCInfo[],Table_NCInspection[[#This Row],[Line]],G$3)),\"\")","v":""},null,{"$f":"IFERROR(IF(OR(Table_NCInspection[[#This Row],[Line]]=\"\",INDEX(Table_NCInfo[],Table_NCInspection[[#This Row],[Line]],I$3)=\"\"),\"\",INDEX(Table_NCInfo[],Table_NCInspection[[#This Row],[Line]],I$3)),\"\")","v":""},{"$f":"IFERROR(IF(OR(Table_NCInspection[[#This Row],[Line]]=\"\",INDEX(Table_NCInfo[],Table_NCInspection[[#This Row],[Line]],J$3)=\"\"),\"\",INDEX(Table_NCInfo[],Table_NCInspection[[#This Row],[Line]],J$3)),\"\")","v":""},{"$f":"IFERROR(IF(OR(Table_NCInspection[[#This Row],[Line]]=\"\",INDEX(Table_NCInfo[],Table_NCInspection[[#This Row],[Line]],K$3)=\"\"),\"\",INDEX(Table_NCInfo[],Table_NCInspection[[#This Row],[Line]],K$3)),\"\")","v":""},{"$f":"IFERROR(IF(OR(Table_NCInspection[[#This Row],[Line]]=\"\",INDEX(Table_NCInfo[],Table_NCInspection[[#This Row],[Line]],L$3)=\"\"),\"\",INDEX(Table_NCInfo[],Table_NCInspection[[#This Row],[Line]],L$3)),\"\")","v":""},{"$f":"IFERROR(IF(OR(Table_NCInspection[[#This Row],[Line]]=\"\",INDEX(Table_NCInfo[],Table_NCInspection[[#This Row],[Line]],M$3)=\"\"),\"\",INDEX(Table_NCInfo[],Table_NCInspection[[#This Row],[Line]],M$3)),\"\")","v":""},{"$f":"IFERROR(\nIFERROR(OFFSET(Table_TypWattage[[#Headers],[Technology]],MATCH($J34,Table_TypWattage[Technology],0)+MATCH($L34,INDIRECT(SUBSTITUTE(SUBSTITUTE($J34,\" \",\"_\"),\"-\",\"_\")),0)-1,MATCH($K34,'Measure Tables'!$Q$2:$V$2,0)+1),IF(Table_NCInspection[[#This Row],[Line]]<>\"\",IF(AND(Table_NCInspection[[#This Row],['# Lamps/ Fixture '[P']]]<>\"\",$K34>0,$L34>0),$K34*$L34,$L34),\"\")),\n\"\")","v":""},{"$f":"IFERROR(IF(OR(Table_NCInspection[[#This Row],[Line]]=\"\",INDEX(Table_NCInfo[],Table_NCInspection[[#This Row],[Line]],O$3)=\"\"),\"\",INDEX(Table_NCInfo[],Table_NCInspection[[#This Row],[Line]],O$3)),\"\")","v":""},{"$f":"IFERROR(IF(OR(Table_NCInspection[[#This Row],[Line]]=\"\",INDEX(Table_NCInfo[],Table_NCInspection[[#This Row],[Line]],P$3)=\"\"),\"\",INDEX(Table_NCInfo[],Table_NCInspection[[#This Row],[Line]],P$3)),\"\")","v":""},{"$f":"IFERROR(IF(Table_NCInspection[[#This Row],[Interior/ Exterior]]<>\"\",\n  CONCATENATE(\n  Table_NCInspection[[#This Row],[Interior/ Exterior]],\": \",\n  Table_NCInspection[[#This Row],[Fixture Technology '[P']]],\n  \" - \",Table_NCInspection[[#This Row],[Fixture Type '[P']]],\" [\",\n  IF(AND(Table_NCInspection[[#This Row],['# Lamps/ Fixture '[P']]]<>\"\",Table_NCInspection[[#This Row],['# Lamps/ Fixture '[P']]]>0),Table_NCInspection[[#This Row],['# Lamps/ Fixture '[P']]] & \"L - \" & Table_NCInspection[[#This Row],[Fixture/ Lamp Wattage '[P']]] & \"W\" & IF(Table_NCInspection[[#This Row],[Ballast/ Driver '[P']]]<>\"\",\" - \" & Table_NCInspection[[#This Row],[Ballast/ Driver '[P']]],\"\"),Table_NCInspection[[#This Row],[Fixture Wattage '[P']]] & \"W\"),\"]\",\n  IF(AND(Table_NCInspection[[#This Row],[Controls '[P']]]<>\"\"),\" - \" & Table_NCInspection[[#This Row],[Controls '[P']]],\"\")\n  ),\n\"\"),\"\")","v":""},{"$f":"IFERROR(IF(OR(Table_NCInspection[[#This Row],[Line]]=\"\",INDEX(Table_NCInfo[],Table_NCInspection[[#This Row],[Line]],R$3)=\"\"),\"\",INDEX(Table_NCInfo[],Table_NCInspection[[#This Row],[Line]],R$3)),\"\")","v":""},{"$f":"IFERROR(IF(OR(Table_NCInspection[[#This Row],[Line]]=\"\",INDEX(Table_NCInfo[],Table_NCInspection[[#This Row],[Line]],S$3)=\"\"),\"\",INDEX(Table_NCInfo[],Table_NCInspection[[#This Row],[Line]],S$3)),\"\")","v":""}]
[null,{"$f":"IFERROR(IF(OR(Table_NCInspection[[#This Row],[Line]]=\"\",INDEX(Table_NCInfo[],Table_NCInspection[[#This Row],[Line]],B$3)=\"\"),\"\",INDEX(Table_NCInfo[],Table_NCInspection[[#This Row],[Line]],B$3)),\"\")","v":""},{"$f":"IFERROR(IF(OR(Table_NCInspection[[#This Row],[Line]]=\"\",INDEX(Table_NCInfo[],Table_NCInspection[[#This Row],[Line]],C$3)=\"\"),\"\",INDEX(Table_NCInfo[],Table_NCInspection[[#This Row],[Line]],C$3)),\"\")","v":""},{"$f":"IFERROR(IF(OR(Table_NCInspection[[#This Row],[Line]]=\"\",INDEX(Table_NCInfo[],Table_NCInspection[[#This Row],[Line]],D$3)=\"\"),\"\",INDEX(Table_NCInfo[],Table_NCInspection[[#This Row],[Line]],D$3)),\"\")","v":""},{"$f":"IF(OR(Table_NCInspection[[#This Row],[Line]]<=0,IFERROR(INDEX(Table_NCInfo[],$A35,E$3),\"\")=\"\"),\"\",IF(Table_NCInspection[[#This Row],[Zone Description]]=INDEX(Table_NCInfo[],Table_NCInspection[[#This Row],[Line]],$D$3),INDEX(Table_NCInfo[],Table_NCInspection[[#This Row],[Line]],E$3),INDEX(Table_IntLookups[Zone'#],MATCH(Table_NCInspection[[#This Row],[Zone Description]],Table_IntLookups[Dropdown],0))))","v":""},{"$f":"IF(OR(Table_NCInspection[[#This Row],[Line]]<=0,IFERROR(INDEX(Table_NCInfo[],Table_NCInspection[[#This Row],[Line]],F$3),\"\")=\"\"),\"\",IF(Table_NCInspection[[#This Row],[Zone Description]]=INDEX(Table_NCInfo[],Table_NCInspection[[#This Row],[Line]],$D$3),INDEX(Table_NCInfo[],Table_NCInspection[[#This Row],[Line]],F$3),IFERROR(VLOOKUP(Table_NCInspection[[#This Row],[Zone '#]],Table_IntLookups[],'Facility Information'!$AB$4,FALSE),0)*INDEX(Table_NCInfo[Baseline Wattage],MATCH(Table_NCInspection[[#This Row],[Line]],Table_NCInfo[Line],0)/VLOOKUP(INDEX(Table_NCInfo[Zone '#],MATCH(Table_NCInspection[[#This Row],[Line]],Table_NCInfo[Line],0)),Table_IntLookups[],'Facility Information'!$AB$4,FALSE),0)))","v":""},{"$f":"IFERROR(IF(OR(Table_NCInspection[[#This Row],[Line]]=\"\",INDEX(Table_NCInfo[],Table_NCInspection[[#This Row],[Line]],G$3)=\"\"),\"\",INDEX(Table_NCInfo[],Table_NCInspection[[#This Row],[Line]],G$3)),\"\")","v":""},null,{"$f":"IFERROR(IF(OR(Table_NCInspection[[#This Row],[Line]]=\"\",INDEX(Table_NCInfo[],Table_NCInspection[[#This Row],[Line]],I$3)=\"\"),\"\",INDEX(Table_NCInfo[],Table_NCInspection[[#This Row],[Line]],I$3)),\"\")","v":""},{"$f":"IFERROR(IF(OR(Table_NCInspection[[#This Row],[Line]]=\"\",INDEX(Table_NCInfo[],Table_NCInspection[[#This Row],[Line]],J$3)=\"\"),\"\",INDEX(Table_NCInfo[],Table_NCInspection[[#This Row],[Line]],J$3)),\"\")","v":""},{"$f":"IFERROR(IF(OR(Table_NCInspection[[#This Row],[Line]]=\"\",INDEX(Table_NCInfo[],Table_NCInspection[[#This Row],[Line]],K$3)=\"\"),\"\",INDEX(Table_NCInfo[],Table_NCInspection[[#This Row],[Line]],K$3)),\"\")","v":""},{"$f":"IFERROR(IF(OR(Table_NCInspection[[#This Row],[Line]]=\"\",INDEX(Table_NCInfo[],Table_NCInspection[[#This Row],[Line]],L$3)=\"\"),\"\",INDEX(Table_NCInfo[],Table_NCInspection[[#This Row],[Line]],L$3)),\"\")","v":""},{"$f":"IFERROR(IF(OR(Table_NCInspection[[#This Row],[Line]]=\"\",INDEX(Table_NCInfo[],Table_NCInspection[[#This Row],[Line]],M$3)=\"\"),\"\",INDEX(Table_NCInfo[],Table_NCInspection[[#This Row],[Line]],M$3)),\"\")","v":""},{"$f":"IFERROR(\nIFERROR(OFFSET(Table_TypWattage[[#Headers],[Technology]],MATCH($J35,Table_TypWattage[Technology],0)+MATCH($L35,INDIRECT(SUBSTITUTE(SUBSTITUTE($J35,\" \",\"_\"),\"-\",\"_\")),0)-1,MATCH($K35,'Measure Tables'!$Q$2:$V$2,0)+1),IF(Table_NCInspection[[#This Row],[Line]]<>\"\",IF(AND(Table_NCInspection[[#This Row],['# Lamps/ Fixture '[P']]]<>\"\",$K35>0,$L35>0),$K35*$L35,$L35),\"\")),\n\"\")","v":""},{"$f":"IFERROR(IF(OR(Table_NCInspection[[#This Row],[Line]]=\"\",INDEX(Table_NCInfo[],Table_NCInspection[[#This Row],[Line]],O$3)=\"\"),\"\",INDEX(Table_NCInfo[],Table_NCInspection[[#This Row],[Line]],O$3)),\"\")","v":""},{"$f":"IFERROR(IF(OR(Table_NCInspection[[#This Row],[Line]]=\"\",INDEX(Table_NCInfo[],Table_NCInspection[[#This Row],[Line]],P$3)=\"\"),\"\",INDEX(Table_NCInfo[],Table_NCInspection[[#This Row],[Line]],P$3)),\"\")","v":""},{"$f":"IFERROR(IF(Table_NCInspection[[#This Row],[Interior/ Exterior]]<>\"\",\n  CONCATENATE(\n  Table_NCInspection[[#This Row],[Interior/ Exterior]],\": \",\n  Table_NCInspection[[#This Row],[Fixture Technology '[P']]],\n  \" - \",Table_NCInspection[[#This Row],[Fixture Type '[P']]],\" [\",\n  IF(AND(Table_NCInspection[[#This Row],['# Lamps/ Fixture '[P']]]<>\"\",Table_NCInspection[[#This Row],['# Lamps/ Fixture '[P']]]>0),Table_NCInspection[[#This Row],['# Lamps/ Fixture '[P']]] & \"L - \" & Table_NCInspection[[#This Row],[Fixture/ Lamp Wattage '[P']]] & \"W\" & IF(Table_NCInspection[[#This Row],[Ballast/ Driver '[P']]]<>\"\",\" - \" & Table_NCInspection[[#This Row],[Ballast/ Driver '[P']]],\"\"),Table_NCInspection[[#This Row],[Fixture Wattage '[P']]] & \"W\"),\"]\",\n  IF(AND(Table_NCInspection[[#This Row],[Controls '[P']]]<>\"\"),\" - \" & Table_NCInspection[[#This Row],[Controls '[P']]],\"\")\n  ),\n\"\"),\"\")","v":""},{"$f":"IFERROR(IF(OR(Table_NCInspection[[#This Row],[Line]]=\"\",INDEX(Table_NCInfo[],Table_NCInspection[[#This Row],[Line]],R$3)=\"\"),\"\",INDEX(Table_NCInfo[],Table_NCInspection[[#This Row],[Line]],R$3)),\"\")","v":""},{"$f":"IFERROR(IF(OR(Table_NCInspection[[#This Row],[Line]]=\"\",INDEX(Table_NCInfo[],Table_NCInspection[[#This Row],[Line]],S$3)=\"\"),\"\",INDEX(Table_NCInfo[],Table_NCInspection[[#This Row],[Line]],S$3)),\"\")","v":""}]
[null,{"$f":"IFERROR(IF(OR(Table_NCInspection[[#This Row],[Line]]=\"\",INDEX(Table_NCInfo[],Table_NCInspection[[#This Row],[Line]],B$3)=\"\"),\"\",INDEX(Table_NCInfo[],Table_NCInspection[[#This Row],[Line]],B$3)),\"\")","v":""},{"$f":"IFERROR(IF(OR(Table_NCInspection[[#This Row],[Line]]=\"\",INDEX(Table_NCInfo[],Table_NCInspection[[#This Row],[Line]],C$3)=\"\"),\"\",INDEX(Table_NCInfo[],Table_NCInspection[[#This Row],[Line]],C$3)),\"\")","v":""},{"$f":"IFERROR(IF(OR(Table_NCInspection[[#This Row],[Line]]=\"\",INDEX(Table_NCInfo[],Table_NCInspection[[#This Row],[Line]],D$3)=\"\"),\"\",INDEX(Table_NCInfo[],Table_NCInspection[[#This Row],[Line]],D$3)),\"\")","v":""},{"$f":"IF(OR(Table_NCInspection[[#This Row],[Line]]<=0,IFERROR(INDEX(Table_NCInfo[],$A36,E$3),\"\")=\"\"),\"\",IF(Table_NCInspection[[#This Row],[Zone Description]]=INDEX(Table_NCInfo[],Table_NCInspection[[#This Row],[Line]],$D$3),INDEX(Table_NCInfo[],Table_NCInspection[[#This Row],[Line]],E$3),INDEX(Table_IntLookups[Zone'#],MATCH(Table_NCInspection[[#This Row],[Zone Description]],Table_IntLookups[Dropdown],0))))","v":""},{"$f":"IF(OR(Table_NCInspection[[#This Row],[Line]]<=0,IFERROR(INDEX(Table_NCInfo[],Table_NCInspection[[#This Row],[Line]],F$3),\"\")=\"\"),\"\",IF(Table_NCInspection[[#This Row],[Zone Description]]=INDEX(Table_NCInfo[],Table_NCInspection[[#This Row],[Line]],$D$3),INDEX(Table_NCInfo[],Table_NCInspection[[#This Row],[Line]],F$3),IFERROR(VLOOKUP(Table_NCInspection[[#This Row],[Zone '#]],Table_IntLookups[],'Facility Information'!$AB$4,FALSE),0)*INDEX(Table_NCInfo[Baseline Wattage],MATCH(Table_NCInspection[[#This Row],[Line]],Table_NCInfo[Line],0)/VLOOKUP(INDEX(Table_NCInfo[Zone '#],MATCH(Table_NCInspection[[#This Row],[Line]],Table_NCInfo[Line],0)),Table_IntLookups[],'Facility Information'!$AB$4,FALSE),0)))","v":""},{"$f":"IFERROR(IF(OR(Table_NCInspection[[#This Row],[Line]]=\"\",INDEX(Table_NCInfo[],Table_NCInspection[[#This Row],[Line]],G$3)=\"\"),\"\",INDEX(Table_NCInfo[],Table_NCInspection[[#This Row],[Line]],G$3)),\"\")","v":""},null,{"$f":"IFERROR(IF(OR(Table_NCInspection[[#This Row],[Line]]=\"\",INDEX(Table_NCInfo[],Table_NCInspection[[#This Row],[Line]],I$3)=\"\"),\"\",INDEX(Table_NCInfo[],Table_NCInspection[[#This Row],[Line]],I$3)),\"\")","v":""},{"$f":"IFERROR(IF(OR(Table_NCInspection[[#This Row],[Line]]=\"\",INDEX(Table_NCInfo[],Table_NCInspection[[#This Row],[Line]],J$3)=\"\"),\"\",INDEX(Table_NCInfo[],Table_NCInspection[[#This Row],[Line]],J$3)),\"\")","v":""},{"$f":"IFERROR(IF(OR(Table_NCInspection[[#This Row],[Line]]=\"\",INDEX(Table_NCInfo[],Table_NCInspection[[#This Row],[Line]],K$3)=\"\"),\"\",INDEX(Table_NCInfo[],Table_NCInspection[[#This Row],[Line]],K$3)),\"\")","v":""},{"$f":"IFERROR(IF(OR(Table_NCInspection[[#This Row],[Line]]=\"\",INDEX(Table_NCInfo[],Table_NCInspection[[#This Row],[Line]],L$3)=\"\"),\"\",INDEX(Table_NCInfo[],Table_NCInspection[[#This Row],[Line]],L$3)),\"\")","v":""},{"$f":"IFERROR(IF(OR(Table_NCInspection[[#This Row],[Line]]=\"\",INDEX(Table_NCInfo[],Table_NCInspection[[#This Row],[Line]],M$3)=\"\"),\"\",INDEX(Table_NCInfo[],Table_NCInspection[[#This Row],[Line]],M$3)),\"\")","v":""},{"$f":"IFERROR(\nIFERROR(OFFSET(Table_TypWattage[[#Headers],[Technology]],MATCH($J36,Table_TypWattage[Technology],0)+MATCH($L36,INDIRECT(SUBSTITUTE(SUBSTITUTE($J36,\" \",\"_\"),\"-\",\"_\")),0)-1,MATCH($K36,'Measure Tables'!$Q$2:$V$2,0)+1),IF(Table_NCInspection[[#This Row],[Line]]<>\"\",IF(AND(Table_NCInspection[[#This Row],['# Lamps/ Fixture '[P']]]<>\"\",$K36>0,$L36>0),$K36*$L36,$L36),\"\")),\n\"\")","v":""},{"$f":"IFERROR(IF(OR(Table_NCInspection[[#This Row],[Line]]=\"\",INDEX(Table_NCInfo[],Table_NCInspection[[#This Row],[Line]],O$3)=\"\"),\"\",INDEX(Table_NCInfo[],Table_NCInspection[[#This Row],[Line]],O$3)),\"\")","v":""},{"$f":"IFERROR(IF(OR(Table_NCInspection[[#This Row],[Line]]=\"\",INDEX(Table_NCInfo[],Table_NCInspection[[#This Row],[Line]],P$3)=\"\"),\"\",INDEX(Table_NCInfo[],Table_NCInspection[[#This Row],[Line]],P$3)),\"\")","v":""},{"$f":"IFERROR(IF(Table_NCInspection[[#This Row],[Interior/ Exterior]]<>\"\",\n  CONCATENATE(\n  Table_NCInspection[[#This Row],[Interior/ Exterior]],\": \",\n  Table_NCInspection[[#This Row],[Fixture Technology '[P']]],\n  \" - \",Table_NCInspection[[#This Row],[Fixture Type '[P']]],\" [\",\n  IF(AND(Table_NCInspection[[#This Row],['# Lamps/ Fixture '[P']]]<>\"\",Table_NCInspection[[#This Row],['# Lamps/ Fixture '[P']]]>0),Table_NCInspection[[#This Row],['# Lamps/ Fixture '[P']]] & \"L - \" & Table_NCInspection[[#This Row],[Fixture/ Lamp Wattage '[P']]] & \"W\" & IF(Table_NCInspection[[#This Row],[Ballast/ Driver '[P']]]<>\"\",\" - \" & Table_NCInspection[[#This Row],[Ballast/ Driver '[P']]],\"\"),Table_NCInspection[[#This Row],[Fixture Wattage '[P']]] & \"W\"),\"]\",\n  IF(AND(Table_NCInspection[[#This Row],[Controls '[P']]]<>\"\"),\" - \" & Table_NCInspection[[#This Row],[Controls '[P']]],\"\")\n  ),\n\"\"),\"\")","v":""},{"$f":"IFERROR(IF(OR(Table_NCInspection[[#This Row],[Line]]=\"\",INDEX(Table_NCInfo[],Table_NCInspection[[#This Row],[Line]],R$3)=\"\"),\"\",INDEX(Table_NCInfo[],Table_NCInspection[[#This Row],[Line]],R$3)),\"\")","v":""},{"$f":"IFERROR(IF(OR(Table_NCInspection[[#This Row],[Line]]=\"\",INDEX(Table_NCInfo[],Table_NCInspection[[#This Row],[Line]],S$3)=\"\"),\"\",INDEX(Table_NCInfo[],Table_NCInspection[[#This Row],[Line]],S$3)),\"\")","v":""}]
[null,{"$f":"IFERROR(IF(OR(Table_NCInspection[[#This Row],[Line]]=\"\",INDEX(Table_NCInfo[],Table_NCInspection[[#This Row],[Line]],B$3)=\"\"),\"\",INDEX(Table_NCInfo[],Table_NCInspection[[#This Row],[Line]],B$3)),\"\")","v":""},{"$f":"IFERROR(IF(OR(Table_NCInspection[[#This Row],[Line]]=\"\",INDEX(Table_NCInfo[],Table_NCInspection[[#This Row],[Line]],C$3)=\"\"),\"\",INDEX(Table_NCInfo[],Table_NCInspection[[#This Row],[Line]],C$3)),\"\")","v":""},{"$f":"IFERROR(IF(OR(Table_NCInspection[[#This Row],[Line]]=\"\",INDEX(Table_NCInfo[],Table_NCInspection[[#This Row],[Line]],D$3)=\"\"),\"\",INDEX(Table_NCInfo[],Table_NCInspection[[#This Row],[Line]],D$3)),\"\")","v":""},{"$f":"IF(OR(Table_NCInspection[[#This Row],[Line]]<=0,IFERROR(INDEX(Table_NCInfo[],$A37,E$3),\"\")=\"\"),\"\",IF(Table_NCInspection[[#This Row],[Zone Description]]=INDEX(Table_NCInfo[],Table_NCInspection[[#This Row],[Line]],$D$3),INDEX(Table_NCInfo[],Table_NCInspection[[#This Row],[Line]],E$3),INDEX(Table_IntLookups[Zone'#],MATCH(Table_NCInspection[[#This Row],[Zone Description]],Table_IntLookups[Dropdown],0))))","v":""},{"$f":"IF(OR(Table_NCInspection[[#This Row],[Line]]<=0,IFERROR(INDEX(Table_NCInfo[],Table_NCInspection[[#This Row],[Line]],F$3),\"\")=\"\"),\"\",IF(Table_NCInspection[[#This Row],[Zone Description]]=INDEX(Table_NCInfo[],Table_NCInspection[[#This Row],[Line]],$D$3),INDEX(Table_NCInfo[],Table_NCInspection[[#This Row],[Line]],F$3),IFERROR(VLOOKUP(Table_NCInspection[[#This Row],[Zone '#]],Table_IntLookups[],'Facility Information'!$AB$4,FALSE),0)*INDEX(Table_NCInfo[Baseline Wattage],MATCH(Table_NCInspection[[#This Row],[Line]],Table_NCInfo[Line],0)/VLOOKUP(INDEX(Table_NCInfo[Zone '#],MATCH(Table_NCInspection[[#This Row],[Line]],Table_NCInfo[Line],0)),Table_IntLookups[],'Facility Information'!$AB$4,FALSE),0)))","v":""},{"$f":"IFERROR(IF(OR(Table_NCInspection[[#This Row],[Line]]=\"\",INDEX(Table_NCInfo[],Table_NCInspection[[#This Row],[Line]],G$3)=\"\"),\"\",INDEX(Table_NCInfo[],Table_NCInspection[[#This Row],[Line]],G$3)),\"\")","v":""},null,{"$f":"IFERROR(IF(OR(Table_NCInspection[[#This Row],[Line]]=\"\",INDEX(Table_NCInfo[],Table_NCInspection[[#This Row],[Line]],I$3)=\"\"),\"\",INDEX(Table_NCInfo[],Table_NCInspection[[#This Row],[Line]],I$3)),\"\")","v":""},{"$f":"IFERROR(IF(OR(Table_NCInspection[[#This Row],[Line]]=\"\",INDEX(Table_NCInfo[],Table_NCInspection[[#This Row],[Line]],J$3)=\"\"),\"\",INDEX(Table_NCInfo[],Table_NCInspection[[#This Row],[Line]],J$3)),\"\")","v":""},{"$f":"IFERROR(IF(OR(Table_NCInspection[[#This Row],[Line]]=\"\",INDEX(Table_NCInfo[],Table_NCInspection[[#This Row],[Line]],K$3)=\"\"),\"\",INDEX(Table_NCInfo[],Table_NCInspection[[#This Row],[Line]],K$3)),\"\")","v":""},{"$f":"IFERROR(IF(OR(Table_NCInspection[[#This Row],[Line]]=\"\",INDEX(Table_NCInfo[],Table_NCInspection[[#This Row],[Line]],L$3)=\"\"),\"\",INDEX(Table_NCInfo[],Table_NCInspection[[#This Row],[Line]],L$3)),\"\")","v":""},{"$f":"IFERROR(IF(OR(Table_NCInspection[[#This Row],[Line]]=\"\",INDEX(Table_NCInfo[],Table_NCInspection[[#This Row],[Line]],M$3)=\"\"),\"\",INDEX(Table_NCInfo[],Table_NCInspection[[#This Row],[Line]],M$3)),\"\")","v":""},{"$f":"IFERROR(\nIFERROR(OFFSET(Table_TypWattage[[#Headers],[Technology]],MATCH($J37,Table_TypWattage[Technology],0)+MATCH($L37,INDIRECT(SUBSTITUTE(SUBSTITUTE($J37,\" \",\"_\"),\"-\",\"_\")),0)-1,MATCH($K37,'Measure Tables'!$Q$2:$V$2,0)+1),IF(Table_NCInspection[[#This Row],[Line]]<>\"\",IF(AND(Table_NCInspection[[#This Row],['# Lamps/ Fixture '[P']]]<>\"\",$K37>0,$L37>0),$K37*$L37,$L37),\"\")),\n\"\")","v":""},{"$f":"IFERROR(IF(OR(Table_NCInspection[[#This Row],[Line]]=\"\",INDEX(Table_NCInfo[],Table_NCInspection[[#This Row],[Line]],O$3)=\"\"),\"\",INDEX(Table_NCInfo[],Table_NCInspection[[#This Row],[Line]],O$3)),\"\")","v":""},{"$f":"IFERROR(IF(OR(Table_NCInspection[[#This Row],[Line]]=\"\",INDEX(Table_NCInfo[],Table_NCInspection[[#This Row],[Line]],P$3)=\"\"),\"\",INDEX(Table_NCInfo[],Table_NCInspection[[#This Row],[Line]],P$3)),\"\")","v":""},{"$f":"IFERROR(IF(Table_NCInspection[[#This Row],[Interior/ Exterior]]<>\"\",\n  CONCATENATE(\n  Table_NCInspection[[#This Row],[Interior/ Exterior]],\": \",\n  Table_NCInspection[[#This Row],[Fixture Technology '[P']]],\n  \" - \",Table_NCInspection[[#This Row],[Fixture Type '[P']]],\" [\",\n  IF(AND(Table_NCInspection[[#This Row],['# Lamps/ Fixture '[P']]]<>\"\",Table_NCInspection[[#This Row],['# Lamps/ Fixture '[P']]]>0),Table_NCInspection[[#This Row],['# Lamps/ Fixture '[P']]] & \"L - \" & Table_NCInspection[[#This Row],[Fixture/ Lamp Wattage '[P']]] & \"W\" & IF(Table_NCInspection[[#This Row],[Ballast/ Driver '[P']]]<>\"\",\" - \" & Table_NCInspection[[#This Row],[Ballast/ Driver '[P']]],\"\"),Table_NCInspection[[#This Row],[Fixture Wattage '[P']]] & \"W\"),\"]\",\n  IF(AND(Table_NCInspection[[#This Row],[Controls '[P']]]<>\"\"),\" - \" & Table_NCInspection[[#This Row],[Controls '[P']]],\"\")\n  ),\n\"\"),\"\")","v":""},{"$f":"IFERROR(IF(OR(Table_NCInspection[[#This Row],[Line]]=\"\",INDEX(Table_NCInfo[],Table_NCInspection[[#This Row],[Line]],R$3)=\"\"),\"\",INDEX(Table_NCInfo[],Table_NCInspection[[#This Row],[Line]],R$3)),\"\")","v":""},{"$f":"IFERROR(IF(OR(Table_NCInspection[[#This Row],[Line]]=\"\",INDEX(Table_NCInfo[],Table_NCInspection[[#This Row],[Line]],S$3)=\"\"),\"\",INDEX(Table_NCInfo[],Table_NCInspection[[#This Row],[Line]],S$3)),\"\")","v":""}]
[null,{"$f":"IFERROR(IF(OR(Table_NCInspection[[#This Row],[Line]]=\"\",INDEX(Table_NCInfo[],Table_NCInspection[[#This Row],[Line]],B$3)=\"\"),\"\",INDEX(Table_NCInfo[],Table_NCInspection[[#This Row],[Line]],B$3)),\"\")","v":""},{"$f":"IFERROR(IF(OR(Table_NCInspection[[#This Row],[Line]]=\"\",INDEX(Table_NCInfo[],Table_NCInspection[[#This Row],[Line]],C$3)=\"\"),\"\",INDEX(Table_NCInfo[],Table_NCInspection[[#This Row],[Line]],C$3)),\"\")","v":""},{"$f":"IFERROR(IF(OR(Table_NCInspection[[#This Row],[Line]]=\"\",INDEX(Table_NCInfo[],Table_NCInspection[[#This Row],[Line]],D$3)=\"\"),\"\",INDEX(Table_NCInfo[],Table_NCInspection[[#This Row],[Line]],D$3)),\"\")","v":""},{"$f":"IF(OR(Table_NCInspection[[#This Row],[Line]]<=0,IFERROR(INDEX(Table_NCInfo[],$A38,E$3),\"\")=\"\"),\"\",IF(Table_NCInspection[[#This Row],[Zone Description]]=INDEX(Table_NCInfo[],Table_NCInspection[[#This Row],[Line]],$D$3),INDEX(Table_NCInfo[],Table_NCInspection[[#This Row],[Line]],E$3),INDEX(Table_IntLookups[Zone'#],MATCH(Table_NCInspection[[#This Row],[Zone Description]],Table_IntLookups[Dropdown],0))))","v":""},{"$f":"IF(OR(Table_NCInspection[[#This Row],[Line]]<=0,IFERROR(INDEX(Table_NCInfo[],Table_NCInspection[[#This Row],[Line]],F$3),\"\")=\"\"),\"\",IF(Table_NCInspection[[#This Row],[Zone Description]]=INDEX(Table_NCInfo[],Table_NCInspection[[#This Row],[Line]],$D$3),INDEX(Table_NCInfo[],Table_NCInspection[[#This Row],[Line]],F$3),IFERROR(VLOOKUP(Table_NCInspection[[#This Row],[Zone '#]],Table_IntLookups[],'Facility Information'!$AB$4,FALSE),0)*INDEX(Table_NCInfo[Baseline Wattage],MATCH(Table_NCInspection[[#This Row],[Line]],Table_NCInfo[Line],0)/VLOOKUP(INDEX(Table_NCInfo[Zone '#],MATCH(Table_NCInspection[[#This Row],[Line]],Table_NCInfo[Line],0)),Table_IntLookups[],'Facility Information'!$AB$4,FALSE),0)))","v":""},{"$f":"IFERROR(IF(OR(Table_NCInspection[[#This Row],[Line]]=\"\",INDEX(Table_NCInfo[],Table_NCInspection[[#This Row],[Line]],G$3)=\"\"),\"\",INDEX(Table_NCInfo[],Table_NCInspection[[#This Row],[Line]],G$3)),\"\")","v":""},null,{"$f":"IFERROR(IF(OR(Table_NCInspection[[#This Row],[Line]]=\"\",INDEX(Table_NCInfo[],Table_NCInspection[[#This Row],[Line]],I$3)=\"\"),\"\",INDEX(Table_NCInfo[],Table_NCInspection[[#This Row],[Line]],I$3)),\"\")","v":""},{"$f":"IFERROR(IF(OR(Table_NCInspection[[#This Row],[Line]]=\"\",INDEX(Table_NCInfo[],Table_NCInspection[[#This Row],[Line]],J$3)=\"\"),\"\",INDEX(Table_NCInfo[],Table_NCInspection[[#This Row],[Line]],J$3)),\"\")","v":""},{"$f":"IFERROR(IF(OR(Table_NCInspection[[#This Row],[Line]]=\"\",INDEX(Table_NCInfo[],Table_NCInspection[[#This Row],[Line]],K$3)=\"\"),\"\",INDEX(Table_NCInfo[],Table_NCInspection[[#This Row],[Line]],K$3)),\"\")","v":""},{"$f":"IFERROR(IF(OR(Table_NCInspection[[#This Row],[Line]]=\"\",INDEX(Table_NCInfo[],Table_NCInspection[[#This Row],[Line]],L$3)=\"\"),\"\",INDEX(Table_NCInfo[],Table_NCInspection[[#This Row],[Line]],L$3)),\"\")","v":""},{"$f":"IFERROR(IF(OR(Table_NCInspection[[#This Row],[Line]]=\"\",INDEX(Table_NCInfo[],Table_NCInspection[[#This Row],[Line]],M$3)=\"\"),\"\",INDEX(Table_NCInfo[],Table_NCInspection[[#This Row],[Line]],M$3)),\"\")","v":""},{"$f":"IFERROR(\nIFERROR(OFFSET(Table_TypWattage[[#Headers],[Technology]],MATCH($J38,Table_TypWattage[Technology],0)+MATCH($L38,INDIRECT(SUBSTITUTE(SUBSTITUTE($J38,\" \",\"_\"),\"-\",\"_\")),0)-1,MATCH($K38,'Measure Tables'!$Q$2:$V$2,0)+1),IF(Table_NCInspection[[#This Row],[Line]]<>\"\",IF(AND(Table_NCInspection[[#This Row],['# Lamps/ Fixture '[P']]]<>\"\",$K38>0,$L38>0),$K38*$L38,$L38),\"\")),\n\"\")","v":""},{"$f":"IFERROR(IF(OR(Table_NCInspection[[#This Row],[Line]]=\"\",INDEX(Table_NCInfo[],Table_NCInspection[[#This Row],[Line]],O$3)=\"\"),\"\",INDEX(Table_NCInfo[],Table_NCInspection[[#This Row],[Line]],O$3)),\"\")","v":""},{"$f":"IFERROR(IF(OR(Table_NCInspection[[#This Row],[Line]]=\"\",INDEX(Table_NCInfo[],Table_NCInspection[[#This Row],[Line]],P$3)=\"\"),\"\",INDEX(Table_NCInfo[],Table_NCInspection[[#This Row],[Line]],P$3)),\"\")","v":""},{"$f":"IFERROR(IF(Table_NCInspection[[#This Row],[Interior/ Exterior]]<>\"\",\n  CONCATENATE(\n  Table_NCInspection[[#This Row],[Interior/ Exterior]],\": \",\n  Table_NCInspection[[#This Row],[Fixture Technology '[P']]],\n  \" - \",Table_NCInspection[[#This Row],[Fixture Type '[P']]],\" [\",\n  IF(AND(Table_NCInspection[[#This Row],['# Lamps/ Fixture '[P']]]<>\"\",Table_NCInspection[[#This Row],['# Lamps/ Fixture '[P']]]>0),Table_NCInspection[[#This Row],['# Lamps/ Fixture '[P']]] & \"L - \" & Table_NCInspection[[#This Row],[Fixture/ Lamp Wattage '[P']]] & \"W\" & IF(Table_NCInspection[[#This Row],[Ballast/ Driver '[P']]]<>\"\",\" - \" & Table_NCInspection[[#This Row],[Ballast/ Driver '[P']]],\"\"),Table_NCInspection[[#This Row],[Fixture Wattage '[P']]] & \"W\"),\"]\",\n  IF(AND(Table_NCInspection[[#This Row],[Controls '[P']]]<>\"\"),\" - \" & Table_NCInspection[[#This Row],[Controls '[P']]],\"\")\n  ),\n\"\"),\"\")","v":""},{"$f":"IFERROR(IF(OR(Table_NCInspection[[#This Row],[Line]]=\"\",INDEX(Table_NCInfo[],Table_NCInspection[[#This Row],[Line]],R$3)=\"\"),\"\",INDEX(Table_NCInfo[],Table_NCInspection[[#This Row],[Line]],R$3)),\"\")","v":""},{"$f":"IFERROR(IF(OR(Table_NCInspection[[#This Row],[Line]]=\"\",INDEX(Table_NCInfo[],Table_NCInspection[[#This Row],[Line]],S$3)=\"\"),\"\",INDEX(Table_NCInfo[],Table_NCInspection[[#This Row],[Line]],S$3)),\"\")","v":""}]
[null,{"$f":"IFERROR(IF(OR(Table_NCInspection[[#This Row],[Line]]=\"\",INDEX(Table_NCInfo[],Table_NCInspection[[#This Row],[Line]],B$3)=\"\"),\"\",INDEX(Table_NCInfo[],Table_NCInspection[[#This Row],[Line]],B$3)),\"\")","v":""},{"$f":"IFERROR(IF(OR(Table_NCInspection[[#This Row],[Line]]=\"\",INDEX(Table_NCInfo[],Table_NCInspection[[#This Row],[Line]],C$3)=\"\"),\"\",INDEX(Table_NCInfo[],Table_NCInspection[[#This Row],[Line]],C$3)),\"\")","v":""},{"$f":"IFERROR(IF(OR(Table_NCInspection[[#This Row],[Line]]=\"\",INDEX(Table_NCInfo[],Table_NCInspection[[#This Row],[Line]],D$3)=\"\"),\"\",INDEX(Table_NCInfo[],Table_NCInspection[[#This Row],[Line]],D$3)),\"\")","v":""},{"$f":"IF(OR(Table_NCInspection[[#This Row],[Line]]<=0,IFERROR(INDEX(Table_NCInfo[],$A39,E$3),\"\")=\"\"),\"\",IF(Table_NCInspection[[#This Row],[Zone Description]]=INDEX(Table_NCInfo[],Table_NCInspection[[#This Row],[Line]],$D$3),INDEX(Table_NCInfo[],Table_NCInspection[[#This Row],[Line]],E$3),INDEX(Table_IntLookups[Zone'#],MATCH(Table_NCInspection[[#This Row],[Zone Description]],Table_IntLookups[Dropdown],0))))","v":""},{"$f":"IF(OR(Table_NCInspection[[#This Row],[Line]]<=0,IFERROR(INDEX(Table_NCInfo[],Table_NCInspection[[#This Row],[Line]],F$3),\"\")=\"\"),\"\",IF(Table_NCInspection[[#This Row],[Zone Description]]=INDEX(Table_NCInfo[],Table_NCInspection[[#This Row],[Line]],$D$3),INDEX(Table_NCInfo[],Table_NCInspection[[#This Row],[Line]],F$3),IFERROR(VLOOKUP(Table_NCInspection[[#This Row],[Zone '#]],Table_IntLookups[],'Facility Information'!$AB$4,FALSE),0)*INDEX(Table_NCInfo[Baseline Wattage],MATCH(Table_NCInspection[[#This Row],[Line]],Table_NCInfo[Line],0)/VLOOKUP(INDEX(Table_NCInfo[Zone '#],MATCH(Table_NCInspection[[#This Row],[Line]],Table_NCInfo[Line],0)),Table_IntLookups[],'Facility Information'!$AB$4,FALSE),0)))","v":""},{"$f":"IFERROR(IF(OR(Table_NCInspection[[#This Row],[Line]]=\"\",INDEX(Table_NCInfo[],Table_NCInspection[[#This Row],[Line]],G$3)=\"\"),\"\",INDEX(Table_NCInfo[],Table_NCInspection[[#This Row],[Line]],G$3)),\"\")","v":""},null,{"$f":"IFERROR(IF(OR(Table_NCInspection[[#This Row],[Line]]=\"\",INDEX(Table_NCInfo[],Table_NCInspection[[#This Row],[Line]],I$3)=\"\"),\"\",INDEX(Table_NCInfo[],Table_NCInspection[[#This Row],[Line]],I$3)),\"\")","v":""},{"$f":"IFERROR(IF(OR(Table_NCInspection[[#This Row],[Line]]=\"\",INDEX(Table_NCInfo[],Table_NCInspection[[#This Row],[Line]],J$3)=\"\"),\"\",INDEX(Table_NCInfo[],Table_NCInspection[[#This Row],[Line]],J$3)),\"\")","v":""},{"$f":"IFERROR(IF(OR(Table_NCInspection[[#This Row],[Line]]=\"\",INDEX(Table_NCInfo[],Table_NCInspection[[#This Row],[Line]],K$3)=\"\"),\"\",INDEX(Table_NCInfo[],Table_NCInspection[[#This Row],[Line]],K$3)),\"\")","v":""},{"$f":"IFERROR(IF(OR(Table_NCInspection[[#This Row],[Line]]=\"\",INDEX(Table_NCInfo[],Table_NCInspection[[#This Row],[Line]],L$3)=\"\"),\"\",INDEX(Table_NCInfo[],Table_NCInspection[[#This Row],[Line]],L$3)),\"\")","v":""},{"$f":"IFERROR(IF(OR(Table_NCInspection[[#This Row],[Line]]=\"\",INDEX(Table_NCInfo[],Table_NCInspection[[#This Row],[Line]],M$3)=\"\"),\"\",INDEX(Table_NCInfo[],Table_NCInspection[[#This Row],[Line]],M$3)),\"\")","v":""},{"$f":"IFERROR(\nIFERROR(OFFSET(Table_TypWattage[[#Headers],[Technology]],MATCH($J39,Table_TypWattage[Technology],0)+MATCH($L39,INDIRECT(SUBSTITUTE(SUBSTITUTE($J39,\" \",\"_\"),\"-\",\"_\")),0)-1,MATCH($K39,'Measure Tables'!$Q$2:$V$2,0)+1),IF(Table_NCInspection[[#This Row],[Line]]<>\"\",IF(AND(Table_NCInspection[[#This Row],['# Lamps/ Fixture '[P']]]<>\"\",$K39>0,$L39>0),$K39*$L39,$L39),\"\")),\n\"\")","v":""},{"$f":"IFERROR(IF(OR(Table_NCInspection[[#This Row],[Line]]=\"\",INDEX(Table_NCInfo[],Table_NCInspection[[#This Row],[Line]],O$3)=\"\"),\"\",INDEX(Table_NCInfo[],Table_NCInspection[[#This Row],[Line]],O$3)),\"\")","v":""},{"$f":"IFERROR(IF(OR(Table_NCInspection[[#This Row],[Line]]=\"\",INDEX(Table_NCInfo[],Table_NCInspection[[#This Row],[Line]],P$3)=\"\"),\"\",INDEX(Table_NCInfo[],Table_NCInspection[[#This Row],[Line]],P$3)),\"\")","v":""},{"$f":"IFERROR(IF(Table_NCInspection[[#This Row],[Interior/ Exterior]]<>\"\",\n  CONCATENATE(\n  Table_NCInspection[[#This Row],[Interior/ Exterior]],\": \",\n  Table_NCInspection[[#This Row],[Fixture Technology '[P']]],\n  \" - \",Table_NCInspection[[#This Row],[Fixture Type '[P']]],\" [\",\n  IF(AND(Table_NCInspection[[#This Row],['# Lamps/ Fixture '[P']]]<>\"\",Table_NCInspection[[#This Row],['# Lamps/ Fixture '[P']]]>0),Table_NCInspection[[#This Row],['# Lamps/ Fixture '[P']]] & \"L - \" & Table_NCInspection[[#This Row],[Fixture/ Lamp Wattage '[P']]] & \"W\" & IF(Table_NCInspection[[#This Row],[Ballast/ Driver '[P']]]<>\"\",\" - \" & Table_NCInspection[[#This Row],[Ballast/ Driver '[P']]],\"\"),Table_NCInspection[[#This Row],[Fixture Wattage '[P']]] & \"W\"),\"]\",\n  IF(AND(Table_NCInspection[[#This Row],[Controls '[P']]]<>\"\"),\" - \" & Table_NCInspection[[#This Row],[Controls '[P']]],\"\")\n  ),\n\"\"),\"\")","v":""},{"$f":"IFERROR(IF(OR(Table_NCInspection[[#This Row],[Line]]=\"\",INDEX(Table_NCInfo[],Table_NCInspection[[#This Row],[Line]],R$3)=\"\"),\"\",INDEX(Table_NCInfo[],Table_NCInspection[[#This Row],[Line]],R$3)),\"\")","v":""},{"$f":"IFERROR(IF(OR(Table_NCInspection[[#This Row],[Line]]=\"\",INDEX(Table_NCInfo[],Table_NCInspection[[#This Row],[Line]],S$3)=\"\"),\"\",INDEX(Table_NCInfo[],Table_NCInspection[[#This Row],[Line]],S$3)),\"\")","v":""}]
[null,{"$f":"IFERROR(IF(OR(Table_NCInspection[[#This Row],[Line]]=\"\",INDEX(Table_NCInfo[],Table_NCInspection[[#This Row],[Line]],B$3)=\"\"),\"\",INDEX(Table_NCInfo[],Table_NCInspection[[#This Row],[Line]],B$3)),\"\")","v":""},{"$f":"IFERROR(IF(OR(Table_NCInspection[[#This Row],[Line]]=\"\",INDEX(Table_NCInfo[],Table_NCInspection[[#This Row],[Line]],C$3)=\"\"),\"\",INDEX(Table_NCInfo[],Table_NCInspection[[#This Row],[Line]],C$3)),\"\")","v":""},{"$f":"IFERROR(IF(OR(Table_NCInspection[[#This Row],[Line]]=\"\",INDEX(Table_NCInfo[],Table_NCInspection[[#This Row],[Line]],D$3)=\"\"),\"\",INDEX(Table_NCInfo[],Table_NCInspection[[#This Row],[Line]],D$3)),\"\")","v":""},{"$f":"IF(OR(Table_NCInspection[[#This Row],[Line]]<=0,IFERROR(INDEX(Table_NCInfo[],$A40,E$3),\"\")=\"\"),\"\",IF(Table_NCInspection[[#This Row],[Zone Description]]=INDEX(Table_NCInfo[],Table_NCInspection[[#This Row],[Line]],$D$3),INDEX(Table_NCInfo[],Table_NCInspection[[#This Row],[Line]],E$3),INDEX(Table_IntLookups[Zone'#],MATCH(Table_NCInspection[[#This Row],[Zone Description]],Table_IntLookups[Dropdown],0))))","v":""},{"$f":"IF(OR(Table_NCInspection[[#This Row],[Line]]<=0,IFERROR(INDEX(Table_NCInfo[],Table_NCInspection[[#This Row],[Line]],F$3),\"\")=\"\"),\"\",IF(Table_NCInspection[[#This Row],[Zone Description]]=INDEX(Table_NCInfo[],Table_NCInspection[[#This Row],[Line]],$D$3),INDEX(Table_NCInfo[],Table_NCInspection[[#This Row],[Line]],F$3),IFERROR(VLOOKUP(Table_NCInspection[[#This Row],[Zone '#]],Table_IntLookups[],'Facility Information'!$AB$4,FALSE),0)*INDEX(Table_NCInfo[Baseline Wattage],MATCH(Table_NCInspection[[#This Row],[Line]],Table_NCInfo[Line],0)/VLOOKUP(INDEX(Table_NCInfo[Zone '#],MATCH(Table_NCInspection[[#This Row],[Line]],Table_NCInfo[Line],0)),Table_IntLookups[],'Facility Information'!$AB$4,FALSE),0)))","v":""},{"$f":"IFERROR(IF(OR(Table_NCInspection[[#This Row],[Line]]=\"\",INDEX(Table_NCInfo[],Table_NCInspection[[#This Row],[Line]],G$3)=\"\"),\"\",INDEX(Table_NCInfo[],Table_NCInspection[[#This Row],[Line]],G$3)),\"\")","v":""},null,{"$f":"IFERROR(IF(OR(Table_NCInspection[[#This Row],[Line]]=\"\",INDEX(Table_NCInfo[],Table_NCInspection[[#This Row],[Line]],I$3)=\"\"),\"\",INDEX(Table_NCInfo[],Table_NCInspection[[#This Row],[Line]],I$3)),\"\")","v":""},{"$f":"IFERROR(IF(OR(Table_NCInspection[[#This Row],[Line]]=\"\",INDEX(Table_NCInfo[],Table_NCInspection[[#This Row],[Line]],J$3)=\"\"),\"\",INDEX(Table_NCInfo[],Table_NCInspection[[#This Row],[Line]],J$3)),\"\")","v":""},{"$f":"IFERROR(IF(OR(Table_NCInspection[[#This Row],[Line]]=\"\",INDEX(Table_NCInfo[],Table_NCInspection[[#This Row],[Line]],K$3)=\"\"),\"\",INDEX(Table_NCInfo[],Table_NCInspection[[#This Row],[Line]],K$3)),\"\")","v":""},{"$f":"IFERROR(IF(OR(Table_NCInspection[[#This Row],[Line]]=\"\",INDEX(Table_NCInfo[],Table_NCInspection[[#This Row],[Line]],L$3)=\"\"),\"\",INDEX(Table_NCInfo[],Table_NCInspection[[#This Row],[Line]],L$3)),\"\")","v":""},{"$f":"IFERROR(IF(OR(Table_NCInspection[[#This Row],[Line]]=\"\",INDEX(Table_NCInfo[],Table_NCInspection[[#This Row],[Line]],M$3)=\"\"),\"\",INDEX(Table_NCInfo[],Table_NCInspection[[#This Row],[Line]],M$3)),\"\")","v":""},{"$f":"IFERROR(\nIFERROR(OFFSET(Table_TypWattage[[#Headers],[Technology]],MATCH($J40,Table_TypWattage[Technology],0)+MATCH($L40,INDIRECT(SUBSTITUTE(SUBSTITUTE($J40,\" \",\"_\"),\"-\",\"_\")),0)-1,MATCH($K40,'Measure Tables'!$Q$2:$V$2,0)+1),IF(Table_NCInspection[[#This Row],[Line]]<>\"\",IF(AND(Table_NCInspection[[#This Row],['# Lamps/ Fixture '[P']]]<>\"\",$K40>0,$L40>0),$K40*$L40,$L40),\"\")),\n\"\")","v":""},{"$f":"IFERROR(IF(OR(Table_NCInspection[[#This Row],[Line]]=\"\",INDEX(Table_NCInfo[],Table_NCInspection[[#This Row],[Line]],O$3)=\"\"),\"\",INDEX(Table_NCInfo[],Table_NCInspection[[#This Row],[Line]],O$3)),\"\")","v":""},{"$f":"IFERROR(IF(OR(Table_NCInspection[[#This Row],[Line]]=\"\",INDEX(Table_NCInfo[],Table_NCInspection[[#This Row],[Line]],P$3)=\"\"),\"\",INDEX(Table_NCInfo[],Table_NCInspection[[#This Row],[Line]],P$3)),\"\")","v":""},{"$f":"IFERROR(IF(Table_NCInspection[[#This Row],[Interior/ Exterior]]<>\"\",\n  CONCATENATE(\n  Table_NCInspection[[#This Row],[Interior/ Exterior]],\": \",\n  Table_NCInspection[[#This Row],[Fixture Technology '[P']]],\n  \" - \",Table_NCInspection[[#This Row],[Fixture Type '[P']]],\" [\",\n  IF(AND(Table_NCInspection[[#This Row],['# Lamps/ Fixture '[P']]]<>\"\",Table_NCInspection[[#This Row],['# Lamps/ Fixture '[P']]]>0),Table_NCInspection[[#This Row],['# Lamps/ Fixture '[P']]] & \"L - \" & Table_NCInspection[[#This Row],[Fixture/ Lamp Wattage '[P']]] & \"W\" & IF(Table_NCInspection[[#This Row],[Ballast/ Driver '[P']]]<>\"\",\" - \" & Table_NCInspection[[#This Row],[Ballast/ Driver '[P']]],\"\"),Table_NCInspection[[#This Row],[Fixture Wattage '[P']]] & \"W\"),\"]\",\n  IF(AND(Table_NCInspection[[#This Row],[Controls '[P']]]<>\"\"),\" - \" & Table_NCInspection[[#This Row],[Controls '[P']]],\"\")\n  ),\n\"\"),\"\")","v":""},{"$f":"IFERROR(IF(OR(Table_NCInspection[[#This Row],[Line]]=\"\",INDEX(Table_NCInfo[],Table_NCInspection[[#This Row],[Line]],R$3)=\"\"),\"\",INDEX(Table_NCInfo[],Table_NCInspection[[#This Row],[Line]],R$3)),\"\")","v":""},{"$f":"IFERROR(IF(OR(Table_NCInspection[[#This Row],[Line]]=\"\",INDEX(Table_NCInfo[],Table_NCInspection[[#This Row],[Line]],S$3)=\"\"),\"\",INDEX(Table_NCInfo[],Table_NCInspection[[#This Row],[Line]],S$3)),\"\")","v":""}]
[null,{"$f":"IFERROR(IF(OR(Table_NCInspection[[#This Row],[Line]]=\"\",INDEX(Table_NCInfo[],Table_NCInspection[[#This Row],[Line]],B$3)=\"\"),\"\",INDEX(Table_NCInfo[],Table_NCInspection[[#This Row],[Line]],B$3)),\"\")","v":""},{"$f":"IFERROR(IF(OR(Table_NCInspection[[#This Row],[Line]]=\"\",INDEX(Table_NCInfo[],Table_NCInspection[[#This Row],[Line]],C$3)=\"\"),\"\",INDEX(Table_NCInfo[],Table_NCInspection[[#This Row],[Line]],C$3)),\"\")","v":""},{"$f":"IFERROR(IF(OR(Table_NCInspection[[#This Row],[Line]]=\"\",INDEX(Table_NCInfo[],Table_NCInspection[[#This Row],[Line]],D$3)=\"\"),\"\",INDEX(Table_NCInfo[],Table_NCInspection[[#This Row],[Line]],D$3)),\"\")","v":""},{"$f":"IF(OR(Table_NCInspection[[#This Row],[Line]]<=0,IFERROR(INDEX(Table_NCInfo[],$A41,E$3),\"\")=\"\"),\"\",IF(Table_NCInspection[[#This Row],[Zone Description]]=INDEX(Table_NCInfo[],Table_NCInspection[[#This Row],[Line]],$D$3),INDEX(Table_NCInfo[],Table_NCInspection[[#This Row],[Line]],E$3),INDEX(Table_IntLookups[Zone'#],MATCH(Table_NCInspection[[#This Row],[Zone Description]],Table_IntLookups[Dropdown],0))))","v":""},{"$f":"IF(OR(Table_NCInspection[[#This Row],[Line]]<=0,IFERROR(INDEX(Table_NCInfo[],Table_NCInspection[[#This Row],[Line]],F$3),\"\")=\"\"),\"\",IF(Table_NCInspection[[#This Row],[Zone Description]]=INDEX(Table_NCInfo[],Table_NCInspection[[#This Row],[Line]],$D$3),INDEX(Table_NCInfo[],Table_NCInspection[[#This Row],[Line]],F$3),IFERROR(VLOOKUP(Table_NCInspection[[#This Row],[Zone '#]],Table_IntLookups[],'Facility Information'!$AB$4,FALSE),0)*INDEX(Table_NCInfo[Baseline Wattage],MATCH(Table_NCInspection[[#This Row],[Line]],Table_NCInfo[Line],0)/VLOOKUP(INDEX(Table_NCInfo[Zone '#],MATCH(Table_NCInspection[[#This Row],[Line]],Table_NCInfo[Line],0)),Table_IntLookups[],'Facility Information'!$AB$4,FALSE),0)))","v":""},{"$f":"IFERROR(IF(OR(Table_NCInspection[[#This Row],[Line]]=\"\",INDEX(Table_NCInfo[],Table_NCInspection[[#This Row],[Line]],G$3)=\"\"),\"\",INDEX(Table_NCInfo[],Table_NCInspection[[#This Row],[Line]],G$3)),\"\")","v":""},null,{"$f":"IFERROR(IF(OR(Table_NCInspection[[#This Row],[Line]]=\"\",INDEX(Table_NCInfo[],Table_NCInspection[[#This Row],[Line]],I$3)=\"\"),\"\",INDEX(Table_NCInfo[],Table_NCInspection[[#This Row],[Line]],I$3)),\"\")","v":""},{"$f":"IFERROR(IF(OR(Table_NCInspection[[#This Row],[Line]]=\"\",INDEX(Table_NCInfo[],Table_NCInspection[[#This Row],[Line]],J$3)=\"\"),\"\",INDEX(Table_NCInfo[],Table_NCInspection[[#This Row],[Line]],J$3)),\"\")","v":""},{"$f":"IFERROR(IF(OR(Table_NCInspection[[#This Row],[Line]]=\"\",INDEX(Table_NCInfo[],Table_NCInspection[[#This Row],[Line]],K$3)=\"\"),\"\",INDEX(Table_NCInfo[],Table_NCInspection[[#This Row],[Line]],K$3)),\"\")","v":""},{"$f":"IFERROR(IF(OR(Table_NCInspection[[#This Row],[Line]]=\"\",INDEX(Table_NCInfo[],Table_NCInspection[[#This Row],[Line]],L$3)=\"\"),\"\",INDEX(Table_NCInfo[],Table_NCInspection[[#This Row],[Line]],L$3)),\"\")","v":""},{"$f":"IFERROR(IF(OR(Table_NCInspection[[#This Row],[Line]]=\"\",INDEX(Table_NCInfo[],Table_NCInspection[[#This Row],[Line]],M$3)=\"\"),\"\",INDEX(Table_NCInfo[],Table_NCInspection[[#This Row],[Line]],M$3)),\"\")","v":""},{"$f":"IFERROR(\nIFERROR(OFFSET(Table_TypWattage[[#Headers],[Technology]],MATCH($J41,Table_TypWattage[Technology],0)+MATCH($L41,INDIRECT(SUBSTITUTE(SUBSTITUTE($J41,\" \",\"_\"),\"-\",\"_\")),0)-1,MATCH($K41,'Measure Tables'!$Q$2:$V$2,0)+1),IF(Table_NCInspection[[#This Row],[Line]]<>\"\",IF(AND(Table_NCInspection[[#This Row],['# Lamps/ Fixture '[P']]]<>\"\",$K41>0,$L41>0),$K41*$L41,$L41),\"\")),\n\"\")","v":""},{"$f":"IFERROR(IF(OR(Table_NCInspection[[#This Row],[Line]]=\"\",INDEX(Table_NCInfo[],Table_NCInspection[[#This Row],[Line]],O$3)=\"\"),\"\",INDEX(Table_NCInfo[],Table_NCInspection[[#This Row],[Line]],O$3)),\"\")","v":""},{"$f":"IFERROR(IF(OR(Table_NCInspection[[#This Row],[Line]]=\"\",INDEX(Table_NCInfo[],Table_NCInspection[[#This Row],[Line]],P$3)=\"\"),\"\",INDEX(Table_NCInfo[],Table_NCInspection[[#This Row],[Line]],P$3)),\"\")","v":""},{"$f":"IFERROR(IF(Table_NCInspection[[#This Row],[Interior/ Exterior]]<>\"\",\n  CONCATENATE(\n  Table_NCInspection[[#This Row],[Interior/ Exterior]],\": \",\n  Table_NCInspection[[#This Row],[Fixture Technology '[P']]],\n  \" - \",Table_NCInspection[[#This Row],[Fixture Type '[P']]],\" [\",\n  IF(AND(Table_NCInspection[[#This Row],['# Lamps/ Fixture '[P']]]<>\"\",Table_NCInspection[[#This Row],['# Lamps/ Fixture '[P']]]>0),Table_NCInspection[[#This Row],['# Lamps/ Fixture '[P']]] & \"L - \" & Table_NCInspection[[#This Row],[Fixture/ Lamp Wattage '[P']]] & \"W\" & IF(Table_NCInspection[[#This Row],[Ballast/ Driver '[P']]]<>\"\",\" - \" & Table_NCInspection[[#This Row],[Ballast/ Driver '[P']]],\"\"),Table_NCInspection[[#This Row],[Fixture Wattage '[P']]] & \"W\"),\"]\",\n  IF(AND(Table_NCInspection[[#This Row],[Controls '[P']]]<>\"\"),\" - \" & Table_NCInspection[[#This Row],[Controls '[P']]],\"\")\n  ),\n\"\"),\"\")","v":""},{"$f":"IFERROR(IF(OR(Table_NCInspection[[#This Row],[Line]]=\"\",INDEX(Table_NCInfo[],Table_NCInspection[[#This Row],[Line]],R$3)=\"\"),\"\",INDEX(Table_NCInfo[],Table_NCInspection[[#This Row],[Line]],R$3)),\"\")","v":""},{"$f":"IFERROR(IF(OR(Table_NCInspection[[#This Row],[Line]]=\"\",INDEX(Table_NCInfo[],Table_NCInspection[[#This Row],[Line]],S$3)=\"\"),\"\",INDEX(Table_NCInfo[],Table_NCInspection[[#This Row],[Line]],S$3)),\"\")","v":""}]
[null,{"$f":"IFERROR(IF(OR(Table_NCInspection[[#This Row],[Line]]=\"\",INDEX(Table_NCInfo[],Table_NCInspection[[#This Row],[Line]],B$3)=\"\"),\"\",INDEX(Table_NCInfo[],Table_NCInspection[[#This Row],[Line]],B$3)),\"\")","v":""},{"$f":"IFERROR(IF(OR(Table_NCInspection[[#This Row],[Line]]=\"\",INDEX(Table_NCInfo[],Table_NCInspection[[#This Row],[Line]],C$3)=\"\"),\"\",INDEX(Table_NCInfo[],Table_NCInspection[[#This Row],[Line]],C$3)),\"\")","v":""},{"$f":"IFERROR(IF(OR(Table_NCInspection[[#This Row],[Line]]=\"\",INDEX(Table_NCInfo[],Table_NCInspection[[#This Row],[Line]],D$3)=\"\"),\"\",INDEX(Table_NCInfo[],Table_NCInspection[[#This Row],[Line]],D$3)),\"\")","v":""},{"$f":"IF(OR(Table_NCInspection[[#This Row],[Line]]<=0,IFERROR(INDEX(Table_NCInfo[],$A42,E$3),\"\")=\"\"),\"\",IF(Table_NCInspection[[#This Row],[Zone Description]]=INDEX(Table_NCInfo[],Table_NCInspection[[#This Row],[Line]],$D$3),INDEX(Table_NCInfo[],Table_NCInspection[[#This Row],[Line]],E$3),INDEX(Table_IntLookups[Zone'#],MATCH(Table_NCInspection[[#This Row],[Zone Description]],Table_IntLookups[Dropdown],0))))","v":""},{"$f":"IF(OR(Table_NCInspection[[#This Row],[Line]]<=0,IFERROR(INDEX(Table_NCInfo[],Table_NCInspection[[#This Row],[Line]],F$3),\"\")=\"\"),\"\",IF(Table_NCInspection[[#This Row],[Zone Description]]=INDEX(Table_NCInfo[],Table_NCInspection[[#This Row],[Line]],$D$3),INDEX(Table_NCInfo[],Table_NCInspection[[#This Row],[Line]],F$3),IFERROR(VLOOKUP(Table_NCInspection[[#This Row],[Zone '#]],Table_IntLookups[],'Facility Information'!$AB$4,FALSE),0)*INDEX(Table_NCInfo[Baseline Wattage],MATCH(Table_NCInspection[[#This Row],[Line]],Table_NCInfo[Line],0)/VLOOKUP(INDEX(Table_NCInfo[Zone '#],MATCH(Table_NCInspection[[#This Row],[Line]],Table_NCInfo[Line],0)),Table_IntLookups[],'Facility Information'!$AB$4,FALSE),0)))","v":""},{"$f":"IFERROR(IF(OR(Table_NCInspection[[#This Row],[Line]]=\"\",INDEX(Table_NCInfo[],Table_NCInspection[[#This Row],[Line]],G$3)=\"\"),\"\",INDEX(Table_NCInfo[],Table_NCInspection[[#This Row],[Line]],G$3)),\"\")","v":""},null,{"$f":"IFERROR(IF(OR(Table_NCInspection[[#This Row],[Line]]=\"\",INDEX(Table_NCInfo[],Table_NCInspection[[#This Row],[Line]],I$3)=\"\"),\"\",INDEX(Table_NCInfo[],Table_NCInspection[[#This Row],[Line]],I$3)),\"\")","v":""},{"$f":"IFERROR(IF(OR(Table_NCInspection[[#This Row],[Line]]=\"\",INDEX(Table_NCInfo[],Table_NCInspection[[#This Row],[Line]],J$3)=\"\"),\"\",INDEX(Table_NCInfo[],Table_NCInspection[[#This Row],[Line]],J$3)),\"\")","v":""},{"$f":"IFERROR(IF(OR(Table_NCInspection[[#This Row],[Line]]=\"\",INDEX(Table_NCInfo[],Table_NCInspection[[#This Row],[Line]],K$3)=\"\"),\"\",INDEX(Table_NCInfo[],Table_NCInspection[[#This Row],[Line]],K$3)),\"\")","v":""},{"$f":"IFERROR(IF(OR(Table_NCInspection[[#This Row],[Line]]=\"\",INDEX(Table_NCInfo[],Table_NCInspection[[#This Row],[Line]],L$3)=\"\"),\"\",INDEX(Table_NCInfo[],Table_NCInspection[[#This Row],[Line]],L$3)),\"\")","v":""},{"$f":"IFERROR(IF(OR(Table_NCInspection[[#This Row],[Line]]=\"\",INDEX(Table_NCInfo[],Table_NCInspection[[#This Row],[Line]],M$3)=\"\"),\"\",INDEX(Table_NCInfo[],Table_NCInspection[[#This Row],[Line]],M$3)),\"\")","v":""},{"$f":"IFERROR(\nIFERROR(OFFSET(Table_TypWattage[[#Headers],[Technology]],MATCH($J42,Table_TypWattage[Technology],0)+MATCH($L42,INDIRECT(SUBSTITUTE(SUBSTITUTE($J42,\" \",\"_\"),\"-\",\"_\")),0)-1,MATCH($K42,'Measure Tables'!$Q$2:$V$2,0)+1),IF(Table_NCInspection[[#This Row],[Line]]<>\"\",IF(AND(Table_NCInspection[[#This Row],['# Lamps/ Fixture '[P']]]<>\"\",$K42>0,$L42>0),$K42*$L42,$L42),\"\")),\n\"\")","v":""},{"$f":"IFERROR(IF(OR(Table_NCInspection[[#This Row],[Line]]=\"\",INDEX(Table_NCInfo[],Table_NCInspection[[#This Row],[Line]],O$3)=\"\"),\"\",INDEX(Table_NCInfo[],Table_NCInspection[[#This Row],[Line]],O$3)),\"\")","v":""},{"$f":"IFERROR(IF(OR(Table_NCInspection[[#This Row],[Line]]=\"\",INDEX(Table_NCInfo[],Table_NCInspection[[#This Row],[Line]],P$3)=\"\"),\"\",INDEX(Table_NCInfo[],Table_NCInspection[[#This Row],[Line]],P$3)),\"\")","v":""},{"$f":"IFERROR(IF(Table_NCInspection[[#This Row],[Interior/ Exterior]]<>\"\",\n  CONCATENATE(\n  Table_NCInspection[[#This Row],[Interior/ Exterior]],\": \",\n  Table_NCInspection[[#This Row],[Fixture Technology '[P']]],\n  \" - \",Table_NCInspection[[#This Row],[Fixture Type '[P']]],\" [\",\n  IF(AND(Table_NCInspection[[#This Row],['# Lamps/ Fixture '[P']]]<>\"\",Table_NCInspection[[#This Row],['# Lamps/ Fixture '[P']]]>0),Table_NCInspection[[#This Row],['# Lamps/ Fixture '[P']]] & \"L - \" & Table_NCInspection[[#This Row],[Fixture/ Lamp Wattage '[P']]] & \"W\" & IF(Table_NCInspection[[#This Row],[Ballast/ Driver '[P']]]<>\"\",\" - \" & Table_NCInspection[[#This Row],[Ballast/ Driver '[P']]],\"\"),Table_NCInspection[[#This Row],[Fixture Wattage '[P']]] & \"W\"),\"]\",\n  IF(AND(Table_NCInspection[[#This Row],[Controls '[P']]]<>\"\"),\" - \" & Table_NCInspection[[#This Row],[Controls '[P']]],\"\")\n  ),\n\"\"),\"\")","v":""},{"$f":"IFERROR(IF(OR(Table_NCInspection[[#This Row],[Line]]=\"\",INDEX(Table_NCInfo[],Table_NCInspection[[#This Row],[Line]],R$3)=\"\"),\"\",INDEX(Table_NCInfo[],Table_NCInspection[[#This Row],[Line]],R$3)),\"\")","v":""},{"$f":"IFERROR(IF(OR(Table_NCInspection[[#This Row],[Line]]=\"\",INDEX(Table_NCInfo[],Table_NCInspection[[#This Row],[Line]],S$3)=\"\"),\"\",INDEX(Table_NCInfo[],Table_NCInspection[[#This Row],[Line]],S$3)),\"\")","v":""}]
[null,{"$f":"IFERROR(IF(OR(Table_NCInspection[[#This Row],[Line]]=\"\",INDEX(Table_NCInfo[],Table_NCInspection[[#This Row],[Line]],B$3)=\"\"),\"\",INDEX(Table_NCInfo[],Table_NCInspection[[#This Row],[Line]],B$3)),\"\")","v":""},{"$f":"IFERROR(IF(OR(Table_NCInspection[[#This Row],[Line]]=\"\",INDEX(Table_NCInfo[],Table_NCInspection[[#This Row],[Line]],C$3)=\"\"),\"\",INDEX(Table_NCInfo[],Table_NCInspection[[#This Row],[Line]],C$3)),\"\")","v":""},{"$f":"IFERROR(IF(OR(Table_NCInspection[[#This Row],[Line]]=\"\",INDEX(Table_NCInfo[],Table_NCInspection[[#This Row],[Line]],D$3)=\"\"),\"\",INDEX(Table_NCInfo[],Table_NCInspection[[#This Row],[Line]],D$3)),\"\")","v":""},{"$f":"IF(OR(Table_NCInspection[[#This Row],[Line]]<=0,IFERROR(INDEX(Table_NCInfo[],$A43,E$3),\"\")=\"\"),\"\",IF(Table_NCInspection[[#This Row],[Zone Description]]=INDEX(Table_NCInfo[],Table_NCInspection[[#This Row],[Line]],$D$3),INDEX(Table_NCInfo[],Table_NCInspection[[#This Row],[Line]],E$3),INDEX(Table_IntLookups[Zone'#],MATCH(Table_NCInspection[[#This Row],[Zone Description]],Table_IntLookups[Dropdown],0))))","v":""},{"$f":"IF(OR(Table_NCInspection[[#This Row],[Line]]<=0,IFERROR(INDEX(Table_NCInfo[],Table_NCInspection[[#This Row],[Line]],F$3),\"\")=\"\"),\"\",IF(Table_NCInspection[[#This Row],[Zone Description]]=INDEX(Table_NCInfo[],Table_NCInspection[[#This Row],[Line]],$D$3),INDEX(Table_NCInfo[],Table_NCInspection[[#This Row],[Line]],F$3),IFERROR(VLOOKUP(Table_NCInspection[[#This Row],[Zone '#]],Table_IntLookups[],'Facility Information'!$AB$4,FALSE),0)*INDEX(Table_NCInfo[Baseline Wattage],MATCH(Table_NCInspection[[#This Row],[Line]],Table_NCInfo[Line],0)/VLOOKUP(INDEX(Table_NCInfo[Zone '#],MATCH(Table_NCInspection[[#This Row],[Line]],Table_NCInfo[Line],0)),Table_IntLookups[],'Facility Information'!$AB$4,FALSE),0)))","v":""},{"$f":"IFERROR(IF(OR(Table_NCInspection[[#This Row],[Line]]=\"\",INDEX(Table_NCInfo[],Table_NCInspection[[#This Row],[Line]],G$3)=\"\"),\"\",INDEX(Table_NCInfo[],Table_NCInspection[[#This Row],[Line]],G$3)),\"\")","v":""},null,{"$f":"IFERROR(IF(OR(Table_NCInspection[[#This Row],[Line]]=\"\",INDEX(Table_NCInfo[],Table_NCInspection[[#This Row],[Line]],I$3)=\"\"),\"\",INDEX(Table_NCInfo[],Table_NCInspection[[#This Row],[Line]],I$3)),\"\")","v":""},{"$f":"IFERROR(IF(OR(Table_NCInspection[[#This Row],[Line]]=\"\",INDEX(Table_NCInfo[],Table_NCInspection[[#This Row],[Line]],J$3)=\"\"),\"\",INDEX(Table_NCInfo[],Table_NCInspection[[#This Row],[Line]],J$3)),\"\")","v":""},{"$f":"IFERROR(IF(OR(Table_NCInspection[[#This Row],[Line]]=\"\",INDEX(Table_NCInfo[],Table_NCInspection[[#This Row],[Line]],K$3)=\"\"),\"\",INDEX(Table_NCInfo[],Table_NCInspection[[#This Row],[Line]],K$3)),\"\")","v":""},{"$f":"IFERROR(IF(OR(Table_NCInspection[[#This Row],[Line]]=\"\",INDEX(Table_NCInfo[],Table_NCInspection[[#This Row],[Line]],L$3)=\"\"),\"\",INDEX(Table_NCInfo[],Table_NCInspection[[#This Row],[Line]],L$3)),\"\")","v":""},{"$f":"IFERROR(IF(OR(Table_NCInspection[[#This Row],[Line]]=\"\",INDEX(Table_NCInfo[],Table_NCInspection[[#This Row],[Line]],M$3)=\"\"),\"\",INDEX(Table_NCInfo[],Table_NCInspection[[#This Row],[Line]],M$3)),\"\")","v":""},{"$f":"IFERROR(\nIFERROR(OFFSET(Table_TypWattage[[#Headers],[Technology]],MATCH($J43,Table_TypWattage[Technology],0)+MATCH($L43,INDIRECT(SUBSTITUTE(SUBSTITUTE($J43,\" \",\"_\"),\"-\",\"_\")),0)-1,MATCH($K43,'Measure Tables'!$Q$2:$V$2,0)+1),IF(Table_NCInspection[[#This Row],[Line]]<>\"\",IF(AND(Table_NCInspection[[#This Row],['# Lamps/ Fixture '[P']]]<>\"\",$K43>0,$L43>0),$K43*$L43,$L43),\"\")),\n\"\")","v":""},{"$f":"IFERROR(IF(OR(Table_NCInspection[[#This Row],[Line]]=\"\",INDEX(Table_NCInfo[],Table_NCInspection[[#This Row],[Line]],O$3)=\"\"),\"\",INDEX(Table_NCInfo[],Table_NCInspection[[#This Row],[Line]],O$3)),\"\")","v":""},{"$f":"IFERROR(IF(OR(Table_NCInspection[[#This Row],[Line]]=\"\",INDEX(Table_NCInfo[],Table_NCInspection[[#This Row],[Line]],P$3)=\"\"),\"\",INDEX(Table_NCInfo[],Table_NCInspection[[#This Row],[Line]],P$3)),\"\")","v":""},{"$f":"IFERROR(IF(Table_NCInspection[[#This Row],[Interior/ Exterior]]<>\"\",\n  CONCATENATE(\n  Table_NCInspection[[#This Row],[Interior/ Exterior]],\": \",\n  Table_NCInspection[[#This Row],[Fixture Technology '[P']]],\n  \" - \",Table_NCInspection[[#This Row],[Fixture Type '[P']]],\" [\",\n  IF(AND(Table_NCInspection[[#This Row],['# Lamps/ Fixture '[P']]]<>\"\",Table_NCInspection[[#This Row],['# Lamps/ Fixture '[P']]]>0),Table_NCInspection[[#This Row],['# Lamps/ Fixture '[P']]] & \"L - \" & Table_NCInspection[[#This Row],[Fixture/ Lamp Wattage '[P']]] & \"W\" & IF(Table_NCInspection[[#This Row],[Ballast/ Driver '[P']]]<>\"\",\" - \" & Table_NCInspection[[#This Row],[Ballast/ Driver '[P']]],\"\"),Table_NCInspection[[#This Row],[Fixture Wattage '[P']]] & \"W\"),\"]\",\n  IF(AND(Table_NCInspection[[#This Row],[Controls '[P']]]<>\"\"),\" - \" & Table_NCInspection[[#This Row],[Controls '[P']]],\"\")\n  ),\n\"\"),\"\")","v":""},{"$f":"IFERROR(IF(OR(Table_NCInspection[[#This Row],[Line]]=\"\",INDEX(Table_NCInfo[],Table_NCInspection[[#This Row],[Line]],R$3)=\"\"),\"\",INDEX(Table_NCInfo[],Table_NCInspection[[#This Row],[Line]],R$3)),\"\")","v":""},{"$f":"IFERROR(IF(OR(Table_NCInspection[[#This Row],[Line]]=\"\",INDEX(Table_NCInfo[],Table_NCInspection[[#This Row],[Line]],S$3)=\"\"),\"\",INDEX(Table_NCInfo[],Table_NCInspection[[#This Row],[Line]],S$3)),\"\")","v":""}]
[null,{"$f":"IFERROR(IF(OR(Table_NCInspection[[#This Row],[Line]]=\"\",INDEX(Table_NCInfo[],Table_NCInspection[[#This Row],[Line]],B$3)=\"\"),\"\",INDEX(Table_NCInfo[],Table_NCInspection[[#This Row],[Line]],B$3)),\"\")","v":""},{"$f":"IFERROR(IF(OR(Table_NCInspection[[#This Row],[Line]]=\"\",INDEX(Table_NCInfo[],Table_NCInspection[[#This Row],[Line]],C$3)=\"\"),\"\",INDEX(Table_NCInfo[],Table_NCInspection[[#This Row],[Line]],C$3)),\"\")","v":""},{"$f":"IFERROR(IF(OR(Table_NCInspection[[#This Row],[Line]]=\"\",INDEX(Table_NCInfo[],Table_NCInspection[[#This Row],[Line]],D$3)=\"\"),\"\",INDEX(Table_NCInfo[],Table_NCInspection[[#This Row],[Line]],D$3)),\"\")","v":""},{"$f":"IF(OR(Table_NCInspection[[#This Row],[Line]]<=0,IFERROR(INDEX(Table_NCInfo[],$A44,E$3),\"\")=\"\"),\"\",IF(Table_NCInspection[[#This Row],[Zone Description]]=INDEX(Table_NCInfo[],Table_NCInspection[[#This Row],[Line]],$D$3),INDEX(Table_NCInfo[],Table_NCInspection[[#This Row],[Line]],E$3),INDEX(Table_IntLookups[Zone'#],MATCH(Table_NCInspection[[#This Row],[Zone Description]],Table_IntLookups[Dropdown],0))))","v":""},{"$f":"IF(OR(Table_NCInspection[[#This Row],[Line]]<=0,IFERROR(INDEX(Table_NCInfo[],Table_NCInspection[[#This Row],[Line]],F$3),\"\")=\"\"),\"\",IF(Table_NCInspection[[#This Row],[Zone Description]]=INDEX(Table_NCInfo[],Table_NCInspection[[#This Row],[Line]],$D$3),INDEX(Table_NCInfo[],Table_NCInspection[[#This Row],[Line]],F$3),IFERROR(VLOOKUP(Table_NCInspection[[#This Row],[Zone '#]],Table_IntLookups[],'Facility Information'!$AB$4,FALSE),0)*INDEX(Table_NCInfo[Baseline Wattage],MATCH(Table_NCInspection[[#This Row],[Line]],Table_NCInfo[Line],0)/VLOOKUP(INDEX(Table_NCInfo[Zone '#],MATCH(Table_NCInspection[[#This Row],[Line]],Table_NCInfo[Line],0)),Table_IntLookups[],'Facility Information'!$AB$4,FALSE),0)))","v":""},{"$f":"IFERROR(IF(OR(Table_NCInspection[[#This Row],[Line]]=\"\",INDEX(Table_NCInfo[],Table_NCInspection[[#This Row],[Line]],G$3)=\"\"),\"\",INDEX(Table_NCInfo[],Table_NCInspection[[#This Row],[Line]],G$3)),\"\")","v":""},null,{"$f":"IFERROR(IF(OR(Table_NCInspection[[#This Row],[Line]]=\"\",INDEX(Table_NCInfo[],Table_NCInspection[[#This Row],[Line]],I$3)=\"\"),\"\",INDEX(Table_NCInfo[],Table_NCInspection[[#This Row],[Line]],I$3)),\"\")","v":""},{"$f":"IFERROR(IF(OR(Table_NCInspection[[#This Row],[Line]]=\"\",INDEX(Table_NCInfo[],Table_NCInspection[[#This Row],[Line]],J$3)=\"\"),\"\",INDEX(Table_NCInfo[],Table_NCInspection[[#This Row],[Line]],J$3)),\"\")","v":""},{"$f":"IFERROR(IF(OR(Table_NCInspection[[#This Row],[Line]]=\"\",INDEX(Table_NCInfo[],Table_NCInspection[[#This Row],[Line]],K$3)=\"\"),\"\",INDEX(Table_NCInfo[],Table_NCInspection[[#This Row],[Line]],K$3)),\"\")","v":""},{"$f":"IFERROR(IF(OR(Table_NCInspection[[#This Row],[Line]]=\"\",INDEX(Table_NCInfo[],Table_NCInspection[[#This Row],[Line]],L$3)=\"\"),\"\",INDEX(Table_NCInfo[],Table_NCInspection[[#This Row],[Line]],L$3)),\"\")","v":""},{"$f":"IFERROR(IF(OR(Table_NCInspection[[#This Row],[Line]]=\"\",INDEX(Table_NCInfo[],Table_NCInspection[[#This Row],[Line]],M$3)=\"\"),\"\",INDEX(Table_NCInfo[],Table_NCInspection[[#This Row],[Line]],M$3)),\"\")","v":""},{"$f":"IFERROR(\nIFERROR(OFFSET(Table_TypWattage[[#Headers],[Technology]],MATCH($J44,Table_TypWattage[Technology],0)+MATCH($L44,INDIRECT(SUBSTITUTE(SUBSTITUTE($J44,\" \",\"_\"),\"-\",\"_\")),0)-1,MATCH($K44,'Measure Tables'!$Q$2:$V$2,0)+1),IF(Table_NCInspection[[#This Row],[Line]]<>\"\",IF(AND(Table_NCInspection[[#This Row],['# Lamps/ Fixture '[P']]]<>\"\",$K44>0,$L44>0),$K44*$L44,$L44),\"\")),\n\"\")","v":""},{"$f":"IFERROR(IF(OR(Table_NCInspection[[#This Row],[Line]]=\"\",INDEX(Table_NCInfo[],Table_NCInspection[[#This Row],[Line]],O$3)=\"\"),\"\",INDEX(Table_NCInfo[],Table_NCInspection[[#This Row],[Line]],O$3)),\"\")","v":""},{"$f":"IFERROR(IF(OR(Table_NCInspection[[#This Row],[Line]]=\"\",INDEX(Table_NCInfo[],Table_NCInspection[[#This Row],[Line]],P$3)=\"\"),\"\",INDEX(Table_NCInfo[],Table_NCInspection[[#This Row],[Line]],P$3)),\"\")","v":""},{"$f":"IFERROR(IF(Table_NCInspection[[#This Row],[Interior/ Exterior]]<>\"\",\n  CONCATENATE(\n  Table_NCInspection[[#This Row],[Interior/ Exterior]],\": \",\n  Table_NCInspection[[#This Row],[Fixture Technology '[P']]],\n  \" - \",Table_NCInspection[[#This Row],[Fixture Type '[P']]],\" [\",\n  IF(AND(Table_NCInspection[[#This Row],['# Lamps/ Fixture '[P']]]<>\"\",Table_NCInspection[[#This Row],['# Lamps/ Fixture '[P']]]>0),Table_NCInspection[[#This Row],['# Lamps/ Fixture '[P']]] & \"L - \" & Table_NCInspection[[#This Row],[Fixture/ Lamp Wattage '[P']]] & \"W\" & IF(Table_NCInspection[[#This Row],[Ballast/ Driver '[P']]]<>\"\",\" - \" & Table_NCInspection[[#This Row],[Ballast/ Driver '[P']]],\"\"),Table_NCInspection[[#This Row],[Fixture Wattage '[P']]] & \"W\"),\"]\",\n  IF(AND(Table_NCInspection[[#This Row],[Controls '[P']]]<>\"\"),\" - \" & Table_NCInspection[[#This Row],[Controls '[P']]],\"\")\n  ),\n\"\"),\"\")","v":""},{"$f":"IFERROR(IF(OR(Table_NCInspection[[#This Row],[Line]]=\"\",INDEX(Table_NCInfo[],Table_NCInspection[[#This Row],[Line]],R$3)=\"\"),\"\",INDEX(Table_NCInfo[],Table_NCInspection[[#This Row],[Line]],R$3)),\"\")","v":""},{"$f":"IFERROR(IF(OR(Table_NCInspection[[#This Row],[Line]]=\"\",INDEX(Table_NCInfo[],Table_NCInspection[[#This Row],[Line]],S$3)=\"\"),\"\",INDEX(Table_NCInfo[],Table_NCInspection[[#This Row],[Line]],S$3)),\"\")","v":""}]
[null,{"$f":"IFERROR(IF(OR(Table_NCInspection[[#This Row],[Line]]=\"\",INDEX(Table_NCInfo[],Table_NCInspection[[#This Row],[Line]],B$3)=\"\"),\"\",INDEX(Table_NCInfo[],Table_NCInspection[[#This Row],[Line]],B$3)),\"\")","v":""},{"$f":"IFERROR(IF(OR(Table_NCInspection[[#This Row],[Line]]=\"\",INDEX(Table_NCInfo[],Table_NCInspection[[#This Row],[Line]],C$3)=\"\"),\"\",INDEX(Table_NCInfo[],Table_NCInspection[[#This Row],[Line]],C$3)),\"\")","v":""},{"$f":"IFERROR(IF(OR(Table_NCInspection[[#This Row],[Line]]=\"\",INDEX(Table_NCInfo[],Table_NCInspection[[#This Row],[Line]],D$3)=\"\"),\"\",INDEX(Table_NCInfo[],Table_NCInspection[[#This Row],[Line]],D$3)),\"\")","v":""},{"$f":"IF(OR(Table_NCInspection[[#This Row],[Line]]<=0,IFERROR(INDEX(Table_NCInfo[],$A45,E$3),\"\")=\"\"),\"\",IF(Table_NCInspection[[#This Row],[Zone Description]]=INDEX(Table_NCInfo[],Table_NCInspection[[#This Row],[Line]],$D$3),INDEX(Table_NCInfo[],Table_NCInspection[[#This Row],[Line]],E$3),INDEX(Table_IntLookups[Zone'#],MATCH(Table_NCInspection[[#This Row],[Zone Description]],Table_IntLookups[Dropdown],0))))","v":""},{"$f":"IF(OR(Table_NCInspection[[#This Row],[Line]]<=0,IFERROR(INDEX(Table_NCInfo[],Table_NCInspection[[#This Row],[Line]],F$3),\"\")=\"\"),\"\",IF(Table_NCInspection[[#This Row],[Zone Description]]=INDEX(Table_NCInfo[],Table_NCInspection[[#This Row],[Line]],$D$3),INDEX(Table_NCInfo[],Table_NCInspection[[#This Row],[Line]],F$3),IFERROR(VLOOKUP(Table_NCInspection[[#This Row],[Zone '#]],Table_IntLookups[],'Facility Information'!$AB$4,FALSE),0)*INDEX(Table_NCInfo[Baseline Wattage],MATCH(Table_NCInspection[[#This Row],[Line]],Table_NCInfo[Line],0)/VLOOKUP(INDEX(Table_NCInfo[Zone '#],MATCH(Table_NCInspection[[#This Row],[Line]],Table_NCInfo[Line],0)),Table_IntLookups[],'Facility Information'!$AB$4,FALSE),0)))","v":""},{"$f":"IFERROR(IF(OR(Table_NCInspection[[#This Row],[Line]]=\"\",INDEX(Table_NCInfo[],Table_NCInspection[[#This Row],[Line]],G$3)=\"\"),\"\",INDEX(Table_NCInfo[],Table_NCInspection[[#This Row],[Line]],G$3)),\"\")","v":""},null,{"$f":"IFERROR(IF(OR(Table_NCInspection[[#This Row],[Line]]=\"\",INDEX(Table_NCInfo[],Table_NCInspection[[#This Row],[Line]],I$3)=\"\"),\"\",INDEX(Table_NCInfo[],Table_NCInspection[[#This Row],[Line]],I$3)),\"\")","v":""},{"$f":"IFERROR(IF(OR(Table_NCInspection[[#This Row],[Line]]=\"\",INDEX(Table_NCInfo[],Table_NCInspection[[#This Row],[Line]],J$3)=\"\"),\"\",INDEX(Table_NCInfo[],Table_NCInspection[[#This Row],[Line]],J$3)),\"\")","v":""},{"$f":"IFERROR(IF(OR(Table_NCInspection[[#This Row],[Line]]=\"\",INDEX(Table_NCInfo[],Table_NCInspection[[#This Row],[Line]],K$3)=\"\"),\"\",INDEX(Table_NCInfo[],Table_NCInspection[[#This Row],[Line]],K$3)),\"\")","v":""},{"$f":"IFERROR(IF(OR(Table_NCInspection[[#This Row],[Line]]=\"\",INDEX(Table_NCInfo[],Table_NCInspection[[#This Row],[Line]],L$3)=\"\"),\"\",INDEX(Table_NCInfo[],Table_NCInspection[[#This Row],[Line]],L$3)),\"\")","v":""},{"$f":"IFERROR(IF(OR(Table_NCInspection[[#This Row],[Line]]=\"\",INDEX(Table_NCInfo[],Table_NCInspection[[#This Row],[Line]],M$3)=\"\"),\"\",INDEX(Table_NCInfo[],Table_NCInspection[[#This Row],[Line]],M$3)),\"\")","v":""},{"$f":"IFERROR(\nIFERROR(OFFSET(Table_TypWattage[[#Headers],[Technology]],MATCH($J45,Table_TypWattage[Technology],0)+MATCH($L45,INDIRECT(SUBSTITUTE(SUBSTITUTE($J45,\" \",\"_\"),\"-\",\"_\")),0)-1,MATCH($K45,'Measure Tables'!$Q$2:$V$2,0)+1),IF(Table_NCInspection[[#This Row],[Line]]<>\"\",IF(AND(Table_NCInspection[[#This Row],['# Lamps/ Fixture '[P']]]<>\"\",$K45>0,$L45>0),$K45*$L45,$L45),\"\")),\n\"\")","v":""},{"$f":"IFERROR(IF(OR(Table_NCInspection[[#This Row],[Line]]=\"\",INDEX(Table_NCInfo[],Table_NCInspection[[#This Row],[Line]],O$3)=\"\"),\"\",INDEX(Table_NCInfo[],Table_NCInspection[[#This Row],[Line]],O$3)),\"\")","v":""},{"$f":"IFERROR(IF(OR(Table_NCInspection[[#This Row],[Line]]=\"\",INDEX(Table_NCInfo[],Table_NCInspection[[#This Row],[Line]],P$3)=\"\"),\"\",INDEX(Table_NCInfo[],Table_NCInspection[[#This Row],[Line]],P$3)),\"\")","v":""},{"$f":"IFERROR(IF(Table_NCInspection[[#This Row],[Interior/ Exterior]]<>\"\",\n  CONCATENATE(\n  Table_NCInspection[[#This Row],[Interior/ Exterior]],\": \",\n  Table_NCInspection[[#This Row],[Fixture Technology '[P']]],\n  \" - \",Table_NCInspection[[#This Row],[Fixture Type '[P']]],\" [\",\n  IF(AND(Table_NCInspection[[#This Row],['# Lamps/ Fixture '[P']]]<>\"\",Table_NCInspection[[#This Row],['# Lamps/ Fixture '[P']]]>0),Table_NCInspection[[#This Row],['# Lamps/ Fixture '[P']]] & \"L - \" & Table_NCInspection[[#This Row],[Fixture/ Lamp Wattage '[P']]] & \"W\" & IF(Table_NCInspection[[#This Row],[Ballast/ Driver '[P']]]<>\"\",\" - \" & Table_NCInspection[[#This Row],[Ballast/ Driver '[P']]],\"\"),Table_NCInspection[[#This Row],[Fixture Wattage '[P']]] & \"W\"),\"]\",\n  IF(AND(Table_NCInspection[[#This Row],[Controls '[P']]]<>\"\"),\" - \" & Table_NCInspection[[#This Row],[Controls '[P']]],\"\")\n  ),\n\"\"),\"\")","v":""},{"$f":"IFERROR(IF(OR(Table_NCInspection[[#This Row],[Line]]=\"\",INDEX(Table_NCInfo[],Table_NCInspection[[#This Row],[Line]],R$3)=\"\"),\"\",INDEX(Table_NCInfo[],Table_NCInspection[[#This Row],[Line]],R$3)),\"\")","v":""},{"$f":"IFERROR(IF(OR(Table_NCInspection[[#This Row],[Line]]=\"\",INDEX(Table_NCInfo[],Table_NCInspection[[#This Row],[Line]],S$3)=\"\"),\"\",INDEX(Table_NCInfo[],Table_NCInspection[[#This Row],[Line]],S$3)),\"\")","v":""}]
[null,{"$f":"IFERROR(IF(OR(Table_NCInspection[[#This Row],[Line]]=\"\",INDEX(Table_NCInfo[],Table_NCInspection[[#This Row],[Line]],B$3)=\"\"),\"\",INDEX(Table_NCInfo[],Table_NCInspection[[#This Row],[Line]],B$3)),\"\")","v":""},{"$f":"IFERROR(IF(OR(Table_NCInspection[[#This Row],[Line]]=\"\",INDEX(Table_NCInfo[],Table_NCInspection[[#This Row],[Line]],C$3)=\"\"),\"\",INDEX(Table_NCInfo[],Table_NCInspection[[#This Row],[Line]],C$3)),\"\")","v":""},{"$f":"IFERROR(IF(OR(Table_NCInspection[[#This Row],[Line]]=\"\",INDEX(Table_NCInfo[],Table_NCInspection[[#This Row],[Line]],D$3)=\"\"),\"\",INDEX(Table_NCInfo[],Table_NCInspection[[#This Row],[Line]],D$3)),\"\")","v":""},{"$f":"IF(OR(Table_NCInspection[[#This Row],[Line]]<=0,IFERROR(INDEX(Table_NCInfo[],$A46,E$3),\"\")=\"\"),\"\",IF(Table_NCInspection[[#This Row],[Zone Description]]=INDEX(Table_NCInfo[],Table_NCInspection[[#This Row],[Line]],$D$3),INDEX(Table_NCInfo[],Table_NCInspection[[#This Row],[Line]],E$3),INDEX(Table_IntLookups[Zone'#],MATCH(Table_NCInspection[[#This Row],[Zone Description]],Table_IntLookups[Dropdown],0))))","v":""},{"$f":"IF(OR(Table_NCInspection[[#This Row],[Line]]<=0,IFERROR(INDEX(Table_NCInfo[],Table_NCInspection[[#This Row],[Line]],F$3),\"\")=\"\"),\"\",IF(Table_NCInspection[[#This Row],[Zone Description]]=INDEX(Table_NCInfo[],Table_NCInspection[[#This Row],[Line]],$D$3),INDEX(Table_NCInfo[],Table_NCInspection[[#This Row],[Line]],F$3),IFERROR(VLOOKUP(Table_NCInspection[[#This Row],[Zone '#]],Table_IntLookups[],'Facility Information'!$AB$4,FALSE),0)*INDEX(Table_NCInfo[Baseline Wattage],MATCH(Table_NCInspection[[#This Row],[Line]],Table_NCInfo[Line],0)/VLOOKUP(INDEX(Table_NCInfo[Zone '#],MATCH(Table_NCInspection[[#This Row],[Line]],Table_NCInfo[Line],0)),Table_IntLookups[],'Facility Information'!$AB$4,FALSE),0)))","v":""},{"$f":"IFERROR(IF(OR(Table_NCInspection[[#This Row],[Line]]=\"\",INDEX(Table_NCInfo[],Table_NCInspection[[#This Row],[Line]],G$3)=\"\"),\"\",INDEX(Table_NCInfo[],Table_NCInspection[[#This Row],[Line]],G$3)),\"\")","v":""},null,{"$f":"IFERROR(IF(OR(Table_NCInspection[[#This Row],[Line]]=\"\",INDEX(Table_NCInfo[],Table_NCInspection[[#This Row],[Line]],I$3)=\"\"),\"\",INDEX(Table_NCInfo[],Table_NCInspection[[#This Row],[Line]],I$3)),\"\")","v":""},{"$f":"IFERROR(IF(OR(Table_NCInspection[[#This Row],[Line]]=\"\",INDEX(Table_NCInfo[],Table_NCInspection[[#This Row],[Line]],J$3)=\"\"),\"\",INDEX(Table_NCInfo[],Table_NCInspection[[#This Row],[Line]],J$3)),\"\")","v":""},{"$f":"IFERROR(IF(OR(Table_NCInspection[[#This Row],[Line]]=\"\",INDEX(Table_NCInfo[],Table_NCInspection[[#This Row],[Line]],K$3)=\"\"),\"\",INDEX(Table_NCInfo[],Table_NCInspection[[#This Row],[Line]],K$3)),\"\")","v":""},{"$f":"IFERROR(IF(OR(Table_NCInspection[[#This Row],[Line]]=\"\",INDEX(Table_NCInfo[],Table_NCInspection[[#This Row],[Line]],L$3)=\"\"),\"\",INDEX(Table_NCInfo[],Table_NCInspection[[#This Row],[Line]],L$3)),\"\")","v":""},{"$f":"IFERROR(IF(OR(Table_NCInspection[[#This Row],[Line]]=\"\",INDEX(Table_NCInfo[],Table_NCInspection[[#This Row],[Line]],M$3)=\"\"),\"\",INDEX(Table_NCInfo[],Table_NCInspection[[#This Row],[Line]],M$3)),\"\")","v":""},{"$f":"IFERROR(\nIFERROR(OFFSET(Table_TypWattage[[#Headers],[Technology]],MATCH($J46,Table_TypWattage[Technology],0)+MATCH($L46,INDIRECT(SUBSTITUTE(SUBSTITUTE($J46,\" \",\"_\"),\"-\",\"_\")),0)-1,MATCH($K46,'Measure Tables'!$Q$2:$V$2,0)+1),IF(Table_NCInspection[[#This Row],[Line]]<>\"\",IF(AND(Table_NCInspection[[#This Row],['# Lamps/ Fixture '[P']]]<>\"\",$K46>0,$L46>0),$K46*$L46,$L46),\"\")),\n\"\")","v":""},{"$f":"IFERROR(IF(OR(Table_NCInspection[[#This Row],[Line]]=\"\",INDEX(Table_NCInfo[],Table_NCInspection[[#This Row],[Line]],O$3)=\"\"),\"\",INDEX(Table_NCInfo[],Table_NCInspection[[#This Row],[Line]],O$3)),\"\")","v":""},{"$f":"IFERROR(IF(OR(Table_NCInspection[[#This Row],[Line]]=\"\",INDEX(Table_NCInfo[],Table_NCInspection[[#This Row],[Line]],P$3)=\"\"),\"\",INDEX(Table_NCInfo[],Table_NCInspection[[#This Row],[Line]],P$3)),\"\")","v":""},{"$f":"IFERROR(IF(Table_NCInspection[[#This Row],[Interior/ Exterior]]<>\"\",\n  CONCATENATE(\n  Table_NCInspection[[#This Row],[Interior/ Exterior]],\": \",\n  Table_NCInspection[[#This Row],[Fixture Technology '[P']]],\n  \" - \",Table_NCInspection[[#This Row],[Fixture Type '[P']]],\" [\",\n  IF(AND(Table_NCInspection[[#This Row],['# Lamps/ Fixture '[P']]]<>\"\",Table_NCInspection[[#This Row],['# Lamps/ Fixture '[P']]]>0),Table_NCInspection[[#This Row],['# Lamps/ Fixture '[P']]] & \"L - \" & Table_NCInspection[[#This Row],[Fixture/ Lamp Wattage '[P']]] & \"W\" & IF(Table_NCInspection[[#This Row],[Ballast/ Driver '[P']]]<>\"\",\" - \" & Table_NCInspection[[#This Row],[Ballast/ Driver '[P']]],\"\"),Table_NCInspection[[#This Row],[Fixture Wattage '[P']]] & \"W\"),\"]\",\n  IF(AND(Table_NCInspection[[#This Row],[Controls '[P']]]<>\"\"),\" - \" & Table_NCInspection[[#This Row],[Controls '[P']]],\"\")\n  ),\n\"\"),\"\")","v":""},{"$f":"IFERROR(IF(OR(Table_NCInspection[[#This Row],[Line]]=\"\",INDEX(Table_NCInfo[],Table_NCInspection[[#This Row],[Line]],R$3)=\"\"),\"\",INDEX(Table_NCInfo[],Table_NCInspection[[#This Row],[Line]],R$3)),\"\")","v":""},{"$f":"IFERROR(IF(OR(Table_NCInspection[[#This Row],[Line]]=\"\",INDEX(Table_NCInfo[],Table_NCInspection[[#This Row],[Line]],S$3)=\"\"),\"\",INDEX(Table_NCInfo[],Table_NCInspection[[#This Row],[Line]],S$3)),\"\")","v":""}]
[null,{"$f":"IFERROR(IF(OR(Table_NCInspection[[#This Row],[Line]]=\"\",INDEX(Table_NCInfo[],Table_NCInspection[[#This Row],[Line]],B$3)=\"\"),\"\",INDEX(Table_NCInfo[],Table_NCInspection[[#This Row],[Line]],B$3)),\"\")","v":""},{"$f":"IFERROR(IF(OR(Table_NCInspection[[#This Row],[Line]]=\"\",INDEX(Table_NCInfo[],Table_NCInspection[[#This Row],[Line]],C$3)=\"\"),\"\",INDEX(Table_NCInfo[],Table_NCInspection[[#This Row],[Line]],C$3)),\"\")","v":""},{"$f":"IFERROR(IF(OR(Table_NCInspection[[#This Row],[Line]]=\"\",INDEX(Table_NCInfo[],Table_NCInspection[[#This Row],[Line]],D$3)=\"\"),\"\",INDEX(Table_NCInfo[],Table_NCInspection[[#This Row],[Line]],D$3)),\"\")","v":""},{"$f":"IF(OR(Table_NCInspection[[#This Row],[Line]]<=0,IFERROR(INDEX(Table_NCInfo[],$A47,E$3),\"\")=\"\"),\"\",IF(Table_NCInspection[[#This Row],[Zone Description]]=INDEX(Table_NCInfo[],Table_NCInspection[[#This Row],[Line]],$D$3),INDEX(Table_NCInfo[],Table_NCInspection[[#This Row],[Line]],E$3),INDEX(Table_IntLookups[Zone'#],MATCH(Table_NCInspection[[#This Row],[Zone Description]],Table_IntLookups[Dropdown],0))))","v":""},{"$f":"IF(OR(Table_NCInspection[[#This Row],[Line]]<=0,IFERROR(INDEX(Table_NCInfo[],Table_NCInspection[[#This Row],[Line]],F$3),\"\")=\"\"),\"\",IF(Table_NCInspection[[#This Row],[Zone Description]]=INDEX(Table_NCInfo[],Table_NCInspection[[#This Row],[Line]],$D$3),INDEX(Table_NCInfo[],Table_NCInspection[[#This Row],[Line]],F$3),IFERROR(VLOOKUP(Table_NCInspection[[#This Row],[Zone '#]],Table_IntLookups[],'Facility Information'!$AB$4,FALSE),0)*INDEX(Table_NCInfo[Baseline Wattage],MATCH(Table_NCInspection[[#This Row],[Line]],Table_NCInfo[Line],0)/VLOOKUP(INDEX(Table_NCInfo[Zone '#],MATCH(Table_NCInspection[[#This Row],[Line]],Table_NCInfo[Line],0)),Table_IntLookups[],'Facility Information'!$AB$4,FALSE),0)))","v":""},{"$f":"IFERROR(IF(OR(Table_NCInspection[[#This Row],[Line]]=\"\",INDEX(Table_NCInfo[],Table_NCInspection[[#This Row],[Line]],G$3)=\"\"),\"\",INDEX(Table_NCInfo[],Table_NCInspection[[#This Row],[Line]],G$3)),\"\")","v":""},null,{"$f":"IFERROR(IF(OR(Table_NCInspection[[#This Row],[Line]]=\"\",INDEX(Table_NCInfo[],Table_NCInspection[[#This Row],[Line]],I$3)=\"\"),\"\",INDEX(Table_NCInfo[],Table_NCInspection[[#This Row],[Line]],I$3)),\"\")","v":""},{"$f":"IFERROR(IF(OR(Table_NCInspection[[#This Row],[Line]]=\"\",INDEX(Table_NCInfo[],Table_NCInspection[[#This Row],[Line]],J$3)=\"\"),\"\",INDEX(Table_NCInfo[],Table_NCInspection[[#This Row],[Line]],J$3)),\"\")","v":""},{"$f":"IFERROR(IF(OR(Table_NCInspection[[#This Row],[Line]]=\"\",INDEX(Table_NCInfo[],Table_NCInspection[[#This Row],[Line]],K$3)=\"\"),\"\",INDEX(Table_NCInfo[],Table_NCInspection[[#This Row],[Line]],K$3)),\"\")","v":""},{"$f":"IFERROR(IF(OR(Table_NCInspection[[#This Row],[Line]]=\"\",INDEX(Table_NCInfo[],Table_NCInspection[[#This Row],[Line]],L$3)=\"\"),\"\",INDEX(Table_NCInfo[],Table_NCInspection[[#This Row],[Line]],L$3)),\"\")","v":""},{"$f":"IFERROR(IF(OR(Table_NCInspection[[#This Row],[Line]]=\"\",INDEX(Table_NCInfo[],Table_NCInspection[[#This Row],[Line]],M$3)=\"\"),\"\",INDEX(Table_NCInfo[],Table_NCInspection[[#This Row],[Line]],M$3)),\"\")","v":""},{"$f":"IFERROR(\nIFERROR(OFFSET(Table_TypWattage[[#Headers],[Technology]],MATCH($J47,Table_TypWattage[Technology],0)+MATCH($L47,INDIRECT(SUBSTITUTE(SUBSTITUTE($J47,\" \",\"_\"),\"-\",\"_\")),0)-1,MATCH($K47,'Measure Tables'!$Q$2:$V$2,0)+1),IF(Table_NCInspection[[#This Row],[Line]]<>\"\",IF(AND(Table_NCInspection[[#This Row],['# Lamps/ Fixture '[P']]]<>\"\",$K47>0,$L47>0),$K47*$L47,$L47),\"\")),\n\"\")","v":""},{"$f":"IFERROR(IF(OR(Table_NCInspection[[#This Row],[Line]]=\"\",INDEX(Table_NCInfo[],Table_NCInspection[[#This Row],[Line]],O$3)=\"\"),\"\",INDEX(Table_NCInfo[],Table_NCInspection[[#This Row],[Line]],O$3)),\"\")","v":""},{"$f":"IFERROR(IF(OR(Table_NCInspection[[#This Row],[Line]]=\"\",INDEX(Table_NCInfo[],Table_NCInspection[[#This Row],[Line]],P$3)=\"\"),\"\",INDEX(Table_NCInfo[],Table_NCInspection[[#This Row],[Line]],P$3)),\"\")","v":""},{"$f":"IFERROR(IF(Table_NCInspection[[#This Row],[Interior/ Exterior]]<>\"\",\n  CONCATENATE(\n  Table_NCInspection[[#This Row],[Interior/ Exterior]],\": \",\n  Table_NCInspection[[#This Row],[Fixture Technology '[P']]],\n  \" - \",Table_NCInspection[[#This Row],[Fixture Type '[P']]],\" [\",\n  IF(AND(Table_NCInspection[[#This Row],['# Lamps/ Fixture '[P']]]<>\"\",Table_NCInspection[[#This Row],['# Lamps/ Fixture '[P']]]>0),Table_NCInspection[[#This Row],['# Lamps/ Fixture '[P']]] & \"L - \" & Table_NCInspection[[#This Row],[Fixture/ Lamp Wattage '[P']]] & \"W\" & IF(Table_NCInspection[[#This Row],[Ballast/ Driver '[P']]]<>\"\",\" - \" & Table_NCInspection[[#This Row],[Ballast/ Driver '[P']]],\"\"),Table_NCInspection[[#This Row],[Fixture Wattage '[P']]] & \"W\"),\"]\",\n  IF(AND(Table_NCInspection[[#This Row],[Controls '[P']]]<>\"\"),\" - \" & Table_NCInspection[[#This Row],[Controls '[P']]],\"\")\n  ),\n\"\"),\"\")","v":""},{"$f":"IFERROR(IF(OR(Table_NCInspection[[#This Row],[Line]]=\"\",INDEX(Table_NCInfo[],Table_NCInspection[[#This Row],[Line]],R$3)=\"\"),\"\",INDEX(Table_NCInfo[],Table_NCInspection[[#This Row],[Line]],R$3)),\"\")","v":""},{"$f":"IFERROR(IF(OR(Table_NCInspection[[#This Row],[Line]]=\"\",INDEX(Table_NCInfo[],Table_NCInspection[[#This Row],[Line]],S$3)=\"\"),\"\",INDEX(Table_NCInfo[],Table_NCInspection[[#This Row],[Line]],S$3)),\"\")","v":""}]
[null,{"$f":"IFERROR(IF(OR(Table_NCInspection[[#This Row],[Line]]=\"\",INDEX(Table_NCInfo[],Table_NCInspection[[#This Row],[Line]],B$3)=\"\"),\"\",INDEX(Table_NCInfo[],Table_NCInspection[[#This Row],[Line]],B$3)),\"\")","v":""},{"$f":"IFERROR(IF(OR(Table_NCInspection[[#This Row],[Line]]=\"\",INDEX(Table_NCInfo[],Table_NCInspection[[#This Row],[Line]],C$3)=\"\"),\"\",INDEX(Table_NCInfo[],Table_NCInspection[[#This Row],[Line]],C$3)),\"\")","v":""},{"$f":"IFERROR(IF(OR(Table_NCInspection[[#This Row],[Line]]=\"\",INDEX(Table_NCInfo[],Table_NCInspection[[#This Row],[Line]],D$3)=\"\"),\"\",INDEX(Table_NCInfo[],Table_NCInspection[[#This Row],[Line]],D$3)),\"\")","v":""},{"$f":"IF(OR(Table_NCInspection[[#This Row],[Line]]<=0,IFERROR(INDEX(Table_NCInfo[],$A48,E$3),\"\")=\"\"),\"\",IF(Table_NCInspection[[#This Row],[Zone Description]]=INDEX(Table_NCInfo[],Table_NCInspection[[#This Row],[Line]],$D$3),INDEX(Table_NCInfo[],Table_NCInspection[[#This Row],[Line]],E$3),INDEX(Table_IntLookups[Zone'#],MATCH(Table_NCInspection[[#This Row],[Zone Description]],Table_IntLookups[Dropdown],0))))","v":""},{"$f":"IF(OR(Table_NCInspection[[#This Row],[Line]]<=0,IFERROR(INDEX(Table_NCInfo[],Table_NCInspection[[#This Row],[Line]],F$3),\"\")=\"\"),\"\",IF(Table_NCInspection[[#This Row],[Zone Description]]=INDEX(Table_NCInfo[],Table_NCInspection[[#This Row],[Line]],$D$3),INDEX(Table_NCInfo[],Table_NCInspection[[#This Row],[Line]],F$3),IFERROR(VLOOKUP(Table_NCInspection[[#This Row],[Zone '#]],Table_IntLookups[],'Facility Information'!$AB$4,FALSE),0)*INDEX(Table_NCInfo[Baseline Wattage],MATCH(Table_NCInspection[[#This Row],[Line]],Table_NCInfo[Line],0)/VLOOKUP(INDEX(Table_NCInfo[Zone '#],MATCH(Table_NCInspection[[#This Row],[Line]],Table_NCInfo[Line],0)),Table_IntLookups[],'Facility Information'!$AB$4,FALSE),0)))","v":""},{"$f":"IFERROR(IF(OR(Table_NCInspection[[#This Row],[Line]]=\"\",INDEX(Table_NCInfo[],Table_NCInspection[[#This Row],[Line]],G$3)=\"\"),\"\",INDEX(Table_NCInfo[],Table_NCInspection[[#This Row],[Line]],G$3)),\"\")","v":""},null,{"$f":"IFERROR(IF(OR(Table_NCInspection[[#This Row],[Line]]=\"\",INDEX(Table_NCInfo[],Table_NCInspection[[#This Row],[Line]],I$3)=\"\"),\"\",INDEX(Table_NCInfo[],Table_NCInspection[[#This Row],[Line]],I$3)),\"\")","v":""},{"$f":"IFERROR(IF(OR(Table_NCInspection[[#This Row],[Line]]=\"\",INDEX(Table_NCInfo[],Table_NCInspection[[#This Row],[Line]],J$3)=\"\"),\"\",INDEX(Table_NCInfo[],Table_NCInspection[[#This Row],[Line]],J$3)),\"\")","v":""},{"$f":"IFERROR(IF(OR(Table_NCInspection[[#This Row],[Line]]=\"\",INDEX(Table_NCInfo[],Table_NCInspection[[#This Row],[Line]],K$3)=\"\"),\"\",INDEX(Table_NCInfo[],Table_NCInspection[[#This Row],[Line]],K$3)),\"\")","v":""},{"$f":"IFERROR(IF(OR(Table_NCInspection[[#This Row],[Line]]=\"\",INDEX(Table_NCInfo[],Table_NCInspection[[#This Row],[Line]],L$3)=\"\"),\"\",INDEX(Table_NCInfo[],Table_NCInspection[[#This Row],[Line]],L$3)),\"\")","v":""},{"$f":"IFERROR(IF(OR(Table_NCInspection[[#This Row],[Line]]=\"\",INDEX(Table_NCInfo[],Table_NCInspection[[#This Row],[Line]],M$3)=\"\"),\"\",INDEX(Table_NCInfo[],Table_NCInspection[[#This Row],[Line]],M$3)),\"\")","v":""},{"$f":"IFERROR(\nIFERROR(OFFSET(Table_TypWattage[[#Headers],[Technology]],MATCH($J48,Table_TypWattage[Technology],0)+MATCH($L48,INDIRECT(SUBSTITUTE(SUBSTITUTE($J48,\" \",\"_\"),\"-\",\"_\")),0)-1,MATCH($K48,'Measure Tables'!$Q$2:$V$2,0)+1),IF(Table_NCInspection[[#This Row],[Line]]<>\"\",IF(AND(Table_NCInspection[[#This Row],['# Lamps/ Fixture '[P']]]<>\"\",$K48>0,$L48>0),$K48*$L48,$L48),\"\")),\n\"\")","v":""},{"$f":"IFERROR(IF(OR(Table_NCInspection[[#This Row],[Line]]=\"\",INDEX(Table_NCInfo[],Table_NCInspection[[#This Row],[Line]],O$3)=\"\"),\"\",INDEX(Table_NCInfo[],Table_NCInspection[[#This Row],[Line]],O$3)),\"\")","v":""},{"$f":"IFERROR(IF(OR(Table_NCInspection[[#This Row],[Line]]=\"\",INDEX(Table_NCInfo[],Table_NCInspection[[#This Row],[Line]],P$3)=\"\"),\"\",INDEX(Table_NCInfo[],Table_NCInspection[[#This Row],[Line]],P$3)),\"\")","v":""},{"$f":"IFERROR(IF(Table_NCInspection[[#This Row],[Interior/ Exterior]]<>\"\",\n  CONCATENATE(\n  Table_NCInspection[[#This Row],[Interior/ Exterior]],\": \",\n  Table_NCInspection[[#This Row],[Fixture Technology '[P']]],\n  \" - \",Table_NCInspection[[#This Row],[Fixture Type '[P']]],\" [\",\n  IF(AND(Table_NCInspection[[#This Row],['# Lamps/ Fixture '[P']]]<>\"\",Table_NCInspection[[#This Row],['# Lamps/ Fixture '[P']]]>0),Table_NCInspection[[#This Row],['# Lamps/ Fixture '[P']]] & \"L - \" & Table_NCInspection[[#This Row],[Fixture/ Lamp Wattage '[P']]] & \"W\" & IF(Table_NCInspection[[#This Row],[Ballast/ Driver '[P']]]<>\"\",\" - \" & Table_NCInspection[[#This Row],[Ballast/ Driver '[P']]],\"\"),Table_NCInspection[[#This Row],[Fixture Wattage '[P']]] & \"W\"),\"]\",\n  IF(AND(Table_NCInspection[[#This Row],[Controls '[P']]]<>\"\"),\" - \" & Table_NCInspection[[#This Row],[Controls '[P']]],\"\")\n  ),\n\"\"),\"\")","v":""},{"$f":"IFERROR(IF(OR(Table_NCInspection[[#This Row],[Line]]=\"\",INDEX(Table_NCInfo[],Table_NCInspection[[#This Row],[Line]],R$3)=\"\"),\"\",INDEX(Table_NCInfo[],Table_NCInspection[[#This Row],[Line]],R$3)),\"\")","v":""},{"$f":"IFERROR(IF(OR(Table_NCInspection[[#This Row],[Line]]=\"\",INDEX(Table_NCInfo[],Table_NCInspection[[#This Row],[Line]],S$3)=\"\"),\"\",INDEX(Table_NCInfo[],Table_NCInspection[[#This Row],[Line]],S$3)),\"\")","v":""}]
[null,{"$f":"IFERROR(IF(OR(Table_NCInspection[[#This Row],[Line]]=\"\",INDEX(Table_NCInfo[],Table_NCInspection[[#This Row],[Line]],B$3)=\"\"),\"\",INDEX(Table_NCInfo[],Table_NCInspection[[#This Row],[Line]],B$3)),\"\")","v":""},{"$f":"IFERROR(IF(OR(Table_NCInspection[[#This Row],[Line]]=\"\",INDEX(Table_NCInfo[],Table_NCInspection[[#This Row],[Line]],C$3)=\"\"),\"\",INDEX(Table_NCInfo[],Table_NCInspection[[#This Row],[Line]],C$3)),\"\")","v":""},{"$f":"IFERROR(IF(OR(Table_NCInspection[[#This Row],[Line]]=\"\",INDEX(Table_NCInfo[],Table_NCInspection[[#This Row],[Line]],D$3)=\"\"),\"\",INDEX(Table_NCInfo[],Table_NCInspection[[#This Row],[Line]],D$3)),\"\")","v":""},{"$f":"IF(OR(Table_NCInspection[[#This Row],[Line]]<=0,IFERROR(INDEX(Table_NCInfo[],$A49,E$3),\"\")=\"\"),\"\",IF(Table_NCInspection[[#This Row],[Zone Description]]=INDEX(Table_NCInfo[],Table_NCInspection[[#This Row],[Line]],$D$3),INDEX(Table_NCInfo[],Table_NCInspection[[#This Row],[Line]],E$3),INDEX(Table_IntLookups[Zone'#],MATCH(Table_NCInspection[[#This Row],[Zone Description]],Table_IntLookups[Dropdown],0))))","v":""},{"$f":"IF(OR(Table_NCInspection[[#This Row],[Line]]<=0,IFERROR(INDEX(Table_NCInfo[],Table_NCInspection[[#This Row],[Line]],F$3),\"\")=\"\"),\"\",IF(Table_NCInspection[[#This Row],[Zone Description]]=INDEX(Table_NCInfo[],Table_NCInspection[[#This Row],[Line]],$D$3),INDEX(Table_NCInfo[],Table_NCInspection[[#This Row],[Line]],F$3),IFERROR(VLOOKUP(Table_NCInspection[[#This Row],[Zone '#]],Table_IntLookups[],'Facility Information'!$AB$4,FALSE),0)*INDEX(Table_NCInfo[Baseline Wattage],MATCH(Table_NCInspection[[#This Row],[Line]],Table_NCInfo[Line],0)/VLOOKUP(INDEX(Table_NCInfo[Zone '#],MATCH(Table_NCInspection[[#This Row],[Line]],Table_NCInfo[Line],0)),Table_IntLookups[],'Facility Information'!$AB$4,FALSE),0)))","v":""},{"$f":"IFERROR(IF(OR(Table_NCInspection[[#This Row],[Line]]=\"\",INDEX(Table_NCInfo[],Table_NCInspection[[#This Row],[Line]],G$3)=\"\"),\"\",INDEX(Table_NCInfo[],Table_NCInspection[[#This Row],[Line]],G$3)),\"\")","v":""},null,{"$f":"IFERROR(IF(OR(Table_NCInspection[[#This Row],[Line]]=\"\",INDEX(Table_NCInfo[],Table_NCInspection[[#This Row],[Line]],I$3)=\"\"),\"\",INDEX(Table_NCInfo[],Table_NCInspection[[#This Row],[Line]],I$3)),\"\")","v":""},{"$f":"IFERROR(IF(OR(Table_NCInspection[[#This Row],[Line]]=\"\",INDEX(Table_NCInfo[],Table_NCInspection[[#This Row],[Line]],J$3)=\"\"),\"\",INDEX(Table_NCInfo[],Table_NCInspection[[#This Row],[Line]],J$3)),\"\")","v":""},{"$f":"IFERROR(IF(OR(Table_NCInspection[[#This Row],[Line]]=\"\",INDEX(Table_NCInfo[],Table_NCInspection[[#This Row],[Line]],K$3)=\"\"),\"\",INDEX(Table_NCInfo[],Table_NCInspection[[#This Row],[Line]],K$3)),\"\")","v":""},{"$f":"IFERROR(IF(OR(Table_NCInspection[[#This Row],[Line]]=\"\",INDEX(Table_NCInfo[],Table_NCInspection[[#This Row],[Line]],L$3)=\"\"),\"\",INDEX(Table_NCInfo[],Table_NCInspection[[#This Row],[Line]],L$3)),\"\")","v":""},{"$f":"IFERROR(IF(OR(Table_NCInspection[[#This Row],[Line]]=\"\",INDEX(Table_NCInfo[],Table_NCInspection[[#This Row],[Line]],M$3)=\"\"),\"\",INDEX(Table_NCInfo[],Table_NCInspection[[#This Row],[Line]],M$3)),\"\")","v":""},{"$f":"IFERROR(\nIFERROR(OFFSET(Table_TypWattage[[#Headers],[Technology]],MATCH($J49,Table_TypWattage[Technology],0)+MATCH($L49,INDIRECT(SUBSTITUTE(SUBSTITUTE($J49,\" \",\"_\"),\"-\",\"_\")),0)-1,MATCH($K49,'Measure Tables'!$Q$2:$V$2,0)+1),IF(Table_NCInspection[[#This Row],[Line]]<>\"\",IF(AND(Table_NCInspection[[#This Row],['# Lamps/ Fixture '[P']]]<>\"\",$K49>0,$L49>0),$K49*$L49,$L49),\"\")),\n\"\")","v":""},{"$f":"IFERROR(IF(OR(Table_NCInspection[[#This Row],[Line]]=\"\",INDEX(Table_NCInfo[],Table_NCInspection[[#This Row],[Line]],O$3)=\"\"),\"\",INDEX(Table_NCInfo[],Table_NCInspection[[#This Row],[Line]],O$3)),\"\")","v":""},{"$f":"IFERROR(IF(OR(Table_NCInspection[[#This Row],[Line]]=\"\",INDEX(Table_NCInfo[],Table_NCInspection[[#This Row],[Line]],P$3)=\"\"),\"\",INDEX(Table_NCInfo[],Table_NCInspection[[#This Row],[Line]],P$3)),\"\")","v":""},{"$f":"IFERROR(IF(Table_NCInspection[[#This Row],[Interior/ Exterior]]<>\"\",\n  CONCATENATE(\n  Table_NCInspection[[#This Row],[Interior/ Exterior]],\": \",\n  Table_NCInspection[[#This Row],[Fixture Technology '[P']]],\n  \" - \",Table_NCInspection[[#This Row],[Fixture Type '[P']]],\" [\",\n  IF(AND(Table_NCInspection[[#This Row],['# Lamps/ Fixture '[P']]]<>\"\",Table_NCInspection[[#This Row],['# Lamps/ Fixture '[P']]]>0),Table_NCInspection[[#This Row],['# Lamps/ Fixture '[P']]] & \"L - \" & Table_NCInspection[[#This Row],[Fixture/ Lamp Wattage '[P']]] & \"W\" & IF(Table_NCInspection[[#This Row],[Ballast/ Driver '[P']]]<>\"\",\" - \" & Table_NCInspection[[#This Row],[Ballast/ Driver '[P']]],\"\"),Table_NCInspection[[#This Row],[Fixture Wattage '[P']]] & \"W\"),\"]\",\n  IF(AND(Table_NCInspection[[#This Row],[Controls '[P']]]<>\"\"),\" - \" & Table_NCInspection[[#This Row],[Controls '[P']]],\"\")\n  ),\n\"\"),\"\")","v":""},{"$f":"IFERROR(IF(OR(Table_NCInspection[[#This Row],[Line]]=\"\",INDEX(Table_NCInfo[],Table_NCInspection[[#This Row],[Line]],R$3)=\"\"),\"\",INDEX(Table_NCInfo[],Table_NCInspection[[#This Row],[Line]],R$3)),\"\")","v":""},{"$f":"IFERROR(IF(OR(Table_NCInspection[[#This Row],[Line]]=\"\",INDEX(Table_NCInfo[],Table_NCInspection[[#This Row],[Line]],S$3)=\"\"),\"\",INDEX(Table_NCInfo[],Table_NCInspection[[#This Row],[Line]],S$3)),\"\")","v":""}]
[null,{"$f":"IFERROR(IF(OR(Table_NCInspection[[#This Row],[Line]]=\"\",INDEX(Table_NCInfo[],Table_NCInspection[[#This Row],[Line]],B$3)=\"\"),\"\",INDEX(Table_NCInfo[],Table_NCInspection[[#This Row],[Line]],B$3)),\"\")","v":""},{"$f":"IFERROR(IF(OR(Table_NCInspection[[#This Row],[Line]]=\"\",INDEX(Table_NCInfo[],Table_NCInspection[[#This Row],[Line]],C$3)=\"\"),\"\",INDEX(Table_NCInfo[],Table_NCInspection[[#This Row],[Line]],C$3)),\"\")","v":""},{"$f":"IFERROR(IF(OR(Table_NCInspection[[#This Row],[Line]]=\"\",INDEX(Table_NCInfo[],Table_NCInspection[[#This Row],[Line]],D$3)=\"\"),\"\",INDEX(Table_NCInfo[],Table_NCInspection[[#This Row],[Line]],D$3)),\"\")","v":""},{"$f":"IF(OR(Table_NCInspection[[#This Row],[Line]]<=0,IFERROR(INDEX(Table_NCInfo[],$A50,E$3),\"\")=\"\"),\"\",IF(Table_NCInspection[[#This Row],[Zone Description]]=INDEX(Table_NCInfo[],Table_NCInspection[[#This Row],[Line]],$D$3),INDEX(Table_NCInfo[],Table_NCInspection[[#This Row],[Line]],E$3),INDEX(Table_IntLookups[Zone'#],MATCH(Table_NCInspection[[#This Row],[Zone Description]],Table_IntLookups[Dropdown],0))))","v":""},{"$f":"IF(OR(Table_NCInspection[[#This Row],[Line]]<=0,IFERROR(INDEX(Table_NCInfo[],Table_NCInspection[[#This Row],[Line]],F$3),\"\")=\"\"),\"\",IF(Table_NCInspection[[#This Row],[Zone Description]]=INDEX(Table_NCInfo[],Table_NCInspection[[#This Row],[Line]],$D$3),INDEX(Table_NCInfo[],Table_NCInspection[[#This Row],[Line]],F$3),IFERROR(VLOOKUP(Table_NCInspection[[#This Row],[Zone '#]],Table_IntLookups[],'Facility Information'!$AB$4,FALSE),0)*INDEX(Table_NCInfo[Baseline Wattage],MATCH(Table_NCInspection[[#This Row],[Line]],Table_NCInfo[Line],0)/VLOOKUP(INDEX(Table_NCInfo[Zone '#],MATCH(Table_NCInspection[[#This Row],[Line]],Table_NCInfo[Line],0)),Table_IntLookups[],'Facility Information'!$AB$4,FALSE),0)))","v":""},{"$f":"IFERROR(IF(OR(Table_NCInspection[[#This Row],[Line]]=\"\",INDEX(Table_NCInfo[],Table_NCInspection[[#This Row],[Line]],G$3)=\"\"),\"\",INDEX(Table_NCInfo[],Table_NCInspection[[#This Row],[Line]],G$3)),\"\")","v":""},null,{"$f":"IFERROR(IF(OR(Table_NCInspection[[#This Row],[Line]]=\"\",INDEX(Table_NCInfo[],Table_NCInspection[[#This Row],[Line]],I$3)=\"\"),\"\",INDEX(Table_NCInfo[],Table_NCInspection[[#This Row],[Line]],I$3)),\"\")","v":""},{"$f":"IFERROR(IF(OR(Table_NCInspection[[#This Row],[Line]]=\"\",INDEX(Table_NCInfo[],Table_NCInspection[[#This Row],[Line]],J$3)=\"\"),\"\",INDEX(Table_NCInfo[],Table_NCInspection[[#This Row],[Line]],J$3)),\"\")","v":""},{"$f":"IFERROR(IF(OR(Table_NCInspection[[#This Row],[Line]]=\"\",INDEX(Table_NCInfo[],Table_NCInspection[[#This Row],[Line]],K$3)=\"\"),\"\",INDEX(Table_NCInfo[],Table_NCInspection[[#This Row],[Line]],K$3)),\"\")","v":""},{"$f":"IFERROR(IF(OR(Table_NCInspection[[#This Row],[Line]]=\"\",INDEX(Table_NCInfo[],Table_NCInspection[[#This Row],[Line]],L$3)=\"\"),\"\",INDEX(Table_NCInfo[],Table_NCInspection[[#This Row],[Line]],L$3)),\"\")","v":""},{"$f":"IFERROR(IF(OR(Table_NCInspection[[#This Row],[Line]]=\"\",INDEX(Table_NCInfo[],Table_NCInspection[[#This Row],[Line]],M$3)=\"\"),\"\",INDEX(Table_NCInfo[],Table_NCInspection[[#This Row],[Line]],M$3)),\"\")","v":""},{"$f":"IFERROR(\nIFERROR(OFFSET(Table_TypWattage[[#Headers],[Technology]],MATCH($J50,Table_TypWattage[Technology],0)+MATCH($L50,INDIRECT(SUBSTITUTE(SUBSTITUTE($J50,\" \",\"_\"),\"-\",\"_\")),0)-1,MATCH($K50,'Measure Tables'!$Q$2:$V$2,0)+1),IF(Table_NCInspection[[#This Row],[Line]]<>\"\",IF(AND(Table_NCInspection[[#This Row],['# Lamps/ Fixture '[P']]]<>\"\",$K50>0,$L50>0),$K50*$L50,$L50),\"\")),\n\"\")","v":""},{"$f":"IFERROR(IF(OR(Table_NCInspection[[#This Row],[Line]]=\"\",INDEX(Table_NCInfo[],Table_NCInspection[[#This Row],[Line]],O$3)=\"\"),\"\",INDEX(Table_NCInfo[],Table_NCInspection[[#This Row],[Line]],O$3)),\"\")","v":""},{"$f":"IFERROR(IF(OR(Table_NCInspection[[#This Row],[Line]]=\"\",INDEX(Table_NCInfo[],Table_NCInspection[[#This Row],[Line]],P$3)=\"\"),\"\",INDEX(Table_NCInfo[],Table_NCInspection[[#This Row],[Line]],P$3)),\"\")","v":""},{"$f":"IFERROR(IF(Table_NCInspection[[#This Row],[Interior/ Exterior]]<>\"\",\n  CONCATENATE(\n  Table_NCInspection[[#This Row],[Interior/ Exterior]],\": \",\n  Table_NCInspection[[#This Row],[Fixture Technology '[P']]],\n  \" - \",Table_NCInspection[[#This Row],[Fixture Type '[P']]],\" [\",\n  IF(AND(Table_NCInspection[[#This Row],['# Lamps/ Fixture '[P']]]<>\"\",Table_NCInspection[[#This Row],['# Lamps/ Fixture '[P']]]>0),Table_NCInspection[[#This Row],['# Lamps/ Fixture '[P']]] & \"L - \" & Table_NCInspection[[#This Row],[Fixture/ Lamp Wattage '[P']]] & \"W\" & IF(Table_NCInspection[[#This Row],[Ballast/ Driver '[P']]]<>\"\",\" - \" & Table_NCInspection[[#This Row],[Ballast/ Driver '[P']]],\"\"),Table_NCInspection[[#This Row],[Fixture Wattage '[P']]] & \"W\"),\"]\",\n  IF(AND(Table_NCInspection[[#This Row],[Controls '[P']]]<>\"\"),\" - \" & Table_NCInspection[[#This Row],[Controls '[P']]],\"\")\n  ),\n\"\"),\"\")","v":""},{"$f":"IFERROR(IF(OR(Table_NCInspection[[#This Row],[Line]]=\"\",INDEX(Table_NCInfo[],Table_NCInspection[[#This Row],[Line]],R$3)=\"\"),\"\",INDEX(Table_NCInfo[],Table_NCInspection[[#This Row],[Line]],R$3)),\"\")","v":""},{"$f":"IFERROR(IF(OR(Table_NCInspection[[#This Row],[Line]]=\"\",INDEX(Table_NCInfo[],Table_NCInspection[[#This Row],[Line]],S$3)=\"\"),\"\",INDEX(Table_NCInfo[],Table_NCInspection[[#This Row],[Line]],S$3)),\"\")","v":""}]
[null,{"$f":"IFERROR(IF(OR(Table_NCInspection[[#This Row],[Line]]=\"\",INDEX(Table_NCInfo[],Table_NCInspection[[#This Row],[Line]],B$3)=\"\"),\"\",INDEX(Table_NCInfo[],Table_NCInspection[[#This Row],[Line]],B$3)),\"\")","v":""},{"$f":"IFERROR(IF(OR(Table_NCInspection[[#This Row],[Line]]=\"\",INDEX(Table_NCInfo[],Table_NCInspection[[#This Row],[Line]],C$3)=\"\"),\"\",INDEX(Table_NCInfo[],Table_NCInspection[[#This Row],[Line]],C$3)),\"\")","v":""},{"$f":"IFERROR(IF(OR(Table_NCInspection[[#This Row],[Line]]=\"\",INDEX(Table_NCInfo[],Table_NCInspection[[#This Row],[Line]],D$3)=\"\"),\"\",INDEX(Table_NCInfo[],Table_NCInspection[[#This Row],[Line]],D$3)),\"\")","v":""},{"$f":"IF(OR(Table_NCInspection[[#This Row],[Line]]<=0,IFERROR(INDEX(Table_NCInfo[],$A51,E$3),\"\")=\"\"),\"\",IF(Table_NCInspection[[#This Row],[Zone Description]]=INDEX(Table_NCInfo[],Table_NCInspection[[#This Row],[Line]],$D$3),INDEX(Table_NCInfo[],Table_NCInspection[[#This Row],[Line]],E$3),INDEX(Table_IntLookups[Zone'#],MATCH(Table_NCInspection[[#This Row],[Zone Description]],Table_IntLookups[Dropdown],0))))","v":""},{"$f":"IF(OR(Table_NCInspection[[#This Row],[Line]]<=0,IFERROR(INDEX(Table_NCInfo[],Table_NCInspection[[#This Row],[Line]],F$3),\"\")=\"\"),\"\",IF(Table_NCInspection[[#This Row],[Zone Description]]=INDEX(Table_NCInfo[],Table_NCInspection[[#This Row],[Line]],$D$3),INDEX(Table_NCInfo[],Table_NCInspection[[#This Row],[Line]],F$3),IFERROR(VLOOKUP(Table_NCInspection[[#This Row],[Zone '#]],Table_IntLookups[],'Facility Information'!$AB$4,FALSE),0)*INDEX(Table_NCInfo[Baseline Wattage],MATCH(Table_NCInspection[[#This Row],[Line]],Table_NCInfo[Line],0)/VLOOKUP(INDEX(Table_NCInfo[Zone '#],MATCH(Table_NCInspection[[#This Row],[Line]],Table_NCInfo[Line],0)),Table_IntLookups[],'Facility Information'!$AB$4,FALSE),0)))","v":""},{"$f":"IFERROR(IF(OR(Table_NCInspection[[#This Row],[Line]]=\"\",INDEX(Table_NCInfo[],Table_NCInspection[[#This Row],[Line]],G$3)=\"\"),\"\",INDEX(Table_NCInfo[],Table_NCInspection[[#This Row],[Line]],G$3)),\"\")","v":""},null,{"$f":"IFERROR(IF(OR(Table_NCInspection[[#This Row],[Line]]=\"\",INDEX(Table_NCInfo[],Table_NCInspection[[#This Row],[Line]],I$3)=\"\"),\"\",INDEX(Table_NCInfo[],Table_NCInspection[[#This Row],[Line]],I$3)),\"\")","v":""},{"$f":"IFERROR(IF(OR(Table_NCInspection[[#This Row],[Line]]=\"\",INDEX(Table_NCInfo[],Table_NCInspection[[#This Row],[Line]],J$3)=\"\"),\"\",INDEX(Table_NCInfo[],Table_NCInspection[[#This Row],[Line]],J$3)),\"\")","v":""},{"$f":"IFERROR(IF(OR(Table_NCInspection[[#This Row],[Line]]=\"\",INDEX(Table_NCInfo[],Table_NCInspection[[#This Row],[Line]],K$3)=\"\"),\"\",INDEX(Table_NCInfo[],Table_NCInspection[[#This Row],[Line]],K$3)),\"\")","v":""},{"$f":"IFERROR(IF(OR(Table_NCInspection[[#This Row],[Line]]=\"\",INDEX(Table_NCInfo[],Table_NCInspection[[#This Row],[Line]],L$3)=\"\"),\"\",INDEX(Table_NCInfo[],Table_NCInspection[[#This Row],[Line]],L$3)),\"\")","v":""},{"$f":"IFERROR(IF(OR(Table_NCInspection[[#This Row],[Line]]=\"\",INDEX(Table_NCInfo[],Table_NCInspection[[#This Row],[Line]],M$3)=\"\"),\"\",INDEX(Table_NCInfo[],Table_NCInspection[[#This Row],[Line]],M$3)),\"\")","v":""},{"$f":"IFERROR(\nIFERROR(OFFSET(Table_TypWattage[[#Headers],[Technology]],MATCH($J51,Table_TypWattage[Technology],0)+MATCH($L51,INDIRECT(SUBSTITUTE(SUBSTITUTE($J51,\" \",\"_\"),\"-\",\"_\")),0)-1,MATCH($K51,'Measure Tables'!$Q$2:$V$2,0)+1),IF(Table_NCInspection[[#This Row],[Line]]<>\"\",IF(AND(Table_NCInspection[[#This Row],['# Lamps/ Fixture '[P']]]<>\"\",$K51>0,$L51>0),$K51*$L51,$L51),\"\")),\n\"\")","v":""},{"$f":"IFERROR(IF(OR(Table_NCInspection[[#This Row],[Line]]=\"\",INDEX(Table_NCInfo[],Table_NCInspection[[#This Row],[Line]],O$3)=\"\"),\"\",INDEX(Table_NCInfo[],Table_NCInspection[[#This Row],[Line]],O$3)),\"\")","v":""},{"$f":"IFERROR(IF(OR(Table_NCInspection[[#This Row],[Line]]=\"\",INDEX(Table_NCInfo[],Table_NCInspection[[#This Row],[Line]],P$3)=\"\"),\"\",INDEX(Table_NCInfo[],Table_NCInspection[[#This Row],[Line]],P$3)),\"\")","v":""},{"$f":"IFERROR(IF(Table_NCInspection[[#This Row],[Interior/ Exterior]]<>\"\",\n  CONCATENATE(\n  Table_NCInspection[[#This Row],[Interior/ Exterior]],\": \",\n  Table_NCInspection[[#This Row],[Fixture Technology '[P']]],\n  \" - \",Table_NCInspection[[#This Row],[Fixture Type '[P']]],\" [\",\n  IF(AND(Table_NCInspection[[#This Row],['# Lamps/ Fixture '[P']]]<>\"\",Table_NCInspection[[#This Row],['# Lamps/ Fixture '[P']]]>0),Table_NCInspection[[#This Row],['# Lamps/ Fixture '[P']]] & \"L - \" & Table_NCInspection[[#This Row],[Fixture/ Lamp Wattage '[P']]] & \"W\" & IF(Table_NCInspection[[#This Row],[Ballast/ Driver '[P']]]<>\"\",\" - \" & Table_NCInspection[[#This Row],[Ballast/ Driver '[P']]],\"\"),Table_NCInspection[[#This Row],[Fixture Wattage '[P']]] & \"W\"),\"]\",\n  IF(AND(Table_NCInspection[[#This Row],[Controls '[P']]]<>\"\"),\" - \" & Table_NCInspection[[#This Row],[Controls '[P']]],\"\")\n  ),\n\"\"),\"\")","v":""},{"$f":"IFERROR(IF(OR(Table_NCInspection[[#This Row],[Line]]=\"\",INDEX(Table_NCInfo[],Table_NCInspection[[#This Row],[Line]],R$3)=\"\"),\"\",INDEX(Table_NCInfo[],Table_NCInspection[[#This Row],[Line]],R$3)),\"\")","v":""},{"$f":"IFERROR(IF(OR(Table_NCInspection[[#This Row],[Line]]=\"\",INDEX(Table_NCInfo[],Table_NCInspection[[#This Row],[Line]],S$3)=\"\"),\"\",INDEX(Table_NCInfo[],Table_NCInspection[[#This Row],[Line]],S$3)),\"\")","v":""}]
[null,{"$f":"IFERROR(IF(OR(Table_NCInspection[[#This Row],[Line]]=\"\",INDEX(Table_NCInfo[],Table_NCInspection[[#This Row],[Line]],B$3)=\"\"),\"\",INDEX(Table_NCInfo[],Table_NCInspection[[#This Row],[Line]],B$3)),\"\")","v":""},{"$f":"IFERROR(IF(OR(Table_NCInspection[[#This Row],[Line]]=\"\",INDEX(Table_NCInfo[],Table_NCInspection[[#This Row],[Line]],C$3)=\"\"),\"\",INDEX(Table_NCInfo[],Table_NCInspection[[#This Row],[Line]],C$3)),\"\")","v":""},{"$f":"IFERROR(IF(OR(Table_NCInspection[[#This Row],[Line]]=\"\",INDEX(Table_NCInfo[],Table_NCInspection[[#This Row],[Line]],D$3)=\"\"),\"\",INDEX(Table_NCInfo[],Table_NCInspection[[#This Row],[Line]],D$3)),\"\")","v":""},{"$f":"IF(OR(Table_NCInspection[[#This Row],[Line]]<=0,IFERROR(INDEX(Table_NCInfo[],$A52,E$3),\"\")=\"\"),\"\",IF(Table_NCInspection[[#This Row],[Zone Description]]=INDEX(Table_NCInfo[],Table_NCInspection[[#This Row],[Line]],$D$3),INDEX(Table_NCInfo[],Table_NCInspection[[#This Row],[Line]],E$3),INDEX(Table_IntLookups[Zone'#],MATCH(Table_NCInspection[[#This Row],[Zone Description]],Table_IntLookups[Dropdown],0))))","v":""},{"$f":"IF(OR(Table_NCInspection[[#This Row],[Line]]<=0,IFERROR(INDEX(Table_NCInfo[],Table_NCInspection[[#This Row],[Line]],F$3),\"\")=\"\"),\"\",IF(Table_NCInspection[[#This Row],[Zone Description]]=INDEX(Table_NCInfo[],Table_NCInspection[[#This Row],[Line]],$D$3),INDEX(Table_NCInfo[],Table_NCInspection[[#This Row],[Line]],F$3),IFERROR(VLOOKUP(Table_NCInspection[[#This Row],[Zone '#]],Table_IntLookups[],'Facility Information'!$AB$4,FALSE),0)*INDEX(Table_NCInfo[Baseline Wattage],MATCH(Table_NCInspection[[#This Row],[Line]],Table_NCInfo[Line],0)/VLOOKUP(INDEX(Table_NCInfo[Zone '#],MATCH(Table_NCInspection[[#This Row],[Line]],Table_NCInfo[Line],0)),Table_IntLookups[],'Facility Information'!$AB$4,FALSE),0)))","v":""},{"$f":"IFERROR(IF(OR(Table_NCInspection[[#This Row],[Line]]=\"\",INDEX(Table_NCInfo[],Table_NCInspection[[#This Row],[Line]],G$3)=\"\"),\"\",INDEX(Table_NCInfo[],Table_NCInspection[[#This Row],[Line]],G$3)),\"\")","v":""},null,{"$f":"IFERROR(IF(OR(Table_NCInspection[[#This Row],[Line]]=\"\",INDEX(Table_NCInfo[],Table_NCInspection[[#This Row],[Line]],I$3)=\"\"),\"\",INDEX(Table_NCInfo[],Table_NCInspection[[#This Row],[Line]],I$3)),\"\")","v":""},{"$f":"IFERROR(IF(OR(Table_NCInspection[[#This Row],[Line]]=\"\",INDEX(Table_NCInfo[],Table_NCInspection[[#This Row],[Line]],J$3)=\"\"),\"\",INDEX(Table_NCInfo[],Table_NCInspection[[#This Row],[Line]],J$3)),\"\")","v":""},{"$f":"IFERROR(IF(OR(Table_NCInspection[[#This Row],[Line]]=\"\",INDEX(Table_NCInfo[],Table_NCInspection[[#This Row],[Line]],K$3)=\"\"),\"\",INDEX(Table_NCInfo[],Table_NCInspection[[#This Row],[Line]],K$3)),\"\")","v":""},{"$f":"IFERROR(IF(OR(Table_NCInspection[[#This Row],[Line]]=\"\",INDEX(Table_NCInfo[],Table_NCInspection[[#This Row],[Line]],L$3)=\"\"),\"\",INDEX(Table_NCInfo[],Table_NCInspection[[#This Row],[Line]],L$3)),\"\")","v":""},{"$f":"IFERROR(IF(OR(Table_NCInspection[[#This Row],[Line]]=\"\",INDEX(Table_NCInfo[],Table_NCInspection[[#This Row],[Line]],M$3)=\"\"),\"\",INDEX(Table_NCInfo[],Table_NCInspection[[#This Row],[Line]],M$3)),\"\")","v":""},{"$f":"IFERROR(\nIFERROR(OFFSET(Table_TypWattage[[#Headers],[Technology]],MATCH($J52,Table_TypWattage[Technology],0)+MATCH($L52,INDIRECT(SUBSTITUTE(SUBSTITUTE($J52,\" \",\"_\"),\"-\",\"_\")),0)-1,MATCH($K52,'Measure Tables'!$Q$2:$V$2,0)+1),IF(Table_NCInspection[[#This Row],[Line]]<>\"\",IF(AND(Table_NCInspection[[#This Row],['# Lamps/ Fixture '[P']]]<>\"\",$K52>0,$L52>0),$K52*$L52,$L52),\"\")),\n\"\")","v":""},{"$f":"IFERROR(IF(OR(Table_NCInspection[[#This Row],[Line]]=\"\",INDEX(Table_NCInfo[],Table_NCInspection[[#This Row],[Line]],O$3)=\"\"),\"\",INDEX(Table_NCInfo[],Table_NCInspection[[#This Row],[Line]],O$3)),\"\")","v":""},{"$f":"IFERROR(IF(OR(Table_NCInspection[[#This Row],[Line]]=\"\",INDEX(Table_NCInfo[],Table_NCInspection[[#This Row],[Line]],P$3)=\"\"),\"\",INDEX(Table_NCInfo[],Table_NCInspection[[#This Row],[Line]],P$3)),\"\")","v":""},{"$f":"IFERROR(IF(Table_NCInspection[[#This Row],[Interior/ Exterior]]<>\"\",\n  CONCATENATE(\n  Table_NCInspection[[#This Row],[Interior/ Exterior]],\": \",\n  Table_NCInspection[[#This Row],[Fixture Technology '[P']]],\n  \" - \",Table_NCInspection[[#This Row],[Fixture Type '[P']]],\" [\",\n  IF(AND(Table_NCInspection[[#This Row],['# Lamps/ Fixture '[P']]]<>\"\",Table_NCInspection[[#This Row],['# Lamps/ Fixture '[P']]]>0),Table_NCInspection[[#This Row],['# Lamps/ Fixture '[P']]] & \"L - \" & Table_NCInspection[[#This Row],[Fixture/ Lamp Wattage '[P']]] & \"W\" & IF(Table_NCInspection[[#This Row],[Ballast/ Driver '[P']]]<>\"\",\" - \" & Table_NCInspection[[#This Row],[Ballast/ Driver '[P']]],\"\"),Table_NCInspection[[#This Row],[Fixture Wattage '[P']]] & \"W\"),\"]\",\n  IF(AND(Table_NCInspection[[#This Row],[Controls '[P']]]<>\"\"),\" - \" & Table_NCInspection[[#This Row],[Controls '[P']]],\"\")\n  ),\n\"\"),\"\")","v":""},{"$f":"IFERROR(IF(OR(Table_NCInspection[[#This Row],[Line]]=\"\",INDEX(Table_NCInfo[],Table_NCInspection[[#This Row],[Line]],R$3)=\"\"),\"\",INDEX(Table_NCInfo[],Table_NCInspection[[#This Row],[Line]],R$3)),\"\")","v":""},{"$f":"IFERROR(IF(OR(Table_NCInspection[[#This Row],[Line]]=\"\",INDEX(Table_NCInfo[],Table_NCInspection[[#This Row],[Line]],S$3)=\"\"),\"\",INDEX(Table_NCInfo[],Table_NCInspection[[#This Row],[Line]],S$3)),\"\")","v":""}]
[null,{"$f":"IFERROR(IF(OR(Table_NCInspection[[#This Row],[Line]]=\"\",INDEX(Table_NCInfo[],Table_NCInspection[[#This Row],[Line]],B$3)=\"\"),\"\",INDEX(Table_NCInfo[],Table_NCInspection[[#This Row],[Line]],B$3)),\"\")","v":""},{"$f":"IFERROR(IF(OR(Table_NCInspection[[#This Row],[Line]]=\"\",INDEX(Table_NCInfo[],Table_NCInspection[[#This Row],[Line]],C$3)=\"\"),\"\",INDEX(Table_NCInfo[],Table_NCInspection[[#This Row],[Line]],C$3)),\"\")","v":""},{"$f":"IFERROR(IF(OR(Table_NCInspection[[#This Row],[Line]]=\"\",INDEX(Table_NCInfo[],Table_NCInspection[[#This Row],[Line]],D$3)=\"\"),\"\",INDEX(Table_NCInfo[],Table_NCInspection[[#This Row],[Line]],D$3)),\"\")","v":""},{"$f":"IF(OR(Table_NCInspection[[#This Row],[Line]]<=0,IFERROR(INDEX(Table_NCInfo[],$A53,E$3),\"\")=\"\"),\"\",IF(Table_NCInspection[[#This Row],[Zone Description]]=INDEX(Table_NCInfo[],Table_NCInspection[[#This Row],[Line]],$D$3),INDEX(Table_NCInfo[],Table_NCInspection[[#This Row],[Line]],E$3),INDEX(Table_IntLookups[Zone'#],MATCH(Table_NCInspection[[#This Row],[Zone Description]],Table_IntLookups[Dropdown],0))))","v":""},{"$f":"IF(OR(Table_NCInspection[[#This Row],[Line]]<=0,IFERROR(INDEX(Table_NCInfo[],Table_NCInspection[[#This Row],[Line]],F$3),\"\")=\"\"),\"\",IF(Table_NCInspection[[#This Row],[Zone Description]]=INDEX(Table_NCInfo[],Table_NCInspection[[#This Row],[Line]],$D$3),INDEX(Table_NCInfo[],Table_NCInspection[[#This Row],[Line]],F$3),IFERROR(VLOOKUP(Table_NCInspection[[#This Row],[Zone '#]],Table_IntLookups[],'Facility Information'!$AB$4,FALSE),0)*INDEX(Table_NCInfo[Baseline Wattage],MATCH(Table_NCInspection[[#This Row],[Line]],Table_NCInfo[Line],0)/VLOOKUP(INDEX(Table_NCInfo[Zone '#],MATCH(Table_NCInspection[[#This Row],[Line]],Table_NCInfo[Line],0)),Table_IntLookups[],'Facility Information'!$AB$4,FALSE),0)))","v":""},{"$f":"IFERROR(IF(OR(Table_NCInspection[[#This Row],[Line]]=\"\",INDEX(Table_NCInfo[],Table_NCInspection[[#This Row],[Line]],G$3)=\"\"),\"\",INDEX(Table_NCInfo[],Table_NCInspection[[#This Row],[Line]],G$3)),\"\")","v":""},null,{"$f":"IFERROR(IF(OR(Table_NCInspection[[#This Row],[Line]]=\"\",INDEX(Table_NCInfo[],Table_NCInspection[[#This Row],[Line]],I$3)=\"\"),\"\",INDEX(Table_NCInfo[],Table_NCInspection[[#This Row],[Line]],I$3)),\"\")","v":""},{"$f":"IFERROR(IF(OR(Table_NCInspection[[#This Row],[Line]]=\"\",INDEX(Table_NCInfo[],Table_NCInspection[[#This Row],[Line]],J$3)=\"\"),\"\",INDEX(Table_NCInfo[],Table_NCInspection[[#This Row],[Line]],J$3)),\"\")","v":""},{"$f":"IFERROR(IF(OR(Table_NCInspection[[#This Row],[Line]]=\"\",INDEX(Table_NCInfo[],Table_NCInspection[[#This Row],[Line]],K$3)=\"\"),\"\",INDEX(Table_NCInfo[],Table_NCInspection[[#This Row],[Line]],K$3)),\"\")","v":""},{"$f":"IFERROR(IF(OR(Table_NCInspection[[#This Row],[Line]]=\"\",INDEX(Table_NCInfo[],Table_NCInspection[[#This Row],[Line]],L$3)=\"\"),\"\",INDEX(Table_NCInfo[],Table_NCInspection[[#This Row],[Line]],L$3)),\"\")","v":""},{"$f":"IFERROR(IF(OR(Table_NCInspection[[#This Row],[Line]]=\"\",INDEX(Table_NCInfo[],Table_NCInspection[[#This Row],[Line]],M$3)=\"\"),\"\",INDEX(Table_NCInfo[],Table_NCInspection[[#This Row],[Line]],M$3)),\"\")","v":""},{"$f":"IFERROR(\nIFERROR(OFFSET(Table_TypWattage[[#Headers],[Technology]],MATCH($J53,Table_TypWattage[Technology],0)+MATCH($L53,INDIRECT(SUBSTITUTE(SUBSTITUTE($J53,\" \",\"_\"),\"-\",\"_\")),0)-1,MATCH($K53,'Measure Tables'!$Q$2:$V$2,0)+1),IF(Table_NCInspection[[#This Row],[Line]]<>\"\",IF(AND(Table_NCInspection[[#This Row],['# Lamps/ Fixture '[P']]]<>\"\",$K53>0,$L53>0),$K53*$L53,$L53),\"\")),\n\"\")","v":""},{"$f":"IFERROR(IF(OR(Table_NCInspection[[#This Row],[Line]]=\"\",INDEX(Table_NCInfo[],Table_NCInspection[[#This Row],[Line]],O$3)=\"\"),\"\",INDEX(Table_NCInfo[],Table_NCInspection[[#This Row],[Line]],O$3)),\"\")","v":""},{"$f":"IFERROR(IF(OR(Table_NCInspection[[#This Row],[Line]]=\"\",INDEX(Table_NCInfo[],Table_NCInspection[[#This Row],[Line]],P$3)=\"\"),\"\",INDEX(Table_NCInfo[],Table_NCInspection[[#This Row],[Line]],P$3)),\"\")","v":""},{"$f":"IFERROR(IF(Table_NCInspection[[#This Row],[Interior/ Exterior]]<>\"\",\n  CONCATENATE(\n  Table_NCInspection[[#This Row],[Interior/ Exterior]],\": \",\n  Table_NCInspection[[#This Row],[Fixture Technology '[P']]],\n  \" - \",Table_NCInspection[[#This Row],[Fixture Type '[P']]],\" [\",\n  IF(AND(Table_NCInspection[[#This Row],['# Lamps/ Fixture '[P']]]<>\"\",Table_NCInspection[[#This Row],['# Lamps/ Fixture '[P']]]>0),Table_NCInspection[[#This Row],['# Lamps/ Fixture '[P']]] & \"L - \" & Table_NCInspection[[#This Row],[Fixture/ Lamp Wattage '[P']]] & \"W\" & IF(Table_NCInspection[[#This Row],[Ballast/ Driver '[P']]]<>\"\",\" - \" & Table_NCInspection[[#This Row],[Ballast/ Driver '[P']]],\"\"),Table_NCInspection[[#This Row],[Fixture Wattage '[P']]] & \"W\"),\"]\",\n  IF(AND(Table_NCInspection[[#This Row],[Controls '[P']]]<>\"\"),\" - \" & Table_NCInspection[[#This Row],[Controls '[P']]],\"\")\n  ),\n\"\"),\"\")","v":""},{"$f":"IFERROR(IF(OR(Table_NCInspection[[#This Row],[Line]]=\"\",INDEX(Table_NCInfo[],Table_NCInspection[[#This Row],[Line]],R$3)=\"\"),\"\",INDEX(Table_NCInfo[],Table_NCInspection[[#This Row],[Line]],R$3)),\"\")","v":""},{"$f":"IFERROR(IF(OR(Table_NCInspection[[#This Row],[Line]]=\"\",INDEX(Table_NCInfo[],Table_NCInspection[[#This Row],[Line]],S$3)=\"\"),\"\",INDEX(Table_NCInfo[],Table_NCInspection[[#This Row],[Line]],S$3)),\"\")","v":""}]
[null,{"$f":"IFERROR(IF(OR(Table_NCInspection[[#This Row],[Line]]=\"\",INDEX(Table_NCInfo[],Table_NCInspection[[#This Row],[Line]],B$3)=\"\"),\"\",INDEX(Table_NCInfo[],Table_NCInspection[[#This Row],[Line]],B$3)),\"\")","v":""},{"$f":"IFERROR(IF(OR(Table_NCInspection[[#This Row],[Line]]=\"\",INDEX(Table_NCInfo[],Table_NCInspection[[#This Row],[Line]],C$3)=\"\"),\"\",INDEX(Table_NCInfo[],Table_NCInspection[[#This Row],[Line]],C$3)),\"\")","v":""},{"$f":"IFERROR(IF(OR(Table_NCInspection[[#This Row],[Line]]=\"\",INDEX(Table_NCInfo[],Table_NCInspection[[#This Row],[Line]],D$3)=\"\"),\"\",INDEX(Table_NCInfo[],Table_NCInspection[[#This Row],[Line]],D$3)),\"\")","v":""},{"$f":"IF(OR(Table_NCInspection[[#This Row],[Line]]<=0,IFERROR(INDEX(Table_NCInfo[],$A54,E$3),\"\")=\"\"),\"\",IF(Table_NCInspection[[#This Row],[Zone Description]]=INDEX(Table_NCInfo[],Table_NCInspection[[#This Row],[Line]],$D$3),INDEX(Table_NCInfo[],Table_NCInspection[[#This Row],[Line]],E$3),INDEX(Table_IntLookups[Zone'#],MATCH(Table_NCInspection[[#This Row],[Zone Description]],Table_IntLookups[Dropdown],0))))","v":""},{"$f":"IF(OR(Table_NCInspection[[#This Row],[Line]]<=0,IFERROR(INDEX(Table_NCInfo[],Table_NCInspection[[#This Row],[Line]],F$3),\"\")=\"\"),\"\",IF(Table_NCInspection[[#This Row],[Zone Description]]=INDEX(Table_NCInfo[],Table_NCInspection[[#This Row],[Line]],$D$3),INDEX(Table_NCInfo[],Table_NCInspection[[#This Row],[Line]],F$3),IFERROR(VLOOKUP(Table_NCInspection[[#This Row],[Zone '#]],Table_IntLookups[],'Facility Information'!$AB$4,FALSE),0)*INDEX(Table_NCInfo[Baseline Wattage],MATCH(Table_NCInspection[[#This Row],[Line]],Table_NCInfo[Line],0)/VLOOKUP(INDEX(Table_NCInfo[Zone '#],MATCH(Table_NCInspection[[#This Row],[Line]],Table_NCInfo[Line],0)),Table_IntLookups[],'Facility Information'!$AB$4,FALSE),0)))","v":""},{"$f":"IFERROR(IF(OR(Table_NCInspection[[#This Row],[Line]]=\"\",INDEX(Table_NCInfo[],Table_NCInspection[[#This Row],[Line]],G$3)=\"\"),\"\",INDEX(Table_NCInfo[],Table_NCInspection[[#This Row],[Line]],G$3)),\"\")","v":""},null,{"$f":"IFERROR(IF(OR(Table_NCInspection[[#This Row],[Line]]=\"\",INDEX(Table_NCInfo[],Table_NCInspection[[#This Row],[Line]],I$3)=\"\"),\"\",INDEX(Table_NCInfo[],Table_NCInspection[[#This Row],[Line]],I$3)),\"\")","v":""},{"$f":"IFERROR(IF(OR(Table_NCInspection[[#This Row],[Line]]=\"\",INDEX(Table_NCInfo[],Table_NCInspection[[#This Row],[Line]],J$3)=\"\"),\"\",INDEX(Table_NCInfo[],Table_NCInspection[[#This Row],[Line]],J$3)),\"\")","v":""},{"$f":"IFERROR(IF(OR(Table_NCInspection[[#This Row],[Line]]=\"\",INDEX(Table_NCInfo[],Table_NCInspection[[#This Row],[Line]],K$3)=\"\"),\"\",INDEX(Table_NCInfo[],Table_NCInspection[[#This Row],[Line]],K$3)),\"\")","v":""},{"$f":"IFERROR(IF(OR(Table_NCInspection[[#This Row],[Line]]=\"\",INDEX(Table_NCInfo[],Table_NCInspection[[#This Row],[Line]],L$3)=\"\"),\"\",INDEX(Table_NCInfo[],Table_NCInspection[[#This Row],[Line]],L$3)),\"\")","v":""},{"$f":"IFERROR(IF(OR(Table_NCInspection[[#This Row],[Line]]=\"\",INDEX(Table_NCInfo[],Table_NCInspection[[#This Row],[Line]],M$3)=\"\"),\"\",INDEX(Table_NCInfo[],Table_NCInspection[[#This Row],[Line]],M$3)),\"\")","v":""},{"$f":"IFERROR(\nIFERROR(OFFSET(Table_TypWattage[[#Headers],[Technology]],MATCH($J54,Table_TypWattage[Technology],0)+MATCH($L54,INDIRECT(SUBSTITUTE(SUBSTITUTE($J54,\" \",\"_\"),\"-\",\"_\")),0)-1,MATCH($K54,'Measure Tables'!$Q$2:$V$2,0)+1),IF(Table_NCInspection[[#This Row],[Line]]<>\"\",IF(AND(Table_NCInspection[[#This Row],['# Lamps/ Fixture '[P']]]<>\"\",$K54>0,$L54>0),$K54*$L54,$L54),\"\")),\n\"\")","v":""},{"$f":"IFERROR(IF(OR(Table_NCInspection[[#This Row],[Line]]=\"\",INDEX(Table_NCInfo[],Table_NCInspection[[#This Row],[Line]],O$3)=\"\"),\"\",INDEX(Table_NCInfo[],Table_NCInspection[[#This Row],[Line]],O$3)),\"\")","v":""},{"$f":"IFERROR(IF(OR(Table_NCInspection[[#This Row],[Line]]=\"\",INDEX(Table_NCInfo[],Table_NCInspection[[#This Row],[Line]],P$3)=\"\"),\"\",INDEX(Table_NCInfo[],Table_NCInspection[[#This Row],[Line]],P$3)),\"\")","v":""},{"$f":"IFERROR(IF(Table_NCInspection[[#This Row],[Interior/ Exterior]]<>\"\",\n  CONCATENATE(\n  Table_NCInspection[[#This Row],[Interior/ Exterior]],\": \",\n  Table_NCInspection[[#This Row],[Fixture Technology '[P']]],\n  \" - \",Table_NCInspection[[#This Row],[Fixture Type '[P']]],\" [\",\n  IF(AND(Table_NCInspection[[#This Row],['# Lamps/ Fixture '[P']]]<>\"\",Table_NCInspection[[#This Row],['# Lamps/ Fixture '[P']]]>0),Table_NCInspection[[#This Row],['# Lamps/ Fixture '[P']]] & \"L - \" & Table_NCInspection[[#This Row],[Fixture/ Lamp Wattage '[P']]] & \"W\" & IF(Table_NCInspection[[#This Row],[Ballast/ Driver '[P']]]<>\"\",\" - \" & Table_NCInspection[[#This Row],[Ballast/ Driver '[P']]],\"\"),Table_NCInspection[[#This Row],[Fixture Wattage '[P']]] & \"W\"),\"]\",\n  IF(AND(Table_NCInspection[[#This Row],[Controls '[P']]]<>\"\"),\" - \" & Table_NCInspection[[#This Row],[Controls '[P']]],\"\")\n  ),\n\"\"),\"\")","v":""},{"$f":"IFERROR(IF(OR(Table_NCInspection[[#This Row],[Line]]=\"\",INDEX(Table_NCInfo[],Table_NCInspection[[#This Row],[Line]],R$3)=\"\"),\"\",INDEX(Table_NCInfo[],Table_NCInspection[[#This Row],[Line]],R$3)),\"\")","v":""},{"$f":"IFERROR(IF(OR(Table_NCInspection[[#This Row],[Line]]=\"\",INDEX(Table_NCInfo[],Table_NCInspection[[#This Row],[Line]],S$3)=\"\"),\"\",INDEX(Table_NCInfo[],Table_NCInspection[[#This Row],[Line]],S$3)),\"\")","v":""}]

{"sheet":"Project Summary","index":10,"n_rows":44,"n_cols":52,"rows_kept":44,"cut":false,"hidden":true,"merged":[[1,30,1,35],[1,37,1,42],[1,44,1,51]]}
["skip","skip","AnnualOperatingHours  ","InteractiveFactor","Demand Interactive Factor","CoincidenceFactor","Diversity Factor","CFhvac","DFhvac","FacilityTypeString","skip","Existing_Fixture_Wattage","Existing_Space_kWh","skip","skip","skip","Proposed_Fixture_Name","Proposed_Lamp_Qty","Proposed_Lamp_Wattage","Proposed_Fixture_Qty","skip","Proposed_Fixture_Wattage","skip","Proposed_Space_kWh","skip","skip","skip","skip","skip","skip","MeasureName","skip","LtgFixture_Rebate","LtgFixture_Inc_Cost","LtgFixture_kWh_Savings","skip","skip","LtgControl_Name","skip","LtgControl_Rebate","LtgControl_Inc_Cost","LtgControl_kWh_Savings","skip","skip","Incentive_Customer","MeasureCost","INTERIOR KWH SAVINGS","INTERIOR KW SAVINGS","Ltg_Measure_kWh_Savings","Ltg_Measure_kW_Savings","kWhSavings","DemandSavingskW"]
[null,null,null,null,null,null,null,null,null,null,null,null,null,null,null,null,null,null,null,null,null,null,null,null,null,null,null,null,null,null,"Fixtures",null,null,null,null,null,null,"Controls",null,null,null,null,null,null,"Totals"]
[1,2,3,4,5,6,7,8,9,10,11,12,13,14,15,16,17,18,19,20,21,22,23,24,25,26,27,28,29,30,31,32,33,34,35,36,37,38,39,40,41,42,43,44,45,46,47,48,49,50,51,52]
["Line Item","IsActive","OpHrs","EIF","DIF","CF (Ltg)","DF (Ltg)","CF (HVAC)","DF (HVAC)","Zone Description","Space Description","Baseline Wattage","Baseline kWh","Existing CSF","Existing Fixture (Existing Controls) kWh","Existing Overall kWh","Proposed Fixture","# Lamps/ Fixture [P]","Fixture/ Lamp Wattage [P]","P. Qty","Total # Lamps [P]","Proposed Fixture Wattage","Proposed Wattage","Proposed Fixture kWh","Proposed CSF","Proposed Fixture (Existing Controls) kWh","Proposed Overall kWh (Existing Controls)","Proposed Fixture (Proposed Controls) kWh","Proposed Overall kWh (Proposed Controls)","1","Fixture Measure Description","Fixture Rebate (per kW)","Fixture Rebate","Fixture Cost","Annual Fixture Savings (kWh)","Fixture kW Reduction","2","Controls Measure Description","Controls Rebate (per Fixt Watt)","Controls Rebate","Controls Cost","Annual Control Savings (kWh)","Control kW Reduction","3","Total Rebate","Total Cost","Induced HVAC Energy Savings (kWh)","Induced HVAC Demand Savings (kW)","Fixture Energy Savings (kWh)","Fixture Demand Savings (kW)","Total Energy Savings (kWh)","Total Demand Savings (kW)"]
[{"$f":"IFERROR(Table_NCInfo[[#This Row],[Line]],\"\")","v":1},{"$f":"IFERROR(Table_NCInfo[[#This Row],[IsActive]],\"\")","v":false},{"$f":"IFERROR(IF(Table_NCSummary[[#This Row],[IsActive]],VLOOKUP(IF(ISNUMBER(MATCH(Table_NCInfo[[#This Row],[Line]],Table_NCInspection[Line],0)),INDEX(Table_NCInspection[Schedule],MATCH(Table_NCSummary[[#This Row],[Line Item]],Table_NCInspection[Line],0)),Table_NCInfo[[#This Row],[Schedule]]),'Customer Information'!$S$27:$T$34,2,FALSE),\"\"),\"\")","v":""},{"$f":"IFERROR(IF(Table_NCSummary[[#This Row],[IsActive]],INDEX(Table_IntLookups[EIF],MATCH(IF(ISNUMBER(MATCH(Table_NCSummary[[#This Row],[Line Item]],Table_NCInspection[Line],0)),INDEX(Table_NCInspection[Zone Description],MATCH(Table_NCSummary[[#This Row],[Line Item]],Table_NCInfo[Line],0)),Table_NCInfo[[#This Row],[Zone Description]]),Table_IntLookups[Dropdown],0)),\"\"),\"\")","v":""},{"$f":"IFERROR(IF(Table_NCSummary[[#This Row],[IsActive]],INDEX(Table_IntLookups[DIF],MATCH(IF(ISNUMBER(MATCH(Table_NCSummary[[#This Row],[Line Item]],Table_NCInspection[Line],0)),INDEX(Table_NCInspection[Zone Description],MATCH(Table_NCSummary[[#This Row],[Line Item]],Table_NCInfo[Line],0)),Table_NCInfo[[#This Row],[Zone Description]]),Table_IntLookups[Dropdown],0)),\"\"),\"\")","v":""},{"$f":"IFERROR(IF(Table_NCSummary[[#This Row],[IsActive]],INDEX(Table_IntLookups[CFltg],MATCH(IF(ISNUMBER(MATCH(Table_NCSummary[[#This Row],[Line Item]],Table_NCInspection[Line],0)),INDEX(Table_NCInspection[Zone Description],MATCH(Table_NCSummary[[#This Row],[Line Item]],Table_NCInfo[Line],0)),Table_NCInfo[[#This Row],[Zone Description]]),Table_IntLookups[Dropdown],0)),\"\"),\"\")","v":""},{"$f":"IFERROR(IF(Table_NCSummary[[#This Row],[IsActive]],INDEX(Table_IntLookups[DFltg],MATCH(IF(ISNUMBER(MATCH(Table_NCSummary[[#This Row],[Line Item]],Table_NCInspection[Line],0)),INDEX(Table_NCInspection[Zone Description],MATCH(Table_NCSummary[[#This Row],[Line Item]],Table_NCInfo[Line],0)),Table_NCInfo[[#This Row],[Zone Description]]),Table_IntLookups[Dropdown],0)),\"\"),\"\")","v":""},{"$f":"IFERROR(IF(Table_NCSummary[[#This Row],[IsActive]],INDEX(Table_IntLookups[Cfhvac],MATCH(IF(ISNUMBER(MATCH(Table_NCSummary[[#This Row],[Line Item]],Table_NCInspection[Line],0)),INDEX(Table_NCInspection[Zone Description],MATCH(Table_NCSummary[[#This Row],[Line Item]],Table_NCInfo[Line],0)),Table_NCInfo[[#This Row],[Zone Description]]),Table_IntLookups[Dropdown],0)),\"\"),\"\")","v":""},{"$f":"IFERROR(IF(Table_NCSummary[[#This Row],[IsActive]],INDEX(Table_IntLookups[Dfhvac],MATCH(IF(ISNUMBER(MATCH(Table_NCSummary[[#This Row],[Line Item]],Table_NCInspection[Line],0)),INDEX(Table_NCInspection[Zone Description],MATCH(Table_NCSummary[[#This Row],[Line Item]],Table_NCInfo[Line],0)),Table_NCInfo[[#This Row],[Zone Description]]),Table_IntLookups[Dropdown],0)),\"\"),\"\")","v":""},{"$f":"IFERROR(IF(Table_NCSummary[[#This Row],[IsActive]],\nIF(ISNUMBER(MATCH(Table_NCInfo[[#This Row],[Line]],Table_NCInspection[Line],0)),INDEX(Table_NCInspection[Zone Description],MATCH(Table_NCSummary[[#This Row],[Line Item]],Table_NCInspection[Line],0)),Table_NCInfo[[#This Row],[Zone Description]]),\n \"\"),\"\")","v":""},{"$f":"IFERROR(IF(Table_NCSummary[[#This Row],[IsActive]],\nCONCATENATE(\nIF(ISNUMBER(MATCH(Table_NCInfo[[#This Row],[Line]],Table_NCInspection[Line],0)),INDEX(Table_NCInspection[Interior/ Exterior],MATCH(Table_NCSummary[[#This Row],[Line Item]],Table_NCInspection[Line],0)),Table_NCInfo[[#This Row],[Interior/ Exterior]]),\n\" - \",\nIF(ISNUMBER(MATCH(Table_NCInfo[[#This Row],[Line]],Table_NCInspection[Line],0)),INDEX(Table_NCInspection[Space Description],MATCH(Table_NCSummary[[#This Row],[Line Item]],Table_NCInspection[Line],0)),Table_NCInfo[[#This Row],[Space Description]])),\n \"\"),\"\")","v":""},{"$f":"IFERROR(IF(ISNUMBER(MATCH(Table_NCInfo[[#This Row],[Line]],Table_NCInspection[Line],0)),INDEX(Table_NCInspection[Baseline Wattage],MATCH(Table_NCSummary[[#This Row],[Line Item]],Table_NCInspection[Line],0)),Table_NCInfo[[#This Row],[Baseline Wattage]]),\"\")","v":""},{"$f":"IFERROR(IF(Table_NCSummary[[#This Row],[IsActive]],Table_NCSummary[[#This Row],[Baseline Wattage]]/1000*Table_NCSummary[[#This Row],[OpHrs]],\"\"),\"\")","v":""},{"$f":"IFERROR(IF(Table_NCSummary[[#This Row],[IsActive]],IFERROR(VLOOKUP(IF(ISNUMBER(MATCH(Table_NCSummary[[#This Row],[Line Item]],Table_NCInspection[Line],0)),INDEX(Table_NCInspection[Zone '#],MATCH(Table_NCSummary[[#This Row],[Line Item]],Table_NCInspection[Line],0)),Table_NCInfo[[#This Row],[Zone '#]]),Table_IntLookups[],'Facility Information'!$AA$4,FALSE),0),\"\"),\"\")","v":""},{"$f":"IFERROR(IF(Table_NCSummary[[#This Row],[IsActive]],IFERROR(Table_NCSummary[[#This Row],[Baseline Wattage]]/1000*Table_NCSummary[[#This Row],[OpHrs]]*Table_NCSummary[[#This Row],[Existing CSF]]*(-1),0),\"\"),\"\")","v":""},{"$f":"IFERROR(Table_NCSummary[[#This Row],[Baseline kWh]]+Table_NCSummary[[#This Row],[Existing Fixture (Existing Controls) kWh]],\"\")","v":""},{"$f":"IFERROR(IF(Table_NCSummary[[#This Row],[IsActive]],IF(ISNUMBER(MATCH(Table_NCInfo[[#This Row],[Line]],Table_NCInspection[Line],0)),INDEX(Table_NCInspection[Fixture Description '[P']],MATCH(Table_NCSummary[[#This Row],[Line Item]],Table_NCInspection[Line],0)),Table_NCInfo[[#This Row],[Fixture Description '[P']]]),\"\"),\"\")","v":""},{"$f":"IFERROR(IF(Table_NCSummary[[#This Row],[IsActive]],IF(ISNUMBER(MATCH(Table_NCInfo[[#This Row],[Line]],Table_NCInspection[Line],0)),INDEX(Table_NCInspection['# Lamps/ Fixture '[P']],MATCH(Table_NCSummary[[#This Row],[Line Item]],Table_NCInspection[Line],0)),Table_NCInfo[[#This Row],['# Lamps/ Fixture '[P']]]),\"\"),\"\")","v":""},{"$f":"IFERROR(IF(Table_NCSummary[[#This Row],[IsActive]],IF(ISNUMBER(MATCH(Table_NCInfo[[#This Row],[Line]],Table_NCInspection[Line],0)),INDEX(Table_NCInspection[Fixture/ Lamp Wattage '[P']],MATCH(Table_NCSummary[[#This Row],[Line Item]],Table_NCInspection[Line],0)),Table_NCInfo[[#This Row],[Fixture/ Lamp Wattage '[P']]]),\"\"),\"\")","v":""},{"$f":"IFERROR(IF(Table_NCSummary[[#This Row],[IsActive]],IF(ISNUMBER(MATCH(Table_NCInfo[[#This Row],[Line]],Table_NCInspection[Line],0)),INDEX(Table_NCInspection[Fixture Qty '[P']],MATCH(Table_NCSummary[[#This Row],[Line Item]],Table_NCInspection[Line],0)),Table_NCInfo[[#This Row],[Fixture Qty '[P']]]),\"\"),\"\")","v":""},{"$f":"IFERROR(IF(Table_NCSummary[[#This Row],[IsActive]],Table_NCSummary[[#This Row],['# Lamps/ Fixture '[P']]]*Table_NCSummary[[#This Row],[P. Qty]],\"\"),\"\")","v":""},{"$f":"IFERROR(IF(Table_NCSummary[[#This Row],[IsActive]],IF(ISNUMBER(MATCH(Table_NCInfo[[#This Row],[Line]],Table_NCInspection[Line],0)),INDEX(Table_NCInspection[Fixture Wattage '[P']],MATCH(Table_NCSummary[[#This Row],[Line Item]],Table_NCInspection[Line],0)),Table_NCInfo[[#This Row],[Fixture Wattage '[P']]]),\"\"),\"\")","v":""},{"$f":"IFERROR(Table_NCSummary[[#This Row],[P. Qty]]*Table_NCSummary[[#This Row],[Proposed Fixture Wattage]],\"\")","v":""},{"$f":"IFERROR(Table_NCSummary[[#This Row],[Proposed Fixture Wattage]]/1000*Table_NCSummary[[#This Row],[OpHrs]]*Table_NCSummary[[#This Row],[P. Qty]],\"\")","v":""},{"$f":"IFERROR(IF(Table_NCSummary[[#This Row],[IsActive]],IFERROR(VLOOKUP(RIGHT(Table_NCSummary[[#This Row],[Proposed Fixture]],LEN(Table_NCSummary[[#This Row],[Proposed Fixture]])-FIND(\" - \",Table_NCSummary[[#This Row],[Proposed Fixture]],FIND(\"]\",Table_NCSummary[[#This Row],[Proposed Fixture]],1))-2),Table_ControlType[],3, FALSE),Table_NCSummary[[#This Row],[Existing CSF]]),\"\"),\"\")","v":""},{"$f":"IFERROR(IF(Table_NCSummary[[#This Row],[IsActive]],IFERROR(Table_NCSummary[[#This Row],[Proposed Fixture Wattage]]/1000*Table_NCSummary[[#This Row],[OpHrs]]*Table_NCSummary[[#This Row],[P. Qty]]*Table_NCSummary[[#This Row],[Existing CSF]]*(-1),0),\"\"),\"\")","v":""},{"$f":"IFERROR(Table_NCSummary[[#This Row],[Proposed Fixture kWh]]+Table_NCSummary[[#This Row],[Proposed Fixture (Existing Controls) kWh]],\"\")","v":""},{"$f":"IFERROR(IF(Table_NCSummary[[#This Row],[IsActive]],IFERROR(Table_NCSummary[[#This Row],[Proposed Fixture Wattage]]/1000*Table_NCSummary[[#This Row],[OpHrs]]*Table_NCSummary[[#This Row],[P. Qty]]*Table_NCSummary[[#This Row],[Proposed CSF]]*(-1),0),\"\"),\"\")","v":""},{"$f":"IFERROR(Table_NCSummary[[#This Row],[Proposed Fixture kWh]]+Table_NCSummary[[#This Row],[Proposed Fixture (Proposed Controls) kWh]],\"\")","v":""},null,{"$f":"IFERROR(IF(Table_NCSummary[[#This Row],[IsActive]],IF((1-SUMPRODUCT(Table_NCSummary[P. Qty],Table_NCSummary[Proposed Fixture Wattage])/SUM(Table_NCSummary[Baseline Wattage]))<0.1,\"Does Not Qualify [Overall Fixture Reduction is less than 10%]\",IF(ISNUMBER(FIND(\"LED\",Table_NCSummary[[#This Row],[Proposed Fixture]],1)),IF(ISNUMBER(FIND(\"LED Tube\",Table_NCSummary[[#This Row],[Proposed Fixture]],1)),\"New Construction Interior LED Fixture\",IF(ISNUMBER(FIND(\"LED\",Table_NCSummary[[#This Row],[Proposed Fixture]],1)),IF(Table_NCInfo[[#This Row],[Interior/ Exterior]]=\"Exterior\",\"New Construction Exterior LED Fixture\",\"New Construction Interior LED Fixture\"),\"Ineligible Fixture\")),\"Ineligible Fixture\")),\"\"),\"\")","v":""},{"$f":"IFERROR(VLOOKUP(Table_NCSummary[[#This Row],[Fixture Measure Description]],Table_FixtureRate[],2,FALSE),\"\")","v":""},{"$f":"IFERROR(IF(Table_NCSummary[[#This Row],[IsActive]],IF((1-SUMPRODUCT(Table_NCSummary[P. Qty],Table_NCSummary[Proposed Fixture Wattage])/SUM(Table_NCSummary[Baseline Wattage]))<0.1,\"DNQ [kW Reduction <10%]\",IF(Table_NCSummary[[#This Row],[Fixture Measure Description]]=\"Ineligible Fixture\",0,ROUND(Table_NCSummary[[#This Row],[Fixture Rebate (per kW)]]*(Table_NCSummary[[#This Row],[Baseline Wattage]]-Table_NCSummary[[#This Row],[Proposed Wattage]])/1000,2))),\"\"),\"\")","v":""},{"$f":"IFERROR(IF(Table_NCSummary[[#This Row],[Fixture Measure Description]]=\"Ineligible Fixture\",0,ROUND(IF(ProjectCost_Total=0,300000,ProjectCost_Total)*Table_NCSummary[[#This Row],[Fixture Rebate]]/SUM(Table_NCSummary[Fixture Rebate],Table_NCSummary[Controls Rebate]),2)),\"\")","v":""},{"$f":"IFERROR(IF(Table_NCSummary[[#This Row],[IsActive]],IF((1-SUMPRODUCT(Table_NCSummary[P. Qty],Table_NCSummary[Proposed Fixture Wattage])/SUM(Table_NCSummary[Baseline Wattage]))<0.1,\"DNQ [kW Reduction <10%]\",IF(Table_NCSummary[[#This Row],[Fixture Measure Description]]=\"Ineligible Fixture\",0,Table_NCSummary[[#This Row],[Existing Overall kWh]]-Table_NCSummary[[#This Row],[Proposed Overall kWh (Existing Controls)]])),\"\"),\"\")","v":""},{"$f":"IFERROR(IF(Table_NCSummary[[#This Row],[IsActive]],IF((1-SUMPRODUCT(Table_NCSummary[P. Qty],Table_NCSummary[Proposed Fixture Wattage])/SUM(Table_NCSummary[Baseline Wattage]))<0.1,\"DNQ [kW Reduction <10%]\",IF(OR(Table_NCSummary[[#This Row],[Fixture Measure Description]]=\"Ineligible Fixture\",Table_NCSummary[[#This Row],[Fixture Measure Description]]=\"New Construction Exterior LED Fixture\"),0,(Table_NCSummary[[#This Row],[Baseline kWh]]-Table_NCSummary[[#This Row],[Proposed Fixture kWh]])/Table_NCSummary[[#This Row],[OpHrs]]*Table_NCSummary[[#This Row],[CF (Ltg)]]*Table_NCSummary[[#This Row],[DF (Ltg)]])),\"\"),\"\")","v":""},null,{"$f":"IFERROR(\n  IF(OR(Table_NCSummary[[#This Row],[Fixture Measure Description]]=\"\",Table_NCSummary[[#This Row],[Fixture Measure Description]]=\"Ineligible Fixture\"),\n    \"\",\n    \"New Construction\"\n    & \" - \" &\n    IFERROR(VLOOKUP(RIGHT(Table_NCSummary[[#This Row],[Proposed Fixture]],LEN(Table_NCSummary[[#This Row],[Proposed Fixture]])-FIND(\" - \",Table_NCSummary[[#This Row],[Proposed Fixture]],FIND(\"]\",Table_NCSummary[[#This Row],[Proposed Fixture]],1))-2),Table_ControlType[],2, FALSE),None)),\n\"\")","v":""},{"$f":"IFERROR(VLOOKUP(Table_NCSummary[[#This Row],[Controls Measure Description]],Table_ControlRate[],2,FALSE),\"\")","v":""},{"$f":"IFERROR(IF(Table_NCSummary[[#This Row],[IsActive]],IF((1-SUMPRODUCT(Table_NCSummary[P. Qty],Table_NCSummary[Proposed Fixture Wattage])/SUM(Table_NCSummary[Baseline Wattage]))<0.1,\"DNQ [kW Reduction <10%]\",IF(OR(Table_NCSummary[[#This Row],[Controls Measure Description]]=\"\",Table_NCSummary[[#This Row],[Controls Measure Description]]=\"New Construction - No Controls\"),0,ROUND(Table_NCSummary[[#This Row],[Controls Rebate (per Fixt Watt)]]*Table_NCSummary[[#This Row],[Proposed Fixture Wattage]]*Table_NCSummary[[#This Row],[P. Qty]],2))),\"\"),\"\")","v":""},{"$f":"IFERROR(IF(Table_NCSummary[[#This Row],[Fixture Measure Description]]=\"Ineligible Fixture\",0,ROUND(IF(ProjectCost_Total=0,300000,ProjectCost_Total)*Table_NCSummary[[#This Row],[Controls Rebate]]/SUM(Table_NCSummary[Fixture Rebate],Table_NCSummary[Controls Rebate]),2)),\"\")","v":""},{"$f":"IFERROR(IF(Table_NCSummary[[#This Row],[IsActive]],IF((1-SUMPRODUCT(Table_NCSummary[P. Qty],Table_NCSummary[Proposed Fixture Wattage])/SUM(Table_NCSummary[Baseline Wattage]))<0.1,\"DNQ [kW Reduction <10%]\",IF(Table_NCSummary[[#This Row],[Controls Measure Description]]=\"\",0,(Table_NCSummary[[#This Row],[Proposed Fixture (Existing Controls) kWh]]-Table_NCSummary[[#This Row],[Proposed Fixture (Proposed Controls) kWh]]))),\"\"),\"\")","v":""},{"$f":"IFERROR(IF(Table_NCSummary[[#This Row],[IsActive]],IF((1-SUMPRODUCT(Table_NCSummary[P. Qty],Table_NCSummary[Proposed Fixture Wattage])/SUM(Table_NCSummary[Baseline Wattage]))<0.1,\"DNQ [kW Reduction <10%]\",IF(OR(Table_NCSummary[[#This Row],[Controls Measure Description]]=\"\",Table_NCSummary[[#This Row],[Controls Measure Description]]=\"New Construction - No Controls\"),0,(Table_NCSummary[[#This Row],[Proposed Fixture (Existing Controls) kWh]]-Table_NCSummary[[#This Row],[Proposed Fixture (Proposed Controls) kWh]])/Table_NCSummary[[#This Row],[OpHrs]]*Table_NCSummary[[#This Row],[CF (Ltg)]]*Table_NCSummary[[#This Row],[DF (Ltg)]])),\"\"),\"\")","v":""},null,{"$f":"IFERROR(IF(NOT(ISNUMBER(Table_NCSummary[[#This Row],[Fixture Rebate]])),\"\",IF(MIN(IF(Table_NCSummary[[#This Row],[Fixture Cost]]<0,0,SUM(Table_NCSummary[Fixture Cost],Table_NCSummary[Controls Cost])),SUM(Table_NCSummary[Fixture Rebate],Table_NCSummary[Controls Rebate]))>300000,300000/MIN(IF(Table_NCSummary[[#This Row],[Fixture Cost]]<0,0,SUM(Table_NCSummary[Fixture Cost],Table_NCSummary[Controls Cost])),SUM(Table_NCSummary[Fixture Rebate],Table_NCSummary[Controls Rebate]))*MIN(IF(Table_NCSummary[[#This Row],[Fixture Cost]]<0,0,SUM(Table_NCSummary[Fixture Cost],Table_NCSummary[Controls Cost])),Table_NCSummary[[#This Row],[Fixture Rebate]]+IF(Table_NCSummary[[#This Row],[Controls Rebate]]=\"\",0,Table_NCSummary[[#This Row],[Controls Rebate]])),MIN(IF(Table_NCSummary[[#This Row],[Fixture Cost]]<0,0,SUM(Table_NCSummary[Fixture Cost],Table_NCSummary[Controls Cost])),Table_NCSummary[[#This Row],[Fixture Rebate]]+IF(Table_NCSummary[[#This Row],[Controls Rebate]]=\"\",0,Table_NCSummary[[#This Row],[Controls Rebate]])))),\"\")","v":""},{"$f":"IFERROR(IF(Table_NCSummary[[#This Row],[Fixture Cost]]=\"\",\"\",Table_NCSummary[[#This Row],[Fixture Cost]]+IF(Table_NCSummary[[#This Row],[Controls Cost]]=\"\",0,Table_NCSummary[[#This Row],[Controls Cost]])),\"\")","v":""},{"$f":"IFERROR(IF(Table_NCSummary[[#This Row],[IsActive]],IF(NOT(ISNUMBER(Table_NCSummary[[#This Row],[Fixture Rebate]])),\"\",IF(Table_NCInfo[[#This Row],[Interior/ Exterior]]=\"Interior\",IFERROR((Table_NCSummary[[#This Row],[Annual Fixture Savings (kWh)]]+Table_NCSummary[[#This Row],[Annual Control Savings (kWh)]])*(Table_NCSummary[[#This Row],[EIF]]-1),0),0)),\"\"),\"\")","v":""},{"$f":"IFERROR(IF(Table_NCSummary[[#This Row],[IsActive]],IF(NOT(ISNUMBER(Table_NCSummary[[#This Row],[Fixture Rebate]])),\"\",IF(Table_NCInfo[[#This Row],[Interior/ Exterior]]=\"Interior\",IFERROR((Table_NCSummary[[#This Row],[Fixture kW Reduction]]+Table_NCSummary[[#This Row],[Control kW Reduction]]/(Table_NCSummary[[#This Row],[CF (Ltg)]]*Table_NCSummary[[#This Row],[DF (Ltg)]]))*(Table_NCSummary[[#This Row],[DIF]]-1)*Table_NCSummary[[#This Row],[CF (HVAC)]]*Table_NCSummary[[#This Row],[DF (HVAC)]],0),0)),\"\"),\"\")","v":""},{"$f":"IFERROR(IF(Table_NCSummary[[#This Row],[IsActive]],IF(NOT(ISNUMBER(Table_NCSummary[[#This Row],[Fixture Rebate]])),\"\",ROUND(Table_NCSummary[[#This Row],[Annual Fixture Savings (kWh)]]+Table_NCSummary[[#This Row],[Annual Control Savings (kWh)]],0)),\"\"),\"\")","v":""},{"$f":"IFERROR(IF(Table_NCSummary[[#This Row],[IsActive]],IF(NOT(ISNUMBER(Table_NCSummary[[#This Row],[Fixture Rebate]])),\"\",ROUND(Table_NCSummary[[#This Row],[Fixture kW Reduction]]+Table_NCSummary[[#This Row],[Control kW Reduction]],3)),\"\"),\"\")","v":""},{"$f":"IFERROR(IF(Table_NCSummary[[#This Row],[IsActive]],IF(NOT(ISNUMBER(Table_NCSummary[[#This Row],[Fixture Rebate]])),\"\",ROUND(Table_NCSummary[[#This Row],[Fixture Energy Savings (kWh)]]+Table_NCSummary[[#This Row],[Induced HVAC Energy Savings (kWh)]],0)),\"\"),\"\")","v":""},{"$f":"IFERROR(IF(Table_NCSummary[[#This Row],[IsActive]],IF(NOT(ISNUMBER(Table_NCSummary[[#This Row],[Fixture Rebate]])),\"\",ROUND(Table_NCSummary[[#This Row],[Fixture Demand Savings (kW)]]+Table_NCSummary[[#This Row],[Induced HVAC Demand Savings (kW)]],3)),\"\"),\"\")","v":""}]
[{"$f":"IFERROR(Table_NCInfo[[#This Row],[Line]],\"\")","v":2},{"$f":"IFERROR(Table_NCInfo[[#This Row],[IsActive]],\"\")","v":false},{"$f":"IFERROR(IF(Table_NCSummary[[#This Row],[IsActive]],VLOOKUP(IF(ISNUMBER(MATCH(Table_NCInfo[[#This Row],[Line]],Table_NCInspection[Line],0)),INDEX(Table_NCInspection[Schedule],MATCH(Table_NCSummary[[#This Row],[Line Item]],Table_NCInspection[Line],0)),Table_NCInfo[[#This Row],[Schedule]]),'Customer Information'!$S$27:$T$34,2,FALSE),\"\"),\"\")","v":""},{"$f":"IFERROR(IF(Table_NCSummary[[#This Row],[IsActive]],INDEX(Table_IntLookups[EIF],MATCH(IF(ISNUMBER(MATCH(Table_NCSummary[[#This Row],[Line Item]],Table_NCInspection[Line],0)),INDEX(Table_NCInspection[Zone Description],MATCH(Table_NCSummary[[#This Row],[Line Item]],Table_NCInfo[Line],0)),Table_NCInfo[[#This Row],[Zone Description]]),Table_IntLookups[Dropdown],0)),\"\"),\"\")","v":""},{"$f":"IFERROR(IF(Table_NCSummary[[#This Row],[IsActive]],INDEX(Table_IntLookups[DIF],MATCH(IF(ISNUMBER(MATCH(Table_NCSummary[[#This Row],[Line Item]],Table_NCInspection[Line],0)),INDEX(Table_NCInspection[Zone Description],MATCH(Table_NCSummary[[#This Row],[Line Item]],Table_NCInfo[Line],0)),Table_NCInfo[[#This Row],[Zone Description]]),Table_IntLookups[Dropdown],0)),\"\"),\"\")","v":""},{"$f":"IFERROR(IF(Table_NCSummary[[#This Row],[IsActive]],INDEX(Table_IntLookups[CFltg],MATCH(IF(ISNUMBER(MATCH(Table_NCSummary[[#This Row],[Line Item]],Table_NCInspection[Line],0)),INDEX(Table_NCInspection[Zone Description],MATCH(Table_NCSummary[[#This Row],[Line Item]],Table_NCInfo[Line],0)),Table_NCInfo[[#This Row],[Zone Description]]),Table_IntLookups[Dropdown],0)),\"\"),\"\")","v":""},{"$f":"IFERROR(IF(Table_NCSummary[[#This Row],[IsActive]],INDEX(Table_IntLookups[DFltg],MATCH(IF(ISNUMBER(MATCH(Table_NCSummary[[#This Row],[Line Item]],Table_NCInspection[Line],0)),INDEX(Table_NCInspection[Zone Description],MATCH(Table_NCSummary[[#This Row],[Line Item]],Table_NCInfo[Line],0)),Table_NCInfo[[#This Row],[Zone Description]]),Table_IntLookups[Dropdown],0)),\"\"),\"\")","v":""},{"$f":"IFERROR(IF(Table_NCSummary[[#This Row],[IsActive]],INDEX(Table_IntLookups[Cfhvac],MATCH(IF(ISNUMBER(MATCH(Table_NCSummary[[#This Row],[Line Item]],Table_NCInspection[Line],0)),INDEX(Table_NCInspection[Zone Description],MATCH(Table_NCSummary[[#This Row],[Line Item]],Table_NCInfo[Line],0)),Table_NCInfo[[#This Row],[Zone Description]]),Table_IntLookups[Dropdown],0)),\"\"),\"\")","v":""},{"$f":"IFERROR(IF(Table_NCSummary[[#This Row],[IsActive]],INDEX(Table_IntLookups[Dfhvac],MATCH(IF(ISNUMBER(MATCH(Table_NCSummary[[#This Row],[Line Item]],Table_NCInspection[Line],0)),INDEX(Table_NCInspection[Zone Description],MATCH(Table_NCSummary[[#This Row],[Line Item]],Table_NCInfo[Line],0)),Table_NCInfo[[#This Row],[Zone Description]]),Table_IntLookups[Dropdown],0)),\"\"),\"\")","v":""},{"$f":"IFERROR(IF(Table_NCSummary[[#This Row],[IsActive]],\nIF(ISNUMBER(MATCH(Table_NCInfo[[#This Row],[Line]],Table_NCInspection[Line],0)),INDEX(Table_NCInspection[Zone Description],MATCH(Table_NCSummary[[#This Row],[Line Item]],Table_NCInspection[Line],0)),Table_NCInfo[[#This Row],[Zone Description]]),\n \"\"),\"\")","v":""},{"$f":"IFERROR(IF(Table_NCSummary[[#This Row],[IsActive]],\nCONCATENATE(\nIF(ISNUMBER(MATCH(Table_NCInfo[[#This Row],[Line]],Table_NCInspection[Line],0)),INDEX(Table_NCInspection[Interior/ Exterior],MATCH(Table_NCSummary[[#This Row],[Line Item]],Table_NCInspection[Line],0)),Table_NCInfo[[#This Row],[Interior/ Exterior]]),\n\" - \",\nIF(ISNUMBER(MATCH(Table_NCInfo[[#This Row],[Line]],Table_NCInspection[Line],0)),INDEX(Table_NCInspection[Space Description],MATCH(Table_NCSummary[[#This Row],[Line Item]],Table_NCInspection[Line],0)),Table_NCInfo[[#This Row],[Space Description]])),\n \"\"),\"\")","v":""},{"$f":"IFERROR(IF(ISNUMBER(MATCH(Table_NCInfo[[#This Row],[Line]],Table_NCInspection[Line],0)),INDEX(Table_NCInspection[Baseline Wattage],MATCH(Table_NCSummary[[#This Row],[Line Item]],Table_NCInspection[Line],0)),Table_NCInfo[[#This Row],[Baseline Wattage]]),\"\")","v":""},{"$f":"IFERROR(IF(Table_NCSummary[[#This Row],[IsActive]],Table_NCSummary[[#This Row],[Baseline Wattage]]/1000*Table_NCSummary[[#This Row],[OpHrs]],\"\"),\"\")","v":""},{"$f":"IFERROR(IF(Table_NCSummary[[#This Row],[IsActive]],IFERROR(VLOOKUP(IF(ISNUMBER(MATCH(Table_NCSummary[[#This Row],[Line Item]],Table_NCInspection[Line],0)),INDEX(Table_NCInspection[Zone '#],MATCH(Table_NCSummary[[#This Row],[Line Item]],Table_NCInspection[Line],0)),Table_NCInfo[[#This Row],[Zone '#]]),Table_IntLookups[],'Facility Information'!$AA$4,FALSE),0),\"\"),\"\")","v":""},{"$f":"IFERROR(IF(Table_NCSummary[[#This Row],[IsActive]],IFERROR(Table_NCSummary[[#This Row],[Baseline Wattage]]/1000*Table_NCSummary[[#This Row],[OpHrs]]*Table_NCSummary[[#This Row],[Existing CSF]]*(-1),0),\"\"),\"\")","v":""},{"$f":"IFERROR(Table_NCSummary[[#This Row],[Baseline kWh]]+Table_NCSummary[[#This Row],[Existing Fixture (Existing Controls) kWh]],\"\")","v":""},{"$f":"IFERROR(IF(Table_NCSummary[[#This Row],[IsActive]],IF(ISNUMBER(MATCH(Table_NCInfo[[#This Row],[Line]],Table_NCInspection[Line],0)),INDEX(Table_NCInspection[Fixture Description '[P']],MATCH(Table_NCSummary[[#This Row],[Line Item]],Table_NCInspection[Line],0)),Table_NCInfo[[#This Row],[Fixture Description '[P']]]),\"\"),\"\")","v":""},{"$f":"IFERROR(IF(Table_NCSummary[[#This Row],[IsActive]],IF(ISNUMBER(MATCH(Table_NCInfo[[#This Row],[Line]],Table_NCInspection[Line],0)),INDEX(Table_NCInspection['# Lamps/ Fixture '[P']],MATCH(Table_NCSummary[[#This Row],[Line Item]],Table_NCInspection[Line],0)),Table_NCInfo[[#This Row],['# Lamps/ Fixture '[P']]]),\"\"),\"\")","v":""},{"$f":"IFERROR(IF(Table_NCSummary[[#This Row],[IsActive]],IF(ISNUMBER(MATCH(Table_NCInfo[[#This Row],[Line]],Table_NCInspection[Line],0)),INDEX(Table_NCInspection[Fixture/ Lamp Wattage '[P']],MATCH(Table_NCSummary[[#This Row],[Line Item]],Table_NCInspection[Line],0)),Table_NCInfo[[#This Row],[Fixture/ Lamp Wattage '[P']]]),\"\"),\"\")","v":""},{"$f":"IFERROR(IF(Table_NCSummary[[#This Row],[IsActive]],IF(ISNUMBER(MATCH(Table_NCInfo[[#This Row],[Line]],Table_NCInspection[Line],0)),INDEX(Table_NCInspection[Fixture Qty '[P']],MATCH(Table_NCSummary[[#This Row],[Line Item]],Table_NCInspection[Line],0)),Table_NCInfo[[#This Row],[Fixture Qty '[P']]]),\"\"),\"\")","v":""},{"$f":"IFERROR(IF(Table_NCSummary[[#This Row],[IsActive]],Table_NCSummary[[#This Row],['# Lamps/ Fixture '[P']]]*Table_NCSummary[[#This Row],[P. Qty]],\"\"),\"\")","v":""},{"$f":"IFERROR(IF(Table_NCSummary[[#This Row],[IsActive]],IF(ISNUMBER(MATCH(Table_NCInfo[[#This Row],[Line]],Table_NCInspection[Line],0)),INDEX(Table_NCInspection[Fixture Wattage '[P']],MATCH(Table_NCSummary[[#This Row],[Line Item]],Table_NCInspection[Line],0)),Table_NCInfo[[#This Row],[Fixture Wattage '[P']]]),\"\"),\"\")","v":""},{"$f":"IFERROR(Table_NCSummary[[#This Row],[P. Qty]]*Table_NCSummary[[#This Row],[Proposed Fixture Wattage]],\"\")","v":""},{"$f":"IFERROR(Table_NCSummary[[#This Row],[Proposed Fixture Wattage]]/1000*Table_NCSummary[[#This Row],[OpHrs]]*Table_NCSummary[[#This Row],[P. Qty]],\"\")","v":""},{"$f":"IFERROR(IF(Table_NCSummary[[#This Row],[IsActive]],IFERROR(VLOOKUP(RIGHT(Table_NCSummary[[#This Row],[Proposed Fixture]],LEN(Table_NCSummary[[#This Row],[Proposed Fixture]])-FIND(\" - \",Table_NCSummary[[#This Row],[Proposed Fixture]],FIND(\"]\",Table_NCSummary[[#This Row],[Proposed Fixture]],1))-2),Table_ControlType[],3, FALSE),Table_NCSummary[[#This Row],[Existing CSF]]),\"\"),\"\")","v":""},{"$f":"IFERROR(IF(Table_NCSummary[[#This Row],[IsActive]],IFERROR(Table_NCSummary[[#This Row],[Proposed Fixture Wattage]]/1000*Table_NCSummary[[#This Row],[OpHrs]]*Table_NCSummary[[#This Row],[P. Qty]]*Table_NCSummary[[#This Row],[Existing CSF]]*(-1),0),\"\"),\"\")","v":""},{"$f":"IFERROR(Table_NCSummary[[#This Row],[Proposed Fixture kWh]]+Table_NCSummary[[#This Row],[Proposed Fixture (Existing Controls) kWh]],\"\")","v":""},{"$f":"IFERROR(IF(Table_NCSummary[[#This Row],[IsActive]],IFERROR(Table_NCSummary[[#This Row],[Proposed Fixture Wattage]]/1000*Table_NCSummary[[#This Row],[OpHrs]]*Table_NCSummary[[#This Row],[P. Qty]]*Table_NCSummary[[#This Row],[Proposed CSF]]*(-1),0),\"\"),\"\")","v":""},{"$f":"IFERROR(Table_NCSummary[[#This Row],[Proposed Fixture kWh]]+Table_NCSummary[[#This Row],[Proposed Fixture (Proposed Controls) kWh]],\"\")","v":""},null,{"$f":"IFERROR(IF(Table_NCSummary[[#This Row],[IsActive]],IF((1-SUMPRODUCT(Table_NCSummary[P. Qty],Table_NCSummary[Proposed Fixture Wattage])/SUM(Table_NCSummary[Baseline Wattage]))<0.1,\"Does Not Qualify [Overall Fixture Reduction is less than 10%]\",IF(ISNUMBER(FIND(\"LED\",Table_NCSummary[[#This Row],[Proposed Fixture]],1)),IF(ISNUMBER(FIND(\"LED Tube\",Table_NCSummary[[#This Row],[Proposed Fixture]],1)),\"New Construction Interior LED Fixture\",IF(ISNUMBER(FIND(\"LED\",Table_NCSummary[[#This Row],[Proposed Fixture]],1)),IF(Table_NCInfo[[#This Row],[Interior/ Exterior]]=\"Exterior\",\"New Construction Exterior LED Fixture\",\"New Construction Interior LED Fixture\"),\"Ineligible Fixture\")),\"Ineligible Fixture\")),\"\"),\"\")","v":""},{"$f":"IFERROR(VLOOKUP(Table_NCSummary[[#This Row],[Fixture Measure Description]],Table_FixtureRate[],2,FALSE),\"\")","v":""},{"$f":"IFERROR(IF(Table_NCSummary[[#This Row],[IsActive]],IF((1-SUMPRODUCT(Table_NCSummary[P. Qty],Table_NCSummary[Proposed Fixture Wattage])/SUM(Table_NCSummary[Baseline Wattage]))<0.1,\"DNQ [kW Reduction <10%]\",IF(Table_NCSummary[[#This Row],[Fixture Measure Description]]=\"Ineligible Fixture\",0,ROUND(Table_NCSummary[[#This Row],[Fixture Rebate (per kW)]]*(Table_NCSummary[[#This Row],[Baseline Wattage]]-Table_NCSummary[[#This Row],[Proposed Wattage]])/1000,2))),\"\"),\"\")","v":""},{"$f":"IFERROR(IF(Table_NCSummary[[#This Row],[Fixture Measure Description]]=\"Ineligible Fixture\",0,ROUND(IF(ProjectCost_Total=0,300000,ProjectCost_Total)*Table_NCSummary[[#This Row],[Fixture Rebate]]/SUM(Table_NCSummary[Fixture Rebate],Table_NCSummary[Controls Rebate]),2)),\"\")","v":""},{"$f":"IFERROR(IF(Table_NCSummary[[#This Row],[IsActive]],IF((1-SUMPRODUCT(Table_NCSummary[P. Qty],Table_NCSummary[Proposed Fixture Wattage])/SUM(Table_NCSummary[Baseline Wattage]))<0.1,\"DNQ [kW Reduction <10%]\",IF(Table_NCSummary[[#This Row],[Fixture Measure Description]]=\"Ineligible Fixture\",0,Table_NCSummary[[#This Row],[Existing Overall kWh]]-Table_NCSummary[[#This Row],[Proposed Overall kWh (Existing Controls)]])),\"\"),\"\")","v":""},{"$f":"IFERROR(IF(Table_NCSummary[[#This Row],[IsActive]],IF((1-SUMPRODUCT(Table_NCSummary[P. Qty],Table_NCSummary[Proposed Fixture Wattage])/SUM(Table_NCSummary[Baseline Wattage]))<0.1,\"DNQ [kW Reduction <10%]\",IF(OR(Table_NCSummary[[#This Row],[Fixture Measure Description]]=\"Ineligible Fixture\",Table_NCSummary[[#This Row],[Fixture Measure Description]]=\"New Construction Exterior LED Fixture\"),0,(Table_NCSummary[[#This Row],[Baseline kWh]]-Table_NCSummary[[#This Row],[Proposed Fixture kWh]])/Table_NCSummary[[#This Row],[OpHrs]]*Table_NCSummary[[#This Row],[CF (Ltg)]]*Table_NCSummary[[#This Row],[DF (Ltg)]])),\"\"),\"\")","v":""},null,{"$f":"IFERROR(\n  IF(OR(Table_NCSummary[[#This Row],[Fixture Measure Description]]=\"\",Table_NCSummary[[#This Row],[Fixture Measure Description]]=\"Ineligible Fixture\"),\n    \"\",\n    \"New Construction\"\n    & \" - \" &\n    IFERROR(VLOOKUP(RIGHT(Table_NCSummary[[#This Row],[Proposed Fixture]],LEN(Table_NCSummary[[#This Row],[Proposed Fixture]])-FIND(\" - \",Table_NCSummary[[#This Row],[Proposed Fixture]],FIND(\"]\",Table_NCSummary[[#This Row],[Proposed Fixture]],1))-2),Table_ControlType[],2, FALSE),None)),\n\"\")","v":""},{"$f":"IFERROR(VLOOKUP(Table_NCSummary[[#This Row],[Controls Measure Description]],Table_ControlRate[],2,FALSE),\"\")","v":""},{"$f":"IFERROR(IF(Table_NCSummary[[#This Row],[IsActive]],IF((1-SUMPRODUCT(Table_NCSummary[P. Qty],Table_NCSummary[Proposed Fixture Wattage])/SUM(Table_NCSummary[Baseline Wattage]))<0.1,\"DNQ [kW Reduction <10%]\",IF(OR(Table_NCSummary[[#This Row],[Controls Measure Description]]=\"\",Table_NCSummary[[#This Row],[Controls Measure Description]]=\"New Construction - No Controls\"),0,ROUND(Table_NCSummary[[#This Row],[Controls Rebate (per Fixt Watt)]]*Table_NCSummary[[#This Row],[Proposed Fixture Wattage]]*Table_NCSummary[[#This Row],[P. Qty]],2))),\"\"),\"\")","v":""},{"$f":"IFERROR(IF(Table_NCSummary[[#This Row],[Fixture Measure Description]]=\"Ineligible Fixture\",0,ROUND(IF(ProjectCost_Total=0,300000,ProjectCost_Total)*Table_NCSummary[[#This Row],[Controls Rebate]]/SUM(Table_NCSummary[Fixture Rebate],Table_NCSummary[Controls Rebate]),2)),\"\")","v":""},{"$f":"IFERROR(IF(Table_NCSummary[[#This Row],[IsActive]],IF((1-SUMPRODUCT(Table_NCSummary[P. Qty],Table_NCSummary[Proposed Fixture Wattage])/SUM(Table_NCSummary[Baseline Wattage]))<0.1,\"DNQ [kW Reduction <10%]\",IF(Table_NCSummary[[#This Row],[Controls Measure Description]]=\"\",0,(Table_NCSummary[[#This Row],[Proposed Fixture (Existing Controls) kWh]]-Table_NCSummary[[#This Row],[Proposed Fixture (Proposed Controls) kWh]]))),\"\"),\"\")","v":""},{"$f":"IFERROR(IF(Table_NCSummary[[#This Row],[IsActive]],IF((1-SUMPRODUCT(Table_NCSummary[P. Qty],Table_NCSummary[Proposed Fixture Wattage])/SUM(Table_NCSummary[Baseline Wattage]))<0.1,\"DNQ [kW Reduction <10%]\",IF(OR(Table_NCSummary[[#This Row],[Controls Measure Description]]=\"\",Table_NCSummary[[#This Row],[Controls Measure Description]]=\"New Construction - No Controls\"),0,(Table_NCSummary[[#This Row],[Proposed Fixture (Existing Controls) kWh]]-Table_NCSummary[[#This Row],[Proposed Fixture (Proposed Controls) kWh]])/Table_NCSummary[[#This Row],[OpHrs]]*Table_NCSummary[[#This Row],[CF (Ltg)]]*Table_NCSummary[[#This Row],[DF (Ltg)]])),\"\"),\"\")","v":""},null,{"$f":"IFERROR(IF(NOT(ISNUMBER(Table_NCSummary[[#This Row],[Fixture Rebate]])),\"\",IF(MIN(IF(Table_NCSummary[[#This Row],[Fixture Cost]]<0,0,SUM(Table_NCSummary[Fixture Cost],Table_NCSummary[Controls Cost])),SUM(Table_NCSummary[Fixture Rebate],Table_NCSummary[Controls Rebate]))>300000,300000/MIN(IF(Table_NCSummary[[#This Row],[Fixture Cost]]<0,0,SUM(Table_NCSummary[Fixture Cost],Table_NCSummary[Controls Cost])),SUM(Table_NCSummary[Fixture Rebate],Table_NCSummary[Controls Rebate]))*MIN(IF(Table_NCSummary[[#This Row],[Fixture Cost]]<0,0,SUM(Table_NCSummary[Fixture Cost],Table_NCSummary[Controls Cost])),Table_NCSummary[[#This Row],[Fixture Rebate]]+IF(Table_NCSummary[[#This Row],[Controls Rebate]]=\"\",0,Table_NCSummary[[#This Row],[Controls Rebate]])),MIN(IF(Table_NCSummary[[#This Row],[Fixture Cost]]<0,0,SUM(Table_NCSummary[Fixture Cost],Table_NCSummary[Controls Cost])),Table_NCSummary[[#This Row],[Fixture Rebate]]+IF(Table_NCSummary[[#This Row],[Controls Rebate]]=\"\",0,Table_NCSummary[[#This Row],[Controls Rebate]])))),\"\")","v":""},{"$f":"IFERROR(IF(Table_NCSummary[[#This Row],[Fixture Cost]]=\"\",\"\",Table_NCSummary[[#This Row],[Fixture Cost]]+IF(Table_NCSummary[[#This Row],[Controls Cost]]=\"\",0,Table_NCSummary[[#This Row],[Controls Cost]])),\"\")","v":""},{"$f":"IFERROR(IF(Table_NCSummary[[#This Row],[IsActive]],IF(NOT(ISNUMBER(Table_NCSummary[[#This Row],[Fixture Rebate]])),\"\",IF(Table_NCInfo[[#This Row],[Interior/ Exterior]]=\"Interior\",IFERROR((Table_NCSummary[[#This Row],[Annual Fixture Savings (kWh)]]+Table_NCSummary[[#This Row],[Annual Control Savings (kWh)]])*(Table_NCSummary[[#This Row],[EIF]]-1),0),0)),\"\"),\"\")","v":""},{"$f":"IFERROR(IF(Table_NCSummary[[#This Row],[IsActive]],IF(NOT(ISNUMBER(Table_NCSummary[[#This Row],[Fixture Rebate]])),\"\",IF(Table_NCInfo[[#This Row],[Interior/ Exterior]]=\"Interior\",IFERROR((Table_NCSummary[[#This Row],[Fixture kW Reduction]]+Table_NCSummary[[#This Row],[Control kW Reduction]]/(Table_NCSummary[[#This Row],[CF (Ltg)]]*Table_NCSummary[[#This Row],[DF (Ltg)]]))*(Table_NCSummary[[#This Row],[DIF]]-1)*Table_NCSummary[[#This Row],[CF (HVAC)]]*Table_NCSummary[[#This Row],[DF (HVAC)]],0),0)),\"\"),\"\")","v":""},{"$f":"IFERROR(IF(Table_NCSummary[[#This Row],[IsActive]],IF(NOT(ISNUMBER(Table_NCSummary[[#This Row],[Fixture Rebate]])),\"\",ROUND(Table_NCSummary[[#This Row],[Annual Fixture Savings (kWh)]]+Table_NCSummary[[#This Row],[Annual Control Savings (kWh)]],0)),\"\"),\"\")","v":""},{"$f":"IFERROR(IF(Table_NCSummary[[#This Row],[IsActive]],IF(NOT(ISNUMBER(Table_NCSummary[[#This Row],[Fixture Rebate]])),\"\",ROUND(Table_NCSummary[[#This Row],[Fixture kW Reduction]]+Table_NCSummary[[#This Row],[Control kW Reduction]],3)),\"\"),\"\")","v":""},{"$f":"IFERROR(IF(Table_NCSummary[[#This Row],[IsActive]],IF(NOT(ISNUMBER(Table_NCSummary[[#This Row],[Fixture Rebate]])),\"\",ROUND(Table_NCSummary[[#This Row],[Fixture Energy Savings (kWh)]]+Table_NCSummary[[#This Row],[Induced HVAC Energy Savings (kWh)]],0)),\"\"),\"\")","v":""},{"$f":"IFERROR(IF(Table_NCSummary[[#This Row],[IsActive]],IF(NOT(ISNUMBER(Table_NCSummary[[#This Row],[Fixture Rebate]])),\"\",ROUND(Table_NCSummary[[#This Row],[Fixture Demand Savings (kW)]]+Table_NCSummary[[#This Row],[Induced HVAC Demand Savings (kW)]],3)),\"\"),\"\")","v":""}]
[{"$f":"IFERROR(Table_NCInfo[[#This Row],[Line]],\"\")","v":3},{"$f":"IFERROR(Table_NCInfo[[#This Row],[IsActive]],\"\")","v":false},{"$f":"IFERROR(IF(Table_NCSummary[[#This Row],[IsActive]],VLOOKUP(IF(ISNUMBER(MATCH(Table_NCInfo[[#This Row],[Line]],Table_NCInspection[Line],0)),INDEX(Table_NCInspection[Schedule],MATCH(Table_NCSummary[[#This Row],[Line Item]],Table_NCInspection[Line],0)),Table_NCInfo[[#This Row],[Schedule]]),'Customer Information'!$S$27:$T$34,2,FALSE),\"\"),\"\")","v":""},{"$f":"IFERROR(IF(Table_NCSummary[[#This Row],[IsActive]],INDEX(Table_IntLookups[EIF],MATCH(IF(ISNUMBER(MATCH(Table_NCSummary[[#This Row],[Line Item]],Table_NCInspection[Line],0)),INDEX(Table_NCInspection[Zone Description],MATCH(Table_NCSummary[[#This Row],[Line Item]],Table_NCInfo[Line],0)),Table_NCInfo[[#This Row],[Zone Description]]),Table_IntLookups[Dropdown],0)),\"\"),\"\")","v":""},{"$f":"IFERROR(IF(Table_NCSummary[[#This Row],[IsActive]],INDEX(Table_IntLookups[DIF],MATCH(IF(ISNUMBER(MATCH(Table_NCSummary[[#This Row],[Line Item]],Table_NCInspection[Line],0)),INDEX(Table_NCInspection[Zone Description],MATCH(Table_NCSummary[[#This Row],[Line Item]],Table_NCInfo[Line],0)),Table_NCInfo[[#This Row],[Zone Description]]),Table_IntLookups[Dropdown],0)),\"\"),\"\")","v":""},{"$f":"IFERROR(IF(Table_NCSummary[[#This Row],[IsActive]],INDEX(Table_IntLookups[CFltg],MATCH(IF(ISNUMBER(MATCH(Table_NCSummary[[#This Row],[Line Item]],Table_NCInspection[Line],0)),INDEX(Table_NCInspection[Zone Description],MATCH(Table_NCSummary[[#This Row],[Line Item]],Table_NCInfo[Line],0)),Table_NCInfo[[#This Row],[Zone Description]]),Table_IntLookups[Dropdown],0)),\"\"),\"\")","v":""},{"$f":"IFERROR(IF(Table_NCSummary[[#This Row],[IsActive]],INDEX(Table_IntLookups[DFltg],MATCH(IF(ISNUMBER(MATCH(Table_NCSummary[[#This Row],[Line Item]],Table_NCInspection[Line],0)),INDEX(Table_NCInspection[Zone Description],MATCH(Table_NCSummary[[#This Row],[Line Item]],Table_NCInfo[Line],0)),Table_NCInfo[[#This Row],[Zone Description]]),Table_IntLookups[Dropdown],0)),\"\"),\"\")","v":""},{"$f":"IFERROR(IF(Table_NCSummary[[#This Row],[IsActive]],INDEX(Table_IntLookups[Cfhvac],MATCH(IF(ISNUMBER(MATCH(Table_NCSummary[[#This Row],[Line Item]],Table_NCInspection[Line],0)),INDEX(Table_NCInspection[Zone Description],MATCH(Table_NCSummary[[#This Row],[Line Item]],Table_NCInfo[Line],0)),Table_NCInfo[[#This Row],[Zone Description]]),Table_IntLookups[Dropdown],0)),\"\"),\"\")","v":""},{"$f":"IFERROR(IF(Table_NCSummary[[#This Row],[IsActive]],INDEX(Table_IntLookups[Dfhvac],MATCH(IF(ISNUMBER(MATCH(Table_NCSummary[[#This Row],[Line Item]],Table_NCInspection[Line],0)),INDEX(Table_NCInspection[Zone Description],MATCH(Table_NCSummary[[#This Row],[Line Item]],Table_NCInfo[Line],0)),Table_NCInfo[[#This Row],[Zone Description]]),Table_IntLookups[Dropdown],0)),\"\"),\"\")","v":""},{"$f":"IFERROR(IF(Table_NCSummary[[#This Row],[IsActive]],\nIF(ISNUMBER(MATCH(Table_NCInfo[[#This Row],[Line]],Table_NCInspection[Line],0)),INDEX(Table_NCInspection[Zone Description],MATCH(Table_NCSummary[[#This Row],[Line Item]],Table_NCInspection[Line],0)),Table_NCInfo[[#This Row],[Zone Description]]),\n \"\"),\"\")","v":""},{"$f":"IFERROR(IF(Table_NCSummary[[#This Row],[IsActive]],\nCONCATENATE(\nIF(ISNUMBER(MATCH(Table_NCInfo[[#This Row],[Line]],Table_NCInspection[Line],0)),INDEX(Table_NCInspection[Interior/ Exterior],MATCH(Table_NCSummary[[#This Row],[Line Item]],Table_NCInspection[Line],0)),Table_NCInfo[[#This Row],[Interior/ Exterior]]),\n\" - \",\nIF(ISNUMBER(MATCH(Table_NCInfo[[#This Row],[Line]],Table_NCInspection[Line],0)),INDEX(Table_NCInspection[Space Description],MATCH(Table_NCSummary[[#This Row],[Line Item]],Table_NCInspection[Line],0)),Table_NCInfo[[#This Row],[Space Description]])),\n \"\"),\"\")","v":""},{"$f":"IFERROR(IF(ISNUMBER(MATCH(Table_NCInfo[[#This Row],[Line]],Table_NCInspection[Line],0)),INDEX(Table_NCInspection[Baseline Wattage],MATCH(Table_NCSummary[[#This Row],[Line Item]],Table_NCInspection[Line],0)),Table_NCInfo[[#This Row],[Baseline Wattage]]),\"\")","v":""},{"$f":"IFERROR(IF(Table_NCSummary[[#This Row],[IsActive]],Table_NCSummary[[#This Row],[Baseline Wattage]]/1000*Table_NCSummary[[#This Row],[OpHrs]],\"\"),\"\")","v":""},{"$f":"IFERROR(IF(Table_NCSummary[[#This Row],[IsActive]],IFERROR(VLOOKUP(IF(ISNUMBER(MATCH(Table_NCSummary[[#This Row],[Line Item]],Table_NCInspection[Line],0)),INDEX(Table_NCInspection[Zone '#],MATCH(Table_NCSummary[[#This Row],[Line Item]],Table_NCInspection[Line],0)),Table_NCInfo[[#This Row],[Zone '#]]),Table_IntLookups[],'Facility Information'!$AA$4,FALSE),0),\"\"),\"\")","v":""},{"$f":"IFERROR(IF(Table_NCSummary[[#This Row],[IsActive]],IFERROR(Table_NCSummary[[#This Row],[Baseline Wattage]]/1000*Table_NCSummary[[#This Row],[OpHrs]]*Table_NCSummary[[#This Row],[Existing CSF]]*(-1),0),\"\"),\"\")","v":""},{"$f":"IFERROR(Table_NCSummary[[#This Row],[Baseline kWh]]+Table_NCSummary[[#This Row],[Existing Fixture (Existing Controls) kWh]],\"\")","v":""},{"$f":"IFERROR(IF(Table_NCSummary[[#This Row],[IsActive]],IF(ISNUMBER(MATCH(Table_NCInfo[[#This Row],[Line]],Table_NCInspection[Line],0)),INDEX(Table_NCInspection[Fixture Description '[P']],MATCH(Table_NCSummary[[#This Row],[Line Item]],Table_NCInspection[Line],0)),Table_NCInfo[[#This Row],[Fixture Description '[P']]]),\"\"),\"\")","v":""},{"$f":"IFERROR(IF(Table_NCSummary[[#This Row],[IsActive]],IF(ISNUMBER(MATCH(Table_NCInfo[[#This Row],[Line]],Table_NCInspection[Line],0)),INDEX(Table_NCInspection['# Lamps/ Fixture '[P']],MATCH(Table_NCSummary[[#This Row],[Line Item]],Table_NCInspection[Line],0)),Table_NCInfo[[#This Row],['# Lamps/ Fixture '[P']]]),\"\"),\"\")","v":""},{"$f":"IFERROR(IF(Table_NCSummary[[#This Row],[IsActive]],IF(ISNUMBER(MATCH(Table_NCInfo[[#This Row],[Line]],Table_NCInspection[Line],0)),INDEX(Table_NCInspection[Fixture/ Lamp Wattage '[P']],MATCH(Table_NCSummary[[#This Row],[Line Item]],Table_NCInspection[Line],0)),Table_NCInfo[[#This Row],[Fixture/ Lamp Wattage '[P']]]),\"\"),\"\")","v":""},{"$f":"IFERROR(IF(Table_NCSummary[[#This Row],[IsActive]],IF(ISNUMBER(MATCH(Table_NCInfo[[#This Row],[Line]],Table_NCInspection[Line],0)),INDEX(Table_NCInspection[Fixture Qty '[P']],MATCH(Table_NCSummary[[#This Row],[Line Item]],Table_NCInspection[Line],0)),Table_NCInfo[[#This Row],[Fixture Qty '[P']]]),\"\"),\"\")","v":""},{"$f":"IFERROR(IF(Table_NCSummary[[#This Row],[IsActive]],Table_NCSummary[[#This Row],['# Lamps/ Fixture '[P']]]*Table_NCSummary[[#This Row],[P. Qty]],\"\"),\"\")","v":""},{"$f":"IFERROR(IF(Table_NCSummary[[#This Row],[IsActive]],IF(ISNUMBER(MATCH(Table_NCInfo[[#This Row],[Line]],Table_NCInspection[Line],0)),INDEX(Table_NCInspection[Fixture Wattage '[P']],MATCH(Table_NCSummary[[#This Row],[Line Item]],Table_NCInspection[Line],0)),Table_NCInfo[[#This Row],[Fixture Wattage '[P']]]),\"\"),\"\")","v":""},{"$f":"IFERROR(Table_NCSummary[[#This Row],[P. Qty]]*Table_NCSummary[[#This Row],[Proposed Fixture Wattage]],\"\")","v":""},{"$f":"IFERROR(Table_NCSummary[[#This Row],[Proposed Fixture Wattage]]/1000*Table_NCSummary[[#This Row],[OpHrs]]*Table_NCSummary[[#This Row],[P. Qty]],\"\")","v":""},{"$f":"IFERROR(IF(Table_NCSummary[[#This Row],[IsActive]],IFERROR(VLOOKUP(RIGHT(Table_NCSummary[[#This Row],[Proposed Fixture]],LEN(Table_NCSummary[[#This Row],[Proposed Fixture]])-FIND(\" - \",Table_NCSummary[[#This Row],[Proposed Fixture]],FIND(\"]\",Table_NCSummary[[#This Row],[Proposed Fixture]],1))-2),Table_ControlType[],3, FALSE),Table_NCSummary[[#This Row],[Existing CSF]]),\"\"),\"\")","v":""},{"$f":"IFERROR(IF(Table_NCSummary[[#This Row],[IsActive]],IFERROR(Table_NCSummary[[#This Row],[Proposed Fixture Wattage]]/1000*Table_NCSummary[[#This Row],[OpHrs]]*Table_NCSummary[[#This Row],[P. Qty]]*Table_NCSummary[[#This Row],[Existing CSF]]*(-1),0),\"\"),\"\")","v":""},{"$f":"IFERROR(Table_NCSummary[[#This Row],[Proposed Fixture kWh]]+Table_NCSummary[[#This Row],[Proposed Fixture (Existing Controls) kWh]],\"\")","v":""},{"$f":"IFERROR(IF(Table_NCSummary[[#This Row],[IsActive]],IFERROR(Table_NCSummary[[#This Row],[Proposed Fixture Wattage]]/1000*Table_NCSummary[[#This Row],[OpHrs]]*Table_NCSummary[[#This Row],[P. Qty]]*Table_NCSummary[[#This Row],[Proposed CSF]]*(-1),0),\"\"),\"\")","v":""},{"$f":"IFERROR(Table_NCSummary[[#This Row],[Proposed Fixture kWh]]+Table_NCSummary[[#This Row],[Proposed Fixture (Proposed Controls) kWh]],\"\")","v":""},null,{"$f":"IFERROR(IF(Table_NCSummary[[#This Row],[IsActive]],IF((1-SUMPRODUCT(Table_NCSummary[P. Qty],Table_NCSummary[Proposed Fixture Wattage])/SUM(Table_NCSummary[Baseline Wattage]))<0.1,\"Does Not Qualify [Overall Fixture Reduction is less than 10%]\",IF(ISNUMBER(FIND(\"LED\",Table_NCSummary[[#This Row],[Proposed Fixture]],1)),IF(ISNUMBER(FIND(\"LED Tube\",Table_NCSummary[[#This Row],[Proposed Fixture]],1)),\"New Construction Interior LED Fixture\",IF(ISNUMBER(FIND(\"LED\",Table_NCSummary[[#This Row],[Proposed Fixture]],1)),IF(Table_NCInfo[[#This Row],[Interior/ Exterior]]=\"Exterior\",\"New Construction Exterior LED Fixture\",\"New Construction Interior LED Fixture\"),\"Ineligible Fixture\")),\"Ineligible Fixture\")),\"\"),\"\")","v":""},{"$f":"IFERROR(VLOOKUP(Table_NCSummary[[#This Row],[Fixture Measure Description]],Table_FixtureRate[],2,FALSE),\"\")","v":""},{"$f":"IFERROR(IF(Table_NCSummary[[#This Row],[IsActive]],IF((1-SUMPRODUCT(Table_NCSummary[P. Qty],Table_NCSummary[Proposed Fixture Wattage])/SUM(Table_NCSummary[Baseline Wattage]))<0.1,\"DNQ [kW Reduction <10%]\",IF(Table_NCSummary[[#This Row],[Fixture Measure Description]]=\"Ineligible Fixture\",0,ROUND(Table_NCSummary[[#This Row],[Fixture Rebate (per kW)]]*(Table_NCSummary[[#This Row],[Baseline Wattage]]-Table_NCSummary[[#This Row],[Proposed Wattage]])/1000,2))),\"\"),\"\")","v":""},{"$f":"IFERROR(IF(Table_NCSummary[[#This Row],[Fixture Measure Description]]=\"Ineligible Fixture\",0,ROUND(IF(ProjectCost_Total=0,300000,ProjectCost_Total)*Table_NCSummary[[#This Row],[Fixture Rebate]]/SUM(Table_NCSummary[Fixture Rebate],Table_NCSummary[Controls Rebate]),2)),\"\")","v":""},{"$f":"IFERROR(IF(Table_NCSummary[[#This Row],[IsActive]],IF((1-SUMPRODUCT(Table_NCSummary[P. Qty],Table_NCSummary[Proposed Fixture Wattage])/SUM(Table_NCSummary[Baseline Wattage]))<0.1,\"DNQ [kW Reduction <10%]\",IF(Table_NCSummary[[#This Row],[Fixture Measure Description]]=\"Ineligible Fixture\",0,Table_NCSummary[[#This Row],[Existing Overall kWh]]-Table_NCSummary[[#This Row],[Proposed Overall kWh (Existing Controls)]])),\"\"),\"\")","v":""},{"$f":"IFERROR(IF(Table_NCSummary[[#This Row],[IsActive]],IF((1-SUMPRODUCT(Table_NCSummary[P. Qty],Table_NCSummary[Proposed Fixture Wattage])/SUM(Table_NCSummary[Baseline Wattage]))<0.1,\"DNQ [kW Reduction <10%]\",IF(OR(Table_NCSummary[[#This Row],[Fixture Measure Description]]=\"Ineligible Fixture\",Table_NCSummary[[#This Row],[Fixture Measure Description]]=\"New Construction Exterior LED Fixture\"),0,(Table_NCSummary[[#This Row],[Baseline kWh]]-Table_NCSummary[[#This Row],[Proposed Fixture kWh]])/Table_NCSummary[[#This Row],[OpHrs]]*Table_NCSummary[[#This Row],[CF (Ltg)]]*Table_NCSummary[[#This Row],[DF (Ltg)]])),\"\"),\"\")","v":""},null,{"$f":"IFERROR(\n  IF(OR(Table_NCSummary[[#This Row],[Fixture Measure Description]]=\"\",Table_NCSummary[[#This Row],[Fixture Measure Description]]=\"Ineligible Fixture\"),\n    \"\",\n    \"New Construction\"\n    & \" - \" &\n    IFERROR(VLOOKUP(RIGHT(Table_NCSummary[[#This Row],[Proposed Fixture]],LEN(Table_NCSummary[[#This Row],[Proposed Fixture]])-FIND(\" - \",Table_NCSummary[[#This Row],[Proposed Fixture]],FIND(\"]\",Table_NCSummary[[#This Row],[Proposed Fixture]],1))-2),Table_ControlType[],2, FALSE),None)),\n\"\")","v":""},{"$f":"IFERROR(VLOOKUP(Table_NCSummary[[#This Row],[Controls Measure Description]],Table_ControlRate[],2,FALSE),\"\")","v":""},{"$f":"IFERROR(IF(Table_NCSummary[[#This Row],[IsActive]],IF((1-SUMPRODUCT(Table_NCSummary[P. Qty],Table_NCSummary[Proposed Fixture Wattage])/SUM(Table_NCSummary[Baseline Wattage]))<0.1,\"DNQ [kW Reduction <10%]\",IF(OR(Table_NCSummary[[#This Row],[Controls Measure Description]]=\"\",Table_NCSummary[[#This Row],[Controls Measure Description]]=\"New Construction - No Controls\"),0,ROUND(Table_NCSummary[[#This Row],[Controls Rebate (per Fixt Watt)]]*Table_NCSummary[[#This Row],[Proposed Fixture Wattage]]*Table_NCSummary[[#This Row],[P. Qty]],2))),\"\"),\"\")","v":""},{"$f":"IFERROR(IF(Table_NCSummary[[#This Row],[Fixture Measure Description]]=\"Ineligible Fixture\",0,ROUND(IF(ProjectCost_Total=0,300000,ProjectCost_Total)*Table_NCSummary[[#This Row],[Controls Rebate]]/SUM(Table_NCSummary[Fixture Rebate],Table_NCSummary[Controls Rebate]),2)),\"\")","v":""},{"$f":"IFERROR(IF(Table_NCSummary[[#This Row],[IsActive]],IF((1-SUMPRODUCT(Table_NCSummary[P. Qty],Table_NCSummary[Proposed Fixture Wattage])/SUM(Table_NCSummary[Baseline Wattage]))<0.1,\"DNQ [kW Reduction <10%]\",IF(Table_NCSummary[[#This Row],[Controls Measure Description]]=\"\",0,(Table_NCSummary[[#This Row],[Proposed Fixture (Existing Controls) kWh]]-Table_NCSummary[[#This Row],[Proposed Fixture (Proposed Controls) kWh]]))),\"\"),\"\")","v":""},{"$f":"IFERROR(IF(Table_NCSummary[[#This Row],[IsActive]],IF((1-SUMPRODUCT(Table_NCSummary[P. Qty],Table_NCSummary[Proposed Fixture Wattage])/SUM(Table_NCSummary[Baseline Wattage]))<0.1,\"DNQ [kW Reduction <10%]\",IF(OR(Table_NCSummary[[#This Row],[Controls Measure Description]]=\"\",Table_NCSummary[[#This Row],[Controls Measure Description]]=\"New Construction - No Controls\"),0,(Table_NCSummary[[#This Row],[Proposed Fixture (Existing Controls) kWh]]-Table_NCSummary[[#This Row],[Proposed Fixture (Proposed Controls) kWh]])/Table_NCSummary[[#This Row],[OpHrs]]*Table_NCSummary[[#This Row],[CF (Ltg)]]*Table_NCSummary[[#This Row],[DF (Ltg)]])),\"\"),\"\")","v":""},null,{"$f":"IFERROR(IF(NOT(ISNUMBER(Table_NCSummary[[#This Row],[Fixture Rebate]])),\"\",IF(MIN(IF(Table_NCSummary[[#This Row],[Fixture Cost]]<0,0,SUM(Table_NCSummary[Fixture Cost],Table_NCSummary[Controls Cost])),SUM(Table_NCSummary[Fixture Rebate],Table_NCSummary[Controls Rebate]))>300000,300000/MIN(IF(Table_NCSummary[[#This Row],[Fixture Cost]]<0,0,SUM(Table_NCSummary[Fixture Cost],Table_NCSummary[Controls Cost])),SUM(Table_NCSummary[Fixture Rebate],Table_NCSummary[Controls Rebate]))*MIN(IF(Table_NCSummary[[#This Row],[Fixture Cost]]<0,0,SUM(Table_NCSummary[Fixture Cost],Table_NCSummary[Controls Cost])),Table_NCSummary[[#This Row],[Fixture Rebate]]+IF(Table_NCSummary[[#This Row],[Controls Rebate]]=\"\",0,Table_NCSummary[[#This Row],[Controls Rebate]])),MIN(IF(Table_NCSummary[[#This Row],[Fixture Cost]]<0,0,SUM(Table_NCSummary[Fixture Cost],Table_NCSummary[Controls Cost])),Table_NCSummary[[#This Row],[Fixture Rebate]]+IF(Table_NCSummary[[#This Row],[Controls Rebate]]=\"\",0,Table_NCSummary[[#This Row],[Controls Rebate]])))),\"\")","v":""},{"$f":"IFERROR(IF(Table_NCSummary[[#This Row],[Fixture Cost]]=\"\",\"\",Table_NCSummary[[#This Row],[Fixture Cost]]+IF(Table_NCSummary[[#This Row],[Controls Cost]]=\"\",0,Table_NCSummary[[#This Row],[Controls Cost]])),\"\")","v":""},{"$f":"IFERROR(IF(Table_NCSummary[[#This Row],[IsActive]],IF(NOT(ISNUMBER(Table_NCSummary[[#This Row],[Fixture Rebate]])),\"\",IF(Table_NCInfo[[#This Row],[Interior/ Exterior]]=\"Interior\",IFERROR((Table_NCSummary[[#This Row],[Annual Fixture Savings (kWh)]]+Table_NCSummary[[#This Row],[Annual Control Savings (kWh)]])*(Table_NCSummary[[#This Row],[EIF]]-1),0),0)),\"\"),\"\")","v":""},{"$f":"IFERROR(IF(Table_NCSummary[[#This Row],[IsActive]],IF(NOT(ISNUMBER(Table_NCSummary[[#This Row],[Fixture Rebate]])),\"\",IF(Table_NCInfo[[#This Row],[Interior/ Exterior]]=\"Interior\",IFERROR((Table_NCSummary[[#This Row],[Fixture kW Reduction]]+Table_NCSummary[[#This Row],[Control kW Reduction]]/(Table_NCSummary[[#This Row],[CF (Ltg)]]*Table_NCSummary[[#This Row],[DF (Ltg)]]))*(Table_NCSummary[[#This Row],[DIF]]-1)*Table_NCSummary[[#This Row],[CF (HVAC)]]*Table_NCSummary[[#This Row],[DF (HVAC)]],0),0)),\"\"),\"\")","v":""},{"$f":"IFERROR(IF(Table_NCSummary[[#This Row],[IsActive]],IF(NOT(ISNUMBER(Table_NCSummary[[#This Row],[Fixture Rebate]])),\"\",ROUND(Table_NCSummary[[#This Row],[Annual Fixture Savings (kWh)]]+Table_NCSummary[[#This Row],[Annual Control Savings (kWh)]],0)),\"\"),\"\")","v":""},{"$f":"IFERROR(IF(Table_NCSummary[[#This Row],[IsActive]],IF(NOT(ISNUMBER(Table_NCSummary[[#This Row],[Fixture Rebate]])),\"\",ROUND(Table_NCSummary[[#This Row],[Fixture kW Reduction]]+Table_NCSummary[[#This Row],[Control kW Reduction]],3)),\"\"),\"\")","v":""},{"$f":"IFERROR(IF(Table_NCSummary[[#This Row],[IsActive]],IF(NOT(ISNUMBER(Table_NCSummary[[#This Row],[Fixture Rebate]])),\"\",ROUND(Table_NCSummary[[#This Row],[Fixture Energy Savings (kWh)]]+Table_NCSummary[[#This Row],[Induced HVAC Energy Savings (kWh)]],0)),\"\"),\"\")","v":""},{"$f":"IFERROR(IF(Table_NCSummary[[#This Row],[IsActive]],IF(NOT(ISNUMBER(Table_NCSummary[[#This Row],[Fixture Rebate]])),\"\",ROUND(Table_NCSummary[[#This Row],[Fixture Demand Savings (kW)]]+Table_NCSummary[[#This Row],[Induced HVAC Demand Savings (kW)]],3)),\"\"),\"\")","v":""}]
[{"$f":"IFERROR(Table_NCInfo[[#This Row],[Line]],\"\")","v":4},{"$f":"IFERROR(Table_NCInfo[[#This Row],[IsActive]],\"\")","v":false},{"$f":"IFERROR(IF(Table_NCSummary[[#This Row],[IsActive]],VLOOKUP(IF(ISNUMBER(MATCH(Table_NCInfo[[#This Row],[Line]],Table_NCInspection[Line],0)),INDEX(Table_NCInspection[Schedule],MATCH(Table_NCSummary[[#This Row],[Line Item]],Table_NCInspection[Line],0)),Table_NCInfo[[#This Row],[Schedule]]),'Customer Information'!$S$27:$T$34,2,FALSE),\"\"),\"\")","v":""},{"$f":"IFERROR(IF(Table_NCSummary[[#This Row],[IsActive]],INDEX(Table_IntLookups[EIF],MATCH(IF(ISNUMBER(MATCH(Table_NCSummary[[#This Row],[Line Item]],Table_NCInspection[Line],0)),INDEX(Table_NCInspection[Zone Description],MATCH(Table_NCSummary[[#This Row],[Line Item]],Table_NCInfo[Line],0)),Table_NCInfo[[#This Row],[Zone Description]]),Table_IntLookups[Dropdown],0)),\"\"),\"\")","v":""},{"$f":"IFERROR(IF(Table_NCSummary[[#This Row],[IsActive]],INDEX(Table_IntLookups[DIF],MATCH(IF(ISNUMBER(MATCH(Table_NCSummary[[#This Row],[Line Item]],Table_NCInspection[Line],0)),INDEX(Table_NCInspection[Zone Description],MATCH(Table_NCSummary[[#This Row],[Line Item]],Table_NCInfo[Line],0)),Table_NCInfo[[#This Row],[Zone Description]]),Table_IntLookups[Dropdown],0)),\"\"),\"\")","v":""},{"$f":"IFERROR(IF(Table_NCSummary[[#This Row],[IsActive]],INDEX(Table_IntLookups[CFltg],MATCH(IF(ISNUMBER(MATCH(Table_NCSummary[[#This Row],[Line Item]],Table_NCInspection[Line],0)),INDEX(Table_NCInspection[Zone Description],MATCH(Table_NCSummary[[#This Row],[Line Item]],Table_NCInfo[Line],0)),Table_NCInfo[[#This Row],[Zone Description]]),Table_IntLookups[Dropdown],0)),\"\"),\"\")","v":""},{"$f":"IFERROR(IF(Table_NCSummary[[#This Row],[IsActive]],INDEX(Table_IntLookups[DFltg],MATCH(IF(ISNUMBER(MATCH(Table_NCSummary[[#This Row],[Line Item]],Table_NCInspection[Line],0)),INDEX(Table_NCInspection[Zone Description],MATCH(Table_NCSummary[[#This Row],[Line Item]],Table_NCInfo[Line],0)),Table_NCInfo[[#This Row],[Zone Description]]),Table_IntLookups[Dropdown],0)),\"\"),\"\")","v":""},{"$f":"IFERROR(IF(Table_NCSummary[[#This Row],[IsActive]],INDEX(Table_IntLookups[Cfhvac],MATCH(IF(ISNUMBER(MATCH(Table_NCSummary[[#This Row],[Line Item]],Table_NCInspection[Line],0)),INDEX(Table_NCInspection[Zone Description],MATCH(Table_NCSummary[[#This Row],[Line Item]],Table_NCInfo[Line],0)),Table_NCInfo[[#This Row],[Zone Description]]),Table_IntLookups[Dropdown],0)),\"\"),\"\")","v":""},{"$f":"IFERROR(IF(Table_NCSummary[[#This Row],[IsActive]],INDEX(Table_IntLookups[Dfhvac],MATCH(IF(ISNUMBER(MATCH(Table_NCSummary[[#This Row],[Line Item]],Table_NCInspection[Line],0)),INDEX(Table_NCInspection[Zone Description],MATCH(Table_NCSummary[[#This Row],[Line Item]],Table_NCInfo[Line],0)),Table_NCInfo[[#This Row],[Zone Description]]),Table_IntLookups[Dropdown],0)),\"\"),\"\")","v":""},{"$f":"IFERROR(IF(Table_NCSummary[[#This Row],[IsActive]],\nIF(ISNUMBER(MATCH(Table_NCInfo[[#This Row],[Line]],Table_NCInspection[Line],0)),INDEX(Table_NCInspection[Zone Description],MATCH(Table_NCSummary[[#This Row],[Line Item]],Table_NCInspection[Line],0)),Table_NCInfo[[#This Row],[Zone Description]]),\n \"\"),\"\")","v":""},{"$f":"IFERROR(IF(Table_NCSummary[[#This Row],[IsActive]],\nCONCATENATE(\nIF(ISNUMBER(MATCH(Table_NCInfo[[#This Row],[Line]],Table_NCInspection[Line],0)),INDEX(Table_NCInspection[Interior/ Exterior],MATCH(Table_NCSummary[[#This Row],[Line Item]],Table_NCInspection[Line],0)),Table_NCInfo[[#This Row],[Interior/ Exterior]]),\n\" - \",\nIF(ISNUMBER(MATCH(Table_NCInfo[[#This Row],[Line]],Table_NCInspection[Line],0)),INDEX(Table_NCInspection[Space Description],MATCH(Table_NCSummary[[#This Row],[Line Item]],Table_NCInspection[Line],0)),Table_NCInfo[[#This Row],[Space Description]])),\n \"\"),\"\")","v":""},{"$f":"IFERROR(IF(ISNUMBER(MATCH(Table_NCInfo[[#This Row],[Line]],Table_NCInspection[Line],0)),INDEX(Table_NCInspection[Baseline Wattage],MATCH(Table_NCSummary[[#This Row],[Line Item]],Table_NCInspection[Line],0)),Table_NCInfo[[#This Row],[Baseline Wattage]]),\"\")","v":""},{"$f":"IFERROR(IF(Table_NCSummary[[#This Row],[IsActive]],Table_NCSummary[[#This Row],[Baseline Wattage]]/1000*Table_NCSummary[[#This Row],[OpHrs]],\"\"),\"\")","v":""},{"$f":"IFERROR(IF(Table_NCSummary[[#This Row],[IsActive]],IFERROR(VLOOKUP(IF(ISNUMBER(MATCH(Table_NCSummary[[#This Row],[Line Item]],Table_NCInspection[Line],0)),INDEX(Table_NCInspection[Zone '#],MATCH(Table_NCSummary[[#This Row],[Line Item]],Table_NCInspection[Line],0)),Table_NCInfo[[#This Row],[Zone '#]]),Table_IntLookups[],'Facility Information'!$AA$4,FALSE),0),\"\"),\"\")","v":""},{"$f":"IFERROR(IF(Table_NCSummary[[#This Row],[IsActive]],IFERROR(Table_NCSummary[[#This Row],[Baseline Wattage]]/1000*Table_NCSummary[[#This Row],[OpHrs]]*Table_NCSummary[[#This Row],[Existing CSF]]*(-1),0),\"\"),\"\")","v":""},{"$f":"IFERROR(Table_NCSummary[[#This Row],[Baseline kWh]]+Table_NCSummary[[#This Row],[Existing Fixture (Existing Controls) kWh]],\"\")","v":""},{"$f":"IFERROR(IF(Table_NCSummary[[#This Row],[IsActive]],IF(ISNUMBER(MATCH(Table_NCInfo[[#This Row],[Line]],Table_NCInspection[Line],0)),INDEX(Table_NCInspection[Fixture Description '[P']],MATCH(Table_NCSummary[[#This Row],[Line Item]],Table_NCInspection[Line],0)),Table_NCInfo[[#This Row],[Fixture Description '[P']]]),\"\"),\"\")","v":""},{"$f":"IFERROR(IF(Table_NCSummary[[#This Row],[IsActive]],IF(ISNUMBER(MATCH(Table_NCInfo[[#This Row],[Line]],Table_NCInspection[Line],0)),INDEX(Table_NCInspection['# Lamps/ Fixture '[P']],MATCH(Table_NCSummary[[#This Row],[Line Item]],Table_NCInspection[Line],0)),Table_NCInfo[[#This Row],['# Lamps/ Fixture '[P']]]),\"\"),\"\")","v":""},{"$f":"IFERROR(IF(Table_NCSummary[[#This Row],[IsActive]],IF(ISNUMBER(MATCH(Table_NCInfo[[#This Row],[Line]],Table_NCInspection[Line],0)),INDEX(Table_NCInspection[Fixture/ Lamp Wattage '[P']],MATCH(Table_NCSummary[[#This Row],[Line Item]],Table_NCInspection[Line],0)),Table_NCInfo[[#This Row],[Fixture/ Lamp Wattage '[P']]]),\"\"),\"\")","v":""},{"$f":"IFERROR(IF(Table_NCSummary[[#This Row],[IsActive]],IF(ISNUMBER(MATCH(Table_NCInfo[[#This Row],[Line]],Table_NCInspection[Line],0)),INDEX(Table_NCInspection[Fixture Qty '[P']],MATCH(Table_NCSummary[[#This Row],[Line Item]],Table_NCInspection[Line],0)),Table_NCInfo[[#This Row],[Fixture Qty '[P']]]),\"\"),\"\")","v":""},{"$f":"IFERROR(IF(Table_NCSummary[[#This Row],[IsActive]],Table_NCSummary[[#This Row],['# Lamps/ Fixture '[P']]]*Table_NCSummary[[#This Row],[P. Qty]],\"\"),\"\")","v":""},{"$f":"IFERROR(IF(Table_NCSummary[[#This Row],[IsActive]],IF(ISNUMBER(MATCH(Table_NCInfo[[#This Row],[Line]],Table_NCInspection[Line],0)),INDEX(Table_NCInspection[Fixture Wattage '[P']],MATCH(Table_NCSummary[[#This Row],[Line Item]],Table_NCInspection[Line],0)),Table_NCInfo[[#This Row],[Fixture Wattage '[P']]]),\"\"),\"\")","v":""},{"$f":"IFERROR(Table_NCSummary[[#This Row],[P. Qty]]*Table_NCSummary[[#This Row],[Proposed Fixture Wattage]],\"\")","v":""},{"$f":"IFERROR(Table_NCSummary[[#This Row],[Proposed Fixture Wattage]]/1000*Table_NCSummary[[#This Row],[OpHrs]]*Table_NCSummary[[#This Row],[P. Qty]],\"\")","v":""},{"$f":"IFERROR(IF(Table_NCSummary[[#This Row],[IsActive]],IFERROR(VLOOKUP(RIGHT(Table_NCSummary[[#This Row],[Proposed Fixture]],LEN(Table_NCSummary[[#This Row],[Proposed Fixture]])-FIND(\" - \",Table_NCSummary[[#This Row],[Proposed Fixture]],FIND(\"]\",Table_NCSummary[[#This Row],[Proposed Fixture]],1))-2),Table_ControlType[],3, FALSE),Table_NCSummary[[#This Row],[Existing CSF]]),\"\"),\"\")","v":""},{"$f":"IFERROR(IF(Table_NCSummary[[#This Row],[IsActive]],IFERROR(Table_NCSummary[[#This Row],[Proposed Fixture Wattage]]/1000*Table_NCSummary[[#This Row],[OpHrs]]*Table_NCSummary[[#This Row],[P. Qty]]*Table_NCSummary[[#This Row],[Existing CSF]]*(-1),0),\"\"),\"\")","v":""},{"$f":"IFERROR(Table_NCSummary[[#This Row],[Proposed Fixture kWh]]+Table_NCSummary[[#This Row],[Proposed Fixture (Existing Controls) kWh]],\"\")","v":""},{"$f":"IFERROR(IF(Table_NCSummary[[#This Row],[IsActive]],IFERROR(Table_NCSummary[[#This Row],[Proposed Fixture Wattage]]/1000*Table_NCSummary[[#This Row],[OpHrs]]*Table_NCSummary[[#This Row],[P. Qty]]*Table_NCSummary[[#This Row],[Proposed CSF]]*(-1),0),\"\"),\"\")","v":""},{"$f":"IFERROR(Table_NCSummary[[#This Row],[Proposed Fixture kWh]]+Table_NCSummary[[#This Row],[Proposed Fixture (Proposed Controls) kWh]],\"\")","v":""},null,{"$f":"IFERROR(IF(Table_NCSummary[[#This Row],[IsActive]],IF((1-SUMPRODUCT(Table_NCSummary[P. Qty],Table_NCSummary[Proposed Fixture Wattage])/SUM(Table_NCSummary[Baseline Wattage]))<0.1,\"Does Not Qualify [Overall Fixture Reduction is less than 10%]\",IF(ISNUMBER(FIND(\"LED\",Table_NCSummary[[#This Row],[Proposed Fixture]],1)),IF(ISNUMBER(FIND(\"LED Tube\",Table_NCSummary[[#This Row],[Proposed Fixture]],1)),\"New Construction Interior LED Fixture\",IF(ISNUMBER(FIND(\"LED\",Table_NCSummary[[#This Row],[Proposed Fixture]],1)),IF(Table_NCInfo[[#This Row],[Interior/ Exterior]]=\"Exterior\",\"New Construction Exterior LED Fixture\",\"New Construction Interior LED Fixture\"),\"Ineligible Fixture\")),\"Ineligible Fixture\")),\"\"),\"\")","v":""},{"$f":"IFERROR(VLOOKUP(Table_NCSummary[[#This Row],[Fixture Measure Description]],Table_FixtureRate[],2,FALSE),\"\")","v":""},{"$f":"IFERROR(IF(Table_NCSummary[[#This Row],[IsActive]],IF((1-SUMPRODUCT(Table_NCSummary[P. Qty],Table_NCSummary[Proposed Fixture Wattage])/SUM(Table_NCSummary[Baseline Wattage]))<0.1,\"DNQ [kW Reduction <10%]\",IF(Table_NCSummary[[#This Row],[Fixture Measure Description]]=\"Ineligible Fixture\",0,ROUND(Table_NCSummary[[#This Row],[Fixture Rebate (per kW)]]*(Table_NCSummary[[#This Row],[Baseline Wattage]]-Table_NCSummary[[#This Row],[Proposed Wattage]])/1000,2))),\"\"),\"\")","v":""},{"$f":"IFERROR(IF(Table_NCSummary[[#This Row],[Fixture Measure Description]]=\"Ineligible Fixture\",0,ROUND(IF(ProjectCost_Total=0,300000,ProjectCost_Total)*Table_NCSummary[[#This Row],[Fixture Rebate]]/SUM(Table_NCSummary[Fixture Rebate],Table_NCSummary[Controls Rebate]),2)),\"\")","v":""},{"$f":"IFERROR(IF(Table_NCSummary[[#This Row],[IsActive]],IF((1-SUMPRODUCT(Table_NCSummary[P. Qty],Table_NCSummary[Proposed Fixture Wattage])/SUM(Table_NCSummary[Baseline Wattage]))<0.1,\"DNQ [kW Reduction <10%]\",IF(Table_NCSummary[[#This Row],[Fixture Measure Description]]=\"Ineligible Fixture\",0,Table_NCSummary[[#This Row],[Existing Overall kWh]]-Table_NCSummary[[#This Row],[Proposed Overall kWh (Existing Controls)]])),\"\"),\"\")","v":""},{"$f":"IFERROR(IF(Table_NCSummary[[#This Row],[IsActive]],IF((1-SUMPRODUCT(Table_NCSummary[P. Qty],Table_NCSummary[Proposed Fixture Wattage])/SUM(Table_NCSummary[Baseline Wattage]))<0.1,\"DNQ [kW Reduction <10%]\",IF(OR(Table_NCSummary[[#This Row],[Fixture Measure Description]]=\"Ineligible Fixture\",Table_NCSummary[[#This Row],[Fixture Measure Description]]=\"New Construction Exterior LED Fixture\"),0,(Table_NCSummary[[#This Row],[Baseline kWh]]-Table_NCSummary[[#This Row],[Proposed Fixture kWh]])/Table_NCSummary[[#This Row],[OpHrs]]*Table_NCSummary[[#This Row],[CF (Ltg)]]*Table_NCSummary[[#This Row],[DF (Ltg)]])),\"\"),\"\")","v":""},null,{"$f":"IFERROR(\n  IF(OR(Table_NCSummary[[#This Row],[Fixture Measure Description]]=\"\",Table_NCSummary[[#This Row],[Fixture Measure Description]]=\"Ineligible Fixture\"),\n    \"\",\n    \"New Construction\"\n    & \" - \" &\n    IFERROR(VLOOKUP(RIGHT(Table_NCSummary[[#This Row],[Proposed Fixture]],LEN(Table_NCSummary[[#This Row],[Proposed Fixture]])-FIND(\" - \",Table_NCSummary[[#This Row],[Proposed Fixture]],FIND(\"]\",Table_NCSummary[[#This Row],[Proposed Fixture]],1))-2),Table_ControlType[],2, FALSE),None)),\n\"\")","v":""},{"$f":"IFERROR(VLOOKUP(Table_NCSummary[[#This Row],[Controls Measure Description]],Table_ControlRate[],2,FALSE),\"\")","v":""},{"$f":"IFERROR(IF(Table_NCSummary[[#This Row],[IsActive]],IF((1-SUMPRODUCT(Table_NCSummary[P. Qty],Table_NCSummary[Proposed Fixture Wattage])/SUM(Table_NCSummary[Baseline Wattage]))<0.1,\"DNQ [kW Reduction <10%]\",IF(OR(Table_NCSummary[[#This Row],[Controls Measure Description]]=\"\",Table_NCSummary[[#This Row],[Controls Measure Description]]=\"New Construction - No Controls\"),0,ROUND(Table_NCSummary[[#This Row],[Controls Rebate (per Fixt Watt)]]*Table_NCSummary[[#This Row],[Proposed Fixture Wattage]]*Table_NCSummary[[#This Row],[P. Qty]],2))),\"\"),\"\")","v":""},{"$f":"IFERROR(IF(Table_NCSummary[[#This Row],[Fixture Measure Description]]=\"Ineligible Fixture\",0,ROUND(IF(ProjectCost_Total=0,300000,ProjectCost_Total)*Table_NCSummary[[#This Row],[Controls Rebate]]/SUM(Table_NCSummary[Fixture Rebate],Table_NCSummary[Controls Rebate]),2)),\"\")","v":""},{"$f":"IFERROR(IF(Table_NCSummary[[#This Row],[IsActive]],IF((1-SUMPRODUCT(Table_NCSummary[P. Qty],Table_NCSummary[Proposed Fixture Wattage])/SUM(Table_NCSummary[Baseline Wattage]))<0.1,\"DNQ [kW Reduction <10%]\",IF(Table_NCSummary[[#This Row],[Controls Measure Description]]=\"\",0,(Table_NCSummary[[#This Row],[Proposed Fixture (Existing Controls) kWh]]-Table_NCSummary[[#This Row],[Proposed Fixture (Proposed Controls) kWh]]))),\"\"),\"\")","v":""},{"$f":"IFERROR(IF(Table_NCSummary[[#This Row],[IsActive]],IF((1-SUMPRODUCT(Table_NCSummary[P. Qty],Table_NCSummary[Proposed Fixture Wattage])/SUM(Table_NCSummary[Baseline Wattage]))<0.1,\"DNQ [kW Reduction <10%]\",IF(OR(Table_NCSummary[[#This Row],[Controls Measure Description]]=\"\",Table_NCSummary[[#This Row],[Controls Measure Description]]=\"New Construction - No Controls\"),0,(Table_NCSummary[[#This Row],[Proposed Fixture (Existing Controls) kWh]]-Table_NCSummary[[#This Row],[Proposed Fixture (Proposed Controls) kWh]])/Table_NCSummary[[#This Row],[OpHrs]]*Table_NCSummary[[#This Row],[CF (Ltg)]]*Table_NCSummary[[#This Row],[DF (Ltg)]])),\"\"),\"\")","v":""},null,{"$f":"IFERROR(IF(NOT(ISNUMBER(Table_NCSummary[[#This Row],[Fixture Rebate]])),\"\",IF(MIN(IF(Table_NCSummary[[#This Row],[Fixture Cost]]<0,0,SUM(Table_NCSummary[Fixture Cost],Table_NCSummary[Controls Cost])),SUM(Table_NCSummary[Fixture Rebate],Table_NCSummary[Controls Rebate]))>300000,300000/MIN(IF(Table_NCSummary[[#This Row],[Fixture Cost]]<0,0,SUM(Table_NCSummary[Fixture Cost],Table_NCSummary[Controls Cost])),SUM(Table_NCSummary[Fixture Rebate],Table_NCSummary[Controls Rebate]))*MIN(IF(Table_NCSummary[[#This Row],[Fixture Cost]]<0,0,SUM(Table_NCSummary[Fixture Cost],Table_NCSummary[Controls Cost])),Table_NCSummary[[#This Row],[Fixture Rebate]]+IF(Table_NCSummary[[#This Row],[Controls Rebate]]=\"\",0,Table_NCSummary[[#This Row],[Controls Rebate]])),MIN(IF(Table_NCSummary[[#This Row],[Fixture Cost]]<0,0,SUM(Table_NCSummary[Fixture Cost],Table_NCSummary[Controls Cost])),Table_NCSummary[[#This Row],[Fixture Rebate]]+IF(Table_NCSummary[[#This Row],[Controls Rebate]]=\"\",0,Table_NCSummary[[#This Row],[Controls Rebate]])))),\"\")","v":""},{"$f":"IFERROR(IF(Table_NCSummary[[#This Row],[Fixture Cost]]=\"\",\"\",Table_NCSummary[[#This Row],[Fixture Cost]]+IF(Table_NCSummary[[#This Row],[Controls Cost]]=\"\",0,Table_NCSummary[[#This Row],[Controls Cost]])),\"\")","v":""},{"$f":"IFERROR(IF(Table_NCSummary[[#This Row],[IsActive]],IF(NOT(ISNUMBER(Table_NCSummary[[#This Row],[Fixture Rebate]])),\"\",IF(Table_NCInfo[[#This Row],[Interior/ Exterior]]=\"Interior\",IFERROR((Table_NCSummary[[#This Row],[Annual Fixture Savings (kWh)]]+Table_NCSummary[[#This Row],[Annual Control Savings (kWh)]])*(Table_NCSummary[[#This Row],[EIF]]-1),0),0)),\"\"),\"\")","v":""},{"$f":"IFERROR(IF(Table_NCSummary[[#This Row],[IsActive]],IF(NOT(ISNUMBER(Table_NCSummary[[#This Row],[Fixture Rebate]])),\"\",IF(Table_NCInfo[[#This Row],[Interior/ Exterior]]=\"Interior\",IFERROR((Table_NCSummary[[#This Row],[Fixture kW Reduction]]+Table_NCSummary[[#This Row],[Control kW Reduction]]/(Table_NCSummary[[#This Row],[CF (Ltg)]]*Table_NCSummary[[#This Row],[DF (Ltg)]]))*(Table_NCSummary[[#This Row],[DIF]]-1)*Table_NCSummary[[#This Row],[CF (HVAC)]]*Table_NCSummary[[#This Row],[DF (HVAC)]],0),0)),\"\"),\"\")","v":""},{"$f":"IFERROR(IF(Table_NCSummary[[#This Row],[IsActive]],IF(NOT(ISNUMBER(Table_NCSummary[[#This Row],[Fixture Rebate]])),\"\",ROUND(Table_NCSummary[[#This Row],[Annual Fixture Savings (kWh)]]+Table_NCSummary[[#This Row],[Annual Control Savings (kWh)]],0)),\"\"),\"\")","v":""},{"$f":"IFERROR(IF(Table_NCSummary[[#This Row],[IsActive]],IF(NOT(ISNUMBER(Table_NCSummary[[#This Row],[Fixture Rebate]])),\"\",ROUND(Table_NCSummary[[#This Row],[Fixture kW Reduction]]+Table_NCSummary[[#This Row],[Control kW Reduction]],3)),\"\"),\"\")","v":""},{"$f":"IFERROR(IF(Table_NCSummary[[#This Row],[IsActive]],IF(NOT(ISNUMBER(Table_NCSummary[[#This Row],[Fixture Rebate]])),\"\",ROUND(Table_NCSummary[[#This Row],[Fixture Energy Savings (kWh)]]+Table_NCSummary[[#This Row],[Induced HVAC Energy Savings (kWh)]],0)),\"\"),\"\")","v":""},{"$f":"IFERROR(IF(Table_NCSummary[[#This Row],[IsActive]],IF(NOT(ISNUMBER(Table_NCSummary[[#This Row],[Fixture Rebate]])),\"\",ROUND(Table_NCSummary[[#This Row],[Fixture Demand Savings (kW)]]+Table_NCSummary[[#This Row],[Induced HVAC Demand Savings (kW)]],3)),\"\"),\"\")","v":""}]
[{"$f":"IFERROR(Table_NCInfo[[#This Row],[Line]],\"\")","v":5},{"$f":"IFERROR(Table_NCInfo[[#This Row],[IsActive]],\"\")","v":false},{"$f":"IFERROR(IF(Table_NCSummary[[#This Row],[IsActive]],VLOOKUP(IF(ISNUMBER(MATCH(Table_NCInfo[[#This Row],[Line]],Table_NCInspection[Line],0)),INDEX(Table_NCInspection[Schedule],MATCH(Table_NCSummary[[#This Row],[Line Item]],Table_NCInspection[Line],0)),Table_NCInfo[[#This Row],[Schedule]]),'Customer Information'!$S$27:$T$34,2,FALSE),\"\"),\"\")","v":""},{"$f":"IFERROR(IF(Table_NCSummary[[#This Row],[IsActive]],INDEX(Table_IntLookups[EIF],MATCH(IF(ISNUMBER(MATCH(Table_NCSummary[[#This Row],[Line Item]],Table_NCInspection[Line],0)),INDEX(Table_NCInspection[Zone Description],MATCH(Table_NCSummary[[#This Row],[Line Item]],Table_NCInfo[Line],0)),Table_NCInfo[[#This Row],[Zone Description]]),Table_IntLookups[Dropdown],0)),\"\"),\"\")","v":""},{"$f":"IFERROR(IF(Table_NCSummary[[#This Row],[IsActive]],INDEX(Table_IntLookups[DIF],MATCH(IF(ISNUMBER(MATCH(Table_NCSummary[[#This Row],[Line Item]],Table_NCInspection[Line],0)),INDEX(Table_NCInspection[Zone Description],MATCH(Table_NCSummary[[#This Row],[Line Item]],Table_NCInfo[Line],0)),Table_NCInfo[[#This Row],[Zone Description]]),Table_IntLookups[Dropdown],0)),\"\"),\"\")","v":""},{"$f":"IFERROR(IF(Table_NCSummary[[#This Row],[IsActive]],INDEX(Table_IntLookups[CFltg],MATCH(IF(ISNUMBER(MATCH(Table_NCSummary[[#This Row],[Line Item]],Table_NCInspection[Line],0)),INDEX(Table_NCInspection[Zone Description],MATCH(Table_NCSummary[[#This Row],[Line Item]],Table_NCInfo[Line],0)),Table_NCInfo[[#This Row],[Zone Description]]),Table_IntLookups[Dropdown],0)),\"\"),\"\")","v":""},{"$f":"IFERROR(IF(Table_NCSummary[[#This Row],[IsActive]],INDEX(Table_IntLookups[DFltg],MATCH(IF(ISNUMBER(MATCH(Table_NCSummary[[#This Row],[Line Item]],Table_NCInspection[Line],0)),INDEX(Table_NCInspection[Zone Description],MATCH(Table_NCSummary[[#This Row],[Line Item]],Table_NCInfo[Line],0)),Table_NCInfo[[#This Row],[Zone Description]]),Table_IntLookups[Dropdown],0)),\"\"),\"\")","v":""},{"$f":"IFERROR(IF(Table_NCSummary[[#This Row],[IsActive]],INDEX(Table_IntLookups[Cfhvac],MATCH(IF(ISNUMBER(MATCH(Table_NCSummary[[#This Row],[Line Item]],Table_NCInspection[Line],0)),INDEX(Table_NCInspection[Zone Description],MATCH(Table_NCSummary[[#This Row],[Line Item]],Table_NCInfo[Line],0)),Table_NCInfo[[#This Row],[Zone Description]]),Table_IntLookups[Dropdown],0)),\"\"),\"\")","v":""},{"$f":"IFERROR(IF(Table_NCSummary[[#This Row],[IsActive]],INDEX(Table_IntLookups[Dfhvac],MATCH(IF(ISNUMBER(MATCH(Table_NCSummary[[#This Row],[Line Item]],Table_NCInspection[Line],0)),INDEX(Table_NCInspection[Zone Description],MATCH(Table_NCSummary[[#This Row],[Line Item]],Table_NCInfo[Line],0)),Table_NCInfo[[#This Row],[Zone Description]]),Table_IntLookups[Dropdown],0)),\"\"),\"\")","v":""},{"$f":"IFERROR(IF(Table_NCSummary[[#This Row],[IsActive]],\nIF(ISNUMBER(MATCH(Table_NCInfo[[#This Row],[Line]],Table_NCInspection[Line],0)),INDEX(Table_NCInspection[Zone Description],MATCH(Table_NCSummary[[#This Row],[Line Item]],Table_NCInspection[Line],0)),Table_NCInfo[[#This Row],[Zone Description]]),\n \"\"),\"\")","v":""},{"$f":"IFERROR(IF(Table_NCSummary[[#This Row],[IsActive]],\nCONCATENATE(\nIF(ISNUMBER(MATCH(Table_NCInfo[[#This Row],[Line]],Table_NCInspection[Line],0)),INDEX(Table_NCInspection[Interior/ Exterior],MATCH(Table_NCSummary[[#This Row],[Line Item]],Table_NCInspection[Line],0)),Table_NCInfo[[#This Row],[Interior/ Exterior]]),\n\" - \",\nIF(ISNUMBER(MATCH(Table_NCInfo[[#This Row],[Line]],Table_NCInspection[Line],0)),INDEX(Table_NCInspection[Space Description],MATCH(Table_NCSummary[[#This Row],[Line Item]],Table_NCInspection[Line],0)),Table_NCInfo[[#This Row],[Space Description]])),\n \"\"),\"\")","v":""},{"$f":"IFERROR(IF(ISNUMBER(MATCH(Table_NCInfo[[#This Row],[Line]],Table_NCInspection[Line],0)),INDEX(Table_NCInspection[Baseline Wattage],MATCH(Table_NCSummary[[#This Row],[Line Item]],Table_NCInspection[Line],0)),Table_NCInfo[[#This Row],[Baseline Wattage]]),\"\")","v":""},{"$f":"IFERROR(IF(Table_NCSummary[[#This Row],[IsActive]],Table_NCSummary[[#This Row],[Baseline Wattage]]/1000*Table_NCSummary[[#This Row],[OpHrs]],\"\"),\"\")","v":""},{"$f":"IFERROR(IF(Table_NCSummary[[#This Row],[IsActive]],IFERROR(VLOOKUP(IF(ISNUMBER(MATCH(Table_NCSummary[[#This Row],[Line Item]],Table_NCInspection[Line],0)),INDEX(Table_NCInspection[Zone '#],MATCH(Table_NCSummary[[#This Row],[Line Item]],Table_NCInspection[Line],0)),Table_NCInfo[[#This Row],[Zone '#]]),Table_IntLookups[],'Facility Information'!$AA$4,FALSE),0),\"\"),\"\")","v":""},{"$f":"IFERROR(IF(Table_NCSummary[[#This Row],[IsActive]],IFERROR(Table_NCSummary[[#This Row],[Baseline Wattage]]/1000*Table_NCSummary[[#This Row],[OpHrs]]*Table_NCSummary[[#This Row],[Existing CSF]]*(-1),0),\"\"),\"\")","v":""},{"$f":"IFERROR(Table_NCSummary[[#This Row],[Baseline kWh]]+Table_NCSummary[[#This Row],[Existing Fixture (Existing Controls) kWh]],\"\")","v":""},{"$f":"IFERROR(IF(Table_NCSummary[[#This Row],[IsActive]],IF(ISNUMBER(MATCH(Table_NCInfo[[#This Row],[Line]],Table_NCInspection[Line],0)),INDEX(Table_NCInspection[Fixture Description '[P']],MATCH(Table_NCSummary[[#This Row],[Line Item]],Table_NCInspection[Line],0)),Table_NCInfo[[#This Row],[Fixture Description '[P']]]),\"\"),\"\")","v":""},{"$f":"IFERROR(IF(Table_NCSummary[[#This Row],[IsActive]],IF(ISNUMBER(MATCH(Table_NCInfo[[#This Row],[Line]],Table_NCInspection[Line],0)),INDEX(Table_NCInspection['# Lamps/ Fixture '[P']],MATCH(Table_NCSummary[[#This Row],[Line Item]],Table_NCInspection[Line],0)),Table_NCInfo[[#This Row],['# Lamps/ Fixture '[P']]]),\"\"),\"\")","v":""},{"$f":"IFERROR(IF(Table_NCSummary[[#This Row],[IsActive]],IF(ISNUMBER(MATCH(Table_NCInfo[[#This Row],[Line]],Table_NCInspection[Line],0)),INDEX(Table_NCInspection[Fixture/ Lamp Wattage '[P']],MATCH(Table_NCSummary[[#This Row],[Line Item]],Table_NCInspection[Line],0)),Table_NCInfo[[#This Row],[Fixture/ Lamp Wattage '[P']]]),\"\"),\"\")","v":""},{"$f":"IFERROR(IF(Table_NCSummary[[#This Row],[IsActive]],IF(ISNUMBER(MATCH(Table_NCInfo[[#This Row],[Line]],Table_NCInspection[Line],0)),INDEX(Table_NCInspection[Fixture Qty '[P']],MATCH(Table_NCSummary[[#This Row],[Line Item]],Table_NCInspection[Line],0)),Table_NCInfo[[#This Row],[Fixture Qty '[P']]]),\"\"),\"\")","v":""},{"$f":"IFERROR(IF(Table_NCSummary[[#This Row],[IsActive]],Table_NCSummary[[#This Row],['# Lamps/ Fixture '[P']]]*Table_NCSummary[[#This Row],[P. Qty]],\"\"),\"\")","v":""},{"$f":"IFERROR(IF(Table_NCSummary[[#This Row],[IsActive]],IF(ISNUMBER(MATCH(Table_NCInfo[[#This Row],[Line]],Table_NCInspection[Line],0)),INDEX(Table_NCInspection[Fixture Wattage '[P']],MATCH(Table_NCSummary[[#This Row],[Line Item]],Table_NCInspection[Line],0)),Table_NCInfo[[#This Row],[Fixture Wattage '[P']]]),\"\"),\"\")","v":""},{"$f":"IFERROR(Table_NCSummary[[#This Row],[P. Qty]]*Table_NCSummary[[#This Row],[Proposed Fixture Wattage]],\"\")","v":""},{"$f":"IFERROR(Table_NCSummary[[#This Row],[Proposed Fixture Wattage]]/1000*Table_NCSummary[[#This Row],[OpHrs]]*Table_NCSummary[[#This Row],[P. Qty]],\"\")","v":""},{"$f":"IFERROR(IF(Table_NCSummary[[#This Row],[IsActive]],IFERROR(VLOOKUP(RIGHT(Table_NCSummary[[#This Row],[Proposed Fixture]],LEN(Table_NCSummary[[#This Row],[Proposed Fixture]])-FIND(\" - \",Table_NCSummary[[#This Row],[Proposed Fixture]],FIND(\"]\",Table_NCSummary[[#This Row],[Proposed Fixture]],1))-2),Table_ControlType[],3, FALSE),Table_NCSummary[[#This Row],[Existing CSF]]),\"\"),\"\")","v":""},{"$f":"IFERROR(IF(Table_NCSummary[[#This Row],[IsActive]],IFERROR(Table_NCSummary[[#This Row],[Proposed Fixture Wattage]]/1000*Table_NCSummary[[#This Row],[OpHrs]]*Table_NCSummary[[#This Row],[P. Qty]]*Table_NCSummary[[#This Row],[Existing CSF]]*(-1),0),\"\"),\"\")","v":""},{"$f":"IFERROR(Table_NCSummary[[#This Row],[Proposed Fixture kWh]]+Table_NCSummary[[#This Row],[Proposed Fixture (Existing Controls) kWh]],\"\")","v":""},{"$f":"IFERROR(IF(Table_NCSummary[[#This Row],[IsActive]],IFERROR(Table_NCSummary[[#This Row],[Proposed Fixture Wattage]]/1000*Table_NCSummary[[#This Row],[OpHrs]]*Table_NCSummary[[#This Row],[P. Qty]]*Table_NCSummary[[#This Row],[Proposed CSF]]*(-1),0),\"\"),\"\")","v":""},{"$f":"IFERROR(Table_NCSummary[[#This Row],[Proposed Fixture kWh]]+Table_NCSummary[[#This Row],[Proposed Fixture (Proposed Controls) kWh]],\"\")","v":""},null,{"$f":"IFERROR(IF(Table_NCSummary[[#This Row],[IsActive]],IF((1-SUMPRODUCT(Table_NCSummary[P. Qty],Table_NCSummary[Proposed Fixture Wattage])/SUM(Table_NCSummary[Baseline Wattage]))<0.1,\"Does Not Qualify [Overall Fixture Reduction is less than 10%]\",IF(ISNUMBER(FIND(\"LED\",Table_NCSummary[[#This Row],[Proposed Fixture]],1)),IF(ISNUMBER(FIND(\"LED Tube\",Table_NCSummary[[#This Row],[Proposed Fixture]],1)),\"New Construction Interior LED Fixture\",IF(ISNUMBER(FIND(\"LED\",Table_NCSummary[[#This Row],[Proposed Fixture]],1)),IF(Table_NCInfo[[#This Row],[Interior/ Exterior]]=\"Exterior\",\"New Construction Exterior LED Fixture\",\"New Construction Interior LED Fixture\"),\"Ineligible Fixture\")),\"Ineligible Fixture\")),\"\"),\"\")","v":""},{"$f":"IFERROR(VLOOKUP(Table_NCSummary[[#This Row],[Fixture Measure Description]],Table_FixtureRate[],2,FALSE),\"\")","v":""},{"$f":"IFERROR(IF(Table_NCSummary[[#This Row],[IsActive]],IF((1-SUMPRODUCT(Table_NCSummary[P. Qty],Table_NCSummary[Proposed Fixture Wattage])/SUM(Table_NCSummary[Baseline Wattage]))<0.1,\"DNQ [kW Reduction <10%]\",IF(Table_NCSummary[[#This Row],[Fixture Measure Description]]=\"Ineligible Fixture\",0,ROUND(Table_NCSummary[[#This Row],[Fixture Rebate (per kW)]]*(Table_NCSummary[[#This Row],[Baseline Wattage]]-Table_NCSummary[[#This Row],[Proposed Wattage]])/1000,2))),\"\"),\"\")","v":""},{"$f":"IFERROR(IF(Table_NCSummary[[#This Row],[Fixture Measure Description]]=\"Ineligible Fixture\",0,ROUND(IF(ProjectCost_Total=0,300000,ProjectCost_Total)*Table_NCSummary[[#This Row],[Fixture Rebate]]/SUM(Table_NCSummary[Fixture Rebate],Table_NCSummary[Controls Rebate]),2)),\"\")","v":""},{"$f":"IFERROR(IF(Table_NCSummary[[#This Row],[IsActive]],IF((1-SUMPRODUCT(Table_NCSummary[P. Qty],Table_NCSummary[Proposed Fixture Wattage])/SUM(Table_NCSummary[Baseline Wattage]))<0.1,\"DNQ [kW Reduction <10%]\",IF(Table_NCSummary[[#This Row],[Fixture Measure Description]]=\"Ineligible Fixture\",0,Table_NCSummary[[#This Row],[Existing Overall kWh]]-Table_NCSummary[[#This Row],[Proposed Overall kWh (Existing Controls)]])),\"\"),\"\")","v":""},{"$f":"IFERROR(IF(Table_NCSummary[[#This Row],[IsActive]],IF((1-SUMPRODUCT(Table_NCSummary[P. Qty],Table_NCSummary[Proposed Fixture Wattage])/SUM(Table_NCSummary[Baseline Wattage]))<0.1,\"DNQ [kW Reduction <10%]\",IF(OR(Table_NCSummary[[#This Row],[Fixture Measure Description]]=\"Ineligible Fixture\",Table_NCSummary[[#This Row],[Fixture Measure Description]]=\"New Construction Exterior LED Fixture\"),0,(Table_NCSummary[[#This Row],[Baseline kWh]]-Table_NCSummary[[#This Row],[Proposed Fixture kWh]])/Table_NCSummary[[#This Row],[OpHrs]]*Table_NCSummary[[#This Row],[CF (Ltg)]]*Table_NCSummary[[#This Row],[DF (Ltg)]])),\"\"),\"\")","v":""},null,{"$f":"IFERROR(\n  IF(OR(Table_NCSummary[[#This Row],[Fixture Measure Description]]=\"\",Table_NCSummary[[#This Row],[Fixture Measure Description]]=\"Ineligible Fixture\"),\n    \"\",\n    \"New Construction\"\n    & \" - \" &\n    IFERROR(VLOOKUP(RIGHT(Table_NCSummary[[#This Row],[Proposed Fixture]],LEN(Table_NCSummary[[#This Row],[Proposed Fixture]])-FIND(\" - \",Table_NCSummary[[#This Row],[Proposed Fixture]],FIND(\"]\",Table_NCSummary[[#This Row],[Proposed Fixture]],1))-2),Table_ControlType[],2, FALSE),None)),\n\"\")","v":""},{"$f":"IFERROR(VLOOKUP(Table_NCSummary[[#This Row],[Controls Measure Description]],Table_ControlRate[],2,FALSE),\"\")","v":""},{"$f":"IFERROR(IF(Table_NCSummary[[#This Row],[IsActive]],IF((1-SUMPRODUCT(Table_NCSummary[P. Qty],Table_NCSummary[Proposed Fixture Wattage])/SUM(Table_NCSummary[Baseline Wattage]))<0.1,\"DNQ [kW Reduction <10%]\",IF(OR(Table_NCSummary[[#This Row],[Controls Measure Description]]=\"\",Table_NCSummary[[#This Row],[Controls Measure Description]]=\"New Construction - No Controls\"),0,ROUND(Table_NCSummary[[#This Row],[Controls Rebate (per Fixt Watt)]]*Table_NCSummary[[#This Row],[Proposed Fixture Wattage]]*Table_NCSummary[[#This Row],[P. Qty]],2))),\"\"),\"\")","v":""},{"$f":"IFERROR(IF(Table_NCSummary[[#This Row],[Fixture Measure Description]]=\"Ineligible Fixture\",0,ROUND(IF(ProjectCost_Total=0,300000,ProjectCost_Total)*Table_NCSummary[[#This Row],[Controls Rebate]]/SUM(Table_NCSummary[Fixture Rebate],Table_NCSummary[Controls Rebate]),2)),\"\")","v":""},{"$f":"IFERROR(IF(Table_NCSummary[[#This Row],[IsActive]],IF((1-SUMPRODUCT(Table_NCSummary[P. Qty],Table_NCSummary[Proposed Fixture Wattage])/SUM(Table_NCSummary[Baseline Wattage]))<0.1,\"DNQ [kW Reduction <10%]\",IF(Table_NCSummary[[#This Row],[Controls Measure Description]]=\"\",0,(Table_NCSummary[[#This Row],[Proposed Fixture (Existing Controls) kWh]]-Table_NCSummary[[#This Row],[Proposed Fixture (Proposed Controls) kWh]]))),\"\"),\"\")","v":""},{"$f":"IFERROR(IF(Table_NCSummary[[#This Row],[IsActive]],IF((1-SUMPRODUCT(Table_NCSummary[P. Qty],Table_NCSummary[Proposed Fixture Wattage])/SUM(Table_NCSummary[Baseline Wattage]))<0.1,\"DNQ [kW Reduction <10%]\",IF(OR(Table_NCSummary[[#This Row],[Controls Measure Description]]=\"\",Table_NCSummary[[#This Row],[Controls Measure Description]]=\"New Construction - No Controls\"),0,(Table_NCSummary[[#This Row],[Proposed Fixture (Existing Controls) kWh]]-Table_NCSummary[[#This Row],[Proposed Fixture (Proposed Controls) kWh]])/Table_NCSummary[[#This Row],[OpHrs]]*Table_NCSummary[[#This Row],[CF (Ltg)]]*Table_NCSummary[[#This Row],[DF (Ltg)]])),\"\"),\"\")","v":""},null,{"$f":"IFERROR(IF(NOT(ISNUMBER(Table_NCSummary[[#This Row],[Fixture Rebate]])),\"\",IF(MIN(IF(Table_NCSummary[[#This Row],[Fixture Cost]]<0,0,SUM(Table_NCSummary[Fixture Cost],Table_NCSummary[Controls Cost])),SUM(Table_NCSummary[Fixture Rebate],Table_NCSummary[Controls Rebate]))>300000,300000/MIN(IF(Table_NCSummary[[#This Row],[Fixture Cost]]<0,0,SUM(Table_NCSummary[Fixture Cost],Table_NCSummary[Controls Cost])),SUM(Table_NCSummary[Fixture Rebate],Table_NCSummary[Controls Rebate]))*MIN(IF(Table_NCSummary[[#This Row],[Fixture Cost]]<0,0,SUM(Table_NCSummary[Fixture Cost],Table_NCSummary[Controls Cost])),Table_NCSummary[[#This Row],[Fixture Rebate]]+IF(Table_NCSummary[[#This Row],[Controls Rebate]]=\"\",0,Table_NCSummary[[#This Row],[Controls Rebate]])),MIN(IF(Table_NCSummary[[#This Row],[Fixture Cost]]<0,0,SUM(Table_NCSummary[Fixture Cost],Table_NCSummary[Controls Cost])),Table_NCSummary[[#This Row],[Fixture Rebate]]+IF(Table_NCSummary[[#This Row],[Controls Rebate]]=\"\",0,Table_NCSummary[[#This Row],[Controls Rebate]])))),\"\")","v":""},{"$f":"IFERROR(IF(Table_NCSummary[[#This Row],[Fixture Cost]]=\"\",\"\",Table_NCSummary[[#This Row],[Fixture Cost]]+IF(Table_NCSummary[[#This Row],[Controls Cost]]=\"\",0,Table_NCSummary[[#This Row],[Controls Cost]])),\"\")","v":""},{"$f":"IFERROR(IF(Table_NCSummary[[#This Row],[IsActive]],IF(NOT(ISNUMBER(Table_NCSummary[[#This Row],[Fixture Rebate]])),\"\",IF(Table_NCInfo[[#This Row],[Interior/ Exterior]]=\"Interior\",IFERROR((Table_NCSummary[[#This Row],[Annual Fixture Savings (kWh)]]+Table_NCSummary[[#This Row],[Annual Control Savings (kWh)]])*(Table_NCSummary[[#This Row],[EIF]]-1),0),0)),\"\"),\"\")","v":""},{"$f":"IFERROR(IF(Table_NCSummary[[#This Row],[IsActive]],IF(NOT(ISNUMBER(Table_NCSummary[[#This Row],[Fixture Rebate]])),\"\",IF(Table_NCInfo[[#This Row],[Interior/ Exterior]]=\"Interior\",IFERROR((Table_NCSummary[[#This Row],[Fixture kW Reduction]]+Table_NCSummary[[#This Row],[Control kW Reduction]]/(Table_NCSummary[[#This Row],[CF (Ltg)]]*Table_NCSummary[[#This Row],[DF (Ltg)]]))*(Table_NCSummary[[#This Row],[DIF]]-1)*Table_NCSummary[[#This Row],[CF (HVAC)]]*Table_NCSummary[[#This Row],[DF (HVAC)]],0),0)),\"\"),\"\")","v":""},{"$f":"IFERROR(IF(Table_NCSummary[[#This Row],[IsActive]],IF(NOT(ISNUMBER(Table_NCSummary[[#This Row],[Fixture Rebate]])),\"\",ROUND(Table_NCSummary[[#This Row],[Annual Fixture Savings (kWh)]]+Table_NCSummary[[#This Row],[Annual Control Savings (kWh)]],0)),\"\"),\"\")","v":""},{"$f":"IFERROR(IF(Table_NCSummary[[#This Row],[IsActive]],IF(NOT(ISNUMBER(Table_NCSummary[[#This Row],[Fixture Rebate]])),\"\",ROUND(Table_NCSummary[[#This Row],[Fixture kW Reduction]]+Table_NCSummary[[#This Row],[Control kW Reduction]],3)),\"\"),\"\")","v":""},{"$f":"IFERROR(IF(Table_NCSummary[[#This Row],[IsActive]],IF(NOT(ISNUMBER(Table_NCSummary[[#This Row],[Fixture Rebate]])),\"\",ROUND(Table_NCSummary[[#This Row],[Fixture Energy Savings (kWh)]]+Table_NCSummary[[#This Row],[Induced HVAC Energy Savings (kWh)]],0)),\"\"),\"\")","v":""},{"$f":"IFERROR(IF(Table_NCSummary[[#This Row],[IsActive]],IF(NOT(ISNUMBER(Table_NCSummary[[#This Row],[Fixture Rebate]])),\"\",ROUND(Table_NCSummary[[#This Row],[Fixture Demand Savings (kW)]]+Table_NCSummary[[#This Row],[Induced HVAC Demand Savings (kW)]],3)),\"\"),\"\")","v":""}]
[{"$f":"IFERROR(Table_NCInfo[[#This Row],[Line]],\"\")","v":6},{"$f":"IFERROR(Table_NCInfo[[#This Row],[IsActive]],\"\")","v":false},{"$f":"IFERROR(IF(Table_NCSummary[[#This Row],[IsActive]],VLOOKUP(IF(ISNUMBER(MATCH(Table_NCInfo[[#This Row],[Line]],Table_NCInspection[Line],0)),INDEX(Table_NCInspection[Schedule],MATCH(Table_NCSummary[[#This Row],[Line Item]],Table_NCInspection[Line],0)),Table_NCInfo[[#This Row],[Schedule]]),'Customer Information'!$S$27:$T$34,2,FALSE),\"\"),\"\")","v":""},{"$f":"IFERROR(IF(Table_NCSummary[[#This Row],[IsActive]],INDEX(Table_IntLookups[EIF],MATCH(IF(ISNUMBER(MATCH(Table_NCSummary[[#This Row],[Line Item]],Table_NCInspection[Line],0)),INDEX(Table_NCInspection[Zone Description],MATCH(Table_NCSummary[[#This Row],[Line Item]],Table_NCInfo[Line],0)),Table_NCInfo[[#This Row],[Zone Description]]),Table_IntLookups[Dropdown],0)),\"\"),\"\")","v":""},{"$f":"IFERROR(IF(Table_NCSummary[[#This Row],[IsActive]],INDEX(Table_IntLookups[DIF],MATCH(IF(ISNUMBER(MATCH(Table_NCSummary[[#This Row],[Line Item]],Table_NCInspection[Line],0)),INDEX(Table_NCInspection[Zone Description],MATCH(Table_NCSummary[[#This Row],[Line Item]],Table_NCInfo[Line],0)),Table_NCInfo[[#This Row],[Zone Description]]),Table_IntLookups[Dropdown],0)),\"\"),\"\")","v":""},{"$f":"IFERROR(IF(Table_NCSummary[[#This Row],[IsActive]],INDEX(Table_IntLookups[CFltg],MATCH(IF(ISNUMBER(MATCH(Table_NCSummary[[#This Row],[Line Item]],Table_NCInspection[Line],0)),INDEX(Table_NCInspection[Zone Description],MATCH(Table_NCSummary[[#This Row],[Line Item]],Table_NCInfo[Line],0)),Table_NCInfo[[#This Row],[Zone Description]]),Table_IntLookups[Dropdown],0)),\"\"),\"\")","v":""},{"$f":"IFERROR(IF(Table_NCSummary[[#This Row],[IsActive]],INDEX(Table_IntLookups[DFltg],MATCH(IF(ISNUMBER(MATCH(Table_NCSummary[[#This Row],[Line Item]],Table_NCInspection[Line],0)),INDEX(Table_NCInspection[Zone Description],MATCH(Table_NCSummary[[#This Row],[Line Item]],Table_NCInfo[Line],0)),Table_NCInfo[[#This Row],[Zone Description]]),Table_IntLookups[Dropdown],0)),\"\"),\"\")","v":""},{"$f":"IFERROR(IF(Table_NCSummary[[#This Row],[IsActive]],INDEX(Table_IntLookups[Cfhvac],MATCH(IF(ISNUMBER(MATCH(Table_NCSummary[[#This Row],[Line Item]],Table_NCInspection[Line],0)),INDEX(Table_NCInspection[Zone Description],MATCH(Table_NCSummary[[#This Row],[Line Item]],Table_NCInfo[Line],0)),Table_NCInfo[[#This Row],[Zone Description]]),Table_IntLookups[Dropdown],0)),\"\"),\"\")","v":""},{"$f":"IFERROR(IF(Table_NCSummary[[#This Row],[IsActive]],INDEX(Table_IntLookups[Dfhvac],MATCH(IF(ISNUMBER(MATCH(Table_NCSummary[[#This Row],[Line Item]],Table_NCInspection[Line],0)),INDEX(Table_NCInspection[Zone Description],MATCH(Table_NCSummary[[#This Row],[Line Item]],Table_NCInfo[Line],0)),Table_NCInfo[[#This Row],[Zone Description]]),Table_IntLookups[Dropdown],0)),\"\"),\"\")","v":""},{"$f":"IFERROR(IF(Table_NCSummary[[#This Row],[IsActive]],\nIF(ISNUMBER(MATCH(Table_NCInfo[[#This Row],[Line]],Table_NCInspection[Line],0)),INDEX(Table_NCInspection[Zone Description],MATCH(Table_NCSummary[[#This Row],[Line Item]],Table_NCInspection[Line],0)),Table_NCInfo[[#This Row],[Zone Description]]),\n \"\"),\"\")","v":""},{"$f":"IFERROR(IF(Table_NCSummary[[#This Row],[IsActive]],\nCONCATENATE(\nIF(ISNUMBER(MATCH(Table_NCInfo[[#This Row],[Line]],Table_NCInspection[Line],0)),INDEX(Table_NCInspection[Interior/ Exterior],MATCH(Table_NCSummary[[#This Row],[Line Item]],Table_NCInspection[Line],0)),Table_NCInfo[[#This Row],[Interior/ Exterior]]),\n\" - \",\nIF(ISNUMBER(MATCH(Table_NCInfo[[#This Row],[Line]],Table_NCInspection[Line],0)),INDEX(Table_NCInspection[Space Description],MATCH(Table_NCSummary[[#This Row],[Line Item]],Table_NCInspection[Line],0)),Table_NCInfo[[#This Row],[Space Description]])),\n \"\"),\"\")","v":""},{"$f":"IFERROR(IF(ISNUMBER(MATCH(Table_NCInfo[[#This Row],[Line]],Table_NCInspection[Line],0)),INDEX(Table_NCInspection[Baseline Wattage],MATCH(Table_NCSummary[[#This Row],[Line Item]],Table_NCInspection[Line],0)),Table_NCInfo[[#This Row],[Baseline Wattage]]),\"\")","v":""},{"$f":"IFERROR(IF(Table_NCSummary[[#This Row],[IsActive]],Table_NCSummary[[#This Row],[Baseline Wattage]]/1000*Table_NCSummary[[#This Row],[OpHrs]],\"\"),\"\")","v":""},{"$f":"IFERROR(IF(Table_NCSummary[[#This Row],[IsActive]],IFERROR(VLOOKUP(IF(ISNUMBER(MATCH(Table_NCSummary[[#This Row],[Line Item]],Table_NCInspection[Line],0)),INDEX(Table_NCInspection[Zone '#],MATCH(Table_NCSummary[[#This Row],[Line Item]],Table_NCInspection[Line],0)),Table_NCInfo[[#This Row],[Zone '#]]),Table_IntLookups[],'Facility Information'!$AA$4,FALSE),0),\"\"),\"\")","v":""},{"$f":"IFERROR(IF(Table_NCSummary[[#This Row],[IsActive]],IFERROR(Table_NCSummary[[#This Row],[Baseline Wattage]]/1000*Table_NCSummary[[#This Row],[OpHrs]]*Table_NCSummary[[#This Row],[Existing CSF]]*(-1),0),\"\"),\"\")","v":""},{"$f":"IFERROR(Table_NCSummary[[#This Row],[Baseline kWh]]+Table_NCSummary[[#This Row],[Existing Fixture (Existing Controls) kWh]],\"\")","v":""},{"$f":"IFERROR(IF(Table_NCSummary[[#This Row],[IsActive]],IF(ISNUMBER(MATCH(Table_NCInfo[[#This Row],[Line]],Table_NCInspection[Line],0)),INDEX(Table_NCInspection[Fixture Description '[P']],MATCH(Table_NCSummary[[#This Row],[Line Item]],Table_NCInspection[Line],0)),Table_NCInfo[[#This Row],[Fixture Description '[P']]]),\"\"),\"\")","v":""},{"$f":"IFERROR(IF(Table_NCSummary[[#This Row],[IsActive]],IF(ISNUMBER(MATCH(Table_NCInfo[[#This Row],[Line]],Table_NCInspection[Line],0)),INDEX(Table_NCInspection['# Lamps/ Fixture '[P']],MATCH(Table_NCSummary[[#This Row],[Line Item]],Table_NCInspection[Line],0)),Table_NCInfo[[#This Row],['# Lamps/ Fixture '[P']]]),\"\"),\"\")","v":""},{"$f":"IFERROR(IF(Table_NCSummary[[#This Row],[IsActive]],IF(ISNUMBER(MATCH(Table_NCInfo[[#This Row],[Line]],Table_NCInspection[Line],0)),INDEX(Table_NCInspection[Fixture/ Lamp Wattage '[P']],MATCH(Table_NCSummary[[#This Row],[Line Item]],Table_NCInspection[Line],0)),Table_NCInfo[[#This Row],[Fixture/ Lamp Wattage '[P']]]),\"\"),\"\")","v":""},{"$f":"IFERROR(IF(Table_NCSummary[[#This Row],[IsActive]],IF(ISNUMBER(MATCH(Table_NCInfo[[#This Row],[Line]],Table_NCInspection[Line],0)),INDEX(Table_NCInspection[Fixture Qty '[P']],MATCH(Table_NCSummary[[#This Row],[Line Item]],Table_NCInspection[Line],0)),Table_NCInfo[[#This Row],[Fixture Qty '[P']]]),\"\"),\"\")","v":""},{"$f":"IFERROR(IF(Table_NCSummary[[#This Row],[IsActive]],Table_NCSummary[[#This Row],['# Lamps/ Fixture '[P']]]*Table_NCSummary[[#This Row],[P. Qty]],\"\"),\"\")","v":""},{"$f":"IFERROR(IF(Table_NCSummary[[#This Row],[IsActive]],IF(ISNUMBER(MATCH(Table_NCInfo[[#This Row],[Line]],Table_NCInspection[Line],0)),INDEX(Table_NCInspection[Fixture Wattage '[P']],MATCH(Table_NCSummary[[#This Row],[Line Item]],Table_NCInspection[Line],0)),Table_NCInfo[[#This Row],[Fixture Wattage '[P']]]),\"\"),\"\")","v":""},{"$f":"IFERROR(Table_NCSummary[[#This Row],[P. Qty]]*Table_NCSummary[[#This Row],[Proposed Fixture Wattage]],\"\")","v":""},{"$f":"IFERROR(Table_NCSummary[[#This Row],[Proposed Fixture Wattage]]/1000*Table_NCSummary[[#This Row],[OpHrs]]*Table_NCSummary[[#This Row],[P. Qty]],\"\")","v":""},{"$f":"IFERROR(IF(Table_NCSummary[[#This Row],[IsActive]],IFERROR(VLOOKUP(RIGHT(Table_NCSummary[[#This Row],[Proposed Fixture]],LEN(Table_NCSummary[[#This Row],[Proposed Fixture]])-FIND(\" - \",Table_NCSummary[[#This Row],[Proposed Fixture]],FIND(\"]\",Table_NCSummary[[#This Row],[Proposed Fixture]],1))-2),Table_ControlType[],3, FALSE),Table_NCSummary[[#This Row],[Existing CSF]]),\"\"),\"\")","v":""},{"$f":"IFERROR(IF(Table_NCSummary[[#This Row],[IsActive]],IFERROR(Table_NCSummary[[#This Row],[Proposed Fixture Wattage]]/1000*Table_NCSummary[[#This Row],[OpHrs]]*Table_NCSummary[[#This Row],[P. Qty]]*Table_NCSummary[[#This Row],[Existing CSF]]*(-1),0),\"\"),\"\")","v":""},{"$f":"IFERROR(Table_NCSummary[[#This Row],[Proposed Fixture kWh]]+Table_NCSummary[[#This Row],[Proposed Fixture (Existing Controls) kWh]],\"\")","v":""},{"$f":"IFERROR(IF(Table_NCSummary[[#This Row],[IsActive]],IFERROR(Table_NCSummary[[#This Row],[Proposed Fixture Wattage]]/1000*Table_NCSummary[[#This Row],[OpHrs]]*Table_NCSummary[[#This Row],[P. Qty]]*Table_NCSummary[[#This Row],[Proposed CSF]]*(-1),0),\"\"),\"\")","v":""},{"$f":"IFERROR(Table_NCSummary[[#This Row],[Proposed Fixture kWh]]+Table_NCSummary[[#This Row],[Proposed Fixture (Proposed Controls) kWh]],\"\")","v":""},null,{"$f":"IFERROR(IF(Table_NCSummary[[#This Row],[IsActive]],IF((1-SUMPRODUCT(Table_NCSummary[P. Qty],Table_NCSummary[Proposed Fixture Wattage])/SUM(Table_NCSummary[Baseline Wattage]))<0.1,\"Does Not Qualify [Overall Fixture Reduction is less than 10%]\",IF(ISNUMBER(FIND(\"LED\",Table_NCSummary[[#This Row],[Proposed Fixture]],1)),IF(ISNUMBER(FIND(\"LED Tube\",Table_NCSummary[[#This Row],[Proposed Fixture]],1)),\"New Construction Interior LED Fixture\",IF(ISNUMBER(FIND(\"LED\",Table_NCSummary[[#This Row],[Proposed Fixture]],1)),IF(Table_NCInfo[[#This Row],[Interior/ Exterior]]=\"Exterior\",\"New Construction Exterior LED Fixture\",\"New Construction Interior LED Fixture\"),\"Ineligible Fixture\")),\"Ineligible Fixture\")),\"\"),\"\")","v":""},{"$f":"IFERROR(VLOOKUP(Table_NCSummary[[#This Row],[Fixture Measure Description]],Table_FixtureRate[],2,FALSE),\"\")","v":""},{"$f":"IFERROR(IF(Table_NCSummary[[#This Row],[IsActive]],IF((1-SUMPRODUCT(Table_NCSummary[P. Qty],Table_NCSummary[Proposed Fixture Wattage])/SUM(Table_NCSummary[Baseline Wattage]))<0.1,\"DNQ [kW Reduction <10%]\",IF(Table_NCSummary[[#This Row],[Fixture Measure Description]]=\"Ineligible Fixture\",0,ROUND(Table_NCSummary[[#This Row],[Fixture Rebate (per kW)]]*(Table_NCSummary[[#This Row],[Baseline Wattage]]-Table_NCSummary[[#This Row],[Proposed Wattage]])/1000,2))),\"\"),\"\")","v":""},{"$f":"IFERROR(IF(Table_NCSummary[[#This Row],[Fixture Measure Description]]=\"Ineligible Fixture\",0,ROUND(IF(ProjectCost_Total=0,300000,ProjectCost_Total)*Table_NCSummary[[#This Row],[Fixture Rebate]]/SUM(Table_NCSummary[Fixture Rebate],Table_NCSummary[Controls Rebate]),2)),\"\")","v":""},{"$f":"IFERROR(IF(Table_NCSummary[[#This Row],[IsActive]],IF((1-SUMPRODUCT(Table_NCSummary[P. Qty],Table_NCSummary[Proposed Fixture Wattage])/SUM(Table_NCSummary[Baseline Wattage]))<0.1,\"DNQ [kW Reduction <10%]\",IF(Table_NCSummary[[#This Row],[Fixture Measure Description]]=\"Ineligible Fixture\",0,Table_NCSummary[[#This Row],[Existing Overall kWh]]-Table_NCSummary[[#This Row],[Proposed Overall kWh (Existing Controls)]])),\"\"),\"\")","v":""},{"$f":"IFERROR(IF(Table_NCSummary[[#This Row],[IsActive]],IF((1-SUMPRODUCT(Table_NCSummary[P. Qty],Table_NCSummary[Proposed Fixture Wattage])/SUM(Table_NCSummary[Baseline Wattage]))<0.1,\"DNQ [kW Reduction <10%]\",IF(OR(Table_NCSummary[[#This Row],[Fixture Measure Description]]=\"Ineligible Fixture\",Table_NCSummary[[#This Row],[Fixture Measure Description]]=\"New Construction Exterior LED Fixture\"),0,(Table_NCSummary[[#This Row],[Baseline kWh]]-Table_NCSummary[[#This Row],[Proposed Fixture kWh]])/Table_NCSummary[[#This Row],[OpHrs]]*Table_NCSummary[[#This Row],[CF (Ltg)]]*Table_NCSummary[[#This Row],[DF (Ltg)]])),\"\"),\"\")","v":""},null,{"$f":"IFERROR(\n  IF(OR(Table_NCSummary[[#This Row],[Fixture Measure Description]]=\"\",Table_NCSummary[[#This Row],[Fixture Measure Description]]=\"Ineligible Fixture\"),\n    \"\",\n    \"New Construction\"\n    & \" - \" &\n    IFERROR(VLOOKUP(RIGHT(Table_NCSummary[[#This Row],[Proposed Fixture]],LEN(Table_NCSummary[[#This Row],[Proposed Fixture]])-FIND(\" - \",Table_NCSummary[[#This Row],[Proposed Fixture]],FIND(\"]\",Table_NCSummary[[#This Row],[Proposed Fixture]],1))-2),Table_ControlType[],2, FALSE),None)),\n\"\")","v":""},{"$f":"IFERROR(VLOOKUP(Table_NCSummary[[#This Row],[Controls Measure Description]],Table_ControlRate[],2,FALSE),\"\")","v":""},{"$f":"IFERROR(IF(Table_NCSummary[[#This Row],[IsActive]],IF((1-SUMPRODUCT(Table_NCSummary[P. Qty],Table_NCSummary[Proposed Fixture Wattage])/SUM(Table_NCSummary[Baseline Wattage]))<0.1,\"DNQ [kW Reduction <10%]\",IF(OR(Table_NCSummary[[#This Row],[Controls Measure Description]]=\"\",Table_NCSummary[[#This Row],[Controls Measure Description]]=\"New Construction - No Controls\"),0,ROUND(Table_NCSummary[[#This Row],[Controls Rebate (per Fixt Watt)]]*Table_NCSummary[[#This Row],[Proposed Fixture Wattage]]*Table_NCSummary[[#This Row],[P. Qty]],2))),\"\"),\"\")","v":""},{"$f":"IFERROR(IF(Table_NCSummary[[#This Row],[Fixture Measure Description]]=\"Ineligible Fixture\",0,ROUND(IF(ProjectCost_Total=0,300000,ProjectCost_Total)*Table_NCSummary[[#This Row],[Controls Rebate]]/SUM(Table_NCSummary[Fixture Rebate],Table_NCSummary[Controls Rebate]),2)),\"\")","v":""},{"$f":"IFERROR(IF(Table_NCSummary[[#This Row],[IsActive]],IF((1-SUMPRODUCT(Table_NCSummary[P. Qty],Table_NCSummary[Proposed Fixture Wattage])/SUM(Table_NCSummary[Baseline Wattage]))<0.1,\"DNQ [kW Reduction <10%]\",IF(Table_NCSummary[[#This Row],[Controls Measure Description]]=\"\",0,(Table_NCSummary[[#This Row],[Proposed Fixture (Existing Controls) kWh]]-Table_NCSummary[[#This Row],[Proposed Fixture (Proposed Controls) kWh]]))),\"\"),\"\")","v":""},{"$f":"IFERROR(IF(Table_NCSummary[[#This Row],[IsActive]],IF((1-SUMPRODUCT(Table_NCSummary[P. Qty],Table_NCSummary[Proposed Fixture Wattage])/SUM(Table_NCSummary[Baseline Wattage]))<0.1,\"DNQ [kW Reduction <10%]\",IF(OR(Table_NCSummary[[#This Row],[Controls Measure Description]]=\"\",Table_NCSummary[[#This Row],[Controls Measure Description]]=\"New Construction - No Controls\"),0,(Table_NCSummary[[#This Row],[Proposed Fixture (Existing Controls) kWh]]-Table_NCSummary[[#This Row],[Proposed Fixture (Proposed Controls) kWh]])/Table_NCSummary[[#This Row],[OpHrs]]*Table_NCSummary[[#This Row],[CF (Ltg)]]*Table_NCSummary[[#This Row],[DF (Ltg)]])),\"\"),\"\")","v":""},null,{"$f":"IFERROR(IF(NOT(ISNUMBER(Table_NCSummary[[#This Row],[Fixture Rebate]])),\"\",IF(MIN(IF(Table_NCSummary[[#This Row],[Fixture Cost]]<0,0,SUM(Table_NCSummary[Fixture Cost],Table_NCSummary[Controls Cost])),SUM(Table_NCSummary[Fixture Rebate],Table_NCSummary[Controls Rebate]))>300000,300000/MIN(IF(Table_NCSummary[[#This Row],[Fixture Cost]]<0,0,SUM(Table_NCSummary[Fixture Cost],Table_NCSummary[Controls Cost])),SUM(Table_NCSummary[Fixture Rebate],Table_NCSummary[Controls Rebate]))*MIN(IF(Table_NCSummary[[#This Row],[Fixture Cost]]<0,0,SUM(Table_NCSummary[Fixture Cost],Table_NCSummary[Controls Cost])),Table_NCSummary[[#This Row],[Fixture Rebate]]+IF(Table_NCSummary[[#This Row],[Controls Rebate]]=\"\",0,Table_NCSummary[[#This Row],[Controls Rebate]])),MIN(IF(Table_NCSummary[[#This Row],[Fixture Cost]]<0,0,SUM(Table_NCSummary[Fixture Cost],Table_NCSummary[Controls Cost])),Table_NCSummary[[#This Row],[Fixture Rebate]]+IF(Table_NCSummary[[#This Row],[Controls Rebate]]=\"\",0,Table_NCSummary[[#This Row],[Controls Rebate]])))),\"\")","v":""},{"$f":"IFERROR(IF(Table_NCSummary[[#This Row],[Fixture Cost]]=\"\",\"\",Table_NCSummary[[#This Row],[Fixture Cost]]+IF(Table_NCSummary[[#This Row],[Controls Cost]]=\"\",0,Table_NCSummary[[#This Row],[Controls Cost]])),\"\")","v":""},{"$f":"IFERROR(IF(Table_NCSummary[[#This Row],[IsActive]],IF(NOT(ISNUMBER(Table_NCSummary[[#This Row],[Fixture Rebate]])),\"\",IF(Table_NCInfo[[#This Row],[Interior/ Exterior]]=\"Interior\",IFERROR((Table_NCSummary[[#This Row],[Annual Fixture Savings (kWh)]]+Table_NCSummary[[#This Row],[Annual Control Savings (kWh)]])*(Table_NCSummary[[#This Row],[EIF]]-1),0),0)),\"\"),\"\")","v":""},{"$f":"IFERROR(IF(Table_NCSummary[[#This Row],[IsActive]],IF(NOT(ISNUMBER(Table_NCSummary[[#This Row],[Fixture Rebate]])),\"\",IF(Table_NCInfo[[#This Row],[Interior/ Exterior]]=\"Interior\",IFERROR((Table_NCSummary[[#This Row],[Fixture kW Reduction]]+Table_NCSummary[[#This Row],[Control kW Reduction]]/(Table_NCSummary[[#This Row],[CF (Ltg)]]*Table_NCSummary[[#This Row],[DF (Ltg)]]))*(Table_NCSummary[[#This Row],[DIF]]-1)*Table_NCSummary[[#This Row],[CF (HVAC)]]*Table_NCSummary[[#This Row],[DF (HVAC)]],0),0)),\"\"),\"\")","v":""},{"$f":"IFERROR(IF(Table_NCSummary[[#This Row],[IsActive]],IF(NOT(ISNUMBER(Table_NCSummary[[#This Row],[Fixture Rebate]])),\"\",ROUND(Table_NCSummary[[#This Row],[Annual Fixture Savings (kWh)]]+Table_NCSummary[[#This Row],[Annual Control Savings (kWh)]],0)),\"\"),\"\")","v":""},{"$f":"IFERROR(IF(Table_NCSummary[[#This Row],[IsActive]],IF(NOT(ISNUMBER(Table_NCSummary[[#This Row],[Fixture Rebate]])),\"\",ROUND(Table_NCSummary[[#This Row],[Fixture kW Reduction]]+Table_NCSummary[[#This Row],[Control kW Reduction]],3)),\"\"),\"\")","v":""},{"$f":"IFERROR(IF(Table_NCSummary[[#This Row],[IsActive]],IF(NOT(ISNUMBER(Table_NCSummary[[#This Row],[Fixture Rebate]])),\"\",ROUND(Table_NCSummary[[#This Row],[Fixture Energy Savings (kWh)]]+Table_NCSummary[[#This Row],[Induced HVAC Energy Savings (kWh)]],0)),\"\"),\"\")","v":""},{"$f":"IFERROR(IF(Table_NCSummary[[#This Row],[IsActive]],IF(NOT(ISNUMBER(Table_NCSummary[[#This Row],[Fixture Rebate]])),\"\",ROUND(Table_NCSummary[[#This Row],[Fixture Demand Savings (kW)]]+Table_NCSummary[[#This Row],[Induced HVAC Demand Savings (kW)]],3)),\"\"),\"\")","v":""}]
[{"$f":"IFERROR(Table_NCInfo[[#This Row],[Line]],\"\")","v":7},{"$f":"IFERROR(Table_NCInfo[[#This Row],[IsActive]],\"\")","v":false},{"$f":"IFERROR(IF(Table_NCSummary[[#This Row],[IsActive]],VLOOKUP(IF(ISNUMBER(MATCH(Table_NCInfo[[#This Row],[Line]],Table_NCInspection[Line],0)),INDEX(Table_NCInspection[Schedule],MATCH(Table_NCSummary[[#This Row],[Line Item]],Table_NCInspection[Line],0)),Table_NCInfo[[#This Row],[Schedule]]),'Customer Information'!$S$27:$T$34,2,FALSE),\"\"),\"\")","v":""},{"$f":"IFERROR(IF(Table_NCSummary[[#This Row],[IsActive]],INDEX(Table_IntLookups[EIF],MATCH(IF(ISNUMBER(MATCH(Table_NCSummary[[#This Row],[Line Item]],Table_NCInspection[Line],0)),INDEX(Table_NCInspection[Zone Description],MATCH(Table_NCSummary[[#This Row],[Line Item]],Table_NCInfo[Line],0)),Table_NCInfo[[#This Row],[Zone Description]]),Table_IntLookups[Dropdown],0)),\"\"),\"\")","v":""},{"$f":"IFERROR(IF(Table_NCSummary[[#This Row],[IsActive]],INDEX(Table_IntLookups[DIF],MATCH(IF(ISNUMBER(MATCH(Table_NCSummary[[#This Row],[Line Item]],Table_NCInspection[Line],0)),INDEX(Table_NCInspection[Zone Description],MATCH(Table_NCSummary[[#This Row],[Line Item]],Table_NCInfo[Line],0)),Table_NCInfo[[#This Row],[Zone Description]]),Table_IntLookups[Dropdown],0)),\"\"),\"\")","v":""},{"$f":"IFERROR(IF(Table_NCSummary[[#This Row],[IsActive]],INDEX(Table_IntLookups[CFltg],MATCH(IF(ISNUMBER(MATCH(Table_NCSummary[[#This Row],[Line Item]],Table_NCInspection[Line],0)),INDEX(Table_NCInspection[Zone Description],MATCH(Table_NCSummary[[#This Row],[Line Item]],Table_NCInfo[Line],0)),Table_NCInfo[[#This Row],[Zone Description]]),Table_IntLookups[Dropdown],0)),\"\"),\"\")","v":""},{"$f":"IFERROR(IF(Table_NCSummary[[#This Row],[IsActive]],INDEX(Table_IntLookups[DFltg],MATCH(IF(ISNUMBER(MATCH(Table_NCSummary[[#This Row],[Line Item]],Table_NCInspection[Line],0)),INDEX(Table_NCInspection[Zone Description],MATCH(Table_NCSummary[[#This Row],[Line Item]],Table_NCInfo[Line],0)),Table_NCInfo[[#This Row],[Zone Description]]),Table_IntLookups[Dropdown],0)),\"\"),\"\")","v":""},{"$f":"IFERROR(IF(Table_NCSummary[[#This Row],[IsActive]],INDEX(Table_IntLookups[Cfhvac],MATCH(IF(ISNUMBER(MATCH(Table_NCSummary[[#This Row],[Line Item]],Table_NCInspection[Line],0)),INDEX(Table_NCInspection[Zone Description],MATCH(Table_NCSummary[[#This Row],[Line Item]],Table_NCInfo[Line],0)),Table_NCInfo[[#This Row],[Zone Description]]),Table_IntLookups[Dropdown],0)),\"\"),\"\")","v":""},{"$f":"IFERROR(IF(Table_NCSummary[[#This Row],[IsActive]],INDEX(Table_IntLookups[Dfhvac],MATCH(IF(ISNUMBER(MATCH(Table_NCSummary[[#This Row],[Line Item]],Table_NCInspection[Line],0)),INDEX(Table_NCInspection[Zone Description],MATCH(Table_NCSummary[[#This Row],[Line Item]],Table_NCInfo[Line],0)),Table_NCInfo[[#This Row],[Zone Description]]),Table_IntLookups[Dropdown],0)),\"\"),\"\")","v":""},{"$f":"IFERROR(IF(Table_NCSummary[[#This Row],[IsActive]],\nIF(ISNUMBER(MATCH(Table_NCInfo[[#This Row],[Line]],Table_NCInspection[Line],0)),INDEX(Table_NCInspection[Zone Description],MATCH(Table_NCSummary[[#This Row],[Line Item]],Table_NCInspection[Line],0)),Table_NCInfo[[#This Row],[Zone Description]]),\n \"\"),\"\")","v":""},{"$f":"IFERROR(IF(Table_NCSummary[[#This Row],[IsActive]],\nCONCATENATE(\nIF(ISNUMBER(MATCH(Table_NCInfo[[#This Row],[Line]],Table_NCInspection[Line],0)),INDEX(Table_NCInspection[Interior/ Exterior],MATCH(Table_NCSummary[[#This Row],[Line Item]],Table_NCInspection[Line],0)),Table_NCInfo[[#This Row],[Interior/ Exterior]]),\n\" - \",\nIF(ISNUMBER(MATCH(Table_NCInfo[[#This Row],[Line]],Table_NCInspection[Line],0)),INDEX(Table_NCInspection[Space Description],MATCH(Table_NCSummary[[#This Row],[Line Item]],Table_NCInspection[Line],0)),Table_NCInfo[[#This Row],[Space Description]])),\n \"\"),\"\")","v":""},{"$f":"IFERROR(IF(ISNUMBER(MATCH(Table_NCInfo[[#This Row],[Line]],Table_NCInspection[Line],0)),INDEX(Table_NCInspection[Baseline Wattage],MATCH(Table_NCSummary[[#This Row],[Line Item]],Table_NCInspection[Line],0)),Table_NCInfo[[#This Row],[Baseline Wattage]]),\"\")","v":""},{"$f":"IFERROR(IF(Table_NCSummary[[#This Row],[IsActive]],Table_NCSummary[[#This Row],[Baseline Wattage]]/1000*Table_NCSummary[[#This Row],[OpHrs]],\"\"),\"\")","v":""},{"$f":"IFERROR(IF(Table_NCSummary[[#This Row],[IsActive]],IFERROR(VLOOKUP(IF(ISNUMBER(MATCH(Table_NCSummary[[#This Row],[Line Item]],Table_NCInspection[Line],0)),INDEX(Table_NCInspection[Zone '#],MATCH(Table_NCSummary[[#This Row],[Line Item]],Table_NCInspection[Line],0)),Table_NCInfo[[#This Row],[Zone '#]]),Table_IntLookups[],'Facility Information'!$AA$4,FALSE),0),\"\"),\"\")","v":""},{"$f":"IFERROR(IF(Table_NCSummary[[#This Row],[IsActive]],IFERROR(Table_NCSummary[[#This Row],[Baseline Wattage]]/1000*Table_NCSummary[[#This Row],[OpHrs]]*Table_NCSummary[[#This Row],[Existing CSF]]*(-1),0),\"\"),\"\")","v":""},{"$f":"IFERROR(Table_NCSummary[[#This Row],[Baseline kWh]]+Table_NCSummary[[#This Row],[Existing Fixture (Existing Controls) kWh]],\"\")","v":""},{"$f":"IFERROR(IF(Table_NCSummary[[#This Row],[IsActive]],IF(ISNUMBER(MATCH(Table_NCInfo[[#This Row],[Line]],Table_NCInspection[Line],0)),INDEX(Table_NCInspection[Fixture Description '[P']],MATCH(Table_NCSummary[[#This Row],[Line Item]],Table_NCInspection[Line],0)),Table_NCInfo[[#This Row],[Fixture Description '[P']]]),\"\"),\"\")","v":""},{"$f":"IFERROR(IF(Table_NCSummary[[#This Row],[IsActive]],IF(ISNUMBER(MATCH(Table_NCInfo[[#This Row],[Line]],Table_NCInspection[Line],0)),INDEX(Table_NCInspection['# Lamps/ Fixture '[P']],MATCH(Table_NCSummary[[#This Row],[Line Item]],Table_NCInspection[Line],0)),Table_NCInfo[[#This Row],['# Lamps/ Fixture '[P']]]),\"\"),\"\")","v":""},{"$f":"IFERROR(IF(Table_NCSummary[[#This Row],[IsActive]],IF(ISNUMBER(MATCH(Table_NCInfo[[#This Row],[Line]],Table_NCInspection[Line],0)),INDEX(Table_NCInspection[Fixture/ Lamp Wattage '[P']],MATCH(Table_NCSummary[[#This Row],[Line Item]],Table_NCInspection[Line],0)),Table_NCInfo[[#This Row],[Fixture/ Lamp Wattage '[P']]]),\"\"),\"\")","v":""},{"$f":"IFERROR(IF(Table_NCSummary[[#This Row],[IsActive]],IF(ISNUMBER(MATCH(Table_NCInfo[[#This Row],[Line]],Table_NCInspection[Line],0)),INDEX(Table_NCInspection[Fixture Qty '[P']],MATCH(Table_NCSummary[[#This Row],[Line Item]],Table_NCInspection[Line],0)),Table_NCInfo[[#This Row],[Fixture Qty '[P']]]),\"\"),\"\")","v":""},{"$f":"IFERROR(IF(Table_NCSummary[[#This Row],[IsActive]],Table_NCSummary[[#This Row],['# Lamps/ Fixture '[P']]]*Table_NCSummary[[#This Row],[P. Qty]],\"\"),\"\")","v":""},{"$f":"IFERROR(IF(Table_NCSummary[[#This Row],[IsActive]],IF(ISNUMBER(MATCH(Table_NCInfo[[#This Row],[Line]],Table_NCInspection[Line],0)),INDEX(Table_NCInspection[Fixture Wattage '[P']],MATCH(Table_NCSummary[[#This Row],[Line Item]],Table_NCInspection[Line],0)),Table_NCInfo[[#This Row],[Fixture Wattage '[P']]]),\"\"),\"\")","v":""},{"$f":"IFERROR(Table_NCSummary[[#This Row],[P. Qty]]*Table_NCSummary[[#This Row],[Proposed Fixture Wattage]],\"\")","v":""},{"$f":"IFERROR(Table_NCSummary[[#This Row],[Proposed Fixture Wattage]]/1000*Table_NCSummary[[#This Row],[OpHrs]]*Table_NCSummary[[#This Row],[P. Qty]],\"\")","v":""},{"$f":"IFERROR(IF(Table_NCSummary[[#This Row],[IsActive]],IFERROR(VLOOKUP(RIGHT(Table_NCSummary[[#This Row],[Proposed Fixture]],LEN(Table_NCSummary[[#This Row],[Proposed Fixture]])-FIND(\" - \",Table_NCSummary[[#This Row],[Proposed Fixture]],FIND(\"]\",Table_NCSummary[[#This Row],[Proposed Fixture]],1))-2),Table_ControlType[],3, FALSE),Table_NCSummary[[#This Row],[Existing CSF]]),\"\"),\"\")","v":""},{"$f":"IFERROR(IF(Table_NCSummary[[#This Row],[IsActive]],IFERROR(Table_NCSummary[[#This Row],[Proposed Fixture Wattage]]/1000*Table_NCSummary[[#This Row],[OpHrs]]*Table_NCSummary[[#This Row],[P. Qty]]*Table_NCSummary[[#This Row],[Existing CSF]]*(-1),0),\"\"),\"\")","v":""},{"$f":"IFERROR(Table_NCSummary[[#This Row],[Proposed Fixture kWh]]+Table_NCSummary[[#This Row],[Proposed Fixture (Existing Controls) kWh]],\"\")","v":""},{"$f":"IFERROR(IF(Table_NCSummary[[#This Row],[IsActive]],IFERROR(Table_NCSummary[[#This Row],[Proposed Fixture Wattage]]/1000*Table_NCSummary[[#This Row],[OpHrs]]*Table_NCSummary[[#This Row],[P. Qty]]*Table_NCSummary[[#This Row],[Proposed CSF]]*(-1),0),\"\"),\"\")","v":""},{"$f":"IFERROR(Table_NCSummary[[#This Row],[Proposed Fixture kWh]]+Table_NCSummary[[#This Row],[Proposed Fixture (Proposed Controls) kWh]],\"\")","v":""},null,{"$f":"IFERROR(IF(Table_NCSummary[[#This Row],[IsActive]],IF((1-SUMPRODUCT(Table_NCSummary[P. Qty],Table_NCSummary[Proposed Fixture Wattage])/SUM(Table_NCSummary[Baseline Wattage]))<0.1,\"Does Not Qualify [Overall Fixture Reduction is less than 10%]\",IF(ISNUMBER(FIND(\"LED\",Table_NCSummary[[#This Row],[Proposed Fixture]],1)),IF(ISNUMBER(FIND(\"LED Tube\",Table_NCSummary[[#This Row],[Proposed Fixture]],1)),\"New Construction Interior LED Fixture\",IF(ISNUMBER(FIND(\"LED\",Table_NCSummary[[#This Row],[Proposed Fixture]],1)),IF(Table_NCInfo[[#This Row],[Interior/ Exterior]]=\"Exterior\",\"New Construction Exterior LED Fixture\",\"New Construction Interior LED Fixture\"),\"Ineligible Fixture\")),\"Ineligible Fixture\")),\"\"),\"\")","v":""},{"$f":"IFERROR(VLOOKUP(Table_NCSummary[[#This Row],[Fixture Measure Description]],Table_FixtureRate[],2,FALSE),\"\")","v":""},{"$f":"IFERROR(IF(Table_NCSummary[[#This Row],[IsActive]],IF((1-SUMPRODUCT(Table_NCSummary[P. Qty],Table_NCSummary[Proposed Fixture Wattage])/SUM(Table_NCSummary[Baseline Wattage]))<0.1,\"DNQ [kW Reduction <10%]\",IF(Table_NCSummary[[#This Row],[Fixture Measure Description]]=\"Ineligible Fixture\",0,ROUND(Table_NCSummary[[#This Row],[Fixture Rebate (per kW)]]*(Table_NCSummary[[#This Row],[Baseline Wattage]]-Table_NCSummary[[#This Row],[Proposed Wattage]])/1000,2))),\"\"),\"\")","v":""},{"$f":"IFERROR(IF(Table_NCSummary[[#This Row],[Fixture Measure Description]]=\"Ineligible Fixture\",0,ROUND(IF(ProjectCost_Total=0,300000,ProjectCost_Total)*Table_NCSummary[[#This Row],[Fixture Rebate]]/SUM(Table_NCSummary[Fixture Rebate],Table_NCSummary[Controls Rebate]),2)),\"\")","v":""},{"$f":"IFERROR(IF(Table_NCSummary[[#This Row],[IsActive]],IF((1-SUMPRODUCT(Table_NCSummary[P. Qty],Table_NCSummary[Proposed Fixture Wattage])/SUM(Table_NCSummary[Baseline Wattage]))<0.1,\"DNQ [kW Reduction <10%]\",IF(Table_NCSummary[[#This Row],[Fixture Measure Description]]=\"Ineligible Fixture\",0,Table_NCSummary[[#This Row],[Existing Overall kWh]]-Table_NCSummary[[#This Row],[Proposed Overall kWh (Existing Controls)]])),\"\"),\"\")","v":""},{"$f":"IFERROR(IF(Table_NCSummary[[#This Row],[IsActive]],IF((1-SUMPRODUCT(Table_NCSummary[P. Qty],Table_NCSummary[Proposed Fixture Wattage])/SUM(Table_NCSummary[Baseline Wattage]))<0.1,\"DNQ [kW Reduction <10%]\",IF(OR(Table_NCSummary[[#This Row],[Fixture Measure Description]]=\"Ineligible Fixture\",Table_NCSummary[[#This Row],[Fixture Measure Description]]=\"New Construction Exterior LED Fixture\"),0,(Table_NCSummary[[#This Row],[Baseline kWh]]-Table_NCSummary[[#This Row],[Proposed Fixture kWh]])/Table_NCSummary[[#This Row],[OpHrs]]*Table_NCSummary[[#This Row],[CF (Ltg)]]*Table_NCSummary[[#This Row],[DF (Ltg)]])),\"\"),\"\")","v":""},null,{"$f":"IFERROR(\n  IF(OR(Table_NCSummary[[#This Row],[Fixture Measure Description]]=\"\",Table_NCSummary[[#This Row],[Fixture Measure Description]]=\"Ineligible Fixture\"),\n    \"\",\n    \"New Construction\"\n    & \" - \" &\n    IFERROR(VLOOKUP(RIGHT(Table_NCSummary[[#This Row],[Proposed Fixture]],LEN(Table_NCSummary[[#This Row],[Proposed Fixture]])-FIND(\" - \",Table_NCSummary[[#This Row],[Proposed Fixture]],FIND(\"]\",Table_NCSummary[[#This Row],[Proposed Fixture]],1))-2),Table_ControlType[],2, FALSE),None)),\n\"\")","v":""},{"$f":"IFERROR(VLOOKUP(Table_NCSummary[[#This Row],[Controls Measure Description]],Table_ControlRate[],2,FALSE),\"\")","v":""},{"$f":"IFERROR(IF(Table_NCSummary[[#This Row],[IsActive]],IF((1-SUMPRODUCT(Table_NCSummary[P. Qty],Table_NCSummary[Proposed Fixture Wattage])/SUM(Table_NCSummary[Baseline Wattage]))<0.1,\"DNQ [kW Reduction <10%]\",IF(OR(Table_NCSummary[[#This Row],[Controls Measure Description]]=\"\",Table_NCSummary[[#This Row],[Controls Measure Description]]=\"New Construction - No Controls\"),0,ROUND(Table_NCSummary[[#This Row],[Controls Rebate (per Fixt Watt)]]*Table_NCSummary[[#This Row],[Proposed Fixture Wattage]]*Table_NCSummary[[#This Row],[P. Qty]],2))),\"\"),\"\")","v":""},{"$f":"IFERROR(IF(Table_NCSummary[[#This Row],[Fixture Measure Description]]=\"Ineligible Fixture\",0,ROUND(IF(ProjectCost_Total=0,300000,ProjectCost_Total)*Table_NCSummary[[#This Row],[Controls Rebate]]/SUM(Table_NCSummary[Fixture Rebate],Table_NCSummary[Controls Rebate]),2)),\"\")","v":""},{"$f":"IFERROR(IF(Table_NCSummary[[#This Row],[IsActive]],IF((1-SUMPRODUCT(Table_NCSummary[P. Qty],Table_NCSummary[Proposed Fixture Wattage])/SUM(Table_NCSummary[Baseline Wattage]))<0.1,\"DNQ [kW Reduction <10%]\",IF(Table_NCSummary[[#This Row],[Controls Measure Description]]=\"\",0,(Table_NCSummary[[#This Row],[Proposed Fixture (Existing Controls) kWh]]-Table_NCSummary[[#This Row],[Proposed Fixture (Proposed Controls) kWh]]))),\"\"),\"\")","v":""},{"$f":"IFERROR(IF(Table_NCSummary[[#This Row],[IsActive]],IF((1-SUMPRODUCT(Table_NCSummary[P. Qty],Table_NCSummary[Proposed Fixture Wattage])/SUM(Table_NCSummary[Baseline Wattage]))<0.1,\"DNQ [kW Reduction <10%]\",IF(OR(Table_NCSummary[[#This Row],[Controls Measure Description]]=\"\",Table_NCSummary[[#This Row],[Controls Measure Description]]=\"New Construction - No Controls\"),0,(Table_NCSummary[[#This Row],[Proposed Fixture (Existing Controls) kWh]]-Table_NCSummary[[#This Row],[Proposed Fixture (Proposed Controls) kWh]])/Table_NCSummary[[#This Row],[OpHrs]]*Table_NCSummary[[#This Row],[CF (Ltg)]]*Table_NCSummary[[#This Row],[DF (Ltg)]])),\"\"),\"\")","v":""},null,{"$f":"IFERROR(IF(NOT(ISNUMBER(Table_NCSummary[[#This Row],[Fixture Rebate]])),\"\",IF(MIN(IF(Table_NCSummary[[#This Row],[Fixture Cost]]<0,0,SUM(Table_NCSummary[Fixture Cost],Table_NCSummary[Controls Cost])),SUM(Table_NCSummary[Fixture Rebate],Table_NCSummary[Controls Rebate]))>300000,300000/MIN(IF(Table_NCSummary[[#This Row],[Fixture Cost]]<0,0,SUM(Table_NCSummary[Fixture Cost],Table_NCSummary[Controls Cost])),SUM(Table_NCSummary[Fixture Rebate],Table_NCSummary[Controls Rebate]))*MIN(IF(Table_NCSummary[[#This Row],[Fixture Cost]]<0,0,SUM(Table_NCSummary[Fixture Cost],Table_NCSummary[Controls Cost])),Table_NCSummary[[#This Row],[Fixture Rebate]]+IF(Table_NCSummary[[#This Row],[Controls Rebate]]=\"\",0,Table_NCSummary[[#This Row],[Controls Rebate]])),MIN(IF(Table_NCSummary[[#This Row],[Fixture Cost]]<0,0,SUM(Table_NCSummary[Fixture Cost],Table_NCSummary[Controls Cost])),Table_NCSummary[[#This Row],[Fixture Rebate]]+IF(Table_NCSummary[[#This Row],[Controls Rebate]]=\"\",0,Table_NCSummary[[#This Row],[Controls Rebate]])))),\"\")","v":""},{"$f":"IFERROR(IF(Table_NCSummary[[#This Row],[Fixture Cost]]=\"\",\"\",Table_NCSummary[[#This Row],[Fixture Cost]]+IF(Table_NCSummary[[#This Row],[Controls Cost]]=\"\",0,Table_NCSummary[[#This Row],[Controls Cost]])),\"\")","v":""},{"$f":"IFERROR(IF(Table_NCSummary[[#This Row],[IsActive]],IF(NOT(ISNUMBER(Table_NCSummary[[#This Row],[Fixture Rebate]])),\"\",IF(Table_NCInfo[[#This Row],[Interior/ Exterior]]=\"Interior\",IFERROR((Table_NCSummary[[#This Row],[Annual Fixture Savings (kWh)]]+Table_NCSummary[[#This Row],[Annual Control Savings (kWh)]])*(Table_NCSummary[[#This Row],[EIF]]-1),0),0)),\"\"),\"\")","v":""},{"$f":"IFERROR(IF(Table_NCSummary[[#This Row],[IsActive]],IF(NOT(ISNUMBER(Table_NCSummary[[#This Row],[Fixture Rebate]])),\"\",IF(Table_NCInfo[[#This Row],[Interior/ Exterior]]=\"Interior\",IFERROR((Table_NCSummary[[#This Row],[Fixture kW Reduction]]+Table_NCSummary[[#This Row],[Control kW Reduction]]/(Table_NCSummary[[#This Row],[CF (Ltg)]]*Table_NCSummary[[#This Row],[DF (Ltg)]]))*(Table_NCSummary[[#This Row],[DIF]]-1)*Table_NCSummary[[#This Row],[CF (HVAC)]]*Table_NCSummary[[#This Row],[DF (HVAC)]],0),0)),\"\"),\"\")","v":""},{"$f":"IFERROR(IF(Table_NCSummary[[#This Row],[IsActive]],IF(NOT(ISNUMBER(Table_NCSummary[[#This Row],[Fixture Rebate]])),\"\",ROUND(Table_NCSummary[[#This Row],[Annual Fixture Savings (kWh)]]+Table_NCSummary[[#This Row],[Annual Control Savings (kWh)]],0)),\"\"),\"\")","v":""},{"$f":"IFERROR(IF(Table_NCSummary[[#This Row],[IsActive]],IF(NOT(ISNUMBER(Table_NCSummary[[#This Row],[Fixture Rebate]])),\"\",ROUND(Table_NCSummary[[#This Row],[Fixture kW Reduction]]+Table_NCSummary[[#This Row],[Control kW Reduction]],3)),\"\"),\"\")","v":""},{"$f":"IFERROR(IF(Table_NCSummary[[#This Row],[IsActive]],IF(NOT(ISNUMBER(Table_NCSummary[[#This Row],[Fixture Rebate]])),\"\",ROUND(Table_NCSummary[[#This Row],[Fixture Energy Savings (kWh)]]+Table_NCSummary[[#This Row],[Induced HVAC Energy Savings (kWh)]],0)),\"\"),\"\")","v":""},{"$f":"IFERROR(IF(Table_NCSummary[[#This Row],[IsActive]],IF(NOT(ISNUMBER(Table_NCSummary[[#This Row],[Fixture Rebate]])),\"\",ROUND(Table_NCSummary[[#This Row],[Fixture Demand Savings (kW)]]+Table_NCSummary[[#This Row],[Induced HVAC Demand Savings (kW)]],3)),\"\"),\"\")","v":""}]
[{"$f":"IFERROR(Table_NCInfo[[#This Row],[Line]],\"\")","v":8},{"$f":"IFERROR(Table_NCInfo[[#This Row],[IsActive]],\"\")","v":false},{"$f":"IFERROR(IF(Table_NCSummary[[#This Row],[IsActive]],VLOOKUP(IF(ISNUMBER(MATCH(Table_NCInfo[[#This Row],[Line]],Table_NCInspection[Line],0)),INDEX(Table_NCInspection[Schedule],MATCH(Table_NCSummary[[#This Row],[Line Item]],Table_NCInspection[Line],0)),Table_NCInfo[[#This Row],[Schedule]]),'Customer Information'!$S$27:$T$34,2,FALSE),\"\"),\"\")","v":""},{"$f":"IFERROR(IF(Table_NCSummary[[#This Row],[IsActive]],INDEX(Table_IntLookups[EIF],MATCH(IF(ISNUMBER(MATCH(Table_NCSummary[[#This Row],[Line Item]],Table_NCInspection[Line],0)),INDEX(Table_NCInspection[Zone Description],MATCH(Table_NCSummary[[#This Row],[Line Item]],Table_NCInfo[Line],0)),Table_NCInfo[[#This Row],[Zone Description]]),Table_IntLookups[Dropdown],0)),\"\"),\"\")","v":""},{"$f":"IFERROR(IF(Table_NCSummary[[#This Row],[IsActive]],INDEX(Table_IntLookups[DIF],MATCH(IF(ISNUMBER(MATCH(Table_NCSummary[[#This Row],[Line Item]],Table_NCInspection[Line],0)),INDEX(Table_NCInspection[Zone Description],MATCH(Table_NCSummary[[#This Row],[Line Item]],Table_NCInfo[Line],0)),Table_NCInfo[[#This Row],[Zone Description]]),Table_IntLookups[Dropdown],0)),\"\"),\"\")","v":""},{"$f":"IFERROR(IF(Table_NCSummary[[#This Row],[IsActive]],INDEX(Table_IntLookups[CFltg],MATCH(IF(ISNUMBER(MATCH(Table_NCSummary[[#This Row],[Line Item]],Table_NCInspection[Line],0)),INDEX(Table_NCInspection[Zone Description],MATCH(Table_NCSummary[[#This Row],[Line Item]],Table_NCInfo[Line],0)),Table_NCInfo[[#This Row],[Zone Description]]),Table_IntLookups[Dropdown],0)),\"\"),\"\")","v":""},{"$f":"IFERROR(IF(Table_NCSummary[[#This Row],[IsActive]],INDEX(Table_IntLookups[DFltg],MATCH(IF(ISNUMBER(MATCH(Table_NCSummary[[#This Row],[Line Item]],Table_NCInspection[Line],0)),INDEX(Table_NCInspection[Zone Description],MATCH(Table_NCSummary[[#This Row],[Line Item]],Table_NCInfo[Line],0)),Table_NCInfo[[#This Row],[Zone Description]]),Table_IntLookups[Dropdown],0)),\"\"),\"\")","v":""},{"$f":"IFERROR(IF(Table_NCSummary[[#This Row],[IsActive]],INDEX(Table_IntLookups[Cfhvac],MATCH(IF(ISNUMBER(MATCH(Table_NCSummary[[#This Row],[Line Item]],Table_NCInspection[Line],0)),INDEX(Table_NCInspection[Zone Description],MATCH(Table_NCSummary[[#This Row],[Line Item]],Table_NCInfo[Line],0)),Table_NCInfo[[#This Row],[Zone Description]]),Table_IntLookups[Dropdown],0)),\"\"),\"\")","v":""},{"$f":"IFERROR(IF(Table_NCSummary[[#This Row],[IsActive]],INDEX(Table_IntLookups[Dfhvac],MATCH(IF(ISNUMBER(MATCH(Table_NCSummary[[#This Row],[Line Item]],Table_NCInspection[Line],0)),INDEX(Table_NCInspection[Zone Description],MATCH(Table_NCSummary[[#This Row],[Line Item]],Table_NCInfo[Line],0)),Table_NCInfo[[#This Row],[Zone Description]]),Table_IntLookups[Dropdown],0)),\"\"),\"\")","v":""},{"$f":"IFERROR(IF(Table_NCSummary[[#This Row],[IsActive]],\nIF(ISNUMBER(MATCH(Table_NCInfo[[#This Row],[Line]],Table_NCInspection[Line],0)),INDEX(Table_NCInspection[Zone Description],MATCH(Table_NCSummary[[#This Row],[Line Item]],Table_NCInspection[Line],0)),Table_NCInfo[[#This Row],[Zone Description]]),\n \"\"),\"\")","v":""},{"$f":"IFERROR(IF(Table_NCSummary[[#This Row],[IsActive]],\nCONCATENATE(\nIF(ISNUMBER(MATCH(Table_NCInfo[[#This Row],[Line]],Table_NCInspection[Line],0)),INDEX(Table_NCInspection[Interior/ Exterior],MATCH(Table_NCSummary[[#This Row],[Line Item]],Table_NCInspection[Line],0)),Table_NCInfo[[#This Row],[Interior/ Exterior]]),\n\" - \",\nIF(ISNUMBER(MATCH(Table_NCInfo[[#This Row],[Line]],Table_NCInspection[Line],0)),INDEX(Table_NCInspection[Space Description],MATCH(Table_NCSummary[[#This Row],[Line Item]],Table_NCInspection[Line],0)),Table_NCInfo[[#This Row],[Space Description]])),\n \"\"),\"\")","v":""},{"$f":"IFERROR(IF(ISNUMBER(MATCH(Table_NCInfo[[#This Row],[Line]],Table_NCInspection[Line],0)),INDEX(Table_NCInspection[Baseline Wattage],MATCH(Table_NCSummary[[#This Row],[Line Item]],Table_NCInspection[Line],0)),Table_NCInfo[[#This Row],[Baseline Wattage]]),\"\")","v":""},{"$f":"IFERROR(IF(Table_NCSummary[[#This Row],[IsActive]],Table_NCSummary[[#This Row],[Baseline Wattage]]/1000*Table_NCSummary[[#This Row],[OpHrs]],\"\"),\"\")","v":""},{"$f":"IFERROR(IF(Table_NCSummary[[#This Row],[IsActive]],IFERROR(VLOOKUP(IF(ISNUMBER(MATCH(Table_NCSummary[[#This Row],[Line Item]],Table_NCInspection[Line],0)),INDEX(Table_NCInspection[Zone '#],MATCH(Table_NCSummary[[#This Row],[Line Item]],Table_NCInspection[Line],0)),Table_NCInfo[[#This Row],[Zone '#]]),Table_IntLookups[],'Facility Information'!$AA$4,FALSE),0),\"\"),\"\")","v":""},{"$f":"IFERROR(IF(Table_NCSummary[[#This Row],[IsActive]],IFERROR(Table_NCSummary[[#This Row],[Baseline Wattage]]/1000*Table_NCSummary[[#This Row],[OpHrs]]*Table_NCSummary[[#This Row],[Existing CSF]]*(-1),0),\"\"),\"\")","v":""},{"$f":"IFERROR(Table_NCSummary[[#This Row],[Baseline kWh]]+Table_NCSummary[[#This Row],[Existing Fixture (Existing Controls) kWh]],\"\")","v":""},{"$f":"IFERROR(IF(Table_NCSummary[[#This Row],[IsActive]],IF(ISNUMBER(MATCH(Table_NCInfo[[#This Row],[Line]],Table_NCInspection[Line],0)),INDEX(Table_NCInspection[Fixture Description '[P']],MATCH(Table_NCSummary[[#This Row],[Line Item]],Table_NCInspection[Line],0)),Table_NCInfo[[#This Row],[Fixture Description '[P']]]),\"\"),\"\")","v":""},{"$f":"IFERROR(IF(Table_NCSummary[[#This Row],[IsActive]],IF(ISNUMBER(MATCH(Table_NCInfo[[#This Row],[Line]],Table_NCInspection[Line],0)),INDEX(Table_NCInspection['# Lamps/ Fixture '[P']],MATCH(Table_NCSummary[[#This Row],[Line Item]],Table_NCInspection[Line],0)),Table_NCInfo[[#This Row],['# Lamps/ Fixture '[P']]]),\"\"),\"\")","v":""},{"$f":"IFERROR(IF(Table_NCSummary[[#This Row],[IsActive]],IF(ISNUMBER(MATCH(Table_NCInfo[[#This Row],[Line]],Table_NCInspection[Line],0)),INDEX(Table_NCInspection[Fixture/ Lamp Wattage '[P']],MATCH(Table_NCSummary[[#This Row],[Line Item]],Table_NCInspection[Line],0)),Table_NCInfo[[#This Row],[Fixture/ Lamp Wattage '[P']]]),\"\"),\"\")","v":""},{"$f":"IFERROR(IF(Table_NCSummary[[#This Row],[IsActive]],IF(ISNUMBER(MATCH(Table_NCInfo[[#This Row],[Line]],Table_NCInspection[Line],0)),INDEX(Table_NCInspection[Fixture Qty '[P']],MATCH(Table_NCSummary[[#This Row],[Line Item]],Table_NCInspection[Line],0)),Table_NCInfo[[#This Row],[Fixture Qty '[P']]]),\"\"),\"\")","v":""},{"$f":"IFERROR(IF(Table_NCSummary[[#This Row],[IsActive]],Table_NCSummary[[#This Row],['# Lamps/ Fixture '[P']]]*Table_NCSummary[[#This Row],[P. Qty]],\"\"),\"\")","v":""},{"$f":"IFERROR(IF(Table_NCSummary[[#This Row],[IsActive]],IF(ISNUMBER(MATCH(Table_NCInfo[[#This Row],[Line]],Table_NCInspection[Line],0)),INDEX(Table_NCInspection[Fixture Wattage '[P']],MATCH(Table_NCSummary[[#This Row],[Line Item]],Table_NCInspection[Line],0)),Table_NCInfo[[#This Row],[Fixture Wattage '[P']]]),\"\"),\"\")","v":""},{"$f":"IFERROR(Table_NCSummary[[#This Row],[P. Qty]]*Table_NCSummary[[#This Row],[Proposed Fixture Wattage]],\"\")","v":""},{"$f":"IFERROR(Table_NCSummary[[#This Row],[Proposed Fixture Wattage]]/1000*Table_NCSummary[[#This Row],[OpHrs]]*Table_NCSummary[[#This Row],[P. Qty]],\"\")","v":""},{"$f":"IFERROR(IF(Table_NCSummary[[#This Row],[IsActive]],IFERROR(VLOOKUP(RIGHT(Table_NCSummary[[#This Row],[Proposed Fixture]],LEN(Table_NCSummary[[#This Row],[Proposed Fixture]])-FIND(\" - \",Table_NCSummary[[#This Row],[Proposed Fixture]],FIND(\"]\",Table_NCSummary[[#This Row],[Proposed Fixture]],1))-2),Table_ControlType[],3, FALSE),Table_NCSummary[[#This Row],[Existing CSF]]),\"\"),\"\")","v":""},{"$f":"IFERROR(IF(Table_NCSummary[[#This Row],[IsActive]],IFERROR(Table_NCSummary[[#This Row],[Proposed Fixture Wattage]]/1000*Table_NCSummary[[#This Row],[OpHrs]]*Table_NCSummary[[#This Row],[P. Qty]]*Table_NCSummary[[#This Row],[Existing CSF]]*(-1),0),\"\"),\"\")","v":""},{"$f":"IFERROR(Table_NCSummary[[#This Row],[Proposed Fixture kWh]]+Table_NCSummary[[#This Row],[Proposed Fixture (Existing Controls) kWh]],\"\")","v":""},{"$f":"IFERROR(IF(Table_NCSummary[[#This Row],[IsActive]],IFERROR(Table_NCSummary[[#This Row],[Proposed Fixture Wattage]]/1000*Table_NCSummary[[#This Row],[OpHrs]]*Table_NCSummary[[#This Row],[P. Qty]]*Table_NCSummary[[#This Row],[Proposed CSF]]*(-1),0),\"\"),\"\")","v":""},{"$f":"IFERROR(Table_NCSummary[[#This Row],[Proposed Fixture kWh]]+Table_NCSummary[[#This Row],[Proposed Fixture (Proposed Controls) kWh]],\"\")","v":""},null,{"$f":"IFERROR(IF(Table_NCSummary[[#This Row],[IsActive]],IF((1-SUMPRODUCT(Table_NCSummary[P. Qty],Table_NCSummary[Proposed Fixture Wattage])/SUM(Table_NCSummary[Baseline Wattage]))<0.1,\"Does Not Qualify [Overall Fixture Reduction is less than 10%]\",IF(ISNUMBER(FIND(\"LED\",Table_NCSummary[[#This Row],[Proposed Fixture]],1)),IF(ISNUMBER(FIND(\"LED Tube\",Table_NCSummary[[#This Row],[Proposed Fixture]],1)),\"New Construction Interior LED Fixture\",IF(ISNUMBER(FIND(\"LED\",Table_NCSummary[[#This Row],[Proposed Fixture]],1)),IF(Table_NCInfo[[#This Row],[Interior/ Exterior]]=\"Exterior\",\"New Construction Exterior LED Fixture\",\"New Construction Interior LED Fixture\"),\"Ineligible Fixture\")),\"Ineligible Fixture\")),\"\"),\"\")","v":""},{"$f":"IFERROR(VLOOKUP(Table_NCSummary[[#This Row],[Fixture Measure Description]],Table_FixtureRate[],2,FALSE),\"\")","v":""},{"$f":"IFERROR(IF(Table_NCSummary[[#This Row],[IsActive]],IF((1-SUMPRODUCT(Table_NCSummary[P. Qty],Table_NCSummary[Proposed Fixture Wattage])/SUM(Table_NCSummary[Baseline Wattage]))<0.1,\"DNQ [kW Reduction <10%]\",IF(Table_NCSummary[[#This Row],[Fixture Measure Description]]=\"Ineligible Fixture\",0,ROUND(Table_NCSummary[[#This Row],[Fixture Rebate (per kW)]]*(Table_NCSummary[[#This Row],[Baseline Wattage]]-Table_NCSummary[[#This Row],[Proposed Wattage]])/1000,2))),\"\"),\"\")","v":""},{"$f":"IFERROR(IF(Table_NCSummary[[#This Row],[Fixture Measure Description]]=\"Ineligible Fixture\",0,ROUND(IF(ProjectCost_Total=0,300000,ProjectCost_Total)*Table_NCSummary[[#This Row],[Fixture Rebate]]/SUM(Table_NCSummary[Fixture Rebate],Table_NCSummary[Controls Rebate]),2)),\"\")","v":""},{"$f":"IFERROR(IF(Table_NCSummary[[#This Row],[IsActive]],IF((1-SUMPRODUCT(Table_NCSummary[P. Qty],Table_NCSummary[Proposed Fixture Wattage])/SUM(Table_NCSummary[Baseline Wattage]))<0.1,\"DNQ [kW Reduction <10%]\",IF(Table_NCSummary[[#This Row],[Fixture Measure Description]]=\"Ineligible Fixture\",0,Table_NCSummary[[#This Row],[Existing Overall kWh]]-Table_NCSummary[[#This Row],[Proposed Overall kWh (Existing Controls)]])),\"\"),\"\")","v":""},{"$f":"IFERROR(IF(Table_NCSummary[[#This Row],[IsActive]],IF((1-SUMPRODUCT(Table_NCSummary[P. Qty],Table_NCSummary[Proposed Fixture Wattage])/SUM(Table_NCSummary[Baseline Wattage]))<0.1,\"DNQ [kW Reduction <10%]\",IF(OR(Table_NCSummary[[#This Row],[Fixture Measure Description]]=\"Ineligible Fixture\",Table_NCSummary[[#This Row],[Fixture Measure Description]]=\"New Construction Exterior LED Fixture\"),0,(Table_NCSummary[[#This Row],[Baseline kWh]]-Table_NCSummary[[#This Row],[Proposed Fixture kWh]])/Table_NCSummary[[#This Row],[OpHrs]]*Table_NCSummary[[#This Row],[CF (Ltg)]]*Table_NCSummary[[#This Row],[DF (Ltg)]])),\"\"),\"\")","v":""},null,{"$f":"IFERROR(\n  IF(OR(Table_NCSummary[[#This Row],[Fixture Measure Description]]=\"\",Table_NCSummary[[#This Row],[Fixture Measure Description]]=\"Ineligible Fixture\"),\n    \"\",\n    \"New Construction\"\n    & \" - \" &\n    IFERROR(VLOOKUP(RIGHT(Table_NCSummary[[#This Row],[Proposed Fixture]],LEN(Table_NCSummary[[#This Row],[Proposed Fixture]])-FIND(\" - \",Table_NCSummary[[#This Row],[Proposed Fixture]],FIND(\"]\",Table_NCSummary[[#This Row],[Proposed Fixture]],1))-2),Table_ControlType[],2, FALSE),None)),\n\"\")","v":""},{"$f":"IFERROR(VLOOKUP(Table_NCSummary[[#This Row],[Controls Measure Description]],Table_ControlRate[],2,FALSE),\"\")","v":""},{"$f":"IFERROR(IF(Table_NCSummary[[#This Row],[IsActive]],IF((1-SUMPRODUCT(Table_NCSummary[P. Qty],Table_NCSummary[Proposed Fixture Wattage])/SUM(Table_NCSummary[Baseline Wattage]))<0.1,\"DNQ [kW Reduction <10%]\",IF(OR(Table_NCSummary[[#This Row],[Controls Measure Description]]=\"\",Table_NCSummary[[#This Row],[Controls Measure Description]]=\"New Construction - No Controls\"),0,ROUND(Table_NCSummary[[#This Row],[Controls Rebate (per Fixt Watt)]]*Table_NCSummary[[#This Row],[Proposed Fixture Wattage]]*Table_NCSummary[[#This Row],[P. Qty]],2))),\"\"),\"\")","v":""},{"$f":"IFERROR(IF(Table_NCSummary[[#This Row],[Fixture Measure Description]]=\"Ineligible Fixture\",0,ROUND(IF(ProjectCost_Total=0,300000,ProjectCost_Total)*Table_NCSummary[[#This Row],[Controls Rebate]]/SUM(Table_NCSummary[Fixture Rebate],Table_NCSummary[Controls Rebate]),2)),\"\")","v":""},{"$f":"IFERROR(IF(Table_NCSummary[[#This Row],[IsActive]],IF((1-SUMPRODUCT(Table_NCSummary[P. Qty],Table_NCSummary[Proposed Fixture Wattage])/SUM(Table_NCSummary[Baseline Wattage]))<0.1,\"DNQ [kW Reduction <10%]\",IF(Table_NCSummary[[#This Row],[Controls Measure Description]]=\"\",0,(Table_NCSummary[[#This Row],[Proposed Fixture (Existing Controls) kWh]]-Table_NCSummary[[#This Row],[Proposed Fixture (Proposed Controls) kWh]]))),\"\"),\"\")","v":""},{"$f":"IFERROR(IF(Table_NCSummary[[#This Row],[IsActive]],IF((1-SUMPRODUCT(Table_NCSummary[P. Qty],Table_NCSummary[Proposed Fixture Wattage])/SUM(Table_NCSummary[Baseline Wattage]))<0.1,\"DNQ [kW Reduction <10%]\",IF(OR(Table_NCSummary[[#This Row],[Controls Measure Description]]=\"\",Table_NCSummary[[#This Row],[Controls Measure Description]]=\"New Construction - No Controls\"),0,(Table_NCSummary[[#This Row],[Proposed Fixture (Existing Controls) kWh]]-Table_NCSummary[[#This Row],[Proposed Fixture (Proposed Controls) kWh]])/Table_NCSummary[[#This Row],[OpHrs]]*Table_NCSummary[[#This Row],[CF (Ltg)]]*Table_NCSummary[[#This Row],[DF (Ltg)]])),\"\"),\"\")","v":""},null,{"$f":"IFERROR(IF(NOT(ISNUMBER(Table_NCSummary[[#This Row],[Fixture Rebate]])),\"\",IF(MIN(IF(Table_NCSummary[[#This Row],[Fixture Cost]]<0,0,SUM(Table_NCSummary[Fixture Cost],Table_NCSummary[Controls Cost])),SUM(Table_NCSummary[Fixture Rebate],Table_NCSummary[Controls Rebate]))>300000,300000/MIN(IF(Table_NCSummary[[#This Row],[Fixture Cost]]<0,0,SUM(Table_NCSummary[Fixture Cost],Table_NCSummary[Controls Cost])),SUM(Table_NCSummary[Fixture Rebate],Table_NCSummary[Controls Rebate]))*MIN(IF(Table_NCSummary[[#This Row],[Fixture Cost]]<0,0,SUM(Table_NCSummary[Fixture Cost],Table_NCSummary[Controls Cost])),Table_NCSummary[[#This Row],[Fixture Rebate]]+IF(Table_NCSummary[[#This Row],[Controls Rebate]]=\"\",0,Table_NCSummary[[#This Row],[Controls Rebate]])),MIN(IF(Table_NCSummary[[#This Row],[Fixture Cost]]<0,0,SUM(Table_NCSummary[Fixture Cost],Table_NCSummary[Controls Cost])),Table_NCSummary[[#This Row],[Fixture Rebate]]+IF(Table_NCSummary[[#This Row],[Controls Rebate]]=\"\",0,Table_NCSummary[[#This Row],[Controls Rebate]])))),\"\")","v":""},{"$f":"IFERROR(IF(Table_NCSummary[[#This Row],[Fixture Cost]]=\"\",\"\",Table_NCSummary[[#This Row],[Fixture Cost]]+IF(Table_NCSummary[[#This Row],[Controls Cost]]=\"\",0,Table_NCSummary[[#This Row],[Controls Cost]])),\"\")","v":""},{"$f":"IFERROR(IF(Table_NCSummary[[#This Row],[IsActive]],IF(NOT(ISNUMBER(Table_NCSummary[[#This Row],[Fixture Rebate]])),\"\",IF(Table_NCInfo[[#This Row],[Interior/ Exterior]]=\"Interior\",IFERROR((Table_NCSummary[[#This Row],[Annual Fixture Savings (kWh)]]+Table_NCSummary[[#This Row],[Annual Control Savings (kWh)]])*(Table_NCSummary[[#This Row],[EIF]]-1),0),0)),\"\"),\"\")","v":""},{"$f":"IFERROR(IF(Table_NCSummary[[#This Row],[IsActive]],IF(NOT(ISNUMBER(Table_NCSummary[[#This Row],[Fixture Rebate]])),\"\",IF(Table_NCInfo[[#This Row],[Interior/ Exterior]]=\"Interior\",IFERROR((Table_NCSummary[[#This Row],[Fixture kW Reduction]]+Table_NCSummary[[#This Row],[Control kW Reduction]]/(Table_NCSummary[[#This Row],[CF (Ltg)]]*Table_NCSummary[[#This Row],[DF (Ltg)]]))*(Table_NCSummary[[#This Row],[DIF]]-1)*Table_NCSummary[[#This Row],[CF (HVAC)]]*Table_NCSummary[[#This Row],[DF (HVAC)]],0),0)),\"\"),\"\")","v":""},{"$f":"IFERROR(IF(Table_NCSummary[[#This Row],[IsActive]],IF(NOT(ISNUMBER(Table_NCSummary[[#This Row],[Fixture Rebate]])),\"\",ROUND(Table_NCSummary[[#This Row],[Annual Fixture Savings (kWh)]]+Table_NCSummary[[#This Row],[Annual Control Savings (kWh)]],0)),\"\"),\"\")","v":""},{"$f":"IFERROR(IF(Table_NCSummary[[#This Row],[IsActive]],IF(NOT(ISNUMBER(Table_NCSummary[[#This Row],[Fixture Rebate]])),\"\",ROUND(Table_NCSummary[[#This Row],[Fixture kW Reduction]]+Table_NCSummary[[#This Row],[Control kW Reduction]],3)),\"\"),\"\")","v":""},{"$f":"IFERROR(IF(Table_NCSummary[[#This Row],[IsActive]],IF(NOT(ISNUMBER(Table_NCSummary[[#This Row],[Fixture Rebate]])),\"\",ROUND(Table_NCSummary[[#This Row],[Fixture Energy Savings (kWh)]]+Table_NCSummary[[#This Row],[Induced HVAC Energy Savings (kWh)]],0)),\"\"),\"\")","v":""},{"$f":"IFERROR(IF(Table_NCSummary[[#This Row],[IsActive]],IF(NOT(ISNUMBER(Table_NCSummary[[#This Row],[Fixture Rebate]])),\"\",ROUND(Table_NCSummary[[#This Row],[Fixture Demand Savings (kW)]]+Table_NCSummary[[#This Row],[Induced HVAC Demand Savings (kW)]],3)),\"\"),\"\")","v":""}]
[{"$f":"IFERROR(Table_NCInfo[[#This Row],[Line]],\"\")","v":9},{"$f":"IFERROR(Table_NCInfo[[#This Row],[IsActive]],\"\")","v":false},{"$f":"IFERROR(IF(Table_NCSummary[[#This Row],[IsActive]],VLOOKUP(IF(ISNUMBER(MATCH(Table_NCInfo[[#This Row],[Line]],Table_NCInspection[Line],0)),INDEX(Table_NCInspection[Schedule],MATCH(Table_NCSummary[[#This Row],[Line Item]],Table_NCInspection[Line],0)),Table_NCInfo[[#This Row],[Schedule]]),'Customer Information'!$S$27:$T$34,2,FALSE),\"\"),\"\")","v":""},{"$f":"IFERROR(IF(Table_NCSummary[[#This Row],[IsActive]],INDEX(Table_IntLookups[EIF],MATCH(IF(ISNUMBER(MATCH(Table_NCSummary[[#This Row],[Line Item]],Table_NCInspection[Line],0)),INDEX(Table_NCInspection[Zone Description],MATCH(Table_NCSummary[[#This Row],[Line Item]],Table_NCInfo[Line],0)),Table_NCInfo[[#This Row],[Zone Description]]),Table_IntLookups[Dropdown],0)),\"\"),\"\")","v":""},{"$f":"IFERROR(IF(Table_NCSummary[[#This Row],[IsActive]],INDEX(Table_IntLookups[DIF],MATCH(IF(ISNUMBER(MATCH(Table_NCSummary[[#This Row],[Line Item]],Table_NCInspection[Line],0)),INDEX(Table_NCInspection[Zone Description],MATCH(Table_NCSummary[[#This Row],[Line Item]],Table_NCInfo[Line],0)),Table_NCInfo[[#This Row],[Zone Description]]),Table_IntLookups[Dropdown],0)),\"\"),\"\")","v":""},{"$f":"IFERROR(IF(Table_NCSummary[[#This Row],[IsActive]],INDEX(Table_IntLookups[CFltg],MATCH(IF(ISNUMBER(MATCH(Table_NCSummary[[#This Row],[Line Item]],Table_NCInspection[Line],0)),INDEX(Table_NCInspection[Zone Description],MATCH(Table_NCSummary[[#This Row],[Line Item]],Table_NCInfo[Line],0)),Table_NCInfo[[#This Row],[Zone Description]]),Table_IntLookups[Dropdown],0)),\"\"),\"\")","v":""},{"$f":"IFERROR(IF(Table_NCSummary[[#This Row],[IsActive]],INDEX(Table_IntLookups[DFltg],MATCH(IF(ISNUMBER(MATCH(Table_NCSummary[[#This Row],[Line Item]],Table_NCInspection[Line],0)),INDEX(Table_NCInspection[Zone Description],MATCH(Table_NCSummary[[#This Row],[Line Item]],Table_NCInfo[Line],0)),Table_NCInfo[[#This Row],[Zone Description]]),Table_IntLookups[Dropdown],0)),\"\"),\"\")","v":""},{"$f":"IFERROR(IF(Table_NCSummary[[#This Row],[IsActive]],INDEX(Table_IntLookups[Cfhvac],MATCH(IF(ISNUMBER(MATCH(Table_NCSummary[[#This Row],[Line Item]],Table_NCInspection[Line],0)),INDEX(Table_NCInspection[Zone Description],MATCH(Table_NCSummary[[#This Row],[Line Item]],Table_NCInfo[Line],0)),Table_NCInfo[[#This Row],[Zone Description]]),Table_IntLookups[Dropdown],0)),\"\"),\"\")","v":""},{"$f":"IFERROR(IF(Table_NCSummary[[#This Row],[IsActive]],INDEX(Table_IntLookups[Dfhvac],MATCH(IF(ISNUMBER(MATCH(Table_NCSummary[[#This Row],[Line Item]],Table_NCInspection[Line],0)),INDEX(Table_NCInspection[Zone Description],MATCH(Table_NCSummary[[#This Row],[Line Item]],Table_NCInfo[Line],0)),Table_NCInfo[[#This Row],[Zone Description]]),Table_IntLookups[Dropdown],0)),\"\"),\"\")","v":""},{"$f":"IFERROR(IF(Table_NCSummary[[#This Row],[IsActive]],\nIF(ISNUMBER(MATCH(Table_NCInfo[[#This Row],[Line]],Table_NCInspection[Line],0)),INDEX(Table_NCInspection[Zone Description],MATCH(Table_NCSummary[[#This Row],[Line Item]],Table_NCInspection[Line],0)),Table_NCInfo[[#This Row],[Zone Description]]),\n \"\"),\"\")","v":""},{"$f":"IFERROR(IF(Table_NCSummary[[#This Row],[IsActive]],\nCONCATENATE(\nIF(ISNUMBER(MATCH(Table_NCInfo[[#This Row],[Line]],Table_NCInspection[Line],0)),INDEX(Table_NCInspection[Interior/ Exterior],MATCH(Table_NCSummary[[#This Row],[Line Item]],Table_NCInspection[Line],0)),Table_NCInfo[[#This Row],[Interior/ Exterior]]),\n\" - \",\nIF(ISNUMBER(MATCH(Table_NCInfo[[#This Row],[Line]],Table_NCInspection[Line],0)),INDEX(Table_NCInspection[Space Description],MATCH(Table_NCSummary[[#This Row],[Line Item]],Table_NCInspection[Line],0)),Table_NCInfo[[#This Row],[Space Description]])),\n \"\"),\"\")","v":""},{"$f":"IFERROR(IF(ISNUMBER(MATCH(Table_NCInfo[[#This Row],[Line]],Table_NCInspection[Line],0)),INDEX(Table_NCInspection[Baseline Wattage],MATCH(Table_NCSummary[[#This Row],[Line Item]],Table_NCInspection[Line],0)),Table_NCInfo[[#This Row],[Baseline Wattage]]),\"\")","v":""},{"$f":"IFERROR(IF(Table_NCSummary[[#This Row],[IsActive]],Table_NCSummary[[#This Row],[Baseline Wattage]]/1000*Table_NCSummary[[#This Row],[OpHrs]],\"\"),\"\")","v":""},{"$f":"IFERROR(IF(Table_NCSummary[[#This Row],[IsActive]],IFERROR(VLOOKUP(IF(ISNUMBER(MATCH(Table_NCSummary[[#This Row],[Line Item]],Table_NCInspection[Line],0)),INDEX(Table_NCInspection[Zone '#],MATCH(Table_NCSummary[[#This Row],[Line Item]],Table_NCInspection[Line],0)),Table_NCInfo[[#This Row],[Zone '#]]),Table_IntLookups[],'Facility Information'!$AA$4,FALSE),0),\"\"),\"\")","v":""},{"$f":"IFERROR(IF(Table_NCSummary[[#This Row],[IsActive]],IFERROR(Table_NCSummary[[#This Row],[Baseline Wattage]]/1000*Table_NCSummary[[#This Row],[OpHrs]]*Table_NCSummary[[#This Row],[Existing CSF]]*(-1),0),\"\"),\"\")","v":""},{"$f":"IFERROR(Table_NCSummary[[#This Row],[Baseline kWh]]+Table_NCSummary[[#This Row],[Existing Fixture (Existing Controls) kWh]],\"\")","v":""},{"$f":"IFERROR(IF(Table_NCSummary[[#This Row],[IsActive]],IF(ISNUMBER(MATCH(Table_NCInfo[[#This Row],[Line]],Table_NCInspection[Line],0)),INDEX(Table_NCInspection[Fixture Description '[P']],MATCH(Table_NCSummary[[#This Row],[Line Item]],Table_NCInspection[Line],0)),Table_NCInfo[[#This Row],[Fixture Description '[P']]]),\"\"),\"\")","v":""},{"$f":"IFERROR(IF(Table_NCSummary[[#This Row],[IsActive]],IF(ISNUMBER(MATCH(Table_NCInfo[[#This Row],[Line]],Table_NCInspection[Line],0)),INDEX(Table_NCInspection['# Lamps/ Fixture '[P']],MATCH(Table_NCSummary[[#This Row],[Line Item]],Table_NCInspection[Line],0)),Table_NCInfo[[#This Row],['# Lamps/ Fixture '[P']]]),\"\"),\"\")","v":""},{"$f":"IFERROR(IF(Table_NCSummary[[#This Row],[IsActive]],IF(ISNUMBER(MATCH(Table_NCInfo[[#This Row],[Line]],Table_NCInspection[Line],0)),INDEX(Table_NCInspection[Fixture/ Lamp Wattage '[P']],MATCH(Table_NCSummary[[#This Row],[Line Item]],Table_NCInspection[Line],0)),Table_NCInfo[[#This Row],[Fixture/ Lamp Wattage '[P']]]),\"\"),\"\")","v":""},{"$f":"IFERROR(IF(Table_NCSummary[[#This Row],[IsActive]],IF(ISNUMBER(MATCH(Table_NCInfo[[#This Row],[Line]],Table_NCInspection[Line],0)),INDEX(Table_NCInspection[Fixture Qty '[P']],MATCH(Table_NCSummary[[#This Row],[Line Item]],Table_NCInspection[Line],0)),Table_NCInfo[[#This Row],[Fixture Qty '[P']]]),\"\"),\"\")","v":""},{"$f":"IFERROR(IF(Table_NCSummary[[#This Row],[IsActive]],Table_NCSummary[[#This Row],['# Lamps/ Fixture '[P']]]*Table_NCSummary[[#This Row],[P. Qty]],\"\"),\"\")","v":""},{"$f":"IFERROR(IF(Table_NCSummary[[#This Row],[IsActive]],IF(ISNUMBER(MATCH(Table_NCInfo[[#This Row],[Line]],Table_NCInspection[Line],0)),INDEX(Table_NCInspection[Fixture Wattage '[P']],MATCH(Table_NCSummary[[#This Row],[Line Item]],Table_NCInspection[Line],0)),Table_NCInfo[[#This Row],[Fixture Wattage '[P']]]),\"\"),\"\")","v":""},{"$f":"IFERROR(Table_NCSummary[[#This Row],[P. Qty]]*Table_NCSummary[[#This Row],[Proposed Fixture Wattage]],\"\")","v":""},{"$f":"IFERROR(Table_NCSummary[[#This Row],[Proposed Fixture Wattage]]/1000*Table_NCSummary[[#This Row],[OpHrs]]*Table_NCSummary[[#This Row],[P. Qty]],\"\")","v":""},{"$f":"IFERROR(IF(Table_NCSummary[[#This Row],[IsActive]],IFERROR(VLOOKUP(RIGHT(Table_NCSummary[[#This Row],[Proposed Fixture]],LEN(Table_NCSummary[[#This Row],[Proposed Fixture]])-FIND(\" - \",Table_NCSummary[[#This Row],[Proposed Fixture]],FIND(\"]\",Table_NCSummary[[#This Row],[Proposed Fixture]],1))-2),Table_ControlType[],3, FALSE),Table_NCSummary[[#This Row],[Existing CSF]]),\"\"),\"\")","v":""},{"$f":"IFERROR(IF(Table_NCSummary[[#This Row],[IsActive]],IFERROR(Table_NCSummary[[#This Row],[Proposed Fixture Wattage]]/1000*Table_NCSummary[[#This Row],[OpHrs]]*Table_NCSummary[[#This Row],[P. Qty]]*Table_NCSummary[[#This Row],[Existing CSF]]*(-1),0),\"\"),\"\")","v":""},{"$f":"IFERROR(Table_NCSummary[[#This Row],[Proposed Fixture kWh]]+Table_NCSummary[[#This Row],[Proposed Fixture (Existing Controls) kWh]],\"\")","v":""},{"$f":"IFERROR(IF(Table_NCSummary[[#This Row],[IsActive]],IFERROR(Table_NCSummary[[#This Row],[Proposed Fixture Wattage]]/1000*Table_NCSummary[[#This Row],[OpHrs]]*Table_NCSummary[[#This Row],[P. Qty]]*Table_NCSummary[[#This Row],[Proposed CSF]]*(-1),0),\"\"),\"\")","v":""},{"$f":"IFERROR(Table_NCSummary[[#This Row],[Proposed Fixture kWh]]+Table_NCSummary[[#This Row],[Proposed Fixture (Proposed Controls) kWh]],\"\")","v":""},null,{"$f":"IFERROR(IF(Table_NCSummary[[#This Row],[IsActive]],IF((1-SUMPRODUCT(Table_NCSummary[P. Qty],Table_NCSummary[Proposed Fixture Wattage])/SUM(Table_NCSummary[Baseline Wattage]))<0.1,\"Does Not Qualify [Overall Fixture Reduction is less than 10%]\",IF(ISNUMBER(FIND(\"LED\",Table_NCSummary[[#This Row],[Proposed Fixture]],1)),IF(ISNUMBER(FIND(\"LED Tube\",Table_NCSummary[[#This Row],[Proposed Fixture]],1)),\"New Construction Interior LED Fixture\",IF(ISNUMBER(FIND(\"LED\",Table_NCSummary[[#This Row],[Proposed Fixture]],1)),IF(Table_NCInfo[[#This Row],[Interior/ Exterior]]=\"Exterior\",\"New Construction Exterior LED Fixture\",\"New Construction Interior LED Fixture\"),\"Ineligible Fixture\")),\"Ineligible Fixture\")),\"\"),\"\")","v":""},{"$f":"IFERROR(VLOOKUP(Table_NCSummary[[#This Row],[Fixture Measure Description]],Table_FixtureRate[],2,FALSE),\"\")","v":""},{"$f":"IFERROR(IF(Table_NCSummary[[#This Row],[IsActive]],IF((1-SUMPRODUCT(Table_NCSummary[P. Qty],Table_NCSummary[Proposed Fixture Wattage])/SUM(Table_NCSummary[Baseline Wattage]))<0.1,\"DNQ [kW Reduction <10%]\",IF(Table_NCSummary[[#This Row],[Fixture Measure Description]]=\"Ineligible Fixture\",0,ROUND(Table_NCSummary[[#This Row],[Fixture Rebate (per kW)]]*(Table_NCSummary[[#This Row],[Baseline Wattage]]-Table_NCSummary[[#This Row],[Proposed Wattage]])/1000,2))),\"\"),\"\")","v":""},{"$f":"IFERROR(IF(Table_NCSummary[[#This Row],[Fixture Measure Description]]=\"Ineligible Fixture\",0,ROUND(IF(ProjectCost_Total=0,300000,ProjectCost_Total)*Table_NCSummary[[#This Row],[Fixture Rebate]]/SUM(Table_NCSummary[Fixture Rebate],Table_NCSummary[Controls Rebate]),2)),\"\")","v":""},{"$f":"IFERROR(IF(Table_NCSummary[[#This Row],[IsActive]],IF((1-SUMPRODUCT(Table_NCSummary[P. Qty],Table_NCSummary[Proposed Fixture Wattage])/SUM(Table_NCSummary[Baseline Wattage]))<0.1,\"DNQ [kW Reduction <10%]\",IF(Table_NCSummary[[#This Row],[Fixture Measure Description]]=\"Ineligible Fixture\",0,Table_NCSummary[[#This Row],[Existing Overall kWh]]-Table_NCSummary[[#This Row],[Proposed Overall kWh (Existing Controls)]])),\"\"),\"\")","v":""},{"$f":"IFERROR(IF(Table_NCSummary[[#This Row],[IsActive]],IF((1-SUMPRODUCT(Table_NCSummary[P. Qty],Table_NCSummary[Proposed Fixture Wattage])/SUM(Table_NCSummary[Baseline Wattage]))<0.1,\"DNQ [kW Reduction <10%]\",IF(OR(Table_NCSummary[[#This Row],[Fixture Measure Description]]=\"Ineligible Fixture\",Table_NCSummary[[#This Row],[Fixture Measure Description]]=\"New Construction Exterior LED Fixture\"),0,(Table_NCSummary[[#This Row],[Baseline kWh]]-Table_NCSummary[[#This Row],[Proposed Fixture kWh]])/Table_NCSummary[[#This Row],[OpHrs]]*Table_NCSummary[[#This Row],[CF (Ltg)]]*Table_NCSummary[[#This Row],[DF (Ltg)]])),\"\"),\"\")","v":""},null,{"$f":"IFERROR(\n  IF(OR(Table_NCSummary[[#This Row],[Fixture Measure Description]]=\"\",Table_NCSummary[[#This Row],[Fixture Measure Description]]=\"Ineligible Fixture\"),\n    \"\",\n    \"New Construction\"\n    & \" - \" &\n    IFERROR(VLOOKUP(RIGHT(Table_NCSummary[[#This Row],[Proposed Fixture]],LEN(Table_NCSummary[[#This Row],[Proposed Fixture]])-FIND(\" - \",Table_NCSummary[[#This Row],[Proposed Fixture]],FIND(\"]\",Table_NCSummary[[#This Row],[Proposed Fixture]],1))-2),Table_ControlType[],2, FALSE),None)),\n\"\")","v":""},{"$f":"IFERROR(VLOOKUP(Table_NCSummary[[#This Row],[Controls Measure Description]],Table_ControlRate[],2,FALSE),\"\")","v":""},{"$f":"IFERROR(IF(Table_NCSummary[[#This Row],[IsActive]],IF((1-SUMPRODUCT(Table_NCSummary[P. Qty],Table_NCSummary[Proposed Fixture Wattage])/SUM(Table_NCSummary[Baseline Wattage]))<0.1,\"DNQ [kW Reduction <10%]\",IF(OR(Table_NCSummary[[#This Row],[Controls Measure Description]]=\"\",Table_NCSummary[[#This Row],[Controls Measure Description]]=\"New Construction - No Controls\"),0,ROUND(Table_NCSummary[[#This Row],[Controls Rebate (per Fixt Watt)]]*Table_NCSummary[[#This Row],[Proposed Fixture Wattage]]*Table_NCSummary[[#This Row],[P. Qty]],2))),\"\"),\"\")","v":""},{"$f":"IFERROR(IF(Table_NCSummary[[#This Row],[Fixture Measure Description]]=\"Ineligible Fixture\",0,ROUND(IF(ProjectCost_Total=0,300000,ProjectCost_Total)*Table_NCSummary[[#This Row],[Controls Rebate]]/SUM(Table_NCSummary[Fixture Rebate],Table_NCSummary[Controls Rebate]),2)),\"\")","v":""},{"$f":"IFERROR(IF(Table_NCSummary[[#This Row],[IsActive]],IF((1-SUMPRODUCT(Table_NCSummary[P. Qty],Table_NCSummary[Proposed Fixture Wattage])/SUM(Table_NCSummary[Baseline Wattage]))<0.1,\"DNQ [kW Reduction <10%]\",IF(Table_NCSummary[[#This Row],[Controls Measure Description]]=\"\",0,(Table_NCSummary[[#This Row],[Proposed Fixture (Existing Controls) kWh]]-Table_NCSummary[[#This Row],[Proposed Fixture (Proposed Controls) kWh]]))),\"\"),\"\")","v":""},{"$f":"IFERROR(IF(Table_NCSummary[[#This Row],[IsActive]],IF((1-SUMPRODUCT(Table_NCSummary[P. Qty],Table_NCSummary[Proposed Fixture Wattage])/SUM(Table_NCSummary[Baseline Wattage]))<0.1,\"DNQ [kW Reduction <10%]\",IF(OR(Table_NCSummary[[#This Row],[Controls Measure Description]]=\"\",Table_NCSummary[[#This Row],[Controls Measure Description]]=\"New Construction - No Controls\"),0,(Table_NCSummary[[#This Row],[Proposed Fixture (Existing Controls) kWh]]-Table_NCSummary[[#This Row],[Proposed Fixture (Proposed Controls) kWh]])/Table_NCSummary[[#This Row],[OpHrs]]*Table_NCSummary[[#This Row],[CF (Ltg)]]*Table_NCSummary[[#This Row],[DF (Ltg)]])),\"\"),\"\")","v":""},null,{"$f":"IFERROR(IF(NOT(ISNUMBER(Table_NCSummary[[#This Row],[Fixture Rebate]])),\"\",IF(MIN(IF(Table_NCSummary[[#This Row],[Fixture Cost]]<0,0,SUM(Table_NCSummary[Fixture Cost],Table_NCSummary[Controls Cost])),SUM(Table_NCSummary[Fixture Rebate],Table_NCSummary[Controls Rebate]))>300000,300000/MIN(IF(Table_NCSummary[[#This Row],[Fixture Cost]]<0,0,SUM(Table_NCSummary[Fixture Cost],Table_NCSummary[Controls Cost])),SUM(Table_NCSummary[Fixture Rebate],Table_NCSummary[Controls Rebate]))*MIN(IF(Table_NCSummary[[#This Row],[Fixture Cost]]<0,0,SUM(Table_NCSummary[Fixture Cost],Table_NCSummary[Controls Cost])),Table_NCSummary[[#This Row],[Fixture Rebate]]+IF(Table_NCSummary[[#This Row],[Controls Rebate]]=\"\",0,Table_NCSummary[[#This Row],[Controls Rebate]])),MIN(IF(Table_NCSummary[[#This Row],[Fixture Cost]]<0,0,SUM(Table_NCSummary[Fixture Cost],Table_NCSummary[Controls Cost])),Table_NCSummary[[#This Row],[Fixture Rebate]]+IF(Table_NCSummary[[#This Row],[Controls Rebate]]=\"\",0,Table_NCSummary[[#This Row],[Controls Rebate]])))),\"\")","v":""},{"$f":"IFERROR(IF(Table_NCSummary[[#This Row],[Fixture Cost]]=\"\",\"\",Table_NCSummary[[#This Row],[Fixture Cost]]+IF(Table_NCSummary[[#This Row],[Controls Cost]]=\"\",0,Table_NCSummary[[#This Row],[Controls Cost]])),\"\")","v":""},{"$f":"IFERROR(IF(Table_NCSummary[[#This Row],[IsActive]],IF(NOT(ISNUMBER(Table_NCSummary[[#This Row],[Fixture Rebate]])),\"\",IF(Table_NCInfo[[#This Row],[Interior/ Exterior]]=\"Interior\",IFERROR((Table_NCSummary[[#This Row],[Annual Fixture Savings (kWh)]]+Table_NCSummary[[#This Row],[Annual Control Savings (kWh)]])*(Table_NCSummary[[#This Row],[EIF]]-1),0),0)),\"\"),\"\")","v":""},{"$f":"IFERROR(IF(Table_NCSummary[[#This Row],[IsActive]],IF(NOT(ISNUMBER(Table_NCSummary[[#This Row],[Fixture Rebate]])),\"\",IF(Table_NCInfo[[#This Row],[Interior/ Exterior]]=\"Interior\",IFERROR((Table_NCSummary[[#This Row],[Fixture kW Reduction]]+Table_NCSummary[[#This Row],[Control kW Reduction]]/(Table_NCSummary[[#This Row],[CF (Ltg)]]*Table_NCSummary[[#This Row],[DF (Ltg)]]))*(Table_NCSummary[[#This Row],[DIF]]-1)*Table_NCSummary[[#This Row],[CF (HVAC)]]*Table_NCSummary[[#This Row],[DF (HVAC)]],0),0)),\"\"),\"\")","v":""},{"$f":"IFERROR(IF(Table_NCSummary[[#This Row],[IsActive]],IF(NOT(ISNUMBER(Table_NCSummary[[#This Row],[Fixture Rebate]])),\"\",ROUND(Table_NCSummary[[#This Row],[Annual Fixture Savings (kWh)]]+Table_NCSummary[[#This Row],[Annual Control Savings (kWh)]],0)),\"\"),\"\")","v":""},{"$f":"IFERROR(IF(Table_NCSummary[[#This Row],[IsActive]],IF(NOT(ISNUMBER(Table_NCSummary[[#This Row],[Fixture Rebate]])),\"\",ROUND(Table_NCSummary[[#This Row],[Fixture kW Reduction]]+Table_NCSummary[[#This Row],[Control kW Reduction]],3)),\"\"),\"\")","v":""},{"$f":"IFERROR(IF(Table_NCSummary[[#This Row],[IsActive]],IF(NOT(ISNUMBER(Table_NCSummary[[#This Row],[Fixture Rebate]])),\"\",ROUND(Table_NCSummary[[#This Row],[Fixture Energy Savings (kWh)]]+Table_NCSummary[[#This Row],[Induced HVAC Energy Savings (kWh)]],0)),\"\"),\"\")","v":""},{"$f":"IFERROR(IF(Table_NCSummary[[#This Row],[IsActive]],IF(NOT(ISNUMBER(Table_NCSummary[[#This Row],[Fixture Rebate]])),\"\",ROUND(Table_NCSummary[[#This Row],[Fixture Demand Savings (kW)]]+Table_NCSummary[[#This Row],[Induced HVAC Demand Savings (kW)]],3)),\"\"),\"\")","v":""}]
[{"$f":"IFERROR(Table_NCInfo[[#This Row],[Line]],\"\")","v":10},{"$f":"IFERROR(Table_NCInfo[[#This Row],[IsActive]],\"\")","v":false},{"$f":"IFERROR(IF(Table_NCSummary[[#This Row],[IsActive]],VLOOKUP(IF(ISNUMBER(MATCH(Table_NCInfo[[#This Row],[Line]],Table_NCInspection[Line],0)),INDEX(Table_NCInspection[Schedule],MATCH(Table_NCSummary[[#This Row],[Line Item]],Table_NCInspection[Line],0)),Table_NCInfo[[#This Row],[Schedule]]),'Customer Information'!$S$27:$T$34,2,FALSE),\"\"),\"\")","v":""},{"$f":"IFERROR(IF(Table_NCSummary[[#This Row],[IsActive]],INDEX(Table_IntLookups[EIF],MATCH(IF(ISNUMBER(MATCH(Table_NCSummary[[#This Row],[Line Item]],Table_NCInspection[Line],0)),INDEX(Table_NCInspection[Zone Description],MATCH(Table_NCSummary[[#This Row],[Line Item]],Table_NCInfo[Line],0)),Table_NCInfo[[#This Row],[Zone Description]]),Table_IntLookups[Dropdown],0)),\"\"),\"\")","v":""},{"$f":"IFERROR(IF(Table_NCSummary[[#This Row],[IsActive]],INDEX(Table_IntLookups[DIF],MATCH(IF(ISNUMBER(MATCH(Table_NCSummary[[#This Row],[Line Item]],Table_NCInspection[Line],0)),INDEX(Table_NCInspection[Zone Description],MATCH(Table_NCSummary[[#This Row],[Line Item]],Table_NCInfo[Line],0)),Table_NCInfo[[#This Row],[Zone Description]]),Table_IntLookups[Dropdown],0)),\"\"),\"\")","v":""},{"$f":"IFERROR(IF(Table_NCSummary[[#This Row],[IsActive]],INDEX(Table_IntLookups[CFltg],MATCH(IF(ISNUMBER(MATCH(Table_NCSummary[[#This Row],[Line Item]],Table_NCInspection[Line],0)),INDEX(Table_NCInspection[Zone Description],MATCH(Table_NCSummary[[#This Row],[Line Item]],Table_NCInfo[Line],0)),Table_NCInfo[[#This Row],[Zone Description]]),Table_IntLookups[Dropdown],0)),\"\"),\"\")","v":""},{"$f":"IFERROR(IF(Table_NCSummary[[#This Row],[IsActive]],INDEX(Table_IntLookups[DFltg],MATCH(IF(ISNUMBER(MATCH(Table_NCSummary[[#This Row],[Line Item]],Table_NCInspection[Line],0)),INDEX(Table_NCInspection[Zone Description],MATCH(Table_NCSummary[[#This Row],[Line Item]],Table_NCInfo[Line],0)),Table_NCInfo[[#This Row],[Zone Description]]),Table_IntLookups[Dropdown],0)),\"\"),\"\")","v":""},{"$f":"IFERROR(IF(Table_NCSummary[[#This Row],[IsActive]],INDEX(Table_IntLookups[Cfhvac],MATCH(IF(ISNUMBER(MATCH(Table_NCSummary[[#This Row],[Line Item]],Table_NCInspection[Line],0)),INDEX(Table_NCInspection[Zone Description],MATCH(Table_NCSummary[[#This Row],[Line Item]],Table_NCInfo[Line],0)),Table_NCInfo[[#This Row],[Zone Description]]),Table_IntLookups[Dropdown],0)),\"\"),\"\")","v":""},{"$f":"IFERROR(IF(Table_NCSummary[[#This Row],[IsActive]],INDEX(Table_IntLookups[Dfhvac],MATCH(IF(ISNUMBER(MATCH(Table_NCSummary[[#This Row],[Line Item]],Table_NCInspection[Line],0)),INDEX(Table_NCInspection[Zone Description],MATCH(Table_NCSummary[[#This Row],[Line Item]],Table_NCInfo[Line],0)),Table_NCInfo[[#This Row],[Zone Description]]),Table_IntLookups[Dropdown],0)),\"\"),\"\")","v":""},{"$f":"IFERROR(IF(Table_NCSummary[[#This Row],[IsActive]],\nIF(ISNUMBER(MATCH(Table_NCInfo[[#This Row],[Line]],Table_NCInspection[Line],0)),INDEX(Table_NCInspection[Zone Description],MATCH(Table_NCSummary[[#This Row],[Line Item]],Table_NCInspection[Line],0)),Table_NCInfo[[#This Row],[Zone Description]]),\n \"\"),\"\")","v":""},{"$f":"IFERROR(IF(Table_NCSummary[[#This Row],[IsActive]],\nCONCATENATE(\nIF(ISNUMBER(MATCH(Table_NCInfo[[#This Row],[Line]],Table_NCInspection[Line],0)),INDEX(Table_NCInspection[Interior/ Exterior],MATCH(Table_NCSummary[[#This Row],[Line Item]],Table_NCInspection[Line],0)),Table_NCInfo[[#This Row],[Interior/ Exterior]]),\n\" - \",\nIF(ISNUMBER(MATCH(Table_NCInfo[[#This Row],[Line]],Table_NCInspection[Line],0)),INDEX(Table_NCInspection[Space Description],MATCH(Table_NCSummary[[#This Row],[Line Item]],Table_NCInspection[Line],0)),Table_NCInfo[[#This Row],[Space Description]])),\n \"\"),\"\")","v":""},{"$f":"IFERROR(IF(ISNUMBER(MATCH(Table_NCInfo[[#This Row],[Line]],Table_NCInspection[Line],0)),INDEX(Table_NCInspection[Baseline Wattage],MATCH(Table_NCSummary[[#This Row],[Line Item]],Table_NCInspection[Line],0)),Table_NCInfo[[#This Row],[Baseline Wattage]]),\"\")","v":""},{"$f":"IFERROR(IF(Table_NCSummary[[#This Row],[IsActive]],Table_NCSummary[[#This Row],[Baseline Wattage]]/1000*Table_NCSummary[[#This Row],[OpHrs]],\"\"),\"\")","v":""},{"$f":"IFERROR(IF(Table_NCSummary[[#This Row],[IsActive]],IFERROR(VLOOKUP(IF(ISNUMBER(MATCH(Table_NCSummary[[#This Row],[Line Item]],Table_NCInspection[Line],0)),INDEX(Table_NCInspection[Zone '#],MATCH(Table_NCSummary[[#This Row],[Line Item]],Table_NCInspection[Line],0)),Table_NCInfo[[#This Row],[Zone '#]]),Table_IntLookups[],'Facility Information'!$AA$4,FALSE),0),\"\"),\"\")","v":""},{"$f":"IFERROR(IF(Table_NCSummary[[#This Row],[IsActive]],IFERROR(Table_NCSummary[[#This Row],[Baseline Wattage]]/1000*Table_NCSummary[[#This Row],[OpHrs]]*Table_NCSummary[[#This Row],[Existing CSF]]*(-1),0),\"\"),\"\")","v":""},{"$f":"IFERROR(Table_NCSummary[[#This Row],[Baseline kWh]]+Table_NCSummary[[#This Row],[Existing Fixture (Existing Controls) kWh]],\"\")","v":""},{"$f":"IFERROR(IF(Table_NCSummary[[#This Row],[IsActive]],IF(ISNUMBER(MATCH(Table_NCInfo[[#This Row],[Line]],Table_NCInspection[Line],0)),INDEX(Table_NCInspection[Fixture Description '[P']],MATCH(Table_NCSummary[[#This Row],[Line Item]],Table_NCInspection[Line],0)),Table_NCInfo[[#This Row],[Fixture Description '[P']]]),\"\"),\"\")","v":""},{"$f":"IFERROR(IF(Table_NCSummary[[#This Row],[IsActive]],IF(ISNUMBER(MATCH(Table_NCInfo[[#This Row],[Line]],Table_NCInspection[Line],0)),INDEX(Table_NCInspection['# Lamps/ Fixture '[P']],MATCH(Table_NCSummary[[#This Row],[Line Item]],Table_NCInspection[Line],0)),Table_NCInfo[[#This Row],['# Lamps/ Fixture '[P']]]),\"\"),\"\")","v":""},{"$f":"IFERROR(IF(Table_NCSummary[[#This Row],[IsActive]],IF(ISNUMBER(MATCH(Table_NCInfo[[#This Row],[Line]],Table_NCInspection[Line],0)),INDEX(Table_NCInspection[Fixture/ Lamp Wattage '[P']],MATCH(Table_NCSummary[[#This Row],[Line Item]],Table_NCInspection[Line],0)),Table_NCInfo[[#This Row],[Fixture/ Lamp Wattage '[P']]]),\"\"),\"\")","v":""},{"$f":"IFERROR(IF(Table_NCSummary[[#This Row],[IsActive]],IF(ISNUMBER(MATCH(Table_NCInfo[[#This Row],[Line]],Table_NCInspection[Line],0)),INDEX(Table_NCInspection[Fixture Qty '[P']],MATCH(Table_NCSummary[[#This Row],[Line Item]],Table_NCInspection[Line],0)),Table_NCInfo[[#This Row],[Fixture Qty '[P']]]),\"\"),\"\")","v":""},{"$f":"IFERROR(IF(Table_NCSummary[[#This Row],[IsActive]],Table_NCSummary[[#This Row],['# Lamps/ Fixture '[P']]]*Table_NCSummary[[#This Row],[P. Qty]],\"\"),\"\")","v":""},{"$f":"IFERROR(IF(Table_NCSummary[[#This Row],[IsActive]],IF(ISNUMBER(MATCH(Table_NCInfo[[#This Row],[Line]],Table_NCInspection[Line],0)),INDEX(Table_NCInspection[Fixture Wattage '[P']],MATCH(Table_NCSummary[[#This Row],[Line Item]],Table_NCInspection[Line],0)),Table_NCInfo[[#This Row],[Fixture Wattage '[P']]]),\"\"),\"\")","v":""},{"$f":"IFERROR(Table_NCSummary[[#This Row],[P. Qty]]*Table_NCSummary[[#This Row],[Proposed Fixture Wattage]],\"\")","v":""},{"$f":"IFERROR(Table_NCSummary[[#This Row],[Proposed Fixture Wattage]]/1000*Table_NCSummary[[#This Row],[OpHrs]]*Table_NCSummary[[#This Row],[P. Qty]],\"\")","v":""},{"$f":"IFERROR(IF(Table_NCSummary[[#This Row],[IsActive]],IFERROR(VLOOKUP(RIGHT(Table_NCSummary[[#This Row],[Proposed Fixture]],LEN(Table_NCSummary[[#This Row],[Proposed Fixture]])-FIND(\" - \",Table_NCSummary[[#This Row],[Proposed Fixture]],FIND(\"]\",Table_NCSummary[[#This Row],[Proposed Fixture]],1))-2),Table_ControlType[],3, FALSE),Table_NCSummary[[#This Row],[Existing CSF]]),\"\"),\"\")","v":""},{"$f":"IFERROR(IF(Table_NCSummary[[#This Row],[IsActive]],IFERROR(Table_NCSummary[[#This Row],[Proposed Fixture Wattage]]/1000*Table_NCSummary[[#This Row],[OpHrs]]*Table_NCSummary[[#This Row],[P. Qty]]*Table_NCSummary[[#This Row],[Existing CSF]]*(-1),0),\"\"),\"\")","v":""},{"$f":"IFERROR(Table_NCSummary[[#This Row],[Proposed Fixture kWh]]+Table_NCSummary[[#This Row],[Proposed Fixture (Existing Controls) kWh]],\"\")","v":""},{"$f":"IFERROR(IF(Table_NCSummary[[#This Row],[IsActive]],IFERROR(Table_NCSummary[[#This Row],[Proposed Fixture Wattage]]/1000*Table_NCSummary[[#This Row],[OpHrs]]*Table_NCSummary[[#This Row],[P. Qty]]*Table_NCSummary[[#This Row],[Proposed CSF]]*(-1),0),\"\"),\"\")","v":""},{"$f":"IFERROR(Table_NCSummary[[#This Row],[Proposed Fixture kWh]]+Table_NCSummary[[#This Row],[Proposed Fixture (Proposed Controls) kWh]],\"\")","v":""},null,{"$f":"IFERROR(IF(Table_NCSummary[[#This Row],[IsActive]],IF((1-SUMPRODUCT(Table_NCSummary[P. Qty],Table_NCSummary[Proposed Fixture Wattage])/SUM(Table_NCSummary[Baseline Wattage]))<0.1,\"Does Not Qualify [Overall Fixture Reduction is less than 10%]\",IF(ISNUMBER(FIND(\"LED\",Table_NCSummary[[#This Row],[Proposed Fixture]],1)),IF(ISNUMBER(FIND(\"LED Tube\",Table_NCSummary[[#This Row],[Proposed Fixture]],1)),\"New Construction Interior LED Fixture\",IF(ISNUMBER(FIND(\"LED\",Table_NCSummary[[#This Row],[Proposed Fixture]],1)),IF(Table_NCInfo[[#This Row],[Interior/ Exterior]]=\"Exterior\",\"New Construction Exterior LED Fixture\",\"New Construction Interior LED Fixture\"),\"Ineligible Fixture\")),\"Ineligible Fixture\")),\"\"),\"\")","v":""},{"$f":"IFERROR(VLOOKUP(Table_NCSummary[[#This Row],[Fixture Measure Description]],Table_FixtureRate[],2,FALSE),\"\")","v":""},{"$f":"IFERROR(IF(Table_NCSummary[[#This Row],[IsActive]],IF((1-SUMPRODUCT(Table_NCSummary[P. Qty],Table_NCSummary[Proposed Fixture Wattage])/SUM(Table_NCSummary[Baseline Wattage]))<0.1,\"DNQ [kW Reduction <10%]\",IF(Table_NCSummary[[#This Row],[Fixture Measure Description]]=\"Ineligible Fixture\",0,ROUND(Table_NCSummary[[#This Row],[Fixture Rebate (per kW)]]*(Table_NCSummary[[#This Row],[Baseline Wattage]]-Table_NCSummary[[#This Row],[Proposed Wattage]])/1000,2))),\"\"),\"\")","v":""},{"$f":"IFERROR(IF(Table_NCSummary[[#This Row],[Fixture Measure Description]]=\"Ineligible Fixture\",0,ROUND(IF(ProjectCost_Total=0,300000,ProjectCost_Total)*Table_NCSummary[[#This Row],[Fixture Rebate]]/SUM(Table_NCSummary[Fixture Rebate],Table_NCSummary[Controls Rebate]),2)),\"\")","v":""},{"$f":"IFERROR(IF(Table_NCSummary[[#This Row],[IsActive]],IF((1-SUMPRODUCT(Table_NCSummary[P. Qty],Table_NCSummary[Proposed Fixture Wattage])/SUM(Table_NCSummary[Baseline Wattage]))<0.1,\"DNQ [kW Reduction <10%]\",IF(Table_NCSummary[[#This Row],[Fixture Measure Description]]=\"Ineligible Fixture\",0,Table_NCSummary[[#This Row],[Existing Overall kWh]]-Table_NCSummary[[#This Row],[Proposed Overall kWh (Existing Controls)]])),\"\"),\"\")","v":""},{"$f":"IFERROR(IF(Table_NCSummary[[#This Row],[IsActive]],IF((1-SUMPRODUCT(Table_NCSummary[P. Qty],Table_NCSummary[Proposed Fixture Wattage])/SUM(Table_NCSummary[Baseline Wattage]))<0.1,\"DNQ [kW Reduction <10%]\",IF(OR(Table_NCSummary[[#This Row],[Fixture Measure Description]]=\"Ineligible Fixture\",Table_NCSummary[[#This Row],[Fixture Measure Description]]=\"New Construction Exterior LED Fixture\"),0,(Table_NCSummary[[#This Row],[Baseline kWh]]-Table_NCSummary[[#This Row],[Proposed Fixture kWh]])/Table_NCSummary[[#This Row],[OpHrs]]*Table_NCSummary[[#This Row],[CF (Ltg)]]*Table_NCSummary[[#This Row],[DF (Ltg)]])),\"\"),\"\")","v":""},null,{"$f":"IFERROR(\n  IF(OR(Table_NCSummary[[#This Row],[Fixture Measure Description]]=\"\",Table_NCSummary[[#This Row],[Fixture Measure Description]]=\"Ineligible Fixture\"),\n    \"\",\n    \"New Construction\"\n    & \" - \" &\n    IFERROR(VLOOKUP(RIGHT(Table_NCSummary[[#This Row],[Proposed Fixture]],LEN(Table_NCSummary[[#This Row],[Proposed Fixture]])-FIND(\" - \",Table_NCSummary[[#This Row],[Proposed Fixture]],FIND(\"]\",Table_NCSummary[[#This Row],[Proposed Fixture]],1))-2),Table_ControlType[],2, FALSE),None)),\n\"\")","v":""},{"$f":"IFERROR(VLOOKUP(Table_NCSummary[[#This Row],[Controls Measure Description]],Table_ControlRate[],2,FALSE),\"\")","v":""},{"$f":"IFERROR(IF(Table_NCSummary[[#This Row],[IsActive]],IF((1-SUMPRODUCT(Table_NCSummary[P. Qty],Table_NCSummary[Proposed Fixture Wattage])/SUM(Table_NCSummary[Baseline Wattage]))<0.1,\"DNQ [kW Reduction <10%]\",IF(OR(Table_NCSummary[[#This Row],[Controls Measure Description]]=\"\",Table_NCSummary[[#This Row],[Controls Measure Description]]=\"New Construction - No Controls\"),0,ROUND(Table_NCSummary[[#This Row],[Controls Rebate (per Fixt Watt)]]*Table_NCSummary[[#This Row],[Proposed Fixture Wattage]]*Table_NCSummary[[#This Row],[P. Qty]],2))),\"\"),\"\")","v":""},{"$f":"IFERROR(IF(Table_NCSummary[[#This Row],[Fixture Measure Description]]=\"Ineligible Fixture\",0,ROUND(IF(ProjectCost_Total=0,300000,ProjectCost_Total)*Table_NCSummary[[#This Row],[Controls Rebate]]/SUM(Table_NCSummary[Fixture Rebate],Table_NCSummary[Controls Rebate]),2)),\"\")","v":""},{"$f":"IFERROR(IF(Table_NCSummary[[#This Row],[IsActive]],IF((1-SUMPRODUCT(Table_NCSummary[P. Qty],Table_NCSummary[Proposed Fixture Wattage])/SUM(Table_NCSummary[Baseline Wattage]))<0.1,\"DNQ [kW Reduction <10%]\",IF(Table_NCSummary[[#This Row],[Controls Measure Description]]=\"\",0,(Table_NCSummary[[#This Row],[Proposed Fixture (Existing Controls) kWh]]-Table_NCSummary[[#This Row],[Proposed Fixture (Proposed Controls) kWh]]))),\"\"),\"\")","v":""},{"$f":"IFERROR(IF(Table_NCSummary[[#This Row],[IsActive]],IF((1-SUMPRODUCT(Table_NCSummary[P. Qty],Table_NCSummary[Proposed Fixture Wattage])/SUM(Table_NCSummary[Baseline Wattage]))<0.1,\"DNQ [kW Reduction <10%]\",IF(OR(Table_NCSummary[[#This Row],[Controls Measure Description]]=\"\",Table_NCSummary[[#This Row],[Controls Measure Description]]=\"New Construction - No Controls\"),0,(Table_NCSummary[[#This Row],[Proposed Fixture (Existing Controls) kWh]]-Table_NCSummary[[#This Row],[Proposed Fixture (Proposed Controls) kWh]])/Table_NCSummary[[#This Row],[OpHrs]]*Table_NCSummary[[#This Row],[CF (Ltg)]]*Table_NCSummary[[#This Row],[DF (Ltg)]])),\"\"),\"\")","v":""},null,{"$f":"IFERROR(IF(NOT(ISNUMBER(Table_NCSummary[[#This Row],[Fixture Rebate]])),\"\",IF(MIN(IF(Table_NCSummary[[#This Row],[Fixture Cost]]<0,0,SUM(Table_NCSummary[Fixture Cost],Table_NCSummary[Controls Cost])),SUM(Table_NCSummary[Fixture Rebate],Table_NCSummary[Controls Rebate]))>300000,300000/MIN(IF(Table_NCSummary[[#This Row],[Fixture Cost]]<0,0,SUM(Table_NCSummary[Fixture Cost],Table_NCSummary[Controls Cost])),SUM(Table_NCSummary[Fixture Rebate],Table_NCSummary[Controls Rebate]))*MIN(IF(Table_NCSummary[[#This Row],[Fixture Cost]]<0,0,SUM(Table_NCSummary[Fixture Cost],Table_NCSummary[Controls Cost])),Table_NCSummary[[#This Row],[Fixture Rebate]]+IF(Table_NCSummary[[#This Row],[Controls Rebate]]=\"\",0,Table_NCSummary[[#This Row],[Controls Rebate]])),MIN(IF(Table_NCSummary[[#This Row],[Fixture Cost]]<0,0,SUM(Table_NCSummary[Fixture Cost],Table_NCSummary[Controls Cost])),Table_NCSummary[[#This Row],[Fixture Rebate]]+IF(Table_NCSummary[[#This Row],[Controls Rebate]]=\"\",0,Table_NCSummary[[#This Row],[Controls Rebate]])))),\"\")","v":""},{"$f":"IFERROR(IF(Table_NCSummary[[#This Row],[Fixture Cost]]=\"\",\"\",Table_NCSummary[[#This Row],[Fixture Cost]]+IF(Table_NCSummary[[#This Row],[Controls Cost]]=\"\",0,Table_NCSummary[[#This Row],[Controls Cost]])),\"\")","v":""},{"$f":"IFERROR(IF(Table_NCSummary[[#This Row],[IsActive]],IF(NOT(ISNUMBER(Table_NCSummary[[#This Row],[Fixture Rebate]])),\"\",IF(Table_NCInfo[[#This Row],[Interior/ Exterior]]=\"Interior\",IFERROR((Table_NCSummary[[#This Row],[Annual Fixture Savings (kWh)]]+Table_NCSummary[[#This Row],[Annual Control Savings (kWh)]])*(Table_NCSummary[[#This Row],[EIF]]-1),0),0)),\"\"),\"\")","v":""},{"$f":"IFERROR(IF(Table_NCSummary[[#This Row],[IsActive]],IF(NOT(ISNUMBER(Table_NCSummary[[#This Row],[Fixture Rebate]])),\"\",IF(Table_NCInfo[[#This Row],[Interior/ Exterior]]=\"Interior\",IFERROR((Table_NCSummary[[#This Row],[Fixture kW Reduction]]+Table_NCSummary[[#This Row],[Control kW Reduction]]/(Table_NCSummary[[#This Row],[CF (Ltg)]]*Table_NCSummary[[#This Row],[DF (Ltg)]]))*(Table_NCSummary[[#This Row],[DIF]]-1)*Table_NCSummary[[#This Row],[CF (HVAC)]]*Table_NCSummary[[#This Row],[DF (HVAC)]],0),0)),\"\"),\"\")","v":""},{"$f":"IFERROR(IF(Table_NCSummary[[#This Row],[IsActive]],IF(NOT(ISNUMBER(Table_NCSummary[[#This Row],[Fixture Rebate]])),\"\",ROUND(Table_NCSummary[[#This Row],[Annual Fixture Savings (kWh)]]+Table_NCSummary[[#This Row],[Annual Control Savings (kWh)]],0)),\"\"),\"\")","v":""},{"$f":"IFERROR(IF(Table_NCSummary[[#This Row],[IsActive]],IF(NOT(ISNUMBER(Table_NCSummary[[#This Row],[Fixture Rebate]])),\"\",ROUND(Table_NCSummary[[#This Row],[Fixture kW Reduction]]+Table_NCSummary[[#This Row],[Control kW Reduction]],3)),\"\"),\"\")","v":""},{"$f":"IFERROR(IF(Table_NCSummary[[#This Row],[IsActive]],IF(NOT(ISNUMBER(Table_NCSummary[[#This Row],[Fixture Rebate]])),\"\",ROUND(Table_NCSummary[[#This Row],[Fixture Energy Savings (kWh)]]+Table_NCSummary[[#This Row],[Induced HVAC Energy Savings (kWh)]],0)),\"\"),\"\")","v":""},{"$f":"IFERROR(IF(Table_NCSummary[[#This Row],[IsActive]],IF(NOT(ISNUMBER(Table_NCSummary[[#This Row],[Fixture Rebate]])),\"\",ROUND(Table_NCSummary[[#This Row],[Fixture Demand Savings (kW)]]+Table_NCSummary[[#This Row],[Induced HVAC Demand Savings (kW)]],3)),\"\"),\"\")","v":""}]
[{"$f":"IFERROR(Table_NCInfo[[#This Row],[Line]],\"\")","v":11},{"$f":"IFERROR(Table_NCInfo[[#This Row],[IsActive]],\"\")","v":false},{"$f":"IFERROR(IF(Table_NCSummary[[#This Row],[IsActive]],VLOOKUP(IF(ISNUMBER(MATCH(Table_NCInfo[[#This Row],[Line]],Table_NCInspection[Line],0)),INDEX(Table_NCInspection[Schedule],MATCH(Table_NCSummary[[#This Row],[Line Item]],Table_NCInspection[Line],0)),Table_NCInfo[[#This Row],[Schedule]]),'Customer Information'!$S$27:$T$34,2,FALSE),\"\"),\"\")","v":""},{"$f":"IFERROR(IF(Table_NCSummary[[#This Row],[IsActive]],INDEX(Table_IntLookups[EIF],MATCH(IF(ISNUMBER(MATCH(Table_NCSummary[[#This Row],[Line Item]],Table_NCInspection[Line],0)),INDEX(Table_NCInspection[Zone Description],MATCH(Table_NCSummary[[#This Row],[Line Item]],Table_NCInfo[Line],0)),Table_NCInfo[[#This Row],[Zone Description]]),Table_IntLookups[Dropdown],0)),\"\"),\"\")","v":""},{"$f":"IFERROR(IF(Table_NCSummary[[#This Row],[IsActive]],INDEX(Table_IntLookups[DIF],MATCH(IF(ISNUMBER(MATCH(Table_NCSummary[[#This Row],[Line Item]],Table_NCInspection[Line],0)),INDEX(Table_NCInspection[Zone Description],MATCH(Table_NCSummary[[#This Row],[Line Item]],Table_NCInfo[Line],0)),Table_NCInfo[[#This Row],[Zone Description]]),Table_IntLookups[Dropdown],0)),\"\"),\"\")","v":""},{"$f":"IFERROR(IF(Table_NCSummary[[#This Row],[IsActive]],INDEX(Table_IntLookups[CFltg],MATCH(IF(ISNUMBER(MATCH(Table_NCSummary[[#This Row],[Line Item]],Table_NCInspection[Line],0)),INDEX(Table_NCInspection[Zone Description],MATCH(Table_NCSummary[[#This Row],[Line Item]],Table_NCInfo[Line],0)),Table_NCInfo[[#This Row],[Zone Description]]),Table_IntLookups[Dropdown],0)),\"\"),\"\")","v":""},{"$f":"IFERROR(IF(Table_NCSummary[[#This Row],[IsActive]],INDEX(Table_IntLookups[DFltg],MATCH(IF(ISNUMBER(MATCH(Table_NCSummary[[#This Row],[Line Item]],Table_NCInspection[Line],0)),INDEX(Table_NCInspection[Zone Description],MATCH(Table_NCSummary[[#This Row],[Line Item]],Table_NCInfo[Line],0)),Table_NCInfo[[#This Row],[Zone Description]]),Table_IntLookups[Dropdown],0)),\"\"),\"\")","v":""},{"$f":"IFERROR(IF(Table_NCSummary[[#This Row],[IsActive]],INDEX(Table_IntLookups[Cfhvac],MATCH(IF(ISNUMBER(MATCH(Table_NCSummary[[#This Row],[Line Item]],Table_NCInspection[Line],0)),INDEX(Table_NCInspection[Zone Description],MATCH(Table_NCSummary[[#This Row],[Line Item]],Table_NCInfo[Line],0)),Table_NCInfo[[#This Row],[Zone Description]]),Table_IntLookups[Dropdown],0)),\"\"),\"\")","v":""},{"$f":"IFERROR(IF(Table_NCSummary[[#This Row],[IsActive]],INDEX(Table_IntLookups[Dfhvac],MATCH(IF(ISNUMBER(MATCH(Table_NCSummary[[#This Row],[Line Item]],Table_NCInspection[Line],0)),INDEX(Table_NCInspection[Zone Description],MATCH(Table_NCSummary[[#This Row],[Line Item]],Table_NCInfo[Line],0)),Table_NCInfo[[#This Row],[Zone Description]]),Table_IntLookups[Dropdown],0)),\"\"),\"\")","v":""},{"$f":"IFERROR(IF(Table_NCSummary[[#This Row],[IsActive]],\nIF(ISNUMBER(MATCH(Table_NCInfo[[#This Row],[Line]],Table_NCInspection[Line],0)),INDEX(Table_NCInspection[Zone Description],MATCH(Table_NCSummary[[#This Row],[Line Item]],Table_NCInspection[Line],0)),Table_NCInfo[[#This Row],[Zone Description]]),\n \"\"),\"\")","v":""},{"$f":"IFERROR(IF(Table_NCSummary[[#This Row],[IsActive]],\nCONCATENATE(\nIF(ISNUMBER(MATCH(Table_NCInfo[[#This Row],[Line]],Table_NCInspection[Line],0)),INDEX(Table_NCInspection[Interior/ Exterior],MATCH(Table_NCSummary[[#This Row],[Line Item]],Table_NCInspection[Line],0)),Table_NCInfo[[#This Row],[Interior/ Exterior]]),\n\" - \",\nIF(ISNUMBER(MATCH(Table_NCInfo[[#This Row],[Line]],Table_NCInspection[Line],0)),INDEX(Table_NCInspection[Space Description],MATCH(Table_NCSummary[[#This Row],[Line Item]],Table_NCInspection[Line],0)),Table_NCInfo[[#This Row],[Space Description]])),\n \"\"),\"\")","v":""},{"$f":"IFERROR(IF(ISNUMBER(MATCH(Table_NCInfo[[#This Row],[Line]],Table_NCInspection[Line],0)),INDEX(Table_NCInspection[Baseline Wattage],MATCH(Table_NCSummary[[#This Row],[Line Item]],Table_NCInspection[Line],0)),Table_NCInfo[[#This Row],[Baseline Wattage]]),\"\")","v":""},{"$f":"IFERROR(IF(Table_NCSummary[[#This Row],[IsActive]],Table_NCSummary[[#This Row],[Baseline Wattage]]/1000*Table_NCSummary[[#This Row],[OpHrs]],\"\"),\"\")","v":""},{"$f":"IFERROR(IF(Table_NCSummary[[#This Row],[IsActive]],IFERROR(VLOOKUP(IF(ISNUMBER(MATCH(Table_NCSummary[[#This Row],[Line Item]],Table_NCInspection[Line],0)),INDEX(Table_NCInspection[Zone '#],MATCH(Table_NCSummary[[#This Row],[Line Item]],Table_NCInspection[Line],0)),Table_NCInfo[[#This Row],[Zone '#]]),Table_IntLookups[],'Facility Information'!$AA$4,FALSE),0),\"\"),\"\")","v":""},{"$f":"IFERROR(IF(Table_NCSummary[[#This Row],[IsActive]],IFERROR(Table_NCSummary[[#This Row],[Baseline Wattage]]/1000*Table_NCSummary[[#This Row],[OpHrs]]*Table_NCSummary[[#This Row],[Existing CSF]]*(-1),0),\"\"),\"\")","v":""},{"$f":"IFERROR(Table_NCSummary[[#This Row],[Baseline kWh]]+Table_NCSummary[[#This Row],[Existing Fixture (Existing Controls) kWh]],\"\")","v":""},{"$f":"IFERROR(IF(Table_NCSummary[[#This Row],[IsActive]],IF(ISNUMBER(MATCH(Table_NCInfo[[#This Row],[Line]],Table_NCInspection[Line],0)),INDEX(Table_NCInspection[Fixture Description '[P']],MATCH(Table_NCSummary[[#This Row],[Line Item]],Table_NCInspection[Line],0)),Table_NCInfo[[#This Row],[Fixture Description '[P']]]),\"\"),\"\")","v":""},{"$f":"IFERROR(IF(Table_NCSummary[[#This Row],[IsActive]],IF(ISNUMBER(MATCH(Table_NCInfo[[#This Row],[Line]],Table_NCInspection[Line],0)),INDEX(Table_NCInspection['# Lamps/ Fixture '[P']],MATCH(Table_NCSummary[[#This Row],[Line Item]],Table_NCInspection[Line],0)),Table_NCInfo[[#This Row],['# Lamps/ Fixture '[P']]]),\"\"),\"\")","v":""},{"$f":"IFERROR(IF(Table_NCSummary[[#This Row],[IsActive]],IF(ISNUMBER(MATCH(Table_NCInfo[[#This Row],[Line]],Table_NCInspection[Line],0)),INDEX(Table_NCInspection[Fixture/ Lamp Wattage '[P']],MATCH(Table_NCSummary[[#This Row],[Line Item]],Table_NCInspection[Line],0)),Table_NCInfo[[#This Row],[Fixture/ Lamp Wattage '[P']]]),\"\"),\"\")","v":""},{"$f":"IFERROR(IF(Table_NCSummary[[#This Row],[IsActive]],IF(ISNUMBER(MATCH(Table_NCInfo[[#This Row],[Line]],Table_NCInspection[Line],0)),INDEX(Table_NCInspection[Fixture Qty '[P']],MATCH(Table_NCSummary[[#This Row],[Line Item]],Table_NCInspection[Line],0)),Table_NCInfo[[#This Row],[Fixture Qty '[P']]]),\"\"),\"\")","v":""},{"$f":"IFERROR(IF(Table_NCSummary[[#This Row],[IsActive]],Table_NCSummary[[#This Row],['# Lamps/ Fixture '[P']]]*Table_NCSummary[[#This Row],[P. Qty]],\"\"),\"\")","v":""},{"$f":"IFERROR(IF(Table_NCSummary[[#This Row],[IsActive]],IF(ISNUMBER(MATCH(Table_NCInfo[[#This Row],[Line]],Table_NCInspection[Line],0)),INDEX(Table_NCInspection[Fixture Wattage '[P']],MATCH(Table_NCSummary[[#This Row],[Line Item]],Table_NCInspection[Line],0)),Table_NCInfo[[#This Row],[Fixture Wattage '[P']]]),\"\"),\"\")","v":""},{"$f":"IFERROR(Table_NCSummary[[#This Row],[P. Qty]]*Table_NCSummary[[#This Row],[Proposed Fixture Wattage]],\"\")","v":""},{"$f":"IFERROR(Table_NCSummary[[#This Row],[Proposed Fixture Wattage]]/1000*Table_NCSummary[[#This Row],[OpHrs]]*Table_NCSummary[[#This Row],[P. Qty]],\"\")","v":""},{"$f":"IFERROR(IF(Table_NCSummary[[#This Row],[IsActive]],IFERROR(VLOOKUP(RIGHT(Table_NCSummary[[#This Row],[Proposed Fixture]],LEN(Table_NCSummary[[#This Row],[Proposed Fixture]])-FIND(\" - \",Table_NCSummary[[#This Row],[Proposed Fixture]],FIND(\"]\",Table_NCSummary[[#This Row],[Proposed Fixture]],1))-2),Table_ControlType[],3, FALSE),Table_NCSummary[[#This Row],[Existing CSF]]),\"\"),\"\")","v":""},{"$f":"IFERROR(IF(Table_NCSummary[[#This Row],[IsActive]],IFERROR(Table_NCSummary[[#This Row],[Proposed Fixture Wattage]]/1000*Table_NCSummary[[#This Row],[OpHrs]]*Table_NCSummary[[#This Row],[P. Qty]]*Table_NCSummary[[#This Row],[Existing CSF]]*(-1),0),\"\"),\"\")","v":""},{"$f":"IFERROR(Table_NCSummary[[#This Row],[Proposed Fixture kWh]]+Table_NCSummary[[#This Row],[Proposed Fixture (Existing Controls) kWh]],\"\")","v":""},{"$f":"IFERROR(IF(Table_NCSummary[[#This Row],[IsActive]],IFERROR(Table_NCSummary[[#This Row],[Proposed Fixture Wattage]]/1000*Table_NCSummary[[#This Row],[OpHrs]]*Table_NCSummary[[#This Row],[P. Qty]]*Table_NCSummary[[#This Row],[Proposed CSF]]*(-1),0),\"\"),\"\")","v":""},{"$f":"IFERROR(Table_NCSummary[[#This Row],[Proposed Fixture kWh]]+Table_NCSummary[[#This Row],[Proposed Fixture (Proposed Controls) kWh]],\"\")","v":""},null,{"$f":"IFERROR(IF(Table_NCSummary[[#This Row],[IsActive]],IF((1-SUMPRODUCT(Table_NCSummary[P. Qty],Table_NCSummary[Proposed Fixture Wattage])/SUM(Table_NCSummary[Baseline Wattage]))<0.1,\"Does Not Qualify [Overall Fixture Reduction is less than 10%]\",IF(ISNUMBER(FIND(\"LED\",Table_NCSummary[[#This Row],[Proposed Fixture]],1)),IF(ISNUMBER(FIND(\"LED Tube\",Table_NCSummary[[#This Row],[Proposed Fixture]],1)),\"New Construction Interior LED Fixture\",IF(ISNUMBER(FIND(\"LED\",Table_NCSummary[[#This Row],[Proposed Fixture]],1)),IF(Table_NCInfo[[#This Row],[Interior/ Exterior]]=\"Exterior\",\"New Construction Exterior LED Fixture\",\"New Construction Interior LED Fixture\"),\"Ineligible Fixture\")),\"Ineligible Fixture\")),\"\"),\"\")","v":""},{"$f":"IFERROR(VLOOKUP(Table_NCSummary[[#This Row],[Fixture Measure Description]],Table_FixtureRate[],2,FALSE),\"\")","v":""},{"$f":"IFERROR(IF(Table_NCSummary[[#This Row],[IsActive]],IF((1-SUMPRODUCT(Table_NCSummary[P. Qty],Table_NCSummary[Proposed Fixture Wattage])/SUM(Table_NCSummary[Baseline Wattage]))<0.1,\"DNQ [kW Reduction <10%]\",IF(Table_NCSummary[[#This Row],[Fixture Measure Description]]=\"Ineligible Fixture\",0,ROUND(Table_NCSummary[[#This Row],[Fixture Rebate (per kW)]]*(Table_NCSummary[[#This Row],[Baseline Wattage]]-Table_NCSummary[[#This Row],[Proposed Wattage]])/1000,2))),\"\"),\"\")","v":""},{"$f":"IFERROR(IF(Table_NCSummary[[#This Row],[Fixture Measure Description]]=\"Ineligible Fixture\",0,ROUND(IF(ProjectCost_Total=0,300000,ProjectCost_Total)*Table_NCSummary[[#This Row],[Fixture Rebate]]/SUM(Table_NCSummary[Fixture Rebate],Table_NCSummary[Controls Rebate]),2)),\"\")","v":""},{"$f":"IFERROR(IF(Table_NCSummary[[#This Row],[IsActive]],IF((1-SUMPRODUCT(Table_NCSummary[P. Qty],Table_NCSummary[Proposed Fixture Wattage])/SUM(Table_NCSummary[Baseline Wattage]))<0.1,\"DNQ [kW Reduction <10%]\",IF(Table_NCSummary[[#This Row],[Fixture Measure Description]]=\"Ineligible Fixture\",0,Table_NCSummary[[#This Row],[Existing Overall kWh]]-Table_NCSummary[[#This Row],[Proposed Overall kWh (Existing Controls)]])),\"\"),\"\")","v":""},{"$f":"IFERROR(IF(Table_NCSummary[[#This Row],[IsActive]],IF((1-SUMPRODUCT(Table_NCSummary[P. Qty],Table_NCSummary[Proposed Fixture Wattage])/SUM(Table_NCSummary[Baseline Wattage]))<0.1,\"DNQ [kW Reduction <10%]\",IF(OR(Table_NCSummary[[#This Row],[Fixture Measure Description]]=\"Ineligible Fixture\",Table_NCSummary[[#This Row],[Fixture Measure Description]]=\"New Construction Exterior LED Fixture\"),0,(Table_NCSummary[[#This Row],[Baseline kWh]]-Table_NCSummary[[#This Row],[Proposed Fixture kWh]])/Table_NCSummary[[#This Row],[OpHrs]]*Table_NCSummary[[#This Row],[CF (Ltg)]]*Table_NCSummary[[#This Row],[DF (Ltg)]])),\"\"),\"\")","v":""},null,{"$f":"IFERROR(\n  IF(OR(Table_NCSummary[[#This Row],[Fixture Measure Description]]=\"\",Table_NCSummary[[#This Row],[Fixture Measure Description]]=\"Ineligible Fixture\"),\n    \"\",\n    \"New Construction\"\n    & \" - \" &\n    IFERROR(VLOOKUP(RIGHT(Table_NCSummary[[#This Row],[Proposed Fixture]],LEN(Table_NCSummary[[#This Row],[Proposed Fixture]])-FIND(\" - \",Table_NCSummary[[#This Row],[Proposed Fixture]],FIND(\"]\",Table_NCSummary[[#This Row],[Proposed Fixture]],1))-2),Table_ControlType[],2, FALSE),None)),\n\"\")","v":""},{"$f":"IFERROR(VLOOKUP(Table_NCSummary[[#This Row],[Controls Measure Description]],Table_ControlRate[],2,FALSE),\"\")","v":""},{"$f":"IFERROR(IF(Table_NCSummary[[#This Row],[IsActive]],IF((1-SUMPRODUCT(Table_NCSummary[P. Qty],Table_NCSummary[Proposed Fixture Wattage])/SUM(Table_NCSummary[Baseline Wattage]))<0.1,\"DNQ [kW Reduction <10%]\",IF(OR(Table_NCSummary[[#This Row],[Controls Measure Description]]=\"\",Table_NCSummary[[#This Row],[Controls Measure Description]]=\"New Construction - No Controls\"),0,ROUND(Table_NCSummary[[#This Row],[Controls Rebate (per Fixt Watt)]]*Table_NCSummary[[#This Row],[Proposed Fixture Wattage]]*Table_NCSummary[[#This Row],[P. Qty]],2))),\"\"),\"\")","v":""},{"$f":"IFERROR(IF(Table_NCSummary[[#This Row],[Fixture Measure Description]]=\"Ineligible Fixture\",0,ROUND(IF(ProjectCost_Total=0,300000,ProjectCost_Total)*Table_NCSummary[[#This Row],[Controls Rebate]]/SUM(Table_NCSummary[Fixture Rebate],Table_NCSummary[Controls Rebate]),2)),\"\")","v":""},{"$f":"IFERROR(IF(Table_NCSummary[[#This Row],[IsActive]],IF((1-SUMPRODUCT(Table_NCSummary[P. Qty],Table_NCSummary[Proposed Fixture Wattage])/SUM(Table_NCSummary[Baseline Wattage]))<0.1,\"DNQ [kW Reduction <10%]\",IF(Table_NCSummary[[#This Row],[Controls Measure Description]]=\"\",0,(Table_NCSummary[[#This Row],[Proposed Fixture (Existing Controls) kWh]]-Table_NCSummary[[#This Row],[Proposed Fixture (Proposed Controls) kWh]]))),\"\"),\"\")","v":""},{"$f":"IFERROR(IF(Table_NCSummary[[#This Row],[IsActive]],IF((1-SUMPRODUCT(Table_NCSummary[P. Qty],Table_NCSummary[Proposed Fixture Wattage])/SUM(Table_NCSummary[Baseline Wattage]))<0.1,\"DNQ [kW Reduction <10%]\",IF(OR(Table_NCSummary[[#This Row],[Controls Measure Description]]=\"\",Table_NCSummary[[#This Row],[Controls Measure Description]]=\"New Construction - No Controls\"),0,(Table_NCSummary[[#This Row],[Proposed Fixture (Existing Controls) kWh]]-Table_NCSummary[[#This Row],[Proposed Fixture (Proposed Controls) kWh]])/Table_NCSummary[[#This Row],[OpHrs]]*Table_NCSummary[[#This Row],[CF (Ltg)]]*Table_NCSummary[[#This Row],[DF (Ltg)]])),\"\"),\"\")","v":""},null,{"$f":"IFERROR(IF(NOT(ISNUMBER(Table_NCSummary[[#This Row],[Fixture Rebate]])),\"\",IF(MIN(IF(Table_NCSummary[[#This Row],[Fixture Cost]]<0,0,SUM(Table_NCSummary[Fixture Cost],Table_NCSummary[Controls Cost])),SUM(Table_NCSummary[Fixture Rebate],Table_NCSummary[Controls Rebate]))>300000,300000/MIN(IF(Table_NCSummary[[#This Row],[Fixture Cost]]<0,0,SUM(Table_NCSummary[Fixture Cost],Table_NCSummary[Controls Cost])),SUM(Table_NCSummary[Fixture Rebate],Table_NCSummary[Controls Rebate]))*MIN(IF(Table_NCSummary[[#This Row],[Fixture Cost]]<0,0,SUM(Table_NCSummary[Fixture Cost],Table_NCSummary[Controls Cost])),Table_NCSummary[[#This Row],[Fixture Rebate]]+IF(Table_NCSummary[[#This Row],[Controls Rebate]]=\"\",0,Table_NCSummary[[#This Row],[Controls Rebate]])),MIN(IF(Table_NCSummary[[#This Row],[Fixture Cost]]<0,0,SUM(Table_NCSummary[Fixture Cost],Table_NCSummary[Controls Cost])),Table_NCSummary[[#This Row],[Fixture Rebate]]+IF(Table_NCSummary[[#This Row],[Controls Rebate]]=\"\",0,Table_NCSummary[[#This Row],[Controls Rebate]])))),\"\")","v":""},{"$f":"IFERROR(IF(Table_NCSummary[[#This Row],[Fixture Cost]]=\"\",\"\",Table_NCSummary[[#This Row],[Fixture Cost]]+IF(Table_NCSummary[[#This Row],[Controls Cost]]=\"\",0,Table_NCSummary[[#This Row],[Controls Cost]])),\"\")","v":""},{"$f":"IFERROR(IF(Table_NCSummary[[#This Row],[IsActive]],IF(NOT(ISNUMBER(Table_NCSummary[[#This Row],[Fixture Rebate]])),\"\",IF(Table_NCInfo[[#This Row],[Interior/ Exterior]]=\"Interior\",IFERROR((Table_NCSummary[[#This Row],[Annual Fixture Savings (kWh)]]+Table_NCSummary[[#This Row],[Annual Control Savings (kWh)]])*(Table_NCSummary[[#This Row],[EIF]]-1),0),0)),\"\"),\"\")","v":""},{"$f":"IFERROR(IF(Table_NCSummary[[#This Row],[IsActive]],IF(NOT(ISNUMBER(Table_NCSummary[[#This Row],[Fixture Rebate]])),\"\",IF(Table_NCInfo[[#This Row],[Interior/ Exterior]]=\"Interior\",IFERROR((Table_NCSummary[[#This Row],[Fixture kW Reduction]]+Table_NCSummary[[#This Row],[Control kW Reduction]]/(Table_NCSummary[[#This Row],[CF (Ltg)]]*Table_NCSummary[[#This Row],[DF (Ltg)]]))*(Table_NCSummary[[#This Row],[DIF]]-1)*Table_NCSummary[[#This Row],[CF (HVAC)]]*Table_NCSummary[[#This Row],[DF (HVAC)]],0),0)),\"\"),\"\")","v":""},{"$f":"IFERROR(IF(Table_NCSummary[[#This Row],[IsActive]],IF(NOT(ISNUMBER(Table_NCSummary[[#This Row],[Fixture Rebate]])),\"\",ROUND(Table_NCSummary[[#This Row],[Annual Fixture Savings (kWh)]]+Table_NCSummary[[#This Row],[Annual Control Savings (kWh)]],0)),\"\"),\"\")","v":""},{"$f":"IFERROR(IF(Table_NCSummary[[#This Row],[IsActive]],IF(NOT(ISNUMBER(Table_NCSummary[[#This Row],[Fixture Rebate]])),\"\",ROUND(Table_NCSummary[[#This Row],[Fixture kW Reduction]]+Table_NCSummary[[#This Row],[Control kW Reduction]],3)),\"\"),\"\")","v":""},{"$f":"IFERROR(IF(Table_NCSummary[[#This Row],[IsActive]],IF(NOT(ISNUMBER(Table_NCSummary[[#This Row],[Fixture Rebate]])),\"\",ROUND(Table_NCSummary[[#This Row],[Fixture Energy Savings (kWh)]]+Table_NCSummary[[#This Row],[Induced HVAC Energy Savings (kWh)]],0)),\"\"),\"\")","v":""},{"$f":"IFERROR(IF(Table_NCSummary[[#This Row],[IsActive]],IF(NOT(ISNUMBER(Table_NCSummary[[#This Row],[Fixture Rebate]])),\"\",ROUND(Table_NCSummary[[#This Row],[Fixture Demand Savings (kW)]]+Table_NCSummary[[#This Row],[Induced HVAC Demand Savings (kW)]],3)),\"\"),\"\")","v":""}]
[{"$f":"IFERROR(Table_NCInfo[[#This Row],[Line]],\"\")","v":12},{"$f":"IFERROR(Table_NCInfo[[#This Row],[IsActive]],\"\")","v":false},{"$f":"IFERROR(IF(Table_NCSummary[[#This Row],[IsActive]],VLOOKUP(IF(ISNUMBER(MATCH(Table_NCInfo[[#This Row],[Line]],Table_NCInspection[Line],0)),INDEX(Table_NCInspection[Schedule],MATCH(Table_NCSummary[[#This Row],[Line Item]],Table_NCInspection[Line],0)),Table_NCInfo[[#This Row],[Schedule]]),'Customer Information'!$S$27:$T$34,2,FALSE),\"\"),\"\")","v":""},{"$f":"IFERROR(IF(Table_NCSummary[[#This Row],[IsActive]],INDEX(Table_IntLookups[EIF],MATCH(IF(ISNUMBER(MATCH(Table_NCSummary[[#This Row],[Line Item]],Table_NCInspection[Line],0)),INDEX(Table_NCInspection[Zone Description],MATCH(Table_NCSummary[[#This Row],[Line Item]],Table_NCInfo[Line],0)),Table_NCInfo[[#This Row],[Zone Description]]),Table_IntLookups[Dropdown],0)),\"\"),\"\")","v":""},{"$f":"IFERROR(IF(Table_NCSummary[[#This Row],[IsActive]],INDEX(Table_IntLookups[DIF],MATCH(IF(ISNUMBER(MATCH(Table_NCSummary[[#This Row],[Line Item]],Table_NCInspection[Line],0)),INDEX(Table_NCInspection[Zone Description],MATCH(Table_NCSummary[[#This Row],[Line Item]],Table_NCInfo[Line],0)),Table_NCInfo[[#This Row],[Zone Description]]),Table_IntLookups[Dropdown],0)),\"\"),\"\")","v":""},{"$f":"IFERROR(IF(Table_NCSummary[[#This Row],[IsActive]],INDEX(Table_IntLookups[CFltg],MATCH(IF(ISNUMBER(MATCH(Table_NCSummary[[#This Row],[Line Item]],Table_NCInspection[Line],0)),INDEX(Table_NCInspection[Zone Description],MATCH(Table_NCSummary[[#This Row],[Line Item]],Table_NCInfo[Line],0)),Table_NCInfo[[#This Row],[Zone Description]]),Table_IntLookups[Dropdown],0)),\"\"),\"\")","v":""},{"$f":"IFERROR(IF(Table_NCSummary[[#This Row],[IsActive]],INDEX(Table_IntLookups[DFltg],MATCH(IF(ISNUMBER(MATCH(Table_NCSummary[[#This Row],[Line Item]],Table_NCInspection[Line],0)),INDEX(Table_NCInspection[Zone Description],MATCH(Table_NCSummary[[#This Row],[Line Item]],Table_NCInfo[Line],0)),Table_NCInfo[[#This Row],[Zone Description]]),Table_IntLookups[Dropdown],0)),\"\"),\"\")","v":""},{"$f":"IFERROR(IF(Table_NCSummary[[#This Row],[IsActive]],INDEX(Table_IntLookups[Cfhvac],MATCH(IF(ISNUMBER(MATCH(Table_NCSummary[[#This Row],[Line Item]],Table_NCInspection[Line],0)),INDEX(Table_NCInspection[Zone Description],MATCH(Table_NCSummary[[#This Row],[Line Item]],Table_NCInfo[Line],0)),Table_NCInfo[[#This Row],[Zone Description]]),Table_IntLookups[Dropdown],0)),\"\"),\"\")","v":""},{"$f":"IFERROR(IF(Table_NCSummary[[#This Row],[IsActive]],INDEX(Table_IntLookups[Dfhvac],MATCH(IF(ISNUMBER(MATCH(Table_NCSummary[[#This Row],[Line Item]],Table_NCInspection[Line],0)),INDEX(Table_NCInspection[Zone Description],MATCH(Table_NCSummary[[#This Row],[Line Item]],Table_NCInfo[Line],0)),Table_NCInfo[[#This Row],[Zone Description]]),Table_IntLookups[Dropdown],0)),\"\"),\"\")","v":""},{"$f":"IFERROR(IF(Table_NCSummary[[#This Row],[IsActive]],\nIF(ISNUMBER(MATCH(Table_NCInfo[[#This Row],[Line]],Table_NCInspection[Line],0)),INDEX(Table_NCInspection[Zone Description],MATCH(Table_NCSummary[[#This Row],[Line Item]],Table_NCInspection[Line],0)),Table_NCInfo[[#This Row],[Zone Description]]),\n \"\"),\"\")","v":""},{"$f":"IFERROR(IF(Table_NCSummary[[#This Row],[IsActive]],\nCONCATENATE(\nIF(ISNUMBER(MATCH(Table_NCInfo[[#This Row],[Line]],Table_NCInspection[Line],0)),INDEX(Table_NCInspection[Interior/ Exterior],MATCH(Table_NCSummary[[#This Row],[Line Item]],Table_NCInspection[Line],0)),Table_NCInfo[[#This Row],[Interior/ Exterior]]),\n\" - \",\nIF(ISNUMBER(MATCH(Table_NCInfo[[#This Row],[Line]],Table_NCInspection[Line],0)),INDEX(Table_NCInspection[Space Description],MATCH(Table_NCSummary[[#This Row],[Line Item]],Table_NCInspection[Line],0)),Table_NCInfo[[#This Row],[Space Description]])),\n \"\"),\"\")","v":""},{"$f":"IFERROR(IF(ISNUMBER(MATCH(Table_NCInfo[[#This Row],[Line]],Table_NCInspection[Line],0)),INDEX(Table_NCInspection[Baseline Wattage],MATCH(Table_NCSummary[[#This Row],[Line Item]],Table_NCInspection[Line],0)),Table_NCInfo[[#This Row],[Baseline Wattage]]),\"\")","v":""},{"$f":"IFERROR(IF(Table_NCSummary[[#This Row],[IsActive]],Table_NCSummary[[#This Row],[Baseline Wattage]]/1000*Table_NCSummary[[#This Row],[OpHrs]],\"\"),\"\")","v":""},{"$f":"IFERROR(IF(Table_NCSummary[[#This Row],[IsActive]],IFERROR(VLOOKUP(IF(ISNUMBER(MATCH(Table_NCSummary[[#This Row],[Line Item]],Table_NCInspection[Line],0)),INDEX(Table_NCInspection[Zone '#],MATCH(Table_NCSummary[[#This Row],[Line Item]],Table_NCInspection[Line],0)),Table_NCInfo[[#This Row],[Zone '#]]),Table_IntLookups[],'Facility Information'!$AA$4,FALSE),0),\"\"),\"\")","v":""},{"$f":"IFERROR(IF(Table_NCSummary[[#This Row],[IsActive]],IFERROR(Table_NCSummary[[#This Row],[Baseline Wattage]]/1000*Table_NCSummary[[#This Row],[OpHrs]]*Table_NCSummary[[#This Row],[Existing CSF]]*(-1),0),\"\"),\"\")","v":""},{"$f":"IFERROR(Table_NCSummary[[#This Row],[Baseline kWh]]+Table_NCSummary[[#This Row],[Existing Fixture (Existing Controls) kWh]],\"\")","v":""},{"$f":"IFERROR(IF(Table_NCSummary[[#This Row],[IsActive]],IF(ISNUMBER(MATCH(Table_NCInfo[[#This Row],[Line]],Table_NCInspection[Line],0)),INDEX(Table_NCInspection[Fixture Description '[P']],MATCH(Table_NCSummary[[#This Row],[Line Item]],Table_NCInspection[Line],0)),Table_NCInfo[[#This Row],[Fixture Description '[P']]]),\"\"),\"\")","v":""},{"$f":"IFERROR(IF(Table_NCSummary[[#This Row],[IsActive]],IF(ISNUMBER(MATCH(Table_NCInfo[[#This Row],[Line]],Table_NCInspection[Line],0)),INDEX(Table_NCInspection['# Lamps/ Fixture '[P']],MATCH(Table_NCSummary[[#This Row],[Line Item]],Table_NCInspection[Line],0)),Table_NCInfo[[#This Row],['# Lamps/ Fixture '[P']]]),\"\"),\"\")","v":""},{"$f":"IFERROR(IF(Table_NCSummary[[#This Row],[IsActive]],IF(ISNUMBER(MATCH(Table_NCInfo[[#This Row],[Line]],Table_NCInspection[Line],0)),INDEX(Table_NCInspection[Fixture/ Lamp Wattage '[P']],MATCH(Table_NCSummary[[#This Row],[Line Item]],Table_NCInspection[Line],0)),Table_NCInfo[[#This Row],[Fixture/ Lamp Wattage '[P']]]),\"\"),\"\")","v":""},{"$f":"IFERROR(IF(Table_NCSummary[[#This Row],[IsActive]],IF(ISNUMBER(MATCH(Table_NCInfo[[#This Row],[Line]],Table_NCInspection[Line],0)),INDEX(Table_NCInspection[Fixture Qty '[P']],MATCH(Table_NCSummary[[#This Row],[Line Item]],Table_NCInspection[Line],0)),Table_NCInfo[[#This Row],[Fixture Qty '[P']]]),\"\"),\"\")","v":""},{"$f":"IFERROR(IF(Table_NCSummary[[#This Row],[IsActive]],Table_NCSummary[[#This Row],['# Lamps/ Fixture '[P']]]*Table_NCSummary[[#This Row],[P. Qty]],\"\"),\"\")","v":""},{"$f":"IFERROR(IF(Table_NCSummary[[#This Row],[IsActive]],IF(ISNUMBER(MATCH(Table_NCInfo[[#This Row],[Line]],Table_NCInspection[Line],0)),INDEX(Table_NCInspection[Fixture Wattage '[P']],MATCH(Table_NCSummary[[#This Row],[Line Item]],Table_NCInspection[Line],0)),Table_NCInfo[[#This Row],[Fixture Wattage '[P']]]),\"\"),\"\")","v":""},{"$f":"IFERROR(Table_NCSummary[[#This Row],[P. Qty]]*Table_NCSummary[[#This Row],[Proposed Fixture Wattage]],\"\")","v":""},{"$f":"IFERROR(Table_NCSummary[[#This Row],[Proposed Fixture Wattage]]/1000*Table_NCSummary[[#This Row],[OpHrs]]*Table_NCSummary[[#This Row],[P. Qty]],\"\")","v":""},{"$f":"IFERROR(IF(Table_NCSummary[[#This Row],[IsActive]],IFERROR(VLOOKUP(RIGHT(Table_NCSummary[[#This Row],[Proposed Fixture]],LEN(Table_NCSummary[[#This Row],[Proposed Fixture]])-FIND(\" - \",Table_NCSummary[[#This Row],[Proposed Fixture]],FIND(\"]\",Table_NCSummary[[#This Row],[Proposed Fixture]],1))-2),Table_ControlType[],3, FALSE),Table_NCSummary[[#This Row],[Existing CSF]]),\"\"),\"\")","v":""},{"$f":"IFERROR(IF(Table_NCSummary[[#This Row],[IsActive]],IFERROR(Table_NCSummary[[#This Row],[Proposed Fixture Wattage]]/1000*Table_NCSummary[[#This Row],[OpHrs]]*Table_NCSummary[[#This Row],[P. Qty]]*Table_NCSummary[[#This Row],[Existing CSF]]*(-1),0),\"\"),\"\")","v":""},{"$f":"IFERROR(Table_NCSummary[[#This Row],[Proposed Fixture kWh]]+Table_NCSummary[[#This Row],[Proposed Fixture (Existing Controls) kWh]],\"\")","v":""},{"$f":"IFERROR(IF(Table_NCSummary[[#This Row],[IsActive]],IFERROR(Table_NCSummary[[#This Row],[Proposed Fixture Wattage]]/1000*Table_NCSummary[[#This Row],[OpHrs]]*Table_NCSummary[[#This Row],[P. Qty]]*Table_NCSummary[[#This Row],[Proposed CSF]]*(-1),0),\"\"),\"\")","v":""},{"$f":"IFERROR(Table_NCSummary[[#This Row],[Proposed Fixture kWh]]+Table_NCSummary[[#This Row],[Proposed Fixture (Proposed Controls) kWh]],\"\")","v":""},null,{"$f":"IFERROR(IF(Table_NCSummary[[#This Row],[IsActive]],IF((1-SUMPRODUCT(Table_NCSummary[P. Qty],Table_NCSummary[Proposed Fixture Wattage])/SUM(Table_NCSummary[Baseline Wattage]))<0.1,\"Does Not Qualify [Overall Fixture Reduction is less than 10%]\",IF(ISNUMBER(FIND(\"LED\",Table_NCSummary[[#This Row],[Proposed Fixture]],1)),IF(ISNUMBER(FIND(\"LED Tube\",Table_NCSummary[[#This Row],[Proposed Fixture]],1)),\"New Construction Interior LED Fixture\",IF(ISNUMBER(FIND(\"LED\",Table_NCSummary[[#This Row],[Proposed Fixture]],1)),IF(Table_NCInfo[[#This Row],[Interior/ Exterior]]=\"Exterior\",\"New Construction Exterior LED Fixture\",\"New Construction Interior LED Fixture\"),\"Ineligible Fixture\")),\"Ineligible Fixture\")),\"\"),\"\")","v":""},{"$f":"IFERROR(VLOOKUP(Table_NCSummary[[#This Row],[Fixture Measure Description]],Table_FixtureRate[],2,FALSE),\"\")","v":""},{"$f":"IFERROR(IF(Table_NCSummary[[#This Row],[IsActive]],IF((1-SUMPRODUCT(Table_NCSummary[P. Qty],Table_NCSummary[Proposed Fixture Wattage])/SUM(Table_NCSummary[Baseline Wattage]))<0.1,\"DNQ [kW Reduction <10%]\",IF(Table_NCSummary[[#This Row],[Fixture Measure Description]]=\"Ineligible Fixture\",0,ROUND(Table_NCSummary[[#This Row],[Fixture Rebate (per kW)]]*(Table_NCSummary[[#This Row],[Baseline Wattage]]-Table_NCSummary[[#This Row],[Proposed Wattage]])/1000,2))),\"\"),\"\")","v":""},{"$f":"IFERROR(IF(Table_NCSummary[[#This Row],[Fixture Measure Description]]=\"Ineligible Fixture\",0,ROUND(IF(ProjectCost_Total=0,300000,ProjectCost_Total)*Table_NCSummary[[#This Row],[Fixture Rebate]]/SUM(Table_NCSummary[Fixture Rebate],Table_NCSummary[Controls Rebate]),2)),\"\")","v":""},{"$f":"IFERROR(IF(Table_NCSummary[[#This Row],[IsActive]],IF((1-SUMPRODUCT(Table_NCSummary[P. Qty],Table_NCSummary[Proposed Fixture Wattage])/SUM(Table_NCSummary[Baseline Wattage]))<0.1,\"DNQ [kW Reduction <10%]\",IF(Table_NCSummary[[#This Row],[Fixture Measure Description]]=\"Ineligible Fixture\",0,Table_NCSummary[[#This Row],[Existing Overall kWh]]-Table_NCSummary[[#This Row],[Proposed Overall kWh (Existing Controls)]])),\"\"),\"\")","v":""},{"$f":"IFERROR(IF(Table_NCSummary[[#This Row],[IsActive]],IF((1-SUMPRODUCT(Table_NCSummary[P. Qty],Table_NCSummary[Proposed Fixture Wattage])/SUM(Table_NCSummary[Baseline Wattage]))<0.1,\"DNQ [kW Reduction <10%]\",IF(OR(Table_NCSummary[[#This Row],[Fixture Measure Description]]=\"Ineligible Fixture\",Table_NCSummary[[#This Row],[Fixture Measure Description]]=\"New Construction Exterior LED Fixture\"),0,(Table_NCSummary[[#This Row],[Baseline kWh]]-Table_NCSummary[[#This Row],[Proposed Fixture kWh]])/Table_NCSummary[[#This Row],[OpHrs]]*Table_NCSummary[[#This Row],[CF (Ltg)]]*Table_NCSummary[[#This Row],[DF (Ltg)]])),\"\"),\"\")","v":""},null,{"$f":"IFERROR(\n  IF(OR(Table_NCSummary[[#This Row],[Fixture Measure Description]]=\"\",Table_NCSummary[[#This Row],[Fixture Measure Description]]=\"Ineligible Fixture\"),\n    \"\",\n    \"New Construction\"\n    & \" - \" &\n    IFERROR(VLOOKUP(RIGHT(Table_NCSummary[[#This Row],[Proposed Fixture]],LEN(Table_NCSummary[[#This Row],[Proposed Fixture]])-FIND(\" - \",Table_NCSummary[[#This Row],[Proposed Fixture]],FIND(\"]\",Table_NCSummary[[#This Row],[Proposed Fixture]],1))-2),Table_ControlType[],2, FALSE),None)),\n\"\")","v":""},{"$f":"IFERROR(VLOOKUP(Table_NCSummary[[#This Row],[Controls Measure Description]],Table_ControlRate[],2,FALSE),\"\")","v":""},{"$f":"IFERROR(IF(Table_NCSummary[[#This Row],[IsActive]],IF((1-SUMPRODUCT(Table_NCSummary[P. Qty],Table_NCSummary[Proposed Fixture Wattage])/SUM(Table_NCSummary[Baseline Wattage]))<0.1,\"DNQ [kW Reduction <10%]\",IF(OR(Table_NCSummary[[#This Row],[Controls Measure Description]]=\"\",Table_NCSummary[[#This Row],[Controls Measure Description]]=\"New Construction - No Controls\"),0,ROUND(Table_NCSummary[[#This Row],[Controls Rebate (per Fixt Watt)]]*Table_NCSummary[[#This Row],[Proposed Fixture Wattage]]*Table_NCSummary[[#This Row],[P. Qty]],2))),\"\"),\"\")","v":""},{"$f":"IFERROR(IF(Table_NCSummary[[#This Row],[Fixture Measure Description]]=\"Ineligible Fixture\",0,ROUND(IF(ProjectCost_Total=0,300000,ProjectCost_Total)*Table_NCSummary[[#This Row],[Controls Rebate]]/SUM(Table_NCSummary[Fixture Rebate],Table_NCSummary[Controls Rebate]),2)),\"\")","v":""},{"$f":"IFERROR(IF(Table_NCSummary[[#This Row],[IsActive]],IF((1-SUMPRODUCT(Table_NCSummary[P. Qty],Table_NCSummary[Proposed Fixture Wattage])/SUM(Table_NCSummary[Baseline Wattage]))<0.1,\"DNQ [kW Reduction <10%]\",IF(Table_NCSummary[[#This Row],[Controls Measure Description]]=\"\",0,(Table_NCSummary[[#This Row],[Proposed Fixture (Existing Controls) kWh]]-Table_NCSummary[[#This Row],[Proposed Fixture (Proposed Controls) kWh]]))),\"\"),\"\")","v":""},{"$f":"IFERROR(IF(Table_NCSummary[[#This Row],[IsActive]],IF((1-SUMPRODUCT(Table_NCSummary[P. Qty],Table_NCSummary[Proposed Fixture Wattage])/SUM(Table_NCSummary[Baseline Wattage]))<0.1,\"DNQ [kW Reduction <10%]\",IF(OR(Table_NCSummary[[#This Row],[Controls Measure Description]]=\"\",Table_NCSummary[[#This Row],[Controls Measure Description]]=\"New Construction - No Controls\"),0,(Table_NCSummary[[#This Row],[Proposed Fixture (Existing Controls) kWh]]-Table_NCSummary[[#This Row],[Proposed Fixture (Proposed Controls) kWh]])/Table_NCSummary[[#This Row],[OpHrs]]*Table_NCSummary[[#This Row],[CF (Ltg)]]*Table_NCSummary[[#This Row],[DF (Ltg)]])),\"\"),\"\")","v":""},null,{"$f":"IFERROR(IF(NOT(ISNUMBER(Table_NCSummary[[#This Row],[Fixture Rebate]])),\"\",IF(MIN(IF(Table_NCSummary[[#This Row],[Fixture Cost]]<0,0,SUM(Table_NCSummary[Fixture Cost],Table_NCSummary[Controls Cost])),SUM(Table_NCSummary[Fixture Rebate],Table_NCSummary[Controls Rebate]))>300000,300000/MIN(IF(Table_NCSummary[[#This Row],[Fixture Cost]]<0,0,SUM(Table_NCSummary[Fixture Cost],Table_NCSummary[Controls Cost])),SUM(Table_NCSummary[Fixture Rebate],Table_NCSummary[Controls Rebate]))*MIN(IF(Table_NCSummary[[#This Row],[Fixture Cost]]<0,0,SUM(Table_NCSummary[Fixture Cost],Table_NCSummary[Controls Cost])),Table_NCSummary[[#This Row],[Fixture Rebate]]+IF(Table_NCSummary[[#This Row],[Controls Rebate]]=\"\",0,Table_NCSummary[[#This Row],[Controls Rebate]])),MIN(IF(Table_NCSummary[[#This Row],[Fixture Cost]]<0,0,SUM(Table_NCSummary[Fixture Cost],Table_NCSummary[Controls Cost])),Table_NCSummary[[#This Row],[Fixture Rebate]]+IF(Table_NCSummary[[#This Row],[Controls Rebate]]=\"\",0,Table_NCSummary[[#This Row],[Controls Rebate]])))),\"\")","v":""},{"$f":"IFERROR(IF(Table_NCSummary[[#This Row],[Fixture Cost]]=\"\",\"\",Table_NCSummary[[#This Row],[Fixture Cost]]+IF(Table_NCSummary[[#This Row],[Controls Cost]]=\"\",0,Table_NCSummary[[#This Row],[Controls Cost]])),\"\")","v":""},{"$f":"IFERROR(IF(Table_NCSummary[[#This Row],[IsActive]],IF(NOT(ISNUMBER(Table_NCSummary[[#This Row],[Fixture Rebate]])),\"\",IF(Table_NCInfo[[#This Row],[Interior/ Exterior]]=\"Interior\",IFERROR((Table_NCSummary[[#This Row],[Annual Fixture Savings (kWh)]]+Table_NCSummary[[#This Row],[Annual Control Savings (kWh)]])*(Table_NCSummary[[#This Row],[EIF]]-1),0),0)),\"\"),\"\")","v":""},{"$f":"IFERROR(IF(Table_NCSummary[[#This Row],[IsActive]],IF(NOT(ISNUMBER(Table_NCSummary[[#This Row],[Fixture Rebate]])),\"\",IF(Table_NCInfo[[#This Row],[Interior/ Exterior]]=\"Interior\",IFERROR((Table_NCSummary[[#This Row],[Fixture kW Reduction]]+Table_NCSummary[[#This Row],[Control kW Reduction]]/(Table_NCSummary[[#This Row],[CF (Ltg)]]*Table_NCSummary[[#This Row],[DF (Ltg)]]))*(Table_NCSummary[[#This Row],[DIF]]-1)*Table_NCSummary[[#This Row],[CF (HVAC)]]*Table_NCSummary[[#This Row],[DF (HVAC)]],0),0)),\"\"),\"\")","v":""},{"$f":"IFERROR(IF(Table_NCSummary[[#This Row],[IsActive]],IF(NOT(ISNUMBER(Table_NCSummary[[#This Row],[Fixture Rebate]])),\"\",ROUND(Table_NCSummary[[#This Row],[Annual Fixture Savings (kWh)]]+Table_NCSummary[[#This Row],[Annual Control Savings (kWh)]],0)),\"\"),\"\")","v":""},{"$f":"IFERROR(IF(Table_NCSummary[[#This Row],[IsActive]],IF(NOT(ISNUMBER(Table_NCSummary[[#This Row],[Fixture Rebate]])),\"\",ROUND(Table_NCSummary[[#This Row],[Fixture kW Reduction]]+Table_NCSummary[[#This Row],[Control kW Reduction]],3)),\"\"),\"\")","v":""},{"$f":"IFERROR(IF(Table_NCSummary[[#This Row],[IsActive]],IF(NOT(ISNUMBER(Table_NCSummary[[#This Row],[Fixture Rebate]])),\"\",ROUND(Table_NCSummary[[#This Row],[Fixture Energy Savings (kWh)]]+Table_NCSummary[[#This Row],[Induced HVAC Energy Savings (kWh)]],0)),\"\"),\"\")","v":""},{"$f":"IFERROR(IF(Table_NCSummary[[#This Row],[IsActive]],IF(NOT(ISNUMBER(Table_NCSummary[[#This Row],[Fixture Rebate]])),\"\",ROUND(Table_NCSummary[[#This Row],[Fixture Demand Savings (kW)]]+Table_NCSummary[[#This Row],[Induced HVAC Demand Savings (kW)]],3)),\"\"),\"\")","v":""}]
[{"$f":"IFERROR(Table_NCInfo[[#This Row],[Line]],\"\")","v":13},{"$f":"IFERROR(Table_NCInfo[[#This Row],[IsActive]],\"\")","v":false},{"$f":"IFERROR(IF(Table_NCSummary[[#This Row],[IsActive]],VLOOKUP(IF(ISNUMBER(MATCH(Table_NCInfo[[#This Row],[Line]],Table_NCInspection[Line],0)),INDEX(Table_NCInspection[Schedule],MATCH(Table_NCSummary[[#This Row],[Line Item]],Table_NCInspection[Line],0)),Table_NCInfo[[#This Row],[Schedule]]),'Customer Information'!$S$27:$T$34,2,FALSE),\"\"),\"\")","v":""},{"$f":"IFERROR(IF(Table_NCSummary[[#This Row],[IsActive]],INDEX(Table_IntLookups[EIF],MATCH(IF(ISNUMBER(MATCH(Table_NCSummary[[#This Row],[Line Item]],Table_NCInspection[Line],0)),INDEX(Table_NCInspection[Zone Description],MATCH(Table_NCSummary[[#This Row],[Line Item]],Table_NCInfo[Line],0)),Table_NCInfo[[#This Row],[Zone Description]]),Table_IntLookups[Dropdown],0)),\"\"),\"\")","v":""},{"$f":"IFERROR(IF(Table_NCSummary[[#This Row],[IsActive]],INDEX(Table_IntLookups[DIF],MATCH(IF(ISNUMBER(MATCH(Table_NCSummary[[#This Row],[Line Item]],Table_NCInspection[Line],0)),INDEX(Table_NCInspection[Zone Description],MATCH(Table_NCSummary[[#This Row],[Line Item]],Table_NCInfo[Line],0)),Table_NCInfo[[#This Row],[Zone Description]]),Table_IntLookups[Dropdown],0)),\"\"),\"\")","v":""},{"$f":"IFERROR(IF(Table_NCSummary[[#This Row],[IsActive]],INDEX(Table_IntLookups[CFltg],MATCH(IF(ISNUMBER(MATCH(Table_NCSummary[[#This Row],[Line Item]],Table_NCInspection[Line],0)),INDEX(Table_NCInspection[Zone Description],MATCH(Table_NCSummary[[#This Row],[Line Item]],Table_NCInfo[Line],0)),Table_NCInfo[[#This Row],[Zone Description]]),Table_IntLookups[Dropdown],0)),\"\"),\"\")","v":""},{"$f":"IFERROR(IF(Table_NCSummary[[#This Row],[IsActive]],INDEX(Table_IntLookups[DFltg],MATCH(IF(ISNUMBER(MATCH(Table_NCSummary[[#This Row],[Line Item]],Table_NCInspection[Line],0)),INDEX(Table_NCInspection[Zone Description],MATCH(Table_NCSummary[[#This Row],[Line Item]],Table_NCInfo[Line],0)),Table_NCInfo[[#This Row],[Zone Description]]),Table_IntLookups[Dropdown],0)),\"\"),\"\")","v":""},{"$f":"IFERROR(IF(Table_NCSummary[[#This Row],[IsActive]],INDEX(Table_IntLookups[Cfhvac],MATCH(IF(ISNUMBER(MATCH(Table_NCSummary[[#This Row],[Line Item]],Table_NCInspection[Line],0)),INDEX(Table_NCInspection[Zone Description],MATCH(Table_NCSummary[[#This Row],[Line Item]],Table_NCInfo[Line],0)),Table_NCInfo[[#This Row],[Zone Description]]),Table_IntLookups[Dropdown],0)),\"\"),\"\")","v":""},{"$f":"IFERROR(IF(Table_NCSummary[[#This Row],[IsActive]],INDEX(Table_IntLookups[Dfhvac],MATCH(IF(ISNUMBER(MATCH(Table_NCSummary[[#This Row],[Line Item]],Table_NCInspection[Line],0)),INDEX(Table_NCInspection[Zone Description],MATCH(Table_NCSummary[[#This Row],[Line Item]],Table_NCInfo[Line],0)),Table_NCInfo[[#This Row],[Zone Description]]),Table_IntLookups[Dropdown],0)),\"\"),\"\")","v":""},{"$f":"IFERROR(IF(Table_NCSummary[[#This Row],[IsActive]],\nIF(ISNUMBER(MATCH(Table_NCInfo[[#This Row],[Line]],Table_NCInspection[Line],0)),INDEX(Table_NCInspection[Zone Description],MATCH(Table_NCSummary[[#This Row],[Line Item]],Table_NCInspection[Line],0)),Table_NCInfo[[#This Row],[Zone Description]]),\n \"\"),\"\")","v":""},{"$f":"IFERROR(IF(Table_NCSummary[[#This Row],[IsActive]],\nCONCATENATE(\nIF(ISNUMBER(MATCH(Table_NCInfo[[#This Row],[Line]],Table_NCInspection[Line],0)),INDEX(Table_NCInspection[Interior/ Exterior],MATCH(Table_NCSummary[[#This Row],[Line Item]],Table_NCInspection[Line],0)),Table_NCInfo[[#This Row],[Interior/ Exterior]]),\n\" - \",\nIF(ISNUMBER(MATCH(Table_NCInfo[[#This Row],[Line]],Table_NCInspection[Line],0)),INDEX(Table_NCInspection[Space Description],MATCH(Table_NCSummary[[#This Row],[Line Item]],Table_NCInspection[Line],0)),Table_NCInfo[[#This Row],[Space Description]])),\n \"\"),\"\")","v":""},{"$f":"IFERROR(IF(ISNUMBER(MATCH(Table_NCInfo[[#This Row],[Line]],Table_NCInspection[Line],0)),INDEX(Table_NCInspection[Baseline Wattage],MATCH(Table_NCSummary[[#This Row],[Line Item]],Table_NCInspection[Line],0)),Table_NCInfo[[#This Row],[Baseline Wattage]]),\"\")","v":""},{"$f":"IFERROR(IF(Table_NCSummary[[#This Row],[IsActive]],Table_NCSummary[[#This Row],[Baseline Wattage]]/1000*Table_NCSummary[[#This Row],[OpHrs]],\"\"),\"\")","v":""},{"$f":"IFERROR(IF(Table_NCSummary[[#This Row],[IsActive]],IFERROR(VLOOKUP(IF(ISNUMBER(MATCH(Table_NCSummary[[#This Row],[Line Item]],Table_NCInspection[Line],0)),INDEX(Table_NCInspection[Zone '#],MATCH(Table_NCSummary[[#This Row],[Line Item]],Table_NCInspection[Line],0)),Table_NCInfo[[#This Row],[Zone '#]]),Table_IntLookups[],'Facility Information'!$AA$4,FALSE),0),\"\"),\"\")","v":""},{"$f":"IFERROR(IF(Table_NCSummary[[#This Row],[IsActive]],IFERROR(Table_NCSummary[[#This Row],[Baseline Wattage]]/1000*Table_NCSummary[[#This Row],[OpHrs]]*Table_NCSummary[[#This Row],[Existing CSF]]*(-1),0),\"\"),\"\")","v":""},{"$f":"IFERROR(Table_NCSummary[[#This Row],[Baseline kWh]]+Table_NCSummary[[#This Row],[Existing Fixture (Existing Controls) kWh]],\"\")","v":""},{"$f":"IFERROR(IF(Table_NCSummary[[#This Row],[IsActive]],IF(ISNUMBER(MATCH(Table_NCInfo[[#This Row],[Line]],Table_NCInspection[Line],0)),INDEX(Table_NCInspection[Fixture Description '[P']],MATCH(Table_NCSummary[[#This Row],[Line Item]],Table_NCInspection[Line],0)),Table_NCInfo[[#This Row],[Fixture Description '[P']]]),\"\"),\"\")","v":""},{"$f":"IFERROR(IF(Table_NCSummary[[#This Row],[IsActive]],IF(ISNUMBER(MATCH(Table_NCInfo[[#This Row],[Line]],Table_NCInspection[Line],0)),INDEX(Table_NCInspection['# Lamps/ Fixture '[P']],MATCH(Table_NCSummary[[#This Row],[Line Item]],Table_NCInspection[Line],0)),Table_NCInfo[[#This Row],['# Lamps/ Fixture '[P']]]),\"\"),\"\")","v":""},{"$f":"IFERROR(IF(Table_NCSummary[[#This Row],[IsActive]],IF(ISNUMBER(MATCH(Table_NCInfo[[#This Row],[Line]],Table_NCInspection[Line],0)),INDEX(Table_NCInspection[Fixture/ Lamp Wattage '[P']],MATCH(Table_NCSummary[[#This Row],[Line Item]],Table_NCInspection[Line],0)),Table_NCInfo[[#This Row],[Fixture/ Lamp Wattage '[P']]]),\"\"),\"\")","v":""},{"$f":"IFERROR(IF(Table_NCSummary[[#This Row],[IsActive]],IF(ISNUMBER(MATCH(Table_NCInfo[[#This Row],[Line]],Table_NCInspection[Line],0)),INDEX(Table_NCInspection[Fixture Qty '[P']],MATCH(Table_NCSummary[[#This Row],[Line Item]],Table_NCInspection[Line],0)),Table_NCInfo[[#This Row],[Fixture Qty '[P']]]),\"\"),\"\")","v":""},{"$f":"IFERROR(IF(Table_NCSummary[[#This Row],[IsActive]],Table_NCSummary[[#This Row],['# Lamps/ Fixture '[P']]]*Table_NCSummary[[#This Row],[P. Qty]],\"\"),\"\")","v":""},{"$f":"IFERROR(IF(Table_NCSummary[[#This Row],[IsActive]],IF(ISNUMBER(MATCH(Table_NCInfo[[#This Row],[Line]],Table_NCInspection[Line],0)),INDEX(Table_NCInspection[Fixture Wattage '[P']],MATCH(Table_NCSummary[[#This Row],[Line Item]],Table_NCInspection[Line],0)),Table_NCInfo[[#This Row],[Fixture Wattage '[P']]]),\"\"),\"\")","v":""},{"$f":"IFERROR(Table_NCSummary[[#This Row],[P. Qty]]*Table_NCSummary[[#This Row],[Proposed Fixture Wattage]],\"\")","v":""},{"$f":"IFERROR(Table_NCSummary[[#This Row],[Proposed Fixture Wattage]]/1000*Table_NCSummary[[#This Row],[OpHrs]]*Table_NCSummary[[#This Row],[P. Qty]],\"\")","v":""},{"$f":"IFERROR(IF(Table_NCSummary[[#This Row],[IsActive]],IFERROR(VLOOKUP(RIGHT(Table_NCSummary[[#This Row],[Proposed Fixture]],LEN(Table_NCSummary[[#This Row],[Proposed Fixture]])-FIND(\" - \",Table_NCSummary[[#This Row],[Proposed Fixture]],FIND(\"]\",Table_NCSummary[[#This Row],[Proposed Fixture]],1))-2),Table_ControlType[],3, FALSE),Table_NCSummary[[#This Row],[Existing CSF]]),\"\"),\"\")","v":""},{"$f":"IFERROR(IF(Table_NCSummary[[#This Row],[IsActive]],IFERROR(Table_NCSummary[[#This Row],[Proposed Fixture Wattage]]/1000*Table_NCSummary[[#This Row],[OpHrs]]*Table_NCSummary[[#This Row],[P. Qty]]*Table_NCSummary[[#This Row],[Existing CSF]]*(-1),0),\"\"),\"\")","v":""},{"$f":"IFERROR(Table_NCSummary[[#This Row],[Proposed Fixture kWh]]+Table_NCSummary[[#This Row],[Proposed Fixture (Existing Controls) kWh]],\"\")","v":""},{"$f":"IFERROR(IF(Table_NCSummary[[#This Row],[IsActive]],IFERROR(Table_NCSummary[[#This Row],[Proposed Fixture Wattage]]/1000*Table_NCSummary[[#This Row],[OpHrs]]*Table_NCSummary[[#This Row],[P. Qty]]*Table_NCSummary[[#This Row],[Proposed CSF]]*(-1),0),\"\"),\"\")","v":""},{"$f":"IFERROR(Table_NCSummary[[#This Row],[Proposed Fixture kWh]]+Table_NCSummary[[#This Row],[Proposed Fixture (Proposed Controls) kWh]],\"\")","v":""},null,{"$f":"IFERROR(IF(Table_NCSummary[[#This Row],[IsActive]],IF((1-SUMPRODUCT(Table_NCSummary[P. Qty],Table_NCSummary[Proposed Fixture Wattage])/SUM(Table_NCSummary[Baseline Wattage]))<0.1,\"Does Not Qualify [Overall Fixture Reduction is less than 10%]\",IF(ISNUMBER(FIND(\"LED\",Table_NCSummary[[#This Row],[Proposed Fixture]],1)),IF(ISNUMBER(FIND(\"LED Tube\",Table_NCSummary[[#This Row],[Proposed Fixture]],1)),\"New Construction Interior LED Fixture\",IF(ISNUMBER(FIND(\"LED\",Table_NCSummary[[#This Row],[Proposed Fixture]],1)),IF(Table_NCInfo[[#This Row],[Interior/ Exterior]]=\"Exterior\",\"New Construction Exterior LED Fixture\",\"New Construction Interior LED Fixture\"),\"Ineligible Fixture\")),\"Ineligible Fixture\")),\"\"),\"\")","v":""},{"$f":"IFERROR(VLOOKUP(Table_NCSummary[[#This Row],[Fixture Measure Description]],Table_FixtureRate[],2,FALSE),\"\")","v":""},{"$f":"IFERROR(IF(Table_NCSummary[[#This Row],[IsActive]],IF((1-SUMPRODUCT(Table_NCSummary[P. Qty],Table_NCSummary[Proposed Fixture Wattage])/SUM(Table_NCSummary[Baseline Wattage]))<0.1,\"DNQ [kW Reduction <10%]\",IF(Table_NCSummary[[#This Row],[Fixture Measure Description]]=\"Ineligible Fixture\",0,ROUND(Table_NCSummary[[#This Row],[Fixture Rebate (per kW)]]*(Table_NCSummary[[#This Row],[Baseline Wattage]]-Table_NCSummary[[#This Row],[Proposed Wattage]])/1000,2))),\"\"),\"\")","v":""},{"$f":"IFERROR(IF(Table_NCSummary[[#This Row],[Fixture Measure Description]]=\"Ineligible Fixture\",0,ROUND(IF(ProjectCost_Total=0,300000,ProjectCost_Total)*Table_NCSummary[[#This Row],[Fixture Rebate]]/SUM(Table_NCSummary[Fixture Rebate],Table_NCSummary[Controls Rebate]),2)),\"\")","v":""},{"$f":"IFERROR(IF(Table_NCSummary[[#This Row],[IsActive]],IF((1-SUMPRODUCT(Table_NCSummary[P. Qty],Table_NCSummary[Proposed Fixture Wattage])/SUM(Table_NCSummary[Baseline Wattage]))<0.1,\"DNQ [kW Reduction <10%]\",IF(Table_NCSummary[[#This Row],[Fixture Measure Description]]=\"Ineligible Fixture\",0,Table_NCSummary[[#This Row],[Existing Overall kWh]]-Table_NCSummary[[#This Row],[Proposed Overall kWh (Existing Controls)]])),\"\"),\"\")","v":""},{"$f":"IFERROR(IF(Table_NCSummary[[#This Row],[IsActive]],IF((1-SUMPRODUCT(Table_NCSummary[P. Qty],Table_NCSummary[Proposed Fixture Wattage])/SUM(Table_NCSummary[Baseline Wattage]))<0.1,\"DNQ [kW Reduction <10%]\",IF(OR(Table_NCSummary[[#This Row],[Fixture Measure Description]]=\"Ineligible Fixture\",Table_NCSummary[[#This Row],[Fixture Measure Description]]=\"New Construction Exterior LED Fixture\"),0,(Table_NCSummary[[#This Row],[Baseline kWh]]-Table_NCSummary[[#This Row],[Proposed Fixture kWh]])/Table_NCSummary[[#This Row],[OpHrs]]*Table_NCSummary[[#This Row],[CF (Ltg)]]*Table_NCSummary[[#This Row],[DF (Ltg)]])),\"\"),\"\")","v":""},null,{"$f":"IFERROR(\n  IF(OR(Table_NCSummary[[#This Row],[Fixture Measure Description]]=\"\",Table_NCSummary[[#This Row],[Fixture Measure Description]]=\"Ineligible Fixture\"),\n    \"\",\n    \"New Construction\"\n    & \" - \" &\n    IFERROR(VLOOKUP(RIGHT(Table_NCSummary[[#This Row],[Proposed Fixture]],LEN(Table_NCSummary[[#This Row],[Proposed Fixture]])-FIND(\" - \",Table_NCSummary[[#This Row],[Proposed Fixture]],FIND(\"]\",Table_NCSummary[[#This Row],[Proposed Fixture]],1))-2),Table_ControlType[],2, FALSE),None)),\n\"\")","v":""},{"$f":"IFERROR(VLOOKUP(Table_NCSummary[[#This Row],[Controls Measure Description]],Table_ControlRate[],2,FALSE),\"\")","v":""},{"$f":"IFERROR(IF(Table_NCSummary[[#This Row],[IsActive]],IF((1-SUMPRODUCT(Table_NCSummary[P. Qty],Table_NCSummary[Proposed Fixture Wattage])/SUM(Table_NCSummary[Baseline Wattage]))<0.1,\"DNQ [kW Reduction <10%]\",IF(OR(Table_NCSummary[[#This Row],[Controls Measure Description]]=\"\",Table_NCSummary[[#This Row],[Controls Measure Description]]=\"New Construction - No Controls\"),0,ROUND(Table_NCSummary[[#This Row],[Controls Rebate (per Fixt Watt)]]*Table_NCSummary[[#This Row],[Proposed Fixture Wattage]]*Table_NCSummary[[#This Row],[P. Qty]],2))),\"\"),\"\")","v":""},{"$f":"IFERROR(IF(Table_NCSummary[[#This Row],[Fixture Measure Description]]=\"Ineligible Fixture\",0,ROUND(IF(ProjectCost_Total=0,300000,ProjectCost_Total)*Table_NCSummary[[#This Row],[Controls Rebate]]/SUM(Table_NCSummary[Fixture Rebate],Table_NCSummary[Controls Rebate]),2)),\"\")","v":""},{"$f":"IFERROR(IF(Table_NCSummary[[#This Row],[IsActive]],IF((1-SUMPRODUCT(Table_NCSummary[P. Qty],Table_NCSummary[Proposed Fixture Wattage])/SUM(Table_NCSummary[Baseline Wattage]))<0.1,\"DNQ [kW Reduction <10%]\",IF(Table_NCSummary[[#This Row],[Controls Measure Description]]=\"\",0,(Table_NCSummary[[#This Row],[Proposed Fixture (Existing Controls) kWh]]-Table_NCSummary[[#This Row],[Proposed Fixture (Proposed Controls) kWh]]))),\"\"),\"\")","v":""},{"$f":"IFERROR(IF(Table_NCSummary[[#This Row],[IsActive]],IF((1-SUMPRODUCT(Table_NCSummary[P. Qty],Table_NCSummary[Proposed Fixture Wattage])/SUM(Table_NCSummary[Baseline Wattage]))<0.1,\"DNQ [kW Reduction <10%]\",IF(OR(Table_NCSummary[[#This Row],[Controls Measure Description]]=\"\",Table_NCSummary[[#This Row],[Controls Measure Description]]=\"New Construction - No Controls\"),0,(Table_NCSummary[[#This Row],[Proposed Fixture (Existing Controls) kWh]]-Table_NCSummary[[#This Row],[Proposed Fixture (Proposed Controls) kWh]])/Table_NCSummary[[#This Row],[OpHrs]]*Table_NCSummary[[#This Row],[CF (Ltg)]]*Table_NCSummary[[#This Row],[DF (Ltg)]])),\"\"),\"\")","v":""},null,{"$f":"IFERROR(IF(NOT(ISNUMBER(Table_NCSummary[[#This Row],[Fixture Rebate]])),\"\",IF(MIN(IF(Table_NCSummary[[#This Row],[Fixture Cost]]<0,0,SUM(Table_NCSummary[Fixture Cost],Table_NCSummary[Controls Cost])),SUM(Table_NCSummary[Fixture Rebate],Table_NCSummary[Controls Rebate]))>300000,300000/MIN(IF(Table_NCSummary[[#This Row],[Fixture Cost]]<0,0,SUM(Table_NCSummary[Fixture Cost],Table_NCSummary[Controls Cost])),SUM(Table_NCSummary[Fixture Rebate],Table_NCSummary[Controls Rebate]))*MIN(IF(Table_NCSummary[[#This Row],[Fixture Cost]]<0,0,SUM(Table_NCSummary[Fixture Cost],Table_NCSummary[Controls Cost])),Table_NCSummary[[#This Row],[Fixture Rebate]]+IF(Table_NCSummary[[#This Row],[Controls Rebate]]=\"\",0,Table_NCSummary[[#This Row],[Controls Rebate]])),MIN(IF(Table_NCSummary[[#This Row],[Fixture Cost]]<0,0,SUM(Table_NCSummary[Fixture Cost],Table_NCSummary[Controls Cost])),Table_NCSummary[[#This Row],[Fixture Rebate]]+IF(Table_NCSummary[[#This Row],[Controls Rebate]]=\"\",0,Table_NCSummary[[#This Row],[Controls Rebate]])))),\"\")","v":""},{"$f":"IFERROR(IF(Table_NCSummary[[#This Row],[Fixture Cost]]=\"\",\"\",Table_NCSummary[[#This Row],[Fixture Cost]]+IF(Table_NCSummary[[#This Row],[Controls Cost]]=\"\",0,Table_NCSummary[[#This Row],[Controls Cost]])),\"\")","v":""},{"$f":"IFERROR(IF(Table_NCSummary[[#This Row],[IsActive]],IF(NOT(ISNUMBER(Table_NCSummary[[#This Row],[Fixture Rebate]])),\"\",IF(Table_NCInfo[[#This Row],[Interior/ Exterior]]=\"Interior\",IFERROR((Table_NCSummary[[#This Row],[Annual Fixture Savings (kWh)]]+Table_NCSummary[[#This Row],[Annual Control Savings (kWh)]])*(Table_NCSummary[[#This Row],[EIF]]-1),0),0)),\"\"),\"\")","v":""},{"$f":"IFERROR(IF(Table_NCSummary[[#This Row],[IsActive]],IF(NOT(ISNUMBER(Table_NCSummary[[#This Row],[Fixture Rebate]])),\"\",IF(Table_NCInfo[[#This Row],[Interior/ Exterior]]=\"Interior\",IFERROR((Table_NCSummary[[#This Row],[Fixture kW Reduction]]+Table_NCSummary[[#This Row],[Control kW Reduction]]/(Table_NCSummary[[#This Row],[CF (Ltg)]]*Table_NCSummary[[#This Row],[DF (Ltg)]]))*(Table_NCSummary[[#This Row],[DIF]]-1)*Table_NCSummary[[#This Row],[CF (HVAC)]]*Table_NCSummary[[#This Row],[DF (HVAC)]],0),0)),\"\"),\"\")","v":""},{"$f":"IFERROR(IF(Table_NCSummary[[#This Row],[IsActive]],IF(NOT(ISNUMBER(Table_NCSummary[[#This Row],[Fixture Rebate]])),\"\",ROUND(Table_NCSummary[[#This Row],[Annual Fixture Savings (kWh)]]+Table_NCSummary[[#This Row],[Annual Control Savings (kWh)]],0)),\"\"),\"\")","v":""},{"$f":"IFERROR(IF(Table_NCSummary[[#This Row],[IsActive]],IF(NOT(ISNUMBER(Table_NCSummary[[#This Row],[Fixture Rebate]])),\"\",ROUND(Table_NCSummary[[#This Row],[Fixture kW Reduction]]+Table_NCSummary[[#This Row],[Control kW Reduction]],3)),\"\"),\"\")","v":""},{"$f":"IFERROR(IF(Table_NCSummary[[#This Row],[IsActive]],IF(NOT(ISNUMBER(Table_NCSummary[[#This Row],[Fixture Rebate]])),\"\",ROUND(Table_NCSummary[[#This Row],[Fixture Energy Savings (kWh)]]+Table_NCSummary[[#This Row],[Induced HVAC Energy Savings (kWh)]],0)),\"\"),\"\")","v":""},{"$f":"IFERROR(IF(Table_NCSummary[[#This Row],[IsActive]],IF(NOT(ISNUMBER(Table_NCSummary[[#This Row],[Fixture Rebate]])),\"\",ROUND(Table_NCSummary[[#This Row],[Fixture Demand Savings (kW)]]+Table_NCSummary[[#This Row],[Induced HVAC Demand Savings (kW)]],3)),\"\"),\"\")","v":""}]
[{"$f":"IFERROR(Table_NCInfo[[#This Row],[Line]],\"\")","v":14},{"$f":"IFERROR(Table_NCInfo[[#This Row],[IsActive]],\"\")","v":false},{"$f":"IFERROR(IF(Table_NCSummary[[#This Row],[IsActive]],VLOOKUP(IF(ISNUMBER(MATCH(Table_NCInfo[[#This Row],[Line]],Table_NCInspection[Line],0)),INDEX(Table_NCInspection[Schedule],MATCH(Table_NCSummary[[#This Row],[Line Item]],Table_NCInspection[Line],0)),Table_NCInfo[[#This Row],[Schedule]]),'Customer Information'!$S$27:$T$34,2,FALSE),\"\"),\"\")","v":""},{"$f":"IFERROR(IF(Table_NCSummary[[#This Row],[IsActive]],INDEX(Table_IntLookups[EIF],MATCH(IF(ISNUMBER(MATCH(Table_NCSummary[[#This Row],[Line Item]],Table_NCInspection[Line],0)),INDEX(Table_NCInspection[Zone Description],MATCH(Table_NCSummary[[#This Row],[Line Item]],Table_NCInfo[Line],0)),Table_NCInfo[[#This Row],[Zone Description]]),Table_IntLookups[Dropdown],0)),\"\"),\"\")","v":""},{"$f":"IFERROR(IF(Table_NCSummary[[#This Row],[IsActive]],INDEX(Table_IntLookups[DIF],MATCH(IF(ISNUMBER(MATCH(Table_NCSummary[[#This Row],[Line Item]],Table_NCInspection[Line],0)),INDEX(Table_NCInspection[Zone Description],MATCH(Table_NCSummary[[#This Row],[Line Item]],Table_NCInfo[Line],0)),Table_NCInfo[[#This Row],[Zone Description]]),Table_IntLookups[Dropdown],0)),\"\"),\"\")","v":""},{"$f":"IFERROR(IF(Table_NCSummary[[#This Row],[IsActive]],INDEX(Table_IntLookups[CFltg],MATCH(IF(ISNUMBER(MATCH(Table_NCSummary[[#This Row],[Line Item]],Table_NCInspection[Line],0)),INDEX(Table_NCInspection[Zone Description],MATCH(Table_NCSummary[[#This Row],[Line Item]],Table_NCInfo[Line],0)),Table_NCInfo[[#This Row],[Zone Description]]),Table_IntLookups[Dropdown],0)),\"\"),\"\")","v":""},{"$f":"IFERROR(IF(Table_NCSummary[[#This Row],[IsActive]],INDEX(Table_IntLookups[DFltg],MATCH(IF(ISNUMBER(MATCH(Table_NCSummary[[#This Row],[Line Item]],Table_NCInspection[Line],0)),INDEX(Table_NCInspection[Zone Description],MATCH(Table_NCSummary[[#This Row],[Line Item]],Table_NCInfo[Line],0)),Table_NCInfo[[#This Row],[Zone Description]]),Table_IntLookups[Dropdown],0)),\"\"),\"\")","v":""},{"$f":"IFERROR(IF(Table_NCSummary[[#This Row],[IsActive]],INDEX(Table_IntLookups[Cfhvac],MATCH(IF(ISNUMBER(MATCH(Table_NCSummary[[#This Row],[Line Item]],Table_NCInspection[Line],0)),INDEX(Table_NCInspection[Zone Description],MATCH(Table_NCSummary[[#This Row],[Line Item]],Table_NCInfo[Line],0)),Table_NCInfo[[#This Row],[Zone Description]]),Table_IntLookups[Dropdown],0)),\"\"),\"\")","v":""},{"$f":"IFERROR(IF(Table_NCSummary[[#This Row],[IsActive]],INDEX(Table_IntLookups[Dfhvac],MATCH(IF(ISNUMBER(MATCH(Table_NCSummary[[#This Row],[Line Item]],Table_NCInspection[Line],0)),INDEX(Table_NCInspection[Zone Description],MATCH(Table_NCSummary[[#This Row],[Line Item]],Table_NCInfo[Line],0)),Table_NCInfo[[#This Row],[Zone Description]]),Table_IntLookups[Dropdown],0)),\"\"),\"\")","v":""},{"$f":"IFERROR(IF(Table_NCSummary[[#This Row],[IsActive]],\nIF(ISNUMBER(MATCH(Table_NCInfo[[#This Row],[Line]],Table_NCInspection[Line],0)),INDEX(Table_NCInspection[Zone Description],MATCH(Table_NCSummary[[#This Row],[Line Item]],Table_NCInspection[Line],0)),Table_NCInfo[[#This Row],[Zone Description]]),\n \"\"),\"\")","v":""},{"$f":"IFERROR(IF(Table_NCSummary[[#This Row],[IsActive]],\nCONCATENATE(\nIF(ISNUMBER(MATCH(Table_NCInfo[[#This Row],[Line]],Table_NCInspection[Line],0)),INDEX(Table_NCInspection[Interior/ Exterior],MATCH(Table_NCSummary[[#This Row],[Line Item]],Table_NCInspection[Line],0)),Table_NCInfo[[#This Row],[Interior/ Exterior]]),\n\" - \",\nIF(ISNUMBER(MATCH(Table_NCInfo[[#This Row],[Line]],Table_NCInspection[Line],0)),INDEX(Table_NCInspection[Space Description],MATCH(Table_NCSummary[[#This Row],[Line Item]],Table_NCInspection[Line],0)),Table_NCInfo[[#This Row],[Space Description]])),\n \"\"),\"\")","v":""},{"$f":"IFERROR(IF(ISNUMBER(MATCH(Table_NCInfo[[#This Row],[Line]],Table_NCInspection[Line],0)),INDEX(Table_NCInspection[Baseline Wattage],MATCH(Table_NCSummary[[#This Row],[Line Item]],Table_NCInspection[Line],0)),Table_NCInfo[[#This Row],[Baseline Wattage]]),\"\")","v":""},{"$f":"IFERROR(IF(Table_NCSummary[[#This Row],[IsActive]],Table_NCSummary[[#This Row],[Baseline Wattage]]/1000*Table_NCSummary[[#This Row],[OpHrs]],\"\"),\"\")","v":""},{"$f":"IFERROR(IF(Table_NCSummary[[#This Row],[IsActive]],IFERROR(VLOOKUP(IF(ISNUMBER(MATCH(Table_NCSummary[[#This Row],[Line Item]],Table_NCInspection[Line],0)),INDEX(Table_NCInspection[Zone '#],MATCH(Table_NCSummary[[#This Row],[Line Item]],Table_NCInspection[Line],0)),Table_NCInfo[[#This Row],[Zone '#]]),Table_IntLookups[],'Facility Information'!$AA$4,FALSE),0),\"\"),\"\")","v":""},{"$f":"IFERROR(IF(Table_NCSummary[[#This Row],[IsActive]],IFERROR(Table_NCSummary[[#This Row],[Baseline Wattage]]/1000*Table_NCSummary[[#This Row],[OpHrs]]*Table_NCSummary[[#This Row],[Existing CSF]]*(-1),0),\"\"),\"\")","v":""},{"$f":"IFERROR(Table_NCSummary[[#This Row],[Baseline kWh]]+Table_NCSummary[[#This Row],[Existing Fixture (Existing Controls) kWh]],\"\")","v":""},{"$f":"IFERROR(IF(Table_NCSummary[[#This Row],[IsActive]],IF(ISNUMBER(MATCH(Table_NCInfo[[#This Row],[Line]],Table_NCInspection[Line],0)),INDEX(Table_NCInspection[Fixture Description '[P']],MATCH(Table_NCSummary[[#This Row],[Line Item]],Table_NCInspection[Line],0)),Table_NCInfo[[#This Row],[Fixture Description '[P']]]),\"\"),\"\")","v":""},{"$f":"IFERROR(IF(Table_NCSummary[[#This Row],[IsActive]],IF(ISNUMBER(MATCH(Table_NCInfo[[#This Row],[Line]],Table_NCInspection[Line],0)),INDEX(Table_NCInspection['# Lamps/ Fixture '[P']],MATCH(Table_NCSummary[[#This Row],[Line Item]],Table_NCInspection[Line],0)),Table_NCInfo[[#This Row],['# Lamps/ Fixture '[P']]]),\"\"),\"\")","v":""},{"$f":"IFERROR(IF(Table_NCSummary[[#This Row],[IsActive]],IF(ISNUMBER(MATCH(Table_NCInfo[[#This Row],[Line]],Table_NCInspection[Line],0)),INDEX(Table_NCInspection[Fixture/ Lamp Wattage '[P']],MATCH(Table_NCSummary[[#This Row],[Line Item]],Table_NCInspection[Line],0)),Table_NCInfo[[#This Row],[Fixture/ Lamp Wattage '[P']]]),\"\"),\"\")","v":""},{"$f":"IFERROR(IF(Table_NCSummary[[#This Row],[IsActive]],IF(ISNUMBER(MATCH(Table_NCInfo[[#This Row],[Line]],Table_NCInspection[Line],0)),INDEX(Table_NCInspection[Fixture Qty '[P']],MATCH(Table_NCSummary[[#This Row],[Line Item]],Table_NCInspection[Line],0)),Table_NCInfo[[#This Row],[Fixture Qty '[P']]]),\"\"),\"\")","v":""},{"$f":"IFERROR(IF(Table_NCSummary[[#This Row],[IsActive]],Table_NCSummary[[#This Row],['# Lamps/ Fixture '[P']]]*Table_NCSummary[[#This Row],[P. Qty]],\"\"),\"\")","v":""},{"$f":"IFERROR(IF(Table_NCSummary[[#This Row],[IsActive]],IF(ISNUMBER(MATCH(Table_NCInfo[[#This Row],[Line]],Table_NCInspection[Line],0)),INDEX(Table_NCInspection[Fixture Wattage '[P']],MATCH(Table_NCSummary[[#This Row],[Line Item]],Table_NCInspection[Line],0)),Table_NCInfo[[#This Row],[Fixture Wattage '[P']]]),\"\"),\"\")","v":""},{"$f":"IFERROR(Table_NCSummary[[#This Row],[P. Qty]]*Table_NCSummary[[#This Row],[Proposed Fixture Wattage]],\"\")","v":""},{"$f":"IFERROR(Table_NCSummary[[#This Row],[Proposed Fixture Wattage]]/1000*Table_NCSummary[[#This Row],[OpHrs]]*Table_NCSummary[[#This Row],[P. Qty]],\"\")","v":""},{"$f":"IFERROR(IF(Table_NCSummary[[#This Row],[IsActive]],IFERROR(VLOOKUP(RIGHT(Table_NCSummary[[#This Row],[Proposed Fixture]],LEN(Table_NCSummary[[#This Row],[Proposed Fixture]])-FIND(\" - \",Table_NCSummary[[#This Row],[Proposed Fixture]],FIND(\"]\",Table_NCSummary[[#This Row],[Proposed Fixture]],1))-2),Table_ControlType[],3, FALSE),Table_NCSummary[[#This Row],[Existing CSF]]),\"\"),\"\")","v":""},{"$f":"IFERROR(IF(Table_NCSummary[[#This Row],[IsActive]],IFERROR(Table_NCSummary[[#This Row],[Proposed Fixture Wattage]]/1000*Table_NCSummary[[#This Row],[OpHrs]]*Table_NCSummary[[#This Row],[P. Qty]]*Table_NCSummary[[#This Row],[Existing CSF]]*(-1),0),\"\"),\"\")","v":""},{"$f":"IFERROR(Table_NCSummary[[#This Row],[Proposed Fixture kWh]]+Table_NCSummary[[#This Row],[Proposed Fixture (Existing Controls) kWh]],\"\")","v":""},{"$f":"IFERROR(IF(Table_NCSummary[[#This Row],[IsActive]],IFERROR(Table_NCSummary[[#This Row],[Proposed Fixture Wattage]]/1000*Table_NCSummary[[#This Row],[OpHrs]]*Table_NCSummary[[#This Row],[P. Qty]]*Table_NCSummary[[#This Row],[Proposed CSF]]*(-1),0),\"\"),\"\")","v":""},{"$f":"IFERROR(Table_NCSummary[[#This Row],[Proposed Fixture kWh]]+Table_NCSummary[[#This Row],[Proposed Fixture (Proposed Controls) kWh]],\"\")","v":""},null,{"$f":"IFERROR(IF(Table_NCSummary[[#This Row],[IsActive]],IF((1-SUMPRODUCT(Table_NCSummary[P. Qty],Table_NCSummary[Proposed Fixture Wattage])/SUM(Table_NCSummary[Baseline Wattage]))<0.1,\"Does Not Qualify [Overall Fixture Reduction is less than 10%]\",IF(ISNUMBER(FIND(\"LED\",Table_NCSummary[[#This Row],[Proposed Fixture]],1)),IF(ISNUMBER(FIND(\"LED Tube\",Table_NCSummary[[#This Row],[Proposed Fixture]],1)),\"New Construction Interior LED Fixture\",IF(ISNUMBER(FIND(\"LED\",Table_NCSummary[[#This Row],[Proposed Fixture]],1)),IF(Table_NCInfo[[#This Row],[Interior/ Exterior]]=\"Exterior\",\"New Construction Exterior LED Fixture\",\"New Construction Interior LED Fixture\"),\"Ineligible Fixture\")),\"Ineligible Fixture\")),\"\"),\"\")","v":""},{"$f":"IFERROR(VLOOKUP(Table_NCSummary[[#This Row],[Fixture Measure Description]],Table_FixtureRate[],2,FALSE),\"\")","v":""},{"$f":"IFERROR(IF(Table_NCSummary[[#This Row],[IsActive]],IF((1-SUMPRODUCT(Table_NCSummary[P. Qty],Table_NCSummary[Proposed Fixture Wattage])/SUM(Table_NCSummary[Baseline Wattage]))<0.1,\"DNQ [kW Reduction <10%]\",IF(Table_NCSummary[[#This Row],[Fixture Measure Description]]=\"Ineligible Fixture\",0,ROUND(Table_NCSummary[[#This Row],[Fixture Rebate (per kW)]]*(Table_NCSummary[[#This Row],[Baseline Wattage]]-Table_NCSummary[[#This Row],[Proposed Wattage]])/1000,2))),\"\"),\"\")","v":""},{"$f":"IFERROR(IF(Table_NCSummary[[#This Row],[Fixture Measure Description]]=\"Ineligible Fixture\",0,ROUND(IF(ProjectCost_Total=0,300000,ProjectCost_Total)*Table_NCSummary[[#This Row],[Fixture Rebate]]/SUM(Table_NCSummary[Fixture Rebate],Table_NCSummary[Controls Rebate]),2)),\"\")","v":""},{"$f":"IFERROR(IF(Table_NCSummary[[#This Row],[IsActive]],IF((1-SUMPRODUCT(Table_NCSummary[P. Qty],Table_NCSummary[Proposed Fixture Wattage])/SUM(Table_NCSummary[Baseline Wattage]))<0.1,\"DNQ [kW Reduction <10%]\",IF(Table_NCSummary[[#This Row],[Fixture Measure Description]]=\"Ineligible Fixture\",0,Table_NCSummary[[#This Row],[Existing Overall kWh]]-Table_NCSummary[[#This Row],[Proposed Overall kWh (Existing Controls)]])),\"\"),\"\")","v":""},{"$f":"IFERROR(IF(Table_NCSummary[[#This Row],[IsActive]],IF((1-SUMPRODUCT(Table_NCSummary[P. Qty],Table_NCSummary[Proposed Fixture Wattage])/SUM(Table_NCSummary[Baseline Wattage]))<0.1,\"DNQ [kW Reduction <10%]\",IF(OR(Table_NCSummary[[#This Row],[Fixture Measure Description]]=\"Ineligible Fixture\",Table_NCSummary[[#This Row],[Fixture Measure Description]]=\"New Construction Exterior LED Fixture\"),0,(Table_NCSummary[[#This Row],[Baseline kWh]]-Table_NCSummary[[#This Row],[Proposed Fixture kWh]])/Table_NCSummary[[#This Row],[OpHrs]]*Table_NCSummary[[#This Row],[CF (Ltg)]]*Table_NCSummary[[#This Row],[DF (Ltg)]])),\"\"),\"\")","v":""},null,{"$f":"IFERROR(\n  IF(OR(Table_NCSummary[[#This Row],[Fixture Measure Description]]=\"\",Table_NCSummary[[#This Row],[Fixture Measure Description]]=\"Ineligible Fixture\"),\n    \"\",\n    \"New Construction\"\n    & \" - \" &\n    IFERROR(VLOOKUP(RIGHT(Table_NCSummary[[#This Row],[Proposed Fixture]],LEN(Table_NCSummary[[#This Row],[Proposed Fixture]])-FIND(\" - \",Table_NCSummary[[#This Row],[Proposed Fixture]],FIND(\"]\",Table_NCSummary[[#This Row],[Proposed Fixture]],1))-2),Table_ControlType[],2, FALSE),None)),\n\"\")","v":""},{"$f":"IFERROR(VLOOKUP(Table_NCSummary[[#This Row],[Controls Measure Description]],Table_ControlRate[],2,FALSE),\"\")","v":""},{"$f":"IFERROR(IF(Table_NCSummary[[#This Row],[IsActive]],IF((1-SUMPRODUCT(Table_NCSummary[P. Qty],Table_NCSummary[Proposed Fixture Wattage])/SUM(Table_NCSummary[Baseline Wattage]))<0.1,\"DNQ [kW Reduction <10%]\",IF(OR(Table_NCSummary[[#This Row],[Controls Measure Description]]=\"\",Table_NCSummary[[#This Row],[Controls Measure Description]]=\"New Construction - No Controls\"),0,ROUND(Table_NCSummary[[#This Row],[Controls Rebate (per Fixt Watt)]]*Table_NCSummary[[#This Row],[Proposed Fixture Wattage]]*Table_NCSummary[[#This Row],[P. Qty]],2))),\"\"),\"\")","v":""},{"$f":"IFERROR(IF(Table_NCSummary[[#This Row],[Fixture Measure Description]]=\"Ineligible Fixture\",0,ROUND(IF(ProjectCost_Total=0,300000,ProjectCost_Total)*Table_NCSummary[[#This Row],[Controls Rebate]]/SUM(Table_NCSummary[Fixture Rebate],Table_NCSummary[Controls Rebate]),2)),\"\")","v":""},{"$f":"IFERROR(IF(Table_NCSummary[[#This Row],[IsActive]],IF((1-SUMPRODUCT(Table_NCSummary[P. Qty],Table_NCSummary[Proposed Fixture Wattage])/SUM(Table_NCSummary[Baseline Wattage]))<0.1,\"DNQ [kW Reduction <10%]\",IF(Table_NCSummary[[#This Row],[Controls Measure Description]]=\"\",0,(Table_NCSummary[[#This Row],[Proposed Fixture (Existing Controls) kWh]]-Table_NCSummary[[#This Row],[Proposed Fixture (Proposed Controls) kWh]]))),\"\"),\"\")","v":""},{"$f":"IFERROR(IF(Table_NCSummary[[#This Row],[IsActive]],IF((1-SUMPRODUCT(Table_NCSummary[P. Qty],Table_NCSummary[Proposed Fixture Wattage])/SUM(Table_NCSummary[Baseline Wattage]))<0.1,\"DNQ [kW Reduction <10%]\",IF(OR(Table_NCSummary[[#This Row],[Controls Measure Description]]=\"\",Table_NCSummary[[#This Row],[Controls Measure Description]]=\"New Construction - No Controls\"),0,(Table_NCSummary[[#This Row],[Proposed Fixture (Existing Controls) kWh]]-Table_NCSummary[[#This Row],[Proposed Fixture (Proposed Controls) kWh]])/Table_NCSummary[[#This Row],[OpHrs]]*Table_NCSummary[[#This Row],[CF (Ltg)]]*Table_NCSummary[[#This Row],[DF (Ltg)]])),\"\"),\"\")","v":""},null,{"$f":"IFERROR(IF(NOT(ISNUMBER(Table_NCSummary[[#This Row],[Fixture Rebate]])),\"\",IF(MIN(IF(Table_NCSummary[[#This Row],[Fixture Cost]]<0,0,SUM(Table_NCSummary[Fixture Cost],Table_NCSummary[Controls Cost])),SUM(Table_NCSummary[Fixture Rebate],Table_NCSummary[Controls Rebate]))>300000,300000/MIN(IF(Table_NCSummary[[#This Row],[Fixture Cost]]<0,0,SUM(Table_NCSummary[Fixture Cost],Table_NCSummary[Controls Cost])),SUM(Table_NCSummary[Fixture Rebate],Table_NCSummary[Controls Rebate]))*MIN(IF(Table_NCSummary[[#This Row],[Fixture Cost]]<0,0,SUM(Table_NCSummary[Fixture Cost],Table_NCSummary[Controls Cost])),Table_NCSummary[[#This Row],[Fixture Rebate]]+IF(Table_NCSummary[[#This Row],[Controls Rebate]]=\"\",0,Table_NCSummary[[#This Row],[Controls Rebate]])),MIN(IF(Table_NCSummary[[#This Row],[Fixture Cost]]<0,0,SUM(Table_NCSummary[Fixture Cost],Table_NCSummary[Controls Cost])),Table_NCSummary[[#This Row],[Fixture Rebate]]+IF(Table_NCSummary[[#This Row],[Controls Rebate]]=\"\",0,Table_NCSummary[[#This Row],[Controls Rebate]])))),\"\")","v":""},{"$f":"IFERROR(IF(Table_NCSummary[[#This Row],[Fixture Cost]]=\"\",\"\",Table_NCSummary[[#This Row],[Fixture Cost]]+IF(Table_NCSummary[[#This Row],[Controls Cost]]=\"\",0,Table_NCSummary[[#This Row],[Controls Cost]])),\"\")","v":""},{"$f":"IFERROR(IF(Table_NCSummary[[#This Row],[IsActive]],IF(NOT(ISNUMBER(Table_NCSummary[[#This Row],[Fixture Rebate]])),\"\",IF(Table_NCInfo[[#This Row],[Interior/ Exterior]]=\"Interior\",IFERROR((Table_NCSummary[[#This Row],[Annual Fixture Savings (kWh)]]+Table_NCSummary[[#This Row],[Annual Control Savings (kWh)]])*(Table_NCSummary[[#This Row],[EIF]]-1),0),0)),\"\"),\"\")","v":""},{"$f":"IFERROR(IF(Table_NCSummary[[#This Row],[IsActive]],IF(NOT(ISNUMBER(Table_NCSummary[[#This Row],[Fixture Rebate]])),\"\",IF(Table_NCInfo[[#This Row],[Interior/ Exterior]]=\"Interior\",IFERROR((Table_NCSummary[[#This Row],[Fixture kW Reduction]]+Table_NCSummary[[#This Row],[Control kW Reduction]]/(Table_NCSummary[[#This Row],[CF (Ltg)]]*Table_NCSummary[[#This Row],[DF (Ltg)]]))*(Table_NCSummary[[#This Row],[DIF]]-1)*Table_NCSummary[[#This Row],[CF (HVAC)]]*Table_NCSummary[[#This Row],[DF (HVAC)]],0),0)),\"\"),\"\")","v":""},{"$f":"IFERROR(IF(Table_NCSummary[[#This Row],[IsActive]],IF(NOT(ISNUMBER(Table_NCSummary[[#This Row],[Fixture Rebate]])),\"\",ROUND(Table_NCSummary[[#This Row],[Annual Fixture Savings (kWh)]]+Table_NCSummary[[#This Row],[Annual Control Savings (kWh)]],0)),\"\"),\"\")","v":""},{"$f":"IFERROR(IF(Table_NCSummary[[#This Row],[IsActive]],IF(NOT(ISNUMBER(Table_NCSummary[[#This Row],[Fixture Rebate]])),\"\",ROUND(Table_NCSummary[[#This Row],[Fixture kW Reduction]]+Table_NCSummary[[#This Row],[Control kW Reduction]],3)),\"\"),\"\")","v":""},{"$f":"IFERROR(IF(Table_NCSummary[[#This Row],[IsActive]],IF(NOT(ISNUMBER(Table_NCSummary[[#This Row],[Fixture Rebate]])),\"\",ROUND(Table_NCSummary[[#This Row],[Fixture Energy Savings (kWh)]]+Table_NCSummary[[#This Row],[Induced HVAC Energy Savings (kWh)]],0)),\"\"),\"\")","v":""},{"$f":"IFERROR(IF(Table_NCSummary[[#This Row],[IsActive]],IF(NOT(ISNUMBER(Table_NCSummary[[#This Row],[Fixture Rebate]])),\"\",ROUND(Table_NCSummary[[#This Row],[Fixture Demand Savings (kW)]]+Table_NCSummary[[#This Row],[Induced HVAC Demand Savings (kW)]],3)),\"\"),\"\")","v":""}]
[{"$f":"IFERROR(Table_NCInfo[[#This Row],[Line]],\"\")","v":15},{"$f":"IFERROR(Table_NCInfo[[#This Row],[IsActive]],\"\")","v":false},{"$f":"IFERROR(IF(Table_NCSummary[[#This Row],[IsActive]],VLOOKUP(IF(ISNUMBER(MATCH(Table_NCInfo[[#This Row],[Line]],Table_NCInspection[Line],0)),INDEX(Table_NCInspection[Schedule],MATCH(Table_NCSummary[[#This Row],[Line Item]],Table_NCInspection[Line],0)),Table_NCInfo[[#This Row],[Schedule]]),'Customer Information'!$S$27:$T$34,2,FALSE),\"\"),\"\")","v":""},{"$f":"IFERROR(IF(Table_NCSummary[[#This Row],[IsActive]],INDEX(Table_IntLookups[EIF],MATCH(IF(ISNUMBER(MATCH(Table_NCSummary[[#This Row],[Line Item]],Table_NCInspection[Line],0)),INDEX(Table_NCInspection[Zone Description],MATCH(Table_NCSummary[[#This Row],[Line Item]],Table_NCInfo[Line],0)),Table_NCInfo[[#This Row],[Zone Description]]),Table_IntLookups[Dropdown],0)),\"\"),\"\")","v":""},{"$f":"IFERROR(IF(Table_NCSummary[[#This Row],[IsActive]],INDEX(Table_IntLookups[DIF],MATCH(IF(ISNUMBER(MATCH(Table_NCSummary[[#This Row],[Line Item]],Table_NCInspection[Line],0)),INDEX(Table_NCInspection[Zone Description],MATCH(Table_NCSummary[[#This Row],[Line Item]],Table_NCInfo[Line],0)),Table_NCInfo[[#This Row],[Zone Description]]),Table_IntLookups[Dropdown],0)),\"\"),\"\")","v":""},{"$f":"IFERROR(IF(Table_NCSummary[[#This Row],[IsActive]],INDEX(Table_IntLookups[CFltg],MATCH(IF(ISNUMBER(MATCH(Table_NCSummary[[#This Row],[Line Item]],Table_NCInspection[Line],0)),INDEX(Table_NCInspection[Zone Description],MATCH(Table_NCSummary[[#This Row],[Line Item]],Table_NCInfo[Line],0)),Table_NCInfo[[#This Row],[Zone Description]]),Table_IntLookups[Dropdown],0)),\"\"),\"\")","v":""},{"$f":"IFERROR(IF(Table_NCSummary[[#This Row],[IsActive]],INDEX(Table_IntLookups[DFltg],MATCH(IF(ISNUMBER(MATCH(Table_NCSummary[[#This Row],[Line Item]],Table_NCInspection[Line],0)),INDEX(Table_NCInspection[Zone Description],MATCH(Table_NCSummary[[#This Row],[Line Item]],Table_NCInfo[Line],0)),Table_NCInfo[[#This Row],[Zone Description]]),Table_IntLookups[Dropdown],0)),\"\"),\"\")","v":""},{"$f":"IFERROR(IF(Table_NCSummary[[#This Row],[IsActive]],INDEX(Table_IntLookups[Cfhvac],MATCH(IF(ISNUMBER(MATCH(Table_NCSummary[[#This Row],[Line Item]],Table_NCInspection[Line],0)),INDEX(Table_NCInspection[Zone Description],MATCH(Table_NCSummary[[#This Row],[Line Item]],Table_NCInfo[Line],0)),Table_NCInfo[[#This Row],[Zone Description]]),Table_IntLookups[Dropdown],0)),\"\"),\"\")","v":""},{"$f":"IFERROR(IF(Table_NCSummary[[#This Row],[IsActive]],INDEX(Table_IntLookups[Dfhvac],MATCH(IF(ISNUMBER(MATCH(Table_NCSummary[[#This Row],[Line Item]],Table_NCInspection[Line],0)),INDEX(Table_NCInspection[Zone Description],MATCH(Table_NCSummary[[#This Row],[Line Item]],Table_NCInfo[Line],0)),Table_NCInfo[[#This Row],[Zone Description]]),Table_IntLookups[Dropdown],0)),\"\"),\"\")","v":""},{"$f":"IFERROR(IF(Table_NCSummary[[#This Row],[IsActive]],\nIF(ISNUMBER(MATCH(Table_NCInfo[[#This Row],[Line]],Table_NCInspection[Line],0)),INDEX(Table_NCInspection[Zone Description],MATCH(Table_NCSummary[[#This Row],[Line Item]],Table_NCInspection[Line],0)),Table_NCInfo[[#This Row],[Zone Description]]),\n \"\"),\"\")","v":""},{"$f":"IFERROR(IF(Table_NCSummary[[#This Row],[IsActive]],\nCONCATENATE(\nIF(ISNUMBER(MATCH(Table_NCInfo[[#This Row],[Line]],Table_NCInspection[Line],0)),INDEX(Table_NCInspection[Interior/ Exterior],MATCH(Table_NCSummary[[#This Row],[Line Item]],Table_NCInspection[Line],0)),Table_NCInfo[[#This Row],[Interior/ Exterior]]),\n\" - \",\nIF(ISNUMBER(MATCH(Table_NCInfo[[#This Row],[Line]],Table_NCInspection[Line],0)),INDEX(Table_NCInspection[Space Description],MATCH(Table_NCSummary[[#This Row],[Line Item]],Table_NCInspection[Line],0)),Table_NCInfo[[#This Row],[Space Description]])),\n \"\"),\"\")","v":""},{"$f":"IFERROR(IF(ISNUMBER(MATCH(Table_NCInfo[[#This Row],[Line]],Table_NCInspection[Line],0)),INDEX(Table_NCInspection[Baseline Wattage],MATCH(Table_NCSummary[[#This Row],[Line Item]],Table_NCInspection[Line],0)),Table_NCInfo[[#This Row],[Baseline Wattage]]),\"\")","v":""},{"$f":"IFERROR(IF(Table_NCSummary[[#This Row],[IsActive]],Table_NCSummary[[#This Row],[Baseline Wattage]]/1000*Table_NCSummary[[#This Row],[OpHrs]],\"\"),\"\")","v":""},{"$f":"IFERROR(IF(Table_NCSummary[[#This Row],[IsActive]],IFERROR(VLOOKUP(IF(ISNUMBER(MATCH(Table_NCSummary[[#This Row],[Line Item]],Table_NCInspection[Line],0)),INDEX(Table_NCInspection[Zone '#],MATCH(Table_NCSummary[[#This Row],[Line Item]],Table_NCInspection[Line],0)),Table_NCInfo[[#This Row],[Zone '#]]),Table_IntLookups[],'Facility Information'!$AA$4,FALSE),0),\"\"),\"\")","v":""},{"$f":"IFERROR(IF(Table_NCSummary[[#This Row],[IsActive]],IFERROR(Table_NCSummary[[#This Row],[Baseline Wattage]]/1000*Table_NCSummary[[#This Row],[OpHrs]]*Table_NCSummary[[#This Row],[Existing CSF]]*(-1),0),\"\"),\"\")","v":""},{"$f":"IFERROR(Table_NCSummary[[#This Row],[Baseline kWh]]+Table_NCSummary[[#This Row],[Existing Fixture (Existing Controls) kWh]],\"\")","v":""},{"$f":"IFERROR(IF(Table_NCSummary[[#This Row],[IsActive]],IF(ISNUMBER(MATCH(Table_NCInfo[[#This Row],[Line]],Table_NCInspection[Line],0)),INDEX(Table_NCInspection[Fixture Description '[P']],MATCH(Table_NCSummary[[#This Row],[Line Item]],Table_NCInspection[Line],0)),Table_NCInfo[[#This Row],[Fixture Description '[P']]]),\"\"),\"\")","v":""},{"$f":"IFERROR(IF(Table_NCSummary[[#This Row],[IsActive]],IF(ISNUMBER(MATCH(Table_NCInfo[[#This Row],[Line]],Table_NCInspection[Line],0)),INDEX(Table_NCInspection['# Lamps/ Fixture '[P']],MATCH(Table_NCSummary[[#This Row],[Line Item]],Table_NCInspection[Line],0)),Table_NCInfo[[#This Row],['# Lamps/ Fixture '[P']]]),\"\"),\"\")","v":""},{"$f":"IFERROR(IF(Table_NCSummary[[#This Row],[IsActive]],IF(ISNUMBER(MATCH(Table_NCInfo[[#This Row],[Line]],Table_NCInspection[Line],0)),INDEX(Table_NCInspection[Fixture/ Lamp Wattage '[P']],MATCH(Table_NCSummary[[#This Row],[Line Item]],Table_NCInspection[Line],0)),Table_NCInfo[[#This Row],[Fixture/ Lamp Wattage '[P']]]),\"\"),\"\")","v":""},{"$f":"IFERROR(IF(Table_NCSummary[[#This Row],[IsActive]],IF(ISNUMBER(MATCH(Table_NCInfo[[#This Row],[Line]],Table_NCInspection[Line],0)),INDEX(Table_NCInspection[Fixture Qty '[P']],MATCH(Table_NCSummary[[#This Row],[Line Item]],Table_NCInspection[Line],0)),Table_NCInfo[[#This Row],[Fixture Qty '[P']]]),\"\"),\"\")","v":""},{"$f":"IFERROR(IF(Table_NCSummary[[#This Row],[IsActive]],Table_NCSummary[[#This Row],['# Lamps/ Fixture '[P']]]*Table_NCSummary[[#This Row],[P. Qty]],\"\"),\"\")","v":""},{"$f":"IFERROR(IF(Table_NCSummary[[#This Row],[IsActive]],IF(ISNUMBER(MATCH(Table_NCInfo[[#This Row],[Line]],Table_NCInspection[Line],0)),INDEX(Table_NCInspection[Fixture Wattage '[P']],MATCH(Table_NCSummary[[#This Row],[Line Item]],Table_NCInspection[Line],0)),Table_NCInfo[[#This Row],[Fixture Wattage '[P']]]),\"\"),\"\")","v":""},{"$f":"IFERROR(Table_NCSummary[[#This Row],[P. Qty]]*Table_NCSummary[[#This Row],[Proposed Fixture Wattage]],\"\")","v":""},{"$f":"IFERROR(Table_NCSummary[[#This Row],[Proposed Fixture Wattage]]/1000*Table_NCSummary[[#This Row],[OpHrs]]*Table_NCSummary[[#This Row],[P. Qty]],\"\")","v":""},{"$f":"IFERROR(IF(Table_NCSummary[[#This Row],[IsActive]],IFERROR(VLOOKUP(RIGHT(Table_NCSummary[[#This Row],[Proposed Fixture]],LEN(Table_NCSummary[[#This Row],[Proposed Fixture]])-FIND(\" - \",Table_NCSummary[[#This Row],[Proposed Fixture]],FIND(\"]\",Table_NCSummary[[#This Row],[Proposed Fixture]],1))-2),Table_ControlType[],3, FALSE),Table_NCSummary[[#This Row],[Existing CSF]]),\"\"),\"\")","v":""},{"$f":"IFERROR(IF(Table_NCSummary[[#This Row],[IsActive]],IFERROR(Table_NCSummary[[#This Row],[Proposed Fixture Wattage]]/1000*Table_NCSummary[[#This Row],[OpHrs]]*Table_NCSummary[[#This Row],[P. Qty]]*Table_NCSummary[[#This Row],[Existing CSF]]*(-1),0),\"\"),\"\")","v":""},{"$f":"IFERROR(Table_NCSummary[[#This Row],[Proposed Fixture kWh]]+Table_NCSummary[[#This Row],[Proposed Fixture (Existing Controls) kWh]],\"\")","v":""},{"$f":"IFERROR(IF(Table_NCSummary[[#This Row],[IsActive]],IFERROR(Table_NCSummary[[#This Row],[Proposed Fixture Wattage]]/1000*Table_NCSummary[[#This Row],[OpHrs]]*Table_NCSummary[[#This Row],[P. Qty]]*Table_NCSummary[[#This Row],[Proposed CSF]]*(-1),0),\"\"),\"\")","v":""},{"$f":"IFERROR(Table_NCSummary[[#This Row],[Proposed Fixture kWh]]+Table_NCSummary[[#This Row],[Proposed Fixture (Proposed Controls) kWh]],\"\")","v":""},null,{"$f":"IFERROR(IF(Table_NCSummary[[#This Row],[IsActive]],IF((1-SUMPRODUCT(Table_NCSummary[P. Qty],Table_NCSummary[Proposed Fixture Wattage])/SUM(Table_NCSummary[Baseline Wattage]))<0.1,\"Does Not Qualify [Overall Fixture Reduction is less than 10%]\",IF(ISNUMBER(FIND(\"LED\",Table_NCSummary[[#This Row],[Proposed Fixture]],1)),IF(ISNUMBER(FIND(\"LED Tube\",Table_NCSummary[[#This Row],[Proposed Fixture]],1)),\"New Construction Interior LED Fixture\",IF(ISNUMBER(FIND(\"LED\",Table_NCSummary[[#This Row],[Proposed Fixture]],1)),IF(Table_NCInfo[[#This Row],[Interior/ Exterior]]=\"Exterior\",\"New Construction Exterior LED Fixture\",\"New Construction Interior LED Fixture\"),\"Ineligible Fixture\")),\"Ineligible Fixture\")),\"\"),\"\")","v":""},{"$f":"IFERROR(VLOOKUP(Table_NCSummary[[#This Row],[Fixture Measure Description]],Table_FixtureRate[],2,FALSE),\"\")","v":""},{"$f":"IFERROR(IF(Table_NCSummary[[#This Row],[IsActive]],IF((1-SUMPRODUCT(Table_NCSummary[P. Qty],Table_NCSummary[Proposed Fixture Wattage])/SUM(Table_NCSummary[Baseline Wattage]))<0.1,\"DNQ [kW Reduction <10%]\",IF(Table_NCSummary[[#This Row],[Fixture Measure Description]]=\"Ineligible Fixture\",0,ROUND(Table_NCSummary[[#This Row],[Fixture Rebate (per kW)]]*(Table_NCSummary[[#This Row],[Baseline Wattage]]-Table_NCSummary[[#This Row],[Proposed Wattage]])/1000,2))),\"\"),\"\")","v":""},{"$f":"IFERROR(IF(Table_NCSummary[[#This Row],[Fixture Measure Description]]=\"Ineligible Fixture\",0,ROUND(IF(ProjectCost_Total=0,300000,ProjectCost_Total)*Table_NCSummary[[#This Row],[Fixture Rebate]]/SUM(Table_NCSummary[Fixture Rebate],Table_NCSummary[Controls Rebate]),2)),\"\")","v":""},{"$f":"IFERROR(IF(Table_NCSummary[[#This Row],[IsActive]],IF((1-SUMPRODUCT(Table_NCSummary[P. Qty],Table_NCSummary[Proposed Fixture Wattage])/SUM(Table_NCSummary[Baseline Wattage]))<0.1,\"DNQ [kW Reduction <10%]\",IF(Table_NCSummary[[#This Row],[Fixture Measure Description]]=\"Ineligible Fixture\",0,Table_NCSummary[[#This Row],[Existing Overall kWh]]-Table_NCSummary[[#This Row],[Proposed Overall kWh (Existing Controls)]])),\"\"),\"\")","v":""},{"$f":"IFERROR(IF(Table_NCSummary[[#This Row],[IsActive]],IF((1-SUMPRODUCT(Table_NCSummary[P. Qty],Table_NCSummary[Proposed Fixture Wattage])/SUM(Table_NCSummary[Baseline Wattage]))<0.1,\"DNQ [kW Reduction <10%]\",IF(OR(Table_NCSummary[[#This Row],[Fixture Measure Description]]=\"Ineligible Fixture\",Table_NCSummary[[#This Row],[Fixture Measure Description]]=\"New Construction Exterior LED Fixture\"),0,(Table_NCSummary[[#This Row],[Baseline kWh]]-Table_NCSummary[[#This Row],[Proposed Fixture kWh]])/Table_NCSummary[[#This Row],[OpHrs]]*Table_NCSummary[[#This Row],[CF (Ltg)]]*Table_NCSummary[[#This Row],[DF (Ltg)]])),\"\"),\"\")","v":""},null,{"$f":"IFERROR(\n  IF(OR(Table_NCSummary[[#This Row],[Fixture Measure Description]]=\"\",Table_NCSummary[[#This Row],[Fixture Measure Description]]=\"Ineligible Fixture\"),\n    \"\",\n    \"New Construction\"\n    & \" - \" &\n    IFERROR(VLOOKUP(RIGHT(Table_NCSummary[[#This Row],[Proposed Fixture]],LEN(Table_NCSummary[[#This Row],[Proposed Fixture]])-FIND(\" - \",Table_NCSummary[[#This Row],[Proposed Fixture]],FIND(\"]\",Table_NCSummary[[#This Row],[Proposed Fixture]],1))-2),Table_ControlType[],2, FALSE),None)),\n\"\")","v":""},{"$f":"IFERROR(VLOOKUP(Table_NCSummary[[#This Row],[Controls Measure Description]],Table_ControlRate[],2,FALSE),\"\")","v":""},{"$f":"IFERROR(IF(Table_NCSummary[[#This Row],[IsActive]],IF((1-SUMPRODUCT(Table_NCSummary[P. Qty],Table_NCSummary[Proposed Fixture Wattage])/SUM(Table_NCSummary[Baseline Wattage]))<0.1,\"DNQ [kW Reduction <10%]\",IF(OR(Table_NCSummary[[#This Row],[Controls Measure Description]]=\"\",Table_NCSummary[[#This Row],[Controls Measure Description]]=\"New Construction - No Controls\"),0,ROUND(Table_NCSummary[[#This Row],[Controls Rebate (per Fixt Watt)]]*Table_NCSummary[[#This Row],[Proposed Fixture Wattage]]*Table_NCSummary[[#This Row],[P. Qty]],2))),\"\"),\"\")","v":""},{"$f":"IFERROR(IF(Table_NCSummary[[#This Row],[Fixture Measure Description]]=\"Ineligible Fixture\",0,ROUND(IF(ProjectCost_Total=0,300000,ProjectCost_Total)*Table_NCSummary[[#This Row],[Controls Rebate]]/SUM(Table_NCSummary[Fixture Rebate],Table_NCSummary[Controls Rebate]),2)),\"\")","v":""},{"$f":"IFERROR(IF(Table_NCSummary[[#This Row],[IsActive]],IF((1-SUMPRODUCT(Table_NCSummary[P. Qty],Table_NCSummary[Proposed Fixture Wattage])/SUM(Table_NCSummary[Baseline Wattage]))<0.1,\"DNQ [kW Reduction <10%]\",IF(Table_NCSummary[[#This Row],[Controls Measure Description]]=\"\",0,(Table_NCSummary[[#This Row],[Proposed Fixture (Existing Controls) kWh]]-Table_NCSummary[[#This Row],[Proposed Fixture (Proposed Controls) kWh]]))),\"\"),\"\")","v":""},{"$f":"IFERROR(IF(Table_NCSummary[[#This Row],[IsActive]],IF((1-SUMPRODUCT(Table_NCSummary[P. Qty],Table_NCSummary[Proposed Fixture Wattage])/SUM(Table_NCSummary[Baseline Wattage]))<0.1,\"DNQ [kW Reduction <10%]\",IF(OR(Table_NCSummary[[#This Row],[Controls Measure Description]]=\"\",Table_NCSummary[[#This Row],[Controls Measure Description]]=\"New Construction - No Controls\"),0,(Table_NCSummary[[#This Row],[Proposed Fixture (Existing Controls) kWh]]-Table_NCSummary[[#This Row],[Proposed Fixture (Proposed Controls) kWh]])/Table_NCSummary[[#This Row],[OpHrs]]*Table_NCSummary[[#This Row],[CF (Ltg)]]*Table_NCSummary[[#This Row],[DF (Ltg)]])),\"\"),\"\")","v":""},null,{"$f":"IFERROR(IF(NOT(ISNUMBER(Table_NCSummary[[#This Row],[Fixture Rebate]])),\"\",IF(MIN(IF(Table_NCSummary[[#This Row],[Fixture Cost]]<0,0,SUM(Table_NCSummary[Fixture Cost],Table_NCSummary[Controls Cost])),SUM(Table_NCSummary[Fixture Rebate],Table_NCSummary[Controls Rebate]))>300000,300000/MIN(IF(Table_NCSummary[[#This Row],[Fixture Cost]]<0,0,SUM(Table_NCSummary[Fixture Cost],Table_NCSummary[Controls Cost])),SUM(Table_NCSummary[Fixture Rebate],Table_NCSummary[Controls Rebate]))*MIN(IF(Table_NCSummary[[#This Row],[Fixture Cost]]<0,0,SUM(Table_NCSummary[Fixture Cost],Table_NCSummary[Controls Cost])),Table_NCSummary[[#This Row],[Fixture Rebate]]+IF(Table_NCSummary[[#This Row],[Controls Rebate]]=\"\",0,Table_NCSummary[[#This Row],[Controls Rebate]])),MIN(IF(Table_NCSummary[[#This Row],[Fixture Cost]]<0,0,SUM(Table_NCSummary[Fixture Cost],Table_NCSummary[Controls Cost])),Table_NCSummary[[#This Row],[Fixture Rebate]]+IF(Table_NCSummary[[#This Row],[Controls Rebate]]=\"\",0,Table_NCSummary[[#This Row],[Controls Rebate]])))),\"\")","v":""},{"$f":"IFERROR(IF(Table_NCSummary[[#This Row],[Fixture Cost]]=\"\",\"\",Table_NCSummary[[#This Row],[Fixture Cost]]+IF(Table_NCSummary[[#This Row],[Controls Cost]]=\"\",0,Table_NCSummary[[#This Row],[Controls Cost]])),\"\")","v":""},{"$f":"IFERROR(IF(Table_NCSummary[[#This Row],[IsActive]],IF(NOT(ISNUMBER(Table_NCSummary[[#This Row],[Fixture Rebate]])),\"\",IF(Table_NCInfo[[#This Row],[Interior/ Exterior]]=\"Interior\",IFERROR((Table_NCSummary[[#This Row],[Annual Fixture Savings (kWh)]]+Table_NCSummary[[#This Row],[Annual Control Savings (kWh)]])*(Table_NCSummary[[#This Row],[EIF]]-1),0),0)),\"\"),\"\")","v":""},{"$f":"IFERROR(IF(Table_NCSummary[[#This Row],[IsActive]],IF(NOT(ISNUMBER(Table_NCSummary[[#This Row],[Fixture Rebate]])),\"\",IF(Table_NCInfo[[#This Row],[Interior/ Exterior]]=\"Interior\",IFERROR((Table_NCSummary[[#This Row],[Fixture kW Reduction]]+Table_NCSummary[[#This Row],[Control kW Reduction]]/(Table_NCSummary[[#This Row],[CF (Ltg)]]*Table_NCSummary[[#This Row],[DF (Ltg)]]))*(Table_NCSummary[[#This Row],[DIF]]-1)*Table_NCSummary[[#This Row],[CF (HVAC)]]*Table_NCSummary[[#This Row],[DF (HVAC)]],0),0)),\"\"),\"\")","v":""},{"$f":"IFERROR(IF(Table_NCSummary[[#This Row],[IsActive]],IF(NOT(ISNUMBER(Table_NCSummary[[#This Row],[Fixture Rebate]])),\"\",ROUND(Table_NCSummary[[#This Row],[Annual Fixture Savings (kWh)]]+Table_NCSummary[[#This Row],[Annual Control Savings (kWh)]],0)),\"\"),\"\")","v":""},{"$f":"IFERROR(IF(Table_NCSummary[[#This Row],[IsActive]],IF(NOT(ISNUMBER(Table_NCSummary[[#This Row],[Fixture Rebate]])),\"\",ROUND(Table_NCSummary[[#This Row],[Fixture kW Reduction]]+Table_NCSummary[[#This Row],[Control kW Reduction]],3)),\"\"),\"\")","v":""},{"$f":"IFERROR(IF(Table_NCSummary[[#This Row],[IsActive]],IF(NOT(ISNUMBER(Table_NCSummary[[#This Row],[Fixture Rebate]])),\"\",ROUND(Table_NCSummary[[#This Row],[Fixture Energy Savings (kWh)]]+Table_NCSummary[[#This Row],[Induced HVAC Energy Savings (kWh)]],0)),\"\"),\"\")","v":""},{"$f":"IFERROR(IF(Table_NCSummary[[#This Row],[IsActive]],IF(NOT(ISNUMBER(Table_NCSummary[[#This Row],[Fixture Rebate]])),\"\",ROUND(Table_NCSummary[[#This Row],[Fixture Demand Savings (kW)]]+Table_NCSummary[[#This Row],[Induced HVAC Demand Savings (kW)]],3)),\"\"),\"\")","v":""}]
[{"$f":"IFERROR(Table_NCInfo[[#This Row],[Line]],\"\")","v":16},{"$f":"IFERROR(Table_NCInfo[[#This Row],[IsActive]],\"\")","v":false},{"$f":"IFERROR(IF(Table_NCSummary[[#This Row],[IsActive]],VLOOKUP(IF(ISNUMBER(MATCH(Table_NCInfo[[#This Row],[Line]],Table_NCInspection[Line],0)),INDEX(Table_NCInspection[Schedule],MATCH(Table_NCSummary[[#This Row],[Line Item]],Table_NCInspection[Line],0)),Table_NCInfo[[#This Row],[Schedule]]),'Customer Information'!$S$27:$T$34,2,FALSE),\"\"),\"\")","v":""},{"$f":"IFERROR(IF(Table_NCSummary[[#This Row],[IsActive]],INDEX(Table_IntLookups[EIF],MATCH(IF(ISNUMBER(MATCH(Table_NCSummary[[#This Row],[Line Item]],Table_NCInspection[Line],0)),INDEX(Table_NCInspection[Zone Description],MATCH(Table_NCSummary[[#This Row],[Line Item]],Table_NCInfo[Line],0)),Table_NCInfo[[#This Row],[Zone Description]]),Table_IntLookups[Dropdown],0)),\"\"),\"\")","v":""},{"$f":"IFERROR(IF(Table_NCSummary[[#This Row],[IsActive]],INDEX(Table_IntLookups[DIF],MATCH(IF(ISNUMBER(MATCH(Table_NCSummary[[#This Row],[Line Item]],Table_NCInspection[Line],0)),INDEX(Table_NCInspection[Zone Description],MATCH(Table_NCSummary[[#This Row],[Line Item]],Table_NCInfo[Line],0)),Table_NCInfo[[#This Row],[Zone Description]]),Table_IntLookups[Dropdown],0)),\"\"),\"\")","v":""},{"$f":"IFERROR(IF(Table_NCSummary[[#This Row],[IsActive]],INDEX(Table_IntLookups[CFltg],MATCH(IF(ISNUMBER(MATCH(Table_NCSummary[[#This Row],[Line Item]],Table_NCInspection[Line],0)),INDEX(Table_NCInspection[Zone Description],MATCH(Table_NCSummary[[#This Row],[Line Item]],Table_NCInfo[Line],0)),Table_NCInfo[[#This Row],[Zone Description]]),Table_IntLookups[Dropdown],0)),\"\"),\"\")","v":""},{"$f":"IFERROR(IF(Table_NCSummary[[#This Row],[IsActive]],INDEX(Table_IntLookups[DFltg],MATCH(IF(ISNUMBER(MATCH(Table_NCSummary[[#This Row],[Line Item]],Table_NCInspection[Line],0)),INDEX(Table_NCInspection[Zone Description],MATCH(Table_NCSummary[[#This Row],[Line Item]],Table_NCInfo[Line],0)),Table_NCInfo[[#This Row],[Zone Description]]),Table_IntLookups[Dropdown],0)),\"\"),\"\")","v":""},{"$f":"IFERROR(IF(Table_NCSummary[[#This Row],[IsActive]],INDEX(Table_IntLookups[Cfhvac],MATCH(IF(ISNUMBER(MATCH(Table_NCSummary[[#This Row],[Line Item]],Table_NCInspection[Line],0)),INDEX(Table_NCInspection[Zone Description],MATCH(Table_NCSummary[[#This Row],[Line Item]],Table_NCInfo[Line],0)),Table_NCInfo[[#This Row],[Zone Description]]),Table_IntLookups[Dropdown],0)),\"\"),\"\")","v":""},{"$f":"IFERROR(IF(Table_NCSummary[[#This Row],[IsActive]],INDEX(Table_IntLookups[Dfhvac],MATCH(IF(ISNUMBER(MATCH(Table_NCSummary[[#This Row],[Line Item]],Table_NCInspection[Line],0)),INDEX(Table_NCInspection[Zone Description],MATCH(Table_NCSummary[[#This Row],[Line Item]],Table_NCInfo[Line],0)),Table_NCInfo[[#This Row],[Zone Description]]),Table_IntLookups[Dropdown],0)),\"\"),\"\")","v":""},{"$f":"IFERROR(IF(Table_NCSummary[[#This Row],[IsActive]],\nIF(ISNUMBER(MATCH(Table_NCInfo[[#This Row],[Line]],Table_NCInspection[Line],0)),INDEX(Table_NCInspection[Zone Description],MATCH(Table_NCSummary[[#This Row],[Line Item]],Table_NCInspection[Line],0)),Table_NCInfo[[#This Row],[Zone Description]]),\n \"\"),\"\")","v":""},{"$f":"IFERROR(IF(Table_NCSummary[[#This Row],[IsActive]],\nCONCATENATE(\nIF(ISNUMBER(MATCH(Table_NCInfo[[#This Row],[Line]],Table_NCInspection[Line],0)),INDEX(Table_NCInspection[Interior/ Exterior],MATCH(Table_NCSummary[[#This Row],[Line Item]],Table_NCInspection[Line],0)),Table_NCInfo[[#This Row],[Interior/ Exterior]]),\n\" - \",\nIF(ISNUMBER(MATCH(Table_NCInfo[[#This Row],[Line]],Table_NCInspection[Line],0)),INDEX(Table_NCInspection[Space Description],MATCH(Table_NCSummary[[#This Row],[Line Item]],Table_NCInspection[Line],0)),Table_NCInfo[[#This Row],[Space Description]])),\n \"\"),\"\")","v":""},{"$f":"IFERROR(IF(ISNUMBER(MATCH(Table_NCInfo[[#This Row],[Line]],Table_NCInspection[Line],0)),INDEX(Table_NCInspection[Baseline Wattage],MATCH(Table_NCSummary[[#This Row],[Line Item]],Table_NCInspection[Line],0)),Table_NCInfo[[#This Row],[Baseline Wattage]]),\"\")","v":""},{"$f":"IFERROR(IF(Table_NCSummary[[#This Row],[IsActive]],Table_NCSummary[[#This Row],[Baseline Wattage]]/1000*Table_NCSummary[[#This Row],[OpHrs]],\"\"),\"\")","v":""},{"$f":"IFERROR(IF(Table_NCSummary[[#This Row],[IsActive]],IFERROR(VLOOKUP(IF(ISNUMBER(MATCH(Table_NCSummary[[#This Row],[Line Item]],Table_NCInspection[Line],0)),INDEX(Table_NCInspection[Zone '#],MATCH(Table_NCSummary[[#This Row],[Line Item]],Table_NCInspection[Line],0)),Table_NCInfo[[#This Row],[Zone '#]]),Table_IntLookups[],'Facility Information'!$AA$4,FALSE),0),\"\"),\"\")","v":""},{"$f":"IFERROR(IF(Table_NCSummary[[#This Row],[IsActive]],IFERROR(Table_NCSummary[[#This Row],[Baseline Wattage]]/1000*Table_NCSummary[[#This Row],[OpHrs]]*Table_NCSummary[[#This Row],[Existing CSF]]*(-1),0),\"\"),\"\")","v":""},{"$f":"IFERROR(Table_NCSummary[[#This Row],[Baseline kWh]]+Table_NCSummary[[#This Row],[Existing Fixture (Existing Controls) kWh]],\"\")","v":""},{"$f":"IFERROR(IF(Table_NCSummary[[#This Row],[IsActive]],IF(ISNUMBER(MATCH(Table_NCInfo[[#This Row],[Line]],Table_NCInspection[Line],0)),INDEX(Table_NCInspection[Fixture Description '[P']],MATCH(Table_NCSummary[[#This Row],[Line Item]],Table_NCInspection[Line],0)),Table_NCInfo[[#This Row],[Fixture Description '[P']]]),\"\"),\"\")","v":""},{"$f":"IFERROR(IF(Table_NCSummary[[#This Row],[IsActive]],IF(ISNUMBER(MATCH(Table_NCInfo[[#This Row],[Line]],Table_NCInspection[Line],0)),INDEX(Table_NCInspection['# Lamps/ Fixture '[P']],MATCH(Table_NCSummary[[#This Row],[Line Item]],Table_NCInspection[Line],0)),Table_NCInfo[[#This Row],['# Lamps/ Fixture '[P']]]),\"\"),\"\")","v":""},{"$f":"IFERROR(IF(Table_NCSummary[[#This Row],[IsActive]],IF(ISNUMBER(MATCH(Table_NCInfo[[#This Row],[Line]],Table_NCInspection[Line],0)),INDEX(Table_NCInspection[Fixture/ Lamp Wattage '[P']],MATCH(Table_NCSummary[[#This Row],[Line Item]],Table_NCInspection[Line],0)),Table_NCInfo[[#This Row],[Fixture/ Lamp Wattage '[P']]]),\"\"),\"\")","v":""},{"$f":"IFERROR(IF(Table_NCSummary[[#This Row],[IsActive]],IF(ISNUMBER(MATCH(Table_NCInfo[[#This Row],[Line]],Table_NCInspection[Line],0)),INDEX(Table_NCInspection[Fixture Qty '[P']],MATCH(Table_NCSummary[[#This Row],[Line Item]],Table_NCInspection[Line],0)),Table_NCInfo[[#This Row],[Fixture Qty '[P']]]),\"\"),\"\")","v":""},{"$f":"IFERROR(IF(Table_NCSummary[[#This Row],[IsActive]],Table_NCSummary[[#This Row],['# Lamps/ Fixture '[P']]]*Table_NCSummary[[#This Row],[P. Qty]],\"\"),\"\")","v":""},{"$f":"IFERROR(IF(Table_NCSummary[[#This Row],[IsActive]],IF(ISNUMBER(MATCH(Table_NCInfo[[#This Row],[Line]],Table_NCInspection[Line],0)),INDEX(Table_NCInspection[Fixture Wattage '[P']],MATCH(Table_NCSummary[[#This Row],[Line Item]],Table_NCInspection[Line],0)),Table_NCInfo[[#This Row],[Fixture Wattage '[P']]]),\"\"),\"\")","v":""},{"$f":"IFERROR(Table_NCSummary[[#This Row],[P. Qty]]*Table_NCSummary[[#This Row],[Proposed Fixture Wattage]],\"\")","v":""},{"$f":"IFERROR(Table_NCSummary[[#This Row],[Proposed Fixture Wattage]]/1000*Table_NCSummary[[#This Row],[OpHrs]]*Table_NCSummary[[#This Row],[P. Qty]],\"\")","v":""},{"$f":"IFERROR(IF(Table_NCSummary[[#This Row],[IsActive]],IFERROR(VLOOKUP(RIGHT(Table_NCSummary[[#This Row],[Proposed Fixture]],LEN(Table_NCSummary[[#This Row],[Proposed Fixture]])-FIND(\" - \",Table_NCSummary[[#This Row],[Proposed Fixture]],FIND(\"]\",Table_NCSummary[[#This Row],[Proposed Fixture]],1))-2),Table_ControlType[],3, FALSE),Table_NCSummary[[#This Row],[Existing CSF]]),\"\"),\"\")","v":""},{"$f":"IFERROR(IF(Table_NCSummary[[#This Row],[IsActive]],IFERROR(Table_NCSummary[[#This Row],[Proposed Fixture Wattage]]/1000*Table_NCSummary[[#This Row],[OpHrs]]*Table_NCSummary[[#This Row],[P. Qty]]*Table_NCSummary[[#This Row],[Existing CSF]]*(-1),0),\"\"),\"\")","v":""},{"$f":"IFERROR(Table_NCSummary[[#This Row],[Proposed Fixture kWh]]+Table_NCSummary[[#This Row],[Proposed Fixture (Existing Controls) kWh]],\"\")","v":""},{"$f":"IFERROR(IF(Table_NCSummary[[#This Row],[IsActive]],IFERROR(Table_NCSummary[[#This Row],[Proposed Fixture Wattage]]/1000*Table_NCSummary[[#This Row],[OpHrs]]*Table_NCSummary[[#This Row],[P. Qty]]*Table_NCSummary[[#This Row],[Proposed CSF]]*(-1),0),\"\"),\"\")","v":""},{"$f":"IFERROR(Table_NCSummary[[#This Row],[Proposed Fixture kWh]]+Table_NCSummary[[#This Row],[Proposed Fixture (Proposed Controls) kWh]],\"\")","v":""},null,{"$f":"IFERROR(IF(Table_NCSummary[[#This Row],[IsActive]],IF((1-SUMPRODUCT(Table_NCSummary[P. Qty],Table_NCSummary[Proposed Fixture Wattage])/SUM(Table_NCSummary[Baseline Wattage]))<0.1,\"Does Not Qualify [Overall Fixture Reduction is less than 10%]\",IF(ISNUMBER(FIND(\"LED\",Table_NCSummary[[#This Row],[Proposed Fixture]],1)),IF(ISNUMBER(FIND(\"LED Tube\",Table_NCSummary[[#This Row],[Proposed Fixture]],1)),\"New Construction Interior LED Fixture\",IF(ISNUMBER(FIND(\"LED\",Table_NCSummary[[#This Row],[Proposed Fixture]],1)),IF(Table_NCInfo[[#This Row],[Interior/ Exterior]]=\"Exterior\",\"New Construction Exterior LED Fixture\",\"New Construction Interior LED Fixture\"),\"Ineligible Fixture\")),\"Ineligible Fixture\")),\"\"),\"\")","v":""},{"$f":"IFERROR(VLOOKUP(Table_NCSummary[[#This Row],[Fixture Measure Description]],Table_FixtureRate[],2,FALSE),\"\")","v":""},{"$f":"IFERROR(IF(Table_NCSummary[[#This Row],[IsActive]],IF((1-SUMPRODUCT(Table_NCSummary[P. Qty],Table_NCSummary[Proposed Fixture Wattage])/SUM(Table_NCSummary[Baseline Wattage]))<0.1,\"DNQ [kW Reduction <10%]\",IF(Table_NCSummary[[#This Row],[Fixture Measure Description]]=\"Ineligible Fixture\",0,ROUND(Table_NCSummary[[#This Row],[Fixture Rebate (per kW)]]*(Table_NCSummary[[#This Row],[Baseline Wattage]]-Table_NCSummary[[#This Row],[Proposed Wattage]])/1000,2))),\"\"),\"\")","v":""},{"$f":"IFERROR(IF(Table_NCSummary[[#This Row],[Fixture Measure Description]]=\"Ineligible Fixture\",0,ROUND(IF(ProjectCost_Total=0,300000,ProjectCost_Total)*Table_NCSummary[[#This Row],[Fixture Rebate]]/SUM(Table_NCSummary[Fixture Rebate],Table_NCSummary[Controls Rebate]),2)),\"\")","v":""},{"$f":"IFERROR(IF(Table_NCSummary[[#This Row],[IsActive]],IF((1-SUMPRODUCT(Table_NCSummary[P. Qty],Table_NCSummary[Proposed Fixture Wattage])/SUM(Table_NCSummary[Baseline Wattage]))<0.1,\"DNQ [kW Reduction <10%]\",IF(Table_NCSummary[[#This Row],[Fixture Measure Description]]=\"Ineligible Fixture\",0,Table_NCSummary[[#This Row],[Existing Overall kWh]]-Table_NCSummary[[#This Row],[Proposed Overall kWh (Existing Controls)]])),\"\"),\"\")","v":""},{"$f":"IFERROR(IF(Table_NCSummary[[#This Row],[IsActive]],IF((1-SUMPRODUCT(Table_NCSummary[P. Qty],Table_NCSummary[Proposed Fixture Wattage])/SUM(Table_NCSummary[Baseline Wattage]))<0.1,\"DNQ [kW Reduction <10%]\",IF(OR(Table_NCSummary[[#This Row],[Fixture Measure Description]]=\"Ineligible Fixture\",Table_NCSummary[[#This Row],[Fixture Measure Description]]=\"New Construction Exterior LED Fixture\"),0,(Table_NCSummary[[#This Row],[Baseline kWh]]-Table_NCSummary[[#This Row],[Proposed Fixture kWh]])/Table_NCSummary[[#This Row],[OpHrs]]*Table_NCSummary[[#This Row],[CF (Ltg)]]*Table_NCSummary[[#This Row],[DF (Ltg)]])),\"\"),\"\")","v":""},null,{"$f":"IFERROR(\n  IF(OR(Table_NCSummary[[#This Row],[Fixture Measure Description]]=\"\",Table_NCSummary[[#This Row],[Fixture Measure Description]]=\"Ineligible Fixture\"),\n    \"\",\n    \"New Construction\"\n    & \" - \" &\n    IFERROR(VLOOKUP(RIGHT(Table_NCSummary[[#This Row],[Proposed Fixture]],LEN(Table_NCSummary[[#This Row],[Proposed Fixture]])-FIND(\" - \",Table_NCSummary[[#This Row],[Proposed Fixture]],FIND(\"]\",Table_NCSummary[[#This Row],[Proposed Fixture]],1))-2),Table_ControlType[],2, FALSE),None)),\n\"\")","v":""},{"$f":"IFERROR(VLOOKUP(Table_NCSummary[[#This Row],[Controls Measure Description]],Table_ControlRate[],2,FALSE),\"\")","v":""},{"$f":"IFERROR(IF(Table_NCSummary[[#This Row],[IsActive]],IF((1-SUMPRODUCT(Table_NCSummary[P. Qty],Table_NCSummary[Proposed Fixture Wattage])/SUM(Table_NCSummary[Baseline Wattage]))<0.1,\"DNQ [kW Reduction <10%]\",IF(OR(Table_NCSummary[[#This Row],[Controls Measure Description]]=\"\",Table_NCSummary[[#This Row],[Controls Measure Description]]=\"New Construction - No Controls\"),0,ROUND(Table_NCSummary[[#This Row],[Controls Rebate (per Fixt Watt)]]*Table_NCSummary[[#This Row],[Proposed Fixture Wattage]]*Table_NCSummary[[#This Row],[P. Qty]],2))),\"\"),\"\")","v":""},{"$f":"IFERROR(IF(Table_NCSummary[[#This Row],[Fixture Measure Description]]=\"Ineligible Fixture\",0,ROUND(IF(ProjectCost_Total=0,300000,ProjectCost_Total)*Table_NCSummary[[#This Row],[Controls Rebate]]/SUM(Table_NCSummary[Fixture Rebate],Table_NCSummary[Controls Rebate]),2)),\"\")","v":""},{"$f":"IFERROR(IF(Table_NCSummary[[#This Row],[IsActive]],IF((1-SUMPRODUCT(Table_NCSummary[P. Qty],Table_NCSummary[Proposed Fixture Wattage])/SUM(Table_NCSummary[Baseline Wattage]))<0.1,\"DNQ [kW Reduction <10%]\",IF(Table_NCSummary[[#This Row],[Controls Measure Description]]=\"\",0,(Table_NCSummary[[#This Row],[Proposed Fixture (Existing Controls) kWh]]-Table_NCSummary[[#This Row],[Proposed Fixture (Proposed Controls) kWh]]))),\"\"),\"\")","v":""},{"$f":"IFERROR(IF(Table_NCSummary[[#This Row],[IsActive]],IF((1-SUMPRODUCT(Table_NCSummary[P. Qty],Table_NCSummary[Proposed Fixture Wattage])/SUM(Table_NCSummary[Baseline Wattage]))<0.1,\"DNQ [kW Reduction <10%]\",IF(OR(Table_NCSummary[[#This Row],[Controls Measure Description]]=\"\",Table_NCSummary[[#This Row],[Controls Measure Description]]=\"New Construction - No Controls\"),0,(Table_NCSummary[[#This Row],[Proposed Fixture (Existing Controls) kWh]]-Table_NCSummary[[#This Row],[Proposed Fixture (Proposed Controls) kWh]])/Table_NCSummary[[#This Row],[OpHrs]]*Table_NCSummary[[#This Row],[CF (Ltg)]]*Table_NCSummary[[#This Row],[DF (Ltg)]])),\"\"),\"\")","v":""},null,{"$f":"IFERROR(IF(NOT(ISNUMBER(Table_NCSummary[[#This Row],[Fixture Rebate]])),\"\",IF(MIN(IF(Table_NCSummary[[#This Row],[Fixture Cost]]<0,0,SUM(Table_NCSummary[Fixture Cost],Table_NCSummary[Controls Cost])),SUM(Table_NCSummary[Fixture Rebate],Table_NCSummary[Controls Rebate]))>300000,300000/MIN(IF(Table_NCSummary[[#This Row],[Fixture Cost]]<0,0,SUM(Table_NCSummary[Fixture Cost],Table_NCSummary[Controls Cost])),SUM(Table_NCSummary[Fixture Rebate],Table_NCSummary[Controls Rebate]))*MIN(IF(Table_NCSummary[[#This Row],[Fixture Cost]]<0,0,SUM(Table_NCSummary[Fixture Cost],Table_NCSummary[Controls Cost])),Table_NCSummary[[#This Row],[Fixture Rebate]]+IF(Table_NCSummary[[#This Row],[Controls Rebate]]=\"\",0,Table_NCSummary[[#This Row],[Controls Rebate]])),MIN(IF(Table_NCSummary[[#This Row],[Fixture Cost]]<0,0,SUM(Table_NCSummary[Fixture Cost],Table_NCSummary[Controls Cost])),Table_NCSummary[[#This Row],[Fixture Rebate]]+IF(Table_NCSummary[[#This Row],[Controls Rebate]]=\"\",0,Table_NCSummary[[#This Row],[Controls Rebate]])))),\"\")","v":""},{"$f":"IFERROR(IF(Table_NCSummary[[#This Row],[Fixture Cost]]=\"\",\"\",Table_NCSummary[[#This Row],[Fixture Cost]]+IF(Table_NCSummary[[#This Row],[Controls Cost]]=\"\",0,Table_NCSummary[[#This Row],[Controls Cost]])),\"\")","v":""},{"$f":"IFERROR(IF(Table_NCSummary[[#This Row],[IsActive]],IF(NOT(ISNUMBER(Table_NCSummary[[#This Row],[Fixture Rebate]])),\"\",IF(Table_NCInfo[[#This Row],[Interior/ Exterior]]=\"Interior\",IFERROR((Table_NCSummary[[#This Row],[Annual Fixture Savings (kWh)]]+Table_NCSummary[[#This Row],[Annual Control Savings (kWh)]])*(Table_NCSummary[[#This Row],[EIF]]-1),0),0)),\"\"),\"\")","v":""},{"$f":"IFERROR(IF(Table_NCSummary[[#This Row],[IsActive]],IF(NOT(ISNUMBER(Table_NCSummary[[#This Row],[Fixture Rebate]])),\"\",IF(Table_NCInfo[[#This Row],[Interior/ Exterior]]=\"Interior\",IFERROR((Table_NCSummary[[#This Row],[Fixture kW Reduction]]+Table_NCSummary[[#This Row],[Control kW Reduction]]/(Table_NCSummary[[#This Row],[CF (Ltg)]]*Table_NCSummary[[#This Row],[DF (Ltg)]]))*(Table_NCSummary[[#This Row],[DIF]]-1)*Table_NCSummary[[#This Row],[CF (HVAC)]]*Table_NCSummary[[#This Row],[DF (HVAC)]],0),0)),\"\"),\"\")","v":""},{"$f":"IFERROR(IF(Table_NCSummary[[#This Row],[IsActive]],IF(NOT(ISNUMBER(Table_NCSummary[[#This Row],[Fixture Rebate]])),\"\",ROUND(Table_NCSummary[[#This Row],[Annual Fixture Savings (kWh)]]+Table_NCSummary[[#This Row],[Annual Control Savings (kWh)]],0)),\"\"),\"\")","v":""},{"$f":"IFERROR(IF(Table_NCSummary[[#This Row],[IsActive]],IF(NOT(ISNUMBER(Table_NCSummary[[#This Row],[Fixture Rebate]])),\"\",ROUND(Table_NCSummary[[#This Row],[Fixture kW Reduction]]+Table_NCSummary[[#This Row],[Control kW Reduction]],3)),\"\"),\"\")","v":""},{"$f":"IFERROR(IF(Table_NCSummary[[#This Row],[IsActive]],IF(NOT(ISNUMBER(Table_NCSummary[[#This Row],[Fixture Rebate]])),\"\",ROUND(Table_NCSummary[[#This Row],[Fixture Energy Savings (kWh)]]+Table_NCSummary[[#This Row],[Induced HVAC Energy Savings (kWh)]],0)),\"\"),\"\")","v":""},{"$f":"IFERROR(IF(Table_NCSummary[[#This Row],[IsActive]],IF(NOT(ISNUMBER(Table_NCSummary[[#This Row],[Fixture Rebate]])),\"\",ROUND(Table_NCSummary[[#This Row],[Fixture Demand Savings (kW)]]+Table_NCSummary[[#This Row],[Induced HVAC Demand Savings (kW)]],3)),\"\"),\"\")","v":""}]
[{"$f":"IFERROR(Table_NCInfo[[#This Row],[Line]],\"\")","v":17},{"$f":"IFERROR(Table_NCInfo[[#This Row],[IsActive]],\"\")","v":false},{"$f":"IFERROR(IF(Table_NCSummary[[#This Row],[IsActive]],VLOOKUP(IF(ISNUMBER(MATCH(Table_NCInfo[[#This Row],[Line]],Table_NCInspection[Line],0)),INDEX(Table_NCInspection[Schedule],MATCH(Table_NCSummary[[#This Row],[Line Item]],Table_NCInspection[Line],0)),Table_NCInfo[[#This Row],[Schedule]]),'Customer Information'!$S$27:$T$34,2,FALSE),\"\"),\"\")","v":""},{"$f":"IFERROR(IF(Table_NCSummary[[#This Row],[IsActive]],INDEX(Table_IntLookups[EIF],MATCH(IF(ISNUMBER(MATCH(Table_NCSummary[[#This Row],[Line Item]],Table_NCInspection[Line],0)),INDEX(Table_NCInspection[Zone Description],MATCH(Table_NCSummary[[#This Row],[Line Item]],Table_NCInfo[Line],0)),Table_NCInfo[[#This Row],[Zone Description]]),Table_IntLookups[Dropdown],0)),\"\"),\"\")","v":""},{"$f":"IFERROR(IF(Table_NCSummary[[#This Row],[IsActive]],INDEX(Table_IntLookups[DIF],MATCH(IF(ISNUMBER(MATCH(Table_NCSummary[[#This Row],[Line Item]],Table_NCInspection[Line],0)),INDEX(Table_NCInspection[Zone Description],MATCH(Table_NCSummary[[#This Row],[Line Item]],Table_NCInfo[Line],0)),Table_NCInfo[[#This Row],[Zone Description]]),Table_IntLookups[Dropdown],0)),\"\"),\"\")","v":""},{"$f":"IFERROR(IF(Table_NCSummary[[#This Row],[IsActive]],INDEX(Table_IntLookups[CFltg],MATCH(IF(ISNUMBER(MATCH(Table_NCSummary[[#This Row],[Line Item]],Table_NCInspection[Line],0)),INDEX(Table_NCInspection[Zone Description],MATCH(Table_NCSummary[[#This Row],[Line Item]],Table_NCInfo[Line],0)),Table_NCInfo[[#This Row],[Zone Description]]),Table_IntLookups[Dropdown],0)),\"\"),\"\")","v":""},{"$f":"IFERROR(IF(Table_NCSummary[[#This Row],[IsActive]],INDEX(Table_IntLookups[DFltg],MATCH(IF(ISNUMBER(MATCH(Table_NCSummary[[#This Row],[Line Item]],Table_NCInspection[Line],0)),INDEX(Table_NCInspection[Zone Description],MATCH(Table_NCSummary[[#This Row],[Line Item]],Table_NCInfo[Line],0)),Table_NCInfo[[#This Row],[Zone Description]]),Table_IntLookups[Dropdown],0)),\"\"),\"\")","v":""},{"$f":"IFERROR(IF(Table_NCSummary[[#This Row],[IsActive]],INDEX(Table_IntLookups[Cfhvac],MATCH(IF(ISNUMBER(MATCH(Table_NCSummary[[#This Row],[Line Item]],Table_NCInspection[Line],0)),INDEX(Table_NCInspection[Zone Description],MATCH(Table_NCSummary[[#This Row],[Line Item]],Table_NCInfo[Line],0)),Table_NCInfo[[#This Row],[Zone Description]]),Table_IntLookups[Dropdown],0)),\"\"),\"\")","v":""},{"$f":"IFERROR(IF(Table_NCSummary[[#This Row],[IsActive]],INDEX(Table_IntLookups[Dfhvac],MATCH(IF(ISNUMBER(MATCH(Table_NCSummary[[#This Row],[Line Item]],Table_NCInspection[Line],0)),INDEX(Table_NCInspection[Zone Description],MATCH(Table_NCSummary[[#This Row],[Line Item]],Table_NCInfo[Line],0)),Table_NCInfo[[#This Row],[Zone Description]]),Table_IntLookups[Dropdown],0)),\"\"),\"\")","v":""},{"$f":"IFERROR(IF(Table_NCSummary[[#This Row],[IsActive]],\nIF(ISNUMBER(MATCH(Table_NCInfo[[#This Row],[Line]],Table_NCInspection[Line],0)),INDEX(Table_NCInspection[Zone Description],MATCH(Table_NCSummary[[#This Row],[Line Item]],Table_NCInspection[Line],0)),Table_NCInfo[[#This Row],[Zone Description]]),\n \"\"),\"\")","v":""},{"$f":"IFERROR(IF(Table_NCSummary[[#This Row],[IsActive]],\nCONCATENATE(\nIF(ISNUMBER(MATCH(Table_NCInfo[[#This Row],[Line]],Table_NCInspection[Line],0)),INDEX(Table_NCInspection[Interior/ Exterior],MATCH(Table_NCSummary[[#This Row],[Line Item]],Table_NCInspection[Line],0)),Table_NCInfo[[#This Row],[Interior/ Exterior]]),\n\" - \",\nIF(ISNUMBER(MATCH(Table_NCInfo[[#This Row],[Line]],Table_NCInspection[Line],0)),INDEX(Table_NCInspection[Space Description],MATCH(Table_NCSummary[[#This Row],[Line Item]],Table_NCInspection[Line],0)),Table_NCInfo[[#This Row],[Space Description]])),\n \"\"),\"\")","v":""},{"$f":"IFERROR(IF(ISNUMBER(MATCH(Table_NCInfo[[#This Row],[Line]],Table_NCInspection[Line],0)),INDEX(Table_NCInspection[Baseline Wattage],MATCH(Table_NCSummary[[#This Row],[Line Item]],Table_NCInspection[Line],0)),Table_NCInfo[[#This Row],[Baseline Wattage]]),\"\")","v":""},{"$f":"IFERROR(IF(Table_NCSummary[[#This Row],[IsActive]],Table_NCSummary[[#This Row],[Baseline Wattage]]/1000*Table_NCSummary[[#This Row],[OpHrs]],\"\"),\"\")","v":""},{"$f":"IFERROR(IF(Table_NCSummary[[#This Row],[IsActive]],IFERROR(VLOOKUP(IF(ISNUMBER(MATCH(Table_NCSummary[[#This Row],[Line Item]],Table_NCInspection[Line],0)),INDEX(Table_NCInspection[Zone '#],MATCH(Table_NCSummary[[#This Row],[Line Item]],Table_NCInspection[Line],0)),Table_NCInfo[[#This Row],[Zone '#]]),Table_IntLookups[],'Facility Information'!$AA$4,FALSE),0),\"\"),\"\")","v":""},{"$f":"IFERROR(IF(Table_NCSummary[[#This Row],[IsActive]],IFERROR(Table_NCSummary[[#This Row],[Baseline Wattage]]/1000*Table_NCSummary[[#This Row],[OpHrs]]*Table_NCSummary[[#This Row],[Existing CSF]]*(-1),0),\"\"),\"\")","v":""},{"$f":"IFERROR(Table_NCSummary[[#This Row],[Baseline kWh]]+Table_NCSummary[[#This Row],[Existing Fixture (Existing Controls) kWh]],\"\")","v":""},{"$f":"IFERROR(IF(Table_NCSummary[[#This Row],[IsActive]],IF(ISNUMBER(MATCH(Table_NCInfo[[#This Row],[Line]],Table_NCInspection[Line],0)),INDEX(Table_NCInspection[Fixture Description '[P']],MATCH(Table_NCSummary[[#This Row],[Line Item]],Table_NCInspection[Line],0)),Table_NCInfo[[#This Row],[Fixture Description '[P']]]),\"\"),\"\")","v":""},{"$f":"IFERROR(IF(Table_NCSummary[[#This Row],[IsActive]],IF(ISNUMBER(MATCH(Table_NCInfo[[#This Row],[Line]],Table_NCInspection[Line],0)),INDEX(Table_NCInspection['# Lamps/ Fixture '[P']],MATCH(Table_NCSummary[[#This Row],[Line Item]],Table_NCInspection[Line],0)),Table_NCInfo[[#This Row],['# Lamps/ Fixture '[P']]]),\"\"),\"\")","v":""},{"$f":"IFERROR(IF(Table_NCSummary[[#This Row],[IsActive]],IF(ISNUMBER(MATCH(Table_NCInfo[[#This Row],[Line]],Table_NCInspection[Line],0)),INDEX(Table_NCInspection[Fixture/ Lamp Wattage '[P']],MATCH(Table_NCSummary[[#This Row],[Line Item]],Table_NCInspection[Line],0)),Table_NCInfo[[#This Row],[Fixture/ Lamp Wattage '[P']]]),\"\"),\"\")","v":""},{"$f":"IFERROR(IF(Table_NCSummary[[#This Row],[IsActive]],IF(ISNUMBER(MATCH(Table_NCInfo[[#This Row],[Line]],Table_NCInspection[Line],0)),INDEX(Table_NCInspection[Fixture Qty '[P']],MATCH(Table_NCSummary[[#This Row],[Line Item]],Table_NCInspection[Line],0)),Table_NCInfo[[#This Row],[Fixture Qty '[P']]]),\"\"),\"\")","v":""},{"$f":"IFERROR(IF(Table_NCSummary[[#This Row],[IsActive]],Table_NCSummary[[#This Row],['# Lamps/ Fixture '[P']]]*Table_NCSummary[[#This Row],[P. Qty]],\"\"),\"\")","v":""},{"$f":"IFERROR(IF(Table_NCSummary[[#This Row],[IsActive]],IF(ISNUMBER(MATCH(Table_NCInfo[[#This Row],[Line]],Table_NCInspection[Line],0)),INDEX(Table_NCInspection[Fixture Wattage '[P']],MATCH(Table_NCSummary[[#This Row],[Line Item]],Table_NCInspection[Line],0)),Table_NCInfo[[#This Row],[Fixture Wattage '[P']]]),\"\"),\"\")","v":""},{"$f":"IFERROR(Table_NCSummary[[#This Row],[P. Qty]]*Table_NCSummary[[#This Row],[Proposed Fixture Wattage]],\"\")","v":""},{"$f":"IFERROR(Table_NCSummary[[#This Row],[Proposed Fixture Wattage]]/1000*Table_NCSummary[[#This Row],[OpHrs]]*Table_NCSummary[[#This Row],[P. Qty]],\"\")","v":""},{"$f":"IFERROR(IF(Table_NCSummary[[#This Row],[IsActive]],IFERROR(VLOOKUP(RIGHT(Table_NCSummary[[#This Row],[Proposed Fixture]],LEN(Table_NCSummary[[#This Row],[Proposed Fixture]])-FIND(\" - \",Table_NCSummary[[#This Row],[Proposed Fixture]],FIND(\"]\",Table_NCSummary[[#This Row],[Proposed Fixture]],1))-2),Table_ControlType[],3, FALSE),Table_NCSummary[[#This Row],[Existing CSF]]),\"\"),\"\")","v":""},{"$f":"IFERROR(IF(Table_NCSummary[[#This Row],[IsActive]],IFERROR(Table_NCSummary[[#This Row],[Proposed Fixture Wattage]]/1000*Table_NCSummary[[#This Row],[OpHrs]]*Table_NCSummary[[#This Row],[P. Qty]]*Table_NCSummary[[#This Row],[Existing CSF]]*(-1),0),\"\"),\"\")","v":""},{"$f":"IFERROR(Table_NCSummary[[#This Row],[Proposed Fixture kWh]]+Table_NCSummary[[#This Row],[Proposed Fixture (Existing Controls) kWh]],\"\")","v":""},{"$f":"IFERROR(IF(Table_NCSummary[[#This Row],[IsActive]],IFERROR(Table_NCSummary[[#This Row],[Proposed Fixture Wattage]]/1000*Table_NCSummary[[#This Row],[OpHrs]]*Table_NCSummary[[#This Row],[P. Qty]]*Table_NCSummary[[#This Row],[Proposed CSF]]*(-1),0),\"\"),\"\")","v":""},{"$f":"IFERROR(Table_NCSummary[[#This Row],[Proposed Fixture kWh]]+Table_NCSummary[[#This Row],[Proposed Fixture (Proposed Controls) kWh]],\"\")","v":""},null,{"$f":"IFERROR(IF(Table_NCSummary[[#This Row],[IsActive]],IF((1-SUMPRODUCT(Table_NCSummary[P. Qty],Table_NCSummary[Proposed Fixture Wattage])/SUM(Table_NCSummary[Baseline Wattage]))<0.1,\"Does Not Qualify [Overall Fixture Reduction is less than 10%]\",IF(ISNUMBER(FIND(\"LED\",Table_NCSummary[[#This Row],[Proposed Fixture]],1)),IF(ISNUMBER(FIND(\"LED Tube\",Table_NCSummary[[#This Row],[Proposed Fixture]],1)),\"New Construction Interior LED Fixture\",IF(ISNUMBER(FIND(\"LED\",Table_NCSummary[[#This Row],[Proposed Fixture]],1)),IF(Table_NCInfo[[#This Row],[Interior/ Exterior]]=\"Exterior\",\"New Construction Exterior LED Fixture\",\"New Construction Interior LED Fixture\"),\"Ineligible Fixture\")),\"Ineligible Fixture\")),\"\"),\"\")","v":""},{"$f":"IFERROR(VLOOKUP(Table_NCSummary[[#This Row],[Fixture Measure Description]],Table_FixtureRate[],2,FALSE),\"\")","v":""},{"$f":"IFERROR(IF(Table_NCSummary[[#This Row],[IsActive]],IF((1-SUMPRODUCT(Table_NCSummary[P. Qty],Table_NCSummary[Proposed Fixture Wattage])/SUM(Table_NCSummary[Baseline Wattage]))<0.1,\"DNQ [kW Reduction <10%]\",IF(Table_NCSummary[[#This Row],[Fixture Measure Description]]=\"Ineligible Fixture\",0,ROUND(Table_NCSummary[[#This Row],[Fixture Rebate (per kW)]]*(Table_NCSummary[[#This Row],[Baseline Wattage]]-Table_NCSummary[[#This Row],[Proposed Wattage]])/1000,2))),\"\"),\"\")","v":""},{"$f":"IFERROR(IF(Table_NCSummary[[#This Row],[Fixture Measure Description]]=\"Ineligible Fixture\",0,ROUND(IF(ProjectCost_Total=0,300000,ProjectCost_Total)*Table_NCSummary[[#This Row],[Fixture Rebate]]/SUM(Table_NCSummary[Fixture Rebate],Table_NCSummary[Controls Rebate]),2)),\"\")","v":""},{"$f":"IFERROR(IF(Table_NCSummary[[#This Row],[IsActive]],IF((1-SUMPRODUCT(Table_NCSummary[P. Qty],Table_NCSummary[Proposed Fixture Wattage])/SUM(Table_NCSummary[Baseline Wattage]))<0.1,\"DNQ [kW Reduction <10%]\",IF(Table_NCSummary[[#This Row],[Fixture Measure Description]]=\"Ineligible Fixture\",0,Table_NCSummary[[#This Row],[Existing Overall kWh]]-Table_NCSummary[[#This Row],[Proposed Overall kWh (Existing Controls)]])),\"\"),\"\")","v":""},{"$f":"IFERROR(IF(Table_NCSummary[[#This Row],[IsActive]],IF((1-SUMPRODUCT(Table_NCSummary[P. Qty],Table_NCSummary[Proposed Fixture Wattage])/SUM(Table_NCSummary[Baseline Wattage]))<0.1,\"DNQ [kW Reduction <10%]\",IF(OR(Table_NCSummary[[#This Row],[Fixture Measure Description]]=\"Ineligible Fixture\",Table_NCSummary[[#This Row],[Fixture Measure Description]]=\"New Construction Exterior LED Fixture\"),0,(Table_NCSummary[[#This Row],[Baseline kWh]]-Table_NCSummary[[#This Row],[Proposed Fixture kWh]])/Table_NCSummary[[#This Row],[OpHrs]]*Table_NCSummary[[#This Row],[CF (Ltg)]]*Table_NCSummary[[#This Row],[DF (Ltg)]])),\"\"),\"\")","v":""},null,{"$f":"IFERROR(\n  IF(OR(Table_NCSummary[[#This Row],[Fixture Measure Description]]=\"\",Table_NCSummary[[#This Row],[Fixture Measure Description]]=\"Ineligible Fixture\"),\n    \"\",\n    \"New Construction\"\n    & \" - \" &\n    IFERROR(VLOOKUP(RIGHT(Table_NCSummary[[#This Row],[Proposed Fixture]],LEN(Table_NCSummary[[#This Row],[Proposed Fixture]])-FIND(\" - \",Table_NCSummary[[#This Row],[Proposed Fixture]],FIND(\"]\",Table_NCSummary[[#This Row],[Proposed Fixture]],1))-2),Table_ControlType[],2, FALSE),None)),\n\"\")","v":""},{"$f":"IFERROR(VLOOKUP(Table_NCSummary[[#This Row],[Controls Measure Description]],Table_ControlRate[],2,FALSE),\"\")","v":""},{"$f":"IFERROR(IF(Table_NCSummary[[#This Row],[IsActive]],IF((1-SUMPRODUCT(Table_NCSummary[P. Qty],Table_NCSummary[Proposed Fixture Wattage])/SUM(Table_NCSummary[Baseline Wattage]))<0.1,\"DNQ [kW Reduction <10%]\",IF(OR(Table_NCSummary[[#This Row],[Controls Measure Description]]=\"\",Table_NCSummary[[#This Row],[Controls Measure Description]]=\"New Construction - No Controls\"),0,ROUND(Table_NCSummary[[#This Row],[Controls Rebate (per Fixt Watt)]]*Table_NCSummary[[#This Row],[Proposed Fixture Wattage]]*Table_NCSummary[[#This Row],[P. Qty]],2))),\"\"),\"\")","v":""},{"$f":"IFERROR(IF(Table_NCSummary[[#This Row],[Fixture Measure Description]]=\"Ineligible Fixture\",0,ROUND(IF(ProjectCost_Total=0,300000,ProjectCost_Total)*Table_NCSummary[[#This Row],[Controls Rebate]]/SUM(Table_NCSummary[Fixture Rebate],Table_NCSummary[Controls Rebate]),2)),\"\")","v":""},{"$f":"IFERROR(IF(Table_NCSummary[[#This Row],[IsActive]],IF((1-SUMPRODUCT(Table_NCSummary[P. Qty],Table_NCSummary[Proposed Fixture Wattage])/SUM(Table_NCSummary[Baseline Wattage]))<0.1,\"DNQ [kW Reduction <10%]\",IF(Table_NCSummary[[#This Row],[Controls Measure Description]]=\"\",0,(Table_NCSummary[[#This Row],[Proposed Fixture (Existing Controls) kWh]]-Table_NCSummary[[#This Row],[Proposed Fixture (Proposed Controls) kWh]]))),\"\"),\"\")","v":""},{"$f":"IFERROR(IF(Table_NCSummary[[#This Row],[IsActive]],IF((1-SUMPRODUCT(Table_NCSummary[P. Qty],Table_NCSummary[Proposed Fixture Wattage])/SUM(Table_NCSummary[Baseline Wattage]))<0.1,\"DNQ [kW Reduction <10%]\",IF(OR(Table_NCSummary[[#This Row],[Controls Measure Description]]=\"\",Table_NCSummary[[#This Row],[Controls Measure Description]]=\"New Construction - No Controls\"),0,(Table_NCSummary[[#This Row],[Proposed Fixture (Existing Controls) kWh]]-Table_NCSummary[[#This Row],[Proposed Fixture (Proposed Controls) kWh]])/Table_NCSummary[[#This Row],[OpHrs]]*Table_NCSummary[[#This Row],[CF (Ltg)]]*Table_NCSummary[[#This Row],[DF (Ltg)]])),\"\"),\"\")","v":""},null,{"$f":"IFERROR(IF(NOT(ISNUMBER(Table_NCSummary[[#This Row],[Fixture Rebate]])),\"\",IF(MIN(IF(Table_NCSummary[[#This Row],[Fixture Cost]]<0,0,SUM(Table_NCSummary[Fixture Cost],Table_NCSummary[Controls Cost])),SUM(Table_NCSummary[Fixture Rebate],Table_NCSummary[Controls Rebate]))>300000,300000/MIN(IF(Table_NCSummary[[#This Row],[Fixture Cost]]<0,0,SUM(Table_NCSummary[Fixture Cost],Table_NCSummary[Controls Cost])),SUM(Table_NCSummary[Fixture Rebate],Table_NCSummary[Controls Rebate]))*MIN(IF(Table_NCSummary[[#This Row],[Fixture Cost]]<0,0,SUM(Table_NCSummary[Fixture Cost],Table_NCSummary[Controls Cost])),Table_NCSummary[[#This Row],[Fixture Rebate]]+IF(Table_NCSummary[[#This Row],[Controls Rebate]]=\"\",0,Table_NCSummary[[#This Row],[Controls Rebate]])),MIN(IF(Table_NCSummary[[#This Row],[Fixture Cost]]<0,0,SUM(Table_NCSummary[Fixture Cost],Table_NCSummary[Controls Cost])),Table_NCSummary[[#This Row],[Fixture Rebate]]+IF(Table_NCSummary[[#This Row],[Controls Rebate]]=\"\",0,Table_NCSummary[[#This Row],[Controls Rebate]])))),\"\")","v":""},{"$f":"IFERROR(IF(Table_NCSummary[[#This Row],[Fixture Cost]]=\"\",\"\",Table_NCSummary[[#This Row],[Fixture Cost]]+IF(Table_NCSummary[[#This Row],[Controls Cost]]=\"\",0,Table_NCSummary[[#This Row],[Controls Cost]])),\"\")","v":""},{"$f":"IFERROR(IF(Table_NCSummary[[#This Row],[IsActive]],IF(NOT(ISNUMBER(Table_NCSummary[[#This Row],[Fixture Rebate]])),\"\",IF(Table_NCInfo[[#This Row],[Interior/ Exterior]]=\"Interior\",IFERROR((Table_NCSummary[[#This Row],[Annual Fixture Savings (kWh)]]+Table_NCSummary[[#This Row],[Annual Control Savings (kWh)]])*(Table_NCSummary[[#This Row],[EIF]]-1),0),0)),\"\"),\"\")","v":""},{"$f":"IFERROR(IF(Table_NCSummary[[#This Row],[IsActive]],IF(NOT(ISNUMBER(Table_NCSummary[[#This Row],[Fixture Rebate]])),\"\",IF(Table_NCInfo[[#This Row],[Interior/ Exterior]]=\"Interior\",IFERROR((Table_NCSummary[[#This Row],[Fixture kW Reduction]]+Table_NCSummary[[#This Row],[Control kW Reduction]]/(Table_NCSummary[[#This Row],[CF (Ltg)]]*Table_NCSummary[[#This Row],[DF (Ltg)]]))*(Table_NCSummary[[#This Row],[DIF]]-1)*Table_NCSummary[[#This Row],[CF (HVAC)]]*Table_NCSummary[[#This Row],[DF (HVAC)]],0),0)),\"\"),\"\")","v":""},{"$f":"IFERROR(IF(Table_NCSummary[[#This Row],[IsActive]],IF(NOT(ISNUMBER(Table_NCSummary[[#This Row],[Fixture Rebate]])),\"\",ROUND(Table_NCSummary[[#This Row],[Annual Fixture Savings (kWh)]]+Table_NCSummary[[#This Row],[Annual Control Savings (kWh)]],0)),\"\"),\"\")","v":""},{"$f":"IFERROR(IF(Table_NCSummary[[#This Row],[IsActive]],IF(NOT(ISNUMBER(Table_NCSummary[[#This Row],[Fixture Rebate]])),\"\",ROUND(Table_NCSummary[[#This Row],[Fixture kW Reduction]]+Table_NCSummary[[#This Row],[Control kW Reduction]],3)),\"\"),\"\")","v":""},{"$f":"IFERROR(IF(Table_NCSummary[[#This Row],[IsActive]],IF(NOT(ISNUMBER(Table_NCSummary[[#This Row],[Fixture Rebate]])),\"\",ROUND(Table_NCSummary[[#This Row],[Fixture Energy Savings (kWh)]]+Table_NCSummary[[#This Row],[Induced HVAC Energy Savings (kWh)]],0)),\"\"),\"\")","v":""},{"$f":"IFERROR(IF(Table_NCSummary[[#This Row],[IsActive]],IF(NOT(ISNUMBER(Table_NCSummary[[#This Row],[Fixture Rebate]])),\"\",ROUND(Table_NCSummary[[#This Row],[Fixture Demand Savings (kW)]]+Table_NCSummary[[#This Row],[Induced HVAC Demand Savings (kW)]],3)),\"\"),\"\")","v":""}]
[{"$f":"IFERROR(Table_NCInfo[[#This Row],[Line]],\"\")","v":18},{"$f":"IFERROR(Table_NCInfo[[#This Row],[IsActive]],\"\")","v":false},{"$f":"IFERROR(IF(Table_NCSummary[[#This Row],[IsActive]],VLOOKUP(IF(ISNUMBER(MATCH(Table_NCInfo[[#This Row],[Line]],Table_NCInspection[Line],0)),INDEX(Table_NCInspection[Schedule],MATCH(Table_NCSummary[[#This Row],[Line Item]],Table_NCInspection[Line],0)),Table_NCInfo[[#This Row],[Schedule]]),'Customer Information'!$S$27:$T$34,2,FALSE),\"\"),\"\")","v":""},{"$f":"IFERROR(IF(Table_NCSummary[[#This Row],[IsActive]],INDEX(Table_IntLookups[EIF],MATCH(IF(ISNUMBER(MATCH(Table_NCSummary[[#This Row],[Line Item]],Table_NCInspection[Line],0)),INDEX(Table_NCInspection[Zone Description],MATCH(Table_NCSummary[[#This Row],[Line Item]],Table_NCInfo[Line],0)),Table_NCInfo[[#This Row],[Zone Description]]),Table_IntLookups[Dropdown],0)),\"\"),\"\")","v":""},{"$f":"IFERROR(IF(Table_NCSummary[[#This Row],[IsActive]],INDEX(Table_IntLookups[DIF],MATCH(IF(ISNUMBER(MATCH(Table_NCSummary[[#This Row],[Line Item]],Table_NCInspection[Line],0)),INDEX(Table_NCInspection[Zone Description],MATCH(Table_NCSummary[[#This Row],[Line Item]],Table_NCInfo[Line],0)),Table_NCInfo[[#This Row],[Zone Description]]),Table_IntLookups[Dropdown],0)),\"\"),\"\")","v":""},{"$f":"IFERROR(IF(Table_NCSummary[[#This Row],[IsActive]],INDEX(Table_IntLookups[CFltg],MATCH(IF(ISNUMBER(MATCH(Table_NCSummary[[#This Row],[Line Item]],Table_NCInspection[Line],0)),INDEX(Table_NCInspection[Zone Description],MATCH(Table_NCSummary[[#This Row],[Line Item]],Table_NCInfo[Line],0)),Table_NCInfo[[#This Row],[Zone Description]]),Table_IntLookups[Dropdown],0)),\"\"),\"\")","v":""},{"$f":"IFERROR(IF(Table_NCSummary[[#This Row],[IsActive]],INDEX(Table_IntLookups[DFltg],MATCH(IF(ISNUMBER(MATCH(Table_NCSummary[[#This Row],[Line Item]],Table_NCInspection[Line],0)),INDEX(Table_NCInspection[Zone Description],MATCH(Table_NCSummary[[#This Row],[Line Item]],Table_NCInfo[Line],0)),Table_NCInfo[[#This Row],[Zone Description]]),Table_IntLookups[Dropdown],0)),\"\"),\"\")","v":""},{"$f":"IFERROR(IF(Table_NCSummary[[#This Row],[IsActive]],INDEX(Table_IntLookups[Cfhvac],MATCH(IF(ISNUMBER(MATCH(Table_NCSummary[[#This Row],[Line Item]],Table_NCInspection[Line],0)),INDEX(Table_NCInspection[Zone Description],MATCH(Table_NCSummary[[#This Row],[Line Item]],Table_NCInfo[Line],0)),Table_NCInfo[[#This Row],[Zone Description]]),Table_IntLookups[Dropdown],0)),\"\"),\"\")","v":""},{"$f":"IFERROR(IF(Table_NCSummary[[#This Row],[IsActive]],INDEX(Table_IntLookups[Dfhvac],MATCH(IF(ISNUMBER(MATCH(Table_NCSummary[[#This Row],[Line Item]],Table_NCInspection[Line],0)),INDEX(Table_NCInspection[Zone Description],MATCH(Table_NCSummary[[#This Row],[Line Item]],Table_NCInfo[Line],0)),Table_NCInfo[[#This Row],[Zone Description]]),Table_IntLookups[Dropdown],0)),\"\"),\"\")","v":""},{"$f":"IFERROR(IF(Table_NCSummary[[#This Row],[IsActive]],\nIF(ISNUMBER(MATCH(Table_NCInfo[[#This Row],[Line]],Table_NCInspection[Line],0)),INDEX(Table_NCInspection[Zone Description],MATCH(Table_NCSummary[[#This Row],[Line Item]],Table_NCInspection[Line],0)),Table_NCInfo[[#This Row],[Zone Description]]),\n \"\"),\"\")","v":""},{"$f":"IFERROR(IF(Table_NCSummary[[#This Row],[IsActive]],\nCONCATENATE(\nIF(ISNUMBER(MATCH(Table_NCInfo[[#This Row],[Line]],Table_NCInspection[Line],0)),INDEX(Table_NCInspection[Interior/ Exterior],MATCH(Table_NCSummary[[#This Row],[Line Item]],Table_NCInspection[Line],0)),Table_NCInfo[[#This Row],[Interior/ Exterior]]),\n\" - \",\nIF(ISNUMBER(MATCH(Table_NCInfo[[#This Row],[Line]],Table_NCInspection[Line],0)),INDEX(Table_NCInspection[Space Description],MATCH(Table_NCSummary[[#This Row],[Line Item]],Table_NCInspection[Line],0)),Table_NCInfo[[#This Row],[Space Description]])),\n \"\"),\"\")","v":""},{"$f":"IFERROR(IF(ISNUMBER(MATCH(Table_NCInfo[[#This Row],[Line]],Table_NCInspection[Line],0)),INDEX(Table_NCInspection[Baseline Wattage],MATCH(Table_NCSummary[[#This Row],[Line Item]],Table_NCInspection[Line],0)),Table_NCInfo[[#This Row],[Baseline Wattage]]),\"\")","v":""},{"$f":"IFERROR(IF(Table_NCSummary[[#This Row],[IsActive]],Table_NCSummary[[#This Row],[Baseline Wattage]]/1000*Table_NCSummary[[#This Row],[OpHrs]],\"\"),\"\")","v":""},{"$f":"IFERROR(IF(Table_NCSummary[[#This Row],[IsActive]],IFERROR(VLOOKUP(IF(ISNUMBER(MATCH(Table_NCSummary[[#This Row],[Line Item]],Table_NCInspection[Line],0)),INDEX(Table_NCInspection[Zone '#],MATCH(Table_NCSummary[[#This Row],[Line Item]],Table_NCInspection[Line],0)),Table_NCInfo[[#This Row],[Zone '#]]),Table_IntLookups[],'Facility Information'!$AA$4,FALSE),0),\"\"),\"\")","v":""},{"$f":"IFERROR(IF(Table_NCSummary[[#This Row],[IsActive]],IFERROR(Table_NCSummary[[#This Row],[Baseline Wattage]]/1000*Table_NCSummary[[#This Row],[OpHrs]]*Table_NCSummary[[#This Row],[Existing CSF]]*(-1),0),\"\"),\"\")","v":""},{"$f":"IFERROR(Table_NCSummary[[#This Row],[Baseline kWh]]+Table_NCSummary[[#This Row],[Existing Fixture (Existing Controls) kWh]],\"\")","v":""},{"$f":"IFERROR(IF(Table_NCSummary[[#This Row],[IsActive]],IF(ISNUMBER(MATCH(Table_NCInfo[[#This Row],[Line]],Table_NCInspection[Line],0)),INDEX(Table_NCInspection[Fixture Description '[P']],MATCH(Table_NCSummary[[#This Row],[Line Item]],Table_NCInspection[Line],0)),Table_NCInfo[[#This Row],[Fixture Description '[P']]]),\"\"),\"\")","v":""},{"$f":"IFERROR(IF(Table_NCSummary[[#This Row],[IsActive]],IF(ISNUMBER(MATCH(Table_NCInfo[[#This Row],[Line]],Table_NCInspection[Line],0)),INDEX(Table_NCInspection['# Lamps/ Fixture '[P']],MATCH(Table_NCSummary[[#This Row],[Line Item]],Table_NCInspection[Line],0)),Table_NCInfo[[#This Row],['# Lamps/ Fixture '[P']]]),\"\"),\"\")","v":""},{"$f":"IFERROR(IF(Table_NCSummary[[#This Row],[IsActive]],IF(ISNUMBER(MATCH(Table_NCInfo[[#This Row],[Line]],Table_NCInspection[Line],0)),INDEX(Table_NCInspection[Fixture/ Lamp Wattage '[P']],MATCH(Table_NCSummary[[#This Row],[Line Item]],Table_NCInspection[Line],0)),Table_NCInfo[[#This Row],[Fixture/ Lamp Wattage '[P']]]),\"\"),\"\")","v":""},{"$f":"IFERROR(IF(Table_NCSummary[[#This Row],[IsActive]],IF(ISNUMBER(MATCH(Table_NCInfo[[#This Row],[Line]],Table_NCInspection[Line],0)),INDEX(Table_NCInspection[Fixture Qty '[P']],MATCH(Table_NCSummary[[#This Row],[Line Item]],Table_NCInspection[Line],0)),Table_NCInfo[[#This Row],[Fixture Qty '[P']]]),\"\"),\"\")","v":""},{"$f":"IFERROR(IF(Table_NCSummary[[#This Row],[IsActive]],Table_NCSummary[[#This Row],['# Lamps/ Fixture '[P']]]*Table_NCSummary[[#This Row],[P. Qty]],\"\"),\"\")","v":""},{"$f":"IFERROR(IF(Table_NCSummary[[#This Row],[IsActive]],IF(ISNUMBER(MATCH(Table_NCInfo[[#This Row],[Line]],Table_NCInspection[Line],0)),INDEX(Table_NCInspection[Fixture Wattage '[P']],MATCH(Table_NCSummary[[#This Row],[Line Item]],Table_NCInspection[Line],0)),Table_NCInfo[[#This Row],[Fixture Wattage '[P']]]),\"\"),\"\")","v":""},{"$f":"IFERROR(Table_NCSummary[[#This Row],[P. Qty]]*Table_NCSummary[[#This Row],[Proposed Fixture Wattage]],\"\")","v":""},{"$f":"IFERROR(Table_NCSummary[[#This Row],[Proposed Fixture Wattage]]/1000*Table_NCSummary[[#This Row],[OpHrs]]*Table_NCSummary[[#This Row],[P. Qty]],\"\")","v":""},{"$f":"IFERROR(IF(Table_NCSummary[[#This Row],[IsActive]],IFERROR(VLOOKUP(RIGHT(Table_NCSummary[[#This Row],[Proposed Fixture]],LEN(Table_NCSummary[[#This Row],[Proposed Fixture]])-FIND(\" - \",Table_NCSummary[[#This Row],[Proposed Fixture]],FIND(\"]\",Table_NCSummary[[#This Row],[Proposed Fixture]],1))-2),Table_ControlType[],3, FALSE),Table_NCSummary[[#This Row],[Existing CSF]]),\"\"),\"\")","v":""},{"$f":"IFERROR(IF(Table_NCSummary[[#This Row],[IsActive]],IFERROR(Table_NCSummary[[#This Row],[Proposed Fixture Wattage]]/1000*Table_NCSummary[[#This Row],[OpHrs]]*Table_NCSummary[[#This Row],[P. Qty]]*Table_NCSummary[[#This Row],[Existing CSF]]*(-1),0),\"\"),\"\")","v":""},{"$f":"IFERROR(Table_NCSummary[[#This Row],[Proposed Fixture kWh]]+Table_NCSummary[[#This Row],[Proposed Fixture (Existing Controls) kWh]],\"\")","v":""},{"$f":"IFERROR(IF(Table_NCSummary[[#This Row],[IsActive]],IFERROR(Table_NCSummary[[#This Row],[Proposed Fixture Wattage]]/1000*Table_NCSummary[[#This Row],[OpHrs]]*Table_NCSummary[[#This Row],[P. Qty]]*Table_NCSummary[[#This Row],[Proposed CSF]]*(-1),0),\"\"),\"\")","v":""},{"$f":"IFERROR(Table_NCSummary[[#This Row],[Proposed Fixture kWh]]+Table_NCSummary[[#This Row],[Proposed Fixture (Proposed Controls) kWh]],\"\")","v":""},null,{"$f":"IFERROR(IF(Table_NCSummary[[#This Row],[IsActive]],IF((1-SUMPRODUCT(Table_NCSummary[P. Qty],Table_NCSummary[Proposed Fixture Wattage])/SUM(Table_NCSummary[Baseline Wattage]))<0.1,\"Does Not Qualify [Overall Fixture Reduction is less than 10%]\",IF(ISNUMBER(FIND(\"LED\",Table_NCSummary[[#This Row],[Proposed Fixture]],1)),IF(ISNUMBER(FIND(\"LED Tube\",Table_NCSummary[[#This Row],[Proposed Fixture]],1)),\"New Construction Interior LED Fixture\",IF(ISNUMBER(FIND(\"LED\",Table_NCSummary[[#This Row],[Proposed Fixture]],1)),IF(Table_NCInfo[[#This Row],[Interior/ Exterior]]=\"Exterior\",\"New Construction Exterior LED Fixture\",\"New Construction Interior LED Fixture\"),\"Ineligible Fixture\")),\"Ineligible Fixture\")),\"\"),\"\")","v":""},{"$f":"IFERROR(VLOOKUP(Table_NCSummary[[#This Row],[Fixture Measure Description]],Table_FixtureRate[],2,FALSE),\"\")","v":""},{"$f":"IFERROR(IF(Table_NCSummary[[#This Row],[IsActive]],IF((1-SUMPRODUCT(Table_NCSummary[P. Qty],Table_NCSummary[Proposed Fixture Wattage])/SUM(Table_NCSummary[Baseline Wattage]))<0.1,\"DNQ [kW Reduction <10%]\",IF(Table_NCSummary[[#This Row],[Fixture Measure Description]]=\"Ineligible Fixture\",0,ROUND(Table_NCSummary[[#This Row],[Fixture Rebate (per kW)]]*(Table_NCSummary[[#This Row],[Baseline Wattage]]-Table_NCSummary[[#This Row],[Proposed Wattage]])/1000,2))),\"\"),\"\")","v":""},{"$f":"IFERROR(IF(Table_NCSummary[[#This Row],[Fixture Measure Description]]=\"Ineligible Fixture\",0,ROUND(IF(ProjectCost_Total=0,300000,ProjectCost_Total)*Table_NCSummary[[#This Row],[Fixture Rebate]]/SUM(Table_NCSummary[Fixture Rebate],Table_NCSummary[Controls Rebate]),2)),\"\")","v":""},{"$f":"IFERROR(IF(Table_NCSummary[[#This Row],[IsActive]],IF((1-SUMPRODUCT(Table_NCSummary[P. Qty],Table_NCSummary[Proposed Fixture Wattage])/SUM(Table_NCSummary[Baseline Wattage]))<0.1,\"DNQ [kW Reduction <10%]\",IF(Table_NCSummary[[#This Row],[Fixture Measure Description]]=\"Ineligible Fixture\",0,Table_NCSummary[[#This Row],[Existing Overall kWh]]-Table_NCSummary[[#This Row],[Proposed Overall kWh (Existing Controls)]])),\"\"),\"\")","v":""},{"$f":"IFERROR(IF(Table_NCSummary[[#This Row],[IsActive]],IF((1-SUMPRODUCT(Table_NCSummary[P. Qty],Table_NCSummary[Proposed Fixture Wattage])/SUM(Table_NCSummary[Baseline Wattage]))<0.1,\"DNQ [kW Reduction <10%]\",IF(OR(Table_NCSummary[[#This Row],[Fixture Measure Description]]=\"Ineligible Fixture\",Table_NCSummary[[#This Row],[Fixture Measure Description]]=\"New Construction Exterior LED Fixture\"),0,(Table_NCSummary[[#This Row],[Baseline kWh]]-Table_NCSummary[[#This Row],[Proposed Fixture kWh]])/Table_NCSummary[[#This Row],[OpHrs]]*Table_NCSummary[[#This Row],[CF (Ltg)]]*Table_NCSummary[[#This Row],[DF (Ltg)]])),\"\"),\"\")","v":""},null,{"$f":"IFERROR(\n  IF(OR(Table_NCSummary[[#This Row],[Fixture Measure Description]]=\"\",Table_NCSummary[[#This Row],[Fixture Measure Description]]=\"Ineligible Fixture\"),\n    \"\",\n    \"New Construction\"\n    & \" - \" &\n    IFERROR(VLOOKUP(RIGHT(Table_NCSummary[[#This Row],[Proposed Fixture]],LEN(Table_NCSummary[[#This Row],[Proposed Fixture]])-FIND(\" - \",Table_NCSummary[[#This Row],[Proposed Fixture]],FIND(\"]\",Table_NCSummary[[#This Row],[Proposed Fixture]],1))-2),Table_ControlType[],2, FALSE),None)),\n\"\")","v":""},{"$f":"IFERROR(VLOOKUP(Table_NCSummary[[#This Row],[Controls Measure Description]],Table_ControlRate[],2,FALSE),\"\")","v":""},{"$f":"IFERROR(IF(Table_NCSummary[[#This Row],[IsActive]],IF((1-SUMPRODUCT(Table_NCSummary[P. Qty],Table_NCSummary[Proposed Fixture Wattage])/SUM(Table_NCSummary[Baseline Wattage]))<0.1,\"DNQ [kW Reduction <10%]\",IF(OR(Table_NCSummary[[#This Row],[Controls Measure Description]]=\"\",Table_NCSummary[[#This Row],[Controls Measure Description]]=\"New Construction - No Controls\"),0,ROUND(Table_NCSummary[[#This Row],[Controls Rebate (per Fixt Watt)]]*Table_NCSummary[[#This Row],[Proposed Fixture Wattage]]*Table_NCSummary[[#This Row],[P. Qty]],2))),\"\"),\"\")","v":""},{"$f":"IFERROR(IF(Table_NCSummary[[#This Row],[Fixture Measure Description]]=\"Ineligible Fixture\",0,ROUND(IF(ProjectCost_Total=0,300000,ProjectCost_Total)*Table_NCSummary[[#This Row],[Controls Rebate]]/SUM(Table_NCSummary[Fixture Rebate],Table_NCSummary[Controls Rebate]),2)),\"\")","v":""},{"$f":"IFERROR(IF(Table_NCSummary[[#This Row],[IsActive]],IF((1-SUMPRODUCT(Table_NCSummary[P. Qty],Table_NCSummary[Proposed Fixture Wattage])/SUM(Table_NCSummary[Baseline Wattage]))<0.1,\"DNQ [kW Reduction <10%]\",IF(Table_NCSummary[[#This Row],[Controls Measure Description]]=\"\",0,(Table_NCSummary[[#This Row],[Proposed Fixture (Existing Controls) kWh]]-Table_NCSummary[[#This Row],[Proposed Fixture (Proposed Controls) kWh]]))),\"\"),\"\")","v":""},{"$f":"IFERROR(IF(Table_NCSummary[[#This Row],[IsActive]],IF((1-SUMPRODUCT(Table_NCSummary[P. Qty],Table_NCSummary[Proposed Fixture Wattage])/SUM(Table_NCSummary[Baseline Wattage]))<0.1,\"DNQ [kW Reduction <10%]\",IF(OR(Table_NCSummary[[#This Row],[Controls Measure Description]]=\"\",Table_NCSummary[[#This Row],[Controls Measure Description]]=\"New Construction - No Controls\"),0,(Table_NCSummary[[#This Row],[Proposed Fixture (Existing Controls) kWh]]-Table_NCSummary[[#This Row],[Proposed Fixture (Proposed Controls) kWh]])/Table_NCSummary[[#This Row],[OpHrs]]*Table_NCSummary[[#This Row],[CF (Ltg)]]*Table_NCSummary[[#This Row],[DF (Ltg)]])),\"\"),\"\")","v":""},null,{"$f":"IFERROR(IF(NOT(ISNUMBER(Table_NCSummary[[#This Row],[Fixture Rebate]])),\"\",IF(MIN(IF(Table_NCSummary[[#This Row],[Fixture Cost]]<0,0,SUM(Table_NCSummary[Fixture Cost],Table_NCSummary[Controls Cost])),SUM(Table_NCSummary[Fixture Rebate],Table_NCSummary[Controls Rebate]))>300000,300000/MIN(IF(Table_NCSummary[[#This Row],[Fixture Cost]]<0,0,SUM(Table_NCSummary[Fixture Cost],Table_NCSummary[Controls Cost])),SUM(Table_NCSummary[Fixture Rebate],Table_NCSummary[Controls Rebate]))*MIN(IF(Table_NCSummary[[#This Row],[Fixture Cost]]<0,0,SUM(Table_NCSummary[Fixture Cost],Table_NCSummary[Controls Cost])),Table_NCSummary[[#This Row],[Fixture Rebate]]+IF(Table_NCSummary[[#This Row],[Controls Rebate]]=\"\",0,Table_NCSummary[[#This Row],[Controls Rebate]])),MIN(IF(Table_NCSummary[[#This Row],[Fixture Cost]]<0,0,SUM(Table_NCSummary[Fixture Cost],Table_NCSummary[Controls Cost])),Table_NCSummary[[#This Row],[Fixture Rebate]]+IF(Table_NCSummary[[#This Row],[Controls Rebate]]=\"\",0,Table_NCSummary[[#This Row],[Controls Rebate]])))),\"\")","v":""},{"$f":"IFERROR(IF(Table_NCSummary[[#This Row],[Fixture Cost]]=\"\",\"\",Table_NCSummary[[#This Row],[Fixture Cost]]+IF(Table_NCSummary[[#This Row],[Controls Cost]]=\"\",0,Table_NCSummary[[#This Row],[Controls Cost]])),\"\")","v":""},{"$f":"IFERROR(IF(Table_NCSummary[[#This Row],[IsActive]],IF(NOT(ISNUMBER(Table_NCSummary[[#This Row],[Fixture Rebate]])),\"\",IF(Table_NCInfo[[#This Row],[Interior/ Exterior]]=\"Interior\",IFERROR((Table_NCSummary[[#This Row],[Annual Fixture Savings (kWh)]]+Table_NCSummary[[#This Row],[Annual Control Savings (kWh)]])*(Table_NCSummary[[#This Row],[EIF]]-1),0),0)),\"\"),\"\")","v":""},{"$f":"IFERROR(IF(Table_NCSummary[[#This Row],[IsActive]],IF(NOT(ISNUMBER(Table_NCSummary[[#This Row],[Fixture Rebate]])),\"\",IF(Table_NCInfo[[#This Row],[Interior/ Exterior]]=\"Interior\",IFERROR((Table_NCSummary[[#This Row],[Fixture kW Reduction]]+Table_NCSummary[[#This Row],[Control kW Reduction]]/(Table_NCSummary[[#This Row],[CF (Ltg)]]*Table_NCSummary[[#This Row],[DF (Ltg)]]))*(Table_NCSummary[[#This Row],[DIF]]-1)*Table_NCSummary[[#This Row],[CF (HVAC)]]*Table_NCSummary[[#This Row],[DF (HVAC)]],0),0)),\"\"),\"\")","v":""},{"$f":"IFERROR(IF(Table_NCSummary[[#This Row],[IsActive]],IF(NOT(ISNUMBER(Table_NCSummary[[#This Row],[Fixture Rebate]])),\"\",ROUND(Table_NCSummary[[#This Row],[Annual Fixture Savings (kWh)]]+Table_NCSummary[[#This Row],[Annual Control Savings (kWh)]],0)),\"\"),\"\")","v":""},{"$f":"IFERROR(IF(Table_NCSummary[[#This Row],[IsActive]],IF(NOT(ISNUMBER(Table_NCSummary[[#This Row],[Fixture Rebate]])),\"\",ROUND(Table_NCSummary[[#This Row],[Fixture kW Reduction]]+Table_NCSummary[[#This Row],[Control kW Reduction]],3)),\"\"),\"\")","v":""},{"$f":"IFERROR(IF(Table_NCSummary[[#This Row],[IsActive]],IF(NOT(ISNUMBER(Table_NCSummary[[#This Row],[Fixture Rebate]])),\"\",ROUND(Table_NCSummary[[#This Row],[Fixture Energy Savings (kWh)]]+Table_NCSummary[[#This Row],[Induced HVAC Energy Savings (kWh)]],0)),\"\"),\"\")","v":""},{"$f":"IFERROR(IF(Table_NCSummary[[#This Row],[IsActive]],IF(NOT(ISNUMBER(Table_NCSummary[[#This Row],[Fixture Rebate]])),\"\",ROUND(Table_NCSummary[[#This Row],[Fixture Demand Savings (kW)]]+Table_NCSummary[[#This Row],[Induced HVAC Demand Savings (kW)]],3)),\"\"),\"\")","v":""}]
[{"$f":"IFERROR(Table_NCInfo[[#This Row],[Line]],\"\")","v":19},{"$f":"IFERROR(Table_NCInfo[[#This Row],[IsActive]],\"\")","v":false},{"$f":"IFERROR(IF(Table_NCSummary[[#This Row],[IsActive]],VLOOKUP(IF(ISNUMBER(MATCH(Table_NCInfo[[#This Row],[Line]],Table_NCInspection[Line],0)),INDEX(Table_NCInspection[Schedule],MATCH(Table_NCSummary[[#This Row],[Line Item]],Table_NCInspection[Line],0)),Table_NCInfo[[#This Row],[Schedule]]),'Customer Information'!$S$27:$T$34,2,FALSE),\"\"),\"\")","v":""},{"$f":"IFERROR(IF(Table_NCSummary[[#This Row],[IsActive]],INDEX(Table_IntLookups[EIF],MATCH(IF(ISNUMBER(MATCH(Table_NCSummary[[#This Row],[Line Item]],Table_NCInspection[Line],0)),INDEX(Table_NCInspection[Zone Description],MATCH(Table_NCSummary[[#This Row],[Line Item]],Table_NCInfo[Line],0)),Table_NCInfo[[#This Row],[Zone Description]]),Table_IntLookups[Dropdown],0)),\"\"),\"\")","v":""},{"$f":"IFERROR(IF(Table_NCSummary[[#This Row],[IsActive]],INDEX(Table_IntLookups[DIF],MATCH(IF(ISNUMBER(MATCH(Table_NCSummary[[#This Row],[Line Item]],Table_NCInspection[Line],0)),INDEX(Table_NCInspection[Zone Description],MATCH(Table_NCSummary[[#This Row],[Line Item]],Table_NCInfo[Line],0)),Table_NCInfo[[#This Row],[Zone Description]]),Table_IntLookups[Dropdown],0)),\"\"),\"\")","v":""},{"$f":"IFERROR(IF(Table_NCSummary[[#This Row],[IsActive]],INDEX(Table_IntLookups[CFltg],MATCH(IF(ISNUMBER(MATCH(Table_NCSummary[[#This Row],[Line Item]],Table_NCInspection[Line],0)),INDEX(Table_NCInspection[Zone Description],MATCH(Table_NCSummary[[#This Row],[Line Item]],Table_NCInfo[Line],0)),Table_NCInfo[[#This Row],[Zone Description]]),Table_IntLookups[Dropdown],0)),\"\"),\"\")","v":""},{"$f":"IFERROR(IF(Table_NCSummary[[#This Row],[IsActive]],INDEX(Table_IntLookups[DFltg],MATCH(IF(ISNUMBER(MATCH(Table_NCSummary[[#This Row],[Line Item]],Table_NCInspection[Line],0)),INDEX(Table_NCInspection[Zone Description],MATCH(Table_NCSummary[[#This Row],[Line Item]],Table_NCInfo[Line],0)),Table_NCInfo[[#This Row],[Zone Description]]),Table_IntLookups[Dropdown],0)),\"\"),\"\")","v":""},{"$f":"IFERROR(IF(Table_NCSummary[[#This Row],[IsActive]],INDEX(Table_IntLookups[Cfhvac],MATCH(IF(ISNUMBER(MATCH(Table_NCSummary[[#This Row],[Line Item]],Table_NCInspection[Line],0)),INDEX(Table_NCInspection[Zone Description],MATCH(Table_NCSummary[[#This Row],[Line Item]],Table_NCInfo[Line],0)),Table_NCInfo[[#This Row],[Zone Description]]),Table_IntLookups[Dropdown],0)),\"\"),\"\")","v":""},{"$f":"IFERROR(IF(Table_NCSummary[[#This Row],[IsActive]],INDEX(Table_IntLookups[Dfhvac],MATCH(IF(ISNUMBER(MATCH(Table_NCSummary[[#This Row],[Line Item]],Table_NCInspection[Line],0)),INDEX(Table_NCInspection[Zone Description],MATCH(Table_NCSummary[[#This Row],[Line Item]],Table_NCInfo[Line],0)),Table_NCInfo[[#This Row],[Zone Description]]),Table_IntLookups[Dropdown],0)),\"\"),\"\")","v":""},{"$f":"IFERROR(IF(Table_NCSummary[[#This Row],[IsActive]],\nIF(ISNUMBER(MATCH(Table_NCInfo[[#This Row],[Line]],Table_NCInspection[Line],0)),INDEX(Table_NCInspection[Zone Description],MATCH(Table_NCSummary[[#This Row],[Line Item]],Table_NCInspection[Line],0)),Table_NCInfo[[#This Row],[Zone Description]]),\n \"\"),\"\")","v":""},{"$f":"IFERROR(IF(Table_NCSummary[[#This Row],[IsActive]],\nCONCATENATE(\nIF(ISNUMBER(MATCH(Table_NCInfo[[#This Row],[Line]],Table_NCInspection[Line],0)),INDEX(Table_NCInspection[Interior/ Exterior],MATCH(Table_NCSummary[[#This Row],[Line Item]],Table_NCInspection[Line],0)),Table_NCInfo[[#This Row],[Interior/ Exterior]]),\n\" - \",\nIF(ISNUMBER(MATCH(Table_NCInfo[[#This Row],[Line]],Table_NCInspection[Line],0)),INDEX(Table_NCInspection[Space Description],MATCH(Table_NCSummary[[#This Row],[Line Item]],Table_NCInspection[Line],0)),Table_NCInfo[[#This Row],[Space Description]])),\n \"\"),\"\")","v":""},{"$f":"IFERROR(IF(ISNUMBER(MATCH(Table_NCInfo[[#This Row],[Line]],Table_NCInspection[Line],0)),INDEX(Table_NCInspection[Baseline Wattage],MATCH(Table_NCSummary[[#This Row],[Line Item]],Table_NCInspection[Line],0)),Table_NCInfo[[#This Row],[Baseline Wattage]]),\"\")","v":""},{"$f":"IFERROR(IF(Table_NCSummary[[#This Row],[IsActive]],Table_NCSummary[[#This Row],[Baseline Wattage]]/1000*Table_NCSummary[[#This Row],[OpHrs]],\"\"),\"\")","v":""},{"$f":"IFERROR(IF(Table_NCSummary[[#This Row],[IsActive]],IFERROR(VLOOKUP(IF(ISNUMBER(MATCH(Table_NCSummary[[#This Row],[Line Item]],Table_NCInspection[Line],0)),INDEX(Table_NCInspection[Zone '#],MATCH(Table_NCSummary[[#This Row],[Line Item]],Table_NCInspection[Line],0)),Table_NCInfo[[#This Row],[Zone '#]]),Table_IntLookups[],'Facility Information'!$AA$4,FALSE),0),\"\"),\"\")","v":""},{"$f":"IFERROR(IF(Table_NCSummary[[#This Row],[IsActive]],IFERROR(Table_NCSummary[[#This Row],[Baseline Wattage]]/1000*Table_NCSummary[[#This Row],[OpHrs]]*Table_NCSummary[[#This Row],[Existing CSF]]*(-1),0),\"\"),\"\")","v":""},{"$f":"IFERROR(Table_NCSummary[[#This Row],[Baseline kWh]]+Table_NCSummary[[#This Row],[Existing Fixture (Existing Controls) kWh]],\"\")","v":""},{"$f":"IFERROR(IF(Table_NCSummary[[#This Row],[IsActive]],IF(ISNUMBER(MATCH(Table_NCInfo[[#This Row],[Line]],Table_NCInspection[Line],0)),INDEX(Table_NCInspection[Fixture Description '[P']],MATCH(Table_NCSummary[[#This Row],[Line Item]],Table_NCInspection[Line],0)),Table_NCInfo[[#This Row],[Fixture Description '[P']]]),\"\"),\"\")","v":""},{"$f":"IFERROR(IF(Table_NCSummary[[#This Row],[IsActive]],IF(ISNUMBER(MATCH(Table_NCInfo[[#This Row],[Line]],Table_NCInspection[Line],0)),INDEX(Table_NCInspection['# Lamps/ Fixture '[P']],MATCH(Table_NCSummary[[#This Row],[Line Item]],Table_NCInspection[Line],0)),Table_NCInfo[[#This Row],['# Lamps/ Fixture '[P']]]),\"\"),\"\")","v":""},{"$f":"IFERROR(IF(Table_NCSummary[[#This Row],[IsActive]],IF(ISNUMBER(MATCH(Table_NCInfo[[#This Row],[Line]],Table_NCInspection[Line],0)),INDEX(Table_NCInspection[Fixture/ Lamp Wattage '[P']],MATCH(Table_NCSummary[[#This Row],[Line Item]],Table_NCInspection[Line],0)),Table_NCInfo[[#This Row],[Fixture/ Lamp Wattage '[P']]]),\"\"),\"\")","v":""},{"$f":"IFERROR(IF(Table_NCSummary[[#This Row],[IsActive]],IF(ISNUMBER(MATCH(Table_NCInfo[[#This Row],[Line]],Table_NCInspection[Line],0)),INDEX(Table_NCInspection[Fixture Qty '[P']],MATCH(Table_NCSummary[[#This Row],[Line Item]],Table_NCInspection[Line],0)),Table_NCInfo[[#This Row],[Fixture Qty '[P']]]),\"\"),\"\")","v":""},{"$f":"IFERROR(IF(Table_NCSummary[[#This Row],[IsActive]],Table_NCSummary[[#This Row],['# Lamps/ Fixture '[P']]]*Table_NCSummary[[#This Row],[P. Qty]],\"\"),\"\")","v":""},{"$f":"IFERROR(IF(Table_NCSummary[[#This Row],[IsActive]],IF(ISNUMBER(MATCH(Table_NCInfo[[#This Row],[Line]],Table_NCInspection[Line],0)),INDEX(Table_NCInspection[Fixture Wattage '[P']],MATCH(Table_NCSummary[[#This Row],[Line Item]],Table_NCInspection[Line],0)),Table_NCInfo[[#This Row],[Fixture Wattage '[P']]]),\"\"),\"\")","v":""},{"$f":"IFERROR(Table_NCSummary[[#This Row],[P. Qty]]*Table_NCSummary[[#This Row],[Proposed Fixture Wattage]],\"\")","v":""},{"$f":"IFERROR(Table_NCSummary[[#This Row],[Proposed Fixture Wattage]]/1000*Table_NCSummary[[#This Row],[OpHrs]]*Table_NCSummary[[#This Row],[P. Qty]],\"\")","v":""},{"$f":"IFERROR(IF(Table_NCSummary[[#This Row],[IsActive]],IFERROR(VLOOKUP(RIGHT(Table_NCSummary[[#This Row],[Proposed Fixture]],LEN(Table_NCSummary[[#This Row],[Proposed Fixture]])-FIND(\" - \",Table_NCSummary[[#This Row],[Proposed Fixture]],FIND(\"]\",Table_NCSummary[[#This Row],[Proposed Fixture]],1))-2),Table_ControlType[],3, FALSE),Table_NCSummary[[#This Row],[Existing CSF]]),\"\"),\"\")","v":""},{"$f":"IFERROR(IF(Table_NCSummary[[#This Row],[IsActive]],IFERROR(Table_NCSummary[[#This Row],[Proposed Fixture Wattage]]/1000*Table_NCSummary[[#This Row],[OpHrs]]*Table_NCSummary[[#This Row],[P. Qty]]*Table_NCSummary[[#This Row],[Existing CSF]]*(-1),0),\"\"),\"\")","v":""},{"$f":"IFERROR(Table_NCSummary[[#This Row],[Proposed Fixture kWh]]+Table_NCSummary[[#This Row],[Proposed Fixture (Existing Controls) kWh]],\"\")","v":""},{"$f":"IFERROR(IF(Table_NCSummary[[#This Row],[IsActive]],IFERROR(Table_NCSummary[[#This Row],[Proposed Fixture Wattage]]/1000*Table_NCSummary[[#This Row],[OpHrs]]*Table_NCSummary[[#This Row],[P. Qty]]*Table_NCSummary[[#This Row],[Proposed CSF]]*(-1),0),\"\"),\"\")","v":""},{"$f":"IFERROR(Table_NCSummary[[#This Row],[Proposed Fixture kWh]]+Table_NCSummary[[#This Row],[Proposed Fixture (Proposed Controls) kWh]],\"\")","v":""},null,{"$f":"IFERROR(IF(Table_NCSummary[[#This Row],[IsActive]],IF((1-SUMPRODUCT(Table_NCSummary[P. Qty],Table_NCSummary[Proposed Fixture Wattage])/SUM(Table_NCSummary[Baseline Wattage]))<0.1,\"Does Not Qualify [Overall Fixture Reduction is less than 10%]\",IF(ISNUMBER(FIND(\"LED\",Table_NCSummary[[#This Row],[Proposed Fixture]],1)),IF(ISNUMBER(FIND(\"LED Tube\",Table_NCSummary[[#This Row],[Proposed Fixture]],1)),\"New Construction Interior LED Fixture\",IF(ISNUMBER(FIND(\"LED\",Table_NCSummary[[#This Row],[Proposed Fixture]],1)),IF(Table_NCInfo[[#This Row],[Interior/ Exterior]]=\"Exterior\",\"New Construction Exterior LED Fixture\",\"New Construction Interior LED Fixture\"),\"Ineligible Fixture\")),\"Ineligible Fixture\")),\"\"),\"\")","v":""},{"$f":"IFERROR(VLOOKUP(Table_NCSummary[[#This Row],[Fixture Measure Description]],Table_FixtureRate[],2,FALSE),\"\")","v":""},{"$f":"IFERROR(IF(Table_NCSummary[[#This Row],[IsActive]],IF((1-SUMPRODUCT(Table_NCSummary[P. Qty],Table_NCSummary[Proposed Fixture Wattage])/SUM(Table_NCSummary[Baseline Wattage]))<0.1,\"DNQ [kW Reduction <10%]\",IF(Table_NCSummary[[#This Row],[Fixture Measure Description]]=\"Ineligible Fixture\",0,ROUND(Table_NCSummary[[#This Row],[Fixture Rebate (per kW)]]*(Table_NCSummary[[#This Row],[Baseline Wattage]]-Table_NCSummary[[#This Row],[Proposed Wattage]])/1000,2))),\"\"),\"\")","v":""},{"$f":"IFERROR(IF(Table_NCSummary[[#This Row],[Fixture Measure Description]]=\"Ineligible Fixture\",0,ROUND(IF(ProjectCost_Total=0,300000,ProjectCost_Total)*Table_NCSummary[[#This Row],[Fixture Rebate]]/SUM(Table_NCSummary[Fixture Rebate],Table_NCSummary[Controls Rebate]),2)),\"\")","v":""},{"$f":"IFERROR(IF(Table_NCSummary[[#This Row],[IsActive]],IF((1-SUMPRODUCT(Table_NCSummary[P. Qty],Table_NCSummary[Proposed Fixture Wattage])/SUM(Table_NCSummary[Baseline Wattage]))<0.1,\"DNQ [kW Reduction <10%]\",IF(Table_NCSummary[[#This Row],[Fixture Measure Description]]=\"Ineligible Fixture\",0,Table_NCSummary[[#This Row],[Existing Overall kWh]]-Table_NCSummary[[#This Row],[Proposed Overall kWh (Existing Controls)]])),\"\"),\"\")","v":""},{"$f":"IFERROR(IF(Table_NCSummary[[#This Row],[IsActive]],IF((1-SUMPRODUCT(Table_NCSummary[P. Qty],Table_NCSummary[Proposed Fixture Wattage])/SUM(Table_NCSummary[Baseline Wattage]))<0.1,\"DNQ [kW Reduction <10%]\",IF(OR(Table_NCSummary[[#This Row],[Fixture Measure Description]]=\"Ineligible Fixture\",Table_NCSummary[[#This Row],[Fixture Measure Description]]=\"New Construction Exterior LED Fixture\"),0,(Table_NCSummary[[#This Row],[Baseline kWh]]-Table_NCSummary[[#This Row],[Proposed Fixture kWh]])/Table_NCSummary[[#This Row],[OpHrs]]*Table_NCSummary[[#This Row],[CF (Ltg)]]*Table_NCSummary[[#This Row],[DF (Ltg)]])),\"\"),\"\")","v":""},null,{"$f":"IFERROR(\n  IF(OR(Table_NCSummary[[#This Row],[Fixture Measure Description]]=\"\",Table_NCSummary[[#This Row],[Fixture Measure Description]]=\"Ineligible Fixture\"),\n    \"\",\n    \"New Construction\"\n    & \" - \" &\n    IFERROR(VLOOKUP(RIGHT(Table_NCSummary[[#This Row],[Proposed Fixture]],LEN(Table_NCSummary[[#This Row],[Proposed Fixture]])-FIND(\" - \",Table_NCSummary[[#This Row],[Proposed Fixture]],FIND(\"]\",Table_NCSummary[[#This Row],[Proposed Fixture]],1))-2),Table_ControlType[],2, FALSE),None)),\n\"\")","v":""},{"$f":"IFERROR(VLOOKUP(Table_NCSummary[[#This Row],[Controls Measure Description]],Table_ControlRate[],2,FALSE),\"\")","v":""},{"$f":"IFERROR(IF(Table_NCSummary[[#This Row],[IsActive]],IF((1-SUMPRODUCT(Table_NCSummary[P. Qty],Table_NCSummary[Proposed Fixture Wattage])/SUM(Table_NCSummary[Baseline Wattage]))<0.1,\"DNQ [kW Reduction <10%]\",IF(OR(Table_NCSummary[[#This Row],[Controls Measure Description]]=\"\",Table_NCSummary[[#This Row],[Controls Measure Description]]=\"New Construction - No Controls\"),0,ROUND(Table_NCSummary[[#This Row],[Controls Rebate (per Fixt Watt)]]*Table_NCSummary[[#This Row],[Proposed Fixture Wattage]]*Table_NCSummary[[#This Row],[P. Qty]],2))),\"\"),\"\")","v":""},{"$f":"IFERROR(IF(Table_NCSummary[[#This Row],[Fixture Measure Description]]=\"Ineligible Fixture\",0,ROUND(IF(ProjectCost_Total=0,300000,ProjectCost_Total)*Table_NCSummary[[#This Row],[Controls Rebate]]/SUM(Table_NCSummary[Fixture Rebate],Table_NCSummary[Controls Rebate]),2)),\"\")","v":""},{"$f":"IFERROR(IF(Table_NCSummary[[#This Row],[IsActive]],IF((1-SUMPRODUCT(Table_NCSummary[P. Qty],Table_NCSummary[Proposed Fixture Wattage])/SUM(Table_NCSummary[Baseline Wattage]))<0.1,\"DNQ [kW Reduction <10%]\",IF(Table_NCSummary[[#This Row],[Controls Measure Description]]=\"\",0,(Table_NCSummary[[#This Row],[Proposed Fixture (Existing Controls) kWh]]-Table_NCSummary[[#This Row],[Proposed Fixture (Proposed Controls) kWh]]))),\"\"),\"\")","v":""},{"$f":"IFERROR(IF(Table_NCSummary[[#This Row],[IsActive]],IF((1-SUMPRODUCT(Table_NCSummary[P. Qty],Table_NCSummary[Proposed Fixture Wattage])/SUM(Table_NCSummary[Baseline Wattage]))<0.1,\"DNQ [kW Reduction <10%]\",IF(OR(Table_NCSummary[[#This Row],[Controls Measure Description]]=\"\",Table_NCSummary[[#This Row],[Controls Measure Description]]=\"New Construction - No Controls\"),0,(Table_NCSummary[[#This Row],[Proposed Fixture (Existing Controls) kWh]]-Table_NCSummary[[#This Row],[Proposed Fixture (Proposed Controls) kWh]])/Table_NCSummary[[#This Row],[OpHrs]]*Table_NCSummary[[#This Row],[CF (Ltg)]]*Table_NCSummary[[#This Row],[DF (Ltg)]])),\"\"),\"\")","v":""},null,{"$f":"IFERROR(IF(NOT(ISNUMBER(Table_NCSummary[[#This Row],[Fixture Rebate]])),\"\",IF(MIN(IF(Table_NCSummary[[#This Row],[Fixture Cost]]<0,0,SUM(Table_NCSummary[Fixture Cost],Table_NCSummary[Controls Cost])),SUM(Table_NCSummary[Fixture Rebate],Table_NCSummary[Controls Rebate]))>300000,300000/MIN(IF(Table_NCSummary[[#This Row],[Fixture Cost]]<0,0,SUM(Table_NCSummary[Fixture Cost],Table_NCSummary[Controls Cost])),SUM(Table_NCSummary[Fixture Rebate],Table_NCSummary[Controls Rebate]))*MIN(IF(Table_NCSummary[[#This Row],[Fixture Cost]]<0,0,SUM(Table_NCSummary[Fixture Cost],Table_NCSummary[Controls Cost])),Table_NCSummary[[#This Row],[Fixture Rebate]]+IF(Table_NCSummary[[#This Row],[Controls Rebate]]=\"\",0,Table_NCSummary[[#This Row],[Controls Rebate]])),MIN(IF(Table_NCSummary[[#This Row],[Fixture Cost]]<0,0,SUM(Table_NCSummary[Fixture Cost],Table_NCSummary[Controls Cost])),Table_NCSummary[[#This Row],[Fixture Rebate]]+IF(Table_NCSummary[[#This Row],[Controls Rebate]]=\"\",0,Table_NCSummary[[#This Row],[Controls Rebate]])))),\"\")","v":""},{"$f":"IFERROR(IF(Table_NCSummary[[#This Row],[Fixture Cost]]=\"\",\"\",Table_NCSummary[[#This Row],[Fixture Cost]]+IF(Table_NCSummary[[#This Row],[Controls Cost]]=\"\",0,Table_NCSummary[[#This Row],[Controls Cost]])),\"\")","v":""},{"$f":"IFERROR(IF(Table_NCSummary[[#This Row],[IsActive]],IF(NOT(ISNUMBER(Table_NCSummary[[#This Row],[Fixture Rebate]])),\"\",IF(Table_NCInfo[[#This Row],[Interior/ Exterior]]=\"Interior\",IFERROR((Table_NCSummary[[#This Row],[Annual Fixture Savings (kWh)]]+Table_NCSummary[[#This Row],[Annual Control Savings (kWh)]])*(Table_NCSummary[[#This Row],[EIF]]-1),0),0)),\"\"),\"\")","v":""},{"$f":"IFERROR(IF(Table_NCSummary[[#This Row],[IsActive]],IF(NOT(ISNUMBER(Table_NCSummary[[#This Row],[Fixture Rebate]])),\"\",IF(Table_NCInfo[[#This Row],[Interior/ Exterior]]=\"Interior\",IFERROR((Table_NCSummary[[#This Row],[Fixture kW Reduction]]+Table_NCSummary[[#This Row],[Control kW Reduction]]/(Table_NCSummary[[#This Row],[CF (Ltg)]]*Table_NCSummary[[#This Row],[DF (Ltg)]]))*(Table_NCSummary[[#This Row],[DIF]]-1)*Table_NCSummary[[#This Row],[CF (HVAC)]]*Table_NCSummary[[#This Row],[DF (HVAC)]],0),0)),\"\"),\"\")","v":""},{"$f":"IFERROR(IF(Table_NCSummary[[#This Row],[IsActive]],IF(NOT(ISNUMBER(Table_NCSummary[[#This Row],[Fixture Rebate]])),\"\",ROUND(Table_NCSummary[[#This Row],[Annual Fixture Savings (kWh)]]+Table_NCSummary[[#This Row],[Annual Control Savings (kWh)]],0)),\"\"),\"\")","v":""},{"$f":"IFERROR(IF(Table_NCSummary[[#This Row],[IsActive]],IF(NOT(ISNUMBER(Table_NCSummary[[#This Row],[Fixture Rebate]])),\"\",ROUND(Table_NCSummary[[#This Row],[Fixture kW Reduction]]+Table_NCSummary[[#This Row],[Control kW Reduction]],3)),\"\"),\"\")","v":""},{"$f":"IFERROR(IF(Table_NCSummary[[#This Row],[IsActive]],IF(NOT(ISNUMBER(Table_NCSummary[[#This Row],[Fixture Rebate]])),\"\",ROUND(Table_NCSummary[[#This Row],[Fixture Energy Savings (kWh)]]+Table_NCSummary[[#This Row],[Induced HVAC Energy Savings (kWh)]],0)),\"\"),\"\")","v":""},{"$f":"IFERROR(IF(Table_NCSummary[[#This Row],[IsActive]],IF(NOT(ISNUMBER(Table_NCSummary[[#This Row],[Fixture Rebate]])),\"\",ROUND(Table_NCSummary[[#This Row],[Fixture Demand Savings (kW)]]+Table_NCSummary[[#This Row],[Induced HVAC Demand Savings (kW)]],3)),\"\"),\"\")","v":""}]
[{"$f":"IFERROR(Table_NCInfo[[#This Row],[Line]],\"\")","v":20},{"$f":"IFERROR(Table_NCInfo[[#This Row],[IsActive]],\"\")","v":false},{"$f":"IFERROR(IF(Table_NCSummary[[#This Row],[IsActive]],VLOOKUP(IF(ISNUMBER(MATCH(Table_NCInfo[[#This Row],[Line]],Table_NCInspection[Line],0)),INDEX(Table_NCInspection[Schedule],MATCH(Table_NCSummary[[#This Row],[Line Item]],Table_NCInspection[Line],0)),Table_NCInfo[[#This Row],[Schedule]]),'Customer Information'!$S$27:$T$34,2,FALSE),\"\"),\"\")","v":""},{"$f":"IFERROR(IF(Table_NCSummary[[#This Row],[IsActive]],INDEX(Table_IntLookups[EIF],MATCH(IF(ISNUMBER(MATCH(Table_NCSummary[[#This Row],[Line Item]],Table_NCInspection[Line],0)),INDEX(Table_NCInspection[Zone Description],MATCH(Table_NCSummary[[#This Row],[Line Item]],Table_NCInfo[Line],0)),Table_NCInfo[[#This Row],[Zone Description]]),Table_IntLookups[Dropdown],0)),\"\"),\"\")","v":""},{"$f":"IFERROR(IF(Table_NCSummary[[#This Row],[IsActive]],INDEX(Table_IntLookups[DIF],MATCH(IF(ISNUMBER(MATCH(Table_NCSummary[[#This Row],[Line Item]],Table_NCInspection[Line],0)),INDEX(Table_NCInspection[Zone Description],MATCH(Table_NCSummary[[#This Row],[Line Item]],Table_NCInfo[Line],0)),Table_NCInfo[[#This Row],[Zone Description]]),Table_IntLookups[Dropdown],0)),\"\"),\"\")","v":""},{"$f":"IFERROR(IF(Table_NCSummary[[#This Row],[IsActive]],INDEX(Table_IntLookups[CFltg],MATCH(IF(ISNUMBER(MATCH(Table_NCSummary[[#This Row],[Line Item]],Table_NCInspection[Line],0)),INDEX(Table_NCInspection[Zone Description],MATCH(Table_NCSummary[[#This Row],[Line Item]],Table_NCInfo[Line],0)),Table_NCInfo[[#This Row],[Zone Description]]),Table_IntLookups[Dropdown],0)),\"\"),\"\")","v":""},{"$f":"IFERROR(IF(Table_NCSummary[[#This Row],[IsActive]],INDEX(Table_IntLookups[DFltg],MATCH(IF(ISNUMBER(MATCH(Table_NCSummary[[#This Row],[Line Item]],Table_NCInspection[Line],0)),INDEX(Table_NCInspection[Zone Description],MATCH(Table_NCSummary[[#This Row],[Line Item]],Table_NCInfo[Line],0)),Table_NCInfo[[#This Row],[Zone Description]]),Table_IntLookups[Dropdown],0)),\"\"),\"\")","v":""},{"$f":"IFERROR(IF(Table_NCSummary[[#This Row],[IsActive]],INDEX(Table_IntLookups[Cfhvac],MATCH(IF(ISNUMBER(MATCH(Table_NCSummary[[#This Row],[Line Item]],Table_NCInspection[Line],0)),INDEX(Table_NCInspection[Zone Description],MATCH(Table_NCSummary[[#This Row],[Line Item]],Table_NCInfo[Line],0)),Table_NCInfo[[#This Row],[Zone Description]]),Table_IntLookups[Dropdown],0)),\"\"),\"\")","v":""},{"$f":"IFERROR(IF(Table_NCSummary[[#This Row],[IsActive]],INDEX(Table_IntLookups[Dfhvac],MATCH(IF(ISNUMBER(MATCH(Table_NCSummary[[#This Row],[Line Item]],Table_NCInspection[Line],0)),INDEX(Table_NCInspection[Zone Description],MATCH(Table_NCSummary[[#This Row],[Line Item]],Table_NCInfo[Line],0)),Table_NCInfo[[#This Row],[Zone Description]]),Table_IntLookups[Dropdown],0)),\"\"),\"\")","v":""},{"$f":"IFERROR(IF(Table_NCSummary[[#This Row],[IsActive]],\nIF(ISNUMBER(MATCH(Table_NCInfo[[#This Row],[Line]],Table_NCInspection[Line],0)),INDEX(Table_NCInspection[Zone Description],MATCH(Table_NCSummary[[#This Row],[Line Item]],Table_NCInspection[Line],0)),Table_NCInfo[[#This Row],[Zone Description]]),\n \"\"),\"\")","v":""},{"$f":"IFERROR(IF(Table_NCSummary[[#This Row],[IsActive]],\nCONCATENATE(\nIF(ISNUMBER(MATCH(Table_NCInfo[[#This Row],[Line]],Table_NCInspection[Line],0)),INDEX(Table_NCInspection[Interior/ Exterior],MATCH(Table_NCSummary[[#This Row],[Line Item]],Table_NCInspection[Line],0)),Table_NCInfo[[#This Row],[Interior/ Exterior]]),\n\" - \",\nIF(ISNUMBER(MATCH(Table_NCInfo[[#This Row],[Line]],Table_NCInspection[Line],0)),INDEX(Table_NCInspection[Space Description],MATCH(Table_NCSummary[[#This Row],[Line Item]],Table_NCInspection[Line],0)),Table_NCInfo[[#This Row],[Space Description]])),\n \"\"),\"\")","v":""},{"$f":"IFERROR(IF(ISNUMBER(MATCH(Table_NCInfo[[#This Row],[Line]],Table_NCInspection[Line],0)),INDEX(Table_NCInspection[Baseline Wattage],MATCH(Table_NCSummary[[#This Row],[Line Item]],Table_NCInspection[Line],0)),Table_NCInfo[[#This Row],[Baseline Wattage]]),\"\")","v":""},{"$f":"IFERROR(IF(Table_NCSummary[[#This Row],[IsActive]],Table_NCSummary[[#This Row],[Baseline Wattage]]/1000*Table_NCSummary[[#This Row],[OpHrs]],\"\"),\"\")","v":""},{"$f":"IFERROR(IF(Table_NCSummary[[#This Row],[IsActive]],IFERROR(VLOOKUP(IF(ISNUMBER(MATCH(Table_NCSummary[[#This Row],[Line Item]],Table_NCInspection[Line],0)),INDEX(Table_NCInspection[Zone '#],MATCH(Table_NCSummary[[#This Row],[Line Item]],Table_NCInspection[Line],0)),Table_NCInfo[[#This Row],[Zone '#]]),Table_IntLookups[],'Facility Information'!$AA$4,FALSE),0),\"\"),\"\")","v":""},{"$f":"IFERROR(IF(Table_NCSummary[[#This Row],[IsActive]],IFERROR(Table_NCSummary[[#This Row],[Baseline Wattage]]/1000*Table_NCSummary[[#This Row],[OpHrs]]*Table_NCSummary[[#This Row],[Existing CSF]]*(-1),0),\"\"),\"\")","v":""},{"$f":"IFERROR(Table_NCSummary[[#This Row],[Baseline kWh]]+Table_NCSummary[[#This Row],[Existing Fixture (Existing Controls) kWh]],\"\")","v":""},{"$f":"IFERROR(IF(Table_NCSummary[[#This Row],[IsActive]],IF(ISNUMBER(MATCH(Table_NCInfo[[#This Row],[Line]],Table_NCInspection[Line],0)),INDEX(Table_NCInspection[Fixture Description '[P']],MATCH(Table_NCSummary[[#This Row],[Line Item]],Table_NCInspection[Line],0)),Table_NCInfo[[#This Row],[Fixture Description '[P']]]),\"\"),\"\")","v":""},{"$f":"IFERROR(IF(Table_NCSummary[[#This Row],[IsActive]],IF(ISNUMBER(MATCH(Table_NCInfo[[#This Row],[Line]],Table_NCInspection[Line],0)),INDEX(Table_NCInspection['# Lamps/ Fixture '[P']],MATCH(Table_NCSummary[[#This Row],[Line Item]],Table_NCInspection[Line],0)),Table_NCInfo[[#This Row],['# Lamps/ Fixture '[P']]]),\"\"),\"\")","v":""},{"$f":"IFERROR(IF(Table_NCSummary[[#This Row],[IsActive]],IF(ISNUMBER(MATCH(Table_NCInfo[[#This Row],[Line]],Table_NCInspection[Line],0)),INDEX(Table_NCInspection[Fixture/ Lamp Wattage '[P']],MATCH(Table_NCSummary[[#This Row],[Line Item]],Table_NCInspection[Line],0)),Table_NCInfo[[#This Row],[Fixture/ Lamp Wattage '[P']]]),\"\"),\"\")","v":""},{"$f":"IFERROR(IF(Table_NCSummary[[#This Row],[IsActive]],IF(ISNUMBER(MATCH(Table_NCInfo[[#This Row],[Line]],Table_NCInspection[Line],0)),INDEX(Table_NCInspection[Fixture Qty '[P']],MATCH(Table_NCSummary[[#This Row],[Line Item]],Table_NCInspection[Line],0)),Table_NCInfo[[#This Row],[Fixture Qty '[P']]]),\"\"),\"\")","v":""},{"$f":"IFERROR(IF(Table_NCSummary[[#This Row],[IsActive]],Table_NCSummary[[#This Row],['# Lamps/ Fixture '[P']]]*Table_NCSummary[[#This Row],[P. Qty]],\"\"),\"\")","v":""},{"$f":"IFERROR(IF(Table_NCSummary[[#This Row],[IsActive]],IF(ISNUMBER(MATCH(Table_NCInfo[[#This Row],[Line]],Table_NCInspection[Line],0)),INDEX(Table_NCInspection[Fixture Wattage '[P']],MATCH(Table_NCSummary[[#This Row],[Line Item]],Table_NCInspection[Line],0)),Table_NCInfo[[#This Row],[Fixture Wattage '[P']]]),\"\"),\"\")","v":""},{"$f":"IFERROR(Table_NCSummary[[#This Row],[P. Qty]]*Table_NCSummary[[#This Row],[Proposed Fixture Wattage]],\"\")","v":""},{"$f":"IFERROR(Table_NCSummary[[#This Row],[Proposed Fixture Wattage]]/1000*Table_NCSummary[[#This Row],[OpHrs]]*Table_NCSummary[[#This Row],[P. Qty]],\"\")","v":""},{"$f":"IFERROR(IF(Table_NCSummary[[#This Row],[IsActive]],IFERROR(VLOOKUP(RIGHT(Table_NCSummary[[#This Row],[Proposed Fixture]],LEN(Table_NCSummary[[#This Row],[Proposed Fixture]])-FIND(\" - \",Table_NCSummary[[#This Row],[Proposed Fixture]],FIND(\"]\",Table_NCSummary[[#This Row],[Proposed Fixture]],1))-2),Table_ControlType[],3, FALSE),Table_NCSummary[[#This Row],[Existing CSF]]),\"\"),\"\")","v":""},{"$f":"IFERROR(IF(Table_NCSummary[[#This Row],[IsActive]],IFERROR(Table_NCSummary[[#This Row],[Proposed Fixture Wattage]]/1000*Table_NCSummary[[#This Row],[OpHrs]]*Table_NCSummary[[#This Row],[P. Qty]]*Table_NCSummary[[#This Row],[Existing CSF]]*(-1),0),\"\"),\"\")","v":""},{"$f":"IFERROR(Table_NCSummary[[#This Row],[Proposed Fixture kWh]]+Table_NCSummary[[#This Row],[Proposed Fixture (Existing Controls) kWh]],\"\")","v":""},{"$f":"IFERROR(IF(Table_NCSummary[[#This Row],[IsActive]],IFERROR(Table_NCSummary[[#This Row],[Proposed Fixture Wattage]]/1000*Table_NCSummary[[#This Row],[OpHrs]]*Table_NCSummary[[#This Row],[P. Qty]]*Table_NCSummary[[#This Row],[Proposed CSF]]*(-1),0),\"\"),\"\")","v":""},{"$f":"IFERROR(Table_NCSummary[[#This Row],[Proposed Fixture kWh]]+Table_NCSummary[[#This Row],[Proposed Fixture (Proposed Controls) kWh]],\"\")","v":""},null,{"$f":"IFERROR(IF(Table_NCSummary[[#This Row],[IsActive]],IF((1-SUMPRODUCT(Table_NCSummary[P. Qty],Table_NCSummary[Proposed Fixture Wattage])/SUM(Table_NCSummary[Baseline Wattage]))<0.1,\"Does Not Qualify [Overall Fixture Reduction is less than 10%]\",IF(ISNUMBER(FIND(\"LED\",Table_NCSummary[[#This Row],[Proposed Fixture]],1)),IF(ISNUMBER(FIND(\"LED Tube\",Table_NCSummary[[#This Row],[Proposed Fixture]],1)),\"New Construction Interior LED Fixture\",IF(ISNUMBER(FIND(\"LED\",Table_NCSummary[[#This Row],[Proposed Fixture]],1)),IF(Table_NCInfo[[#This Row],[Interior/ Exterior]]=\"Exterior\",\"New Construction Exterior LED Fixture\",\"New Construction Interior LED Fixture\"),\"Ineligible Fixture\")),\"Ineligible Fixture\")),\"\"),\"\")","v":""},{"$f":"IFERROR(VLOOKUP(Table_NCSummary[[#This Row],[Fixture Measure Description]],Table_FixtureRate[],2,FALSE),\"\")","v":""},{"$f":"IFERROR(IF(Table_NCSummary[[#This Row],[IsActive]],IF((1-SUMPRODUCT(Table_NCSummary[P. Qty],Table_NCSummary[Proposed Fixture Wattage])/SUM(Table_NCSummary[Baseline Wattage]))<0.1,\"DNQ [kW Reduction <10%]\",IF(Table_NCSummary[[#This Row],[Fixture Measure Description]]=\"Ineligible Fixture\",0,ROUND(Table_NCSummary[[#This Row],[Fixture Rebate (per kW)]]*(Table_NCSummary[[#This Row],[Baseline Wattage]]-Table_NCSummary[[#This Row],[Proposed Wattage]])/1000,2))),\"\"),\"\")","v":""},{"$f":"IFERROR(IF(Table_NCSummary[[#This Row],[Fixture Measure Description]]=\"Ineligible Fixture\",0,ROUND(IF(ProjectCost_Total=0,300000,ProjectCost_Total)*Table_NCSummary[[#This Row],[Fixture Rebate]]/SUM(Table_NCSummary[Fixture Rebate],Table_NCSummary[Controls Rebate]),2)),\"\")","v":""},{"$f":"IFERROR(IF(Table_NCSummary[[#This Row],[IsActive]],IF((1-SUMPRODUCT(Table_NCSummary[P. Qty],Table_NCSummary[Proposed Fixture Wattage])/SUM(Table_NCSummary[Baseline Wattage]))<0.1,\"DNQ [kW Reduction <10%]\",IF(Table_NCSummary[[#This Row],[Fixture Measure Description]]=\"Ineligible Fixture\",0,Table_NCSummary[[#This Row],[Existing Overall kWh]]-Table_NCSummary[[#This Row],[Proposed Overall kWh (Existing Controls)]])),\"\"),\"\")","v":""},{"$f":"IFERROR(IF(Table_NCSummary[[#This Row],[IsActive]],IF((1-SUMPRODUCT(Table_NCSummary[P. Qty],Table_NCSummary[Proposed Fixture Wattage])/SUM(Table_NCSummary[Baseline Wattage]))<0.1,\"DNQ [kW Reduction <10%]\",IF(OR(Table_NCSummary[[#This Row],[Fixture Measure Description]]=\"Ineligible Fixture\",Table_NCSummary[[#This Row],[Fixture Measure Description]]=\"New Construction Exterior LED Fixture\"),0,(Table_NCSummary[[#This Row],[Baseline kWh]]-Table_NCSummary[[#This Row],[Proposed Fixture kWh]])/Table_NCSummary[[#This Row],[OpHrs]]*Table_NCSummary[[#This Row],[CF (Ltg)]]*Table_NCSummary[[#This Row],[DF (Ltg)]])),\"\"),\"\")","v":""},null,{"$f":"IFERROR(\n  IF(OR(Table_NCSummary[[#This Row],[Fixture Measure Description]]=\"\",Table_NCSummary[[#This Row],[Fixture Measure Description]]=\"Ineligible Fixture\"),\n    \"\",\n    \"New Construction\"\n    & \" - \" &\n    IFERROR(VLOOKUP(RIGHT(Table_NCSummary[[#This Row],[Proposed Fixture]],LEN(Table_NCSummary[[#This Row],[Proposed Fixture]])-FIND(\" - \",Table_NCSummary[[#This Row],[Proposed Fixture]],FIND(\"]\",Table_NCSummary[[#This Row],[Proposed Fixture]],1))-2),Table_ControlType[],2, FALSE),None)),\n\"\")","v":""},{"$f":"IFERROR(VLOOKUP(Table_NCSummary[[#This Row],[Controls Measure Description]],Table_ControlRate[],2,FALSE),\"\")","v":""},{"$f":"IFERROR(IF(Table_NCSummary[[#This Row],[IsActive]],IF((1-SUMPRODUCT(Table_NCSummary[P. Qty],Table_NCSummary[Proposed Fixture Wattage])/SUM(Table_NCSummary[Baseline Wattage]))<0.1,\"DNQ [kW Reduction <10%]\",IF(OR(Table_NCSummary[[#This Row],[Controls Measure Description]]=\"\",Table_NCSummary[[#This Row],[Controls Measure Description]]=\"New Construction - No Controls\"),0,ROUND(Table_NCSummary[[#This Row],[Controls Rebate (per Fixt Watt)]]*Table_NCSummary[[#This Row],[Proposed Fixture Wattage]]*Table_NCSummary[[#This Row],[P. Qty]],2))),\"\"),\"\")","v":""},{"$f":"IFERROR(IF(Table_NCSummary[[#This Row],[Fixture Measure Description]]=\"Ineligible Fixture\",0,ROUND(IF(ProjectCost_Total=0,300000,ProjectCost_Total)*Table_NCSummary[[#This Row],[Controls Rebate]]/SUM(Table_NCSummary[Fixture Rebate],Table_NCSummary[Controls Rebate]),2)),\"\")","v":""},{"$f":"IFERROR(IF(Table_NCSummary[[#This Row],[IsActive]],IF((1-SUMPRODUCT(Table_NCSummary[P. Qty],Table_NCSummary[Proposed Fixture Wattage])/SUM(Table_NCSummary[Baseline Wattage]))<0.1,\"DNQ [kW Reduction <10%]\",IF(Table_NCSummary[[#This Row],[Controls Measure Description]]=\"\",0,(Table_NCSummary[[#This Row],[Proposed Fixture (Existing Controls) kWh]]-Table_NCSummary[[#This Row],[Proposed Fixture (Proposed Controls) kWh]]))),\"\"),\"\")","v":""},{"$f":"IFERROR(IF(Table_NCSummary[[#This Row],[IsActive]],IF((1-SUMPRODUCT(Table_NCSummary[P. Qty],Table_NCSummary[Proposed Fixture Wattage])/SUM(Table_NCSummary[Baseline Wattage]))<0.1,\"DNQ [kW Reduction <10%]\",IF(OR(Table_NCSummary[[#This Row],[Controls Measure Description]]=\"\",Table_NCSummary[[#This Row],[Controls Measure Description]]=\"New Construction - No Controls\"),0,(Table_NCSummary[[#This Row],[Proposed Fixture (Existing Controls) kWh]]-Table_NCSummary[[#This Row],[Proposed Fixture (Proposed Controls) kWh]])/Table_NCSummary[[#This Row],[OpHrs]]*Table_NCSummary[[#This Row],[CF (Ltg)]]*Table_NCSummary[[#This Row],[DF (Ltg)]])),\"\"),\"\")","v":""},null,{"$f":"IFERROR(IF(NOT(ISNUMBER(Table_NCSummary[[#This Row],[Fixture Rebate]])),\"\",IF(MIN(IF(Table_NCSummary[[#This Row],[Fixture Cost]]<0,0,SUM(Table_NCSummary[Fixture Cost],Table_NCSummary[Controls Cost])),SUM(Table_NCSummary[Fixture Rebate],Table_NCSummary[Controls Rebate]))>300000,300000/MIN(IF(Table_NCSummary[[#This Row],[Fixture Cost]]<0,0,SUM(Table_NCSummary[Fixture Cost],Table_NCSummary[Controls Cost])),SUM(Table_NCSummary[Fixture Rebate],Table_NCSummary[Controls Rebate]))*MIN(IF(Table_NCSummary[[#This Row],[Fixture Cost]]<0,0,SUM(Table_NCSummary[Fixture Cost],Table_NCSummary[Controls Cost])),Table_NCSummary[[#This Row],[Fixture Rebate]]+IF(Table_NCSummary[[#This Row],[Controls Rebate]]=\"\",0,Table_NCSummary[[#This Row],[Controls Rebate]])),MIN(IF(Table_NCSummary[[#This Row],[Fixture Cost]]<0,0,SUM(Table_NCSummary[Fixture Cost],Table_NCSummary[Controls Cost])),Table_NCSummary[[#This Row],[Fixture Rebate]]+IF(Table_NCSummary[[#This Row],[Controls Rebate]]=\"\",0,Table_NCSummary[[#This Row],[Controls Rebate]])))),\"\")","v":""},{"$f":"IFERROR(IF(Table_NCSummary[[#This Row],[Fixture Cost]]=\"\",\"\",Table_NCSummary[[#This Row],[Fixture Cost]]+IF(Table_NCSummary[[#This Row],[Controls Cost]]=\"\",0,Table_NCSummary[[#This Row],[Controls Cost]])),\"\")","v":""},{"$f":"IFERROR(IF(Table_NCSummary[[#This Row],[IsActive]],IF(NOT(ISNUMBER(Table_NCSummary[[#This Row],[Fixture Rebate]])),\"\",IF(Table_NCInfo[[#This Row],[Interior/ Exterior]]=\"Interior\",IFERROR((Table_NCSummary[[#This Row],[Annual Fixture Savings (kWh)]]+Table_NCSummary[[#This Row],[Annual Control Savings (kWh)]])*(Table_NCSummary[[#This Row],[EIF]]-1),0),0)),\"\"),\"\")","v":""},{"$f":"IFERROR(IF(Table_NCSummary[[#This Row],[IsActive]],IF(NOT(ISNUMBER(Table_NCSummary[[#This Row],[Fixture Rebate]])),\"\",IF(Table_NCInfo[[#This Row],[Interior/ Exterior]]=\"Interior\",IFERROR((Table_NCSummary[[#This Row],[Fixture kW Reduction]]+Table_NCSummary[[#This Row],[Control kW Reduction]]/(Table_NCSummary[[#This Row],[CF (Ltg)]]*Table_NCSummary[[#This Row],[DF (Ltg)]]))*(Table_NCSummary[[#This Row],[DIF]]-1)*Table_NCSummary[[#This Row],[CF (HVAC)]]*Table_NCSummary[[#This Row],[DF (HVAC)]],0),0)),\"\"),\"\")","v":""},{"$f":"IFERROR(IF(Table_NCSummary[[#This Row],[IsActive]],IF(NOT(ISNUMBER(Table_NCSummary[[#This Row],[Fixture Rebate]])),\"\",ROUND(Table_NCSummary[[#This Row],[Annual Fixture Savings (kWh)]]+Table_NCSummary[[#This Row],[Annual Control Savings (kWh)]],0)),\"\"),\"\")","v":""},{"$f":"IFERROR(IF(Table_NCSummary[[#This Row],[IsActive]],IF(NOT(ISNUMBER(Table_NCSummary[[#This Row],[Fixture Rebate]])),\"\",ROUND(Table_NCSummary[[#This Row],[Fixture kW Reduction]]+Table_NCSummary[[#This Row],[Control kW Reduction]],3)),\"\"),\"\")","v":""},{"$f":"IFERROR(IF(Table_NCSummary[[#This Row],[IsActive]],IF(NOT(ISNUMBER(Table_NCSummary[[#This Row],[Fixture Rebate]])),\"\",ROUND(Table_NCSummary[[#This Row],[Fixture Energy Savings (kWh)]]+Table_NCSummary[[#This Row],[Induced HVAC Energy Savings (kWh)]],0)),\"\"),\"\")","v":""},{"$f":"IFERROR(IF(Table_NCSummary[[#This Row],[IsActive]],IF(NOT(ISNUMBER(Table_NCSummary[[#This Row],[Fixture Rebate]])),\"\",ROUND(Table_NCSummary[[#This Row],[Fixture Demand Savings (kW)]]+Table_NCSummary[[#This Row],[Induced HVAC Demand Savings (kW)]],3)),\"\"),\"\")","v":""}]
[{"$f":"IFERROR(Table_NCInfo[[#This Row],[Line]],\"\")","v":21},{"$f":"IFERROR(Table_NCInfo[[#This Row],[IsActive]],\"\")","v":false},{"$f":"IFERROR(IF(Table_NCSummary[[#This Row],[IsActive]],VLOOKUP(IF(ISNUMBER(MATCH(Table_NCInfo[[#This Row],[Line]],Table_NCInspection[Line],0)),INDEX(Table_NCInspection[Schedule],MATCH(Table_NCSummary[[#This Row],[Line Item]],Table_NCInspection[Line],0)),Table_NCInfo[[#This Row],[Schedule]]),'Customer Information'!$S$27:$T$34,2,FALSE),\"\"),\"\")","v":""},{"$f":"IFERROR(IF(Table_NCSummary[[#This Row],[IsActive]],INDEX(Table_IntLookups[EIF],MATCH(IF(ISNUMBER(MATCH(Table_NCSummary[[#This Row],[Line Item]],Table_NCInspection[Line],0)),INDEX(Table_NCInspection[Zone Description],MATCH(Table_NCSummary[[#This Row],[Line Item]],Table_NCInfo[Line],0)),Table_NCInfo[[#This Row],[Zone Description]]),Table_IntLookups[Dropdown],0)),\"\"),\"\")","v":""},{"$f":"IFERROR(IF(Table_NCSummary[[#This Row],[IsActive]],INDEX(Table_IntLookups[DIF],MATCH(IF(ISNUMBER(MATCH(Table_NCSummary[[#This Row],[Line Item]],Table_NCInspection[Line],0)),INDEX(Table_NCInspection[Zone Description],MATCH(Table_NCSummary[[#This Row],[Line Item]],Table_NCInfo[Line],0)),Table_NCInfo[[#This Row],[Zone Description]]),Table_IntLookups[Dropdown],0)),\"\"),\"\")","v":""},{"$f":"IFERROR(IF(Table_NCSummary[[#This Row],[IsActive]],INDEX(Table_IntLookups[CFltg],MATCH(IF(ISNUMBER(MATCH(Table_NCSummary[[#This Row],[Line Item]],Table_NCInspection[Line],0)),INDEX(Table_NCInspection[Zone Description],MATCH(Table_NCSummary[[#This Row],[Line Item]],Table_NCInfo[Line],0)),Table_NCInfo[[#This Row],[Zone Description]]),Table_IntLookups[Dropdown],0)),\"\"),\"\")","v":""},{"$f":"IFERROR(IF(Table_NCSummary[[#This Row],[IsActive]],INDEX(Table_IntLookups[DFltg],MATCH(IF(ISNUMBER(MATCH(Table_NCSummary[[#This Row],[Line Item]],Table_NCInspection[Line],0)),INDEX(Table_NCInspection[Zone Description],MATCH(Table_NCSummary[[#This Row],[Line Item]],Table_NCInfo[Line],0)),Table_NCInfo[[#This Row],[Zone Description]]),Table_IntLookups[Dropdown],0)),\"\"),\"\")","v":""},{"$f":"IFERROR(IF(Table_NCSummary[[#This Row],[IsActive]],INDEX(Table_IntLookups[Cfhvac],MATCH(IF(ISNUMBER(MATCH(Table_NCSummary[[#This Row],[Line Item]],Table_NCInspection[Line],0)),INDEX(Table_NCInspection[Zone Description],MATCH(Table_NCSummary[[#This Row],[Line Item]],Table_NCInfo[Line],0)),Table_NCInfo[[#This Row],[Zone Description]]),Table_IntLookups[Dropdown],0)),\"\"),\"\")","v":""},{"$f":"IFERROR(IF(Table_NCSummary[[#This Row],[IsActive]],INDEX(Table_IntLookups[Dfhvac],MATCH(IF(ISNUMBER(MATCH(Table_NCSummary[[#This Row],[Line Item]],Table_NCInspection[Line],0)),INDEX(Table_NCInspection[Zone Description],MATCH(Table_NCSummary[[#This Row],[Line Item]],Table_NCInfo[Line],0)),Table_NCInfo[[#This Row],[Zone Description]]),Table_IntLookups[Dropdown],0)),\"\"),\"\")","v":""},{"$f":"IFERROR(IF(Table_NCSummary[[#This Row],[IsActive]],\nIF(ISNUMBER(MATCH(Table_NCInfo[[#This Row],[Line]],Table_NCInspection[Line],0)),INDEX(Table_NCInspection[Zone Description],MATCH(Table_NCSummary[[#This Row],[Line Item]],Table_NCInspection[Line],0)),Table_NCInfo[[#This Row],[Zone Description]]),\n \"\"),\"\")","v":""},{"$f":"IFERROR(IF(Table_NCSummary[[#This Row],[IsActive]],\nCONCATENATE(\nIF(ISNUMBER(MATCH(Table_NCInfo[[#This Row],[Line]],Table_NCInspection[Line],0)),INDEX(Table_NCInspection[Interior/ Exterior],MATCH(Table_NCSummary[[#This Row],[Line Item]],Table_NCInspection[Line],0)),Table_NCInfo[[#This Row],[Interior/ Exterior]]),\n\" - \",\nIF(ISNUMBER(MATCH(Table_NCInfo[[#This Row],[Line]],Table_NCInspection[Line],0)),INDEX(Table_NCInspection[Space Description],MATCH(Table_NCSummary[[#This Row],[Line Item]],Table_NCInspection[Line],0)),Table_NCInfo[[#This Row],[Space Description]])),\n \"\"),\"\")","v":""},{"$f":"IFERROR(IF(ISNUMBER(MATCH(Table_NCInfo[[#This Row],[Line]],Table_NCInspection[Line],0)),INDEX(Table_NCInspection[Baseline Wattage],MATCH(Table_NCSummary[[#This Row],[Line Item]],Table_NCInspection[Line],0)),Table_NCInfo[[#This Row],[Baseline Wattage]]),\"\")","v":""},{"$f":"IFERROR(IF(Table_NCSummary[[#This Row],[IsActive]],Table_NCSummary[[#This Row],[Baseline Wattage]]/1000*Table_NCSummary[[#This Row],[OpHrs]],\"\"),\"\")","v":""},{"$f":"IFERROR(IF(Table_NCSummary[[#This Row],[IsActive]],IFERROR(VLOOKUP(IF(ISNUMBER(MATCH(Table_NCSummary[[#This Row],[Line Item]],Table_NCInspection[Line],0)),INDEX(Table_NCInspection[Zone '#],MATCH(Table_NCSummary[[#This Row],[Line Item]],Table_NCInspection[Line],0)),Table_NCInfo[[#This Row],[Zone '#]]),Table_IntLookups[],'Facility Information'!$AA$4,FALSE),0),\"\"),\"\")","v":""},{"$f":"IFERROR(IF(Table_NCSummary[[#This Row],[IsActive]],IFERROR(Table_NCSummary[[#This Row],[Baseline Wattage]]/1000*Table_NCSummary[[#This Row],[OpHrs]]*Table_NCSummary[[#This Row],[Existing CSF]]*(-1),0),\"\"),\"\")","v":""},{"$f":"IFERROR(Table_NCSummary[[#This Row],[Baseline kWh]]+Table_NCSummary[[#This Row],[Existing Fixture (Existing Controls) kWh]],\"\")","v":""},{"$f":"IFERROR(IF(Table_NCSummary[[#This Row],[IsActive]],IF(ISNUMBER(MATCH(Table_NCInfo[[#This Row],[Line]],Table_NCInspection[Line],0)),INDEX(Table_NCInspection[Fixture Description '[P']],MATCH(Table_NCSummary[[#This Row],[Line Item]],Table_NCInspection[Line],0)),Table_NCInfo[[#This Row],[Fixture Description '[P']]]),\"\"),\"\")","v":""},{"$f":"IFERROR(IF(Table_NCSummary[[#This Row],[IsActive]],IF(ISNUMBER(MATCH(Table_NCInfo[[#This Row],[Line]],Table_NCInspection[Line],0)),INDEX(Table_NCInspection['# Lamps/ Fixture '[P']],MATCH(Table_NCSummary[[#This Row],[Line Item]],Table_NCInspection[Line],0)),Table_NCInfo[[#This Row],['# Lamps/ Fixture '[P']]]),\"\"),\"\")","v":""},{"$f":"IFERROR(IF(Table_NCSummary[[#This Row],[IsActive]],IF(ISNUMBER(MATCH(Table_NCInfo[[#This Row],[Line]],Table_NCInspection[Line],0)),INDEX(Table_NCInspection[Fixture/ Lamp Wattage '[P']],MATCH(Table_NCSummary[[#This Row],[Line Item]],Table_NCInspection[Line],0)),Table_NCInfo[[#This Row],[Fixture/ Lamp Wattage '[P']]]),\"\"),\"\")","v":""},{"$f":"IFERROR(IF(Table_NCSummary[[#This Row],[IsActive]],IF(ISNUMBER(MATCH(Table_NCInfo[[#This Row],[Line]],Table_NCInspection[Line],0)),INDEX(Table_NCInspection[Fixture Qty '[P']],MATCH(Table_NCSummary[[#This Row],[Line Item]],Table_NCInspection[Line],0)),Table_NCInfo[[#This Row],[Fixture Qty '[P']]]),\"\"),\"\")","v":""},{"$f":"IFERROR(IF(Table_NCSummary[[#This Row],[IsActive]],Table_NCSummary[[#This Row],['# Lamps/ Fixture '[P']]]*Table_NCSummary[[#This Row],[P. Qty]],\"\"),\"\")","v":""},{"$f":"IFERROR(IF(Table_NCSummary[[#This Row],[IsActive]],IF(ISNUMBER(MATCH(Table_NCInfo[[#This Row],[Line]],Table_NCInspection[Line],0)),INDEX(Table_NCInspection[Fixture Wattage '[P']],MATCH(Table_NCSummary[[#This Row],[Line Item]],Table_NCInspection[Line],0)),Table_NCInfo[[#This Row],[Fixture Wattage '[P']]]),\"\"),\"\")","v":""},{"$f":"IFERROR(Table_NCSummary[[#This Row],[P. Qty]]*Table_NCSummary[[#This Row],[Proposed Fixture Wattage]],\"\")","v":""},{"$f":"IFERROR(Table_NCSummary[[#This Row],[Proposed Fixture Wattage]]/1000*Table_NCSummary[[#This Row],[OpHrs]]*Table_NCSummary[[#This Row],[P. Qty]],\"\")","v":""},{"$f":"IFERROR(IF(Table_NCSummary[[#This Row],[IsActive]],IFERROR(VLOOKUP(RIGHT(Table_NCSummary[[#This Row],[Proposed Fixture]],LEN(Table_NCSummary[[#This Row],[Proposed Fixture]])-FIND(\" - \",Table_NCSummary[[#This Row],[Proposed Fixture]],FIND(\"]\",Table_NCSummary[[#This Row],[Proposed Fixture]],1))-2),Table_ControlType[],3, FALSE),Table_NCSummary[[#This Row],[Existing CSF]]),\"\"),\"\")","v":""},{"$f":"IFERROR(IF(Table_NCSummary[[#This Row],[IsActive]],IFERROR(Table_NCSummary[[#This Row],[Proposed Fixture Wattage]]/1000*Table_NCSummary[[#This Row],[OpHrs]]*Table_NCSummary[[#This Row],[P. Qty]]*Table_NCSummary[[#This Row],[Existing CSF]]*(-1),0),\"\"),\"\")","v":""},{"$f":"IFERROR(Table_NCSummary[[#This Row],[Proposed Fixture kWh]]+Table_NCSummary[[#This Row],[Proposed Fixture (Existing Controls) kWh]],\"\")","v":""},{"$f":"IFERROR(IF(Table_NCSummary[[#This Row],[IsActive]],IFERROR(Table_NCSummary[[#This Row],[Proposed Fixture Wattage]]/1000*Table_NCSummary[[#This Row],[OpHrs]]*Table_NCSummary[[#This Row],[P. Qty]]*Table_NCSummary[[#This Row],[Proposed CSF]]*(-1),0),\"\"),\"\")","v":""},{"$f":"IFERROR(Table_NCSummary[[#This Row],[Proposed Fixture kWh]]+Table_NCSummary[[#This Row],[Proposed Fixture (Proposed Controls) kWh]],\"\")","v":""},null,{"$f":"IFERROR(IF(Table_NCSummary[[#This Row],[IsActive]],IF((1-SUMPRODUCT(Table_NCSummary[P. Qty],Table_NCSummary[Proposed Fixture Wattage])/SUM(Table_NCSummary[Baseline Wattage]))<0.1,\"Does Not Qualify [Overall Fixture Reduction is less than 10%]\",IF(ISNUMBER(FIND(\"LED\",Table_NCSummary[[#This Row],[Proposed Fixture]],1)),IF(ISNUMBER(FIND(\"LED Tube\",Table_NCSummary[[#This Row],[Proposed Fixture]],1)),\"New Construction Interior LED Fixture\",IF(ISNUMBER(FIND(\"LED\",Table_NCSummary[[#This Row],[Proposed Fixture]],1)),IF(Table_NCInfo[[#This Row],[Interior/ Exterior]]=\"Exterior\",\"New Construction Exterior LED Fixture\",\"New Construction Interior LED Fixture\"),\"Ineligible Fixture\")),\"Ineligible Fixture\")),\"\"),\"\")","v":""},{"$f":"IFERROR(VLOOKUP(Table_NCSummary[[#This Row],[Fixture Measure Description]],Table_FixtureRate[],2,FALSE),\"\")","v":""},{"$f":"IFERROR(IF(Table_NCSummary[[#This Row],[IsActive]],IF((1-SUMPRODUCT(Table_NCSummary[P. Qty],Table_NCSummary[Proposed Fixture Wattage])/SUM(Table_NCSummary[Baseline Wattage]))<0.1,\"DNQ [kW Reduction <10%]\",IF(Table_NCSummary[[#This Row],[Fixture Measure Description]]=\"Ineligible Fixture\",0,ROUND(Table_NCSummary[[#This Row],[Fixture Rebate (per kW)]]*(Table_NCSummary[[#This Row],[Baseline Wattage]]-Table_NCSummary[[#This Row],[Proposed Wattage]])/1000,2))),\"\"),\"\")","v":""},{"$f":"IFERROR(IF(Table_NCSummary[[#This Row],[Fixture Measure Description]]=\"Ineligible Fixture\",0,ROUND(IF(ProjectCost_Total=0,300000,ProjectCost_Total)*Table_NCSummary[[#This Row],[Fixture Rebate]]/SUM(Table_NCSummary[Fixture Rebate],Table_NCSummary[Controls Rebate]),2)),\"\")","v":""},{"$f":"IFERROR(IF(Table_NCSummary[[#This Row],[IsActive]],IF((1-SUMPRODUCT(Table_NCSummary[P. Qty],Table_NCSummary[Proposed Fixture Wattage])/SUM(Table_NCSummary[Baseline Wattage]))<0.1,\"DNQ [kW Reduction <10%]\",IF(Table_NCSummary[[#This Row],[Fixture Measure Description]]=\"Ineligible Fixture\",0,Table_NCSummary[[#This Row],[Existing Overall kWh]]-Table_NCSummary[[#This Row],[Proposed Overall kWh (Existing Controls)]])),\"\"),\"\")","v":""},{"$f":"IFERROR(IF(Table_NCSummary[[#This Row],[IsActive]],IF((1-SUMPRODUCT(Table_NCSummary[P. Qty],Table_NCSummary[Proposed Fixture Wattage])/SUM(Table_NCSummary[Baseline Wattage]))<0.1,\"DNQ [kW Reduction <10%]\",IF(OR(Table_NCSummary[[#This Row],[Fixture Measure Description]]=\"Ineligible Fixture\",Table_NCSummary[[#This Row],[Fixture Measure Description]]=\"New Construction Exterior LED Fixture\"),0,(Table_NCSummary[[#This Row],[Baseline kWh]]-Table_NCSummary[[#This Row],[Proposed Fixture kWh]])/Table_NCSummary[[#This Row],[OpHrs]]*Table_NCSummary[[#This Row],[CF (Ltg)]]*Table_NCSummary[[#This Row],[DF (Ltg)]])),\"\"),\"\")","v":""},null,{"$f":"IFERROR(\n  IF(OR(Table_NCSummary[[#This Row],[Fixture Measure Description]]=\"\",Table_NCSummary[[#This Row],[Fixture Measure Description]]=\"Ineligible Fixture\"),\n    \"\",\n    \"New Construction\"\n    & \" - \" &\n    IFERROR(VLOOKUP(RIGHT(Table_NCSummary[[#This Row],[Proposed Fixture]],LEN(Table_NCSummary[[#This Row],[Proposed Fixture]])-FIND(\" - \",Table_NCSummary[[#This Row],[Proposed Fixture]],FIND(\"]\",Table_NCSummary[[#This Row],[Proposed Fixture]],1))-2),Table_ControlType[],2, FALSE),None)),\n\"\")","v":""},{"$f":"IFERROR(VLOOKUP(Table_NCSummary[[#This Row],[Controls Measure Description]],Table_ControlRate[],2,FALSE),\"\")","v":""},{"$f":"IFERROR(IF(Table_NCSummary[[#This Row],[IsActive]],IF((1-SUMPRODUCT(Table_NCSummary[P. Qty],Table_NCSummary[Proposed Fixture Wattage])/SUM(Table_NCSummary[Baseline Wattage]))<0.1,\"DNQ [kW Reduction <10%]\",IF(OR(Table_NCSummary[[#This Row],[Controls Measure Description]]=\"\",Table_NCSummary[[#This Row],[Controls Measure Description]]=\"New Construction - No Controls\"),0,ROUND(Table_NCSummary[[#This Row],[Controls Rebate (per Fixt Watt)]]*Table_NCSummary[[#This Row],[Proposed Fixture Wattage]]*Table_NCSummary[[#This Row],[P. Qty]],2))),\"\"),\"\")","v":""},{"$f":"IFERROR(IF(Table_NCSummary[[#This Row],[Fixture Measure Description]]=\"Ineligible Fixture\",0,ROUND(IF(ProjectCost_Total=0,300000,ProjectCost_Total)*Table_NCSummary[[#This Row],[Controls Rebate]]/SUM(Table_NCSummary[Fixture Rebate],Table_NCSummary[Controls Rebate]),2)),\"\")","v":""},{"$f":"IFERROR(IF(Table_NCSummary[[#This Row],[IsActive]],IF((1-SUMPRODUCT(Table_NCSummary[P. Qty],Table_NCSummary[Proposed Fixture Wattage])/SUM(Table_NCSummary[Baseline Wattage]))<0.1,\"DNQ [kW Reduction <10%]\",IF(Table_NCSummary[[#This Row],[Controls Measure Description]]=\"\",0,(Table_NCSummary[[#This Row],[Proposed Fixture (Existing Controls) kWh]]-Table_NCSummary[[#This Row],[Proposed Fixture (Proposed Controls) kWh]]))),\"\"),\"\")","v":""},{"$f":"IFERROR(IF(Table_NCSummary[[#This Row],[IsActive]],IF((1-SUMPRODUCT(Table_NCSummary[P. Qty],Table_NCSummary[Proposed Fixture Wattage])/SUM(Table_NCSummary[Baseline Wattage]))<0.1,\"DNQ [kW Reduction <10%]\",IF(OR(Table_NCSummary[[#This Row],[Controls Measure Description]]=\"\",Table_NCSummary[[#This Row],[Controls Measure Description]]=\"New Construction - No Controls\"),0,(Table_NCSummary[[#This Row],[Proposed Fixture (Existing Controls) kWh]]-Table_NCSummary[[#This Row],[Proposed Fixture (Proposed Controls) kWh]])/Table_NCSummary[[#This Row],[OpHrs]]*Table_NCSummary[[#This Row],[CF (Ltg)]]*Table_NCSummary[[#This Row],[DF (Ltg)]])),\"\"),\"\")","v":""},null,{"$f":"IFERROR(IF(NOT(ISNUMBER(Table_NCSummary[[#This Row],[Fixture Rebate]])),\"\",IF(MIN(IF(Table_NCSummary[[#This Row],[Fixture Cost]]<0,0,SUM(Table_NCSummary[Fixture Cost],Table_NCSummary[Controls Cost])),SUM(Table_NCSummary[Fixture Rebate],Table_NCSummary[Controls Rebate]))>300000,300000/MIN(IF(Table_NCSummary[[#This Row],[Fixture Cost]]<0,0,SUM(Table_NCSummary[Fixture Cost],Table_NCSummary[Controls Cost])),SUM(Table_NCSummary[Fixture Rebate],Table_NCSummary[Controls Rebate]))*MIN(IF(Table_NCSummary[[#This Row],[Fixture Cost]]<0,0,SUM(Table_NCSummary[Fixture Cost],Table_NCSummary[Controls Cost])),Table_NCSummary[[#This Row],[Fixture Rebate]]+IF(Table_NCSummary[[#This Row],[Controls Rebate]]=\"\",0,Table_NCSummary[[#This Row],[Controls Rebate]])),MIN(IF(Table_NCSummary[[#This Row],[Fixture Cost]]<0,0,SUM(Table_NCSummary[Fixture Cost],Table_NCSummary[Controls Cost])),Table_NCSummary[[#This Row],[Fixture Rebate]]+IF(Table_NCSummary[[#This Row],[Controls Rebate]]=\"\",0,Table_NCSummary[[#This Row],[Controls Rebate]])))),\"\")","v":""},{"$f":"IFERROR(IF(Table_NCSummary[[#This Row],[Fixture Cost]]=\"\",\"\",Table_NCSummary[[#This Row],[Fixture Cost]]+IF(Table_NCSummary[[#This Row],[Controls Cost]]=\"\",0,Table_NCSummary[[#This Row],[Controls Cost]])),\"\")","v":""},{"$f":"IFERROR(IF(Table_NCSummary[[#This Row],[IsActive]],IF(NOT(ISNUMBER(Table_NCSummary[[#This Row],[Fixture Rebate]])),\"\",IF(Table_NCInfo[[#This Row],[Interior/ Exterior]]=\"Interior\",IFERROR((Table_NCSummary[[#This Row],[Annual Fixture Savings (kWh)]]+Table_NCSummary[[#This Row],[Annual Control Savings (kWh)]])*(Table_NCSummary[[#This Row],[EIF]]-1),0),0)),\"\"),\"\")","v":""},{"$f":"IFERROR(IF(Table_NCSummary[[#This Row],[IsActive]],IF(NOT(ISNUMBER(Table_NCSummary[[#This Row],[Fixture Rebate]])),\"\",IF(Table_NCInfo[[#This Row],[Interior/ Exterior]]=\"Interior\",IFERROR((Table_NCSummary[[#This Row],[Fixture kW Reduction]]+Table_NCSummary[[#This Row],[Control kW Reduction]]/(Table_NCSummary[[#This Row],[CF (Ltg)]]*Table_NCSummary[[#This Row],[DF (Ltg)]]))*(Table_NCSummary[[#This Row],[DIF]]-1)*Table_NCSummary[[#This Row],[CF (HVAC)]]*Table_NCSummary[[#This Row],[DF (HVAC)]],0),0)),\"\"),\"\")","v":""},{"$f":"IFERROR(IF(Table_NCSummary[[#This Row],[IsActive]],IF(NOT(ISNUMBER(Table_NCSummary[[#This Row],[Fixture Rebate]])),\"\",ROUND(Table_NCSummary[[#This Row],[Annual Fixture Savings (kWh)]]+Table_NCSummary[[#This Row],[Annual Control Savings (kWh)]],0)),\"\"),\"\")","v":""},{"$f":"IFERROR(IF(Table_NCSummary[[#This Row],[IsActive]],IF(NOT(ISNUMBER(Table_NCSummary[[#This Row],[Fixture Rebate]])),\"\",ROUND(Table_NCSummary[[#This Row],[Fixture kW Reduction]]+Table_NCSummary[[#This Row],[Control kW Reduction]],3)),\"\"),\"\")","v":""},{"$f":"IFERROR(IF(Table_NCSummary[[#This Row],[IsActive]],IF(NOT(ISNUMBER(Table_NCSummary[[#This Row],[Fixture Rebate]])),\"\",ROUND(Table_NCSummary[[#This Row],[Fixture Energy Savings (kWh)]]+Table_NCSummary[[#This Row],[Induced HVAC Energy Savings (kWh)]],0)),\"\"),\"\")","v":""},{"$f":"IFERROR(IF(Table_NCSummary[[#This Row],[IsActive]],IF(NOT(ISNUMBER(Table_NCSummary[[#This Row],[Fixture Rebate]])),\"\",ROUND(Table_NCSummary[[#This Row],[Fixture Demand Savings (kW)]]+Table_NCSummary[[#This Row],[Induced HVAC Demand Savings (kW)]],3)),\"\"),\"\")","v":""}]
[{"$f":"IFERROR(Table_NCInfo[[#This Row],[Line]],\"\")","v":22},{"$f":"IFERROR(Table_NCInfo[[#This Row],[IsActive]],\"\")","v":false},{"$f":"IFERROR(IF(Table_NCSummary[[#This Row],[IsActive]],VLOOKUP(IF(ISNUMBER(MATCH(Table_NCInfo[[#This Row],[Line]],Table_NCInspection[Line],0)),INDEX(Table_NCInspection[Schedule],MATCH(Table_NCSummary[[#This Row],[Line Item]],Table_NCInspection[Line],0)),Table_NCInfo[[#This Row],[Schedule]]),'Customer Information'!$S$27:$T$34,2,FALSE),\"\"),\"\")","v":""},{"$f":"IFERROR(IF(Table_NCSummary[[#This Row],[IsActive]],INDEX(Table_IntLookups[EIF],MATCH(IF(ISNUMBER(MATCH(Table_NCSummary[[#This Row],[Line Item]],Table_NCInspection[Line],0)),INDEX(Table_NCInspection[Zone Description],MATCH(Table_NCSummary[[#This Row],[Line Item]],Table_NCInfo[Line],0)),Table_NCInfo[[#This Row],[Zone Description]]),Table_IntLookups[Dropdown],0)),\"\"),\"\")","v":""},{"$f":"IFERROR(IF(Table_NCSummary[[#This Row],[IsActive]],INDEX(Table_IntLookups[DIF],MATCH(IF(ISNUMBER(MATCH(Table_NCSummary[[#This Row],[Line Item]],Table_NCInspection[Line],0)),INDEX(Table_NCInspection[Zone Description],MATCH(Table_NCSummary[[#This Row],[Line Item]],Table_NCInfo[Line],0)),Table_NCInfo[[#This Row],[Zone Description]]),Table_IntLookups[Dropdown],0)),\"\"),\"\")","v":""},{"$f":"IFERROR(IF(Table_NCSummary[[#This Row],[IsActive]],INDEX(Table_IntLookups[CFltg],MATCH(IF(ISNUMBER(MATCH(Table_NCSummary[[#This Row],[Line Item]],Table_NCInspection[Line],0)),INDEX(Table_NCInspection[Zone Description],MATCH(Table_NCSummary[[#This Row],[Line Item]],Table_NCInfo[Line],0)),Table_NCInfo[[#This Row],[Zone Description]]),Table_IntLookups[Dropdown],0)),\"\"),\"\")","v":""},{"$f":"IFERROR(IF(Table_NCSummary[[#This Row],[IsActive]],INDEX(Table_IntLookups[DFltg],MATCH(IF(ISNUMBER(MATCH(Table_NCSummary[[#This Row],[Line Item]],Table_NCInspection[Line],0)),INDEX(Table_NCInspection[Zone Description],MATCH(Table_NCSummary[[#This Row],[Line Item]],Table_NCInfo[Line],0)),Table_NCInfo[[#This Row],[Zone Description]]),Table_IntLookups[Dropdown],0)),\"\"),\"\")","v":""},{"$f":"IFERROR(IF(Table_NCSummary[[#This Row],[IsActive]],INDEX(Table_IntLookups[Cfhvac],MATCH(IF(ISNUMBER(MATCH(Table_NCSummary[[#This Row],[Line Item]],Table_NCInspection[Line],0)),INDEX(Table_NCInspection[Zone Description],MATCH(Table_NCSummary[[#This Row],[Line Item]],Table_NCInfo[Line],0)),Table_NCInfo[[#This Row],[Zone Description]]),Table_IntLookups[Dropdown],0)),\"\"),\"\")","v":""},{"$f":"IFERROR(IF(Table_NCSummary[[#This Row],[IsActive]],INDEX(Table_IntLookups[Dfhvac],MATCH(IF(ISNUMBER(MATCH(Table_NCSummary[[#This Row],[Line Item]],Table_NCInspection[Line],0)),INDEX(Table_NCInspection[Zone Description],MATCH(Table_NCSummary[[#This Row],[Line Item]],Table_NCInfo[Line],0)),Table_NCInfo[[#This Row],[Zone Description]]),Table_IntLookups[Dropdown],0)),\"\"),\"\")","v":""},{"$f":"IFERROR(IF(Table_NCSummary[[#This Row],[IsActive]],\nIF(ISNUMBER(MATCH(Table_NCInfo[[#This Row],[Line]],Table_NCInspection[Line],0)),INDEX(Table_NCInspection[Zone Description],MATCH(Table_NCSummary[[#This Row],[Line Item]],Table_NCInspection[Line],0)),Table_NCInfo[[#This Row],[Zone Description]]),\n \"\"),\"\")","v":""},{"$f":"IFERROR(IF(Table_NCSummary[[#This Row],[IsActive]],\nCONCATENATE(\nIF(ISNUMBER(MATCH(Table_NCInfo[[#This Row],[Line]],Table_NCInspection[Line],0)),INDEX(Table_NCInspection[Interior/ Exterior],MATCH(Table_NCSummary[[#This Row],[Line Item]],Table_NCInspection[Line],0)),Table_NCInfo[[#This Row],[Interior/ Exterior]]),\n\" - \",\nIF(ISNUMBER(MATCH(Table_NCInfo[[#This Row],[Line]],Table_NCInspection[Line],0)),INDEX(Table_NCInspection[Space Description],MATCH(Table_NCSummary[[#This Row],[Line Item]],Table_NCInspection[Line],0)),Table_NCInfo[[#This Row],[Space Description]])),\n \"\"),\"\")","v":""},{"$f":"IFERROR(IF(ISNUMBER(MATCH(Table_NCInfo[[#This Row],[Line]],Table_NCInspection[Line],0)),INDEX(Table_NCInspection[Baseline Wattage],MATCH(Table_NCSummary[[#This Row],[Line Item]],Table_NCInspection[Line],0)),Table_NCInfo[[#This Row],[Baseline Wattage]]),\"\")","v":""},{"$f":"IFERROR(IF(Table_NCSummary[[#This Row],[IsActive]],Table_NCSummary[[#This Row],[Baseline Wattage]]/1000*Table_NCSummary[[#This Row],[OpHrs]],\"\"),\"\")","v":""},{"$f":"IFERROR(IF(Table_NCSummary[[#This Row],[IsActive]],IFERROR(VLOOKUP(IF(ISNUMBER(MATCH(Table_NCSummary[[#This Row],[Line Item]],Table_NCInspection[Line],0)),INDEX(Table_NCInspection[Zone '#],MATCH(Table_NCSummary[[#This Row],[Line Item]],Table_NCInspection[Line],0)),Table_NCInfo[[#This Row],[Zone '#]]),Table_IntLookups[],'Facility Information'!$AA$4,FALSE),0),\"\"),\"\")","v":""},{"$f":"IFERROR(IF(Table_NCSummary[[#This Row],[IsActive]],IFERROR(Table_NCSummary[[#This Row],[Baseline Wattage]]/1000*Table_NCSummary[[#This Row],[OpHrs]]*Table_NCSummary[[#This Row],[Existing CSF]]*(-1),0),\"\"),\"\")","v":""},{"$f":"IFERROR(Table_NCSummary[[#This Row],[Baseline kWh]]+Table_NCSummary[[#This Row],[Existing Fixture (Existing Controls) kWh]],\"\")","v":""},{"$f":"IFERROR(IF(Table_NCSummary[[#This Row],[IsActive]],IF(ISNUMBER(MATCH(Table_NCInfo[[#This Row],[Line]],Table_NCInspection[Line],0)),INDEX(Table_NCInspection[Fixture Description '[P']],MATCH(Table_NCSummary[[#This Row],[Line Item]],Table_NCInspection[Line],0)),Table_NCInfo[[#This Row],[Fixture Description '[P']]]),\"\"),\"\")","v":""},{"$f":"IFERROR(IF(Table_NCSummary[[#This Row],[IsActive]],IF(ISNUMBER(MATCH(Table_NCInfo[[#This Row],[Line]],Table_NCInspection[Line],0)),INDEX(Table_NCInspection['# Lamps/ Fixture '[P']],MATCH(Table_NCSummary[[#This Row],[Line Item]],Table_NCInspection[Line],0)),Table_NCInfo[[#This Row],['# Lamps/ Fixture '[P']]]),\"\"),\"\")","v":""},{"$f":"IFERROR(IF(Table_NCSummary[[#This Row],[IsActive]],IF(ISNUMBER(MATCH(Table_NCInfo[[#This Row],[Line]],Table_NCInspection[Line],0)),INDEX(Table_NCInspection[Fixture/ Lamp Wattage '[P']],MATCH(Table_NCSummary[[#This Row],[Line Item]],Table_NCInspection[Line],0)),Table_NCInfo[[#This Row],[Fixture/ Lamp Wattage '[P']]]),\"\"),\"\")","v":""},{"$f":"IFERROR(IF(Table_NCSummary[[#This Row],[IsActive]],IF(ISNUMBER(MATCH(Table_NCInfo[[#This Row],[Line]],Table_NCInspection[Line],0)),INDEX(Table_NCInspection[Fixture Qty '[P']],MATCH(Table_NCSummary[[#This Row],[Line Item]],Table_NCInspection[Line],0)),Table_NCInfo[[#This Row],[Fixture Qty '[P']]]),\"\"),\"\")","v":""},{"$f":"IFERROR(IF(Table_NCSummary[[#This Row],[IsActive]],Table_NCSummary[[#This Row],['# Lamps/ Fixture '[P']]]*Table_NCSummary[[#This Row],[P. Qty]],\"\"),\"\")","v":""},{"$f":"IFERROR(IF(Table_NCSummary[[#This Row],[IsActive]],IF(ISNUMBER(MATCH(Table_NCInfo[[#This Row],[Line]],Table_NCInspection[Line],0)),INDEX(Table_NCInspection[Fixture Wattage '[P']],MATCH(Table_NCSummary[[#This Row],[Line Item]],Table_NCInspection[Line],0)),Table_NCInfo[[#This Row],[Fixture Wattage '[P']]]),\"\"),\"\")","v":""},{"$f":"IFERROR(Table_NCSummary[[#This Row],[P. Qty]]*Table_NCSummary[[#This Row],[Proposed Fixture Wattage]],\"\")","v":""},{"$f":"IFERROR(Table_NCSummary[[#This Row],[Proposed Fixture Wattage]]/1000*Table_NCSummary[[#This Row],[OpHrs]]*Table_NCSummary[[#This Row],[P. Qty]],\"\")","v":""},{"$f":"IFERROR(IF(Table_NCSummary[[#This Row],[IsActive]],IFERROR(VLOOKUP(RIGHT(Table_NCSummary[[#This Row],[Proposed Fixture]],LEN(Table_NCSummary[[#This Row],[Proposed Fixture]])-FIND(\" - \",Table_NCSummary[[#This Row],[Proposed Fixture]],FIND(\"]\",Table_NCSummary[[#This Row],[Proposed Fixture]],1))-2),Table_ControlType[],3, FALSE),Table_NCSummary[[#This Row],[Existing CSF]]),\"\"),\"\")","v":""},{"$f":"IFERROR(IF(Table_NCSummary[[#This Row],[IsActive]],IFERROR(Table_NCSummary[[#This Row],[Proposed Fixture Wattage]]/1000*Table_NCSummary[[#This Row],[OpHrs]]*Table_NCSummary[[#This Row],[P. Qty]]*Table_NCSummary[[#This Row],[Existing CSF]]*(-1),0),\"\"),\"\")","v":""},{"$f":"IFERROR(Table_NCSummary[[#This Row],[Proposed Fixture kWh]]+Table_NCSummary[[#This Row],[Proposed Fixture (Existing Controls) kWh]],\"\")","v":""},{"$f":"IFERROR(IF(Table_NCSummary[[#This Row],[IsActive]],IFERROR(Table_NCSummary[[#This Row],[Proposed Fixture Wattage]]/1000*Table_NCSummary[[#This Row],[OpHrs]]*Table_NCSummary[[#This Row],[P. Qty]]*Table_NCSummary[[#This Row],[Proposed CSF]]*(-1),0),\"\"),\"\")","v":""},{"$f":"IFERROR(Table_NCSummary[[#This Row],[Proposed Fixture kWh]]+Table_NCSummary[[#This Row],[Proposed Fixture (Proposed Controls) kWh]],\"\")","v":""},null,{"$f":"IFERROR(IF(Table_NCSummary[[#This Row],[IsActive]],IF((1-SUMPRODUCT(Table_NCSummary[P. Qty],Table_NCSummary[Proposed Fixture Wattage])/SUM(Table_NCSummary[Baseline Wattage]))<0.1,\"Does Not Qualify [Overall Fixture Reduction is less than 10%]\",IF(ISNUMBER(FIND(\"LED\",Table_NCSummary[[#This Row],[Proposed Fixture]],1)),IF(ISNUMBER(FIND(\"LED Tube\",Table_NCSummary[[#This Row],[Proposed Fixture]],1)),\"New Construction Interior LED Fixture\",IF(ISNUMBER(FIND(\"LED\",Table_NCSummary[[#This Row],[Proposed Fixture]],1)),IF(Table_NCInfo[[#This Row],[Interior/ Exterior]]=\"Exterior\",\"New Construction Exterior LED Fixture\",\"New Construction Interior LED Fixture\"),\"Ineligible Fixture\")),\"Ineligible Fixture\")),\"\"),\"\")","v":""},{"$f":"IFERROR(VLOOKUP(Table_NCSummary[[#This Row],[Fixture Measure Description]],Table_FixtureRate[],2,FALSE),\"\")","v":""},{"$f":"IFERROR(IF(Table_NCSummary[[#This Row],[IsActive]],IF((1-SUMPRODUCT(Table_NCSummary[P. Qty],Table_NCSummary[Proposed Fixture Wattage])/SUM(Table_NCSummary[Baseline Wattage]))<0.1,\"DNQ [kW Reduction <10%]\",IF(Table_NCSummary[[#This Row],[Fixture Measure Description]]=\"Ineligible Fixture\",0,ROUND(Table_NCSummary[[#This Row],[Fixture Rebate (per kW)]]*(Table_NCSummary[[#This Row],[Baseline Wattage]]-Table_NCSummary[[#This Row],[Proposed Wattage]])/1000,2))),\"\"),\"\")","v":""},{"$f":"IFERROR(IF(Table_NCSummary[[#This Row],[Fixture Measure Description]]=\"Ineligible Fixture\",0,ROUND(IF(ProjectCost_Total=0,300000,ProjectCost_Total)*Table_NCSummary[[#This Row],[Fixture Rebate]]/SUM(Table_NCSummary[Fixture Rebate],Table_NCSummary[Controls Rebate]),2)),\"\")","v":""},{"$f":"IFERROR(IF(Table_NCSummary[[#This Row],[IsActive]],IF((1-SUMPRODUCT(Table_NCSummary[P. Qty],Table_NCSummary[Proposed Fixture Wattage])/SUM(Table_NCSummary[Baseline Wattage]))<0.1,\"DNQ [kW Reduction <10%]\",IF(Table_NCSummary[[#This Row],[Fixture Measure Description]]=\"Ineligible Fixture\",0,Table_NCSummary[[#This Row],[Existing Overall kWh]]-Table_NCSummary[[#This Row],[Proposed Overall kWh (Existing Controls)]])),\"\"),\"\")","v":""},{"$f":"IFERROR(IF(Table_NCSummary[[#This Row],[IsActive]],IF((1-SUMPRODUCT(Table_NCSummary[P. Qty],Table_NCSummary[Proposed Fixture Wattage])/SUM(Table_NCSummary[Baseline Wattage]))<0.1,\"DNQ [kW Reduction <10%]\",IF(OR(Table_NCSummary[[#This Row],[Fixture Measure Description]]=\"Ineligible Fixture\",Table_NCSummary[[#This Row],[Fixture Measure Description]]=\"New Construction Exterior LED Fixture\"),0,(Table_NCSummary[[#This Row],[Baseline kWh]]-Table_NCSummary[[#This Row],[Proposed Fixture kWh]])/Table_NCSummary[[#This Row],[OpHrs]]*Table_NCSummary[[#This Row],[CF (Ltg)]]*Table_NCSummary[[#This Row],[DF (Ltg)]])),\"\"),\"\")","v":""},null,{"$f":"IFERROR(\n  IF(OR(Table_NCSummary[[#This Row],[Fixture Measure Description]]=\"\",Table_NCSummary[[#This Row],[Fixture Measure Description]]=\"Ineligible Fixture\"),\n    \"\",\n    \"New Construction\"\n    & \" - \" &\n    IFERROR(VLOOKUP(RIGHT(Table_NCSummary[[#This Row],[Proposed Fixture]],LEN(Table_NCSummary[[#This Row],[Proposed Fixture]])-FIND(\" - \",Table_NCSummary[[#This Row],[Proposed Fixture]],FIND(\"]\",Table_NCSummary[[#This Row],[Proposed Fixture]],1))-2),Table_ControlType[],2, FALSE),None)),\n\"\")","v":""},{"$f":"IFERROR(VLOOKUP(Table_NCSummary[[#This Row],[Controls Measure Description]],Table_ControlRate[],2,FALSE),\"\")","v":""},{"$f":"IFERROR(IF(Table_NCSummary[[#This Row],[IsActive]],IF((1-SUMPRODUCT(Table_NCSummary[P. Qty],Table_NCSummary[Proposed Fixture Wattage])/SUM(Table_NCSummary[Baseline Wattage]))<0.1,\"DNQ [kW Reduction <10%]\",IF(OR(Table_NCSummary[[#This Row],[Controls Measure Description]]=\"\",Table_NCSummary[[#This Row],[Controls Measure Description]]=\"New Construction - No Controls\"),0,ROUND(Table_NCSummary[[#This Row],[Controls Rebate (per Fixt Watt)]]*Table_NCSummary[[#This Row],[Proposed Fixture Wattage]]*Table_NCSummary[[#This Row],[P. Qty]],2))),\"\"),\"\")","v":""},{"$f":"IFERROR(IF(Table_NCSummary[[#This Row],[Fixture Measure Description]]=\"Ineligible Fixture\",0,ROUND(IF(ProjectCost_Total=0,300000,ProjectCost_Total)*Table_NCSummary[[#This Row],[Controls Rebate]]/SUM(Table_NCSummary[Fixture Rebate],Table_NCSummary[Controls Rebate]),2)),\"\")","v":""},{"$f":"IFERROR(IF(Table_NCSummary[[#This Row],[IsActive]],IF((1-SUMPRODUCT(Table_NCSummary[P. Qty],Table_NCSummary[Proposed Fixture Wattage])/SUM(Table_NCSummary[Baseline Wattage]))<0.1,\"DNQ [kW Reduction <10%]\",IF(Table_NCSummary[[#This Row],[Controls Measure Description]]=\"\",0,(Table_NCSummary[[#This Row],[Proposed Fixture (Existing Controls) kWh]]-Table_NCSummary[[#This Row],[Proposed Fixture (Proposed Controls) kWh]]))),\"\"),\"\")","v":""},{"$f":"IFERROR(IF(Table_NCSummary[[#This Row],[IsActive]],IF((1-SUMPRODUCT(Table_NCSummary[P. Qty],Table_NCSummary[Proposed Fixture Wattage])/SUM(Table_NCSummary[Baseline Wattage]))<0.1,\"DNQ [kW Reduction <10%]\",IF(OR(Table_NCSummary[[#This Row],[Controls Measure Description]]=\"\",Table_NCSummary[[#This Row],[Controls Measure Description]]=\"New Construction - No Controls\"),0,(Table_NCSummary[[#This Row],[Proposed Fixture (Existing Controls) kWh]]-Table_NCSummary[[#This Row],[Proposed Fixture (Proposed Controls) kWh]])/Table_NCSummary[[#This Row],[OpHrs]]*Table_NCSummary[[#This Row],[CF (Ltg)]]*Table_NCSummary[[#This Row],[DF (Ltg)]])),\"\"),\"\")","v":""},null,{"$f":"IFERROR(IF(NOT(ISNUMBER(Table_NCSummary[[#This Row],[Fixture Rebate]])),\"\",IF(MIN(IF(Table_NCSummary[[#This Row],[Fixture Cost]]<0,0,SUM(Table_NCSummary[Fixture Cost],Table_NCSummary[Controls Cost])),SUM(Table_NCSummary[Fixture Rebate],Table_NCSummary[Controls Rebate]))>300000,300000/MIN(IF(Table_NCSummary[[#This Row],[Fixture Cost]]<0,0,SUM(Table_NCSummary[Fixture Cost],Table_NCSummary[Controls Cost])),SUM(Table_NCSummary[Fixture Rebate],Table_NCSummary[Controls Rebate]))*MIN(IF(Table_NCSummary[[#This Row],[Fixture Cost]]<0,0,SUM(Table_NCSummary[Fixture Cost],Table_NCSummary[Controls Cost])),Table_NCSummary[[#This Row],[Fixture Rebate]]+IF(Table_NCSummary[[#This Row],[Controls Rebate]]=\"\",0,Table_NCSummary[[#This Row],[Controls Rebate]])),MIN(IF(Table_NCSummary[[#This Row],[Fixture Cost]]<0,0,SUM(Table_NCSummary[Fixture Cost],Table_NCSummary[Controls Cost])),Table_NCSummary[[#This Row],[Fixture Rebate]]+IF(Table_NCSummary[[#This Row],[Controls Rebate]]=\"\",0,Table_NCSummary[[#This Row],[Controls Rebate]])))),\"\")","v":""},{"$f":"IFERROR(IF(Table_NCSummary[[#This Row],[Fixture Cost]]=\"\",\"\",Table_NCSummary[[#This Row],[Fixture Cost]]+IF(Table_NCSummary[[#This Row],[Controls Cost]]=\"\",0,Table_NCSummary[[#This Row],[Controls Cost]])),\"\")","v":""},{"$f":"IFERROR(IF(Table_NCSummary[[#This Row],[IsActive]],IF(NOT(ISNUMBER(Table_NCSummary[[#This Row],[Fixture Rebate]])),\"\",IF(Table_NCInfo[[#This Row],[Interior/ Exterior]]=\"Interior\",IFERROR((Table_NCSummary[[#This Row],[Annual Fixture Savings (kWh)]]+Table_NCSummary[[#This Row],[Annual Control Savings (kWh)]])*(Table_NCSummary[[#This Row],[EIF]]-1),0),0)),\"\"),\"\")","v":""},{"$f":"IFERROR(IF(Table_NCSummary[[#This Row],[IsActive]],IF(NOT(ISNUMBER(Table_NCSummary[[#This Row],[Fixture Rebate]])),\"\",IF(Table_NCInfo[[#This Row],[Interior/ Exterior]]=\"Interior\",IFERROR((Table_NCSummary[[#This Row],[Fixture kW Reduction]]+Table_NCSummary[[#This Row],[Control kW Reduction]]/(Table_NCSummary[[#This Row],[CF (Ltg)]]*Table_NCSummary[[#This Row],[DF (Ltg)]]))*(Table_NCSummary[[#This Row],[DIF]]-1)*Table_NCSummary[[#This Row],[CF (HVAC)]]*Table_NCSummary[[#This Row],[DF (HVAC)]],0),0)),\"\"),\"\")","v":""},{"$f":"IFERROR(IF(Table_NCSummary[[#This Row],[IsActive]],IF(NOT(ISNUMBER(Table_NCSummary[[#This Row],[Fixture Rebate]])),\"\",ROUND(Table_NCSummary[[#This Row],[Annual Fixture Savings (kWh)]]+Table_NCSummary[[#This Row],[Annual Control Savings (kWh)]],0)),\"\"),\"\")","v":""},{"$f":"IFERROR(IF(Table_NCSummary[[#This Row],[IsActive]],IF(NOT(ISNUMBER(Table_NCSummary[[#This Row],[Fixture Rebate]])),\"\",ROUND(Table_NCSummary[[#This Row],[Fixture kW Reduction]]+Table_NCSummary[[#This Row],[Control kW Reduction]],3)),\"\"),\"\")","v":""},{"$f":"IFERROR(IF(Table_NCSummary[[#This Row],[IsActive]],IF(NOT(ISNUMBER(Table_NCSummary[[#This Row],[Fixture Rebate]])),\"\",ROUND(Table_NCSummary[[#This Row],[Fixture Energy Savings (kWh)]]+Table_NCSummary[[#This Row],[Induced HVAC Energy Savings (kWh)]],0)),\"\"),\"\")","v":""},{"$f":"IFERROR(IF(Table_NCSummary[[#This Row],[IsActive]],IF(NOT(ISNUMBER(Table_NCSummary[[#This Row],[Fixture Rebate]])),\"\",ROUND(Table_NCSummary[[#This Row],[Fixture Demand Savings (kW)]]+Table_NCSummary[[#This Row],[Induced HVAC Demand Savings (kW)]],3)),\"\"),\"\")","v":""}]
[{"$f":"IFERROR(Table_NCInfo[[#This Row],[Line]],\"\")","v":23},{"$f":"IFERROR(Table_NCInfo[[#This Row],[IsActive]],\"\")","v":false},{"$f":"IFERROR(IF(Table_NCSummary[[#This Row],[IsActive]],VLOOKUP(IF(ISNUMBER(MATCH(Table_NCInfo[[#This Row],[Line]],Table_NCInspection[Line],0)),INDEX(Table_NCInspection[Schedule],MATCH(Table_NCSummary[[#This Row],[Line Item]],Table_NCInspection[Line],0)),Table_NCInfo[[#This Row],[Schedule]]),'Customer Information'!$S$27:$T$34,2,FALSE),\"\"),\"\")","v":""},{"$f":"IFERROR(IF(Table_NCSummary[[#This Row],[IsActive]],INDEX(Table_IntLookups[EIF],MATCH(IF(ISNUMBER(MATCH(Table_NCSummary[[#This Row],[Line Item]],Table_NCInspection[Line],0)),INDEX(Table_NCInspection[Zone Description],MATCH(Table_NCSummary[[#This Row],[Line Item]],Table_NCInfo[Line],0)),Table_NCInfo[[#This Row],[Zone Description]]),Table_IntLookups[Dropdown],0)),\"\"),\"\")","v":""},{"$f":"IFERROR(IF(Table_NCSummary[[#This Row],[IsActive]],INDEX(Table_IntLookups[DIF],MATCH(IF(ISNUMBER(MATCH(Table_NCSummary[[#This Row],[Line Item]],Table_NCInspection[Line],0)),INDEX(Table_NCInspection[Zone Description],MATCH(Table_NCSummary[[#This Row],[Line Item]],Table_NCInfo[Line],0)),Table_NCInfo[[#This Row],[Zone Description]]),Table_IntLookups[Dropdown],0)),\"\"),\"\")","v":""},{"$f":"IFERROR(IF(Table_NCSummary[[#This Row],[IsActive]],INDEX(Table_IntLookups[CFltg],MATCH(IF(ISNUMBER(MATCH(Table_NCSummary[[#This Row],[Line Item]],Table_NCInspection[Line],0)),INDEX(Table_NCInspection[Zone Description],MATCH(Table_NCSummary[[#This Row],[Line Item]],Table_NCInfo[Line],0)),Table_NCInfo[[#This Row],[Zone Description]]),Table_IntLookups[Dropdown],0)),\"\"),\"\")","v":""},{"$f":"IFERROR(IF(Table_NCSummary[[#This Row],[IsActive]],INDEX(Table_IntLookups[DFltg],MATCH(IF(ISNUMBER(MATCH(Table_NCSummary[[#This Row],[Line Item]],Table_NCInspection[Line],0)),INDEX(Table_NCInspection[Zone Description],MATCH(Table_NCSummary[[#This Row],[Line Item]],Table_NCInfo[Line],0)),Table_NCInfo[[#This Row],[Zone Description]]),Table_IntLookups[Dropdown],0)),\"\"),\"\")","v":""},{"$f":"IFERROR(IF(Table_NCSummary[[#This Row],[IsActive]],INDEX(Table_IntLookups[Cfhvac],MATCH(IF(ISNUMBER(MATCH(Table_NCSummary[[#This Row],[Line Item]],Table_NCInspection[Line],0)),INDEX(Table_NCInspection[Zone Description],MATCH(Table_NCSummary[[#This Row],[Line Item]],Table_NCInfo[Line],0)),Table_NCInfo[[#This Row],[Zone Description]]),Table_IntLookups[Dropdown],0)),\"\"),\"\")","v":""},{"$f":"IFERROR(IF(Table_NCSummary[[#This Row],[IsActive]],INDEX(Table_IntLookups[Dfhvac],MATCH(IF(ISNUMBER(MATCH(Table_NCSummary[[#This Row],[Line Item]],Table_NCInspection[Line],0)),INDEX(Table_NCInspection[Zone Description],MATCH(Table_NCSummary[[#This Row],[Line Item]],Table_NCInfo[Line],0)),Table_NCInfo[[#This Row],[Zone Description]]),Table_IntLookups[Dropdown],0)),\"\"),\"\")","v":""},{"$f":"IFERROR(IF(Table_NCSummary[[#This Row],[IsActive]],\nIF(ISNUMBER(MATCH(Table_NCInfo[[#This Row],[Line]],Table_NCInspection[Line],0)),INDEX(Table_NCInspection[Zone Description],MATCH(Table_NCSummary[[#This Row],[Line Item]],Table_NCInspection[Line],0)),Table_NCInfo[[#This Row],[Zone Description]]),\n \"\"),\"\")","v":""},{"$f":"IFERROR(IF(Table_NCSummary[[#This Row],[IsActive]],\nCONCATENATE(\nIF(ISNUMBER(MATCH(Table_NCInfo[[#This Row],[Line]],Table_NCInspection[Line],0)),INDEX(Table_NCInspection[Interior/ Exterior],MATCH(Table_NCSummary[[#This Row],[Line Item]],Table_NCInspection[Line],0)),Table_NCInfo[[#This Row],[Interior/ Exterior]]),\n\" - \",\nIF(ISNUMBER(MATCH(Table_NCInfo[[#This Row],[Line]],Table_NCInspection[Line],0)),INDEX(Table_NCInspection[Space Description],MATCH(Table_NCSummary[[#This Row],[Line Item]],Table_NCInspection[Line],0)),Table_NCInfo[[#This Row],[Space Description]])),\n \"\"),\"\")","v":""},{"$f":"IFERROR(IF(ISNUMBER(MATCH(Table_NCInfo[[#This Row],[Line]],Table_NCInspection[Line],0)),INDEX(Table_NCInspection[Baseline Wattage],MATCH(Table_NCSummary[[#This Row],[Line Item]],Table_NCInspection[Line],0)),Table_NCInfo[[#This Row],[Baseline Wattage]]),\"\")","v":""},{"$f":"IFERROR(IF(Table_NCSummary[[#This Row],[IsActive]],Table_NCSummary[[#This Row],[Baseline Wattage]]/1000*Table_NCSummary[[#This Row],[OpHrs]],\"\"),\"\")","v":""},{"$f":"IFERROR(IF(Table_NCSummary[[#This Row],[IsActive]],IFERROR(VLOOKUP(IF(ISNUMBER(MATCH(Table_NCSummary[[#This Row],[Line Item]],Table_NCInspection[Line],0)),INDEX(Table_NCInspection[Zone '#],MATCH(Table_NCSummary[[#This Row],[Line Item]],Table_NCInspection[Line],0)),Table_NCInfo[[#This Row],[Zone '#]]),Table_IntLookups[],'Facility Information'!$AA$4,FALSE),0),\"\"),\"\")","v":""},{"$f":"IFERROR(IF(Table_NCSummary[[#This Row],[IsActive]],IFERROR(Table_NCSummary[[#This Row],[Baseline Wattage]]/1000*Table_NCSummary[[#This Row],[OpHrs]]*Table_NCSummary[[#This Row],[Existing CSF]]*(-1),0),\"\"),\"\")","v":""},{"$f":"IFERROR(Table_NCSummary[[#This Row],[Baseline kWh]]+Table_NCSummary[[#This Row],[Existing Fixture (Existing Controls) kWh]],\"\")","v":""},{"$f":"IFERROR(IF(Table_NCSummary[[#This Row],[IsActive]],IF(ISNUMBER(MATCH(Table_NCInfo[[#This Row],[Line]],Table_NCInspection[Line],0)),INDEX(Table_NCInspection[Fixture Description '[P']],MATCH(Table_NCSummary[[#This Row],[Line Item]],Table_NCInspection[Line],0)),Table_NCInfo[[#This Row],[Fixture Description '[P']]]),\"\"),\"\")","v":""},{"$f":"IFERROR(IF(Table_NCSummary[[#This Row],[IsActive]],IF(ISNUMBER(MATCH(Table_NCInfo[[#This Row],[Line]],Table_NCInspection[Line],0)),INDEX(Table_NCInspection['# Lamps/ Fixture '[P']],MATCH(Table_NCSummary[[#This Row],[Line Item]],Table_NCInspection[Line],0)),Table_NCInfo[[#This Row],['# Lamps/ Fixture '[P']]]),\"\"),\"\")","v":""},{"$f":"IFERROR(IF(Table_NCSummary[[#This Row],[IsActive]],IF(ISNUMBER(MATCH(Table_NCInfo[[#This Row],[Line]],Table_NCInspection[Line],0)),INDEX(Table_NCInspection[Fixture/ Lamp Wattage '[P']],MATCH(Table_NCSummary[[#This Row],[Line Item]],Table_NCInspection[Line],0)),Table_NCInfo[[#This Row],[Fixture/ Lamp Wattage '[P']]]),\"\"),\"\")","v":""},{"$f":"IFERROR(IF(Table_NCSummary[[#This Row],[IsActive]],IF(ISNUMBER(MATCH(Table_NCInfo[[#This Row],[Line]],Table_NCInspection[Line],0)),INDEX(Table_NCInspection[Fixture Qty '[P']],MATCH(Table_NCSummary[[#This Row],[Line Item]],Table_NCInspection[Line],0)),Table_NCInfo[[#This Row],[Fixture Qty '[P']]]),\"\"),\"\")","v":""},{"$f":"IFERROR(IF(Table_NCSummary[[#This Row],[IsActive]],Table_NCSummary[[#This Row],['# Lamps/ Fixture '[P']]]*Table_NCSummary[[#This Row],[P. Qty]],\"\"),\"\")","v":""},{"$f":"IFERROR(IF(Table_NCSummary[[#This Row],[IsActive]],IF(ISNUMBER(MATCH(Table_NCInfo[[#This Row],[Line]],Table_NCInspection[Line],0)),INDEX(Table_NCInspection[Fixture Wattage '[P']],MATCH(Table_NCSummary[[#This Row],[Line Item]],Table_NCInspection[Line],0)),Table_NCInfo[[#This Row],[Fixture Wattage '[P']]]),\"\"),\"\")","v":""},{"$f":"IFERROR(Table_NCSummary[[#This Row],[P. Qty]]*Table_NCSummary[[#This Row],[Proposed Fixture Wattage]],\"\")","v":""},{"$f":"IFERROR(Table_NCSummary[[#This Row],[Proposed Fixture Wattage]]/1000*Table_NCSummary[[#This Row],[OpHrs]]*Table_NCSummary[[#This Row],[P. Qty]],\"\")","v":""},{"$f":"IFERROR(IF(Table_NCSummary[[#This Row],[IsActive]],IFERROR(VLOOKUP(RIGHT(Table_NCSummary[[#This Row],[Proposed Fixture]],LEN(Table_NCSummary[[#This Row],[Proposed Fixture]])-FIND(\" - \",Table_NCSummary[[#This Row],[Proposed Fixture]],FIND(\"]\",Table_NCSummary[[#This Row],[Proposed Fixture]],1))-2),Table_ControlType[],3, FALSE),Table_NCSummary[[#This Row],[Existing CSF]]),\"\"),\"\")","v":""},{"$f":"IFERROR(IF(Table_NCSummary[[#This Row],[IsActive]],IFERROR(Table_NCSummary[[#This Row],[Proposed Fixture Wattage]]/1000*Table_NCSummary[[#This Row],[OpHrs]]*Table_NCSummary[[#This Row],[P. Qty]]*Table_NCSummary[[#This Row],[Existing CSF]]*(-1),0),\"\"),\"\")","v":""},{"$f":"IFERROR(Table_NCSummary[[#This Row],[Proposed Fixture kWh]]+Table_NCSummary[[#This Row],[Proposed Fixture (Existing Controls) kWh]],\"\")","v":""},{"$f":"IFERROR(IF(Table_NCSummary[[#This Row],[IsActive]],IFERROR(Table_NCSummary[[#This Row],[Proposed Fixture Wattage]]/1000*Table_NCSummary[[#This Row],[OpHrs]]*Table_NCSummary[[#This Row],[P. Qty]]*Table_NCSummary[[#This Row],[Proposed CSF]]*(-1),0),\"\"),\"\")","v":""},{"$f":"IFERROR(Table_NCSummary[[#This Row],[Proposed Fixture kWh]]+Table_NCSummary[[#This Row],[Proposed Fixture (Proposed Controls) kWh]],\"\")","v":""},null,{"$f":"IFERROR(IF(Table_NCSummary[[#This Row],[IsActive]],IF((1-SUMPRODUCT(Table_NCSummary[P. Qty],Table_NCSummary[Proposed Fixture Wattage])/SUM(Table_NCSummary[Baseline Wattage]))<0.1,\"Does Not Qualify [Overall Fixture Reduction is less than 10%]\",IF(ISNUMBER(FIND(\"LED\",Table_NCSummary[[#This Row],[Proposed Fixture]],1)),IF(ISNUMBER(FIND(\"LED Tube\",Table_NCSummary[[#This Row],[Proposed Fixture]],1)),\"New Construction Interior LED Fixture\",IF(ISNUMBER(FIND(\"LED\",Table_NCSummary[[#This Row],[Proposed Fixture]],1)),IF(Table_NCInfo[[#This Row],[Interior/ Exterior]]=\"Exterior\",\"New Construction Exterior LED Fixture\",\"New Construction Interior LED Fixture\"),\"Ineligible Fixture\")),\"Ineligible Fixture\")),\"\"),\"\")","v":""},{"$f":"IFERROR(VLOOKUP(Table_NCSummary[[#This Row],[Fixture Measure Description]],Table_FixtureRate[],2,FALSE),\"\")","v":""},{"$f":"IFERROR(IF(Table_NCSummary[[#This Row],[IsActive]],IF((1-SUMPRODUCT(Table_NCSummary[P. Qty],Table_NCSummary[Proposed Fixture Wattage])/SUM(Table_NCSummary[Baseline Wattage]))<0.1,\"DNQ [kW Reduction <10%]\",IF(Table_NCSummary[[#This Row],[Fixture Measure Description]]=\"Ineligible Fixture\",0,ROUND(Table_NCSummary[[#This Row],[Fixture Rebate (per kW)]]*(Table_NCSummary[[#This Row],[Baseline Wattage]]-Table_NCSummary[[#This Row],[Proposed Wattage]])/1000,2))),\"\"),\"\")","v":""},{"$f":"IFERROR(IF(Table_NCSummary[[#This Row],[Fixture Measure Description]]=\"Ineligible Fixture\",0,ROUND(IF(ProjectCost_Total=0,300000,ProjectCost_Total)*Table_NCSummary[[#This Row],[Fixture Rebate]]/SUM(Table_NCSummary[Fixture Rebate],Table_NCSummary[Controls Rebate]),2)),\"\")","v":""},{"$f":"IFERROR(IF(Table_NCSummary[[#This Row],[IsActive]],IF((1-SUMPRODUCT(Table_NCSummary[P. Qty],Table_NCSummary[Proposed Fixture Wattage])/SUM(Table_NCSummary[Baseline Wattage]))<0.1,\"DNQ [kW Reduction <10%]\",IF(Table_NCSummary[[#This Row],[Fixture Measure Description]]=\"Ineligible Fixture\",0,Table_NCSummary[[#This Row],[Existing Overall kWh]]-Table_NCSummary[[#This Row],[Proposed Overall kWh (Existing Controls)]])),\"\"),\"\")","v":""},{"$f":"IFERROR(IF(Table_NCSummary[[#This Row],[IsActive]],IF((1-SUMPRODUCT(Table_NCSummary[P. Qty],Table_NCSummary[Proposed Fixture Wattage])/SUM(Table_NCSummary[Baseline Wattage]))<0.1,\"DNQ [kW Reduction <10%]\",IF(OR(Table_NCSummary[[#This Row],[Fixture Measure Description]]=\"Ineligible Fixture\",Table_NCSummary[[#This Row],[Fixture Measure Description]]=\"New Construction Exterior LED Fixture\"),0,(Table_NCSummary[[#This Row],[Baseline kWh]]-Table_NCSummary[[#This Row],[Proposed Fixture kWh]])/Table_NCSummary[[#This Row],[OpHrs]]*Table_NCSummary[[#This Row],[CF (Ltg)]]*Table_NCSummary[[#This Row],[DF (Ltg)]])),\"\"),\"\")","v":""},null,{"$f":"IFERROR(\n  IF(OR(Table_NCSummary[[#This Row],[Fixture Measure Description]]=\"\",Table_NCSummary[[#This Row],[Fixture Measure Description]]=\"Ineligible Fixture\"),\n    \"\",\n    \"New Construction\"\n    & \" - \" &\n    IFERROR(VLOOKUP(RIGHT(Table_NCSummary[[#This Row],[Proposed Fixture]],LEN(Table_NCSummary[[#This Row],[Proposed Fixture]])-FIND(\" - \",Table_NCSummary[[#This Row],[Proposed Fixture]],FIND(\"]\",Table_NCSummary[[#This Row],[Proposed Fixture]],1))-2),Table_ControlType[],2, FALSE),None)),\n\"\")","v":""},{"$f":"IFERROR(VLOOKUP(Table_NCSummary[[#This Row],[Controls Measure Description]],Table_ControlRate[],2,FALSE),\"\")","v":""},{"$f":"IFERROR(IF(Table_NCSummary[[#This Row],[IsActive]],IF((1-SUMPRODUCT(Table_NCSummary[P. Qty],Table_NCSummary[Proposed Fixture Wattage])/SUM(Table_NCSummary[Baseline Wattage]))<0.1,\"DNQ [kW Reduction <10%]\",IF(OR(Table_NCSummary[[#This Row],[Controls Measure Description]]=\"\",Table_NCSummary[[#This Row],[Controls Measure Description]]=\"New Construction - No Controls\"),0,ROUND(Table_NCSummary[[#This Row],[Controls Rebate (per Fixt Watt)]]*Table_NCSummary[[#This Row],[Proposed Fixture Wattage]]*Table_NCSummary[[#This Row],[P. Qty]],2))),\"\"),\"\")","v":""},{"$f":"IFERROR(IF(Table_NCSummary[[#This Row],[Fixture Measure Description]]=\"Ineligible Fixture\",0,ROUND(IF(ProjectCost_Total=0,300000,ProjectCost_Total)*Table_NCSummary[[#This Row],[Controls Rebate]]/SUM(Table_NCSummary[Fixture Rebate],Table_NCSummary[Controls Rebate]),2)),\"\")","v":""},{"$f":"IFERROR(IF(Table_NCSummary[[#This Row],[IsActive]],IF((1-SUMPRODUCT(Table_NCSummary[P. Qty],Table_NCSummary[Proposed Fixture Wattage])/SUM(Table_NCSummary[Baseline Wattage]))<0.1,\"DNQ [kW Reduction <10%]\",IF(Table_NCSummary[[#This Row],[Controls Measure Description]]=\"\",0,(Table_NCSummary[[#This Row],[Proposed Fixture (Existing Controls) kWh]]-Table_NCSummary[[#This Row],[Proposed Fixture (Proposed Controls) kWh]]))),\"\"),\"\")","v":""},{"$f":"IFERROR(IF(Table_NCSummary[[#This Row],[IsActive]],IF((1-SUMPRODUCT(Table_NCSummary[P. Qty],Table_NCSummary[Proposed Fixture Wattage])/SUM(Table_NCSummary[Baseline Wattage]))<0.1,\"DNQ [kW Reduction <10%]\",IF(OR(Table_NCSummary[[#This Row],[Controls Measure Description]]=\"\",Table_NCSummary[[#This Row],[Controls Measure Description]]=\"New Construction - No Controls\"),0,(Table_NCSummary[[#This Row],[Proposed Fixture (Existing Controls) kWh]]-Table_NCSummary[[#This Row],[Proposed Fixture (Proposed Controls) kWh]])/Table_NCSummary[[#This Row],[OpHrs]]*Table_NCSummary[[#This Row],[CF (Ltg)]]*Table_NCSummary[[#This Row],[DF (Ltg)]])),\"\"),\"\")","v":""},null,{"$f":"IFERROR(IF(NOT(ISNUMBER(Table_NCSummary[[#This Row],[Fixture Rebate]])),\"\",IF(MIN(IF(Table_NCSummary[[#This Row],[Fixture Cost]]<0,0,SUM(Table_NCSummary[Fixture Cost],Table_NCSummary[Controls Cost])),SUM(Table_NCSummary[Fixture Rebate],Table_NCSummary[Controls Rebate]))>300000,300000/MIN(IF(Table_NCSummary[[#This Row],[Fixture Cost]]<0,0,SUM(Table_NCSummary[Fixture Cost],Table_NCSummary[Controls Cost])),SUM(Table_NCSummary[Fixture Rebate],Table_NCSummary[Controls Rebate]))*MIN(IF(Table_NCSummary[[#This Row],[Fixture Cost]]<0,0,SUM(Table_NCSummary[Fixture Cost],Table_NCSummary[Controls Cost])),Table_NCSummary[[#This Row],[Fixture Rebate]]+IF(Table_NCSummary[[#This Row],[Controls Rebate]]=\"\",0,Table_NCSummary[[#This Row],[Controls Rebate]])),MIN(IF(Table_NCSummary[[#This Row],[Fixture Cost]]<0,0,SUM(Table_NCSummary[Fixture Cost],Table_NCSummary[Controls Cost])),Table_NCSummary[[#This Row],[Fixture Rebate]]+IF(Table_NCSummary[[#This Row],[Controls Rebate]]=\"\",0,Table_NCSummary[[#This Row],[Controls Rebate]])))),\"\")","v":""},{"$f":"IFERROR(IF(Table_NCSummary[[#This Row],[Fixture Cost]]=\"\",\"\",Table_NCSummary[[#This Row],[Fixture Cost]]+IF(Table_NCSummary[[#This Row],[Controls Cost]]=\"\",0,Table_NCSummary[[#This Row],[Controls Cost]])),\"\")","v":""},{"$f":"IFERROR(IF(Table_NCSummary[[#This Row],[IsActive]],IF(NOT(ISNUMBER(Table_NCSummary[[#This Row],[Fixture Rebate]])),\"\",IF(Table_NCInfo[[#This Row],[Interior/ Exterior]]=\"Interior\",IFERROR((Table_NCSummary[[#This Row],[Annual Fixture Savings (kWh)]]+Table_NCSummary[[#This Row],[Annual Control Savings (kWh)]])*(Table_NCSummary[[#This Row],[EIF]]-1),0),0)),\"\"),\"\")","v":""},{"$f":"IFERROR(IF(Table_NCSummary[[#This Row],[IsActive]],IF(NOT(ISNUMBER(Table_NCSummary[[#This Row],[Fixture Rebate]])),\"\",IF(Table_NCInfo[[#This Row],[Interior/ Exterior]]=\"Interior\",IFERROR((Table_NCSummary[[#This Row],[Fixture kW Reduction]]+Table_NCSummary[[#This Row],[Control kW Reduction]]/(Table_NCSummary[[#This Row],[CF (Ltg)]]*Table_NCSummary[[#This Row],[DF (Ltg)]]))*(Table_NCSummary[[#This Row],[DIF]]-1)*Table_NCSummary[[#This Row],[CF (HVAC)]]*Table_NCSummary[[#This Row],[DF (HVAC)]],0),0)),\"\"),\"\")","v":""},{"$f":"IFERROR(IF(Table_NCSummary[[#This Row],[IsActive]],IF(NOT(ISNUMBER(Table_NCSummary[[#This Row],[Fixture Rebate]])),\"\",ROUND(Table_NCSummary[[#This Row],[Annual Fixture Savings (kWh)]]+Table_NCSummary[[#This Row],[Annual Control Savings (kWh)]],0)),\"\"),\"\")","v":""},{"$f":"IFERROR(IF(Table_NCSummary[[#This Row],[IsActive]],IF(NOT(ISNUMBER(Table_NCSummary[[#This Row],[Fixture Rebate]])),\"\",ROUND(Table_NCSummary[[#This Row],[Fixture kW Reduction]]+Table_NCSummary[[#This Row],[Control kW Reduction]],3)),\"\"),\"\")","v":""},{"$f":"IFERROR(IF(Table_NCSummary[[#This Row],[IsActive]],IF(NOT(ISNUMBER(Table_NCSummary[[#This Row],[Fixture Rebate]])),\"\",ROUND(Table_NCSummary[[#This Row],[Fixture Energy Savings (kWh)]]+Table_NCSummary[[#This Row],[Induced HVAC Energy Savings (kWh)]],0)),\"\"),\"\")","v":""},{"$f":"IFERROR(IF(Table_NCSummary[[#This Row],[IsActive]],IF(NOT(ISNUMBER(Table_NCSummary[[#This Row],[Fixture Rebate]])),\"\",ROUND(Table_NCSummary[[#This Row],[Fixture Demand Savings (kW)]]+Table_NCSummary[[#This Row],[Induced HVAC Demand Savings (kW)]],3)),\"\"),\"\")","v":""}]
[{"$f":"IFERROR(Table_NCInfo[[#This Row],[Line]],\"\")","v":24},{"$f":"IFERROR(Table_NCInfo[[#This Row],[IsActive]],\"\")","v":false},{"$f":"IFERROR(IF(Table_NCSummary[[#This Row],[IsActive]],VLOOKUP(IF(ISNUMBER(MATCH(Table_NCInfo[[#This Row],[Line]],Table_NCInspection[Line],0)),INDEX(Table_NCInspection[Schedule],MATCH(Table_NCSummary[[#This Row],[Line Item]],Table_NCInspection[Line],0)),Table_NCInfo[[#This Row],[Schedule]]),'Customer Information'!$S$27:$T$34,2,FALSE),\"\"),\"\")","v":""},{"$f":"IFERROR(IF(Table_NCSummary[[#This Row],[IsActive]],INDEX(Table_IntLookups[EIF],MATCH(IF(ISNUMBER(MATCH(Table_NCSummary[[#This Row],[Line Item]],Table_NCInspection[Line],0)),INDEX(Table_NCInspection[Zone Description],MATCH(Table_NCSummary[[#This Row],[Line Item]],Table_NCInfo[Line],0)),Table_NCInfo[[#This Row],[Zone Description]]),Table_IntLookups[Dropdown],0)),\"\"),\"\")","v":""},{"$f":"IFERROR(IF(Table_NCSummary[[#This Row],[IsActive]],INDEX(Table_IntLookups[DIF],MATCH(IF(ISNUMBER(MATCH(Table_NCSummary[[#This Row],[Line Item]],Table_NCInspection[Line],0)),INDEX(Table_NCInspection[Zone Description],MATCH(Table_NCSummary[[#This Row],[Line Item]],Table_NCInfo[Line],0)),Table_NCInfo[[#This Row],[Zone Description]]),Table_IntLookups[Dropdown],0)),\"\"),\"\")","v":""},{"$f":"IFERROR(IF(Table_NCSummary[[#This Row],[IsActive]],INDEX(Table_IntLookups[CFltg],MATCH(IF(ISNUMBER(MATCH(Table_NCSummary[[#This Row],[Line Item]],Table_NCInspection[Line],0)),INDEX(Table_NCInspection[Zone Description],MATCH(Table_NCSummary[[#This Row],[Line Item]],Table_NCInfo[Line],0)),Table_NCInfo[[#This Row],[Zone Description]]),Table_IntLookups[Dropdown],0)),\"\"),\"\")","v":""},{"$f":"IFERROR(IF(Table_NCSummary[[#This Row],[IsActive]],INDEX(Table_IntLookups[DFltg],MATCH(IF(ISNUMBER(MATCH(Table_NCSummary[[#This Row],[Line Item]],Table_NCInspection[Line],0)),INDEX(Table_NCInspection[Zone Description],MATCH(Table_NCSummary[[#This Row],[Line Item]],Table_NCInfo[Line],0)),Table_NCInfo[[#This Row],[Zone Description]]),Table_IntLookups[Dropdown],0)),\"\"),\"\")","v":""},{"$f":"IFERROR(IF(Table_NCSummary[[#This Row],[IsActive]],INDEX(Table_IntLookups[Cfhvac],MATCH(IF(ISNUMBER(MATCH(Table_NCSummary[[#This Row],[Line Item]],Table_NCInspection[Line],0)),INDEX(Table_NCInspection[Zone Description],MATCH(Table_NCSummary[[#This Row],[Line Item]],Table_NCInfo[Line],0)),Table_NCInfo[[#This Row],[Zone Description]]),Table_IntLookups[Dropdown],0)),\"\"),\"\")","v":""},{"$f":"IFERROR(IF(Table_NCSummary[[#This Row],[IsActive]],INDEX(Table_IntLookups[Dfhvac],MATCH(IF(ISNUMBER(MATCH(Table_NCSummary[[#This Row],[Line Item]],Table_NCInspection[Line],0)),INDEX(Table_NCInspection[Zone Description],MATCH(Table_NCSummary[[#This Row],[Line Item]],Table_NCInfo[Line],0)),Table_NCInfo[[#This Row],[Zone Description]]),Table_IntLookups[Dropdown],0)),\"\"),\"\")","v":""},{"$f":"IFERROR(IF(Table_NCSummary[[#This Row],[IsActive]],\nIF(ISNUMBER(MATCH(Table_NCInfo[[#This Row],[Line]],Table_NCInspection[Line],0)),INDEX(Table_NCInspection[Zone Description],MATCH(Table_NCSummary[[#This Row],[Line Item]],Table_NCInspection[Line],0)),Table_NCInfo[[#This Row],[Zone Description]]),\n \"\"),\"\")","v":""},{"$f":"IFERROR(IF(Table_NCSummary[[#This Row],[IsActive]],\nCONCATENATE(\nIF(ISNUMBER(MATCH(Table_NCInfo[[#This Row],[Line]],Table_NCInspection[Line],0)),INDEX(Table_NCInspection[Interior/ Exterior],MATCH(Table_NCSummary[[#This Row],[Line Item]],Table_NCInspection[Line],0)),Table_NCInfo[[#This Row],[Interior/ Exterior]]),\n\" - \",\nIF(ISNUMBER(MATCH(Table_NCInfo[[#This Row],[Line]],Table_NCInspection[Line],0)),INDEX(Table_NCInspection[Space Description],MATCH(Table_NCSummary[[#This Row],[Line Item]],Table_NCInspection[Line],0)),Table_NCInfo[[#This Row],[Space Description]])),\n \"\"),\"\")","v":""},{"$f":"IFERROR(IF(ISNUMBER(MATCH(Table_NCInfo[[#This Row],[Line]],Table_NCInspection[Line],0)),INDEX(Table_NCInspection[Baseline Wattage],MATCH(Table_NCSummary[[#This Row],[Line Item]],Table_NCInspection[Line],0)),Table_NCInfo[[#This Row],[Baseline Wattage]]),\"\")","v":""},{"$f":"IFERROR(IF(Table_NCSummary[[#This Row],[IsActive]],Table_NCSummary[[#This Row],[Baseline Wattage]]/1000*Table_NCSummary[[#This Row],[OpHrs]],\"\"),\"\")","v":""},{"$f":"IFERROR(IF(Table_NCSummary[[#This Row],[IsActive]],IFERROR(VLOOKUP(IF(ISNUMBER(MATCH(Table_NCSummary[[#This Row],[Line Item]],Table_NCInspection[Line],0)),INDEX(Table_NCInspection[Zone '#],MATCH(Table_NCSummary[[#This Row],[Line Item]],Table_NCInspection[Line],0)),Table_NCInfo[[#This Row],[Zone '#]]),Table_IntLookups[],'Facility Information'!$AA$4,FALSE),0),\"\"),\"\")","v":""},{"$f":"IFERROR(IF(Table_NCSummary[[#This Row],[IsActive]],IFERROR(Table_NCSummary[[#This Row],[Baseline Wattage]]/1000*Table_NCSummary[[#This Row],[OpHrs]]*Table_NCSummary[[#This Row],[Existing CSF]]*(-1),0),\"\"),\"\")","v":""},{"$f":"IFERROR(Table_NCSummary[[#This Row],[Baseline kWh]]+Table_NCSummary[[#This Row],[Existing Fixture (Existing Controls) kWh]],\"\")","v":""},{"$f":"IFERROR(IF(Table_NCSummary[[#This Row],[IsActive]],IF(ISNUMBER(MATCH(Table_NCInfo[[#This Row],[Line]],Table_NCInspection[Line],0)),INDEX(Table_NCInspection[Fixture Description '[P']],MATCH(Table_NCSummary[[#This Row],[Line Item]],Table_NCInspection[Line],0)),Table_NCInfo[[#This Row],[Fixture Description '[P']]]),\"\"),\"\")","v":""},{"$f":"IFERROR(IF(Table_NCSummary[[#This Row],[IsActive]],IF(ISNUMBER(MATCH(Table_NCInfo[[#This Row],[Line]],Table_NCInspection[Line],0)),INDEX(Table_NCInspection['# Lamps/ Fixture '[P']],MATCH(Table_NCSummary[[#This Row],[Line Item]],Table_NCInspection[Line],0)),Table_NCInfo[[#This Row],['# Lamps/ Fixture '[P']]]),\"\"),\"\")","v":""},{"$f":"IFERROR(IF(Table_NCSummary[[#This Row],[IsActive]],IF(ISNUMBER(MATCH(Table_NCInfo[[#This Row],[Line]],Table_NCInspection[Line],0)),INDEX(Table_NCInspection[Fixture/ Lamp Wattage '[P']],MATCH(Table_NCSummary[[#This Row],[Line Item]],Table_NCInspection[Line],0)),Table_NCInfo[[#This Row],[Fixture/ Lamp Wattage '[P']]]),\"\"),\"\")","v":""},{"$f":"IFERROR(IF(Table_NCSummary[[#This Row],[IsActive]],IF(ISNUMBER(MATCH(Table_NCInfo[[#This Row],[Line]],Table_NCInspection[Line],0)),INDEX(Table_NCInspection[Fixture Qty '[P']],MATCH(Table_NCSummary[[#This Row],[Line Item]],Table_NCInspection[Line],0)),Table_NCInfo[[#This Row],[Fixture Qty '[P']]]),\"\"),\"\")","v":""},{"$f":"IFERROR(IF(Table_NCSummary[[#This Row],[IsActive]],Table_NCSummary[[#This Row],['# Lamps/ Fixture '[P']]]*Table_NCSummary[[#This Row],[P. Qty]],\"\"),\"\")","v":""},{"$f":"IFERROR(IF(Table_NCSummary[[#This Row],[IsActive]],IF(ISNUMBER(MATCH(Table_NCInfo[[#This Row],[Line]],Table_NCInspection[Line],0)),INDEX(Table_NCInspection[Fixture Wattage '[P']],MATCH(Table_NCSummary[[#This Row],[Line Item]],Table_NCInspection[Line],0)),Table_NCInfo[[#This Row],[Fixture Wattage '[P']]]),\"\"),\"\")","v":""},{"$f":"IFERROR(Table_NCSummary[[#This Row],[P. Qty]]*Table_NCSummary[[#This Row],[Proposed Fixture Wattage]],\"\")","v":""},{"$f":"IFERROR(Table_NCSummary[[#This Row],[Proposed Fixture Wattage]]/1000*Table_NCSummary[[#This Row],[OpHrs]]*Table_NCSummary[[#This Row],[P. Qty]],\"\")","v":""},{"$f":"IFERROR(IF(Table_NCSummary[[#This Row],[IsActive]],IFERROR(VLOOKUP(RIGHT(Table_NCSummary[[#This Row],[Proposed Fixture]],LEN(Table_NCSummary[[#This Row],[Proposed Fixture]])-FIND(\" - \",Table_NCSummary[[#This Row],[Proposed Fixture]],FIND(\"]\",Table_NCSummary[[#This Row],[Proposed Fixture]],1))-2),Table_ControlType[],3, FALSE),Table_NCSummary[[#This Row],[Existing CSF]]),\"\"),\"\")","v":""},{"$f":"IFERROR(IF(Table_NCSummary[[#This Row],[IsActive]],IFERROR(Table_NCSummary[[#This Row],[Proposed Fixture Wattage]]/1000*Table_NCSummary[[#This Row],[OpHrs]]*Table_NCSummary[[#This Row],[P. Qty]]*Table_NCSummary[[#This Row],[Existing CSF]]*(-1),0),\"\"),\"\")","v":""},{"$f":"IFERROR(Table_NCSummary[[#This Row],[Proposed Fixture kWh]]+Table_NCSummary[[#This Row],[Proposed Fixture (Existing Controls) kWh]],\"\")","v":""},{"$f":"IFERROR(IF(Table_NCSummary[[#This Row],[IsActive]],IFERROR(Table_NCSummary[[#This Row],[Proposed Fixture Wattage]]/1000*Table_NCSummary[[#This Row],[OpHrs]]*Table_NCSummary[[#This Row],[P. Qty]]*Table_NCSummary[[#This Row],[Proposed CSF]]*(-1),0),\"\"),\"\")","v":""},{"$f":"IFERROR(Table_NCSummary[[#This Row],[Proposed Fixture kWh]]+Table_NCSummary[[#This Row],[Proposed Fixture (Proposed Controls) kWh]],\"\")","v":""},null,{"$f":"IFERROR(IF(Table_NCSummary[[#This Row],[IsActive]],IF((1-SUMPRODUCT(Table_NCSummary[P. Qty],Table_NCSummary[Proposed Fixture Wattage])/SUM(Table_NCSummary[Baseline Wattage]))<0.1,\"Does Not Qualify [Overall Fixture Reduction is less than 10%]\",IF(ISNUMBER(FIND(\"LED\",Table_NCSummary[[#This Row],[Proposed Fixture]],1)),IF(ISNUMBER(FIND(\"LED Tube\",Table_NCSummary[[#This Row],[Proposed Fixture]],1)),\"New Construction Interior LED Fixture\",IF(ISNUMBER(FIND(\"LED\",Table_NCSummary[[#This Row],[Proposed Fixture]],1)),IF(Table_NCInfo[[#This Row],[Interior/ Exterior]]=\"Exterior\",\"New Construction Exterior LED Fixture\",\"New Construction Interior LED Fixture\"),\"Ineligible Fixture\")),\"Ineligible Fixture\")),\"\"),\"\")","v":""},{"$f":"IFERROR(VLOOKUP(Table_NCSummary[[#This Row],[Fixture Measure Description]],Table_FixtureRate[],2,FALSE),\"\")","v":""},{"$f":"IFERROR(IF(Table_NCSummary[[#This Row],[IsActive]],IF((1-SUMPRODUCT(Table_NCSummary[P. Qty],Table_NCSummary[Proposed Fixture Wattage])/SUM(Table_NCSummary[Baseline Wattage]))<0.1,\"DNQ [kW Reduction <10%]\",IF(Table_NCSummary[[#This Row],[Fixture Measure Description]]=\"Ineligible Fixture\",0,ROUND(Table_NCSummary[[#This Row],[Fixture Rebate (per kW)]]*(Table_NCSummary[[#This Row],[Baseline Wattage]]-Table_NCSummary[[#This Row],[Proposed Wattage]])/1000,2))),\"\"),\"\")","v":""},{"$f":"IFERROR(IF(Table_NCSummary[[#This Row],[Fixture Measure Description]]=\"Ineligible Fixture\",0,ROUND(IF(ProjectCost_Total=0,300000,ProjectCost_Total)*Table_NCSummary[[#This Row],[Fixture Rebate]]/SUM(Table_NCSummary[Fixture Rebate],Table_NCSummary[Controls Rebate]),2)),\"\")","v":""},{"$f":"IFERROR(IF(Table_NCSummary[[#This Row],[IsActive]],IF((1-SUMPRODUCT(Table_NCSummary[P. Qty],Table_NCSummary[Proposed Fixture Wattage])/SUM(Table_NCSummary[Baseline Wattage]))<0.1,\"DNQ [kW Reduction <10%]\",IF(Table_NCSummary[[#This Row],[Fixture Measure Description]]=\"Ineligible Fixture\",0,Table_NCSummary[[#This Row],[Existing Overall kWh]]-Table_NCSummary[[#This Row],[Proposed Overall kWh (Existing Controls)]])),\"\"),\"\")","v":""},{"$f":"IFERROR(IF(Table_NCSummary[[#This Row],[IsActive]],IF((1-SUMPRODUCT(Table_NCSummary[P. Qty],Table_NCSummary[Proposed Fixture Wattage])/SUM(Table_NCSummary[Baseline Wattage]))<0.1,\"DNQ [kW Reduction <10%]\",IF(OR(Table_NCSummary[[#This Row],[Fixture Measure Description]]=\"Ineligible Fixture\",Table_NCSummary[[#This Row],[Fixture Measure Description]]=\"New Construction Exterior LED Fixture\"),0,(Table_NCSummary[[#This Row],[Baseline kWh]]-Table_NCSummary[[#This Row],[Proposed Fixture kWh]])/Table_NCSummary[[#This Row],[OpHrs]]*Table_NCSummary[[#This Row],[CF (Ltg)]]*Table_NCSummary[[#This Row],[DF (Ltg)]])),\"\"),\"\")","v":""},null,{"$f":"IFERROR(\n  IF(OR(Table_NCSummary[[#This Row],[Fixture Measure Description]]=\"\",Table_NCSummary[[#This Row],[Fixture Measure Description]]=\"Ineligible Fixture\"),\n    \"\",\n    \"New Construction\"\n    & \" - \" &\n    IFERROR(VLOOKUP(RIGHT(Table_NCSummary[[#This Row],[Proposed Fixture]],LEN(Table_NCSummary[[#This Row],[Proposed Fixture]])-FIND(\" - \",Table_NCSummary[[#This Row],[Proposed Fixture]],FIND(\"]\",Table_NCSummary[[#This Row],[Proposed Fixture]],1))-2),Table_ControlType[],2, FALSE),None)),\n\"\")","v":""},{"$f":"IFERROR(VLOOKUP(Table_NCSummary[[#This Row],[Controls Measure Description]],Table_ControlRate[],2,FALSE),\"\")","v":""},{"$f":"IFERROR(IF(Table_NCSummary[[#This Row],[IsActive]],IF((1-SUMPRODUCT(Table_NCSummary[P. Qty],Table_NCSummary[Proposed Fixture Wattage])/SUM(Table_NCSummary[Baseline Wattage]))<0.1,\"DNQ [kW Reduction <10%]\",IF(OR(Table_NCSummary[[#This Row],[Controls Measure Description]]=\"\",Table_NCSummary[[#This Row],[Controls Measure Description]]=\"New Construction - No Controls\"),0,ROUND(Table_NCSummary[[#This Row],[Controls Rebate (per Fixt Watt)]]*Table_NCSummary[[#This Row],[Proposed Fixture Wattage]]*Table_NCSummary[[#This Row],[P. Qty]],2))),\"\"),\"\")","v":""},{"$f":"IFERROR(IF(Table_NCSummary[[#This Row],[Fixture Measure Description]]=\"Ineligible Fixture\",0,ROUND(IF(ProjectCost_Total=0,300000,ProjectCost_Total)*Table_NCSummary[[#This Row],[Controls Rebate]]/SUM(Table_NCSummary[Fixture Rebate],Table_NCSummary[Controls Rebate]),2)),\"\")","v":""},{"$f":"IFERROR(IF(Table_NCSummary[[#This Row],[IsActive]],IF((1-SUMPRODUCT(Table_NCSummary[P. Qty],Table_NCSummary[Proposed Fixture Wattage])/SUM(Table_NCSummary[Baseline Wattage]))<0.1,\"DNQ [kW Reduction <10%]\",IF(Table_NCSummary[[#This Row],[Controls Measure Description]]=\"\",0,(Table_NCSummary[[#This Row],[Proposed Fixture (Existing Controls) kWh]]-Table_NCSummary[[#This Row],[Proposed Fixture (Proposed Controls) kWh]]))),\"\"),\"\")","v":""},{"$f":"IFERROR(IF(Table_NCSummary[[#This Row],[IsActive]],IF((1-SUMPRODUCT(Table_NCSummary[P. Qty],Table_NCSummary[Proposed Fixture Wattage])/SUM(Table_NCSummary[Baseline Wattage]))<0.1,\"DNQ [kW Reduction <10%]\",IF(OR(Table_NCSummary[[#This Row],[Controls Measure Description]]=\"\",Table_NCSummary[[#This Row],[Controls Measure Description]]=\"New Construction - No Controls\"),0,(Table_NCSummary[[#This Row],[Proposed Fixture (Existing Controls) kWh]]-Table_NCSummary[[#This Row],[Proposed Fixture (Proposed Controls) kWh]])/Table_NCSummary[[#This Row],[OpHrs]]*Table_NCSummary[[#This Row],[CF (Ltg)]]*Table_NCSummary[[#This Row],[DF (Ltg)]])),\"\"),\"\")","v":""},null,{"$f":"IFERROR(IF(NOT(ISNUMBER(Table_NCSummary[[#This Row],[Fixture Rebate]])),\"\",IF(MIN(IF(Table_NCSummary[[#This Row],[Fixture Cost]]<0,0,SUM(Table_NCSummary[Fixture Cost],Table_NCSummary[Controls Cost])),SUM(Table_NCSummary[Fixture Rebate],Table_NCSummary[Controls Rebate]))>300000,300000/MIN(IF(Table_NCSummary[[#This Row],[Fixture Cost]]<0,0,SUM(Table_NCSummary[Fixture Cost],Table_NCSummary[Controls Cost])),SUM(Table_NCSummary[Fixture Rebate],Table_NCSummary[Controls Rebate]))*MIN(IF(Table_NCSummary[[#This Row],[Fixture Cost]]<0,0,SUM(Table_NCSummary[Fixture Cost],Table_NCSummary[Controls Cost])),Table_NCSummary[[#This Row],[Fixture Rebate]]+IF(Table_NCSummary[[#This Row],[Controls Rebate]]=\"\",0,Table_NCSummary[[#This Row],[Controls Rebate]])),MIN(IF(Table_NCSummary[[#This Row],[Fixture Cost]]<0,0,SUM(Table_NCSummary[Fixture Cost],Table_NCSummary[Controls Cost])),Table_NCSummary[[#This Row],[Fixture Rebate]]+IF(Table_NCSummary[[#This Row],[Controls Rebate]]=\"\",0,Table_NCSummary[[#This Row],[Controls Rebate]])))),\"\")","v":""},{"$f":"IFERROR(IF(Table_NCSummary[[#This Row],[Fixture Cost]]=\"\",\"\",Table_NCSummary[[#This Row],[Fixture Cost]]+IF(Table_NCSummary[[#This Row],[Controls Cost]]=\"\",0,Table_NCSummary[[#This Row],[Controls Cost]])),\"\")","v":""},{"$f":"IFERROR(IF(Table_NCSummary[[#This Row],[IsActive]],IF(NOT(ISNUMBER(Table_NCSummary[[#This Row],[Fixture Rebate]])),\"\",IF(Table_NCInfo[[#This Row],[Interior/ Exterior]]=\"Interior\",IFERROR((Table_NCSummary[[#This Row],[Annual Fixture Savings (kWh)]]+Table_NCSummary[[#This Row],[Annual Control Savings (kWh)]])*(Table_NCSummary[[#This Row],[EIF]]-1),0),0)),\"\"),\"\")","v":""},{"$f":"IFERROR(IF(Table_NCSummary[[#This Row],[IsActive]],IF(NOT(ISNUMBER(Table_NCSummary[[#This Row],[Fixture Rebate]])),\"\",IF(Table_NCInfo[[#This Row],[Interior/ Exterior]]=\"Interior\",IFERROR((Table_NCSummary[[#This Row],[Fixture kW Reduction]]+Table_NCSummary[[#This Row],[Control kW Reduction]]/(Table_NCSummary[[#This Row],[CF (Ltg)]]*Table_NCSummary[[#This Row],[DF (Ltg)]]))*(Table_NCSummary[[#This Row],[DIF]]-1)*Table_NCSummary[[#This Row],[CF (HVAC)]]*Table_NCSummary[[#This Row],[DF (HVAC)]],0),0)),\"\"),\"\")","v":""},{"$f":"IFERROR(IF(Table_NCSummary[[#This Row],[IsActive]],IF(NOT(ISNUMBER(Table_NCSummary[[#This Row],[Fixture Rebate]])),\"\",ROUND(Table_NCSummary[[#This Row],[Annual Fixture Savings (kWh)]]+Table_NCSummary[[#This Row],[Annual Control Savings (kWh)]],0)),\"\"),\"\")","v":""},{"$f":"IFERROR(IF(Table_NCSummary[[#This Row],[IsActive]],IF(NOT(ISNUMBER(Table_NCSummary[[#This Row],[Fixture Rebate]])),\"\",ROUND(Table_NCSummary[[#This Row],[Fixture kW Reduction]]+Table_NCSummary[[#This Row],[Control kW Reduction]],3)),\"\"),\"\")","v":""},{"$f":"IFERROR(IF(Table_NCSummary[[#This Row],[IsActive]],IF(NOT(ISNUMBER(Table_NCSummary[[#This Row],[Fixture Rebate]])),\"\",ROUND(Table_NCSummary[[#This Row],[Fixture Energy Savings (kWh)]]+Table_NCSummary[[#This Row],[Induced HVAC Energy Savings (kWh)]],0)),\"\"),\"\")","v":""},{"$f":"IFERROR(IF(Table_NCSummary[[#This Row],[IsActive]],IF(NOT(ISNUMBER(Table_NCSummary[[#This Row],[Fixture Rebate]])),\"\",ROUND(Table_NCSummary[[#This Row],[Fixture Demand Savings (kW)]]+Table_NCSummary[[#This Row],[Induced HVAC Demand Savings (kW)]],3)),\"\"),\"\")","v":""}]
[{"$f":"IFERROR(Table_NCInfo[[#This Row],[Line]],\"\")","v":25},{"$f":"IFERROR(Table_NCInfo[[#This Row],[IsActive]],\"\")","v":false},{"$f":"IFERROR(IF(Table_NCSummary[[#This Row],[IsActive]],VLOOKUP(IF(ISNUMBER(MATCH(Table_NCInfo[[#This Row],[Line]],Table_NCInspection[Line],0)),INDEX(Table_NCInspection[Schedule],MATCH(Table_NCSummary[[#This Row],[Line Item]],Table_NCInspection[Line],0)),Table_NCInfo[[#This Row],[Schedule]]),'Customer Information'!$S$27:$T$34,2,FALSE),\"\"),\"\")","v":""},{"$f":"IFERROR(IF(Table_NCSummary[[#This Row],[IsActive]],INDEX(Table_IntLookups[EIF],MATCH(IF(ISNUMBER(MATCH(Table_NCSummary[[#This Row],[Line Item]],Table_NCInspection[Line],0)),INDEX(Table_NCInspection[Zone Description],MATCH(Table_NCSummary[[#This Row],[Line Item]],Table_NCInfo[Line],0)),Table_NCInfo[[#This Row],[Zone Description]]),Table_IntLookups[Dropdown],0)),\"\"),\"\")","v":""},{"$f":"IFERROR(IF(Table_NCSummary[[#This Row],[IsActive]],INDEX(Table_IntLookups[DIF],MATCH(IF(ISNUMBER(MATCH(Table_NCSummary[[#This Row],[Line Item]],Table_NCInspection[Line],0)),INDEX(Table_NCInspection[Zone Description],MATCH(Table_NCSummary[[#This Row],[Line Item]],Table_NCInfo[Line],0)),Table_NCInfo[[#This Row],[Zone Description]]),Table_IntLookups[Dropdown],0)),\"\"),\"\")","v":""},{"$f":"IFERROR(IF(Table_NCSummary[[#This Row],[IsActive]],INDEX(Table_IntLookups[CFltg],MATCH(IF(ISNUMBER(MATCH(Table_NCSummary[[#This Row],[Line Item]],Table_NCInspection[Line],0)),INDEX(Table_NCInspection[Zone Description],MATCH(Table_NCSummary[[#This Row],[Line Item]],Table_NCInfo[Line],0)),Table_NCInfo[[#This Row],[Zone Description]]),Table_IntLookups[Dropdown],0)),\"\"),\"\")","v":""},{"$f":"IFERROR(IF(Table_NCSummary[[#This Row],[IsActive]],INDEX(Table_IntLookups[DFltg],MATCH(IF(ISNUMBER(MATCH(Table_NCSummary[[#This Row],[Line Item]],Table_NCInspection[Line],0)),INDEX(Table_NCInspection[Zone Description],MATCH(Table_NCSummary[[#This Row],[Line Item]],Table_NCInfo[Line],0)),Table_NCInfo[[#This Row],[Zone Description]]),Table_IntLookups[Dropdown],0)),\"\"),\"\")","v":""},{"$f":"IFERROR(IF(Table_NCSummary[[#This Row],[IsActive]],INDEX(Table_IntLookups[Cfhvac],MATCH(IF(ISNUMBER(MATCH(Table_NCSummary[[#This Row],[Line Item]],Table_NCInspection[Line],0)),INDEX(Table_NCInspection[Zone Description],MATCH(Table_NCSummary[[#This Row],[Line Item]],Table_NCInfo[Line],0)),Table_NCInfo[[#This Row],[Zone Description]]),Table_IntLookups[Dropdown],0)),\"\"),\"\")","v":""},{"$f":"IFERROR(IF(Table_NCSummary[[#This Row],[IsActive]],INDEX(Table_IntLookups[Dfhvac],MATCH(IF(ISNUMBER(MATCH(Table_NCSummary[[#This Row],[Line Item]],Table_NCInspection[Line],0)),INDEX(Table_NCInspection[Zone Description],MATCH(Table_NCSummary[[#This Row],[Line Item]],Table_NCInfo[Line],0)),Table_NCInfo[[#This Row],[Zone Description]]),Table_IntLookups[Dropdown],0)),\"\"),\"\")","v":""},{"$f":"IFERROR(IF(Table_NCSummary[[#This Row],[IsActive]],\nIF(ISNUMBER(MATCH(Table_NCInfo[[#This Row],[Line]],Table_NCInspection[Line],0)),INDEX(Table_NCInspection[Zone Description],MATCH(Table_NCSummary[[#This Row],[Line Item]],Table_NCInspection[Line],0)),Table_NCInfo[[#This Row],[Zone Description]]),\n \"\"),\"\")","v":""},{"$f":"IFERROR(IF(Table_NCSummary[[#This Row],[IsActive]],\nCONCATENATE(\nIF(ISNUMBER(MATCH(Table_NCInfo[[#This Row],[Line]],Table_NCInspection[Line],0)),INDEX(Table_NCInspection[Interior/ Exterior],MATCH(Table_NCSummary[[#This Row],[Line Item]],Table_NCInspection[Line],0)),Table_NCInfo[[#This Row],[Interior/ Exterior]]),\n\" - \",\nIF(ISNUMBER(MATCH(Table_NCInfo[[#This Row],[Line]],Table_NCInspection[Line],0)),INDEX(Table_NCInspection[Space Description],MATCH(Table_NCSummary[[#This Row],[Line Item]],Table_NCInspection[Line],0)),Table_NCInfo[[#This Row],[Space Description]])),\n \"\"),\"\")","v":""},{"$f":"IFERROR(IF(ISNUMBER(MATCH(Table_NCInfo[[#This Row],[Line]],Table_NCInspection[Line],0)),INDEX(Table_NCInspection[Baseline Wattage],MATCH(Table_NCSummary[[#This Row],[Line Item]],Table_NCInspection[Line],0)),Table_NCInfo[[#This Row],[Baseline Wattage]]),\"\")","v":""},{"$f":"IFERROR(IF(Table_NCSummary[[#This Row],[IsActive]],Table_NCSummary[[#This Row],[Baseline Wattage]]/1000*Table_NCSummary[[#This Row],[OpHrs]],\"\"),\"\")","v":""},{"$f":"IFERROR(IF(Table_NCSummary[[#This Row],[IsActive]],IFERROR(VLOOKUP(IF(ISNUMBER(MATCH(Table_NCSummary[[#This Row],[Line Item]],Table_NCInspection[Line],0)),INDEX(Table_NCInspection[Zone '#],MATCH(Table_NCSummary[[#This Row],[Line Item]],Table_NCInspection[Line],0)),Table_NCInfo[[#This Row],[Zone '#]]),Table_IntLookups[],'Facility Information'!$AA$4,FALSE),0),\"\"),\"\")","v":""},{"$f":"IFERROR(IF(Table_NCSummary[[#This Row],[IsActive]],IFERROR(Table_NCSummary[[#This Row],[Baseline Wattage]]/1000*Table_NCSummary[[#This Row],[OpHrs]]*Table_NCSummary[[#This Row],[Existing CSF]]*(-1),0),\"\"),\"\")","v":""},{"$f":"IFERROR(Table_NCSummary[[#This Row],[Baseline kWh]]+Table_NCSummary[[#This Row],[Existing Fixture (Existing Controls) kWh]],\"\")","v":""},{"$f":"IFERROR(IF(Table_NCSummary[[#This Row],[IsActive]],IF(ISNUMBER(MATCH(Table_NCInfo[[#This Row],[Line]],Table_NCInspection[Line],0)),INDEX(Table_NCInspection[Fixture Description '[P']],MATCH(Table_NCSummary[[#This Row],[Line Item]],Table_NCInspection[Line],0)),Table_NCInfo[[#This Row],[Fixture Description '[P']]]),\"\"),\"\")","v":""},{"$f":"IFERROR(IF(Table_NCSummary[[#This Row],[IsActive]],IF(ISNUMBER(MATCH(Table_NCInfo[[#This Row],[Line]],Table_NCInspection[Line],0)),INDEX(Table_NCInspection['# Lamps/ Fixture '[P']],MATCH(Table_NCSummary[[#This Row],[Line Item]],Table_NCInspection[Line],0)),Table_NCInfo[[#This Row],['# Lamps/ Fixture '[P']]]),\"\"),\"\")","v":""},{"$f":"IFERROR(IF(Table_NCSummary[[#This Row],[IsActive]],IF(ISNUMBER(MATCH(Table_NCInfo[[#This Row],[Line]],Table_NCInspection[Line],0)),INDEX(Table_NCInspection[Fixture/ Lamp Wattage '[P']],MATCH(Table_NCSummary[[#This Row],[Line Item]],Table_NCInspection[Line],0)),Table_NCInfo[[#This Row],[Fixture/ Lamp Wattage '[P']]]),\"\"),\"\")","v":""},{"$f":"IFERROR(IF(Table_NCSummary[[#This Row],[IsActive]],IF(ISNUMBER(MATCH(Table_NCInfo[[#This Row],[Line]],Table_NCInspection[Line],0)),INDEX(Table_NCInspection[Fixture Qty '[P']],MATCH(Table_NCSummary[[#This Row],[Line Item]],Table_NCInspection[Line],0)),Table_NCInfo[[#This Row],[Fixture Qty '[P']]]),\"\"),\"\")","v":""},{"$f":"IFERROR(IF(Table_NCSummary[[#This Row],[IsActive]],Table_NCSummary[[#This Row],['# Lamps/ Fixture '[P']]]*Table_NCSummary[[#This Row],[P. Qty]],\"\"),\"\")","v":""},{"$f":"IFERROR(IF(Table_NCSummary[[#This Row],[IsActive]],IF(ISNUMBER(MATCH(Table_NCInfo[[#This Row],[Line]],Table_NCInspection[Line],0)),INDEX(Table_NCInspection[Fixture Wattage '[P']],MATCH(Table_NCSummary[[#This Row],[Line Item]],Table_NCInspection[Line],0)),Table_NCInfo[[#This Row],[Fixture Wattage '[P']]]),\"\"),\"\")","v":""},{"$f":"IFERROR(Table_NCSummary[[#This Row],[P. Qty]]*Table_NCSummary[[#This Row],[Proposed Fixture Wattage]],\"\")","v":""},{"$f":"IFERROR(Table_NCSummary[[#This Row],[Proposed Fixture Wattage]]/1000*Table_NCSummary[[#This Row],[OpHrs]]*Table_NCSummary[[#This Row],[P. Qty]],\"\")","v":""},{"$f":"IFERROR(IF(Table_NCSummary[[#This Row],[IsActive]],IFERROR(VLOOKUP(RIGHT(Table_NCSummary[[#This Row],[Proposed Fixture]],LEN(Table_NCSummary[[#This Row],[Proposed Fixture]])-FIND(\" - \",Table_NCSummary[[#This Row],[Proposed Fixture]],FIND(\"]\",Table_NCSummary[[#This Row],[Proposed Fixture]],1))-2),Table_ControlType[],3, FALSE),Table_NCSummary[[#This Row],[Existing CSF]]),\"\"),\"\")","v":""},{"$f":"IFERROR(IF(Table_NCSummary[[#This Row],[IsActive]],IFERROR(Table_NCSummary[[#This Row],[Proposed Fixture Wattage]]/1000*Table_NCSummary[[#This Row],[OpHrs]]*Table_NCSummary[[#This Row],[P. Qty]]*Table_NCSummary[[#This Row],[Existing CSF]]*(-1),0),\"\"),\"\")","v":""},{"$f":"IFERROR(Table_NCSummary[[#This Row],[Proposed Fixture kWh]]+Table_NCSummary[[#This Row],[Proposed Fixture (Existing Controls) kWh]],\"\")","v":""},{"$f":"IFERROR(IF(Table_NCSummary[[#This Row],[IsActive]],IFERROR(Table_NCSummary[[#This Row],[Proposed Fixture Wattage]]/1000*Table_NCSummary[[#This Row],[OpHrs]]*Table_NCSummary[[#This Row],[P. Qty]]*Table_NCSummary[[#This Row],[Proposed CSF]]*(-1),0),\"\"),\"\")","v":""},{"$f":"IFERROR(Table_NCSummary[[#This Row],[Proposed Fixture kWh]]+Table_NCSummary[[#This Row],[Proposed Fixture (Proposed Controls) kWh]],\"\")","v":""},null,{"$f":"IFERROR(IF(Table_NCSummary[[#This Row],[IsActive]],IF((1-SUMPRODUCT(Table_NCSummary[P. Qty],Table_NCSummary[Proposed Fixture Wattage])/SUM(Table_NCSummary[Baseline Wattage]))<0.1,\"Does Not Qualify [Overall Fixture Reduction is less than 10%]\",IF(ISNUMBER(FIND(\"LED\",Table_NCSummary[[#This Row],[Proposed Fixture]],1)),IF(ISNUMBER(FIND(\"LED Tube\",Table_NCSummary[[#This Row],[Proposed Fixture]],1)),\"New Construction Interior LED Fixture\",IF(ISNUMBER(FIND(\"LED\",Table_NCSummary[[#This Row],[Proposed Fixture]],1)),IF(Table_NCInfo[[#This Row],[Interior/ Exterior]]=\"Exterior\",\"New Construction Exterior LED Fixture\",\"New Construction Interior LED Fixture\"),\"Ineligible Fixture\")),\"Ineligible Fixture\")),\"\"),\"\")","v":""},{"$f":"IFERROR(VLOOKUP(Table_NCSummary[[#This Row],[Fixture Measure Description]],Table_FixtureRate[],2,FALSE),\"\")","v":""},{"$f":"IFERROR(IF(Table_NCSummary[[#This Row],[IsActive]],IF((1-SUMPRODUCT(Table_NCSummary[P. Qty],Table_NCSummary[Proposed Fixture Wattage])/SUM(Table_NCSummary[Baseline Wattage]))<0.1,\"DNQ [kW Reduction <10%]\",IF(Table_NCSummary[[#This Row],[Fixture Measure Description]]=\"Ineligible Fixture\",0,ROUND(Table_NCSummary[[#This Row],[Fixture Rebate (per kW)]]*(Table_NCSummary[[#This Row],[Baseline Wattage]]-Table_NCSummary[[#This Row],[Proposed Wattage]])/1000,2))),\"\"),\"\")","v":""},{"$f":"IFERROR(IF(Table_NCSummary[[#This Row],[Fixture Measure Description]]=\"Ineligible Fixture\",0,ROUND(IF(ProjectCost_Total=0,300000,ProjectCost_Total)*Table_NCSummary[[#This Row],[Fixture Rebate]]/SUM(Table_NCSummary[Fixture Rebate],Table_NCSummary[Controls Rebate]),2)),\"\")","v":""},{"$f":"IFERROR(IF(Table_NCSummary[[#This Row],[IsActive]],IF((1-SUMPRODUCT(Table_NCSummary[P. Qty],Table_NCSummary[Proposed Fixture Wattage])/SUM(Table_NCSummary[Baseline Wattage]))<0.1,\"DNQ [kW Reduction <10%]\",IF(Table_NCSummary[[#This Row],[Fixture Measure Description]]=\"Ineligible Fixture\",0,Table_NCSummary[[#This Row],[Existing Overall kWh]]-Table_NCSummary[[#This Row],[Proposed Overall kWh (Existing Controls)]])),\"\"),\"\")","v":""},{"$f":"IFERROR(IF(Table_NCSummary[[#This Row],[IsActive]],IF((1-SUMPRODUCT(Table_NCSummary[P. Qty],Table_NCSummary[Proposed Fixture Wattage])/SUM(Table_NCSummary[Baseline Wattage]))<0.1,\"DNQ [kW Reduction <10%]\",IF(OR(Table_NCSummary[[#This Row],[Fixture Measure Description]]=\"Ineligible Fixture\",Table_NCSummary[[#This Row],[Fixture Measure Description]]=\"New Construction Exterior LED Fixture\"),0,(Table_NCSummary[[#This Row],[Baseline kWh]]-Table_NCSummary[[#This Row],[Proposed Fixture kWh]])/Table_NCSummary[[#This Row],[OpHrs]]*Table_NCSummary[[#This Row],[CF (Ltg)]]*Table_NCSummary[[#This Row],[DF (Ltg)]])),\"\"),\"\")","v":""},null,{"$f":"IFERROR(\n  IF(OR(Table_NCSummary[[#This Row],[Fixture Measure Description]]=\"\",Table_NCSummary[[#This Row],[Fixture Measure Description]]=\"Ineligible Fixture\"),\n    \"\",\n    \"New Construction\"\n    & \" - \" &\n    IFERROR(VLOOKUP(RIGHT(Table_NCSummary[[#This Row],[Proposed Fixture]],LEN(Table_NCSummary[[#This Row],[Proposed Fixture]])-FIND(\" - \",Table_NCSummary[[#This Row],[Proposed Fixture]],FIND(\"]\",Table_NCSummary[[#This Row],[Proposed Fixture]],1))-2),Table_ControlType[],2, FALSE),None)),\n\"\")","v":""},{"$f":"IFERROR(VLOOKUP(Table_NCSummary[[#This Row],[Controls Measure Description]],Table_ControlRate[],2,FALSE),\"\")","v":""},{"$f":"IFERROR(IF(Table_NCSummary[[#This Row],[IsActive]],IF((1-SUMPRODUCT(Table_NCSummary[P. Qty],Table_NCSummary[Proposed Fixture Wattage])/SUM(Table_NCSummary[Baseline Wattage]))<0.1,\"DNQ [kW Reduction <10%]\",IF(OR(Table_NCSummary[[#This Row],[Controls Measure Description]]=\"\",Table_NCSummary[[#This Row],[Controls Measure Description]]=\"New Construction - No Controls\"),0,ROUND(Table_NCSummary[[#This Row],[Controls Rebate (per Fixt Watt)]]*Table_NCSummary[[#This Row],[Proposed Fixture Wattage]]*Table_NCSummary[[#This Row],[P. Qty]],2))),\"\"),\"\")","v":""},{"$f":"IFERROR(IF(Table_NCSummary[[#This Row],[Fixture Measure Description]]=\"Ineligible Fixture\",0,ROUND(IF(ProjectCost_Total=0,300000,ProjectCost_Total)*Table_NCSummary[[#This Row],[Controls Rebate]]/SUM(Table_NCSummary[Fixture Rebate],Table_NCSummary[Controls Rebate]),2)),\"\")","v":""},{"$f":"IFERROR(IF(Table_NCSummary[[#This Row],[IsActive]],IF((1-SUMPRODUCT(Table_NCSummary[P. Qty],Table_NCSummary[Proposed Fixture Wattage])/SUM(Table_NCSummary[Baseline Wattage]))<0.1,\"DNQ [kW Reduction <10%]\",IF(Table_NCSummary[[#This Row],[Controls Measure Description]]=\"\",0,(Table_NCSummary[[#This Row],[Proposed Fixture (Existing Controls) kWh]]-Table_NCSummary[[#This Row],[Proposed Fixture (Proposed Controls) kWh]]))),\"\"),\"\")","v":""},{"$f":"IFERROR(IF(Table_NCSummary[[#This Row],[IsActive]],IF((1-SUMPRODUCT(Table_NCSummary[P. Qty],Table_NCSummary[Proposed Fixture Wattage])/SUM(Table_NCSummary[Baseline Wattage]))<0.1,\"DNQ [kW Reduction <10%]\",IF(OR(Table_NCSummary[[#This Row],[Controls Measure Description]]=\"\",Table_NCSummary[[#This Row],[Controls Measure Description]]=\"New Construction - No Controls\"),0,(Table_NCSummary[[#This Row],[Proposed Fixture (Existing Controls) kWh]]-Table_NCSummary[[#This Row],[Proposed Fixture (Proposed Controls) kWh]])/Table_NCSummary[[#This Row],[OpHrs]]*Table_NCSummary[[#This Row],[CF (Ltg)]]*Table_NCSummary[[#This Row],[DF (Ltg)]])),\"\"),\"\")","v":""},null,{"$f":"IFERROR(IF(NOT(ISNUMBER(Table_NCSummary[[#This Row],[Fixture Rebate]])),\"\",IF(MIN(IF(Table_NCSummary[[#This Row],[Fixture Cost]]<0,0,SUM(Table_NCSummary[Fixture Cost],Table_NCSummary[Controls Cost])),SUM(Table_NCSummary[Fixture Rebate],Table_NCSummary[Controls Rebate]))>300000,300000/MIN(IF(Table_NCSummary[[#This Row],[Fixture Cost]]<0,0,SUM(Table_NCSummary[Fixture Cost],Table_NCSummary[Controls Cost])),SUM(Table_NCSummary[Fixture Rebate],Table_NCSummary[Controls Rebate]))*MIN(IF(Table_NCSummary[[#This Row],[Fixture Cost]]<0,0,SUM(Table_NCSummary[Fixture Cost],Table_NCSummary[Controls Cost])),Table_NCSummary[[#This Row],[Fixture Rebate]]+IF(Table_NCSummary[[#This Row],[Controls Rebate]]=\"\",0,Table_NCSummary[[#This Row],[Controls Rebate]])),MIN(IF(Table_NCSummary[[#This Row],[Fixture Cost]]<0,0,SUM(Table_NCSummary[Fixture Cost],Table_NCSummary[Controls Cost])),Table_NCSummary[[#This Row],[Fixture Rebate]]+IF(Table_NCSummary[[#This Row],[Controls Rebate]]=\"\",0,Table_NCSummary[[#This Row],[Controls Rebate]])))),\"\")","v":""},{"$f":"IFERROR(IF(Table_NCSummary[[#This Row],[Fixture Cost]]=\"\",\"\",Table_NCSummary[[#This Row],[Fixture Cost]]+IF(Table_NCSummary[[#This Row],[Controls Cost]]=\"\",0,Table_NCSummary[[#This Row],[Controls Cost]])),\"\")","v":""},{"$f":"IFERROR(IF(Table_NCSummary[[#This Row],[IsActive]],IF(NOT(ISNUMBER(Table_NCSummary[[#This Row],[Fixture Rebate]])),\"\",IF(Table_NCInfo[[#This Row],[Interior/ Exterior]]=\"Interior\",IFERROR((Table_NCSummary[[#This Row],[Annual Fixture Savings (kWh)]]+Table_NCSummary[[#This Row],[Annual Control Savings (kWh)]])*(Table_NCSummary[[#This Row],[EIF]]-1),0),0)),\"\"),\"\")","v":""},{"$f":"IFERROR(IF(Table_NCSummary[[#This Row],[IsActive]],IF(NOT(ISNUMBER(Table_NCSummary[[#This Row],[Fixture Rebate]])),\"\",IF(Table_NCInfo[[#This Row],[Interior/ Exterior]]=\"Interior\",IFERROR((Table_NCSummary[[#This Row],[Fixture kW Reduction]]+Table_NCSummary[[#This Row],[Control kW Reduction]]/(Table_NCSummary[[#This Row],[CF (Ltg)]]*Table_NCSummary[[#This Row],[DF (Ltg)]]))*(Table_NCSummary[[#This Row],[DIF]]-1)*Table_NCSummary[[#This Row],[CF (HVAC)]]*Table_NCSummary[[#This Row],[DF (HVAC)]],0),0)),\"\"),\"\")","v":""},{"$f":"IFERROR(IF(Table_NCSummary[[#This Row],[IsActive]],IF(NOT(ISNUMBER(Table_NCSummary[[#This Row],[Fixture Rebate]])),\"\",ROUND(Table_NCSummary[[#This Row],[Annual Fixture Savings (kWh)]]+Table_NCSummary[[#This Row],[Annual Control Savings (kWh)]],0)),\"\"),\"\")","v":""},{"$f":"IFERROR(IF(Table_NCSummary[[#This Row],[IsActive]],IF(NOT(ISNUMBER(Table_NCSummary[[#This Row],[Fixture Rebate]])),\"\",ROUND(Table_NCSummary[[#This Row],[Fixture kW Reduction]]+Table_NCSummary[[#This Row],[Control kW Reduction]],3)),\"\"),\"\")","v":""},{"$f":"IFERROR(IF(Table_NCSummary[[#This Row],[IsActive]],IF(NOT(ISNUMBER(Table_NCSummary[[#This Row],[Fixture Rebate]])),\"\",ROUND(Table_NCSummary[[#This Row],[Fixture Energy Savings (kWh)]]+Table_NCSummary[[#This Row],[Induced HVAC Energy Savings (kWh)]],0)),\"\"),\"\")","v":""},{"$f":"IFERROR(IF(Table_NCSummary[[#This Row],[IsActive]],IF(NOT(ISNUMBER(Table_NCSummary[[#This Row],[Fixture Rebate]])),\"\",ROUND(Table_NCSummary[[#This Row],[Fixture Demand Savings (kW)]]+Table_NCSummary[[#This Row],[Induced HVAC Demand Savings (kW)]],3)),\"\"),\"\")","v":""}]
[{"$f":"IFERROR(Table_NCInfo[[#This Row],[Line]],\"\")","v":26},{"$f":"IFERROR(Table_NCInfo[[#This Row],[IsActive]],\"\")","v":false},{"$f":"IFERROR(IF(Table_NCSummary[[#This Row],[IsActive]],VLOOKUP(IF(ISNUMBER(MATCH(Table_NCInfo[[#This Row],[Line]],Table_NCInspection[Line],0)),INDEX(Table_NCInspection[Schedule],MATCH(Table_NCSummary[[#This Row],[Line Item]],Table_NCInspection[Line],0)),Table_NCInfo[[#This Row],[Schedule]]),'Customer Information'!$S$27:$T$34,2,FALSE),\"\"),\"\")","v":""},{"$f":"IFERROR(IF(Table_NCSummary[[#This Row],[IsActive]],INDEX(Table_IntLookups[EIF],MATCH(IF(ISNUMBER(MATCH(Table_NCSummary[[#This Row],[Line Item]],Table_NCInspection[Line],0)),INDEX(Table_NCInspection[Zone Description],MATCH(Table_NCSummary[[#This Row],[Line Item]],Table_NCInfo[Line],0)),Table_NCInfo[[#This Row],[Zone Description]]),Table_IntLookups[Dropdown],0)),\"\"),\"\")","v":""},{"$f":"IFERROR(IF(Table_NCSummary[[#This Row],[IsActive]],INDEX(Table_IntLookups[DIF],MATCH(IF(ISNUMBER(MATCH(Table_NCSummary[[#This Row],[Line Item]],Table_NCInspection[Line],0)),INDEX(Table_NCInspection[Zone Description],MATCH(Table_NCSummary[[#This Row],[Line Item]],Table_NCInfo[Line],0)),Table_NCInfo[[#This Row],[Zone Description]]),Table_IntLookups[Dropdown],0)),\"\"),\"\")","v":""},{"$f":"IFERROR(IF(Table_NCSummary[[#This Row],[IsActive]],INDEX(Table_IntLookups[CFltg],MATCH(IF(ISNUMBER(MATCH(Table_NCSummary[[#This Row],[Line Item]],Table_NCInspection[Line],0)),INDEX(Table_NCInspection[Zone Description],MATCH(Table_NCSummary[[#This Row],[Line Item]],Table_NCInfo[Line],0)),Table_NCInfo[[#This Row],[Zone Description]]),Table_IntLookups[Dropdown],0)),\"\"),\"\")","v":""},{"$f":"IFERROR(IF(Table_NCSummary[[#This Row],[IsActive]],INDEX(Table_IntLookups[DFltg],MATCH(IF(ISNUMBER(MATCH(Table_NCSummary[[#This Row],[Line Item]],Table_NCInspection[Line],0)),INDEX(Table_NCInspection[Zone Description],MATCH(Table_NCSummary[[#This Row],[Line Item]],Table_NCInfo[Line],0)),Table_NCInfo[[#This Row],[Zone Description]]),Table_IntLookups[Dropdown],0)),\"\"),\"\")","v":""},{"$f":"IFERROR(IF(Table_NCSummary[[#This Row],[IsActive]],INDEX(Table_IntLookups[Cfhvac],MATCH(IF(ISNUMBER(MATCH(Table_NCSummary[[#This Row],[Line Item]],Table_NCInspection[Line],0)),INDEX(Table_NCInspection[Zone Description],MATCH(Table_NCSummary[[#This Row],[Line Item]],Table_NCInfo[Line],0)),Table_NCInfo[[#This Row],[Zone Description]]),Table_IntLookups[Dropdown],0)),\"\"),\"\")","v":""},{"$f":"IFERROR(IF(Table_NCSummary[[#This Row],[IsActive]],INDEX(Table_IntLookups[Dfhvac],MATCH(IF(ISNUMBER(MATCH(Table_NCSummary[[#This Row],[Line Item]],Table_NCInspection[Line],0)),INDEX(Table_NCInspection[Zone Description],MATCH(Table_NCSummary[[#This Row],[Line Item]],Table_NCInfo[Line],0)),Table_NCInfo[[#This Row],[Zone Description]]),Table_IntLookups[Dropdown],0)),\"\"),\"\")","v":""},{"$f":"IFERROR(IF(Table_NCSummary[[#This Row],[IsActive]],\nIF(ISNUMBER(MATCH(Table_NCInfo[[#This Row],[Line]],Table_NCInspection[Line],0)),INDEX(Table_NCInspection[Zone Description],MATCH(Table_NCSummary[[#This Row],[Line Item]],Table_NCInspection[Line],0)),Table_NCInfo[[#This Row],[Zone Description]]),\n \"\"),\"\")","v":""},{"$f":"IFERROR(IF(Table_NCSummary[[#This Row],[IsActive]],\nCONCATENATE(\nIF(ISNUMBER(MATCH(Table_NCInfo[[#This Row],[Line]],Table_NCInspection[Line],0)),INDEX(Table_NCInspection[Interior/ Exterior],MATCH(Table_NCSummary[[#This Row],[Line Item]],Table_NCInspection[Line],0)),Table_NCInfo[[#This Row],[Interior/ Exterior]]),\n\" - \",\nIF(ISNUMBER(MATCH(Table_NCInfo[[#This Row],[Line]],Table_NCInspection[Line],0)),INDEX(Table_NCInspection[Space Description],MATCH(Table_NCSummary[[#This Row],[Line Item]],Table_NCInspection[Line],0)),Table_NCInfo[[#This Row],[Space Description]])),\n \"\"),\"\")","v":""},{"$f":"IFERROR(IF(ISNUMBER(MATCH(Table_NCInfo[[#This Row],[Line]],Table_NCInspection[Line],0)),INDEX(Table_NCInspection[Baseline Wattage],MATCH(Table_NCSummary[[#This Row],[Line Item]],Table_NCInspection[Line],0)),Table_NCInfo[[#This Row],[Baseline Wattage]]),\"\")","v":""},{"$f":"IFERROR(IF(Table_NCSummary[[#This Row],[IsActive]],Table_NCSummary[[#This Row],[Baseline Wattage]]/1000*Table_NCSummary[[#This Row],[OpHrs]],\"\"),\"\")","v":""},{"$f":"IFERROR(IF(Table_NCSummary[[#This Row],[IsActive]],IFERROR(VLOOKUP(IF(ISNUMBER(MATCH(Table_NCSummary[[#This Row],[Line Item]],Table_NCInspection[Line],0)),INDEX(Table_NCInspection[Zone '#],MATCH(Table_NCSummary[[#This Row],[Line Item]],Table_NCInspection[Line],0)),Table_NCInfo[[#This Row],[Zone '#]]),Table_IntLookups[],'Facility Information'!$AA$4,FALSE),0),\"\"),\"\")","v":""},{"$f":"IFERROR(IF(Table_NCSummary[[#This Row],[IsActive]],IFERROR(Table_NCSummary[[#This Row],[Baseline Wattage]]/1000*Table_NCSummary[[#This Row],[OpHrs]]*Table_NCSummary[[#This Row],[Existing CSF]]*(-1),0),\"\"),\"\")","v":""},{"$f":"IFERROR(Table_NCSummary[[#This Row],[Baseline kWh]]+Table_NCSummary[[#This Row],[Existing Fixture (Existing Controls) kWh]],\"\")","v":""},{"$f":"IFERROR(IF(Table_NCSummary[[#This Row],[IsActive]],IF(ISNUMBER(MATCH(Table_NCInfo[[#This Row],[Line]],Table_NCInspection[Line],0)),INDEX(Table_NCInspection[Fixture Description '[P']],MATCH(Table_NCSummary[[#This Row],[Line Item]],Table_NCInspection[Line],0)),Table_NCInfo[[#This Row],[Fixture Description '[P']]]),\"\"),\"\")","v":""},{"$f":"IFERROR(IF(Table_NCSummary[[#This Row],[IsActive]],IF(ISNUMBER(MATCH(Table_NCInfo[[#This Row],[Line]],Table_NCInspection[Line],0)),INDEX(Table_NCInspection['# Lamps/ Fixture '[P']],MATCH(Table_NCSummary[[#This Row],[Line Item]],Table_NCInspection[Line],0)),Table_NCInfo[[#This Row],['# Lamps/ Fixture '[P']]]),\"\"),\"\")","v":""},{"$f":"IFERROR(IF(Table_NCSummary[[#This Row],[IsActive]],IF(ISNUMBER(MATCH(Table_NCInfo[[#This Row],[Line]],Table_NCInspection[Line],0)),INDEX(Table_NCInspection[Fixture/ Lamp Wattage '[P']],MATCH(Table_NCSummary[[#This Row],[Line Item]],Table_NCInspection[Line],0)),Table_NCInfo[[#This Row],[Fixture/ Lamp Wattage '[P']]]),\"\"),\"\")","v":""},{"$f":"IFERROR(IF(Table_NCSummary[[#This Row],[IsActive]],IF(ISNUMBER(MATCH(Table_NCInfo[[#This Row],[Line]],Table_NCInspection[Line],0)),INDEX(Table_NCInspection[Fixture Qty '[P']],MATCH(Table_NCSummary[[#This Row],[Line Item]],Table_NCInspection[Line],0)),Table_NCInfo[[#This Row],[Fixture Qty '[P']]]),\"\"),\"\")","v":""},{"$f":"IFERROR(IF(Table_NCSummary[[#This Row],[IsActive]],Table_NCSummary[[#This Row],['# Lamps/ Fixture '[P']]]*Table_NCSummary[[#This Row],[P. Qty]],\"\"),\"\")","v":""},{"$f":"IFERROR(IF(Table_NCSummary[[#This Row],[IsActive]],IF(ISNUMBER(MATCH(Table_NCInfo[[#This Row],[Line]],Table_NCInspection[Line],0)),INDEX(Table_NCInspection[Fixture Wattage '[P']],MATCH(Table_NCSummary[[#This Row],[Line Item]],Table_NCInspection[Line],0)),Table_NCInfo[[#This Row],[Fixture Wattage '[P']]]),\"\"),\"\")","v":""},{"$f":"IFERROR(Table_NCSummary[[#This Row],[P. Qty]]*Table_NCSummary[[#This Row],[Proposed Fixture Wattage]],\"\")","v":""},{"$f":"IFERROR(Table_NCSummary[[#This Row],[Proposed Fixture Wattage]]/1000*Table_NCSummary[[#This Row],[OpHrs]]*Table_NCSummary[[#This Row],[P. Qty]],\"\")","v":""},{"$f":"IFERROR(IF(Table_NCSummary[[#This Row],[IsActive]],IFERROR(VLOOKUP(RIGHT(Table_NCSummary[[#This Row],[Proposed Fixture]],LEN(Table_NCSummary[[#This Row],[Proposed Fixture]])-FIND(\" - \",Table_NCSummary[[#This Row],[Proposed Fixture]],FIND(\"]\",Table_NCSummary[[#This Row],[Proposed Fixture]],1))-2),Table_ControlType[],3, FALSE),Table_NCSummary[[#This Row],[Existing CSF]]),\"\"),\"\")","v":""},{"$f":"IFERROR(IF(Table_NCSummary[[#This Row],[IsActive]],IFERROR(Table_NCSummary[[#This Row],[Proposed Fixture Wattage]]/1000*Table_NCSummary[[#This Row],[OpHrs]]*Table_NCSummary[[#This Row],[P. Qty]]*Table_NCSummary[[#This Row],[Existing CSF]]*(-1),0),\"\"),\"\")","v":""},{"$f":"IFERROR(Table_NCSummary[[#This Row],[Proposed Fixture kWh]]+Table_NCSummary[[#This Row],[Proposed Fixture (Existing Controls) kWh]],\"\")","v":""},{"$f":"IFERROR(IF(Table_NCSummary[[#This Row],[IsActive]],IFERROR(Table_NCSummary[[#This Row],[Proposed Fixture Wattage]]/1000*Table_NCSummary[[#This Row],[OpHrs]]*Table_NCSummary[[#This Row],[P. Qty]]*Table_NCSummary[[#This Row],[Proposed CSF]]*(-1),0),\"\"),\"\")","v":""},{"$f":"IFERROR(Table_NCSummary[[#This Row],[Proposed Fixture kWh]]+Table_NCSummary[[#This Row],[Proposed Fixture (Proposed Controls) kWh]],\"\")","v":""},null,{"$f":"IFERROR(IF(Table_NCSummary[[#This Row],[IsActive]],IF((1-SUMPRODUCT(Table_NCSummary[P. Qty],Table_NCSummary[Proposed Fixture Wattage])/SUM(Table_NCSummary[Baseline Wattage]))<0.1,\"Does Not Qualify [Overall Fixture Reduction is less than 10%]\",IF(ISNUMBER(FIND(\"LED\",Table_NCSummary[[#This Row],[Proposed Fixture]],1)),IF(ISNUMBER(FIND(\"LED Tube\",Table_NCSummary[[#This Row],[Proposed Fixture]],1)),\"New Construction Interior LED Fixture\",IF(ISNUMBER(FIND(\"LED\",Table_NCSummary[[#This Row],[Proposed Fixture]],1)),IF(Table_NCInfo[[#This Row],[Interior/ Exterior]]=\"Exterior\",\"New Construction Exterior LED Fixture\",\"New Construction Interior LED Fixture\"),\"Ineligible Fixture\")),\"Ineligible Fixture\")),\"\"),\"\")","v":""},{"$f":"IFERROR(VLOOKUP(Table_NCSummary[[#This Row],[Fixture Measure Description]],Table_FixtureRate[],2,FALSE),\"\")","v":""},{"$f":"IFERROR(IF(Table_NCSummary[[#This Row],[IsActive]],IF((1-SUMPRODUCT(Table_NCSummary[P. Qty],Table_NCSummary[Proposed Fixture Wattage])/SUM(Table_NCSummary[Baseline Wattage]))<0.1,\"DNQ [kW Reduction <10%]\",IF(Table_NCSummary[[#This Row],[Fixture Measure Description]]=\"Ineligible Fixture\",0,ROUND(Table_NCSummary[[#This Row],[Fixture Rebate (per kW)]]*(Table_NCSummary[[#This Row],[Baseline Wattage]]-Table_NCSummary[[#This Row],[Proposed Wattage]])/1000,2))),\"\"),\"\")","v":""},{"$f":"IFERROR(IF(Table_NCSummary[[#This Row],[Fixture Measure Description]]=\"Ineligible Fixture\",0,ROUND(IF(ProjectCost_Total=0,300000,ProjectCost_Total)*Table_NCSummary[[#This Row],[Fixture Rebate]]/SUM(Table_NCSummary[Fixture Rebate],Table_NCSummary[Controls Rebate]),2)),\"\")","v":""},{"$f":"IFERROR(IF(Table_NCSummary[[#This Row],[IsActive]],IF((1-SUMPRODUCT(Table_NCSummary[P. Qty],Table_NCSummary[Proposed Fixture Wattage])/SUM(Table_NCSummary[Baseline Wattage]))<0.1,\"DNQ [kW Reduction <10%]\",IF(Table_NCSummary[[#This Row],[Fixture Measure Description]]=\"Ineligible Fixture\",0,Table_NCSummary[[#This Row],[Existing Overall kWh]]-Table_NCSummary[[#This Row],[Proposed Overall kWh (Existing Controls)]])),\"\"),\"\")","v":""},{"$f":"IFERROR(IF(Table_NCSummary[[#This Row],[IsActive]],IF((1-SUMPRODUCT(Table_NCSummary[P. Qty],Table_NCSummary[Proposed Fixture Wattage])/SUM(Table_NCSummary[Baseline Wattage]))<0.1,\"DNQ [kW Reduction <10%]\",IF(OR(Table_NCSummary[[#This Row],[Fixture Measure Description]]=\"Ineligible Fixture\",Table_NCSummary[[#This Row],[Fixture Measure Description]]=\"New Construction Exterior LED Fixture\"),0,(Table_NCSummary[[#This Row],[Baseline kWh]]-Table_NCSummary[[#This Row],[Proposed Fixture kWh]])/Table_NCSummary[[#This Row],[OpHrs]]*Table_NCSummary[[#This Row],[CF (Ltg)]]*Table_NCSummary[[#This Row],[DF (Ltg)]])),\"\"),\"\")","v":""},null,{"$f":"IFERROR(\n  IF(OR(Table_NCSummary[[#This Row],[Fixture Measure Description]]=\"\",Table_NCSummary[[#This Row],[Fixture Measure Description]]=\"Ineligible Fixture\"),\n    \"\",\n    \"New Construction\"\n    & \" - \" &\n    IFERROR(VLOOKUP(RIGHT(Table_NCSummary[[#This Row],[Proposed Fixture]],LEN(Table_NCSummary[[#This Row],[Proposed Fixture]])-FIND(\" - \",Table_NCSummary[[#This Row],[Proposed Fixture]],FIND(\"]\",Table_NCSummary[[#This Row],[Proposed Fixture]],1))-2),Table_ControlType[],2, FALSE),None)),\n\"\")","v":""},{"$f":"IFERROR(VLOOKUP(Table_NCSummary[[#This Row],[Controls Measure Description]],Table_ControlRate[],2,FALSE),\"\")","v":""},{"$f":"IFERROR(IF(Table_NCSummary[[#This Row],[IsActive]],IF((1-SUMPRODUCT(Table_NCSummary[P. Qty],Table_NCSummary[Proposed Fixture Wattage])/SUM(Table_NCSummary[Baseline Wattage]))<0.1,\"DNQ [kW Reduction <10%]\",IF(OR(Table_NCSummary[[#This Row],[Controls Measure Description]]=\"\",Table_NCSummary[[#This Row],[Controls Measure Description]]=\"New Construction - No Controls\"),0,ROUND(Table_NCSummary[[#This Row],[Controls Rebate (per Fixt Watt)]]*Table_NCSummary[[#This Row],[Proposed Fixture Wattage]]*Table_NCSummary[[#This Row],[P. Qty]],2))),\"\"),\"\")","v":""},{"$f":"IFERROR(IF(Table_NCSummary[[#This Row],[Fixture Measure Description]]=\"Ineligible Fixture\",0,ROUND(IF(ProjectCost_Total=0,300000,ProjectCost_Total)*Table_NCSummary[[#This Row],[Controls Rebate]]/SUM(Table_NCSummary[Fixture Rebate],Table_NCSummary[Controls Rebate]),2)),\"\")","v":""},{"$f":"IFERROR(IF(Table_NCSummary[[#This Row],[IsActive]],IF((1-SUMPRODUCT(Table_NCSummary[P. Qty],Table_NCSummary[Proposed Fixture Wattage])/SUM(Table_NCSummary[Baseline Wattage]))<0.1,\"DNQ [kW Reduction <10%]\",IF(Table_NCSummary[[#This Row],[Controls Measure Description]]=\"\",0,(Table_NCSummary[[#This Row],[Proposed Fixture (Existing Controls) kWh]]-Table_NCSummary[[#This Row],[Proposed Fixture (Proposed Controls) kWh]]))),\"\"),\"\")","v":""},{"$f":"IFERROR(IF(Table_NCSummary[[#This Row],[IsActive]],IF((1-SUMPRODUCT(Table_NCSummary[P. Qty],Table_NCSummary[Proposed Fixture Wattage])/SUM(Table_NCSummary[Baseline Wattage]))<0.1,\"DNQ [kW Reduction <10%]\",IF(OR(Table_NCSummary[[#This Row],[Controls Measure Description]]=\"\",Table_NCSummary[[#This Row],[Controls Measure Description]]=\"New Construction - No Controls\"),0,(Table_NCSummary[[#This Row],[Proposed Fixture (Existing Controls) kWh]]-Table_NCSummary[[#This Row],[Proposed Fixture (Proposed Controls) kWh]])/Table_NCSummary[[#This Row],[OpHrs]]*Table_NCSummary[[#This Row],[CF (Ltg)]]*Table_NCSummary[[#This Row],[DF (Ltg)]])),\"\"),\"\")","v":""},null,{"$f":"IFERROR(IF(NOT(ISNUMBER(Table_NCSummary[[#This Row],[Fixture Rebate]])),\"\",IF(MIN(IF(Table_NCSummary[[#This Row],[Fixture Cost]]<0,0,SUM(Table_NCSummary[Fixture Cost],Table_NCSummary[Controls Cost])),SUM(Table_NCSummary[Fixture Rebate],Table_NCSummary[Controls Rebate]))>300000,300000/MIN(IF(Table_NCSummary[[#This Row],[Fixture Cost]]<0,0,SUM(Table_NCSummary[Fixture Cost],Table_NCSummary[Controls Cost])),SUM(Table_NCSummary[Fixture Rebate],Table_NCSummary[Controls Rebate]))*MIN(IF(Table_NCSummary[[#This Row],[Fixture Cost]]<0,0,SUM(Table_NCSummary[Fixture Cost],Table_NCSummary[Controls Cost])),Table_NCSummary[[#This Row],[Fixture Rebate]]+IF(Table_NCSummary[[#This Row],[Controls Rebate]]=\"\",0,Table_NCSummary[[#This Row],[Controls Rebate]])),MIN(IF(Table_NCSummary[[#This Row],[Fixture Cost]]<0,0,SUM(Table_NCSummary[Fixture Cost],Table_NCSummary[Controls Cost])),Table_NCSummary[[#This Row],[Fixture Rebate]]+IF(Table_NCSummary[[#This Row],[Controls Rebate]]=\"\",0,Table_NCSummary[[#This Row],[Controls Rebate]])))),\"\")","v":""},{"$f":"IFERROR(IF(Table_NCSummary[[#This Row],[Fixture Cost]]=\"\",\"\",Table_NCSummary[[#This Row],[Fixture Cost]]+IF(Table_NCSummary[[#This Row],[Controls Cost]]=\"\",0,Table_NCSummary[[#This Row],[Controls Cost]])),\"\")","v":""},{"$f":"IFERROR(IF(Table_NCSummary[[#This Row],[IsActive]],IF(NOT(ISNUMBER(Table_NCSummary[[#This Row],[Fixture Rebate]])),\"\",IF(Table_NCInfo[[#This Row],[Interior/ Exterior]]=\"Interior\",IFERROR((Table_NCSummary[[#This Row],[Annual Fixture Savings (kWh)]]+Table_NCSummary[[#This Row],[Annual Control Savings (kWh)]])*(Table_NCSummary[[#This Row],[EIF]]-1),0),0)),\"\"),\"\")","v":""},{"$f":"IFERROR(IF(Table_NCSummary[[#This Row],[IsActive]],IF(NOT(ISNUMBER(Table_NCSummary[[#This Row],[Fixture Rebate]])),\"\",IF(Table_NCInfo[[#This Row],[Interior/ Exterior]]=\"Interior\",IFERROR((Table_NCSummary[[#This Row],[Fixture kW Reduction]]+Table_NCSummary[[#This Row],[Control kW Reduction]]/(Table_NCSummary[[#This Row],[CF (Ltg)]]*Table_NCSummary[[#This Row],[DF (Ltg)]]))*(Table_NCSummary[[#This Row],[DIF]]-1)*Table_NCSummary[[#This Row],[CF (HVAC)]]*Table_NCSummary[[#This Row],[DF (HVAC)]],0),0)),\"\"),\"\")","v":""},{"$f":"IFERROR(IF(Table_NCSummary[[#This Row],[IsActive]],IF(NOT(ISNUMBER(Table_NCSummary[[#This Row],[Fixture Rebate]])),\"\",ROUND(Table_NCSummary[[#This Row],[Annual Fixture Savings (kWh)]]+Table_NCSummary[[#This Row],[Annual Control Savings (kWh)]],0)),\"\"),\"\")","v":""},{"$f":"IFERROR(IF(Table_NCSummary[[#This Row],[IsActive]],IF(NOT(ISNUMBER(Table_NCSummary[[#This Row],[Fixture Rebate]])),\"\",ROUND(Table_NCSummary[[#This Row],[Fixture kW Reduction]]+Table_NCSummary[[#This Row],[Control kW Reduction]],3)),\"\"),\"\")","v":""},{"$f":"IFERROR(IF(Table_NCSummary[[#This Row],[IsActive]],IF(NOT(ISNUMBER(Table_NCSummary[[#This Row],[Fixture Rebate]])),\"\",ROUND(Table_NCSummary[[#This Row],[Fixture Energy Savings (kWh)]]+Table_NCSummary[[#This Row],[Induced HVAC Energy Savings (kWh)]],0)),\"\"),\"\")","v":""},{"$f":"IFERROR(IF(Table_NCSummary[[#This Row],[IsActive]],IF(NOT(ISNUMBER(Table_NCSummary[[#This Row],[Fixture Rebate]])),\"\",ROUND(Table_NCSummary[[#This Row],[Fixture Demand Savings (kW)]]+Table_NCSummary[[#This Row],[Induced HVAC Demand Savings (kW)]],3)),\"\"),\"\")","v":""}]
[{"$f":"IFERROR(Table_NCInfo[[#This Row],[Line]],\"\")","v":27},{"$f":"IFERROR(Table_NCInfo[[#This Row],[IsActive]],\"\")","v":false},{"$f":"IFERROR(IF(Table_NCSummary[[#This Row],[IsActive]],VLOOKUP(IF(ISNUMBER(MATCH(Table_NCInfo[[#This Row],[Line]],Table_NCInspection[Line],0)),INDEX(Table_NCInspection[Schedule],MATCH(Table_NCSummary[[#This Row],[Line Item]],Table_NCInspection[Line],0)),Table_NCInfo[[#This Row],[Schedule]]),'Customer Information'!$S$27:$T$34,2,FALSE),\"\"),\"\")","v":""},{"$f":"IFERROR(IF(Table_NCSummary[[#This Row],[IsActive]],INDEX(Table_IntLookups[EIF],MATCH(IF(ISNUMBER(MATCH(Table_NCSummary[[#This Row],[Line Item]],Table_NCInspection[Line],0)),INDEX(Table_NCInspection[Zone Description],MATCH(Table_NCSummary[[#This Row],[Line Item]],Table_NCInfo[Line],0)),Table_NCInfo[[#This Row],[Zone Description]]),Table_IntLookups[Dropdown],0)),\"\"),\"\")","v":""},{"$f":"IFERROR(IF(Table_NCSummary[[#This Row],[IsActive]],INDEX(Table_IntLookups[DIF],MATCH(IF(ISNUMBER(MATCH(Table_NCSummary[[#This Row],[Line Item]],Table_NCInspection[Line],0)),INDEX(Table_NCInspection[Zone Description],MATCH(Table_NCSummary[[#This Row],[Line Item]],Table_NCInfo[Line],0)),Table_NCInfo[[#This Row],[Zone Description]]),Table_IntLookups[Dropdown],0)),\"\"),\"\")","v":""},{"$f":"IFERROR(IF(Table_NCSummary[[#This Row],[IsActive]],INDEX(Table_IntLookups[CFltg],MATCH(IF(ISNUMBER(MATCH(Table_NCSummary[[#This Row],[Line Item]],Table_NCInspection[Line],0)),INDEX(Table_NCInspection[Zone Description],MATCH(Table_NCSummary[[#This Row],[Line Item]],Table_NCInfo[Line],0)),Table_NCInfo[[#This Row],[Zone Description]]),Table_IntLookups[Dropdown],0)),\"\"),\"\")","v":""},{"$f":"IFERROR(IF(Table_NCSummary[[#This Row],[IsActive]],INDEX(Table_IntLookups[DFltg],MATCH(IF(ISNUMBER(MATCH(Table_NCSummary[[#This Row],[Line Item]],Table_NCInspection[Line],0)),INDEX(Table_NCInspection[Zone Description],MATCH(Table_NCSummary[[#This Row],[Line Item]],Table_NCInfo[Line],0)),Table_NCInfo[[#This Row],[Zone Description]]),Table_IntLookups[Dropdown],0)),\"\"),\"\")","v":""},{"$f":"IFERROR(IF(Table_NCSummary[[#This Row],[IsActive]],INDEX(Table_IntLookups[Cfhvac],MATCH(IF(ISNUMBER(MATCH(Table_NCSummary[[#This Row],[Line Item]],Table_NCInspection[Line],0)),INDEX(Table_NCInspection[Zone Description],MATCH(Table_NCSummary[[#This Row],[Line Item]],Table_NCInfo[Line],0)),Table_NCInfo[[#This Row],[Zone Description]]),Table_IntLookups[Dropdown],0)),\"\"),\"\")","v":""},{"$f":"IFERROR(IF(Table_NCSummary[[#This Row],[IsActive]],INDEX(Table_IntLookups[Dfhvac],MATCH(IF(ISNUMBER(MATCH(Table_NCSummary[[#This Row],[Line Item]],Table_NCInspection[Line],0)),INDEX(Table_NCInspection[Zone Description],MATCH(Table_NCSummary[[#This Row],[Line Item]],Table_NCInfo[Line],0)),Table_NCInfo[[#This Row],[Zone Description]]),Table_IntLookups[Dropdown],0)),\"\"),\"\")","v":""},{"$f":"IFERROR(IF(Table_NCSummary[[#This Row],[IsActive]],\nIF(ISNUMBER(MATCH(Table_NCInfo[[#This Row],[Line]],Table_NCInspection[Line],0)),INDEX(Table_NCInspection[Zone Description],MATCH(Table_NCSummary[[#This Row],[Line Item]],Table_NCInspection[Line],0)),Table_NCInfo[[#This Row],[Zone Description]]),\n \"\"),\"\")","v":""},{"$f":"IFERROR(IF(Table_NCSummary[[#This Row],[IsActive]],\nCONCATENATE(\nIF(ISNUMBER(MATCH(Table_NCInfo[[#This Row],[Line]],Table_NCInspection[Line],0)),INDEX(Table_NCInspection[Interior/ Exterior],MATCH(Table_NCSummary[[#This Row],[Line Item]],Table_NCInspection[Line],0)),Table_NCInfo[[#This Row],[Interior/ Exterior]]),\n\" - \",\nIF(ISNUMBER(MATCH(Table_NCInfo[[#This Row],[Line]],Table_NCInspection[Line],0)),INDEX(Table_NCInspection[Space Description],MATCH(Table_NCSummary[[#This Row],[Line Item]],Table_NCInspection[Line],0)),Table_NCInfo[[#This Row],[Space Description]])),\n \"\"),\"\")","v":""},{"$f":"IFERROR(IF(ISNUMBER(MATCH(Table_NCInfo[[#This Row],[Line]],Table_NCInspection[Line],0)),INDEX(Table_NCInspection[Baseline Wattage],MATCH(Table_NCSummary[[#This Row],[Line Item]],Table_NCInspection[Line],0)),Table_NCInfo[[#This Row],[Baseline Wattage]]),\"\")","v":""},{"$f":"IFERROR(IF(Table_NCSummary[[#This Row],[IsActive]],Table_NCSummary[[#This Row],[Baseline Wattage]]/1000*Table_NCSummary[[#This Row],[OpHrs]],\"\"),\"\")","v":""},{"$f":"IFERROR(IF(Table_NCSummary[[#This Row],[IsActive]],IFERROR(VLOOKUP(IF(ISNUMBER(MATCH(Table_NCSummary[[#This Row],[Line Item]],Table_NCInspection[Line],0)),INDEX(Table_NCInspection[Zone '#],MATCH(Table_NCSummary[[#This Row],[Line Item]],Table_NCInspection[Line],0)),Table_NCInfo[[#This Row],[Zone '#]]),Table_IntLookups[],'Facility Information'!$AA$4,FALSE),0),\"\"),\"\")","v":""},{"$f":"IFERROR(IF(Table_NCSummary[[#This Row],[IsActive]],IFERROR(Table_NCSummary[[#This Row],[Baseline Wattage]]/1000*Table_NCSummary[[#This Row],[OpHrs]]*Table_NCSummary[[#This Row],[Existing CSF]]*(-1),0),\"\"),\"\")","v":""},{"$f":"IFERROR(Table_NCSummary[[#This Row],[Baseline kWh]]+Table_NCSummary[[#This Row],[Existing Fixture (Existing Controls) kWh]],\"\")","v":""},{"$f":"IFERROR(IF(Table_NCSummary[[#This Row],[IsActive]],IF(ISNUMBER(MATCH(Table_NCInfo[[#This Row],[Line]],Table_NCInspection[Line],0)),INDEX(Table_NCInspection[Fixture Description '[P']],MATCH(Table_NCSummary[[#This Row],[Line Item]],Table_NCInspection[Line],0)),Table_NCInfo[[#This Row],[Fixture Description '[P']]]),\"\"),\"\")","v":""},{"$f":"IFERROR(IF(Table_NCSummary[[#This Row],[IsActive]],IF(ISNUMBER(MATCH(Table_NCInfo[[#This Row],[Line]],Table_NCInspection[Line],0)),INDEX(Table_NCInspection['# Lamps/ Fixture '[P']],MATCH(Table_NCSummary[[#This Row],[Line Item]],Table_NCInspection[Line],0)),Table_NCInfo[[#This Row],['# Lamps/ Fixture '[P']]]),\"\"),\"\")","v":""},{"$f":"IFERROR(IF(Table_NCSummary[[#This Row],[IsActive]],IF(ISNUMBER(MATCH(Table_NCInfo[[#This Row],[Line]],Table_NCInspection[Line],0)),INDEX(Table_NCInspection[Fixture/ Lamp Wattage '[P']],MATCH(Table_NCSummary[[#This Row],[Line Item]],Table_NCInspection[Line],0)),Table_NCInfo[[#This Row],[Fixture/ Lamp Wattage '[P']]]),\"\"),\"\")","v":""},{"$f":"IFERROR(IF(Table_NCSummary[[#This Row],[IsActive]],IF(ISNUMBER(MATCH(Table_NCInfo[[#This Row],[Line]],Table_NCInspection[Line],0)),INDEX(Table_NCInspection[Fixture Qty '[P']],MATCH(Table_NCSummary[[#This Row],[Line Item]],Table_NCInspection[Line],0)),Table_NCInfo[[#This Row],[Fixture Qty '[P']]]),\"\"),\"\")","v":""},{"$f":"IFERROR(IF(Table_NCSummary[[#This Row],[IsActive]],Table_NCSummary[[#This Row],['# Lamps/ Fixture '[P']]]*Table_NCSummary[[#This Row],[P. Qty]],\"\"),\"\")","v":""},{"$f":"IFERROR(IF(Table_NCSummary[[#This Row],[IsActive]],IF(ISNUMBER(MATCH(Table_NCInfo[[#This Row],[Line]],Table_NCInspection[Line],0)),INDEX(Table_NCInspection[Fixture Wattage '[P']],MATCH(Table_NCSummary[[#This Row],[Line Item]],Table_NCInspection[Line],0)),Table_NCInfo[[#This Row],[Fixture Wattage '[P']]]),\"\"),\"\")","v":""},{"$f":"IFERROR(Table_NCSummary[[#This Row],[P. Qty]]*Table_NCSummary[[#This Row],[Proposed Fixture Wattage]],\"\")","v":""},{"$f":"IFERROR(Table_NCSummary[[#This Row],[Proposed Fixture Wattage]]/1000*Table_NCSummary[[#This Row],[OpHrs]]*Table_NCSummary[[#This Row],[P. Qty]],\"\")","v":""},{"$f":"IFERROR(IF(Table_NCSummary[[#This Row],[IsActive]],IFERROR(VLOOKUP(RIGHT(Table_NCSummary[[#This Row],[Proposed Fixture]],LEN(Table_NCSummary[[#This Row],[Proposed Fixture]])-FIND(\" - \",Table_NCSummary[[#This Row],[Proposed Fixture]],FIND(\"]\",Table_NCSummary[[#This Row],[Proposed Fixture]],1))-2),Table_ControlType[],3, FALSE),Table_NCSummary[[#This Row],[Existing CSF]]),\"\"),\"\")","v":""},{"$f":"IFERROR(IF(Table_NCSummary[[#This Row],[IsActive]],IFERROR(Table_NCSummary[[#This Row],[Proposed Fixture Wattage]]/1000*Table_NCSummary[[#This Row],[OpHrs]]*Table_NCSummary[[#This Row],[P. Qty]]*Table_NCSummary[[#This Row],[Existing CSF]]*(-1),0),\"\"),\"\")","v":""},{"$f":"IFERROR(Table_NCSummary[[#This Row],[Proposed Fixture kWh]]+Table_NCSummary[[#This Row],[Proposed Fixture (Existing Controls) kWh]],\"\")","v":""},{"$f":"IFERROR(IF(Table_NCSummary[[#This Row],[IsActive]],IFERROR(Table_NCSummary[[#This Row],[Proposed Fixture Wattage]]/1000*Table_NCSummary[[#This Row],[OpHrs]]*Table_NCSummary[[#This Row],[P. Qty]]*Table_NCSummary[[#This Row],[Proposed CSF]]*(-1),0),\"\"),\"\")","v":""},{"$f":"IFERROR(Table_NCSummary[[#This Row],[Proposed Fixture kWh]]+Table_NCSummary[[#This Row],[Proposed Fixture (Proposed Controls) kWh]],\"\")","v":""},null,{"$f":"IFERROR(IF(Table_NCSummary[[#This Row],[IsActive]],IF((1-SUMPRODUCT(Table_NCSummary[P. Qty],Table_NCSummary[Proposed Fixture Wattage])/SUM(Table_NCSummary[Baseline Wattage]))<0.1,\"Does Not Qualify [Overall Fixture Reduction is less than 10%]\",IF(ISNUMBER(FIND(\"LED\",Table_NCSummary[[#This Row],[Proposed Fixture]],1)),IF(ISNUMBER(FIND(\"LED Tube\",Table_NCSummary[[#This Row],[Proposed Fixture]],1)),\"New Construction Interior LED Fixture\",IF(ISNUMBER(FIND(\"LED\",Table_NCSummary[[#This Row],[Proposed Fixture]],1)),IF(Table_NCInfo[[#This Row],[Interior/ Exterior]]=\"Exterior\",\"New Construction Exterior LED Fixture\",\"New Construction Interior LED Fixture\"),\"Ineligible Fixture\")),\"Ineligible Fixture\")),\"\"),\"\")","v":""},{"$f":"IFERROR(VLOOKUP(Table_NCSummary[[#This Row],[Fixture Measure Description]],Table_FixtureRate[],2,FALSE),\"\")","v":""},{"$f":"IFERROR(IF(Table_NCSummary[[#This Row],[IsActive]],IF((1-SUMPRODUCT(Table_NCSummary[P. Qty],Table_NCSummary[Proposed Fixture Wattage])/SUM(Table_NCSummary[Baseline Wattage]))<0.1,\"DNQ [kW Reduction <10%]\",IF(Table_NCSummary[[#This Row],[Fixture Measure Description]]=\"Ineligible Fixture\",0,ROUND(Table_NCSummary[[#This Row],[Fixture Rebate (per kW)]]*(Table_NCSummary[[#This Row],[Baseline Wattage]]-Table_NCSummary[[#This Row],[Proposed Wattage]])/1000,2))),\"\"),\"\")","v":""},{"$f":"IFERROR(IF(Table_NCSummary[[#This Row],[Fixture Measure Description]]=\"Ineligible Fixture\",0,ROUND(IF(ProjectCost_Total=0,300000,ProjectCost_Total)*Table_NCSummary[[#This Row],[Fixture Rebate]]/SUM(Table_NCSummary[Fixture Rebate],Table_NCSummary[Controls Rebate]),2)),\"\")","v":""},{"$f":"IFERROR(IF(Table_NCSummary[[#This Row],[IsActive]],IF((1-SUMPRODUCT(Table_NCSummary[P. Qty],Table_NCSummary[Proposed Fixture Wattage])/SUM(Table_NCSummary[Baseline Wattage]))<0.1,\"DNQ [kW Reduction <10%]\",IF(Table_NCSummary[[#This Row],[Fixture Measure Description]]=\"Ineligible Fixture\",0,Table_NCSummary[[#This Row],[Existing Overall kWh]]-Table_NCSummary[[#This Row],[Proposed Overall kWh (Existing Controls)]])),\"\"),\"\")","v":""},{"$f":"IFERROR(IF(Table_NCSummary[[#This Row],[IsActive]],IF((1-SUMPRODUCT(Table_NCSummary[P. Qty],Table_NCSummary[Proposed Fixture Wattage])/SUM(Table_NCSummary[Baseline Wattage]))<0.1,\"DNQ [kW Reduction <10%]\",IF(OR(Table_NCSummary[[#This Row],[Fixture Measure Description]]=\"Ineligible Fixture\",Table_NCSummary[[#This Row],[Fixture Measure Description]]=\"New Construction Exterior LED Fixture\"),0,(Table_NCSummary[[#This Row],[Baseline kWh]]-Table_NCSummary[[#This Row],[Proposed Fixture kWh]])/Table_NCSummary[[#This Row],[OpHrs]]*Table_NCSummary[[#This Row],[CF (Ltg)]]*Table_NCSummary[[#This Row],[DF (Ltg)]])),\"\"),\"\")","v":""},null,{"$f":"IFERROR(\n  IF(OR(Table_NCSummary[[#This Row],[Fixture Measure Description]]=\"\",Table_NCSummary[[#This Row],[Fixture Measure Description]]=\"Ineligible Fixture\"),\n    \"\",\n    \"New Construction\"\n    & \" - \" &\n    IFERROR(VLOOKUP(RIGHT(Table_NCSummary[[#This Row],[Proposed Fixture]],LEN(Table_NCSummary[[#This Row],[Proposed Fixture]])-FIND(\" - \",Table_NCSummary[[#This Row],[Proposed Fixture]],FIND(\"]\",Table_NCSummary[[#This Row],[Proposed Fixture]],1))-2),Table_ControlType[],2, FALSE),None)),\n\"\")","v":""},{"$f":"IFERROR(VLOOKUP(Table_NCSummary[[#This Row],[Controls Measure Description]],Table_ControlRate[],2,FALSE),\"\")","v":""},{"$f":"IFERROR(IF(Table_NCSummary[[#This Row],[IsActive]],IF((1-SUMPRODUCT(Table_NCSummary[P. Qty],Table_NCSummary[Proposed Fixture Wattage])/SUM(Table_NCSummary[Baseline Wattage]))<0.1,\"DNQ [kW Reduction <10%]\",IF(OR(Table_NCSummary[[#This Row],[Controls Measure Description]]=\"\",Table_NCSummary[[#This Row],[Controls Measure Description]]=\"New Construction - No Controls\"),0,ROUND(Table_NCSummary[[#This Row],[Controls Rebate (per Fixt Watt)]]*Table_NCSummary[[#This Row],[Proposed Fixture Wattage]]*Table_NCSummary[[#This Row],[P. Qty]],2))),\"\"),\"\")","v":""},{"$f":"IFERROR(IF(Table_NCSummary[[#This Row],[Fixture Measure Description]]=\"Ineligible Fixture\",0,ROUND(IF(ProjectCost_Total=0,300000,ProjectCost_Total)*Table_NCSummary[[#This Row],[Controls Rebate]]/SUM(Table_NCSummary[Fixture Rebate],Table_NCSummary[Controls Rebate]),2)),\"\")","v":""},{"$f":"IFERROR(IF(Table_NCSummary[[#This Row],[IsActive]],IF((1-SUMPRODUCT(Table_NCSummary[P. Qty],Table_NCSummary[Proposed Fixture Wattage])/SUM(Table_NCSummary[Baseline Wattage]))<0.1,\"DNQ [kW Reduction <10%]\",IF(Table_NCSummary[[#This Row],[Controls Measure Description]]=\"\",0,(Table_NCSummary[[#This Row],[Proposed Fixture (Existing Controls) kWh]]-Table_NCSummary[[#This Row],[Proposed Fixture (Proposed Controls) kWh]]))),\"\"),\"\")","v":""},{"$f":"IFERROR(IF(Table_NCSummary[[#This Row],[IsActive]],IF((1-SUMPRODUCT(Table_NCSummary[P. Qty],Table_NCSummary[Proposed Fixture Wattage])/SUM(Table_NCSummary[Baseline Wattage]))<0.1,\"DNQ [kW Reduction <10%]\",IF(OR(Table_NCSummary[[#This Row],[Controls Measure Description]]=\"\",Table_NCSummary[[#This Row],[Controls Measure Description]]=\"New Construction - No Controls\"),0,(Table_NCSummary[[#This Row],[Proposed Fixture (Existing Controls) kWh]]-Table_NCSummary[[#This Row],[Proposed Fixture (Proposed Controls) kWh]])/Table_NCSummary[[#This Row],[OpHrs]]*Table_NCSummary[[#This Row],[CF (Ltg)]]*Table_NCSummary[[#This Row],[DF (Ltg)]])),\"\"),\"\")","v":""},null,{"$f":"IFERROR(IF(NOT(ISNUMBER(Table_NCSummary[[#This Row],[Fixture Rebate]])),\"\",IF(MIN(IF(Table_NCSummary[[#This Row],[Fixture Cost]]<0,0,SUM(Table_NCSummary[Fixture Cost],Table_NCSummary[Controls Cost])),SUM(Table_NCSummary[Fixture Rebate],Table_NCSummary[Controls Rebate]))>300000,300000/MIN(IF(Table_NCSummary[[#This Row],[Fixture Cost]]<0,0,SUM(Table_NCSummary[Fixture Cost],Table_NCSummary[Controls Cost])),SUM(Table_NCSummary[Fixture Rebate],Table_NCSummary[Controls Rebate]))*MIN(IF(Table_NCSummary[[#This Row],[Fixture Cost]]<0,0,SUM(Table_NCSummary[Fixture Cost],Table_NCSummary[Controls Cost])),Table_NCSummary[[#This Row],[Fixture Rebate]]+IF(Table_NCSummary[[#This Row],[Controls Rebate]]=\"\",0,Table_NCSummary[[#This Row],[Controls Rebate]])),MIN(IF(Table_NCSummary[[#This Row],[Fixture Cost]]<0,0,SUM(Table_NCSummary[Fixture Cost],Table_NCSummary[Controls Cost])),Table_NCSummary[[#This Row],[Fixture Rebate]]+IF(Table_NCSummary[[#This Row],[Controls Rebate]]=\"\",0,Table_NCSummary[[#This Row],[Controls Rebate]])))),\"\")","v":""},{"$f":"IFERROR(IF(Table_NCSummary[[#This Row],[Fixture Cost]]=\"\",\"\",Table_NCSummary[[#This Row],[Fixture Cost]]+IF(Table_NCSummary[[#This Row],[Controls Cost]]=\"\",0,Table_NCSummary[[#This Row],[Controls Cost]])),\"\")","v":""},{"$f":"IFERROR(IF(Table_NCSummary[[#This Row],[IsActive]],IF(NOT(ISNUMBER(Table_NCSummary[[#This Row],[Fixture Rebate]])),\"\",IF(Table_NCInfo[[#This Row],[Interior/ Exterior]]=\"Interior\",IFERROR((Table_NCSummary[[#This Row],[Annual Fixture Savings (kWh)]]+Table_NCSummary[[#This Row],[Annual Control Savings (kWh)]])*(Table_NCSummary[[#This Row],[EIF]]-1),0),0)),\"\"),\"\")","v":""},{"$f":"IFERROR(IF(Table_NCSummary[[#This Row],[IsActive]],IF(NOT(ISNUMBER(Table_NCSummary[[#This Row],[Fixture Rebate]])),\"\",IF(Table_NCInfo[[#This Row],[Interior/ Exterior]]=\"Interior\",IFERROR((Table_NCSummary[[#This Row],[Fixture kW Reduction]]+Table_NCSummary[[#This Row],[Control kW Reduction]]/(Table_NCSummary[[#This Row],[CF (Ltg)]]*Table_NCSummary[[#This Row],[DF (Ltg)]]))*(Table_NCSummary[[#This Row],[DIF]]-1)*Table_NCSummary[[#This Row],[CF (HVAC)]]*Table_NCSummary[[#This Row],[DF (HVAC)]],0),0)),\"\"),\"\")","v":""},{"$f":"IFERROR(IF(Table_NCSummary[[#This Row],[IsActive]],IF(NOT(ISNUMBER(Table_NCSummary[[#This Row],[Fixture Rebate]])),\"\",ROUND(Table_NCSummary[[#This Row],[Annual Fixture Savings (kWh)]]+Table_NCSummary[[#This Row],[Annual Control Savings (kWh)]],0)),\"\"),\"\")","v":""},{"$f":"IFERROR(IF(Table_NCSummary[[#This Row],[IsActive]],IF(NOT(ISNUMBER(Table_NCSummary[[#This Row],[Fixture Rebate]])),\"\",ROUND(Table_NCSummary[[#This Row],[Fixture kW Reduction]]+Table_NCSummary[[#This Row],[Control kW Reduction]],3)),\"\"),\"\")","v":""},{"$f":"IFERROR(IF(Table_NCSummary[[#This Row],[IsActive]],IF(NOT(ISNUMBER(Table_NCSummary[[#This Row],[Fixture Rebate]])),\"\",ROUND(Table_NCSummary[[#This Row],[Fixture Energy Savings (kWh)]]+Table_NCSummary[[#This Row],[Induced HVAC Energy Savings (kWh)]],0)),\"\"),\"\")","v":""},{"$f":"IFERROR(IF(Table_NCSummary[[#This Row],[IsActive]],IF(NOT(ISNUMBER(Table_NCSummary[[#This Row],[Fixture Rebate]])),\"\",ROUND(Table_NCSummary[[#This Row],[Fixture Demand Savings (kW)]]+Table_NCSummary[[#This Row],[Induced HVAC Demand Savings (kW)]],3)),\"\"),\"\")","v":""}]
[{"$f":"IFERROR(Table_NCInfo[[#This Row],[Line]],\"\")","v":28},{"$f":"IFERROR(Table_NCInfo[[#This Row],[IsActive]],\"\")","v":false},{"$f":"IFERROR(IF(Table_NCSummary[[#This Row],[IsActive]],VLOOKUP(IF(ISNUMBER(MATCH(Table_NCInfo[[#This Row],[Line]],Table_NCInspection[Line],0)),INDEX(Table_NCInspection[Schedule],MATCH(Table_NCSummary[[#This Row],[Line Item]],Table_NCInspection[Line],0)),Table_NCInfo[[#This Row],[Schedule]]),'Customer Information'!$S$27:$T$34,2,FALSE),\"\"),\"\")","v":""},{"$f":"IFERROR(IF(Table_NCSummary[[#This Row],[IsActive]],INDEX(Table_IntLookups[EIF],MATCH(IF(ISNUMBER(MATCH(Table_NCSummary[[#This Row],[Line Item]],Table_NCInspection[Line],0)),INDEX(Table_NCInspection[Zone Description],MATCH(Table_NCSummary[[#This Row],[Line Item]],Table_NCInfo[Line],0)),Table_NCInfo[[#This Row],[Zone Description]]),Table_IntLookups[Dropdown],0)),\"\"),\"\")","v":""},{"$f":"IFERROR(IF(Table_NCSummary[[#This Row],[IsActive]],INDEX(Table_IntLookups[DIF],MATCH(IF(ISNUMBER(MATCH(Table_NCSummary[[#This Row],[Line Item]],Table_NCInspection[Line],0)),INDEX(Table_NCInspection[Zone Description],MATCH(Table_NCSummary[[#This Row],[Line Item]],Table_NCInfo[Line],0)),Table_NCInfo[[#This Row],[Zone Description]]),Table_IntLookups[Dropdown],0)),\"\"),\"\")","v":""},{"$f":"IFERROR(IF(Table_NCSummary[[#This Row],[IsActive]],INDEX(Table_IntLookups[CFltg],MATCH(IF(ISNUMBER(MATCH(Table_NCSummary[[#This Row],[Line Item]],Table_NCInspection[Line],0)),INDEX(Table_NCInspection[Zone Description],MATCH(Table_NCSummary[[#This Row],[Line Item]],Table_NCInfo[Line],0)),Table_NCInfo[[#This Row],[Zone Description]]),Table_IntLookups[Dropdown],0)),\"\"),\"\")","v":""},{"$f":"IFERROR(IF(Table_NCSummary[[#This Row],[IsActive]],INDEX(Table_IntLookups[DFltg],MATCH(IF(ISNUMBER(MATCH(Table_NCSummary[[#This Row],[Line Item]],Table_NCInspection[Line],0)),INDEX(Table_NCInspection[Zone Description],MATCH(Table_NCSummary[[#This Row],[Line Item]],Table_NCInfo[Line],0)),Table_NCInfo[[#This Row],[Zone Description]]),Table_IntLookups[Dropdown],0)),\"\"),\"\")","v":""},{"$f":"IFERROR(IF(Table_NCSummary[[#This Row],[IsActive]],INDEX(Table_IntLookups[Cfhvac],MATCH(IF(ISNUMBER(MATCH(Table_NCSummary[[#This Row],[Line Item]],Table_NCInspection[Line],0)),INDEX(Table_NCInspection[Zone Description],MATCH(Table_NCSummary[[#This Row],[Line Item]],Table_NCInfo[Line],0)),Table_NCInfo[[#This Row],[Zone Description]]),Table_IntLookups[Dropdown],0)),\"\"),\"\")","v":""},{"$f":"IFERROR(IF(Table_NCSummary[[#This Row],[IsActive]],INDEX(Table_IntLookups[Dfhvac],MATCH(IF(ISNUMBER(MATCH(Table_NCSummary[[#This Row],[Line Item]],Table_NCInspection[Line],0)),INDEX(Table_NCInspection[Zone Description],MATCH(Table_NCSummary[[#This Row],[Line Item]],Table_NCInfo[Line],0)),Table_NCInfo[[#This Row],[Zone Description]]),Table_IntLookups[Dropdown],0)),\"\"),\"\")","v":""},{"$f":"IFERROR(IF(Table_NCSummary[[#This Row],[IsActive]],\nIF(ISNUMBER(MATCH(Table_NCInfo[[#This Row],[Line]],Table_NCInspection[Line],0)),INDEX(Table_NCInspection[Zone Description],MATCH(Table_NCSummary[[#This Row],[Line Item]],Table_NCInspection[Line],0)),Table_NCInfo[[#This Row],[Zone Description]]),\n \"\"),\"\")","v":""},{"$f":"IFERROR(IF(Table_NCSummary[[#This Row],[IsActive]],\nCONCATENATE(\nIF(ISNUMBER(MATCH(Table_NCInfo[[#This Row],[Line]],Table_NCInspection[Line],0)),INDEX(Table_NCInspection[Interior/ Exterior],MATCH(Table_NCSummary[[#This Row],[Line Item]],Table_NCInspection[Line],0)),Table_NCInfo[[#This Row],[Interior/ Exterior]]),\n\" - \",\nIF(ISNUMBER(MATCH(Table_NCInfo[[#This Row],[Line]],Table_NCInspection[Line],0)),INDEX(Table_NCInspection[Space Description],MATCH(Table_NCSummary[[#This Row],[Line Item]],Table_NCInspection[Line],0)),Table_NCInfo[[#This Row],[Space Description]])),\n \"\"),\"\")","v":""},{"$f":"IFERROR(IF(ISNUMBER(MATCH(Table_NCInfo[[#This Row],[Line]],Table_NCInspection[Line],0)),INDEX(Table_NCInspection[Baseline Wattage],MATCH(Table_NCSummary[[#This Row],[Line Item]],Table_NCInspection[Line],0)),Table_NCInfo[[#This Row],[Baseline Wattage]]),\"\")","v":""},{"$f":"IFERROR(IF(Table_NCSummary[[#This Row],[IsActive]],Table_NCSummary[[#This Row],[Baseline Wattage]]/1000*Table_NCSummary[[#This Row],[OpHrs]],\"\"),\"\")","v":""},{"$f":"IFERROR(IF(Table_NCSummary[[#This Row],[IsActive]],IFERROR(VLOOKUP(IF(ISNUMBER(MATCH(Table_NCSummary[[#This Row],[Line Item]],Table_NCInspection[Line],0)),INDEX(Table_NCInspection[Zone '#],MATCH(Table_NCSummary[[#This Row],[Line Item]],Table_NCInspection[Line],0)),Table_NCInfo[[#This Row],[Zone '#]]),Table_IntLookups[],'Facility Information'!$AA$4,FALSE),0),\"\"),\"\")","v":""},{"$f":"IFERROR(IF(Table_NCSummary[[#This Row],[IsActive]],IFERROR(Table_NCSummary[[#This Row],[Baseline Wattage]]/1000*Table_NCSummary[[#This Row],[OpHrs]]*Table_NCSummary[[#This Row],[Existing CSF]]*(-1),0),\"\"),\"\")","v":""},{"$f":"IFERROR(Table_NCSummary[[#This Row],[Baseline kWh]]+Table_NCSummary[[#This Row],[Existing Fixture (Existing Controls) kWh]],\"\")","v":""},{"$f":"IFERROR(IF(Table_NCSummary[[#This Row],[IsActive]],IF(ISNUMBER(MATCH(Table_NCInfo[[#This Row],[Line]],Table_NCInspection[Line],0)),INDEX(Table_NCInspection[Fixture Description '[P']],MATCH(Table_NCSummary[[#This Row],[Line Item]],Table_NCInspection[Line],0)),Table_NCInfo[[#This Row],[Fixture Description '[P']]]),\"\"),\"\")","v":""},{"$f":"IFERROR(IF(Table_NCSummary[[#This Row],[IsActive]],IF(ISNUMBER(MATCH(Table_NCInfo[[#This Row],[Line]],Table_NCInspection[Line],0)),INDEX(Table_NCInspection['# Lamps/ Fixture '[P']],MATCH(Table_NCSummary[[#This Row],[Line Item]],Table_NCInspection[Line],0)),Table_NCInfo[[#This Row],['# Lamps/ Fixture '[P']]]),\"\"),\"\")","v":""},{"$f":"IFERROR(IF(Table_NCSummary[[#This Row],[IsActive]],IF(ISNUMBER(MATCH(Table_NCInfo[[#This Row],[Line]],Table_NCInspection[Line],0)),INDEX(Table_NCInspection[Fixture/ Lamp Wattage '[P']],MATCH(Table_NCSummary[[#This Row],[Line Item]],Table_NCInspection[Line],0)),Table_NCInfo[[#This Row],[Fixture/ Lamp Wattage '[P']]]),\"\"),\"\")","v":""},{"$f":"IFERROR(IF(Table_NCSummary[[#This Row],[IsActive]],IF(ISNUMBER(MATCH(Table_NCInfo[[#This Row],[Line]],Table_NCInspection[Line],0)),INDEX(Table_NCInspection[Fixture Qty '[P']],MATCH(Table_NCSummary[[#This Row],[Line Item]],Table_NCInspection[Line],0)),Table_NCInfo[[#This Row],[Fixture Qty '[P']]]),\"\"),\"\")","v":""},{"$f":"IFERROR(IF(Table_NCSummary[[#This Row],[IsActive]],Table_NCSummary[[#This Row],['# Lamps/ Fixture '[P']]]*Table_NCSummary[[#This Row],[P. Qty]],\"\"),\"\")","v":""},{"$f":"IFERROR(IF(Table_NCSummary[[#This Row],[IsActive]],IF(ISNUMBER(MATCH(Table_NCInfo[[#This Row],[Line]],Table_NCInspection[Line],0)),INDEX(Table_NCInspection[Fixture Wattage '[P']],MATCH(Table_NCSummary[[#This Row],[Line Item]],Table_NCInspection[Line],0)),Table_NCInfo[[#This Row],[Fixture Wattage '[P']]]),\"\"),\"\")","v":""},{"$f":"IFERROR(Table_NCSummary[[#This Row],[P. Qty]]*Table_NCSummary[[#This Row],[Proposed Fixture Wattage]],\"\")","v":""},{"$f":"IFERROR(Table_NCSummary[[#This Row],[Proposed Fixture Wattage]]/1000*Table_NCSummary[[#This Row],[OpHrs]]*Table_NCSummary[[#This Row],[P. Qty]],\"\")","v":""},{"$f":"IFERROR(IF(Table_NCSummary[[#This Row],[IsActive]],IFERROR(VLOOKUP(RIGHT(Table_NCSummary[[#This Row],[Proposed Fixture]],LEN(Table_NCSummary[[#This Row],[Proposed Fixture]])-FIND(\" - \",Table_NCSummary[[#This Row],[Proposed Fixture]],FIND(\"]\",Table_NCSummary[[#This Row],[Proposed Fixture]],1))-2),Table_ControlType[],3, FALSE),Table_NCSummary[[#This Row],[Existing CSF]]),\"\"),\"\")","v":""},{"$f":"IFERROR(IF(Table_NCSummary[[#This Row],[IsActive]],IFERROR(Table_NCSummary[[#This Row],[Proposed Fixture Wattage]]/1000*Table_NCSummary[[#This Row],[OpHrs]]*Table_NCSummary[[#This Row],[P. Qty]]*Table_NCSummary[[#This Row],[Existing CSF]]*(-1),0),\"\"),\"\")","v":""},{"$f":"IFERROR(Table_NCSummary[[#This Row],[Proposed Fixture kWh]]+Table_NCSummary[[#This Row],[Proposed Fixture (Existing Controls) kWh]],\"\")","v":""},{"$f":"IFERROR(IF(Table_NCSummary[[#This Row],[IsActive]],IFERROR(Table_NCSummary[[#This Row],[Proposed Fixture Wattage]]/1000*Table_NCSummary[[#This Row],[OpHrs]]*Table_NCSummary[[#This Row],[P. Qty]]*Table_NCSummary[[#This Row],[Proposed CSF]]*(-1),0),\"\"),\"\")","v":""},{"$f":"IFERROR(Table_NCSummary[[#This Row],[Proposed Fixture kWh]]+Table_NCSummary[[#This Row],[Proposed Fixture (Proposed Controls) kWh]],\"\")","v":""},null,{"$f":"IFERROR(IF(Table_NCSummary[[#This Row],[IsActive]],IF((1-SUMPRODUCT(Table_NCSummary[P. Qty],Table_NCSummary[Proposed Fixture Wattage])/SUM(Table_NCSummary[Baseline Wattage]))<0.1,\"Does Not Qualify [Overall Fixture Reduction is less than 10%]\",IF(ISNUMBER(FIND(\"LED\",Table_NCSummary[[#This Row],[Proposed Fixture]],1)),IF(ISNUMBER(FIND(\"LED Tube\",Table_NCSummary[[#This Row],[Proposed Fixture]],1)),\"New Construction Interior LED Fixture\",IF(ISNUMBER(FIND(\"LED\",Table_NCSummary[[#This Row],[Proposed Fixture]],1)),IF(Table_NCInfo[[#This Row],[Interior/ Exterior]]=\"Exterior\",\"New Construction Exterior LED Fixture\",\"New Construction Interior LED Fixture\"),\"Ineligible Fixture\")),\"Ineligible Fixture\")),\"\"),\"\")","v":""},{"$f":"IFERROR(VLOOKUP(Table_NCSummary[[#This Row],[Fixture Measure Description]],Table_FixtureRate[],2,FALSE),\"\")","v":""},{"$f":"IFERROR(IF(Table_NCSummary[[#This Row],[IsActive]],IF((1-SUMPRODUCT(Table_NCSummary[P. Qty],Table_NCSummary[Proposed Fixture Wattage])/SUM(Table_NCSummary[Baseline Wattage]))<0.1,\"DNQ [kW Reduction <10%]\",IF(Table_NCSummary[[#This Row],[Fixture Measure Description]]=\"Ineligible Fixture\",0,ROUND(Table_NCSummary[[#This Row],[Fixture Rebate (per kW)]]*(Table_NCSummary[[#This Row],[Baseline Wattage]]-Table_NCSummary[[#This Row],[Proposed Wattage]])/1000,2))),\"\"),\"\")","v":""},{"$f":"IFERROR(IF(Table_NCSummary[[#This Row],[Fixture Measure Description]]=\"Ineligible Fixture\",0,ROUND(IF(ProjectCost_Total=0,300000,ProjectCost_Total)*Table_NCSummary[[#This Row],[Fixture Rebate]]/SUM(Table_NCSummary[Fixture Rebate],Table_NCSummary[Controls Rebate]),2)),\"\")","v":""},{"$f":"IFERROR(IF(Table_NCSummary[[#This Row],[IsActive]],IF((1-SUMPRODUCT(Table_NCSummary[P. Qty],Table_NCSummary[Proposed Fixture Wattage])/SUM(Table_NCSummary[Baseline Wattage]))<0.1,\"DNQ [kW Reduction <10%]\",IF(Table_NCSummary[[#This Row],[Fixture Measure Description]]=\"Ineligible Fixture\",0,Table_NCSummary[[#This Row],[Existing Overall kWh]]-Table_NCSummary[[#This Row],[Proposed Overall kWh (Existing Controls)]])),\"\"),\"\")","v":""},{"$f":"IFERROR(IF(Table_NCSummary[[#This Row],[IsActive]],IF((1-SUMPRODUCT(Table_NCSummary[P. Qty],Table_NCSummary[Proposed Fixture Wattage])/SUM(Table_NCSummary[Baseline Wattage]))<0.1,\"DNQ [kW Reduction <10%]\",IF(OR(Table_NCSummary[[#This Row],[Fixture Measure Description]]=\"Ineligible Fixture\",Table_NCSummary[[#This Row],[Fixture Measure Description]]=\"New Construction Exterior LED Fixture\"),0,(Table_NCSummary[[#This Row],[Baseline kWh]]-Table_NCSummary[[#This Row],[Proposed Fixture kWh]])/Table_NCSummary[[#This Row],[OpHrs]]*Table_NCSummary[[#This Row],[CF (Ltg)]]*Table_NCSummary[[#This Row],[DF (Ltg)]])),\"\"),\"\")","v":""},null,{"$f":"IFERROR(\n  IF(OR(Table_NCSummary[[#This Row],[Fixture Measure Description]]=\"\",Table_NCSummary[[#This Row],[Fixture Measure Description]]=\"Ineligible Fixture\"),\n    \"\",\n    \"New Construction\"\n    & \" - \" &\n    IFERROR(VLOOKUP(RIGHT(Table_NCSummary[[#This Row],[Proposed Fixture]],LEN(Table_NCSummary[[#This Row],[Proposed Fixture]])-FIND(\" - \",Table_NCSummary[[#This Row],[Proposed Fixture]],FIND(\"]\",Table_NCSummary[[#This Row],[Proposed Fixture]],1))-2),Table_ControlType[],2, FALSE),None)),\n\"\")","v":""},{"$f":"IFERROR(VLOOKUP(Table_NCSummary[[#This Row],[Controls Measure Description]],Table_ControlRate[],2,FALSE),\"\")","v":""},{"$f":"IFERROR(IF(Table_NCSummary[[#This Row],[IsActive]],IF((1-SUMPRODUCT(Table_NCSummary[P. Qty],Table_NCSummary[Proposed Fixture Wattage])/SUM(Table_NCSummary[Baseline Wattage]))<0.1,\"DNQ [kW Reduction <10%]\",IF(OR(Table_NCSummary[[#This Row],[Controls Measure Description]]=\"\",Table_NCSummary[[#This Row],[Controls Measure Description]]=\"New Construction - No Controls\"),0,ROUND(Table_NCSummary[[#This Row],[Controls Rebate (per Fixt Watt)]]*Table_NCSummary[[#This Row],[Proposed Fixture Wattage]]*Table_NCSummary[[#This Row],[P. Qty]],2))),\"\"),\"\")","v":""},{"$f":"IFERROR(IF(Table_NCSummary[[#This Row],[Fixture Measure Description]]=\"Ineligible Fixture\",0,ROUND(IF(ProjectCost_Total=0,300000,ProjectCost_Total)*Table_NCSummary[[#This Row],[Controls Rebate]]/SUM(Table_NCSummary[Fixture Rebate],Table_NCSummary[Controls Rebate]),2)),\"\")","v":""},{"$f":"IFERROR(IF(Table_NCSummary[[#This Row],[IsActive]],IF((1-SUMPRODUCT(Table_NCSummary[P. Qty],Table_NCSummary[Proposed Fixture Wattage])/SUM(Table_NCSummary[Baseline Wattage]))<0.1,\"DNQ [kW Reduction <10%]\",IF(Table_NCSummary[[#This Row],[Controls Measure Description]]=\"\",0,(Table_NCSummary[[#This Row],[Proposed Fixture (Existing Controls) kWh]]-Table_NCSummary[[#This Row],[Proposed Fixture (Proposed Controls) kWh]]))),\"\"),\"\")","v":""},{"$f":"IFERROR(IF(Table_NCSummary[[#This Row],[IsActive]],IF((1-SUMPRODUCT(Table_NCSummary[P. Qty],Table_NCSummary[Proposed Fixture Wattage])/SUM(Table_NCSummary[Baseline Wattage]))<0.1,\"DNQ [kW Reduction <10%]\",IF(OR(Table_NCSummary[[#This Row],[Controls Measure Description]]=\"\",Table_NCSummary[[#This Row],[Controls Measure Description]]=\"New Construction - No Controls\"),0,(Table_NCSummary[[#This Row],[Proposed Fixture (Existing Controls) kWh]]-Table_NCSummary[[#This Row],[Proposed Fixture (Proposed Controls) kWh]])/Table_NCSummary[[#This Row],[OpHrs]]*Table_NCSummary[[#This Row],[CF (Ltg)]]*Table_NCSummary[[#This Row],[DF (Ltg)]])),\"\"),\"\")","v":""},null,{"$f":"IFERROR(IF(NOT(ISNUMBER(Table_NCSummary[[#This Row],[Fixture Rebate]])),\"\",IF(MIN(IF(Table_NCSummary[[#This Row],[Fixture Cost]]<0,0,SUM(Table_NCSummary[Fixture Cost],Table_NCSummary[Controls Cost])),SUM(Table_NCSummary[Fixture Rebate],Table_NCSummary[Controls Rebate]))>300000,300000/MIN(IF(Table_NCSummary[[#This Row],[Fixture Cost]]<0,0,SUM(Table_NCSummary[Fixture Cost],Table_NCSummary[Controls Cost])),SUM(Table_NCSummary[Fixture Rebate],Table_NCSummary[Controls Rebate]))*MIN(IF(Table_NCSummary[[#This Row],[Fixture Cost]]<0,0,SUM(Table_NCSummary[Fixture Cost],Table_NCSummary[Controls Cost])),Table_NCSummary[[#This Row],[Fixture Rebate]]+IF(Table_NCSummary[[#This Row],[Controls Rebate]]=\"\",0,Table_NCSummary[[#This Row],[Controls Rebate]])),MIN(IF(Table_NCSummary[[#This Row],[Fixture Cost]]<0,0,SUM(Table_NCSummary[Fixture Cost],Table_NCSummary[Controls Cost])),Table_NCSummary[[#This Row],[Fixture Rebate]]+IF(Table_NCSummary[[#This Row],[Controls Rebate]]=\"\",0,Table_NCSummary[[#This Row],[Controls Rebate]])))),\"\")","v":""},{"$f":"IFERROR(IF(Table_NCSummary[[#This Row],[Fixture Cost]]=\"\",\"\",Table_NCSummary[[#This Row],[Fixture Cost]]+IF(Table_NCSummary[[#This Row],[Controls Cost]]=\"\",0,Table_NCSummary[[#This Row],[Controls Cost]])),\"\")","v":""},{"$f":"IFERROR(IF(Table_NCSummary[[#This Row],[IsActive]],IF(NOT(ISNUMBER(Table_NCSummary[[#This Row],[Fixture Rebate]])),\"\",IF(Table_NCInfo[[#This Row],[Interior/ Exterior]]=\"Interior\",IFERROR((Table_NCSummary[[#This Row],[Annual Fixture Savings (kWh)]]+Table_NCSummary[[#This Row],[Annual Control Savings (kWh)]])*(Table_NCSummary[[#This Row],[EIF]]-1),0),0)),\"\"),\"\")","v":""},{"$f":"IFERROR(IF(Table_NCSummary[[#This Row],[IsActive]],IF(NOT(ISNUMBER(Table_NCSummary[[#This Row],[Fixture Rebate]])),\"\",IF(Table_NCInfo[[#This Row],[Interior/ Exterior]]=\"Interior\",IFERROR((Table_NCSummary[[#This Row],[Fixture kW Reduction]]+Table_NCSummary[[#This Row],[Control kW Reduction]]/(Table_NCSummary[[#This Row],[CF (Ltg)]]*Table_NCSummary[[#This Row],[DF (Ltg)]]))*(Table_NCSummary[[#This Row],[DIF]]-1)*Table_NCSummary[[#This Row],[CF (HVAC)]]*Table_NCSummary[[#This Row],[DF (HVAC)]],0),0)),\"\"),\"\")","v":""},{"$f":"IFERROR(IF(Table_NCSummary[[#This Row],[IsActive]],IF(NOT(ISNUMBER(Table_NCSummary[[#This Row],[Fixture Rebate]])),\"\",ROUND(Table_NCSummary[[#This Row],[Annual Fixture Savings (kWh)]]+Table_NCSummary[[#This Row],[Annual Control Savings (kWh)]],0)),\"\"),\"\")","v":""},{"$f":"IFERROR(IF(Table_NCSummary[[#This Row],[IsActive]],IF(NOT(ISNUMBER(Table_NCSummary[[#This Row],[Fixture Rebate]])),\"\",ROUND(Table_NCSummary[[#This Row],[Fixture kW Reduction]]+Table_NCSummary[[#This Row],[Control kW Reduction]],3)),\"\"),\"\")","v":""},{"$f":"IFERROR(IF(Table_NCSummary[[#This Row],[IsActive]],IF(NOT(ISNUMBER(Table_NCSummary[[#This Row],[Fixture Rebate]])),\"\",ROUND(Table_NCSummary[[#This Row],[Fixture Energy Savings (kWh)]]+Table_NCSummary[[#This Row],[Induced HVAC Energy Savings (kWh)]],0)),\"\"),\"\")","v":""},{"$f":"IFERROR(IF(Table_NCSummary[[#This Row],[IsActive]],IF(NOT(ISNUMBER(Table_NCSummary[[#This Row],[Fixture Rebate]])),\"\",ROUND(Table_NCSummary[[#This Row],[Fixture Demand Savings (kW)]]+Table_NCSummary[[#This Row],[Induced HVAC Demand Savings (kW)]],3)),\"\"),\"\")","v":""}]
[{"$f":"IFERROR(Table_NCInfo[[#This Row],[Line]],\"\")","v":29},{"$f":"IFERROR(Table_NCInfo[[#This Row],[IsActive]],\"\")","v":false},{"$f":"IFERROR(IF(Table_NCSummary[[#This Row],[IsActive]],VLOOKUP(IF(ISNUMBER(MATCH(Table_NCInfo[[#This Row],[Line]],Table_NCInspection[Line],0)),INDEX(Table_NCInspection[Schedule],MATCH(Table_NCSummary[[#This Row],[Line Item]],Table_NCInspection[Line],0)),Table_NCInfo[[#This Row],[Schedule]]),'Customer Information'!$S$27:$T$34,2,FALSE),\"\"),\"\")","v":""},{"$f":"IFERROR(IF(Table_NCSummary[[#This Row],[IsActive]],INDEX(Table_IntLookups[EIF],MATCH(IF(ISNUMBER(MATCH(Table_NCSummary[[#This Row],[Line Item]],Table_NCInspection[Line],0)),INDEX(Table_NCInspection[Zone Description],MATCH(Table_NCSummary[[#This Row],[Line Item]],Table_NCInfo[Line],0)),Table_NCInfo[[#This Row],[Zone Description]]),Table_IntLookups[Dropdown],0)),\"\"),\"\")","v":""},{"$f":"IFERROR(IF(Table_NCSummary[[#This Row],[IsActive]],INDEX(Table_IntLookups[DIF],MATCH(IF(ISNUMBER(MATCH(Table_NCSummary[[#This Row],[Line Item]],Table_NCInspection[Line],0)),INDEX(Table_NCInspection[Zone Description],MATCH(Table_NCSummary[[#This Row],[Line Item]],Table_NCInfo[Line],0)),Table_NCInfo[[#This Row],[Zone Description]]),Table_IntLookups[Dropdown],0)),\"\"),\"\")","v":""},{"$f":"IFERROR(IF(Table_NCSummary[[#This Row],[IsActive]],INDEX(Table_IntLookups[CFltg],MATCH(IF(ISNUMBER(MATCH(Table_NCSummary[[#This Row],[Line Item]],Table_NCInspection[Line],0)),INDEX(Table_NCInspection[Zone Description],MATCH(Table_NCSummary[[#This Row],[Line Item]],Table_NCInfo[Line],0)),Table_NCInfo[[#This Row],[Zone Description]]),Table_IntLookups[Dropdown],0)),\"\"),\"\")","v":""},{"$f":"IFERROR(IF(Table_NCSummary[[#This Row],[IsActive]],INDEX(Table_IntLookups[DFltg],MATCH(IF(ISNUMBER(MATCH(Table_NCSummary[[#This Row],[Line Item]],Table_NCInspection[Line],0)),INDEX(Table_NCInspection[Zone Description],MATCH(Table_NCSummary[[#This Row],[Line Item]],Table_NCInfo[Line],0)),Table_NCInfo[[#This Row],[Zone Description]]),Table_IntLookups[Dropdown],0)),\"\"),\"\")","v":""},{"$f":"IFERROR(IF(Table_NCSummary[[#This Row],[IsActive]],INDEX(Table_IntLookups[Cfhvac],MATCH(IF(ISNUMBER(MATCH(Table_NCSummary[[#This Row],[Line Item]],Table_NCInspection[Line],0)),INDEX(Table_NCInspection[Zone Description],MATCH(Table_NCSummary[[#This Row],[Line Item]],Table_NCInfo[Line],0)),Table_NCInfo[[#This Row],[Zone Description]]),Table_IntLookups[Dropdown],0)),\"\"),\"\")","v":""},{"$f":"IFERROR(IF(Table_NCSummary[[#This Row],[IsActive]],INDEX(Table_IntLookups[Dfhvac],MATCH(IF(ISNUMBER(MATCH(Table_NCSummary[[#This Row],[Line Item]],Table_NCInspection[Line],0)),INDEX(Table_NCInspection[Zone Description],MATCH(Table_NCSummary[[#This Row],[Line Item]],Table_NCInfo[Line],0)),Table_NCInfo[[#This Row],[Zone Description]]),Table_IntLookups[Dropdown],0)),\"\"),\"\")","v":""},{"$f":"IFERROR(IF(Table_NCSummary[[#This Row],[IsActive]],\nIF(ISNUMBER(MATCH(Table_NCInfo[[#This Row],[Line]],Table_NCInspection[Line],0)),INDEX(Table_NCInspection[Zone Description],MATCH(Table_NCSummary[[#This Row],[Line Item]],Table_NCInspection[Line],0)),Table_NCInfo[[#This Row],[Zone Description]]),\n \"\"),\"\")","v":""},{"$f":"IFERROR(IF(Table_NCSummary[[#This Row],[IsActive]],\nCONCATENATE(\nIF(ISNUMBER(MATCH(Table_NCInfo[[#This Row],[Line]],Table_NCInspection[Line],0)),INDEX(Table_NCInspection[Interior/ Exterior],MATCH(Table_NCSummary[[#This Row],[Line Item]],Table_NCInspection[Line],0)),Table_NCInfo[[#This Row],[Interior/ Exterior]]),\n\" - \",\nIF(ISNUMBER(MATCH(Table_NCInfo[[#This Row],[Line]],Table_NCInspection[Line],0)),INDEX(Table_NCInspection[Space Description],MATCH(Table_NCSummary[[#This Row],[Line Item]],Table_NCInspection[Line],0)),Table_NCInfo[[#This Row],[Space Description]])),\n \"\"),\"\")","v":""},{"$f":"IFERROR(IF(ISNUMBER(MATCH(Table_NCInfo[[#This Row],[Line]],Table_NCInspection[Line],0)),INDEX(Table_NCInspection[Baseline Wattage],MATCH(Table_NCSummary[[#This Row],[Line Item]],Table_NCInspection[Line],0)),Table_NCInfo[[#This Row],[Baseline Wattage]]),\"\")","v":""},{"$f":"IFERROR(IF(Table_NCSummary[[#This Row],[IsActive]],Table_NCSummary[[#This Row],[Baseline Wattage]]/1000*Table_NCSummary[[#This Row],[OpHrs]],\"\"),\"\")","v":""},{"$f":"IFERROR(IF(Table_NCSummary[[#This Row],[IsActive]],IFERROR(VLOOKUP(IF(ISNUMBER(MATCH(Table_NCSummary[[#This Row],[Line Item]],Table_NCInspection[Line],0)),INDEX(Table_NCInspection[Zone '#],MATCH(Table_NCSummary[[#This Row],[Line Item]],Table_NCInspection[Line],0)),Table_NCInfo[[#This Row],[Zone '#]]),Table_IntLookups[],'Facility Information'!$AA$4,FALSE),0),\"\"),\"\")","v":""},{"$f":"IFERROR(IF(Table_NCSummary[[#This Row],[IsActive]],IFERROR(Table_NCSummary[[#This Row],[Baseline Wattage]]/1000*Table_NCSummary[[#This Row],[OpHrs]]*Table_NCSummary[[#This Row],[Existing CSF]]*(-1),0),\"\"),\"\")","v":""},{"$f":"IFERROR(Table_NCSummary[[#This Row],[Baseline kWh]]+Table_NCSummary[[#This Row],[Existing Fixture (Existing Controls) kWh]],\"\")","v":""},{"$f":"IFERROR(IF(Table_NCSummary[[#This Row],[IsActive]],IF(ISNUMBER(MATCH(Table_NCInfo[[#This Row],[Line]],Table_NCInspection[Line],0)),INDEX(Table_NCInspection[Fixture Description '[P']],MATCH(Table_NCSummary[[#This Row],[Line Item]],Table_NCInspection[Line],0)),Table_NCInfo[[#This Row],[Fixture Description '[P']]]),\"\"),\"\")","v":""},{"$f":"IFERROR(IF(Table_NCSummary[[#This Row],[IsActive]],IF(ISNUMBER(MATCH(Table_NCInfo[[#This Row],[Line]],Table_NCInspection[Line],0)),INDEX(Table_NCInspection['# Lamps/ Fixture '[P']],MATCH(Table_NCSummary[[#This Row],[Line Item]],Table_NCInspection[Line],0)),Table_NCInfo[[#This Row],['# Lamps/ Fixture '[P']]]),\"\"),\"\")","v":""},{"$f":"IFERROR(IF(Table_NCSummary[[#This Row],[IsActive]],IF(ISNUMBER(MATCH(Table_NCInfo[[#This Row],[Line]],Table_NCInspection[Line],0)),INDEX(Table_NCInspection[Fixture/ Lamp Wattage '[P']],MATCH(Table_NCSummary[[#This Row],[Line Item]],Table_NCInspection[Line],0)),Table_NCInfo[[#This Row],[Fixture/ Lamp Wattage '[P']]]),\"\"),\"\")","v":""},{"$f":"IFERROR(IF(Table_NCSummary[[#This Row],[IsActive]],IF(ISNUMBER(MATCH(Table_NCInfo[[#This Row],[Line]],Table_NCInspection[Line],0)),INDEX(Table_NCInspection[Fixture Qty '[P']],MATCH(Table_NCSummary[[#This Row],[Line Item]],Table_NCInspection[Line],0)),Table_NCInfo[[#This Row],[Fixture Qty '[P']]]),\"\"),\"\")","v":""},{"$f":"IFERROR(IF(Table_NCSummary[[#This Row],[IsActive]],Table_NCSummary[[#This Row],['# Lamps/ Fixture '[P']]]*Table_NCSummary[[#This Row],[P. Qty]],\"\"),\"\")","v":""},{"$f":"IFERROR(IF(Table_NCSummary[[#This Row],[IsActive]],IF(ISNUMBER(MATCH(Table_NCInfo[[#This Row],[Line]],Table_NCInspection[Line],0)),INDEX(Table_NCInspection[Fixture Wattage '[P']],MATCH(Table_NCSummary[[#This Row],[Line Item]],Table_NCInspection[Line],0)),Table_NCInfo[[#This Row],[Fixture Wattage '[P']]]),\"\"),\"\")","v":""},{"$f":"IFERROR(Table_NCSummary[[#This Row],[P. Qty]]*Table_NCSummary[[#This Row],[Proposed Fixture Wattage]],\"\")","v":""},{"$f":"IFERROR(Table_NCSummary[[#This Row],[Proposed Fixture Wattage]]/1000*Table_NCSummary[[#This Row],[OpHrs]]*Table_NCSummary[[#This Row],[P. Qty]],\"\")","v":""},{"$f":"IFERROR(IF(Table_NCSummary[[#This Row],[IsActive]],IFERROR(VLOOKUP(RIGHT(Table_NCSummary[[#This Row],[Proposed Fixture]],LEN(Table_NCSummary[[#This Row],[Proposed Fixture]])-FIND(\" - \",Table_NCSummary[[#This Row],[Proposed Fixture]],FIND(\"]\",Table_NCSummary[[#This Row],[Proposed Fixture]],1))-2),Table_ControlType[],3, FALSE),Table_NCSummary[[#This Row],[Existing CSF]]),\"\"),\"\")","v":""},{"$f":"IFERROR(IF(Table_NCSummary[[#This Row],[IsActive]],IFERROR(Table_NCSummary[[#This Row],[Proposed Fixture Wattage]]/1000*Table_NCSummary[[#This Row],[OpHrs]]*Table_NCSummary[[#This Row],[P. Qty]]*Table_NCSummary[[#This Row],[Existing CSF]]*(-1),0),\"\"),\"\")","v":""},{"$f":"IFERROR(Table_NCSummary[[#This Row],[Proposed Fixture kWh]]+Table_NCSummary[[#This Row],[Proposed Fixture (Existing Controls) kWh]],\"\")","v":""},{"$f":"IFERROR(IF(Table_NCSummary[[#This Row],[IsActive]],IFERROR(Table_NCSummary[[#This Row],[Proposed Fixture Wattage]]/1000*Table_NCSummary[[#This Row],[OpHrs]]*Table_NCSummary[[#This Row],[P. Qty]]*Table_NCSummary[[#This Row],[Proposed CSF]]*(-1),0),\"\"),\"\")","v":""},{"$f":"IFERROR(Table_NCSummary[[#This Row],[Proposed Fixture kWh]]+Table_NCSummary[[#This Row],[Proposed Fixture (Proposed Controls) kWh]],\"\")","v":""},null,{"$f":"IFERROR(IF(Table_NCSummary[[#This Row],[IsActive]],IF((1-SUMPRODUCT(Table_NCSummary[P. Qty],Table_NCSummary[Proposed Fixture Wattage])/SUM(Table_NCSummary[Baseline Wattage]))<0.1,\"Does Not Qualify [Overall Fixture Reduction is less than 10%]\",IF(ISNUMBER(FIND(\"LED\",Table_NCSummary[[#This Row],[Proposed Fixture]],1)),IF(ISNUMBER(FIND(\"LED Tube\",Table_NCSummary[[#This Row],[Proposed Fixture]],1)),\"New Construction Interior LED Fixture\",IF(ISNUMBER(FIND(\"LED\",Table_NCSummary[[#This Row],[Proposed Fixture]],1)),IF(Table_NCInfo[[#This Row],[Interior/ Exterior]]=\"Exterior\",\"New Construction Exterior LED Fixture\",\"New Construction Interior LED Fixture\"),\"Ineligible Fixture\")),\"Ineligible Fixture\")),\"\"),\"\")","v":""},{"$f":"IFERROR(VLOOKUP(Table_NCSummary[[#This Row],[Fixture Measure Description]],Table_FixtureRate[],2,FALSE),\"\")","v":""},{"$f":"IFERROR(IF(Table_NCSummary[[#This Row],[IsActive]],IF((1-SUMPRODUCT(Table_NCSummary[P. Qty],Table_NCSummary[Proposed Fixture Wattage])/SUM(Table_NCSummary[Baseline Wattage]))<0.1,\"DNQ [kW Reduction <10%]\",IF(Table_NCSummary[[#This Row],[Fixture Measure Description]]=\"Ineligible Fixture\",0,ROUND(Table_NCSummary[[#This Row],[Fixture Rebate (per kW)]]*(Table_NCSummary[[#This Row],[Baseline Wattage]]-Table_NCSummary[[#This Row],[Proposed Wattage]])/1000,2))),\"\"),\"\")","v":""},{"$f":"IFERROR(IF(Table_NCSummary[[#This Row],[Fixture Measure Description]]=\"Ineligible Fixture\",0,ROUND(IF(ProjectCost_Total=0,300000,ProjectCost_Total)*Table_NCSummary[[#This Row],[Fixture Rebate]]/SUM(Table_NCSummary[Fixture Rebate],Table_NCSummary[Controls Rebate]),2)),\"\")","v":""},{"$f":"IFERROR(IF(Table_NCSummary[[#This Row],[IsActive]],IF((1-SUMPRODUCT(Table_NCSummary[P. Qty],Table_NCSummary[Proposed Fixture Wattage])/SUM(Table_NCSummary[Baseline Wattage]))<0.1,\"DNQ [kW Reduction <10%]\",IF(Table_NCSummary[[#This Row],[Fixture Measure Description]]=\"Ineligible Fixture\",0,Table_NCSummary[[#This Row],[Existing Overall kWh]]-Table_NCSummary[[#This Row],[Proposed Overall kWh (Existing Controls)]])),\"\"),\"\")","v":""},{"$f":"IFERROR(IF(Table_NCSummary[[#This Row],[IsActive]],IF((1-SUMPRODUCT(Table_NCSummary[P. Qty],Table_NCSummary[Proposed Fixture Wattage])/SUM(Table_NCSummary[Baseline Wattage]))<0.1,\"DNQ [kW Reduction <10%]\",IF(OR(Table_NCSummary[[#This Row],[Fixture Measure Description]]=\"Ineligible Fixture\",Table_NCSummary[[#This Row],[Fixture Measure Description]]=\"New Construction Exterior LED Fixture\"),0,(Table_NCSummary[[#This Row],[Baseline kWh]]-Table_NCSummary[[#This Row],[Proposed Fixture kWh]])/Table_NCSummary[[#This Row],[OpHrs]]*Table_NCSummary[[#This Row],[CF (Ltg)]]*Table_NCSummary[[#This Row],[DF (Ltg)]])),\"\"),\"\")","v":""},null,{"$f":"IFERROR(\n  IF(OR(Table_NCSummary[[#This Row],[Fixture Measure Description]]=\"\",Table_NCSummary[[#This Row],[Fixture Measure Description]]=\"Ineligible Fixture\"),\n    \"\",\n    \"New Construction\"\n    & \" - \" &\n    IFERROR(VLOOKUP(RIGHT(Table_NCSummary[[#This Row],[Proposed Fixture]],LEN(Table_NCSummary[[#This Row],[Proposed Fixture]])-FIND(\" - \",Table_NCSummary[[#This Row],[Proposed Fixture]],FIND(\"]\",Table_NCSummary[[#This Row],[Proposed Fixture]],1))-2),Table_ControlType[],2, FALSE),None)),\n\"\")","v":""},{"$f":"IFERROR(VLOOKUP(Table_NCSummary[[#This Row],[Controls Measure Description]],Table_ControlRate[],2,FALSE),\"\")","v":""},{"$f":"IFERROR(IF(Table_NCSummary[[#This Row],[IsActive]],IF((1-SUMPRODUCT(Table_NCSummary[P. Qty],Table_NCSummary[Proposed Fixture Wattage])/SUM(Table_NCSummary[Baseline Wattage]))<0.1,\"DNQ [kW Reduction <10%]\",IF(OR(Table_NCSummary[[#This Row],[Controls Measure Description]]=\"\",Table_NCSummary[[#This Row],[Controls Measure Description]]=\"New Construction - No Controls\"),0,ROUND(Table_NCSummary[[#This Row],[Controls Rebate (per Fixt Watt)]]*Table_NCSummary[[#This Row],[Proposed Fixture Wattage]]*Table_NCSummary[[#This Row],[P. Qty]],2))),\"\"),\"\")","v":""},{"$f":"IFERROR(IF(Table_NCSummary[[#This Row],[Fixture Measure Description]]=\"Ineligible Fixture\",0,ROUND(IF(ProjectCost_Total=0,300000,ProjectCost_Total)*Table_NCSummary[[#This Row],[Controls Rebate]]/SUM(Table_NCSummary[Fixture Rebate],Table_NCSummary[Controls Rebate]),2)),\"\")","v":""},{"$f":"IFERROR(IF(Table_NCSummary[[#This Row],[IsActive]],IF((1-SUMPRODUCT(Table_NCSummary[P. Qty],Table_NCSummary[Proposed Fixture Wattage])/SUM(Table_NCSummary[Baseline Wattage]))<0.1,\"DNQ [kW Reduction <10%]\",IF(Table_NCSummary[[#This Row],[Controls Measure Description]]=\"\",0,(Table_NCSummary[[#This Row],[Proposed Fixture (Existing Controls) kWh]]-Table_NCSummary[[#This Row],[Proposed Fixture (Proposed Controls) kWh]]))),\"\"),\"\")","v":""},{"$f":"IFERROR(IF(Table_NCSummary[[#This Row],[IsActive]],IF((1-SUMPRODUCT(Table_NCSummary[P. Qty],Table_NCSummary[Proposed Fixture Wattage])/SUM(Table_NCSummary[Baseline Wattage]))<0.1,\"DNQ [kW Reduction <10%]\",IF(OR(Table_NCSummary[[#This Row],[Controls Measure Description]]=\"\",Table_NCSummary[[#This Row],[Controls Measure Description]]=\"New Construction - No Controls\"),0,(Table_NCSummary[[#This Row],[Proposed Fixture (Existing Controls) kWh]]-Table_NCSummary[[#This Row],[Proposed Fixture (Proposed Controls) kWh]])/Table_NCSummary[[#This Row],[OpHrs]]*Table_NCSummary[[#This Row],[CF (Ltg)]]*Table_NCSummary[[#This Row],[DF (Ltg)]])),\"\"),\"\")","v":""},null,{"$f":"IFERROR(IF(NOT(ISNUMBER(Table_NCSummary[[#This Row],[Fixture Rebate]])),\"\",IF(MIN(IF(Table_NCSummary[[#This Row],[Fixture Cost]]<0,0,SUM(Table_NCSummary[Fixture Cost],Table_NCSummary[Controls Cost])),SUM(Table_NCSummary[Fixture Rebate],Table_NCSummary[Controls Rebate]))>300000,300000/MIN(IF(Table_NCSummary[[#This Row],[Fixture Cost]]<0,0,SUM(Table_NCSummary[Fixture Cost],Table_NCSummary[Controls Cost])),SUM(Table_NCSummary[Fixture Rebate],Table_NCSummary[Controls Rebate]))*MIN(IF(Table_NCSummary[[#This Row],[Fixture Cost]]<0,0,SUM(Table_NCSummary[Fixture Cost],Table_NCSummary[Controls Cost])),Table_NCSummary[[#This Row],[Fixture Rebate]]+IF(Table_NCSummary[[#This Row],[Controls Rebate]]=\"\",0,Table_NCSummary[[#This Row],[Controls Rebate]])),MIN(IF(Table_NCSummary[[#This Row],[Fixture Cost]]<0,0,SUM(Table_NCSummary[Fixture Cost],Table_NCSummary[Controls Cost])),Table_NCSummary[[#This Row],[Fixture Rebate]]+IF(Table_NCSummary[[#This Row],[Controls Rebate]]=\"\",0,Table_NCSummary[[#This Row],[Controls Rebate]])))),\"\")","v":""},{"$f":"IFERROR(IF(Table_NCSummary[[#This Row],[Fixture Cost]]=\"\",\"\",Table_NCSummary[[#This Row],[Fixture Cost]]+IF(Table_NCSummary[[#This Row],[Controls Cost]]=\"\",0,Table_NCSummary[[#This Row],[Controls Cost]])),\"\")","v":""},{"$f":"IFERROR(IF(Table_NCSummary[[#This Row],[IsActive]],IF(NOT(ISNUMBER(Table_NCSummary[[#This Row],[Fixture Rebate]])),\"\",IF(Table_NCInfo[[#This Row],[Interior/ Exterior]]=\"Interior\",IFERROR((Table_NCSummary[[#This Row],[Annual Fixture Savings (kWh)]]+Table_NCSummary[[#This Row],[Annual Control Savings (kWh)]])*(Table_NCSummary[[#This Row],[EIF]]-1),0),0)),\"\"),\"\")","v":""},{"$f":"IFERROR(IF(Table_NCSummary[[#This Row],[IsActive]],IF(NOT(ISNUMBER(Table_NCSummary[[#This Row],[Fixture Rebate]])),\"\",IF(Table_NCInfo[[#This Row],[Interior/ Exterior]]=\"Interior\",IFERROR((Table_NCSummary[[#This Row],[Fixture kW Reduction]]+Table_NCSummary[[#This Row],[Control kW Reduction]]/(Table_NCSummary[[#This Row],[CF (Ltg)]]*Table_NCSummary[[#This Row],[DF (Ltg)]]))*(Table_NCSummary[[#This Row],[DIF]]-1)*Table_NCSummary[[#This Row],[CF (HVAC)]]*Table_NCSummary[[#This Row],[DF (HVAC)]],0),0)),\"\"),\"\")","v":""},{"$f":"IFERROR(IF(Table_NCSummary[[#This Row],[IsActive]],IF(NOT(ISNUMBER(Table_NCSummary[[#This Row],[Fixture Rebate]])),\"\",ROUND(Table_NCSummary[[#This Row],[Annual Fixture Savings (kWh)]]+Table_NCSummary[[#This Row],[Annual Control Savings (kWh)]],0)),\"\"),\"\")","v":""},{"$f":"IFERROR(IF(Table_NCSummary[[#This Row],[IsActive]],IF(NOT(ISNUMBER(Table_NCSummary[[#This Row],[Fixture Rebate]])),\"\",ROUND(Table_NCSummary[[#This Row],[Fixture kW Reduction]]+Table_NCSummary[[#This Row],[Control kW Reduction]],3)),\"\"),\"\")","v":""},{"$f":"IFERROR(IF(Table_NCSummary[[#This Row],[IsActive]],IF(NOT(ISNUMBER(Table_NCSummary[[#This Row],[Fixture Rebate]])),\"\",ROUND(Table_NCSummary[[#This Row],[Fixture Energy Savings (kWh)]]+Table_NCSummary[[#This Row],[Induced HVAC Energy Savings (kWh)]],0)),\"\"),\"\")","v":""},{"$f":"IFERROR(IF(Table_NCSummary[[#This Row],[IsActive]],IF(NOT(ISNUMBER(Table_NCSummary[[#This Row],[Fixture Rebate]])),\"\",ROUND(Table_NCSummary[[#This Row],[Fixture Demand Savings (kW)]]+Table_NCSummary[[#This Row],[Induced HVAC Demand Savings (kW)]],3)),\"\"),\"\")","v":""}]
[{"$f":"IFERROR(Table_NCInfo[[#This Row],[Line]],\"\")","v":30},{"$f":"IFERROR(Table_NCInfo[[#This Row],[IsActive]],\"\")","v":false},{"$f":"IFERROR(IF(Table_NCSummary[[#This Row],[IsActive]],VLOOKUP(IF(ISNUMBER(MATCH(Table_NCInfo[[#This Row],[Line]],Table_NCInspection[Line],0)),INDEX(Table_NCInspection[Schedule],MATCH(Table_NCSummary[[#This Row],[Line Item]],Table_NCInspection[Line],0)),Table_NCInfo[[#This Row],[Schedule]]),'Customer Information'!$S$27:$T$34,2,FALSE),\"\"),\"\")","v":""},{"$f":"IFERROR(IF(Table_NCSummary[[#This Row],[IsActive]],INDEX(Table_IntLookups[EIF],MATCH(IF(ISNUMBER(MATCH(Table_NCSummary[[#This Row],[Line Item]],Table_NCInspection[Line],0)),INDEX(Table_NCInspection[Zone Description],MATCH(Table_NCSummary[[#This Row],[Line Item]],Table_NCInfo[Line],0)),Table_NCInfo[[#This Row],[Zone Description]]),Table_IntLookups[Dropdown],0)),\"\"),\"\")","v":""},{"$f":"IFERROR(IF(Table_NCSummary[[#This Row],[IsActive]],INDEX(Table_IntLookups[DIF],MATCH(IF(ISNUMBER(MATCH(Table_NCSummary[[#This Row],[Line Item]],Table_NCInspection[Line],0)),INDEX(Table_NCInspection[Zone Description],MATCH(Table_NCSummary[[#This Row],[Line Item]],Table_NCInfo[Line],0)),Table_NCInfo[[#This Row],[Zone Description]]),Table_IntLookups[Dropdown],0)),\"\"),\"\")","v":""},{"$f":"IFERROR(IF(Table_NCSummary[[#This Row],[IsActive]],INDEX(Table_IntLookups[CFltg],MATCH(IF(ISNUMBER(MATCH(Table_NCSummary[[#This Row],[Line Item]],Table_NCInspection[Line],0)),INDEX(Table_NCInspection[Zone Description],MATCH(Table_NCSummary[[#This Row],[Line Item]],Table_NCInfo[Line],0)),Table_NCInfo[[#This Row],[Zone Description]]),Table_IntLookups[Dropdown],0)),\"\"),\"\")","v":""},{"$f":"IFERROR(IF(Table_NCSummary[[#This Row],[IsActive]],INDEX(Table_IntLookups[DFltg],MATCH(IF(ISNUMBER(MATCH(Table_NCSummary[[#This Row],[Line Item]],Table_NCInspection[Line],0)),INDEX(Table_NCInspection[Zone Description],MATCH(Table_NCSummary[[#This Row],[Line Item]],Table_NCInfo[Line],0)),Table_NCInfo[[#This Row],[Zone Description]]),Table_IntLookups[Dropdown],0)),\"\"),\"\")","v":""},{"$f":"IFERROR(IF(Table_NCSummary[[#This Row],[IsActive]],INDEX(Table_IntLookups[Cfhvac],MATCH(IF(ISNUMBER(MATCH(Table_NCSummary[[#This Row],[Line Item]],Table_NCInspection[Line],0)),INDEX(Table_NCInspection[Zone Description],MATCH(Table_NCSummary[[#This Row],[Line Item]],Table_NCInfo[Line],0)),Table_NCInfo[[#This Row],[Zone Description]]),Table_IntLookups[Dropdown],0)),\"\"),\"\")","v":""},{"$f":"IFERROR(IF(Table_NCSummary[[#This Row],[IsActive]],INDEX(Table_IntLookups[Dfhvac],MATCH(IF(ISNUMBER(MATCH(Table_NCSummary[[#This Row],[Line Item]],Table_NCInspection[Line],0)),INDEX(Table_NCInspection[Zone Description],MATCH(Table_NCSummary[[#This Row],[Line Item]],Table_NCInfo[Line],0)),Table_NCInfo[[#This Row],[Zone Description]]),Table_IntLookups[Dropdown],0)),\"\"),\"\")","v":""},{"$f":"IFERROR(IF(Table_NCSummary[[#This Row],[IsActive]],\nIF(ISNUMBER(MATCH(Table_NCInfo[[#This Row],[Line]],Table_NCInspection[Line],0)),INDEX(Table_NCInspection[Zone Description],MATCH(Table_NCSummary[[#This Row],[Line Item]],Table_NCInspection[Line],0)),Table_NCInfo[[#This Row],[Zone Description]]),\n \"\"),\"\")","v":""},{"$f":"IFERROR(IF(Table_NCSummary[[#This Row],[IsActive]],\nCONCATENATE(\nIF(ISNUMBER(MATCH(Table_NCInfo[[#This Row],[Line]],Table_NCInspection[Line],0)),INDEX(Table_NCInspection[Interior/ Exterior],MATCH(Table_NCSummary[[#This Row],[Line Item]],Table_NCInspection[Line],0)),Table_NCInfo[[#This Row],[Interior/ Exterior]]),\n\" - \",\nIF(ISNUMBER(MATCH(Table_NCInfo[[#This Row],[Line]],Table_NCInspection[Line],0)),INDEX(Table_NCInspection[Space Description],MATCH(Table_NCSummary[[#This Row],[Line Item]],Table_NCInspection[Line],0)),Table_NCInfo[[#This Row],[Space Description]])),\n \"\"),\"\")","v":""},{"$f":"IFERROR(IF(ISNUMBER(MATCH(Table_NCInfo[[#This Row],[Line]],Table_NCInspection[Line],0)),INDEX(Table_NCInspection[Baseline Wattage],MATCH(Table_NCSummary[[#This Row],[Line Item]],Table_NCInspection[Line],0)),Table_NCInfo[[#This Row],[Baseline Wattage]]),\"\")","v":""},{"$f":"IFERROR(IF(Table_NCSummary[[#This Row],[IsActive]],Table_NCSummary[[#This Row],[Baseline Wattage]]/1000*Table_NCSummary[[#This Row],[OpHrs]],\"\"),\"\")","v":""},{"$f":"IFERROR(IF(Table_NCSummary[[#This Row],[IsActive]],IFERROR(VLOOKUP(IF(ISNUMBER(MATCH(Table_NCSummary[[#This Row],[Line Item]],Table_NCInspection[Line],0)),INDEX(Table_NCInspection[Zone '#],MATCH(Table_NCSummary[[#This Row],[Line Item]],Table_NCInspection[Line],0)),Table_NCInfo[[#This Row],[Zone '#]]),Table_IntLookups[],'Facility Information'!$AA$4,FALSE),0),\"\"),\"\")","v":""},{"$f":"IFERROR(IF(Table_NCSummary[[#This Row],[IsActive]],IFERROR(Table_NCSummary[[#This Row],[Baseline Wattage]]/1000*Table_NCSummary[[#This Row],[OpHrs]]*Table_NCSummary[[#This Row],[Existing CSF]]*(-1),0),\"\"),\"\")","v":""},{"$f":"IFERROR(Table_NCSummary[[#This Row],[Baseline kWh]]+Table_NCSummary[[#This Row],[Existing Fixture (Existing Controls) kWh]],\"\")","v":""},{"$f":"IFERROR(IF(Table_NCSummary[[#This Row],[IsActive]],IF(ISNUMBER(MATCH(Table_NCInfo[[#This Row],[Line]],Table_NCInspection[Line],0)),INDEX(Table_NCInspection[Fixture Description '[P']],MATCH(Table_NCSummary[[#This Row],[Line Item]],Table_NCInspection[Line],0)),Table_NCInfo[[#This Row],[Fixture Description '[P']]]),\"\"),\"\")","v":""},{"$f":"IFERROR(IF(Table_NCSummary[[#This Row],[IsActive]],IF(ISNUMBER(MATCH(Table_NCInfo[[#This Row],[Line]],Table_NCInspection[Line],0)),INDEX(Table_NCInspection['# Lamps/ Fixture '[P']],MATCH(Table_NCSummary[[#This Row],[Line Item]],Table_NCInspection[Line],0)),Table_NCInfo[[#This Row],['# Lamps/ Fixture '[P']]]),\"\"),\"\")","v":""},{"$f":"IFERROR(IF(Table_NCSummary[[#This Row],[IsActive]],IF(ISNUMBER(MATCH(Table_NCInfo[[#This Row],[Line]],Table_NCInspection[Line],0)),INDEX(Table_NCInspection[Fixture/ Lamp Wattage '[P']],MATCH(Table_NCSummary[[#This Row],[Line Item]],Table_NCInspection[Line],0)),Table_NCInfo[[#This Row],[Fixture/ Lamp Wattage '[P']]]),\"\"),\"\")","v":""},{"$f":"IFERROR(IF(Table_NCSummary[[#This Row],[IsActive]],IF(ISNUMBER(MATCH(Table_NCInfo[[#This Row],[Line]],Table_NCInspection[Line],0)),INDEX(Table_NCInspection[Fixture Qty '[P']],MATCH(Table_NCSummary[[#This Row],[Line Item]],Table_NCInspection[Line],0)),Table_NCInfo[[#This Row],[Fixture Qty '[P']]]),\"\"),\"\")","v":""},{"$f":"IFERROR(IF(Table_NCSummary[[#This Row],[IsActive]],Table_NCSummary[[#This Row],['# Lamps/ Fixture '[P']]]*Table_NCSummary[[#This Row],[P. Qty]],\"\"),\"\")","v":""},{"$f":"IFERROR(IF(Table_NCSummary[[#This Row],[IsActive]],IF(ISNUMBER(MATCH(Table_NCInfo[[#This Row],[Line]],Table_NCInspection[Line],0)),INDEX(Table_NCInspection[Fixture Wattage '[P']],MATCH(Table_NCSummary[[#This Row],[Line Item]],Table_NCInspection[Line],0)),Table_NCInfo[[#This Row],[Fixture Wattage '[P']]]),\"\"),\"\")","v":""},{"$f":"IFERROR(Table_NCSummary[[#This Row],[P. Qty]]*Table_NCSummary[[#This Row],[Proposed Fixture Wattage]],\"\")","v":""},{"$f":"IFERROR(Table_NCSummary[[#This Row],[Proposed Fixture Wattage]]/1000*Table_NCSummary[[#This Row],[OpHrs]]*Table_NCSummary[[#This Row],[P. Qty]],\"\")","v":""},{"$f":"IFERROR(IF(Table_NCSummary[[#This Row],[IsActive]],IFERROR(VLOOKUP(RIGHT(Table_NCSummary[[#This Row],[Proposed Fixture]],LEN(Table_NCSummary[[#This Row],[Proposed Fixture]])-FIND(\" - \",Table_NCSummary[[#This Row],[Proposed Fixture]],FIND(\"]\",Table_NCSummary[[#This Row],[Proposed Fixture]],1))-2),Table_ControlType[],3, FALSE),Table_NCSummary[[#This Row],[Existing CSF]]),\"\"),\"\")","v":""},{"$f":"IFERROR(IF(Table_NCSummary[[#This Row],[IsActive]],IFERROR(Table_NCSummary[[#This Row],[Proposed Fixture Wattage]]/1000*Table_NCSummary[[#This Row],[OpHrs]]*Table_NCSummary[[#This Row],[P. Qty]]*Table_NCSummary[[#This Row],[Existing CSF]]*(-1),0),\"\"),\"\")","v":""},{"$f":"IFERROR(Table_NCSummary[[#This Row],[Proposed Fixture kWh]]+Table_NCSummary[[#This Row],[Proposed Fixture (Existing Controls) kWh]],\"\")","v":""},{"$f":"IFERROR(IF(Table_NCSummary[[#This Row],[IsActive]],IFERROR(Table_NCSummary[[#This Row],[Proposed Fixture Wattage]]/1000*Table_NCSummary[[#This Row],[OpHrs]]*Table_NCSummary[[#This Row],[P. Qty]]*Table_NCSummary[[#This Row],[Proposed CSF]]*(-1),0),\"\"),\"\")","v":""},{"$f":"IFERROR(Table_NCSummary[[#This Row],[Proposed Fixture kWh]]+Table_NCSummary[[#This Row],[Proposed Fixture (Proposed Controls) kWh]],\"\")","v":""},null,{"$f":"IFERROR(IF(Table_NCSummary[[#This Row],[IsActive]],IF((1-SUMPRODUCT(Table_NCSummary[P. Qty],Table_NCSummary[Proposed Fixture Wattage])/SUM(Table_NCSummary[Baseline Wattage]))<0.1,\"Does Not Qualify [Overall Fixture Reduction is less than 10%]\",IF(ISNUMBER(FIND(\"LED\",Table_NCSummary[[#This Row],[Proposed Fixture]],1)),IF(ISNUMBER(FIND(\"LED Tube\",Table_NCSummary[[#This Row],[Proposed Fixture]],1)),\"New Construction Interior LED Fixture\",IF(ISNUMBER(FIND(\"LED\",Table_NCSummary[[#This Row],[Proposed Fixture]],1)),IF(Table_NCInfo[[#This Row],[Interior/ Exterior]]=\"Exterior\",\"New Construction Exterior LED Fixture\",\"New Construction Interior LED Fixture\"),\"Ineligible Fixture\")),\"Ineligible Fixture\")),\"\"),\"\")","v":""},{"$f":"IFERROR(VLOOKUP(Table_NCSummary[[#This Row],[Fixture Measure Description]],Table_FixtureRate[],2,FALSE),\"\")","v":""},{"$f":"IFERROR(IF(Table_NCSummary[[#This Row],[IsActive]],IF((1-SUMPRODUCT(Table_NCSummary[P. Qty],Table_NCSummary[Proposed Fixture Wattage])/SUM(Table_NCSummary[Baseline Wattage]))<0.1,\"DNQ [kW Reduction <10%]\",IF(Table_NCSummary[[#This Row],[Fixture Measure Description]]=\"Ineligible Fixture\",0,ROUND(Table_NCSummary[[#This Row],[Fixture Rebate (per kW)]]*(Table_NCSummary[[#This Row],[Baseline Wattage]]-Table_NCSummary[[#This Row],[Proposed Wattage]])/1000,2))),\"\"),\"\")","v":""},{"$f":"IFERROR(IF(Table_NCSummary[[#This Row],[Fixture Measure Description]]=\"Ineligible Fixture\",0,ROUND(IF(ProjectCost_Total=0,300000,ProjectCost_Total)*Table_NCSummary[[#This Row],[Fixture Rebate]]/SUM(Table_NCSummary[Fixture Rebate],Table_NCSummary[Controls Rebate]),2)),\"\")","v":""},{"$f":"IFERROR(IF(Table_NCSummary[[#This Row],[IsActive]],IF((1-SUMPRODUCT(Table_NCSummary[P. Qty],Table_NCSummary[Proposed Fixture Wattage])/SUM(Table_NCSummary[Baseline Wattage]))<0.1,\"DNQ [kW Reduction <10%]\",IF(Table_NCSummary[[#This Row],[Fixture Measure Description]]=\"Ineligible Fixture\",0,Table_NCSummary[[#This Row],[Existing Overall kWh]]-Table_NCSummary[[#This Row],[Proposed Overall kWh (Existing Controls)]])),\"\"),\"\")","v":""},{"$f":"IFERROR(IF(Table_NCSummary[[#This Row],[IsActive]],IF((1-SUMPRODUCT(Table_NCSummary[P. Qty],Table_NCSummary[Proposed Fixture Wattage])/SUM(Table_NCSummary[Baseline Wattage]))<0.1,\"DNQ [kW Reduction <10%]\",IF(OR(Table_NCSummary[[#This Row],[Fixture Measure Description]]=\"Ineligible Fixture\",Table_NCSummary[[#This Row],[Fixture Measure Description]]=\"New Construction Exterior LED Fixture\"),0,(Table_NCSummary[[#This Row],[Baseline kWh]]-Table_NCSummary[[#This Row],[Proposed Fixture kWh]])/Table_NCSummary[[#This Row],[OpHrs]]*Table_NCSummary[[#This Row],[CF (Ltg)]]*Table_NCSummary[[#This Row],[DF (Ltg)]])),\"\"),\"\")","v":""},null,{"$f":"IFERROR(\n  IF(OR(Table_NCSummary[[#This Row],[Fixture Measure Description]]=\"\",Table_NCSummary[[#This Row],[Fixture Measure Description]]=\"Ineligible Fixture\"),\n    \"\",\n    \"New Construction\"\n    & \" - \" &\n    IFERROR(VLOOKUP(RIGHT(Table_NCSummary[[#This Row],[Proposed Fixture]],LEN(Table_NCSummary[[#This Row],[Proposed Fixture]])-FIND(\" - \",Table_NCSummary[[#This Row],[Proposed Fixture]],FIND(\"]\",Table_NCSummary[[#This Row],[Proposed Fixture]],1))-2),Table_ControlType[],2, FALSE),None)),\n\"\")","v":""},{"$f":"IFERROR(VLOOKUP(Table_NCSummary[[#This Row],[Controls Measure Description]],Table_ControlRate[],2,FALSE),\"\")","v":""},{"$f":"IFERROR(IF(Table_NCSummary[[#This Row],[IsActive]],IF((1-SUMPRODUCT(Table_NCSummary[P. Qty],Table_NCSummary[Proposed Fixture Wattage])/SUM(Table_NCSummary[Baseline Wattage]))<0.1,\"DNQ [kW Reduction <10%]\",IF(OR(Table_NCSummary[[#This Row],[Controls Measure Description]]=\"\",Table_NCSummary[[#This Row],[Controls Measure Description]]=\"New Construction - No Controls\"),0,ROUND(Table_NCSummary[[#This Row],[Controls Rebate (per Fixt Watt)]]*Table_NCSummary[[#This Row],[Proposed Fixture Wattage]]*Table_NCSummary[[#This Row],[P. Qty]],2))),\"\"),\"\")","v":""},{"$f":"IFERROR(IF(Table_NCSummary[[#This Row],[Fixture Measure Description]]=\"Ineligible Fixture\",0,ROUND(IF(ProjectCost_Total=0,300000,ProjectCost_Total)*Table_NCSummary[[#This Row],[Controls Rebate]]/SUM(Table_NCSummary[Fixture Rebate],Table_NCSummary[Controls Rebate]),2)),\"\")","v":""},{"$f":"IFERROR(IF(Table_NCSummary[[#This Row],[IsActive]],IF((1-SUMPRODUCT(Table_NCSummary[P. Qty],Table_NCSummary[Proposed Fixture Wattage])/SUM(Table_NCSummary[Baseline Wattage]))<0.1,\"DNQ [kW Reduction <10%]\",IF(Table_NCSummary[[#This Row],[Controls Measure Description]]=\"\",0,(Table_NCSummary[[#This Row],[Proposed Fixture (Existing Controls) kWh]]-Table_NCSummary[[#This Row],[Proposed Fixture (Proposed Controls) kWh]]))),\"\"),\"\")","v":""},{"$f":"IFERROR(IF(Table_NCSummary[[#This Row],[IsActive]],IF((1-SUMPRODUCT(Table_NCSummary[P. Qty],Table_NCSummary[Proposed Fixture Wattage])/SUM(Table_NCSummary[Baseline Wattage]))<0.1,\"DNQ [kW Reduction <10%]\",IF(OR(Table_NCSummary[[#This Row],[Controls Measure Description]]=\"\",Table_NCSummary[[#This Row],[Controls Measure Description]]=\"New Construction - No Controls\"),0,(Table_NCSummary[[#This Row],[Proposed Fixture (Existing Controls) kWh]]-Table_NCSummary[[#This Row],[Proposed Fixture (Proposed Controls) kWh]])/Table_NCSummary[[#This Row],[OpHrs]]*Table_NCSummary[[#This Row],[CF (Ltg)]]*Table_NCSummary[[#This Row],[DF (Ltg)]])),\"\"),\"\")","v":""},null,{"$f":"IFERROR(IF(NOT(ISNUMBER(Table_NCSummary[[#This Row],[Fixture Rebate]])),\"\",IF(MIN(IF(Table_NCSummary[[#This Row],[Fixture Cost]]<0,0,SUM(Table_NCSummary[Fixture Cost],Table_NCSummary[Controls Cost])),SUM(Table_NCSummary[Fixture Rebate],Table_NCSummary[Controls Rebate]))>300000,300000/MIN(IF(Table_NCSummary[[#This Row],[Fixture Cost]]<0,0,SUM(Table_NCSummary[Fixture Cost],Table_NCSummary[Controls Cost])),SUM(Table_NCSummary[Fixture Rebate],Table_NCSummary[Controls Rebate]))*MIN(IF(Table_NCSummary[[#This Row],[Fixture Cost]]<0,0,SUM(Table_NCSummary[Fixture Cost],Table_NCSummary[Controls Cost])),Table_NCSummary[[#This Row],[Fixture Rebate]]+IF(Table_NCSummary[[#This Row],[Controls Rebate]]=\"\",0,Table_NCSummary[[#This Row],[Controls Rebate]])),MIN(IF(Table_NCSummary[[#This Row],[Fixture Cost]]<0,0,SUM(Table_NCSummary[Fixture Cost],Table_NCSummary[Controls Cost])),Table_NCSummary[[#This Row],[Fixture Rebate]]+IF(Table_NCSummary[[#This Row],[Controls Rebate]]=\"\",0,Table_NCSummary[[#This Row],[Controls Rebate]])))),\"\")","v":""},{"$f":"IFERROR(IF(Table_NCSummary[[#This Row],[Fixture Cost]]=\"\",\"\",Table_NCSummary[[#This Row],[Fixture Cost]]+IF(Table_NCSummary[[#This Row],[Controls Cost]]=\"\",0,Table_NCSummary[[#This Row],[Controls Cost]])),\"\")","v":""},{"$f":"IFERROR(IF(Table_NCSummary[[#This Row],[IsActive]],IF(NOT(ISNUMBER(Table_NCSummary[[#This Row],[Fixture Rebate]])),\"\",IF(Table_NCInfo[[#This Row],[Interior/ Exterior]]=\"Interior\",IFERROR((Table_NCSummary[[#This Row],[Annual Fixture Savings (kWh)]]+Table_NCSummary[[#This Row],[Annual Control Savings (kWh)]])*(Table_NCSummary[[#This Row],[EIF]]-1),0),0)),\"\"),\"\")","v":""},{"$f":"IFERROR(IF(Table_NCSummary[[#This Row],[IsActive]],IF(NOT(ISNUMBER(Table_NCSummary[[#This Row],[Fixture Rebate]])),\"\",IF(Table_NCInfo[[#This Row],[Interior/ Exterior]]=\"Interior\",IFERROR((Table_NCSummary[[#This Row],[Fixture kW Reduction]]+Table_NCSummary[[#This Row],[Control kW Reduction]]/(Table_NCSummary[[#This Row],[CF (Ltg)]]*Table_NCSummary[[#This Row],[DF (Ltg)]]))*(Table_NCSummary[[#This Row],[DIF]]-1)*Table_NCSummary[[#This Row],[CF (HVAC)]]*Table_NCSummary[[#This Row],[DF (HVAC)]],0),0)),\"\"),\"\")","v":""},{"$f":"IFERROR(IF(Table_NCSummary[[#This Row],[IsActive]],IF(NOT(ISNUMBER(Table_NCSummary[[#This Row],[Fixture Rebate]])),\"\",ROUND(Table_NCSummary[[#This Row],[Annual Fixture Savings (kWh)]]+Table_NCSummary[[#This Row],[Annual Control Savings (kWh)]],0)),\"\"),\"\")","v":""},{"$f":"IFERROR(IF(Table_NCSummary[[#This Row],[IsActive]],IF(NOT(ISNUMBER(Table_NCSummary[[#This Row],[Fixture Rebate]])),\"\",ROUND(Table_NCSummary[[#This Row],[Fixture kW Reduction]]+Table_NCSummary[[#This Row],[Control kW Reduction]],3)),\"\"),\"\")","v":""},{"$f":"IFERROR(IF(Table_NCSummary[[#This Row],[IsActive]],IF(NOT(ISNUMBER(Table_NCSummary[[#This Row],[Fixture Rebate]])),\"\",ROUND(Table_NCSummary[[#This Row],[Fixture Energy Savings (kWh)]]+Table_NCSummary[[#This Row],[Induced HVAC Energy Savings (kWh)]],0)),\"\"),\"\")","v":""},{"$f":"IFERROR(IF(Table_NCSummary[[#This Row],[IsActive]],IF(NOT(ISNUMBER(Table_NCSummary[[#This Row],[Fixture Rebate]])),\"\",ROUND(Table_NCSummary[[#This Row],[Fixture Demand Savings (kW)]]+Table_NCSummary[[#This Row],[Induced HVAC Demand Savings (kW)]],3)),\"\"),\"\")","v":""}]
[{"$f":"IFERROR(Table_NCInfo[[#This Row],[Line]],\"\")","v":31},{"$f":"IFERROR(Table_NCInfo[[#This Row],[IsActive]],\"\")","v":false},{"$f":"IFERROR(IF(Table_NCSummary[[#This Row],[IsActive]],VLOOKUP(IF(ISNUMBER(MATCH(Table_NCInfo[[#This Row],[Line]],Table_NCInspection[Line],0)),INDEX(Table_NCInspection[Schedule],MATCH(Table_NCSummary[[#This Row],[Line Item]],Table_NCInspection[Line],0)),Table_NCInfo[[#This Row],[Schedule]]),'Customer Information'!$S$27:$T$34,2,FALSE),\"\"),\"\")","v":""},{"$f":"IFERROR(IF(Table_NCSummary[[#This Row],[IsActive]],INDEX(Table_IntLookups[EIF],MATCH(IF(ISNUMBER(MATCH(Table_NCSummary[[#This Row],[Line Item]],Table_NCInspection[Line],0)),INDEX(Table_NCInspection[Zone Description],MATCH(Table_NCSummary[[#This Row],[Line Item]],Table_NCInfo[Line],0)),Table_NCInfo[[#This Row],[Zone Description]]),Table_IntLookups[Dropdown],0)),\"\"),\"\")","v":""},{"$f":"IFERROR(IF(Table_NCSummary[[#This Row],[IsActive]],INDEX(Table_IntLookups[DIF],MATCH(IF(ISNUMBER(MATCH(Table_NCSummary[[#This Row],[Line Item]],Table_NCInspection[Line],0)),INDEX(Table_NCInspection[Zone Description],MATCH(Table_NCSummary[[#This Row],[Line Item]],Table_NCInfo[Line],0)),Table_NCInfo[[#This Row],[Zone Description]]),Table_IntLookups[Dropdown],0)),\"\"),\"\")","v":""},{"$f":"IFERROR(IF(Table_NCSummary[[#This Row],[IsActive]],INDEX(Table_IntLookups[CFltg],MATCH(IF(ISNUMBER(MATCH(Table_NCSummary[[#This Row],[Line Item]],Table_NCInspection[Line],0)),INDEX(Table_NCInspection[Zone Description],MATCH(Table_NCSummary[[#This Row],[Line Item]],Table_NCInfo[Line],0)),Table_NCInfo[[#This Row],[Zone Description]]),Table_IntLookups[Dropdown],0)),\"\"),\"\")","v":""},{"$f":"IFERROR(IF(Table_NCSummary[[#This Row],[IsActive]],INDEX(Table_IntLookups[DFltg],MATCH(IF(ISNUMBER(MATCH(Table_NCSummary[[#This Row],[Line Item]],Table_NCInspection[Line],0)),INDEX(Table_NCInspection[Zone Description],MATCH(Table_NCSummary[[#This Row],[Line Item]],Table_NCInfo[Line],0)),Table_NCInfo[[#This Row],[Zone Description]]),Table_IntLookups[Dropdown],0)),\"\"),\"\")","v":""},{"$f":"IFERROR(IF(Table_NCSummary[[#This Row],[IsActive]],INDEX(Table_IntLookups[Cfhvac],MATCH(IF(ISNUMBER(MATCH(Table_NCSummary[[#This Row],[Line Item]],Table_NCInspection[Line],0)),INDEX(Table_NCInspection[Zone Description],MATCH(Table_NCSummary[[#This Row],[Line Item]],Table_NCInfo[Line],0)),Table_NCInfo[[#This Row],[Zone Description]]),Table_IntLookups[Dropdown],0)),\"\"),\"\")","v":""},{"$f":"IFERROR(IF(Table_NCSummary[[#This Row],[IsActive]],INDEX(Table_IntLookups[Dfhvac],MATCH(IF(ISNUMBER(MATCH(Table_NCSummary[[#This Row],[Line Item]],Table_NCInspection[Line],0)),INDEX(Table_NCInspection[Zone Description],MATCH(Table_NCSummary[[#This Row],[Line Item]],Table_NCInfo[Line],0)),Table_NCInfo[[#This Row],[Zone Description]]),Table_IntLookups[Dropdown],0)),\"\"),\"\")","v":""},{"$f":"IFERROR(IF(Table_NCSummary[[#This Row],[IsActive]],\nIF(ISNUMBER(MATCH(Table_NCInfo[[#This Row],[Line]],Table_NCInspection[Line],0)),INDEX(Table_NCInspection[Zone Description],MATCH(Table_NCSummary[[#This Row],[Line Item]],Table_NCInspection[Line],0)),Table_NCInfo[[#This Row],[Zone Description]]),\n \"\"),\"\")","v":""},{"$f":"IFERROR(IF(Table_NCSummary[[#This Row],[IsActive]],\nCONCATENATE(\nIF(ISNUMBER(MATCH(Table_NCInfo[[#This Row],[Line]],Table_NCInspection[Line],0)),INDEX(Table_NCInspection[Interior/ Exterior],MATCH(Table_NCSummary[[#This Row],[Line Item]],Table_NCInspection[Line],0)),Table_NCInfo[[#This Row],[Interior/ Exterior]]),\n\" - \",\nIF(ISNUMBER(MATCH(Table_NCInfo[[#This Row],[Line]],Table_NCInspection[Line],0)),INDEX(Table_NCInspection[Space Description],MATCH(Table_NCSummary[[#This Row],[Line Item]],Table_NCInspection[Line],0)),Table_NCInfo[[#This Row],[Space Description]])),\n \"\"),\"\")","v":""},{"$f":"IFERROR(IF(ISNUMBER(MATCH(Table_NCInfo[[#This Row],[Line]],Table_NCInspection[Line],0)),INDEX(Table_NCInspection[Baseline Wattage],MATCH(Table_NCSummary[[#This Row],[Line Item]],Table_NCInspection[Line],0)),Table_NCInfo[[#This Row],[Baseline Wattage]]),\"\")","v":""},{"$f":"IFERROR(IF(Table_NCSummary[[#This Row],[IsActive]],Table_NCSummary[[#This Row],[Baseline Wattage]]/1000*Table_NCSummary[[#This Row],[OpHrs]],\"\"),\"\")","v":""},{"$f":"IFERROR(IF(Table_NCSummary[[#This Row],[IsActive]],IFERROR(VLOOKUP(IF(ISNUMBER(MATCH(Table_NCSummary[[#This Row],[Line Item]],Table_NCInspection[Line],0)),INDEX(Table_NCInspection[Zone '#],MATCH(Table_NCSummary[[#This Row],[Line Item]],Table_NCInspection[Line],0)),Table_NCInfo[[#This Row],[Zone '#]]),Table_IntLookups[],'Facility Information'!$AA$4,FALSE),0),\"\"),\"\")","v":""},{"$f":"IFERROR(IF(Table_NCSummary[[#This Row],[IsActive]],IFERROR(Table_NCSummary[[#This Row],[Baseline Wattage]]/1000*Table_NCSummary[[#This Row],[OpHrs]]*Table_NCSummary[[#This Row],[Existing CSF]]*(-1),0),\"\"),\"\")","v":""},{"$f":"IFERROR(Table_NCSummary[[#This Row],[Baseline kWh]]+Table_NCSummary[[#This Row],[Existing Fixture (Existing Controls) kWh]],\"\")","v":""},{"$f":"IFERROR(IF(Table_NCSummary[[#This Row],[IsActive]],IF(ISNUMBER(MATCH(Table_NCInfo[[#This Row],[Line]],Table_NCInspection[Line],0)),INDEX(Table_NCInspection[Fixture Description '[P']],MATCH(Table_NCSummary[[#This Row],[Line Item]],Table_NCInspection[Line],0)),Table_NCInfo[[#This Row],[Fixture Description '[P']]]),\"\"),\"\")","v":""},{"$f":"IFERROR(IF(Table_NCSummary[[#This Row],[IsActive]],IF(ISNUMBER(MATCH(Table_NCInfo[[#This Row],[Line]],Table_NCInspection[Line],0)),INDEX(Table_NCInspection['# Lamps/ Fixture '[P']],MATCH(Table_NCSummary[[#This Row],[Line Item]],Table_NCInspection[Line],0)),Table_NCInfo[[#This Row],['# Lamps/ Fixture '[P']]]),\"\"),\"\")","v":""},{"$f":"IFERROR(IF(Table_NCSummary[[#This Row],[IsActive]],IF(ISNUMBER(MATCH(Table_NCInfo[[#This Row],[Line]],Table_NCInspection[Line],0)),INDEX(Table_NCInspection[Fixture/ Lamp Wattage '[P']],MATCH(Table_NCSummary[[#This Row],[Line Item]],Table_NCInspection[Line],0)),Table_NCInfo[[#This Row],[Fixture/ Lamp Wattage '[P']]]),\"\"),\"\")","v":""},{"$f":"IFERROR(IF(Table_NCSummary[[#This Row],[IsActive]],IF(ISNUMBER(MATCH(Table_NCInfo[[#This Row],[Line]],Table_NCInspection[Line],0)),INDEX(Table_NCInspection[Fixture Qty '[P']],MATCH(Table_NCSummary[[#This Row],[Line Item]],Table_NCInspection[Line],0)),Table_NCInfo[[#This Row],[Fixture Qty '[P']]]),\"\"),\"\")","v":""},{"$f":"IFERROR(IF(Table_NCSummary[[#This Row],[IsActive]],Table_NCSummary[[#This Row],['# Lamps/ Fixture '[P']]]*Table_NCSummary[[#This Row],[P. Qty]],\"\"),\"\")","v":""},{"$f":"IFERROR(IF(Table_NCSummary[[#This Row],[IsActive]],IF(ISNUMBER(MATCH(Table_NCInfo[[#This Row],[Line]],Table_NCInspection[Line],0)),INDEX(Table_NCInspection[Fixture Wattage '[P']],MATCH(Table_NCSummary[[#This Row],[Line Item]],Table_NCInspection[Line],0)),Table_NCInfo[[#This Row],[Fixture Wattage '[P']]]),\"\"),\"\")","v":""},{"$f":"IFERROR(Table_NCSummary[[#This Row],[P. Qty]]*Table_NCSummary[[#This Row],[Proposed Fixture Wattage]],\"\")","v":""},{"$f":"IFERROR(Table_NCSummary[[#This Row],[Proposed Fixture Wattage]]/1000*Table_NCSummary[[#This Row],[OpHrs]]*Table_NCSummary[[#This Row],[P. Qty]],\"\")","v":""},{"$f":"IFERROR(IF(Table_NCSummary[[#This Row],[IsActive]],IFERROR(VLOOKUP(RIGHT(Table_NCSummary[[#This Row],[Proposed Fixture]],LEN(Table_NCSummary[[#This Row],[Proposed Fixture]])-FIND(\" - \",Table_NCSummary[[#This Row],[Proposed Fixture]],FIND(\"]\",Table_NCSummary[[#This Row],[Proposed Fixture]],1))-2),Table_ControlType[],3, FALSE),Table_NCSummary[[#This Row],[Existing CSF]]),\"\"),\"\")","v":""},{"$f":"IFERROR(IF(Table_NCSummary[[#This Row],[IsActive]],IFERROR(Table_NCSummary[[#This Row],[Proposed Fixture Wattage]]/1000*Table_NCSummary[[#This Row],[OpHrs]]*Table_NCSummary[[#This Row],[P. Qty]]*Table_NCSummary[[#This Row],[Existing CSF]]*(-1),0),\"\"),\"\")","v":""},{"$f":"IFERROR(Table_NCSummary[[#This Row],[Proposed Fixture kWh]]+Table_NCSummary[[#This Row],[Proposed Fixture (Existing Controls) kWh]],\"\")","v":""},{"$f":"IFERROR(IF(Table_NCSummary[[#This Row],[IsActive]],IFERROR(Table_NCSummary[[#This Row],[Proposed Fixture Wattage]]/1000*Table_NCSummary[[#This Row],[OpHrs]]*Table_NCSummary[[#This Row],[P. Qty]]*Table_NCSummary[[#This Row],[Proposed CSF]]*(-1),0),\"\"),\"\")","v":""},{"$f":"IFERROR(Table_NCSummary[[#This Row],[Proposed Fixture kWh]]+Table_NCSummary[[#This Row],[Proposed Fixture (Proposed Controls) kWh]],\"\")","v":""},null,{"$f":"IFERROR(IF(Table_NCSummary[[#This Row],[IsActive]],IF((1-SUMPRODUCT(Table_NCSummary[P. Qty],Table_NCSummary[Proposed Fixture Wattage])/SUM(Table_NCSummary[Baseline Wattage]))<0.1,\"Does Not Qualify [Overall Fixture Reduction is less than 10%]\",IF(ISNUMBER(FIND(\"LED\",Table_NCSummary[[#This Row],[Proposed Fixture]],1)),IF(ISNUMBER(FIND(\"LED Tube\",Table_NCSummary[[#This Row],[Proposed Fixture]],1)),\"New Construction Interior LED Fixture\",IF(ISNUMBER(FIND(\"LED\",Table_NCSummary[[#This Row],[Proposed Fixture]],1)),IF(Table_NCInfo[[#This Row],[Interior/ Exterior]]=\"Exterior\",\"New Construction Exterior LED Fixture\",\"New Construction Interior LED Fixture\"),\"Ineligible Fixture\")),\"Ineligible Fixture\")),\"\"),\"\")","v":""},{"$f":"IFERROR(VLOOKUP(Table_NCSummary[[#This Row],[Fixture Measure Description]],Table_FixtureRate[],2,FALSE),\"\")","v":""},{"$f":"IFERROR(IF(Table_NCSummary[[#This Row],[IsActive]],IF((1-SUMPRODUCT(Table_NCSummary[P. Qty],Table_NCSummary[Proposed Fixture Wattage])/SUM(Table_NCSummary[Baseline Wattage]))<0.1,\"DNQ [kW Reduction <10%]\",IF(Table_NCSummary[[#This Row],[Fixture Measure Description]]=\"Ineligible Fixture\",0,ROUND(Table_NCSummary[[#This Row],[Fixture Rebate (per kW)]]*(Table_NCSummary[[#This Row],[Baseline Wattage]]-Table_NCSummary[[#This Row],[Proposed Wattage]])/1000,2))),\"\"),\"\")","v":""},{"$f":"IFERROR(IF(Table_NCSummary[[#This Row],[Fixture Measure Description]]=\"Ineligible Fixture\",0,ROUND(IF(ProjectCost_Total=0,300000,ProjectCost_Total)*Table_NCSummary[[#This Row],[Fixture Rebate]]/SUM(Table_NCSummary[Fixture Rebate],Table_NCSummary[Controls Rebate]),2)),\"\")","v":""},{"$f":"IFERROR(IF(Table_NCSummary[[#This Row],[IsActive]],IF((1-SUMPRODUCT(Table_NCSummary[P. Qty],Table_NCSummary[Proposed Fixture Wattage])/SUM(Table_NCSummary[Baseline Wattage]))<0.1,\"DNQ [kW Reduction <10%]\",IF(Table_NCSummary[[#This Row],[Fixture Measure Description]]=\"Ineligible Fixture\",0,Table_NCSummary[[#This Row],[Existing Overall kWh]]-Table_NCSummary[[#This Row],[Proposed Overall kWh (Existing Controls)]])),\"\"),\"\")","v":""},{"$f":"IFERROR(IF(Table_NCSummary[[#This Row],[IsActive]],IF((1-SUMPRODUCT(Table_NCSummary[P. Qty],Table_NCSummary[Proposed Fixture Wattage])/SUM(Table_NCSummary[Baseline Wattage]))<0.1,\"DNQ [kW Reduction <10%]\",IF(OR(Table_NCSummary[[#This Row],[Fixture Measure Description]]=\"Ineligible Fixture\",Table_NCSummary[[#This Row],[Fixture Measure Description]]=\"New Construction Exterior LED Fixture\"),0,(Table_NCSummary[[#This Row],[Baseline kWh]]-Table_NCSummary[[#This Row],[Proposed Fixture kWh]])/Table_NCSummary[[#This Row],[OpHrs]]*Table_NCSummary[[#This Row],[CF (Ltg)]]*Table_NCSummary[[#This Row],[DF (Ltg)]])),\"\"),\"\")","v":""},null,{"$f":"IFERROR(\n  IF(OR(Table_NCSummary[[#This Row],[Fixture Measure Description]]=\"\",Table_NCSummary[[#This Row],[Fixture Measure Description]]=\"Ineligible Fixture\"),\n    \"\",\n    \"New Construction\"\n    & \" - \" &\n    IFERROR(VLOOKUP(RIGHT(Table_NCSummary[[#This Row],[Proposed Fixture]],LEN(Table_NCSummary[[#This Row],[Proposed Fixture]])-FIND(\" - \",Table_NCSummary[[#This Row],[Proposed Fixture]],FIND(\"]\",Table_NCSummary[[#This Row],[Proposed Fixture]],1))-2),Table_ControlType[],2, FALSE),None)),\n\"\")","v":""},{"$f":"IFERROR(VLOOKUP(Table_NCSummary[[#This Row],[Controls Measure Description]],Table_ControlRate[],2,FALSE),\"\")","v":""},{"$f":"IFERROR(IF(Table_NCSummary[[#This Row],[IsActive]],IF((1-SUMPRODUCT(Table_NCSummary[P. Qty],Table_NCSummary[Proposed Fixture Wattage])/SUM(Table_NCSummary[Baseline Wattage]))<0.1,\"DNQ [kW Reduction <10%]\",IF(OR(Table_NCSummary[[#This Row],[Controls Measure Description]]=\"\",Table_NCSummary[[#This Row],[Controls Measure Description]]=\"New Construction - No Controls\"),0,ROUND(Table_NCSummary[[#This Row],[Controls Rebate (per Fixt Watt)]]*Table_NCSummary[[#This Row],[Proposed Fixture Wattage]]*Table_NCSummary[[#This Row],[P. Qty]],2))),\"\"),\"\")","v":""},{"$f":"IFERROR(IF(Table_NCSummary[[#This Row],[Fixture Measure Description]]=\"Ineligible Fixture\",0,ROUND(IF(ProjectCost_Total=0,300000,ProjectCost_Total)*Table_NCSummary[[#This Row],[Controls Rebate]]/SUM(Table_NCSummary[Fixture Rebate],Table_NCSummary[Controls Rebate]),2)),\"\")","v":""},{"$f":"IFERROR(IF(Table_NCSummary[[#This Row],[IsActive]],IF((1-SUMPRODUCT(Table_NCSummary[P. Qty],Table_NCSummary[Proposed Fixture Wattage])/SUM(Table_NCSummary[Baseline Wattage]))<0.1,\"DNQ [kW Reduction <10%]\",IF(Table_NCSummary[[#This Row],[Controls Measure Description]]=\"\",0,(Table_NCSummary[[#This Row],[Proposed Fixture (Existing Controls) kWh]]-Table_NCSummary[[#This Row],[Proposed Fixture (Proposed Controls) kWh]]))),\"\"),\"\")","v":""},{"$f":"IFERROR(IF(Table_NCSummary[[#This Row],[IsActive]],IF((1-SUMPRODUCT(Table_NCSummary[P. Qty],Table_NCSummary[Proposed Fixture Wattage])/SUM(Table_NCSummary[Baseline Wattage]))<0.1,\"DNQ [kW Reduction <10%]\",IF(OR(Table_NCSummary[[#This Row],[Controls Measure Description]]=\"\",Table_NCSummary[[#This Row],[Controls Measure Description]]=\"New Construction - No Controls\"),0,(Table_NCSummary[[#This Row],[Proposed Fixture (Existing Controls) kWh]]-Table_NCSummary[[#This Row],[Proposed Fixture (Proposed Controls) kWh]])/Table_NCSummary[[#This Row],[OpHrs]]*Table_NCSummary[[#This Row],[CF (Ltg)]]*Table_NCSummary[[#This Row],[DF (Ltg)]])),\"\"),\"\")","v":""},null,{"$f":"IFERROR(IF(NOT(ISNUMBER(Table_NCSummary[[#This Row],[Fixture Rebate]])),\"\",IF(MIN(IF(Table_NCSummary[[#This Row],[Fixture Cost]]<0,0,SUM(Table_NCSummary[Fixture Cost],Table_NCSummary[Controls Cost])),SUM(Table_NCSummary[Fixture Rebate],Table_NCSummary[Controls Rebate]))>300000,300000/MIN(IF(Table_NCSummary[[#This Row],[Fixture Cost]]<0,0,SUM(Table_NCSummary[Fixture Cost],Table_NCSummary[Controls Cost])),SUM(Table_NCSummary[Fixture Rebate],Table_NCSummary[Controls Rebate]))*MIN(IF(Table_NCSummary[[#This Row],[Fixture Cost]]<0,0,SUM(Table_NCSummary[Fixture Cost],Table_NCSummary[Controls Cost])),Table_NCSummary[[#This Row],[Fixture Rebate]]+IF(Table_NCSummary[[#This Row],[Controls Rebate]]=\"\",0,Table_NCSummary[[#This Row],[Controls Rebate]])),MIN(IF(Table_NCSummary[[#This Row],[Fixture Cost]]<0,0,SUM(Table_NCSummary[Fixture Cost],Table_NCSummary[Controls Cost])),Table_NCSummary[[#This Row],[Fixture Rebate]]+IF(Table_NCSummary[[#This Row],[Controls Rebate]]=\"\",0,Table_NCSummary[[#This Row],[Controls Rebate]])))),\"\")","v":""},{"$f":"IFERROR(IF(Table_NCSummary[[#This Row],[Fixture Cost]]=\"\",\"\",Table_NCSummary[[#This Row],[Fixture Cost]]+IF(Table_NCSummary[[#This Row],[Controls Cost]]=\"\",0,Table_NCSummary[[#This Row],[Controls Cost]])),\"\")","v":""},{"$f":"IFERROR(IF(Table_NCSummary[[#This Row],[IsActive]],IF(NOT(ISNUMBER(Table_NCSummary[[#This Row],[Fixture Rebate]])),\"\",IF(Table_NCInfo[[#This Row],[Interior/ Exterior]]=\"Interior\",IFERROR((Table_NCSummary[[#This Row],[Annual Fixture Savings (kWh)]]+Table_NCSummary[[#This Row],[Annual Control Savings (kWh)]])*(Table_NCSummary[[#This Row],[EIF]]-1),0),0)),\"\"),\"\")","v":""},{"$f":"IFERROR(IF(Table_NCSummary[[#This Row],[IsActive]],IF(NOT(ISNUMBER(Table_NCSummary[[#This Row],[Fixture Rebate]])),\"\",IF(Table_NCInfo[[#This Row],[Interior/ Exterior]]=\"Interior\",IFERROR((Table_NCSummary[[#This Row],[Fixture kW Reduction]]+Table_NCSummary[[#This Row],[Control kW Reduction]]/(Table_NCSummary[[#This Row],[CF (Ltg)]]*Table_NCSummary[[#This Row],[DF (Ltg)]]))*(Table_NCSummary[[#This Row],[DIF]]-1)*Table_NCSummary[[#This Row],[CF (HVAC)]]*Table_NCSummary[[#This Row],[DF (HVAC)]],0),0)),\"\"),\"\")","v":""},{"$f":"IFERROR(IF(Table_NCSummary[[#This Row],[IsActive]],IF(NOT(ISNUMBER(Table_NCSummary[[#This Row],[Fixture Rebate]])),\"\",ROUND(Table_NCSummary[[#This Row],[Annual Fixture Savings (kWh)]]+Table_NCSummary[[#This Row],[Annual Control Savings (kWh)]],0)),\"\"),\"\")","v":""},{"$f":"IFERROR(IF(Table_NCSummary[[#This Row],[IsActive]],IF(NOT(ISNUMBER(Table_NCSummary[[#This Row],[Fixture Rebate]])),\"\",ROUND(Table_NCSummary[[#This Row],[Fixture kW Reduction]]+Table_NCSummary[[#This Row],[Control kW Reduction]],3)),\"\"),\"\")","v":""},{"$f":"IFERROR(IF(Table_NCSummary[[#This Row],[IsActive]],IF(NOT(ISNUMBER(Table_NCSummary[[#This Row],[Fixture Rebate]])),\"\",ROUND(Table_NCSummary[[#This Row],[Fixture Energy Savings (kWh)]]+Table_NCSummary[[#This Row],[Induced HVAC Energy Savings (kWh)]],0)),\"\"),\"\")","v":""},{"$f":"IFERROR(IF(Table_NCSummary[[#This Row],[IsActive]],IF(NOT(ISNUMBER(Table_NCSummary[[#This Row],[Fixture Rebate]])),\"\",ROUND(Table_NCSummary[[#This Row],[Fixture Demand Savings (kW)]]+Table_NCSummary[[#This Row],[Induced HVAC Demand Savings (kW)]],3)),\"\"),\"\")","v":""}]
[{"$f":"IFERROR(Table_NCInfo[[#This Row],[Line]],\"\")","v":32},{"$f":"IFERROR(Table_NCInfo[[#This Row],[IsActive]],\"\")","v":false},{"$f":"IFERROR(IF(Table_NCSummary[[#This Row],[IsActive]],VLOOKUP(IF(ISNUMBER(MATCH(Table_NCInfo[[#This Row],[Line]],Table_NCInspection[Line],0)),INDEX(Table_NCInspection[Schedule],MATCH(Table_NCSummary[[#This Row],[Line Item]],Table_NCInspection[Line],0)),Table_NCInfo[[#This Row],[Schedule]]),'Customer Information'!$S$27:$T$34,2,FALSE),\"\"),\"\")","v":""},{"$f":"IFERROR(IF(Table_NCSummary[[#This Row],[IsActive]],INDEX(Table_IntLookups[EIF],MATCH(IF(ISNUMBER(MATCH(Table_NCSummary[[#This Row],[Line Item]],Table_NCInspection[Line],0)),INDEX(Table_NCInspection[Zone Description],MATCH(Table_NCSummary[[#This Row],[Line Item]],Table_NCInfo[Line],0)),Table_NCInfo[[#This Row],[Zone Description]]),Table_IntLookups[Dropdown],0)),\"\"),\"\")","v":""},{"$f":"IFERROR(IF(Table_NCSummary[[#This Row],[IsActive]],INDEX(Table_IntLookups[DIF],MATCH(IF(ISNUMBER(MATCH(Table_NCSummary[[#This Row],[Line Item]],Table_NCInspection[Line],0)),INDEX(Table_NCInspection[Zone Description],MATCH(Table_NCSummary[[#This Row],[Line Item]],Table_NCInfo[Line],0)),Table_NCInfo[[#This Row],[Zone Description]]),Table_IntLookups[Dropdown],0)),\"\"),\"\")","v":""},{"$f":"IFERROR(IF(Table_NCSummary[[#This Row],[IsActive]],INDEX(Table_IntLookups[CFltg],MATCH(IF(ISNUMBER(MATCH(Table_NCSummary[[#This Row],[Line Item]],Table_NCInspection[Line],0)),INDEX(Table_NCInspection[Zone Description],MATCH(Table_NCSummary[[#This Row],[Line Item]],Table_NCInfo[Line],0)),Table_NCInfo[[#This Row],[Zone Description]]),Table_IntLookups[Dropdown],0)),\"\"),\"\")","v":""},{"$f":"IFERROR(IF(Table_NCSummary[[#This Row],[IsActive]],INDEX(Table_IntLookups[DFltg],MATCH(IF(ISNUMBER(MATCH(Table_NCSummary[[#This Row],[Line Item]],Table_NCInspection[Line],0)),INDEX(Table_NCInspection[Zone Description],MATCH(Table_NCSummary[[#This Row],[Line Item]],Table_NCInfo[Line],0)),Table_NCInfo[[#This Row],[Zone Description]]),Table_IntLookups[Dropdown],0)),\"\"),\"\")","v":""},{"$f":"IFERROR(IF(Table_NCSummary[[#This Row],[IsActive]],INDEX(Table_IntLookups[Cfhvac],MATCH(IF(ISNUMBER(MATCH(Table_NCSummary[[#This Row],[Line Item]],Table_NCInspection[Line],0)),INDEX(Table_NCInspection[Zone Description],MATCH(Table_NCSummary[[#This Row],[Line Item]],Table_NCInfo[Line],0)),Table_NCInfo[[#This Row],[Zone Description]]),Table_IntLookups[Dropdown],0)),\"\"),\"\")","v":""},{"$f":"IFERROR(IF(Table_NCSummary[[#This Row],[IsActive]],INDEX(Table_IntLookups[Dfhvac],MATCH(IF(ISNUMBER(MATCH(Table_NCSummary[[#This Row],[Line Item]],Table_NCInspection[Line],0)),INDEX(Table_NCInspection[Zone Description],MATCH(Table_NCSummary[[#This Row],[Line Item]],Table_NCInfo[Line],0)),Table_NCInfo[[#This Row],[Zone Description]]),Table_IntLookups[Dropdown],0)),\"\"),\"\")","v":""},{"$f":"IFERROR(IF(Table_NCSummary[[#This Row],[IsActive]],\nIF(ISNUMBER(MATCH(Table_NCInfo[[#This Row],[Line]],Table_NCInspection[Line],0)),INDEX(Table_NCInspection[Zone Description],MATCH(Table_NCSummary[[#This Row],[Line Item]],Table_NCInspection[Line],0)),Table_NCInfo[[#This Row],[Zone Description]]),\n \"\"),\"\")","v":""},{"$f":"IFERROR(IF(Table_NCSummary[[#This Row],[IsActive]],\nCONCATENATE(\nIF(ISNUMBER(MATCH(Table_NCInfo[[#This Row],[Line]],Table_NCInspection[Line],0)),INDEX(Table_NCInspection[Interior/ Exterior],MATCH(Table_NCSummary[[#This Row],[Line Item]],Table_NCInspection[Line],0)),Table_NCInfo[[#This Row],[Interior/ Exterior]]),\n\" - \",\nIF(ISNUMBER(MATCH(Table_NCInfo[[#This Row],[Line]],Table_NCInspection[Line],0)),INDEX(Table_NCInspection[Space Description],MATCH(Table_NCSummary[[#This Row],[Line Item]],Table_NCInspection[Line],0)),Table_NCInfo[[#This Row],[Space Description]])),\n \"\"),\"\")","v":""},{"$f":"IFERROR(IF(ISNUMBER(MATCH(Table_NCInfo[[#This Row],[Line]],Table_NCInspection[Line],0)),INDEX(Table_NCInspection[Baseline Wattage],MATCH(Table_NCSummary[[#This Row],[Line Item]],Table_NCInspection[Line],0)),Table_NCInfo[[#This Row],[Baseline Wattage]]),\"\")","v":""},{"$f":"IFERROR(IF(Table_NCSummary[[#This Row],[IsActive]],Table_NCSummary[[#This Row],[Baseline Wattage]]/1000*Table_NCSummary[[#This Row],[OpHrs]],\"\"),\"\")","v":""},{"$f":"IFERROR(IF(Table_NCSummary[[#This Row],[IsActive]],IFERROR(VLOOKUP(IF(ISNUMBER(MATCH(Table_NCSummary[[#This Row],[Line Item]],Table_NCInspection[Line],0)),INDEX(Table_NCInspection[Zone '#],MATCH(Table_NCSummary[[#This Row],[Line Item]],Table_NCInspection[Line],0)),Table_NCInfo[[#This Row],[Zone '#]]),Table_IntLookups[],'Facility Information'!$AA$4,FALSE),0),\"\"),\"\")","v":""},{"$f":"IFERROR(IF(Table_NCSummary[[#This Row],[IsActive]],IFERROR(Table_NCSummary[[#This Row],[Baseline Wattage]]/1000*Table_NCSummary[[#This Row],[OpHrs]]*Table_NCSummary[[#This Row],[Existing CSF]]*(-1),0),\"\"),\"\")","v":""},{"$f":"IFERROR(Table_NCSummary[[#This Row],[Baseline kWh]]+Table_NCSummary[[#This Row],[Existing Fixture (Existing Controls) kWh]],\"\")","v":""},{"$f":"IFERROR(IF(Table_NCSummary[[#This Row],[IsActive]],IF(ISNUMBER(MATCH(Table_NCInfo[[#This Row],[Line]],Table_NCInspection[Line],0)),INDEX(Table_NCInspection[Fixture Description '[P']],MATCH(Table_NCSummary[[#This Row],[Line Item]],Table_NCInspection[Line],0)),Table_NCInfo[[#This Row],[Fixture Description '[P']]]),\"\"),\"\")","v":""},{"$f":"IFERROR(IF(Table_NCSummary[[#This Row],[IsActive]],IF(ISNUMBER(MATCH(Table_NCInfo[[#This Row],[Line]],Table_NCInspection[Line],0)),INDEX(Table_NCInspection['# Lamps/ Fixture '[P']],MATCH(Table_NCSummary[[#This Row],[Line Item]],Table_NCInspection[Line],0)),Table_NCInfo[[#This Row],['# Lamps/ Fixture '[P']]]),\"\"),\"\")","v":""},{"$f":"IFERROR(IF(Table_NCSummary[[#This Row],[IsActive]],IF(ISNUMBER(MATCH(Table_NCInfo[[#This Row],[Line]],Table_NCInspection[Line],0)),INDEX(Table_NCInspection[Fixture/ Lamp Wattage '[P']],MATCH(Table_NCSummary[[#This Row],[Line Item]],Table_NCInspection[Line],0)),Table_NCInfo[[#This Row],[Fixture/ Lamp Wattage '[P']]]),\"\"),\"\")","v":""},{"$f":"IFERROR(IF(Table_NCSummary[[#This Row],[IsActive]],IF(ISNUMBER(MATCH(Table_NCInfo[[#This Row],[Line]],Table_NCInspection[Line],0)),INDEX(Table_NCInspection[Fixture Qty '[P']],MATCH(Table_NCSummary[[#This Row],[Line Item]],Table_NCInspection[Line],0)),Table_NCInfo[[#This Row],[Fixture Qty '[P']]]),\"\"),\"\")","v":""},{"$f":"IFERROR(IF(Table_NCSummary[[#This Row],[IsActive]],Table_NCSummary[[#This Row],['# Lamps/ Fixture '[P']]]*Table_NCSummary[[#This Row],[P. Qty]],\"\"),\"\")","v":""},{"$f":"IFERROR(IF(Table_NCSummary[[#This Row],[IsActive]],IF(ISNUMBER(MATCH(Table_NCInfo[[#This Row],[Line]],Table_NCInspection[Line],0)),INDEX(Table_NCInspection[Fixture Wattage '[P']],MATCH(Table_NCSummary[[#This Row],[Line Item]],Table_NCInspection[Line],0)),Table_NCInfo[[#This Row],[Fixture Wattage '[P']]]),\"\"),\"\")","v":""},{"$f":"IFERROR(Table_NCSummary[[#This Row],[P. Qty]]*Table_NCSummary[[#This Row],[Proposed Fixture Wattage]],\"\")","v":""},{"$f":"IFERROR(Table_NCSummary[[#This Row],[Proposed Fixture Wattage]]/1000*Table_NCSummary[[#This Row],[OpHrs]]*Table_NCSummary[[#This Row],[P. Qty]],\"\")","v":""},{"$f":"IFERROR(IF(Table_NCSummary[[#This Row],[IsActive]],IFERROR(VLOOKUP(RIGHT(Table_NCSummary[[#This Row],[Proposed Fixture]],LEN(Table_NCSummary[[#This Row],[Proposed Fixture]])-FIND(\" - \",Table_NCSummary[[#This Row],[Proposed Fixture]],FIND(\"]\",Table_NCSummary[[#This Row],[Proposed Fixture]],1))-2),Table_ControlType[],3, FALSE),Table_NCSummary[[#This Row],[Existing CSF]]),\"\"),\"\")","v":""},{"$f":"IFERROR(IF(Table_NCSummary[[#This Row],[IsActive]],IFERROR(Table_NCSummary[[#This Row],[Proposed Fixture Wattage]]/1000*Table_NCSummary[[#This Row],[OpHrs]]*Table_NCSummary[[#This Row],[P. Qty]]*Table_NCSummary[[#This Row],[Existing CSF]]*(-1),0),\"\"),\"\")","v":""},{"$f":"IFERROR(Table_NCSummary[[#This Row],[Proposed Fixture kWh]]+Table_NCSummary[[#This Row],[Proposed Fixture (Existing Controls) kWh]],\"\")","v":""},{"$f":"IFERROR(IF(Table_NCSummary[[#This Row],[IsActive]],IFERROR(Table_NCSummary[[#This Row],[Proposed Fixture Wattage]]/1000*Table_NCSummary[[#This Row],[OpHrs]]*Table_NCSummary[[#This Row],[P. Qty]]*Table_NCSummary[[#This Row],[Proposed CSF]]*(-1),0),\"\"),\"\")","v":""},{"$f":"IFERROR(Table_NCSummary[[#This Row],[Proposed Fixture kWh]]+Table_NCSummary[[#This Row],[Proposed Fixture (Proposed Controls) kWh]],\"\")","v":""},null,{"$f":"IFERROR(IF(Table_NCSummary[[#This Row],[IsActive]],IF((1-SUMPRODUCT(Table_NCSummary[P. Qty],Table_NCSummary[Proposed Fixture Wattage])/SUM(Table_NCSummary[Baseline Wattage]))<0.1,\"Does Not Qualify [Overall Fixture Reduction is less than 10%]\",IF(ISNUMBER(FIND(\"LED\",Table_NCSummary[[#This Row],[Proposed Fixture]],1)),IF(ISNUMBER(FIND(\"LED Tube\",Table_NCSummary[[#This Row],[Proposed Fixture]],1)),\"New Construction Interior LED Fixture\",IF(ISNUMBER(FIND(\"LED\",Table_NCSummary[[#This Row],[Proposed Fixture]],1)),IF(Table_NCInfo[[#This Row],[Interior/ Exterior]]=\"Exterior\",\"New Construction Exterior LED Fixture\",\"New Construction Interior LED Fixture\"),\"Ineligible Fixture\")),\"Ineligible Fixture\")),\"\"),\"\")","v":""},{"$f":"IFERROR(VLOOKUP(Table_NCSummary[[#This Row],[Fixture Measure Description]],Table_FixtureRate[],2,FALSE),\"\")","v":""},{"$f":"IFERROR(IF(Table_NCSummary[[#This Row],[IsActive]],IF((1-SUMPRODUCT(Table_NCSummary[P. Qty],Table_NCSummary[Proposed Fixture Wattage])/SUM(Table_NCSummary[Baseline Wattage]))<0.1,\"DNQ [kW Reduction <10%]\",IF(Table_NCSummary[[#This Row],[Fixture Measure Description]]=\"Ineligible Fixture\",0,ROUND(Table_NCSummary[[#This Row],[Fixture Rebate (per kW)]]*(Table_NCSummary[[#This Row],[Baseline Wattage]]-Table_NCSummary[[#This Row],[Proposed Wattage]])/1000,2))),\"\"),\"\")","v":""},{"$f":"IFERROR(IF(Table_NCSummary[[#This Row],[Fixture Measure Description]]=\"Ineligible Fixture\",0,ROUND(IF(ProjectCost_Total=0,300000,ProjectCost_Total)*Table_NCSummary[[#This Row],[Fixture Rebate]]/SUM(Table_NCSummary[Fixture Rebate],Table_NCSummary[Controls Rebate]),2)),\"\")","v":""},{"$f":"IFERROR(IF(Table_NCSummary[[#This Row],[IsActive]],IF((1-SUMPRODUCT(Table_NCSummary[P. Qty],Table_NCSummary[Proposed Fixture Wattage])/SUM(Table_NCSummary[Baseline Wattage]))<0.1,\"DNQ [kW Reduction <10%]\",IF(Table_NCSummary[[#This Row],[Fixture Measure Description]]=\"Ineligible Fixture\",0,Table_NCSummary[[#This Row],[Existing Overall kWh]]-Table_NCSummary[[#This Row],[Proposed Overall kWh (Existing Controls)]])),\"\"),\"\")","v":""},{"$f":"IFERROR(IF(Table_NCSummary[[#This Row],[IsActive]],IF((1-SUMPRODUCT(Table_NCSummary[P. Qty],Table_NCSummary[Proposed Fixture Wattage])/SUM(Table_NCSummary[Baseline Wattage]))<0.1,\"DNQ [kW Reduction <10%]\",IF(OR(Table_NCSummary[[#This Row],[Fixture Measure Description]]=\"Ineligible Fixture\",Table_NCSummary[[#This Row],[Fixture Measure Description]]=\"New Construction Exterior LED Fixture\"),0,(Table_NCSummary[[#This Row],[Baseline kWh]]-Table_NCSummary[[#This Row],[Proposed Fixture kWh]])/Table_NCSummary[[#This Row],[OpHrs]]*Table_NCSummary[[#This Row],[CF (Ltg)]]*Table_NCSummary[[#This Row],[DF (Ltg)]])),\"\"),\"\")","v":""},null,{"$f":"IFERROR(\n  IF(OR(Table_NCSummary[[#This Row],[Fixture Measure Description]]=\"\",Table_NCSummary[[#This Row],[Fixture Measure Description]]=\"Ineligible Fixture\"),\n    \"\",\n    \"New Construction\"\n    & \" - \" &\n    IFERROR(VLOOKUP(RIGHT(Table_NCSummary[[#This Row],[Proposed Fixture]],LEN(Table_NCSummary[[#This Row],[Proposed Fixture]])-FIND(\" - \",Table_NCSummary[[#This Row],[Proposed Fixture]],FIND(\"]\",Table_NCSummary[[#This Row],[Proposed Fixture]],1))-2),Table_ControlType[],2, FALSE),None)),\n\"\")","v":""},{"$f":"IFERROR(VLOOKUP(Table_NCSummary[[#This Row],[Controls Measure Description]],Table_ControlRate[],2,FALSE),\"\")","v":""},{"$f":"IFERROR(IF(Table_NCSummary[[#This Row],[IsActive]],IF((1-SUMPRODUCT(Table_NCSummary[P. Qty],Table_NCSummary[Proposed Fixture Wattage])/SUM(Table_NCSummary[Baseline Wattage]))<0.1,\"DNQ [kW Reduction <10%]\",IF(OR(Table_NCSummary[[#This Row],[Controls Measure Description]]=\"\",Table_NCSummary[[#This Row],[Controls Measure Description]]=\"New Construction - No Controls\"),0,ROUND(Table_NCSummary[[#This Row],[Controls Rebate (per Fixt Watt)]]*Table_NCSummary[[#This Row],[Proposed Fixture Wattage]]*Table_NCSummary[[#This Row],[P. Qty]],2))),\"\"),\"\")","v":""},{"$f":"IFERROR(IF(Table_NCSummary[[#This Row],[Fixture Measure Description]]=\"Ineligible Fixture\",0,ROUND(IF(ProjectCost_Total=0,300000,ProjectCost_Total)*Table_NCSummary[[#This Row],[Controls Rebate]]/SUM(Table_NCSummary[Fixture Rebate],Table_NCSummary[Controls Rebate]),2)),\"\")","v":""},{"$f":"IFERROR(IF(Table_NCSummary[[#This Row],[IsActive]],IF((1-SUMPRODUCT(Table_NCSummary[P. Qty],Table_NCSummary[Proposed Fixture Wattage])/SUM(Table_NCSummary[Baseline Wattage]))<0.1,\"DNQ [kW Reduction <10%]\",IF(Table_NCSummary[[#This Row],[Controls Measure Description]]=\"\",0,(Table_NCSummary[[#This Row],[Proposed Fixture (Existing Controls) kWh]]-Table_NCSummary[[#This Row],[Proposed Fixture (Proposed Controls) kWh]]))),\"\"),\"\")","v":""},{"$f":"IFERROR(IF(Table_NCSummary[[#This Row],[IsActive]],IF((1-SUMPRODUCT(Table_NCSummary[P. Qty],Table_NCSummary[Proposed Fixture Wattage])/SUM(Table_NCSummary[Baseline Wattage]))<0.1,\"DNQ [kW Reduction <10%]\",IF(OR(Table_NCSummary[[#This Row],[Controls Measure Description]]=\"\",Table_NCSummary[[#This Row],[Controls Measure Description]]=\"New Construction - No Controls\"),0,(Table_NCSummary[[#This Row],[Proposed Fixture (Existing Controls) kWh]]-Table_NCSummary[[#This Row],[Proposed Fixture (Proposed Controls) kWh]])/Table_NCSummary[[#This Row],[OpHrs]]*Table_NCSummary[[#This Row],[CF (Ltg)]]*Table_NCSummary[[#This Row],[DF (Ltg)]])),\"\"),\"\")","v":""},null,{"$f":"IFERROR(IF(NOT(ISNUMBER(Table_NCSummary[[#This Row],[Fixture Rebate]])),\"\",IF(MIN(IF(Table_NCSummary[[#This Row],[Fixture Cost]]<0,0,SUM(Table_NCSummary[Fixture Cost],Table_NCSummary[Controls Cost])),SUM(Table_NCSummary[Fixture Rebate],Table_NCSummary[Controls Rebate]))>300000,300000/MIN(IF(Table_NCSummary[[#This Row],[Fixture Cost]]<0,0,SUM(Table_NCSummary[Fixture Cost],Table_NCSummary[Controls Cost])),SUM(Table_NCSummary[Fixture Rebate],Table_NCSummary[Controls Rebate]))*MIN(IF(Table_NCSummary[[#This Row],[Fixture Cost]]<0,0,SUM(Table_NCSummary[Fixture Cost],Table_NCSummary[Controls Cost])),Table_NCSummary[[#This Row],[Fixture Rebate]]+IF(Table_NCSummary[[#This Row],[Controls Rebate]]=\"\",0,Table_NCSummary[[#This Row],[Controls Rebate]])),MIN(IF(Table_NCSummary[[#This Row],[Fixture Cost]]<0,0,SUM(Table_NCSummary[Fixture Cost],Table_NCSummary[Controls Cost])),Table_NCSummary[[#This Row],[Fixture Rebate]]+IF(Table_NCSummary[[#This Row],[Controls Rebate]]=\"\",0,Table_NCSummary[[#This Row],[Controls Rebate]])))),\"\")","v":""},{"$f":"IFERROR(IF(Table_NCSummary[[#This Row],[Fixture Cost]]=\"\",\"\",Table_NCSummary[[#This Row],[Fixture Cost]]+IF(Table_NCSummary[[#This Row],[Controls Cost]]=\"\",0,Table_NCSummary[[#This Row],[Controls Cost]])),\"\")","v":""},{"$f":"IFERROR(IF(Table_NCSummary[[#This Row],[IsActive]],IF(NOT(ISNUMBER(Table_NCSummary[[#This Row],[Fixture Rebate]])),\"\",IF(Table_NCInfo[[#This Row],[Interior/ Exterior]]=\"Interior\",IFERROR((Table_NCSummary[[#This Row],[Annual Fixture Savings (kWh)]]+Table_NCSummary[[#This Row],[Annual Control Savings (kWh)]])*(Table_NCSummary[[#This Row],[EIF]]-1),0),0)),\"\"),\"\")","v":""},{"$f":"IFERROR(IF(Table_NCSummary[[#This Row],[IsActive]],IF(NOT(ISNUMBER(Table_NCSummary[[#This Row],[Fixture Rebate]])),\"\",IF(Table_NCInfo[[#This Row],[Interior/ Exterior]]=\"Interior\",IFERROR((Table_NCSummary[[#This Row],[Fixture kW Reduction]]+Table_NCSummary[[#This Row],[Control kW Reduction]]/(Table_NCSummary[[#This Row],[CF (Ltg)]]*Table_NCSummary[[#This Row],[DF (Ltg)]]))*(Table_NCSummary[[#This Row],[DIF]]-1)*Table_NCSummary[[#This Row],[CF (HVAC)]]*Table_NCSummary[[#This Row],[DF (HVAC)]],0),0)),\"\"),\"\")","v":""},{"$f":"IFERROR(IF(Table_NCSummary[[#This Row],[IsActive]],IF(NOT(ISNUMBER(Table_NCSummary[[#This Row],[Fixture Rebate]])),\"\",ROUND(Table_NCSummary[[#This Row],[Annual Fixture Savings (kWh)]]+Table_NCSummary[[#This Row],[Annual Control Savings (kWh)]],0)),\"\"),\"\")","v":""},{"$f":"IFERROR(IF(Table_NCSummary[[#This Row],[IsActive]],IF(NOT(ISNUMBER(Table_NCSummary[[#This Row],[Fixture Rebate]])),\"\",ROUND(Table_NCSummary[[#This Row],[Fixture kW Reduction]]+Table_NCSummary[[#This Row],[Control kW Reduction]],3)),\"\"),\"\")","v":""},{"$f":"IFERROR(IF(Table_NCSummary[[#This Row],[IsActive]],IF(NOT(ISNUMBER(Table_NCSummary[[#This Row],[Fixture Rebate]])),\"\",ROUND(Table_NCSummary[[#This Row],[Fixture Energy Savings (kWh)]]+Table_NCSummary[[#This Row],[Induced HVAC Energy Savings (kWh)]],0)),\"\"),\"\")","v":""},{"$f":"IFERROR(IF(Table_NCSummary[[#This Row],[IsActive]],IF(NOT(ISNUMBER(Table_NCSummary[[#This Row],[Fixture Rebate]])),\"\",ROUND(Table_NCSummary[[#This Row],[Fixture Demand Savings (kW)]]+Table_NCSummary[[#This Row],[Induced HVAC Demand Savings (kW)]],3)),\"\"),\"\")","v":""}]
[{"$f":"IFERROR(Table_NCInfo[[#This Row],[Line]],\"\")","v":33},{"$f":"IFERROR(Table_NCInfo[[#This Row],[IsActive]],\"\")","v":false},{"$f":"IFERROR(IF(Table_NCSummary[[#This Row],[IsActive]],VLOOKUP(IF(ISNUMBER(MATCH(Table_NCInfo[[#This Row],[Line]],Table_NCInspection[Line],0)),INDEX(Table_NCInspection[Schedule],MATCH(Table_NCSummary[[#This Row],[Line Item]],Table_NCInspection[Line],0)),Table_NCInfo[[#This Row],[Schedule]]),'Customer Information'!$S$27:$T$34,2,FALSE),\"\"),\"\")","v":""},{"$f":"IFERROR(IF(Table_NCSummary[[#This Row],[IsActive]],INDEX(Table_IntLookups[EIF],MATCH(IF(ISNUMBER(MATCH(Table_NCSummary[[#This Row],[Line Item]],Table_NCInspection[Line],0)),INDEX(Table_NCInspection[Zone Description],MATCH(Table_NCSummary[[#This Row],[Line Item]],Table_NCInfo[Line],0)),Table_NCInfo[[#This Row],[Zone Description]]),Table_IntLookups[Dropdown],0)),\"\"),\"\")","v":""},{"$f":"IFERROR(IF(Table_NCSummary[[#This Row],[IsActive]],INDEX(Table_IntLookups[DIF],MATCH(IF(ISNUMBER(MATCH(Table_NCSummary[[#This Row],[Line Item]],Table_NCInspection[Line],0)),INDEX(Table_NCInspection[Zone Description],MATCH(Table_NCSummary[[#This Row],[Line Item]],Table_NCInfo[Line],0)),Table_NCInfo[[#This Row],[Zone Description]]),Table_IntLookups[Dropdown],0)),\"\"),\"\")","v":""},{"$f":"IFERROR(IF(Table_NCSummary[[#This Row],[IsActive]],INDEX(Table_IntLookups[CFltg],MATCH(IF(ISNUMBER(MATCH(Table_NCSummary[[#This Row],[Line Item]],Table_NCInspection[Line],0)),INDEX(Table_NCInspection[Zone Description],MATCH(Table_NCSummary[[#This Row],[Line Item]],Table_NCInfo[Line],0)),Table_NCInfo[[#This Row],[Zone Description]]),Table_IntLookups[Dropdown],0)),\"\"),\"\")","v":""},{"$f":"IFERROR(IF(Table_NCSummary[[#This Row],[IsActive]],INDEX(Table_IntLookups[DFltg],MATCH(IF(ISNUMBER(MATCH(Table_NCSummary[[#This Row],[Line Item]],Table_NCInspection[Line],0)),INDEX(Table_NCInspection[Zone Description],MATCH(Table_NCSummary[[#This Row],[Line Item]],Table_NCInfo[Line],0)),Table_NCInfo[[#This Row],[Zone Description]]),Table_IntLookups[Dropdown],0)),\"\"),\"\")","v":""},{"$f":"IFERROR(IF(Table_NCSummary[[#This Row],[IsActive]],INDEX(Table_IntLookups[Cfhvac],MATCH(IF(ISNUMBER(MATCH(Table_NCSummary[[#This Row],[Line Item]],Table_NCInspection[Line],0)),INDEX(Table_NCInspection[Zone Description],MATCH(Table_NCSummary[[#This Row],[Line Item]],Table_NCInfo[Line],0)),Table_NCInfo[[#This Row],[Zone Description]]),Table_IntLookups[Dropdown],0)),\"\"),\"\")","v":""},{"$f":"IFERROR(IF(Table_NCSummary[[#This Row],[IsActive]],INDEX(Table_IntLookups[Dfhvac],MATCH(IF(ISNUMBER(MATCH(Table_NCSummary[[#This Row],[Line Item]],Table_NCInspection[Line],0)),INDEX(Table_NCInspection[Zone Description],MATCH(Table_NCSummary[[#This Row],[Line Item]],Table_NCInfo[Line],0)),Table_NCInfo[[#This Row],[Zone Description]]),Table_IntLookups[Dropdown],0)),\"\"),\"\")","v":""},{"$f":"IFERROR(IF(Table_NCSummary[[#This Row],[IsActive]],\nIF(ISNUMBER(MATCH(Table_NCInfo[[#This Row],[Line]],Table_NCInspection[Line],0)),INDEX(Table_NCInspection[Zone Description],MATCH(Table_NCSummary[[#This Row],[Line Item]],Table_NCInspection[Line],0)),Table_NCInfo[[#This Row],[Zone Description]]),\n \"\"),\"\")","v":""},{"$f":"IFERROR(IF(Table_NCSummary[[#This Row],[IsActive]],\nCONCATENATE(\nIF(ISNUMBER(MATCH(Table_NCInfo[[#This Row],[Line]],Table_NCInspection[Line],0)),INDEX(Table_NCInspection[Interior/ Exterior],MATCH(Table_NCSummary[[#This Row],[Line Item]],Table_NCInspection[Line],0)),Table_NCInfo[[#This Row],[Interior/ Exterior]]),\n\" - \",\nIF(ISNUMBER(MATCH(Table_NCInfo[[#This Row],[Line]],Table_NCInspection[Line],0)),INDEX(Table_NCInspection[Space Description],MATCH(Table_NCSummary[[#This Row],[Line Item]],Table_NCInspection[Line],0)),Table_NCInfo[[#This Row],[Space Description]])),\n \"\"),\"\")","v":""},{"$f":"IFERROR(IF(ISNUMBER(MATCH(Table_NCInfo[[#This Row],[Line]],Table_NCInspection[Line],0)),INDEX(Table_NCInspection[Baseline Wattage],MATCH(Table_NCSummary[[#This Row],[Line Item]],Table_NCInspection[Line],0)),Table_NCInfo[[#This Row],[Baseline Wattage]]),\"\")","v":""},{"$f":"IFERROR(IF(Table_NCSummary[[#This Row],[IsActive]],Table_NCSummary[[#This Row],[Baseline Wattage]]/1000*Table_NCSummary[[#This Row],[OpHrs]],\"\"),\"\")","v":""},{"$f":"IFERROR(IF(Table_NCSummary[[#This Row],[IsActive]],IFERROR(VLOOKUP(IF(ISNUMBER(MATCH(Table_NCSummary[[#This Row],[Line Item]],Table_NCInspection[Line],0)),INDEX(Table_NCInspection[Zone '#],MATCH(Table_NCSummary[[#This Row],[Line Item]],Table_NCInspection[Line],0)),Table_NCInfo[[#This Row],[Zone '#]]),Table_IntLookups[],'Facility Information'!$AA$4,FALSE),0),\"\"),\"\")","v":""},{"$f":"IFERROR(IF(Table_NCSummary[[#This Row],[IsActive]],IFERROR(Table_NCSummary[[#This Row],[Baseline Wattage]]/1000*Table_NCSummary[[#This Row],[OpHrs]]*Table_NCSummary[[#This Row],[Existing CSF]]*(-1),0),\"\"),\"\")","v":""},{"$f":"IFERROR(Table_NCSummary[[#This Row],[Baseline kWh]]+Table_NCSummary[[#This Row],[Existing Fixture (Existing Controls) kWh]],\"\")","v":""},{"$f":"IFERROR(IF(Table_NCSummary[[#This Row],[IsActive]],IF(ISNUMBER(MATCH(Table_NCInfo[[#This Row],[Line]],Table_NCInspection[Line],0)),INDEX(Table_NCInspection[Fixture Description '[P']],MATCH(Table_NCSummary[[#This Row],[Line Item]],Table_NCInspection[Line],0)),Table_NCInfo[[#This Row],[Fixture Description '[P']]]),\"\"),\"\")","v":""},{"$f":"IFERROR(IF(Table_NCSummary[[#This Row],[IsActive]],IF(ISNUMBER(MATCH(Table_NCInfo[[#This Row],[Line]],Table_NCInspection[Line],0)),INDEX(Table_NCInspection['# Lamps/ Fixture '[P']],MATCH(Table_NCSummary[[#This Row],[Line Item]],Table_NCInspection[Line],0)),Table_NCInfo[[#This Row],['# Lamps/ Fixture '[P']]]),\"\"),\"\")","v":""},{"$f":"IFERROR(IF(Table_NCSummary[[#This Row],[IsActive]],IF(ISNUMBER(MATCH(Table_NCInfo[[#This Row],[Line]],Table_NCInspection[Line],0)),INDEX(Table_NCInspection[Fixture/ Lamp Wattage '[P']],MATCH(Table_NCSummary[[#This Row],[Line Item]],Table_NCInspection[Line],0)),Table_NCInfo[[#This Row],[Fixture/ Lamp Wattage '[P']]]),\"\"),\"\")","v":""},{"$f":"IFERROR(IF(Table_NCSummary[[#This Row],[IsActive]],IF(ISNUMBER(MATCH(Table_NCInfo[[#This Row],[Line]],Table_NCInspection[Line],0)),INDEX(Table_NCInspection[Fixture Qty '[P']],MATCH(Table_NCSummary[[#This Row],[Line Item]],Table_NCInspection[Line],0)),Table_NCInfo[[#This Row],[Fixture Qty '[P']]]),\"\"),\"\")","v":""},{"$f":"IFERROR(IF(Table_NCSummary[[#This Row],[IsActive]],Table_NCSummary[[#This Row],['# Lamps/ Fixture '[P']]]*Table_NCSummary[[#This Row],[P. Qty]],\"\"),\"\")","v":""},{"$f":"IFERROR(IF(Table_NCSummary[[#This Row],[IsActive]],IF(ISNUMBER(MATCH(Table_NCInfo[[#This Row],[Line]],Table_NCInspection[Line],0)),INDEX(Table_NCInspection[Fixture Wattage '[P']],MATCH(Table_NCSummary[[#This Row],[Line Item]],Table_NCInspection[Line],0)),Table_NCInfo[[#This Row],[Fixture Wattage '[P']]]),\"\"),\"\")","v":""},{"$f":"IFERROR(Table_NCSummary[[#This Row],[P. Qty]]*Table_NCSummary[[#This Row],[Proposed Fixture Wattage]],\"\")","v":""},{"$f":"IFERROR(Table_NCSummary[[#This Row],[Proposed Fixture Wattage]]/1000*Table_NCSummary[[#This Row],[OpHrs]]*Table_NCSummary[[#This Row],[P. Qty]],\"\")","v":""},{"$f":"IFERROR(IF(Table_NCSummary[[#This Row],[IsActive]],IFERROR(VLOOKUP(RIGHT(Table_NCSummary[[#This Row],[Proposed Fixture]],LEN(Table_NCSummary[[#This Row],[Proposed Fixture]])-FIND(\" - \",Table_NCSummary[[#This Row],[Proposed Fixture]],FIND(\"]\",Table_NCSummary[[#This Row],[Proposed Fixture]],1))-2),Table_ControlType[],3, FALSE),Table_NCSummary[[#This Row],[Existing CSF]]),\"\"),\"\")","v":""},{"$f":"IFERROR(IF(Table_NCSummary[[#This Row],[IsActive]],IFERROR(Table_NCSummary[[#This Row],[Proposed Fixture Wattage]]/1000*Table_NCSummary[[#This Row],[OpHrs]]*Table_NCSummary[[#This Row],[P. Qty]]*Table_NCSummary[[#This Row],[Existing CSF]]*(-1),0),\"\"),\"\")","v":""},{"$f":"IFERROR(Table_NCSummary[[#This Row],[Proposed Fixture kWh]]+Table_NCSummary[[#This Row],[Proposed Fixture (Existing Controls) kWh]],\"\")","v":""},{"$f":"IFERROR(IF(Table_NCSummary[[#This Row],[IsActive]],IFERROR(Table_NCSummary[[#This Row],[Proposed Fixture Wattage]]/1000*Table_NCSummary[[#This Row],[OpHrs]]*Table_NCSummary[[#This Row],[P. Qty]]*Table_NCSummary[[#This Row],[Proposed CSF]]*(-1),0),\"\"),\"\")","v":""},{"$f":"IFERROR(Table_NCSummary[[#This Row],[Proposed Fixture kWh]]+Table_NCSummary[[#This Row],[Proposed Fixture (Proposed Controls) kWh]],\"\")","v":""},null,{"$f":"IFERROR(IF(Table_NCSummary[[#This Row],[IsActive]],IF((1-SUMPRODUCT(Table_NCSummary[P. Qty],Table_NCSummary[Proposed Fixture Wattage])/SUM(Table_NCSummary[Baseline Wattage]))<0.1,\"Does Not Qualify [Overall Fixture Reduction is less than 10%]\",IF(ISNUMBER(FIND(\"LED\",Table_NCSummary[[#This Row],[Proposed Fixture]],1)),IF(ISNUMBER(FIND(\"LED Tube\",Table_NCSummary[[#This Row],[Proposed Fixture]],1)),\"New Construction Interior LED Fixture\",IF(ISNUMBER(FIND(\"LED\",Table_NCSummary[[#This Row],[Proposed Fixture]],1)),IF(Table_NCInfo[[#This Row],[Interior/ Exterior]]=\"Exterior\",\"New Construction Exterior LED Fixture\",\"New Construction Interior LED Fixture\"),\"Ineligible Fixture\")),\"Ineligible Fixture\")),\"\"),\"\")","v":""},{"$f":"IFERROR(VLOOKUP(Table_NCSummary[[#This Row],[Fixture Measure Description]],Table_FixtureRate[],2,FALSE),\"\")","v":""},{"$f":"IFERROR(IF(Table_NCSummary[[#This Row],[IsActive]],IF((1-SUMPRODUCT(Table_NCSummary[P. Qty],Table_NCSummary[Proposed Fixture Wattage])/SUM(Table_NCSummary[Baseline Wattage]))<0.1,\"DNQ [kW Reduction <10%]\",IF(Table_NCSummary[[#This Row],[Fixture Measure Description]]=\"Ineligible Fixture\",0,ROUND(Table_NCSummary[[#This Row],[Fixture Rebate (per kW)]]*(Table_NCSummary[[#This Row],[Baseline Wattage]]-Table_NCSummary[[#This Row],[Proposed Wattage]])/1000,2))),\"\"),\"\")","v":""},{"$f":"IFERROR(IF(Table_NCSummary[[#This Row],[Fixture Measure Description]]=\"Ineligible Fixture\",0,ROUND(IF(ProjectCost_Total=0,300000,ProjectCost_Total)*Table_NCSummary[[#This Row],[Fixture Rebate]]/SUM(Table_NCSummary[Fixture Rebate],Table_NCSummary[Controls Rebate]),2)),\"\")","v":""},{"$f":"IFERROR(IF(Table_NCSummary[[#This Row],[IsActive]],IF((1-SUMPRODUCT(Table_NCSummary[P. Qty],Table_NCSummary[Proposed Fixture Wattage])/SUM(Table_NCSummary[Baseline Wattage]))<0.1,\"DNQ [kW Reduction <10%]\",IF(Table_NCSummary[[#This Row],[Fixture Measure Description]]=\"Ineligible Fixture\",0,Table_NCSummary[[#This Row],[Existing Overall kWh]]-Table_NCSummary[[#This Row],[Proposed Overall kWh (Existing Controls)]])),\"\"),\"\")","v":""},{"$f":"IFERROR(IF(Table_NCSummary[[#This Row],[IsActive]],IF((1-SUMPRODUCT(Table_NCSummary[P. Qty],Table_NCSummary[Proposed Fixture Wattage])/SUM(Table_NCSummary[Baseline Wattage]))<0.1,\"DNQ [kW Reduction <10%]\",IF(OR(Table_NCSummary[[#This Row],[Fixture Measure Description]]=\"Ineligible Fixture\",Table_NCSummary[[#This Row],[Fixture Measure Description]]=\"New Construction Exterior LED Fixture\"),0,(Table_NCSummary[[#This Row],[Baseline kWh]]-Table_NCSummary[[#This Row],[Proposed Fixture kWh]])/Table_NCSummary[[#This Row],[OpHrs]]*Table_NCSummary[[#This Row],[CF (Ltg)]]*Table_NCSummary[[#This Row],[DF (Ltg)]])),\"\"),\"\")","v":""},null,{"$f":"IFERROR(\n  IF(OR(Table_NCSummary[[#This Row],[Fixture Measure Description]]=\"\",Table_NCSummary[[#This Row],[Fixture Measure Description]]=\"Ineligible Fixture\"),\n    \"\",\n    \"New Construction\"\n    & \" - \" &\n    IFERROR(VLOOKUP(RIGHT(Table_NCSummary[[#This Row],[Proposed Fixture]],LEN(Table_NCSummary[[#This Row],[Proposed Fixture]])-FIND(\" - \",Table_NCSummary[[#This Row],[Proposed Fixture]],FIND(\"]\",Table_NCSummary[[#This Row],[Proposed Fixture]],1))-2),Table_ControlType[],2, FALSE),None)),\n\"\")","v":""},{"$f":"IFERROR(VLOOKUP(Table_NCSummary[[#This Row],[Controls Measure Description]],Table_ControlRate[],2,FALSE),\"\")","v":""},{"$f":"IFERROR(IF(Table_NCSummary[[#This Row],[IsActive]],IF((1-SUMPRODUCT(Table_NCSummary[P. Qty],Table_NCSummary[Proposed Fixture Wattage])/SUM(Table_NCSummary[Baseline Wattage]))<0.1,\"DNQ [kW Reduction <10%]\",IF(OR(Table_NCSummary[[#This Row],[Controls Measure Description]]=\"\",Table_NCSummary[[#This Row],[Controls Measure Description]]=\"New Construction - No Controls\"),0,ROUND(Table_NCSummary[[#This Row],[Controls Rebate (per Fixt Watt)]]*Table_NCSummary[[#This Row],[Proposed Fixture Wattage]]*Table_NCSummary[[#This Row],[P. Qty]],2))),\"\"),\"\")","v":""},{"$f":"IFERROR(IF(Table_NCSummary[[#This Row],[Fixture Measure Description]]=\"Ineligible Fixture\",0,ROUND(IF(ProjectCost_Total=0,300000,ProjectCost_Total)*Table_NCSummary[[#This Row],[Controls Rebate]]/SUM(Table_NCSummary[Fixture Rebate],Table_NCSummary[Controls Rebate]),2)),\"\")","v":""},{"$f":"IFERROR(IF(Table_NCSummary[[#This Row],[IsActive]],IF((1-SUMPRODUCT(Table_NCSummary[P. Qty],Table_NCSummary[Proposed Fixture Wattage])/SUM(Table_NCSummary[Baseline Wattage]))<0.1,\"DNQ [kW Reduction <10%]\",IF(Table_NCSummary[[#This Row],[Controls Measure Description]]=\"\",0,(Table_NCSummary[[#This Row],[Proposed Fixture (Existing Controls) kWh]]-Table_NCSummary[[#This Row],[Proposed Fixture (Proposed Controls) kWh]]))),\"\"),\"\")","v":""},{"$f":"IFERROR(IF(Table_NCSummary[[#This Row],[IsActive]],IF((1-SUMPRODUCT(Table_NCSummary[P. Qty],Table_NCSummary[Proposed Fixture Wattage])/SUM(Table_NCSummary[Baseline Wattage]))<0.1,\"DNQ [kW Reduction <10%]\",IF(OR(Table_NCSummary[[#This Row],[Controls Measure Description]]=\"\",Table_NCSummary[[#This Row],[Controls Measure Description]]=\"New Construction - No Controls\"),0,(Table_NCSummary[[#This Row],[Proposed Fixture (Existing Controls) kWh]]-Table_NCSummary[[#This Row],[Proposed Fixture (Proposed Controls) kWh]])/Table_NCSummary[[#This Row],[OpHrs]]*Table_NCSummary[[#This Row],[CF (Ltg)]]*Table_NCSummary[[#This Row],[DF (Ltg)]])),\"\"),\"\")","v":""},null,{"$f":"IFERROR(IF(NOT(ISNUMBER(Table_NCSummary[[#This Row],[Fixture Rebate]])),\"\",IF(MIN(IF(Table_NCSummary[[#This Row],[Fixture Cost]]<0,0,SUM(Table_NCSummary[Fixture Cost],Table_NCSummary[Controls Cost])),SUM(Table_NCSummary[Fixture Rebate],Table_NCSummary[Controls Rebate]))>300000,300000/MIN(IF(Table_NCSummary[[#This Row],[Fixture Cost]]<0,0,SUM(Table_NCSummary[Fixture Cost],Table_NCSummary[Controls Cost])),SUM(Table_NCSummary[Fixture Rebate],Table_NCSummary[Controls Rebate]))*MIN(IF(Table_NCSummary[[#This Row],[Fixture Cost]]<0,0,SUM(Table_NCSummary[Fixture Cost],Table_NCSummary[Controls Cost])),Table_NCSummary[[#This Row],[Fixture Rebate]]+IF(Table_NCSummary[[#This Row],[Controls Rebate]]=\"\",0,Table_NCSummary[[#This Row],[Controls Rebate]])),MIN(IF(Table_NCSummary[[#This Row],[Fixture Cost]]<0,0,SUM(Table_NCSummary[Fixture Cost],Table_NCSummary[Controls Cost])),Table_NCSummary[[#This Row],[Fixture Rebate]]+IF(Table_NCSummary[[#This Row],[Controls Rebate]]=\"\",0,Table_NCSummary[[#This Row],[Controls Rebate]])))),\"\")","v":""},{"$f":"IFERROR(IF(Table_NCSummary[[#This Row],[Fixture Cost]]=\"\",\"\",Table_NCSummary[[#This Row],[Fixture Cost]]+IF(Table_NCSummary[[#This Row],[Controls Cost]]=\"\",0,Table_NCSummary[[#This Row],[Controls Cost]])),\"\")","v":""},{"$f":"IFERROR(IF(Table_NCSummary[[#This Row],[IsActive]],IF(NOT(ISNUMBER(Table_NCSummary[[#This Row],[Fixture Rebate]])),\"\",IF(Table_NCInfo[[#This Row],[Interior/ Exterior]]=\"Interior\",IFERROR((Table_NCSummary[[#This Row],[Annual Fixture Savings (kWh)]]+Table_NCSummary[[#This Row],[Annual Control Savings (kWh)]])*(Table_NCSummary[[#This Row],[EIF]]-1),0),0)),\"\"),\"\")","v":""},{"$f":"IFERROR(IF(Table_NCSummary[[#This Row],[IsActive]],IF(NOT(ISNUMBER(Table_NCSummary[[#This Row],[Fixture Rebate]])),\"\",IF(Table_NCInfo[[#This Row],[Interior/ Exterior]]=\"Interior\",IFERROR((Table_NCSummary[[#This Row],[Fixture kW Reduction]]+Table_NCSummary[[#This Row],[Control kW Reduction]]/(Table_NCSummary[[#This Row],[CF (Ltg)]]*Table_NCSummary[[#This Row],[DF (Ltg)]]))*(Table_NCSummary[[#This Row],[DIF]]-1)*Table_NCSummary[[#This Row],[CF (HVAC)]]*Table_NCSummary[[#This Row],[DF (HVAC)]],0),0)),\"\"),\"\")","v":""},{"$f":"IFERROR(IF(Table_NCSummary[[#This Row],[IsActive]],IF(NOT(ISNUMBER(Table_NCSummary[[#This Row],[Fixture Rebate]])),\"\",ROUND(Table_NCSummary[[#This Row],[Annual Fixture Savings (kWh)]]+Table_NCSummary[[#This Row],[Annual Control Savings (kWh)]],0)),\"\"),\"\")","v":""},{"$f":"IFERROR(IF(Table_NCSummary[[#This Row],[IsActive]],IF(NOT(ISNUMBER(Table_NCSummary[[#This Row],[Fixture Rebate]])),\"\",ROUND(Table_NCSummary[[#This Row],[Fixture kW Reduction]]+Table_NCSummary[[#This Row],[Control kW Reduction]],3)),\"\"),\"\")","v":""},{"$f":"IFERROR(IF(Table_NCSummary[[#This Row],[IsActive]],IF(NOT(ISNUMBER(Table_NCSummary[[#This Row],[Fixture Rebate]])),\"\",ROUND(Table_NCSummary[[#This Row],[Fixture Energy Savings (kWh)]]+Table_NCSummary[[#This Row],[Induced HVAC Energy Savings (kWh)]],0)),\"\"),\"\")","v":""},{"$f":"IFERROR(IF(Table_NCSummary[[#This Row],[IsActive]],IF(NOT(ISNUMBER(Table_NCSummary[[#This Row],[Fixture Rebate]])),\"\",ROUND(Table_NCSummary[[#This Row],[Fixture Demand Savings (kW)]]+Table_NCSummary[[#This Row],[Induced HVAC Demand Savings (kW)]],3)),\"\"),\"\")","v":""}]
[{"$f":"IFERROR(Table_NCInfo[[#This Row],[Line]],\"\")","v":34},{"$f":"IFERROR(Table_NCInfo[[#This Row],[IsActive]],\"\")","v":false},{"$f":"IFERROR(IF(Table_NCSummary[[#This Row],[IsActive]],VLOOKUP(IF(ISNUMBER(MATCH(Table_NCInfo[[#This Row],[Line]],Table_NCInspection[Line],0)),INDEX(Table_NCInspection[Schedule],MATCH(Table_NCSummary[[#This Row],[Line Item]],Table_NCInspection[Line],0)),Table_NCInfo[[#This Row],[Schedule]]),'Customer Information'!$S$27:$T$34,2,FALSE),\"\"),\"\")","v":""},{"$f":"IFERROR(IF(Table_NCSummary[[#This Row],[IsActive]],INDEX(Table_IntLookups[EIF],MATCH(IF(ISNUMBER(MATCH(Table_NCSummary[[#This Row],[Line Item]],Table_NCInspection[Line],0)),INDEX(Table_NCInspection[Zone Description],MATCH(Table_NCSummary[[#This Row],[Line Item]],Table_NCInfo[Line],0)),Table_NCInfo[[#This Row],[Zone Description]]),Table_IntLookups[Dropdown],0)),\"\"),\"\")","v":""},{"$f":"IFERROR(IF(Table_NCSummary[[#This Row],[IsActive]],INDEX(Table_IntLookups[DIF],MATCH(IF(ISNUMBER(MATCH(Table_NCSummary[[#This Row],[Line Item]],Table_NCInspection[Line],0)),INDEX(Table_NCInspection[Zone Description],MATCH(Table_NCSummary[[#This Row],[Line Item]],Table_NCInfo[Line],0)),Table_NCInfo[[#This Row],[Zone Description]]),Table_IntLookups[Dropdown],0)),\"\"),\"\")","v":""},{"$f":"IFERROR(IF(Table_NCSummary[[#This Row],[IsActive]],INDEX(Table_IntLookups[CFltg],MATCH(IF(ISNUMBER(MATCH(Table_NCSummary[[#This Row],[Line Item]],Table_NCInspection[Line],0)),INDEX(Table_NCInspection[Zone Description],MATCH(Table_NCSummary[[#This Row],[Line Item]],Table_NCInfo[Line],0)),Table_NCInfo[[#This Row],[Zone Description]]),Table_IntLookups[Dropdown],0)),\"\"),\"\")","v":""},{"$f":"IFERROR(IF(Table_NCSummary[[#This Row],[IsActive]],INDEX(Table_IntLookups[DFltg],MATCH(IF(ISNUMBER(MATCH(Table_NCSummary[[#This Row],[Line Item]],Table_NCInspection[Line],0)),INDEX(Table_NCInspection[Zone Description],MATCH(Table_NCSummary[[#This Row],[Line Item]],Table_NCInfo[Line],0)),Table_NCInfo[[#This Row],[Zone Description]]),Table_IntLookups[Dropdown],0)),\"\"),\"\")","v":""},{"$f":"IFERROR(IF(Table_NCSummary[[#This Row],[IsActive]],INDEX(Table_IntLookups[Cfhvac],MATCH(IF(ISNUMBER(MATCH(Table_NCSummary[[#This Row],[Line Item]],Table_NCInspection[Line],0)),INDEX(Table_NCInspection[Zone Description],MATCH(Table_NCSummary[[#This Row],[Line Item]],Table_NCInfo[Line],0)),Table_NCInfo[[#This Row],[Zone Description]]),Table_IntLookups[Dropdown],0)),\"\"),\"\")","v":""},{"$f":"IFERROR(IF(Table_NCSummary[[#This Row],[IsActive]],INDEX(Table_IntLookups[Dfhvac],MATCH(IF(ISNUMBER(MATCH(Table_NCSummary[[#This Row],[Line Item]],Table_NCInspection[Line],0)),INDEX(Table_NCInspection[Zone Description],MATCH(Table_NCSummary[[#This Row],[Line Item]],Table_NCInfo[Line],0)),Table_NCInfo[[#This Row],[Zone Description]]),Table_IntLookups[Dropdown],0)),\"\"),\"\")","v":""},{"$f":"IFERROR(IF(Table_NCSummary[[#This Row],[IsActive]],\nIF(ISNUMBER(MATCH(Table_NCInfo[[#This Row],[Line]],Table_NCInspection[Line],0)),INDEX(Table_NCInspection[Zone Description],MATCH(Table_NCSummary[[#This Row],[Line Item]],Table_NCInspection[Line],0)),Table_NCInfo[[#This Row],[Zone Description]]),\n \"\"),\"\")","v":""},{"$f":"IFERROR(IF(Table_NCSummary[[#This Row],[IsActive]],\nCONCATENATE(\nIF(ISNUMBER(MATCH(Table_NCInfo[[#This Row],[Line]],Table_NCInspection[Line],0)),INDEX(Table_NCInspection[Interior/ Exterior],MATCH(Table_NCSummary[[#This Row],[Line Item]],Table_NCInspection[Line],0)),Table_NCInfo[[#This Row],[Interior/ Exterior]]),\n\" - \",\nIF(ISNUMBER(MATCH(Table_NCInfo[[#This Row],[Line]],Table_NCInspection[Line],0)),INDEX(Table_NCInspection[Space Description],MATCH(Table_NCSummary[[#This Row],[Line Item]],Table_NCInspection[Line],0)),Table_NCInfo[[#This Row],[Space Description]])),\n \"\"),\"\")","v":""},{"$f":"IFERROR(IF(ISNUMBER(MATCH(Table_NCInfo[[#This Row],[Line]],Table_NCInspection[Line],0)),INDEX(Table_NCInspection[Baseline Wattage],MATCH(Table_NCSummary[[#This Row],[Line Item]],Table_NCInspection[Line],0)),Table_NCInfo[[#This Row],[Baseline Wattage]]),\"\")","v":""},{"$f":"IFERROR(IF(Table_NCSummary[[#This Row],[IsActive]],Table_NCSummary[[#This Row],[Baseline Wattage]]/1000*Table_NCSummary[[#This Row],[OpHrs]],\"\"),\"\")","v":""},{"$f":"IFERROR(IF(Table_NCSummary[[#This Row],[IsActive]],IFERROR(VLOOKUP(IF(ISNUMBER(MATCH(Table_NCSummary[[#This Row],[Line Item]],Table_NCInspection[Line],0)),INDEX(Table_NCInspection[Zone '#],MATCH(Table_NCSummary[[#This Row],[Line Item]],Table_NCInspection[Line],0)),Table_NCInfo[[#This Row],[Zone '#]]),Table_IntLookups[],'Facility Information'!$AA$4,FALSE),0),\"\"),\"\")","v":""},{"$f":"IFERROR(IF(Table_NCSummary[[#This Row],[IsActive]],IFERROR(Table_NCSummary[[#This Row],[Baseline Wattage]]/1000*Table_NCSummary[[#This Row],[OpHrs]]*Table_NCSummary[[#This Row],[Existing CSF]]*(-1),0),\"\"),\"\")","v":""},{"$f":"IFERROR(Table_NCSummary[[#This Row],[Baseline kWh]]+Table_NCSummary[[#This Row],[Existing Fixture (Existing Controls) kWh]],\"\")","v":""},{"$f":"IFERROR(IF(Table_NCSummary[[#This Row],[IsActive]],IF(ISNUMBER(MATCH(Table_NCInfo[[#This Row],[Line]],Table_NCInspection[Line],0)),INDEX(Table_NCInspection[Fixture Description '[P']],MATCH(Table_NCSummary[[#This Row],[Line Item]],Table_NCInspection[Line],0)),Table_NCInfo[[#This Row],[Fixture Description '[P']]]),\"\"),\"\")","v":""},{"$f":"IFERROR(IF(Table_NCSummary[[#This Row],[IsActive]],IF(ISNUMBER(MATCH(Table_NCInfo[[#This Row],[Line]],Table_NCInspection[Line],0)),INDEX(Table_NCInspection['# Lamps/ Fixture '[P']],MATCH(Table_NCSummary[[#This Row],[Line Item]],Table_NCInspection[Line],0)),Table_NCInfo[[#This Row],['# Lamps/ Fixture '[P']]]),\"\"),\"\")","v":""},{"$f":"IFERROR(IF(Table_NCSummary[[#This Row],[IsActive]],IF(ISNUMBER(MATCH(Table_NCInfo[[#This Row],[Line]],Table_NCInspection[Line],0)),INDEX(Table_NCInspection[Fixture/ Lamp Wattage '[P']],MATCH(Table_NCSummary[[#This Row],[Line Item]],Table_NCInspection[Line],0)),Table_NCInfo[[#This Row],[Fixture/ Lamp Wattage '[P']]]),\"\"),\"\")","v":""},{"$f":"IFERROR(IF(Table_NCSummary[[#This Row],[IsActive]],IF(ISNUMBER(MATCH(Table_NCInfo[[#This Row],[Line]],Table_NCInspection[Line],0)),INDEX(Table_NCInspection[Fixture Qty '[P']],MATCH(Table_NCSummary[[#This Row],[Line Item]],Table_NCInspection[Line],0)),Table_NCInfo[[#This Row],[Fixture Qty '[P']]]),\"\"),\"\")","v":""},{"$f":"IFERROR(IF(Table_NCSummary[[#This Row],[IsActive]],Table_NCSummary[[#This Row],['# Lamps/ Fixture '[P']]]*Table_NCSummary[[#This Row],[P. Qty]],\"\"),\"\")","v":""},{"$f":"IFERROR(IF(Table_NCSummary[[#This Row],[IsActive]],IF(ISNUMBER(MATCH(Table_NCInfo[[#This Row],[Line]],Table_NCInspection[Line],0)),INDEX(Table_NCInspection[Fixture Wattage '[P']],MATCH(Table_NCSummary[[#This Row],[Line Item]],Table_NCInspection[Line],0)),Table_NCInfo[[#This Row],[Fixture Wattage '[P']]]),\"\"),\"\")","v":""},{"$f":"IFERROR(Table_NCSummary[[#This Row],[P. Qty]]*Table_NCSummary[[#This Row],[Proposed Fixture Wattage]],\"\")","v":""},{"$f":"IFERROR(Table_NCSummary[[#This Row],[Proposed Fixture Wattage]]/1000*Table_NCSummary[[#This Row],[OpHrs]]*Table_NCSummary[[#This Row],[P. Qty]],\"\")","v":""},{"$f":"IFERROR(IF(Table_NCSummary[[#This Row],[IsActive]],IFERROR(VLOOKUP(RIGHT(Table_NCSummary[[#This Row],[Proposed Fixture]],LEN(Table_NCSummary[[#This Row],[Proposed Fixture]])-FIND(\" - \",Table_NCSummary[[#This Row],[Proposed Fixture]],FIND(\"]\",Table_NCSummary[[#This Row],[Proposed Fixture]],1))-2),Table_ControlType[],3, FALSE),Table_NCSummary[[#This Row],[Existing CSF]]),\"\"),\"\")","v":""},{"$f":"IFERROR(IF(Table_NCSummary[[#This Row],[IsActive]],IFERROR(Table_NCSummary[[#This Row],[Proposed Fixture Wattage]]/1000*Table_NCSummary[[#This Row],[OpHrs]]*Table_NCSummary[[#This Row],[P. Qty]]*Table_NCSummary[[#This Row],[Existing CSF]]*(-1),0),\"\"),\"\")","v":""},{"$f":"IFERROR(Table_NCSummary[[#This Row],[Proposed Fixture kWh]]+Table_NCSummary[[#This Row],[Proposed Fixture (Existing Controls) kWh]],\"\")","v":""},{"$f":"IFERROR(IF(Table_NCSummary[[#This Row],[IsActive]],IFERROR(Table_NCSummary[[#This Row],[Proposed Fixture Wattage]]/1000*Table_NCSummary[[#This Row],[OpHrs]]*Table_NCSummary[[#This Row],[P. Qty]]*Table_NCSummary[[#This Row],[Proposed CSF]]*(-1),0),\"\"),\"\")","v":""},{"$f":"IFERROR(Table_NCSummary[[#This Row],[Proposed Fixture kWh]]+Table_NCSummary[[#This Row],[Proposed Fixture (Proposed Controls) kWh]],\"\")","v":""},null,{"$f":"IFERROR(IF(Table_NCSummary[[#This Row],[IsActive]],IF((1-SUMPRODUCT(Table_NCSummary[P. Qty],Table_NCSummary[Proposed Fixture Wattage])/SUM(Table_NCSummary[Baseline Wattage]))<0.1,\"Does Not Qualify [Overall Fixture Reduction is less than 10%]\",IF(ISNUMBER(FIND(\"LED\",Table_NCSummary[[#This Row],[Proposed Fixture]],1)),IF(ISNUMBER(FIND(\"LED Tube\",Table_NCSummary[[#This Row],[Proposed Fixture]],1)),\"New Construction Interior LED Fixture\",IF(ISNUMBER(FIND(\"LED\",Table_NCSummary[[#This Row],[Proposed Fixture]],1)),IF(Table_NCInfo[[#This Row],[Interior/ Exterior]]=\"Exterior\",\"New Construction Exterior LED Fixture\",\"New Construction Interior LED Fixture\"),\"Ineligible Fixture\")),\"Ineligible Fixture\")),\"\"),\"\")","v":""},{"$f":"IFERROR(VLOOKUP(Table_NCSummary[[#This Row],[Fixture Measure Description]],Table_FixtureRate[],2,FALSE),\"\")","v":""},{"$f":"IFERROR(IF(Table_NCSummary[[#This Row],[IsActive]],IF((1-SUMPRODUCT(Table_NCSummary[P. Qty],Table_NCSummary[Proposed Fixture Wattage])/SUM(Table_NCSummary[Baseline Wattage]))<0.1,\"DNQ [kW Reduction <10%]\",IF(Table_NCSummary[[#This Row],[Fixture Measure Description]]=\"Ineligible Fixture\",0,ROUND(Table_NCSummary[[#This Row],[Fixture Rebate (per kW)]]*(Table_NCSummary[[#This Row],[Baseline Wattage]]-Table_NCSummary[[#This Row],[Proposed Wattage]])/1000,2))),\"\"),\"\")","v":""},{"$f":"IFERROR(IF(Table_NCSummary[[#This Row],[Fixture Measure Description]]=\"Ineligible Fixture\",0,ROUND(IF(ProjectCost_Total=0,300000,ProjectCost_Total)*Table_NCSummary[[#This Row],[Fixture Rebate]]/SUM(Table_NCSummary[Fixture Rebate],Table_NCSummary[Controls Rebate]),2)),\"\")","v":""},{"$f":"IFERROR(IF(Table_NCSummary[[#This Row],[IsActive]],IF((1-SUMPRODUCT(Table_NCSummary[P. Qty],Table_NCSummary[Proposed Fixture Wattage])/SUM(Table_NCSummary[Baseline Wattage]))<0.1,\"DNQ [kW Reduction <10%]\",IF(Table_NCSummary[[#This Row],[Fixture Measure Description]]=\"Ineligible Fixture\",0,Table_NCSummary[[#This Row],[Existing Overall kWh]]-Table_NCSummary[[#This Row],[Proposed Overall kWh (Existing Controls)]])),\"\"),\"\")","v":""},{"$f":"IFERROR(IF(Table_NCSummary[[#This Row],[IsActive]],IF((1-SUMPRODUCT(Table_NCSummary[P. Qty],Table_NCSummary[Proposed Fixture Wattage])/SUM(Table_NCSummary[Baseline Wattage]))<0.1,\"DNQ [kW Reduction <10%]\",IF(OR(Table_NCSummary[[#This Row],[Fixture Measure Description]]=\"Ineligible Fixture\",Table_NCSummary[[#This Row],[Fixture Measure Description]]=\"New Construction Exterior LED Fixture\"),0,(Table_NCSummary[[#This Row],[Baseline kWh]]-Table_NCSummary[[#This Row],[Proposed Fixture kWh]])/Table_NCSummary[[#This Row],[OpHrs]]*Table_NCSummary[[#This Row],[CF (Ltg)]]*Table_NCSummary[[#This Row],[DF (Ltg)]])),\"\"),\"\")","v":""},null,{"$f":"IFERROR(\n  IF(OR(Table_NCSummary[[#This Row],[Fixture Measure Description]]=\"\",Table_NCSummary[[#This Row],[Fixture Measure Description]]=\"Ineligible Fixture\"),\n    \"\",\n    \"New Construction\"\n    & \" - \" &\n    IFERROR(VLOOKUP(RIGHT(Table_NCSummary[[#This Row],[Proposed Fixture]],LEN(Table_NCSummary[[#This Row],[Proposed Fixture]])-FIND(\" - \",Table_NCSummary[[#This Row],[Proposed Fixture]],FIND(\"]\",Table_NCSummary[[#This Row],[Proposed Fixture]],1))-2),Table_ControlType[],2, FALSE),None)),\n\"\")","v":""},{"$f":"IFERROR(VLOOKUP(Table_NCSummary[[#This Row],[Controls Measure Description]],Table_ControlRate[],2,FALSE),\"\")","v":""},{"$f":"IFERROR(IF(Table_NCSummary[[#This Row],[IsActive]],IF((1-SUMPRODUCT(Table_NCSummary[P. Qty],Table_NCSummary[Proposed Fixture Wattage])/SUM(Table_NCSummary[Baseline Wattage]))<0.1,\"DNQ [kW Reduction <10%]\",IF(OR(Table_NCSummary[[#This Row],[Controls Measure Description]]=\"\",Table_NCSummary[[#This Row],[Controls Measure Description]]=\"New Construction - No Controls\"),0,ROUND(Table_NCSummary[[#This Row],[Controls Rebate (per Fixt Watt)]]*Table_NCSummary[[#This Row],[Proposed Fixture Wattage]]*Table_NCSummary[[#This Row],[P. Qty]],2))),\"\"),\"\")","v":""},{"$f":"IFERROR(IF(Table_NCSummary[[#This Row],[Fixture Measure Description]]=\"Ineligible Fixture\",0,ROUND(IF(ProjectCost_Total=0,300000,ProjectCost_Total)*Table_NCSummary[[#This Row],[Controls Rebate]]/SUM(Table_NCSummary[Fixture Rebate],Table_NCSummary[Controls Rebate]),2)),\"\")","v":""},{"$f":"IFERROR(IF(Table_NCSummary[[#This Row],[IsActive]],IF((1-SUMPRODUCT(Table_NCSummary[P. Qty],Table_NCSummary[Proposed Fixture Wattage])/SUM(Table_NCSummary[Baseline Wattage]))<0.1,\"DNQ [kW Reduction <10%]\",IF(Table_NCSummary[[#This Row],[Controls Measure Description]]=\"\",0,(Table_NCSummary[[#This Row],[Proposed Fixture (Existing Controls) kWh]]-Table_NCSummary[[#This Row],[Proposed Fixture (Proposed Controls) kWh]]))),\"\"),\"\")","v":""},{"$f":"IFERROR(IF(Table_NCSummary[[#This Row],[IsActive]],IF((1-SUMPRODUCT(Table_NCSummary[P. Qty],Table_NCSummary[Proposed Fixture Wattage])/SUM(Table_NCSummary[Baseline Wattage]))<0.1,\"DNQ [kW Reduction <10%]\",IF(OR(Table_NCSummary[[#This Row],[Controls Measure Description]]=\"\",Table_NCSummary[[#This Row],[Controls Measure Description]]=\"New Construction - No Controls\"),0,(Table_NCSummary[[#This Row],[Proposed Fixture (Existing Controls) kWh]]-Table_NCSummary[[#This Row],[Proposed Fixture (Proposed Controls) kWh]])/Table_NCSummary[[#This Row],[OpHrs]]*Table_NCSummary[[#This Row],[CF (Ltg)]]*Table_NCSummary[[#This Row],[DF (Ltg)]])),\"\"),\"\")","v":""},null,{"$f":"IFERROR(IF(NOT(ISNUMBER(Table_NCSummary[[#This Row],[Fixture Rebate]])),\"\",IF(MIN(IF(Table_NCSummary[[#This Row],[Fixture Cost]]<0,0,SUM(Table_NCSummary[Fixture Cost],Table_NCSummary[Controls Cost])),SUM(Table_NCSummary[Fixture Rebate],Table_NCSummary[Controls Rebate]))>300000,300000/MIN(IF(Table_NCSummary[[#This Row],[Fixture Cost]]<0,0,SUM(Table_NCSummary[Fixture Cost],Table_NCSummary[Controls Cost])),SUM(Table_NCSummary[Fixture Rebate],Table_NCSummary[Controls Rebate]))*MIN(IF(Table_NCSummary[[#This Row],[Fixture Cost]]<0,0,SUM(Table_NCSummary[Fixture Cost],Table_NCSummary[Controls Cost])),Table_NCSummary[[#This Row],[Fixture Rebate]]+IF(Table_NCSummary[[#This Row],[Controls Rebate]]=\"\",0,Table_NCSummary[[#This Row],[Controls Rebate]])),MIN(IF(Table_NCSummary[[#This Row],[Fixture Cost]]<0,0,SUM(Table_NCSummary[Fixture Cost],Table_NCSummary[Controls Cost])),Table_NCSummary[[#This Row],[Fixture Rebate]]+IF(Table_NCSummary[[#This Row],[Controls Rebate]]=\"\",0,Table_NCSummary[[#This Row],[Controls Rebate]])))),\"\")","v":""},{"$f":"IFERROR(IF(Table_NCSummary[[#This Row],[Fixture Cost]]=\"\",\"\",Table_NCSummary[[#This Row],[Fixture Cost]]+IF(Table_NCSummary[[#This Row],[Controls Cost]]=\"\",0,Table_NCSummary[[#This Row],[Controls Cost]])),\"\")","v":""},{"$f":"IFERROR(IF(Table_NCSummary[[#This Row],[IsActive]],IF(NOT(ISNUMBER(Table_NCSummary[[#This Row],[Fixture Rebate]])),\"\",IF(Table_NCInfo[[#This Row],[Interior/ Exterior]]=\"Interior\",IFERROR((Table_NCSummary[[#This Row],[Annual Fixture Savings (kWh)]]+Table_NCSummary[[#This Row],[Annual Control Savings (kWh)]])*(Table_NCSummary[[#This Row],[EIF]]-1),0),0)),\"\"),\"\")","v":""},{"$f":"IFERROR(IF(Table_NCSummary[[#This Row],[IsActive]],IF(NOT(ISNUMBER(Table_NCSummary[[#This Row],[Fixture Rebate]])),\"\",IF(Table_NCInfo[[#This Row],[Interior/ Exterior]]=\"Interior\",IFERROR((Table_NCSummary[[#This Row],[Fixture kW Reduction]]+Table_NCSummary[[#This Row],[Control kW Reduction]]/(Table_NCSummary[[#This Row],[CF (Ltg)]]*Table_NCSummary[[#This Row],[DF (Ltg)]]))*(Table_NCSummary[[#This Row],[DIF]]-1)*Table_NCSummary[[#This Row],[CF (HVAC)]]*Table_NCSummary[[#This Row],[DF (HVAC)]],0),0)),\"\"),\"\")","v":""},{"$f":"IFERROR(IF(Table_NCSummary[[#This Row],[IsActive]],IF(NOT(ISNUMBER(Table_NCSummary[[#This Row],[Fixture Rebate]])),\"\",ROUND(Table_NCSummary[[#This Row],[Annual Fixture Savings (kWh)]]+Table_NCSummary[[#This Row],[Annual Control Savings (kWh)]],0)),\"\"),\"\")","v":""},{"$f":"IFERROR(IF(Table_NCSummary[[#This Row],[IsActive]],IF(NOT(ISNUMBER(Table_NCSummary[[#This Row],[Fixture Rebate]])),\"\",ROUND(Table_NCSummary[[#This Row],[Fixture kW Reduction]]+Table_NCSummary[[#This Row],[Control kW Reduction]],3)),\"\"),\"\")","v":""},{"$f":"IFERROR(IF(Table_NCSummary[[#This Row],[IsActive]],IF(NOT(ISNUMBER(Table_NCSummary[[#This Row],[Fixture Rebate]])),\"\",ROUND(Table_NCSummary[[#This Row],[Fixture Energy Savings (kWh)]]+Table_NCSummary[[#This Row],[Induced HVAC Energy Savings (kWh)]],0)),\"\"),\"\")","v":""},{"$f":"IFERROR(IF(Table_NCSummary[[#This Row],[IsActive]],IF(NOT(ISNUMBER(Table_NCSummary[[#This Row],[Fixture Rebate]])),\"\",ROUND(Table_NCSummary[[#This Row],[Fixture Demand Savings (kW)]]+Table_NCSummary[[#This Row],[Induced HVAC Demand Savings (kW)]],3)),\"\"),\"\")","v":""}]
[{"$f":"IFERROR(Table_NCInfo[[#This Row],[Line]],\"\")","v":35},{"$f":"IFERROR(Table_NCInfo[[#This Row],[IsActive]],\"\")","v":false},{"$f":"IFERROR(IF(Table_NCSummary[[#This Row],[IsActive]],VLOOKUP(IF(ISNUMBER(MATCH(Table_NCInfo[[#This Row],[Line]],Table_NCInspection[Line],0)),INDEX(Table_NCInspection[Schedule],MATCH(Table_NCSummary[[#This Row],[Line Item]],Table_NCInspection[Line],0)),Table_NCInfo[[#This Row],[Schedule]]),'Customer Information'!$S$27:$T$34,2,FALSE),\"\"),\"\")","v":""},{"$f":"IFERROR(IF(Table_NCSummary[[#This Row],[IsActive]],INDEX(Table_IntLookups[EIF],MATCH(IF(ISNUMBER(MATCH(Table_NCSummary[[#This Row],[Line Item]],Table_NCInspection[Line],0)),INDEX(Table_NCInspection[Zone Description],MATCH(Table_NCSummary[[#This Row],[Line Item]],Table_NCInfo[Line],0)),Table_NCInfo[[#This Row],[Zone Description]]),Table_IntLookups[Dropdown],0)),\"\"),\"\")","v":""},{"$f":"IFERROR(IF(Table_NCSummary[[#This Row],[IsActive]],INDEX(Table_IntLookups[DIF],MATCH(IF(ISNUMBER(MATCH(Table_NCSummary[[#This Row],[Line Item]],Table_NCInspection[Line],0)),INDEX(Table_NCInspection[Zone Description],MATCH(Table_NCSummary[[#This Row],[Line Item]],Table_NCInfo[Line],0)),Table_NCInfo[[#This Row],[Zone Description]]),Table_IntLookups[Dropdown],0)),\"\"),\"\")","v":""},{"$f":"IFERROR(IF(Table_NCSummary[[#This Row],[IsActive]],INDEX(Table_IntLookups[CFltg],MATCH(IF(ISNUMBER(MATCH(Table_NCSummary[[#This Row],[Line Item]],Table_NCInspection[Line],0)),INDEX(Table_NCInspection[Zone Description],MATCH(Table_NCSummary[[#This Row],[Line Item]],Table_NCInfo[Line],0)),Table_NCInfo[[#This Row],[Zone Description]]),Table_IntLookups[Dropdown],0)),\"\"),\"\")","v":""},{"$f":"IFERROR(IF(Table_NCSummary[[#This Row],[IsActive]],INDEX(Table_IntLookups[DFltg],MATCH(IF(ISNUMBER(MATCH(Table_NCSummary[[#This Row],[Line Item]],Table_NCInspection[Line],0)),INDEX(Table_NCInspection[Zone Description],MATCH(Table_NCSummary[[#This Row],[Line Item]],Table_NCInfo[Line],0)),Table_NCInfo[[#This Row],[Zone Description]]),Table_IntLookups[Dropdown],0)),\"\"),\"\")","v":""},{"$f":"IFERROR(IF(Table_NCSummary[[#This Row],[IsActive]],INDEX(Table_IntLookups[Cfhvac],MATCH(IF(ISNUMBER(MATCH(Table_NCSummary[[#This Row],[Line Item]],Table_NCInspection[Line],0)),INDEX(Table_NCInspection[Zone Description],MATCH(Table_NCSummary[[#This Row],[Line Item]],Table_NCInfo[Line],0)),Table_NCInfo[[#This Row],[Zone Description]]),Table_IntLookups[Dropdown],0)),\"\"),\"\")","v":""},{"$f":"IFERROR(IF(Table_NCSummary[[#This Row],[IsActive]],INDEX(Table_IntLookups[Dfhvac],MATCH(IF(ISNUMBER(MATCH(Table_NCSummary[[#This Row],[Line Item]],Table_NCInspection[Line],0)),INDEX(Table_NCInspection[Zone Description],MATCH(Table_NCSummary[[#This Row],[Line Item]],Table_NCInfo[Line],0)),Table_NCInfo[[#This Row],[Zone Description]]),Table_IntLookups[Dropdown],0)),\"\"),\"\")","v":""},{"$f":"IFERROR(IF(Table_NCSummary[[#This Row],[IsActive]],\nIF(ISNUMBER(MATCH(Table_NCInfo[[#This Row],[Line]],Table_NCInspection[Line],0)),INDEX(Table_NCInspection[Zone Description],MATCH(Table_NCSummary[[#This Row],[Line Item]],Table_NCInspection[Line],0)),Table_NCInfo[[#This Row],[Zone Description]]),\n \"\"),\"\")","v":""},{"$f":"IFERROR(IF(Table_NCSummary[[#This Row],[IsActive]],\nCONCATENATE(\nIF(ISNUMBER(MATCH(Table_NCInfo[[#This Row],[Line]],Table_NCInspection[Line],0)),INDEX(Table_NCInspection[Interior/ Exterior],MATCH(Table_NCSummary[[#This Row],[Line Item]],Table_NCInspection[Line],0)),Table_NCInfo[[#This Row],[Interior/ Exterior]]),\n\" - \",\nIF(ISNUMBER(MATCH(Table_NCInfo[[#This Row],[Line]],Table_NCInspection[Line],0)),INDEX(Table_NCInspection[Space Description],MATCH(Table_NCSummary[[#This Row],[Line Item]],Table_NCInspection[Line],0)),Table_NCInfo[[#This Row],[Space Description]])),\n \"\"),\"\")","v":""},{"$f":"IFERROR(IF(ISNUMBER(MATCH(Table_NCInfo[[#This Row],[Line]],Table_NCInspection[Line],0)),INDEX(Table_NCInspection[Baseline Wattage],MATCH(Table_NCSummary[[#This Row],[Line Item]],Table_NCInspection[Line],0)),Table_NCInfo[[#This Row],[Baseline Wattage]]),\"\")","v":""},{"$f":"IFERROR(IF(Table_NCSummary[[#This Row],[IsActive]],Table_NCSummary[[#This Row],[Baseline Wattage]]/1000*Table_NCSummary[[#This Row],[OpHrs]],\"\"),\"\")","v":""},{"$f":"IFERROR(IF(Table_NCSummary[[#This Row],[IsActive]],IFERROR(VLOOKUP(IF(ISNUMBER(MATCH(Table_NCSummary[[#This Row],[Line Item]],Table_NCInspection[Line],0)),INDEX(Table_NCInspection[Zone '#],MATCH(Table_NCSummary[[#This Row],[Line Item]],Table_NCInspection[Line],0)),Table_NCInfo[[#This Row],[Zone '#]]),Table_IntLookups[],'Facility Information'!$AA$4,FALSE),0),\"\"),\"\")","v":""},{"$f":"IFERROR(IF(Table_NCSummary[[#This Row],[IsActive]],IFERROR(Table_NCSummary[[#This Row],[Baseline Wattage]]/1000*Table_NCSummary[[#This Row],[OpHrs]]*Table_NCSummary[[#This Row],[Existing CSF]]*(-1),0),\"\"),\"\")","v":""},{"$f":"IFERROR(Table_NCSummary[[#This Row],[Baseline kWh]]+Table_NCSummary[[#This Row],[Existing Fixture (Existing Controls) kWh]],\"\")","v":""},{"$f":"IFERROR(IF(Table_NCSummary[[#This Row],[IsActive]],IF(ISNUMBER(MATCH(Table_NCInfo[[#This Row],[Line]],Table_NCInspection[Line],0)),INDEX(Table_NCInspection[Fixture Description '[P']],MATCH(Table_NCSummary[[#This Row],[Line Item]],Table_NCInspection[Line],0)),Table_NCInfo[[#This Row],[Fixture Description '[P']]]),\"\"),\"\")","v":""},{"$f":"IFERROR(IF(Table_NCSummary[[#This Row],[IsActive]],IF(ISNUMBER(MATCH(Table_NCInfo[[#This Row],[Line]],Table_NCInspection[Line],0)),INDEX(Table_NCInspection['# Lamps/ Fixture '[P']],MATCH(Table_NCSummary[[#This Row],[Line Item]],Table_NCInspection[Line],0)),Table_NCInfo[[#This Row],['# Lamps/ Fixture '[P']]]),\"\"),\"\")","v":""},{"$f":"IFERROR(IF(Table_NCSummary[[#This Row],[IsActive]],IF(ISNUMBER(MATCH(Table_NCInfo[[#This Row],[Line]],Table_NCInspection[Line],0)),INDEX(Table_NCInspection[Fixture/ Lamp Wattage '[P']],MATCH(Table_NCSummary[[#This Row],[Line Item]],Table_NCInspection[Line],0)),Table_NCInfo[[#This Row],[Fixture/ Lamp Wattage '[P']]]),\"\"),\"\")","v":""},{"$f":"IFERROR(IF(Table_NCSummary[[#This Row],[IsActive]],IF(ISNUMBER(MATCH(Table_NCInfo[[#This Row],[Line]],Table_NCInspection[Line],0)),INDEX(Table_NCInspection[Fixture Qty '[P']],MATCH(Table_NCSummary[[#This Row],[Line Item]],Table_NCInspection[Line],0)),Table_NCInfo[[#This Row],[Fixture Qty '[P']]]),\"\"),\"\")","v":""},{"$f":"IFERROR(IF(Table_NCSummary[[#This Row],[IsActive]],Table_NCSummary[[#This Row],['# Lamps/ Fixture '[P']]]*Table_NCSummary[[#This Row],[P. Qty]],\"\"),\"\")","v":""},{"$f":"IFERROR(IF(Table_NCSummary[[#This Row],[IsActive]],IF(ISNUMBER(MATCH(Table_NCInfo[[#This Row],[Line]],Table_NCInspection[Line],0)),INDEX(Table_NCInspection[Fixture Wattage '[P']],MATCH(Table_NCSummary[[#This Row],[Line Item]],Table_NCInspection[Line],0)),Table_NCInfo[[#This Row],[Fixture Wattage '[P']]]),\"\"),\"\")","v":""},{"$f":"IFERROR(Table_NCSummary[[#This Row],[P. Qty]]*Table_NCSummary[[#This Row],[Proposed Fixture Wattage]],\"\")","v":""},{"$f":"IFERROR(Table_NCSummary[[#This Row],[Proposed Fixture Wattage]]/1000*Table_NCSummary[[#This Row],[OpHrs]]*Table_NCSummary[[#This Row],[P. Qty]],\"\")","v":""},{"$f":"IFERROR(IF(Table_NCSummary[[#This Row],[IsActive]],IFERROR(VLOOKUP(RIGHT(Table_NCSummary[[#This Row],[Proposed Fixture]],LEN(Table_NCSummary[[#This Row],[Proposed Fixture]])-FIND(\" - \",Table_NCSummary[[#This Row],[Proposed Fixture]],FIND(\"]\",Table_NCSummary[[#This Row],[Proposed Fixture]],1))-2),Table_ControlType[],3, FALSE),Table_NCSummary[[#This Row],[Existing CSF]]),\"\"),\"\")","v":""},{"$f":"IFERROR(IF(Table_NCSummary[[#This Row],[IsActive]],IFERROR(Table_NCSummary[[#This Row],[Proposed Fixture Wattage]]/1000*Table_NCSummary[[#This Row],[OpHrs]]*Table_NCSummary[[#This Row],[P. Qty]]*Table_NCSummary[[#This Row],[Existing CSF]]*(-1),0),\"\"),\"\")","v":""},{"$f":"IFERROR(Table_NCSummary[[#This Row],[Proposed Fixture kWh]]+Table_NCSummary[[#This Row],[Proposed Fixture (Existing Controls) kWh]],\"\")","v":""},{"$f":"IFERROR(IF(Table_NCSummary[[#This Row],[IsActive]],IFERROR(Table_NCSummary[[#This Row],[Proposed Fixture Wattage]]/1000*Table_NCSummary[[#This Row],[OpHrs]]*Table_NCSummary[[#This Row],[P. Qty]]*Table_NCSummary[[#This Row],[Proposed CSF]]*(-1),0),\"\"),\"\")","v":""},{"$f":"IFERROR(Table_NCSummary[[#This Row],[Proposed Fixture kWh]]+Table_NCSummary[[#This Row],[Proposed Fixture (Proposed Controls) kWh]],\"\")","v":""},null,{"$f":"IFERROR(IF(Table_NCSummary[[#This Row],[IsActive]],IF((1-SUMPRODUCT(Table_NCSummary[P. Qty],Table_NCSummary[Proposed Fixture Wattage])/SUM(Table_NCSummary[Baseline Wattage]))<0.1,\"Does Not Qualify [Overall Fixture Reduction is less than 10%]\",IF(ISNUMBER(FIND(\"LED\",Table_NCSummary[[#This Row],[Proposed Fixture]],1)),IF(ISNUMBER(FIND(\"LED Tube\",Table_NCSummary[[#This Row],[Proposed Fixture]],1)),\"New Construction Interior LED Fixture\",IF(ISNUMBER(FIND(\"LED\",Table_NCSummary[[#This Row],[Proposed Fixture]],1)),IF(Table_NCInfo[[#This Row],[Interior/ Exterior]]=\"Exterior\",\"New Construction Exterior LED Fixture\",\"New Construction Interior LED Fixture\"),\"Ineligible Fixture\")),\"Ineligible Fixture\")),\"\"),\"\")","v":""},{"$f":"IFERROR(VLOOKUP(Table_NCSummary[[#This Row],[Fixture Measure Description]],Table_FixtureRate[],2,FALSE),\"\")","v":""},{"$f":"IFERROR(IF(Table_NCSummary[[#This Row],[IsActive]],IF((1-SUMPRODUCT(Table_NCSummary[P. Qty],Table_NCSummary[Proposed Fixture Wattage])/SUM(Table_NCSummary[Baseline Wattage]))<0.1,\"DNQ [kW Reduction <10%]\",IF(Table_NCSummary[[#This Row],[Fixture Measure Description]]=\"Ineligible Fixture\",0,ROUND(Table_NCSummary[[#This Row],[Fixture Rebate (per kW)]]*(Table_NCSummary[[#This Row],[Baseline Wattage]]-Table_NCSummary[[#This Row],[Proposed Wattage]])/1000,2))),\"\"),\"\")","v":""},{"$f":"IFERROR(IF(Table_NCSummary[[#This Row],[Fixture Measure Description]]=\"Ineligible Fixture\",0,ROUND(IF(ProjectCost_Total=0,300000,ProjectCost_Total)*Table_NCSummary[[#This Row],[Fixture Rebate]]/SUM(Table_NCSummary[Fixture Rebate],Table_NCSummary[Controls Rebate]),2)),\"\")","v":""},{"$f":"IFERROR(IF(Table_NCSummary[[#This Row],[IsActive]],IF((1-SUMPRODUCT(Table_NCSummary[P. Qty],Table_NCSummary[Proposed Fixture Wattage])/SUM(Table_NCSummary[Baseline Wattage]))<0.1,\"DNQ [kW Reduction <10%]\",IF(Table_NCSummary[[#This Row],[Fixture Measure Description]]=\"Ineligible Fixture\",0,Table_NCSummary[[#This Row],[Existing Overall kWh]]-Table_NCSummary[[#This Row],[Proposed Overall kWh (Existing Controls)]])),\"\"),\"\")","v":""},{"$f":"IFERROR(IF(Table_NCSummary[[#This Row],[IsActive]],IF((1-SUMPRODUCT(Table_NCSummary[P. Qty],Table_NCSummary[Proposed Fixture Wattage])/SUM(Table_NCSummary[Baseline Wattage]))<0.1,\"DNQ [kW Reduction <10%]\",IF(OR(Table_NCSummary[[#This Row],[Fixture Measure Description]]=\"Ineligible Fixture\",Table_NCSummary[[#This Row],[Fixture Measure Description]]=\"New Construction Exterior LED Fixture\"),0,(Table_NCSummary[[#This Row],[Baseline kWh]]-Table_NCSummary[[#This Row],[Proposed Fixture kWh]])/Table_NCSummary[[#This Row],[OpHrs]]*Table_NCSummary[[#This Row],[CF (Ltg)]]*Table_NCSummary[[#This Row],[DF (Ltg)]])),\"\"),\"\")","v":""},null,{"$f":"IFERROR(\n  IF(OR(Table_NCSummary[[#This Row],[Fixture Measure Description]]=\"\",Table_NCSummary[[#This Row],[Fixture Measure Description]]=\"Ineligible Fixture\"),\n    \"\",\n    \"New Construction\"\n    & \" - \" &\n    IFERROR(VLOOKUP(RIGHT(Table_NCSummary[[#This Row],[Proposed Fixture]],LEN(Table_NCSummary[[#This Row],[Proposed Fixture]])-FIND(\" - \",Table_NCSummary[[#This Row],[Proposed Fixture]],FIND(\"]\",Table_NCSummary[[#This Row],[Proposed Fixture]],1))-2),Table_ControlType[],2, FALSE),None)),\n\"\")","v":""},{"$f":"IFERROR(VLOOKUP(Table_NCSummary[[#This Row],[Controls Measure Description]],Table_ControlRate[],2,FALSE),\"\")","v":""},{"$f":"IFERROR(IF(Table_NCSummary[[#This Row],[IsActive]],IF((1-SUMPRODUCT(Table_NCSummary[P. Qty],Table_NCSummary[Proposed Fixture Wattage])/SUM(Table_NCSummary[Baseline Wattage]))<0.1,\"DNQ [kW Reduction <10%]\",IF(OR(Table_NCSummary[[#This Row],[Controls Measure Description]]=\"\",Table_NCSummary[[#This Row],[Controls Measure Description]]=\"New Construction - No Controls\"),0,ROUND(Table_NCSummary[[#This Row],[Controls Rebate (per Fixt Watt)]]*Table_NCSummary[[#This Row],[Proposed Fixture Wattage]]*Table_NCSummary[[#This Row],[P. Qty]],2))),\"\"),\"\")","v":""},{"$f":"IFERROR(IF(Table_NCSummary[[#This Row],[Fixture Measure Description]]=\"Ineligible Fixture\",0,ROUND(IF(ProjectCost_Total=0,300000,ProjectCost_Total)*Table_NCSummary[[#This Row],[Controls Rebate]]/SUM(Table_NCSummary[Fixture Rebate],Table_NCSummary[Controls Rebate]),2)),\"\")","v":""},{"$f":"IFERROR(IF(Table_NCSummary[[#This Row],[IsActive]],IF((1-SUMPRODUCT(Table_NCSummary[P. Qty],Table_NCSummary[Proposed Fixture Wattage])/SUM(Table_NCSummary[Baseline Wattage]))<0.1,\"DNQ [kW Reduction <10%]\",IF(Table_NCSummary[[#This Row],[Controls Measure Description]]=\"\",0,(Table_NCSummary[[#This Row],[Proposed Fixture (Existing Controls) kWh]]-Table_NCSummary[[#This Row],[Proposed Fixture (Proposed Controls) kWh]]))),\"\"),\"\")","v":""},{"$f":"IFERROR(IF(Table_NCSummary[[#This Row],[IsActive]],IF((1-SUMPRODUCT(Table_NCSummary[P. Qty],Table_NCSummary[Proposed Fixture Wattage])/SUM(Table_NCSummary[Baseline Wattage]))<0.1,\"DNQ [kW Reduction <10%]\",IF(OR(Table_NCSummary[[#This Row],[Controls Measure Description]]=\"\",Table_NCSummary[[#This Row],[Controls Measure Description]]=\"New Construction - No Controls\"),0,(Table_NCSummary[[#This Row],[Proposed Fixture (Existing Controls) kWh]]-Table_NCSummary[[#This Row],[Proposed Fixture (Proposed Controls) kWh]])/Table_NCSummary[[#This Row],[OpHrs]]*Table_NCSummary[[#This Row],[CF (Ltg)]]*Table_NCSummary[[#This Row],[DF (Ltg)]])),\"\"),\"\")","v":""},null,{"$f":"IFERROR(IF(NOT(ISNUMBER(Table_NCSummary[[#This Row],[Fixture Rebate]])),\"\",IF(MIN(IF(Table_NCSummary[[#This Row],[Fixture Cost]]<0,0,SUM(Table_NCSummary[Fixture Cost],Table_NCSummary[Controls Cost])),SUM(Table_NCSummary[Fixture Rebate],Table_NCSummary[Controls Rebate]))>300000,300000/MIN(IF(Table_NCSummary[[#This Row],[Fixture Cost]]<0,0,SUM(Table_NCSummary[Fixture Cost],Table_NCSummary[Controls Cost])),SUM(Table_NCSummary[Fixture Rebate],Table_NCSummary[Controls Rebate]))*MIN(IF(Table_NCSummary[[#This Row],[Fixture Cost]]<0,0,SUM(Table_NCSummary[Fixture Cost],Table_NCSummary[Controls Cost])),Table_NCSummary[[#This Row],[Fixture Rebate]]+IF(Table_NCSummary[[#This Row],[Controls Rebate]]=\"\",0,Table_NCSummary[[#This Row],[Controls Rebate]])),MIN(IF(Table_NCSummary[[#This Row],[Fixture Cost]]<0,0,SUM(Table_NCSummary[Fixture Cost],Table_NCSummary[Controls Cost])),Table_NCSummary[[#This Row],[Fixture Rebate]]+IF(Table_NCSummary[[#This Row],[Controls Rebate]]=\"\",0,Table_NCSummary[[#This Row],[Controls Rebate]])))),\"\")","v":""},{"$f":"IFERROR(IF(Table_NCSummary[[#This Row],[Fixture Cost]]=\"\",\"\",Table_NCSummary[[#This Row],[Fixture Cost]]+IF(Table_NCSummary[[#This Row],[Controls Cost]]=\"\",0,Table_NCSummary[[#This Row],[Controls Cost]])),\"\")","v":""},{"$f":"IFERROR(IF(Table_NCSummary[[#This Row],[IsActive]],IF(NOT(ISNUMBER(Table_NCSummary[[#This Row],[Fixture Rebate]])),\"\",IF(Table_NCInfo[[#This Row],[Interior/ Exterior]]=\"Interior\",IFERROR((Table_NCSummary[[#This Row],[Annual Fixture Savings (kWh)]]+Table_NCSummary[[#This Row],[Annual Control Savings (kWh)]])*(Table_NCSummary[[#This Row],[EIF]]-1),0),0)),\"\"),\"\")","v":""},{"$f":"IFERROR(IF(Table_NCSummary[[#This Row],[IsActive]],IF(NOT(ISNUMBER(Table_NCSummary[[#This Row],[Fixture Rebate]])),\"\",IF(Table_NCInfo[[#This Row],[Interior/ Exterior]]=\"Interior\",IFERROR((Table_NCSummary[[#This Row],[Fixture kW Reduction]]+Table_NCSummary[[#This Row],[Control kW Reduction]]/(Table_NCSummary[[#This Row],[CF (Ltg)]]*Table_NCSummary[[#This Row],[DF (Ltg)]]))*(Table_NCSummary[[#This Row],[DIF]]-1)*Table_NCSummary[[#This Row],[CF (HVAC)]]*Table_NCSummary[[#This Row],[DF (HVAC)]],0),0)),\"\"),\"\")","v":""},{"$f":"IFERROR(IF(Table_NCSummary[[#This Row],[IsActive]],IF(NOT(ISNUMBER(Table_NCSummary[[#This Row],[Fixture Rebate]])),\"\",ROUND(Table_NCSummary[[#This Row],[Annual Fixture Savings (kWh)]]+Table_NCSummary[[#This Row],[Annual Control Savings (kWh)]],0)),\"\"),\"\")","v":""},{"$f":"IFERROR(IF(Table_NCSummary[[#This Row],[IsActive]],IF(NOT(ISNUMBER(Table_NCSummary[[#This Row],[Fixture Rebate]])),\"\",ROUND(Table_NCSummary[[#This Row],[Fixture kW Reduction]]+Table_NCSummary[[#This Row],[Control kW Reduction]],3)),\"\"),\"\")","v":""},{"$f":"IFERROR(IF(Table_NCSummary[[#This Row],[IsActive]],IF(NOT(ISNUMBER(Table_NCSummary[[#This Row],[Fixture Rebate]])),\"\",ROUND(Table_NCSummary[[#This Row],[Fixture Energy Savings (kWh)]]+Table_NCSummary[[#This Row],[Induced HVAC Energy Savings (kWh)]],0)),\"\"),\"\")","v":""},{"$f":"IFERROR(IF(Table_NCSummary[[#This Row],[IsActive]],IF(NOT(ISNUMBER(Table_NCSummary[[#This Row],[Fixture Rebate]])),\"\",ROUND(Table_NCSummary[[#This Row],[Fixture Demand Savings (kW)]]+Table_NCSummary[[#This Row],[Induced HVAC Demand Savings (kW)]],3)),\"\"),\"\")","v":""}]
[{"$f":"IFERROR(Table_NCInfo[[#This Row],[Line]],\"\")","v":36},{"$f":"IFERROR(Table_NCInfo[[#This Row],[IsActive]],\"\")","v":false},{"$f":"IFERROR(IF(Table_NCSummary[[#This Row],[IsActive]],VLOOKUP(IF(ISNUMBER(MATCH(Table_NCInfo[[#This Row],[Line]],Table_NCInspection[Line],0)),INDEX(Table_NCInspection[Schedule],MATCH(Table_NCSummary[[#This Row],[Line Item]],Table_NCInspection[Line],0)),Table_NCInfo[[#This Row],[Schedule]]),'Customer Information'!$S$27:$T$34,2,FALSE),\"\"),\"\")","v":""},{"$f":"IFERROR(IF(Table_NCSummary[[#This Row],[IsActive]],INDEX(Table_IntLookups[EIF],MATCH(IF(ISNUMBER(MATCH(Table_NCSummary[[#This Row],[Line Item]],Table_NCInspection[Line],0)),INDEX(Table_NCInspection[Zone Description],MATCH(Table_NCSummary[[#This Row],[Line Item]],Table_NCInfo[Line],0)),Table_NCInfo[[#This Row],[Zone Description]]),Table_IntLookups[Dropdown],0)),\"\"),\"\")","v":""},{"$f":"IFERROR(IF(Table_NCSummary[[#This Row],[IsActive]],INDEX(Table_IntLookups[DIF],MATCH(IF(ISNUMBER(MATCH(Table_NCSummary[[#This Row],[Line Item]],Table_NCInspection[Line],0)),INDEX(Table_NCInspection[Zone Description],MATCH(Table_NCSummary[[#This Row],[Line Item]],Table_NCInfo[Line],0)),Table_NCInfo[[#This Row],[Zone Description]]),Table_IntLookups[Dropdown],0)),\"\"),\"\")","v":""},{"$f":"IFERROR(IF(Table_NCSummary[[#This Row],[IsActive]],INDEX(Table_IntLookups[CFltg],MATCH(IF(ISNUMBER(MATCH(Table_NCSummary[[#This Row],[Line Item]],Table_NCInspection[Line],0)),INDEX(Table_NCInspection[Zone Description],MATCH(Table_NCSummary[[#This Row],[Line Item]],Table_NCInfo[Line],0)),Table_NCInfo[[#This Row],[Zone Description]]),Table_IntLookups[Dropdown],0)),\"\"),\"\")","v":""},{"$f":"IFERROR(IF(Table_NCSummary[[#This Row],[IsActive]],INDEX(Table_IntLookups[DFltg],MATCH(IF(ISNUMBER(MATCH(Table_NCSummary[[#This Row],[Line Item]],Table_NCInspection[Line],0)),INDEX(Table_NCInspection[Zone Description],MATCH(Table_NCSummary[[#This Row],[Line Item]],Table_NCInfo[Line],0)),Table_NCInfo[[#This Row],[Zone Description]]),Table_IntLookups[Dropdown],0)),\"\"),\"\")","v":""},{"$f":"IFERROR(IF(Table_NCSummary[[#This Row],[IsActive]],INDEX(Table_IntLookups[Cfhvac],MATCH(IF(ISNUMBER(MATCH(Table_NCSummary[[#This Row],[Line Item]],Table_NCInspection[Line],0)),INDEX(Table_NCInspection[Zone Description],MATCH(Table_NCSummary[[#This Row],[Line Item]],Table_NCInfo[Line],0)),Table_NCInfo[[#This Row],[Zone Description]]),Table_IntLookups[Dropdown],0)),\"\"),\"\")","v":""},{"$f":"IFERROR(IF(Table_NCSummary[[#This Row],[IsActive]],INDEX(Table_IntLookups[Dfhvac],MATCH(IF(ISNUMBER(MATCH(Table_NCSummary[[#This Row],[Line Item]],Table_NCInspection[Line],0)),INDEX(Table_NCInspection[Zone Description],MATCH(Table_NCSummary[[#This Row],[Line Item]],Table_NCInfo[Line],0)),Table_NCInfo[[#This Row],[Zone Description]]),Table_IntLookups[Dropdown],0)),\"\"),\"\")","v":""},{"$f":"IFERROR(IF(Table_NCSummary[[#This Row],[IsActive]],\nIF(ISNUMBER(MATCH(Table_NCInfo[[#This Row],[Line]],Table_NCInspection[Line],0)),INDEX(Table_NCInspection[Zone Description],MATCH(Table_NCSummary[[#This Row],[Line Item]],Table_NCInspection[Line],0)),Table_NCInfo[[#This Row],[Zone Description]]),\n \"\"),\"\")","v":""},{"$f":"IFERROR(IF(Table_NCSummary[[#This Row],[IsActive]],\nCONCATENATE(\nIF(ISNUMBER(MATCH(Table_NCInfo[[#This Row],[Line]],Table_NCInspection[Line],0)),INDEX(Table_NCInspection[Interior/ Exterior],MATCH(Table_NCSummary[[#This Row],[Line Item]],Table_NCInspection[Line],0)),Table_NCInfo[[#This Row],[Interior/ Exterior]]),\n\" - \",\nIF(ISNUMBER(MATCH(Table_NCInfo[[#This Row],[Line]],Table_NCInspection[Line],0)),INDEX(Table_NCInspection[Space Description],MATCH(Table_NCSummary[[#This Row],[Line Item]],Table_NCInspection[Line],0)),Table_NCInfo[[#This Row],[Space Description]])),\n \"\"),\"\")","v":""},{"$f":"IFERROR(IF(ISNUMBER(MATCH(Table_NCInfo[[#This Row],[Line]],Table_NCInspection[Line],0)),INDEX(Table_NCInspection[Baseline Wattage],MATCH(Table_NCSummary[[#This Row],[Line Item]],Table_NCInspection[Line],0)),Table_NCInfo[[#This Row],[Baseline Wattage]]),\"\")","v":""},{"$f":"IFERROR(IF(Table_NCSummary[[#This Row],[IsActive]],Table_NCSummary[[#This Row],[Baseline Wattage]]/1000*Table_NCSummary[[#This Row],[OpHrs]],\"\"),\"\")","v":""},{"$f":"IFERROR(IF(Table_NCSummary[[#This Row],[IsActive]],IFERROR(VLOOKUP(IF(ISNUMBER(MATCH(Table_NCSummary[[#This Row],[Line Item]],Table_NCInspection[Line],0)),INDEX(Table_NCInspection[Zone '#],MATCH(Table_NCSummary[[#This Row],[Line Item]],Table_NCInspection[Line],0)),Table_NCInfo[[#This Row],[Zone '#]]),Table_IntLookups[],'Facility Information'!$AA$4,FALSE),0),\"\"),\"\")","v":""},{"$f":"IFERROR(IF(Table_NCSummary[[#This Row],[IsActive]],IFERROR(Table_NCSummary[[#This Row],[Baseline Wattage]]/1000*Table_NCSummary[[#This Row],[OpHrs]]*Table_NCSummary[[#This Row],[Existing CSF]]*(-1),0),\"\"),\"\")","v":""},{"$f":"IFERROR(Table_NCSummary[[#This Row],[Baseline kWh]]+Table_NCSummary[[#This Row],[Existing Fixture (Existing Controls) kWh]],\"\")","v":""},{"$f":"IFERROR(IF(Table_NCSummary[[#This Row],[IsActive]],IF(ISNUMBER(MATCH(Table_NCInfo[[#This Row],[Line]],Table_NCInspection[Line],0)),INDEX(Table_NCInspection[Fixture Description '[P']],MATCH(Table_NCSummary[[#This Row],[Line Item]],Table_NCInspection[Line],0)),Table_NCInfo[[#This Row],[Fixture Description '[P']]]),\"\"),\"\")","v":""},{"$f":"IFERROR(IF(Table_NCSummary[[#This Row],[IsActive]],IF(ISNUMBER(MATCH(Table_NCInfo[[#This Row],[Line]],Table_NCInspection[Line],0)),INDEX(Table_NCInspection['# Lamps/ Fixture '[P']],MATCH(Table_NCSummary[[#This Row],[Line Item]],Table_NCInspection[Line],0)),Table_NCInfo[[#This Row],['# Lamps/ Fixture '[P']]]),\"\"),\"\")","v":""},{"$f":"IFERROR(IF(Table_NCSummary[[#This Row],[IsActive]],IF(ISNUMBER(MATCH(Table_NCInfo[[#This Row],[Line]],Table_NCInspection[Line],0)),INDEX(Table_NCInspection[Fixture/ Lamp Wattage '[P']],MATCH(Table_NCSummary[[#This Row],[Line Item]],Table_NCInspection[Line],0)),Table_NCInfo[[#This Row],[Fixture/ Lamp Wattage '[P']]]),\"\"),\"\")","v":""},{"$f":"IFERROR(IF(Table_NCSummary[[#This Row],[IsActive]],IF(ISNUMBER(MATCH(Table_NCInfo[[#This Row],[Line]],Table_NCInspection[Line],0)),INDEX(Table_NCInspection[Fixture Qty '[P']],MATCH(Table_NCSummary[[#This Row],[Line Item]],Table_NCInspection[Line],0)),Table_NCInfo[[#This Row],[Fixture Qty '[P']]]),\"\"),\"\")","v":""},{"$f":"IFERROR(IF(Table_NCSummary[[#This Row],[IsActive]],Table_NCSummary[[#This Row],['# Lamps/ Fixture '[P']]]*Table_NCSummary[[#This Row],[P. Qty]],\"\"),\"\")","v":""},{"$f":"IFERROR(IF(Table_NCSummary[[#This Row],[IsActive]],IF(ISNUMBER(MATCH(Table_NCInfo[[#This Row],[Line]],Table_NCInspection[Line],0)),INDEX(Table_NCInspection[Fixture Wattage '[P']],MATCH(Table_NCSummary[[#This Row],[Line Item]],Table_NCInspection[Line],0)),Table_NCInfo[[#This Row],[Fixture Wattage '[P']]]),\"\"),\"\")","v":""},{"$f":"IFERROR(Table_NCSummary[[#This Row],[P. Qty]]*Table_NCSummary[[#This Row],[Proposed Fixture Wattage]],\"\")","v":""},{"$f":"IFERROR(Table_NCSummary[[#This Row],[Proposed Fixture Wattage]]/1000*Table_NCSummary[[#This Row],[OpHrs]]*Table_NCSummary[[#This Row],[P. Qty]],\"\")","v":""},{"$f":"IFERROR(IF(Table_NCSummary[[#This Row],[IsActive]],IFERROR(VLOOKUP(RIGHT(Table_NCSummary[[#This Row],[Proposed Fixture]],LEN(Table_NCSummary[[#This Row],[Proposed Fixture]])-FIND(\" - \",Table_NCSummary[[#This Row],[Proposed Fixture]],FIND(\"]\",Table_NCSummary[[#This Row],[Proposed Fixture]],1))-2),Table_ControlType[],3, FALSE),Table_NCSummary[[#This Row],[Existing CSF]]),\"\"),\"\")","v":""},{"$f":"IFERROR(IF(Table_NCSummary[[#This Row],[IsActive]],IFERROR(Table_NCSummary[[#This Row],[Proposed Fixture Wattage]]/1000*Table_NCSummary[[#This Row],[OpHrs]]*Table_NCSummary[[#This Row],[P. Qty]]*Table_NCSummary[[#This Row],[Existing CSF]]*(-1),0),\"\"),\"\")","v":""},{"$f":"IFERROR(Table_NCSummary[[#This Row],[Proposed Fixture kWh]]+Table_NCSummary[[#This Row],[Proposed Fixture (Existing Controls) kWh]],\"\")","v":""},{"$f":"IFERROR(IF(Table_NCSummary[[#This Row],[IsActive]],IFERROR(Table_NCSummary[[#This Row],[Proposed Fixture Wattage]]/1000*Table_NCSummary[[#This Row],[OpHrs]]*Table_NCSummary[[#This Row],[P. Qty]]*Table_NCSummary[[#This Row],[Proposed CSF]]*(-1),0),\"\"),\"\")","v":""},{"$f":"IFERROR(Table_NCSummary[[#This Row],[Proposed Fixture kWh]]+Table_NCSummary[[#This Row],[Proposed Fixture (Proposed Controls) kWh]],\"\")","v":""},null,{"$f":"IFERROR(IF(Table_NCSummary[[#This Row],[IsActive]],IF((1-SUMPRODUCT(Table_NCSummary[P. Qty],Table_NCSummary[Proposed Fixture Wattage])/SUM(Table_NCSummary[Baseline Wattage]))<0.1,\"Does Not Qualify [Overall Fixture Reduction is less than 10%]\",IF(ISNUMBER(FIND(\"LED\",Table_NCSummary[[#This Row],[Proposed Fixture]],1)),IF(ISNUMBER(FIND(\"LED Tube\",Table_NCSummary[[#This Row],[Proposed Fixture]],1)),\"New Construction Interior LED Fixture\",IF(ISNUMBER(FIND(\"LED\",Table_NCSummary[[#This Row],[Proposed Fixture]],1)),IF(Table_NCInfo[[#This Row],[Interior/ Exterior]]=\"Exterior\",\"New Construction Exterior LED Fixture\",\"New Construction Interior LED Fixture\"),\"Ineligible Fixture\")),\"Ineligible Fixture\")),\"\"),\"\")","v":""},{"$f":"IFERROR(VLOOKUP(Table_NCSummary[[#This Row],[Fixture Measure Description]],Table_FixtureRate[],2,FALSE),\"\")","v":""},{"$f":"IFERROR(IF(Table_NCSummary[[#This Row],[IsActive]],IF((1-SUMPRODUCT(Table_NCSummary[P. Qty],Table_NCSummary[Proposed Fixture Wattage])/SUM(Table_NCSummary[Baseline Wattage]))<0.1,\"DNQ [kW Reduction <10%]\",IF(Table_NCSummary[[#This Row],[Fixture Measure Description]]=\"Ineligible Fixture\",0,ROUND(Table_NCSummary[[#This Row],[Fixture Rebate (per kW)]]*(Table_NCSummary[[#This Row],[Baseline Wattage]]-Table_NCSummary[[#This Row],[Proposed Wattage]])/1000,2))),\"\"),\"\")","v":""},{"$f":"IFERROR(IF(Table_NCSummary[[#This Row],[Fixture Measure Description]]=\"Ineligible Fixture\",0,ROUND(IF(ProjectCost_Total=0,300000,ProjectCost_Total)*Table_NCSummary[[#This Row],[Fixture Rebate]]/SUM(Table_NCSummary[Fixture Rebate],Table_NCSummary[Controls Rebate]),2)),\"\")","v":""},{"$f":"IFERROR(IF(Table_NCSummary[[#This Row],[IsActive]],IF((1-SUMPRODUCT(Table_NCSummary[P. Qty],Table_NCSummary[Proposed Fixture Wattage])/SUM(Table_NCSummary[Baseline Wattage]))<0.1,\"DNQ [kW Reduction <10%]\",IF(Table_NCSummary[[#This Row],[Fixture Measure Description]]=\"Ineligible Fixture\",0,Table_NCSummary[[#This Row],[Existing Overall kWh]]-Table_NCSummary[[#This Row],[Proposed Overall kWh (Existing Controls)]])),\"\"),\"\")","v":""},{"$f":"IFERROR(IF(Table_NCSummary[[#This Row],[IsActive]],IF((1-SUMPRODUCT(Table_NCSummary[P. Qty],Table_NCSummary[Proposed Fixture Wattage])/SUM(Table_NCSummary[Baseline Wattage]))<0.1,\"DNQ [kW Reduction <10%]\",IF(OR(Table_NCSummary[[#This Row],[Fixture Measure Description]]=\"Ineligible Fixture\",Table_NCSummary[[#This Row],[Fixture Measure Description]]=\"New Construction Exterior LED Fixture\"),0,(Table_NCSummary[[#This Row],[Baseline kWh]]-Table_NCSummary[[#This Row],[Proposed Fixture kWh]])/Table_NCSummary[[#This Row],[OpHrs]]*Table_NCSummary[[#This Row],[CF (Ltg)]]*Table_NCSummary[[#This Row],[DF (Ltg)]])),\"\"),\"\")","v":""},null,{"$f":"IFERROR(\n  IF(OR(Table_NCSummary[[#This Row],[Fixture Measure Description]]=\"\",Table_NCSummary[[#This Row],[Fixture Measure Description]]=\"Ineligible Fixture\"),\n    \"\",\n    \"New Construction\"\n    & \" - \" &\n    IFERROR(VLOOKUP(RIGHT(Table_NCSummary[[#This Row],[Proposed Fixture]],LEN(Table_NCSummary[[#This Row],[Proposed Fixture]])-FIND(\" - \",Table_NCSummary[[#This Row],[Proposed Fixture]],FIND(\"]\",Table_NCSummary[[#This Row],[Proposed Fixture]],1))-2),Table_ControlType[],2, FALSE),None)),\n\"\")","v":""},{"$f":"IFERROR(VLOOKUP(Table_NCSummary[[#This Row],[Controls Measure Description]],Table_ControlRate[],2,FALSE),\"\")","v":""},{"$f":"IFERROR(IF(Table_NCSummary[[#This Row],[IsActive]],IF((1-SUMPRODUCT(Table_NCSummary[P. Qty],Table_NCSummary[Proposed Fixture Wattage])/SUM(Table_NCSummary[Baseline Wattage]))<0.1,\"DNQ [kW Reduction <10%]\",IF(OR(Table_NCSummary[[#This Row],[Controls Measure Description]]=\"\",Table_NCSummary[[#This Row],[Controls Measure Description]]=\"New Construction - No Controls\"),0,ROUND(Table_NCSummary[[#This Row],[Controls Rebate (per Fixt Watt)]]*Table_NCSummary[[#This Row],[Proposed Fixture Wattage]]*Table_NCSummary[[#This Row],[P. Qty]],2))),\"\"),\"\")","v":""},{"$f":"IFERROR(IF(Table_NCSummary[[#This Row],[Fixture Measure Description]]=\"Ineligible Fixture\",0,ROUND(IF(ProjectCost_Total=0,300000,ProjectCost_Total)*Table_NCSummary[[#This Row],[Controls Rebate]]/SUM(Table_NCSummary[Fixture Rebate],Table_NCSummary[Controls Rebate]),2)),\"\")","v":""},{"$f":"IFERROR(IF(Table_NCSummary[[#This Row],[IsActive]],IF((1-SUMPRODUCT(Table_NCSummary[P. Qty],Table_NCSummary[Proposed Fixture Wattage])/SUM(Table_NCSummary[Baseline Wattage]))<0.1,\"DNQ [kW Reduction <10%]\",IF(Table_NCSummary[[#This Row],[Controls Measure Description]]=\"\",0,(Table_NCSummary[[#This Row],[Proposed Fixture (Existing Controls) kWh]]-Table_NCSummary[[#This Row],[Proposed Fixture (Proposed Controls) kWh]]))),\"\"),\"\")","v":""},{"$f":"IFERROR(IF(Table_NCSummary[[#This Row],[IsActive]],IF((1-SUMPRODUCT(Table_NCSummary[P. Qty],Table_NCSummary[Proposed Fixture Wattage])/SUM(Table_NCSummary[Baseline Wattage]))<0.1,\"DNQ [kW Reduction <10%]\",IF(OR(Table_NCSummary[[#This Row],[Controls Measure Description]]=\"\",Table_NCSummary[[#This Row],[Controls Measure Description]]=\"New Construction - No Controls\"),0,(Table_NCSummary[[#This Row],[Proposed Fixture (Existing Controls) kWh]]-Table_NCSummary[[#This Row],[Proposed Fixture (Proposed Controls) kWh]])/Table_NCSummary[[#This Row],[OpHrs]]*Table_NCSummary[[#This Row],[CF (Ltg)]]*Table_NCSummary[[#This Row],[DF (Ltg)]])),\"\"),\"\")","v":""},null,{"$f":"IFERROR(IF(NOT(ISNUMBER(Table_NCSummary[[#This Row],[Fixture Rebate]])),\"\",IF(MIN(IF(Table_NCSummary[[#This Row],[Fixture Cost]]<0,0,SUM(Table_NCSummary[Fixture Cost],Table_NCSummary[Controls Cost])),SUM(Table_NCSummary[Fixture Rebate],Table_NCSummary[Controls Rebate]))>300000,300000/MIN(IF(Table_NCSummary[[#This Row],[Fixture Cost]]<0,0,SUM(Table_NCSummary[Fixture Cost],Table_NCSummary[Controls Cost])),SUM(Table_NCSummary[Fixture Rebate],Table_NCSummary[Controls Rebate]))*MIN(IF(Table_NCSummary[[#This Row],[Fixture Cost]]<0,0,SUM(Table_NCSummary[Fixture Cost],Table_NCSummary[Controls Cost])),Table_NCSummary[[#This Row],[Fixture Rebate]]+IF(Table_NCSummary[[#This Row],[Controls Rebate]]=\"\",0,Table_NCSummary[[#This Row],[Controls Rebate]])),MIN(IF(Table_NCSummary[[#This Row],[Fixture Cost]]<0,0,SUM(Table_NCSummary[Fixture Cost],Table_NCSummary[Controls Cost])),Table_NCSummary[[#This Row],[Fixture Rebate]]+IF(Table_NCSummary[[#This Row],[Controls Rebate]]=\"\",0,Table_NCSummary[[#This Row],[Controls Rebate]])))),\"\")","v":""},{"$f":"IFERROR(IF(Table_NCSummary[[#This Row],[Fixture Cost]]=\"\",\"\",Table_NCSummary[[#This Row],[Fixture Cost]]+IF(Table_NCSummary[[#This Row],[Controls Cost]]=\"\",0,Table_NCSummary[[#This Row],[Controls Cost]])),\"\")","v":""},{"$f":"IFERROR(IF(Table_NCSummary[[#This Row],[IsActive]],IF(NOT(ISNUMBER(Table_NCSummary[[#This Row],[Fixture Rebate]])),\"\",IF(Table_NCInfo[[#This Row],[Interior/ Exterior]]=\"Interior\",IFERROR((Table_NCSummary[[#This Row],[Annual Fixture Savings (kWh)]]+Table_NCSummary[[#This Row],[Annual Control Savings (kWh)]])*(Table_NCSummary[[#This Row],[EIF]]-1),0),0)),\"\"),\"\")","v":""},{"$f":"IFERROR(IF(Table_NCSummary[[#This Row],[IsActive]],IF(NOT(ISNUMBER(Table_NCSummary[[#This Row],[Fixture Rebate]])),\"\",IF(Table_NCInfo[[#This Row],[Interior/ Exterior]]=\"Interior\",IFERROR((Table_NCSummary[[#This Row],[Fixture kW Reduction]]+Table_NCSummary[[#This Row],[Control kW Reduction]]/(Table_NCSummary[[#This Row],[CF (Ltg)]]*Table_NCSummary[[#This Row],[DF (Ltg)]]))*(Table_NCSummary[[#This Row],[DIF]]-1)*Table_NCSummary[[#This Row],[CF (HVAC)]]*Table_NCSummary[[#This Row],[DF (HVAC)]],0),0)),\"\"),\"\")","v":""},{"$f":"IFERROR(IF(Table_NCSummary[[#This Row],[IsActive]],IF(NOT(ISNUMBER(Table_NCSummary[[#This Row],[Fixture Rebate]])),\"\",ROUND(Table_NCSummary[[#This Row],[Annual Fixture Savings (kWh)]]+Table_NCSummary[[#This Row],[Annual Control Savings (kWh)]],0)),\"\"),\"\")","v":""},{"$f":"IFERROR(IF(Table_NCSummary[[#This Row],[IsActive]],IF(NOT(ISNUMBER(Table_NCSummary[[#This Row],[Fixture Rebate]])),\"\",ROUND(Table_NCSummary[[#This Row],[Fixture kW Reduction]]+Table_NCSummary[[#This Row],[Control kW Reduction]],3)),\"\"),\"\")","v":""},{"$f":"IFERROR(IF(Table_NCSummary[[#This Row],[IsActive]],IF(NOT(ISNUMBER(Table_NCSummary[[#This Row],[Fixture Rebate]])),\"\",ROUND(Table_NCSummary[[#This Row],[Fixture Energy Savings (kWh)]]+Table_NCSummary[[#This Row],[Induced HVAC Energy Savings (kWh)]],0)),\"\"),\"\")","v":""},{"$f":"IFERROR(IF(Table_NCSummary[[#This Row],[IsActive]],IF(NOT(ISNUMBER(Table_NCSummary[[#This Row],[Fixture Rebate]])),\"\",ROUND(Table_NCSummary[[#This Row],[Fixture Demand Savings (kW)]]+Table_NCSummary[[#This Row],[Induced HVAC Demand Savings (kW)]],3)),\"\"),\"\")","v":""}]
[{"$f":"IFERROR(Table_NCInfo[[#This Row],[Line]],\"\")","v":37},{"$f":"IFERROR(Table_NCInfo[[#This Row],[IsActive]],\"\")","v":false},{"$f":"IFERROR(IF(Table_NCSummary[[#This Row],[IsActive]],VLOOKUP(IF(ISNUMBER(MATCH(Table_NCInfo[[#This Row],[Line]],Table_NCInspection[Line],0)),INDEX(Table_NCInspection[Schedule],MATCH(Table_NCSummary[[#This Row],[Line Item]],Table_NCInspection[Line],0)),Table_NCInfo[[#This Row],[Schedule]]),'Customer Information'!$S$27:$T$34,2,FALSE),\"\"),\"\")","v":""},{"$f":"IFERROR(IF(Table_NCSummary[[#This Row],[IsActive]],INDEX(Table_IntLookups[EIF],MATCH(IF(ISNUMBER(MATCH(Table_NCSummary[[#This Row],[Line Item]],Table_NCInspection[Line],0)),INDEX(Table_NCInspection[Zone Description],MATCH(Table_NCSummary[[#This Row],[Line Item]],Table_NCInfo[Line],0)),Table_NCInfo[[#This Row],[Zone Description]]),Table_IntLookups[Dropdown],0)),\"\"),\"\")","v":""},{"$f":"IFERROR(IF(Table_NCSummary[[#This Row],[IsActive]],INDEX(Table_IntLookups[DIF],MATCH(IF(ISNUMBER(MATCH(Table_NCSummary[[#This Row],[Line Item]],Table_NCInspection[Line],0)),INDEX(Table_NCInspection[Zone Description],MATCH(Table_NCSummary[[#This Row],[Line Item]],Table_NCInfo[Line],0)),Table_NCInfo[[#This Row],[Zone Description]]),Table_IntLookups[Dropdown],0)),\"\"),\"\")","v":""},{"$f":"IFERROR(IF(Table_NCSummary[[#This Row],[IsActive]],INDEX(Table_IntLookups[CFltg],MATCH(IF(ISNUMBER(MATCH(Table_NCSummary[[#This Row],[Line Item]],Table_NCInspection[Line],0)),INDEX(Table_NCInspection[Zone Description],MATCH(Table_NCSummary[[#This Row],[Line Item]],Table_NCInfo[Line],0)),Table_NCInfo[[#This Row],[Zone Description]]),Table_IntLookups[Dropdown],0)),\"\"),\"\")","v":""},{"$f":"IFERROR(IF(Table_NCSummary[[#This Row],[IsActive]],INDEX(Table_IntLookups[DFltg],MATCH(IF(ISNUMBER(MATCH(Table_NCSummary[[#This Row],[Line Item]],Table_NCInspection[Line],0)),INDEX(Table_NCInspection[Zone Description],MATCH(Table_NCSummary[[#This Row],[Line Item]],Table_NCInfo[Line],0)),Table_NCInfo[[#This Row],[Zone Description]]),Table_IntLookups[Dropdown],0)),\"\"),\"\")","v":""},{"$f":"IFERROR(IF(Table_NCSummary[[#This Row],[IsActive]],INDEX(Table_IntLookups[Cfhvac],MATCH(IF(ISNUMBER(MATCH(Table_NCSummary[[#This Row],[Line Item]],Table_NCInspection[Line],0)),INDEX(Table_NCInspection[Zone Description],MATCH(Table_NCSummary[[#This Row],[Line Item]],Table_NCInfo[Line],0)),Table_NCInfo[[#This Row],[Zone Description]]),Table_IntLookups[Dropdown],0)),\"\"),\"\")","v":""},{"$f":"IFERROR(IF(Table_NCSummary[[#This Row],[IsActive]],INDEX(Table_IntLookups[Dfhvac],MATCH(IF(ISNUMBER(MATCH(Table_NCSummary[[#This Row],[Line Item]],Table_NCInspection[Line],0)),INDEX(Table_NCInspection[Zone Description],MATCH(Table_NCSummary[[#This Row],[Line Item]],Table_NCInfo[Line],0)),Table_NCInfo[[#This Row],[Zone Description]]),Table_IntLookups[Dropdown],0)),\"\"),\"\")","v":""},{"$f":"IFERROR(IF(Table_NCSummary[[#This Row],[IsActive]],\nIF(ISNUMBER(MATCH(Table_NCInfo[[#This Row],[Line]],Table_NCInspection[Line],0)),INDEX(Table_NCInspection[Zone Description],MATCH(Table_NCSummary[[#This Row],[Line Item]],Table_NCInspection[Line],0)),Table_NCInfo[[#This Row],[Zone Description]]),\n \"\"),\"\")","v":""},{"$f":"IFERROR(IF(Table_NCSummary[[#This Row],[IsActive]],\nCONCATENATE(\nIF(ISNUMBER(MATCH(Table_NCInfo[[#This Row],[Line]],Table_NCInspection[Line],0)),INDEX(Table_NCInspection[Interior/ Exterior],MATCH(Table_NCSummary[[#This Row],[Line Item]],Table_NCInspection[Line],0)),Table_NCInfo[[#This Row],[Interior/ Exterior]]),\n\" - \",\nIF(ISNUMBER(MATCH(Table_NCInfo[[#This Row],[Line]],Table_NCInspection[Line],0)),INDEX(Table_NCInspection[Space Description],MATCH(Table_NCSummary[[#This Row],[Line Item]],Table_NCInspection[Line],0)),Table_NCInfo[[#This Row],[Space Description]])),\n \"\"),\"\")","v":""},{"$f":"IFERROR(IF(ISNUMBER(MATCH(Table_NCInfo[[#This Row],[Line]],Table_NCInspection[Line],0)),INDEX(Table_NCInspection[Baseline Wattage],MATCH(Table_NCSummary[[#This Row],[Line Item]],Table_NCInspection[Line],0)),Table_NCInfo[[#This Row],[Baseline Wattage]]),\"\")","v":""},{"$f":"IFERROR(IF(Table_NCSummary[[#This Row],[IsActive]],Table_NCSummary[[#This Row],[Baseline Wattage]]/1000*Table_NCSummary[[#This Row],[OpHrs]],\"\"),\"\")","v":""},{"$f":"IFERROR(IF(Table_NCSummary[[#This Row],[IsActive]],IFERROR(VLOOKUP(IF(ISNUMBER(MATCH(Table_NCSummary[[#This Row],[Line Item]],Table_NCInspection[Line],0)),INDEX(Table_NCInspection[Zone '#],MATCH(Table_NCSummary[[#This Row],[Line Item]],Table_NCInspection[Line],0)),Table_NCInfo[[#This Row],[Zone '#]]),Table_IntLookups[],'Facility Information'!$AA$4,FALSE),0),\"\"),\"\")","v":""},{"$f":"IFERROR(IF(Table_NCSummary[[#This Row],[IsActive]],IFERROR(Table_NCSummary[[#This Row],[Baseline Wattage]]/1000*Table_NCSummary[[#This Row],[OpHrs]]*Table_NCSummary[[#This Row],[Existing CSF]]*(-1),0),\"\"),\"\")","v":""},{"$f":"IFERROR(Table_NCSummary[[#This Row],[Baseline kWh]]+Table_NCSummary[[#This Row],[Existing Fixture (Existing Controls) kWh]],\"\")","v":""},{"$f":"IFERROR(IF(Table_NCSummary[[#This Row],[IsActive]],IF(ISNUMBER(MATCH(Table_NCInfo[[#This Row],[Line]],Table_NCInspection[Line],0)),INDEX(Table_NCInspection[Fixture Description '[P']],MATCH(Table_NCSummary[[#This Row],[Line Item]],Table_NCInspection[Line],0)),Table_NCInfo[[#This Row],[Fixture Description '[P']]]),\"\"),\"\")","v":""},{"$f":"IFERROR(IF(Table_NCSummary[[#This Row],[IsActive]],IF(ISNUMBER(MATCH(Table_NCInfo[[#This Row],[Line]],Table_NCInspection[Line],0)),INDEX(Table_NCInspection['# Lamps/ Fixture '[P']],MATCH(Table_NCSummary[[#This Row],[Line Item]],Table_NCInspection[Line],0)),Table_NCInfo[[#This Row],['# Lamps/ Fixture '[P']]]),\"\"),\"\")","v":""},{"$f":"IFERROR(IF(Table_NCSummary[[#This Row],[IsActive]],IF(ISNUMBER(MATCH(Table_NCInfo[[#This Row],[Line]],Table_NCInspection[Line],0)),INDEX(Table_NCInspection[Fixture/ Lamp Wattage '[P']],MATCH(Table_NCSummary[[#This Row],[Line Item]],Table_NCInspection[Line],0)),Table_NCInfo[[#This Row],[Fixture/ Lamp Wattage '[P']]]),\"\"),\"\")","v":""},{"$f":"IFERROR(IF(Table_NCSummary[[#This Row],[IsActive]],IF(ISNUMBER(MATCH(Table_NCInfo[[#This Row],[Line]],Table_NCInspection[Line],0)),INDEX(Table_NCInspection[Fixture Qty '[P']],MATCH(Table_NCSummary[[#This Row],[Line Item]],Table_NCInspection[Line],0)),Table_NCInfo[[#This Row],[Fixture Qty '[P']]]),\"\"),\"\")","v":""},{"$f":"IFERROR(IF(Table_NCSummary[[#This Row],[IsActive]],Table_NCSummary[[#This Row],['# Lamps/ Fixture '[P']]]*Table_NCSummary[[#This Row],[P. Qty]],\"\"),\"\")","v":""},{"$f":"IFERROR(IF(Table_NCSummary[[#This Row],[IsActive]],IF(ISNUMBER(MATCH(Table_NCInfo[[#This Row],[Line]],Table_NCInspection[Line],0)),INDEX(Table_NCInspection[Fixture Wattage '[P']],MATCH(Table_NCSummary[[#This Row],[Line Item]],Table_NCInspection[Line],0)),Table_NCInfo[[#This Row],[Fixture Wattage '[P']]]),\"\"),\"\")","v":""},{"$f":"IFERROR(Table_NCSummary[[#This Row],[P. Qty]]*Table_NCSummary[[#This Row],[Proposed Fixture Wattage]],\"\")","v":""},{"$f":"IFERROR(Table_NCSummary[[#This Row],[Proposed Fixture Wattage]]/1000*Table_NCSummary[[#This Row],[OpHrs]]*Table_NCSummary[[#This Row],[P. Qty]],\"\")","v":""},{"$f":"IFERROR(IF(Table_NCSummary[[#This Row],[IsActive]],IFERROR(VLOOKUP(RIGHT(Table_NCSummary[[#This Row],[Proposed Fixture]],LEN(Table_NCSummary[[#This Row],[Proposed Fixture]])-FIND(\" - \",Table_NCSummary[[#This Row],[Proposed Fixture]],FIND(\"]\",Table_NCSummary[[#This Row],[Proposed Fixture]],1))-2),Table_ControlType[],3, FALSE),Table_NCSummary[[#This Row],[Existing CSF]]),\"\"),\"\")","v":""},{"$f":"IFERROR(IF(Table_NCSummary[[#This Row],[IsActive]],IFERROR(Table_NCSummary[[#This Row],[Proposed Fixture Wattage]]/1000*Table_NCSummary[[#This Row],[OpHrs]]*Table_NCSummary[[#This Row],[P. Qty]]*Table_NCSummary[[#This Row],[Existing CSF]]*(-1),0),\"\"),\"\")","v":""},{"$f":"IFERROR(Table_NCSummary[[#This Row],[Proposed Fixture kWh]]+Table_NCSummary[[#This Row],[Proposed Fixture (Existing Controls) kWh]],\"\")","v":""},{"$f":"IFERROR(IF(Table_NCSummary[[#This Row],[IsActive]],IFERROR(Table_NCSummary[[#This Row],[Proposed Fixture Wattage]]/1000*Table_NCSummary[[#This Row],[OpHrs]]*Table_NCSummary[[#This Row],[P. Qty]]*Table_NCSummary[[#This Row],[Proposed CSF]]*(-1),0),\"\"),\"\")","v":""},{"$f":"IFERROR(Table_NCSummary[[#This Row],[Proposed Fixture kWh]]+Table_NCSummary[[#This Row],[Proposed Fixture (Proposed Controls) kWh]],\"\")","v":""},null,{"$f":"IFERROR(IF(Table_NCSummary[[#This Row],[IsActive]],IF((1-SUMPRODUCT(Table_NCSummary[P. Qty],Table_NCSummary[Proposed Fixture Wattage])/SUM(Table_NCSummary[Baseline Wattage]))<0.1,\"Does Not Qualify [Overall Fixture Reduction is less than 10%]\",IF(ISNUMBER(FIND(\"LED\",Table_NCSummary[[#This Row],[Proposed Fixture]],1)),IF(ISNUMBER(FIND(\"LED Tube\",Table_NCSummary[[#This Row],[Proposed Fixture]],1)),\"New Construction Interior LED Fixture\",IF(ISNUMBER(FIND(\"LED\",Table_NCSummary[[#This Row],[Proposed Fixture]],1)),IF(Table_NCInfo[[#This Row],[Interior/ Exterior]]=\"Exterior\",\"New Construction Exterior LED Fixture\",\"New Construction Interior LED Fixture\"),\"Ineligible Fixture\")),\"Ineligible Fixture\")),\"\"),\"\")","v":""},{"$f":"IFERROR(VLOOKUP(Table_NCSummary[[#This Row],[Fixture Measure Description]],Table_FixtureRate[],2,FALSE),\"\")","v":""},{"$f":"IFERROR(IF(Table_NCSummary[[#This Row],[IsActive]],IF((1-SUMPRODUCT(Table_NCSummary[P. Qty],Table_NCSummary[Proposed Fixture Wattage])/SUM(Table_NCSummary[Baseline Wattage]))<0.1,\"DNQ [kW Reduction <10%]\",IF(Table_NCSummary[[#This Row],[Fixture Measure Description]]=\"Ineligible Fixture\",0,ROUND(Table_NCSummary[[#This Row],[Fixture Rebate (per kW)]]*(Table_NCSummary[[#This Row],[Baseline Wattage]]-Table_NCSummary[[#This Row],[Proposed Wattage]])/1000,2))),\"\"),\"\")","v":""},{"$f":"IFERROR(IF(Table_NCSummary[[#This Row],[Fixture Measure Description]]=\"Ineligible Fixture\",0,ROUND(IF(ProjectCost_Total=0,300000,ProjectCost_Total)*Table_NCSummary[[#This Row],[Fixture Rebate]]/SUM(Table_NCSummary[Fixture Rebate],Table_NCSummary[Controls Rebate]),2)),\"\")","v":""},{"$f":"IFERROR(IF(Table_NCSummary[[#This Row],[IsActive]],IF((1-SUMPRODUCT(Table_NCSummary[P. Qty],Table_NCSummary[Proposed Fixture Wattage])/SUM(Table_NCSummary[Baseline Wattage]))<0.1,\"DNQ [kW Reduction <10%]\",IF(Table_NCSummary[[#This Row],[Fixture Measure Description]]=\"Ineligible Fixture\",0,Table_NCSummary[[#This Row],[Existing Overall kWh]]-Table_NCSummary[[#This Row],[Proposed Overall kWh (Existing Controls)]])),\"\"),\"\")","v":""},{"$f":"IFERROR(IF(Table_NCSummary[[#This Row],[IsActive]],IF((1-SUMPRODUCT(Table_NCSummary[P. Qty],Table_NCSummary[Proposed Fixture Wattage])/SUM(Table_NCSummary[Baseline Wattage]))<0.1,\"DNQ [kW Reduction <10%]\",IF(OR(Table_NCSummary[[#This Row],[Fixture Measure Description]]=\"Ineligible Fixture\",Table_NCSummary[[#This Row],[Fixture Measure Description]]=\"New Construction Exterior LED Fixture\"),0,(Table_NCSummary[[#This Row],[Baseline kWh]]-Table_NCSummary[[#This Row],[Proposed Fixture kWh]])/Table_NCSummary[[#This Row],[OpHrs]]*Table_NCSummary[[#This Row],[CF (Ltg)]]*Table_NCSummary[[#This Row],[DF (Ltg)]])),\"\"),\"\")","v":""},null,{"$f":"IFERROR(\n  IF(OR(Table_NCSummary[[#This Row],[Fixture Measure Description]]=\"\",Table_NCSummary[[#This Row],[Fixture Measure Description]]=\"Ineligible Fixture\"),\n    \"\",\n    \"New Construction\"\n    & \" - \" &\n    IFERROR(VLOOKUP(RIGHT(Table_NCSummary[[#This Row],[Proposed Fixture]],LEN(Table_NCSummary[[#This Row],[Proposed Fixture]])-FIND(\" - \",Table_NCSummary[[#This Row],[Proposed Fixture]],FIND(\"]\",Table_NCSummary[[#This Row],[Proposed Fixture]],1))-2),Table_ControlType[],2, FALSE),None)),\n\"\")","v":""},{"$f":"IFERROR(VLOOKUP(Table_NCSummary[[#This Row],[Controls Measure Description]],Table_ControlRate[],2,FALSE),\"\")","v":""},{"$f":"IFERROR(IF(Table_NCSummary[[#This Row],[IsActive]],IF((1-SUMPRODUCT(Table_NCSummary[P. Qty],Table_NCSummary[Proposed Fixture Wattage])/SUM(Table_NCSummary[Baseline Wattage]))<0.1,\"DNQ [kW Reduction <10%]\",IF(OR(Table_NCSummary[[#This Row],[Controls Measure Description]]=\"\",Table_NCSummary[[#This Row],[Controls Measure Description]]=\"New Construction - No Controls\"),0,ROUND(Table_NCSummary[[#This Row],[Controls Rebate (per Fixt Watt)]]*Table_NCSummary[[#This Row],[Proposed Fixture Wattage]]*Table_NCSummary[[#This Row],[P. Qty]],2))),\"\"),\"\")","v":""},{"$f":"IFERROR(IF(Table_NCSummary[[#This Row],[Fixture Measure Description]]=\"Ineligible Fixture\",0,ROUND(IF(ProjectCost_Total=0,300000,ProjectCost_Total)*Table_NCSummary[[#This Row],[Controls Rebate]]/SUM(Table_NCSummary[Fixture Rebate],Table_NCSummary[Controls Rebate]),2)),\"\")","v":""},{"$f":"IFERROR(IF(Table_NCSummary[[#This Row],[IsActive]],IF((1-SUMPRODUCT(Table_NCSummary[P. Qty],Table_NCSummary[Proposed Fixture Wattage])/SUM(Table_NCSummary[Baseline Wattage]))<0.1,\"DNQ [kW Reduction <10%]\",IF(Table_NCSummary[[#This Row],[Controls Measure Description]]=\"\",0,(Table_NCSummary[[#This Row],[Proposed Fixture (Existing Controls) kWh]]-Table_NCSummary[[#This Row],[Proposed Fixture (Proposed Controls) kWh]]))),\"\"),\"\")","v":""},{"$f":"IFERROR(IF(Table_NCSummary[[#This Row],[IsActive]],IF((1-SUMPRODUCT(Table_NCSummary[P. Qty],Table_NCSummary[Proposed Fixture Wattage])/SUM(Table_NCSummary[Baseline Wattage]))<0.1,\"DNQ [kW Reduction <10%]\",IF(OR(Table_NCSummary[[#This Row],[Controls Measure Description]]=\"\",Table_NCSummary[[#This Row],[Controls Measure Description]]=\"New Construction - No Controls\"),0,(Table_NCSummary[[#This Row],[Proposed Fixture (Existing Controls) kWh]]-Table_NCSummary[[#This Row],[Proposed Fixture (Proposed Controls) kWh]])/Table_NCSummary[[#This Row],[OpHrs]]*Table_NCSummary[[#This Row],[CF (Ltg)]]*Table_NCSummary[[#This Row],[DF (Ltg)]])),\"\"),\"\")","v":""},null,{"$f":"IFERROR(IF(NOT(ISNUMBER(Table_NCSummary[[#This Row],[Fixture Rebate]])),\"\",IF(MIN(IF(Table_NCSummary[[#This Row],[Fixture Cost]]<0,0,SUM(Table_NCSummary[Fixture Cost],Table_NCSummary[Controls Cost])),SUM(Table_NCSummary[Fixture Rebate],Table_NCSummary[Controls Rebate]))>300000,300000/MIN(IF(Table_NCSummary[[#This Row],[Fixture Cost]]<0,0,SUM(Table_NCSummary[Fixture Cost],Table_NCSummary[Controls Cost])),SUM(Table_NCSummary[Fixture Rebate],Table_NCSummary[Controls Rebate]))*MIN(IF(Table_NCSummary[[#This Row],[Fixture Cost]]<0,0,SUM(Table_NCSummary[Fixture Cost],Table_NCSummary[Controls Cost])),Table_NCSummary[[#This Row],[Fixture Rebate]]+IF(Table_NCSummary[[#This Row],[Controls Rebate]]=\"\",0,Table_NCSummary[[#This Row],[Controls Rebate]])),MIN(IF(Table_NCSummary[[#This Row],[Fixture Cost]]<0,0,SUM(Table_NCSummary[Fixture Cost],Table_NCSummary[Controls Cost])),Table_NCSummary[[#This Row],[Fixture Rebate]]+IF(Table_NCSummary[[#This Row],[Controls Rebate]]=\"\",0,Table_NCSummary[[#This Row],[Controls Rebate]])))),\"\")","v":""},{"$f":"IFERROR(IF(Table_NCSummary[[#This Row],[Fixture Cost]]=\"\",\"\",Table_NCSummary[[#This Row],[Fixture Cost]]+IF(Table_NCSummary[[#This Row],[Controls Cost]]=\"\",0,Table_NCSummary[[#This Row],[Controls Cost]])),\"\")","v":""},{"$f":"IFERROR(IF(Table_NCSummary[[#This Row],[IsActive]],IF(NOT(ISNUMBER(Table_NCSummary[[#This Row],[Fixture Rebate]])),\"\",IF(Table_NCInfo[[#This Row],[Interior/ Exterior]]=\"Interior\",IFERROR((Table_NCSummary[[#This Row],[Annual Fixture Savings (kWh)]]+Table_NCSummary[[#This Row],[Annual Control Savings (kWh)]])*(Table_NCSummary[[#This Row],[EIF]]-1),0),0)),\"\"),\"\")","v":""},{"$f":"IFERROR(IF(Table_NCSummary[[#This Row],[IsActive]],IF(NOT(ISNUMBER(Table_NCSummary[[#This Row],[Fixture Rebate]])),\"\",IF(Table_NCInfo[[#This Row],[Interior/ Exterior]]=\"Interior\",IFERROR((Table_NCSummary[[#This Row],[Fixture kW Reduction]]+Table_NCSummary[[#This Row],[Control kW Reduction]]/(Table_NCSummary[[#This Row],[CF (Ltg)]]*Table_NCSummary[[#This Row],[DF (Ltg)]]))*(Table_NCSummary[[#This Row],[DIF]]-1)*Table_NCSummary[[#This Row],[CF (HVAC)]]*Table_NCSummary[[#This Row],[DF (HVAC)]],0),0)),\"\"),\"\")","v":""},{"$f":"IFERROR(IF(Table_NCSummary[[#This Row],[IsActive]],IF(NOT(ISNUMBER(Table_NCSummary[[#This Row],[Fixture Rebate]])),\"\",ROUND(Table_NCSummary[[#This Row],[Annual Fixture Savings (kWh)]]+Table_NCSummary[[#This Row],[Annual Control Savings (kWh)]],0)),\"\"),\"\")","v":""},{"$f":"IFERROR(IF(Table_NCSummary[[#This Row],[IsActive]],IF(NOT(ISNUMBER(Table_NCSummary[[#This Row],[Fixture Rebate]])),\"\",ROUND(Table_NCSummary[[#This Row],[Fixture kW Reduction]]+Table_NCSummary[[#This Row],[Control kW Reduction]],3)),\"\"),\"\")","v":""},{"$f":"IFERROR(IF(Table_NCSummary[[#This Row],[IsActive]],IF(NOT(ISNUMBER(Table_NCSummary[[#This Row],[Fixture Rebate]])),\"\",ROUND(Table_NCSummary[[#This Row],[Fixture Energy Savings (kWh)]]+Table_NCSummary[[#This Row],[Induced HVAC Energy Savings (kWh)]],0)),\"\"),\"\")","v":""},{"$f":"IFERROR(IF(Table_NCSummary[[#This Row],[IsActive]],IF(NOT(ISNUMBER(Table_NCSummary[[#This Row],[Fixture Rebate]])),\"\",ROUND(Table_NCSummary[[#This Row],[Fixture Demand Savings (kW)]]+Table_NCSummary[[#This Row],[Induced HVAC Demand Savings (kW)]],3)),\"\"),\"\")","v":""}]
[{"$f":"IFERROR(Table_NCInfo[[#This Row],[Line]],\"\")","v":38},{"$f":"IFERROR(Table_NCInfo[[#This Row],[IsActive]],\"\")","v":false},{"$f":"IFERROR(IF(Table_NCSummary[[#This Row],[IsActive]],VLOOKUP(IF(ISNUMBER(MATCH(Table_NCInfo[[#This Row],[Line]],Table_NCInspection[Line],0)),INDEX(Table_NCInspection[Schedule],MATCH(Table_NCSummary[[#This Row],[Line Item]],Table_NCInspection[Line],0)),Table_NCInfo[[#This Row],[Schedule]]),'Customer Information'!$S$27:$T$34,2,FALSE),\"\"),\"\")","v":""},{"$f":"IFERROR(IF(Table_NCSummary[[#This Row],[IsActive]],INDEX(Table_IntLookups[EIF],MATCH(IF(ISNUMBER(MATCH(Table_NCSummary[[#This Row],[Line Item]],Table_NCInspection[Line],0)),INDEX(Table_NCInspection[Zone Description],MATCH(Table_NCSummary[[#This Row],[Line Item]],Table_NCInfo[Line],0)),Table_NCInfo[[#This Row],[Zone Description]]),Table_IntLookups[Dropdown],0)),\"\"),\"\")","v":""},{"$f":"IFERROR(IF(Table_NCSummary[[#This Row],[IsActive]],INDEX(Table_IntLookups[DIF],MATCH(IF(ISNUMBER(MATCH(Table_NCSummary[[#This Row],[Line Item]],Table_NCInspection[Line],0)),INDEX(Table_NCInspection[Zone Description],MATCH(Table_NCSummary[[#This Row],[Line Item]],Table_NCInfo[Line],0)),Table_NCInfo[[#This Row],[Zone Description]]),Table_IntLookups[Dropdown],0)),\"\"),\"\")","v":""},{"$f":"IFERROR(IF(Table_NCSummary[[#This Row],[IsActive]],INDEX(Table_IntLookups[CFltg],MATCH(IF(ISNUMBER(MATCH(Table_NCSummary[[#This Row],[Line Item]],Table_NCInspection[Line],0)),INDEX(Table_NCInspection[Zone Description],MATCH(Table_NCSummary[[#This Row],[Line Item]],Table_NCInfo[Line],0)),Table_NCInfo[[#This Row],[Zone Description]]),Table_IntLookups[Dropdown],0)),\"\"),\"\")","v":""},{"$f":"IFERROR(IF(Table_NCSummary[[#This Row],[IsActive]],INDEX(Table_IntLookups[DFltg],MATCH(IF(ISNUMBER(MATCH(Table_NCSummary[[#This Row],[Line Item]],Table_NCInspection[Line],0)),INDEX(Table_NCInspection[Zone Description],MATCH(Table_NCSummary[[#This Row],[Line Item]],Table_NCInfo[Line],0)),Table_NCInfo[[#This Row],[Zone Description]]),Table_IntLookups[Dropdown],0)),\"\"),\"\")","v":""},{"$f":"IFERROR(IF(Table_NCSummary[[#This Row],[IsActive]],INDEX(Table_IntLookups[Cfhvac],MATCH(IF(ISNUMBER(MATCH(Table_NCSummary[[#This Row],[Line Item]],Table_NCInspection[Line],0)),INDEX(Table_NCInspection[Zone Description],MATCH(Table_NCSummary[[#This Row],[Line Item]],Table_NCInfo[Line],0)),Table_NCInfo[[#This Row],[Zone Description]]),Table_IntLookups[Dropdown],0)),\"\"),\"\")","v":""},{"$f":"IFERROR(IF(Table_NCSummary[[#This Row],[IsActive]],INDEX(Table_IntLookups[Dfhvac],MATCH(IF(ISNUMBER(MATCH(Table_NCSummary[[#This Row],[Line Item]],Table_NCInspection[Line],0)),INDEX(Table_NCInspection[Zone Description],MATCH(Table_NCSummary[[#This Row],[Line Item]],Table_NCInfo[Line],0)),Table_NCInfo[[#This Row],[Zone Description]]),Table_IntLookups[Dropdown],0)),\"\"),\"\")","v":""},{"$f":"IFERROR(IF(Table_NCSummary[[#This Row],[IsActive]],\nIF(ISNUMBER(MATCH(Table_NCInfo[[#This Row],[Line]],Table_NCInspection[Line],0)),INDEX(Table_NCInspection[Zone Description],MATCH(Table_NCSummary[[#This Row],[Line Item]],Table_NCInspection[Line],0)),Table_NCInfo[[#This Row],[Zone Description]]),\n \"\"),\"\")","v":""},{"$f":"IFERROR(IF(Table_NCSummary[[#This Row],[IsActive]],\nCONCATENATE(\nIF(ISNUMBER(MATCH(Table_NCInfo[[#This Row],[Line]],Table_NCInspection[Line],0)),INDEX(Table_NCInspection[Interior/ Exterior],MATCH(Table_NCSummary[[#This Row],[Line Item]],Table_NCInspection[Line],0)),Table_NCInfo[[#This Row],[Interior/ Exterior]]),\n\" - \",\nIF(ISNUMBER(MATCH(Table_NCInfo[[#This Row],[Line]],Table_NCInspection[Line],0)),INDEX(Table_NCInspection[Space Description],MATCH(Table_NCSummary[[#This Row],[Line Item]],Table_NCInspection[Line],0)),Table_NCInfo[[#This Row],[Space Description]])),\n \"\"),\"\")","v":""},{"$f":"IFERROR(IF(ISNUMBER(MATCH(Table_NCInfo[[#This Row],[Line]],Table_NCInspection[Line],0)),INDEX(Table_NCInspection[Baseline Wattage],MATCH(Table_NCSummary[[#This Row],[Line Item]],Table_NCInspection[Line],0)),Table_NCInfo[[#This Row],[Baseline Wattage]]),\"\")","v":""},{"$f":"IFERROR(IF(Table_NCSummary[[#This Row],[IsActive]],Table_NCSummary[[#This Row],[Baseline Wattage]]/1000*Table_NCSummary[[#This Row],[OpHrs]],\"\"),\"\")","v":""},{"$f":"IFERROR(IF(Table_NCSummary[[#This Row],[IsActive]],IFERROR(VLOOKUP(IF(ISNUMBER(MATCH(Table_NCSummary[[#This Row],[Line Item]],Table_NCInspection[Line],0)),INDEX(Table_NCInspection[Zone '#],MATCH(Table_NCSummary[[#This Row],[Line Item]],Table_NCInspection[Line],0)),Table_NCInfo[[#This Row],[Zone '#]]),Table_IntLookups[],'Facility Information'!$AA$4,FALSE),0),\"\"),\"\")","v":""},{"$f":"IFERROR(IF(Table_NCSummary[[#This Row],[IsActive]],IFERROR(Table_NCSummary[[#This Row],[Baseline Wattage]]/1000*Table_NCSummary[[#This Row],[OpHrs]]*Table_NCSummary[[#This Row],[Existing CSF]]*(-1),0),\"\"),\"\")","v":""},{"$f":"IFERROR(Table_NCSummary[[#This Row],[Baseline kWh]]+Table_NCSummary[[#This Row],[Existing Fixture (Existing Controls) kWh]],\"\")","v":""},{"$f":"IFERROR(IF(Table_NCSummary[[#This Row],[IsActive]],IF(ISNUMBER(MATCH(Table_NCInfo[[#This Row],[Line]],Table_NCInspection[Line],0)),INDEX(Table_NCInspection[Fixture Description '[P']],MATCH(Table_NCSummary[[#This Row],[Line Item]],Table_NCInspection[Line],0)),Table_NCInfo[[#This Row],[Fixture Description '[P']]]),\"\"),\"\")","v":""},{"$f":"IFERROR(IF(Table_NCSummary[[#This Row],[IsActive]],IF(ISNUMBER(MATCH(Table_NCInfo[[#This Row],[Line]],Table_NCInspection[Line],0)),INDEX(Table_NCInspection['# Lamps/ Fixture '[P']],MATCH(Table_NCSummary[[#This Row],[Line Item]],Table_NCInspection[Line],0)),Table_NCInfo[[#This Row],['# Lamps/ Fixture '[P']]]),\"\"),\"\")","v":""},{"$f":"IFERROR(IF(Table_NCSummary[[#This Row],[IsActive]],IF(ISNUMBER(MATCH(Table_NCInfo[[#This Row],[Line]],Table_NCInspection[Line],0)),INDEX(Table_NCInspection[Fixture/ Lamp Wattage '[P']],MATCH(Table_NCSummary[[#This Row],[Line Item]],Table_NCInspection[Line],0)),Table_NCInfo[[#This Row],[Fixture/ Lamp Wattage '[P']]]),\"\"),\"\")","v":""},{"$f":"IFERROR(IF(Table_NCSummary[[#This Row],[IsActive]],IF(ISNUMBER(MATCH(Table_NCInfo[[#This Row],[Line]],Table_NCInspection[Line],0)),INDEX(Table_NCInspection[Fixture Qty '[P']],MATCH(Table_NCSummary[[#This Row],[Line Item]],Table_NCInspection[Line],0)),Table_NCInfo[[#This Row],[Fixture Qty '[P']]]),\"\"),\"\")","v":""},{"$f":"IFERROR(IF(Table_NCSummary[[#This Row],[IsActive]],Table_NCSummary[[#This Row],['# Lamps/ Fixture '[P']]]*Table_NCSummary[[#This Row],[P. Qty]],\"\"),\"\")","v":""},{"$f":"IFERROR(IF(Table_NCSummary[[#This Row],[IsActive]],IF(ISNUMBER(MATCH(Table_NCInfo[[#This Row],[Line]],Table_NCInspection[Line],0)),INDEX(Table_NCInspection[Fixture Wattage '[P']],MATCH(Table_NCSummary[[#This Row],[Line Item]],Table_NCInspection[Line],0)),Table_NCInfo[[#This Row],[Fixture Wattage '[P']]]),\"\"),\"\")","v":""},{"$f":"IFERROR(Table_NCSummary[[#This Row],[P. Qty]]*Table_NCSummary[[#This Row],[Proposed Fixture Wattage]],\"\")","v":""},{"$f":"IFERROR(Table_NCSummary[[#This Row],[Proposed Fixture Wattage]]/1000*Table_NCSummary[[#This Row],[OpHrs]]*Table_NCSummary[[#This Row],[P. Qty]],\"\")","v":""},{"$f":"IFERROR(IF(Table_NCSummary[[#This Row],[IsActive]],IFERROR(VLOOKUP(RIGHT(Table_NCSummary[[#This Row],[Proposed Fixture]],LEN(Table_NCSummary[[#This Row],[Proposed Fixture]])-FIND(\" - \",Table_NCSummary[[#This Row],[Proposed Fixture]],FIND(\"]\",Table_NCSummary[[#This Row],[Proposed Fixture]],1))-2),Table_ControlType[],3, FALSE),Table_NCSummary[[#This Row],[Existing CSF]]),\"\"),\"\")","v":""},{"$f":"IFERROR(IF(Table_NCSummary[[#This Row],[IsActive]],IFERROR(Table_NCSummary[[#This Row],[Proposed Fixture Wattage]]/1000*Table_NCSummary[[#This Row],[OpHrs]]*Table_NCSummary[[#This Row],[P. Qty]]*Table_NCSummary[[#This Row],[Existing CSF]]*(-1),0),\"\"),\"\")","v":""},{"$f":"IFERROR(Table_NCSummary[[#This Row],[Proposed Fixture kWh]]+Table_NCSummary[[#This Row],[Proposed Fixture (Existing Controls) kWh]],\"\")","v":""},{"$f":"IFERROR(IF(Table_NCSummary[[#This Row],[IsActive]],IFERROR(Table_NCSummary[[#This Row],[Proposed Fixture Wattage]]/1000*Table_NCSummary[[#This Row],[OpHrs]]*Table_NCSummary[[#This Row],[P. Qty]]*Table_NCSummary[[#This Row],[Proposed CSF]]*(-1),0),\"\"),\"\")","v":""},{"$f":"IFERROR(Table_NCSummary[[#This Row],[Proposed Fixture kWh]]+Table_NCSummary[[#This Row],[Proposed Fixture (Proposed Controls) kWh]],\"\")","v":""},null,{"$f":"IFERROR(IF(Table_NCSummary[[#This Row],[IsActive]],IF((1-SUMPRODUCT(Table_NCSummary[P. Qty],Table_NCSummary[Proposed Fixture Wattage])/SUM(Table_NCSummary[Baseline Wattage]))<0.1,\"Does Not Qualify [Overall Fixture Reduction is less than 10%]\",IF(ISNUMBER(FIND(\"LED\",Table_NCSummary[[#This Row],[Proposed Fixture]],1)),IF(ISNUMBER(FIND(\"LED Tube\",Table_NCSummary[[#This Row],[Proposed Fixture]],1)),\"New Construction Interior LED Fixture\",IF(ISNUMBER(FIND(\"LED\",Table_NCSummary[[#This Row],[Proposed Fixture]],1)),IF(Table_NCInfo[[#This Row],[Interior/ Exterior]]=\"Exterior\",\"New Construction Exterior LED Fixture\",\"New Construction Interior LED Fixture\"),\"Ineligible Fixture\")),\"Ineligible Fixture\")),\"\"),\"\")","v":""},{"$f":"IFERROR(VLOOKUP(Table_NCSummary[[#This Row],[Fixture Measure Description]],Table_FixtureRate[],2,FALSE),\"\")","v":""},{"$f":"IFERROR(IF(Table_NCSummary[[#This Row],[IsActive]],IF((1-SUMPRODUCT(Table_NCSummary[P. Qty],Table_NCSummary[Proposed Fixture Wattage])/SUM(Table_NCSummary[Baseline Wattage]))<0.1,\"DNQ [kW Reduction <10%]\",IF(Table_NCSummary[[#This Row],[Fixture Measure Description]]=\"Ineligible Fixture\",0,ROUND(Table_NCSummary[[#This Row],[Fixture Rebate (per kW)]]*(Table_NCSummary[[#This Row],[Baseline Wattage]]-Table_NCSummary[[#This Row],[Proposed Wattage]])/1000,2))),\"\"),\"\")","v":""},{"$f":"IFERROR(IF(Table_NCSummary[[#This Row],[Fixture Measure Description]]=\"Ineligible Fixture\",0,ROUND(IF(ProjectCost_Total=0,300000,ProjectCost_Total)*Table_NCSummary[[#This Row],[Fixture Rebate]]/SUM(Table_NCSummary[Fixture Rebate],Table_NCSummary[Controls Rebate]),2)),\"\")","v":""},{"$f":"IFERROR(IF(Table_NCSummary[[#This Row],[IsActive]],IF((1-SUMPRODUCT(Table_NCSummary[P. Qty],Table_NCSummary[Proposed Fixture Wattage])/SUM(Table_NCSummary[Baseline Wattage]))<0.1,\"DNQ [kW Reduction <10%]\",IF(Table_NCSummary[[#This Row],[Fixture Measure Description]]=\"Ineligible Fixture\",0,Table_NCSummary[[#This Row],[Existing Overall kWh]]-Table_NCSummary[[#This Row],[Proposed Overall kWh (Existing Controls)]])),\"\"),\"\")","v":""},{"$f":"IFERROR(IF(Table_NCSummary[[#This Row],[IsActive]],IF((1-SUMPRODUCT(Table_NCSummary[P. Qty],Table_NCSummary[Proposed Fixture Wattage])/SUM(Table_NCSummary[Baseline Wattage]))<0.1,\"DNQ [kW Reduction <10%]\",IF(OR(Table_NCSummary[[#This Row],[Fixture Measure Description]]=\"Ineligible Fixture\",Table_NCSummary[[#This Row],[Fixture Measure Description]]=\"New Construction Exterior LED Fixture\"),0,(Table_NCSummary[[#This Row],[Baseline kWh]]-Table_NCSummary[[#This Row],[Proposed Fixture kWh]])/Table_NCSummary[[#This Row],[OpHrs]]*Table_NCSummary[[#This Row],[CF (Ltg)]]*Table_NCSummary[[#This Row],[DF (Ltg)]])),\"\"),\"\")","v":""},null,{"$f":"IFERROR(\n  IF(OR(Table_NCSummary[[#This Row],[Fixture Measure Description]]=\"\",Table_NCSummary[[#This Row],[Fixture Measure Description]]=\"Ineligible Fixture\"),\n    \"\",\n    \"New Construction\"\n    & \" - \" &\n    IFERROR(VLOOKUP(RIGHT(Table_NCSummary[[#This Row],[Proposed Fixture]],LEN(Table_NCSummary[[#This Row],[Proposed Fixture]])-FIND(\" - \",Table_NCSummary[[#This Row],[Proposed Fixture]],FIND(\"]\",Table_NCSummary[[#This Row],[Proposed Fixture]],1))-2),Table_ControlType[],2, FALSE),None)),\n\"\")","v":""},{"$f":"IFERROR(VLOOKUP(Table_NCSummary[[#This Row],[Controls Measure Description]],Table_ControlRate[],2,FALSE),\"\")","v":""},{"$f":"IFERROR(IF(Table_NCSummary[[#This Row],[IsActive]],IF((1-SUMPRODUCT(Table_NCSummary[P. Qty],Table_NCSummary[Proposed Fixture Wattage])/SUM(Table_NCSummary[Baseline Wattage]))<0.1,\"DNQ [kW Reduction <10%]\",IF(OR(Table_NCSummary[[#This Row],[Controls Measure Description]]=\"\",Table_NCSummary[[#This Row],[Controls Measure Description]]=\"New Construction - No Controls\"),0,ROUND(Table_NCSummary[[#This Row],[Controls Rebate (per Fixt Watt)]]*Table_NCSummary[[#This Row],[Proposed Fixture Wattage]]*Table_NCSummary[[#This Row],[P. Qty]],2))),\"\"),\"\")","v":""},{"$f":"IFERROR(IF(Table_NCSummary[[#This Row],[Fixture Measure Description]]=\"Ineligible Fixture\",0,ROUND(IF(ProjectCost_Total=0,300000,ProjectCost_Total)*Table_NCSummary[[#This Row],[Controls Rebate]]/SUM(Table_NCSummary[Fixture Rebate],Table_NCSummary[Controls Rebate]),2)),\"\")","v":""},{"$f":"IFERROR(IF(Table_NCSummary[[#This Row],[IsActive]],IF((1-SUMPRODUCT(Table_NCSummary[P. Qty],Table_NCSummary[Proposed Fixture Wattage])/SUM(Table_NCSummary[Baseline Wattage]))<0.1,\"DNQ [kW Reduction <10%]\",IF(Table_NCSummary[[#This Row],[Controls Measure Description]]=\"\",0,(Table_NCSummary[[#This Row],[Proposed Fixture (Existing Controls) kWh]]-Table_NCSummary[[#This Row],[Proposed Fixture (Proposed Controls) kWh]]))),\"\"),\"\")","v":""},{"$f":"IFERROR(IF(Table_NCSummary[[#This Row],[IsActive]],IF((1-SUMPRODUCT(Table_NCSummary[P. Qty],Table_NCSummary[Proposed Fixture Wattage])/SUM(Table_NCSummary[Baseline Wattage]))<0.1,\"DNQ [kW Reduction <10%]\",IF(OR(Table_NCSummary[[#This Row],[Controls Measure Description]]=\"\",Table_NCSummary[[#This Row],[Controls Measure Description]]=\"New Construction - No Controls\"),0,(Table_NCSummary[[#This Row],[Proposed Fixture (Existing Controls) kWh]]-Table_NCSummary[[#This Row],[Proposed Fixture (Proposed Controls) kWh]])/Table_NCSummary[[#This Row],[OpHrs]]*Table_NCSummary[[#This Row],[CF (Ltg)]]*Table_NCSummary[[#This Row],[DF (Ltg)]])),\"\"),\"\")","v":""},null,{"$f":"IFERROR(IF(NOT(ISNUMBER(Table_NCSummary[[#This Row],[Fixture Rebate]])),\"\",IF(MIN(IF(Table_NCSummary[[#This Row],[Fixture Cost]]<0,0,SUM(Table_NCSummary[Fixture Cost],Table_NCSummary[Controls Cost])),SUM(Table_NCSummary[Fixture Rebate],Table_NCSummary[Controls Rebate]))>300000,300000/MIN(IF(Table_NCSummary[[#This Row],[Fixture Cost]]<0,0,SUM(Table_NCSummary[Fixture Cost],Table_NCSummary[Controls Cost])),SUM(Table_NCSummary[Fixture Rebate],Table_NCSummary[Controls Rebate]))*MIN(IF(Table_NCSummary[[#This Row],[Fixture Cost]]<0,0,SUM(Table_NCSummary[Fixture Cost],Table_NCSummary[Controls Cost])),Table_NCSummary[[#This Row],[Fixture Rebate]]+IF(Table_NCSummary[[#This Row],[Controls Rebate]]=\"\",0,Table_NCSummary[[#This Row],[Controls Rebate]])),MIN(IF(Table_NCSummary[[#This Row],[Fixture Cost]]<0,0,SUM(Table_NCSummary[Fixture Cost],Table_NCSummary[Controls Cost])),Table_NCSummary[[#This Row],[Fixture Rebate]]+IF(Table_NCSummary[[#This Row],[Controls Rebate]]=\"\",0,Table_NCSummary[[#This Row],[Controls Rebate]])))),\"\")","v":""},{"$f":"IFERROR(IF(Table_NCSummary[[#This Row],[Fixture Cost]]=\"\",\"\",Table_NCSummary[[#This Row],[Fixture Cost]]+IF(Table_NCSummary[[#This Row],[Controls Cost]]=\"\",0,Table_NCSummary[[#This Row],[Controls Cost]])),\"\")","v":""},{"$f":"IFERROR(IF(Table_NCSummary[[#This Row],[IsActive]],IF(NOT(ISNUMBER(Table_NCSummary[[#This Row],[Fixture Rebate]])),\"\",IF(Table_NCInfo[[#This Row],[Interior/ Exterior]]=\"Interior\",IFERROR((Table_NCSummary[[#This Row],[Annual Fixture Savings (kWh)]]+Table_NCSummary[[#This Row],[Annual Control Savings (kWh)]])*(Table_NCSummary[[#This Row],[EIF]]-1),0),0)),\"\"),\"\")","v":""},{"$f":"IFERROR(IF(Table_NCSummary[[#This Row],[IsActive]],IF(NOT(ISNUMBER(Table_NCSummary[[#This Row],[Fixture Rebate]])),\"\",IF(Table_NCInfo[[#This Row],[Interior/ Exterior]]=\"Interior\",IFERROR((Table_NCSummary[[#This Row],[Fixture kW Reduction]]+Table_NCSummary[[#This Row],[Control kW Reduction]]/(Table_NCSummary[[#This Row],[CF (Ltg)]]*Table_NCSummary[[#This Row],[DF (Ltg)]]))*(Table_NCSummary[[#This Row],[DIF]]-1)*Table_NCSummary[[#This Row],[CF (HVAC)]]*Table_NCSummary[[#This Row],[DF (HVAC)]],0),0)),\"\"),\"\")","v":""},{"$f":"IFERROR(IF(Table_NCSummary[[#This Row],[IsActive]],IF(NOT(ISNUMBER(Table_NCSummary[[#This Row],[Fixture Rebate]])),\"\",ROUND(Table_NCSummary[[#This Row],[Annual Fixture Savings (kWh)]]+Table_NCSummary[[#This Row],[Annual Control Savings (kWh)]],0)),\"\"),\"\")","v":""},{"$f":"IFERROR(IF(Table_NCSummary[[#This Row],[IsActive]],IF(NOT(ISNUMBER(Table_NCSummary[[#This Row],[Fixture Rebate]])),\"\",ROUND(Table_NCSummary[[#This Row],[Fixture kW Reduction]]+Table_NCSummary[[#This Row],[Control kW Reduction]],3)),\"\"),\"\")","v":""},{"$f":"IFERROR(IF(Table_NCSummary[[#This Row],[IsActive]],IF(NOT(ISNUMBER(Table_NCSummary[[#This Row],[Fixture Rebate]])),\"\",ROUND(Table_NCSummary[[#This Row],[Fixture Energy Savings (kWh)]]+Table_NCSummary[[#This Row],[Induced HVAC Energy Savings (kWh)]],0)),\"\"),\"\")","v":""},{"$f":"IFERROR(IF(Table_NCSummary[[#This Row],[IsActive]],IF(NOT(ISNUMBER(Table_NCSummary[[#This Row],[Fixture Rebate]])),\"\",ROUND(Table_NCSummary[[#This Row],[Fixture Demand Savings (kW)]]+Table_NCSummary[[#This Row],[Induced HVAC Demand Savings (kW)]],3)),\"\"),\"\")","v":""}]
[{"$f":"IFERROR(Table_NCInfo[[#This Row],[Line]],\"\")","v":39},{"$f":"IFERROR(Table_NCInfo[[#This Row],[IsActive]],\"\")","v":false},{"$f":"IFERROR(IF(Table_NCSummary[[#This Row],[IsActive]],VLOOKUP(IF(ISNUMBER(MATCH(Table_NCInfo[[#This Row],[Line]],Table_NCInspection[Line],0)),INDEX(Table_NCInspection[Schedule],MATCH(Table_NCSummary[[#This Row],[Line Item]],Table_NCInspection[Line],0)),Table_NCInfo[[#This Row],[Schedule]]),'Customer Information'!$S$27:$T$34,2,FALSE),\"\"),\"\")","v":""},{"$f":"IFERROR(IF(Table_NCSummary[[#This Row],[IsActive]],INDEX(Table_IntLookups[EIF],MATCH(IF(ISNUMBER(MATCH(Table_NCSummary[[#This Row],[Line Item]],Table_NCInspection[Line],0)),INDEX(Table_NCInspection[Zone Description],MATCH(Table_NCSummary[[#This Row],[Line Item]],Table_NCInfo[Line],0)),Table_NCInfo[[#This Row],[Zone Description]]),Table_IntLookups[Dropdown],0)),\"\"),\"\")","v":""},{"$f":"IFERROR(IF(Table_NCSummary[[#This Row],[IsActive]],INDEX(Table_IntLookups[DIF],MATCH(IF(ISNUMBER(MATCH(Table_NCSummary[[#This Row],[Line Item]],Table_NCInspection[Line],0)),INDEX(Table_NCInspection[Zone Description],MATCH(Table_NCSummary[[#This Row],[Line Item]],Table_NCInfo[Line],0)),Table_NCInfo[[#This Row],[Zone Description]]),Table_IntLookups[Dropdown],0)),\"\"),\"\")","v":""},{"$f":"IFERROR(IF(Table_NCSummary[[#This Row],[IsActive]],INDEX(Table_IntLookups[CFltg],MATCH(IF(ISNUMBER(MATCH(Table_NCSummary[[#This Row],[Line Item]],Table_NCInspection[Line],0)),INDEX(Table_NCInspection[Zone Description],MATCH(Table_NCSummary[[#This Row],[Line Item]],Table_NCInfo[Line],0)),Table_NCInfo[[#This Row],[Zone Description]]),Table_IntLookups[Dropdown],0)),\"\"),\"\")","v":""},{"$f":"IFERROR(IF(Table_NCSummary[[#This Row],[IsActive]],INDEX(Table_IntLookups[DFltg],MATCH(IF(ISNUMBER(MATCH(Table_NCSummary[[#This Row],[Line Item]],Table_NCInspection[Line],0)),INDEX(Table_NCInspection[Zone Description],MATCH(Table_NCSummary[[#This Row],[Line Item]],Table_NCInfo[Line],0)),Table_NCInfo[[#This Row],[Zone Description]]),Table_IntLookups[Dropdown],0)),\"\"),\"\")","v":""},{"$f":"IFERROR(IF(Table_NCSummary[[#This Row],[IsActive]],INDEX(Table_IntLookups[Cfhvac],MATCH(IF(ISNUMBER(MATCH(Table_NCSummary[[#This Row],[Line Item]],Table_NCInspection[Line],0)),INDEX(Table_NCInspection[Zone Description],MATCH(Table_NCSummary[[#This Row],[Line Item]],Table_NCInfo[Line],0)),Table_NCInfo[[#This Row],[Zone Description]]),Table_IntLookups[Dropdown],0)),\"\"),\"\")","v":""},{"$f":"IFERROR(IF(Table_NCSummary[[#This Row],[IsActive]],INDEX(Table_IntLookups[Dfhvac],MATCH(IF(ISNUMBER(MATCH(Table_NCSummary[[#This Row],[Line Item]],Table_NCInspection[Line],0)),INDEX(Table_NCInspection[Zone Description],MATCH(Table_NCSummary[[#This Row],[Line Item]],Table_NCInfo[Line],0)),Table_NCInfo[[#This Row],[Zone Description]]),Table_IntLookups[Dropdown],0)),\"\"),\"\")","v":""},{"$f":"IFERROR(IF(Table_NCSummary[[#This Row],[IsActive]],\nIF(ISNUMBER(MATCH(Table_NCInfo[[#This Row],[Line]],Table_NCInspection[Line],0)),INDEX(Table_NCInspection[Zone Description],MATCH(Table_NCSummary[[#This Row],[Line Item]],Table_NCInspection[Line],0)),Table_NCInfo[[#This Row],[Zone Description]]),\n \"\"),\"\")","v":""},{"$f":"IFERROR(IF(Table_NCSummary[[#This Row],[IsActive]],\nCONCATENATE(\nIF(ISNUMBER(MATCH(Table_NCInfo[[#This Row],[Line]],Table_NCInspection[Line],0)),INDEX(Table_NCInspection[Interior/ Exterior],MATCH(Table_NCSummary[[#This Row],[Line Item]],Table_NCInspection[Line],0)),Table_NCInfo[[#This Row],[Interior/ Exterior]]),\n\" - \",\nIF(ISNUMBER(MATCH(Table_NCInfo[[#This Row],[Line]],Table_NCInspection[Line],0)),INDEX(Table_NCInspection[Space Description],MATCH(Table_NCSummary[[#This Row],[Line Item]],Table_NCInspection[Line],0)),Table_NCInfo[[#This Row],[Space Description]])),\n \"\"),\"\")","v":""},{"$f":"IFERROR(IF(ISNUMBER(MATCH(Table_NCInfo[[#This Row],[Line]],Table_NCInspection[Line],0)),INDEX(Table_NCInspection[Baseline Wattage],MATCH(Table_NCSummary[[#This Row],[Line Item]],Table_NCInspection[Line],0)),Table_NCInfo[[#This Row],[Baseline Wattage]]),\"\")","v":""},{"$f":"IFERROR(IF(Table_NCSummary[[#This Row],[IsActive]],Table_NCSummary[[#This Row],[Baseline Wattage]]/1000*Table_NCSummary[[#This Row],[OpHrs]],\"\"),\"\")","v":""},{"$f":"IFERROR(IF(Table_NCSummary[[#This Row],[IsActive]],IFERROR(VLOOKUP(IF(ISNUMBER(MATCH(Table_NCSummary[[#This Row],[Line Item]],Table_NCInspection[Line],0)),INDEX(Table_NCInspection[Zone '#],MATCH(Table_NCSummary[[#This Row],[Line Item]],Table_NCInspection[Line],0)),Table_NCInfo[[#This Row],[Zone '#]]),Table_IntLookups[],'Facility Information'!$AA$4,FALSE),0),\"\"),\"\")","v":""},{"$f":"IFERROR(IF(Table_NCSummary[[#This Row],[IsActive]],IFERROR(Table_NCSummary[[#This Row],[Baseline Wattage]]/1000*Table_NCSummary[[#This Row],[OpHrs]]*Table_NCSummary[[#This Row],[Existing CSF]]*(-1),0),\"\"),\"\")","v":""},{"$f":"IFERROR(Table_NCSummary[[#This Row],[Baseline kWh]]+Table_NCSummary[[#This Row],[Existing Fixture (Existing Controls) kWh]],\"\")","v":""},{"$f":"IFERROR(IF(Table_NCSummary[[#This Row],[IsActive]],IF(ISNUMBER(MATCH(Table_NCInfo[[#This Row],[Line]],Table_NCInspection[Line],0)),INDEX(Table_NCInspection[Fixture Description '[P']],MATCH(Table_NCSummary[[#This Row],[Line Item]],Table_NCInspection[Line],0)),Table_NCInfo[[#This Row],[Fixture Description '[P']]]),\"\"),\"\")","v":""},{"$f":"IFERROR(IF(Table_NCSummary[[#This Row],[IsActive]],IF(ISNUMBER(MATCH(Table_NCInfo[[#This Row],[Line]],Table_NCInspection[Line],0)),INDEX(Table_NCInspection['# Lamps/ Fixture '[P']],MATCH(Table_NCSummary[[#This Row],[Line Item]],Table_NCInspection[Line],0)),Table_NCInfo[[#This Row],['# Lamps/ Fixture '[P']]]),\"\"),\"\")","v":""},{"$f":"IFERROR(IF(Table_NCSummary[[#This Row],[IsActive]],IF(ISNUMBER(MATCH(Table_NCInfo[[#This Row],[Line]],Table_NCInspection[Line],0)),INDEX(Table_NCInspection[Fixture/ Lamp Wattage '[P']],MATCH(Table_NCSummary[[#This Row],[Line Item]],Table_NCInspection[Line],0)),Table_NCInfo[[#This Row],[Fixture/ Lamp Wattage '[P']]]),\"\"),\"\")","v":""},{"$f":"IFERROR(IF(Table_NCSummary[[#This Row],[IsActive]],IF(ISNUMBER(MATCH(Table_NCInfo[[#This Row],[Line]],Table_NCInspection[Line],0)),INDEX(Table_NCInspection[Fixture Qty '[P']],MATCH(Table_NCSummary[[#This Row],[Line Item]],Table_NCInspection[Line],0)),Table_NCInfo[[#This Row],[Fixture Qty '[P']]]),\"\"),\"\")","v":""},{"$f":"IFERROR(IF(Table_NCSummary[[#This Row],[IsActive]],Table_NCSummary[[#This Row],['# Lamps/ Fixture '[P']]]*Table_NCSummary[[#This Row],[P. Qty]],\"\"),\"\")","v":""},{"$f":"IFERROR(IF(Table_NCSummary[[#This Row],[IsActive]],IF(ISNUMBER(MATCH(Table_NCInfo[[#This Row],[Line]],Table_NCInspection[Line],0)),INDEX(Table_NCInspection[Fixture Wattage '[P']],MATCH(Table_NCSummary[[#This Row],[Line Item]],Table_NCInspection[Line],0)),Table_NCInfo[[#This Row],[Fixture Wattage '[P']]]),\"\"),\"\")","v":""},{"$f":"IFERROR(Table_NCSummary[[#This Row],[P. Qty]]*Table_NCSummary[[#This Row],[Proposed Fixture Wattage]],\"\")","v":""},{"$f":"IFERROR(Table_NCSummary[[#This Row],[Proposed Fixture Wattage]]/1000*Table_NCSummary[[#This Row],[OpHrs]]*Table_NCSummary[[#This Row],[P. Qty]],\"\")","v":""},{"$f":"IFERROR(IF(Table_NCSummary[[#This Row],[IsActive]],IFERROR(VLOOKUP(RIGHT(Table_NCSummary[[#This Row],[Proposed Fixture]],LEN(Table_NCSummary[[#This Row],[Proposed Fixture]])-FIND(\" - \",Table_NCSummary[[#This Row],[Proposed Fixture]],FIND(\"]\",Table_NCSummary[[#This Row],[Proposed Fixture]],1))-2),Table_ControlType[],3, FALSE),Table_NCSummary[[#This Row],[Existing CSF]]),\"\"),\"\")","v":""},{"$f":"IFERROR(IF(Table_NCSummary[[#This Row],[IsActive]],IFERROR(Table_NCSummary[[#This Row],[Proposed Fixture Wattage]]/1000*Table_NCSummary[[#This Row],[OpHrs]]*Table_NCSummary[[#This Row],[P. Qty]]*Table_NCSummary[[#This Row],[Existing CSF]]*(-1),0),\"\"),\"\")","v":""},{"$f":"IFERROR(Table_NCSummary[[#This Row],[Proposed Fixture kWh]]+Table_NCSummary[[#This Row],[Proposed Fixture (Existing Controls) kWh]],\"\")","v":""},{"$f":"IFERROR(IF(Table_NCSummary[[#This Row],[IsActive]],IFERROR(Table_NCSummary[[#This Row],[Proposed Fixture Wattage]]/1000*Table_NCSummary[[#This Row],[OpHrs]]*Table_NCSummary[[#This Row],[P. Qty]]*Table_NCSummary[[#This Row],[Proposed CSF]]*(-1),0),\"\"),\"\")","v":""},{"$f":"IFERROR(Table_NCSummary[[#This Row],[Proposed Fixture kWh]]+Table_NCSummary[[#This Row],[Proposed Fixture (Proposed Controls) kWh]],\"\")","v":""},null,{"$f":"IFERROR(IF(Table_NCSummary[[#This Row],[IsActive]],IF((1-SUMPRODUCT(Table_NCSummary[P. Qty],Table_NCSummary[Proposed Fixture Wattage])/SUM(Table_NCSummary[Baseline Wattage]))<0.1,\"Does Not Qualify [Overall Fixture Reduction is less than 10%]\",IF(ISNUMBER(FIND(\"LED\",Table_NCSummary[[#This Row],[Proposed Fixture]],1)),IF(ISNUMBER(FIND(\"LED Tube\",Table_NCSummary[[#This Row],[Proposed Fixture]],1)),\"New Construction Interior LED Fixture\",IF(ISNUMBER(FIND(\"LED\",Table_NCSummary[[#This Row],[Proposed Fixture]],1)),IF(Table_NCInfo[[#This Row],[Interior/ Exterior]]=\"Exterior\",\"New Construction Exterior LED Fixture\",\"New Construction Interior LED Fixture\"),\"Ineligible Fixture\")),\"Ineligible Fixture\")),\"\"),\"\")","v":""},{"$f":"IFERROR(VLOOKUP(Table_NCSummary[[#This Row],[Fixture Measure Description]],Table_FixtureRate[],2,FALSE),\"\")","v":""},{"$f":"IFERROR(IF(Table_NCSummary[[#This Row],[IsActive]],IF((1-SUMPRODUCT(Table_NCSummary[P. Qty],Table_NCSummary[Proposed Fixture Wattage])/SUM(Table_NCSummary[Baseline Wattage]))<0.1,\"DNQ [kW Reduction <10%]\",IF(Table_NCSummary[[#This Row],[Fixture Measure Description]]=\"Ineligible Fixture\",0,ROUND(Table_NCSummary[[#This Row],[Fixture Rebate (per kW)]]*(Table_NCSummary[[#This Row],[Baseline Wattage]]-Table_NCSummary[[#This Row],[Proposed Wattage]])/1000,2))),\"\"),\"\")","v":""},{"$f":"IFERROR(IF(Table_NCSummary[[#This Row],[Fixture Measure Description]]=\"Ineligible Fixture\",0,ROUND(IF(ProjectCost_Total=0,300000,ProjectCost_Total)*Table_NCSummary[[#This Row],[Fixture Rebate]]/SUM(Table_NCSummary[Fixture Rebate],Table_NCSummary[Controls Rebate]),2)),\"\")","v":""},{"$f":"IFERROR(IF(Table_NCSummary[[#This Row],[IsActive]],IF((1-SUMPRODUCT(Table_NCSummary[P. Qty],Table_NCSummary[Proposed Fixture Wattage])/SUM(Table_NCSummary[Baseline Wattage]))<0.1,\"DNQ [kW Reduction <10%]\",IF(Table_NCSummary[[#This Row],[Fixture Measure Description]]=\"Ineligible Fixture\",0,Table_NCSummary[[#This Row],[Existing Overall kWh]]-Table_NCSummary[[#This Row],[Proposed Overall kWh (Existing Controls)]])),\"\"),\"\")","v":""},{"$f":"IFERROR(IF(Table_NCSummary[[#This Row],[IsActive]],IF((1-SUMPRODUCT(Table_NCSummary[P. Qty],Table_NCSummary[Proposed Fixture Wattage])/SUM(Table_NCSummary[Baseline Wattage]))<0.1,\"DNQ [kW Reduction <10%]\",IF(OR(Table_NCSummary[[#This Row],[Fixture Measure Description]]=\"Ineligible Fixture\",Table_NCSummary[[#This Row],[Fixture Measure Description]]=\"New Construction Exterior LED Fixture\"),0,(Table_NCSummary[[#This Row],[Baseline kWh]]-Table_NCSummary[[#This Row],[Proposed Fixture kWh]])/Table_NCSummary[[#This Row],[OpHrs]]*Table_NCSummary[[#This Row],[CF (Ltg)]]*Table_NCSummary[[#This Row],[DF (Ltg)]])),\"\"),\"\")","v":""},null,{"$f":"IFERROR(\n  IF(OR(Table_NCSummary[[#This Row],[Fixture Measure Description]]=\"\",Table_NCSummary[[#This Row],[Fixture Measure Description]]=\"Ineligible Fixture\"),\n    \"\",\n    \"New Construction\"\n    & \" - \" &\n    IFERROR(VLOOKUP(RIGHT(Table_NCSummary[[#This Row],[Proposed Fixture]],LEN(Table_NCSummary[[#This Row],[Proposed Fixture]])-FIND(\" - \",Table_NCSummary[[#This Row],[Proposed Fixture]],FIND(\"]\",Table_NCSummary[[#This Row],[Proposed Fixture]],1))-2),Table_ControlType[],2, FALSE),None)),\n\"\")","v":""},{"$f":"IFERROR(VLOOKUP(Table_NCSummary[[#This Row],[Controls Measure Description]],Table_ControlRate[],2,FALSE),\"\")","v":""},{"$f":"IFERROR(IF(Table_NCSummary[[#This Row],[IsActive]],IF((1-SUMPRODUCT(Table_NCSummary[P. Qty],Table_NCSummary[Proposed Fixture Wattage])/SUM(Table_NCSummary[Baseline Wattage]))<0.1,\"DNQ [kW Reduction <10%]\",IF(OR(Table_NCSummary[[#This Row],[Controls Measure Description]]=\"\",Table_NCSummary[[#This Row],[Controls Measure Description]]=\"New Construction - No Controls\"),0,ROUND(Table_NCSummary[[#This Row],[Controls Rebate (per Fixt Watt)]]*Table_NCSummary[[#This Row],[Proposed Fixture Wattage]]*Table_NCSummary[[#This Row],[P. Qty]],2))),\"\"),\"\")","v":""},{"$f":"IFERROR(IF(Table_NCSummary[[#This Row],[Fixture Measure Description]]=\"Ineligible Fixture\",0,ROUND(IF(ProjectCost_Total=0,300000,ProjectCost_Total)*Table_NCSummary[[#This Row],[Controls Rebate]]/SUM(Table_NCSummary[Fixture Rebate],Table_NCSummary[Controls Rebate]),2)),\"\")","v":""},{"$f":"IFERROR(IF(Table_NCSummary[[#This Row],[IsActive]],IF((1-SUMPRODUCT(Table_NCSummary[P. Qty],Table_NCSummary[Proposed Fixture Wattage])/SUM(Table_NCSummary[Baseline Wattage]))<0.1,\"DNQ [kW Reduction <10%]\",IF(Table_NCSummary[[#This Row],[Controls Measure Description]]=\"\",0,(Table_NCSummary[[#This Row],[Proposed Fixture (Existing Controls) kWh]]-Table_NCSummary[[#This Row],[Proposed Fixture (Proposed Controls) kWh]]))),\"\"),\"\")","v":""},{"$f":"IFERROR(IF(Table_NCSummary[[#This Row],[IsActive]],IF((1-SUMPRODUCT(Table_NCSummary[P. Qty],Table_NCSummary[Proposed Fixture Wattage])/SUM(Table_NCSummary[Baseline Wattage]))<0.1,\"DNQ [kW Reduction <10%]\",IF(OR(Table_NCSummary[[#This Row],[Controls Measure Description]]=\"\",Table_NCSummary[[#This Row],[Controls Measure Description]]=\"New Construction - No Controls\"),0,(Table_NCSummary[[#This Row],[Proposed Fixture (Existing Controls) kWh]]-Table_NCSummary[[#This Row],[Proposed Fixture (Proposed Controls) kWh]])/Table_NCSummary[[#This Row],[OpHrs]]*Table_NCSummary[[#This Row],[CF (Ltg)]]*Table_NCSummary[[#This Row],[DF (Ltg)]])),\"\"),\"\")","v":""},null,{"$f":"IFERROR(IF(NOT(ISNUMBER(Table_NCSummary[[#This Row],[Fixture Rebate]])),\"\",IF(MIN(IF(Table_NCSummary[[#This Row],[Fixture Cost]]<0,0,SUM(Table_NCSummary[Fixture Cost],Table_NCSummary[Controls Cost])),SUM(Table_NCSummary[Fixture Rebate],Table_NCSummary[Controls Rebate]))>300000,300000/MIN(IF(Table_NCSummary[[#This Row],[Fixture Cost]]<0,0,SUM(Table_NCSummary[Fixture Cost],Table_NCSummary[Controls Cost])),SUM(Table_NCSummary[Fixture Rebate],Table_NCSummary[Controls Rebate]))*MIN(IF(Table_NCSummary[[#This Row],[Fixture Cost]]<0,0,SUM(Table_NCSummary[Fixture Cost],Table_NCSummary[Controls Cost])),Table_NCSummary[[#This Row],[Fixture Rebate]]+IF(Table_NCSummary[[#This Row],[Controls Rebate]]=\"\",0,Table_NCSummary[[#This Row],[Controls Rebate]])),MIN(IF(Table_NCSummary[[#This Row],[Fixture Cost]]<0,0,SUM(Table_NCSummary[Fixture Cost],Table_NCSummary[Controls Cost])),Table_NCSummary[[#This Row],[Fixture Rebate]]+IF(Table_NCSummary[[#This Row],[Controls Rebate]]=\"\",0,Table_NCSummary[[#This Row],[Controls Rebate]])))),\"\")","v":""},{"$f":"IFERROR(IF(Table_NCSummary[[#This Row],[Fixture Cost]]=\"\",\"\",Table_NCSummary[[#This Row],[Fixture Cost]]+IF(Table_NCSummary[[#This Row],[Controls Cost]]=\"\",0,Table_NCSummary[[#This Row],[Controls Cost]])),\"\")","v":""},{"$f":"IFERROR(IF(Table_NCSummary[[#This Row],[IsActive]],IF(NOT(ISNUMBER(Table_NCSummary[[#This Row],[Fixture Rebate]])),\"\",IF(Table_NCInfo[[#This Row],[Interior/ Exterior]]=\"Interior\",IFERROR((Table_NCSummary[[#This Row],[Annual Fixture Savings (kWh)]]+Table_NCSummary[[#This Row],[Annual Control Savings (kWh)]])*(Table_NCSummary[[#This Row],[EIF]]-1),0),0)),\"\"),\"\")","v":""},{"$f":"IFERROR(IF(Table_NCSummary[[#This Row],[IsActive]],IF(NOT(ISNUMBER(Table_NCSummary[[#This Row],[Fixture Rebate]])),\"\",IF(Table_NCInfo[[#This Row],[Interior/ Exterior]]=\"Interior\",IFERROR((Table_NCSummary[[#This Row],[Fixture kW Reduction]]+Table_NCSummary[[#This Row],[Control kW Reduction]]/(Table_NCSummary[[#This Row],[CF (Ltg)]]*Table_NCSummary[[#This Row],[DF (Ltg)]]))*(Table_NCSummary[[#This Row],[DIF]]-1)*Table_NCSummary[[#This Row],[CF (HVAC)]]*Table_NCSummary[[#This Row],[DF (HVAC)]],0),0)),\"\"),\"\")","v":""},{"$f":"IFERROR(IF(Table_NCSummary[[#This Row],[IsActive]],IF(NOT(ISNUMBER(Table_NCSummary[[#This Row],[Fixture Rebate]])),\"\",ROUND(Table_NCSummary[[#This Row],[Annual Fixture Savings (kWh)]]+Table_NCSummary[[#This Row],[Annual Control Savings (kWh)]],0)),\"\"),\"\")","v":""},{"$f":"IFERROR(IF(Table_NCSummary[[#This Row],[IsActive]],IF(NOT(ISNUMBER(Table_NCSummary[[#This Row],[Fixture Rebate]])),\"\",ROUND(Table_NCSummary[[#This Row],[Fixture kW Reduction]]+Table_NCSummary[[#This Row],[Control kW Reduction]],3)),\"\"),\"\")","v":""},{"$f":"IFERROR(IF(Table_NCSummary[[#This Row],[IsActive]],IF(NOT(ISNUMBER(Table_NCSummary[[#This Row],[Fixture Rebate]])),\"\",ROUND(Table_NCSummary[[#This Row],[Fixture Energy Savings (kWh)]]+Table_NCSummary[[#This Row],[Induced HVAC Energy Savings (kWh)]],0)),\"\"),\"\")","v":""},{"$f":"IFERROR(IF(Table_NCSummary[[#This Row],[IsActive]],IF(NOT(ISNUMBER(Table_NCSummary[[#This Row],[Fixture Rebate]])),\"\",ROUND(Table_NCSummary[[#This Row],[Fixture Demand Savings (kW)]]+Table_NCSummary[[#This Row],[Induced HVAC Demand Savings (kW)]],3)),\"\"),\"\")","v":""}]
[{"$f":"IFERROR(Table_NCInfo[[#This Row],[Line]],\"\")","v":40},{"$f":"IFERROR(Table_NCInfo[[#This Row],[IsActive]],\"\")","v":false},{"$f":"IFERROR(IF(Table_NCInfo[[#This Row],[IsActive]],VLOOKUP(IF(ISNUMBER(MATCH(Table_NCInfo[[#This Row],[Line]],Table_NCInspection[Line],0)),INDEX(Table_NCInspection[Schedule],MATCH(Table_NCSummary[[#This Row],[Line Item]],Table_NCInspection[Line],0)),Table_NCInfo[[#This Row],[Schedule]]),'Customer Information'!$S$27:$T$34,2,FALSE),\"\"),\"\")","v":""},{"$f":"IFERROR(IF(Table_NCSummary[[#This Row],[IsActive]],INDEX(Table_IntLookups[EIF],MATCH(IF(ISNUMBER(MATCH(Table_NCSummary[[#This Row],[Line Item]],Table_NCInspection[Line],0)),INDEX(Table_NCInspection[Zone Description],MATCH(Table_NCSummary[[#This Row],[Line Item]],Table_NCInfo[Line],0)),Table_NCInfo[[#This Row],[Zone Description]]),Table_IntLookups[Dropdown],0)),\"\"),\"\")","v":""},{"$f":"IFERROR(IF(Table_NCSummary[[#This Row],[IsActive]],INDEX(Table_IntLookups[DIF],MATCH(IF(ISNUMBER(MATCH(Table_NCSummary[[#This Row],[Line Item]],Table_NCInspection[Line],0)),INDEX(Table_NCInspection[Zone Description],MATCH(Table_NCSummary[[#This Row],[Line Item]],Table_NCInfo[Line],0)),Table_NCInfo[[#This Row],[Zone Description]]),Table_IntLookups[Dropdown],0)),\"\"),\"\")","v":""},{"$f":"IFERROR(IF(Table_NCSummary[[#This Row],[IsActive]],INDEX(Table_IntLookups[CFltg],MATCH(IF(ISNUMBER(MATCH(Table_NCSummary[[#This Row],[Line Item]],Table_NCInspection[Line],0)),INDEX(Table_NCInspection[Zone Description],MATCH(Table_NCSummary[[#This Row],[Line Item]],Table_NCInfo[Line],0)),Table_NCInfo[[#This Row],[Zone Description]]),Table_IntLookups[Dropdown],0)),\"\"),\"\")","v":""},{"$f":"IFERROR(IF(Table_NCSummary[[#This Row],[IsActive]],INDEX(Table_IntLookups[DFltg],MATCH(IF(ISNUMBER(MATCH(Table_NCSummary[[#This Row],[Line Item]],Table_NCInspection[Line],0)),INDEX(Table_NCInspection[Zone Description],MATCH(Table_NCSummary[[#This Row],[Line Item]],Table_NCInfo[Line],0)),Table_NCInfo[[#This Row],[Zone Description]]),Table_IntLookups[Dropdown],0)),\"\"),\"\")","v":""},{"$f":"IFERROR(IF(Table_NCSummary[[#This Row],[IsActive]],INDEX(Table_IntLookups[Cfhvac],MATCH(IF(ISNUMBER(MATCH(Table_NCSummary[[#This Row],[Line Item]],Table_NCInspection[Line],0)),INDEX(Table_NCInspection[Zone Description],MATCH(Table_NCSummary[[#This Row],[Line Item]],Table_NCInfo[Line],0)),Table_NCInfo[[#This Row],[Zone Description]]),Table_IntLookups[Dropdown],0)),\"\"),\"\")","v":""},{"$f":"IFERROR(IF(Table_NCSummary[[#This Row],[IsActive]],INDEX(Table_IntLookups[Dfhvac],MATCH(IF(ISNUMBER(MATCH(Table_NCSummary[[#This Row],[Line Item]],Table_NCInspection[Line],0)),INDEX(Table_NCInspection[Zone Description],MATCH(Table_NCSummary[[#This Row],[Line Item]],Table_NCInfo[Line],0)),Table_NCInfo[[#This Row],[Zone Description]]),Table_IntLookups[Dropdown],0)),\"\"),\"\")","v":""},{"$f":"IFERROR(IF(Table_NCSummary[[#This Row],[IsActive]],\nIF(ISNUMBER(MATCH(Table_NCInfo[[#This Row],[Line]],Table_NCInspection[Line],0)),INDEX(Table_NCInspection[Zone Description],MATCH(Table_NCSummary[[#This Row],[Line Item]],Table_NCInspection[Line],0)),Table_NCInfo[[#This Row],[Zone Description]]),\n \"\"),\"\")","v":""},{"$f":"IFERROR(IF(Table_NCSummary[[#This Row],[IsActive]],\nCONCATENATE(\nIF(ISNUMBER(MATCH(Table_NCInfo[[#This Row],[Line]],Table_NCInspection[Line],0)),INDEX(Table_NCInspection[Interior/ Exterior],MATCH(Table_NCSummary[[#This Row],[Line Item]],Table_NCInspection[Line],0)),Table_NCInfo[[#This Row],[Interior/ Exterior]]),\n\" - \",\nIF(ISNUMBER(MATCH(Table_NCInfo[[#This Row],[Line]],Table_NCInspection[Line],0)),INDEX(Table_NCInspection[Space Description],MATCH(Table_NCSummary[[#This Row],[Line Item]],Table_NCInspection[Line],0)),Table_NCInfo[[#This Row],[Space Description]])),\n \"\"),\"\")","v":""},{"$f":"IFERROR(IF(ISNUMBER(MATCH(Table_NCInfo[[#This Row],[Line]],Table_NCInspection[Line],0)),INDEX(Table_NCInspection[Baseline Wattage],MATCH(Table_NCSummary[[#This Row],[Line Item]],Table_NCInspection[Line],0)),Table_NCInfo[[#This Row],[Baseline Wattage]]),\"\")","v":""},{"$f":"IFERROR(IF(Table_NCInfo[[#This Row],[IsActive]],Table_NCSummary[[#This Row],[Baseline Wattage]]/1000*Table_NCSummary[[#This Row],[OpHrs]],\"\"),\"\")","v":""},{"$f":"IFERROR(IF(Table_NCInfo[[#This Row],[IsActive]],IFERROR(VLOOKUP(IF(ISNUMBER(MATCH(Table_NCSummary[[#This Row],[Line Item]],Table_NCInspection[Line],0)),INDEX(Table_NCInspection[Zone '#],MATCH(Table_NCSummary[[#This Row],[Line Item]],Table_NCInspection[Line],0)),Table_NCInfo[[#This Row],[Zone '#]]),Table_IntLookups[],'Facility Information'!$AA$4,FALSE),0),\"\"),\"\")","v":""},{"$f":"IFERROR(IF(Table_NCInfo[[#This Row],[IsActive]],IFERROR(Table_NCSummary[[#This Row],[Baseline Wattage]]/1000*Table_NCSummary[[#This Row],[OpHrs]]*Table_NCSummary[[#This Row],[Existing CSF]]*(-1),0),\"\"),\"\")","v":""},{"$f":"IFERROR(Table_NCSummary[[#This Row],[Baseline kWh]]+Table_NCSummary[[#This Row],[Existing Fixture (Existing Controls) kWh]],\"\")","v":""},{"$f":"IFERROR(IF(Table_NCInfo[[#This Row],[IsActive]],IF(ISNUMBER(MATCH(Table_NCInfo[[#This Row],[Line]],Table_NCInspection[Line],0)),INDEX(Table_NCInspection[Fixture Description '[P']],MATCH(Table_NCSummary[[#This Row],[Line Item]],Table_NCInspection[Line],0)),Table_NCInfo[[#This Row],[Fixture Description '[P']]]),\"\"),\"\")","v":""},{"$f":"IFERROR(IF(Table_NCInfo[[#This Row],[IsActive]],IF(ISNUMBER(MATCH(Table_NCInfo[[#This Row],[Line]],Table_NCInspection[Line],0)),INDEX(Table_NCInspection['# Lamps/ Fixture '[P']],MATCH(Table_NCSummary[[#This Row],[Line Item]],Table_NCInspection[Line],0)),Table_NCInfo[[#This Row],['# Lamps/ Fixture '[P']]]),\"\"),\"\")","v":""},{"$f":"IFERROR(IF(Table_NCInfo[[#This Row],[IsActive]],IF(ISNUMBER(MATCH(Table_NCInfo[[#This Row],[Line]],Table_NCInspection[Line],0)),INDEX(Table_NCInspection[Fixture/ Lamp Wattage '[P']],MATCH(Table_NCSummary[[#This Row],[Line Item]],Table_NCInspection[Line],0)),Table_NCInfo[[#This Row],[Fixture/ Lamp Wattage '[P']]]),\"\"),\"\")","v":""},{"$f":"IFERROR(IF(Table_NCInfo[[#This Row],[IsActive]],IF(ISNUMBER(MATCH(Table_NCInfo[[#This Row],[Line]],Table_NCInspection[Line],0)),INDEX(Table_NCInspection[Fixture Qty '[P']],MATCH(Table_NCSummary[[#This Row],[Line Item]],Table_NCInspection[Line],0)),Table_NCInfo[[#This Row],[Fixture Qty '[P']]]),\"\"),\"\")","v":""},{"$f":"IFERROR(IF(Table_NCSummary[[#This Row],[IsActive]],Table_NCSummary[[#This Row],['# Lamps/ Fixture '[P']]]*Table_NCSummary[[#This Row],[P. Qty]],\"\"),\"\")","v":""},{"$f":"IFERROR(IF(Table_NCInfo[[#This Row],[IsActive]],IF(ISNUMBER(MATCH(Table_NCInfo[[#This Row],[Line]],Table_NCInspection[Line],0)),INDEX(Table_NCInspection[Fixture Wattage '[P']],MATCH(Table_NCSummary[[#This Row],[Line Item]],Table_NCInspection[Line],0)),Table_NCInfo[[#This Row],[Fixture Wattage '[P']]]),\"\"),\"\")","v":""},{"$f":"IFERROR(Table_NCSummary[[#This Row],[P. Qty]]*Table_NCSummary[[#This Row],[Proposed Fixture Wattage]],\"\")","v":""},{"$f":"IFERROR(Table_NCSummary[[#This Row],[Proposed Fixture Wattage]]/1000*Table_NCSummary[[#This Row],[OpHrs]]*Table_NCSummary[[#This Row],[P. Qty]],\"\")","v":""},{"$f":"IFERROR(IF(Table_NCInfo[[#This Row],[IsActive]],IFERROR(VLOOKUP(RIGHT(Table_NCSummary[[#This Row],[Proposed Fixture]],LEN(Table_NCSummary[[#This Row],[Proposed Fixture]])-FIND(\" - \",Table_NCSummary[[#This Row],[Proposed Fixture]],FIND(\"]\",Table_NCSummary[[#This Row],[Proposed Fixture]],1))-2),Table_ControlType[],3, FALSE),Table_NCSummary[[#This Row],[Existing CSF]]),\"\"),\"\")","v":""},{"$f":"IFERROR(IF(Table_NCSummary[[#This Row],[IsActive]],IFERROR(Table_NCSummary[[#This Row],[Proposed Fixture Wattage]]/1000*Table_NCSummary[[#This Row],[OpHrs]]*Table_NCSummary[[#This Row],[P. Qty]]*Table_NCSummary[[#This Row],[Existing CSF]]*(-1),0),\"\"),\"\")","v":""},{"$f":"IFERROR(Table_NCSummary[[#This Row],[Proposed Fixture kWh]]+Table_NCSummary[[#This Row],[Proposed Fixture (Existing Controls) kWh]],\"\")","v":""},{"$f":"IFERROR(IF(Table_NCSummary[[#This Row],[IsActive]],IFERROR(Table_NCSummary[[#This Row],[Proposed Fixture Wattage]]/1000*Table_NCSummary[[#This Row],[OpHrs]]*Table_NCSummary[[#This Row],[P. Qty]]*Table_NCSummary[[#This Row],[Proposed CSF]]*(-1),0),\"\"),\"\")","v":""},{"$f":"IFERROR(Table_NCSummary[[#This Row],[Proposed Fixture kWh]]+Table_NCSummary[[#This Row],[Proposed Fixture (Proposed Controls) kWh]],\"\")","v":""},null,{"$f":"IFERROR(IF(Table_NCSummary[[#This Row],[IsActive]],IF((1-SUMPRODUCT(Table_NCSummary[P. Qty],Table_NCSummary[Proposed Fixture Wattage])/SUM(Table_NCSummary[Baseline Wattage]))<0.1,\"Does Not Qualify [Overall Fixture Reduction is less than 10%]\",IF(ISNUMBER(FIND(\"LED\",Table_NCSummary[[#This Row],[Proposed Fixture]],1)),IF(ISNUMBER(FIND(\"LED Tube\",Table_NCSummary[[#This Row],[Proposed Fixture]],1)),\"New Construction Interior LED Fixture\",IF(ISNUMBER(FIND(\"LED\",Table_NCSummary[[#This Row],[Proposed Fixture]],1)),IF(Table_NCInfo[[#This Row],[Interior/ Exterior]]=\"Exterior\",\"New Construction Exterior LED Fixture\",\"New Construction Interior LED Fixture\"),\"Ineligible Fixture\")),\"Ineligible Fixture\")),\"\"),\"\")","v":""},{"$f":"IFERROR(VLOOKUP(Table_NCSummary[[#This Row],[Fixture Measure Description]],Table_FixtureRate[],2,FALSE),\"\")","v":""},{"$f":"IFERROR(IF(Table_NCSummary[[#This Row],[IsActive]],IF((1-SUMPRODUCT(Table_NCSummary[P. Qty],Table_NCSummary[Proposed Fixture Wattage])/SUM(Table_NCSummary[Baseline Wattage]))<0.1,\"DNQ [kW Reduction <10%]\",IF(Table_NCSummary[[#This Row],[Fixture Measure Description]]=\"Ineligible Fixture\",0,ROUND(Table_NCSummary[[#This Row],[Fixture Rebate (per kW)]]*(Table_NCSummary[[#This Row],[Baseline Wattage]]-Table_NCSummary[[#This Row],[Proposed Wattage]])/1000,2))),\"\"),\"\")","v":""},{"$f":"IFERROR(IF(Table_NCSummary[[#This Row],[Fixture Measure Description]]=\"Ineligible Fixture\",0,ROUND(IF(ProjectCost_Total=0,300000,ProjectCost_Total)*Table_NCSummary[[#This Row],[Fixture Rebate]]/SUM(Table_NCSummary[Fixture Rebate],Table_NCSummary[Controls Rebate]),2)),\"\")","v":""},{"$f":"IFERROR(IF(Table_NCSummary[[#This Row],[IsActive]],IF((1-SUMPRODUCT(Table_NCSummary[P. Qty],Table_NCSummary[Proposed Fixture Wattage])/SUM(Table_NCSummary[Baseline Wattage]))<0.1,\"DNQ [kW Reduction <10%]\",IF(Table_NCSummary[[#This Row],[Fixture Measure Description]]=\"Ineligible Fixture\",0,Table_NCSummary[[#This Row],[Existing Overall kWh]]-Table_NCSummary[[#This Row],[Proposed Overall kWh (Existing Controls)]])),\"\"),\"\")","v":""},{"$f":"IFERROR(IF(Table_NCSummary[[#This Row],[IsActive]],IF((1-SUMPRODUCT(Table_NCSummary[P. Qty],Table_NCSummary[Proposed Fixture Wattage])/SUM(Table_NCSummary[Baseline Wattage]))<0.1,\"DNQ [kW Reduction <10%]\",IF(OR(Table_NCSummary[[#This Row],[Fixture Measure Description]]=\"Ineligible Fixture\",Table_NCSummary[[#This Row],[Fixture Measure Description]]=\"New Construction Exterior LED Fixture\"),0,(Table_NCSummary[[#This Row],[Baseline kWh]]-Table_NCSummary[[#This Row],[Proposed Fixture kWh]])/Table_NCSummary[[#This Row],[OpHrs]]*Table_NCSummary[[#This Row],[CF (Ltg)]]*Table_NCSummary[[#This Row],[DF (Ltg)]])),\"\"),\"\")","v":""},null,{"$f":"IFERROR(\n  IF(OR(Table_NCSummary[[#This Row],[Fixture Measure Description]]=\"\",Table_NCSummary[[#This Row],[Fixture Measure Description]]=\"Ineligible Fixture\"),\n    \"\",\n    \"New Construction\"\n    & \" - \" &\n    IFERROR(VLOOKUP(RIGHT(Table_NCSummary[[#This Row],[Proposed Fixture]],LEN(Table_NCSummary[[#This Row],[Proposed Fixture]])-FIND(\" - \",Table_NCSummary[[#This Row],[Proposed Fixture]],FIND(\"]\",Table_NCSummary[[#This Row],[Proposed Fixture]],1))-2),Table_ControlType[],2, FALSE),None)),\n\"\")","v":""},{"$f":"IFERROR(VLOOKUP(Table_NCSummary[[#This Row],[Controls Measure Description]],Table_ControlRate[],2,FALSE),\"\")","v":""},{"$f":"IFERROR(IF(Table_NCSummary[[#This Row],[IsActive]],IF((1-SUMPRODUCT(Table_NCSummary[P. Qty],Table_NCSummary[Proposed Fixture Wattage])/SUM(Table_NCSummary[Baseline Wattage]))<0.1,\"DNQ [kW Reduction <10%]\",IF(OR(Table_NCSummary[[#This Row],[Controls Measure Description]]=\"\",Table_NCSummary[[#This Row],[Controls Measure Description]]=\"New Construction - No Controls\"),0,ROUND(Table_NCSummary[[#This Row],[Controls Rebate (per Fixt Watt)]]*Table_NCSummary[[#This Row],[Proposed Fixture Wattage]]*Table_NCSummary[[#This Row],[P. Qty]],2))),\"\"),\"\")","v":""},{"$f":"IFERROR(IF(Table_NCSummary[[#This Row],[Fixture Measure Description]]=\"Ineligible Fixture\",0,ROUND(IF(ProjectCost_Total=0,300000,ProjectCost_Total)*Table_NCSummary[[#This Row],[Controls Rebate]]/SUM(Table_NCSummary[Fixture Rebate],Table_NCSummary[Controls Rebate]),2)),\"\")","v":""},{"$f":"IFERROR(IF(Table_NCSummary[[#This Row],[IsActive]],IF((1-SUMPRODUCT(Table_NCSummary[P. Qty],Table_NCSummary[Proposed Fixture Wattage])/SUM(Table_NCSummary[Baseline Wattage]))<0.1,\"DNQ [kW Reduction <10%]\",IF(Table_NCSummary[[#This Row],[Controls Measure Description]]=\"\",0,(Table_NCSummary[[#This Row],[Proposed Fixture (Existing Controls) kWh]]-Table_NCSummary[[#This Row],[Proposed Fixture (Proposed Controls) kWh]]))),\"\"),\"\")","v":""},{"$f":"IFERROR(IF(Table_NCSummary[[#This Row],[IsActive]],IF((1-SUMPRODUCT(Table_NCSummary[P. Qty],Table_NCSummary[Proposed Fixture Wattage])/SUM(Table_NCSummary[Baseline Wattage]))<0.1,\"DNQ [kW Reduction <10%]\",IF(OR(Table_NCSummary[[#This Row],[Controls Measure Description]]=\"\",Table_NCSummary[[#This Row],[Controls Measure Description]]=\"New Construction - No Controls\"),0,(Table_NCSummary[[#This Row],[Proposed Fixture (Existing Controls) kWh]]-Table_NCSummary[[#This Row],[Proposed Fixture (Proposed Controls) kWh]])/Table_NCSummary[[#This Row],[OpHrs]]*Table_NCSummary[[#This Row],[CF (Ltg)]]*Table_NCSummary[[#This Row],[DF (Ltg)]])),\"\"),\"\")","v":""},null,{"$f":"IFERROR(IF(NOT(ISNUMBER(Table_NCSummary[[#This Row],[Fixture Rebate]])),\"\",IF(MIN(IF(Table_NCSummary[[#This Row],[Fixture Cost]]<0,0,SUM(Table_NCSummary[Fixture Cost],Table_NCSummary[Controls Cost])),SUM(Table_NCSummary[Fixture Rebate],Table_NCSummary[Controls Rebate]))>300000,300000/MIN(IF(Table_NCSummary[[#This Row],[Fixture Cost]]<0,0,SUM(Table_NCSummary[Fixture Cost],Table_NCSummary[Controls Cost])),SUM(Table_NCSummary[Fixture Rebate],Table_NCSummary[Controls Rebate]))*MIN(IF(Table_NCSummary[[#This Row],[Fixture Cost]]<0,0,SUM(Table_NCSummary[Fixture Cost],Table_NCSummary[Controls Cost])),Table_NCSummary[[#This Row],[Fixture Rebate]]+IF(Table_NCSummary[[#This Row],[Controls Rebate]]=\"\",0,Table_NCSummary[[#This Row],[Controls Rebate]])),MIN(IF(Table_NCSummary[[#This Row],[Fixture Cost]]<0,0,SUM(Table_NCSummary[Fixture Cost],Table_NCSummary[Controls Cost])),Table_NCSummary[[#This Row],[Fixture Rebate]]+IF(Table_NCSummary[[#This Row],[Controls Rebate]]=\"\",0,Table_NCSummary[[#This Row],[Controls Rebate]])))),\"\")","v":""},{"$f":"IFERROR(IF(Table_NCSummary[[#This Row],[Fixture Cost]]=\"\",\"\",Table_NCSummary[[#This Row],[Fixture Cost]]+IF(Table_NCSummary[[#This Row],[Controls Cost]]=\"\",0,Table_NCSummary[[#This Row],[Controls Cost]])),\"\")","v":""},{"$f":"IFERROR(IF(Table_NCSummary[[#This Row],[IsActive]],IF(NOT(ISNUMBER(Table_NCSummary[[#This Row],[Fixture Rebate]])),\"\",IF(Table_NCInfo[[#This Row],[Interior/ Exterior]]=\"Interior\",IFERROR((Table_NCSummary[[#This Row],[Annual Fixture Savings (kWh)]]+Table_NCSummary[[#This Row],[Annual Control Savings (kWh)]])*(Table_NCSummary[[#This Row],[EIF]]-1),0),0)),\"\"),\"\")","v":""},{"$f":"IFERROR(IF(Table_NCSummary[[#This Row],[IsActive]],IF(NOT(ISNUMBER(Table_NCSummary[[#This Row],[Fixture Rebate]])),\"\",IF(Table_NCInfo[[#This Row],[Interior/ Exterior]]=\"Interior\",IFERROR((Table_NCSummary[[#This Row],[Fixture kW Reduction]]+Table_NCSummary[[#This Row],[Control kW Reduction]]/(Table_NCSummary[[#This Row],[CF (Ltg)]]*Table_NCSummary[[#This Row],[DF (Ltg)]]))*(Table_NCSummary[[#This Row],[DIF]]-1)*Table_NCSummary[[#This Row],[CF (HVAC)]]*Table_NCSummary[[#This Row],[DF (HVAC)]],0),0)),\"\"),\"\")","v":""},{"$f":"IFERROR(IF(Table_NCSummary[[#This Row],[IsActive]],IF(NOT(ISNUMBER(Table_NCSummary[[#This Row],[Fixture Rebate]])),\"\",ROUND(Table_NCSummary[[#This Row],[Annual Fixture Savings (kWh)]]+Table_NCSummary[[#This Row],[Annual Control Savings (kWh)]],0)),\"\"),\"\")","v":""},{"$f":"IFERROR(IF(Table_NCSummary[[#This Row],[IsActive]],IF(NOT(ISNUMBER(Table_NCSummary[[#This Row],[Fixture Rebate]])),\"\",ROUND(Table_NCSummary[[#This Row],[Fixture kW Reduction]]+Table_NCSummary[[#This Row],[Control kW Reduction]],3)),\"\"),\"\")","v":""},{"$f":"IFERROR(IF(Table_NCSummary[[#This Row],[IsActive]],IF(NOT(ISNUMBER(Table_NCSummary[[#This Row],[Fixture Rebate]])),\"\",ROUND(Table_NCSummary[[#This Row],[Fixture Energy Savings (kWh)]]+Table_NCSummary[[#This Row],[Induced HVAC Energy Savings (kWh)]],0)),\"\"),\"\")","v":""},{"$f":"IFERROR(IF(Table_NCSummary[[#This Row],[IsActive]],IF(NOT(ISNUMBER(Table_NCSummary[[#This Row],[Fixture Rebate]])),\"\",ROUND(Table_NCSummary[[#This Row],[Fixture Demand Savings (kW)]]+Table_NCSummary[[#This Row],[Induced HVAC Demand Savings (kW)]],3)),\"\"),\"\")","v":""}]

{"sheet":"NC Processing","index":11,"n_rows":6,"n_cols":30,"rows_kept":6,"cut":false,"hidden":true,"merged":[]}
[{"$f":"'Project Summary'!AE1","v":"MeasureName"},{"$f":"'Project Summary'!AL1","v":"LtgControl_Name"},{"$f":"'Project Summary'!J1","v":"FacilityTypeString"},{"$f":"'Project Summary'!Q1","v":"Proposed_Fixture_Name"},{"$f":"'Project Summary'!C1","v":"AnnualOperatingHours  "},{"$f":"'Project Summary'!D1","v":"InteractiveFactor"},{"$f":"'Project Summary'!E1","v":"Demand Interactive Factor"},{"$f":"'Project Summary'!F1","v":"CoincidenceFactor"},{"$f":"'Project Summary'!G1","v":"Diversity Factor"},{"$f":"'Project Summary'!H1","v":"CFhvac"},{"$f":"'Project Summary'!I1","v":"DFhvac"},{"$f":"'Project Summary'!R1","v":"Proposed_Lamp_Qty"},{"$f":"'Project Summary'!S1","v":"Proposed_Lamp_Wattage"},{"$f":"'Project Summary'!T1","v":"Proposed_Fixture_Qty"},{"$f":"'Project Summary'!V1","v":"Proposed_Fixture_Wattage"},{"$f":"'Project Summary'!X1","v":"Proposed_Space_kWh"},{"$f":"'Project Summary'!AG1","v":"LtgFixture_Rebate"},{"$f":"'Project Summary'!AH1","v":"LtgFixture_Inc_Cost"},{"$f":"'Project Summary'!AI1","v":"LtgFixture_kWh_Savings"},{"$f":"'Project Summary'!AN1","v":"LtgControl_Rebate"},{"$f":"'Project Summary'!AO1","v":"LtgControl_Inc_Cost"},{"$f":"'Project Summary'!AP1","v":"LtgControl_kWh_Savings"},{"$f":"'Project Summary'!AS1","v":"Incentive_Customer"},{"$f":"'Project Summary'!AT1","v":"MeasureCost"},{"$f":"'Project Summary'!AW1","v":"Ltg_Measure_kWh_Savings"},{"$f":"'Project Summary'!AX1","v":"Ltg_Measure_kW_Savings"},{"$f":"'Project Summary'!AU1","v":"INTERIOR KWH SAVINGS"},{"$f":"'Project Summary'!AV1","v":"INTERIOR KW SAVINGS"},{"$f":"'Project Summary'!AY1","v":"kWhSavings"},{"$f":"'Project Summary'!AZ1","v":"DemandSavingskW"}]
["IsActive","FALSE"]
[1,2,3,4,5,6,7,8,9,10,11,12,13,14,15,16,17,18,19,20,21,22,23,24,25,26,27,28,29,30]
["Fixture Measure Description","Controls Measure Description","Zone Description","Proposed Fixture","Average of OpHrs","Average of EIF","Average of DIF","Average of CF (Ltg)","Average of DF (Ltg)","Average of CF (HVAC)","Average of DF (HVAC)","Average of # Lamps/ Fixture [P]","Average of Fixture/ Lamp Wattage [P]","Sum of P. Qty","Average of Proposed Fixture Wattage","Sum of Proposed Fixture kWh","Sum of Fixture Rebate","Sum of Fixture Cost","Sum of Annual Fixture Savings (kWh)","Sum of Controls Rebate","Sum of Controls Cost","Sum of Annual Control Savings (kWh)","Sum of Total Rebate","Sum of Total Cost","Sum of Fixture Energy Savings (kWh)","Sum of Fixture Demand Savings (kW)","Sum of Induced HVAC Energy Savings (kWh)","Sum of Induced HVAC Demand Savings (kW)","Sum of Total Energy Savings (kWh)","Sum of Total Demand Savings (kW)"]
["","","",null,{"$error":"#DIV/0!"},{"$error":"#DIV/0!"},{"$error":"#DIV/0!"},{"$error":"#DIV/0!"},{"$error":"#DIV/0!"},{"$error":"#DIV/0!"},{"$error":"#DIV/0!"},{"$error":"#DIV/0!"},{"$error":"#DIV/0!"},0,{"$error":"#DIV/0!"},0,0,0,0,0,0,0,0,0,0,0,0,0,0,0]
["Grand Total",null,null,null,{"$error":"#DIV/0!"},{"$error":"#DIV/0!"},{"$error":"#DIV/0!"},{"$error":"#DIV/0!"},{"$error":"#DIV/0!"},{"$error":"#DIV/0!"},{"$error":"#DIV/0!"},{"$error":"#DIV/0!"},{"$error":"#DIV/0!"},0,{"$error":"#DIV/0!"},0,0,0,0,0,0,0,0,0,0,0,0,0,0,0]

{"sheet":"RETROFIT -->","index":12,"n_rows":0,"n_cols":0,"rows_kept":0,"cut":false,"hidden":true,"merged":[]}

{"sheet":"Pre-Install Information","index":13,"n_rows":44,"n_cols":31,"rows_kept":44,"cut":false,"hidden":false,"merged":[[1,17,1,28],[1,0,1,5],[1,7,1,15]]}
[null,"HIDE","HIDE",null,null,null,null,null,null,null,null,null,null,null,null,"HIDE",null,null,null,null,null,null,null,null,null,"HIDE"]
["Zone Information",null,null,null,null,null,null,"Existing Fixture Information [E]",null,null,null,null,null,null,null,null,null,"Proposed Fixture Information [P]"]
[1,2,3,4,5,6,7,8,9,10,11,12,13,14,15,16,17,18,19,20,21,22,23,24,25,26,27,28,29,30,31]
["Line","IsActive","LI (Filled)","Schedule","Interior/ Exterior","Space Description","1","Fixture Qty [E]","Fixture Technology [E]","# Lamps/ Fixture [E]","Fixture/ Lamp Wattage [E]","Ballast/ Driver [E]","Fixture Wattage [E]","Fixture Type [E]","Controls [E]","Fixture Description [E]","2","Fixture Qty [P]","Fixture Technology [P]","# Lamps/ Fixture [P]","Fixture/ Lamp Wattage [P]","Ballast/ Driver [P]","Fixture Wattage [P]","Fixture Type [P]","Controls [P]","Fixture Description [P]","Manufacturer [P]","Model Number [P]","DLC or ES Certification [P]","3","Notes"]
[{"$f":"IF($A4=\"Line\",1,MAX($A$4:$A4)+1)","v":1},{"$f":"COUNTA(Table_PREInfo[[#This Row],[Schedule]:[Notes]])>9","v":false},{"$f":"IF(Table_PREInfo[[#This Row],[IsActive]],Table_PREInfo[[#This Row],[Line]],\"\")","v":""},null,null,null,null,null,null,null,{"$f":"IF(ISNUMBER(FIND(\"LED Tube\",Table_PREInfo[[#This Row],[Fixture Technology '[E']]],1)),\"[Enter]\",\"\")","v":""},null,{"$f":"IFERROR(\nIFERROR(OFFSET(Table_TypWattage[[#Headers],[Technology]],MATCH(Table_PREInfo[[#This Row],[Fixture Technology '[E']]] & IF(Table_PREInfo[[#This Row],[Ballast/ Driver '[E']]]<>\"\",\" - \" & Table_PREInfo[[#This Row],[Ballast/ Driver '[E']]],\"\"),Table_TypWattage[Technology],0)+MATCH(Table_PREInfo[[#This Row],[Fixture/ Lamp Wattage '[E']]],INDIRECT(SUBSTITUTE(SUBSTITUTE(Table_PREInfo[[#This Row],[Fixture Technology '[E']]],\" \",\"_\"),\"-\",\"_\")),0)-1,MATCH(Table_PREInfo[[#This Row],['# Lamps/ Fixture '[E']]],'Measure Tables'!$Q$2:$V$2,0)+1),IF(Table_PREInfo[[#This Row],[Schedule]]<>\"\",IF(AND(Table_PREInfo[[#This Row],['# Lamps/ Fixture '[E']]]<>\"\",Table_PREInfo[[#This Row],['# Lamps/ Fixture '[E']]]>0,Table_PREInfo[[#This Row],[Fixture/ Lamp Wattage '[E']]]>0),Table_PREInfo[[#This Row],['# Lamps/ Fixture '[E']]]*Table_PREInfo[[#This Row],[Fixture/ Lamp Wattage '[E']]],Table_PREInfo[[#This Row],[Fixture/ Lamp Wattage '[E']]]),\"\")),\n\"\")","v":""},null,null,{"$f":"IFERROR(IF(Table_PREInfo[[#This Row],[Interior/ Exterior]]<>\"\",\n  CONCATENATE(\n  Table_PREInfo[[#This Row],[Interior/ Exterior]],\": \" &\n  Table_PREInfo[[#This Row],[Fixture Technology '[E']]],\n  \" - \",Table_PREInfo[[#This Row],[Fixture Type '[E']]],\" [\",\n  IF(Table_PREInfo[[#This Row],['# Lamps/ Fixture '[E']]]>0,Table_PREInfo[[#This Row],['# Lamps/ Fixture '[E']]] & \"L - \" & Table_PREInfo[[#This Row],[Fixture/ Lamp Wattage '[E']]] & \"W\" & IF(Table_PREInfo[[#This Row],[Ballast/ Driver '[E']]]<>\"\",\" - \" & Table_PREInfo[[#This Row],[Ballast/ Driver '[E']]],\"\"),Table_PREInfo[[#This Row],[Fixture Wattage '[E']]] & \"W\"),\"]\",\n  IF(AND(Table_PREInfo[[#This Row],[Controls '[E']]]<>\"\",Table_PREInfo[[#This Row],[Controls '[E']]]<>\"No Controls\"),\" - \" & Table_PREInfo[[#This Row],[Controls '[E']]],\"\")\n  ),\n\"\"),\"\")","v":""},null,{"$f":"IF(Table_PREInfo[[#This Row],[Fixture Qty '[E']]]<>0,Table_PREInfo[[#This Row],[Fixture Qty '[E']]],\"\")","v":""},null,null,{"$f":"IF(ISNUMBER(FIND(\"LED Tube\",Table_PREInfo[[#This Row],[Fixture Technology '[P']]],1)),\"[Enter]\",\"\")","v":""},null,{"$f":"IFERROR(\nIFERROR(OFFSET(Table_TypWattage[[#Headers],[Technology]],MATCH(Table_PREInfo[[#This Row],[Fixture Technology '[P']]],Table_TypWattage[Technology],0)+MATCH(Table_PREInfo[[#This Row],[Fixture/ Lamp Wattage '[P']]],INDIRECT(SUBSTITUTE(SUBSTITUTE(Table_PREInfo[[#This Row],[Fixture Technology '[P']]],\" \",\"_\"),\"-\",\"_\")),0)-1,MATCH(Table_PREInfo[[#This Row],['# Lamps/ Fixture '[P']]],'Measure Tables'!$Q$2:$V$2,0)+1),IF(Table_PREInfo[[#This Row],[Schedule]]<>\"\",IF(AND(,Table_PREInfo[[#This Row],['# Lamps/ Fixture '[P']]]<>\"\",Table_PREInfo[[#This Row],['# Lamps/ Fixture '[P']]]>0,Table_PREInfo[[#This Row],[Fixture/ Lamp Wattage '[P']]]>0),Table_PREInfo[[#This Row],['# Lamps/ Fixture '[P']]]*Table_PREInfo[[#This Row],[Fixture/ Lamp Wattage '[P']]],Table_PREInfo[[#This Row],[Fixture/ Lamp Wattage '[P']]]),\"\")),\n\"\")","v":""},{"$f":"IF(Table_PREInfo[[#This Row],[Fixture Type '[E']]]<>\"\",Table_PREInfo[[#This Row],[Fixture Type '[E']]],\"\")","v":""},{"$f":"IF(Table_PREInfo[[#This Row],[Controls '[E']]]<>\"\",Table_PREInfo[[#This Row],[Controls '[E']]],\"\")","v":""},{"$f":"IFERROR(IF(Table_PREInfo[[#This Row],[Interior/ Exterior]]<>\"\",\n  CONCATENATE(\n  Table_PREInfo[[#This Row],[Fixture Technology '[P']]],\n  \" - \",Table_PREInfo[[#This Row],[Fixture Type '[P']]],\" [\",\n  IF(Table_PREInfo[[#This Row],['# Lamps/ Fixture '[P']]]>0,Table_PREInfo[[#This Row],['# Lamps/ Fixture '[P']]] & \"L - \" & Table_PREInfo[[#This Row],[Fixture/ Lamp Wattage '[P']]] & \"W\" & IF(Table_PREInfo[[#This Row],[Ballast/ Driver '[P']]]<>\"\",\" - \" & Table_PREInfo[[#This Row],[Ballast/ Driver '[P']]],\"\"),Table_PREInfo[[#This Row],[Fixture Wattage '[P']]] & \"W\"),\"]\",\n  IF(AND(Table_PREInfo[[#This Row],[Controls '[P']]]<>\"\",Table_PREInfo[[#This Row],[Controls '[P']]]<>\"No Controls\"),\" - \" & Table_PREInfo[[#This Row],[Controls '[P']]],\"\")\n  ),\n\"\"),\"\")","v":""}]
[{"$f":"IF($A5=\"Line\",1,MAX($A$4:$A5)+1)","v":2},{"$f":"COUNTA(Table_PREInfo[[#This Row],[Schedule]:[Notes]])>9","v":false},{"$f":"IF(Table_PREInfo[[#This Row],[IsActive]],Table_PREInfo[[#This Row],[Line]],\"\")","v":""},null,null,null,null,null,null,null,{"$f":"IF(ISNUMBER(FIND(\"LED Tube\",Table_PREInfo[[#This Row],[Fixture Technology '[E']]],1)),\"[Enter]\",\"\")","v":""},null,{"$f":"IFERROR(\nIFERROR(OFFSET(Table_TypWattage[[#Headers],[Technology]],MATCH(Table_PREInfo[[#This Row],[Fixture Technology '[E']]] & IF(Table_PREInfo[[#This Row],[Ballast/ Driver '[E']]]<>\"\",\" - \" & Table_PREInfo[[#This Row],[Ballast/ Driver '[E']]],\"\"),Table_TypWattage[Technology],0)+MATCH(Table_PREInfo[[#This Row],[Fixture/ Lamp Wattage '[E']]],INDIRECT(SUBSTITUTE(SUBSTITUTE(Table_PREInfo[[#This Row],[Fixture Technology '[E']]],\" \",\"_\"),\"-\",\"_\")),0)-1,MATCH(Table_PREInfo[[#This Row],['# Lamps/ Fixture '[E']]],'Measure Tables'!$Q$2:$V$2,0)+1),IF(Table_PREInfo[[#This Row],[Schedule]]<>\"\",IF(AND(Table_PREInfo[[#This Row],['# Lamps/ Fixture '[E']]]<>\"\",Table_PREInfo[[#This Row],['# Lamps/ Fixture '[E']]]>0,Table_PREInfo[[#This Row],[Fixture/ Lamp Wattage '[E']]]>0),Table_PREInfo[[#This Row],['# Lamps/ Fixture '[E']]]*Table_PREInfo[[#This Row],[Fixture/ Lamp Wattage '[E']]],Table_PREInfo[[#This Row],[Fixture/ Lamp Wattage '[E']]]),\"\")),\n\"\")","v":""},null,null,{"$f":"IFERROR(IF(Table_PREInfo[[#This Row],[Interior/ Exterior]]<>\"\",\n  CONCATENATE(\n  Table_PREInfo[[#This Row],[Interior/ Exterior]],\": \" &\n  Table_PREInfo[[#This Row],[Fixture Technology '[E']]],\n  \" - \",Table_PREInfo[[#This Row],[Fixture Type '[E']]],\" [\",\n  IF(Table_PREInfo[[#This Row],['# Lamps/ Fixture '[E']]]>0,Table_PREInfo[[#This Row],['# Lamps/ Fixture '[E']]] & \"L - \" & Table_PREInfo[[#This Row],[Fixture/ Lamp Wattage '[E']]] & \"W\" & IF(Table_PREInfo[[#This Row],[Ballast/ Driver '[E']]]<>\"\",\" - \" & Table_PREInfo[[#This Row],[Ballast/ Driver '[E']]],\"\"),Table_PREInfo[[#This Row],[Fixture Wattage '[E']]] & \"W\"),\"]\",\n  IF(AND(Table_PREInfo[[#This Row],[Controls '[E']]]<>\"\",Table_PREInfo[[#This Row],[Controls '[E']]]<>\"No Controls\"),\" - \" & Table_PREInfo[[#This Row],[Controls '[E']]],\"\")\n  ),\n\"\"),\"\")","v":""},null,{"$f":"IF(Table_PREInfo[[#This Row],[Fixture Qty '[E']]]<>0,Table_PREInfo[[#This Row],[Fixture Qty '[E']]],\"\")","v":""},null,null,{"$f":"IF(ISNUMBER(FIND(\"LED Tube\",Table_PREInfo[[#This Row],[Fixture Technology '[P']]],1)),\"[Enter]\",\"\")","v":""},null,{"$f":"IFERROR(\nIFERROR(OFFSET(Table_TypWattage[[#Headers],[Technology]],MATCH(Table_PREInfo[[#This Row],[Fixture Technology '[P']]],Table_TypWattage[Technology],0)+MATCH(Table_PREInfo[[#This Row],[Fixture/ Lamp Wattage '[P']]],INDIRECT(SUBSTITUTE(SUBSTITUTE(Table_PREInfo[[#This Row],[Fixture Technology '[P']]],\" \",\"_\"),\"-\",\"_\")),0)-1,MATCH(Table_PREInfo[[#This Row],['# Lamps/ Fixture '[P']]],'Measure Tables'!$Q$2:$V$2,0)+1),IF(Table_PREInfo[[#This Row],[Schedule]]<>\"\",IF(AND(,Table_PREInfo[[#This Row],['# Lamps/ Fixture '[P']]]<>\"\",Table_PREInfo[[#This Row],['# Lamps/ Fixture '[P']]]>0,Table_PREInfo[[#This Row],[Fixture/ Lamp Wattage '[P']]]>0),Table_PREInfo[[#This Row],['# Lamps/ Fixture '[P']]]*Table_PREInfo[[#This Row],[Fixture/ Lamp Wattage '[P']]],Table_PREInfo[[#This Row],[Fixture/ Lamp Wattage '[P']]]),\"\")),\n\"\")","v":""},{"$f":"IF(Table_PREInfo[[#This Row],[Fixture Type '[E']]]<>\"\",Table_PREInfo[[#This Row],[Fixture Type '[E']]],\"\")","v":""},{"$f":"IF(Table_PREInfo[[#This Row],[Controls '[E']]]<>\"\",Table_PREInfo[[#This Row],[Controls '[E']]],\"\")","v":""},{"$f":"IFERROR(IF(Table_PREInfo[[#This Row],[Interior/ Exterior]]<>\"\",\n  CONCATENATE(\n  Table_PREInfo[[#This Row],[Fixture Technology '[P']]],\n  \" - \",Table_PREInfo[[#This Row],[Fixture Type '[P']]],\" [\",\n  IF(Table_PREInfo[[#This Row],['# Lamps/ Fixture '[P']]]>0,Table_PREInfo[[#This Row],['# Lamps/ Fixture '[P']]] & \"L - \" & Table_PREInfo[[#This Row],[Fixture/ Lamp Wattage '[P']]] & \"W\" & IF(Table_PREInfo[[#This Row],[Ballast/ Driver '[P']]]<>\"\",\" - \" & Table_PREInfo[[#This Row],[Ballast/ Driver '[P']]],\"\"),Table_PREInfo[[#This Row],[Fixture Wattage '[P']]] & \"W\"),\"]\",\n  IF(AND(Table_PREInfo[[#This Row],[Controls '[P']]]<>\"\",Table_PREInfo[[#This Row],[Controls '[P']]]<>\"No Controls\"),\" - \" & Table_PREInfo[[#This Row],[Controls '[P']]],\"\")\n  ),\n\"\"),\"\")","v":""}]
[{"$f":"IF($A6=\"Line\",1,MAX($A$4:$A6)+1)","v":3},{"$f":"COUNTA(Table_PREInfo[[#This Row],[Schedule]:[Notes]])>9","v":false},{"$f":"IF(Table_PREInfo[[#This Row],[IsActive]],Table_PREInfo[[#This Row],[Line]],\"\")","v":""},null,null,null,null,null,null,null,{"$f":"IF(ISNUMBER(FIND(\"LED Tube\",Table_PREInfo[[#This Row],[Fixture Technology '[E']]],1)),\"[Enter]\",\"\")","v":""},null,{"$f":"IFERROR(\nIFERROR(OFFSET(Table_TypWattage[[#Headers],[Technology]],MATCH(Table_PREInfo[[#This Row],[Fixture Technology '[E']]] & IF(Table_PREInfo[[#This Row],[Ballast/ Driver '[E']]]<>\"\",\" - \" & Table_PREInfo[[#This Row],[Ballast/ Driver '[E']]],\"\"),Table_TypWattage[Technology],0)+MATCH(Table_PREInfo[[#This Row],[Fixture/ Lamp Wattage '[E']]],INDIRECT(SUBSTITUTE(SUBSTITUTE(Table_PREInfo[[#This Row],[Fixture Technology '[E']]],\" \",\"_\"),\"-\",\"_\")),0)-1,MATCH(Table_PREInfo[[#This Row],['# Lamps/ Fixture '[E']]],'Measure Tables'!$Q$2:$V$2,0)+1),IF(Table_PREInfo[[#This Row],[Schedule]]<>\"\",IF(AND(Table_PREInfo[[#This Row],['# Lamps/ Fixture '[E']]]<>\"\",Table_PREInfo[[#This Row],['# Lamps/ Fixture '[E']]]>0,Table_PREInfo[[#This Row],[Fixture/ Lamp Wattage '[E']]]>0),Table_PREInfo[[#This Row],['# Lamps/ Fixture '[E']]]*Table_PREInfo[[#This Row],[Fixture/ Lamp Wattage '[E']]],Table_PREInfo[[#This Row],[Fixture/ Lamp Wattage '[E']]]),\"\")),\n\"\")","v":""},null,null,{"$f":"IFERROR(IF(Table_PREInfo[[#This Row],[Interior/ Exterior]]<>\"\",\n  CONCATENATE(\n  Table_PREInfo[[#This Row],[Interior/ Exterior]],\": \" &\n  Table_PREInfo[[#This Row],[Fixture Technology '[E']]],\n  \" - \",Table_PREInfo[[#This Row],[Fixture Type '[E']]],\" [\",\n  IF(Table_PREInfo[[#This Row],['# Lamps/ Fixture '[E']]]>0,Table_PREInfo[[#This Row],['# Lamps/ Fixture '[E']]] & \"L - \" & Table_PREInfo[[#This Row],[Fixture/ Lamp Wattage '[E']]] & \"W\" & IF(Table_PREInfo[[#This Row],[Ballast/ Driver '[E']]]<>\"\",\" - \" & Table_PREInfo[[#This Row],[Ballast/ Driver '[E']]],\"\"),Table_PREInfo[[#This Row],[Fixture Wattage '[E']]] & \"W\"),\"]\",\n  IF(AND(Table_PREInfo[[#This Row],[Controls '[E']]]<>\"\",Table_PREInfo[[#This Row],[Controls '[E']]]<>\"No Controls\"),\" - \" & Table_PREInfo[[#This Row],[Controls '[E']]],\"\")\n  ),\n\"\"),\"\")","v":""},null,{"$f":"IF(Table_PREInfo[[#This Row],[Fixture Qty '[E']]]<>0,Table_PREInfo[[#This Row],[Fixture Qty '[E']]],\"\")","v":""},null,null,{"$f":"IF(ISNUMBER(FIND(\"LED Tube\",Table_PREInfo[[#This Row],[Fixture Technology '[P']]],1)),\"[Enter]\",\"\")","v":""},null,{"$f":"IFERROR(\nIFERROR(OFFSET(Table_TypWattage[[#Headers],[Technology]],MATCH(Table_PREInfo[[#This Row],[Fixture Technology '[P']]],Table_TypWattage[Technology],0)+MATCH(Table_PREInfo[[#This Row],[Fixture/ Lamp Wattage '[P']]],INDIRECT(SUBSTITUTE(SUBSTITUTE(Table_PREInfo[[#This Row],[Fixture Technology '[P']]],\" \",\"_\"),\"-\",\"_\")),0)-1,MATCH(Table_PREInfo[[#This Row],['# Lamps/ Fixture '[P']]],'Measure Tables'!$Q$2:$V$2,0)+1),IF(Table_PREInfo[[#This Row],[Schedule]]<>\"\",IF(AND(,Table_PREInfo[[#This Row],['# Lamps/ Fixture '[P']]]<>\"\",Table_PREInfo[[#This Row],['# Lamps/ Fixture '[P']]]>0,Table_PREInfo[[#This Row],[Fixture/ Lamp Wattage '[P']]]>0),Table_PREInfo[[#This Row],['# Lamps/ Fixture '[P']]]*Table_PREInfo[[#This Row],[Fixture/ Lamp Wattage '[P']]],Table_PREInfo[[#This Row],[Fixture/ Lamp Wattage '[P']]]),\"\")),\n\"\")","v":""},{"$f":"IF(Table_PREInfo[[#This Row],[Fixture Type '[E']]]<>\"\",Table_PREInfo[[#This Row],[Fixture Type '[E']]],\"\")","v":""},{"$f":"IF(Table_PREInfo[[#This Row],[Controls '[E']]]<>\"\",Table_PREInfo[[#This Row],[Controls '[E']]],\"\")","v":""},{"$f":"IFERROR(IF(Table_PREInfo[[#This Row],[Interior/ Exterior]]<>\"\",\n  CONCATENATE(\n  Table_PREInfo[[#This Row],[Fixture Technology '[P']]],\n  \" - \",Table_PREInfo[[#This Row],[Fixture Type '[P']]],\" [\",\n  IF(Table_PREInfo[[#This Row],['# Lamps/ Fixture '[P']]]>0,Table_PREInfo[[#This Row],['# Lamps/ Fixture '[P']]] & \"L - \" & Table_PREInfo[[#This Row],[Fixture/ Lamp Wattage '[P']]] & \"W\" & IF(Table_PREInfo[[#This Row],[Ballast/ Driver '[P']]]<>\"\",\" - \" & Table_PREInfo[[#This Row],[Ballast/ Driver '[P']]],\"\"),Table_PREInfo[[#This Row],[Fixture Wattage '[P']]] & \"W\"),\"]\",\n  IF(AND(Table_PREInfo[[#This Row],[Controls '[P']]]<>\"\",Table_PREInfo[[#This Row],[Controls '[P']]]<>\"No Controls\"),\" - \" & Table_PREInfo[[#This Row],[Controls '[P']]],\"\")\n  ),\n\"\"),\"\")","v":""}]
[{"$f":"IF($A7=\"Line\",1,MAX($A$4:$A7)+1)","v":4},{"$f":"COUNTA(Table_PREInfo[[#This Row],[Schedule]:[Notes]])>9","v":false},{"$f":"IF(Table_PREInfo[[#This Row],[IsActive]],Table_PREInfo[[#This Row],[Line]],\"\")","v":""},null,null,null,null,null,null,null,{"$f":"IF(ISNUMBER(FIND(\"LED Tube\",Table_PREInfo[[#This Row],[Fixture Technology '[E']]],1)),\"[Enter]\",\"\")","v":""},null,{"$f":"IFERROR(\nIFERROR(OFFSET(Table_TypWattage[[#Headers],[Technology]],MATCH(Table_PREInfo[[#This Row],[Fixture Technology '[E']]] & IF(Table_PREInfo[[#This Row],[Ballast/ Driver '[E']]]<>\"\",\" - \" & Table_PREInfo[[#This Row],[Ballast/ Driver '[E']]],\"\"),Table_TypWattage[Technology],0)+MATCH(Table_PREInfo[[#This Row],[Fixture/ Lamp Wattage '[E']]],INDIRECT(SUBSTITUTE(SUBSTITUTE(Table_PREInfo[[#This Row],[Fixture Technology '[E']]],\" \",\"_\"),\"-\",\"_\")),0)-1,MATCH(Table_PREInfo[[#This Row],['# Lamps/ Fixture '[E']]],'Measure Tables'!$Q$2:$V$2,0)+1),IF(Table_PREInfo[[#This Row],[Schedule]]<>\"\",IF(AND(Table_PREInfo[[#This Row],['# Lamps/ Fixture '[E']]]<>\"\",Table_PREInfo[[#This Row],['# Lamps/ Fixture '[E']]]>0,Table_PREInfo[[#This Row],[Fixture/ Lamp Wattage '[E']]]>0),Table_PREInfo[[#This Row],['# Lamps/ Fixture '[E']]]*Table_PREInfo[[#This Row],[Fixture/ Lamp Wattage '[E']]],Table_PREInfo[[#This Row],[Fixture/ Lamp Wattage '[E']]]),\"\")),\n\"\")","v":""},null,null,{"$f":"IFERROR(IF(Table_PREInfo[[#This Row],[Interior/ Exterior]]<>\"\",\n  CONCATENATE(\n  Table_PREInfo[[#This Row],[Interior/ Exterior]],\": \" &\n  Table_PREInfo[[#This Row],[Fixture Technology '[E']]],\n  \" - \",Table_PREInfo[[#This Row],[Fixture Type '[E']]],\" [\",\n  IF(Table_PREInfo[[#This Row],['# Lamps/ Fixture '[E']]]>0,Table_PREInfo[[#This Row],['# Lamps/ Fixture '[E']]] & \"L - \" & Table_PREInfo[[#This Row],[Fixture/ Lamp Wattage '[E']]] & \"W\" & IF(Table_PREInfo[[#This Row],[Ballast/ Driver '[E']]]<>\"\",\" - \" & Table_PREInfo[[#This Row],[Ballast/ Driver '[E']]],\"\"),Table_PREInfo[[#This Row],[Fixture Wattage '[E']]] & \"W\"),\"]\",\n  IF(AND(Table_PREInfo[[#This Row],[Controls '[E']]]<>\"\",Table_PREInfo[[#This Row],[Controls '[E']]]<>\"No Controls\"),\" - \" & Table_PREInfo[[#This Row],[Controls '[E']]],\"\")\n  ),\n\"\"),\"\")","v":""},null,{"$f":"IF(Table_PREInfo[[#This Row],[Fixture Qty '[E']]]<>0,Table_PREInfo[[#This Row],[Fixture Qty '[E']]],\"\")","v":""},null,null,{"$f":"IF(ISNUMBER(FIND(\"LED Tube\",Table_PREInfo[[#This Row],[Fixture Technology '[P']]],1)),\"[Enter]\",\"\")","v":""},null,{"$f":"IFERROR(\nIFERROR(OFFSET(Table_TypWattage[[#Headers],[Technology]],MATCH(Table_PREInfo[[#This Row],[Fixture Technology '[P']]],Table_TypWattage[Technology],0)+MATCH(Table_PREInfo[[#This Row],[Fixture/ Lamp Wattage '[P']]],INDIRECT(SUBSTITUTE(SUBSTITUTE(Table_PREInfo[[#This Row],[Fixture Technology '[P']]],\" \",\"_\"),\"-\",\"_\")),0)-1,MATCH(Table_PREInfo[[#This Row],['# Lamps/ Fixture '[P']]],'Measure Tables'!$Q$2:$V$2,0)+1),IF(Table_PREInfo[[#This Row],[Schedule]]<>\"\",IF(AND(,Table_PREInfo[[#This Row],['# Lamps/ Fixture '[P']]]<>\"\",Table_PREInfo[[#This Row],['# Lamps/ Fixture '[P']]]>0,Table_PREInfo[[#This Row],[Fixture/ Lamp Wattage '[P']]]>0),Table_PREInfo[[#This Row],['# Lamps/ Fixture '[P']]]*Table_PREInfo[[#This Row],[Fixture/ Lamp Wattage '[P']]],Table_PREInfo[[#This Row],[Fixture/ Lamp Wattage '[P']]]),\"\")),\n\"\")","v":""},{"$f":"IF(Table_PREInfo[[#This Row],[Fixture Type '[E']]]<>\"\",Table_PREInfo[[#This Row],[Fixture Type '[E']]],\"\")","v":""},{"$f":"IF(Table_PREInfo[[#This Row],[Controls '[E']]]<>\"\",Table_PREInfo[[#This Row],[Controls '[E']]],\"\")","v":""},{"$f":"IFERROR(IF(Table_PREInfo[[#This Row],[Interior/ Exterior]]<>\"\",\n  CONCATENATE(\n  Table_PREInfo[[#This Row],[Fixture Technology '[P']]],\n  \" - \",Table_PREInfo[[#This Row],[Fixture Type '[P']]],\" [\",\n  IF(Table_PREInfo[[#This Row],['# Lamps/ Fixture '[P']]]>0,Table_PREInfo[[#This Row],['# Lamps/ Fixture '[P']]] & \"L - \" & Table_PREInfo[[#This Row],[Fixture/ Lamp Wattage '[P']]] & \"W\" & IF(Table_PREInfo[[#This Row],[Ballast/ Driver '[P']]]<>\"\",\" - \" & Table_PREInfo[[#This Row],[Ballast/ Driver '[P']]],\"\"),Table_PREInfo[[#This Row],[Fixture Wattage '[P']]] & \"W\"),\"]\",\n  IF(AND(Table_PREInfo[[#This Row],[Controls '[P']]]<>\"\",Table_PREInfo[[#This Row],[Controls '[P']]]<>\"No Controls\"),\" - \" & Table_PREInfo[[#This Row],[Controls '[P']]],\"\")\n  ),\n\"\"),\"\")","v":""}]
[{"$f":"IF($A8=\"Line\",1,MAX($A$4:$A8)+1)","v":5},{"$f":"COUNTA(Table_PREInfo[[#This Row],[Schedule]:[Notes]])>9","v":false},{"$f":"IF(Table_PREInfo[[#This Row],[IsActive]],Table_PREInfo[[#This Row],[Line]],\"\")","v":""},null,null,null,null,null,null,null,{"$f":"IF(ISNUMBER(FIND(\"LED Tube\",Table_PREInfo[[#This Row],[Fixture Technology '[E']]],1)),\"[Enter]\",\"\")","v":""},null,{"$f":"IFERROR(\nIFERROR(OFFSET(Table_TypWattage[[#Headers],[Technology]],MATCH(Table_PREInfo[[#This Row],[Fixture Technology '[E']]] & IF(Table_PREInfo[[#This Row],[Ballast/ Driver '[E']]]<>\"\",\" - \" & Table_PREInfo[[#This Row],[Ballast/ Driver '[E']]],\"\"),Table_TypWattage[Technology],0)+MATCH(Table_PREInfo[[#This Row],[Fixture/ Lamp Wattage '[E']]],INDIRECT(SUBSTITUTE(SUBSTITUTE(Table_PREInfo[[#This Row],[Fixture Technology '[E']]],\" \",\"_\"),\"-\",\"_\")),0)-1,MATCH(Table_PREInfo[[#This Row],['# Lamps/ Fixture '[E']]],'Measure Tables'!$Q$2:$V$2,0)+1),IF(Table_PREInfo[[#This Row],[Schedule]]<>\"\",IF(AND(Table_PREInfo[[#This Row],['# Lamps/ Fixture '[E']]]<>\"\",Table_PREInfo[[#This Row],['# Lamps/ Fixture '[E']]]>0,Table_PREInfo[[#This Row],[Fixture/ Lamp Wattage '[E']]]>0),Table_PREInfo[[#This Row],['# Lamps/ Fixture '[E']]]*Table_PREInfo[[#This Row],[Fixture/ Lamp Wattage '[E']]],Table_PREInfo[[#This Row],[Fixture/ Lamp Wattage '[E']]]),\"\")),\n\"\")","v":""},null,null,{"$f":"IFERROR(IF(Table_PREInfo[[#This Row],[Interior/ Exterior]]<>\"\",\n  CONCATENATE(\n  Table_PREInfo[[#This Row],[Interior/ Exterior]],\": \" &\n  Table_PREInfo[[#This Row],[Fixture Technology '[E']]],\n  \" - \",Table_PREInfo[[#This Row],[Fixture Type '[E']]],\" [\",\n  IF(Table_PREInfo[[#This Row],['# Lamps/ Fixture '[E']]]>0,Table_PREInfo[[#This Row],['# Lamps/ Fixture '[E']]] & \"L - \" & Table_PREInfo[[#This Row],[Fixture/ Lamp Wattage '[E']]] & \"W\" & IF(Table_PREInfo[[#This Row],[Ballast/ Driver '[E']]]<>\"\",\" - \" & Table_PREInfo[[#This Row],[Ballast/ Driver '[E']]],\"\"),Table_PREInfo[[#This Row],[Fixture Wattage '[E']]] & \"W\"),\"]\",\n  IF(AND(Table_PREInfo[[#This Row],[Controls '[E']]]<>\"\",Table_PREInfo[[#This Row],[Controls '[E']]]<>\"No Controls\"),\" - \" & Table_PREInfo[[#This Row],[Controls '[E']]],\"\")\n  ),\n\"\"),\"\")","v":""},null,{"$f":"IF(Table_PREInfo[[#This Row],[Fixture Qty '[E']]]<>0,Table_PREInfo[[#This Row],[Fixture Qty '[E']]],\"\")","v":""},null,null,{"$f":"IF(ISNUMBER(FIND(\"LED Tube\",Table_PREInfo[[#This Row],[Fixture Technology '[P']]],1)),\"[Enter]\",\"\")","v":""},null,{"$f":"IFERROR(\nIFERROR(OFFSET(Table_TypWattage[[#Headers],[Technology]],MATCH(Table_PREInfo[[#This Row],[Fixture Technology '[P']]],Table_TypWattage[Technology],0)+MATCH(Table_PREInfo[[#This Row],[Fixture/ Lamp Wattage '[P']]],INDIRECT(SUBSTITUTE(SUBSTITUTE(Table_PREInfo[[#This Row],[Fixture Technology '[P']]],\" \",\"_\"),\"-\",\"_\")),0)-1,MATCH(Table_PREInfo[[#This Row],['# Lamps/ Fixture '[P']]],'Measure Tables'!$Q$2:$V$2,0)+1),IF(Table_PREInfo[[#This Row],[Schedule]]<>\"\",IF(AND(,Table_PREInfo[[#This Row],['# Lamps/ Fixture '[P']]]<>\"\",Table_PREInfo[[#This Row],['# Lamps/ Fixture '[P']]]>0,Table_PREInfo[[#This Row],[Fixture/ Lamp Wattage '[P']]]>0),Table_PREInfo[[#This Row],['# Lamps/ Fixture '[P']]]*Table_PREInfo[[#This Row],[Fixture/ Lamp Wattage '[P']]],Table_PREInfo[[#This Row],[Fixture/ Lamp Wattage '[P']]]),\"\")),\n\"\")","v":""},{"$f":"IF(Table_PREInfo[[#This Row],[Fixture Type '[E']]]<>\"\",Table_PREInfo[[#This Row],[Fixture Type '[E']]],\"\")","v":""},{"$f":"IF(Table_PREInfo[[#This Row],[Controls '[E']]]<>\"\",Table_PREInfo[[#This Row],[Controls '[E']]],\"\")","v":""},{"$f":"IFERROR(IF(Table_PREInfo[[#This Row],[Interior/ Exterior]]<>\"\",\n  CONCATENATE(\n  Table_PREInfo[[#This Row],[Fixture Technology '[P']]],\n  \" - \",Table_PREInfo[[#This Row],[Fixture Type '[P']]],\" [\",\n  IF(Table_PREInfo[[#This Row],['# Lamps/ Fixture '[P']]]>0,Table_PREInfo[[#This Row],['# Lamps/ Fixture '[P']]] & \"L - \" & Table_PREInfo[[#This Row],[Fixture/ Lamp Wattage '[P']]] & \"W\" & IF(Table_PREInfo[[#This Row],[Ballast/ Driver '[P']]]<>\"\",\" - \" & Table_PREInfo[[#This Row],[Ballast/ Driver '[P']]],\"\"),Table_PREInfo[[#This Row],[Fixture Wattage '[P']]] & \"W\"),\"]\",\n  IF(AND(Table_PREInfo[[#This Row],[Controls '[P']]]<>\"\",Table_PREInfo[[#This Row],[Controls '[P']]]<>\"No Controls\"),\" - \" & Table_PREInfo[[#This Row],[Controls '[P']]],\"\")\n  ),\n\"\"),\"\")","v":""}]
[{"$f":"IF($A9=\"Line\",1,MAX($A$4:$A9)+1)","v":6},{"$f":"COUNTA(Table_PREInfo[[#This Row],[Schedule]:[Notes]])>9","v":false},{"$f":"IF(Table_PREInfo[[#This Row],[IsActive]],Table_PREInfo[[#This Row],[Line]],\"\")","v":""},null,null,null,null,null,null,null,{"$f":"IF(ISNUMBER(FIND(\"LED Tube\",Table_PREInfo[[#This Row],[Fixture Technology '[E']]],1)),\"[Enter]\",\"\")","v":""},null,{"$f":"IFERROR(\nIFERROR(OFFSET(Table_TypWattage[[#Headers],[Technology]],MATCH(Table_PREInfo[[#This Row],[Fixture Technology '[E']]] & IF(Table_PREInfo[[#This Row],[Ballast/ Driver '[E']]]<>\"\",\" - \" & Table_PREInfo[[#This Row],[Ballast/ Driver '[E']]],\"\"),Table_TypWattage[Technology],0)+MATCH(Table_PREInfo[[#This Row],[Fixture/ Lamp Wattage '[E']]],INDIRECT(SUBSTITUTE(SUBSTITUTE(Table_PREInfo[[#This Row],[Fixture Technology '[E']]],\" \",\"_\"),\"-\",\"_\")),0)-1,MATCH(Table_PREInfo[[#This Row],['# Lamps/ Fixture '[E']]],'Measure Tables'!$Q$2:$V$2,0)+1),IF(Table_PREInfo[[#This Row],[Schedule]]<>\"\",IF(AND(Table_PREInfo[[#This Row],['# Lamps/ Fixture '[E']]]<>\"\",Table_PREInfo[[#This Row],['# Lamps/ Fixture '[E']]]>0,Table_PREInfo[[#This Row],[Fixture/ Lamp Wattage '[E']]]>0),Table_PREInfo[[#This Row],['# Lamps/ Fixture '[E']]]*Table_PREInfo[[#This Row],[Fixture/ Lamp Wattage '[E']]],Table_PREInfo[[#This Row],[Fixture/ Lamp Wattage '[E']]]),\"\")),\n\"\")","v":""},null,null,{"$f":"IFERROR(IF(Table_PREInfo[[#This Row],[Interior/ Exterior]]<>\"\",\n  CONCATENATE(\n  Table_PREInfo[[#This Row],[Interior/ Exterior]],\": \" &\n  Table_PREInfo[[#This Row],[Fixture Technology '[E']]],\n  \" - \",Table_PREInfo[[#This Row],[Fixture Type '[E']]],\" [\",\n  IF(Table_PREInfo[[#This Row],['# Lamps/ Fixture '[E']]]>0,Table_PREInfo[[#This Row],['# Lamps/ Fixture '[E']]] & \"L - \" & Table_PREInfo[[#This Row],[Fixture/ Lamp Wattage '[E']]] & \"W\" & IF(Table_PREInfo[[#This Row],[Ballast/ Driver '[E']]]<>\"\",\" - \" & Table_PREInfo[[#This Row],[Ballast/ Driver '[E']]],\"\"),Table_PREInfo[[#This Row],[Fixture Wattage '[E']]] & \"W\"),\"]\",\n  IF(AND(Table_PREInfo[[#This Row],[Controls '[E']]]<>\"\",Table_PREInfo[[#This Row],[Controls '[E']]]<>\"No Controls\"),\" - \" & Table_PREInfo[[#This Row],[Controls '[E']]],\"\")\n  ),\n\"\"),\"\")","v":""},null,{"$f":"IF(Table_PREInfo[[#This Row],[Fixture Qty '[E']]]<>0,Table_PREInfo[[#This Row],[Fixture Qty '[E']]],\"\")","v":""},null,null,{"$f":"IF(ISNUMBER(FIND(\"LED Tube\",Table_PREInfo[[#This Row],[Fixture Technology '[P']]],1)),\"[Enter]\",\"\")","v":""},null,{"$f":"IFERROR(\nIFERROR(OFFSET(Table_TypWattage[[#Headers],[Technology]],MATCH(Table_PREInfo[[#This Row],[Fixture Technology '[P']]],Table_TypWattage[Technology],0)+MATCH(Table_PREInfo[[#This Row],[Fixture/ Lamp Wattage '[P']]],INDIRECT(SUBSTITUTE(SUBSTITUTE(Table_PREInfo[[#This Row],[Fixture Technology '[P']]],\" \",\"_\"),\"-\",\"_\")),0)-1,MATCH(Table_PREInfo[[#This Row],['# Lamps/ Fixture '[P']]],'Measure Tables'!$Q$2:$V$2,0)+1),IF(Table_PREInfo[[#This Row],[Schedule]]<>\"\",IF(AND(,Table_PREInfo[[#This Row],['# Lamps/ Fixture '[P']]]<>\"\",Table_PREInfo[[#This Row],['# Lamps/ Fixture '[P']]]>0,Table_PREInfo[[#This Row],[Fixture/ Lamp Wattage '[P']]]>0),Table_PREInfo[[#This Row],['# Lamps/ Fixture '[P']]]*Table_PREInfo[[#This Row],[Fixture/ Lamp Wattage '[P']]],Table_PREInfo[[#This Row],[Fixture/ Lamp Wattage '[P']]]),\"\")),\n\"\")","v":""},{"$f":"IF(Table_PREInfo[[#This Row],[Fixture Type '[E']]]<>\"\",Table_PREInfo[[#This Row],[Fixture Type '[E']]],\"\")","v":""},{"$f":"IF(Table_PREInfo[[#This Row],[Controls '[E']]]<>\"\",Table_PREInfo[[#This Row],[Controls '[E']]],\"\")","v":""},{"$f":"IFERROR(IF(Table_PREInfo[[#This Row],[Interior/ Exterior]]<>\"\",\n  CONCATENATE(\n  Table_PREInfo[[#This Row],[Fixture Technology '[P']]],\n  \" - \",Table_PREInfo[[#This Row],[Fixture Type '[P']]],\" [\",\n  IF(Table_PREInfo[[#This Row],['# Lamps/ Fixture '[P']]]>0,Table_PREInfo[[#This Row],['# Lamps/ Fixture '[P']]] & \"L - \" & Table_PREInfo[[#This Row],[Fixture/ Lamp Wattage '[P']]] & \"W\" & IF(Table_PREInfo[[#This Row],[Ballast/ Driver '[P']]]<>\"\",\" - \" & Table_PREInfo[[#This Row],[Ballast/ Driver '[P']]],\"\"),Table_PREInfo[[#This Row],[Fixture Wattage '[P']]] & \"W\"),\"]\",\n  IF(AND(Table_PREInfo[[#This Row],[Controls '[P']]]<>\"\",Table_PREInfo[[#This Row],[Controls '[P']]]<>\"No Controls\"),\" - \" & Table_PREInfo[[#This Row],[Controls '[P']]],\"\")\n  ),\n\"\"),\"\")","v":""}]
[{"$f":"IF($A10=\"Line\",1,MAX($A$4:$A10)+1)","v":7},{"$f":"COUNTA(Table_PREInfo[[#This Row],[Schedule]:[Notes]])>9","v":false},{"$f":"IF(Table_PREInfo[[#This Row],[IsActive]],Table_PREInfo[[#This Row],[Line]],\"\")","v":""},null,null,null,null,null,null,null,{"$f":"IF(ISNUMBER(FIND(\"LED Tube\",Table_PREInfo[[#This Row],[Fixture Technology '[E']]],1)),\"[Enter]\",\"\")","v":""},null,{"$f":"IFERROR(\nIFERROR(OFFSET(Table_TypWattage[[#Headers],[Technology]],MATCH(Table_PREInfo[[#This Row],[Fixture Technology '[E']]] & IF(Table_PREInfo[[#This Row],[Ballast/ Driver '[E']]]<>\"\",\" - \" & Table_PREInfo[[#This Row],[Ballast/ Driver '[E']]],\"\"),Table_TypWattage[Technology],0)+MATCH(Table_PREInfo[[#This Row],[Fixture/ Lamp Wattage '[E']]],INDIRECT(SUBSTITUTE(SUBSTITUTE(Table_PREInfo[[#This Row],[Fixture Technology '[E']]],\" \",\"_\"),\"-\",\"_\")),0)-1,MATCH(Table_PREInfo[[#This Row],['# Lamps/ Fixture '[E']]],'Measure Tables'!$Q$2:$V$2,0)+1),IF(Table_PREInfo[[#This Row],[Schedule]]<>\"\",IF(AND(Table_PREInfo[[#This Row],['# Lamps/ Fixture '[E']]]<>\"\",Table_PREInfo[[#This Row],['# Lamps/ Fixture '[E']]]>0,Table_PREInfo[[#This Row],[Fixture/ Lamp Wattage '[E']]]>0),Table_PREInfo[[#This Row],['# Lamps/ Fixture '[E']]]*Table_PREInfo[[#This Row],[Fixture/ Lamp Wattage '[E']]],Table_PREInfo[[#This Row],[Fixture/ Lamp Wattage '[E']]]),\"\")),\n\"\")","v":""},null,null,{"$f":"IFERROR(IF(Table_PREInfo[[#This Row],[Interior/ Exterior]]<>\"\",\n  CONCATENATE(\n  Table_PREInfo[[#This Row],[Interior/ Exterior]],\": \" &\n  Table_PREInfo[[#This Row],[Fixture Technology '[E']]],\n  \" - \",Table_PREInfo[[#This Row],[Fixture Type '[E']]],\" [\",\n  IF(Table_PREInfo[[#This Row],['# Lamps/ Fixture '[E']]]>0,Table_PREInfo[[#This Row],['# Lamps/ Fixture '[E']]] & \"L - \" & Table_PREInfo[[#This Row],[Fixture/ Lamp Wattage '[E']]] & \"W\" & IF(Table_PREInfo[[#This Row],[Ballast/ Driver '[E']]]<>\"\",\" - \" & Table_PREInfo[[#This Row],[Ballast/ Driver '[E']]],\"\"),Table_PREInfo[[#This Row],[Fixture Wattage '[E']]] & \"W\"),\"]\",\n  IF(AND(Table_PREInfo[[#This Row],[Controls '[E']]]<>\"\",Table_PREInfo[[#This Row],[Controls '[E']]]<>\"No Controls\"),\" - \" & Table_PREInfo[[#This Row],[Controls '[E']]],\"\")\n  ),\n\"\"),\"\")","v":""},null,{"$f":"IF(Table_PREInfo[[#This Row],[Fixture Qty '[E']]]<>0,Table_PREInfo[[#This Row],[Fixture Qty '[E']]],\"\")","v":""},null,null,{"$f":"IF(ISNUMBER(FIND(\"LED Tube\",Table_PREInfo[[#This Row],[Fixture Technology '[P']]],1)),\"[Enter]\",\"\")","v":""},null,{"$f":"IFERROR(\nIFERROR(OFFSET(Table_TypWattage[[#Headers],[Technology]],MATCH(Table_PREInfo[[#This Row],[Fixture Technology '[P']]],Table_TypWattage[Technology],0)+MATCH(Table_PREInfo[[#This Row],[Fixture/ Lamp Wattage '[P']]],INDIRECT(SUBSTITUTE(SUBSTITUTE(Table_PREInfo[[#This Row],[Fixture Technology '[P']]],\" \",\"_\"),\"-\",\"_\")),0)-1,MATCH(Table_PREInfo[[#This Row],['# Lamps/ Fixture '[P']]],'Measure Tables'!$Q$2:$V$2,0)+1),IF(Table_PREInfo[[#This Row],[Schedule]]<>\"\",IF(AND(,Table_PREInfo[[#This Row],['# Lamps/ Fixture '[P']]]<>\"\",Table_PREInfo[[#This Row],['# Lamps/ Fixture '[P']]]>0,Table_PREInfo[[#This Row],[Fixture/ Lamp Wattage '[P']]]>0),Table_PREInfo[[#This Row],['# Lamps/ Fixture '[P']]]*Table_PREInfo[[#This Row],[Fixture/ Lamp Wattage '[P']]],Table_PREInfo[[#This Row],[Fixture/ Lamp Wattage '[P']]]),\"\")),\n\"\")","v":""},{"$f":"IF(Table_PREInfo[[#This Row],[Fixture Type '[E']]]<>\"\",Table_PREInfo[[#This Row],[Fixture Type '[E']]],\"\")","v":""},{"$f":"IF(Table_PREInfo[[#This Row],[Controls '[E']]]<>\"\",Table_PREInfo[[#This Row],[Controls '[E']]],\"\")","v":""},{"$f":"IFERROR(IF(Table_PREInfo[[#This Row],[Interior/ Exterior]]<>\"\",\n  CONCATENATE(\n  Table_PREInfo[[#This Row],[Fixture Technology '[P']]],\n  \" - \",Table_PREInfo[[#This Row],[Fixture Type '[P']]],\" [\",\n  IF(Table_PREInfo[[#This Row],['# Lamps/ Fixture '[P']]]>0,Table_PREInfo[[#This Row],['# Lamps/ Fixture '[P']]] & \"L - \" & Table_PREInfo[[#This Row],[Fixture/ Lamp Wattage '[P']]] & \"W\" & IF(Table_PREInfo[[#This Row],[Ballast/ Driver '[P']]]<>\"\",\" - \" & Table_PREInfo[[#This Row],[Ballast/ Driver '[P']]],\"\"),Table_PREInfo[[#This Row],[Fixture Wattage '[P']]] & \"W\"),\"]\",\n  IF(AND(Table_PREInfo[[#This Row],[Controls '[P']]]<>\"\",Table_PREInfo[[#This Row],[Controls '[P']]]<>\"No Controls\"),\" - \" & Table_PREInfo[[#This Row],[Controls '[P']]],\"\")\n  ),\n\"\"),\"\")","v":""}]
[{"$f":"IF($A11=\"Line\",1,MAX($A$4:$A11)+1)","v":8},{"$f":"COUNTA(Table_PREInfo[[#This Row],[Schedule]:[Notes]])>9","v":false},{"$f":"IF(Table_PREInfo[[#This Row],[IsActive]],Table_PREInfo[[#This Row],[Line]],\"\")","v":""},null,null,null,null,null,null,null,{"$f":"IF(ISNUMBER(FIND(\"LED Tube\",Table_PREInfo[[#This Row],[Fixture Technology '[E']]],1)),\"[Enter]\",\"\")","v":""},null,{"$f":"IFERROR(\nIFERROR(OFFSET(Table_TypWattage[[#Headers],[Technology]],MATCH(Table_PREInfo[[#This Row],[Fixture Technology '[E']]] & IF(Table_PREInfo[[#This Row],[Ballast/ Driver '[E']]]<>\"\",\" - \" & Table_PREInfo[[#This Row],[Ballast/ Driver '[E']]],\"\"),Table_TypWattage[Technology],0)+MATCH(Table_PREInfo[[#This Row],[Fixture/ Lamp Wattage '[E']]],INDIRECT(SUBSTITUTE(SUBSTITUTE(Table_PREInfo[[#This Row],[Fixture Technology '[E']]],\" \",\"_\"),\"-\",\"_\")),0)-1,MATCH(Table_PREInfo[[#This Row],['# Lamps/ Fixture '[E']]],'Measure Tables'!$Q$2:$V$2,0)+1),IF(Table_PREInfo[[#This Row],[Schedule]]<>\"\",IF(AND(Table_PREInfo[[#This Row],['# Lamps/ Fixture '[E']]]<>\"\",Table_PREInfo[[#This Row],['# Lamps/ Fixture '[E']]]>0,Table_PREInfo[[#This Row],[Fixture/ Lamp Wattage '[E']]]>0),Table_PREInfo[[#This Row],['# Lamps/ Fixture '[E']]]*Table_PREInfo[[#This Row],[Fixture/ Lamp Wattage '[E']]],Table_PREInfo[[#This Row],[Fixture/ Lamp Wattage '[E']]]),\"\")),\n\"\")","v":""},null,null,{"$f":"IFERROR(IF(Table_PREInfo[[#This Row],[Interior/ Exterior]]<>\"\",\n  CONCATENATE(\n  Table_PREInfo[[#This Row],[Interior/ Exterior]],\": \" &\n  Table_PREInfo[[#This Row],[Fixture Technology '[E']]],\n  \" - \",Table_PREInfo[[#This Row],[Fixture Type '[E']]],\" [\",\n  IF(Table_PREInfo[[#This Row],['# Lamps/ Fixture '[E']]]>0,Table_PREInfo[[#This Row],['# Lamps/ Fixture '[E']]] & \"L - \" & Table_PREInfo[[#This Row],[Fixture/ Lamp Wattage '[E']]] & \"W\" & IF(Table_PREInfo[[#This Row],[Ballast/ Driver '[E']]]<>\"\",\" - \" & Table_PREInfo[[#This Row],[Ballast/ Driver '[E']]],\"\"),Table_PREInfo[[#This Row],[Fixture Wattage '[E']]] & \"W\"),\"]\",\n  IF(AND(Table_PREInfo[[#This Row],[Controls '[E']]]<>\"\",Table_PREInfo[[#This Row],[Controls '[E']]]<>\"No Controls\"),\" - \" & Table_PREInfo[[#This Row],[Controls '[E']]],\"\")\n  ),\n\"\"),\"\")","v":""},null,{"$f":"IF(Table_PREInfo[[#This Row],[Fixture Qty '[E']]]<>0,Table_PREInfo[[#This Row],[Fixture Qty '[E']]],\"\")","v":""},null,null,{"$f":"IF(ISNUMBER(FIND(\"LED Tube\",Table_PREInfo[[#This Row],[Fixture Technology '[P']]],1)),\"[Enter]\",\"\")","v":""},null,{"$f":"IFERROR(\nIFERROR(OFFSET(Table_TypWattage[[#Headers],[Technology]],MATCH(Table_PREInfo[[#This Row],[Fixture Technology '[P']]],Table_TypWattage[Technology],0)+MATCH(Table_PREInfo[[#This Row],[Fixture/ Lamp Wattage '[P']]],INDIRECT(SUBSTITUTE(SUBSTITUTE(Table_PREInfo[[#This Row],[Fixture Technology '[P']]],\" \",\"_\"),\"-\",\"_\")),0)-1,MATCH(Table_PREInfo[[#This Row],['# Lamps/ Fixture '[P']]],'Measure Tables'!$Q$2:$V$2,0)+1),IF(Table_PREInfo[[#This Row],[Schedule]]<>\"\",IF(AND(,Table_PREInfo[[#This Row],['# Lamps/ Fixture '[P']]]<>\"\",Table_PREInfo[[#This Row],['# Lamps/ Fixture '[P']]]>0,Table_PREInfo[[#This Row],[Fixture/ Lamp Wattage '[P']]]>0),Table_PREInfo[[#This Row],['# Lamps/ Fixture '[P']]]*Table_PREInfo[[#This Row],[Fixture/ Lamp Wattage '[P']]],Table_PREInfo[[#This Row],[Fixture/ Lamp Wattage '[P']]]),\"\")),\n\"\")","v":""},{"$f":"IF(Table_PREInfo[[#This Row],[Fixture Type '[E']]]<>\"\",Table_PREInfo[[#This Row],[Fixture Type '[E']]],\"\")","v":""},{"$f":"IF(Table_PREInfo[[#This Row],[Controls '[E']]]<>\"\",Table_PREInfo[[#This Row],[Controls '[E']]],\"\")","v":""},{"$f":"IFERROR(IF(Table_PREInfo[[#This Row],[Interior/ Exterior]]<>\"\",\n  CONCATENATE(\n  Table_PREInfo[[#This Row],[Fixture Technology '[P']]],\n  \" - \",Table_PREInfo[[#This Row],[Fixture Type '[P']]],\" [\",\n  IF(Table_PREInfo[[#This Row],['# Lamps/ Fixture '[P']]]>0,Table_PREInfo[[#This Row],['# Lamps/ Fixture '[P']]] & \"L - \" & Table_PREInfo[[#This Row],[Fixture/ Lamp Wattage '[P']]] & \"W\" & IF(Table_PREInfo[[#This Row],[Ballast/ Driver '[P']]]<>\"\",\" - \" & Table_PREInfo[[#This Row],[Ballast/ Driver '[P']]],\"\"),Table_PREInfo[[#This Row],[Fixture Wattage '[P']]] & \"W\"),\"]\",\n  IF(AND(Table_PREInfo[[#This Row],[Controls '[P']]]<>\"\",Table_PREInfo[[#This Row],[Controls '[P']]]<>\"No Controls\"),\" - \" & Table_PREInfo[[#This Row],[Controls '[P']]],\"\")\n  ),\n\"\"),\"\")","v":""}]
[{"$f":"IF($A12=\"Line\",1,MAX($A$4:$A12)+1)","v":9},{"$f":"COUNTA(Table_PREInfo[[#This Row],[Schedule]:[Notes]])>9","v":false},{"$f":"IF(Table_PREInfo[[#This Row],[IsActive]],Table_PREInfo[[#This Row],[Line]],\"\")","v":""},null,null,null,null,null,null,null,{"$f":"IF(ISNUMBER(FIND(\"LED Tube\",Table_PREInfo[[#This Row],[Fixture Technology '[E']]],1)),\"[Enter]\",\"\")","v":""},null,{"$f":"IFERROR(\nIFERROR(OFFSET(Table_TypWattage[[#Headers],[Technology]],MATCH(Table_PREInfo[[#This Row],[Fixture Technology '[E']]] & IF(Table_PREInfo[[#This Row],[Ballast/ Driver '[E']]]<>\"\",\" - \" & Table_PREInfo[[#This Row],[Ballast/ Driver '[E']]],\"\"),Table_TypWattage[Technology],0)+MATCH(Table_PREInfo[[#This Row],[Fixture/ Lamp Wattage '[E']]],INDIRECT(SUBSTITUTE(SUBSTITUTE(Table_PREInfo[[#This Row],[Fixture Technology '[E']]],\" \",\"_\"),\"-\",\"_\")),0)-1,MATCH(Table_PREInfo[[#This Row],['# Lamps/ Fixture '[E']]],'Measure Tables'!$Q$2:$V$2,0)+1),IF(Table_PREInfo[[#This Row],[Schedule]]<>\"\",IF(AND(Table_PREInfo[[#This Row],['# Lamps/ Fixture '[E']]]<>\"\",Table_PREInfo[[#This Row],['# Lamps/ Fixture '[E']]]>0,Table_PREInfo[[#This Row],[Fixture/ Lamp Wattage '[E']]]>0),Table_PREInfo[[#This Row],['# Lamps/ Fixture '[E']]]*Table_PREInfo[[#This Row],[Fixture/ Lamp Wattage '[E']]],Table_PREInfo[[#This Row],[Fixture/ Lamp Wattage '[E']]]),\"\")),\n\"\")","v":""},null,null,{"$f":"IFERROR(IF(Table_PREInfo[[#This Row],[Interior/ Exterior]]<>\"\",\n  CONCATENATE(\n  Table_PREInfo[[#This Row],[Interior/ Exterior]],\": \" &\n  Table_PREInfo[[#This Row],[Fixture Technology '[E']]],\n  \" - \",Table_PREInfo[[#This Row],[Fixture Type '[E']]],\" [\",\n  IF(Table_PREInfo[[#This Row],['# Lamps/ Fixture '[E']]]>0,Table_PREInfo[[#This Row],['# Lamps/ Fixture '[E']]] & \"L - \" & Table_PREInfo[[#This Row],[Fixture/ Lamp Wattage '[E']]] & \"W\" & IF(Table_PREInfo[[#This Row],[Ballast/ Driver '[E']]]<>\"\",\" - \" & Table_PREInfo[[#This Row],[Ballast/ Driver '[E']]],\"\"),Table_PREInfo[[#This Row],[Fixture Wattage '[E']]] & \"W\"),\"]\",\n  IF(AND(Table_PREInfo[[#This Row],[Controls '[E']]]<>\"\",Table_PREInfo[[#This Row],[Controls '[E']]]<>\"No Controls\"),\" - \" & Table_PREInfo[[#This Row],[Controls '[E']]],\"\")\n  ),\n\"\"),\"\")","v":""},null,{"$f":"IF(Table_PREInfo[[#This Row],[Fixture Qty '[E']]]<>0,Table_PREInfo[[#This Row],[Fixture Qty '[E']]],\"\")","v":""},null,null,{"$f":"IF(ISNUMBER(FIND(\"LED Tube\",Table_PREInfo[[#This Row],[Fixture Technology '[P']]],1)),\"[Enter]\",\"\")","v":""},null,{"$f":"IFERROR(\nIFERROR(OFFSET(Table_TypWattage[[#Headers],[Technology]],MATCH(Table_PREInfo[[#This Row],[Fixture Technology '[P']]],Table_TypWattage[Technology],0)+MATCH(Table_PREInfo[[#This Row],[Fixture/ Lamp Wattage '[P']]],INDIRECT(SUBSTITUTE(SUBSTITUTE(Table_PREInfo[[#This Row],[Fixture Technology '[P']]],\" \",\"_\"),\"-\",\"_\")),0)-1,MATCH(Table_PREInfo[[#This Row],['# Lamps/ Fixture '[P']]],'Measure Tables'!$Q$2:$V$2,0)+1),IF(Table_PREInfo[[#This Row],[Schedule]]<>\"\",IF(AND(,Table_PREInfo[[#This Row],['# Lamps/ Fixture '[P']]]<>\"\",Table_PREInfo[[#This Row],['# Lamps/ Fixture '[P']]]>0,Table_PREInfo[[#This Row],[Fixture/ Lamp Wattage '[P']]]>0),Table_PREInfo[[#This Row],['# Lamps/ Fixture '[P']]]*Table_PREInfo[[#This Row],[Fixture/ Lamp Wattage '[P']]],Table_PREInfo[[#This Row],[Fixture/ Lamp Wattage '[P']]]),\"\")),\n\"\")","v":""},{"$f":"IF(Table_PREInfo[[#This Row],[Fixture Type '[E']]]<>\"\",Table_PREInfo[[#This Row],[Fixture Type '[E']]],\"\")","v":""},{"$f":"IF(Table_PREInfo[[#This Row],[Controls '[E']]]<>\"\",Table_PREInfo[[#This Row],[Controls '[E']]],\"\")","v":""},{"$f":"IFERROR(IF(Table_PREInfo[[#This Row],[Interior/ Exterior]]<>\"\",\n  CONCATENATE(\n  Table_PREInfo[[#This Row],[Fixture Technology '[P']]],\n  \" - \",Table_PREInfo[[#This Row],[Fixture Type '[P']]],\" [\",\n  IF(Table_PREInfo[[#This Row],['# Lamps/ Fixture '[P']]]>0,Table_PREInfo[[#This Row],['# Lamps/ Fixture '[P']]] & \"L - \" & Table_PREInfo[[#This Row],[Fixture/ Lamp Wattage '[P']]] & \"W\" & IF(Table_PREInfo[[#This Row],[Ballast/ Driver '[P']]]<>\"\",\" - \" & Table_PREInfo[[#This Row],[Ballast/ Driver '[P']]],\"\"),Table_PREInfo[[#This Row],[Fixture Wattage '[P']]] & \"W\"),\"]\",\n  IF(AND(Table_PREInfo[[#This Row],[Controls '[P']]]<>\"\",Table_PREInfo[[#This Row],[Controls '[P']]]<>\"No Controls\"),\" - \" & Table_PREInfo[[#This Row],[Controls '[P']]],\"\")\n  ),\n\"\"),\"\")","v":""}]
[{"$f":"IF($A13=\"Line\",1,MAX($A$4:$A13)+1)","v":10},{"$f":"COUNTA(Table_PREInfo[[#This Row],[Schedule]:[Notes]])>9","v":false},{"$f":"IF(Table_PREInfo[[#This Row],[IsActive]],Table_PREInfo[[#This Row],[Line]],\"\")","v":""},null,null,null,null,null,null,null,{"$f":"IF(ISNUMBER(FIND(\"LED Tube\",Table_PREInfo[[#This Row],[Fixture Technology '[E']]],1)),\"[Enter]\",\"\")","v":""},null,{"$f":"IFERROR(\nIFERROR(OFFSET(Table_TypWattage[[#Headers],[Technology]],MATCH(Table_PREInfo[[#This Row],[Fixture Technology '[E']]] & IF(Table_PREInfo[[#This Row],[Ballast/ Driver '[E']]]<>\"\",\" - \" & Table_PREInfo[[#This Row],[Ballast/ Driver '[E']]],\"\"),Table_TypWattage[Technology],0)+MATCH(Table_PREInfo[[#This Row],[Fixture/ Lamp Wattage '[E']]],INDIRECT(SUBSTITUTE(SUBSTITUTE(Table_PREInfo[[#This Row],[Fixture Technology '[E']]],\" \",\"_\"),\"-\",\"_\")),0)-1,MATCH(Table_PREInfo[[#This Row],['# Lamps/ Fixture '[E']]],'Measure Tables'!$Q$2:$V$2,0)+1),IF(Table_PREInfo[[#This Row],[Schedule]]<>\"\",IF(AND(Table_PREInfo[[#This Row],['# Lamps/ Fixture '[E']]]<>\"\",Table_PREInfo[[#This Row],['# Lamps/ Fixture '[E']]]>0,Table_PREInfo[[#This Row],[Fixture/ Lamp Wattage '[E']]]>0),Table_PREInfo[[#This Row],['# Lamps/ Fixture '[E']]]*Table_PREInfo[[#This Row],[Fixture/ Lamp Wattage '[E']]],Table_PREInfo[[#This Row],[Fixture/ Lamp Wattage '[E']]]),\"\")),\n\"\")","v":""},null,null,{"$f":"IFERROR(IF(Table_PREInfo[[#This Row],[Interior/ Exterior]]<>\"\",\n  CONCATENATE(\n  Table_PREInfo[[#This Row],[Interior/ Exterior]],\": \" &\n  Table_PREInfo[[#This Row],[Fixture Technology '[E']]],\n  \" - \",Table_PREInfo[[#This Row],[Fixture Type '[E']]],\" [\",\n  IF(Table_PREInfo[[#This Row],['# Lamps/ Fixture '[E']]]>0,Table_PREInfo[[#This Row],['# Lamps/ Fixture '[E']]] & \"L - \" & Table_PREInfo[[#This Row],[Fixture/ Lamp Wattage '[E']]] & \"W\" & IF(Table_PREInfo[[#This Row],[Ballast/ Driver '[E']]]<>\"\",\" - \" & Table_PREInfo[[#This Row],[Ballast/ Driver '[E']]],\"\"),Table_PREInfo[[#This Row],[Fixture Wattage '[E']]] & \"W\"),\"]\",\n  IF(AND(Table_PREInfo[[#This Row],[Controls '[E']]]<>\"\",Table_PREInfo[[#This Row],[Controls '[E']]]<>\"No Controls\"),\" - \" & Table_PREInfo[[#This Row],[Controls '[E']]],\"\")\n  ),\n\"\"),\"\")","v":""},null,{"$f":"IF(Table_PREInfo[[#This Row],[Fixture Qty '[E']]]<>0,Table_PREInfo[[#This Row],[Fixture Qty '[E']]],\"\")","v":""},null,null,{"$f":"IF(ISNUMBER(FIND(\"LED Tube\",Table_PREInfo[[#This Row],[Fixture Technology '[P']]],1)),\"[Enter]\",\"\")","v":""},null,{"$f":"IFERROR(\nIFERROR(OFFSET(Table_TypWattage[[#Headers],[Technology]],MATCH(Table_PREInfo[[#This Row],[Fixture Technology '[P']]],Table_TypWattage[Technology],0)+MATCH(Table_PREInfo[[#This Row],[Fixture/ Lamp Wattage '[P']]],INDIRECT(SUBSTITUTE(SUBSTITUTE(Table_PREInfo[[#This Row],[Fixture Technology '[P']]],\" \",\"_\"),\"-\",\"_\")),0)-1,MATCH(Table_PREInfo[[#This Row],['# Lamps/ Fixture '[P']]],'Measure Tables'!$Q$2:$V$2,0)+1),IF(Table_PREInfo[[#This Row],[Schedule]]<>\"\",IF(AND(,Table_PREInfo[[#This Row],['# Lamps/ Fixture '[P']]]<>\"\",Table_PREInfo[[#This Row],['# Lamps/ Fixture '[P']]]>0,Table_PREInfo[[#This Row],[Fixture/ Lamp Wattage '[P']]]>0),Table_PREInfo[[#This Row],['# Lamps/ Fixture '[P']]]*Table_PREInfo[[#This Row],[Fixture/ Lamp Wattage '[P']]],Table_PREInfo[[#This Row],[Fixture/ Lamp Wattage '[P']]]),\"\")),\n\"\")","v":""},{"$f":"IF(Table_PREInfo[[#This Row],[Fixture Type '[E']]]<>\"\",Table_PREInfo[[#This Row],[Fixture Type '[E']]],\"\")","v":""},{"$f":"IF(Table_PREInfo[[#This Row],[Controls '[E']]]<>\"\",Table_PREInfo[[#This Row],[Controls '[E']]],\"\")","v":""},{"$f":"IFERROR(IF(Table_PREInfo[[#This Row],[Interior/ Exterior]]<>\"\",\n  CONCATENATE(\n  Table_PREInfo[[#This Row],[Fixture Technology '[P']]],\n  \" - \",Table_PREInfo[[#This Row],[Fixture Type '[P']]],\" [\",\n  IF(Table_PREInfo[[#This Row],['# Lamps/ Fixture '[P']]]>0,Table_PREInfo[[#This Row],['# Lamps/ Fixture '[P']]] & \"L - \" & Table_PREInfo[[#This Row],[Fixture/ Lamp Wattage '[P']]] & \"W\" & IF(Table_PREInfo[[#This Row],[Ballast/ Driver '[P']]]<>\"\",\" - \" & Table_PREInfo[[#This Row],[Ballast/ Driver '[P']]],\"\"),Table_PREInfo[[#This Row],[Fixture Wattage '[P']]] & \"W\"),\"]\",\n  IF(AND(Table_PREInfo[[#This Row],[Controls '[P']]]<>\"\",Table_PREInfo[[#This Row],[Controls '[P']]]<>\"No Controls\"),\" - \" & Table_PREInfo[[#This Row],[Controls '[P']]],\"\")\n  ),\n\"\"),\"\")","v":""}]
[{"$f":"IF($A14=\"Line\",1,MAX($A$4:$A14)+1)","v":11},{"$f":"COUNTA(Table_PREInfo[[#This Row],[Schedule]:[Notes]])>9","v":false},{"$f":"IF(Table_PREInfo[[#This Row],[IsActive]],Table_PREInfo[[#This Row],[Line]],\"\")","v":""},null,null,null,null,null,null,null,{"$f":"IF(ISNUMBER(FIND(\"LED Tube\",Table_PREInfo[[#This Row],[Fixture Technology '[E']]],1)),\"[Enter]\",\"\")","v":""},null,{"$f":"IFERROR(\nIFERROR(OFFSET(Table_TypWattage[[#Headers],[Technology]],MATCH(Table_PREInfo[[#This Row],[Fixture Technology '[E']]] & IF(Table_PREInfo[[#This Row],[Ballast/ Driver '[E']]]<>\"\",\" - \" & Table_PREInfo[[#This Row],[Ballast/ Driver '[E']]],\"\"),Table_TypWattage[Technology],0)+MATCH(Table_PREInfo[[#This Row],[Fixture/ Lamp Wattage '[E']]],INDIRECT(SUBSTITUTE(SUBSTITUTE(Table_PREInfo[[#This Row],[Fixture Technology '[E']]],\" \",\"_\"),\"-\",\"_\")),0)-1,MATCH(Table_PREInfo[[#This Row],['# Lamps/ Fixture '[E']]],'Measure Tables'!$Q$2:$V$2,0)+1),IF(Table_PREInfo[[#This Row],[Schedule]]<>\"\",IF(AND(Table_PREInfo[[#This Row],['# Lamps/ Fixture '[E']]]<>\"\",Table_PREInfo[[#This Row],['# Lamps/ Fixture '[E']]]>0,Table_PREInfo[[#This Row],[Fixture/ Lamp Wattage '[E']]]>0),Table_PREInfo[[#This Row],['# Lamps/ Fixture '[E']]]*Table_PREInfo[[#This Row],[Fixture/ Lamp Wattage '[E']]],Table_PREInfo[[#This Row],[Fixture/ Lamp Wattage '[E']]]),\"\")),\n\"\")","v":""},null,null,{"$f":"IFERROR(IF(Table_PREInfo[[#This Row],[Interior/ Exterior]]<>\"\",\n  CONCATENATE(\n  Table_PREInfo[[#This Row],[Interior/ Exterior]],\": \" &\n  Table_PREInfo[[#This Row],[Fixture Technology '[E']]],\n  \" - \",Table_PREInfo[[#This Row],[Fixture Type '[E']]],\" [\",\n  IF(Table_PREInfo[[#This Row],['# Lamps/ Fixture '[E']]]>0,Table_PREInfo[[#This Row],['# Lamps/ Fixture '[E']]] & \"L - \" & Table_PREInfo[[#This Row],[Fixture/ Lamp Wattage '[E']]] & \"W\" & IF(Table_PREInfo[[#This Row],[Ballast/ Driver '[E']]]<>\"\",\" - \" & Table_PREInfo[[#This Row],[Ballast/ Driver '[E']]],\"\"),Table_PREInfo[[#This Row],[Fixture Wattage '[E']]] & \"W\"),\"]\",\n  IF(AND(Table_PREInfo[[#This Row],[Controls '[E']]]<>\"\",Table_PREInfo[[#This Row],[Controls '[E']]]<>\"No Controls\"),\" - \" & Table_PREInfo[[#This Row],[Controls '[E']]],\"\")\n  ),\n\"\"),\"\")","v":""},null,{"$f":"IF(Table_PREInfo[[#This Row],[Fixture Qty '[E']]]<>0,Table_PREInfo[[#This Row],[Fixture Qty '[E']]],\"\")","v":""},null,null,{"$f":"IF(ISNUMBER(FIND(\"LED Tube\",Table_PREInfo[[#This Row],[Fixture Technology '[P']]],1)),\"[Enter]\",\"\")","v":""},null,{"$f":"IFERROR(\nIFERROR(OFFSET(Table_TypWattage[[#Headers],[Technology]],MATCH(Table_PREInfo[[#This Row],[Fixture Technology '[P']]],Table_TypWattage[Technology],0)+MATCH(Table_PREInfo[[#This Row],[Fixture/ Lamp Wattage '[P']]],INDIRECT(SUBSTITUTE(SUBSTITUTE(Table_PREInfo[[#This Row],[Fixture Technology '[P']]],\" \",\"_\"),\"-\",\"_\")),0)-1,MATCH(Table_PREInfo[[#This Row],['# Lamps/ Fixture '[P']]],'Measure Tables'!$Q$2:$V$2,0)+1),IF(Table_PREInfo[[#This Row],[Schedule]]<>\"\",IF(AND(,Table_PREInfo[[#This Row],['# Lamps/ Fixture '[P']]]<>\"\",Table_PREInfo[[#This Row],['# Lamps/ Fixture '[P']]]>0,Table_PREInfo[[#This Row],[Fixture/ Lamp Wattage '[P']]]>0),Table_PREInfo[[#This Row],['# Lamps/ Fixture '[P']]]*Table_PREInfo[[#This Row],[Fixture/ Lamp Wattage '[P']]],Table_PREInfo[[#This Row],[Fixture/ Lamp Wattage '[P']]]),\"\")),\n\"\")","v":""},{"$f":"IF(Table_PREInfo[[#This Row],[Fixture Type '[E']]]<>\"\",Table_PREInfo[[#This Row],[Fixture Type '[E']]],\"\")","v":""},{"$f":"IF(Table_PREInfo[[#This Row],[Controls '[E']]]<>\"\",Table_PREInfo[[#This Row],[Controls '[E']]],\"\")","v":""},{"$f":"IFERROR(IF(Table_PREInfo[[#This Row],[Interior/ Exterior]]<>\"\",\n  CONCATENATE(\n  Table_PREInfo[[#This Row],[Fixture Technology '[P']]],\n  \" - \",Table_PREInfo[[#This Row],[Fixture Type '[P']]],\" [\",\n  IF(Table_PREInfo[[#This Row],['# Lamps/ Fixture '[P']]]>0,Table_PREInfo[[#This Row],['# Lamps/ Fixture '[P']]] & \"L - \" & Table_PREInfo[[#This Row],[Fixture/ Lamp Wattage '[P']]] & \"W\" & IF(Table_PREInfo[[#This Row],[Ballast/ Driver '[P']]]<>\"\",\" - \" & Table_PREInfo[[#This Row],[Ballast/ Driver '[P']]],\"\"),Table_PREInfo[[#This Row],[Fixture Wattage '[P']]] & \"W\"),\"]\",\n  IF(AND(Table_PREInfo[[#This Row],[Controls '[P']]]<>\"\",Table_PREInfo[[#This Row],[Controls '[P']]]<>\"No Controls\"),\" - \" & Table_PREInfo[[#This Row],[Controls '[P']]],\"\")\n  ),\n\"\"),\"\")","v":""}]
[{"$f":"IF($A15=\"Line\",1,MAX($A$4:$A15)+1)","v":12},{"$f":"COUNTA(Table_PREInfo[[#This Row],[Schedule]:[Notes]])>9","v":false},{"$f":"IF(Table_PREInfo[[#This Row],[IsActive]],Table_PREInfo[[#This Row],[Line]],\"\")","v":""},null,null,null,null,null,null,null,{"$f":"IF(ISNUMBER(FIND(\"LED Tube\",Table_PREInfo[[#This Row],[Fixture Technology '[E']]],1)),\"[Enter]\",\"\")","v":""},null,{"$f":"IFERROR(\nIFERROR(OFFSET(Table_TypWattage[[#Headers],[Technology]],MATCH(Table_PREInfo[[#This Row],[Fixture Technology '[E']]] & IF(Table_PREInfo[[#This Row],[Ballast/ Driver '[E']]]<>\"\",\" - \" & Table_PREInfo[[#This Row],[Ballast/ Driver '[E']]],\"\"),Table_TypWattage[Technology],0)+MATCH(Table_PREInfo[[#This Row],[Fixture/ Lamp Wattage '[E']]],INDIRECT(SUBSTITUTE(SUBSTITUTE(Table_PREInfo[[#This Row],[Fixture Technology '[E']]],\" \",\"_\"),\"-\",\"_\")),0)-1,MATCH(Table_PREInfo[[#This Row],['# Lamps/ Fixture '[E']]],'Measure Tables'!$Q$2:$V$2,0)+1),IF(Table_PREInfo[[#This Row],[Schedule]]<>\"\",IF(AND(Table_PREInfo[[#This Row],['# Lamps/ Fixture '[E']]]<>\"\",Table_PREInfo[[#This Row],['# Lamps/ Fixture '[E']]]>0,Table_PREInfo[[#This Row],[Fixture/ Lamp Wattage '[E']]]>0),Table_PREInfo[[#This Row],['# Lamps/ Fixture '[E']]]*Table_PREInfo[[#This Row],[Fixture/ Lamp Wattage '[E']]],Table_PREInfo[[#This Row],[Fixture/ Lamp Wattage '[E']]]),\"\")),\n\"\")","v":""},null,null,{"$f":"IFERROR(IF(Table_PREInfo[[#This Row],[Interior/ Exterior]]<>\"\",\n  CONCATENATE(\n  Table_PREInfo[[#This Row],[Interior/ Exterior]],\": \" &\n  Table_PREInfo[[#This Row],[Fixture Technology '[E']]],\n  \" - \",Table_PREInfo[[#This Row],[Fixture Type '[E']]],\" [\",\n  IF(Table_PREInfo[[#This Row],['# Lamps/ Fixture '[E']]]>0,Table_PREInfo[[#This Row],['# Lamps/ Fixture '[E']]] & \"L - \" & Table_PREInfo[[#This Row],[Fixture/ Lamp Wattage '[E']]] & \"W\" & IF(Table_PREInfo[[#This Row],[Ballast/ Driver '[E']]]<>\"\",\" - \" & Table_PREInfo[[#This Row],[Ballast/ Driver '[E']]],\"\"),Table_PREInfo[[#This Row],[Fixture Wattage '[E']]] & \"W\"),\"]\",\n  IF(AND(Table_PREInfo[[#This Row],[Controls '[E']]]<>\"\",Table_PREInfo[[#This Row],[Controls '[E']]]<>\"No Controls\"),\" - \" & Table_PREInfo[[#This Row],[Controls '[E']]],\"\")\n  ),\n\"\"),\"\")","v":""},null,{"$f":"IF(Table_PREInfo[[#This Row],[Fixture Qty '[E']]]<>0,Table_PREInfo[[#This Row],[Fixture Qty '[E']]],\"\")","v":""},null,null,{"$f":"IF(ISNUMBER(FIND(\"LED Tube\",Table_PREInfo[[#This Row],[Fixture Technology '[P']]],1)),\"[Enter]\",\"\")","v":""},null,{"$f":"IFERROR(\nIFERROR(OFFSET(Table_TypWattage[[#Headers],[Technology]],MATCH(Table_PREInfo[[#This Row],[Fixture Technology '[P']]],Table_TypWattage[Technology],0)+MATCH(Table_PREInfo[[#This Row],[Fixture/ Lamp Wattage '[P']]],INDIRECT(SUBSTITUTE(SUBSTITUTE(Table_PREInfo[[#This Row],[Fixture Technology '[P']]],\" \",\"_\"),\"-\",\"_\")),0)-1,MATCH(Table_PREInfo[[#This Row],['# Lamps/ Fixture '[P']]],'Measure Tables'!$Q$2:$V$2,0)+1),IF(Table_PREInfo[[#This Row],[Schedule]]<>\"\",IF(AND(,Table_PREInfo[[#This Row],['# Lamps/ Fixture '[P']]]<>\"\",Table_PREInfo[[#This Row],['# Lamps/ Fixture '[P']]]>0,Table_PREInfo[[#This Row],[Fixture/ Lamp Wattage '[P']]]>0),Table_PREInfo[[#This Row],['# Lamps/ Fixture '[P']]]*Table_PREInfo[[#This Row],[Fixture/ Lamp Wattage '[P']]],Table_PREInfo[[#This Row],[Fixture/ Lamp Wattage '[P']]]),\"\")),\n\"\")","v":""},{"$f":"IF(Table_PREInfo[[#This Row],[Fixture Type '[E']]]<>\"\",Table_PREInfo[[#This Row],[Fixture Type '[E']]],\"\")","v":""},{"$f":"IF(Table_PREInfo[[#This Row],[Controls '[E']]]<>\"\",Table_PREInfo[[#This Row],[Controls '[E']]],\"\")","v":""},{"$f":"IFERROR(IF(Table_PREInfo[[#This Row],[Interior/ Exterior]]<>\"\",\n  CONCATENATE(\n  Table_PREInfo[[#This Row],[Fixture Technology '[P']]],\n  \" - \",Table_PREInfo[[#This Row],[Fixture Type '[P']]],\" [\",\n  IF(Table_PREInfo[[#This Row],['# Lamps/ Fixture '[P']]]>0,Table_PREInfo[[#This Row],['# Lamps/ Fixture '[P']]] & \"L - \" & Table_PREInfo[[#This Row],[Fixture/ Lamp Wattage '[P']]] & \"W\" & IF(Table_PREInfo[[#This Row],[Ballast/ Driver '[P']]]<>\"\",\" - \" & Table_PREInfo[[#This Row],[Ballast/ Driver '[P']]],\"\"),Table_PREInfo[[#This Row],[Fixture Wattage '[P']]] & \"W\"),\"]\",\n  IF(AND(Table_PREInfo[[#This Row],[Controls '[P']]]<>\"\",Table_PREInfo[[#This Row],[Controls '[P']]]<>\"No Controls\"),\" - \" & Table_PREInfo[[#This Row],[Controls '[P']]],\"\")\n  ),\n\"\"),\"\")","v":""}]
[{"$f":"IF($A16=\"Line\",1,MAX($A$4:$A16)+1)","v":13},{"$f":"COUNTA(Table_PREInfo[[#This Row],[Schedule]:[Notes]])>9","v":false},{"$f":"IF(Table_PREInfo[[#This Row],[IsActive]],Table_PREInfo[[#This Row],[Line]],\"\")","v":""},null,null,null,null,null,null,null,{"$f":"IF(ISNUMBER(FIND(\"LED Tube\",Table_PREInfo[[#This Row],[Fixture Technology '[E']]],1)),\"[Enter]\",\"\")","v":""},null,{"$f":"IFERROR(\nIFERROR(OFFSET(Table_TypWattage[[#Headers],[Technology]],MATCH(Table_PREInfo[[#This Row],[Fixture Technology '[E']]] & IF(Table_PREInfo[[#This Row],[Ballast/ Driver '[E']]]<>\"\",\" - \" & Table_PREInfo[[#This Row],[Ballast/ Driver '[E']]],\"\"),Table_TypWattage[Technology],0)+MATCH(Table_PREInfo[[#This Row],[Fixture/ Lamp Wattage '[E']]],INDIRECT(SUBSTITUTE(SUBSTITUTE(Table_PREInfo[[#This Row],[Fixture Technology '[E']]],\" \",\"_\"),\"-\",\"_\")),0)-1,MATCH(Table_PREInfo[[#This Row],['# Lamps/ Fixture '[E']]],'Measure Tables'!$Q$2:$V$2,0)+1),IF(Table_PREInfo[[#This Row],[Schedule]]<>\"\",IF(AND(Table_PREInfo[[#This Row],['# Lamps/ Fixture '[E']]]<>\"\",Table_PREInfo[[#This Row],['# Lamps/ Fixture '[E']]]>0,Table_PREInfo[[#This Row],[Fixture/ Lamp Wattage '[E']]]>0),Table_PREInfo[[#This Row],['# Lamps/ Fixture '[E']]]*Table_PREInfo[[#This Row],[Fixture/ Lamp Wattage '[E']]],Table_PREInfo[[#This Row],[Fixture/ Lamp Wattage '[E']]]),\"\")),\n\"\")","v":""},null,null,{"$f":"IFERROR(IF(Table_PREInfo[[#This Row],[Interior/ Exterior]]<>\"\",\n  CONCATENATE(\n  Table_PREInfo[[#This Row],[Interior/ Exterior]],\": \" &\n  Table_PREInfo[[#This Row],[Fixture Technology '[E']]],\n  \" - \",Table_PREInfo[[#This Row],[Fixture Type '[E']]],\" [\",\n  IF(Table_PREInfo[[#This Row],['# Lamps/ Fixture '[E']]]>0,Table_PREInfo[[#This Row],['# Lamps/ Fixture '[E']]] & \"L - \" & Table_PREInfo[[#This Row],[Fixture/ Lamp Wattage '[E']]] & \"W\" & IF(Table_PREInfo[[#This Row],[Ballast/ Driver '[E']]]<>\"\",\" - \" & Table_PREInfo[[#This Row],[Ballast/ Driver '[E']]],\"\"),Table_PREInfo[[#This Row],[Fixture Wattage '[E']]] & \"W\"),\"]\",\n  IF(AND(Table_PREInfo[[#This Row],[Controls '[E']]]<>\"\",Table_PREInfo[[#This Row],[Controls '[E']]]<>\"No Controls\"),\" - \" & Table_PREInfo[[#This Row],[Controls '[E']]],\"\")\n  ),\n\"\"),\"\")","v":""},null,{"$f":"IF(Table_PREInfo[[#This Row],[Fixture Qty '[E']]]<>0,Table_PREInfo[[#This Row],[Fixture Qty '[E']]],\"\")","v":""},null,null,{"$f":"IF(ISNUMBER(FIND(\"LED Tube\",Table_PREInfo[[#This Row],[Fixture Technology '[P']]],1)),\"[Enter]\",\"\")","v":""},null,{"$f":"IFERROR(\nIFERROR(OFFSET(Table_TypWattage[[#Headers],[Technology]],MATCH(Table_PREInfo[[#This Row],[Fixture Technology '[P']]],Table_TypWattage[Technology],0)+MATCH(Table_PREInfo[[#This Row],[Fixture/ Lamp Wattage '[P']]],INDIRECT(SUBSTITUTE(SUBSTITUTE(Table_PREInfo[[#This Row],[Fixture Technology '[P']]],\" \",\"_\"),\"-\",\"_\")),0)-1,MATCH(Table_PREInfo[[#This Row],['# Lamps/ Fixture '[P']]],'Measure Tables'!$Q$2:$V$2,0)+1),IF(Table_PREInfo[[#This Row],[Schedule]]<>\"\",IF(AND(,Table_PREInfo[[#This Row],['# Lamps/ Fixture '[P']]]<>\"\",Table_PREInfo[[#This Row],['# Lamps/ Fixture '[P']]]>0,Table_PREInfo[[#This Row],[Fixture/ Lamp Wattage '[P']]]>0),Table_PREInfo[[#This Row],['# Lamps/ Fixture '[P']]]*Table_PREInfo[[#This Row],[Fixture/ Lamp Wattage '[P']]],Table_PREInfo[[#This Row],[Fixture/ Lamp Wattage '[P']]]),\"\")),\n\"\")","v":""},{"$f":"IF(Table_PREInfo[[#This Row],[Fixture Type '[E']]]<>\"\",Table_PREInfo[[#This Row],[Fixture Type '[E']]],\"\")","v":""},{"$f":"IF(Table_PREInfo[[#This Row],[Controls '[E']]]<>\"\",Table_PREInfo[[#This Row],[Controls '[E']]],\"\")","v":""},{"$f":"IFERROR(IF(Table_PREInfo[[#This Row],[Interior/ Exterior]]<>\"\",\n  CONCATENATE(\n  Table_PREInfo[[#This Row],[Fixture Technology '[P']]],\n  \" - \",Table_PREInfo[[#This Row],[Fixture Type '[P']]],\" [\",\n  IF(Table_PREInfo[[#This Row],['# Lamps/ Fixture '[P']]]>0,Table_PREInfo[[#This Row],['# Lamps/ Fixture '[P']]] & \"L - \" & Table_PREInfo[[#This Row],[Fixture/ Lamp Wattage '[P']]] & \"W\" & IF(Table_PREInfo[[#This Row],[Ballast/ Driver '[P']]]<>\"\",\" - \" & Table_PREInfo[[#This Row],[Ballast/ Driver '[P']]],\"\"),Table_PREInfo[[#This Row],[Fixture Wattage '[P']]] & \"W\"),\"]\",\n  IF(AND(Table_PREInfo[[#This Row],[Controls '[P']]]<>\"\",Table_PREInfo[[#This Row],[Controls '[P']]]<>\"No Controls\"),\" - \" & Table_PREInfo[[#This Row],[Controls '[P']]],\"\")\n  ),\n\"\"),\"\")","v":""}]
[{"$f":"IF($A17=\"Line\",1,MAX($A$4:$A17)+1)","v":14},{"$f":"COUNTA(Table_PREInfo[[#This Row],[Schedule]:[Notes]])>9","v":false},{"$f":"IF(Table_PREInfo[[#This Row],[IsActive]],Table_PREInfo[[#This Row],[Line]],\"\")","v":""},null,null,null,null,null,null,null,{"$f":"IF(ISNUMBER(FIND(\"LED Tube\",Table_PREInfo[[#This Row],[Fixture Technology '[E']]],1)),\"[Enter]\",\"\")","v":""},null,{"$f":"IFERROR(\nIFERROR(OFFSET(Table_TypWattage[[#Headers],[Technology]],MATCH(Table_PREInfo[[#This Row],[Fixture Technology '[E']]] & IF(Table_PREInfo[[#This Row],[Ballast/ Driver '[E']]]<>\"\",\" - \" & Table_PREInfo[[#This Row],[Ballast/ Driver '[E']]],\"\"),Table_TypWattage[Technology],0)+MATCH(Table_PREInfo[[#This Row],[Fixture/ Lamp Wattage '[E']]],INDIRECT(SUBSTITUTE(SUBSTITUTE(Table_PREInfo[[#This Row],[Fixture Technology '[E']]],\" \",\"_\"),\"-\",\"_\")),0)-1,MATCH(Table_PREInfo[[#This Row],['# Lamps/ Fixture '[E']]],'Measure Tables'!$Q$2:$V$2,0)+1),IF(Table_PREInfo[[#This Row],[Schedule]]<>\"\",IF(AND(Table_PREInfo[[#This Row],['# Lamps/ Fixture '[E']]]<>\"\",Table_PREInfo[[#This Row],['# Lamps/ Fixture '[E']]]>0,Table_PREInfo[[#This Row],[Fixture/ Lamp Wattage '[E']]]>0),Table_PREInfo[[#This Row],['# Lamps/ Fixture '[E']]]*Table_PREInfo[[#This Row],[Fixture/ Lamp Wattage '[E']]],Table_PREInfo[[#This Row],[Fixture/ Lamp Wattage '[E']]]),\"\")),\n\"\")","v":""},null,null,{"$f":"IFERROR(IF(Table_PREInfo[[#This Row],[Interior/ Exterior]]<>\"\",\n  CONCATENATE(\n  Table_PREInfo[[#This Row],[Interior/ Exterior]],\": \" &\n  Table_PREInfo[[#This Row],[Fixture Technology '[E']]],\n  \" - \",Table_PREInfo[[#This Row],[Fixture Type '[E']]],\" [\",\n  IF(Table_PREInfo[[#This Row],['# Lamps/ Fixture '[E']]]>0,Table_PREInfo[[#This Row],['# Lamps/ Fixture '[E']]] & \"L - \" & Table_PREInfo[[#This Row],[Fixture/ Lamp Wattage '[E']]] & \"W\" & IF(Table_PREInfo[[#This Row],[Ballast/ Driver '[E']]]<>\"\",\" - \" & Table_PREInfo[[#This Row],[Ballast/ Driver '[E']]],\"\"),Table_PREInfo[[#This Row],[Fixture Wattage '[E']]] & \"W\"),\"]\",\n  IF(AND(Table_PREInfo[[#This Row],[Controls '[E']]]<>\"\",Table_PREInfo[[#This Row],[Controls '[E']]]<>\"No Controls\"),\" - \" & Table_PREInfo[[#This Row],[Controls '[E']]],\"\")\n  ),\n\"\"),\"\")","v":""},null,{"$f":"IF(Table_PREInfo[[#This Row],[Fixture Qty '[E']]]<>0,Table_PREInfo[[#This Row],[Fixture Qty '[E']]],\"\")","v":""},null,null,{"$f":"IF(ISNUMBER(FIND(\"LED Tube\",Table_PREInfo[[#This Row],[Fixture Technology '[P']]],1)),\"[Enter]\",\"\")","v":""},null,{"$f":"IFERROR(\nIFERROR(OFFSET(Table_TypWattage[[#Headers],[Technology]],MATCH(Table_PREInfo[[#This Row],[Fixture Technology '[P']]],Table_TypWattage[Technology],0)+MATCH(Table_PREInfo[[#This Row],[Fixture/ Lamp Wattage '[P']]],INDIRECT(SUBSTITUTE(SUBSTITUTE(Table_PREInfo[[#This Row],[Fixture Technology '[P']]],\" \",\"_\"),\"-\",\"_\")),0)-1,MATCH(Table_PREInfo[[#This Row],['# Lamps/ Fixture '[P']]],'Measure Tables'!$Q$2:$V$2,0)+1),IF(Table_PREInfo[[#This Row],[Schedule]]<>\"\",IF(AND(,Table_PREInfo[[#This Row],['# Lamps/ Fixture '[P']]]<>\"\",Table_PREInfo[[#This Row],['# Lamps/ Fixture '[P']]]>0,Table_PREInfo[[#This Row],[Fixture/ Lamp Wattage '[P']]]>0),Table_PREInfo[[#This Row],['# Lamps/ Fixture '[P']]]*Table_PREInfo[[#This Row],[Fixture/ Lamp Wattage '[P']]],Table_PREInfo[[#This Row],[Fixture/ Lamp Wattage '[P']]]),\"\")),\n\"\")","v":""},{"$f":"IF(Table_PREInfo[[#This Row],[Fixture Type '[E']]]<>\"\",Table_PREInfo[[#This Row],[Fixture Type '[E']]],\"\")","v":""},{"$f":"IF(Table_PREInfo[[#This Row],[Controls '[E']]]<>\"\",Table_PREInfo[[#This Row],[Controls '[E']]],\"\")","v":""},{"$f":"IFERROR(IF(Table_PREInfo[[#This Row],[Interior/ Exterior]]<>\"\",\n  CONCATENATE(\n  Table_PREInfo[[#This Row],[Fixture Technology '[P']]],\n  \" - \",Table_PREInfo[[#This Row],[Fixture Type '[P']]],\" [\",\n  IF(Table_PREInfo[[#This Row],['# Lamps/ Fixture '[P']]]>0,Table_PREInfo[[#This Row],['# Lamps/ Fixture '[P']]] & \"L - \" & Table_PREInfo[[#This Row],[Fixture/ Lamp Wattage '[P']]] & \"W\" & IF(Table_PREInfo[[#This Row],[Ballast/ Driver '[P']]]<>\"\",\" - \" & Table_PREInfo[[#This Row],[Ballast/ Driver '[P']]],\"\"),Table_PREInfo[[#This Row],[Fixture Wattage '[P']]] & \"W\"),\"]\",\n  IF(AND(Table_PREInfo[[#This Row],[Controls '[P']]]<>\"\",Table_PREInfo[[#This Row],[Controls '[P']]]<>\"No Controls\"),\" - \" & Table_PREInfo[[#This Row],[Controls '[P']]],\"\")\n  ),\n\"\"),\"\")","v":""}]
[{"$f":"IF($A18=\"Line\",1,MAX($A$4:$A18)+1)","v":15},{"$f":"COUNTA(Table_PREInfo[[#This Row],[Schedule]:[Notes]])>9","v":false},{"$f":"IF(Table_PREInfo[[#This Row],[IsActive]],Table_PREInfo[[#This Row],[Line]],\"\")","v":""},null,null,null,null,null,null,null,{"$f":"IF(ISNUMBER(FIND(\"LED Tube\",Table_PREInfo[[#This Row],[Fixture Technology '[E']]],1)),\"[Enter]\",\"\")","v":""},null,{"$f":"IFERROR(\nIFERROR(OFFSET(Table_TypWattage[[#Headers],[Technology]],MATCH(Table_PREInfo[[#This Row],[Fixture Technology '[E']]] & IF(Table_PREInfo[[#This Row],[Ballast/ Driver '[E']]]<>\"\",\" - \" & Table_PREInfo[[#This Row],[Ballast/ Driver '[E']]],\"\"),Table_TypWattage[Technology],0)+MATCH(Table_PREInfo[[#This Row],[Fixture/ Lamp Wattage '[E']]],INDIRECT(SUBSTITUTE(SUBSTITUTE(Table_PREInfo[[#This Row],[Fixture Technology '[E']]],\" \",\"_\"),\"-\",\"_\")),0)-1,MATCH(Table_PREInfo[[#This Row],['# Lamps/ Fixture '[E']]],'Measure Tables'!$Q$2:$V$2,0)+1),IF(Table_PREInfo[[#This Row],[Schedule]]<>\"\",IF(AND(Table_PREInfo[[#This Row],['# Lamps/ Fixture '[E']]]<>\"\",Table_PREInfo[[#This Row],['# Lamps/ Fixture '[E']]]>0,Table_PREInfo[[#This Row],[Fixture/ Lamp Wattage '[E']]]>0),Table_PREInfo[[#This Row],['# Lamps/ Fixture '[E']]]*Table_PREInfo[[#This Row],[Fixture/ Lamp Wattage '[E']]],Table_PREInfo[[#This Row],[Fixture/ Lamp Wattage '[E']]]),\"\")),\n\"\")","v":""},null,null,{"$f":"IFERROR(IF(Table_PREInfo[[#This Row],[Interior/ Exterior]]<>\"\",\n  CONCATENATE(\n  Table_PREInfo[[#This Row],[Interior/ Exterior]],\": \" &\n  Table_PREInfo[[#This Row],[Fixture Technology '[E']]],\n  \" - \",Table_PREInfo[[#This Row],[Fixture Type '[E']]],\" [\",\n  IF(Table_PREInfo[[#This Row],['# Lamps/ Fixture '[E']]]>0,Table_PREInfo[[#This Row],['# Lamps/ Fixture '[E']]] & \"L - \" & Table_PREInfo[[#This Row],[Fixture/ Lamp Wattage '[E']]] & \"W\" & IF(Table_PREInfo[[#This Row],[Ballast/ Driver '[E']]]<>\"\",\" - \" & Table_PREInfo[[#This Row],[Ballast/ Driver '[E']]],\"\"),Table_PREInfo[[#This Row],[Fixture Wattage '[E']]] & \"W\"),\"]\",\n  IF(AND(Table_PREInfo[[#This Row],[Controls '[E']]]<>\"\",Table_PREInfo[[#This Row],[Controls '[E']]]<>\"No Controls\"),\" - \" & Table_PREInfo[[#This Row],[Controls '[E']]],\"\")\n  ),\n\"\"),\"\")","v":""},null,{"$f":"IF(Table_PREInfo[[#This Row],[Fixture Qty '[E']]]<>0,Table_PREInfo[[#This Row],[Fixture Qty '[E']]],\"\")","v":""},null,null,{"$f":"IF(ISNUMBER(FIND(\"LED Tube\",Table_PREInfo[[#This Row],[Fixture Technology '[P']]],1)),\"[Enter]\",\"\")","v":""},null,{"$f":"IFERROR(\nIFERROR(OFFSET(Table_TypWattage[[#Headers],[Technology]],MATCH(Table_PREInfo[[#This Row],[Fixture Technology '[P']]],Table_TypWattage[Technology],0)+MATCH(Table_PREInfo[[#This Row],[Fixture/ Lamp Wattage '[P']]],INDIRECT(SUBSTITUTE(SUBSTITUTE(Table_PREInfo[[#This Row],[Fixture Technology '[P']]],\" \",\"_\"),\"-\",\"_\")),0)-1,MATCH(Table_PREInfo[[#This Row],['# Lamps/ Fixture '[P']]],'Measure Tables'!$Q$2:$V$2,0)+1),IF(Table_PREInfo[[#This Row],[Schedule]]<>\"\",IF(AND(,Table_PREInfo[[#This Row],['# Lamps/ Fixture '[P']]]<>\"\",Table_PREInfo[[#This Row],['# Lamps/ Fixture '[P']]]>0,Table_PREInfo[[#This Row],[Fixture/ Lamp Wattage '[P']]]>0),Table_PREInfo[[#This Row],['# Lamps/ Fixture '[P']]]*Table_PREInfo[[#This Row],[Fixture/ Lamp Wattage '[P']]],Table_PREInfo[[#This Row],[Fixture/ Lamp Wattage '[P']]]),\"\")),\n\"\")","v":""},{"$f":"IF(Table_PREInfo[[#This Row],[Fixture Type '[E']]]<>\"\",Table_PREInfo[[#This Row],[Fixture Type '[E']]],\"\")","v":""},{"$f":"IF(Table_PREInfo[[#This Row],[Controls '[E']]]<>\"\",Table_PREInfo[[#This Row],[Controls '[E']]],\"\")","v":""},{"$f":"IFERROR(IF(Table_PREInfo[[#This Row],[Interior/ Exterior]]<>\"\",\n  CONCATENATE(\n  Table_PREInfo[[#This Row],[Fixture Technology '[P']]],\n  \" - \",Table_PREInfo[[#This Row],[Fixture Type '[P']]],\" [\",\n  IF(Table_PREInfo[[#This Row],['# Lamps/ Fixture '[P']]]>0,Table_PREInfo[[#This Row],['# Lamps/ Fixture '[P']]] & \"L - \" & Table_PREInfo[[#This Row],[Fixture/ Lamp Wattage '[P']]] & \"W\" & IF(Table_PREInfo[[#This Row],[Ballast/ Driver '[P']]]<>\"\",\" - \" & Table_PREInfo[[#This Row],[Ballast/ Driver '[P']]],\"\"),Table_PREInfo[[#This Row],[Fixture Wattage '[P']]] & \"W\"),\"]\",\n  IF(AND(Table_PREInfo[[#This Row],[Controls '[P']]]<>\"\",Table_PREInfo[[#This Row],[Controls '[P']]]<>\"No Controls\"),\" - \" & Table_PREInfo[[#This Row],[Controls '[P']]],\"\")\n  ),\n\"\"),\"\")","v":""}]
[{"$f":"IF($A19=\"Line\",1,MAX($A$4:$A19)+1)","v":16},{"$f":"COUNTA(Table_PREInfo[[#This Row],[Schedule]:[Notes]])>9","v":false},{"$f":"IF(Table_PREInfo[[#This Row],[IsActive]],Table_PREInfo[[#This Row],[Line]],\"\")","v":""},null,null,null,null,null,null,null,{"$f":"IF(ISNUMBER(FIND(\"LED Tube\",Table_PREInfo[[#This Row],[Fixture Technology '[E']]],1)),\"[Enter]\",\"\")","v":""},null,{"$f":"IFERROR(\nIFERROR(OFFSET(Table_TypWattage[[#Headers],[Technology]],MATCH(Table_PREInfo[[#This Row],[Fixture Technology '[E']]] & IF(Table_PREInfo[[#This Row],[Ballast/ Driver '[E']]]<>\"\",\" - \" & Table_PREInfo[[#This Row],[Ballast/ Driver '[E']]],\"\"),Table_TypWattage[Technology],0)+MATCH(Table_PREInfo[[#This Row],[Fixture/ Lamp Wattage '[E']]],INDIRECT(SUBSTITUTE(SUBSTITUTE(Table_PREInfo[[#This Row],[Fixture Technology '[E']]],\" \",\"_\"),\"-\",\"_\")),0)-1,MATCH(Table_PREInfo[[#This Row],['# Lamps/ Fixture '[E']]],'Measure Tables'!$Q$2:$V$2,0)+1),IF(Table_PREInfo[[#This Row],[Schedule]]<>\"\",IF(AND(Table_PREInfo[[#This Row],['# Lamps/ Fixture '[E']]]<>\"\",Table_PREInfo[[#This Row],['# Lamps/ Fixture '[E']]]>0,Table_PREInfo[[#This Row],[Fixture/ Lamp Wattage '[E']]]>0),Table_PREInfo[[#This Row],['# Lamps/ Fixture '[E']]]*Table_PREInfo[[#This Row],[Fixture/ Lamp Wattage '[E']]],Table_PREInfo[[#This Row],[Fixture/ Lamp Wattage '[E']]]),\"\")),\n\"\")","v":""},null,null,{"$f":"IFERROR(IF(Table_PREInfo[[#This Row],[Interior/ Exterior]]<>\"\",\n  CONCATENATE(\n  Table_PREInfo[[#This Row],[Interior/ Exterior]],\": \" &\n  Table_PREInfo[[#This Row],[Fixture Technology '[E']]],\n  \" - \",Table_PREInfo[[#This Row],[Fixture Type '[E']]],\" [\",\n  IF(Table_PREInfo[[#This Row],['# Lamps/ Fixture '[E']]]>0,Table_PREInfo[[#This Row],['# Lamps/ Fixture '[E']]] & \"L - \" & Table_PREInfo[[#This Row],[Fixture/ Lamp Wattage '[E']]] & \"W\" & IF(Table_PREInfo[[#This Row],[Ballast/ Driver '[E']]]<>\"\",\" - \" & Table_PREInfo[[#This Row],[Ballast/ Driver '[E']]],\"\"),Table_PREInfo[[#This Row],[Fixture Wattage '[E']]] & \"W\"),\"]\",\n  IF(AND(Table_PREInfo[[#This Row],[Controls '[E']]]<>\"\",Table_PREInfo[[#This Row],[Controls '[E']]]<>\"No Controls\"),\" - \" & Table_PREInfo[[#This Row],[Controls '[E']]],\"\")\n  ),\n\"\"),\"\")","v":""},null,{"$f":"IF(Table_PREInfo[[#This Row],[Fixture Qty '[E']]]<>0,Table_PREInfo[[#This Row],[Fixture Qty '[E']]],\"\")","v":""},null,null,{"$f":"IF(ISNUMBER(FIND(\"LED Tube\",Table_PREInfo[[#This Row],[Fixture Technology '[P']]],1)),\"[Enter]\",\"\")","v":""},null,{"$f":"IFERROR(\nIFERROR(OFFSET(Table_TypWattage[[#Headers],[Technology]],MATCH(Table_PREInfo[[#This Row],[Fixture Technology '[P']]],Table_TypWattage[Technology],0)+MATCH(Table_PREInfo[[#This Row],[Fixture/ Lamp Wattage '[P']]],INDIRECT(SUBSTITUTE(SUBSTITUTE(Table_PREInfo[[#This Row],[Fixture Technology '[P']]],\" \",\"_\"),\"-\",\"_\")),0)-1,MATCH(Table_PREInfo[[#This Row],['# Lamps/ Fixture '[P']]],'Measure Tables'!$Q$2:$V$2,0)+1),IF(Table_PREInfo[[#This Row],[Schedule]]<>\"\",IF(AND(,Table_PREInfo[[#This Row],['# Lamps/ Fixture '[P']]]<>\"\",Table_PREInfo[[#This Row],['# Lamps/ Fixture '[P']]]>0,Table_PREInfo[[#This Row],[Fixture/ Lamp Wattage '[P']]]>0),Table_PREInfo[[#This Row],['# Lamps/ Fixture '[P']]]*Table_PREInfo[[#This Row],[Fixture/ Lamp Wattage '[P']]],Table_PREInfo[[#This Row],[Fixture/ Lamp Wattage '[P']]]),\"\")),\n\"\")","v":""},{"$f":"IF(Table_PREInfo[[#This Row],[Fixture Type '[E']]]<>\"\",Table_PREInfo[[#This Row],[Fixture Type '[E']]],\"\")","v":""},{"$f":"IF(Table_PREInfo[[#This Row],[Controls '[E']]]<>\"\",Table_PREInfo[[#This Row],[Controls '[E']]],\"\")","v":""},{"$f":"IFERROR(IF(Table_PREInfo[[#This Row],[Interior/ Exterior]]<>\"\",\n  CONCATENATE(\n  Table_PREInfo[[#This Row],[Fixture Technology '[P']]],\n  \" - \",Table_PREInfo[[#This Row],[Fixture Type '[P']]],\" [\",\n  IF(Table_PREInfo[[#This Row],['# Lamps/ Fixture '[P']]]>0,Table_PREInfo[[#This Row],['# Lamps/ Fixture '[P']]] & \"L - \" & Table_PREInfo[[#This Row],[Fixture/ Lamp Wattage '[P']]] & \"W\" & IF(Table_PREInfo[[#This Row],[Ballast/ Driver '[P']]]<>\"\",\" - \" & Table_PREInfo[[#This Row],[Ballast/ Driver '[P']]],\"\"),Table_PREInfo[[#This Row],[Fixture Wattage '[P']]] & \"W\"),\"]\",\n  IF(AND(Table_PREInfo[[#This Row],[Controls '[P']]]<>\"\",Table_PREInfo[[#This Row],[Controls '[P']]]<>\"No Controls\"),\" - \" & Table_PREInfo[[#This Row],[Controls '[P']]],\"\")\n  ),\n\"\"),\"\")","v":""}]
[{"$f":"IF($A20=\"Line\",1,MAX($A$4:$A20)+1)","v":17},{"$f":"COUNTA(Table_PREInfo[[#This Row],[Schedule]:[Notes]])>9","v":false},{"$f":"IF(Table_PREInfo[[#This Row],[IsActive]],Table_PREInfo[[#This Row],[Line]],\"\")","v":""},null,null,null,null,null,null,null,{"$f":"IF(ISNUMBER(FIND(\"LED Tube\",Table_PREInfo[[#This Row],[Fixture Technology '[E']]],1)),\"[Enter]\",\"\")","v":""},null,{"$f":"IFERROR(\nIFERROR(OFFSET(Table_TypWattage[[#Headers],[Technology]],MATCH(Table_PREInfo[[#This Row],[Fixture Technology '[E']]] & IF(Table_PREInfo[[#This Row],[Ballast/ Driver '[E']]]<>\"\",\" - \" & Table_PREInfo[[#This Row],[Ballast/ Driver '[E']]],\"\"),Table_TypWattage[Technology],0)+MATCH(Table_PREInfo[[#This Row],[Fixture/ Lamp Wattage '[E']]],INDIRECT(SUBSTITUTE(SUBSTITUTE(Table_PREInfo[[#This Row],[Fixture Technology '[E']]],\" \",\"_\"),\"-\",\"_\")),0)-1,MATCH(Table_PREInfo[[#This Row],['# Lamps/ Fixture '[E']]],'Measure Tables'!$Q$2:$V$2,0)+1),IF(Table_PREInfo[[#This Row],[Schedule]]<>\"\",IF(AND(Table_PREInfo[[#This Row],['# Lamps/ Fixture '[E']]]<>\"\",Table_PREInfo[[#This Row],['# Lamps/ Fixture '[E']]]>0,Table_PREInfo[[#This Row],[Fixture/ Lamp Wattage '[E']]]>0),Table_PREInfo[[#This Row],['# Lamps/ Fixture '[E']]]*Table_PREInfo[[#This Row],[Fixture/ Lamp Wattage '[E']]],Table_PREInfo[[#This Row],[Fixture/ Lamp Wattage '[E']]]),\"\")),\n\"\")","v":""},null,null,{"$f":"IFERROR(IF(Table_PREInfo[[#This Row],[Interior/ Exterior]]<>\"\",\n  CONCATENATE(\n  Table_PREInfo[[#This Row],[Interior/ Exterior]],\": \" &\n  Table_PREInfo[[#This Row],[Fixture Technology '[E']]],\n  \" - \",Table_PREInfo[[#This Row],[Fixture Type '[E']]],\" [\",\n  IF(Table_PREInfo[[#This Row],['# Lamps/ Fixture '[E']]]>0,Table_PREInfo[[#This Row],['# Lamps/ Fixture '[E']]] & \"L - \" & Table_PREInfo[[#This Row],[Fixture/ Lamp Wattage '[E']]] & \"W\" & IF(Table_PREInfo[[#This Row],[Ballast/ Driver '[E']]]<>\"\",\" - \" & Table_PREInfo[[#This Row],[Ballast/ Driver '[E']]],\"\"),Table_PREInfo[[#This Row],[Fixture Wattage '[E']]] & \"W\"),\"]\",\n  IF(AND(Table_PREInfo[[#This Row],[Controls '[E']]]<>\"\",Table_PREInfo[[#This Row],[Controls '[E']]]<>\"No Controls\"),\" - \" & Table_PREInfo[[#This Row],[Controls '[E']]],\"\")\n  ),\n\"\"),\"\")","v":""},null,{"$f":"IF(Table_PREInfo[[#This Row],[Fixture Qty '[E']]]<>0,Table_PREInfo[[#This Row],[Fixture Qty '[E']]],\"\")","v":""},null,null,{"$f":"IF(ISNUMBER(FIND(\"LED Tube\",Table_PREInfo[[#This Row],[Fixture Technology '[P']]],1)),\"[Enter]\",\"\")","v":""},null,{"$f":"IFERROR(\nIFERROR(OFFSET(Table_TypWattage[[#Headers],[Technology]],MATCH(Table_PREInfo[[#This Row],[Fixture Technology '[P']]],Table_TypWattage[Technology],0)+MATCH(Table_PREInfo[[#This Row],[Fixture/ Lamp Wattage '[P']]],INDIRECT(SUBSTITUTE(SUBSTITUTE(Table_PREInfo[[#This Row],[Fixture Technology '[P']]],\" \",\"_\"),\"-\",\"_\")),0)-1,MATCH(Table_PREInfo[[#This Row],['# Lamps/ Fixture '[P']]],'Measure Tables'!$Q$2:$V$2,0)+1),IF(Table_PREInfo[[#This Row],[Schedule]]<>\"\",IF(AND(,Table_PREInfo[[#This Row],['# Lamps/ Fixture '[P']]]<>\"\",Table_PREInfo[[#This Row],['# Lamps/ Fixture '[P']]]>0,Table_PREInfo[[#This Row],[Fixture/ Lamp Wattage '[P']]]>0),Table_PREInfo[[#This Row],['# Lamps/ Fixture '[P']]]*Table_PREInfo[[#This Row],[Fixture/ Lamp Wattage '[P']]],Table_PREInfo[[#This Row],[Fixture/ Lamp Wattage '[P']]]),\"\")),\n\"\")","v":""},{"$f":"IF(Table_PREInfo[[#This Row],[Fixture Type '[E']]]<>\"\",Table_PREInfo[[#This Row],[Fixture Type '[E']]],\"\")","v":""},{"$f":"IF(Table_PREInfo[[#This Row],[Controls '[E']]]<>\"\",Table_PREInfo[[#This Row],[Controls '[E']]],\"\")","v":""},{"$f":"IFERROR(IF(Table_PREInfo[[#This Row],[Interior/ Exterior]]<>\"\",\n  CONCATENATE(\n  Table_PREInfo[[#This Row],[Fixture Technology '[P']]],\n  \" - \",Table_PREInfo[[#This Row],[Fixture Type '[P']]],\" [\",\n  IF(Table_PREInfo[[#This Row],['# Lamps/ Fixture '[P']]]>0,Table_PREInfo[[#This Row],['# Lamps/ Fixture '[P']]] & \"L - \" & Table_PREInfo[[#This Row],[Fixture/ Lamp Wattage '[P']]] & \"W\" & IF(Table_PREInfo[[#This Row],[Ballast/ Driver '[P']]]<>\"\",\" - \" & Table_PREInfo[[#This Row],[Ballast/ Driver '[P']]],\"\"),Table_PREInfo[[#This Row],[Fixture Wattage '[P']]] & \"W\"),\"]\",\n  IF(AND(Table_PREInfo[[#This Row],[Controls '[P']]]<>\"\",Table_PREInfo[[#This Row],[Controls '[P']]]<>\"No Controls\"),\" - \" & Table_PREInfo[[#This Row],[Controls '[P']]],\"\")\n  ),\n\"\"),\"\")","v":""}]
[{"$f":"IF($A21=\"Line\",1,MAX($A$4:$A21)+1)","v":18},{"$f":"COUNTA(Table_PREInfo[[#This Row],[Schedule]:[Notes]])>9","v":false},{"$f":"IF(Table_PREInfo[[#This Row],[IsActive]],Table_PREInfo[[#This Row],[Line]],\"\")","v":""},null,null,null,null,null,null,null,{"$f":"IF(ISNUMBER(FIND(\"LED Tube\",Table_PREInfo[[#This Row],[Fixture Technology '[E']]],1)),\"[Enter]\",\"\")","v":""},null,{"$f":"IFERROR(\nIFERROR(OFFSET(Table_TypWattage[[#Headers],[Technology]],MATCH(Table_PREInfo[[#This Row],[Fixture Technology '[E']]] & IF(Table_PREInfo[[#This Row],[Ballast/ Driver '[E']]]<>\"\",\" - \" & Table_PREInfo[[#This Row],[Ballast/ Driver '[E']]],\"\"),Table_TypWattage[Technology],0)+MATCH(Table_PREInfo[[#This Row],[Fixture/ Lamp Wattage '[E']]],INDIRECT(SUBSTITUTE(SUBSTITUTE(Table_PREInfo[[#This Row],[Fixture Technology '[E']]],\" \",\"_\"),\"-\",\"_\")),0)-1,MATCH(Table_PREInfo[[#This Row],['# Lamps/ Fixture '[E']]],'Measure Tables'!$Q$2:$V$2,0)+1),IF(Table_PREInfo[[#This Row],[Schedule]]<>\"\",IF(AND(Table_PREInfo[[#This Row],['# Lamps/ Fixture '[E']]]<>\"\",Table_PREInfo[[#This Row],['# Lamps/ Fixture '[E']]]>0,Table_PREInfo[[#This Row],[Fixture/ Lamp Wattage '[E']]]>0),Table_PREInfo[[#This Row],['# Lamps/ Fixture '[E']]]*Table_PREInfo[[#This Row],[Fixture/ Lamp Wattage '[E']]],Table_PREInfo[[#This Row],[Fixture/ Lamp Wattage '[E']]]),\"\")),\n\"\")","v":""},null,null,{"$f":"IFERROR(IF(Table_PREInfo[[#This Row],[Interior/ Exterior]]<>\"\",\n  CONCATENATE(\n  Table_PREInfo[[#This Row],[Interior/ Exterior]],\": \" &\n  Table_PREInfo[[#This Row],[Fixture Technology '[E']]],\n  \" - \",Table_PREInfo[[#This Row],[Fixture Type '[E']]],\" [\",\n  IF(Table_PREInfo[[#This Row],['# Lamps/ Fixture '[E']]]>0,Table_PREInfo[[#This Row],['# Lamps/ Fixture '[E']]] & \"L - \" & Table_PREInfo[[#This Row],[Fixture/ Lamp Wattage '[E']]] & \"W\" & IF(Table_PREInfo[[#This Row],[Ballast/ Driver '[E']]]<>\"\",\" - \" & Table_PREInfo[[#This Row],[Ballast/ Driver '[E']]],\"\"),Table_PREInfo[[#This Row],[Fixture Wattage '[E']]] & \"W\"),\"]\",\n  IF(AND(Table_PREInfo[[#This Row],[Controls '[E']]]<>\"\",Table_PREInfo[[#This Row],[Controls '[E']]]<>\"No Controls\"),\" - \" & Table_PREInfo[[#This Row],[Controls '[E']]],\"\")\n  ),\n\"\"),\"\")","v":""},null,{"$f":"IF(Table_PREInfo[[#This Row],[Fixture Qty '[E']]]<>0,Table_PREInfo[[#This Row],[Fixture Qty '[E']]],\"\")","v":""},null,null,{"$f":"IF(ISNUMBER(FIND(\"LED Tube\",Table_PREInfo[[#This Row],[Fixture Technology '[P']]],1)),\"[Enter]\",\"\")","v":""},null,{"$f":"IFERROR(\nIFERROR(OFFSET(Table_TypWattage[[#Headers],[Technology]],MATCH(Table_PREInfo[[#This Row],[Fixture Technology '[P']]],Table_TypWattage[Technology],0)+MATCH(Table_PREInfo[[#This Row],[Fixture/ Lamp Wattage '[P']]],INDIRECT(SUBSTITUTE(SUBSTITUTE(Table_PREInfo[[#This Row],[Fixture Technology '[P']]],\" \",\"_\"),\"-\",\"_\")),0)-1,MATCH(Table_PREInfo[[#This Row],['# Lamps/ Fixture '[P']]],'Measure Tables'!$Q$2:$V$2,0)+1),IF(Table_PREInfo[[#This Row],[Schedule]]<>\"\",IF(AND(,Table_PREInfo[[#This Row],['# Lamps/ Fixture '[P']]]<>\"\",Table_PREInfo[[#This Row],['# Lamps/ Fixture '[P']]]>0,Table_PREInfo[[#This Row],[Fixture/ Lamp Wattage '[P']]]>0),Table_PREInfo[[#This Row],['# Lamps/ Fixture '[P']]]*Table_PREInfo[[#This Row],[Fixture/ Lamp Wattage '[P']]],Table_PREInfo[[#This Row],[Fixture/ Lamp Wattage '[P']]]),\"\")),\n\"\")","v":""},{"$f":"IF(Table_PREInfo[[#This Row],[Fixture Type '[E']]]<>\"\",Table_PREInfo[[#This Row],[Fixture Type '[E']]],\"\")","v":""},{"$f":"IF(Table_PREInfo[[#This Row],[Controls '[E']]]<>\"\",Table_PREInfo[[#This Row],[Controls '[E']]],\"\")","v":""},{"$f":"IFERROR(IF(Table_PREInfo[[#This Row],[Interior/ Exterior]]<>\"\",\n  CONCATENATE(\n  Table_PREInfo[[#This Row],[Fixture Technology '[P']]],\n  \" - \",Table_PREInfo[[#This Row],[Fixture Type '[P']]],\" [\",\n  IF(Table_PREInfo[[#This Row],['# Lamps/ Fixture '[P']]]>0,Table_PREInfo[[#This Row],['# Lamps/ Fixture '[P']]] & \"L - \" & Table_PREInfo[[#This Row],[Fixture/ Lamp Wattage '[P']]] & \"W\" & IF(Table_PREInfo[[#This Row],[Ballast/ Driver '[P']]]<>\"\",\" - \" & Table_PREInfo[[#This Row],[Ballast/ Driver '[P']]],\"\"),Table_PREInfo[[#This Row],[Fixture Wattage '[P']]] & \"W\"),\"]\",\n  IF(AND(Table_PREInfo[[#This Row],[Controls '[P']]]<>\"\",Table_PREInfo[[#This Row],[Controls '[P']]]<>\"No Controls\"),\" - \" & Table_PREInfo[[#This Row],[Controls '[P']]],\"\")\n  ),\n\"\"),\"\")","v":""}]
[{"$f":"IF($A22=\"Line\",1,MAX($A$4:$A22)+1)","v":19},{"$f":"COUNTA(Table_PREInfo[[#This Row],[Schedule]:[Notes]])>9","v":false},{"$f":"IF(Table_PREInfo[[#This Row],[IsActive]],Table_PREInfo[[#This Row],[Line]],\"\")","v":""},null,null,null,null,null,null,null,{"$f":"IF(ISNUMBER(FIND(\"LED Tube\",Table_PREInfo[[#This Row],[Fixture Technology '[E']]],1)),\"[Enter]\",\"\")","v":""},null,{"$f":"IFERROR(\nIFERROR(OFFSET(Table_TypWattage[[#Headers],[Technology]],MATCH(Table_PREInfo[[#This Row],[Fixture Technology '[E']]] & IF(Table_PREInfo[[#This Row],[Ballast/ Driver '[E']]]<>\"\",\" - \" & Table_PREInfo[[#This Row],[Ballast/ Driver '[E']]],\"\"),Table_TypWattage[Technology],0)+MATCH(Table_PREInfo[[#This Row],[Fixture/ Lamp Wattage '[E']]],INDIRECT(SUBSTITUTE(SUBSTITUTE(Table_PREInfo[[#This Row],[Fixture Technology '[E']]],\" \",\"_\"),\"-\",\"_\")),0)-1,MATCH(Table_PREInfo[[#This Row],['# Lamps/ Fixture '[E']]],'Measure Tables'!$Q$2:$V$2,0)+1),IF(Table_PREInfo[[#This Row],[Schedule]]<>\"\",IF(AND(Table_PREInfo[[#This Row],['# Lamps/ Fixture '[E']]]<>\"\",Table_PREInfo[[#This Row],['# Lamps/ Fixture '[E']]]>0,Table_PREInfo[[#This Row],[Fixture/ Lamp Wattage '[E']]]>0),Table_PREInfo[[#This Row],['# Lamps/ Fixture '[E']]]*Table_PREInfo[[#This Row],[Fixture/ Lamp Wattage '[E']]],Table_PREInfo[[#This Row],[Fixture/ Lamp Wattage '[E']]]),\"\")),\n\"\")","v":""},null,null,{"$f":"IFERROR(IF(Table_PREInfo[[#This Row],[Interior/ Exterior]]<>\"\",\n  CONCATENATE(\n  Table_PREInfo[[#This Row],[Interior/ Exterior]],\": \" &\n  Table_PREInfo[[#This Row],[Fixture Technology '[E']]],\n  \" - \",Table_PREInfo[[#This Row],[Fixture Type '[E']]],\" [\",\n  IF(Table_PREInfo[[#This Row],['# Lamps/ Fixture '[E']]]>0,Table_PREInfo[[#This Row],['# Lamps/ Fixture '[E']]] & \"L - \" & Table_PREInfo[[#This Row],[Fixture/ Lamp Wattage '[E']]] & \"W\" & IF(Table_PREInfo[[#This Row],[Ballast/ Driver '[E']]]<>\"\",\" - \" & Table_PREInfo[[#This Row],[Ballast/ Driver '[E']]],\"\"),Table_PREInfo[[#This Row],[Fixture Wattage '[E']]] & \"W\"),\"]\",\n  IF(AND(Table_PREInfo[[#This Row],[Controls '[E']]]<>\"\",Table_PREInfo[[#This Row],[Controls '[E']]]<>\"No Controls\"),\" - \" & Table_PREInfo[[#This Row],[Controls '[E']]],\"\")\n  ),\n\"\"),\"\")","v":""},null,{"$f":"IF(Table_PREInfo[[#This Row],[Fixture Qty '[E']]]<>0,Table_PREInfo[[#This Row],[Fixture Qty '[E']]],\"\")","v":""},null,null,{"$f":"IF(ISNUMBER(FIND(\"LED Tube\",Table_PREInfo[[#This Row],[Fixture Technology '[P']]],1)),\"[Enter]\",\"\")","v":""},null,{"$f":"IFERROR(\nIFERROR(OFFSET(Table_TypWattage[[#Headers],[Technology]],MATCH(Table_PREInfo[[#This Row],[Fixture Technology '[P']]],Table_TypWattage[Technology],0)+MATCH(Table_PREInfo[[#This Row],[Fixture/ Lamp Wattage '[P']]],INDIRECT(SUBSTITUTE(SUBSTITUTE(Table_PREInfo[[#This Row],[Fixture Technology '[P']]],\" \",\"_\"),\"-\",\"_\")),0)-1,MATCH(Table_PREInfo[[#This Row],['# Lamps/ Fixture '[P']]],'Measure Tables'!$Q$2:$V$2,0)+1),IF(Table_PREInfo[[#This Row],[Schedule]]<>\"\",IF(AND(,Table_PREInfo[[#This Row],['# Lamps/ Fixture '[P']]]<>\"\",Table_PREInfo[[#This Row],['# Lamps/ Fixture '[P']]]>0,Table_PREInfo[[#This Row],[Fixture/ Lamp Wattage '[P']]]>0),Table_PREInfo[[#This Row],['# Lamps/ Fixture '[P']]]*Table_PREInfo[[#This Row],[Fixture/ Lamp Wattage '[P']]],Table_PREInfo[[#This Row],[Fixture/ Lamp Wattage '[P']]]),\"\")),\n\"\")","v":""},{"$f":"IF(Table_PREInfo[[#This Row],[Fixture Type '[E']]]<>\"\",Table_PREInfo[[#This Row],[Fixture Type '[E']]],\"\")","v":""},{"$f":"IF(Table_PREInfo[[#This Row],[Controls '[E']]]<>\"\",Table_PREInfo[[#This Row],[Controls '[E']]],\"\")","v":""},{"$f":"IFERROR(IF(Table_PREInfo[[#This Row],[Interior/ Exterior]]<>\"\",\n  CONCATENATE(\n  Table_PREInfo[[#This Row],[Fixture Technology '[P']]],\n  \" - \",Table_PREInfo[[#This Row],[Fixture Type '[P']]],\" [\",\n  IF(Table_PREInfo[[#This Row],['# Lamps/ Fixture '[P']]]>0,Table_PREInfo[[#This Row],['# Lamps/ Fixture '[P']]] & \"L - \" & Table_PREInfo[[#This Row],[Fixture/ Lamp Wattage '[P']]] & \"W\" & IF(Table_PREInfo[[#This Row],[Ballast/ Driver '[P']]]<>\"\",\" - \" & Table_PREInfo[[#This Row],[Ballast/ Driver '[P']]],\"\"),Table_PREInfo[[#This Row],[Fixture Wattage '[P']]] & \"W\"),\"]\",\n  IF(AND(Table_PREInfo[[#This Row],[Controls '[P']]]<>\"\",Table_PREInfo[[#This Row],[Controls '[P']]]<>\"No Controls\"),\" - \" & Table_PREInfo[[#This Row],[Controls '[P']]],\"\")\n  ),\n\"\"),\"\")","v":""}]
[{"$f":"IF($A23=\"Line\",1,MAX($A$4:$A23)+1)","v":20},{"$f":"COUNTA(Table_PREInfo[[#This Row],[Schedule]:[Notes]])>9","v":false},{"$f":"IF(Table_PREInfo[[#This Row],[IsActive]],Table_PREInfo[[#This Row],[Line]],\"\")","v":""},null,null,null,null,null,null,null,{"$f":"IF(ISNUMBER(FIND(\"LED Tube\",Table_PREInfo[[#This Row],[Fixture Technology '[E']]],1)),\"[Enter]\",\"\")","v":""},null,{"$f":"IFERROR(\nIFERROR(OFFSET(Table_TypWattage[[#Headers],[Technology]],MATCH(Table_PREInfo[[#This Row],[Fixture Technology '[E']]] & IF(Table_PREInfo[[#This Row],[Ballast/ Driver '[E']]]<>\"\",\" - \" & Table_PREInfo[[#This Row],[Ballast/ Driver '[E']]],\"\"),Table_TypWattage[Technology],0)+MATCH(Table_PREInfo[[#This Row],[Fixture/ Lamp Wattage '[E']]],INDIRECT(SUBSTITUTE(SUBSTITUTE(Table_PREInfo[[#This Row],[Fixture Technology '[E']]],\" \",\"_\"),\"-\",\"_\")),0)-1,MATCH(Table_PREInfo[[#This Row],['# Lamps/ Fixture '[E']]],'Measure Tables'!$Q$2:$V$2,0)+1),IF(Table_PREInfo[[#This Row],[Schedule]]<>\"\",IF(AND(Table_PREInfo[[#This Row],['# Lamps/ Fixture '[E']]]<>\"\",Table_PREInfo[[#This Row],['# Lamps/ Fixture '[E']]]>0,Table_PREInfo[[#This Row],[Fixture/ Lamp Wattage '[E']]]>0),Table_PREInfo[[#This Row],['# Lamps/ Fixture '[E']]]*Table_PREInfo[[#This Row],[Fixture/ Lamp Wattage '[E']]],Table_PREInfo[[#This Row],[Fixture/ Lamp Wattage '[E']]]),\"\")),\n\"\")","v":""},null,null,{"$f":"IFERROR(IF(Table_PREInfo[[#This Row],[Interior/ Exterior]]<>\"\",\n  CONCATENATE(\n  Table_PREInfo[[#This Row],[Interior/ Exterior]],\": \" &\n  Table_PREInfo[[#This Row],[Fixture Technology '[E']]],\n  \" - \",Table_PREInfo[[#This Row],[Fixture Type '[E']]],\" [\",\n  IF(Table_PREInfo[[#This Row],['# Lamps/ Fixture '[E']]]>0,Table_PREInfo[[#This Row],['# Lamps/ Fixture '[E']]] & \"L - \" & Table_PREInfo[[#This Row],[Fixture/ Lamp Wattage '[E']]] & \"W\" & IF(Table_PREInfo[[#This Row],[Ballast/ Driver '[E']]]<>\"\",\" - \" & Table_PREInfo[[#This Row],[Ballast/ Driver '[E']]],\"\"),Table_PREInfo[[#This Row],[Fixture Wattage '[E']]] & \"W\"),\"]\",\n  IF(AND(Table_PREInfo[[#This Row],[Controls '[E']]]<>\"\",Table_PREInfo[[#This Row],[Controls '[E']]]<>\"No Controls\"),\" - \" & Table_PREInfo[[#This Row],[Controls '[E']]],\"\")\n  ),\n\"\"),\"\")","v":""},null,{"$f":"IF(Table_PREInfo[[#This Row],[Fixture Qty '[E']]]<>0,Table_PREInfo[[#This Row],[Fixture Qty '[E']]],\"\")","v":""},null,null,{"$f":"IF(ISNUMBER(FIND(\"LED Tube\",Table_PREInfo[[#This Row],[Fixture Technology '[P']]],1)),\"[Enter]\",\"\")","v":""},null,{"$f":"IFERROR(\nIFERROR(OFFSET(Table_TypWattage[[#Headers],[Technology]],MATCH(Table_PREInfo[[#This Row],[Fixture Technology '[P']]],Table_TypWattage[Technology],0)+MATCH(Table_PREInfo[[#This Row],[Fixture/ Lamp Wattage '[P']]],INDIRECT(SUBSTITUTE(SUBSTITUTE(Table_PREInfo[[#This Row],[Fixture Technology '[P']]],\" \",\"_\"),\"-\",\"_\")),0)-1,MATCH(Table_PREInfo[[#This Row],['# Lamps/ Fixture '[P']]],'Measure Tables'!$Q$2:$V$2,0)+1),IF(Table_PREInfo[[#This Row],[Schedule]]<>\"\",IF(AND(,Table_PREInfo[[#This Row],['# Lamps/ Fixture '[P']]]<>\"\",Table_PREInfo[[#This Row],['# Lamps/ Fixture '[P']]]>0,Table_PREInfo[[#This Row],[Fixture/ Lamp Wattage '[P']]]>0),Table_PREInfo[[#This Row],['# Lamps/ Fixture '[P']]]*Table_PREInfo[[#This Row],[Fixture/ Lamp Wattage '[P']]],Table_PREInfo[[#This Row],[Fixture/ Lamp Wattage '[P']]]),\"\")),\n\"\")","v":""},{"$f":"IF(Table_PREInfo[[#This Row],[Fixture Type '[E']]]<>\"\",Table_PREInfo[[#This Row],[Fixture Type '[E']]],\"\")","v":""},{"$f":"IF(Table_PREInfo[[#This Row],[Controls '[E']]]<>\"\",Table_PREInfo[[#This Row],[Controls '[E']]],\"\")","v":""},{"$f":"IFERROR(IF(Table_PREInfo[[#This Row],[Interior/ Exterior]]<>\"\",\n  CONCATENATE(\n  Table_PREInfo[[#This Row],[Fixture Technology '[P']]],\n  \" - \",Table_PREInfo[[#This Row],[Fixture Type '[P']]],\" [\",\n  IF(Table_PREInfo[[#This Row],['# Lamps/ Fixture '[P']]]>0,Table_PREInfo[[#This Row],['# Lamps/ Fixture '[P']]] & \"L - \" & Table_PREInfo[[#This Row],[Fixture/ Lamp Wattage '[P']]] & \"W\" & IF(Table_PREInfo[[#This Row],[Ballast/ Driver '[P']]]<>\"\",\" - \" & Table_PREInfo[[#This Row],[Ballast/ Driver '[P']]],\"\"),Table_PREInfo[[#This Row],[Fixture Wattage '[P']]] & \"W\"),\"]\",\n  IF(AND(Table_PREInfo[[#This Row],[Controls '[P']]]<>\"\",Table_PREInfo[[#This Row],[Controls '[P']]]<>\"No Controls\"),\" - \" & Table_PREInfo[[#This Row],[Controls '[P']]],\"\")\n  ),\n\"\"),\"\")","v":""}]
[{"$f":"IF($A24=\"Line\",1,MAX($A$4:$A24)+1)","v":21},{"$f":"COUNTA(Table_PREInfo[[#This Row],[Schedule]:[Notes]])>9","v":false},{"$f":"IF(Table_PREInfo[[#This Row],[IsActive]],Table_PREInfo[[#This Row],[Line]],\"\")","v":""},null,null,null,null,null,null,null,{"$f":"IF(ISNUMBER(FIND(\"LED Tube\",Table_PREInfo[[#This Row],[Fixture Technology '[E']]],1)),\"[Enter]\",\"\")","v":""},null,{"$f":"IFERROR(\nIFERROR(OFFSET(Table_TypWattage[[#Headers],[Technology]],MATCH(Table_PREInfo[[#This Row],[Fixture Technology '[E']]] & IF(Table_PREInfo[[#This Row],[Ballast/ Driver '[E']]]<>\"\",\" - \" & Table_PREInfo[[#This Row],[Ballast/ Driver '[E']]],\"\"),Table_TypWattage[Technology],0)+MATCH(Table_PREInfo[[#This Row],[Fixture/ Lamp Wattage '[E']]],INDIRECT(SUBSTITUTE(SUBSTITUTE(Table_PREInfo[[#This Row],[Fixture Technology '[E']]],\" \",\"_\"),\"-\",\"_\")),0)-1,MATCH(Table_PREInfo[[#This Row],['# Lamps/ Fixture '[E']]],'Measure Tables'!$Q$2:$V$2,0)+1),IF(Table_PREInfo[[#This Row],[Schedule]]<>\"\",IF(AND(Table_PREInfo[[#This Row],['# Lamps/ Fixture '[E']]]<>\"\",Table_PREInfo[[#This Row],['# Lamps/ Fixture '[E']]]>0,Table_PREInfo[[#This Row],[Fixture/ Lamp Wattage '[E']]]>0),Table_PREInfo[[#This Row],['# Lamps/ Fixture '[E']]]*Table_PREInfo[[#This Row],[Fixture/ Lamp Wattage '[E']]],Table_PREInfo[[#This Row],[Fixture/ Lamp Wattage '[E']]]),\"\")),\n\"\")","v":""},null,null,{"$f":"IFERROR(IF(Table_PREInfo[[#This Row],[Interior/ Exterior]]<>\"\",\n  CONCATENATE(\n  Table_PREInfo[[#This Row],[Interior/ Exterior]],\": \" &\n  Table_PREInfo[[#This Row],[Fixture Technology '[E']]],\n  \" - \",Table_PREInfo[[#This Row],[Fixture Type '[E']]],\" [\",\n  IF(Table_PREInfo[[#This Row],['# Lamps/ Fixture '[E']]]>0,Table_PREInfo[[#This Row],['# Lamps/ Fixture '[E']]] & \"L - \" & Table_PREInfo[[#This Row],[Fixture/ Lamp Wattage '[E']]] & \"W\" & IF(Table_PREInfo[[#This Row],[Ballast/ Driver '[E']]]<>\"\",\" - \" & Table_PREInfo[[#This Row],[Ballast/ Driver '[E']]],\"\"),Table_PREInfo[[#This Row],[Fixture Wattage '[E']]] & \"W\"),\"]\",\n  IF(AND(Table_PREInfo[[#This Row],[Controls '[E']]]<>\"\",Table_PREInfo[[#This Row],[Controls '[E']]]<>\"No Controls\"),\" - \" & Table_PREInfo[[#This Row],[Controls '[E']]],\"\")\n  ),\n\"\"),\"\")","v":""},null,{"$f":"IF(Table_PREInfo[[#This Row],[Fixture Qty '[E']]]<>0,Table_PREInfo[[#This Row],[Fixture Qty '[E']]],\"\")","v":""},null,null,{"$f":"IF(ISNUMBER(FIND(\"LED Tube\",Table_PREInfo[[#This Row],[Fixture Technology '[P']]],1)),\"[Enter]\",\"\")","v":""},null,{"$f":"IFERROR(\nIFERROR(OFFSET(Table_TypWattage[[#Headers],[Technology]],MATCH(Table_PREInfo[[#This Row],[Fixture Technology '[P']]],Table_TypWattage[Technology],0)+MATCH(Table_PREInfo[[#This Row],[Fixture/ Lamp Wattage '[P']]],INDIRECT(SUBSTITUTE(SUBSTITUTE(Table_PREInfo[[#This Row],[Fixture Technology '[P']]],\" \",\"_\"),\"-\",\"_\")),0)-1,MATCH(Table_PREInfo[[#This Row],['# Lamps/ Fixture '[P']]],'Measure Tables'!$Q$2:$V$2,0)+1),IF(Table_PREInfo[[#This Row],[Schedule]]<>\"\",IF(AND(,Table_PREInfo[[#This Row],['# Lamps/ Fixture '[P']]]<>\"\",Table_PREInfo[[#This Row],['# Lamps/ Fixture '[P']]]>0,Table_PREInfo[[#This Row],[Fixture/ Lamp Wattage '[P']]]>0),Table_PREInfo[[#This Row],['# Lamps/ Fixture '[P']]]*Table_PREInfo[[#This Row],[Fixture/ Lamp Wattage '[P']]],Table_PREInfo[[#This Row],[Fixture/ Lamp Wattage '[P']]]),\"\")),\n\"\")","v":""},{"$f":"IF(Table_PREInfo[[#This Row],[Fixture Type '[E']]]<>\"\",Table_PREInfo[[#This Row],[Fixture Type '[E']]],\"\")","v":""},{"$f":"IF(Table_PREInfo[[#This Row],[Controls '[E']]]<>\"\",Table_PREInfo[[#This Row],[Controls '[E']]],\"\")","v":""},{"$f":"IFERROR(IF(Table_PREInfo[[#This Row],[Interior/ Exterior]]<>\"\",\n  CONCATENATE(\n  Table_PREInfo[[#This Row],[Fixture Technology '[P']]],\n  \" - \",Table_PREInfo[[#This Row],[Fixture Type '[P']]],\" [\",\n  IF(Table_PREInfo[[#This Row],['# Lamps/ Fixture '[P']]]>0,Table_PREInfo[[#This Row],['# Lamps/ Fixture '[P']]] & \"L - \" & Table_PREInfo[[#This Row],[Fixture/ Lamp Wattage '[P']]] & \"W\" & IF(Table_PREInfo[[#This Row],[Ballast/ Driver '[P']]]<>\"\",\" - \" & Table_PREInfo[[#This Row],[Ballast/ Driver '[P']]],\"\"),Table_PREInfo[[#This Row],[Fixture Wattage '[P']]] & \"W\"),\"]\",\n  IF(AND(Table_PREInfo[[#This Row],[Controls '[P']]]<>\"\",Table_PREInfo[[#This Row],[Controls '[P']]]<>\"No Controls\"),\" - \" & Table_PREInfo[[#This Row],[Controls '[P']]],\"\")\n  ),\n\"\"),\"\")","v":""}]
[{"$f":"IF($A25=\"Line\",1,MAX($A$4:$A25)+1)","v":22},{"$f":"COUNTA(Table_PREInfo[[#This Row],[Schedule]:[Notes]])>9","v":false},{"$f":"IF(Table_PREInfo[[#This Row],[IsActive]],Table_PREInfo[[#This Row],[Line]],\"\")","v":""},null,null,null,null,null,null,null,{"$f":"IF(ISNUMBER(FIND(\"LED Tube\",Table_PREInfo[[#This Row],[Fixture Technology '[E']]],1)),\"[Enter]\",\"\")","v":""},null,{"$f":"IFERROR(\nIFERROR(OFFSET(Table_TypWattage[[#Headers],[Technology]],MATCH(Table_PREInfo[[#This Row],[Fixture Technology '[E']]] & IF(Table_PREInfo[[#This Row],[Ballast/ Driver '[E']]]<>\"\",\" - \" & Table_PREInfo[[#This Row],[Ballast/ Driver '[E']]],\"\"),Table_TypWattage[Technology],0)+MATCH(Table_PREInfo[[#This Row],[Fixture/ Lamp Wattage '[E']]],INDIRECT(SUBSTITUTE(SUBSTITUTE(Table_PREInfo[[#This Row],[Fixture Technology '[E']]],\" \",\"_\"),\"-\",\"_\")),0)-1,MATCH(Table_PREInfo[[#This Row],['# Lamps/ Fixture '[E']]],'Measure Tables'!$Q$2:$V$2,0)+1),IF(Table_PREInfo[[#This Row],[Schedule]]<>\"\",IF(AND(Table_PREInfo[[#This Row],['# Lamps/ Fixture '[E']]]<>\"\",Table_PREInfo[[#This Row],['# Lamps/ Fixture '[E']]]>0,Table_PREInfo[[#This Row],[Fixture/ Lamp Wattage '[E']]]>0),Table_PREInfo[[#This Row],['# Lamps/ Fixture '[E']]]*Table_PREInfo[[#This Row],[Fixture/ Lamp Wattage '[E']]],Table_PREInfo[[#This Row],[Fixture/ Lamp Wattage '[E']]]),\"\")),\n\"\")","v":""},null,null,{"$f":"IFERROR(IF(Table_PREInfo[[#This Row],[Interior/ Exterior]]<>\"\",\n  CONCATENATE(\n  Table_PREInfo[[#This Row],[Interior/ Exterior]],\": \" &\n  Table_PREInfo[[#This Row],[Fixture Technology '[E']]],\n  \" - \",Table_PREInfo[[#This Row],[Fixture Type '[E']]],\" [\",\n  IF(Table_PREInfo[[#This Row],['# Lamps/ Fixture '[E']]]>0,Table_PREInfo[[#This Row],['# Lamps/ Fixture '[E']]] & \"L - \" & Table_PREInfo[[#This Row],[Fixture/ Lamp Wattage '[E']]] & \"W\" & IF(Table_PREInfo[[#This Row],[Ballast/ Driver '[E']]]<>\"\",\" - \" & Table_PREInfo[[#This Row],[Ballast/ Driver '[E']]],\"\"),Table_PREInfo[[#This Row],[Fixture Wattage '[E']]] & \"W\"),\"]\",\n  IF(AND(Table_PREInfo[[#This Row],[Controls '[E']]]<>\"\",Table_PREInfo[[#This Row],[Controls '[E']]]<>\"No Controls\"),\" - \" & Table_PREInfo[[#This Row],[Controls '[E']]],\"\")\n  ),\n\"\"),\"\")","v":""},null,{"$f":"IF(Table_PREInfo[[#This Row],[Fixture Qty '[E']]]<>0,Table_PREInfo[[#This Row],[Fixture Qty '[E']]],\"\")","v":""},null,null,{"$f":"IF(ISNUMBER(FIND(\"LED Tube\",Table_PREInfo[[#This Row],[Fixture Technology '[P']]],1)),\"[Enter]\",\"\")","v":""},null,{"$f":"IFERROR(\nIFERROR(OFFSET(Table_TypWattage[[#Headers],[Technology]],MATCH(Table_PREInfo[[#This Row],[Fixture Technology '[P']]],Table_TypWattage[Technology],0)+MATCH(Table_PREInfo[[#This Row],[Fixture/ Lamp Wattage '[P']]],INDIRECT(SUBSTITUTE(SUBSTITUTE(Table_PREInfo[[#This Row],[Fixture Technology '[P']]],\" \",\"_\"),\"-\",\"_\")),0)-1,MATCH(Table_PREInfo[[#This Row],['# Lamps/ Fixture '[P']]],'Measure Tables'!$Q$2:$V$2,0)+1),IF(Table_PREInfo[[#This Row],[Schedule]]<>\"\",IF(AND(,Table_PREInfo[[#This Row],['# Lamps/ Fixture '[P']]]<>\"\",Table_PREInfo[[#This Row],['# Lamps/ Fixture '[P']]]>0,Table_PREInfo[[#This Row],[Fixture/ Lamp Wattage '[P']]]>0),Table_PREInfo[[#This Row],['# Lamps/ Fixture '[P']]]*Table_PREInfo[[#This Row],[Fixture/ Lamp Wattage '[P']]],Table_PREInfo[[#This Row],[Fixture/ Lamp Wattage '[P']]]),\"\")),\n\"\")","v":""},{"$f":"IF(Table_PREInfo[[#This Row],[Fixture Type '[E']]]<>\"\",Table_PREInfo[[#This Row],[Fixture Type '[E']]],\"\")","v":""},{"$f":"IF(Table_PREInfo[[#This Row],[Controls '[E']]]<>\"\",Table_PREInfo[[#This Row],[Controls '[E']]],\"\")","v":""},{"$f":"IFERROR(IF(Table_PREInfo[[#This Row],[Interior/ Exterior]]<>\"\",\n  CONCATENATE(\n  Table_PREInfo[[#This Row],[Fixture Technology '[P']]],\n  \" - \",Table_PREInfo[[#This Row],[Fixture Type '[P']]],\" [\",\n  IF(Table_PREInfo[[#This Row],['# Lamps/ Fixture '[P']]]>0,Table_PREInfo[[#This Row],['# Lamps/ Fixture '[P']]] & \"L - \" & Table_PREInfo[[#This Row],[Fixture/ Lamp Wattage '[P']]] & \"W\" & IF(Table_PREInfo[[#This Row],[Ballast/ Driver '[P']]]<>\"\",\" - \" & Table_PREInfo[[#This Row],[Ballast/ Driver '[P']]],\"\"),Table_PREInfo[[#This Row],[Fixture Wattage '[P']]] & \"W\"),\"]\",\n  IF(AND(Table_PREInfo[[#This Row],[Controls '[P']]]<>\"\",Table_PREInfo[[#This Row],[Controls '[P']]]<>\"No Controls\"),\" - \" & Table_PREInfo[[#This Row],[Controls '[P']]],\"\")\n  ),\n\"\"),\"\")","v":""}]
[{"$f":"IF($A26=\"Line\",1,MAX($A$4:$A26)+1)","v":23},{"$f":"COUNTA(Table_PREInfo[[#This Row],[Schedule]:[Notes]])>9","v":false},{"$f":"IF(Table_PREInfo[[#This Row],[IsActive]],Table_PREInfo[[#This Row],[Line]],\"\")","v":""},null,null,null,null,null,null,null,{"$f":"IF(ISNUMBER(FIND(\"LED Tube\",Table_PREInfo[[#This Row],[Fixture Technology '[E']]],1)),\"[Enter]\",\"\")","v":""},null,{"$f":"IFERROR(\nIFERROR(OFFSET(Table_TypWattage[[#Headers],[Technology]],MATCH(Table_PREInfo[[#This Row],[Fixture Technology '[E']]] & IF(Table_PREInfo[[#This Row],[Ballast/ Driver '[E']]]<>\"\",\" - \" & Table_PREInfo[[#This Row],[Ballast/ Driver '[E']]],\"\"),Table_TypWattage[Technology],0)+MATCH(Table_PREInfo[[#This Row],[Fixture/ Lamp Wattage '[E']]],INDIRECT(SUBSTITUTE(SUBSTITUTE(Table_PREInfo[[#This Row],[Fixture Technology '[E']]],\" \",\"_\"),\"-\",\"_\")),0)-1,MATCH(Table_PREInfo[[#This Row],['# Lamps/ Fixture '[E']]],'Measure Tables'!$Q$2:$V$2,0)+1),IF(Table_PREInfo[[#This Row],[Schedule]]<>\"\",IF(AND(Table_PREInfo[[#This Row],['# Lamps/ Fixture '[E']]]<>\"\",Table_PREInfo[[#This Row],['# Lamps/ Fixture '[E']]]>0,Table_PREInfo[[#This Row],[Fixture/ Lamp Wattage '[E']]]>0),Table_PREInfo[[#This Row],['# Lamps/ Fixture '[E']]]*Table_PREInfo[[#This Row],[Fixture/ Lamp Wattage '[E']]],Table_PREInfo[[#This Row],[Fixture/ Lamp Wattage '[E']]]),\"\")),\n\"\")","v":""},null,null,{"$f":"IFERROR(IF(Table_PREInfo[[#This Row],[Interior/ Exterior]]<>\"\",\n  CONCATENATE(\n  Table_PREInfo[[#This Row],[Interior/ Exterior]],\": \" &\n  Table_PREInfo[[#This Row],[Fixture Technology '[E']]],\n  \" - \",Table_PREInfo[[#This Row],[Fixture Type '[E']]],\" [\",\n  IF(Table_PREInfo[[#This Row],['# Lamps/ Fixture '[E']]]>0,Table_PREInfo[[#This Row],['# Lamps/ Fixture '[E']]] & \"L - \" & Table_PREInfo[[#This Row],[Fixture/ Lamp Wattage '[E']]] & \"W\" & IF(Table_PREInfo[[#This Row],[Ballast/ Driver '[E']]]<>\"\",\" - \" & Table_PREInfo[[#This Row],[Ballast/ Driver '[E']]],\"\"),Table_PREInfo[[#This Row],[Fixture Wattage '[E']]] & \"W\"),\"]\",\n  IF(AND(Table_PREInfo[[#This Row],[Controls '[E']]]<>\"\",Table_PREInfo[[#This Row],[Controls '[E']]]<>\"No Controls\"),\" - \" & Table_PREInfo[[#This Row],[Controls '[E']]],\"\")\n  ),\n\"\"),\"\")","v":""},null,{"$f":"IF(Table_PREInfo[[#This Row],[Fixture Qty '[E']]]<>0,Table_PREInfo[[#This Row],[Fixture Qty '[E']]],\"\")","v":""},null,null,{"$f":"IF(ISNUMBER(FIND(\"LED Tube\",Table_PREInfo[[#This Row],[Fixture Technology '[P']]],1)),\"[Enter]\",\"\")","v":""},null,{"$f":"IFERROR(\nIFERROR(OFFSET(Table_TypWattage[[#Headers],[Technology]],MATCH(Table_PREInfo[[#This Row],[Fixture Technology '[P']]],Table_TypWattage[Technology],0)+MATCH(Table_PREInfo[[#This Row],[Fixture/ Lamp Wattage '[P']]],INDIRECT(SUBSTITUTE(SUBSTITUTE(Table_PREInfo[[#This Row],[Fixture Technology '[P']]],\" \",\"_\"),\"-\",\"_\")),0)-1,MATCH(Table_PREInfo[[#This Row],['# Lamps/ Fixture '[P']]],'Measure Tables'!$Q$2:$V$2,0)+1),IF(Table_PREInfo[[#This Row],[Schedule]]<>\"\",IF(AND(,Table_PREInfo[[#This Row],['# Lamps/ Fixture '[P']]]<>\"\",Table_PREInfo[[#This Row],['# Lamps/ Fixture '[P']]]>0,Table_PREInfo[[#This Row],[Fixture/ Lamp Wattage '[P']]]>0),Table_PREInfo[[#This Row],['# Lamps/ Fixture '[P']]]*Table_PREInfo[[#This Row],[Fixture/ Lamp Wattage '[P']]],Table_PREInfo[[#This Row],[Fixture/ Lamp Wattage '[P']]]),\"\")),\n\"\")","v":""},{"$f":"IF(Table_PREInfo[[#This Row],[Fixture Type '[E']]]<>\"\",Table_PREInfo[[#This Row],[Fixture Type '[E']]],\"\")","v":""},{"$f":"IF(Table_PREInfo[[#This Row],[Controls '[E']]]<>\"\",Table_PREInfo[[#This Row],[Controls '[E']]],\"\")","v":""},{"$f":"IFERROR(IF(Table_PREInfo[[#This Row],[Interior/ Exterior]]<>\"\",\n  CONCATENATE(\n  Table_PREInfo[[#This Row],[Fixture Technology '[P']]],\n  \" - \",Table_PREInfo[[#This Row],[Fixture Type '[P']]],\" [\",\n  IF(Table_PREInfo[[#This Row],['# Lamps/ Fixture '[P']]]>0,Table_PREInfo[[#This Row],['# Lamps/ Fixture '[P']]] & \"L - \" & Table_PREInfo[[#This Row],[Fixture/ Lamp Wattage '[P']]] & \"W\" & IF(Table_PREInfo[[#This Row],[Ballast/ Driver '[P']]]<>\"\",\" - \" & Table_PREInfo[[#This Row],[Ballast/ Driver '[P']]],\"\"),Table_PREInfo[[#This Row],[Fixture Wattage '[P']]] & \"W\"),\"]\",\n  IF(AND(Table_PREInfo[[#This Row],[Controls '[P']]]<>\"\",Table_PREInfo[[#This Row],[Controls '[P']]]<>\"No Controls\"),\" - \" & Table_PREInfo[[#This Row],[Controls '[P']]],\"\")\n  ),\n\"\"),\"\")","v":""}]
[{"$f":"IF($A27=\"Line\",1,MAX($A$4:$A27)+1)","v":24},{"$f":"COUNTA(Table_PREInfo[[#This Row],[Schedule]:[Notes]])>9","v":false},{"$f":"IF(Table_PREInfo[[#This Row],[IsActive]],Table_PREInfo[[#This Row],[Line]],\"\")","v":""},null,null,null,null,null,null,null,{"$f":"IF(ISNUMBER(FIND(\"LED Tube\",Table_PREInfo[[#This Row],[Fixture Technology '[E']]],1)),\"[Enter]\",\"\")","v":""},null,{"$f":"IFERROR(\nIFERROR(OFFSET(Table_TypWattage[[#Headers],[Technology]],MATCH(Table_PREInfo[[#This Row],[Fixture Technology '[E']]] & IF(Table_PREInfo[[#This Row],[Ballast/ Driver '[E']]]<>\"\",\" - \" & Table_PREInfo[[#This Row],[Ballast/ Driver '[E']]],\"\"),Table_TypWattage[Technology],0)+MATCH(Table_PREInfo[[#This Row],[Fixture/ Lamp Wattage '[E']]],INDIRECT(SUBSTITUTE(SUBSTITUTE(Table_PREInfo[[#This Row],[Fixture Technology '[E']]],\" \",\"_\"),\"-\",\"_\")),0)-1,MATCH(Table_PREInfo[[#This Row],['# Lamps/ Fixture '[E']]],'Measure Tables'!$Q$2:$V$2,0)+1),IF(Table_PREInfo[[#This Row],[Schedule]]<>\"\",IF(AND(Table_PREInfo[[#This Row],['# Lamps/ Fixture '[E']]]<>\"\",Table_PREInfo[[#This Row],['# Lamps/ Fixture '[E']]]>0,Table_PREInfo[[#This Row],[Fixture/ Lamp Wattage '[E']]]>0),Table_PREInfo[[#This Row],['# Lamps/ Fixture '[E']]]*Table_PREInfo[[#This Row],[Fixture/ Lamp Wattage '[E']]],Table_PREInfo[[#This Row],[Fixture/ Lamp Wattage '[E']]]),\"\")),\n\"\")","v":""},null,null,{"$f":"IFERROR(IF(Table_PREInfo[[#This Row],[Interior/ Exterior]]<>\"\",\n  CONCATENATE(\n  Table_PREInfo[[#This Row],[Interior/ Exterior]],\": \" &\n  Table_PREInfo[[#This Row],[Fixture Technology '[E']]],\n  \" - \",Table_PREInfo[[#This Row],[Fixture Type '[E']]],\" [\",\n  IF(Table_PREInfo[[#This Row],['# Lamps/ Fixture '[E']]]>0,Table_PREInfo[[#This Row],['# Lamps/ Fixture '[E']]] & \"L - \" & Table_PREInfo[[#This Row],[Fixture/ Lamp Wattage '[E']]] & \"W\" & IF(Table_PREInfo[[#This Row],[Ballast/ Driver '[E']]]<>\"\",\" - \" & Table_PREInfo[[#This Row],[Ballast/ Driver '[E']]],\"\"),Table_PREInfo[[#This Row],[Fixture Wattage '[E']]] & \"W\"),\"]\",\n  IF(AND(Table_PREInfo[[#This Row],[Controls '[E']]]<>\"\",Table_PREInfo[[#This Row],[Controls '[E']]]<>\"No Controls\"),\" - \" & Table_PREInfo[[#This Row],[Controls '[E']]],\"\")\n  ),\n\"\"),\"\")","v":""},null,{"$f":"IF(Table_PREInfo[[#This Row],[Fixture Qty '[E']]]<>0,Table_PREInfo[[#This Row],[Fixture Qty '[E']]],\"\")","v":""},null,null,{"$f":"IF(ISNUMBER(FIND(\"LED Tube\",Table_PREInfo[[#This Row],[Fixture Technology '[P']]],1)),\"[Enter]\",\"\")","v":""},null,{"$f":"IFERROR(\nIFERROR(OFFSET(Table_TypWattage[[#Headers],[Technology]],MATCH(Table_PREInfo[[#This Row],[Fixture Technology '[P']]],Table_TypWattage[Technology],0)+MATCH(Table_PREInfo[[#This Row],[Fixture/ Lamp Wattage '[P']]],INDIRECT(SUBSTITUTE(SUBSTITUTE(Table_PREInfo[[#This Row],[Fixture Technology '[P']]],\" \",\"_\"),\"-\",\"_\")),0)-1,MATCH(Table_PREInfo[[#This Row],['# Lamps/ Fixture '[P']]],'Measure Tables'!$Q$2:$V$2,0)+1),IF(Table_PREInfo[[#This Row],[Schedule]]<>\"\",IF(AND(,Table_PREInfo[[#This Row],['# Lamps/ Fixture '[P']]]<>\"\",Table_PREInfo[[#This Row],['# Lamps/ Fixture '[P']]]>0,Table_PREInfo[[#This Row],[Fixture/ Lamp Wattage '[P']]]>0),Table_PREInfo[[#This Row],['# Lamps/ Fixture '[P']]]*Table_PREInfo[[#This Row],[Fixture/ Lamp Wattage '[P']]],Table_PREInfo[[#This Row],[Fixture/ Lamp Wattage '[P']]]),\"\")),\n\"\")","v":""},{"$f":"IF(Table_PREInfo[[#This Row],[Fixture Type '[E']]]<>\"\",Table_PREInfo[[#This Row],[Fixture Type '[E']]],\"\")","v":""},{"$f":"IF(Table_PREInfo[[#This Row],[Controls '[E']]]<>\"\",Table_PREInfo[[#This Row],[Controls '[E']]],\"\")","v":""},{"$f":"IFERROR(IF(Table_PREInfo[[#This Row],[Interior/ Exterior]]<>\"\",\n  CONCATENATE(\n  Table_PREInfo[[#This Row],[Fixture Technology '[P']]],\n  \" - \",Table_PREInfo[[#This Row],[Fixture Type '[P']]],\" [\",\n  IF(Table_PREInfo[[#This Row],['# Lamps/ Fixture '[P']]]>0,Table_PREInfo[[#This Row],['# Lamps/ Fixture '[P']]] & \"L - \" & Table_PREInfo[[#This Row],[Fixture/ Lamp Wattage '[P']]] & \"W\" & IF(Table_PREInfo[[#This Row],[Ballast/ Driver '[P']]]<>\"\",\" - \" & Table_PREInfo[[#This Row],[Ballast/ Driver '[P']]],\"\"),Table_PREInfo[[#This Row],[Fixture Wattage '[P']]] & \"W\"),\"]\",\n  IF(AND(Table_PREInfo[[#This Row],[Controls '[P']]]<>\"\",Table_PREInfo[[#This Row],[Controls '[P']]]<>\"No Controls\"),\" - \" & Table_PREInfo[[#This Row],[Controls '[P']]],\"\")\n  ),\n\"\"),\"\")","v":""}]
[{"$f":"IF($A28=\"Line\",1,MAX($A$4:$A28)+1)","v":25},{"$f":"COUNTA(Table_PREInfo[[#This Row],[Schedule]:[Notes]])>9","v":false},{"$f":"IF(Table_PREInfo[[#This Row],[IsActive]],Table_PREInfo[[#This Row],[Line]],\"\")","v":""},null,null,null,null,null,null,null,{"$f":"IF(ISNUMBER(FIND(\"LED Tube\",Table_PREInfo[[#This Row],[Fixture Technology '[E']]],1)),\"[Enter]\",\"\")","v":""},null,{"$f":"IFERROR(\nIFERROR(OFFSET(Table_TypWattage[[#Headers],[Technology]],MATCH(Table_PREInfo[[#This Row],[Fixture Technology '[E']]] & IF(Table_PREInfo[[#This Row],[Ballast/ Driver '[E']]]<>\"\",\" - \" & Table_PREInfo[[#This Row],[Ballast/ Driver '[E']]],\"\"),Table_TypWattage[Technology],0)+MATCH(Table_PREInfo[[#This Row],[Fixture/ Lamp Wattage '[E']]],INDIRECT(SUBSTITUTE(SUBSTITUTE(Table_PREInfo[[#This Row],[Fixture Technology '[E']]],\" \",\"_\"),\"-\",\"_\")),0)-1,MATCH(Table_PREInfo[[#This Row],['# Lamps/ Fixture '[E']]],'Measure Tables'!$Q$2:$V$2,0)+1),IF(Table_PREInfo[[#This Row],[Schedule]]<>\"\",IF(AND(Table_PREInfo[[#This Row],['# Lamps/ Fixture '[E']]]<>\"\",Table_PREInfo[[#This Row],['# Lamps/ Fixture '[E']]]>0,Table_PREInfo[[#This Row],[Fixture/ Lamp Wattage '[E']]]>0),Table_PREInfo[[#This Row],['# Lamps/ Fixture '[E']]]*Table_PREInfo[[#This Row],[Fixture/ Lamp Wattage '[E']]],Table_PREInfo[[#This Row],[Fixture/ Lamp Wattage '[E']]]),\"\")),\n\"\")","v":""},null,null,{"$f":"IFERROR(IF(Table_PREInfo[[#This Row],[Interior/ Exterior]]<>\"\",\n  CONCATENATE(\n  Table_PREInfo[[#This Row],[Interior/ Exterior]],\": \" &\n  Table_PREInfo[[#This Row],[Fixture Technology '[E']]],\n  \" - \",Table_PREInfo[[#This Row],[Fixture Type '[E']]],\" [\",\n  IF(Table_PREInfo[[#This Row],['# Lamps/ Fixture '[E']]]>0,Table_PREInfo[[#This Row],['# Lamps/ Fixture '[E']]] & \"L - \" & Table_PREInfo[[#This Row],[Fixture/ Lamp Wattage '[E']]] & \"W\" & IF(Table_PREInfo[[#This Row],[Ballast/ Driver '[E']]]<>\"\",\" - \" & Table_PREInfo[[#This Row],[Ballast/ Driver '[E']]],\"\"),Table_PREInfo[[#This Row],[Fixture Wattage '[E']]] & \"W\"),\"]\",\n  IF(AND(Table_PREInfo[[#This Row],[Controls '[E']]]<>\"\",Table_PREInfo[[#This Row],[Controls '[E']]]<>\"No Controls\"),\" - \" & Table_PREInfo[[#This Row],[Controls '[E']]],\"\")\n  ),\n\"\"),\"\")","v":""},null,{"$f":"IF(Table_PREInfo[[#This Row],[Fixture Qty '[E']]]<>0,Table_PREInfo[[#This Row],[Fixture Qty '[E']]],\"\")","v":""},null,null,{"$f":"IF(ISNUMBER(FIND(\"LED Tube\",Table_PREInfo[[#This Row],[Fixture Technology '[P']]],1)),\"[Enter]\",\"\")","v":""},null,{"$f":"IFERROR(\nIFERROR(OFFSET(Table_TypWattage[[#Headers],[Technology]],MATCH(Table_PREInfo[[#This Row],[Fixture Technology '[P']]],Table_TypWattage[Technology],0)+MATCH(Table_PREInfo[[#This Row],[Fixture/ Lamp Wattage '[P']]],INDIRECT(SUBSTITUTE(SUBSTITUTE(Table_PREInfo[[#This Row],[Fixture Technology '[P']]],\" \",\"_\"),\"-\",\"_\")),0)-1,MATCH(Table_PREInfo[[#This Row],['# Lamps/ Fixture '[P']]],'Measure Tables'!$Q$2:$V$2,0)+1),IF(Table_PREInfo[[#This Row],[Schedule]]<>\"\",IF(AND(,Table_PREInfo[[#This Row],['# Lamps/ Fixture '[P']]]<>\"\",Table_PREInfo[[#This Row],['# Lamps/ Fixture '[P']]]>0,Table_PREInfo[[#This Row],[Fixture/ Lamp Wattage '[P']]]>0),Table_PREInfo[[#This Row],['# Lamps/ Fixture '[P']]]*Table_PREInfo[[#This Row],[Fixture/ Lamp Wattage '[P']]],Table_PREInfo[[#This Row],[Fixture/ Lamp Wattage '[P']]]),\"\")),\n\"\")","v":""},{"$f":"IF(Table_PREInfo[[#This Row],[Fixture Type '[E']]]<>\"\",Table_PREInfo[[#This Row],[Fixture Type '[E']]],\"\")","v":""},{"$f":"IF(Table_PREInfo[[#This Row],[Controls '[E']]]<>\"\",Table_PREInfo[[#This Row],[Controls '[E']]],\"\")","v":""},{"$f":"IFERROR(IF(Table_PREInfo[[#This Row],[Interior/ Exterior]]<>\"\",\n  CONCATENATE(\n  Table_PREInfo[[#This Row],[Fixture Technology '[P']]],\n  \" - \",Table_PREInfo[[#This Row],[Fixture Type '[P']]],\" [\",\n  IF(Table_PREInfo[[#This Row],['# Lamps/ Fixture '[P']]]>0,Table_PREInfo[[#This Row],['# Lamps/ Fixture '[P']]] & \"L - \" & Table_PREInfo[[#This Row],[Fixture/ Lamp Wattage '[P']]] & \"W\" & IF(Table_PREInfo[[#This Row],[Ballast/ Driver '[P']]]<>\"\",\" - \" & Table_PREInfo[[#This Row],[Ballast/ Driver '[P']]],\"\"),Table_PREInfo[[#This Row],[Fixture Wattage '[P']]] & \"W\"),\"]\",\n  IF(AND(Table_PREInfo[[#This Row],[Controls '[P']]]<>\"\",Table_PREInfo[[#This Row],[Controls '[P']]]<>\"No Controls\"),\" - \" & Table_PREInfo[[#This Row],[Controls '[P']]],\"\")\n  ),\n\"\"),\"\")","v":""}]
[{"$f":"IF($A29=\"Line\",1,MAX($A$4:$A29)+1)","v":26},{"$f":"COUNTA(Table_PREInfo[[#This Row],[Schedule]:[Notes]])>9","v":false},{"$f":"IF(Table_PREInfo[[#This Row],[IsActive]],Table_PREInfo[[#This Row],[Line]],\"\")","v":""},null,null,null,null,null,null,null,{"$f":"IF(ISNUMBER(FIND(\"LED Tube\",Table_PREInfo[[#This Row],[Fixture Technology '[E']]],1)),\"[Enter]\",\"\")","v":""},null,{"$f":"IFERROR(\nIFERROR(OFFSET(Table_TypWattage[[#Headers],[Technology]],MATCH(Table_PREInfo[[#This Row],[Fixture Technology '[E']]] & IF(Table_PREInfo[[#This Row],[Ballast/ Driver '[E']]]<>\"\",\" - \" & Table_PREInfo[[#This Row],[Ballast/ Driver '[E']]],\"\"),Table_TypWattage[Technology],0)+MATCH(Table_PREInfo[[#This Row],[Fixture/ Lamp Wattage '[E']]],INDIRECT(SUBSTITUTE(SUBSTITUTE(Table_PREInfo[[#This Row],[Fixture Technology '[E']]],\" \",\"_\"),\"-\",\"_\")),0)-1,MATCH(Table_PREInfo[[#This Row],['# Lamps/ Fixture '[E']]],'Measure Tables'!$Q$2:$V$2,0)+1),IF(Table_PREInfo[[#This Row],[Schedule]]<>\"\",IF(AND(Table_PREInfo[[#This Row],['# Lamps/ Fixture '[E']]]<>\"\",Table_PREInfo[[#This Row],['# Lamps/ Fixture '[E']]]>0,Table_PREInfo[[#This Row],[Fixture/ Lamp Wattage '[E']]]>0),Table_PREInfo[[#This Row],['# Lamps/ Fixture '[E']]]*Table_PREInfo[[#This Row],[Fixture/ Lamp Wattage '[E']]],Table_PREInfo[[#This Row],[Fixture/ Lamp Wattage '[E']]]),\"\")),\n\"\")","v":""},null,null,{"$f":"IFERROR(IF(Table_PREInfo[[#This Row],[Interior/ Exterior]]<>\"\",\n  CONCATENATE(\n  Table_PREInfo[[#This Row],[Interior/ Exterior]],\": \" &\n  Table_PREInfo[[#This Row],[Fixture Technology '[E']]],\n  \" - \",Table_PREInfo[[#This Row],[Fixture Type '[E']]],\" [\",\n  IF(Table_PREInfo[[#This Row],['# Lamps/ Fixture '[E']]]>0,Table_PREInfo[[#This Row],['# Lamps/ Fixture '[E']]] & \"L - \" & Table_PREInfo[[#This Row],[Fixture/ Lamp Wattage '[E']]] & \"W\" & IF(Table_PREInfo[[#This Row],[Ballast/ Driver '[E']]]<>\"\",\" - \" & Table_PREInfo[[#This Row],[Ballast/ Driver '[E']]],\"\"),Table_PREInfo[[#This Row],[Fixture Wattage '[E']]] & \"W\"),\"]\",\n  IF(AND(Table_PREInfo[[#This Row],[Controls '[E']]]<>\"\",Table_PREInfo[[#This Row],[Controls '[E']]]<>\"No Controls\"),\" - \" & Table_PREInfo[[#This Row],[Controls '[E']]],\"\")\n  ),\n\"\"),\"\")","v":""},null,{"$f":"IF(Table_PREInfo[[#This Row],[Fixture Qty '[E']]]<>0,Table_PREInfo[[#This Row],[Fixture Qty '[E']]],\"\")","v":""},null,null,{"$f":"IF(ISNUMBER(FIND(\"LED Tube\",Table_PREInfo[[#This Row],[Fixture Technology '[P']]],1)),\"[Enter]\",\"\")","v":""},null,{"$f":"IFERROR(\nIFERROR(OFFSET(Table_TypWattage[[#Headers],[Technology]],MATCH(Table_PREInfo[[#This Row],[Fixture Technology '[P']]],Table_TypWattage[Technology],0)+MATCH(Table_PREInfo[[#This Row],[Fixture/ Lamp Wattage '[P']]],INDIRECT(SUBSTITUTE(SUBSTITUTE(Table_PREInfo[[#This Row],[Fixture Technology '[P']]],\" \",\"_\"),\"-\",\"_\")),0)-1,MATCH(Table_PREInfo[[#This Row],['# Lamps/ Fixture '[P']]],'Measure Tables'!$Q$2:$V$2,0)+1),IF(Table_PREInfo[[#This Row],[Schedule]]<>\"\",IF(AND(,Table_PREInfo[[#This Row],['# Lamps/ Fixture '[P']]]<>\"\",Table_PREInfo[[#This Row],['# Lamps/ Fixture '[P']]]>0,Table_PREInfo[[#This Row],[Fixture/ Lamp Wattage '[P']]]>0),Table_PREInfo[[#This Row],['# Lamps/ Fixture '[P']]]*Table_PREInfo[[#This Row],[Fixture/ Lamp Wattage '[P']]],Table_PREInfo[[#This Row],[Fixture/ Lamp Wattage '[P']]]),\"\")),\n\"\")","v":""},{"$f":"IF(Table_PREInfo[[#This Row],[Fixture Type '[E']]]<>\"\",Table_PREInfo[[#This Row],[Fixture Type '[E']]],\"\")","v":""},{"$f":"IF(Table_PREInfo[[#This Row],[Controls '[E']]]<>\"\",Table_PREInfo[[#This Row],[Controls '[E']]],\"\")","v":""},{"$f":"IFERROR(IF(Table_PREInfo[[#This Row],[Interior/ Exterior]]<>\"\",\n  CONCATENATE(\n  Table_PREInfo[[#This Row],[Fixture Technology '[P']]],\n  \" - \",Table_PREInfo[[#This Row],[Fixture Type '[P']]],\" [\",\n  IF(Table_PREInfo[[#This Row],['# Lamps/ Fixture '[P']]]>0,Table_PREInfo[[#This Row],['# Lamps/ Fixture '[P']]] & \"L - \" & Table_PREInfo[[#This Row],[Fixture/ Lamp Wattage '[P']]] & \"W\" & IF(Table_PREInfo[[#This Row],[Ballast/ Driver '[P']]]<>\"\",\" - \" & Table_PREInfo[[#This Row],[Ballast/ Driver '[P']]],\"\"),Table_PREInfo[[#This Row],[Fixture Wattage '[P']]] & \"W\"),\"]\",\n  IF(AND(Table_PREInfo[[#This Row],[Controls '[P']]]<>\"\",Table_PREInfo[[#This Row],[Controls '[P']]]<>\"No Controls\"),\" - \" & Table_PREInfo[[#This Row],[Controls '[P']]],\"\")\n  ),\n\"\"),\"\")","v":""}]
[{"$f":"IF($A30=\"Line\",1,MAX($A$4:$A30)+1)","v":27},{"$f":"COUNTA(Table_PREInfo[[#This Row],[Schedule]:[Notes]])>9","v":false},{"$f":"IF(Table_PREInfo[[#This Row],[IsActive]],Table_PREInfo[[#This Row],[Line]],\"\")","v":""},null,null,null,null,null,null,null,{"$f":"IF(ISNUMBER(FIND(\"LED Tube\",Table_PREInfo[[#This Row],[Fixture Technology '[E']]],1)),\"[Enter]\",\"\")","v":""},null,{"$f":"IFERROR(\nIFERROR(OFFSET(Table_TypWattage[[#Headers],[Technology]],MATCH(Table_PREInfo[[#This Row],[Fixture Technology '[E']]] & IF(Table_PREInfo[[#This Row],[Ballast/ Driver '[E']]]<>\"\",\" - \" & Table_PREInfo[[#This Row],[Ballast/ Driver '[E']]],\"\"),Table_TypWattage[Technology],0)+MATCH(Table_PREInfo[[#This Row],[Fixture/ Lamp Wattage '[E']]],INDIRECT(SUBSTITUTE(SUBSTITUTE(Table_PREInfo[[#This Row],[Fixture Technology '[E']]],\" \",\"_\"),\"-\",\"_\")),0)-1,MATCH(Table_PREInfo[[#This Row],['# Lamps/ Fixture '[E']]],'Measure Tables'!$Q$2:$V$2,0)+1),IF(Table_PREInfo[[#This Row],[Schedule]]<>\"\",IF(AND(Table_PREInfo[[#This Row],['# Lamps/ Fixture '[E']]]<>\"\",Table_PREInfo[[#This Row],['# Lamps/ Fixture '[E']]]>0,Table_PREInfo[[#This Row],[Fixture/ Lamp Wattage '[E']]]>0),Table_PREInfo[[#This Row],['# Lamps/ Fixture '[E']]]*Table_PREInfo[[#This Row],[Fixture/ Lamp Wattage '[E']]],Table_PREInfo[[#This Row],[Fixture/ Lamp Wattage '[E']]]),\"\")),\n\"\")","v":""},null,null,{"$f":"IFERROR(IF(Table_PREInfo[[#This Row],[Interior/ Exterior]]<>\"\",\n  CONCATENATE(\n  Table_PREInfo[[#This Row],[Interior/ Exterior]],\": \" &\n  Table_PREInfo[[#This Row],[Fixture Technology '[E']]],\n  \" - \",Table_PREInfo[[#This Row],[Fixture Type '[E']]],\" [\",\n  IF(Table_PREInfo[[#This Row],['# Lamps/ Fixture '[E']]]>0,Table_PREInfo[[#This Row],['# Lamps/ Fixture '[E']]] & \"L - \" & Table_PREInfo[[#This Row],[Fixture/ Lamp Wattage '[E']]] & \"W\" & IF(Table_PREInfo[[#This Row],[Ballast/ Driver '[E']]]<>\"\",\" - \" & Table_PREInfo[[#This Row],[Ballast/ Driver '[E']]],\"\"),Table_PREInfo[[#This Row],[Fixture Wattage '[E']]] & \"W\"),\"]\",\n  IF(AND(Table_PREInfo[[#This Row],[Controls '[E']]]<>\"\",Table_PREInfo[[#This Row],[Controls '[E']]]<>\"No Controls\"),\" - \" & Table_PREInfo[[#This Row],[Controls '[E']]],\"\")\n  ),\n\"\"),\"\")","v":""},null,{"$f":"IF(Table_PREInfo[[#This Row],[Fixture Qty '[E']]]<>0,Table_PREInfo[[#This Row],[Fixture Qty '[E']]],\"\")","v":""},null,null,{"$f":"IF(ISNUMBER(FIND(\"LED Tube\",Table_PREInfo[[#This Row],[Fixture Technology '[P']]],1)),\"[Enter]\",\"\")","v":""},null,{"$f":"IFERROR(\nIFERROR(OFFSET(Table_TypWattage[[#Headers],[Technology]],MATCH(Table_PREInfo[[#This Row],[Fixture Technology '[P']]],Table_TypWattage[Technology],0)+MATCH(Table_PREInfo[[#This Row],[Fixture/ Lamp Wattage '[P']]],INDIRECT(SUBSTITUTE(SUBSTITUTE(Table_PREInfo[[#This Row],[Fixture Technology '[P']]],\" \",\"_\"),\"-\",\"_\")),0)-1,MATCH(Table_PREInfo[[#This Row],['# Lamps/ Fixture '[P']]],'Measure Tables'!$Q$2:$V$2,0)+1),IF(Table_PREInfo[[#This Row],[Schedule]]<>\"\",IF(AND(,Table_PREInfo[[#This Row],['# Lamps/ Fixture '[P']]]<>\"\",Table_PREInfo[[#This Row],['# Lamps/ Fixture '[P']]]>0,Table_PREInfo[[#This Row],[Fixture/ Lamp Wattage '[P']]]>0),Table_PREInfo[[#This Row],['# Lamps/ Fixture '[P']]]*Table_PREInfo[[#This Row],[Fixture/ Lamp Wattage '[P']]],Table_PREInfo[[#This Row],[Fixture/ Lamp Wattage '[P']]]),\"\")),\n\"\")","v":""},{"$f":"IF(Table_PREInfo[[#This Row],[Fixture Type '[E']]]<>\"\",Table_PREInfo[[#This Row],[Fixture Type '[E']]],\"\")","v":""},{"$f":"IF(Table_PREInfo[[#This Row],[Controls '[E']]]<>\"\",Table_PREInfo[[#This Row],[Controls '[E']]],\"\")","v":""},{"$f":"IFERROR(IF(Table_PREInfo[[#This Row],[Interior/ Exterior]]<>\"\",\n  CONCATENATE(\n  Table_PREInfo[[#This Row],[Fixture Technology '[P']]],\n  \" - \",Table_PREInfo[[#This Row],[Fixture Type '[P']]],\" [\",\n  IF(Table_PREInfo[[#This Row],['# Lamps/ Fixture '[P']]]>0,Table_PREInfo[[#This Row],['# Lamps/ Fixture '[P']]] & \"L - \" & Table_PREInfo[[#This Row],[Fixture/ Lamp Wattage '[P']]] & \"W\" & IF(Table_PREInfo[[#This Row],[Ballast/ Driver '[P']]]<>\"\",\" - \" & Table_PREInfo[[#This Row],[Ballast/ Driver '[P']]],\"\"),Table_PREInfo[[#This Row],[Fixture Wattage '[P']]] & \"W\"),\"]\",\n  IF(AND(Table_PREInfo[[#This Row],[Controls '[P']]]<>\"\",Table_PREInfo[[#This Row],[Controls '[P']]]<>\"No Controls\"),\" - \" & Table_PREInfo[[#This Row],[Controls '[P']]],\"\")\n  ),\n\"\"),\"\")","v":""}]
[{"$f":"IF($A31=\"Line\",1,MAX($A$4:$A31)+1)","v":28},{"$f":"COUNTA(Table_PREInfo[[#This Row],[Schedule]:[Notes]])>9","v":false},{"$f":"IF(Table_PREInfo[[#This Row],[IsActive]],Table_PREInfo[[#This Row],[Line]],\"\")","v":""},null,null,null,null,null,null,null,{"$f":"IF(ISNUMBER(FIND(\"LED Tube\",Table_PREInfo[[#This Row],[Fixture Technology '[E']]],1)),\"[Enter]\",\"\")","v":""},null,{"$f":"IFERROR(\nIFERROR(OFFSET(Table_TypWattage[[#Headers],[Technology]],MATCH(Table_PREInfo[[#This Row],[Fixture Technology '[E']]] & IF(Table_PREInfo[[#This Row],[Ballast/ Driver '[E']]]<>\"\",\" - \" & Table_PREInfo[[#This Row],[Ballast/ Driver '[E']]],\"\"),Table_TypWattage[Technology],0)+MATCH(Table_PREInfo[[#This Row],[Fixture/ Lamp Wattage '[E']]],INDIRECT(SUBSTITUTE(SUBSTITUTE(Table_PREInfo[[#This Row],[Fixture Technology '[E']]],\" \",\"_\"),\"-\",\"_\")),0)-1,MATCH(Table_PREInfo[[#This Row],['# Lamps/ Fixture '[E']]],'Measure Tables'!$Q$2:$V$2,0)+1),IF(Table_PREInfo[[#This Row],[Schedule]]<>\"\",IF(AND(Table_PREInfo[[#This Row],['# Lamps/ Fixture '[E']]]<>\"\",Table_PREInfo[[#This Row],['# Lamps/ Fixture '[E']]]>0,Table_PREInfo[[#This Row],[Fixture/ Lamp Wattage '[E']]]>0),Table_PREInfo[[#This Row],['# Lamps/ Fixture '[E']]]*Table_PREInfo[[#This Row],[Fixture/ Lamp Wattage '[E']]],Table_PREInfo[[#This Row],[Fixture/ Lamp Wattage '[E']]]),\"\")),\n\"\")","v":""},null,null,{"$f":"IFERROR(IF(Table_PREInfo[[#This Row],[Interior/ Exterior]]<>\"\",\n  CONCATENATE(\n  Table_PREInfo[[#This Row],[Interior/ Exterior]],\": \" &\n  Table_PREInfo[[#This Row],[Fixture Technology '[E']]],\n  \" - \",Table_PREInfo[[#This Row],[Fixture Type '[E']]],\" [\",\n  IF(Table_PREInfo[[#This Row],['# Lamps/ Fixture '[E']]]>0,Table_PREInfo[[#This Row],['# Lamps/ Fixture '[E']]] & \"L - \" & Table_PREInfo[[#This Row],[Fixture/ Lamp Wattage '[E']]] & \"W\" & IF(Table_PREInfo[[#This Row],[Ballast/ Driver '[E']]]<>\"\",\" - \" & Table_PREInfo[[#This Row],[Ballast/ Driver '[E']]],\"\"),Table_PREInfo[[#This Row],[Fixture Wattage '[E']]] & \"W\"),\"]\",\n  IF(AND(Table_PREInfo[[#This Row],[Controls '[E']]]<>\"\",Table_PREInfo[[#This Row],[Controls '[E']]]<>\"No Controls\"),\" - \" & Table_PREInfo[[#This Row],[Controls '[E']]],\"\")\n  ),\n\"\"),\"\")","v":""},null,{"$f":"IF(Table_PREInfo[[#This Row],[Fixture Qty '[E']]]<>0,Table_PREInfo[[#This Row],[Fixture Qty '[E']]],\"\")","v":""},null,null,{"$f":"IF(ISNUMBER(FIND(\"LED Tube\",Table_PREInfo[[#This Row],[Fixture Technology '[P']]],1)),\"[Enter]\",\"\")","v":""},null,{"$f":"IFERROR(\nIFERROR(OFFSET(Table_TypWattage[[#Headers],[Technology]],MATCH(Table_PREInfo[[#This Row],[Fixture Technology '[P']]],Table_TypWattage[Technology],0)+MATCH(Table_PREInfo[[#This Row],[Fixture/ Lamp Wattage '[P']]],INDIRECT(SUBSTITUTE(SUBSTITUTE(Table_PREInfo[[#This Row],[Fixture Technology '[P']]],\" \",\"_\"),\"-\",\"_\")),0)-1,MATCH(Table_PREInfo[[#This Row],['# Lamps/ Fixture '[P']]],'Measure Tables'!$Q$2:$V$2,0)+1),IF(Table_PREInfo[[#This Row],[Schedule]]<>\"\",IF(AND(,Table_PREInfo[[#This Row],['# Lamps/ Fixture '[P']]]<>\"\",Table_PREInfo[[#This Row],['# Lamps/ Fixture '[P']]]>0,Table_PREInfo[[#This Row],[Fixture/ Lamp Wattage '[P']]]>0),Table_PREInfo[[#This Row],['# Lamps/ Fixture '[P']]]*Table_PREInfo[[#This Row],[Fixture/ Lamp Wattage '[P']]],Table_PREInfo[[#This Row],[Fixture/ Lamp Wattage '[P']]]),\"\")),\n\"\")","v":""},{"$f":"IF(Table_PREInfo[[#This Row],[Fixture Type '[E']]]<>\"\",Table_PREInfo[[#This Row],[Fixture Type '[E']]],\"\")","v":""},{"$f":"IF(Table_PREInfo[[#This Row],[Controls '[E']]]<>\"\",Table_PREInfo[[#This Row],[Controls '[E']]],\"\")","v":""},{"$f":"IFERROR(IF(Table_PREInfo[[#This Row],[Interior/ Exterior]]<>\"\",\n  CONCATENATE(\n  Table_PREInfo[[#This Row],[Fixture Technology '[P']]],\n  \" - \",Table_PREInfo[[#This Row],[Fixture Type '[P']]],\" [\",\n  IF(Table_PREInfo[[#This Row],['# Lamps/ Fixture '[P']]]>0,Table_PREInfo[[#This Row],['# Lamps/ Fixture '[P']]] & \"L - \" & Table_PREInfo[[#This Row],[Fixture/ Lamp Wattage '[P']]] & \"W\" & IF(Table_PREInfo[[#This Row],[Ballast/ Driver '[P']]]<>\"\",\" - \" & Table_PREInfo[[#This Row],[Ballast/ Driver '[P']]],\"\"),Table_PREInfo[[#This Row],[Fixture Wattage '[P']]] & \"W\"),\"]\",\n  IF(AND(Table_PREInfo[[#This Row],[Controls '[P']]]<>\"\",Table_PREInfo[[#This Row],[Controls '[P']]]<>\"No Controls\"),\" - \" & Table_PREInfo[[#This Row],[Controls '[P']]],\"\")\n  ),\n\"\"),\"\")","v":""}]
[{"$f":"IF($A32=\"Line\",1,MAX($A$4:$A32)+1)","v":29},{"$f":"COUNTA(Table_PREInfo[[#This Row],[Schedule]:[Notes]])>9","v":false},{"$f":"IF(Table_PREInfo[[#This Row],[IsActive]],Table_PREInfo[[#This Row],[Line]],\"\")","v":""},null,null,null,null,null,null,null,{"$f":"IF(ISNUMBER(FIND(\"LED Tube\",Table_PREInfo[[#This Row],[Fixture Technology '[E']]],1)),\"[Enter]\",\"\")","v":""},null,{"$f":"IFERROR(\nIFERROR(OFFSET(Table_TypWattage[[#Headers],[Technology]],MATCH(Table_PREInfo[[#This Row],[Fixture Technology '[E']]] & IF(Table_PREInfo[[#This Row],[Ballast/ Driver '[E']]]<>\"\",\" - \" & Table_PREInfo[[#This Row],[Ballast/ Driver '[E']]],\"\"),Table_TypWattage[Technology],0)+MATCH(Table_PREInfo[[#This Row],[Fixture/ Lamp Wattage '[E']]],INDIRECT(SUBSTITUTE(SUBSTITUTE(Table_PREInfo[[#This Row],[Fixture Technology '[E']]],\" \",\"_\"),\"-\",\"_\")),0)-1,MATCH(Table_PREInfo[[#This Row],['# Lamps/ Fixture '[E']]],'Measure Tables'!$Q$2:$V$2,0)+1),IF(Table_PREInfo[[#This Row],[Schedule]]<>\"\",IF(AND(Table_PREInfo[[#This Row],['# Lamps/ Fixture '[E']]]<>\"\",Table_PREInfo[[#This Row],['# Lamps/ Fixture '[E']]]>0,Table_PREInfo[[#This Row],[Fixture/ Lamp Wattage '[E']]]>0),Table_PREInfo[[#This Row],['# Lamps/ Fixture '[E']]]*Table_PREInfo[[#This Row],[Fixture/ Lamp Wattage '[E']]],Table_PREInfo[[#This Row],[Fixture/ Lamp Wattage '[E']]]),\"\")),\n\"\")","v":""},null,null,{"$f":"IFERROR(IF(Table_PREInfo[[#This Row],[Interior/ Exterior]]<>\"\",\n  CONCATENATE(\n  Table_PREInfo[[#This Row],[Interior/ Exterior]],\": \" &\n  Table_PREInfo[[#This Row],[Fixture Technology '[E']]],\n  \" - \",Table_PREInfo[[#This Row],[Fixture Type '[E']]],\" [\",\n  IF(Table_PREInfo[[#This Row],['# Lamps/ Fixture '[E']]]>0,Table_PREInfo[[#This Row],['# Lamps/ Fixture '[E']]] & \"L - \" & Table_PREInfo[[#This Row],[Fixture/ Lamp Wattage '[E']]] & \"W\" & IF(Table_PREInfo[[#This Row],[Ballast/ Driver '[E']]]<>\"\",\" - \" & Table_PREInfo[[#This Row],[Ballast/ Driver '[E']]],\"\"),Table_PREInfo[[#This Row],[Fixture Wattage '[E']]] & \"W\"),\"]\",\n  IF(AND(Table_PREInfo[[#This Row],[Controls '[E']]]<>\"\",Table_PREInfo[[#This Row],[Controls '[E']]]<>\"No Controls\"),\" - \" & Table_PREInfo[[#This Row],[Controls '[E']]],\"\")\n  ),\n\"\"),\"\")","v":""},null,{"$f":"IF(Table_PREInfo[[#This Row],[Fixture Qty '[E']]]<>0,Table_PREInfo[[#This Row],[Fixture Qty '[E']]],\"\")","v":""},null,null,{"$f":"IF(ISNUMBER(FIND(\"LED Tube\",Table_PREInfo[[#This Row],[Fixture Technology '[P']]],1)),\"[Enter]\",\"\")","v":""},null,{"$f":"IFERROR(\nIFERROR(OFFSET(Table_TypWattage[[#Headers],[Technology]],MATCH(Table_PREInfo[[#This Row],[Fixture Technology '[P']]],Table_TypWattage[Technology],0)+MATCH(Table_PREInfo[[#This Row],[Fixture/ Lamp Wattage '[P']]],INDIRECT(SUBSTITUTE(SUBSTITUTE(Table_PREInfo[[#This Row],[Fixture Technology '[P']]],\" \",\"_\"),\"-\",\"_\")),0)-1,MATCH(Table_PREInfo[[#This Row],['# Lamps/ Fixture '[P']]],'Measure Tables'!$Q$2:$V$2,0)+1),IF(Table_PREInfo[[#This Row],[Schedule]]<>\"\",IF(AND(,Table_PREInfo[[#This Row],['# Lamps/ Fixture '[P']]]<>\"\",Table_PREInfo[[#This Row],['# Lamps/ Fixture '[P']]]>0,Table_PREInfo[[#This Row],[Fixture/ Lamp Wattage '[P']]]>0),Table_PREInfo[[#This Row],['# Lamps/ Fixture '[P']]]*Table_PREInfo[[#This Row],[Fixture/ Lamp Wattage '[P']]],Table_PREInfo[[#This Row],[Fixture/ Lamp Wattage '[P']]]),\"\")),\n\"\")","v":""},{"$f":"IF(Table_PREInfo[[#This Row],[Fixture Type '[E']]]<>\"\",Table_PREInfo[[#This Row],[Fixture Type '[E']]],\"\")","v":""},{"$f":"IF(Table_PREInfo[[#This Row],[Controls '[E']]]<>\"\",Table_PREInfo[[#This Row],[Controls '[E']]],\"\")","v":""},{"$f":"IFERROR(IF(Table_PREInfo[[#This Row],[Interior/ Exterior]]<>\"\",\n  CONCATENATE(\n  Table_PREInfo[[#This Row],[Fixture Technology '[P']]],\n  \" - \",Table_PREInfo[[#This Row],[Fixture Type '[P']]],\" [\",\n  IF(Table_PREInfo[[#This Row],['# Lamps/ Fixture '[P']]]>0,Table_PREInfo[[#This Row],['# Lamps/ Fixture '[P']]] & \"L - \" & Table_PREInfo[[#This Row],[Fixture/ Lamp Wattage '[P']]] & \"W\" & IF(Table_PREInfo[[#This Row],[Ballast/ Driver '[P']]]<>\"\",\" - \" & Table_PREInfo[[#This Row],[Ballast/ Driver '[P']]],\"\"),Table_PREInfo[[#This Row],[Fixture Wattage '[P']]] & \"W\"),\"]\",\n  IF(AND(Table_PREInfo[[#This Row],[Controls '[P']]]<>\"\",Table_PREInfo[[#This Row],[Controls '[P']]]<>\"No Controls\"),\" - \" & Table_PREInfo[[#This Row],[Controls '[P']]],\"\")\n  ),\n\"\"),\"\")","v":""}]
[{"$f":"IF($A33=\"Line\",1,MAX($A$4:$A33)+1)","v":30},{"$f":"COUNTA(Table_PREInfo[[#This Row],[Schedule]:[Notes]])>9","v":false},{"$f":"IF(Table_PREInfo[[#This Row],[IsActive]],Table_PREInfo[[#This Row],[Line]],\"\")","v":""},null,null,null,null,null,null,null,{"$f":"IF(ISNUMBER(FIND(\"LED Tube\",Table_PREInfo[[#This Row],[Fixture Technology '[E']]],1)),\"[Enter]\",\"\")","v":""},null,{"$f":"IFERROR(\nIFERROR(OFFSET(Table_TypWattage[[#Headers],[Technology]],MATCH(Table_PREInfo[[#This Row],[Fixture Technology '[E']]] & IF(Table_PREInfo[[#This Row],[Ballast/ Driver '[E']]]<>\"\",\" - \" & Table_PREInfo[[#This Row],[Ballast/ Driver '[E']]],\"\"),Table_TypWattage[Technology],0)+MATCH(Table_PREInfo[[#This Row],[Fixture/ Lamp Wattage '[E']]],INDIRECT(SUBSTITUTE(SUBSTITUTE(Table_PREInfo[[#This Row],[Fixture Technology '[E']]],\" \",\"_\"),\"-\",\"_\")),0)-1,MATCH(Table_PREInfo[[#This Row],['# Lamps/ Fixture '[E']]],'Measure Tables'!$Q$2:$V$2,0)+1),IF(Table_PREInfo[[#This Row],[Schedule]]<>\"\",IF(AND(Table_PREInfo[[#This Row],['# Lamps/ Fixture '[E']]]<>\"\",Table_PREInfo[[#This Row],['# Lamps/ Fixture '[E']]]>0,Table_PREInfo[[#This Row],[Fixture/ Lamp Wattage '[E']]]>0),Table_PREInfo[[#This Row],['# Lamps/ Fixture '[E']]]*Table_PREInfo[[#This Row],[Fixture/ Lamp Wattage '[E']]],Table_PREInfo[[#This Row],[Fixture/ Lamp Wattage '[E']]]),\"\")),\n\"\")","v":""},null,null,{"$f":"IFERROR(IF(Table_PREInfo[[#This Row],[Interior/ Exterior]]<>\"\",\n  CONCATENATE(\n  Table_PREInfo[[#This Row],[Interior/ Exterior]],\": \" &\n  Table_PREInfo[[#This Row],[Fixture Technology '[E']]],\n  \" - \",Table_PREInfo[[#This Row],[Fixture Type '[E']]],\" [\",\n  IF(Table_PREInfo[[#This Row],['# Lamps/ Fixture '[E']]]>0,Table_PREInfo[[#This Row],['# Lamps/ Fixture '[E']]] & \"L - \" & Table_PREInfo[[#This Row],[Fixture/ Lamp Wattage '[E']]] & \"W\" & IF(Table_PREInfo[[#This Row],[Ballast/ Driver '[E']]]<>\"\",\" - \" & Table_PREInfo[[#This Row],[Ballast/ Driver '[E']]],\"\"),Table_PREInfo[[#This Row],[Fixture Wattage '[E']]] & \"W\"),\"]\",\n  IF(AND(Table_PREInfo[[#This Row],[Controls '[E']]]<>\"\",Table_PREInfo[[#This Row],[Controls '[E']]]<>\"No Controls\"),\" - \" & Table_PREInfo[[#This Row],[Controls '[E']]],\"\")\n  ),\n\"\"),\"\")","v":""},null,{"$f":"IF(Table_PREInfo[[#This Row],[Fixture Qty '[E']]]<>0,Table_PREInfo[[#This Row],[Fixture Qty '[E']]],\"\")","v":""},null,null,{"$f":"IF(ISNUMBER(FIND(\"LED Tube\",Table_PREInfo[[#This Row],[Fixture Technology '[P']]],1)),\"[Enter]\",\"\")","v":""},null,{"$f":"IFERROR(\nIFERROR(OFFSET(Table_TypWattage[[#Headers],[Technology]],MATCH(Table_PREInfo[[#This Row],[Fixture Technology '[P']]],Table_TypWattage[Technology],0)+MATCH(Table_PREInfo[[#This Row],[Fixture/ Lamp Wattage '[P']]],INDIRECT(SUBSTITUTE(SUBSTITUTE(Table_PREInfo[[#This Row],[Fixture Technology '[P']]],\" \",\"_\"),\"-\",\"_\")),0)-1,MATCH(Table_PREInfo[[#This Row],['# Lamps/ Fixture '[P']]],'Measure Tables'!$Q$2:$V$2,0)+1),IF(Table_PREInfo[[#This Row],[Schedule]]<>\"\",IF(AND(,Table_PREInfo[[#This Row],['# Lamps/ Fixture '[P']]]<>\"\",Table_PREInfo[[#This Row],['# Lamps/ Fixture '[P']]]>0,Table_PREInfo[[#This Row],[Fixture/ Lamp Wattage '[P']]]>0),Table_PREInfo[[#This Row],['# Lamps/ Fixture '[P']]]*Table_PREInfo[[#This Row],[Fixture/ Lamp Wattage '[P']]],Table_PREInfo[[#This Row],[Fixture/ Lamp Wattage '[P']]]),\"\")),\n\"\")","v":""},{"$f":"IF(Table_PREInfo[[#This Row],[Fixture Type '[E']]]<>\"\",Table_PREInfo[[#This Row],[Fixture Type '[E']]],\"\")","v":""},{"$f":"IF(Table_PREInfo[[#This Row],[Controls '[E']]]<>\"\",Table_PREInfo[[#This Row],[Controls '[E']]],\"\")","v":""},{"$f":"IFERROR(IF(Table_PREInfo[[#This Row],[Interior/ Exterior]]<>\"\",\n  CONCATENATE(\n  Table_PREInfo[[#This Row],[Fixture Technology '[P']]],\n  \" - \",Table_PREInfo[[#This Row],[Fixture Type '[P']]],\" [\",\n  IF(Table_PREInfo[[#This Row],['# Lamps/ Fixture '[P']]]>0,Table_PREInfo[[#This Row],['# Lamps/ Fixture '[P']]] & \"L - \" & Table_PREInfo[[#This Row],[Fixture/ Lamp Wattage '[P']]] & \"W\" & IF(Table_PREInfo[[#This Row],[Ballast/ Driver '[P']]]<>\"\",\" - \" & Table_PREInfo[[#This Row],[Ballast/ Driver '[P']]],\"\"),Table_PREInfo[[#This Row],[Fixture Wattage '[P']]] & \"W\"),\"]\",\n  IF(AND(Table_PREInfo[[#This Row],[Controls '[P']]]<>\"\",Table_PREInfo[[#This Row],[Controls '[P']]]<>\"No Controls\"),\" - \" & Table_PREInfo[[#This Row],[Controls '[P']]],\"\")\n  ),\n\"\"),\"\")","v":""}]
[{"$f":"IF($A34=\"Line\",1,MAX($A$4:$A34)+1)","v":31},{"$f":"COUNTA(Table_PREInfo[[#This Row],[Schedule]:[Notes]])>9","v":false},{"$f":"IF(Table_PREInfo[[#This Row],[IsActive]],Table_PREInfo[[#This Row],[Line]],\"\")","v":""},null,null,null,null,null,null,null,{"$f":"IF(ISNUMBER(FIND(\"LED Tube\",Table_PREInfo[[#This Row],[Fixture Technology '[E']]],1)),\"[Enter]\",\"\")","v":""},null,{"$f":"IFERROR(\nIFERROR(OFFSET(Table_TypWattage[[#Headers],[Technology]],MATCH(Table_PREInfo[[#This Row],[Fixture Technology '[E']]] & IF(Table_PREInfo[[#This Row],[Ballast/ Driver '[E']]]<>\"\",\" - \" & Table_PREInfo[[#This Row],[Ballast/ Driver '[E']]],\"\"),Table_TypWattage[Technology],0)+MATCH(Table_PREInfo[[#This Row],[Fixture/ Lamp Wattage '[E']]],INDIRECT(SUBSTITUTE(SUBSTITUTE(Table_PREInfo[[#This Row],[Fixture Technology '[E']]],\" \",\"_\"),\"-\",\"_\")),0)-1,MATCH(Table_PREInfo[[#This Row],['# Lamps/ Fixture '[E']]],'Measure Tables'!$Q$2:$V$2,0)+1),IF(Table_PREInfo[[#This Row],[Schedule]]<>\"\",IF(AND(Table_PREInfo[[#This Row],['# Lamps/ Fixture '[E']]]<>\"\",Table_PREInfo[[#This Row],['# Lamps/ Fixture '[E']]]>0,Table_PREInfo[[#This Row],[Fixture/ Lamp Wattage '[E']]]>0),Table_PREInfo[[#This Row],['# Lamps/ Fixture '[E']]]*Table_PREInfo[[#This Row],[Fixture/ Lamp Wattage '[E']]],Table_PREInfo[[#This Row],[Fixture/ Lamp Wattage '[E']]]),\"\")),\n\"\")","v":""},null,null,{"$f":"IFERROR(IF(Table_PREInfo[[#This Row],[Interior/ Exterior]]<>\"\",\n  CONCATENATE(\n  Table_PREInfo[[#This Row],[Interior/ Exterior]],\": \" &\n  Table_PREInfo[[#This Row],[Fixture Technology '[E']]],\n  \" - \",Table_PREInfo[[#This Row],[Fixture Type '[E']]],\" [\",\n  IF(Table_PREInfo[[#This Row],['# Lamps/ Fixture '[E']]]>0,Table_PREInfo[[#This Row],['# Lamps/ Fixture '[E']]] & \"L - \" & Table_PREInfo[[#This Row],[Fixture/ Lamp Wattage '[E']]] & \"W\" & IF(Table_PREInfo[[#This Row],[Ballast/ Driver '[E']]]<>\"\",\" - \" & Table_PREInfo[[#This Row],[Ballast/ Driver '[E']]],\"\"),Table_PREInfo[[#This Row],[Fixture Wattage '[E']]] & \"W\"),\"]\",\n  IF(AND(Table_PREInfo[[#This Row],[Controls '[E']]]<>\"\",Table_PREInfo[[#This Row],[Controls '[E']]]<>\"No Controls\"),\" - \" & Table_PREInfo[[#This Row],[Controls '[E']]],\"\")\n  ),\n\"\"),\"\")","v":""},null,{"$f":"IF(Table_PREInfo[[#This Row],[Fixture Qty '[E']]]<>0,Table_PREInfo[[#This Row],[Fixture Qty '[E']]],\"\")","v":""},null,null,{"$f":"IF(ISNUMBER(FIND(\"LED Tube\",Table_PREInfo[[#This Row],[Fixture Technology '[P']]],1)),\"[Enter]\",\"\")","v":""},null,{"$f":"IFERROR(\nIFERROR(OFFSET(Table_TypWattage[[#Headers],[Technology]],MATCH(Table_PREInfo[[#This Row],[Fixture Technology '[P']]],Table_TypWattage[Technology],0)+MATCH(Table_PREInfo[[#This Row],[Fixture/ Lamp Wattage '[P']]],INDIRECT(SUBSTITUTE(SUBSTITUTE(Table_PREInfo[[#This Row],[Fixture Technology '[P']]],\" \",\"_\"),\"-\",\"_\")),0)-1,MATCH(Table_PREInfo[[#This Row],['# Lamps/ Fixture '[P']]],'Measure Tables'!$Q$2:$V$2,0)+1),IF(Table_PREInfo[[#This Row],[Schedule]]<>\"\",IF(AND(,Table_PREInfo[[#This Row],['# Lamps/ Fixture '[P']]]<>\"\",Table_PREInfo[[#This Row],['# Lamps/ Fixture '[P']]]>0,Table_PREInfo[[#This Row],[Fixture/ Lamp Wattage '[P']]]>0),Table_PREInfo[[#This Row],['# Lamps/ Fixture '[P']]]*Table_PREInfo[[#This Row],[Fixture/ Lamp Wattage '[P']]],Table_PREInfo[[#This Row],[Fixture/ Lamp Wattage '[P']]]),\"\")),\n\"\")","v":""},{"$f":"IF(Table_PREInfo[[#This Row],[Fixture Type '[E']]]<>\"\",Table_PREInfo[[#This Row],[Fixture Type '[E']]],\"\")","v":""},{"$f":"IF(Table_PREInfo[[#This Row],[Controls '[E']]]<>\"\",Table_PREInfo[[#This Row],[Controls '[E']]],\"\")","v":""},{"$f":"IFERROR(IF(Table_PREInfo[[#This Row],[Interior/ Exterior]]<>\"\",\n  CONCATENATE(\n  Table_PREInfo[[#This Row],[Fixture Technology '[P']]],\n  \" - \",Table_PREInfo[[#This Row],[Fixture Type '[P']]],\" [\",\n  IF(Table_PREInfo[[#This Row],['# Lamps/ Fixture '[P']]]>0,Table_PREInfo[[#This Row],['# Lamps/ Fixture '[P']]] & \"L - \" & Table_PREInfo[[#This Row],[Fixture/ Lamp Wattage '[P']]] & \"W\" & IF(Table_PREInfo[[#This Row],[Ballast/ Driver '[P']]]<>\"\",\" - \" & Table_PREInfo[[#This Row],[Ballast/ Driver '[P']]],\"\"),Table_PREInfo[[#This Row],[Fixture Wattage '[P']]] & \"W\"),\"]\",\n  IF(AND(Table_PREInfo[[#This Row],[Controls '[P']]]<>\"\",Table_PREInfo[[#This Row],[Controls '[P']]]<>\"No Controls\"),\" - \" & Table_PREInfo[[#This Row],[Controls '[P']]],\"\")\n  ),\n\"\"),\"\")","v":""}]
[{"$f":"IF($A35=\"Line\",1,MAX($A$4:$A35)+1)","v":32},{"$f":"COUNTA(Table_PREInfo[[#This Row],[Schedule]:[Notes]])>9","v":false},{"$f":"IF(Table_PREInfo[[#This Row],[IsActive]],Table_PREInfo[[#This Row],[Line]],\"\")","v":""},null,null,null,null,null,null,null,{"$f":"IF(ISNUMBER(FIND(\"LED Tube\",Table_PREInfo[[#This Row],[Fixture Technology '[E']]],1)),\"[Enter]\",\"\")","v":""},null,{"$f":"IFERROR(\nIFERROR(OFFSET(Table_TypWattage[[#Headers],[Technology]],MATCH(Table_PREInfo[[#This Row],[Fixture Technology '[E']]] & IF(Table_PREInfo[[#This Row],[Ballast/ Driver '[E']]]<>\"\",\" - \" & Table_PREInfo[[#This Row],[Ballast/ Driver '[E']]],\"\"),Table_TypWattage[Technology],0)+MATCH(Table_PREInfo[[#This Row],[Fixture/ Lamp Wattage '[E']]],INDIRECT(SUBSTITUTE(SUBSTITUTE(Table_PREInfo[[#This Row],[Fixture Technology '[E']]],\" \",\"_\"),\"-\",\"_\")),0)-1,MATCH(Table_PREInfo[[#This Row],['# Lamps/ Fixture '[E']]],'Measure Tables'!$Q$2:$V$2,0)+1),IF(Table_PREInfo[[#This Row],[Schedule]]<>\"\",IF(AND(Table_PREInfo[[#This Row],['# Lamps/ Fixture '[E']]]<>\"\",Table_PREInfo[[#This Row],['# Lamps/ Fixture '[E']]]>0,Table_PREInfo[[#This Row],[Fixture/ Lamp Wattage '[E']]]>0),Table_PREInfo[[#This Row],['# Lamps/ Fixture '[E']]]*Table_PREInfo[[#This Row],[Fixture/ Lamp Wattage '[E']]],Table_PREInfo[[#This Row],[Fixture/ Lamp Wattage '[E']]]),\"\")),\n\"\")","v":""},null,null,{"$f":"IFERROR(IF(Table_PREInfo[[#This Row],[Interior/ Exterior]]<>\"\",\n  CONCATENATE(\n  Table_PREInfo[[#This Row],[Interior/ Exterior]],\": \" &\n  Table_PREInfo[[#This Row],[Fixture Technology '[E']]],\n  \" - \",Table_PREInfo[[#This Row],[Fixture Type '[E']]],\" [\",\n  IF(Table_PREInfo[[#This Row],['# Lamps/ Fixture '[E']]]>0,Table_PREInfo[[#This Row],['# Lamps/ Fixture '[E']]] & \"L - \" & Table_PREInfo[[#This Row],[Fixture/ Lamp Wattage '[E']]] & \"W\" & IF(Table_PREInfo[[#This Row],[Ballast/ Driver '[E']]]<>\"\",\" - \" & Table_PREInfo[[#This Row],[Ballast/ Driver '[E']]],\"\"),Table_PREInfo[[#This Row],[Fixture Wattage '[E']]] & \"W\"),\"]\",\n  IF(AND(Table_PREInfo[[#This Row],[Controls '[E']]]<>\"\",Table_PREInfo[[#This Row],[Controls '[E']]]<>\"No Controls\"),\" - \" & Table_PREInfo[[#This Row],[Controls '[E']]],\"\")\n  ),\n\"\"),\"\")","v":""},null,{"$f":"IF(Table_PREInfo[[#This Row],[Fixture Qty '[E']]]<>0,Table_PREInfo[[#This Row],[Fixture Qty '[E']]],\"\")","v":""},null,null,{"$f":"IF(ISNUMBER(FIND(\"LED Tube\",Table_PREInfo[[#This Row],[Fixture Technology '[P']]],1)),\"[Enter]\",\"\")","v":""},null,{"$f":"IFERROR(\nIFERROR(OFFSET(Table_TypWattage[[#Headers],[Technology]],MATCH(Table_PREInfo[[#This Row],[Fixture Technology '[P']]],Table_TypWattage[Technology],0)+MATCH(Table_PREInfo[[#This Row],[Fixture/ Lamp Wattage '[P']]],INDIRECT(SUBSTITUTE(SUBSTITUTE(Table_PREInfo[[#This Row],[Fixture Technology '[P']]],\" \",\"_\"),\"-\",\"_\")),0)-1,MATCH(Table_PREInfo[[#This Row],['# Lamps/ Fixture '[P']]],'Measure Tables'!$Q$2:$V$2,0)+1),IF(Table_PREInfo[[#This Row],[Schedule]]<>\"\",IF(AND(,Table_PREInfo[[#This Row],['# Lamps/ Fixture '[P']]]<>\"\",Table_PREInfo[[#This Row],['# Lamps/ Fixture '[P']]]>0,Table_PREInfo[[#This Row],[Fixture/ Lamp Wattage '[P']]]>0),Table_PREInfo[[#This Row],['# Lamps/ Fixture '[P']]]*Table_PREInfo[[#This Row],[Fixture/ Lamp Wattage '[P']]],Table_PREInfo[[#This Row],[Fixture/ Lamp Wattage '[P']]]),\"\")),\n\"\")","v":""},{"$f":"IF(Table_PREInfo[[#This Row],[Fixture Type '[E']]]<>\"\",Table_PREInfo[[#This Row],[Fixture Type '[E']]],\"\")","v":""},{"$f":"IF(Table_PREInfo[[#This Row],[Controls '[E']]]<>\"\",Table_PREInfo[[#This Row],[Controls '[E']]],\"\")","v":""},{"$f":"IFERROR(IF(Table_PREInfo[[#This Row],[Interior/ Exterior]]<>\"\",\n  CONCATENATE(\n  Table_PREInfo[[#This Row],[Fixture Technology '[P']]],\n  \" - \",Table_PREInfo[[#This Row],[Fixture Type '[P']]],\" [\",\n  IF(Table_PREInfo[[#This Row],['# Lamps/ Fixture '[P']]]>0,Table_PREInfo[[#This Row],['# Lamps/ Fixture '[P']]] & \"L - \" & Table_PREInfo[[#This Row],[Fixture/ Lamp Wattage '[P']]] & \"W\" & IF(Table_PREInfo[[#This Row],[Ballast/ Driver '[P']]]<>\"\",\" - \" & Table_PREInfo[[#This Row],[Ballast/ Driver '[P']]],\"\"),Table_PREInfo[[#This Row],[Fixture Wattage '[P']]] & \"W\"),\"]\",\n  IF(AND(Table_PREInfo[[#This Row],[Controls '[P']]]<>\"\",Table_PREInfo[[#This Row],[Controls '[P']]]<>\"No Controls\"),\" - \" & Table_PREInfo[[#This Row],[Controls '[P']]],\"\")\n  ),\n\"\"),\"\")","v":""}]
[{"$f":"IF($A36=\"Line\",1,MAX($A$4:$A36)+1)","v":33},{"$f":"COUNTA(Table_PREInfo[[#This Row],[Schedule]:[Notes]])>9","v":false},{"$f":"IF(Table_PREInfo[[#This Row],[IsActive]],Table_PREInfo[[#This Row],[Line]],\"\")","v":""},null,null,null,null,null,null,null,{"$f":"IF(ISNUMBER(FIND(\"LED Tube\",Table_PREInfo[[#This Row],[Fixture Technology '[E']]],1)),\"[Enter]\",\"\")","v":""},null,{"$f":"IFERROR(\nIFERROR(OFFSET(Table_TypWattage[[#Headers],[Technology]],MATCH(Table_PREInfo[[#This Row],[Fixture Technology '[E']]] & IF(Table_PREInfo[[#This Row],[Ballast/ Driver '[E']]]<>\"\",\" - \" & Table_PREInfo[[#This Row],[Ballast/ Driver '[E']]],\"\"),Table_TypWattage[Technology],0)+MATCH(Table_PREInfo[[#This Row],[Fixture/ Lamp Wattage '[E']]],INDIRECT(SUBSTITUTE(SUBSTITUTE(Table_PREInfo[[#This Row],[Fixture Technology '[E']]],\" \",\"_\"),\"-\",\"_\")),0)-1,MATCH(Table_PREInfo[[#This Row],['# Lamps/ Fixture '[E']]],'Measure Tables'!$Q$2:$V$2,0)+1),IF(Table_PREInfo[[#This Row],[Schedule]]<>\"\",IF(AND(Table_PREInfo[[#This Row],['# Lamps/ Fixture '[E']]]<>\"\",Table_PREInfo[[#This Row],['# Lamps/ Fixture '[E']]]>0,Table_PREInfo[[#This Row],[Fixture/ Lamp Wattage '[E']]]>0),Table_PREInfo[[#This Row],['# Lamps/ Fixture '[E']]]*Table_PREInfo[[#This Row],[Fixture/ Lamp Wattage '[E']]],Table_PREInfo[[#This Row],[Fixture/ Lamp Wattage '[E']]]),\"\")),\n\"\")","v":""},null,null,{"$f":"IFERROR(IF(Table_PREInfo[[#This Row],[Interior/ Exterior]]<>\"\",\n  CONCATENATE(\n  Table_PREInfo[[#This Row],[Interior/ Exterior]],\": \" &\n  Table_PREInfo[[#This Row],[Fixture Technology '[E']]],\n  \" - \",Table_PREInfo[[#This Row],[Fixture Type '[E']]],\" [\",\n  IF(Table_PREInfo[[#This Row],['# Lamps/ Fixture '[E']]]>0,Table_PREInfo[[#This Row],['# Lamps/ Fixture '[E']]] & \"L - \" & Table_PREInfo[[#This Row],[Fixture/ Lamp Wattage '[E']]] & \"W\" & IF(Table_PREInfo[[#This Row],[Ballast/ Driver '[E']]]<>\"\",\" - \" & Table_PREInfo[[#This Row],[Ballast/ Driver '[E']]],\"\"),Table_PREInfo[[#This Row],[Fixture Wattage '[E']]] & \"W\"),\"]\",\n  IF(AND(Table_PREInfo[[#This Row],[Controls '[E']]]<>\"\",Table_PREInfo[[#This Row],[Controls '[E']]]<>\"No Controls\"),\" - \" & Table_PREInfo[[#This Row],[Controls '[E']]],\"\")\n  ),\n\"\"),\"\")","v":""},null,{"$f":"IF(Table_PREInfo[[#This Row],[Fixture Qty '[E']]]<>0,Table_PREInfo[[#This Row],[Fixture Qty '[E']]],\"\")","v":""},null,null,{"$f":"IF(ISNUMBER(FIND(\"LED Tube\",Table_PREInfo[[#This Row],[Fixture Technology '[P']]],1)),\"[Enter]\",\"\")","v":""},null,{"$f":"IFERROR(\nIFERROR(OFFSET(Table_TypWattage[[#Headers],[Technology]],MATCH(Table_PREInfo[[#This Row],[Fixture Technology '[P']]],Table_TypWattage[Technology],0)+MATCH(Table_PREInfo[[#This Row],[Fixture/ Lamp Wattage '[P']]],INDIRECT(SUBSTITUTE(SUBSTITUTE(Table_PREInfo[[#This Row],[Fixture Technology '[P']]],\" \",\"_\"),\"-\",\"_\")),0)-1,MATCH(Table_PREInfo[[#This Row],['# Lamps/ Fixture '[P']]],'Measure Tables'!$Q$2:$V$2,0)+1),IF(Table_PREInfo[[#This Row],[Schedule]]<>\"\",IF(AND(,Table_PREInfo[[#This Row],['# Lamps/ Fixture '[P']]]<>\"\",Table_PREInfo[[#This Row],['# Lamps/ Fixture '[P']]]>0,Table_PREInfo[[#This Row],[Fixture/ Lamp Wattage '[P']]]>0),Table_PREInfo[[#This Row],['# Lamps/ Fixture '[P']]]*Table_PREInfo[[#This Row],[Fixture/ Lamp Wattage '[P']]],Table_PREInfo[[#This Row],[Fixture/ Lamp Wattage '[P']]]),\"\")),\n\"\")","v":""},{"$f":"IF(Table_PREInfo[[#This Row],[Fixture Type '[E']]]<>\"\",Table_PREInfo[[#This Row],[Fixture Type '[E']]],\"\")","v":""},{"$f":"IF(Table_PREInfo[[#This Row],[Controls '[E']]]<>\"\",Table_PREInfo[[#This Row],[Controls '[E']]],\"\")","v":""},{"$f":"IFERROR(IF(Table_PREInfo[[#This Row],[Interior/ Exterior]]<>\"\",\n  CONCATENATE(\n  Table_PREInfo[[#This Row],[Fixture Technology '[P']]],\n  \" - \",Table_PREInfo[[#This Row],[Fixture Type '[P']]],\" [\",\n  IF(Table_PREInfo[[#This Row],['# Lamps/ Fixture '[P']]]>0,Table_PREInfo[[#This Row],['# Lamps/ Fixture '[P']]] & \"L - \" & Table_PREInfo[[#This Row],[Fixture/ Lamp Wattage '[P']]] & \"W\" & IF(Table_PREInfo[[#This Row],[Ballast/ Driver '[P']]]<>\"\",\" - \" & Table_PREInfo[[#This Row],[Ballast/ Driver '[P']]],\"\"),Table_PREInfo[[#This Row],[Fixture Wattage '[P']]] & \"W\"),\"]\",\n  IF(AND(Table_PREInfo[[#This Row],[Controls '[P']]]<>\"\",Table_PREInfo[[#This Row],[Controls '[P']]]<>\"No Controls\"),\" - \" & Table_PREInfo[[#This Row],[Controls '[P']]],\"\")\n  ),\n\"\"),\"\")","v":""}]
[{"$f":"IF($A37=\"Line\",1,MAX($A$4:$A37)+1)","v":34},{"$f":"COUNTA(Table_PREInfo[[#This Row],[Schedule]:[Notes]])>9","v":false},{"$f":"IF(Table_PREInfo[[#This Row],[IsActive]],Table_PREInfo[[#This Row],[Line]],\"\")","v":""},null,null,null,null,null,null,null,{"$f":"IF(ISNUMBER(FIND(\"LED Tube\",Table_PREInfo[[#This Row],[Fixture Technology '[E']]],1)),\"[Enter]\",\"\")","v":""},null,{"$f":"IFERROR(\nIFERROR(OFFSET(Table_TypWattage[[#Headers],[Technology]],MATCH(Table_PREInfo[[#This Row],[Fixture Technology '[E']]] & IF(Table_PREInfo[[#This Row],[Ballast/ Driver '[E']]]<>\"\",\" - \" & Table_PREInfo[[#This Row],[Ballast/ Driver '[E']]],\"\"),Table_TypWattage[Technology],0)+MATCH(Table_PREInfo[[#This Row],[Fixture/ Lamp Wattage '[E']]],INDIRECT(SUBSTITUTE(SUBSTITUTE(Table_PREInfo[[#This Row],[Fixture Technology '[E']]],\" \",\"_\"),\"-\",\"_\")),0)-1,MATCH(Table_PREInfo[[#This Row],['# Lamps/ Fixture '[E']]],'Measure Tables'!$Q$2:$V$2,0)+1),IF(Table_PREInfo[[#This Row],[Schedule]]<>\"\",IF(AND(Table_PREInfo[[#This Row],['# Lamps/ Fixture '[E']]]<>\"\",Table_PREInfo[[#This Row],['# Lamps/ Fixture '[E']]]>0,Table_PREInfo[[#This Row],[Fixture/ Lamp Wattage '[E']]]>0),Table_PREInfo[[#This Row],['# Lamps/ Fixture '[E']]]*Table_PREInfo[[#This Row],[Fixture/ Lamp Wattage '[E']]],Table_PREInfo[[#This Row],[Fixture/ Lamp Wattage '[E']]]),\"\")),\n\"\")","v":""},null,null,{"$f":"IFERROR(IF(Table_PREInfo[[#This Row],[Interior/ Exterior]]<>\"\",\n  CONCATENATE(\n  Table_PREInfo[[#This Row],[Interior/ Exterior]],\": \" &\n  Table_PREInfo[[#This Row],[Fixture Technology '[E']]],\n  \" - \",Table_PREInfo[[#This Row],[Fixture Type '[E']]],\" [\",\n  IF(Table_PREInfo[[#This Row],['# Lamps/ Fixture '[E']]]>0,Table_PREInfo[[#This Row],['# Lamps/ Fixture '[E']]] & \"L - \" & Table_PREInfo[[#This Row],[Fixture/ Lamp Wattage '[E']]] & \"W\" & IF(Table_PREInfo[[#This Row],[Ballast/ Driver '[E']]]<>\"\",\" - \" & Table_PREInfo[[#This Row],[Ballast/ Driver '[E']]],\"\"),Table_PREInfo[[#This Row],[Fixture Wattage '[E']]] & \"W\"),\"]\",\n  IF(AND(Table_PREInfo[[#This Row],[Controls '[E']]]<>\"\",Table_PREInfo[[#This Row],[Controls '[E']]]<>\"No Controls\"),\" - \" & Table_PREInfo[[#This Row],[Controls '[E']]],\"\")\n  ),\n\"\"),\"\")","v":""},null,{"$f":"IF(Table_PREInfo[[#This Row],[Fixture Qty '[E']]]<>0,Table_PREInfo[[#This Row],[Fixture Qty '[E']]],\"\")","v":""},null,null,{"$f":"IF(ISNUMBER(FIND(\"LED Tube\",Table_PREInfo[[#This Row],[Fixture Technology '[P']]],1)),\"[Enter]\",\"\")","v":""},null,{"$f":"IFERROR(\nIFERROR(OFFSET(Table_TypWattage[[#Headers],[Technology]],MATCH(Table_PREInfo[[#This Row],[Fixture Technology '[P']]],Table_TypWattage[Technology],0)+MATCH(Table_PREInfo[[#This Row],[Fixture/ Lamp Wattage '[P']]],INDIRECT(SUBSTITUTE(SUBSTITUTE(Table_PREInfo[[#This Row],[Fixture Technology '[P']]],\" \",\"_\"),\"-\",\"_\")),0)-1,MATCH(Table_PREInfo[[#This Row],['# Lamps/ Fixture '[P']]],'Measure Tables'!$Q$2:$V$2,0)+1),IF(Table_PREInfo[[#This Row],[Schedule]]<>\"\",IF(AND(,Table_PREInfo[[#This Row],['# Lamps/ Fixture '[P']]]<>\"\",Table_PREInfo[[#This Row],['# Lamps/ Fixture '[P']]]>0,Table_PREInfo[[#This Row],[Fixture/ Lamp Wattage '[P']]]>0),Table_PREInfo[[#This Row],['# Lamps/ Fixture '[P']]]*Table_PREInfo[[#This Row],[Fixture/ Lamp Wattage '[P']]],Table_PREInfo[[#This Row],[Fixture/ Lamp Wattage '[P']]]),\"\")),\n\"\")","v":""},{"$f":"IF(Table_PREInfo[[#This Row],[Fixture Type '[E']]]<>\"\",Table_PREInfo[[#This Row],[Fixture Type '[E']]],\"\")","v":""},{"$f":"IF(Table_PREInfo[[#This Row],[Controls '[E']]]<>\"\",Table_PREInfo[[#This Row],[Controls '[E']]],\"\")","v":""},{"$f":"IFERROR(IF(Table_PREInfo[[#This Row],[Interior/ Exterior]]<>\"\",\n  CONCATENATE(\n  Table_PREInfo[[#This Row],[Fixture Technology '[P']]],\n  \" - \",Table_PREInfo[[#This Row],[Fixture Type '[P']]],\" [\",\n  IF(Table_PREInfo[[#This Row],['# Lamps/ Fixture '[P']]]>0,Table_PREInfo[[#This Row],['# Lamps/ Fixture '[P']]] & \"L - \" & Table_PREInfo[[#This Row],[Fixture/ Lamp Wattage '[P']]] & \"W\" & IF(Table_PREInfo[[#This Row],[Ballast/ Driver '[P']]]<>\"\",\" - \" & Table_PREInfo[[#This Row],[Ballast/ Driver '[P']]],\"\"),Table_PREInfo[[#This Row],[Fixture Wattage '[P']]] & \"W\"),\"]\",\n  IF(AND(Table_PREInfo[[#This Row],[Controls '[P']]]<>\"\",Table_PREInfo[[#This Row],[Controls '[P']]]<>\"No Controls\"),\" - \" & Table_PREInfo[[#This Row],[Controls '[P']]],\"\")\n  ),\n\"\"),\"\")","v":""}]
[{"$f":"IF($A38=\"Line\",1,MAX($A$4:$A38)+1)","v":35},{"$f":"COUNTA(Table_PREInfo[[#This Row],[Schedule]:[Notes]])>9","v":false},{"$f":"IF(Table_PREInfo[[#This Row],[IsActive]],Table_PREInfo[[#This Row],[Line]],\"\")","v":""},null,null,null,null,null,null,null,{"$f":"IF(ISNUMBER(FIND(\"LED Tube\",Table_PREInfo[[#This Row],[Fixture Technology '[E']]],1)),\"[Enter]\",\"\")","v":""},null,{"$f":"IFERROR(\nIFERROR(OFFSET(Table_TypWattage[[#Headers],[Technology]],MATCH(Table_PREInfo[[#This Row],[Fixture Technology '[E']]] & IF(Table_PREInfo[[#This Row],[Ballast/ Driver '[E']]]<>\"\",\" - \" & Table_PREInfo[[#This Row],[Ballast/ Driver '[E']]],\"\"),Table_TypWattage[Technology],0)+MATCH(Table_PREInfo[[#This Row],[Fixture/ Lamp Wattage '[E']]],INDIRECT(SUBSTITUTE(SUBSTITUTE(Table_PREInfo[[#This Row],[Fixture Technology '[E']]],\" \",\"_\"),\"-\",\"_\")),0)-1,MATCH(Table_PREInfo[[#This Row],['# Lamps/ Fixture '[E']]],'Measure Tables'!$Q$2:$V$2,0)+1),IF(Table_PREInfo[[#This Row],[Schedule]]<>\"\",IF(AND(Table_PREInfo[[#This Row],['# Lamps/ Fixture '[E']]]<>\"\",Table_PREInfo[[#This Row],['# Lamps/ Fixture '[E']]]>0,Table_PREInfo[[#This Row],[Fixture/ Lamp Wattage '[E']]]>0),Table_PREInfo[[#This Row],['# Lamps/ Fixture '[E']]]*Table_PREInfo[[#This Row],[Fixture/ Lamp Wattage '[E']]],Table_PREInfo[[#This Row],[Fixture/ Lamp Wattage '[E']]]),\"\")),\n\"\")","v":""},null,null,{"$f":"IFERROR(IF(Table_PREInfo[[#This Row],[Interior/ Exterior]]<>\"\",\n  CONCATENATE(\n  Table_PREInfo[[#This Row],[Interior/ Exterior]],\": \" &\n  Table_PREInfo[[#This Row],[Fixture Technology '[E']]],\n  \" - \",Table_PREInfo[[#This Row],[Fixture Type '[E']]],\" [\",\n  IF(Table_PREInfo[[#This Row],['# Lamps/ Fixture '[E']]]>0,Table_PREInfo[[#This Row],['# Lamps/ Fixture '[E']]] & \"L - \" & Table_PREInfo[[#This Row],[Fixture/ Lamp Wattage '[E']]] & \"W\" & IF(Table_PREInfo[[#This Row],[Ballast/ Driver '[E']]]<>\"\",\" - \" & Table_PREInfo[[#This Row],[Ballast/ Driver '[E']]],\"\"),Table_PREInfo[[#This Row],[Fixture Wattage '[E']]] & \"W\"),\"]\",\n  IF(AND(Table_PREInfo[[#This Row],[Controls '[E']]]<>\"\",Table_PREInfo[[#This Row],[Controls '[E']]]<>\"No Controls\"),\" - \" & Table_PREInfo[[#This Row],[Controls '[E']]],\"\")\n  ),\n\"\"),\"\")","v":""},null,{"$f":"IF(Table_PREInfo[[#This Row],[Fixture Qty '[E']]]<>0,Table_PREInfo[[#This Row],[Fixture Qty '[E']]],\"\")","v":""},null,null,{"$f":"IF(ISNUMBER(FIND(\"LED Tube\",Table_PREInfo[[#This Row],[Fixture Technology '[P']]],1)),\"[Enter]\",\"\")","v":""},null,{"$f":"IFERROR(\nIFERROR(OFFSET(Table_TypWattage[[#Headers],[Technology]],MATCH(Table_PREInfo[[#This Row],[Fixture Technology '[P']]],Table_TypWattage[Technology],0)+MATCH(Table_PREInfo[[#This Row],[Fixture/ Lamp Wattage '[P']]],INDIRECT(SUBSTITUTE(SUBSTITUTE(Table_PREInfo[[#This Row],[Fixture Technology '[P']]],\" \",\"_\"),\"-\",\"_\")),0)-1,MATCH(Table_PREInfo[[#This Row],['# Lamps/ Fixture '[P']]],'Measure Tables'!$Q$2:$V$2,0)+1),IF(Table_PREInfo[[#This Row],[Schedule]]<>\"\",IF(AND(,Table_PREInfo[[#This Row],['# Lamps/ Fixture '[P']]]<>\"\",Table_PREInfo[[#This Row],['# Lamps/ Fixture '[P']]]>0,Table_PREInfo[[#This Row],[Fixture/ Lamp Wattage '[P']]]>0),Table_PREInfo[[#This Row],['# Lamps/ Fixture '[P']]]*Table_PREInfo[[#This Row],[Fixture/ Lamp Wattage '[P']]],Table_PREInfo[[#This Row],[Fixture/ Lamp Wattage '[P']]]),\"\")),\n\"\")","v":""},{"$f":"IF(Table_PREInfo[[#This Row],[Fixture Type '[E']]]<>\"\",Table_PREInfo[[#This Row],[Fixture Type '[E']]],\"\")","v":""},{"$f":"IF(Table_PREInfo[[#This Row],[Controls '[E']]]<>\"\",Table_PREInfo[[#This Row],[Controls '[E']]],\"\")","v":""},{"$f":"IFERROR(IF(Table_PREInfo[[#This Row],[Interior/ Exterior]]<>\"\",\n  CONCATENATE(\n  Table_PREInfo[[#This Row],[Fixture Technology '[P']]],\n  \" - \",Table_PREInfo[[#This Row],[Fixture Type '[P']]],\" [\",\n  IF(Table_PREInfo[[#This Row],['# Lamps/ Fixture '[P']]]>0,Table_PREInfo[[#This Row],['# Lamps/ Fixture '[P']]] & \"L - \" & Table_PREInfo[[#This Row],[Fixture/ Lamp Wattage '[P']]] & \"W\" & IF(Table_PREInfo[[#This Row],[Ballast/ Driver '[P']]]<>\"\",\" - \" & Table_PREInfo[[#This Row],[Ballast/ Driver '[P']]],\"\"),Table_PREInfo[[#This Row],[Fixture Wattage '[P']]] & \"W\"),\"]\",\n  IF(AND(Table_PREInfo[[#This Row],[Controls '[P']]]<>\"\",Table_PREInfo[[#This Row],[Controls '[P']]]<>\"No Controls\"),\" - \" & Table_PREInfo[[#This Row],[Controls '[P']]],\"\")\n  ),\n\"\"),\"\")","v":""}]
[{"$f":"IF($A39=\"Line\",1,MAX($A$4:$A39)+1)","v":36},{"$f":"COUNTA(Table_PREInfo[[#This Row],[Schedule]:[Notes]])>9","v":false},{"$f":"IF(Table_PREInfo[[#This Row],[IsActive]],Table_PREInfo[[#This Row],[Line]],\"\")","v":""},null,null,null,null,null,null,null,{"$f":"IF(ISNUMBER(FIND(\"LED Tube\",Table_PREInfo[[#This Row],[Fixture Technology '[E']]],1)),\"[Enter]\",\"\")","v":""},null,{"$f":"IFERROR(\nIFERROR(OFFSET(Table_TypWattage[[#Headers],[Technology]],MATCH(Table_PREInfo[[#This Row],[Fixture Technology '[E']]] & IF(Table_PREInfo[[#This Row],[Ballast/ Driver '[E']]]<>\"\",\" - \" & Table_PREInfo[[#This Row],[Ballast/ Driver '[E']]],\"\"),Table_TypWattage[Technology],0)+MATCH(Table_PREInfo[[#This Row],[Fixture/ Lamp Wattage '[E']]],INDIRECT(SUBSTITUTE(SUBSTITUTE(Table_PREInfo[[#This Row],[Fixture Technology '[E']]],\" \",\"_\"),\"-\",\"_\")),0)-1,MATCH(Table_PREInfo[[#This Row],['# Lamps/ Fixture '[E']]],'Measure Tables'!$Q$2:$V$2,0)+1),IF(Table_PREInfo[[#This Row],[Schedule]]<>\"\",IF(AND(Table_PREInfo[[#This Row],['# Lamps/ Fixture '[E']]]<>\"\",Table_PREInfo[[#This Row],['# Lamps/ Fixture '[E']]]>0,Table_PREInfo[[#This Row],[Fixture/ Lamp Wattage '[E']]]>0),Table_PREInfo[[#This Row],['# Lamps/ Fixture '[E']]]*Table_PREInfo[[#This Row],[Fixture/ Lamp Wattage '[E']]],Table_PREInfo[[#This Row],[Fixture/ Lamp Wattage '[E']]]),\"\")),\n\"\")","v":""},null,null,{"$f":"IFERROR(IF(Table_PREInfo[[#This Row],[Interior/ Exterior]]<>\"\",\n  CONCATENATE(\n  Table_PREInfo[[#This Row],[Interior/ Exterior]],\": \" &\n  Table_PREInfo[[#This Row],[Fixture Technology '[E']]],\n  \" - \",Table_PREInfo[[#This Row],[Fixture Type '[E']]],\" [\",\n  IF(Table_PREInfo[[#This Row],['# Lamps/ Fixture '[E']]]>0,Table_PREInfo[[#This Row],['# Lamps/ Fixture '[E']]] & \"L - \" & Table_PREInfo[[#This Row],[Fixture/ Lamp Wattage '[E']]] & \"W\" & IF(Table_PREInfo[[#This Row],[Ballast/ Driver '[E']]]<>\"\",\" - \" & Table_PREInfo[[#This Row],[Ballast/ Driver '[E']]],\"\"),Table_PREInfo[[#This Row],[Fixture Wattage '[E']]] & \"W\"),\"]\",\n  IF(AND(Table_PREInfo[[#This Row],[Controls '[E']]]<>\"\",Table_PREInfo[[#This Row],[Controls '[E']]]<>\"No Controls\"),\" - \" & Table_PREInfo[[#This Row],[Controls '[E']]],\"\")\n  ),\n\"\"),\"\")","v":""},null,{"$f":"IF(Table_PREInfo[[#This Row],[Fixture Qty '[E']]]<>0,Table_PREInfo[[#This Row],[Fixture Qty '[E']]],\"\")","v":""},null,null,{"$f":"IF(ISNUMBER(FIND(\"LED Tube\",Table_PREInfo[[#This Row],[Fixture Technology '[P']]],1)),\"[Enter]\",\"\")","v":""},null,{"$f":"IFERROR(\nIFERROR(OFFSET(Table_TypWattage[[#Headers],[Technology]],MATCH(Table_PREInfo[[#This Row],[Fixture Technology '[P']]],Table_TypWattage[Technology],0)+MATCH(Table_PREInfo[[#This Row],[Fixture/ Lamp Wattage '[P']]],INDIRECT(SUBSTITUTE(SUBSTITUTE(Table_PREInfo[[#This Row],[Fixture Technology '[P']]],\" \",\"_\"),\"-\",\"_\")),0)-1,MATCH(Table_PREInfo[[#This Row],['# Lamps/ Fixture '[P']]],'Measure Tables'!$Q$2:$V$2,0)+1),IF(Table_PREInfo[[#This Row],[Schedule]]<>\"\",IF(AND(,Table_PREInfo[[#This Row],['# Lamps/ Fixture '[P']]]<>\"\",Table_PREInfo[[#This Row],['# Lamps/ Fixture '[P']]]>0,Table_PREInfo[[#This Row],[Fixture/ Lamp Wattage '[P']]]>0),Table_PREInfo[[#This Row],['# Lamps/ Fixture '[P']]]*Table_PREInfo[[#This Row],[Fixture/ Lamp Wattage '[P']]],Table_PREInfo[[#This Row],[Fixture/ Lamp Wattage '[P']]]),\"\")),\n\"\")","v":""},{"$f":"IF(Table_PREInfo[[#This Row],[Fixture Type '[E']]]<>\"\",Table_PREInfo[[#This Row],[Fixture Type '[E']]],\"\")","v":""},{"$f":"IF(Table_PREInfo[[#This Row],[Controls '[E']]]<>\"\",Table_PREInfo[[#This Row],[Controls '[E']]],\"\")","v":""},{"$f":"IFERROR(IF(Table_PREInfo[[#This Row],[Interior/ Exterior]]<>\"\",\n  CONCATENATE(\n  Table_PREInfo[[#This Row],[Fixture Technology '[P']]],\n  \" - \",Table_PREInfo[[#This Row],[Fixture Type '[P']]],\" [\",\n  IF(Table_PREInfo[[#This Row],['# Lamps/ Fixture '[P']]]>0,Table_PREInfo[[#This Row],['# Lamps/ Fixture '[P']]] & \"L - \" & Table_PREInfo[[#This Row],[Fixture/ Lamp Wattage '[P']]] & \"W\" & IF(Table_PREInfo[[#This Row],[Ballast/ Driver '[P']]]<>\"\",\" - \" & Table_PREInfo[[#This Row],[Ballast/ Driver '[P']]],\"\"),Table_PREInfo[[#This Row],[Fixture Wattage '[P']]] & \"W\"),\"]\",\n  IF(AND(Table_PREInfo[[#This Row],[Controls '[P']]]<>\"\",Table_PREInfo[[#This Row],[Controls '[P']]]<>\"No Controls\"),\" - \" & Table_PREInfo[[#This Row],[Controls '[P']]],\"\")\n  ),\n\"\"),\"\")","v":""}]
[{"$f":"IF($A40=\"Line\",1,MAX($A$4:$A40)+1)","v":37},{"$f":"COUNTA(Table_PREInfo[[#This Row],[Schedule]:[Notes]])>9","v":false},{"$f":"IF(Table_PREInfo[[#This Row],[IsActive]],Table_PREInfo[[#This Row],[Line]],\"\")","v":""},null,null,null,null,null,null,null,{"$f":"IF(ISNUMBER(FIND(\"LED Tube\",Table_PREInfo[[#This Row],[Fixture Technology '[E']]],1)),\"[Enter]\",\"\")","v":""},null,{"$f":"IFERROR(\nIFERROR(OFFSET(Table_TypWattage[[#Headers],[Technology]],MATCH(Table_PREInfo[[#This Row],[Fixture Technology '[E']]] & IF(Table_PREInfo[[#This Row],[Ballast/ Driver '[E']]]<>\"\",\" - \" & Table_PREInfo[[#This Row],[Ballast/ Driver '[E']]],\"\"),Table_TypWattage[Technology],0)+MATCH(Table_PREInfo[[#This Row],[Fixture/ Lamp Wattage '[E']]],INDIRECT(SUBSTITUTE(SUBSTITUTE(Table_PREInfo[[#This Row],[Fixture Technology '[E']]],\" \",\"_\"),\"-\",\"_\")),0)-1,MATCH(Table_PREInfo[[#This Row],['# Lamps/ Fixture '[E']]],'Measure Tables'!$Q$2:$V$2,0)+1),IF(Table_PREInfo[[#This Row],[Schedule]]<>\"\",IF(AND(Table_PREInfo[[#This Row],['# Lamps/ Fixture '[E']]]<>\"\",Table_PREInfo[[#This Row],['# Lamps/ Fixture '[E']]]>0,Table_PREInfo[[#This Row],[Fixture/ Lamp Wattage '[E']]]>0),Table_PREInfo[[#This Row],['# Lamps/ Fixture '[E']]]*Table_PREInfo[[#This Row],[Fixture/ Lamp Wattage '[E']]],Table_PREInfo[[#This Row],[Fixture/ Lamp Wattage '[E']]]),\"\")),\n\"\")","v":""},null,null,{"$f":"IFERROR(IF(Table_PREInfo[[#This Row],[Interior/ Exterior]]<>\"\",\n  CONCATENATE(\n  Table_PREInfo[[#This Row],[Interior/ Exterior]],\": \" &\n  Table_PREInfo[[#This Row],[Fixture Technology '[E']]],\n  \" - \",Table_PREInfo[[#This Row],[Fixture Type '[E']]],\" [\",\n  IF(Table_PREInfo[[#This Row],['# Lamps/ Fixture '[E']]]>0,Table_PREInfo[[#This Row],['# Lamps/ Fixture '[E']]] & \"L - \" & Table_PREInfo[[#This Row],[Fixture/ Lamp Wattage '[E']]] & \"W\" & IF(Table_PREInfo[[#This Row],[Ballast/ Driver '[E']]]<>\"\",\" - \" & Table_PREInfo[[#This Row],[Ballast/ Driver '[E']]],\"\"),Table_PREInfo[[#This Row],[Fixture Wattage '[E']]] & \"W\"),\"]\",\n  IF(AND(Table_PREInfo[[#This Row],[Controls '[E']]]<>\"\",Table_PREInfo[[#This Row],[Controls '[E']]]<>\"No Controls\"),\" - \" & Table_PREInfo[[#This Row],[Controls '[E']]],\"\")\n  ),\n\"\"),\"\")","v":""},null,{"$f":"IF(Table_PREInfo[[#This Row],[Fixture Qty '[E']]]<>0,Table_PREInfo[[#This Row],[Fixture Qty '[E']]],\"\")","v":""},null,null,{"$f":"IF(ISNUMBER(FIND(\"LED Tube\",Table_PREInfo[[#This Row],[Fixture Technology '[P']]],1)),\"[Enter]\",\"\")","v":""},null,{"$f":"IFERROR(\nIFERROR(OFFSET(Table_TypWattage[[#Headers],[Technology]],MATCH(Table_PREInfo[[#This Row],[Fixture Technology '[P']]],Table_TypWattage[Technology],0)+MATCH(Table_PREInfo[[#This Row],[Fixture/ Lamp Wattage '[P']]],INDIRECT(SUBSTITUTE(SUBSTITUTE(Table_PREInfo[[#This Row],[Fixture Technology '[P']]],\" \",\"_\"),\"-\",\"_\")),0)-1,MATCH(Table_PREInfo[[#This Row],['# Lamps/ Fixture '[P']]],'Measure Tables'!$Q$2:$V$2,0)+1),IF(Table_PREInfo[[#This Row],[Schedule]]<>\"\",IF(AND(,Table_PREInfo[[#This Row],['# Lamps/ Fixture '[P']]]<>\"\",Table_PREInfo[[#This Row],['# Lamps/ Fixture '[P']]]>0,Table_PREInfo[[#This Row],[Fixture/ Lamp Wattage '[P']]]>0),Table_PREInfo[[#This Row],['# Lamps/ Fixture '[P']]]*Table_PREInfo[[#This Row],[Fixture/ Lamp Wattage '[P']]],Table_PREInfo[[#This Row],[Fixture/ Lamp Wattage '[P']]]),\"\")),\n\"\")","v":""},{"$f":"IF(Table_PREInfo[[#This Row],[Fixture Type '[E']]]<>\"\",Table_PREInfo[[#This Row],[Fixture Type '[E']]],\"\")","v":""},{"$f":"IF(Table_PREInfo[[#This Row],[Controls '[E']]]<>\"\",Table_PREInfo[[#This Row],[Controls '[E']]],\"\")","v":""},{"$f":"IFERROR(IF(Table_PREInfo[[#This Row],[Interior/ Exterior]]<>\"\",\n  CONCATENATE(\n  Table_PREInfo[[#This Row],[Fixture Technology '[P']]],\n  \" - \",Table_PREInfo[[#This Row],[Fixture Type '[P']]],\" [\",\n  IF(Table_PREInfo[[#This Row],['# Lamps/ Fixture '[P']]]>0,Table_PREInfo[[#This Row],['# Lamps/ Fixture '[P']]] & \"L - \" & Table_PREInfo[[#This Row],[Fixture/ Lamp Wattage '[P']]] & \"W\" & IF(Table_PREInfo[[#This Row],[Ballast/ Driver '[P']]]<>\"\",\" - \" & Table_PREInfo[[#This Row],[Ballast/ Driver '[P']]],\"\"),Table_PREInfo[[#This Row],[Fixture Wattage '[P']]] & \"W\"),\"]\",\n  IF(AND(Table_PREInfo[[#This Row],[Controls '[P']]]<>\"\",Table_PREInfo[[#This Row],[Controls '[P']]]<>\"No Controls\"),\" - \" & Table_PREInfo[[#This Row],[Controls '[P']]],\"\")\n  ),\n\"\"),\"\")","v":""}]
[{"$f":"IF($A41=\"Line\",1,MAX($A$4:$A41)+1)","v":38},{"$f":"COUNTA(Table_PREInfo[[#This Row],[Schedule]:[Notes]])>9","v":false},{"$f":"IF(Table_PREInfo[[#This Row],[IsActive]],Table_PREInfo[[#This Row],[Line]],\"\")","v":""},null,null,null,null,null,null,null,{"$f":"IF(ISNUMBER(FIND(\"LED Tube\",Table_PREInfo[[#This Row],[Fixture Technology '[E']]],1)),\"[Enter]\",\"\")","v":""},null,{"$f":"IFERROR(\nIFERROR(OFFSET(Table_TypWattage[[#Headers],[Technology]],MATCH(Table_PREInfo[[#This Row],[Fixture Technology '[E']]] & IF(Table_PREInfo[[#This Row],[Ballast/ Driver '[E']]]<>\"\",\" - \" & Table_PREInfo[[#This Row],[Ballast/ Driver '[E']]],\"\"),Table_TypWattage[Technology],0)+MATCH(Table_PREInfo[[#This Row],[Fixture/ Lamp Wattage '[E']]],INDIRECT(SUBSTITUTE(SUBSTITUTE(Table_PREInfo[[#This Row],[Fixture Technology '[E']]],\" \",\"_\"),\"-\",\"_\")),0)-1,MATCH(Table_PREInfo[[#This Row],['# Lamps/ Fixture '[E']]],'Measure Tables'!$Q$2:$V$2,0)+1),IF(Table_PREInfo[[#This Row],[Schedule]]<>\"\",IF(AND(Table_PREInfo[[#This Row],['# Lamps/ Fixture '[E']]]<>\"\",Table_PREInfo[[#This Row],['# Lamps/ Fixture '[E']]]>0,Table_PREInfo[[#This Row],[Fixture/ Lamp Wattage '[E']]]>0),Table_PREInfo[[#This Row],['# Lamps/ Fixture '[E']]]*Table_PREInfo[[#This Row],[Fixture/ Lamp Wattage '[E']]],Table_PREInfo[[#This Row],[Fixture/ Lamp Wattage '[E']]]),\"\")),\n\"\")","v":""},null,null,{"$f":"IFERROR(IF(Table_PREInfo[[#This Row],[Interior/ Exterior]]<>\"\",\n  CONCATENATE(\n  Table_PREInfo[[#This Row],[Interior/ Exterior]],\": \" &\n  Table_PREInfo[[#This Row],[Fixture Technology '[E']]],\n  \" - \",Table_PREInfo[[#This Row],[Fixture Type '[E']]],\" [\",\n  IF(Table_PREInfo[[#This Row],['# Lamps/ Fixture '[E']]]>0,Table_PREInfo[[#This Row],['# Lamps/ Fixture '[E']]] & \"L - \" & Table_PREInfo[[#This Row],[Fixture/ Lamp Wattage '[E']]] & \"W\" & IF(Table_PREInfo[[#This Row],[Ballast/ Driver '[E']]]<>\"\",\" - \" & Table_PREInfo[[#This Row],[Ballast/ Driver '[E']]],\"\"),Table_PREInfo[[#This Row],[Fixture Wattage '[E']]] & \"W\"),\"]\",\n  IF(AND(Table_PREInfo[[#This Row],[Controls '[E']]]<>\"\",Table_PREInfo[[#This Row],[Controls '[E']]]<>\"No Controls\"),\" - \" & Table_PREInfo[[#This Row],[Controls '[E']]],\"\")\n  ),\n\"\"),\"\")","v":""},null,{"$f":"IF(Table_PREInfo[[#This Row],[Fixture Qty '[E']]]<>0,Table_PREInfo[[#This Row],[Fixture Qty '[E']]],\"\")","v":""},null,null,{"$f":"IF(ISNUMBER(FIND(\"LED Tube\",Table_PREInfo[[#This Row],[Fixture Technology '[P']]],1)),\"[Enter]\",\"\")","v":""},null,{"$f":"IFERROR(\nIFERROR(OFFSET(Table_TypWattage[[#Headers],[Technology]],MATCH(Table_PREInfo[[#This Row],[Fixture Technology '[P']]],Table_TypWattage[Technology],0)+MATCH(Table_PREInfo[[#This Row],[Fixture/ Lamp Wattage '[P']]],INDIRECT(SUBSTITUTE(SUBSTITUTE(Table_PREInfo[[#This Row],[Fixture Technology '[P']]],\" \",\"_\"),\"-\",\"_\")),0)-1,MATCH(Table_PREInfo[[#This Row],['# Lamps/ Fixture '[P']]],'Measure Tables'!$Q$2:$V$2,0)+1),IF(Table_PREInfo[[#This Row],[Schedule]]<>\"\",IF(AND(,Table_PREInfo[[#This Row],['# Lamps/ Fixture '[P']]]<>\"\",Table_PREInfo[[#This Row],['# Lamps/ Fixture '[P']]]>0,Table_PREInfo[[#This Row],[Fixture/ Lamp Wattage '[P']]]>0),Table_PREInfo[[#This Row],['# Lamps/ Fixture '[P']]]*Table_PREInfo[[#This Row],[Fixture/ Lamp Wattage '[P']]],Table_PREInfo[[#This Row],[Fixture/ Lamp Wattage '[P']]]),\"\")),\n\"\")","v":""},{"$f":"IF(Table_PREInfo[[#This Row],[Fixture Type '[E']]]<>\"\",Table_PREInfo[[#This Row],[Fixture Type '[E']]],\"\")","v":""},{"$f":"IF(Table_PREInfo[[#This Row],[Controls '[E']]]<>\"\",Table_PREInfo[[#This Row],[Controls '[E']]],\"\")","v":""},{"$f":"IFERROR(IF(Table_PREInfo[[#This Row],[Interior/ Exterior]]<>\"\",\n  CONCATENATE(\n  Table_PREInfo[[#This Row],[Fixture Technology '[P']]],\n  \" - \",Table_PREInfo[[#This Row],[Fixture Type '[P']]],\" [\",\n  IF(Table_PREInfo[[#This Row],['# Lamps/ Fixture '[P']]]>0,Table_PREInfo[[#This Row],['# Lamps/ Fixture '[P']]] & \"L - \" & Table_PREInfo[[#This Row],[Fixture/ Lamp Wattage '[P']]] & \"W\" & IF(Table_PREInfo[[#This Row],[Ballast/ Driver '[P']]]<>\"\",\" - \" & Table_PREInfo[[#This Row],[Ballast/ Driver '[P']]],\"\"),Table_PREInfo[[#This Row],[Fixture Wattage '[P']]] & \"W\"),\"]\",\n  IF(AND(Table_PREInfo[[#This Row],[Controls '[P']]]<>\"\",Table_PREInfo[[#This Row],[Controls '[P']]]<>\"No Controls\"),\" - \" & Table_PREInfo[[#This Row],[Controls '[P']]],\"\")\n  ),\n\"\"),\"\")","v":""}]
[{"$f":"IF($A42=\"Line\",1,MAX($A$4:$A42)+1)","v":39},{"$f":"COUNTA(Table_PREInfo[[#This Row],[Schedule]:[Notes]])>9","v":false},{"$f":"IF(Table_PREInfo[[#This Row],[IsActive]],Table_PREInfo[[#This Row],[Line]],\"\")","v":""},null,null,null,null,null,null,null,{"$f":"IF(ISNUMBER(FIND(\"LED Tube\",Table_PREInfo[[#This Row],[Fixture Technology '[E']]],1)),\"[Enter]\",\"\")","v":""},null,{"$f":"IFERROR(\nIFERROR(OFFSET(Table_TypWattage[[#Headers],[Technology]],MATCH(Table_PREInfo[[#This Row],[Fixture Technology '[E']]] & IF(Table_PREInfo[[#This Row],[Ballast/ Driver '[E']]]<>\"\",\" - \" & Table_PREInfo[[#This Row],[Ballast/ Driver '[E']]],\"\"),Table_TypWattage[Technology],0)+MATCH(Table_PREInfo[[#This Row],[Fixture/ Lamp Wattage '[E']]],INDIRECT(SUBSTITUTE(SUBSTITUTE(Table_PREInfo[[#This Row],[Fixture Technology '[E']]],\" \",\"_\"),\"-\",\"_\")),0)-1,MATCH(Table_PREInfo[[#This Row],['# Lamps/ Fixture '[E']]],'Measure Tables'!$Q$2:$V$2,0)+1),IF(Table_PREInfo[[#This Row],[Schedule]]<>\"\",IF(AND(Table_PREInfo[[#This Row],['# Lamps/ Fixture '[E']]]<>\"\",Table_PREInfo[[#This Row],['# Lamps/ Fixture '[E']]]>0,Table_PREInfo[[#This Row],[Fixture/ Lamp Wattage '[E']]]>0),Table_PREInfo[[#This Row],['# Lamps/ Fixture '[E']]]*Table_PREInfo[[#This Row],[Fixture/ Lamp Wattage '[E']]],Table_PREInfo[[#This Row],[Fixture/ Lamp Wattage '[E']]]),\"\")),\n\"\")","v":""},null,null,{"$f":"IFERROR(IF(Table_PREInfo[[#This Row],[Interior/ Exterior]]<>\"\",\n  CONCATENATE(\n  Table_PREInfo[[#This Row],[Interior/ Exterior]],\": \" &\n  Table_PREInfo[[#This Row],[Fixture Technology '[E']]],\n  \" - \",Table_PREInfo[[#This Row],[Fixture Type '[E']]],\" [\",\n  IF(Table_PREInfo[[#This Row],['# Lamps/ Fixture '[E']]]>0,Table_PREInfo[[#This Row],['# Lamps/ Fixture '[E']]] & \"L - \" & Table_PREInfo[[#This Row],[Fixture/ Lamp Wattage '[E']]] & \"W\" & IF(Table_PREInfo[[#This Row],[Ballast/ Driver '[E']]]<>\"\",\" - \" & Table_PREInfo[[#This Row],[Ballast/ Driver '[E']]],\"\"),Table_PREInfo[[#This Row],[Fixture Wattage '[E']]] & \"W\"),\"]\",\n  IF(AND(Table_PREInfo[[#This Row],[Controls '[E']]]<>\"\",Table_PREInfo[[#This Row],[Controls '[E']]]<>\"No Controls\"),\" - \" & Table_PREInfo[[#This Row],[Controls '[E']]],\"\")\n  ),\n\"\"),\"\")","v":""},null,{"$f":"IF(Table_PREInfo[[#This Row],[Fixture Qty '[E']]]<>0,Table_PREInfo[[#This Row],[Fixture Qty '[E']]],\"\")","v":""},null,null,{"$f":"IF(ISNUMBER(FIND(\"LED Tube\",Table_PREInfo[[#This Row],[Fixture Technology '[P']]],1)),\"[Enter]\",\"\")","v":""},null,{"$f":"IFERROR(\nIFERROR(OFFSET(Table_TypWattage[[#Headers],[Technology]],MATCH(Table_PREInfo[[#This Row],[Fixture Technology '[P']]],Table_TypWattage[Technology],0)+MATCH(Table_PREInfo[[#This Row],[Fixture/ Lamp Wattage '[P']]],INDIRECT(SUBSTITUTE(SUBSTITUTE(Table_PREInfo[[#This Row],[Fixture Technology '[P']]],\" \",\"_\"),\"-\",\"_\")),0)-1,MATCH(Table_PREInfo[[#This Row],['# Lamps/ Fixture '[P']]],'Measure Tables'!$Q$2:$V$2,0)+1),IF(Table_PREInfo[[#This Row],[Schedule]]<>\"\",IF(AND(,Table_PREInfo[[#This Row],['# Lamps/ Fixture '[P']]]<>\"\",Table_PREInfo[[#This Row],['# Lamps/ Fixture '[P']]]>0,Table_PREInfo[[#This Row],[Fixture/ Lamp Wattage '[P']]]>0),Table_PREInfo[[#This Row],['# Lamps/ Fixture '[P']]]*Table_PREInfo[[#This Row],[Fixture/ Lamp Wattage '[P']]],Table_PREInfo[[#This Row],[Fixture/ Lamp Wattage '[P']]]),\"\")),\n\"\")","v":""},{"$f":"IF(Table_PREInfo[[#This Row],[Fixture Type '[E']]]<>\"\",Table_PREInfo[[#This Row],[Fixture Type '[E']]],\"\")","v":""},{"$f":"IF(Table_PREInfo[[#This Row],[Controls '[E']]]<>\"\",Table_PREInfo[[#This Row],[Controls '[E']]],\"\")","v":""},{"$f":"IFERROR(IF(Table_PREInfo[[#This Row],[Interior/ Exterior]]<>\"\",\n  CONCATENATE(\n  Table_PREInfo[[#This Row],[Fixture Technology '[P']]],\n  \" - \",Table_PREInfo[[#This Row],[Fixture Type '[P']]],\" [\",\n  IF(Table_PREInfo[[#This Row],['# Lamps/ Fixture '[P']]]>0,Table_PREInfo[[#This Row],['# Lamps/ Fixture '[P']]] & \"L - \" & Table_PREInfo[[#This Row],[Fixture/ Lamp Wattage '[P']]] & \"W\" & IF(Table_PREInfo[[#This Row],[Ballast/ Driver '[P']]]<>\"\",\" - \" & Table_PREInfo[[#This Row],[Ballast/ Driver '[P']]],\"\"),Table_PREInfo[[#This Row],[Fixture Wattage '[P']]] & \"W\"),\"]\",\n  IF(AND(Table_PREInfo[[#This Row],[Controls '[P']]]<>\"\",Table_PREInfo[[#This Row],[Controls '[P']]]<>\"No Controls\"),\" - \" & Table_PREInfo[[#This Row],[Controls '[P']]],\"\")\n  ),\n\"\"),\"\")","v":""}]
[{"$f":"IF($A43=\"Line\",1,MAX($A$4:$A43)+1)","v":40},{"$f":"COUNTA(Table_PREInfo[[#This Row],[Schedule]:[Notes]])>9","v":false},{"$f":"IF(Table_PREInfo[[#This Row],[IsActive]],Table_PREInfo[[#This Row],[Line]],\"\")","v":""},null,null,null,null,null,null,null,{"$f":"IF(ISNUMBER(FIND(\"LED Tube\",Table_PREInfo[[#This Row],[Fixture Technology '[E']]],1)),\"[Enter]\",\"\")","v":""},null,{"$f":"IFERROR(\nIFERROR(OFFSET(Table_TypWattage[[#Headers],[Technology]],MATCH(Table_PREInfo[[#This Row],[Fixture Technology '[E']]] & IF(Table_PREInfo[[#This Row],[Ballast/ Driver '[E']]]<>\"\",\" - \" & Table_PREInfo[[#This Row],[Ballast/ Driver '[E']]],\"\"),Table_TypWattage[Technology],0)+MATCH(Table_PREInfo[[#This Row],[Fixture/ Lamp Wattage '[E']]],INDIRECT(SUBSTITUTE(SUBSTITUTE(Table_PREInfo[[#This Row],[Fixture Technology '[E']]],\" \",\"_\"),\"-\",\"_\")),0)-1,MATCH(Table_PREInfo[[#This Row],['# Lamps/ Fixture '[E']]],'Measure Tables'!$Q$2:$V$2,0)+1),IF(Table_PREInfo[[#This Row],[Schedule]]<>\"\",IF(AND(Table_PREInfo[[#This Row],['# Lamps/ Fixture '[E']]]<>\"\",Table_PREInfo[[#This Row],['# Lamps/ Fixture '[E']]]>0,Table_PREInfo[[#This Row],[Fixture/ Lamp Wattage '[E']]]>0),Table_PREInfo[[#This Row],['# Lamps/ Fixture '[E']]]*Table_PREInfo[[#This Row],[Fixture/ Lamp Wattage '[E']]],Table_PREInfo[[#This Row],[Fixture/ Lamp Wattage '[E']]]),\"\")),\n\"\")","v":""},null,null,{"$f":"IFERROR(IF(Table_PREInfo[[#This Row],[Interior/ Exterior]]<>\"\",\n  CONCATENATE(\n  Table_PREInfo[[#This Row],[Interior/ Exterior]],\": \" &\n  Table_PREInfo[[#This Row],[Fixture Technology '[E']]],\n  \" - \",Table_PREInfo[[#This Row],[Fixture Type '[E']]],\" [\",\n  IF(Table_PREInfo[[#This Row],['# Lamps/ Fixture '[E']]]>0,Table_PREInfo[[#This Row],['# Lamps/ Fixture '[E']]] & \"L - \" & Table_PREInfo[[#This Row],[Fixture/ Lamp Wattage '[E']]] & \"W\" & IF(Table_PREInfo[[#This Row],[Ballast/ Driver '[E']]]<>\"\",\" - \" & Table_PREInfo[[#This Row],[Ballast/ Driver '[E']]],\"\"),Table_PREInfo[[#This Row],[Fixture Wattage '[E']]] & \"W\"),\"]\",\n  IF(AND(Table_PREInfo[[#This Row],[Controls '[E']]]<>\"\",Table_PREInfo[[#This Row],[Controls '[E']]]<>\"No Controls\"),\" - \" & Table_PREInfo[[#This Row],[Controls '[E']]],\"\")\n  ),\n\"\"),\"\")","v":""},null,{"$f":"IF(Table_PREInfo[[#This Row],[Fixture Qty '[E']]]<>0,Table_PREInfo[[#This Row],[Fixture Qty '[E']]],\"\")","v":""},null,null,{"$f":"IF(ISNUMBER(FIND(\"LED Tube\",Table_PREInfo[[#This Row],[Fixture Technology '[P']]],1)),\"[Enter]\",\"\")","v":""},null,{"$f":"IFERROR(\nIFERROR(OFFSET(Table_TypWattage[[#Headers],[Technology]],MATCH(Table_PREInfo[[#This Row],[Fixture Technology '[P']]],Table_TypWattage[Technology],0)+MATCH(Table_PREInfo[[#This Row],[Fixture/ Lamp Wattage '[P']]],INDIRECT(SUBSTITUTE(SUBSTITUTE(Table_PREInfo[[#This Row],[Fixture Technology '[P']]],\" \",\"_\"),\"-\",\"_\")),0)-1,MATCH(Table_PREInfo[[#This Row],['# Lamps/ Fixture '[P']]],'Measure Tables'!$Q$2:$V$2,0)+1),IF(Table_PREInfo[[#This Row],[Schedule]]<>\"\",IF(AND(,Table_PREInfo[[#This Row],['# Lamps/ Fixture '[P']]]<>\"\",Table_PREInfo[[#This Row],['# Lamps/ Fixture '[P']]]>0,Table_PREInfo[[#This Row],[Fixture/ Lamp Wattage '[P']]]>0),Table_PREInfo[[#This Row],['# Lamps/ Fixture '[P']]]*Table_PREInfo[[#This Row],[Fixture/ Lamp Wattage '[P']]],Table_PREInfo[[#This Row],[Fixture/ Lamp Wattage '[P']]]),\"\")),\n\"\")","v":""},{"$f":"IF(Table_PREInfo[[#This Row],[Fixture Type '[E']]]<>\"\",Table_PREInfo[[#This Row],[Fixture Type '[E']]],\"\")","v":""},{"$f":"IF(Table_PREInfo[[#This Row],[Controls '[E']]]<>\"\",Table_PREInfo[[#This Row],[Controls '[E']]],\"\")","v":""},{"$f":"IFERROR(IF(Table_PREInfo[[#This Row],[Interior/ Exterior]]<>\"\",\n  CONCATENATE(\n  Table_PREInfo[[#This Row],[Fixture Technology '[P']]],\n  \" - \",Table_PREInfo[[#This Row],[Fixture Type '[P']]],\" [\",\n  IF(Table_PREInfo[[#This Row],['# Lamps/ Fixture '[P']]]>0,Table_PREInfo[[#This Row],['# Lamps/ Fixture '[P']]] & \"L - \" & Table_PREInfo[[#This Row],[Fixture/ Lamp Wattage '[P']]] & \"W\" & IF(Table_PREInfo[[#This Row],[Ballast/ Driver '[P']]]<>\"\",\" - \" & Table_PREInfo[[#This Row],[Ballast/ Driver '[P']]],\"\"),Table_PREInfo[[#This Row],[Fixture Wattage '[P']]] & \"W\"),\"]\",\n  IF(AND(Table_PREInfo[[#This Row],[Controls '[P']]]<>\"\",Table_PREInfo[[#This Row],[Controls '[P']]]<>\"No Controls\"),\" - \" & Table_PREInfo[[#This Row],[Controls '[P']]],\"\")\n  ),\n\"\"),\"\")","v":""}]

{"sheet":"Pre-Install Inspection","index":14,"n_rows":54,"n_cols":16,"rows_kept":54,"cut":false,"hidden":true,"merged":[[1,0,1,3],[1,5,1,13]]}
[null,null,null,null,null,null,null,null,null,null,null,null,null,"HIDE"]
["Facility Information",null,null,null,null,"Existing Fixture Information [E]"]
[1,4,5,6,null,{"$f":"'Pre-Install Information'!H3","v":8},{"$f":"'Pre-Install Information'!I3","v":9},{"$f":"'Pre-Install Information'!J3","v":10},{"$f":"'Pre-Install Information'!K3","v":11},{"$f":"'Pre-Install Information'!L3","v":12},{"$f":"'Pre-Install Information'!M3","v":13},{"$f":"'Pre-Install Information'!N3","v":14},{"$f":"'Pre-Install Information'!O3","v":15},16]
["Line","Schedule","Interior/ Exterior","Space Description","1","Fixture Qty [E]","Fixture Technology [E]","# Lamps/ Fixture [E]","Fixture/ Lamp Wattage [E]","Ballast/ Driver [E]","Fixture Wattage [E]","Fixture Type [E]","Controls [E]","Fixture Description [E]","2","Notes"]
[null,{"$f":"IFERROR(IF(OR(Table_PREInspection[[#This Row],[Line]]=\"\",INDEX(Table_PREInfo[],Table_PREInspection[[#This Row],[Line]],B$3)=\"\"),\"\",INDEX(Table_PREInfo[],Table_PREInspection[[#This Row],[Line]],B$3)),\"\")","v":""},{"$f":"IFERROR(IF(OR(Table_PREInspection[[#This Row],[Line]]=\"\",INDEX(Table_PREInfo[],Table_PREInspection[[#This Row],[Line]],C$3)=\"\"),\"\",INDEX(Table_PREInfo[],Table_PREInspection[[#This Row],[Line]],C$3)),\"\")","v":""},{"$f":"IFERROR(IF(OR(Table_PREInspection[[#This Row],[Line]]=\"\",INDEX(Table_PREInfo[],Table_PREInspection[[#This Row],[Line]],D$3)=\"\"),\"\",INDEX(Table_PREInfo[],Table_PREInspection[[#This Row],[Line]],D$3)),\"\")","v":""},null,{"$f":"IFERROR(IF(OR(Table_PREInspection[[#This Row],[Line]]=\"\",INDEX(Table_PREInfo[],Table_PREInspection[[#This Row],[Line]],F$3)=\"\"),\"\",INDEX(Table_PREInfo[],Table_PREInspection[[#This Row],[Line]],F$3)),\"\")","v":""},{"$f":"IFERROR(IF(OR(Table_PREInspection[[#This Row],[Line]]=\"\",INDEX(Table_PREInfo[],Table_PREInspection[[#This Row],[Line]],G$3)=\"\"),\"\",INDEX(Table_PREInfo[],Table_PREInspection[[#This Row],[Line]],G$3)),\"\")","v":""},{"$f":"IFERROR(IF(OR(Table_PREInspection[[#This Row],[Line]]=\"\",INDEX(Table_PREInfo[],Table_PREInspection[[#This Row],[Line]],H$3)=\"\"),\"\",INDEX(Table_PREInfo[],Table_PREInspection[[#This Row],[Line]],H$3)),\"\")","v":""},{"$f":"IFERROR(IF(OR(Table_PREInspection[[#This Row],[Line]]=\"\",INDEX(Table_PREInfo[],Table_PREInspection[[#This Row],[Line]],I$3)=\"\"),\"\",INDEX(Table_PREInfo[],Table_PREInspection[[#This Row],[Line]],I$3)),\"\")","v":""},{"$f":"IFERROR(IF(OR(Table_PREInspection[[#This Row],[Line]]=\"\",INDEX(Table_PREInfo[],Table_PREInspection[[#This Row],[Line]],J$3)=\"\"),\"\",INDEX(Table_PREInfo[],Table_PREInspection[[#This Row],[Line]],J$3)),\"\")","v":""},{"$f":"IFERROR(\nIFERROR(OFFSET(Table_TypWattage[[#Headers],[Technology]],MATCH(Table_PREInspection[[#This Row],[Fixture Technology '[E']]] & IF(Table_PREInspection[[#This Row],[Ballast/ Driver '[E']]]<>\"\",\" - \" & Table_PREInspection[[#This Row],[Ballast/ Driver '[E']]],\"\"),Table_TypWattage[Technology],0)+MATCH(Table_PREInspection[[#This Row],[Fixture/ Lamp Wattage '[E']]],INDIRECT(SUBSTITUTE(SUBSTITUTE(Table_PREInspection[[#This Row],[Fixture Technology '[E']]],\" \",\"_\"),\"-\",\"_\")),0)-1,MATCH(Table_PREInspection[[#This Row],['# Lamps/ Fixture '[E']]],'Measure Tables'!$Q$2:$V$2,0)+1),IF(Table_PREInspection[[#This Row],[Schedule]]<>\"\",IF(AND(Table_PREInspection[[#This Row],['# Lamps/ Fixture '[E']]]<>\"\",Table_PREInspection[[#This Row],['# Lamps/ Fixture '[E']]]>0,Table_PREInspection[[#This Row],[Fixture/ Lamp Wattage '[E']]]>0),Table_PREInspection[[#This Row],['# Lamps/ Fixture '[E']]]*Table_PREInspection[[#This Row],[Fixture/ Lamp Wattage '[E']]],Table_PREInspection[[#This Row],[Fixture/ Lamp Wattage '[E']]]),\"\")),\n\"\")","v":""},{"$f":"IFERROR(IF(OR(Table_PREInspection[[#This Row],[Line]]=\"\",INDEX(Table_PREInfo[],Table_PREInspection[[#This Row],[Line]],L$3)=\"\"),\"\",INDEX(Table_PREInfo[],Table_PREInspection[[#This Row],[Line]],L$3)),\"\")","v":""},{"$f":"IFERROR(IF(OR(Table_PREInspection[[#This Row],[Line]]=\"\",INDEX(Table_PREInfo[],Table_PREInspection[[#This Row],[Line]],M$3)=\"\"),\"\",INDEX(Table_PREInfo[],Table_PREInspection[[#This Row],[Line]],M$3)),\"\")","v":""},{"$f":"IFERROR(IF(Table_PREInspection[[#This Row],[Interior/ Exterior]]<>\"\",\n  CONCATENATE(\n  Table_PREInspection[[#This Row],[Interior/ Exterior]],\": \" &\n  Table_PREInspection[[#This Row],[Fixture Technology '[E']]],\n  \" - \",Table_PREInspection[[#This Row],[Fixture Type '[E']]],\" [\",\n  IF(Table_PREInspection[[#This Row],['# Lamps/ Fixture '[E']]]>0,Table_PREInspection[[#This Row],['# Lamps/ Fixture '[E']]] & \"L - \" & Table_PREInspection[[#This Row],[Fixture/ Lamp Wattage '[E']]] & \"W\" & IF(Table_PREInspection[[#This Row],[Ballast/ Driver '[E']]]<>\"\",\" - \" & Table_PREInspection[[#This Row],[Ballast/ Driver '[E']]],\"\"),Table_PREInspection[[#This Row],[Fixture Wattage '[E']]] & \"W\"),\"]\",\n  IF(AND(Table_PREInspection[[#This Row],[Controls '[E']]]<>\"\",Table_PREInspection[[#This Row],[Controls '[E']]]<>\"No Controls\"),\" - \" & Table_PREInspection[[#This Row],[Controls '[E']]],\"\")\n  ),\n\"\"),\"\")","v":""}]
[null,{"$f":"IFERROR(IF(OR(Table_PREInspection[[#This Row],[Line]]=\"\",INDEX(Table_PREInfo[],Table_PREInspection[[#This Row],[Line]],B$3)=\"\"),\"\",INDEX(Table_PREInfo[],Table_PREInspection[[#This Row],[Line]],B$3)),\"\")","v":""},{"$f":"IFERROR(IF(OR(Table_PREInspection[[#This Row],[Line]]=\"\",INDEX(Table_PREInfo[],Table_PREInspection[[#This Row],[Line]],C$3)=\"\"),\"\",INDEX(Table_PREInfo[],Table_PREInspection[[#This Row],[Line]],C$3)),\"\")","v":""},{"$f":"IFERROR(IF(OR(Table_PREInspection[[#This Row],[Line]]=\"\",INDEX(Table_PREInfo[],Table_PREInspection[[#This Row],[Line]],D$3)=\"\"),\"\",INDEX(Table_PREInfo[],Table_PREInspection[[#This Row],[Line]],D$3)),\"\")","v":""},null,{"$f":"IFERROR(IF(OR(Table_PREInspection[[#This Row],[Line]]=\"\",INDEX(Table_PREInfo[],Table_PREInspection[[#This Row],[Line]],F$3)=\"\"),\"\",INDEX(Table_PREInfo[],Table_PREInspection[[#This Row],[Line]],F$3)),\"\")","v":""},{"$f":"IFERROR(IF(OR(Table_PREInspection[[#This Row],[Line]]=\"\",INDEX(Table_PREInfo[],Table_PREInspection[[#This Row],[Line]],G$3)=\"\"),\"\",INDEX(Table_PREInfo[],Table_PREInspection[[#This Row],[Line]],G$3)),\"\")","v":""},{"$f":"IFERROR(IF(OR(Table_PREInspection[[#This Row],[Line]]=\"\",INDEX(Table_PREInfo[],Table_PREInspection[[#This Row],[Line]],H$3)=\"\"),\"\",INDEX(Table_PREInfo[],Table_PREInspection[[#This Row],[Line]],H$3)),\"\")","v":""},{"$f":"IFERROR(IF(OR(Table_PREInspection[[#This Row],[Line]]=\"\",INDEX(Table_PREInfo[],Table_PREInspection[[#This Row],[Line]],I$3)=\"\"),\"\",INDEX(Table_PREInfo[],Table_PREInspection[[#This Row],[Line]],I$3)),\"\")","v":""},{"$f":"IFERROR(IF(OR(Table_PREInspection[[#This Row],[Line]]=\"\",INDEX(Table_PREInfo[],Table_PREInspection[[#This Row],[Line]],J$3)=\"\"),\"\",INDEX(Table_PREInfo[],Table_PREInspection[[#This Row],[Line]],J$3)),\"\")","v":""},{"$f":"IFERROR(\nIFERROR(OFFSET(Table_TypWattage[[#Headers],[Technology]],MATCH(Table_PREInspection[[#This Row],[Fixture Technology '[E']]] & IF(Table_PREInspection[[#This Row],[Ballast/ Driver '[E']]]<>\"\",\" - \" & Table_PREInspection[[#This Row],[Ballast/ Driver '[E']]],\"\"),Table_TypWattage[Technology],0)+MATCH(Table_PREInspection[[#This Row],[Fixture/ Lamp Wattage '[E']]],INDIRECT(SUBSTITUTE(SUBSTITUTE(Table_PREInspection[[#This Row],[Fixture Technology '[E']]],\" \",\"_\"),\"-\",\"_\")),0)-1,MATCH(Table_PREInspection[[#This Row],['# Lamps/ Fixture '[E']]],'Measure Tables'!$Q$2:$V$2,0)+1),IF(Table_PREInspection[[#This Row],[Schedule]]<>\"\",IF(AND(Table_PREInspection[[#This Row],['# Lamps/ Fixture '[E']]]<>\"\",Table_PREInspection[[#This Row],['# Lamps/ Fixture '[E']]]>0,Table_PREInspection[[#This Row],[Fixture/ Lamp Wattage '[E']]]>0),Table_PREInspection[[#This Row],['# Lamps/ Fixture '[E']]]*Table_PREInspection[[#This Row],[Fixture/ Lamp Wattage '[E']]],Table_PREInspection[[#This Row],[Fixture/ Lamp Wattage '[E']]]),\"\")),\n\"\")","v":""},{"$f":"IFERROR(IF(OR(Table_PREInspection[[#This Row],[Line]]=\"\",INDEX(Table_PREInfo[],Table_PREInspection[[#This Row],[Line]],L$3)=\"\"),\"\",INDEX(Table_PREInfo[],Table_PREInspection[[#This Row],[Line]],L$3)),\"\")","v":""},{"$f":"IFERROR(IF(OR(Table_PREInspection[[#This Row],[Line]]=\"\",INDEX(Table_PREInfo[],Table_PREInspection[[#This Row],[Line]],M$3)=\"\"),\"\",INDEX(Table_PREInfo[],Table_PREInspection[[#This Row],[Line]],M$3)),\"\")","v":""},{"$f":"IFERROR(IF(Table_PREInspection[[#This Row],[Interior/ Exterior]]<>\"\",\n  CONCATENATE(\n  Table_PREInspection[[#This Row],[Interior/ Exterior]],\": \" &\n  Table_PREInspection[[#This Row],[Fixture Technology '[E']]],\n  \" - \",Table_PREInspection[[#This Row],[Fixture Type '[E']]],\" [\",\n  IF(Table_PREInspection[[#This Row],['# Lamps/ Fixture '[E']]]>0,Table_PREInspection[[#This Row],['# Lamps/ Fixture '[E']]] & \"L - \" & Table_PREInspection[[#This Row],[Fixture/ Lamp Wattage '[E']]] & \"W\" & IF(Table_PREInspection[[#This Row],[Ballast/ Driver '[E']]]<>\"\",\" - \" & Table_PREInspection[[#This Row],[Ballast/ Driver '[E']]],\"\"),Table_PREInspection[[#This Row],[Fixture Wattage '[E']]] & \"W\"),\"]\",\n  IF(AND(Table_PREInspection[[#This Row],[Controls '[E']]]<>\"\",Table_PREInspection[[#This Row],[Controls '[E']]]<>\"No Controls\"),\" - \" & Table_PREInspection[[#This Row],[Controls '[E']]],\"\")\n  ),\n\"\"),\"\")","v":""}]
[null,{"$f":"IFERROR(IF(OR(Table_PREInspection[[#This Row],[Line]]=\"\",INDEX(Table_PREInfo[],Table_PREInspection[[#This Row],[Line]],B$3)=\"\"),\"\",INDEX(Table_PREInfo[],Table_PREInspection[[#This Row],[Line]],B$3)),\"\")","v":""},{"$f":"IFERROR(IF(OR(Table_PREInspection[[#This Row],[Line]]=\"\",INDEX(Table_PREInfo[],Table_PREInspection[[#This Row],[Line]],C$3)=\"\"),\"\",INDEX(Table_PREInfo[],Table_PREInspection[[#This Row],[Line]],C$3)),\"\")","v":""},{"$f":"IFERROR(IF(OR(Table_PREInspection[[#This Row],[Line]]=\"\",INDEX(Table_PREInfo[],Table_PREInspection[[#This Row],[Line]],D$3)=\"\"),\"\",INDEX(Table_PREInfo[],Table_PREInspection[[#This Row],[Line]],D$3)),\"\")","v":""},null,{"$f":"IFERROR(IF(OR(Table_PREInspection[[#This Row],[Line]]=\"\",INDEX(Table_PREInfo[],Table_PREInspection[[#This Row],[Line]],F$3)=\"\"),\"\",INDEX(Table_PREInfo[],Table_PREInspection[[#This Row],[Line]],F$3)),\"\")","v":""},{"$f":"IFERROR(IF(OR(Table_PREInspection[[#This Row],[Line]]=\"\",INDEX(Table_PREInfo[],Table_PREInspection[[#This Row],[Line]],G$3)=\"\"),\"\",INDEX(Table_PREInfo[],Table_PREInspection[[#This Row],[Line]],G$3)),\"\")","v":""},{"$f":"IFERROR(IF(OR(Table_PREInspection[[#This Row],[Line]]=\"\",INDEX(Table_PREInfo[],Table_PREInspection[[#This Row],[Line]],H$3)=\"\"),\"\",INDEX(Table_PREInfo[],Table_PREInspection[[#This Row],[Line]],H$3)),\"\")","v":""},{"$f":"IFERROR(IF(OR(Table_PREInspection[[#This Row],[Line]]=\"\",INDEX(Table_PREInfo[],Table_PREInspection[[#This Row],[Line]],I$3)=\"\"),\"\",INDEX(Table_PREInfo[],Table_PREInspection[[#This Row],[Line]],I$3)),\"\")","v":""},{"$f":"IFERROR(IF(OR(Table_PREInspection[[#This Row],[Line]]=\"\",INDEX(Table_PREInfo[],Table_PREInspection[[#This Row],[Line]],J$3)=\"\"),\"\",INDEX(Table_PREInfo[],Table_PREInspection[[#This Row],[Line]],J$3)),\"\")","v":""},{"$f":"IFERROR(\nIFERROR(OFFSET(Table_TypWattage[[#Headers],[Technology]],MATCH(Table_PREInspection[[#This Row],[Fixture Technology '[E']]] & IF(Table_PREInspection[[#This Row],[Ballast/ Driver '[E']]]<>\"\",\" - \" & Table_PREInspection[[#This Row],[Ballast/ Driver '[E']]],\"\"),Table_TypWattage[Technology],0)+MATCH(Table_PREInspection[[#This Row],[Fixture/ Lamp Wattage '[E']]],INDIRECT(SUBSTITUTE(SUBSTITUTE(Table_PREInspection[[#This Row],[Fixture Technology '[E']]],\" \",\"_\"),\"-\",\"_\")),0)-1,MATCH(Table_PREInspection[[#This Row],['# Lamps/ Fixture '[E']]],'Measure Tables'!$Q$2:$V$2,0)+1),IF(Table_PREInspection[[#This Row],[Schedule]]<>\"\",IF(AND(Table_PREInspection[[#This Row],['# Lamps/ Fixture '[E']]]<>\"\",Table_PREInspection[[#This Row],['# Lamps/ Fixture '[E']]]>0,Table_PREInspection[[#This Row],[Fixture/ Lamp Wattage '[E']]]>0),Table_PREInspection[[#This Row],['# Lamps/ Fixture '[E']]]*Table_PREInspection[[#This Row],[Fixture/ Lamp Wattage '[E']]],Table_PREInspection[[#This Row],[Fixture/ Lamp Wattage '[E']]]),\"\")),\n\"\")","v":""},{"$f":"IFERROR(IF(OR(Table_PREInspection[[#This Row],[Line]]=\"\",INDEX(Table_PREInfo[],Table_PREInspection[[#This Row],[Line]],L$3)=\"\"),\"\",INDEX(Table_PREInfo[],Table_PREInspection[[#This Row],[Line]],L$3)),\"\")","v":""},{"$f":"IFERROR(IF(OR(Table_PREInspection[[#This Row],[Line]]=\"\",INDEX(Table_PREInfo[],Table_PREInspection[[#This Row],[Line]],M$3)=\"\"),\"\",INDEX(Table_PREInfo[],Table_PREInspection[[#This Row],[Line]],M$3)),\"\")","v":""},{"$f":"IFERROR(IF(Table_PREInspection[[#This Row],[Interior/ Exterior]]<>\"\",\n  CONCATENATE(\n  Table_PREInspection[[#This Row],[Interior/ Exterior]],\": \" &\n  Table_PREInspection[[#This Row],[Fixture Technology '[E']]],\n  \" - \",Table_PREInspection[[#This Row],[Fixture Type '[E']]],\" [\",\n  IF(Table_PREInspection[[#This Row],['# Lamps/ Fixture '[E']]]>0,Table_PREInspection[[#This Row],['# Lamps/ Fixture '[E']]] & \"L - \" & Table_PREInspection[[#This Row],[Fixture/ Lamp Wattage '[E']]] & \"W\" & IF(Table_PREInspection[[#This Row],[Ballast/ Driver '[E']]]<>\"\",\" - \" & Table_PREInspection[[#This Row],[Ballast/ Driver '[E']]],\"\"),Table_PREInspection[[#This Row],[Fixture Wattage '[E']]] & \"W\"),\"]\",\n  IF(AND(Table_PREInspection[[#This Row],[Controls '[E']]]<>\"\",Table_PREInspection[[#This Row],[Controls '[E']]]<>\"No Controls\"),\" - \" & Table_PREInspection[[#This Row],[Controls '[E']]],\"\")\n  ),\n\"\"),\"\")","v":""}]
[null,{"$f":"IFERROR(IF(OR(Table_PREInspection[[#This Row],[Line]]=\"\",INDEX(Table_PREInfo[],Table_PREInspection[[#This Row],[Line]],B$3)=\"\"),\"\",INDEX(Table_PREInfo[],Table_PREInspection[[#This Row],[Line]],B$3)),\"\")","v":""},{"$f":"IFERROR(IF(OR(Table_PREInspection[[#This Row],[Line]]=\"\",INDEX(Table_PREInfo[],Table_PREInspection[[#This Row],[Line]],C$3)=\"\"),\"\",INDEX(Table_PREInfo[],Table_PREInspection[[#This Row],[Line]],C$3)),\"\")","v":""},{"$f":"IFERROR(IF(OR(Table_PREInspection[[#This Row],[Line]]=\"\",INDEX(Table_PREInfo[],Table_PREInspection[[#This Row],[Line]],D$3)=\"\"),\"\",INDEX(Table_PREInfo[],Table_PREInspection[[#This Row],[Line]],D$3)),\"\")","v":""},null,{"$f":"IFERROR(IF(OR(Table_PREInspection[[#This Row],[Line]]=\"\",INDEX(Table_PREInfo[],Table_PREInspection[[#This Row],[Line]],F$3)=\"\"),\"\",INDEX(Table_PREInfo[],Table_PREInspection[[#This Row],[Line]],F$3)),\"\")","v":""},{"$f":"IFERROR(IF(OR(Table_PREInspection[[#This Row],[Line]]=\"\",INDEX(Table_PREInfo[],Table_PREInspection[[#This Row],[Line]],G$3)=\"\"),\"\",INDEX(Table_PREInfo[],Table_PREInspection[[#This Row],[Line]],G$3)),\"\")","v":""},{"$f":"IFERROR(IF(OR(Table_PREInspection[[#This Row],[Line]]=\"\",INDEX(Table_PREInfo[],Table_PREInspection[[#This Row],[Line]],H$3)=\"\"),\"\",INDEX(Table_PREInfo[],Table_PREInspection[[#This Row],[Line]],H$3)),\"\")","v":""},{"$f":"IFERROR(IF(OR(Table_PREInspection[[#This Row],[Line]]=\"\",INDEX(Table_PREInfo[],Table_PREInspection[[#This Row],[Line]],I$3)=\"\"),\"\",INDEX(Table_PREInfo[],Table_PREInspection[[#This Row],[Line]],I$3)),\"\")","v":""},{"$f":"IFERROR(IF(OR(Table_PREInspection[[#This Row],[Line]]=\"\",INDEX(Table_PREInfo[],Table_PREInspection[[#This Row],[Line]],J$3)=\"\"),\"\",INDEX(Table_PREInfo[],Table_PREInspection[[#This Row],[Line]],J$3)),\"\")","v":""},{"$f":"IFERROR(\nIFERROR(OFFSET(Table_TypWattage[[#Headers],[Technology]],MATCH(Table_PREInspection[[#This Row],[Fixture Technology '[E']]] & IF(Table_PREInspection[[#This Row],[Ballast/ Driver '[E']]]<>\"\",\" - \" & Table_PREInspection[[#This Row],[Ballast/ Driver '[E']]],\"\"),Table_TypWattage[Technology],0)+MATCH(Table_PREInspection[[#This Row],[Fixture/ Lamp Wattage '[E']]],INDIRECT(SUBSTITUTE(SUBSTITUTE(Table_PREInspection[[#This Row],[Fixture Technology '[E']]],\" \",\"_\"),\"-\",\"_\")),0)-1,MATCH(Table_PREInspection[[#This Row],['# Lamps/ Fixture '[E']]],'Measure Tables'!$Q$2:$V$2,0)+1),IF(Table_PREInspection[[#This Row],[Schedule]]<>\"\",IF(AND(Table_PREInspection[[#This Row],['# Lamps/ Fixture '[E']]]<>\"\",Table_PREInspection[[#This Row],['# Lamps/ Fixture '[E']]]>0,Table_PREInspection[[#This Row],[Fixture/ Lamp Wattage '[E']]]>0),Table_PREInspection[[#This Row],['# Lamps/ Fixture '[E']]]*Table_PREInspection[[#This Row],[Fixture/ Lamp Wattage '[E']]],Table_PREInspection[[#This Row],[Fixture/ Lamp Wattage '[E']]]),\"\")),\n\"\")","v":""},{"$f":"IFERROR(IF(OR(Table_PREInspection[[#This Row],[Line]]=\"\",INDEX(Table_PREInfo[],Table_PREInspection[[#This Row],[Line]],L$3)=\"\"),\"\",INDEX(Table_PREInfo[],Table_PREInspection[[#This Row],[Line]],L$3)),\"\")","v":""},{"$f":"IFERROR(IF(OR(Table_PREInspection[[#This Row],[Line]]=\"\",INDEX(Table_PREInfo[],Table_PREInspection[[#This Row],[Line]],M$3)=\"\"),\"\",INDEX(Table_PREInfo[],Table_PREInspection[[#This Row],[Line]],M$3)),\"\")","v":""},{"$f":"IFERROR(IF(Table_PREInspection[[#This Row],[Interior/ Exterior]]<>\"\",\n  CONCATENATE(\n  Table_PREInspection[[#This Row],[Interior/ Exterior]],\": \" &\n  Table_PREInspection[[#This Row],[Fixture Technology '[E']]],\n  \" - \",Table_PREInspection[[#This Row],[Fixture Type '[E']]],\" [\",\n  IF(Table_PREInspection[[#This Row],['# Lamps/ Fixture '[E']]]>0,Table_PREInspection[[#This Row],['# Lamps/ Fixture '[E']]] & \"L - \" & Table_PREInspection[[#This Row],[Fixture/ Lamp Wattage '[E']]] & \"W\" & IF(Table_PREInspection[[#This Row],[Ballast/ Driver '[E']]]<>\"\",\" - \" & Table_PREInspection[[#This Row],[Ballast/ Driver '[E']]],\"\"),Table_PREInspection[[#This Row],[Fixture Wattage '[E']]] & \"W\"),\"]\",\n  IF(AND(Table_PREInspection[[#This Row],[Controls '[E']]]<>\"\",Table_PREInspection[[#This Row],[Controls '[E']]]<>\"No Controls\"),\" - \" & Table_PREInspection[[#This Row],[Controls '[E']]],\"\")\n  ),\n\"\"),\"\")","v":""}]
[null,{"$f":"IFERROR(IF(OR(Table_PREInspection[[#This Row],[Line]]=\"\",INDEX(Table_PREInfo[],Table_PREInspection[[#This Row],[Line]],B$3)=\"\"),\"\",INDEX(Table_PREInfo[],Table_PREInspection[[#This Row],[Line]],B$3)),\"\")","v":""},{"$f":"IFERROR(IF(OR(Table_PREInspection[[#This Row],[Line]]=\"\",INDEX(Table_PREInfo[],Table_PREInspection[[#This Row],[Line]],C$3)=\"\"),\"\",INDEX(Table_PREInfo[],Table_PREInspection[[#This Row],[Line]],C$3)),\"\")","v":""},{"$f":"IFERROR(IF(OR(Table_PREInspection[[#This Row],[Line]]=\"\",INDEX(Table_PREInfo[],Table_PREInspection[[#This Row],[Line]],D$3)=\"\"),\"\",INDEX(Table_PREInfo[],Table_PREInspection[[#This Row],[Line]],D$3)),\"\")","v":""},null,{"$f":"IFERROR(IF(OR(Table_PREInspection[[#This Row],[Line]]=\"\",INDEX(Table_PREInfo[],Table_PREInspection[[#This Row],[Line]],F$3)=\"\"),\"\",INDEX(Table_PREInfo[],Table_PREInspection[[#This Row],[Line]],F$3)),\"\")","v":""},{"$f":"IFERROR(IF(OR(Table_PREInspection[[#This Row],[Line]]=\"\",INDEX(Table_PREInfo[],Table_PREInspection[[#This Row],[Line]],G$3)=\"\"),\"\",INDEX(Table_PREInfo[],Table_PREInspection[[#This Row],[Line]],G$3)),\"\")","v":""},{"$f":"IFERROR(IF(OR(Table_PREInspection[[#This Row],[Line]]=\"\",INDEX(Table_PREInfo[],Table_PREInspection[[#This Row],[Line]],H$3)=\"\"),\"\",INDEX(Table_PREInfo[],Table_PREInspection[[#This Row],[Line]],H$3)),\"\")","v":""},{"$f":"IFERROR(IF(OR(Table_PREInspection[[#This Row],[Line]]=\"\",INDEX(Table_PREInfo[],Table_PREInspection[[#This Row],[Line]],I$3)=\"\"),\"\",INDEX(Table_PREInfo[],Table_PREInspection[[#This Row],[Line]],I$3)),\"\")","v":""},{"$f":"IFERROR(IF(OR(Table_PREInspection[[#This Row],[Line]]=\"\",INDEX(Table_PREInfo[],Table_PREInspection[[#This Row],[Line]],J$3)=\"\"),\"\",INDEX(Table_PREInfo[],Table_PREInspection[[#This Row],[Line]],J$3)),\"\")","v":""},{"$f":"IFERROR(\nIFERROR(OFFSET(Table_TypWattage[[#Headers],[Technology]],MATCH(Table_PREInspection[[#This Row],[Fixture Technology '[E']]] & IF(Table_PREInspection[[#This Row],[Ballast/ Driver '[E']]]<>\"\",\" - \" & Table_PREInspection[[#This Row],[Ballast/ Driver '[E']]],\"\"),Table_TypWattage[Technology],0)+MATCH(Table_PREInspection[[#This Row],[Fixture/ Lamp Wattage '[E']]],INDIRECT(SUBSTITUTE(SUBSTITUTE(Table_PREInspection[[#This Row],[Fixture Technology '[E']]],\" \",\"_\"),\"-\",\"_\")),0)-1,MATCH(Table_PREInspection[[#This Row],['# Lamps/ Fixture '[E']]],'Measure Tables'!$Q$2:$V$2,0)+1),IF(Table_PREInspection[[#This Row],[Schedule]]<>\"\",IF(AND(Table_PREInspection[[#This Row],['# Lamps/ Fixture '[E']]]<>\"\",Table_PREInspection[[#This Row],['# Lamps/ Fixture '[E']]]>0,Table_PREInspection[[#This Row],[Fixture/ Lamp Wattage '[E']]]>0),Table_PREInspection[[#This Row],['# Lamps/ Fixture '[E']]]*Table_PREInspection[[#This Row],[Fixture/ Lamp Wattage '[E']]],Table_PREInspection[[#This Row],[Fixture/ Lamp Wattage '[E']]]),\"\")),\n\"\")","v":""},{"$f":"IFERROR(IF(OR(Table_PREInspection[[#This Row],[Line]]=\"\",INDEX(Table_PREInfo[],Table_PREInspection[[#This Row],[Line]],L$3)=\"\"),\"\",INDEX(Table_PREInfo[],Table_PREInspection[[#This Row],[Line]],L$3)),\"\")","v":""},{"$f":"IFERROR(IF(OR(Table_PREInspection[[#This Row],[Line]]=\"\",INDEX(Table_PREInfo[],Table_PREInspection[[#This Row],[Line]],M$3)=\"\"),\"\",INDEX(Table_PREInfo[],Table_PREInspection[[#This Row],[Line]],M$3)),\"\")","v":""},{"$f":"IFERROR(IF(Table_PREInspection[[#This Row],[Interior/ Exterior]]<>\"\",\n  CONCATENATE(\n  Table_PREInspection[[#This Row],[Interior/ Exterior]],\": \" &\n  Table_PREInspection[[#This Row],[Fixture Technology '[E']]],\n  \" - \",Table_PREInspection[[#This Row],[Fixture Type '[E']]],\" [\",\n  IF(Table_PREInspection[[#This Row],['# Lamps/ Fixture '[E']]]>0,Table_PREInspection[[#This Row],['# Lamps/ Fixture '[E']]] & \"L - \" & Table_PREInspection[[#This Row],[Fixture/ Lamp Wattage '[E']]] & \"W\" & IF(Table_PREInspection[[#This Row],[Ballast/ Driver '[E']]]<>\"\",\" - \" & Table_PREInspection[[#This Row],[Ballast/ Driver '[E']]],\"\"),Table_PREInspection[[#This Row],[Fixture Wattage '[E']]] & \"W\"),\"]\",\n  IF(AND(Table_PREInspection[[#This Row],[Controls '[E']]]<>\"\",Table_PREInspection[[#This Row],[Controls '[E']]]<>\"No Controls\"),\" - \" & Table_PREInspection[[#This Row],[Controls '[E']]],\"\")\n  ),\n\"\"),\"\")","v":""}]
[null,{"$f":"IFERROR(IF(OR(Table_PREInspection[[#This Row],[Line]]=\"\",INDEX(Table_PREInfo[],Table_PREInspection[[#This Row],[Line]],B$3)=\"\"),\"\",INDEX(Table_PREInfo[],Table_PREInspection[[#This Row],[Line]],B$3)),\"\")","v":""},{"$f":"IFERROR(IF(OR(Table_PREInspection[[#This Row],[Line]]=\"\",INDEX(Table_PREInfo[],Table_PREInspection[[#This Row],[Line]],C$3)=\"\"),\"\",INDEX(Table_PREInfo[],Table_PREInspection[[#This Row],[Line]],C$3)),\"\")","v":""},{"$f":"IFERROR(IF(OR(Table_PREInspection[[#This Row],[Line]]=\"\",INDEX(Table_PREInfo[],Table_PREInspection[[#This Row],[Line]],D$3)=\"\"),\"\",INDEX(Table_PREInfo[],Table_PREInspection[[#This Row],[Line]],D$3)),\"\")","v":""},null,{"$f":"IFERROR(IF(OR(Table_PREInspection[[#This Row],[Line]]=\"\",INDEX(Table_PREInfo[],Table_PREInspection[[#This Row],[Line]],F$3)=\"\"),\"\",INDEX(Table_PREInfo[],Table_PREInspection[[#This Row],[Line]],F$3)),\"\")","v":""},{"$f":"IFERROR(IF(OR(Table_PREInspection[[#This Row],[Line]]=\"\",INDEX(Table_PREInfo[],Table_PREInspection[[#This Row],[Line]],G$3)=\"\"),\"\",INDEX(Table_PREInfo[],Table_PREInspection[[#This Row],[Line]],G$3)),\"\")","v":""},{"$f":"IFERROR(IF(OR(Table_PREInspection[[#This Row],[Line]]=\"\",INDEX(Table_PREInfo[],Table_PREInspection[[#This Row],[Line]],H$3)=\"\"),\"\",INDEX(Table_PREInfo[],Table_PREInspection[[#This Row],[Line]],H$3)),\"\")","v":""},{"$f":"IFERROR(IF(OR(Table_PREInspection[[#This Row],[Line]]=\"\",INDEX(Table_PREInfo[],Table_PREInspection[[#This Row],[Line]],I$3)=\"\"),\"\",INDEX(Table_PREInfo[],Table_PREInspection[[#This Row],[Line]],I$3)),\"\")","v":""},{"$f":"IFERROR(IF(OR(Table_PREInspection[[#This Row],[Line]]=\"\",INDEX(Table_PREInfo[],Table_PREInspection[[#This Row],[Line]],J$3)=\"\"),\"\",INDEX(Table_PREInfo[],Table_PREInspection[[#This Row],[Line]],J$3)),\"\")","v":""},{"$f":"IFERROR(\nIFERROR(OFFSET(Table_TypWattage[[#Headers],[Technology]],MATCH(Table_PREInspection[[#This Row],[Fixture Technology '[E']]] & IF(Table_PREInspection[[#This Row],[Ballast/ Driver '[E']]]<>\"\",\" - \" & Table_PREInspection[[#This Row],[Ballast/ Driver '[E']]],\"\"),Table_TypWattage[Technology],0)+MATCH(Table_PREInspection[[#This Row],[Fixture/ Lamp Wattage '[E']]],INDIRECT(SUBSTITUTE(SUBSTITUTE(Table_PREInspection[[#This Row],[Fixture Technology '[E']]],\" \",\"_\"),\"-\",\"_\")),0)-1,MATCH(Table_PREInspection[[#This Row],['# Lamps/ Fixture '[E']]],'Measure Tables'!$Q$2:$V$2,0)+1),IF(Table_PREInspection[[#This Row],[Schedule]]<>\"\",IF(AND(Table_PREInspection[[#This Row],['# Lamps/ Fixture '[E']]]<>\"\",Table_PREInspection[[#This Row],['# Lamps/ Fixture '[E']]]>0,Table_PREInspection[[#This Row],[Fixture/ Lamp Wattage '[E']]]>0),Table_PREInspection[[#This Row],['# Lamps/ Fixture '[E']]]*Table_PREInspection[[#This Row],[Fixture/ Lamp Wattage '[E']]],Table_PREInspection[[#This Row],[Fixture/ Lamp Wattage '[E']]]),\"\")),\n\"\")","v":""},{"$f":"IFERROR(IF(OR(Table_PREInspection[[#This Row],[Line]]=\"\",INDEX(Table_PREInfo[],Table_PREInspection[[#This Row],[Line]],L$3)=\"\"),\"\",INDEX(Table_PREInfo[],Table_PREInspection[[#This Row],[Line]],L$3)),\"\")","v":""},{"$f":"IFERROR(IF(OR(Table_PREInspection[[#This Row],[Line]]=\"\",INDEX(Table_PREInfo[],Table_PREInspection[[#This Row],[Line]],M$3)=\"\"),\"\",INDEX(Table_PREInfo[],Table_PREInspection[[#This Row],[Line]],M$3)),\"\")","v":""},{"$f":"IFERROR(IF(Table_PREInspection[[#This Row],[Interior/ Exterior]]<>\"\",\n  CONCATENATE(\n  Table_PREInspection[[#This Row],[Interior/ Exterior]],\": \" &\n  Table_PREInspection[[#This Row],[Fixture Technology '[E']]],\n  \" - \",Table_PREInspection[[#This Row],[Fixture Type '[E']]],\" [\",\n  IF(Table_PREInspection[[#This Row],['# Lamps/ Fixture '[E']]]>0,Table_PREInspection[[#This Row],['# Lamps/ Fixture '[E']]] & \"L - \" & Table_PREInspection[[#This Row],[Fixture/ Lamp Wattage '[E']]] & \"W\" & IF(Table_PREInspection[[#This Row],[Ballast/ Driver '[E']]]<>\"\",\" - \" & Table_PREInspection[[#This Row],[Ballast/ Driver '[E']]],\"\"),Table_PREInspection[[#This Row],[Fixture Wattage '[E']]] & \"W\"),\"]\",\n  IF(AND(Table_PREInspection[[#This Row],[Controls '[E']]]<>\"\",Table_PREInspection[[#This Row],[Controls '[E']]]<>\"No Controls\"),\" - \" & Table_PREInspection[[#This Row],[Controls '[E']]],\"\")\n  ),\n\"\"),\"\")","v":""}]
[null,{"$f":"IFERROR(IF(OR(Table_PREInspection[[#This Row],[Line]]=\"\",INDEX(Table_PREInfo[],Table_PREInspection[[#This Row],[Line]],B$3)=\"\"),\"\",INDEX(Table_PREInfo[],Table_PREInspection[[#This Row],[Line]],B$3)),\"\")","v":""},{"$f":"IFERROR(IF(OR(Table_PREInspection[[#This Row],[Line]]=\"\",INDEX(Table_PREInfo[],Table_PREInspection[[#This Row],[Line]],C$3)=\"\"),\"\",INDEX(Table_PREInfo[],Table_PREInspection[[#This Row],[Line]],C$3)),\"\")","v":""},{"$f":"IFERROR(IF(OR(Table_PREInspection[[#This Row],[Line]]=\"\",INDEX(Table_PREInfo[],Table_PREInspection[[#This Row],[Line]],D$3)=\"\"),\"\",INDEX(Table_PREInfo[],Table_PREInspection[[#This Row],[Line]],D$3)),\"\")","v":""},null,{"$f":"IFERROR(IF(OR(Table_PREInspection[[#This Row],[Line]]=\"\",INDEX(Table_PREInfo[],Table_PREInspection[[#This Row],[Line]],F$3)=\"\"),\"\",INDEX(Table_PREInfo[],Table_PREInspection[[#This Row],[Line]],F$3)),\"\")","v":""},{"$f":"IFERROR(IF(OR(Table_PREInspection[[#This Row],[Line]]=\"\",INDEX(Table_PREInfo[],Table_PREInspection[[#This Row],[Line]],G$3)=\"\"),\"\",INDEX(Table_PREInfo[],Table_PREInspection[[#This Row],[Line]],G$3)),\"\")","v":""},{"$f":"IFERROR(IF(OR(Table_PREInspection[[#This Row],[Line]]=\"\",INDEX(Table_PREInfo[],Table_PREInspection[[#This Row],[Line]],H$3)=\"\"),\"\",INDEX(Table_PREInfo[],Table_PREInspection[[#This Row],[Line]],H$3)),\"\")","v":""},{"$f":"IFERROR(IF(OR(Table_PREInspection[[#This Row],[Line]]=\"\",INDEX(Table_PREInfo[],Table_PREInspection[[#This Row],[Line]],I$3)=\"\"),\"\",INDEX(Table_PREInfo[],Table_PREInspection[[#This Row],[Line]],I$3)),\"\")","v":""},{"$f":"IFERROR(IF(OR(Table_PREInspection[[#This Row],[Line]]=\"\",INDEX(Table_PREInfo[],Table_PREInspection[[#This Row],[Line]],J$3)=\"\"),\"\",INDEX(Table_PREInfo[],Table_PREInspection[[#This Row],[Line]],J$3)),\"\")","v":""},{"$f":"IFERROR(\nIFERROR(OFFSET(Table_TypWattage[[#Headers],[Technology]],MATCH(Table_PREInspection[[#This Row],[Fixture Technology '[E']]] & IF(Table_PREInspection[[#This Row],[Ballast/ Driver '[E']]]<>\"\",\" - \" & Table_PREInspection[[#This Row],[Ballast/ Driver '[E']]],\"\"),Table_TypWattage[Technology],0)+MATCH(Table_PREInspection[[#This Row],[Fixture/ Lamp Wattage '[E']]],INDIRECT(SUBSTITUTE(SUBSTITUTE(Table_PREInspection[[#This Row],[Fixture Technology '[E']]],\" \",\"_\"),\"-\",\"_\")),0)-1,MATCH(Table_PREInspection[[#This Row],['# Lamps/ Fixture '[E']]],'Measure Tables'!$Q$2:$V$2,0)+1),IF(Table_PREInspection[[#This Row],[Schedule]]<>\"\",IF(AND(Table_PREInspection[[#This Row],['# Lamps/ Fixture '[E']]]<>\"\",Table_PREInspection[[#This Row],['# Lamps/ Fixture '[E']]]>0,Table_PREInspection[[#This Row],[Fixture/ Lamp Wattage '[E']]]>0),Table_PREInspection[[#This Row],['# Lamps/ Fixture '[E']]]*Table_PREInspection[[#This Row],[Fixture/ Lamp Wattage '[E']]],Table_PREInspection[[#This Row],[Fixture/ Lamp Wattage '[E']]]),\"\")),\n\"\")","v":""},{"$f":"IFERROR(IF(OR(Table_PREInspection[[#This Row],[Line]]=\"\",INDEX(Table_PREInfo[],Table_PREInspection[[#This Row],[Line]],L$3)=\"\"),\"\",INDEX(Table_PREInfo[],Table_PREInspection[[#This Row],[Line]],L$3)),\"\")","v":""},{"$f":"IFERROR(IF(OR(Table_PREInspection[[#This Row],[Line]]=\"\",INDEX(Table_PREInfo[],Table_PREInspection[[#This Row],[Line]],M$3)=\"\"),\"\",INDEX(Table_PREInfo[],Table_PREInspection[[#This Row],[Line]],M$3)),\"\")","v":""},{"$f":"IFERROR(IF(Table_PREInspection[[#This Row],[Interior/ Exterior]]<>\"\",\n  CONCATENATE(\n  Table_PREInspection[[#This Row],[Interior/ Exterior]],\": \" &\n  Table_PREInspection[[#This Row],[Fixture Technology '[E']]],\n  \" - \",Table_PREInspection[[#This Row],[Fixture Type '[E']]],\" [\",\n  IF(Table_PREInspection[[#This Row],['# Lamps/ Fixture '[E']]]>0,Table_PREInspection[[#This Row],['# Lamps/ Fixture '[E']]] & \"L - \" & Table_PREInspection[[#This Row],[Fixture/ Lamp Wattage '[E']]] & \"W\" & IF(Table_PREInspection[[#This Row],[Ballast/ Driver '[E']]]<>\"\",\" - \" & Table_PREInspection[[#This Row],[Ballast/ Driver '[E']]],\"\"),Table_PREInspection[[#This Row],[Fixture Wattage '[E']]] & \"W\"),\"]\",\n  IF(AND(Table_PREInspection[[#This Row],[Controls '[E']]]<>\"\",Table_PREInspection[[#This Row],[Controls '[E']]]<>\"No Controls\"),\" - \" & Table_PREInspection[[#This Row],[Controls '[E']]],\"\")\n  ),\n\"\"),\"\")","v":""}]
[null,{"$f":"IFERROR(IF(OR(Table_PREInspection[[#This Row],[Line]]=\"\",INDEX(Table_PREInfo[],Table_PREInspection[[#This Row],[Line]],B$3)=\"\"),\"\",INDEX(Table_PREInfo[],Table_PREInspection[[#This Row],[Line]],B$3)),\"\")","v":""},{"$f":"IFERROR(IF(OR(Table_PREInspection[[#This Row],[Line]]=\"\",INDEX(Table_PREInfo[],Table_PREInspection[[#This Row],[Line]],C$3)=\"\"),\"\",INDEX(Table_PREInfo[],Table_PREInspection[[#This Row],[Line]],C$3)),\"\")","v":""},{"$f":"IFERROR(IF(OR(Table_PREInspection[[#This Row],[Line]]=\"\",INDEX(Table_PREInfo[],Table_PREInspection[[#This Row],[Line]],D$3)=\"\"),\"\",INDEX(Table_PREInfo[],Table_PREInspection[[#This Row],[Line]],D$3)),\"\")","v":""},null,{"$f":"IFERROR(IF(OR(Table_PREInspection[[#This Row],[Line]]=\"\",INDEX(Table_PREInfo[],Table_PREInspection[[#This Row],[Line]],F$3)=\"\"),\"\",INDEX(Table_PREInfo[],Table_PREInspection[[#This Row],[Line]],F$3)),\"\")","v":""},{"$f":"IFERROR(IF(OR(Table_PREInspection[[#This Row],[Line]]=\"\",INDEX(Table_PREInfo[],Table_PREInspection[[#This Row],[Line]],G$3)=\"\"),\"\",INDEX(Table_PREInfo[],Table_PREInspection[[#This Row],[Line]],G$3)),\"\")","v":""},{"$f":"IFERROR(IF(OR(Table_PREInspection[[#This Row],[Line]]=\"\",INDEX(Table_PREInfo[],Table_PREInspection[[#This Row],[Line]],H$3)=\"\"),\"\",INDEX(Table_PREInfo[],Table_PREInspection[[#This Row],[Line]],H$3)),\"\")","v":""},{"$f":"IFERROR(IF(OR(Table_PREInspection[[#This Row],[Line]]=\"\",INDEX(Table_PREInfo[],Table_PREInspection[[#This Row],[Line]],I$3)=\"\"),\"\",INDEX(Table_PREInfo[],Table_PREInspection[[#This Row],[Line]],I$3)),\"\")","v":""},{"$f":"IFERROR(IF(OR(Table_PREInspection[[#This Row],[Line]]=\"\",INDEX(Table_PREInfo[],Table_PREInspection[[#This Row],[Line]],J$3)=\"\"),\"\",INDEX(Table_PREInfo[],Table_PREInspection[[#This Row],[Line]],J$3)),\"\")","v":""},{"$f":"IFERROR(\nIFERROR(OFFSET(Table_TypWattage[[#Headers],[Technology]],MATCH(Table_PREInspection[[#This Row],[Fixture Technology '[E']]] & IF(Table_PREInspection[[#This Row],[Ballast/ Driver '[E']]]<>\"\",\" - \" & Table_PREInspection[[#This Row],[Ballast/ Driver '[E']]],\"\"),Table_TypWattage[Technology],0)+MATCH(Table_PREInspection[[#This Row],[Fixture/ Lamp Wattage '[E']]],INDIRECT(SUBSTITUTE(SUBSTITUTE(Table_PREInspection[[#This Row],[Fixture Technology '[E']]],\" \",\"_\"),\"-\",\"_\")),0)-1,MATCH(Table_PREInspection[[#This Row],['# Lamps/ Fixture '[E']]],'Measure Tables'!$Q$2:$V$2,0)+1),IF(Table_PREInspection[[#This Row],[Schedule]]<>\"\",IF(AND(Table_PREInspection[[#This Row],['# Lamps/ Fixture '[E']]]<>\"\",Table_PREInspection[[#This Row],['# Lamps/ Fixture '[E']]]>0,Table_PREInspection[[#This Row],[Fixture/ Lamp Wattage '[E']]]>0),Table_PREInspection[[#This Row],['# Lamps/ Fixture '[E']]]*Table_PREInspection[[#This Row],[Fixture/ Lamp Wattage '[E']]],Table_PREInspection[[#This Row],[Fixture/ Lamp Wattage '[E']]]),\"\")),\n\"\")","v":""},{"$f":"IFERROR(IF(OR(Table_PREInspection[[#This Row],[Line]]=\"\",INDEX(Table_PREInfo[],Table_PREInspection[[#This Row],[Line]],L$3)=\"\"),\"\",INDEX(Table_PREInfo[],Table_PREInspection[[#This Row],[Line]],L$3)),\"\")","v":""},{"$f":"IFERROR(IF(OR(Table_PREInspection[[#This Row],[Line]]=\"\",INDEX(Table_PREInfo[],Table_PREInspection[[#This Row],[Line]],M$3)=\"\"),\"\",INDEX(Table_PREInfo[],Table_PREInspection[[#This Row],[Line]],M$3)),\"\")","v":""},{"$f":"IFERROR(IF(Table_PREInspection[[#This Row],[Interior/ Exterior]]<>\"\",\n  CONCATENATE(\n  Table_PREInspection[[#This Row],[Interior/ Exterior]],\": \" &\n  Table_PREInspection[[#This Row],[Fixture Technology '[E']]],\n  \" - \",Table_PREInspection[[#This Row],[Fixture Type '[E']]],\" [\",\n  IF(Table_PREInspection[[#This Row],['# Lamps/ Fixture '[E']]]>0,Table_PREInspection[[#This Row],['# Lamps/ Fixture '[E']]] & \"L - \" & Table_PREInspection[[#This Row],[Fixture/ Lamp Wattage '[E']]] & \"W\" & IF(Table_PREInspection[[#This Row],[Ballast/ Driver '[E']]]<>\"\",\" - \" & Table_PREInspection[[#This Row],[Ballast/ Driver '[E']]],\"\"),Table_PREInspection[[#This Row],[Fixture Wattage '[E']]] & \"W\"),\"]\",\n  IF(AND(Table_PREInspection[[#This Row],[Controls '[E']]]<>\"\",Table_PREInspection[[#This Row],[Controls '[E']]]<>\"No Controls\"),\" - \" & Table_PREInspection[[#This Row],[Controls '[E']]],\"\")\n  ),\n\"\"),\"\")","v":""}]
[null,{"$f":"IFERROR(IF(OR(Table_PREInspection[[#This Row],[Line]]=\"\",INDEX(Table_PREInfo[],Table_PREInspection[[#This Row],[Line]],B$3)=\"\"),\"\",INDEX(Table_PREInfo[],Table_PREInspection[[#This Row],[Line]],B$3)),\"\")","v":""},{"$f":"IFERROR(IF(OR(Table_PREInspection[[#This Row],[Line]]=\"\",INDEX(Table_PREInfo[],Table_PREInspection[[#This Row],[Line]],C$3)=\"\"),\"\",INDEX(Table_PREInfo[],Table_PREInspection[[#This Row],[Line]],C$3)),\"\")","v":""},{"$f":"IFERROR(IF(OR(Table_PREInspection[[#This Row],[Line]]=\"\",INDEX(Table_PREInfo[],Table_PREInspection[[#This Row],[Line]],D$3)=\"\"),\"\",INDEX(Table_PREInfo[],Table_PREInspection[[#This Row],[Line]],D$3)),\"\")","v":""},null,{"$f":"IFERROR(IF(OR(Table_PREInspection[[#This Row],[Line]]=\"\",INDEX(Table_PREInfo[],Table_PREInspection[[#This Row],[Line]],F$3)=\"\"),\"\",INDEX(Table_PREInfo[],Table_PREInspection[[#This Row],[Line]],F$3)),\"\")","v":""},{"$f":"IFERROR(IF(OR(Table_PREInspection[[#This Row],[Line]]=\"\",INDEX(Table_PREInfo[],Table_PREInspection[[#This Row],[Line]],G$3)=\"\"),\"\",INDEX(Table_PREInfo[],Table_PREInspection[[#This Row],[Line]],G$3)),\"\")","v":""},{"$f":"IFERROR(IF(OR(Table_PREInspection[[#This Row],[Line]]=\"\",INDEX(Table_PREInfo[],Table_PREInspection[[#This Row],[Line]],H$3)=\"\"),\"\",INDEX(Table_PREInfo[],Table_PREInspection[[#This Row],[Line]],H$3)),\"\")","v":""},{"$f":"IFERROR(IF(OR(Table_PREInspection[[#This Row],[Line]]=\"\",INDEX(Table_PREInfo[],Table_PREInspection[[#This Row],[Line]],I$3)=\"\"),\"\",INDEX(Table_PREInfo[],Table_PREInspection[[#This Row],[Line]],I$3)),\"\")","v":""},{"$f":"IFERROR(IF(OR(Table_PREInspection[[#This Row],[Line]]=\"\",INDEX(Table_PREInfo[],Table_PREInspection[[#This Row],[Line]],J$3)=\"\"),\"\",INDEX(Table_PREInfo[],Table_PREInspection[[#This Row],[Line]],J$3)),\"\")","v":""},{"$f":"IFERROR(\nIFERROR(OFFSET(Table_TypWattage[[#Headers],[Technology]],MATCH(Table_PREInspection[[#This Row],[Fixture Technology '[E']]] & IF(Table_PREInspection[[#This Row],[Ballast/ Driver '[E']]]<>\"\",\" - \" & Table_PREInspection[[#This Row],[Ballast/ Driver '[E']]],\"\"),Table_TypWattage[Technology],0)+MATCH(Table_PREInspection[[#This Row],[Fixture/ Lamp Wattage '[E']]],INDIRECT(SUBSTITUTE(SUBSTITUTE(Table_PREInspection[[#This Row],[Fixture Technology '[E']]],\" \",\"_\"),\"-\",\"_\")),0)-1,MATCH(Table_PREInspection[[#This Row],['# Lamps/ Fixture '[E']]],'Measure Tables'!$Q$2:$V$2,0)+1),IF(Table_PREInspection[[#This Row],[Schedule]]<>\"\",IF(AND(Table_PREInspection[[#This Row],['# Lamps/ Fixture '[E']]]<>\"\",Table_PREInspection[[#This Row],['# Lamps/ Fixture '[E']]]>0,Table_PREInspection[[#This Row],[Fixture/ Lamp Wattage '[E']]]>0),Table_PREInspection[[#This Row],['# Lamps/ Fixture '[E']]]*Table_PREInspection[[#This Row],[Fixture/ Lamp Wattage '[E']]],Table_PREInspection[[#This Row],[Fixture/ Lamp Wattage '[E']]]),\"\")),\n\"\")","v":""},{"$f":"IFERROR(IF(OR(Table_PREInspection[[#This Row],[Line]]=\"\",INDEX(Table_PREInfo[],Table_PREInspection[[#This Row],[Line]],L$3)=\"\"),\"\",INDEX(Table_PREInfo[],Table_PREInspection[[#This Row],[Line]],L$3)),\"\")","v":""},{"$f":"IFERROR(IF(OR(Table_PREInspection[[#This Row],[Line]]=\"\",INDEX(Table_PREInfo[],Table_PREInspection[[#This Row],[Line]],M$3)=\"\"),\"\",INDEX(Table_PREInfo[],Table_PREInspection[[#This Row],[Line]],M$3)),\"\")","v":""},{"$f":"IFERROR(IF(Table_PREInspection[[#This Row],[Interior/ Exterior]]<>\"\",\n  CONCATENATE(\n  Table_PREInspection[[#This Row],[Interior/ Exterior]],\": \" &\n  Table_PREInspection[[#This Row],[Fixture Technology '[E']]],\n  \" - \",Table_PREInspection[[#This Row],[Fixture Type '[E']]],\" [\",\n  IF(Table_PREInspection[[#This Row],['# Lamps/ Fixture '[E']]]>0,Table_PREInspection[[#This Row],['# Lamps/ Fixture '[E']]] & \"L - \" & Table_PREInspection[[#This Row],[Fixture/ Lamp Wattage '[E']]] & \"W\" & IF(Table_PREInspection[[#This Row],[Ballast/ Driver '[E']]]<>\"\",\" - \" & Table_PREInspection[[#This Row],[Ballast/ Driver '[E']]],\"\"),Table_PREInspection[[#This Row],[Fixture Wattage '[E']]] & \"W\"),\"]\",\n  IF(AND(Table_PREInspection[[#This Row],[Controls '[E']]]<>\"\",Table_PREInspection[[#This Row],[Controls '[E']]]<>\"No Controls\"),\" - \" & Table_PREInspection[[#This Row],[Controls '[E']]],\"\")\n  ),\n\"\"),\"\")","v":""}]
[null,{"$f":"IFERROR(IF(OR(Table_PREInspection[[#This Row],[Line]]=\"\",INDEX(Table_PREInfo[],Table_PREInspection[[#This Row],[Line]],B$3)=\"\"),\"\",INDEX(Table_PREInfo[],Table_PREInspection[[#This Row],[Line]],B$3)),\"\")","v":""},{"$f":"IFERROR(IF(OR(Table_PREInspection[[#This Row],[Line]]=\"\",INDEX(Table_PREInfo[],Table_PREInspection[[#This Row],[Line]],C$3)=\"\"),\"\",INDEX(Table_PREInfo[],Table_PREInspection[[#This Row],[Line]],C$3)),\"\")","v":""},{"$f":"IFERROR(IF(OR(Table_PREInspection[[#This Row],[Line]]=\"\",INDEX(Table_PREInfo[],Table_PREInspection[[#This Row],[Line]],D$3)=\"\"),\"\",INDEX(Table_PREInfo[],Table_PREInspection[[#This Row],[Line]],D$3)),\"\")","v":""},null,{"$f":"IFERROR(IF(OR(Table_PREInspection[[#This Row],[Line]]=\"\",INDEX(Table_PREInfo[],Table_PREInspection[[#This Row],[Line]],F$3)=\"\"),\"\",INDEX(Table_PREInfo[],Table_PREInspection[[#This Row],[Line]],F$3)),\"\")","v":""},{"$f":"IFERROR(IF(OR(Table_PREInspection[[#This Row],[Line]]=\"\",INDEX(Table_PREInfo[],Table_PREInspection[[#This Row],[Line]],G$3)=\"\"),\"\",INDEX(Table_PREInfo[],Table_PREInspection[[#This Row],[Line]],G$3)),\"\")","v":""},{"$f":"IFERROR(IF(OR(Table_PREInspection[[#This Row],[Line]]=\"\",INDEX(Table_PREInfo[],Table_PREInspection[[#This Row],[Line]],H$3)=\"\"),\"\",INDEX(Table_PREInfo[],Table_PREInspection[[#This Row],[Line]],H$3)),\"\")","v":""},{"$f":"IFERROR(IF(OR(Table_PREInspection[[#This Row],[Line]]=\"\",INDEX(Table_PREInfo[],Table_PREInspection[[#This Row],[Line]],I$3)=\"\"),\"\",INDEX(Table_PREInfo[],Table_PREInspection[[#This Row],[Line]],I$3)),\"\")","v":""},{"$f":"IFERROR(IF(OR(Table_PREInspection[[#This Row],[Line]]=\"\",INDEX(Table_PREInfo[],Table_PREInspection[[#This Row],[Line]],J$3)=\"\"),\"\",INDEX(Table_PREInfo[],Table_PREInspection[[#This Row],[Line]],J$3)),\"\")","v":""},{"$f":"IFERROR(\nIFERROR(OFFSET(Table_TypWattage[[#Headers],[Technology]],MATCH(Table_PREInspection[[#This Row],[Fixture Technology '[E']]] & IF(Table_PREInspection[[#This Row],[Ballast/ Driver '[E']]]<>\"\",\" - \" & Table_PREInspection[[#This Row],[Ballast/ Driver '[E']]],\"\"),Table_TypWattage[Technology],0)+MATCH(Table_PREInspection[[#This Row],[Fixture/ Lamp Wattage '[E']]],INDIRECT(SUBSTITUTE(SUBSTITUTE(Table_PREInspection[[#This Row],[Fixture Technology '[E']]],\" \",\"_\"),\"-\",\"_\")),0)-1,MATCH(Table_PREInspection[[#This Row],['# Lamps/ Fixture '[E']]],'Measure Tables'!$Q$2:$V$2,0)+1),IF(Table_PREInspection[[#This Row],[Schedule]]<>\"\",IF(AND(Table_PREInspection[[#This Row],['# Lamps/ Fixture '[E']]]<>\"\",Table_PREInspection[[#This Row],['# Lamps/ Fixture '[E']]]>0,Table_PREInspection[[#This Row],[Fixture/ Lamp Wattage '[E']]]>0),Table_PREInspection[[#This Row],['# Lamps/ Fixture '[E']]]*Table_PREInspection[[#This Row],[Fixture/ Lamp Wattage '[E']]],Table_PREInspection[[#This Row],[Fixture/ Lamp Wattage '[E']]]),\"\")),\n\"\")","v":""},{"$f":"IFERROR(IF(OR(Table_PREInspection[[#This Row],[Line]]=\"\",INDEX(Table_PREInfo[],Table_PREInspection[[#This Row],[Line]],L$3)=\"\"),\"\",INDEX(Table_PREInfo[],Table_PREInspection[[#This Row],[Line]],L$3)),\"\")","v":""},{"$f":"IFERROR(IF(OR(Table_PREInspection[[#This Row],[Line]]=\"\",INDEX(Table_PREInfo[],Table_PREInspection[[#This Row],[Line]],M$3)=\"\"),\"\",INDEX(Table_PREInfo[],Table_PREInspection[[#This Row],[Line]],M$3)),\"\")","v":""},{"$f":"IFERROR(IF(Table_PREInspection[[#This Row],[Interior/ Exterior]]<>\"\",\n  CONCATENATE(\n  Table_PREInspection[[#This Row],[Interior/ Exterior]],\": \" &\n  Table_PREInspection[[#This Row],[Fixture Technology '[E']]],\n  \" - \",Table_PREInspection[[#This Row],[Fixture Type '[E']]],\" [\",\n  IF(Table_PREInspection[[#This Row],['# Lamps/ Fixture '[E']]]>0,Table_PREInspection[[#This Row],['# Lamps/ Fixture '[E']]] & \"L - \" & Table_PREInspection[[#This Row],[Fixture/ Lamp Wattage '[E']]] & \"W\" & IF(Table_PREInspection[[#This Row],[Ballast/ Driver '[E']]]<>\"\",\" - \" & Table_PREInspection[[#This Row],[Ballast/ Driver '[E']]],\"\"),Table_PREInspection[[#This Row],[Fixture Wattage '[E']]] & \"W\"),\"]\",\n  IF(AND(Table_PREInspection[[#This Row],[Controls '[E']]]<>\"\",Table_PREInspection[[#This Row],[Controls '[E']]]<>\"No Controls\"),\" - \" & Table_PREInspection[[#This Row],[Controls '[E']]],\"\")\n  ),\n\"\"),\"\")","v":""}]
[null,{"$f":"IFERROR(IF(OR(Table_PREInspection[[#This Row],[Line]]=\"\",INDEX(Table_PREInfo[],Table_PREInspection[[#This Row],[Line]],B$3)=\"\"),\"\",INDEX(Table_PREInfo[],Table_PREInspection[[#This Row],[Line]],B$3)),\"\")","v":""},{"$f":"IFERROR(IF(OR(Table_PREInspection[[#This Row],[Line]]=\"\",INDEX(Table_PREInfo[],Table_PREInspection[[#This Row],[Line]],C$3)=\"\"),\"\",INDEX(Table_PREInfo[],Table_PREInspection[[#This Row],[Line]],C$3)),\"\")","v":""},{"$f":"IFERROR(IF(OR(Table_PREInspection[[#This Row],[Line]]=\"\",INDEX(Table_PREInfo[],Table_PREInspection[[#This Row],[Line]],D$3)=\"\"),\"\",INDEX(Table_PREInfo[],Table_PREInspection[[#This Row],[Line]],D$3)),\"\")","v":""},null,{"$f":"IFERROR(IF(OR(Table_PREInspection[[#This Row],[Line]]=\"\",INDEX(Table_PREInfo[],Table_PREInspection[[#This Row],[Line]],F$3)=\"\"),\"\",INDEX(Table_PREInfo[],Table_PREInspection[[#This Row],[Line]],F$3)),\"\")","v":""},{"$f":"IFERROR(IF(OR(Table_PREInspection[[#This Row],[Line]]=\"\",INDEX(Table_PREInfo[],Table_PREInspection[[#This Row],[Line]],G$3)=\"\"),\"\",INDEX(Table_PREInfo[],Table_PREInspection[[#This Row],[Line]],G$3)),\"\")","v":""},{"$f":"IFERROR(IF(OR(Table_PREInspection[[#This Row],[Line]]=\"\",INDEX(Table_PREInfo[],Table_PREInspection[[#This Row],[Line]],H$3)=\"\"),\"\",INDEX(Table_PREInfo[],Table_PREInspection[[#This Row],[Line]],H$3)),\"\")","v":""},{"$f":"IFERROR(IF(OR(Table_PREInspection[[#This Row],[Line]]=\"\",INDEX(Table_PREInfo[],Table_PREInspection[[#This Row],[Line]],I$3)=\"\"),\"\",INDEX(Table_PREInfo[],Table_PREInspection[[#This Row],[Line]],I$3)),\"\")","v":""},{"$f":"IFERROR(IF(OR(Table_PREInspection[[#This Row],[Line]]=\"\",INDEX(Table_PREInfo[],Table_PREInspection[[#This Row],[Line]],J$3)=\"\"),\"\",INDEX(Table_PREInfo[],Table_PREInspection[[#This Row],[Line]],J$3)),\"\")","v":""},{"$f":"IFERROR(\nIFERROR(OFFSET(Table_TypWattage[[#Headers],[Technology]],MATCH(Table_PREInspection[[#This Row],[Fixture Technology '[E']]] & IF(Table_PREInspection[[#This Row],[Ballast/ Driver '[E']]]<>\"\",\" - \" & Table_PREInspection[[#This Row],[Ballast/ Driver '[E']]],\"\"),Table_TypWattage[Technology],0)+MATCH(Table_PREInspection[[#This Row],[Fixture/ Lamp Wattage '[E']]],INDIRECT(SUBSTITUTE(SUBSTITUTE(Table_PREInspection[[#This Row],[Fixture Technology '[E']]],\" \",\"_\"),\"-\",\"_\")),0)-1,MATCH(Table_PREInspection[[#This Row],['# Lamps/ Fixture '[E']]],'Measure Tables'!$Q$2:$V$2,0)+1),IF(Table_PREInspection[[#This Row],[Schedule]]<>\"\",IF(AND(Table_PREInspection[[#This Row],['# Lamps/ Fixture '[E']]]<>\"\",Table_PREInspection[[#This Row],['# Lamps/ Fixture '[E']]]>0,Table_PREInspection[[#This Row],[Fixture/ Lamp Wattage '[E']]]>0),Table_PREInspection[[#This Row],['# Lamps/ Fixture '[E']]]*Table_PREInspection[[#This Row],[Fixture/ Lamp Wattage '[E']]],Table_PREInspection[[#This Row],[Fixture/ Lamp Wattage '[E']]]),\"\")),\n\"\")","v":""},{"$f":"IFERROR(IF(OR(Table_PREInspection[[#This Row],[Line]]=\"\",INDEX(Table_PREInfo[],Table_PREInspection[[#This Row],[Line]],L$3)=\"\"),\"\",INDEX(Table_PREInfo[],Table_PREInspection[[#This Row],[Line]],L$3)),\"\")","v":""},{"$f":"IFERROR(IF(OR(Table_PREInspection[[#This Row],[Line]]=\"\",INDEX(Table_PREInfo[],Table_PREInspection[[#This Row],[Line]],M$3)=\"\"),\"\",INDEX(Table_PREInfo[],Table_PREInspection[[#This Row],[Line]],M$3)),\"\")","v":""},{"$f":"IFERROR(IF(Table_PREInspection[[#This Row],[Interior/ Exterior]]<>\"\",\n  CONCATENATE(\n  Table_PREInspection[[#This Row],[Interior/ Exterior]],\": \" &\n  Table_PREInspection[[#This Row],[Fixture Technology '[E']]],\n  \" - \",Table_PREInspection[[#This Row],[Fixture Type '[E']]],\" [\",\n  IF(Table_PREInspection[[#This Row],['# Lamps/ Fixture '[E']]]>0,Table_PREInspection[[#This Row],['# Lamps/ Fixture '[E']]] & \"L - \" & Table_PREInspection[[#This Row],[Fixture/ Lamp Wattage '[E']]] & \"W\" & IF(Table_PREInspection[[#This Row],[Ballast/ Driver '[E']]]<>\"\",\" - \" & Table_PREInspection[[#This Row],[Ballast/ Driver '[E']]],\"\"),Table_PREInspection[[#This Row],[Fixture Wattage '[E']]] & \"W\"),\"]\",\n  IF(AND(Table_PREInspection[[#This Row],[Controls '[E']]]<>\"\",Table_PREInspection[[#This Row],[Controls '[E']]]<>\"No Controls\"),\" - \" & Table_PREInspection[[#This Row],[Controls '[E']]],\"\")\n  ),\n\"\"),\"\")","v":""}]
[null,{"$f":"IFERROR(IF(OR(Table_PREInspection[[#This Row],[Line]]=\"\",INDEX(Table_PREInfo[],Table_PREInspection[[#This Row],[Line]],B$3)=\"\"),\"\",INDEX(Table_PREInfo[],Table_PREInspection[[#This Row],[Line]],B$3)),\"\")","v":""},{"$f":"IFERROR(IF(OR(Table_PREInspection[[#This Row],[Line]]=\"\",INDEX(Table_PREInfo[],Table_PREInspection[[#This Row],[Line]],C$3)=\"\"),\"\",INDEX(Table_PREInfo[],Table_PREInspection[[#This Row],[Line]],C$3)),\"\")","v":""},{"$f":"IFERROR(IF(OR(Table_PREInspection[[#This Row],[Line]]=\"\",INDEX(Table_PREInfo[],Table_PREInspection[[#This Row],[Line]],D$3)=\"\"),\"\",INDEX(Table_PREInfo[],Table_PREInspection[[#This Row],[Line]],D$3)),\"\")","v":""},null,{"$f":"IFERROR(IF(OR(Table_PREInspection[[#This Row],[Line]]=\"\",INDEX(Table_PREInfo[],Table_PREInspection[[#This Row],[Line]],F$3)=\"\"),\"\",INDEX(Table_PREInfo[],Table_PREInspection[[#This Row],[Line]],F$3)),\"\")","v":""},{"$f":"IFERROR(IF(OR(Table_PREInspection[[#This Row],[Line]]=\"\",INDEX(Table_PREInfo[],Table_PREInspection[[#This Row],[Line]],G$3)=\"\"),\"\",INDEX(Table_PREInfo[],Table_PREInspection[[#This Row],[Line]],G$3)),\"\")","v":""},{"$f":"IFERROR(IF(OR(Table_PREInspection[[#This Row],[Line]]=\"\",INDEX(Table_PREInfo[],Table_PREInspection[[#This Row],[Line]],H$3)=\"\"),\"\",INDEX(Table_PREInfo[],Table_PREInspection[[#This Row],[Line]],H$3)),\"\")","v":""},{"$f":"IFERROR(IF(OR(Table_PREInspection[[#This Row],[Line]]=\"\",INDEX(Table_PREInfo[],Table_PREInspection[[#This Row],[Line]],I$3)=\"\"),\"\",INDEX(Table_PREInfo[],Table_PREInspection[[#This Row],[Line]],I$3)),\"\")","v":""},{"$f":"IFERROR(IF(OR(Table_PREInspection[[#This Row],[Line]]=\"\",INDEX(Table_PREInfo[],Table_PREInspection[[#This Row],[Line]],J$3)=\"\"),\"\",INDEX(Table_PREInfo[],Table_PREInspection[[#This Row],[Line]],J$3)),\"\")","v":""},{"$f":"IFERROR(\nIFERROR(OFFSET(Table_TypWattage[[#Headers],[Technology]],MATCH(Table_PREInspection[[#This Row],[Fixture Technology '[E']]] & IF(Table_PREInspection[[#This Row],[Ballast/ Driver '[E']]]<>\"\",\" - \" & Table_PREInspection[[#This Row],[Ballast/ Driver '[E']]],\"\"),Table_TypWattage[Technology],0)+MATCH(Table_PREInspection[[#This Row],[Fixture/ Lamp Wattage '[E']]],INDIRECT(SUBSTITUTE(SUBSTITUTE(Table_PREInspection[[#This Row],[Fixture Technology '[E']]],\" \",\"_\"),\"-\",\"_\")),0)-1,MATCH(Table_PREInspection[[#This Row],['# Lamps/ Fixture '[E']]],'Measure Tables'!$Q$2:$V$2,0)+1),IF(Table_PREInspection[[#This Row],[Schedule]]<>\"\",IF(AND(Table_PREInspection[[#This Row],['# Lamps/ Fixture '[E']]]<>\"\",Table_PREInspection[[#This Row],['# Lamps/ Fixture '[E']]]>0,Table_PREInspection[[#This Row],[Fixture/ Lamp Wattage '[E']]]>0),Table_PREInspection[[#This Row],['# Lamps/ Fixture '[E']]]*Table_PREInspection[[#This Row],[Fixture/ Lamp Wattage '[E']]],Table_PREInspection[[#This Row],[Fixture/ Lamp Wattage '[E']]]),\"\")),\n\"\")","v":""},{"$f":"IFERROR(IF(OR(Table_PREInspection[[#This Row],[Line]]=\"\",INDEX(Table_PREInfo[],Table_PREInspection[[#This Row],[Line]],L$3)=\"\"),\"\",INDEX(Table_PREInfo[],Table_PREInspection[[#This Row],[Line]],L$3)),\"\")","v":""},{"$f":"IFERROR(IF(OR(Table_PREInspection[[#This Row],[Line]]=\"\",INDEX(Table_PREInfo[],Table_PREInspection[[#This Row],[Line]],M$3)=\"\"),\"\",INDEX(Table_PREInfo[],Table_PREInspection[[#This Row],[Line]],M$3)),\"\")","v":""},{"$f":"IFERROR(IF(Table_PREInspection[[#This Row],[Interior/ Exterior]]<>\"\",\n  CONCATENATE(\n  Table_PREInspection[[#This Row],[Interior/ Exterior]],\": \" &\n  Table_PREInspection[[#This Row],[Fixture Technology '[E']]],\n  \" - \",Table_PREInspection[[#This Row],[Fixture Type '[E']]],\" [\",\n  IF(Table_PREInspection[[#This Row],['# Lamps/ Fixture '[E']]]>0,Table_PREInspection[[#This Row],['# Lamps/ Fixture '[E']]] & \"L - \" & Table_PREInspection[[#This Row],[Fixture/ Lamp Wattage '[E']]] & \"W\" & IF(Table_PREInspection[[#This Row],[Ballast/ Driver '[E']]]<>\"\",\" - \" & Table_PREInspection[[#This Row],[Ballast/ Driver '[E']]],\"\"),Table_PREInspection[[#This Row],[Fixture Wattage '[E']]] & \"W\"),\"]\",\n  IF(AND(Table_PREInspection[[#This Row],[Controls '[E']]]<>\"\",Table_PREInspection[[#This Row],[Controls '[E']]]<>\"No Controls\"),\" - \" & Table_PREInspection[[#This Row],[Controls '[E']]],\"\")\n  ),\n\"\"),\"\")","v":""}]
[null,{"$f":"IFERROR(IF(OR(Table_PREInspection[[#This Row],[Line]]=\"\",INDEX(Table_PREInfo[],Table_PREInspection[[#This Row],[Line]],B$3)=\"\"),\"\",INDEX(Table_PREInfo[],Table_PREInspection[[#This Row],[Line]],B$3)),\"\")","v":""},{"$f":"IFERROR(IF(OR(Table_PREInspection[[#This Row],[Line]]=\"\",INDEX(Table_PREInfo[],Table_PREInspection[[#This Row],[Line]],C$3)=\"\"),\"\",INDEX(Table_PREInfo[],Table_PREInspection[[#This Row],[Line]],C$3)),\"\")","v":""},{"$f":"IFERROR(IF(OR(Table_PREInspection[[#This Row],[Line]]=\"\",INDEX(Table_PREInfo[],Table_PREInspection[[#This Row],[Line]],D$3)=\"\"),\"\",INDEX(Table_PREInfo[],Table_PREInspection[[#This Row],[Line]],D$3)),\"\")","v":""},null,{"$f":"IFERROR(IF(OR(Table_PREInspection[[#This Row],[Line]]=\"\",INDEX(Table_PREInfo[],Table_PREInspection[[#This Row],[Line]],F$3)=\"\"),\"\",INDEX(Table_PREInfo[],Table_PREInspection[[#This Row],[Line]],F$3)),\"\")","v":""},{"$f":"IFERROR(IF(OR(Table_PREInspection[[#This Row],[Line]]=\"\",INDEX(Table_PREInfo[],Table_PREInspection[[#This Row],[Line]],G$3)=\"\"),\"\",INDEX(Table_PREInfo[],Table_PREInspection[[#This Row],[Line]],G$3)),\"\")","v":""},{"$f":"IFERROR(IF(OR(Table_PREInspection[[#This Row],[Line]]=\"\",INDEX(Table_PREInfo[],Table_PREInspection[[#This Row],[Line]],H$3)=\"\"),\"\",INDEX(Table_PREInfo[],Table_PREInspection[[#This Row],[Line]],H$3)),\"\")","v":""},{"$f":"IFERROR(IF(OR(Table_PREInspection[[#This Row],[Line]]=\"\",INDEX(Table_PREInfo[],Table_PREInspection[[#This Row],[Line]],I$3)=\"\"),\"\",INDEX(Table_PREInfo[],Table_PREInspection[[#This Row],[Line]],I$3)),\"\")","v":""},{"$f":"IFERROR(IF(OR(Table_PREInspection[[#This Row],[Line]]=\"\",INDEX(Table_PREInfo[],Table_PREInspection[[#This Row],[Line]],J$3)=\"\"),\"\",INDEX(Table_PREInfo[],Table_PREInspection[[#This Row],[Line]],J$3)),\"\")","v":""},{"$f":"IFERROR(\nIFERROR(OFFSET(Table_TypWattage[[#Headers],[Technology]],MATCH(Table_PREInspection[[#This Row],[Fixture Technology '[E']]] & IF(Table_PREInspection[[#This Row],[Ballast/ Driver '[E']]]<>\"\",\" - \" & Table_PREInspection[[#This Row],[Ballast/ Driver '[E']]],\"\"),Table_TypWattage[Technology],0)+MATCH(Table_PREInspection[[#This Row],[Fixture/ Lamp Wattage '[E']]],INDIRECT(SUBSTITUTE(SUBSTITUTE(Table_PREInspection[[#This Row],[Fixture Technology '[E']]],\" \",\"_\"),\"-\",\"_\")),0)-1,MATCH(Table_PREInspection[[#This Row],['# Lamps/ Fixture '[E']]],'Measure Tables'!$Q$2:$V$2,0)+1),IF(Table_PREInspection[[#This Row],[Schedule]]<>\"\",IF(AND(Table_PREInspection[[#This Row],['# Lamps/ Fixture '[E']]]<>\"\",Table_PREInspection[[#This Row],['# Lamps/ Fixture '[E']]]>0,Table_PREInspection[[#This Row],[Fixture/ Lamp Wattage '[E']]]>0),Table_PREInspection[[#This Row],['# Lamps/ Fixture '[E']]]*Table_PREInspection[[#This Row],[Fixture/ Lamp Wattage '[E']]],Table_PREInspection[[#This Row],[Fixture/ Lamp Wattage '[E']]]),\"\")),\n\"\")","v":""},{"$f":"IFERROR(IF(OR(Table_PREInspection[[#This Row],[Line]]=\"\",INDEX(Table_PREInfo[],Table_PREInspection[[#This Row],[Line]],L$3)=\"\"),\"\",INDEX(Table_PREInfo[],Table_PREInspection[[#This Row],[Line]],L$3)),\"\")","v":""},{"$f":"IFERROR(IF(OR(Table_PREInspection[[#This Row],[Line]]=\"\",INDEX(Table_PREInfo[],Table_PREInspection[[#This Row],[Line]],M$3)=\"\"),\"\",INDEX(Table_PREInfo[],Table_PREInspection[[#This Row],[Line]],M$3)),\"\")","v":""},{"$f":"IFERROR(IF(Table_PREInspection[[#This Row],[Interior/ Exterior]]<>\"\",\n  CONCATENATE(\n  Table_PREInspection[[#This Row],[Interior/ Exterior]],\": \" &\n  Table_PREInspection[[#This Row],[Fixture Technology '[E']]],\n  \" - \",Table_PREInspection[[#This Row],[Fixture Type '[E']]],\" [\",\n  IF(Table_PREInspection[[#This Row],['# Lamps/ Fixture '[E']]]>0,Table_PREInspection[[#This Row],['# Lamps/ Fixture '[E']]] & \"L - \" & Table_PREInspection[[#This Row],[Fixture/ Lamp Wattage '[E']]] & \"W\" & IF(Table_PREInspection[[#This Row],[Ballast/ Driver '[E']]]<>\"\",\" - \" & Table_PREInspection[[#This Row],[Ballast/ Driver '[E']]],\"\"),Table_PREInspection[[#This Row],[Fixture Wattage '[E']]] & \"W\"),\"]\",\n  IF(AND(Table_PREInspection[[#This Row],[Controls '[E']]]<>\"\",Table_PREInspection[[#This Row],[Controls '[E']]]<>\"No Controls\"),\" - \" & Table_PREInspection[[#This Row],[Controls '[E']]],\"\")\n  ),\n\"\"),\"\")","v":""}]
[null,{"$f":"IFERROR(IF(OR(Table_PREInspection[[#This Row],[Line]]=\"\",INDEX(Table_PREInfo[],Table_PREInspection[[#This Row],[Line]],B$3)=\"\"),\"\",INDEX(Table_PREInfo[],Table_PREInspection[[#This Row],[Line]],B$3)),\"\")","v":""},{"$f":"IFERROR(IF(OR(Table_PREInspection[[#This Row],[Line]]=\"\",INDEX(Table_PREInfo[],Table_PREInspection[[#This Row],[Line]],C$3)=\"\"),\"\",INDEX(Table_PREInfo[],Table_PREInspection[[#This Row],[Line]],C$3)),\"\")","v":""},{"$f":"IFERROR(IF(OR(Table_PREInspection[[#This Row],[Line]]=\"\",INDEX(Table_PREInfo[],Table_PREInspection[[#This Row],[Line]],D$3)=\"\"),\"\",INDEX(Table_PREInfo[],Table_PREInspection[[#This Row],[Line]],D$3)),\"\")","v":""},null,{"$f":"IFERROR(IF(OR(Table_PREInspection[[#This Row],[Line]]=\"\",INDEX(Table_PREInfo[],Table_PREInspection[[#This Row],[Line]],F$3)=\"\"),\"\",INDEX(Table_PREInfo[],Table_PREInspection[[#This Row],[Line]],F$3)),\"\")","v":""},{"$f":"IFERROR(IF(OR(Table_PREInspection[[#This Row],[Line]]=\"\",INDEX(Table_PREInfo[],Table_PREInspection[[#This Row],[Line]],G$3)=\"\"),\"\",INDEX(Table_PREInfo[],Table_PREInspection[[#This Row],[Line]],G$3)),\"\")","v":""},{"$f":"IFERROR(IF(OR(Table_PREInspection[[#This Row],[Line]]=\"\",INDEX(Table_PREInfo[],Table_PREInspection[[#This Row],[Line]],H$3)=\"\"),\"\",INDEX(Table_PREInfo[],Table_PREInspection[[#This Row],[Line]],H$3)),\"\")","v":""},{"$f":"IFERROR(IF(OR(Table_PREInspection[[#This Row],[Line]]=\"\",INDEX(Table_PREInfo[],Table_PREInspection[[#This Row],[Line]],I$3)=\"\"),\"\",INDEX(Table_PREInfo[],Table_PREInspection[[#This Row],[Line]],I$3)),\"\")","v":""},{"$f":"IFERROR(IF(OR(Table_PREInspection[[#This Row],[Line]]=\"\",INDEX(Table_PREInfo[],Table_PREInspection[[#This Row],[Line]],J$3)=\"\"),\"\",INDEX(Table_PREInfo[],Table_PREInspection[[#This Row],[Line]],J$3)),\"\")","v":""},{"$f":"IFERROR(\nIFERROR(OFFSET(Table_TypWattage[[#Headers],[Technology]],MATCH(Table_PREInspection[[#This Row],[Fixture Technology '[E']]] & IF(Table_PREInspection[[#This Row],[Ballast/ Driver '[E']]]<>\"\",\" - \" & Table_PREInspection[[#This Row],[Ballast/ Driver '[E']]],\"\"),Table_TypWattage[Technology],0)+MATCH(Table_PREInspection[[#This Row],[Fixture/ Lamp Wattage '[E']]],INDIRECT(SUBSTITUTE(SUBSTITUTE(Table_PREInspection[[#This Row],[Fixture Technology '[E']]],\" \",\"_\"),\"-\",\"_\")),0)-1,MATCH(Table_PREInspection[[#This Row],['# Lamps/ Fixture '[E']]],'Measure Tables'!$Q$2:$V$2,0)+1),IF(Table_PREInspection[[#This Row],[Schedule]]<>\"\",IF(AND(Table_PREInspection[[#This Row],['# Lamps/ Fixture '[E']]]<>\"\",Table_PREInspection[[#This Row],['# Lamps/ Fixture '[E']]]>0,Table_PREInspection[[#This Row],[Fixture/ Lamp Wattage '[E']]]>0),Table_PREInspection[[#This Row],['# Lamps/ Fixture '[E']]]*Table_PREInspection[[#This Row],[Fixture/ Lamp Wattage '[E']]],Table_PREInspection[[#This Row],[Fixture/ Lamp Wattage '[E']]]),\"\")),\n\"\")","v":""},{"$f":"IFERROR(IF(OR(Table_PREInspection[[#This Row],[Line]]=\"\",INDEX(Table_PREInfo[],Table_PREInspection[[#This Row],[Line]],L$3)=\"\"),\"\",INDEX(Table_PREInfo[],Table_PREInspection[[#This Row],[Line]],L$3)),\"\")","v":""},{"$f":"IFERROR(IF(OR(Table_PREInspection[[#This Row],[Line]]=\"\",INDEX(Table_PREInfo[],Table_PREInspection[[#This Row],[Line]],M$3)=\"\"),\"\",INDEX(Table_PREInfo[],Table_PREInspection[[#This Row],[Line]],M$3)),\"\")","v":""},{"$f":"IFERROR(IF(Table_PREInspection[[#This Row],[Interior/ Exterior]]<>\"\",\n  CONCATENATE(\n  Table_PREInspection[[#This Row],[Interior/ Exterior]],\": \" &\n  Table_PREInspection[[#This Row],[Fixture Technology '[E']]],\n  \" - \",Table_PREInspection[[#This Row],[Fixture Type '[E']]],\" [\",\n  IF(Table_PREInspection[[#This Row],['# Lamps/ Fixture '[E']]]>0,Table_PREInspection[[#This Row],['# Lamps/ Fixture '[E']]] & \"L - \" & Table_PREInspection[[#This Row],[Fixture/ Lamp Wattage '[E']]] & \"W\" & IF(Table_PREInspection[[#This Row],[Ballast/ Driver '[E']]]<>\"\",\" - \" & Table_PREInspection[[#This Row],[Ballast/ Driver '[E']]],\"\"),Table_PREInspection[[#This Row],[Fixture Wattage '[E']]] & \"W\"),\"]\",\n  IF(AND(Table_PREInspection[[#This Row],[Controls '[E']]]<>\"\",Table_PREInspection[[#This Row],[Controls '[E']]]<>\"No Controls\"),\" - \" & Table_PREInspection[[#This Row],[Controls '[E']]],\"\")\n  ),\n\"\"),\"\")","v":""}]
[null,{"$f":"IFERROR(IF(OR(Table_PREInspection[[#This Row],[Line]]=\"\",INDEX(Table_PREInfo[],Table_PREInspection[[#This Row],[Line]],B$3)=\"\"),\"\",INDEX(Table_PREInfo[],Table_PREInspection[[#This Row],[Line]],B$3)),\"\")","v":""},{"$f":"IFERROR(IF(OR(Table_PREInspection[[#This Row],[Line]]=\"\",INDEX(Table_PREInfo[],Table_PREInspection[[#This Row],[Line]],C$3)=\"\"),\"\",INDEX(Table_PREInfo[],Table_PREInspection[[#This Row],[Line]],C$3)),\"\")","v":""},{"$f":"IFERROR(IF(OR(Table_PREInspection[[#This Row],[Line]]=\"\",INDEX(Table_PREInfo[],Table_PREInspection[[#This Row],[Line]],D$3)=\"\"),\"\",INDEX(Table_PREInfo[],Table_PREInspection[[#This Row],[Line]],D$3)),\"\")","v":""},null,{"$f":"IFERROR(IF(OR(Table_PREInspection[[#This Row],[Line]]=\"\",INDEX(Table_PREInfo[],Table_PREInspection[[#This Row],[Line]],F$3)=\"\"),\"\",INDEX(Table_PREInfo[],Table_PREInspection[[#This Row],[Line]],F$3)),\"\")","v":""},{"$f":"IFERROR(IF(OR(Table_PREInspection[[#This Row],[Line]]=\"\",INDEX(Table_PREInfo[],Table_PREInspection[[#This Row],[Line]],G$3)=\"\"),\"\",INDEX(Table_PREInfo[],Table_PREInspection[[#This Row],[Line]],G$3)),\"\")","v":""},{"$f":"IFERROR(IF(OR(Table_PREInspection[[#This Row],[Line]]=\"\",INDEX(Table_PREInfo[],Table_PREInspection[[#This Row],[Line]],H$3)=\"\"),\"\",INDEX(Table_PREInfo[],Table_PREInspection[[#This Row],[Line]],H$3)),\"\")","v":""},{"$f":"IFERROR(IF(OR(Table_PREInspection[[#This Row],[Line]]=\"\",INDEX(Table_PREInfo[],Table_PREInspection[[#This Row],[Line]],I$3)=\"\"),\"\",INDEX(Table_PREInfo[],Table_PREInspection[[#This Row],[Line]],I$3)),\"\")","v":""},{"$f":"IFERROR(IF(OR(Table_PREInspection[[#This Row],[Line]]=\"\",INDEX(Table_PREInfo[],Table_PREInspection[[#This Row],[Line]],J$3)=\"\"),\"\",INDEX(Table_PREInfo[],Table_PREInspection[[#This Row],[Line]],J$3)),\"\")","v":""},{"$f":"IFERROR(\nIFERROR(OFFSET(Table_TypWattage[[#Headers],[Technology]],MATCH(Table_PREInspection[[#This Row],[Fixture Technology '[E']]] & IF(Table_PREInspection[[#This Row],[Ballast/ Driver '[E']]]<>\"\",\" - \" & Table_PREInspection[[#This Row],[Ballast/ Driver '[E']]],\"\"),Table_TypWattage[Technology],0)+MATCH(Table_PREInspection[[#This Row],[Fixture/ Lamp Wattage '[E']]],INDIRECT(SUBSTITUTE(SUBSTITUTE(Table_PREInspection[[#This Row],[Fixture Technology '[E']]],\" \",\"_\"),\"-\",\"_\")),0)-1,MATCH(Table_PREInspection[[#This Row],['# Lamps/ Fixture '[E']]],'Measure Tables'!$Q$2:$V$2,0)+1),IF(Table_PREInspection[[#This Row],[Schedule]]<>\"\",IF(AND(Table_PREInspection[[#This Row],['# Lamps/ Fixture '[E']]]<>\"\",Table_PREInspection[[#This Row],['# Lamps/ Fixture '[E']]]>0,Table_PREInspection[[#This Row],[Fixture/ Lamp Wattage '[E']]]>0),Table_PREInspection[[#This Row],['# Lamps/ Fixture '[E']]]*Table_PREInspection[[#This Row],[Fixture/ Lamp Wattage '[E']]],Table_PREInspection[[#This Row],[Fixture/ Lamp Wattage '[E']]]),\"\")),\n\"\")","v":""},{"$f":"IFERROR(IF(OR(Table_PREInspection[[#This Row],[Line]]=\"\",INDEX(Table_PREInfo[],Table_PREInspection[[#This Row],[Line]],L$3)=\"\"),\"\",INDEX(Table_PREInfo[],Table_PREInspection[[#This Row],[Line]],L$3)),\"\")","v":""},{"$f":"IFERROR(IF(OR(Table_PREInspection[[#This Row],[Line]]=\"\",INDEX(Table_PREInfo[],Table_PREInspection[[#This Row],[Line]],M$3)=\"\"),\"\",INDEX(Table_PREInfo[],Table_PREInspection[[#This Row],[Line]],M$3)),\"\")","v":""},{"$f":"IFERROR(IF(Table_PREInspection[[#This Row],[Interior/ Exterior]]<>\"\",\n  CONCATENATE(\n  Table_PREInspection[[#This Row],[Interior/ Exterior]],\": \" &\n  Table_PREInspection[[#This Row],[Fixture Technology '[E']]],\n  \" - \",Table_PREInspection[[#This Row],[Fixture Type '[E']]],\" [\",\n  IF(Table_PREInspection[[#This Row],['# Lamps/ Fixture '[E']]]>0,Table_PREInspection[[#This Row],['# Lamps/ Fixture '[E']]] & \"L - \" & Table_PREInspection[[#This Row],[Fixture/ Lamp Wattage '[E']]] & \"W\" & IF(Table_PREInspection[[#This Row],[Ballast/ Driver '[E']]]<>\"\",\" - \" & Table_PREInspection[[#This Row],[Ballast/ Driver '[E']]],\"\"),Table_PREInspection[[#This Row],[Fixture Wattage '[E']]] & \"W\"),\"]\",\n  IF(AND(Table_PREInspection[[#This Row],[Controls '[E']]]<>\"\",Table_PREInspection[[#This Row],[Controls '[E']]]<>\"No Controls\"),\" - \" & Table_PREInspection[[#This Row],[Controls '[E']]],\"\")\n  ),\n\"\"),\"\")","v":""}]
[null,{"$f":"IFERROR(IF(OR(Table_PREInspection[[#This Row],[Line]]=\"\",INDEX(Table_PREInfo[],Table_PREInspection[[#This Row],[Line]],B$3)=\"\"),\"\",INDEX(Table_PREInfo[],Table_PREInspection[[#This Row],[Line]],B$3)),\"\")","v":""},{"$f":"IFERROR(IF(OR(Table_PREInspection[[#This Row],[Line]]=\"\",INDEX(Table_PREInfo[],Table_PREInspection[[#This Row],[Line]],C$3)=\"\"),\"\",INDEX(Table_PREInfo[],Table_PREInspection[[#This Row],[Line]],C$3)),\"\")","v":""},{"$f":"IFERROR(IF(OR(Table_PREInspection[[#This Row],[Line]]=\"\",INDEX(Table_PREInfo[],Table_PREInspection[[#This Row],[Line]],D$3)=\"\"),\"\",INDEX(Table_PREInfo[],Table_PREInspection[[#This Row],[Line]],D$3)),\"\")","v":""},null,{"$f":"IFERROR(IF(OR(Table_PREInspection[[#This Row],[Line]]=\"\",INDEX(Table_PREInfo[],Table_PREInspection[[#This Row],[Line]],F$3)=\"\"),\"\",INDEX(Table_PREInfo[],Table_PREInspection[[#This Row],[Line]],F$3)),\"\")","v":""},{"$f":"IFERROR(IF(OR(Table_PREInspection[[#This Row],[Line]]=\"\",INDEX(Table_PREInfo[],Table_PREInspection[[#This Row],[Line]],G$3)=\"\"),\"\",INDEX(Table_PREInfo[],Table_PREInspection[[#This Row],[Line]],G$3)),\"\")","v":""},{"$f":"IFERROR(IF(OR(Table_PREInspection[[#This Row],[Line]]=\"\",INDEX(Table_PREInfo[],Table_PREInspection[[#This Row],[Line]],H$3)=\"\"),\"\",INDEX(Table_PREInfo[],Table_PREInspection[[#This Row],[Line]],H$3)),\"\")","v":""},{"$f":"IFERROR(IF(OR(Table_PREInspection[[#This Row],[Line]]=\"\",INDEX(Table_PREInfo[],Table_PREInspection[[#This Row],[Line]],I$3)=\"\"),\"\",INDEX(Table_PREInfo[],Table_PREInspection[[#This Row],[Line]],I$3)),\"\")","v":""},{"$f":"IFERROR(IF(OR(Table_PREInspection[[#This Row],[Line]]=\"\",INDEX(Table_PREInfo[],Table_PREInspection[[#This Row],[Line]],J$3)=\"\"),\"\",INDEX(Table_PREInfo[],Table_PREInspection[[#This Row],[Line]],J$3)),\"\")","v":""},{"$f":"IFERROR(\nIFERROR(OFFSET(Table_TypWattage[[#Headers],[Technology]],MATCH(Table_PREInspection[[#This Row],[Fixture Technology '[E']]] & IF(Table_PREInspection[[#This Row],[Ballast/ Driver '[E']]]<>\"\",\" - \" & Table_PREInspection[[#This Row],[Ballast/ Driver '[E']]],\"\"),Table_TypWattage[Technology],0)+MATCH(Table_PREInspection[[#This Row],[Fixture/ Lamp Wattage '[E']]],INDIRECT(SUBSTITUTE(SUBSTITUTE(Table_PREInspection[[#This Row],[Fixture Technology '[E']]],\" \",\"_\"),\"-\",\"_\")),0)-1,MATCH(Table_PREInspection[[#This Row],['# Lamps/ Fixture '[E']]],'Measure Tables'!$Q$2:$V$2,0)+1),IF(Table_PREInspection[[#This Row],[Schedule]]<>\"\",IF(AND(Table_PREInspection[[#This Row],['# Lamps/ Fixture '[E']]]<>\"\",Table_PREInspection[[#This Row],['# Lamps/ Fixture '[E']]]>0,Table_PREInspection[[#This Row],[Fixture/ Lamp Wattage '[E']]]>0),Table_PREInspection[[#This Row],['# Lamps/ Fixture '[E']]]*Table_PREInspection[[#This Row],[Fixture/ Lamp Wattage '[E']]],Table_PREInspection[[#This Row],[Fixture/ Lamp Wattage '[E']]]),\"\")),\n\"\")","v":""},{"$f":"IFERROR(IF(OR(Table_PREInspection[[#This Row],[Line]]=\"\",INDEX(Table_PREInfo[],Table_PREInspection[[#This Row],[Line]],L$3)=\"\"),\"\",INDEX(Table_PREInfo[],Table_PREInspection[[#This Row],[Line]],L$3)),\"\")","v":""},{"$f":"IFERROR(IF(OR(Table_PREInspection[[#This Row],[Line]]=\"\",INDEX(Table_PREInfo[],Table_PREInspection[[#This Row],[Line]],M$3)=\"\"),\"\",INDEX(Table_PREInfo[],Table_PREInspection[[#This Row],[Line]],M$3)),\"\")","v":""},{"$f":"IFERROR(IF(Table_PREInspection[[#This Row],[Interior/ Exterior]]<>\"\",\n  CONCATENATE(\n  Table_PREInspection[[#This Row],[Interior/ Exterior]],\": \" &\n  Table_PREInspection[[#This Row],[Fixture Technology '[E']]],\n  \" - \",Table_PREInspection[[#This Row],[Fixture Type '[E']]],\" [\",\n  IF(Table_PREInspection[[#This Row],['# Lamps/ Fixture '[E']]]>0,Table_PREInspection[[#This Row],['# Lamps/ Fixture '[E']]] & \"L - \" & Table_PREInspection[[#This Row],[Fixture/ Lamp Wattage '[E']]] & \"W\" & IF(Table_PREInspection[[#This Row],[Ballast/ Driver '[E']]]<>\"\",\" - \" & Table_PREInspection[[#This Row],[Ballast/ Driver '[E']]],\"\"),Table_PREInspection[[#This Row],[Fixture Wattage '[E']]] & \"W\"),\"]\",\n  IF(AND(Table_PREInspection[[#This Row],[Controls '[E']]]<>\"\",Table_PREInspection[[#This Row],[Controls '[E']]]<>\"No Controls\"),\" - \" & Table_PREInspection[[#This Row],[Controls '[E']]],\"\")\n  ),\n\"\"),\"\")","v":""}]
[null,{"$f":"IFERROR(IF(OR(Table_PREInspection[[#This Row],[Line]]=\"\",INDEX(Table_PREInfo[],Table_PREInspection[[#This Row],[Line]],B$3)=\"\"),\"\",INDEX(Table_PREInfo[],Table_PREInspection[[#This Row],[Line]],B$3)),\"\")","v":""},{"$f":"IFERROR(IF(OR(Table_PREInspection[[#This Row],[Line]]=\"\",INDEX(Table_PREInfo[],Table_PREInspection[[#This Row],[Line]],C$3)=\"\"),\"\",INDEX(Table_PREInfo[],Table_PREInspection[[#This Row],[Line]],C$3)),\"\")","v":""},{"$f":"IFERROR(IF(OR(Table_PREInspection[[#This Row],[Line]]=\"\",INDEX(Table_PREInfo[],Table_PREInspection[[#This Row],[Line]],D$3)=\"\"),\"\",INDEX(Table_PREInfo[],Table_PREInspection[[#This Row],[Line]],D$3)),\"\")","v":""},null,{"$f":"IFERROR(IF(OR(Table_PREInspection[[#This Row],[Line]]=\"\",INDEX(Table_PREInfo[],Table_PREInspection[[#This Row],[Line]],F$3)=\"\"),\"\",INDEX(Table_PREInfo[],Table_PREInspection[[#This Row],[Line]],F$3)),\"\")","v":""},{"$f":"IFERROR(IF(OR(Table_PREInspection[[#This Row],[Line]]=\"\",INDEX(Table_PREInfo[],Table_PREInspection[[#This Row],[Line]],G$3)=\"\"),\"\",INDEX(Table_PREInfo[],Table_PREInspection[[#This Row],[Line]],G$3)),\"\")","v":""},{"$f":"IFERROR(IF(OR(Table_PREInspection[[#This Row],[Line]]=\"\",INDEX(Table_PREInfo[],Table_PREInspection[[#This Row],[Line]],H$3)=\"\"),\"\",INDEX(Table_PREInfo[],Table_PREInspection[[#This Row],[Line]],H$3)),\"\")","v":""},{"$f":"IFERROR(IF(OR(Table_PREInspection[[#This Row],[Line]]=\"\",INDEX(Table_PREInfo[],Table_PREInspection[[#This Row],[Line]],I$3)=\"\"),\"\",INDEX(Table_PREInfo[],Table_PREInspection[[#This Row],[Line]],I$3)),\"\")","v":""},{"$f":"IFERROR(IF(OR(Table_PREInspection[[#This Row],[Line]]=\"\",INDEX(Table_PREInfo[],Table_PREInspection[[#This Row],[Line]],J$3)=\"\"),\"\",INDEX(Table_PREInfo[],Table_PREInspection[[#This Row],[Line]],J$3)),\"\")","v":""},{"$f":"IFERROR(\nIFERROR(OFFSET(Table_TypWattage[[#Headers],[Technology]],MATCH(Table_PREInspection[[#This Row],[Fixture Technology '[E']]] & IF(Table_PREInspection[[#This Row],[Ballast/ Driver '[E']]]<>\"\",\" - \" & Table_PREInspection[[#This Row],[Ballast/ Driver '[E']]],\"\"),Table_TypWattage[Technology],0)+MATCH(Table_PREInspection[[#This Row],[Fixture/ Lamp Wattage '[E']]],INDIRECT(SUBSTITUTE(SUBSTITUTE(Table_PREInspection[[#This Row],[Fixture Technology '[E']]],\" \",\"_\"),\"-\",\"_\")),0)-1,MATCH(Table_PREInspection[[#This Row],['# Lamps/ Fixture '[E']]],'Measure Tables'!$Q$2:$V$2,0)+1),IF(Table_PREInspection[[#This Row],[Schedule]]<>\"\",IF(AND(Table_PREInspection[[#This Row],['# Lamps/ Fixture '[E']]]<>\"\",Table_PREInspection[[#This Row],['# Lamps/ Fixture '[E']]]>0,Table_PREInspection[[#This Row],[Fixture/ Lamp Wattage '[E']]]>0),Table_PREInspection[[#This Row],['# Lamps/ Fixture '[E']]]*Table_PREInspection[[#This Row],[Fixture/ Lamp Wattage '[E']]],Table_PREInspection[[#This Row],[Fixture/ Lamp Wattage '[E']]]),\"\")),\n\"\")","v":""},{"$f":"IFERROR(IF(OR(Table_PREInspection[[#This Row],[Line]]=\"\",INDEX(Table_PREInfo[],Table_PREInspection[[#This Row],[Line]],L$3)=\"\"),\"\",INDEX(Table_PREInfo[],Table_PREInspection[[#This Row],[Line]],L$3)),\"\")","v":""},{"$f":"IFERROR(IF(OR(Table_PREInspection[[#This Row],[Line]]=\"\",INDEX(Table_PREInfo[],Table_PREInspection[[#This Row],[Line]],M$3)=\"\"),\"\",INDEX(Table_PREInfo[],Table_PREInspection[[#This Row],[Line]],M$3)),\"\")","v":""},{"$f":"IFERROR(IF(Table_PREInspection[[#This Row],[Interior/ Exterior]]<>\"\",\n  CONCATENATE(\n  Table_PREInspection[[#This Row],[Interior/ Exterior]],\": \" &\n  Table_PREInspection[[#This Row],[Fixture Technology '[E']]],\n  \" - \",Table_PREInspection[[#This Row],[Fixture Type '[E']]],\" [\",\n  IF(Table_PREInspection[[#This Row],['# Lamps/ Fixture '[E']]]>0,Table_PREInspection[[#This Row],['# Lamps/ Fixture '[E']]] & \"L - \" & Table_PREInspection[[#This Row],[Fixture/ Lamp Wattage '[E']]] & \"W\" & IF(Table_PREInspection[[#This Row],[Ballast/ Driver '[E']]]<>\"\",\" - \" & Table_PREInspection[[#This Row],[Ballast/ Driver '[E']]],\"\"),Table_PREInspection[[#This Row],[Fixture Wattage '[E']]] & \"W\"),\"]\",\n  IF(AND(Table_PREInspection[[#This Row],[Controls '[E']]]<>\"\",Table_PREInspection[[#This Row],[Controls '[E']]]<>\"No Controls\"),\" - \" & Table_PREInspection[[#This Row],[Controls '[E']]],\"\")\n  ),\n\"\"),\"\")","v":""}]
[null,{"$f":"IFERROR(IF(OR(Table_PREInspection[[#This Row],[Line]]=\"\",INDEX(Table_PREInfo[],Table_PREInspection[[#This Row],[Line]],B$3)=\"\"),\"\",INDEX(Table_PREInfo[],Table_PREInspection[[#This Row],[Line]],B$3)),\"\")","v":""},{"$f":"IFERROR(IF(OR(Table_PREInspection[[#This Row],[Line]]=\"\",INDEX(Table_PREInfo[],Table_PREInspection[[#This Row],[Line]],C$3)=\"\"),\"\",INDEX(Table_PREInfo[],Table_PREInspection[[#This Row],[Line]],C$3)),\"\")","v":""},{"$f":"IFERROR(IF(OR(Table_PREInspection[[#This Row],[Line]]=\"\",INDEX(Table_PREInfo[],Table_PREInspection[[#This Row],[Line]],D$3)=\"\"),\"\",INDEX(Table_PREInfo[],Table_PREInspection[[#This Row],[Line]],D$3)),\"\")","v":""},null,{"$f":"IFERROR(IF(OR(Table_PREInspection[[#This Row],[Line]]=\"\",INDEX(Table_PREInfo[],Table_PREInspection[[#This Row],[Line]],F$3)=\"\"),\"\",INDEX(Table_PREInfo[],Table_PREInspection[[#This Row],[Line]],F$3)),\"\")","v":""},{"$f":"IFERROR(IF(OR(Table_PREInspection[[#This Row],[Line]]=\"\",INDEX(Table_PREInfo[],Table_PREInspection[[#This Row],[Line]],G$3)=\"\"),\"\",INDEX(Table_PREInfo[],Table_PREInspection[[#This Row],[Line]],G$3)),\"\")","v":""},{"$f":"IFERROR(IF(OR(Table_PREInspection[[#This Row],[Line]]=\"\",INDEX(Table_PREInfo[],Table_PREInspection[[#This Row],[Line]],H$3)=\"\"),\"\",INDEX(Table_PREInfo[],Table_PREInspection[[#This Row],[Line]],H$3)),\"\")","v":""},{"$f":"IFERROR(IF(OR(Table_PREInspection[[#This Row],[Line]]=\"\",INDEX(Table_PREInfo[],Table_PREInspection[[#This Row],[Line]],I$3)=\"\"),\"\",INDEX(Table_PREInfo[],Table_PREInspection[[#This Row],[Line]],I$3)),\"\")","v":""},{"$f":"IFERROR(IF(OR(Table_PREInspection[[#This Row],[Line]]=\"\",INDEX(Table_PREInfo[],Table_PREInspection[[#This Row],[Line]],J$3)=\"\"),\"\",INDEX(Table_PREInfo[],Table_PREInspection[[#This Row],[Line]],J$3)),\"\")","v":""},{"$f":"IFERROR(\nIFERROR(OFFSET(Table_TypWattage[[#Headers],[Technology]],MATCH(Table_PREInspection[[#This Row],[Fixture Technology '[E']]] & IF(Table_PREInspection[[#This Row],[Ballast/ Driver '[E']]]<>\"\",\" - \" & Table_PREInspection[[#This Row],[Ballast/ Driver '[E']]],\"\"),Table_TypWattage[Technology],0)+MATCH(Table_PREInspection[[#This Row],[Fixture/ Lamp Wattage '[E']]],INDIRECT(SUBSTITUTE(SUBSTITUTE(Table_PREInspection[[#This Row],[Fixture Technology '[E']]],\" \",\"_\"),\"-\",\"_\")),0)-1,MATCH(Table_PREInspection[[#This Row],['# Lamps/ Fixture '[E']]],'Measure Tables'!$Q$2:$V$2,0)+1),IF(Table_PREInspection[[#This Row],[Schedule]]<>\"\",IF(AND(Table_PREInspection[[#This Row],['# Lamps/ Fixture '[E']]]<>\"\",Table_PREInspection[[#This Row],['# Lamps/ Fixture '[E']]]>0,Table_PREInspection[[#This Row],[Fixture/ Lamp Wattage '[E']]]>0),Table_PREInspection[[#This Row],['# Lamps/ Fixture '[E']]]*Table_PREInspection[[#This Row],[Fixture/ Lamp Wattage '[E']]],Table_PREInspection[[#This Row],[Fixture/ Lamp Wattage '[E']]]),\"\")),\n\"\")","v":""},{"$f":"IFERROR(IF(OR(Table_PREInspection[[#This Row],[Line]]=\"\",INDEX(Table_PREInfo[],Table_PREInspection[[#This Row],[Line]],L$3)=\"\"),\"\",INDEX(Table_PREInfo[],Table_PREInspection[[#This Row],[Line]],L$3)),\"\")","v":""},{"$f":"IFERROR(IF(OR(Table_PREInspection[[#This Row],[Line]]=\"\",INDEX(Table_PREInfo[],Table_PREInspection[[#This Row],[Line]],M$3)=\"\"),\"\",INDEX(Table_PREInfo[],Table_PREInspection[[#This Row],[Line]],M$3)),\"\")","v":""},{"$f":"IFERROR(IF(Table_PREInspection[[#This Row],[Interior/ Exterior]]<>\"\",\n  CONCATENATE(\n  Table_PREInspection[[#This Row],[Interior/ Exterior]],\": \" &\n  Table_PREInspection[[#This Row],[Fixture Technology '[E']]],\n  \" - \",Table_PREInspection[[#This Row],[Fixture Type '[E']]],\" [\",\n  IF(Table_PREInspection[[#This Row],['# Lamps/ Fixture '[E']]]>0,Table_PREInspection[[#This Row],['# Lamps/ Fixture '[E']]] & \"L - \" & Table_PREInspection[[#This Row],[Fixture/ Lamp Wattage '[E']]] & \"W\" & IF(Table_PREInspection[[#This Row],[Ballast/ Driver '[E']]]<>\"\",\" - \" & Table_PREInspection[[#This Row],[Ballast/ Driver '[E']]],\"\"),Table_PREInspection[[#This Row],[Fixture Wattage '[E']]] & \"W\"),\"]\",\n  IF(AND(Table_PREInspection[[#This Row],[Controls '[E']]]<>\"\",Table_PREInspection[[#This Row],[Controls '[E']]]<>\"No Controls\"),\" - \" & Table_PREInspection[[#This Row],[Controls '[E']]],\"\")\n  ),\n\"\"),\"\")","v":""}]
[null,{"$f":"IFERROR(IF(OR(Table_PREInspection[[#This Row],[Line]]=\"\",INDEX(Table_PREInfo[],Table_PREInspection[[#This Row],[Line]],B$3)=\"\"),\"\",INDEX(Table_PREInfo[],Table_PREInspection[[#This Row],[Line]],B$3)),\"\")","v":""},{"$f":"IFERROR(IF(OR(Table_PREInspection[[#This Row],[Line]]=\"\",INDEX(Table_PREInfo[],Table_PREInspection[[#This Row],[Line]],C$3)=\"\"),\"\",INDEX(Table_PREInfo[],Table_PREInspection[[#This Row],[Line]],C$3)),\"\")","v":""},{"$f":"IFERROR(IF(OR(Table_PREInspection[[#This Row],[Line]]=\"\",INDEX(Table_PREInfo[],Table_PREInspection[[#This Row],[Line]],D$3)=\"\"),\"\",INDEX(Table_PREInfo[],Table_PREInspection[[#This Row],[Line]],D$3)),\"\")","v":""},null,{"$f":"IFERROR(IF(OR(Table_PREInspection[[#This Row],[Line]]=\"\",INDEX(Table_PREInfo[],Table_PREInspection[[#This Row],[Line]],F$3)=\"\"),\"\",INDEX(Table_PREInfo[],Table_PREInspection[[#This Row],[Line]],F$3)),\"\")","v":""},{"$f":"IFERROR(IF(OR(Table_PREInspection[[#This Row],[Line]]=\"\",INDEX(Table_PREInfo[],Table_PREInspection[[#This Row],[Line]],G$3)=\"\"),\"\",INDEX(Table_PREInfo[],Table_PREInspection[[#This Row],[Line]],G$3)),\"\")","v":""},{"$f":"IFERROR(IF(OR(Table_PREInspection[[#This Row],[Line]]=\"\",INDEX(Table_PREInfo[],Table_PREInspection[[#This Row],[Line]],H$3)=\"\"),\"\",INDEX(Table_PREInfo[],Table_PREInspection[[#This Row],[Line]],H$3)),\"\")","v":""},{"$f":"IFERROR(IF(OR(Table_PREInspection[[#This Row],[Line]]=\"\",INDEX(Table_PREInfo[],Table_PREInspection[[#This Row],[Line]],I$3)=\"\"),\"\",INDEX(Table_PREInfo[],Table_PREInspection[[#This Row],[Line]],I$3)),\"\")","v":""},{"$f":"IFERROR(IF(OR(Table_PREInspection[[#This Row],[Line]]=\"\",INDEX(Table_PREInfo[],Table_PREInspection[[#This Row],[Line]],J$3)=\"\"),\"\",INDEX(Table_PREInfo[],Table_PREInspection[[#This Row],[Line]],J$3)),\"\")","v":""},{"$f":"IFERROR(\nIFERROR(OFFSET(Table_TypWattage[[#Headers],[Technology]],MATCH(Table_PREInspection[[#This Row],[Fixture Technology '[E']]] & IF(Table_PREInspection[[#This Row],[Ballast/ Driver '[E']]]<>\"\",\" - \" & Table_PREInspection[[#This Row],[Ballast/ Driver '[E']]],\"\"),Table_TypWattage[Technology],0)+MATCH(Table_PREInspection[[#This Row],[Fixture/ Lamp Wattage '[E']]],INDIRECT(SUBSTITUTE(SUBSTITUTE(Table_PREInspection[[#This Row],[Fixture Technology '[E']]],\" \",\"_\"),\"-\",\"_\")),0)-1,MATCH(Table_PREInspection[[#This Row],['# Lamps/ Fixture '[E']]],'Measure Tables'!$Q$2:$V$2,0)+1),IF(Table_PREInspection[[#This Row],[Schedule]]<>\"\",IF(AND(Table_PREInspection[[#This Row],['# Lamps/ Fixture '[E']]]<>\"\",Table_PREInspection[[#This Row],['# Lamps/ Fixture '[E']]]>0,Table_PREInspection[[#This Row],[Fixture/ Lamp Wattage '[E']]]>0),Table_PREInspection[[#This Row],['# Lamps/ Fixture '[E']]]*Table_PREInspection[[#This Row],[Fixture/ Lamp Wattage '[E']]],Table_PREInspection[[#This Row],[Fixture/ Lamp Wattage '[E']]]),\"\")),\n\"\")","v":""},{"$f":"IFERROR(IF(OR(Table_PREInspection[[#This Row],[Line]]=\"\",INDEX(Table_PREInfo[],Table_PREInspection[[#This Row],[Line]],L$3)=\"\"),\"\",INDEX(Table_PREInfo[],Table_PREInspection[[#This Row],[Line]],L$3)),\"\")","v":""},{"$f":"IFERROR(IF(OR(Table_PREInspection[[#This Row],[Line]]=\"\",INDEX(Table_PREInfo[],Table_PREInspection[[#This Row],[Line]],M$3)=\"\"),\"\",INDEX(Table_PREInfo[],Table_PREInspection[[#This Row],[Line]],M$3)),\"\")","v":""},{"$f":"IFERROR(IF(Table_PREInspection[[#This Row],[Interior/ Exterior]]<>\"\",\n  CONCATENATE(\n  Table_PREInspection[[#This Row],[Interior/ Exterior]],\": \" &\n  Table_PREInspection[[#This Row],[Fixture Technology '[E']]],\n  \" - \",Table_PREInspection[[#This Row],[Fixture Type '[E']]],\" [\",\n  IF(Table_PREInspection[[#This Row],['# Lamps/ Fixture '[E']]]>0,Table_PREInspection[[#This Row],['# Lamps/ Fixture '[E']]] & \"L - \" & Table_PREInspection[[#This Row],[Fixture/ Lamp Wattage '[E']]] & \"W\" & IF(Table_PREInspection[[#This Row],[Ballast/ Driver '[E']]]<>\"\",\" - \" & Table_PREInspection[[#This Row],[Ballast/ Driver '[E']]],\"\"),Table_PREInspection[[#This Row],[Fixture Wattage '[E']]] & \"W\"),\"]\",\n  IF(AND(Table_PREInspection[[#This Row],[Controls '[E']]]<>\"\",Table_PREInspection[[#This Row],[Controls '[E']]]<>\"No Controls\"),\" - \" & Table_PREInspection[[#This Row],[Controls '[E']]],\"\")\n  ),\n\"\"),\"\")","v":""}]
[null,{"$f":"IFERROR(IF(OR(Table_PREInspection[[#This Row],[Line]]=\"\",INDEX(Table_PREInfo[],Table_PREInspection[[#This Row],[Line]],B$3)=\"\"),\"\",INDEX(Table_PREInfo[],Table_PREInspection[[#This Row],[Line]],B$3)),\"\")","v":""},{"$f":"IFERROR(IF(OR(Table_PREInspection[[#This Row],[Line]]=\"\",INDEX(Table_PREInfo[],Table_PREInspection[[#This Row],[Line]],C$3)=\"\"),\"\",INDEX(Table_PREInfo[],Table_PREInspection[[#This Row],[Line]],C$3)),\"\")","v":""},{"$f":"IFERROR(IF(OR(Table_PREInspection[[#This Row],[Line]]=\"\",INDEX(Table_PREInfo[],Table_PREInspection[[#This Row],[Line]],D$3)=\"\"),\"\",INDEX(Table_PREInfo[],Table_PREInspection[[#This Row],[Line]],D$3)),\"\")","v":""},null,{"$f":"IFERROR(IF(OR(Table_PREInspection[[#This Row],[Line]]=\"\",INDEX(Table_PREInfo[],Table_PREInspection[[#This Row],[Line]],F$3)=\"\"),\"\",INDEX(Table_PREInfo[],Table_PREInspection[[#This Row],[Line]],F$3)),\"\")","v":""},{"$f":"IFERROR(IF(OR(Table_PREInspection[[#This Row],[Line]]=\"\",INDEX(Table_PREInfo[],Table_PREInspection[[#This Row],[Line]],G$3)=\"\"),\"\",INDEX(Table_PREInfo[],Table_PREInspection[[#This Row],[Line]],G$3)),\"\")","v":""},{"$f":"IFERROR(IF(OR(Table_PREInspection[[#This Row],[Line]]=\"\",INDEX(Table_PREInfo[],Table_PREInspection[[#This Row],[Line]],H$3)=\"\"),\"\",INDEX(Table_PREInfo[],Table_PREInspection[[#This Row],[Line]],H$3)),\"\")","v":""},{"$f":"IFERROR(IF(OR(Table_PREInspection[[#This Row],[Line]]=\"\",INDEX(Table_PREInfo[],Table_PREInspection[[#This Row],[Line]],I$3)=\"\"),\"\",INDEX(Table_PREInfo[],Table_PREInspection[[#This Row],[Line]],I$3)),\"\")","v":""},{"$f":"IFERROR(IF(OR(Table_PREInspection[[#This Row],[Line]]=\"\",INDEX(Table_PREInfo[],Table_PREInspection[[#This Row],[Line]],J$3)=\"\"),\"\",INDEX(Table_PREInfo[],Table_PREInspection[[#This Row],[Line]],J$3)),\"\")","v":""},{"$f":"IFERROR(\nIFERROR(OFFSET(Table_TypWattage[[#Headers],[Technology]],MATCH(Table_PREInspection[[#This Row],[Fixture Technology '[E']]] & IF(Table_PREInspection[[#This Row],[Ballast/ Driver '[E']]]<>\"\",\" - \" & Table_PREInspection[[#This Row],[Ballast/ Driver '[E']]],\"\"),Table_TypWattage[Technology],0)+MATCH(Table_PREInspection[[#This Row],[Fixture/ Lamp Wattage '[E']]],INDIRECT(SUBSTITUTE(SUBSTITUTE(Table_PREInspection[[#This Row],[Fixture Technology '[E']]],\" \",\"_\"),\"-\",\"_\")),0)-1,MATCH(Table_PREInspection[[#This Row],['# Lamps/ Fixture '[E']]],'Measure Tables'!$Q$2:$V$2,0)+1),IF(Table_PREInspection[[#This Row],[Schedule]]<>\"\",IF(AND(Table_PREInspection[[#This Row],['# Lamps/ Fixture '[E']]]<>\"\",Table_PREInspection[[#This Row],['# Lamps/ Fixture '[E']]]>0,Table_PREInspection[[#This Row],[Fixture/ Lamp Wattage '[E']]]>0),Table_PREInspection[[#This Row],['# Lamps/ Fixture '[E']]]*Table_PREInspection[[#This Row],[Fixture/ Lamp Wattage '[E']]],Table_PREInspection[[#This Row],[Fixture/ Lamp Wattage '[E']]]),\"\")),\n\"\")","v":""},{"$f":"IFERROR(IF(OR(Table_PREInspection[[#This Row],[Line]]=\"\",INDEX(Table_PREInfo[],Table_PREInspection[[#This Row],[Line]],L$3)=\"\"),\"\",INDEX(Table_PREInfo[],Table_PREInspection[[#This Row],[Line]],L$3)),\"\")","v":""},{"$f":"IFERROR(IF(OR(Table_PREInspection[[#This Row],[Line]]=\"\",INDEX(Table_PREInfo[],Table_PREInspection[[#This Row],[Line]],M$3)=\"\"),\"\",INDEX(Table_PREInfo[],Table_PREInspection[[#This Row],[Line]],M$3)),\"\")","v":""},{"$f":"IFERROR(IF(Table_PREInspection[[#This Row],[Interior/ Exterior]]<>\"\",\n  CONCATENATE(\n  Table_PREInspection[[#This Row],[Interior/ Exterior]],\": \" &\n  Table_PREInspection[[#This Row],[Fixture Technology '[E']]],\n  \" - \",Table_PREInspection[[#This Row],[Fixture Type '[E']]],\" [\",\n  IF(Table_PREInspection[[#This Row],['# Lamps/ Fixture '[E']]]>0,Table_PREInspection[[#This Row],['# Lamps/ Fixture '[E']]] & \"L - \" & Table_PREInspection[[#This Row],[Fixture/ Lamp Wattage '[E']]] & \"W\" & IF(Table_PREInspection[[#This Row],[Ballast/ Driver '[E']]]<>\"\",\" - \" & Table_PREInspection[[#This Row],[Ballast/ Driver '[E']]],\"\"),Table_PREInspection[[#This Row],[Fixture Wattage '[E']]] & \"W\"),\"]\",\n  IF(AND(Table_PREInspection[[#This Row],[Controls '[E']]]<>\"\",Table_PREInspection[[#This Row],[Controls '[E']]]<>\"No Controls\"),\" - \" & Table_PREInspection[[#This Row],[Controls '[E']]],\"\")\n  ),\n\"\"),\"\")","v":""}]
[null,{"$f":"IFERROR(IF(OR(Table_PREInspection[[#This Row],[Line]]=\"\",INDEX(Table_PREInfo[],Table_PREInspection[[#This Row],[Line]],B$3)=\"\"),\"\",INDEX(Table_PREInfo[],Table_PREInspection[[#This Row],[Line]],B$3)),\"\")","v":""},{"$f":"IFERROR(IF(OR(Table_PREInspection[[#This Row],[Line]]=\"\",INDEX(Table_PREInfo[],Table_PREInspection[[#This Row],[Line]],C$3)=\"\"),\"\",INDEX(Table_PREInfo[],Table_PREInspection[[#This Row],[Line]],C$3)),\"\")","v":""},{"$f":"IFERROR(IF(OR(Table_PREInspection[[#This Row],[Line]]=\"\",INDEX(Table_PREInfo[],Table_PREInspection[[#This Row],[Line]],D$3)=\"\"),\"\",INDEX(Table_PREInfo[],Table_PREInspection[[#This Row],[Line]],D$3)),\"\")","v":""},null,{"$f":"IFERROR(IF(OR(Table_PREInspection[[#This Row],[Line]]=\"\",INDEX(Table_PREInfo[],Table_PREInspection[[#This Row],[Line]],F$3)=\"\"),\"\",INDEX(Table_PREInfo[],Table_PREInspection[[#This Row],[Line]],F$3)),\"\")","v":""},{"$f":"IFERROR(IF(OR(Table_PREInspection[[#This Row],[Line]]=\"\",INDEX(Table_PREInfo[],Table_PREInspection[[#This Row],[Line]],G$3)=\"\"),\"\",INDEX(Table_PREInfo[],Table_PREInspection[[#This Row],[Line]],G$3)),\"\")","v":""},{"$f":"IFERROR(IF(OR(Table_PREInspection[[#This Row],[Line]]=\"\",INDEX(Table_PREInfo[],Table_PREInspection[[#This Row],[Line]],H$3)=\"\"),\"\",INDEX(Table_PREInfo[],Table_PREInspection[[#This Row],[Line]],H$3)),\"\")","v":""},{"$f":"IFERROR(IF(OR(Table_PREInspection[[#This Row],[Line]]=\"\",INDEX(Table_PREInfo[],Table_PREInspection[[#This Row],[Line]],I$3)=\"\"),\"\",INDEX(Table_PREInfo[],Table_PREInspection[[#This Row],[Line]],I$3)),\"\")","v":""},{"$f":"IFERROR(IF(OR(Table_PREInspection[[#This Row],[Line]]=\"\",INDEX(Table_PREInfo[],Table_PREInspection[[#This Row],[Line]],J$3)=\"\"),\"\",INDEX(Table_PREInfo[],Table_PREInspection[[#This Row],[Line]],J$3)),\"\")","v":""},{"$f":"IFERROR(\nIFERROR(OFFSET(Table_TypWattage[[#Headers],[Technology]],MATCH(Table_PREInspection[[#This Row],[Fixture Technology '[E']]] & IF(Table_PREInspection[[#This Row],[Ballast/ Driver '[E']]]<>\"\",\" - \" & Table_PREInspection[[#This Row],[Ballast/ Driver '[E']]],\"\"),Table_TypWattage[Technology],0)+MATCH(Table_PREInspection[[#This Row],[Fixture/ Lamp Wattage '[E']]],INDIRECT(SUBSTITUTE(SUBSTITUTE(Table_PREInspection[[#This Row],[Fixture Technology '[E']]],\" \",\"_\"),\"-\",\"_\")),0)-1,MATCH(Table_PREInspection[[#This Row],['# Lamps/ Fixture '[E']]],'Measure Tables'!$Q$2:$V$2,0)+1),IF(Table_PREInspection[[#This Row],[Schedule]]<>\"\",IF(AND(Table_PREInspection[[#This Row],['# Lamps/ Fixture '[E']]]<>\"\",Table_PREInspection[[#This Row],['# Lamps/ Fixture '[E']]]>0,Table_PREInspection[[#This Row],[Fixture/ Lamp Wattage '[E']]]>0),Table_PREInspection[[#This Row],['# Lamps/ Fixture '[E']]]*Table_PREInspection[[#This Row],[Fixture/ Lamp Wattage '[E']]],Table_PREInspection[[#This Row],[Fixture/ Lamp Wattage '[E']]]),\"\")),\n\"\")","v":""},{"$f":"IFERROR(IF(OR(Table_PREInspection[[#This Row],[Line]]=\"\",INDEX(Table_PREInfo[],Table_PREInspection[[#This Row],[Line]],L$3)=\"\"),\"\",INDEX(Table_PREInfo[],Table_PREInspection[[#This Row],[Line]],L$3)),\"\")","v":""},{"$f":"IFERROR(IF(OR(Table_PREInspection[[#This Row],[Line]]=\"\",INDEX(Table_PREInfo[],Table_PREInspection[[#This Row],[Line]],M$3)=\"\"),\"\",INDEX(Table_PREInfo[],Table_PREInspection[[#This Row],[Line]],M$3)),\"\")","v":""},{"$f":"IFERROR(IF(Table_PREInspection[[#This Row],[Interior/ Exterior]]<>\"\",\n  CONCATENATE(\n  Table_PREInspection[[#This Row],[Interior/ Exterior]],\": \" &\n  Table_PREInspection[[#This Row],[Fixture Technology '[E']]],\n  \" - \",Table_PREInspection[[#This Row],[Fixture Type '[E']]],\" [\",\n  IF(Table_PREInspection[[#This Row],['# Lamps/ Fixture '[E']]]>0,Table_PREInspection[[#This Row],['# Lamps/ Fixture '[E']]] & \"L - \" & Table_PREInspection[[#This Row],[Fixture/ Lamp Wattage '[E']]] & \"W\" & IF(Table_PREInspection[[#This Row],[Ballast/ Driver '[E']]]<>\"\",\" - \" & Table_PREInspection[[#This Row],[Ballast/ Driver '[E']]],\"\"),Table_PREInspection[[#This Row],[Fixture Wattage '[E']]] & \"W\"),\"]\",\n  IF(AND(Table_PREInspection[[#This Row],[Controls '[E']]]<>\"\",Table_PREInspection[[#This Row],[Controls '[E']]]<>\"No Controls\"),\" - \" & Table_PREInspection[[#This Row],[Controls '[E']]],\"\")\n  ),\n\"\"),\"\")","v":""}]
[null,{"$f":"IFERROR(IF(OR(Table_PREInspection[[#This Row],[Line]]=\"\",INDEX(Table_PREInfo[],Table_PREInspection[[#This Row],[Line]],B$3)=\"\"),\"\",INDEX(Table_PREInfo[],Table_PREInspection[[#This Row],[Line]],B$3)),\"\")","v":""},{"$f":"IFERROR(IF(OR(Table_PREInspection[[#This Row],[Line]]=\"\",INDEX(Table_PREInfo[],Table_PREInspection[[#This Row],[Line]],C$3)=\"\"),\"\",INDEX(Table_PREInfo[],Table_PREInspection[[#This Row],[Line]],C$3)),\"\")","v":""},{"$f":"IFERROR(IF(OR(Table_PREInspection[[#This Row],[Line]]=\"\",INDEX(Table_PREInfo[],Table_PREInspection[[#This Row],[Line]],D$3)=\"\"),\"\",INDEX(Table_PREInfo[],Table_PREInspection[[#This Row],[Line]],D$3)),\"\")","v":""},null,{"$f":"IFERROR(IF(OR(Table_PREInspection[[#This Row],[Line]]=\"\",INDEX(Table_PREInfo[],Table_PREInspection[[#This Row],[Line]],F$3)=\"\"),\"\",INDEX(Table_PREInfo[],Table_PREInspection[[#This Row],[Line]],F$3)),\"\")","v":""},{"$f":"IFERROR(IF(OR(Table_PREInspection[[#This Row],[Line]]=\"\",INDEX(Table_PREInfo[],Table_PREInspection[[#This Row],[Line]],G$3)=\"\"),\"\",INDEX(Table_PREInfo[],Table_PREInspection[[#This Row],[Line]],G$3)),\"\")","v":""},{"$f":"IFERROR(IF(OR(Table_PREInspection[[#This Row],[Line]]=\"\",INDEX(Table_PREInfo[],Table_PREInspection[[#This Row],[Line]],H$3)=\"\"),\"\",INDEX(Table_PREInfo[],Table_PREInspection[[#This Row],[Line]],H$3)),\"\")","v":""},{"$f":"IFERROR(IF(OR(Table_PREInspection[[#This Row],[Line]]=\"\",INDEX(Table_PREInfo[],Table_PREInspection[[#This Row],[Line]],I$3)=\"\"),\"\",INDEX(Table_PREInfo[],Table_PREInspection[[#This Row],[Line]],I$3)),\"\")","v":""},{"$f":"IFERROR(IF(OR(Table_PREInspection[[#This Row],[Line]]=\"\",INDEX(Table_PREInfo[],Table_PREInspection[[#This Row],[Line]],J$3)=\"\"),\"\",INDEX(Table_PREInfo[],Table_PREInspection[[#This Row],[Line]],J$3)),\"\")","v":""},{"$f":"IFERROR(\nIFERROR(OFFSET(Table_TypWattage[[#Headers],[Technology]],MATCH(Table_PREInspection[[#This Row],[Fixture Technology '[E']]] & IF(Table_PREInspection[[#This Row],[Ballast/ Driver '[E']]]<>\"\",\" - \" & Table_PREInspection[[#This Row],[Ballast/ Driver '[E']]],\"\"),Table_TypWattage[Technology],0)+MATCH(Table_PREInspection[[#This Row],[Fixture/ Lamp Wattage '[E']]],INDIRECT(SUBSTITUTE(SUBSTITUTE(Table_PREInspection[[#This Row],[Fixture Technology '[E']]],\" \",\"_\"),\"-\",\"_\")),0)-1,MATCH(Table_PREInspection[[#This Row],['# Lamps/ Fixture '[E']]],'Measure Tables'!$Q$2:$V$2,0)+1),IF(Table_PREInspection[[#This Row],[Schedule]]<>\"\",IF(AND(Table_PREInspection[[#This Row],['# Lamps/ Fixture '[E']]]<>\"\",Table_PREInspection[[#This Row],['# Lamps/ Fixture '[E']]]>0,Table_PREInspection[[#This Row],[Fixture/ Lamp Wattage '[E']]]>0),Table_PREInspection[[#This Row],['# Lamps/ Fixture '[E']]]*Table_PREInspection[[#This Row],[Fixture/ Lamp Wattage '[E']]],Table_PREInspection[[#This Row],[Fixture/ Lamp Wattage '[E']]]),\"\")),\n\"\")","v":""},{"$f":"IFERROR(IF(OR(Table_PREInspection[[#This Row],[Line]]=\"\",INDEX(Table_PREInfo[],Table_PREInspection[[#This Row],[Line]],L$3)=\"\"),\"\",INDEX(Table_PREInfo[],Table_PREInspection[[#This Row],[Line]],L$3)),\"\")","v":""},{"$f":"IFERROR(IF(OR(Table_PREInspection[[#This Row],[Line]]=\"\",INDEX(Table_PREInfo[],Table_PREInspection[[#This Row],[Line]],M$3)=\"\"),\"\",INDEX(Table_PREInfo[],Table_PREInspection[[#This Row],[Line]],M$3)),\"\")","v":""},{"$f":"IFERROR(IF(Table_PREInspection[[#This Row],[Interior/ Exterior]]<>\"\",\n  CONCATENATE(\n  Table_PREInspection[[#This Row],[Interior/ Exterior]],\": \" &\n  Table_PREInspection[[#This Row],[Fixture Technology '[E']]],\n  \" - \",Table_PREInspection[[#This Row],[Fixture Type '[E']]],\" [\",\n  IF(Table_PREInspection[[#This Row],['# Lamps/ Fixture '[E']]]>0,Table_PREInspection[[#This Row],['# Lamps/ Fixture '[E']]] & \"L - \" & Table_PREInspection[[#This Row],[Fixture/ Lamp Wattage '[E']]] & \"W\" & IF(Table_PREInspection[[#This Row],[Ballast/ Driver '[E']]]<>\"\",\" - \" & Table_PREInspection[[#This Row],[Ballast/ Driver '[E']]],\"\"),Table_PREInspection[[#This Row],[Fixture Wattage '[E']]] & \"W\"),\"]\",\n  IF(AND(Table_PREInspection[[#This Row],[Controls '[E']]]<>\"\",Table_PREInspection[[#This Row],[Controls '[E']]]<>\"No Controls\"),\" - \" & Table_PREInspection[[#This Row],[Controls '[E']]],\"\")\n  ),\n\"\"),\"\")","v":""}]
[null,{"$f":"IFERROR(IF(OR(Table_PREInspection[[#This Row],[Line]]=\"\",INDEX(Table_PREInfo[],Table_PREInspection[[#This Row],[Line]],B$3)=\"\"),\"\",INDEX(Table_PREInfo[],Table_PREInspection[[#This Row],[Line]],B$3)),\"\")","v":""},{"$f":"IFERROR(IF(OR(Table_PREInspection[[#This Row],[Line]]=\"\",INDEX(Table_PREInfo[],Table_PREInspection[[#This Row],[Line]],C$3)=\"\"),\"\",INDEX(Table_PREInfo[],Table_PREInspection[[#This Row],[Line]],C$3)),\"\")","v":""},{"$f":"IFERROR(IF(OR(Table_PREInspection[[#This Row],[Line]]=\"\",INDEX(Table_PREInfo[],Table_PREInspection[[#This Row],[Line]],D$3)=\"\"),\"\",INDEX(Table_PREInfo[],Table_PREInspection[[#This Row],[Line]],D$3)),\"\")","v":""},null,{"$f":"IFERROR(IF(OR(Table_PREInspection[[#This Row],[Line]]=\"\",INDEX(Table_PREInfo[],Table_PREInspection[[#This Row],[Line]],F$3)=\"\"),\"\",INDEX(Table_PREInfo[],Table_PREInspection[[#This Row],[Line]],F$3)),\"\")","v":""},{"$f":"IFERROR(IF(OR(Table_PREInspection[[#This Row],[Line]]=\"\",INDEX(Table_PREInfo[],Table_PREInspection[[#This Row],[Line]],G$3)=\"\"),\"\",INDEX(Table_PREInfo[],Table_PREInspection[[#This Row],[Line]],G$3)),\"\")","v":""},{"$f":"IFERROR(IF(OR(Table_PREInspection[[#This Row],[Line]]=\"\",INDEX(Table_PREInfo[],Table_PREInspection[[#This Row],[Line]],H$3)=\"\"),\"\",INDEX(Table_PREInfo[],Table_PREInspection[[#This Row],[Line]],H$3)),\"\")","v":""},{"$f":"IFERROR(IF(OR(Table_PREInspection[[#This Row],[Line]]=\"\",INDEX(Table_PREInfo[],Table_PREInspection[[#This Row],[Line]],I$3)=\"\"),\"\",INDEX(Table_PREInfo[],Table_PREInspection[[#This Row],[Line]],I$3)),\"\")","v":""},{"$f":"IFERROR(IF(OR(Table_PREInspection[[#This Row],[Line]]=\"\",INDEX(Table_PREInfo[],Table_PREInspection[[#This Row],[Line]],J$3)=\"\"),\"\",INDEX(Table_PREInfo[],Table_PREInspection[[#This Row],[Line]],J$3)),\"\")","v":""},{"$f":"IFERROR(\nIFERROR(OFFSET(Table_TypWattage[[#Headers],[Technology]],MATCH(Table_PREInspection[[#This Row],[Fixture Technology '[E']]] & IF(Table_PREInspection[[#This Row],[Ballast/ Driver '[E']]]<>\"\",\" - \" & Table_PREInspection[[#This Row],[Ballast/ Driver '[E']]],\"\"),Table_TypWattage[Technology],0)+MATCH(Table_PREInspection[[#This Row],[Fixture/ Lamp Wattage '[E']]],INDIRECT(SUBSTITUTE(SUBSTITUTE(Table_PREInspection[[#This Row],[Fixture Technology '[E']]],\" \",\"_\"),\"-\",\"_\")),0)-1,MATCH(Table_PREInspection[[#This Row],['# Lamps/ Fixture '[E']]],'Measure Tables'!$Q$2:$V$2,0)+1),IF(Table_PREInspection[[#This Row],[Schedule]]<>\"\",IF(AND(Table_PREInspection[[#This Row],['# Lamps/ Fixture '[E']]]<>\"\",Table_PREInspection[[#This Row],['# Lamps/ Fixture '[E']]]>0,Table_PREInspection[[#This Row],[Fixture/ Lamp Wattage '[E']]]>0),Table_PREInspection[[#This Row],['# Lamps/ Fixture '[E']]]*Table_PREInspection[[#This Row],[Fixture/ Lamp Wattage '[E']]],Table_PREInspection[[#This Row],[Fixture/ Lamp Wattage '[E']]]),\"\")),\n\"\")","v":""},{"$f":"IFERROR(IF(OR(Table_PREInspection[[#This Row],[Line]]=\"\",INDEX(Table_PREInfo[],Table_PREInspection[[#This Row],[Line]],L$3)=\"\"),\"\",INDEX(Table_PREInfo[],Table_PREInspection[[#This Row],[Line]],L$3)),\"\")","v":""},{"$f":"IFERROR(IF(OR(Table_PREInspection[[#This Row],[Line]]=\"\",INDEX(Table_PREInfo[],Table_PREInspection[[#This Row],[Line]],M$3)=\"\"),\"\",INDEX(Table_PREInfo[],Table_PREInspection[[#This Row],[Line]],M$3)),\"\")","v":""},{"$f":"IFERROR(IF(Table_PREInspection[[#This Row],[Interior/ Exterior]]<>\"\",\n  CONCATENATE(\n  Table_PREInspection[[#This Row],[Interior/ Exterior]],\": \" &\n  Table_PREInspection[[#This Row],[Fixture Technology '[E']]],\n  \" - \",Table_PREInspection[[#This Row],[Fixture Type '[E']]],\" [\",\n  IF(Table_PREInspection[[#This Row],['# Lamps/ Fixture '[E']]]>0,Table_PREInspection[[#This Row],['# Lamps/ Fixture '[E']]] & \"L - \" & Table_PREInspection[[#This Row],[Fixture/ Lamp Wattage '[E']]] & \"W\" & IF(Table_PREInspection[[#This Row],[Ballast/ Driver '[E']]]<>\"\",\" - \" & Table_PREInspection[[#This Row],[Ballast/ Driver '[E']]],\"\"),Table_PREInspection[[#This Row],[Fixture Wattage '[E']]] & \"W\"),\"]\",\n  IF(AND(Table_PREInspection[[#This Row],[Controls '[E']]]<>\"\",Table_PREInspection[[#This Row],[Controls '[E']]]<>\"No Controls\"),\" - \" & Table_PREInspection[[#This Row],[Controls '[E']]],\"\")\n  ),\n\"\"),\"\")","v":""}]
[null,{"$f":"IFERROR(IF(OR(Table_PREInspection[[#This Row],[Line]]=\"\",INDEX(Table_PREInfo[],Table_PREInspection[[#This Row],[Line]],B$3)=\"\"),\"\",INDEX(Table_PREInfo[],Table_PREInspection[[#This Row],[Line]],B$3)),\"\")","v":""},{"$f":"IFERROR(IF(OR(Table_PREInspection[[#This Row],[Line]]=\"\",INDEX(Table_PREInfo[],Table_PREInspection[[#This Row],[Line]],C$3)=\"\"),\"\",INDEX(Table_PREInfo[],Table_PREInspection[[#This Row],[Line]],C$3)),\"\")","v":""},{"$f":"IFERROR(IF(OR(Table_PREInspection[[#This Row],[Line]]=\"\",INDEX(Table_PREInfo[],Table_PREInspection[[#This Row],[Line]],D$3)=\"\"),\"\",INDEX(Table_PREInfo[],Table_PREInspection[[#This Row],[Line]],D$3)),\"\")","v":""},null,{"$f":"IFERROR(IF(OR(Table_PREInspection[[#This Row],[Line]]=\"\",INDEX(Table_PREInfo[],Table_PREInspection[[#This Row],[Line]],F$3)=\"\"),\"\",INDEX(Table_PREInfo[],Table_PREInspection[[#This Row],[Line]],F$3)),\"\")","v":""},{"$f":"IFERROR(IF(OR(Table_PREInspection[[#This Row],[Line]]=\"\",INDEX(Table_PREInfo[],Table_PREInspection[[#This Row],[Line]],G$3)=\"\"),\"\",INDEX(Table_PREInfo[],Table_PREInspection[[#This Row],[Line]],G$3)),\"\")","v":""},{"$f":"IFERROR(IF(OR(Table_PREInspection[[#This Row],[Line]]=\"\",INDEX(Table_PREInfo[],Table_PREInspection[[#This Row],[Line]],H$3)=\"\"),\"\",INDEX(Table_PREInfo[],Table_PREInspection[[#This Row],[Line]],H$3)),\"\")","v":""},{"$f":"IFERROR(IF(OR(Table_PREInspection[[#This Row],[Line]]=\"\",INDEX(Table_PREInfo[],Table_PREInspection[[#This Row],[Line]],I$3)=\"\"),\"\",INDEX(Table_PREInfo[],Table_PREInspection[[#This Row],[Line]],I$3)),\"\")","v":""},{"$f":"IFERROR(IF(OR(Table_PREInspection[[#This Row],[Line]]=\"\",INDEX(Table_PREInfo[],Table_PREInspection[[#This Row],[Line]],J$3)=\"\"),\"\",INDEX(Table_PREInfo[],Table_PREInspection[[#This Row],[Line]],J$3)),\"\")","v":""},{"$f":"IFERROR(\nIFERROR(OFFSET(Table_TypWattage[[#Headers],[Technology]],MATCH(Table_PREInspection[[#This Row],[Fixture Technology '[E']]] & IF(Table_PREInspection[[#This Row],[Ballast/ Driver '[E']]]<>\"\",\" - \" & Table_PREInspection[[#This Row],[Ballast/ Driver '[E']]],\"\"),Table_TypWattage[Technology],0)+MATCH(Table_PREInspection[[#This Row],[Fixture/ Lamp Wattage '[E']]],INDIRECT(SUBSTITUTE(SUBSTITUTE(Table_PREInspection[[#This Row],[Fixture Technology '[E']]],\" \",\"_\"),\"-\",\"_\")),0)-1,MATCH(Table_PREInspection[[#This Row],['# Lamps/ Fixture '[E']]],'Measure Tables'!$Q$2:$V$2,0)+1),IF(Table_PREInspection[[#This Row],[Schedule]]<>\"\",IF(AND(Table_PREInspection[[#This Row],['# Lamps/ Fixture '[E']]]<>\"\",Table_PREInspection[[#This Row],['# Lamps/ Fixture '[E']]]>0,Table_PREInspection[[#This Row],[Fixture/ Lamp Wattage '[E']]]>0),Table_PREInspection[[#This Row],['# Lamps/ Fixture '[E']]]*Table_PREInspection[[#This Row],[Fixture/ Lamp Wattage '[E']]],Table_PREInspection[[#This Row],[Fixture/ Lamp Wattage '[E']]]),\"\")),\n\"\")","v":""},{"$f":"IFERROR(IF(OR(Table_PREInspection[[#This Row],[Line]]=\"\",INDEX(Table_PREInfo[],Table_PREInspection[[#This Row],[Line]],L$3)=\"\"),\"\",INDEX(Table_PREInfo[],Table_PREInspection[[#This Row],[Line]],L$3)),\"\")","v":""},{"$f":"IFERROR(IF(OR(Table_PREInspection[[#This Row],[Line]]=\"\",INDEX(Table_PREInfo[],Table_PREInspection[[#This Row],[Line]],M$3)=\"\"),\"\",INDEX(Table_PREInfo[],Table_PREInspection[[#This Row],[Line]],M$3)),\"\")","v":""},{"$f":"IFERROR(IF(Table_PREInspection[[#This Row],[Interior/ Exterior]]<>\"\",\n  CONCATENATE(\n  Table_PREInspection[[#This Row],[Interior/ Exterior]],\": \" &\n  Table_PREInspection[[#This Row],[Fixture Technology '[E']]],\n  \" - \",Table_PREInspection[[#This Row],[Fixture Type '[E']]],\" [\",\n  IF(Table_PREInspection[[#This Row],['# Lamps/ Fixture '[E']]]>0,Table_PREInspection[[#This Row],['# Lamps/ Fixture '[E']]] & \"L - \" & Table_PREInspection[[#This Row],[Fixture/ Lamp Wattage '[E']]] & \"W\" & IF(Table_PREInspection[[#This Row],[Ballast/ Driver '[E']]]<>\"\",\" - \" & Table_PREInspection[[#This Row],[Ballast/ Driver '[E']]],\"\"),Table_PREInspection[[#This Row],[Fixture Wattage '[E']]] & \"W\"),\"]\",\n  IF(AND(Table_PREInspection[[#This Row],[Controls '[E']]]<>\"\",Table_PREInspection[[#This Row],[Controls '[E']]]<>\"No Controls\"),\" - \" & Table_PREInspection[[#This Row],[Controls '[E']]],\"\")\n  ),\n\"\"),\"\")","v":""}]
[null,{"$f":"IFERROR(IF(OR(Table_PREInspection[[#This Row],[Line]]=\"\",INDEX(Table_PREInfo[],Table_PREInspection[[#This Row],[Line]],B$3)=\"\"),\"\",INDEX(Table_PREInfo[],Table_PREInspection[[#This Row],[Line]],B$3)),\"\")","v":""},{"$f":"IFERROR(IF(OR(Table_PREInspection[[#This Row],[Line]]=\"\",INDEX(Table_PREInfo[],Table_PREInspection[[#This Row],[Line]],C$3)=\"\"),\"\",INDEX(Table_PREInfo[],Table_PREInspection[[#This Row],[Line]],C$3)),\"\")","v":""},{"$f":"IFERROR(IF(OR(Table_PREInspection[[#This Row],[Line]]=\"\",INDEX(Table_PREInfo[],Table_PREInspection[[#This Row],[Line]],D$3)=\"\"),\"\",INDEX(Table_PREInfo[],Table_PREInspection[[#This Row],[Line]],D$3)),\"\")","v":""},null,{"$f":"IFERROR(IF(OR(Table_PREInspection[[#This Row],[Line]]=\"\",INDEX(Table_PREInfo[],Table_PREInspection[[#This Row],[Line]],F$3)=\"\"),\"\",INDEX(Table_PREInfo[],Table_PREInspection[[#This Row],[Line]],F$3)),\"\")","v":""},{"$f":"IFERROR(IF(OR(Table_PREInspection[[#This Row],[Line]]=\"\",INDEX(Table_PREInfo[],Table_PREInspection[[#This Row],[Line]],G$3)=\"\"),\"\",INDEX(Table_PREInfo[],Table_PREInspection[[#This Row],[Line]],G$3)),\"\")","v":""},{"$f":"IFERROR(IF(OR(Table_PREInspection[[#This Row],[Line]]=\"\",INDEX(Table_PREInfo[],Table_PREInspection[[#This Row],[Line]],H$3)=\"\"),\"\",INDEX(Table_PREInfo[],Table_PREInspection[[#This Row],[Line]],H$3)),\"\")","v":""},{"$f":"IFERROR(IF(OR(Table_PREInspection[[#This Row],[Line]]=\"\",INDEX(Table_PREInfo[],Table_PREInspection[[#This Row],[Line]],I$3)=\"\"),\"\",INDEX(Table_PREInfo[],Table_PREInspection[[#This Row],[Line]],I$3)),\"\")","v":""},{"$f":"IFERROR(IF(OR(Table_PREInspection[[#This Row],[Line]]=\"\",INDEX(Table_PREInfo[],Table_PREInspection[[#This Row],[Line]],J$3)=\"\"),\"\",INDEX(Table_PREInfo[],Table_PREInspection[[#This Row],[Line]],J$3)),\"\")","v":""},{"$f":"IFERROR(\nIFERROR(OFFSET(Table_TypWattage[[#Headers],[Technology]],MATCH(Table_PREInspection[[#This Row],[Fixture Technology '[E']]] & IF(Table_PREInspection[[#This Row],[Ballast/ Driver '[E']]]<>\"\",\" - \" & Table_PREInspection[[#This Row],[Ballast/ Driver '[E']]],\"\"),Table_TypWattage[Technology],0)+MATCH(Table_PREInspection[[#This Row],[Fixture/ Lamp Wattage '[E']]],INDIRECT(SUBSTITUTE(SUBSTITUTE(Table_PREInspection[[#This Row],[Fixture Technology '[E']]],\" \",\"_\"),\"-\",\"_\")),0)-1,MATCH(Table_PREInspection[[#This Row],['# Lamps/ Fixture '[E']]],'Measure Tables'!$Q$2:$V$2,0)+1),IF(Table_PREInspection[[#This Row],[Schedule]]<>\"\",IF(AND(Table_PREInspection[[#This Row],['# Lamps/ Fixture '[E']]]<>\"\",Table_PREInspection[[#This Row],['# Lamps/ Fixture '[E']]]>0,Table_PREInspection[[#This Row],[Fixture/ Lamp Wattage '[E']]]>0),Table_PREInspection[[#This Row],['# Lamps/ Fixture '[E']]]*Table_PREInspection[[#This Row],[Fixture/ Lamp Wattage '[E']]],Table_PREInspection[[#This Row],[Fixture/ Lamp Wattage '[E']]]),\"\")),\n\"\")","v":""},{"$f":"IFERROR(IF(OR(Table_PREInspection[[#This Row],[Line]]=\"\",INDEX(Table_PREInfo[],Table_PREInspection[[#This Row],[Line]],L$3)=\"\"),\"\",INDEX(Table_PREInfo[],Table_PREInspection[[#This Row],[Line]],L$3)),\"\")","v":""},{"$f":"IFERROR(IF(OR(Table_PREInspection[[#This Row],[Line]]=\"\",INDEX(Table_PREInfo[],Table_PREInspection[[#This Row],[Line]],M$3)=\"\"),\"\",INDEX(Table_PREInfo[],Table_PREInspection[[#This Row],[Line]],M$3)),\"\")","v":""},{"$f":"IFERROR(IF(Table_PREInspection[[#This Row],[Interior/ Exterior]]<>\"\",\n  CONCATENATE(\n  Table_PREInspection[[#This Row],[Interior/ Exterior]],\": \" &\n  Table_PREInspection[[#This Row],[Fixture Technology '[E']]],\n  \" - \",Table_PREInspection[[#This Row],[Fixture Type '[E']]],\" [\",\n  IF(Table_PREInspection[[#This Row],['# Lamps/ Fixture '[E']]]>0,Table_PREInspection[[#This Row],['# Lamps/ Fixture '[E']]] & \"L - \" & Table_PREInspection[[#This Row],[Fixture/ Lamp Wattage '[E']]] & \"W\" & IF(Table_PREInspection[[#This Row],[Ballast/ Driver '[E']]]<>\"\",\" - \" & Table_PREInspection[[#This Row],[Ballast/ Driver '[E']]],\"\"),Table_PREInspection[[#This Row],[Fixture Wattage '[E']]] & \"W\"),\"]\",\n  IF(AND(Table_PREInspection[[#This Row],[Controls '[E']]]<>\"\",Table_PREInspection[[#This Row],[Controls '[E']]]<>\"No Controls\"),\" - \" & Table_PREInspection[[#This Row],[Controls '[E']]],\"\")\n  ),\n\"\"),\"\")","v":""}]
[null,{"$f":"IFERROR(IF(OR(Table_PREInspection[[#This Row],[Line]]=\"\",INDEX(Table_PREInfo[],Table_PREInspection[[#This Row],[Line]],B$3)=\"\"),\"\",INDEX(Table_PREInfo[],Table_PREInspection[[#This Row],[Line]],B$3)),\"\")","v":""},{"$f":"IFERROR(IF(OR(Table_PREInspection[[#This Row],[Line]]=\"\",INDEX(Table_PREInfo[],Table_PREInspection[[#This Row],[Line]],C$3)=\"\"),\"\",INDEX(Table_PREInfo[],Table_PREInspection[[#This Row],[Line]],C$3)),\"\")","v":""},{"$f":"IFERROR(IF(OR(Table_PREInspection[[#This Row],[Line]]=\"\",INDEX(Table_PREInfo[],Table_PREInspection[[#This Row],[Line]],D$3)=\"\"),\"\",INDEX(Table_PREInfo[],Table_PREInspection[[#This Row],[Line]],D$3)),\"\")","v":""},null,{"$f":"IFERROR(IF(OR(Table_PREInspection[[#This Row],[Line]]=\"\",INDEX(Table_PREInfo[],Table_PREInspection[[#This Row],[Line]],F$3)=\"\"),\"\",INDEX(Table_PREInfo[],Table_PREInspection[[#This Row],[Line]],F$3)),\"\")","v":""},{"$f":"IFERROR(IF(OR(Table_PREInspection[[#This Row],[Line]]=\"\",INDEX(Table_PREInfo[],Table_PREInspection[[#This Row],[Line]],G$3)=\"\"),\"\",INDEX(Table_PREInfo[],Table_PREInspection[[#This Row],[Line]],G$3)),\"\")","v":""},{"$f":"IFERROR(IF(OR(Table_PREInspection[[#This Row],[Line]]=\"\",INDEX(Table_PREInfo[],Table_PREInspection[[#This Row],[Line]],H$3)=\"\"),\"\",INDEX(Table_PREInfo[],Table_PREInspection[[#This Row],[Line]],H$3)),\"\")","v":""},{"$f":"IFERROR(IF(OR(Table_PREInspection[[#This Row],[Line]]=\"\",INDEX(Table_PREInfo[],Table_PREInspection[[#This Row],[Line]],I$3)=\"\"),\"\",INDEX(Table_PREInfo[],Table_PREInspection[[#This Row],[Line]],I$3)),\"\")","v":""},{"$f":"IFERROR(IF(OR(Table_PREInspection[[#This Row],[Line]]=\"\",INDEX(Table_PREInfo[],Table_PREInspection[[#This Row],[Line]],J$3)=\"\"),\"\",INDEX(Table_PREInfo[],Table_PREInspection[[#This Row],[Line]],J$3)),\"\")","v":""},{"$f":"IFERROR(\nIFERROR(OFFSET(Table_TypWattage[[#Headers],[Technology]],MATCH(Table_PREInspection[[#This Row],[Fixture Technology '[E']]] & IF(Table_PREInspection[[#This Row],[Ballast/ Driver '[E']]]<>\"\",\" - \" & Table_PREInspection[[#This Row],[Ballast/ Driver '[E']]],\"\"),Table_TypWattage[Technology],0)+MATCH(Table_PREInspection[[#This Row],[Fixture/ Lamp Wattage '[E']]],INDIRECT(SUBSTITUTE(SUBSTITUTE(Table_PREInspection[[#This Row],[Fixture Technology '[E']]],\" \",\"_\"),\"-\",\"_\")),0)-1,MATCH(Table_PREInspection[[#This Row],['# Lamps/ Fixture '[E']]],'Measure Tables'!$Q$2:$V$2,0)+1),IF(Table_PREInspection[[#This Row],[Schedule]]<>\"\",IF(AND(Table_PREInspection[[#This Row],['# Lamps/ Fixture '[E']]]<>\"\",Table_PREInspection[[#This Row],['# Lamps/ Fixture '[E']]]>0,Table_PREInspection[[#This Row],[Fixture/ Lamp Wattage '[E']]]>0),Table_PREInspection[[#This Row],['# Lamps/ Fixture '[E']]]*Table_PREInspection[[#This Row],[Fixture/ Lamp Wattage '[E']]],Table_PREInspection[[#This Row],[Fixture/ Lamp Wattage '[E']]]),\"\")),\n\"\")","v":""},{"$f":"IFERROR(IF(OR(Table_PREInspection[[#This Row],[Line]]=\"\",INDEX(Table_PREInfo[],Table_PREInspection[[#This Row],[Line]],L$3)=\"\"),\"\",INDEX(Table_PREInfo[],Table_PREInspection[[#This Row],[Line]],L$3)),\"\")","v":""},{"$f":"IFERROR(IF(OR(Table_PREInspection[[#This Row],[Line]]=\"\",INDEX(Table_PREInfo[],Table_PREInspection[[#This Row],[Line]],M$3)=\"\"),\"\",INDEX(Table_PREInfo[],Table_PREInspection[[#This Row],[Line]],M$3)),\"\")","v":""},{"$f":"IFERROR(IF(Table_PREInspection[[#This Row],[Interior/ Exterior]]<>\"\",\n  CONCATENATE(\n  Table_PREInspection[[#This Row],[Interior/ Exterior]],\": \" &\n  Table_PREInspection[[#This Row],[Fixture Technology '[E']]],\n  \" - \",Table_PREInspection[[#This Row],[Fixture Type '[E']]],\" [\",\n  IF(Table_PREInspection[[#This Row],['# Lamps/ Fixture '[E']]]>0,Table_PREInspection[[#This Row],['# Lamps/ Fixture '[E']]] & \"L - \" & Table_PREInspection[[#This Row],[Fixture/ Lamp Wattage '[E']]] & \"W\" & IF(Table_PREInspection[[#This Row],[Ballast/ Driver '[E']]]<>\"\",\" - \" & Table_PREInspection[[#This Row],[Ballast/ Driver '[E']]],\"\"),Table_PREInspection[[#This Row],[Fixture Wattage '[E']]] & \"W\"),\"]\",\n  IF(AND(Table_PREInspection[[#This Row],[Controls '[E']]]<>\"\",Table_PREInspection[[#This Row],[Controls '[E']]]<>\"No Controls\"),\" - \" & Table_PREInspection[[#This Row],[Controls '[E']]],\"\")\n  ),\n\"\"),\"\")","v":""}]
[null,{"$f":"IFERROR(IF(OR(Table_PREInspection[[#This Row],[Line]]=\"\",INDEX(Table_PREInfo[],Table_PREInspection[[#This Row],[Line]],B$3)=\"\"),\"\",INDEX(Table_PREInfo[],Table_PREInspection[[#This Row],[Line]],B$3)),\"\")","v":""},{"$f":"IFERROR(IF(OR(Table_PREInspection[[#This Row],[Line]]=\"\",INDEX(Table_PREInfo[],Table_PREInspection[[#This Row],[Line]],C$3)=\"\"),\"\",INDEX(Table_PREInfo[],Table_PREInspection[[#This Row],[Line]],C$3)),\"\")","v":""},{"$f":"IFERROR(IF(OR(Table_PREInspection[[#This Row],[Line]]=\"\",INDEX(Table_PREInfo[],Table_PREInspection[[#This Row],[Line]],D$3)=\"\"),\"\",INDEX(Table_PREInfo[],Table_PREInspection[[#This Row],[Line]],D$3)),\"\")","v":""},null,{"$f":"IFERROR(IF(OR(Table_PREInspection[[#This Row],[Line]]=\"\",INDEX(Table_PREInfo[],Table_PREInspection[[#This Row],[Line]],F$3)=\"\"),\"\",INDEX(Table_PREInfo[],Table_PREInspection[[#This Row],[Line]],F$3)),\"\")","v":""},{"$f":"IFERROR(IF(OR(Table_PREInspection[[#This Row],[Line]]=\"\",INDEX(Table_PREInfo[],Table_PREInspection[[#This Row],[Line]],G$3)=\"\"),\"\",INDEX(Table_PREInfo[],Table_PREInspection[[#This Row],[Line]],G$3)),\"\")","v":""},{"$f":"IFERROR(IF(OR(Table_PREInspection[[#This Row],[Line]]=\"\",INDEX(Table_PREInfo[],Table_PREInspection[[#This Row],[Line]],H$3)=\"\"),\"\",INDEX(Table_PREInfo[],Table_PREInspection[[#This Row],[Line]],H$3)),\"\")","v":""},{"$f":"IFERROR(IF(OR(Table_PREInspection[[#This Row],[Line]]=\"\",INDEX(Table_PREInfo[],Table_PREInspection[[#This Row],[Line]],I$3)=\"\"),\"\",INDEX(Table_PREInfo[],Table_PREInspection[[#This Row],[Line]],I$3)),\"\")","v":""},{"$f":"IFERROR(IF(OR(Table_PREInspection[[#This Row],[Line]]=\"\",INDEX(Table_PREInfo[],Table_PREInspection[[#This Row],[Line]],J$3)=\"\"),\"\",INDEX(Table_PREInfo[],Table_PREInspection[[#This Row],[Line]],J$3)),\"\")","v":""},{"$f":"IFERROR(\nIFERROR(OFFSET(Table_TypWattage[[#Headers],[Technology]],MATCH(Table_PREInspection[[#This Row],[Fixture Technology '[E']]] & IF(Table_PREInspection[[#This Row],[Ballast/ Driver '[E']]]<>\"\",\" - \" & Table_PREInspection[[#This Row],[Ballast/ Driver '[E']]],\"\"),Table_TypWattage[Technology],0)+MATCH(Table_PREInspection[[#This Row],[Fixture/ Lamp Wattage '[E']]],INDIRECT(SUBSTITUTE(SUBSTITUTE(Table_PREInspection[[#This Row],[Fixture Technology '[E']]],\" \",\"_\"),\"-\",\"_\")),0)-1,MATCH(Table_PREInspection[[#This Row],['# Lamps/ Fixture '[E']]],'Measure Tables'!$Q$2:$V$2,0)+1),IF(Table_PREInspection[[#This Row],[Schedule]]<>\"\",IF(AND(Table_PREInspection[[#This Row],['# Lamps/ Fixture '[E']]]<>\"\",Table_PREInspection[[#This Row],['# Lamps/ Fixture '[E']]]>0,Table_PREInspection[[#This Row],[Fixture/ Lamp Wattage '[E']]]>0),Table_PREInspection[[#This Row],['# Lamps/ Fixture '[E']]]*Table_PREInspection[[#This Row],[Fixture/ Lamp Wattage '[E']]],Table_PREInspection[[#This Row],[Fixture/ Lamp Wattage '[E']]]),\"\")),\n\"\")","v":""},{"$f":"IFERROR(IF(OR(Table_PREInspection[[#This Row],[Line]]=\"\",INDEX(Table_PREInfo[],Table_PREInspection[[#This Row],[Line]],L$3)=\"\"),\"\",INDEX(Table_PREInfo[],Table_PREInspection[[#This Row],[Line]],L$3)),\"\")","v":""},{"$f":"IFERROR(IF(OR(Table_PREInspection[[#This Row],[Line]]=\"\",INDEX(Table_PREInfo[],Table_PREInspection[[#This Row],[Line]],M$3)=\"\"),\"\",INDEX(Table_PREInfo[],Table_PREInspection[[#This Row],[Line]],M$3)),\"\")","v":""},{"$f":"IFERROR(IF(Table_PREInspection[[#This Row],[Interior/ Exterior]]<>\"\",\n  CONCATENATE(\n  Table_PREInspection[[#This Row],[Interior/ Exterior]],\": \" &\n  Table_PREInspection[[#This Row],[Fixture Technology '[E']]],\n  \" - \",Table_PREInspection[[#This Row],[Fixture Type '[E']]],\" [\",\n  IF(Table_PREInspection[[#This Row],['# Lamps/ Fixture '[E']]]>0,Table_PREInspection[[#This Row],['# Lamps/ Fixture '[E']]] & \"L - \" & Table_PREInspection[[#This Row],[Fixture/ Lamp Wattage '[E']]] & \"W\" & IF(Table_PREInspection[[#This Row],[Ballast/ Driver '[E']]]<>\"\",\" - \" & Table_PREInspection[[#This Row],[Ballast/ Driver '[E']]],\"\"),Table_PREInspection[[#This Row],[Fixture Wattage '[E']]] & \"W\"),\"]\",\n  IF(AND(Table_PREInspection[[#This Row],[Controls '[E']]]<>\"\",Table_PREInspection[[#This Row],[Controls '[E']]]<>\"No Controls\"),\" - \" & Table_PREInspection[[#This Row],[Controls '[E']]],\"\")\n  ),\n\"\"),\"\")","v":""}]
[null,{"$f":"IFERROR(IF(OR(Table_PREInspection[[#This Row],[Line]]=\"\",INDEX(Table_PREInfo[],Table_PREInspection[[#This Row],[Line]],B$3)=\"\"),\"\",INDEX(Table_PREInfo[],Table_PREInspection[[#This Row],[Line]],B$3)),\"\")","v":""},{"$f":"IFERROR(IF(OR(Table_PREInspection[[#This Row],[Line]]=\"\",INDEX(Table_PREInfo[],Table_PREInspection[[#This Row],[Line]],C$3)=\"\"),\"\",INDEX(Table_PREInfo[],Table_PREInspection[[#This Row],[Line]],C$3)),\"\")","v":""},{"$f":"IFERROR(IF(OR(Table_PREInspection[[#This Row],[Line]]=\"\",INDEX(Table_PREInfo[],Table_PREInspection[[#This Row],[Line]],D$3)=\"\"),\"\",INDEX(Table_PREInfo[],Table_PREInspection[[#This Row],[Line]],D$3)),\"\")","v":""},null,{"$f":"IFERROR(IF(OR(Table_PREInspection[[#This Row],[Line]]=\"\",INDEX(Table_PREInfo[],Table_PREInspection[[#This Row],[Line]],F$3)=\"\"),\"\",INDEX(Table_PREInfo[],Table_PREInspection[[#This Row],[Line]],F$3)),\"\")","v":""},{"$f":"IFERROR(IF(OR(Table_PREInspection[[#This Row],[Line]]=\"\",INDEX(Table_PREInfo[],Table_PREInspection[[#This Row],[Line]],G$3)=\"\"),\"\",INDEX(Table_PREInfo[],Table_PREInspection[[#This Row],[Line]],G$3)),\"\")","v":""},{"$f":"IFERROR(IF(OR(Table_PREInspection[[#This Row],[Line]]=\"\",INDEX(Table_PREInfo[],Table_PREInspection[[#This Row],[Line]],H$3)=\"\"),\"\",INDEX(Table_PREInfo[],Table_PREInspection[[#This Row],[Line]],H$3)),\"\")","v":""},{"$f":"IFERROR(IF(OR(Table_PREInspection[[#This Row],[Line]]=\"\",INDEX(Table_PREInfo[],Table_PREInspection[[#This Row],[Line]],I$3)=\"\"),\"\",INDEX(Table_PREInfo[],Table_PREInspection[[#This Row],[Line]],I$3)),\"\")","v":""},{"$f":"IFERROR(IF(OR(Table_PREInspection[[#This Row],[Line]]=\"\",INDEX(Table_PREInfo[],Table_PREInspection[[#This Row],[Line]],J$3)=\"\"),\"\",INDEX(Table_PREInfo[],Table_PREInspection[[#This Row],[Line]],J$3)),\"\")","v":""},{"$f":"IFERROR(\nIFERROR(OFFSET(Table_TypWattage[[#Headers],[Technology]],MATCH(Table_PREInspection[[#This Row],[Fixture Technology '[E']]] & IF(Table_PREInspection[[#This Row],[Ballast/ Driver '[E']]]<>\"\",\" - \" & Table_PREInspection[[#This Row],[Ballast/ Driver '[E']]],\"\"),Table_TypWattage[Technology],0)+MATCH(Table_PREInspection[[#This Row],[Fixture/ Lamp Wattage '[E']]],INDIRECT(SUBSTITUTE(SUBSTITUTE(Table_PREInspection[[#This Row],[Fixture Technology '[E']]],\" \",\"_\"),\"-\",\"_\")),0)-1,MATCH(Table_PREInspection[[#This Row],['# Lamps/ Fixture '[E']]],'Measure Tables'!$Q$2:$V$2,0)+1),IF(Table_PREInspection[[#This Row],[Schedule]]<>\"\",IF(AND(Table_PREInspection[[#This Row],['# Lamps/ Fixture '[E']]]<>\"\",Table_PREInspection[[#This Row],['# Lamps/ Fixture '[E']]]>0,Table_PREInspection[[#This Row],[Fixture/ Lamp Wattage '[E']]]>0),Table_PREInspection[[#This Row],['# Lamps/ Fixture '[E']]]*Table_PREInspection[[#This Row],[Fixture/ Lamp Wattage '[E']]],Table_PREInspection[[#This Row],[Fixture/ Lamp Wattage '[E']]]),\"\")),\n\"\")","v":""},{"$f":"IFERROR(IF(OR(Table_PREInspection[[#This Row],[Line]]=\"\",INDEX(Table_PREInfo[],Table_PREInspection[[#This Row],[Line]],L$3)=\"\"),\"\",INDEX(Table_PREInfo[],Table_PREInspection[[#This Row],[Line]],L$3)),\"\")","v":""},{"$f":"IFERROR(IF(OR(Table_PREInspection[[#This Row],[Line]]=\"\",INDEX(Table_PREInfo[],Table_PREInspection[[#This Row],[Line]],M$3)=\"\"),\"\",INDEX(Table_PREInfo[],Table_PREInspection[[#This Row],[Line]],M$3)),\"\")","v":""},{"$f":"IFERROR(IF(Table_PREInspection[[#This Row],[Interior/ Exterior]]<>\"\",\n  CONCATENATE(\n  Table_PREInspection[[#This Row],[Interior/ Exterior]],\": \" &\n  Table_PREInspection[[#This Row],[Fixture Technology '[E']]],\n  \" - \",Table_PREInspection[[#This Row],[Fixture Type '[E']]],\" [\",\n  IF(Table_PREInspection[[#This Row],['# Lamps/ Fixture '[E']]]>0,Table_PREInspection[[#This Row],['# Lamps/ Fixture '[E']]] & \"L - \" & Table_PREInspection[[#This Row],[Fixture/ Lamp Wattage '[E']]] & \"W\" & IF(Table_PREInspection[[#This Row],[Ballast/ Driver '[E']]]<>\"\",\" - \" & Table_PREInspection[[#This Row],[Ballast/ Driver '[E']]],\"\"),Table_PREInspection[[#This Row],[Fixture Wattage '[E']]] & \"W\"),\"]\",\n  IF(AND(Table_PREInspection[[#This Row],[Controls '[E']]]<>\"\",Table_PREInspection[[#This Row],[Controls '[E']]]<>\"No Controls\"),\" - \" & Table_PREInspection[[#This Row],[Controls '[E']]],\"\")\n  ),\n\"\"),\"\")","v":""}]
[null,{"$f":"IFERROR(IF(OR(Table_PREInspection[[#This Row],[Line]]=\"\",INDEX(Table_PREInfo[],Table_PREInspection[[#This Row],[Line]],B$3)=\"\"),\"\",INDEX(Table_PREInfo[],Table_PREInspection[[#This Row],[Line]],B$3)),\"\")","v":""},{"$f":"IFERROR(IF(OR(Table_PREInspection[[#This Row],[Line]]=\"\",INDEX(Table_PREInfo[],Table_PREInspection[[#This Row],[Line]],C$3)=\"\"),\"\",INDEX(Table_PREInfo[],Table_PREInspection[[#This Row],[Line]],C$3)),\"\")","v":""},{"$f":"IFERROR(IF(OR(Table_PREInspection[[#This Row],[Line]]=\"\",INDEX(Table_PREInfo[],Table_PREInspection[[#This Row],[Line]],D$3)=\"\"),\"\",INDEX(Table_PREInfo[],Table_PREInspection[[#This Row],[Line]],D$3)),\"\")","v":""},null,{"$f":"IFERROR(IF(OR(Table_PREInspection[[#This Row],[Line]]=\"\",INDEX(Table_PREInfo[],Table_PREInspection[[#This Row],[Line]],F$3)=\"\"),\"\",INDEX(Table_PREInfo[],Table_PREInspection[[#This Row],[Line]],F$3)),\"\")","v":""},{"$f":"IFERROR(IF(OR(Table_PREInspection[[#This Row],[Line]]=\"\",INDEX(Table_PREInfo[],Table_PREInspection[[#This Row],[Line]],G$3)=\"\"),\"\",INDEX(Table_PREInfo[],Table_PREInspection[[#This Row],[Line]],G$3)),\"\")","v":""},{"$f":"IFERROR(IF(OR(Table_PREInspection[[#This Row],[Line]]=\"\",INDEX(Table_PREInfo[],Table_PREInspection[[#This Row],[Line]],H$3)=\"\"),\"\",INDEX(Table_PREInfo[],Table_PREInspection[[#This Row],[Line]],H$3)),\"\")","v":""},{"$f":"IFERROR(IF(OR(Table_PREInspection[[#This Row],[Line]]=\"\",INDEX(Table_PREInfo[],Table_PREInspection[[#This Row],[Line]],I$3)=\"\"),\"\",INDEX(Table_PREInfo[],Table_PREInspection[[#This Row],[Line]],I$3)),\"\")","v":""},{"$f":"IFERROR(IF(OR(Table_PREInspection[[#This Row],[Line]]=\"\",INDEX(Table_PREInfo[],Table_PREInspection[[#This Row],[Line]],J$3)=\"\"),\"\",INDEX(Table_PREInfo[],Table_PREInspection[[#This Row],[Line]],J$3)),\"\")","v":""},{"$f":"IFERROR(\nIFERROR(OFFSET(Table_TypWattage[[#Headers],[Technology]],MATCH(Table_PREInspection[[#This Row],[Fixture Technology '[E']]] & IF(Table_PREInspection[[#This Row],[Ballast/ Driver '[E']]]<>\"\",\" - \" & Table_PREInspection[[#This Row],[Ballast/ Driver '[E']]],\"\"),Table_TypWattage[Technology],0)+MATCH(Table_PREInspection[[#This Row],[Fixture/ Lamp Wattage '[E']]],INDIRECT(SUBSTITUTE(SUBSTITUTE(Table_PREInspection[[#This Row],[Fixture Technology '[E']]],\" \",\"_\"),\"-\",\"_\")),0)-1,MATCH(Table_PREInspection[[#This Row],['# Lamps/ Fixture '[E']]],'Measure Tables'!$Q$2:$V$2,0)+1),IF(Table_PREInspection[[#This Row],[Schedule]]<>\"\",IF(AND(Table_PREInspection[[#This Row],['# Lamps/ Fixture '[E']]]<>\"\",Table_PREInspection[[#This Row],['# Lamps/ Fixture '[E']]]>0,Table_PREInspection[[#This Row],[Fixture/ Lamp Wattage '[E']]]>0),Table_PREInspection[[#This Row],['# Lamps/ Fixture '[E']]]*Table_PREInspection[[#This Row],[Fixture/ Lamp Wattage '[E']]],Table_PREInspection[[#This Row],[Fixture/ Lamp Wattage '[E']]]),\"\")),\n\"\")","v":""},{"$f":"IFERROR(IF(OR(Table_PREInspection[[#This Row],[Line]]=\"\",INDEX(Table_PREInfo[],Table_PREInspection[[#This Row],[Line]],L$3)=\"\"),\"\",INDEX(Table_PREInfo[],Table_PREInspection[[#This Row],[Line]],L$3)),\"\")","v":""},{"$f":"IFERROR(IF(OR(Table_PREInspection[[#This Row],[Line]]=\"\",INDEX(Table_PREInfo[],Table_PREInspection[[#This Row],[Line]],M$3)=\"\"),\"\",INDEX(Table_PREInfo[],Table_PREInspection[[#This Row],[Line]],M$3)),\"\")","v":""},{"$f":"IFERROR(IF(Table_PREInspection[[#This Row],[Interior/ Exterior]]<>\"\",\n  CONCATENATE(\n  Table_PREInspection[[#This Row],[Interior/ Exterior]],\": \" &\n  Table_PREInspection[[#This Row],[Fixture Technology '[E']]],\n  \" - \",Table_PREInspection[[#This Row],[Fixture Type '[E']]],\" [\",\n  IF(Table_PREInspection[[#This Row],['# Lamps/ Fixture '[E']]]>0,Table_PREInspection[[#This Row],['# Lamps/ Fixture '[E']]] & \"L - \" & Table_PREInspection[[#This Row],[Fixture/ Lamp Wattage '[E']]] & \"W\" & IF(Table_PREInspection[[#This Row],[Ballast/ Driver '[E']]]<>\"\",\" - \" & Table_PREInspection[[#This Row],[Ballast/ Driver '[E']]],\"\"),Table_PREInspection[[#This Row],[Fixture Wattage '[E']]] & \"W\"),\"]\",\n  IF(AND(Table_PREInspection[[#This Row],[Controls '[E']]]<>\"\",Table_PREInspection[[#This Row],[Controls '[E']]]<>\"No Controls\"),\" - \" & Table_PREInspection[[#This Row],[Controls '[E']]],\"\")\n  ),\n\"\"),\"\")","v":""}]
[null,{"$f":"IFERROR(IF(OR(Table_PREInspection[[#This Row],[Line]]=\"\",INDEX(Table_PREInfo[],Table_PREInspection[[#This Row],[Line]],B$3)=\"\"),\"\",INDEX(Table_PREInfo[],Table_PREInspection[[#This Row],[Line]],B$3)),\"\")","v":""},{"$f":"IFERROR(IF(OR(Table_PREInspection[[#This Row],[Line]]=\"\",INDEX(Table_PREInfo[],Table_PREInspection[[#This Row],[Line]],C$3)=\"\"),\"\",INDEX(Table_PREInfo[],Table_PREInspection[[#This Row],[Line]],C$3)),\"\")","v":""},{"$f":"IFERROR(IF(OR(Table_PREInspection[[#This Row],[Line]]=\"\",INDEX(Table_PREInfo[],Table_PREInspection[[#This Row],[Line]],D$3)=\"\"),\"\",INDEX(Table_PREInfo[],Table_PREInspection[[#This Row],[Line]],D$3)),\"\")","v":""},null,{"$f":"IFERROR(IF(OR(Table_PREInspection[[#This Row],[Line]]=\"\",INDEX(Table_PREInfo[],Table_PREInspection[[#This Row],[Line]],F$3)=\"\"),\"\",INDEX(Table_PREInfo[],Table_PREInspection[[#This Row],[Line]],F$3)),\"\")","v":""},{"$f":"IFERROR(IF(OR(Table_PREInspection[[#This Row],[Line]]=\"\",INDEX(Table_PREInfo[],Table_PREInspection[[#This Row],[Line]],G$3)=\"\"),\"\",INDEX(Table_PREInfo[],Table_PREInspection[[#This Row],[Line]],G$3)),\"\")","v":""},{"$f":"IFERROR(IF(OR(Table_PREInspection[[#This Row],[Line]]=\"\",INDEX(Table_PREInfo[],Table_PREInspection[[#This Row],[Line]],H$3)=\"\"),\"\",INDEX(Table_PREInfo[],Table_PREInspection[[#This Row],[Line]],H$3)),\"\")","v":""},{"$f":"IFERROR(IF(OR(Table_PREInspection[[#This Row],[Line]]=\"\",INDEX(Table_PREInfo[],Table_PREInspection[[#This Row],[Line]],I$3)=\"\"),\"\",INDEX(Table_PREInfo[],Table_PREInspection[[#This Row],[Line]],I$3)),\"\")","v":""},{"$f":"IFERROR(IF(OR(Table_PREInspection[[#This Row],[Line]]=\"\",INDEX(Table_PREInfo[],Table_PREInspection[[#This Row],[Line]],J$3)=\"\"),\"\",INDEX(Table_PREInfo[],Table_PREInspection[[#This Row],[Line]],J$3)),\"\")","v":""},{"$f":"IFERROR(\nIFERROR(OFFSET(Table_TypWattage[[#Headers],[Technology]],MATCH(Table_PREInspection[[#This Row],[Fixture Technology '[E']]] & IF(Table_PREInspection[[#This Row],[Ballast/ Driver '[E']]]<>\"\",\" - \" & Table_PREInspection[[#This Row],[Ballast/ Driver '[E']]],\"\"),Table_TypWattage[Technology],0)+MATCH(Table_PREInspection[[#This Row],[Fixture/ Lamp Wattage '[E']]],INDIRECT(SUBSTITUTE(SUBSTITUTE(Table_PREInspection[[#This Row],[Fixture Technology '[E']]],\" \",\"_\"),\"-\",\"_\")),0)-1,MATCH(Table_PREInspection[[#This Row],['# Lamps/ Fixture '[E']]],'Measure Tables'!$Q$2:$V$2,0)+1),IF(Table_PREInspection[[#This Row],[Schedule]]<>\"\",IF(AND(Table_PREInspection[[#This Row],['# Lamps/ Fixture '[E']]]<>\"\",Table_PREInspection[[#This Row],['# Lamps/ Fixture '[E']]]>0,Table_PREInspection[[#This Row],[Fixture/ Lamp Wattage '[E']]]>0),Table_PREInspection[[#This Row],['# Lamps/ Fixture '[E']]]*Table_PREInspection[[#This Row],[Fixture/ Lamp Wattage '[E']]],Table_PREInspection[[#This Row],[Fixture/ Lamp Wattage '[E']]]),\"\")),\n\"\")","v":""},{"$f":"IFERROR(IF(OR(Table_PREInspection[[#This Row],[Line]]=\"\",INDEX(Table_PREInfo[],Table_PREInspection[[#This Row],[Line]],L$3)=\"\"),\"\",INDEX(Table_PREInfo[],Table_PREInspection[[#This Row],[Line]],L$3)),\"\")","v":""},{"$f":"IFERROR(IF(OR(Table_PREInspection[[#This Row],[Line]]=\"\",INDEX(Table_PREInfo[],Table_PREInspection[[#This Row],[Line]],M$3)=\"\"),\"\",INDEX(Table_PREInfo[],Table_PREInspection[[#This Row],[Line]],M$3)),\"\")","v":""},{"$f":"IFERROR(IF(Table_PREInspection[[#This Row],[Interior/ Exterior]]<>\"\",\n  CONCATENATE(\n  Table_PREInspection[[#This Row],[Interior/ Exterior]],\": \" &\n  Table_PREInspection[[#This Row],[Fixture Technology '[E']]],\n  \" - \",Table_PREInspection[[#This Row],[Fixture Type '[E']]],\" [\",\n  IF(Table_PREInspection[[#This Row],['# Lamps/ Fixture '[E']]]>0,Table_PREInspection[[#This Row],['# Lamps/ Fixture '[E']]] & \"L - \" & Table_PREInspection[[#This Row],[Fixture/ Lamp Wattage '[E']]] & \"W\" & IF(Table_PREInspection[[#This Row],[Ballast/ Driver '[E']]]<>\"\",\" - \" & Table_PREInspection[[#This Row],[Ballast/ Driver '[E']]],\"\"),Table_PREInspection[[#This Row],[Fixture Wattage '[E']]] & \"W\"),\"]\",\n  IF(AND(Table_PREInspection[[#This Row],[Controls '[E']]]<>\"\",Table_PREInspection[[#This Row],[Controls '[E']]]<>\"No Controls\"),\" - \" & Table_PREInspection[[#This Row],[Controls '[E']]],\"\")\n  ),\n\"\"),\"\")","v":""}]
[null,{"$f":"IFERROR(IF(OR(Table_PREInspection[[#This Row],[Line]]=\"\",INDEX(Table_PREInfo[],Table_PREInspection[[#This Row],[Line]],B$3)=\"\"),\"\",INDEX(Table_PREInfo[],Table_PREInspection[[#This Row],[Line]],B$3)),\"\")","v":""},{"$f":"IFERROR(IF(OR(Table_PREInspection[[#This Row],[Line]]=\"\",INDEX(Table_PREInfo[],Table_PREInspection[[#This Row],[Line]],C$3)=\"\"),\"\",INDEX(Table_PREInfo[],Table_PREInspection[[#This Row],[Line]],C$3)),\"\")","v":""},{"$f":"IFERROR(IF(OR(Table_PREInspection[[#This Row],[Line]]=\"\",INDEX(Table_PREInfo[],Table_PREInspection[[#This Row],[Line]],D$3)=\"\"),\"\",INDEX(Table_PREInfo[],Table_PREInspection[[#This Row],[Line]],D$3)),\"\")","v":""},null,{"$f":"IFERROR(IF(OR(Table_PREInspection[[#This Row],[Line]]=\"\",INDEX(Table_PREInfo[],Table_PREInspection[[#This Row],[Line]],F$3)=\"\"),\"\",INDEX(Table_PREInfo[],Table_PREInspection[[#This Row],[Line]],F$3)),\"\")","v":""},{"$f":"IFERROR(IF(OR(Table_PREInspection[[#This Row],[Line]]=\"\",INDEX(Table_PREInfo[],Table_PREInspection[[#This Row],[Line]],G$3)=\"\"),\"\",INDEX(Table_PREInfo[],Table_PREInspection[[#This Row],[Line]],G$3)),\"\")","v":""},{"$f":"IFERROR(IF(OR(Table_PREInspection[[#This Row],[Line]]=\"\",INDEX(Table_PREInfo[],Table_PREInspection[[#This Row],[Line]],H$3)=\"\"),\"\",INDEX(Table_PREInfo[],Table_PREInspection[[#This Row],[Line]],H$3)),\"\")","v":""},{"$f":"IFERROR(IF(OR(Table_PREInspection[[#This Row],[Line]]=\"\",INDEX(Table_PREInfo[],Table_PREInspection[[#This Row],[Line]],I$3)=\"\"),\"\",INDEX(Table_PREInfo[],Table_PREInspection[[#This Row],[Line]],I$3)),\"\")","v":""},{"$f":"IFERROR(IF(OR(Table_PREInspection[[#This Row],[Line]]=\"\",INDEX(Table_PREInfo[],Table_PREInspection[[#This Row],[Line]],J$3)=\"\"),\"\",INDEX(Table_PREInfo[],Table_PREInspection[[#This Row],[Line]],J$3)),\"\")","v":""},{"$f":"IFERROR(\nIFERROR(OFFSET(Table_TypWattage[[#Headers],[Technology]],MATCH(Table_PREInspection[[#This Row],[Fixture Technology '[E']]] & IF(Table_PREInspection[[#This Row],[Ballast/ Driver '[E']]]<>\"\",\" - \" & Table_PREInspection[[#This Row],[Ballast/ Driver '[E']]],\"\"),Table_TypWattage[Technology],0)+MATCH(Table_PREInspection[[#This Row],[Fixture/ Lamp Wattage '[E']]],INDIRECT(SUBSTITUTE(SUBSTITUTE(Table_PREInspection[[#This Row],[Fixture Technology '[E']]],\" \",\"_\"),\"-\",\"_\")),0)-1,MATCH(Table_PREInspection[[#This Row],['# Lamps/ Fixture '[E']]],'Measure Tables'!$Q$2:$V$2,0)+1),IF(Table_PREInspection[[#This Row],[Schedule]]<>\"\",IF(AND(Table_PREInspection[[#This Row],['# Lamps/ Fixture '[E']]]<>\"\",Table_PREInspection[[#This Row],['# Lamps/ Fixture '[E']]]>0,Table_PREInspection[[#This Row],[Fixture/ Lamp Wattage '[E']]]>0),Table_PREInspection[[#This Row],['# Lamps/ Fixture '[E']]]*Table_PREInspection[[#This Row],[Fixture/ Lamp Wattage '[E']]],Table_PREInspection[[#This Row],[Fixture/ Lamp Wattage '[E']]]),\"\")),\n\"\")","v":""},{"$f":"IFERROR(IF(OR(Table_PREInspection[[#This Row],[Line]]=\"\",INDEX(Table_PREInfo[],Table_PREInspection[[#This Row],[Line]],L$3)=\"\"),\"\",INDEX(Table_PREInfo[],Table_PREInspection[[#This Row],[Line]],L$3)),\"\")","v":""},{"$f":"IFERROR(IF(OR(Table_PREInspection[[#This Row],[Line]]=\"\",INDEX(Table_PREInfo[],Table_PREInspection[[#This Row],[Line]],M$3)=\"\"),\"\",INDEX(Table_PREInfo[],Table_PREInspection[[#This Row],[Line]],M$3)),\"\")","v":""},{"$f":"IFERROR(IF(Table_PREInspection[[#This Row],[Interior/ Exterior]]<>\"\",\n  CONCATENATE(\n  Table_PREInspection[[#This Row],[Interior/ Exterior]],\": \" &\n  Table_PREInspection[[#This Row],[Fixture Technology '[E']]],\n  \" - \",Table_PREInspection[[#This Row],[Fixture Type '[E']]],\" [\",\n  IF(Table_PREInspection[[#This Row],['# Lamps/ Fixture '[E']]]>0,Table_PREInspection[[#This Row],['# Lamps/ Fixture '[E']]] & \"L - \" & Table_PREInspection[[#This Row],[Fixture/ Lamp Wattage '[E']]] & \"W\" & IF(Table_PREInspection[[#This Row],[Ballast/ Driver '[E']]]<>\"\",\" - \" & Table_PREInspection[[#This Row],[Ballast/ Driver '[E']]],\"\"),Table_PREInspection[[#This Row],[Fixture Wattage '[E']]] & \"W\"),\"]\",\n  IF(AND(Table_PREInspection[[#This Row],[Controls '[E']]]<>\"\",Table_PREInspection[[#This Row],[Controls '[E']]]<>\"No Controls\"),\" - \" & Table_PREInspection[[#This Row],[Controls '[E']]],\"\")\n  ),\n\"\"),\"\")","v":""}]
[null,{"$f":"IFERROR(IF(OR(Table_PREInspection[[#This Row],[Line]]=\"\",INDEX(Table_PREInfo[],Table_PREInspection[[#This Row],[Line]],B$3)=\"\"),\"\",INDEX(Table_PREInfo[],Table_PREInspection[[#This Row],[Line]],B$3)),\"\")","v":""},{"$f":"IFERROR(IF(OR(Table_PREInspection[[#This Row],[Line]]=\"\",INDEX(Table_PREInfo[],Table_PREInspection[[#This Row],[Line]],C$3)=\"\"),\"\",INDEX(Table_PREInfo[],Table_PREInspection[[#This Row],[Line]],C$3)),\"\")","v":""},{"$f":"IFERROR(IF(OR(Table_PREInspection[[#This Row],[Line]]=\"\",INDEX(Table_PREInfo[],Table_PREInspection[[#This Row],[Line]],D$3)=\"\"),\"\",INDEX(Table_PREInfo[],Table_PREInspection[[#This Row],[Line]],D$3)),\"\")","v":""},null,{"$f":"IFERROR(IF(OR(Table_PREInspection[[#This Row],[Line]]=\"\",INDEX(Table_PREInfo[],Table_PREInspection[[#This Row],[Line]],F$3)=\"\"),\"\",INDEX(Table_PREInfo[],Table_PREInspection[[#This Row],[Line]],F$3)),\"\")","v":""},{"$f":"IFERROR(IF(OR(Table_PREInspection[[#This Row],[Line]]=\"\",INDEX(Table_PREInfo[],Table_PREInspection[[#This Row],[Line]],G$3)=\"\"),\"\",INDEX(Table_PREInfo[],Table_PREInspection[[#This Row],[Line]],G$3)),\"\")","v":""},{"$f":"IFERROR(IF(OR(Table_PREInspection[[#This Row],[Line]]=\"\",INDEX(Table_PREInfo[],Table_PREInspection[[#This Row],[Line]],H$3)=\"\"),\"\",INDEX(Table_PREInfo[],Table_PREInspection[[#This Row],[Line]],H$3)),\"\")","v":""},{"$f":"IFERROR(IF(OR(Table_PREInspection[[#This Row],[Line]]=\"\",INDEX(Table_PREInfo[],Table_PREInspection[[#This Row],[Line]],I$3)=\"\"),\"\",INDEX(Table_PREInfo[],Table_PREInspection[[#This Row],[Line]],I$3)),\"\")","v":""},{"$f":"IFERROR(IF(OR(Table_PREInspection[[#This Row],[Line]]=\"\",INDEX(Table_PREInfo[],Table_PREInspection[[#This Row],[Line]],J$3)=\"\"),\"\",INDEX(Table_PREInfo[],Table_PREInspection[[#This Row],[Line]],J$3)),\"\")","v":""},{"$f":"IFERROR(\nIFERROR(OFFSET(Table_TypWattage[[#Headers],[Technology]],MATCH(Table_PREInspection[[#This Row],[Fixture Technology '[E']]] & IF(Table_PREInspection[[#This Row],[Ballast/ Driver '[E']]]<>\"\",\" - \" & Table_PREInspection[[#This Row],[Ballast/ Driver '[E']]],\"\"),Table_TypWattage[Technology],0)+MATCH(Table_PREInspection[[#This Row],[Fixture/ Lamp Wattage '[E']]],INDIRECT(SUBSTITUTE(SUBSTITUTE(Table_PREInspection[[#This Row],[Fixture Technology '[E']]],\" \",\"_\"),\"-\",\"_\")),0)-1,MATCH(Table_PREInspection[[#This Row],['# Lamps/ Fixture '[E']]],'Measure Tables'!$Q$2:$V$2,0)+1),IF(Table_PREInspection[[#This Row],[Schedule]]<>\"\",IF(AND(Table_PREInspection[[#This Row],['# Lamps/ Fixture '[E']]]<>\"\",Table_PREInspection[[#This Row],['# Lamps/ Fixture '[E']]]>0,Table_PREInspection[[#This Row],[Fixture/ Lamp Wattage '[E']]]>0),Table_PREInspection[[#This Row],['# Lamps/ Fixture '[E']]]*Table_PREInspection[[#This Row],[Fixture/ Lamp Wattage '[E']]],Table_PREInspection[[#This Row],[Fixture/ Lamp Wattage '[E']]]),\"\")),\n\"\")","v":""},{"$f":"IFERROR(IF(OR(Table_PREInspection[[#This Row],[Line]]=\"\",INDEX(Table_PREInfo[],Table_PREInspection[[#This Row],[Line]],L$3)=\"\"),\"\",INDEX(Table_PREInfo[],Table_PREInspection[[#This Row],[Line]],L$3)),\"\")","v":""},{"$f":"IFERROR(IF(OR(Table_PREInspection[[#This Row],[Line]]=\"\",INDEX(Table_PREInfo[],Table_PREInspection[[#This Row],[Line]],M$3)=\"\"),\"\",INDEX(Table_PREInfo[],Table_PREInspection[[#This Row],[Line]],M$3)),\"\")","v":""},{"$f":"IFERROR(IF(Table_PREInspection[[#This Row],[Interior/ Exterior]]<>\"\",\n  CONCATENATE(\n  Table_PREInspection[[#This Row],[Interior/ Exterior]],\": \" &\n  Table_PREInspection[[#This Row],[Fixture Technology '[E']]],\n  \" - \",Table_PREInspection[[#This Row],[Fixture Type '[E']]],\" [\",\n  IF(Table_PREInspection[[#This Row],['# Lamps/ Fixture '[E']]]>0,Table_PREInspection[[#This Row],['# Lamps/ Fixture '[E']]] & \"L - \" & Table_PREInspection[[#This Row],[Fixture/ Lamp Wattage '[E']]] & \"W\" & IF(Table_PREInspection[[#This Row],[Ballast/ Driver '[E']]]<>\"\",\" - \" & Table_PREInspection[[#This Row],[Ballast/ Driver '[E']]],\"\"),Table_PREInspection[[#This Row],[Fixture Wattage '[E']]] & \"W\"),\"]\",\n  IF(AND(Table_PREInspection[[#This Row],[Controls '[E']]]<>\"\",Table_PREInspection[[#This Row],[Controls '[E']]]<>\"No Controls\"),\" - \" & Table_PREInspection[[#This Row],[Controls '[E']]],\"\")\n  ),\n\"\"),\"\")","v":""}]
[null,{"$f":"IFERROR(IF(OR(Table_PREInspection[[#This Row],[Line]]=\"\",INDEX(Table_PREInfo[],Table_PREInspection[[#This Row],[Line]],B$3)=\"\"),\"\",INDEX(Table_PREInfo[],Table_PREInspection[[#This Row],[Line]],B$3)),\"\")","v":""},{"$f":"IFERROR(IF(OR(Table_PREInspection[[#This Row],[Line]]=\"\",INDEX(Table_PREInfo[],Table_PREInspection[[#This Row],[Line]],C$3)=\"\"),\"\",INDEX(Table_PREInfo[],Table_PREInspection[[#This Row],[Line]],C$3)),\"\")","v":""},{"$f":"IFERROR(IF(OR(Table_PREInspection[[#This Row],[Line]]=\"\",INDEX(Table_PREInfo[],Table_PREInspection[[#This Row],[Line]],D$3)=\"\"),\"\",INDEX(Table_PREInfo[],Table_PREInspection[[#This Row],[Line]],D$3)),\"\")","v":""},null,{"$f":"IFERROR(IF(OR(Table_PREInspection[[#This Row],[Line]]=\"\",INDEX(Table_PREInfo[],Table_PREInspection[[#This Row],[Line]],F$3)=\"\"),\"\",INDEX(Table_PREInfo[],Table_PREInspection[[#This Row],[Line]],F$3)),\"\")","v":""},{"$f":"IFERROR(IF(OR(Table_PREInspection[[#This Row],[Line]]=\"\",INDEX(Table_PREInfo[],Table_PREInspection[[#This Row],[Line]],G$3)=\"\"),\"\",INDEX(Table_PREInfo[],Table_PREInspection[[#This Row],[Line]],G$3)),\"\")","v":""},{"$f":"IFERROR(IF(OR(Table_PREInspection[[#This Row],[Line]]=\"\",INDEX(Table_PREInfo[],Table_PREInspection[[#This Row],[Line]],H$3)=\"\"),\"\",INDEX(Table_PREInfo[],Table_PREInspection[[#This Row],[Line]],H$3)),\"\")","v":""},{"$f":"IFERROR(IF(OR(Table_PREInspection[[#This Row],[Line]]=\"\",INDEX(Table_PREInfo[],Table_PREInspection[[#This Row],[Line]],I$3)=\"\"),\"\",INDEX(Table_PREInfo[],Table_PREInspection[[#This Row],[Line]],I$3)),\"\")","v":""},{"$f":"IFERROR(IF(OR(Table_PREInspection[[#This Row],[Line]]=\"\",INDEX(Table_PREInfo[],Table_PREInspection[[#This Row],[Line]],J$3)=\"\"),\"\",INDEX(Table_PREInfo[],Table_PREInspection[[#This Row],[Line]],J$3)),\"\")","v":""},{"$f":"IFERROR(\nIFERROR(OFFSET(Table_TypWattage[[#Headers],[Technology]],MATCH(Table_PREInspection[[#This Row],[Fixture Technology '[E']]] & IF(Table_PREInspection[[#This Row],[Ballast/ Driver '[E']]]<>\"\",\" - \" & Table_PREInspection[[#This Row],[Ballast/ Driver '[E']]],\"\"),Table_TypWattage[Technology],0)+MATCH(Table_PREInspection[[#This Row],[Fixture/ Lamp Wattage '[E']]],INDIRECT(SUBSTITUTE(SUBSTITUTE(Table_PREInspection[[#This Row],[Fixture Technology '[E']]],\" \",\"_\"),\"-\",\"_\")),0)-1,MATCH(Table_PREInspection[[#This Row],['# Lamps/ Fixture '[E']]],'Measure Tables'!$Q$2:$V$2,0)+1),IF(Table_PREInspection[[#This Row],[Schedule]]<>\"\",IF(AND(Table_PREInspection[[#This Row],['# Lamps/ Fixture '[E']]]<>\"\",Table_PREInspection[[#This Row],['# Lamps/ Fixture '[E']]]>0,Table_PREInspection[[#This Row],[Fixture/ Lamp Wattage '[E']]]>0),Table_PREInspection[[#This Row],['# Lamps/ Fixture '[E']]]*Table_PREInspection[[#This Row],[Fixture/ Lamp Wattage '[E']]],Table_PREInspection[[#This Row],[Fixture/ Lamp Wattage '[E']]]),\"\")),\n\"\")","v":""},{"$f":"IFERROR(IF(OR(Table_PREInspection[[#This Row],[Line]]=\"\",INDEX(Table_PREInfo[],Table_PREInspection[[#This Row],[Line]],L$3)=\"\"),\"\",INDEX(Table_PREInfo[],Table_PREInspection[[#This Row],[Line]],L$3)),\"\")","v":""},{"$f":"IFERROR(IF(OR(Table_PREInspection[[#This Row],[Line]]=\"\",INDEX(Table_PREInfo[],Table_PREInspection[[#This Row],[Line]],M$3)=\"\"),\"\",INDEX(Table_PREInfo[],Table_PREInspection[[#This Row],[Line]],M$3)),\"\")","v":""},{"$f":"IFERROR(IF(Table_PREInspection[[#This Row],[Interior/ Exterior]]<>\"\",\n  CONCATENATE(\n  Table_PREInspection[[#This Row],[Interior/ Exterior]],\": \" &\n  Table_PREInspection[[#This Row],[Fixture Technology '[E']]],\n  \" - \",Table_PREInspection[[#This Row],[Fixture Type '[E']]],\" [\",\n  IF(Table_PREInspection[[#This Row],['# Lamps/ Fixture '[E']]]>0,Table_PREInspection[[#This Row],['# Lamps/ Fixture '[E']]] & \"L - \" & Table_PREInspection[[#This Row],[Fixture/ Lamp Wattage '[E']]] & \"W\" & IF(Table_PREInspection[[#This Row],[Ballast/ Driver '[E']]]<>\"\",\" - \" & Table_PREInspection[[#This Row],[Ballast/ Driver '[E']]],\"\"),Table_PREInspection[[#This Row],[Fixture Wattage '[E']]] & \"W\"),\"]\",\n  IF(AND(Table_PREInspection[[#This Row],[Controls '[E']]]<>\"\",Table_PREInspection[[#This Row],[Controls '[E']]]<>\"No Controls\"),\" - \" & Table_PREInspection[[#This Row],[Controls '[E']]],\"\")\n  ),\n\"\"),\"\")","v":""}]
[null,{"$f":"IFERROR(IF(OR(Table_PREInspection[[#This Row],[Line]]=\"\",INDEX(Table_PREInfo[],Table_PREInspection[[#This Row],[Line]],B$3)=\"\"),\"\",INDEX(Table_PREInfo[],Table_PREInspection[[#This Row],[Line]],B$3)),\"\")","v":""},{"$f":"IFERROR(IF(OR(Table_PREInspection[[#This Row],[Line]]=\"\",INDEX(Table_PREInfo[],Table_PREInspection[[#This Row],[Line]],C$3)=\"\"),\"\",INDEX(Table_PREInfo[],Table_PREInspection[[#This Row],[Line]],C$3)),\"\")","v":""},{"$f":"IFERROR(IF(OR(Table_PREInspection[[#This Row],[Line]]=\"\",INDEX(Table_PREInfo[],Table_PREInspection[[#This Row],[Line]],D$3)=\"\"),\"\",INDEX(Table_PREInfo[],Table_PREInspection[[#This Row],[Line]],D$3)),\"\")","v":""},null,{"$f":"IFERROR(IF(OR(Table_PREInspection[[#This Row],[Line]]=\"\",INDEX(Table_PREInfo[],Table_PREInspection[[#This Row],[Line]],F$3)=\"\"),\"\",INDEX(Table_PREInfo[],Table_PREInspection[[#This Row],[Line]],F$3)),\"\")","v":""},{"$f":"IFERROR(IF(OR(Table_PREInspection[[#This Row],[Line]]=\"\",INDEX(Table_PREInfo[],Table_PREInspection[[#This Row],[Line]],G$3)=\"\"),\"\",INDEX(Table_PREInfo[],Table_PREInspection[[#This Row],[Line]],G$3)),\"\")","v":""},{"$f":"IFERROR(IF(OR(Table_PREInspection[[#This Row],[Line]]=\"\",INDEX(Table_PREInfo[],Table_PREInspection[[#This Row],[Line]],H$3)=\"\"),\"\",INDEX(Table_PREInfo[],Table_PREInspection[[#This Row],[Line]],H$3)),\"\")","v":""},{"$f":"IFERROR(IF(OR(Table_PREInspection[[#This Row],[Line]]=\"\",INDEX(Table_PREInfo[],Table_PREInspection[[#This Row],[Line]],I$3)=\"\"),\"\",INDEX(Table_PREInfo[],Table_PREInspection[[#This Row],[Line]],I$3)),\"\")","v":""},{"$f":"IFERROR(IF(OR(Table_PREInspection[[#This Row],[Line]]=\"\",INDEX(Table_PREInfo[],Table_PREInspection[[#This Row],[Line]],J$3)=\"\"),\"\",INDEX(Table_PREInfo[],Table_PREInspection[[#This Row],[Line]],J$3)),\"\")","v":""},{"$f":"IFERROR(\nIFERROR(OFFSET(Table_TypWattage[[#Headers],[Technology]],MATCH(Table_PREInspection[[#This Row],[Fixture Technology '[E']]] & IF(Table_PREInspection[[#This Row],[Ballast/ Driver '[E']]]<>\"\",\" - \" & Table_PREInspection[[#This Row],[Ballast/ Driver '[E']]],\"\"),Table_TypWattage[Technology],0)+MATCH(Table_PREInspection[[#This Row],[Fixture/ Lamp Wattage '[E']]],INDIRECT(SUBSTITUTE(SUBSTITUTE(Table_PREInspection[[#This Row],[Fixture Technology '[E']]],\" \",\"_\"),\"-\",\"_\")),0)-1,MATCH(Table_PREInspection[[#This Row],['# Lamps/ Fixture '[E']]],'Measure Tables'!$Q$2:$V$2,0)+1),IF(Table_PREInspection[[#This Row],[Schedule]]<>\"\",IF(AND(Table_PREInspection[[#This Row],['# Lamps/ Fixture '[E']]]<>\"\",Table_PREInspection[[#This Row],['# Lamps/ Fixture '[E']]]>0,Table_PREInspection[[#This Row],[Fixture/ Lamp Wattage '[E']]]>0),Table_PREInspection[[#This Row],['# Lamps/ Fixture '[E']]]*Table_PREInspection[[#This Row],[Fixture/ Lamp Wattage '[E']]],Table_PREInspection[[#This Row],[Fixture/ Lamp Wattage '[E']]]),\"\")),\n\"\")","v":""},{"$f":"IFERROR(IF(OR(Table_PREInspection[[#This Row],[Line]]=\"\",INDEX(Table_PREInfo[],Table_PREInspection[[#This Row],[Line]],L$3)=\"\"),\"\",INDEX(Table_PREInfo[],Table_PREInspection[[#This Row],[Line]],L$3)),\"\")","v":""},{"$f":"IFERROR(IF(OR(Table_PREInspection[[#This Row],[Line]]=\"\",INDEX(Table_PREInfo[],Table_PREInspection[[#This Row],[Line]],M$3)=\"\"),\"\",INDEX(Table_PREInfo[],Table_PREInspection[[#This Row],[Line]],M$3)),\"\")","v":""},{"$f":"IFERROR(IF(Table_PREInspection[[#This Row],[Interior/ Exterior]]<>\"\",\n  CONCATENATE(\n  Table_PREInspection[[#This Row],[Interior/ Exterior]],\": \" &\n  Table_PREInspection[[#This Row],[Fixture Technology '[E']]],\n  \" - \",Table_PREInspection[[#This Row],[Fixture Type '[E']]],\" [\",\n  IF(Table_PREInspection[[#This Row],['# Lamps/ Fixture '[E']]]>0,Table_PREInspection[[#This Row],['# Lamps/ Fixture '[E']]] & \"L - \" & Table_PREInspection[[#This Row],[Fixture/ Lamp Wattage '[E']]] & \"W\" & IF(Table_PREInspection[[#This Row],[Ballast/ Driver '[E']]]<>\"\",\" - \" & Table_PREInspection[[#This Row],[Ballast/ Driver '[E']]],\"\"),Table_PREInspection[[#This Row],[Fixture Wattage '[E']]] & \"W\"),\"]\",\n  IF(AND(Table_PREInspection[[#This Row],[Controls '[E']]]<>\"\",Table_PREInspection[[#This Row],[Controls '[E']]]<>\"No Controls\"),\" - \" & Table_PREInspection[[#This Row],[Controls '[E']]],\"\")\n  ),\n\"\"),\"\")","v":""}]
[null,{"$f":"IFERROR(IF(OR(Table_PREInspection[[#This Row],[Line]]=\"\",INDEX(Table_PREInfo[],Table_PREInspection[[#This Row],[Line]],B$3)=\"\"),\"\",INDEX(Table_PREInfo[],Table_PREInspection[[#This Row],[Line]],B$3)),\"\")","v":""},{"$f":"IFERROR(IF(OR(Table_PREInspection[[#This Row],[Line]]=\"\",INDEX(Table_PREInfo[],Table_PREInspection[[#This Row],[Line]],C$3)=\"\"),\"\",INDEX(Table_PREInfo[],Table_PREInspection[[#This Row],[Line]],C$3)),\"\")","v":""},{"$f":"IFERROR(IF(OR(Table_PREInspection[[#This Row],[Line]]=\"\",INDEX(Table_PREInfo[],Table_PREInspection[[#This Row],[Line]],D$3)=\"\"),\"\",INDEX(Table_PREInfo[],Table_PREInspection[[#This Row],[Line]],D$3)),\"\")","v":""},null,{"$f":"IFERROR(IF(OR(Table_PREInspection[[#This Row],[Line]]=\"\",INDEX(Table_PREInfo[],Table_PREInspection[[#This Row],[Line]],F$3)=\"\"),\"\",INDEX(Table_PREInfo[],Table_PREInspection[[#This Row],[Line]],F$3)),\"\")","v":""},{"$f":"IFERROR(IF(OR(Table_PREInspection[[#This Row],[Line]]=\"\",INDEX(Table_PREInfo[],Table_PREInspection[[#This Row],[Line]],G$3)=\"\"),\"\",INDEX(Table_PREInfo[],Table_PREInspection[[#This Row],[Line]],G$3)),\"\")","v":""},{"$f":"IFERROR(IF(OR(Table_PREInspection[[#This Row],[Line]]=\"\",INDEX(Table_PREInfo[],Table_PREInspection[[#This Row],[Line]],H$3)=\"\"),\"\",INDEX(Table_PREInfo[],Table_PREInspection[[#This Row],[Line]],H$3)),\"\")","v":""},{"$f":"IFERROR(IF(OR(Table_PREInspection[[#This Row],[Line]]=\"\",INDEX(Table_PREInfo[],Table_PREInspection[[#This Row],[Line]],I$3)=\"\"),\"\",INDEX(Table_PREInfo[],Table_PREInspection[[#This Row],[Line]],I$3)),\"\")","v":""},{"$f":"IFERROR(IF(OR(Table_PREInspection[[#This Row],[Line]]=\"\",INDEX(Table_PREInfo[],Table_PREInspection[[#This Row],[Line]],J$3)=\"\"),\"\",INDEX(Table_PREInfo[],Table_PREInspection[[#This Row],[Line]],J$3)),\"\")","v":""},{"$f":"IFERROR(\nIFERROR(OFFSET(Table_TypWattage[[#Headers],[Technology]],MATCH(Table_PREInspection[[#This Row],[Fixture Technology '[E']]] & IF(Table_PREInspection[[#This Row],[Ballast/ Driver '[E']]]<>\"\",\" - \" & Table_PREInspection[[#This Row],[Ballast/ Driver '[E']]],\"\"),Table_TypWattage[Technology],0)+MATCH(Table_PREInspection[[#This Row],[Fixture/ Lamp Wattage '[E']]],INDIRECT(SUBSTITUTE(SUBSTITUTE(Table_PREInspection[[#This Row],[Fixture Technology '[E']]],\" \",\"_\"),\"-\",\"_\")),0)-1,MATCH(Table_PREInspection[[#This Row],['# Lamps/ Fixture '[E']]],'Measure Tables'!$Q$2:$V$2,0)+1),IF(Table_PREInspection[[#This Row],[Schedule]]<>\"\",IF(AND(Table_PREInspection[[#This Row],['# Lamps/ Fixture '[E']]]<>\"\",Table_PREInspection[[#This Row],['# Lamps/ Fixture '[E']]]>0,Table_PREInspection[[#This Row],[Fixture/ Lamp Wattage '[E']]]>0),Table_PREInspection[[#This Row],['# Lamps/ Fixture '[E']]]*Table_PREInspection[[#This Row],[Fixture/ Lamp Wattage '[E']]],Table_PREInspection[[#This Row],[Fixture/ Lamp Wattage '[E']]]),\"\")),\n\"\")","v":""},{"$f":"IFERROR(IF(OR(Table_PREInspection[[#This Row],[Line]]=\"\",INDEX(Table_PREInfo[],Table_PREInspection[[#This Row],[Line]],L$3)=\"\"),\"\",INDEX(Table_PREInfo[],Table_PREInspection[[#This Row],[Line]],L$3)),\"\")","v":""},{"$f":"IFERROR(IF(OR(Table_PREInspection[[#This Row],[Line]]=\"\",INDEX(Table_PREInfo[],Table_PREInspection[[#This Row],[Line]],M$3)=\"\"),\"\",INDEX(Table_PREInfo[],Table_PREInspection[[#This Row],[Line]],M$3)),\"\")","v":""},{"$f":"IFERROR(IF(Table_PREInspection[[#This Row],[Interior/ Exterior]]<>\"\",\n  CONCATENATE(\n  Table_PREInspection[[#This Row],[Interior/ Exterior]],\": \" &\n  Table_PREInspection[[#This Row],[Fixture Technology '[E']]],\n  \" - \",Table_PREInspection[[#This Row],[Fixture Type '[E']]],\" [\",\n  IF(Table_PREInspection[[#This Row],['# Lamps/ Fixture '[E']]]>0,Table_PREInspection[[#This Row],['# Lamps/ Fixture '[E']]] & \"L - \" & Table_PREInspection[[#This Row],[Fixture/ Lamp Wattage '[E']]] & \"W\" & IF(Table_PREInspection[[#This Row],[Ballast/ Driver '[E']]]<>\"\",\" - \" & Table_PREInspection[[#This Row],[Ballast/ Driver '[E']]],\"\"),Table_PREInspection[[#This Row],[Fixture Wattage '[E']]] & \"W\"),\"]\",\n  IF(AND(Table_PREInspection[[#This Row],[Controls '[E']]]<>\"\",Table_PREInspection[[#This Row],[Controls '[E']]]<>\"No Controls\"),\" - \" & Table_PREInspection[[#This Row],[Controls '[E']]],\"\")\n  ),\n\"\"),\"\")","v":""}]
[null,{"$f":"IFERROR(IF(OR(Table_PREInspection[[#This Row],[Line]]=\"\",INDEX(Table_PREInfo[],Table_PREInspection[[#This Row],[Line]],B$3)=\"\"),\"\",INDEX(Table_PREInfo[],Table_PREInspection[[#This Row],[Line]],B$3)),\"\")","v":""},{"$f":"IFERROR(IF(OR(Table_PREInspection[[#This Row],[Line]]=\"\",INDEX(Table_PREInfo[],Table_PREInspection[[#This Row],[Line]],C$3)=\"\"),\"\",INDEX(Table_PREInfo[],Table_PREInspection[[#This Row],[Line]],C$3)),\"\")","v":""},{"$f":"IFERROR(IF(OR(Table_PREInspection[[#This Row],[Line]]=\"\",INDEX(Table_PREInfo[],Table_PREInspection[[#This Row],[Line]],D$3)=\"\"),\"\",INDEX(Table_PREInfo[],Table_PREInspection[[#This Row],[Line]],D$3)),\"\")","v":""},null,{"$f":"IFERROR(IF(OR(Table_PREInspection[[#This Row],[Line]]=\"\",INDEX(Table_PREInfo[],Table_PREInspection[[#This Row],[Line]],F$3)=\"\"),\"\",INDEX(Table_PREInfo[],Table_PREInspection[[#This Row],[Line]],F$3)),\"\")","v":""},{"$f":"IFERROR(IF(OR(Table_PREInspection[[#This Row],[Line]]=\"\",INDEX(Table_PREInfo[],Table_PREInspection[[#This Row],[Line]],G$3)=\"\"),\"\",INDEX(Table_PREInfo[],Table_PREInspection[[#This Row],[Line]],G$3)),\"\")","v":""},{"$f":"IFERROR(IF(OR(Table_PREInspection[[#This Row],[Line]]=\"\",INDEX(Table_PREInfo[],Table_PREInspection[[#This Row],[Line]],H$3)=\"\"),\"\",INDEX(Table_PREInfo[],Table_PREInspection[[#This Row],[Line]],H$3)),\"\")","v":""},{"$f":"IFERROR(IF(OR(Table_PREInspection[[#This Row],[Line]]=\"\",INDEX(Table_PREInfo[],Table_PREInspection[[#This Row],[Line]],I$3)=\"\"),\"\",INDEX(Table_PREInfo[],Table_PREInspection[[#This Row],[Line]],I$3)),\"\")","v":""},{"$f":"IFERROR(IF(OR(Table_PREInspection[[#This Row],[Line]]=\"\",INDEX(Table_PREInfo[],Table_PREInspection[[#This Row],[Line]],J$3)=\"\"),\"\",INDEX(Table_PREInfo[],Table_PREInspection[[#This Row],[Line]],J$3)),\"\")","v":""},{"$f":"IFERROR(\nIFERROR(OFFSET(Table_TypWattage[[#Headers],[Technology]],MATCH(Table_PREInspection[[#This Row],[Fixture Technology '[E']]] & IF(Table_PREInspection[[#This Row],[Ballast/ Driver '[E']]]<>\"\",\" - \" & Table_PREInspection[[#This Row],[Ballast/ Driver '[E']]],\"\"),Table_TypWattage[Technology],0)+MATCH(Table_PREInspection[[#This Row],[Fixture/ Lamp Wattage '[E']]],INDIRECT(SUBSTITUTE(SUBSTITUTE(Table_PREInspection[[#This Row],[Fixture Technology '[E']]],\" \",\"_\"),\"-\",\"_\")),0)-1,MATCH(Table_PREInspection[[#This Row],['# Lamps/ Fixture '[E']]],'Measure Tables'!$Q$2:$V$2,0)+1),IF(Table_PREInspection[[#This Row],[Schedule]]<>\"\",IF(AND(Table_PREInspection[[#This Row],['# Lamps/ Fixture '[E']]]<>\"\",Table_PREInspection[[#This Row],['# Lamps/ Fixture '[E']]]>0,Table_PREInspection[[#This Row],[Fixture/ Lamp Wattage '[E']]]>0),Table_PREInspection[[#This Row],['# Lamps/ Fixture '[E']]]*Table_PREInspection[[#This Row],[Fixture/ Lamp Wattage '[E']]],Table_PREInspection[[#This Row],[Fixture/ Lamp Wattage '[E']]]),\"\")),\n\"\")","v":""},{"$f":"IFERROR(IF(OR(Table_PREInspection[[#This Row],[Line]]=\"\",INDEX(Table_PREInfo[],Table_PREInspection[[#This Row],[Line]],L$3)=\"\"),\"\",INDEX(Table_PREInfo[],Table_PREInspection[[#This Row],[Line]],L$3)),\"\")","v":""},{"$f":"IFERROR(IF(OR(Table_PREInspection[[#This Row],[Line]]=\"\",INDEX(Table_PREInfo[],Table_PREInspection[[#This Row],[Line]],M$3)=\"\"),\"\",INDEX(Table_PREInfo[],Table_PREInspection[[#This Row],[Line]],M$3)),\"\")","v":""},{"$f":"IFERROR(IF(Table_PREInspection[[#This Row],[Interior/ Exterior]]<>\"\",\n  CONCATENATE(\n  Table_PREInspection[[#This Row],[Interior/ Exterior]],\": \" &\n  Table_PREInspection[[#This Row],[Fixture Technology '[E']]],\n  \" - \",Table_PREInspection[[#This Row],[Fixture Type '[E']]],\" [\",\n  IF(Table_PREInspection[[#This Row],['# Lamps/ Fixture '[E']]]>0,Table_PREInspection[[#This Row],['# Lamps/ Fixture '[E']]] & \"L - \" & Table_PREInspection[[#This Row],[Fixture/ Lamp Wattage '[E']]] & \"W\" & IF(Table_PREInspection[[#This Row],[Ballast/ Driver '[E']]]<>\"\",\" - \" & Table_PREInspection[[#This Row],[Ballast/ Driver '[E']]],\"\"),Table_PREInspection[[#This Row],[Fixture Wattage '[E']]] & \"W\"),\"]\",\n  IF(AND(Table_PREInspection[[#This Row],[Controls '[E']]]<>\"\",Table_PREInspection[[#This Row],[Controls '[E']]]<>\"No Controls\"),\" - \" & Table_PREInspection[[#This Row],[Controls '[E']]],\"\")\n  ),\n\"\"),\"\")","v":""}]
[null,{"$f":"IFERROR(IF(OR(Table_PREInspection[[#This Row],[Line]]=\"\",INDEX(Table_PREInfo[],Table_PREInspection[[#This Row],[Line]],B$3)=\"\"),\"\",INDEX(Table_PREInfo[],Table_PREInspection[[#This Row],[Line]],B$3)),\"\")","v":""},{"$f":"IFERROR(IF(OR(Table_PREInspection[[#This Row],[Line]]=\"\",INDEX(Table_PREInfo[],Table_PREInspection[[#This Row],[Line]],C$3)=\"\"),\"\",INDEX(Table_PREInfo[],Table_PREInspection[[#This Row],[Line]],C$3)),\"\")","v":""},{"$f":"IFERROR(IF(OR(Table_PREInspection[[#This Row],[Line]]=\"\",INDEX(Table_PREInfo[],Table_PREInspection[[#This Row],[Line]],D$3)=\"\"),\"\",INDEX(Table_PREInfo[],Table_PREInspection[[#This Row],[Line]],D$3)),\"\")","v":""},null,{"$f":"IFERROR(IF(OR(Table_PREInspection[[#This Row],[Line]]=\"\",INDEX(Table_PREInfo[],Table_PREInspection[[#This Row],[Line]],F$3)=\"\"),\"\",INDEX(Table_PREInfo[],Table_PREInspection[[#This Row],[Line]],F$3)),\"\")","v":""},{"$f":"IFERROR(IF(OR(Table_PREInspection[[#This Row],[Line]]=\"\",INDEX(Table_PREInfo[],Table_PREInspection[[#This Row],[Line]],G$3)=\"\"),\"\",INDEX(Table_PREInfo[],Table_PREInspection[[#This Row],[Line]],G$3)),\"\")","v":""},{"$f":"IFERROR(IF(OR(Table_PREInspection[[#This Row],[Line]]=\"\",INDEX(Table_PREInfo[],Table_PREInspection[[#This Row],[Line]],H$3)=\"\"),\"\",INDEX(Table_PREInfo[],Table_PREInspection[[#This Row],[Line]],H$3)),\"\")","v":""},{"$f":"IFERROR(IF(OR(Table_PREInspection[[#This Row],[Line]]=\"\",INDEX(Table_PREInfo[],Table_PREInspection[[#This Row],[Line]],I$3)=\"\"),\"\",INDEX(Table_PREInfo[],Table_PREInspection[[#This Row],[Line]],I$3)),\"\")","v":""},{"$f":"IFERROR(IF(OR(Table_PREInspection[[#This Row],[Line]]=\"\",INDEX(Table_PREInfo[],Table_PREInspection[[#This Row],[Line]],J$3)=\"\"),\"\",INDEX(Table_PREInfo[],Table_PREInspection[[#This Row],[Line]],J$3)),\"\")","v":""},{"$f":"IFERROR(\nIFERROR(OFFSET(Table_TypWattage[[#Headers],[Technology]],MATCH(Table_PREInspection[[#This Row],[Fixture Technology '[E']]] & IF(Table_PREInspection[[#This Row],[Ballast/ Driver '[E']]]<>\"\",\" - \" & Table_PREInspection[[#This Row],[Ballast/ Driver '[E']]],\"\"),Table_TypWattage[Technology],0)+MATCH(Table_PREInspection[[#This Row],[Fixture/ Lamp Wattage '[E']]],INDIRECT(SUBSTITUTE(SUBSTITUTE(Table_PREInspection[[#This Row],[Fixture Technology '[E']]],\" \",\"_\"),\"-\",\"_\")),0)-1,MATCH(Table_PREInspection[[#This Row],['# Lamps/ Fixture '[E']]],'Measure Tables'!$Q$2:$V$2,0)+1),IF(Table_PREInspection[[#This Row],[Schedule]]<>\"\",IF(AND(Table_PREInspection[[#This Row],['# Lamps/ Fixture '[E']]]<>\"\",Table_PREInspection[[#This Row],['# Lamps/ Fixture '[E']]]>0,Table_PREInspection[[#This Row],[Fixture/ Lamp Wattage '[E']]]>0),Table_PREInspection[[#This Row],['# Lamps/ Fixture '[E']]]*Table_PREInspection[[#This Row],[Fixture/ Lamp Wattage '[E']]],Table_PREInspection[[#This Row],[Fixture/ Lamp Wattage '[E']]]),\"\")),\n\"\")","v":""},{"$f":"IFERROR(IF(OR(Table_PREInspection[[#This Row],[Line]]=\"\",INDEX(Table_PREInfo[],Table_PREInspection[[#This Row],[Line]],L$3)=\"\"),\"\",INDEX(Table_PREInfo[],Table_PREInspection[[#This Row],[Line]],L$3)),\"\")","v":""},{"$f":"IFERROR(IF(OR(Table_PREInspection[[#This Row],[Line]]=\"\",INDEX(Table_PREInfo[],Table_PREInspection[[#This Row],[Line]],M$3)=\"\"),\"\",INDEX(Table_PREInfo[],Table_PREInspection[[#This Row],[Line]],M$3)),\"\")","v":""},{"$f":"IFERROR(IF(Table_PREInspection[[#This Row],[Interior/ Exterior]]<>\"\",\n  CONCATENATE(\n  Table_PREInspection[[#This Row],[Interior/ Exterior]],\": \" &\n  Table_PREInspection[[#This Row],[Fixture Technology '[E']]],\n  \" - \",Table_PREInspection[[#This Row],[Fixture Type '[E']]],\" [\",\n  IF(Table_PREInspection[[#This Row],['# Lamps/ Fixture '[E']]]>0,Table_PREInspection[[#This Row],['# Lamps/ Fixture '[E']]] & \"L - \" & Table_PREInspection[[#This Row],[Fixture/ Lamp Wattage '[E']]] & \"W\" & IF(Table_PREInspection[[#This Row],[Ballast/ Driver '[E']]]<>\"\",\" - \" & Table_PREInspection[[#This Row],[Ballast/ Driver '[E']]],\"\"),Table_PREInspection[[#This Row],[Fixture Wattage '[E']]] & \"W\"),\"]\",\n  IF(AND(Table_PREInspection[[#This Row],[Controls '[E']]]<>\"\",Table_PREInspection[[#This Row],[Controls '[E']]]<>\"No Controls\"),\" - \" & Table_PREInspection[[#This Row],[Controls '[E']]],\"\")\n  ),\n\"\"),\"\")","v":""}]
[null,{"$f":"IFERROR(IF(OR(Table_PREInspection[[#This Row],[Line]]=\"\",INDEX(Table_PREInfo[],Table_PREInspection[[#This Row],[Line]],B$3)=\"\"),\"\",INDEX(Table_PREInfo[],Table_PREInspection[[#This Row],[Line]],B$3)),\"\")","v":""},{"$f":"IFERROR(IF(OR(Table_PREInspection[[#This Row],[Line]]=\"\",INDEX(Table_PREInfo[],Table_PREInspection[[#This Row],[Line]],C$3)=\"\"),\"\",INDEX(Table_PREInfo[],Table_PREInspection[[#This Row],[Line]],C$3)),\"\")","v":""},{"$f":"IFERROR(IF(OR(Table_PREInspection[[#This Row],[Line]]=\"\",INDEX(Table_PREInfo[],Table_PREInspection[[#This Row],[Line]],D$3)=\"\"),\"\",INDEX(Table_PREInfo[],Table_PREInspection[[#This Row],[Line]],D$3)),\"\")","v":""},null,{"$f":"IFERROR(IF(OR(Table_PREInspection[[#This Row],[Line]]=\"\",INDEX(Table_PREInfo[],Table_PREInspection[[#This Row],[Line]],F$3)=\"\"),\"\",INDEX(Table_PREInfo[],Table_PREInspection[[#This Row],[Line]],F$3)),\"\")","v":""},{"$f":"IFERROR(IF(OR(Table_PREInspection[[#This Row],[Line]]=\"\",INDEX(Table_PREInfo[],Table_PREInspection[[#This Row],[Line]],G$3)=\"\"),\"\",INDEX(Table_PREInfo[],Table_PREInspection[[#This Row],[Line]],G$3)),\"\")","v":""},{"$f":"IFERROR(IF(OR(Table_PREInspection[[#This Row],[Line]]=\"\",INDEX(Table_PREInfo[],Table_PREInspection[[#This Row],[Line]],H$3)=\"\"),\"\",INDEX(Table_PREInfo[],Table_PREInspection[[#This Row],[Line]],H$3)),\"\")","v":""},{"$f":"IFERROR(IF(OR(Table_PREInspection[[#This Row],[Line]]=\"\",INDEX(Table_PREInfo[],Table_PREInspection[[#This Row],[Line]],I$3)=\"\"),\"\",INDEX(Table_PREInfo[],Table_PREInspection[[#This Row],[Line]],I$3)),\"\")","v":""},{"$f":"IFERROR(IF(OR(Table_PREInspection[[#This Row],[Line]]=\"\",INDEX(Table_PREInfo[],Table_PREInspection[[#This Row],[Line]],J$3)=\"\"),\"\",INDEX(Table_PREInfo[],Table_PREInspection[[#This Row],[Line]],J$3)),\"\")","v":""},{"$f":"IFERROR(\nIFERROR(OFFSET(Table_TypWattage[[#Headers],[Technology]],MATCH(Table_PREInspection[[#This Row],[Fixture Technology '[E']]] & IF(Table_PREInspection[[#This Row],[Ballast/ Driver '[E']]]<>\"\",\" - \" & Table_PREInspection[[#This Row],[Ballast/ Driver '[E']]],\"\"),Table_TypWattage[Technology],0)+MATCH(Table_PREInspection[[#This Row],[Fixture/ Lamp Wattage '[E']]],INDIRECT(SUBSTITUTE(SUBSTITUTE(Table_PREInspection[[#This Row],[Fixture Technology '[E']]],\" \",\"_\"),\"-\",\"_\")),0)-1,MATCH(Table_PREInspection[[#This Row],['# Lamps/ Fixture '[E']]],'Measure Tables'!$Q$2:$V$2,0)+1),IF(Table_PREInspection[[#This Row],[Schedule]]<>\"\",IF(AND(Table_PREInspection[[#This Row],['# Lamps/ Fixture '[E']]]<>\"\",Table_PREInspection[[#This Row],['# Lamps/ Fixture '[E']]]>0,Table_PREInspection[[#This Row],[Fixture/ Lamp Wattage '[E']]]>0),Table_PREInspection[[#This Row],['# Lamps/ Fixture '[E']]]*Table_PREInspection[[#This Row],[Fixture/ Lamp Wattage '[E']]],Table_PREInspection[[#This Row],[Fixture/ Lamp Wattage '[E']]]),\"\")),\n\"\")","v":""},{"$f":"IFERROR(IF(OR(Table_PREInspection[[#This Row],[Line]]=\"\",INDEX(Table_PREInfo[],Table_PREInspection[[#This Row],[Line]],L$3)=\"\"),\"\",INDEX(Table_PREInfo[],Table_PREInspection[[#This Row],[Line]],L$3)),\"\")","v":""},{"$f":"IFERROR(IF(OR(Table_PREInspection[[#This Row],[Line]]=\"\",INDEX(Table_PREInfo[],Table_PREInspection[[#This Row],[Line]],M$3)=\"\"),\"\",INDEX(Table_PREInfo[],Table_PREInspection[[#This Row],[Line]],M$3)),\"\")","v":""},{"$f":"IFERROR(IF(Table_PREInspection[[#This Row],[Interior/ Exterior]]<>\"\",\n  CONCATENATE(\n  Table_PREInspection[[#This Row],[Interior/ Exterior]],\": \" &\n  Table_PREInspection[[#This Row],[Fixture Technology '[E']]],\n  \" - \",Table_PREInspection[[#This Row],[Fixture Type '[E']]],\" [\",\n  IF(Table_PREInspection[[#This Row],['# Lamps/ Fixture '[E']]]>0,Table_PREInspection[[#This Row],['# Lamps/ Fixture '[E']]] & \"L - \" & Table_PREInspection[[#This Row],[Fixture/ Lamp Wattage '[E']]] & \"W\" & IF(Table_PREInspection[[#This Row],[Ballast/ Driver '[E']]]<>\"\",\" - \" & Table_PREInspection[[#This Row],[Ballast/ Driver '[E']]],\"\"),Table_PREInspection[[#This Row],[Fixture Wattage '[E']]] & \"W\"),\"]\",\n  IF(AND(Table_PREInspection[[#This Row],[Controls '[E']]]<>\"\",Table_PREInspection[[#This Row],[Controls '[E']]]<>\"No Controls\"),\" - \" & Table_PREInspection[[#This Row],[Controls '[E']]],\"\")\n  ),\n\"\"),\"\")","v":""}]
[null,{"$f":"IFERROR(IF(OR(Table_PREInspection[[#This Row],[Line]]=\"\",INDEX(Table_PREInfo[],Table_PREInspection[[#This Row],[Line]],B$3)=\"\"),\"\",INDEX(Table_PREInfo[],Table_PREInspection[[#This Row],[Line]],B$3)),\"\")","v":""},{"$f":"IFERROR(IF(OR(Table_PREInspection[[#This Row],[Line]]=\"\",INDEX(Table_PREInfo[],Table_PREInspection[[#This Row],[Line]],C$3)=\"\"),\"\",INDEX(Table_PREInfo[],Table_PREInspection[[#This Row],[Line]],C$3)),\"\")","v":""},{"$f":"IFERROR(IF(OR(Table_PREInspection[[#This Row],[Line]]=\"\",INDEX(Table_PREInfo[],Table_PREInspection[[#This Row],[Line]],D$3)=\"\"),\"\",INDEX(Table_PREInfo[],Table_PREInspection[[#This Row],[Line]],D$3)),\"\")","v":""},null,{"$f":"IFERROR(IF(OR(Table_PREInspection[[#This Row],[Line]]=\"\",INDEX(Table_PREInfo[],Table_PREInspection[[#This Row],[Line]],F$3)=\"\"),\"\",INDEX(Table_PREInfo[],Table_PREInspection[[#This Row],[Line]],F$3)),\"\")","v":""},{"$f":"IFERROR(IF(OR(Table_PREInspection[[#This Row],[Line]]=\"\",INDEX(Table_PREInfo[],Table_PREInspection[[#This Row],[Line]],G$3)=\"\"),\"\",INDEX(Table_PREInfo[],Table_PREInspection[[#This Row],[Line]],G$3)),\"\")","v":""},{"$f":"IFERROR(IF(OR(Table_PREInspection[[#This Row],[Line]]=\"\",INDEX(Table_PREInfo[],Table_PREInspection[[#This Row],[Line]],H$3)=\"\"),\"\",INDEX(Table_PREInfo[],Table_PREInspection[[#This Row],[Line]],H$3)),\"\")","v":""},{"$f":"IFERROR(IF(OR(Table_PREInspection[[#This Row],[Line]]=\"\",INDEX(Table_PREInfo[],Table_PREInspection[[#This Row],[Line]],I$3)=\"\"),\"\",INDEX(Table_PREInfo[],Table_PREInspection[[#This Row],[Line]],I$3)),\"\")","v":""},{"$f":"IFERROR(IF(OR(Table_PREInspection[[#This Row],[Line]]=\"\",INDEX(Table_PREInfo[],Table_PREInspection[[#This Row],[Line]],J$3)=\"\"),\"\",INDEX(Table_PREInfo[],Table_PREInspection[[#This Row],[Line]],J$3)),\"\")","v":""},{"$f":"IFERROR(\nIFERROR(OFFSET(Table_TypWattage[[#Headers],[Technology]],MATCH(Table_PREInspection[[#This Row],[Fixture Technology '[E']]] & IF(Table_PREInspection[[#This Row],[Ballast/ Driver '[E']]]<>\"\",\" - \" & Table_PREInspection[[#This Row],[Ballast/ Driver '[E']]],\"\"),Table_TypWattage[Technology],0)+MATCH(Table_PREInspection[[#This Row],[Fixture/ Lamp Wattage '[E']]],INDIRECT(SUBSTITUTE(SUBSTITUTE(Table_PREInspection[[#This Row],[Fixture Technology '[E']]],\" \",\"_\"),\"-\",\"_\")),0)-1,MATCH(Table_PREInspection[[#This Row],['# Lamps/ Fixture '[E']]],'Measure Tables'!$Q$2:$V$2,0)+1),IF(Table_PREInspection[[#This Row],[Schedule]]<>\"\",IF(AND(Table_PREInspection[[#This Row],['# Lamps/ Fixture '[E']]]<>\"\",Table_PREInspection[[#This Row],['# Lamps/ Fixture '[E']]]>0,Table_PREInspection[[#This Row],[Fixture/ Lamp Wattage '[E']]]>0),Table_PREInspection[[#This Row],['# Lamps/ Fixture '[E']]]*Table_PREInspection[[#This Row],[Fixture/ Lamp Wattage '[E']]],Table_PREInspection[[#This Row],[Fixture/ Lamp Wattage '[E']]]),\"\")),\n\"\")","v":""},{"$f":"IFERROR(IF(OR(Table_PREInspection[[#This Row],[Line]]=\"\",INDEX(Table_PREInfo[],Table_PREInspection[[#This Row],[Line]],L$3)=\"\"),\"\",INDEX(Table_PREInfo[],Table_PREInspection[[#This Row],[Line]],L$3)),\"\")","v":""},{"$f":"IFERROR(IF(OR(Table_PREInspection[[#This Row],[Line]]=\"\",INDEX(Table_PREInfo[],Table_PREInspection[[#This Row],[Line]],M$3)=\"\"),\"\",INDEX(Table_PREInfo[],Table_PREInspection[[#This Row],[Line]],M$3)),\"\")","v":""},{"$f":"IFERROR(IF(Table_PREInspection[[#This Row],[Interior/ Exterior]]<>\"\",\n  CONCATENATE(\n  Table_PREInspection[[#This Row],[Interior/ Exterior]],\": \" &\n  Table_PREInspection[[#This Row],[Fixture Technology '[E']]],\n  \" - \",Table_PREInspection[[#This Row],[Fixture Type '[E']]],\" [\",\n  IF(Table_PREInspection[[#This Row],['# Lamps/ Fixture '[E']]]>0,Table_PREInspection[[#This Row],['# Lamps/ Fixture '[E']]] & \"L - \" & Table_PREInspection[[#This Row],[Fixture/ Lamp Wattage '[E']]] & \"W\" & IF(Table_PREInspection[[#This Row],[Ballast/ Driver '[E']]]<>\"\",\" - \" & Table_PREInspection[[#This Row],[Ballast/ Driver '[E']]],\"\"),Table_PREInspection[[#This Row],[Fixture Wattage '[E']]] & \"W\"),\"]\",\n  IF(AND(Table_PREInspection[[#This Row],[Controls '[E']]]<>\"\",Table_PREInspection[[#This Row],[Controls '[E']]]<>\"No Controls\"),\" - \" & Table_PREInspection[[#This Row],[Controls '[E']]],\"\")\n  ),\n\"\"),\"\")","v":""}]
[null,{"$f":"IFERROR(IF(OR(Table_PREInspection[[#This Row],[Line]]=\"\",INDEX(Table_PREInfo[],Table_PREInspection[[#This Row],[Line]],B$3)=\"\"),\"\",INDEX(Table_PREInfo[],Table_PREInspection[[#This Row],[Line]],B$3)),\"\")","v":""},{"$f":"IFERROR(IF(OR(Table_PREInspection[[#This Row],[Line]]=\"\",INDEX(Table_PREInfo[],Table_PREInspection[[#This Row],[Line]],C$3)=\"\"),\"\",INDEX(Table_PREInfo[],Table_PREInspection[[#This Row],[Line]],C$3)),\"\")","v":""},{"$f":"IFERROR(IF(OR(Table_PREInspection[[#This Row],[Line]]=\"\",INDEX(Table_PREInfo[],Table_PREInspection[[#This Row],[Line]],D$3)=\"\"),\"\",INDEX(Table_PREInfo[],Table_PREInspection[[#This Row],[Line]],D$3)),\"\")","v":""},null,{"$f":"IFERROR(IF(OR(Table_PREInspection[[#This Row],[Line]]=\"\",INDEX(Table_PREInfo[],Table_PREInspection[[#This Row],[Line]],F$3)=\"\"),\"\",INDEX(Table_PREInfo[],Table_PREInspection[[#This Row],[Line]],F$3)),\"\")","v":""},{"$f":"IFERROR(IF(OR(Table_PREInspection[[#This Row],[Line]]=\"\",INDEX(Table_PREInfo[],Table_PREInspection[[#This Row],[Line]],G$3)=\"\"),\"\",INDEX(Table_PREInfo[],Table_PREInspection[[#This Row],[Line]],G$3)),\"\")","v":""},{"$f":"IFERROR(IF(OR(Table_PREInspection[[#This Row],[Line]]=\"\",INDEX(Table_PREInfo[],Table_PREInspection[[#This Row],[Line]],H$3)=\"\"),\"\",INDEX(Table_PREInfo[],Table_PREInspection[[#This Row],[Line]],H$3)),\"\")","v":""},{"$f":"IFERROR(IF(OR(Table_PREInspection[[#This Row],[Line]]=\"\",INDEX(Table_PREInfo[],Table_PREInspection[[#This Row],[Line]],I$3)=\"\"),\"\",INDEX(Table_PREInfo[],Table_PREInspection[[#This Row],[Line]],I$3)),\"\")","v":""},{"$f":"IFERROR(IF(OR(Table_PREInspection[[#This Row],[Line]]=\"\",INDEX(Table_PREInfo[],Table_PREInspection[[#This Row],[Line]],J$3)=\"\"),\"\",INDEX(Table_PREInfo[],Table_PREInspection[[#This Row],[Line]],J$3)),\"\")","v":""},{"$f":"IFERROR(\nIFERROR(OFFSET(Table_TypWattage[[#Headers],[Technology]],MATCH(Table_PREInspection[[#This Row],[Fixture Technology '[E']]] & IF(Table_PREInspection[[#This Row],[Ballast/ Driver '[E']]]<>\"\",\" - \" & Table_PREInspection[[#This Row],[Ballast/ Driver '[E']]],\"\"),Table_TypWattage[Technology],0)+MATCH(Table_PREInspection[[#This Row],[Fixture/ Lamp Wattage '[E']]],INDIRECT(SUBSTITUTE(SUBSTITUTE(Table_PREInspection[[#This Row],[Fixture Technology '[E']]],\" \",\"_\"),\"-\",\"_\")),0)-1,MATCH(Table_PREInspection[[#This Row],['# Lamps/ Fixture '[E']]],'Measure Tables'!$Q$2:$V$2,0)+1),IF(Table_PREInspection[[#This Row],[Schedule]]<>\"\",IF(AND(Table_PREInspection[[#This Row],['# Lamps/ Fixture '[E']]]<>\"\",Table_PREInspection[[#This Row],['# Lamps/ Fixture '[E']]]>0,Table_PREInspection[[#This Row],[Fixture/ Lamp Wattage '[E']]]>0),Table_PREInspection[[#This Row],['# Lamps/ Fixture '[E']]]*Table_PREInspection[[#This Row],[Fixture/ Lamp Wattage '[E']]],Table_PREInspection[[#This Row],[Fixture/ Lamp Wattage '[E']]]),\"\")),\n\"\")","v":""},{"$f":"IFERROR(IF(OR(Table_PREInspection[[#This Row],[Line]]=\"\",INDEX(Table_PREInfo[],Table_PREInspection[[#This Row],[Line]],L$3)=\"\"),\"\",INDEX(Table_PREInfo[],Table_PREInspection[[#This Row],[Line]],L$3)),\"\")","v":""},{"$f":"IFERROR(IF(OR(Table_PREInspection[[#This Row],[Line]]=\"\",INDEX(Table_PREInfo[],Table_PREInspection[[#This Row],[Line]],M$3)=\"\"),\"\",INDEX(Table_PREInfo[],Table_PREInspection[[#This Row],[Line]],M$3)),\"\")","v":""},{"$f":"IFERROR(IF(Table_PREInspection[[#This Row],[Interior/ Exterior]]<>\"\",\n  CONCATENATE(\n  Table_PREInspection[[#This Row],[Interior/ Exterior]],\": \" &\n  Table_PREInspection[[#This Row],[Fixture Technology '[E']]],\n  \" - \",Table_PREInspection[[#This Row],[Fixture Type '[E']]],\" [\",\n  IF(Table_PREInspection[[#This Row],['# Lamps/ Fixture '[E']]]>0,Table_PREInspection[[#This Row],['# Lamps/ Fixture '[E']]] & \"L - \" & Table_PREInspection[[#This Row],[Fixture/ Lamp Wattage '[E']]] & \"W\" & IF(Table_PREInspection[[#This Row],[Ballast/ Driver '[E']]]<>\"\",\" - \" & Table_PREInspection[[#This Row],[Ballast/ Driver '[E']]],\"\"),Table_PREInspection[[#This Row],[Fixture Wattage '[E']]] & \"W\"),\"]\",\n  IF(AND(Table_PREInspection[[#This Row],[Controls '[E']]]<>\"\",Table_PREInspection[[#This Row],[Controls '[E']]]<>\"No Controls\"),\" - \" & Table_PREInspection[[#This Row],[Controls '[E']]],\"\")\n  ),\n\"\"),\"\")","v":""}]
[null,{"$f":"IFERROR(IF(OR(Table_PREInspection[[#This Row],[Line]]=\"\",INDEX(Table_PREInfo[],Table_PREInspection[[#This Row],[Line]],B$3)=\"\"),\"\",INDEX(Table_PREInfo[],Table_PREInspection[[#This Row],[Line]],B$3)),\"\")","v":""},{"$f":"IFERROR(IF(OR(Table_PREInspection[[#This Row],[Line]]=\"\",INDEX(Table_PREInfo[],Table_PREInspection[[#This Row],[Line]],C$3)=\"\"),\"\",INDEX(Table_PREInfo[],Table_PREInspection[[#This Row],[Line]],C$3)),\"\")","v":""},{"$f":"IFERROR(IF(OR(Table_PREInspection[[#This Row],[Line]]=\"\",INDEX(Table_PREInfo[],Table_PREInspection[[#This Row],[Line]],D$3)=\"\"),\"\",INDEX(Table_PREInfo[],Table_PREInspection[[#This Row],[Line]],D$3)),\"\")","v":""},null,{"$f":"IFERROR(IF(OR(Table_PREInspection[[#This Row],[Line]]=\"\",INDEX(Table_PREInfo[],Table_PREInspection[[#This Row],[Line]],F$3)=\"\"),\"\",INDEX(Table_PREInfo[],Table_PREInspection[[#This Row],[Line]],F$3)),\"\")","v":""},{"$f":"IFERROR(IF(OR(Table_PREInspection[[#This Row],[Line]]=\"\",INDEX(Table_PREInfo[],Table_PREInspection[[#This Row],[Line]],G$3)=\"\"),\"\",INDEX(Table_PREInfo[],Table_PREInspection[[#This Row],[Line]],G$3)),\"\")","v":""},{"$f":"IFERROR(IF(OR(Table_PREInspection[[#This Row],[Line]]=\"\",INDEX(Table_PREInfo[],Table_PREInspection[[#This Row],[Line]],H$3)=\"\"),\"\",INDEX(Table_PREInfo[],Table_PREInspection[[#This Row],[Line]],H$3)),\"\")","v":""},{"$f":"IFERROR(IF(OR(Table_PREInspection[[#This Row],[Line]]=\"\",INDEX(Table_PREInfo[],Table_PREInspection[[#This Row],[Line]],I$3)=\"\"),\"\",INDEX(Table_PREInfo[],Table_PREInspection[[#This Row],[Line]],I$3)),\"\")","v":""},{"$f":"IFERROR(IF(OR(Table_PREInspection[[#This Row],[Line]]=\"\",INDEX(Table_PREInfo[],Table_PREInspection[[#This Row],[Line]],J$3)=\"\"),\"\",INDEX(Table_PREInfo[],Table_PREInspection[[#This Row],[Line]],J$3)),\"\")","v":""},{"$f":"IFERROR(\nIFERROR(OFFSET(Table_TypWattage[[#Headers],[Technology]],MATCH(Table_PREInspection[[#This Row],[Fixture Technology '[E']]] & IF(Table_PREInspection[[#This Row],[Ballast/ Driver '[E']]]<>\"\",\" - \" & Table_PREInspection[[#This Row],[Ballast/ Driver '[E']]],\"\"),Table_TypWattage[Technology],0)+MATCH(Table_PREInspection[[#This Row],[Fixture/ Lamp Wattage '[E']]],INDIRECT(SUBSTITUTE(SUBSTITUTE(Table_PREInspection[[#This Row],[Fixture Technology '[E']]],\" \",\"_\"),\"-\",\"_\")),0)-1,MATCH(Table_PREInspection[[#This Row],['# Lamps/ Fixture '[E']]],'Measure Tables'!$Q$2:$V$2,0)+1),IF(Table_PREInspection[[#This Row],[Schedule]]<>\"\",IF(AND(Table_PREInspection[[#This Row],['# Lamps/ Fixture '[E']]]<>\"\",Table_PREInspection[[#This Row],['# Lamps/ Fixture '[E']]]>0,Table_PREInspection[[#This Row],[Fixture/ Lamp Wattage '[E']]]>0),Table_PREInspection[[#This Row],['# Lamps/ Fixture '[E']]]*Table_PREInspection[[#This Row],[Fixture/ Lamp Wattage '[E']]],Table_PREInspection[[#This Row],[Fixture/ Lamp Wattage '[E']]]),\"\")),\n\"\")","v":""},{"$f":"IFERROR(IF(OR(Table_PREInspection[[#This Row],[Line]]=\"\",INDEX(Table_PREInfo[],Table_PREInspection[[#This Row],[Line]],L$3)=\"\"),\"\",INDEX(Table_PREInfo[],Table_PREInspection[[#This Row],[Line]],L$3)),\"\")","v":""},{"$f":"IFERROR(IF(OR(Table_PREInspection[[#This Row],[Line]]=\"\",INDEX(Table_PREInfo[],Table_PREInspection[[#This Row],[Line]],M$3)=\"\"),\"\",INDEX(Table_PREInfo[],Table_PREInspection[[#This Row],[Line]],M$3)),\"\")","v":""},{"$f":"IFERROR(IF(Table_PREInspection[[#This Row],[Interior/ Exterior]]<>\"\",\n  CONCATENATE(\n  Table_PREInspection[[#This Row],[Interior/ Exterior]],\": \" &\n  Table_PREInspection[[#This Row],[Fixture Technology '[E']]],\n  \" - \",Table_PREInspection[[#This Row],[Fixture Type '[E']]],\" [\",\n  IF(Table_PREInspection[[#This Row],['# Lamps/ Fixture '[E']]]>0,Table_PREInspection[[#This Row],['# Lamps/ Fixture '[E']]] & \"L - \" & Table_PREInspection[[#This Row],[Fixture/ Lamp Wattage '[E']]] & \"W\" & IF(Table_PREInspection[[#This Row],[Ballast/ Driver '[E']]]<>\"\",\" - \" & Table_PREInspection[[#This Row],[Ballast/ Driver '[E']]],\"\"),Table_PREInspection[[#This Row],[Fixture Wattage '[E']]] & \"W\"),\"]\",\n  IF(AND(Table_PREInspection[[#This Row],[Controls '[E']]]<>\"\",Table_PREInspection[[#This Row],[Controls '[E']]]<>\"No Controls\"),\" - \" & Table_PREInspection[[#This Row],[Controls '[E']]],\"\")\n  ),\n\"\"),\"\")","v":""}]
[null,{"$f":"IFERROR(IF(OR(Table_PREInspection[[#This Row],[Line]]=\"\",INDEX(Table_PREInfo[],Table_PREInspection[[#This Row],[Line]],B$3)=\"\"),\"\",INDEX(Table_PREInfo[],Table_PREInspection[[#This Row],[Line]],B$3)),\"\")","v":""},{"$f":"IFERROR(IF(OR(Table_PREInspection[[#This Row],[Line]]=\"\",INDEX(Table_PREInfo[],Table_PREInspection[[#This Row],[Line]],C$3)=\"\"),\"\",INDEX(Table_PREInfo[],Table_PREInspection[[#This Row],[Line]],C$3)),\"\")","v":""},{"$f":"IFERROR(IF(OR(Table_PREInspection[[#This Row],[Line]]=\"\",INDEX(Table_PREInfo[],Table_PREInspection[[#This Row],[Line]],D$3)=\"\"),\"\",INDEX(Table_PREInfo[],Table_PREInspection[[#This Row],[Line]],D$3)),\"\")","v":""},null,{"$f":"IFERROR(IF(OR(Table_PREInspection[[#This Row],[Line]]=\"\",INDEX(Table_PREInfo[],Table_PREInspection[[#This Row],[Line]],F$3)=\"\"),\"\",INDEX(Table_PREInfo[],Table_PREInspection[[#This Row],[Line]],F$3)),\"\")","v":""},{"$f":"IFERROR(IF(OR(Table_PREInspection[[#This Row],[Line]]=\"\",INDEX(Table_PREInfo[],Table_PREInspection[[#This Row],[Line]],G$3)=\"\"),\"\",INDEX(Table_PREInfo[],Table_PREInspection[[#This Row],[Line]],G$3)),\"\")","v":""},{"$f":"IFERROR(IF(OR(Table_PREInspection[[#This Row],[Line]]=\"\",INDEX(Table_PREInfo[],Table_PREInspection[[#This Row],[Line]],H$3)=\"\"),\"\",INDEX(Table_PREInfo[],Table_PREInspection[[#This Row],[Line]],H$3)),\"\")","v":""},{"$f":"IFERROR(IF(OR(Table_PREInspection[[#This Row],[Line]]=\"\",INDEX(Table_PREInfo[],Table_PREInspection[[#This Row],[Line]],I$3)=\"\"),\"\",INDEX(Table_PREInfo[],Table_PREInspection[[#This Row],[Line]],I$3)),\"\")","v":""},{"$f":"IFERROR(IF(OR(Table_PREInspection[[#This Row],[Line]]=\"\",INDEX(Table_PREInfo[],Table_PREInspection[[#This Row],[Line]],J$3)=\"\"),\"\",INDEX(Table_PREInfo[],Table_PREInspection[[#This Row],[Line]],J$3)),\"\")","v":""},{"$f":"IFERROR(\nIFERROR(OFFSET(Table_TypWattage[[#Headers],[Technology]],MATCH(Table_PREInspection[[#This Row],[Fixture Technology '[E']]] & IF(Table_PREInspection[[#This Row],[Ballast/ Driver '[E']]]<>\"\",\" - \" & Table_PREInspection[[#This Row],[Ballast/ Driver '[E']]],\"\"),Table_TypWattage[Technology],0)+MATCH(Table_PREInspection[[#This Row],[Fixture/ Lamp Wattage '[E']]],INDIRECT(SUBSTITUTE(SUBSTITUTE(Table_PREInspection[[#This Row],[Fixture Technology '[E']]],\" \",\"_\"),\"-\",\"_\")),0)-1,MATCH(Table_PREInspection[[#This Row],['# Lamps/ Fixture '[E']]],'Measure Tables'!$Q$2:$V$2,0)+1),IF(Table_PREInspection[[#This Row],[Schedule]]<>\"\",IF(AND(Table_PREInspection[[#This Row],['# Lamps/ Fixture '[E']]]<>\"\",Table_PREInspection[[#This Row],['# Lamps/ Fixture '[E']]]>0,Table_PREInspection[[#This Row],[Fixture/ Lamp Wattage '[E']]]>0),Table_PREInspection[[#This Row],['# Lamps/ Fixture '[E']]]*Table_PREInspection[[#This Row],[Fixture/ Lamp Wattage '[E']]],Table_PREInspection[[#This Row],[Fixture/ Lamp Wattage '[E']]]),\"\")),\n\"\")","v":""},{"$f":"IFERROR(IF(OR(Table_PREInspection[[#This Row],[Line]]=\"\",INDEX(Table_PREInfo[],Table_PREInspection[[#This Row],[Line]],L$3)=\"\"),\"\",INDEX(Table_PREInfo[],Table_PREInspection[[#This Row],[Line]],L$3)),\"\")","v":""},{"$f":"IFERROR(IF(OR(Table_PREInspection[[#This Row],[Line]]=\"\",INDEX(Table_PREInfo[],Table_PREInspection[[#This Row],[Line]],M$3)=\"\"),\"\",INDEX(Table_PREInfo[],Table_PREInspection[[#This Row],[Line]],M$3)),\"\")","v":""},{"$f":"IFERROR(IF(Table_PREInspection[[#This Row],[Interior/ Exterior]]<>\"\",\n  CONCATENATE(\n  Table_PREInspection[[#This Row],[Interior/ Exterior]],\": \" &\n  Table_PREInspection[[#This Row],[Fixture Technology '[E']]],\n  \" - \",Table_PREInspection[[#This Row],[Fixture Type '[E']]],\" [\",\n  IF(Table_PREInspection[[#This Row],['# Lamps/ Fixture '[E']]]>0,Table_PREInspection[[#This Row],['# Lamps/ Fixture '[E']]] & \"L - \" & Table_PREInspection[[#This Row],[Fixture/ Lamp Wattage '[E']]] & \"W\" & IF(Table_PREInspection[[#This Row],[Ballast/ Driver '[E']]]<>\"\",\" - \" & Table_PREInspection[[#This Row],[Ballast/ Driver '[E']]],\"\"),Table_PREInspection[[#This Row],[Fixture Wattage '[E']]] & \"W\"),\"]\",\n  IF(AND(Table_PREInspection[[#This Row],[Controls '[E']]]<>\"\",Table_PREInspection[[#This Row],[Controls '[E']]]<>\"No Controls\"),\" - \" & Table_PREInspection[[#This Row],[Controls '[E']]],\"\")\n  ),\n\"\"),\"\")","v":""}]
[null,{"$f":"IFERROR(IF(OR(Table_PREInspection[[#This Row],[Line]]=\"\",INDEX(Table_PREInfo[],Table_PREInspection[[#This Row],[Line]],B$3)=\"\"),\"\",INDEX(Table_PREInfo[],Table_PREInspection[[#This Row],[Line]],B$3)),\"\")","v":""},{"$f":"IFERROR(IF(OR(Table_PREInspection[[#This Row],[Line]]=\"\",INDEX(Table_PREInfo[],Table_PREInspection[[#This Row],[Line]],C$3)=\"\"),\"\",INDEX(Table_PREInfo[],Table_PREInspection[[#This Row],[Line]],C$3)),\"\")","v":""},{"$f":"IFERROR(IF(OR(Table_PREInspection[[#This Row],[Line]]=\"\",INDEX(Table_PREInfo[],Table_PREInspection[[#This Row],[Line]],D$3)=\"\"),\"\",INDEX(Table_PREInfo[],Table_PREInspection[[#This Row],[Line]],D$3)),\"\")","v":""},null,{"$f":"IFERROR(IF(OR(Table_PREInspection[[#This Row],[Line]]=\"\",INDEX(Table_PREInfo[],Table_PREInspection[[#This Row],[Line]],F$3)=\"\"),\"\",INDEX(Table_PREInfo[],Table_PREInspection[[#This Row],[Line]],F$3)),\"\")","v":""},{"$f":"IFERROR(IF(OR(Table_PREInspection[[#This Row],[Line]]=\"\",INDEX(Table_PREInfo[],Table_PREInspection[[#This Row],[Line]],G$3)=\"\"),\"\",INDEX(Table_PREInfo[],Table_PREInspection[[#This Row],[Line]],G$3)),\"\")","v":""},{"$f":"IFERROR(IF(OR(Table_PREInspection[[#This Row],[Line]]=\"\",INDEX(Table_PREInfo[],Table_PREInspection[[#This Row],[Line]],H$3)=\"\"),\"\",INDEX(Table_PREInfo[],Table_PREInspection[[#This Row],[Line]],H$3)),\"\")","v":""},{"$f":"IFERROR(IF(OR(Table_PREInspection[[#This Row],[Line]]=\"\",INDEX(Table_PREInfo[],Table_PREInspection[[#This Row],[Line]],I$3)=\"\"),\"\",INDEX(Table_PREInfo[],Table_PREInspection[[#This Row],[Line]],I$3)),\"\")","v":""},{"$f":"IFERROR(IF(OR(Table_PREInspection[[#This Row],[Line]]=\"\",INDEX(Table_PREInfo[],Table_PREInspection[[#This Row],[Line]],J$3)=\"\"),\"\",INDEX(Table_PREInfo[],Table_PREInspection[[#This Row],[Line]],J$3)),\"\")","v":""},{"$f":"IFERROR(\nIFERROR(OFFSET(Table_TypWattage[[#Headers],[Technology]],MATCH(Table_PREInspection[[#This Row],[Fixture Technology '[E']]] & IF(Table_PREInspection[[#This Row],[Ballast/ Driver '[E']]]<>\"\",\" - \" & Table_PREInspection[[#This Row],[Ballast/ Driver '[E']]],\"\"),Table_TypWattage[Technology],0)+MATCH(Table_PREInspection[[#This Row],[Fixture/ Lamp Wattage '[E']]],INDIRECT(SUBSTITUTE(SUBSTITUTE(Table_PREInspection[[#This Row],[Fixture Technology '[E']]],\" \",\"_\"),\"-\",\"_\")),0)-1,MATCH(Table_PREInspection[[#This Row],['# Lamps/ Fixture '[E']]],'Measure Tables'!$Q$2:$V$2,0)+1),IF(Table_PREInspection[[#This Row],[Schedule]]<>\"\",IF(AND(Table_PREInspection[[#This Row],['# Lamps/ Fixture '[E']]]<>\"\",Table_PREInspection[[#This Row],['# Lamps/ Fixture '[E']]]>0,Table_PREInspection[[#This Row],[Fixture/ Lamp Wattage '[E']]]>0),Table_PREInspection[[#This Row],['# Lamps/ Fixture '[E']]]*Table_PREInspection[[#This Row],[Fixture/ Lamp Wattage '[E']]],Table_PREInspection[[#This Row],[Fixture/ Lamp Wattage '[E']]]),\"\")),\n\"\")","v":""},{"$f":"IFERROR(IF(OR(Table_PREInspection[[#This Row],[Line]]=\"\",INDEX(Table_PREInfo[],Table_PREInspection[[#This Row],[Line]],L$3)=\"\"),\"\",INDEX(Table_PREInfo[],Table_PREInspection[[#This Row],[Line]],L$3)),\"\")","v":""},{"$f":"IFERROR(IF(OR(Table_PREInspection[[#This Row],[Line]]=\"\",INDEX(Table_PREInfo[],Table_PREInspection[[#This Row],[Line]],M$3)=\"\"),\"\",INDEX(Table_PREInfo[],Table_PREInspection[[#This Row],[Line]],M$3)),\"\")","v":""},{"$f":"IFERROR(IF(Table_PREInspection[[#This Row],[Interior/ Exterior]]<>\"\",\n  CONCATENATE(\n  Table_PREInspection[[#This Row],[Interior/ Exterior]],\": \" &\n  Table_PREInspection[[#This Row],[Fixture Technology '[E']]],\n  \" - \",Table_PREInspection[[#This Row],[Fixture Type '[E']]],\" [\",\n  IF(Table_PREInspection[[#This Row],['# Lamps/ Fixture '[E']]]>0,Table_PREInspection[[#This Row],['# Lamps/ Fixture '[E']]] & \"L - \" & Table_PREInspection[[#This Row],[Fixture/ Lamp Wattage '[E']]] & \"W\" & IF(Table_PREInspection[[#This Row],[Ballast/ Driver '[E']]]<>\"\",\" - \" & Table_PREInspection[[#This Row],[Ballast/ Driver '[E']]],\"\"),Table_PREInspection[[#This Row],[Fixture Wattage '[E']]] & \"W\"),\"]\",\n  IF(AND(Table_PREInspection[[#This Row],[Controls '[E']]]<>\"\",Table_PREInspection[[#This Row],[Controls '[E']]]<>\"No Controls\"),\" - \" & Table_PREInspection[[#This Row],[Controls '[E']]],\"\")\n  ),\n\"\"),\"\")","v":""}]
[null,{"$f":"IFERROR(IF(OR(Table_PREInspection[[#This Row],[Line]]=\"\",INDEX(Table_PREInfo[],Table_PREInspection[[#This Row],[Line]],B$3)=\"\"),\"\",INDEX(Table_PREInfo[],Table_PREInspection[[#This Row],[Line]],B$3)),\"\")","v":""},{"$f":"IFERROR(IF(OR(Table_PREInspection[[#This Row],[Line]]=\"\",INDEX(Table_PREInfo[],Table_PREInspection[[#This Row],[Line]],C$3)=\"\"),\"\",INDEX(Table_PREInfo[],Table_PREInspection[[#This Row],[Line]],C$3)),\"\")","v":""},{"$f":"IFERROR(IF(OR(Table_PREInspection[[#This Row],[Line]]=\"\",INDEX(Table_PREInfo[],Table_PREInspection[[#This Row],[Line]],D$3)=\"\"),\"\",INDEX(Table_PREInfo[],Table_PREInspection[[#This Row],[Line]],D$3)),\"\")","v":""},null,{"$f":"IFERROR(IF(OR(Table_PREInspection[[#This Row],[Line]]=\"\",INDEX(Table_PREInfo[],Table_PREInspection[[#This Row],[Line]],F$3)=\"\"),\"\",INDEX(Table_PREInfo[],Table_PREInspection[[#This Row],[Line]],F$3)),\"\")","v":""},{"$f":"IFERROR(IF(OR(Table_PREInspection[[#This Row],[Line]]=\"\",INDEX(Table_PREInfo[],Table_PREInspection[[#This Row],[Line]],G$3)=\"\"),\"\",INDEX(Table_PREInfo[],Table_PREInspection[[#This Row],[Line]],G$3)),\"\")","v":""},{"$f":"IFERROR(IF(OR(Table_PREInspection[[#This Row],[Line]]=\"\",INDEX(Table_PREInfo[],Table_PREInspection[[#This Row],[Line]],H$3)=\"\"),\"\",INDEX(Table_PREInfo[],Table_PREInspection[[#This Row],[Line]],H$3)),\"\")","v":""},{"$f":"IFERROR(IF(OR(Table_PREInspection[[#This Row],[Line]]=\"\",INDEX(Table_PREInfo[],Table_PREInspection[[#This Row],[Line]],I$3)=\"\"),\"\",INDEX(Table_PREInfo[],Table_PREInspection[[#This Row],[Line]],I$3)),\"\")","v":""},{"$f":"IFERROR(IF(OR(Table_PREInspection[[#This Row],[Line]]=\"\",INDEX(Table_PREInfo[],Table_PREInspection[[#This Row],[Line]],J$3)=\"\"),\"\",INDEX(Table_PREInfo[],Table_PREInspection[[#This Row],[Line]],J$3)),\"\")","v":""},{"$f":"IFERROR(\nIFERROR(OFFSET(Table_TypWattage[[#Headers],[Technology]],MATCH(Table_PREInspection[[#This Row],[Fixture Technology '[E']]] & IF(Table_PREInspection[[#This Row],[Ballast/ Driver '[E']]]<>\"\",\" - \" & Table_PREInspection[[#This Row],[Ballast/ Driver '[E']]],\"\"),Table_TypWattage[Technology],0)+MATCH(Table_PREInspection[[#This Row],[Fixture/ Lamp Wattage '[E']]],INDIRECT(SUBSTITUTE(SUBSTITUTE(Table_PREInspection[[#This Row],[Fixture Technology '[E']]],\" \",\"_\"),\"-\",\"_\")),0)-1,MATCH(Table_PREInspection[[#This Row],['# Lamps/ Fixture '[E']]],'Measure Tables'!$Q$2:$V$2,0)+1),IF(Table_PREInspection[[#This Row],[Schedule]]<>\"\",IF(AND(Table_PREInspection[[#This Row],['# Lamps/ Fixture '[E']]]<>\"\",Table_PREInspection[[#This Row],['# Lamps/ Fixture '[E']]]>0,Table_PREInspection[[#This Row],[Fixture/ Lamp Wattage '[E']]]>0),Table_PREInspection[[#This Row],['# Lamps/ Fixture '[E']]]*Table_PREInspection[[#This Row],[Fixture/ Lamp Wattage '[E']]],Table_PREInspection[[#This Row],[Fixture/ Lamp Wattage '[E']]]),\"\")),\n\"\")","v":""},{"$f":"IFERROR(IF(OR(Table_PREInspection[[#This Row],[Line]]=\"\",INDEX(Table_PREInfo[],Table_PREInspection[[#This Row],[Line]],L$3)=\"\"),\"\",INDEX(Table_PREInfo[],Table_PREInspection[[#This Row],[Line]],L$3)),\"\")","v":""},{"$f":"IFERROR(IF(OR(Table_PREInspection[[#This Row],[Line]]=\"\",INDEX(Table_PREInfo[],Table_PREInspection[[#This Row],[Line]],M$3)=\"\"),\"\",INDEX(Table_PREInfo[],Table_PREInspection[[#This Row],[Line]],M$3)),\"\")","v":""},{"$f":"IFERROR(IF(Table_PREInspection[[#This Row],[Interior/ Exterior]]<>\"\",\n  CONCATENATE(\n  Table_PREInspection[[#This Row],[Interior/ Exterior]],\": \" &\n  Table_PREInspection[[#This Row],[Fixture Technology '[E']]],\n  \" - \",Table_PREInspection[[#This Row],[Fixture Type '[E']]],\" [\",\n  IF(Table_PREInspection[[#This Row],['# Lamps/ Fixture '[E']]]>0,Table_PREInspection[[#This Row],['# Lamps/ Fixture '[E']]] & \"L - \" & Table_PREInspection[[#This Row],[Fixture/ Lamp Wattage '[E']]] & \"W\" & IF(Table_PREInspection[[#This Row],[Ballast/ Driver '[E']]]<>\"\",\" - \" & Table_PREInspection[[#This Row],[Ballast/ Driver '[E']]],\"\"),Table_PREInspection[[#This Row],[Fixture Wattage '[E']]] & \"W\"),\"]\",\n  IF(AND(Table_PREInspection[[#This Row],[Controls '[E']]]<>\"\",Table_PREInspection[[#This Row],[Controls '[E']]]<>\"No Controls\"),\" - \" & Table_PREInspection[[#This Row],[Controls '[E']]],\"\")\n  ),\n\"\"),\"\")","v":""}]
[null,{"$f":"IFERROR(IF(OR(Table_PREInspection[[#This Row],[Line]]=\"\",INDEX(Table_PREInfo[],Table_PREInspection[[#This Row],[Line]],B$3)=\"\"),\"\",INDEX(Table_PREInfo[],Table_PREInspection[[#This Row],[Line]],B$3)),\"\")","v":""},{"$f":"IFERROR(IF(OR(Table_PREInspection[[#This Row],[Line]]=\"\",INDEX(Table_PREInfo[],Table_PREInspection[[#This Row],[Line]],C$3)=\"\"),\"\",INDEX(Table_PREInfo[],Table_PREInspection[[#This Row],[Line]],C$3)),\"\")","v":""},{"$f":"IFERROR(IF(OR(Table_PREInspection[[#This Row],[Line]]=\"\",INDEX(Table_PREInfo[],Table_PREInspection[[#This Row],[Line]],D$3)=\"\"),\"\",INDEX(Table_PREInfo[],Table_PREInspection[[#This Row],[Line]],D$3)),\"\")","v":""},null,{"$f":"IFERROR(IF(OR(Table_PREInspection[[#This Row],[Line]]=\"\",INDEX(Table_PREInfo[],Table_PREInspection[[#This Row],[Line]],F$3)=\"\"),\"\",INDEX(Table_PREInfo[],Table_PREInspection[[#This Row],[Line]],F$3)),\"\")","v":""},{"$f":"IFERROR(IF(OR(Table_PREInspection[[#This Row],[Line]]=\"\",INDEX(Table_PREInfo[],Table_PREInspection[[#This Row],[Line]],G$3)=\"\"),\"\",INDEX(Table_PREInfo[],Table_PREInspection[[#This Row],[Line]],G$3)),\"\")","v":""},{"$f":"IFERROR(IF(OR(Table_PREInspection[[#This Row],[Line]]=\"\",INDEX(Table_PREInfo[],Table_PREInspection[[#This Row],[Line]],H$3)=\"\"),\"\",INDEX(Table_PREInfo[],Table_PREInspection[[#This Row],[Line]],H$3)),\"\")","v":""},{"$f":"IFERROR(IF(OR(Table_PREInspection[[#This Row],[Line]]=\"\",INDEX(Table_PREInfo[],Table_PREInspection[[#This Row],[Line]],I$3)=\"\"),\"\",INDEX(Table_PREInfo[],Table_PREInspection[[#This Row],[Line]],I$3)),\"\")","v":""},{"$f":"IFERROR(IF(OR(Table_PREInspection[[#This Row],[Line]]=\"\",INDEX(Table_PREInfo[],Table_PREInspection[[#This Row],[Line]],J$3)=\"\"),\"\",INDEX(Table_PREInfo[],Table_PREInspection[[#This Row],[Line]],J$3)),\"\")","v":""},{"$f":"IFERROR(\nIFERROR(OFFSET(Table_TypWattage[[#Headers],[Technology]],MATCH(Table_PREInspection[[#This Row],[Fixture Technology '[E']]] & IF(Table_PREInspection[[#This Row],[Ballast/ Driver '[E']]]<>\"\",\" - \" & Table_PREInspection[[#This Row],[Ballast/ Driver '[E']]],\"\"),Table_TypWattage[Technology],0)+MATCH(Table_PREInspection[[#This Row],[Fixture/ Lamp Wattage '[E']]],INDIRECT(SUBSTITUTE(SUBSTITUTE(Table_PREInspection[[#This Row],[Fixture Technology '[E']]],\" \",\"_\"),\"-\",\"_\")),0)-1,MATCH(Table_PREInspection[[#This Row],['# Lamps/ Fixture '[E']]],'Measure Tables'!$Q$2:$V$2,0)+1),IF(Table_PREInspection[[#This Row],[Schedule]]<>\"\",IF(AND(Table_PREInspection[[#This Row],['# Lamps/ Fixture '[E']]]<>\"\",Table_PREInspection[[#This Row],['# Lamps/ Fixture '[E']]]>0,Table_PREInspection[[#This Row],[Fixture/ Lamp Wattage '[E']]]>0),Table_PREInspection[[#This Row],['# Lamps/ Fixture '[E']]]*Table_PREInspection[[#This Row],[Fixture/ Lamp Wattage '[E']]],Table_PREInspection[[#This Row],[Fixture/ Lamp Wattage '[E']]]),\"\")),\n\"\")","v":""},{"$f":"IFERROR(IF(OR(Table_PREInspection[[#This Row],[Line]]=\"\",INDEX(Table_PREInfo[],Table_PREInspection[[#This Row],[Line]],L$3)=\"\"),\"\",INDEX(Table_PREInfo[],Table_PREInspection[[#This Row],[Line]],L$3)),\"\")","v":""},{"$f":"IFERROR(IF(OR(Table_PREInspection[[#This Row],[Line]]=\"\",INDEX(Table_PREInfo[],Table_PREInspection[[#This Row],[Line]],M$3)=\"\"),\"\",INDEX(Table_PREInfo[],Table_PREInspection[[#This Row],[Line]],M$3)),\"\")","v":""},{"$f":"IFERROR(IF(Table_PREInspection[[#This Row],[Interior/ Exterior]]<>\"\",\n  CONCATENATE(\n  Table_PREInspection[[#This Row],[Interior/ Exterior]],\": \" &\n  Table_PREInspection[[#This Row],[Fixture Technology '[E']]],\n  \" - \",Table_PREInspection[[#This Row],[Fixture Type '[E']]],\" [\",\n  IF(Table_PREInspection[[#This Row],['# Lamps/ Fixture '[E']]]>0,Table_PREInspection[[#This Row],['# Lamps/ Fixture '[E']]] & \"L - \" & Table_PREInspection[[#This Row],[Fixture/ Lamp Wattage '[E']]] & \"W\" & IF(Table_PREInspection[[#This Row],[Ballast/ Driver '[E']]]<>\"\",\" - \" & Table_PREInspection[[#This Row],[Ballast/ Driver '[E']]],\"\"),Table_PREInspection[[#This Row],[Fixture Wattage '[E']]] & \"W\"),\"]\",\n  IF(AND(Table_PREInspection[[#This Row],[Controls '[E']]]<>\"\",Table_PREInspection[[#This Row],[Controls '[E']]]<>\"No Controls\"),\" - \" & Table_PREInspection[[#This Row],[Controls '[E']]],\"\")\n  ),\n\"\"),\"\")","v":""}]
[null,{"$f":"IFERROR(IF(OR(Table_PREInspection[[#This Row],[Line]]=\"\",INDEX(Table_PREInfo[],Table_PREInspection[[#This Row],[Line]],B$3)=\"\"),\"\",INDEX(Table_PREInfo[],Table_PREInspection[[#This Row],[Line]],B$3)),\"\")","v":""},{"$f":"IFERROR(IF(OR(Table_PREInspection[[#This Row],[Line]]=\"\",INDEX(Table_PREInfo[],Table_PREInspection[[#This Row],[Line]],C$3)=\"\"),\"\",INDEX(Table_PREInfo[],Table_PREInspection[[#This Row],[Line]],C$3)),\"\")","v":""},{"$f":"IFERROR(IF(OR(Table_PREInspection[[#This Row],[Line]]=\"\",INDEX(Table_PREInfo[],Table_PREInspection[[#This Row],[Line]],D$3)=\"\"),\"\",INDEX(Table_PREInfo[],Table_PREInspection[[#This Row],[Line]],D$3)),\"\")","v":""},null,{"$f":"IFERROR(IF(OR(Table_PREInspection[[#This Row],[Line]]=\"\",INDEX(Table_PREInfo[],Table_PREInspection[[#This Row],[Line]],F$3)=\"\"),\"\",INDEX(Table_PREInfo[],Table_PREInspection[[#This Row],[Line]],F$3)),\"\")","v":""},{"$f":"IFERROR(IF(OR(Table_PREInspection[[#This Row],[Line]]=\"\",INDEX(Table_PREInfo[],Table_PREInspection[[#This Row],[Line]],G$3)=\"\"),\"\",INDEX(Table_PREInfo[],Table_PREInspection[[#This Row],[Line]],G$3)),\"\")","v":""},{"$f":"IFERROR(IF(OR(Table_PREInspection[[#This Row],[Line]]=\"\",INDEX(Table_PREInfo[],Table_PREInspection[[#This Row],[Line]],H$3)=\"\"),\"\",INDEX(Table_PREInfo[],Table_PREInspection[[#This Row],[Line]],H$3)),\"\")","v":""},{"$f":"IFERROR(IF(OR(Table_PREInspection[[#This Row],[Line]]=\"\",INDEX(Table_PREInfo[],Table_PREInspection[[#This Row],[Line]],I$3)=\"\"),\"\",INDEX(Table_PREInfo[],Table_PREInspection[[#This Row],[Line]],I$3)),\"\")","v":""},{"$f":"IFERROR(IF(OR(Table_PREInspection[[#This Row],[Line]]=\"\",INDEX(Table_PREInfo[],Table_PREInspection[[#This Row],[Line]],J$3)=\"\"),\"\",INDEX(Table_PREInfo[],Table_PREInspection[[#This Row],[Line]],J$3)),\"\")","v":""},{"$f":"IFERROR(\nIFERROR(OFFSET(Table_TypWattage[[#Headers],[Technology]],MATCH(Table_PREInspection[[#This Row],[Fixture Technology '[E']]] & IF(Table_PREInspection[[#This Row],[Ballast/ Driver '[E']]]<>\"\",\" - \" & Table_PREInspection[[#This Row],[Ballast/ Driver '[E']]],\"\"),Table_TypWattage[Technology],0)+MATCH(Table_PREInspection[[#This Row],[Fixture/ Lamp Wattage '[E']]],INDIRECT(SUBSTITUTE(SUBSTITUTE(Table_PREInspection[[#This Row],[Fixture Technology '[E']]],\" \",\"_\"),\"-\",\"_\")),0)-1,MATCH(Table_PREInspection[[#This Row],['# Lamps/ Fixture '[E']]],'Measure Tables'!$Q$2:$V$2,0)+1),IF(Table_PREInspection[[#This Row],[Schedule]]<>\"\",IF(AND(Table_PREInspection[[#This Row],['# Lamps/ Fixture '[E']]]<>\"\",Table_PREInspection[[#This Row],['# Lamps/ Fixture '[E']]]>0,Table_PREInspection[[#This Row],[Fixture/ Lamp Wattage '[E']]]>0),Table_PREInspection[[#This Row],['# Lamps/ Fixture '[E']]]*Table_PREInspection[[#This Row],[Fixture/ Lamp Wattage '[E']]],Table_PREInspection[[#This Row],[Fixture/ Lamp Wattage '[E']]]),\"\")),\n\"\")","v":""},{"$f":"IFERROR(IF(OR(Table_PREInspection[[#This Row],[Line]]=\"\",INDEX(Table_PREInfo[],Table_PREInspection[[#This Row],[Line]],L$3)=\"\"),\"\",INDEX(Table_PREInfo[],Table_PREInspection[[#This Row],[Line]],L$3)),\"\")","v":""},{"$f":"IFERROR(IF(OR(Table_PREInspection[[#This Row],[Line]]=\"\",INDEX(Table_PREInfo[],Table_PREInspection[[#This Row],[Line]],M$3)=\"\"),\"\",INDEX(Table_PREInfo[],Table_PREInspection[[#This Row],[Line]],M$3)),\"\")","v":""},{"$f":"IFERROR(IF(Table_PREInspection[[#This Row],[Interior/ Exterior]]<>\"\",\n  CONCATENATE(\n  Table_PREInspection[[#This Row],[Interior/ Exterior]],\": \" &\n  Table_PREInspection[[#This Row],[Fixture Technology '[E']]],\n  \" - \",Table_PREInspection[[#This Row],[Fixture Type '[E']]],\" [\",\n  IF(Table_PREInspection[[#This Row],['# Lamps/ Fixture '[E']]]>0,Table_PREInspection[[#This Row],['# Lamps/ Fixture '[E']]] & \"L - \" & Table_PREInspection[[#This Row],[Fixture/ Lamp Wattage '[E']]] & \"W\" & IF(Table_PREInspection[[#This Row],[Ballast/ Driver '[E']]]<>\"\",\" - \" & Table_PREInspection[[#This Row],[Ballast/ Driver '[E']]],\"\"),Table_PREInspection[[#This Row],[Fixture Wattage '[E']]] & \"W\"),\"]\",\n  IF(AND(Table_PREInspection[[#This Row],[Controls '[E']]]<>\"\",Table_PREInspection[[#This Row],[Controls '[E']]]<>\"No Controls\"),\" - \" & Table_PREInspection[[#This Row],[Controls '[E']]],\"\")\n  ),\n\"\"),\"\")","v":""}]
[null,{"$f":"IFERROR(IF(OR(Table_PREInspection[[#This Row],[Line]]=\"\",INDEX(Table_PREInfo[],Table_PREInspection[[#This Row],[Line]],B$3)=\"\"),\"\",INDEX(Table_PREInfo[],Table_PREInspection[[#This Row],[Line]],B$3)),\"\")","v":""},{"$f":"IFERROR(IF(OR(Table_PREInspection[[#This Row],[Line]]=\"\",INDEX(Table_PREInfo[],Table_PREInspection[[#This Row],[Line]],C$3)=\"\"),\"\",INDEX(Table_PREInfo[],Table_PREInspection[[#This Row],[Line]],C$3)),\"\")","v":""},{"$f":"IFERROR(IF(OR(Table_PREInspection[[#This Row],[Line]]=\"\",INDEX(Table_PREInfo[],Table_PREInspection[[#This Row],[Line]],D$3)=\"\"),\"\",INDEX(Table_PREInfo[],Table_PREInspection[[#This Row],[Line]],D$3)),\"\")","v":""},null,{"$f":"IFERROR(IF(OR(Table_PREInspection[[#This Row],[Line]]=\"\",INDEX(Table_PREInfo[],Table_PREInspection[[#This Row],[Line]],F$3)=\"\"),\"\",INDEX(Table_PREInfo[],Table_PREInspection[[#This Row],[Line]],F$3)),\"\")","v":""},{"$f":"IFERROR(IF(OR(Table_PREInspection[[#This Row],[Line]]=\"\",INDEX(Table_PREInfo[],Table_PREInspection[[#This Row],[Line]],G$3)=\"\"),\"\",INDEX(Table_PREInfo[],Table_PREInspection[[#This Row],[Line]],G$3)),\"\")","v":""},{"$f":"IFERROR(IF(OR(Table_PREInspection[[#This Row],[Line]]=\"\",INDEX(Table_PREInfo[],Table_PREInspection[[#This Row],[Line]],H$3)=\"\"),\"\",INDEX(Table_PREInfo[],Table_PREInspection[[#This Row],[Line]],H$3)),\"\")","v":""},{"$f":"IFERROR(IF(OR(Table_PREInspection[[#This Row],[Line]]=\"\",INDEX(Table_PREInfo[],Table_PREInspection[[#This Row],[Line]],I$3)=\"\"),\"\",INDEX(Table_PREInfo[],Table_PREInspection[[#This Row],[Line]],I$3)),\"\")","v":""},{"$f":"IFERROR(IF(OR(Table_PREInspection[[#This Row],[Line]]=\"\",INDEX(Table_PREInfo[],Table_PREInspection[[#This Row],[Line]],J$3)=\"\"),\"\",INDEX(Table_PREInfo[],Table_PREInspection[[#This Row],[Line]],J$3)),\"\")","v":""},{"$f":"IFERROR(\nIFERROR(OFFSET(Table_TypWattage[[#Headers],[Technology]],MATCH(Table_PREInspection[[#This Row],[Fixture Technology '[E']]] & IF(Table_PREInspection[[#This Row],[Ballast/ Driver '[E']]]<>\"\",\" - \" & Table_PREInspection[[#This Row],[Ballast/ Driver '[E']]],\"\"),Table_TypWattage[Technology],0)+MATCH(Table_PREInspection[[#This Row],[Fixture/ Lamp Wattage '[E']]],INDIRECT(SUBSTITUTE(SUBSTITUTE(Table_PREInspection[[#This Row],[Fixture Technology '[E']]],\" \",\"_\"),\"-\",\"_\")),0)-1,MATCH(Table_PREInspection[[#This Row],['# Lamps/ Fixture '[E']]],'Measure Tables'!$Q$2:$V$2,0)+1),IF(Table_PREInspection[[#This Row],[Schedule]]<>\"\",IF(AND(Table_PREInspection[[#This Row],['# Lamps/ Fixture '[E']]]<>\"\",Table_PREInspection[[#This Row],['# Lamps/ Fixture '[E']]]>0,Table_PREInspection[[#This Row],[Fixture/ Lamp Wattage '[E']]]>0),Table_PREInspection[[#This Row],['# Lamps/ Fixture '[E']]]*Table_PREInspection[[#This Row],[Fixture/ Lamp Wattage '[E']]],Table_PREInspection[[#This Row],[Fixture/ Lamp Wattage '[E']]]),\"\")),\n\"\")","v":""},{"$f":"IFERROR(IF(OR(Table_PREInspection[[#This Row],[Line]]=\"\",INDEX(Table_PREInfo[],Table_PREInspection[[#This Row],[Line]],L$3)=\"\"),\"\",INDEX(Table_PREInfo[],Table_PREInspection[[#This Row],[Line]],L$3)),\"\")","v":""},{"$f":"IFERROR(IF(OR(Table_PREInspection[[#This Row],[Line]]=\"\",INDEX(Table_PREInfo[],Table_PREInspection[[#This Row],[Line]],M$3)=\"\"),\"\",INDEX(Table_PREInfo[],Table_PREInspection[[#This Row],[Line]],M$3)),\"\")","v":""},{"$f":"IFERROR(IF(Table_PREInspection[[#This Row],[Interior/ Exterior]]<>\"\",\n  CONCATENATE(\n  Table_PREInspection[[#This Row],[Interior/ Exterior]],\": \" &\n  Table_PREInspection[[#This Row],[Fixture Technology '[E']]],\n  \" - \",Table_PREInspection[[#This Row],[Fixture Type '[E']]],\" [\",\n  IF(Table_PREInspection[[#This Row],['# Lamps/ Fixture '[E']]]>0,Table_PREInspection[[#This Row],['# Lamps/ Fixture '[E']]] & \"L - \" & Table_PREInspection[[#This Row],[Fixture/ Lamp Wattage '[E']]] & \"W\" & IF(Table_PREInspection[[#This Row],[Ballast/ Driver '[E']]]<>\"\",\" - \" & Table_PREInspection[[#This Row],[Ballast/ Driver '[E']]],\"\"),Table_PREInspection[[#This Row],[Fixture Wattage '[E']]] & \"W\"),\"]\",\n  IF(AND(Table_PREInspection[[#This Row],[Controls '[E']]]<>\"\",Table_PREInspection[[#This Row],[Controls '[E']]]<>\"No Controls\"),\" - \" & Table_PREInspection[[#This Row],[Controls '[E']]],\"\")\n  ),\n\"\"),\"\")","v":""}]
[null,{"$f":"IFERROR(IF(OR(Table_PREInspection[[#This Row],[Line]]=\"\",INDEX(Table_PREInfo[],Table_PREInspection[[#This Row],[Line]],B$3)=\"\"),\"\",INDEX(Table_PREInfo[],Table_PREInspection[[#This Row],[Line]],B$3)),\"\")","v":""},{"$f":"IFERROR(IF(OR(Table_PREInspection[[#This Row],[Line]]=\"\",INDEX(Table_PREInfo[],Table_PREInspection[[#This Row],[Line]],C$3)=\"\"),\"\",INDEX(Table_PREInfo[],Table_PREInspection[[#This Row],[Line]],C$3)),\"\")","v":""},{"$f":"IFERROR(IF(OR(Table_PREInspection[[#This Row],[Line]]=\"\",INDEX(Table_PREInfo[],Table_PREInspection[[#This Row],[Line]],D$3)=\"\"),\"\",INDEX(Table_PREInfo[],Table_PREInspection[[#This Row],[Line]],D$3)),\"\")","v":""},null,{"$f":"IFERROR(IF(OR(Table_PREInspection[[#This Row],[Line]]=\"\",INDEX(Table_PREInfo[],Table_PREInspection[[#This Row],[Line]],F$3)=\"\"),\"\",INDEX(Table_PREInfo[],Table_PREInspection[[#This Row],[Line]],F$3)),\"\")","v":""},{"$f":"IFERROR(IF(OR(Table_PREInspection[[#This Row],[Line]]=\"\",INDEX(Table_PREInfo[],Table_PREInspection[[#This Row],[Line]],G$3)=\"\"),\"\",INDEX(Table_PREInfo[],Table_PREInspection[[#This Row],[Line]],G$3)),\"\")","v":""},{"$f":"IFERROR(IF(OR(Table_PREInspection[[#This Row],[Line]]=\"\",INDEX(Table_PREInfo[],Table_PREInspection[[#This Row],[Line]],H$3)=\"\"),\"\",INDEX(Table_PREInfo[],Table_PREInspection[[#This Row],[Line]],H$3)),\"\")","v":""},{"$f":"IFERROR(IF(OR(Table_PREInspection[[#This Row],[Line]]=\"\",INDEX(Table_PREInfo[],Table_PREInspection[[#This Row],[Line]],I$3)=\"\"),\"\",INDEX(Table_PREInfo[],Table_PREInspection[[#This Row],[Line]],I$3)),\"\")","v":""},{"$f":"IFERROR(IF(OR(Table_PREInspection[[#This Row],[Line]]=\"\",INDEX(Table_PREInfo[],Table_PREInspection[[#This Row],[Line]],J$3)=\"\"),\"\",INDEX(Table_PREInfo[],Table_PREInspection[[#This Row],[Line]],J$3)),\"\")","v":""},{"$f":"IFERROR(\nIFERROR(OFFSET(Table_TypWattage[[#Headers],[Technology]],MATCH(Table_PREInspection[[#This Row],[Fixture Technology '[E']]] & IF(Table_PREInspection[[#This Row],[Ballast/ Driver '[E']]]<>\"\",\" - \" & Table_PREInspection[[#This Row],[Ballast/ Driver '[E']]],\"\"),Table_TypWattage[Technology],0)+MATCH(Table_PREInspection[[#This Row],[Fixture/ Lamp Wattage '[E']]],INDIRECT(SUBSTITUTE(SUBSTITUTE(Table_PREInspection[[#This Row],[Fixture Technology '[E']]],\" \",\"_\"),\"-\",\"_\")),0)-1,MATCH(Table_PREInspection[[#This Row],['# Lamps/ Fixture '[E']]],'Measure Tables'!$Q$2:$V$2,0)+1),IF(Table_PREInspection[[#This Row],[Schedule]]<>\"\",IF(AND(Table_PREInspection[[#This Row],['# Lamps/ Fixture '[E']]]<>\"\",Table_PREInspection[[#This Row],['# Lamps/ Fixture '[E']]]>0,Table_PREInspection[[#This Row],[Fixture/ Lamp Wattage '[E']]]>0),Table_PREInspection[[#This Row],['# Lamps/ Fixture '[E']]]*Table_PREInspection[[#This Row],[Fixture/ Lamp Wattage '[E']]],Table_PREInspection[[#This Row],[Fixture/ Lamp Wattage '[E']]]),\"\")),\n\"\")","v":""},{"$f":"IFERROR(IF(OR(Table_PREInspection[[#This Row],[Line]]=\"\",INDEX(Table_PREInfo[],Table_PREInspection[[#This Row],[Line]],L$3)=\"\"),\"\",INDEX(Table_PREInfo[],Table_PREInspection[[#This Row],[Line]],L$3)),\"\")","v":""},{"$f":"IFERROR(IF(OR(Table_PREInspection[[#This Row],[Line]]=\"\",INDEX(Table_PREInfo[],Table_PREInspection[[#This Row],[Line]],M$3)=\"\"),\"\",INDEX(Table_PREInfo[],Table_PREInspection[[#This Row],[Line]],M$3)),\"\")","v":""},{"$f":"IFERROR(IF(Table_PREInspection[[#This Row],[Interior/ Exterior]]<>\"\",\n  CONCATENATE(\n  Table_PREInspection[[#This Row],[Interior/ Exterior]],\": \" &\n  Table_PREInspection[[#This Row],[Fixture Technology '[E']]],\n  \" - \",Table_PREInspection[[#This Row],[Fixture Type '[E']]],\" [\",\n  IF(Table_PREInspection[[#This Row],['# Lamps/ Fixture '[E']]]>0,Table_PREInspection[[#This Row],['# Lamps/ Fixture '[E']]] & \"L - \" & Table_PREInspection[[#This Row],[Fixture/ Lamp Wattage '[E']]] & \"W\" & IF(Table_PREInspection[[#This Row],[Ballast/ Driver '[E']]]<>\"\",\" - \" & Table_PREInspection[[#This Row],[Ballast/ Driver '[E']]],\"\"),Table_PREInspection[[#This Row],[Fixture Wattage '[E']]] & \"W\"),\"]\",\n  IF(AND(Table_PREInspection[[#This Row],[Controls '[E']]]<>\"\",Table_PREInspection[[#This Row],[Controls '[E']]]<>\"No Controls\"),\" - \" & Table_PREInspection[[#This Row],[Controls '[E']]],\"\")\n  ),\n\"\"),\"\")","v":""}]
[null,{"$f":"IFERROR(IF(OR(Table_PREInspection[[#This Row],[Line]]=\"\",INDEX(Table_PREInfo[],Table_PREInspection[[#This Row],[Line]],B$3)=\"\"),\"\",INDEX(Table_PREInfo[],Table_PREInspection[[#This Row],[Line]],B$3)),\"\")","v":""},{"$f":"IFERROR(IF(OR(Table_PREInspection[[#This Row],[Line]]=\"\",INDEX(Table_PREInfo[],Table_PREInspection[[#This Row],[Line]],C$3)=\"\"),\"\",INDEX(Table_PREInfo[],Table_PREInspection[[#This Row],[Line]],C$3)),\"\")","v":""},{"$f":"IFERROR(IF(OR(Table_PREInspection[[#This Row],[Line]]=\"\",INDEX(Table_PREInfo[],Table_PREInspection[[#This Row],[Line]],D$3)=\"\"),\"\",INDEX(Table_PREInfo[],Table_PREInspection[[#This Row],[Line]],D$3)),\"\")","v":""},null,{"$f":"IFERROR(IF(OR(Table_PREInspection[[#This Row],[Line]]=\"\",INDEX(Table_PREInfo[],Table_PREInspection[[#This Row],[Line]],F$3)=\"\"),\"\",INDEX(Table_PREInfo[],Table_PREInspection[[#This Row],[Line]],F$3)),\"\")","v":""},{"$f":"IFERROR(IF(OR(Table_PREInspection[[#This Row],[Line]]=\"\",INDEX(Table_PREInfo[],Table_PREInspection[[#This Row],[Line]],G$3)=\"\"),\"\",INDEX(Table_PREInfo[],Table_PREInspection[[#This Row],[Line]],G$3)),\"\")","v":""},{"$f":"IFERROR(IF(OR(Table_PREInspection[[#This Row],[Line]]=\"\",INDEX(Table_PREInfo[],Table_PREInspection[[#This Row],[Line]],H$3)=\"\"),\"\",INDEX(Table_PREInfo[],Table_PREInspection[[#This Row],[Line]],H$3)),\"\")","v":""},{"$f":"IFERROR(IF(OR(Table_PREInspection[[#This Row],[Line]]=\"\",INDEX(Table_PREInfo[],Table_PREInspection[[#This Row],[Line]],I$3)=\"\"),\"\",INDEX(Table_PREInfo[],Table_PREInspection[[#This Row],[Line]],I$3)),\"\")","v":""},{"$f":"IFERROR(IF(OR(Table_PREInspection[[#This Row],[Line]]=\"\",INDEX(Table_PREInfo[],Table_PREInspection[[#This Row],[Line]],J$3)=\"\"),\"\",INDEX(Table_PREInfo[],Table_PREInspection[[#This Row],[Line]],J$3)),\"\")","v":""},{"$f":"IFERROR(\nIFERROR(OFFSET(Table_TypWattage[[#Headers],[Technology]],MATCH(Table_PREInspection[[#This Row],[Fixture Technology '[E']]] & IF(Table_PREInspection[[#This Row],[Ballast/ Driver '[E']]]<>\"\",\" - \" & Table_PREInspection[[#This Row],[Ballast/ Driver '[E']]],\"\"),Table_TypWattage[Technology],0)+MATCH(Table_PREInspection[[#This Row],[Fixture/ Lamp Wattage '[E']]],INDIRECT(SUBSTITUTE(SUBSTITUTE(Table_PREInspection[[#This Row],[Fixture Technology '[E']]],\" \",\"_\"),\"-\",\"_\")),0)-1,MATCH(Table_PREInspection[[#This Row],['# Lamps/ Fixture '[E']]],'Measure Tables'!$Q$2:$V$2,0)+1),IF(Table_PREInspection[[#This Row],[Schedule]]<>\"\",IF(AND(Table_PREInspection[[#This Row],['# Lamps/ Fixture '[E']]]<>\"\",Table_PREInspection[[#This Row],['# Lamps/ Fixture '[E']]]>0,Table_PREInspection[[#This Row],[Fixture/ Lamp Wattage '[E']]]>0),Table_PREInspection[[#This Row],['# Lamps/ Fixture '[E']]]*Table_PREInspection[[#This Row],[Fixture/ Lamp Wattage '[E']]],Table_PREInspection[[#This Row],[Fixture/ Lamp Wattage '[E']]]),\"\")),\n\"\")","v":""},{"$f":"IFERROR(IF(OR(Table_PREInspection[[#This Row],[Line]]=\"\",INDEX(Table_PREInfo[],Table_PREInspection[[#This Row],[Line]],L$3)=\"\"),\"\",INDEX(Table_PREInfo[],Table_PREInspection[[#This Row],[Line]],L$3)),\"\")","v":""},{"$f":"IFERROR(IF(OR(Table_PREInspection[[#This Row],[Line]]=\"\",INDEX(Table_PREInfo[],Table_PREInspection[[#This Row],[Line]],M$3)=\"\"),\"\",INDEX(Table_PREInfo[],Table_PREInspection[[#This Row],[Line]],M$3)),\"\")","v":""},{"$f":"IFERROR(IF(Table_PREInspection[[#This Row],[Interior/ Exterior]]<>\"\",\n  CONCATENATE(\n  Table_PREInspection[[#This Row],[Interior/ Exterior]],\": \" &\n  Table_PREInspection[[#This Row],[Fixture Technology '[E']]],\n  \" - \",Table_PREInspection[[#This Row],[Fixture Type '[E']]],\" [\",\n  IF(Table_PREInspection[[#This Row],['# Lamps/ Fixture '[E']]]>0,Table_PREInspection[[#This Row],['# Lamps/ Fixture '[E']]] & \"L - \" & Table_PREInspection[[#This Row],[Fixture/ Lamp Wattage '[E']]] & \"W\" & IF(Table_PREInspection[[#This Row],[Ballast/ Driver '[E']]]<>\"\",\" - \" & Table_PREInspection[[#This Row],[Ballast/ Driver '[E']]],\"\"),Table_PREInspection[[#This Row],[Fixture Wattage '[E']]] & \"W\"),\"]\",\n  IF(AND(Table_PREInspection[[#This Row],[Controls '[E']]]<>\"\",Table_PREInspection[[#This Row],[Controls '[E']]]<>\"No Controls\"),\" - \" & Table_PREInspection[[#This Row],[Controls '[E']]],\"\")\n  ),\n\"\"),\"\")","v":""}]
[null,{"$f":"IFERROR(IF(OR(Table_PREInspection[[#This Row],[Line]]=\"\",INDEX(Table_PREInfo[],Table_PREInspection[[#This Row],[Line]],B$3)=\"\"),\"\",INDEX(Table_PREInfo[],Table_PREInspection[[#This Row],[Line]],B$3)),\"\")","v":""},{"$f":"IFERROR(IF(OR(Table_PREInspection[[#This Row],[Line]]=\"\",INDEX(Table_PREInfo[],Table_PREInspection[[#This Row],[Line]],C$3)=\"\"),\"\",INDEX(Table_PREInfo[],Table_PREInspection[[#This Row],[Line]],C$3)),\"\")","v":""},{"$f":"IFERROR(IF(OR(Table_PREInspection[[#This Row],[Line]]=\"\",INDEX(Table_PREInfo[],Table_PREInspection[[#This Row],[Line]],D$3)=\"\"),\"\",INDEX(Table_PREInfo[],Table_PREInspection[[#This Row],[Line]],D$3)),\"\")","v":""},null,{"$f":"IFERROR(IF(OR(Table_PREInspection[[#This Row],[Line]]=\"\",INDEX(Table_PREInfo[],Table_PREInspection[[#This Row],[Line]],F$3)=\"\"),\"\",INDEX(Table_PREInfo[],Table_PREInspection[[#This Row],[Line]],F$3)),\"\")","v":""},{"$f":"IFERROR(IF(OR(Table_PREInspection[[#This Row],[Line]]=\"\",INDEX(Table_PREInfo[],Table_PREInspection[[#This Row],[Line]],G$3)=\"\"),\"\",INDEX(Table_PREInfo[],Table_PREInspection[[#This Row],[Line]],G$3)),\"\")","v":""},{"$f":"IFERROR(IF(OR(Table_PREInspection[[#This Row],[Line]]=\"\",INDEX(Table_PREInfo[],Table_PREInspection[[#This Row],[Line]],H$3)=\"\"),\"\",INDEX(Table_PREInfo[],Table_PREInspection[[#This Row],[Line]],H$3)),\"\")","v":""},{"$f":"IFERROR(IF(OR(Table_PREInspection[[#This Row],[Line]]=\"\",INDEX(Table_PREInfo[],Table_PREInspection[[#This Row],[Line]],I$3)=\"\"),\"\",INDEX(Table_PREInfo[],Table_PREInspection[[#This Row],[Line]],I$3)),\"\")","v":""},{"$f":"IFERROR(IF(OR(Table_PREInspection[[#This Row],[Line]]=\"\",INDEX(Table_PREInfo[],Table_PREInspection[[#This Row],[Line]],J$3)=\"\"),\"\",INDEX(Table_PREInfo[],Table_PREInspection[[#This Row],[Line]],J$3)),\"\")","v":""},{"$f":"IFERROR(\nIFERROR(OFFSET(Table_TypWattage[[#Headers],[Technology]],MATCH(Table_PREInspection[[#This Row],[Fixture Technology '[E']]] & IF(Table_PREInspection[[#This Row],[Ballast/ Driver '[E']]]<>\"\",\" - \" & Table_PREInspection[[#This Row],[Ballast/ Driver '[E']]],\"\"),Table_TypWattage[Technology],0)+MATCH(Table_PREInspection[[#This Row],[Fixture/ Lamp Wattage '[E']]],INDIRECT(SUBSTITUTE(SUBSTITUTE(Table_PREInspection[[#This Row],[Fixture Technology '[E']]],\" \",\"_\"),\"-\",\"_\")),0)-1,MATCH(Table_PREInspection[[#This Row],['# Lamps/ Fixture '[E']]],'Measure Tables'!$Q$2:$V$2,0)+1),IF(Table_PREInspection[[#This Row],[Schedule]]<>\"\",IF(AND(Table_PREInspection[[#This Row],['# Lamps/ Fixture '[E']]]<>\"\",Table_PREInspection[[#This Row],['# Lamps/ Fixture '[E']]]>0,Table_PREInspection[[#This Row],[Fixture/ Lamp Wattage '[E']]]>0),Table_PREInspection[[#This Row],['# Lamps/ Fixture '[E']]]*Table_PREInspection[[#This Row],[Fixture/ Lamp Wattage '[E']]],Table_PREInspection[[#This Row],[Fixture/ Lamp Wattage '[E']]]),\"\")),\n\"\")","v":""},{"$f":"IFERROR(IF(OR(Table_PREInspection[[#This Row],[Line]]=\"\",INDEX(Table_PREInfo[],Table_PREInspection[[#This Row],[Line]],L$3)=\"\"),\"\",INDEX(Table_PREInfo[],Table_PREInspection[[#This Row],[Line]],L$3)),\"\")","v":""},{"$f":"IFERROR(IF(OR(Table_PREInspection[[#This Row],[Line]]=\"\",INDEX(Table_PREInfo[],Table_PREInspection[[#This Row],[Line]],M$3)=\"\"),\"\",INDEX(Table_PREInfo[],Table_PREInspection[[#This Row],[Line]],M$3)),\"\")","v":""},{"$f":"IFERROR(IF(Table_PREInspection[[#This Row],[Interior/ Exterior]]<>\"\",\n  CONCATENATE(\n  Table_PREInspection[[#This Row],[Interior/ Exterior]],\": \" &\n  Table_PREInspection[[#This Row],[Fixture Technology '[E']]],\n  \" - \",Table_PREInspection[[#This Row],[Fixture Type '[E']]],\" [\",\n  IF(Table_PREInspection[[#This Row],['# Lamps/ Fixture '[E']]]>0,Table_PREInspection[[#This Row],['# Lamps/ Fixture '[E']]] & \"L - \" & Table_PREInspection[[#This Row],[Fixture/ Lamp Wattage '[E']]] & \"W\" & IF(Table_PREInspection[[#This Row],[Ballast/ Driver '[E']]]<>\"\",\" - \" & Table_PREInspection[[#This Row],[Ballast/ Driver '[E']]],\"\"),Table_PREInspection[[#This Row],[Fixture Wattage '[E']]] & \"W\"),\"]\",\n  IF(AND(Table_PREInspection[[#This Row],[Controls '[E']]]<>\"\",Table_PREInspection[[#This Row],[Controls '[E']]]<>\"No Controls\"),\" - \" & Table_PREInspection[[#This Row],[Controls '[E']]],\"\")\n  ),\n\"\"),\"\")","v":""}]

{"sheet":"Post-Install Information","index":15,"n_rows":44,"n_cols":31,"rows_kept":44,"cut":false,"hidden":true,"merged":[[1,0,1,5],[1,7,1,15],[1,17,1,28]]}
[null,"HIDE","HIDE",null,null,null,null,null,null,null,null,null,null,null,null,"HIDE",null,null,null,null,null,null,null,null,null,"HIDE"]
["Zone Information",null,null,null,null,null,null,"Existing Fixture Information [E]",null,null,null,null,null,null,null,null,null,"Proposed Fixture Information [P]"]
[1,2,3,4,5,6,7,8,9,10,11,12,13,14,15,16,17,18,19,20,21,22,23,24,25,26,27,28,29,30,31]
["Line","IsActive","LI (Filled)","Schedule","Interior/ Exterior","Space Description","1","Fixture Qty [E]","Fixture Technology [E]","# Lamps/ Fixture [E]","Fixture/ Lamp Wattage [E]","Ballast/ Driver [E]","Fixture Wattage [E]","Fixture Type [E]","Controls [E]","Fixture Description [E]","2","Fixture Qty [P]","Fixture Technology [P]","# Lamps/ Fixture [P]","Fixture/ Lamp Wattage [P]","Ballast/ Driver [P]","Fixture Wattage [P]","Fixture Type [P]","Controls [P]","Fixture Description [P]","Manufacturer [P]","Model Number [P]","DLC or ES Certification [P]","3","Notes"]
[{"$f":"IF($A4=\"Line\",1,MAX($A$4:$A4)+1)","v":1},{"$f":"IF(OR(Table_POSTInfo[[#This Row],[Line]]=\"\",INDEX(Table_PREInfo[],Table_POSTInfo[[#This Row],[Line]],B$3)=\"\"),\"\",INDEX(Table_PREInfo[],Table_POSTInfo[[#This Row],[Line]],B$3))","v":false},{"$f":"IF(OR(Table_POSTInfo[[#This Row],[Line]]=\"\",INDEX(Table_PREInfo[],Table_POSTInfo[[#This Row],[Line]],C$3)=\"\"),\"\",INDEX(Table_PREInfo[],Table_POSTInfo[[#This Row],[Line]],C$3))","v":""},{"$f":"IF(ISNUMBER(MATCH(Table_POSTInfo[[#This Row],[Line]],Table_PREInspection[Line],0)),INDEX(Table_PREInspection[],MATCH(Table_POSTInfo[[#This Row],[Line]],Table_PREInspection[Line],0),MATCH('Post-Install Information'!D$3,'Pre-Install Inspection'!$A$3:$N$3,0)),IF(OR(Table_POSTInfo[[#This Row],[Line]]=\"\",INDEX(Table_PREInfo[],Table_POSTInfo[[#This Row],[Line]],D$3)=\"\"),\"\",INDEX(Table_PREInfo[],Table_POSTInfo[[#This Row],[Line]],D$3)))","v":""},{"$f":"IF(ISNUMBER(MATCH(Table_POSTInfo[[#This Row],[Line]],Table_PREInspection[Line],0)),INDEX(Table_PREInspection[],MATCH(Table_POSTInfo[[#This Row],[Line]],Table_PREInspection[Line],0),MATCH('Post-Install Information'!E$3,'Pre-Install Inspection'!$A$3:$N$3,0)),IF(OR(Table_POSTInfo[[#This Row],[Line]]=\"\",INDEX(Table_PREInfo[],Table_POSTInfo[[#This Row],[Line]],E$3)=\"\"),\"\",INDEX(Table_PREInfo[],Table_POSTInfo[[#This Row],[Line]],E$3)))","v":""},{"$f":"IF(ISNUMBER(MATCH(Table_POSTInfo[[#This Row],[Line]],Table_PREInspection[Line],0)),INDEX(Table_PREInspection[],MATCH(Table_POSTInfo[[#This Row],[Line]],Table_PREInspection[Line],0),MATCH('Post-Install Information'!F$3,'Pre-Install Inspection'!$A$3:$N$3,0)),IF(OR(Table_POSTInfo[[#This Row],[Line]]=\"\",INDEX(Table_PREInfo[],Table_POSTInfo[[#This Row],[Line]],F$3)=\"\"),\"\",INDEX(Table_PREInfo[],Table_POSTInfo[[#This Row],[Line]],F$3)))","v":""},null,{"$f":"IF(ISNUMBER(MATCH(Table_POSTInfo[[#This Row],[Line]],Table_PREInspection[Line],0)),INDEX(Table_PREInspection[],MATCH(Table_POSTInfo[[#This Row],[Line]],Table_PREInspection[Line],0),MATCH('Post-Install Information'!H$3,'Pre-Install Inspection'!$A$3:$N$3,0)),IF(OR(Table_POSTInfo[[#This Row],[Line]]=\"\",INDEX(Table_PREInfo[],Table_POSTInfo[[#This Row],[Line]],H$3)=\"\"),\"\",INDEX(Table_PREInfo[],Table_POSTInfo[[#This Row],[Line]],H$3)))","v":""},{"$f":"IF(ISNUMBER(MATCH(Table_POSTInfo[[#This Row],[Line]],Table_PREInspection[Line],0)),INDEX(Table_PREInspection[],MATCH(Table_POSTInfo[[#This Row],[Line]],Table_PREInspection[Line],0),MATCH('Post-Install Information'!I$3,'Pre-Install Inspection'!$A$3:$N$3,0)),IF(OR(Table_POSTInfo[[#This Row],[Line]]=\"\",INDEX(Table_PREInfo[],Table_POSTInfo[[#This Row],[Line]],I$3)=\"\"),\"\",INDEX(Table_PREInfo[],Table_POSTInfo[[#This Row],[Line]],I$3)))","v":""},{"$f":"IF(ISNUMBER(MATCH(Table_POSTInfo[[#This Row],[Line]],Table_PREInspection[Line],0)),INDEX(Table_PREInspection[],MATCH(Table_POSTInfo[[#This Row],[Line]],Table_PREInspection[Line],0),MATCH('Post-Install Information'!J$3,'Pre-Install Inspection'!$A$3:$N$3,0)),IF(OR(Table_POSTInfo[[#This Row],[Line]]=\"\",INDEX(Table_PREInfo[],Table_POSTInfo[[#This Row],[Line]],J$3)=\"\"),\"\",INDEX(Table_PREInfo[],Table_POSTInfo[[#This Row],[Line]],J$3)))","v":""},{"$f":"IF(ISNUMBER(MATCH(Table_POSTInfo[[#This Row],[Line]],Table_PREInspection[Line],0)),INDEX(Table_PREInspection[],MATCH(Table_POSTInfo[[#This Row],[Line]],Table_PREInspection[Line],0),MATCH('Post-Install Information'!K$3,'Pre-Install Inspection'!$A$3:$N$3,0)),IF(OR(Table_POSTInfo[[#This Row],[Line]]=\"\",INDEX(Table_PREInfo[],Table_POSTInfo[[#This Row],[Line]],K$3)=\"\"),\"\",INDEX(Table_PREInfo[],Table_POSTInfo[[#This Row],[Line]],K$3)))","v":""},{"$f":"IF(ISNUMBER(MATCH(Table_POSTInfo[[#This Row],[Line]],Table_PREInspection[Line],0)),INDEX(Table_PREInspection[],MATCH(Table_POSTInfo[[#This Row],[Line]],Table_PREInspection[Line],0),MATCH('Post-Install Information'!L$3,'Pre-Install Inspection'!$A$3:$N$3,0)),IF(OR(Table_POSTInfo[[#This Row],[Line]]=\"\",INDEX(Table_PREInfo[],Table_POSTInfo[[#This Row],[Line]],L$3)=\"\"),\"\",INDEX(Table_PREInfo[],Table_POSTInfo[[#This Row],[Line]],L$3)))","v":""},{"$f":"IF(ISNUMBER(MATCH(Table_POSTInfo[[#This Row],[Line]],Table_PREInspection[Line],0)),INDEX(Table_PREInspection[],MATCH(Table_POSTInfo[[#This Row],[Line]],Table_PREInspection[Line],0),MATCH('Post-Install Information'!M$3,'Pre-Install Inspection'!$A$3:$N$3,0)),IF(OR(Table_POSTInfo[[#This Row],[Line]]=\"\",INDEX(Table_PREInfo[],Table_POSTInfo[[#This Row],[Line]],M$3)=\"\"),\"\",INDEX(Table_PREInfo[],Table_POSTInfo[[#This Row],[Line]],M$3)))","v":""},{"$f":"IF(ISNUMBER(MATCH(Table_POSTInfo[[#This Row],[Line]],Table_PREInspection[Line],0)),INDEX(Table_PREInspection[],MATCH(Table_POSTInfo[[#This Row],[Line]],Table_PREInspection[Line],0),MATCH('Post-Install Information'!N$3,'Pre-Install Inspection'!$A$3:$N$3,0)),IF(OR(Table_POSTInfo[[#This Row],[Line]]=\"\",INDEX(Table_PREInfo[],Table_POSTInfo[[#This Row],[Line]],N$3)=\"\"),\"\",INDEX(Table_PREInfo[],Table_POSTInfo[[#This Row],[Line]],N$3)))","v":""},{"$f":"IF(ISNUMBER(MATCH(Table_POSTInfo[[#This Row],[Line]],Table_PREInspection[Line],0)),INDEX(Table_PREInspection[],MATCH(Table_POSTInfo[[#This Row],[Line]],Table_PREInspection[Line],0),MATCH('Post-Install Information'!O$3,'Pre-Install Inspection'!$A$3:$N$3,0)),IF(OR(Table_POSTInfo[[#This Row],[Line]]=\"\",INDEX(Table_PREInfo[],Table_POSTInfo[[#This Row],[Line]],O$3)=\"\"),\"\",INDEX(Table_PREInfo[],Table_POSTInfo[[#This Row],[Line]],O$3)))","v":""},{"$f":"IF(ISNUMBER(MATCH(Table_POSTInfo[[#This Row],[Line]],Table_PREInspection[Line],0)),INDEX(Table_PREInspection[],MATCH(Table_POSTInfo[[#This Row],[Line]],Table_PREInspection[Line],0),MATCH('Post-Install Information'!P$3,'Pre-Install Inspection'!$A$3:$N$3,0)),IF(OR(Table_POSTInfo[[#This Row],[Line]]=\"\",INDEX(Table_PREInfo[],Table_POSTInfo[[#This Row],[Line]],P$3)=\"\"),\"\",INDEX(Table_PREInfo[],Table_POSTInfo[[#This Row],[Line]],P$3)))","v":""},null,{"$f":"IF(Table_PREInfo[[#This Row],[Fixture Qty '[P']]]<>0,Table_PREInfo[[#This Row],[Fixture Qty '[P']]],IF(Table_POSTInfo[[#This Row],[Fixture Qty '[E']]]<>0,Table_POSTInfo[[#This Row],[Fixture Qty '[E']]],\"\"))","v":""},{"$f":"IF(OR(Table_POSTInfo[[#This Row],[Line]]=\"\",INDEX(Table_PREInfo[],Table_POSTInfo[[#This Row],[Line]],S$3)=\"\"),\"\",INDEX(Table_PREInfo[],Table_POSTInfo[[#This Row],[Line]],S$3))","v":""},{"$f":"IF(OR(Table_POSTInfo[[#This Row],[Line]]=\"\",INDEX(Table_PREInfo[],Table_POSTInfo[[#This Row],[Line]],T$3)=\"\"),\"\",INDEX(Table_PREInfo[],Table_POSTInfo[[#This Row],[Line]],T$3))","v":""},{"$f":"IF(OR(Table_POSTInfo[[#This Row],[Line]]=\"\",INDEX(Table_PREInfo[],Table_POSTInfo[[#This Row],[Line]],U$3)=\"\"),\"\",INDEX(Table_PREInfo[],Table_POSTInfo[[#This Row],[Line]],U$3))","v":""},{"$f":"IF(OR(Table_POSTInfo[[#This Row],[Line]]=\"\",INDEX(Table_PREInfo[],Table_POSTInfo[[#This Row],[Line]],V$3)=\"\"),\"\",INDEX(Table_PREInfo[],Table_POSTInfo[[#This Row],[Line]],V$3))","v":""},{"$f":"IFERROR(\nIFERROR(OFFSET(Table_TypWattage[[#Headers],[Technology]],MATCH(Table_POSTInfo[[#This Row],[Fixture Technology '[P']]],Table_TypWattage[Technology],0)+MATCH(Table_POSTInfo[[#This Row],[Fixture/ Lamp Wattage '[P']]],INDIRECT(SUBSTITUTE(SUBSTITUTE(Table_POSTInfo[[#This Row],[Fixture Technology '[P']]],\" \",\"_\"),\"-\",\"_\")),0)-1,MATCH(Table_POSTInfo[[#This Row],['# Lamps/ Fixture '[P']]],'Measure Tables'!$Q$2:$V$2,0)+1),IF(Table_POSTInfo[[#This Row],[IsActive]],IF(AND(Table_POSTInfo[[#This Row],['# Lamps/ Fixture '[P']]]<>\"\",Table_POSTInfo[[#This Row],['# Lamps/ Fixture '[P']]]>0,Table_POSTInfo[[#This Row],[Fixture/ Lamp Wattage '[P']]]>0),Table_POSTInfo[[#This Row],['# Lamps/ Fixture '[P']]]*Table_POSTInfo[[#This Row],[Fixture/ Lamp Wattage '[P']]],Table_POSTInfo[[#This Row],[Fixture/ Lamp Wattage '[P']]]),\"\")),\n\"\")","v":""},{"$f":"IF(OR(Table_POSTInfo[[#This Row],[Line]]=\"\",INDEX(Table_PREInfo[],Table_POSTInfo[[#This Row],[Line]],X$3)=\"\"),\"\",INDEX(Table_PREInfo[],Table_POSTInfo[[#This Row],[Line]],X$3))","v":""},{"$f":"IF(OR(Table_POSTInfo[[#This Row],[Line]]=\"\",INDEX(Table_PREInfo[],Table_POSTInfo[[#This Row],[Line]],Y$3)=\"\"),\"\",INDEX(Table_PREInfo[],Table_POSTInfo[[#This Row],[Line]],Y$3))","v":""},{"$f":"IFERROR(IF(Table_POSTInfo[[#This Row],[Interior/ Exterior]]<>\"\",\n  CONCATENATE(\n  Table_POSTInfo[[#This Row],[Fixture Technology '[P']]],\n  \" - \",Table_POSTInfo[[#This Row],[Fixture Type '[P']]],\" [\",\n  IF(Table_POSTInfo[[#This Row],['# Lamps/ Fixture '[P']]]>0,Table_POSTInfo[[#This Row],['# Lamps/ Fixture '[P']]] & \"L - \" & Table_POSTInfo[[#This Row],[Fixture/ Lamp Wattage '[P']]] & \"W\" & IF(Table_POSTInfo[[#This Row],[Ballast/ Driver '[P']]]<>\"\",\" - \" & Table_POSTInfo[[#This Row],[Ballast/ Driver '[P']]],\"\"),Table_POSTInfo[[#This Row],[Fixture Wattage '[P']]] & \"W\"),\"]\",\n  IF(AND(Table_POSTInfo[[#This Row],[Controls '[P']]]<>\"\",Table_POSTInfo[[#This Row],[Controls '[P']]]<>\"No Controls\"),\" - \" & Table_POSTInfo[[#This Row],[Controls '[P']]],\"\")\n  ),\n\"\"),\"\")","v":""},{"$f":"IF(OR(Table_POSTInfo[[#This Row],[Line]]=\"\",INDEX(Table_PREInfo[],Table_POSTInfo[[#This Row],[Line]],AA$3)=\"\"),\"\",INDEX(Table_PREInfo[],Table_POSTInfo[[#This Row],[Line]],AA$3))","v":""},{"$f":"IF(OR(Table_POSTInfo[[#This Row],[Line]]=\"\",INDEX(Table_PREInfo[],Table_POSTInfo[[#This Row],[Line]],AB$3)=\"\"),\"\",INDEX(Table_PREInfo[],Table_POSTInfo[[#This Row],[Line]],AB$3))","v":""},{"$f":"IF(OR(Table_POSTInfo[[#This Row],[Line]]=\"\",INDEX(Table_PREInfo[],Table_POSTInfo[[#This Row],[Line]],AC$3)=\"\"),\"\",INDEX(Table_PREInfo[],Table_POSTInfo[[#This Row],[Line]],AC$3))","v":""}]
[{"$f":"IF($A5=\"Line\",1,MAX($A$4:$A5)+1)","v":2},{"$f":"IF(OR(Table_POSTInfo[[#This Row],[Line]]=\"\",INDEX(Table_PREInfo[],Table_POSTInfo[[#This Row],[Line]],B$3)=\"\"),\"\",INDEX(Table_PREInfo[],Table_POSTInfo[[#This Row],[Line]],B$3))","v":false},{"$f":"IF(OR(Table_POSTInfo[[#This Row],[Line]]=\"\",INDEX(Table_PREInfo[],Table_POSTInfo[[#This Row],[Line]],C$3)=\"\"),\"\",INDEX(Table_PREInfo[],Table_POSTInfo[[#This Row],[Line]],C$3))","v":""},{"$f":"IF(ISNUMBER(MATCH(Table_POSTInfo[[#This Row],[Line]],Table_PREInspection[Line],0)),INDEX(Table_PREInspection[],MATCH(Table_POSTInfo[[#This Row],[Line]],Table_PREInspection[Line],0),MATCH('Post-Install Information'!D$3,'Pre-Install Inspection'!$A$3:$N$3,0)),IF(OR(Table_POSTInfo[[#This Row],[Line]]=\"\",INDEX(Table_PREInfo[],Table_POSTInfo[[#This Row],[Line]],D$3)=\"\"),\"\",INDEX(Table_PREInfo[],Table_POSTInfo[[#This Row],[Line]],D$3)))","v":""},{"$f":"IF(ISNUMBER(MATCH(Table_POSTInfo[[#This Row],[Line]],Table_PREInspection[Line],0)),INDEX(Table_PREInspection[],MATCH(Table_POSTInfo[[#This Row],[Line]],Table_PREInspection[Line],0),MATCH('Post-Install Information'!E$3,'Pre-Install Inspection'!$A$3:$N$3,0)),IF(OR(Table_POSTInfo[[#This Row],[Line]]=\"\",INDEX(Table_PREInfo[],Table_POSTInfo[[#This Row],[Line]],E$3)=\"\"),\"\",INDEX(Table_PREInfo[],Table_POSTInfo[[#This Row],[Line]],E$3)))","v":""},{"$f":"IF(ISNUMBER(MATCH(Table_POSTInfo[[#This Row],[Line]],Table_PREInspection[Line],0)),INDEX(Table_PREInspection[],MATCH(Table_POSTInfo[[#This Row],[Line]],Table_PREInspection[Line],0),MATCH('Post-Install Information'!F$3,'Pre-Install Inspection'!$A$3:$N$3,0)),IF(OR(Table_POSTInfo[[#This Row],[Line]]=\"\",INDEX(Table_PREInfo[],Table_POSTInfo[[#This Row],[Line]],F$3)=\"\"),\"\",INDEX(Table_PREInfo[],Table_POSTInfo[[#This Row],[Line]],F$3)))","v":""},null,{"$f":"IF(ISNUMBER(MATCH(Table_POSTInfo[[#This Row],[Line]],Table_PREInspection[Line],0)),INDEX(Table_PREInspection[],MATCH(Table_POSTInfo[[#This Row],[Line]],Table_PREInspection[Line],0),MATCH('Post-Install Information'!H$3,'Pre-Install Inspection'!$A$3:$N$3,0)),IF(OR(Table_POSTInfo[[#This Row],[Line]]=\"\",INDEX(Table_PREInfo[],Table_POSTInfo[[#This Row],[Line]],H$3)=\"\"),\"\",INDEX(Table_PREInfo[],Table_POSTInfo[[#This Row],[Line]],H$3)))","v":""},{"$f":"IF(ISNUMBER(MATCH(Table_POSTInfo[[#This Row],[Line]],Table_PREInspection[Line],0)),INDEX(Table_PREInspection[],MATCH(Table_POSTInfo[[#This Row],[Line]],Table_PREInspection[Line],0),MATCH('Post-Install Information'!I$3,'Pre-Install Inspection'!$A$3:$N$3,0)),IF(OR(Table_POSTInfo[[#This Row],[Line]]=\"\",INDEX(Table_PREInfo[],Table_POSTInfo[[#This Row],[Line]],I$3)=\"\"),\"\",INDEX(Table_PREInfo[],Table_POSTInfo[[#This Row],[Line]],I$3)))","v":""},{"$f":"IF(ISNUMBER(MATCH(Table_POSTInfo[[#This Row],[Line]],Table_PREInspection[Line],0)),INDEX(Table_PREInspection[],MATCH(Table_POSTInfo[[#This Row],[Line]],Table_PREInspection[Line],0),MATCH('Post-Install Information'!J$3,'Pre-Install Inspection'!$A$3:$N$3,0)),IF(OR(Table_POSTInfo[[#This Row],[Line]]=\"\",INDEX(Table_PREInfo[],Table_POSTInfo[[#This Row],[Line]],J$3)=\"\"),\"\",INDEX(Table_PREInfo[],Table_POSTInfo[[#This Row],[Line]],J$3)))","v":""},{"$f":"IF(ISNUMBER(MATCH(Table_POSTInfo[[#This Row],[Line]],Table_PREInspection[Line],0)),INDEX(Table_PREInspection[],MATCH(Table_POSTInfo[[#This Row],[Line]],Table_PREInspection[Line],0),MATCH('Post-Install Information'!K$3,'Pre-Install Inspection'!$A$3:$N$3,0)),IF(OR(Table_POSTInfo[[#This Row],[Line]]=\"\",INDEX(Table_PREInfo[],Table_POSTInfo[[#This Row],[Line]],K$3)=\"\"),\"\",INDEX(Table_PREInfo[],Table_POSTInfo[[#This Row],[Line]],K$3)))","v":""},{"$f":"IF(ISNUMBER(MATCH(Table_POSTInfo[[#This Row],[Line]],Table_PREInspection[Line],0)),INDEX(Table_PREInspection[],MATCH(Table_POSTInfo[[#This Row],[Line]],Table_PREInspection[Line],0),MATCH('Post-Install Information'!L$3,'Pre-Install Inspection'!$A$3:$N$3,0)),IF(OR(Table_POSTInfo[[#This Row],[Line]]=\"\",INDEX(Table_PREInfo[],Table_POSTInfo[[#This Row],[Line]],L$3)=\"\"),\"\",INDEX(Table_PREInfo[],Table_POSTInfo[[#This Row],[Line]],L$3)))","v":""},{"$f":"IF(ISNUMBER(MATCH(Table_POSTInfo[[#This Row],[Line]],Table_PREInspection[Line],0)),INDEX(Table_PREInspection[],MATCH(Table_POSTInfo[[#This Row],[Line]],Table_PREInspection[Line],0),MATCH('Post-Install Information'!M$3,'Pre-Install Inspection'!$A$3:$N$3,0)),IF(OR(Table_POSTInfo[[#This Row],[Line]]=\"\",INDEX(Table_PREInfo[],Table_POSTInfo[[#This Row],[Line]],M$3)=\"\"),\"\",INDEX(Table_PREInfo[],Table_POSTInfo[[#This Row],[Line]],M$3)))","v":""},{"$f":"IF(ISNUMBER(MATCH(Table_POSTInfo[[#This Row],[Line]],Table_PREInspection[Line],0)),INDEX(Table_PREInspection[],MATCH(Table_POSTInfo[[#This Row],[Line]],Table_PREInspection[Line],0),MATCH('Post-Install Information'!N$3,'Pre-Install Inspection'!$A$3:$N$3,0)),IF(OR(Table_POSTInfo[[#This Row],[Line]]=\"\",INDEX(Table_PREInfo[],Table_POSTInfo[[#This Row],[Line]],N$3)=\"\"),\"\",INDEX(Table_PREInfo[],Table_POSTInfo[[#This Row],[Line]],N$3)))","v":""},{"$f":"IF(ISNUMBER(MATCH(Table_POSTInfo[[#This Row],[Line]],Table_PREInspection[Line],0)),INDEX(Table_PREInspection[],MATCH(Table_POSTInfo[[#This Row],[Line]],Table_PREInspection[Line],0),MATCH('Post-Install Information'!O$3,'Pre-Install Inspection'!$A$3:$N$3,0)),IF(OR(Table_POSTInfo[[#This Row],[Line]]=\"\",INDEX(Table_PREInfo[],Table_POSTInfo[[#This Row],[Line]],O$3)=\"\"),\"\",INDEX(Table_PREInfo[],Table_POSTInfo[[#This Row],[Line]],O$3)))","v":""},{"$f":"IF(ISNUMBER(MATCH(Table_POSTInfo[[#This Row],[Line]],Table_PREInspection[Line],0)),INDEX(Table_PREInspection[],MATCH(Table_POSTInfo[[#This Row],[Line]],Table_PREInspection[Line],0),MATCH('Post-Install Information'!P$3,'Pre-Install Inspection'!$A$3:$N$3,0)),IF(OR(Table_POSTInfo[[#This Row],[Line]]=\"\",INDEX(Table_PREInfo[],Table_POSTInfo[[#This Row],[Line]],P$3)=\"\"),\"\",INDEX(Table_PREInfo[],Table_POSTInfo[[#This Row],[Line]],P$3)))","v":""},null,{"$f":"IF(Table_PREInfo[[#This Row],[Fixture Qty '[P']]]<>0,Table_PREInfo[[#This Row],[Fixture Qty '[P']]],IF(Table_POSTInfo[[#This Row],[Fixture Qty '[E']]]<>0,Table_POSTInfo[[#This Row],[Fixture Qty '[E']]],\"\"))","v":""},{"$f":"IF(OR(Table_POSTInfo[[#This Row],[Line]]=\"\",INDEX(Table_PREInfo[],Table_POSTInfo[[#This Row],[Line]],S$3)=\"\"),\"\",INDEX(Table_PREInfo[],Table_POSTInfo[[#This Row],[Line]],S$3))","v":""},{"$f":"IF(OR(Table_POSTInfo[[#This Row],[Line]]=\"\",INDEX(Table_PREInfo[],Table_POSTInfo[[#This Row],[Line]],T$3)=\"\"),\"\",INDEX(Table_PREInfo[],Table_POSTInfo[[#This Row],[Line]],T$3))","v":""},{"$f":"IF(OR(Table_POSTInfo[[#This Row],[Line]]=\"\",INDEX(Table_PREInfo[],Table_POSTInfo[[#This Row],[Line]],U$3)=\"\"),\"\",INDEX(Table_PREInfo[],Table_POSTInfo[[#This Row],[Line]],U$3))","v":""},{"$f":"IF(OR(Table_POSTInfo[[#This Row],[Line]]=\"\",INDEX(Table_PREInfo[],Table_POSTInfo[[#This Row],[Line]],V$3)=\"\"),\"\",INDEX(Table_PREInfo[],Table_POSTInfo[[#This Row],[Line]],V$3))","v":""},{"$f":"IFERROR(\nIFERROR(OFFSET(Table_TypWattage[[#Headers],[Technology]],MATCH(Table_POSTInfo[[#This Row],[Fixture Technology '[P']]],Table_TypWattage[Technology],0)+MATCH(Table_POSTInfo[[#This Row],[Fixture/ Lamp Wattage '[P']]],INDIRECT(SUBSTITUTE(SUBSTITUTE(Table_POSTInfo[[#This Row],[Fixture Technology '[P']]],\" \",\"_\"),\"-\",\"_\")),0)-1,MATCH(Table_POSTInfo[[#This Row],['# Lamps/ Fixture '[P']]],'Measure Tables'!$Q$2:$V$2,0)+1),IF(Table_POSTInfo[[#This Row],[IsActive]],IF(AND(Table_POSTInfo[[#This Row],['# Lamps/ Fixture '[P']]]<>\"\",Table_POSTInfo[[#This Row],['# Lamps/ Fixture '[P']]]>0,Table_POSTInfo[[#This Row],[Fixture/ Lamp Wattage '[P']]]>0),Table_POSTInfo[[#This Row],['# Lamps/ Fixture '[P']]]*Table_POSTInfo[[#This Row],[Fixture/ Lamp Wattage '[P']]],Table_POSTInfo[[#This Row],[Fixture/ Lamp Wattage '[P']]]),\"\")),\n\"\")","v":""},{"$f":"IF(OR(Table_POSTInfo[[#This Row],[Line]]=\"\",INDEX(Table_PREInfo[],Table_POSTInfo[[#This Row],[Line]],X$3)=\"\"),\"\",INDEX(Table_PREInfo[],Table_POSTInfo[[#This Row],[Line]],X$3))","v":""},{"$f":"IF(OR(Table_POSTInfo[[#This Row],[Line]]=\"\",INDEX(Table_PREInfo[],Table_POSTInfo[[#This Row],[Line]],Y$3)=\"\"),\"\",INDEX(Table_PREInfo[],Table_POSTInfo[[#This Row],[Line]],Y$3))","v":""},{"$f":"IFERROR(IF(Table_POSTInfo[[#This Row],[Interior/ Exterior]]<>\"\",\n  CONCATENATE(\n  Table_POSTInfo[[#This Row],[Fixture Technology '[P']]],\n  \" - \",Table_POSTInfo[[#This Row],[Fixture Type '[P']]],\" [\",\n  IF(Table_POSTInfo[[#This Row],['# Lamps/ Fixture '[P']]]>0,Table_POSTInfo[[#This Row],['# Lamps/ Fixture '[P']]] & \"L - \" & Table_POSTInfo[[#This Row],[Fixture/ Lamp Wattage '[P']]] & \"W\" & IF(Table_POSTInfo[[#This Row],[Ballast/ Driver '[P']]]<>\"\",\" - \" & Table_POSTInfo[[#This Row],[Ballast/ Driver '[P']]],\"\"),Table_POSTInfo[[#This Row],[Fixture Wattage '[P']]] & \"W\"),\"]\",\n  IF(AND(Table_POSTInfo[[#This Row],[Controls '[P']]]<>\"\",Table_POSTInfo[[#This Row],[Controls '[P']]]<>\"No Controls\"),\" - \" & Table_POSTInfo[[#This Row],[Controls '[P']]],\"\")\n  ),\n\"\"),\"\")","v":""},{"$f":"IF(OR(Table_POSTInfo[[#This Row],[Line]]=\"\",INDEX(Table_PREInfo[],Table_POSTInfo[[#This Row],[Line]],AA$3)=\"\"),\"\",INDEX(Table_PREInfo[],Table_POSTInfo[[#This Row],[Line]],AA$3))","v":""},{"$f":"IF(OR(Table_POSTInfo[[#This Row],[Line]]=\"\",INDEX(Table_PREInfo[],Table_POSTInfo[[#This Row],[Line]],AB$3)=\"\"),\"\",INDEX(Table_PREInfo[],Table_POSTInfo[[#This Row],[Line]],AB$3))","v":""},{"$f":"IF(OR(Table_POSTInfo[[#This Row],[Line]]=\"\",INDEX(Table_PREInfo[],Table_POSTInfo[[#This Row],[Line]],AC$3)=\"\"),\"\",INDEX(Table_PREInfo[],Table_POSTInfo[[#This Row],[Line]],AC$3))","v":""}]
[{"$f":"IF($A6=\"Line\",1,MAX($A$4:$A6)+1)","v":3},{"$f":"IF(OR(Table_POSTInfo[[#This Row],[Line]]=\"\",INDEX(Table_PREInfo[],Table_POSTInfo[[#This Row],[Line]],B$3)=\"\"),\"\",INDEX(Table_PREInfo[],Table_POSTInfo[[#This Row],[Line]],B$3))","v":false},{"$f":"IF(OR(Table_POSTInfo[[#This Row],[Line]]=\"\",INDEX(Table_PREInfo[],Table_POSTInfo[[#This Row],[Line]],C$3)=\"\"),\"\",INDEX(Table_PREInfo[],Table_POSTInfo[[#This Row],[Line]],C$3))","v":""},{"$f":"IF(ISNUMBER(MATCH(Table_POSTInfo[[#This Row],[Line]],Table_PREInspection[Line],0)),INDEX(Table_PREInspection[],MATCH(Table_POSTInfo[[#This Row],[Line]],Table_PREInspection[Line],0),MATCH('Post-Install Information'!D$3,'Pre-Install Inspection'!$A$3:$N$3,0)),IF(OR(Table_POSTInfo[[#This Row],[Line]]=\"\",INDEX(Table_PREInfo[],Table_POSTInfo[[#This Row],[Line]],D$3)=\"\"),\"\",INDEX(Table_PREInfo[],Table_POSTInfo[[#This Row],[Line]],D$3)))","v":""},{"$f":"IF(ISNUMBER(MATCH(Table_POSTInfo[[#This Row],[Line]],Table_PREInspection[Line],0)),INDEX(Table_PREInspection[],MATCH(Table_POSTInfo[[#This Row],[Line]],Table_PREInspection[Line],0),MATCH('Post-Install Information'!E$3,'Pre-Install Inspection'!$A$3:$N$3,0)),IF(OR(Table_POSTInfo[[#This Row],[Line]]=\"\",INDEX(Table_PREInfo[],Table_POSTInfo[[#This Row],[Line]],E$3)=\"\"),\"\",INDEX(Table_PREInfo[],Table_POSTInfo[[#This Row],[Line]],E$3)))","v":""},{"$f":"IF(ISNUMBER(MATCH(Table_POSTInfo[[#This Row],[Line]],Table_PREInspection[Line],0)),INDEX(Table_PREInspection[],MATCH(Table_POSTInfo[[#This Row],[Line]],Table_PREInspection[Line],0),MATCH('Post-Install Information'!F$3,'Pre-Install Inspection'!$A$3:$N$3,0)),IF(OR(Table_POSTInfo[[#This Row],[Line]]=\"\",INDEX(Table_PREInfo[],Table_POSTInfo[[#This Row],[Line]],F$3)=\"\"),\"\",INDEX(Table_PREInfo[],Table_POSTInfo[[#This Row],[Line]],F$3)))","v":""},null,{"$f":"IF(ISNUMBER(MATCH(Table_POSTInfo[[#This Row],[Line]],Table_PREInspection[Line],0)),INDEX(Table_PREInspection[],MATCH(Table_POSTInfo[[#This Row],[Line]],Table_PREInspection[Line],0),MATCH('Post-Install Information'!H$3,'Pre-Install Inspection'!$A$3:$N$3,0)),IF(OR(Table_POSTInfo[[#This Row],[Line]]=\"\",INDEX(Table_PREInfo[],Table_POSTInfo[[#This Row],[Line]],H$3)=\"\"),\"\",INDEX(Table_PREInfo[],Table_POSTInfo[[#This Row],[Line]],H$3)))","v":""},{"$f":"IF(ISNUMBER(MATCH(Table_POSTInfo[[#This Row],[Line]],Table_PREInspection[Line],0)),INDEX(Table_PREInspection[],MATCH(Table_POSTInfo[[#This Row],[Line]],Table_PREInspection[Line],0),MATCH('Post-Install Information'!I$3,'Pre-Install Inspection'!$A$3:$N$3,0)),IF(OR(Table_POSTInfo[[#This Row],[Line]]=\"\",INDEX(Table_PREInfo[],Table_POSTInfo[[#This Row],[Line]],I$3)=\"\"),\"\",INDEX(Table_PREInfo[],Table_POSTInfo[[#This Row],[Line]],I$3)))","v":""},{"$f":"IF(ISNUMBER(MATCH(Table_POSTInfo[[#This Row],[Line]],Table_PREInspection[Line],0)),INDEX(Table_PREInspection[],MATCH(Table_POSTInfo[[#This Row],[Line]],Table_PREInspection[Line],0),MATCH('Post-Install Information'!J$3,'Pre-Install Inspection'!$A$3:$N$3,0)),IF(OR(Table_POSTInfo[[#This Row],[Line]]=\"\",INDEX(Table_PREInfo[],Table_POSTInfo[[#This Row],[Line]],J$3)=\"\"),\"\",INDEX(Table_PREInfo[],Table_POSTInfo[[#This Row],[Line]],J$3)))","v":""},{"$f":"IF(ISNUMBER(MATCH(Table_POSTInfo[[#This Row],[Line]],Table_PREInspection[Line],0)),INDEX(Table_PREInspection[],MATCH(Table_POSTInfo[[#This Row],[Line]],Table_PREInspection[Line],0),MATCH('Post-Install Information'!K$3,'Pre-Install Inspection'!$A$3:$N$3,0)),IF(OR(Table_POSTInfo[[#This Row],[Line]]=\"\",INDEX(Table_PREInfo[],Table_POSTInfo[[#This Row],[Line]],K$3)=\"\"),\"\",INDEX(Table_PREInfo[],Table_POSTInfo[[#This Row],[Line]],K$3)))","v":""},{"$f":"IF(ISNUMBER(MATCH(Table_POSTInfo[[#This Row],[Line]],Table_PREInspection[Line],0)),INDEX(Table_PREInspection[],MATCH(Table_POSTInfo[[#This Row],[Line]],Table_PREInspection[Line],0),MATCH('Post-Install Information'!L$3,'Pre-Install Inspection'!$A$3:$N$3,0)),IF(OR(Table_POSTInfo[[#This Row],[Line]]=\"\",INDEX(Table_PREInfo[],Table_POSTInfo[[#This Row],[Line]],L$3)=\"\"),\"\",INDEX(Table_PREInfo[],Table_POSTInfo[[#This Row],[Line]],L$3)))","v":""},{"$f":"IF(ISNUMBER(MATCH(Table_POSTInfo[[#This Row],[Line]],Table_PREInspection[Line],0)),INDEX(Table_PREInspection[],MATCH(Table_POSTInfo[[#This Row],[Line]],Table_PREInspection[Line],0),MATCH('Post-Install Information'!M$3,'Pre-Install Inspection'!$A$3:$N$3,0)),IF(OR(Table_POSTInfo[[#This Row],[Line]]=\"\",INDEX(Table_PREInfo[],Table_POSTInfo[[#This Row],[Line]],M$3)=\"\"),\"\",INDEX(Table_PREInfo[],Table_POSTInfo[[#This Row],[Line]],M$3)))","v":""},{"$f":"IF(ISNUMBER(MATCH(Table_POSTInfo[[#This Row],[Line]],Table_PREInspection[Line],0)),INDEX(Table_PREInspection[],MATCH(Table_POSTInfo[[#This Row],[Line]],Table_PREInspection[Line],0),MATCH('Post-Install Information'!N$3,'Pre-Install Inspection'!$A$3:$N$3,0)),IF(OR(Table_POSTInfo[[#This Row],[Line]]=\"\",INDEX(Table_PREInfo[],Table_POSTInfo[[#This Row],[Line]],N$3)=\"\"),\"\",INDEX(Table_PREInfo[],Table_POSTInfo[[#This Row],[Line]],N$3)))","v":""},{"$f":"IF(ISNUMBER(MATCH(Table_POSTInfo[[#This Row],[Line]],Table_PREInspection[Line],0)),INDEX(Table_PREInspection[],MATCH(Table_POSTInfo[[#This Row],[Line]],Table_PREInspection[Line],0),MATCH('Post-Install Information'!O$3,'Pre-Install Inspection'!$A$3:$N$3,0)),IF(OR(Table_POSTInfo[[#This Row],[Line]]=\"\",INDEX(Table_PREInfo[],Table_POSTInfo[[#This Row],[Line]],O$3)=\"\"),\"\",INDEX(Table_PREInfo[],Table_POSTInfo[[#This Row],[Line]],O$3)))","v":""},{"$f":"IF(ISNUMBER(MATCH(Table_POSTInfo[[#This Row],[Line]],Table_PREInspection[Line],0)),INDEX(Table_PREInspection[],MATCH(Table_POSTInfo[[#This Row],[Line]],Table_PREInspection[Line],0),MATCH('Post-Install Information'!P$3,'Pre-Install Inspection'!$A$3:$N$3,0)),IF(OR(Table_POSTInfo[[#This Row],[Line]]=\"\",INDEX(Table_PREInfo[],Table_POSTInfo[[#This Row],[Line]],P$3)=\"\"),\"\",INDEX(Table_PREInfo[],Table_POSTInfo[[#This Row],[Line]],P$3)))","v":""},null,{"$f":"IF(Table_PREInfo[[#This Row],[Fixture Qty '[P']]]<>0,Table_PREInfo[[#This Row],[Fixture Qty '[P']]],IF(Table_POSTInfo[[#This Row],[Fixture Qty '[E']]]<>0,Table_POSTInfo[[#This Row],[Fixture Qty '[E']]],\"\"))","v":""},{"$f":"IF(OR(Table_POSTInfo[[#This Row],[Line]]=\"\",INDEX(Table_PREInfo[],Table_POSTInfo[[#This Row],[Line]],S$3)=\"\"),\"\",INDEX(Table_PREInfo[],Table_POSTInfo[[#This Row],[Line]],S$3))","v":""},{"$f":"IF(OR(Table_POSTInfo[[#This Row],[Line]]=\"\",INDEX(Table_PREInfo[],Table_POSTInfo[[#This Row],[Line]],T$3)=\"\"),\"\",INDEX(Table_PREInfo[],Table_POSTInfo[[#This Row],[Line]],T$3))","v":""},{"$f":"IF(OR(Table_POSTInfo[[#This Row],[Line]]=\"\",INDEX(Table_PREInfo[],Table_POSTInfo[[#This Row],[Line]],U$3)=\"\"),\"\",INDEX(Table_PREInfo[],Table_POSTInfo[[#This Row],[Line]],U$3))","v":""},{"$f":"IF(OR(Table_POSTInfo[[#This Row],[Line]]=\"\",INDEX(Table_PREInfo[],Table_POSTInfo[[#This Row],[Line]],V$3)=\"\"),\"\",INDEX(Table_PREInfo[],Table_POSTInfo[[#This Row],[Line]],V$3))","v":""},{"$f":"IFERROR(\nIFERROR(OFFSET(Table_TypWattage[[#Headers],[Technology]],MATCH(Table_POSTInfo[[#This Row],[Fixture Technology '[P']]],Table_TypWattage[Technology],0)+MATCH(Table_POSTInfo[[#This Row],[Fixture/ Lamp Wattage '[P']]],INDIRECT(SUBSTITUTE(SUBSTITUTE(Table_POSTInfo[[#This Row],[Fixture Technology '[P']]],\" \",\"_\"),\"-\",\"_\")),0)-1,MATCH(Table_POSTInfo[[#This Row],['# Lamps/ Fixture '[P']]],'Measure Tables'!$Q$2:$V$2,0)+1),IF(Table_POSTInfo[[#This Row],[IsActive]],IF(AND(Table_POSTInfo[[#This Row],['# Lamps/ Fixture '[P']]]<>\"\",Table_POSTInfo[[#This Row],['# Lamps/ Fixture '[P']]]>0,Table_POSTInfo[[#This Row],[Fixture/ Lamp Wattage '[P']]]>0),Table_POSTInfo[[#This Row],['# Lamps/ Fixture '[P']]]*Table_POSTInfo[[#This Row],[Fixture/ Lamp Wattage '[P']]],Table_POSTInfo[[#This Row],[Fixture/ Lamp Wattage '[P']]]),\"\")),\n\"\")","v":""},{"$f":"IF(OR(Table_POSTInfo[[#This Row],[Line]]=\"\",INDEX(Table_PREInfo[],Table_POSTInfo[[#This Row],[Line]],X$3)=\"\"),\"\",INDEX(Table_PREInfo[],Table_POSTInfo[[#This Row],[Line]],X$3))","v":""},{"$f":"IF(OR(Table_POSTInfo[[#This Row],[Line]]=\"\",INDEX(Table_PREInfo[],Table_POSTInfo[[#This Row],[Line]],Y$3)=\"\"),\"\",INDEX(Table_PREInfo[],Table_POSTInfo[[#This Row],[Line]],Y$3))","v":""},{"$f":"IFERROR(IF(Table_POSTInfo[[#This Row],[Interior/ Exterior]]<>\"\",\n  CONCATENATE(\n  Table_POSTInfo[[#This Row],[Fixture Technology '[P']]],\n  \" - \",Table_POSTInfo[[#This Row],[Fixture Type '[P']]],\" [\",\n  IF(Table_POSTInfo[[#This Row],['# Lamps/ Fixture '[P']]]>0,Table_POSTInfo[[#This Row],['# Lamps/ Fixture '[P']]] & \"L - \" & Table_POSTInfo[[#This Row],[Fixture/ Lamp Wattage '[P']]] & \"W\" & IF(Table_POSTInfo[[#This Row],[Ballast/ Driver '[P']]]<>\"\",\" - \" & Table_POSTInfo[[#This Row],[Ballast/ Driver '[P']]],\"\"),Table_POSTInfo[[#This Row],[Fixture Wattage '[P']]] & \"W\"),\"]\",\n  IF(AND(Table_POSTInfo[[#This Row],[Controls '[P']]]<>\"\",Table_POSTInfo[[#This Row],[Controls '[P']]]<>\"No Controls\"),\" - \" & Table_POSTInfo[[#This Row],[Controls '[P']]],\"\")\n  ),\n\"\"),\"\")","v":""},{"$f":"IF(OR(Table_POSTInfo[[#This Row],[Line]]=\"\",INDEX(Table_PREInfo[],Table_POSTInfo[[#This Row],[Line]],AA$3)=\"\"),\"\",INDEX(Table_PREInfo[],Table_POSTInfo[[#This Row],[Line]],AA$3))","v":""},{"$f":"IF(OR(Table_POSTInfo[[#This Row],[Line]]=\"\",INDEX(Table_PREInfo[],Table_POSTInfo[[#This Row],[Line]],AB$3)=\"\"),\"\",INDEX(Table_PREInfo[],Table_POSTInfo[[#This Row],[Line]],AB$3))","v":""},{"$f":"IF(OR(Table_POSTInfo[[#This Row],[Line]]=\"\",INDEX(Table_PREInfo[],Table_POSTInfo[[#This Row],[Line]],AC$3)=\"\"),\"\",INDEX(Table_PREInfo[],Table_POSTInfo[[#This Row],[Line]],AC$3))","v":""}]
[{"$f":"IF($A7=\"Line\",1,MAX($A$4:$A7)+1)","v":4},{"$f":"IF(OR(Table_POSTInfo[[#This Row],[Line]]=\"\",INDEX(Table_PREInfo[],Table_POSTInfo[[#This Row],[Line]],B$3)=\"\"),\"\",INDEX(Table_PREInfo[],Table_POSTInfo[[#This Row],[Line]],B$3))","v":false},{"$f":"IF(OR(Table_POSTInfo[[#This Row],[Line]]=\"\",INDEX(Table_PREInfo[],Table_POSTInfo[[#This Row],[Line]],C$3)=\"\"),\"\",INDEX(Table_PREInfo[],Table_POSTInfo[[#This Row],[Line]],C$3))","v":""},{"$f":"IF(ISNUMBER(MATCH(Table_POSTInfo[[#This Row],[Line]],Table_PREInspection[Line],0)),INDEX(Table_PREInspection[],MATCH(Table_POSTInfo[[#This Row],[Line]],Table_PREInspection[Line],0),MATCH('Post-Install Information'!D$3,'Pre-Install Inspection'!$A$3:$N$3,0)),IF(OR(Table_POSTInfo[[#This Row],[Line]]=\"\",INDEX(Table_PREInfo[],Table_POSTInfo[[#This Row],[Line]],D$3)=\"\"),\"\",INDEX(Table_PREInfo[],Table_POSTInfo[[#This Row],[Line]],D$3)))","v":""},{"$f":"IF(ISNUMBER(MATCH(Table_POSTInfo[[#This Row],[Line]],Table_PREInspection[Line],0)),INDEX(Table_PREInspection[],MATCH(Table_POSTInfo[[#This Row],[Line]],Table_PREInspection[Line],0),MATCH('Post-Install Information'!E$3,'Pre-Install Inspection'!$A$3:$N$3,0)),IF(OR(Table_POSTInfo[[#This Row],[Line]]=\"\",INDEX(Table_PREInfo[],Table_POSTInfo[[#This Row],[Line]],E$3)=\"\"),\"\",INDEX(Table_PREInfo[],Table_POSTInfo[[#This Row],[Line]],E$3)))","v":""},{"$f":"IF(ISNUMBER(MATCH(Table_POSTInfo[[#This Row],[Line]],Table_PREInspection[Line],0)),INDEX(Table_PREInspection[],MATCH(Table_POSTInfo[[#This Row],[Line]],Table_PREInspection[Line],0),MATCH('Post-Install Information'!F$3,'Pre-Install Inspection'!$A$3:$N$3,0)),IF(OR(Table_POSTInfo[[#This Row],[Line]]=\"\",INDEX(Table_PREInfo[],Table_POSTInfo[[#This Row],[Line]],F$3)=\"\"),\"\",INDEX(Table_PREInfo[],Table_POSTInfo[[#This Row],[Line]],F$3)))","v":""},null,{"$f":"IF(ISNUMBER(MATCH(Table_POSTInfo[[#This Row],[Line]],Table_PREInspection[Line],0)),INDEX(Table_PREInspection[],MATCH(Table_POSTInfo[[#This Row],[Line]],Table_PREInspection[Line],0),MATCH('Post-Install Information'!H$3,'Pre-Install Inspection'!$A$3:$N$3,0)),IF(OR(Table_POSTInfo[[#This Row],[Line]]=\"\",INDEX(Table_PREInfo[],Table_POSTInfo[[#This Row],[Line]],H$3)=\"\"),\"\",INDEX(Table_PREInfo[],Table_POSTInfo[[#This Row],[Line]],H$3)))","v":""},{"$f":"IF(ISNUMBER(MATCH(Table_POSTInfo[[#This Row],[Line]],Table_PREInspection[Line],0)),INDEX(Table_PREInspection[],MATCH(Table_POSTInfo[[#This Row],[Line]],Table_PREInspection[Line],0),MATCH('Post-Install Information'!I$3,'Pre-Install Inspection'!$A$3:$N$3,0)),IF(OR(Table_POSTInfo[[#This Row],[Line]]=\"\",INDEX(Table_PREInfo[],Table_POSTInfo[[#This Row],[Line]],I$3)=\"\"),\"\",INDEX(Table_PREInfo[],Table_POSTInfo[[#This Row],[Line]],I$3)))","v":""},{"$f":"IF(ISNUMBER(MATCH(Table_POSTInfo[[#This Row],[Line]],Table_PREInspection[Line],0)),INDEX(Table_PREInspection[],MATCH(Table_POSTInfo[[#This Row],[Line]],Table_PREInspection[Line],0),MATCH('Post-Install Information'!J$3,'Pre-Install Inspection'!$A$3:$N$3,0)),IF(OR(Table_POSTInfo[[#This Row],[Line]]=\"\",INDEX(Table_PREInfo[],Table_POSTInfo[[#This Row],[Line]],J$3)=\"\"),\"\",INDEX(Table_PREInfo[],Table_POSTInfo[[#This Row],[Line]],J$3)))","v":""},{"$f":"IF(ISNUMBER(MATCH(Table_POSTInfo[[#This Row],[Line]],Table_PREInspection[Line],0)),INDEX(Table_PREInspection[],MATCH(Table_POSTInfo[[#This Row],[Line]],Table_PREInspection[Line],0),MATCH('Post-Install Information'!K$3,'Pre-Install Inspection'!$A$3:$N$3,0)),IF(OR(Table_POSTInfo[[#This Row],[Line]]=\"\",INDEX(Table_PREInfo[],Table_POSTInfo[[#This Row],[Line]],K$3)=\"\"),\"\",INDEX(Table_PREInfo[],Table_POSTInfo[[#This Row],[Line]],K$3)))","v":""},{"$f":"IF(ISNUMBER(MATCH(Table_POSTInfo[[#This Row],[Line]],Table_PREInspection[Line],0)),INDEX(Table_PREInspection[],MATCH(Table_POSTInfo[[#This Row],[Line]],Table_PREInspection[Line],0),MATCH('Post-Install Information'!L$3,'Pre-Install Inspection'!$A$3:$N$3,0)),IF(OR(Table_POSTInfo[[#This Row],[Line]]=\"\",INDEX(Table_PREInfo[],Table_POSTInfo[[#This Row],[Line]],L$3)=\"\"),\"\",INDEX(Table_PREInfo[],Table_POSTInfo[[#This Row],[Line]],L$3)))","v":""},{"$f":"IF(ISNUMBER(MATCH(Table_POSTInfo[[#This Row],[Line]],Table_PREInspection[Line],0)),INDEX(Table_PREInspection[],MATCH(Table_POSTInfo[[#This Row],[Line]],Table_PREInspection[Line],0),MATCH('Post-Install Information'!M$3,'Pre-Install Inspection'!$A$3:$N$3,0)),IF(OR(Table_POSTInfo[[#This Row],[Line]]=\"\",INDEX(Table_PREInfo[],Table_POSTInfo[[#This Row],[Line]],M$3)=\"\"),\"\",INDEX(Table_PREInfo[],Table_POSTInfo[[#This Row],[Line]],M$3)))","v":""},{"$f":"IF(ISNUMBER(MATCH(Table_POSTInfo[[#This Row],[Line]],Table_PREInspection[Line],0)),INDEX(Table_PREInspection[],MATCH(Table_POSTInfo[[#This Row],[Line]],Table_PREInspection[Line],0),MATCH('Post-Install Information'!N$3,'Pre-Install Inspection'!$A$3:$N$3,0)),IF(OR(Table_POSTInfo[[#This Row],[Line]]=\"\",INDEX(Table_PREInfo[],Table_POSTInfo[[#This Row],[Line]],N$3)=\"\"),\"\",INDEX(Table_PREInfo[],Table_POSTInfo[[#This Row],[Line]],N$3)))","v":""},{"$f":"IF(ISNUMBER(MATCH(Table_POSTInfo[[#This Row],[Line]],Table_PREInspection[Line],0)),INDEX(Table_PREInspection[],MATCH(Table_POSTInfo[[#This Row],[Line]],Table_PREInspection[Line],0),MATCH('Post-Install Information'!O$3,'Pre-Install Inspection'!$A$3:$N$3,0)),IF(OR(Table_POSTInfo[[#This Row],[Line]]=\"\",INDEX(Table_PREInfo[],Table_POSTInfo[[#This Row],[Line]],O$3)=\"\"),\"\",INDEX(Table_PREInfo[],Table_POSTInfo[[#This Row],[Line]],O$3)))","v":""},{"$f":"IF(ISNUMBER(MATCH(Table_POSTInfo[[#This Row],[Line]],Table_PREInspection[Line],0)),INDEX(Table_PREInspection[],MATCH(Table_POSTInfo[[#This Row],[Line]],Table_PREInspection[Line],0),MATCH('Post-Install Information'!P$3,'Pre-Install Inspection'!$A$3:$N$3,0)),IF(OR(Table_POSTInfo[[#This Row],[Line]]=\"\",INDEX(Table_PREInfo[],Table_POSTInfo[[#This Row],[Line]],P$3)=\"\"),\"\",INDEX(Table_PREInfo[],Table_POSTInfo[[#This Row],[Line]],P$3)))","v":""},null,{"$f":"IF(Table_PREInfo[[#This Row],[Fixture Qty '[P']]]<>0,Table_PREInfo[[#This Row],[Fixture Qty '[P']]],IF(Table_POSTInfo[[#This Row],[Fixture Qty '[E']]]<>0,Table_POSTInfo[[#This Row],[Fixture Qty '[E']]],\"\"))","v":""},{"$f":"IF(OR(Table_POSTInfo[[#This Row],[Line]]=\"\",INDEX(Table_PREInfo[],Table_POSTInfo[[#This Row],[Line]],S$3)=\"\"),\"\",INDEX(Table_PREInfo[],Table_POSTInfo[[#This Row],[Line]],S$3))","v":""},{"$f":"IF(OR(Table_POSTInfo[[#This Row],[Line]]=\"\",INDEX(Table_PREInfo[],Table_POSTInfo[[#This Row],[Line]],T$3)=\"\"),\"\",INDEX(Table_PREInfo[],Table_POSTInfo[[#This Row],[Line]],T$3))","v":""},{"$f":"IF(OR(Table_POSTInfo[[#This Row],[Line]]=\"\",INDEX(Table_PREInfo[],Table_POSTInfo[[#This Row],[Line]],U$3)=\"\"),\"\",INDEX(Table_PREInfo[],Table_POSTInfo[[#This Row],[Line]],U$3))","v":""},{"$f":"IF(OR(Table_POSTInfo[[#This Row],[Line]]=\"\",INDEX(Table_PREInfo[],Table_POSTInfo[[#This Row],[Line]],V$3)=\"\"),\"\",INDEX(Table_PREInfo[],Table_POSTInfo[[#This Row],[Line]],V$3))","v":""},{"$f":"IFERROR(\nIFERROR(OFFSET(Table_TypWattage[[#Headers],[Technology]],MATCH(Table_POSTInfo[[#This Row],[Fixture Technology '[P']]],Table_TypWattage[Technology],0)+MATCH(Table_POSTInfo[[#This Row],[Fixture/ Lamp Wattage '[P']]],INDIRECT(SUBSTITUTE(SUBSTITUTE(Table_POSTInfo[[#This Row],[Fixture Technology '[P']]],\" \",\"_\"),\"-\",\"_\")),0)-1,MATCH(Table_POSTInfo[[#This Row],['# Lamps/ Fixture '[P']]],'Measure Tables'!$Q$2:$V$2,0)+1),IF(Table_POSTInfo[[#This Row],[IsActive]],IF(AND(Table_POSTInfo[[#This Row],['# Lamps/ Fixture '[P']]]<>\"\",Table_POSTInfo[[#This Row],['# Lamps/ Fixture '[P']]]>0,Table_POSTInfo[[#This Row],[Fixture/ Lamp Wattage '[P']]]>0),Table_POSTInfo[[#This Row],['# Lamps/ Fixture '[P']]]*Table_POSTInfo[[#This Row],[Fixture/ Lamp Wattage '[P']]],Table_POSTInfo[[#This Row],[Fixture/ Lamp Wattage '[P']]]),\"\")),\n\"\")","v":""},{"$f":"IF(OR(Table_POSTInfo[[#This Row],[Line]]=\"\",INDEX(Table_PREInfo[],Table_POSTInfo[[#This Row],[Line]],X$3)=\"\"),\"\",INDEX(Table_PREInfo[],Table_POSTInfo[[#This Row],[Line]],X$3))","v":""},{"$f":"IF(OR(Table_POSTInfo[[#This Row],[Line]]=\"\",INDEX(Table_PREInfo[],Table_POSTInfo[[#This Row],[Line]],Y$3)=\"\"),\"\",INDEX(Table_PREInfo[],Table_POSTInfo[[#This Row],[Line]],Y$3))","v":""},{"$f":"IFERROR(IF(Table_POSTInfo[[#This Row],[Interior/ Exterior]]<>\"\",\n  CONCATENATE(\n  Table_POSTInfo[[#This Row],[Fixture Technology '[P']]],\n  \" - \",Table_POSTInfo[[#This Row],[Fixture Type '[P']]],\" [\",\n  IF(Table_POSTInfo[[#This Row],['# Lamps/ Fixture '[P']]]>0,Table_POSTInfo[[#This Row],['# Lamps/ Fixture '[P']]] & \"L - \" & Table_POSTInfo[[#This Row],[Fixture/ Lamp Wattage '[P']]] & \"W\" & IF(Table_POSTInfo[[#This Row],[Ballast/ Driver '[P']]]<>\"\",\" - \" & Table_POSTInfo[[#This Row],[Ballast/ Driver '[P']]],\"\"),Table_POSTInfo[[#This Row],[Fixture Wattage '[P']]] & \"W\"),\"]\",\n  IF(AND(Table_POSTInfo[[#This Row],[Controls '[P']]]<>\"\",Table_POSTInfo[[#This Row],[Controls '[P']]]<>\"No Controls\"),\" - \" & Table_POSTInfo[[#This Row],[Controls '[P']]],\"\")\n  ),\n\"\"),\"\")","v":""},{"$f":"IF(OR(Table_POSTInfo[[#This Row],[Line]]=\"\",INDEX(Table_PREInfo[],Table_POSTInfo[[#This Row],[Line]],AA$3)=\"\"),\"\",INDEX(Table_PREInfo[],Table_POSTInfo[[#This Row],[Line]],AA$3))","v":""},{"$f":"IF(OR(Table_POSTInfo[[#This Row],[Line]]=\"\",INDEX(Table_PREInfo[],Table_POSTInfo[[#This Row],[Line]],AB$3)=\"\"),\"\",INDEX(Table_PREInfo[],Table_POSTInfo[[#This Row],[Line]],AB$3))","v":""},{"$f":"IF(OR(Table_POSTInfo[[#This Row],[Line]]=\"\",INDEX(Table_PREInfo[],Table_POSTInfo[[#This Row],[Line]],AC$3)=\"\"),\"\",INDEX(Table_PREInfo[],Table_POSTInfo[[#This Row],[Line]],AC$3))","v":""}]
[{"$f":"IF($A8=\"Line\",1,MAX($A$4:$A8)+1)","v":5},{"$f":"IF(OR(Table_POSTInfo[[#This Row],[Line]]=\"\",INDEX(Table_PREInfo[],Table_POSTInfo[[#This Row],[Line]],B$3)=\"\"),\"\",INDEX(Table_PREInfo[],Table_POSTInfo[[#This Row],[Line]],B$3))","v":false},{"$f":"IF(OR(Table_POSTInfo[[#This Row],[Line]]=\"\",INDEX(Table_PREInfo[],Table_POSTInfo[[#This Row],[Line]],C$3)=\"\"),\"\",INDEX(Table_PREInfo[],Table_POSTInfo[[#This Row],[Line]],C$3))","v":""},{"$f":"IF(ISNUMBER(MATCH(Table_POSTInfo[[#This Row],[Line]],Table_PREInspection[Line],0)),INDEX(Table_PREInspection[],MATCH(Table_POSTInfo[[#This Row],[Line]],Table_PREInspection[Line],0),MATCH('Post-Install Information'!D$3,'Pre-Install Inspection'!$A$3:$N$3,0)),IF(OR(Table_POSTInfo[[#This Row],[Line]]=\"\",INDEX(Table_PREInfo[],Table_POSTInfo[[#This Row],[Line]],D$3)=\"\"),\"\",INDEX(Table_PREInfo[],Table_POSTInfo[[#This Row],[Line]],D$3)))","v":""},{"$f":"IF(ISNUMBER(MATCH(Table_POSTInfo[[#This Row],[Line]],Table_PREInspection[Line],0)),INDEX(Table_PREInspection[],MATCH(Table_POSTInfo[[#This Row],[Line]],Table_PREInspection[Line],0),MATCH('Post-Install Information'!E$3,'Pre-Install Inspection'!$A$3:$N$3,0)),IF(OR(Table_POSTInfo[[#This Row],[Line]]=\"\",INDEX(Table_PREInfo[],Table_POSTInfo[[#This Row],[Line]],E$3)=\"\"),\"\",INDEX(Table_PREInfo[],Table_POSTInfo[[#This Row],[Line]],E$3)))","v":""},{"$f":"IF(ISNUMBER(MATCH(Table_POSTInfo[[#This Row],[Line]],Table_PREInspection[Line],0)),INDEX(Table_PREInspection[],MATCH(Table_POSTInfo[[#This Row],[Line]],Table_PREInspection[Line],0),MATCH('Post-Install Information'!F$3,'Pre-Install Inspection'!$A$3:$N$3,0)),IF(OR(Table_POSTInfo[[#This Row],[Line]]=\"\",INDEX(Table_PREInfo[],Table_POSTInfo[[#This Row],[Line]],F$3)=\"\"),\"\",INDEX(Table_PREInfo[],Table_POSTInfo[[#This Row],[Line]],F$3)))","v":""},null,{"$f":"IF(ISNUMBER(MATCH(Table_POSTInfo[[#This Row],[Line]],Table_PREInspection[Line],0)),INDEX(Table_PREInspection[],MATCH(Table_POSTInfo[[#This Row],[Line]],Table_PREInspection[Line],0),MATCH('Post-Install Information'!H$3,'Pre-Install Inspection'!$A$3:$N$3,0)),IF(OR(Table_POSTInfo[[#This Row],[Line]]=\"\",INDEX(Table_PREInfo[],Table_POSTInfo[[#This Row],[Line]],H$3)=\"\"),\"\",INDEX(Table_PREInfo[],Table_POSTInfo[[#This Row],[Line]],H$3)))","v":""},{"$f":"IF(ISNUMBER(MATCH(Table_POSTInfo[[#This Row],[Line]],Table_PREInspection[Line],0)),INDEX(Table_PREInspection[],MATCH(Table_POSTInfo[[#This Row],[Line]],Table_PREInspection[Line],0),MATCH('Post-Install Information'!I$3,'Pre-Install Inspection'!$A$3:$N$3,0)),IF(OR(Table_POSTInfo[[#This Row],[Line]]=\"\",INDEX(Table_PREInfo[],Table_POSTInfo[[#This Row],[Line]],I$3)=\"\"),\"\",INDEX(Table_PREInfo[],Table_POSTInfo[[#This Row],[Line]],I$3)))","v":""},{"$f":"IF(ISNUMBER(MATCH(Table_POSTInfo[[#This Row],[Line]],Table_PREInspection[Line],0)),INDEX(Table_PREInspection[],MATCH(Table_POSTInfo[[#This Row],[Line]],Table_PREInspection[Line],0),MATCH('Post-Install Information'!J$3,'Pre-Install Inspection'!$A$3:$N$3,0)),IF(OR(Table_POSTInfo[[#This Row],[Line]]=\"\",INDEX(Table_PREInfo[],Table_POSTInfo[[#This Row],[Line]],J$3)=\"\"),\"\",INDEX(Table_PREInfo[],Table_POSTInfo[[#This Row],[Line]],J$3)))","v":""},{"$f":"IF(ISNUMBER(MATCH(Table_POSTInfo[[#This Row],[Line]],Table_PREInspection[Line],0)),INDEX(Table_PREInspection[],MATCH(Table_POSTInfo[[#This Row],[Line]],Table_PREInspection[Line],0),MATCH('Post-Install Information'!K$3,'Pre-Install Inspection'!$A$3:$N$3,0)),IF(OR(Table_POSTInfo[[#This Row],[Line]]=\"\",INDEX(Table_PREInfo[],Table_POSTInfo[[#This Row],[Line]],K$3)=\"\"),\"\",INDEX(Table_PREInfo[],Table_POSTInfo[[#This Row],[Line]],K$3)))","v":""},{"$f":"IF(ISNUMBER(MATCH(Table_POSTInfo[[#This Row],[Line]],Table_PREInspection[Line],0)),INDEX(Table_PREInspection[],MATCH(Table_POSTInfo[[#This Row],[Line]],Table_PREInspection[Line],0),MATCH('Post-Install Information'!L$3,'Pre-Install Inspection'!$A$3:$N$3,0)),IF(OR(Table_POSTInfo[[#This Row],[Line]]=\"\",INDEX(Table_PREInfo[],Table_POSTInfo[[#This Row],[Line]],L$3)=\"\"),\"\",INDEX(Table_PREInfo[],Table_POSTInfo[[#This Row],[Line]],L$3)))","v":""},{"$f":"IF(ISNUMBER(MATCH(Table_POSTInfo[[#This Row],[Line]],Table_PREInspection[Line],0)),INDEX(Table_PREInspection[],MATCH(Table_POSTInfo[[#This Row],[Line]],Table_PREInspection[Line],0),MATCH('Post-Install Information'!M$3,'Pre-Install Inspection'!$A$3:$N$3,0)),IF(OR(Table_POSTInfo[[#This Row],[Line]]=\"\",INDEX(Table_PREInfo[],Table_POSTInfo[[#This Row],[Line]],M$3)=\"\"),\"\",INDEX(Table_PREInfo[],Table_POSTInfo[[#This Row],[Line]],M$3)))","v":""},{"$f":"IF(ISNUMBER(MATCH(Table_POSTInfo[[#This Row],[Line]],Table_PREInspection[Line],0)),INDEX(Table_PREInspection[],MATCH(Table_POSTInfo[[#This Row],[Line]],Table_PREInspection[Line],0),MATCH('Post-Install Information'!N$3,'Pre-Install Inspection'!$A$3:$N$3,0)),IF(OR(Table_POSTInfo[[#This Row],[Line]]=\"\",INDEX(Table_PREInfo[],Table_POSTInfo[[#This Row],[Line]],N$3)=\"\"),\"\",INDEX(Table_PREInfo[],Table_POSTInfo[[#This Row],[Line]],N$3)))","v":""},{"$f":"IF(ISNUMBER(MATCH(Table_POSTInfo[[#This Row],[Line]],Table_PREInspection[Line],0)),INDEX(Table_PREInspection[],MATCH(Table_POSTInfo[[#This Row],[Line]],Table_PREInspection[Line],0),MATCH('Post-Install Information'!O$3,'Pre-Install Inspection'!$A$3:$N$3,0)),IF(OR(Table_POSTInfo[[#This Row],[Line]]=\"\",INDEX(Table_PREInfo[],Table_POSTInfo[[#This Row],[Line]],O$3)=\"\"),\"\",INDEX(Table_PREInfo[],Table_POSTInfo[[#This Row],[Line]],O$3)))","v":""},{"$f":"IF(ISNUMBER(MATCH(Table_POSTInfo[[#This Row],[Line]],Table_PREInspection[Line],0)),INDEX(Table_PREInspection[],MATCH(Table_POSTInfo[[#This Row],[Line]],Table_PREInspection[Line],0),MATCH('Post-Install Information'!P$3,'Pre-Install Inspection'!$A$3:$N$3,0)),IF(OR(Table_POSTInfo[[#This Row],[Line]]=\"\",INDEX(Table_PREInfo[],Table_POSTInfo[[#This Row],[Line]],P$3)=\"\"),\"\",INDEX(Table_PREInfo[],Table_POSTInfo[[#This Row],[Line]],P$3)))","v":""},null,{"$f":"IF(Table_PREInfo[[#This Row],[Fixture Qty '[P']]]<>0,Table_PREInfo[[#This Row],[Fixture Qty '[P']]],IF(Table_POSTInfo[[#This Row],[Fixture Qty '[E']]]<>0,Table_POSTInfo[[#This Row],[Fixture Qty '[E']]],\"\"))","v":""},{"$f":"IF(OR(Table_POSTInfo[[#This Row],[Line]]=\"\",INDEX(Table_PREInfo[],Table_POSTInfo[[#This Row],[Line]],S$3)=\"\"),\"\",INDEX(Table_PREInfo[],Table_POSTInfo[[#This Row],[Line]],S$3))","v":""},{"$f":"IF(OR(Table_POSTInfo[[#This Row],[Line]]=\"\",INDEX(Table_PREInfo[],Table_POSTInfo[[#This Row],[Line]],T$3)=\"\"),\"\",INDEX(Table_PREInfo[],Table_POSTInfo[[#This Row],[Line]],T$3))","v":""},{"$f":"IF(OR(Table_POSTInfo[[#This Row],[Line]]=\"\",INDEX(Table_PREInfo[],Table_POSTInfo[[#This Row],[Line]],U$3)=\"\"),\"\",INDEX(Table_PREInfo[],Table_POSTInfo[[#This Row],[Line]],U$3))","v":""},{"$f":"IF(OR(Table_POSTInfo[[#This Row],[Line]]=\"\",INDEX(Table_PREInfo[],Table_POSTInfo[[#This Row],[Line]],V$3)=\"\"),\"\",INDEX(Table_PREInfo[],Table_POSTInfo[[#This Row],[Line]],V$3))","v":""},{"$f":"IFERROR(\nIFERROR(OFFSET(Table_TypWattage[[#Headers],[Technology]],MATCH(Table_POSTInfo[[#This Row],[Fixture Technology '[P']]],Table_TypWattage[Technology],0)+MATCH(Table_POSTInfo[[#This Row],[Fixture/ Lamp Wattage '[P']]],INDIRECT(SUBSTITUTE(SUBSTITUTE(Table_POSTInfo[[#This Row],[Fixture Technology '[P']]],\" \",\"_\"),\"-\",\"_\")),0)-1,MATCH(Table_POSTInfo[[#This Row],['# Lamps/ Fixture '[P']]],'Measure Tables'!$Q$2:$V$2,0)+1),IF(Table_POSTInfo[[#This Row],[IsActive]],IF(AND(Table_POSTInfo[[#This Row],['# Lamps/ Fixture '[P']]]<>\"\",Table_POSTInfo[[#This Row],['# Lamps/ Fixture '[P']]]>0,Table_POSTInfo[[#This Row],[Fixture/ Lamp Wattage '[P']]]>0),Table_POSTInfo[[#This Row],['# Lamps/ Fixture '[P']]]*Table_POSTInfo[[#This Row],[Fixture/ Lamp Wattage '[P']]],Table_POSTInfo[[#This Row],[Fixture/ Lamp Wattage '[P']]]),\"\")),\n\"\")","v":""},{"$f":"IF(OR(Table_POSTInfo[[#This Row],[Line]]=\"\",INDEX(Table_PREInfo[],Table_POSTInfo[[#This Row],[Line]],X$3)=\"\"),\"\",INDEX(Table_PREInfo[],Table_POSTInfo[[#This Row],[Line]],X$3))","v":""},{"$f":"IF(OR(Table_POSTInfo[[#This Row],[Line]]=\"\",INDEX(Table_PREInfo[],Table_POSTInfo[[#This Row],[Line]],Y$3)=\"\"),\"\",INDEX(Table_PREInfo[],Table_POSTInfo[[#This Row],[Line]],Y$3))","v":""},{"$f":"IFERROR(IF(Table_POSTInfo[[#This Row],[Interior/ Exterior]]<>\"\",\n  CONCATENATE(\n  Table_POSTInfo[[#This Row],[Fixture Technology '[P']]],\n  \" - \",Table_POSTInfo[[#This Row],[Fixture Type '[P']]],\" [\",\n  IF(Table_POSTInfo[[#This Row],['# Lamps/ Fixture '[P']]]>0,Table_POSTInfo[[#This Row],['# Lamps/ Fixture '[P']]] & \"L - \" & Table_POSTInfo[[#This Row],[Fixture/ Lamp Wattage '[P']]] & \"W\" & IF(Table_POSTInfo[[#This Row],[Ballast/ Driver '[P']]]<>\"\",\" - \" & Table_POSTInfo[[#This Row],[Ballast/ Driver '[P']]],\"\"),Table_POSTInfo[[#This Row],[Fixture Wattage '[P']]] & \"W\"),\"]\",\n  IF(AND(Table_POSTInfo[[#This Row],[Controls '[P']]]<>\"\",Table_POSTInfo[[#This Row],[Controls '[P']]]<>\"No Controls\"),\" - \" & Table_POSTInfo[[#This Row],[Controls '[P']]],\"\")\n  ),\n\"\"),\"\")","v":""},{"$f":"IF(OR(Table_POSTInfo[[#This Row],[Line]]=\"\",INDEX(Table_PREInfo[],Table_POSTInfo[[#This Row],[Line]],AA$3)=\"\"),\"\",INDEX(Table_PREInfo[],Table_POSTInfo[[#This Row],[Line]],AA$3))","v":""},{"$f":"IF(OR(Table_POSTInfo[[#This Row],[Line]]=\"\",INDEX(Table_PREInfo[],Table_POSTInfo[[#This Row],[Line]],AB$3)=\"\"),\"\",INDEX(Table_PREInfo[],Table_POSTInfo[[#This Row],[Line]],AB$3))","v":""},{"$f":"IF(OR(Table_POSTInfo[[#This Row],[Line]]=\"\",INDEX(Table_PREInfo[],Table_POSTInfo[[#This Row],[Line]],AC$3)=\"\"),\"\",INDEX(Table_PREInfo[],Table_POSTInfo[[#This Row],[Line]],AC$3))","v":""}]
[{"$f":"IF($A9=\"Line\",1,MAX($A$4:$A9)+1)","v":6},{"$f":"IF(OR(Table_POSTInfo[[#This Row],[Line]]=\"\",INDEX(Table_PREInfo[],Table_POSTInfo[[#This Row],[Line]],B$3)=\"\"),\"\",INDEX(Table_PREInfo[],Table_POSTInfo[[#This Row],[Line]],B$3))","v":false},{"$f":"IF(OR(Table_POSTInfo[[#This Row],[Line]]=\"\",INDEX(Table_PREInfo[],Table_POSTInfo[[#This Row],[Line]],C$3)=\"\"),\"\",INDEX(Table_PREInfo[],Table_POSTInfo[[#This Row],[Line]],C$3))","v":""},{"$f":"IF(ISNUMBER(MATCH(Table_POSTInfo[[#This Row],[Line]],Table_PREInspection[Line],0)),INDEX(Table_PREInspection[],MATCH(Table_POSTInfo[[#This Row],[Line]],Table_PREInspection[Line],0),MATCH('Post-Install Information'!D$3,'Pre-Install Inspection'!$A$3:$N$3,0)),IF(OR(Table_POSTInfo[[#This Row],[Line]]=\"\",INDEX(Table_PREInfo[],Table_POSTInfo[[#This Row],[Line]],D$3)=\"\"),\"\",INDEX(Table_PREInfo[],Table_POSTInfo[[#This Row],[Line]],D$3)))","v":""},{"$f":"IF(ISNUMBER(MATCH(Table_POSTInfo[[#This Row],[Line]],Table_PREInspection[Line],0)),INDEX(Table_PREInspection[],MATCH(Table_POSTInfo[[#This Row],[Line]],Table_PREInspection[Line],0),MATCH('Post-Install Information'!E$3,'Pre-Install Inspection'!$A$3:$N$3,0)),IF(OR(Table_POSTInfo[[#This Row],[Line]]=\"\",INDEX(Table_PREInfo[],Table_POSTInfo[[#This Row],[Line]],E$3)=\"\"),\"\",INDEX(Table_PREInfo[],Table_POSTInfo[[#This Row],[Line]],E$3)))","v":""},{"$f":"IF(ISNUMBER(MATCH(Table_POSTInfo[[#This Row],[Line]],Table_PREInspection[Line],0)),INDEX(Table_PREInspection[],MATCH(Table_POSTInfo[[#This Row],[Line]],Table_PREInspection[Line],0),MATCH('Post-Install Information'!F$3,'Pre-Install Inspection'!$A$3:$N$3,0)),IF(OR(Table_POSTInfo[[#This Row],[Line]]=\"\",INDEX(Table_PREInfo[],Table_POSTInfo[[#This Row],[Line]],F$3)=\"\"),\"\",INDEX(Table_PREInfo[],Table_POSTInfo[[#This Row],[Line]],F$3)))","v":""},null,{"$f":"IF(ISNUMBER(MATCH(Table_POSTInfo[[#This Row],[Line]],Table_PREInspection[Line],0)),INDEX(Table_PREInspection[],MATCH(Table_POSTInfo[[#This Row],[Line]],Table_PREInspection[Line],0),MATCH('Post-Install Information'!H$3,'Pre-Install Inspection'!$A$3:$N$3,0)),IF(OR(Table_POSTInfo[[#This Row],[Line]]=\"\",INDEX(Table_PREInfo[],Table_POSTInfo[[#This Row],[Line]],H$3)=\"\"),\"\",INDEX(Table_PREInfo[],Table_POSTInfo[[#This Row],[Line]],H$3)))","v":""},{"$f":"IF(ISNUMBER(MATCH(Table_POSTInfo[[#This Row],[Line]],Table_PREInspection[Line],0)),INDEX(Table_PREInspection[],MATCH(Table_POSTInfo[[#This Row],[Line]],Table_PREInspection[Line],0),MATCH('Post-Install Information'!I$3,'Pre-Install Inspection'!$A$3:$N$3,0)),IF(OR(Table_POSTInfo[[#This Row],[Line]]=\"\",INDEX(Table_PREInfo[],Table_POSTInfo[[#This Row],[Line]],I$3)=\"\"),\"\",INDEX(Table_PREInfo[],Table_POSTInfo[[#This Row],[Line]],I$3)))","v":""},{"$f":"IF(ISNUMBER(MATCH(Table_POSTInfo[[#This Row],[Line]],Table_PREInspection[Line],0)),INDEX(Table_PREInspection[],MATCH(Table_POSTInfo[[#This Row],[Line]],Table_PREInspection[Line],0),MATCH('Post-Install Information'!J$3,'Pre-Install Inspection'!$A$3:$N$3,0)),IF(OR(Table_POSTInfo[[#This Row],[Line]]=\"\",INDEX(Table_PREInfo[],Table_POSTInfo[[#This Row],[Line]],J$3)=\"\"),\"\",INDEX(Table_PREInfo[],Table_POSTInfo[[#This Row],[Line]],J$3)))","v":""},{"$f":"IF(ISNUMBER(MATCH(Table_POSTInfo[[#This Row],[Line]],Table_PREInspection[Line],0)),INDEX(Table_PREInspection[],MATCH(Table_POSTInfo[[#This Row],[Line]],Table_PREInspection[Line],0),MATCH('Post-Install Information'!K$3,'Pre-Install Inspection'!$A$3:$N$3,0)),IF(OR(Table_POSTInfo[[#This Row],[Line]]=\"\",INDEX(Table_PREInfo[],Table_POSTInfo[[#This Row],[Line]],K$3)=\"\"),\"\",INDEX(Table_PREInfo[],Table_POSTInfo[[#This Row],[Line]],K$3)))","v":""},{"$f":"IF(ISNUMBER(MATCH(Table_POSTInfo[[#This Row],[Line]],Table_PREInspection[Line],0)),INDEX(Table_PREInspection[],MATCH(Table_POSTInfo[[#This Row],[Line]],Table_PREInspection[Line],0),MATCH('Post-Install Information'!L$3,'Pre-Install Inspection'!$A$3:$N$3,0)),IF(OR(Table_POSTInfo[[#This Row],[Line]]=\"\",INDEX(Table_PREInfo[],Table_POSTInfo[[#This Row],[Line]],L$3)=\"\"),\"\",INDEX(Table_PREInfo[],Table_POSTInfo[[#This Row],[Line]],L$3)))","v":""},{"$f":"IF(ISNUMBER(MATCH(Table_POSTInfo[[#This Row],[Line]],Table_PREInspection[Line],0)),INDEX(Table_PREInspection[],MATCH(Table_POSTInfo[[#This Row],[Line]],Table_PREInspection[Line],0),MATCH('Post-Install Information'!M$3,'Pre-Install Inspection'!$A$3:$N$3,0)),IF(OR(Table_POSTInfo[[#This Row],[Line]]=\"\",INDEX(Table_PREInfo[],Table_POSTInfo[[#This Row],[Line]],M$3)=\"\"),\"\",INDEX(Table_PREInfo[],Table_POSTInfo[[#This Row],[Line]],M$3)))","v":""},{"$f":"IF(ISNUMBER(MATCH(Table_POSTInfo[[#This Row],[Line]],Table_PREInspection[Line],0)),INDEX(Table_PREInspection[],MATCH(Table_POSTInfo[[#This Row],[Line]],Table_PREInspection[Line],0),MATCH('Post-Install Information'!N$3,'Pre-Install Inspection'!$A$3:$N$3,0)),IF(OR(Table_POSTInfo[[#This Row],[Line]]=\"\",INDEX(Table_PREInfo[],Table_POSTInfo[[#This Row],[Line]],N$3)=\"\"),\"\",INDEX(Table_PREInfo[],Table_POSTInfo[[#This Row],[Line]],N$3)))","v":""},{"$f":"IF(ISNUMBER(MATCH(Table_POSTInfo[[#This Row],[Line]],Table_PREInspection[Line],0)),INDEX(Table_PREInspection[],MATCH(Table_POSTInfo[[#This Row],[Line]],Table_PREInspection[Line],0),MATCH('Post-Install Information'!O$3,'Pre-Install Inspection'!$A$3:$N$3,0)),IF(OR(Table_POSTInfo[[#This Row],[Line]]=\"\",INDEX(Table_PREInfo[],Table_POSTInfo[[#This Row],[Line]],O$3)=\"\"),\"\",INDEX(Table_PREInfo[],Table_POSTInfo[[#This Row],[Line]],O$3)))","v":""},{"$f":"IF(ISNUMBER(MATCH(Table_POSTInfo[[#This Row],[Line]],Table_PREInspection[Line],0)),INDEX(Table_PREInspection[],MATCH(Table_POSTInfo[[#This Row],[Line]],Table_PREInspection[Line],0),MATCH('Post-Install Information'!P$3,'Pre-Install Inspection'!$A$3:$N$3,0)),IF(OR(Table_POSTInfo[[#This Row],[Line]]=\"\",INDEX(Table_PREInfo[],Table_POSTInfo[[#This Row],[Line]],P$3)=\"\"),\"\",INDEX(Table_PREInfo[],Table_POSTInfo[[#This Row],[Line]],P$3)))","v":""},null,{"$f":"IF(Table_PREInfo[[#This Row],[Fixture Qty '[P']]]<>0,Table_PREInfo[[#This Row],[Fixture Qty '[P']]],IF(Table_POSTInfo[[#This Row],[Fixture Qty '[E']]]<>0,Table_POSTInfo[[#This Row],[Fixture Qty '[E']]],\"\"))","v":""},{"$f":"IF(OR(Table_POSTInfo[[#This Row],[Line]]=\"\",INDEX(Table_PREInfo[],Table_POSTInfo[[#This Row],[Line]],S$3)=\"\"),\"\",INDEX(Table_PREInfo[],Table_POSTInfo[[#This Row],[Line]],S$3))","v":""},{"$f":"IF(OR(Table_POSTInfo[[#This Row],[Line]]=\"\",INDEX(Table_PREInfo[],Table_POSTInfo[[#This Row],[Line]],T$3)=\"\"),\"\",INDEX(Table_PREInfo[],Table_POSTInfo[[#This Row],[Line]],T$3))","v":""},{"$f":"IF(OR(Table_POSTInfo[[#This Row],[Line]]=\"\",INDEX(Table_PREInfo[],Table_POSTInfo[[#This Row],[Line]],U$3)=\"\"),\"\",INDEX(Table_PREInfo[],Table_POSTInfo[[#This Row],[Line]],U$3))","v":""},{"$f":"IF(OR(Table_POSTInfo[[#This Row],[Line]]=\"\",INDEX(Table_PREInfo[],Table_POSTInfo[[#This Row],[Line]],V$3)=\"\"),\"\",INDEX(Table_PREInfo[],Table_POSTInfo[[#This Row],[Line]],V$3))","v":""},{"$f":"IFERROR(\nIFERROR(OFFSET(Table_TypWattage[[#Headers],[Technology]],MATCH(Table_POSTInfo[[#This Row],[Fixture Technology '[P']]],Table_TypWattage[Technology],0)+MATCH(Table_POSTInfo[[#This Row],[Fixture/ Lamp Wattage '[P']]],INDIRECT(SUBSTITUTE(SUBSTITUTE(Table_POSTInfo[[#This Row],[Fixture Technology '[P']]],\" \",\"_\"),\"-\",\"_\")),0)-1,MATCH(Table_POSTInfo[[#This Row],['# Lamps/ Fixture '[P']]],'Measure Tables'!$Q$2:$V$2,0)+1),IF(Table_POSTInfo[[#This Row],[IsActive]],IF(AND(Table_POSTInfo[[#This Row],['# Lamps/ Fixture '[P']]]<>\"\",Table_POSTInfo[[#This Row],['# Lamps/ Fixture '[P']]]>0,Table_POSTInfo[[#This Row],[Fixture/ Lamp Wattage '[P']]]>0),Table_POSTInfo[[#This Row],['# Lamps/ Fixture '[P']]]*Table_POSTInfo[[#This Row],[Fixture/ Lamp Wattage '[P']]],Table_POSTInfo[[#This Row],[Fixture/ Lamp Wattage '[P']]]),\"\")),\n\"\")","v":""},{"$f":"IF(OR(Table_POSTInfo[[#This Row],[Line]]=\"\",INDEX(Table_PREInfo[],Table_POSTInfo[[#This Row],[Line]],X$3)=\"\"),\"\",INDEX(Table_PREInfo[],Table_POSTInfo[[#This Row],[Line]],X$3))","v":""},{"$f":"IF(OR(Table_POSTInfo[[#This Row],[Line]]=\"\",INDEX(Table_PREInfo[],Table_POSTInfo[[#This Row],[Line]],Y$3)=\"\"),\"\",INDEX(Table_PREInfo[],Table_POSTInfo[[#This Row],[Line]],Y$3))","v":""},{"$f":"IFERROR(IF(Table_POSTInfo[[#This Row],[Interior/ Exterior]]<>\"\",\n  CONCATENATE(\n  Table_POSTInfo[[#This Row],[Fixture Technology '[P']]],\n  \" - \",Table_POSTInfo[[#This Row],[Fixture Type '[P']]],\" [\",\n  IF(Table_POSTInfo[[#This Row],['# Lamps/ Fixture '[P']]]>0,Table_POSTInfo[[#This Row],['# Lamps/ Fixture '[P']]] & \"L - \" & Table_POSTInfo[[#This Row],[Fixture/ Lamp Wattage '[P']]] & \"W\" & IF(Table_POSTInfo[[#This Row],[Ballast/ Driver '[P']]]<>\"\",\" - \" & Table_POSTInfo[[#This Row],[Ballast/ Driver '[P']]],\"\"),Table_POSTInfo[[#This Row],[Fixture Wattage '[P']]] & \"W\"),\"]\",\n  IF(AND(Table_POSTInfo[[#This Row],[Controls '[P']]]<>\"\",Table_POSTInfo[[#This Row],[Controls '[P']]]<>\"No Controls\"),\" - \" & Table_POSTInfo[[#This Row],[Controls '[P']]],\"\")\n  ),\n\"\"),\"\")","v":""},{"$f":"IF(OR(Table_POSTInfo[[#This Row],[Line]]=\"\",INDEX(Table_PREInfo[],Table_POSTInfo[[#This Row],[Line]],AA$3)=\"\"),\"\",INDEX(Table_PREInfo[],Table_POSTInfo[[#This Row],[Line]],AA$3))","v":""},{"$f":"IF(OR(Table_POSTInfo[[#This Row],[Line]]=\"\",INDEX(Table_PREInfo[],Table_POSTInfo[[#This Row],[Line]],AB$3)=\"\"),\"\",INDEX(Table_PREInfo[],Table_POSTInfo[[#This Row],[Line]],AB$3))","v":""},{"$f":"IF(OR(Table_POSTInfo[[#This Row],[Line]]=\"\",INDEX(Table_PREInfo[],Table_POSTInfo[[#This Row],[Line]],AC$3)=\"\"),\"\",INDEX(Table_PREInfo[],Table_POSTInfo[[#This Row],[Line]],AC$3))","v":""}]
[{"$f":"IF($A10=\"Line\",1,MAX($A$4:$A10)+1)","v":7},{"$f":"IF(OR(Table_POSTInfo[[#This Row],[Line]]=\"\",INDEX(Table_PREInfo[],Table_POSTInfo[[#This Row],[Line]],B$3)=\"\"),\"\",INDEX(Table_PREInfo[],Table_POSTInfo[[#This Row],[Line]],B$3))","v":false},{"$f":"IF(OR(Table_POSTInfo[[#This Row],[Line]]=\"\",INDEX(Table_PREInfo[],Table_POSTInfo[[#This Row],[Line]],C$3)=\"\"),\"\",INDEX(Table_PREInfo[],Table_POSTInfo[[#This Row],[Line]],C$3))","v":""},{"$f":"IF(ISNUMBER(MATCH(Table_POSTInfo[[#This Row],[Line]],Table_PREInspection[Line],0)),INDEX(Table_PREInspection[],MATCH(Table_POSTInfo[[#This Row],[Line]],Table_PREInspection[Line],0),MATCH('Post-Install Information'!D$3,'Pre-Install Inspection'!$A$3:$N$3,0)),IF(OR(Table_POSTInfo[[#This Row],[Line]]=\"\",INDEX(Table_PREInfo[],Table_POSTInfo[[#This Row],[Line]],D$3)=\"\"),\"\",INDEX(Table_PREInfo[],Table_POSTInfo[[#This Row],[Line]],D$3)))","v":""},{"$f":"IF(ISNUMBER(MATCH(Table_POSTInfo[[#This Row],[Line]],Table_PREInspection[Line],0)),INDEX(Table_PREInspection[],MATCH(Table_POSTInfo[[#This Row],[Line]],Table_PREInspection[Line],0),MATCH('Post-Install Information'!E$3,'Pre-Install Inspection'!$A$3:$N$3,0)),IF(OR(Table_POSTInfo[[#This Row],[Line]]=\"\",INDEX(Table_PREInfo[],Table_POSTInfo[[#This Row],[Line]],E$3)=\"\"),\"\",INDEX(Table_PREInfo[],Table_POSTInfo[[#This Row],[Line]],E$3)))","v":""},{"$f":"IF(ISNUMBER(MATCH(Table_POSTInfo[[#This Row],[Line]],Table_PREInspection[Line],0)),INDEX(Table_PREInspection[],MATCH(Table_POSTInfo[[#This Row],[Line]],Table_PREInspection[Line],0),MATCH('Post-Install Information'!F$3,'Pre-Install Inspection'!$A$3:$N$3,0)),IF(OR(Table_POSTInfo[[#This Row],[Line]]=\"\",INDEX(Table_PREInfo[],Table_POSTInfo[[#This Row],[Line]],F$3)=\"\"),\"\",INDEX(Table_PREInfo[],Table_POSTInfo[[#This Row],[Line]],F$3)))","v":""},null,{"$f":"IF(ISNUMBER(MATCH(Table_POSTInfo[[#This Row],[Line]],Table_PREInspection[Line],0)),INDEX(Table_PREInspection[],MATCH(Table_POSTInfo[[#This Row],[Line]],Table_PREInspection[Line],0),MATCH('Post-Install Information'!H$3,'Pre-Install Inspection'!$A$3:$N$3,0)),IF(OR(Table_POSTInfo[[#This Row],[Line]]=\"\",INDEX(Table_PREInfo[],Table_POSTInfo[[#This Row],[Line]],H$3)=\"\"),\"\",INDEX(Table_PREInfo[],Table_POSTInfo[[#This Row],[Line]],H$3)))","v":""},{"$f":"IF(ISNUMBER(MATCH(Table_POSTInfo[[#This Row],[Line]],Table_PREInspection[Line],0)),INDEX(Table_PREInspection[],MATCH(Table_POSTInfo[[#This Row],[Line]],Table_PREInspection[Line],0),MATCH('Post-Install Information'!I$3,'Pre-Install Inspection'!$A$3:$N$3,0)),IF(OR(Table_POSTInfo[[#This Row],[Line]]=\"\",INDEX(Table_PREInfo[],Table_POSTInfo[[#This Row],[Line]],I$3)=\"\"),\"\",INDEX(Table_PREInfo[],Table_POSTInfo[[#This Row],[Line]],I$3)))","v":""},{"$f":"IF(ISNUMBER(MATCH(Table_POSTInfo[[#This Row],[Line]],Table_PREInspection[Line],0)),INDEX(Table_PREInspection[],MATCH(Table_POSTInfo[[#This Row],[Line]],Table_PREInspection[Line],0),MATCH('Post-Install Information'!J$3,'Pre-Install Inspection'!$A$3:$N$3,0)),IF(OR(Table_POSTInfo[[#This Row],[Line]]=\"\",INDEX(Table_PREInfo[],Table_POSTInfo[[#This Row],[Line]],J$3)=\"\"),\"\",INDEX(Table_PREInfo[],Table_POSTInfo[[#This Row],[Line]],J$3)))","v":""},{"$f":"IF(ISNUMBER(MATCH(Table_POSTInfo[[#This Row],[Line]],Table_PREInspection[Line],0)),INDEX(Table_PREInspection[],MATCH(Table_POSTInfo[[#This Row],[Line]],Table_PREInspection[Line],0),MATCH('Post-Install Information'!K$3,'Pre-Install Inspection'!$A$3:$N$3,0)),IF(OR(Table_POSTInfo[[#This Row],[Line]]=\"\",INDEX(Table_PREInfo[],Table_POSTInfo[[#This Row],[Line]],K$3)=\"\"),\"\",INDEX(Table_PREInfo[],Table_POSTInfo[[#This Row],[Line]],K$3)))","v":""},{"$f":"IF(ISNUMBER(MATCH(Table_POSTInfo[[#This Row],[Line]],Table_PREInspection[Line],0)),INDEX(Table_PREInspection[],MATCH(Table_POSTInfo[[#This Row],[Line]],Table_PREInspection[Line],0),MATCH('Post-Install Information'!L$3,'Pre-Install Inspection'!$A$3:$N$3,0)),IF(OR(Table_POSTInfo[[#This Row],[Line]]=\"\",INDEX(Table_PREInfo[],Table_POSTInfo[[#This Row],[Line]],L$3)=\"\"),\"\",INDEX(Table_PREInfo[],Table_POSTInfo[[#This Row],[Line]],L$3)))","v":""},{"$f":"IF(ISNUMBER(MATCH(Table_POSTInfo[[#This Row],[Line]],Table_PREInspection[Line],0)),INDEX(Table_PREInspection[],MATCH(Table_POSTInfo[[#This Row],[Line]],Table_PREInspection[Line],0),MATCH('Post-Install Information'!M$3,'Pre-Install Inspection'!$A$3:$N$3,0)),IF(OR(Table_POSTInfo[[#This Row],[Line]]=\"\",INDEX(Table_PREInfo[],Table_POSTInfo[[#This Row],[Line]],M$3)=\"\"),\"\",INDEX(Table_PREInfo[],Table_POSTInfo[[#This Row],[Line]],M$3)))","v":""},{"$f":"IF(ISNUMBER(MATCH(Table_POSTInfo[[#This Row],[Line]],Table_PREInspection[Line],0)),INDEX(Table_PREInspection[],MATCH(Table_POSTInfo[[#This Row],[Line]],Table_PREInspection[Line],0),MATCH('Post-Install Information'!N$3,'Pre-Install Inspection'!$A$3:$N$3,0)),IF(OR(Table_POSTInfo[[#This Row],[Line]]=\"\",INDEX(Table_PREInfo[],Table_POSTInfo[[#This Row],[Line]],N$3)=\"\"),\"\",INDEX(Table_PREInfo[],Table_POSTInfo[[#This Row],[Line]],N$3)))","v":""},{"$f":"IF(ISNUMBER(MATCH(Table_POSTInfo[[#This Row],[Line]],Table_PREInspection[Line],0)),INDEX(Table_PREInspection[],MATCH(Table_POSTInfo[[#This Row],[Line]],Table_PREInspection[Line],0),MATCH('Post-Install Information'!O$3,'Pre-Install Inspection'!$A$3:$N$3,0)),IF(OR(Table_POSTInfo[[#This Row],[Line]]=\"\",INDEX(Table_PREInfo[],Table_POSTInfo[[#This Row],[Line]],O$3)=\"\"),\"\",INDEX(Table_PREInfo[],Table_POSTInfo[[#This Row],[Line]],O$3)))","v":""},{"$f":"IF(ISNUMBER(MATCH(Table_POSTInfo[[#This Row],[Line]],Table_PREInspection[Line],0)),INDEX(Table_PREInspection[],MATCH(Table_POSTInfo[[#This Row],[Line]],Table_PREInspection[Line],0),MATCH('Post-Install Information'!P$3,'Pre-Install Inspection'!$A$3:$N$3,0)),IF(OR(Table_POSTInfo[[#This Row],[Line]]=\"\",INDEX(Table_PREInfo[],Table_POSTInfo[[#This Row],[Line]],P$3)=\"\"),\"\",INDEX(Table_PREInfo[],Table_POSTInfo[[#This Row],[Line]],P$3)))","v":""},null,{"$f":"IF(Table_PREInfo[[#This Row],[Fixture Qty '[P']]]<>0,Table_PREInfo[[#This Row],[Fixture Qty '[P']]],IF(Table_POSTInfo[[#This Row],[Fixture Qty '[E']]]<>0,Table_POSTInfo[[#This Row],[Fixture Qty '[E']]],\"\"))","v":""},{"$f":"IF(OR(Table_POSTInfo[[#This Row],[Line]]=\"\",INDEX(Table_PREInfo[],Table_POSTInfo[[#This Row],[Line]],S$3)=\"\"),\"\",INDEX(Table_PREInfo[],Table_POSTInfo[[#This Row],[Line]],S$3))","v":""},{"$f":"IF(OR(Table_POSTInfo[[#This Row],[Line]]=\"\",INDEX(Table_PREInfo[],Table_POSTInfo[[#This Row],[Line]],T$3)=\"\"),\"\",INDEX(Table_PREInfo[],Table_POSTInfo[[#This Row],[Line]],T$3))","v":""},{"$f":"IF(OR(Table_POSTInfo[[#This Row],[Line]]=\"\",INDEX(Table_PREInfo[],Table_POSTInfo[[#This Row],[Line]],U$3)=\"\"),\"\",INDEX(Table_PREInfo[],Table_POSTInfo[[#This Row],[Line]],U$3))","v":""},{"$f":"IF(OR(Table_POSTInfo[[#This Row],[Line]]=\"\",INDEX(Table_PREInfo[],Table_POSTInfo[[#This Row],[Line]],V$3)=\"\"),\"\",INDEX(Table_PREInfo[],Table_POSTInfo[[#This Row],[Line]],V$3))","v":""},{"$f":"IFERROR(\nIFERROR(OFFSET(Table_TypWattage[[#Headers],[Technology]],MATCH(Table_POSTInfo[[#This Row],[Fixture Technology '[P']]],Table_TypWattage[Technology],0)+MATCH(Table_POSTInfo[[#This Row],[Fixture/ Lamp Wattage '[P']]],INDIRECT(SUBSTITUTE(SUBSTITUTE(Table_POSTInfo[[#This Row],[Fixture Technology '[P']]],\" \",\"_\"),\"-\",\"_\")),0)-1,MATCH(Table_POSTInfo[[#This Row],['# Lamps/ Fixture '[P']]],'Measure Tables'!$Q$2:$V$2,0)+1),IF(Table_POSTInfo[[#This Row],[IsActive]],IF(AND(Table_POSTInfo[[#This Row],['# Lamps/ Fixture '[P']]]<>\"\",Table_POSTInfo[[#This Row],['# Lamps/ Fixture '[P']]]>0,Table_POSTInfo[[#This Row],[Fixture/ Lamp Wattage '[P']]]>0),Table_POSTInfo[[#This Row],['# Lamps/ Fixture '[P']]]*Table_POSTInfo[[#This Row],[Fixture/ Lamp Wattage '[P']]],Table_POSTInfo[[#This Row],[Fixture/ Lamp Wattage '[P']]]),\"\")),\n\"\")","v":""},{"$f":"IF(OR(Table_POSTInfo[[#This Row],[Line]]=\"\",INDEX(Table_PREInfo[],Table_POSTInfo[[#This Row],[Line]],X$3)=\"\"),\"\",INDEX(Table_PREInfo[],Table_POSTInfo[[#This Row],[Line]],X$3))","v":""},{"$f":"IF(OR(Table_POSTInfo[[#This Row],[Line]]=\"\",INDEX(Table_PREInfo[],Table_POSTInfo[[#This Row],[Line]],Y$3)=\"\"),\"\",INDEX(Table_PREInfo[],Table_POSTInfo[[#This Row],[Line]],Y$3))","v":""},{"$f":"IFERROR(IF(Table_POSTInfo[[#This Row],[Interior/ Exterior]]<>\"\",\n  CONCATENATE(\n  Table_POSTInfo[[#This Row],[Fixture Technology '[P']]],\n  \" - \",Table_POSTInfo[[#This Row],[Fixture Type '[P']]],\" [\",\n  IF(Table_POSTInfo[[#This Row],['# Lamps/ Fixture '[P']]]>0,Table_POSTInfo[[#This Row],['# Lamps/ Fixture '[P']]] & \"L - \" & Table_POSTInfo[[#This Row],[Fixture/ Lamp Wattage '[P']]] & \"W\" & IF(Table_POSTInfo[[#This Row],[Ballast/ Driver '[P']]]<>\"\",\" - \" & Table_POSTInfo[[#This Row],[Ballast/ Driver '[P']]],\"\"),Table_POSTInfo[[#This Row],[Fixture Wattage '[P']]] & \"W\"),\"]\",\n  IF(AND(Table_POSTInfo[[#This Row],[Controls '[P']]]<>\"\",Table_POSTInfo[[#This Row],[Controls '[P']]]<>\"No Controls\"),\" - \" & Table_POSTInfo[[#This Row],[Controls '[P']]],\"\")\n  ),\n\"\"),\"\")","v":""},{"$f":"IF(OR(Table_POSTInfo[[#This Row],[Line]]=\"\",INDEX(Table_PREInfo[],Table_POSTInfo[[#This Row],[Line]],AA$3)=\"\"),\"\",INDEX(Table_PREInfo[],Table_POSTInfo[[#This Row],[Line]],AA$3))","v":""},{"$f":"IF(OR(Table_POSTInfo[[#This Row],[Line]]=\"\",INDEX(Table_PREInfo[],Table_POSTInfo[[#This Row],[Line]],AB$3)=\"\"),\"\",INDEX(Table_PREInfo[],Table_POSTInfo[[#This Row],[Line]],AB$3))","v":""},{"$f":"IF(OR(Table_POSTInfo[[#This Row],[Line]]=\"\",INDEX(Table_PREInfo[],Table_POSTInfo[[#This Row],[Line]],AC$3)=\"\"),\"\",INDEX(Table_PREInfo[],Table_POSTInfo[[#This Row],[Line]],AC$3))","v":""}]
[{"$f":"IF($A11=\"Line\",1,MAX($A$4:$A11)+1)","v":8},{"$f":"IF(OR(Table_POSTInfo[[#This Row],[Line]]=\"\",INDEX(Table_PREInfo[],Table_POSTInfo[[#This Row],[Line]],B$3)=\"\"),\"\",INDEX(Table_PREInfo[],Table_POSTInfo[[#This Row],[Line]],B$3))","v":false},{"$f":"IF(OR(Table_POSTInfo[[#This Row],[Line]]=\"\",INDEX(Table_PREInfo[],Table_POSTInfo[[#This Row],[Line]],C$3)=\"\"),\"\",INDEX(Table_PREInfo[],Table_POSTInfo[[#This Row],[Line]],C$3))","v":""},{"$f":"IF(ISNUMBER(MATCH(Table_POSTInfo[[#This Row],[Line]],Table_PREInspection[Line],0)),INDEX(Table_PREInspection[],MATCH(Table_POSTInfo[[#This Row],[Line]],Table_PREInspection[Line],0),MATCH('Post-Install Information'!D$3,'Pre-Install Inspection'!$A$3:$N$3,0)),IF(OR(Table_POSTInfo[[#This Row],[Line]]=\"\",INDEX(Table_PREInfo[],Table_POSTInfo[[#This Row],[Line]],D$3)=\"\"),\"\",INDEX(Table_PREInfo[],Table_POSTInfo[[#This Row],[Line]],D$3)))","v":""},{"$f":"IF(ISNUMBER(MATCH(Table_POSTInfo[[#This Row],[Line]],Table_PREInspection[Line],0)),INDEX(Table_PREInspection[],MATCH(Table_POSTInfo[[#This Row],[Line]],Table_PREInspection[Line],0),MATCH('Post-Install Information'!E$3,'Pre-Install Inspection'!$A$3:$N$3,0)),IF(OR(Table_POSTInfo[[#This Row],[Line]]=\"\",INDEX(Table_PREInfo[],Table_POSTInfo[[#This Row],[Line]],E$3)=\"\"),\"\",INDEX(Table_PREInfo[],Table_POSTInfo[[#This Row],[Line]],E$3)))","v":""},{"$f":"IF(ISNUMBER(MATCH(Table_POSTInfo[[#This Row],[Line]],Table_PREInspection[Line],0)),INDEX(Table_PREInspection[],MATCH(Table_POSTInfo[[#This Row],[Line]],Table_PREInspection[Line],0),MATCH('Post-Install Information'!F$3,'Pre-Install Inspection'!$A$3:$N$3,0)),IF(OR(Table_POSTInfo[[#This Row],[Line]]=\"\",INDEX(Table_PREInfo[],Table_POSTInfo[[#This Row],[Line]],F$3)=\"\"),\"\",INDEX(Table_PREInfo[],Table_POSTInfo[[#This Row],[Line]],F$3)))","v":""},null,{"$f":"IF(ISNUMBER(MATCH(Table_POSTInfo[[#This Row],[Line]],Table_PREInspection[Line],0)),INDEX(Table_PREInspection[],MATCH(Table_POSTInfo[[#This Row],[Line]],Table_PREInspection[Line],0),MATCH('Post-Install Information'!H$3,'Pre-Install Inspection'!$A$3:$N$3,0)),IF(OR(Table_POSTInfo[[#This Row],[Line]]=\"\",INDEX(Table_PREInfo[],Table_POSTInfo[[#This Row],[Line]],H$3)=\"\"),\"\",INDEX(Table_PREInfo[],Table_POSTInfo[[#This Row],[Line]],H$3)))","v":""},{"$f":"IF(ISNUMBER(MATCH(Table_POSTInfo[[#This Row],[Line]],Table_PREInspection[Line],0)),INDEX(Table_PREInspection[],MATCH(Table_POSTInfo[[#This Row],[Line]],Table_PREInspection[Line],0),MATCH('Post-Install Information'!I$3,'Pre-Install Inspection'!$A$3:$N$3,0)),IF(OR(Table_POSTInfo[[#This Row],[Line]]=\"\",INDEX(Table_PREInfo[],Table_POSTInfo[[#This Row],[Line]],I$3)=\"\"),\"\",INDEX(Table_PREInfo[],Table_POSTInfo[[#This Row],[Line]],I$3)))","v":""},{"$f":"IF(ISNUMBER(MATCH(Table_POSTInfo[[#This Row],[Line]],Table_PREInspection[Line],0)),INDEX(Table_PREInspection[],MATCH(Table_POSTInfo[[#This Row],[Line]],Table_PREInspection[Line],0),MATCH('Post-Install Information'!J$3,'Pre-Install Inspection'!$A$3:$N$3,0)),IF(OR(Table_POSTInfo[[#This Row],[Line]]=\"\",INDEX(Table_PREInfo[],Table_POSTInfo[[#This Row],[Line]],J$3)=\"\"),\"\",INDEX(Table_PREInfo[],Table_POSTInfo[[#This Row],[Line]],J$3)))","v":""},{"$f":"IF(ISNUMBER(MATCH(Table_POSTInfo[[#This Row],[Line]],Table_PREInspection[Line],0)),INDEX(Table_PREInspection[],MATCH(Table_POSTInfo[[#This Row],[Line]],Table_PREInspection[Line],0),MATCH('Post-Install Information'!K$3,'Pre-Install Inspection'!$A$3:$N$3,0)),IF(OR(Table_POSTInfo[[#This Row],[Line]]=\"\",INDEX(Table_PREInfo[],Table_POSTInfo[[#This Row],[Line]],K$3)=\"\"),\"\",INDEX(Table_PREInfo[],Table_POSTInfo[[#This Row],[Line]],K$3)))","v":""},{"$f":"IF(ISNUMBER(MATCH(Table_POSTInfo[[#This Row],[Line]],Table_PREInspection[Line],0)),INDEX(Table_PREInspection[],MATCH(Table_POSTInfo[[#This Row],[Line]],Table_PREInspection[Line],0),MATCH('Post-Install Information'!L$3,'Pre-Install Inspection'!$A$3:$N$3,0)),IF(OR(Table_POSTInfo[[#This Row],[Line]]=\"\",INDEX(Table_PREInfo[],Table_POSTInfo[[#This Row],[Line]],L$3)=\"\"),\"\",INDEX(Table_PREInfo[],Table_POSTInfo[[#This Row],[Line]],L$3)))","v":""},{"$f":"IF(ISNUMBER(MATCH(Table_POSTInfo[[#This Row],[Line]],Table_PREInspection[Line],0)),INDEX(Table_PREInspection[],MATCH(Table_POSTInfo[[#This Row],[Line]],Table_PREInspection[Line],0),MATCH('Post-Install Information'!M$3,'Pre-Install Inspection'!$A$3:$N$3,0)),IF(OR(Table_POSTInfo[[#This Row],[Line]]=\"\",INDEX(Table_PREInfo[],Table_POSTInfo[[#This Row],[Line]],M$3)=\"\"),\"\",INDEX(Table_PREInfo[],Table_POSTInfo[[#This Row],[Line]],M$3)))","v":""},{"$f":"IF(ISNUMBER(MATCH(Table_POSTInfo[[#This Row],[Line]],Table_PREInspection[Line],0)),INDEX(Table_PREInspection[],MATCH(Table_POSTInfo[[#This Row],[Line]],Table_PREInspection[Line],0),MATCH('Post-Install Information'!N$3,'Pre-Install Inspection'!$A$3:$N$3,0)),IF(OR(Table_POSTInfo[[#This Row],[Line]]=\"\",INDEX(Table_PREInfo[],Table_POSTInfo[[#This Row],[Line]],N$3)=\"\"),\"\",INDEX(Table_PREInfo[],Table_POSTInfo[[#This Row],[Line]],N$3)))","v":""},{"$f":"IF(ISNUMBER(MATCH(Table_POSTInfo[[#This Row],[Line]],Table_PREInspection[Line],0)),INDEX(Table_PREInspection[],MATCH(Table_POSTInfo[[#This Row],[Line]],Table_PREInspection[Line],0),MATCH('Post-Install Information'!O$3,'Pre-Install Inspection'!$A$3:$N$3,0)),IF(OR(Table_POSTInfo[[#This Row],[Line]]=\"\",INDEX(Table_PREInfo[],Table_POSTInfo[[#This Row],[Line]],O$3)=\"\"),\"\",INDEX(Table_PREInfo[],Table_POSTInfo[[#This Row],[Line]],O$3)))","v":""},{"$f":"IF(ISNUMBER(MATCH(Table_POSTInfo[[#This Row],[Line]],Table_PREInspection[Line],0)),INDEX(Table_PREInspection[],MATCH(Table_POSTInfo[[#This Row],[Line]],Table_PREInspection[Line],0),MATCH('Post-Install Information'!P$3,'Pre-Install Inspection'!$A$3:$N$3,0)),IF(OR(Table_POSTInfo[[#This Row],[Line]]=\"\",INDEX(Table_PREInfo[],Table_POSTInfo[[#This Row],[Line]],P$3)=\"\"),\"\",INDEX(Table_PREInfo[],Table_POSTInfo[[#This Row],[Line]],P$3)))","v":""},null,{"$f":"IF(Table_PREInfo[[#This Row],[Fixture Qty '[P']]]<>0,Table_PREInfo[[#This Row],[Fixture Qty '[P']]],IF(Table_POSTInfo[[#This Row],[Fixture Qty '[E']]]<>0,Table_POSTInfo[[#This Row],[Fixture Qty '[E']]],\"\"))","v":""},{"$f":"IF(OR(Table_POSTInfo[[#This Row],[Line]]=\"\",INDEX(Table_PREInfo[],Table_POSTInfo[[#This Row],[Line]],S$3)=\"\"),\"\",INDEX(Table_PREInfo[],Table_POSTInfo[[#This Row],[Line]],S$3))","v":""},{"$f":"IF(OR(Table_POSTInfo[[#This Row],[Line]]=\"\",INDEX(Table_PREInfo[],Table_POSTInfo[[#This Row],[Line]],T$3)=\"\"),\"\",INDEX(Table_PREInfo[],Table_POSTInfo[[#This Row],[Line]],T$3))","v":""},{"$f":"IF(OR(Table_POSTInfo[[#This Row],[Line]]=\"\",INDEX(Table_PREInfo[],Table_POSTInfo[[#This Row],[Line]],U$3)=\"\"),\"\",INDEX(Table_PREInfo[],Table_POSTInfo[[#This Row],[Line]],U$3))","v":""},{"$f":"IF(OR(Table_POSTInfo[[#This Row],[Line]]=\"\",INDEX(Table_PREInfo[],Table_POSTInfo[[#This Row],[Line]],V$3)=\"\"),\"\",INDEX(Table_PREInfo[],Table_POSTInfo[[#This Row],[Line]],V$3))","v":""},{"$f":"IFERROR(\nIFERROR(OFFSET(Table_TypWattage[[#Headers],[Technology]],MATCH(Table_POSTInfo[[#This Row],[Fixture Technology '[P']]],Table_TypWattage[Technology],0)+MATCH(Table_POSTInfo[[#This Row],[Fixture/ Lamp Wattage '[P']]],INDIRECT(SUBSTITUTE(SUBSTITUTE(Table_POSTInfo[[#This Row],[Fixture Technology '[P']]],\" \",\"_\"),\"-\",\"_\")),0)-1,MATCH(Table_POSTInfo[[#This Row],['# Lamps/ Fixture '[P']]],'Measure Tables'!$Q$2:$V$2,0)+1),IF(Table_POSTInfo[[#This Row],[IsActive]],IF(AND(Table_POSTInfo[[#This Row],['# Lamps/ Fixture '[P']]]<>\"\",Table_POSTInfo[[#This Row],['# Lamps/ Fixture '[P']]]>0,Table_POSTInfo[[#This Row],[Fixture/ Lamp Wattage '[P']]]>0),Table_POSTInfo[[#This Row],['# Lamps/ Fixture '[P']]]*Table_POSTInfo[[#This Row],[Fixture/ Lamp Wattage '[P']]],Table_POSTInfo[[#This Row],[Fixture/ Lamp Wattage '[P']]]),\"\")),\n\"\")","v":""},{"$f":"IF(OR(Table_POSTInfo[[#This Row],[Line]]=\"\",INDEX(Table_PREInfo[],Table_POSTInfo[[#This Row],[Line]],X$3)=\"\"),\"\",INDEX(Table_PREInfo[],Table_POSTInfo[[#This Row],[Line]],X$3))","v":""},{"$f":"IF(OR(Table_POSTInfo[[#This Row],[Line]]=\"\",INDEX(Table_PREInfo[],Table_POSTInfo[[#This Row],[Line]],Y$3)=\"\"),\"\",INDEX(Table_PREInfo[],Table_POSTInfo[[#This Row],[Line]],Y$3))","v":""},{"$f":"IFERROR(IF(Table_POSTInfo[[#This Row],[Interior/ Exterior]]<>\"\",\n  CONCATENATE(\n  Table_POSTInfo[[#This Row],[Fixture Technology '[P']]],\n  \" - \",Table_POSTInfo[[#This Row],[Fixture Type '[P']]],\" [\",\n  IF(Table_POSTInfo[[#This Row],['# Lamps/ Fixture '[P']]]>0,Table_POSTInfo[[#This Row],['# Lamps/ Fixture '[P']]] & \"L - \" & Table_POSTInfo[[#This Row],[Fixture/ Lamp Wattage '[P']]] & \"W\" & IF(Table_POSTInfo[[#This Row],[Ballast/ Driver '[P']]]<>\"\",\" - \" & Table_POSTInfo[[#This Row],[Ballast/ Driver '[P']]],\"\"),Table_POSTInfo[[#This Row],[Fixture Wattage '[P']]] & \"W\"),\"]\",\n  IF(AND(Table_POSTInfo[[#This Row],[Controls '[P']]]<>\"\",Table_POSTInfo[[#This Row],[Controls '[P']]]<>\"No Controls\"),\" - \" & Table_POSTInfo[[#This Row],[Controls '[P']]],\"\")\n  ),\n\"\"),\"\")","v":""},{"$f":"IF(OR(Table_POSTInfo[[#This Row],[Line]]=\"\",INDEX(Table_PREInfo[],Table_POSTInfo[[#This Row],[Line]],AA$3)=\"\"),\"\",INDEX(Table_PREInfo[],Table_POSTInfo[[#This Row],[Line]],AA$3))","v":""},{"$f":"IF(OR(Table_POSTInfo[[#This Row],[Line]]=\"\",INDEX(Table_PREInfo[],Table_POSTInfo[[#This Row],[Line]],AB$3)=\"\"),\"\",INDEX(Table_PREInfo[],Table_POSTInfo[[#This Row],[Line]],AB$3))","v":""},{"$f":"IF(OR(Table_POSTInfo[[#This Row],[Line]]=\"\",INDEX(Table_PREInfo[],Table_POSTInfo[[#This Row],[Line]],AC$3)=\"\"),\"\",INDEX(Table_PREInfo[],Table_POSTInfo[[#This Row],[Line]],AC$3))","v":""}]
[{"$f":"IF($A12=\"Line\",1,MAX($A$4:$A12)+1)","v":9},{"$f":"IF(OR(Table_POSTInfo[[#This Row],[Line]]=\"\",INDEX(Table_PREInfo[],Table_POSTInfo[[#This Row],[Line]],B$3)=\"\"),\"\",INDEX(Table_PREInfo[],Table_POSTInfo[[#This Row],[Line]],B$3))","v":false},{"$f":"IF(OR(Table_POSTInfo[[#This Row],[Line]]=\"\",INDEX(Table_PREInfo[],Table_POSTInfo[[#This Row],[Line]],C$3)=\"\"),\"\",INDEX(Table_PREInfo[],Table_POSTInfo[[#This Row],[Line]],C$3))","v":""},{"$f":"IF(ISNUMBER(MATCH(Table_POSTInfo[[#This Row],[Line]],Table_PREInspection[Line],0)),INDEX(Table_PREInspection[],MATCH(Table_POSTInfo[[#This Row],[Line]],Table_PREInspection[Line],0),MATCH('Post-Install Information'!D$3,'Pre-Install Inspection'!$A$3:$N$3,0)),IF(OR(Table_POSTInfo[[#This Row],[Line]]=\"\",INDEX(Table_PREInfo[],Table_POSTInfo[[#This Row],[Line]],D$3)=\"\"),\"\",INDEX(Table_PREInfo[],Table_POSTInfo[[#This Row],[Line]],D$3)))","v":""},{"$f":"IF(ISNUMBER(MATCH(Table_POSTInfo[[#This Row],[Line]],Table_PREInspection[Line],0)),INDEX(Table_PREInspection[],MATCH(Table_POSTInfo[[#This Row],[Line]],Table_PREInspection[Line],0),MATCH('Post-Install Information'!E$3,'Pre-Install Inspection'!$A$3:$N$3,0)),IF(OR(Table_POSTInfo[[#This Row],[Line]]=\"\",INDEX(Table_PREInfo[],Table_POSTInfo[[#This Row],[Line]],E$3)=\"\"),\"\",INDEX(Table_PREInfo[],Table_POSTInfo[[#This Row],[Line]],E$3)))","v":""},{"$f":"IF(ISNUMBER(MATCH(Table_POSTInfo[[#This Row],[Line]],Table_PREInspection[Line],0)),INDEX(Table_PREInspection[],MATCH(Table_POSTInfo[[#This Row],[Line]],Table_PREInspection[Line],0),MATCH('Post-Install Information'!F$3,'Pre-Install Inspection'!$A$3:$N$3,0)),IF(OR(Table_POSTInfo[[#This Row],[Line]]=\"\",INDEX(Table_PREInfo[],Table_POSTInfo[[#This Row],[Line]],F$3)=\"\"),\"\",INDEX(Table_PREInfo[],Table_POSTInfo[[#This Row],[Line]],F$3)))","v":""},null,{"$f":"IF(ISNUMBER(MATCH(Table_POSTInfo[[#This Row],[Line]],Table_PREInspection[Line],0)),INDEX(Table_PREInspection[],MATCH(Table_POSTInfo[[#This Row],[Line]],Table_PREInspection[Line],0),MATCH('Post-Install Information'!H$3,'Pre-Install Inspection'!$A$3:$N$3,0)),IF(OR(Table_POSTInfo[[#This Row],[Line]]=\"\",INDEX(Table_PREInfo[],Table_POSTInfo[[#This Row],[Line]],H$3)=\"\"),\"\",INDEX(Table_PREInfo[],Table_POSTInfo[[#This Row],[Line]],H$3)))","v":""},{"$f":"IF(ISNUMBER(MATCH(Table_POSTInfo[[#This Row],[Line]],Table_PREInspection[Line],0)),INDEX(Table_PREInspection[],MATCH(Table_POSTInfo[[#This Row],[Line]],Table_PREInspection[Line],0),MATCH('Post-Install Information'!I$3,'Pre-Install Inspection'!$A$3:$N$3,0)),IF(OR(Table_POSTInfo[[#This Row],[Line]]=\"\",INDEX(Table_PREInfo[],Table_POSTInfo[[#This Row],[Line]],I$3)=\"\"),\"\",INDEX(Table_PREInfo[],Table_POSTInfo[[#This Row],[Line]],I$3)))","v":""},{"$f":"IF(ISNUMBER(MATCH(Table_POSTInfo[[#This Row],[Line]],Table_PREInspection[Line],0)),INDEX(Table_PREInspection[],MATCH(Table_POSTInfo[[#This Row],[Line]],Table_PREInspection[Line],0),MATCH('Post-Install Information'!J$3,'Pre-Install Inspection'!$A$3:$N$3,0)),IF(OR(Table_POSTInfo[[#This Row],[Line]]=\"\",INDEX(Table_PREInfo[],Table_POSTInfo[[#This Row],[Line]],J$3)=\"\"),\"\",INDEX(Table_PREInfo[],Table_POSTInfo[[#This Row],[Line]],J$3)))","v":""},{"$f":"IF(ISNUMBER(MATCH(Table_POSTInfo[[#This Row],[Line]],Table_PREInspection[Line],0)),INDEX(Table_PREInspection[],MATCH(Table_POSTInfo[[#This Row],[Line]],Table_PREInspection[Line],0),MATCH('Post-Install Information'!K$3,'Pre-Install Inspection'!$A$3:$N$3,0)),IF(OR(Table_POSTInfo[[#This Row],[Line]]=\"\",INDEX(Table_PREInfo[],Table_POSTInfo[[#This Row],[Line]],K$3)=\"\"),\"\",INDEX(Table_PREInfo[],Table_POSTInfo[[#This Row],[Line]],K$3)))","v":""},{"$f":"IF(ISNUMBER(MATCH(Table_POSTInfo[[#This Row],[Line]],Table_PREInspection[Line],0)),INDEX(Table_PREInspection[],MATCH(Table_POSTInfo[[#This Row],[Line]],Table_PREInspection[Line],0),MATCH('Post-Install Information'!L$3,'Pre-Install Inspection'!$A$3:$N$3,0)),IF(OR(Table_POSTInfo[[#This Row],[Line]]=\"\",INDEX(Table_PREInfo[],Table_POSTInfo[[#This Row],[Line]],L$3)=\"\"),\"\",INDEX(Table_PREInfo[],Table_POSTInfo[[#This Row],[Line]],L$3)))","v":""},{"$f":"IF(ISNUMBER(MATCH(Table_POSTInfo[[#This Row],[Line]],Table_PREInspection[Line],0)),INDEX(Table_PREInspection[],MATCH(Table_POSTInfo[[#This Row],[Line]],Table_PREInspection[Line],0),MATCH('Post-Install Information'!M$3,'Pre-Install Inspection'!$A$3:$N$3,0)),IF(OR(Table_POSTInfo[[#This Row],[Line]]=\"\",INDEX(Table_PREInfo[],Table_POSTInfo[[#This Row],[Line]],M$3)=\"\"),\"\",INDEX(Table_PREInfo[],Table_POSTInfo[[#This Row],[Line]],M$3)))","v":""},{"$f":"IF(ISNUMBER(MATCH(Table_POSTInfo[[#This Row],[Line]],Table_PREInspection[Line],0)),INDEX(Table_PREInspection[],MATCH(Table_POSTInfo[[#This Row],[Line]],Table_PREInspection[Line],0),MATCH('Post-Install Information'!N$3,'Pre-Install Inspection'!$A$3:$N$3,0)),IF(OR(Table_POSTInfo[[#This Row],[Line]]=\"\",INDEX(Table_PREInfo[],Table_POSTInfo[[#This Row],[Line]],N$3)=\"\"),\"\",INDEX(Table_PREInfo[],Table_POSTInfo[[#This Row],[Line]],N$3)))","v":""},{"$f":"IF(ISNUMBER(MATCH(Table_POSTInfo[[#This Row],[Line]],Table_PREInspection[Line],0)),INDEX(Table_PREInspection[],MATCH(Table_POSTInfo[[#This Row],[Line]],Table_PREInspection[Line],0),MATCH('Post-Install Information'!O$3,'Pre-Install Inspection'!$A$3:$N$3,0)),IF(OR(Table_POSTInfo[[#This Row],[Line]]=\"\",INDEX(Table_PREInfo[],Table_POSTInfo[[#This Row],[Line]],O$3)=\"\"),\"\",INDEX(Table_PREInfo[],Table_POSTInfo[[#This Row],[Line]],O$3)))","v":""},{"$f":"IF(ISNUMBER(MATCH(Table_POSTInfo[[#This Row],[Line]],Table_PREInspection[Line],0)),INDEX(Table_PREInspection[],MATCH(Table_POSTInfo[[#This Row],[Line]],Table_PREInspection[Line],0),MATCH('Post-Install Information'!P$3,'Pre-Install Inspection'!$A$3:$N$3,0)),IF(OR(Table_POSTInfo[[#This Row],[Line]]=\"\",INDEX(Table_PREInfo[],Table_POSTInfo[[#This Row],[Line]],P$3)=\"\"),\"\",INDEX(Table_PREInfo[],Table_POSTInfo[[#This Row],[Line]],P$3)))","v":""},null,{"$f":"IF(Table_PREInfo[[#This Row],[Fixture Qty '[P']]]<>0,Table_PREInfo[[#This Row],[Fixture Qty '[P']]],IF(Table_POSTInfo[[#This Row],[Fixture Qty '[E']]]<>0,Table_POSTInfo[[#This Row],[Fixture Qty '[E']]],\"\"))","v":""},{"$f":"IF(OR(Table_POSTInfo[[#This Row],[Line]]=\"\",INDEX(Table_PREInfo[],Table_POSTInfo[[#This Row],[Line]],S$3)=\"\"),\"\",INDEX(Table_PREInfo[],Table_POSTInfo[[#This Row],[Line]],S$3))","v":""},{"$f":"IF(OR(Table_POSTInfo[[#This Row],[Line]]=\"\",INDEX(Table_PREInfo[],Table_POSTInfo[[#This Row],[Line]],T$3)=\"\"),\"\",INDEX(Table_PREInfo[],Table_POSTInfo[[#This Row],[Line]],T$3))","v":""},{"$f":"IF(OR(Table_POSTInfo[[#This Row],[Line]]=\"\",INDEX(Table_PREInfo[],Table_POSTInfo[[#This Row],[Line]],U$3)=\"\"),\"\",INDEX(Table_PREInfo[],Table_POSTInfo[[#This Row],[Line]],U$3))","v":""},{"$f":"IF(OR(Table_POSTInfo[[#This Row],[Line]]=\"\",INDEX(Table_PREInfo[],Table_POSTInfo[[#This Row],[Line]],V$3)=\"\"),\"\",INDEX(Table_PREInfo[],Table_POSTInfo[[#This Row],[Line]],V$3))","v":""},{"$f":"IFERROR(\nIFERROR(OFFSET(Table_TypWattage[[#Headers],[Technology]],MATCH(Table_POSTInfo[[#This Row],[Fixture Technology '[P']]],Table_TypWattage[Technology],0)+MATCH(Table_POSTInfo[[#This Row],[Fixture/ Lamp Wattage '[P']]],INDIRECT(SUBSTITUTE(SUBSTITUTE(Table_POSTInfo[[#This Row],[Fixture Technology '[P']]],\" \",\"_\"),\"-\",\"_\")),0)-1,MATCH(Table_POSTInfo[[#This Row],['# Lamps/ Fixture '[P']]],'Measure Tables'!$Q$2:$V$2,0)+1),IF(Table_POSTInfo[[#This Row],[IsActive]],IF(AND(Table_POSTInfo[[#This Row],['# Lamps/ Fixture '[P']]]<>\"\",Table_POSTInfo[[#This Row],['# Lamps/ Fixture '[P']]]>0,Table_POSTInfo[[#This Row],[Fixture/ Lamp Wattage '[P']]]>0),Table_POSTInfo[[#This Row],['# Lamps/ Fixture '[P']]]*Table_POSTInfo[[#This Row],[Fixture/ Lamp Wattage '[P']]],Table_POSTInfo[[#This Row],[Fixture/ Lamp Wattage '[P']]]),\"\")),\n\"\")","v":""},{"$f":"IF(OR(Table_POSTInfo[[#This Row],[Line]]=\"\",INDEX(Table_PREInfo[],Table_POSTInfo[[#This Row],[Line]],X$3)=\"\"),\"\",INDEX(Table_PREInfo[],Table_POSTInfo[[#This Row],[Line]],X$3))","v":""},{"$f":"IF(OR(Table_POSTInfo[[#This Row],[Line]]=\"\",INDEX(Table_PREInfo[],Table_POSTInfo[[#This Row],[Line]],Y$3)=\"\"),\"\",INDEX(Table_PREInfo[],Table_POSTInfo[[#This Row],[Line]],Y$3))","v":""},{"$f":"IFERROR(IF(Table_POSTInfo[[#This Row],[Interior/ Exterior]]<>\"\",\n  CONCATENATE(\n  Table_POSTInfo[[#This Row],[Fixture Technology '[P']]],\n  \" - \",Table_POSTInfo[[#This Row],[Fixture Type '[P']]],\" [\",\n  IF(Table_POSTInfo[[#This Row],['# Lamps/ Fixture '[P']]]>0,Table_POSTInfo[[#This Row],['# Lamps/ Fixture '[P']]] & \"L - \" & Table_POSTInfo[[#This Row],[Fixture/ Lamp Wattage '[P']]] & \"W\" & IF(Table_POSTInfo[[#This Row],[Ballast/ Driver '[P']]]<>\"\",\" - \" & Table_POSTInfo[[#This Row],[Ballast/ Driver '[P']]],\"\"),Table_POSTInfo[[#This Row],[Fixture Wattage '[P']]] & \"W\"),\"]\",\n  IF(AND(Table_POSTInfo[[#This Row],[Controls '[P']]]<>\"\",Table_POSTInfo[[#This Row],[Controls '[P']]]<>\"No Controls\"),\" - \" & Table_POSTInfo[[#This Row],[Controls '[P']]],\"\")\n  ),\n\"\"),\"\")","v":""},{"$f":"IF(OR(Table_POSTInfo[[#This Row],[Line]]=\"\",INDEX(Table_PREInfo[],Table_POSTInfo[[#This Row],[Line]],AA$3)=\"\"),\"\",INDEX(Table_PREInfo[],Table_POSTInfo[[#This Row],[Line]],AA$3))","v":""},{"$f":"IF(OR(Table_POSTInfo[[#This Row],[Line]]=\"\",INDEX(Table_PREInfo[],Table_POSTInfo[[#This Row],[Line]],AB$3)=\"\"),\"\",INDEX(Table_PREInfo[],Table_POSTInfo[[#This Row],[Line]],AB$3))","v":""},{"$f":"IF(OR(Table_POSTInfo[[#This Row],[Line]]=\"\",INDEX(Table_PREInfo[],Table_POSTInfo[[#This Row],[Line]],AC$3)=\"\"),\"\",INDEX(Table_PREInfo[],Table_POSTInfo[[#This Row],[Line]],AC$3))","v":""}]
[{"$f":"IF($A13=\"Line\",1,MAX($A$4:$A13)+1)","v":10},{"$f":"IF(OR(Table_POSTInfo[[#This Row],[Line]]=\"\",INDEX(Table_PREInfo[],Table_POSTInfo[[#This Row],[Line]],B$3)=\"\"),\"\",INDEX(Table_PREInfo[],Table_POSTInfo[[#This Row],[Line]],B$3))","v":false},{"$f":"IF(OR(Table_POSTInfo[[#This Row],[Line]]=\"\",INDEX(Table_PREInfo[],Table_POSTInfo[[#This Row],[Line]],C$3)=\"\"),\"\",INDEX(Table_PREInfo[],Table_POSTInfo[[#This Row],[Line]],C$3))","v":""},{"$f":"IF(ISNUMBER(MATCH(Table_POSTInfo[[#This Row],[Line]],Table_PREInspection[Line],0)),INDEX(Table_PREInspection[],MATCH(Table_POSTInfo[[#This Row],[Line]],Table_PREInspection[Line],0),MATCH('Post-Install Information'!D$3,'Pre-Install Inspection'!$A$3:$N$3,0)),IF(OR(Table_POSTInfo[[#This Row],[Line]]=\"\",INDEX(Table_PREInfo[],Table_POSTInfo[[#This Row],[Line]],D$3)=\"\"),\"\",INDEX(Table_PREInfo[],Table_POSTInfo[[#This Row],[Line]],D$3)))","v":""},{"$f":"IF(ISNUMBER(MATCH(Table_POSTInfo[[#This Row],[Line]],Table_PREInspection[Line],0)),INDEX(Table_PREInspection[],MATCH(Table_POSTInfo[[#This Row],[Line]],Table_PREInspection[Line],0),MATCH('Post-Install Information'!E$3,'Pre-Install Inspection'!$A$3:$N$3,0)),IF(OR(Table_POSTInfo[[#This Row],[Line]]=\"\",INDEX(Table_PREInfo[],Table_POSTInfo[[#This Row],[Line]],E$3)=\"\"),\"\",INDEX(Table_PREInfo[],Table_POSTInfo[[#This Row],[Line]],E$3)))","v":""},{"$f":"IF(ISNUMBER(MATCH(Table_POSTInfo[[#This Row],[Line]],Table_PREInspection[Line],0)),INDEX(Table_PREInspection[],MATCH(Table_POSTInfo[[#This Row],[Line]],Table_PREInspection[Line],0),MATCH('Post-Install Information'!F$3,'Pre-Install Inspection'!$A$3:$N$3,0)),IF(OR(Table_POSTInfo[[#This Row],[Line]]=\"\",INDEX(Table_PREInfo[],Table_POSTInfo[[#This Row],[Line]],F$3)=\"\"),\"\",INDEX(Table_PREInfo[],Table_POSTInfo[[#This Row],[Line]],F$3)))","v":""},null,{"$f":"IF(ISNUMBER(MATCH(Table_POSTInfo[[#This Row],[Line]],Table_PREInspection[Line],0)),INDEX(Table_PREInspection[],MATCH(Table_POSTInfo[[#This Row],[Line]],Table_PREInspection[Line],0),MATCH('Post-Install Information'!H$3,'Pre-Install Inspection'!$A$3:$N$3,0)),IF(OR(Table_POSTInfo[[#This Row],[Line]]=\"\",INDEX(Table_PREInfo[],Table_POSTInfo[[#This Row],[Line]],H$3)=\"\"),\"\",INDEX(Table_PREInfo[],Table_POSTInfo[[#This Row],[Line]],H$3)))","v":""},{"$f":"IF(ISNUMBER(MATCH(Table_POSTInfo[[#This Row],[Line]],Table_PREInspection[Line],0)),INDEX(Table_PREInspection[],MATCH(Table_POSTInfo[[#This Row],[Line]],Table_PREInspection[Line],0),MATCH('Post-Install Information'!I$3,'Pre-Install Inspection'!$A$3:$N$3,0)),IF(OR(Table_POSTInfo[[#This Row],[Line]]=\"\",INDEX(Table_PREInfo[],Table_POSTInfo[[#This Row],[Line]],I$3)=\"\"),\"\",INDEX(Table_PREInfo[],Table_POSTInfo[[#This Row],[Line]],I$3)))","v":""},{"$f":"IF(ISNUMBER(MATCH(Table_POSTInfo[[#This Row],[Line]],Table_PREInspection[Line],0)),INDEX(Table_PREInspection[],MATCH(Table_POSTInfo[[#This Row],[Line]],Table_PREInspection[Line],0),MATCH('Post-Install Information'!J$3,'Pre-Install Inspection'!$A$3:$N$3,0)),IF(OR(Table_POSTInfo[[#This Row],[Line]]=\"\",INDEX(Table_PREInfo[],Table_POSTInfo[[#This Row],[Line]],J$3)=\"\"),\"\",INDEX(Table_PREInfo[],Table_POSTInfo[[#This Row],[Line]],J$3)))","v":""},{"$f":"IF(ISNUMBER(MATCH(Table_POSTInfo[[#This Row],[Line]],Table_PREInspection[Line],0)),INDEX(Table_PREInspection[],MATCH(Table_POSTInfo[[#This Row],[Line]],Table_PREInspection[Line],0),MATCH('Post-Install Information'!K$3,'Pre-Install Inspection'!$A$3:$N$3,0)),IF(OR(Table_POSTInfo[[#This Row],[Line]]=\"\",INDEX(Table_PREInfo[],Table_POSTInfo[[#This Row],[Line]],K$3)=\"\"),\"\",INDEX(Table_PREInfo[],Table_POSTInfo[[#This Row],[Line]],K$3)))","v":""},{"$f":"IF(ISNUMBER(MATCH(Table_POSTInfo[[#This Row],[Line]],Table_PREInspection[Line],0)),INDEX(Table_PREInspection[],MATCH(Table_POSTInfo[[#This Row],[Line]],Table_PREInspection[Line],0),MATCH('Post-Install Information'!L$3,'Pre-Install Inspection'!$A$3:$N$3,0)),IF(OR(Table_POSTInfo[[#This Row],[Line]]=\"\",INDEX(Table_PREInfo[],Table_POSTInfo[[#This Row],[Line]],L$3)=\"\"),\"\",INDEX(Table_PREInfo[],Table_POSTInfo[[#This Row],[Line]],L$3)))","v":""},{"$f":"IF(ISNUMBER(MATCH(Table_POSTInfo[[#This Row],[Line]],Table_PREInspection[Line],0)),INDEX(Table_PREInspection[],MATCH(Table_POSTInfo[[#This Row],[Line]],Table_PREInspection[Line],0),MATCH('Post-Install Information'!M$3,'Pre-Install Inspection'!$A$3:$N$3,0)),IF(OR(Table_POSTInfo[[#This Row],[Line]]=\"\",INDEX(Table_PREInfo[],Table_POSTInfo[[#This Row],[Line]],M$3)=\"\"),\"\",INDEX(Table_PREInfo[],Table_POSTInfo[[#This Row],[Line]],M$3)))","v":""},{"$f":"IF(ISNUMBER(MATCH(Table_POSTInfo[[#This Row],[Line]],Table_PREInspection[Line],0)),INDEX(Table_PREInspection[],MATCH(Table_POSTInfo[[#This Row],[Line]],Table_PREInspection[Line],0),MATCH('Post-Install Information'!N$3,'Pre-Install Inspection'!$A$3:$N$3,0)),IF(OR(Table_POSTInfo[[#This Row],[Line]]=\"\",INDEX(Table_PREInfo[],Table_POSTInfo[[#This Row],[Line]],N$3)=\"\"),\"\",INDEX(Table_PREInfo[],Table_POSTInfo[[#This Row],[Line]],N$3)))","v":""},{"$f":"IF(ISNUMBER(MATCH(Table_POSTInfo[[#This Row],[Line]],Table_PREInspection[Line],0)),INDEX(Table_PREInspection[],MATCH(Table_POSTInfo[[#This Row],[Line]],Table_PREInspection[Line],0),MATCH('Post-Install Information'!O$3,'Pre-Install Inspection'!$A$3:$N$3,0)),IF(OR(Table_POSTInfo[[#This Row],[Line]]=\"\",INDEX(Table_PREInfo[],Table_POSTInfo[[#This Row],[Line]],O$3)=\"\"),\"\",INDEX(Table_PREInfo[],Table_POSTInfo[[#This Row],[Line]],O$3)))","v":""},{"$f":"IF(ISNUMBER(MATCH(Table_POSTInfo[[#This Row],[Line]],Table_PREInspection[Line],0)),INDEX(Table_PREInspection[],MATCH(Table_POSTInfo[[#This Row],[Line]],Table_PREInspection[Line],0),MATCH('Post-Install Information'!P$3,'Pre-Install Inspection'!$A$3:$N$3,0)),IF(OR(Table_POSTInfo[[#This Row],[Line]]=\"\",INDEX(Table_PREInfo[],Table_POSTInfo[[#This Row],[Line]],P$3)=\"\"),\"\",INDEX(Table_PREInfo[],Table_POSTInfo[[#This Row],[Line]],P$3)))","v":""},null,{"$f":"IF(Table_PREInfo[[#This Row],[Fixture Qty '[P']]]<>0,Table_PREInfo[[#This Row],[Fixture Qty '[P']]],IF(Table_POSTInfo[[#This Row],[Fixture Qty '[E']]]<>0,Table_POSTInfo[[#This Row],[Fixture Qty '[E']]],\"\"))","v":""},{"$f":"IF(OR(Table_POSTInfo[[#This Row],[Line]]=\"\",INDEX(Table_PREInfo[],Table_POSTInfo[[#This Row],[Line]],S$3)=\"\"),\"\",INDEX(Table_PREInfo[],Table_POSTInfo[[#This Row],[Line]],S$3))","v":""},{"$f":"IF(OR(Table_POSTInfo[[#This Row],[Line]]=\"\",INDEX(Table_PREInfo[],Table_POSTInfo[[#This Row],[Line]],T$3)=\"\"),\"\",INDEX(Table_PREInfo[],Table_POSTInfo[[#This Row],[Line]],T$3))","v":""},{"$f":"IF(OR(Table_POSTInfo[[#This Row],[Line]]=\"\",INDEX(Table_PREInfo[],Table_POSTInfo[[#This Row],[Line]],U$3)=\"\"),\"\",INDEX(Table_PREInfo[],Table_POSTInfo[[#This Row],[Line]],U$3))","v":""},{"$f":"IF(OR(Table_POSTInfo[[#This Row],[Line]]=\"\",INDEX(Table_PREInfo[],Table_POSTInfo[[#This Row],[Line]],V$3)=\"\"),\"\",INDEX(Table_PREInfo[],Table_POSTInfo[[#This Row],[Line]],V$3))","v":""},{"$f":"IFERROR(\nIFERROR(OFFSET(Table_TypWattage[[#Headers],[Technology]],MATCH(Table_POSTInfo[[#This Row],[Fixture Technology '[P']]],Table_TypWattage[Technology],0)+MATCH(Table_POSTInfo[[#This Row],[Fixture/ Lamp Wattage '[P']]],INDIRECT(SUBSTITUTE(SUBSTITUTE(Table_POSTInfo[[#This Row],[Fixture Technology '[P']]],\" \",\"_\"),\"-\",\"_\")),0)-1,MATCH(Table_POSTInfo[[#This Row],['# Lamps/ Fixture '[P']]],'Measure Tables'!$Q$2:$V$2,0)+1),IF(Table_POSTInfo[[#This Row],[IsActive]],IF(AND(Table_POSTInfo[[#This Row],['# Lamps/ Fixture '[P']]]<>\"\",Table_POSTInfo[[#This Row],['# Lamps/ Fixture '[P']]]>0,Table_POSTInfo[[#This Row],[Fixture/ Lamp Wattage '[P']]]>0),Table_POSTInfo[[#This Row],['# Lamps/ Fixture '[P']]]*Table_POSTInfo[[#This Row],[Fixture/ Lamp Wattage '[P']]],Table_POSTInfo[[#This Row],[Fixture/ Lamp Wattage '[P']]]),\"\")),\n\"\")","v":""},{"$f":"IF(OR(Table_POSTInfo[[#This Row],[Line]]=\"\",INDEX(Table_PREInfo[],Table_POSTInfo[[#This Row],[Line]],X$3)=\"\"),\"\",INDEX(Table_PREInfo[],Table_POSTInfo[[#This Row],[Line]],X$3))","v":""},{"$f":"IF(OR(Table_POSTInfo[[#This Row],[Line]]=\"\",INDEX(Table_PREInfo[],Table_POSTInfo[[#This Row],[Line]],Y$3)=\"\"),\"\",INDEX(Table_PREInfo[],Table_POSTInfo[[#This Row],[Line]],Y$3))","v":""},{"$f":"IFERROR(IF(Table_POSTInfo[[#This Row],[Interior/ Exterior]]<>\"\",\n  CONCATENATE(\n  Table_POSTInfo[[#This Row],[Fixture Technology '[P']]],\n  \" - \",Table_POSTInfo[[#This Row],[Fixture Type '[P']]],\" [\",\n  IF(Table_POSTInfo[[#This Row],['# Lamps/ Fixture '[P']]]>0,Table_POSTInfo[[#This Row],['# Lamps/ Fixture '[P']]] & \"L - \" & Table_POSTInfo[[#This Row],[Fixture/ Lamp Wattage '[P']]] & \"W\" & IF(Table_POSTInfo[[#This Row],[Ballast/ Driver '[P']]]<>\"\",\" - \" & Table_POSTInfo[[#This Row],[Ballast/ Driver '[P']]],\"\"),Table_POSTInfo[[#This Row],[Fixture Wattage '[P']]] & \"W\"),\"]\",\n  IF(AND(Table_POSTInfo[[#This Row],[Controls '[P']]]<>\"\",Table_POSTInfo[[#This Row],[Controls '[P']]]<>\"No Controls\"),\" - \" & Table_POSTInfo[[#This Row],[Controls '[P']]],\"\")\n  ),\n\"\"),\"\")","v":""},{"$f":"IF(OR(Table_POSTInfo[[#This Row],[Line]]=\"\",INDEX(Table_PREInfo[],Table_POSTInfo[[#This Row],[Line]],AA$3)=\"\"),\"\",INDEX(Table_PREInfo[],Table_POSTInfo[[#This Row],[Line]],AA$3))","v":""},{"$f":"IF(OR(Table_POSTInfo[[#This Row],[Line]]=\"\",INDEX(Table_PREInfo[],Table_POSTInfo[[#This Row],[Line]],AB$3)=\"\"),\"\",INDEX(Table_PREInfo[],Table_POSTInfo[[#This Row],[Line]],AB$3))","v":""},{"$f":"IF(OR(Table_POSTInfo[[#This Row],[Line]]=\"\",INDEX(Table_PREInfo[],Table_POSTInfo[[#This Row],[Line]],AC$3)=\"\"),\"\",INDEX(Table_PREInfo[],Table_POSTInfo[[#This Row],[Line]],AC$3))","v":""}]
[{"$f":"IF($A14=\"Line\",1,MAX($A$4:$A14)+1)","v":11},{"$f":"IF(OR(Table_POSTInfo[[#This Row],[Line]]=\"\",INDEX(Table_PREInfo[],Table_POSTInfo[[#This Row],[Line]],B$3)=\"\"),\"\",INDEX(Table_PREInfo[],Table_POSTInfo[[#This Row],[Line]],B$3))","v":false},{"$f":"IF(OR(Table_POSTInfo[[#This Row],[Line]]=\"\",INDEX(Table_PREInfo[],Table_POSTInfo[[#This Row],[Line]],C$3)=\"\"),\"\",INDEX(Table_PREInfo[],Table_POSTInfo[[#This Row],[Line]],C$3))","v":""},{"$f":"IF(ISNUMBER(MATCH(Table_POSTInfo[[#This Row],[Line]],Table_PREInspection[Line],0)),INDEX(Table_PREInspection[],MATCH(Table_POSTInfo[[#This Row],[Line]],Table_PREInspection[Line],0),MATCH('Post-Install Information'!D$3,'Pre-Install Inspection'!$A$3:$N$3,0)),IF(OR(Table_POSTInfo[[#This Row],[Line]]=\"\",INDEX(Table_PREInfo[],Table_POSTInfo[[#This Row],[Line]],D$3)=\"\"),\"\",INDEX(Table_PREInfo[],Table_POSTInfo[[#This Row],[Line]],D$3)))","v":""},{"$f":"IF(ISNUMBER(MATCH(Table_POSTInfo[[#This Row],[Line]],Table_PREInspection[Line],0)),INDEX(Table_PREInspection[],MATCH(Table_POSTInfo[[#This Row],[Line]],Table_PREInspection[Line],0),MATCH('Post-Install Information'!E$3,'Pre-Install Inspection'!$A$3:$N$3,0)),IF(OR(Table_POSTInfo[[#This Row],[Line]]=\"\",INDEX(Table_PREInfo[],Table_POSTInfo[[#This Row],[Line]],E$3)=\"\"),\"\",INDEX(Table_PREInfo[],Table_POSTInfo[[#This Row],[Line]],E$3)))","v":""},{"$f":"IF(ISNUMBER(MATCH(Table_POSTInfo[[#This Row],[Line]],Table_PREInspection[Line],0)),INDEX(Table_PREInspection[],MATCH(Table_POSTInfo[[#This Row],[Line]],Table_PREInspection[Line],0),MATCH('Post-Install Information'!F$3,'Pre-Install Inspection'!$A$3:$N$3,0)),IF(OR(Table_POSTInfo[[#This Row],[Line]]=\"\",INDEX(Table_PREInfo[],Table_POSTInfo[[#This Row],[Line]],F$3)=\"\"),\"\",INDEX(Table_PREInfo[],Table_POSTInfo[[#This Row],[Line]],F$3)))","v":""},null,{"$f":"IF(ISNUMBER(MATCH(Table_POSTInfo[[#This Row],[Line]],Table_PREInspection[Line],0)),INDEX(Table_PREInspection[],MATCH(Table_POSTInfo[[#This Row],[Line]],Table_PREInspection[Line],0),MATCH('Post-Install Information'!H$3,'Pre-Install Inspection'!$A$3:$N$3,0)),IF(OR(Table_POSTInfo[[#This Row],[Line]]=\"\",INDEX(Table_PREInfo[],Table_POSTInfo[[#This Row],[Line]],H$3)=\"\"),\"\",INDEX(Table_PREInfo[],Table_POSTInfo[[#This Row],[Line]],H$3)))","v":""},{"$f":"IF(ISNUMBER(MATCH(Table_POSTInfo[[#This Row],[Line]],Table_PREInspection[Line],0)),INDEX(Table_PREInspection[],MATCH(Table_POSTInfo[[#This Row],[Line]],Table_PREInspection[Line],0),MATCH('Post-Install Information'!I$3,'Pre-Install Inspection'!$A$3:$N$3,0)),IF(OR(Table_POSTInfo[[#This Row],[Line]]=\"\",INDEX(Table_PREInfo[],Table_POSTInfo[[#This Row],[Line]],I$3)=\"\"),\"\",INDEX(Table_PREInfo[],Table_POSTInfo[[#This Row],[Line]],I$3)))","v":""},{"$f":"IF(ISNUMBER(MATCH(Table_POSTInfo[[#This Row],[Line]],Table_PREInspection[Line],0)),INDEX(Table_PREInspection[],MATCH(Table_POSTInfo[[#This Row],[Line]],Table_PREInspection[Line],0),MATCH('Post-Install Information'!J$3,'Pre-Install Inspection'!$A$3:$N$3,0)),IF(OR(Table_POSTInfo[[#This Row],[Line]]=\"\",INDEX(Table_PREInfo[],Table_POSTInfo[[#This Row],[Line]],J$3)=\"\"),\"\",INDEX(Table_PREInfo[],Table_POSTInfo[[#This Row],[Line]],J$3)))","v":""},{"$f":"IF(ISNUMBER(MATCH(Table_POSTInfo[[#This Row],[Line]],Table_PREInspection[Line],0)),INDEX(Table_PREInspection[],MATCH(Table_POSTInfo[[#This Row],[Line]],Table_PREInspection[Line],0),MATCH('Post-Install Information'!K$3,'Pre-Install Inspection'!$A$3:$N$3,0)),IF(OR(Table_POSTInfo[[#This Row],[Line]]=\"\",INDEX(Table_PREInfo[],Table_POSTInfo[[#This Row],[Line]],K$3)=\"\"),\"\",INDEX(Table_PREInfo[],Table_POSTInfo[[#This Row],[Line]],K$3)))","v":""},{"$f":"IF(ISNUMBER(MATCH(Table_POSTInfo[[#This Row],[Line]],Table_PREInspection[Line],0)),INDEX(Table_PREInspection[],MATCH(Table_POSTInfo[[#This Row],[Line]],Table_PREInspection[Line],0),MATCH('Post-Install Information'!L$3,'Pre-Install Inspection'!$A$3:$N$3,0)),IF(OR(Table_POSTInfo[[#This Row],[Line]]=\"\",INDEX(Table_PREInfo[],Table_POSTInfo[[#This Row],[Line]],L$3)=\"\"),\"\",INDEX(Table_PREInfo[],Table_POSTInfo[[#This Row],[Line]],L$3)))","v":""},{"$f":"IF(ISNUMBER(MATCH(Table_POSTInfo[[#This Row],[Line]],Table_PREInspection[Line],0)),INDEX(Table_PREInspection[],MATCH(Table_POSTInfo[[#This Row],[Line]],Table_PREInspection[Line],0),MATCH('Post-Install Information'!M$3,'Pre-Install Inspection'!$A$3:$N$3,0)),IF(OR(Table_POSTInfo[[#This Row],[Line]]=\"\",INDEX(Table_PREInfo[],Table_POSTInfo[[#This Row],[Line]],M$3)=\"\"),\"\",INDEX(Table_PREInfo[],Table_POSTInfo[[#This Row],[Line]],M$3)))","v":""},{"$f":"IF(ISNUMBER(MATCH(Table_POSTInfo[[#This Row],[Line]],Table_PREInspection[Line],0)),INDEX(Table_PREInspection[],MATCH(Table_POSTInfo[[#This Row],[Line]],Table_PREInspection[Line],0),MATCH('Post-Install Information'!N$3,'Pre-Install Inspection'!$A$3:$N$3,0)),IF(OR(Table_POSTInfo[[#This Row],[Line]]=\"\",INDEX(Table_PREInfo[],Table_POSTInfo[[#This Row],[Line]],N$3)=\"\"),\"\",INDEX(Table_PREInfo[],Table_POSTInfo[[#This Row],[Line]],N$3)))","v":""},{"$f":"IF(ISNUMBER(MATCH(Table_POSTInfo[[#This Row],[Line]],Table_PREInspection[Line],0)),INDEX(Table_PREInspection[],MATCH(Table_POSTInfo[[#This Row],[Line]],Table_PREInspection[Line],0),MATCH('Post-Install Information'!O$3,'Pre-Install Inspection'!$A$3:$N$3,0)),IF(OR(Table_POSTInfo[[#This Row],[Line]]=\"\",INDEX(Table_PREInfo[],Table_POSTInfo[[#This Row],[Line]],O$3)=\"\"),\"\",INDEX(Table_PREInfo[],Table_POSTInfo[[#This Row],[Line]],O$3)))","v":""},{"$f":"IF(ISNUMBER(MATCH(Table_POSTInfo[[#This Row],[Line]],Table_PREInspection[Line],0)),INDEX(Table_PREInspection[],MATCH(Table_POSTInfo[[#This Row],[Line]],Table_PREInspection[Line],0),MATCH('Post-Install Information'!P$3,'Pre-Install Inspection'!$A$3:$N$3,0)),IF(OR(Table_POSTInfo[[#This Row],[Line]]=\"\",INDEX(Table_PREInfo[],Table_POSTInfo[[#This Row],[Line]],P$3)=\"\"),\"\",INDEX(Table_PREInfo[],Table_POSTInfo[[#This Row],[Line]],P$3)))","v":""},null,{"$f":"IF(Table_PREInfo[[#This Row],[Fixture Qty '[P']]]<>0,Table_PREInfo[[#This Row],[Fixture Qty '[P']]],IF(Table_POSTInfo[[#This Row],[Fixture Qty '[E']]]<>0,Table_POSTInfo[[#This Row],[Fixture Qty '[E']]],\"\"))","v":""},{"$f":"IF(OR(Table_POSTInfo[[#This Row],[Line]]=\"\",INDEX(Table_PREInfo[],Table_POSTInfo[[#This Row],[Line]],S$3)=\"\"),\"\",INDEX(Table_PREInfo[],Table_POSTInfo[[#This Row],[Line]],S$3))","v":""},{"$f":"IF(OR(Table_POSTInfo[[#This Row],[Line]]=\"\",INDEX(Table_PREInfo[],Table_POSTInfo[[#This Row],[Line]],T$3)=\"\"),\"\",INDEX(Table_PREInfo[],Table_POSTInfo[[#This Row],[Line]],T$3))","v":""},{"$f":"IF(OR(Table_POSTInfo[[#This Row],[Line]]=\"\",INDEX(Table_PREInfo[],Table_POSTInfo[[#This Row],[Line]],U$3)=\"\"),\"\",INDEX(Table_PREInfo[],Table_POSTInfo[[#This Row],[Line]],U$3))","v":""},{"$f":"IF(OR(Table_POSTInfo[[#This Row],[Line]]=\"\",INDEX(Table_PREInfo[],Table_POSTInfo[[#This Row],[Line]],V$3)=\"\"),\"\",INDEX(Table_PREInfo[],Table_POSTInfo[[#This Row],[Line]],V$3))","v":""},{"$f":"IFERROR(\nIFERROR(OFFSET(Table_TypWattage[[#Headers],[Technology]],MATCH(Table_POSTInfo[[#This Row],[Fixture Technology '[P']]],Table_TypWattage[Technology],0)+MATCH(Table_POSTInfo[[#This Row],[Fixture/ Lamp Wattage '[P']]],INDIRECT(SUBSTITUTE(SUBSTITUTE(Table_POSTInfo[[#This Row],[Fixture Technology '[P']]],\" \",\"_\"),\"-\",\"_\")),0)-1,MATCH(Table_POSTInfo[[#This Row],['# Lamps/ Fixture '[P']]],'Measure Tables'!$Q$2:$V$2,0)+1),IF(Table_POSTInfo[[#This Row],[IsActive]],IF(AND(Table_POSTInfo[[#This Row],['# Lamps/ Fixture '[P']]]<>\"\",Table_POSTInfo[[#This Row],['# Lamps/ Fixture '[P']]]>0,Table_POSTInfo[[#This Row],[Fixture/ Lamp Wattage '[P']]]>0),Table_POSTInfo[[#This Row],['# Lamps/ Fixture '[P']]]*Table_POSTInfo[[#This Row],[Fixture/ Lamp Wattage '[P']]],Table_POSTInfo[[#This Row],[Fixture/ Lamp Wattage '[P']]]),\"\")),\n\"\")","v":""},{"$f":"IF(OR(Table_POSTInfo[[#This Row],[Line]]=\"\",INDEX(Table_PREInfo[],Table_POSTInfo[[#This Row],[Line]],X$3)=\"\"),\"\",INDEX(Table_PREInfo[],Table_POSTInfo[[#This Row],[Line]],X$3))","v":""},{"$f":"IF(OR(Table_POSTInfo[[#This Row],[Line]]=\"\",INDEX(Table_PREInfo[],Table_POSTInfo[[#This Row],[Line]],Y$3)=\"\"),\"\",INDEX(Table_PREInfo[],Table_POSTInfo[[#This Row],[Line]],Y$3))","v":""},{"$f":"IFERROR(IF(Table_POSTInfo[[#This Row],[Interior/ Exterior]]<>\"\",\n  CONCATENATE(\n  Table_POSTInfo[[#This Row],[Fixture Technology '[P']]],\n  \" - \",Table_POSTInfo[[#This Row],[Fixture Type '[P']]],\" [\",\n  IF(Table_POSTInfo[[#This Row],['# Lamps/ Fixture '[P']]]>0,Table_POSTInfo[[#This Row],['# Lamps/ Fixture '[P']]] & \"L - \" & Table_POSTInfo[[#This Row],[Fixture/ Lamp Wattage '[P']]] & \"W\" & IF(Table_POSTInfo[[#This Row],[Ballast/ Driver '[P']]]<>\"\",\" - \" & Table_POSTInfo[[#This Row],[Ballast/ Driver '[P']]],\"\"),Table_POSTInfo[[#This Row],[Fixture Wattage '[P']]] & \"W\"),\"]\",\n  IF(AND(Table_POSTInfo[[#This Row],[Controls '[P']]]<>\"\",Table_POSTInfo[[#This Row],[Controls '[P']]]<>\"No Controls\"),\" - \" & Table_POSTInfo[[#This Row],[Controls '[P']]],\"\")\n  ),\n\"\"),\"\")","v":""},{"$f":"IF(OR(Table_POSTInfo[[#This Row],[Line]]=\"\",INDEX(Table_PREInfo[],Table_POSTInfo[[#This Row],[Line]],AA$3)=\"\"),\"\",INDEX(Table_PREInfo[],Table_POSTInfo[[#This Row],[Line]],AA$3))","v":""},{"$f":"IF(OR(Table_POSTInfo[[#This Row],[Line]]=\"\",INDEX(Table_PREInfo[],Table_POSTInfo[[#This Row],[Line]],AB$3)=\"\"),\"\",INDEX(Table_PREInfo[],Table_POSTInfo[[#This Row],[Line]],AB$3))","v":""},{"$f":"IF(OR(Table_POSTInfo[[#This Row],[Line]]=\"\",INDEX(Table_PREInfo[],Table_POSTInfo[[#This Row],[Line]],AC$3)=\"\"),\"\",INDEX(Table_PREInfo[],Table_POSTInfo[[#This Row],[Line]],AC$3))","v":""}]
[{"$f":"IF($A15=\"Line\",1,MAX($A$4:$A15)+1)","v":12},{"$f":"IF(OR(Table_POSTInfo[[#This Row],[Line]]=\"\",INDEX(Table_PREInfo[],Table_POSTInfo[[#This Row],[Line]],B$3)=\"\"),\"\",INDEX(Table_PREInfo[],Table_POSTInfo[[#This Row],[Line]],B$3))","v":false},{"$f":"IF(OR(Table_POSTInfo[[#This Row],[Line]]=\"\",INDEX(Table_PREInfo[],Table_POSTInfo[[#This Row],[Line]],C$3)=\"\"),\"\",INDEX(Table_PREInfo[],Table_POSTInfo[[#This Row],[Line]],C$3))","v":""},{"$f":"IF(ISNUMBER(MATCH(Table_POSTInfo[[#This Row],[Line]],Table_PREInspection[Line],0)),INDEX(Table_PREInspection[],MATCH(Table_POSTInfo[[#This Row],[Line]],Table_PREInspection[Line],0),MATCH('Post-Install Information'!D$3,'Pre-Install Inspection'!$A$3:$N$3,0)),IF(OR(Table_POSTInfo[[#This Row],[Line]]=\"\",INDEX(Table_PREInfo[],Table_POSTInfo[[#This Row],[Line]],D$3)=\"\"),\"\",INDEX(Table_PREInfo[],Table_POSTInfo[[#This Row],[Line]],D$3)))","v":""},{"$f":"IF(ISNUMBER(MATCH(Table_POSTInfo[[#This Row],[Line]],Table_PREInspection[Line],0)),INDEX(Table_PREInspection[],MATCH(Table_POSTInfo[[#This Row],[Line]],Table_PREInspection[Line],0),MATCH('Post-Install Information'!E$3,'Pre-Install Inspection'!$A$3:$N$3,0)),IF(OR(Table_POSTInfo[[#This Row],[Line]]=\"\",INDEX(Table_PREInfo[],Table_POSTInfo[[#This Row],[Line]],E$3)=\"\"),\"\",INDEX(Table_PREInfo[],Table_POSTInfo[[#This Row],[Line]],E$3)))","v":""},{"$f":"IF(ISNUMBER(MATCH(Table_POSTInfo[[#This Row],[Line]],Table_PREInspection[Line],0)),INDEX(Table_PREInspection[],MATCH(Table_POSTInfo[[#This Row],[Line]],Table_PREInspection[Line],0),MATCH('Post-Install Information'!F$3,'Pre-Install Inspection'!$A$3:$N$3,0)),IF(OR(Table_POSTInfo[[#This Row],[Line]]=\"\",INDEX(Table_PREInfo[],Table_POSTInfo[[#This Row],[Line]],F$3)=\"\"),\"\",INDEX(Table_PREInfo[],Table_POSTInfo[[#This Row],[Line]],F$3)))","v":""},null,{"$f":"IF(ISNUMBER(MATCH(Table_POSTInfo[[#This Row],[Line]],Table_PREInspection[Line],0)),INDEX(Table_PREInspection[],MATCH(Table_POSTInfo[[#This Row],[Line]],Table_PREInspection[Line],0),MATCH('Post-Install Information'!H$3,'Pre-Install Inspection'!$A$3:$N$3,0)),IF(OR(Table_POSTInfo[[#This Row],[Line]]=\"\",INDEX(Table_PREInfo[],Table_POSTInfo[[#This Row],[Line]],H$3)=\"\"),\"\",INDEX(Table_PREInfo[],Table_POSTInfo[[#This Row],[Line]],H$3)))","v":""},{"$f":"IF(ISNUMBER(MATCH(Table_POSTInfo[[#This Row],[Line]],Table_PREInspection[Line],0)),INDEX(Table_PREInspection[],MATCH(Table_POSTInfo[[#This Row],[Line]],Table_PREInspection[Line],0),MATCH('Post-Install Information'!I$3,'Pre-Install Inspection'!$A$3:$N$3,0)),IF(OR(Table_POSTInfo[[#This Row],[Line]]=\"\",INDEX(Table_PREInfo[],Table_POSTInfo[[#This Row],[Line]],I$3)=\"\"),\"\",INDEX(Table_PREInfo[],Table_POSTInfo[[#This Row],[Line]],I$3)))","v":""},{"$f":"IF(ISNUMBER(MATCH(Table_POSTInfo[[#This Row],[Line]],Table_PREInspection[Line],0)),INDEX(Table_PREInspection[],MATCH(Table_POSTInfo[[#This Row],[Line]],Table_PREInspection[Line],0),MATCH('Post-Install Information'!J$3,'Pre-Install Inspection'!$A$3:$N$3,0)),IF(OR(Table_POSTInfo[[#This Row],[Line]]=\"\",INDEX(Table_PREInfo[],Table_POSTInfo[[#This Row],[Line]],J$3)=\"\"),\"\",INDEX(Table_PREInfo[],Table_POSTInfo[[#This Row],[Line]],J$3)))","v":""},{"$f":"IF(ISNUMBER(MATCH(Table_POSTInfo[[#This Row],[Line]],Table_PREInspection[Line],0)),INDEX(Table_PREInspection[],MATCH(Table_POSTInfo[[#This Row],[Line]],Table_PREInspection[Line],0),MATCH('Post-Install Information'!K$3,'Pre-Install Inspection'!$A$3:$N$3,0)),IF(OR(Table_POSTInfo[[#This Row],[Line]]=\"\",INDEX(Table_PREInfo[],Table_POSTInfo[[#This Row],[Line]],K$3)=\"\"),\"\",INDEX(Table_PREInfo[],Table_POSTInfo[[#This Row],[Line]],K$3)))","v":""},{"$f":"IF(ISNUMBER(MATCH(Table_POSTInfo[[#This Row],[Line]],Table_PREInspection[Line],0)),INDEX(Table_PREInspection[],MATCH(Table_POSTInfo[[#This Row],[Line]],Table_PREInspection[Line],0),MATCH('Post-Install Information'!L$3,'Pre-Install Inspection'!$A$3:$N$3,0)),IF(OR(Table_POSTInfo[[#This Row],[Line]]=\"\",INDEX(Table_PREInfo[],Table_POSTInfo[[#This Row],[Line]],L$3)=\"\"),\"\",INDEX(Table_PREInfo[],Table_POSTInfo[[#This Row],[Line]],L$3)))","v":""},{"$f":"IF(ISNUMBER(MATCH(Table_POSTInfo[[#This Row],[Line]],Table_PREInspection[Line],0)),INDEX(Table_PREInspection[],MATCH(Table_POSTInfo[[#This Row],[Line]],Table_PREInspection[Line],0),MATCH('Post-Install Information'!M$3,'Pre-Install Inspection'!$A$3:$N$3,0)),IF(OR(Table_POSTInfo[[#This Row],[Line]]=\"\",INDEX(Table_PREInfo[],Table_POSTInfo[[#This Row],[Line]],M$3)=\"\"),\"\",INDEX(Table_PREInfo[],Table_POSTInfo[[#This Row],[Line]],M$3)))","v":""},{"$f":"IF(ISNUMBER(MATCH(Table_POSTInfo[[#This Row],[Line]],Table_PREInspection[Line],0)),INDEX(Table_PREInspection[],MATCH(Table_POSTInfo[[#This Row],[Line]],Table_PREInspection[Line],0),MATCH('Post-Install Information'!N$3,'Pre-Install Inspection'!$A$3:$N$3,0)),IF(OR(Table_POSTInfo[[#This Row],[Line]]=\"\",INDEX(Table_PREInfo[],Table_POSTInfo[[#This Row],[Line]],N$3)=\"\"),\"\",INDEX(Table_PREInfo[],Table_POSTInfo[[#This Row],[Line]],N$3)))","v":""},{"$f":"IF(ISNUMBER(MATCH(Table_POSTInfo[[#This Row],[Line]],Table_PREInspection[Line],0)),INDEX(Table_PREInspection[],MATCH(Table_POSTInfo[[#This Row],[Line]],Table_PREInspection[Line],0),MATCH('Post-Install Information'!O$3,'Pre-Install Inspection'!$A$3:$N$3,0)),IF(OR(Table_POSTInfo[[#This Row],[Line]]=\"\",INDEX(Table_PREInfo[],Table_POSTInfo[[#This Row],[Line]],O$3)=\"\"),\"\",INDEX(Table_PREInfo[],Table_POSTInfo[[#This Row],[Line]],O$3)))","v":""},{"$f":"IF(ISNUMBER(MATCH(Table_POSTInfo[[#This Row],[Line]],Table_PREInspection[Line],0)),INDEX(Table_PREInspection[],MATCH(Table_POSTInfo[[#This Row],[Line]],Table_PREInspection[Line],0),MATCH('Post-Install Information'!P$3,'Pre-Install Inspection'!$A$3:$N$3,0)),IF(OR(Table_POSTInfo[[#This Row],[Line]]=\"\",INDEX(Table_PREInfo[],Table_POSTInfo[[#This Row],[Line]],P$3)=\"\"),\"\",INDEX(Table_PREInfo[],Table_POSTInfo[[#This Row],[Line]],P$3)))","v":""},null,{"$f":"IF(Table_PREInfo[[#This Row],[Fixture Qty '[P']]]<>0,Table_PREInfo[[#This Row],[Fixture Qty '[P']]],IF(Table_POSTInfo[[#This Row],[Fixture Qty '[E']]]<>0,Table_POSTInfo[[#This Row],[Fixture Qty '[E']]],\"\"))","v":""},{"$f":"IF(OR(Table_POSTInfo[[#This Row],[Line]]=\"\",INDEX(Table_PREInfo[],Table_POSTInfo[[#This Row],[Line]],S$3)=\"\"),\"\",INDEX(Table_PREInfo[],Table_POSTInfo[[#This Row],[Line]],S$3))","v":""},{"$f":"IF(OR(Table_POSTInfo[[#This Row],[Line]]=\"\",INDEX(Table_PREInfo[],Table_POSTInfo[[#This Row],[Line]],T$3)=\"\"),\"\",INDEX(Table_PREInfo[],Table_POSTInfo[[#This Row],[Line]],T$3))","v":""},{"$f":"IF(OR(Table_POSTInfo[[#This Row],[Line]]=\"\",INDEX(Table_PREInfo[],Table_POSTInfo[[#This Row],[Line]],U$3)=\"\"),\"\",INDEX(Table_PREInfo[],Table_POSTInfo[[#This Row],[Line]],U$3))","v":""},{"$f":"IF(OR(Table_POSTInfo[[#This Row],[Line]]=\"\",INDEX(Table_PREInfo[],Table_POSTInfo[[#This Row],[Line]],V$3)=\"\"),\"\",INDEX(Table_PREInfo[],Table_POSTInfo[[#This Row],[Line]],V$3))","v":""},{"$f":"IFERROR(\nIFERROR(OFFSET(Table_TypWattage[[#Headers],[Technology]],MATCH(Table_POSTInfo[[#This Row],[Fixture Technology '[P']]],Table_TypWattage[Technology],0)+MATCH(Table_POSTInfo[[#This Row],[Fixture/ Lamp Wattage '[P']]],INDIRECT(SUBSTITUTE(SUBSTITUTE(Table_POSTInfo[[#This Row],[Fixture Technology '[P']]],\" \",\"_\"),\"-\",\"_\")),0)-1,MATCH(Table_POSTInfo[[#This Row],['# Lamps/ Fixture '[P']]],'Measure Tables'!$Q$2:$V$2,0)+1),IF(Table_POSTInfo[[#This Row],[IsActive]],IF(AND(Table_POSTInfo[[#This Row],['# Lamps/ Fixture '[P']]]<>\"\",Table_POSTInfo[[#This Row],['# Lamps/ Fixture '[P']]]>0,Table_POSTInfo[[#This Row],[Fixture/ Lamp Wattage '[P']]]>0),Table_POSTInfo[[#This Row],['# Lamps/ Fixture '[P']]]*Table_POSTInfo[[#This Row],[Fixture/ Lamp Wattage '[P']]],Table_POSTInfo[[#This Row],[Fixture/ Lamp Wattage '[P']]]),\"\")),\n\"\")","v":""},{"$f":"IF(OR(Table_POSTInfo[[#This Row],[Line]]=\"\",INDEX(Table_PREInfo[],Table_POSTInfo[[#This Row],[Line]],X$3)=\"\"),\"\",INDEX(Table_PREInfo[],Table_POSTInfo[[#This Row],[Line]],X$3))","v":""},{"$f":"IF(OR(Table_POSTInfo[[#This Row],[Line]]=\"\",INDEX(Table_PREInfo[],Table_POSTInfo[[#This Row],[Line]],Y$3)=\"\"),\"\",INDEX(Table_PREInfo[],Table_POSTInfo[[#This Row],[Line]],Y$3))","v":""},{"$f":"IFERROR(IF(Table_POSTInfo[[#This Row],[Interior/ Exterior]]<>\"\",\n  CONCATENATE(\n  Table_POSTInfo[[#This Row],[Fixture Technology '[P']]],\n  \" - \",Table_POSTInfo[[#This Row],[Fixture Type '[P']]],\" [\",\n  IF(Table_POSTInfo[[#This Row],['# Lamps/ Fixture '[P']]]>0,Table_POSTInfo[[#This Row],['# Lamps/ Fixture '[P']]] & \"L - \" & Table_POSTInfo[[#This Row],[Fixture/ Lamp Wattage '[P']]] & \"W\" & IF(Table_POSTInfo[[#This Row],[Ballast/ Driver '[P']]]<>\"\",\" - \" & Table_POSTInfo[[#This Row],[Ballast/ Driver '[P']]],\"\"),Table_POSTInfo[[#This Row],[Fixture Wattage '[P']]] & \"W\"),\"]\",\n  IF(AND(Table_POSTInfo[[#This Row],[Controls '[P']]]<>\"\",Table_POSTInfo[[#This Row],[Controls '[P']]]<>\"No Controls\"),\" - \" & Table_POSTInfo[[#This Row],[Controls '[P']]],\"\")\n  ),\n\"\"),\"\")","v":""},{"$f":"IF(OR(Table_POSTInfo[[#This Row],[Line]]=\"\",INDEX(Table_PREInfo[],Table_POSTInfo[[#This Row],[Line]],AA$3)=\"\"),\"\",INDEX(Table_PREInfo[],Table_POSTInfo[[#This Row],[Line]],AA$3))","v":""},{"$f":"IF(OR(Table_POSTInfo[[#This Row],[Line]]=\"\",INDEX(Table_PREInfo[],Table_POSTInfo[[#This Row],[Line]],AB$3)=\"\"),\"\",INDEX(Table_PREInfo[],Table_POSTInfo[[#This Row],[Line]],AB$3))","v":""},{"$f":"IF(OR(Table_POSTInfo[[#This Row],[Line]]=\"\",INDEX(Table_PREInfo[],Table_POSTInfo[[#This Row],[Line]],AC$3)=\"\"),\"\",INDEX(Table_PREInfo[],Table_POSTInfo[[#This Row],[Line]],AC$3))","v":""}]
[{"$f":"IF($A16=\"Line\",1,MAX($A$4:$A16)+1)","v":13},{"$f":"IF(OR(Table_POSTInfo[[#This Row],[Line]]=\"\",INDEX(Table_PREInfo[],Table_POSTInfo[[#This Row],[Line]],B$3)=\"\"),\"\",INDEX(Table_PREInfo[],Table_POSTInfo[[#This Row],[Line]],B$3))","v":false},{"$f":"IF(OR(Table_POSTInfo[[#This Row],[Line]]=\"\",INDEX(Table_PREInfo[],Table_POSTInfo[[#This Row],[Line]],C$3)=\"\"),\"\",INDEX(Table_PREInfo[],Table_POSTInfo[[#This Row],[Line]],C$3))","v":""},{"$f":"IF(ISNUMBER(MATCH(Table_POSTInfo[[#This Row],[Line]],Table_PREInspection[Line],0)),INDEX(Table_PREInspection[],MATCH(Table_POSTInfo[[#This Row],[Line]],Table_PREInspection[Line],0),MATCH('Post-Install Information'!D$3,'Pre-Install Inspection'!$A$3:$N$3,0)),IF(OR(Table_POSTInfo[[#This Row],[Line]]=\"\",INDEX(Table_PREInfo[],Table_POSTInfo[[#This Row],[Line]],D$3)=\"\"),\"\",INDEX(Table_PREInfo[],Table_POSTInfo[[#This Row],[Line]],D$3)))","v":""},{"$f":"IF(ISNUMBER(MATCH(Table_POSTInfo[[#This Row],[Line]],Table_PREInspection[Line],0)),INDEX(Table_PREInspection[],MATCH(Table_POSTInfo[[#This Row],[Line]],Table_PREInspection[Line],0),MATCH('Post-Install Information'!E$3,'Pre-Install Inspection'!$A$3:$N$3,0)),IF(OR(Table_POSTInfo[[#This Row],[Line]]=\"\",INDEX(Table_PREInfo[],Table_POSTInfo[[#This Row],[Line]],E$3)=\"\"),\"\",INDEX(Table_PREInfo[],Table_POSTInfo[[#This Row],[Line]],E$3)))","v":""},{"$f":"IF(ISNUMBER(MATCH(Table_POSTInfo[[#This Row],[Line]],Table_PREInspection[Line],0)),INDEX(Table_PREInspection[],MATCH(Table_POSTInfo[[#This Row],[Line]],Table_PREInspection[Line],0),MATCH('Post-Install Information'!F$3,'Pre-Install Inspection'!$A$3:$N$3,0)),IF(OR(Table_POSTInfo[[#This Row],[Line]]=\"\",INDEX(Table_PREInfo[],Table_POSTInfo[[#This Row],[Line]],F$3)=\"\"),\"\",INDEX(Table_PREInfo[],Table_POSTInfo[[#This Row],[Line]],F$3)))","v":""},null,{"$f":"IF(ISNUMBER(MATCH(Table_POSTInfo[[#This Row],[Line]],Table_PREInspection[Line],0)),INDEX(Table_PREInspection[],MATCH(Table_POSTInfo[[#This Row],[Line]],Table_PREInspection[Line],0),MATCH('Post-Install Information'!H$3,'Pre-Install Inspection'!$A$3:$N$3,0)),IF(OR(Table_POSTInfo[[#This Row],[Line]]=\"\",INDEX(Table_PREInfo[],Table_POSTInfo[[#This Row],[Line]],H$3)=\"\"),\"\",INDEX(Table_PREInfo[],Table_POSTInfo[[#This Row],[Line]],H$3)))","v":""},{"$f":"IF(ISNUMBER(MATCH(Table_POSTInfo[[#This Row],[Line]],Table_PREInspection[Line],0)),INDEX(Table_PREInspection[],MATCH(Table_POSTInfo[[#This Row],[Line]],Table_PREInspection[Line],0),MATCH('Post-Install Information'!I$3,'Pre-Install Inspection'!$A$3:$N$3,0)),IF(OR(Table_POSTInfo[[#This Row],[Line]]=\"\",INDEX(Table_PREInfo[],Table_POSTInfo[[#This Row],[Line]],I$3)=\"\"),\"\",INDEX(Table_PREInfo[],Table_POSTInfo[[#This Row],[Line]],I$3)))","v":""},{"$f":"IF(ISNUMBER(MATCH(Table_POSTInfo[[#This Row],[Line]],Table_PREInspection[Line],0)),INDEX(Table_PREInspection[],MATCH(Table_POSTInfo[[#This Row],[Line]],Table_PREInspection[Line],0),MATCH('Post-Install Information'!J$3,'Pre-Install Inspection'!$A$3:$N$3,0)),IF(OR(Table_POSTInfo[[#This Row],[Line]]=\"\",INDEX(Table_PREInfo[],Table_POSTInfo[[#This Row],[Line]],J$3)=\"\"),\"\",INDEX(Table_PREInfo[],Table_POSTInfo[[#This Row],[Line]],J$3)))","v":""},{"$f":"IF(ISNUMBER(MATCH(Table_POSTInfo[[#This Row],[Line]],Table_PREInspection[Line],0)),INDEX(Table_PREInspection[],MATCH(Table_POSTInfo[[#This Row],[Line]],Table_PREInspection[Line],0),MATCH('Post-Install Information'!K$3,'Pre-Install Inspection'!$A$3:$N$3,0)),IF(OR(Table_POSTInfo[[#This Row],[Line]]=\"\",INDEX(Table_PREInfo[],Table_POSTInfo[[#This Row],[Line]],K$3)=\"\"),\"\",INDEX(Table_PREInfo[],Table_POSTInfo[[#This Row],[Line]],K$3)))","v":""},{"$f":"IF(ISNUMBER(MATCH(Table_POSTInfo[[#This Row],[Line]],Table_PREInspection[Line],0)),INDEX(Table_PREInspection[],MATCH(Table_POSTInfo[[#This Row],[Line]],Table_PREInspection[Line],0),MATCH('Post-Install Information'!L$3,'Pre-Install Inspection'!$A$3:$N$3,0)),IF(OR(Table_POSTInfo[[#This Row],[Line]]=\"\",INDEX(Table_PREInfo[],Table_POSTInfo[[#This Row],[Line]],L$3)=\"\"),\"\",INDEX(Table_PREInfo[],Table_POSTInfo[[#This Row],[Line]],L$3)))","v":""},{"$f":"IF(ISNUMBER(MATCH(Table_POSTInfo[[#This Row],[Line]],Table_PREInspection[Line],0)),INDEX(Table_PREInspection[],MATCH(Table_POSTInfo[[#This Row],[Line]],Table_PREInspection[Line],0),MATCH('Post-Install Information'!M$3,'Pre-Install Inspection'!$A$3:$N$3,0)),IF(OR(Table_POSTInfo[[#This Row],[Line]]=\"\",INDEX(Table_PREInfo[],Table_POSTInfo[[#This Row],[Line]],M$3)=\"\"),\"\",INDEX(Table_PREInfo[],Table_POSTInfo[[#This Row],[Line]],M$3)))","v":""},{"$f":"IF(ISNUMBER(MATCH(Table_POSTInfo[[#This Row],[Line]],Table_PREInspection[Line],0)),INDEX(Table_PREInspection[],MATCH(Table_POSTInfo[[#This Row],[Line]],Table_PREInspection[Line],0),MATCH('Post-Install Information'!N$3,'Pre-Install Inspection'!$A$3:$N$3,0)),IF(OR(Table_POSTInfo[[#This Row],[Line]]=\"\",INDEX(Table_PREInfo[],Table_POSTInfo[[#This Row],[Line]],N$3)=\"\"),\"\",INDEX(Table_PREInfo[],Table_POSTInfo[[#This Row],[Line]],N$3)))","v":""},{"$f":"IF(ISNUMBER(MATCH(Table_POSTInfo[[#This Row],[Line]],Table_PREInspection[Line],0)),INDEX(Table_PREInspection[],MATCH(Table_POSTInfo[[#This Row],[Line]],Table_PREInspection[Line],0),MATCH('Post-Install Information'!O$3,'Pre-Install Inspection'!$A$3:$N$3,0)),IF(OR(Table_POSTInfo[[#This Row],[Line]]=\"\",INDEX(Table_PREInfo[],Table_POSTInfo[[#This Row],[Line]],O$3)=\"\"),\"\",INDEX(Table_PREInfo[],Table_POSTInfo[[#This Row],[Line]],O$3)))","v":""},{"$f":"IF(ISNUMBER(MATCH(Table_POSTInfo[[#This Row],[Line]],Table_PREInspection[Line],0)),INDEX(Table_PREInspection[],MATCH(Table_POSTInfo[[#This Row],[Line]],Table_PREInspection[Line],0),MATCH('Post-Install Information'!P$3,'Pre-Install Inspection'!$A$3:$N$3,0)),IF(OR(Table_POSTInfo[[#This Row],[Line]]=\"\",INDEX(Table_PREInfo[],Table_POSTInfo[[#This Row],[Line]],P$3)=\"\"),\"\",INDEX(Table_PREInfo[],Table_POSTInfo[[#This Row],[Line]],P$3)))","v":""},null,{"$f":"IF(Table_PREInfo[[#This Row],[Fixture Qty '[P']]]<>0,Table_PREInfo[[#This Row],[Fixture Qty '[P']]],IF(Table_POSTInfo[[#This Row],[Fixture Qty '[E']]]<>0,Table_POSTInfo[[#This Row],[Fixture Qty '[E']]],\"\"))","v":""},{"$f":"IF(OR(Table_POSTInfo[[#This Row],[Line]]=\"\",INDEX(Table_PREInfo[],Table_POSTInfo[[#This Row],[Line]],S$3)=\"\"),\"\",INDEX(Table_PREInfo[],Table_POSTInfo[[#This Row],[Line]],S$3))","v":""},{"$f":"IF(OR(Table_POSTInfo[[#This Row],[Line]]=\"\",INDEX(Table_PREInfo[],Table_POSTInfo[[#This Row],[Line]],T$3)=\"\"),\"\",INDEX(Table_PREInfo[],Table_POSTInfo[[#This Row],[Line]],T$3))","v":""},{"$f":"IF(OR(Table_POSTInfo[[#This Row],[Line]]=\"\",INDEX(Table_PREInfo[],Table_POSTInfo[[#This Row],[Line]],U$3)=\"\"),\"\",INDEX(Table_PREInfo[],Table_POSTInfo[[#This Row],[Line]],U$3))","v":""},{"$f":"IF(OR(Table_POSTInfo[[#This Row],[Line]]=\"\",INDEX(Table_PREInfo[],Table_POSTInfo[[#This Row],[Line]],V$3)=\"\"),\"\",INDEX(Table_PREInfo[],Table_POSTInfo[[#This Row],[Line]],V$3))","v":""},{"$f":"IFERROR(\nIFERROR(OFFSET(Table_TypWattage[[#Headers],[Technology]],MATCH(Table_POSTInfo[[#This Row],[Fixture Technology '[P']]],Table_TypWattage[Technology],0)+MATCH(Table_POSTInfo[[#This Row],[Fixture/ Lamp Wattage '[P']]],INDIRECT(SUBSTITUTE(SUBSTITUTE(Table_POSTInfo[[#This Row],[Fixture Technology '[P']]],\" \",\"_\"),\"-\",\"_\")),0)-1,MATCH(Table_POSTInfo[[#This Row],['# Lamps/ Fixture '[P']]],'Measure Tables'!$Q$2:$V$2,0)+1),IF(Table_POSTInfo[[#This Row],[IsActive]],IF(AND(Table_POSTInfo[[#This Row],['# Lamps/ Fixture '[P']]]<>\"\",Table_POSTInfo[[#This Row],['# Lamps/ Fixture '[P']]]>0,Table_POSTInfo[[#This Row],[Fixture/ Lamp Wattage '[P']]]>0),Table_POSTInfo[[#This Row],['# Lamps/ Fixture '[P']]]*Table_POSTInfo[[#This Row],[Fixture/ Lamp Wattage '[P']]],Table_POSTInfo[[#This Row],[Fixture/ Lamp Wattage '[P']]]),\"\")),\n\"\")","v":""},{"$f":"IF(OR(Table_POSTInfo[[#This Row],[Line]]=\"\",INDEX(Table_PREInfo[],Table_POSTInfo[[#This Row],[Line]],X$3)=\"\"),\"\",INDEX(Table_PREInfo[],Table_POSTInfo[[#This Row],[Line]],X$3))","v":""},{"$f":"IF(OR(Table_POSTInfo[[#This Row],[Line]]=\"\",INDEX(Table_PREInfo[],Table_POSTInfo[[#This Row],[Line]],Y$3)=\"\"),\"\",INDEX(Table_PREInfo[],Table_POSTInfo[[#This Row],[Line]],Y$3))","v":""},{"$f":"IFERROR(IF(Table_POSTInfo[[#This Row],[Interior/ Exterior]]<>\"\",\n  CONCATENATE(\n  Table_POSTInfo[[#This Row],[Fixture Technology '[P']]],\n  \" - \",Table_POSTInfo[[#This Row],[Fixture Type '[P']]],\" [\",\n  IF(Table_POSTInfo[[#This Row],['# Lamps/ Fixture '[P']]]>0,Table_POSTInfo[[#This Row],['# Lamps/ Fixture '[P']]] & \"L - \" & Table_POSTInfo[[#This Row],[Fixture/ Lamp Wattage '[P']]] & \"W\" & IF(Table_POSTInfo[[#This Row],[Ballast/ Driver '[P']]]<>\"\",\" - \" & Table_POSTInfo[[#This Row],[Ballast/ Driver '[P']]],\"\"),Table_POSTInfo[[#This Row],[Fixture Wattage '[P']]] & \"W\"),\"]\",\n  IF(AND(Table_POSTInfo[[#This Row],[Controls '[P']]]<>\"\",Table_POSTInfo[[#This Row],[Controls '[P']]]<>\"No Controls\"),\" - \" & Table_POSTInfo[[#This Row],[Controls '[P']]],\"\")\n  ),\n\"\"),\"\")","v":""},{"$f":"IF(OR(Table_POSTInfo[[#This Row],[Line]]=\"\",INDEX(Table_PREInfo[],Table_POSTInfo[[#This Row],[Line]],AA$3)=\"\"),\"\",INDEX(Table_PREInfo[],Table_POSTInfo[[#This Row],[Line]],AA$3))","v":""},{"$f":"IF(OR(Table_POSTInfo[[#This Row],[Line]]=\"\",INDEX(Table_PREInfo[],Table_POSTInfo[[#This Row],[Line]],AB$3)=\"\"),\"\",INDEX(Table_PREInfo[],Table_POSTInfo[[#This Row],[Line]],AB$3))","v":""},{"$f":"IF(OR(Table_POSTInfo[[#This Row],[Line]]=\"\",INDEX(Table_PREInfo[],Table_POSTInfo[[#This Row],[Line]],AC$3)=\"\"),\"\",INDEX(Table_PREInfo[],Table_POSTInfo[[#This Row],[Line]],AC$3))","v":""}]
[{"$f":"IF($A17=\"Line\",1,MAX($A$4:$A17)+1)","v":14},{"$f":"IF(OR(Table_POSTInfo[[#This Row],[Line]]=\"\",INDEX(Table_PREInfo[],Table_POSTInfo[[#This Row],[Line]],B$3)=\"\"),\"\",INDEX(Table_PREInfo[],Table_POSTInfo[[#This Row],[Line]],B$3))","v":false},{"$f":"IF(OR(Table_POSTInfo[[#This Row],[Line]]=\"\",INDEX(Table_PREInfo[],Table_POSTInfo[[#This Row],[Line]],C$3)=\"\"),\"\",INDEX(Table_PREInfo[],Table_POSTInfo[[#This Row],[Line]],C$3))","v":""},{"$f":"IF(ISNUMBER(MATCH(Table_POSTInfo[[#This Row],[Line]],Table_PREInspection[Line],0)),INDEX(Table_PREInspection[],MATCH(Table_POSTInfo[[#This Row],[Line]],Table_PREInspection[Line],0),MATCH('Post-Install Information'!D$3,'Pre-Install Inspection'!$A$3:$N$3,0)),IF(OR(Table_POSTInfo[[#This Row],[Line]]=\"\",INDEX(Table_PREInfo[],Table_POSTInfo[[#This Row],[Line]],D$3)=\"\"),\"\",INDEX(Table_PREInfo[],Table_POSTInfo[[#This Row],[Line]],D$3)))","v":""},{"$f":"IF(ISNUMBER(MATCH(Table_POSTInfo[[#This Row],[Line]],Table_PREInspection[Line],0)),INDEX(Table_PREInspection[],MATCH(Table_POSTInfo[[#This Row],[Line]],Table_PREInspection[Line],0),MATCH('Post-Install Information'!E$3,'Pre-Install Inspection'!$A$3:$N$3,0)),IF(OR(Table_POSTInfo[[#This Row],[Line]]=\"\",INDEX(Table_PREInfo[],Table_POSTInfo[[#This Row],[Line]],E$3)=\"\"),\"\",INDEX(Table_PREInfo[],Table_POSTInfo[[#This Row],[Line]],E$3)))","v":""},{"$f":"IF(ISNUMBER(MATCH(Table_POSTInfo[[#This Row],[Line]],Table_PREInspection[Line],0)),INDEX(Table_PREInspection[],MATCH(Table_POSTInfo[[#This Row],[Line]],Table_PREInspection[Line],0),MATCH('Post-Install Information'!F$3,'Pre-Install Inspection'!$A$3:$N$3,0)),IF(OR(Table_POSTInfo[[#This Row],[Line]]=\"\",INDEX(Table_PREInfo[],Table_POSTInfo[[#This Row],[Line]],F$3)=\"\"),\"\",INDEX(Table_PREInfo[],Table_POSTInfo[[#This Row],[Line]],F$3)))","v":""},null,{"$f":"IF(ISNUMBER(MATCH(Table_POSTInfo[[#This Row],[Line]],Table_PREInspection[Line],0)),INDEX(Table_PREInspection[],MATCH(Table_POSTInfo[[#This Row],[Line]],Table_PREInspection[Line],0),MATCH('Post-Install Information'!H$3,'Pre-Install Inspection'!$A$3:$N$3,0)),IF(OR(Table_POSTInfo[[#This Row],[Line]]=\"\",INDEX(Table_PREInfo[],Table_POSTInfo[[#This Row],[Line]],H$3)=\"\"),\"\",INDEX(Table_PREInfo[],Table_POSTInfo[[#This Row],[Line]],H$3)))","v":""},{"$f":"IF(ISNUMBER(MATCH(Table_POSTInfo[[#This Row],[Line]],Table_PREInspection[Line],0)),INDEX(Table_PREInspection[],MATCH(Table_POSTInfo[[#This Row],[Line]],Table_PREInspection[Line],0),MATCH('Post-Install Information'!I$3,'Pre-Install Inspection'!$A$3:$N$3,0)),IF(OR(Table_POSTInfo[[#This Row],[Line]]=\"\",INDEX(Table_PREInfo[],Table_POSTInfo[[#This Row],[Line]],I$3)=\"\"),\"\",INDEX(Table_PREInfo[],Table_POSTInfo[[#This Row],[Line]],I$3)))","v":""},{"$f":"IF(ISNUMBER(MATCH(Table_POSTInfo[[#This Row],[Line]],Table_PREInspection[Line],0)),INDEX(Table_PREInspection[],MATCH(Table_POSTInfo[[#This Row],[Line]],Table_PREInspection[Line],0),MATCH('Post-Install Information'!J$3,'Pre-Install Inspection'!$A$3:$N$3,0)),IF(OR(Table_POSTInfo[[#This Row],[Line]]=\"\",INDEX(Table_PREInfo[],Table_POSTInfo[[#This Row],[Line]],J$3)=\"\"),\"\",INDEX(Table_PREInfo[],Table_POSTInfo[[#This Row],[Line]],J$3)))","v":""},{"$f":"IF(ISNUMBER(MATCH(Table_POSTInfo[[#This Row],[Line]],Table_PREInspection[Line],0)),INDEX(Table_PREInspection[],MATCH(Table_POSTInfo[[#This Row],[Line]],Table_PREInspection[Line],0),MATCH('Post-Install Information'!K$3,'Pre-Install Inspection'!$A$3:$N$3,0)),IF(OR(Table_POSTInfo[[#This Row],[Line]]=\"\",INDEX(Table_PREInfo[],Table_POSTInfo[[#This Row],[Line]],K$3)=\"\"),\"\",INDEX(Table_PREInfo[],Table_POSTInfo[[#This Row],[Line]],K$3)))","v":""},{"$f":"IF(ISNUMBER(MATCH(Table_POSTInfo[[#This Row],[Line]],Table_PREInspection[Line],0)),INDEX(Table_PREInspection[],MATCH(Table_POSTInfo[[#This Row],[Line]],Table_PREInspection[Line],0),MATCH('Post-Install Information'!L$3,'Pre-Install Inspection'!$A$3:$N$3,0)),IF(OR(Table_POSTInfo[[#This Row],[Line]]=\"\",INDEX(Table_PREInfo[],Table_POSTInfo[[#This Row],[Line]],L$3)=\"\"),\"\",INDEX(Table_PREInfo[],Table_POSTInfo[[#This Row],[Line]],L$3)))","v":""},{"$f":"IF(ISNUMBER(MATCH(Table_POSTInfo[[#This Row],[Line]],Table_PREInspection[Line],0)),INDEX(Table_PREInspection[],MATCH(Table_POSTInfo[[#This Row],[Line]],Table_PREInspection[Line],0),MATCH('Post-Install Information'!M$3,'Pre-Install Inspection'!$A$3:$N$3,0)),IF(OR(Table_POSTInfo[[#This Row],[Line]]=\"\",INDEX(Table_PREInfo[],Table_POSTInfo[[#This Row],[Line]],M$3)=\"\"),\"\",INDEX(Table_PREInfo[],Table_POSTInfo[[#This Row],[Line]],M$3)))","v":""},{"$f":"IF(ISNUMBER(MATCH(Table_POSTInfo[[#This Row],[Line]],Table_PREInspection[Line],0)),INDEX(Table_PREInspection[],MATCH(Table_POSTInfo[[#This Row],[Line]],Table_PREInspection[Line],0),MATCH('Post-Install Information'!N$3,'Pre-Install Inspection'!$A$3:$N$3,0)),IF(OR(Table_POSTInfo[[#This Row],[Line]]=\"\",INDEX(Table_PREInfo[],Table_POSTInfo[[#This Row],[Line]],N$3)=\"\"),\"\",INDEX(Table_PREInfo[],Table_POSTInfo[[#This Row],[Line]],N$3)))","v":""},{"$f":"IF(ISNUMBER(MATCH(Table_POSTInfo[[#This Row],[Line]],Table_PREInspection[Line],0)),INDEX(Table_PREInspection[],MATCH(Table_POSTInfo[[#This Row],[Line]],Table_PREInspection[Line],0),MATCH('Post-Install Information'!O$3,'Pre-Install Inspection'!$A$3:$N$3,0)),IF(OR(Table_POSTInfo[[#This Row],[Line]]=\"\",INDEX(Table_PREInfo[],Table_POSTInfo[[#This Row],[Line]],O$3)=\"\"),\"\",INDEX(Table_PREInfo[],Table_POSTInfo[[#This Row],[Line]],O$3)))","v":""},{"$f":"IF(ISNUMBER(MATCH(Table_POSTInfo[[#This Row],[Line]],Table_PREInspection[Line],0)),INDEX(Table_PREInspection[],MATCH(Table_POSTInfo[[#This Row],[Line]],Table_PREInspection[Line],0),MATCH('Post-Install Information'!P$3,'Pre-Install Inspection'!$A$3:$N$3,0)),IF(OR(Table_POSTInfo[[#This Row],[Line]]=\"\",INDEX(Table_PREInfo[],Table_POSTInfo[[#This Row],[Line]],P$3)=\"\"),\"\",INDEX(Table_PREInfo[],Table_POSTInfo[[#This Row],[Line]],P$3)))","v":""},null,{"$f":"IF(Table_PREInfo[[#This Row],[Fixture Qty '[P']]]<>0,Table_PREInfo[[#This Row],[Fixture Qty '[P']]],IF(Table_POSTInfo[[#This Row],[Fixture Qty '[E']]]<>0,Table_POSTInfo[[#This Row],[Fixture Qty '[E']]],\"\"))","v":""},{"$f":"IF(OR(Table_POSTInfo[[#This Row],[Line]]=\"\",INDEX(Table_PREInfo[],Table_POSTInfo[[#This Row],[Line]],S$3)=\"\"),\"\",INDEX(Table_PREInfo[],Table_POSTInfo[[#This Row],[Line]],S$3))","v":""},{"$f":"IF(OR(Table_POSTInfo[[#This Row],[Line]]=\"\",INDEX(Table_PREInfo[],Table_POSTInfo[[#This Row],[Line]],T$3)=\"\"),\"\",INDEX(Table_PREInfo[],Table_POSTInfo[[#This Row],[Line]],T$3))","v":""},{"$f":"IF(OR(Table_POSTInfo[[#This Row],[Line]]=\"\",INDEX(Table_PREInfo[],Table_POSTInfo[[#This Row],[Line]],U$3)=\"\"),\"\",INDEX(Table_PREInfo[],Table_POSTInfo[[#This Row],[Line]],U$3))","v":""},{"$f":"IF(OR(Table_POSTInfo[[#This Row],[Line]]=\"\",INDEX(Table_PREInfo[],Table_POSTInfo[[#This Row],[Line]],V$3)=\"\"),\"\",INDEX(Table_PREInfo[],Table_POSTInfo[[#This Row],[Line]],V$3))","v":""},{"$f":"IFERROR(\nIFERROR(OFFSET(Table_TypWattage[[#Headers],[Technology]],MATCH(Table_POSTInfo[[#This Row],[Fixture Technology '[P']]],Table_TypWattage[Technology],0)+MATCH(Table_POSTInfo[[#This Row],[Fixture/ Lamp Wattage '[P']]],INDIRECT(SUBSTITUTE(SUBSTITUTE(Table_POSTInfo[[#This Row],[Fixture Technology '[P']]],\" \",\"_\"),\"-\",\"_\")),0)-1,MATCH(Table_POSTInfo[[#This Row],['# Lamps/ Fixture '[P']]],'Measure Tables'!$Q$2:$V$2,0)+1),IF(Table_POSTInfo[[#This Row],[IsActive]],IF(AND(Table_POSTInfo[[#This Row],['# Lamps/ Fixture '[P']]]<>\"\",Table_POSTInfo[[#This Row],['# Lamps/ Fixture '[P']]]>0,Table_POSTInfo[[#This Row],[Fixture/ Lamp Wattage '[P']]]>0),Table_POSTInfo[[#This Row],['# Lamps/ Fixture '[P']]]*Table_POSTInfo[[#This Row],[Fixture/ Lamp Wattage '[P']]],Table_POSTInfo[[#This Row],[Fixture/ Lamp Wattage '[P']]]),\"\")),\n\"\")","v":""},{"$f":"IF(OR(Table_POSTInfo[[#This Row],[Line]]=\"\",INDEX(Table_PREInfo[],Table_POSTInfo[[#This Row],[Line]],X$3)=\"\"),\"\",INDEX(Table_PREInfo[],Table_POSTInfo[[#This Row],[Line]],X$3))","v":""},{"$f":"IF(OR(Table_POSTInfo[[#This Row],[Line]]=\"\",INDEX(Table_PREInfo[],Table_POSTInfo[[#This Row],[Line]],Y$3)=\"\"),\"\",INDEX(Table_PREInfo[],Table_POSTInfo[[#This Row],[Line]],Y$3))","v":""},{"$f":"IFERROR(IF(Table_POSTInfo[[#This Row],[Interior/ Exterior]]<>\"\",\n  CONCATENATE(\n  Table_POSTInfo[[#This Row],[Fixture Technology '[P']]],\n  \" - \",Table_POSTInfo[[#This Row],[Fixture Type '[P']]],\" [\",\n  IF(Table_POSTInfo[[#This Row],['# Lamps/ Fixture '[P']]]>0,Table_POSTInfo[[#This Row],['# Lamps/ Fixture '[P']]] & \"L - \" & Table_POSTInfo[[#This Row],[Fixture/ Lamp Wattage '[P']]] & \"W\" & IF(Table_POSTInfo[[#This Row],[Ballast/ Driver '[P']]]<>\"\",\" - \" & Table_POSTInfo[[#This Row],[Ballast/ Driver '[P']]],\"\"),Table_POSTInfo[[#This Row],[Fixture Wattage '[P']]] & \"W\"),\"]\",\n  IF(AND(Table_POSTInfo[[#This Row],[Controls '[P']]]<>\"\",Table_POSTInfo[[#This Row],[Controls '[P']]]<>\"No Controls\"),\" - \" & Table_POSTInfo[[#This Row],[Controls '[P']]],\"\")\n  ),\n\"\"),\"\")","v":""},{"$f":"IF(OR(Table_POSTInfo[[#This Row],[Line]]=\"\",INDEX(Table_PREInfo[],Table_POSTInfo[[#This Row],[Line]],AA$3)=\"\"),\"\",INDEX(Table_PREInfo[],Table_POSTInfo[[#This Row],[Line]],AA$3))","v":""},{"$f":"IF(OR(Table_POSTInfo[[#This Row],[Line]]=\"\",INDEX(Table_PREInfo[],Table_POSTInfo[[#This Row],[Line]],AB$3)=\"\"),\"\",INDEX(Table_PREInfo[],Table_POSTInfo[[#This Row],[Line]],AB$3))","v":""},{"$f":"IF(OR(Table_POSTInfo[[#This Row],[Line]]=\"\",INDEX(Table_PREInfo[],Table_POSTInfo[[#This Row],[Line]],AC$3)=\"\"),\"\",INDEX(Table_PREInfo[],Table_POSTInfo[[#This Row],[Line]],AC$3))","v":""}]
[{"$f":"IF($A18=\"Line\",1,MAX($A$4:$A18)+1)","v":15},{"$f":"IF(OR(Table_POSTInfo[[#This Row],[Line]]=\"\",INDEX(Table_PREInfo[],Table_POSTInfo[[#This Row],[Line]],B$3)=\"\"),\"\",INDEX(Table_PREInfo[],Table_POSTInfo[[#This Row],[Line]],B$3))","v":false},{"$f":"IF(OR(Table_POSTInfo[[#This Row],[Line]]=\"\",INDEX(Table_PREInfo[],Table_POSTInfo[[#This Row],[Line]],C$3)=\"\"),\"\",INDEX(Table_PREInfo[],Table_POSTInfo[[#This Row],[Line]],C$3))","v":""},{"$f":"IF(ISNUMBER(MATCH(Table_POSTInfo[[#This Row],[Line]],Table_PREInspection[Line],0)),INDEX(Table_PREInspection[],MATCH(Table_POSTInfo[[#This Row],[Line]],Table_PREInspection[Line],0),MATCH('Post-Install Information'!D$3,'Pre-Install Inspection'!$A$3:$N$3,0)),IF(OR(Table_POSTInfo[[#This Row],[Line]]=\"\",INDEX(Table_PREInfo[],Table_POSTInfo[[#This Row],[Line]],D$3)=\"\"),\"\",INDEX(Table_PREInfo[],Table_POSTInfo[[#This Row],[Line]],D$3)))","v":""},{"$f":"IF(ISNUMBER(MATCH(Table_POSTInfo[[#This Row],[Line]],Table_PREInspection[Line],0)),INDEX(Table_PREInspection[],MATCH(Table_POSTInfo[[#This Row],[Line]],Table_PREInspection[Line],0),MATCH('Post-Install Information'!E$3,'Pre-Install Inspection'!$A$3:$N$3,0)),IF(OR(Table_POSTInfo[[#This Row],[Line]]=\"\",INDEX(Table_PREInfo[],Table_POSTInfo[[#This Row],[Line]],E$3)=\"\"),\"\",INDEX(Table_PREInfo[],Table_POSTInfo[[#This Row],[Line]],E$3)))","v":""},{"$f":"IF(ISNUMBER(MATCH(Table_POSTInfo[[#This Row],[Line]],Table_PREInspection[Line],0)),INDEX(Table_PREInspection[],MATCH(Table_POSTInfo[[#This Row],[Line]],Table_PREInspection[Line],0),MATCH('Post-Install Information'!F$3,'Pre-Install Inspection'!$A$3:$N$3,0)),IF(OR(Table_POSTInfo[[#This Row],[Line]]=\"\",INDEX(Table_PREInfo[],Table_POSTInfo[[#This Row],[Line]],F$3)=\"\"),\"\",INDEX(Table_PREInfo[],Table_POSTInfo[[#This Row],[Line]],F$3)))","v":""},null,{"$f":"IF(ISNUMBER(MATCH(Table_POSTInfo[[#This Row],[Line]],Table_PREInspection[Line],0)),INDEX(Table_PREInspection[],MATCH(Table_POSTInfo[[#This Row],[Line]],Table_PREInspection[Line],0),MATCH('Post-Install Information'!H$3,'Pre-Install Inspection'!$A$3:$N$3,0)),IF(OR(Table_POSTInfo[[#This Row],[Line]]=\"\",INDEX(Table_PREInfo[],Table_POSTInfo[[#This Row],[Line]],H$3)=\"\"),\"\",INDEX(Table_PREInfo[],Table_POSTInfo[[#This Row],[Line]],H$3)))","v":""},{"$f":"IF(ISNUMBER(MATCH(Table_POSTInfo[[#This Row],[Line]],Table_PREInspection[Line],0)),INDEX(Table_PREInspection[],MATCH(Table_POSTInfo[[#This Row],[Line]],Table_PREInspection[Line],0),MATCH('Post-Install Information'!I$3,'Pre-Install Inspection'!$A$3:$N$3,0)),IF(OR(Table_POSTInfo[[#This Row],[Line]]=\"\",INDEX(Table_PREInfo[],Table_POSTInfo[[#This Row],[Line]],I$3)=\"\"),\"\",INDEX(Table_PREInfo[],Table_POSTInfo[[#This Row],[Line]],I$3)))","v":""},{"$f":"IF(ISNUMBER(MATCH(Table_POSTInfo[[#This Row],[Line]],Table_PREInspection[Line],0)),INDEX(Table_PREInspection[],MATCH(Table_POSTInfo[[#This Row],[Line]],Table_PREInspection[Line],0),MATCH('Post-Install Information'!J$3,'Pre-Install Inspection'!$A$3:$N$3,0)),IF(OR(Table_POSTInfo[[#This Row],[Line]]=\"\",INDEX(Table_PREInfo[],Table_POSTInfo[[#This Row],[Line]],J$3)=\"\"),\"\",INDEX(Table_PREInfo[],Table_POSTInfo[[#This Row],[Line]],J$3)))","v":""},{"$f":"IF(ISNUMBER(MATCH(Table_POSTInfo[[#This Row],[Line]],Table_PREInspection[Line],0)),INDEX(Table_PREInspection[],MATCH(Table_POSTInfo[[#This Row],[Line]],Table_PREInspection[Line],0),MATCH('Post-Install Information'!K$3,'Pre-Install Inspection'!$A$3:$N$3,0)),IF(OR(Table_POSTInfo[[#This Row],[Line]]=\"\",INDEX(Table_PREInfo[],Table_POSTInfo[[#This Row],[Line]],K$3)=\"\"),\"\",INDEX(Table_PREInfo[],Table_POSTInfo[[#This Row],[Line]],K$3)))","v":""},{"$f":"IF(ISNUMBER(MATCH(Table_POSTInfo[[#This Row],[Line]],Table_PREInspection[Line],0)),INDEX(Table_PREInspection[],MATCH(Table_POSTInfo[[#This Row],[Line]],Table_PREInspection[Line],0),MATCH('Post-Install Information'!L$3,'Pre-Install Inspection'!$A$3:$N$3,0)),IF(OR(Table_POSTInfo[[#This Row],[Line]]=\"\",INDEX(Table_PREInfo[],Table_POSTInfo[[#This Row],[Line]],L$3)=\"\"),\"\",INDEX(Table_PREInfo[],Table_POSTInfo[[#This Row],[Line]],L$3)))","v":""},{"$f":"IF(ISNUMBER(MATCH(Table_POSTInfo[[#This Row],[Line]],Table_PREInspection[Line],0)),INDEX(Table_PREInspection[],MATCH(Table_POSTInfo[[#This Row],[Line]],Table_PREInspection[Line],0),MATCH('Post-Install Information'!M$3,'Pre-Install Inspection'!$A$3:$N$3,0)),IF(OR(Table_POSTInfo[[#This Row],[Line]]=\"\",INDEX(Table_PREInfo[],Table_POSTInfo[[#This Row],[Line]],M$3)=\"\"),\"\",INDEX(Table_PREInfo[],Table_POSTInfo[[#This Row],[Line]],M$3)))","v":""},{"$f":"IF(ISNUMBER(MATCH(Table_POSTInfo[[#This Row],[Line]],Table_PREInspection[Line],0)),INDEX(Table_PREInspection[],MATCH(Table_POSTInfo[[#This Row],[Line]],Table_PREInspection[Line],0),MATCH('Post-Install Information'!N$3,'Pre-Install Inspection'!$A$3:$N$3,0)),IF(OR(Table_POSTInfo[[#This Row],[Line]]=\"\",INDEX(Table_PREInfo[],Table_POSTInfo[[#This Row],[Line]],N$3)=\"\"),\"\",INDEX(Table_PREInfo[],Table_POSTInfo[[#This Row],[Line]],N$3)))","v":""},{"$f":"IF(ISNUMBER(MATCH(Table_POSTInfo[[#This Row],[Line]],Table_PREInspection[Line],0)),INDEX(Table_PREInspection[],MATCH(Table_POSTInfo[[#This Row],[Line]],Table_PREInspection[Line],0),MATCH('Post-Install Information'!O$3,'Pre-Install Inspection'!$A$3:$N$3,0)),IF(OR(Table_POSTInfo[[#This Row],[Line]]=\"\",INDEX(Table_PREInfo[],Table_POSTInfo[[#This Row],[Line]],O$3)=\"\"),\"\",INDEX(Table_PREInfo[],Table_POSTInfo[[#This Row],[Line]],O$3)))","v":""},{"$f":"IF(ISNUMBER(MATCH(Table_POSTInfo[[#This Row],[Line]],Table_PREInspection[Line],0)),INDEX(Table_PREInspection[],MATCH(Table_POSTInfo[[#This Row],[Line]],Table_PREInspection[Line],0),MATCH('Post-Install Information'!P$3,'Pre-Install Inspection'!$A$3:$N$3,0)),IF(OR(Table_POSTInfo[[#This Row],[Line]]=\"\",INDEX(Table_PREInfo[],Table_POSTInfo[[#This Row],[Line]],P$3)=\"\"),\"\",INDEX(Table_PREInfo[],Table_POSTInfo[[#This Row],[Line]],P$3)))","v":""},null,{"$f":"IF(Table_PREInfo[[#This Row],[Fixture Qty '[P']]]<>0,Table_PREInfo[[#This Row],[Fixture Qty '[P']]],IF(Table_POSTInfo[[#This Row],[Fixture Qty '[E']]]<>0,Table_POSTInfo[[#This Row],[Fixture Qty '[E']]],\"\"))","v":""},{"$f":"IF(OR(Table_POSTInfo[[#This Row],[Line]]=\"\",INDEX(Table_PREInfo[],Table_POSTInfo[[#This Row],[Line]],S$3)=\"\"),\"\",INDEX(Table_PREInfo[],Table_POSTInfo[[#This Row],[Line]],S$3))","v":""},{"$f":"IF(OR(Table_POSTInfo[[#This Row],[Line]]=\"\",INDEX(Table_PREInfo[],Table_POSTInfo[[#This Row],[Line]],T$3)=\"\"),\"\",INDEX(Table_PREInfo[],Table_POSTInfo[[#This Row],[Line]],T$3))","v":""},{"$f":"IF(OR(Table_POSTInfo[[#This Row],[Line]]=\"\",INDEX(Table_PREInfo[],Table_POSTInfo[[#This Row],[Line]],U$3)=\"\"),\"\",INDEX(Table_PREInfo[],Table_POSTInfo[[#This Row],[Line]],U$3))","v":""},{"$f":"IF(OR(Table_POSTInfo[[#This Row],[Line]]=\"\",INDEX(Table_PREInfo[],Table_POSTInfo[[#This Row],[Line]],V$3)=\"\"),\"\",INDEX(Table_PREInfo[],Table_POSTInfo[[#This Row],[Line]],V$3))","v":""},{"$f":"IFERROR(\nIFERROR(OFFSET(Table_TypWattage[[#Headers],[Technology]],MATCH(Table_POSTInfo[[#This Row],[Fixture Technology '[P']]],Table_TypWattage[Technology],0)+MATCH(Table_POSTInfo[[#This Row],[Fixture/ Lamp Wattage '[P']]],INDIRECT(SUBSTITUTE(SUBSTITUTE(Table_POSTInfo[[#This Row],[Fixture Technology '[P']]],\" \",\"_\"),\"-\",\"_\")),0)-1,MATCH(Table_POSTInfo[[#This Row],['# Lamps/ Fixture '[P']]],'Measure Tables'!$Q$2:$V$2,0)+1),IF(Table_POSTInfo[[#This Row],[IsActive]],IF(AND(Table_POSTInfo[[#This Row],['# Lamps/ Fixture '[P']]]<>\"\",Table_POSTInfo[[#This Row],['# Lamps/ Fixture '[P']]]>0,Table_POSTInfo[[#This Row],[Fixture/ Lamp Wattage '[P']]]>0),Table_POSTInfo[[#This Row],['# Lamps/ Fixture '[P']]]*Table_POSTInfo[[#This Row],[Fixture/ Lamp Wattage '[P']]],Table_POSTInfo[[#This Row],[Fixture/ Lamp Wattage '[P']]]),\"\")),\n\"\")","v":""},{"$f":"IF(OR(Table_POSTInfo[[#This Row],[Line]]=\"\",INDEX(Table_PREInfo[],Table_POSTInfo[[#This Row],[Line]],X$3)=\"\"),\"\",INDEX(Table_PREInfo[],Table_POSTInfo[[#This Row],[Line]],X$3))","v":""},{"$f":"IF(OR(Table_POSTInfo[[#This Row],[Line]]=\"\",INDEX(Table_PREInfo[],Table_POSTInfo[[#This Row],[Line]],Y$3)=\"\"),\"\",INDEX(Table_PREInfo[],Table_POSTInfo[[#This Row],[Line]],Y$3))","v":""},{"$f":"IFERROR(IF(Table_POSTInfo[[#This Row],[Interior/ Exterior]]<>\"\",\n  CONCATENATE(\n  Table_POSTInfo[[#This Row],[Fixture Technology '[P']]],\n  \" - \",Table_POSTInfo[[#This Row],[Fixture Type '[P']]],\" [\",\n  IF(Table_POSTInfo[[#This Row],['# Lamps/ Fixture '[P']]]>0,Table_POSTInfo[[#This Row],['# Lamps/ Fixture '[P']]] & \"L - \" & Table_POSTInfo[[#This Row],[Fixture/ Lamp Wattage '[P']]] & \"W\" & IF(Table_POSTInfo[[#This Row],[Ballast/ Driver '[P']]]<>\"\",\" - \" & Table_POSTInfo[[#This Row],[Ballast/ Driver '[P']]],\"\"),Table_POSTInfo[[#This Row],[Fixture Wattage '[P']]] & \"W\"),\"]\",\n  IF(AND(Table_POSTInfo[[#This Row],[Controls '[P']]]<>\"\",Table_POSTInfo[[#This Row],[Controls '[P']]]<>\"No Controls\"),\" - \" & Table_POSTInfo[[#This Row],[Controls '[P']]],\"\")\n  ),\n\"\"),\"\")","v":""},{"$f":"IF(OR(Table_POSTInfo[[#This Row],[Line]]=\"\",INDEX(Table_PREInfo[],Table_POSTInfo[[#This Row],[Line]],AA$3)=\"\"),\"\",INDEX(Table_PREInfo[],Table_POSTInfo[[#This Row],[Line]],AA$3))","v":""},{"$f":"IF(OR(Table_POSTInfo[[#This Row],[Line]]=\"\",INDEX(Table_PREInfo[],Table_POSTInfo[[#This Row],[Line]],AB$3)=\"\"),\"\",INDEX(Table_PREInfo[],Table_POSTInfo[[#This Row],[Line]],AB$3))","v":""},{"$f":"IF(OR(Table_POSTInfo[[#This Row],[Line]]=\"\",INDEX(Table_PREInfo[],Table_POSTInfo[[#This Row],[Line]],AC$3)=\"\"),\"\",INDEX(Table_PREInfo[],Table_POSTInfo[[#This Row],[Line]],AC$3))","v":""}]
[{"$f":"IF($A19=\"Line\",1,MAX($A$4:$A19)+1)","v":16},{"$f":"IF(OR(Table_POSTInfo[[#This Row],[Line]]=\"\",INDEX(Table_PREInfo[],Table_POSTInfo[[#This Row],[Line]],B$3)=\"\"),\"\",INDEX(Table_PREInfo[],Table_POSTInfo[[#This Row],[Line]],B$3))","v":false},{"$f":"IF(OR(Table_POSTInfo[[#This Row],[Line]]=\"\",INDEX(Table_PREInfo[],Table_POSTInfo[[#This Row],[Line]],C$3)=\"\"),\"\",INDEX(Table_PREInfo[],Table_POSTInfo[[#This Row],[Line]],C$3))","v":""},{"$f":"IF(ISNUMBER(MATCH(Table_POSTInfo[[#This Row],[Line]],Table_PREInspection[Line],0)),INDEX(Table_PREInspection[],MATCH(Table_POSTInfo[[#This Row],[Line]],Table_PREInspection[Line],0),MATCH('Post-Install Information'!D$3,'Pre-Install Inspection'!$A$3:$N$3,0)),IF(OR(Table_POSTInfo[[#This Row],[Line]]=\"\",INDEX(Table_PREInfo[],Table_POSTInfo[[#This Row],[Line]],D$3)=\"\"),\"\",INDEX(Table_PREInfo[],Table_POSTInfo[[#This Row],[Line]],D$3)))","v":""},{"$f":"IF(ISNUMBER(MATCH(Table_POSTInfo[[#This Row],[Line]],Table_PREInspection[Line],0)),INDEX(Table_PREInspection[],MATCH(Table_POSTInfo[[#This Row],[Line]],Table_PREInspection[Line],0),MATCH('Post-Install Information'!E$3,'Pre-Install Inspection'!$A$3:$N$3,0)),IF(OR(Table_POSTInfo[[#This Row],[Line]]=\"\",INDEX(Table_PREInfo[],Table_POSTInfo[[#This Row],[Line]],E$3)=\"\"),\"\",INDEX(Table_PREInfo[],Table_POSTInfo[[#This Row],[Line]],E$3)))","v":""},{"$f":"IF(ISNUMBER(MATCH(Table_POSTInfo[[#This Row],[Line]],Table_PREInspection[Line],0)),INDEX(Table_PREInspection[],MATCH(Table_POSTInfo[[#This Row],[Line]],Table_PREInspection[Line],0),MATCH('Post-Install Information'!F$3,'Pre-Install Inspection'!$A$3:$N$3,0)),IF(OR(Table_POSTInfo[[#This Row],[Line]]=\"\",INDEX(Table_PREInfo[],Table_POSTInfo[[#This Row],[Line]],F$3)=\"\"),\"\",INDEX(Table_PREInfo[],Table_POSTInfo[[#This Row],[Line]],F$3)))","v":""},null,{"$f":"IF(ISNUMBER(MATCH(Table_POSTInfo[[#This Row],[Line]],Table_PREInspection[Line],0)),INDEX(Table_PREInspection[],MATCH(Table_POSTInfo[[#This Row],[Line]],Table_PREInspection[Line],0),MATCH('Post-Install Information'!H$3,'Pre-Install Inspection'!$A$3:$N$3,0)),IF(OR(Table_POSTInfo[[#This Row],[Line]]=\"\",INDEX(Table_PREInfo[],Table_POSTInfo[[#This Row],[Line]],H$3)=\"\"),\"\",INDEX(Table_PREInfo[],Table_POSTInfo[[#This Row],[Line]],H$3)))","v":""},{"$f":"IF(ISNUMBER(MATCH(Table_POSTInfo[[#This Row],[Line]],Table_PREInspection[Line],0)),INDEX(Table_PREInspection[],MATCH(Table_POSTInfo[[#This Row],[Line]],Table_PREInspection[Line],0),MATCH('Post-Install Information'!I$3,'Pre-Install Inspection'!$A$3:$N$3,0)),IF(OR(Table_POSTInfo[[#This Row],[Line]]=\"\",INDEX(Table_PREInfo[],Table_POSTInfo[[#This Row],[Line]],I$3)=\"\"),\"\",INDEX(Table_PREInfo[],Table_POSTInfo[[#This Row],[Line]],I$3)))","v":""},{"$f":"IF(ISNUMBER(MATCH(Table_POSTInfo[[#This Row],[Line]],Table_PREInspection[Line],0)),INDEX(Table_PREInspection[],MATCH(Table_POSTInfo[[#This Row],[Line]],Table_PREInspection[Line],0),MATCH('Post-Install Information'!J$3,'Pre-Install Inspection'!$A$3:$N$3,0)),IF(OR(Table_POSTInfo[[#This Row],[Line]]=\"\",INDEX(Table_PREInfo[],Table_POSTInfo[[#This Row],[Line]],J$3)=\"\"),\"\",INDEX(Table_PREInfo[],Table_POSTInfo[[#This Row],[Line]],J$3)))","v":""},{"$f":"IF(ISNUMBER(MATCH(Table_POSTInfo[[#This Row],[Line]],Table_PREInspection[Line],0)),INDEX(Table_PREInspection[],MATCH(Table_POSTInfo[[#This Row],[Line]],Table_PREInspection[Line],0),MATCH('Post-Install Information'!K$3,'Pre-Install Inspection'!$A$3:$N$3,0)),IF(OR(Table_POSTInfo[[#This Row],[Line]]=\"\",INDEX(Table_PREInfo[],Table_POSTInfo[[#This Row],[Line]],K$3)=\"\"),\"\",INDEX(Table_PREInfo[],Table_POSTInfo[[#This Row],[Line]],K$3)))","v":""},{"$f":"IF(ISNUMBER(MATCH(Table_POSTInfo[[#This Row],[Line]],Table_PREInspection[Line],0)),INDEX(Table_PREInspection[],MATCH(Table_POSTInfo[[#This Row],[Line]],Table_PREInspection[Line],0),MATCH('Post-Install Information'!L$3,'Pre-Install Inspection'!$A$3:$N$3,0)),IF(OR(Table_POSTInfo[[#This Row],[Line]]=\"\",INDEX(Table_PREInfo[],Table_POSTInfo[[#This Row],[Line]],L$3)=\"\"),\"\",INDEX(Table_PREInfo[],Table_POSTInfo[[#This Row],[Line]],L$3)))","v":""},{"$f":"IF(ISNUMBER(MATCH(Table_POSTInfo[[#This Row],[Line]],Table_PREInspection[Line],0)),INDEX(Table_PREInspection[],MATCH(Table_POSTInfo[[#This Row],[Line]],Table_PREInspection[Line],0),MATCH('Post-Install Information'!M$3,'Pre-Install Inspection'!$A$3:$N$3,0)),IF(OR(Table_POSTInfo[[#This Row],[Line]]=\"\",INDEX(Table_PREInfo[],Table_POSTInfo[[#This Row],[Line]],M$3)=\"\"),\"\",INDEX(Table_PREInfo[],Table_POSTInfo[[#This Row],[Line]],M$3)))","v":""},{"$f":"IF(ISNUMBER(MATCH(Table_POSTInfo[[#This Row],[Line]],Table_PREInspection[Line],0)),INDEX(Table_PREInspection[],MATCH(Table_POSTInfo[[#This Row],[Line]],Table_PREInspection[Line],0),MATCH('Post-Install Information'!N$3,'Pre-Install Inspection'!$A$3:$N$3,0)),IF(OR(Table_POSTInfo[[#This Row],[Line]]=\"\",INDEX(Table_PREInfo[],Table_POSTInfo[[#This Row],[Line]],N$3)=\"\"),\"\",INDEX(Table_PREInfo[],Table_POSTInfo[[#This Row],[Line]],N$3)))","v":""},{"$f":"IF(ISNUMBER(MATCH(Table_POSTInfo[[#This Row],[Line]],Table_PREInspection[Line],0)),INDEX(Table_PREInspection[],MATCH(Table_POSTInfo[[#This Row],[Line]],Table_PREInspection[Line],0),MATCH('Post-Install Information'!O$3,'Pre-Install Inspection'!$A$3:$N$3,0)),IF(OR(Table_POSTInfo[[#This Row],[Line]]=\"\",INDEX(Table_PREInfo[],Table_POSTInfo[[#This Row],[Line]],O$3)=\"\"),\"\",INDEX(Table_PREInfo[],Table_POSTInfo[[#This Row],[Line]],O$3)))","v":""},{"$f":"IF(ISNUMBER(MATCH(Table_POSTInfo[[#This Row],[Line]],Table_PREInspection[Line],0)),INDEX(Table_PREInspection[],MATCH(Table_POSTInfo[[#This Row],[Line]],Table_PREInspection[Line],0),MATCH('Post-Install Information'!P$3,'Pre-Install Inspection'!$A$3:$N$3,0)),IF(OR(Table_POSTInfo[[#This Row],[Line]]=\"\",INDEX(Table_PREInfo[],Table_POSTInfo[[#This Row],[Line]],P$3)=\"\"),\"\",INDEX(Table_PREInfo[],Table_POSTInfo[[#This Row],[Line]],P$3)))","v":""},null,{"$f":"IF(Table_PREInfo[[#This Row],[Fixture Qty '[P']]]<>0,Table_PREInfo[[#This Row],[Fixture Qty '[P']]],IF(Table_POSTInfo[[#This Row],[Fixture Qty '[E']]]<>0,Table_POSTInfo[[#This Row],[Fixture Qty '[E']]],\"\"))","v":""},{"$f":"IF(OR(Table_POSTInfo[[#This Row],[Line]]=\"\",INDEX(Table_PREInfo[],Table_POSTInfo[[#This Row],[Line]],S$3)=\"\"),\"\",INDEX(Table_PREInfo[],Table_POSTInfo[[#This Row],[Line]],S$3))","v":""},{"$f":"IF(OR(Table_POSTInfo[[#This Row],[Line]]=\"\",INDEX(Table_PREInfo[],Table_POSTInfo[[#This Row],[Line]],T$3)=\"\"),\"\",INDEX(Table_PREInfo[],Table_POSTInfo[[#This Row],[Line]],T$3))","v":""},{"$f":"IF(OR(Table_POSTInfo[[#This Row],[Line]]=\"\",INDEX(Table_PREInfo[],Table_POSTInfo[[#This Row],[Line]],U$3)=\"\"),\"\",INDEX(Table_PREInfo[],Table_POSTInfo[[#This Row],[Line]],U$3))","v":""},{"$f":"IF(OR(Table_POSTInfo[[#This Row],[Line]]=\"\",INDEX(Table_PREInfo[],Table_POSTInfo[[#This Row],[Line]],V$3)=\"\"),\"\",INDEX(Table_PREInfo[],Table_POSTInfo[[#This Row],[Line]],V$3))","v":""},{"$f":"IFERROR(\nIFERROR(OFFSET(Table_TypWattage[[#Headers],[Technology]],MATCH(Table_POSTInfo[[#This Row],[Fixture Technology '[P']]],Table_TypWattage[Technology],0)+MATCH(Table_POSTInfo[[#This Row],[Fixture/ Lamp Wattage '[P']]],INDIRECT(SUBSTITUTE(SUBSTITUTE(Table_POSTInfo[[#This Row],[Fixture Technology '[P']]],\" \",\"_\"),\"-\",\"_\")),0)-1,MATCH(Table_POSTInfo[[#This Row],['# Lamps/ Fixture '[P']]],'Measure Tables'!$Q$2:$V$2,0)+1),IF(Table_POSTInfo[[#This Row],[IsActive]],IF(AND(Table_POSTInfo[[#This Row],['# Lamps/ Fixture '[P']]]<>\"\",Table_POSTInfo[[#This Row],['# Lamps/ Fixture '[P']]]>0,Table_POSTInfo[[#This Row],[Fixture/ Lamp Wattage '[P']]]>0),Table_POSTInfo[[#This Row],['# Lamps/ Fixture '[P']]]*Table_POSTInfo[[#This Row],[Fixture/ Lamp Wattage '[P']]],Table_POSTInfo[[#This Row],[Fixture/ Lamp Wattage '[P']]]),\"\")),\n\"\")","v":""},{"$f":"IF(OR(Table_POSTInfo[[#This Row],[Line]]=\"\",INDEX(Table_PREInfo[],Table_POSTInfo[[#This Row],[Line]],X$3)=\"\"),\"\",INDEX(Table_PREInfo[],Table_POSTInfo[[#This Row],[Line]],X$3))","v":""},{"$f":"IF(OR(Table_POSTInfo[[#This Row],[Line]]=\"\",INDEX(Table_PREInfo[],Table_POSTInfo[[#This Row],[Line]],Y$3)=\"\"),\"\",INDEX(Table_PREInfo[],Table_POSTInfo[[#This Row],[Line]],Y$3))","v":""},{"$f":"IFERROR(IF(Table_POSTInfo[[#This Row],[Interior/ Exterior]]<>\"\",\n  CONCATENATE(\n  Table_POSTInfo[[#This Row],[Fixture Technology '[P']]],\n  \" - \",Table_POSTInfo[[#This Row],[Fixture Type '[P']]],\" [\",\n  IF(Table_POSTInfo[[#This Row],['# Lamps/ Fixture '[P']]]>0,Table_POSTInfo[[#This Row],['# Lamps/ Fixture '[P']]] & \"L - \" & Table_POSTInfo[[#This Row],[Fixture/ Lamp Wattage '[P']]] & \"W\" & IF(Table_POSTInfo[[#This Row],[Ballast/ Driver '[P']]]<>\"\",\" - \" & Table_POSTInfo[[#This Row],[Ballast/ Driver '[P']]],\"\"),Table_POSTInfo[[#This Row],[Fixture Wattage '[P']]] & \"W\"),\"]\",\n  IF(AND(Table_POSTInfo[[#This Row],[Controls '[P']]]<>\"\",Table_POSTInfo[[#This Row],[Controls '[P']]]<>\"No Controls\"),\" - \" & Table_POSTInfo[[#This Row],[Controls '[P']]],\"\")\n  ),\n\"\"),\"\")","v":""},{"$f":"IF(OR(Table_POSTInfo[[#This Row],[Line]]=\"\",INDEX(Table_PREInfo[],Table_POSTInfo[[#This Row],[Line]],AA$3)=\"\"),\"\",INDEX(Table_PREInfo[],Table_POSTInfo[[#This Row],[Line]],AA$3))","v":""},{"$f":"IF(OR(Table_POSTInfo[[#This Row],[Line]]=\"\",INDEX(Table_PREInfo[],Table_POSTInfo[[#This Row],[Line]],AB$3)=\"\"),\"\",INDEX(Table_PREInfo[],Table_POSTInfo[[#This Row],[Line]],AB$3))","v":""},{"$f":"IF(OR(Table_POSTInfo[[#This Row],[Line]]=\"\",INDEX(Table_PREInfo[],Table_POSTInfo[[#This Row],[Line]],AC$3)=\"\"),\"\",INDEX(Table_PREInfo[],Table_POSTInfo[[#This Row],[Line]],AC$3))","v":""}]
[{"$f":"IF($A20=\"Line\",1,MAX($A$4:$A20)+1)","v":17},{"$f":"IF(OR(Table_POSTInfo[[#This Row],[Line]]=\"\",INDEX(Table_PREInfo[],Table_POSTInfo[[#This Row],[Line]],B$3)=\"\"),\"\",INDEX(Table_PREInfo[],Table_POSTInfo[[#This Row],[Line]],B$3))","v":false},{"$f":"IF(OR(Table_POSTInfo[[#This Row],[Line]]=\"\",INDEX(Table_PREInfo[],Table_POSTInfo[[#This Row],[Line]],C$3)=\"\"),\"\",INDEX(Table_PREInfo[],Table_POSTInfo[[#This Row],[Line]],C$3))","v":""},{"$f":"IF(ISNUMBER(MATCH(Table_POSTInfo[[#This Row],[Line]],Table_PREInspection[Line],0)),INDEX(Table_PREInspection[],MATCH(Table_POSTInfo[[#This Row],[Line]],Table_PREInspection[Line],0),MATCH('Post-Install Information'!D$3,'Pre-Install Inspection'!$A$3:$N$3,0)),IF(OR(Table_POSTInfo[[#This Row],[Line]]=\"\",INDEX(Table_PREInfo[],Table_POSTInfo[[#This Row],[Line]],D$3)=\"\"),\"\",INDEX(Table_PREInfo[],Table_POSTInfo[[#This Row],[Line]],D$3)))","v":""},{"$f":"IF(ISNUMBER(MATCH(Table_POSTInfo[[#This Row],[Line]],Table_PREInspection[Line],0)),INDEX(Table_PREInspection[],MATCH(Table_POSTInfo[[#This Row],[Line]],Table_PREInspection[Line],0),MATCH('Post-Install Information'!E$3,'Pre-Install Inspection'!$A$3:$N$3,0)),IF(OR(Table_POSTInfo[[#This Row],[Line]]=\"\",INDEX(Table_PREInfo[],Table_POSTInfo[[#This Row],[Line]],E$3)=\"\"),\"\",INDEX(Table_PREInfo[],Table_POSTInfo[[#This Row],[Line]],E$3)))","v":""},{"$f":"IF(ISNUMBER(MATCH(Table_POSTInfo[[#This Row],[Line]],Table_PREInspection[Line],0)),INDEX(Table_PREInspection[],MATCH(Table_POSTInfo[[#This Row],[Line]],Table_PREInspection[Line],0),MATCH('Post-Install Information'!F$3,'Pre-Install Inspection'!$A$3:$N$3,0)),IF(OR(Table_POSTInfo[[#This Row],[Line]]=\"\",INDEX(Table_PREInfo[],Table_POSTInfo[[#This Row],[Line]],F$3)=\"\"),\"\",INDEX(Table_PREInfo[],Table_POSTInfo[[#This Row],[Line]],F$3)))","v":""},null,{"$f":"IF(ISNUMBER(MATCH(Table_POSTInfo[[#This Row],[Line]],Table_PREInspection[Line],0)),INDEX(Table_PREInspection[],MATCH(Table_POSTInfo[[#This Row],[Line]],Table_PREInspection[Line],0),MATCH('Post-Install Information'!H$3,'Pre-Install Inspection'!$A$3:$N$3,0)),IF(OR(Table_POSTInfo[[#This Row],[Line]]=\"\",INDEX(Table_PREInfo[],Table_POSTInfo[[#This Row],[Line]],H$3)=\"\"),\"\",INDEX(Table_PREInfo[],Table_POSTInfo[[#This Row],[Line]],H$3)))","v":""},{"$f":"IF(ISNUMBER(MATCH(Table_POSTInfo[[#This Row],[Line]],Table_PREInspection[Line],0)),INDEX(Table_PREInspection[],MATCH(Table_POSTInfo[[#This Row],[Line]],Table_PREInspection[Line],0),MATCH('Post-Install Information'!I$3,'Pre-Install Inspection'!$A$3:$N$3,0)),IF(OR(Table_POSTInfo[[#This Row],[Line]]=\"\",INDEX(Table_PREInfo[],Table_POSTInfo[[#This Row],[Line]],I$3)=\"\"),\"\",INDEX(Table_PREInfo[],Table_POSTInfo[[#This Row],[Line]],I$3)))","v":""},{"$f":"IF(ISNUMBER(MATCH(Table_POSTInfo[[#This Row],[Line]],Table_PREInspection[Line],0)),INDEX(Table_PREInspection[],MATCH(Table_POSTInfo[[#This Row],[Line]],Table_PREInspection[Line],0),MATCH('Post-Install Information'!J$3,'Pre-Install Inspection'!$A$3:$N$3,0)),IF(OR(Table_POSTInfo[[#This Row],[Line]]=\"\",INDEX(Table_PREInfo[],Table_POSTInfo[[#This Row],[Line]],J$3)=\"\"),\"\",INDEX(Table_PREInfo[],Table_POSTInfo[[#This Row],[Line]],J$3)))","v":""},{"$f":"IF(ISNUMBER(MATCH(Table_POSTInfo[[#This Row],[Line]],Table_PREInspection[Line],0)),INDEX(Table_PREInspection[],MATCH(Table_POSTInfo[[#This Row],[Line]],Table_PREInspection[Line],0),MATCH('Post-Install Information'!K$3,'Pre-Install Inspection'!$A$3:$N$3,0)),IF(OR(Table_POSTInfo[[#This Row],[Line]]=\"\",INDEX(Table_PREInfo[],Table_POSTInfo[[#This Row],[Line]],K$3)=\"\"),\"\",INDEX(Table_PREInfo[],Table_POSTInfo[[#This Row],[Line]],K$3)))","v":""},{"$f":"IF(ISNUMBER(MATCH(Table_POSTInfo[[#This Row],[Line]],Table_PREInspection[Line],0)),INDEX(Table_PREInspection[],MATCH(Table_POSTInfo[[#This Row],[Line]],Table_PREInspection[Line],0),MATCH('Post-Install Information'!L$3,'Pre-Install Inspection'!$A$3:$N$3,0)),IF(OR(Table_POSTInfo[[#This Row],[Line]]=\"\",INDEX(Table_PREInfo[],Table_POSTInfo[[#This Row],[Line]],L$3)=\"\"),\"\",INDEX(Table_PREInfo[],Table_POSTInfo[[#This Row],[Line]],L$3)))","v":""},{"$f":"IF(ISNUMBER(MATCH(Table_POSTInfo[[#This Row],[Line]],Table_PREInspection[Line],0)),INDEX(Table_PREInspection[],MATCH(Table_POSTInfo[[#This Row],[Line]],Table_PREInspection[Line],0),MATCH('Post-Install Information'!M$3,'Pre-Install Inspection'!$A$3:$N$3,0)),IF(OR(Table_POSTInfo[[#This Row],[Line]]=\"\",INDEX(Table_PREInfo[],Table_POSTInfo[[#This Row],[Line]],M$3)=\"\"),\"\",INDEX(Table_PREInfo[],Table_POSTInfo[[#This Row],[Line]],M$3)))","v":""},{"$f":"IF(ISNUMBER(MATCH(Table_POSTInfo[[#This Row],[Line]],Table_PREInspection[Line],0)),INDEX(Table_PREInspection[],MATCH(Table_POSTInfo[[#This Row],[Line]],Table_PREInspection[Line],0),MATCH('Post-Install Information'!N$3,'Pre-Install Inspection'!$A$3:$N$3,0)),IF(OR(Table_POSTInfo[[#This Row],[Line]]=\"\",INDEX(Table_PREInfo[],Table_POSTInfo[[#This Row],[Line]],N$3)=\"\"),\"\",INDEX(Table_PREInfo[],Table_POSTInfo[[#This Row],[Line]],N$3)))","v":""},{"$f":"IF(ISNUMBER(MATCH(Table_POSTInfo[[#This Row],[Line]],Table_PREInspection[Line],0)),INDEX(Table_PREInspection[],MATCH(Table_POSTInfo[[#This Row],[Line]],Table_PREInspection[Line],0),MATCH('Post-Install Information'!O$3,'Pre-Install Inspection'!$A$3:$N$3,0)),IF(OR(Table_POSTInfo[[#This Row],[Line]]=\"\",INDEX(Table_PREInfo[],Table_POSTInfo[[#This Row],[Line]],O$3)=\"\"),\"\",INDEX(Table_PREInfo[],Table_POSTInfo[[#This Row],[Line]],O$3)))","v":""},{"$f":"IF(ISNUMBER(MATCH(Table_POSTInfo[[#This Row],[Line]],Table_PREInspection[Line],0)),INDEX(Table_PREInspection[],MATCH(Table_POSTInfo[[#This Row],[Line]],Table_PREInspection[Line],0),MATCH('Post-Install Information'!P$3,'Pre-Install Inspection'!$A$3:$N$3,0)),IF(OR(Table_POSTInfo[[#This Row],[Line]]=\"\",INDEX(Table_PREInfo[],Table_POSTInfo[[#This Row],[Line]],P$3)=\"\"),\"\",INDEX(Table_PREInfo[],Table_POSTInfo[[#This Row],[Line]],P$3)))","v":""},null,{"$f":"IF(Table_PREInfo[[#This Row],[Fixture Qty '[P']]]<>0,Table_PREInfo[[#This Row],[Fixture Qty '[P']]],IF(Table_POSTInfo[[#This Row],[Fixture Qty '[E']]]<>0,Table_POSTInfo[[#This Row],[Fixture Qty '[E']]],\"\"))","v":""},{"$f":"IF(OR(Table_POSTInfo[[#This Row],[Line]]=\"\",INDEX(Table_PREInfo[],Table_POSTInfo[[#This Row],[Line]],S$3)=\"\"),\"\",INDEX(Table_PREInfo[],Table_POSTInfo[[#This Row],[Line]],S$3))","v":""},{"$f":"IF(OR(Table_POSTInfo[[#This Row],[Line]]=\"\",INDEX(Table_PREInfo[],Table_POSTInfo[[#This Row],[Line]],T$3)=\"\"),\"\",INDEX(Table_PREInfo[],Table_POSTInfo[[#This Row],[Line]],T$3))","v":""},{"$f":"IF(OR(Table_POSTInfo[[#This Row],[Line]]=\"\",INDEX(Table_PREInfo[],Table_POSTInfo[[#This Row],[Line]],U$3)=\"\"),\"\",INDEX(Table_PREInfo[],Table_POSTInfo[[#This Row],[Line]],U$3))","v":""},{"$f":"IF(OR(Table_POSTInfo[[#This Row],[Line]]=\"\",INDEX(Table_PREInfo[],Table_POSTInfo[[#This Row],[Line]],V$3)=\"\"),\"\",INDEX(Table_PREInfo[],Table_POSTInfo[[#This Row],[Line]],V$3))","v":""},{"$f":"IFERROR(\nIFERROR(OFFSET(Table_TypWattage[[#Headers],[Technology]],MATCH(Table_POSTInfo[[#This Row],[Fixture Technology '[P']]],Table_TypWattage[Technology],0)+MATCH(Table_POSTInfo[[#This Row],[Fixture/ Lamp Wattage '[P']]],INDIRECT(SUBSTITUTE(SUBSTITUTE(Table_POSTInfo[[#This Row],[Fixture Technology '[P']]],\" \",\"_\"),\"-\",\"_\")),0)-1,MATCH(Table_POSTInfo[[#This Row],['# Lamps/ Fixture '[P']]],'Measure Tables'!$Q$2:$V$2,0)+1),IF(Table_POSTInfo[[#This Row],[IsActive]],IF(AND(Table_POSTInfo[[#This Row],['# Lamps/ Fixture '[P']]]<>\"\",Table_POSTInfo[[#This Row],['# Lamps/ Fixture '[P']]]>0,Table_POSTInfo[[#This Row],[Fixture/ Lamp Wattage '[P']]]>0),Table_POSTInfo[[#This Row],['# Lamps/ Fixture '[P']]]*Table_POSTInfo[[#This Row],[Fixture/ Lamp Wattage '[P']]],Table_POSTInfo[[#This Row],[Fixture/ Lamp Wattage '[P']]]),\"\")),\n\"\")","v":""},{"$f":"IF(OR(Table_POSTInfo[[#This Row],[Line]]=\"\",INDEX(Table_PREInfo[],Table_POSTInfo[[#This Row],[Line]],X$3)=\"\"),\"\",INDEX(Table_PREInfo[],Table_POSTInfo[[#This Row],[Line]],X$3))","v":""},{"$f":"IF(OR(Table_POSTInfo[[#This Row],[Line]]=\"\",INDEX(Table_PREInfo[],Table_POSTInfo[[#This Row],[Line]],Y$3)=\"\"),\"\",INDEX(Table_PREInfo[],Table_POSTInfo[[#This Row],[Line]],Y$3))","v":""},{"$f":"IFERROR(IF(Table_POSTInfo[[#This Row],[Interior/ Exterior]]<>\"\",\n  CONCATENATE(\n  Table_POSTInfo[[#This Row],[Fixture Technology '[P']]],\n  \" - \",Table_POSTInfo[[#This Row],[Fixture Type '[P']]],\" [\",\n  IF(Table_POSTInfo[[#This Row],['# Lamps/ Fixture '[P']]]>0,Table_POSTInfo[[#This Row],['# Lamps/ Fixture '[P']]] & \"L - \" & Table_POSTInfo[[#This Row],[Fixture/ Lamp Wattage '[P']]] & \"W\" & IF(Table_POSTInfo[[#This Row],[Ballast/ Driver '[P']]]<>\"\",\" - \" & Table_POSTInfo[[#This Row],[Ballast/ Driver '[P']]],\"\"),Table_POSTInfo[[#This Row],[Fixture Wattage '[P']]] & \"W\"),\"]\",\n  IF(AND(Table_POSTInfo[[#This Row],[Controls '[P']]]<>\"\",Table_POSTInfo[[#This Row],[Controls '[P']]]<>\"No Controls\"),\" - \" & Table_POSTInfo[[#This Row],[Controls '[P']]],\"\")\n  ),\n\"\"),\"\")","v":""},{"$f":"IF(OR(Table_POSTInfo[[#This Row],[Line]]=\"\",INDEX(Table_PREInfo[],Table_POSTInfo[[#This Row],[Line]],AA$3)=\"\"),\"\",INDEX(Table_PREInfo[],Table_POSTInfo[[#This Row],[Line]],AA$3))","v":""},{"$f":"IF(OR(Table_POSTInfo[[#This Row],[Line]]=\"\",INDEX(Table_PREInfo[],Table_POSTInfo[[#This Row],[Line]],AB$3)=\"\"),\"\",INDEX(Table_PREInfo[],Table_POSTInfo[[#This Row],[Line]],AB$3))","v":""},{"$f":"IF(OR(Table_POSTInfo[[#This Row],[Line]]=\"\",INDEX(Table_PREInfo[],Table_POSTInfo[[#This Row],[Line]],AC$3)=\"\"),\"\",INDEX(Table_PREInfo[],Table_POSTInfo[[#This Row],[Line]],AC$3))","v":""}]
[{"$f":"IF($A21=\"Line\",1,MAX($A$4:$A21)+1)","v":18},{"$f":"IF(OR(Table_POSTInfo[[#This Row],[Line]]=\"\",INDEX(Table_PREInfo[],Table_POSTInfo[[#This Row],[Line]],B$3)=\"\"),\"\",INDEX(Table_PREInfo[],Table_POSTInfo[[#This Row],[Line]],B$3))","v":false},{"$f":"IF(OR(Table_POSTInfo[[#This Row],[Line]]=\"\",INDEX(Table_PREInfo[],Table_POSTInfo[[#This Row],[Line]],C$3)=\"\"),\"\",INDEX(Table_PREInfo[],Table_POSTInfo[[#This Row],[Line]],C$3))","v":""},{"$f":"IF(ISNUMBER(MATCH(Table_POSTInfo[[#This Row],[Line]],Table_PREInspection[Line],0)),INDEX(Table_PREInspection[],MATCH(Table_POSTInfo[[#This Row],[Line]],Table_PREInspection[Line],0),MATCH('Post-Install Information'!D$3,'Pre-Install Inspection'!$A$3:$N$3,0)),IF(OR(Table_POSTInfo[[#This Row],[Line]]=\"\",INDEX(Table_PREInfo[],Table_POSTInfo[[#This Row],[Line]],D$3)=\"\"),\"\",INDEX(Table_PREInfo[],Table_POSTInfo[[#This Row],[Line]],D$3)))","v":""},{"$f":"IF(ISNUMBER(MATCH(Table_POSTInfo[[#This Row],[Line]],Table_PREInspection[Line],0)),INDEX(Table_PREInspection[],MATCH(Table_POSTInfo[[#This Row],[Line]],Table_PREInspection[Line],0),MATCH('Post-Install Information'!E$3,'Pre-Install Inspection'!$A$3:$N$3,0)),IF(OR(Table_POSTInfo[[#This Row],[Line]]=\"\",INDEX(Table_PREInfo[],Table_POSTInfo[[#This Row],[Line]],E$3)=\"\"),\"\",INDEX(Table_PREInfo[],Table_POSTInfo[[#This Row],[Line]],E$3)))","v":""},{"$f":"IF(ISNUMBER(MATCH(Table_POSTInfo[[#This Row],[Line]],Table_PREInspection[Line],0)),INDEX(Table_PREInspection[],MATCH(Table_POSTInfo[[#This Row],[Line]],Table_PREInspection[Line],0),MATCH('Post-Install Information'!F$3,'Pre-Install Inspection'!$A$3:$N$3,0)),IF(OR(Table_POSTInfo[[#This Row],[Line]]=\"\",INDEX(Table_PREInfo[],Table_POSTInfo[[#This Row],[Line]],F$3)=\"\"),\"\",INDEX(Table_PREInfo[],Table_POSTInfo[[#This Row],[Line]],F$3)))","v":""},null,{"$f":"IF(ISNUMBER(MATCH(Table_POSTInfo[[#This Row],[Line]],Table_PREInspection[Line],0)),INDEX(Table_PREInspection[],MATCH(Table_POSTInfo[[#This Row],[Line]],Table_PREInspection[Line],0),MATCH('Post-Install Information'!H$3,'Pre-Install Inspection'!$A$3:$N$3,0)),IF(OR(Table_POSTInfo[[#This Row],[Line]]=\"\",INDEX(Table_PREInfo[],Table_POSTInfo[[#This Row],[Line]],H$3)=\"\"),\"\",INDEX(Table_PREInfo[],Table_POSTInfo[[#This Row],[Line]],H$3)))","v":""},{"$f":"IF(ISNUMBER(MATCH(Table_POSTInfo[[#This Row],[Line]],Table_PREInspection[Line],0)),INDEX(Table_PREInspection[],MATCH(Table_POSTInfo[[#This Row],[Line]],Table_PREInspection[Line],0),MATCH('Post-Install Information'!I$3,'Pre-Install Inspection'!$A$3:$N$3,0)),IF(OR(Table_POSTInfo[[#This Row],[Line]]=\"\",INDEX(Table_PREInfo[],Table_POSTInfo[[#This Row],[Line]],I$3)=\"\"),\"\",INDEX(Table_PREInfo[],Table_POSTInfo[[#This Row],[Line]],I$3)))","v":""},{"$f":"IF(ISNUMBER(MATCH(Table_POSTInfo[[#This Row],[Line]],Table_PREInspection[Line],0)),INDEX(Table_PREInspection[],MATCH(Table_POSTInfo[[#This Row],[Line]],Table_PREInspection[Line],0),MATCH('Post-Install Information'!J$3,'Pre-Install Inspection'!$A$3:$N$3,0)),IF(OR(Table_POSTInfo[[#This Row],[Line]]=\"\",INDEX(Table_PREInfo[],Table_POSTInfo[[#This Row],[Line]],J$3)=\"\"),\"\",INDEX(Table_PREInfo[],Table_POSTInfo[[#This Row],[Line]],J$3)))","v":""},{"$f":"IF(ISNUMBER(MATCH(Table_POSTInfo[[#This Row],[Line]],Table_PREInspection[Line],0)),INDEX(Table_PREInspection[],MATCH(Table_POSTInfo[[#This Row],[Line]],Table_PREInspection[Line],0),MATCH('Post-Install Information'!K$3,'Pre-Install Inspection'!$A$3:$N$3,0)),IF(OR(Table_POSTInfo[[#This Row],[Line]]=\"\",INDEX(Table_PREInfo[],Table_POSTInfo[[#This Row],[Line]],K$3)=\"\"),\"\",INDEX(Table_PREInfo[],Table_POSTInfo[[#This Row],[Line]],K$3)))","v":""},{"$f":"IF(ISNUMBER(MATCH(Table_POSTInfo[[#This Row],[Line]],Table_PREInspection[Line],0)),INDEX(Table_PREInspection[],MATCH(Table_POSTInfo[[#This Row],[Line]],Table_PREInspection[Line],0),MATCH('Post-Install Information'!L$3,'Pre-Install Inspection'!$A$3:$N$3,0)),IF(OR(Table_POSTInfo[[#This Row],[Line]]=\"\",INDEX(Table_PREInfo[],Table_POSTInfo[[#This Row],[Line]],L$3)=\"\"),\"\",INDEX(Table_PREInfo[],Table_POSTInfo[[#This Row],[Line]],L$3)))","v":""},{"$f":"IF(ISNUMBER(MATCH(Table_POSTInfo[[#This Row],[Line]],Table_PREInspection[Line],0)),INDEX(Table_PREInspection[],MATCH(Table_POSTInfo[[#This Row],[Line]],Table_PREInspection[Line],0),MATCH('Post-Install Information'!M$3,'Pre-Install Inspection'!$A$3:$N$3,0)),IF(OR(Table_POSTInfo[[#This Row],[Line]]=\"\",INDEX(Table_PREInfo[],Table_POSTInfo[[#This Row],[Line]],M$3)=\"\"),\"\",INDEX(Table_PREInfo[],Table_POSTInfo[[#This Row],[Line]],M$3)))","v":""},{"$f":"IF(ISNUMBER(MATCH(Table_POSTInfo[[#This Row],[Line]],Table_PREInspection[Line],0)),INDEX(Table_PREInspection[],MATCH(Table_POSTInfo[[#This Row],[Line]],Table_PREInspection[Line],0),MATCH('Post-Install Information'!N$3,'Pre-Install Inspection'!$A$3:$N$3,0)),IF(OR(Table_POSTInfo[[#This Row],[Line]]=\"\",INDEX(Table_PREInfo[],Table_POSTInfo[[#This Row],[Line]],N$3)=\"\"),\"\",INDEX(Table_PREInfo[],Table_POSTInfo[[#This Row],[Line]],N$3)))","v":""},{"$f":"IF(ISNUMBER(MATCH(Table_POSTInfo[[#This Row],[Line]],Table_PREInspection[Line],0)),INDEX(Table_PREInspection[],MATCH(Table_POSTInfo[[#This Row],[Line]],Table_PREInspection[Line],0),MATCH('Post-Install Information'!O$3,'Pre-Install Inspection'!$A$3:$N$3,0)),IF(OR(Table_POSTInfo[[#This Row],[Line]]=\"\",INDEX(Table_PREInfo[],Table_POSTInfo[[#This Row],[Line]],O$3)=\"\"),\"\",INDEX(Table_PREInfo[],Table_POSTInfo[[#This Row],[Line]],O$3)))","v":""},{"$f":"IF(ISNUMBER(MATCH(Table_POSTInfo[[#This Row],[Line]],Table_PREInspection[Line],0)),INDEX(Table_PREInspection[],MATCH(Table_POSTInfo[[#This Row],[Line]],Table_PREInspection[Line],0),MATCH('Post-Install Information'!P$3,'Pre-Install Inspection'!$A$3:$N$3,0)),IF(OR(Table_POSTInfo[[#This Row],[Line]]=\"\",INDEX(Table_PREInfo[],Table_POSTInfo[[#This Row],[Line]],P$3)=\"\"),\"\",INDEX(Table_PREInfo[],Table_POSTInfo[[#This Row],[Line]],P$3)))","v":""},null,{"$f":"IF(Table_PREInfo[[#This Row],[Fixture Qty '[P']]]<>0,Table_PREInfo[[#This Row],[Fixture Qty '[P']]],IF(Table_POSTInfo[[#This Row],[Fixture Qty '[E']]]<>0,Table_POSTInfo[[#This Row],[Fixture Qty '[E']]],\"\"))","v":""},{"$f":"IF(OR(Table_POSTInfo[[#This Row],[Line]]=\"\",INDEX(Table_PREInfo[],Table_POSTInfo[[#This Row],[Line]],S$3)=\"\"),\"\",INDEX(Table_PREInfo[],Table_POSTInfo[[#This Row],[Line]],S$3))","v":""},{"$f":"IF(OR(Table_POSTInfo[[#This Row],[Line]]=\"\",INDEX(Table_PREInfo[],Table_POSTInfo[[#This Row],[Line]],T$3)=\"\"),\"\",INDEX(Table_PREInfo[],Table_POSTInfo[[#This Row],[Line]],T$3))","v":""},{"$f":"IF(OR(Table_POSTInfo[[#This Row],[Line]]=\"\",INDEX(Table_PREInfo[],Table_POSTInfo[[#This Row],[Line]],U$3)=\"\"),\"\",INDEX(Table_PREInfo[],Table_POSTInfo[[#This Row],[Line]],U$3))","v":""},{"$f":"IF(OR(Table_POSTInfo[[#This Row],[Line]]=\"\",INDEX(Table_PREInfo[],Table_POSTInfo[[#This Row],[Line]],V$3)=\"\"),\"\",INDEX(Table_PREInfo[],Table_POSTInfo[[#This Row],[Line]],V$3))","v":""},{"$f":"IFERROR(\nIFERROR(OFFSET(Table_TypWattage[[#Headers],[Technology]],MATCH(Table_POSTInfo[[#This Row],[Fixture Technology '[P']]],Table_TypWattage[Technology],0)+MATCH(Table_POSTInfo[[#This Row],[Fixture/ Lamp Wattage '[P']]],INDIRECT(SUBSTITUTE(SUBSTITUTE(Table_POSTInfo[[#This Row],[Fixture Technology '[P']]],\" \",\"_\"),\"-\",\"_\")),0)-1,MATCH(Table_POSTInfo[[#This Row],['# Lamps/ Fixture '[P']]],'Measure Tables'!$Q$2:$V$2,0)+1),IF(Table_POSTInfo[[#This Row],[IsActive]],IF(AND(Table_POSTInfo[[#This Row],['# Lamps/ Fixture '[P']]]<>\"\",Table_POSTInfo[[#This Row],['# Lamps/ Fixture '[P']]]>0,Table_POSTInfo[[#This Row],[Fixture/ Lamp Wattage '[P']]]>0),Table_POSTInfo[[#This Row],['# Lamps/ Fixture '[P']]]*Table_POSTInfo[[#This Row],[Fixture/ Lamp Wattage '[P']]],Table_POSTInfo[[#This Row],[Fixture/ Lamp Wattage '[P']]]),\"\")),\n\"\")","v":""},{"$f":"IF(OR(Table_POSTInfo[[#This Row],[Line]]=\"\",INDEX(Table_PREInfo[],Table_POSTInfo[[#This Row],[Line]],X$3)=\"\"),\"\",INDEX(Table_PREInfo[],Table_POSTInfo[[#This Row],[Line]],X$3))","v":""},{"$f":"IF(OR(Table_POSTInfo[[#This Row],[Line]]=\"\",INDEX(Table_PREInfo[],Table_POSTInfo[[#This Row],[Line]],Y$3)=\"\"),\"\",INDEX(Table_PREInfo[],Table_POSTInfo[[#This Row],[Line]],Y$3))","v":""},{"$f":"IFERROR(IF(Table_POSTInfo[[#This Row],[Interior/ Exterior]]<>\"\",\n  CONCATENATE(\n  Table_POSTInfo[[#This Row],[Fixture Technology '[P']]],\n  \" - \",Table_POSTInfo[[#This Row],[Fixture Type '[P']]],\" [\",\n  IF(Table_POSTInfo[[#This Row],['# Lamps/ Fixture '[P']]]>0,Table_POSTInfo[[#This Row],['# Lamps/ Fixture '[P']]] & \"L - \" & Table_POSTInfo[[#This Row],[Fixture/ Lamp Wattage '[P']]] & \"W\" & IF(Table_POSTInfo[[#This Row],[Ballast/ Driver '[P']]]<>\"\",\" - \" & Table_POSTInfo[[#This Row],[Ballast/ Driver '[P']]],\"\"),Table_POSTInfo[[#This Row],[Fixture Wattage '[P']]] & \"W\"),\"]\",\n  IF(AND(Table_POSTInfo[[#This Row],[Controls '[P']]]<>\"\",Table_POSTInfo[[#This Row],[Controls '[P']]]<>\"No Controls\"),\" - \" & Table_POSTInfo[[#This Row],[Controls '[P']]],\"\")\n  ),\n\"\"),\"\")","v":""},{"$f":"IF(OR(Table_POSTInfo[[#This Row],[Line]]=\"\",INDEX(Table_PREInfo[],Table_POSTInfo[[#This Row],[Line]],AA$3)=\"\"),\"\",INDEX(Table_PREInfo[],Table_POSTInfo[[#This Row],[Line]],AA$3))","v":""},{"$f":"IF(OR(Table_POSTInfo[[#This Row],[Line]]=\"\",INDEX(Table_PREInfo[],Table_POSTInfo[[#This Row],[Line]],AB$3)=\"\"),\"\",INDEX(Table_PREInfo[],Table_POSTInfo[[#This Row],[Line]],AB$3))","v":""},{"$f":"IF(OR(Table_POSTInfo[[#This Row],[Line]]=\"\",INDEX(Table_PREInfo[],Table_POSTInfo[[#This Row],[Line]],AC$3)=\"\"),\"\",INDEX(Table_PREInfo[],Table_POSTInfo[[#This Row],[Line]],AC$3))","v":""}]
[{"$f":"IF($A22=\"Line\",1,MAX($A$4:$A22)+1)","v":19},{"$f":"IF(OR(Table_POSTInfo[[#This Row],[Line]]=\"\",INDEX(Table_PREInfo[],Table_POSTInfo[[#This Row],[Line]],B$3)=\"\"),\"\",INDEX(Table_PREInfo[],Table_POSTInfo[[#This Row],[Line]],B$3))","v":false},{"$f":"IF(OR(Table_POSTInfo[[#This Row],[Line]]=\"\",INDEX(Table_PREInfo[],Table_POSTInfo[[#This Row],[Line]],C$3)=\"\"),\"\",INDEX(Table_PREInfo[],Table_POSTInfo[[#This Row],[Line]],C$3))","v":""},{"$f":"IF(ISNUMBER(MATCH(Table_POSTInfo[[#This Row],[Line]],Table_PREInspection[Line],0)),INDEX(Table_PREInspection[],MATCH(Table_POSTInfo[[#This Row],[Line]],Table_PREInspection[Line],0),MATCH('Post-Install Information'!D$3,'Pre-Install Inspection'!$A$3:$N$3,0)),IF(OR(Table_POSTInfo[[#This Row],[Line]]=\"\",INDEX(Table_PREInfo[],Table_POSTInfo[[#This Row],[Line]],D$3)=\"\"),\"\",INDEX(Table_PREInfo[],Table_POSTInfo[[#This Row],[Line]],D$3)))","v":""},{"$f":"IF(ISNUMBER(MATCH(Table_POSTInfo[[#This Row],[Line]],Table_PREInspection[Line],0)),INDEX(Table_PREInspection[],MATCH(Table_POSTInfo[[#This Row],[Line]],Table_PREInspection[Line],0),MATCH('Post-Install Information'!E$3,'Pre-Install Inspection'!$A$3:$N$3,0)),IF(OR(Table_POSTInfo[[#This Row],[Line]]=\"\",INDEX(Table_PREInfo[],Table_POSTInfo[[#This Row],[Line]],E$3)=\"\"),\"\",INDEX(Table_PREInfo[],Table_POSTInfo[[#This Row],[Line]],E$3)))","v":""},{"$f":"IF(ISNUMBER(MATCH(Table_POSTInfo[[#This Row],[Line]],Table_PREInspection[Line],0)),INDEX(Table_PREInspection[],MATCH(Table_POSTInfo[[#This Row],[Line]],Table_PREInspection[Line],0),MATCH('Post-Install Information'!F$3,'Pre-Install Inspection'!$A$3:$N$3,0)),IF(OR(Table_POSTInfo[[#This Row],[Line]]=\"\",INDEX(Table_PREInfo[],Table_POSTInfo[[#This Row],[Line]],F$3)=\"\"),\"\",INDEX(Table_PREInfo[],Table_POSTInfo[[#This Row],[Line]],F$3)))","v":""},null,{"$f":"IF(ISNUMBER(MATCH(Table_POSTInfo[[#This Row],[Line]],Table_PREInspection[Line],0)),INDEX(Table_PREInspection[],MATCH(Table_POSTInfo[[#This Row],[Line]],Table_PREInspection[Line],0),MATCH('Post-Install Information'!H$3,'Pre-Install Inspection'!$A$3:$N$3,0)),IF(OR(Table_POSTInfo[[#This Row],[Line]]=\"\",INDEX(Table_PREInfo[],Table_POSTInfo[[#This Row],[Line]],H$3)=\"\"),\"\",INDEX(Table_PREInfo[],Table_POSTInfo[[#This Row],[Line]],H$3)))","v":""},{"$f":"IF(ISNUMBER(MATCH(Table_POSTInfo[[#This Row],[Line]],Table_PREInspection[Line],0)),INDEX(Table_PREInspection[],MATCH(Table_POSTInfo[[#This Row],[Line]],Table_PREInspection[Line],0),MATCH('Post-Install Information'!I$3,'Pre-Install Inspection'!$A$3:$N$3,0)),IF(OR(Table_POSTInfo[[#This Row],[Line]]=\"\",INDEX(Table_PREInfo[],Table_POSTInfo[[#This Row],[Line]],I$3)=\"\"),\"\",INDEX(Table_PREInfo[],Table_POSTInfo[[#This Row],[Line]],I$3)))","v":""},{"$f":"IF(ISNUMBER(MATCH(Table_POSTInfo[[#This Row],[Line]],Table_PREInspection[Line],0)),INDEX(Table_PREInspection[],MATCH(Table_POSTInfo[[#This Row],[Line]],Table_PREInspection[Line],0),MATCH('Post-Install Information'!J$3,'Pre-Install Inspection'!$A$3:$N$3,0)),IF(OR(Table_POSTInfo[[#This Row],[Line]]=\"\",INDEX(Table_PREInfo[],Table_POSTInfo[[#This Row],[Line]],J$3)=\"\"),\"\",INDEX(Table_PREInfo[],Table_POSTInfo[[#This Row],[Line]],J$3)))","v":""},{"$f":"IF(ISNUMBER(MATCH(Table_POSTInfo[[#This Row],[Line]],Table_PREInspection[Line],0)),INDEX(Table_PREInspection[],MATCH(Table_POSTInfo[[#This Row],[Line]],Table_PREInspection[Line],0),MATCH('Post-Install Information'!K$3,'Pre-Install Inspection'!$A$3:$N$3,0)),IF(OR(Table_POSTInfo[[#This Row],[Line]]=\"\",INDEX(Table_PREInfo[],Table_POSTInfo[[#This Row],[Line]],K$3)=\"\"),\"\",INDEX(Table_PREInfo[],Table_POSTInfo[[#This Row],[Line]],K$3)))","v":""},{"$f":"IF(ISNUMBER(MATCH(Table_POSTInfo[[#This Row],[Line]],Table_PREInspection[Line],0)),INDEX(Table_PREInspection[],MATCH(Table_POSTInfo[[#This Row],[Line]],Table_PREInspection[Line],0),MATCH('Post-Install Information'!L$3,'Pre-Install Inspection'!$A$3:$N$3,0)),IF(OR(Table_POSTInfo[[#This Row],[Line]]=\"\",INDEX(Table_PREInfo[],Table_POSTInfo[[#This Row],[Line]],L$3)=\"\"),\"\",INDEX(Table_PREInfo[],Table_POSTInfo[[#This Row],[Line]],L$3)))","v":""},{"$f":"IF(ISNUMBER(MATCH(Table_POSTInfo[[#This Row],[Line]],Table_PREInspection[Line],0)),INDEX(Table_PREInspection[],MATCH(Table_POSTInfo[[#This Row],[Line]],Table_PREInspection[Line],0),MATCH('Post-Install Information'!M$3,'Pre-Install Inspection'!$A$3:$N$3,0)),IF(OR(Table_POSTInfo[[#This Row],[Line]]=\"\",INDEX(Table_PREInfo[],Table_POSTInfo[[#This Row],[Line]],M$3)=\"\"),\"\",INDEX(Table_PREInfo[],Table_POSTInfo[[#This Row],[Line]],M$3)))","v":""},{"$f":"IF(ISNUMBER(MATCH(Table_POSTInfo[[#This Row],[Line]],Table_PREInspection[Line],0)),INDEX(Table_PREInspection[],MATCH(Table_POSTInfo[[#This Row],[Line]],Table_PREInspection[Line],0),MATCH('Post-Install Information'!N$3,'Pre-Install Inspection'!$A$3:$N$3,0)),IF(OR(Table_POSTInfo[[#This Row],[Line]]=\"\",INDEX(Table_PREInfo[],Table_POSTInfo[[#This Row],[Line]],N$3)=\"\"),\"\",INDEX(Table_PREInfo[],Table_POSTInfo[[#This Row],[Line]],N$3)))","v":""},{"$f":"IF(ISNUMBER(MATCH(Table_POSTInfo[[#This Row],[Line]],Table_PREInspection[Line],0)),INDEX(Table_PREInspection[],MATCH(Table_POSTInfo[[#This Row],[Line]],Table_PREInspection[Line],0),MATCH('Post-Install Information'!O$3,'Pre-Install Inspection'!$A$3:$N$3,0)),IF(OR(Table_POSTInfo[[#This Row],[Line]]=\"\",INDEX(Table_PREInfo[],Table_POSTInfo[[#This Row],[Line]],O$3)=\"\"),\"\",INDEX(Table_PREInfo[],Table_POSTInfo[[#This Row],[Line]],O$3)))","v":""},{"$f":"IF(ISNUMBER(MATCH(Table_POSTInfo[[#This Row],[Line]],Table_PREInspection[Line],0)),INDEX(Table_PREInspection[],MATCH(Table_POSTInfo[[#This Row],[Line]],Table_PREInspection[Line],0),MATCH('Post-Install Information'!P$3,'Pre-Install Inspection'!$A$3:$N$3,0)),IF(OR(Table_POSTInfo[[#This Row],[Line]]=\"\",INDEX(Table_PREInfo[],Table_POSTInfo[[#This Row],[Line]],P$3)=\"\"),\"\",INDEX(Table_PREInfo[],Table_POSTInfo[[#This Row],[Line]],P$3)))","v":""},null,{"$f":"IF(Table_PREInfo[[#This Row],[Fixture Qty '[P']]]<>0,Table_PREInfo[[#This Row],[Fixture Qty '[P']]],IF(Table_POSTInfo[[#This Row],[Fixture Qty '[E']]]<>0,Table_POSTInfo[[#This Row],[Fixture Qty '[E']]],\"\"))","v":""},{"$f":"IF(OR(Table_POSTInfo[[#This Row],[Line]]=\"\",INDEX(Table_PREInfo[],Table_POSTInfo[[#This Row],[Line]],S$3)=\"\"),\"\",INDEX(Table_PREInfo[],Table_POSTInfo[[#This Row],[Line]],S$3))","v":""},{"$f":"IF(OR(Table_POSTInfo[[#This Row],[Line]]=\"\",INDEX(Table_PREInfo[],Table_POSTInfo[[#This Row],[Line]],T$3)=\"\"),\"\",INDEX(Table_PREInfo[],Table_POSTInfo[[#This Row],[Line]],T$3))","v":""},{"$f":"IF(OR(Table_POSTInfo[[#This Row],[Line]]=\"\",INDEX(Table_PREInfo[],Table_POSTInfo[[#This Row],[Line]],U$3)=\"\"),\"\",INDEX(Table_PREInfo[],Table_POSTInfo[[#This Row],[Line]],U$3))","v":""},{"$f":"IF(OR(Table_POSTInfo[[#This Row],[Line]]=\"\",INDEX(Table_PREInfo[],Table_POSTInfo[[#This Row],[Line]],V$3)=\"\"),\"\",INDEX(Table_PREInfo[],Table_POSTInfo[[#This Row],[Line]],V$3))","v":""},{"$f":"IFERROR(\nIFERROR(OFFSET(Table_TypWattage[[#Headers],[Technology]],MATCH(Table_POSTInfo[[#This Row],[Fixture Technology '[P']]],Table_TypWattage[Technology],0)+MATCH(Table_POSTInfo[[#This Row],[Fixture/ Lamp Wattage '[P']]],INDIRECT(SUBSTITUTE(SUBSTITUTE(Table_POSTInfo[[#This Row],[Fixture Technology '[P']]],\" \",\"_\"),\"-\",\"_\")),0)-1,MATCH(Table_POSTInfo[[#This Row],['# Lamps/ Fixture '[P']]],'Measure Tables'!$Q$2:$V$2,0)+1),IF(Table_POSTInfo[[#This Row],[IsActive]],IF(AND(Table_POSTInfo[[#This Row],['# Lamps/ Fixture '[P']]]<>\"\",Table_POSTInfo[[#This Row],['# Lamps/ Fixture '[P']]]>0,Table_POSTInfo[[#This Row],[Fixture/ Lamp Wattage '[P']]]>0),Table_POSTInfo[[#This Row],['# Lamps/ Fixture '[P']]]*Table_POSTInfo[[#This Row],[Fixture/ Lamp Wattage '[P']]],Table_POSTInfo[[#This Row],[Fixture/ Lamp Wattage '[P']]]),\"\")),\n\"\")","v":""},{"$f":"IF(OR(Table_POSTInfo[[#This Row],[Line]]=\"\",INDEX(Table_PREInfo[],Table_POSTInfo[[#This Row],[Line]],X$3)=\"\"),\"\",INDEX(Table_PREInfo[],Table_POSTInfo[[#This Row],[Line]],X$3))","v":""},{"$f":"IF(OR(Table_POSTInfo[[#This Row],[Line]]=\"\",INDEX(Table_PREInfo[],Table_POSTInfo[[#This Row],[Line]],Y$3)=\"\"),\"\",INDEX(Table_PREInfo[],Table_POSTInfo[[#This Row],[Line]],Y$3))","v":""},{"$f":"IFERROR(IF(Table_POSTInfo[[#This Row],[Interior/ Exterior]]<>\"\",\n  CONCATENATE(\n  Table_POSTInfo[[#This Row],[Fixture Technology '[P']]],\n  \" - \",Table_POSTInfo[[#This Row],[Fixture Type '[P']]],\" [\",\n  IF(Table_POSTInfo[[#This Row],['# Lamps/ Fixture '[P']]]>0,Table_POSTInfo[[#This Row],['# Lamps/ Fixture '[P']]] & \"L - \" & Table_POSTInfo[[#This Row],[Fixture/ Lamp Wattage '[P']]] & \"W\" & IF(Table_POSTInfo[[#This Row],[Ballast/ Driver '[P']]]<>\"\",\" - \" & Table_POSTInfo[[#This Row],[Ballast/ Driver '[P']]],\"\"),Table_POSTInfo[[#This Row],[Fixture Wattage '[P']]] & \"W\"),\"]\",\n  IF(AND(Table_POSTInfo[[#This Row],[Controls '[P']]]<>\"\",Table_POSTInfo[[#This Row],[Controls '[P']]]<>\"No Controls\"),\" - \" & Table_POSTInfo[[#This Row],[Controls '[P']]],\"\")\n  ),\n\"\"),\"\")","v":""},{"$f":"IF(OR(Table_POSTInfo[[#This Row],[Line]]=\"\",INDEX(Table_PREInfo[],Table_POSTInfo[[#This Row],[Line]],AA$3)=\"\"),\"\",INDEX(Table_PREInfo[],Table_POSTInfo[[#This Row],[Line]],AA$3))","v":""},{"$f":"IF(OR(Table_POSTInfo[[#This Row],[Line]]=\"\",INDEX(Table_PREInfo[],Table_POSTInfo[[#This Row],[Line]],AB$3)=\"\"),\"\",INDEX(Table_PREInfo[],Table_POSTInfo[[#This Row],[Line]],AB$3))","v":""},{"$f":"IF(OR(Table_POSTInfo[[#This Row],[Line]]=\"\",INDEX(Table_PREInfo[],Table_POSTInfo[[#This Row],[Line]],AC$3)=\"\"),\"\",INDEX(Table_PREInfo[],Table_POSTInfo[[#This Row],[Line]],AC$3))","v":""}]
[{"$f":"IF($A23=\"Line\",1,MAX($A$4:$A23)+1)","v":20},{"$f":"IF(OR(Table_POSTInfo[[#This Row],[Line]]=\"\",INDEX(Table_PREInfo[],Table_POSTInfo[[#This Row],[Line]],B$3)=\"\"),\"\",INDEX(Table_PREInfo[],Table_POSTInfo[[#This Row],[Line]],B$3))","v":false},{"$f":"IF(OR(Table_POSTInfo[[#This Row],[Line]]=\"\",INDEX(Table_PREInfo[],Table_POSTInfo[[#This Row],[Line]],C$3)=\"\"),\"\",INDEX(Table_PREInfo[],Table_POSTInfo[[#This Row],[Line]],C$3))","v":""},{"$f":"IF(ISNUMBER(MATCH(Table_POSTInfo[[#This Row],[Line]],Table_PREInspection[Line],0)),INDEX(Table_PREInspection[],MATCH(Table_POSTInfo[[#This Row],[Line]],Table_PREInspection[Line],0),MATCH('Post-Install Information'!D$3,'Pre-Install Inspection'!$A$3:$N$3,0)),IF(OR(Table_POSTInfo[[#This Row],[Line]]=\"\",INDEX(Table_PREInfo[],Table_POSTInfo[[#This Row],[Line]],D$3)=\"\"),\"\",INDEX(Table_PREInfo[],Table_POSTInfo[[#This Row],[Line]],D$3)))","v":""},{"$f":"IF(ISNUMBER(MATCH(Table_POSTInfo[[#This Row],[Line]],Table_PREInspection[Line],0)),INDEX(Table_PREInspection[],MATCH(Table_POSTInfo[[#This Row],[Line]],Table_PREInspection[Line],0),MATCH('Post-Install Information'!E$3,'Pre-Install Inspection'!$A$3:$N$3,0)),IF(OR(Table_POSTInfo[[#This Row],[Line]]=\"\",INDEX(Table_PREInfo[],Table_POSTInfo[[#This Row],[Line]],E$3)=\"\"),\"\",INDEX(Table_PREInfo[],Table_POSTInfo[[#This Row],[Line]],E$3)))","v":""},{"$f":"IF(ISNUMBER(MATCH(Table_POSTInfo[[#This Row],[Line]],Table_PREInspection[Line],0)),INDEX(Table_PREInspection[],MATCH(Table_POSTInfo[[#This Row],[Line]],Table_PREInspection[Line],0),MATCH('Post-Install Information'!F$3,'Pre-Install Inspection'!$A$3:$N$3,0)),IF(OR(Table_POSTInfo[[#This Row],[Line]]=\"\",INDEX(Table_PREInfo[],Table_POSTInfo[[#This Row],[Line]],F$3)=\"\"),\"\",INDEX(Table_PREInfo[],Table_POSTInfo[[#This Row],[Line]],F$3)))","v":""},null,{"$f":"IF(ISNUMBER(MATCH(Table_POSTInfo[[#This Row],[Line]],Table_PREInspection[Line],0)),INDEX(Table_PREInspection[],MATCH(Table_POSTInfo[[#This Row],[Line]],Table_PREInspection[Line],0),MATCH('Post-Install Information'!H$3,'Pre-Install Inspection'!$A$3:$N$3,0)),IF(OR(Table_POSTInfo[[#This Row],[Line]]=\"\",INDEX(Table_PREInfo[],Table_POSTInfo[[#This Row],[Line]],H$3)=\"\"),\"\",INDEX(Table_PREInfo[],Table_POSTInfo[[#This Row],[Line]],H$3)))","v":""},{"$f":"IF(ISNUMBER(MATCH(Table_POSTInfo[[#This Row],[Line]],Table_PREInspection[Line],0)),INDEX(Table_PREInspection[],MATCH(Table_POSTInfo[[#This Row],[Line]],Table_PREInspection[Line],0),MATCH('Post-Install Information'!I$3,'Pre-Install Inspection'!$A$3:$N$3,0)),IF(OR(Table_POSTInfo[[#This Row],[Line]]=\"\",INDEX(Table_PREInfo[],Table_POSTInfo[[#This Row],[Line]],I$3)=\"\"),\"\",INDEX(Table_PREInfo[],Table_POSTInfo[[#This Row],[Line]],I$3)))","v":""},{"$f":"IF(ISNUMBER(MATCH(Table_POSTInfo[[#This Row],[Line]],Table_PREInspection[Line],0)),INDEX(Table_PREInspection[],MATCH(Table_POSTInfo[[#This Row],[Line]],Table_PREInspection[Line],0),MATCH('Post-Install Information'!J$3,'Pre-Install Inspection'!$A$3:$N$3,0)),IF(OR(Table_POSTInfo[[#This Row],[Line]]=\"\",INDEX(Table_PREInfo[],Table_POSTInfo[[#This Row],[Line]],J$3)=\"\"),\"\",INDEX(Table_PREInfo[],Table_POSTInfo[[#This Row],[Line]],J$3)))","v":""},{"$f":"IF(ISNUMBER(MATCH(Table_POSTInfo[[#This Row],[Line]],Table_PREInspection[Line],0)),INDEX(Table_PREInspection[],MATCH(Table_POSTInfo[[#This Row],[Line]],Table_PREInspection[Line],0),MATCH('Post-Install Information'!K$3,'Pre-Install Inspection'!$A$3:$N$3,0)),IF(OR(Table_POSTInfo[[#This Row],[Line]]=\"\",INDEX(Table_PREInfo[],Table_POSTInfo[[#This Row],[Line]],K$3)=\"\"),\"\",INDEX(Table_PREInfo[],Table_POSTInfo[[#This Row],[Line]],K$3)))","v":""},{"$f":"IF(ISNUMBER(MATCH(Table_POSTInfo[[#This Row],[Line]],Table_PREInspection[Line],0)),INDEX(Table_PREInspection[],MATCH(Table_POSTInfo[[#This Row],[Line]],Table_PREInspection[Line],0),MATCH('Post-Install Information'!L$3,'Pre-Install Inspection'!$A$3:$N$3,0)),IF(OR(Table_POSTInfo[[#This Row],[Line]]=\"\",INDEX(Table_PREInfo[],Table_POSTInfo[[#This Row],[Line]],L$3)=\"\"),\"\",INDEX(Table_PREInfo[],Table_POSTInfo[[#This Row],[Line]],L$3)))","v":""},{"$f":"IF(ISNUMBER(MATCH(Table_POSTInfo[[#This Row],[Line]],Table_PREInspection[Line],0)),INDEX(Table_PREInspection[],MATCH(Table_POSTInfo[[#This Row],[Line]],Table_PREInspection[Line],0),MATCH('Post-Install Information'!M$3,'Pre-Install Inspection'!$A$3:$N$3,0)),IF(OR(Table_POSTInfo[[#This Row],[Line]]=\"\",INDEX(Table_PREInfo[],Table_POSTInfo[[#This Row],[Line]],M$3)=\"\"),\"\",INDEX(Table_PREInfo[],Table_POSTInfo[[#This Row],[Line]],M$3)))","v":""},{"$f":"IF(ISNUMBER(MATCH(Table_POSTInfo[[#This Row],[Line]],Table_PREInspection[Line],0)),INDEX(Table_PREInspection[],MATCH(Table_POSTInfo[[#This Row],[Line]],Table_PREInspection[Line],0),MATCH('Post-Install Information'!N$3,'Pre-Install Inspection'!$A$3:$N$3,0)),IF(OR(Table_POSTInfo[[#This Row],[Line]]=\"\",INDEX(Table_PREInfo[],Table_POSTInfo[[#This Row],[Line]],N$3)=\"\"),\"\",INDEX(Table_PREInfo[],Table_POSTInfo[[#This Row],[Line]],N$3)))","v":""},{"$f":"IF(ISNUMBER(MATCH(Table_POSTInfo[[#This Row],[Line]],Table_PREInspection[Line],0)),INDEX(Table_PREInspection[],MATCH(Table_POSTInfo[[#This Row],[Line]],Table_PREInspection[Line],0),MATCH('Post-Install Information'!O$3,'Pre-Install Inspection'!$A$3:$N$3,0)),IF(OR(Table_POSTInfo[[#This Row],[Line]]=\"\",INDEX(Table_PREInfo[],Table_POSTInfo[[#This Row],[Line]],O$3)=\"\"),\"\",INDEX(Table_PREInfo[],Table_POSTInfo[[#This Row],[Line]],O$3)))","v":""},{"$f":"IF(ISNUMBER(MATCH(Table_POSTInfo[[#This Row],[Line]],Table_PREInspection[Line],0)),INDEX(Table_PREInspection[],MATCH(Table_POSTInfo[[#This Row],[Line]],Table_PREInspection[Line],0),MATCH('Post-Install Information'!P$3,'Pre-Install Inspection'!$A$3:$N$3,0)),IF(OR(Table_POSTInfo[[#This Row],[Line]]=\"\",INDEX(Table_PREInfo[],Table_POSTInfo[[#This Row],[Line]],P$3)=\"\"),\"\",INDEX(Table_PREInfo[],Table_POSTInfo[[#This Row],[Line]],P$3)))","v":""},null,{"$f":"IF(Table_PREInfo[[#This Row],[Fixture Qty '[P']]]<>0,Table_PREInfo[[#This Row],[Fixture Qty '[P']]],IF(Table_POSTInfo[[#This Row],[Fixture Qty '[E']]]<>0,Table_POSTInfo[[#This Row],[Fixture Qty '[E']]],\"\"))","v":""},{"$f":"IF(OR(Table_POSTInfo[[#This Row],[Line]]=\"\",INDEX(Table_PREInfo[],Table_POSTInfo[[#This Row],[Line]],S$3)=\"\"),\"\",INDEX(Table_PREInfo[],Table_POSTInfo[[#This Row],[Line]],S$3))","v":""},{"$f":"IF(OR(Table_POSTInfo[[#This Row],[Line]]=\"\",INDEX(Table_PREInfo[],Table_POSTInfo[[#This Row],[Line]],T$3)=\"\"),\"\",INDEX(Table_PREInfo[],Table_POSTInfo[[#This Row],[Line]],T$3))","v":""},{"$f":"IF(OR(Table_POSTInfo[[#This Row],[Line]]=\"\",INDEX(Table_PREInfo[],Table_POSTInfo[[#This Row],[Line]],U$3)=\"\"),\"\",INDEX(Table_PREInfo[],Table_POSTInfo[[#This Row],[Line]],U$3))","v":""},{"$f":"IF(OR(Table_POSTInfo[[#This Row],[Line]]=\"\",INDEX(Table_PREInfo[],Table_POSTInfo[[#This Row],[Line]],V$3)=\"\"),\"\",INDEX(Table_PREInfo[],Table_POSTInfo[[#This Row],[Line]],V$3))","v":""},{"$f":"IFERROR(\nIFERROR(OFFSET(Table_TypWattage[[#Headers],[Technology]],MATCH(Table_POSTInfo[[#This Row],[Fixture Technology '[P']]],Table_TypWattage[Technology],0)+MATCH(Table_POSTInfo[[#This Row],[Fixture/ Lamp Wattage '[P']]],INDIRECT(SUBSTITUTE(SUBSTITUTE(Table_POSTInfo[[#This Row],[Fixture Technology '[P']]],\" \",\"_\"),\"-\",\"_\")),0)-1,MATCH(Table_POSTInfo[[#This Row],['# Lamps/ Fixture '[P']]],'Measure Tables'!$Q$2:$V$2,0)+1),IF(Table_POSTInfo[[#This Row],[IsActive]],IF(AND(Table_POSTInfo[[#This Row],['# Lamps/ Fixture '[P']]]<>\"\",Table_POSTInfo[[#This Row],['# Lamps/ Fixture '[P']]]>0,Table_POSTInfo[[#This Row],[Fixture/ Lamp Wattage '[P']]]>0),Table_POSTInfo[[#This Row],['# Lamps/ Fixture '[P']]]*Table_POSTInfo[[#This Row],[Fixture/ Lamp Wattage '[P']]],Table_POSTInfo[[#This Row],[Fixture/ Lamp Wattage '[P']]]),\"\")),\n\"\")","v":""},{"$f":"IF(OR(Table_POSTInfo[[#This Row],[Line]]=\"\",INDEX(Table_PREInfo[],Table_POSTInfo[[#This Row],[Line]],X$3)=\"\"),\"\",INDEX(Table_PREInfo[],Table_POSTInfo[[#This Row],[Line]],X$3))","v":""},{"$f":"IF(OR(Table_POSTInfo[[#This Row],[Line]]=\"\",INDEX(Table_PREInfo[],Table_POSTInfo[[#This Row],[Line]],Y$3)=\"\"),\"\",INDEX(Table_PREInfo[],Table_POSTInfo[[#This Row],[Line]],Y$3))","v":""},{"$f":"IFERROR(IF(Table_POSTInfo[[#This Row],[Interior/ Exterior]]<>\"\",\n  CONCATENATE(\n  Table_POSTInfo[[#This Row],[Fixture Technology '[P']]],\n  \" - \",Table_POSTInfo[[#This Row],[Fixture Type '[P']]],\" [\",\n  IF(Table_POSTInfo[[#This Row],['# Lamps/ Fixture '[P']]]>0,Table_POSTInfo[[#This Row],['# Lamps/ Fixture '[P']]] & \"L - \" & Table_POSTInfo[[#This Row],[Fixture/ Lamp Wattage '[P']]] & \"W\" & IF(Table_POSTInfo[[#This Row],[Ballast/ Driver '[P']]]<>\"\",\" - \" & Table_POSTInfo[[#This Row],[Ballast/ Driver '[P']]],\"\"),Table_POSTInfo[[#This Row],[Fixture Wattage '[P']]] & \"W\"),\"]\",\n  IF(AND(Table_POSTInfo[[#This Row],[Controls '[P']]]<>\"\",Table_POSTInfo[[#This Row],[Controls '[P']]]<>\"No Controls\"),\" - \" & Table_POSTInfo[[#This Row],[Controls '[P']]],\"\")\n  ),\n\"\"),\"\")","v":""},{"$f":"IF(OR(Table_POSTInfo[[#This Row],[Line]]=\"\",INDEX(Table_PREInfo[],Table_POSTInfo[[#This Row],[Line]],AA$3)=\"\"),\"\",INDEX(Table_PREInfo[],Table_POSTInfo[[#This Row],[Line]],AA$3))","v":""},{"$f":"IF(OR(Table_POSTInfo[[#This Row],[Line]]=\"\",INDEX(Table_PREInfo[],Table_POSTInfo[[#This Row],[Line]],AB$3)=\"\"),\"\",INDEX(Table_PREInfo[],Table_POSTInfo[[#This Row],[Line]],AB$3))","v":""},{"$f":"IF(OR(Table_POSTInfo[[#This Row],[Line]]=\"\",INDEX(Table_PREInfo[],Table_POSTInfo[[#This Row],[Line]],AC$3)=\"\"),\"\",INDEX(Table_PREInfo[],Table_POSTInfo[[#This Row],[Line]],AC$3))","v":""}]
[{"$f":"IF($A24=\"Line\",1,MAX($A$4:$A24)+1)","v":21},{"$f":"IF(OR(Table_POSTInfo[[#This Row],[Line]]=\"\",INDEX(Table_PREInfo[],Table_POSTInfo[[#This Row],[Line]],B$3)=\"\"),\"\",INDEX(Table_PREInfo[],Table_POSTInfo[[#This Row],[Line]],B$3))","v":false},{"$f":"IF(OR(Table_POSTInfo[[#This Row],[Line]]=\"\",INDEX(Table_PREInfo[],Table_POSTInfo[[#This Row],[Line]],C$3)=\"\"),\"\",INDEX(Table_PREInfo[],Table_POSTInfo[[#This Row],[Line]],C$3))","v":""},{"$f":"IF(ISNUMBER(MATCH(Table_POSTInfo[[#This Row],[Line]],Table_PREInspection[Line],0)),INDEX(Table_PREInspection[],MATCH(Table_POSTInfo[[#This Row],[Line]],Table_PREInspection[Line],0),MATCH('Post-Install Information'!D$3,'Pre-Install Inspection'!$A$3:$N$3,0)),IF(OR(Table_POSTInfo[[#This Row],[Line]]=\"\",INDEX(Table_PREInfo[],Table_POSTInfo[[#This Row],[Line]],D$3)=\"\"),\"\",INDEX(Table_PREInfo[],Table_POSTInfo[[#This Row],[Line]],D$3)))","v":""},{"$f":"IF(ISNUMBER(MATCH(Table_POSTInfo[[#This Row],[Line]],Table_PREInspection[Line],0)),INDEX(Table_PREInspection[],MATCH(Table_POSTInfo[[#This Row],[Line]],Table_PREInspection[Line],0),MATCH('Post-Install Information'!E$3,'Pre-Install Inspection'!$A$3:$N$3,0)),IF(OR(Table_POSTInfo[[#This Row],[Line]]=\"\",INDEX(Table_PREInfo[],Table_POSTInfo[[#This Row],[Line]],E$3)=\"\"),\"\",INDEX(Table_PREInfo[],Table_POSTInfo[[#This Row],[Line]],E$3)))","v":""},{"$f":"IF(ISNUMBER(MATCH(Table_POSTInfo[[#This Row],[Line]],Table_PREInspection[Line],0)),INDEX(Table_PREInspection[],MATCH(Table_POSTInfo[[#This Row],[Line]],Table_PREInspection[Line],0),MATCH('Post-Install Information'!F$3,'Pre-Install Inspection'!$A$3:$N$3,0)),IF(OR(Table_POSTInfo[[#This Row],[Line]]=\"\",INDEX(Table_PREInfo[],Table_POSTInfo[[#This Row],[Line]],F$3)=\"\"),\"\",INDEX(Table_PREInfo[],Table_POSTInfo[[#This Row],[Line]],F$3)))","v":""},null,{"$f":"IF(ISNUMBER(MATCH(Table_POSTInfo[[#This Row],[Line]],Table_PREInspection[Line],0)),INDEX(Table_PREInspection[],MATCH(Table_POSTInfo[[#This Row],[Line]],Table_PREInspection[Line],0),MATCH('Post-Install Information'!H$3,'Pre-Install Inspection'!$A$3:$N$3,0)),IF(OR(Table_POSTInfo[[#This Row],[Line]]=\"\",INDEX(Table_PREInfo[],Table_POSTInfo[[#This Row],[Line]],H$3)=\"\"),\"\",INDEX(Table_PREInfo[],Table_POSTInfo[[#This Row],[Line]],H$3)))","v":""},{"$f":"IF(ISNUMBER(MATCH(Table_POSTInfo[[#This Row],[Line]],Table_PREInspection[Line],0)),INDEX(Table_PREInspection[],MATCH(Table_POSTInfo[[#This Row],[Line]],Table_PREInspection[Line],0),MATCH('Post-Install Information'!I$3,'Pre-Install Inspection'!$A$3:$N$3,0)),IF(OR(Table_POSTInfo[[#This Row],[Line]]=\"\",INDEX(Table_PREInfo[],Table_POSTInfo[[#This Row],[Line]],I$3)=\"\"),\"\",INDEX(Table_PREInfo[],Table_POSTInfo[[#This Row],[Line]],I$3)))","v":""},{"$f":"IF(ISNUMBER(MATCH(Table_POSTInfo[[#This Row],[Line]],Table_PREInspection[Line],0)),INDEX(Table_PREInspection[],MATCH(Table_POSTInfo[[#This Row],[Line]],Table_PREInspection[Line],0),MATCH('Post-Install Information'!J$3,'Pre-Install Inspection'!$A$3:$N$3,0)),IF(OR(Table_POSTInfo[[#This Row],[Line]]=\"\",INDEX(Table_PREInfo[],Table_POSTInfo[[#This Row],[Line]],J$3)=\"\"),\"\",INDEX(Table_PREInfo[],Table_POSTInfo[[#This Row],[Line]],J$3)))","v":""},{"$f":"IF(ISNUMBER(MATCH(Table_POSTInfo[[#This Row],[Line]],Table_PREInspection[Line],0)),INDEX(Table_PREInspection[],MATCH(Table_POSTInfo[[#This Row],[Line]],Table_PREInspection[Line],0),MATCH('Post-Install Information'!K$3,'Pre-Install Inspection'!$A$3:$N$3,0)),IF(OR(Table_POSTInfo[[#This Row],[Line]]=\"\",INDEX(Table_PREInfo[],Table_POSTInfo[[#This Row],[Line]],K$3)=\"\"),\"\",INDEX(Table_PREInfo[],Table_POSTInfo[[#This Row],[Line]],K$3)))","v":""},{"$f":"IF(ISNUMBER(MATCH(Table_POSTInfo[[#This Row],[Line]],Table_PREInspection[Line],0)),INDEX(Table_PREInspection[],MATCH(Table_POSTInfo[[#This Row],[Line]],Table_PREInspection[Line],0),MATCH('Post-Install Information'!L$3,'Pre-Install Inspection'!$A$3:$N$3,0)),IF(OR(Table_POSTInfo[[#This Row],[Line]]=\"\",INDEX(Table_PREInfo[],Table_POSTInfo[[#This Row],[Line]],L$3)=\"\"),\"\",INDEX(Table_PREInfo[],Table_POSTInfo[[#This Row],[Line]],L$3)))","v":""},{"$f":"IF(ISNUMBER(MATCH(Table_POSTInfo[[#This Row],[Line]],Table_PREInspection[Line],0)),INDEX(Table_PREInspection[],MATCH(Table_POSTInfo[[#This Row],[Line]],Table_PREInspection[Line],0),MATCH('Post-Install Information'!M$3,'Pre-Install Inspection'!$A$3:$N$3,0)),IF(OR(Table_POSTInfo[[#This Row],[Line]]=\"\",INDEX(Table_PREInfo[],Table_POSTInfo[[#This Row],[Line]],M$3)=\"\"),\"\",INDEX(Table_PREInfo[],Table_POSTInfo[[#This Row],[Line]],M$3)))","v":""},{"$f":"IF(ISNUMBER(MATCH(Table_POSTInfo[[#This Row],[Line]],Table_PREInspection[Line],0)),INDEX(Table_PREInspection[],MATCH(Table_POSTInfo[[#This Row],[Line]],Table_PREInspection[Line],0),MATCH('Post-Install Information'!N$3,'Pre-Install Inspection'!$A$3:$N$3,0)),IF(OR(Table_POSTInfo[[#This Row],[Line]]=\"\",INDEX(Table_PREInfo[],Table_POSTInfo[[#This Row],[Line]],N$3)=\"\"),\"\",INDEX(Table_PREInfo[],Table_POSTInfo[[#This Row],[Line]],N$3)))","v":""},{"$f":"IF(ISNUMBER(MATCH(Table_POSTInfo[[#This Row],[Line]],Table_PREInspection[Line],0)),INDEX(Table_PREInspection[],MATCH(Table_POSTInfo[[#This Row],[Line]],Table_PREInspection[Line],0),MATCH('Post-Install Information'!O$3,'Pre-Install Inspection'!$A$3:$N$3,0)),IF(OR(Table_POSTInfo[[#This Row],[Line]]=\"\",INDEX(Table_PREInfo[],Table_POSTInfo[[#This Row],[Line]],O$3)=\"\"),\"\",INDEX(Table_PREInfo[],Table_POSTInfo[[#This Row],[Line]],O$3)))","v":""},{"$f":"IF(ISNUMBER(MATCH(Table_POSTInfo[[#This Row],[Line]],Table_PREInspection[Line],0)),INDEX(Table_PREInspection[],MATCH(Table_POSTInfo[[#This Row],[Line]],Table_PREInspection[Line],0),MATCH('Post-Install Information'!P$3,'Pre-Install Inspection'!$A$3:$N$3,0)),IF(OR(Table_POSTInfo[[#This Row],[Line]]=\"\",INDEX(Table_PREInfo[],Table_POSTInfo[[#This Row],[Line]],P$3)=\"\"),\"\",INDEX(Table_PREInfo[],Table_POSTInfo[[#This Row],[Line]],P$3)))","v":""},null,{"$f":"IF(Table_PREInfo[[#This Row],[Fixture Qty '[P']]]<>0,Table_PREInfo[[#This Row],[Fixture Qty '[P']]],IF(Table_POSTInfo[[#This Row],[Fixture Qty '[E']]]<>0,Table_POSTInfo[[#This Row],[Fixture Qty '[E']]],\"\"))","v":""},{"$f":"IF(OR(Table_POSTInfo[[#This Row],[Line]]=\"\",INDEX(Table_PREInfo[],Table_POSTInfo[[#This Row],[Line]],S$3)=\"\"),\"\",INDEX(Table_PREInfo[],Table_POSTInfo[[#This Row],[Line]],S$3))","v":""},{"$f":"IF(OR(Table_POSTInfo[[#This Row],[Line]]=\"\",INDEX(Table_PREInfo[],Table_POSTInfo[[#This Row],[Line]],T$3)=\"\"),\"\",INDEX(Table_PREInfo[],Table_POSTInfo[[#This Row],[Line]],T$3))","v":""},{"$f":"IF(OR(Table_POSTInfo[[#This Row],[Line]]=\"\",INDEX(Table_PREInfo[],Table_POSTInfo[[#This Row],[Line]],U$3)=\"\"),\"\",INDEX(Table_PREInfo[],Table_POSTInfo[[#This Row],[Line]],U$3))","v":""},{"$f":"IF(OR(Table_POSTInfo[[#This Row],[Line]]=\"\",INDEX(Table_PREInfo[],Table_POSTInfo[[#This Row],[Line]],V$3)=\"\"),\"\",INDEX(Table_PREInfo[],Table_POSTInfo[[#This Row],[Line]],V$3))","v":""},{"$f":"IFERROR(\nIFERROR(OFFSET(Table_TypWattage[[#Headers],[Technology]],MATCH(Table_POSTInfo[[#This Row],[Fixture Technology '[P']]],Table_TypWattage[Technology],0)+MATCH(Table_POSTInfo[[#This Row],[Fixture/ Lamp Wattage '[P']]],INDIRECT(SUBSTITUTE(SUBSTITUTE(Table_POSTInfo[[#This Row],[Fixture Technology '[P']]],\" \",\"_\"),\"-\",\"_\")),0)-1,MATCH(Table_POSTInfo[[#This Row],['# Lamps/ Fixture '[P']]],'Measure Tables'!$Q$2:$V$2,0)+1),IF(Table_POSTInfo[[#This Row],[IsActive]],IF(AND(Table_POSTInfo[[#This Row],['# Lamps/ Fixture '[P']]]<>\"\",Table_POSTInfo[[#This Row],['# Lamps/ Fixture '[P']]]>0,Table_POSTInfo[[#This Row],[Fixture/ Lamp Wattage '[P']]]>0),Table_POSTInfo[[#This Row],['# Lamps/ Fixture '[P']]]*Table_POSTInfo[[#This Row],[Fixture/ Lamp Wattage '[P']]],Table_POSTInfo[[#This Row],[Fixture/ Lamp Wattage '[P']]]),\"\")),\n\"\")","v":""},{"$f":"IF(OR(Table_POSTInfo[[#This Row],[Line]]=\"\",INDEX(Table_PREInfo[],Table_POSTInfo[[#This Row],[Line]],X$3)=\"\"),\"\",INDEX(Table_PREInfo[],Table_POSTInfo[[#This Row],[Line]],X$3))","v":""},{"$f":"IF(OR(Table_POSTInfo[[#This Row],[Line]]=\"\",INDEX(Table_PREInfo[],Table_POSTInfo[[#This Row],[Line]],Y$3)=\"\"),\"\",INDEX(Table_PREInfo[],Table_POSTInfo[[#This Row],[Line]],Y$3))","v":""},{"$f":"IFERROR(IF(Table_POSTInfo[[#This Row],[Interior/ Exterior]]<>\"\",\n  CONCATENATE(\n  Table_POSTInfo[[#This Row],[Fixture Technology '[P']]],\n  \" - \",Table_POSTInfo[[#This Row],[Fixture Type '[P']]],\" [\",\n  IF(Table_POSTInfo[[#This Row],['# Lamps/ Fixture '[P']]]>0,Table_POSTInfo[[#This Row],['# Lamps/ Fixture '[P']]] & \"L - \" & Table_POSTInfo[[#This Row],[Fixture/ Lamp Wattage '[P']]] & \"W\" & IF(Table_POSTInfo[[#This Row],[Ballast/ Driver '[P']]]<>\"\",\" - \" & Table_POSTInfo[[#This Row],[Ballast/ Driver '[P']]],\"\"),Table_POSTInfo[[#This Row],[Fixture Wattage '[P']]] & \"W\"),\"]\",\n  IF(AND(Table_POSTInfo[[#This Row],[Controls '[P']]]<>\"\",Table_POSTInfo[[#This Row],[Controls '[P']]]<>\"No Controls\"),\" - \" & Table_POSTInfo[[#This Row],[Controls '[P']]],\"\")\n  ),\n\"\"),\"\")","v":""},{"$f":"IF(OR(Table_POSTInfo[[#This Row],[Line]]=\"\",INDEX(Table_PREInfo[],Table_POSTInfo[[#This Row],[Line]],AA$3)=\"\"),\"\",INDEX(Table_PREInfo[],Table_POSTInfo[[#This Row],[Line]],AA$3))","v":""},{"$f":"IF(OR(Table_POSTInfo[[#This Row],[Line]]=\"\",INDEX(Table_PREInfo[],Table_POSTInfo[[#This Row],[Line]],AB$3)=\"\"),\"\",INDEX(Table_PREInfo[],Table_POSTInfo[[#This Row],[Line]],AB$3))","v":""},{"$f":"IF(OR(Table_POSTInfo[[#This Row],[Line]]=\"\",INDEX(Table_PREInfo[],Table_POSTInfo[[#This Row],[Line]],AC$3)=\"\"),\"\",INDEX(Table_PREInfo[],Table_POSTInfo[[#This Row],[Line]],AC$3))","v":""}]
[{"$f":"IF($A25=\"Line\",1,MAX($A$4:$A25)+1)","v":22},{"$f":"IF(OR(Table_POSTInfo[[#This Row],[Line]]=\"\",INDEX(Table_PREInfo[],Table_POSTInfo[[#This Row],[Line]],B$3)=\"\"),\"\",INDEX(Table_PREInfo[],Table_POSTInfo[[#This Row],[Line]],B$3))","v":false},{"$f":"IF(OR(Table_POSTInfo[[#This Row],[Line]]=\"\",INDEX(Table_PREInfo[],Table_POSTInfo[[#This Row],[Line]],C$3)=\"\"),\"\",INDEX(Table_PREInfo[],Table_POSTInfo[[#This Row],[Line]],C$3))","v":""},{"$f":"IF(ISNUMBER(MATCH(Table_POSTInfo[[#This Row],[Line]],Table_PREInspection[Line],0)),INDEX(Table_PREInspection[],MATCH(Table_POSTInfo[[#This Row],[Line]],Table_PREInspection[Line],0),MATCH('Post-Install Information'!D$3,'Pre-Install Inspection'!$A$3:$N$3,0)),IF(OR(Table_POSTInfo[[#This Row],[Line]]=\"\",INDEX(Table_PREInfo[],Table_POSTInfo[[#This Row],[Line]],D$3)=\"\"),\"\",INDEX(Table_PREInfo[],Table_POSTInfo[[#This Row],[Line]],D$3)))","v":""},{"$f":"IF(ISNUMBER(MATCH(Table_POSTInfo[[#This Row],[Line]],Table_PREInspection[Line],0)),INDEX(Table_PREInspection[],MATCH(Table_POSTInfo[[#This Row],[Line]],Table_PREInspection[Line],0),MATCH('Post-Install Information'!E$3,'Pre-Install Inspection'!$A$3:$N$3,0)),IF(OR(Table_POSTInfo[[#This Row],[Line]]=\"\",INDEX(Table_PREInfo[],Table_POSTInfo[[#This Row],[Line]],E$3)=\"\"),\"\",INDEX(Table_PREInfo[],Table_POSTInfo[[#This Row],[Line]],E$3)))","v":""},{"$f":"IF(ISNUMBER(MATCH(Table_POSTInfo[[#This Row],[Line]],Table_PREInspection[Line],0)),INDEX(Table_PREInspection[],MATCH(Table_POSTInfo[[#This Row],[Line]],Table_PREInspection[Line],0),MATCH('Post-Install Information'!F$3,'Pre-Install Inspection'!$A$3:$N$3,0)),IF(OR(Table_POSTInfo[[#This Row],[Line]]=\"\",INDEX(Table_PREInfo[],Table_POSTInfo[[#This Row],[Line]],F$3)=\"\"),\"\",INDEX(Table_PREInfo[],Table_POSTInfo[[#This Row],[Line]],F$3)))","v":""},null,{"$f":"IF(ISNUMBER(MATCH(Table_POSTInfo[[#This Row],[Line]],Table_PREInspection[Line],0)),INDEX(Table_PREInspection[],MATCH(Table_POSTInfo[[#This Row],[Line]],Table_PREInspection[Line],0),MATCH('Post-Install Information'!H$3,'Pre-Install Inspection'!$A$3:$N$3,0)),IF(OR(Table_POSTInfo[[#This Row],[Line]]=\"\",INDEX(Table_PREInfo[],Table_POSTInfo[[#This Row],[Line]],H$3)=\"\"),\"\",INDEX(Table_PREInfo[],Table_POSTInfo[[#This Row],[Line]],H$3)))","v":""},{"$f":"IF(ISNUMBER(MATCH(Table_POSTInfo[[#This Row],[Line]],Table_PREInspection[Line],0)),INDEX(Table_PREInspection[],MATCH(Table_POSTInfo[[#This Row],[Line]],Table_PREInspection[Line],0),MATCH('Post-Install Information'!I$3,'Pre-Install Inspection'!$A$3:$N$3,0)),IF(OR(Table_POSTInfo[[#This Row],[Line]]=\"\",INDEX(Table_PREInfo[],Table_POSTInfo[[#This Row],[Line]],I$3)=\"\"),\"\",INDEX(Table_PREInfo[],Table_POSTInfo[[#This Row],[Line]],I$3)))","v":""},{"$f":"IF(ISNUMBER(MATCH(Table_POSTInfo[[#This Row],[Line]],Table_PREInspection[Line],0)),INDEX(Table_PREInspection[],MATCH(Table_POSTInfo[[#This Row],[Line]],Table_PREInspection[Line],0),MATCH('Post-Install Information'!J$3,'Pre-Install Inspection'!$A$3:$N$3,0)),IF(OR(Table_POSTInfo[[#This Row],[Line]]=\"\",INDEX(Table_PREInfo[],Table_POSTInfo[[#This Row],[Line]],J$3)=\"\"),\"\",INDEX(Table_PREInfo[],Table_POSTInfo[[#This Row],[Line]],J$3)))","v":""},{"$f":"IF(ISNUMBER(MATCH(Table_POSTInfo[[#This Row],[Line]],Table_PREInspection[Line],0)),INDEX(Table_PREInspection[],MATCH(Table_POSTInfo[[#This Row],[Line]],Table_PREInspection[Line],0),MATCH('Post-Install Information'!K$3,'Pre-Install Inspection'!$A$3:$N$3,0)),IF(OR(Table_POSTInfo[[#This Row],[Line]]=\"\",INDEX(Table_PREInfo[],Table_POSTInfo[[#This Row],[Line]],K$3)=\"\"),\"\",INDEX(Table_PREInfo[],Table_POSTInfo[[#This Row],[Line]],K$3)))","v":""},{"$f":"IF(ISNUMBER(MATCH(Table_POSTInfo[[#This Row],[Line]],Table_PREInspection[Line],0)),INDEX(Table_PREInspection[],MATCH(Table_POSTInfo[[#This Row],[Line]],Table_PREInspection[Line],0),MATCH('Post-Install Information'!L$3,'Pre-Install Inspection'!$A$3:$N$3,0)),IF(OR(Table_POSTInfo[[#This Row],[Line]]=\"\",INDEX(Table_PREInfo[],Table_POSTInfo[[#This Row],[Line]],L$3)=\"\"),\"\",INDEX(Table_PREInfo[],Table_POSTInfo[[#This Row],[Line]],L$3)))","v":""},{"$f":"IF(ISNUMBER(MATCH(Table_POSTInfo[[#This Row],[Line]],Table_PREInspection[Line],0)),INDEX(Table_PREInspection[],MATCH(Table_POSTInfo[[#This Row],[Line]],Table_PREInspection[Line],0),MATCH('Post-Install Information'!M$3,'Pre-Install Inspection'!$A$3:$N$3,0)),IF(OR(Table_POSTInfo[[#This Row],[Line]]=\"\",INDEX(Table_PREInfo[],Table_POSTInfo[[#This Row],[Line]],M$3)=\"\"),\"\",INDEX(Table_PREInfo[],Table_POSTInfo[[#This Row],[Line]],M$3)))","v":""},{"$f":"IF(ISNUMBER(MATCH(Table_POSTInfo[[#This Row],[Line]],Table_PREInspection[Line],0)),INDEX(Table_PREInspection[],MATCH(Table_POSTInfo[[#This Row],[Line]],Table_PREInspection[Line],0),MATCH('Post-Install Information'!N$3,'Pre-Install Inspection'!$A$3:$N$3,0)),IF(OR(Table_POSTInfo[[#This Row],[Line]]=\"\",INDEX(Table_PREInfo[],Table_POSTInfo[[#This Row],[Line]],N$3)=\"\"),\"\",INDEX(Table_PREInfo[],Table_POSTInfo[[#This Row],[Line]],N$3)))","v":""},{"$f":"IF(ISNUMBER(MATCH(Table_POSTInfo[[#This Row],[Line]],Table_PREInspection[Line],0)),INDEX(Table_PREInspection[],MATCH(Table_POSTInfo[[#This Row],[Line]],Table_PREInspection[Line],0),MATCH('Post-Install Information'!O$3,'Pre-Install Inspection'!$A$3:$N$3,0)),IF(OR(Table_POSTInfo[[#This Row],[Line]]=\"\",INDEX(Table_PREInfo[],Table_POSTInfo[[#This Row],[Line]],O$3)=\"\"),\"\",INDEX(Table_PREInfo[],Table_POSTInfo[[#This Row],[Line]],O$3)))","v":""},{"$f":"IF(ISNUMBER(MATCH(Table_POSTInfo[[#This Row],[Line]],Table_PREInspection[Line],0)),INDEX(Table_PREInspection[],MATCH(Table_POSTInfo[[#This Row],[Line]],Table_PREInspection[Line],0),MATCH('Post-Install Information'!P$3,'Pre-Install Inspection'!$A$3:$N$3,0)),IF(OR(Table_POSTInfo[[#This Row],[Line]]=\"\",INDEX(Table_PREInfo[],Table_POSTInfo[[#This Row],[Line]],P$3)=\"\"),\"\",INDEX(Table_PREInfo[],Table_POSTInfo[[#This Row],[Line]],P$3)))","v":""},null,{"$f":"IF(Table_PREInfo[[#This Row],[Fixture Qty '[P']]]<>0,Table_PREInfo[[#This Row],[Fixture Qty '[P']]],IF(Table_POSTInfo[[#This Row],[Fixture Qty '[E']]]<>0,Table_POSTInfo[[#This Row],[Fixture Qty '[E']]],\"\"))","v":""},{"$f":"IF(OR(Table_POSTInfo[[#This Row],[Line]]=\"\",INDEX(Table_PREInfo[],Table_POSTInfo[[#This Row],[Line]],S$3)=\"\"),\"\",INDEX(Table_PREInfo[],Table_POSTInfo[[#This Row],[Line]],S$3))","v":""},{"$f":"IF(OR(Table_POSTInfo[[#This Row],[Line]]=\"\",INDEX(Table_PREInfo[],Table_POSTInfo[[#This Row],[Line]],T$3)=\"\"),\"\",INDEX(Table_PREInfo[],Table_POSTInfo[[#This Row],[Line]],T$3))","v":""},{"$f":"IF(OR(Table_POSTInfo[[#This Row],[Line]]=\"\",INDEX(Table_PREInfo[],Table_POSTInfo[[#This Row],[Line]],U$3)=\"\"),\"\",INDEX(Table_PREInfo[],Table_POSTInfo[[#This Row],[Line]],U$3))","v":""},{"$f":"IF(OR(Table_POSTInfo[[#This Row],[Line]]=\"\",INDEX(Table_PREInfo[],Table_POSTInfo[[#This Row],[Line]],V$3)=\"\"),\"\",INDEX(Table_PREInfo[],Table_POSTInfo[[#This Row],[Line]],V$3))","v":""},{"$f":"IFERROR(\nIFERROR(OFFSET(Table_TypWattage[[#Headers],[Technology]],MATCH(Table_POSTInfo[[#This Row],[Fixture Technology '[P']]],Table_TypWattage[Technology],0)+MATCH(Table_POSTInfo[[#This Row],[Fixture/ Lamp Wattage '[P']]],INDIRECT(SUBSTITUTE(SUBSTITUTE(Table_POSTInfo[[#This Row],[Fixture Technology '[P']]],\" \",\"_\"),\"-\",\"_\")),0)-1,MATCH(Table_POSTInfo[[#This Row],['# Lamps/ Fixture '[P']]],'Measure Tables'!$Q$2:$V$2,0)+1),IF(Table_POSTInfo[[#This Row],[IsActive]],IF(AND(Table_POSTInfo[[#This Row],['# Lamps/ Fixture '[P']]]<>\"\",Table_POSTInfo[[#This Row],['# Lamps/ Fixture '[P']]]>0,Table_POSTInfo[[#This Row],[Fixture/ Lamp Wattage '[P']]]>0),Table_POSTInfo[[#This Row],['# Lamps/ Fixture '[P']]]*Table_POSTInfo[[#This Row],[Fixture/ Lamp Wattage '[P']]],Table_POSTInfo[[#This Row],[Fixture/ Lamp Wattage '[P']]]),\"\")),\n\"\")","v":""},{"$f":"IF(OR(Table_POSTInfo[[#This Row],[Line]]=\"\",INDEX(Table_PREInfo[],Table_POSTInfo[[#This Row],[Line]],X$3)=\"\"),\"\",INDEX(Table_PREInfo[],Table_POSTInfo[[#This Row],[Line]],X$3))","v":""},{"$f":"IF(OR(Table_POSTInfo[[#This Row],[Line]]=\"\",INDEX(Table_PREInfo[],Table_POSTInfo[[#This Row],[Line]],Y$3)=\"\"),\"\",INDEX(Table_PREInfo[],Table_POSTInfo[[#This Row],[Line]],Y$3))","v":""},{"$f":"IFERROR(IF(Table_POSTInfo[[#This Row],[Interior/ Exterior]]<>\"\",\n  CONCATENATE(\n  Table_POSTInfo[[#This Row],[Fixture Technology '[P']]],\n  \" - \",Table_POSTInfo[[#This Row],[Fixture Type '[P']]],\" [\",\n  IF(Table_POSTInfo[[#This Row],['# Lamps/ Fixture '[P']]]>0,Table_POSTInfo[[#This Row],['# Lamps/ Fixture '[P']]] & \"L - \" & Table_POSTInfo[[#This Row],[Fixture/ Lamp Wattage '[P']]] & \"W\" & IF(Table_POSTInfo[[#This Row],[Ballast/ Driver '[P']]]<>\"\",\" - \" & Table_POSTInfo[[#This Row],[Ballast/ Driver '[P']]],\"\"),Table_POSTInfo[[#This Row],[Fixture Wattage '[P']]] & \"W\"),\"]\",\n  IF(AND(Table_POSTInfo[[#This Row],[Controls '[P']]]<>\"\",Table_POSTInfo[[#This Row],[Controls '[P']]]<>\"No Controls\"),\" - \" & Table_POSTInfo[[#This Row],[Controls '[P']]],\"\")\n  ),\n\"\"),\"\")","v":""},{"$f":"IF(OR(Table_POSTInfo[[#This Row],[Line]]=\"\",INDEX(Table_PREInfo[],Table_POSTInfo[[#This Row],[Line]],AA$3)=\"\"),\"\",INDEX(Table_PREInfo[],Table_POSTInfo[[#This Row],[Line]],AA$3))","v":""},{"$f":"IF(OR(Table_POSTInfo[[#This Row],[Line]]=\"\",INDEX(Table_PREInfo[],Table_POSTInfo[[#This Row],[Line]],AB$3)=\"\"),\"\",INDEX(Table_PREInfo[],Table_POSTInfo[[#This Row],[Line]],AB$3))","v":""},{"$f":"IF(OR(Table_POSTInfo[[#This Row],[Line]]=\"\",INDEX(Table_PREInfo[],Table_POSTInfo[[#This Row],[Line]],AC$3)=\"\"),\"\",INDEX(Table_PREInfo[],Table_POSTInfo[[#This Row],[Line]],AC$3))","v":""}]
[{"$f":"IF($A26=\"Line\",1,MAX($A$4:$A26)+1)","v":23},{"$f":"IF(OR(Table_POSTInfo[[#This Row],[Line]]=\"\",INDEX(Table_PREInfo[],Table_POSTInfo[[#This Row],[Line]],B$3)=\"\"),\"\",INDEX(Table_PREInfo[],Table_POSTInfo[[#This Row],[Line]],B$3))","v":false},{"$f":"IF(OR(Table_POSTInfo[[#This Row],[Line]]=\"\",INDEX(Table_PREInfo[],Table_POSTInfo[[#This Row],[Line]],C$3)=\"\"),\"\",INDEX(Table_PREInfo[],Table_POSTInfo[[#This Row],[Line]],C$3))","v":""},{"$f":"IF(ISNUMBER(MATCH(Table_POSTInfo[[#This Row],[Line]],Table_PREInspection[Line],0)),INDEX(Table_PREInspection[],MATCH(Table_POSTInfo[[#This Row],[Line]],Table_PREInspection[Line],0),MATCH('Post-Install Information'!D$3,'Pre-Install Inspection'!$A$3:$N$3,0)),IF(OR(Table_POSTInfo[[#This Row],[Line]]=\"\",INDEX(Table_PREInfo[],Table_POSTInfo[[#This Row],[Line]],D$3)=\"\"),\"\",INDEX(Table_PREInfo[],Table_POSTInfo[[#This Row],[Line]],D$3)))","v":""},{"$f":"IF(ISNUMBER(MATCH(Table_POSTInfo[[#This Row],[Line]],Table_PREInspection[Line],0)),INDEX(Table_PREInspection[],MATCH(Table_POSTInfo[[#This Row],[Line]],Table_PREInspection[Line],0),MATCH('Post-Install Information'!E$3,'Pre-Install Inspection'!$A$3:$N$3,0)),IF(OR(Table_POSTInfo[[#This Row],[Line]]=\"\",INDEX(Table_PREInfo[],Table_POSTInfo[[#This Row],[Line]],E$3)=\"\"),\"\",INDEX(Table_PREInfo[],Table_POSTInfo[[#This Row],[Line]],E$3)))","v":""},{"$f":"IF(ISNUMBER(MATCH(Table_POSTInfo[[#This Row],[Line]],Table_PREInspection[Line],0)),INDEX(Table_PREInspection[],MATCH(Table_POSTInfo[[#This Row],[Line]],Table_PREInspection[Line],0),MATCH('Post-Install Information'!F$3,'Pre-Install Inspection'!$A$3:$N$3,0)),IF(OR(Table_POSTInfo[[#This Row],[Line]]=\"\",INDEX(Table_PREInfo[],Table_POSTInfo[[#This Row],[Line]],F$3)=\"\"),\"\",INDEX(Table_PREInfo[],Table_POSTInfo[[#This Row],[Line]],F$3)))","v":""},null,{"$f":"IF(ISNUMBER(MATCH(Table_POSTInfo[[#This Row],[Line]],Table_PREInspection[Line],0)),INDEX(Table_PREInspection[],MATCH(Table_POSTInfo[[#This Row],[Line]],Table_PREInspection[Line],0),MATCH('Post-Install Information'!H$3,'Pre-Install Inspection'!$A$3:$N$3,0)),IF(OR(Table_POSTInfo[[#This Row],[Line]]=\"\",INDEX(Table_PREInfo[],Table_POSTInfo[[#This Row],[Line]],H$3)=\"\"),\"\",INDEX(Table_PREInfo[],Table_POSTInfo[[#This Row],[Line]],H$3)))","v":""},{"$f":"IF(ISNUMBER(MATCH(Table_POSTInfo[[#This Row],[Line]],Table_PREInspection[Line],0)),INDEX(Table_PREInspection[],MATCH(Table_POSTInfo[[#This Row],[Line]],Table_PREInspection[Line],0),MATCH('Post-Install Information'!I$3,'Pre-Install Inspection'!$A$3:$N$3,0)),IF(OR(Table_POSTInfo[[#This Row],[Line]]=\"\",INDEX(Table_PREInfo[],Table_POSTInfo[[#This Row],[Line]],I$3)=\"\"),\"\",INDEX(Table_PREInfo[],Table_POSTInfo[[#This Row],[Line]],I$3)))","v":""},{"$f":"IF(ISNUMBER(MATCH(Table_POSTInfo[[#This Row],[Line]],Table_PREInspection[Line],0)),INDEX(Table_PREInspection[],MATCH(Table_POSTInfo[[#This Row],[Line]],Table_PREInspection[Line],0),MATCH('Post-Install Information'!J$3,'Pre-Install Inspection'!$A$3:$N$3,0)),IF(OR(Table_POSTInfo[[#This Row],[Line]]=\"\",INDEX(Table_PREInfo[],Table_POSTInfo[[#This Row],[Line]],J$3)=\"\"),\"\",INDEX(Table_PREInfo[],Table_POSTInfo[[#This Row],[Line]],J$3)))","v":""},{"$f":"IF(ISNUMBER(MATCH(Table_POSTInfo[[#This Row],[Line]],Table_PREInspection[Line],0)),INDEX(Table_PREInspection[],MATCH(Table_POSTInfo[[#This Row],[Line]],Table_PREInspection[Line],0),MATCH('Post-Install Information'!K$3,'Pre-Install Inspection'!$A$3:$N$3,0)),IF(OR(Table_POSTInfo[[#This Row],[Line]]=\"\",INDEX(Table_PREInfo[],Table_POSTInfo[[#This Row],[Line]],K$3)=\"\"),\"\",INDEX(Table_PREInfo[],Table_POSTInfo[[#This Row],[Line]],K$3)))","v":""},{"$f":"IF(ISNUMBER(MATCH(Table_POSTInfo[[#This Row],[Line]],Table_PREInspection[Line],0)),INDEX(Table_PREInspection[],MATCH(Table_POSTInfo[[#This Row],[Line]],Table_PREInspection[Line],0),MATCH('Post-Install Information'!L$3,'Pre-Install Inspection'!$A$3:$N$3,0)),IF(OR(Table_POSTInfo[[#This Row],[Line]]=\"\",INDEX(Table_PREInfo[],Table_POSTInfo[[#This Row],[Line]],L$3)=\"\"),\"\",INDEX(Table_PREInfo[],Table_POSTInfo[[#This Row],[Line]],L$3)))","v":""},{"$f":"IF(ISNUMBER(MATCH(Table_POSTInfo[[#This Row],[Line]],Table_PREInspection[Line],0)),INDEX(Table_PREInspection[],MATCH(Table_POSTInfo[[#This Row],[Line]],Table_PREInspection[Line],0),MATCH('Post-Install Information'!M$3,'Pre-Install Inspection'!$A$3:$N$3,0)),IF(OR(Table_POSTInfo[[#This Row],[Line]]=\"\",INDEX(Table_PREInfo[],Table_POSTInfo[[#This Row],[Line]],M$3)=\"\"),\"\",INDEX(Table_PREInfo[],Table_POSTInfo[[#This Row],[Line]],M$3)))","v":""},{"$f":"IF(ISNUMBER(MATCH(Table_POSTInfo[[#This Row],[Line]],Table_PREInspection[Line],0)),INDEX(Table_PREInspection[],MATCH(Table_POSTInfo[[#This Row],[Line]],Table_PREInspection[Line],0),MATCH('Post-Install Information'!N$3,'Pre-Install Inspection'!$A$3:$N$3,0)),IF(OR(Table_POSTInfo[[#This Row],[Line]]=\"\",INDEX(Table_PREInfo[],Table_POSTInfo[[#This Row],[Line]],N$3)=\"\"),\"\",INDEX(Table_PREInfo[],Table_POSTInfo[[#This Row],[Line]],N$3)))","v":""},{"$f":"IF(ISNUMBER(MATCH(Table_POSTInfo[[#This Row],[Line]],Table_PREInspection[Line],0)),INDEX(Table_PREInspection[],MATCH(Table_POSTInfo[[#This Row],[Line]],Table_PREInspection[Line],0),MATCH('Post-Install Information'!O$3,'Pre-Install Inspection'!$A$3:$N$3,0)),IF(OR(Table_POSTInfo[[#This Row],[Line]]=\"\",INDEX(Table_PREInfo[],Table_POSTInfo[[#This Row],[Line]],O$3)=\"\"),\"\",INDEX(Table_PREInfo[],Table_POSTInfo[[#This Row],[Line]],O$3)))","v":""},{"$f":"IF(ISNUMBER(MATCH(Table_POSTInfo[[#This Row],[Line]],Table_PREInspection[Line],0)),INDEX(Table_PREInspection[],MATCH(Table_POSTInfo[[#This Row],[Line]],Table_PREInspection[Line],0),MATCH('Post-Install Information'!P$3,'Pre-Install Inspection'!$A$3:$N$3,0)),IF(OR(Table_POSTInfo[[#This Row],[Line]]=\"\",INDEX(Table_PREInfo[],Table_POSTInfo[[#This Row],[Line]],P$3)=\"\"),\"\",INDEX(Table_PREInfo[],Table_POSTInfo[[#This Row],[Line]],P$3)))","v":""},null,{"$f":"IF(Table_PREInfo[[#This Row],[Fixture Qty '[P']]]<>0,Table_PREInfo[[#This Row],[Fixture Qty '[P']]],IF(Table_POSTInfo[[#This Row],[Fixture Qty '[E']]]<>0,Table_POSTInfo[[#This Row],[Fixture Qty '[E']]],\"\"))","v":""},{"$f":"IF(OR(Table_POSTInfo[[#This Row],[Line]]=\"\",INDEX(Table_PREInfo[],Table_POSTInfo[[#This Row],[Line]],S$3)=\"\"),\"\",INDEX(Table_PREInfo[],Table_POSTInfo[[#This Row],[Line]],S$3))","v":""},{"$f":"IF(OR(Table_POSTInfo[[#This Row],[Line]]=\"\",INDEX(Table_PREInfo[],Table_POSTInfo[[#This Row],[Line]],T$3)=\"\"),\"\",INDEX(Table_PREInfo[],Table_POSTInfo[[#This Row],[Line]],T$3))","v":""},{"$f":"IF(OR(Table_POSTInfo[[#This Row],[Line]]=\"\",INDEX(Table_PREInfo[],Table_POSTInfo[[#This Row],[Line]],U$3)=\"\"),\"\",INDEX(Table_PREInfo[],Table_POSTInfo[[#This Row],[Line]],U$3))","v":""},{"$f":"IF(OR(Table_POSTInfo[[#This Row],[Line]]=\"\",INDEX(Table_PREInfo[],Table_POSTInfo[[#This Row],[Line]],V$3)=\"\"),\"\",INDEX(Table_PREInfo[],Table_POSTInfo[[#This Row],[Line]],V$3))","v":""},{"$f":"IFERROR(\nIFERROR(OFFSET(Table_TypWattage[[#Headers],[Technology]],MATCH(Table_POSTInfo[[#This Row],[Fixture Technology '[P']]],Table_TypWattage[Technology],0)+MATCH(Table_POSTInfo[[#This Row],[Fixture/ Lamp Wattage '[P']]],INDIRECT(SUBSTITUTE(SUBSTITUTE(Table_POSTInfo[[#This Row],[Fixture Technology '[P']]],\" \",\"_\"),\"-\",\"_\")),0)-1,MATCH(Table_POSTInfo[[#This Row],['# Lamps/ Fixture '[P']]],'Measure Tables'!$Q$2:$V$2,0)+1),IF(Table_POSTInfo[[#This Row],[IsActive]],IF(AND(Table_POSTInfo[[#This Row],['# Lamps/ Fixture '[P']]]<>\"\",Table_POSTInfo[[#This Row],['# Lamps/ Fixture '[P']]]>0,Table_POSTInfo[[#This Row],[Fixture/ Lamp Wattage '[P']]]>0),Table_POSTInfo[[#This Row],['# Lamps/ Fixture '[P']]]*Table_POSTInfo[[#This Row],[Fixture/ Lamp Wattage '[P']]],Table_POSTInfo[[#This Row],[Fixture/ Lamp Wattage '[P']]]),\"\")),\n\"\")","v":""},{"$f":"IF(OR(Table_POSTInfo[[#This Row],[Line]]=\"\",INDEX(Table_PREInfo[],Table_POSTInfo[[#This Row],[Line]],X$3)=\"\"),\"\",INDEX(Table_PREInfo[],Table_POSTInfo[[#This Row],[Line]],X$3))","v":""},{"$f":"IF(OR(Table_POSTInfo[[#This Row],[Line]]=\"\",INDEX(Table_PREInfo[],Table_POSTInfo[[#This Row],[Line]],Y$3)=\"\"),\"\",INDEX(Table_PREInfo[],Table_POSTInfo[[#This Row],[Line]],Y$3))","v":""},{"$f":"IFERROR(IF(Table_POSTInfo[[#This Row],[Interior/ Exterior]]<>\"\",\n  CONCATENATE(\n  Table_POSTInfo[[#This Row],[Fixture Technology '[P']]],\n  \" - \",Table_POSTInfo[[#This Row],[Fixture Type '[P']]],\" [\",\n  IF(Table_POSTInfo[[#This Row],['# Lamps/ Fixture '[P']]]>0,Table_POSTInfo[[#This Row],['# Lamps/ Fixture '[P']]] & \"L - \" & Table_POSTInfo[[#This Row],[Fixture/ Lamp Wattage '[P']]] & \"W\" & IF(Table_POSTInfo[[#This Row],[Ballast/ Driver '[P']]]<>\"\",\" - \" & Table_POSTInfo[[#This Row],[Ballast/ Driver '[P']]],\"\"),Table_POSTInfo[[#This Row],[Fixture Wattage '[P']]] & \"W\"),\"]\",\n  IF(AND(Table_POSTInfo[[#This Row],[Controls '[P']]]<>\"\",Table_POSTInfo[[#This Row],[Controls '[P']]]<>\"No Controls\"),\" - \" & Table_POSTInfo[[#This Row],[Controls '[P']]],\"\")\n  ),\n\"\"),\"\")","v":""},{"$f":"IF(OR(Table_POSTInfo[[#This Row],[Line]]=\"\",INDEX(Table_PREInfo[],Table_POSTInfo[[#This Row],[Line]],AA$3)=\"\"),\"\",INDEX(Table_PREInfo[],Table_POSTInfo[[#This Row],[Line]],AA$3))","v":""},{"$f":"IF(OR(Table_POSTInfo[[#This Row],[Line]]=\"\",INDEX(Table_PREInfo[],Table_POSTInfo[[#This Row],[Line]],AB$3)=\"\"),\"\",INDEX(Table_PREInfo[],Table_POSTInfo[[#This Row],[Line]],AB$3))","v":""},{"$f":"IF(OR(Table_POSTInfo[[#This Row],[Line]]=\"\",INDEX(Table_PREInfo[],Table_POSTInfo[[#This Row],[Line]],AC$3)=\"\"),\"\",INDEX(Table_PREInfo[],Table_POSTInfo[[#This Row],[Line]],AC$3))","v":""}]
[{"$f":"IF($A27=\"Line\",1,MAX($A$4:$A27)+1)","v":24},{"$f":"IF(OR(Table_POSTInfo[[#This Row],[Line]]=\"\",INDEX(Table_PREInfo[],Table_POSTInfo[[#This Row],[Line]],B$3)=\"\"),\"\",INDEX(Table_PREInfo[],Table_POSTInfo[[#This Row],[Line]],B$3))","v":false},{"$f":"IF(OR(Table_POSTInfo[[#This Row],[Line]]=\"\",INDEX(Table_PREInfo[],Table_POSTInfo[[#This Row],[Line]],C$3)=\"\"),\"\",INDEX(Table_PREInfo[],Table_POSTInfo[[#This Row],[Line]],C$3))","v":""},{"$f":"IF(ISNUMBER(MATCH(Table_POSTInfo[[#This Row],[Line]],Table_PREInspection[Line],0)),INDEX(Table_PREInspection[],MATCH(Table_POSTInfo[[#This Row],[Line]],Table_PREInspection[Line],0),MATCH('Post-Install Information'!D$3,'Pre-Install Inspection'!$A$3:$N$3,0)),IF(OR(Table_POSTInfo[[#This Row],[Line]]=\"\",INDEX(Table_PREInfo[],Table_POSTInfo[[#This Row],[Line]],D$3)=\"\"),\"\",INDEX(Table_PREInfo[],Table_POSTInfo[[#This Row],[Line]],D$3)))","v":""},{"$f":"IF(ISNUMBER(MATCH(Table_POSTInfo[[#This Row],[Line]],Table_PREInspection[Line],0)),INDEX(Table_PREInspection[],MATCH(Table_POSTInfo[[#This Row],[Line]],Table_PREInspection[Line],0),MATCH('Post-Install Information'!E$3,'Pre-Install Inspection'!$A$3:$N$3,0)),IF(OR(Table_POSTInfo[[#This Row],[Line]]=\"\",INDEX(Table_PREInfo[],Table_POSTInfo[[#This Row],[Line]],E$3)=\"\"),\"\",INDEX(Table_PREInfo[],Table_POSTInfo[[#This Row],[Line]],E$3)))","v":""},{"$f":"IF(ISNUMBER(MATCH(Table_POSTInfo[[#This Row],[Line]],Table_PREInspection[Line],0)),INDEX(Table_PREInspection[],MATCH(Table_POSTInfo[[#This Row],[Line]],Table_PREInspection[Line],0),MATCH('Post-Install Information'!F$3,'Pre-Install Inspection'!$A$3:$N$3,0)),IF(OR(Table_POSTInfo[[#This Row],[Line]]=\"\",INDEX(Table_PREInfo[],Table_POSTInfo[[#This Row],[Line]],F$3)=\"\"),\"\",INDEX(Table_PREInfo[],Table_POSTInfo[[#This Row],[Line]],F$3)))","v":""},null,{"$f":"IF(ISNUMBER(MATCH(Table_POSTInfo[[#This Row],[Line]],Table_PREInspection[Line],0)),INDEX(Table_PREInspection[],MATCH(Table_POSTInfo[[#This Row],[Line]],Table_PREInspection[Line],0),MATCH('Post-Install Information'!H$3,'Pre-Install Inspection'!$A$3:$N$3,0)),IF(OR(Table_POSTInfo[[#This Row],[Line]]=\"\",INDEX(Table_PREInfo[],Table_POSTInfo[[#This Row],[Line]],H$3)=\"\"),\"\",INDEX(Table_PREInfo[],Table_POSTInfo[[#This Row],[Line]],H$3)))","v":""},{"$f":"IF(ISNUMBER(MATCH(Table_POSTInfo[[#This Row],[Line]],Table_PREInspection[Line],0)),INDEX(Table_PREInspection[],MATCH(Table_POSTInfo[[#This Row],[Line]],Table_PREInspection[Line],0),MATCH('Post-Install Information'!I$3,'Pre-Install Inspection'!$A$3:$N$3,0)),IF(OR(Table_POSTInfo[[#This Row],[Line]]=\"\",INDEX(Table_PREInfo[],Table_POSTInfo[[#This Row],[Line]],I$3)=\"\"),\"\",INDEX(Table_PREInfo[],Table_POSTInfo[[#This Row],[Line]],I$3)))","v":""},{"$f":"IF(ISNUMBER(MATCH(Table_POSTInfo[[#This Row],[Line]],Table_PREInspection[Line],0)),INDEX(Table_PREInspection[],MATCH(Table_POSTInfo[[#This Row],[Line]],Table_PREInspection[Line],0),MATCH('Post-Install Information'!J$3,'Pre-Install Inspection'!$A$3:$N$3,0)),IF(OR(Table_POSTInfo[[#This Row],[Line]]=\"\",INDEX(Table_PREInfo[],Table_POSTInfo[[#This Row],[Line]],J$3)=\"\"),\"\",INDEX(Table_PREInfo[],Table_POSTInfo[[#This Row],[Line]],J$3)))","v":""},{"$f":"IF(ISNUMBER(MATCH(Table_POSTInfo[[#This Row],[Line]],Table_PREInspection[Line],0)),INDEX(Table_PREInspection[],MATCH(Table_POSTInfo[[#This Row],[Line]],Table_PREInspection[Line],0),MATCH('Post-Install Information'!K$3,'Pre-Install Inspection'!$A$3:$N$3,0)),IF(OR(Table_POSTInfo[[#This Row],[Line]]=\"\",INDEX(Table_PREInfo[],Table_POSTInfo[[#This Row],[Line]],K$3)=\"\"),\"\",INDEX(Table_PREInfo[],Table_POSTInfo[[#This Row],[Line]],K$3)))","v":""},{"$f":"IF(ISNUMBER(MATCH(Table_POSTInfo[[#This Row],[Line]],Table_PREInspection[Line],0)),INDEX(Table_PREInspection[],MATCH(Table_POSTInfo[[#This Row],[Line]],Table_PREInspection[Line],0),MATCH('Post-Install Information'!L$3,'Pre-Install Inspection'!$A$3:$N$3,0)),IF(OR(Table_POSTInfo[[#This Row],[Line]]=\"\",INDEX(Table_PREInfo[],Table_POSTInfo[[#This Row],[Line]],L$3)=\"\"),\"\",INDEX(Table_PREInfo[],Table_POSTInfo[[#This Row],[Line]],L$3)))","v":""},{"$f":"IF(ISNUMBER(MATCH(Table_POSTInfo[[#This Row],[Line]],Table_PREInspection[Line],0)),INDEX(Table_PREInspection[],MATCH(Table_POSTInfo[[#This Row],[Line]],Table_PREInspection[Line],0),MATCH('Post-Install Information'!M$3,'Pre-Install Inspection'!$A$3:$N$3,0)),IF(OR(Table_POSTInfo[[#This Row],[Line]]=\"\",INDEX(Table_PREInfo[],Table_POSTInfo[[#This Row],[Line]],M$3)=\"\"),\"\",INDEX(Table_PREInfo[],Table_POSTInfo[[#This Row],[Line]],M$3)))","v":""},{"$f":"IF(ISNUMBER(MATCH(Table_POSTInfo[[#This Row],[Line]],Table_PREInspection[Line],0)),INDEX(Table_PREInspection[],MATCH(Table_POSTInfo[[#This Row],[Line]],Table_PREInspection[Line],0),MATCH('Post-Install Information'!N$3,'Pre-Install Inspection'!$A$3:$N$3,0)),IF(OR(Table_POSTInfo[[#This Row],[Line]]=\"\",INDEX(Table_PREInfo[],Table_POSTInfo[[#This Row],[Line]],N$3)=\"\"),\"\",INDEX(Table_PREInfo[],Table_POSTInfo[[#This Row],[Line]],N$3)))","v":""},{"$f":"IF(ISNUMBER(MATCH(Table_POSTInfo[[#This Row],[Line]],Table_PREInspection[Line],0)),INDEX(Table_PREInspection[],MATCH(Table_POSTInfo[[#This Row],[Line]],Table_PREInspection[Line],0),MATCH('Post-Install Information'!O$3,'Pre-Install Inspection'!$A$3:$N$3,0)),IF(OR(Table_POSTInfo[[#This Row],[Line]]=\"\",INDEX(Table_PREInfo[],Table_POSTInfo[[#This Row],[Line]],O$3)=\"\"),\"\",INDEX(Table_PREInfo[],Table_POSTInfo[[#This Row],[Line]],O$3)))","v":""},{"$f":"IF(ISNUMBER(MATCH(Table_POSTInfo[[#This Row],[Line]],Table_PREInspection[Line],0)),INDEX(Table_PREInspection[],MATCH(Table_POSTInfo[[#This Row],[Line]],Table_PREInspection[Line],0),MATCH('Post-Install Information'!P$3,'Pre-Install Inspection'!$A$3:$N$3,0)),IF(OR(Table_POSTInfo[[#This Row],[Line]]=\"\",INDEX(Table_PREInfo[],Table_POSTInfo[[#This Row],[Line]],P$3)=\"\"),\"\",INDEX(Table_PREInfo[],Table_POSTInfo[[#This Row],[Line]],P$3)))","v":""},null,{"$f":"IF(Table_PREInfo[[#This Row],[Fixture Qty '[P']]]<>0,Table_PREInfo[[#This Row],[Fixture Qty '[P']]],IF(Table_POSTInfo[[#This Row],[Fixture Qty '[E']]]<>0,Table_POSTInfo[[#This Row],[Fixture Qty '[E']]],\"\"))","v":""},{"$f":"IF(OR(Table_POSTInfo[[#This Row],[Line]]=\"\",INDEX(Table_PREInfo[],Table_POSTInfo[[#This Row],[Line]],S$3)=\"\"),\"\",INDEX(Table_PREInfo[],Table_POSTInfo[[#This Row],[Line]],S$3))","v":""},{"$f":"IF(OR(Table_POSTInfo[[#This Row],[Line]]=\"\",INDEX(Table_PREInfo[],Table_POSTInfo[[#This Row],[Line]],T$3)=\"\"),\"\",INDEX(Table_PREInfo[],Table_POSTInfo[[#This Row],[Line]],T$3))","v":""},{"$f":"IF(OR(Table_POSTInfo[[#This Row],[Line]]=\"\",INDEX(Table_PREInfo[],Table_POSTInfo[[#This Row],[Line]],U$3)=\"\"),\"\",INDEX(Table_PREInfo[],Table_POSTInfo[[#This Row],[Line]],U$3))","v":""},{"$f":"IF(OR(Table_POSTInfo[[#This Row],[Line]]=\"\",INDEX(Table_PREInfo[],Table_POSTInfo[[#This Row],[Line]],V$3)=\"\"),\"\",INDEX(Table_PREInfo[],Table_POSTInfo[[#This Row],[Line]],V$3))","v":""},{"$f":"IFERROR(\nIFERROR(OFFSET(Table_TypWattage[[#Headers],[Technology]],MATCH(Table_POSTInfo[[#This Row],[Fixture Technology '[P']]],Table_TypWattage[Technology],0)+MATCH(Table_POSTInfo[[#This Row],[Fixture/ Lamp Wattage '[P']]],INDIRECT(SUBSTITUTE(SUBSTITUTE(Table_POSTInfo[[#This Row],[Fixture Technology '[P']]],\" \",\"_\"),\"-\",\"_\")),0)-1,MATCH(Table_POSTInfo[[#This Row],['# Lamps/ Fixture '[P']]],'Measure Tables'!$Q$2:$V$2,0)+1),IF(Table_POSTInfo[[#This Row],[IsActive]],IF(AND(Table_POSTInfo[[#This Row],['# Lamps/ Fixture '[P']]]<>\"\",Table_POSTInfo[[#This Row],['# Lamps/ Fixture '[P']]]>0,Table_POSTInfo[[#This Row],[Fixture/ Lamp Wattage '[P']]]>0),Table_POSTInfo[[#This Row],['# Lamps/ Fixture '[P']]]*Table_POSTInfo[[#This Row],[Fixture/ Lamp Wattage '[P']]],Table_POSTInfo[[#This Row],[Fixture/ Lamp Wattage '[P']]]),\"\")),\n\"\")","v":""},{"$f":"IF(OR(Table_POSTInfo[[#This Row],[Line]]=\"\",INDEX(Table_PREInfo[],Table_POSTInfo[[#This Row],[Line]],X$3)=\"\"),\"\",INDEX(Table_PREInfo[],Table_POSTInfo[[#This Row],[Line]],X$3))","v":""},{"$f":"IF(OR(Table_POSTInfo[[#This Row],[Line]]=\"\",INDEX(Table_PREInfo[],Table_POSTInfo[[#This Row],[Line]],Y$3)=\"\"),\"\",INDEX(Table_PREInfo[],Table_POSTInfo[[#This Row],[Line]],Y$3))","v":""},{"$f":"IFERROR(IF(Table_POSTInfo[[#This Row],[Interior/ Exterior]]<>\"\",\n  CONCATENATE(\n  Table_POSTInfo[[#This Row],[Fixture Technology '[P']]],\n  \" - \",Table_POSTInfo[[#This Row],[Fixture Type '[P']]],\" [\",\n  IF(Table_POSTInfo[[#This Row],['# Lamps/ Fixture '[P']]]>0,Table_POSTInfo[[#This Row],['# Lamps/ Fixture '[P']]] & \"L - \" & Table_POSTInfo[[#This Row],[Fixture/ Lamp Wattage '[P']]] & \"W\" & IF(Table_POSTInfo[[#This Row],[Ballast/ Driver '[P']]]<>\"\",\" - \" & Table_POSTInfo[[#This Row],[Ballast/ Driver '[P']]],\"\"),Table_POSTInfo[[#This Row],[Fixture Wattage '[P']]] & \"W\"),\"]\",\n  IF(AND(Table_POSTInfo[[#This Row],[Controls '[P']]]<>\"\",Table_POSTInfo[[#This Row],[Controls '[P']]]<>\"No Controls\"),\" - \" & Table_POSTInfo[[#This Row],[Controls '[P']]],\"\")\n  ),\n\"\"),\"\")","v":""},{"$f":"IF(OR(Table_POSTInfo[[#This Row],[Line]]=\"\",INDEX(Table_PREInfo[],Table_POSTInfo[[#This Row],[Line]],AA$3)=\"\"),\"\",INDEX(Table_PREInfo[],Table_POSTInfo[[#This Row],[Line]],AA$3))","v":""},{"$f":"IF(OR(Table_POSTInfo[[#This Row],[Line]]=\"\",INDEX(Table_PREInfo[],Table_POSTInfo[[#This Row],[Line]],AB$3)=\"\"),\"\",INDEX(Table_PREInfo[],Table_POSTInfo[[#This Row],[Line]],AB$3))","v":""},{"$f":"IF(OR(Table_POSTInfo[[#This Row],[Line]]=\"\",INDEX(Table_PREInfo[],Table_POSTInfo[[#This Row],[Line]],AC$3)=\"\"),\"\",INDEX(Table_PREInfo[],Table_POSTInfo[[#This Row],[Line]],AC$3))","v":""}]
[{"$f":"IF($A28=\"Line\",1,MAX($A$4:$A28)+1)","v":25},{"$f":"IF(OR(Table_POSTInfo[[#This Row],[Line]]=\"\",INDEX(Table_PREInfo[],Table_POSTInfo[[#This Row],[Line]],B$3)=\"\"),\"\",INDEX(Table_PREInfo[],Table_POSTInfo[[#This Row],[Line]],B$3))","v":false},{"$f":"IF(OR(Table_POSTInfo[[#This Row],[Line]]=\"\",INDEX(Table_PREInfo[],Table_POSTInfo[[#This Row],[Line]],C$3)=\"\"),\"\",INDEX(Table_PREInfo[],Table_POSTInfo[[#This Row],[Line]],C$3))","v":""},{"$f":"IF(ISNUMBER(MATCH(Table_POSTInfo[[#This Row],[Line]],Table_PREInspection[Line],0)),INDEX(Table_PREInspection[],MATCH(Table_POSTInfo[[#This Row],[Line]],Table_PREInspection[Line],0),MATCH('Post-Install Information'!D$3,'Pre-Install Inspection'!$A$3:$N$3,0)),IF(OR(Table_POSTInfo[[#This Row],[Line]]=\"\",INDEX(Table_PREInfo[],Table_POSTInfo[[#This Row],[Line]],D$3)=\"\"),\"\",INDEX(Table_PREInfo[],Table_POSTInfo[[#This Row],[Line]],D$3)))","v":""},{"$f":"IF(ISNUMBER(MATCH(Table_POSTInfo[[#This Row],[Line]],Table_PREInspection[Line],0)),INDEX(Table_PREInspection[],MATCH(Table_POSTInfo[[#This Row],[Line]],Table_PREInspection[Line],0),MATCH('Post-Install Information'!E$3,'Pre-Install Inspection'!$A$3:$N$3,0)),IF(OR(Table_POSTInfo[[#This Row],[Line]]=\"\",INDEX(Table_PREInfo[],Table_POSTInfo[[#This Row],[Line]],E$3)=\"\"),\"\",INDEX(Table_PREInfo[],Table_POSTInfo[[#This Row],[Line]],E$3)))","v":""},{"$f":"IF(ISNUMBER(MATCH(Table_POSTInfo[[#This Row],[Line]],Table_PREInspection[Line],0)),INDEX(Table_PREInspection[],MATCH(Table_POSTInfo[[#This Row],[Line]],Table_PREInspection[Line],0),MATCH('Post-Install Information'!F$3,'Pre-Install Inspection'!$A$3:$N$3,0)),IF(OR(Table_POSTInfo[[#This Row],[Line]]=\"\",INDEX(Table_PREInfo[],Table_POSTInfo[[#This Row],[Line]],F$3)=\"\"),\"\",INDEX(Table_PREInfo[],Table_POSTInfo[[#This Row],[Line]],F$3)))","v":""},null,{"$f":"IF(ISNUMBER(MATCH(Table_POSTInfo[[#This Row],[Line]],Table_PREInspection[Line],0)),INDEX(Table_PREInspection[],MATCH(Table_POSTInfo[[#This Row],[Line]],Table_PREInspection[Line],0),MATCH('Post-Install Information'!H$3,'Pre-Install Inspection'!$A$3:$N$3,0)),IF(OR(Table_POSTInfo[[#This Row],[Line]]=\"\",INDEX(Table_PREInfo[],Table_POSTInfo[[#This Row],[Line]],H$3)=\"\"),\"\",INDEX(Table_PREInfo[],Table_POSTInfo[[#This Row],[Line]],H$3)))","v":""},{"$f":"IF(ISNUMBER(MATCH(Table_POSTInfo[[#This Row],[Line]],Table_PREInspection[Line],0)),INDEX(Table_PREInspection[],MATCH(Table_POSTInfo[[#This Row],[Line]],Table_PREInspection[Line],0),MATCH('Post-Install Information'!I$3,'Pre-Install Inspection'!$A$3:$N$3,0)),IF(OR(Table_POSTInfo[[#This Row],[Line]]=\"\",INDEX(Table_PREInfo[],Table_POSTInfo[[#This Row],[Line]],I$3)=\"\"),\"\",INDEX(Table_PREInfo[],Table_POSTInfo[[#This Row],[Line]],I$3)))","v":""},{"$f":"IF(ISNUMBER(MATCH(Table_POSTInfo[[#This Row],[Line]],Table_PREInspection[Line],0)),INDEX(Table_PREInspection[],MATCH(Table_POSTInfo[[#This Row],[Line]],Table_PREInspection[Line],0),MATCH('Post-Install Information'!J$3,'Pre-Install Inspection'!$A$3:$N$3,0)),IF(OR(Table_POSTInfo[[#This Row],[Line]]=\"\",INDEX(Table_PREInfo[],Table_POSTInfo[[#This Row],[Line]],J$3)=\"\"),\"\",INDEX(Table_PREInfo[],Table_POSTInfo[[#This Row],[Line]],J$3)))","v":""},{"$f":"IF(ISNUMBER(MATCH(Table_POSTInfo[[#This Row],[Line]],Table_PREInspection[Line],0)),INDEX(Table_PREInspection[],MATCH(Table_POSTInfo[[#This Row],[Line]],Table_PREInspection[Line],0),MATCH('Post-Install Information'!K$3,'Pre-Install Inspection'!$A$3:$N$3,0)),IF(OR(Table_POSTInfo[[#This Row],[Line]]=\"\",INDEX(Table_PREInfo[],Table_POSTInfo[[#This Row],[Line]],K$3)=\"\"),\"\",INDEX(Table_PREInfo[],Table_POSTInfo[[#This Row],[Line]],K$3)))","v":""},{"$f":"IF(ISNUMBER(MATCH(Table_POSTInfo[[#This Row],[Line]],Table_PREInspection[Line],0)),INDEX(Table_PREInspection[],MATCH(Table_POSTInfo[[#This Row],[Line]],Table_PREInspection[Line],0),MATCH('Post-Install Information'!L$3,'Pre-Install Inspection'!$A$3:$N$3,0)),IF(OR(Table_POSTInfo[[#This Row],[Line]]=\"\",INDEX(Table_PREInfo[],Table_POSTInfo[[#This Row],[Line]],L$3)=\"\"),\"\",INDEX(Table_PREInfo[],Table_POSTInfo[[#This Row],[Line]],L$3)))","v":""},{"$f":"IF(ISNUMBER(MATCH(Table_POSTInfo[[#This Row],[Line]],Table_PREInspection[Line],0)),INDEX(Table_PREInspection[],MATCH(Table_POSTInfo[[#This Row],[Line]],Table_PREInspection[Line],0),MATCH('Post-Install Information'!M$3,'Pre-Install Inspection'!$A$3:$N$3,0)),IF(OR(Table_POSTInfo[[#This Row],[Line]]=\"\",INDEX(Table_PREInfo[],Table_POSTInfo[[#This Row],[Line]],M$3)=\"\"),\"\",INDEX(Table_PREInfo[],Table_POSTInfo[[#This Row],[Line]],M$3)))","v":""},{"$f":"IF(ISNUMBER(MATCH(Table_POSTInfo[[#This Row],[Line]],Table_PREInspection[Line],0)),INDEX(Table_PREInspection[],MATCH(Table_POSTInfo[[#This Row],[Line]],Table_PREInspection[Line],0),MATCH('Post-Install Information'!N$3,'Pre-Install Inspection'!$A$3:$N$3,0)),IF(OR(Table_POSTInfo[[#This Row],[Line]]=\"\",INDEX(Table_PREInfo[],Table_POSTInfo[[#This Row],[Line]],N$3)=\"\"),\"\",INDEX(Table_PREInfo[],Table_POSTInfo[[#This Row],[Line]],N$3)))","v":""},{"$f":"IF(ISNUMBER(MATCH(Table_POSTInfo[[#This Row],[Line]],Table_PREInspection[Line],0)),INDEX(Table_PREInspection[],MATCH(Table_POSTInfo[[#This Row],[Line]],Table_PREInspection[Line],0),MATCH('Post-Install Information'!O$3,'Pre-Install Inspection'!$A$3:$N$3,0)),IF(OR(Table_POSTInfo[[#This Row],[Line]]=\"\",INDEX(Table_PREInfo[],Table_POSTInfo[[#This Row],[Line]],O$3)=\"\"),\"\",INDEX(Table_PREInfo[],Table_POSTInfo[[#This Row],[Line]],O$3)))","v":""},{"$f":"IF(ISNUMBER(MATCH(Table_POSTInfo[[#This Row],[Line]],Table_PREInspection[Line],0)),INDEX(Table_PREInspection[],MATCH(Table_POSTInfo[[#This Row],[Line]],Table_PREInspection[Line],0),MATCH('Post-Install Information'!P$3,'Pre-Install Inspection'!$A$3:$N$3,0)),IF(OR(Table_POSTInfo[[#This Row],[Line]]=\"\",INDEX(Table_PREInfo[],Table_POSTInfo[[#This Row],[Line]],P$3)=\"\"),\"\",INDEX(Table_PREInfo[],Table_POSTInfo[[#This Row],[Line]],P$3)))","v":""},null,{"$f":"IF(Table_PREInfo[[#This Row],[Fixture Qty '[P']]]<>0,Table_PREInfo[[#This Row],[Fixture Qty '[P']]],IF(Table_POSTInfo[[#This Row],[Fixture Qty '[E']]]<>0,Table_POSTInfo[[#This Row],[Fixture Qty '[E']]],\"\"))","v":""},{"$f":"IF(OR(Table_POSTInfo[[#This Row],[Line]]=\"\",INDEX(Table_PREInfo[],Table_POSTInfo[[#This Row],[Line]],S$3)=\"\"),\"\",INDEX(Table_PREInfo[],Table_POSTInfo[[#This Row],[Line]],S$3))","v":""},{"$f":"IF(OR(Table_POSTInfo[[#This Row],[Line]]=\"\",INDEX(Table_PREInfo[],Table_POSTInfo[[#This Row],[Line]],T$3)=\"\"),\"\",INDEX(Table_PREInfo[],Table_POSTInfo[[#This Row],[Line]],T$3))","v":""},{"$f":"IF(OR(Table_POSTInfo[[#This Row],[Line]]=\"\",INDEX(Table_PREInfo[],Table_POSTInfo[[#This Row],[Line]],U$3)=\"\"),\"\",INDEX(Table_PREInfo[],Table_POSTInfo[[#This Row],[Line]],U$3))","v":""},{"$f":"IF(OR(Table_POSTInfo[[#This Row],[Line]]=\"\",INDEX(Table_PREInfo[],Table_POSTInfo[[#This Row],[Line]],V$3)=\"\"),\"\",INDEX(Table_PREInfo[],Table_POSTInfo[[#This Row],[Line]],V$3))","v":""},{"$f":"IFERROR(\nIFERROR(OFFSET(Table_TypWattage[[#Headers],[Technology]],MATCH(Table_POSTInfo[[#This Row],[Fixture Technology '[P']]],Table_TypWattage[Technology],0)+MATCH(Table_POSTInfo[[#This Row],[Fixture/ Lamp Wattage '[P']]],INDIRECT(SUBSTITUTE(SUBSTITUTE(Table_POSTInfo[[#This Row],[Fixture Technology '[P']]],\" \",\"_\"),\"-\",\"_\")),0)-1,MATCH(Table_POSTInfo[[#This Row],['# Lamps/ Fixture '[P']]],'Measure Tables'!$Q$2:$V$2,0)+1),IF(Table_POSTInfo[[#This Row],[IsActive]],IF(AND(Table_POSTInfo[[#This Row],['# Lamps/ Fixture '[P']]]<>\"\",Table_POSTInfo[[#This Row],['# Lamps/ Fixture '[P']]]>0,Table_POSTInfo[[#This Row],[Fixture/ Lamp Wattage '[P']]]>0),Table_POSTInfo[[#This Row],['# Lamps/ Fixture '[P']]]*Table_POSTInfo[[#This Row],[Fixture/ Lamp Wattage '[P']]],Table_POSTInfo[[#This Row],[Fixture/ Lamp Wattage '[P']]]),\"\")),\n\"\")","v":""},{"$f":"IF(OR(Table_POSTInfo[[#This Row],[Line]]=\"\",INDEX(Table_PREInfo[],Table_POSTInfo[[#This Row],[Line]],X$3)=\"\"),\"\",INDEX(Table_PREInfo[],Table_POSTInfo[[#This Row],[Line]],X$3))","v":""},{"$f":"IF(OR(Table_POSTInfo[[#This Row],[Line]]=\"\",INDEX(Table_PREInfo[],Table_POSTInfo[[#This Row],[Line]],Y$3)=\"\"),\"\",INDEX(Table_PREInfo[],Table_POSTInfo[[#This Row],[Line]],Y$3))","v":""},{"$f":"IFERROR(IF(Table_POSTInfo[[#This Row],[Interior/ Exterior]]<>\"\",\n  CONCATENATE(\n  Table_POSTInfo[[#This Row],[Fixture Technology '[P']]],\n  \" - \",Table_POSTInfo[[#This Row],[Fixture Type '[P']]],\" [\",\n  IF(Table_POSTInfo[[#This Row],['# Lamps/ Fixture '[P']]]>0,Table_POSTInfo[[#This Row],['# Lamps/ Fixture '[P']]] & \"L - \" & Table_POSTInfo[[#This Row],[Fixture/ Lamp Wattage '[P']]] & \"W\" & IF(Table_POSTInfo[[#This Row],[Ballast/ Driver '[P']]]<>\"\",\" - \" & Table_POSTInfo[[#This Row],[Ballast/ Driver '[P']]],\"\"),Table_POSTInfo[[#This Row],[Fixture Wattage '[P']]] & \"W\"),\"]\",\n  IF(AND(Table_POSTInfo[[#This Row],[Controls '[P']]]<>\"\",Table_POSTInfo[[#This Row],[Controls '[P']]]<>\"No Controls\"),\" - \" & Table_POSTInfo[[#This Row],[Controls '[P']]],\"\")\n  ),\n\"\"),\"\")","v":""},{"$f":"IF(OR(Table_POSTInfo[[#This Row],[Line]]=\"\",INDEX(Table_PREInfo[],Table_POSTInfo[[#This Row],[Line]],AA$3)=\"\"),\"\",INDEX(Table_PREInfo[],Table_POSTInfo[[#This Row],[Line]],AA$3))","v":""},{"$f":"IF(OR(Table_POSTInfo[[#This Row],[Line]]=\"\",INDEX(Table_PREInfo[],Table_POSTInfo[[#This Row],[Line]],AB$3)=\"\"),\"\",INDEX(Table_PREInfo[],Table_POSTInfo[[#This Row],[Line]],AB$3))","v":""},{"$f":"IF(OR(Table_POSTInfo[[#This Row],[Line]]=\"\",INDEX(Table_PREInfo[],Table_POSTInfo[[#This Row],[Line]],AC$3)=\"\"),\"\",INDEX(Table_PREInfo[],Table_POSTInfo[[#This Row],[Line]],AC$3))","v":""}]
[{"$f":"IF($A29=\"Line\",1,MAX($A$4:$A29)+1)","v":26},{"$f":"IF(OR(Table_POSTInfo[[#This Row],[Line]]=\"\",INDEX(Table_PREInfo[],Table_POSTInfo[[#This Row],[Line]],B$3)=\"\"),\"\",INDEX(Table_PREInfo[],Table_POSTInfo[[#This Row],[Line]],B$3))","v":false},{"$f":"IF(OR(Table_POSTInfo[[#This Row],[Line]]=\"\",INDEX(Table_PREInfo[],Table_POSTInfo[[#This Row],[Line]],C$3)=\"\"),\"\",INDEX(Table_PREInfo[],Table_POSTInfo[[#This Row],[Line]],C$3))","v":""},{"$f":"IF(ISNUMBER(MATCH(Table_POSTInfo[[#This Row],[Line]],Table_PREInspection[Line],0)),INDEX(Table_PREInspection[],MATCH(Table_POSTInfo[[#This Row],[Line]],Table_PREInspection[Line],0),MATCH('Post-Install Information'!D$3,'Pre-Install Inspection'!$A$3:$N$3,0)),IF(OR(Table_POSTInfo[[#This Row],[Line]]=\"\",INDEX(Table_PREInfo[],Table_POSTInfo[[#This Row],[Line]],D$3)=\"\"),\"\",INDEX(Table_PREInfo[],Table_POSTInfo[[#This Row],[Line]],D$3)))","v":""},{"$f":"IF(ISNUMBER(MATCH(Table_POSTInfo[[#This Row],[Line]],Table_PREInspection[Line],0)),INDEX(Table_PREInspection[],MATCH(Table_POSTInfo[[#This Row],[Line]],Table_PREInspection[Line],0),MATCH('Post-Install Information'!E$3,'Pre-Install Inspection'!$A$3:$N$3,0)),IF(OR(Table_POSTInfo[[#This Row],[Line]]=\"\",INDEX(Table_PREInfo[],Table_POSTInfo[[#This Row],[Line]],E$3)=\"\"),\"\",INDEX(Table_PREInfo[],Table_POSTInfo[[#This Row],[Line]],E$3)))","v":""},{"$f":"IF(ISNUMBER(MATCH(Table_POSTInfo[[#This Row],[Line]],Table_PREInspection[Line],0)),INDEX(Table_PREInspection[],MATCH(Table_POSTInfo[[#This Row],[Line]],Table_PREInspection[Line],0),MATCH('Post-Install Information'!F$3,'Pre-Install Inspection'!$A$3:$N$3,0)),IF(OR(Table_POSTInfo[[#This Row],[Line]]=\"\",INDEX(Table_PREInfo[],Table_POSTInfo[[#This Row],[Line]],F$3)=\"\"),\"\",INDEX(Table_PREInfo[],Table_POSTInfo[[#This Row],[Line]],F$3)))","v":""},null,{"$f":"IF(ISNUMBER(MATCH(Table_POSTInfo[[#This Row],[Line]],Table_PREInspection[Line],0)),INDEX(Table_PREInspection[],MATCH(Table_POSTInfo[[#This Row],[Line]],Table_PREInspection[Line],0),MATCH('Post-Install Information'!H$3,'Pre-Install Inspection'!$A$3:$N$3,0)),IF(OR(Table_POSTInfo[[#This Row],[Line]]=\"\",INDEX(Table_PREInfo[],Table_POSTInfo[[#This Row],[Line]],H$3)=\"\"),\"\",INDEX(Table_PREInfo[],Table_POSTInfo[[#This Row],[Line]],H$3)))","v":""},{"$f":"IF(ISNUMBER(MATCH(Table_POSTInfo[[#This Row],[Line]],Table_PREInspection[Line],0)),INDEX(Table_PREInspection[],MATCH(Table_POSTInfo[[#This Row],[Line]],Table_PREInspection[Line],0),MATCH('Post-Install Information'!I$3,'Pre-Install Inspection'!$A$3:$N$3,0)),IF(OR(Table_POSTInfo[[#This Row],[Line]]=\"\",INDEX(Table_PREInfo[],Table_POSTInfo[[#This Row],[Line]],I$3)=\"\"),\"\",INDEX(Table_PREInfo[],Table_POSTInfo[[#This Row],[Line]],I$3)))","v":""},{"$f":"IF(ISNUMBER(MATCH(Table_POSTInfo[[#This Row],[Line]],Table_PREInspection[Line],0)),INDEX(Table_PREInspection[],MATCH(Table_POSTInfo[[#This Row],[Line]],Table_PREInspection[Line],0),MATCH('Post-Install Information'!J$3,'Pre-Install Inspection'!$A$3:$N$3,0)),IF(OR(Table_POSTInfo[[#This Row],[Line]]=\"\",INDEX(Table_PREInfo[],Table_POSTInfo[[#This Row],[Line]],J$3)=\"\"),\"\",INDEX(Table_PREInfo[],Table_POSTInfo[[#This Row],[Line]],J$3)))","v":""},{"$f":"IF(ISNUMBER(MATCH(Table_POSTInfo[[#This Row],[Line]],Table_PREInspection[Line],0)),INDEX(Table_PREInspection[],MATCH(Table_POSTInfo[[#This Row],[Line]],Table_PREInspection[Line],0),MATCH('Post-Install Information'!K$3,'Pre-Install Inspection'!$A$3:$N$3,0)),IF(OR(Table_POSTInfo[[#This Row],[Line]]=\"\",INDEX(Table_PREInfo[],Table_POSTInfo[[#This Row],[Line]],K$3)=\"\"),\"\",INDEX(Table_PREInfo[],Table_POSTInfo[[#This Row],[Line]],K$3)))","v":""},{"$f":"IF(ISNUMBER(MATCH(Table_POSTInfo[[#This Row],[Line]],Table_PREInspection[Line],0)),INDEX(Table_PREInspection[],MATCH(Table_POSTInfo[[#This Row],[Line]],Table_PREInspection[Line],0),MATCH('Post-Install Information'!L$3,'Pre-Install Inspection'!$A$3:$N$3,0)),IF(OR(Table_POSTInfo[[#This Row],[Line]]=\"\",INDEX(Table_PREInfo[],Table_POSTInfo[[#This Row],[Line]],L$3)=\"\"),\"\",INDEX(Table_PREInfo[],Table_POSTInfo[[#This Row],[Line]],L$3)))","v":""},{"$f":"IF(ISNUMBER(MATCH(Table_POSTInfo[[#This Row],[Line]],Table_PREInspection[Line],0)),INDEX(Table_PREInspection[],MATCH(Table_POSTInfo[[#This Row],[Line]],Table_PREInspection[Line],0),MATCH('Post-Install Information'!M$3,'Pre-Install Inspection'!$A$3:$N$3,0)),IF(OR(Table_POSTInfo[[#This Row],[Line]]=\"\",INDEX(Table_PREInfo[],Table_POSTInfo[[#This Row],[Line]],M$3)=\"\"),\"\",INDEX(Table_PREInfo[],Table_POSTInfo[[#This Row],[Line]],M$3)))","v":""},{"$f":"IF(ISNUMBER(MATCH(Table_POSTInfo[[#This Row],[Line]],Table_PREInspection[Line],0)),INDEX(Table_PREInspection[],MATCH(Table_POSTInfo[[#This Row],[Line]],Table_PREInspection[Line],0),MATCH('Post-Install Information'!N$3,'Pre-Install Inspection'!$A$3:$N$3,0)),IF(OR(Table_POSTInfo[[#This Row],[Line]]=\"\",INDEX(Table_PREInfo[],Table_POSTInfo[[#This Row],[Line]],N$3)=\"\"),\"\",INDEX(Table_PREInfo[],Table_POSTInfo[[#This Row],[Line]],N$3)))","v":""},{"$f":"IF(ISNUMBER(MATCH(Table_POSTInfo[[#This Row],[Line]],Table_PREInspection[Line],0)),INDEX(Table_PREInspection[],MATCH(Table_POSTInfo[[#This Row],[Line]],Table_PREInspection[Line],0),MATCH('Post-Install Information'!O$3,'Pre-Install Inspection'!$A$3:$N$3,0)),IF(OR(Table_POSTInfo[[#This Row],[Line]]=\"\",INDEX(Table_PREInfo[],Table_POSTInfo[[#This Row],[Line]],O$3)=\"\"),\"\",INDEX(Table_PREInfo[],Table_POSTInfo[[#This Row],[Line]],O$3)))","v":""},{"$f":"IF(ISNUMBER(MATCH(Table_POSTInfo[[#This Row],[Line]],Table_PREInspection[Line],0)),INDEX(Table_PREInspection[],MATCH(Table_POSTInfo[[#This Row],[Line]],Table_PREInspection[Line],0),MATCH('Post-Install Information'!P$3,'Pre-Install Inspection'!$A$3:$N$3,0)),IF(OR(Table_POSTInfo[[#This Row],[Line]]=\"\",INDEX(Table_PREInfo[],Table_POSTInfo[[#This Row],[Line]],P$3)=\"\"),\"\",INDEX(Table_PREInfo[],Table_POSTInfo[[#This Row],[Line]],P$3)))","v":""},null,{"$f":"IF(Table_PREInfo[[#This Row],[Fixture Qty '[P']]]<>0,Table_PREInfo[[#This Row],[Fixture Qty '[P']]],IF(Table_POSTInfo[[#This Row],[Fixture Qty '[E']]]<>0,Table_POSTInfo[[#This Row],[Fixture Qty '[E']]],\"\"))","v":""},{"$f":"IF(OR(Table_POSTInfo[[#This Row],[Line]]=\"\",INDEX(Table_PREInfo[],Table_POSTInfo[[#This Row],[Line]],S$3)=\"\"),\"\",INDEX(Table_PREInfo[],Table_POSTInfo[[#This Row],[Line]],S$3))","v":""},{"$f":"IF(OR(Table_POSTInfo[[#This Row],[Line]]=\"\",INDEX(Table_PREInfo[],Table_POSTInfo[[#This Row],[Line]],T$3)=\"\"),\"\",INDEX(Table_PREInfo[],Table_POSTInfo[[#This Row],[Line]],T$3))","v":""},{"$f":"IF(OR(Table_POSTInfo[[#This Row],[Line]]=\"\",INDEX(Table_PREInfo[],Table_POSTInfo[[#This Row],[Line]],U$3)=\"\"),\"\",INDEX(Table_PREInfo[],Table_POSTInfo[[#This Row],[Line]],U$3))","v":""},{"$f":"IF(OR(Table_POSTInfo[[#This Row],[Line]]=\"\",INDEX(Table_PREInfo[],Table_POSTInfo[[#This Row],[Line]],V$3)=\"\"),\"\",INDEX(Table_PREInfo[],Table_POSTInfo[[#This Row],[Line]],V$3))","v":""},{"$f":"IFERROR(\nIFERROR(OFFSET(Table_TypWattage[[#Headers],[Technology]],MATCH(Table_POSTInfo[[#This Row],[Fixture Technology '[P']]],Table_TypWattage[Technology],0)+MATCH(Table_POSTInfo[[#This Row],[Fixture/ Lamp Wattage '[P']]],INDIRECT(SUBSTITUTE(SUBSTITUTE(Table_POSTInfo[[#This Row],[Fixture Technology '[P']]],\" \",\"_\"),\"-\",\"_\")),0)-1,MATCH(Table_POSTInfo[[#This Row],['# Lamps/ Fixture '[P']]],'Measure Tables'!$Q$2:$V$2,0)+1),IF(Table_POSTInfo[[#This Row],[IsActive]],IF(AND(Table_POSTInfo[[#This Row],['# Lamps/ Fixture '[P']]]<>\"\",Table_POSTInfo[[#This Row],['# Lamps/ Fixture '[P']]]>0,Table_POSTInfo[[#This Row],[Fixture/ Lamp Wattage '[P']]]>0),Table_POSTInfo[[#This Row],['# Lamps/ Fixture '[P']]]*Table_POSTInfo[[#This Row],[Fixture/ Lamp Wattage '[P']]],Table_POSTInfo[[#This Row],[Fixture/ Lamp Wattage '[P']]]),\"\")),\n\"\")","v":""},{"$f":"IF(OR(Table_POSTInfo[[#This Row],[Line]]=\"\",INDEX(Table_PREInfo[],Table_POSTInfo[[#This Row],[Line]],X$3)=\"\"),\"\",INDEX(Table_PREInfo[],Table_POSTInfo[[#This Row],[Line]],X$3))","v":""},{"$f":"IF(OR(Table_POSTInfo[[#This Row],[Line]]=\"\",INDEX(Table_PREInfo[],Table_POSTInfo[[#This Row],[Line]],Y$3)=\"\"),\"\",INDEX(Table_PREInfo[],Table_POSTInfo[[#This Row],[Line]],Y$3))","v":""},{"$f":"IFERROR(IF(Table_POSTInfo[[#This Row],[Interior/ Exterior]]<>\"\",\n  CONCATENATE(\n  Table_POSTInfo[[#This Row],[Fixture Technology '[P']]],\n  \" - \",Table_POSTInfo[[#This Row],[Fixture Type '[P']]],\" [\",\n  IF(Table_POSTInfo[[#This Row],['# Lamps/ Fixture '[P']]]>0,Table_POSTInfo[[#This Row],['# Lamps/ Fixture '[P']]] & \"L - \" & Table_POSTInfo[[#This Row],[Fixture/ Lamp Wattage '[P']]] & \"W\" & IF(Table_POSTInfo[[#This Row],[Ballast/ Driver '[P']]]<>\"\",\" - \" & Table_POSTInfo[[#This Row],[Ballast/ Driver '[P']]],\"\"),Table_POSTInfo[[#This Row],[Fixture Wattage '[P']]] & \"W\"),\"]\",\n  IF(AND(Table_POSTInfo[[#This Row],[Controls '[P']]]<>\"\",Table_POSTInfo[[#This Row],[Controls '[P']]]<>\"No Controls\"),\" - \" & Table_POSTInfo[[#This Row],[Controls '[P']]],\"\")\n  ),\n\"\"),\"\")","v":""},{"$f":"IF(OR(Table_POSTInfo[[#This Row],[Line]]=\"\",INDEX(Table_PREInfo[],Table_POSTInfo[[#This Row],[Line]],AA$3)=\"\"),\"\",INDEX(Table_PREInfo[],Table_POSTInfo[[#This Row],[Line]],AA$3))","v":""},{"$f":"IF(OR(Table_POSTInfo[[#This Row],[Line]]=\"\",INDEX(Table_PREInfo[],Table_POSTInfo[[#This Row],[Line]],AB$3)=\"\"),\"\",INDEX(Table_PREInfo[],Table_POSTInfo[[#This Row],[Line]],AB$3))","v":""},{"$f":"IF(OR(Table_POSTInfo[[#This Row],[Line]]=\"\",INDEX(Table_PREInfo[],Table_POSTInfo[[#This Row],[Line]],AC$3)=\"\"),\"\",INDEX(Table_PREInfo[],Table_POSTInfo[[#This Row],[Line]],AC$3))","v":""}]
[{"$f":"IF($A30=\"Line\",1,MAX($A$4:$A30)+1)","v":27},{"$f":"IF(OR(Table_POSTInfo[[#This Row],[Line]]=\"\",INDEX(Table_PREInfo[],Table_POSTInfo[[#This Row],[Line]],B$3)=\"\"),\"\",INDEX(Table_PREInfo[],Table_POSTInfo[[#This Row],[Line]],B$3))","v":false},{"$f":"IF(OR(Table_POSTInfo[[#This Row],[Line]]=\"\",INDEX(Table_PREInfo[],Table_POSTInfo[[#This Row],[Line]],C$3)=\"\"),\"\",INDEX(Table_PREInfo[],Table_POSTInfo[[#This Row],[Line]],C$3))","v":""},{"$f":"IF(ISNUMBER(MATCH(Table_POSTInfo[[#This Row],[Line]],Table_PREInspection[Line],0)),INDEX(Table_PREInspection[],MATCH(Table_POSTInfo[[#This Row],[Line]],Table_PREInspection[Line],0),MATCH('Post-Install Information'!D$3,'Pre-Install Inspection'!$A$3:$N$3,0)),IF(OR(Table_POSTInfo[[#This Row],[Line]]=\"\",INDEX(Table_PREInfo[],Table_POSTInfo[[#This Row],[Line]],D$3)=\"\"),\"\",INDEX(Table_PREInfo[],Table_POSTInfo[[#This Row],[Line]],D$3)))","v":""},{"$f":"IF(ISNUMBER(MATCH(Table_POSTInfo[[#This Row],[Line]],Table_PREInspection[Line],0)),INDEX(Table_PREInspection[],MATCH(Table_POSTInfo[[#This Row],[Line]],Table_PREInspection[Line],0),MATCH('Post-Install Information'!E$3,'Pre-Install Inspection'!$A$3:$N$3,0)),IF(OR(Table_POSTInfo[[#This Row],[Line]]=\"\",INDEX(Table_PREInfo[],Table_POSTInfo[[#This Row],[Line]],E$3)=\"\"),\"\",INDEX(Table_PREInfo[],Table_POSTInfo[[#This Row],[Line]],E$3)))","v":""},{"$f":"IF(ISNUMBER(MATCH(Table_POSTInfo[[#This Row],[Line]],Table_PREInspection[Line],0)),INDEX(Table_PREInspection[],MATCH(Table_POSTInfo[[#This Row],[Line]],Table_PREInspection[Line],0),MATCH('Post-Install Information'!F$3,'Pre-Install Inspection'!$A$3:$N$3,0)),IF(OR(Table_POSTInfo[[#This Row],[Line]]=\"\",INDEX(Table_PREInfo[],Table_POSTInfo[[#This Row],[Line]],F$3)=\"\"),\"\",INDEX(Table_PREInfo[],Table_POSTInfo[[#This Row],[Line]],F$3)))","v":""},null,{"$f":"IF(ISNUMBER(MATCH(Table_POSTInfo[[#This Row],[Line]],Table_PREInspection[Line],0)),INDEX(Table_PREInspection[],MATCH(Table_POSTInfo[[#This Row],[Line]],Table_PREInspection[Line],0),MATCH('Post-Install Information'!H$3,'Pre-Install Inspection'!$A$3:$N$3,0)),IF(OR(Table_POSTInfo[[#This Row],[Line]]=\"\",INDEX(Table_PREInfo[],Table_POSTInfo[[#This Row],[Line]],H$3)=\"\"),\"\",INDEX(Table_PREInfo[],Table_POSTInfo[[#This Row],[Line]],H$3)))","v":""},{"$f":"IF(ISNUMBER(MATCH(Table_POSTInfo[[#This Row],[Line]],Table_PREInspection[Line],0)),INDEX(Table_PREInspection[],MATCH(Table_POSTInfo[[#This Row],[Line]],Table_PREInspection[Line],0),MATCH('Post-Install Information'!I$3,'Pre-Install Inspection'!$A$3:$N$3,0)),IF(OR(Table_POSTInfo[[#This Row],[Line]]=\"\",INDEX(Table_PREInfo[],Table_POSTInfo[[#This Row],[Line]],I$3)=\"\"),\"\",INDEX(Table_PREInfo[],Table_POSTInfo[[#This Row],[Line]],I$3)))","v":""},{"$f":"IF(ISNUMBER(MATCH(Table_POSTInfo[[#This Row],[Line]],Table_PREInspection[Line],0)),INDEX(Table_PREInspection[],MATCH(Table_POSTInfo[[#This Row],[Line]],Table_PREInspection[Line],0),MATCH('Post-Install Information'!J$3,'Pre-Install Inspection'!$A$3:$N$3,0)),IF(OR(Table_POSTInfo[[#This Row],[Line]]=\"\",INDEX(Table_PREInfo[],Table_POSTInfo[[#This Row],[Line]],J$3)=\"\"),\"\",INDEX(Table_PREInfo[],Table_POSTInfo[[#This Row],[Line]],J$3)))","v":""},{"$f":"IF(ISNUMBER(MATCH(Table_POSTInfo[[#This Row],[Line]],Table_PREInspection[Line],0)),INDEX(Table_PREInspection[],MATCH(Table_POSTInfo[[#This Row],[Line]],Table_PREInspection[Line],0),MATCH('Post-Install Information'!K$3,'Pre-Install Inspection'!$A$3:$N$3,0)),IF(OR(Table_POSTInfo[[#This Row],[Line]]=\"\",INDEX(Table_PREInfo[],Table_POSTInfo[[#This Row],[Line]],K$3)=\"\"),\"\",INDEX(Table_PREInfo[],Table_POSTInfo[[#This Row],[Line]],K$3)))","v":""},{"$f":"IF(ISNUMBER(MATCH(Table_POSTInfo[[#This Row],[Line]],Table_PREInspection[Line],0)),INDEX(Table_PREInspection[],MATCH(Table_POSTInfo[[#This Row],[Line]],Table_PREInspection[Line],0),MATCH('Post-Install Information'!L$3,'Pre-Install Inspection'!$A$3:$N$3,0)),IF(OR(Table_POSTInfo[[#This Row],[Line]]=\"\",INDEX(Table_PREInfo[],Table_POSTInfo[[#This Row],[Line]],L$3)=\"\"),\"\",INDEX(Table_PREInfo[],Table_POSTInfo[[#This Row],[Line]],L$3)))","v":""},{"$f":"IF(ISNUMBER(MATCH(Table_POSTInfo[[#This Row],[Line]],Table_PREInspection[Line],0)),INDEX(Table_PREInspection[],MATCH(Table_POSTInfo[[#This Row],[Line]],Table_PREInspection[Line],0),MATCH('Post-Install Information'!M$3,'Pre-Install Inspection'!$A$3:$N$3,0)),IF(OR(Table_POSTInfo[[#This Row],[Line]]=\"\",INDEX(Table_PREInfo[],Table_POSTInfo[[#This Row],[Line]],M$3)=\"\"),\"\",INDEX(Table_PREInfo[],Table_POSTInfo[[#This Row],[Line]],M$3)))","v":""},{"$f":"IF(ISNUMBER(MATCH(Table_POSTInfo[[#This Row],[Line]],Table_PREInspection[Line],0)),INDEX(Table_PREInspection[],MATCH(Table_POSTInfo[[#This Row],[Line]],Table_PREInspection[Line],0),MATCH('Post-Install Information'!N$3,'Pre-Install Inspection'!$A$3:$N$3,0)),IF(OR(Table_POSTInfo[[#This Row],[Line]]=\"\",INDEX(Table_PREInfo[],Table_POSTInfo[[#This Row],[Line]],N$3)=\"\"),\"\",INDEX(Table_PREInfo[],Table_POSTInfo[[#This Row],[Line]],N$3)))","v":""},{"$f":"IF(ISNUMBER(MATCH(Table_POSTInfo[[#This Row],[Line]],Table_PREInspection[Line],0)),INDEX(Table_PREInspection[],MATCH(Table_POSTInfo[[#This Row],[Line]],Table_PREInspection[Line],0),MATCH('Post-Install Information'!O$3,'Pre-Install Inspection'!$A$3:$N$3,0)),IF(OR(Table_POSTInfo[[#This Row],[Line]]=\"\",INDEX(Table_PREInfo[],Table_POSTInfo[[#This Row],[Line]],O$3)=\"\"),\"\",INDEX(Table_PREInfo[],Table_POSTInfo[[#This Row],[Line]],O$3)))","v":""},{"$f":"IF(ISNUMBER(MATCH(Table_POSTInfo[[#This Row],[Line]],Table_PREInspection[Line],0)),INDEX(Table_PREInspection[],MATCH(Table_POSTInfo[[#This Row],[Line]],Table_PREInspection[Line],0),MATCH('Post-Install Information'!P$3,'Pre-Install Inspection'!$A$3:$N$3,0)),IF(OR(Table_POSTInfo[[#This Row],[Line]]=\"\",INDEX(Table_PREInfo[],Table_POSTInfo[[#This Row],[Line]],P$3)=\"\"),\"\",INDEX(Table_PREInfo[],Table_POSTInfo[[#This Row],[Line]],P$3)))","v":""},null,{"$f":"IF(Table_PREInfo[[#This Row],[Fixture Qty '[P']]]<>0,Table_PREInfo[[#This Row],[Fixture Qty '[P']]],IF(Table_POSTInfo[[#This Row],[Fixture Qty '[E']]]<>0,Table_POSTInfo[[#This Row],[Fixture Qty '[E']]],\"\"))","v":""},{"$f":"IF(OR(Table_POSTInfo[[#This Row],[Line]]=\"\",INDEX(Table_PREInfo[],Table_POSTInfo[[#This Row],[Line]],S$3)=\"\"),\"\",INDEX(Table_PREInfo[],Table_POSTInfo[[#This Row],[Line]],S$3))","v":""},{"$f":"IF(OR(Table_POSTInfo[[#This Row],[Line]]=\"\",INDEX(Table_PREInfo[],Table_POSTInfo[[#This Row],[Line]],T$3)=\"\"),\"\",INDEX(Table_PREInfo[],Table_POSTInfo[[#This Row],[Line]],T$3))","v":""},{"$f":"IF(OR(Table_POSTInfo[[#This Row],[Line]]=\"\",INDEX(Table_PREInfo[],Table_POSTInfo[[#This Row],[Line]],U$3)=\"\"),\"\",INDEX(Table_PREInfo[],Table_POSTInfo[[#This Row],[Line]],U$3))","v":""},{"$f":"IF(OR(Table_POSTInfo[[#This Row],[Line]]=\"\",INDEX(Table_PREInfo[],Table_POSTInfo[[#This Row],[Line]],V$3)=\"\"),\"\",INDEX(Table_PREInfo[],Table_POSTInfo[[#This Row],[Line]],V$3))","v":""},{"$f":"IFERROR(\nIFERROR(OFFSET(Table_TypWattage[[#Headers],[Technology]],MATCH(Table_POSTInfo[[#This Row],[Fixture Technology '[P']]],Table_TypWattage[Technology],0)+MATCH(Table_POSTInfo[[#This Row],[Fixture/ Lamp Wattage '[P']]],INDIRECT(SUBSTITUTE(SUBSTITUTE(Table_POSTInfo[[#This Row],[Fixture Technology '[P']]],\" \",\"_\"),\"-\",\"_\")),0)-1,MATCH(Table_POSTInfo[[#This Row],['# Lamps/ Fixture '[P']]],'Measure Tables'!$Q$2:$V$2,0)+1),IF(Table_POSTInfo[[#This Row],[IsActive]],IF(AND(Table_POSTInfo[[#This Row],['# Lamps/ Fixture '[P']]]<>\"\",Table_POSTInfo[[#This Row],['# Lamps/ Fixture '[P']]]>0,Table_POSTInfo[[#This Row],[Fixture/ Lamp Wattage '[P']]]>0),Table_POSTInfo[[#This Row],['# Lamps/ Fixture '[P']]]*Table_POSTInfo[[#This Row],[Fixture/ Lamp Wattage '[P']]],Table_POSTInfo[[#This Row],[Fixture/ Lamp Wattage '[P']]]),\"\")),\n\"\")","v":""},{"$f":"IF(OR(Table_POSTInfo[[#This Row],[Line]]=\"\",INDEX(Table_PREInfo[],Table_POSTInfo[[#This Row],[Line]],X$3)=\"\"),\"\",INDEX(Table_PREInfo[],Table_POSTInfo[[#This Row],[Line]],X$3))","v":""},{"$f":"IF(OR(Table_POSTInfo[[#This Row],[Line]]=\"\",INDEX(Table_PREInfo[],Table_POSTInfo[[#This Row],[Line]],Y$3)=\"\"),\"\",INDEX(Table_PREInfo[],Table_POSTInfo[[#This Row],[Line]],Y$3))","v":""},{"$f":"IFERROR(IF(Table_POSTInfo[[#This Row],[Interior/ Exterior]]<>\"\",\n  CONCATENATE(\n  Table_POSTInfo[[#This Row],[Fixture Technology '[P']]],\n  \" - \",Table_POSTInfo[[#This Row],[Fixture Type '[P']]],\" [\",\n  IF(Table_POSTInfo[[#This Row],['# Lamps/ Fixture '[P']]]>0,Table_POSTInfo[[#This Row],['# Lamps/ Fixture '[P']]] & \"L - \" & Table_POSTInfo[[#This Row],[Fixture/ Lamp Wattage '[P']]] & \"W\" & IF(Table_POSTInfo[[#This Row],[Ballast/ Driver '[P']]]<>\"\",\" - \" & Table_POSTInfo[[#This Row],[Ballast/ Driver '[P']]],\"\"),Table_POSTInfo[[#This Row],[Fixture Wattage '[P']]] & \"W\"),\"]\",\n  IF(AND(Table_POSTInfo[[#This Row],[Controls '[P']]]<>\"\",Table_POSTInfo[[#This Row],[Controls '[P']]]<>\"No Controls\"),\" - \" & Table_POSTInfo[[#This Row],[Controls '[P']]],\"\")\n  ),\n\"\"),\"\")","v":""},{"$f":"IF(OR(Table_POSTInfo[[#This Row],[Line]]=\"\",INDEX(Table_PREInfo[],Table_POSTInfo[[#This Row],[Line]],AA$3)=\"\"),\"\",INDEX(Table_PREInfo[],Table_POSTInfo[[#This Row],[Line]],AA$3))","v":""},{"$f":"IF(OR(Table_POSTInfo[[#This Row],[Line]]=\"\",INDEX(Table_PREInfo[],Table_POSTInfo[[#This Row],[Line]],AB$3)=\"\"),\"\",INDEX(Table_PREInfo[],Table_POSTInfo[[#This Row],[Line]],AB$3))","v":""},{"$f":"IF(OR(Table_POSTInfo[[#This Row],[Line]]=\"\",INDEX(Table_PREInfo[],Table_POSTInfo[[#This Row],[Line]],AC$3)=\"\"),\"\",INDEX(Table_PREInfo[],Table_POSTInfo[[#This Row],[Line]],AC$3))","v":""}]
[{"$f":"IF($A31=\"Line\",1,MAX($A$4:$A31)+1)","v":28},{"$f":"IF(OR(Table_POSTInfo[[#This Row],[Line]]=\"\",INDEX(Table_PREInfo[],Table_POSTInfo[[#This Row],[Line]],B$3)=\"\"),\"\",INDEX(Table_PREInfo[],Table_POSTInfo[[#This Row],[Line]],B$3))","v":false},{"$f":"IF(OR(Table_POSTInfo[[#This Row],[Line]]=\"\",INDEX(Table_PREInfo[],Table_POSTInfo[[#This Row],[Line]],C$3)=\"\"),\"\",INDEX(Table_PREInfo[],Table_POSTInfo[[#This Row],[Line]],C$3))","v":""},{"$f":"IF(ISNUMBER(MATCH(Table_POSTInfo[[#This Row],[Line]],Table_PREInspection[Line],0)),INDEX(Table_PREInspection[],MATCH(Table_POSTInfo[[#This Row],[Line]],Table_PREInspection[Line],0),MATCH('Post-Install Information'!D$3,'Pre-Install Inspection'!$A$3:$N$3,0)),IF(OR(Table_POSTInfo[[#This Row],[Line]]=\"\",INDEX(Table_PREInfo[],Table_POSTInfo[[#This Row],[Line]],D$3)=\"\"),\"\",INDEX(Table_PREInfo[],Table_POSTInfo[[#This Row],[Line]],D$3)))","v":""},{"$f":"IF(ISNUMBER(MATCH(Table_POSTInfo[[#This Row],[Line]],Table_PREInspection[Line],0)),INDEX(Table_PREInspection[],MATCH(Table_POSTInfo[[#This Row],[Line]],Table_PREInspection[Line],0),MATCH('Post-Install Information'!E$3,'Pre-Install Inspection'!$A$3:$N$3,0)),IF(OR(Table_POSTInfo[[#This Row],[Line]]=\"\",INDEX(Table_PREInfo[],Table_POSTInfo[[#This Row],[Line]],E$3)=\"\"),\"\",INDEX(Table_PREInfo[],Table_POSTInfo[[#This Row],[Line]],E$3)))","v":""},{"$f":"IF(ISNUMBER(MATCH(Table_POSTInfo[[#This Row],[Line]],Table_PREInspection[Line],0)),INDEX(Table_PREInspection[],MATCH(Table_POSTInfo[[#This Row],[Line]],Table_PREInspection[Line],0),MATCH('Post-Install Information'!F$3,'Pre-Install Inspection'!$A$3:$N$3,0)),IF(OR(Table_POSTInfo[[#This Row],[Line]]=\"\",INDEX(Table_PREInfo[],Table_POSTInfo[[#This Row],[Line]],F$3)=\"\"),\"\",INDEX(Table_PREInfo[],Table_POSTInfo[[#This Row],[Line]],F$3)))","v":""},null,{"$f":"IF(ISNUMBER(MATCH(Table_POSTInfo[[#This Row],[Line]],Table_PREInspection[Line],0)),INDEX(Table_PREInspection[],MATCH(Table_POSTInfo[[#This Row],[Line]],Table_PREInspection[Line],0),MATCH('Post-Install Information'!H$3,'Pre-Install Inspection'!$A$3:$N$3,0)),IF(OR(Table_POSTInfo[[#This Row],[Line]]=\"\",INDEX(Table_PREInfo[],Table_POSTInfo[[#This Row],[Line]],H$3)=\"\"),\"\",INDEX(Table_PREInfo[],Table_POSTInfo[[#This Row],[Line]],H$3)))","v":""},{"$f":"IF(ISNUMBER(MATCH(Table_POSTInfo[[#This Row],[Line]],Table_PREInspection[Line],0)),INDEX(Table_PREInspection[],MATCH(Table_POSTInfo[[#This Row],[Line]],Table_PREInspection[Line],0),MATCH('Post-Install Information'!I$3,'Pre-Install Inspection'!$A$3:$N$3,0)),IF(OR(Table_POSTInfo[[#This Row],[Line]]=\"\",INDEX(Table_PREInfo[],Table_POSTInfo[[#This Row],[Line]],I$3)=\"\"),\"\",INDEX(Table_PREInfo[],Table_POSTInfo[[#This Row],[Line]],I$3)))","v":""},{"$f":"IF(ISNUMBER(MATCH(Table_POSTInfo[[#This Row],[Line]],Table_PREInspection[Line],0)),INDEX(Table_PREInspection[],MATCH(Table_POSTInfo[[#This Row],[Line]],Table_PREInspection[Line],0),MATCH('Post-Install Information'!J$3,'Pre-Install Inspection'!$A$3:$N$3,0)),IF(OR(Table_POSTInfo[[#This Row],[Line]]=\"\",INDEX(Table_PREInfo[],Table_POSTInfo[[#This Row],[Line]],J$3)=\"\"),\"\",INDEX(Table_PREInfo[],Table_POSTInfo[[#This Row],[Line]],J$3)))","v":""},{"$f":"IF(ISNUMBER(MATCH(Table_POSTInfo[[#This Row],[Line]],Table_PREInspection[Line],0)),INDEX(Table_PREInspection[],MATCH(Table_POSTInfo[[#This Row],[Line]],Table_PREInspection[Line],0),MATCH('Post-Install Information'!K$3,'Pre-Install Inspection'!$A$3:$N$3,0)),IF(OR(Table_POSTInfo[[#This Row],[Line]]=\"\",INDEX(Table_PREInfo[],Table_POSTInfo[[#This Row],[Line]],K$3)=\"\"),\"\",INDEX(Table_PREInfo[],Table_POSTInfo[[#This Row],[Line]],K$3)))","v":""},{"$f":"IF(ISNUMBER(MATCH(Table_POSTInfo[[#This Row],[Line]],Table_PREInspection[Line],0)),INDEX(Table_PREInspection[],MATCH(Table_POSTInfo[[#This Row],[Line]],Table_PREInspection[Line],0),MATCH('Post-Install Information'!L$3,'Pre-Install Inspection'!$A$3:$N$3,0)),IF(OR(Table_POSTInfo[[#This Row],[Line]]=\"\",INDEX(Table_PREInfo[],Table_POSTInfo[[#This Row],[Line]],L$3)=\"\"),\"\",INDEX(Table_PREInfo[],Table_POSTInfo[[#This Row],[Line]],L$3)))","v":""},{"$f":"IF(ISNUMBER(MATCH(Table_POSTInfo[[#This Row],[Line]],Table_PREInspection[Line],0)),INDEX(Table_PREInspection[],MATCH(Table_POSTInfo[[#This Row],[Line]],Table_PREInspection[Line],0),MATCH('Post-Install Information'!M$3,'Pre-Install Inspection'!$A$3:$N$3,0)),IF(OR(Table_POSTInfo[[#This Row],[Line]]=\"\",INDEX(Table_PREInfo[],Table_POSTInfo[[#This Row],[Line]],M$3)=\"\"),\"\",INDEX(Table_PREInfo[],Table_POSTInfo[[#This Row],[Line]],M$3)))","v":""},{"$f":"IF(ISNUMBER(MATCH(Table_POSTInfo[[#This Row],[Line]],Table_PREInspection[Line],0)),INDEX(Table_PREInspection[],MATCH(Table_POSTInfo[[#This Row],[Line]],Table_PREInspection[Line],0),MATCH('Post-Install Information'!N$3,'Pre-Install Inspection'!$A$3:$N$3,0)),IF(OR(Table_POSTInfo[[#This Row],[Line]]=\"\",INDEX(Table_PREInfo[],Table_POSTInfo[[#This Row],[Line]],N$3)=\"\"),\"\",INDEX(Table_PREInfo[],Table_POSTInfo[[#This Row],[Line]],N$3)))","v":""},{"$f":"IF(ISNUMBER(MATCH(Table_POSTInfo[[#This Row],[Line]],Table_PREInspection[Line],0)),INDEX(Table_PREInspection[],MATCH(Table_POSTInfo[[#This Row],[Line]],Table_PREInspection[Line],0),MATCH('Post-Install Information'!O$3,'Pre-Install Inspection'!$A$3:$N$3,0)),IF(OR(Table_POSTInfo[[#This Row],[Line]]=\"\",INDEX(Table_PREInfo[],Table_POSTInfo[[#This Row],[Line]],O$3)=\"\"),\"\",INDEX(Table_PREInfo[],Table_POSTInfo[[#This Row],[Line]],O$3)))","v":""},{"$f":"IF(ISNUMBER(MATCH(Table_POSTInfo[[#This Row],[Line]],Table_PREInspection[Line],0)),INDEX(Table_PREInspection[],MATCH(Table_POSTInfo[[#This Row],[Line]],Table_PREInspection[Line],0),MATCH('Post-Install Information'!P$3,'Pre-Install Inspection'!$A$3:$N$3,0)),IF(OR(Table_POSTInfo[[#This Row],[Line]]=\"\",INDEX(Table_PREInfo[],Table_POSTInfo[[#This Row],[Line]],P$3)=\"\"),\"\",INDEX(Table_PREInfo[],Table_POSTInfo[[#This Row],[Line]],P$3)))","v":""},null,{"$f":"IF(Table_PREInfo[[#This Row],[Fixture Qty '[P']]]<>0,Table_PREInfo[[#This Row],[Fixture Qty '[P']]],IF(Table_POSTInfo[[#This Row],[Fixture Qty '[E']]]<>0,Table_POSTInfo[[#This Row],[Fixture Qty '[E']]],\"\"))","v":""},{"$f":"IF(OR(Table_POSTInfo[[#This Row],[Line]]=\"\",INDEX(Table_PREInfo[],Table_POSTInfo[[#This Row],[Line]],S$3)=\"\"),\"\",INDEX(Table_PREInfo[],Table_POSTInfo[[#This Row],[Line]],S$3))","v":""},{"$f":"IF(OR(Table_POSTInfo[[#This Row],[Line]]=\"\",INDEX(Table_PREInfo[],Table_POSTInfo[[#This Row],[Line]],T$3)=\"\"),\"\",INDEX(Table_PREInfo[],Table_POSTInfo[[#This Row],[Line]],T$3))","v":""},{"$f":"IF(OR(Table_POSTInfo[[#This Row],[Line]]=\"\",INDEX(Table_PREInfo[],Table_POSTInfo[[#This Row],[Line]],U$3)=\"\"),\"\",INDEX(Table_PREInfo[],Table_POSTInfo[[#This Row],[Line]],U$3))","v":""},{"$f":"IF(OR(Table_POSTInfo[[#This Row],[Line]]=\"\",INDEX(Table_PREInfo[],Table_POSTInfo[[#This Row],[Line]],V$3)=\"\"),\"\",INDEX(Table_PREInfo[],Table_POSTInfo[[#This Row],[Line]],V$3))","v":""},{"$f":"IFERROR(\nIFERROR(OFFSET(Table_TypWattage[[#Headers],[Technology]],MATCH(Table_POSTInfo[[#This Row],[Fixture Technology '[P']]],Table_TypWattage[Technology],0)+MATCH(Table_POSTInfo[[#This Row],[Fixture/ Lamp Wattage '[P']]],INDIRECT(SUBSTITUTE(SUBSTITUTE(Table_POSTInfo[[#This Row],[Fixture Technology '[P']]],\" \",\"_\"),\"-\",\"_\")),0)-1,MATCH(Table_POSTInfo[[#This Row],['# Lamps/ Fixture '[P']]],'Measure Tables'!$Q$2:$V$2,0)+1),IF(Table_POSTInfo[[#This Row],[IsActive]],IF(AND(Table_POSTInfo[[#This Row],['# Lamps/ Fixture '[P']]]<>\"\",Table_POSTInfo[[#This Row],['# Lamps/ Fixture '[P']]]>0,Table_POSTInfo[[#This Row],[Fixture/ Lamp Wattage '[P']]]>0),Table_POSTInfo[[#This Row],['# Lamps/ Fixture '[P']]]*Table_POSTInfo[[#This Row],[Fixture/ Lamp Wattage '[P']]],Table_POSTInfo[[#This Row],[Fixture/ Lamp Wattage '[P']]]),\"\")),\n\"\")","v":""},{"$f":"IF(OR(Table_POSTInfo[[#This Row],[Line]]=\"\",INDEX(Table_PREInfo[],Table_POSTInfo[[#This Row],[Line]],X$3)=\"\"),\"\",INDEX(Table_PREInfo[],Table_POSTInfo[[#This Row],[Line]],X$3))","v":""},{"$f":"IF(OR(Table_POSTInfo[[#This Row],[Line]]=\"\",INDEX(Table_PREInfo[],Table_POSTInfo[[#This Row],[Line]],Y$3)=\"\"),\"\",INDEX(Table_PREInfo[],Table_POSTInfo[[#This Row],[Line]],Y$3))","v":""},{"$f":"IFERROR(IF(Table_POSTInfo[[#This Row],[Interior/ Exterior]]<>\"\",\n  CONCATENATE(\n  Table_POSTInfo[[#This Row],[Fixture Technology '[P']]],\n  \" - \",Table_POSTInfo[[#This Row],[Fixture Type '[P']]],\" [\",\n  IF(Table_POSTInfo[[#This Row],['# Lamps/ Fixture '[P']]]>0,Table_POSTInfo[[#This Row],['# Lamps/ Fixture '[P']]] & \"L - \" & Table_POSTInfo[[#This Row],[Fixture/ Lamp Wattage '[P']]] & \"W\" & IF(Table_POSTInfo[[#This Row],[Ballast/ Driver '[P']]]<>\"\",\" - \" & Table_POSTInfo[[#This Row],[Ballast/ Driver '[P']]],\"\"),Table_POSTInfo[[#This Row],[Fixture Wattage '[P']]] & \"W\"),\"]\",\n  IF(AND(Table_POSTInfo[[#This Row],[Controls '[P']]]<>\"\",Table_POSTInfo[[#This Row],[Controls '[P']]]<>\"No Controls\"),\" - \" & Table_POSTInfo[[#This Row],[Controls '[P']]],\"\")\n  ),\n\"\"),\"\")","v":""},{"$f":"IF(OR(Table_POSTInfo[[#This Row],[Line]]=\"\",INDEX(Table_PREInfo[],Table_POSTInfo[[#This Row],[Line]],AA$3)=\"\"),\"\",INDEX(Table_PREInfo[],Table_POSTInfo[[#This Row],[Line]],AA$3))","v":""},{"$f":"IF(OR(Table_POSTInfo[[#This Row],[Line]]=\"\",INDEX(Table_PREInfo[],Table_POSTInfo[[#This Row],[Line]],AB$3)=\"\"),\"\",INDEX(Table_PREInfo[],Table_POSTInfo[[#This Row],[Line]],AB$3))","v":""},{"$f":"IF(OR(Table_POSTInfo[[#This Row],[Line]]=\"\",INDEX(Table_PREInfo[],Table_POSTInfo[[#This Row],[Line]],AC$3)=\"\"),\"\",INDEX(Table_PREInfo[],Table_POSTInfo[[#This Row],[Line]],AC$3))","v":""}]
[{"$f":"IF($A32=\"Line\",1,MAX($A$4:$A32)+1)","v":29},{"$f":"IF(OR(Table_POSTInfo[[#This Row],[Line]]=\"\",INDEX(Table_PREInfo[],Table_POSTInfo[[#This Row],[Line]],B$3)=\"\"),\"\",INDEX(Table_PREInfo[],Table_POSTInfo[[#This Row],[Line]],B$3))","v":false},{"$f":"IF(OR(Table_POSTInfo[[#This Row],[Line]]=\"\",INDEX(Table_PREInfo[],Table_POSTInfo[[#This Row],[Line]],C$3)=\"\"),\"\",INDEX(Table_PREInfo[],Table_POSTInfo[[#This Row],[Line]],C$3))","v":""},{"$f":"IF(ISNUMBER(MATCH(Table_POSTInfo[[#This Row],[Line]],Table_PREInspection[Line],0)),INDEX(Table_PREInspection[],MATCH(Table_POSTInfo[[#This Row],[Line]],Table_PREInspection[Line],0),MATCH('Post-Install Information'!D$3,'Pre-Install Inspection'!$A$3:$N$3,0)),IF(OR(Table_POSTInfo[[#This Row],[Line]]=\"\",INDEX(Table_PREInfo[],Table_POSTInfo[[#This Row],[Line]],D$3)=\"\"),\"\",INDEX(Table_PREInfo[],Table_POSTInfo[[#This Row],[Line]],D$3)))","v":""},{"$f":"IF(ISNUMBER(MATCH(Table_POSTInfo[[#This Row],[Line]],Table_PREInspection[Line],0)),INDEX(Table_PREInspection[],MATCH(Table_POSTInfo[[#This Row],[Line]],Table_PREInspection[Line],0),MATCH('Post-Install Information'!E$3,'Pre-Install Inspection'!$A$3:$N$3,0)),IF(OR(Table_POSTInfo[[#This Row],[Line]]=\"\",INDEX(Table_PREInfo[],Table_POSTInfo[[#This Row],[Line]],E$3)=\"\"),\"\",INDEX(Table_PREInfo[],Table_POSTInfo[[#This Row],[Line]],E$3)))","v":""},{"$f":"IF(ISNUMBER(MATCH(Table_POSTInfo[[#This Row],[Line]],Table_PREInspection[Line],0)),INDEX(Table_PREInspection[],MATCH(Table_POSTInfo[[#This Row],[Line]],Table_PREInspection[Line],0),MATCH('Post-Install Information'!F$3,'Pre-Install Inspection'!$A$3:$N$3,0)),IF(OR(Table_POSTInfo[[#This Row],[Line]]=\"\",INDEX(Table_PREInfo[],Table_POSTInfo[[#This Row],[Line]],F$3)=\"\"),\"\",INDEX(Table_PREInfo[],Table_POSTInfo[[#This Row],[Line]],F$3)))","v":""},null,{"$f":"IF(ISNUMBER(MATCH(Table_POSTInfo[[#This Row],[Line]],Table_PREInspection[Line],0)),INDEX(Table_PREInspection[],MATCH(Table_POSTInfo[[#This Row],[Line]],Table_PREInspection[Line],0),MATCH('Post-Install Information'!H$3,'Pre-Install Inspection'!$A$3:$N$3,0)),IF(OR(Table_POSTInfo[[#This Row],[Line]]=\"\",INDEX(Table_PREInfo[],Table_POSTInfo[[#This Row],[Line]],H$3)=\"\"),\"\",INDEX(Table_PREInfo[],Table_POSTInfo[[#This Row],[Line]],H$3)))","v":""},{"$f":"IF(ISNUMBER(MATCH(Table_POSTInfo[[#This Row],[Line]],Table_PREInspection[Line],0)),INDEX(Table_PREInspection[],MATCH(Table_POSTInfo[[#This Row],[Line]],Table_PREInspection[Line],0),MATCH('Post-Install Information'!I$3,'Pre-Install Inspection'!$A$3:$N$3,0)),IF(OR(Table_POSTInfo[[#This Row],[Line]]=\"\",INDEX(Table_PREInfo[],Table_POSTInfo[[#This Row],[Line]],I$3)=\"\"),\"\",INDEX(Table_PREInfo[],Table_POSTInfo[[#This Row],[Line]],I$3)))","v":""},{"$f":"IF(ISNUMBER(MATCH(Table_POSTInfo[[#This Row],[Line]],Table_PREInspection[Line],0)),INDEX(Table_PREInspection[],MATCH(Table_POSTInfo[[#This Row],[Line]],Table_PREInspection[Line],0),MATCH('Post-Install Information'!J$3,'Pre-Install Inspection'!$A$3:$N$3,0)),IF(OR(Table_POSTInfo[[#This Row],[Line]]=\"\",INDEX(Table_PREInfo[],Table_POSTInfo[[#This Row],[Line]],J$3)=\"\"),\"\",INDEX(Table_PREInfo[],Table_POSTInfo[[#This Row],[Line]],J$3)))","v":""},{"$f":"IF(ISNUMBER(MATCH(Table_POSTInfo[[#This Row],[Line]],Table_PREInspection[Line],0)),INDEX(Table_PREInspection[],MATCH(Table_POSTInfo[[#This Row],[Line]],Table_PREInspection[Line],0),MATCH('Post-Install Information'!K$3,'Pre-Install Inspection'!$A$3:$N$3,0)),IF(OR(Table_POSTInfo[[#This Row],[Line]]=\"\",INDEX(Table_PREInfo[],Table_POSTInfo[[#This Row],[Line]],K$3)=\"\"),\"\",INDEX(Table_PREInfo[],Table_POSTInfo[[#This Row],[Line]],K$3)))","v":""},{"$f":"IF(ISNUMBER(MATCH(Table_POSTInfo[[#This Row],[Line]],Table_PREInspection[Line],0)),INDEX(Table_PREInspection[],MATCH(Table_POSTInfo[[#This Row],[Line]],Table_PREInspection[Line],0),MATCH('Post-Install Information'!L$3,'Pre-Install Inspection'!$A$3:$N$3,0)),IF(OR(Table_POSTInfo[[#This Row],[Line]]=\"\",INDEX(Table_PREInfo[],Table_POSTInfo[[#This Row],[Line]],L$3)=\"\"),\"\",INDEX(Table_PREInfo[],Table_POSTInfo[[#This Row],[Line]],L$3)))","v":""},{"$f":"IF(ISNUMBER(MATCH(Table_POSTInfo[[#This Row],[Line]],Table_PREInspection[Line],0)),INDEX(Table_PREInspection[],MATCH(Table_POSTInfo[[#This Row],[Line]],Table_PREInspection[Line],0),MATCH('Post-Install Information'!M$3,'Pre-Install Inspection'!$A$3:$N$3,0)),IF(OR(Table_POSTInfo[[#This Row],[Line]]=\"\",INDEX(Table_PREInfo[],Table_POSTInfo[[#This Row],[Line]],M$3)=\"\"),\"\",INDEX(Table_PREInfo[],Table_POSTInfo[[#This Row],[Line]],M$3)))","v":""},{"$f":"IF(ISNUMBER(MATCH(Table_POSTInfo[[#This Row],[Line]],Table_PREInspection[Line],0)),INDEX(Table_PREInspection[],MATCH(Table_POSTInfo[[#This Row],[Line]],Table_PREInspection[Line],0),MATCH('Post-Install Information'!N$3,'Pre-Install Inspection'!$A$3:$N$3,0)),IF(OR(Table_POSTInfo[[#This Row],[Line]]=\"\",INDEX(Table_PREInfo[],Table_POSTInfo[[#This Row],[Line]],N$3)=\"\"),\"\",INDEX(Table_PREInfo[],Table_POSTInfo[[#This Row],[Line]],N$3)))","v":""},{"$f":"IF(ISNUMBER(MATCH(Table_POSTInfo[[#This Row],[Line]],Table_PREInspection[Line],0)),INDEX(Table_PREInspection[],MATCH(Table_POSTInfo[[#This Row],[Line]],Table_PREInspection[Line],0),MATCH('Post-Install Information'!O$3,'Pre-Install Inspection'!$A$3:$N$3,0)),IF(OR(Table_POSTInfo[[#This Row],[Line]]=\"\",INDEX(Table_PREInfo[],Table_POSTInfo[[#This Row],[Line]],O$3)=\"\"),\"\",INDEX(Table_PREInfo[],Table_POSTInfo[[#This Row],[Line]],O$3)))","v":""},{"$f":"IF(ISNUMBER(MATCH(Table_POSTInfo[[#This Row],[Line]],Table_PREInspection[Line],0)),INDEX(Table_PREInspection[],MATCH(Table_POSTInfo[[#This Row],[Line]],Table_PREInspection[Line],0),MATCH('Post-Install Information'!P$3,'Pre-Install Inspection'!$A$3:$N$3,0)),IF(OR(Table_POSTInfo[[#This Row],[Line]]=\"\",INDEX(Table_PREInfo[],Table_POSTInfo[[#This Row],[Line]],P$3)=\"\"),\"\",INDEX(Table_PREInfo[],Table_POSTInfo[[#This Row],[Line]],P$3)))","v":""},null,{"$f":"IF(Table_PREInfo[[#This Row],[Fixture Qty '[P']]]<>0,Table_PREInfo[[#This Row],[Fixture Qty '[P']]],IF(Table_POSTInfo[[#This Row],[Fixture Qty '[E']]]<>0,Table_POSTInfo[[#This Row],[Fixture Qty '[E']]],\"\"))","v":""},{"$f":"IF(OR(Table_POSTInfo[[#This Row],[Line]]=\"\",INDEX(Table_PREInfo[],Table_POSTInfo[[#This Row],[Line]],S$3)=\"\"),\"\",INDEX(Table_PREInfo[],Table_POSTInfo[[#This Row],[Line]],S$3))","v":""},{"$f":"IF(OR(Table_POSTInfo[[#This Row],[Line]]=\"\",INDEX(Table_PREInfo[],Table_POSTInfo[[#This Row],[Line]],T$3)=\"\"),\"\",INDEX(Table_PREInfo[],Table_POSTInfo[[#This Row],[Line]],T$3))","v":""},{"$f":"IF(OR(Table_POSTInfo[[#This Row],[Line]]=\"\",INDEX(Table_PREInfo[],Table_POSTInfo[[#This Row],[Line]],U$3)=\"\"),\"\",INDEX(Table_PREInfo[],Table_POSTInfo[[#This Row],[Line]],U$3))","v":""},{"$f":"IF(OR(Table_POSTInfo[[#This Row],[Line]]=\"\",INDEX(Table_PREInfo[],Table_POSTInfo[[#This Row],[Line]],V$3)=\"\"),\"\",INDEX(Table_PREInfo[],Table_POSTInfo[[#This Row],[Line]],V$3))","v":""},{"$f":"IFERROR(\nIFERROR(OFFSET(Table_TypWattage[[#Headers],[Technology]],MATCH(Table_POSTInfo[[#This Row],[Fixture Technology '[P']]],Table_TypWattage[Technology],0)+MATCH(Table_POSTInfo[[#This Row],[Fixture/ Lamp Wattage '[P']]],INDIRECT(SUBSTITUTE(SUBSTITUTE(Table_POSTInfo[[#This Row],[Fixture Technology '[P']]],\" \",\"_\"),\"-\",\"_\")),0)-1,MATCH(Table_POSTInfo[[#This Row],['# Lamps/ Fixture '[P']]],'Measure Tables'!$Q$2:$V$2,0)+1),IF(Table_POSTInfo[[#This Row],[IsActive]],IF(AND(Table_POSTInfo[[#This Row],['# Lamps/ Fixture '[P']]]<>\"\",Table_POSTInfo[[#This Row],['# Lamps/ Fixture '[P']]]>0,Table_POSTInfo[[#This Row],[Fixture/ Lamp Wattage '[P']]]>0),Table_POSTInfo[[#This Row],['# Lamps/ Fixture '[P']]]*Table_POSTInfo[[#This Row],[Fixture/ Lamp Wattage '[P']]],Table_POSTInfo[[#This Row],[Fixture/ Lamp Wattage '[P']]]),\"\")),\n\"\")","v":""},{"$f":"IF(OR(Table_POSTInfo[[#This Row],[Line]]=\"\",INDEX(Table_PREInfo[],Table_POSTInfo[[#This Row],[Line]],X$3)=\"\"),\"\",INDEX(Table_PREInfo[],Table_POSTInfo[[#This Row],[Line]],X$3))","v":""},{"$f":"IF(OR(Table_POSTInfo[[#This Row],[Line]]=\"\",INDEX(Table_PREInfo[],Table_POSTInfo[[#This Row],[Line]],Y$3)=\"\"),\"\",INDEX(Table_PREInfo[],Table_POSTInfo[[#This Row],[Line]],Y$3))","v":""},{"$f":"IFERROR(IF(Table_POSTInfo[[#This Row],[Interior/ Exterior]]<>\"\",\n  CONCATENATE(\n  Table_POSTInfo[[#This Row],[Fixture Technology '[P']]],\n  \" - \",Table_POSTInfo[[#This Row],[Fixture Type '[P']]],\" [\",\n  IF(Table_POSTInfo[[#This Row],['# Lamps/ Fixture '[P']]]>0,Table_POSTInfo[[#This Row],['# Lamps/ Fixture '[P']]] & \"L - \" & Table_POSTInfo[[#This Row],[Fixture/ Lamp Wattage '[P']]] & \"W\" & IF(Table_POSTInfo[[#This Row],[Ballast/ Driver '[P']]]<>\"\",\" - \" & Table_POSTInfo[[#This Row],[Ballast/ Driver '[P']]],\"\"),Table_POSTInfo[[#This Row],[Fixture Wattage '[P']]] & \"W\"),\"]\",\n  IF(AND(Table_POSTInfo[[#This Row],[Controls '[P']]]<>\"\",Table_POSTInfo[[#This Row],[Controls '[P']]]<>\"No Controls\"),\" - \" & Table_POSTInfo[[#This Row],[Controls '[P']]],\"\")\n  ),\n\"\"),\"\")","v":""},{"$f":"IF(OR(Table_POSTInfo[[#This Row],[Line]]=\"\",INDEX(Table_PREInfo[],Table_POSTInfo[[#This Row],[Line]],AA$3)=\"\"),\"\",INDEX(Table_PREInfo[],Table_POSTInfo[[#This Row],[Line]],AA$3))","v":""},{"$f":"IF(OR(Table_POSTInfo[[#This Row],[Line]]=\"\",INDEX(Table_PREInfo[],Table_POSTInfo[[#This Row],[Line]],AB$3)=\"\"),\"\",INDEX(Table_PREInfo[],Table_POSTInfo[[#This Row],[Line]],AB$3))","v":""},{"$f":"IF(OR(Table_POSTInfo[[#This Row],[Line]]=\"\",INDEX(Table_PREInfo[],Table_POSTInfo[[#This Row],[Line]],AC$3)=\"\"),\"\",INDEX(Table_PREInfo[],Table_POSTInfo[[#This Row],[Line]],AC$3))","v":""}]
[{"$f":"IF($A33=\"Line\",1,MAX($A$4:$A33)+1)","v":30},{"$f":"IF(OR(Table_POSTInfo[[#This Row],[Line]]=\"\",INDEX(Table_PREInfo[],Table_POSTInfo[[#This Row],[Line]],B$3)=\"\"),\"\",INDEX(Table_PREInfo[],Table_POSTInfo[[#This Row],[Line]],B$3))","v":false},{"$f":"IF(OR(Table_POSTInfo[[#This Row],[Line]]=\"\",INDEX(Table_PREInfo[],Table_POSTInfo[[#This Row],[Line]],C$3)=\"\"),\"\",INDEX(Table_PREInfo[],Table_POSTInfo[[#This Row],[Line]],C$3))","v":""},{"$f":"IF(ISNUMBER(MATCH(Table_POSTInfo[[#This Row],[Line]],Table_PREInspection[Line],0)),INDEX(Table_PREInspection[],MATCH(Table_POSTInfo[[#This Row],[Line]],Table_PREInspection[Line],0),MATCH('Post-Install Information'!D$3,'Pre-Install Inspection'!$A$3:$N$3,0)),IF(OR(Table_POSTInfo[[#This Row],[Line]]=\"\",INDEX(Table_PREInfo[],Table_POSTInfo[[#This Row],[Line]],D$3)=\"\"),\"\",INDEX(Table_PREInfo[],Table_POSTInfo[[#This Row],[Line]],D$3)))","v":""},{"$f":"IF(ISNUMBER(MATCH(Table_POSTInfo[[#This Row],[Line]],Table_PREInspection[Line],0)),INDEX(Table_PREInspection[],MATCH(Table_POSTInfo[[#This Row],[Line]],Table_PREInspection[Line],0),MATCH('Post-Install Information'!E$3,'Pre-Install Inspection'!$A$3:$N$3,0)),IF(OR(Table_POSTInfo[[#This Row],[Line]]=\"\",INDEX(Table_PREInfo[],Table_POSTInfo[[#This Row],[Line]],E$3)=\"\"),\"\",INDEX(Table_PREInfo[],Table_POSTInfo[[#This Row],[Line]],E$3)))","v":""},{"$f":"IF(ISNUMBER(MATCH(Table_POSTInfo[[#This Row],[Line]],Table_PREInspection[Line],0)),INDEX(Table_PREInspection[],MATCH(Table_POSTInfo[[#This Row],[Line]],Table_PREInspection[Line],0),MATCH('Post-Install Information'!F$3,'Pre-Install Inspection'!$A$3:$N$3,0)),IF(OR(Table_POSTInfo[[#This Row],[Line]]=\"\",INDEX(Table_PREInfo[],Table_POSTInfo[[#This Row],[Line]],F$3)=\"\"),\"\",INDEX(Table_PREInfo[],Table_POSTInfo[[#This Row],[Line]],F$3)))","v":""},null,{"$f":"IF(ISNUMBER(MATCH(Table_POSTInfo[[#This Row],[Line]],Table_PREInspection[Line],0)),INDEX(Table_PREInspection[],MATCH(Table_POSTInfo[[#This Row],[Line]],Table_PREInspection[Line],0),MATCH('Post-Install Information'!H$3,'Pre-Install Inspection'!$A$3:$N$3,0)),IF(OR(Table_POSTInfo[[#This Row],[Line]]=\"\",INDEX(Table_PREInfo[],Table_POSTInfo[[#This Row],[Line]],H$3)=\"\"),\"\",INDEX(Table_PREInfo[],Table_POSTInfo[[#This Row],[Line]],H$3)))","v":""},{"$f":"IF(ISNUMBER(MATCH(Table_POSTInfo[[#This Row],[Line]],Table_PREInspection[Line],0)),INDEX(Table_PREInspection[],MATCH(Table_POSTInfo[[#This Row],[Line]],Table_PREInspection[Line],0),MATCH('Post-Install Information'!I$3,'Pre-Install Inspection'!$A$3:$N$3,0)),IF(OR(Table_POSTInfo[[#This Row],[Line]]=\"\",INDEX(Table_PREInfo[],Table_POSTInfo[[#This Row],[Line]],I$3)=\"\"),\"\",INDEX(Table_PREInfo[],Table_POSTInfo[[#This Row],[Line]],I$3)))","v":""},{"$f":"IF(ISNUMBER(MATCH(Table_POSTInfo[[#This Row],[Line]],Table_PREInspection[Line],0)),INDEX(Table_PREInspection[],MATCH(Table_POSTInfo[[#This Row],[Line]],Table_PREInspection[Line],0),MATCH('Post-Install Information'!J$3,'Pre-Install Inspection'!$A$3:$N$3,0)),IF(OR(Table_POSTInfo[[#This Row],[Line]]=\"\",INDEX(Table_PREInfo[],Table_POSTInfo[[#This Row],[Line]],J$3)=\"\"),\"\",INDEX(Table_PREInfo[],Table_POSTInfo[[#This Row],[Line]],J$3)))","v":""},{"$f":"IF(ISNUMBER(MATCH(Table_POSTInfo[[#This Row],[Line]],Table_PREInspection[Line],0)),INDEX(Table_PREInspection[],MATCH(Table_POSTInfo[[#This Row],[Line]],Table_PREInspection[Line],0),MATCH('Post-Install Information'!K$3,'Pre-Install Inspection'!$A$3:$N$3,0)),IF(OR(Table_POSTInfo[[#This Row],[Line]]=\"\",INDEX(Table_PREInfo[],Table_POSTInfo[[#This Row],[Line]],K$3)=\"\"),\"\",INDEX(Table_PREInfo[],Table_POSTInfo[[#This Row],[Line]],K$3)))","v":""},{"$f":"IF(ISNUMBER(MATCH(Table_POSTInfo[[#This Row],[Line]],Table_PREInspection[Line],0)),INDEX(Table_PREInspection[],MATCH(Table_POSTInfo[[#This Row],[Line]],Table_PREInspection[Line],0),MATCH('Post-Install Information'!L$3,'Pre-Install Inspection'!$A$3:$N$3,0)),IF(OR(Table_POSTInfo[[#This Row],[Line]]=\"\",INDEX(Table_PREInfo[],Table_POSTInfo[[#This Row],[Line]],L$3)=\"\"),\"\",INDEX(Table_PREInfo[],Table_POSTInfo[[#This Row],[Line]],L$3)))","v":""},{"$f":"IF(ISNUMBER(MATCH(Table_POSTInfo[[#This Row],[Line]],Table_PREInspection[Line],0)),INDEX(Table_PREInspection[],MATCH(Table_POSTInfo[[#This Row],[Line]],Table_PREInspection[Line],0),MATCH('Post-Install Information'!M$3,'Pre-Install Inspection'!$A$3:$N$3,0)),IF(OR(Table_POSTInfo[[#This Row],[Line]]=\"\",INDEX(Table_PREInfo[],Table_POSTInfo[[#This Row],[Line]],M$3)=\"\"),\"\",INDEX(Table_PREInfo[],Table_POSTInfo[[#This Row],[Line]],M$3)))","v":""},{"$f":"IF(ISNUMBER(MATCH(Table_POSTInfo[[#This Row],[Line]],Table_PREInspection[Line],0)),INDEX(Table_PREInspection[],MATCH(Table_POSTInfo[[#This Row],[Line]],Table_PREInspection[Line],0),MATCH('Post-Install Information'!N$3,'Pre-Install Inspection'!$A$3:$N$3,0)),IF(OR(Table_POSTInfo[[#This Row],[Line]]=\"\",INDEX(Table_PREInfo[],Table_POSTInfo[[#This Row],[Line]],N$3)=\"\"),\"\",INDEX(Table_PREInfo[],Table_POSTInfo[[#This Row],[Line]],N$3)))","v":""},{"$f":"IF(ISNUMBER(MATCH(Table_POSTInfo[[#This Row],[Line]],Table_PREInspection[Line],0)),INDEX(Table_PREInspection[],MATCH(Table_POSTInfo[[#This Row],[Line]],Table_PREInspection[Line],0),MATCH('Post-Install Information'!O$3,'Pre-Install Inspection'!$A$3:$N$3,0)),IF(OR(Table_POSTInfo[[#This Row],[Line]]=\"\",INDEX(Table_PREInfo[],Table_POSTInfo[[#This Row],[Line]],O$3)=\"\"),\"\",INDEX(Table_PREInfo[],Table_POSTInfo[[#This Row],[Line]],O$3)))","v":""},{"$f":"IF(ISNUMBER(MATCH(Table_POSTInfo[[#This Row],[Line]],Table_PREInspection[Line],0)),INDEX(Table_PREInspection[],MATCH(Table_POSTInfo[[#This Row],[Line]],Table_PREInspection[Line],0),MATCH('Post-Install Information'!P$3,'Pre-Install Inspection'!$A$3:$N$3,0)),IF(OR(Table_POSTInfo[[#This Row],[Line]]=\"\",INDEX(Table_PREInfo[],Table_POSTInfo[[#This Row],[Line]],P$3)=\"\"),\"\",INDEX(Table_PREInfo[],Table_POSTInfo[[#This Row],[Line]],P$3)))","v":""},null,{"$f":"IF(Table_PREInfo[[#This Row],[Fixture Qty '[P']]]<>0,Table_PREInfo[[#This Row],[Fixture Qty '[P']]],IF(Table_POSTInfo[[#This Row],[Fixture Qty '[E']]]<>0,Table_POSTInfo[[#This Row],[Fixture Qty '[E']]],\"\"))","v":""},{"$f":"IF(OR(Table_POSTInfo[[#This Row],[Line]]=\"\",INDEX(Table_PREInfo[],Table_POSTInfo[[#This Row],[Line]],S$3)=\"\"),\"\",INDEX(Table_PREInfo[],Table_POSTInfo[[#This Row],[Line]],S$3))","v":""},{"$f":"IF(OR(Table_POSTInfo[[#This Row],[Line]]=\"\",INDEX(Table_PREInfo[],Table_POSTInfo[[#This Row],[Line]],T$3)=\"\"),\"\",INDEX(Table_PREInfo[],Table_POSTInfo[[#This Row],[Line]],T$3))","v":""},{"$f":"IF(OR(Table_POSTInfo[[#This Row],[Line]]=\"\",INDEX(Table_PREInfo[],Table_POSTInfo[[#This Row],[Line]],U$3)=\"\"),\"\",INDEX(Table_PREInfo[],Table_POSTInfo[[#This Row],[Line]],U$3))","v":""},{"$f":"IF(OR(Table_POSTInfo[[#This Row],[Line]]=\"\",INDEX(Table_PREInfo[],Table_POSTInfo[[#This Row],[Line]],V$3)=\"\"),\"\",INDEX(Table_PREInfo[],Table_POSTInfo[[#This Row],[Line]],V$3))","v":""},{"$f":"IFERROR(\nIFERROR(OFFSET(Table_TypWattage[[#Headers],[Technology]],MATCH(Table_POSTInfo[[#This Row],[Fixture Technology '[P']]],Table_TypWattage[Technology],0)+MATCH(Table_POSTInfo[[#This Row],[Fixture/ Lamp Wattage '[P']]],INDIRECT(SUBSTITUTE(SUBSTITUTE(Table_POSTInfo[[#This Row],[Fixture Technology '[P']]],\" \",\"_\"),\"-\",\"_\")),0)-1,MATCH(Table_POSTInfo[[#This Row],['# Lamps/ Fixture '[P']]],'Measure Tables'!$Q$2:$V$2,0)+1),IF(Table_POSTInfo[[#This Row],[IsActive]],IF(AND(Table_POSTInfo[[#This Row],['# Lamps/ Fixture '[P']]]<>\"\",Table_POSTInfo[[#This Row],['# Lamps/ Fixture '[P']]]>0,Table_POSTInfo[[#This Row],[Fixture/ Lamp Wattage '[P']]]>0),Table_POSTInfo[[#This Row],['# Lamps/ Fixture '[P']]]*Table_POSTInfo[[#This Row],[Fixture/ Lamp Wattage '[P']]],Table_POSTInfo[[#This Row],[Fixture/ Lamp Wattage '[P']]]),\"\")),\n\"\")","v":""},{"$f":"IF(OR(Table_POSTInfo[[#This Row],[Line]]=\"\",INDEX(Table_PREInfo[],Table_POSTInfo[[#This Row],[Line]],X$3)=\"\"),\"\",INDEX(Table_PREInfo[],Table_POSTInfo[[#This Row],[Line]],X$3))","v":""},{"$f":"IF(OR(Table_POSTInfo[[#This Row],[Line]]=\"\",INDEX(Table_PREInfo[],Table_POSTInfo[[#This Row],[Line]],Y$3)=\"\"),\"\",INDEX(Table_PREInfo[],Table_POSTInfo[[#This Row],[Line]],Y$3))","v":""},{"$f":"IFERROR(IF(Table_POSTInfo[[#This Row],[Interior/ Exterior]]<>\"\",\n  CONCATENATE(\n  Table_POSTInfo[[#This Row],[Fixture Technology '[P']]],\n  \" - \",Table_POSTInfo[[#This Row],[Fixture Type '[P']]],\" [\",\n  IF(Table_POSTInfo[[#This Row],['# Lamps/ Fixture '[P']]]>0,Table_POSTInfo[[#This Row],['# Lamps/ Fixture '[P']]] & \"L - \" & Table_POSTInfo[[#This Row],[Fixture/ Lamp Wattage '[P']]] & \"W\" & IF(Table_POSTInfo[[#This Row],[Ballast/ Driver '[P']]]<>\"\",\" - \" & Table_POSTInfo[[#This Row],[Ballast/ Driver '[P']]],\"\"),Table_POSTInfo[[#This Row],[Fixture Wattage '[P']]] & \"W\"),\"]\",\n  IF(AND(Table_POSTInfo[[#This Row],[Controls '[P']]]<>\"\",Table_POSTInfo[[#This Row],[Controls '[P']]]<>\"No Controls\"),\" - \" & Table_POSTInfo[[#This Row],[Controls '[P']]],\"\")\n  ),\n\"\"),\"\")","v":""},{"$f":"IF(OR(Table_POSTInfo[[#This Row],[Line]]=\"\",INDEX(Table_PREInfo[],Table_POSTInfo[[#This Row],[Line]],AA$3)=\"\"),\"\",INDEX(Table_PREInfo[],Table_POSTInfo[[#This Row],[Line]],AA$3))","v":""},{"$f":"IF(OR(Table_POSTInfo[[#This Row],[Line]]=\"\",INDEX(Table_PREInfo[],Table_POSTInfo[[#This Row],[Line]],AB$3)=\"\"),\"\",INDEX(Table_PREInfo[],Table_POSTInfo[[#This Row],[Line]],AB$3))","v":""},{"$f":"IF(OR(Table_POSTInfo[[#This Row],[Line]]=\"\",INDEX(Table_PREInfo[],Table_POSTInfo[[#This Row],[Line]],AC$3)=\"\"),\"\",INDEX(Table_PREInfo[],Table_POSTInfo[[#This Row],[Line]],AC$3))","v":""}]
[{"$f":"IF($A34=\"Line\",1,MAX($A$4:$A34)+1)","v":31},{"$f":"IF(OR(Table_POSTInfo[[#This Row],[Line]]=\"\",INDEX(Table_PREInfo[],Table_POSTInfo[[#This Row],[Line]],B$3)=\"\"),\"\",INDEX(Table_PREInfo[],Table_POSTInfo[[#This Row],[Line]],B$3))","v":false},{"$f":"IF(OR(Table_POSTInfo[[#This Row],[Line]]=\"\",INDEX(Table_PREInfo[],Table_POSTInfo[[#This Row],[Line]],C$3)=\"\"),\"\",INDEX(Table_PREInfo[],Table_POSTInfo[[#This Row],[Line]],C$3))","v":""},{"$f":"IF(ISNUMBER(MATCH(Table_POSTInfo[[#This Row],[Line]],Table_PREInspection[Line],0)),INDEX(Table_PREInspection[],MATCH(Table_POSTInfo[[#This Row],[Line]],Table_PREInspection[Line],0),MATCH('Post-Install Information'!D$3,'Pre-Install Inspection'!$A$3:$N$3,0)),IF(OR(Table_POSTInfo[[#This Row],[Line]]=\"\",INDEX(Table_PREInfo[],Table_POSTInfo[[#This Row],[Line]],D$3)=\"\"),\"\",INDEX(Table_PREInfo[],Table_POSTInfo[[#This Row],[Line]],D$3)))","v":""},{"$f":"IF(ISNUMBER(MATCH(Table_POSTInfo[[#This Row],[Line]],Table_PREInspection[Line],0)),INDEX(Table_PREInspection[],MATCH(Table_POSTInfo[[#This Row],[Line]],Table_PREInspection[Line],0),MATCH('Post-Install Information'!E$3,'Pre-Install Inspection'!$A$3:$N$3,0)),IF(OR(Table_POSTInfo[[#This Row],[Line]]=\"\",INDEX(Table_PREInfo[],Table_POSTInfo[[#This Row],[Line]],E$3)=\"\"),\"\",INDEX(Table_PREInfo[],Table_POSTInfo[[#This Row],[Line]],E$3)))","v":""},{"$f":"IF(ISNUMBER(MATCH(Table_POSTInfo[[#This Row],[Line]],Table_PREInspection[Line],0)),INDEX(Table_PREInspection[],MATCH(Table_POSTInfo[[#This Row],[Line]],Table_PREInspection[Line],0),MATCH('Post-Install Information'!F$3,'Pre-Install Inspection'!$A$3:$N$3,0)),IF(OR(Table_POSTInfo[[#This Row],[Line]]=\"\",INDEX(Table_PREInfo[],Table_POSTInfo[[#This Row],[Line]],F$3)=\"\"),\"\",INDEX(Table_PREInfo[],Table_POSTInfo[[#This Row],[Line]],F$3)))","v":""},null,{"$f":"IF(ISNUMBER(MATCH(Table_POSTInfo[[#This Row],[Line]],Table_PREInspection[Line],0)),INDEX(Table_PREInspection[],MATCH(Table_POSTInfo[[#This Row],[Line]],Table_PREInspection[Line],0),MATCH('Post-Install Information'!H$3,'Pre-Install Inspection'!$A$3:$N$3,0)),IF(OR(Table_POSTInfo[[#This Row],[Line]]=\"\",INDEX(Table_PREInfo[],Table_POSTInfo[[#This Row],[Line]],H$3)=\"\"),\"\",INDEX(Table_PREInfo[],Table_POSTInfo[[#This Row],[Line]],H$3)))","v":""},{"$f":"IF(ISNUMBER(MATCH(Table_POSTInfo[[#This Row],[Line]],Table_PREInspection[Line],0)),INDEX(Table_PREInspection[],MATCH(Table_POSTInfo[[#This Row],[Line]],Table_PREInspection[Line],0),MATCH('Post-Install Information'!I$3,'Pre-Install Inspection'!$A$3:$N$3,0)),IF(OR(Table_POSTInfo[[#This Row],[Line]]=\"\",INDEX(Table_PREInfo[],Table_POSTInfo[[#This Row],[Line]],I$3)=\"\"),\"\",INDEX(Table_PREInfo[],Table_POSTInfo[[#This Row],[Line]],I$3)))","v":""},{"$f":"IF(ISNUMBER(MATCH(Table_POSTInfo[[#This Row],[Line]],Table_PREInspection[Line],0)),INDEX(Table_PREInspection[],MATCH(Table_POSTInfo[[#This Row],[Line]],Table_PREInspection[Line],0),MATCH('Post-Install Information'!J$3,'Pre-Install Inspection'!$A$3:$N$3,0)),IF(OR(Table_POSTInfo[[#This Row],[Line]]=\"\",INDEX(Table_PREInfo[],Table_POSTInfo[[#This Row],[Line]],J$3)=\"\"),\"\",INDEX(Table_PREInfo[],Table_POSTInfo[[#This Row],[Line]],J$3)))","v":""},{"$f":"IF(ISNUMBER(MATCH(Table_POSTInfo[[#This Row],[Line]],Table_PREInspection[Line],0)),INDEX(Table_PREInspection[],MATCH(Table_POSTInfo[[#This Row],[Line]],Table_PREInspection[Line],0),MATCH('Post-Install Information'!K$3,'Pre-Install Inspection'!$A$3:$N$3,0)),IF(OR(Table_POSTInfo[[#This Row],[Line]]=\"\",INDEX(Table_PREInfo[],Table_POSTInfo[[#This Row],[Line]],K$3)=\"\"),\"\",INDEX(Table_PREInfo[],Table_POSTInfo[[#This Row],[Line]],K$3)))","v":""},{"$f":"IF(ISNUMBER(MATCH(Table_POSTInfo[[#This Row],[Line]],Table_PREInspection[Line],0)),INDEX(Table_PREInspection[],MATCH(Table_POSTInfo[[#This Row],[Line]],Table_PREInspection[Line],0),MATCH('Post-Install Information'!L$3,'Pre-Install Inspection'!$A$3:$N$3,0)),IF(OR(Table_POSTInfo[[#This Row],[Line]]=\"\",INDEX(Table_PREInfo[],Table_POSTInfo[[#This Row],[Line]],L$3)=\"\"),\"\",INDEX(Table_PREInfo[],Table_POSTInfo[[#This Row],[Line]],L$3)))","v":""},{"$f":"IF(ISNUMBER(MATCH(Table_POSTInfo[[#This Row],[Line]],Table_PREInspection[Line],0)),INDEX(Table_PREInspection[],MATCH(Table_POSTInfo[[#This Row],[Line]],Table_PREInspection[Line],0),MATCH('Post-Install Information'!M$3,'Pre-Install Inspection'!$A$3:$N$3,0)),IF(OR(Table_POSTInfo[[#This Row],[Line]]=\"\",INDEX(Table_PREInfo[],Table_POSTInfo[[#This Row],[Line]],M$3)=\"\"),\"\",INDEX(Table_PREInfo[],Table_POSTInfo[[#This Row],[Line]],M$3)))","v":""},{"$f":"IF(ISNUMBER(MATCH(Table_POSTInfo[[#This Row],[Line]],Table_PREInspection[Line],0)),INDEX(Table_PREInspection[],MATCH(Table_POSTInfo[[#This Row],[Line]],Table_PREInspection[Line],0),MATCH('Post-Install Information'!N$3,'Pre-Install Inspection'!$A$3:$N$3,0)),IF(OR(Table_POSTInfo[[#This Row],[Line]]=\"\",INDEX(Table_PREInfo[],Table_POSTInfo[[#This Row],[Line]],N$3)=\"\"),\"\",INDEX(Table_PREInfo[],Table_POSTInfo[[#This Row],[Line]],N$3)))","v":""},{"$f":"IF(ISNUMBER(MATCH(Table_POSTInfo[[#This Row],[Line]],Table_PREInspection[Line],0)),INDEX(Table_PREInspection[],MATCH(Table_POSTInfo[[#This Row],[Line]],Table_PREInspection[Line],0),MATCH('Post-Install Information'!O$3,'Pre-Install Inspection'!$A$3:$N$3,0)),IF(OR(Table_POSTInfo[[#This Row],[Line]]=\"\",INDEX(Table_PREInfo[],Table_POSTInfo[[#This Row],[Line]],O$3)=\"\"),\"\",INDEX(Table_PREInfo[],Table_POSTInfo[[#This Row],[Line]],O$3)))","v":""},{"$f":"IF(ISNUMBER(MATCH(Table_POSTInfo[[#This Row],[Line]],Table_PREInspection[Line],0)),INDEX(Table_PREInspection[],MATCH(Table_POSTInfo[[#This Row],[Line]],Table_PREInspection[Line],0),MATCH('Post-Install Information'!P$3,'Pre-Install Inspection'!$A$3:$N$3,0)),IF(OR(Table_POSTInfo[[#This Row],[Line]]=\"\",INDEX(Table_PREInfo[],Table_POSTInfo[[#This Row],[Line]],P$3)=\"\"),\"\",INDEX(Table_PREInfo[],Table_POSTInfo[[#This Row],[Line]],P$3)))","v":""},null,{"$f":"IF(Table_PREInfo[[#This Row],[Fixture Qty '[P']]]<>0,Table_PREInfo[[#This Row],[Fixture Qty '[P']]],IF(Table_POSTInfo[[#This Row],[Fixture Qty '[E']]]<>0,Table_POSTInfo[[#This Row],[Fixture Qty '[E']]],\"\"))","v":""},{"$f":"IF(OR(Table_POSTInfo[[#This Row],[Line]]=\"\",INDEX(Table_PREInfo[],Table_POSTInfo[[#This Row],[Line]],S$3)=\"\"),\"\",INDEX(Table_PREInfo[],Table_POSTInfo[[#This Row],[Line]],S$3))","v":""},{"$f":"IF(OR(Table_POSTInfo[[#This Row],[Line]]=\"\",INDEX(Table_PREInfo[],Table_POSTInfo[[#This Row],[Line]],T$3)=\"\"),\"\",INDEX(Table_PREInfo[],Table_POSTInfo[[#This Row],[Line]],T$3))","v":""},{"$f":"IF(OR(Table_POSTInfo[[#This Row],[Line]]=\"\",INDEX(Table_PREInfo[],Table_POSTInfo[[#This Row],[Line]],U$3)=\"\"),\"\",INDEX(Table_PREInfo[],Table_POSTInfo[[#This Row],[Line]],U$3))","v":""},{"$f":"IF(OR(Table_POSTInfo[[#This Row],[Line]]=\"\",INDEX(Table_PREInfo[],Table_POSTInfo[[#This Row],[Line]],V$3)=\"\"),\"\",INDEX(Table_PREInfo[],Table_POSTInfo[[#This Row],[Line]],V$3))","v":""},{"$f":"IFERROR(\nIFERROR(OFFSET(Table_TypWattage[[#Headers],[Technology]],MATCH(Table_POSTInfo[[#This Row],[Fixture Technology '[P']]],Table_TypWattage[Technology],0)+MATCH(Table_POSTInfo[[#This Row],[Fixture/ Lamp Wattage '[P']]],INDIRECT(SUBSTITUTE(SUBSTITUTE(Table_POSTInfo[[#This Row],[Fixture Technology '[P']]],\" \",\"_\"),\"-\",\"_\")),0)-1,MATCH(Table_POSTInfo[[#This Row],['# Lamps/ Fixture '[P']]],'Measure Tables'!$Q$2:$V$2,0)+1),IF(Table_POSTInfo[[#This Row],[IsActive]],IF(AND(Table_POSTInfo[[#This Row],['# Lamps/ Fixture '[P']]]<>\"\",Table_POSTInfo[[#This Row],['# Lamps/ Fixture '[P']]]>0,Table_POSTInfo[[#This Row],[Fixture/ Lamp Wattage '[P']]]>0),Table_POSTInfo[[#This Row],['# Lamps/ Fixture '[P']]]*Table_POSTInfo[[#This Row],[Fixture/ Lamp Wattage '[P']]],Table_POSTInfo[[#This Row],[Fixture/ Lamp Wattage '[P']]]),\"\")),\n\"\")","v":""},{"$f":"IF(OR(Table_POSTInfo[[#This Row],[Line]]=\"\",INDEX(Table_PREInfo[],Table_POSTInfo[[#This Row],[Line]],X$3)=\"\"),\"\",INDEX(Table_PREInfo[],Table_POSTInfo[[#This Row],[Line]],X$3))","v":""},{"$f":"IF(OR(Table_POSTInfo[[#This Row],[Line]]=\"\",INDEX(Table_PREInfo[],Table_POSTInfo[[#This Row],[Line]],Y$3)=\"\"),\"\",INDEX(Table_PREInfo[],Table_POSTInfo[[#This Row],[Line]],Y$3))","v":""},{"$f":"IFERROR(IF(Table_POSTInfo[[#This Row],[Interior/ Exterior]]<>\"\",\n  CONCATENATE(\n  Table_POSTInfo[[#This Row],[Fixture Technology '[P']]],\n  \" - \",Table_POSTInfo[[#This Row],[Fixture Type '[P']]],\" [\",\n  IF(Table_POSTInfo[[#This Row],['# Lamps/ Fixture '[P']]]>0,Table_POSTInfo[[#This Row],['# Lamps/ Fixture '[P']]] & \"L - \" & Table_POSTInfo[[#This Row],[Fixture/ Lamp Wattage '[P']]] & \"W\" & IF(Table_POSTInfo[[#This Row],[Ballast/ Driver '[P']]]<>\"\",\" - \" & Table_POSTInfo[[#This Row],[Ballast/ Driver '[P']]],\"\"),Table_POSTInfo[[#This Row],[Fixture Wattage '[P']]] & \"W\"),\"]\",\n  IF(AND(Table_POSTInfo[[#This Row],[Controls '[P']]]<>\"\",Table_POSTInfo[[#This Row],[Controls '[P']]]<>\"No Controls\"),\" - \" & Table_POSTInfo[[#This Row],[Controls '[P']]],\"\")\n  ),\n\"\"),\"\")","v":""},{"$f":"IF(OR(Table_POSTInfo[[#This Row],[Line]]=\"\",INDEX(Table_PREInfo[],Table_POSTInfo[[#This Row],[Line]],AA$3)=\"\"),\"\",INDEX(Table_PREInfo[],Table_POSTInfo[[#This Row],[Line]],AA$3))","v":""},{"$f":"IF(OR(Table_POSTInfo[[#This Row],[Line]]=\"\",INDEX(Table_PREInfo[],Table_POSTInfo[[#This Row],[Line]],AB$3)=\"\"),\"\",INDEX(Table_PREInfo[],Table_POSTInfo[[#This Row],[Line]],AB$3))","v":""},{"$f":"IF(OR(Table_POSTInfo[[#This Row],[Line]]=\"\",INDEX(Table_PREInfo[],Table_POSTInfo[[#This Row],[Line]],AC$3)=\"\"),\"\",INDEX(Table_PREInfo[],Table_POSTInfo[[#This Row],[Line]],AC$3))","v":""}]
[{"$f":"IF($A35=\"Line\",1,MAX($A$4:$A35)+1)","v":32},{"$f":"IF(OR(Table_POSTInfo[[#This Row],[Line]]=\"\",INDEX(Table_PREInfo[],Table_POSTInfo[[#This Row],[Line]],B$3)=\"\"),\"\",INDEX(Table_PREInfo[],Table_POSTInfo[[#This Row],[Line]],B$3))","v":false},{"$f":"IF(OR(Table_POSTInfo[[#This Row],[Line]]=\"\",INDEX(Table_PREInfo[],Table_POSTInfo[[#This Row],[Line]],C$3)=\"\"),\"\",INDEX(Table_PREInfo[],Table_POSTInfo[[#This Row],[Line]],C$3))","v":""},{"$f":"IF(ISNUMBER(MATCH(Table_POSTInfo[[#This Row],[Line]],Table_PREInspection[Line],0)),INDEX(Table_PREInspection[],MATCH(Table_POSTInfo[[#This Row],[Line]],Table_PREInspection[Line],0),MATCH('Post-Install Information'!D$3,'Pre-Install Inspection'!$A$3:$N$3,0)),IF(OR(Table_POSTInfo[[#This Row],[Line]]=\"\",INDEX(Table_PREInfo[],Table_POSTInfo[[#This Row],[Line]],D$3)=\"\"),\"\",INDEX(Table_PREInfo[],Table_POSTInfo[[#This Row],[Line]],D$3)))","v":""},{"$f":"IF(ISNUMBER(MATCH(Table_POSTInfo[[#This Row],[Line]],Table_PREInspection[Line],0)),INDEX(Table_PREInspection[],MATCH(Table_POSTInfo[[#This Row],[Line]],Table_PREInspection[Line],0),MATCH('Post-Install Information'!E$3,'Pre-Install Inspection'!$A$3:$N$3,0)),IF(OR(Table_POSTInfo[[#This Row],[Line]]=\"\",INDEX(Table_PREInfo[],Table_POSTInfo[[#This Row],[Line]],E$3)=\"\"),\"\",INDEX(Table_PREInfo[],Table_POSTInfo[[#This Row],[Line]],E$3)))","v":""},{"$f":"IF(ISNUMBER(MATCH(Table_POSTInfo[[#This Row],[Line]],Table_PREInspection[Line],0)),INDEX(Table_PREInspection[],MATCH(Table_POSTInfo[[#This Row],[Line]],Table_PREInspection[Line],0),MATCH('Post-Install Information'!F$3,'Pre-Install Inspection'!$A$3:$N$3,0)),IF(OR(Table_POSTInfo[[#This Row],[Line]]=\"\",INDEX(Table_PREInfo[],Table_POSTInfo[[#This Row],[Line]],F$3)=\"\"),\"\",INDEX(Table_PREInfo[],Table_POSTInfo[[#This Row],[Line]],F$3)))","v":""},null,{"$f":"IF(ISNUMBER(MATCH(Table_POSTInfo[[#This Row],[Line]],Table_PREInspection[Line],0)),INDEX(Table_PREInspection[],MATCH(Table_POSTInfo[[#This Row],[Line]],Table_PREInspection[Line],0),MATCH('Post-Install Information'!H$3,'Pre-Install Inspection'!$A$3:$N$3,0)),IF(OR(Table_POSTInfo[[#This Row],[Line]]=\"\",INDEX(Table_PREInfo[],Table_POSTInfo[[#This Row],[Line]],H$3)=\"\"),\"\",INDEX(Table_PREInfo[],Table_POSTInfo[[#This Row],[Line]],H$3)))","v":""},{"$f":"IF(ISNUMBER(MATCH(Table_POSTInfo[[#This Row],[Line]],Table_PREInspection[Line],0)),INDEX(Table_PREInspection[],MATCH(Table_POSTInfo[[#This Row],[Line]],Table_PREInspection[Line],0),MATCH('Post-Install Information'!I$3,'Pre-Install Inspection'!$A$3:$N$3,0)),IF(OR(Table_POSTInfo[[#This Row],[Line]]=\"\",INDEX(Table_PREInfo[],Table_POSTInfo[[#This Row],[Line]],I$3)=\"\"),\"\",INDEX(Table_PREInfo[],Table_POSTInfo[[#This Row],[Line]],I$3)))","v":""},{"$f":"IF(ISNUMBER(MATCH(Table_POSTInfo[[#This Row],[Line]],Table_PREInspection[Line],0)),INDEX(Table_PREInspection[],MATCH(Table_POSTInfo[[#This Row],[Line]],Table_PREInspection[Line],0),MATCH('Post-Install Information'!J$3,'Pre-Install Inspection'!$A$3:$N$3,0)),IF(OR(Table_POSTInfo[[#This Row],[Line]]=\"\",INDEX(Table_PREInfo[],Table_POSTInfo[[#This Row],[Line]],J$3)=\"\"),\"\",INDEX(Table_PREInfo[],Table_POSTInfo[[#This Row],[Line]],J$3)))","v":""},{"$f":"IF(ISNUMBER(MATCH(Table_POSTInfo[[#This Row],[Line]],Table_PREInspection[Line],0)),INDEX(Table_PREInspection[],MATCH(Table_POSTInfo[[#This Row],[Line]],Table_PREInspection[Line],0),MATCH('Post-Install Information'!K$3,'Pre-Install Inspection'!$A$3:$N$3,0)),IF(OR(Table_POSTInfo[[#This Row],[Line]]=\"\",INDEX(Table_PREInfo[],Table_POSTInfo[[#This Row],[Line]],K$3)=\"\"),\"\",INDEX(Table_PREInfo[],Table_POSTInfo[[#This Row],[Line]],K$3)))","v":""},{"$f":"IF(ISNUMBER(MATCH(Table_POSTInfo[[#This Row],[Line]],Table_PREInspection[Line],0)),INDEX(Table_PREInspection[],MATCH(Table_POSTInfo[[#This Row],[Line]],Table_PREInspection[Line],0),MATCH('Post-Install Information'!L$3,'Pre-Install Inspection'!$A$3:$N$3,0)),IF(OR(Table_POSTInfo[[#This Row],[Line]]=\"\",INDEX(Table_PREInfo[],Table_POSTInfo[[#This Row],[Line]],L$3)=\"\"),\"\",INDEX(Table_PREInfo[],Table_POSTInfo[[#This Row],[Line]],L$3)))","v":""},{"$f":"IF(ISNUMBER(MATCH(Table_POSTInfo[[#This Row],[Line]],Table_PREInspection[Line],0)),INDEX(Table_PREInspection[],MATCH(Table_POSTInfo[[#This Row],[Line]],Table_PREInspection[Line],0),MATCH('Post-Install Information'!M$3,'Pre-Install Inspection'!$A$3:$N$3,0)),IF(OR(Table_POSTInfo[[#This Row],[Line]]=\"\",INDEX(Table_PREInfo[],Table_POSTInfo[[#This Row],[Line]],M$3)=\"\"),\"\",INDEX(Table_PREInfo[],Table_POSTInfo[[#This Row],[Line]],M$3)))","v":""},{"$f":"IF(ISNUMBER(MATCH(Table_POSTInfo[[#This Row],[Line]],Table_PREInspection[Line],0)),INDEX(Table_PREInspection[],MATCH(Table_POSTInfo[[#This Row],[Line]],Table_PREInspection[Line],0),MATCH('Post-Install Information'!N$3,'Pre-Install Inspection'!$A$3:$N$3,0)),IF(OR(Table_POSTInfo[[#This Row],[Line]]=\"\",INDEX(Table_PREInfo[],Table_POSTInfo[[#This Row],[Line]],N$3)=\"\"),\"\",INDEX(Table_PREInfo[],Table_POSTInfo[[#This Row],[Line]],N$3)))","v":""},{"$f":"IF(ISNUMBER(MATCH(Table_POSTInfo[[#This Row],[Line]],Table_PREInspection[Line],0)),INDEX(Table_PREInspection[],MATCH(Table_POSTInfo[[#This Row],[Line]],Table_PREInspection[Line],0),MATCH('Post-Install Information'!O$3,'Pre-Install Inspection'!$A$3:$N$3,0)),IF(OR(Table_POSTInfo[[#This Row],[Line]]=\"\",INDEX(Table_PREInfo[],Table_POSTInfo[[#This Row],[Line]],O$3)=\"\"),\"\",INDEX(Table_PREInfo[],Table_POSTInfo[[#This Row],[Line]],O$3)))","v":""},{"$f":"IF(ISNUMBER(MATCH(Table_POSTInfo[[#This Row],[Line]],Table_PREInspection[Line],0)),INDEX(Table_PREInspection[],MATCH(Table_POSTInfo[[#This Row],[Line]],Table_PREInspection[Line],0),MATCH('Post-Install Information'!P$3,'Pre-Install Inspection'!$A$3:$N$3,0)),IF(OR(Table_POSTInfo[[#This Row],[Line]]=\"\",INDEX(Table_PREInfo[],Table_POSTInfo[[#This Row],[Line]],P$3)=\"\"),\"\",INDEX(Table_PREInfo[],Table_POSTInfo[[#This Row],[Line]],P$3)))","v":""},null,{"$f":"IF(Table_PREInfo[[#This Row],[Fixture Qty '[P']]]<>0,Table_PREInfo[[#This Row],[Fixture Qty '[P']]],IF(Table_POSTInfo[[#This Row],[Fixture Qty '[E']]]<>0,Table_POSTInfo[[#This Row],[Fixture Qty '[E']]],\"\"))","v":""},{"$f":"IF(OR(Table_POSTInfo[[#This Row],[Line]]=\"\",INDEX(Table_PREInfo[],Table_POSTInfo[[#This Row],[Line]],S$3)=\"\"),\"\",INDEX(Table_PREInfo[],Table_POSTInfo[[#This Row],[Line]],S$3))","v":""},{"$f":"IF(OR(Table_POSTInfo[[#This Row],[Line]]=\"\",INDEX(Table_PREInfo[],Table_POSTInfo[[#This Row],[Line]],T$3)=\"\"),\"\",INDEX(Table_PREInfo[],Table_POSTInfo[[#This Row],[Line]],T$3))","v":""},{"$f":"IF(OR(Table_POSTInfo[[#This Row],[Line]]=\"\",INDEX(Table_PREInfo[],Table_POSTInfo[[#This Row],[Line]],U$3)=\"\"),\"\",INDEX(Table_PREInfo[],Table_POSTInfo[[#This Row],[Line]],U$3))","v":""},{"$f":"IF(OR(Table_POSTInfo[[#This Row],[Line]]=\"\",INDEX(Table_PREInfo[],Table_POSTInfo[[#This Row],[Line]],V$3)=\"\"),\"\",INDEX(Table_PREInfo[],Table_POSTInfo[[#This Row],[Line]],V$3))","v":""},{"$f":"IFERROR(\nIFERROR(OFFSET(Table_TypWattage[[#Headers],[Technology]],MATCH(Table_POSTInfo[[#This Row],[Fixture Technology '[P']]],Table_TypWattage[Technology],0)+MATCH(Table_POSTInfo[[#This Row],[Fixture/ Lamp Wattage '[P']]],INDIRECT(SUBSTITUTE(SUBSTITUTE(Table_POSTInfo[[#This Row],[Fixture Technology '[P']]],\" \",\"_\"),\"-\",\"_\")),0)-1,MATCH(Table_POSTInfo[[#This Row],['# Lamps/ Fixture '[P']]],'Measure Tables'!$Q$2:$V$2,0)+1),IF(Table_POSTInfo[[#This Row],[IsActive]],IF(AND(Table_POSTInfo[[#This Row],['# Lamps/ Fixture '[P']]]<>\"\",Table_POSTInfo[[#This Row],['# Lamps/ Fixture '[P']]]>0,Table_POSTInfo[[#This Row],[Fixture/ Lamp Wattage '[P']]]>0),Table_POSTInfo[[#This Row],['# Lamps/ Fixture '[P']]]*Table_POSTInfo[[#This Row],[Fixture/ Lamp Wattage '[P']]],Table_POSTInfo[[#This Row],[Fixture/ Lamp Wattage '[P']]]),\"\")),\n\"\")","v":""},{"$f":"IF(OR(Table_POSTInfo[[#This Row],[Line]]=\"\",INDEX(Table_PREInfo[],Table_POSTInfo[[#This Row],[Line]],X$3)=\"\"),\"\",INDEX(Table_PREInfo[],Table_POSTInfo[[#This Row],[Line]],X$3))","v":""},{"$f":"IF(OR(Table_POSTInfo[[#This Row],[Line]]=\"\",INDEX(Table_PREInfo[],Table_POSTInfo[[#This Row],[Line]],Y$3)=\"\"),\"\",INDEX(Table_PREInfo[],Table_POSTInfo[[#This Row],[Line]],Y$3))","v":""},{"$f":"IFERROR(IF(Table_POSTInfo[[#This Row],[Interior/ Exterior]]<>\"\",\n  CONCATENATE(\n  Table_POSTInfo[[#This Row],[Fixture Technology '[P']]],\n  \" - \",Table_POSTInfo[[#This Row],[Fixture Type '[P']]],\" [\",\n  IF(Table_POSTInfo[[#This Row],['# Lamps/ Fixture '[P']]]>0,Table_POSTInfo[[#This Row],['# Lamps/ Fixture '[P']]] & \"L - \" & Table_POSTInfo[[#This Row],[Fixture/ Lamp Wattage '[P']]] & \"W\" & IF(Table_POSTInfo[[#This Row],[Ballast/ Driver '[P']]]<>\"\",\" - \" & Table_POSTInfo[[#This Row],[Ballast/ Driver '[P']]],\"\"),Table_POSTInfo[[#This Row],[Fixture Wattage '[P']]] & \"W\"),\"]\",\n  IF(AND(Table_POSTInfo[[#This Row],[Controls '[P']]]<>\"\",Table_POSTInfo[[#This Row],[Controls '[P']]]<>\"No Controls\"),\" - \" & Table_POSTInfo[[#This Row],[Controls '[P']]],\"\")\n  ),\n\"\"),\"\")","v":""},{"$f":"IF(OR(Table_POSTInfo[[#This Row],[Line]]=\"\",INDEX(Table_PREInfo[],Table_POSTInfo[[#This Row],[Line]],AA$3)=\"\"),\"\",INDEX(Table_PREInfo[],Table_POSTInfo[[#This Row],[Line]],AA$3))","v":""},{"$f":"IF(OR(Table_POSTInfo[[#This Row],[Line]]=\"\",INDEX(Table_PREInfo[],Table_POSTInfo[[#This Row],[Line]],AB$3)=\"\"),\"\",INDEX(Table_PREInfo[],Table_POSTInfo[[#This Row],[Line]],AB$3))","v":""},{"$f":"IF(OR(Table_POSTInfo[[#This Row],[Line]]=\"\",INDEX(Table_PREInfo[],Table_POSTInfo[[#This Row],[Line]],AC$3)=\"\"),\"\",INDEX(Table_PREInfo[],Table_POSTInfo[[#This Row],[Line]],AC$3))","v":""}]
[{"$f":"IF($A36=\"Line\",1,MAX($A$4:$A36)+1)","v":33},{"$f":"IF(OR(Table_POSTInfo[[#This Row],[Line]]=\"\",INDEX(Table_PREInfo[],Table_POSTInfo[[#This Row],[Line]],B$3)=\"\"),\"\",INDEX(Table_PREInfo[],Table_POSTInfo[[#This Row],[Line]],B$3))","v":false},{"$f":"IF(OR(Table_POSTInfo[[#This Row],[Line]]=\"\",INDEX(Table_PREInfo[],Table_POSTInfo[[#This Row],[Line]],C$3)=\"\"),\"\",INDEX(Table_PREInfo[],Table_POSTInfo[[#This Row],[Line]],C$3))","v":""},{"$f":"IF(ISNUMBER(MATCH(Table_POSTInfo[[#This Row],[Line]],Table_PREInspection[Line],0)),INDEX(Table_PREInspection[],MATCH(Table_POSTInfo[[#This Row],[Line]],Table_PREInspection[Line],0),MATCH('Post-Install Information'!D$3,'Pre-Install Inspection'!$A$3:$N$3,0)),IF(OR(Table_POSTInfo[[#This Row],[Line]]=\"\",INDEX(Table_PREInfo[],Table_POSTInfo[[#This Row],[Line]],D$3)=\"\"),\"\",INDEX(Table_PREInfo[],Table_POSTInfo[[#This Row],[Line]],D$3)))","v":""},{"$f":"IF(ISNUMBER(MATCH(Table_POSTInfo[[#This Row],[Line]],Table_PREInspection[Line],0)),INDEX(Table_PREInspection[],MATCH(Table_POSTInfo[[#This Row],[Line]],Table_PREInspection[Line],0),MATCH('Post-Install Information'!E$3,'Pre-Install Inspection'!$A$3:$N$3,0)),IF(OR(Table_POSTInfo[[#This Row],[Line]]=\"\",INDEX(Table_PREInfo[],Table_POSTInfo[[#This Row],[Line]],E$3)=\"\"),\"\",INDEX(Table_PREInfo[],Table_POSTInfo[[#This Row],[Line]],E$3)))","v":""},{"$f":"IF(ISNUMBER(MATCH(Table_POSTInfo[[#This Row],[Line]],Table_PREInspection[Line],0)),INDEX(Table_PREInspection[],MATCH(Table_POSTInfo[[#This Row],[Line]],Table_PREInspection[Line],0),MATCH('Post-Install Information'!F$3,'Pre-Install Inspection'!$A$3:$N$3,0)),IF(OR(Table_POSTInfo[[#This Row],[Line]]=\"\",INDEX(Table_PREInfo[],Table_POSTInfo[[#This Row],[Line]],F$3)=\"\"),\"\",INDEX(Table_PREInfo[],Table_POSTInfo[[#This Row],[Line]],F$3)))","v":""},null,{"$f":"IF(ISNUMBER(MATCH(Table_POSTInfo[[#This Row],[Line]],Table_PREInspection[Line],0)),INDEX(Table_PREInspection[],MATCH(Table_POSTInfo[[#This Row],[Line]],Table_PREInspection[Line],0),MATCH('Post-Install Information'!H$3,'Pre-Install Inspection'!$A$3:$N$3,0)),IF(OR(Table_POSTInfo[[#This Row],[Line]]=\"\",INDEX(Table_PREInfo[],Table_POSTInfo[[#This Row],[Line]],H$3)=\"\"),\"\",INDEX(Table_PREInfo[],Table_POSTInfo[[#This Row],[Line]],H$3)))","v":""},{"$f":"IF(ISNUMBER(MATCH(Table_POSTInfo[[#This Row],[Line]],Table_PREInspection[Line],0)),INDEX(Table_PREInspection[],MATCH(Table_POSTInfo[[#This Row],[Line]],Table_PREInspection[Line],0),MATCH('Post-Install Information'!I$3,'Pre-Install Inspection'!$A$3:$N$3,0)),IF(OR(Table_POSTInfo[[#This Row],[Line]]=\"\",INDEX(Table_PREInfo[],Table_POSTInfo[[#This Row],[Line]],I$3)=\"\"),\"\",INDEX(Table_PREInfo[],Table_POSTInfo[[#This Row],[Line]],I$3)))","v":""},{"$f":"IF(ISNUMBER(MATCH(Table_POSTInfo[[#This Row],[Line]],Table_PREInspection[Line],0)),INDEX(Table_PREInspection[],MATCH(Table_POSTInfo[[#This Row],[Line]],Table_PREInspection[Line],0),MATCH('Post-Install Information'!J$3,'Pre-Install Inspection'!$A$3:$N$3,0)),IF(OR(Table_POSTInfo[[#This Row],[Line]]=\"\",INDEX(Table_PREInfo[],Table_POSTInfo[[#This Row],[Line]],J$3)=\"\"),\"\",INDEX(Table_PREInfo[],Table_POSTInfo[[#This Row],[Line]],J$3)))","v":""},{"$f":"IF(ISNUMBER(MATCH(Table_POSTInfo[[#This Row],[Line]],Table_PREInspection[Line],0)),INDEX(Table_PREInspection[],MATCH(Table_POSTInfo[[#This Row],[Line]],Table_PREInspection[Line],0),MATCH('Post-Install Information'!K$3,'Pre-Install Inspection'!$A$3:$N$3,0)),IF(OR(Table_POSTInfo[[#This Row],[Line]]=\"\",INDEX(Table_PREInfo[],Table_POSTInfo[[#This Row],[Line]],K$3)=\"\"),\"\",INDEX(Table_PREInfo[],Table_POSTInfo[[#This Row],[Line]],K$3)))","v":""},{"$f":"IF(ISNUMBER(MATCH(Table_POSTInfo[[#This Row],[Line]],Table_PREInspection[Line],0)),INDEX(Table_PREInspection[],MATCH(Table_POSTInfo[[#This Row],[Line]],Table_PREInspection[Line],0),MATCH('Post-Install Information'!L$3,'Pre-Install Inspection'!$A$3:$N$3,0)),IF(OR(Table_POSTInfo[[#This Row],[Line]]=\"\",INDEX(Table_PREInfo[],Table_POSTInfo[[#This Row],[Line]],L$3)=\"\"),\"\",INDEX(Table_PREInfo[],Table_POSTInfo[[#This Row],[Line]],L$3)))","v":""},{"$f":"IF(ISNUMBER(MATCH(Table_POSTInfo[[#This Row],[Line]],Table_PREInspection[Line],0)),INDEX(Table_PREInspection[],MATCH(Table_POSTInfo[[#This Row],[Line]],Table_PREInspection[Line],0),MATCH('Post-Install Information'!M$3,'Pre-Install Inspection'!$A$3:$N$3,0)),IF(OR(Table_POSTInfo[[#This Row],[Line]]=\"\",INDEX(Table_PREInfo[],Table_POSTInfo[[#This Row],[Line]],M$3)=\"\"),\"\",INDEX(Table_PREInfo[],Table_POSTInfo[[#This Row],[Line]],M$3)))","v":""},{"$f":"IF(ISNUMBER(MATCH(Table_POSTInfo[[#This Row],[Line]],Table_PREInspection[Line],0)),INDEX(Table_PREInspection[],MATCH(Table_POSTInfo[[#This Row],[Line]],Table_PREInspection[Line],0),MATCH('Post-Install Information'!N$3,'Pre-Install Inspection'!$A$3:$N$3,0)),IF(OR(Table_POSTInfo[[#This Row],[Line]]=\"\",INDEX(Table_PREInfo[],Table_POSTInfo[[#This Row],[Line]],N$3)=\"\"),\"\",INDEX(Table_PREInfo[],Table_POSTInfo[[#This Row],[Line]],N$3)))","v":""},{"$f":"IF(ISNUMBER(MATCH(Table_POSTInfo[[#This Row],[Line]],Table_PREInspection[Line],0)),INDEX(Table_PREInspection[],MATCH(Table_POSTInfo[[#This Row],[Line]],Table_PREInspection[Line],0),MATCH('Post-Install Information'!O$3,'Pre-Install Inspection'!$A$3:$N$3,0)),IF(OR(Table_POSTInfo[[#This Row],[Line]]=\"\",INDEX(Table_PREInfo[],Table_POSTInfo[[#This Row],[Line]],O$3)=\"\"),\"\",INDEX(Table_PREInfo[],Table_POSTInfo[[#This Row],[Line]],O$3)))","v":""},{"$f":"IF(ISNUMBER(MATCH(Table_POSTInfo[[#This Row],[Line]],Table_PREInspection[Line],0)),INDEX(Table_PREInspection[],MATCH(Table_POSTInfo[[#This Row],[Line]],Table_PREInspection[Line],0),MATCH('Post-Install Information'!P$3,'Pre-Install Inspection'!$A$3:$N$3,0)),IF(OR(Table_POSTInfo[[#This Row],[Line]]=\"\",INDEX(Table_PREInfo[],Table_POSTInfo[[#This Row],[Line]],P$3)=\"\"),\"\",INDEX(Table_PREInfo[],Table_POSTInfo[[#This Row],[Line]],P$3)))","v":""},null,{"$f":"IF(Table_PREInfo[[#This Row],[Fixture Qty '[P']]]<>0,Table_PREInfo[[#This Row],[Fixture Qty '[P']]],IF(Table_POSTInfo[[#This Row],[Fixture Qty '[E']]]<>0,Table_POSTInfo[[#This Row],[Fixture Qty '[E']]],\"\"))","v":""},{"$f":"IF(OR(Table_POSTInfo[[#This Row],[Line]]=\"\",INDEX(Table_PREInfo[],Table_POSTInfo[[#This Row],[Line]],S$3)=\"\"),\"\",INDEX(Table_PREInfo[],Table_POSTInfo[[#This Row],[Line]],S$3))","v":""},{"$f":"IF(OR(Table_POSTInfo[[#This Row],[Line]]=\"\",INDEX(Table_PREInfo[],Table_POSTInfo[[#This Row],[Line]],T$3)=\"\"),\"\",INDEX(Table_PREInfo[],Table_POSTInfo[[#This Row],[Line]],T$3))","v":""},{"$f":"IF(OR(Table_POSTInfo[[#This Row],[Line]]=\"\",INDEX(Table_PREInfo[],Table_POSTInfo[[#This Row],[Line]],U$3)=\"\"),\"\",INDEX(Table_PREInfo[],Table_POSTInfo[[#This Row],[Line]],U$3))","v":""},{"$f":"IF(OR(Table_POSTInfo[[#This Row],[Line]]=\"\",INDEX(Table_PREInfo[],Table_POSTInfo[[#This Row],[Line]],V$3)=\"\"),\"\",INDEX(Table_PREInfo[],Table_POSTInfo[[#This Row],[Line]],V$3))","v":""},{"$f":"IFERROR(\nIFERROR(OFFSET(Table_TypWattage[[#Headers],[Technology]],MATCH(Table_POSTInfo[[#This Row],[Fixture Technology '[P']]],Table_TypWattage[Technology],0)+MATCH(Table_POSTInfo[[#This Row],[Fixture/ Lamp Wattage '[P']]],INDIRECT(SUBSTITUTE(SUBSTITUTE(Table_POSTInfo[[#This Row],[Fixture Technology '[P']]],\" \",\"_\"),\"-\",\"_\")),0)-1,MATCH(Table_POSTInfo[[#This Row],['# Lamps/ Fixture '[P']]],'Measure Tables'!$Q$2:$V$2,0)+1),IF(Table_POSTInfo[[#This Row],[IsActive]],IF(AND(Table_POSTInfo[[#This Row],['# Lamps/ Fixture '[P']]]<>\"\",Table_POSTInfo[[#This Row],['# Lamps/ Fixture '[P']]]>0,Table_POSTInfo[[#This Row],[Fixture/ Lamp Wattage '[P']]]>0),Table_POSTInfo[[#This Row],['# Lamps/ Fixture '[P']]]*Table_POSTInfo[[#This Row],[Fixture/ Lamp Wattage '[P']]],Table_POSTInfo[[#This Row],[Fixture/ Lamp Wattage '[P']]]),\"\")),\n\"\")","v":""},{"$f":"IF(OR(Table_POSTInfo[[#This Row],[Line]]=\"\",INDEX(Table_PREInfo[],Table_POSTInfo[[#This Row],[Line]],X$3)=\"\"),\"\",INDEX(Table_PREInfo[],Table_POSTInfo[[#This Row],[Line]],X$3))","v":""},{"$f":"IF(OR(Table_POSTInfo[[#This Row],[Line]]=\"\",INDEX(Table_PREInfo[],Table_POSTInfo[[#This Row],[Line]],Y$3)=\"\"),\"\",INDEX(Table_PREInfo[],Table_POSTInfo[[#This Row],[Line]],Y$3))","v":""},{"$f":"IFERROR(IF(Table_POSTInfo[[#This Row],[Interior/ Exterior]]<>\"\",\n  CONCATENATE(\n  Table_POSTInfo[[#This Row],[Fixture Technology '[P']]],\n  \" - \",Table_POSTInfo[[#This Row],[Fixture Type '[P']]],\" [\",\n  IF(Table_POSTInfo[[#This Row],['# Lamps/ Fixture '[P']]]>0,Table_POSTInfo[[#This Row],['# Lamps/ Fixture '[P']]] & \"L - \" & Table_POSTInfo[[#This Row],[Fixture/ Lamp Wattage '[P']]] & \"W\" & IF(Table_POSTInfo[[#This Row],[Ballast/ Driver '[P']]]<>\"\",\" - \" & Table_POSTInfo[[#This Row],[Ballast/ Driver '[P']]],\"\"),Table_POSTInfo[[#This Row],[Fixture Wattage '[P']]] & \"W\"),\"]\",\n  IF(AND(Table_POSTInfo[[#This Row],[Controls '[P']]]<>\"\",Table_POSTInfo[[#This Row],[Controls '[P']]]<>\"No Controls\"),\" - \" & Table_POSTInfo[[#This Row],[Controls '[P']]],\"\")\n  ),\n\"\"),\"\")","v":""},{"$f":"IF(OR(Table_POSTInfo[[#This Row],[Line]]=\"\",INDEX(Table_PREInfo[],Table_POSTInfo[[#This Row],[Line]],AA$3)=\"\"),\"\",INDEX(Table_PREInfo[],Table_POSTInfo[[#This Row],[Line]],AA$3))","v":""},{"$f":"IF(OR(Table_POSTInfo[[#This Row],[Line]]=\"\",INDEX(Table_PREInfo[],Table_POSTInfo[[#This Row],[Line]],AB$3)=\"\"),\"\",INDEX(Table_PREInfo[],Table_POSTInfo[[#This Row],[Line]],AB$3))","v":""},{"$f":"IF(OR(Table_POSTInfo[[#This Row],[Line]]=\"\",INDEX(Table_PREInfo[],Table_POSTInfo[[#This Row],[Line]],AC$3)=\"\"),\"\",INDEX(Table_PREInfo[],Table_POSTInfo[[#This Row],[Line]],AC$3))","v":""}]
[{"$f":"IF($A37=\"Line\",1,MAX($A$4:$A37)+1)","v":34},{"$f":"IF(OR(Table_POSTInfo[[#This Row],[Line]]=\"\",INDEX(Table_PREInfo[],Table_POSTInfo[[#This Row],[Line]],B$3)=\"\"),\"\",INDEX(Table_PREInfo[],Table_POSTInfo[[#This Row],[Line]],B$3))","v":false},{"$f":"IF(OR(Table_POSTInfo[[#This Row],[Line]]=\"\",INDEX(Table_PREInfo[],Table_POSTInfo[[#This Row],[Line]],C$3)=\"\"),\"\",INDEX(Table_PREInfo[],Table_POSTInfo[[#This Row],[Line]],C$3))","v":""},{"$f":"IF(ISNUMBER(MATCH(Table_POSTInfo[[#This Row],[Line]],Table_PREInspection[Line],0)),INDEX(Table_PREInspection[],MATCH(Table_POSTInfo[[#This Row],[Line]],Table_PREInspection[Line],0),MATCH('Post-Install Information'!D$3,'Pre-Install Inspection'!$A$3:$N$3,0)),IF(OR(Table_POSTInfo[[#This Row],[Line]]=\"\",INDEX(Table_PREInfo[],Table_POSTInfo[[#This Row],[Line]],D$3)=\"\"),\"\",INDEX(Table_PREInfo[],Table_POSTInfo[[#This Row],[Line]],D$3)))","v":""},{"$f":"IF(ISNUMBER(MATCH(Table_POSTInfo[[#This Row],[Line]],Table_PREInspection[Line],0)),INDEX(Table_PREInspection[],MATCH(Table_POSTInfo[[#This Row],[Line]],Table_PREInspection[Line],0),MATCH('Post-Install Information'!E$3,'Pre-Install Inspection'!$A$3:$N$3,0)),IF(OR(Table_POSTInfo[[#This Row],[Line]]=\"\",INDEX(Table_PREInfo[],Table_POSTInfo[[#This Row],[Line]],E$3)=\"\"),\"\",INDEX(Table_PREInfo[],Table_POSTInfo[[#This Row],[Line]],E$3)))","v":""},{"$f":"IF(ISNUMBER(MATCH(Table_POSTInfo[[#This Row],[Line]],Table_PREInspection[Line],0)),INDEX(Table_PREInspection[],MATCH(Table_POSTInfo[[#This Row],[Line]],Table_PREInspection[Line],0),MATCH('Post-Install Information'!F$3,'Pre-Install Inspection'!$A$3:$N$3,0)),IF(OR(Table_POSTInfo[[#This Row],[Line]]=\"\",INDEX(Table_PREInfo[],Table_POSTInfo[[#This Row],[Line]],F$3)=\"\"),\"\",INDEX(Table_PREInfo[],Table_POSTInfo[[#This Row],[Line]],F$3)))","v":""},null,{"$f":"IF(ISNUMBER(MATCH(Table_POSTInfo[[#This Row],[Line]],Table_PREInspection[Line],0)),INDEX(Table_PREInspection[],MATCH(Table_POSTInfo[[#This Row],[Line]],Table_PREInspection[Line],0),MATCH('Post-Install Information'!H$3,'Pre-Install Inspection'!$A$3:$N$3,0)),IF(OR(Table_POSTInfo[[#This Row],[Line]]=\"\",INDEX(Table_PREInfo[],Table_POSTInfo[[#This Row],[Line]],H$3)=\"\"),\"\",INDEX(Table_PREInfo[],Table_POSTInfo[[#This Row],[Line]],H$3)))","v":""},{"$f":"IF(ISNUMBER(MATCH(Table_POSTInfo[[#This Row],[Line]],Table_PREInspection[Line],0)),INDEX(Table_PREInspection[],MATCH(Table_POSTInfo[[#This Row],[Line]],Table_PREInspection[Line],0),MATCH('Post-Install Information'!I$3,'Pre-Install Inspection'!$A$3:$N$3,0)),IF(OR(Table_POSTInfo[[#This Row],[Line]]=\"\",INDEX(Table_PREInfo[],Table_POSTInfo[[#This Row],[Line]],I$3)=\"\"),\"\",INDEX(Table_PREInfo[],Table_POSTInfo[[#This Row],[Line]],I$3)))","v":""},{"$f":"IF(ISNUMBER(MATCH(Table_POSTInfo[[#This Row],[Line]],Table_PREInspection[Line],0)),INDEX(Table_PREInspection[],MATCH(Table_POSTInfo[[#This Row],[Line]],Table_PREInspection[Line],0),MATCH('Post-Install Information'!J$3,'Pre-Install Inspection'!$A$3:$N$3,0)),IF(OR(Table_POSTInfo[[#This Row],[Line]]=\"\",INDEX(Table_PREInfo[],Table_POSTInfo[[#This Row],[Line]],J$3)=\"\"),\"\",INDEX(Table_PREInfo[],Table_POSTInfo[[#This Row],[Line]],J$3)))","v":""},{"$f":"IF(ISNUMBER(MATCH(Table_POSTInfo[[#This Row],[Line]],Table_PREInspection[Line],0)),INDEX(Table_PREInspection[],MATCH(Table_POSTInfo[[#This Row],[Line]],Table_PREInspection[Line],0),MATCH('Post-Install Information'!K$3,'Pre-Install Inspection'!$A$3:$N$3,0)),IF(OR(Table_POSTInfo[[#This Row],[Line]]=\"\",INDEX(Table_PREInfo[],Table_POSTInfo[[#This Row],[Line]],K$3)=\"\"),\"\",INDEX(Table_PREInfo[],Table_POSTInfo[[#This Row],[Line]],K$3)))","v":""},{"$f":"IF(ISNUMBER(MATCH(Table_POSTInfo[[#This Row],[Line]],Table_PREInspection[Line],0)),INDEX(Table_PREInspection[],MATCH(Table_POSTInfo[[#This Row],[Line]],Table_PREInspection[Line],0),MATCH('Post-Install Information'!L$3,'Pre-Install Inspection'!$A$3:$N$3,0)),IF(OR(Table_POSTInfo[[#This Row],[Line]]=\"\",INDEX(Table_PREInfo[],Table_POSTInfo[[#This Row],[Line]],L$3)=\"\"),\"\",INDEX(Table_PREInfo[],Table_POSTInfo[[#This Row],[Line]],L$3)))","v":""},{"$f":"IF(ISNUMBER(MATCH(Table_POSTInfo[[#This Row],[Line]],Table_PREInspection[Line],0)),INDEX(Table_PREInspection[],MATCH(Table_POSTInfo[[#This Row],[Line]],Table_PREInspection[Line],0),MATCH('Post-Install Information'!M$3,'Pre-Install Inspection'!$A$3:$N$3,0)),IF(OR(Table_POSTInfo[[#This Row],[Line]]=\"\",INDEX(Table_PREInfo[],Table_POSTInfo[[#This Row],[Line]],M$3)=\"\"),\"\",INDEX(Table_PREInfo[],Table_POSTInfo[[#This Row],[Line]],M$3)))","v":""},{"$f":"IF(ISNUMBER(MATCH(Table_POSTInfo[[#This Row],[Line]],Table_PREInspection[Line],0)),INDEX(Table_PREInspection[],MATCH(Table_POSTInfo[[#This Row],[Line]],Table_PREInspection[Line],0),MATCH('Post-Install Information'!N$3,'Pre-Install Inspection'!$A$3:$N$3,0)),IF(OR(Table_POSTInfo[[#This Row],[Line]]=\"\",INDEX(Table_PREInfo[],Table_POSTInfo[[#This Row],[Line]],N$3)=\"\"),\"\",INDEX(Table_PREInfo[],Table_POSTInfo[[#This Row],[Line]],N$3)))","v":""},{"$f":"IF(ISNUMBER(MATCH(Table_POSTInfo[[#This Row],[Line]],Table_PREInspection[Line],0)),INDEX(Table_PREInspection[],MATCH(Table_POSTInfo[[#This Row],[Line]],Table_PREInspection[Line],0),MATCH('Post-Install Information'!O$3,'Pre-Install Inspection'!$A$3:$N$3,0)),IF(OR(Table_POSTInfo[[#This Row],[Line]]=\"\",INDEX(Table_PREInfo[],Table_POSTInfo[[#This Row],[Line]],O$3)=\"\"),\"\",INDEX(Table_PREInfo[],Table_POSTInfo[[#This Row],[Line]],O$3)))","v":""},{"$f":"IF(ISNUMBER(MATCH(Table_POSTInfo[[#This Row],[Line]],Table_PREInspection[Line],0)),INDEX(Table_PREInspection[],MATCH(Table_POSTInfo[[#This Row],[Line]],Table_PREInspection[Line],0),MATCH('Post-Install Information'!P$3,'Pre-Install Inspection'!$A$3:$N$3,0)),IF(OR(Table_POSTInfo[[#This Row],[Line]]=\"\",INDEX(Table_PREInfo[],Table_POSTInfo[[#This Row],[Line]],P$3)=\"\"),\"\",INDEX(Table_PREInfo[],Table_POSTInfo[[#This Row],[Line]],P$3)))","v":""},null,{"$f":"IF(Table_PREInfo[[#This Row],[Fixture Qty '[P']]]<>0,Table_PREInfo[[#This Row],[Fixture Qty '[P']]],IF(Table_POSTInfo[[#This Row],[Fixture Qty '[E']]]<>0,Table_POSTInfo[[#This Row],[Fixture Qty '[E']]],\"\"))","v":""},{"$f":"IF(OR(Table_POSTInfo[[#This Row],[Line]]=\"\",INDEX(Table_PREInfo[],Table_POSTInfo[[#This Row],[Line]],S$3)=\"\"),\"\",INDEX(Table_PREInfo[],Table_POSTInfo[[#This Row],[Line]],S$3))","v":""},{"$f":"IF(OR(Table_POSTInfo[[#This Row],[Line]]=\"\",INDEX(Table_PREInfo[],Table_POSTInfo[[#This Row],[Line]],T$3)=\"\"),\"\",INDEX(Table_PREInfo[],Table_POSTInfo[[#This Row],[Line]],T$3))","v":""},{"$f":"IF(OR(Table_POSTInfo[[#This Row],[Line]]=\"\",INDEX(Table_PREInfo[],Table_POSTInfo[[#This Row],[Line]],U$3)=\"\"),\"\",INDEX(Table_PREInfo[],Table_POSTInfo[[#This Row],[Line]],U$3))","v":""},{"$f":"IF(OR(Table_POSTInfo[[#This Row],[Line]]=\"\",INDEX(Table_PREInfo[],Table_POSTInfo[[#This Row],[Line]],V$3)=\"\"),\"\",INDEX(Table_PREInfo[],Table_POSTInfo[[#This Row],[Line]],V$3))","v":""},{"$f":"IFERROR(\nIFERROR(OFFSET(Table_TypWattage[[#Headers],[Technology]],MATCH(Table_POSTInfo[[#This Row],[Fixture Technology '[P']]],Table_TypWattage[Technology],0)+MATCH(Table_POSTInfo[[#This Row],[Fixture/ Lamp Wattage '[P']]],INDIRECT(SUBSTITUTE(SUBSTITUTE(Table_POSTInfo[[#This Row],[Fixture Technology '[P']]],\" \",\"_\"),\"-\",\"_\")),0)-1,MATCH(Table_POSTInfo[[#This Row],['# Lamps/ Fixture '[P']]],'Measure Tables'!$Q$2:$V$2,0)+1),IF(Table_POSTInfo[[#This Row],[IsActive]],IF(AND(Table_POSTInfo[[#This Row],['# Lamps/ Fixture '[P']]]<>\"\",Table_POSTInfo[[#This Row],['# Lamps/ Fixture '[P']]]>0,Table_POSTInfo[[#This Row],[Fixture/ Lamp Wattage '[P']]]>0),Table_POSTInfo[[#This Row],['# Lamps/ Fixture '[P']]]*Table_POSTInfo[[#This Row],[Fixture/ Lamp Wattage '[P']]],Table_POSTInfo[[#This Row],[Fixture/ Lamp Wattage '[P']]]),\"\")),\n\"\")","v":""},{"$f":"IF(OR(Table_POSTInfo[[#This Row],[Line]]=\"\",INDEX(Table_PREInfo[],Table_POSTInfo[[#This Row],[Line]],X$3)=\"\"),\"\",INDEX(Table_PREInfo[],Table_POSTInfo[[#This Row],[Line]],X$3))","v":""},{"$f":"IF(OR(Table_POSTInfo[[#This Row],[Line]]=\"\",INDEX(Table_PREInfo[],Table_POSTInfo[[#This Row],[Line]],Y$3)=\"\"),\"\",INDEX(Table_PREInfo[],Table_POSTInfo[[#This Row],[Line]],Y$3))","v":""},{"$f":"IFERROR(IF(Table_POSTInfo[[#This Row],[Interior/ Exterior]]<>\"\",\n  CONCATENATE(\n  Table_POSTInfo[[#This Row],[Fixture Technology '[P']]],\n  \" - \",Table_POSTInfo[[#This Row],[Fixture Type '[P']]],\" [\",\n  IF(Table_POSTInfo[[#This Row],['# Lamps/ Fixture '[P']]]>0,Table_POSTInfo[[#This Row],['# Lamps/ Fixture '[P']]] & \"L - \" & Table_POSTInfo[[#This Row],[Fixture/ Lamp Wattage '[P']]] & \"W\" & IF(Table_POSTInfo[[#This Row],[Ballast/ Driver '[P']]]<>\"\",\" - \" & Table_POSTInfo[[#This Row],[Ballast/ Driver '[P']]],\"\"),Table_POSTInfo[[#This Row],[Fixture Wattage '[P']]] & \"W\"),\"]\",\n  IF(AND(Table_POSTInfo[[#This Row],[Controls '[P']]]<>\"\",Table_POSTInfo[[#This Row],[Controls '[P']]]<>\"No Controls\"),\" - \" & Table_POSTInfo[[#This Row],[Controls '[P']]],\"\")\n  ),\n\"\"),\"\")","v":""},{"$f":"IF(OR(Table_POSTInfo[[#This Row],[Line]]=\"\",INDEX(Table_PREInfo[],Table_POSTInfo[[#This Row],[Line]],AA$3)=\"\"),\"\",INDEX(Table_PREInfo[],Table_POSTInfo[[#This Row],[Line]],AA$3))","v":""},{"$f":"IF(OR(Table_POSTInfo[[#This Row],[Line]]=\"\",INDEX(Table_PREInfo[],Table_POSTInfo[[#This Row],[Line]],AB$3)=\"\"),\"\",INDEX(Table_PREInfo[],Table_POSTInfo[[#This Row],[Line]],AB$3))","v":""},{"$f":"IF(OR(Table_POSTInfo[[#This Row],[Line]]=\"\",INDEX(Table_PREInfo[],Table_POSTInfo[[#This Row],[Line]],AC$3)=\"\"),\"\",INDEX(Table_PREInfo[],Table_POSTInfo[[#This Row],[Line]],AC$3))","v":""}]
[{"$f":"IF($A38=\"Line\",1,MAX($A$4:$A38)+1)","v":35},{"$f":"IF(OR(Table_POSTInfo[[#This Row],[Line]]=\"\",INDEX(Table_PREInfo[],Table_POSTInfo[[#This Row],[Line]],B$3)=\"\"),\"\",INDEX(Table_PREInfo[],Table_POSTInfo[[#This Row],[Line]],B$3))","v":false},{"$f":"IF(OR(Table_POSTInfo[[#This Row],[Line]]=\"\",INDEX(Table_PREInfo[],Table_POSTInfo[[#This Row],[Line]],C$3)=\"\"),\"\",INDEX(Table_PREInfo[],Table_POSTInfo[[#This Row],[Line]],C$3))","v":""},{"$f":"IF(ISNUMBER(MATCH(Table_POSTInfo[[#This Row],[Line]],Table_PREInspection[Line],0)),INDEX(Table_PREInspection[],MATCH(Table_POSTInfo[[#This Row],[Line]],Table_PREInspection[Line],0),MATCH('Post-Install Information'!D$3,'Pre-Install Inspection'!$A$3:$N$3,0)),IF(OR(Table_POSTInfo[[#This Row],[Line]]=\"\",INDEX(Table_PREInfo[],Table_POSTInfo[[#This Row],[Line]],D$3)=\"\"),\"\",INDEX(Table_PREInfo[],Table_POSTInfo[[#This Row],[Line]],D$3)))","v":""},{"$f":"IF(ISNUMBER(MATCH(Table_POSTInfo[[#This Row],[Line]],Table_PREInspection[Line],0)),INDEX(Table_PREInspection[],MATCH(Table_POSTInfo[[#This Row],[Line]],Table_PREInspection[Line],0),MATCH('Post-Install Information'!E$3,'Pre-Install Inspection'!$A$3:$N$3,0)),IF(OR(Table_POSTInfo[[#This Row],[Line]]=\"\",INDEX(Table_PREInfo[],Table_POSTInfo[[#This Row],[Line]],E$3)=\"\"),\"\",INDEX(Table_PREInfo[],Table_POSTInfo[[#This Row],[Line]],E$3)))","v":""},{"$f":"IF(ISNUMBER(MATCH(Table_POSTInfo[[#This Row],[Line]],Table_PREInspection[Line],0)),INDEX(Table_PREInspection[],MATCH(Table_POSTInfo[[#This Row],[Line]],Table_PREInspection[Line],0),MATCH('Post-Install Information'!F$3,'Pre-Install Inspection'!$A$3:$N$3,0)),IF(OR(Table_POSTInfo[[#This Row],[Line]]=\"\",INDEX(Table_PREInfo[],Table_POSTInfo[[#This Row],[Line]],F$3)=\"\"),\"\",INDEX(Table_PREInfo[],Table_POSTInfo[[#This Row],[Line]],F$3)))","v":""},null,{"$f":"IF(ISNUMBER(MATCH(Table_POSTInfo[[#This Row],[Line]],Table_PREInspection[Line],0)),INDEX(Table_PREInspection[],MATCH(Table_POSTInfo[[#This Row],[Line]],Table_PREInspection[Line],0),MATCH('Post-Install Information'!H$3,'Pre-Install Inspection'!$A$3:$N$3,0)),IF(OR(Table_POSTInfo[[#This Row],[Line]]=\"\",INDEX(Table_PREInfo[],Table_POSTInfo[[#This Row],[Line]],H$3)=\"\"),\"\",INDEX(Table_PREInfo[],Table_POSTInfo[[#This Row],[Line]],H$3)))","v":""},{"$f":"IF(ISNUMBER(MATCH(Table_POSTInfo[[#This Row],[Line]],Table_PREInspection[Line],0)),INDEX(Table_PREInspection[],MATCH(Table_POSTInfo[[#This Row],[Line]],Table_PREInspection[Line],0),MATCH('Post-Install Information'!I$3,'Pre-Install Inspection'!$A$3:$N$3,0)),IF(OR(Table_POSTInfo[[#This Row],[Line]]=\"\",INDEX(Table_PREInfo[],Table_POSTInfo[[#This Row],[Line]],I$3)=\"\"),\"\",INDEX(Table_PREInfo[],Table_POSTInfo[[#This Row],[Line]],I$3)))","v":""},{"$f":"IF(ISNUMBER(MATCH(Table_POSTInfo[[#This Row],[Line]],Table_PREInspection[Line],0)),INDEX(Table_PREInspection[],MATCH(Table_POSTInfo[[#This Row],[Line]],Table_PREInspection[Line],0),MATCH('Post-Install Information'!J$3,'Pre-Install Inspection'!$A$3:$N$3,0)),IF(OR(Table_POSTInfo[[#This Row],[Line]]=\"\",INDEX(Table_PREInfo[],Table_POSTInfo[[#This Row],[Line]],J$3)=\"\"),\"\",INDEX(Table_PREInfo[],Table_POSTInfo[[#This Row],[Line]],J$3)))","v":""},{"$f":"IF(ISNUMBER(MATCH(Table_POSTInfo[[#This Row],[Line]],Table_PREInspection[Line],0)),INDEX(Table_PREInspection[],MATCH(Table_POSTInfo[[#This Row],[Line]],Table_PREInspection[Line],0),MATCH('Post-Install Information'!K$3,'Pre-Install Inspection'!$A$3:$N$3,0)),IF(OR(Table_POSTInfo[[#This Row],[Line]]=\"\",INDEX(Table_PREInfo[],Table_POSTInfo[[#This Row],[Line]],K$3)=\"\"),\"\",INDEX(Table_PREInfo[],Table_POSTInfo[[#This Row],[Line]],K$3)))","v":""},{"$f":"IF(ISNUMBER(MATCH(Table_POSTInfo[[#This Row],[Line]],Table_PREInspection[Line],0)),INDEX(Table_PREInspection[],MATCH(Table_POSTInfo[[#This Row],[Line]],Table_PREInspection[Line],0),MATCH('Post-Install Information'!L$3,'Pre-Install Inspection'!$A$3:$N$3,0)),IF(OR(Table_POSTInfo[[#This Row],[Line]]=\"\",INDEX(Table_PREInfo[],Table_POSTInfo[[#This Row],[Line]],L$3)=\"\"),\"\",INDEX(Table_PREInfo[],Table_POSTInfo[[#This Row],[Line]],L$3)))","v":""},{"$f":"IF(ISNUMBER(MATCH(Table_POSTInfo[[#This Row],[Line]],Table_PREInspection[Line],0)),INDEX(Table_PREInspection[],MATCH(Table_POSTInfo[[#This Row],[Line]],Table_PREInspection[Line],0),MATCH('Post-Install Information'!M$3,'Pre-Install Inspection'!$A$3:$N$3,0)),IF(OR(Table_POSTInfo[[#This Row],[Line]]=\"\",INDEX(Table_PREInfo[],Table_POSTInfo[[#This Row],[Line]],M$3)=\"\"),\"\",INDEX(Table_PREInfo[],Table_POSTInfo[[#This Row],[Line]],M$3)))","v":""},{"$f":"IF(ISNUMBER(MATCH(Table_POSTInfo[[#This Row],[Line]],Table_PREInspection[Line],0)),INDEX(Table_PREInspection[],MATCH(Table_POSTInfo[[#This Row],[Line]],Table_PREInspection[Line],0),MATCH('Post-Install Information'!N$3,'Pre-Install Inspection'!$A$3:$N$3,0)),IF(OR(Table_POSTInfo[[#This Row],[Line]]=\"\",INDEX(Table_PREInfo[],Table_POSTInfo[[#This Row],[Line]],N$3)=\"\"),\"\",INDEX(Table_PREInfo[],Table_POSTInfo[[#This Row],[Line]],N$3)))","v":""},{"$f":"IF(ISNUMBER(MATCH(Table_POSTInfo[[#This Row],[Line]],Table_PREInspection[Line],0)),INDEX(Table_PREInspection[],MATCH(Table_POSTInfo[[#This Row],[Line]],Table_PREInspection[Line],0),MATCH('Post-Install Information'!O$3,'Pre-Install Inspection'!$A$3:$N$3,0)),IF(OR(Table_POSTInfo[[#This Row],[Line]]=\"\",INDEX(Table_PREInfo[],Table_POSTInfo[[#This Row],[Line]],O$3)=\"\"),\"\",INDEX(Table_PREInfo[],Table_POSTInfo[[#This Row],[Line]],O$3)))","v":""},{"$f":"IF(ISNUMBER(MATCH(Table_POSTInfo[[#This Row],[Line]],Table_PREInspection[Line],0)),INDEX(Table_PREInspection[],MATCH(Table_POSTInfo[[#This Row],[Line]],Table_PREInspection[Line],0),MATCH('Post-Install Information'!P$3,'Pre-Install Inspection'!$A$3:$N$3,0)),IF(OR(Table_POSTInfo[[#This Row],[Line]]=\"\",INDEX(Table_PREInfo[],Table_POSTInfo[[#This Row],[Line]],P$3)=\"\"),\"\",INDEX(Table_PREInfo[],Table_POSTInfo[[#This Row],[Line]],P$3)))","v":""},null,{"$f":"IF(Table_PREInfo[[#This Row],[Fixture Qty '[P']]]<>0,Table_PREInfo[[#This Row],[Fixture Qty '[P']]],IF(Table_POSTInfo[[#This Row],[Fixture Qty '[E']]]<>0,Table_POSTInfo[[#This Row],[Fixture Qty '[E']]],\"\"))","v":""},{"$f":"IF(OR(Table_POSTInfo[[#This Row],[Line]]=\"\",INDEX(Table_PREInfo[],Table_POSTInfo[[#This Row],[Line]],S$3)=\"\"),\"\",INDEX(Table_PREInfo[],Table_POSTInfo[[#This Row],[Line]],S$3))","v":""},{"$f":"IF(OR(Table_POSTInfo[[#This Row],[Line]]=\"\",INDEX(Table_PREInfo[],Table_POSTInfo[[#This Row],[Line]],T$3)=\"\"),\"\",INDEX(Table_PREInfo[],Table_POSTInfo[[#This Row],[Line]],T$3))","v":""},{"$f":"IF(OR(Table_POSTInfo[[#This Row],[Line]]=\"\",INDEX(Table_PREInfo[],Table_POSTInfo[[#This Row],[Line]],U$3)=\"\"),\"\",INDEX(Table_PREInfo[],Table_POSTInfo[[#This Row],[Line]],U$3))","v":""},{"$f":"IF(OR(Table_POSTInfo[[#This Row],[Line]]=\"\",INDEX(Table_PREInfo[],Table_POSTInfo[[#This Row],[Line]],V$3)=\"\"),\"\",INDEX(Table_PREInfo[],Table_POSTInfo[[#This Row],[Line]],V$3))","v":""},{"$f":"IFERROR(\nIFERROR(OFFSET(Table_TypWattage[[#Headers],[Technology]],MATCH(Table_POSTInfo[[#This Row],[Fixture Technology '[P']]],Table_TypWattage[Technology],0)+MATCH(Table_POSTInfo[[#This Row],[Fixture/ Lamp Wattage '[P']]],INDIRECT(SUBSTITUTE(SUBSTITUTE(Table_POSTInfo[[#This Row],[Fixture Technology '[P']]],\" \",\"_\"),\"-\",\"_\")),0)-1,MATCH(Table_POSTInfo[[#This Row],['# Lamps/ Fixture '[P']]],'Measure Tables'!$Q$2:$V$2,0)+1),IF(Table_POSTInfo[[#This Row],[IsActive]],IF(AND(Table_POSTInfo[[#This Row],['# Lamps/ Fixture '[P']]]<>\"\",Table_POSTInfo[[#This Row],['# Lamps/ Fixture '[P']]]>0,Table_POSTInfo[[#This Row],[Fixture/ Lamp Wattage '[P']]]>0),Table_POSTInfo[[#This Row],['# Lamps/ Fixture '[P']]]*Table_POSTInfo[[#This Row],[Fixture/ Lamp Wattage '[P']]],Table_POSTInfo[[#This Row],[Fixture/ Lamp Wattage '[P']]]),\"\")),\n\"\")","v":""},{"$f":"IF(OR(Table_POSTInfo[[#This Row],[Line]]=\"\",INDEX(Table_PREInfo[],Table_POSTInfo[[#This Row],[Line]],X$3)=\"\"),\"\",INDEX(Table_PREInfo[],Table_POSTInfo[[#This Row],[Line]],X$3))","v":""},{"$f":"IF(OR(Table_POSTInfo[[#This Row],[Line]]=\"\",INDEX(Table_PREInfo[],Table_POSTInfo[[#This Row],[Line]],Y$3)=\"\"),\"\",INDEX(Table_PREInfo[],Table_POSTInfo[[#This Row],[Line]],Y$3))","v":""},{"$f":"IFERROR(IF(Table_POSTInfo[[#This Row],[Interior/ Exterior]]<>\"\",\n  CONCATENATE(\n  Table_POSTInfo[[#This Row],[Fixture Technology '[P']]],\n  \" - \",Table_POSTInfo[[#This Row],[Fixture Type '[P']]],\" [\",\n  IF(Table_POSTInfo[[#This Row],['# Lamps/ Fixture '[P']]]>0,Table_POSTInfo[[#This Row],['# Lamps/ Fixture '[P']]] & \"L - \" & Table_POSTInfo[[#This Row],[Fixture/ Lamp Wattage '[P']]] & \"W\" & IF(Table_POSTInfo[[#This Row],[Ballast/ Driver '[P']]]<>\"\",\" - \" & Table_POSTInfo[[#This Row],[Ballast/ Driver '[P']]],\"\"),Table_POSTInfo[[#This Row],[Fixture Wattage '[P']]] & \"W\"),\"]\",\n  IF(AND(Table_POSTInfo[[#This Row],[Controls '[P']]]<>\"\",Table_POSTInfo[[#This Row],[Controls '[P']]]<>\"No Controls\"),\" - \" & Table_POSTInfo[[#This Row],[Controls '[P']]],\"\")\n  ),\n\"\"),\"\")","v":""},{"$f":"IF(OR(Table_POSTInfo[[#This Row],[Line]]=\"\",INDEX(Table_PREInfo[],Table_POSTInfo[[#This Row],[Line]],AA$3)=\"\"),\"\",INDEX(Table_PREInfo[],Table_POSTInfo[[#This Row],[Line]],AA$3))","v":""},{"$f":"IF(OR(Table_POSTInfo[[#This Row],[Line]]=\"\",INDEX(Table_PREInfo[],Table_POSTInfo[[#This Row],[Line]],AB$3)=\"\"),\"\",INDEX(Table_PREInfo[],Table_POSTInfo[[#This Row],[Line]],AB$3))","v":""},{"$f":"IF(OR(Table_POSTInfo[[#This Row],[Line]]=\"\",INDEX(Table_PREInfo[],Table_POSTInfo[[#This Row],[Line]],AC$3)=\"\"),\"\",INDEX(Table_PREInfo[],Table_POSTInfo[[#This Row],[Line]],AC$3))","v":""}]
[{"$f":"IF($A39=\"Line\",1,MAX($A$4:$A39)+1)","v":36},{"$f":"IF(OR(Table_POSTInfo[[#This Row],[Line]]=\"\",INDEX(Table_PREInfo[],Table_POSTInfo[[#This Row],[Line]],B$3)=\"\"),\"\",INDEX(Table_PREInfo[],Table_POSTInfo[[#This Row],[Line]],B$3))","v":false},{"$f":"IF(OR(Table_POSTInfo[[#This Row],[Line]]=\"\",INDEX(Table_PREInfo[],Table_POSTInfo[[#This Row],[Line]],C$3)=\"\"),\"\",INDEX(Table_PREInfo[],Table_POSTInfo[[#This Row],[Line]],C$3))","v":""},{"$f":"IF(ISNUMBER(MATCH(Table_POSTInfo[[#This Row],[Line]],Table_PREInspection[Line],0)),INDEX(Table_PREInspection[],MATCH(Table_POSTInfo[[#This Row],[Line]],Table_PREInspection[Line],0),MATCH('Post-Install Information'!D$3,'Pre-Install Inspection'!$A$3:$N$3,0)),IF(OR(Table_POSTInfo[[#This Row],[Line]]=\"\",INDEX(Table_PREInfo[],Table_POSTInfo[[#This Row],[Line]],D$3)=\"\"),\"\",INDEX(Table_PREInfo[],Table_POSTInfo[[#This Row],[Line]],D$3)))","v":""},{"$f":"IF(ISNUMBER(MATCH(Table_POSTInfo[[#This Row],[Line]],Table_PREInspection[Line],0)),INDEX(Table_PREInspection[],MATCH(Table_POSTInfo[[#This Row],[Line]],Table_PREInspection[Line],0),MATCH('Post-Install Information'!E$3,'Pre-Install Inspection'!$A$3:$N$3,0)),IF(OR(Table_POSTInfo[[#This Row],[Line]]=\"\",INDEX(Table_PREInfo[],Table_POSTInfo[[#This Row],[Line]],E$3)=\"\"),\"\",INDEX(Table_PREInfo[],Table_POSTInfo[[#This Row],[Line]],E$3)))","v":""},{"$f":"IF(ISNUMBER(MATCH(Table_POSTInfo[[#This Row],[Line]],Table_PREInspection[Line],0)),INDEX(Table_PREInspection[],MATCH(Table_POSTInfo[[#This Row],[Line]],Table_PREInspection[Line],0),MATCH('Post-Install Information'!F$3,'Pre-Install Inspection'!$A$3:$N$3,0)),IF(OR(Table_POSTInfo[[#This Row],[Line]]=\"\",INDEX(Table_PREInfo[],Table_POSTInfo[[#This Row],[Line]],F$3)=\"\"),\"\",INDEX(Table_PREInfo[],Table_POSTInfo[[#This Row],[Line]],F$3)))","v":""},null,{"$f":"IF(ISNUMBER(MATCH(Table_POSTInfo[[#This Row],[Line]],Table_PREInspection[Line],0)),INDEX(Table_PREInspection[],MATCH(Table_POSTInfo[[#This Row],[Line]],Table_PREInspection[Line],0),MATCH('Post-Install Information'!H$3,'Pre-Install Inspection'!$A$3:$N$3,0)),IF(OR(Table_POSTInfo[[#This Row],[Line]]=\"\",INDEX(Table_PREInfo[],Table_POSTInfo[[#This Row],[Line]],H$3)=\"\"),\"\",INDEX(Table_PREInfo[],Table_POSTInfo[[#This Row],[Line]],H$3)))","v":""},{"$f":"IF(ISNUMBER(MATCH(Table_POSTInfo[[#This Row],[Line]],Table_PREInspection[Line],0)),INDEX(Table_PREInspection[],MATCH(Table_POSTInfo[[#This Row],[Line]],Table_PREInspection[Line],0),MATCH('Post-Install Information'!I$3,'Pre-Install Inspection'!$A$3:$N$3,0)),IF(OR(Table_POSTInfo[[#This Row],[Line]]=\"\",INDEX(Table_PREInfo[],Table_POSTInfo[[#This Row],[Line]],I$3)=\"\"),\"\",INDEX(Table_PREInfo[],Table_POSTInfo[[#This Row],[Line]],I$3)))","v":""},{"$f":"IF(ISNUMBER(MATCH(Table_POSTInfo[[#This Row],[Line]],Table_PREInspection[Line],0)),INDEX(Table_PREInspection[],MATCH(Table_POSTInfo[[#This Row],[Line]],Table_PREInspection[Line],0),MATCH('Post-Install Information'!J$3,'Pre-Install Inspection'!$A$3:$N$3,0)),IF(OR(Table_POSTInfo[[#This Row],[Line]]=\"\",INDEX(Table_PREInfo[],Table_POSTInfo[[#This Row],[Line]],J$3)=\"\"),\"\",INDEX(Table_PREInfo[],Table_POSTInfo[[#This Row],[Line]],J$3)))","v":""},{"$f":"IF(ISNUMBER(MATCH(Table_POSTInfo[[#This Row],[Line]],Table_PREInspection[Line],0)),INDEX(Table_PREInspection[],MATCH(Table_POSTInfo[[#This Row],[Line]],Table_PREInspection[Line],0),MATCH('Post-Install Information'!K$3,'Pre-Install Inspection'!$A$3:$N$3,0)),IF(OR(Table_POSTInfo[[#This Row],[Line]]=\"\",INDEX(Table_PREInfo[],Table_POSTInfo[[#This Row],[Line]],K$3)=\"\"),\"\",INDEX(Table_PREInfo[],Table_POSTInfo[[#This Row],[Line]],K$3)))","v":""},{"$f":"IF(ISNUMBER(MATCH(Table_POSTInfo[[#This Row],[Line]],Table_PREInspection[Line],0)),INDEX(Table_PREInspection[],MATCH(Table_POSTInfo[[#This Row],[Line]],Table_PREInspection[Line],0),MATCH('Post-Install Information'!L$3,'Pre-Install Inspection'!$A$3:$N$3,0)),IF(OR(Table_POSTInfo[[#This Row],[Line]]=\"\",INDEX(Table_PREInfo[],Table_POSTInfo[[#This Row],[Line]],L$3)=\"\"),\"\",INDEX(Table_PREInfo[],Table_POSTInfo[[#This Row],[Line]],L$3)))","v":""},{"$f":"IF(ISNUMBER(MATCH(Table_POSTInfo[[#This Row],[Line]],Table_PREInspection[Line],0)),INDEX(Table_PREInspection[],MATCH(Table_POSTInfo[[#This Row],[Line]],Table_PREInspection[Line],0),MATCH('Post-Install Information'!M$3,'Pre-Install Inspection'!$A$3:$N$3,0)),IF(OR(Table_POSTInfo[[#This Row],[Line]]=\"\",INDEX(Table_PREInfo[],Table_POSTInfo[[#This Row],[Line]],M$3)=\"\"),\"\",INDEX(Table_PREInfo[],Table_POSTInfo[[#This Row],[Line]],M$3)))","v":""},{"$f":"IF(ISNUMBER(MATCH(Table_POSTInfo[[#This Row],[Line]],Table_PREInspection[Line],0)),INDEX(Table_PREInspection[],MATCH(Table_POSTInfo[[#This Row],[Line]],Table_PREInspection[Line],0),MATCH('Post-Install Information'!N$3,'Pre-Install Inspection'!$A$3:$N$3,0)),IF(OR(Table_POSTInfo[[#This Row],[Line]]=\"\",INDEX(Table_PREInfo[],Table_POSTInfo[[#This Row],[Line]],N$3)=\"\"),\"\",INDEX(Table_PREInfo[],Table_POSTInfo[[#This Row],[Line]],N$3)))","v":""},{"$f":"IF(ISNUMBER(MATCH(Table_POSTInfo[[#This Row],[Line]],Table_PREInspection[Line],0)),INDEX(Table_PREInspection[],MATCH(Table_POSTInfo[[#This Row],[Line]],Table_PREInspection[Line],0),MATCH('Post-Install Information'!O$3,'Pre-Install Inspection'!$A$3:$N$3,0)),IF(OR(Table_POSTInfo[[#This Row],[Line]]=\"\",INDEX(Table_PREInfo[],Table_POSTInfo[[#This Row],[Line]],O$3)=\"\"),\"\",INDEX(Table_PREInfo[],Table_POSTInfo[[#This Row],[Line]],O$3)))","v":""},{"$f":"IF(ISNUMBER(MATCH(Table_POSTInfo[[#This Row],[Line]],Table_PREInspection[Line],0)),INDEX(Table_PREInspection[],MATCH(Table_POSTInfo[[#This Row],[Line]],Table_PREInspection[Line],0),MATCH('Post-Install Information'!P$3,'Pre-Install Inspection'!$A$3:$N$3,0)),IF(OR(Table_POSTInfo[[#This Row],[Line]]=\"\",INDEX(Table_PREInfo[],Table_POSTInfo[[#This Row],[Line]],P$3)=\"\"),\"\",INDEX(Table_PREInfo[],Table_POSTInfo[[#This Row],[Line]],P$3)))","v":""},null,{"$f":"IF(Table_PREInfo[[#This Row],[Fixture Qty '[P']]]<>0,Table_PREInfo[[#This Row],[Fixture Qty '[P']]],IF(Table_POSTInfo[[#This Row],[Fixture Qty '[E']]]<>0,Table_POSTInfo[[#This Row],[Fixture Qty '[E']]],\"\"))","v":""},{"$f":"IF(OR(Table_POSTInfo[[#This Row],[Line]]=\"\",INDEX(Table_PREInfo[],Table_POSTInfo[[#This Row],[Line]],S$3)=\"\"),\"\",INDEX(Table_PREInfo[],Table_POSTInfo[[#This Row],[Line]],S$3))","v":""},{"$f":"IF(OR(Table_POSTInfo[[#This Row],[Line]]=\"\",INDEX(Table_PREInfo[],Table_POSTInfo[[#This Row],[Line]],T$3)=\"\"),\"\",INDEX(Table_PREInfo[],Table_POSTInfo[[#This Row],[Line]],T$3))","v":""},{"$f":"IF(OR(Table_POSTInfo[[#This Row],[Line]]=\"\",INDEX(Table_PREInfo[],Table_POSTInfo[[#This Row],[Line]],U$3)=\"\"),\"\",INDEX(Table_PREInfo[],Table_POSTInfo[[#This Row],[Line]],U$3))","v":""},{"$f":"IF(OR(Table_POSTInfo[[#This Row],[Line]]=\"\",INDEX(Table_PREInfo[],Table_POSTInfo[[#This Row],[Line]],V$3)=\"\"),\"\",INDEX(Table_PREInfo[],Table_POSTInfo[[#This Row],[Line]],V$3))","v":""},{"$f":"IFERROR(\nIFERROR(OFFSET(Table_TypWattage[[#Headers],[Technology]],MATCH(Table_POSTInfo[[#This Row],[Fixture Technology '[P']]],Table_TypWattage[Technology],0)+MATCH(Table_POSTInfo[[#This Row],[Fixture/ Lamp Wattage '[P']]],INDIRECT(SUBSTITUTE(SUBSTITUTE(Table_POSTInfo[[#This Row],[Fixture Technology '[P']]],\" \",\"_\"),\"-\",\"_\")),0)-1,MATCH(Table_POSTInfo[[#This Row],['# Lamps/ Fixture '[P']]],'Measure Tables'!$Q$2:$V$2,0)+1),IF(Table_POSTInfo[[#This Row],[IsActive]],IF(AND(Table_POSTInfo[[#This Row],['# Lamps/ Fixture '[P']]]<>\"\",Table_POSTInfo[[#This Row],['# Lamps/ Fixture '[P']]]>0,Table_POSTInfo[[#This Row],[Fixture/ Lamp Wattage '[P']]]>0),Table_POSTInfo[[#This Row],['# Lamps/ Fixture '[P']]]*Table_POSTInfo[[#This Row],[Fixture/ Lamp Wattage '[P']]],Table_POSTInfo[[#This Row],[Fixture/ Lamp Wattage '[P']]]),\"\")),\n\"\")","v":""},{"$f":"IF(OR(Table_POSTInfo[[#This Row],[Line]]=\"\",INDEX(Table_PREInfo[],Table_POSTInfo[[#This Row],[Line]],X$3)=\"\"),\"\",INDEX(Table_PREInfo[],Table_POSTInfo[[#This Row],[Line]],X$3))","v":""},{"$f":"IF(OR(Table_POSTInfo[[#This Row],[Line]]=\"\",INDEX(Table_PREInfo[],Table_POSTInfo[[#This Row],[Line]],Y$3)=\"\"),\"\",INDEX(Table_PREInfo[],Table_POSTInfo[[#This Row],[Line]],Y$3))","v":""},{"$f":"IFERROR(IF(Table_POSTInfo[[#This Row],[Interior/ Exterior]]<>\"\",\n  CONCATENATE(\n  Table_POSTInfo[[#This Row],[Fixture Technology '[P']]],\n  \" - \",Table_POSTInfo[[#This Row],[Fixture Type '[P']]],\" [\",\n  IF(Table_POSTInfo[[#This Row],['# Lamps/ Fixture '[P']]]>0,Table_POSTInfo[[#This Row],['# Lamps/ Fixture '[P']]] & \"L - \" & Table_POSTInfo[[#This Row],[Fixture/ Lamp Wattage '[P']]] & \"W\" & IF(Table_POSTInfo[[#This Row],[Ballast/ Driver '[P']]]<>\"\",\" - \" & Table_POSTInfo[[#This Row],[Ballast/ Driver '[P']]],\"\"),Table_POSTInfo[[#This Row],[Fixture Wattage '[P']]] & \"W\"),\"]\",\n  IF(AND(Table_POSTInfo[[#This Row],[Controls '[P']]]<>\"\",Table_POSTInfo[[#This Row],[Controls '[P']]]<>\"No Controls\"),\" - \" & Table_POSTInfo[[#This Row],[Controls '[P']]],\"\")\n  ),\n\"\"),\"\")","v":""},{"$f":"IF(OR(Table_POSTInfo[[#This Row],[Line]]=\"\",INDEX(Table_PREInfo[],Table_POSTInfo[[#This Row],[Line]],AA$3)=\"\"),\"\",INDEX(Table_PREInfo[],Table_POSTInfo[[#This Row],[Line]],AA$3))","v":""},{"$f":"IF(OR(Table_POSTInfo[[#This Row],[Line]]=\"\",INDEX(Table_PREInfo[],Table_POSTInfo[[#This Row],[Line]],AB$3)=\"\"),\"\",INDEX(Table_PREInfo[],Table_POSTInfo[[#This Row],[Line]],AB$3))","v":""},{"$f":"IF(OR(Table_POSTInfo[[#This Row],[Line]]=\"\",INDEX(Table_PREInfo[],Table_POSTInfo[[#This Row],[Line]],AC$3)=\"\"),\"\",INDEX(Table_PREInfo[],Table_POSTInfo[[#This Row],[Line]],AC$3))","v":""}]
[{"$f":"IF($A40=\"Line\",1,MAX($A$4:$A40)+1)","v":37},{"$f":"IF(OR(Table_POSTInfo[[#This Row],[Line]]=\"\",INDEX(Table_PREInfo[],Table_POSTInfo[[#This Row],[Line]],B$3)=\"\"),\"\",INDEX(Table_PREInfo[],Table_POSTInfo[[#This Row],[Line]],B$3))","v":false},{"$f":"IF(OR(Table_POSTInfo[[#This Row],[Line]]=\"\",INDEX(Table_PREInfo[],Table_POSTInfo[[#This Row],[Line]],C$3)=\"\"),\"\",INDEX(Table_PREInfo[],Table_POSTInfo[[#This Row],[Line]],C$3))","v":""},{"$f":"IF(ISNUMBER(MATCH(Table_POSTInfo[[#This Row],[Line]],Table_PREInspection[Line],0)),INDEX(Table_PREInspection[],MATCH(Table_POSTInfo[[#This Row],[Line]],Table_PREInspection[Line],0),MATCH('Post-Install Information'!D$3,'Pre-Install Inspection'!$A$3:$N$3,0)),IF(OR(Table_POSTInfo[[#This Row],[Line]]=\"\",INDEX(Table_PREInfo[],Table_POSTInfo[[#This Row],[Line]],D$3)=\"\"),\"\",INDEX(Table_PREInfo[],Table_POSTInfo[[#This Row],[Line]],D$3)))","v":""},{"$f":"IF(ISNUMBER(MATCH(Table_POSTInfo[[#This Row],[Line]],Table_PREInspection[Line],0)),INDEX(Table_PREInspection[],MATCH(Table_POSTInfo[[#This Row],[Line]],Table_PREInspection[Line],0),MATCH('Post-Install Information'!E$3,'Pre-Install Inspection'!$A$3:$N$3,0)),IF(OR(Table_POSTInfo[[#This Row],[Line]]=\"\",INDEX(Table_PREInfo[],Table_POSTInfo[[#This Row],[Line]],E$3)=\"\"),\"\",INDEX(Table_PREInfo[],Table_POSTInfo[[#This Row],[Line]],E$3)))","v":""},{"$f":"IF(ISNUMBER(MATCH(Table_POSTInfo[[#This Row],[Line]],Table_PREInspection[Line],0)),INDEX(Table_PREInspection[],MATCH(Table_POSTInfo[[#This Row],[Line]],Table_PREInspection[Line],0),MATCH('Post-Install Information'!F$3,'Pre-Install Inspection'!$A$3:$N$3,0)),IF(OR(Table_POSTInfo[[#This Row],[Line]]=\"\",INDEX(Table_PREInfo[],Table_POSTInfo[[#This Row],[Line]],F$3)=\"\"),\"\",INDEX(Table_PREInfo[],Table_POSTInfo[[#This Row],[Line]],F$3)))","v":""},null,{"$f":"IF(ISNUMBER(MATCH(Table_POSTInfo[[#This Row],[Line]],Table_PREInspection[Line],0)),INDEX(Table_PREInspection[],MATCH(Table_POSTInfo[[#This Row],[Line]],Table_PREInspection[Line],0),MATCH('Post-Install Information'!H$3,'Pre-Install Inspection'!$A$3:$N$3,0)),IF(OR(Table_POSTInfo[[#This Row],[Line]]=\"\",INDEX(Table_PREInfo[],Table_POSTInfo[[#This Row],[Line]],H$3)=\"\"),\"\",INDEX(Table_PREInfo[],Table_POSTInfo[[#This Row],[Line]],H$3)))","v":""},{"$f":"IF(ISNUMBER(MATCH(Table_POSTInfo[[#This Row],[Line]],Table_PREInspection[Line],0)),INDEX(Table_PREInspection[],MATCH(Table_POSTInfo[[#This Row],[Line]],Table_PREInspection[Line],0),MATCH('Post-Install Information'!I$3,'Pre-Install Inspection'!$A$3:$N$3,0)),IF(OR(Table_POSTInfo[[#This Row],[Line]]=\"\",INDEX(Table_PREInfo[],Table_POSTInfo[[#This Row],[Line]],I$3)=\"\"),\"\",INDEX(Table_PREInfo[],Table_POSTInfo[[#This Row],[Line]],I$3)))","v":""},{"$f":"IF(ISNUMBER(MATCH(Table_POSTInfo[[#This Row],[Line]],Table_PREInspection[Line],0)),INDEX(Table_PREInspection[],MATCH(Table_POSTInfo[[#This Row],[Line]],Table_PREInspection[Line],0),MATCH('Post-Install Information'!J$3,'Pre-Install Inspection'!$A$3:$N$3,0)),IF(OR(Table_POSTInfo[[#This Row],[Line]]=\"\",INDEX(Table_PREInfo[],Table_POSTInfo[[#This Row],[Line]],J$3)=\"\"),\"\",INDEX(Table_PREInfo[],Table_POSTInfo[[#This Row],[Line]],J$3)))","v":""},{"$f":"IF(ISNUMBER(MATCH(Table_POSTInfo[[#This Row],[Line]],Table_PREInspection[Line],0)),INDEX(Table_PREInspection[],MATCH(Table_POSTInfo[[#This Row],[Line]],Table_PREInspection[Line],0),MATCH('Post-Install Information'!K$3,'Pre-Install Inspection'!$A$3:$N$3,0)),IF(OR(Table_POSTInfo[[#This Row],[Line]]=\"\",INDEX(Table_PREInfo[],Table_POSTInfo[[#This Row],[Line]],K$3)=\"\"),\"\",INDEX(Table_PREInfo[],Table_POSTInfo[[#This Row],[Line]],K$3)))","v":""},{"$f":"IF(ISNUMBER(MATCH(Table_POSTInfo[[#This Row],[Line]],Table_PREInspection[Line],0)),INDEX(Table_PREInspection[],MATCH(Table_POSTInfo[[#This Row],[Line]],Table_PREInspection[Line],0),MATCH('Post-Install Information'!L$3,'Pre-Install Inspection'!$A$3:$N$3,0)),IF(OR(Table_POSTInfo[[#This Row],[Line]]=\"\",INDEX(Table_PREInfo[],Table_POSTInfo[[#This Row],[Line]],L$3)=\"\"),\"\",INDEX(Table_PREInfo[],Table_POSTInfo[[#This Row],[Line]],L$3)))","v":""},{"$f":"IF(ISNUMBER(MATCH(Table_POSTInfo[[#This Row],[Line]],Table_PREInspection[Line],0)),INDEX(Table_PREInspection[],MATCH(Table_POSTInfo[[#This Row],[Line]],Table_PREInspection[Line],0),MATCH('Post-Install Information'!M$3,'Pre-Install Inspection'!$A$3:$N$3,0)),IF(OR(Table_POSTInfo[[#This Row],[Line]]=\"\",INDEX(Table_PREInfo[],Table_POSTInfo[[#This Row],[Line]],M$3)=\"\"),\"\",INDEX(Table_PREInfo[],Table_POSTInfo[[#This Row],[Line]],M$3)))","v":""},{"$f":"IF(ISNUMBER(MATCH(Table_POSTInfo[[#This Row],[Line]],Table_PREInspection[Line],0)),INDEX(Table_PREInspection[],MATCH(Table_POSTInfo[[#This Row],[Line]],Table_PREInspection[Line],0),MATCH('Post-Install Information'!N$3,'Pre-Install Inspection'!$A$3:$N$3,0)),IF(OR(Table_POSTInfo[[#This Row],[Line]]=\"\",INDEX(Table_PREInfo[],Table_POSTInfo[[#This Row],[Line]],N$3)=\"\"),\"\",INDEX(Table_PREInfo[],Table_POSTInfo[[#This Row],[Line]],N$3)))","v":""},{"$f":"IF(ISNUMBER(MATCH(Table_POSTInfo[[#This Row],[Line]],Table_PREInspection[Line],0)),INDEX(Table_PREInspection[],MATCH(Table_POSTInfo[[#This Row],[Line]],Table_PREInspection[Line],0),MATCH('Post-Install Information'!O$3,'Pre-Install Inspection'!$A$3:$N$3,0)),IF(OR(Table_POSTInfo[[#This Row],[Line]]=\"\",INDEX(Table_PREInfo[],Table_POSTInfo[[#This Row],[Line]],O$3)=\"\"),\"\",INDEX(Table_PREInfo[],Table_POSTInfo[[#This Row],[Line]],O$3)))","v":""},{"$f":"IF(ISNUMBER(MATCH(Table_POSTInfo[[#This Row],[Line]],Table_PREInspection[Line],0)),INDEX(Table_PREInspection[],MATCH(Table_POSTInfo[[#This Row],[Line]],Table_PREInspection[Line],0),MATCH('Post-Install Information'!P$3,'Pre-Install Inspection'!$A$3:$N$3,0)),IF(OR(Table_POSTInfo[[#This Row],[Line]]=\"\",INDEX(Table_PREInfo[],Table_POSTInfo[[#This Row],[Line]],P$3)=\"\"),\"\",INDEX(Table_PREInfo[],Table_POSTInfo[[#This Row],[Line]],P$3)))","v":""},null,{"$f":"IF(Table_PREInfo[[#This Row],[Fixture Qty '[P']]]<>0,Table_PREInfo[[#This Row],[Fixture Qty '[P']]],IF(Table_POSTInfo[[#This Row],[Fixture Qty '[E']]]<>0,Table_POSTInfo[[#This Row],[Fixture Qty '[E']]],\"\"))","v":""},{"$f":"IF(OR(Table_POSTInfo[[#This Row],[Line]]=\"\",INDEX(Table_PREInfo[],Table_POSTInfo[[#This Row],[Line]],S$3)=\"\"),\"\",INDEX(Table_PREInfo[],Table_POSTInfo[[#This Row],[Line]],S$3))","v":""},{"$f":"IF(OR(Table_POSTInfo[[#This Row],[Line]]=\"\",INDEX(Table_PREInfo[],Table_POSTInfo[[#This Row],[Line]],T$3)=\"\"),\"\",INDEX(Table_PREInfo[],Table_POSTInfo[[#This Row],[Line]],T$3))","v":""},{"$f":"IF(OR(Table_POSTInfo[[#This Row],[Line]]=\"\",INDEX(Table_PREInfo[],Table_POSTInfo[[#This Row],[Line]],U$3)=\"\"),\"\",INDEX(Table_PREInfo[],Table_POSTInfo[[#This Row],[Line]],U$3))","v":""},{"$f":"IF(OR(Table_POSTInfo[[#This Row],[Line]]=\"\",INDEX(Table_PREInfo[],Table_POSTInfo[[#This Row],[Line]],V$3)=\"\"),\"\",INDEX(Table_PREInfo[],Table_POSTInfo[[#This Row],[Line]],V$3))","v":""},{"$f":"IFERROR(\nIFERROR(OFFSET(Table_TypWattage[[#Headers],[Technology]],MATCH(Table_POSTInfo[[#This Row],[Fixture Technology '[P']]],Table_TypWattage[Technology],0)+MATCH(Table_POSTInfo[[#This Row],[Fixture/ Lamp Wattage '[P']]],INDIRECT(SUBSTITUTE(SUBSTITUTE(Table_POSTInfo[[#This Row],[Fixture Technology '[P']]],\" \",\"_\"),\"-\",\"_\")),0)-1,MATCH(Table_POSTInfo[[#This Row],['# Lamps/ Fixture '[P']]],'Measure Tables'!$Q$2:$V$2,0)+1),IF(Table_POSTInfo[[#This Row],[IsActive]],IF(AND(Table_POSTInfo[[#This Row],['# Lamps/ Fixture '[P']]]<>\"\",Table_POSTInfo[[#This Row],['# Lamps/ Fixture '[P']]]>0,Table_POSTInfo[[#This Row],[Fixture/ Lamp Wattage '[P']]]>0),Table_POSTInfo[[#This Row],['# Lamps/ Fixture '[P']]]*Table_POSTInfo[[#This Row],[Fixture/ Lamp Wattage '[P']]],Table_POSTInfo[[#This Row],[Fixture/ Lamp Wattage '[P']]]),\"\")),\n\"\")","v":""},{"$f":"IF(OR(Table_POSTInfo[[#This Row],[Line]]=\"\",INDEX(Table_PREInfo[],Table_POSTInfo[[#This Row],[Line]],X$3)=\"\"),\"\",INDEX(Table_PREInfo[],Table_POSTInfo[[#This Row],[Line]],X$3))","v":""},{"$f":"IF(OR(Table_POSTInfo[[#This Row],[Line]]=\"\",INDEX(Table_PREInfo[],Table_POSTInfo[[#This Row],[Line]],Y$3)=\"\"),\"\",INDEX(Table_PREInfo[],Table_POSTInfo[[#This Row],[Line]],Y$3))","v":""},{"$f":"IFERROR(IF(Table_POSTInfo[[#This Row],[Interior/ Exterior]]<>\"\",\n  CONCATENATE(\n  Table_POSTInfo[[#This Row],[Fixture Technology '[P']]],\n  \" - \",Table_POSTInfo[[#This Row],[Fixture Type '[P']]],\" [\",\n  IF(Table_POSTInfo[[#This Row],['# Lamps/ Fixture '[P']]]>0,Table_POSTInfo[[#This Row],['# Lamps/ Fixture '[P']]] & \"L - \" & Table_POSTInfo[[#This Row],[Fixture/ Lamp Wattage '[P']]] & \"W\" & IF(Table_POSTInfo[[#This Row],[Ballast/ Driver '[P']]]<>\"\",\" - \" & Table_POSTInfo[[#This Row],[Ballast/ Driver '[P']]],\"\"),Table_POSTInfo[[#This Row],[Fixture Wattage '[P']]] & \"W\"),\"]\",\n  IF(AND(Table_POSTInfo[[#This Row],[Controls '[P']]]<>\"\",Table_POSTInfo[[#This Row],[Controls '[P']]]<>\"No Controls\"),\" - \" & Table_POSTInfo[[#This Row],[Controls '[P']]],\"\")\n  ),\n\"\"),\"\")","v":""},{"$f":"IF(OR(Table_POSTInfo[[#This Row],[Line]]=\"\",INDEX(Table_PREInfo[],Table_POSTInfo[[#This Row],[Line]],AA$3)=\"\"),\"\",INDEX(Table_PREInfo[],Table_POSTInfo[[#This Row],[Line]],AA$3))","v":""},{"$f":"IF(OR(Table_POSTInfo[[#This Row],[Line]]=\"\",INDEX(Table_PREInfo[],Table_POSTInfo[[#This Row],[Line]],AB$3)=\"\"),\"\",INDEX(Table_PREInfo[],Table_POSTInfo[[#This Row],[Line]],AB$3))","v":""},{"$f":"IF(OR(Table_POSTInfo[[#This Row],[Line]]=\"\",INDEX(Table_PREInfo[],Table_POSTInfo[[#This Row],[Line]],AC$3)=\"\"),\"\",INDEX(Table_PREInfo[],Table_POSTInfo[[#This Row],[Line]],AC$3))","v":""}]
[{"$f":"IF($A41=\"Line\",1,MAX($A$4:$A41)+1)","v":38},{"$f":"IF(OR(Table_POSTInfo[[#This Row],[Line]]=\"\",INDEX(Table_PREInfo[],Table_POSTInfo[[#This Row],[Line]],B$3)=\"\"),\"\",INDEX(Table_PREInfo[],Table_POSTInfo[[#This Row],[Line]],B$3))","v":false},{"$f":"IF(OR(Table_POSTInfo[[#This Row],[Line]]=\"\",INDEX(Table_PREInfo[],Table_POSTInfo[[#This Row],[Line]],C$3)=\"\"),\"\",INDEX(Table_PREInfo[],Table_POSTInfo[[#This Row],[Line]],C$3))","v":""},{"$f":"IF(ISNUMBER(MATCH(Table_POSTInfo[[#This Row],[Line]],Table_PREInspection[Line],0)),INDEX(Table_PREInspection[],MATCH(Table_POSTInfo[[#This Row],[Line]],Table_PREInspection[Line],0),MATCH('Post-Install Information'!D$3,'Pre-Install Inspection'!$A$3:$N$3,0)),IF(OR(Table_POSTInfo[[#This Row],[Line]]=\"\",INDEX(Table_PREInfo[],Table_POSTInfo[[#This Row],[Line]],D$3)=\"\"),\"\",INDEX(Table_PREInfo[],Table_POSTInfo[[#This Row],[Line]],D$3)))","v":""},{"$f":"IF(ISNUMBER(MATCH(Table_POSTInfo[[#This Row],[Line]],Table_PREInspection[Line],0)),INDEX(Table_PREInspection[],MATCH(Table_POSTInfo[[#This Row],[Line]],Table_PREInspection[Line],0),MATCH('Post-Install Information'!E$3,'Pre-Install Inspection'!$A$3:$N$3,0)),IF(OR(Table_POSTInfo[[#This Row],[Line]]=\"\",INDEX(Table_PREInfo[],Table_POSTInfo[[#This Row],[Line]],E$3)=\"\"),\"\",INDEX(Table_PREInfo[],Table_POSTInfo[[#This Row],[Line]],E$3)))","v":""},{"$f":"IF(ISNUMBER(MATCH(Table_POSTInfo[[#This Row],[Line]],Table_PREInspection[Line],0)),INDEX(Table_PREInspection[],MATCH(Table_POSTInfo[[#This Row],[Line]],Table_PREInspection[Line],0),MATCH('Post-Install Information'!F$3,'Pre-Install Inspection'!$A$3:$N$3,0)),IF(OR(Table_POSTInfo[[#This Row],[Line]]=\"\",INDEX(Table_PREInfo[],Table_POSTInfo[[#This Row],[Line]],F$3)=\"\"),\"\",INDEX(Table_PREInfo[],Table_POSTInfo[[#This Row],[Line]],F$3)))","v":""},null,{"$f":"IF(ISNUMBER(MATCH(Table_POSTInfo[[#This Row],[Line]],Table_PREInspection[Line],0)),INDEX(Table_PREInspection[],MATCH(Table_POSTInfo[[#This Row],[Line]],Table_PREInspection[Line],0),MATCH('Post-Install Information'!H$3,'Pre-Install Inspection'!$A$3:$N$3,0)),IF(OR(Table_POSTInfo[[#This Row],[Line]]=\"\",INDEX(Table_PREInfo[],Table_POSTInfo[[#This Row],[Line]],H$3)=\"\"),\"\",INDEX(Table_PREInfo[],Table_POSTInfo[[#This Row],[Line]],H$3)))","v":""},{"$f":"IF(ISNUMBER(MATCH(Table_POSTInfo[[#This Row],[Line]],Table_PREInspection[Line],0)),INDEX(Table_PREInspection[],MATCH(Table_POSTInfo[[#This Row],[Line]],Table_PREInspection[Line],0),MATCH('Post-Install Information'!I$3,'Pre-Install Inspection'!$A$3:$N$3,0)),IF(OR(Table_POSTInfo[[#This Row],[Line]]=\"\",INDEX(Table_PREInfo[],Table_POSTInfo[[#This Row],[Line]],I$3)=\"\"),\"\",INDEX(Table_PREInfo[],Table_POSTInfo[[#This Row],[Line]],I$3)))","v":""},{"$f":"IF(ISNUMBER(MATCH(Table_POSTInfo[[#This Row],[Line]],Table_PREInspection[Line],0)),INDEX(Table_PREInspection[],MATCH(Table_POSTInfo[[#This Row],[Line]],Table_PREInspection[Line],0),MATCH('Post-Install Information'!J$3,'Pre-Install Inspection'!$A$3:$N$3,0)),IF(OR(Table_POSTInfo[[#This Row],[Line]]=\"\",INDEX(Table_PREInfo[],Table_POSTInfo[[#This Row],[Line]],J$3)=\"\"),\"\",INDEX(Table_PREInfo[],Table_POSTInfo[[#This Row],[Line]],J$3)))","v":""},{"$f":"IF(ISNUMBER(MATCH(Table_POSTInfo[[#This Row],[Line]],Table_PREInspection[Line],0)),INDEX(Table_PREInspection[],MATCH(Table_POSTInfo[[#This Row],[Line]],Table_PREInspection[Line],0),MATCH('Post-Install Information'!K$3,'Pre-Install Inspection'!$A$3:$N$3,0)),IF(OR(Table_POSTInfo[[#This Row],[Line]]=\"\",INDEX(Table_PREInfo[],Table_POSTInfo[[#This Row],[Line]],K$3)=\"\"),\"\",INDEX(Table_PREInfo[],Table_POSTInfo[[#This Row],[Line]],K$3)))","v":""},{"$f":"IF(ISNUMBER(MATCH(Table_POSTInfo[[#This Row],[Line]],Table_PREInspection[Line],0)),INDEX(Table_PREInspection[],MATCH(Table_POSTInfo[[#This Row],[Line]],Table_PREInspection[Line],0),MATCH('Post-Install Information'!L$3,'Pre-Install Inspection'!$A$3:$N$3,0)),IF(OR(Table_POSTInfo[[#This Row],[Line]]=\"\",INDEX(Table_PREInfo[],Table_POSTInfo[[#This Row],[Line]],L$3)=\"\"),\"\",INDEX(Table_PREInfo[],Table_POSTInfo[[#This Row],[Line]],L$3)))","v":""},{"$f":"IF(ISNUMBER(MATCH(Table_POSTInfo[[#This Row],[Line]],Table_PREInspection[Line],0)),INDEX(Table_PREInspection[],MATCH(Table_POSTInfo[[#This Row],[Line]],Table_PREInspection[Line],0),MATCH('Post-Install Information'!M$3,'Pre-Install Inspection'!$A$3:$N$3,0)),IF(OR(Table_POSTInfo[[#This Row],[Line]]=\"\",INDEX(Table_PREInfo[],Table_POSTInfo[[#This Row],[Line]],M$3)=\"\"),\"\",INDEX(Table_PREInfo[],Table_POSTInfo[[#This Row],[Line]],M$3)))","v":""},{"$f":"IF(ISNUMBER(MATCH(Table_POSTInfo[[#This Row],[Line]],Table_PREInspection[Line],0)),INDEX(Table_PREInspection[],MATCH(Table_POSTInfo[[#This Row],[Line]],Table_PREInspection[Line],0),MATCH('Post-Install Information'!N$3,'Pre-Install Inspection'!$A$3:$N$3,0)),IF(OR(Table_POSTInfo[[#This Row],[Line]]=\"\",INDEX(Table_PREInfo[],Table_POSTInfo[[#This Row],[Line]],N$3)=\"\"),\"\",INDEX(Table_PREInfo[],Table_POSTInfo[[#This Row],[Line]],N$3)))","v":""},{"$f":"IF(ISNUMBER(MATCH(Table_POSTInfo[[#This Row],[Line]],Table_PREInspection[Line],0)),INDEX(Table_PREInspection[],MATCH(Table_POSTInfo[[#This Row],[Line]],Table_PREInspection[Line],0),MATCH('Post-Install Information'!O$3,'Pre-Install Inspection'!$A$3:$N$3,0)),IF(OR(Table_POSTInfo[[#This Row],[Line]]=\"\",INDEX(Table_PREInfo[],Table_POSTInfo[[#This Row],[Line]],O$3)=\"\"),\"\",INDEX(Table_PREInfo[],Table_POSTInfo[[#This Row],[Line]],O$3)))","v":""},{"$f":"IF(ISNUMBER(MATCH(Table_POSTInfo[[#This Row],[Line]],Table_PREInspection[Line],0)),INDEX(Table_PREInspection[],MATCH(Table_POSTInfo[[#This Row],[Line]],Table_PREInspection[Line],0),MATCH('Post-Install Information'!P$3,'Pre-Install Inspection'!$A$3:$N$3,0)),IF(OR(Table_POSTInfo[[#This Row],[Line]]=\"\",INDEX(Table_PREInfo[],Table_POSTInfo[[#This Row],[Line]],P$3)=\"\"),\"\",INDEX(Table_PREInfo[],Table_POSTInfo[[#This Row],[Line]],P$3)))","v":""},null,{"$f":"IF(Table_PREInfo[[#This Row],[Fixture Qty '[P']]]<>0,Table_PREInfo[[#This Row],[Fixture Qty '[P']]],IF(Table_POSTInfo[[#This Row],[Fixture Qty '[E']]]<>0,Table_POSTInfo[[#This Row],[Fixture Qty '[E']]],\"\"))","v":""},{"$f":"IF(OR(Table_POSTInfo[[#This Row],[Line]]=\"\",INDEX(Table_PREInfo[],Table_POSTInfo[[#This Row],[Line]],S$3)=\"\"),\"\",INDEX(Table_PREInfo[],Table_POSTInfo[[#This Row],[Line]],S$3))","v":""},{"$f":"IF(OR(Table_POSTInfo[[#This Row],[Line]]=\"\",INDEX(Table_PREInfo[],Table_POSTInfo[[#This Row],[Line]],T$3)=\"\"),\"\",INDEX(Table_PREInfo[],Table_POSTInfo[[#This Row],[Line]],T$3))","v":""},{"$f":"IF(OR(Table_POSTInfo[[#This Row],[Line]]=\"\",INDEX(Table_PREInfo[],Table_POSTInfo[[#This Row],[Line]],U$3)=\"\"),\"\",INDEX(Table_PREInfo[],Table_POSTInfo[[#This Row],[Line]],U$3))","v":""},{"$f":"IF(OR(Table_POSTInfo[[#This Row],[Line]]=\"\",INDEX(Table_PREInfo[],Table_POSTInfo[[#This Row],[Line]],V$3)=\"\"),\"\",INDEX(Table_PREInfo[],Table_POSTInfo[[#This Row],[Line]],V$3))","v":""},{"$f":"IFERROR(\nIFERROR(OFFSET(Table_TypWattage[[#Headers],[Technology]],MATCH(Table_POSTInfo[[#This Row],[Fixture Technology '[P']]],Table_TypWattage[Technology],0)+MATCH(Table_POSTInfo[[#This Row],[Fixture/ Lamp Wattage '[P']]],INDIRECT(SUBSTITUTE(SUBSTITUTE(Table_POSTInfo[[#This Row],[Fixture Technology '[P']]],\" \",\"_\"),\"-\",\"_\")),0)-1,MATCH(Table_POSTInfo[[#This Row],['# Lamps/ Fixture '[P']]],'Measure Tables'!$Q$2:$V$2,0)+1),IF(Table_POSTInfo[[#This Row],[IsActive]],IF(AND(Table_POSTInfo[[#This Row],['# Lamps/ Fixture '[P']]]<>\"\",Table_POSTInfo[[#This Row],['# Lamps/ Fixture '[P']]]>0,Table_POSTInfo[[#This Row],[Fixture/ Lamp Wattage '[P']]]>0),Table_POSTInfo[[#This Row],['# Lamps/ Fixture '[P']]]*Table_POSTInfo[[#This Row],[Fixture/ Lamp Wattage '[P']]],Table_POSTInfo[[#This Row],[Fixture/ Lamp Wattage '[P']]]),\"\")),\n\"\")","v":""},{"$f":"IF(OR(Table_POSTInfo[[#This Row],[Line]]=\"\",INDEX(Table_PREInfo[],Table_POSTInfo[[#This Row],[Line]],X$3)=\"\"),\"\",INDEX(Table_PREInfo[],Table_POSTInfo[[#This Row],[Line]],X$3))","v":""},{"$f":"IF(OR(Table_POSTInfo[[#This Row],[Line]]=\"\",INDEX(Table_PREInfo[],Table_POSTInfo[[#This Row],[Line]],Y$3)=\"\"),\"\",INDEX(Table_PREInfo[],Table_POSTInfo[[#This Row],[Line]],Y$3))","v":""},{"$f":"IFERROR(IF(Table_POSTInfo[[#This Row],[Interior/ Exterior]]<>\"\",\n  CONCATENATE(\n  Table_POSTInfo[[#This Row],[Fixture Technology '[P']]],\n  \" - \",Table_POSTInfo[[#This Row],[Fixture Type '[P']]],\" [\",\n  IF(Table_POSTInfo[[#This Row],['# Lamps/ Fixture '[P']]]>0,Table_POSTInfo[[#This Row],['# Lamps/ Fixture '[P']]] & \"L - \" & Table_POSTInfo[[#This Row],[Fixture/ Lamp Wattage '[P']]] & \"W\" & IF(Table_POSTInfo[[#This Row],[Ballast/ Driver '[P']]]<>\"\",\" - \" & Table_POSTInfo[[#This Row],[Ballast/ Driver '[P']]],\"\"),Table_POSTInfo[[#This Row],[Fixture Wattage '[P']]] & \"W\"),\"]\",\n  IF(AND(Table_POSTInfo[[#This Row],[Controls '[P']]]<>\"\",Table_POSTInfo[[#This Row],[Controls '[P']]]<>\"No Controls\"),\" - \" & Table_POSTInfo[[#This Row],[Controls '[P']]],\"\")\n  ),\n\"\"),\"\")","v":""},{"$f":"IF(OR(Table_POSTInfo[[#This Row],[Line]]=\"\",INDEX(Table_PREInfo[],Table_POSTInfo[[#This Row],[Line]],AA$3)=\"\"),\"\",INDEX(Table_PREInfo[],Table_POSTInfo[[#This Row],[Line]],AA$3))","v":""},{"$f":"IF(OR(Table_POSTInfo[[#This Row],[Line]]=\"\",INDEX(Table_PREInfo[],Table_POSTInfo[[#This Row],[Line]],AB$3)=\"\"),\"\",INDEX(Table_PREInfo[],Table_POSTInfo[[#This Row],[Line]],AB$3))","v":""},{"$f":"IF(OR(Table_POSTInfo[[#This Row],[Line]]=\"\",INDEX(Table_PREInfo[],Table_POSTInfo[[#This Row],[Line]],AC$3)=\"\"),\"\",INDEX(Table_PREInfo[],Table_POSTInfo[[#This Row],[Line]],AC$3))","v":""}]
[{"$f":"IF($A42=\"Line\",1,MAX($A$4:$A42)+1)","v":39},{"$f":"IF(OR(Table_POSTInfo[[#This Row],[Line]]=\"\",INDEX(Table_PREInfo[],Table_POSTInfo[[#This Row],[Line]],B$3)=\"\"),\"\",INDEX(Table_PREInfo[],Table_POSTInfo[[#This Row],[Line]],B$3))","v":false},{"$f":"IF(OR(Table_POSTInfo[[#This Row],[Line]]=\"\",INDEX(Table_PREInfo[],Table_POSTInfo[[#This Row],[Line]],C$3)=\"\"),\"\",INDEX(Table_PREInfo[],Table_POSTInfo[[#This Row],[Line]],C$3))","v":""},{"$f":"IF(ISNUMBER(MATCH(Table_POSTInfo[[#This Row],[Line]],Table_PREInspection[Line],0)),INDEX(Table_PREInspection[],MATCH(Table_POSTInfo[[#This Row],[Line]],Table_PREInspection[Line],0),MATCH('Post-Install Information'!D$3,'Pre-Install Inspection'!$A$3:$N$3,0)),IF(OR(Table_POSTInfo[[#This Row],[Line]]=\"\",INDEX(Table_PREInfo[],Table_POSTInfo[[#This Row],[Line]],D$3)=\"\"),\"\",INDEX(Table_PREInfo[],Table_POSTInfo[[#This Row],[Line]],D$3)))","v":""},{"$f":"IF(ISNUMBER(MATCH(Table_POSTInfo[[#This Row],[Line]],Table_PREInspection[Line],0)),INDEX(Table_PREInspection[],MATCH(Table_POSTInfo[[#This Row],[Line]],Table_PREInspection[Line],0),MATCH('Post-Install Information'!E$3,'Pre-Install Inspection'!$A$3:$N$3,0)),IF(OR(Table_POSTInfo[[#This Row],[Line]]=\"\",INDEX(Table_PREInfo[],Table_POSTInfo[[#This Row],[Line]],E$3)=\"\"),\"\",INDEX(Table_PREInfo[],Table_POSTInfo[[#This Row],[Line]],E$3)))","v":""},{"$f":"IF(ISNUMBER(MATCH(Table_POSTInfo[[#This Row],[Line]],Table_PREInspection[Line],0)),INDEX(Table_PREInspection[],MATCH(Table_POSTInfo[[#This Row],[Line]],Table_PREInspection[Line],0),MATCH('Post-Install Information'!F$3,'Pre-Install Inspection'!$A$3:$N$3,0)),IF(OR(Table_POSTInfo[[#This Row],[Line]]=\"\",INDEX(Table_PREInfo[],Table_POSTInfo[[#This Row],[Line]],F$3)=\"\"),\"\",INDEX(Table_PREInfo[],Table_POSTInfo[[#This Row],[Line]],F$3)))","v":""},null,{"$f":"IF(ISNUMBER(MATCH(Table_POSTInfo[[#This Row],[Line]],Table_PREInspection[Line],0)),INDEX(Table_PREInspection[],MATCH(Table_POSTInfo[[#This Row],[Line]],Table_PREInspection[Line],0),MATCH('Post-Install Information'!H$3,'Pre-Install Inspection'!$A$3:$N$3,0)),IF(OR(Table_POSTInfo[[#This Row],[Line]]=\"\",INDEX(Table_PREInfo[],Table_POSTInfo[[#This Row],[Line]],H$3)=\"\"),\"\",INDEX(Table_PREInfo[],Table_POSTInfo[[#This Row],[Line]],H$3)))","v":""},{"$f":"IF(ISNUMBER(MATCH(Table_POSTInfo[[#This Row],[Line]],Table_PREInspection[Line],0)),INDEX(Table_PREInspection[],MATCH(Table_POSTInfo[[#This Row],[Line]],Table_PREInspection[Line],0),MATCH('Post-Install Information'!I$3,'Pre-Install Inspection'!$A$3:$N$3,0)),IF(OR(Table_POSTInfo[[#This Row],[Line]]=\"\",INDEX(Table_PREInfo[],Table_POSTInfo[[#This Row],[Line]],I$3)=\"\"),\"\",INDEX(Table_PREInfo[],Table_POSTInfo[[#This Row],[Line]],I$3)))","v":""},{"$f":"IF(ISNUMBER(MATCH(Table_POSTInfo[[#This Row],[Line]],Table_PREInspection[Line],0)),INDEX(Table_PREInspection[],MATCH(Table_POSTInfo[[#This Row],[Line]],Table_PREInspection[Line],0),MATCH('Post-Install Information'!J$3,'Pre-Install Inspection'!$A$3:$N$3,0)),IF(OR(Table_POSTInfo[[#This Row],[Line]]=\"\",INDEX(Table_PREInfo[],Table_POSTInfo[[#This Row],[Line]],J$3)=\"\"),\"\",INDEX(Table_PREInfo[],Table_POSTInfo[[#This Row],[Line]],J$3)))","v":""},{"$f":"IF(ISNUMBER(MATCH(Table_POSTInfo[[#This Row],[Line]],Table_PREInspection[Line],0)),INDEX(Table_PREInspection[],MATCH(Table_POSTInfo[[#This Row],[Line]],Table_PREInspection[Line],0),MATCH('Post-Install Information'!K$3,'Pre-Install Inspection'!$A$3:$N$3,0)),IF(OR(Table_POSTInfo[[#This Row],[Line]]=\"\",INDEX(Table_PREInfo[],Table_POSTInfo[[#This Row],[Line]],K$3)=\"\"),\"\",INDEX(Table_PREInfo[],Table_POSTInfo[[#This Row],[Line]],K$3)))","v":""},{"$f":"IF(ISNUMBER(MATCH(Table_POSTInfo[[#This Row],[Line]],Table_PREInspection[Line],0)),INDEX(Table_PREInspection[],MATCH(Table_POSTInfo[[#This Row],[Line]],Table_PREInspection[Line],0),MATCH('Post-Install Information'!L$3,'Pre-Install Inspection'!$A$3:$N$3,0)),IF(OR(Table_POSTInfo[[#This Row],[Line]]=\"\",INDEX(Table_PREInfo[],Table_POSTInfo[[#This Row],[Line]],L$3)=\"\"),\"\",INDEX(Table_PREInfo[],Table_POSTInfo[[#This Row],[Line]],L$3)))","v":""},{"$f":"IF(ISNUMBER(MATCH(Table_POSTInfo[[#This Row],[Line]],Table_PREInspection[Line],0)),INDEX(Table_PREInspection[],MATCH(Table_POSTInfo[[#This Row],[Line]],Table_PREInspection[Line],0),MATCH('Post-Install Information'!M$3,'Pre-Install Inspection'!$A$3:$N$3,0)),IF(OR(Table_POSTInfo[[#This Row],[Line]]=\"\",INDEX(Table_PREInfo[],Table_POSTInfo[[#This Row],[Line]],M$3)=\"\"),\"\",INDEX(Table_PREInfo[],Table_POSTInfo[[#This Row],[Line]],M$3)))","v":""},{"$f":"IF(ISNUMBER(MATCH(Table_POSTInfo[[#This Row],[Line]],Table_PREInspection[Line],0)),INDEX(Table_PREInspection[],MATCH(Table_POSTInfo[[#This Row],[Line]],Table_PREInspection[Line],0),MATCH('Post-Install Information'!N$3,'Pre-Install Inspection'!$A$3:$N$3,0)),IF(OR(Table_POSTInfo[[#This Row],[Line]]=\"\",INDEX(Table_PREInfo[],Table_POSTInfo[[#This Row],[Line]],N$3)=\"\"),\"\",INDEX(Table_PREInfo[],Table_POSTInfo[[#This Row],[Line]],N$3)))","v":""},{"$f":"IF(ISNUMBER(MATCH(Table_POSTInfo[[#This Row],[Line]],Table_PREInspection[Line],0)),INDEX(Table_PREInspection[],MATCH(Table_POSTInfo[[#This Row],[Line]],Table_PREInspection[Line],0),MATCH('Post-Install Information'!O$3,'Pre-Install Inspection'!$A$3:$N$3,0)),IF(OR(Table_POSTInfo[[#This Row],[Line]]=\"\",INDEX(Table_PREInfo[],Table_POSTInfo[[#This Row],[Line]],O$3)=\"\"),\"\",INDEX(Table_PREInfo[],Table_POSTInfo[[#This Row],[Line]],O$3)))","v":""},{"$f":"IF(ISNUMBER(MATCH(Table_POSTInfo[[#This Row],[Line]],Table_PREInspection[Line],0)),INDEX(Table_PREInspection[],MATCH(Table_POSTInfo[[#This Row],[Line]],Table_PREInspection[Line],0),MATCH('Post-Install Information'!P$3,'Pre-Install Inspection'!$A$3:$N$3,0)),IF(OR(Table_POSTInfo[[#This Row],[Line]]=\"\",INDEX(Table_PREInfo[],Table_POSTInfo[[#This Row],[Line]],P$3)=\"\"),\"\",INDEX(Table_PREInfo[],Table_POSTInfo[[#This Row],[Line]],P$3)))","v":""},null,{"$f":"IF(Table_PREInfo[[#This Row],[Fixture Qty '[P']]]<>0,Table_PREInfo[[#This Row],[Fixture Qty '[P']]],IF(Table_POSTInfo[[#This Row],[Fixture Qty '[E']]]<>0,Table_POSTInfo[[#This Row],[Fixture Qty '[E']]],\"\"))","v":""},{"$f":"IF(OR(Table_POSTInfo[[#This Row],[Line]]=\"\",INDEX(Table_PREInfo[],Table_POSTInfo[[#This Row],[Line]],S$3)=\"\"),\"\",INDEX(Table_PREInfo[],Table_POSTInfo[[#This Row],[Line]],S$3))","v":""},{"$f":"IF(OR(Table_POSTInfo[[#This Row],[Line]]=\"\",INDEX(Table_PREInfo[],Table_POSTInfo[[#This Row],[Line]],T$3)=\"\"),\"\",INDEX(Table_PREInfo[],Table_POSTInfo[[#This Row],[Line]],T$3))","v":""},{"$f":"IF(OR(Table_POSTInfo[[#This Row],[Line]]=\"\",INDEX(Table_PREInfo[],Table_POSTInfo[[#This Row],[Line]],U$3)=\"\"),\"\",INDEX(Table_PREInfo[],Table_POSTInfo[[#This Row],[Line]],U$3))","v":""},{"$f":"IF(OR(Table_POSTInfo[[#This Row],[Line]]=\"\",INDEX(Table_PREInfo[],Table_POSTInfo[[#This Row],[Line]],V$3)=\"\"),\"\",INDEX(Table_PREInfo[],Table_POSTInfo[[#This Row],[Line]],V$3))","v":""},{"$f":"IFERROR(\nIFERROR(OFFSET(Table_TypWattage[[#Headers],[Technology]],MATCH(Table_POSTInfo[[#This Row],[Fixture Technology '[P']]],Table_TypWattage[Technology],0)+MATCH(Table_POSTInfo[[#This Row],[Fixture/ Lamp Wattage '[P']]],INDIRECT(SUBSTITUTE(SUBSTITUTE(Table_POSTInfo[[#This Row],[Fixture Technology '[P']]],\" \",\"_\"),\"-\",\"_\")),0)-1,MATCH(Table_POSTInfo[[#This Row],['# Lamps/ Fixture '[P']]],'Measure Tables'!$Q$2:$V$2,0)+1),IF(Table_POSTInfo[[#This Row],[IsActive]],IF(AND(Table_POSTInfo[[#This Row],['# Lamps/ Fixture '[P']]]<>\"\",Table_POSTInfo[[#This Row],['# Lamps/ Fixture '[P']]]>0,Table_POSTInfo[[#This Row],[Fixture/ Lamp Wattage '[P']]]>0),Table_POSTInfo[[#This Row],['# Lamps/ Fixture '[P']]]*Table_POSTInfo[[#This Row],[Fixture/ Lamp Wattage '[P']]],Table_POSTInfo[[#This Row],[Fixture/ Lamp Wattage '[P']]]),\"\")),\n\"\")","v":""},{"$f":"IF(OR(Table_POSTInfo[[#This Row],[Line]]=\"\",INDEX(Table_PREInfo[],Table_POSTInfo[[#This Row],[Line]],X$3)=\"\"),\"\",INDEX(Table_PREInfo[],Table_POSTInfo[[#This Row],[Line]],X$3))","v":""},{"$f":"IF(OR(Table_POSTInfo[[#This Row],[Line]]=\"\",INDEX(Table_PREInfo[],Table_POSTInfo[[#This Row],[Line]],Y$3)=\"\"),\"\",INDEX(Table_PREInfo[],Table_POSTInfo[[#This Row],[Line]],Y$3))","v":""},{"$f":"IFERROR(IF(Table_POSTInfo[[#This Row],[Interior/ Exterior]]<>\"\",\n  CONCATENATE(\n  Table_POSTInfo[[#This Row],[Fixture Technology '[P']]],\n  \" - \",Table_POSTInfo[[#This Row],[Fixture Type '[P']]],\" [\",\n  IF(Table_POSTInfo[[#This Row],['# Lamps/ Fixture '[P']]]>0,Table_POSTInfo[[#This Row],['# Lamps/ Fixture '[P']]] & \"L - \" & Table_POSTInfo[[#This Row],[Fixture/ Lamp Wattage '[P']]] & \"W\" & IF(Table_POSTInfo[[#This Row],[Ballast/ Driver '[P']]]<>\"\",\" - \" & Table_POSTInfo[[#This Row],[Ballast/ Driver '[P']]],\"\"),Table_POSTInfo[[#This Row],[Fixture Wattage '[P']]] & \"W\"),\"]\",\n  IF(AND(Table_POSTInfo[[#This Row],[Controls '[P']]]<>\"\",Table_POSTInfo[[#This Row],[Controls '[P']]]<>\"No Controls\"),\" - \" & Table_POSTInfo[[#This Row],[Controls '[P']]],\"\")\n  ),\n\"\"),\"\")","v":""},{"$f":"IF(OR(Table_POSTInfo[[#This Row],[Line]]=\"\",INDEX(Table_PREInfo[],Table_POSTInfo[[#This Row],[Line]],AA$3)=\"\"),\"\",INDEX(Table_PREInfo[],Table_POSTInfo[[#This Row],[Line]],AA$3))","v":""},{"$f":"IF(OR(Table_POSTInfo[[#This Row],[Line]]=\"\",INDEX(Table_PREInfo[],Table_POSTInfo[[#This Row],[Line]],AB$3)=\"\"),\"\",INDEX(Table_PREInfo[],Table_POSTInfo[[#This Row],[Line]],AB$3))","v":""},{"$f":"IF(OR(Table_POSTInfo[[#This Row],[Line]]=\"\",INDEX(Table_PREInfo[],Table_POSTInfo[[#This Row],[Line]],AC$3)=\"\"),\"\",INDEX(Table_PREInfo[],Table_POSTInfo[[#This Row],[Line]],AC$3))","v":""}]
[{"$f":"IF($A43=\"Line\",1,MAX($A$4:$A43)+1)","v":40},{"$f":"IF(OR(Table_POSTInfo[[#This Row],[Line]]=\"\",INDEX(Table_PREInfo[],Table_POSTInfo[[#This Row],[Line]],B$3)=\"\"),\"\",INDEX(Table_PREInfo[],Table_POSTInfo[[#This Row],[Line]],B$3))","v":false},{"$f":"IF(OR(Table_POSTInfo[[#This Row],[Line]]=\"\",INDEX(Table_PREInfo[],Table_POSTInfo[[#This Row],[Line]],C$3)=\"\"),\"\",INDEX(Table_PREInfo[],Table_POSTInfo[[#This Row],[Line]],C$3))","v":""},{"$f":"IF(ISNUMBER(MATCH(Table_POSTInfo[[#This Row],[Line]],Table_PREInspection[Line],0)),INDEX(Table_PREInspection[],MATCH(Table_POSTInfo[[#This Row],[Line]],Table_PREInspection[Line],0),MATCH('Post-Install Information'!D$3,'Pre-Install Inspection'!$A$3:$N$3,0)),IF(OR(Table_POSTInfo[[#This Row],[Line]]=\"\",INDEX(Table_PREInfo[],Table_POSTInfo[[#This Row],[Line]],D$3)=\"\"),\"\",INDEX(Table_PREInfo[],Table_POSTInfo[[#This Row],[Line]],D$3)))","v":""},{"$f":"IF(ISNUMBER(MATCH(Table_POSTInfo[[#This Row],[Line]],Table_PREInspection[Line],0)),INDEX(Table_PREInspection[],MATCH(Table_POSTInfo[[#This Row],[Line]],Table_PREInspection[Line],0),MATCH('Post-Install Information'!E$3,'Pre-Install Inspection'!$A$3:$N$3,0)),IF(OR(Table_POSTInfo[[#This Row],[Line]]=\"\",INDEX(Table_PREInfo[],Table_POSTInfo[[#This Row],[Line]],E$3)=\"\"),\"\",INDEX(Table_PREInfo[],Table_POSTInfo[[#This Row],[Line]],E$3)))","v":""},{"$f":"IF(ISNUMBER(MATCH(Table_POSTInfo[[#This Row],[Line]],Table_PREInspection[Line],0)),INDEX(Table_PREInspection[],MATCH(Table_POSTInfo[[#This Row],[Line]],Table_PREInspection[Line],0),MATCH('Post-Install Information'!F$3,'Pre-Install Inspection'!$A$3:$N$3,0)),IF(OR(Table_POSTInfo[[#This Row],[Line]]=\"\",INDEX(Table_PREInfo[],Table_POSTInfo[[#This Row],[Line]],F$3)=\"\"),\"\",INDEX(Table_PREInfo[],Table_POSTInfo[[#This Row],[Line]],F$3)))","v":""},null,{"$f":"IF(ISNUMBER(MATCH(Table_POSTInfo[[#This Row],[Line]],Table_PREInspection[Line],0)),INDEX(Table_PREInspection[],MATCH(Table_POSTInfo[[#This Row],[Line]],Table_PREInspection[Line],0),MATCH('Post-Install Information'!H$3,'Pre-Install Inspection'!$A$3:$N$3,0)),IF(OR(Table_POSTInfo[[#This Row],[Line]]=\"\",INDEX(Table_PREInfo[],Table_POSTInfo[[#This Row],[Line]],H$3)=\"\"),\"\",INDEX(Table_PREInfo[],Table_POSTInfo[[#This Row],[Line]],H$3)))","v":""},{"$f":"IF(ISNUMBER(MATCH(Table_POSTInfo[[#This Row],[Line]],Table_PREInspection[Line],0)),INDEX(Table_PREInspection[],MATCH(Table_POSTInfo[[#This Row],[Line]],Table_PREInspection[Line],0),MATCH('Post-Install Information'!I$3,'Pre-Install Inspection'!$A$3:$N$3,0)),IF(OR(Table_POSTInfo[[#This Row],[Line]]=\"\",INDEX(Table_PREInfo[],Table_POSTInfo[[#This Row],[Line]],I$3)=\"\"),\"\",INDEX(Table_PREInfo[],Table_POSTInfo[[#This Row],[Line]],I$3)))","v":""},{"$f":"IF(ISNUMBER(MATCH(Table_POSTInfo[[#This Row],[Line]],Table_PREInspection[Line],0)),INDEX(Table_PREInspection[],MATCH(Table_POSTInfo[[#This Row],[Line]],Table_PREInspection[Line],0),MATCH('Post-Install Information'!J$3,'Pre-Install Inspection'!$A$3:$N$3,0)),IF(OR(Table_POSTInfo[[#This Row],[Line]]=\"\",INDEX(Table_PREInfo[],Table_POSTInfo[[#This Row],[Line]],J$3)=\"\"),\"\",INDEX(Table_PREInfo[],Table_POSTInfo[[#This Row],[Line]],J$3)))","v":""},{"$f":"IF(ISNUMBER(MATCH(Table_POSTInfo[[#This Row],[Line]],Table_PREInspection[Line],0)),INDEX(Table_PREInspection[],MATCH(Table_POSTInfo[[#This Row],[Line]],Table_PREInspection[Line],0),MATCH('Post-Install Information'!K$3,'Pre-Install Inspection'!$A$3:$N$3,0)),IF(OR(Table_POSTInfo[[#This Row],[Line]]=\"\",INDEX(Table_PREInfo[],Table_POSTInfo[[#This Row],[Line]],K$3)=\"\"),\"\",INDEX(Table_PREInfo[],Table_POSTInfo[[#This Row],[Line]],K$3)))","v":""},{"$f":"IF(ISNUMBER(MATCH(Table_POSTInfo[[#This Row],[Line]],Table_PREInspection[Line],0)),INDEX(Table_PREInspection[],MATCH(Table_POSTInfo[[#This Row],[Line]],Table_PREInspection[Line],0),MATCH('Post-Install Information'!L$3,'Pre-Install Inspection'!$A$3:$N$3,0)),IF(OR(Table_POSTInfo[[#This Row],[Line]]=\"\",INDEX(Table_PREInfo[],Table_POSTInfo[[#This Row],[Line]],L$3)=\"\"),\"\",INDEX(Table_PREInfo[],Table_POSTInfo[[#This Row],[Line]],L$3)))","v":""},{"$f":"IF(ISNUMBER(MATCH(Table_POSTInfo[[#This Row],[Line]],Table_PREInspection[Line],0)),INDEX(Table_PREInspection[],MATCH(Table_POSTInfo[[#This Row],[Line]],Table_PREInspection[Line],0),MATCH('Post-Install Information'!M$3,'Pre-Install Inspection'!$A$3:$N$3,0)),IF(OR(Table_POSTInfo[[#This Row],[Line]]=\"\",INDEX(Table_PREInfo[],Table_POSTInfo[[#This Row],[Line]],M$3)=\"\"),\"\",INDEX(Table_PREInfo[],Table_POSTInfo[[#This Row],[Line]],M$3)))","v":""},{"$f":"IF(ISNUMBER(MATCH(Table_POSTInfo[[#This Row],[Line]],Table_PREInspection[Line],0)),INDEX(Table_PREInspection[],MATCH(Table_POSTInfo[[#This Row],[Line]],Table_PREInspection[Line],0),MATCH('Post-Install Information'!N$3,'Pre-Install Inspection'!$A$3:$N$3,0)),IF(OR(Table_POSTInfo[[#This Row],[Line]]=\"\",INDEX(Table_PREInfo[],Table_POSTInfo[[#This Row],[Line]],N$3)=\"\"),\"\",INDEX(Table_PREInfo[],Table_POSTInfo[[#This Row],[Line]],N$3)))","v":""},{"$f":"IF(ISNUMBER(MATCH(Table_POSTInfo[[#This Row],[Line]],Table_PREInspection[Line],0)),INDEX(Table_PREInspection[],MATCH(Table_POSTInfo[[#This Row],[Line]],Table_PREInspection[Line],0),MATCH('Post-Install Information'!O$3,'Pre-Install Inspection'!$A$3:$N$3,0)),IF(OR(Table_POSTInfo[[#This Row],[Line]]=\"\",INDEX(Table_PREInfo[],Table_POSTInfo[[#This Row],[Line]],O$3)=\"\"),\"\",INDEX(Table_PREInfo[],Table_POSTInfo[[#This Row],[Line]],O$3)))","v":""},{"$f":"IF(ISNUMBER(MATCH(Table_POSTInfo[[#This Row],[Line]],Table_PREInspection[Line],0)),INDEX(Table_PREInspection[],MATCH(Table_POSTInfo[[#This Row],[Line]],Table_PREInspection[Line],0),MATCH('Post-Install Information'!P$3,'Pre-Install Inspection'!$A$3:$N$3,0)),IF(OR(Table_POSTInfo[[#This Row],[Line]]=\"\",INDEX(Table_PREInfo[],Table_POSTInfo[[#This Row],[Line]],P$3)=\"\"),\"\",INDEX(Table_PREInfo[],Table_POSTInfo[[#This Row],[Line]],P$3)))","v":""},null,{"$f":"IF(Table_PREInfo[[#This Row],[Fixture Qty '[P']]]<>0,Table_PREInfo[[#This Row],[Fixture Qty '[P']]],IF(Table_POSTInfo[[#This Row],[Fixture Qty '[E']]]<>0,Table_POSTInfo[[#This Row],[Fixture Qty '[E']]],\"\"))","v":""},{"$f":"IF(OR(Table_POSTInfo[[#This Row],[Line]]=\"\",INDEX(Table_PREInfo[],Table_POSTInfo[[#This Row],[Line]],S$3)=\"\"),\"\",INDEX(Table_PREInfo[],Table_POSTInfo[[#This Row],[Line]],S$3))","v":""},{"$f":"IF(OR(Table_POSTInfo[[#This Row],[Line]]=\"\",INDEX(Table_PREInfo[],Table_POSTInfo[[#This Row],[Line]],T$3)=\"\"),\"\",INDEX(Table_PREInfo[],Table_POSTInfo[[#This Row],[Line]],T$3))","v":""},{"$f":"IF(OR(Table_POSTInfo[[#This Row],[Line]]=\"\",INDEX(Table_PREInfo[],Table_POSTInfo[[#This Row],[Line]],U$3)=\"\"),\"\",INDEX(Table_PREInfo[],Table_POSTInfo[[#This Row],[Line]],U$3))","v":""},{"$f":"IF(OR(Table_POSTInfo[[#This Row],[Line]]=\"\",INDEX(Table_PREInfo[],Table_POSTInfo[[#This Row],[Line]],V$3)=\"\"),\"\",INDEX(Table_PREInfo[],Table_POSTInfo[[#This Row],[Line]],V$3))","v":""},{"$f":"IFERROR(\nIFERROR(OFFSET(Table_TypWattage[[#Headers],[Technology]],MATCH(Table_POSTInfo[[#This Row],[Fixture Technology '[P']]],Table_TypWattage[Technology],0)+MATCH(Table_POSTInfo[[#This Row],[Fixture/ Lamp Wattage '[P']]],INDIRECT(SUBSTITUTE(SUBSTITUTE(Table_POSTInfo[[#This Row],[Fixture Technology '[P']]],\" \",\"_\"),\"-\",\"_\")),0)-1,MATCH(Table_POSTInfo[[#This Row],['# Lamps/ Fixture '[P']]],'Measure Tables'!$Q$2:$V$2,0)+1),IF(Table_POSTInfo[[#This Row],[IsActive]],IF(AND(Table_POSTInfo[[#This Row],['# Lamps/ Fixture '[P']]]<>\"\",Table_POSTInfo[[#This Row],['# Lamps/ Fixture '[P']]]>0,Table_POSTInfo[[#This Row],[Fixture/ Lamp Wattage '[P']]]>0),Table_POSTInfo[[#This Row],['# Lamps/ Fixture '[P']]]*Table_POSTInfo[[#This Row],[Fixture/ Lamp Wattage '[P']]],Table_POSTInfo[[#This Row],[Fixture/ Lamp Wattage '[P']]]),\"\")),\n\"\")","v":""},{"$f":"IF(OR(Table_POSTInfo[[#This Row],[Line]]=\"\",INDEX(Table_PREInfo[],Table_POSTInfo[[#This Row],[Line]],X$3)=\"\"),\"\",INDEX(Table_PREInfo[],Table_POSTInfo[[#This Row],[Line]],X$3))","v":""},{"$f":"IF(OR(Table_POSTInfo[[#This Row],[Line]]=\"\",INDEX(Table_PREInfo[],Table_POSTInfo[[#This Row],[Line]],Y$3)=\"\"),\"\",INDEX(Table_PREInfo[],Table_POSTInfo[[#This Row],[Line]],Y$3))","v":""},{"$f":"IFERROR(IF(Table_POSTInfo[[#This Row],[Interior/ Exterior]]<>\"\",\n  CONCATENATE(\n  Table_POSTInfo[[#This Row],[Fixture Technology '[P']]],\n  \" - \",Table_POSTInfo[[#This Row],[Fixture Type '[P']]],\" [\",\n  IF(Table_POSTInfo[[#This Row],['# Lamps/ Fixture '[P']]]>0,Table_POSTInfo[[#This Row],['# Lamps/ Fixture '[P']]] & \"L - \" & Table_POSTInfo[[#This Row],[Fixture/ Lamp Wattage '[P']]] & \"W\" & IF(Table_POSTInfo[[#This Row],[Ballast/ Driver '[P']]]<>\"\",\" - \" & Table_POSTInfo[[#This Row],[Ballast/ Driver '[P']]],\"\"),Table_POSTInfo[[#This Row],[Fixture Wattage '[P']]] & \"W\"),\"]\",\n  IF(AND(Table_POSTInfo[[#This Row],[Controls '[P']]]<>\"\",Table_POSTInfo[[#This Row],[Controls '[P']]]<>\"No Controls\"),\" - \" & Table_POSTInfo[[#This Row],[Controls '[P']]],\"\")\n  ),\n\"\"),\"\")","v":""},{"$f":"IF(OR(Table_POSTInfo[[#This Row],[Line]]=\"\",INDEX(Table_PREInfo[],Table_POSTInfo[[#This Row],[Line]],AA$3)=\"\"),\"\",INDEX(Table_PREInfo[],Table_POSTInfo[[#This Row],[Line]],AA$3))","v":""},{"$f":"IF(OR(Table_POSTInfo[[#This Row],[Line]]=\"\",INDEX(Table_PREInfo[],Table_POSTInfo[[#This Row],[Line]],AB$3)=\"\"),\"\",INDEX(Table_PREInfo[],Table_POSTInfo[[#This Row],[Line]],AB$3))","v":""},{"$f":"IF(OR(Table_POSTInfo[[#This Row],[Line]]=\"\",INDEX(Table_PREInfo[],Table_POSTInfo[[#This Row],[Line]],AC$3)=\"\"),\"\",INDEX(Table_PREInfo[],Table_POSTInfo[[#This Row],[Line]],AC$3))","v":""}]

{"sheet":"Post-Install Inspection","index":16,"n_rows":54,"n_cols":19,"rows_kept":54,"cut":false,"hidden":true,"merged":[[1,0,1,3],[1,5,1,16]]}
[null,null,null,null,null,null,null,null,null,null,null,null,null,"HIDE"]
["Facility Information",null,null,null,null,"Proposed Fixture Information [P]"]
[1,4,5,6,null,{"$f":"'Pre-Install Information'!R3","v":18},{"$f":"'Pre-Install Information'!S3","v":19},{"$f":"'Pre-Install Information'!T3","v":20},{"$f":"'Pre-Install Information'!U3","v":21},{"$f":"'Pre-Install Information'!V3","v":22},{"$f":"'Pre-Install Information'!W3","v":23},{"$f":"'Pre-Install Information'!X3","v":24},{"$f":"'Pre-Install Information'!Y3","v":25},26,27,28,29]
["Line","Schedule","Interior/ Exterior","Space Description","1","Fixture Qty [P]","Fixture Technology [P]","# Lamps/ Fixture [P]","Fixture/ Lamp Wattage [P]","Ballast/ Driver [P]","Fixture Wattage [P]","Fixture Type [P]","Controls [P]","Fixture Description [P]","Manufacturer [P]","Model Number [P]","DLC or ES Certification [P]","2","Notes"]
[null,{"$f":"IFERROR(IF(OR(Table_POSTInspection[[#This Row],[Line]]<=0,IFERROR(INDEX(Table_POSTInfo[],Table_POSTInspection[[#This Row],[Line]],B$3),\"\")=\"\"),\"\",INDEX(Table_POSTInfo[],Table_POSTInspection[[#This Row],[Line]],B$3)),\"\")","v":""},{"$f":"IFERROR(IF(OR(Table_POSTInspection[[#This Row],[Line]]<=0,IFERROR(INDEX(Table_POSTInfo[],Table_POSTInspection[[#This Row],[Line]],C$3),\"\")=\"\"),\"\",INDEX(Table_POSTInfo[],Table_POSTInspection[[#This Row],[Line]],C$3)),\"\")","v":""},{"$f":"IFERROR(IF(OR(Table_POSTInspection[[#This Row],[Line]]<=0,IFERROR(INDEX(Table_POSTInfo[],Table_POSTInspection[[#This Row],[Line]],D$3),\"\")=\"\"),\"\",INDEX(Table_POSTInfo[],Table_POSTInspection[[#This Row],[Line]],D$3)),\"\")","v":""},null,{"$f":"IFERROR(IF(OR(Table_POSTInspection[[#This Row],[Line]]<=0,IFERROR(INDEX(Table_POSTInfo[],Table_POSTInspection[[#This Row],[Line]],F$3),\"\")=\"\"),\"\",INDEX(Table_POSTInfo[],Table_POSTInspection[[#This Row],[Line]],F$3)),\"\")","v":""},{"$f":"IFERROR(IF(OR(Table_POSTInspection[[#This Row],[Line]]<=0,IFERROR(INDEX(Table_POSTInfo[],Table_POSTInspection[[#This Row],[Line]],G$3),\"\")=\"\"),\"\",INDEX(Table_POSTInfo[],Table_POSTInspection[[#This Row],[Line]],G$3)),\"\")","v":""},{"$f":"IFERROR(IF(OR(Table_POSTInspection[[#This Row],[Line]]<=0,IFERROR(INDEX(Table_POSTInfo[],Table_POSTInspection[[#This Row],[Line]],H$3),\"\")=\"\"),\"\",INDEX(Table_POSTInfo[],Table_POSTInspection[[#This Row],[Line]],H$3)),\"\")","v":""},{"$f":"IFERROR(IF(OR(Table_POSTInspection[[#This Row],[Line]]<=0,IFERROR(INDEX(Table_POSTInfo[],Table_POSTInspection[[#This Row],[Line]],I$3),\"\")=\"\"),\"\",INDEX(Table_POSTInfo[],Table_POSTInspection[[#This Row],[Line]],I$3)),\"\")","v":""},{"$f":"IFERROR(IF(OR(Table_POSTInspection[[#This Row],[Line]]<=0,IFERROR(INDEX(Table_POSTInfo[],Table_POSTInspection[[#This Row],[Line]],J$3),\"\")=\"\"),\"\",INDEX(Table_POSTInfo[],Table_POSTInspection[[#This Row],[Line]],J$3)),\"\")","v":""},{"$f":"IFERROR(\nIFERROR(OFFSET(Table_TypWattage[[#Headers],[Technology]],MATCH($G5,Table_TypWattage[Technology],0)+MATCH($I5,INDIRECT(SUBSTITUTE(SUBSTITUTE($G5,\" \",\"_\"),\"-\",\"_\")),0)-1,MATCH($H5,'Measure Tables'!$Q$2:$V$2,0)+1),IF(Table_POSTInspection[[#This Row],[Schedule]]<>\"\",IF(AND($H5<>\"\",$H5>0,$I5>0),$H5*$I5,$I5),\"\")),\n\"\")","v":""},{"$f":"IFERROR(IF(OR(Table_POSTInspection[[#This Row],[Line]]<=0,IFERROR(INDEX(Table_POSTInfo[],Table_POSTInspection[[#This Row],[Line]],L$3),\"\")=\"\"),\"\",INDEX(Table_POSTInfo[],Table_POSTInspection[[#This Row],[Line]],L$3)),\"\")","v":""},{"$f":"IFERROR(IF(OR(Table_POSTInspection[[#This Row],[Line]]<=0,IFERROR(INDEX(Table_POSTInfo[],Table_POSTInspection[[#This Row],[Line]],M$3),\"\")=\"\"),\"\",INDEX(Table_POSTInfo[],Table_POSTInspection[[#This Row],[Line]],M$3)),\"\")","v":""},{"$f":"IFERROR(IF(Table_POSTInspection[[#This Row],[Interior/ Exterior]]<>\"\",\n  CONCATENATE(\n  Table_POSTInspection[[#This Row],[Fixture Technology '[P']]],\n  \" - \",Table_POSTInspection[[#This Row],[Fixture Type '[P']]],\" [\",\n  IF(Table_POSTInspection[[#This Row],['# Lamps/ Fixture '[P']]]>0,Table_POSTInspection[[#This Row],['# Lamps/ Fixture '[P']]] & \"L - \" & Table_POSTInspection[[#This Row],[Fixture/ Lamp Wattage '[P']]] & \"W\" & IF(Table_POSTInspection[[#This Row],[Ballast/ Driver '[P']]]<>\"\",\" - \" & Table_POSTInspection[[#This Row],[Ballast/ Driver '[P']]],\"\"),Table_POSTInspection[[#This Row],[Fixture Wattage '[P']]] & \"W\"),\"]\",\n  IF(AND(Table_POSTInspection[[#This Row],[Controls '[P']]]<>\"\",Table_POSTInspection[[#This Row],[Controls '[P']]]<>\"No Controls\"),\" - \" & Table_POSTInspection[[#This Row],[Controls '[P']]],\"\")\n  ),\n\"\"),\"\")","v":""},{"$f":"IFERROR(IF(OR(Table_POSTInspection[[#This Row],[Line]]<=0,IFERROR(INDEX(Table_POSTInfo[],Table_POSTInspection[[#This Row],[Line]],O$3),\"\")=\"\"),\"\",INDEX(Table_POSTInfo[],Table_POSTInspection[[#This Row],[Line]],O$3)),\"\")","v":""},{"$f":"IFERROR(IF(OR(Table_POSTInspection[[#This Row],[Line]]<=0,IFERROR(INDEX(Table_POSTInfo[],Table_POSTInspection[[#This Row],[Line]],P$3),\"\")=\"\"),\"\",INDEX(Table_POSTInfo[],Table_POSTInspection[[#This Row],[Line]],P$3)),\"\")","v":""},{"$f":"IFERROR(IF(OR(Table_POSTInspection[[#This Row],[Line]]<=0,IFERROR(INDEX(Table_POSTInfo[],Table_POSTInspection[[#This Row],[Line]],Q$3),\"\")=\"\"),\"\",INDEX(Table_POSTInfo[],Table_POSTInspection[[#This Row],[Line]],Q$3)),\"\")","v":""}]
[null,{"$f":"IFERROR(IF(OR(Table_POSTInspection[[#This Row],[Line]]<=0,IFERROR(INDEX(Table_POSTInfo[],Table_POSTInspection[[#This Row],[Line]],B$3),\"\")=\"\"),\"\",INDEX(Table_POSTInfo[],Table_POSTInspection[[#This Row],[Line]],B$3)),\"\")","v":""},{"$f":"IFERROR(IF(OR(Table_POSTInspection[[#This Row],[Line]]<=0,IFERROR(INDEX(Table_POSTInfo[],Table_POSTInspection[[#This Row],[Line]],C$3),\"\")=\"\"),\"\",INDEX(Table_POSTInfo[],Table_POSTInspection[[#This Row],[Line]],C$3)),\"\")","v":""},{"$f":"IFERROR(IF(OR(Table_POSTInspection[[#This Row],[Line]]<=0,IFERROR(INDEX(Table_POSTInfo[],Table_POSTInspection[[#This Row],[Line]],D$3),\"\")=\"\"),\"\",INDEX(Table_POSTInfo[],Table_POSTInspection[[#This Row],[Line]],D$3)),\"\")","v":""},null,{"$f":"IFERROR(IF(OR(Table_POSTInspection[[#This Row],[Line]]<=0,IFERROR(INDEX(Table_POSTInfo[],Table_POSTInspection[[#This Row],[Line]],F$3),\"\")=\"\"),\"\",INDEX(Table_POSTInfo[],Table_POSTInspection[[#This Row],[Line]],F$3)),\"\")","v":""},{"$f":"IFERROR(IF(OR(Table_POSTInspection[[#This Row],[Line]]<=0,IFERROR(INDEX(Table_POSTInfo[],Table_POSTInspection[[#This Row],[Line]],G$3),\"\")=\"\"),\"\",INDEX(Table_POSTInfo[],Table_POSTInspection[[#This Row],[Line]],G$3)),\"\")","v":""},{"$f":"IFERROR(IF(OR(Table_POSTInspection[[#This Row],[Line]]<=0,IFERROR(INDEX(Table_POSTInfo[],Table_POSTInspection[[#This Row],[Line]],H$3),\"\")=\"\"),\"\",INDEX(Table_POSTInfo[],Table_POSTInspection[[#This Row],[Line]],H$3)),\"\")","v":""},{"$f":"IFERROR(IF(OR(Table_POSTInspection[[#This Row],[Line]]<=0,IFERROR(INDEX(Table_POSTInfo[],Table_POSTInspection[[#This Row],[Line]],I$3),\"\")=\"\"),\"\",INDEX(Table_POSTInfo[],Table_POSTInspection[[#This Row],[Line]],I$3)),\"\")","v":""},{"$f":"IFERROR(IF(OR(Table_POSTInspection[[#This Row],[Line]]<=0,IFERROR(INDEX(Table_POSTInfo[],Table_POSTInspection[[#This Row],[Line]],J$3),\"\")=\"\"),\"\",INDEX(Table_POSTInfo[],Table_POSTInspection[[#This Row],[Line]],J$3)),\"\")","v":""},{"$f":"IFERROR(\nIFERROR(OFFSET(Table_TypWattage[[#Headers],[Technology]],MATCH($G6,Table_TypWattage[Technology],0)+MATCH($I6,INDIRECT(SUBSTITUTE(SUBSTITUTE($G6,\" \",\"_\"),\"-\",\"_\")),0)-1,MATCH($H6,'Measure Tables'!$Q$2:$V$2,0)+1),IF(Table_POSTInspection[[#This Row],[Schedule]]<>\"\",IF(AND($H6<>\"\",$H6>0,$I6>0),$H6*$I6,$I6),\"\")),\n\"\")","v":""},{"$f":"IFERROR(IF(OR(Table_POSTInspection[[#This Row],[Line]]<=0,IFERROR(INDEX(Table_POSTInfo[],Table_POSTInspection[[#This Row],[Line]],L$3),\"\")=\"\"),\"\",INDEX(Table_POSTInfo[],Table_POSTInspection[[#This Row],[Line]],L$3)),\"\")","v":""},{"$f":"IFERROR(IF(OR(Table_POSTInspection[[#This Row],[Line]]<=0,IFERROR(INDEX(Table_POSTInfo[],Table_POSTInspection[[#This Row],[Line]],M$3),\"\")=\"\"),\"\",INDEX(Table_POSTInfo[],Table_POSTInspection[[#This Row],[Line]],M$3)),\"\")","v":""},{"$f":"IFERROR(IF(Table_POSTInspection[[#This Row],[Interior/ Exterior]]<>\"\",\n  CONCATENATE(\n  Table_POSTInspection[[#This Row],[Fixture Technology '[P']]],\n  \" - \",Table_POSTInspection[[#This Row],[Fixture Type '[P']]],\" [\",\n  IF(Table_POSTInspection[[#This Row],['# Lamps/ Fixture '[P']]]>0,Table_POSTInspection[[#This Row],['# Lamps/ Fixture '[P']]] & \"L - \" & Table_POSTInspection[[#This Row],[Fixture/ Lamp Wattage '[P']]] & \"W\" & IF(Table_POSTInspection[[#This Row],[Ballast/ Driver '[P']]]<>\"\",\" - \" & Table_POSTInspection[[#This Row],[Ballast/ Driver '[P']]],\"\"),Table_POSTInspection[[#This Row],[Fixture Wattage '[P']]] & \"W\"),\"]\",\n  IF(AND(Table_POSTInspection[[#This Row],[Controls '[P']]]<>\"\",Table_POSTInspection[[#This Row],[Controls '[P']]]<>\"No Controls\"),\" - \" & Table_POSTInspection[[#This Row],[Controls '[P']]],\"\")\n  ),\n\"\"),\"\")","v":""},{"$f":"IFERROR(IF(OR(Table_POSTInspection[[#This Row],[Line]]<=0,IFERROR(INDEX(Table_POSTInfo[],Table_POSTInspection[[#This Row],[Line]],O$3),\"\")=\"\"),\"\",INDEX(Table_POSTInfo[],Table_POSTInspection[[#This Row],[Line]],O$3)),\"\")","v":""},{"$f":"IFERROR(IF(OR(Table_POSTInspection[[#This Row],[Line]]<=0,IFERROR(INDEX(Table_POSTInfo[],Table_POSTInspection[[#This Row],[Line]],P$3),\"\")=\"\"),\"\",INDEX(Table_POSTInfo[],Table_POSTInspection[[#This Row],[Line]],P$3)),\"\")","v":""},{"$f":"IFERROR(IF(OR(Table_POSTInspection[[#This Row],[Line]]<=0,IFERROR(INDEX(Table_POSTInfo[],Table_POSTInspection[[#This Row],[Line]],Q$3),\"\")=\"\"),\"\",INDEX(Table_POSTInfo[],Table_POSTInspection[[#This Row],[Line]],Q$3)),\"\")","v":""}]
[null,{"$f":"IFERROR(IF(OR(Table_POSTInspection[[#This Row],[Line]]<=0,IFERROR(INDEX(Table_POSTInfo[],Table_POSTInspection[[#This Row],[Line]],B$3),\"\")=\"\"),\"\",INDEX(Table_POSTInfo[],Table_POSTInspection[[#This Row],[Line]],B$3)),\"\")","v":""},{"$f":"IFERROR(IF(OR(Table_POSTInspection[[#This Row],[Line]]<=0,IFERROR(INDEX(Table_POSTInfo[],Table_POSTInspection[[#This Row],[Line]],C$3),\"\")=\"\"),\"\",INDEX(Table_POSTInfo[],Table_POSTInspection[[#This Row],[Line]],C$3)),\"\")","v":""},{"$f":"IFERROR(IF(OR(Table_POSTInspection[[#This Row],[Line]]<=0,IFERROR(INDEX(Table_POSTInfo[],Table_POSTInspection[[#This Row],[Line]],D$3),\"\")=\"\"),\"\",INDEX(Table_POSTInfo[],Table_POSTInspection[[#This Row],[Line]],D$3)),\"\")","v":""},null,{"$f":"IFERROR(IF(OR(Table_POSTInspection[[#This Row],[Line]]<=0,IFERROR(INDEX(Table_POSTInfo[],Table_POSTInspection[[#This Row],[Line]],F$3),\"\")=\"\"),\"\",INDEX(Table_POSTInfo[],Table_POSTInspection[[#This Row],[Line]],F$3)),\"\")","v":""},{"$f":"IFERROR(IF(OR(Table_POSTInspection[[#This Row],[Line]]<=0,IFERROR(INDEX(Table_POSTInfo[],Table_POSTInspection[[#This Row],[Line]],G$3),\"\")=\"\"),\"\",INDEX(Table_POSTInfo[],Table_POSTInspection[[#This Row],[Line]],G$3)),\"\")","v":""},{"$f":"IFERROR(IF(OR(Table_POSTInspection[[#This Row],[Line]]<=0,IFERROR(INDEX(Table_POSTInfo[],Table_POSTInspection[[#This Row],[Line]],H$3),\"\")=\"\"),\"\",INDEX(Table_POSTInfo[],Table_POSTInspection[[#This Row],[Line]],H$3)),\"\")","v":""},{"$f":"IFERROR(IF(OR(Table_POSTInspection[[#This Row],[Line]]<=0,IFERROR(INDEX(Table_POSTInfo[],Table_POSTInspection[[#This Row],[Line]],I$3),\"\")=\"\"),\"\",INDEX(Table_POSTInfo[],Table_POSTInspection[[#This Row],[Line]],I$3)),\"\")","v":""},{"$f":"IFERROR(IF(OR(Table_POSTInspection[[#This Row],[Line]]<=0,IFERROR(INDEX(Table_POSTInfo[],Table_POSTInspection[[#This Row],[Line]],J$3),\"\")=\"\"),\"\",INDEX(Table_POSTInfo[],Table_POSTInspection[[#This Row],[Line]],J$3)),\"\")","v":""},{"$f":"IFERROR(\nIFERROR(OFFSET(Table_TypWattage[[#Headers],[Technology]],MATCH($G7,Table_TypWattage[Technology],0)+MATCH($I7,INDIRECT(SUBSTITUTE(SUBSTITUTE($G7,\" \",\"_\"),\"-\",\"_\")),0)-1,MATCH($H7,'Measure Tables'!$Q$2:$V$2,0)+1),IF(Table_POSTInspection[[#This Row],[Schedule]]<>\"\",IF(AND($H7<>\"\",$H7>0,$I7>0),$H7*$I7,$I7),\"\")),\n\"\")","v":""},{"$f":"IFERROR(IF(OR(Table_POSTInspection[[#This Row],[Line]]<=0,IFERROR(INDEX(Table_POSTInfo[],Table_POSTInspection[[#This Row],[Line]],L$3),\"\")=\"\"),\"\",INDEX(Table_POSTInfo[],Table_POSTInspection[[#This Row],[Line]],L$3)),\"\")","v":""},{"$f":"IFERROR(IF(OR(Table_POSTInspection[[#This Row],[Line]]<=0,IFERROR(INDEX(Table_POSTInfo[],Table_POSTInspection[[#This Row],[Line]],M$3),\"\")=\"\"),\"\",INDEX(Table_POSTInfo[],Table_POSTInspection[[#This Row],[Line]],M$3)),\"\")","v":""},{"$f":"IFERROR(IF(Table_POSTInspection[[#This Row],[Interior/ Exterior]]<>\"\",\n  CONCATENATE(\n  Table_POSTInspection[[#This Row],[Fixture Technology '[P']]],\n  \" - \",Table_POSTInspection[[#This Row],[Fixture Type '[P']]],\" [\",\n  IF(Table_POSTInspection[[#This Row],['# Lamps/ Fixture '[P']]]>0,Table_POSTInspection[[#This Row],['# Lamps/ Fixture '[P']]] & \"L - \" & Table_POSTInspection[[#This Row],[Fixture/ Lamp Wattage '[P']]] & \"W\" & IF(Table_POSTInspection[[#This Row],[Ballast/ Driver '[P']]]<>\"\",\" - \" & Table_POSTInspection[[#This Row],[Ballast/ Driver '[P']]],\"\"),Table_POSTInspection[[#This Row],[Fixture Wattage '[P']]] & \"W\"),\"]\",\n  IF(AND(Table_POSTInspection[[#This Row],[Controls '[P']]]<>\"\",Table_POSTInspection[[#This Row],[Controls '[P']]]<>\"No Controls\"),\" - \" & Table_POSTInspection[[#This Row],[Controls '[P']]],\"\")\n  ),\n\"\"),\"\")","v":""},{"$f":"IFERROR(IF(OR(Table_POSTInspection[[#This Row],[Line]]<=0,IFERROR(INDEX(Table_POSTInfo[],Table_POSTInspection[[#This Row],[Line]],O$3),\"\")=\"\"),\"\",INDEX(Table_POSTInfo[],Table_POSTInspection[[#This Row],[Line]],O$3)),\"\")","v":""},{"$f":"IFERROR(IF(OR(Table_POSTInspection[[#This Row],[Line]]<=0,IFERROR(INDEX(Table_POSTInfo[],Table_POSTInspection[[#This Row],[Line]],P$3),\"\")=\"\"),\"\",INDEX(Table_POSTInfo[],Table_POSTInspection[[#This Row],[Line]],P$3)),\"\")","v":""},{"$f":"IFERROR(IF(OR(Table_POSTInspection[[#This Row],[Line]]<=0,IFERROR(INDEX(Table_POSTInfo[],Table_POSTInspection[[#This Row],[Line]],Q$3),\"\")=\"\"),\"\",INDEX(Table_POSTInfo[],Table_POSTInspection[[#This Row],[Line]],Q$3)),\"\")","v":""}]
[null,{"$f":"IFERROR(IF(OR(Table_POSTInspection[[#This Row],[Line]]<=0,IFERROR(INDEX(Table_POSTInfo[],Table_POSTInspection[[#This Row],[Line]],B$3),\"\")=\"\"),\"\",INDEX(Table_POSTInfo[],Table_POSTInspection[[#This Row],[Line]],B$3)),\"\")","v":""},{"$f":"IFERROR(IF(OR(Table_POSTInspection[[#This Row],[Line]]<=0,IFERROR(INDEX(Table_POSTInfo[],Table_POSTInspection[[#This Row],[Line]],C$3),\"\")=\"\"),\"\",INDEX(Table_POSTInfo[],Table_POSTInspection[[#This Row],[Line]],C$3)),\"\")","v":""},{"$f":"IFERROR(IF(OR(Table_POSTInspection[[#This Row],[Line]]<=0,IFERROR(INDEX(Table_POSTInfo[],Table_POSTInspection[[#This Row],[Line]],D$3),\"\")=\"\"),\"\",INDEX(Table_POSTInfo[],Table_POSTInspection[[#This Row],[Line]],D$3)),\"\")","v":""},null,{"$f":"IFERROR(IF(OR(Table_POSTInspection[[#This Row],[Line]]<=0,IFERROR(INDEX(Table_POSTInfo[],Table_POSTInspection[[#This Row],[Line]],F$3),\"\")=\"\"),\"\",INDEX(Table_POSTInfo[],Table_POSTInspection[[#This Row],[Line]],F$3)),\"\")","v":""},{"$f":"IFERROR(IF(OR(Table_POSTInspection[[#This Row],[Line]]<=0,IFERROR(INDEX(Table_POSTInfo[],Table_POSTInspection[[#This Row],[Line]],G$3),\"\")=\"\"),\"\",INDEX(Table_POSTInfo[],Table_POSTInspection[[#This Row],[Line]],G$3)),\"\")","v":""},{"$f":"IFERROR(IF(OR(Table_POSTInspection[[#This Row],[Line]]<=0,IFERROR(INDEX(Table_POSTInfo[],Table_POSTInspection[[#This Row],[Line]],H$3),\"\")=\"\"),\"\",INDEX(Table_POSTInfo[],Table_POSTInspection[[#This Row],[Line]],H$3)),\"\")","v":""},{"$f":"IFERROR(IF(OR(Table_POSTInspection[[#This Row],[Line]]<=0,IFERROR(INDEX(Table_POSTInfo[],Table_POSTInspection[[#This Row],[Line]],I$3),\"\")=\"\"),\"\",INDEX(Table_POSTInfo[],Table_POSTInspection[[#This Row],[Line]],I$3)),\"\")","v":""},{"$f":"IFERROR(IF(OR(Table_POSTInspection[[#This Row],[Line]]<=0,IFERROR(INDEX(Table_POSTInfo[],Table_POSTInspection[[#This Row],[Line]],J$3),\"\")=\"\"),\"\",INDEX(Table_POSTInfo[],Table_POSTInspection[[#This Row],[Line]],J$3)),\"\")","v":""},{"$f":"IFERROR(\nIFERROR(OFFSET(Table_TypWattage[[#Headers],[Technology]],MATCH($G8,Table_TypWattage[Technology],0)+MATCH($I8,INDIRECT(SUBSTITUTE(SUBSTITUTE($G8,\" \",\"_\"),\"-\",\"_\")),0)-1,MATCH($H8,'Measure Tables'!$Q$2:$V$2,0)+1),IF(Table_POSTInspection[[#This Row],[Schedule]]<>\"\",IF(AND($H8<>\"\",$H8>0,$I8>0),$H8*$I8,$I8),\"\")),\n\"\")","v":""},{"$f":"IFERROR(IF(OR(Table_POSTInspection[[#This Row],[Line]]<=0,IFERROR(INDEX(Table_POSTInfo[],Table_POSTInspection[[#This Row],[Line]],L$3),\"\")=\"\"),\"\",INDEX(Table_POSTInfo[],Table_POSTInspection[[#This Row],[Line]],L$3)),\"\")","v":""},{"$f":"IFERROR(IF(OR(Table_POSTInspection[[#This Row],[Line]]<=0,IFERROR(INDEX(Table_POSTInfo[],Table_POSTInspection[[#This Row],[Line]],M$3),\"\")=\"\"),\"\",INDEX(Table_POSTInfo[],Table_POSTInspection[[#This Row],[Line]],M$3)),\"\")","v":""},{"$f":"IFERROR(IF(Table_POSTInspection[[#This Row],[Interior/ Exterior]]<>\"\",\n  CONCATENATE(\n  Table_POSTInspection[[#This Row],[Fixture Technology '[P']]],\n  \" - \",Table_POSTInspection[[#This Row],[Fixture Type '[P']]],\" [\",\n  IF(Table_POSTInspection[[#This Row],['# Lamps/ Fixture '[P']]]>0,Table_POSTInspection[[#This Row],['# Lamps/ Fixture '[P']]] & \"L - \" & Table_POSTInspection[[#This Row],[Fixture/ Lamp Wattage '[P']]] & \"W\" & IF(Table_POSTInspection[[#This Row],[Ballast/ Driver '[P']]]<>\"\",\" - \" & Table_POSTInspection[[#This Row],[Ballast/ Driver '[P']]],\"\"),Table_POSTInspection[[#This Row],[Fixture Wattage '[P']]] & \"W\"),\"]\",\n  IF(AND(Table_POSTInspection[[#This Row],[Controls '[P']]]<>\"\",Table_POSTInspection[[#This Row],[Controls '[P']]]<>\"No Controls\"),\" - \" & Table_POSTInspection[[#This Row],[Controls '[P']]],\"\")\n  ),\n\"\"),\"\")","v":""},{"$f":"IFERROR(IF(OR(Table_POSTInspection[[#This Row],[Line]]<=0,IFERROR(INDEX(Table_POSTInfo[],Table_POSTInspection[[#This Row],[Line]],O$3),\"\")=\"\"),\"\",INDEX(Table_POSTInfo[],Table_POSTInspection[[#This Row],[Line]],O$3)),\"\")","v":""},{"$f":"IFERROR(IF(OR(Table_POSTInspection[[#This Row],[Line]]<=0,IFERROR(INDEX(Table_POSTInfo[],Table_POSTInspection[[#This Row],[Line]],P$3),\"\")=\"\"),\"\",INDEX(Table_POSTInfo[],Table_POSTInspection[[#This Row],[Line]],P$3)),\"\")","v":""},{"$f":"IFERROR(IF(OR(Table_POSTInspection[[#This Row],[Line]]<=0,IFERROR(INDEX(Table_POSTInfo[],Table_POSTInspection[[#This Row],[Line]],Q$3),\"\")=\"\"),\"\",INDEX(Table_POSTInfo[],Table_POSTInspection[[#This Row],[Line]],Q$3)),\"\")","v":""}]
[null,{"$f":"IFERROR(IF(OR(Table_POSTInspection[[#This Row],[Line]]<=0,IFERROR(INDEX(Table_POSTInfo[],Table_POSTInspection[[#This Row],[Line]],B$3),\"\")=\"\"),\"\",INDEX(Table_POSTInfo[],Table_POSTInspection[[#This Row],[Line]],B$3)),\"\")","v":""},{"$f":"IFERROR(IF(OR(Table_POSTInspection[[#This Row],[Line]]<=0,IFERROR(INDEX(Table_POSTInfo[],Table_POSTInspection[[#This Row],[Line]],C$3),\"\")=\"\"),\"\",INDEX(Table_POSTInfo[],Table_POSTInspection[[#This Row],[Line]],C$3)),\"\")","v":""},{"$f":"IFERROR(IF(OR(Table_POSTInspection[[#This Row],[Line]]<=0,IFERROR(INDEX(Table_POSTInfo[],Table_POSTInspection[[#This Row],[Line]],D$3),\"\")=\"\"),\"\",INDEX(Table_POSTInfo[],Table_POSTInspection[[#This Row],[Line]],D$3)),\"\")","v":""},null,{"$f":"IFERROR(IF(OR(Table_POSTInspection[[#This Row],[Line]]<=0,IFERROR(INDEX(Table_POSTInfo[],Table_POSTInspection[[#This Row],[Line]],F$3),\"\")=\"\"),\"\",INDEX(Table_POSTInfo[],Table_POSTInspection[[#This Row],[Line]],F$3)),\"\")","v":""},{"$f":"IFERROR(IF(OR(Table_POSTInspection[[#This Row],[Line]]<=0,IFERROR(INDEX(Table_POSTInfo[],Table_POSTInspection[[#This Row],[Line]],G$3),\"\")=\"\"),\"\",INDEX(Table_POSTInfo[],Table_POSTInspection[[#This Row],[Line]],G$3)),\"\")","v":""},{"$f":"IFERROR(IF(OR(Table_POSTInspection[[#This Row],[Line]]<=0,IFERROR(INDEX(Table_POSTInfo[],Table_POSTInspection[[#This Row],[Line]],H$3),\"\")=\"\"),\"\",INDEX(Table_POSTInfo[],Table_POSTInspection[[#This Row],[Line]],H$3)),\"\")","v":""},{"$f":"IFERROR(IF(OR(Table_POSTInspection[[#This Row],[Line]]<=0,IFERROR(INDEX(Table_POSTInfo[],Table_POSTInspection[[#This Row],[Line]],I$3),\"\")=\"\"),\"\",INDEX(Table_POSTInfo[],Table_POSTInspection[[#This Row],[Line]],I$3)),\"\")","v":""},{"$f":"IFERROR(IF(OR(Table_POSTInspection[[#This Row],[Line]]<=0,IFERROR(INDEX(Table_POSTInfo[],Table_POSTInspection[[#This Row],[Line]],J$3),\"\")=\"\"),\"\",INDEX(Table_POSTInfo[],Table_POSTInspection[[#This Row],[Line]],J$3)),\"\")","v":""},{"$f":"IFERROR(\nIFERROR(OFFSET(Table_TypWattage[[#Headers],[Technology]],MATCH($G9,Table_TypWattage[Technology],0)+MATCH($I9,INDIRECT(SUBSTITUTE(SUBSTITUTE($G9,\" \",\"_\"),\"-\",\"_\")),0)-1,MATCH($H9,'Measure Tables'!$Q$2:$V$2,0)+1),IF(Table_POSTInspection[[#This Row],[Schedule]]<>\"\",IF(AND($H9<>\"\",$H9>0,$I9>0),$H9*$I9,$I9),\"\")),\n\"\")","v":""},{"$f":"IFERROR(IF(OR(Table_POSTInspection[[#This Row],[Line]]<=0,IFERROR(INDEX(Table_POSTInfo[],Table_POSTInspection[[#This Row],[Line]],L$3),\"\")=\"\"),\"\",INDEX(Table_POSTInfo[],Table_POSTInspection[[#This Row],[Line]],L$3)),\"\")","v":""},{"$f":"IFERROR(IF(OR(Table_POSTInspection[[#This Row],[Line]]<=0,IFERROR(INDEX(Table_POSTInfo[],Table_POSTInspection[[#This Row],[Line]],M$3),\"\")=\"\"),\"\",INDEX(Table_POSTInfo[],Table_POSTInspection[[#This Row],[Line]],M$3)),\"\")","v":""},{"$f":"IFERROR(IF(Table_POSTInspection[[#This Row],[Interior/ Exterior]]<>\"\",\n  CONCATENATE(\n  Table_POSTInspection[[#This Row],[Fixture Technology '[P']]],\n  \" - \",Table_POSTInspection[[#This Row],[Fixture Type '[P']]],\" [\",\n  IF(Table_POSTInspection[[#This Row],['# Lamps/ Fixture '[P']]]>0,Table_POSTInspection[[#This Row],['# Lamps/ Fixture '[P']]] & \"L - \" & Table_POSTInspection[[#This Row],[Fixture/ Lamp Wattage '[P']]] & \"W\" & IF(Table_POSTInspection[[#This Row],[Ballast/ Driver '[P']]]<>\"\",\" - \" & Table_POSTInspection[[#This Row],[Ballast/ Driver '[P']]],\"\"),Table_POSTInspection[[#This Row],[Fixture Wattage '[P']]] & \"W\"),\"]\",\n  IF(AND(Table_POSTInspection[[#This Row],[Controls '[P']]]<>\"\",Table_POSTInspection[[#This Row],[Controls '[P']]]<>\"No Controls\"),\" - \" & Table_POSTInspection[[#This Row],[Controls '[P']]],\"\")\n  ),\n\"\"),\"\")","v":""},{"$f":"IFERROR(IF(OR(Table_POSTInspection[[#This Row],[Line]]<=0,IFERROR(INDEX(Table_POSTInfo[],Table_POSTInspection[[#This Row],[Line]],O$3),\"\")=\"\"),\"\",INDEX(Table_POSTInfo[],Table_POSTInspection[[#This Row],[Line]],O$3)),\"\")","v":""},{"$f":"IFERROR(IF(OR(Table_POSTInspection[[#This Row],[Line]]<=0,IFERROR(INDEX(Table_POSTInfo[],Table_POSTInspection[[#This Row],[Line]],P$3),\"\")=\"\"),\"\",INDEX(Table_POSTInfo[],Table_POSTInspection[[#This Row],[Line]],P$3)),\"\")","v":""},{"$f":"IFERROR(IF(OR(Table_POSTInspection[[#This Row],[Line]]<=0,IFERROR(INDEX(Table_POSTInfo[],Table_POSTInspection[[#This Row],[Line]],Q$3),\"\")=\"\"),\"\",INDEX(Table_POSTInfo[],Table_POSTInspection[[#This Row],[Line]],Q$3)),\"\")","v":""}]
[null,{"$f":"IFERROR(IF(OR(Table_POSTInspection[[#This Row],[Line]]<=0,IFERROR(INDEX(Table_POSTInfo[],Table_POSTInspection[[#This Row],[Line]],B$3),\"\")=\"\"),\"\",INDEX(Table_POSTInfo[],Table_POSTInspection[[#This Row],[Line]],B$3)),\"\")","v":""},{"$f":"IFERROR(IF(OR(Table_POSTInspection[[#This Row],[Line]]<=0,IFERROR(INDEX(Table_POSTInfo[],Table_POSTInspection[[#This Row],[Line]],C$3),\"\")=\"\"),\"\",INDEX(Table_POSTInfo[],Table_POSTInspection[[#This Row],[Line]],C$3)),\"\")","v":""},{"$f":"IFERROR(IF(OR(Table_POSTInspection[[#This Row],[Line]]<=0,IFERROR(INDEX(Table_POSTInfo[],Table_POSTInspection[[#This Row],[Line]],D$3),\"\")=\"\"),\"\",INDEX(Table_POSTInfo[],Table_POSTInspection[[#This Row],[Line]],D$3)),\"\")","v":""},null,{"$f":"IFERROR(IF(OR(Table_POSTInspection[[#This Row],[Line]]<=0,IFERROR(INDEX(Table_POSTInfo[],Table_POSTInspection[[#This Row],[Line]],F$3),\"\")=\"\"),\"\",INDEX(Table_POSTInfo[],Table_POSTInspection[[#This Row],[Line]],F$3)),\"\")","v":""},{"$f":"IFERROR(IF(OR(Table_POSTInspection[[#This Row],[Line]]<=0,IFERROR(INDEX(Table_POSTInfo[],Table_POSTInspection[[#This Row],[Line]],G$3),\"\")=\"\"),\"\",INDEX(Table_POSTInfo[],Table_POSTInspection[[#This Row],[Line]],G$3)),\"\")","v":""},{"$f":"IFERROR(IF(OR(Table_POSTInspection[[#This Row],[Line]]<=0,IFERROR(INDEX(Table_POSTInfo[],Table_POSTInspection[[#This Row],[Line]],H$3),\"\")=\"\"),\"\",INDEX(Table_POSTInfo[],Table_POSTInspection[[#This Row],[Line]],H$3)),\"\")","v":""},{"$f":"IFERROR(IF(OR(Table_POSTInspection[[#This Row],[Line]]<=0,IFERROR(INDEX(Table_POSTInfo[],Table_POSTInspection[[#This Row],[Line]],I$3),\"\")=\"\"),\"\",INDEX(Table_POSTInfo[],Table_POSTInspection[[#This Row],[Line]],I$3)),\"\")","v":""},{"$f":"IFERROR(IF(OR(Table_POSTInspection[[#This Row],[Line]]<=0,IFERROR(INDEX(Table_POSTInfo[],Table_POSTInspection[[#This Row],[Line]],J$3),\"\")=\"\"),\"\",INDEX(Table_POSTInfo[],Table_POSTInspection[[#This Row],[Line]],J$3)),\"\")","v":""},{"$f":"IFERROR(\nIFERROR(OFFSET(Table_TypWattage[[#Headers],[Technology]],MATCH($G10,Table_TypWattage[Technology],0)+MATCH($I10,INDIRECT(SUBSTITUTE(SUBSTITUTE($G10,\" \",\"_\"),\"-\",\"_\")),0)-1,MATCH($H10,'Measure Tables'!$Q$2:$V$2,0)+1),IF(Table_POSTInspection[[#This Row],[Schedule]]<>\"\",IF(AND($H10<>\"\",$H10>0,$I10>0),$H10*$I10,$I10),\"\")),\n\"\")","v":""},{"$f":"IFERROR(IF(OR(Table_POSTInspection[[#This Row],[Line]]<=0,IFERROR(INDEX(Table_POSTInfo[],Table_POSTInspection[[#This Row],[Line]],L$3),\"\")=\"\"),\"\",INDEX(Table_POSTInfo[],Table_POSTInspection[[#This Row],[Line]],L$3)),\"\")","v":""},{"$f":"IFERROR(IF(OR(Table_POSTInspection[[#This Row],[Line]]<=0,IFERROR(INDEX(Table_POSTInfo[],Table_POSTInspection[[#This Row],[Line]],M$3),\"\")=\"\"),\"\",INDEX(Table_POSTInfo[],Table_POSTInspection[[#This Row],[Line]],M$3)),\"\")","v":""},{"$f":"IFERROR(IF(Table_POSTInspection[[#This Row],[Interior/ Exterior]]<>\"\",\n  CONCATENATE(\n  Table_POSTInspection[[#This Row],[Fixture Technology '[P']]],\n  \" - \",Table_POSTInspection[[#This Row],[Fixture Type '[P']]],\" [\",\n  IF(Table_POSTInspection[[#This Row],['# Lamps/ Fixture '[P']]]>0,Table_POSTInspection[[#This Row],['# Lamps/ Fixture '[P']]] & \"L - \" & Table_POSTInspection[[#This Row],[Fixture/ Lamp Wattage '[P']]] & \"W\" & IF(Table_POSTInspection[[#This Row],[Ballast/ Driver '[P']]]<>\"\",\" - \" & Table_POSTInspection[[#This Row],[Ballast/ Driver '[P']]],\"\"),Table_POSTInspection[[#This Row],[Fixture Wattage '[P']]] & \"W\"),\"]\",\n  IF(AND(Table_POSTInspection[[#This Row],[Controls '[P']]]<>\"\",Table_POSTInspection[[#This Row],[Controls '[P']]]<>\"No Controls\"),\" - \" & Table_POSTInspection[[#This Row],[Controls '[P']]],\"\")\n  ),\n\"\"),\"\")","v":""},{"$f":"IFERROR(IF(OR(Table_POSTInspection[[#This Row],[Line]]<=0,IFERROR(INDEX(Table_POSTInfo[],Table_POSTInspection[[#This Row],[Line]],O$3),\"\")=\"\"),\"\",INDEX(Table_POSTInfo[],Table_POSTInspection[[#This Row],[Line]],O$3)),\"\")","v":""},{"$f":"IFERROR(IF(OR(Table_POSTInspection[[#This Row],[Line]]<=0,IFERROR(INDEX(Table_POSTInfo[],Table_POSTInspection[[#This Row],[Line]],P$3),\"\")=\"\"),\"\",INDEX(Table_POSTInfo[],Table_POSTInspection[[#This Row],[Line]],P$3)),\"\")","v":""},{"$f":"IFERROR(IF(OR(Table_POSTInspection[[#This Row],[Line]]<=0,IFERROR(INDEX(Table_POSTInfo[],Table_POSTInspection[[#This Row],[Line]],Q$3),\"\")=\"\"),\"\",INDEX(Table_POSTInfo[],Table_POSTInspection[[#This Row],[Line]],Q$3)),\"\")","v":""}]
[null,{"$f":"IFERROR(IF(OR(Table_POSTInspection[[#This Row],[Line]]<=0,IFERROR(INDEX(Table_POSTInfo[],Table_POSTInspection[[#This Row],[Line]],B$3),\"\")=\"\"),\"\",INDEX(Table_POSTInfo[],Table_POSTInspection[[#This Row],[Line]],B$3)),\"\")","v":""},{"$f":"IFERROR(IF(OR(Table_POSTInspection[[#This Row],[Line]]<=0,IFERROR(INDEX(Table_POSTInfo[],Table_POSTInspection[[#This Row],[Line]],C$3),\"\")=\"\"),\"\",INDEX(Table_POSTInfo[],Table_POSTInspection[[#This Row],[Line]],C$3)),\"\")","v":""},{"$f":"IFERROR(IF(OR(Table_POSTInspection[[#This Row],[Line]]<=0,IFERROR(INDEX(Table_POSTInfo[],Table_POSTInspection[[#This Row],[Line]],D$3),\"\")=\"\"),\"\",INDEX(Table_POSTInfo[],Table_POSTInspection[[#This Row],[Line]],D$3)),\"\")","v":""},null,{"$f":"IFERROR(IF(OR(Table_POSTInspection[[#This Row],[Line]]<=0,IFERROR(INDEX(Table_POSTInfo[],Table_POSTInspection[[#This Row],[Line]],F$3),\"\")=\"\"),\"\",INDEX(Table_POSTInfo[],Table_POSTInspection[[#This Row],[Line]],F$3)),\"\")","v":""},{"$f":"IFERROR(IF(OR(Table_POSTInspection[[#This Row],[Line]]<=0,IFERROR(INDEX(Table_POSTInfo[],Table_POSTInspection[[#This Row],[Line]],G$3),\"\")=\"\"),\"\",INDEX(Table_POSTInfo[],Table_POSTInspection[[#This Row],[Line]],G$3)),\"\")","v":""},{"$f":"IFERROR(IF(OR(Table_POSTInspection[[#This Row],[Line]]<=0,IFERROR(INDEX(Table_POSTInfo[],Table_POSTInspection[[#This Row],[Line]],H$3),\"\")=\"\"),\"\",INDEX(Table_POSTInfo[],Table_POSTInspection[[#This Row],[Line]],H$3)),\"\")","v":""},{"$f":"IFERROR(IF(OR(Table_POSTInspection[[#This Row],[Line]]<=0,IFERROR(INDEX(Table_POSTInfo[],Table_POSTInspection[[#This Row],[Line]],I$3),\"\")=\"\"),\"\",INDEX(Table_POSTInfo[],Table_POSTInspection[[#This Row],[Line]],I$3)),\"\")","v":""},{"$f":"IFERROR(IF(OR(Table_POSTInspection[[#This Row],[Line]]<=0,IFERROR(INDEX(Table_POSTInfo[],Table_POSTInspection[[#This Row],[Line]],J$3),\"\")=\"\"),\"\",INDEX(Table_POSTInfo[],Table_POSTInspection[[#This Row],[Line]],J$3)),\"\")","v":""},{"$f":"IFERROR(\nIFERROR(OFFSET(Table_TypWattage[[#Headers],[Technology]],MATCH($G11,Table_TypWattage[Technology],0)+MATCH($I11,INDIRECT(SUBSTITUTE(SUBSTITUTE($G11,\" \",\"_\"),\"-\",\"_\")),0)-1,MATCH($H11,'Measure Tables'!$Q$2:$V$2,0)+1),IF(Table_POSTInspection[[#This Row],[Schedule]]<>\"\",IF(AND($H11<>\"\",$H11>0,$I11>0),$H11*$I11,$I11),\"\")),\n\"\")","v":""},{"$f":"IFERROR(IF(OR(Table_POSTInspection[[#This Row],[Line]]<=0,IFERROR(INDEX(Table_POSTInfo[],Table_POSTInspection[[#This Row],[Line]],L$3),\"\")=\"\"),\"\",INDEX(Table_POSTInfo[],Table_POSTInspection[[#This Row],[Line]],L$3)),\"\")","v":""},{"$f":"IFERROR(IF(OR(Table_POSTInspection[[#This Row],[Line]]<=0,IFERROR(INDEX(Table_POSTInfo[],Table_POSTInspection[[#This Row],[Line]],M$3),\"\")=\"\"),\"\",INDEX(Table_POSTInfo[],Table_POSTInspection[[#This Row],[Line]],M$3)),\"\")","v":""},{"$f":"IFERROR(IF(Table_POSTInspection[[#This Row],[Interior/ Exterior]]<>\"\",\n  CONCATENATE(\n  Table_POSTInspection[[#This Row],[Fixture Technology '[P']]],\n  \" - \",Table_POSTInspection[[#This Row],[Fixture Type '[P']]],\" [\",\n  IF(Table_POSTInspection[[#This Row],['# Lamps/ Fixture '[P']]]>0,Table_POSTInspection[[#This Row],['# Lamps/ Fixture '[P']]] & \"L - \" & Table_POSTInspection[[#This Row],[Fixture/ Lamp Wattage '[P']]] & \"W\" & IF(Table_POSTInspection[[#This Row],[Ballast/ Driver '[P']]]<>\"\",\" - \" & Table_POSTInspection[[#This Row],[Ballast/ Driver '[P']]],\"\"),Table_POSTInspection[[#This Row],[Fixture Wattage '[P']]] & \"W\"),\"]\",\n  IF(AND(Table_POSTInspection[[#This Row],[Controls '[P']]]<>\"\",Table_POSTInspection[[#This Row],[Controls '[P']]]<>\"No Controls\"),\" - \" & Table_POSTInspection[[#This Row],[Controls '[P']]],\"\")\n  ),\n\"\"),\"\")","v":""},{"$f":"IFERROR(IF(OR(Table_POSTInspection[[#This Row],[Line]]<=0,IFERROR(INDEX(Table_POSTInfo[],Table_POSTInspection[[#This Row],[Line]],O$3),\"\")=\"\"),\"\",INDEX(Table_POSTInfo[],Table_POSTInspection[[#This Row],[Line]],O$3)),\"\")","v":""},{"$f":"IFERROR(IF(OR(Table_POSTInspection[[#This Row],[Line]]<=0,IFERROR(INDEX(Table_POSTInfo[],Table_POSTInspection[[#This Row],[Line]],P$3),\"\")=\"\"),\"\",INDEX(Table_POSTInfo[],Table_POSTInspection[[#This Row],[Line]],P$3)),\"\")","v":""},{"$f":"IFERROR(IF(OR(Table_POSTInspection[[#This Row],[Line]]<=0,IFERROR(INDEX(Table_POSTInfo[],Table_POSTInspection[[#This Row],[Line]],Q$3),\"\")=\"\"),\"\",INDEX(Table_POSTInfo[],Table_POSTInspection[[#This Row],[Line]],Q$3)),\"\")","v":""}]
[null,{"$f":"IFERROR(IF(OR(Table_POSTInspection[[#This Row],[Line]]<=0,IFERROR(INDEX(Table_POSTInfo[],Table_POSTInspection[[#This Row],[Line]],B$3),\"\")=\"\"),\"\",INDEX(Table_POSTInfo[],Table_POSTInspection[[#This Row],[Line]],B$3)),\"\")","v":""},{"$f":"IFERROR(IF(OR(Table_POSTInspection[[#This Row],[Line]]<=0,IFERROR(INDEX(Table_POSTInfo[],Table_POSTInspection[[#This Row],[Line]],C$3),\"\")=\"\"),\"\",INDEX(Table_POSTInfo[],Table_POSTInspection[[#This Row],[Line]],C$3)),\"\")","v":""},{"$f":"IFERROR(IF(OR(Table_POSTInspection[[#This Row],[Line]]<=0,IFERROR(INDEX(Table_POSTInfo[],Table_POSTInspection[[#This Row],[Line]],D$3),\"\")=\"\"),\"\",INDEX(Table_POSTInfo[],Table_POSTInspection[[#This Row],[Line]],D$3)),\"\")","v":""},null,{"$f":"IFERROR(IF(OR(Table_POSTInspection[[#This Row],[Line]]<=0,IFERROR(INDEX(Table_POSTInfo[],Table_POSTInspection[[#This Row],[Line]],F$3),\"\")=\"\"),\"\",INDEX(Table_POSTInfo[],Table_POSTInspection[[#This Row],[Line]],F$3)),\"\")","v":""},{"$f":"IFERROR(IF(OR(Table_POSTInspection[[#This Row],[Line]]<=0,IFERROR(INDEX(Table_POSTInfo[],Table_POSTInspection[[#This Row],[Line]],G$3),\"\")=\"\"),\"\",INDEX(Table_POSTInfo[],Table_POSTInspection[[#This Row],[Line]],G$3)),\"\")","v":""},{"$f":"IFERROR(IF(OR(Table_POSTInspection[[#This Row],[Line]]<=0,IFERROR(INDEX(Table_POSTInfo[],Table_POSTInspection[[#This Row],[Line]],H$3),\"\")=\"\"),\"\",INDEX(Table_POSTInfo[],Table_POSTInspection[[#This Row],[Line]],H$3)),\"\")","v":""},{"$f":"IFERROR(IF(OR(Table_POSTInspection[[#This Row],[Line]]<=0,IFERROR(INDEX(Table_POSTInfo[],Table_POSTInspection[[#This Row],[Line]],I$3),\"\")=\"\"),\"\",INDEX(Table_POSTInfo[],Table_POSTInspection[[#This Row],[Line]],I$3)),\"\")","v":""},{"$f":"IFERROR(IF(OR(Table_POSTInspection[[#This Row],[Line]]<=0,IFERROR(INDEX(Table_POSTInfo[],Table_POSTInspection[[#This Row],[Line]],J$3),\"\")=\"\"),\"\",INDEX(Table_POSTInfo[],Table_POSTInspection[[#This Row],[Line]],J$3)),\"\")","v":""},{"$f":"IFERROR(\nIFERROR(OFFSET(Table_TypWattage[[#Headers],[Technology]],MATCH($G12,Table_TypWattage[Technology],0)+MATCH($I12,INDIRECT(SUBSTITUTE(SUBSTITUTE($G12,\" \",\"_\"),\"-\",\"_\")),0)-1,MATCH($H12,'Measure Tables'!$Q$2:$V$2,0)+1),IF(Table_POSTInspection[[#This Row],[Schedule]]<>\"\",IF(AND($H12<>\"\",$H12>0,$I12>0),$H12*$I12,$I12),\"\")),\n\"\")","v":""},{"$f":"IFERROR(IF(OR(Table_POSTInspection[[#This Row],[Line]]<=0,IFERROR(INDEX(Table_POSTInfo[],Table_POSTInspection[[#This Row],[Line]],L$3),\"\")=\"\"),\"\",INDEX(Table_POSTInfo[],Table_POSTInspection[[#This Row],[Line]],L$3)),\"\")","v":""},{"$f":"IFERROR(IF(OR(Table_POSTInspection[[#This Row],[Line]]<=0,IFERROR(INDEX(Table_POSTInfo[],Table_POSTInspection[[#This Row],[Line]],M$3),\"\")=\"\"),\"\",INDEX(Table_POSTInfo[],Table_POSTInspection[[#This Row],[Line]],M$3)),\"\")","v":""},{"$f":"IFERROR(IF(Table_POSTInspection[[#This Row],[Interior/ Exterior]]<>\"\",\n  CONCATENATE(\n  Table_POSTInspection[[#This Row],[Fixture Technology '[P']]],\n  \" - \",Table_POSTInspection[[#This Row],[Fixture Type '[P']]],\" [\",\n  IF(Table_POSTInspection[[#This Row],['# Lamps/ Fixture '[P']]]>0,Table_POSTInspection[[#This Row],['# Lamps/ Fixture '[P']]] & \"L - \" & Table_POSTInspection[[#This Row],[Fixture/ Lamp Wattage '[P']]] & \"W\" & IF(Table_POSTInspection[[#This Row],[Ballast/ Driver '[P']]]<>\"\",\" - \" & Table_POSTInspection[[#This Row],[Ballast/ Driver '[P']]],\"\"),Table_POSTInspection[[#This Row],[Fixture Wattage '[P']]] & \"W\"),\"]\",\n  IF(AND(Table_POSTInspection[[#This Row],[Controls '[P']]]<>\"\",Table_POSTInspection[[#This Row],[Controls '[P']]]<>\"No Controls\"),\" - \" & Table_POSTInspection[[#This Row],[Controls '[P']]],\"\")\n  ),\n\"\"),\"\")","v":""},{"$f":"IFERROR(IF(OR(Table_POSTInspection[[#This Row],[Line]]<=0,IFERROR(INDEX(Table_POSTInfo[],Table_POSTInspection[[#This Row],[Line]],O$3),\"\")=\"\"),\"\",INDEX(Table_POSTInfo[],Table_POSTInspection[[#This Row],[Line]],O$3)),\"\")","v":""},{"$f":"IFERROR(IF(OR(Table_POSTInspection[[#This Row],[Line]]<=0,IFERROR(INDEX(Table_POSTInfo[],Table_POSTInspection[[#This Row],[Line]],P$3),\"\")=\"\"),\"\",INDEX(Table_POSTInfo[],Table_POSTInspection[[#This Row],[Line]],P$3)),\"\")","v":""},{"$f":"IFERROR(IF(OR(Table_POSTInspection[[#This Row],[Line]]<=0,IFERROR(INDEX(Table_POSTInfo[],Table_POSTInspection[[#This Row],[Line]],Q$3),\"\")=\"\"),\"\",INDEX(Table_POSTInfo[],Table_POSTInspection[[#This Row],[Line]],Q$3)),\"\")","v":""}]
[null,{"$f":"IFERROR(IF(OR(Table_POSTInspection[[#This Row],[Line]]<=0,IFERROR(INDEX(Table_POSTInfo[],Table_POSTInspection[[#This Row],[Line]],B$3),\"\")=\"\"),\"\",INDEX(Table_POSTInfo[],Table_POSTInspection[[#This Row],[Line]],B$3)),\"\")","v":""},{"$f":"IFERROR(IF(OR(Table_POSTInspection[[#This Row],[Line]]<=0,IFERROR(INDEX(Table_POSTInfo[],Table_POSTInspection[[#This Row],[Line]],C$3),\"\")=\"\"),\"\",INDEX(Table_POSTInfo[],Table_POSTInspection[[#This Row],[Line]],C$3)),\"\")","v":""},{"$f":"IFERROR(IF(OR(Table_POSTInspection[[#This Row],[Line]]<=0,IFERROR(INDEX(Table_POSTInfo[],Table_POSTInspection[[#This Row],[Line]],D$3),\"\")=\"\"),\"\",INDEX(Table_POSTInfo[],Table_POSTInspection[[#This Row],[Line]],D$3)),\"\")","v":""},null,{"$f":"IFERROR(IF(OR(Table_POSTInspection[[#This Row],[Line]]<=0,IFERROR(INDEX(Table_POSTInfo[],Table_POSTInspection[[#This Row],[Line]],F$3),\"\")=\"\"),\"\",INDEX(Table_POSTInfo[],Table_POSTInspection[[#This Row],[Line]],F$3)),\"\")","v":""},{"$f":"IFERROR(IF(OR(Table_POSTInspection[[#This Row],[Line]]<=0,IFERROR(INDEX(Table_POSTInfo[],Table_POSTInspection[[#This Row],[Line]],G$3),\"\")=\"\"),\"\",INDEX(Table_POSTInfo[],Table_POSTInspection[[#This Row],[Line]],G$3)),\"\")","v":""},{"$f":"IFERROR(IF(OR(Table_POSTInspection[[#This Row],[Line]]<=0,IFERROR(INDEX(Table_POSTInfo[],Table_POSTInspection[[#This Row],[Line]],H$3),\"\")=\"\"),\"\",INDEX(Table_POSTInfo[],Table_POSTInspection[[#This Row],[Line]],H$3)),\"\")","v":""},{"$f":"IFERROR(IF(OR(Table_POSTInspection[[#This Row],[Line]]<=0,IFERROR(INDEX(Table_POSTInfo[],Table_POSTInspection[[#This Row],[Line]],I$3),\"\")=\"\"),\"\",INDEX(Table_POSTInfo[],Table_POSTInspection[[#This Row],[Line]],I$3)),\"\")","v":""},{"$f":"IFERROR(IF(OR(Table_POSTInspection[[#This Row],[Line]]<=0,IFERROR(INDEX(Table_POSTInfo[],Table_POSTInspection[[#This Row],[Line]],J$3),\"\")=\"\"),\"\",INDEX(Table_POSTInfo[],Table_POSTInspection[[#This Row],[Line]],J$3)),\"\")","v":""},{"$f":"IFERROR(\nIFERROR(OFFSET(Table_TypWattage[[#Headers],[Technology]],MATCH($G13,Table_TypWattage[Technology],0)+MATCH($I13,INDIRECT(SUBSTITUTE(SUBSTITUTE($G13,\" \",\"_\"),\"-\",\"_\")),0)-1,MATCH($H13,'Measure Tables'!$Q$2:$V$2,0)+1),IF(Table_POSTInspection[[#This Row],[Schedule]]<>\"\",IF(AND($H13<>\"\",$H13>0,$I13>0),$H13*$I13,$I13),\"\")),\n\"\")","v":""},{"$f":"IFERROR(IF(OR(Table_POSTInspection[[#This Row],[Line]]<=0,IFERROR(INDEX(Table_POSTInfo[],Table_POSTInspection[[#This Row],[Line]],L$3),\"\")=\"\"),\"\",INDEX(Table_POSTInfo[],Table_POSTInspection[[#This Row],[Line]],L$3)),\"\")","v":""},{"$f":"IFERROR(IF(OR(Table_POSTInspection[[#This Row],[Line]]<=0,IFERROR(INDEX(Table_POSTInfo[],Table_POSTInspection[[#This Row],[Line]],M$3),\"\")=\"\"),\"\",INDEX(Table_POSTInfo[],Table_POSTInspection[[#This Row],[Line]],M$3)),\"\")","v":""},{"$f":"IFERROR(IF(Table_POSTInspection[[#This Row],[Interior/ Exterior]]<>\"\",\n  CONCATENATE(\n  Table_POSTInspection[[#This Row],[Fixture Technology '[P']]],\n  \" - \",Table_POSTInspection[[#This Row],[Fixture Type '[P']]],\" [\",\n  IF(Table_POSTInspection[[#This Row],['# Lamps/ Fixture '[P']]]>0,Table_POSTInspection[[#This Row],['# Lamps/ Fixture '[P']]] & \"L - \" & Table_POSTInspection[[#This Row],[Fixture/ Lamp Wattage '[P']]] & \"W\" & IF(Table_POSTInspection[[#This Row],[Ballast/ Driver '[P']]]<>\"\",\" - \" & Table_POSTInspection[[#This Row],[Ballast/ Driver '[P']]],\"\"),Table_POSTInspection[[#This Row],[Fixture Wattage '[P']]] & \"W\"),\"]\",\n  IF(AND(Table_POSTInspection[[#This Row],[Controls '[P']]]<>\"\",Table_POSTInspection[[#This Row],[Controls '[P']]]<>\"No Controls\"),\" - \" & Table_POSTInspection[[#This Row],[Controls '[P']]],\"\")\n  ),\n\"\"),\"\")","v":""},{"$f":"IFERROR(IF(OR(Table_POSTInspection[[#This Row],[Line]]<=0,IFERROR(INDEX(Table_POSTInfo[],Table_POSTInspection[[#This Row],[Line]],O$3),\"\")=\"\"),\"\",INDEX(Table_POSTInfo[],Table_POSTInspection[[#This Row],[Line]],O$3)),\"\")","v":""},{"$f":"IFERROR(IF(OR(Table_POSTInspection[[#This Row],[Line]]<=0,IFERROR(INDEX(Table_POSTInfo[],Table_POSTInspection[[#This Row],[Line]],P$3),\"\")=\"\"),\"\",INDEX(Table_POSTInfo[],Table_POSTInspection[[#This Row],[Line]],P$3)),\"\")","v":""},{"$f":"IFERROR(IF(OR(Table_POSTInspection[[#This Row],[Line]]<=0,IFERROR(INDEX(Table_POSTInfo[],Table_POSTInspection[[#This Row],[Line]],Q$3),\"\")=\"\"),\"\",INDEX(Table_POSTInfo[],Table_POSTInspection[[#This Row],[Line]],Q$3)),\"\")","v":""}]
[null,{"$f":"IFERROR(IF(OR(Table_POSTInspection[[#This Row],[Line]]<=0,IFERROR(INDEX(Table_POSTInfo[],Table_POSTInspection[[#This Row],[Line]],B$3),\"\")=\"\"),\"\",INDEX(Table_POSTInfo[],Table_POSTInspection[[#This Row],[Line]],B$3)),\"\")","v":""},{"$f":"IFERROR(IF(OR(Table_POSTInspection[[#This Row],[Line]]<=0,IFERROR(INDEX(Table_POSTInfo[],Table_POSTInspection[[#This Row],[Line]],C$3),\"\")=\"\"),\"\",INDEX(Table_POSTInfo[],Table_POSTInspection[[#This Row],[Line]],C$3)),\"\")","v":""},{"$f":"IFERROR(IF(OR(Table_POSTInspection[[#This Row],[Line]]<=0,IFERROR(INDEX(Table_POSTInfo[],Table_POSTInspection[[#This Row],[Line]],D$3),\"\")=\"\"),\"\",INDEX(Table_POSTInfo[],Table_POSTInspection[[#This Row],[Line]],D$3)),\"\")","v":""},null,{"$f":"IFERROR(IF(OR(Table_POSTInspection[[#This Row],[Line]]<=0,IFERROR(INDEX(Table_POSTInfo[],Table_POSTInspection[[#This Row],[Line]],F$3),\"\")=\"\"),\"\",INDEX(Table_POSTInfo[],Table_POSTInspection[[#This Row],[Line]],F$3)),\"\")","v":""},{"$f":"IFERROR(IF(OR(Table_POSTInspection[[#This Row],[Line]]<=0,IFERROR(INDEX(Table_POSTInfo[],Table_POSTInspection[[#This Row],[Line]],G$3),\"\")=\"\"),\"\",INDEX(Table_POSTInfo[],Table_POSTInspection[[#This Row],[Line]],G$3)),\"\")","v":""},{"$f":"IFERROR(IF(OR(Table_POSTInspection[[#This Row],[Line]]<=0,IFERROR(INDEX(Table_POSTInfo[],Table_POSTInspection[[#This Row],[Line]],H$3),\"\")=\"\"),\"\",INDEX(Table_POSTInfo[],Table_POSTInspection[[#This Row],[Line]],H$3)),\"\")","v":""},{"$f":"IFERROR(IF(OR(Table_POSTInspection[[#This Row],[Line]]<=0,IFERROR(INDEX(Table_POSTInfo[],Table_POSTInspection[[#This Row],[Line]],I$3),\"\")=\"\"),\"\",INDEX(Table_POSTInfo[],Table_POSTInspection[[#This Row],[Line]],I$3)),\"\")","v":""},{"$f":"IFERROR(IF(OR(Table_POSTInspection[[#This Row],[Line]]<=0,IFERROR(INDEX(Table_POSTInfo[],Table_POSTInspection[[#This Row],[Line]],J$3),\"\")=\"\"),\"\",INDEX(Table_POSTInfo[],Table_POSTInspection[[#This Row],[Line]],J$3)),\"\")","v":""},{"$f":"IFERROR(\nIFERROR(OFFSET(Table_TypWattage[[#Headers],[Technology]],MATCH($G14,Table_TypWattage[Technology],0)+MATCH($I14,INDIRECT(SUBSTITUTE(SUBSTITUTE($G14,\" \",\"_\"),\"-\",\"_\")),0)-1,MATCH($H14,'Measure Tables'!$Q$2:$V$2,0)+1),IF(Table_POSTInspection[[#This Row],[Schedule]]<>\"\",IF(AND($H14<>\"\",$H14>0,$I14>0),$H14*$I14,$I14),\"\")),\n\"\")","v":""},{"$f":"IFERROR(IF(OR(Table_POSTInspection[[#This Row],[Line]]<=0,IFERROR(INDEX(Table_POSTInfo[],Table_POSTInspection[[#This Row],[Line]],L$3),\"\")=\"\"),\"\",INDEX(Table_POSTInfo[],Table_POSTInspection[[#This Row],[Line]],L$3)),\"\")","v":""},{"$f":"IFERROR(IF(OR(Table_POSTInspection[[#This Row],[Line]]<=0,IFERROR(INDEX(Table_POSTInfo[],Table_POSTInspection[[#This Row],[Line]],M$3),\"\")=\"\"),\"\",INDEX(Table_POSTInfo[],Table_POSTInspection[[#This Row],[Line]],M$3)),\"\")","v":""},{"$f":"IFERROR(IF(Table_POSTInspection[[#This Row],[Interior/ Exterior]]<>\"\",\n  CONCATENATE(\n  Table_POSTInspection[[#This Row],[Fixture Technology '[P']]],\n  \" - \",Table_POSTInspection[[#This Row],[Fixture Type '[P']]],\" [\",\n  IF(Table_POSTInspection[[#This Row],['# Lamps/ Fixture '[P']]]>0,Table_POSTInspection[[#This Row],['# Lamps/ Fixture '[P']]] & \"L - \" & Table_POSTInspection[[#This Row],[Fixture/ Lamp Wattage '[P']]] & \"W\" & IF(Table_POSTInspection[[#This Row],[Ballast/ Driver '[P']]]<>\"\",\" - \" & Table_POSTInspection[[#This Row],[Ballast/ Driver '[P']]],\"\"),Table_POSTInspection[[#This Row],[Fixture Wattage '[P']]] & \"W\"),\"]\",\n  IF(AND(Table_POSTInspection[[#This Row],[Controls '[P']]]<>\"\",Table_POSTInspection[[#This Row],[Controls '[P']]]<>\"No Controls\"),\" - \" & Table_POSTInspection[[#This Row],[Controls '[P']]],\"\")\n  ),\n\"\"),\"\")","v":""},{"$f":"IFERROR(IF(OR(Table_POSTInspection[[#This Row],[Line]]<=0,IFERROR(INDEX(Table_POSTInfo[],Table_POSTInspection[[#This Row],[Line]],O$3),\"\")=\"\"),\"\",INDEX(Table_POSTInfo[],Table_POSTInspection[[#This Row],[Line]],O$3)),\"\")","v":""},{"$f":"IFERROR(IF(OR(Table_POSTInspection[[#This Row],[Line]]<=0,IFERROR(INDEX(Table_POSTInfo[],Table_POSTInspection[[#This Row],[Line]],P$3),\"\")=\"\"),\"\",INDEX(Table_POSTInfo[],Table_POSTInspection[[#This Row],[Line]],P$3)),\"\")","v":""},{"$f":"IFERROR(IF(OR(Table_POSTInspection[[#This Row],[Line]]<=0,IFERROR(INDEX(Table_POSTInfo[],Table_POSTInspection[[#This Row],[Line]],Q$3),\"\")=\"\"),\"\",INDEX(Table_POSTInfo[],Table_POSTInspection[[#This Row],[Line]],Q$3)),\"\")","v":""}]
[null,{"$f":"IFERROR(IF(OR(Table_POSTInspection[[#This Row],[Line]]<=0,IFERROR(INDEX(Table_POSTInfo[],Table_POSTInspection[[#This Row],[Line]],B$3),\"\")=\"\"),\"\",INDEX(Table_POSTInfo[],Table_POSTInspection[[#This Row],[Line]],B$3)),\"\")","v":""},{"$f":"IFERROR(IF(OR(Table_POSTInspection[[#This Row],[Line]]<=0,IFERROR(INDEX(Table_POSTInfo[],Table_POSTInspection[[#This Row],[Line]],C$3),\"\")=\"\"),\"\",INDEX(Table_POSTInfo[],Table_POSTInspection[[#This Row],[Line]],C$3)),\"\")","v":""},{"$f":"IFERROR(IF(OR(Table_POSTInspection[[#This Row],[Line]]<=0,IFERROR(INDEX(Table_POSTInfo[],Table_POSTInspection[[#This Row],[Line]],D$3),\"\")=\"\"),\"\",INDEX(Table_POSTInfo[],Table_POSTInspection[[#This Row],[Line]],D$3)),\"\")","v":""},null,{"$f":"IFERROR(IF(OR(Table_POSTInspection[[#This Row],[Line]]<=0,IFERROR(INDEX(Table_POSTInfo[],Table_POSTInspection[[#This Row],[Line]],F$3),\"\")=\"\"),\"\",INDEX(Table_POSTInfo[],Table_POSTInspection[[#This Row],[Line]],F$3)),\"\")","v":""},{"$f":"IFERROR(IF(OR(Table_POSTInspection[[#This Row],[Line]]<=0,IFERROR(INDEX(Table_POSTInfo[],Table_POSTInspection[[#This Row],[Line]],G$3),\"\")=\"\"),\"\",INDEX(Table_POSTInfo[],Table_POSTInspection[[#This Row],[Line]],G$3)),\"\")","v":""},{"$f":"IFERROR(IF(OR(Table_POSTInspection[[#This Row],[Line]]<=0,IFERROR(INDEX(Table_POSTInfo[],Table_POSTInspection[[#This Row],[Line]],H$3),\"\")=\"\"),\"\",INDEX(Table_POSTInfo[],Table_POSTInspection[[#This Row],[Line]],H$3)),\"\")","v":""},{"$f":"IFERROR(IF(OR(Table_POSTInspection[[#This Row],[Line]]<=0,IFERROR(INDEX(Table_POSTInfo[],Table_POSTInspection[[#This Row],[Line]],I$3),\"\")=\"\"),\"\",INDEX(Table_POSTInfo[],Table_POSTInspection[[#This Row],[Line]],I$3)),\"\")","v":""},{"$f":"IFERROR(IF(OR(Table_POSTInspection[[#This Row],[Line]]<=0,IFERROR(INDEX(Table_POSTInfo[],Table_POSTInspection[[#This Row],[Line]],J$3),\"\")=\"\"),\"\",INDEX(Table_POSTInfo[],Table_POSTInspection[[#This Row],[Line]],J$3)),\"\")","v":""},{"$f":"IFERROR(\nIFERROR(OFFSET(Table_TypWattage[[#Headers],[Technology]],MATCH($G15,Table_TypWattage[Technology],0)+MATCH($I15,INDIRECT(SUBSTITUTE(SUBSTITUTE($G15,\" \",\"_\"),\"-\",\"_\")),0)-1,MATCH($H15,'Measure Tables'!$Q$2:$V$2,0)+1),IF(Table_POSTInspection[[#This Row],[Schedule]]<>\"\",IF(AND($H15<>\"\",$H15>0,$I15>0),$H15*$I15,$I15),\"\")),\n\"\")","v":""},{"$f":"IFERROR(IF(OR(Table_POSTInspection[[#This Row],[Line]]<=0,IFERROR(INDEX(Table_POSTInfo[],Table_POSTInspection[[#This Row],[Line]],L$3),\"\")=\"\"),\"\",INDEX(Table_POSTInfo[],Table_POSTInspection[[#This Row],[Line]],L$3)),\"\")","v":""},{"$f":"IFERROR(IF(OR(Table_POSTInspection[[#This Row],[Line]]<=0,IFERROR(INDEX(Table_POSTInfo[],Table_POSTInspection[[#This Row],[Line]],M$3),\"\")=\"\"),\"\",INDEX(Table_POSTInfo[],Table_POSTInspection[[#This Row],[Line]],M$3)),\"\")","v":""},{"$f":"IFERROR(IF(Table_POSTInspection[[#This Row],[Interior/ Exterior]]<>\"\",\n  CONCATENATE(\n  Table_POSTInspection[[#This Row],[Fixture Technology '[P']]],\n  \" - \",Table_POSTInspection[[#This Row],[Fixture Type '[P']]],\" [\",\n  IF(Table_POSTInspection[[#This Row],['# Lamps/ Fixture '[P']]]>0,Table_POSTInspection[[#This Row],['# Lamps/ Fixture '[P']]] & \"L - \" & Table_POSTInspection[[#This Row],[Fixture/ Lamp Wattage '[P']]] & \"W\" & IF(Table_POSTInspection[[#This Row],[Ballast/ Driver '[P']]]<>\"\",\" - \" & Table_POSTInspection[[#This Row],[Ballast/ Driver '[P']]],\"\"),Table_POSTInspection[[#This Row],[Fixture Wattage '[P']]] & \"W\"),\"]\",\n  IF(AND(Table_POSTInspection[[#This Row],[Controls '[P']]]<>\"\",Table_POSTInspection[[#This Row],[Controls '[P']]]<>\"No Controls\"),\" - \" & Table_POSTInspection[[#This Row],[Controls '[P']]],\"\")\n  ),\n\"\"),\"\")","v":""},{"$f":"IFERROR(IF(OR(Table_POSTInspection[[#This Row],[Line]]<=0,IFERROR(INDEX(Table_POSTInfo[],Table_POSTInspection[[#This Row],[Line]],O$3),\"\")=\"\"),\"\",INDEX(Table_POSTInfo[],Table_POSTInspection[[#This Row],[Line]],O$3)),\"\")","v":""},{"$f":"IFERROR(IF(OR(Table_POSTInspection[[#This Row],[Line]]<=0,IFERROR(INDEX(Table_POSTInfo[],Table_POSTInspection[[#This Row],[Line]],P$3),\"\")=\"\"),\"\",INDEX(Table_POSTInfo[],Table_POSTInspection[[#This Row],[Line]],P$3)),\"\")","v":""},{"$f":"IFERROR(IF(OR(Table_POSTInspection[[#This Row],[Line]]<=0,IFERROR(INDEX(Table_POSTInfo[],Table_POSTInspection[[#This Row],[Line]],Q$3),\"\")=\"\"),\"\",INDEX(Table_POSTInfo[],Table_POSTInspection[[#This Row],[Line]],Q$3)),\"\")","v":""}]
[null,{"$f":"IFERROR(IF(OR(Table_POSTInspection[[#This Row],[Line]]<=0,IFERROR(INDEX(Table_POSTInfo[],Table_POSTInspection[[#This Row],[Line]],B$3),\"\")=\"\"),\"\",INDEX(Table_POSTInfo[],Table_POSTInspection[[#This Row],[Line]],B$3)),\"\")","v":""},{"$f":"IFERROR(IF(OR(Table_POSTInspection[[#This Row],[Line]]<=0,IFERROR(INDEX(Table_POSTInfo[],Table_POSTInspection[[#This Row],[Line]],C$3),\"\")=\"\"),\"\",INDEX(Table_POSTInfo[],Table_POSTInspection[[#This Row],[Line]],C$3)),\"\")","v":""},{"$f":"IFERROR(IF(OR(Table_POSTInspection[[#This Row],[Line]]<=0,IFERROR(INDEX(Table_POSTInfo[],Table_POSTInspection[[#This Row],[Line]],D$3),\"\")=\"\"),\"\",INDEX(Table_POSTInfo[],Table_POSTInspection[[#This Row],[Line]],D$3)),\"\")","v":""},null,{"$f":"IFERROR(IF(OR(Table_POSTInspection[[#This Row],[Line]]<=0,IFERROR(INDEX(Table_POSTInfo[],Table_POSTInspection[[#This Row],[Line]],F$3),\"\")=\"\"),\"\",INDEX(Table_POSTInfo[],Table_POSTInspection[[#This Row],[Line]],F$3)),\"\")","v":""},{"$f":"IFERROR(IF(OR(Table_POSTInspection[[#This Row],[Line]]<=0,IFERROR(INDEX(Table_POSTInfo[],Table_POSTInspection[[#This Row],[Line]],G$3),\"\")=\"\"),\"\",INDEX(Table_POSTInfo[],Table_POSTInspection[[#This Row],[Line]],G$3)),\"\")","v":""},{"$f":"IFERROR(IF(OR(Table_POSTInspection[[#This Row],[Line]]<=0,IFERROR(INDEX(Table_POSTInfo[],Table_POSTInspection[[#This Row],[Line]],H$3),\"\")=\"\"),\"\",INDEX(Table_POSTInfo[],Table_POSTInspection[[#This Row],[Line]],H$3)),\"\")","v":""},{"$f":"IFERROR(IF(OR(Table_POSTInspection[[#This Row],[Line]]<=0,IFERROR(INDEX(Table_POSTInfo[],Table_POSTInspection[[#This Row],[Line]],I$3),\"\")=\"\"),\"\",INDEX(Table_POSTInfo[],Table_POSTInspection[[#This Row],[Line]],I$3)),\"\")","v":""},{"$f":"IFERROR(IF(OR(Table_POSTInspection[[#This Row],[Line]]<=0,IFERROR(INDEX(Table_POSTInfo[],Table_POSTInspection[[#This Row],[Line]],J$3),\"\")=\"\"),\"\",INDEX(Table_POSTInfo[],Table_POSTInspection[[#This Row],[Line]],J$3)),\"\")","v":""},{"$f":"IFERROR(\nIFERROR(OFFSET(Table_TypWattage[[#Headers],[Technology]],MATCH($G16,Table_TypWattage[Technology],0)+MATCH($I16,INDIRECT(SUBSTITUTE(SUBSTITUTE($G16,\" \",\"_\"),\"-\",\"_\")),0)-1,MATCH($H16,'Measure Tables'!$Q$2:$V$2,0)+1),IF(Table_POSTInspection[[#This Row],[Schedule]]<>\"\",IF(AND($H16<>\"\",$H16>0,$I16>0),$H16*$I16,$I16),\"\")),\n\"\")","v":""},{"$f":"IFERROR(IF(OR(Table_POSTInspection[[#This Row],[Line]]<=0,IFERROR(INDEX(Table_POSTInfo[],Table_POSTInspection[[#This Row],[Line]],L$3),\"\")=\"\"),\"\",INDEX(Table_POSTInfo[],Table_POSTInspection[[#This Row],[Line]],L$3)),\"\")","v":""},{"$f":"IFERROR(IF(OR(Table_POSTInspection[[#This Row],[Line]]<=0,IFERROR(INDEX(Table_POSTInfo[],Table_POSTInspection[[#This Row],[Line]],M$3),\"\")=\"\"),\"\",INDEX(Table_POSTInfo[],Table_POSTInspection[[#This Row],[Line]],M$3)),\"\")","v":""},{"$f":"IFERROR(IF(Table_POSTInspection[[#This Row],[Interior/ Exterior]]<>\"\",\n  CONCATENATE(\n  Table_POSTInspection[[#This Row],[Fixture Technology '[P']]],\n  \" - \",Table_POSTInspection[[#This Row],[Fixture Type '[P']]],\" [\",\n  IF(Table_POSTInspection[[#This Row],['# Lamps/ Fixture '[P']]]>0,Table_POSTInspection[[#This Row],['# Lamps/ Fixture '[P']]] & \"L - \" & Table_POSTInspection[[#This Row],[Fixture/ Lamp Wattage '[P']]] & \"W\" & IF(Table_POSTInspection[[#This Row],[Ballast/ Driver '[P']]]<>\"\",\" - \" & Table_POSTInspection[[#This Row],[Ballast/ Driver '[P']]],\"\"),Table_POSTInspection[[#This Row],[Fixture Wattage '[P']]] & \"W\"),\"]\",\n  IF(AND(Table_POSTInspection[[#This Row],[Controls '[P']]]<>\"\",Table_POSTInspection[[#This Row],[Controls '[P']]]<>\"No Controls\"),\" - \" & Table_POSTInspection[[#This Row],[Controls '[P']]],\"\")\n  ),\n\"\"),\"\")","v":""},{"$f":"IFERROR(IF(OR(Table_POSTInspection[[#This Row],[Line]]<=0,IFERROR(INDEX(Table_POSTInfo[],Table_POSTInspection[[#This Row],[Line]],O$3),\"\")=\"\"),\"\",INDEX(Table_POSTInfo[],Table_POSTInspection[[#This Row],[Line]],O$3)),\"\")","v":""},{"$f":"IFERROR(IF(OR(Table_POSTInspection[[#This Row],[Line]]<=0,IFERROR(INDEX(Table_POSTInfo[],Table_POSTInspection[[#This Row],[Line]],P$3),\"\")=\"\"),\"\",INDEX(Table_POSTInfo[],Table_POSTInspection[[#This Row],[Line]],P$3)),\"\")","v":""},{"$f":"IFERROR(IF(OR(Table_POSTInspection[[#This Row],[Line]]<=0,IFERROR(INDEX(Table_POSTInfo[],Table_POSTInspection[[#This Row],[Line]],Q$3),\"\")=\"\"),\"\",INDEX(Table_POSTInfo[],Table_POSTInspection[[#This Row],[Line]],Q$3)),\"\")","v":""}]
[null,{"$f":"IFERROR(IF(OR(Table_POSTInspection[[#This Row],[Line]]<=0,IFERROR(INDEX(Table_POSTInfo[],Table_POSTInspection[[#This Row],[Line]],B$3),\"\")=\"\"),\"\",INDEX(Table_POSTInfo[],Table_POSTInspection[[#This Row],[Line]],B$3)),\"\")","v":""},{"$f":"IFERROR(IF(OR(Table_POSTInspection[[#This Row],[Line]]<=0,IFERROR(INDEX(Table_POSTInfo[],Table_POSTInspection[[#This Row],[Line]],C$3),\"\")=\"\"),\"\",INDEX(Table_POSTInfo[],Table_POSTInspection[[#This Row],[Line]],C$3)),\"\")","v":""},{"$f":"IFERROR(IF(OR(Table_POSTInspection[[#This Row],[Line]]<=0,IFERROR(INDEX(Table_POSTInfo[],Table_POSTInspection[[#This Row],[Line]],D$3),\"\")=\"\"),\"\",INDEX(Table_POSTInfo[],Table_POSTInspection[[#This Row],[Line]],D$3)),\"\")","v":""},null,{"$f":"IFERROR(IF(OR(Table_POSTInspection[[#This Row],[Line]]<=0,IFERROR(INDEX(Table_POSTInfo[],Table_POSTInspection[[#This Row],[Line]],F$3),\"\")=\"\"),\"\",INDEX(Table_POSTInfo[],Table_POSTInspection[[#This Row],[Line]],F$3)),\"\")","v":""},{"$f":"IFERROR(IF(OR(Table_POSTInspection[[#This Row],[Line]]<=0,IFERROR(INDEX(Table_POSTInfo[],Table_POSTInspection[[#This Row],[Line]],G$3),\"\")=\"\"),\"\",INDEX(Table_POSTInfo[],Table_POSTInspection[[#This Row],[Line]],G$3)),\"\")","v":""},{"$f":"IFERROR(IF(OR(Table_POSTInspection[[#This Row],[Line]]<=0,IFERROR(INDEX(Table_POSTInfo[],Table_POSTInspection[[#This Row],[Line]],H$3),\"\")=\"\"),\"\",INDEX(Table_POSTInfo[],Table_POSTInspection[[#This Row],[Line]],H$3)),\"\")","v":""},{"$f":"IFERROR(IF(OR(Table_POSTInspection[[#This Row],[Line]]<=0,IFERROR(INDEX(Table_POSTInfo[],Table_POSTInspection[[#This Row],[Line]],I$3),\"\")=\"\"),\"\",INDEX(Table_POSTInfo[],Table_POSTInspection[[#This Row],[Line]],I$3)),\"\")","v":""},{"$f":"IFERROR(IF(OR(Table_POSTInspection[[#This Row],[Line]]<=0,IFERROR(INDEX(Table_POSTInfo[],Table_POSTInspection[[#This Row],[Line]],J$3),\"\")=\"\"),\"\",INDEX(Table_POSTInfo[],Table_POSTInspection[[#This Row],[Line]],J$3)),\"\")","v":""},{"$f":"IFERROR(\nIFERROR(OFFSET(Table_TypWattage[[#Headers],[Technology]],MATCH($G17,Table_TypWattage[Technology],0)+MATCH($I17,INDIRECT(SUBSTITUTE(SUBSTITUTE($G17,\" \",\"_\"),\"-\",\"_\")),0)-1,MATCH($H17,'Measure Tables'!$Q$2:$V$2,0)+1),IF(Table_POSTInspection[[#This Row],[Schedule]]<>\"\",IF(AND($H17<>\"\",$H17>0,$I17>0),$H17*$I17,$I17),\"\")),\n\"\")","v":""},{"$f":"IFERROR(IF(OR(Table_POSTInspection[[#This Row],[Line]]<=0,IFERROR(INDEX(Table_POSTInfo[],Table_POSTInspection[[#This Row],[Line]],L$3),\"\")=\"\"),\"\",INDEX(Table_POSTInfo[],Table_POSTInspection[[#This Row],[Line]],L$3)),\"\")","v":""},{"$f":"IFERROR(IF(OR(Table_POSTInspection[[#This Row],[Line]]<=0,IFERROR(INDEX(Table_POSTInfo[],Table_POSTInspection[[#This Row],[Line]],M$3),\"\")=\"\"),\"\",INDEX(Table_POSTInfo[],Table_POSTInspection[[#This Row],[Line]],M$3)),\"\")","v":""},{"$f":"IFERROR(IF(Table_POSTInspection[[#This Row],[Interior/ Exterior]]<>\"\",\n  CONCATENATE(\n  Table_POSTInspection[[#This Row],[Fixture Technology '[P']]],\n  \" - \",Table_POSTInspection[[#This Row],[Fixture Type '[P']]],\" [\",\n  IF(Table_POSTInspection[[#This Row],['# Lamps/ Fixture '[P']]]>0,Table_POSTInspection[[#This Row],['# Lamps/ Fixture '[P']]] & \"L - \" & Table_POSTInspection[[#This Row],[Fixture/ Lamp Wattage '[P']]] & \"W\" & IF(Table_POSTInspection[[#This Row],[Ballast/ Driver '[P']]]<>\"\",\" - \" & Table_POSTInspection[[#This Row],[Ballast/ Driver '[P']]],\"\"),Table_POSTInspection[[#This Row],[Fixture Wattage '[P']]] & \"W\"),\"]\",\n  IF(AND(Table_POSTInspection[[#This Row],[Controls '[P']]]<>\"\",Table_POSTInspection[[#This Row],[Controls '[P']]]<>\"No Controls\"),\" - \" & Table_POSTInspection[[#This Row],[Controls '[P']]],\"\")\n  ),\n\"\"),\"\")","v":""},{"$f":"IFERROR(IF(OR(Table_POSTInspection[[#This Row],[Line]]<=0,IFERROR(INDEX(Table_POSTInfo[],Table_POSTInspection[[#This Row],[Line]],O$3),\"\")=\"\"),\"\",INDEX(Table_POSTInfo[],Table_POSTInspection[[#This Row],[Line]],O$3)),\"\")","v":""},{"$f":"IFERROR(IF(OR(Table_POSTInspection[[#This Row],[Line]]<=0,IFERROR(INDEX(Table_POSTInfo[],Table_POSTInspection[[#This Row],[Line]],P$3),\"\")=\"\"),\"\",INDEX(Table_POSTInfo[],Table_POSTInspection[[#This Row],[Line]],P$3)),\"\")","v":""},{"$f":"IFERROR(IF(OR(Table_POSTInspection[[#This Row],[Line]]<=0,IFERROR(INDEX(Table_POSTInfo[],Table_POSTInspection[[#This Row],[Line]],Q$3),\"\")=\"\"),\"\",INDEX(Table_POSTInfo[],Table_POSTInspection[[#This Row],[Line]],Q$3)),\"\")","v":""}]
[null,{"$f":"IFERROR(IF(OR(Table_POSTInspection[[#This Row],[Line]]<=0,IFERROR(INDEX(Table_POSTInfo[],Table_POSTInspection[[#This Row],[Line]],B$3),\"\")=\"\"),\"\",INDEX(Table_POSTInfo[],Table_POSTInspection[[#This Row],[Line]],B$3)),\"\")","v":""},{"$f":"IFERROR(IF(OR(Table_POSTInspection[[#This Row],[Line]]<=0,IFERROR(INDEX(Table_POSTInfo[],Table_POSTInspection[[#This Row],[Line]],C$3),\"\")=\"\"),\"\",INDEX(Table_POSTInfo[],Table_POSTInspection[[#This Row],[Line]],C$3)),\"\")","v":""},{"$f":"IFERROR(IF(OR(Table_POSTInspection[[#This Row],[Line]]<=0,IFERROR(INDEX(Table_POSTInfo[],Table_POSTInspection[[#This Row],[Line]],D$3),\"\")=\"\"),\"\",INDEX(Table_POSTInfo[],Table_POSTInspection[[#This Row],[Line]],D$3)),\"\")","v":""},null,{"$f":"IFERROR(IF(OR(Table_POSTInspection[[#This Row],[Line]]<=0,IFERROR(INDEX(Table_POSTInfo[],Table_POSTInspection[[#This Row],[Line]],F$3),\"\")=\"\"),\"\",INDEX(Table_POSTInfo[],Table_POSTInspection[[#This Row],[Line]],F$3)),\"\")","v":""},{"$f":"IFERROR(IF(OR(Table_POSTInspection[[#This Row],[Line]]<=0,IFERROR(INDEX(Table_POSTInfo[],Table_POSTInspection[[#This Row],[Line]],G$3),\"\")=\"\"),\"\",INDEX(Table_POSTInfo[],Table_POSTInspection[[#This Row],[Line]],G$3)),\"\")","v":""},{"$f":"IFERROR(IF(OR(Table_POSTInspection[[#This Row],[Line]]<=0,IFERROR(INDEX(Table_POSTInfo[],Table_POSTInspection[[#This Row],[Line]],H$3),\"\")=\"\"),\"\",INDEX(Table_POSTInfo[],Table_POSTInspection[[#This Row],[Line]],H$3)),\"\")","v":""},{"$f":"IFERROR(IF(OR(Table_POSTInspection[[#This Row],[Line]]<=0,IFERROR(INDEX(Table_POSTInfo[],Table_POSTInspection[[#This Row],[Line]],I$3),\"\")=\"\"),\"\",INDEX(Table_POSTInfo[],Table_POSTInspection[[#This Row],[Line]],I$3)),\"\")","v":""},{"$f":"IFERROR(IF(OR(Table_POSTInspection[[#This Row],[Line]]<=0,IFERROR(INDEX(Table_POSTInfo[],Table_POSTInspection[[#This Row],[Line]],J$3),\"\")=\"\"),\"\",INDEX(Table_POSTInfo[],Table_POSTInspection[[#This Row],[Line]],J$3)),\"\")","v":""},{"$f":"IFERROR(\nIFERROR(OFFSET(Table_TypWattage[[#Headers],[Technology]],MATCH($G18,Table_TypWattage[Technology],0)+MATCH($I18,INDIRECT(SUBSTITUTE(SUBSTITUTE($G18,\" \",\"_\"),\"-\",\"_\")),0)-1,MATCH($H18,'Measure Tables'!$Q$2:$V$2,0)+1),IF(Table_POSTInspection[[#This Row],[Schedule]]<>\"\",IF(AND($H18<>\"\",$H18>0,$I18>0),$H18*$I18,$I18),\"\")),\n\"\")","v":""},{"$f":"IFERROR(IF(OR(Table_POSTInspection[[#This Row],[Line]]<=0,IFERROR(INDEX(Table_POSTInfo[],Table_POSTInspection[[#This Row],[Line]],L$3),\"\")=\"\"),\"\",INDEX(Table_POSTInfo[],Table_POSTInspection[[#This Row],[Line]],L$3)),\"\")","v":""},{"$f":"IFERROR(IF(OR(Table_POSTInspection[[#This Row],[Line]]<=0,IFERROR(INDEX(Table_POSTInfo[],Table_POSTInspection[[#This Row],[Line]],M$3),\"\")=\"\"),\"\",INDEX(Table_POSTInfo[],Table_POSTInspection[[#This Row],[Line]],M$3)),\"\")","v":""},{"$f":"IFERROR(IF(Table_POSTInspection[[#This Row],[Interior/ Exterior]]<>\"\",\n  CONCATENATE(\n  Table_POSTInspection[[#This Row],[Fixture Technology '[P']]],\n  \" - \",Table_POSTInspection[[#This Row],[Fixture Type '[P']]],\" [\",\n  IF(Table_POSTInspection[[#This Row],['# Lamps/ Fixture '[P']]]>0,Table_POSTInspection[[#This Row],['# Lamps/ Fixture '[P']]] & \"L - \" & Table_POSTInspection[[#This Row],[Fixture/ Lamp Wattage '[P']]] & \"W\" & IF(Table_POSTInspection[[#This Row],[Ballast/ Driver '[P']]]<>\"\",\" - \" & Table_POSTInspection[[#This Row],[Ballast/ Driver '[P']]],\"\"),Table_POSTInspection[[#This Row],[Fixture Wattage '[P']]] & \"W\"),\"]\",\n  IF(AND(Table_POSTInspection[[#This Row],[Controls '[P']]]<>\"\",Table_POSTInspection[[#This Row],[Controls '[P']]]<>\"No Controls\"),\" - \" & Table_POSTInspection[[#This Row],[Controls '[P']]],\"\")\n  ),\n\"\"),\"\")","v":""},{"$f":"IFERROR(IF(OR(Table_POSTInspection[[#This Row],[Line]]<=0,IFERROR(INDEX(Table_POSTInfo[],Table_POSTInspection[[#This Row],[Line]],O$3),\"\")=\"\"),\"\",INDEX(Table_POSTInfo[],Table_POSTInspection[[#This Row],[Line]],O$3)),\"\")","v":""},{"$f":"IFERROR(IF(OR(Table_POSTInspection[[#This Row],[Line]]<=0,IFERROR(INDEX(Table_POSTInfo[],Table_POSTInspection[[#This Row],[Line]],P$3),\"\")=\"\"),\"\",INDEX(Table_POSTInfo[],Table_POSTInspection[[#This Row],[Line]],P$3)),\"\")","v":""},{"$f":"IFERROR(IF(OR(Table_POSTInspection[[#This Row],[Line]]<=0,IFERROR(INDEX(Table_POSTInfo[],Table_POSTInspection[[#This Row],[Line]],Q$3),\"\")=\"\"),\"\",INDEX(Table_POSTInfo[],Table_POSTInspection[[#This Row],[Line]],Q$3)),\"\")","v":""}]
[null,{"$f":"IFERROR(IF(OR(Table_POSTInspection[[#This Row],[Line]]<=0,IFERROR(INDEX(Table_POSTInfo[],Table_POSTInspection[[#This Row],[Line]],B$3),\"\")=\"\"),\"\",INDEX(Table_POSTInfo[],Table_POSTInspection[[#This Row],[Line]],B$3)),\"\")","v":""},{"$f":"IFERROR(IF(OR(Table_POSTInspection[[#This Row],[Line]]<=0,IFERROR(INDEX(Table_POSTInfo[],Table_POSTInspection[[#This Row],[Line]],C$3),\"\")=\"\"),\"\",INDEX(Table_POSTInfo[],Table_POSTInspection[[#This Row],[Line]],C$3)),\"\")","v":""},{"$f":"IFERROR(IF(OR(Table_POSTInspection[[#This Row],[Line]]<=0,IFERROR(INDEX(Table_POSTInfo[],Table_POSTInspection[[#This Row],[Line]],D$3),\"\")=\"\"),\"\",INDEX(Table_POSTInfo[],Table_POSTInspection[[#This Row],[Line]],D$3)),\"\")","v":""},null,{"$f":"IFERROR(IF(OR(Table_POSTInspection[[#This Row],[Line]]<=0,IFERROR(INDEX(Table_POSTInfo[],Table_POSTInspection[[#This Row],[Line]],F$3),\"\")=\"\"),\"\",INDEX(Table_POSTInfo[],Table_POSTInspection[[#This Row],[Line]],F$3)),\"\")","v":""},{"$f":"IFERROR(IF(OR(Table_POSTInspection[[#This Row],[Line]]<=0,IFERROR(INDEX(Table_POSTInfo[],Table_POSTInspection[[#This Row],[Line]],G$3),\"\")=\"\"),\"\",INDEX(Table_POSTInfo[],Table_POSTInspection[[#This Row],[Line]],G$3)),\"\")","v":""},{"$f":"IFERROR(IF(OR(Table_POSTInspection[[#This Row],[Line]]<=0,IFERROR(INDEX(Table_POSTInfo[],Table_POSTInspection[[#This Row],[Line]],H$3),\"\")=\"\"),\"\",INDEX(Table_POSTInfo[],Table_POSTInspection[[#This Row],[Line]],H$3)),\"\")","v":""},{"$f":"IFERROR(IF(OR(Table_POSTInspection[[#This Row],[Line]]<=0,IFERROR(INDEX(Table_POSTInfo[],Table_POSTInspection[[#This Row],[Line]],I$3),\"\")=\"\"),\"\",INDEX(Table_POSTInfo[],Table_POSTInspection[[#This Row],[Line]],I$3)),\"\")","v":""},{"$f":"IFERROR(IF(OR(Table_POSTInspection[[#This Row],[Line]]<=0,IFERROR(INDEX(Table_POSTInfo[],Table_POSTInspection[[#This Row],[Line]],J$3),\"\")=\"\"),\"\",INDEX(Table_POSTInfo[],Table_POSTInspection[[#This Row],[Line]],J$3)),\"\")","v":""},{"$f":"IFERROR(\nIFERROR(OFFSET(Table_TypWattage[[#Headers],[Technology]],MATCH($G19,Table_TypWattage[Technology],0)+MATCH($I19,INDIRECT(SUBSTITUTE(SUBSTITUTE($G19,\" \",\"_\"),\"-\",\"_\")),0)-1,MATCH($H19,'Measure Tables'!$Q$2:$V$2,0)+1),IF(Table_POSTInspection[[#This Row],[Schedule]]<>\"\",IF(AND($H19<>\"\",$H19>0,$I19>0),$H19*$I19,$I19),\"\")),\n\"\")","v":""},{"$f":"IFERROR(IF(OR(Table_POSTInspection[[#This Row],[Line]]<=0,IFERROR(INDEX(Table_POSTInfo[],Table_POSTInspection[[#This Row],[Line]],L$3),\"\")=\"\"),\"\",INDEX(Table_POSTInfo[],Table_POSTInspection[[#This Row],[Line]],L$3)),\"\")","v":""},{"$f":"IFERROR(IF(OR(Table_POSTInspection[[#This Row],[Line]]<=0,IFERROR(INDEX(Table_POSTInfo[],Table_POSTInspection[[#This Row],[Line]],M$3),\"\")=\"\"),\"\",INDEX(Table_POSTInfo[],Table_POSTInspection[[#This Row],[Line]],M$3)),\"\")","v":""},{"$f":"IFERROR(IF(Table_POSTInspection[[#This Row],[Interior/ Exterior]]<>\"\",\n  CONCATENATE(\n  Table_POSTInspection[[#This Row],[Fixture Technology '[P']]],\n  \" - \",Table_POSTInspection[[#This Row],[Fixture Type '[P']]],\" [\",\n  IF(Table_POSTInspection[[#This Row],['# Lamps/ Fixture '[P']]]>0,Table_POSTInspection[[#This Row],['# Lamps/ Fixture '[P']]] & \"L - \" & Table_POSTInspection[[#This Row],[Fixture/ Lamp Wattage '[P']]] & \"W\" & IF(Table_POSTInspection[[#This Row],[Ballast/ Driver '[P']]]<>\"\",\" - \" & Table_POSTInspection[[#This Row],[Ballast/ Driver '[P']]],\"\"),Table_POSTInspection[[#This Row],[Fixture Wattage '[P']]] & \"W\"),\"]\",\n  IF(AND(Table_POSTInspection[[#This Row],[Controls '[P']]]<>\"\",Table_POSTInspection[[#This Row],[Controls '[P']]]<>\"No Controls\"),\" - \" & Table_POSTInspection[[#This Row],[Controls '[P']]],\"\")\n  ),\n\"\"),\"\")","v":""},{"$f":"IFERROR(IF(OR(Table_POSTInspection[[#This Row],[Line]]<=0,IFERROR(INDEX(Table_POSTInfo[],Table_POSTInspection[[#This Row],[Line]],O$3),\"\")=\"\"),\"\",INDEX(Table_POSTInfo[],Table_POSTInspection[[#This Row],[Line]],O$3)),\"\")","v":""},{"$f":"IFERROR(IF(OR(Table_POSTInspection[[#This Row],[Line]]<=0,IFERROR(INDEX(Table_POSTInfo[],Table_POSTInspection[[#This Row],[Line]],P$3),\"\")=\"\"),\"\",INDEX(Table_POSTInfo[],Table_POSTInspection[[#This Row],[Line]],P$3)),\"\")","v":""},{"$f":"IFERROR(IF(OR(Table_POSTInspection[[#This Row],[Line]]<=0,IFERROR(INDEX(Table_POSTInfo[],Table_POSTInspection[[#This Row],[Line]],Q$3),\"\")=\"\"),\"\",INDEX(Table_POSTInfo[],Table_POSTInspection[[#This Row],[Line]],Q$3)),\"\")","v":""}]
[null,{"$f":"IFERROR(IF(OR(Table_POSTInspection[[#This Row],[Line]]<=0,IFERROR(INDEX(Table_POSTInfo[],Table_POSTInspection[[#This Row],[Line]],B$3),\"\")=\"\"),\"\",INDEX(Table_POSTInfo[],Table_POSTInspection[[#This Row],[Line]],B$3)),\"\")","v":""},{"$f":"IFERROR(IF(OR(Table_POSTInspection[[#This Row],[Line]]<=0,IFERROR(INDEX(Table_POSTInfo[],Table_POSTInspection[[#This Row],[Line]],C$3),\"\")=\"\"),\"\",INDEX(Table_POSTInfo[],Table_POSTInspection[[#This Row],[Line]],C$3)),\"\")","v":""},{"$f":"IFERROR(IF(OR(Table_POSTInspection[[#This Row],[Line]]<=0,IFERROR(INDEX(Table_POSTInfo[],Table_POSTInspection[[#This Row],[Line]],D$3),\"\")=\"\"),\"\",INDEX(Table_POSTInfo[],Table_POSTInspection[[#This Row],[Line]],D$3)),\"\")","v":""},null,{"$f":"IFERROR(IF(OR(Table_POSTInspection[[#This Row],[Line]]<=0,IFERROR(INDEX(Table_POSTInfo[],Table_POSTInspection[[#This Row],[Line]],F$3),\"\")=\"\"),\"\",INDEX(Table_POSTInfo[],Table_POSTInspection[[#This Row],[Line]],F$3)),\"\")","v":""},{"$f":"IFERROR(IF(OR(Table_POSTInspection[[#This Row],[Line]]<=0,IFERROR(INDEX(Table_POSTInfo[],Table_POSTInspection[[#This Row],[Line]],G$3),\"\")=\"\"),\"\",INDEX(Table_POSTInfo[],Table_POSTInspection[[#This Row],[Line]],G$3)),\"\")","v":""},{"$f":"IFERROR(IF(OR(Table_POSTInspection[[#This Row],[Line]]<=0,IFERROR(INDEX(Table_POSTInfo[],Table_POSTInspection[[#This Row],[Line]],H$3),\"\")=\"\"),\"\",INDEX(Table_POSTInfo[],Table_POSTInspection[[#This Row],[Line]],H$3)),\"\")","v":""},{"$f":"IFERROR(IF(OR(Table_POSTInspection[[#This Row],[Line]]<=0,IFERROR(INDEX(Table_POSTInfo[],Table_POSTInspection[[#This Row],[Line]],I$3),\"\")=\"\"),\"\",INDEX(Table_POSTInfo[],Table_POSTInspection[[#This Row],[Line]],I$3)),\"\")","v":""},{"$f":"IFERROR(IF(OR(Table_POSTInspection[[#This Row],[Line]]<=0,IFERROR(INDEX(Table_POSTInfo[],Table_POSTInspection[[#This Row],[Line]],J$3),\"\")=\"\"),\"\",INDEX(Table_POSTInfo[],Table_POSTInspection[[#This Row],[Line]],J$3)),\"\")","v":""},{"$f":"IFERROR(\nIFERROR(OFFSET(Table_TypWattage[[#Headers],[Technology]],MATCH($G20,Table_TypWattage[Technology],0)+MATCH($I20,INDIRECT(SUBSTITUTE(SUBSTITUTE($G20,\" \",\"_\"),\"-\",\"_\")),0)-1,MATCH($H20,'Measure Tables'!$Q$2:$V$2,0)+1),IF(Table_POSTInspection[[#This Row],[Schedule]]<>\"\",IF(AND($H20<>\"\",$H20>0,$I20>0),$H20*$I20,$I20),\"\")),\n\"\")","v":""},{"$f":"IFERROR(IF(OR(Table_POSTInspection[[#This Row],[Line]]<=0,IFERROR(INDEX(Table_POSTInfo[],Table_POSTInspection[[#This Row],[Line]],L$3),\"\")=\"\"),\"\",INDEX(Table_POSTInfo[],Table_POSTInspection[[#This Row],[Line]],L$3)),\"\")","v":""},{"$f":"IFERROR(IF(OR(Table_POSTInspection[[#This Row],[Line]]<=0,IFERROR(INDEX(Table_POSTInfo[],Table_POSTInspection[[#This Row],[Line]],M$3),\"\")=\"\"),\"\",INDEX(Table_POSTInfo[],Table_POSTInspection[[#This Row],[Line]],M$3)),\"\")","v":""},{"$f":"IFERROR(IF(Table_POSTInspection[[#This Row],[Interior/ Exterior]]<>\"\",\n  CONCATENATE(\n  Table_POSTInspection[[#This Row],[Fixture Technology '[P']]],\n  \" - \",Table_POSTInspection[[#This Row],[Fixture Type '[P']]],\" [\",\n  IF(Table_POSTInspection[[#This Row],['# Lamps/ Fixture '[P']]]>0,Table_POSTInspection[[#This Row],['# Lamps/ Fixture '[P']]] & \"L - \" & Table_POSTInspection[[#This Row],[Fixture/ Lamp Wattage '[P']]] & \"W\" & IF(Table_POSTInspection[[#This Row],[Ballast/ Driver '[P']]]<>\"\",\" - \" & Table_POSTInspection[[#This Row],[Ballast/ Driver '[P']]],\"\"),Table_POSTInspection[[#This Row],[Fixture Wattage '[P']]] & \"W\"),\"]\",\n  IF(AND(Table_POSTInspection[[#This Row],[Controls '[P']]]<>\"\",Table_POSTInspection[[#This Row],[Controls '[P']]]<>\"No Controls\"),\" - \" & Table_POSTInspection[[#This Row],[Controls '[P']]],\"\")\n  ),\n\"\"),\"\")","v":""},{"$f":"IFERROR(IF(OR(Table_POSTInspection[[#This Row],[Line]]<=0,IFERROR(INDEX(Table_POSTInfo[],Table_POSTInspection[[#This Row],[Line]],O$3),\"\")=\"\"),\"\",INDEX(Table_POSTInfo[],Table_POSTInspection[[#This Row],[Line]],O$3)),\"\")","v":""},{"$f":"IFERROR(IF(OR(Table_POSTInspection[[#This Row],[Line]]<=0,IFERROR(INDEX(Table_POSTInfo[],Table_POSTInspection[[#This Row],[Line]],P$3),\"\")=\"\"),\"\",INDEX(Table_POSTInfo[],Table_POSTInspection[[#This Row],[Line]],P$3)),\"\")","v":""},{"$f":"IFERROR(IF(OR(Table_POSTInspection[[#This Row],[Line]]<=0,IFERROR(INDEX(Table_POSTInfo[],Table_POSTInspection[[#This Row],[Line]],Q$3),\"\")=\"\"),\"\",INDEX(Table_POSTInfo[],Table_POSTInspection[[#This Row],[Line]],Q$3)),\"\")","v":""}]
[null,{"$f":"IFERROR(IF(OR(Table_POSTInspection[[#This Row],[Line]]<=0,IFERROR(INDEX(Table_POSTInfo[],Table_POSTInspection[[#This Row],[Line]],B$3),\"\")=\"\"),\"\",INDEX(Table_POSTInfo[],Table_POSTInspection[[#This Row],[Line]],B$3)),\"\")","v":""},{"$f":"IFERROR(IF(OR(Table_POSTInspection[[#This Row],[Line]]<=0,IFERROR(INDEX(Table_POSTInfo[],Table_POSTInspection[[#This Row],[Line]],C$3),\"\")=\"\"),\"\",INDEX(Table_POSTInfo[],Table_POSTInspection[[#This Row],[Line]],C$3)),\"\")","v":""},{"$f":"IFERROR(IF(OR(Table_POSTInspection[[#This Row],[Line]]<=0,IFERROR(INDEX(Table_POSTInfo[],Table_POSTInspection[[#This Row],[Line]],D$3),\"\")=\"\"),\"\",INDEX(Table_POSTInfo[],Table_POSTInspection[[#This Row],[Line]],D$3)),\"\")","v":""},null,{"$f":"IFERROR(IF(OR(Table_POSTInspection[[#This Row],[Line]]<=0,IFERROR(INDEX(Table_POSTInfo[],Table_POSTInspection[[#This Row],[Line]],F$3),\"\")=\"\"),\"\",INDEX(Table_POSTInfo[],Table_POSTInspection[[#This Row],[Line]],F$3)),\"\")","v":""},{"$f":"IFERROR(IF(OR(Table_POSTInspection[[#This Row],[Line]]<=0,IFERROR(INDEX(Table_POSTInfo[],Table_POSTInspection[[#This Row],[Line]],G$3),\"\")=\"\"),\"\",INDEX(Table_POSTInfo[],Table_POSTInspection[[#This Row],[Line]],G$3)),\"\")","v":""},{"$f":"IFERROR(IF(OR(Table_POSTInspection[[#This Row],[Line]]<=0,IFERROR(INDEX(Table_POSTInfo[],Table_POSTInspection[[#This Row],[Line]],H$3),\"\")=\"\"),\"\",INDEX(Table_POSTInfo[],Table_POSTInspection[[#This Row],[Line]],H$3)),\"\")","v":""},{"$f":"IFERROR(IF(OR(Table_POSTInspection[[#This Row],[Line]]<=0,IFERROR(INDEX(Table_POSTInfo[],Table_POSTInspection[[#This Row],[Line]],I$3),\"\")=\"\"),\"\",INDEX(Table_POSTInfo[],Table_POSTInspection[[#This Row],[Line]],I$3)),\"\")","v":""},{"$f":"IFERROR(IF(OR(Table_POSTInspection[[#This Row],[Line]]<=0,IFERROR(INDEX(Table_POSTInfo[],Table_POSTInspection[[#This Row],[Line]],J$3),\"\")=\"\"),\"\",INDEX(Table_POSTInfo[],Table_POSTInspection[[#This Row],[Line]],J$3)),\"\")","v":""},{"$f":"IFERROR(\nIFERROR(OFFSET(Table_TypWattage[[#Headers],[Technology]],MATCH($G21,Table_TypWattage[Technology],0)+MATCH($I21,INDIRECT(SUBSTITUTE(SUBSTITUTE($G21,\" \",\"_\"),\"-\",\"_\")),0)-1,MATCH($H21,'Measure Tables'!$Q$2:$V$2,0)+1),IF(Table_POSTInspection[[#This Row],[Schedule]]<>\"\",IF(AND($H21<>\"\",$H21>0,$I21>0),$H21*$I21,$I21),\"\")),\n\"\")","v":""},{"$f":"IFERROR(IF(OR(Table_POSTInspection[[#This Row],[Line]]<=0,IFERROR(INDEX(Table_POSTInfo[],Table_POSTInspection[[#This Row],[Line]],L$3),\"\")=\"\"),\"\",INDEX(Table_POSTInfo[],Table_POSTInspection[[#This Row],[Line]],L$3)),\"\")","v":""},{"$f":"IFERROR(IF(OR(Table_POSTInspection[[#This Row],[Line]]<=0,IFERROR(INDEX(Table_POSTInfo[],Table_POSTInspection[[#This Row],[Line]],M$3),\"\")=\"\"),\"\",INDEX(Table_POSTInfo[],Table_POSTInspection[[#This Row],[Line]],M$3)),\"\")","v":""},{"$f":"IFERROR(IF(Table_POSTInspection[[#This Row],[Interior/ Exterior]]<>\"\",\n  CONCATENATE(\n  Table_POSTInspection[[#This Row],[Fixture Technology '[P']]],\n  \" - \",Table_POSTInspection[[#This Row],[Fixture Type '[P']]],\" [\",\n  IF(Table_POSTInspection[[#This Row],['# Lamps/ Fixture '[P']]]>0,Table_POSTInspection[[#This Row],['# Lamps/ Fixture '[P']]] & \"L - \" & Table_POSTInspection[[#This Row],[Fixture/ Lamp Wattage '[P']]] & \"W\" & IF(Table_POSTInspection[[#This Row],[Ballast/ Driver '[P']]]<>\"\",\" - \" & Table_POSTInspection[[#This Row],[Ballast/ Driver '[P']]],\"\"),Table_POSTInspection[[#This Row],[Fixture Wattage '[P']]] & \"W\"),\"]\",\n  IF(AND(Table_POSTInspection[[#This Row],[Controls '[P']]]<>\"\",Table_POSTInspection[[#This Row],[Controls '[P']]]<>\"No Controls\"),\" - \" & Table_POSTInspection[[#This Row],[Controls '[P']]],\"\")\n  ),\n\"\"),\"\")","v":""},{"$f":"IFERROR(IF(OR(Table_POSTInspection[[#This Row],[Line]]<=0,IFERROR(INDEX(Table_POSTInfo[],Table_POSTInspection[[#This Row],[Line]],O$3),\"\")=\"\"),\"\",INDEX(Table_POSTInfo[],Table_POSTInspection[[#This Row],[Line]],O$3)),\"\")","v":""},{"$f":"IFERROR(IF(OR(Table_POSTInspection[[#This Row],[Line]]<=0,IFERROR(INDEX(Table_POSTInfo[],Table_POSTInspection[[#This Row],[Line]],P$3),\"\")=\"\"),\"\",INDEX(Table_POSTInfo[],Table_POSTInspection[[#This Row],[Line]],P$3)),\"\")","v":""},{"$f":"IFERROR(IF(OR(Table_POSTInspection[[#This Row],[Line]]<=0,IFERROR(INDEX(Table_POSTInfo[],Table_POSTInspection[[#This Row],[Line]],Q$3),\"\")=\"\"),\"\",INDEX(Table_POSTInfo[],Table_POSTInspection[[#This Row],[Line]],Q$3)),\"\")","v":""}]
[null,{"$f":"IFERROR(IF(OR(Table_POSTInspection[[#This Row],[Line]]<=0,IFERROR(INDEX(Table_POSTInfo[],Table_POSTInspection[[#This Row],[Line]],B$3),\"\")=\"\"),\"\",INDEX(Table_POSTInfo[],Table_POSTInspection[[#This Row],[Line]],B$3)),\"\")","v":""},{"$f":"IFERROR(IF(OR(Table_POSTInspection[[#This Row],[Line]]<=0,IFERROR(INDEX(Table_POSTInfo[],Table_POSTInspection[[#This Row],[Line]],C$3),\"\")=\"\"),\"\",INDEX(Table_POSTInfo[],Table_POSTInspection[[#This Row],[Line]],C$3)),\"\")","v":""},{"$f":"IFERROR(IF(OR(Table_POSTInspection[[#This Row],[Line]]<=0,IFERROR(INDEX(Table_POSTInfo[],Table_POSTInspection[[#This Row],[Line]],D$3),\"\")=\"\"),\"\",INDEX(Table_POSTInfo[],Table_POSTInspection[[#This Row],[Line]],D$3)),\"\")","v":""},null,{"$f":"IFERROR(IF(OR(Table_POSTInspection[[#This Row],[Line]]<=0,IFERROR(INDEX(Table_POSTInfo[],Table_POSTInspection[[#This Row],[Line]],F$3),\"\")=\"\"),\"\",INDEX(Table_POSTInfo[],Table_POSTInspection[[#This Row],[Line]],F$3)),\"\")","v":""},{"$f":"IFERROR(IF(OR(Table_POSTInspection[[#This Row],[Line]]<=0,IFERROR(INDEX(Table_POSTInfo[],Table_POSTInspection[[#This Row],[Line]],G$3),\"\")=\"\"),\"\",INDEX(Table_POSTInfo[],Table_POSTInspection[[#This Row],[Line]],G$3)),\"\")","v":""},{"$f":"IFERROR(IF(OR(Table_POSTInspection[[#This Row],[Line]]<=0,IFERROR(INDEX(Table_POSTInfo[],Table_POSTInspection[[#This Row],[Line]],H$3),\"\")=\"\"),\"\",INDEX(Table_POSTInfo[],Table_POSTInspection[[#This Row],[Line]],H$3)),\"\")","v":""},{"$f":"IFERROR(IF(OR(Table_POSTInspection[[#This Row],[Line]]<=0,IFERROR(INDEX(Table_POSTInfo[],Table_POSTInspection[[#This Row],[Line]],I$3),\"\")=\"\"),\"\",INDEX(Table_POSTInfo[],Table_POSTInspection[[#This Row],[Line]],I$3)),\"\")","v":""},{"$f":"IFERROR(IF(OR(Table_POSTInspection[[#This Row],[Line]]<=0,IFERROR(INDEX(Table_POSTInfo[],Table_POSTInspection[[#This Row],[Line]],J$3),\"\")=\"\"),\"\",INDEX(Table_POSTInfo[],Table_POSTInspection[[#This Row],[Line]],J$3)),\"\")","v":""},{"$f":"IFERROR(\nIFERROR(OFFSET(Table_TypWattage[[#Headers],[Technology]],MATCH($G22,Table_TypWattage[Technology],0)+MATCH($I22,INDIRECT(SUBSTITUTE(SUBSTITUTE($G22,\" \",\"_\"),\"-\",\"_\")),0)-1,MATCH($H22,'Measure Tables'!$Q$2:$V$2,0)+1),IF(Table_POSTInspection[[#This Row],[Schedule]]<>\"\",IF(AND($H22<>\"\",$H22>0,$I22>0),$H22*$I22,$I22),\"\")),\n\"\")","v":""},{"$f":"IFERROR(IF(OR(Table_POSTInspection[[#This Row],[Line]]<=0,IFERROR(INDEX(Table_POSTInfo[],Table_POSTInspection[[#This Row],[Line]],L$3),\"\")=\"\"),\"\",INDEX(Table_POSTInfo[],Table_POSTInspection[[#This Row],[Line]],L$3)),\"\")","v":""},{"$f":"IFERROR(IF(OR(Table_POSTInspection[[#This Row],[Line]]<=0,IFERROR(INDEX(Table_POSTInfo[],Table_POSTInspection[[#This Row],[Line]],M$3),\"\")=\"\"),\"\",INDEX(Table_POSTInfo[],Table_POSTInspection[[#This Row],[Line]],M$3)),\"\")","v":""},{"$f":"IFERROR(IF(Table_POSTInspection[[#This Row],[Interior/ Exterior]]<>\"\",\n  CONCATENATE(\n  Table_POSTInspection[[#This Row],[Fixture Technology '[P']]],\n  \" - \",Table_POSTInspection[[#This Row],[Fixture Type '[P']]],\" [\",\n  IF(Table_POSTInspection[[#This Row],['# Lamps/ Fixture '[P']]]>0,Table_POSTInspection[[#This Row],['# Lamps/ Fixture '[P']]] & \"L - \" & Table_POSTInspection[[#This Row],[Fixture/ Lamp Wattage '[P']]] & \"W\" & IF(Table_POSTInspection[[#This Row],[Ballast/ Driver '[P']]]<>\"\",\" - \" & Table_POSTInspection[[#This Row],[Ballast/ Driver '[P']]],\"\"),Table_POSTInspection[[#This Row],[Fixture Wattage '[P']]] & \"W\"),\"]\",\n  IF(AND(Table_POSTInspection[[#This Row],[Controls '[P']]]<>\"\",Table_POSTInspection[[#This Row],[Controls '[P']]]<>\"No Controls\"),\" - \" & Table_POSTInspection[[#This Row],[Controls '[P']]],\"\")\n  ),\n\"\"),\"\")","v":""},{"$f":"IFERROR(IF(OR(Table_POSTInspection[[#This Row],[Line]]<=0,IFERROR(INDEX(Table_POSTInfo[],Table_POSTInspection[[#This Row],[Line]],O$3),\"\")=\"\"),\"\",INDEX(Table_POSTInfo[],Table_POSTInspection[[#This Row],[Line]],O$3)),\"\")","v":""},{"$f":"IFERROR(IF(OR(Table_POSTInspection[[#This Row],[Line]]<=0,IFERROR(INDEX(Table_POSTInfo[],Table_POSTInspection[[#This Row],[Line]],P$3),\"\")=\"\"),\"\",INDEX(Table_POSTInfo[],Table_POSTInspection[[#This Row],[Line]],P$3)),\"\")","v":""},{"$f":"IFERROR(IF(OR(Table_POSTInspection[[#This Row],[Line]]<=0,IFERROR(INDEX(Table_POSTInfo[],Table_POSTInspection[[#This Row],[Line]],Q$3),\"\")=\"\"),\"\",INDEX(Table_POSTInfo[],Table_POSTInspection[[#This Row],[Line]],Q$3)),\"\")","v":""}]
[null,{"$f":"IFERROR(IF(OR(Table_POSTInspection[[#This Row],[Line]]<=0,IFERROR(INDEX(Table_POSTInfo[],Table_POSTInspection[[#This Row],[Line]],B$3),\"\")=\"\"),\"\",INDEX(Table_POSTInfo[],Table_POSTInspection[[#This Row],[Line]],B$3)),\"\")","v":""},{"$f":"IFERROR(IF(OR(Table_POSTInspection[[#This Row],[Line]]<=0,IFERROR(INDEX(Table_POSTInfo[],Table_POSTInspection[[#This Row],[Line]],C$3),\"\")=\"\"),\"\",INDEX(Table_POSTInfo[],Table_POSTInspection[[#This Row],[Line]],C$3)),\"\")","v":""},{"$f":"IFERROR(IF(OR(Table_POSTInspection[[#This Row],[Line]]<=0,IFERROR(INDEX(Table_POSTInfo[],Table_POSTInspection[[#This Row],[Line]],D$3),\"\")=\"\"),\"\",INDEX(Table_POSTInfo[],Table_POSTInspection[[#This Row],[Line]],D$3)),\"\")","v":""},null,{"$f":"IFERROR(IF(OR(Table_POSTInspection[[#This Row],[Line]]<=0,IFERROR(INDEX(Table_POSTInfo[],Table_POSTInspection[[#This Row],[Line]],F$3),\"\")=\"\"),\"\",INDEX(Table_POSTInfo[],Table_POSTInspection[[#This Row],[Line]],F$3)),\"\")","v":""},{"$f":"IFERROR(IF(OR(Table_POSTInspection[[#This Row],[Line]]<=0,IFERROR(INDEX(Table_POSTInfo[],Table_POSTInspection[[#This Row],[Line]],G$3),\"\")=\"\"),\"\",INDEX(Table_POSTInfo[],Table_POSTInspection[[#This Row],[Line]],G$3)),\"\")","v":""},{"$f":"IFERROR(IF(OR(Table_POSTInspection[[#This Row],[Line]]<=0,IFERROR(INDEX(Table_POSTInfo[],Table_POSTInspection[[#This Row],[Line]],H$3),\"\")=\"\"),\"\",INDEX(Table_POSTInfo[],Table_POSTInspection[[#This Row],[Line]],H$3)),\"\")","v":""},{"$f":"IFERROR(IF(OR(Table_POSTInspection[[#This Row],[Line]]<=0,IFERROR(INDEX(Table_POSTInfo[],Table_POSTInspection[[#This Row],[Line]],I$3),\"\")=\"\"),\"\",INDEX(Table_POSTInfo[],Table_POSTInspection[[#This Row],[Line]],I$3)),\"\")","v":""},{"$f":"IFERROR(IF(OR(Table_POSTInspection[[#This Row],[Line]]<=0,IFERROR(INDEX(Table_POSTInfo[],Table_POSTInspection[[#This Row],[Line]],J$3),\"\")=\"\"),\"\",INDEX(Table_POSTInfo[],Table_POSTInspection[[#This Row],[Line]],J$3)),\"\")","v":""},{"$f":"IFERROR(\nIFERROR(OFFSET(Table_TypWattage[[#Headers],[Technology]],MATCH($G23,Table_TypWattage[Technology],0)+MATCH($I23,INDIRECT(SUBSTITUTE(SUBSTITUTE($G23,\" \",\"_\"),\"-\",\"_\")),0)-1,MATCH($H23,'Measure Tables'!$Q$2:$V$2,0)+1),IF(Table_POSTInspection[[#This Row],[Schedule]]<>\"\",IF(AND($H23<>\"\",$H23>0,$I23>0),$H23*$I23,$I23),\"\")),\n\"\")","v":""},{"$f":"IFERROR(IF(OR(Table_POSTInspection[[#This Row],[Line]]<=0,IFERROR(INDEX(Table_POSTInfo[],Table_POSTInspection[[#This Row],[Line]],L$3),\"\")=\"\"),\"\",INDEX(Table_POSTInfo[],Table_POSTInspection[[#This Row],[Line]],L$3)),\"\")","v":""},{"$f":"IFERROR(IF(OR(Table_POSTInspection[[#This Row],[Line]]<=0,IFERROR(INDEX(Table_POSTInfo[],Table_POSTInspection[[#This Row],[Line]],M$3),\"\")=\"\"),\"\",INDEX(Table_POSTInfo[],Table_POSTInspection[[#This Row],[Line]],M$3)),\"\")","v":""},{"$f":"IFERROR(IF(Table_POSTInspection[[#This Row],[Interior/ Exterior]]<>\"\",\n  CONCATENATE(\n  Table_POSTInspection[[#This Row],[Fixture Technology '[P']]],\n  \" - \",Table_POSTInspection[[#This Row],[Fixture Type '[P']]],\" [\",\n  IF(Table_POSTInspection[[#This Row],['# Lamps/ Fixture '[P']]]>0,Table_POSTInspection[[#This Row],['# Lamps/ Fixture '[P']]] & \"L - \" & Table_POSTInspection[[#This Row],[Fixture/ Lamp Wattage '[P']]] & \"W\" & IF(Table_POSTInspection[[#This Row],[Ballast/ Driver '[P']]]<>\"\",\" - \" & Table_POSTInspection[[#This Row],[Ballast/ Driver '[P']]],\"\"),Table_POSTInspection[[#This Row],[Fixture Wattage '[P']]] & \"W\"),\"]\",\n  IF(AND(Table_POSTInspection[[#This Row],[Controls '[P']]]<>\"\",Table_POSTInspection[[#This Row],[Controls '[P']]]<>\"No Controls\"),\" - \" & Table_POSTInspection[[#This Row],[Controls '[P']]],\"\")\n  ),\n\"\"),\"\")","v":""},{"$f":"IFERROR(IF(OR(Table_POSTInspection[[#This Row],[Line]]<=0,IFERROR(INDEX(Table_POSTInfo[],Table_POSTInspection[[#This Row],[Line]],O$3),\"\")=\"\"),\"\",INDEX(Table_POSTInfo[],Table_POSTInspection[[#This Row],[Line]],O$3)),\"\")","v":""},{"$f":"IFERROR(IF(OR(Table_POSTInspection[[#This Row],[Line]]<=0,IFERROR(INDEX(Table_POSTInfo[],Table_POSTInspection[[#This Row],[Line]],P$3),\"\")=\"\"),\"\",INDEX(Table_POSTInfo[],Table_POSTInspection[[#This Row],[Line]],P$3)),\"\")","v":""},{"$f":"IFERROR(IF(OR(Table_POSTInspection[[#This Row],[Line]]<=0,IFERROR(INDEX(Table_POSTInfo[],Table_POSTInspection[[#This Row],[Line]],Q$3),\"\")=\"\"),\"\",INDEX(Table_POSTInfo[],Table_POSTInspection[[#This Row],[Line]],Q$3)),\"\")","v":""}]
[null,{"$f":"IFERROR(IF(OR(Table_POSTInspection[[#This Row],[Line]]<=0,IFERROR(INDEX(Table_POSTInfo[],Table_POSTInspection[[#This Row],[Line]],B$3),\"\")=\"\"),\"\",INDEX(Table_POSTInfo[],Table_POSTInspection[[#This Row],[Line]],B$3)),\"\")","v":""},{"$f":"IFERROR(IF(OR(Table_POSTInspection[[#This Row],[Line]]<=0,IFERROR(INDEX(Table_POSTInfo[],Table_POSTInspection[[#This Row],[Line]],C$3),\"\")=\"\"),\"\",INDEX(Table_POSTInfo[],Table_POSTInspection[[#This Row],[Line]],C$3)),\"\")","v":""},{"$f":"IFERROR(IF(OR(Table_POSTInspection[[#This Row],[Line]]<=0,IFERROR(INDEX(Table_POSTInfo[],Table_POSTInspection[[#This Row],[Line]],D$3),\"\")=\"\"),\"\",INDEX(Table_POSTInfo[],Table_POSTInspection[[#This Row],[Line]],D$3)),\"\")","v":""},null,{"$f":"IFERROR(IF(OR(Table_POSTInspection[[#This Row],[Line]]<=0,IFERROR(INDEX(Table_POSTInfo[],Table_POSTInspection[[#This Row],[Line]],F$3),\"\")=\"\"),\"\",INDEX(Table_POSTInfo[],Table_POSTInspection[[#This Row],[Line]],F$3)),\"\")","v":""},{"$f":"IFERROR(IF(OR(Table_POSTInspection[[#This Row],[Line]]<=0,IFERROR(INDEX(Table_POSTInfo[],Table_POSTInspection[[#This Row],[Line]],G$3),\"\")=\"\"),\"\",INDEX(Table_POSTInfo[],Table_POSTInspection[[#This Row],[Line]],G$3)),\"\")","v":""},{"$f":"IFERROR(IF(OR(Table_POSTInspection[[#This Row],[Line]]<=0,IFERROR(INDEX(Table_POSTInfo[],Table_POSTInspection[[#This Row],[Line]],H$3),\"\")=\"\"),\"\",INDEX(Table_POSTInfo[],Table_POSTInspection[[#This Row],[Line]],H$3)),\"\")","v":""},{"$f":"IFERROR(IF(OR(Table_POSTInspection[[#This Row],[Line]]<=0,IFERROR(INDEX(Table_POSTInfo[],Table_POSTInspection[[#This Row],[Line]],I$3),\"\")=\"\"),\"\",INDEX(Table_POSTInfo[],Table_POSTInspection[[#This Row],[Line]],I$3)),\"\")","v":""},{"$f":"IFERROR(IF(OR(Table_POSTInspection[[#This Row],[Line]]<=0,IFERROR(INDEX(Table_POSTInfo[],Table_POSTInspection[[#This Row],[Line]],J$3),\"\")=\"\"),\"\",INDEX(Table_POSTInfo[],Table_POSTInspection[[#This Row],[Line]],J$3)),\"\")","v":""},{"$f":"IFERROR(\nIFERROR(OFFSET(Table_TypWattage[[#Headers],[Technology]],MATCH($G24,Table_TypWattage[Technology],0)+MATCH($I24,INDIRECT(SUBSTITUTE(SUBSTITUTE($G24,\" \",\"_\"),\"-\",\"_\")),0)-1,MATCH($H24,'Measure Tables'!$Q$2:$V$2,0)+1),IF(Table_POSTInspection[[#This Row],[Schedule]]<>\"\",IF(AND($H24<>\"\",$H24>0,$I24>0),$H24*$I24,$I24),\"\")),\n\"\")","v":""},{"$f":"IFERROR(IF(OR(Table_POSTInspection[[#This Row],[Line]]<=0,IFERROR(INDEX(Table_POSTInfo[],Table_POSTInspection[[#This Row],[Line]],L$3),\"\")=\"\"),\"\",INDEX(Table_POSTInfo[],Table_POSTInspection[[#This Row],[Line]],L$3)),\"\")","v":""},{"$f":"IFERROR(IF(OR(Table_POSTInspection[[#This Row],[Line]]<=0,IFERROR(INDEX(Table_POSTInfo[],Table_POSTInspection[[#This Row],[Line]],M$3),\"\")=\"\"),\"\",INDEX(Table_POSTInfo[],Table_POSTInspection[[#This Row],[Line]],M$3)),\"\")","v":""},{"$f":"IFERROR(IF(Table_POSTInspection[[#This Row],[Interior/ Exterior]]<>\"\",\n  CONCATENATE(\n  Table_POSTInspection[[#This Row],[Fixture Technology '[P']]],\n  \" - \",Table_POSTInspection[[#This Row],[Fixture Type '[P']]],\" [\",\n  IF(Table_POSTInspection[[#This Row],['# Lamps/ Fixture '[P']]]>0,Table_POSTInspection[[#This Row],['# Lamps/ Fixture '[P']]] & \"L - \" & Table_POSTInspection[[#This Row],[Fixture/ Lamp Wattage '[P']]] & \"W\" & IF(Table_POSTInspection[[#This Row],[Ballast/ Driver '[P']]]<>\"\",\" - \" & Table_POSTInspection[[#This Row],[Ballast/ Driver '[P']]],\"\"),Table_POSTInspection[[#This Row],[Fixture Wattage '[P']]] & \"W\"),\"]\",\n  IF(AND(Table_POSTInspection[[#This Row],[Controls '[P']]]<>\"\",Table_POSTInspection[[#This Row],[Controls '[P']]]<>\"No Controls\"),\" - \" & Table_POSTInspection[[#This Row],[Controls '[P']]],\"\")\n  ),\n\"\"),\"\")","v":""},{"$f":"IFERROR(IF(OR(Table_POSTInspection[[#This Row],[Line]]<=0,IFERROR(INDEX(Table_POSTInfo[],Table_POSTInspection[[#This Row],[Line]],O$3),\"\")=\"\"),\"\",INDEX(Table_POSTInfo[],Table_POSTInspection[[#This Row],[Line]],O$3)),\"\")","v":""},{"$f":"IFERROR(IF(OR(Table_POSTInspection[[#This Row],[Line]]<=0,IFERROR(INDEX(Table_POSTInfo[],Table_POSTInspection[[#This Row],[Line]],P$3),\"\")=\"\"),\"\",INDEX(Table_POSTInfo[],Table_POSTInspection[[#This Row],[Line]],P$3)),\"\")","v":""},{"$f":"IFERROR(IF(OR(Table_POSTInspection[[#This Row],[Line]]<=0,IFERROR(INDEX(Table_POSTInfo[],Table_POSTInspection[[#This Row],[Line]],Q$3),\"\")=\"\"),\"\",INDEX(Table_POSTInfo[],Table_POSTInspection[[#This Row],[Line]],Q$3)),\"\")","v":""}]
[null,{"$f":"IFERROR(IF(OR(Table_POSTInspection[[#This Row],[Line]]<=0,IFERROR(INDEX(Table_POSTInfo[],Table_POSTInspection[[#This Row],[Line]],B$3),\"\")=\"\"),\"\",INDEX(Table_POSTInfo[],Table_POSTInspection[[#This Row],[Line]],B$3)),\"\")","v":""},{"$f":"IFERROR(IF(OR(Table_POSTInspection[[#This Row],[Line]]<=0,IFERROR(INDEX(Table_POSTInfo[],Table_POSTInspection[[#This Row],[Line]],C$3),\"\")=\"\"),\"\",INDEX(Table_POSTInfo[],Table_POSTInspection[[#This Row],[Line]],C$3)),\"\")","v":""},{"$f":"IFERROR(IF(OR(Table_POSTInspection[[#This Row],[Line]]<=0,IFERROR(INDEX(Table_POSTInfo[],Table_POSTInspection[[#This Row],[Line]],D$3),\"\")=\"\"),\"\",INDEX(Table_POSTInfo[],Table_POSTInspection[[#This Row],[Line]],D$3)),\"\")","v":""},null,{"$f":"IFERROR(IF(OR(Table_POSTInspection[[#This Row],[Line]]<=0,IFERROR(INDEX(Table_POSTInfo[],Table_POSTInspection[[#This Row],[Line]],F$3),\"\")=\"\"),\"\",INDEX(Table_POSTInfo[],Table_POSTInspection[[#This Row],[Line]],F$3)),\"\")","v":""},{"$f":"IFERROR(IF(OR(Table_POSTInspection[[#This Row],[Line]]<=0,IFERROR(INDEX(Table_POSTInfo[],Table_POSTInspection[[#This Row],[Line]],G$3),\"\")=\"\"),\"\",INDEX(Table_POSTInfo[],Table_POSTInspection[[#This Row],[Line]],G$3)),\"\")","v":""},{"$f":"IFERROR(IF(OR(Table_POSTInspection[[#This Row],[Line]]<=0,IFERROR(INDEX(Table_POSTInfo[],Table_POSTInspection[[#This Row],[Line]],H$3),\"\")=\"\"),\"\",INDEX(Table_POSTInfo[],Table_POSTInspection[[#This Row],[Line]],H$3)),\"\")","v":""},{"$f":"IFERROR(IF(OR(Table_POSTInspection[[#This Row],[Line]]<=0,IFERROR(INDEX(Table_POSTInfo[],Table_POSTInspection[[#This Row],[Line]],I$3),\"\")=\"\"),\"\",INDEX(Table_POSTInfo[],Table_POSTInspection[[#This Row],[Line]],I$3)),\"\")","v":""},{"$f":"IFERROR(IF(OR(Table_POSTInspection[[#This Row],[Line]]<=0,IFERROR(INDEX(Table_POSTInfo[],Table_POSTInspection[[#This Row],[Line]],J$3),\"\")=\"\"),\"\",INDEX(Table_POSTInfo[],Table_POSTInspection[[#This Row],[Line]],J$3)),\"\")","v":""},{"$f":"IFERROR(\nIFERROR(OFFSET(Table_TypWattage[[#Headers],[Technology]],MATCH($G25,Table_TypWattage[Technology],0)+MATCH($I25,INDIRECT(SUBSTITUTE(SUBSTITUTE($G25,\" \",\"_\"),\"-\",\"_\")),0)-1,MATCH($H25,'Measure Tables'!$Q$2:$V$2,0)+1),IF(Table_POSTInspection[[#This Row],[Schedule]]<>\"\",IF(AND($H25<>\"\",$H25>0,$I25>0),$H25*$I25,$I25),\"\")),\n\"\")","v":""},{"$f":"IFERROR(IF(OR(Table_POSTInspection[[#This Row],[Line]]<=0,IFERROR(INDEX(Table_POSTInfo[],Table_POSTInspection[[#This Row],[Line]],L$3),\"\")=\"\"),\"\",INDEX(Table_POSTInfo[],Table_POSTInspection[[#This Row],[Line]],L$3)),\"\")","v":""},{"$f":"IFERROR(IF(OR(Table_POSTInspection[[#This Row],[Line]]<=0,IFERROR(INDEX(Table_POSTInfo[],Table_POSTInspection[[#This Row],[Line]],M$3),\"\")=\"\"),\"\",INDEX(Table_POSTInfo[],Table_POSTInspection[[#This Row],[Line]],M$3)),\"\")","v":""},{"$f":"IFERROR(IF(Table_POSTInspection[[#This Row],[Interior/ Exterior]]<>\"\",\n  CONCATENATE(\n  Table_POSTInspection[[#This Row],[Fixture Technology '[P']]],\n  \" - \",Table_POSTInspection[[#This Row],[Fixture Type '[P']]],\" [\",\n  IF(Table_POSTInspection[[#This Row],['# Lamps/ Fixture '[P']]]>0,Table_POSTInspection[[#This Row],['# Lamps/ Fixture '[P']]] & \"L - \" & Table_POSTInspection[[#This Row],[Fixture/ Lamp Wattage '[P']]] & \"W\" & IF(Table_POSTInspection[[#This Row],[Ballast/ Driver '[P']]]<>\"\",\" - \" & Table_POSTInspection[[#This Row],[Ballast/ Driver '[P']]],\"\"),Table_POSTInspection[[#This Row],[Fixture Wattage '[P']]] & \"W\"),\"]\",\n  IF(AND(Table_POSTInspection[[#This Row],[Controls '[P']]]<>\"\",Table_POSTInspection[[#This Row],[Controls '[P']]]<>\"No Controls\"),\" - \" & Table_POSTInspection[[#This Row],[Controls '[P']]],\"\")\n  ),\n\"\"),\"\")","v":""},{"$f":"IFERROR(IF(OR(Table_POSTInspection[[#This Row],[Line]]<=0,IFERROR(INDEX(Table_POSTInfo[],Table_POSTInspection[[#This Row],[Line]],O$3),\"\")=\"\"),\"\",INDEX(Table_POSTInfo[],Table_POSTInspection[[#This Row],[Line]],O$3)),\"\")","v":""},{"$f":"IFERROR(IF(OR(Table_POSTInspection[[#This Row],[Line]]<=0,IFERROR(INDEX(Table_POSTInfo[],Table_POSTInspection[[#This Row],[Line]],P$3),\"\")=\"\"),\"\",INDEX(Table_POSTInfo[],Table_POSTInspection[[#This Row],[Line]],P$3)),\"\")","v":""},{"$f":"IFERROR(IF(OR(Table_POSTInspection[[#This Row],[Line]]<=0,IFERROR(INDEX(Table_POSTInfo[],Table_POSTInspection[[#This Row],[Line]],Q$3),\"\")=\"\"),\"\",INDEX(Table_POSTInfo[],Table_POSTInspection[[#This Row],[Line]],Q$3)),\"\")","v":""}]
[null,{"$f":"IFERROR(IF(OR(Table_POSTInspection[[#This Row],[Line]]<=0,IFERROR(INDEX(Table_POSTInfo[],Table_POSTInspection[[#This Row],[Line]],B$3),\"\")=\"\"),\"\",INDEX(Table_POSTInfo[],Table_POSTInspection[[#This Row],[Line]],B$3)),\"\")","v":""},{"$f":"IFERROR(IF(OR(Table_POSTInspection[[#This Row],[Line]]<=0,IFERROR(INDEX(Table_POSTInfo[],Table_POSTInspection[[#This Row],[Line]],C$3),\"\")=\"\"),\"\",INDEX(Table_POSTInfo[],Table_POSTInspection[[#This Row],[Line]],C$3)),\"\")","v":""},{"$f":"IFERROR(IF(OR(Table_POSTInspection[[#This Row],[Line]]<=0,IFERROR(INDEX(Table_POSTInfo[],Table_POSTInspection[[#This Row],[Line]],D$3),\"\")=\"\"),\"\",INDEX(Table_POSTInfo[],Table_POSTInspection[[#This Row],[Line]],D$3)),\"\")","v":""},null,{"$f":"IFERROR(IF(OR(Table_POSTInspection[[#This Row],[Line]]<=0,IFERROR(INDEX(Table_POSTInfo[],Table_POSTInspection[[#This Row],[Line]],F$3),\"\")=\"\"),\"\",INDEX(Table_POSTInfo[],Table_POSTInspection[[#This Row],[Line]],F$3)),\"\")","v":""},{"$f":"IFERROR(IF(OR(Table_POSTInspection[[#This Row],[Line]]<=0,IFERROR(INDEX(Table_POSTInfo[],Table_POSTInspection[[#This Row],[Line]],G$3),\"\")=\"\"),\"\",INDEX(Table_POSTInfo[],Table_POSTInspection[[#This Row],[Line]],G$3)),\"\")","v":""},{"$f":"IFERROR(IF(OR(Table_POSTInspection[[#This Row],[Line]]<=0,IFERROR(INDEX(Table_POSTInfo[],Table_POSTInspection[[#This Row],[Line]],H$3),\"\")=\"\"),\"\",INDEX(Table_POSTInfo[],Table_POSTInspection[[#This Row],[Line]],H$3)),\"\")","v":""},{"$f":"IFERROR(IF(OR(Table_POSTInspection[[#This Row],[Line]]<=0,IFERROR(INDEX(Table_POSTInfo[],Table_POSTInspection[[#This Row],[Line]],I$3),\"\")=\"\"),\"\",INDEX(Table_POSTInfo[],Table_POSTInspection[[#This Row],[Line]],I$3)),\"\")","v":""},{"$f":"IFERROR(IF(OR(Table_POSTInspection[[#This Row],[Line]]<=0,IFERROR(INDEX(Table_POSTInfo[],Table_POSTInspection[[#This Row],[Line]],J$3),\"\")=\"\"),\"\",INDEX(Table_POSTInfo[],Table_POSTInspection[[#This Row],[Line]],J$3)),\"\")","v":""},{"$f":"IFERROR(\nIFERROR(OFFSET(Table_TypWattage[[#Headers],[Technology]],MATCH($G26,Table_TypWattage[Technology],0)+MATCH($I26,INDIRECT(SUBSTITUTE(SUBSTITUTE($G26,\" \",\"_\"),\"-\",\"_\")),0)-1,MATCH($H26,'Measure Tables'!$Q$2:$V$2,0)+1),IF(Table_POSTInspection[[#This Row],[Schedule]]<>\"\",IF(AND($H26<>\"\",$H26>0,$I26>0),$H26*$I26,$I26),\"\")),\n\"\")","v":""},{"$f":"IFERROR(IF(OR(Table_POSTInspection[[#This Row],[Line]]<=0,IFERROR(INDEX(Table_POSTInfo[],Table_POSTInspection[[#This Row],[Line]],L$3),\"\")=\"\"),\"\",INDEX(Table_POSTInfo[],Table_POSTInspection[[#This Row],[Line]],L$3)),\"\")","v":""},{"$f":"IFERROR(IF(OR(Table_POSTInspection[[#This Row],[Line]]<=0,IFERROR(INDEX(Table_POSTInfo[],Table_POSTInspection[[#This Row],[Line]],M$3),\"\")=\"\"),\"\",INDEX(Table_POSTInfo[],Table_POSTInspection[[#This Row],[Line]],M$3)),\"\")","v":""},{"$f":"IFERROR(IF(Table_POSTInspection[[#This Row],[Interior/ Exterior]]<>\"\",\n  CONCATENATE(\n  Table_POSTInspection[[#This Row],[Fixture Technology '[P']]],\n  \" - \",Table_POSTInspection[[#This Row],[Fixture Type '[P']]],\" [\",\n  IF(Table_POSTInspection[[#This Row],['# Lamps/ Fixture '[P']]]>0,Table_POSTInspection[[#This Row],['# Lamps/ Fixture '[P']]] & \"L - \" & Table_POSTInspection[[#This Row],[Fixture/ Lamp Wattage '[P']]] & \"W\" & IF(Table_POSTInspection[[#This Row],[Ballast/ Driver '[P']]]<>\"\",\" - \" & Table_POSTInspection[[#This Row],[Ballast/ Driver '[P']]],\"\"),Table_POSTInspection[[#This Row],[Fixture Wattage '[P']]] & \"W\"),\"]\",\n  IF(AND(Table_POSTInspection[[#This Row],[Controls '[P']]]<>\"\",Table_POSTInspection[[#This Row],[Controls '[P']]]<>\"No Controls\"),\" - \" & Table_POSTInspection[[#This Row],[Controls '[P']]],\"\")\n  ),\n\"\"),\"\")","v":""},{"$f":"IFERROR(IF(OR(Table_POSTInspection[[#This Row],[Line]]<=0,IFERROR(INDEX(Table_POSTInfo[],Table_POSTInspection[[#This Row],[Line]],O$3),\"\")=\"\"),\"\",INDEX(Table_POSTInfo[],Table_POSTInspection[[#This Row],[Line]],O$3)),\"\")","v":""},{"$f":"IFERROR(IF(OR(Table_POSTInspection[[#This Row],[Line]]<=0,IFERROR(INDEX(Table_POSTInfo[],Table_POSTInspection[[#This Row],[Line]],P$3),\"\")=\"\"),\"\",INDEX(Table_POSTInfo[],Table_POSTInspection[[#This Row],[Line]],P$3)),\"\")","v":""},{"$f":"IFERROR(IF(OR(Table_POSTInspection[[#This Row],[Line]]<=0,IFERROR(INDEX(Table_POSTInfo[],Table_POSTInspection[[#This Row],[Line]],Q$3),\"\")=\"\"),\"\",INDEX(Table_POSTInfo[],Table_POSTInspection[[#This Row],[Line]],Q$3)),\"\")","v":""}]
[null,{"$f":"IFERROR(IF(OR(Table_POSTInspection[[#This Row],[Line]]<=0,IFERROR(INDEX(Table_POSTInfo[],Table_POSTInspection[[#This Row],[Line]],B$3),\"\")=\"\"),\"\",INDEX(Table_POSTInfo[],Table_POSTInspection[[#This Row],[Line]],B$3)),\"\")","v":""},{"$f":"IFERROR(IF(OR(Table_POSTInspection[[#This Row],[Line]]<=0,IFERROR(INDEX(Table_POSTInfo[],Table_POSTInspection[[#This Row],[Line]],C$3),\"\")=\"\"),\"\",INDEX(Table_POSTInfo[],Table_POSTInspection[[#This Row],[Line]],C$3)),\"\")","v":""},{"$f":"IFERROR(IF(OR(Table_POSTInspection[[#This Row],[Line]]<=0,IFERROR(INDEX(Table_POSTInfo[],Table_POSTInspection[[#This Row],[Line]],D$3),\"\")=\"\"),\"\",INDEX(Table_POSTInfo[],Table_POSTInspection[[#This Row],[Line]],D$3)),\"\")","v":""},null,{"$f":"IFERROR(IF(OR(Table_POSTInspection[[#This Row],[Line]]<=0,IFERROR(INDEX(Table_POSTInfo[],Table_POSTInspection[[#This Row],[Line]],F$3),\"\")=\"\"),\"\",INDEX(Table_POSTInfo[],Table_POSTInspection[[#This Row],[Line]],F$3)),\"\")","v":""},{"$f":"IFERROR(IF(OR(Table_POSTInspection[[#This Row],[Line]]<=0,IFERROR(INDEX(Table_POSTInfo[],Table_POSTInspection[[#This Row],[Line]],G$3),\"\")=\"\"),\"\",INDEX(Table_POSTInfo[],Table_POSTInspection[[#This Row],[Line]],G$3)),\"\")","v":""},{"$f":"IFERROR(IF(OR(Table_POSTInspection[[#This Row],[Line]]<=0,IFERROR(INDEX(Table_POSTInfo[],Table_POSTInspection[[#This Row],[Line]],H$3),\"\")=\"\"),\"\",INDEX(Table_POSTInfo[],Table_POSTInspection[[#This Row],[Line]],H$3)),\"\")","v":""},{"$f":"IFERROR(IF(OR(Table_POSTInspection[[#This Row],[Line]]<=0,IFERROR(INDEX(Table_POSTInfo[],Table_POSTInspection[[#This Row],[Line]],I$3),\"\")=\"\"),\"\",INDEX(Table_POSTInfo[],Table_POSTInspection[[#This Row],[Line]],I$3)),\"\")","v":""},{"$f":"IFERROR(IF(OR(Table_POSTInspection[[#This Row],[Line]]<=0,IFERROR(INDEX(Table_POSTInfo[],Table_POSTInspection[[#This Row],[Line]],J$3),\"\")=\"\"),\"\",INDEX(Table_POSTInfo[],Table_POSTInspection[[#This Row],[Line]],J$3)),\"\")","v":""},{"$f":"IFERROR(\nIFERROR(OFFSET(Table_TypWattage[[#Headers],[Technology]],MATCH($G27,Table_TypWattage[Technology],0)+MATCH($I27,INDIRECT(SUBSTITUTE(SUBSTITUTE($G27,\" \",\"_\"),\"-\",\"_\")),0)-1,MATCH($H27,'Measure Tables'!$Q$2:$V$2,0)+1),IF(Table_POSTInspection[[#This Row],[Schedule]]<>\"\",IF(AND($H27<>\"\",$H27>0,$I27>0),$H27*$I27,$I27),\"\")),\n\"\")","v":""},{"$f":"IFERROR(IF(OR(Table_POSTInspection[[#This Row],[Line]]<=0,IFERROR(INDEX(Table_POSTInfo[],Table_POSTInspection[[#This Row],[Line]],L$3),\"\")=\"\"),\"\",INDEX(Table_POSTInfo[],Table_POSTInspection[[#This Row],[Line]],L$3)),\"\")","v":""},{"$f":"IFERROR(IF(OR(Table_POSTInspection[[#This Row],[Line]]<=0,IFERROR(INDEX(Table_POSTInfo[],Table_POSTInspection[[#This Row],[Line]],M$3),\"\")=\"\"),\"\",INDEX(Table_POSTInfo[],Table_POSTInspection[[#This Row],[Line]],M$3)),\"\")","v":""},{"$f":"IFERROR(IF(Table_POSTInspection[[#This Row],[Interior/ Exterior]]<>\"\",\n  CONCATENATE(\n  Table_POSTInspection[[#This Row],[Fixture Technology '[P']]],\n  \" - \",Table_POSTInspection[[#This Row],[Fixture Type '[P']]],\" [\",\n  IF(Table_POSTInspection[[#This Row],['# Lamps/ Fixture '[P']]]>0,Table_POSTInspection[[#This Row],['# Lamps/ Fixture '[P']]] & \"L - \" & Table_POSTInspection[[#This Row],[Fixture/ Lamp Wattage '[P']]] & \"W\" & IF(Table_POSTInspection[[#This Row],[Ballast/ Driver '[P']]]<>\"\",\" - \" & Table_POSTInspection[[#This Row],[Ballast/ Driver '[P']]],\"\"),Table_POSTInspection[[#This Row],[Fixture Wattage '[P']]] & \"W\"),\"]\",\n  IF(AND(Table_POSTInspection[[#This Row],[Controls '[P']]]<>\"\",Table_POSTInspection[[#This Row],[Controls '[P']]]<>\"No Controls\"),\" - \" & Table_POSTInspection[[#This Row],[Controls '[P']]],\"\")\n  ),\n\"\"),\"\")","v":""},{"$f":"IFERROR(IF(OR(Table_POSTInspection[[#This Row],[Line]]<=0,IFERROR(INDEX(Table_POSTInfo[],Table_POSTInspection[[#This Row],[Line]],O$3),\"\")=\"\"),\"\",INDEX(Table_POSTInfo[],Table_POSTInspection[[#This Row],[Line]],O$3)),\"\")","v":""},{"$f":"IFERROR(IF(OR(Table_POSTInspection[[#This Row],[Line]]<=0,IFERROR(INDEX(Table_POSTInfo[],Table_POSTInspection[[#This Row],[Line]],P$3),\"\")=\"\"),\"\",INDEX(Table_POSTInfo[],Table_POSTInspection[[#This Row],[Line]],P$3)),\"\")","v":""},{"$f":"IFERROR(IF(OR(Table_POSTInspection[[#This Row],[Line]]<=0,IFERROR(INDEX(Table_POSTInfo[],Table_POSTInspection[[#This Row],[Line]],Q$3),\"\")=\"\"),\"\",INDEX(Table_POSTInfo[],Table_POSTInspection[[#This Row],[Line]],Q$3)),\"\")","v":""}]
[null,{"$f":"IFERROR(IF(OR(Table_POSTInspection[[#This Row],[Line]]<=0,IFERROR(INDEX(Table_POSTInfo[],Table_POSTInspection[[#This Row],[Line]],B$3),\"\")=\"\"),\"\",INDEX(Table_POSTInfo[],Table_POSTInspection[[#This Row],[Line]],B$3)),\"\")","v":""},{"$f":"IFERROR(IF(OR(Table_POSTInspection[[#This Row],[Line]]<=0,IFERROR(INDEX(Table_POSTInfo[],Table_POSTInspection[[#This Row],[Line]],C$3),\"\")=\"\"),\"\",INDEX(Table_POSTInfo[],Table_POSTInspection[[#This Row],[Line]],C$3)),\"\")","v":""},{"$f":"IFERROR(IF(OR(Table_POSTInspection[[#This Row],[Line]]<=0,IFERROR(INDEX(Table_POSTInfo[],Table_POSTInspection[[#This Row],[Line]],D$3),\"\")=\"\"),\"\",INDEX(Table_POSTInfo[],Table_POSTInspection[[#This Row],[Line]],D$3)),\"\")","v":""},null,{"$f":"IFERROR(IF(OR(Table_POSTInspection[[#This Row],[Line]]<=0,IFERROR(INDEX(Table_POSTInfo[],Table_POSTInspection[[#This Row],[Line]],F$3),\"\")=\"\"),\"\",INDEX(Table_POSTInfo[],Table_POSTInspection[[#This Row],[Line]],F$3)),\"\")","v":""},{"$f":"IFERROR(IF(OR(Table_POSTInspection[[#This Row],[Line]]<=0,IFERROR(INDEX(Table_POSTInfo[],Table_POSTInspection[[#This Row],[Line]],G$3),\"\")=\"\"),\"\",INDEX(Table_POSTInfo[],Table_POSTInspection[[#This Row],[Line]],G$3)),\"\")","v":""},{"$f":"IFERROR(IF(OR(Table_POSTInspection[[#This Row],[Line]]<=0,IFERROR(INDEX(Table_POSTInfo[],Table_POSTInspection[[#This Row],[Line]],H$3),\"\")=\"\"),\"\",INDEX(Table_POSTInfo[],Table_POSTInspection[[#This Row],[Line]],H$3)),\"\")","v":""},{"$f":"IFERROR(IF(OR(Table_POSTInspection[[#This Row],[Line]]<=0,IFERROR(INDEX(Table_POSTInfo[],Table_POSTInspection[[#This Row],[Line]],I$3),\"\")=\"\"),\"\",INDEX(Table_POSTInfo[],Table_POSTInspection[[#This Row],[Line]],I$3)),\"\")","v":""},{"$f":"IFERROR(IF(OR(Table_POSTInspection[[#This Row],[Line]]<=0,IFERROR(INDEX(Table_POSTInfo[],Table_POSTInspection[[#This Row],[Line]],J$3),\"\")=\"\"),\"\",INDEX(Table_POSTInfo[],Table_POSTInspection[[#This Row],[Line]],J$3)),\"\")","v":""},{"$f":"IFERROR(\nIFERROR(OFFSET(Table_TypWattage[[#Headers],[Technology]],MATCH($G28,Table_TypWattage[Technology],0)+MATCH($I28,INDIRECT(SUBSTITUTE(SUBSTITUTE($G28,\" \",\"_\"),\"-\",\"_\")),0)-1,MATCH($H28,'Measure Tables'!$Q$2:$V$2,0)+1),IF(Table_POSTInspection[[#This Row],[Schedule]]<>\"\",IF(AND($H28<>\"\",$H28>0,$I28>0),$H28*$I28,$I28),\"\")),\n\"\")","v":""},{"$f":"IFERROR(IF(OR(Table_POSTInspection[[#This Row],[Line]]<=0,IFERROR(INDEX(Table_POSTInfo[],Table_POSTInspection[[#This Row],[Line]],L$3),\"\")=\"\"),\"\",INDEX(Table_POSTInfo[],Table_POSTInspection[[#This Row],[Line]],L$3)),\"\")","v":""},{"$f":"IFERROR(IF(OR(Table_POSTInspection[[#This Row],[Line]]<=0,IFERROR(INDEX(Table_POSTInfo[],Table_POSTInspection[[#This Row],[Line]],M$3),\"\")=\"\"),\"\",INDEX(Table_POSTInfo[],Table_POSTInspection[[#This Row],[Line]],M$3)),\"\")","v":""},{"$f":"IFERROR(IF(Table_POSTInspection[[#This Row],[Interior/ Exterior]]<>\"\",\n  CONCATENATE(\n  Table_POSTInspection[[#This Row],[Fixture Technology '[P']]],\n  \" - \",Table_POSTInspection[[#This Row],[Fixture Type '[P']]],\" [\",\n  IF(Table_POSTInspection[[#This Row],['# Lamps/ Fixture '[P']]]>0,Table_POSTInspection[[#This Row],['# Lamps/ Fixture '[P']]] & \"L - \" & Table_POSTInspection[[#This Row],[Fixture/ Lamp Wattage '[P']]] & \"W\" & IF(Table_POSTInspection[[#This Row],[Ballast/ Driver '[P']]]<>\"\",\" - \" & Table_POSTInspection[[#This Row],[Ballast/ Driver '[P']]],\"\"),Table_POSTInspection[[#This Row],[Fixture Wattage '[P']]] & \"W\"),\"]\",\n  IF(AND(Table_POSTInspection[[#This Row],[Controls '[P']]]<>\"\",Table_POSTInspection[[#This Row],[Controls '[P']]]<>\"No Controls\"),\" - \" & Table_POSTInspection[[#This Row],[Controls '[P']]],\"\")\n  ),\n\"\"),\"\")","v":""},{"$f":"IFERROR(IF(OR(Table_POSTInspection[[#This Row],[Line]]<=0,IFERROR(INDEX(Table_POSTInfo[],Table_POSTInspection[[#This Row],[Line]],O$3),\"\")=\"\"),\"\",INDEX(Table_POSTInfo[],Table_POSTInspection[[#This Row],[Line]],O$3)),\"\")","v":""},{"$f":"IFERROR(IF(OR(Table_POSTInspection[[#This Row],[Line]]<=0,IFERROR(INDEX(Table_POSTInfo[],Table_POSTInspection[[#This Row],[Line]],P$3),\"\")=\"\"),\"\",INDEX(Table_POSTInfo[],Table_POSTInspection[[#This Row],[Line]],P$3)),\"\")","v":""},{"$f":"IFERROR(IF(OR(Table_POSTInspection[[#This Row],[Line]]<=0,IFERROR(INDEX(Table_POSTInfo[],Table_POSTInspection[[#This Row],[Line]],Q$3),\"\")=\"\"),\"\",INDEX(Table_POSTInfo[],Table_POSTInspection[[#This Row],[Line]],Q$3)),\"\")","v":""}]
[null,{"$f":"IFERROR(IF(OR(Table_POSTInspection[[#This Row],[Line]]<=0,IFERROR(INDEX(Table_POSTInfo[],Table_POSTInspection[[#This Row],[Line]],B$3),\"\")=\"\"),\"\",INDEX(Table_POSTInfo[],Table_POSTInspection[[#This Row],[Line]],B$3)),\"\")","v":""},{"$f":"IFERROR(IF(OR(Table_POSTInspection[[#This Row],[Line]]<=0,IFERROR(INDEX(Table_POSTInfo[],Table_POSTInspection[[#This Row],[Line]],C$3),\"\")=\"\"),\"\",INDEX(Table_POSTInfo[],Table_POSTInspection[[#This Row],[Line]],C$3)),\"\")","v":""},{"$f":"IFERROR(IF(OR(Table_POSTInspection[[#This Row],[Line]]<=0,IFERROR(INDEX(Table_POSTInfo[],Table_POSTInspection[[#This Row],[Line]],D$3),\"\")=\"\"),\"\",INDEX(Table_POSTInfo[],Table_POSTInspection[[#This Row],[Line]],D$3)),\"\")","v":""},null,{"$f":"IFERROR(IF(OR(Table_POSTInspection[[#This Row],[Line]]<=0,IFERROR(INDEX(Table_POSTInfo[],Table_POSTInspection[[#This Row],[Line]],F$3),\"\")=\"\"),\"\",INDEX(Table_POSTInfo[],Table_POSTInspection[[#This Row],[Line]],F$3)),\"\")","v":""},{"$f":"IFERROR(IF(OR(Table_POSTInspection[[#This Row],[Line]]<=0,IFERROR(INDEX(Table_POSTInfo[],Table_POSTInspection[[#This Row],[Line]],G$3),\"\")=\"\"),\"\",INDEX(Table_POSTInfo[],Table_POSTInspection[[#This Row],[Line]],G$3)),\"\")","v":""},{"$f":"IFERROR(IF(OR(Table_POSTInspection[[#This Row],[Line]]<=0,IFERROR(INDEX(Table_POSTInfo[],Table_POSTInspection[[#This Row],[Line]],H$3),\"\")=\"\"),\"\",INDEX(Table_POSTInfo[],Table_POSTInspection[[#This Row],[Line]],H$3)),\"\")","v":""},{"$f":"IFERROR(IF(OR(Table_POSTInspection[[#This Row],[Line]]<=0,IFERROR(INDEX(Table_POSTInfo[],Table_POSTInspection[[#This Row],[Line]],I$3),\"\")=\"\"),\"\",INDEX(Table_POSTInfo[],Table_POSTInspection[[#This Row],[Line]],I$3)),\"\")","v":""},{"$f":"IFERROR(IF(OR(Table_POSTInspection[[#This Row],[Line]]<=0,IFERROR(INDEX(Table_POSTInfo[],Table_POSTInspection[[#This Row],[Line]],J$3),\"\")=\"\"),\"\",INDEX(Table_POSTInfo[],Table_POSTInspection[[#This Row],[Line]],J$3)),\"\")","v":""},{"$f":"IFERROR(\nIFERROR(OFFSET(Table_TypWattage[[#Headers],[Technology]],MATCH($G29,Table_TypWattage[Technology],0)+MATCH($I29,INDIRECT(SUBSTITUTE(SUBSTITUTE($G29,\" \",\"_\"),\"-\",\"_\")),0)-1,MATCH($H29,'Measure Tables'!$Q$2:$V$2,0)+1),IF(Table_POSTInspection[[#This Row],[Schedule]]<>\"\",IF(AND($H29<>\"\",$H29>0,$I29>0),$H29*$I29,$I29),\"\")),\n\"\")","v":""},{"$f":"IFERROR(IF(OR(Table_POSTInspection[[#This Row],[Line]]<=0,IFERROR(INDEX(Table_POSTInfo[],Table_POSTInspection[[#This Row],[Line]],L$3),\"\")=\"\"),\"\",INDEX(Table_POSTInfo[],Table_POSTInspection[[#This Row],[Line]],L$3)),\"\")","v":""},{"$f":"IFERROR(IF(OR(Table_POSTInspection[[#This Row],[Line]]<=0,IFERROR(INDEX(Table_POSTInfo[],Table_POSTInspection[[#This Row],[Line]],M$3),\"\")=\"\"),\"\",INDEX(Table_POSTInfo[],Table_POSTInspection[[#This Row],[Line]],M$3)),\"\")","v":""},{"$f":"IFERROR(IF(Table_POSTInspection[[#This Row],[Interior/ Exterior]]<>\"\",\n  CONCATENATE(\n  Table_POSTInspection[[#This Row],[Fixture Technology '[P']]],\n  \" - \",Table_POSTInspection[[#This Row],[Fixture Type '[P']]],\" [\",\n  IF(Table_POSTInspection[[#This Row],['# Lamps/ Fixture '[P']]]>0,Table_POSTInspection[[#This Row],['# Lamps/ Fixture '[P']]] & \"L - \" & Table_POSTInspection[[#This Row],[Fixture/ Lamp Wattage '[P']]] & \"W\" & IF(Table_POSTInspection[[#This Row],[Ballast/ Driver '[P']]]<>\"\",\" - \" & Table_POSTInspection[[#This Row],[Ballast/ Driver '[P']]],\"\"),Table_POSTInspection[[#This Row],[Fixture Wattage '[P']]] & \"W\"),\"]\",\n  IF(AND(Table_POSTInspection[[#This Row],[Controls '[P']]]<>\"\",Table_POSTInspection[[#This Row],[Controls '[P']]]<>\"No Controls\"),\" - \" & Table_POSTInspection[[#This Row],[Controls '[P']]],\"\")\n  ),\n\"\"),\"\")","v":""},{"$f":"IFERROR(IF(OR(Table_POSTInspection[[#This Row],[Line]]<=0,IFERROR(INDEX(Table_POSTInfo[],Table_POSTInspection[[#This Row],[Line]],O$3),\"\")=\"\"),\"\",INDEX(Table_POSTInfo[],Table_POSTInspection[[#This Row],[Line]],O$3)),\"\")","v":""},{"$f":"IFERROR(IF(OR(Table_POSTInspection[[#This Row],[Line]]<=0,IFERROR(INDEX(Table_POSTInfo[],Table_POSTInspection[[#This Row],[Line]],P$3),\"\")=\"\"),\"\",INDEX(Table_POSTInfo[],Table_POSTInspection[[#This Row],[Line]],P$3)),\"\")","v":""},{"$f":"IFERROR(IF(OR(Table_POSTInspection[[#This Row],[Line]]<=0,IFERROR(INDEX(Table_POSTInfo[],Table_POSTInspection[[#This Row],[Line]],Q$3),\"\")=\"\"),\"\",INDEX(Table_POSTInfo[],Table_POSTInspection[[#This Row],[Line]],Q$3)),\"\")","v":""}]
[null,{"$f":"IFERROR(IF(OR(Table_POSTInspection[[#This Row],[Line]]<=0,IFERROR(INDEX(Table_POSTInfo[],Table_POSTInspection[[#This Row],[Line]],B$3),\"\")=\"\"),\"\",INDEX(Table_POSTInfo[],Table_POSTInspection[[#This Row],[Line]],B$3)),\"\")","v":""},{"$f":"IFERROR(IF(OR(Table_POSTInspection[[#This Row],[Line]]<=0,IFERROR(INDEX(Table_POSTInfo[],Table_POSTInspection[[#This Row],[Line]],C$3),\"\")=\"\"),\"\",INDEX(Table_POSTInfo[],Table_POSTInspection[[#This Row],[Line]],C$3)),\"\")","v":""},{"$f":"IFERROR(IF(OR(Table_POSTInspection[[#This Row],[Line]]<=0,IFERROR(INDEX(Table_POSTInfo[],Table_POSTInspection[[#This Row],[Line]],D$3),\"\")=\"\"),\"\",INDEX(Table_POSTInfo[],Table_POSTInspection[[#This Row],[Line]],D$3)),\"\")","v":""},null,{"$f":"IFERROR(IF(OR(Table_POSTInspection[[#This Row],[Line]]<=0,IFERROR(INDEX(Table_POSTInfo[],Table_POSTInspection[[#This Row],[Line]],F$3),\"\")=\"\"),\"\",INDEX(Table_POSTInfo[],Table_POSTInspection[[#This Row],[Line]],F$3)),\"\")","v":""},{"$f":"IFERROR(IF(OR(Table_POSTInspection[[#This Row],[Line]]<=0,IFERROR(INDEX(Table_POSTInfo[],Table_POSTInspection[[#This Row],[Line]],G$3),\"\")=\"\"),\"\",INDEX(Table_POSTInfo[],Table_POSTInspection[[#This Row],[Line]],G$3)),\"\")","v":""},{"$f":"IFERROR(IF(OR(Table_POSTInspection[[#This Row],[Line]]<=0,IFERROR(INDEX(Table_POSTInfo[],Table_POSTInspection[[#This Row],[Line]],H$3),\"\")=\"\"),\"\",INDEX(Table_POSTInfo[],Table_POSTInspection[[#This Row],[Line]],H$3)),\"\")","v":""},{"$f":"IFERROR(IF(OR(Table_POSTInspection[[#This Row],[Line]]<=0,IFERROR(INDEX(Table_POSTInfo[],Table_POSTInspection[[#This Row],[Line]],I$3),\"\")=\"\"),\"\",INDEX(Table_POSTInfo[],Table_POSTInspection[[#This Row],[Line]],I$3)),\"\")","v":""},{"$f":"IFERROR(IF(OR(Table_POSTInspection[[#This Row],[Line]]<=0,IFERROR(INDEX(Table_POSTInfo[],Table_POSTInspection[[#This Row],[Line]],J$3),\"\")=\"\"),\"\",INDEX(Table_POSTInfo[],Table_POSTInspection[[#This Row],[Line]],J$3)),\"\")","v":""},{"$f":"IFERROR(\nIFERROR(OFFSET(Table_TypWattage[[#Headers],[Technology]],MATCH($G30,Table_TypWattage[Technology],0)+MATCH($I30,INDIRECT(SUBSTITUTE(SUBSTITUTE($G30,\" \",\"_\"),\"-\",\"_\")),0)-1,MATCH($H30,'Measure Tables'!$Q$2:$V$2,0)+1),IF(Table_POSTInspection[[#This Row],[Schedule]]<>\"\",IF(AND($H30<>\"\",$H30>0,$I30>0),$H30*$I30,$I30),\"\")),\n\"\")","v":""},{"$f":"IFERROR(IF(OR(Table_POSTInspection[[#This Row],[Line]]<=0,IFERROR(INDEX(Table_POSTInfo[],Table_POSTInspection[[#This Row],[Line]],L$3),\"\")=\"\"),\"\",INDEX(Table_POSTInfo[],Table_POSTInspection[[#This Row],[Line]],L$3)),\"\")","v":""},{"$f":"IFERROR(IF(OR(Table_POSTInspection[[#This Row],[Line]]<=0,IFERROR(INDEX(Table_POSTInfo[],Table_POSTInspection[[#This Row],[Line]],M$3),\"\")=\"\"),\"\",INDEX(Table_POSTInfo[],Table_POSTInspection[[#This Row],[Line]],M$3)),\"\")","v":""},{"$f":"IFERROR(IF(Table_POSTInspection[[#This Row],[Interior/ Exterior]]<>\"\",\n  CONCATENATE(\n  Table_POSTInspection[[#This Row],[Fixture Technology '[P']]],\n  \" - \",Table_POSTInspection[[#This Row],[Fixture Type '[P']]],\" [\",\n  IF(Table_POSTInspection[[#This Row],['# Lamps/ Fixture '[P']]]>0,Table_POSTInspection[[#This Row],['# Lamps/ Fixture '[P']]] & \"L - \" & Table_POSTInspection[[#This Row],[Fixture/ Lamp Wattage '[P']]] & \"W\" & IF(Table_POSTInspection[[#This Row],[Ballast/ Driver '[P']]]<>\"\",\" - \" & Table_POSTInspection[[#This Row],[Ballast/ Driver '[P']]],\"\"),Table_POSTInspection[[#This Row],[Fixture Wattage '[P']]] & \"W\"),\"]\",\n  IF(AND(Table_POSTInspection[[#This Row],[Controls '[P']]]<>\"\",Table_POSTInspection[[#This Row],[Controls '[P']]]<>\"No Controls\"),\" - \" & Table_POSTInspection[[#This Row],[Controls '[P']]],\"\")\n  ),\n\"\"),\"\")","v":""},{"$f":"IFERROR(IF(OR(Table_POSTInspection[[#This Row],[Line]]<=0,IFERROR(INDEX(Table_POSTInfo[],Table_POSTInspection[[#This Row],[Line]],O$3),\"\")=\"\"),\"\",INDEX(Table_POSTInfo[],Table_POSTInspection[[#This Row],[Line]],O$3)),\"\")","v":""},{"$f":"IFERROR(IF(OR(Table_POSTInspection[[#This Row],[Line]]<=0,IFERROR(INDEX(Table_POSTInfo[],Table_POSTInspection[[#This Row],[Line]],P$3),\"\")=\"\"),\"\",INDEX(Table_POSTInfo[],Table_POSTInspection[[#This Row],[Line]],P$3)),\"\")","v":""},{"$f":"IFERROR(IF(OR(Table_POSTInspection[[#This Row],[Line]]<=0,IFERROR(INDEX(Table_POSTInfo[],Table_POSTInspection[[#This Row],[Line]],Q$3),\"\")=\"\"),\"\",INDEX(Table_POSTInfo[],Table_POSTInspection[[#This Row],[Line]],Q$3)),\"\")","v":""}]
[null,{"$f":"IFERROR(IF(OR(Table_POSTInspection[[#This Row],[Line]]<=0,IFERROR(INDEX(Table_POSTInfo[],Table_POSTInspection[[#This Row],[Line]],B$3),\"\")=\"\"),\"\",INDEX(Table_POSTInfo[],Table_POSTInspection[[#This Row],[Line]],B$3)),\"\")","v":""},{"$f":"IFERROR(IF(OR(Table_POSTInspection[[#This Row],[Line]]<=0,IFERROR(INDEX(Table_POSTInfo[],Table_POSTInspection[[#This Row],[Line]],C$3),\"\")=\"\"),\"\",INDEX(Table_POSTInfo[],Table_POSTInspection[[#This Row],[Line]],C$3)),\"\")","v":""},{"$f":"IFERROR(IF(OR(Table_POSTInspection[[#This Row],[Line]]<=0,IFERROR(INDEX(Table_POSTInfo[],Table_POSTInspection[[#This Row],[Line]],D$3),\"\")=\"\"),\"\",INDEX(Table_POSTInfo[],Table_POSTInspection[[#This Row],[Line]],D$3)),\"\")","v":""},null,{"$f":"IFERROR(IF(OR(Table_POSTInspection[[#This Row],[Line]]<=0,IFERROR(INDEX(Table_POSTInfo[],Table_POSTInspection[[#This Row],[Line]],F$3),\"\")=\"\"),\"\",INDEX(Table_POSTInfo[],Table_POSTInspection[[#This Row],[Line]],F$3)),\"\")","v":""},{"$f":"IFERROR(IF(OR(Table_POSTInspection[[#This Row],[Line]]<=0,IFERROR(INDEX(Table_POSTInfo[],Table_POSTInspection[[#This Row],[Line]],G$3),\"\")=\"\"),\"\",INDEX(Table_POSTInfo[],Table_POSTInspection[[#This Row],[Line]],G$3)),\"\")","v":""},{"$f":"IFERROR(IF(OR(Table_POSTInspection[[#This Row],[Line]]<=0,IFERROR(INDEX(Table_POSTInfo[],Table_POSTInspection[[#This Row],[Line]],H$3),\"\")=\"\"),\"\",INDEX(Table_POSTInfo[],Table_POSTInspection[[#This Row],[Line]],H$3)),\"\")","v":""},{"$f":"IFERROR(IF(OR(Table_POSTInspection[[#This Row],[Line]]<=0,IFERROR(INDEX(Table_POSTInfo[],Table_POSTInspection[[#This Row],[Line]],I$3),\"\")=\"\"),\"\",INDEX(Table_POSTInfo[],Table_POSTInspection[[#This Row],[Line]],I$3)),\"\")","v":""},{"$f":"IFERROR(IF(OR(Table_POSTInspection[[#This Row],[Line]]<=0,IFERROR(INDEX(Table_POSTInfo[],Table_POSTInspection[[#This Row],[Line]],J$3),\"\")=\"\"),\"\",INDEX(Table_POSTInfo[],Table_POSTInspection[[#This Row],[Line]],J$3)),\"\")","v":""},{"$f":"IFERROR(\nIFERROR(OFFSET(Table_TypWattage[[#Headers],[Technology]],MATCH($G31,Table_TypWattage[Technology],0)+MATCH($I31,INDIRECT(SUBSTITUTE(SUBSTITUTE($G31,\" \",\"_\"),\"-\",\"_\")),0)-1,MATCH($H31,'Measure Tables'!$Q$2:$V$2,0)+1),IF(Table_POSTInspection[[#This Row],[Schedule]]<>\"\",IF(AND($H31<>\"\",$H31>0,$I31>0),$H31*$I31,$I31),\"\")),\n\"\")","v":""},{"$f":"IFERROR(IF(OR(Table_POSTInspection[[#This Row],[Line]]<=0,IFERROR(INDEX(Table_POSTInfo[],Table_POSTInspection[[#This Row],[Line]],L$3),\"\")=\"\"),\"\",INDEX(Table_POSTInfo[],Table_POSTInspection[[#This Row],[Line]],L$3)),\"\")","v":""},{"$f":"IFERROR(IF(OR(Table_POSTInspection[[#This Row],[Line]]<=0,IFERROR(INDEX(Table_POSTInfo[],Table_POSTInspection[[#This Row],[Line]],M$3),\"\")=\"\"),\"\",INDEX(Table_POSTInfo[],Table_POSTInspection[[#This Row],[Line]],M$3)),\"\")","v":""},{"$f":"IFERROR(IF(Table_POSTInspection[[#This Row],[Interior/ Exterior]]<>\"\",\n  CONCATENATE(\n  Table_POSTInspection[[#This Row],[Fixture Technology '[P']]],\n  \" - \",Table_POSTInspection[[#This Row],[Fixture Type '[P']]],\" [\",\n  IF(Table_POSTInspection[[#This Row],['# Lamps/ Fixture '[P']]]>0,Table_POSTInspection[[#This Row],['# Lamps/ Fixture '[P']]] & \"L - \" & Table_POSTInspection[[#This Row],[Fixture/ Lamp Wattage '[P']]] & \"W\" & IF(Table_POSTInspection[[#This Row],[Ballast/ Driver '[P']]]<>\"\",\" - \" & Table_POSTInspection[[#This Row],[Ballast/ Driver '[P']]],\"\"),Table_POSTInspection[[#This Row],[Fixture Wattage '[P']]] & \"W\"),\"]\",\n  IF(AND(Table_POSTInspection[[#This Row],[Controls '[P']]]<>\"\",Table_POSTInspection[[#This Row],[Controls '[P']]]<>\"No Controls\"),\" - \" & Table_POSTInspection[[#This Row],[Controls '[P']]],\"\")\n  ),\n\"\"),\"\")","v":""},{"$f":"IFERROR(IF(OR(Table_POSTInspection[[#This Row],[Line]]<=0,IFERROR(INDEX(Table_POSTInfo[],Table_POSTInspection[[#This Row],[Line]],O$3),\"\")=\"\"),\"\",INDEX(Table_POSTInfo[],Table_POSTInspection[[#This Row],[Line]],O$3)),\"\")","v":""},{"$f":"IFERROR(IF(OR(Table_POSTInspection[[#This Row],[Line]]<=0,IFERROR(INDEX(Table_POSTInfo[],Table_POSTInspection[[#This Row],[Line]],P$3),\"\")=\"\"),\"\",INDEX(Table_POSTInfo[],Table_POSTInspection[[#This Row],[Line]],P$3)),\"\")","v":""},{"$f":"IFERROR(IF(OR(Table_POSTInspection[[#This Row],[Line]]<=0,IFERROR(INDEX(Table_POSTInfo[],Table_POSTInspection[[#This Row],[Line]],Q$3),\"\")=\"\"),\"\",INDEX(Table_POSTInfo[],Table_POSTInspection[[#This Row],[Line]],Q$3)),\"\")","v":""}]
[null,{"$f":"IFERROR(IF(OR(Table_POSTInspection[[#This Row],[Line]]<=0,IFERROR(INDEX(Table_POSTInfo[],Table_POSTInspection[[#This Row],[Line]],B$3),\"\")=\"\"),\"\",INDEX(Table_POSTInfo[],Table_POSTInspection[[#This Row],[Line]],B$3)),\"\")","v":""},{"$f":"IFERROR(IF(OR(Table_POSTInspection[[#This Row],[Line]]<=0,IFERROR(INDEX(Table_POSTInfo[],Table_POSTInspection[[#This Row],[Line]],C$3),\"\")=\"\"),\"\",INDEX(Table_POSTInfo[],Table_POSTInspection[[#This Row],[Line]],C$3)),\"\")","v":""},{"$f":"IFERROR(IF(OR(Table_POSTInspection[[#This Row],[Line]]<=0,IFERROR(INDEX(Table_POSTInfo[],Table_POSTInspection[[#This Row],[Line]],D$3),\"\")=\"\"),\"\",INDEX(Table_POSTInfo[],Table_POSTInspection[[#This Row],[Line]],D$3)),\"\")","v":""},null,{"$f":"IFERROR(IF(OR(Table_POSTInspection[[#This Row],[Line]]<=0,IFERROR(INDEX(Table_POSTInfo[],Table_POSTInspection[[#This Row],[Line]],F$3),\"\")=\"\"),\"\",INDEX(Table_POSTInfo[],Table_POSTInspection[[#This Row],[Line]],F$3)),\"\")","v":""},{"$f":"IFERROR(IF(OR(Table_POSTInspection[[#This Row],[Line]]<=0,IFERROR(INDEX(Table_POSTInfo[],Table_POSTInspection[[#This Row],[Line]],G$3),\"\")=\"\"),\"\",INDEX(Table_POSTInfo[],Table_POSTInspection[[#This Row],[Line]],G$3)),\"\")","v":""},{"$f":"IFERROR(IF(OR(Table_POSTInspection[[#This Row],[Line]]<=0,IFERROR(INDEX(Table_POSTInfo[],Table_POSTInspection[[#This Row],[Line]],H$3),\"\")=\"\"),\"\",INDEX(Table_POSTInfo[],Table_POSTInspection[[#This Row],[Line]],H$3)),\"\")","v":""},{"$f":"IFERROR(IF(OR(Table_POSTInspection[[#This Row],[Line]]<=0,IFERROR(INDEX(Table_POSTInfo[],Table_POSTInspection[[#This Row],[Line]],I$3),\"\")=\"\"),\"\",INDEX(Table_POSTInfo[],Table_POSTInspection[[#This Row],[Line]],I$3)),\"\")","v":""},{"$f":"IFERROR(IF(OR(Table_POSTInspection[[#This Row],[Line]]<=0,IFERROR(INDEX(Table_POSTInfo[],Table_POSTInspection[[#This Row],[Line]],J$3),\"\")=\"\"),\"\",INDEX(Table_POSTInfo[],Table_POSTInspection[[#This Row],[Line]],J$3)),\"\")","v":""},{"$f":"IFERROR(\nIFERROR(OFFSET(Table_TypWattage[[#Headers],[Technology]],MATCH($G32,Table_TypWattage[Technology],0)+MATCH($I32,INDIRECT(SUBSTITUTE(SUBSTITUTE($G32,\" \",\"_\"),\"-\",\"_\")),0)-1,MATCH($H32,'Measure Tables'!$Q$2:$V$2,0)+1),IF(Table_POSTInspection[[#This Row],[Schedule]]<>\"\",IF(AND($H32<>\"\",$H32>0,$I32>0),$H32*$I32,$I32),\"\")),\n\"\")","v":""},{"$f":"IFERROR(IF(OR(Table_POSTInspection[[#This Row],[Line]]<=0,IFERROR(INDEX(Table_POSTInfo[],Table_POSTInspection[[#This Row],[Line]],L$3),\"\")=\"\"),\"\",INDEX(Table_POSTInfo[],Table_POSTInspection[[#This Row],[Line]],L$3)),\"\")","v":""},{"$f":"IFERROR(IF(OR(Table_POSTInspection[[#This Row],[Line]]<=0,IFERROR(INDEX(Table_POSTInfo[],Table_POSTInspection[[#This Row],[Line]],M$3),\"\")=\"\"),\"\",INDEX(Table_POSTInfo[],Table_POSTInspection[[#This Row],[Line]],M$3)),\"\")","v":""},{"$f":"IFERROR(IF(Table_POSTInspection[[#This Row],[Interior/ Exterior]]<>\"\",\n  CONCATENATE(\n  Table_POSTInspection[[#This Row],[Fixture Technology '[P']]],\n  \" - \",Table_POSTInspection[[#This Row],[Fixture Type '[P']]],\" [\",\n  IF(Table_POSTInspection[[#This Row],['# Lamps/ Fixture '[P']]]>0,Table_POSTInspection[[#This Row],['# Lamps/ Fixture '[P']]] & \"L - \" & Table_POSTInspection[[#This Row],[Fixture/ Lamp Wattage '[P']]] & \"W\" & IF(Table_POSTInspection[[#This Row],[Ballast/ Driver '[P']]]<>\"\",\" - \" & Table_POSTInspection[[#This Row],[Ballast/ Driver '[P']]],\"\"),Table_POSTInspection[[#This Row],[Fixture Wattage '[P']]] & \"W\"),\"]\",\n  IF(AND(Table_POSTInspection[[#This Row],[Controls '[P']]]<>\"\",Table_POSTInspection[[#This Row],[Controls '[P']]]<>\"No Controls\"),\" - \" & Table_POSTInspection[[#This Row],[Controls '[P']]],\"\")\n  ),\n\"\"),\"\")","v":""},{"$f":"IFERROR(IF(OR(Table_POSTInspection[[#This Row],[Line]]<=0,IFERROR(INDEX(Table_POSTInfo[],Table_POSTInspection[[#This Row],[Line]],O$3),\"\")=\"\"),\"\",INDEX(Table_POSTInfo[],Table_POSTInspection[[#This Row],[Line]],O$3)),\"\")","v":""},{"$f":"IFERROR(IF(OR(Table_POSTInspection[[#This Row],[Line]]<=0,IFERROR(INDEX(Table_POSTInfo[],Table_POSTInspection[[#This Row],[Line]],P$3),\"\")=\"\"),\"\",INDEX(Table_POSTInfo[],Table_POSTInspection[[#This Row],[Line]],P$3)),\"\")","v":""},{"$f":"IFERROR(IF(OR(Table_POSTInspection[[#This Row],[Line]]<=0,IFERROR(INDEX(Table_POSTInfo[],Table_POSTInspection[[#This Row],[Line]],Q$3),\"\")=\"\"),\"\",INDEX(Table_POSTInfo[],Table_POSTInspection[[#This Row],[Line]],Q$3)),\"\")","v":""}]
[null,{"$f":"IFERROR(IF(OR(Table_POSTInspection[[#This Row],[Line]]<=0,IFERROR(INDEX(Table_POSTInfo[],Table_POSTInspection[[#This Row],[Line]],B$3),\"\")=\"\"),\"\",INDEX(Table_POSTInfo[],Table_POSTInspection[[#This Row],[Line]],B$3)),\"\")","v":""},{"$f":"IFERROR(IF(OR(Table_POSTInspection[[#This Row],[Line]]<=0,IFERROR(INDEX(Table_POSTInfo[],Table_POSTInspection[[#This Row],[Line]],C$3),\"\")=\"\"),\"\",INDEX(Table_POSTInfo[],Table_POSTInspection[[#This Row],[Line]],C$3)),\"\")","v":""},{"$f":"IFERROR(IF(OR(Table_POSTInspection[[#This Row],[Line]]<=0,IFERROR(INDEX(Table_POSTInfo[],Table_POSTInspection[[#This Row],[Line]],D$3),\"\")=\"\"),\"\",INDEX(Table_POSTInfo[],Table_POSTInspection[[#This Row],[Line]],D$3)),\"\")","v":""},null,{"$f":"IFERROR(IF(OR(Table_POSTInspection[[#This Row],[Line]]<=0,IFERROR(INDEX(Table_POSTInfo[],Table_POSTInspection[[#This Row],[Line]],F$3),\"\")=\"\"),\"\",INDEX(Table_POSTInfo[],Table_POSTInspection[[#This Row],[Line]],F$3)),\"\")","v":""},{"$f":"IFERROR(IF(OR(Table_POSTInspection[[#This Row],[Line]]<=0,IFERROR(INDEX(Table_POSTInfo[],Table_POSTInspection[[#This Row],[Line]],G$3),\"\")=\"\"),\"\",INDEX(Table_POSTInfo[],Table_POSTInspection[[#This Row],[Line]],G$3)),\"\")","v":""},{"$f":"IFERROR(IF(OR(Table_POSTInspection[[#This Row],[Line]]<=0,IFERROR(INDEX(Table_POSTInfo[],Table_POSTInspection[[#This Row],[Line]],H$3),\"\")=\"\"),\"\",INDEX(Table_POSTInfo[],Table_POSTInspection[[#This Row],[Line]],H$3)),\"\")","v":""},{"$f":"IFERROR(IF(OR(Table_POSTInspection[[#This Row],[Line]]<=0,IFERROR(INDEX(Table_POSTInfo[],Table_POSTInspection[[#This Row],[Line]],I$3),\"\")=\"\"),\"\",INDEX(Table_POSTInfo[],Table_POSTInspection[[#This Row],[Line]],I$3)),\"\")","v":""},{"$f":"IFERROR(IF(OR(Table_POSTInspection[[#This Row],[Line]]<=0,IFERROR(INDEX(Table_POSTInfo[],Table_POSTInspection[[#This Row],[Line]],J$3),\"\")=\"\"),\"\",INDEX(Table_POSTInfo[],Table_POSTInspection[[#This Row],[Line]],J$3)),\"\")","v":""},{"$f":"IFERROR(\nIFERROR(OFFSET(Table_TypWattage[[#Headers],[Technology]],MATCH($G33,Table_TypWattage[Technology],0)+MATCH($I33,INDIRECT(SUBSTITUTE(SUBSTITUTE($G33,\" \",\"_\"),\"-\",\"_\")),0)-1,MATCH($H33,'Measure Tables'!$Q$2:$V$2,0)+1),IF(Table_POSTInspection[[#This Row],[Schedule]]<>\"\",IF(AND($H33<>\"\",$H33>0,$I33>0),$H33*$I33,$I33),\"\")),\n\"\")","v":""},{"$f":"IFERROR(IF(OR(Table_POSTInspection[[#This Row],[Line]]<=0,IFERROR(INDEX(Table_POSTInfo[],Table_POSTInspection[[#This Row],[Line]],L$3),\"\")=\"\"),\"\",INDEX(Table_POSTInfo[],Table_POSTInspection[[#This Row],[Line]],L$3)),\"\")","v":""},{"$f":"IFERROR(IF(OR(Table_POSTInspection[[#This Row],[Line]]<=0,IFERROR(INDEX(Table_POSTInfo[],Table_POSTInspection[[#This Row],[Line]],M$3),\"\")=\"\"),\"\",INDEX(Table_POSTInfo[],Table_POSTInspection[[#This Row],[Line]],M$3)),\"\")","v":""},{"$f":"IFERROR(IF(Table_POSTInspection[[#This Row],[Interior/ Exterior]]<>\"\",\n  CONCATENATE(\n  Table_POSTInspection[[#This Row],[Fixture Technology '[P']]],\n  \" - \",Table_POSTInspection[[#This Row],[Fixture Type '[P']]],\" [\",\n  IF(Table_POSTInspection[[#This Row],['# Lamps/ Fixture '[P']]]>0,Table_POSTInspection[[#This Row],['# Lamps/ Fixture '[P']]] & \"L - \" & Table_POSTInspection[[#This Row],[Fixture/ Lamp Wattage '[P']]] & \"W\" & IF(Table_POSTInspection[[#This Row],[Ballast/ Driver '[P']]]<>\"\",\" - \" & Table_POSTInspection[[#This Row],[Ballast/ Driver '[P']]],\"\"),Table_POSTInspection[[#This Row],[Fixture Wattage '[P']]] & \"W\"),\"]\",\n  IF(AND(Table_POSTInspection[[#This Row],[Controls '[P']]]<>\"\",Table_POSTInspection[[#This Row],[Controls '[P']]]<>\"No Controls\"),\" - \" & Table_POSTInspection[[#This Row],[Controls '[P']]],\"\")\n  ),\n\"\"),\"\")","v":""},{"$f":"IFERROR(IF(OR(Table_POSTInspection[[#This Row],[Line]]<=0,IFERROR(INDEX(Table_POSTInfo[],Table_POSTInspection[[#This Row],[Line]],O$3),\"\")=\"\"),\"\",INDEX(Table_POSTInfo[],Table_POSTInspection[[#This Row],[Line]],O$3)),\"\")","v":""},{"$f":"IFERROR(IF(OR(Table_POSTInspection[[#This Row],[Line]]<=0,IFERROR(INDEX(Table_POSTInfo[],Table_POSTInspection[[#This Row],[Line]],P$3),\"\")=\"\"),\"\",INDEX(Table_POSTInfo[],Table_POSTInspection[[#This Row],[Line]],P$3)),\"\")","v":""},{"$f":"IFERROR(IF(OR(Table_POSTInspection[[#This Row],[Line]]<=0,IFERROR(INDEX(Table_POSTInfo[],Table_POSTInspection[[#This Row],[Line]],Q$3),\"\")=\"\"),\"\",INDEX(Table_POSTInfo[],Table_POSTInspection[[#This Row],[Line]],Q$3)),\"\")","v":""}]
[null,{"$f":"IFERROR(IF(OR(Table_POSTInspection[[#This Row],[Line]]<=0,IFERROR(INDEX(Table_POSTInfo[],Table_POSTInspection[[#This Row],[Line]],B$3),\"\")=\"\"),\"\",INDEX(Table_POSTInfo[],Table_POSTInspection[[#This Row],[Line]],B$3)),\"\")","v":""},{"$f":"IFERROR(IF(OR(Table_POSTInspection[[#This Row],[Line]]<=0,IFERROR(INDEX(Table_POSTInfo[],Table_POSTInspection[[#This Row],[Line]],C$3),\"\")=\"\"),\"\",INDEX(Table_POSTInfo[],Table_POSTInspection[[#This Row],[Line]],C$3)),\"\")","v":""},{"$f":"IFERROR(IF(OR(Table_POSTInspection[[#This Row],[Line]]<=0,IFERROR(INDEX(Table_POSTInfo[],Table_POSTInspection[[#This Row],[Line]],D$3),\"\")=\"\"),\"\",INDEX(Table_POSTInfo[],Table_POSTInspection[[#This Row],[Line]],D$3)),\"\")","v":""},null,{"$f":"IFERROR(IF(OR(Table_POSTInspection[[#This Row],[Line]]<=0,IFERROR(INDEX(Table_POSTInfo[],Table_POSTInspection[[#This Row],[Line]],F$3),\"\")=\"\"),\"\",INDEX(Table_POSTInfo[],Table_POSTInspection[[#This Row],[Line]],F$3)),\"\")","v":""},{"$f":"IFERROR(IF(OR(Table_POSTInspection[[#This Row],[Line]]<=0,IFERROR(INDEX(Table_POSTInfo[],Table_POSTInspection[[#This Row],[Line]],G$3),\"\")=\"\"),\"\",INDEX(Table_POSTInfo[],Table_POSTInspection[[#This Row],[Line]],G$3)),\"\")","v":""},{"$f":"IFERROR(IF(OR(Table_POSTInspection[[#This Row],[Line]]<=0,IFERROR(INDEX(Table_POSTInfo[],Table_POSTInspection[[#This Row],[Line]],H$3),\"\")=\"\"),\"\",INDEX(Table_POSTInfo[],Table_POSTInspection[[#This Row],[Line]],H$3)),\"\")","v":""},{"$f":"IFERROR(IF(OR(Table_POSTInspection[[#This Row],[Line]]<=0,IFERROR(INDEX(Table_POSTInfo[],Table_POSTInspection[[#This Row],[Line]],I$3),\"\")=\"\"),\"\",INDEX(Table_POSTInfo[],Table_POSTInspection[[#This Row],[Line]],I$3)),\"\")","v":""},{"$f":"IFERROR(IF(OR(Table_POSTInspection[[#This Row],[Line]]<=0,IFERROR(INDEX(Table_POSTInfo[],Table_POSTInspection[[#This Row],[Line]],J$3),\"\")=\"\"),\"\",INDEX(Table_POSTInfo[],Table_POSTInspection[[#This Row],[Line]],J$3)),\"\")","v":""},{"$f":"IFERROR(\nIFERROR(OFFSET(Table_TypWattage[[#Headers],[Technology]],MATCH($G34,Table_TypWattage[Technology],0)+MATCH($I34,INDIRECT(SUBSTITUTE(SUBSTITUTE($G34,\" \",\"_\"),\"-\",\"_\")),0)-1,MATCH($H34,'Measure Tables'!$Q$2:$V$2,0)+1),IF(Table_POSTInspection[[#This Row],[Schedule]]<>\"\",IF(AND($H34<>\"\",$H34>0,$I34>0),$H34*$I34,$I34),\"\")),\n\"\")","v":""},{"$f":"IFERROR(IF(OR(Table_POSTInspection[[#This Row],[Line]]<=0,IFERROR(INDEX(Table_POSTInfo[],Table_POSTInspection[[#This Row],[Line]],L$3),\"\")=\"\"),\"\",INDEX(Table_POSTInfo[],Table_POSTInspection[[#This Row],[Line]],L$3)),\"\")","v":""},{"$f":"IFERROR(IF(OR(Table_POSTInspection[[#This Row],[Line]]<=0,IFERROR(INDEX(Table_POSTInfo[],Table_POSTInspection[[#This Row],[Line]],M$3),\"\")=\"\"),\"\",INDEX(Table_POSTInfo[],Table_POSTInspection[[#This Row],[Line]],M$3)),\"\")","v":""},{"$f":"IFERROR(IF(Table_POSTInspection[[#This Row],[Interior/ Exterior]]<>\"\",\n  CONCATENATE(\n  Table_POSTInspection[[#This Row],[Fixture Technology '[P']]],\n  \" - \",Table_POSTInspection[[#This Row],[Fixture Type '[P']]],\" [\",\n  IF(Table_POSTInspection[[#This Row],['# Lamps/ Fixture '[P']]]>0,Table_POSTInspection[[#This Row],['# Lamps/ Fixture '[P']]] & \"L - \" & Table_POSTInspection[[#This Row],[Fixture/ Lamp Wattage '[P']]] & \"W\" & IF(Table_POSTInspection[[#This Row],[Ballast/ Driver '[P']]]<>\"\",\" - \" & Table_POSTInspection[[#This Row],[Ballast/ Driver '[P']]],\"\"),Table_POSTInspection[[#This Row],[Fixture Wattage '[P']]] & \"W\"),\"]\",\n  IF(AND(Table_POSTInspection[[#This Row],[Controls '[P']]]<>\"\",Table_POSTInspection[[#This Row],[Controls '[P']]]<>\"No Controls\"),\" - \" & Table_POSTInspection[[#This Row],[Controls '[P']]],\"\")\n  ),\n\"\"),\"\")","v":""},{"$f":"IFERROR(IF(OR(Table_POSTInspection[[#This Row],[Line]]<=0,IFERROR(INDEX(Table_POSTInfo[],Table_POSTInspection[[#This Row],[Line]],O$3),\"\")=\"\"),\"\",INDEX(Table_POSTInfo[],Table_POSTInspection[[#This Row],[Line]],O$3)),\"\")","v":""},{"$f":"IFERROR(IF(OR(Table_POSTInspection[[#This Row],[Line]]<=0,IFERROR(INDEX(Table_POSTInfo[],Table_POSTInspection[[#This Row],[Line]],P$3),\"\")=\"\"),\"\",INDEX(Table_POSTInfo[],Table_POSTInspection[[#This Row],[Line]],P$3)),\"\")","v":""},{"$f":"IFERROR(IF(OR(Table_POSTInspection[[#This Row],[Line]]<=0,IFERROR(INDEX(Table_POSTInfo[],Table_POSTInspection[[#This Row],[Line]],Q$3),\"\")=\"\"),\"\",INDEX(Table_POSTInfo[],Table_POSTInspection[[#This Row],[Line]],Q$3)),\"\")","v":""}]
[null,{"$f":"IFERROR(IF(OR(Table_POSTInspection[[#This Row],[Line]]<=0,IFERROR(INDEX(Table_POSTInfo[],Table_POSTInspection[[#This Row],[Line]],B$3),\"\")=\"\"),\"\",INDEX(Table_POSTInfo[],Table_POSTInspection[[#This Row],[Line]],B$3)),\"\")","v":""},{"$f":"IFERROR(IF(OR(Table_POSTInspection[[#This Row],[Line]]<=0,IFERROR(INDEX(Table_POSTInfo[],Table_POSTInspection[[#This Row],[Line]],C$3),\"\")=\"\"),\"\",INDEX(Table_POSTInfo[],Table_POSTInspection[[#This Row],[Line]],C$3)),\"\")","v":""},{"$f":"IFERROR(IF(OR(Table_POSTInspection[[#This Row],[Line]]<=0,IFERROR(INDEX(Table_POSTInfo[],Table_POSTInspection[[#This Row],[Line]],D$3),\"\")=\"\"),\"\",INDEX(Table_POSTInfo[],Table_POSTInspection[[#This Row],[Line]],D$3)),\"\")","v":""},null,{"$f":"IFERROR(IF(OR(Table_POSTInspection[[#This Row],[Line]]<=0,IFERROR(INDEX(Table_POSTInfo[],Table_POSTInspection[[#This Row],[Line]],F$3),\"\")=\"\"),\"\",INDEX(Table_POSTInfo[],Table_POSTInspection[[#This Row],[Line]],F$3)),\"\")","v":""},{"$f":"IFERROR(IF(OR(Table_POSTInspection[[#This Row],[Line]]<=0,IFERROR(INDEX(Table_POSTInfo[],Table_POSTInspection[[#This Row],[Line]],G$3),\"\")=\"\"),\"\",INDEX(Table_POSTInfo[],Table_POSTInspection[[#This Row],[Line]],G$3)),\"\")","v":""},{"$f":"IFERROR(IF(OR(Table_POSTInspection[[#This Row],[Line]]<=0,IFERROR(INDEX(Table_POSTInfo[],Table_POSTInspection[[#This Row],[Line]],H$3),\"\")=\"\"),\"\",INDEX(Table_POSTInfo[],Table_POSTInspection[[#This Row],[Line]],H$3)),\"\")","v":""},{"$f":"IFERROR(IF(OR(Table_POSTInspection[[#This Row],[Line]]<=0,IFERROR(INDEX(Table_POSTInfo[],Table_POSTInspection[[#This Row],[Line]],I$3),\"\")=\"\"),\"\",INDEX(Table_POSTInfo[],Table_POSTInspection[[#This Row],[Line]],I$3)),\"\")","v":""},{"$f":"IFERROR(IF(OR(Table_POSTInspection[[#This Row],[Line]]<=0,IFERROR(INDEX(Table_POSTInfo[],Table_POSTInspection[[#This Row],[Line]],J$3),\"\")=\"\"),\"\",INDEX(Table_POSTInfo[],Table_POSTInspection[[#This Row],[Line]],J$3)),\"\")","v":""},{"$f":"IFERROR(\nIFERROR(OFFSET(Table_TypWattage[[#Headers],[Technology]],MATCH($G35,Table_TypWattage[Technology],0)+MATCH($I35,INDIRECT(SUBSTITUTE(SUBSTITUTE($G35,\" \",\"_\"),\"-\",\"_\")),0)-1,MATCH($H35,'Measure Tables'!$Q$2:$V$2,0)+1),IF(Table_POSTInspection[[#This Row],[Schedule]]<>\"\",IF(AND($H35<>\"\",$H35>0,$I35>0),$H35*$I35,$I35),\"\")),\n\"\")","v":""},{"$f":"IFERROR(IF(OR(Table_POSTInspection[[#This Row],[Line]]<=0,IFERROR(INDEX(Table_POSTInfo[],Table_POSTInspection[[#This Row],[Line]],L$3),\"\")=\"\"),\"\",INDEX(Table_POSTInfo[],Table_POSTInspection[[#This Row],[Line]],L$3)),\"\")","v":""},{"$f":"IFERROR(IF(OR(Table_POSTInspection[[#This Row],[Line]]<=0,IFERROR(INDEX(Table_POSTInfo[],Table_POSTInspection[[#This Row],[Line]],M$3),\"\")=\"\"),\"\",INDEX(Table_POSTInfo[],Table_POSTInspection[[#This Row],[Line]],M$3)),\"\")","v":""},{"$f":"IFERROR(IF(Table_POSTInspection[[#This Row],[Interior/ Exterior]]<>\"\",\n  CONCATENATE(\n  Table_POSTInspection[[#This Row],[Fixture Technology '[P']]],\n  \" - \",Table_POSTInspection[[#This Row],[Fixture Type '[P']]],\" [\",\n  IF(Table_POSTInspection[[#This Row],['# Lamps/ Fixture '[P']]]>0,Table_POSTInspection[[#This Row],['# Lamps/ Fixture '[P']]] & \"L - \" & Table_POSTInspection[[#This Row],[Fixture/ Lamp Wattage '[P']]] & \"W\" & IF(Table_POSTInspection[[#This Row],[Ballast/ Driver '[P']]]<>\"\",\" - \" & Table_POSTInspection[[#This Row],[Ballast/ Driver '[P']]],\"\"),Table_POSTInspection[[#This Row],[Fixture Wattage '[P']]] & \"W\"),\"]\",\n  IF(AND(Table_POSTInspection[[#This Row],[Controls '[P']]]<>\"\",Table_POSTInspection[[#This Row],[Controls '[P']]]<>\"No Controls\"),\" - \" & Table_POSTInspection[[#This Row],[Controls '[P']]],\"\")\n  ),\n\"\"),\"\")","v":""},{"$f":"IFERROR(IF(OR(Table_POSTInspection[[#This Row],[Line]]<=0,IFERROR(INDEX(Table_POSTInfo[],Table_POSTInspection[[#This Row],[Line]],O$3),\"\")=\"\"),\"\",INDEX(Table_POSTInfo[],Table_POSTInspection[[#This Row],[Line]],O$3)),\"\")","v":""},{"$f":"IFERROR(IF(OR(Table_POSTInspection[[#This Row],[Line]]<=0,IFERROR(INDEX(Table_POSTInfo[],Table_POSTInspection[[#This Row],[Line]],P$3),\"\")=\"\"),\"\",INDEX(Table_POSTInfo[],Table_POSTInspection[[#This Row],[Line]],P$3)),\"\")","v":""},{"$f":"IFERROR(IF(OR(Table_POSTInspection[[#This Row],[Line]]<=0,IFERROR(INDEX(Table_POSTInfo[],Table_POSTInspection[[#This Row],[Line]],Q$3),\"\")=\"\"),\"\",INDEX(Table_POSTInfo[],Table_POSTInspection[[#This Row],[Line]],Q$3)),\"\")","v":""}]
[null,{"$f":"IFERROR(IF(OR(Table_POSTInspection[[#This Row],[Line]]<=0,IFERROR(INDEX(Table_POSTInfo[],Table_POSTInspection[[#This Row],[Line]],B$3),\"\")=\"\"),\"\",INDEX(Table_POSTInfo[],Table_POSTInspection[[#This Row],[Line]],B$3)),\"\")","v":""},{"$f":"IFERROR(IF(OR(Table_POSTInspection[[#This Row],[Line]]<=0,IFERROR(INDEX(Table_POSTInfo[],Table_POSTInspection[[#This Row],[Line]],C$3),\"\")=\"\"),\"\",INDEX(Table_POSTInfo[],Table_POSTInspection[[#This Row],[Line]],C$3)),\"\")","v":""},{"$f":"IFERROR(IF(OR(Table_POSTInspection[[#This Row],[Line]]<=0,IFERROR(INDEX(Table_POSTInfo[],Table_POSTInspection[[#This Row],[Line]],D$3),\"\")=\"\"),\"\",INDEX(Table_POSTInfo[],Table_POSTInspection[[#This Row],[Line]],D$3)),\"\")","v":""},null,{"$f":"IFERROR(IF(OR(Table_POSTInspection[[#This Row],[Line]]<=0,IFERROR(INDEX(Table_POSTInfo[],Table_POSTInspection[[#This Row],[Line]],F$3),\"\")=\"\"),\"\",INDEX(Table_POSTInfo[],Table_POSTInspection[[#This Row],[Line]],F$3)),\"\")","v":""},{"$f":"IFERROR(IF(OR(Table_POSTInspection[[#This Row],[Line]]<=0,IFERROR(INDEX(Table_POSTInfo[],Table_POSTInspection[[#This Row],[Line]],G$3),\"\")=\"\"),\"\",INDEX(Table_POSTInfo[],Table_POSTInspection[[#This Row],[Line]],G$3)),\"\")","v":""},{"$f":"IFERROR(IF(OR(Table_POSTInspection[[#This Row],[Line]]<=0,IFERROR(INDEX(Table_POSTInfo[],Table_POSTInspection[[#This Row],[Line]],H$3),\"\")=\"\"),\"\",INDEX(Table_POSTInfo[],Table_POSTInspection[[#This Row],[Line]],H$3)),\"\")","v":""},{"$f":"IFERROR(IF(OR(Table_POSTInspection[[#This Row],[Line]]<=0,IFERROR(INDEX(Table_POSTInfo[],Table_POSTInspection[[#This Row],[Line]],I$3),\"\")=\"\"),\"\",INDEX(Table_POSTInfo[],Table_POSTInspection[[#This Row],[Line]],I$3)),\"\")","v":""},{"$f":"IFERROR(IF(OR(Table_POSTInspection[[#This Row],[Line]]<=0,IFERROR(INDEX(Table_POSTInfo[],Table_POSTInspection[[#This Row],[Line]],J$3),\"\")=\"\"),\"\",INDEX(Table_POSTInfo[],Table_POSTInspection[[#This Row],[Line]],J$3)),\"\")","v":""},{"$f":"IFERROR(\nIFERROR(OFFSET(Table_TypWattage[[#Headers],[Technology]],MATCH($G36,Table_TypWattage[Technology],0)+MATCH($I36,INDIRECT(SUBSTITUTE(SUBSTITUTE($G36,\" \",\"_\"),\"-\",\"_\")),0)-1,MATCH($H36,'Measure Tables'!$Q$2:$V$2,0)+1),IF(Table_POSTInspection[[#This Row],[Schedule]]<>\"\",IF(AND($H36<>\"\",$H36>0,$I36>0),$H36*$I36,$I36),\"\")),\n\"\")","v":""},{"$f":"IFERROR(IF(OR(Table_POSTInspection[[#This Row],[Line]]<=0,IFERROR(INDEX(Table_POSTInfo[],Table_POSTInspection[[#This Row],[Line]],L$3),\"\")=\"\"),\"\",INDEX(Table_POSTInfo[],Table_POSTInspection[[#This Row],[Line]],L$3)),\"\")","v":""},{"$f":"IFERROR(IF(OR(Table_POSTInspection[[#This Row],[Line]]<=0,IFERROR(INDEX(Table_POSTInfo[],Table_POSTInspection[[#This Row],[Line]],M$3),\"\")=\"\"),\"\",INDEX(Table_POSTInfo[],Table_POSTInspection[[#This Row],[Line]],M$3)),\"\")","v":""},{"$f":"IFERROR(IF(Table_POSTInspection[[#This Row],[Interior/ Exterior]]<>\"\",\n  CONCATENATE(\n  Table_POSTInspection[[#This Row],[Fixture Technology '[P']]],\n  \" - \",Table_POSTInspection[[#This Row],[Fixture Type '[P']]],\" [\",\n  IF(Table_POSTInspection[[#This Row],['# Lamps/ Fixture '[P']]]>0,Table_POSTInspection[[#This Row],['# Lamps/ Fixture '[P']]] & \"L - \" & Table_POSTInspection[[#This Row],[Fixture/ Lamp Wattage '[P']]] & \"W\" & IF(Table_POSTInspection[[#This Row],[Ballast/ Driver '[P']]]<>\"\",\" - \" & Table_POSTInspection[[#This Row],[Ballast/ Driver '[P']]],\"\"),Table_POSTInspection[[#This Row],[Fixture Wattage '[P']]] & \"W\"),\"]\",\n  IF(AND(Table_POSTInspection[[#This Row],[Controls '[P']]]<>\"\",Table_POSTInspection[[#This Row],[Controls '[P']]]<>\"No Controls\"),\" - \" & Table_POSTInspection[[#This Row],[Controls '[P']]],\"\")\n  ),\n\"\"),\"\")","v":""},{"$f":"IFERROR(IF(OR(Table_POSTInspection[[#This Row],[Line]]<=0,IFERROR(INDEX(Table_POSTInfo[],Table_POSTInspection[[#This Row],[Line]],O$3),\"\")=\"\"),\"\",INDEX(Table_POSTInfo[],Table_POSTInspection[[#This Row],[Line]],O$3)),\"\")","v":""},{"$f":"IFERROR(IF(OR(Table_POSTInspection[[#This Row],[Line]]<=0,IFERROR(INDEX(Table_POSTInfo[],Table_POSTInspection[[#This Row],[Line]],P$3),\"\")=\"\"),\"\",INDEX(Table_POSTInfo[],Table_POSTInspection[[#This Row],[Line]],P$3)),\"\")","v":""},{"$f":"IFERROR(IF(OR(Table_POSTInspection[[#This Row],[Line]]<=0,IFERROR(INDEX(Table_POSTInfo[],Table_POSTInspection[[#This Row],[Line]],Q$3),\"\")=\"\"),\"\",INDEX(Table_POSTInfo[],Table_POSTInspection[[#This Row],[Line]],Q$3)),\"\")","v":""}]
[null,{"$f":"IFERROR(IF(OR(Table_POSTInspection[[#This Row],[Line]]<=0,IFERROR(INDEX(Table_POSTInfo[],Table_POSTInspection[[#This Row],[Line]],B$3),\"\")=\"\"),\"\",INDEX(Table_POSTInfo[],Table_POSTInspection[[#This Row],[Line]],B$3)),\"\")","v":""},{"$f":"IFERROR(IF(OR(Table_POSTInspection[[#This Row],[Line]]<=0,IFERROR(INDEX(Table_POSTInfo[],Table_POSTInspection[[#This Row],[Line]],C$3),\"\")=\"\"),\"\",INDEX(Table_POSTInfo[],Table_POSTInspection[[#This Row],[Line]],C$3)),\"\")","v":""},{"$f":"IFERROR(IF(OR(Table_POSTInspection[[#This Row],[Line]]<=0,IFERROR(INDEX(Table_POSTInfo[],Table_POSTInspection[[#This Row],[Line]],D$3),\"\")=\"\"),\"\",INDEX(Table_POSTInfo[],Table_POSTInspection[[#This Row],[Line]],D$3)),\"\")","v":""},null,{"$f":"IFERROR(IF(OR(Table_POSTInspection[[#This Row],[Line]]<=0,IFERROR(INDEX(Table_POSTInfo[],Table_POSTInspection[[#This Row],[Line]],F$3),\"\")=\"\"),\"\",INDEX(Table_POSTInfo[],Table_POSTInspection[[#This Row],[Line]],F$3)),\"\")","v":""},{"$f":"IFERROR(IF(OR(Table_POSTInspection[[#This Row],[Line]]<=0,IFERROR(INDEX(Table_POSTInfo[],Table_POSTInspection[[#This Row],[Line]],G$3),\"\")=\"\"),\"\",INDEX(Table_POSTInfo[],Table_POSTInspection[[#This Row],[Line]],G$3)),\"\")","v":""},{"$f":"IFERROR(IF(OR(Table_POSTInspection[[#This Row],[Line]]<=0,IFERROR(INDEX(Table_POSTInfo[],Table_POSTInspection[[#This Row],[Line]],H$3),\"\")=\"\"),\"\",INDEX(Table_POSTInfo[],Table_POSTInspection[[#This Row],[Line]],H$3)),\"\")","v":""},{"$f":"IFERROR(IF(OR(Table_POSTInspection[[#This Row],[Line]]<=0,IFERROR(INDEX(Table_POSTInfo[],Table_POSTInspection[[#This Row],[Line]],I$3),\"\")=\"\"),\"\",INDEX(Table_POSTInfo[],Table_POSTInspection[[#This Row],[Line]],I$3)),\"\")","v":""},{"$f":"IFERROR(IF(OR(Table_POSTInspection[[#This Row],[Line]]<=0,IFERROR(INDEX(Table_POSTInfo[],Table_POSTInspection[[#This Row],[Line]],J$3),\"\")=\"\"),\"\",INDEX(Table_POSTInfo[],Table_POSTInspection[[#This Row],[Line]],J$3)),\"\")","v":""},{"$f":"IFERROR(\nIFERROR(OFFSET(Table_TypWattage[[#Headers],[Technology]],MATCH($G37,Table_TypWattage[Technology],0)+MATCH($I37,INDIRECT(SUBSTITUTE(SUBSTITUTE($G37,\" \",\"_\"),\"-\",\"_\")),0)-1,MATCH($H37,'Measure Tables'!$Q$2:$V$2,0)+1),IF(Table_POSTInspection[[#This Row],[Schedule]]<>\"\",IF(AND($H37<>\"\",$H37>0,$I37>0),$H37*$I37,$I37),\"\")),\n\"\")","v":""},{"$f":"IFERROR(IF(OR(Table_POSTInspection[[#This Row],[Line]]<=0,IFERROR(INDEX(Table_POSTInfo[],Table_POSTInspection[[#This Row],[Line]],L$3),\"\")=\"\"),\"\",INDEX(Table_POSTInfo[],Table_POSTInspection[[#This Row],[Line]],L$3)),\"\")","v":""},{"$f":"IFERROR(IF(OR(Table_POSTInspection[[#This Row],[Line]]<=0,IFERROR(INDEX(Table_POSTInfo[],Table_POSTInspection[[#This Row],[Line]],M$3),\"\")=\"\"),\"\",INDEX(Table_POSTInfo[],Table_POSTInspection[[#This Row],[Line]],M$3)),\"\")","v":""},{"$f":"IFERROR(IF(Table_POSTInspection[[#This Row],[Interior/ Exterior]]<>\"\",\n  CONCATENATE(\n  Table_POSTInspection[[#This Row],[Fixture Technology '[P']]],\n  \" - \",Table_POSTInspection[[#This Row],[Fixture Type '[P']]],\" [\",\n  IF(Table_POSTInspection[[#This Row],['# Lamps/ Fixture '[P']]]>0,Table_POSTInspection[[#This Row],['# Lamps/ Fixture '[P']]] & \"L - \" & Table_POSTInspection[[#This Row],[Fixture/ Lamp Wattage '[P']]] & \"W\" & IF(Table_POSTInspection[[#This Row],[Ballast/ Driver '[P']]]<>\"\",\" - \" & Table_POSTInspection[[#This Row],[Ballast/ Driver '[P']]],\"\"),Table_POSTInspection[[#This Row],[Fixture Wattage '[P']]] & \"W\"),\"]\",\n  IF(AND(Table_POSTInspection[[#This Row],[Controls '[P']]]<>\"\",Table_POSTInspection[[#This Row],[Controls '[P']]]<>\"No Controls\"),\" - \" & Table_POSTInspection[[#This Row],[Controls '[P']]],\"\")\n  ),\n\"\"),\"\")","v":""},{"$f":"IFERROR(IF(OR(Table_POSTInspection[[#This Row],[Line]]<=0,IFERROR(INDEX(Table_POSTInfo[],Table_POSTInspection[[#This Row],[Line]],O$3),\"\")=\"\"),\"\",INDEX(Table_POSTInfo[],Table_POSTInspection[[#This Row],[Line]],O$3)),\"\")","v":""},{"$f":"IFERROR(IF(OR(Table_POSTInspection[[#This Row],[Line]]<=0,IFERROR(INDEX(Table_POSTInfo[],Table_POSTInspection[[#This Row],[Line]],P$3),\"\")=\"\"),\"\",INDEX(Table_POSTInfo[],Table_POSTInspection[[#This Row],[Line]],P$3)),\"\")","v":""},{"$f":"IFERROR(IF(OR(Table_POSTInspection[[#This Row],[Line]]<=0,IFERROR(INDEX(Table_POSTInfo[],Table_POSTInspection[[#This Row],[Line]],Q$3),\"\")=\"\"),\"\",INDEX(Table_POSTInfo[],Table_POSTInspection[[#This Row],[Line]],Q$3)),\"\")","v":""}]
[null,{"$f":"IFERROR(IF(OR(Table_POSTInspection[[#This Row],[Line]]<=0,IFERROR(INDEX(Table_POSTInfo[],Table_POSTInspection[[#This Row],[Line]],B$3),\"\")=\"\"),\"\",INDEX(Table_POSTInfo[],Table_POSTInspection[[#This Row],[Line]],B$3)),\"\")","v":""},{"$f":"IFERROR(IF(OR(Table_POSTInspection[[#This Row],[Line]]<=0,IFERROR(INDEX(Table_POSTInfo[],Table_POSTInspection[[#This Row],[Line]],C$3),\"\")=\"\"),\"\",INDEX(Table_POSTInfo[],Table_POSTInspection[[#This Row],[Line]],C$3)),\"\")","v":""},{"$f":"IFERROR(IF(OR(Table_POSTInspection[[#This Row],[Line]]<=0,IFERROR(INDEX(Table_POSTInfo[],Table_POSTInspection[[#This Row],[Line]],D$3),\"\")=\"\"),\"\",INDEX(Table_POSTInfo[],Table_POSTInspection[[#This Row],[Line]],D$3)),\"\")","v":""},null,{"$f":"IFERROR(IF(OR(Table_POSTInspection[[#This Row],[Line]]<=0,IFERROR(INDEX(Table_POSTInfo[],Table_POSTInspection[[#This Row],[Line]],F$3),\"\")=\"\"),\"\",INDEX(Table_POSTInfo[],Table_POSTInspection[[#This Row],[Line]],F$3)),\"\")","v":""},{"$f":"IFERROR(IF(OR(Table_POSTInspection[[#This Row],[Line]]<=0,IFERROR(INDEX(Table_POSTInfo[],Table_POSTInspection[[#This Row],[Line]],G$3),\"\")=\"\"),\"\",INDEX(Table_POSTInfo[],Table_POSTInspection[[#This Row],[Line]],G$3)),\"\")","v":""},{"$f":"IFERROR(IF(OR(Table_POSTInspection[[#This Row],[Line]]<=0,IFERROR(INDEX(Table_POSTInfo[],Table_POSTInspection[[#This Row],[Line]],H$3),\"\")=\"\"),\"\",INDEX(Table_POSTInfo[],Table_POSTInspection[[#This Row],[Line]],H$3)),\"\")","v":""},{"$f":"IFERROR(IF(OR(Table_POSTInspection[[#This Row],[Line]]<=0,IFERROR(INDEX(Table_POSTInfo[],Table_POSTInspection[[#This Row],[Line]],I$3),\"\")=\"\"),\"\",INDEX(Table_POSTInfo[],Table_POSTInspection[[#This Row],[Line]],I$3)),\"\")","v":""},{"$f":"IFERROR(IF(OR(Table_POSTInspection[[#This Row],[Line]]<=0,IFERROR(INDEX(Table_POSTInfo[],Table_POSTInspection[[#This Row],[Line]],J$3),\"\")=\"\"),\"\",INDEX(Table_POSTInfo[],Table_POSTInspection[[#This Row],[Line]],J$3)),\"\")","v":""},{"$f":"IFERROR(\nIFERROR(OFFSET(Table_TypWattage[[#Headers],[Technology]],MATCH($G38,Table_TypWattage[Technology],0)+MATCH($I38,INDIRECT(SUBSTITUTE(SUBSTITUTE($G38,\" \",\"_\"),\"-\",\"_\")),0)-1,MATCH($H38,'Measure Tables'!$Q$2:$V$2,0)+1),IF(Table_POSTInspection[[#This Row],[Schedule]]<>\"\",IF(AND($H38<>\"\",$H38>0,$I38>0),$H38*$I38,$I38),\"\")),\n\"\")","v":""},{"$f":"IFERROR(IF(OR(Table_POSTInspection[[#This Row],[Line]]<=0,IFERROR(INDEX(Table_POSTInfo[],Table_POSTInspection[[#This Row],[Line]],L$3),\"\")=\"\"),\"\",INDEX(Table_POSTInfo[],Table_POSTInspection[[#This Row],[Line]],L$3)),\"\")","v":""},{"$f":"IFERROR(IF(OR(Table_POSTInspection[[#This Row],[Line]]<=0,IFERROR(INDEX(Table_POSTInfo[],Table_POSTInspection[[#This Row],[Line]],M$3),\"\")=\"\"),\"\",INDEX(Table_POSTInfo[],Table_POSTInspection[[#This Row],[Line]],M$3)),\"\")","v":""},{"$f":"IFERROR(IF(Table_POSTInspection[[#This Row],[Interior/ Exterior]]<>\"\",\n  CONCATENATE(\n  Table_POSTInspection[[#This Row],[Fixture Technology '[P']]],\n  \" - \",Table_POSTInspection[[#This Row],[Fixture Type '[P']]],\" [\",\n  IF(Table_POSTInspection[[#This Row],['# Lamps/ Fixture '[P']]]>0,Table_POSTInspection[[#This Row],['# Lamps/ Fixture '[P']]] & \"L - \" & Table_POSTInspection[[#This Row],[Fixture/ Lamp Wattage '[P']]] & \"W\" & IF(Table_POSTInspection[[#This Row],[Ballast/ Driver '[P']]]<>\"\",\" - \" & Table_POSTInspection[[#This Row],[Ballast/ Driver '[P']]],\"\"),Table_POSTInspection[[#This Row],[Fixture Wattage '[P']]] & \"W\"),\"]\",\n  IF(AND(Table_POSTInspection[[#This Row],[Controls '[P']]]<>\"\",Table_POSTInspection[[#This Row],[Controls '[P']]]<>\"No Controls\"),\" - \" & Table_POSTInspection[[#This Row],[Controls '[P']]],\"\")\n  ),\n\"\"),\"\")","v":""},{"$f":"IFERROR(IF(OR(Table_POSTInspection[[#This Row],[Line]]<=0,IFERROR(INDEX(Table_POSTInfo[],Table_POSTInspection[[#This Row],[Line]],O$3),\"\")=\"\"),\"\",INDEX(Table_POSTInfo[],Table_POSTInspection[[#This Row],[Line]],O$3)),\"\")","v":""},{"$f":"IFERROR(IF(OR(Table_POSTInspection[[#This Row],[Line]]<=0,IFERROR(INDEX(Table_POSTInfo[],Table_POSTInspection[[#This Row],[Line]],P$3),\"\")=\"\"),\"\",INDEX(Table_POSTInfo[],Table_POSTInspection[[#This Row],[Line]],P$3)),\"\")","v":""},{"$f":"IFERROR(IF(OR(Table_POSTInspection[[#This Row],[Line]]<=0,IFERROR(INDEX(Table_POSTInfo[],Table_POSTInspection[[#This Row],[Line]],Q$3),\"\")=\"\"),\"\",INDEX(Table_POSTInfo[],Table_POSTInspection[[#This Row],[Line]],Q$3)),\"\")","v":""}]
[null,{"$f":"IFERROR(IF(OR(Table_POSTInspection[[#This Row],[Line]]<=0,IFERROR(INDEX(Table_POSTInfo[],Table_POSTInspection[[#This Row],[Line]],B$3),\"\")=\"\"),\"\",INDEX(Table_POSTInfo[],Table_POSTInspection[[#This Row],[Line]],B$3)),\"\")","v":""},{"$f":"IFERROR(IF(OR(Table_POSTInspection[[#This Row],[Line]]<=0,IFERROR(INDEX(Table_POSTInfo[],Table_POSTInspection[[#This Row],[Line]],C$3),\"\")=\"\"),\"\",INDEX(Table_POSTInfo[],Table_POSTInspection[[#This Row],[Line]],C$3)),\"\")","v":""},{"$f":"IFERROR(IF(OR(Table_POSTInspection[[#This Row],[Line]]<=0,IFERROR(INDEX(Table_POSTInfo[],Table_POSTInspection[[#This Row],[Line]],D$3),\"\")=\"\"),\"\",INDEX(Table_POSTInfo[],Table_POSTInspection[[#This Row],[Line]],D$3)),\"\")","v":""},null,{"$f":"IFERROR(IF(OR(Table_POSTInspection[[#This Row],[Line]]<=0,IFERROR(INDEX(Table_POSTInfo[],Table_POSTInspection[[#This Row],[Line]],F$3),\"\")=\"\"),\"\",INDEX(Table_POSTInfo[],Table_POSTInspection[[#This Row],[Line]],F$3)),\"\")","v":""},{"$f":"IFERROR(IF(OR(Table_POSTInspection[[#This Row],[Line]]<=0,IFERROR(INDEX(Table_POSTInfo[],Table_POSTInspection[[#This Row],[Line]],G$3),\"\")=\"\"),\"\",INDEX(Table_POSTInfo[],Table_POSTInspection[[#This Row],[Line]],G$3)),\"\")","v":""},{"$f":"IFERROR(IF(OR(Table_POSTInspection[[#This Row],[Line]]<=0,IFERROR(INDEX(Table_POSTInfo[],Table_POSTInspection[[#This Row],[Line]],H$3),\"\")=\"\"),\"\",INDEX(Table_POSTInfo[],Table_POSTInspection[[#This Row],[Line]],H$3)),\"\")","v":""},{"$f":"IFERROR(IF(OR(Table_POSTInspection[[#This Row],[Line]]<=0,IFERROR(INDEX(Table_POSTInfo[],Table_POSTInspection[[#This Row],[Line]],I$3),\"\")=\"\"),\"\",INDEX(Table_POSTInfo[],Table_POSTInspection[[#This Row],[Line]],I$3)),\"\")","v":""},{"$f":"IFERROR(IF(OR(Table_POSTInspection[[#This Row],[Line]]<=0,IFERROR(INDEX(Table_POSTInfo[],Table_POSTInspection[[#This Row],[Line]],J$3),\"\")=\"\"),\"\",INDEX(Table_POSTInfo[],Table_POSTInspection[[#This Row],[Line]],J$3)),\"\")","v":""},{"$f":"IFERROR(\nIFERROR(OFFSET(Table_TypWattage[[#Headers],[Technology]],MATCH($G39,Table_TypWattage[Technology],0)+MATCH($I39,INDIRECT(SUBSTITUTE(SUBSTITUTE($G39,\" \",\"_\"),\"-\",\"_\")),0)-1,MATCH($H39,'Measure Tables'!$Q$2:$V$2,0)+1),IF(Table_POSTInspection[[#This Row],[Schedule]]<>\"\",IF(AND($H39<>\"\",$H39>0,$I39>0),$H39*$I39,$I39),\"\")),\n\"\")","v":""},{"$f":"IFERROR(IF(OR(Table_POSTInspection[[#This Row],[Line]]<=0,IFERROR(INDEX(Table_POSTInfo[],Table_POSTInspection[[#This Row],[Line]],L$3),\"\")=\"\"),\"\",INDEX(Table_POSTInfo[],Table_POSTInspection[[#This Row],[Line]],L$3)),\"\")","v":""},{"$f":"IFERROR(IF(OR(Table_POSTInspection[[#This Row],[Line]]<=0,IFERROR(INDEX(Table_POSTInfo[],Table_POSTInspection[[#This Row],[Line]],M$3),\"\")=\"\"),\"\",INDEX(Table_POSTInfo[],Table_POSTInspection[[#This Row],[Line]],M$3)),\"\")","v":""},{"$f":"IFERROR(IF(Table_POSTInspection[[#This Row],[Interior/ Exterior]]<>\"\",\n  CONCATENATE(\n  Table_POSTInspection[[#This Row],[Fixture Technology '[P']]],\n  \" - \",Table_POSTInspection[[#This Row],[Fixture Type '[P']]],\" [\",\n  IF(Table_POSTInspection[[#This Row],['# Lamps/ Fixture '[P']]]>0,Table_POSTInspection[[#This Row],['# Lamps/ Fixture '[P']]] & \"L - \" & Table_POSTInspection[[#This Row],[Fixture/ Lamp Wattage '[P']]] & \"W\" & IF(Table_POSTInspection[[#This Row],[Ballast/ Driver '[P']]]<>\"\",\" - \" & Table_POSTInspection[[#This Row],[Ballast/ Driver '[P']]],\"\"),Table_POSTInspection[[#This Row],[Fixture Wattage '[P']]] & \"W\"),\"]\",\n  IF(AND(Table_POSTInspection[[#This Row],[Controls '[P']]]<>\"\",Table_POSTInspection[[#This Row],[Controls '[P']]]<>\"No Controls\"),\" - \" & Table_POSTInspection[[#This Row],[Controls '[P']]],\"\")\n  ),\n\"\"),\"\")","v":""},{"$f":"IFERROR(IF(OR(Table_POSTInspection[[#This Row],[Line]]<=0,IFERROR(INDEX(Table_POSTInfo[],Table_POSTInspection[[#This Row],[Line]],O$3),\"\")=\"\"),\"\",INDEX(Table_POSTInfo[],Table_POSTInspection[[#This Row],[Line]],O$3)),\"\")","v":""},{"$f":"IFERROR(IF(OR(Table_POSTInspection[[#This Row],[Line]]<=0,IFERROR(INDEX(Table_POSTInfo[],Table_POSTInspection[[#This Row],[Line]],P$3),\"\")=\"\"),\"\",INDEX(Table_POSTInfo[],Table_POSTInspection[[#This Row],[Line]],P$3)),\"\")","v":""},{"$f":"IFERROR(IF(OR(Table_POSTInspection[[#This Row],[Line]]<=0,IFERROR(INDEX(Table_POSTInfo[],Table_POSTInspection[[#This Row],[Line]],Q$3),\"\")=\"\"),\"\",INDEX(Table_POSTInfo[],Table_POSTInspection[[#This Row],[Line]],Q$3)),\"\")","v":""}]
[null,{"$f":"IFERROR(IF(OR(Table_POSTInspection[[#This Row],[Line]]<=0,IFERROR(INDEX(Table_POSTInfo[],Table_POSTInspection[[#This Row],[Line]],B$3),\"\")=\"\"),\"\",INDEX(Table_POSTInfo[],Table_POSTInspection[[#This Row],[Line]],B$3)),\"\")","v":""},{"$f":"IFERROR(IF(OR(Table_POSTInspection[[#This Row],[Line]]<=0,IFERROR(INDEX(Table_POSTInfo[],Table_POSTInspection[[#This Row],[Line]],C$3),\"\")=\"\"),\"\",INDEX(Table_POSTInfo[],Table_POSTInspection[[#This Row],[Line]],C$3)),\"\")","v":""},{"$f":"IFERROR(IF(OR(Table_POSTInspection[[#This Row],[Line]]<=0,IFERROR(INDEX(Table_POSTInfo[],Table_POSTInspection[[#This Row],[Line]],D$3),\"\")=\"\"),\"\",INDEX(Table_POSTInfo[],Table_POSTInspection[[#This Row],[Line]],D$3)),\"\")","v":""},null,{"$f":"IFERROR(IF(OR(Table_POSTInspection[[#This Row],[Line]]<=0,IFERROR(INDEX(Table_POSTInfo[],Table_POSTInspection[[#This Row],[Line]],F$3),\"\")=\"\"),\"\",INDEX(Table_POSTInfo[],Table_POSTInspection[[#This Row],[Line]],F$3)),\"\")","v":""},{"$f":"IFERROR(IF(OR(Table_POSTInspection[[#This Row],[Line]]<=0,IFERROR(INDEX(Table_POSTInfo[],Table_POSTInspection[[#This Row],[Line]],G$3),\"\")=\"\"),\"\",INDEX(Table_POSTInfo[],Table_POSTInspection[[#This Row],[Line]],G$3)),\"\")","v":""},{"$f":"IFERROR(IF(OR(Table_POSTInspection[[#This Row],[Line]]<=0,IFERROR(INDEX(Table_POSTInfo[],Table_POSTInspection[[#This Row],[Line]],H$3),\"\")=\"\"),\"\",INDEX(Table_POSTInfo[],Table_POSTInspection[[#This Row],[Line]],H$3)),\"\")","v":""},{"$f":"IFERROR(IF(OR(Table_POSTInspection[[#This Row],[Line]]<=0,IFERROR(INDEX(Table_POSTInfo[],Table_POSTInspection[[#This Row],[Line]],I$3),\"\")=\"\"),\"\",INDEX(Table_POSTInfo[],Table_POSTInspection[[#This Row],[Line]],I$3)),\"\")","v":""},{"$f":"IFERROR(IF(OR(Table_POSTInspection[[#This Row],[Line]]<=0,IFERROR(INDEX(Table_POSTInfo[],Table_POSTInspection[[#This Row],[Line]],J$3),\"\")=\"\"),\"\",INDEX(Table_POSTInfo[],Table_POSTInspection[[#This Row],[Line]],J$3)),\"\")","v":""},{"$f":"IFERROR(\nIFERROR(OFFSET(Table_TypWattage[[#Headers],[Technology]],MATCH($G40,Table_TypWattage[Technology],0)+MATCH($I40,INDIRECT(SUBSTITUTE(SUBSTITUTE($G40,\" \",\"_\"),\"-\",\"_\")),0)-1,MATCH($H40,'Measure Tables'!$Q$2:$V$2,0)+1),IF(Table_POSTInspection[[#This Row],[Schedule]]<>\"\",IF(AND($H40<>\"\",$H40>0,$I40>0),$H40*$I40,$I40),\"\")),\n\"\")","v":""},{"$f":"IFERROR(IF(OR(Table_POSTInspection[[#This Row],[Line]]<=0,IFERROR(INDEX(Table_POSTInfo[],Table_POSTInspection[[#This Row],[Line]],L$3),\"\")=\"\"),\"\",INDEX(Table_POSTInfo[],Table_POSTInspection[[#This Row],[Line]],L$3)),\"\")","v":""},{"$f":"IFERROR(IF(OR(Table_POSTInspection[[#This Row],[Line]]<=0,IFERROR(INDEX(Table_POSTInfo[],Table_POSTInspection[[#This Row],[Line]],M$3),\"\")=\"\"),\"\",INDEX(Table_POSTInfo[],Table_POSTInspection[[#This Row],[Line]],M$3)),\"\")","v":""},{"$f":"IFERROR(IF(Table_POSTInspection[[#This Row],[Interior/ Exterior]]<>\"\",\n  CONCATENATE(\n  Table_POSTInspection[[#This Row],[Fixture Technology '[P']]],\n  \" - \",Table_POSTInspection[[#This Row],[Fixture Type '[P']]],\" [\",\n  IF(Table_POSTInspection[[#This Row],['# Lamps/ Fixture '[P']]]>0,Table_POSTInspection[[#This Row],['# Lamps/ Fixture '[P']]] & \"L - \" & Table_POSTInspection[[#This Row],[Fixture/ Lamp Wattage '[P']]] & \"W\" & IF(Table_POSTInspection[[#This Row],[Ballast/ Driver '[P']]]<>\"\",\" - \" & Table_POSTInspection[[#This Row],[Ballast/ Driver '[P']]],\"\"),Table_POSTInspection[[#This Row],[Fixture Wattage '[P']]] & \"W\"),\"]\",\n  IF(AND(Table_POSTInspection[[#This Row],[Controls '[P']]]<>\"\",Table_POSTInspection[[#This Row],[Controls '[P']]]<>\"No Controls\"),\" - \" & Table_POSTInspection[[#This Row],[Controls '[P']]],\"\")\n  ),\n\"\"),\"\")","v":""},{"$f":"IFERROR(IF(OR(Table_POSTInspection[[#This Row],[Line]]<=0,IFERROR(INDEX(Table_POSTInfo[],Table_POSTInspection[[#This Row],[Line]],O$3),\"\")=\"\"),\"\",INDEX(Table_POSTInfo[],Table_POSTInspection[[#This Row],[Line]],O$3)),\"\")","v":""},{"$f":"IFERROR(IF(OR(Table_POSTInspection[[#This Row],[Line]]<=0,IFERROR(INDEX(Table_POSTInfo[],Table_POSTInspection[[#This Row],[Line]],P$3),\"\")=\"\"),\"\",INDEX(Table_POSTInfo[],Table_POSTInspection[[#This Row],[Line]],P$3)),\"\")","v":""},{"$f":"IFERROR(IF(OR(Table_POSTInspection[[#This Row],[Line]]<=0,IFERROR(INDEX(Table_POSTInfo[],Table_POSTInspection[[#This Row],[Line]],Q$3),\"\")=\"\"),\"\",INDEX(Table_POSTInfo[],Table_POSTInspection[[#This Row],[Line]],Q$3)),\"\")","v":""}]
[null,{"$f":"IFERROR(IF(OR(Table_POSTInspection[[#This Row],[Line]]<=0,IFERROR(INDEX(Table_POSTInfo[],Table_POSTInspection[[#This Row],[Line]],B$3),\"\")=\"\"),\"\",INDEX(Table_POSTInfo[],Table_POSTInspection[[#This Row],[Line]],B$3)),\"\")","v":""},{"$f":"IFERROR(IF(OR(Table_POSTInspection[[#This Row],[Line]]<=0,IFERROR(INDEX(Table_POSTInfo[],Table_POSTInspection[[#This Row],[Line]],C$3),\"\")=\"\"),\"\",INDEX(Table_POSTInfo[],Table_POSTInspection[[#This Row],[Line]],C$3)),\"\")","v":""},{"$f":"IFERROR(IF(OR(Table_POSTInspection[[#This Row],[Line]]<=0,IFERROR(INDEX(Table_POSTInfo[],Table_POSTInspection[[#This Row],[Line]],D$3),\"\")=\"\"),\"\",INDEX(Table_POSTInfo[],Table_POSTInspection[[#This Row],[Line]],D$3)),\"\")","v":""},null,{"$f":"IFERROR(IF(OR(Table_POSTInspection[[#This Row],[Line]]<=0,IFERROR(INDEX(Table_POSTInfo[],Table_POSTInspection[[#This Row],[Line]],F$3),\"\")=\"\"),\"\",INDEX(Table_POSTInfo[],Table_POSTInspection[[#This Row],[Line]],F$3)),\"\")","v":""},{"$f":"IFERROR(IF(OR(Table_POSTInspection[[#This Row],[Line]]<=0,IFERROR(INDEX(Table_POSTInfo[],Table_POSTInspection[[#This Row],[Line]],G$3),\"\")=\"\"),\"\",INDEX(Table_POSTInfo[],Table_POSTInspection[[#This Row],[Line]],G$3)),\"\")","v":""},{"$f":"IFERROR(IF(OR(Table_POSTInspection[[#This Row],[Line]]<=0,IFERROR(INDEX(Table_POSTInfo[],Table_POSTInspection[[#This Row],[Line]],H$3),\"\")=\"\"),\"\",INDEX(Table_POSTInfo[],Table_POSTInspection[[#This Row],[Line]],H$3)),\"\")","v":""},{"$f":"IFERROR(IF(OR(Table_POSTInspection[[#This Row],[Line]]<=0,IFERROR(INDEX(Table_POSTInfo[],Table_POSTInspection[[#This Row],[Line]],I$3),\"\")=\"\"),\"\",INDEX(Table_POSTInfo[],Table_POSTInspection[[#This Row],[Line]],I$3)),\"\")","v":""},{"$f":"IFERROR(IF(OR(Table_POSTInspection[[#This Row],[Line]]<=0,IFERROR(INDEX(Table_POSTInfo[],Table_POSTInspection[[#This Row],[Line]],J$3),\"\")=\"\"),\"\",INDEX(Table_POSTInfo[],Table_POSTInspection[[#This Row],[Line]],J$3)),\"\")","v":""},{"$f":"IFERROR(\nIFERROR(OFFSET(Table_TypWattage[[#Headers],[Technology]],MATCH($G41,Table_TypWattage[Technology],0)+MATCH($I41,INDIRECT(SUBSTITUTE(SUBSTITUTE($G41,\" \",\"_\"),\"-\",\"_\")),0)-1,MATCH($H41,'Measure Tables'!$Q$2:$V$2,0)+1),IF(Table_POSTInspection[[#This Row],[Schedule]]<>\"\",IF(AND($H41<>\"\",$H41>0,$I41>0),$H41*$I41,$I41),\"\")),\n\"\")","v":""},{"$f":"IFERROR(IF(OR(Table_POSTInspection[[#This Row],[Line]]<=0,IFERROR(INDEX(Table_POSTInfo[],Table_POSTInspection[[#This Row],[Line]],L$3),\"\")=\"\"),\"\",INDEX(Table_POSTInfo[],Table_POSTInspection[[#This Row],[Line]],L$3)),\"\")","v":""},{"$f":"IFERROR(IF(OR(Table_POSTInspection[[#This Row],[Line]]<=0,IFERROR(INDEX(Table_POSTInfo[],Table_POSTInspection[[#This Row],[Line]],M$3),\"\")=\"\"),\"\",INDEX(Table_POSTInfo[],Table_POSTInspection[[#This Row],[Line]],M$3)),\"\")","v":""},{"$f":"IFERROR(IF(Table_POSTInspection[[#This Row],[Interior/ Exterior]]<>\"\",\n  CONCATENATE(\n  Table_POSTInspection[[#This Row],[Fixture Technology '[P']]],\n  \" - \",Table_POSTInspection[[#This Row],[Fixture Type '[P']]],\" [\",\n  IF(Table_POSTInspection[[#This Row],['# Lamps/ Fixture '[P']]]>0,Table_POSTInspection[[#This Row],['# Lamps/ Fixture '[P']]] & \"L - \" & Table_POSTInspection[[#This Row],[Fixture/ Lamp Wattage '[P']]] & \"W\" & IF(Table_POSTInspection[[#This Row],[Ballast/ Driver '[P']]]<>\"\",\" - \" & Table_POSTInspection[[#This Row],[Ballast/ Driver '[P']]],\"\"),Table_POSTInspection[[#This Row],[Fixture Wattage '[P']]] & \"W\"),\"]\",\n  IF(AND(Table_POSTInspection[[#This Row],[Controls '[P']]]<>\"\",Table_POSTInspection[[#This Row],[Controls '[P']]]<>\"No Controls\"),\" - \" & Table_POSTInspection[[#This Row],[Controls '[P']]],\"\")\n  ),\n\"\"),\"\")","v":""},{"$f":"IFERROR(IF(OR(Table_POSTInspection[[#This Row],[Line]]<=0,IFERROR(INDEX(Table_POSTInfo[],Table_POSTInspection[[#This Row],[Line]],O$3),\"\")=\"\"),\"\",INDEX(Table_POSTInfo[],Table_POSTInspection[[#This Row],[Line]],O$3)),\"\")","v":""},{"$f":"IFERROR(IF(OR(Table_POSTInspection[[#This Row],[Line]]<=0,IFERROR(INDEX(Table_POSTInfo[],Table_POSTInspection[[#This Row],[Line]],P$3),\"\")=\"\"),\"\",INDEX(Table_POSTInfo[],Table_POSTInspection[[#This Row],[Line]],P$3)),\"\")","v":""},{"$f":"IFERROR(IF(OR(Table_POSTInspection[[#This Row],[Line]]<=0,IFERROR(INDEX(Table_POSTInfo[],Table_POSTInspection[[#This Row],[Line]],Q$3),\"\")=\"\"),\"\",INDEX(Table_POSTInfo[],Table_POSTInspection[[#This Row],[Line]],Q$3)),\"\")","v":""}]
[null,{"$f":"IFERROR(IF(OR(Table_POSTInspection[[#This Row],[Line]]<=0,IFERROR(INDEX(Table_POSTInfo[],Table_POSTInspection[[#This Row],[Line]],B$3),\"\")=\"\"),\"\",INDEX(Table_POSTInfo[],Table_POSTInspection[[#This Row],[Line]],B$3)),\"\")","v":""},{"$f":"IFERROR(IF(OR(Table_POSTInspection[[#This Row],[Line]]<=0,IFERROR(INDEX(Table_POSTInfo[],Table_POSTInspection[[#This Row],[Line]],C$3),\"\")=\"\"),\"\",INDEX(Table_POSTInfo[],Table_POSTInspection[[#This Row],[Line]],C$3)),\"\")","v":""},{"$f":"IFERROR(IF(OR(Table_POSTInspection[[#This Row],[Line]]<=0,IFERROR(INDEX(Table_POSTInfo[],Table_POSTInspection[[#This Row],[Line]],D$3),\"\")=\"\"),\"\",INDEX(Table_POSTInfo[],Table_POSTInspection[[#This Row],[Line]],D$3)),\"\")","v":""},null,{"$f":"IFERROR(IF(OR(Table_POSTInspection[[#This Row],[Line]]<=0,IFERROR(INDEX(Table_POSTInfo[],Table_POSTInspection[[#This Row],[Line]],F$3),\"\")=\"\"),\"\",INDEX(Table_POSTInfo[],Table_POSTInspection[[#This Row],[Line]],F$3)),\"\")","v":""},{"$f":"IFERROR(IF(OR(Table_POSTInspection[[#This Row],[Line]]<=0,IFERROR(INDEX(Table_POSTInfo[],Table_POSTInspection[[#This Row],[Line]],G$3),\"\")=\"\"),\"\",INDEX(Table_POSTInfo[],Table_POSTInspection[[#This Row],[Line]],G$3)),\"\")","v":""},{"$f":"IFERROR(IF(OR(Table_POSTInspection[[#This Row],[Line]]<=0,IFERROR(INDEX(Table_POSTInfo[],Table_POSTInspection[[#This Row],[Line]],H$3),\"\")=\"\"),\"\",INDEX(Table_POSTInfo[],Table_POSTInspection[[#This Row],[Line]],H$3)),\"\")","v":""},{"$f":"IFERROR(IF(OR(Table_POSTInspection[[#This Row],[Line]]<=0,IFERROR(INDEX(Table_POSTInfo[],Table_POSTInspection[[#This Row],[Line]],I$3),\"\")=\"\"),\"\",INDEX(Table_POSTInfo[],Table_POSTInspection[[#This Row],[Line]],I$3)),\"\")","v":""},{"$f":"IFERROR(IF(OR(Table_POSTInspection[[#This Row],[Line]]<=0,IFERROR(INDEX(Table_POSTInfo[],Table_POSTInspection[[#This Row],[Line]],J$3),\"\")=\"\"),\"\",INDEX(Table_POSTInfo[],Table_POSTInspection[[#This Row],[Line]],J$3)),\"\")","v":""},{"$f":"IFERROR(\nIFERROR(OFFSET(Table_TypWattage[[#Headers],[Technology]],MATCH($G42,Table_TypWattage[Technology],0)+MATCH($I42,INDIRECT(SUBSTITUTE(SUBSTITUTE($G42,\" \",\"_\"),\"-\",\"_\")),0)-1,MATCH($H42,'Measure Tables'!$Q$2:$V$2,0)+1),IF(Table_POSTInspection[[#This Row],[Schedule]]<>\"\",IF(AND($H42<>\"\",$H42>0,$I42>0),$H42*$I42,$I42),\"\")),\n\"\")","v":""},{"$f":"IFERROR(IF(OR(Table_POSTInspection[[#This Row],[Line]]<=0,IFERROR(INDEX(Table_POSTInfo[],Table_POSTInspection[[#This Row],[Line]],L$3),\"\")=\"\"),\"\",INDEX(Table_POSTInfo[],Table_POSTInspection[[#This Row],[Line]],L$3)),\"\")","v":""},{"$f":"IFERROR(IF(OR(Table_POSTInspection[[#This Row],[Line]]<=0,IFERROR(INDEX(Table_POSTInfo[],Table_POSTInspection[[#This Row],[Line]],M$3),\"\")=\"\"),\"\",INDEX(Table_POSTInfo[],Table_POSTInspection[[#This Row],[Line]],M$3)),\"\")","v":""},{"$f":"IFERROR(IF(Table_POSTInspection[[#This Row],[Interior/ Exterior]]<>\"\",\n  CONCATENATE(\n  Table_POSTInspection[[#This Row],[Fixture Technology '[P']]],\n  \" - \",Table_POSTInspection[[#This Row],[Fixture Type '[P']]],\" [\",\n  IF(Table_POSTInspection[[#This Row],['# Lamps/ Fixture '[P']]]>0,Table_POSTInspection[[#This Row],['# Lamps/ Fixture '[P']]] & \"L - \" & Table_POSTInspection[[#This Row],[Fixture/ Lamp Wattage '[P']]] & \"W\" & IF(Table_POSTInspection[[#This Row],[Ballast/ Driver '[P']]]<>\"\",\" - \" & Table_POSTInspection[[#This Row],[Ballast/ Driver '[P']]],\"\"),Table_POSTInspection[[#This Row],[Fixture Wattage '[P']]] & \"W\"),\"]\",\n  IF(AND(Table_POSTInspection[[#This Row],[Controls '[P']]]<>\"\",Table_POSTInspection[[#This Row],[Controls '[P']]]<>\"No Controls\"),\" - \" & Table_POSTInspection[[#This Row],[Controls '[P']]],\"\")\n  ),\n\"\"),\"\")","v":""},{"$f":"IFERROR(IF(OR(Table_POSTInspection[[#This Row],[Line]]<=0,IFERROR(INDEX(Table_POSTInfo[],Table_POSTInspection[[#This Row],[Line]],O$3),\"\")=\"\"),\"\",INDEX(Table_POSTInfo[],Table_POSTInspection[[#This Row],[Line]],O$3)),\"\")","v":""},{"$f":"IFERROR(IF(OR(Table_POSTInspection[[#This Row],[Line]]<=0,IFERROR(INDEX(Table_POSTInfo[],Table_POSTInspection[[#This Row],[Line]],P$3),\"\")=\"\"),\"\",INDEX(Table_POSTInfo[],Table_POSTInspection[[#This Row],[Line]],P$3)),\"\")","v":""},{"$f":"IFERROR(IF(OR(Table_POSTInspection[[#This Row],[Line]]<=0,IFERROR(INDEX(Table_POSTInfo[],Table_POSTInspection[[#This Row],[Line]],Q$3),\"\")=\"\"),\"\",INDEX(Table_POSTInfo[],Table_POSTInspection[[#This Row],[Line]],Q$3)),\"\")","v":""}]
[null,{"$f":"IFERROR(IF(OR(Table_POSTInspection[[#This Row],[Line]]<=0,IFERROR(INDEX(Table_POSTInfo[],Table_POSTInspection[[#This Row],[Line]],B$3),\"\")=\"\"),\"\",INDEX(Table_POSTInfo[],Table_POSTInspection[[#This Row],[Line]],B$3)),\"\")","v":""},{"$f":"IFERROR(IF(OR(Table_POSTInspection[[#This Row],[Line]]<=0,IFERROR(INDEX(Table_POSTInfo[],Table_POSTInspection[[#This Row],[Line]],C$3),\"\")=\"\"),\"\",INDEX(Table_POSTInfo[],Table_POSTInspection[[#This Row],[Line]],C$3)),\"\")","v":""},{"$f":"IFERROR(IF(OR(Table_POSTInspection[[#This Row],[Line]]<=0,IFERROR(INDEX(Table_POSTInfo[],Table_POSTInspection[[#This Row],[Line]],D$3),\"\")=\"\"),\"\",INDEX(Table_POSTInfo[],Table_POSTInspection[[#This Row],[Line]],D$3)),\"\")","v":""},null,{"$f":"IFERROR(IF(OR(Table_POSTInspection[[#This Row],[Line]]<=0,IFERROR(INDEX(Table_POSTInfo[],Table_POSTInspection[[#This Row],[Line]],F$3),\"\")=\"\"),\"\",INDEX(Table_POSTInfo[],Table_POSTInspection[[#This Row],[Line]],F$3)),\"\")","v":""},{"$f":"IFERROR(IF(OR(Table_POSTInspection[[#This Row],[Line]]<=0,IFERROR(INDEX(Table_POSTInfo[],Table_POSTInspection[[#This Row],[Line]],G$3),\"\")=\"\"),\"\",INDEX(Table_POSTInfo[],Table_POSTInspection[[#This Row],[Line]],G$3)),\"\")","v":""},{"$f":"IFERROR(IF(OR(Table_POSTInspection[[#This Row],[Line]]<=0,IFERROR(INDEX(Table_POSTInfo[],Table_POSTInspection[[#This Row],[Line]],H$3),\"\")=\"\"),\"\",INDEX(Table_POSTInfo[],Table_POSTInspection[[#This Row],[Line]],H$3)),\"\")","v":""},{"$f":"IFERROR(IF(OR(Table_POSTInspection[[#This Row],[Line]]<=0,IFERROR(INDEX(Table_POSTInfo[],Table_POSTInspection[[#This Row],[Line]],I$3),\"\")=\"\"),\"\",INDEX(Table_POSTInfo[],Table_POSTInspection[[#This Row],[Line]],I$3)),\"\")","v":""},{"$f":"IFERROR(IF(OR(Table_POSTInspection[[#This Row],[Line]]<=0,IFERROR(INDEX(Table_POSTInfo[],Table_POSTInspection[[#This Row],[Line]],J$3),\"\")=\"\"),\"\",INDEX(Table_POSTInfo[],Table_POSTInspection[[#This Row],[Line]],J$3)),\"\")","v":""},{"$f":"IFERROR(\nIFERROR(OFFSET(Table_TypWattage[[#Headers],[Technology]],MATCH($G43,Table_TypWattage[Technology],0)+MATCH($I43,INDIRECT(SUBSTITUTE(SUBSTITUTE($G43,\" \",\"_\"),\"-\",\"_\")),0)-1,MATCH($H43,'Measure Tables'!$Q$2:$V$2,0)+1),IF(Table_POSTInspection[[#This Row],[Schedule]]<>\"\",IF(AND($H43<>\"\",$H43>0,$I43>0),$H43*$I43,$I43),\"\")),\n\"\")","v":""},{"$f":"IFERROR(IF(OR(Table_POSTInspection[[#This Row],[Line]]<=0,IFERROR(INDEX(Table_POSTInfo[],Table_POSTInspection[[#This Row],[Line]],L$3),\"\")=\"\"),\"\",INDEX(Table_POSTInfo[],Table_POSTInspection[[#This Row],[Line]],L$3)),\"\")","v":""},{"$f":"IFERROR(IF(OR(Table_POSTInspection[[#This Row],[Line]]<=0,IFERROR(INDEX(Table_POSTInfo[],Table_POSTInspection[[#This Row],[Line]],M$3),\"\")=\"\"),\"\",INDEX(Table_POSTInfo[],Table_POSTInspection[[#This Row],[Line]],M$3)),\"\")","v":""},{"$f":"IFERROR(IF(Table_POSTInspection[[#This Row],[Interior/ Exterior]]<>\"\",\n  CONCATENATE(\n  Table_POSTInspection[[#This Row],[Fixture Technology '[P']]],\n  \" - \",Table_POSTInspection[[#This Row],[Fixture Type '[P']]],\" [\",\n  IF(Table_POSTInspection[[#This Row],['# Lamps/ Fixture '[P']]]>0,Table_POSTInspection[[#This Row],['# Lamps/ Fixture '[P']]] & \"L - \" & Table_POSTInspection[[#This Row],[Fixture/ Lamp Wattage '[P']]] & \"W\" & IF(Table_POSTInspection[[#This Row],[Ballast/ Driver '[P']]]<>\"\",\" - \" & Table_POSTInspection[[#This Row],[Ballast/ Driver '[P']]],\"\"),Table_POSTInspection[[#This Row],[Fixture Wattage '[P']]] & \"W\"),\"]\",\n  IF(AND(Table_POSTInspection[[#This Row],[Controls '[P']]]<>\"\",Table_POSTInspection[[#This Row],[Controls '[P']]]<>\"No Controls\"),\" - \" & Table_POSTInspection[[#This Row],[Controls '[P']]],\"\")\n  ),\n\"\"),\"\")","v":""},{"$f":"IFERROR(IF(OR(Table_POSTInspection[[#This Row],[Line]]<=0,IFERROR(INDEX(Table_POSTInfo[],Table_POSTInspection[[#This Row],[Line]],O$3),\"\")=\"\"),\"\",INDEX(Table_POSTInfo[],Table_POSTInspection[[#This Row],[Line]],O$3)),\"\")","v":""},{"$f":"IFERROR(IF(OR(Table_POSTInspection[[#This Row],[Line]]<=0,IFERROR(INDEX(Table_POSTInfo[],Table_POSTInspection[[#This Row],[Line]],P$3),\"\")=\"\"),\"\",INDEX(Table_POSTInfo[],Table_POSTInspection[[#This Row],[Line]],P$3)),\"\")","v":""},{"$f":"IFERROR(IF(OR(Table_POSTInspection[[#This Row],[Line]]<=0,IFERROR(INDEX(Table_POSTInfo[],Table_POSTInspection[[#This Row],[Line]],Q$3),\"\")=\"\"),\"\",INDEX(Table_POSTInfo[],Table_POSTInspection[[#This Row],[Line]],Q$3)),\"\")","v":""}]
[null,{"$f":"IFERROR(IF(OR(Table_POSTInspection[[#This Row],[Line]]<=0,IFERROR(INDEX(Table_POSTInfo[],Table_POSTInspection[[#This Row],[Line]],B$3),\"\")=\"\"),\"\",INDEX(Table_POSTInfo[],Table_POSTInspection[[#This Row],[Line]],B$3)),\"\")","v":""},{"$f":"IFERROR(IF(OR(Table_POSTInspection[[#This Row],[Line]]<=0,IFERROR(INDEX(Table_POSTInfo[],Table_POSTInspection[[#This Row],[Line]],C$3),\"\")=\"\"),\"\",INDEX(Table_POSTInfo[],Table_POSTInspection[[#This Row],[Line]],C$3)),\"\")","v":""},{"$f":"IFERROR(IF(OR(Table_POSTInspection[[#This Row],[Line]]<=0,IFERROR(INDEX(Table_POSTInfo[],Table_POSTInspection[[#This Row],[Line]],D$3),\"\")=\"\"),\"\",INDEX(Table_POSTInfo[],Table_POSTInspection[[#This Row],[Line]],D$3)),\"\")","v":""},null,{"$f":"IFERROR(IF(OR(Table_POSTInspection[[#This Row],[Line]]<=0,IFERROR(INDEX(Table_POSTInfo[],Table_POSTInspection[[#This Row],[Line]],F$3),\"\")=\"\"),\"\",INDEX(Table_POSTInfo[],Table_POSTInspection[[#This Row],[Line]],F$3)),\"\")","v":""},{"$f":"IFERROR(IF(OR(Table_POSTInspection[[#This Row],[Line]]<=0,IFERROR(INDEX(Table_POSTInfo[],Table_POSTInspection[[#This Row],[Line]],G$3),\"\")=\"\"),\"\",INDEX(Table_POSTInfo[],Table_POSTInspection[[#This Row],[Line]],G$3)),\"\")","v":""},{"$f":"IFERROR(IF(OR(Table_POSTInspection[[#This Row],[Line]]<=0,IFERROR(INDEX(Table_POSTInfo[],Table_POSTInspection[[#This Row],[Line]],H$3),\"\")=\"\"),\"\",INDEX(Table_POSTInfo[],Table_POSTInspection[[#This Row],[Line]],H$3)),\"\")","v":""},{"$f":"IFERROR(IF(OR(Table_POSTInspection[[#This Row],[Line]]<=0,IFERROR(INDEX(Table_POSTInfo[],Table_POSTInspection[[#This Row],[Line]],I$3),\"\")=\"\"),\"\",INDEX(Table_POSTInfo[],Table_POSTInspection[[#This Row],[Line]],I$3)),\"\")","v":""},{"$f":"IFERROR(IF(OR(Table_POSTInspection[[#This Row],[Line]]<=0,IFERROR(INDEX(Table_POSTInfo[],Table_POSTInspection[[#This Row],[Line]],J$3),\"\")=\"\"),\"\",INDEX(Table_POSTInfo[],Table_POSTInspection[[#This Row],[Line]],J$3)),\"\")","v":""},{"$f":"IFERROR(\nIFERROR(OFFSET(Table_TypWattage[[#Headers],[Technology]],MATCH($G44,Table_TypWattage[Technology],0)+MATCH($I44,INDIRECT(SUBSTITUTE(SUBSTITUTE($G44,\" \",\"_\"),\"-\",\"_\")),0)-1,MATCH($H44,'Measure Tables'!$Q$2:$V$2,0)+1),IF(Table_POSTInspection[[#This Row],[Schedule]]<>\"\",IF(AND($H44<>\"\",$H44>0,$I44>0),$H44*$I44,$I44),\"\")),\n\"\")","v":""},{"$f":"IFERROR(IF(OR(Table_POSTInspection[[#This Row],[Line]]<=0,IFERROR(INDEX(Table_POSTInfo[],Table_POSTInspection[[#This Row],[Line]],L$3),\"\")=\"\"),\"\",INDEX(Table_POSTInfo[],Table_POSTInspection[[#This Row],[Line]],L$3)),\"\")","v":""},{"$f":"IFERROR(IF(OR(Table_POSTInspection[[#This Row],[Line]]<=0,IFERROR(INDEX(Table_POSTInfo[],Table_POSTInspection[[#This Row],[Line]],M$3),\"\")=\"\"),\"\",INDEX(Table_POSTInfo[],Table_POSTInspection[[#This Row],[Line]],M$3)),\"\")","v":""},{"$f":"IFERROR(IF(Table_POSTInspection[[#This Row],[Interior/ Exterior]]<>\"\",\n  CONCATENATE(\n  Table_POSTInspection[[#This Row],[Fixture Technology '[P']]],\n  \" - \",Table_POSTInspection[[#This Row],[Fixture Type '[P']]],\" [\",\n  IF(Table_POSTInspection[[#This Row],['# Lamps/ Fixture '[P']]]>0,Table_POSTInspection[[#This Row],['# Lamps/ Fixture '[P']]] & \"L - \" & Table_POSTInspection[[#This Row],[Fixture/ Lamp Wattage '[P']]] & \"W\" & IF(Table_POSTInspection[[#This Row],[Ballast/ Driver '[P']]]<>\"\",\" - \" & Table_POSTInspection[[#This Row],[Ballast/ Driver '[P']]],\"\"),Table_POSTInspection[[#This Row],[Fixture Wattage '[P']]] & \"W\"),\"]\",\n  IF(AND(Table_POSTInspection[[#This Row],[Controls '[P']]]<>\"\",Table_POSTInspection[[#This Row],[Controls '[P']]]<>\"No Controls\"),\" - \" & Table_POSTInspection[[#This Row],[Controls '[P']]],\"\")\n  ),\n\"\"),\"\")","v":""},{"$f":"IFERROR(IF(OR(Table_POSTInspection[[#This Row],[Line]]<=0,IFERROR(INDEX(Table_POSTInfo[],Table_POSTInspection[[#This Row],[Line]],O$3),\"\")=\"\"),\"\",INDEX(Table_POSTInfo[],Table_POSTInspection[[#This Row],[Line]],O$3)),\"\")","v":""},{"$f":"IFERROR(IF(OR(Table_POSTInspection[[#This Row],[Line]]<=0,IFERROR(INDEX(Table_POSTInfo[],Table_POSTInspection[[#This Row],[Line]],P$3),\"\")=\"\"),\"\",INDEX(Table_POSTInfo[],Table_POSTInspection[[#This Row],[Line]],P$3)),\"\")","v":""},{"$f":"IFERROR(IF(OR(Table_POSTInspection[[#This Row],[Line]]<=0,IFERROR(INDEX(Table_POSTInfo[],Table_POSTInspection[[#This Row],[Line]],Q$3),\"\")=\"\"),\"\",INDEX(Table_POSTInfo[],Table_POSTInspection[[#This Row],[Line]],Q$3)),\"\")","v":""}]
[null,{"$f":"IFERROR(IF(OR(Table_POSTInspection[[#This Row],[Line]]<=0,IFERROR(INDEX(Table_POSTInfo[],Table_POSTInspection[[#This Row],[Line]],B$3),\"\")=\"\"),\"\",INDEX(Table_POSTInfo[],Table_POSTInspection[[#This Row],[Line]],B$3)),\"\")","v":""},{"$f":"IFERROR(IF(OR(Table_POSTInspection[[#This Row],[Line]]<=0,IFERROR(INDEX(Table_POSTInfo[],Table_POSTInspection[[#This Row],[Line]],C$3),\"\")=\"\"),\"\",INDEX(Table_POSTInfo[],Table_POSTInspection[[#This Row],[Line]],C$3)),\"\")","v":""},{"$f":"IFERROR(IF(OR(Table_POSTInspection[[#This Row],[Line]]<=0,IFERROR(INDEX(Table_POSTInfo[],Table_POSTInspection[[#This Row],[Line]],D$3),\"\")=\"\"),\"\",INDEX(Table_POSTInfo[],Table_POSTInspection[[#This Row],[Line]],D$3)),\"\")","v":""},null,{"$f":"IFERROR(IF(OR(Table_POSTInspection[[#This Row],[Line]]<=0,IFERROR(INDEX(Table_POSTInfo[],Table_POSTInspection[[#This Row],[Line]],F$3),\"\")=\"\"),\"\",INDEX(Table_POSTInfo[],Table_POSTInspection[[#This Row],[Line]],F$3)),\"\")","v":""},{"$f":"IFERROR(IF(OR(Table_POSTInspection[[#This Row],[Line]]<=0,IFERROR(INDEX(Table_POSTInfo[],Table_POSTInspection[[#This Row],[Line]],G$3),\"\")=\"\"),\"\",INDEX(Table_POSTInfo[],Table_POSTInspection[[#This Row],[Line]],G$3)),\"\")","v":""},{"$f":"IFERROR(IF(OR(Table_POSTInspection[[#This Row],[Line]]<=0,IFERROR(INDEX(Table_POSTInfo[],Table_POSTInspection[[#This Row],[Line]],H$3),\"\")=\"\"),\"\",INDEX(Table_POSTInfo[],Table_POSTInspection[[#This Row],[Line]],H$3)),\"\")","v":""},{"$f":"IFERROR(IF(OR(Table_POSTInspection[[#This Row],[Line]]<=0,IFERROR(INDEX(Table_POSTInfo[],Table_POSTInspection[[#This Row],[Line]],I$3),\"\")=\"\"),\"\",INDEX(Table_POSTInfo[],Table_POSTInspection[[#This Row],[Line]],I$3)),\"\")","v":""},{"$f":"IFERROR(IF(OR(Table_POSTInspection[[#This Row],[Line]]<=0,IFERROR(INDEX(Table_POSTInfo[],Table_POSTInspection[[#This Row],[Line]],J$3),\"\")=\"\"),\"\",INDEX(Table_POSTInfo[],Table_POSTInspection[[#This Row],[Line]],J$3)),\"\")","v":""},{"$f":"IFERROR(\nIFERROR(OFFSET(Table_TypWattage[[#Headers],[Technology]],MATCH($G45,Table_TypWattage[Technology],0)+MATCH($I45,INDIRECT(SUBSTITUTE(SUBSTITUTE($G45,\" \",\"_\"),\"-\",\"_\")),0)-1,MATCH($H45,'Measure Tables'!$Q$2:$V$2,0)+1),IF(Table_POSTInspection[[#This Row],[Schedule]]<>\"\",IF(AND($H45<>\"\",$H45>0,$I45>0),$H45*$I45,$I45),\"\")),\n\"\")","v":""},{"$f":"IFERROR(IF(OR(Table_POSTInspection[[#This Row],[Line]]<=0,IFERROR(INDEX(Table_POSTInfo[],Table_POSTInspection[[#This Row],[Line]],L$3),\"\")=\"\"),\"\",INDEX(Table_POSTInfo[],Table_POSTInspection[[#This Row],[Line]],L$3)),\"\")","v":""},{"$f":"IFERROR(IF(OR(Table_POSTInspection[[#This Row],[Line]]<=0,IFERROR(INDEX(Table_POSTInfo[],Table_POSTInspection[[#This Row],[Line]],M$3),\"\")=\"\"),\"\",INDEX(Table_POSTInfo[],Table_POSTInspection[[#This Row],[Line]],M$3)),\"\")","v":""},{"$f":"IFERROR(IF(Table_POSTInspection[[#This Row],[Interior/ Exterior]]<>\"\",\n  CONCATENATE(\n  Table_POSTInspection[[#This Row],[Fixture Technology '[P']]],\n  \" - \",Table_POSTInspection[[#This Row],[Fixture Type '[P']]],\" [\",\n  IF(Table_POSTInspection[[#This Row],['# Lamps/ Fixture '[P']]]>0,Table_POSTInspection[[#This Row],['# Lamps/ Fixture '[P']]] & \"L - \" & Table_POSTInspection[[#This Row],[Fixture/ Lamp Wattage '[P']]] & \"W\" & IF(Table_POSTInspection[[#This Row],[Ballast/ Driver '[P']]]<>\"\",\" - \" & Table_POSTInspection[[#This Row],[Ballast/ Driver '[P']]],\"\"),Table_POSTInspection[[#This Row],[Fixture Wattage '[P']]] & \"W\"),\"]\",\n  IF(AND(Table_POSTInspection[[#This Row],[Controls '[P']]]<>\"\",Table_POSTInspection[[#This Row],[Controls '[P']]]<>\"No Controls\"),\" - \" & Table_POSTInspection[[#This Row],[Controls '[P']]],\"\")\n  ),\n\"\"),\"\")","v":""},{"$f":"IFERROR(IF(OR(Table_POSTInspection[[#This Row],[Line]]<=0,IFERROR(INDEX(Table_POSTInfo[],Table_POSTInspection[[#This Row],[Line]],O$3),\"\")=\"\"),\"\",INDEX(Table_POSTInfo[],Table_POSTInspection[[#This Row],[Line]],O$3)),\"\")","v":""},{"$f":"IFERROR(IF(OR(Table_POSTInspection[[#This Row],[Line]]<=0,IFERROR(INDEX(Table_POSTInfo[],Table_POSTInspection[[#This Row],[Line]],P$3),\"\")=\"\"),\"\",INDEX(Table_POSTInfo[],Table_POSTInspection[[#This Row],[Line]],P$3)),\"\")","v":""},{"$f":"IFERROR(IF(OR(Table_POSTInspection[[#This Row],[Line]]<=0,IFERROR(INDEX(Table_POSTInfo[],Table_POSTInspection[[#This Row],[Line]],Q$3),\"\")=\"\"),\"\",INDEX(Table_POSTInfo[],Table_POSTInspection[[#This Row],[Line]],Q$3)),\"\")","v":""}]
[null,{"$f":"IFERROR(IF(OR(Table_POSTInspection[[#This Row],[Line]]<=0,IFERROR(INDEX(Table_POSTInfo[],Table_POSTInspection[[#This Row],[Line]],B$3),\"\")=\"\"),\"\",INDEX(Table_POSTInfo[],Table_POSTInspection[[#This Row],[Line]],B$3)),\"\")","v":""},{"$f":"IFERROR(IF(OR(Table_POSTInspection[[#This Row],[Line]]<=0,IFERROR(INDEX(Table_POSTInfo[],Table_POSTInspection[[#This Row],[Line]],C$3),\"\")=\"\"),\"\",INDEX(Table_POSTInfo[],Table_POSTInspection[[#This Row],[Line]],C$3)),\"\")","v":""},{"$f":"IFERROR(IF(OR(Table_POSTInspection[[#This Row],[Line]]<=0,IFERROR(INDEX(Table_POSTInfo[],Table_POSTInspection[[#This Row],[Line]],D$3),\"\")=\"\"),\"\",INDEX(Table_POSTInfo[],Table_POSTInspection[[#This Row],[Line]],D$3)),\"\")","v":""},null,{"$f":"IFERROR(IF(OR(Table_POSTInspection[[#This Row],[Line]]<=0,IFERROR(INDEX(Table_POSTInfo[],Table_POSTInspection[[#This Row],[Line]],F$3),\"\")=\"\"),\"\",INDEX(Table_POSTInfo[],Table_POSTInspection[[#This Row],[Line]],F$3)),\"\")","v":""},{"$f":"IFERROR(IF(OR(Table_POSTInspection[[#This Row],[Line]]<=0,IFERROR(INDEX(Table_POSTInfo[],Table_POSTInspection[[#This Row],[Line]],G$3),\"\")=\"\"),\"\",INDEX(Table_POSTInfo[],Table_POSTInspection[[#This Row],[Line]],G$3)),\"\")","v":""},{"$f":"IFERROR(IF(OR(Table_POSTInspection[[#This Row],[Line]]<=0,IFERROR(INDEX(Table_POSTInfo[],Table_POSTInspection[[#This Row],[Line]],H$3),\"\")=\"\"),\"\",INDEX(Table_POSTInfo[],Table_POSTInspection[[#This Row],[Line]],H$3)),\"\")","v":""},{"$f":"IFERROR(IF(OR(Table_POSTInspection[[#This Row],[Line]]<=0,IFERROR(INDEX(Table_POSTInfo[],Table_POSTInspection[[#This Row],[Line]],I$3),\"\")=\"\"),\"\",INDEX(Table_POSTInfo[],Table_POSTInspection[[#This Row],[Line]],I$3)),\"\")","v":""},{"$f":"IFERROR(IF(OR(Table_POSTInspection[[#This Row],[Line]]<=0,IFERROR(INDEX(Table_POSTInfo[],Table_POSTInspection[[#This Row],[Line]],J$3),\"\")=\"\"),\"\",INDEX(Table_POSTInfo[],Table_POSTInspection[[#This Row],[Line]],J$3)),\"\")","v":""},{"$f":"IFERROR(\nIFERROR(OFFSET(Table_TypWattage[[#Headers],[Technology]],MATCH($G46,Table_TypWattage[Technology],0)+MATCH($I46,INDIRECT(SUBSTITUTE(SUBSTITUTE($G46,\" \",\"_\"),\"-\",\"_\")),0)-1,MATCH($H46,'Measure Tables'!$Q$2:$V$2,0)+1),IF(Table_POSTInspection[[#This Row],[Schedule]]<>\"\",IF(AND($H46<>\"\",$H46>0,$I46>0),$H46*$I46,$I46),\"\")),\n\"\")","v":""},{"$f":"IFERROR(IF(OR(Table_POSTInspection[[#This Row],[Line]]<=0,IFERROR(INDEX(Table_POSTInfo[],Table_POSTInspection[[#This Row],[Line]],L$3),\"\")=\"\"),\"\",INDEX(Table_POSTInfo[],Table_POSTInspection[[#This Row],[Line]],L$3)),\"\")","v":""},{"$f":"IFERROR(IF(OR(Table_POSTInspection[[#This Row],[Line]]<=0,IFERROR(INDEX(Table_POSTInfo[],Table_POSTInspection[[#This Row],[Line]],M$3),\"\")=\"\"),\"\",INDEX(Table_POSTInfo[],Table_POSTInspection[[#This Row],[Line]],M$3)),\"\")","v":""},{"$f":"IFERROR(IF(Table_POSTInspection[[#This Row],[Interior/ Exterior]]<>\"\",\n  CONCATENATE(\n  Table_POSTInspection[[#This Row],[Fixture Technology '[P']]],\n  \" - \",Table_POSTInspection[[#This Row],[Fixture Type '[P']]],\" [\",\n  IF(Table_POSTInspection[[#This Row],['# Lamps/ Fixture '[P']]]>0,Table_POSTInspection[[#This Row],['# Lamps/ Fixture '[P']]] & \"L - \" & Table_POSTInspection[[#This Row],[Fixture/ Lamp Wattage '[P']]] & \"W\" & IF(Table_POSTInspection[[#This Row],[Ballast/ Driver '[P']]]<>\"\",\" - \" & Table_POSTInspection[[#This Row],[Ballast/ Driver '[P']]],\"\"),Table_POSTInspection[[#This Row],[Fixture Wattage '[P']]] & \"W\"),\"]\",\n  IF(AND(Table_POSTInspection[[#This Row],[Controls '[P']]]<>\"\",Table_POSTInspection[[#This Row],[Controls '[P']]]<>\"No Controls\"),\" - \" & Table_POSTInspection[[#This Row],[Controls '[P']]],\"\")\n  ),\n\"\"),\"\")","v":""},{"$f":"IFERROR(IF(OR(Table_POSTInspection[[#This Row],[Line]]<=0,IFERROR(INDEX(Table_POSTInfo[],Table_POSTInspection[[#This Row],[Line]],O$3),\"\")=\"\"),\"\",INDEX(Table_POSTInfo[],Table_POSTInspection[[#This Row],[Line]],O$3)),\"\")","v":""},{"$f":"IFERROR(IF(OR(Table_POSTInspection[[#This Row],[Line]]<=0,IFERROR(INDEX(Table_POSTInfo[],Table_POSTInspection[[#This Row],[Line]],P$3),\"\")=\"\"),\"\",INDEX(Table_POSTInfo[],Table_POSTInspection[[#This Row],[Line]],P$3)),\"\")","v":""},{"$f":"IFERROR(IF(OR(Table_POSTInspection[[#This Row],[Line]]<=0,IFERROR(INDEX(Table_POSTInfo[],Table_POSTInspection[[#This Row],[Line]],Q$3),\"\")=\"\"),\"\",INDEX(Table_POSTInfo[],Table_POSTInspection[[#This Row],[Line]],Q$3)),\"\")","v":""}]
[null,{"$f":"IFERROR(IF(OR(Table_POSTInspection[[#This Row],[Line]]<=0,IFERROR(INDEX(Table_POSTInfo[],Table_POSTInspection[[#This Row],[Line]],B$3),\"\")=\"\"),\"\",INDEX(Table_POSTInfo[],Table_POSTInspection[[#This Row],[Line]],B$3)),\"\")","v":""},{"$f":"IFERROR(IF(OR(Table_POSTInspection[[#This Row],[Line]]<=0,IFERROR(INDEX(Table_POSTInfo[],Table_POSTInspection[[#This Row],[Line]],C$3),\"\")=\"\"),\"\",INDEX(Table_POSTInfo[],Table_POSTInspection[[#This Row],[Line]],C$3)),\"\")","v":""},{"$f":"IFERROR(IF(OR(Table_POSTInspection[[#This Row],[Line]]<=0,IFERROR(INDEX(Table_POSTInfo[],Table_POSTInspection[[#This Row],[Line]],D$3),\"\")=\"\"),\"\",INDEX(Table_POSTInfo[],Table_POSTInspection[[#This Row],[Line]],D$3)),\"\")","v":""},null,{"$f":"IFERROR(IF(OR(Table_POSTInspection[[#This Row],[Line]]<=0,IFERROR(INDEX(Table_POSTInfo[],Table_POSTInspection[[#This Row],[Line]],F$3),\"\")=\"\"),\"\",INDEX(Table_POSTInfo[],Table_POSTInspection[[#This Row],[Line]],F$3)),\"\")","v":""},{"$f":"IFERROR(IF(OR(Table_POSTInspection[[#This Row],[Line]]<=0,IFERROR(INDEX(Table_POSTInfo[],Table_POSTInspection[[#This Row],[Line]],G$3),\"\")=\"\"),\"\",INDEX(Table_POSTInfo[],Table_POSTInspection[[#This Row],[Line]],G$3)),\"\")","v":""},{"$f":"IFERROR(IF(OR(Table_POSTInspection[[#This Row],[Line]]<=0,IFERROR(INDEX(Table_POSTInfo[],Table_POSTInspection[[#This Row],[Line]],H$3),\"\")=\"\"),\"\",INDEX(Table_POSTInfo[],Table_POSTInspection[[#This Row],[Line]],H$3)),\"\")","v":""},{"$f":"IFERROR(IF(OR(Table_POSTInspection[[#This Row],[Line]]<=0,IFERROR(INDEX(Table_POSTInfo[],Table_POSTInspection[[#This Row],[Line]],I$3),\"\")=\"\"),\"\",INDEX(Table_POSTInfo[],Table_POSTInspection[[#This Row],[Line]],I$3)),\"\")","v":""},{"$f":"IFERROR(IF(OR(Table_POSTInspection[[#This Row],[Line]]<=0,IFERROR(INDEX(Table_POSTInfo[],Table_POSTInspection[[#This Row],[Line]],J$3),\"\")=\"\"),\"\",INDEX(Table_POSTInfo[],Table_POSTInspection[[#This Row],[Line]],J$3)),\"\")","v":""},{"$f":"IFERROR(\nIFERROR(OFFSET(Table_TypWattage[[#Headers],[Technology]],MATCH($G47,Table_TypWattage[Technology],0)+MATCH($I47,INDIRECT(SUBSTITUTE(SUBSTITUTE($G47,\" \",\"_\"),\"-\",\"_\")),0)-1,MATCH($H47,'Measure Tables'!$Q$2:$V$2,0)+1),IF(Table_POSTInspection[[#This Row],[Schedule]]<>\"\",IF(AND($H47<>\"\",$H47>0,$I47>0),$H47*$I47,$I47),\"\")),\n\"\")","v":""},{"$f":"IFERROR(IF(OR(Table_POSTInspection[[#This Row],[Line]]<=0,IFERROR(INDEX(Table_POSTInfo[],Table_POSTInspection[[#This Row],[Line]],L$3),\"\")=\"\"),\"\",INDEX(Table_POSTInfo[],Table_POSTInspection[[#This Row],[Line]],L$3)),\"\")","v":""},{"$f":"IFERROR(IF(OR(Table_POSTInspection[[#This Row],[Line]]<=0,IFERROR(INDEX(Table_POSTInfo[],Table_POSTInspection[[#This Row],[Line]],M$3),\"\")=\"\"),\"\",INDEX(Table_POSTInfo[],Table_POSTInspection[[#This Row],[Line]],M$3)),\"\")","v":""},{"$f":"IFERROR(IF(Table_POSTInspection[[#This Row],[Interior/ Exterior]]<>\"\",\n  CONCATENATE(\n  Table_POSTInspection[[#This Row],[Fixture Technology '[P']]],\n  \" - \",Table_POSTInspection[[#This Row],[Fixture Type '[P']]],\" [\",\n  IF(Table_POSTInspection[[#This Row],['# Lamps/ Fixture '[P']]]>0,Table_POSTInspection[[#This Row],['# Lamps/ Fixture '[P']]] & \"L - \" & Table_POSTInspection[[#This Row],[Fixture/ Lamp Wattage '[P']]] & \"W\" & IF(Table_POSTInspection[[#This Row],[Ballast/ Driver '[P']]]<>\"\",\" - \" & Table_POSTInspection[[#This Row],[Ballast/ Driver '[P']]],\"\"),Table_POSTInspection[[#This Row],[Fixture Wattage '[P']]] & \"W\"),\"]\",\n  IF(AND(Table_POSTInspection[[#This Row],[Controls '[P']]]<>\"\",Table_POSTInspection[[#This Row],[Controls '[P']]]<>\"No Controls\"),\" - \" & Table_POSTInspection[[#This Row],[Controls '[P']]],\"\")\n  ),\n\"\"),\"\")","v":""},{"$f":"IFERROR(IF(OR(Table_POSTInspection[[#This Row],[Line]]<=0,IFERROR(INDEX(Table_POSTInfo[],Table_POSTInspection[[#This Row],[Line]],O$3),\"\")=\"\"),\"\",INDEX(Table_POSTInfo[],Table_POSTInspection[[#This Row],[Line]],O$3)),\"\")","v":""},{"$f":"IFERROR(IF(OR(Table_POSTInspection[[#This Row],[Line]]<=0,IFERROR(INDEX(Table_POSTInfo[],Table_POSTInspection[[#This Row],[Line]],P$3),\"\")=\"\"),\"\",INDEX(Table_POSTInfo[],Table_POSTInspection[[#This Row],[Line]],P$3)),\"\")","v":""},{"$f":"IFERROR(IF(OR(Table_POSTInspection[[#This Row],[Line]]<=0,IFERROR(INDEX(Table_POSTInfo[],Table_POSTInspection[[#This Row],[Line]],Q$3),\"\")=\"\"),\"\",INDEX(Table_POSTInfo[],Table_POSTInspection[[#This Row],[Line]],Q$3)),\"\")","v":""}]
[null,{"$f":"IFERROR(IF(OR(Table_POSTInspection[[#This Row],[Line]]<=0,IFERROR(INDEX(Table_POSTInfo[],Table_POSTInspection[[#This Row],[Line]],B$3),\"\")=\"\"),\"\",INDEX(Table_POSTInfo[],Table_POSTInspection[[#This Row],[Line]],B$3)),\"\")","v":""},{"$f":"IFERROR(IF(OR(Table_POSTInspection[[#This Row],[Line]]<=0,IFERROR(INDEX(Table_POSTInfo[],Table_POSTInspection[[#This Row],[Line]],C$3),\"\")=\"\"),\"\",INDEX(Table_POSTInfo[],Table_POSTInspection[[#This Row],[Line]],C$3)),\"\")","v":""},{"$f":"IFERROR(IF(OR(Table_POSTInspection[[#This Row],[Line]]<=0,IFERROR(INDEX(Table_POSTInfo[],Table_POSTInspection[[#This Row],[Line]],D$3),\"\")=\"\"),\"\",INDEX(Table_POSTInfo[],Table_POSTInspection[[#This Row],[Line]],D$3)),\"\")","v":""},null,{"$f":"IFERROR(IF(OR(Table_POSTInspection[[#This Row],[Line]]<=0,IFERROR(INDEX(Table_POSTInfo[],Table_POSTInspection[[#This Row],[Line]],F$3),\"\")=\"\"),\"\",INDEX(Table_POSTInfo[],Table_POSTInspection[[#This Row],[Line]],F$3)),\"\")","v":""},{"$f":"IFERROR(IF(OR(Table_POSTInspection[[#This Row],[Line]]<=0,IFERROR(INDEX(Table_POSTInfo[],Table_POSTInspection[[#This Row],[Line]],G$3),\"\")=\"\"),\"\",INDEX(Table_POSTInfo[],Table_POSTInspection[[#This Row],[Line]],G$3)),\"\")","v":""},{"$f":"IFERROR(IF(OR(Table_POSTInspection[[#This Row],[Line]]<=0,IFERROR(INDEX(Table_POSTInfo[],Table_POSTInspection[[#This Row],[Line]],H$3),\"\")=\"\"),\"\",INDEX(Table_POSTInfo[],Table_POSTInspection[[#This Row],[Line]],H$3)),\"\")","v":""},{"$f":"IFERROR(IF(OR(Table_POSTInspection[[#This Row],[Line]]<=0,IFERROR(INDEX(Table_POSTInfo[],Table_POSTInspection[[#This Row],[Line]],I$3),\"\")=\"\"),\"\",INDEX(Table_POSTInfo[],Table_POSTInspection[[#This Row],[Line]],I$3)),\"\")","v":""},{"$f":"IFERROR(IF(OR(Table_POSTInspection[[#This Row],[Line]]<=0,IFERROR(INDEX(Table_POSTInfo[],Table_POSTInspection[[#This Row],[Line]],J$3),\"\")=\"\"),\"\",INDEX(Table_POSTInfo[],Table_POSTInspection[[#This Row],[Line]],J$3)),\"\")","v":""},{"$f":"IFERROR(\nIFERROR(OFFSET(Table_TypWattage[[#Headers],[Technology]],MATCH($G48,Table_TypWattage[Technology],0)+MATCH($I48,INDIRECT(SUBSTITUTE(SUBSTITUTE($G48,\" \",\"_\"),\"-\",\"_\")),0)-1,MATCH($H48,'Measure Tables'!$Q$2:$V$2,0)+1),IF(Table_POSTInspection[[#This Row],[Schedule]]<>\"\",IF(AND($H48<>\"\",$H48>0,$I48>0),$H48*$I48,$I48),\"\")),\n\"\")","v":""},{"$f":"IFERROR(IF(OR(Table_POSTInspection[[#This Row],[Line]]<=0,IFERROR(INDEX(Table_POSTInfo[],Table_POSTInspection[[#This Row],[Line]],L$3),\"\")=\"\"),\"\",INDEX(Table_POSTInfo[],Table_POSTInspection[[#This Row],[Line]],L$3)),\"\")","v":""},{"$f":"IFERROR(IF(OR(Table_POSTInspection[[#This Row],[Line]]<=0,IFERROR(INDEX(Table_POSTInfo[],Table_POSTInspection[[#This Row],[Line]],M$3),\"\")=\"\"),\"\",INDEX(Table_POSTInfo[],Table_POSTInspection[[#This Row],[Line]],M$3)),\"\")","v":""},{"$f":"IFERROR(IF(Table_POSTInspection[[#This Row],[Interior/ Exterior]]<>\"\",\n  CONCATENATE(\n  Table_POSTInspection[[#This Row],[Fixture Technology '[P']]],\n  \" - \",Table_POSTInspection[[#This Row],[Fixture Type '[P']]],\" [\",\n  IF(Table_POSTInspection[[#This Row],['# Lamps/ Fixture '[P']]]>0,Table_POSTInspection[[#This Row],['# Lamps/ Fixture '[P']]] & \"L - \" & Table_POSTInspection[[#This Row],[Fixture/ Lamp Wattage '[P']]] & \"W\" & IF(Table_POSTInspection[[#This Row],[Ballast/ Driver '[P']]]<>\"\",\" - \" & Table_POSTInspection[[#This Row],[Ballast/ Driver '[P']]],\"\"),Table_POSTInspection[[#This Row],[Fixture Wattage '[P']]] & \"W\"),\"]\",\n  IF(AND(Table_POSTInspection[[#This Row],[Controls '[P']]]<>\"\",Table_POSTInspection[[#This Row],[Controls '[P']]]<>\"No Controls\"),\" - \" & Table_POSTInspection[[#This Row],[Controls '[P']]],\"\")\n  ),\n\"\"),\"\")","v":""},{"$f":"IFERROR(IF(OR(Table_POSTInspection[[#This Row],[Line]]<=0,IFERROR(INDEX(Table_POSTInfo[],Table_POSTInspection[[#This Row],[Line]],O$3),\"\")=\"\"),\"\",INDEX(Table_POSTInfo[],Table_POSTInspection[[#This Row],[Line]],O$3)),\"\")","v":""},{"$f":"IFERROR(IF(OR(Table_POSTInspection[[#This Row],[Line]]<=0,IFERROR(INDEX(Table_POSTInfo[],Table_POSTInspection[[#This Row],[Line]],P$3),\"\")=\"\"),\"\",INDEX(Table_POSTInfo[],Table_POSTInspection[[#This Row],[Line]],P$3)),\"\")","v":""},{"$f":"IFERROR(IF(OR(Table_POSTInspection[[#This Row],[Line]]<=0,IFERROR(INDEX(Table_POSTInfo[],Table_POSTInspection[[#This Row],[Line]],Q$3),\"\")=\"\"),\"\",INDEX(Table_POSTInfo[],Table_POSTInspection[[#This Row],[Line]],Q$3)),\"\")","v":""}]
[null,{"$f":"IFERROR(IF(OR(Table_POSTInspection[[#This Row],[Line]]<=0,IFERROR(INDEX(Table_POSTInfo[],Table_POSTInspection[[#This Row],[Line]],B$3),\"\")=\"\"),\"\",INDEX(Table_POSTInfo[],Table_POSTInspection[[#This Row],[Line]],B$3)),\"\")","v":""},{"$f":"IFERROR(IF(OR(Table_POSTInspection[[#This Row],[Line]]<=0,IFERROR(INDEX(Table_POSTInfo[],Table_POSTInspection[[#This Row],[Line]],C$3),\"\")=\"\"),\"\",INDEX(Table_POSTInfo[],Table_POSTInspection[[#This Row],[Line]],C$3)),\"\")","v":""},{"$f":"IFERROR(IF(OR(Table_POSTInspection[[#This Row],[Line]]<=0,IFERROR(INDEX(Table_POSTInfo[],Table_POSTInspection[[#This Row],[Line]],D$3),\"\")=\"\"),\"\",INDEX(Table_POSTInfo[],Table_POSTInspection[[#This Row],[Line]],D$3)),\"\")","v":""},null,{"$f":"IFERROR(IF(OR(Table_POSTInspection[[#This Row],[Line]]<=0,IFERROR(INDEX(Table_POSTInfo[],Table_POSTInspection[[#This Row],[Line]],F$3),\"\")=\"\"),\"\",INDEX(Table_POSTInfo[],Table_POSTInspection[[#This Row],[Line]],F$3)),\"\")","v":""},{"$f":"IFERROR(IF(OR(Table_POSTInspection[[#This Row],[Line]]<=0,IFERROR(INDEX(Table_POSTInfo[],Table_POSTInspection[[#This Row],[Line]],G$3),\"\")=\"\"),\"\",INDEX(Table_POSTInfo[],Table_POSTInspection[[#This Row],[Line]],G$3)),\"\")","v":""},{"$f":"IFERROR(IF(OR(Table_POSTInspection[[#This Row],[Line]]<=0,IFERROR(INDEX(Table_POSTInfo[],Table_POSTInspection[[#This Row],[Line]],H$3),\"\")=\"\"),\"\",INDEX(Table_POSTInfo[],Table_POSTInspection[[#This Row],[Line]],H$3)),\"\")","v":""},{"$f":"IFERROR(IF(OR(Table_POSTInspection[[#This Row],[Line]]<=0,IFERROR(INDEX(Table_POSTInfo[],Table_POSTInspection[[#This Row],[Line]],I$3),\"\")=\"\"),\"\",INDEX(Table_POSTInfo[],Table_POSTInspection[[#This Row],[Line]],I$3)),\"\")","v":""},{"$f":"IFERROR(IF(OR(Table_POSTInspection[[#This Row],[Line]]<=0,IFERROR(INDEX(Table_POSTInfo[],Table_POSTInspection[[#This Row],[Line]],J$3),\"\")=\"\"),\"\",INDEX(Table_POSTInfo[],Table_POSTInspection[[#This Row],[Line]],J$3)),\"\")","v":""},{"$f":"IFERROR(\nIFERROR(OFFSET(Table_TypWattage[[#Headers],[Technology]],MATCH($G49,Table_TypWattage[Technology],0)+MATCH($I49,INDIRECT(SUBSTITUTE(SUBSTITUTE($G49,\" \",\"_\"),\"-\",\"_\")),0)-1,MATCH($H49,'Measure Tables'!$Q$2:$V$2,0)+1),IF(Table_POSTInspection[[#This Row],[Schedule]]<>\"\",IF(AND($H49<>\"\",$H49>0,$I49>0),$H49*$I49,$I49),\"\")),\n\"\")","v":""},{"$f":"IFERROR(IF(OR(Table_POSTInspection[[#This Row],[Line]]<=0,IFERROR(INDEX(Table_POSTInfo[],Table_POSTInspection[[#This Row],[Line]],L$3),\"\")=\"\"),\"\",INDEX(Table_POSTInfo[],Table_POSTInspection[[#This Row],[Line]],L$3)),\"\")","v":""},{"$f":"IFERROR(IF(OR(Table_POSTInspection[[#This Row],[Line]]<=0,IFERROR(INDEX(Table_POSTInfo[],Table_POSTInspection[[#This Row],[Line]],M$3),\"\")=\"\"),\"\",INDEX(Table_POSTInfo[],Table_POSTInspection[[#This Row],[Line]],M$3)),\"\")","v":""},{"$f":"IFERROR(IF(Table_POSTInspection[[#This Row],[Interior/ Exterior]]<>\"\",\n  CONCATENATE(\n  Table_POSTInspection[[#This Row],[Fixture Technology '[P']]],\n  \" - \",Table_POSTInspection[[#This Row],[Fixture Type '[P']]],\" [\",\n  IF(Table_POSTInspection[[#This Row],['# Lamps/ Fixture '[P']]]>0,Table_POSTInspection[[#This Row],['# Lamps/ Fixture '[P']]] & \"L - \" & Table_POSTInspection[[#This Row],[Fixture/ Lamp Wattage '[P']]] & \"W\" & IF(Table_POSTInspection[[#This Row],[Ballast/ Driver '[P']]]<>\"\",\" - \" & Table_POSTInspection[[#This Row],[Ballast/ Driver '[P']]],\"\"),Table_POSTInspection[[#This Row],[Fixture Wattage '[P']]] & \"W\"),\"]\",\n  IF(AND(Table_POSTInspection[[#This Row],[Controls '[P']]]<>\"\",Table_POSTInspection[[#This Row],[Controls '[P']]]<>\"No Controls\"),\" - \" & Table_POSTInspection[[#This Row],[Controls '[P']]],\"\")\n  ),\n\"\"),\"\")","v":""},{"$f":"IFERROR(IF(OR(Table_POSTInspection[[#This Row],[Line]]<=0,IFERROR(INDEX(Table_POSTInfo[],Table_POSTInspection[[#This Row],[Line]],O$3),\"\")=\"\"),\"\",INDEX(Table_POSTInfo[],Table_POSTInspection[[#This Row],[Line]],O$3)),\"\")","v":""},{"$f":"IFERROR(IF(OR(Table_POSTInspection[[#This Row],[Line]]<=0,IFERROR(INDEX(Table_POSTInfo[],Table_POSTInspection[[#This Row],[Line]],P$3),\"\")=\"\"),\"\",INDEX(Table_POSTInfo[],Table_POSTInspection[[#This Row],[Line]],P$3)),\"\")","v":""},{"$f":"IFERROR(IF(OR(Table_POSTInspection[[#This Row],[Line]]<=0,IFERROR(INDEX(Table_POSTInfo[],Table_POSTInspection[[#This Row],[Line]],Q$3),\"\")=\"\"),\"\",INDEX(Table_POSTInfo[],Table_POSTInspection[[#This Row],[Line]],Q$3)),\"\")","v":""}]
[null,{"$f":"IFERROR(IF(OR(Table_POSTInspection[[#This Row],[Line]]<=0,IFERROR(INDEX(Table_POSTInfo[],Table_POSTInspection[[#This Row],[Line]],B$3),\"\")=\"\"),\"\",INDEX(Table_POSTInfo[],Table_POSTInspection[[#This Row],[Line]],B$3)),\"\")","v":""},{"$f":"IFERROR(IF(OR(Table_POSTInspection[[#This Row],[Line]]<=0,IFERROR(INDEX(Table_POSTInfo[],Table_POSTInspection[[#This Row],[Line]],C$3),\"\")=\"\"),\"\",INDEX(Table_POSTInfo[],Table_POSTInspection[[#This Row],[Line]],C$3)),\"\")","v":""},{"$f":"IFERROR(IF(OR(Table_POSTInspection[[#This Row],[Line]]<=0,IFERROR(INDEX(Table_POSTInfo[],Table_POSTInspection[[#This Row],[Line]],D$3),\"\")=\"\"),\"\",INDEX(Table_POSTInfo[],Table_POSTInspection[[#This Row],[Line]],D$3)),\"\")","v":""},null,{"$f":"IFERROR(IF(OR(Table_POSTInspection[[#This Row],[Line]]<=0,IFERROR(INDEX(Table_POSTInfo[],Table_POSTInspection[[#This Row],[Line]],F$3),\"\")=\"\"),\"\",INDEX(Table_POSTInfo[],Table_POSTInspection[[#This Row],[Line]],F$3)),\"\")","v":""},{"$f":"IFERROR(IF(OR(Table_POSTInspection[[#This Row],[Line]]<=0,IFERROR(INDEX(Table_POSTInfo[],Table_POSTInspection[[#This Row],[Line]],G$3),\"\")=\"\"),\"\",INDEX(Table_POSTInfo[],Table_POSTInspection[[#This Row],[Line]],G$3)),\"\")","v":""},{"$f":"IFERROR(IF(OR(Table_POSTInspection[[#This Row],[Line]]<=0,IFERROR(INDEX(Table_POSTInfo[],Table_POSTInspection[[#This Row],[Line]],H$3),\"\")=\"\"),\"\",INDEX(Table_POSTInfo[],Table_POSTInspection[[#This Row],[Line]],H$3)),\"\")","v":""},{"$f":"IFERROR(IF(OR(Table_POSTInspection[[#This Row],[Line]]<=0,IFERROR(INDEX(Table_POSTInfo[],Table_POSTInspection[[#This Row],[Line]],I$3),\"\")=\"\"),\"\",INDEX(Table_POSTInfo[],Table_POSTInspection[[#This Row],[Line]],I$3)),\"\")","v":""},{"$f":"IFERROR(IF(OR(Table_POSTInspection[[#This Row],[Line]]<=0,IFERROR(INDEX(Table_POSTInfo[],Table_POSTInspection[[#This Row],[Line]],J$3),\"\")=\"\"),\"\",INDEX(Table_POSTInfo[],Table_POSTInspection[[#This Row],[Line]],J$3)),\"\")","v":""},{"$f":"IFERROR(\nIFERROR(OFFSET(Table_TypWattage[[#Headers],[Technology]],MATCH($G50,Table_TypWattage[Technology],0)+MATCH($I50,INDIRECT(SUBSTITUTE(SUBSTITUTE($G50,\" \",\"_\"),\"-\",\"_\")),0)-1,MATCH($H50,'Measure Tables'!$Q$2:$V$2,0)+1),IF(Table_POSTInspection[[#This Row],[Schedule]]<>\"\",IF(AND($H50<>\"\",$H50>0,$I50>0),$H50*$I50,$I50),\"\")),\n\"\")","v":""},{"$f":"IFERROR(IF(OR(Table_POSTInspection[[#This Row],[Line]]<=0,IFERROR(INDEX(Table_POSTInfo[],Table_POSTInspection[[#This Row],[Line]],L$3),\"\")=\"\"),\"\",INDEX(Table_POSTInfo[],Table_POSTInspection[[#This Row],[Line]],L$3)),\"\")","v":""},{"$f":"IFERROR(IF(OR(Table_POSTInspection[[#This Row],[Line]]<=0,IFERROR(INDEX(Table_POSTInfo[],Table_POSTInspection[[#This Row],[Line]],M$3),\"\")=\"\"),\"\",INDEX(Table_POSTInfo[],Table_POSTInspection[[#This Row],[Line]],M$3)),\"\")","v":""},{"$f":"IFERROR(IF(Table_POSTInspection[[#This Row],[Interior/ Exterior]]<>\"\",\n  CONCATENATE(\n  Table_POSTInspection[[#This Row],[Fixture Technology '[P']]],\n  \" - \",Table_POSTInspection[[#This Row],[Fixture Type '[P']]],\" [\",\n  IF(Table_POSTInspection[[#This Row],['# Lamps/ Fixture '[P']]]>0,Table_POSTInspection[[#This Row],['# Lamps/ Fixture '[P']]] & \"L - \" & Table_POSTInspection[[#This Row],[Fixture/ Lamp Wattage '[P']]] & \"W\" & IF(Table_POSTInspection[[#This Row],[Ballast/ Driver '[P']]]<>\"\",\" - \" & Table_POSTInspection[[#This Row],[Ballast/ Driver '[P']]],\"\"),Table_POSTInspection[[#This Row],[Fixture Wattage '[P']]] & \"W\"),\"]\",\n  IF(AND(Table_POSTInspection[[#This Row],[Controls '[P']]]<>\"\",Table_POSTInspection[[#This Row],[Controls '[P']]]<>\"No Controls\"),\" - \" & Table_POSTInspection[[#This Row],[Controls '[P']]],\"\")\n  ),\n\"\"),\"\")","v":""},{"$f":"IFERROR(IF(OR(Table_POSTInspection[[#This Row],[Line]]<=0,IFERROR(INDEX(Table_POSTInfo[],Table_POSTInspection[[#This Row],[Line]],O$3),\"\")=\"\"),\"\",INDEX(Table_POSTInfo[],Table_POSTInspection[[#This Row],[Line]],O$3)),\"\")","v":""},{"$f":"IFERROR(IF(OR(Table_POSTInspection[[#This Row],[Line]]<=0,IFERROR(INDEX(Table_POSTInfo[],Table_POSTInspection[[#This Row],[Line]],P$3),\"\")=\"\"),\"\",INDEX(Table_POSTInfo[],Table_POSTInspection[[#This Row],[Line]],P$3)),\"\")","v":""},{"$f":"IFERROR(IF(OR(Table_POSTInspection[[#This Row],[Line]]<=0,IFERROR(INDEX(Table_POSTInfo[],Table_POSTInspection[[#This Row],[Line]],Q$3),\"\")=\"\"),\"\",INDEX(Table_POSTInfo[],Table_POSTInspection[[#This Row],[Line]],Q$3)),\"\")","v":""}]
[null,{"$f":"IFERROR(IF(OR(Table_POSTInspection[[#This Row],[Line]]<=0,IFERROR(INDEX(Table_POSTInfo[],Table_POSTInspection[[#This Row],[Line]],B$3),\"\")=\"\"),\"\",INDEX(Table_POSTInfo[],Table_POSTInspection[[#This Row],[Line]],B$3)),\"\")","v":""},{"$f":"IFERROR(IF(OR(Table_POSTInspection[[#This Row],[Line]]<=0,IFERROR(INDEX(Table_POSTInfo[],Table_POSTInspection[[#This Row],[Line]],C$3),\"\")=\"\"),\"\",INDEX(Table_POSTInfo[],Table_POSTInspection[[#This Row],[Line]],C$3)),\"\")","v":""},{"$f":"IFERROR(IF(OR(Table_POSTInspection[[#This Row],[Line]]<=0,IFERROR(INDEX(Table_POSTInfo[],Table_POSTInspection[[#This Row],[Line]],D$3),\"\")=\"\"),\"\",INDEX(Table_POSTInfo[],Table_POSTInspection[[#This Row],[Line]],D$3)),\"\")","v":""},null,{"$f":"IFERROR(IF(OR(Table_POSTInspection[[#This Row],[Line]]<=0,IFERROR(INDEX(Table_POSTInfo[],Table_POSTInspection[[#This Row],[Line]],F$3),\"\")=\"\"),\"\",INDEX(Table_POSTInfo[],Table_POSTInspection[[#This Row],[Line]],F$3)),\"\")","v":""},{"$f":"IFERROR(IF(OR(Table_POSTInspection[[#This Row],[Line]]<=0,IFERROR(INDEX(Table_POSTInfo[],Table_POSTInspection[[#This Row],[Line]],G$3),\"\")=\"\"),\"\",INDEX(Table_POSTInfo[],Table_POSTInspection[[#This Row],[Line]],G$3)),\"\")","v":""},{"$f":"IFERROR(IF(OR(Table_POSTInspection[[#This Row],[Line]]<=0,IFERROR(INDEX(Table_POSTInfo[],Table_POSTInspection[[#This Row],[Line]],H$3),\"\")=\"\"),\"\",INDEX(Table_POSTInfo[],Table_POSTInspection[[#This Row],[Line]],H$3)),\"\")","v":""},{"$f":"IFERROR(IF(OR(Table_POSTInspection[[#This Row],[Line]]<=0,IFERROR(INDEX(Table_POSTInfo[],Table_POSTInspection[[#This Row],[Line]],I$3),\"\")=\"\"),\"\",INDEX(Table_POSTInfo[],Table_POSTInspection[[#This Row],[Line]],I$3)),\"\")","v":""},{"$f":"IFERROR(IF(OR(Table_POSTInspection[[#This Row],[Line]]<=0,IFERROR(INDEX(Table_POSTInfo[],Table_POSTInspection[[#This Row],[Line]],J$3),\"\")=\"\"),\"\",INDEX(Table_POSTInfo[],Table_POSTInspection[[#This Row],[Line]],J$3)),\"\")","v":""},{"$f":"IFERROR(\nIFERROR(OFFSET(Table_TypWattage[[#Headers],[Technology]],MATCH($G51,Table_TypWattage[Technology],0)+MATCH($I51,INDIRECT(SUBSTITUTE(SUBSTITUTE($G51,\" \",\"_\"),\"-\",\"_\")),0)-1,MATCH($H51,'Measure Tables'!$Q$2:$V$2,0)+1),IF(Table_POSTInspection[[#This Row],[Schedule]]<>\"\",IF(AND($H51<>\"\",$H51>0,$I51>0),$H51*$I51,$I51),\"\")),\n\"\")","v":""},{"$f":"IFERROR(IF(OR(Table_POSTInspection[[#This Row],[Line]]<=0,IFERROR(INDEX(Table_POSTInfo[],Table_POSTInspection[[#This Row],[Line]],L$3),\"\")=\"\"),\"\",INDEX(Table_POSTInfo[],Table_POSTInspection[[#This Row],[Line]],L$3)),\"\")","v":""},{"$f":"IFERROR(IF(OR(Table_POSTInspection[[#This Row],[Line]]<=0,IFERROR(INDEX(Table_POSTInfo[],Table_POSTInspection[[#This Row],[Line]],M$3),\"\")=\"\"),\"\",INDEX(Table_POSTInfo[],Table_POSTInspection[[#This Row],[Line]],M$3)),\"\")","v":""},{"$f":"IFERROR(IF(Table_POSTInspection[[#This Row],[Interior/ Exterior]]<>\"\",\n  CONCATENATE(\n  Table_POSTInspection[[#This Row],[Fixture Technology '[P']]],\n  \" - \",Table_POSTInspection[[#This Row],[Fixture Type '[P']]],\" [\",\n  IF(Table_POSTInspection[[#This Row],['# Lamps/ Fixture '[P']]]>0,Table_POSTInspection[[#This Row],['# Lamps/ Fixture '[P']]] & \"L - \" & Table_POSTInspection[[#This Row],[Fixture/ Lamp Wattage '[P']]] & \"W\" & IF(Table_POSTInspection[[#This Row],[Ballast/ Driver '[P']]]<>\"\",\" - \" & Table_POSTInspection[[#This Row],[Ballast/ Driver '[P']]],\"\"),Table_POSTInspection[[#This Row],[Fixture Wattage '[P']]] & \"W\"),\"]\",\n  IF(AND(Table_POSTInspection[[#This Row],[Controls '[P']]]<>\"\",Table_POSTInspection[[#This Row],[Controls '[P']]]<>\"No Controls\"),\" - \" & Table_POSTInspection[[#This Row],[Controls '[P']]],\"\")\n  ),\n\"\"),\"\")","v":""},{"$f":"IFERROR(IF(OR(Table_POSTInspection[[#This Row],[Line]]<=0,IFERROR(INDEX(Table_POSTInfo[],Table_POSTInspection[[#This Row],[Line]],O$3),\"\")=\"\"),\"\",INDEX(Table_POSTInfo[],Table_POSTInspection[[#This Row],[Line]],O$3)),\"\")","v":""},{"$f":"IFERROR(IF(OR(Table_POSTInspection[[#This Row],[Line]]<=0,IFERROR(INDEX(Table_POSTInfo[],Table_POSTInspection[[#This Row],[Line]],P$3),\"\")=\"\"),\"\",INDEX(Table_POSTInfo[],Table_POSTInspection[[#This Row],[Line]],P$3)),\"\")","v":""},{"$f":"IFERROR(IF(OR(Table_POSTInspection[[#This Row],[Line]]<=0,IFERROR(INDEX(Table_POSTInfo[],Table_POSTInspection[[#This Row],[Line]],Q$3),\"\")=\"\"),\"\",INDEX(Table_POSTInfo[],Table_POSTInspection[[#This Row],[Line]],Q$3)),\"\")","v":""}]
[null,{"$f":"IFERROR(IF(OR(Table_POSTInspection[[#This Row],[Line]]<=0,IFERROR(INDEX(Table_POSTInfo[],Table_POSTInspection[[#This Row],[Line]],B$3),\"\")=\"\"),\"\",INDEX(Table_POSTInfo[],Table_POSTInspection[[#This Row],[Line]],B$3)),\"\")","v":""},{"$f":"IFERROR(IF(OR(Table_POSTInspection[[#This Row],[Line]]<=0,IFERROR(INDEX(Table_POSTInfo[],Table_POSTInspection[[#This Row],[Line]],C$3),\"\")=\"\"),\"\",INDEX(Table_POSTInfo[],Table_POSTInspection[[#This Row],[Line]],C$3)),\"\")","v":""},{"$f":"IFERROR(IF(OR(Table_POSTInspection[[#This Row],[Line]]<=0,IFERROR(INDEX(Table_POSTInfo[],Table_POSTInspection[[#This Row],[Line]],D$3),\"\")=\"\"),\"\",INDEX(Table_POSTInfo[],Table_POSTInspection[[#This Row],[Line]],D$3)),\"\")","v":""},null,{"$f":"IFERROR(IF(OR(Table_POSTInspection[[#This Row],[Line]]<=0,IFERROR(INDEX(Table_POSTInfo[],Table_POSTInspection[[#This Row],[Line]],F$3),\"\")=\"\"),\"\",INDEX(Table_POSTInfo[],Table_POSTInspection[[#This Row],[Line]],F$3)),\"\")","v":""},{"$f":"IFERROR(IF(OR(Table_POSTInspection[[#This Row],[Line]]<=0,IFERROR(INDEX(Table_POSTInfo[],Table_POSTInspection[[#This Row],[Line]],G$3),\"\")=\"\"),\"\",INDEX(Table_POSTInfo[],Table_POSTInspection[[#This Row],[Line]],G$3)),\"\")","v":""},{"$f":"IFERROR(IF(OR(Table_POSTInspection[[#This Row],[Line]]<=0,IFERROR(INDEX(Table_POSTInfo[],Table_POSTInspection[[#This Row],[Line]],H$3),\"\")=\"\"),\"\",INDEX(Table_POSTInfo[],Table_POSTInspection[[#This Row],[Line]],H$3)),\"\")","v":""},{"$f":"IFERROR(IF(OR(Table_POSTInspection[[#This Row],[Line]]<=0,IFERROR(INDEX(Table_POSTInfo[],Table_POSTInspection[[#This Row],[Line]],I$3),\"\")=\"\"),\"\",INDEX(Table_POSTInfo[],Table_POSTInspection[[#This Row],[Line]],I$3)),\"\")","v":""},{"$f":"IFERROR(IF(OR(Table_POSTInspection[[#This Row],[Line]]<=0,IFERROR(INDEX(Table_POSTInfo[],Table_POSTInspection[[#This Row],[Line]],J$3),\"\")=\"\"),\"\",INDEX(Table_POSTInfo[],Table_POSTInspection[[#This Row],[Line]],J$3)),\"\")","v":""},{"$f":"IFERROR(\nIFERROR(OFFSET(Table_TypWattage[[#Headers],[Technology]],MATCH($G52,Table_TypWattage[Technology],0)+MATCH($I52,INDIRECT(SUBSTITUTE(SUBSTITUTE($G52,\" \",\"_\"),\"-\",\"_\")),0)-1,MATCH($H52,'Measure Tables'!$Q$2:$V$2,0)+1),IF(Table_POSTInspection[[#This Row],[Schedule]]<>\"\",IF(AND($H52<>\"\",$H52>0,$I52>0),$H52*$I52,$I52),\"\")),\n\"\")","v":""},{"$f":"IFERROR(IF(OR(Table_POSTInspection[[#This Row],[Line]]<=0,IFERROR(INDEX(Table_POSTInfo[],Table_POSTInspection[[#This Row],[Line]],L$3),\"\")=\"\"),\"\",INDEX(Table_POSTInfo[],Table_POSTInspection[[#This Row],[Line]],L$3)),\"\")","v":""},{"$f":"IFERROR(IF(OR(Table_POSTInspection[[#This Row],[Line]]<=0,IFERROR(INDEX(Table_POSTInfo[],Table_POSTInspection[[#This Row],[Line]],M$3),\"\")=\"\"),\"\",INDEX(Table_POSTInfo[],Table_POSTInspection[[#This Row],[Line]],M$3)),\"\")","v":""},{"$f":"IFERROR(IF(Table_POSTInspection[[#This Row],[Interior/ Exterior]]<>\"\",\n  CONCATENATE(\n  Table_POSTInspection[[#This Row],[Fixture Technology '[P']]],\n  \" - \",Table_POSTInspection[[#This Row],[Fixture Type '[P']]],\" [\",\n  IF(Table_POSTInspection[[#This Row],['# Lamps/ Fixture '[P']]]>0,Table_POSTInspection[[#This Row],['# Lamps/ Fixture '[P']]] & \"L - \" & Table_POSTInspection[[#This Row],[Fixture/ Lamp Wattage '[P']]] & \"W\" & IF(Table_POSTInspection[[#This Row],[Ballast/ Driver '[P']]]<>\"\",\" - \" & Table_POSTInspection[[#This Row],[Ballast/ Driver '[P']]],\"\"),Table_POSTInspection[[#This Row],[Fixture Wattage '[P']]] & \"W\"),\"]\",\n  IF(AND(Table_POSTInspection[[#This Row],[Controls '[P']]]<>\"\",Table_POSTInspection[[#This Row],[Controls '[P']]]<>\"No Controls\"),\" - \" & Table_POSTInspection[[#This Row],[Controls '[P']]],\"\")\n  ),\n\"\"),\"\")","v":""},{"$f":"IFERROR(IF(OR(Table_POSTInspection[[#This Row],[Line]]<=0,IFERROR(INDEX(Table_POSTInfo[],Table_POSTInspection[[#This Row],[Line]],O$3),\"\")=\"\"),\"\",INDEX(Table_POSTInfo[],Table_POSTInspection[[#This Row],[Line]],O$3)),\"\")","v":""},{"$f":"IFERROR(IF(OR(Table_POSTInspection[[#This Row],[Line]]<=0,IFERROR(INDEX(Table_POSTInfo[],Table_POSTInspection[[#This Row],[Line]],P$3),\"\")=\"\"),\"\",INDEX(Table_POSTInfo[],Table_POSTInspection[[#This Row],[Line]],P$3)),\"\")","v":""},{"$f":"IFERROR(IF(OR(Table_POSTInspection[[#This Row],[Line]]<=0,IFERROR(INDEX(Table_POSTInfo[],Table_POSTInspection[[#This Row],[Line]],Q$3),\"\")=\"\"),\"\",INDEX(Table_POSTInfo[],Table_POSTInspection[[#This Row],[Line]],Q$3)),\"\")","v":""}]
[null,{"$f":"IFERROR(IF(OR(Table_POSTInspection[[#This Row],[Line]]<=0,IFERROR(INDEX(Table_POSTInfo[],Table_POSTInspection[[#This Row],[Line]],B$3),\"\")=\"\"),\"\",INDEX(Table_POSTInfo[],Table_POSTInspection[[#This Row],[Line]],B$3)),\"\")","v":""},{"$f":"IFERROR(IF(OR(Table_POSTInspection[[#This Row],[Line]]<=0,IFERROR(INDEX(Table_POSTInfo[],Table_POSTInspection[[#This Row],[Line]],C$3),\"\")=\"\"),\"\",INDEX(Table_POSTInfo[],Table_POSTInspection[[#This Row],[Line]],C$3)),\"\")","v":""},{"$f":"IFERROR(IF(OR(Table_POSTInspection[[#This Row],[Line]]<=0,IFERROR(INDEX(Table_POSTInfo[],Table_POSTInspection[[#This Row],[Line]],D$3),\"\")=\"\"),\"\",INDEX(Table_POSTInfo[],Table_POSTInspection[[#This Row],[Line]],D$3)),\"\")","v":""},null,{"$f":"IFERROR(IF(OR(Table_POSTInspection[[#This Row],[Line]]<=0,IFERROR(INDEX(Table_POSTInfo[],Table_POSTInspection[[#This Row],[Line]],F$3),\"\")=\"\"),\"\",INDEX(Table_POSTInfo[],Table_POSTInspection[[#This Row],[Line]],F$3)),\"\")","v":""},{"$f":"IFERROR(IF(OR(Table_POSTInspection[[#This Row],[Line]]<=0,IFERROR(INDEX(Table_POSTInfo[],Table_POSTInspection[[#This Row],[Line]],G$3),\"\")=\"\"),\"\",INDEX(Table_POSTInfo[],Table_POSTInspection[[#This Row],[Line]],G$3)),\"\")","v":""},{"$f":"IFERROR(IF(OR(Table_POSTInspection[[#This Row],[Line]]<=0,IFERROR(INDEX(Table_POSTInfo[],Table_POSTInspection[[#This Row],[Line]],H$3),\"\")=\"\"),\"\",INDEX(Table_POSTInfo[],Table_POSTInspection[[#This Row],[Line]],H$3)),\"\")","v":""},{"$f":"IFERROR(IF(OR(Table_POSTInspection[[#This Row],[Line]]<=0,IFERROR(INDEX(Table_POSTInfo[],Table_POSTInspection[[#This Row],[Line]],I$3),\"\")=\"\"),\"\",INDEX(Table_POSTInfo[],Table_POSTInspection[[#This Row],[Line]],I$3)),\"\")","v":""},{"$f":"IFERROR(IF(OR(Table_POSTInspection[[#This Row],[Line]]<=0,IFERROR(INDEX(Table_POSTInfo[],Table_POSTInspection[[#This Row],[Line]],J$3),\"\")=\"\"),\"\",INDEX(Table_POSTInfo[],Table_POSTInspection[[#This Row],[Line]],J$3)),\"\")","v":""},{"$f":"IFERROR(\nIFERROR(OFFSET(Table_TypWattage[[#Headers],[Technology]],MATCH($G53,Table_TypWattage[Technology],0)+MATCH($I53,INDIRECT(SUBSTITUTE(SUBSTITUTE($G53,\" \",\"_\"),\"-\",\"_\")),0)-1,MATCH($H53,'Measure Tables'!$Q$2:$V$2,0)+1),IF(Table_POSTInspection[[#This Row],[Schedule]]<>\"\",IF(AND($H53<>\"\",$H53>0,$I53>0),$H53*$I53,$I53),\"\")),\n\"\")","v":""},{"$f":"IFERROR(IF(OR(Table_POSTInspection[[#This Row],[Line]]<=0,IFERROR(INDEX(Table_POSTInfo[],Table_POSTInspection[[#This Row],[Line]],L$3),\"\")=\"\"),\"\",INDEX(Table_POSTInfo[],Table_POSTInspection[[#This Row],[Line]],L$3)),\"\")","v":""},{"$f":"IFERROR(IF(OR(Table_POSTInspection[[#This Row],[Line]]<=0,IFERROR(INDEX(Table_POSTInfo[],Table_POSTInspection[[#This Row],[Line]],M$3),\"\")=\"\"),\"\",INDEX(Table_POSTInfo[],Table_POSTInspection[[#This Row],[Line]],M$3)),\"\")","v":""},{"$f":"IFERROR(IF(Table_POSTInspection[[#This Row],[Interior/ Exterior]]<>\"\",\n  CONCATENATE(\n  Table_POSTInspection[[#This Row],[Fixture Technology '[P']]],\n  \" - \",Table_POSTInspection[[#This Row],[Fixture Type '[P']]],\" [\",\n  IF(Table_POSTInspection[[#This Row],['# Lamps/ Fixture '[P']]]>0,Table_POSTInspection[[#This Row],['# Lamps/ Fixture '[P']]] & \"L - \" & Table_POSTInspection[[#This Row],[Fixture/ Lamp Wattage '[P']]] & \"W\" & IF(Table_POSTInspection[[#This Row],[Ballast/ Driver '[P']]]<>\"\",\" - \" & Table_POSTInspection[[#This Row],[Ballast/ Driver '[P']]],\"\"),Table_POSTInspection[[#This Row],[Fixture Wattage '[P']]] & \"W\"),\"]\",\n  IF(AND(Table_POSTInspection[[#This Row],[Controls '[P']]]<>\"\",Table_POSTInspection[[#This Row],[Controls '[P']]]<>\"No Controls\"),\" - \" & Table_POSTInspection[[#This Row],[Controls '[P']]],\"\")\n  ),\n\"\"),\"\")","v":""},{"$f":"IFERROR(IF(OR(Table_POSTInspection[[#This Row],[Line]]<=0,IFERROR(INDEX(Table_POSTInfo[],Table_POSTInspection[[#This Row],[Line]],O$3),\"\")=\"\"),\"\",INDEX(Table_POSTInfo[],Table_POSTInspection[[#This Row],[Line]],O$3)),\"\")","v":""},{"$f":"IFERROR(IF(OR(Table_POSTInspection[[#This Row],[Line]]<=0,IFERROR(INDEX(Table_POSTInfo[],Table_POSTInspection[[#This Row],[Line]],P$3),\"\")=\"\"),\"\",INDEX(Table_POSTInfo[],Table_POSTInspection[[#This Row],[Line]],P$3)),\"\")","v":""},{"$f":"IFERROR(IF(OR(Table_POSTInspection[[#This Row],[Line]]<=0,IFERROR(INDEX(Table_POSTInfo[],Table_POSTInspection[[#This Row],[Line]],Q$3),\"\")=\"\"),\"\",INDEX(Table_POSTInfo[],Table_POSTInspection[[#This Row],[Line]],Q$3)),\"\")","v":""}]
[null,{"$f":"IFERROR(IF(OR(Table_POSTInspection[[#This Row],[Line]]<=0,IFERROR(INDEX(Table_POSTInfo[],Table_POSTInspection[[#This Row],[Line]],B$3),\"\")=\"\"),\"\",INDEX(Table_POSTInfo[],Table_POSTInspection[[#This Row],[Line]],B$3)),\"\")","v":""},{"$f":"IFERROR(IF(OR(Table_POSTInspection[[#This Row],[Line]]<=0,IFERROR(INDEX(Table_POSTInfo[],Table_POSTInspection[[#This Row],[Line]],C$3),\"\")=\"\"),\"\",INDEX(Table_POSTInfo[],Table_POSTInspection[[#This Row],[Line]],C$3)),\"\")","v":""},{"$f":"IFERROR(IF(OR(Table_POSTInspection[[#This Row],[Line]]<=0,IFERROR(INDEX(Table_POSTInfo[],Table_POSTInspection[[#This Row],[Line]],D$3),\"\")=\"\"),\"\",INDEX(Table_POSTInfo[],Table_POSTInspection[[#This Row],[Line]],D$3)),\"\")","v":""},null,{"$f":"IFERROR(IF(OR(Table_POSTInspection[[#This Row],[Line]]<=0,IFERROR(INDEX(Table_POSTInfo[],Table_POSTInspection[[#This Row],[Line]],F$3),\"\")=\"\"),\"\",INDEX(Table_POSTInfo[],Table_POSTInspection[[#This Row],[Line]],F$3)),\"\")","v":""},{"$f":"IFERROR(IF(OR(Table_POSTInspection[[#This Row],[Line]]<=0,IFERROR(INDEX(Table_POSTInfo[],Table_POSTInspection[[#This Row],[Line]],G$3),\"\")=\"\"),\"\",INDEX(Table_POSTInfo[],Table_POSTInspection[[#This Row],[Line]],G$3)),\"\")","v":""},{"$f":"IFERROR(IF(OR(Table_POSTInspection[[#This Row],[Line]]<=0,IFERROR(INDEX(Table_POSTInfo[],Table_POSTInspection[[#This Row],[Line]],H$3),\"\")=\"\"),\"\",INDEX(Table_POSTInfo[],Table_POSTInspection[[#This Row],[Line]],H$3)),\"\")","v":""},{"$f":"IFERROR(IF(OR(Table_POSTInspection[[#This Row],[Line]]<=0,IFERROR(INDEX(Table_POSTInfo[],Table_POSTInspection[[#This Row],[Line]],I$3),\"\")=\"\"),\"\",INDEX(Table_POSTInfo[],Table_POSTInspection[[#This Row],[Line]],I$3)),\"\")","v":""},{"$f":"IFERROR(IF(OR(Table_POSTInspection[[#This Row],[Line]]<=0,IFERROR(INDEX(Table_POSTInfo[],Table_POSTInspection[[#This Row],[Line]],J$3),\"\")=\"\"),\"\",INDEX(Table_POSTInfo[],Table_POSTInspection[[#This Row],[Line]],J$3)),\"\")","v":""},{"$f":"IFERROR(\nIFERROR(OFFSET(Table_TypWattage[[#Headers],[Technology]],MATCH($G54,Table_TypWattage[Technology],0)+MATCH($I54,INDIRECT(SUBSTITUTE(SUBSTITUTE($G54,\" \",\"_\"),\"-\",\"_\")),0)-1,MATCH($H54,'Measure Tables'!$Q$2:$V$2,0)+1),IF(Table_POSTInspection[[#This Row],[Schedule]]<>\"\",IF(AND($H54<>\"\",$H54>0,$I54>0),$H54*$I54,$I54),\"\")),\n\"\")","v":""},{"$f":"IFERROR(IF(OR(Table_POSTInspection[[#This Row],[Line]]<=0,IFERROR(INDEX(Table_POSTInfo[],Table_POSTInspection[[#This Row],[Line]],L$3),\"\")=\"\"),\"\",INDEX(Table_POSTInfo[],Table_POSTInspection[[#This Row],[Line]],L$3)),\"\")","v":""},{"$f":"IFERROR(IF(OR(Table_POSTInspection[[#This Row],[Line]]<=0,IFERROR(INDEX(Table_POSTInfo[],Table_POSTInspection[[#This Row],[Line]],M$3),\"\")=\"\"),\"\",INDEX(Table_POSTInfo[],Table_POSTInspection[[#This Row],[Line]],M$3)),\"\")","v":""},{"$f":"IFERROR(IF(Table_POSTInspection[[#This Row],[Interior/ Exterior]]<>\"\",\n  CONCATENATE(\n  Table_POSTInspection[[#This Row],[Fixture Technology '[P']]],\n  \" - \",Table_POSTInspection[[#This Row],[Fixture Type '[P']]],\" [\",\n  IF(Table_POSTInspection[[#This Row],['# Lamps/ Fixture '[P']]]>0,Table_POSTInspection[[#This Row],['# Lamps/ Fixture '[P']]] & \"L - \" & Table_POSTInspection[[#This Row],[Fixture/ Lamp Wattage '[P']]] & \"W\" & IF(Table_POSTInspection[[#This Row],[Ballast/ Driver '[P']]]<>\"\",\" - \" & Table_POSTInspection[[#This Row],[Ballast/ Driver '[P']]],\"\"),Table_POSTInspection[[#This Row],[Fixture Wattage '[P']]] & \"W\"),\"]\",\n  IF(AND(Table_POSTInspection[[#This Row],[Controls '[P']]]<>\"\",Table_POSTInspection[[#This Row],[Controls '[P']]]<>\"No Controls\"),\" - \" & Table_POSTInspection[[#This Row],[Controls '[P']]],\"\")\n  ),\n\"\"),\"\")","v":""},{"$f":"IFERROR(IF(OR(Table_POSTInspection[[#This Row],[Line]]<=0,IFERROR(INDEX(Table_POSTInfo[],Table_POSTInspection[[#This Row],[Line]],O$3),\"\")=\"\"),\"\",INDEX(Table_POSTInfo[],Table_POSTInspection[[#This Row],[Line]],O$3)),\"\")","v":""},{"$f":"IFERROR(IF(OR(Table_POSTInspection[[#This Row],[Line]]<=0,IFERROR(INDEX(Table_POSTInfo[],Table_POSTInspection[[#This Row],[Line]],P$3),\"\")=\"\"),\"\",INDEX(Table_POSTInfo[],Table_POSTInspection[[#This Row],[Line]],P$3)),\"\")","v":""},{"$f":"IFERROR(IF(OR(Table_POSTInspection[[#This Row],[Line]]<=0,IFERROR(INDEX(Table_POSTInfo[],Table_POSTInspection[[#This Row],[Line]],Q$3),\"\")=\"\"),\"\",INDEX(Table_POSTInfo[],Table_POSTInspection[[#This Row],[Line]],Q$3)),\"\")","v":""}]

{"sheet":"Project Retrofit Summary","index":17,"n_rows":44,"n_cols":58,"rows_kept":44,"cut":false,"hidden":false,"merged":[[1,36,1,41],[1,43,1,48],[1,50,1,57]]}
["skip","skip","skip","AnnualOperatingHours  ","InteractiveFactor","Demand Interactive Factor","CoincidenceFactor","Diversity Factor","CFhvac","DFhvac","skip","Existing_Fixture_Name","Existing_Lamp_Qty","Existing_Lamp_Wattage","Existing_Fixture_Qty","skip","Existing_Fixture_Wattage","Existing_Space_kWh","skip","skip","skip","Proposed_Fixture_Name","Proposed_Lamp_Qty","Proposed_Lamp_Wattage","Proposed_Fixture_Qty","skip","Proposed_Fixture_Wattage","skip","Proposed_Space_kWh","skip","skip","skip","skip","skip","Model#","skip","MeasureName","skip","LtgFixture_Rebate","LtgFixture_Inc_Cost","LtgFixture_kWh_Savings","skip","skip","LtgControl_Name","skip","LtgControl_Rebate","LtgControl_Inc_Cost","LtgControl_kWh_Savings","skip","skip","Incentive_Customer","MeasureCost","INTERIOR KWH SAVINGS","INTERIOR KW SAVINGS","Ltg_Measure_kWh_Savings","Ltg_Measure_kW_Savings","kWhSavings","DemandSavingskW"]
[null,null,null,null,null,null,null,null,null,null,null,null,null,null,null,null,null,null,null,null,null,null,null,null,null,null,null,null,null,null,null,null,null,null,null,null,"Fixtures",null,null,null,null,null,null,"Controls",null,null,null,null,null,null,"Totals"]
[1,2,3,4,5,6,7,8,9,10,11,12,13,14,15,16,17,18,19,20,21,22,23,24,25,26,27,28,29,30,31,32,33,34,35,36,37,38,39,40,41,42,43,44,45,46,47,48,49,50,51,52,53,54,55,56,57,58]
["Line Item","IsActive","Complete Fixture Name","OpHrs","EIF","DIF","CF (Ltg)","DF (Ltg)","CF (HVAC)","DF (HVAC)","Space Description","Existing Fixture","# Lamps/ Fixture [E]","Fixture/ Lamp Wattage [E]","E. Qty","Total # Lamps [E]","Existing Fixture Wattage","Existing Fixture kWh","Existing CSF","Existing Fixture (Existing Controls) kWh","Existing Overall kWh","Proposed Fixture","# Lamps/ Fixture [P]","Fixture/ Lamp Wattage [P]","P. Qty","Total # Lamps [P]","Proposed Fixture Wattage","Proposed Wattage","Proposed Fixture kWh","Proposed CSF","Proposed Fixture (Existing Controls) kWh","Proposed Overall kWh (Existing Controls)","Proposed Fixture (Proposed Controls) kWh","Proposed Overall kWh (Proposed Controls)","DLC or Energy Star Certification","1","Fixture Measure Description","Fixture Rebate (per kW)","Fixture Rebate","Fixture Cost","Annual Fixture Savings (kWh)","Fixture kW Reduction","2","Controls Measure Description","Controls Rebate (per Fixt Watt)","Controls Rebate","Controls Cost","Annual Control Savings (kWh)","Control kW Reduction","3","Total Rebate","Total Cost","Induced HVAC Energy Savings (kWh)","Induced HVAC Demand Savings (kW)","Fixture Energy Savings (kWh)","Fixture Demand Savings (kW)","Total Energy Savings (kWh)","Total Demand Savings (kW)"]
[{"$f":"IFERROR(Table_POSTInfo[[#This Row],[Line]],\"\")","v":1},{"$f":"IFERROR(Table_POSTInfo[[#This Row],[IsActive]],\"\")","v":false},{"$f":"IFERROR(IF(Table_RetroSummary[[#This Row],[IsActive]],CONCATENATE(Table_RetroSummary[[#This Row],[Existing Fixture]],\" | \",Table_RetroSummary[[#This Row],[Proposed Fixture]]),\"\"),\"\")","v":""},{"$f":"IFERROR(IF(Table_RetroSummary[[#This Row],[IsActive]],VLOOKUP(IF(ISNUMBER(MATCH(Table_POSTInfo[[#This Row],[Line]],Table_POSTInspection[Line],0)),INDEX(Table_POSTInspection[Schedule],MATCH(Table_RetroSummary[[#This Row],[Line Item]],Table_POSTInspection[Line],0)),Table_POSTInfo[[#This Row],[Schedule]]),'Customer Information'!$S$27:$T$34,2,FALSE),\"\"),\"\")","v":""},{"$f":"IFERROR(IF(Table_RetroSummary[[#This Row],[IsActive]],IF(IF(ISNUMBER(MATCH(Table_RetroSummary[[#This Row],[Line Item]],Table_POSTInspection[Line],0)),INDEX(Table_POSTInspection[Interior/ Exterior],MATCH(Table_RetroSummary[[#This Row],[Line Item]],Table_POSTInfo[[#This Row],[Line]],0)),Table_POSTInfo[[#This Row],[Interior/ Exterior]])=\"Interior\",'Customer Information'!$S$25,0),\"\"),\"\")","v":""},{"$f":"IFERROR(IF(Table_RetroSummary[[#This Row],[IsActive]],IF(IF(ISNUMBER(MATCH(Table_RetroSummary[[#This Row],[Line Item]],Table_POSTInspection[Line],0)),INDEX(Table_POSTInspection[Interior/ Exterior],MATCH(Table_RetroSummary[[#This Row],[Line Item]],Table_POSTInfo[[#This Row],[Line]],0)),Table_POSTInfo[[#This Row],[Interior/ Exterior]])=\"Interior\",'Customer Information'!$T$25,0),\"\"),\"\")","v":""},{"$f":"IFERROR(IF(Table_RetroSummary[[#This Row],[IsActive]],IF(IF(ISNUMBER(MATCH(Table_RetroSummary[[#This Row],[Line Item]],Table_POSTInspection[Line],0)),INDEX(Table_POSTInspection[Interior/ Exterior],MATCH(Table_RetroSummary[[#This Row],[Line Item]],Table_POSTInfo[[#This Row],[Line]],0)),Table_POSTInfo[[#This Row],[Interior/ Exterior]])=\"Interior\",'Customer Information'!$U$25,0),\"\"),\"\")","v":""},{"$f":"IFERROR(IF(Table_RetroSummary[[#This Row],[IsActive]],IF(IF(ISNUMBER(MATCH(Table_RetroSummary[[#This Row],[Line Item]],Table_POSTInspection[Line],0)),INDEX(Table_POSTInspection[Interior/ Exterior],MATCH(Table_RetroSummary[[#This Row],[Line Item]],Table_POSTInfo[[#This Row],[Line]],0)),Table_POSTInfo[[#This Row],[Interior/ Exterior]])=\"Interior\",'Customer Information'!$V$25,0),\"\"),\"\")","v":""},{"$f":"IFERROR(IF(Table_RetroSummary[[#This Row],[IsActive]],IF(IF(ISNUMBER(MATCH(Table_RetroSummary[[#This Row],[Line Item]],Table_POSTInspection[Line],0)),INDEX(Table_POSTInspection[Interior/ Exterior],MATCH(Table_RetroSummary[[#This Row],[Line Item]],Table_POSTInfo[[#This Row],[Line]],0)),Table_POSTInfo[[#This Row],[Interior/ Exterior]])=\"Interior\",'Customer Information'!$W$25,0),\"\"),\"\")","v":""},{"$f":"IFERROR(IF(Table_RetroSummary[[#This Row],[IsActive]],IF(IF(ISNUMBER(MATCH(Table_RetroSummary[[#This Row],[Line Item]],Table_POSTInspection[Line],0)),INDEX(Table_POSTInspection[Interior/ Exterior],MATCH(Table_RetroSummary[[#This Row],[Line Item]],Table_POSTInfo[[#This Row],[Line]],0)),Table_POSTInfo[[#This Row],[Interior/ Exterior]])=\"Interior\",'Customer Information'!$X$25,0),\"\"),\"\")","v":""},{"$f":"IFERROR(IF(Table_RetroSummary[[#This Row],[IsActive]],\nCONCATENATE(\nIF(ISNUMBER(MATCH(Table_POSTInfo[[#This Row],[Line]],Table_POSTInspection[Line],0)),INDEX(Table_POSTInspection[Interior/ Exterior],MATCH(Table_RetroSummary[[#This Row],[Line Item]],Table_POSTInspection[Line],0)),Table_POSTInfo[[#This Row],[Interior/ Exterior]]),\n\" - \",\nIF(ISNUMBER(MATCH(Table_POSTInfo[[#This Row],[Line]],Table_POSTInspection[Line],0)),INDEX(Table_POSTInspection[Space Description],MATCH(Table_RetroSummary[[#This Row],[Line Item]],Table_POSTInspection[Line],0)),Table_POSTInfo[[#This Row],[Space Description]])),\n \"\"),\"\")","v":""},{"$f":"IFERROR(IF(Table_RetroSummary[[#This Row],[IsActive]]=\"\",\"\",Table_POSTInfo[[#This Row],[Fixture Description '[E']]]),\"\")","v":""},{"$f":"IFERROR(IF(Table_RetroSummary[[#This Row],[IsActive]]=\"\",\"\",Table_POSTInfo[[#This Row],['# Lamps/ Fixture '[E']]]),\"\")","v":""},{"$f":"IFERROR(IF(Table_RetroSummary[[#This Row],[IsActive]]=\"\",\"\",Table_POSTInfo[[#This Row],[Fixture/ Lamp Wattage '[E']]]),\"\")","v":""},{"$f":"IFERROR(IF(Table_RetroSummary[[#This Row],[IsActive]]=\"\",\"\",Table_POSTInfo[[#This Row],[Fixture Qty '[E']]]),\"\")","v":""},{"$f":"IFERROR(IF(Table_RetroSummary[[#This Row],[IsActive]],Table_RetroSummary[[#This Row],[Fixture/ Lamp Wattage '[E']]]*Table_RetroSummary[[#This Row],[E. Qty]],\"\"),\"\")","v":""},{"$f":"IFERROR(IF(Table_RetroSummary[[#This Row],[IsActive]]=\"\",\"\",Table_POSTInfo[[#This Row],[Fixture Wattage '[E']]]),\"\")","v":""},{"$f":"IFERROR(IF(Table_RetroSummary[[#This Row],[IsActive]],IFERROR(Table_RetroSummary[[#This Row],[Existing Fixture Wattage]]/1000*Table_RetroSummary[[#This Row],[OpHrs]]*Table_RetroSummary[[#This Row],[E. Qty]],0),\"\"),\"\")","v":""},{"$f":"IFERROR(IF(Table_RetroSummary[[#This Row],[IsActive]],IFERROR(VLOOKUP(RIGHT(Table_RetroSummary[[#This Row],[Existing Fixture]],LEN(Table_RetroSummary[[#This Row],[Existing Fixture]])-FIND(\" - \",Table_RetroSummary[[#This Row],[Existing Fixture]],FIND(\"]\",Table_RetroSummary[[#This Row],[Existing Fixture]],1))-2),Table_ControlType[],3,FALSE),0),\"\"),\"\")","v":""},{"$f":"IFERROR(IF(Table_RetroSummary[[#This Row],[IsActive]],IFERROR(Table_RetroSummary[[#This Row],[Existing Fixture Wattage]]/1000*Table_RetroSummary[[#This Row],[OpHrs]]*Table_RetroSummary[[#This Row],[E. Qty]]*Table_RetroSummary[[#This Row],[Existing CSF]]*(-1),0),\"\"),\"\")","v":""},{"$f":"IFERROR(Table_RetroSummary[[#This Row],[Existing Fixture kWh]]+Table_RetroSummary[[#This Row],[Existing Fixture (Existing Controls) kWh]],\"\")","v":""},{"$f":"IFERROR(IF(Table_RetroSummary[[#This Row],[IsActive]],IF(ISNUMBER(MATCH(Table_POSTInfo[[#This Row],[Line]],Table_POSTInspection[Line],0)),INDEX(Table_POSTInspection[Fixture Description '[P']],MATCH(Table_RetroSummary[[#This Row],[Line Item]],Table_POSTInspection[Line],0)),Table_POSTInfo[[#This Row],[Fixture Description '[P']]]),\"\"),\"\")","v":""},{"$f":"IFERROR(IF(Table_RetroSummary[[#This Row],[IsActive]],IF(ISNUMBER(MATCH(Table_POSTInfo[[#This Row],[Line]],Table_POSTInspection[Line],0)),INDEX(Table_POSTInspection['# Lamps/ Fixture '[P']],MATCH(Table_RetroSummary[[#This Row],[Line Item]],Table_POSTInspection[Line],0)),Table_POSTInfo[[#This Row],['# Lamps/ Fixture '[P']]]),\"\"),\"\")","v":""},{"$f":"IFERROR(IF(Table_RetroSummary[[#This Row],[IsActive]],IF(ISNUMBER(MATCH(Table_POSTInfo[[#This Row],[Line]],Table_POSTInspection[Line],0)),INDEX(Table_POSTInspection[Fixture/ Lamp Wattage '[P']],MATCH(Table_RetroSummary[[#This Row],[Line Item]],Table_POSTInspection[Line],0)),Table_POSTInfo[[#This Row],[Fixture/ Lamp Wattage '[P']]]),\"\"),\"\")","v":""},{"$f":"IFERROR(IF(Table_RetroSummary[[#This Row],[IsActive]],IF(ISNUMBER(MATCH(Table_POSTInfo[[#This Row],[Line]],Table_POSTInspection[Line],0)),INDEX(Table_POSTInspection[Fixture Qty '[P']],MATCH(Table_RetroSummary[[#This Row],[Line Item]],Table_POSTInspection[Line],0)),Table_POSTInfo[[#This Row],[Fixture Qty '[P']]]),\"\"),\"\")","v":""},{"$f":"IFERROR(IF(Table_RetroSummary[[#This Row],[IsActive]],Table_RetroSummary[[#This Row],[Fixture/ Lamp Wattage '[P']]]*Table_RetroSummary[[#This Row],[P. Qty]],\"\"),\"\")","v":""},{"$f":"IFERROR(IF(Table_RetroSummary[[#This Row],[IsActive]],IF(ISNUMBER(MATCH(Table_POSTInfo[[#This Row],[Line]],Table_POSTInspection[Line],0)),INDEX(Table_POSTInspection[Fixture Wattage '[P']],MATCH(Table_RetroSummary[[#This Row],[Line Item]],Table_POSTInspection[Line],0)),Table_POSTInfo[[#This Row],[Fixture Wattage '[P']]]),\"\"),\"\")","v":""},{"$f":"IFERROR(Table_RetroSummary[[#This Row],[Total '# Lamps '[P']]]+Table_RetroSummary[[#This Row],[Proposed Fixture Wattage]],\"\")","v":""},{"$f":"IFERROR(Table_RetroSummary[[#This Row],[Proposed Fixture Wattage]]/1000*Table_RetroSummary[[#This Row],[OpHrs]]*Table_RetroSummary[[#This Row],[P. Qty]],\"\")","v":""},{"$f":"IFERROR(IF(Table_RetroSummary[[#This Row],[IsActive]],IFERROR(VLOOKUP(RIGHT(Table_RetroSummary[[#This Row],[Proposed Fixture]],LEN(Table_RetroSummary[[#This Row],[Proposed Fixture]])-FIND(\" - \",Table_RetroSummary[[#This Row],[Proposed Fixture]],FIND(\"]\",Table_RetroSummary[[#This Row],[Proposed Fixture]],1))-2),Table_ControlType[],3, FALSE),0),\"\"),\"\")","v":""},{"$f":"IFERROR(IF(Table_RetroSummary[[#This Row],[IsActive]],IFERROR(Table_RetroSummary[[#This Row],[Proposed Fixture Wattage]]/1000*Table_RetroSummary[[#This Row],[OpHrs]]*Table_RetroSummary[[#This Row],[P. Qty]]*Table_RetroSummary[[#This Row],[Existing CSF]]*(-1),0),\"\"),\"\")","v":""},{"$f":"IFERROR(Table_RetroSummary[[#This Row],[Proposed Fixture kWh]]+Table_RetroSummary[[#This Row],[Proposed Fixture (Existing Controls) kWh]],\"\")","v":""},{"$f":"IFERROR(IF(Table_RetroSummary[[#This Row],[IsActive]],IFERROR(Table_RetroSummary[[#This Row],[Proposed Fixture Wattage]]/1000*Table_RetroSummary[[#This Row],[OpHrs]]*Table_RetroSummary[[#This Row],[P. Qty]]*Table_RetroSummary[[#This Row],[Proposed CSF]]*(-1),0),\"\"),\"\")","v":""},{"$f":"IFERROR(Table_RetroSummary[[#This Row],[Proposed Fixture kWh]]+Table_RetroSummary[[#This Row],[Proposed Fixture (Proposed Controls) kWh]],\"\")","v":""},{"$f":"IFERROR(IF(Table_RetroSummary[[#This Row],[IsActive]],IF(ISNUMBER(MATCH(Table_POSTInfo[[#This Row],[Line]],Table_POSTInspection[Line],0)),INDEX(Table_POSTInspection[DLC or ES Certification '[P']],MATCH(Table_RetroSummary[[#This Row],[Line Item]],Table_POSTInspection[Line],0)),Table_POSTInfo[[#This Row],[DLC or ES Certification '[P']]]),\"\"),\"\")","v":""},null,{"$f":"IFERROR(IF(Table_RetroSummary[[#This Row],[IsActive]],\nIF(AND(RIGHT(Table_RetroSummary[[#This Row],[Existing Fixture]],LEN(Table_RetroSummary[[#This Row],[Existing Fixture]])-FIND(\":\",Table_RetroSummary[[#This Row],[Existing Fixture]],1)-1)<>Table_RetroSummary[[#This Row],[Proposed Fixture]],MID(Table_RetroSummary[[#This Row],[Existing Fixture]],FIND(\": \",Table_RetroSummary[[#This Row],[Existing Fixture]],1)+2,FIND(\"]\",Table_RetroSummary[[#This Row],[Existing Fixture]],1))=LEFT(Table_RetroSummary[[#This Row],[Proposed Fixture]],FIND(\"]\",Table_RetroSummary[[#This Row],[Proposed Fixture]],1))),\n  \"Controls Only\",\n  IF(Table_POSTInfo[[#This Row],[DLC or ES Certification '[P']]]<>\"\",\n    IF(ISNUMBER(FIND(\"LED Tube\",Table_RetroSummary[[#This Row],[Proposed Fixture]],1)),\n      \"LED Re-Lamp\",\n      IF(AND(Table_RetroSummary[[#This Row],[Existing Overall kWh]]>Table_RetroSummary[[#This Row],[Proposed Overall kWh (Existing Controls)]],ISNUMBER(FIND(\"LED\",Table_RetroSummary[[#This Row],[Proposed Fixture]],1))),\n        IF(Table_POSTInfo[[#This Row],[Interior/ Exterior]]=\"Exterior\",\n          \"Exterior LED Fixture\",\n          \"Interior LED Fixture\"),\n        \"Ineligible Fixture\")),\n    \"Ineligible Fixture\")),\n\"\"),\"\")","v":""},{"$f":"IFERROR(VLOOKUP(Table_RetroSummary[[#This Row],[Fixture Measure Description]],Table_FixtureRate[],2,FALSE),\"\")","v":""},{"$f":"IFERROR(IF(Table_RetroSummary[[#This Row],[IsActive]],IF(Table_RetroSummary[[#This Row],[Fixture Measure Description]]=\"Ineligible Fixture\",0,ROUND(Table_RetroSummary[[#This Row],[Fixture Rebate (per kW)]]*(Table_RetroSummary[[#This Row],[Existing Fixture Wattage]]*Table_RetroSummary[[#This Row],[E. Qty]]-Table_RetroSummary[[#This Row],[Proposed Fixture Wattage]]*Table_RetroSummary[[#This Row],[P. Qty]])/1000,2)),\"\"),\"\")","v":""},{"$f":"IFERROR(IF(Table_RetroSummary[[#This Row],[Fixture Measure Description]]=\"Ineligible Fixture\",0,ROUND(IF(ProjectCost_Total=0,300000,ProjectCost_Total)*Table_RetroSummary[[#This Row],[Fixture Rebate]]/SUM(Table_RetroSummary[Fixture Rebate],Table_RetroSummary[Controls Rebate]),2)),\"\")","v":""},{"$f":"IFERROR(IF(Table_RetroSummary[[#This Row],[IsActive]],IF(Table_RetroSummary[[#This Row],[Fixture Measure Description]]=\"Ineligible Fixture\",0,Table_RetroSummary[[#This Row],[Existing Overall kWh]]-Table_RetroSummary[[#This Row],[Proposed Overall kWh (Existing Controls)]]),\"\"),\"\")","v":""},{"$f":"IFERROR(IF(Table_RetroSummary[[#This Row],[IsActive]],IF(Table_RetroSummary[[#This Row],[Fixture Measure Description]]=\"Ineligible Fixture\",0,(Table_RetroSummary[[#This Row],[Existing Fixture kWh]]-Table_RetroSummary[[#This Row],[Proposed Fixture kWh]])/Table_RetroSummary[[#This Row],[OpHrs]]*Table_RetroSummary[[#This Row],[CF (Ltg)]]*Table_RetroSummary[[#This Row],[DF (Ltg)]]),\"\"),\"\")","v":""},null,{"$f":"IFERROR(\n  IF(OR(Table_RetroSummary[[#This Row],[Fixture Measure Description]]=\"\",Table_RetroSummary[[#This Row],[Fixture Measure Description]]=\"Ineligible Fixture\"),\n    \"\",\n    IFERROR(VLOOKUP(RIGHT(Table_RetroSummary[[#This Row],[Existing Fixture]],LEN(Table_RetroSummary[[#This Row],[Existing Fixture]])-FIND(\" - \",Table_RetroSummary[[#This Row],[Existing Fixture]],FIND(\"]\",Table_RetroSummary[[#This Row],[Existing Fixture]],1))-2),Table_ControlType[],2,FALSE),\"None\")\n    & \" - \" &\n    IFERROR(VLOOKUP(RIGHT(Table_RetroSummary[[#This Row],[Proposed Fixture]],LEN(Table_RetroSummary[[#This Row],[Proposed Fixture]])-FIND(\" - \",Table_RetroSummary[[#This Row],[Proposed Fixture]],FIND(\"]\",Table_RetroSummary[[#This Row],[Proposed Fixture]],1))-2),Table_ControlType[],2, FALSE),None)),\n\"\")","v":""},{"$f":"IFERROR(VLOOKUP(Table_RetroSummary[[#This Row],[Controls Measure Description]],Table_ControlRate[],2,FALSE),\"\")","v":""},{"$f":"IFERROR(IF(Table_RetroSummary[[#This Row],[IsActive]],IF(Table_RetroSummary[[#This Row],[Controls Measure Description]]=\"\",0,ROUND(Table_RetroSummary[[#This Row],[Controls Rebate (per Fixt Watt)]]*Table_RetroSummary[[#This Row],[Proposed Fixture Wattage]]*Table_RetroSummary[[#This Row],[P. Qty]],2)),\"\"),\"\")","v":""},{"$f":"IFERROR(IF(Table_RetroSummary[[#This Row],[Fixture Measure Description]]=\"Ineligible Fixture\",0,ROUND(IF(ProjectCost_Total=0,300000,ProjectCost_Total)*Table_RetroSummary[[#This Row],[Controls Rebate]]/SUM(Table_RetroSummary[Fixture Rebate],Table_RetroSummary[Controls Rebate]),2)),\"\")","v":""},{"$f":"IFERROR(IF(Table_RetroSummary[[#This Row],[IsActive]],IF(Table_RetroSummary[[#This Row],[Controls Measure Description]]=\"\",0,(Table_RetroSummary[[#This Row],[Proposed Fixture (Existing Controls) kWh]]-Table_RetroSummary[[#This Row],[Proposed Fixture (Proposed Controls) kWh]])),\"\"),\"\")","v":""},{"$f":"IFERROR(IF(Table_RetroSummary[[#This Row],[IsActive]],IF(Table_RetroSummary[[#This Row],[Controls Measure Description]]=\"\",0,(Table_RetroSummary[[#This Row],[Proposed Fixture (Existing Controls) kWh]]-Table_RetroSummary[[#This Row],[Proposed Fixture (Proposed Controls) kWh]])/Table_RetroSummary[[#This Row],[OpHrs]]*Table_RetroSummary[[#This Row],[CF (Ltg)]]*Table_RetroSummary[[#This Row],[DF (Ltg)]]),\"\"),\"\")","v":""},null,{"$f":"IFERROR(IF(NOT(ISNUMBER(Table_RetroSummary[[#This Row],[Fixture Rebate]])),\"\",IF(MIN(IF(SUM(Table_RetroSummary[Fixture Cost],Table_RetroSummary[Controls Cost])<0,0,SUM(Table_RetroSummary[Fixture Cost],Table_RetroSummary[Controls Cost])),SUM(Table_RetroSummary[Fixture Rebate],Table_RetroSummary[Controls Rebate]))>300000,300000/MIN(IF(SUM(Table_RetroSummary[Fixture Cost],Table_RetroSummary[Controls Cost])<0,0,SUM(Table_RetroSummary[Fixture Cost],Table_RetroSummary[Controls Cost])),SUM(Table_RetroSummary[Fixture Rebate],Table_RetroSummary[Controls Rebate]))*MIN(IF(SUM(Table_RetroSummary[Fixture Cost],Table_RetroSummary[Controls Cost])<0,0,SUM(Table_RetroSummary[Fixture Cost],Table_RetroSummary[Controls Cost])),Table_RetroSummary[[#This Row],[Fixture Rebate]]+IF(Table_RetroSummary[[#This Row],[Controls Rebate]]=\"\",0,Table_RetroSummary[[#This Row],[Controls Rebate]])),MIN(IF(SUM(Table_RetroSummary[Fixture Cost],Table_RetroSummary[Controls Cost])<0,0,SUM(Table_RetroSummary[Fixture Cost],Table_RetroSummary[Controls Cost])),Table_RetroSummary[[#This Row],[Fixture Rebate]]+IF(Table_RetroSummary[[#This Row],[Controls Rebate]]=\"\",0,Table_RetroSummary[[#This Row],[Controls Rebate]])))),\"\")","v":""},{"$f":"IFERROR(IF(Table_RetroSummary[[#This Row],[Fixture Cost]]=\"\",\"\",Table_RetroSummary[[#This Row],[Fixture Cost]]+IF(Table_RetroSummary[[#This Row],[Controls Cost]]=\"\",0,Table_RetroSummary[[#This Row],[Controls Cost]])),\"\")","v":""},{"$f":"IFERROR(IF(Table_RetroSummary[[#This Row],[IsActive]],IF(NOT(ISNUMBER(Table_RetroSummary[[#This Row],[Fixture Rebate]])),\"\",IF(Table_POSTInfo[[#This Row],[Interior/ Exterior]]=\"Interior\",IFERROR((Table_RetroSummary[[#This Row],[Annual Fixture Savings (kWh)]]+Table_RetroSummary[[#This Row],[Annual Control Savings (kWh)]])*(Table_RetroSummary[[#This Row],[EIF]]-1),0),0)),\"\"),\"\")","v":""},{"$f":"IFERROR(IF(Table_RetroSummary[[#This Row],[IsActive]],IF(NOT(ISNUMBER(Table_RetroSummary[[#This Row],[Fixture Rebate]])),\"\",IF(Table_POSTInfo[[#This Row],[Interior/ Exterior]]=\"Interior\",IFERROR((Table_RetroSummary[[#This Row],[Fixture kW Reduction]]+Table_RetroSummary[[#This Row],[Control kW Reduction]]/(Table_RetroSummary[[#This Row],[CF (Ltg)]]*Table_RetroSummary[[#This Row],[DF (Ltg)]]))*(Table_RetroSummary[[#This Row],[DIF]]-1)*Table_RetroSummary[[#This Row],[CF (HVAC)]]*Table_RetroSummary[[#This Row],[DF (HVAC)]],0),0)),\"\"),\"\")","v":""},{"$f":"IFERROR(IF(Table_RetroSummary[[#This Row],[IsActive]],IF(NOT(ISNUMBER(Table_RetroSummary[[#This Row],[Fixture Rebate]])),\"\",ROUND(Table_RetroSummary[[#This Row],[Annual Fixture Savings (kWh)]]+Table_RetroSummary[[#This Row],[Annual Control Savings (kWh)]],0)),\"\"),\"\")","v":""},{"$f":"IFERROR(IF(Table_RetroSummary[[#This Row],[IsActive]],IF(NOT(ISNUMBER(Table_RetroSummary[[#This Row],[Fixture Rebate]])),\"\",ROUND(Table_RetroSummary[[#This Row],[Fixture kW Reduction]]+Table_RetroSummary[[#This Row],[Control kW Reduction]],3)),\"\"),\"\")","v":""},{"$f":"IFERROR(IF(Table_RetroSummary[[#This Row],[IsActive]],IF(NOT(ISNUMBER(Table_RetroSummary[[#This Row],[Fixture Rebate]])),\"\",ROUND(Table_RetroSummary[[#This Row],[Fixture Energy Savings (kWh)]]+Table_RetroSummary[[#This Row],[Induced HVAC Energy Savings (kWh)]],0)),\"\"),\"\")","v":""},{"$f":"IFERROR(IF(Table_RetroSummary[[#This Row],[IsActive]],IF(NOT(ISNUMBER(Table_RetroSummary[[#This Row],[Fixture Rebate]])),\"\",ROUND(Table_RetroSummary[[#This Row],[Fixture Demand Savings (kW)]]+Table_RetroSummary[[#This Row],[Induced HVAC Demand Savings (kW)]],3)),\"\"),\"\")","v":""}]
[{"$f":"IFERROR(Table_POSTInfo[[#This Row],[Line]],\"\")","v":2},{"$f":"IFERROR(Table_POSTInfo[[#This Row],[IsActive]],\"\")","v":false},{"$f":"IFERROR(IF(Table_RetroSummary[[#This Row],[IsActive]],CONCATENATE(Table_RetroSummary[[#This Row],[Existing Fixture]],\" | \",Table_RetroSummary[[#This Row],[Proposed Fixture]]),\"\"),\"\")","v":""},{"$f":"IFERROR(IF(Table_RetroSummary[[#This Row],[IsActive]],VLOOKUP(IF(ISNUMBER(MATCH(Table_POSTInfo[[#This Row],[Line]],Table_POSTInspection[Line],0)),INDEX(Table_POSTInspection[Schedule],MATCH(Table_RetroSummary[[#This Row],[Line Item]],Table_POSTInspection[Line],0)),Table_POSTInfo[[#This Row],[Schedule]]),'Customer Information'!$S$27:$T$34,2,FALSE),\"\"),\"\")","v":""},{"$f":"IFERROR(IF(Table_RetroSummary[[#This Row],[IsActive]],IF(IF(ISNUMBER(MATCH(Table_RetroSummary[[#This Row],[Line Item]],Table_POSTInspection[Line],0)),INDEX(Table_POSTInspection[Interior/ Exterior],MATCH(Table_RetroSummary[[#This Row],[Line Item]],Table_POSTInfo[[#This Row],[Line]],0)),Table_POSTInfo[[#This Row],[Interior/ Exterior]])=\"Interior\",'Customer Information'!$S$25,0),\"\"),\"\")","v":""},{"$f":"IFERROR(IF(Table_RetroSummary[[#This Row],[IsActive]],IF(IF(ISNUMBER(MATCH(Table_RetroSummary[[#This Row],[Line Item]],Table_POSTInspection[Line],0)),INDEX(Table_POSTInspection[Interior/ Exterior],MATCH(Table_RetroSummary[[#This Row],[Line Item]],Table_POSTInfo[[#This Row],[Line]],0)),Table_POSTInfo[[#This Row],[Interior/ Exterior]])=\"Interior\",'Customer Information'!$T$25,0),\"\"),\"\")","v":""},{"$f":"IFERROR(IF(Table_RetroSummary[[#This Row],[IsActive]],IF(IF(ISNUMBER(MATCH(Table_RetroSummary[[#This Row],[Line Item]],Table_POSTInspection[Line],0)),INDEX(Table_POSTInspection[Interior/ Exterior],MATCH(Table_RetroSummary[[#This Row],[Line Item]],Table_POSTInfo[[#This Row],[Line]],0)),Table_POSTInfo[[#This Row],[Interior/ Exterior]])=\"Interior\",'Customer Information'!$U$25,0),\"\"),\"\")","v":""},{"$f":"IFERROR(IF(Table_RetroSummary[[#This Row],[IsActive]],IF(IF(ISNUMBER(MATCH(Table_RetroSummary[[#This Row],[Line Item]],Table_POSTInspection[Line],0)),INDEX(Table_POSTInspection[Interior/ Exterior],MATCH(Table_RetroSummary[[#This Row],[Line Item]],Table_POSTInfo[[#This Row],[Line]],0)),Table_POSTInfo[[#This Row],[Interior/ Exterior]])=\"Interior\",'Customer Information'!$V$25,0),\"\"),\"\")","v":""},{"$f":"IFERROR(IF(Table_RetroSummary[[#This Row],[IsActive]],IF(IF(ISNUMBER(MATCH(Table_RetroSummary[[#This Row],[Line Item]],Table_POSTInspection[Line],0)),INDEX(Table_POSTInspection[Interior/ Exterior],MATCH(Table_RetroSummary[[#This Row],[Line Item]],Table_POSTInfo[[#This Row],[Line]],0)),Table_POSTInfo[[#This Row],[Interior/ Exterior]])=\"Interior\",'Customer Information'!$W$25,0),\"\"),\"\")","v":""},{"$f":"IFERROR(IF(Table_RetroSummary[[#This Row],[IsActive]],IF(IF(ISNUMBER(MATCH(Table_RetroSummary[[#This Row],[Line Item]],Table_POSTInspection[Line],0)),INDEX(Table_POSTInspection[Interior/ Exterior],MATCH(Table_RetroSummary[[#This Row],[Line Item]],Table_POSTInfo[[#This Row],[Line]],0)),Table_POSTInfo[[#This Row],[Interior/ Exterior]])=\"Interior\",'Customer Information'!$X$25,0),\"\"),\"\")","v":""},{"$f":"IFERROR(IF(Table_RetroSummary[[#This Row],[IsActive]],\nCONCATENATE(\nIF(ISNUMBER(MATCH(Table_POSTInfo[[#This Row],[Line]],Table_POSTInspection[Line],0)),INDEX(Table_POSTInspection[Interior/ Exterior],MATCH(Table_RetroSummary[[#This Row],[Line Item]],Table_POSTInspection[Line],0)),Table_POSTInfo[[#This Row],[Interior/ Exterior]]),\n\" - \",\nIF(ISNUMBER(MATCH(Table_POSTInfo[[#This Row],[Line]],Table_POSTInspection[Line],0)),INDEX(Table_POSTInspection[Space Description],MATCH(Table_RetroSummary[[#This Row],[Line Item]],Table_POSTInspection[Line],0)),Table_POSTInfo[[#This Row],[Space Description]])),\n \"\"),\"\")","v":""},{"$f":"IFERROR(IF(Table_RetroSummary[[#This Row],[IsActive]]=\"\",\"\",Table_POSTInfo[[#This Row],[Fixture Description '[E']]]),\"\")","v":""},{"$f":"IFERROR(IF(Table_RetroSummary[[#This Row],[IsActive]]=\"\",\"\",Table_POSTInfo[[#This Row],['# Lamps/ Fixture '[E']]]),\"\")","v":""},{"$f":"IFERROR(IF(Table_RetroSummary[[#This Row],[IsActive]]=\"\",\"\",Table_POSTInfo[[#This Row],[Fixture/ Lamp Wattage '[E']]]),\"\")","v":""},{"$f":"IFERROR(IF(Table_RetroSummary[[#This Row],[IsActive]]=\"\",\"\",Table_POSTInfo[[#This Row],[Fixture Qty '[E']]]),\"\")","v":""},{"$f":"IFERROR(IF(Table_RetroSummary[[#This Row],[IsActive]],Table_RetroSummary[[#This Row],[Fixture/ Lamp Wattage '[E']]]*Table_RetroSummary[[#This Row],[E. Qty]],\"\"),\"\")","v":""},{"$f":"IFERROR(IF(Table_RetroSummary[[#This Row],[IsActive]]=\"\",\"\",Table_POSTInfo[[#This Row],[Fixture Wattage '[E']]]),\"\")","v":""},{"$f":"IFERROR(IF(Table_RetroSummary[[#This Row],[IsActive]],IFERROR(Table_RetroSummary[[#This Row],[Existing Fixture Wattage]]/1000*Table_RetroSummary[[#This Row],[OpHrs]]*Table_RetroSummary[[#This Row],[E. Qty]],0),\"\"),\"\")","v":""},{"$f":"IFERROR(IF(Table_RetroSummary[[#This Row],[IsActive]],IFERROR(VLOOKUP(RIGHT(Table_RetroSummary[[#This Row],[Existing Fixture]],LEN(Table_RetroSummary[[#This Row],[Existing Fixture]])-FIND(\" - \",Table_RetroSummary[[#This Row],[Existing Fixture]],FIND(\"]\",Table_RetroSummary[[#This Row],[Existing Fixture]],1))-2),Table_ControlType[],3,FALSE),0),\"\"),\"\")","v":""},{"$f":"IFERROR(IF(Table_RetroSummary[[#This Row],[IsActive]],IFERROR(Table_RetroSummary[[#This Row],[Existing Fixture Wattage]]/1000*Table_RetroSummary[[#This Row],[OpHrs]]*Table_RetroSummary[[#This Row],[E. Qty]]*Table_RetroSummary[[#This Row],[Existing CSF]]*(-1),0),\"\"),\"\")","v":""},{"$f":"IFERROR(Table_RetroSummary[[#This Row],[Existing Fixture kWh]]+Table_RetroSummary[[#This Row],[Existing Fixture (Existing Controls) kWh]],\"\")","v":""},{"$f":"IFERROR(IF(Table_RetroSummary[[#This Row],[IsActive]],IF(ISNUMBER(MATCH(Table_POSTInfo[[#This Row],[Line]],Table_POSTInspection[Line],0)),INDEX(Table_POSTInspection[Fixture Description '[P']],MATCH(Table_RetroSummary[[#This Row],[Line Item]],Table_POSTInspection[Line],0)),Table_POSTInfo[[#This Row],[Fixture Description '[P']]]),\"\"),\"\")","v":""},{"$f":"IFERROR(IF(Table_RetroSummary[[#This Row],[IsActive]],IF(ISNUMBER(MATCH(Table_POSTInfo[[#This Row],[Line]],Table_POSTInspection[Line],0)),INDEX(Table_POSTInspection['# Lamps/ Fixture '[P']],MATCH(Table_RetroSummary[[#This Row],[Line Item]],Table_POSTInspection[Line],0)),Table_POSTInfo[[#This Row],['# Lamps/ Fixture '[P']]]),\"\"),\"\")","v":""},{"$f":"IFERROR(IF(Table_RetroSummary[[#This Row],[IsActive]],IF(ISNUMBER(MATCH(Table_POSTInfo[[#This Row],[Line]],Table_POSTInspection[Line],0)),INDEX(Table_POSTInspection[Fixture/ Lamp Wattage '[P']],MATCH(Table_RetroSummary[[#This Row],[Line Item]],Table_POSTInspection[Line],0)),Table_POSTInfo[[#This Row],[Fixture/ Lamp Wattage '[P']]]),\"\"),\"\")","v":""},{"$f":"IFERROR(IF(Table_RetroSummary[[#This Row],[IsActive]],IF(ISNUMBER(MATCH(Table_POSTInfo[[#This Row],[Line]],Table_POSTInspection[Line],0)),INDEX(Table_POSTInspection[Fixture Qty '[P']],MATCH(Table_RetroSummary[[#This Row],[Line Item]],Table_POSTInspection[Line],0)),Table_POSTInfo[[#This Row],[Fixture Qty '[P']]]),\"\"),\"\")","v":""},{"$f":"IFERROR(IF(Table_RetroSummary[[#This Row],[IsActive]],Table_RetroSummary[[#This Row],[Fixture/ Lamp Wattage '[P']]]*Table_RetroSummary[[#This Row],[P. Qty]],\"\"),\"\")","v":""},{"$f":"IFERROR(IF(Table_RetroSummary[[#This Row],[IsActive]],IF(ISNUMBER(MATCH(Table_POSTInfo[[#This Row],[Line]],Table_POSTInspection[Line],0)),INDEX(Table_POSTInspection[Fixture Wattage '[P']],MATCH(Table_RetroSummary[[#This Row],[Line Item]],Table_POSTInspection[Line],0)),Table_POSTInfo[[#This Row],[Fixture Wattage '[P']]]),\"\"),\"\")","v":""},{"$f":"IFERROR(Table_RetroSummary[[#This Row],[Total '# Lamps '[P']]]+Table_RetroSummary[[#This Row],[Proposed Fixture Wattage]],\"\")","v":""},{"$f":"IFERROR(Table_RetroSummary[[#This Row],[Proposed Fixture Wattage]]/1000*Table_RetroSummary[[#This Row],[OpHrs]]*Table_RetroSummary[[#This Row],[P. Qty]],\"\")","v":""},{"$f":"IFERROR(IF(Table_RetroSummary[[#This Row],[IsActive]],IFERROR(VLOOKUP(RIGHT(Table_RetroSummary[[#This Row],[Proposed Fixture]],LEN(Table_RetroSummary[[#This Row],[Proposed Fixture]])-FIND(\" - \",Table_RetroSummary[[#This Row],[Proposed Fixture]],FIND(\"]\",Table_RetroSummary[[#This Row],[Proposed Fixture]],1))-2),Table_ControlType[],3, FALSE),0),\"\"),\"\")","v":""},{"$f":"IFERROR(IF(Table_RetroSummary[[#This Row],[IsActive]],IFERROR(Table_RetroSummary[[#This Row],[Proposed Fixture Wattage]]/1000*Table_RetroSummary[[#This Row],[OpHrs]]*Table_RetroSummary[[#This Row],[P. Qty]]*Table_RetroSummary[[#This Row],[Existing CSF]]*(-1),0),\"\"),\"\")","v":""},{"$f":"IFERROR(Table_RetroSummary[[#This Row],[Proposed Fixture kWh]]+Table_RetroSummary[[#This Row],[Proposed Fixture (Existing Controls) kWh]],\"\")","v":""},{"$f":"IFERROR(IF(Table_RetroSummary[[#This Row],[IsActive]],IFERROR(Table_RetroSummary[[#This Row],[Proposed Fixture Wattage]]/1000*Table_RetroSummary[[#This Row],[OpHrs]]*Table_RetroSummary[[#This Row],[P. Qty]]*Table_RetroSummary[[#This Row],[Proposed CSF]]*(-1),0),\"\"),\"\")","v":""},{"$f":"IFERROR(Table_RetroSummary[[#This Row],[Proposed Fixture kWh]]+Table_RetroSummary[[#This Row],[Proposed Fixture (Proposed Controls) kWh]],\"\")","v":""},{"$f":"IFERROR(IF(Table_RetroSummary[[#This Row],[IsActive]],IF(ISNUMBER(MATCH(Table_POSTInfo[[#This Row],[Line]],Table_POSTInspection[Line],0)),INDEX(Table_POSTInspection[DLC or ES Certification '[P']],MATCH(Table_RetroSummary[[#This Row],[Line Item]],Table_POSTInspection[Line],0)),Table_POSTInfo[[#This Row],[DLC or ES Certification '[P']]]),\"\"),\"\")","v":""},null,{"$f":"IFERROR(IF(Table_RetroSummary[[#This Row],[IsActive]],\nIF(AND(RIGHT(Table_RetroSummary[[#This Row],[Existing Fixture]],LEN(Table_RetroSummary[[#This Row],[Existing Fixture]])-FIND(\":\",Table_RetroSummary[[#This Row],[Existing Fixture]],1)-1)<>Table_RetroSummary[[#This Row],[Proposed Fixture]],MID(Table_RetroSummary[[#This Row],[Existing Fixture]],FIND(\": \",Table_RetroSummary[[#This Row],[Existing Fixture]],1)+2,FIND(\"]\",Table_RetroSummary[[#This Row],[Existing Fixture]],1))=LEFT(Table_RetroSummary[[#This Row],[Proposed Fixture]],FIND(\"]\",Table_RetroSummary[[#This Row],[Proposed Fixture]],1))),\n  \"Controls Only\",\n  IF(Table_POSTInfo[[#This Row],[DLC or ES Certification '[P']]]<>\"\",\n    IF(ISNUMBER(FIND(\"LED Tube\",Table_RetroSummary[[#This Row],[Proposed Fixture]],1)),\n      \"LED Re-Lamp\",\n      IF(AND(Table_RetroSummary[[#This Row],[Existing Overall kWh]]>Table_RetroSummary[[#This Row],[Proposed Overall kWh (Existing Controls)]],ISNUMBER(FIND(\"LED\",Table_RetroSummary[[#This Row],[Proposed Fixture]],1))),\n        IF(Table_POSTInfo[[#This Row],[Interior/ Exterior]]=\"Exterior\",\n          \"Exterior LED Fixture\",\n          \"Interior LED Fixture\"),\n        \"Ineligible Fixture\")),\n    \"Ineligible Fixture\")),\n\"\"),\"\")","v":""},{"$f":"IFERROR(VLOOKUP(Table_RetroSummary[[#This Row],[Fixture Measure Description]],Table_FixtureRate[],2,FALSE),\"\")","v":""},{"$f":"IFERROR(IF(Table_RetroSummary[[#This Row],[IsActive]],IF(Table_RetroSummary[[#This Row],[Fixture Measure Description]]=\"Ineligible Fixture\",0,ROUND(Table_RetroSummary[[#This Row],[Fixture Rebate (per kW)]]*(Table_RetroSummary[[#This Row],[Existing Fixture Wattage]]*Table_RetroSummary[[#This Row],[E. Qty]]-Table_RetroSummary[[#This Row],[Proposed Fixture Wattage]]*Table_RetroSummary[[#This Row],[P. Qty]])/1000,2)),\"\"),\"\")","v":""},{"$f":"IFERROR(IF(Table_RetroSummary[[#This Row],[Fixture Measure Description]]=\"Ineligible Fixture\",0,ROUND(IF(ProjectCost_Total=0,300000,ProjectCost_Total)*Table_RetroSummary[[#This Row],[Fixture Rebate]]/SUM(Table_RetroSummary[Fixture Rebate],Table_RetroSummary[Controls Rebate]),2)),\"\")","v":""},{"$f":"IFERROR(IF(Table_RetroSummary[[#This Row],[IsActive]],IF(Table_RetroSummary[[#This Row],[Fixture Measure Description]]=\"Ineligible Fixture\",0,Table_RetroSummary[[#This Row],[Existing Overall kWh]]-Table_RetroSummary[[#This Row],[Proposed Overall kWh (Existing Controls)]]),\"\"),\"\")","v":""},{"$f":"IFERROR(IF(Table_RetroSummary[[#This Row],[IsActive]],IF(Table_RetroSummary[[#This Row],[Fixture Measure Description]]=\"Ineligible Fixture\",0,(Table_RetroSummary[[#This Row],[Existing Fixture kWh]]-Table_RetroSummary[[#This Row],[Proposed Fixture kWh]])/Table_RetroSummary[[#This Row],[OpHrs]]*Table_RetroSummary[[#This Row],[CF (Ltg)]]*Table_RetroSummary[[#This Row],[DF (Ltg)]]),\"\"),\"\")","v":""},{"$f":"Table_RetroSummary[[#This Row],[Fixture Rebate (per kW)]]*Table_RetroSummary[[#This Row],[Fixture kW Reduction]]","v":{"$error":"#VALUE!"}},{"$f":"IFERROR(\n  IF(OR(Table_RetroSummary[[#This Row],[Fixture Measure Description]]=\"\",Table_RetroSummary[[#This Row],[Fixture Measure Description]]=\"Ineligible Fixture\"),\n    \"\",\n    IFERROR(VLOOKUP(RIGHT(Table_RetroSummary[[#This Row],[Existing Fixture]],LEN(Table_RetroSummary[[#This Row],[Existing Fixture]])-FIND(\" - \",Table_RetroSummary[[#This Row],[Existing Fixture]],FIND(\"]\",Table_RetroSummary[[#This Row],[Existing Fixture]],1))-2),Table_ControlType[],2,FALSE),\"None\")\n    & \" - \" &\n    IFERROR(VLOOKUP(RIGHT(Table_RetroSummary[[#This Row],[Proposed Fixture]],LEN(Table_RetroSummary[[#This Row],[Proposed Fixture]])-FIND(\" - \",Table_RetroSummary[[#This Row],[Proposed Fixture]],FIND(\"]\",Table_RetroSummary[[#This Row],[Proposed Fixture]],1))-2),Table_ControlType[],2, FALSE),None)),\n\"\")","v":""},{"$f":"IFERROR(VLOOKUP(Table_RetroSummary[[#This Row],[Controls Measure Description]],Table_ControlRate[],2,FALSE),\"\")","v":""},{"$f":"IFERROR(IF(Table_RetroSummary[[#This Row],[IsActive]],IF(Table_RetroSummary[[#This Row],[Controls Measure Description]]=\"\",0,ROUND(Table_RetroSummary[[#This Row],[Controls Rebate (per Fixt Watt)]]*Table_RetroSummary[[#This Row],[Proposed Fixture Wattage]]*Table_RetroSummary[[#This Row],[P. Qty]],2)),\"\"),\"\")","v":""},{"$f":"IFERROR(IF(Table_RetroSummary[[#This Row],[Fixture Measure Description]]=\"Ineligible Fixture\",0,ROUND(IF(ProjectCost_Total=0,300000,ProjectCost_Total)*Table_RetroSummary[[#This Row],[Controls Rebate]]/SUM(Table_RetroSummary[Fixture Rebate],Table_RetroSummary[Controls Rebate]),2)),\"\")","v":""},{"$f":"IFERROR(IF(Table_RetroSummary[[#This Row],[IsActive]],IF(Table_RetroSummary[[#This Row],[Controls Measure Description]]=\"\",0,(Table_RetroSummary[[#This Row],[Proposed Fixture (Existing Controls) kWh]]-Table_RetroSummary[[#This Row],[Proposed Fixture (Proposed Controls) kWh]])),\"\"),\"\")","v":""},{"$f":"IFERROR(IF(Table_RetroSummary[[#This Row],[IsActive]],IF(Table_RetroSummary[[#This Row],[Controls Measure Description]]=\"\",0,(Table_RetroSummary[[#This Row],[Proposed Fixture (Existing Controls) kWh]]-Table_RetroSummary[[#This Row],[Proposed Fixture (Proposed Controls) kWh]])/Table_RetroSummary[[#This Row],[OpHrs]]*Table_RetroSummary[[#This Row],[CF (Ltg)]]*Table_RetroSummary[[#This Row],[DF (Ltg)]]),\"\"),\"\")","v":""},null,{"$f":"IFERROR(IF(NOT(ISNUMBER(Table_RetroSummary[[#This Row],[Fixture Rebate]])),\"\",IF(MIN(IF(SUM(Table_RetroSummary[Fixture Cost],Table_RetroSummary[Controls Cost])<0,0,SUM(Table_RetroSummary[Fixture Cost],Table_RetroSummary[Controls Cost])),SUM(Table_RetroSummary[Fixture Rebate],Table_RetroSummary[Controls Rebate]))>300000,300000/MIN(IF(SUM(Table_RetroSummary[Fixture Cost],Table_RetroSummary[Controls Cost])<0,0,SUM(Table_RetroSummary[Fixture Cost],Table_RetroSummary[Controls Cost])),SUM(Table_RetroSummary[Fixture Rebate],Table_RetroSummary[Controls Rebate]))*MIN(IF(SUM(Table_RetroSummary[Fixture Cost],Table_RetroSummary[Controls Cost])<0,0,SUM(Table_RetroSummary[Fixture Cost],Table_RetroSummary[Controls Cost])),Table_RetroSummary[[#This Row],[Fixture Rebate]]+IF(Table_RetroSummary[[#This Row],[Controls Rebate]]=\"\",0,Table_RetroSummary[[#This Row],[Controls Rebate]])),MIN(IF(SUM(Table_RetroSummary[Fixture Cost],Table_RetroSummary[Controls Cost])<0,0,SUM(Table_RetroSummary[Fixture Cost],Table_RetroSummary[Controls Cost])),Table_RetroSummary[[#This Row],[Fixture Rebate]]+IF(Table_RetroSummary[[#This Row],[Controls Rebate]]=\"\",0,Table_RetroSummary[[#This Row],[Controls Rebate]])))),\"\")","v":""},{"$f":"IFERROR(IF(Table_RetroSummary[[#This Row],[Fixture Cost]]=\"\",\"\",Table_RetroSummary[[#This Row],[Fixture Cost]]+IF(Table_RetroSummary[[#This Row],[Controls Cost]]=\"\",0,Table_RetroSummary[[#This Row],[Controls Cost]])),\"\")","v":""},{"$f":"IFERROR(IF(Table_RetroSummary[[#This Row],[IsActive]],IF(Table_POSTInfo[[#This Row],[Interior/ Exterior]]=\"Interior\",IFERROR((Table_RetroSummary[[#This Row],[Annual Fixture Savings (kWh)]]+Table_RetroSummary[[#This Row],[Annual Control Savings (kWh)]])*(Table_RetroSummary[[#This Row],[EIF]]-1),0),0),\"\"),\"\")","v":""},{"$f":"IFERROR(IF(Table_RetroSummary[[#This Row],[IsActive]],IF(Table_POSTInfo[[#This Row],[Interior/ Exterior]]=\"Interior\",IFERROR((Table_RetroSummary[[#This Row],[Fixture kW Reduction]]+Table_RetroSummary[[#This Row],[Control kW Reduction]]/(Table_RetroSummary[[#This Row],[CF (Ltg)]]*Table_RetroSummary[[#This Row],[DF (Ltg)]]))*(Table_RetroSummary[[#This Row],[DIF]]-1)*Table_RetroSummary[[#This Row],[CF (HVAC)]]*Table_RetroSummary[[#This Row],[DF (HVAC)]],0),0),\"\"),\"\")","v":""},{"$f":"IFERROR(IF(Table_RetroSummary[[#This Row],[IsActive]],IF(NOT(ISNUMBER(Table_RetroSummary[[#This Row],[Fixture Rebate]])),\"\",ROUND(Table_RetroSummary[[#This Row],[Annual Fixture Savings (kWh)]]+Table_RetroSummary[[#This Row],[Annual Control Savings (kWh)]],0)),\"\"),\"\")","v":""},{"$f":"IFERROR(IF(Table_RetroSummary[[#This Row],[IsActive]],IF(NOT(ISNUMBER(Table_RetroSummary[[#This Row],[Fixture Rebate]])),\"\",ROUND(Table_RetroSummary[[#This Row],[Fixture kW Reduction]]+Table_RetroSummary[[#This Row],[Control kW Reduction]],3)),\"\"),\"\")","v":""},{"$f":"IFERROR(IF(Table_RetroSummary[[#This Row],[IsActive]],IF(NOT(ISNUMBER(Table_RetroSummary[[#This Row],[Fixture Rebate]])),\"\",ROUND(Table_RetroSummary[[#This Row],[Fixture Energy Savings (kWh)]]+Table_RetroSummary[[#This Row],[Induced HVAC Energy Savings (kWh)]],0)),\"\"),\"\")","v":""},{"$f":"IFERROR(IF(Table_RetroSummary[[#This Row],[IsActive]],IF(NOT(ISNUMBER(Table_RetroSummary[[#This Row],[Fixture Rebate]])),\"\",ROUND(Table_RetroSummary[[#This Row],[Fixture Demand Savings (kW)]]+Table_RetroSummary[[#This Row],[Induced HVAC Demand Savings (kW)]],3)),\"\"),\"\")","v":""}]
[{"$f":"IFERROR(Table_POSTInfo[[#This Row],[Line]],\"\")","v":3},{"$f":"IFERROR(Table_POSTInfo[[#This Row],[IsActive]],\"\")","v":false},{"$f":"IFERROR(IF(Table_RetroSummary[[#This Row],[IsActive]],CONCATENATE(Table_RetroSummary[[#This Row],[Existing Fixture]],\" | \",Table_RetroSummary[[#This Row],[Proposed Fixture]]),\"\"),\"\")","v":""},{"$f":"IFERROR(IF(Table_RetroSummary[[#This Row],[IsActive]],VLOOKUP(IF(ISNUMBER(MATCH(Table_POSTInfo[[#This Row],[Line]],Table_POSTInspection[Line],0)),INDEX(Table_POSTInspection[Schedule],MATCH(Table_RetroSummary[[#This Row],[Line Item]],Table_POSTInspection[Line],0)),Table_POSTInfo[[#This Row],[Schedule]]),'Customer Information'!$S$27:$T$34,2,FALSE),\"\"),\"\")","v":""},{"$f":"IFERROR(IF(Table_RetroSummary[[#This Row],[IsActive]],IF(IF(ISNUMBER(MATCH(Table_RetroSummary[[#This Row],[Line Item]],Table_POSTInspection[Line],0)),INDEX(Table_POSTInspection[Interior/ Exterior],MATCH(Table_RetroSummary[[#This Row],[Line Item]],Table_POSTInfo[[#This Row],[Line]],0)),Table_POSTInfo[[#This Row],[Interior/ Exterior]])=\"Interior\",'Customer Information'!$S$25,0),\"\"),\"\")","v":""},{"$f":"IFERROR(IF(Table_RetroSummary[[#This Row],[IsActive]],IF(IF(ISNUMBER(MATCH(Table_RetroSummary[[#This Row],[Line Item]],Table_POSTInspection[Line],0)),INDEX(Table_POSTInspection[Interior/ Exterior],MATCH(Table_RetroSummary[[#This Row],[Line Item]],Table_POSTInfo[[#This Row],[Line]],0)),Table_POSTInfo[[#This Row],[Interior/ Exterior]])=\"Interior\",'Customer Information'!$T$25,0),\"\"),\"\")","v":""},{"$f":"IFERROR(IF(Table_RetroSummary[[#This Row],[IsActive]],IF(IF(ISNUMBER(MATCH(Table_RetroSummary[[#This Row],[Line Item]],Table_POSTInspection[Line],0)),INDEX(Table_POSTInspection[Interior/ Exterior],MATCH(Table_RetroSummary[[#This Row],[Line Item]],Table_POSTInfo[[#This Row],[Line]],0)),Table_POSTInfo[[#This Row],[Interior/ Exterior]])=\"Interior\",'Customer Information'!$U$25,0),\"\"),\"\")","v":""},{"$f":"IFERROR(IF(Table_RetroSummary[[#This Row],[IsActive]],IF(IF(ISNUMBER(MATCH(Table_RetroSummary[[#This Row],[Line Item]],Table_POSTInspection[Line],0)),INDEX(Table_POSTInspection[Interior/ Exterior],MATCH(Table_RetroSummary[[#This Row],[Line Item]],Table_POSTInfo[[#This Row],[Line]],0)),Table_POSTInfo[[#This Row],[Interior/ Exterior]])=\"Interior\",'Customer Information'!$V$25,0),\"\"),\"\")","v":""},{"$f":"IFERROR(IF(Table_RetroSummary[[#This Row],[IsActive]],IF(IF(ISNUMBER(MATCH(Table_RetroSummary[[#This Row],[Line Item]],Table_POSTInspection[Line],0)),INDEX(Table_POSTInspection[Interior/ Exterior],MATCH(Table_RetroSummary[[#This Row],[Line Item]],Table_POSTInfo[[#This Row],[Line]],0)),Table_POSTInfo[[#This Row],[Interior/ Exterior]])=\"Interior\",'Customer Information'!$W$25,0),\"\"),\"\")","v":""},{"$f":"IFERROR(IF(Table_RetroSummary[[#This Row],[IsActive]],IF(IF(ISNUMBER(MATCH(Table_RetroSummary[[#This Row],[Line Item]],Table_POSTInspection[Line],0)),INDEX(Table_POSTInspection[Interior/ Exterior],MATCH(Table_RetroSummary[[#This Row],[Line Item]],Table_POSTInfo[[#This Row],[Line]],0)),Table_POSTInfo[[#This Row],[Interior/ Exterior]])=\"Interior\",'Customer Information'!$X$25,0),\"\"),\"\")","v":""},{"$f":"IFERROR(IF(Table_RetroSummary[[#This Row],[IsActive]],\nCONCATENATE(\nIF(ISNUMBER(MATCH(Table_POSTInfo[[#This Row],[Line]],Table_POSTInspection[Line],0)),INDEX(Table_POSTInspection[Interior/ Exterior],MATCH(Table_RetroSummary[[#This Row],[Line Item]],Table_POSTInspection[Line],0)),Table_POSTInfo[[#This Row],[Interior/ Exterior]]),\n\" - \",\nIF(ISNUMBER(MATCH(Table_POSTInfo[[#This Row],[Line]],Table_POSTInspection[Line],0)),INDEX(Table_POSTInspection[Space Description],MATCH(Table_RetroSummary[[#This Row],[Line Item]],Table_POSTInspection[Line],0)),Table_POSTInfo[[#This Row],[Space Description]])),\n \"\"),\"\")","v":""},{"$f":"IFERROR(IF(Table_RetroSummary[[#This Row],[IsActive]]=\"\",\"\",Table_POSTInfo[[#This Row],[Fixture Description '[E']]]),\"\")","v":""},{"$f":"IFERROR(IF(Table_RetroSummary[[#This Row],[IsActive]]=\"\",\"\",Table_POSTInfo[[#This Row],['# Lamps/ Fixture '[E']]]),\"\")","v":""},{"$f":"IFERROR(IF(Table_RetroSummary[[#This Row],[IsActive]]=\"\",\"\",Table_POSTInfo[[#This Row],[Fixture/ Lamp Wattage '[E']]]),\"\")","v":""},{"$f":"IFERROR(IF(Table_RetroSummary[[#This Row],[IsActive]]=\"\",\"\",Table_POSTInfo[[#This Row],[Fixture Qty '[E']]]),\"\")","v":""},{"$f":"IFERROR(IF(Table_RetroSummary[[#This Row],[IsActive]],Table_RetroSummary[[#This Row],[Fixture/ Lamp Wattage '[E']]]*Table_RetroSummary[[#This Row],[E. Qty]],\"\"),\"\")","v":""},{"$f":"IFERROR(IF(Table_RetroSummary[[#This Row],[IsActive]]=\"\",\"\",Table_POSTInfo[[#This Row],[Fixture Wattage '[E']]]),\"\")","v":""},{"$f":"IFERROR(IF(Table_RetroSummary[[#This Row],[IsActive]],IFERROR(Table_RetroSummary[[#This Row],[Existing Fixture Wattage]]/1000*Table_RetroSummary[[#This Row],[OpHrs]]*Table_RetroSummary[[#This Row],[E. Qty]],0),\"\"),\"\")","v":""},{"$f":"IFERROR(IF(Table_RetroSummary[[#This Row],[IsActive]],IFERROR(VLOOKUP(RIGHT(Table_RetroSummary[[#This Row],[Existing Fixture]],LEN(Table_RetroSummary[[#This Row],[Existing Fixture]])-FIND(\" - \",Table_RetroSummary[[#This Row],[Existing Fixture]],FIND(\"]\",Table_RetroSummary[[#This Row],[Existing Fixture]],1))-2),Table_ControlType[],3,FALSE),0),\"\"),\"\")","v":""},{"$f":"IFERROR(IF(Table_RetroSummary[[#This Row],[IsActive]],IFERROR(Table_RetroSummary[[#This Row],[Existing Fixture Wattage]]/1000*Table_RetroSummary[[#This Row],[OpHrs]]*Table_RetroSummary[[#This Row],[E. Qty]]*Table_RetroSummary[[#This Row],[Existing CSF]]*(-1),0),\"\"),\"\")","v":""},{"$f":"IFERROR(Table_RetroSummary[[#This Row],[Existing Fixture kWh]]+Table_RetroSummary[[#This Row],[Existing Fixture (Existing Controls) kWh]],\"\")","v":""},{"$f":"IFERROR(IF(Table_RetroSummary[[#This Row],[IsActive]],IF(ISNUMBER(MATCH(Table_POSTInfo[[#This Row],[Line]],Table_POSTInspection[Line],0)),INDEX(Table_POSTInspection[Fixture Description '[P']],MATCH(Table_RetroSummary[[#This Row],[Line Item]],Table_POSTInspection[Line],0)),Table_POSTInfo[[#This Row],[Fixture Description '[P']]]),\"\"),\"\")","v":""},{"$f":"IFERROR(IF(Table_RetroSummary[[#This Row],[IsActive]],IF(ISNUMBER(MATCH(Table_POSTInfo[[#This Row],[Line]],Table_POSTInspection[Line],0)),INDEX(Table_POSTInspection['# Lamps/ Fixture '[P']],MATCH(Table_RetroSummary[[#This Row],[Line Item]],Table_POSTInspection[Line],0)),Table_POSTInfo[[#This Row],['# Lamps/ Fixture '[P']]]),\"\"),\"\")","v":""},{"$f":"IFERROR(IF(Table_RetroSummary[[#This Row],[IsActive]],IF(ISNUMBER(MATCH(Table_POSTInfo[[#This Row],[Line]],Table_POSTInspection[Line],0)),INDEX(Table_POSTInspection[Fixture/ Lamp Wattage '[P']],MATCH(Table_RetroSummary[[#This Row],[Line Item]],Table_POSTInspection[Line],0)),Table_POSTInfo[[#This Row],[Fixture/ Lamp Wattage '[P']]]),\"\"),\"\")","v":""},{"$f":"IFERROR(IF(Table_RetroSummary[[#This Row],[IsActive]],IF(ISNUMBER(MATCH(Table_POSTInfo[[#This Row],[Line]],Table_POSTInspection[Line],0)),INDEX(Table_POSTInspection[Fixture Qty '[P']],MATCH(Table_RetroSummary[[#This Row],[Line Item]],Table_POSTInspection[Line],0)),Table_POSTInfo[[#This Row],[Fixture Qty '[P']]]),\"\"),\"\")","v":""},{"$f":"IFERROR(IF(Table_RetroSummary[[#This Row],[IsActive]],Table_RetroSummary[[#This Row],[Fixture/ Lamp Wattage '[P']]]*Table_RetroSummary[[#This Row],[P. Qty]],\"\"),\"\")","v":""},{"$f":"IFERROR(IF(Table_RetroSummary[[#This Row],[IsActive]],IF(ISNUMBER(MATCH(Table_POSTInfo[[#This Row],[Line]],Table_POSTInspection[Line],0)),INDEX(Table_POSTInspection[Fixture Wattage '[P']],MATCH(Table_RetroSummary[[#This Row],[Line Item]],Table_POSTInspection[Line],0)),Table_POSTInfo[[#This Row],[Fixture Wattage '[P']]]),\"\"),\"\")","v":""},{"$f":"IFERROR(Table_RetroSummary[[#This Row],[Total '# Lamps '[P']]]+Table_RetroSummary[[#This Row],[Proposed Fixture Wattage]],\"\")","v":""},{"$f":"IFERROR(Table_RetroSummary[[#This Row],[Proposed Fixture Wattage]]/1000*Table_RetroSummary[[#This Row],[OpHrs]]*Table_RetroSummary[[#This Row],[P. Qty]],\"\")","v":""},{"$f":"IFERROR(IF(Table_RetroSummary[[#This Row],[IsActive]],IFERROR(VLOOKUP(RIGHT(Table_RetroSummary[[#This Row],[Proposed Fixture]],LEN(Table_RetroSummary[[#This Row],[Proposed Fixture]])-FIND(\" - \",Table_RetroSummary[[#This Row],[Proposed Fixture]],FIND(\"]\",Table_RetroSummary[[#This Row],[Proposed Fixture]],1))-2),Table_ControlType[],3, FALSE),0),\"\"),\"\")","v":""},{"$f":"IFERROR(IF(Table_RetroSummary[[#This Row],[IsActive]],IFERROR(Table_RetroSummary[[#This Row],[Proposed Fixture Wattage]]/1000*Table_RetroSummary[[#This Row],[OpHrs]]*Table_RetroSummary[[#This Row],[P. Qty]]*Table_RetroSummary[[#This Row],[Existing CSF]]*(-1),0),\"\"),\"\")","v":""},{"$f":"IFERROR(Table_RetroSummary[[#This Row],[Proposed Fixture kWh]]+Table_RetroSummary[[#This Row],[Proposed Fixture (Existing Controls) kWh]],\"\")","v":""},{"$f":"IFERROR(IF(Table_RetroSummary[[#This Row],[IsActive]],IFERROR(Table_RetroSummary[[#This Row],[Proposed Fixture Wattage]]/1000*Table_RetroSummary[[#This Row],[OpHrs]]*Table_RetroSummary[[#This Row],[P. Qty]]*Table_RetroSummary[[#This Row],[Proposed CSF]]*(-1),0),\"\"),\"\")","v":""},{"$f":"IFERROR(Table_RetroSummary[[#This Row],[Proposed Fixture kWh]]+Table_RetroSummary[[#This Row],[Proposed Fixture (Proposed Controls) kWh]],\"\")","v":""},{"$f":"IFERROR(IF(Table_RetroSummary[[#This Row],[IsActive]],IF(ISNUMBER(MATCH(Table_POSTInfo[[#This Row],[Line]],Table_POSTInspection[Line],0)),INDEX(Table_POSTInspection[DLC or ES Certification '[P']],MATCH(Table_RetroSummary[[#This Row],[Line Item]],Table_POSTInspection[Line],0)),Table_POSTInfo[[#This Row],[DLC or ES Certification '[P']]]),\"\"),\"\")","v":""},null,{"$f":"IFERROR(IF(Table_RetroSummary[[#This Row],[IsActive]],\nIF(AND(RIGHT(Table_RetroSummary[[#This Row],[Existing Fixture]],LEN(Table_RetroSummary[[#This Row],[Existing Fixture]])-FIND(\":\",Table_RetroSummary[[#This Row],[Existing Fixture]],1)-1)<>Table_RetroSummary[[#This Row],[Proposed Fixture]],MID(Table_RetroSummary[[#This Row],[Existing Fixture]],FIND(\": \",Table_RetroSummary[[#This Row],[Existing Fixture]],1)+2,FIND(\"]\",Table_RetroSummary[[#This Row],[Existing Fixture]],1))=LEFT(Table_RetroSummary[[#This Row],[Proposed Fixture]],FIND(\"]\",Table_RetroSummary[[#This Row],[Proposed Fixture]],1))),\n  \"Controls Only\",\n  IF(Table_POSTInfo[[#This Row],[DLC or ES Certification '[P']]]<>\"\",\n    IF(ISNUMBER(FIND(\"LED Tube\",Table_RetroSummary[[#This Row],[Proposed Fixture]],1)),\n      \"LED Re-Lamp\",\n      IF(AND(Table_RetroSummary[[#This Row],[Existing Overall kWh]]>Table_RetroSummary[[#This Row],[Proposed Overall kWh (Existing Controls)]],ISNUMBER(FIND(\"LED\",Table_RetroSummary[[#This Row],[Proposed Fixture]],1))),\n        IF(Table_POSTInfo[[#This Row],[Interior/ Exterior]]=\"Exterior\",\n          \"Exterior LED Fixture\",\n          \"Interior LED Fixture\"),\n        \"Ineligible Fixture\")),\n    \"Ineligible Fixture\")),\n\"\"),\"\")","v":""},{"$f":"IFERROR(VLOOKUP(Table_RetroSummary[[#This Row],[Fixture Measure Description]],Table_FixtureRate[],2,FALSE),\"\")","v":""},{"$f":"IFERROR(IF(Table_RetroSummary[[#This Row],[IsActive]],IF(Table_RetroSummary[[#This Row],[Fixture Measure Description]]=\"Ineligible Fixture\",0,ROUND(Table_RetroSummary[[#This Row],[Fixture Rebate (per kW)]]*(Table_RetroSummary[[#This Row],[Existing Fixture Wattage]]*Table_RetroSummary[[#This Row],[E. Qty]]-Table_RetroSummary[[#This Row],[Proposed Fixture Wattage]]*Table_RetroSummary[[#This Row],[P. Qty]])/1000,2)),\"\"),\"\")","v":""},{"$f":"IFERROR(IF(Table_RetroSummary[[#This Row],[Fixture Measure Description]]=\"Ineligible Fixture\",0,ROUND(IF(ProjectCost_Total=0,300000,ProjectCost_Total)*Table_RetroSummary[[#This Row],[Fixture Rebate]]/SUM(Table_RetroSummary[Fixture Rebate],Table_RetroSummary[Controls Rebate]),2)),\"\")","v":""},{"$f":"IFERROR(IF(Table_RetroSummary[[#This Row],[IsActive]],IF(Table_RetroSummary[[#This Row],[Fixture Measure Description]]=\"Ineligible Fixture\",0,Table_RetroSummary[[#This Row],[Existing Overall kWh]]-Table_RetroSummary[[#This Row],[Proposed Overall kWh (Existing Controls)]]),\"\"),\"\")","v":""},{"$f":"IFERROR(IF(Table_RetroSummary[[#This Row],[IsActive]],IF(Table_RetroSummary[[#This Row],[Fixture Measure Description]]=\"Ineligible Fixture\",0,(Table_RetroSummary[[#This Row],[Existing Fixture kWh]]-Table_RetroSummary[[#This Row],[Proposed Fixture kWh]])/Table_RetroSummary[[#This Row],[OpHrs]]*Table_RetroSummary[[#This Row],[CF (Ltg)]]*Table_RetroSummary[[#This Row],[DF (Ltg)]]),\"\"),\"\")","v":""},null,{"$f":"IFERROR(\n  IF(OR(Table_RetroSummary[[#This Row],[Fixture Measure Description]]=\"\",Table_RetroSummary[[#This Row],[Fixture Measure Description]]=\"Ineligible Fixture\"),\n    \"\",\n    IFERROR(VLOOKUP(RIGHT(Table_RetroSummary[[#This Row],[Existing Fixture]],LEN(Table_RetroSummary[[#This Row],[Existing Fixture]])-FIND(\" - \",Table_RetroSummary[[#This Row],[Existing Fixture]],FIND(\"]\",Table_RetroSummary[[#This Row],[Existing Fixture]],1))-2),Table_ControlType[],2,FALSE),\"None\")\n    & \" - \" &\n    IFERROR(VLOOKUP(RIGHT(Table_RetroSummary[[#This Row],[Proposed Fixture]],LEN(Table_RetroSummary[[#This Row],[Proposed Fixture]])-FIND(\" - \",Table_RetroSummary[[#This Row],[Proposed Fixture]],FIND(\"]\",Table_RetroSummary[[#This Row],[Proposed Fixture]],1))-2),Table_ControlType[],2, FALSE),None)),\n\"\")","v":""},{"$f":"IFERROR(VLOOKUP(Table_RetroSummary[[#This Row],[Controls Measure Description]],Table_ControlRate[],2,FALSE),\"\")","v":""},{"$f":"IFERROR(IF(Table_RetroSummary[[#This Row],[IsActive]],IF(Table_RetroSummary[[#This Row],[Controls Measure Description]]=\"\",0,ROUND(Table_RetroSummary[[#This Row],[Controls Rebate (per Fixt Watt)]]*Table_RetroSummary[[#This Row],[Proposed Fixture Wattage]]*Table_RetroSummary[[#This Row],[P. Qty]],2)),\"\"),\"\")","v":""},{"$f":"IFERROR(IF(Table_RetroSummary[[#This Row],[Fixture Measure Description]]=\"Ineligible Fixture\",0,ROUND(IF(ProjectCost_Total=0,300000,ProjectCost_Total)*Table_RetroSummary[[#This Row],[Controls Rebate]]/SUM(Table_RetroSummary[Fixture Rebate],Table_RetroSummary[Controls Rebate]),2)),\"\")","v":""},{"$f":"IFERROR(IF(Table_RetroSummary[[#This Row],[IsActive]],IF(Table_RetroSummary[[#This Row],[Controls Measure Description]]=\"\",0,(Table_RetroSummary[[#This Row],[Proposed Fixture (Existing Controls) kWh]]-Table_RetroSummary[[#This Row],[Proposed Fixture (Proposed Controls) kWh]])),\"\"),\"\")","v":""},{"$f":"IFERROR(IF(Table_RetroSummary[[#This Row],[IsActive]],IF(Table_RetroSummary[[#This Row],[Controls Measure Description]]=\"\",0,(Table_RetroSummary[[#This Row],[Proposed Fixture (Existing Controls) kWh]]-Table_RetroSummary[[#This Row],[Proposed Fixture (Proposed Controls) kWh]])/Table_RetroSummary[[#This Row],[OpHrs]]*Table_RetroSummary[[#This Row],[CF (Ltg)]]*Table_RetroSummary[[#This Row],[DF (Ltg)]]),\"\"),\"\")","v":""},null,{"$f":"IFERROR(IF(NOT(ISNUMBER(Table_RetroSummary[[#This Row],[Fixture Rebate]])),\"\",IF(MIN(IF(SUM(Table_RetroSummary[Fixture Cost],Table_RetroSummary[Controls Cost])<0,0,SUM(Table_RetroSummary[Fixture Cost],Table_RetroSummary[Controls Cost])),SUM(Table_RetroSummary[Fixture Rebate],Table_RetroSummary[Controls Rebate]))>300000,300000/MIN(IF(SUM(Table_RetroSummary[Fixture Cost],Table_RetroSummary[Controls Cost])<0,0,SUM(Table_RetroSummary[Fixture Cost],Table_RetroSummary[Controls Cost])),SUM(Table_RetroSummary[Fixture Rebate],Table_RetroSummary[Controls Rebate]))*MIN(IF(SUM(Table_RetroSummary[Fixture Cost],Table_RetroSummary[Controls Cost])<0,0,SUM(Table_RetroSummary[Fixture Cost],Table_RetroSummary[Controls Cost])),Table_RetroSummary[[#This Row],[Fixture Rebate]]+IF(Table_RetroSummary[[#This Row],[Controls Rebate]]=\"\",0,Table_RetroSummary[[#This Row],[Controls Rebate]])),MIN(IF(SUM(Table_RetroSummary[Fixture Cost],Table_RetroSummary[Controls Cost])<0,0,SUM(Table_RetroSummary[Fixture Cost],Table_RetroSummary[Controls Cost])),Table_RetroSummary[[#This Row],[Fixture Rebate]]+IF(Table_RetroSummary[[#This Row],[Controls Rebate]]=\"\",0,Table_RetroSummary[[#This Row],[Controls Rebate]])))),\"\")","v":""},{"$f":"IFERROR(IF(Table_RetroSummary[[#This Row],[Fixture Cost]]=\"\",\"\",Table_RetroSummary[[#This Row],[Fixture Cost]]+IF(Table_RetroSummary[[#This Row],[Controls Cost]]=\"\",0,Table_RetroSummary[[#This Row],[Controls Cost]])),\"\")","v":""},{"$f":"IFERROR(IF(Table_RetroSummary[[#This Row],[IsActive]],IF(Table_POSTInfo[[#This Row],[Interior/ Exterior]]=\"Interior\",IFERROR((Table_RetroSummary[[#This Row],[Annual Fixture Savings (kWh)]]+Table_RetroSummary[[#This Row],[Annual Control Savings (kWh)]])*(Table_RetroSummary[[#This Row],[EIF]]-1),0),0),\"\"),\"\")","v":""},{"$f":"IFERROR(IF(Table_RetroSummary[[#This Row],[IsActive]],IF(Table_POSTInfo[[#This Row],[Interior/ Exterior]]=\"Interior\",IFERROR((Table_RetroSummary[[#This Row],[Fixture kW Reduction]]+Table_RetroSummary[[#This Row],[Control kW Reduction]]/(Table_RetroSummary[[#This Row],[CF (Ltg)]]*Table_RetroSummary[[#This Row],[DF (Ltg)]]))*(Table_RetroSummary[[#This Row],[DIF]]-1)*Table_RetroSummary[[#This Row],[CF (HVAC)]]*Table_RetroSummary[[#This Row],[DF (HVAC)]],0),0),\"\"),\"\")","v":""},{"$f":"IFERROR(IF(Table_RetroSummary[[#This Row],[IsActive]],IF(NOT(ISNUMBER(Table_RetroSummary[[#This Row],[Fixture Rebate]])),\"\",ROUND(Table_RetroSummary[[#This Row],[Annual Fixture Savings (kWh)]]+Table_RetroSummary[[#This Row],[Annual Control Savings (kWh)]],0)),\"\"),\"\")","v":""},{"$f":"IFERROR(IF(Table_RetroSummary[[#This Row],[IsActive]],IF(NOT(ISNUMBER(Table_RetroSummary[[#This Row],[Fixture Rebate]])),\"\",ROUND(Table_RetroSummary[[#This Row],[Fixture kW Reduction]]+Table_RetroSummary[[#This Row],[Control kW Reduction]],3)),\"\"),\"\")","v":""},{"$f":"IFERROR(IF(Table_RetroSummary[[#This Row],[IsActive]],IF(NOT(ISNUMBER(Table_RetroSummary[[#This Row],[Fixture Rebate]])),\"\",ROUND(Table_RetroSummary[[#This Row],[Fixture Energy Savings (kWh)]]+Table_RetroSummary[[#This Row],[Induced HVAC Energy Savings (kWh)]],0)),\"\"),\"\")","v":""},{"$f":"IFERROR(IF(Table_RetroSummary[[#This Row],[IsActive]],IF(NOT(ISNUMBER(Table_RetroSummary[[#This Row],[Fixture Rebate]])),\"\",ROUND(Table_RetroSummary[[#This Row],[Fixture Demand Savings (kW)]]+Table_RetroSummary[[#This Row],[Induced HVAC Demand Savings (kW)]],3)),\"\"),\"\")","v":""}]
[{"$f":"IFERROR(Table_POSTInfo[[#This Row],[Line]],\"\")","v":4},{"$f":"IFERROR(Table_POSTInfo[[#This Row],[IsActive]],\"\")","v":false},{"$f":"IFERROR(IF(Table_RetroSummary[[#This Row],[IsActive]],CONCATENATE(Table_RetroSummary[[#This Row],[Existing Fixture]],\" | \",Table_RetroSummary[[#This Row],[Proposed Fixture]]),\"\"),\"\")","v":""},{"$f":"IFERROR(IF(Table_RetroSummary[[#This Row],[IsActive]],VLOOKUP(IF(ISNUMBER(MATCH(Table_POSTInfo[[#This Row],[Line]],Table_POSTInspection[Line],0)),INDEX(Table_POSTInspection[Schedule],MATCH(Table_RetroSummary[[#This Row],[Line Item]],Table_POSTInspection[Line],0)),Table_POSTInfo[[#This Row],[Schedule]]),'Customer Information'!$S$27:$T$34,2,FALSE),\"\"),\"\")","v":""},{"$f":"IFERROR(IF(Table_RetroSummary[[#This Row],[IsActive]],IF(IF(ISNUMBER(MATCH(Table_RetroSummary[[#This Row],[Line Item]],Table_POSTInspection[Line],0)),INDEX(Table_POSTInspection[Interior/ Exterior],MATCH(Table_RetroSummary[[#This Row],[Line Item]],Table_POSTInfo[[#This Row],[Line]],0)),Table_POSTInfo[[#This Row],[Interior/ Exterior]])=\"Interior\",'Customer Information'!$S$25,0),\"\"),\"\")","v":""},{"$f":"IFERROR(IF(Table_RetroSummary[[#This Row],[IsActive]],IF(IF(ISNUMBER(MATCH(Table_RetroSummary[[#This Row],[Line Item]],Table_POSTInspection[Line],0)),INDEX(Table_POSTInspection[Interior/ Exterior],MATCH(Table_RetroSummary[[#This Row],[Line Item]],Table_POSTInfo[[#This Row],[Line]],0)),Table_POSTInfo[[#This Row],[Interior/ Exterior]])=\"Interior\",'Customer Information'!$T$25,0),\"\"),\"\")","v":""},{"$f":"IFERROR(IF(Table_RetroSummary[[#This Row],[IsActive]],IF(IF(ISNUMBER(MATCH(Table_RetroSummary[[#This Row],[Line Item]],Table_POSTInspection[Line],0)),INDEX(Table_POSTInspection[Interior/ Exterior],MATCH(Table_RetroSummary[[#This Row],[Line Item]],Table_POSTInfo[[#This Row],[Line]],0)),Table_POSTInfo[[#This Row],[Interior/ Exterior]])=\"Interior\",'Customer Information'!$U$25,0),\"\"),\"\")","v":""},{"$f":"IFERROR(IF(Table_RetroSummary[[#This Row],[IsActive]],IF(IF(ISNUMBER(MATCH(Table_RetroSummary[[#This Row],[Line Item]],Table_POSTInspection[Line],0)),INDEX(Table_POSTInspection[Interior/ Exterior],MATCH(Table_RetroSummary[[#This Row],[Line Item]],Table_POSTInfo[[#This Row],[Line]],0)),Table_POSTInfo[[#This Row],[Interior/ Exterior]])=\"Interior\",'Customer Information'!$V$25,0),\"\"),\"\")","v":""},{"$f":"IFERROR(IF(Table_RetroSummary[[#This Row],[IsActive]],IF(IF(ISNUMBER(MATCH(Table_RetroSummary[[#This Row],[Line Item]],Table_POSTInspection[Line],0)),INDEX(Table_POSTInspection[Interior/ Exterior],MATCH(Table_RetroSummary[[#This Row],[Line Item]],Table_POSTInfo[[#This Row],[Line]],0)),Table_POSTInfo[[#This Row],[Interior/ Exterior]])=\"Interior\",'Customer Information'!$W$25,0),\"\"),\"\")","v":""},{"$f":"IFERROR(IF(Table_RetroSummary[[#This Row],[IsActive]],IF(IF(ISNUMBER(MATCH(Table_RetroSummary[[#This Row],[Line Item]],Table_POSTInspection[Line],0)),INDEX(Table_POSTInspection[Interior/ Exterior],MATCH(Table_RetroSummary[[#This Row],[Line Item]],Table_POSTInfo[[#This Row],[Line]],0)),Table_POSTInfo[[#This Row],[Interior/ Exterior]])=\"Interior\",'Customer Information'!$X$25,0),\"\"),\"\")","v":""},{"$f":"IFERROR(IF(Table_RetroSummary[[#This Row],[IsActive]],\nCONCATENATE(\nIF(ISNUMBER(MATCH(Table_POSTInfo[[#This Row],[Line]],Table_POSTInspection[Line],0)),INDEX(Table_POSTInspection[Interior/ Exterior],MATCH(Table_RetroSummary[[#This Row],[Line Item]],Table_POSTInspection[Line],0)),Table_POSTInfo[[#This Row],[Interior/ Exterior]]),\n\" - \",\nIF(ISNUMBER(MATCH(Table_POSTInfo[[#This Row],[Line]],Table_POSTInspection[Line],0)),INDEX(Table_POSTInspection[Space Description],MATCH(Table_RetroSummary[[#This Row],[Line Item]],Table_POSTInspection[Line],0)),Table_POSTInfo[[#This Row],[Space Description]])),\n \"\"),\"\")","v":""},{"$f":"IFERROR(IF(Table_RetroSummary[[#This Row],[IsActive]]=\"\",\"\",Table_POSTInfo[[#This Row],[Fixture Description '[E']]]),\"\")","v":""},{"$f":"IFERROR(IF(Table_RetroSummary[[#This Row],[IsActive]]=\"\",\"\",Table_POSTInfo[[#This Row],['# Lamps/ Fixture '[E']]]),\"\")","v":""},{"$f":"IFERROR(IF(Table_RetroSummary[[#This Row],[IsActive]]=\"\",\"\",Table_POSTInfo[[#This Row],[Fixture/ Lamp Wattage '[E']]]),\"\")","v":""},{"$f":"IFERROR(IF(Table_RetroSummary[[#This Row],[IsActive]]=\"\",\"\",Table_POSTInfo[[#This Row],[Fixture Qty '[E']]]),\"\")","v":""},{"$f":"IFERROR(IF(Table_RetroSummary[[#This Row],[IsActive]],Table_RetroSummary[[#This Row],[Fixture/ Lamp Wattage '[E']]]*Table_RetroSummary[[#This Row],[E. Qty]],\"\"),\"\")","v":""},{"$f":"IFERROR(IF(Table_RetroSummary[[#This Row],[IsActive]]=\"\",\"\",Table_POSTInfo[[#This Row],[Fixture Wattage '[E']]]),\"\")","v":""},{"$f":"IFERROR(IF(Table_RetroSummary[[#This Row],[IsActive]],IFERROR(Table_RetroSummary[[#This Row],[Existing Fixture Wattage]]/1000*Table_RetroSummary[[#This Row],[OpHrs]]*Table_RetroSummary[[#This Row],[E. Qty]],0),\"\"),\"\")","v":""},{"$f":"IFERROR(IF(Table_RetroSummary[[#This Row],[IsActive]],IFERROR(VLOOKUP(RIGHT(Table_RetroSummary[[#This Row],[Existing Fixture]],LEN(Table_RetroSummary[[#This Row],[Existing Fixture]])-FIND(\" - \",Table_RetroSummary[[#This Row],[Existing Fixture]],FIND(\"]\",Table_RetroSummary[[#This Row],[Existing Fixture]],1))-2),Table_ControlType[],3,FALSE),0),\"\"),\"\")","v":""},{"$f":"IFERROR(IF(Table_RetroSummary[[#This Row],[IsActive]],IFERROR(Table_RetroSummary[[#This Row],[Existing Fixture Wattage]]/1000*Table_RetroSummary[[#This Row],[OpHrs]]*Table_RetroSummary[[#This Row],[E. Qty]]*Table_RetroSummary[[#This Row],[Existing CSF]]*(-1),0),\"\"),\"\")","v":""},{"$f":"IFERROR(Table_RetroSummary[[#This Row],[Existing Fixture kWh]]+Table_RetroSummary[[#This Row],[Existing Fixture (Existing Controls) kWh]],\"\")","v":""},{"$f":"IFERROR(IF(Table_RetroSummary[[#This Row],[IsActive]],IF(ISNUMBER(MATCH(Table_POSTInfo[[#This Row],[Line]],Table_POSTInspection[Line],0)),INDEX(Table_POSTInspection[Fixture Description '[P']],MATCH(Table_RetroSummary[[#This Row],[Line Item]],Table_POSTInspection[Line],0)),Table_POSTInfo[[#This Row],[Fixture Description '[P']]]),\"\"),\"\")","v":""},{"$f":"IFERROR(IF(Table_RetroSummary[[#This Row],[IsActive]],IF(ISNUMBER(MATCH(Table_POSTInfo[[#This Row],[Line]],Table_POSTInspection[Line],0)),INDEX(Table_POSTInspection['# Lamps/ Fixture '[P']],MATCH(Table_RetroSummary[[#This Row],[Line Item]],Table_POSTInspection[Line],0)),Table_POSTInfo[[#This Row],['# Lamps/ Fixture '[P']]]),\"\"),\"\")","v":""},{"$f":"IFERROR(IF(Table_RetroSummary[[#This Row],[IsActive]],IF(ISNUMBER(MATCH(Table_POSTInfo[[#This Row],[Line]],Table_POSTInspection[Line],0)),INDEX(Table_POSTInspection[Fixture/ Lamp Wattage '[P']],MATCH(Table_RetroSummary[[#This Row],[Line Item]],Table_POSTInspection[Line],0)),Table_POSTInfo[[#This Row],[Fixture/ Lamp Wattage '[P']]]),\"\"),\"\")","v":""},{"$f":"IFERROR(IF(Table_RetroSummary[[#This Row],[IsActive]],IF(ISNUMBER(MATCH(Table_POSTInfo[[#This Row],[Line]],Table_POSTInspection[Line],0)),INDEX(Table_POSTInspection[Fixture Qty '[P']],MATCH(Table_RetroSummary[[#This Row],[Line Item]],Table_POSTInspection[Line],0)),Table_POSTInfo[[#This Row],[Fixture Qty '[P']]]),\"\"),\"\")","v":""},{"$f":"IFERROR(IF(Table_RetroSummary[[#This Row],[IsActive]],Table_RetroSummary[[#This Row],[Fixture/ Lamp Wattage '[P']]]*Table_RetroSummary[[#This Row],[P. Qty]],\"\"),\"\")","v":""},{"$f":"IFERROR(IF(Table_RetroSummary[[#This Row],[IsActive]],IF(ISNUMBER(MATCH(Table_POSTInfo[[#This Row],[Line]],Table_POSTInspection[Line],0)),INDEX(Table_POSTInspection[Fixture Wattage '[P']],MATCH(Table_RetroSummary[[#This Row],[Line Item]],Table_POSTInspection[Line],0)),Table_POSTInfo[[#This Row],[Fixture Wattage '[P']]]),\"\"),\"\")","v":""},{"$f":"IFERROR(Table_RetroSummary[[#This Row],[Total '# Lamps '[P']]]+Table_RetroSummary[[#This Row],[Proposed Fixture Wattage]],\"\")","v":""},{"$f":"IFERROR(Table_RetroSummary[[#This Row],[Proposed Fixture Wattage]]/1000*Table_RetroSummary[[#This Row],[OpHrs]]*Table_RetroSummary[[#This Row],[P. Qty]],\"\")","v":""},{"$f":"IFERROR(IF(Table_RetroSummary[[#This Row],[IsActive]],IFERROR(VLOOKUP(RIGHT(Table_RetroSummary[[#This Row],[Proposed Fixture]],LEN(Table_RetroSummary[[#This Row],[Proposed Fixture]])-FIND(\" - \",Table_RetroSummary[[#This Row],[Proposed Fixture]],FIND(\"]\",Table_RetroSummary[[#This Row],[Proposed Fixture]],1))-2),Table_ControlType[],3, FALSE),0),\"\"),\"\")","v":""},{"$f":"IFERROR(IF(Table_RetroSummary[[#This Row],[IsActive]],IFERROR(Table_RetroSummary[[#This Row],[Proposed Fixture Wattage]]/1000*Table_RetroSummary[[#This Row],[OpHrs]]*Table_RetroSummary[[#This Row],[P. Qty]]*Table_RetroSummary[[#This Row],[Existing CSF]]*(-1),0),\"\"),\"\")","v":""},{"$f":"IFERROR(Table_RetroSummary[[#This Row],[Proposed Fixture kWh]]+Table_RetroSummary[[#This Row],[Proposed Fixture (Existing Controls) kWh]],\"\")","v":""},{"$f":"IFERROR(IF(Table_RetroSummary[[#This Row],[IsActive]],IFERROR(Table_RetroSummary[[#This Row],[Proposed Fixture Wattage]]/1000*Table_RetroSummary[[#This Row],[OpHrs]]*Table_RetroSummary[[#This Row],[P. Qty]]*Table_RetroSummary[[#This Row],[Proposed CSF]]*(-1),0),\"\"),\"\")","v":""},{"$f":"IFERROR(Table_RetroSummary[[#This Row],[Proposed Fixture kWh]]+Table_RetroSummary[[#This Row],[Proposed Fixture (Proposed Controls) kWh]],\"\")","v":""},{"$f":"IFERROR(IF(Table_RetroSummary[[#This Row],[IsActive]],IF(ISNUMBER(MATCH(Table_POSTInfo[[#This Row],[Line]],Table_POSTInspection[Line],0)),INDEX(Table_POSTInspection[DLC or ES Certification '[P']],MATCH(Table_RetroSummary[[#This Row],[Line Item]],Table_POSTInspection[Line],0)),Table_POSTInfo[[#This Row],[DLC or ES Certification '[P']]]),\"\"),\"\")","v":""},null,{"$f":"IFERROR(IF(Table_RetroSummary[[#This Row],[IsActive]],\nIF(AND(RIGHT(Table_RetroSummary[[#This Row],[Existing Fixture]],LEN(Table_RetroSummary[[#This Row],[Existing Fixture]])-FIND(\":\",Table_RetroSummary[[#This Row],[Existing Fixture]],1)-1)<>Table_RetroSummary[[#This Row],[Proposed Fixture]],MID(Table_RetroSummary[[#This Row],[Existing Fixture]],FIND(\": \",Table_RetroSummary[[#This Row],[Existing Fixture]],1)+2,FIND(\"]\",Table_RetroSummary[[#This Row],[Existing Fixture]],1))=LEFT(Table_RetroSummary[[#This Row],[Proposed Fixture]],FIND(\"]\",Table_RetroSummary[[#This Row],[Proposed Fixture]],1))),\n  \"Controls Only\",\n  IF(Table_POSTInfo[[#This Row],[DLC or ES Certification '[P']]]<>\"\",\n    IF(ISNUMBER(FIND(\"LED Tube\",Table_RetroSummary[[#This Row],[Proposed Fixture]],1)),\n      \"LED Re-Lamp\",\n      IF(AND(Table_RetroSummary[[#This Row],[Existing Overall kWh]]>Table_RetroSummary[[#This Row],[Proposed Overall kWh (Existing Controls)]],ISNUMBER(FIND(\"LED\",Table_RetroSummary[[#This Row],[Proposed Fixture]],1))),\n        IF(Table_POSTInfo[[#This Row],[Interior/ Exterior]]=\"Exterior\",\n          \"Exterior LED Fixture\",\n          \"Interior LED Fixture\"),\n        \"Ineligible Fixture\")),\n    \"Ineligible Fixture\")),\n\"\"),\"\")","v":""},{"$f":"IFERROR(VLOOKUP(Table_RetroSummary[[#This Row],[Fixture Measure Description]],Table_FixtureRate[],2,FALSE),\"\")","v":""},{"$f":"IFERROR(IF(Table_RetroSummary[[#This Row],[IsActive]],IF(Table_RetroSummary[[#This Row],[Fixture Measure Description]]=\"Ineligible Fixture\",0,ROUND(Table_RetroSummary[[#This Row],[Fixture Rebate (per kW)]]*(Table_RetroSummary[[#This Row],[Existing Fixture Wattage]]*Table_RetroSummary[[#This Row],[E. Qty]]-Table_RetroSummary[[#This Row],[Proposed Fixture Wattage]]*Table_RetroSummary[[#This Row],[P. Qty]])/1000,2)),\"\"),\"\")","v":""},{"$f":"IFERROR(IF(Table_RetroSummary[[#This Row],[Fixture Measure Description]]=\"Ineligible Fixture\",0,ROUND(IF(ProjectCost_Total=0,300000,ProjectCost_Total)*Table_RetroSummary[[#This Row],[Fixture Rebate]]/SUM(Table_RetroSummary[Fixture Rebate],Table_RetroSummary[Controls Rebate]),2)),\"\")","v":""},{"$f":"IFERROR(IF(Table_RetroSummary[[#This Row],[IsActive]],IF(Table_RetroSummary[[#This Row],[Fixture Measure Description]]=\"Ineligible Fixture\",0,Table_RetroSummary[[#This Row],[Existing Overall kWh]]-Table_RetroSummary[[#This Row],[Proposed Overall kWh (Existing Controls)]]),\"\"),\"\")","v":""},{"$f":"IFERROR(IF(Table_RetroSummary[[#This Row],[IsActive]],IF(Table_RetroSummary[[#This Row],[Fixture Measure Description]]=\"Ineligible Fixture\",0,(Table_RetroSummary[[#This Row],[Existing Fixture kWh]]-Table_RetroSummary[[#This Row],[Proposed Fixture kWh]])/Table_RetroSummary[[#This Row],[OpHrs]]*Table_RetroSummary[[#This Row],[CF (Ltg)]]*Table_RetroSummary[[#This Row],[DF (Ltg)]]),\"\"),\"\")","v":""},null,{"$f":"IFERROR(\n  IF(OR(Table_RetroSummary[[#This Row],[Fixture Measure Description]]=\"\",Table_RetroSummary[[#This Row],[Fixture Measure Description]]=\"Ineligible Fixture\"),\n    \"\",\n    IFERROR(VLOOKUP(RIGHT(Table_RetroSummary[[#This Row],[Existing Fixture]],LEN(Table_RetroSummary[[#This Row],[Existing Fixture]])-FIND(\" - \",Table_RetroSummary[[#This Row],[Existing Fixture]],FIND(\"]\",Table_RetroSummary[[#This Row],[Existing Fixture]],1))-2),Table_ControlType[],2,FALSE),\"None\")\n    & \" - \" &\n    IFERROR(VLOOKUP(RIGHT(Table_RetroSummary[[#This Row],[Proposed Fixture]],LEN(Table_RetroSummary[[#This Row],[Proposed Fixture]])-FIND(\" - \",Table_RetroSummary[[#This Row],[Proposed Fixture]],FIND(\"]\",Table_RetroSummary[[#This Row],[Proposed Fixture]],1))-2),Table_ControlType[],2, FALSE),None)),\n\"\")","v":""},{"$f":"IFERROR(VLOOKUP(Table_RetroSummary[[#This Row],[Controls Measure Description]],Table_ControlRate[],2,FALSE),\"\")","v":""},{"$f":"IFERROR(IF(Table_RetroSummary[[#This Row],[IsActive]],IF(Table_RetroSummary[[#This Row],[Controls Measure Description]]=\"\",0,ROUND(Table_RetroSummary[[#This Row],[Controls Rebate (per Fixt Watt)]]*Table_RetroSummary[[#This Row],[Proposed Fixture Wattage]]*Table_RetroSummary[[#This Row],[P. Qty]],2)),\"\"),\"\")","v":""},{"$f":"IFERROR(IF(Table_RetroSummary[[#This Row],[Fixture Measure Description]]=\"Ineligible Fixture\",0,ROUND(IF(ProjectCost_Total=0,300000,ProjectCost_Total)*Table_RetroSummary[[#This Row],[Controls Rebate]]/SUM(Table_RetroSummary[Fixture Rebate],Table_RetroSummary[Controls Rebate]),2)),\"\")","v":""},{"$f":"IFERROR(IF(Table_RetroSummary[[#This Row],[IsActive]],IF(Table_RetroSummary[[#This Row],[Controls Measure Description]]=\"\",0,(Table_RetroSummary[[#This Row],[Proposed Fixture (Existing Controls) kWh]]-Table_RetroSummary[[#This Row],[Proposed Fixture (Proposed Controls) kWh]])),\"\"),\"\")","v":""},{"$f":"IFERROR(IF(Table_RetroSummary[[#This Row],[IsActive]],IF(Table_RetroSummary[[#This Row],[Controls Measure Description]]=\"\",0,(Table_RetroSummary[[#This Row],[Proposed Fixture (Existing Controls) kWh]]-Table_RetroSummary[[#This Row],[Proposed Fixture (Proposed Controls) kWh]])/Table_RetroSummary[[#This Row],[OpHrs]]*Table_RetroSummary[[#This Row],[CF (Ltg)]]*Table_RetroSummary[[#This Row],[DF (Ltg)]]),\"\"),\"\")","v":""},null,{"$f":"IFERROR(IF(NOT(ISNUMBER(Table_RetroSummary[[#This Row],[Fixture Rebate]])),\"\",IF(MIN(IF(SUM(Table_RetroSummary[Fixture Cost],Table_RetroSummary[Controls Cost])<0,0,SUM(Table_RetroSummary[Fixture Cost],Table_RetroSummary[Controls Cost])),SUM(Table_RetroSummary[Fixture Rebate],Table_RetroSummary[Controls Rebate]))>300000,300000/MIN(IF(SUM(Table_RetroSummary[Fixture Cost],Table_RetroSummary[Controls Cost])<0,0,SUM(Table_RetroSummary[Fixture Cost],Table_RetroSummary[Controls Cost])),SUM(Table_RetroSummary[Fixture Rebate],Table_RetroSummary[Controls Rebate]))*MIN(IF(SUM(Table_RetroSummary[Fixture Cost],Table_RetroSummary[Controls Cost])<0,0,SUM(Table_RetroSummary[Fixture Cost],Table_RetroSummary[Controls Cost])),Table_RetroSummary[[#This Row],[Fixture Rebate]]+IF(Table_RetroSummary[[#This Row],[Controls Rebate]]=\"\",0,Table_RetroSummary[[#This Row],[Controls Rebate]])),MIN(IF(SUM(Table_RetroSummary[Fixture Cost],Table_RetroSummary[Controls Cost])<0,0,SUM(Table_RetroSummary[Fixture Cost],Table_RetroSummary[Controls Cost])),Table_RetroSummary[[#This Row],[Fixture Rebate]]+IF(Table_RetroSummary[[#This Row],[Controls Rebate]]=\"\",0,Table_RetroSummary[[#This Row],[Controls Rebate]])))),\"\")","v":""},{"$f":"IFERROR(IF(Table_RetroSummary[[#This Row],[Fixture Cost]]=\"\",\"\",Table_RetroSummary[[#This Row],[Fixture Cost]]+IF(Table_RetroSummary[[#This Row],[Controls Cost]]=\"\",0,Table_RetroSummary[[#This Row],[Controls Cost]])),\"\")","v":""},{"$f":"IFERROR(IF(Table_RetroSummary[[#This Row],[IsActive]],IF(Table_POSTInfo[[#This Row],[Interior/ Exterior]]=\"Interior\",IFERROR((Table_RetroSummary[[#This Row],[Annual Fixture Savings (kWh)]]+Table_RetroSummary[[#This Row],[Annual Control Savings (kWh)]])*(Table_RetroSummary[[#This Row],[EIF]]-1),0),0),\"\"),\"\")","v":""},{"$f":"IFERROR(IF(Table_RetroSummary[[#This Row],[IsActive]],IF(Table_POSTInfo[[#This Row],[Interior/ Exterior]]=\"Interior\",IFERROR((Table_RetroSummary[[#This Row],[Fixture kW Reduction]]+Table_RetroSummary[[#This Row],[Control kW Reduction]]/(Table_RetroSummary[[#This Row],[CF (Ltg)]]*Table_RetroSummary[[#This Row],[DF (Ltg)]]))*(Table_RetroSummary[[#This Row],[DIF]]-1)*Table_RetroSummary[[#This Row],[CF (HVAC)]]*Table_RetroSummary[[#This Row],[DF (HVAC)]],0),0),\"\"),\"\")","v":""},{"$f":"IFERROR(IF(Table_RetroSummary[[#This Row],[IsActive]],IF(NOT(ISNUMBER(Table_RetroSummary[[#This Row],[Fixture Rebate]])),\"\",ROUND(Table_RetroSummary[[#This Row],[Annual Fixture Savings (kWh)]]+Table_RetroSummary[[#This Row],[Annual Control Savings (kWh)]],0)),\"\"),\"\")","v":""},{"$f":"IFERROR(IF(Table_RetroSummary[[#This Row],[IsActive]],IF(NOT(ISNUMBER(Table_RetroSummary[[#This Row],[Fixture Rebate]])),\"\",ROUND(Table_RetroSummary[[#This Row],[Fixture kW Reduction]]+Table_RetroSummary[[#This Row],[Control kW Reduction]],3)),\"\"),\"\")","v":""},{"$f":"IFERROR(IF(Table_RetroSummary[[#This Row],[IsActive]],IF(NOT(ISNUMBER(Table_RetroSummary[[#This Row],[Fixture Rebate]])),\"\",ROUND(Table_RetroSummary[[#This Row],[Fixture Energy Savings (kWh)]]+Table_RetroSummary[[#This Row],[Induced HVAC Energy Savings (kWh)]],0)),\"\"),\"\")","v":""},{"$f":"IFERROR(IF(Table_RetroSummary[[#This Row],[IsActive]],IF(NOT(ISNUMBER(Table_RetroSummary[[#This Row],[Fixture Rebate]])),\"\",ROUND(Table_RetroSummary[[#This Row],[Fixture Demand Savings (kW)]]+Table_RetroSummary[[#This Row],[Induced HVAC Demand Savings (kW)]],3)),\"\"),\"\")","v":""}]
[{"$f":"IFERROR(Table_POSTInfo[[#This Row],[Line]],\"\")","v":5},{"$f":"IFERROR(Table_POSTInfo[[#This Row],[IsActive]],\"\")","v":false},{"$f":"IFERROR(IF(Table_RetroSummary[[#This Row],[IsActive]],CONCATENATE(Table_RetroSummary[[#This Row],[Existing Fixture]],\" | \",Table_RetroSummary[[#This Row],[Proposed Fixture]]),\"\"),\"\")","v":""},{"$f":"IFERROR(IF(Table_RetroSummary[[#This Row],[IsActive]],VLOOKUP(IF(ISNUMBER(MATCH(Table_POSTInfo[[#This Row],[Line]],Table_POSTInspection[Line],0)),INDEX(Table_POSTInspection[Schedule],MATCH(Table_RetroSummary[[#This Row],[Line Item]],Table_POSTInspection[Line],0)),Table_POSTInfo[[#This Row],[Schedule]]),'Customer Information'!$S$27:$T$34,2,FALSE),\"\"),\"\")","v":""},{"$f":"IFERROR(IF(Table_RetroSummary[[#This Row],[IsActive]],IF(IF(ISNUMBER(MATCH(Table_RetroSummary[[#This Row],[Line Item]],Table_POSTInspection[Line],0)),INDEX(Table_POSTInspection[Interior/ Exterior],MATCH(Table_RetroSummary[[#This Row],[Line Item]],Table_POSTInfo[[#This Row],[Line]],0)),Table_POSTInfo[[#This Row],[Interior/ Exterior]])=\"Interior\",'Customer Information'!$S$25,0),\"\"),\"\")","v":""},{"$f":"IFERROR(IF(Table_RetroSummary[[#This Row],[IsActive]],IF(IF(ISNUMBER(MATCH(Table_RetroSummary[[#This Row],[Line Item]],Table_POSTInspection[Line],0)),INDEX(Table_POSTInspection[Interior/ Exterior],MATCH(Table_RetroSummary[[#This Row],[Line Item]],Table_POSTInfo[[#This Row],[Line]],0)),Table_POSTInfo[[#This Row],[Interior/ Exterior]])=\"Interior\",'Customer Information'!$T$25,0),\"\"),\"\")","v":""},{"$f":"IFERROR(IF(Table_RetroSummary[[#This Row],[IsActive]],IF(IF(ISNUMBER(MATCH(Table_RetroSummary[[#This Row],[Line Item]],Table_POSTInspection[Line],0)),INDEX(Table_POSTInspection[Interior/ Exterior],MATCH(Table_RetroSummary[[#This Row],[Line Item]],Table_POSTInfo[[#This Row],[Line]],0)),Table_POSTInfo[[#This Row],[Interior/ Exterior]])=\"Interior\",'Customer Information'!$U$25,0),\"\"),\"\")","v":""},{"$f":"IFERROR(IF(Table_RetroSummary[[#This Row],[IsActive]],IF(IF(ISNUMBER(MATCH(Table_RetroSummary[[#This Row],[Line Item]],Table_POSTInspection[Line],0)),INDEX(Table_POSTInspection[Interior/ Exterior],MATCH(Table_RetroSummary[[#This Row],[Line Item]],Table_POSTInfo[[#This Row],[Line]],0)),Table_POSTInfo[[#This Row],[Interior/ Exterior]])=\"Interior\",'Customer Information'!$V$25,0),\"\"),\"\")","v":""},{"$f":"IFERROR(IF(Table_RetroSummary[[#This Row],[IsActive]],IF(IF(ISNUMBER(MATCH(Table_RetroSummary[[#This Row],[Line Item]],Table_POSTInspection[Line],0)),INDEX(Table_POSTInspection[Interior/ Exterior],MATCH(Table_RetroSummary[[#This Row],[Line Item]],Table_POSTInfo[[#This Row],[Line]],0)),Table_POSTInfo[[#This Row],[Interior/ Exterior]])=\"Interior\",'Customer Information'!$W$25,0),\"\"),\"\")","v":""},{"$f":"IFERROR(IF(Table_RetroSummary[[#This Row],[IsActive]],IF(IF(ISNUMBER(MATCH(Table_RetroSummary[[#This Row],[Line Item]],Table_POSTInspection[Line],0)),INDEX(Table_POSTInspection[Interior/ Exterior],MATCH(Table_RetroSummary[[#This Row],[Line Item]],Table_POSTInfo[[#This Row],[Line]],0)),Table_POSTInfo[[#This Row],[Interior/ Exterior]])=\"Interior\",'Customer Information'!$X$25,0),\"\"),\"\")","v":""},{"$f":"IFERROR(IF(Table_RetroSummary[[#This Row],[IsActive]],\nCONCATENATE(\nIF(ISNUMBER(MATCH(Table_POSTInfo[[#This Row],[Line]],Table_POSTInspection[Line],0)),INDEX(Table_POSTInspection[Interior/ Exterior],MATCH(Table_RetroSummary[[#This Row],[Line Item]],Table_POSTInspection[Line],0)),Table_POSTInfo[[#This Row],[Interior/ Exterior]]),\n\" - \",\nIF(ISNUMBER(MATCH(Table_POSTInfo[[#This Row],[Line]],Table_POSTInspection[Line],0)),INDEX(Table_POSTInspection[Space Description],MATCH(Table_RetroSummary[[#This Row],[Line Item]],Table_POSTInspection[Line],0)),Table_POSTInfo[[#This Row],[Space Description]])),\n \"\"),\"\")","v":""},{"$f":"IFERROR(IF(Table_RetroSummary[[#This Row],[IsActive]]=\"\",\"\",Table_POSTInfo[[#This Row],[Fixture Description '[E']]]),\"\")","v":""},{"$f":"IFERROR(IF(Table_RetroSummary[[#This Row],[IsActive]]=\"\",\"\",Table_POSTInfo[[#This Row],['# Lamps/ Fixture '[E']]]),\"\")","v":""},{"$f":"IFERROR(IF(Table_RetroSummary[[#This Row],[IsActive]]=\"\",\"\",Table_POSTInfo[[#This Row],[Fixture/ Lamp Wattage '[E']]]),\"\")","v":""},{"$f":"IFERROR(IF(Table_RetroSummary[[#This Row],[IsActive]]=\"\",\"\",Table_POSTInfo[[#This Row],[Fixture Qty '[E']]]),\"\")","v":""},{"$f":"IFERROR(IF(Table_RetroSummary[[#This Row],[IsActive]],Table_RetroSummary[[#This Row],[Fixture/ Lamp Wattage '[E']]]*Table_RetroSummary[[#This Row],[E. Qty]],\"\"),\"\")","v":""},{"$f":"IFERROR(IF(Table_RetroSummary[[#This Row],[IsActive]]=\"\",\"\",Table_POSTInfo[[#This Row],[Fixture Wattage '[E']]]),\"\")","v":""},{"$f":"IFERROR(IF(Table_RetroSummary[[#This Row],[IsActive]],IFERROR(Table_RetroSummary[[#This Row],[Existing Fixture Wattage]]/1000*Table_RetroSummary[[#This Row],[OpHrs]]*Table_RetroSummary[[#This Row],[E. Qty]],0),\"\"),\"\")","v":""},{"$f":"IFERROR(IF(Table_RetroSummary[[#This Row],[IsActive]],IFERROR(VLOOKUP(RIGHT(Table_RetroSummary[[#This Row],[Existing Fixture]],LEN(Table_RetroSummary[[#This Row],[Existing Fixture]])-FIND(\" - \",Table_RetroSummary[[#This Row],[Existing Fixture]],FIND(\"]\",Table_RetroSummary[[#This Row],[Existing Fixture]],1))-2),Table_ControlType[],3,FALSE),0),\"\"),\"\")","v":""},{"$f":"IFERROR(IF(Table_RetroSummary[[#This Row],[IsActive]],IFERROR(Table_RetroSummary[[#This Row],[Existing Fixture Wattage]]/1000*Table_RetroSummary[[#This Row],[OpHrs]]*Table_RetroSummary[[#This Row],[E. Qty]]*Table_RetroSummary[[#This Row],[Existing CSF]]*(-1),0),\"\"),\"\")","v":""},{"$f":"IFERROR(Table_RetroSummary[[#This Row],[Existing Fixture kWh]]+Table_RetroSummary[[#This Row],[Existing Fixture (Existing Controls) kWh]],\"\")","v":""},{"$f":"IFERROR(IF(Table_RetroSummary[[#This Row],[IsActive]],IF(ISNUMBER(MATCH(Table_POSTInfo[[#This Row],[Line]],Table_POSTInspection[Line],0)),INDEX(Table_POSTInspection[Fixture Description '[P']],MATCH(Table_RetroSummary[[#This Row],[Line Item]],Table_POSTInspection[Line],0)),Table_POSTInfo[[#This Row],[Fixture Description '[P']]]),\"\"),\"\")","v":""},{"$f":"IFERROR(IF(Table_RetroSummary[[#This Row],[IsActive]],IF(ISNUMBER(MATCH(Table_POSTInfo[[#This Row],[Line]],Table_POSTInspection[Line],0)),INDEX(Table_POSTInspection['# Lamps/ Fixture '[P']],MATCH(Table_RetroSummary[[#This Row],[Line Item]],Table_POSTInspection[Line],0)),Table_POSTInfo[[#This Row],['# Lamps/ Fixture '[P']]]),\"\"),\"\")","v":""},{"$f":"IFERROR(IF(Table_RetroSummary[[#This Row],[IsActive]],IF(ISNUMBER(MATCH(Table_POSTInfo[[#This Row],[Line]],Table_POSTInspection[Line],0)),INDEX(Table_POSTInspection[Fixture/ Lamp Wattage '[P']],MATCH(Table_RetroSummary[[#This Row],[Line Item]],Table_POSTInspection[Line],0)),Table_POSTInfo[[#This Row],[Fixture/ Lamp Wattage '[P']]]),\"\"),\"\")","v":""},{"$f":"IFERROR(IF(Table_RetroSummary[[#This Row],[IsActive]],IF(ISNUMBER(MATCH(Table_POSTInfo[[#This Row],[Line]],Table_POSTInspection[Line],0)),INDEX(Table_POSTInspection[Fixture Qty '[P']],MATCH(Table_RetroSummary[[#This Row],[Line Item]],Table_POSTInspection[Line],0)),Table_POSTInfo[[#This Row],[Fixture Qty '[P']]]),\"\"),\"\")","v":""},{"$f":"IFERROR(IF(Table_RetroSummary[[#This Row],[IsActive]],Table_RetroSummary[[#This Row],[Fixture/ Lamp Wattage '[P']]]*Table_RetroSummary[[#This Row],[P. Qty]],\"\"),\"\")","v":""},{"$f":"IFERROR(IF(Table_RetroSummary[[#This Row],[IsActive]],IF(ISNUMBER(MATCH(Table_POSTInfo[[#This Row],[Line]],Table_POSTInspection[Line],0)),INDEX(Table_POSTInspection[Fixture Wattage '[P']],MATCH(Table_RetroSummary[[#This Row],[Line Item]],Table_POSTInspection[Line],0)),Table_POSTInfo[[#This Row],[Fixture Wattage '[P']]]),\"\"),\"\")","v":""},{"$f":"IFERROR(Table_RetroSummary[[#This Row],[Total '# Lamps '[P']]]+Table_RetroSummary[[#This Row],[Proposed Fixture Wattage]],\"\")","v":""},{"$f":"IFERROR(Table_RetroSummary[[#This Row],[Proposed Fixture Wattage]]/1000*Table_RetroSummary[[#This Row],[OpHrs]]*Table_RetroSummary[[#This Row],[P. Qty]],\"\")","v":""},{"$f":"IFERROR(IF(Table_RetroSummary[[#This Row],[IsActive]],IFERROR(VLOOKUP(RIGHT(Table_RetroSummary[[#This Row],[Proposed Fixture]],LEN(Table_RetroSummary[[#This Row],[Proposed Fixture]])-FIND(\" - \",Table_RetroSummary[[#This Row],[Proposed Fixture]],FIND(\"]\",Table_RetroSummary[[#This Row],[Proposed Fixture]],1))-2),Table_ControlType[],3, FALSE),0),\"\"),\"\")","v":""},{"$f":"IFERROR(IF(Table_RetroSummary[[#This Row],[IsActive]],IFERROR(Table_RetroSummary[[#This Row],[Proposed Fixture Wattage]]/1000*Table_RetroSummary[[#This Row],[OpHrs]]*Table_RetroSummary[[#This Row],[P. Qty]]*Table_RetroSummary[[#This Row],[Existing CSF]]*(-1),0),\"\"),\"\")","v":""},{"$f":"IFERROR(Table_RetroSummary[[#This Row],[Proposed Fixture kWh]]+Table_RetroSummary[[#This Row],[Proposed Fixture (Existing Controls) kWh]],\"\")","v":""},{"$f":"IFERROR(IF(Table_RetroSummary[[#This Row],[IsActive]],IFERROR(Table_RetroSummary[[#This Row],[Proposed Fixture Wattage]]/1000*Table_RetroSummary[[#This Row],[OpHrs]]*Table_RetroSummary[[#This Row],[P. Qty]]*Table_RetroSummary[[#This Row],[Proposed CSF]]*(-1),0),\"\"),\"\")","v":""},{"$f":"IFERROR(Table_RetroSummary[[#This Row],[Proposed Fixture kWh]]+Table_RetroSummary[[#This Row],[Proposed Fixture (Proposed Controls) kWh]],\"\")","v":""},{"$f":"IFERROR(IF(Table_RetroSummary[[#This Row],[IsActive]],IF(ISNUMBER(MATCH(Table_POSTInfo[[#This Row],[Line]],Table_POSTInspection[Line],0)),INDEX(Table_POSTInspection[DLC or ES Certification '[P']],MATCH(Table_RetroSummary[[#This Row],[Line Item]],Table_POSTInspection[Line],0)),Table_POSTInfo[[#This Row],[DLC or ES Certification '[P']]]),\"\"),\"\")","v":""},null,{"$f":"IFERROR(IF(Table_RetroSummary[[#This Row],[IsActive]],\nIF(AND(RIGHT(Table_RetroSummary[[#This Row],[Existing Fixture]],LEN(Table_RetroSummary[[#This Row],[Existing Fixture]])-FIND(\":\",Table_RetroSummary[[#This Row],[Existing Fixture]],1)-1)<>Table_RetroSummary[[#This Row],[Proposed Fixture]],MID(Table_RetroSummary[[#This Row],[Existing Fixture]],FIND(\": \",Table_RetroSummary[[#This Row],[Existing Fixture]],1)+2,FIND(\"]\",Table_RetroSummary[[#This Row],[Existing Fixture]],1))=LEFT(Table_RetroSummary[[#This Row],[Proposed Fixture]],FIND(\"]\",Table_RetroSummary[[#This Row],[Proposed Fixture]],1))),\n  \"Controls Only\",\n  IF(Table_POSTInfo[[#This Row],[DLC or ES Certification '[P']]]<>\"\",\n    IF(ISNUMBER(FIND(\"LED Tube\",Table_RetroSummary[[#This Row],[Proposed Fixture]],1)),\n      \"LED Re-Lamp\",\n      IF(AND(Table_RetroSummary[[#This Row],[Existing Overall kWh]]>Table_RetroSummary[[#This Row],[Proposed Overall kWh (Existing Controls)]],ISNUMBER(FIND(\"LED\",Table_RetroSummary[[#This Row],[Proposed Fixture]],1))),\n        IF(Table_POSTInfo[[#This Row],[Interior/ Exterior]]=\"Exterior\",\n          \"Exterior LED Fixture\",\n          \"Interior LED Fixture\"),\n        \"Ineligible Fixture\")),\n    \"Ineligible Fixture\")),\n\"\"),\"\")","v":""},{"$f":"IFERROR(VLOOKUP(Table_RetroSummary[[#This Row],[Fixture Measure Description]],Table_FixtureRate[],2,FALSE),\"\")","v":""},{"$f":"IFERROR(IF(Table_RetroSummary[[#This Row],[IsActive]],IF(Table_RetroSummary[[#This Row],[Fixture Measure Description]]=\"Ineligible Fixture\",0,ROUND(Table_RetroSummary[[#This Row],[Fixture Rebate (per kW)]]*(Table_RetroSummary[[#This Row],[Existing Fixture Wattage]]*Table_RetroSummary[[#This Row],[E. Qty]]-Table_RetroSummary[[#This Row],[Proposed Fixture Wattage]]*Table_RetroSummary[[#This Row],[P. Qty]])/1000,2)),\"\"),\"\")","v":""},{"$f":"IFERROR(IF(Table_RetroSummary[[#This Row],[Fixture Measure Description]]=\"Ineligible Fixture\",0,ROUND(IF(ProjectCost_Total=0,300000,ProjectCost_Total)*Table_RetroSummary[[#This Row],[Fixture Rebate]]/SUM(Table_RetroSummary[Fixture Rebate],Table_RetroSummary[Controls Rebate]),2)),\"\")","v":""},{"$f":"IFERROR(IF(Table_RetroSummary[[#This Row],[IsActive]],IF(Table_RetroSummary[[#This Row],[Fixture Measure Description]]=\"Ineligible Fixture\",0,Table_RetroSummary[[#This Row],[Existing Overall kWh]]-Table_RetroSummary[[#This Row],[Proposed Overall kWh (Existing Controls)]]),\"\"),\"\")","v":""},{"$f":"IFERROR(IF(Table_RetroSummary[[#This Row],[IsActive]],IF(Table_RetroSummary[[#This Row],[Fixture Measure Description]]=\"Ineligible Fixture\",0,(Table_RetroSummary[[#This Row],[Existing Fixture kWh]]-Table_RetroSummary[[#This Row],[Proposed Fixture kWh]])/Table_RetroSummary[[#This Row],[OpHrs]]*Table_RetroSummary[[#This Row],[CF (Ltg)]]*Table_RetroSummary[[#This Row],[DF (Ltg)]]),\"\"),\"\")","v":""},null,{"$f":"IFERROR(\n  IF(OR(Table_RetroSummary[[#This Row],[Fixture Measure Description]]=\"\",Table_RetroSummary[[#This Row],[Fixture Measure Description]]=\"Ineligible Fixture\"),\n    \"\",\n    IFERROR(VLOOKUP(RIGHT(Table_RetroSummary[[#This Row],[Existing Fixture]],LEN(Table_RetroSummary[[#This Row],[Existing Fixture]])-FIND(\" - \",Table_RetroSummary[[#This Row],[Existing Fixture]],FIND(\"]\",Table_RetroSummary[[#This Row],[Existing Fixture]],1))-2),Table_ControlType[],2,FALSE),\"None\")\n    & \" - \" &\n    IFERROR(VLOOKUP(RIGHT(Table_RetroSummary[[#This Row],[Proposed Fixture]],LEN(Table_RetroSummary[[#This Row],[Proposed Fixture]])-FIND(\" - \",Table_RetroSummary[[#This Row],[Proposed Fixture]],FIND(\"]\",Table_RetroSummary[[#This Row],[Proposed Fixture]],1))-2),Table_ControlType[],2, FALSE),None)),\n\"\")","v":""},{"$f":"IFERROR(VLOOKUP(Table_RetroSummary[[#This Row],[Controls Measure Description]],Table_ControlRate[],2,FALSE),\"\")","v":""},{"$f":"IFERROR(IF(Table_RetroSummary[[#This Row],[IsActive]],IF(Table_RetroSummary[[#This Row],[Controls Measure Description]]=\"\",0,ROUND(Table_RetroSummary[[#This Row],[Controls Rebate (per Fixt Watt)]]*Table_RetroSummary[[#This Row],[Proposed Fixture Wattage]]*Table_RetroSummary[[#This Row],[P. Qty]],2)),\"\"),\"\")","v":""},{"$f":"IFERROR(IF(Table_RetroSummary[[#This Row],[Fixture Measure Description]]=\"Ineligible Fixture\",0,ROUND(IF(ProjectCost_Total=0,300000,ProjectCost_Total)*Table_RetroSummary[[#This Row],[Controls Rebate]]/SUM(Table_RetroSummary[Fixture Rebate],Table_RetroSummary[Controls Rebate]),2)),\"\")","v":""},{"$f":"IFERROR(IF(Table_RetroSummary[[#This Row],[IsActive]],IF(Table_RetroSummary[[#This Row],[Controls Measure Description]]=\"\",0,(Table_RetroSummary[[#This Row],[Proposed Fixture (Existing Controls) kWh]]-Table_RetroSummary[[#This Row],[Proposed Fixture (Proposed Controls) kWh]])),\"\"),\"\")","v":""},{"$f":"IFERROR(IF(Table_RetroSummary[[#This Row],[IsActive]],IF(Table_RetroSummary[[#This Row],[Controls Measure Description]]=\"\",0,(Table_RetroSummary[[#This Row],[Proposed Fixture (Existing Controls) kWh]]-Table_RetroSummary[[#This Row],[Proposed Fixture (Proposed Controls) kWh]])/Table_RetroSummary[[#This Row],[OpHrs]]*Table_RetroSummary[[#This Row],[CF (Ltg)]]*Table_RetroSummary[[#This Row],[DF (Ltg)]]),\"\"),\"\")","v":""},null,{"$f":"IFERROR(IF(NOT(ISNUMBER(Table_RetroSummary[[#This Row],[Fixture Rebate]])),\"\",IF(MIN(IF(SUM(Table_RetroSummary[Fixture Cost],Table_RetroSummary[Controls Cost])<0,0,SUM(Table_RetroSummary[Fixture Cost],Table_RetroSummary[Controls Cost])),SUM(Table_RetroSummary[Fixture Rebate],Table_RetroSummary[Controls Rebate]))>300000,300000/MIN(IF(SUM(Table_RetroSummary[Fixture Cost],Table_RetroSummary[Controls Cost])<0,0,SUM(Table_RetroSummary[Fixture Cost],Table_RetroSummary[Controls Cost])),SUM(Table_RetroSummary[Fixture Rebate],Table_RetroSummary[Controls Rebate]))*MIN(IF(SUM(Table_RetroSummary[Fixture Cost],Table_RetroSummary[Controls Cost])<0,0,SUM(Table_RetroSummary[Fixture Cost],Table_RetroSummary[Controls Cost])),Table_RetroSummary[[#This Row],[Fixture Rebate]]+IF(Table_RetroSummary[[#This Row],[Controls Rebate]]=\"\",0,Table_RetroSummary[[#This Row],[Controls Rebate]])),MIN(IF(SUM(Table_RetroSummary[Fixture Cost],Table_RetroSummary[Controls Cost])<0,0,SUM(Table_RetroSummary[Fixture Cost],Table_RetroSummary[Controls Cost])),Table_RetroSummary[[#This Row],[Fixture Rebate]]+IF(Table_RetroSummary[[#This Row],[Controls Rebate]]=\"\",0,Table_RetroSummary[[#This Row],[Controls Rebate]])))),\"\")","v":""},{"$f":"IFERROR(IF(Table_RetroSummary[[#This Row],[Fixture Cost]]=\"\",\"\",Table_RetroSummary[[#This Row],[Fixture Cost]]+IF(Table_RetroSummary[[#This Row],[Controls Cost]]=\"\",0,Table_RetroSummary[[#This Row],[Controls Cost]])),\"\")","v":""},{"$f":"IFERROR(IF(Table_RetroSummary[[#This Row],[IsActive]],IF(Table_POSTInfo[[#This Row],[Interior/ Exterior]]=\"Interior\",IFERROR((Table_RetroSummary[[#This Row],[Annual Fixture Savings (kWh)]]+Table_RetroSummary[[#This Row],[Annual Control Savings (kWh)]])*(Table_RetroSummary[[#This Row],[EIF]]-1),0),0),\"\"),\"\")","v":""},{"$f":"IFERROR(IF(Table_RetroSummary[[#This Row],[IsActive]],IF(Table_POSTInfo[[#This Row],[Interior/ Exterior]]=\"Interior\",IFERROR((Table_RetroSummary[[#This Row],[Fixture kW Reduction]]+Table_RetroSummary[[#This Row],[Control kW Reduction]]/(Table_RetroSummary[[#This Row],[CF (Ltg)]]*Table_RetroSummary[[#This Row],[DF (Ltg)]]))*(Table_RetroSummary[[#This Row],[DIF]]-1)*Table_RetroSummary[[#This Row],[CF (HVAC)]]*Table_RetroSummary[[#This Row],[DF (HVAC)]],0),0),\"\"),\"\")","v":""},{"$f":"IFERROR(IF(Table_RetroSummary[[#This Row],[IsActive]],IF(NOT(ISNUMBER(Table_RetroSummary[[#This Row],[Fixture Rebate]])),\"\",ROUND(Table_RetroSummary[[#This Row],[Annual Fixture Savings (kWh)]]+Table_RetroSummary[[#This Row],[Annual Control Savings (kWh)]],0)),\"\"),\"\")","v":""},{"$f":"IFERROR(IF(Table_RetroSummary[[#This Row],[IsActive]],IF(NOT(ISNUMBER(Table_RetroSummary[[#This Row],[Fixture Rebate]])),\"\",ROUND(Table_RetroSummary[[#This Row],[Fixture kW Reduction]]+Table_RetroSummary[[#This Row],[Control kW Reduction]],3)),\"\"),\"\")","v":""},{"$f":"IFERROR(IF(Table_RetroSummary[[#This Row],[IsActive]],IF(NOT(ISNUMBER(Table_RetroSummary[[#This Row],[Fixture Rebate]])),\"\",ROUND(Table_RetroSummary[[#This Row],[Fixture Energy Savings (kWh)]]+Table_RetroSummary[[#This Row],[Induced HVAC Energy Savings (kWh)]],0)),\"\"),\"\")","v":""},{"$f":"IFERROR(IF(Table_RetroSummary[[#This Row],[IsActive]],IF(NOT(ISNUMBER(Table_RetroSummary[[#This Row],[Fixture Rebate]])),\"\",ROUND(Table_RetroSummary[[#This Row],[Fixture Demand Savings (kW)]]+Table_RetroSummary[[#This Row],[Induced HVAC Demand Savings (kW)]],3)),\"\"),\"\")","v":""}]
[{"$f":"IFERROR(Table_POSTInfo[[#This Row],[Line]],\"\")","v":6},{"$f":"IFERROR(Table_POSTInfo[[#This Row],[IsActive]],\"\")","v":false},{"$f":"IFERROR(IF(Table_RetroSummary[[#This Row],[IsActive]],CONCATENATE(Table_RetroSummary[[#This Row],[Existing Fixture]],\" | \",Table_RetroSummary[[#This Row],[Proposed Fixture]]),\"\"),\"\")","v":""},{"$f":"IFERROR(IF(Table_RetroSummary[[#This Row],[IsActive]],VLOOKUP(IF(ISNUMBER(MATCH(Table_POSTInfo[[#This Row],[Line]],Table_POSTInspection[Line],0)),INDEX(Table_POSTInspection[Schedule],MATCH(Table_RetroSummary[[#This Row],[Line Item]],Table_POSTInspection[Line],0)),Table_POSTInfo[[#This Row],[Schedule]]),'Customer Information'!$S$27:$T$34,2,FALSE),\"\"),\"\")","v":""},{"$f":"IFERROR(IF(Table_RetroSummary[[#This Row],[IsActive]],IF(IF(ISNUMBER(MATCH(Table_RetroSummary[[#This Row],[Line Item]],Table_POSTInspection[Line],0)),INDEX(Table_POSTInspection[Interior/ Exterior],MATCH(Table_RetroSummary[[#This Row],[Line Item]],Table_POSTInfo[[#This Row],[Line]],0)),Table_POSTInfo[[#This Row],[Interior/ Exterior]])=\"Interior\",'Customer Information'!$S$25,0),\"\"),\"\")","v":""},{"$f":"IFERROR(IF(Table_RetroSummary[[#This Row],[IsActive]],IF(IF(ISNUMBER(MATCH(Table_RetroSummary[[#This Row],[Line Item]],Table_POSTInspection[Line],0)),INDEX(Table_POSTInspection[Interior/ Exterior],MATCH(Table_RetroSummary[[#This Row],[Line Item]],Table_POSTInfo[[#This Row],[Line]],0)),Table_POSTInfo[[#This Row],[Interior/ Exterior]])=\"Interior\",'Customer Information'!$T$25,0),\"\"),\"\")","v":""},{"$f":"IFERROR(IF(Table_RetroSummary[[#This Row],[IsActive]],IF(IF(ISNUMBER(MATCH(Table_RetroSummary[[#This Row],[Line Item]],Table_POSTInspection[Line],0)),INDEX(Table_POSTInspection[Interior/ Exterior],MATCH(Table_RetroSummary[[#This Row],[Line Item]],Table_POSTInfo[[#This Row],[Line]],0)),Table_POSTInfo[[#This Row],[Interior/ Exterior]])=\"Interior\",'Customer Information'!$U$25,0),\"\"),\"\")","v":""},{"$f":"IFERROR(IF(Table_RetroSummary[[#This Row],[IsActive]],IF(IF(ISNUMBER(MATCH(Table_RetroSummary[[#This Row],[Line Item]],Table_POSTInspection[Line],0)),INDEX(Table_POSTInspection[Interior/ Exterior],MATCH(Table_RetroSummary[[#This Row],[Line Item]],Table_POSTInfo[[#This Row],[Line]],0)),Table_POSTInfo[[#This Row],[Interior/ Exterior]])=\"Interior\",'Customer Information'!$V$25,0),\"\"),\"\")","v":""},{"$f":"IFERROR(IF(Table_RetroSummary[[#This Row],[IsActive]],IF(IF(ISNUMBER(MATCH(Table_RetroSummary[[#This Row],[Line Item]],Table_POSTInspection[Line],0)),INDEX(Table_POSTInspection[Interior/ Exterior],MATCH(Table_RetroSummary[[#This Row],[Line Item]],Table_POSTInfo[[#This Row],[Line]],0)),Table_POSTInfo[[#This Row],[Interior/ Exterior]])=\"Interior\",'Customer Information'!$W$25,0),\"\"),\"\")","v":""},{"$f":"IFERROR(IF(Table_RetroSummary[[#This Row],[IsActive]],IF(IF(ISNUMBER(MATCH(Table_RetroSummary[[#This Row],[Line Item]],Table_POSTInspection[Line],0)),INDEX(Table_POSTInspection[Interior/ Exterior],MATCH(Table_RetroSummary[[#This Row],[Line Item]],Table_POSTInfo[[#This Row],[Line]],0)),Table_POSTInfo[[#This Row],[Interior/ Exterior]])=\"Interior\",'Customer Information'!$X$25,0),\"\"),\"\")","v":""},{"$f":"IFERROR(IF(Table_RetroSummary[[#This Row],[IsActive]],\nCONCATENATE(\nIF(ISNUMBER(MATCH(Table_POSTInfo[[#This Row],[Line]],Table_POSTInspection[Line],0)),INDEX(Table_POSTInspection[Interior/ Exterior],MATCH(Table_RetroSummary[[#This Row],[Line Item]],Table_POSTInspection[Line],0)),Table_POSTInfo[[#This Row],[Interior/ Exterior]]),\n\" - \",\nIF(ISNUMBER(MATCH(Table_POSTInfo[[#This Row],[Line]],Table_POSTInspection[Line],0)),INDEX(Table_POSTInspection[Space Description],MATCH(Table_RetroSummary[[#This Row],[Line Item]],Table_POSTInspection[Line],0)),Table_POSTInfo[[#This Row],[Space Description]])),\n \"\"),\"\")","v":""},{"$f":"IFERROR(IF(Table_RetroSummary[[#This Row],[IsActive]]=\"\",\"\",Table_POSTInfo[[#This Row],[Fixture Description '[E']]]),\"\")","v":""},{"$f":"IFERROR(IF(Table_RetroSummary[[#This Row],[IsActive]]=\"\",\"\",Table_POSTInfo[[#This Row],['# Lamps/ Fixture '[E']]]),\"\")","v":""},{"$f":"IFERROR(IF(Table_RetroSummary[[#This Row],[IsActive]]=\"\",\"\",Table_POSTInfo[[#This Row],[Fixture/ Lamp Wattage '[E']]]),\"\")","v":""},{"$f":"IFERROR(IF(Table_RetroSummary[[#This Row],[IsActive]]=\"\",\"\",Table_POSTInfo[[#This Row],[Fixture Qty '[E']]]),\"\")","v":""},{"$f":"IFERROR(IF(Table_RetroSummary[[#This Row],[IsActive]],Table_RetroSummary[[#This Row],[Fixture/ Lamp Wattage '[E']]]*Table_RetroSummary[[#This Row],[E. Qty]],\"\"),\"\")","v":""},{"$f":"IFERROR(IF(Table_RetroSummary[[#This Row],[IsActive]]=\"\",\"\",Table_POSTInfo[[#This Row],[Fixture Wattage '[E']]]),\"\")","v":""},{"$f":"IFERROR(IF(Table_RetroSummary[[#This Row],[IsActive]],IFERROR(Table_RetroSummary[[#This Row],[Existing Fixture Wattage]]/1000*Table_RetroSummary[[#This Row],[OpHrs]]*Table_RetroSummary[[#This Row],[E. Qty]],0),\"\"),\"\")","v":""},{"$f":"IFERROR(IF(Table_RetroSummary[[#This Row],[IsActive]],IFERROR(VLOOKUP(RIGHT(Table_RetroSummary[[#This Row],[Existing Fixture]],LEN(Table_RetroSummary[[#This Row],[Existing Fixture]])-FIND(\" - \",Table_RetroSummary[[#This Row],[Existing Fixture]],FIND(\"]\",Table_RetroSummary[[#This Row],[Existing Fixture]],1))-2),Table_ControlType[],3,FALSE),0),\"\"),\"\")","v":""},{"$f":"IFERROR(IF(Table_RetroSummary[[#This Row],[IsActive]],IFERROR(Table_RetroSummary[[#This Row],[Existing Fixture Wattage]]/1000*Table_RetroSummary[[#This Row],[OpHrs]]*Table_RetroSummary[[#This Row],[E. Qty]]*Table_RetroSummary[[#This Row],[Existing CSF]]*(-1),0),\"\"),\"\")","v":""},{"$f":"IFERROR(Table_RetroSummary[[#This Row],[Existing Fixture kWh]]+Table_RetroSummary[[#This Row],[Existing Fixture (Existing Controls) kWh]],\"\")","v":""},{"$f":"IFERROR(IF(Table_RetroSummary[[#This Row],[IsActive]],IF(ISNUMBER(MATCH(Table_POSTInfo[[#This Row],[Line]],Table_POSTInspection[Line],0)),INDEX(Table_POSTInspection[Fixture Description '[P']],MATCH(Table_RetroSummary[[#This Row],[Line Item]],Table_POSTInspection[Line],0)),Table_POSTInfo[[#This Row],[Fixture Description '[P']]]),\"\"),\"\")","v":""},{"$f":"IFERROR(IF(Table_RetroSummary[[#This Row],[IsActive]],IF(ISNUMBER(MATCH(Table_POSTInfo[[#This Row],[Line]],Table_POSTInspection[Line],0)),INDEX(Table_POSTInspection['# Lamps/ Fixture '[P']],MATCH(Table_RetroSummary[[#This Row],[Line Item]],Table_POSTInspection[Line],0)),Table_POSTInfo[[#This Row],['# Lamps/ Fixture '[P']]]),\"\"),\"\")","v":""},{"$f":"IFERROR(IF(Table_RetroSummary[[#This Row],[IsActive]],IF(ISNUMBER(MATCH(Table_POSTInfo[[#This Row],[Line]],Table_POSTInspection[Line],0)),INDEX(Table_POSTInspection[Fixture/ Lamp Wattage '[P']],MATCH(Table_RetroSummary[[#This Row],[Line Item]],Table_POSTInspection[Line],0)),Table_POSTInfo[[#This Row],[Fixture/ Lamp Wattage '[P']]]),\"\"),\"\")","v":""},{"$f":"IFERROR(IF(Table_RetroSummary[[#This Row],[IsActive]],IF(ISNUMBER(MATCH(Table_POSTInfo[[#This Row],[Line]],Table_POSTInspection[Line],0)),INDEX(Table_POSTInspection[Fixture Qty '[P']],MATCH(Table_RetroSummary[[#This Row],[Line Item]],Table_POSTInspection[Line],0)),Table_POSTInfo[[#This Row],[Fixture Qty '[P']]]),\"\"),\"\")","v":""},{"$f":"IFERROR(IF(Table_RetroSummary[[#This Row],[IsActive]],Table_RetroSummary[[#This Row],[Fixture/ Lamp Wattage '[P']]]*Table_RetroSummary[[#This Row],[P. Qty]],\"\"),\"\")","v":""},{"$f":"IFERROR(IF(Table_RetroSummary[[#This Row],[IsActive]],IF(ISNUMBER(MATCH(Table_POSTInfo[[#This Row],[Line]],Table_POSTInspection[Line],0)),INDEX(Table_POSTInspection[Fixture Wattage '[P']],MATCH(Table_RetroSummary[[#This Row],[Line Item]],Table_POSTInspection[Line],0)),Table_POSTInfo[[#This Row],[Fixture Wattage '[P']]]),\"\"),\"\")","v":""},{"$f":"IFERROR(Table_RetroSummary[[#This Row],[Total '# Lamps '[P']]]+Table_RetroSummary[[#This Row],[Proposed Fixture Wattage]],\"\")","v":""},{"$f":"IFERROR(Table_RetroSummary[[#This Row],[Proposed Fixture Wattage]]/1000*Table_RetroSummary[[#This Row],[OpHrs]]*Table_RetroSummary[[#This Row],[P. Qty]],\"\")","v":""},{"$f":"IFERROR(IF(Table_RetroSummary[[#This Row],[IsActive]],IFERROR(VLOOKUP(RIGHT(Table_RetroSummary[[#This Row],[Proposed Fixture]],LEN(Table_RetroSummary[[#This Row],[Proposed Fixture]])-FIND(\" - \",Table_RetroSummary[[#This Row],[Proposed Fixture]],FIND(\"]\",Table_RetroSummary[[#This Row],[Proposed Fixture]],1))-2),Table_ControlType[],3, FALSE),0),\"\"),\"\")","v":""},{"$f":"IFERROR(IF(Table_RetroSummary[[#This Row],[IsActive]],IFERROR(Table_RetroSummary[[#This Row],[Proposed Fixture Wattage]]/1000*Table_RetroSummary[[#This Row],[OpHrs]]*Table_RetroSummary[[#This Row],[P. Qty]]*Table_RetroSummary[[#This Row],[Existing CSF]]*(-1),0),\"\"),\"\")","v":""},{"$f":"IFERROR(Table_RetroSummary[[#This Row],[Proposed Fixture kWh]]+Table_RetroSummary[[#This Row],[Proposed Fixture (Existing Controls) kWh]],\"\")","v":""},{"$f":"IFERROR(IF(Table_RetroSummary[[#This Row],[IsActive]],IFERROR(Table_RetroSummary[[#This Row],[Proposed Fixture Wattage]]/1000*Table_RetroSummary[[#This Row],[OpHrs]]*Table_RetroSummary[[#This Row],[P. Qty]]*Table_RetroSummary[[#This Row],[Proposed CSF]]*(-1),0),\"\"),\"\")","v":""},{"$f":"IFERROR(Table_RetroSummary[[#This Row],[Proposed Fixture kWh]]+Table_RetroSummary[[#This Row],[Proposed Fixture (Proposed Controls) kWh]],\"\")","v":""},{"$f":"IFERROR(IF(Table_RetroSummary[[#This Row],[IsActive]],IF(ISNUMBER(MATCH(Table_POSTInfo[[#This Row],[Line]],Table_POSTInspection[Line],0)),INDEX(Table_POSTInspection[DLC or ES Certification '[P']],MATCH(Table_RetroSummary[[#This Row],[Line Item]],Table_POSTInspection[Line],0)),Table_POSTInfo[[#This Row],[DLC or ES Certification '[P']]]),\"\"),\"\")","v":""},null,{"$f":"IFERROR(IF(Table_RetroSummary[[#This Row],[IsActive]],\nIF(AND(RIGHT(Table_RetroSummary[[#This Row],[Existing Fixture]],LEN(Table_RetroSummary[[#This Row],[Existing Fixture]])-FIND(\":\",Table_RetroSummary[[#This Row],[Existing Fixture]],1)-1)<>Table_RetroSummary[[#This Row],[Proposed Fixture]],MID(Table_RetroSummary[[#This Row],[Existing Fixture]],FIND(\": \",Table_RetroSummary[[#This Row],[Existing Fixture]],1)+2,FIND(\"]\",Table_RetroSummary[[#This Row],[Existing Fixture]],1))=LEFT(Table_RetroSummary[[#This Row],[Proposed Fixture]],FIND(\"]\",Table_RetroSummary[[#This Row],[Proposed Fixture]],1))),\n  \"Controls Only\",\n  IF(Table_POSTInfo[[#This Row],[DLC or ES Certification '[P']]]<>\"\",\n    IF(ISNUMBER(FIND(\"LED Tube\",Table_RetroSummary[[#This Row],[Proposed Fixture]],1)),\n      \"LED Re-Lamp\",\n      IF(AND(Table_RetroSummary[[#This Row],[Existing Overall kWh]]>Table_RetroSummary[[#This Row],[Proposed Overall kWh (Existing Controls)]],ISNUMBER(FIND(\"LED\",Table_RetroSummary[[#This Row],[Proposed Fixture]],1))),\n        IF(Table_POSTInfo[[#This Row],[Interior/ Exterior]]=\"Exterior\",\n          \"Exterior LED Fixture\",\n          \"Interior LED Fixture\"),\n        \"Ineligible Fixture\")),\n    \"Ineligible Fixture\")),\n\"\"),\"\")","v":""},{"$f":"IFERROR(VLOOKUP(Table_RetroSummary[[#This Row],[Fixture Measure Description]],Table_FixtureRate[],2,FALSE),\"\")","v":""},{"$f":"IFERROR(IF(Table_RetroSummary[[#This Row],[IsActive]],IF(Table_RetroSummary[[#This Row],[Fixture Measure Description]]=\"Ineligible Fixture\",0,ROUND(Table_RetroSummary[[#This Row],[Fixture Rebate (per kW)]]*(Table_RetroSummary[[#This Row],[Existing Fixture Wattage]]*Table_RetroSummary[[#This Row],[E. Qty]]-Table_RetroSummary[[#This Row],[Proposed Fixture Wattage]]*Table_RetroSummary[[#This Row],[P. Qty]])/1000,2)),\"\"),\"\")","v":""},{"$f":"IFERROR(IF(Table_RetroSummary[[#This Row],[Fixture Measure Description]]=\"Ineligible Fixture\",0,ROUND(IF(ProjectCost_Total=0,300000,ProjectCost_Total)*Table_RetroSummary[[#This Row],[Fixture Rebate]]/SUM(Table_RetroSummary[Fixture Rebate],Table_RetroSummary[Controls Rebate]),2)),\"\")","v":""},{"$f":"IFERROR(IF(Table_RetroSummary[[#This Row],[IsActive]],IF(Table_RetroSummary[[#This Row],[Fixture Measure Description]]=\"Ineligible Fixture\",0,Table_RetroSummary[[#This Row],[Existing Overall kWh]]-Table_RetroSummary[[#This Row],[Proposed Overall kWh (Existing Controls)]]),\"\"),\"\")","v":""},{"$f":"IFERROR(IF(Table_RetroSummary[[#This Row],[IsActive]],IF(Table_RetroSummary[[#This Row],[Fixture Measure Description]]=\"Ineligible Fixture\",0,(Table_RetroSummary[[#This Row],[Existing Fixture kWh]]-Table_RetroSummary[[#This Row],[Proposed Fixture kWh]])/Table_RetroSummary[[#This Row],[OpHrs]]*Table_RetroSummary[[#This Row],[CF (Ltg)]]*Table_RetroSummary[[#This Row],[DF (Ltg)]]),\"\"),\"\")","v":""},null,{"$f":"IFERROR(\n  IF(OR(Table_RetroSummary[[#This Row],[Fixture Measure Description]]=\"\",Table_RetroSummary[[#This Row],[Fixture Measure Description]]=\"Ineligible Fixture\"),\n    \"\",\n    IFERROR(VLOOKUP(RIGHT(Table_RetroSummary[[#This Row],[Existing Fixture]],LEN(Table_RetroSummary[[#This Row],[Existing Fixture]])-FIND(\" - \",Table_RetroSummary[[#This Row],[Existing Fixture]],FIND(\"]\",Table_RetroSummary[[#This Row],[Existing Fixture]],1))-2),Table_ControlType[],2,FALSE),\"None\")\n    & \" - \" &\n    IFERROR(VLOOKUP(RIGHT(Table_RetroSummary[[#This Row],[Proposed Fixture]],LEN(Table_RetroSummary[[#This Row],[Proposed Fixture]])-FIND(\" - \",Table_RetroSummary[[#This Row],[Proposed Fixture]],FIND(\"]\",Table_RetroSummary[[#This Row],[Proposed Fixture]],1))-2),Table_ControlType[],2, FALSE),None)),\n\"\")","v":""},{"$f":"IFERROR(VLOOKUP(Table_RetroSummary[[#This Row],[Controls Measure Description]],Table_ControlRate[],2,FALSE),\"\")","v":""},{"$f":"IFERROR(IF(Table_RetroSummary[[#This Row],[IsActive]],IF(Table_RetroSummary[[#This Row],[Controls Measure Description]]=\"\",0,ROUND(Table_RetroSummary[[#This Row],[Controls Rebate (per Fixt Watt)]]*Table_RetroSummary[[#This Row],[Proposed Fixture Wattage]]*Table_RetroSummary[[#This Row],[P. Qty]],2)),\"\"),\"\")","v":""},{"$f":"IFERROR(IF(Table_RetroSummary[[#This Row],[Fixture Measure Description]]=\"Ineligible Fixture\",0,ROUND(IF(ProjectCost_Total=0,300000,ProjectCost_Total)*Table_RetroSummary[[#This Row],[Controls Rebate]]/SUM(Table_RetroSummary[Fixture Rebate],Table_RetroSummary[Controls Rebate]),2)),\"\")","v":""},{"$f":"IFERROR(IF(Table_RetroSummary[[#This Row],[IsActive]],IF(Table_RetroSummary[[#This Row],[Controls Measure Description]]=\"\",0,(Table_RetroSummary[[#This Row],[Proposed Fixture (Existing Controls) kWh]]-Table_RetroSummary[[#This Row],[Proposed Fixture (Proposed Controls) kWh]])),\"\"),\"\")","v":""},{"$f":"IFERROR(IF(Table_RetroSummary[[#This Row],[IsActive]],IF(Table_RetroSummary[[#This Row],[Controls Measure Description]]=\"\",0,(Table_RetroSummary[[#This Row],[Proposed Fixture (Existing Controls) kWh]]-Table_RetroSummary[[#This Row],[Proposed Fixture (Proposed Controls) kWh]])/Table_RetroSummary[[#This Row],[OpHrs]]*Table_RetroSummary[[#This Row],[CF (Ltg)]]*Table_RetroSummary[[#This Row],[DF (Ltg)]]),\"\"),\"\")","v":""},null,{"$f":"IFERROR(IF(NOT(ISNUMBER(Table_RetroSummary[[#This Row],[Fixture Rebate]])),\"\",IF(MIN(IF(SUM(Table_RetroSummary[Fixture Cost],Table_RetroSummary[Controls Cost])<0,0,SUM(Table_RetroSummary[Fixture Cost],Table_RetroSummary[Controls Cost])),SUM(Table_RetroSummary[Fixture Rebate],Table_RetroSummary[Controls Rebate]))>300000,300000/MIN(IF(SUM(Table_RetroSummary[Fixture Cost],Table_RetroSummary[Controls Cost])<0,0,SUM(Table_RetroSummary[Fixture Cost],Table_RetroSummary[Controls Cost])),SUM(Table_RetroSummary[Fixture Rebate],Table_RetroSummary[Controls Rebate]))*MIN(IF(SUM(Table_RetroSummary[Fixture Cost],Table_RetroSummary[Controls Cost])<0,0,SUM(Table_RetroSummary[Fixture Cost],Table_RetroSummary[Controls Cost])),Table_RetroSummary[[#This Row],[Fixture Rebate]]+IF(Table_RetroSummary[[#This Row],[Controls Rebate]]=\"\",0,Table_RetroSummary[[#This Row],[Controls Rebate]])),MIN(IF(SUM(Table_RetroSummary[Fixture Cost],Table_RetroSummary[Controls Cost])<0,0,SUM(Table_RetroSummary[Fixture Cost],Table_RetroSummary[Controls Cost])),Table_RetroSummary[[#This Row],[Fixture Rebate]]+IF(Table_RetroSummary[[#This Row],[Controls Rebate]]=\"\",0,Table_RetroSummary[[#This Row],[Controls Rebate]])))),\"\")","v":""},{"$f":"IFERROR(IF(Table_RetroSummary[[#This Row],[Fixture Cost]]=\"\",\"\",Table_RetroSummary[[#This Row],[Fixture Cost]]+IF(Table_RetroSummary[[#This Row],[Controls Cost]]=\"\",0,Table_RetroSummary[[#This Row],[Controls Cost]])),\"\")","v":""},{"$f":"IFERROR(IF(Table_RetroSummary[[#This Row],[IsActive]],IF(Table_POSTInfo[[#This Row],[Interior/ Exterior]]=\"Interior\",IFERROR((Table_RetroSummary[[#This Row],[Annual Fixture Savings (kWh)]]+Table_RetroSummary[[#This Row],[Annual Control Savings (kWh)]])*(Table_RetroSummary[[#This Row],[EIF]]-1),0),0),\"\"),\"\")","v":""},{"$f":"IFERROR(IF(Table_RetroSummary[[#This Row],[IsActive]],IF(Table_POSTInfo[[#This Row],[Interior/ Exterior]]=\"Interior\",IFERROR((Table_RetroSummary[[#This Row],[Fixture kW Reduction]]+Table_RetroSummary[[#This Row],[Control kW Reduction]]/(Table_RetroSummary[[#This Row],[CF (Ltg)]]*Table_RetroSummary[[#This Row],[DF (Ltg)]]))*(Table_RetroSummary[[#This Row],[DIF]]-1)*Table_RetroSummary[[#This Row],[CF (HVAC)]]*Table_RetroSummary[[#This Row],[DF (HVAC)]],0),0),\"\"),\"\")","v":""},{"$f":"IFERROR(IF(Table_RetroSummary[[#This Row],[IsActive]],IF(NOT(ISNUMBER(Table_RetroSummary[[#This Row],[Fixture Rebate]])),\"\",ROUND(Table_RetroSummary[[#This Row],[Annual Fixture Savings (kWh)]]+Table_RetroSummary[[#This Row],[Annual Control Savings (kWh)]],0)),\"\"),\"\")","v":""},{"$f":"IFERROR(IF(Table_RetroSummary[[#This Row],[IsActive]],IF(NOT(ISNUMBER(Table_RetroSummary[[#This Row],[Fixture Rebate]])),\"\",ROUND(Table_RetroSummary[[#This Row],[Fixture kW Reduction]]+Table_RetroSummary[[#This Row],[Control kW Reduction]],3)),\"\"),\"\")","v":""},{"$f":"IFERROR(IF(Table_RetroSummary[[#This Row],[IsActive]],IF(NOT(ISNUMBER(Table_RetroSummary[[#This Row],[Fixture Rebate]])),\"\",ROUND(Table_RetroSummary[[#This Row],[Fixture Energy Savings (kWh)]]+Table_RetroSummary[[#This Row],[Induced HVAC Energy Savings (kWh)]],0)),\"\"),\"\")","v":""},{"$f":"IFERROR(IF(Table_RetroSummary[[#This Row],[IsActive]],IF(NOT(ISNUMBER(Table_RetroSummary[[#This Row],[Fixture Rebate]])),\"\",ROUND(Table_RetroSummary[[#This Row],[Fixture Demand Savings (kW)]]+Table_RetroSummary[[#This Row],[Induced HVAC Demand Savings (kW)]],3)),\"\"),\"\")","v":""}]
[{"$f":"IFERROR(Table_POSTInfo[[#This Row],[Line]],\"\")","v":7},{"$f":"IFERROR(Table_POSTInfo[[#This Row],[IsActive]],\"\")","v":false},{"$f":"IFERROR(IF(Table_RetroSummary[[#This Row],[IsActive]],CONCATENATE(Table_RetroSummary[[#This Row],[Existing Fixture]],\" | \",Table_RetroSummary[[#This Row],[Proposed Fixture]]),\"\"),\"\")","v":""},{"$f":"IFERROR(IF(Table_RetroSummary[[#This Row],[IsActive]],VLOOKUP(IF(ISNUMBER(MATCH(Table_POSTInfo[[#This Row],[Line]],Table_POSTInspection[Line],0)),INDEX(Table_POSTInspection[Schedule],MATCH(Table_RetroSummary[[#This Row],[Line Item]],Table_POSTInspection[Line],0)),Table_POSTInfo[[#This Row],[Schedule]]),'Customer Information'!$S$27:$T$34,2,FALSE),\"\"),\"\")","v":""},{"$f":"IFERROR(IF(Table_RetroSummary[[#This Row],[IsActive]],IF(IF(ISNUMBER(MATCH(Table_RetroSummary[[#This Row],[Line Item]],Table_POSTInspection[Line],0)),INDEX(Table_POSTInspection[Interior/ Exterior],MATCH(Table_RetroSummary[[#This Row],[Line Item]],Table_POSTInfo[[#This Row],[Line]],0)),Table_POSTInfo[[#This Row],[Interior/ Exterior]])=\"Interior\",'Customer Information'!$S$25,0),\"\"),\"\")","v":""},{"$f":"IFERROR(IF(Table_RetroSummary[[#This Row],[IsActive]],IF(IF(ISNUMBER(MATCH(Table_RetroSummary[[#This Row],[Line Item]],Table_POSTInspection[Line],0)),INDEX(Table_POSTInspection[Interior/ Exterior],MATCH(Table_RetroSummary[[#This Row],[Line Item]],Table_POSTInfo[[#This Row],[Line]],0)),Table_POSTInfo[[#This Row],[Interior/ Exterior]])=\"Interior\",'Customer Information'!$T$25,0),\"\"),\"\")","v":""},{"$f":"IFERROR(IF(Table_RetroSummary[[#This Row],[IsActive]],IF(IF(ISNUMBER(MATCH(Table_RetroSummary[[#This Row],[Line Item]],Table_POSTInspection[Line],0)),INDEX(Table_POSTInspection[Interior/ Exterior],MATCH(Table_RetroSummary[[#This Row],[Line Item]],Table_POSTInfo[[#This Row],[Line]],0)),Table_POSTInfo[[#This Row],[Interior/ Exterior]])=\"Interior\",'Customer Information'!$U$25,0),\"\"),\"\")","v":""},{"$f":"IFERROR(IF(Table_RetroSummary[[#This Row],[IsActive]],IF(IF(ISNUMBER(MATCH(Table_RetroSummary[[#This Row],[Line Item]],Table_POSTInspection[Line],0)),INDEX(Table_POSTInspection[Interior/ Exterior],MATCH(Table_RetroSummary[[#This Row],[Line Item]],Table_POSTInfo[[#This Row],[Line]],0)),Table_POSTInfo[[#This Row],[Interior/ Exterior]])=\"Interior\",'Customer Information'!$V$25,0),\"\"),\"\")","v":""},{"$f":"IFERROR(IF(Table_RetroSummary[[#This Row],[IsActive]],IF(IF(ISNUMBER(MATCH(Table_RetroSummary[[#This Row],[Line Item]],Table_POSTInspection[Line],0)),INDEX(Table_POSTInspection[Interior/ Exterior],MATCH(Table_RetroSummary[[#This Row],[Line Item]],Table_POSTInfo[[#This Row],[Line]],0)),Table_POSTInfo[[#This Row],[Interior/ Exterior]])=\"Interior\",'Customer Information'!$W$25,0),\"\"),\"\")","v":""},{"$f":"IFERROR(IF(Table_RetroSummary[[#This Row],[IsActive]],IF(IF(ISNUMBER(MATCH(Table_RetroSummary[[#This Row],[Line Item]],Table_POSTInspection[Line],0)),INDEX(Table_POSTInspection[Interior/ Exterior],MATCH(Table_RetroSummary[[#This Row],[Line Item]],Table_POSTInfo[[#This Row],[Line]],0)),Table_POSTInfo[[#This Row],[Interior/ Exterior]])=\"Interior\",'Customer Information'!$X$25,0),\"\"),\"\")","v":""},{"$f":"IFERROR(IF(Table_RetroSummary[[#This Row],[IsActive]],\nCONCATENATE(\nIF(ISNUMBER(MATCH(Table_POSTInfo[[#This Row],[Line]],Table_POSTInspection[Line],0)),INDEX(Table_POSTInspection[Interior/ Exterior],MATCH(Table_RetroSummary[[#This Row],[Line Item]],Table_POSTInspection[Line],0)),Table_POSTInfo[[#This Row],[Interior/ Exterior]]),\n\" - \",\nIF(ISNUMBER(MATCH(Table_POSTInfo[[#This Row],[Line]],Table_POSTInspection[Line],0)),INDEX(Table_POSTInspection[Space Description],MATCH(Table_RetroSummary[[#This Row],[Line Item]],Table_POSTInspection[Line],0)),Table_POSTInfo[[#This Row],[Space Description]])),\n \"\"),\"\")","v":""},{"$f":"IFERROR(IF(Table_RetroSummary[[#This Row],[IsActive]]=\"\",\"\",Table_POSTInfo[[#This Row],[Fixture Description '[E']]]),\"\")","v":""},{"$f":"IFERROR(IF(Table_RetroSummary[[#This Row],[IsActive]]=\"\",\"\",Table_POSTInfo[[#This Row],['# Lamps/ Fixture '[E']]]),\"\")","v":""},{"$f":"IFERROR(IF(Table_RetroSummary[[#This Row],[IsActive]]=\"\",\"\",Table_POSTInfo[[#This Row],[Fixture/ Lamp Wattage '[E']]]),\"\")","v":""},{"$f":"IFERROR(IF(Table_RetroSummary[[#This Row],[IsActive]]=\"\",\"\",Table_POSTInfo[[#This Row],[Fixture Qty '[E']]]),\"\")","v":""},{"$f":"IFERROR(IF(Table_RetroSummary[[#This Row],[IsActive]],Table_RetroSummary[[#This Row],[Fixture/ Lamp Wattage '[E']]]*Table_RetroSummary[[#This Row],[E. Qty]],\"\"),\"\")","v":""},{"$f":"IFERROR(IF(Table_RetroSummary[[#This Row],[IsActive]]=\"\",\"\",Table_POSTInfo[[#This Row],[Fixture Wattage '[E']]]),\"\")","v":""},{"$f":"IFERROR(IF(Table_RetroSummary[[#This Row],[IsActive]],IFERROR(Table_RetroSummary[[#This Row],[Existing Fixture Wattage]]/1000*Table_RetroSummary[[#This Row],[OpHrs]]*Table_RetroSummary[[#This Row],[E. Qty]],0),\"\"),\"\")","v":""},{"$f":"IFERROR(IF(Table_RetroSummary[[#This Row],[IsActive]],IFERROR(VLOOKUP(RIGHT(Table_RetroSummary[[#This Row],[Existing Fixture]],LEN(Table_RetroSummary[[#This Row],[Existing Fixture]])-FIND(\" - \",Table_RetroSummary[[#This Row],[Existing Fixture]],FIND(\"]\",Table_RetroSummary[[#This Row],[Existing Fixture]],1))-2),Table_ControlType[],3,FALSE),0),\"\"),\"\")","v":""},{"$f":"IFERROR(IF(Table_RetroSummary[[#This Row],[IsActive]],IFERROR(Table_RetroSummary[[#This Row],[Existing Fixture Wattage]]/1000*Table_RetroSummary[[#This Row],[OpHrs]]*Table_RetroSummary[[#This Row],[E. Qty]]*Table_RetroSummary[[#This Row],[Existing CSF]]*(-1),0),\"\"),\"\")","v":""},{"$f":"IFERROR(Table_RetroSummary[[#This Row],[Existing Fixture kWh]]+Table_RetroSummary[[#This Row],[Existing Fixture (Existing Controls) kWh]],\"\")","v":""},{"$f":"IFERROR(IF(Table_RetroSummary[[#This Row],[IsActive]],IF(ISNUMBER(MATCH(Table_POSTInfo[[#This Row],[Line]],Table_POSTInspection[Line],0)),INDEX(Table_POSTInspection[Fixture Description '[P']],MATCH(Table_RetroSummary[[#This Row],[Line Item]],Table_POSTInspection[Line],0)),Table_POSTInfo[[#This Row],[Fixture Description '[P']]]),\"\"),\"\")","v":""},{"$f":"IFERROR(IF(Table_RetroSummary[[#This Row],[IsActive]],IF(ISNUMBER(MATCH(Table_POSTInfo[[#This Row],[Line]],Table_POSTInspection[Line],0)),INDEX(Table_POSTInspection['# Lamps/ Fixture '[P']],MATCH(Table_RetroSummary[[#This Row],[Line Item]],Table_POSTInspection[Line],0)),Table_POSTInfo[[#This Row],['# Lamps/ Fixture '[P']]]),\"\"),\"\")","v":""},{"$f":"IFERROR(IF(Table_RetroSummary[[#This Row],[IsActive]],IF(ISNUMBER(MATCH(Table_POSTInfo[[#This Row],[Line]],Table_POSTInspection[Line],0)),INDEX(Table_POSTInspection[Fixture/ Lamp Wattage '[P']],MATCH(Table_RetroSummary[[#This Row],[Line Item]],Table_POSTInspection[Line],0)),Table_POSTInfo[[#This Row],[Fixture/ Lamp Wattage '[P']]]),\"\"),\"\")","v":""},{"$f":"IFERROR(IF(Table_RetroSummary[[#This Row],[IsActive]],IF(ISNUMBER(MATCH(Table_POSTInfo[[#This Row],[Line]],Table_POSTInspection[Line],0)),INDEX(Table_POSTInspection[Fixture Qty '[P']],MATCH(Table_RetroSummary[[#This Row],[Line Item]],Table_POSTInspection[Line],0)),Table_POSTInfo[[#This Row],[Fixture Qty '[P']]]),\"\"),\"\")","v":""},{"$f":"IFERROR(IF(Table_RetroSummary[[#This Row],[IsActive]],Table_RetroSummary[[#This Row],[Fixture/ Lamp Wattage '[P']]]*Table_RetroSummary[[#This Row],[P. Qty]],\"\"),\"\")","v":""},{"$f":"IFERROR(IF(Table_RetroSummary[[#This Row],[IsActive]],IF(ISNUMBER(MATCH(Table_POSTInfo[[#This Row],[Line]],Table_POSTInspection[Line],0)),INDEX(Table_POSTInspection[Fixture Wattage '[P']],MATCH(Table_RetroSummary[[#This Row],[Line Item]],Table_POSTInspection[Line],0)),Table_POSTInfo[[#This Row],[Fixture Wattage '[P']]]),\"\"),\"\")","v":""},{"$f":"IFERROR(Table_RetroSummary[[#This Row],[Total '# Lamps '[P']]]+Table_RetroSummary[[#This Row],[Proposed Fixture Wattage]],\"\")","v":""},{"$f":"IFERROR(Table_RetroSummary[[#This Row],[Proposed Fixture Wattage]]/1000*Table_RetroSummary[[#This Row],[OpHrs]]*Table_RetroSummary[[#This Row],[P. Qty]],\"\")","v":""},{"$f":"IFERROR(IF(Table_RetroSummary[[#This Row],[IsActive]],IFERROR(VLOOKUP(RIGHT(Table_RetroSummary[[#This Row],[Proposed Fixture]],LEN(Table_RetroSummary[[#This Row],[Proposed Fixture]])-FIND(\" - \",Table_RetroSummary[[#This Row],[Proposed Fixture]],FIND(\"]\",Table_RetroSummary[[#This Row],[Proposed Fixture]],1))-2),Table_ControlType[],3, FALSE),0),\"\"),\"\")","v":""},{"$f":"IFERROR(IF(Table_RetroSummary[[#This Row],[IsActive]],IFERROR(Table_RetroSummary[[#This Row],[Proposed Fixture Wattage]]/1000*Table_RetroSummary[[#This Row],[OpHrs]]*Table_RetroSummary[[#This Row],[P. Qty]]*Table_RetroSummary[[#This Row],[Existing CSF]]*(-1),0),\"\"),\"\")","v":""},{"$f":"IFERROR(Table_RetroSummary[[#This Row],[Proposed Fixture kWh]]+Table_RetroSummary[[#This Row],[Proposed Fixture (Existing Controls) kWh]],\"\")","v":""},{"$f":"IFERROR(IF(Table_RetroSummary[[#This Row],[IsActive]],IFERROR(Table_RetroSummary[[#This Row],[Proposed Fixture Wattage]]/1000*Table_RetroSummary[[#This Row],[OpHrs]]*Table_RetroSummary[[#This Row],[P. Qty]]*Table_RetroSummary[[#This Row],[Proposed CSF]]*(-1),0),\"\"),\"\")","v":""},{"$f":"IFERROR(Table_RetroSummary[[#This Row],[Proposed Fixture kWh]]+Table_RetroSummary[[#This Row],[Proposed Fixture (Proposed Controls) kWh]],\"\")","v":""},{"$f":"IFERROR(IF(Table_RetroSummary[[#This Row],[IsActive]],IF(ISNUMBER(MATCH(Table_POSTInfo[[#This Row],[Line]],Table_POSTInspection[Line],0)),INDEX(Table_POSTInspection[DLC or ES Certification '[P']],MATCH(Table_RetroSummary[[#This Row],[Line Item]],Table_POSTInspection[Line],0)),Table_POSTInfo[[#This Row],[DLC or ES Certification '[P']]]),\"\"),\"\")","v":""},null,{"$f":"IFERROR(IF(Table_RetroSummary[[#This Row],[IsActive]],\nIF(AND(RIGHT(Table_RetroSummary[[#This Row],[Existing Fixture]],LEN(Table_RetroSummary[[#This Row],[Existing Fixture]])-FIND(\":\",Table_RetroSummary[[#This Row],[Existing Fixture]],1)-1)<>Table_RetroSummary[[#This Row],[Proposed Fixture]],MID(Table_RetroSummary[[#This Row],[Existing Fixture]],FIND(\": \",Table_RetroSummary[[#This Row],[Existing Fixture]],1)+2,FIND(\"]\",Table_RetroSummary[[#This Row],[Existing Fixture]],1))=LEFT(Table_RetroSummary[[#This Row],[Proposed Fixture]],FIND(\"]\",Table_RetroSummary[[#This Row],[Proposed Fixture]],1))),\n  \"Controls Only\",\n  IF(Table_POSTInfo[[#This Row],[DLC or ES Certification '[P']]]<>\"\",\n    IF(ISNUMBER(FIND(\"LED Tube\",Table_RetroSummary[[#This Row],[Proposed Fixture]],1)),\n      \"LED Re-Lamp\",\n      IF(AND(Table_RetroSummary[[#This Row],[Existing Overall kWh]]>Table_RetroSummary[[#This Row],[Proposed Overall kWh (Existing Controls)]],ISNUMBER(FIND(\"LED\",Table_RetroSummary[[#This Row],[Proposed Fixture]],1))),\n        IF(Table_POSTInfo[[#This Row],[Interior/ Exterior]]=\"Exterior\",\n          \"Exterior LED Fixture\",\n          \"Interior LED Fixture\"),\n        \"Ineligible Fixture\")),\n    \"Ineligible Fixture\")),\n\"\"),\"\")","v":""},{"$f":"IFERROR(VLOOKUP(Table_RetroSummary[[#This Row],[Fixture Measure Description]],Table_FixtureRate[],2,FALSE),\"\")","v":""},{"$f":"IFERROR(IF(Table_RetroSummary[[#This Row],[IsActive]],IF(Table_RetroSummary[[#This Row],[Fixture Measure Description]]=\"Ineligible Fixture\",0,ROUND(Table_RetroSummary[[#This Row],[Fixture Rebate (per kW)]]*(Table_RetroSummary[[#This Row],[Existing Fixture Wattage]]*Table_RetroSummary[[#This Row],[E. Qty]]-Table_RetroSummary[[#This Row],[Proposed Fixture Wattage]]*Table_RetroSummary[[#This Row],[P. Qty]])/1000,2)),\"\"),\"\")","v":""},{"$f":"IFERROR(IF(Table_RetroSummary[[#This Row],[Fixture Measure Description]]=\"Ineligible Fixture\",0,ROUND(IF(ProjectCost_Total=0,300000,ProjectCost_Total)*Table_RetroSummary[[#This Row],[Fixture Rebate]]/SUM(Table_RetroSummary[Fixture Rebate],Table_RetroSummary[Controls Rebate]),2)),\"\")","v":""},{"$f":"IFERROR(IF(Table_RetroSummary[[#This Row],[IsActive]],IF(Table_RetroSummary[[#This Row],[Fixture Measure Description]]=\"Ineligible Fixture\",0,Table_RetroSummary[[#This Row],[Existing Overall kWh]]-Table_RetroSummary[[#This Row],[Proposed Overall kWh (Existing Controls)]]),\"\"),\"\")","v":""},{"$f":"IFERROR(IF(Table_RetroSummary[[#This Row],[IsActive]],IF(Table_RetroSummary[[#This Row],[Fixture Measure Description]]=\"Ineligible Fixture\",0,(Table_RetroSummary[[#This Row],[Existing Fixture kWh]]-Table_RetroSummary[[#This Row],[Proposed Fixture kWh]])/Table_RetroSummary[[#This Row],[OpHrs]]*Table_RetroSummary[[#This Row],[CF (Ltg)]]*Table_RetroSummary[[#This Row],[DF (Ltg)]]),\"\"),\"\")","v":""},null,{"$f":"IFERROR(\n  IF(OR(Table_RetroSummary[[#This Row],[Fixture Measure Description]]=\"\",Table_RetroSummary[[#This Row],[Fixture Measure Description]]=\"Ineligible Fixture\"),\n    \"\",\n    IFERROR(VLOOKUP(RIGHT(Table_RetroSummary[[#This Row],[Existing Fixture]],LEN(Table_RetroSummary[[#This Row],[Existing Fixture]])-FIND(\" - \",Table_RetroSummary[[#This Row],[Existing Fixture]],FIND(\"]\",Table_RetroSummary[[#This Row],[Existing Fixture]],1))-2),Table_ControlType[],2,FALSE),\"None\")\n    & \" - \" &\n    IFERROR(VLOOKUP(RIGHT(Table_RetroSummary[[#This Row],[Proposed Fixture]],LEN(Table_RetroSummary[[#This Row],[Proposed Fixture]])-FIND(\" - \",Table_RetroSummary[[#This Row],[Proposed Fixture]],FIND(\"]\",Table_RetroSummary[[#This Row],[Proposed Fixture]],1))-2),Table_ControlType[],2, FALSE),None)),\n\"\")","v":""},{"$f":"IFERROR(VLOOKUP(Table_RetroSummary[[#This Row],[Controls Measure Description]],Table_ControlRate[],2,FALSE),\"\")","v":""},{"$f":"IFERROR(IF(Table_RetroSummary[[#This Row],[IsActive]],IF(Table_RetroSummary[[#This Row],[Controls Measure Description]]=\"\",0,ROUND(Table_RetroSummary[[#This Row],[Controls Rebate (per Fixt Watt)]]*Table_RetroSummary[[#This Row],[Proposed Fixture Wattage]]*Table_RetroSummary[[#This Row],[P. Qty]],2)),\"\"),\"\")","v":""},{"$f":"IFERROR(IF(Table_RetroSummary[[#This Row],[Fixture Measure Description]]=\"Ineligible Fixture\",0,ROUND(IF(ProjectCost_Total=0,300000,ProjectCost_Total)*Table_RetroSummary[[#This Row],[Controls Rebate]]/SUM(Table_RetroSummary[Fixture Rebate],Table_RetroSummary[Controls Rebate]),2)),\"\")","v":""},{"$f":"IFERROR(IF(Table_RetroSummary[[#This Row],[IsActive]],IF(Table_RetroSummary[[#This Row],[Controls Measure Description]]=\"\",0,(Table_RetroSummary[[#This Row],[Proposed Fixture (Existing Controls) kWh]]-Table_RetroSummary[[#This Row],[Proposed Fixture (Proposed Controls) kWh]])),\"\"),\"\")","v":""},{"$f":"IFERROR(IF(Table_RetroSummary[[#This Row],[IsActive]],IF(Table_RetroSummary[[#This Row],[Controls Measure Description]]=\"\",0,(Table_RetroSummary[[#This Row],[Proposed Fixture (Existing Controls) kWh]]-Table_RetroSummary[[#This Row],[Proposed Fixture (Proposed Controls) kWh]])/Table_RetroSummary[[#This Row],[OpHrs]]*Table_RetroSummary[[#This Row],[CF (Ltg)]]*Table_RetroSummary[[#This Row],[DF (Ltg)]]),\"\"),\"\")","v":""},null,{"$f":"IFERROR(IF(NOT(ISNUMBER(Table_RetroSummary[[#This Row],[Fixture Rebate]])),\"\",IF(MIN(IF(SUM(Table_RetroSummary[Fixture Cost],Table_RetroSummary[Controls Cost])<0,0,SUM(Table_RetroSummary[Fixture Cost],Table_RetroSummary[Controls Cost])),SUM(Table_RetroSummary[Fixture Rebate],Table_RetroSummary[Controls Rebate]))>300000,300000/MIN(IF(SUM(Table_RetroSummary[Fixture Cost],Table_RetroSummary[Controls Cost])<0,0,SUM(Table_RetroSummary[Fixture Cost],Table_RetroSummary[Controls Cost])),SUM(Table_RetroSummary[Fixture Rebate],Table_RetroSummary[Controls Rebate]))*MIN(IF(SUM(Table_RetroSummary[Fixture Cost],Table_RetroSummary[Controls Cost])<0,0,SUM(Table_RetroSummary[Fixture Cost],Table_RetroSummary[Controls Cost])),Table_RetroSummary[[#This Row],[Fixture Rebate]]+IF(Table_RetroSummary[[#This Row],[Controls Rebate]]=\"\",0,Table_RetroSummary[[#This Row],[Controls Rebate]])),MIN(IF(SUM(Table_RetroSummary[Fixture Cost],Table_RetroSummary[Controls Cost])<0,0,SUM(Table_RetroSummary[Fixture Cost],Table_RetroSummary[Controls Cost])),Table_RetroSummary[[#This Row],[Fixture Rebate]]+IF(Table_RetroSummary[[#This Row],[Controls Rebate]]=\"\",0,Table_RetroSummary[[#This Row],[Controls Rebate]])))),\"\")","v":""},{"$f":"IFERROR(IF(Table_RetroSummary[[#This Row],[Fixture Cost]]=\"\",\"\",Table_RetroSummary[[#This Row],[Fixture Cost]]+IF(Table_RetroSummary[[#This Row],[Controls Cost]]=\"\",0,Table_RetroSummary[[#This Row],[Controls Cost]])),\"\")","v":""},{"$f":"IFERROR(IF(Table_RetroSummary[[#This Row],[IsActive]],IF(Table_POSTInfo[[#This Row],[Interior/ Exterior]]=\"Interior\",IFERROR((Table_RetroSummary[[#This Row],[Annual Fixture Savings (kWh)]]+Table_RetroSummary[[#This Row],[Annual Control Savings (kWh)]])*(Table_RetroSummary[[#This Row],[EIF]]-1),0),0),\"\"),\"\")","v":""},{"$f":"IFERROR(IF(Table_RetroSummary[[#This Row],[IsActive]],IF(Table_POSTInfo[[#This Row],[Interior/ Exterior]]=\"Interior\",IFERROR((Table_RetroSummary[[#This Row],[Fixture kW Reduction]]+Table_RetroSummary[[#This Row],[Control kW Reduction]]/(Table_RetroSummary[[#This Row],[CF (Ltg)]]*Table_RetroSummary[[#This Row],[DF (Ltg)]]))*(Table_RetroSummary[[#This Row],[DIF]]-1)*Table_RetroSummary[[#This Row],[CF (HVAC)]]*Table_RetroSummary[[#This Row],[DF (HVAC)]],0),0),\"\"),\"\")","v":""},{"$f":"IFERROR(IF(Table_RetroSummary[[#This Row],[IsActive]],IF(NOT(ISNUMBER(Table_RetroSummary[[#This Row],[Fixture Rebate]])),\"\",ROUND(Table_RetroSummary[[#This Row],[Annual Fixture Savings (kWh)]]+Table_RetroSummary[[#This Row],[Annual Control Savings (kWh)]],0)),\"\"),\"\")","v":""},{"$f":"IFERROR(IF(Table_RetroSummary[[#This Row],[IsActive]],IF(NOT(ISNUMBER(Table_RetroSummary[[#This Row],[Fixture Rebate]])),\"\",ROUND(Table_RetroSummary[[#This Row],[Fixture kW Reduction]]+Table_RetroSummary[[#This Row],[Control kW Reduction]],3)),\"\"),\"\")","v":""},{"$f":"IFERROR(IF(Table_RetroSummary[[#This Row],[IsActive]],IF(NOT(ISNUMBER(Table_RetroSummary[[#This Row],[Fixture Rebate]])),\"\",ROUND(Table_RetroSummary[[#This Row],[Fixture Energy Savings (kWh)]]+Table_RetroSummary[[#This Row],[Induced HVAC Energy Savings (kWh)]],0)),\"\"),\"\")","v":""},{"$f":"IFERROR(IF(Table_RetroSummary[[#This Row],[IsActive]],IF(NOT(ISNUMBER(Table_RetroSummary[[#This Row],[Fixture Rebate]])),\"\",ROUND(Table_RetroSummary[[#This Row],[Fixture Demand Savings (kW)]]+Table_RetroSummary[[#This Row],[Induced HVAC Demand Savings (kW)]],3)),\"\"),\"\")","v":""}]
[{"$f":"IFERROR(Table_POSTInfo[[#This Row],[Line]],\"\")","v":8},{"$f":"IFERROR(Table_POSTInfo[[#This Row],[IsActive]],\"\")","v":false},{"$f":"IFERROR(IF(Table_RetroSummary[[#This Row],[IsActive]],CONCATENATE(Table_RetroSummary[[#This Row],[Existing Fixture]],\" | \",Table_RetroSummary[[#This Row],[Proposed Fixture]]),\"\"),\"\")","v":""},{"$f":"IFERROR(IF(Table_RetroSummary[[#This Row],[IsActive]],VLOOKUP(IF(ISNUMBER(MATCH(Table_POSTInfo[[#This Row],[Line]],Table_POSTInspection[Line],0)),INDEX(Table_POSTInspection[Schedule],MATCH(Table_RetroSummary[[#This Row],[Line Item]],Table_POSTInspection[Line],0)),Table_POSTInfo[[#This Row],[Schedule]]),'Customer Information'!$S$27:$T$34,2,FALSE),\"\"),\"\")","v":""},{"$f":"IFERROR(IF(Table_RetroSummary[[#This Row],[IsActive]],IF(IF(ISNUMBER(MATCH(Table_RetroSummary[[#This Row],[Line Item]],Table_POSTInspection[Line],0)),INDEX(Table_POSTInspection[Interior/ Exterior],MATCH(Table_RetroSummary[[#This Row],[Line Item]],Table_POSTInfo[[#This Row],[Line]],0)),Table_POSTInfo[[#This Row],[Interior/ Exterior]])=\"Interior\",'Customer Information'!$S$25,0),\"\"),\"\")","v":""},{"$f":"IFERROR(IF(Table_RetroSummary[[#This Row],[IsActive]],IF(IF(ISNUMBER(MATCH(Table_RetroSummary[[#This Row],[Line Item]],Table_POSTInspection[Line],0)),INDEX(Table_POSTInspection[Interior/ Exterior],MATCH(Table_RetroSummary[[#This Row],[Line Item]],Table_POSTInfo[[#This Row],[Line]],0)),Table_POSTInfo[[#This Row],[Interior/ Exterior]])=\"Interior\",'Customer Information'!$T$25,0),\"\"),\"\")","v":""},{"$f":"IFERROR(IF(Table_RetroSummary[[#This Row],[IsActive]],IF(IF(ISNUMBER(MATCH(Table_RetroSummary[[#This Row],[Line Item]],Table_POSTInspection[Line],0)),INDEX(Table_POSTInspection[Interior/ Exterior],MATCH(Table_RetroSummary[[#This Row],[Line Item]],Table_POSTInfo[[#This Row],[Line]],0)),Table_POSTInfo[[#This Row],[Interior/ Exterior]])=\"Interior\",'Customer Information'!$U$25,0),\"\"),\"\")","v":""},{"$f":"IFERROR(IF(Table_RetroSummary[[#This Row],[IsActive]],IF(IF(ISNUMBER(MATCH(Table_RetroSummary[[#This Row],[Line Item]],Table_POSTInspection[Line],0)),INDEX(Table_POSTInspection[Interior/ Exterior],MATCH(Table_RetroSummary[[#This Row],[Line Item]],Table_POSTInfo[[#This Row],[Line]],0)),Table_POSTInfo[[#This Row],[Interior/ Exterior]])=\"Interior\",'Customer Information'!$V$25,0),\"\"),\"\")","v":""},{"$f":"IFERROR(IF(Table_RetroSummary[[#This Row],[IsActive]],IF(IF(ISNUMBER(MATCH(Table_RetroSummary[[#This Row],[Line Item]],Table_POSTInspection[Line],0)),INDEX(Table_POSTInspection[Interior/ Exterior],MATCH(Table_RetroSummary[[#This Row],[Line Item]],Table_POSTInfo[[#This Row],[Line]],0)),Table_POSTInfo[[#This Row],[Interior/ Exterior]])=\"Interior\",'Customer Information'!$W$25,0),\"\"),\"\")","v":""},{"$f":"IFERROR(IF(Table_RetroSummary[[#This Row],[IsActive]],IF(IF(ISNUMBER(MATCH(Table_RetroSummary[[#This Row],[Line Item]],Table_POSTInspection[Line],0)),INDEX(Table_POSTInspection[Interior/ Exterior],MATCH(Table_RetroSummary[[#This Row],[Line Item]],Table_POSTInfo[[#This Row],[Line]],0)),Table_POSTInfo[[#This Row],[Interior/ Exterior]])=\"Interior\",'Customer Information'!$X$25,0),\"\"),\"\")","v":""},{"$f":"IFERROR(IF(Table_RetroSummary[[#This Row],[IsActive]],\nCONCATENATE(\nIF(ISNUMBER(MATCH(Table_POSTInfo[[#This Row],[Line]],Table_POSTInspection[Line],0)),INDEX(Table_POSTInspection[Interior/ Exterior],MATCH(Table_RetroSummary[[#This Row],[Line Item]],Table_POSTInspection[Line],0)),Table_POSTInfo[[#This Row],[Interior/ Exterior]]),\n\" - \",\nIF(ISNUMBER(MATCH(Table_POSTInfo[[#This Row],[Line]],Table_POSTInspection[Line],0)),INDEX(Table_POSTInspection[Space Description],MATCH(Table_RetroSummary[[#This Row],[Line Item]],Table_POSTInspection[Line],0)),Table_POSTInfo[[#This Row],[Space Description]])),\n \"\"),\"\")","v":""},{"$f":"IFERROR(IF(Table_RetroSummary[[#This Row],[IsActive]]=\"\",\"\",Table_POSTInfo[[#This Row],[Fixture Description '[E']]]),\"\")","v":""},{"$f":"IFERROR(IF(Table_RetroSummary[[#This Row],[IsActive]]=\"\",\"\",Table_POSTInfo[[#This Row],['# Lamps/ Fixture '[E']]]),\"\")","v":""},{"$f":"IFERROR(IF(Table_RetroSummary[[#This Row],[IsActive]]=\"\",\"\",Table_POSTInfo[[#This Row],[Fixture/ Lamp Wattage '[E']]]),\"\")","v":""},{"$f":"IFERROR(IF(Table_RetroSummary[[#This Row],[IsActive]]=\"\",\"\",Table_POSTInfo[[#This Row],[Fixture Qty '[E']]]),\"\")","v":""},{"$f":"IFERROR(IF(Table_RetroSummary[[#This Row],[IsActive]],Table_RetroSummary[[#This Row],[Fixture/ Lamp Wattage '[E']]]*Table_RetroSummary[[#This Row],[E. Qty]],\"\"),\"\")","v":""},{"$f":"IFERROR(IF(Table_RetroSummary[[#This Row],[IsActive]]=\"\",\"\",Table_POSTInfo[[#This Row],[Fixture Wattage '[E']]]),\"\")","v":""},{"$f":"IFERROR(IF(Table_RetroSummary[[#This Row],[IsActive]],IFERROR(Table_RetroSummary[[#This Row],[Existing Fixture Wattage]]/1000*Table_RetroSummary[[#This Row],[OpHrs]]*Table_RetroSummary[[#This Row],[E. Qty]],0),\"\"),\"\")","v":""},{"$f":"IFERROR(IF(Table_RetroSummary[[#This Row],[IsActive]],IFERROR(VLOOKUP(RIGHT(Table_RetroSummary[[#This Row],[Existing Fixture]],LEN(Table_RetroSummary[[#This Row],[Existing Fixture]])-FIND(\" - \",Table_RetroSummary[[#This Row],[Existing Fixture]],FIND(\"]\",Table_RetroSummary[[#This Row],[Existing Fixture]],1))-2),Table_ControlType[],3,FALSE),0),\"\"),\"\")","v":""},{"$f":"IFERROR(IF(Table_RetroSummary[[#This Row],[IsActive]],IFERROR(Table_RetroSummary[[#This Row],[Existing Fixture Wattage]]/1000*Table_RetroSummary[[#This Row],[OpHrs]]*Table_RetroSummary[[#This Row],[E. Qty]]*Table_RetroSummary[[#This Row],[Existing CSF]]*(-1),0),\"\"),\"\")","v":""},{"$f":"IFERROR(Table_RetroSummary[[#This Row],[Existing Fixture kWh]]+Table_RetroSummary[[#This Row],[Existing Fixture (Existing Controls) kWh]],\"\")","v":""},{"$f":"IFERROR(IF(Table_RetroSummary[[#This Row],[IsActive]],IF(ISNUMBER(MATCH(Table_POSTInfo[[#This Row],[Line]],Table_POSTInspection[Line],0)),INDEX(Table_POSTInspection[Fixture Description '[P']],MATCH(Table_RetroSummary[[#This Row],[Line Item]],Table_POSTInspection[Line],0)),Table_POSTInfo[[#This Row],[Fixture Description '[P']]]),\"\"),\"\")","v":""},{"$f":"IFERROR(IF(Table_RetroSummary[[#This Row],[IsActive]],IF(ISNUMBER(MATCH(Table_POSTInfo[[#This Row],[Line]],Table_POSTInspection[Line],0)),INDEX(Table_POSTInspection['# Lamps/ Fixture '[P']],MATCH(Table_RetroSummary[[#This Row],[Line Item]],Table_POSTInspection[Line],0)),Table_POSTInfo[[#This Row],['# Lamps/ Fixture '[P']]]),\"\"),\"\")","v":""},{"$f":"IFERROR(IF(Table_RetroSummary[[#This Row],[IsActive]],IF(ISNUMBER(MATCH(Table_POSTInfo[[#This Row],[Line]],Table_POSTInspection[Line],0)),INDEX(Table_POSTInspection[Fixture/ Lamp Wattage '[P']],MATCH(Table_RetroSummary[[#This Row],[Line Item]],Table_POSTInspection[Line],0)),Table_POSTInfo[[#This Row],[Fixture/ Lamp Wattage '[P']]]),\"\"),\"\")","v":""},{"$f":"IFERROR(IF(Table_RetroSummary[[#This Row],[IsActive]],IF(ISNUMBER(MATCH(Table_POSTInfo[[#This Row],[Line]],Table_POSTInspection[Line],0)),INDEX(Table_POSTInspection[Fixture Qty '[P']],MATCH(Table_RetroSummary[[#This Row],[Line Item]],Table_POSTInspection[Line],0)),Table_POSTInfo[[#This Row],[Fixture Qty '[P']]]),\"\"),\"\")","v":""},{"$f":"IFERROR(IF(Table_RetroSummary[[#This Row],[IsActive]],Table_RetroSummary[[#This Row],[Fixture/ Lamp Wattage '[P']]]*Table_RetroSummary[[#This Row],[P. Qty]],\"\"),\"\")","v":""},{"$f":"IFERROR(IF(Table_RetroSummary[[#This Row],[IsActive]],IF(ISNUMBER(MATCH(Table_POSTInfo[[#This Row],[Line]],Table_POSTInspection[Line],0)),INDEX(Table_POSTInspection[Fixture Wattage '[P']],MATCH(Table_RetroSummary[[#This Row],[Line Item]],Table_POSTInspection[Line],0)),Table_POSTInfo[[#This Row],[Fixture Wattage '[P']]]),\"\"),\"\")","v":""},{"$f":"IFERROR(Table_RetroSummary[[#This Row],[Total '# Lamps '[P']]]+Table_RetroSummary[[#This Row],[Proposed Fixture Wattage]],\"\")","v":""},{"$f":"IFERROR(Table_RetroSummary[[#This Row],[Proposed Fixture Wattage]]/1000*Table_RetroSummary[[#This Row],[OpHrs]]*Table_RetroSummary[[#This Row],[P. Qty]],\"\")","v":""},{"$f":"IFERROR(IF(Table_RetroSummary[[#This Row],[IsActive]],IFERROR(VLOOKUP(RIGHT(Table_RetroSummary[[#This Row],[Proposed Fixture]],LEN(Table_RetroSummary[[#This Row],[Proposed Fixture]])-FIND(\" - \",Table_RetroSummary[[#This Row],[Proposed Fixture]],FIND(\"]\",Table_RetroSummary[[#This Row],[Proposed Fixture]],1))-2),Table_ControlType[],3, FALSE),0),\"\"),\"\")","v":""},{"$f":"IFERROR(IF(Table_RetroSummary[[#This Row],[IsActive]],IFERROR(Table_RetroSummary[[#This Row],[Proposed Fixture Wattage]]/1000*Table_RetroSummary[[#This Row],[OpHrs]]*Table_RetroSummary[[#This Row],[P. Qty]]*Table_RetroSummary[[#This Row],[Existing CSF]]*(-1),0),\"\"),\"\")","v":""},{"$f":"IFERROR(Table_RetroSummary[[#This Row],[Proposed Fixture kWh]]+Table_RetroSummary[[#This Row],[Proposed Fixture (Existing Controls) kWh]],\"\")","v":""},{"$f":"IFERROR(IF(Table_RetroSummary[[#This Row],[IsActive]],IFERROR(Table_RetroSummary[[#This Row],[Proposed Fixture Wattage]]/1000*Table_RetroSummary[[#This Row],[OpHrs]]*Table_RetroSummary[[#This Row],[P. Qty]]*Table_RetroSummary[[#This Row],[Proposed CSF]]*(-1),0),\"\"),\"\")","v":""},{"$f":"IFERROR(Table_RetroSummary[[#This Row],[Proposed Fixture kWh]]+Table_RetroSummary[[#This Row],[Proposed Fixture (Proposed Controls) kWh]],\"\")","v":""},{"$f":"IFERROR(IF(Table_RetroSummary[[#This Row],[IsActive]],IF(ISNUMBER(MATCH(Table_POSTInfo[[#This Row],[Line]],Table_POSTInspection[Line],0)),INDEX(Table_POSTInspection[DLC or ES Certification '[P']],MATCH(Table_RetroSummary[[#This Row],[Line Item]],Table_POSTInspection[Line],0)),Table_POSTInfo[[#This Row],[DLC or ES Certification '[P']]]),\"\"),\"\")","v":""},null,{"$f":"IFERROR(IF(Table_RetroSummary[[#This Row],[IsActive]],\nIF(AND(RIGHT(Table_RetroSummary[[#This Row],[Existing Fixture]],LEN(Table_RetroSummary[[#This Row],[Existing Fixture]])-FIND(\":\",Table_RetroSummary[[#This Row],[Existing Fixture]],1)-1)<>Table_RetroSummary[[#This Row],[Proposed Fixture]],MID(Table_RetroSummary[[#This Row],[Existing Fixture]],FIND(\": \",Table_RetroSummary[[#This Row],[Existing Fixture]],1)+2,FIND(\"]\",Table_RetroSummary[[#This Row],[Existing Fixture]],1))=LEFT(Table_RetroSummary[[#This Row],[Proposed Fixture]],FIND(\"]\",Table_RetroSummary[[#This Row],[Proposed Fixture]],1))),\n  \"Controls Only\",\n  IF(Table_POSTInfo[[#This Row],[DLC or ES Certification '[P']]]<>\"\",\n    IF(ISNUMBER(FIND(\"LED Tube\",Table_RetroSummary[[#This Row],[Proposed Fixture]],1)),\n      \"LED Re-Lamp\",\n      IF(AND(Table_RetroSummary[[#This Row],[Existing Overall kWh]]>Table_RetroSummary[[#This Row],[Proposed Overall kWh (Existing Controls)]],ISNUMBER(FIND(\"LED\",Table_RetroSummary[[#This Row],[Proposed Fixture]],1))),\n        IF(Table_POSTInfo[[#This Row],[Interior/ Exterior]]=\"Exterior\",\n          \"Exterior LED Fixture\",\n          \"Interior LED Fixture\"),\n        \"Ineligible Fixture\")),\n    \"Ineligible Fixture\")),\n\"\"),\"\")","v":""},{"$f":"IFERROR(VLOOKUP(Table_RetroSummary[[#This Row],[Fixture Measure Description]],Table_FixtureRate[],2,FALSE),\"\")","v":""},{"$f":"IFERROR(IF(Table_RetroSummary[[#This Row],[IsActive]],IF(Table_RetroSummary[[#This Row],[Fixture Measure Description]]=\"Ineligible Fixture\",0,ROUND(Table_RetroSummary[[#This Row],[Fixture Rebate (per kW)]]*(Table_RetroSummary[[#This Row],[Existing Fixture Wattage]]*Table_RetroSummary[[#This Row],[E. Qty]]-Table_RetroSummary[[#This Row],[Proposed Fixture Wattage]]*Table_RetroSummary[[#This Row],[P. Qty]])/1000,2)),\"\"),\"\")","v":""},{"$f":"IFERROR(IF(Table_RetroSummary[[#This Row],[Fixture Measure Description]]=\"Ineligible Fixture\",0,ROUND(IF(ProjectCost_Total=0,300000,ProjectCost_Total)*Table_RetroSummary[[#This Row],[Fixture Rebate]]/SUM(Table_RetroSummary[Fixture Rebate],Table_RetroSummary[Controls Rebate]),2)),\"\")","v":""},{"$f":"IFERROR(IF(Table_RetroSummary[[#This Row],[IsActive]],IF(Table_RetroSummary[[#This Row],[Fixture Measure Description]]=\"Ineligible Fixture\",0,Table_RetroSummary[[#This Row],[Existing Overall kWh]]-Table_RetroSummary[[#This Row],[Proposed Overall kWh (Existing Controls)]]),\"\"),\"\")","v":""},{"$f":"IFERROR(IF(Table_RetroSummary[[#This Row],[IsActive]],IF(Table_RetroSummary[[#This Row],[Fixture Measure Description]]=\"Ineligible Fixture\",0,(Table_RetroSummary[[#This Row],[Existing Fixture kWh]]-Table_RetroSummary[[#This Row],[Proposed Fixture kWh]])/Table_RetroSummary[[#This Row],[OpHrs]]*Table_RetroSummary[[#This Row],[CF (Ltg)]]*Table_RetroSummary[[#This Row],[DF (Ltg)]]),\"\"),\"\")","v":""},null,{"$f":"IFERROR(\n  IF(OR(Table_RetroSummary[[#This Row],[Fixture Measure Description]]=\"\",Table_RetroSummary[[#This Row],[Fixture Measure Description]]=\"Ineligible Fixture\"),\n    \"\",\n    IFERROR(VLOOKUP(RIGHT(Table_RetroSummary[[#This Row],[Existing Fixture]],LEN(Table_RetroSummary[[#This Row],[Existing Fixture]])-FIND(\" - \",Table_RetroSummary[[#This Row],[Existing Fixture]],FIND(\"]\",Table_RetroSummary[[#This Row],[Existing Fixture]],1))-2),Table_ControlType[],2,FALSE),\"None\")\n    & \" - \" &\n    IFERROR(VLOOKUP(RIGHT(Table_RetroSummary[[#This Row],[Proposed Fixture]],LEN(Table_RetroSummary[[#This Row],[Proposed Fixture]])-FIND(\" - \",Table_RetroSummary[[#This Row],[Proposed Fixture]],FIND(\"]\",Table_RetroSummary[[#This Row],[Proposed Fixture]],1))-2),Table_ControlType[],2, FALSE),None)),\n\"\")","v":""},{"$f":"IFERROR(VLOOKUP(Table_RetroSummary[[#This Row],[Controls Measure Description]],Table_ControlRate[],2,FALSE),\"\")","v":""},{"$f":"IFERROR(IF(Table_RetroSummary[[#This Row],[IsActive]],IF(Table_RetroSummary[[#This Row],[Controls Measure Description]]=\"\",0,ROUND(Table_RetroSummary[[#This Row],[Controls Rebate (per Fixt Watt)]]*Table_RetroSummary[[#This Row],[Proposed Fixture Wattage]]*Table_RetroSummary[[#This Row],[P. Qty]],2)),\"\"),\"\")","v":""},{"$f":"IFERROR(IF(Table_RetroSummary[[#This Row],[Fixture Measure Description]]=\"Ineligible Fixture\",0,ROUND(IF(ProjectCost_Total=0,300000,ProjectCost_Total)*Table_RetroSummary[[#This Row],[Controls Rebate]]/SUM(Table_RetroSummary[Fixture Rebate],Table_RetroSummary[Controls Rebate]),2)),\"\")","v":""},{"$f":"IFERROR(IF(Table_RetroSummary[[#This Row],[IsActive]],IF(Table_RetroSummary[[#This Row],[Controls Measure Description]]=\"\",0,(Table_RetroSummary[[#This Row],[Proposed Fixture (Existing Controls) kWh]]-Table_RetroSummary[[#This Row],[Proposed Fixture (Proposed Controls) kWh]])),\"\"),\"\")","v":""},{"$f":"IFERROR(IF(Table_RetroSummary[[#This Row],[IsActive]],IF(Table_RetroSummary[[#This Row],[Controls Measure Description]]=\"\",0,(Table_RetroSummary[[#This Row],[Proposed Fixture (Existing Controls) kWh]]-Table_RetroSummary[[#This Row],[Proposed Fixture (Proposed Controls) kWh]])/Table_RetroSummary[[#This Row],[OpHrs]]*Table_RetroSummary[[#This Row],[CF (Ltg)]]*Table_RetroSummary[[#This Row],[DF (Ltg)]]),\"\"),\"\")","v":""},null,{"$f":"IFERROR(IF(NOT(ISNUMBER(Table_RetroSummary[[#This Row],[Fixture Rebate]])),\"\",IF(MIN(IF(SUM(Table_RetroSummary[Fixture Cost],Table_RetroSummary[Controls Cost])<0,0,SUM(Table_RetroSummary[Fixture Cost],Table_RetroSummary[Controls Cost])),SUM(Table_RetroSummary[Fixture Rebate],Table_RetroSummary[Controls Rebate]))>300000,300000/MIN(IF(SUM(Table_RetroSummary[Fixture Cost],Table_RetroSummary[Controls Cost])<0,0,SUM(Table_RetroSummary[Fixture Cost],Table_RetroSummary[Controls Cost])),SUM(Table_RetroSummary[Fixture Rebate],Table_RetroSummary[Controls Rebate]))*MIN(IF(SUM(Table_RetroSummary[Fixture Cost],Table_RetroSummary[Controls Cost])<0,0,SUM(Table_RetroSummary[Fixture Cost],Table_RetroSummary[Controls Cost])),Table_RetroSummary[[#This Row],[Fixture Rebate]]+IF(Table_RetroSummary[[#This Row],[Controls Rebate]]=\"\",0,Table_RetroSummary[[#This Row],[Controls Rebate]])),MIN(IF(SUM(Table_RetroSummary[Fixture Cost],Table_RetroSummary[Controls Cost])<0,0,SUM(Table_RetroSummary[Fixture Cost],Table_RetroSummary[Controls Cost])),Table_RetroSummary[[#This Row],[Fixture Rebate]]+IF(Table_RetroSummary[[#This Row],[Controls Rebate]]=\"\",0,Table_RetroSummary[[#This Row],[Controls Rebate]])))),\"\")","v":""},{"$f":"IFERROR(IF(Table_RetroSummary[[#This Row],[Fixture Cost]]=\"\",\"\",Table_RetroSummary[[#This Row],[Fixture Cost]]+IF(Table_RetroSummary[[#This Row],[Controls Cost]]=\"\",0,Table_RetroSummary[[#This Row],[Controls Cost]])),\"\")","v":""},{"$f":"IFERROR(IF(Table_RetroSummary[[#This Row],[IsActive]],IF(Table_POSTInfo[[#This Row],[Interior/ Exterior]]=\"Interior\",IFERROR((Table_RetroSummary[[#This Row],[Annual Fixture Savings (kWh)]]+Table_RetroSummary[[#This Row],[Annual Control Savings (kWh)]])*(Table_RetroSummary[[#This Row],[EIF]]-1),0),0),\"\"),\"\")","v":""},{"$f":"IFERROR(IF(Table_RetroSummary[[#This Row],[IsActive]],IF(Table_POSTInfo[[#This Row],[Interior/ Exterior]]=\"Interior\",IFERROR((Table_RetroSummary[[#This Row],[Fixture kW Reduction]]+Table_RetroSummary[[#This Row],[Control kW Reduction]]/(Table_RetroSummary[[#This Row],[CF (Ltg)]]*Table_RetroSummary[[#This Row],[DF (Ltg)]]))*(Table_RetroSummary[[#This Row],[DIF]]-1)*Table_RetroSummary[[#This Row],[CF (HVAC)]]*Table_RetroSummary[[#This Row],[DF (HVAC)]],0),0),\"\"),\"\")","v":""},{"$f":"IFERROR(IF(Table_RetroSummary[[#This Row],[IsActive]],IF(NOT(ISNUMBER(Table_RetroSummary[[#This Row],[Fixture Rebate]])),\"\",ROUND(Table_RetroSummary[[#This Row],[Annual Fixture Savings (kWh)]]+Table_RetroSummary[[#This Row],[Annual Control Savings (kWh)]],0)),\"\"),\"\")","v":""},{"$f":"IFERROR(IF(Table_RetroSummary[[#This Row],[IsActive]],IF(NOT(ISNUMBER(Table_RetroSummary[[#This Row],[Fixture Rebate]])),\"\",ROUND(Table_RetroSummary[[#This Row],[Fixture kW Reduction]]+Table_RetroSummary[[#This Row],[Control kW Reduction]],3)),\"\"),\"\")","v":""},{"$f":"IFERROR(IF(Table_RetroSummary[[#This Row],[IsActive]],IF(NOT(ISNUMBER(Table_RetroSummary[[#This Row],[Fixture Rebate]])),\"\",ROUND(Table_RetroSummary[[#This Row],[Fixture Energy Savings (kWh)]]+Table_RetroSummary[[#This Row],[Induced HVAC Energy Savings (kWh)]],0)),\"\"),\"\")","v":""},{"$f":"IFERROR(IF(Table_RetroSummary[[#This Row],[IsActive]],IF(NOT(ISNUMBER(Table_RetroSummary[[#This Row],[Fixture Rebate]])),\"\",ROUND(Table_RetroSummary[[#This Row],[Fixture Demand Savings (kW)]]+Table_RetroSummary[[#This Row],[Induced HVAC Demand Savings (kW)]],3)),\"\"),\"\")","v":""}]
[{"$f":"IFERROR(Table_POSTInfo[[#This Row],[Line]],\"\")","v":9},{"$f":"IFERROR(Table_POSTInfo[[#This Row],[IsActive]],\"\")","v":false},{"$f":"IFERROR(IF(Table_RetroSummary[[#This Row],[IsActive]],CONCATENATE(Table_RetroSummary[[#This Row],[Existing Fixture]],\" | \",Table_RetroSummary[[#This Row],[Proposed Fixture]]),\"\"),\"\")","v":""},{"$f":"IFERROR(IF(Table_RetroSummary[[#This Row],[IsActive]],VLOOKUP(IF(ISNUMBER(MATCH(Table_POSTInfo[[#This Row],[Line]],Table_POSTInspection[Line],0)),INDEX(Table_POSTInspection[Schedule],MATCH(Table_RetroSummary[[#This Row],[Line Item]],Table_POSTInspection[Line],0)),Table_POSTInfo[[#This Row],[Schedule]]),'Customer Information'!$S$27:$T$34,2,FALSE),\"\"),\"\")","v":""},{"$f":"IFERROR(IF(Table_RetroSummary[[#This Row],[IsActive]],IF(IF(ISNUMBER(MATCH(Table_RetroSummary[[#This Row],[Line Item]],Table_POSTInspection[Line],0)),INDEX(Table_POSTInspection[Interior/ Exterior],MATCH(Table_RetroSummary[[#This Row],[Line Item]],Table_POSTInfo[[#This Row],[Line]],0)),Table_POSTInfo[[#This Row],[Interior/ Exterior]])=\"Interior\",'Customer Information'!$S$25,0),\"\"),\"\")","v":""},{"$f":"IFERROR(IF(Table_RetroSummary[[#This Row],[IsActive]],IF(IF(ISNUMBER(MATCH(Table_RetroSummary[[#This Row],[Line Item]],Table_POSTInspection[Line],0)),INDEX(Table_POSTInspection[Interior/ Exterior],MATCH(Table_RetroSummary[[#This Row],[Line Item]],Table_POSTInfo[[#This Row],[Line]],0)),Table_POSTInfo[[#This Row],[Interior/ Exterior]])=\"Interior\",'Customer Information'!$T$25,0),\"\"),\"\")","v":""},{"$f":"IFERROR(IF(Table_RetroSummary[[#This Row],[IsActive]],IF(IF(ISNUMBER(MATCH(Table_RetroSummary[[#This Row],[Line Item]],Table_POSTInspection[Line],0)),INDEX(Table_POSTInspection[Interior/ Exterior],MATCH(Table_RetroSummary[[#This Row],[Line Item]],Table_POSTInfo[[#This Row],[Line]],0)),Table_POSTInfo[[#This Row],[Interior/ Exterior]])=\"Interior\",'Customer Information'!$U$25,0),\"\"),\"\")","v":""},{"$f":"IFERROR(IF(Table_RetroSummary[[#This Row],[IsActive]],IF(IF(ISNUMBER(MATCH(Table_RetroSummary[[#This Row],[Line Item]],Table_POSTInspection[Line],0)),INDEX(Table_POSTInspection[Interior/ Exterior],MATCH(Table_RetroSummary[[#This Row],[Line Item]],Table_POSTInfo[[#This Row],[Line]],0)),Table_POSTInfo[[#This Row],[Interior/ Exterior]])=\"Interior\",'Customer Information'!$V$25,0),\"\"),\"\")","v":""},{"$f":"IFERROR(IF(Table_RetroSummary[[#This Row],[IsActive]],IF(IF(ISNUMBER(MATCH(Table_RetroSummary[[#This Row],[Line Item]],Table_POSTInspection[Line],0)),INDEX(Table_POSTInspection[Interior/ Exterior],MATCH(Table_RetroSummary[[#This Row],[Line Item]],Table_POSTInfo[[#This Row],[Line]],0)),Table_POSTInfo[[#This Row],[Interior/ Exterior]])=\"Interior\",'Customer Information'!$W$25,0),\"\"),\"\")","v":""},{"$f":"IFERROR(IF(Table_RetroSummary[[#This Row],[IsActive]],IF(IF(ISNUMBER(MATCH(Table_RetroSummary[[#This Row],[Line Item]],Table_POSTInspection[Line],0)),INDEX(Table_POSTInspection[Interior/ Exterior],MATCH(Table_RetroSummary[[#This Row],[Line Item]],Table_POSTInfo[[#This Row],[Line]],0)),Table_POSTInfo[[#This Row],[Interior/ Exterior]])=\"Interior\",'Customer Information'!$X$25,0),\"\"),\"\")","v":""},{"$f":"IFERROR(IF(Table_RetroSummary[[#This Row],[IsActive]],\nCONCATENATE(\nIF(ISNUMBER(MATCH(Table_POSTInfo[[#This Row],[Line]],Table_POSTInspection[Line],0)),INDEX(Table_POSTInspection[Interior/ Exterior],MATCH(Table_RetroSummary[[#This Row],[Line Item]],Table_POSTInspection[Line],0)),Table_POSTInfo[[#This Row],[Interior/ Exterior]]),\n\" - \",\nIF(ISNUMBER(MATCH(Table_POSTInfo[[#This Row],[Line]],Table_POSTInspection[Line],0)),INDEX(Table_POSTInspection[Space Description],MATCH(Table_RetroSummary[[#This Row],[Line Item]],Table_POSTInspection[Line],0)),Table_POSTInfo[[#This Row],[Space Description]])),\n \"\"),\"\")","v":""},{"$f":"IFERROR(IF(Table_RetroSummary[[#This Row],[IsActive]]=\"\",\"\",Table_POSTInfo[[#This Row],[Fixture Description '[E']]]),\"\")","v":""},{"$f":"IFERROR(IF(Table_RetroSummary[[#This Row],[IsActive]]=\"\",\"\",Table_POSTInfo[[#This Row],['# Lamps/ Fixture '[E']]]),\"\")","v":""},{"$f":"IFERROR(IF(Table_RetroSummary[[#This Row],[IsActive]]=\"\",\"\",Table_POSTInfo[[#This Row],[Fixture/ Lamp Wattage '[E']]]),\"\")","v":""},{"$f":"IFERROR(IF(Table_RetroSummary[[#This Row],[IsActive]]=\"\",\"\",Table_POSTInfo[[#This Row],[Fixture Qty '[E']]]),\"\")","v":""},{"$f":"IFERROR(IF(Table_RetroSummary[[#This Row],[IsActive]],Table_RetroSummary[[#This Row],[Fixture/ Lamp Wattage '[E']]]*Table_RetroSummary[[#This Row],[E. Qty]],\"\"),\"\")","v":""},{"$f":"IFERROR(IF(Table_RetroSummary[[#This Row],[IsActive]]=\"\",\"\",Table_POSTInfo[[#This Row],[Fixture Wattage '[E']]]),\"\")","v":""},{"$f":"IFERROR(IF(Table_RetroSummary[[#This Row],[IsActive]],IFERROR(Table_RetroSummary[[#This Row],[Existing Fixture Wattage]]/1000*Table_RetroSummary[[#This Row],[OpHrs]]*Table_RetroSummary[[#This Row],[E. Qty]],0),\"\"),\"\")","v":""},{"$f":"IFERROR(IF(Table_RetroSummary[[#This Row],[IsActive]],IFERROR(VLOOKUP(RIGHT(Table_RetroSummary[[#This Row],[Existing Fixture]],LEN(Table_RetroSummary[[#This Row],[Existing Fixture]])-FIND(\" - \",Table_RetroSummary[[#This Row],[Existing Fixture]],FIND(\"]\",Table_RetroSummary[[#This Row],[Existing Fixture]],1))-2),Table_ControlType[],3,FALSE),0),\"\"),\"\")","v":""},{"$f":"IFERROR(IF(Table_RetroSummary[[#This Row],[IsActive]],IFERROR(Table_RetroSummary[[#This Row],[Existing Fixture Wattage]]/1000*Table_RetroSummary[[#This Row],[OpHrs]]*Table_RetroSummary[[#This Row],[E. Qty]]*Table_RetroSummary[[#This Row],[Existing CSF]]*(-1),0),\"\"),\"\")","v":""},{"$f":"IFERROR(Table_RetroSummary[[#This Row],[Existing Fixture kWh]]+Table_RetroSummary[[#This Row],[Existing Fixture (Existing Controls) kWh]],\"\")","v":""},{"$f":"IFERROR(IF(Table_RetroSummary[[#This Row],[IsActive]],IF(ISNUMBER(MATCH(Table_POSTInfo[[#This Row],[Line]],Table_POSTInspection[Line],0)),INDEX(Table_POSTInspection[Fixture Description '[P']],MATCH(Table_RetroSummary[[#This Row],[Line Item]],Table_POSTInspection[Line],0)),Table_POSTInfo[[#This Row],[Fixture Description '[P']]]),\"\"),\"\")","v":""},{"$f":"IFERROR(IF(Table_RetroSummary[[#This Row],[IsActive]],IF(ISNUMBER(MATCH(Table_POSTInfo[[#This Row],[Line]],Table_POSTInspection[Line],0)),INDEX(Table_POSTInspection['# Lamps/ Fixture '[P']],MATCH(Table_RetroSummary[[#This Row],[Line Item]],Table_POSTInspection[Line],0)),Table_POSTInfo[[#This Row],['# Lamps/ Fixture '[P']]]),\"\"),\"\")","v":""},{"$f":"IFERROR(IF(Table_RetroSummary[[#This Row],[IsActive]],IF(ISNUMBER(MATCH(Table_POSTInfo[[#This Row],[Line]],Table_POSTInspection[Line],0)),INDEX(Table_POSTInspection[Fixture/ Lamp Wattage '[P']],MATCH(Table_RetroSummary[[#This Row],[Line Item]],Table_POSTInspection[Line],0)),Table_POSTInfo[[#This Row],[Fixture/ Lamp Wattage '[P']]]),\"\"),\"\")","v":""},{"$f":"IFERROR(IF(Table_RetroSummary[[#This Row],[IsActive]],IF(ISNUMBER(MATCH(Table_POSTInfo[[#This Row],[Line]],Table_POSTInspection[Line],0)),INDEX(Table_POSTInspection[Fixture Qty '[P']],MATCH(Table_RetroSummary[[#This Row],[Line Item]],Table_POSTInspection[Line],0)),Table_POSTInfo[[#This Row],[Fixture Qty '[P']]]),\"\"),\"\")","v":""},{"$f":"IFERROR(IF(Table_RetroSummary[[#This Row],[IsActive]],Table_RetroSummary[[#This Row],[Fixture/ Lamp Wattage '[P']]]*Table_RetroSummary[[#This Row],[P. Qty]],\"\"),\"\")","v":""},{"$f":"IFERROR(IF(Table_RetroSummary[[#This Row],[IsActive]],IF(ISNUMBER(MATCH(Table_POSTInfo[[#This Row],[Line]],Table_POSTInspection[Line],0)),INDEX(Table_POSTInspection[Fixture Wattage '[P']],MATCH(Table_RetroSummary[[#This Row],[Line Item]],Table_POSTInspection[Line],0)),Table_POSTInfo[[#This Row],[Fixture Wattage '[P']]]),\"\"),\"\")","v":""},{"$f":"IFERROR(Table_RetroSummary[[#This Row],[Total '# Lamps '[P']]]+Table_RetroSummary[[#This Row],[Proposed Fixture Wattage]],\"\")","v":""},{"$f":"IFERROR(Table_RetroSummary[[#This Row],[Proposed Fixture Wattage]]/1000*Table_RetroSummary[[#This Row],[OpHrs]]*Table_RetroSummary[[#This Row],[P. Qty]],\"\")","v":""},{"$f":"IFERROR(IF(Table_RetroSummary[[#This Row],[IsActive]],IFERROR(VLOOKUP(RIGHT(Table_RetroSummary[[#This Row],[Proposed Fixture]],LEN(Table_RetroSummary[[#This Row],[Proposed Fixture]])-FIND(\" - \",Table_RetroSummary[[#This Row],[Proposed Fixture]],FIND(\"]\",Table_RetroSummary[[#This Row],[Proposed Fixture]],1))-2),Table_ControlType[],3, FALSE),0),\"\"),\"\")","v":""},{"$f":"IFERROR(IF(Table_RetroSummary[[#This Row],[IsActive]],IFERROR(Table_RetroSummary[[#This Row],[Proposed Fixture Wattage]]/1000*Table_RetroSummary[[#This Row],[OpHrs]]*Table_RetroSummary[[#This Row],[P. Qty]]*Table_RetroSummary[[#This Row],[Existing CSF]]*(-1),0),\"\"),\"\")","v":""},{"$f":"IFERROR(Table_RetroSummary[[#This Row],[Proposed Fixture kWh]]+Table_RetroSummary[[#This Row],[Proposed Fixture (Existing Controls) kWh]],\"\")","v":""},{"$f":"IFERROR(IF(Table_RetroSummary[[#This Row],[IsActive]],IFERROR(Table_RetroSummary[[#This Row],[Proposed Fixture Wattage]]/1000*Table_RetroSummary[[#This Row],[OpHrs]]*Table_RetroSummary[[#This Row],[P. Qty]]*Table_RetroSummary[[#This Row],[Proposed CSF]]*(-1),0),\"\"),\"\")","v":""},{"$f":"IFERROR(Table_RetroSummary[[#This Row],[Proposed Fixture kWh]]+Table_RetroSummary[[#This Row],[Proposed Fixture (Proposed Controls) kWh]],\"\")","v":""},{"$f":"IFERROR(IF(Table_RetroSummary[[#This Row],[IsActive]],IF(ISNUMBER(MATCH(Table_POSTInfo[[#This Row],[Line]],Table_POSTInspection[Line],0)),INDEX(Table_POSTInspection[DLC or ES Certification '[P']],MATCH(Table_RetroSummary[[#This Row],[Line Item]],Table_POSTInspection[Line],0)),Table_POSTInfo[[#This Row],[DLC or ES Certification '[P']]]),\"\"),\"\")","v":""},null,{"$f":"IFERROR(IF(Table_RetroSummary[[#This Row],[IsActive]],\nIF(AND(RIGHT(Table_RetroSummary[[#This Row],[Existing Fixture]],LEN(Table_RetroSummary[[#This Row],[Existing Fixture]])-FIND(\":\",Table_RetroSummary[[#This Row],[Existing Fixture]],1)-1)<>Table_RetroSummary[[#This Row],[Proposed Fixture]],MID(Table_RetroSummary[[#This Row],[Existing Fixture]],FIND(\": \",Table_RetroSummary[[#This Row],[Existing Fixture]],1)+2,FIND(\"]\",Table_RetroSummary[[#This Row],[Existing Fixture]],1))=LEFT(Table_RetroSummary[[#This Row],[Proposed Fixture]],FIND(\"]\",Table_RetroSummary[[#This Row],[Proposed Fixture]],1))),\n  \"Controls Only\",\n  IF(Table_POSTInfo[[#This Row],[DLC or ES Certification '[P']]]<>\"\",\n    IF(ISNUMBER(FIND(\"LED Tube\",Table_RetroSummary[[#This Row],[Proposed Fixture]],1)),\n      \"LED Re-Lamp\",\n      IF(AND(Table_RetroSummary[[#This Row],[Existing Overall kWh]]>Table_RetroSummary[[#This Row],[Proposed Overall kWh (Existing Controls)]],ISNUMBER(FIND(\"LED\",Table_RetroSummary[[#This Row],[Proposed Fixture]],1))),\n        IF(Table_POSTInfo[[#This Row],[Interior/ Exterior]]=\"Exterior\",\n          \"Exterior LED Fixture\",\n          \"Interior LED Fixture\"),\n        \"Ineligible Fixture\")),\n    \"Ineligible Fixture\")),\n\"\"),\"\")","v":""},{"$f":"IFERROR(VLOOKUP(Table_RetroSummary[[#This Row],[Fixture Measure Description]],Table_FixtureRate[],2,FALSE),\"\")","v":""},{"$f":"IFERROR(IF(Table_RetroSummary[[#This Row],[IsActive]],IF(Table_RetroSummary[[#This Row],[Fixture Measure Description]]=\"Ineligible Fixture\",0,ROUND(Table_RetroSummary[[#This Row],[Fixture Rebate (per kW)]]*(Table_RetroSummary[[#This Row],[Existing Fixture Wattage]]*Table_RetroSummary[[#This Row],[E. Qty]]-Table_RetroSummary[[#This Row],[Proposed Fixture Wattage]]*Table_RetroSummary[[#This Row],[P. Qty]])/1000,2)),\"\"),\"\")","v":""},{"$f":"IFERROR(IF(Table_RetroSummary[[#This Row],[Fixture Measure Description]]=\"Ineligible Fixture\",0,ROUND(IF(ProjectCost_Total=0,300000,ProjectCost_Total)*Table_RetroSummary[[#This Row],[Fixture Rebate]]/SUM(Table_RetroSummary[Fixture Rebate],Table_RetroSummary[Controls Rebate]),2)),\"\")","v":""},{"$f":"IFERROR(IF(Table_RetroSummary[[#This Row],[IsActive]],IF(Table_RetroSummary[[#This Row],[Fixture Measure Description]]=\"Ineligible Fixture\",0,Table_RetroSummary[[#This Row],[Existing Overall kWh]]-Table_RetroSummary[[#This Row],[Proposed Overall kWh (Existing Controls)]]),\"\"),\"\")","v":""},{"$f":"IFERROR(IF(Table_RetroSummary[[#This Row],[IsActive]],IF(Table_RetroSummary[[#This Row],[Fixture Measure Description]]=\"Ineligible Fixture\",0,(Table_RetroSummary[[#This Row],[Existing Fixture kWh]]-Table_RetroSummary[[#This Row],[Proposed Fixture kWh]])/Table_RetroSummary[[#This Row],[OpHrs]]*Table_RetroSummary[[#This Row],[CF (Ltg)]]*Table_RetroSummary[[#This Row],[DF (Ltg)]]),\"\"),\"\")","v":""},null,{"$f":"IFERROR(\n  IF(OR(Table_RetroSummary[[#This Row],[Fixture Measure Description]]=\"\",Table_RetroSummary[[#This Row],[Fixture Measure Description]]=\"Ineligible Fixture\"),\n    \"\",\n    IFERROR(VLOOKUP(RIGHT(Table_RetroSummary[[#This Row],[Existing Fixture]],LEN(Table_RetroSummary[[#This Row],[Existing Fixture]])-FIND(\" - \",Table_RetroSummary[[#This Row],[Existing Fixture]],FIND(\"]\",Table_RetroSummary[[#This Row],[Existing Fixture]],1))-2),Table_ControlType[],2,FALSE),\"None\")\n    & \" - \" &\n    IFERROR(VLOOKUP(RIGHT(Table_RetroSummary[[#This Row],[Proposed Fixture]],LEN(Table_RetroSummary[[#This Row],[Proposed Fixture]])-FIND(\" - \",Table_RetroSummary[[#This Row],[Proposed Fixture]],FIND(\"]\",Table_RetroSummary[[#This Row],[Proposed Fixture]],1))-2),Table_ControlType[],2, FALSE),None)),\n\"\")","v":""},{"$f":"IFERROR(VLOOKUP(Table_RetroSummary[[#This Row],[Controls Measure Description]],Table_ControlRate[],2,FALSE),\"\")","v":""},{"$f":"IFERROR(IF(Table_RetroSummary[[#This Row],[IsActive]],IF(Table_RetroSummary[[#This Row],[Controls Measure Description]]=\"\",0,ROUND(Table_RetroSummary[[#This Row],[Controls Rebate (per Fixt Watt)]]*Table_RetroSummary[[#This Row],[Proposed Fixture Wattage]]*Table_RetroSummary[[#This Row],[P. Qty]],2)),\"\"),\"\")","v":""},{"$f":"IFERROR(IF(Table_RetroSummary[[#This Row],[Fixture Measure Description]]=\"Ineligible Fixture\",0,ROUND(IF(ProjectCost_Total=0,300000,ProjectCost_Total)*Table_RetroSummary[[#This Row],[Controls Rebate]]/SUM(Table_RetroSummary[Fixture Rebate],Table_RetroSummary[Controls Rebate]),2)),\"\")","v":""},{"$f":"IFERROR(IF(Table_RetroSummary[[#This Row],[IsActive]],IF(Table_RetroSummary[[#This Row],[Controls Measure Description]]=\"\",0,(Table_RetroSummary[[#This Row],[Proposed Fixture (Existing Controls) kWh]]-Table_RetroSummary[[#This Row],[Proposed Fixture (Proposed Controls) kWh]])),\"\"),\"\")","v":""},{"$f":"IFERROR(IF(Table_RetroSummary[[#This Row],[IsActive]],IF(Table_RetroSummary[[#This Row],[Controls Measure Description]]=\"\",0,(Table_RetroSummary[[#This Row],[Proposed Fixture (Existing Controls) kWh]]-Table_RetroSummary[[#This Row],[Proposed Fixture (Proposed Controls) kWh]])/Table_RetroSummary[[#This Row],[OpHrs]]*Table_RetroSummary[[#This Row],[CF (Ltg)]]*Table_RetroSummary[[#This Row],[DF (Ltg)]]),\"\"),\"\")","v":""},null,{"$f":"IFERROR(IF(NOT(ISNUMBER(Table_RetroSummary[[#This Row],[Fixture Rebate]])),\"\",IF(MIN(IF(SUM(Table_RetroSummary[Fixture Cost],Table_RetroSummary[Controls Cost])<0,0,SUM(Table_RetroSummary[Fixture Cost],Table_RetroSummary[Controls Cost])),SUM(Table_RetroSummary[Fixture Rebate],Table_RetroSummary[Controls Rebate]))>300000,300000/MIN(IF(SUM(Table_RetroSummary[Fixture Cost],Table_RetroSummary[Controls Cost])<0,0,SUM(Table_RetroSummary[Fixture Cost],Table_RetroSummary[Controls Cost])),SUM(Table_RetroSummary[Fixture Rebate],Table_RetroSummary[Controls Rebate]))*MIN(IF(SUM(Table_RetroSummary[Fixture Cost],Table_RetroSummary[Controls Cost])<0,0,SUM(Table_RetroSummary[Fixture Cost],Table_RetroSummary[Controls Cost])),Table_RetroSummary[[#This Row],[Fixture Rebate]]+IF(Table_RetroSummary[[#This Row],[Controls Rebate]]=\"\",0,Table_RetroSummary[[#This Row],[Controls Rebate]])),MIN(IF(SUM(Table_RetroSummary[Fixture Cost],Table_RetroSummary[Controls Cost])<0,0,SUM(Table_RetroSummary[Fixture Cost],Table_RetroSummary[Controls Cost])),Table_RetroSummary[[#This Row],[Fixture Rebate]]+IF(Table_RetroSummary[[#This Row],[Controls Rebate]]=\"\",0,Table_RetroSummary[[#This Row],[Controls Rebate]])))),\"\")","v":""},{"$f":"IFERROR(IF(Table_RetroSummary[[#This Row],[Fixture Cost]]=\"\",\"\",Table_RetroSummary[[#This Row],[Fixture Cost]]+IF(Table_RetroSummary[[#This Row],[Controls Cost]]=\"\",0,Table_RetroSummary[[#This Row],[Controls Cost]])),\"\")","v":""},{"$f":"IFERROR(IF(Table_RetroSummary[[#This Row],[IsActive]],IF(Table_POSTInfo[[#This Row],[Interior/ Exterior]]=\"Interior\",IFERROR((Table_RetroSummary[[#This Row],[Annual Fixture Savings (kWh)]]+Table_RetroSummary[[#This Row],[Annual Control Savings (kWh)]])*(Table_RetroSummary[[#This Row],[EIF]]-1),0),0),\"\"),\"\")","v":""},{"$f":"IFERROR(IF(Table_RetroSummary[[#This Row],[IsActive]],IF(Table_POSTInfo[[#This Row],[Interior/ Exterior]]=\"Interior\",IFERROR((Table_RetroSummary[[#This Row],[Fixture kW Reduction]]+Table_RetroSummary[[#This Row],[Control kW Reduction]]/(Table_RetroSummary[[#This Row],[CF (Ltg)]]*Table_RetroSummary[[#This Row],[DF (Ltg)]]))*(Table_RetroSummary[[#This Row],[DIF]]-1)*Table_RetroSummary[[#This Row],[CF (HVAC)]]*Table_RetroSummary[[#This Row],[DF (HVAC)]],0),0),\"\"),\"\")","v":""},{"$f":"IFERROR(IF(Table_RetroSummary[[#This Row],[IsActive]],IF(NOT(ISNUMBER(Table_RetroSummary[[#This Row],[Fixture Rebate]])),\"\",ROUND(Table_RetroSummary[[#This Row],[Annual Fixture Savings (kWh)]]+Table_RetroSummary[[#This Row],[Annual Control Savings (kWh)]],0)),\"\"),\"\")","v":""},{"$f":"IFERROR(IF(Table_RetroSummary[[#This Row],[IsActive]],IF(NOT(ISNUMBER(Table_RetroSummary[[#This Row],[Fixture Rebate]])),\"\",ROUND(Table_RetroSummary[[#This Row],[Fixture kW Reduction]]+Table_RetroSummary[[#This Row],[Control kW Reduction]],3)),\"\"),\"\")","v":""},{"$f":"IFERROR(IF(Table_RetroSummary[[#This Row],[IsActive]],IF(NOT(ISNUMBER(Table_RetroSummary[[#This Row],[Fixture Rebate]])),\"\",ROUND(Table_RetroSummary[[#This Row],[Fixture Energy Savings (kWh)]]+Table_RetroSummary[[#This Row],[Induced HVAC Energy Savings (kWh)]],0)),\"\"),\"\")","v":""},{"$f":"IFERROR(IF(Table_RetroSummary[[#This Row],[IsActive]],IF(NOT(ISNUMBER(Table_RetroSummary[[#This Row],[Fixture Rebate]])),\"\",ROUND(Table_RetroSummary[[#This Row],[Fixture Demand Savings (kW)]]+Table_RetroSummary[[#This Row],[Induced HVAC Demand Savings (kW)]],3)),\"\"),\"\")","v":""}]
[{"$f":"IFERROR(Table_POSTInfo[[#This Row],[Line]],\"\")","v":10},{"$f":"IFERROR(Table_POSTInfo[[#This Row],[IsActive]],\"\")","v":false},{"$f":"IFERROR(IF(Table_RetroSummary[[#This Row],[IsActive]],CONCATENATE(Table_RetroSummary[[#This Row],[Existing Fixture]],\" | \",Table_RetroSummary[[#This Row],[Proposed Fixture]]),\"\"),\"\")","v":""},{"$f":"IFERROR(IF(Table_RetroSummary[[#This Row],[IsActive]],VLOOKUP(IF(ISNUMBER(MATCH(Table_POSTInfo[[#This Row],[Line]],Table_POSTInspection[Line],0)),INDEX(Table_POSTInspection[Schedule],MATCH(Table_RetroSummary[[#This Row],[Line Item]],Table_POSTInspection[Line],0)),Table_POSTInfo[[#This Row],[Schedule]]),'Customer Information'!$S$27:$T$34,2,FALSE),\"\"),\"\")","v":""},{"$f":"IFERROR(IF(Table_RetroSummary[[#This Row],[IsActive]],IF(IF(ISNUMBER(MATCH(Table_RetroSummary[[#This Row],[Line Item]],Table_POSTInspection[Line],0)),INDEX(Table_POSTInspection[Interior/ Exterior],MATCH(Table_RetroSummary[[#This Row],[Line Item]],Table_POSTInfo[[#This Row],[Line]],0)),Table_POSTInfo[[#This Row],[Interior/ Exterior]])=\"Interior\",'Customer Information'!$S$25,0),\"\"),\"\")","v":""},{"$f":"IFERROR(IF(Table_RetroSummary[[#This Row],[IsActive]],IF(IF(ISNUMBER(MATCH(Table_RetroSummary[[#This Row],[Line Item]],Table_POSTInspection[Line],0)),INDEX(Table_POSTInspection[Interior/ Exterior],MATCH(Table_RetroSummary[[#This Row],[Line Item]],Table_POSTInfo[[#This Row],[Line]],0)),Table_POSTInfo[[#This Row],[Interior/ Exterior]])=\"Interior\",'Customer Information'!$T$25,0),\"\"),\"\")","v":""},{"$f":"IFERROR(IF(Table_RetroSummary[[#This Row],[IsActive]],IF(IF(ISNUMBER(MATCH(Table_RetroSummary[[#This Row],[Line Item]],Table_POSTInspection[Line],0)),INDEX(Table_POSTInspection[Interior/ Exterior],MATCH(Table_RetroSummary[[#This Row],[Line Item]],Table_POSTInfo[[#This Row],[Line]],0)),Table_POSTInfo[[#This Row],[Interior/ Exterior]])=\"Interior\",'Customer Information'!$U$25,0),\"\"),\"\")","v":""},{"$f":"IFERROR(IF(Table_RetroSummary[[#This Row],[IsActive]],IF(IF(ISNUMBER(MATCH(Table_RetroSummary[[#This Row],[Line Item]],Table_POSTInspection[Line],0)),INDEX(Table_POSTInspection[Interior/ Exterior],MATCH(Table_RetroSummary[[#This Row],[Line Item]],Table_POSTInfo[[#This Row],[Line]],0)),Table_POSTInfo[[#This Row],[Interior/ Exterior]])=\"Interior\",'Customer Information'!$V$25,0),\"\"),\"\")","v":""},{"$f":"IFERROR(IF(Table_RetroSummary[[#This Row],[IsActive]],IF(IF(ISNUMBER(MATCH(Table_RetroSummary[[#This Row],[Line Item]],Table_POSTInspection[Line],0)),INDEX(Table_POSTInspection[Interior/ Exterior],MATCH(Table_RetroSummary[[#This Row],[Line Item]],Table_POSTInfo[[#This Row],[Line]],0)),Table_POSTInfo[[#This Row],[Interior/ Exterior]])=\"Interior\",'Customer Information'!$W$25,0),\"\"),\"\")","v":""},{"$f":"IFERROR(IF(Table_RetroSummary[[#This Row],[IsActive]],IF(IF(ISNUMBER(MATCH(Table_RetroSummary[[#This Row],[Line Item]],Table_POSTInspection[Line],0)),INDEX(Table_POSTInspection[Interior/ Exterior],MATCH(Table_RetroSummary[[#This Row],[Line Item]],Table_POSTInfo[[#This Row],[Line]],0)),Table_POSTInfo[[#This Row],[Interior/ Exterior]])=\"Interior\",'Customer Information'!$X$25,0),\"\"),\"\")","v":""},{"$f":"IFERROR(IF(Table_RetroSummary[[#This Row],[IsActive]],\nCONCATENATE(\nIF(ISNUMBER(MATCH(Table_POSTInfo[[#This Row],[Line]],Table_POSTInspection[Line],0)),INDEX(Table_POSTInspection[Interior/ Exterior],MATCH(Table_RetroSummary[[#This Row],[Line Item]],Table_POSTInspection[Line],0)),Table_POSTInfo[[#This Row],[Interior/ Exterior]]),\n\" - \",\nIF(ISNUMBER(MATCH(Table_POSTInfo[[#This Row],[Line]],Table_POSTInspection[Line],0)),INDEX(Table_POSTInspection[Space Description],MATCH(Table_RetroSummary[[#This Row],[Line Item]],Table_POSTInspection[Line],0)),Table_POSTInfo[[#This Row],[Space Description]])),\n \"\"),\"\")","v":""},{"$f":"IFERROR(IF(Table_RetroSummary[[#This Row],[IsActive]]=\"\",\"\",Table_POSTInfo[[#This Row],[Fixture Description '[E']]]),\"\")","v":""},{"$f":"IFERROR(IF(Table_RetroSummary[[#This Row],[IsActive]]=\"\",\"\",Table_POSTInfo[[#This Row],['# Lamps/ Fixture '[E']]]),\"\")","v":""},{"$f":"IFERROR(IF(Table_RetroSummary[[#This Row],[IsActive]]=\"\",\"\",Table_POSTInfo[[#This Row],[Fixture/ Lamp Wattage '[E']]]),\"\")","v":""},{"$f":"IFERROR(IF(Table_RetroSummary[[#This Row],[IsActive]]=\"\",\"\",Table_POSTInfo[[#This Row],[Fixture Qty '[E']]]),\"\")","v":""},{"$f":"IFERROR(IF(Table_RetroSummary[[#This Row],[IsActive]],Table_RetroSummary[[#This Row],[Fixture/ Lamp Wattage '[E']]]*Table_RetroSummary[[#This Row],[E. Qty]],\"\"),\"\")","v":""},{"$f":"IFERROR(IF(Table_RetroSummary[[#This Row],[IsActive]]=\"\",\"\",Table_POSTInfo[[#This Row],[Fixture Wattage '[E']]]),\"\")","v":""},{"$f":"IFERROR(IF(Table_RetroSummary[[#This Row],[IsActive]],IFERROR(Table_RetroSummary[[#This Row],[Existing Fixture Wattage]]/1000*Table_RetroSummary[[#This Row],[OpHrs]]*Table_RetroSummary[[#This Row],[E. Qty]],0),\"\"),\"\")","v":""},{"$f":"IFERROR(IF(Table_RetroSummary[[#This Row],[IsActive]],IFERROR(VLOOKUP(RIGHT(Table_RetroSummary[[#This Row],[Existing Fixture]],LEN(Table_RetroSummary[[#This Row],[Existing Fixture]])-FIND(\" - \",Table_RetroSummary[[#This Row],[Existing Fixture]],FIND(\"]\",Table_RetroSummary[[#This Row],[Existing Fixture]],1))-2),Table_ControlType[],3,FALSE),0),\"\"),\"\")","v":""},{"$f":"IFERROR(IF(Table_RetroSummary[[#This Row],[IsActive]],IFERROR(Table_RetroSummary[[#This Row],[Existing Fixture Wattage]]/1000*Table_RetroSummary[[#This Row],[OpHrs]]*Table_RetroSummary[[#This Row],[E. Qty]]*Table_RetroSummary[[#This Row],[Existing CSF]]*(-1),0),\"\"),\"\")","v":""},{"$f":"IFERROR(Table_RetroSummary[[#This Row],[Existing Fixture kWh]]+Table_RetroSummary[[#This Row],[Existing Fixture (Existing Controls) kWh]],\"\")","v":""},{"$f":"IFERROR(IF(Table_RetroSummary[[#This Row],[IsActive]],IF(ISNUMBER(MATCH(Table_POSTInfo[[#This Row],[Line]],Table_POSTInspection[Line],0)),INDEX(Table_POSTInspection[Fixture Description '[P']],MATCH(Table_RetroSummary[[#This Row],[Line Item]],Table_POSTInspection[Line],0)),Table_POSTInfo[[#This Row],[Fixture Description '[P']]]),\"\"),\"\")","v":""},{"$f":"IFERROR(IF(Table_RetroSummary[[#This Row],[IsActive]],IF(ISNUMBER(MATCH(Table_POSTInfo[[#This Row],[Line]],Table_POSTInspection[Line],0)),INDEX(Table_POSTInspection['# Lamps/ Fixture '[P']],MATCH(Table_RetroSummary[[#This Row],[Line Item]],Table_POSTInspection[Line],0)),Table_POSTInfo[[#This Row],['# Lamps/ Fixture '[P']]]),\"\"),\"\")","v":""},{"$f":"IFERROR(IF(Table_RetroSummary[[#This Row],[IsActive]],IF(ISNUMBER(MATCH(Table_POSTInfo[[#This Row],[Line]],Table_POSTInspection[Line],0)),INDEX(Table_POSTInspection[Fixture/ Lamp Wattage '[P']],MATCH(Table_RetroSummary[[#This Row],[Line Item]],Table_POSTInspection[Line],0)),Table_POSTInfo[[#This Row],[Fixture/ Lamp Wattage '[P']]]),\"\"),\"\")","v":""},{"$f":"IFERROR(IF(Table_RetroSummary[[#This Row],[IsActive]],IF(ISNUMBER(MATCH(Table_POSTInfo[[#This Row],[Line]],Table_POSTInspection[Line],0)),INDEX(Table_POSTInspection[Fixture Qty '[P']],MATCH(Table_RetroSummary[[#This Row],[Line Item]],Table_POSTInspection[Line],0)),Table_POSTInfo[[#This Row],[Fixture Qty '[P']]]),\"\"),\"\")","v":""},{"$f":"IFERROR(IF(Table_RetroSummary[[#This Row],[IsActive]],Table_RetroSummary[[#This Row],[Fixture/ Lamp Wattage '[P']]]*Table_RetroSummary[[#This Row],[P. Qty]],\"\"),\"\")","v":""},{"$f":"IFERROR(IF(Table_RetroSummary[[#This Row],[IsActive]],IF(ISNUMBER(MATCH(Table_POSTInfo[[#This Row],[Line]],Table_POSTInspection[Line],0)),INDEX(Table_POSTInspection[Fixture Wattage '[P']],MATCH(Table_RetroSummary[[#This Row],[Line Item]],Table_POSTInspection[Line],0)),Table_POSTInfo[[#This Row],[Fixture Wattage '[P']]]),\"\"),\"\")","v":""},{"$f":"IFERROR(Table_RetroSummary[[#This Row],[Total '# Lamps '[P']]]+Table_RetroSummary[[#This Row],[Proposed Fixture Wattage]],\"\")","v":""},{"$f":"IFERROR(Table_RetroSummary[[#This Row],[Proposed Fixture Wattage]]/1000*Table_RetroSummary[[#This Row],[OpHrs]]*Table_RetroSummary[[#This Row],[P. Qty]],\"\")","v":""},{"$f":"IFERROR(IF(Table_RetroSummary[[#This Row],[IsActive]],IFERROR(VLOOKUP(RIGHT(Table_RetroSummary[[#This Row],[Proposed Fixture]],LEN(Table_RetroSummary[[#This Row],[Proposed Fixture]])-FIND(\" - \",Table_RetroSummary[[#This Row],[Proposed Fixture]],FIND(\"]\",Table_RetroSummary[[#This Row],[Proposed Fixture]],1))-2),Table_ControlType[],3, FALSE),0),\"\"),\"\")","v":""},{"$f":"IFERROR(IF(Table_RetroSummary[[#This Row],[IsActive]],IFERROR(Table_RetroSummary[[#This Row],[Proposed Fixture Wattage]]/1000*Table_RetroSummary[[#This Row],[OpHrs]]*Table_RetroSummary[[#This Row],[P. Qty]]*Table_RetroSummary[[#This Row],[Existing CSF]]*(-1),0),\"\"),\"\")","v":""},{"$f":"IFERROR(Table_RetroSummary[[#This Row],[Proposed Fixture kWh]]+Table_RetroSummary[[#This Row],[Proposed Fixture (Existing Controls) kWh]],\"\")","v":""},{"$f":"IFERROR(IF(Table_RetroSummary[[#This Row],[IsActive]],IFERROR(Table_RetroSummary[[#This Row],[Proposed Fixture Wattage]]/1000*Table_RetroSummary[[#This Row],[OpHrs]]*Table_RetroSummary[[#This Row],[P. Qty]]*Table_RetroSummary[[#This Row],[Proposed CSF]]*(-1),0),\"\"),\"\")","v":""},{"$f":"IFERROR(Table_RetroSummary[[#This Row],[Proposed Fixture kWh]]+Table_RetroSummary[[#This Row],[Proposed Fixture (Proposed Controls) kWh]],\"\")","v":""},{"$f":"IFERROR(IF(Table_RetroSummary[[#This Row],[IsActive]],IF(ISNUMBER(MATCH(Table_POSTInfo[[#This Row],[Line]],Table_POSTInspection[Line],0)),INDEX(Table_POSTInspection[DLC or ES Certification '[P']],MATCH(Table_RetroSummary[[#This Row],[Line Item]],Table_POSTInspection[Line],0)),Table_POSTInfo[[#This Row],[DLC or ES Certification '[P']]]),\"\"),\"\")","v":""},null,{"$f":"IFERROR(IF(Table_RetroSummary[[#This Row],[IsActive]],\nIF(AND(RIGHT(Table_RetroSummary[[#This Row],[Existing Fixture]],LEN(Table_RetroSummary[[#This Row],[Existing Fixture]])-FIND(\":\",Table_RetroSummary[[#This Row],[Existing Fixture]],1)-1)<>Table_RetroSummary[[#This Row],[Proposed Fixture]],MID(Table_RetroSummary[[#This Row],[Existing Fixture]],FIND(\": \",Table_RetroSummary[[#This Row],[Existing Fixture]],1)+2,FIND(\"]\",Table_RetroSummary[[#This Row],[Existing Fixture]],1))=LEFT(Table_RetroSummary[[#This Row],[Proposed Fixture]],FIND(\"]\",Table_RetroSummary[[#This Row],[Proposed Fixture]],1))),\n  \"Controls Only\",\n  IF(Table_POSTInfo[[#This Row],[DLC or ES Certification '[P']]]<>\"\",\n    IF(ISNUMBER(FIND(\"LED Tube\",Table_RetroSummary[[#This Row],[Proposed Fixture]],1)),\n      \"LED Re-Lamp\",\n      IF(AND(Table_RetroSummary[[#This Row],[Existing Overall kWh]]>Table_RetroSummary[[#This Row],[Proposed Overall kWh (Existing Controls)]],ISNUMBER(FIND(\"LED\",Table_RetroSummary[[#This Row],[Proposed Fixture]],1))),\n        IF(Table_POSTInfo[[#This Row],[Interior/ Exterior]]=\"Exterior\",\n          \"Exterior LED Fixture\",\n          \"Interior LED Fixture\"),\n        \"Ineligible Fixture\")),\n    \"Ineligible Fixture\")),\n\"\"),\"\")","v":""},{"$f":"IFERROR(VLOOKUP(Table_RetroSummary[[#This Row],[Fixture Measure Description]],Table_FixtureRate[],2,FALSE),\"\")","v":""},{"$f":"IFERROR(IF(Table_RetroSummary[[#This Row],[IsActive]],IF(Table_RetroSummary[[#This Row],[Fixture Measure Description]]=\"Ineligible Fixture\",0,ROUND(Table_RetroSummary[[#This Row],[Fixture Rebate (per kW)]]*(Table_RetroSummary[[#This Row],[Existing Fixture Wattage]]*Table_RetroSummary[[#This Row],[E. Qty]]-Table_RetroSummary[[#This Row],[Proposed Fixture Wattage]]*Table_RetroSummary[[#This Row],[P. Qty]])/1000,2)),\"\"),\"\")","v":""},{"$f":"IFERROR(IF(Table_RetroSummary[[#This Row],[Fixture Measure Description]]=\"Ineligible Fixture\",0,ROUND(IF(ProjectCost_Total=0,300000,ProjectCost_Total)*Table_RetroSummary[[#This Row],[Fixture Rebate]]/SUM(Table_RetroSummary[Fixture Rebate],Table_RetroSummary[Controls Rebate]),2)),\"\")","v":""},{"$f":"IFERROR(IF(Table_RetroSummary[[#This Row],[IsActive]],IF(Table_RetroSummary[[#This Row],[Fixture Measure Description]]=\"Ineligible Fixture\",0,Table_RetroSummary[[#This Row],[Existing Overall kWh]]-Table_RetroSummary[[#This Row],[Proposed Overall kWh (Existing Controls)]]),\"\"),\"\")","v":""},{"$f":"IFERROR(IF(Table_RetroSummary[[#This Row],[IsActive]],IF(Table_RetroSummary[[#This Row],[Fixture Measure Description]]=\"Ineligible Fixture\",0,(Table_RetroSummary[[#This Row],[Existing Fixture kWh]]-Table_RetroSummary[[#This Row],[Proposed Fixture kWh]])/Table_RetroSummary[[#This Row],[OpHrs]]*Table_RetroSummary[[#This Row],[CF (Ltg)]]*Table_RetroSummary[[#This Row],[DF (Ltg)]]),\"\"),\"\")","v":""},null,{"$f":"IFERROR(\n  IF(OR(Table_RetroSummary[[#This Row],[Fixture Measure Description]]=\"\",Table_RetroSummary[[#This Row],[Fixture Measure Description]]=\"Ineligible Fixture\"),\n    \"\",\n    IFERROR(VLOOKUP(RIGHT(Table_RetroSummary[[#This Row],[Existing Fixture]],LEN(Table_RetroSummary[[#This Row],[Existing Fixture]])-FIND(\" - \",Table_RetroSummary[[#This Row],[Existing Fixture]],FIND(\"]\",Table_RetroSummary[[#This Row],[Existing Fixture]],1))-2),Table_ControlType[],2,FALSE),\"None\")\n    & \" - \" &\n    IFERROR(VLOOKUP(RIGHT(Table_RetroSummary[[#This Row],[Proposed Fixture]],LEN(Table_RetroSummary[[#This Row],[Proposed Fixture]])-FIND(\" - \",Table_RetroSummary[[#This Row],[Proposed Fixture]],FIND(\"]\",Table_RetroSummary[[#This Row],[Proposed Fixture]],1))-2),Table_ControlType[],2, FALSE),None)),\n\"\")","v":""},{"$f":"IFERROR(VLOOKUP(Table_RetroSummary[[#This Row],[Controls Measure Description]],Table_ControlRate[],2,FALSE),\"\")","v":""},{"$f":"IFERROR(IF(Table_RetroSummary[[#This Row],[IsActive]],IF(Table_RetroSummary[[#This Row],[Controls Measure Description]]=\"\",0,ROUND(Table_RetroSummary[[#This Row],[Controls Rebate (per Fixt Watt)]]*Table_RetroSummary[[#This Row],[Proposed Fixture Wattage]]*Table_RetroSummary[[#This Row],[P. Qty]],2)),\"\"),\"\")","v":""},{"$f":"IFERROR(IF(Table_RetroSummary[[#This Row],[Fixture Measure Description]]=\"Ineligible Fixture\",0,ROUND(IF(ProjectCost_Total=0,300000,ProjectCost_Total)*Table_RetroSummary[[#This Row],[Controls Rebate]]/SUM(Table_RetroSummary[Fixture Rebate],Table_RetroSummary[Controls Rebate]),2)),\"\")","v":""},{"$f":"IFERROR(IF(Table_RetroSummary[[#This Row],[IsActive]],IF(Table_RetroSummary[[#This Row],[Controls Measure Description]]=\"\",0,(Table_RetroSummary[[#This Row],[Proposed Fixture (Existing Controls) kWh]]-Table_RetroSummary[[#This Row],[Proposed Fixture (Proposed Controls) kWh]])),\"\"),\"\")","v":""},{"$f":"IFERROR(IF(Table_RetroSummary[[#This Row],[IsActive]],IF(Table_RetroSummary[[#This Row],[Controls Measure Description]]=\"\",0,(Table_RetroSummary[[#This Row],[Proposed Fixture (Existing Controls) kWh]]-Table_RetroSummary[[#This Row],[Proposed Fixture (Proposed Controls) kWh]])/Table_RetroSummary[[#This Row],[OpHrs]]*Table_RetroSummary[[#This Row],[CF (Ltg)]]*Table_RetroSummary[[#This Row],[DF (Ltg)]]),\"\"),\"\")","v":""},null,{"$f":"IFERROR(IF(NOT(ISNUMBER(Table_RetroSummary[[#This Row],[Fixture Rebate]])),\"\",IF(MIN(IF(SUM(Table_RetroSummary[Fixture Cost],Table_RetroSummary[Controls Cost])<0,0,SUM(Table_RetroSummary[Fixture Cost],Table_RetroSummary[Controls Cost])),SUM(Table_RetroSummary[Fixture Rebate],Table_RetroSummary[Controls Rebate]))>300000,300000/MIN(IF(SUM(Table_RetroSummary[Fixture Cost],Table_RetroSummary[Controls Cost])<0,0,SUM(Table_RetroSummary[Fixture Cost],Table_RetroSummary[Controls Cost])),SUM(Table_RetroSummary[Fixture Rebate],Table_RetroSummary[Controls Rebate]))*MIN(IF(SUM(Table_RetroSummary[Fixture Cost],Table_RetroSummary[Controls Cost])<0,0,SUM(Table_RetroSummary[Fixture Cost],Table_RetroSummary[Controls Cost])),Table_RetroSummary[[#This Row],[Fixture Rebate]]+IF(Table_RetroSummary[[#This Row],[Controls Rebate]]=\"\",0,Table_RetroSummary[[#This Row],[Controls Rebate]])),MIN(IF(SUM(Table_RetroSummary[Fixture Cost],Table_RetroSummary[Controls Cost])<0,0,SUM(Table_RetroSummary[Fixture Cost],Table_RetroSummary[Controls Cost])),Table_RetroSummary[[#This Row],[Fixture Rebate]]+IF(Table_RetroSummary[[#This Row],[Controls Rebate]]=\"\",0,Table_RetroSummary[[#This Row],[Controls Rebate]])))),\"\")","v":""},{"$f":"IFERROR(IF(Table_RetroSummary[[#This Row],[Fixture Cost]]=\"\",\"\",Table_RetroSummary[[#This Row],[Fixture Cost]]+IF(Table_RetroSummary[[#This Row],[Controls Cost]]=\"\",0,Table_RetroSummary[[#This Row],[Controls Cost]])),\"\")","v":""},{"$f":"IFERROR(IF(Table_RetroSummary[[#This Row],[IsActive]],IF(Table_POSTInfo[[#This Row],[Interior/ Exterior]]=\"Interior\",IFERROR((Table_RetroSummary[[#This Row],[Annual Fixture Savings (kWh)]]+Table_RetroSummary[[#This Row],[Annual Control Savings (kWh)]])*(Table_RetroSummary[[#This Row],[EIF]]-1),0),0),\"\"),\"\")","v":""},{"$f":"IFERROR(IF(Table_RetroSummary[[#This Row],[IsActive]],IF(Table_POSTInfo[[#This Row],[Interior/ Exterior]]=\"Interior\",IFERROR((Table_RetroSummary[[#This Row],[Fixture kW Reduction]]+Table_RetroSummary[[#This Row],[Control kW Reduction]]/(Table_RetroSummary[[#This Row],[CF (Ltg)]]*Table_RetroSummary[[#This Row],[DF (Ltg)]]))*(Table_RetroSummary[[#This Row],[DIF]]-1)*Table_RetroSummary[[#This Row],[CF (HVAC)]]*Table_RetroSummary[[#This Row],[DF (HVAC)]],0),0),\"\"),\"\")","v":""},{"$f":"IFERROR(IF(Table_RetroSummary[[#This Row],[IsActive]],IF(NOT(ISNUMBER(Table_RetroSummary[[#This Row],[Fixture Rebate]])),\"\",ROUND(Table_RetroSummary[[#This Row],[Annual Fixture Savings (kWh)]]+Table_RetroSummary[[#This Row],[Annual Control Savings (kWh)]],0)),\"\"),\"\")","v":""},{"$f":"IFERROR(IF(Table_RetroSummary[[#This Row],[IsActive]],IF(NOT(ISNUMBER(Table_RetroSummary[[#This Row],[Fixture Rebate]])),\"\",ROUND(Table_RetroSummary[[#This Row],[Fixture kW Reduction]]+Table_RetroSummary[[#This Row],[Control kW Reduction]],3)),\"\"),\"\")","v":""},{"$f":"IFERROR(IF(Table_RetroSummary[[#This Row],[IsActive]],IF(NOT(ISNUMBER(Table_RetroSummary[[#This Row],[Fixture Rebate]])),\"\",ROUND(Table_RetroSummary[[#This Row],[Fixture Energy Savings (kWh)]]+Table_RetroSummary[[#This Row],[Induced HVAC Energy Savings (kWh)]],0)),\"\"),\"\")","v":""},{"$f":"IFERROR(IF(Table_RetroSummary[[#This Row],[IsActive]],IF(NOT(ISNUMBER(Table_RetroSummary[[#This Row],[Fixture Rebate]])),\"\",ROUND(Table_RetroSummary[[#This Row],[Fixture Demand Savings (kW)]]+Table_RetroSummary[[#This Row],[Induced HVAC Demand Savings (kW)]],3)),\"\"),\"\")","v":""}]
[{"$f":"IFERROR(Table_POSTInfo[[#This Row],[Line]],\"\")","v":11},{"$f":"IFERROR(Table_POSTInfo[[#This Row],[IsActive]],\"\")","v":false},{"$f":"IFERROR(IF(Table_RetroSummary[[#This Row],[IsActive]],CONCATENATE(Table_RetroSummary[[#This Row],[Existing Fixture]],\" | \",Table_RetroSummary[[#This Row],[Proposed Fixture]]),\"\"),\"\")","v":""},{"$f":"IFERROR(IF(Table_RetroSummary[[#This Row],[IsActive]],VLOOKUP(IF(ISNUMBER(MATCH(Table_POSTInfo[[#This Row],[Line]],Table_POSTInspection[Line],0)),INDEX(Table_POSTInspection[Schedule],MATCH(Table_RetroSummary[[#This Row],[Line Item]],Table_POSTInspection[Line],0)),Table_POSTInfo[[#This Row],[Schedule]]),'Customer Information'!$S$27:$T$34,2,FALSE),\"\"),\"\")","v":""},{"$f":"IFERROR(IF(Table_RetroSummary[[#This Row],[IsActive]],IF(IF(ISNUMBER(MATCH(Table_RetroSummary[[#This Row],[Line Item]],Table_POSTInspection[Line],0)),INDEX(Table_POSTInspection[Interior/ Exterior],MATCH(Table_RetroSummary[[#This Row],[Line Item]],Table_POSTInfo[[#This Row],[Line]],0)),Table_POSTInfo[[#This Row],[Interior/ Exterior]])=\"Interior\",'Customer Information'!$S$25,0),\"\"),\"\")","v":""},{"$f":"IFERROR(IF(Table_RetroSummary[[#This Row],[IsActive]],IF(IF(ISNUMBER(MATCH(Table_RetroSummary[[#This Row],[Line Item]],Table_POSTInspection[Line],0)),INDEX(Table_POSTInspection[Interior/ Exterior],MATCH(Table_RetroSummary[[#This Row],[Line Item]],Table_POSTInfo[[#This Row],[Line]],0)),Table_POSTInfo[[#This Row],[Interior/ Exterior]])=\"Interior\",'Customer Information'!$T$25,0),\"\"),\"\")","v":""},{"$f":"IFERROR(IF(Table_RetroSummary[[#This Row],[IsActive]],IF(IF(ISNUMBER(MATCH(Table_RetroSummary[[#This Row],[Line Item]],Table_POSTInspection[Line],0)),INDEX(Table_POSTInspection[Interior/ Exterior],MATCH(Table_RetroSummary[[#This Row],[Line Item]],Table_POSTInfo[[#This Row],[Line]],0)),Table_POSTInfo[[#This Row],[Interior/ Exterior]])=\"Interior\",'Customer Information'!$U$25,0),\"\"),\"\")","v":""},{"$f":"IFERROR(IF(Table_RetroSummary[[#This Row],[IsActive]],IF(IF(ISNUMBER(MATCH(Table_RetroSummary[[#This Row],[Line Item]],Table_POSTInspection[Line],0)),INDEX(Table_POSTInspection[Interior/ Exterior],MATCH(Table_RetroSummary[[#This Row],[Line Item]],Table_POSTInfo[[#This Row],[Line]],0)),Table_POSTInfo[[#This Row],[Interior/ Exterior]])=\"Interior\",'Customer Information'!$V$25,0),\"\"),\"\")","v":""},{"$f":"IFERROR(IF(Table_RetroSummary[[#This Row],[IsActive]],IF(IF(ISNUMBER(MATCH(Table_RetroSummary[[#This Row],[Line Item]],Table_POSTInspection[Line],0)),INDEX(Table_POSTInspection[Interior/ Exterior],MATCH(Table_RetroSummary[[#This Row],[Line Item]],Table_POSTInfo[[#This Row],[Line]],0)),Table_POSTInfo[[#This Row],[Interior/ Exterior]])=\"Interior\",'Customer Information'!$W$25,0),\"\"),\"\")","v":""},{"$f":"IFERROR(IF(Table_RetroSummary[[#This Row],[IsActive]],IF(IF(ISNUMBER(MATCH(Table_RetroSummary[[#This Row],[Line Item]],Table_POSTInspection[Line],0)),INDEX(Table_POSTInspection[Interior/ Exterior],MATCH(Table_RetroSummary[[#This Row],[Line Item]],Table_POSTInfo[[#This Row],[Line]],0)),Table_POSTInfo[[#This Row],[Interior/ Exterior]])=\"Interior\",'Customer Information'!$X$25,0),\"\"),\"\")","v":""},{"$f":"IFERROR(IF(Table_RetroSummary[[#This Row],[IsActive]],\nCONCATENATE(\nIF(ISNUMBER(MATCH(Table_POSTInfo[[#This Row],[Line]],Table_POSTInspection[Line],0)),INDEX(Table_POSTInspection[Interior/ Exterior],MATCH(Table_RetroSummary[[#This Row],[Line Item]],Table_POSTInspection[Line],0)),Table_POSTInfo[[#This Row],[Interior/ Exterior]]),\n\" - \",\nIF(ISNUMBER(MATCH(Table_POSTInfo[[#This Row],[Line]],Table_POSTInspection[Line],0)),INDEX(Table_POSTInspection[Space Description],MATCH(Table_RetroSummary[[#This Row],[Line Item]],Table_POSTInspection[Line],0)),Table_POSTInfo[[#This Row],[Space Description]])),\n \"\"),\"\")","v":""},{"$f":"IFERROR(IF(Table_RetroSummary[[#This Row],[IsActive]]=\"\",\"\",Table_POSTInfo[[#This Row],[Fixture Description '[E']]]),\"\")","v":""},{"$f":"IFERROR(IF(Table_RetroSummary[[#This Row],[IsActive]]=\"\",\"\",Table_POSTInfo[[#This Row],['# Lamps/ Fixture '[E']]]),\"\")","v":""},{"$f":"IFERROR(IF(Table_RetroSummary[[#This Row],[IsActive]]=\"\",\"\",Table_POSTInfo[[#This Row],[Fixture/ Lamp Wattage '[E']]]),\"\")","v":""},{"$f":"IFERROR(IF(Table_RetroSummary[[#This Row],[IsActive]]=\"\",\"\",Table_POSTInfo[[#This Row],[Fixture Qty '[E']]]),\"\")","v":""},{"$f":"IFERROR(IF(Table_RetroSummary[[#This Row],[IsActive]],Table_RetroSummary[[#This Row],[Fixture/ Lamp Wattage '[E']]]*Table_RetroSummary[[#This Row],[E. Qty]],\"\"),\"\")","v":""},{"$f":"IFERROR(IF(Table_RetroSummary[[#This Row],[IsActive]]=\"\",\"\",Table_POSTInfo[[#This Row],[Fixture Wattage '[E']]]),\"\")","v":""},{"$f":"IFERROR(IF(Table_RetroSummary[[#This Row],[IsActive]],IFERROR(Table_RetroSummary[[#This Row],[Existing Fixture Wattage]]/1000*Table_RetroSummary[[#This Row],[OpHrs]]*Table_RetroSummary[[#This Row],[E. Qty]],0),\"\"),\"\")","v":""},{"$f":"IFERROR(IF(Table_RetroSummary[[#This Row],[IsActive]],IFERROR(VLOOKUP(RIGHT(Table_RetroSummary[[#This Row],[Existing Fixture]],LEN(Table_RetroSummary[[#This Row],[Existing Fixture]])-FIND(\" - \",Table_RetroSummary[[#This Row],[Existing Fixture]],FIND(\"]\",Table_RetroSummary[[#This Row],[Existing Fixture]],1))-2),Table_ControlType[],3,FALSE),0),\"\"),\"\")","v":""},{"$f":"IFERROR(IF(Table_RetroSummary[[#This Row],[IsActive]],IFERROR(Table_RetroSummary[[#This Row],[Existing Fixture Wattage]]/1000*Table_RetroSummary[[#This Row],[OpHrs]]*Table_RetroSummary[[#This Row],[E. Qty]]*Table_RetroSummary[[#This Row],[Existing CSF]]*(-1),0),\"\"),\"\")","v":""},{"$f":"IFERROR(Table_RetroSummary[[#This Row],[Existing Fixture kWh]]+Table_RetroSummary[[#This Row],[Existing Fixture (Existing Controls) kWh]],\"\")","v":""},{"$f":"IFERROR(IF(Table_RetroSummary[[#This Row],[IsActive]],IF(ISNUMBER(MATCH(Table_POSTInfo[[#This Row],[Line]],Table_POSTInspection[Line],0)),INDEX(Table_POSTInspection[Fixture Description '[P']],MATCH(Table_RetroSummary[[#This Row],[Line Item]],Table_POSTInspection[Line],0)),Table_POSTInfo[[#This Row],[Fixture Description '[P']]]),\"\"),\"\")","v":""},{"$f":"IFERROR(IF(Table_RetroSummary[[#This Row],[IsActive]],IF(ISNUMBER(MATCH(Table_POSTInfo[[#This Row],[Line]],Table_POSTInspection[Line],0)),INDEX(Table_POSTInspection['# Lamps/ Fixture '[P']],MATCH(Table_RetroSummary[[#This Row],[Line Item]],Table_POSTInspection[Line],0)),Table_POSTInfo[[#This Row],['# Lamps/ Fixture '[P']]]),\"\"),\"\")","v":""},{"$f":"IFERROR(IF(Table_RetroSummary[[#This Row],[IsActive]],IF(ISNUMBER(MATCH(Table_POSTInfo[[#This Row],[Line]],Table_POSTInspection[Line],0)),INDEX(Table_POSTInspection[Fixture/ Lamp Wattage '[P']],MATCH(Table_RetroSummary[[#This Row],[Line Item]],Table_POSTInspection[Line],0)),Table_POSTInfo[[#This Row],[Fixture/ Lamp Wattage '[P']]]),\"\"),\"\")","v":""},{"$f":"IFERROR(IF(Table_RetroSummary[[#This Row],[IsActive]],IF(ISNUMBER(MATCH(Table_POSTInfo[[#This Row],[Line]],Table_POSTInspection[Line],0)),INDEX(Table_POSTInspection[Fixture Qty '[P']],MATCH(Table_RetroSummary[[#This Row],[Line Item]],Table_POSTInspection[Line],0)),Table_POSTInfo[[#This Row],[Fixture Qty '[P']]]),\"\"),\"\")","v":""},{"$f":"IFERROR(IF(Table_RetroSummary[[#This Row],[IsActive]],Table_RetroSummary[[#This Row],[Fixture/ Lamp Wattage '[P']]]*Table_RetroSummary[[#This Row],[P. Qty]],\"\"),\"\")","v":""},{"$f":"IFERROR(IF(Table_RetroSummary[[#This Row],[IsActive]],IF(ISNUMBER(MATCH(Table_POSTInfo[[#This Row],[Line]],Table_POSTInspection[Line],0)),INDEX(Table_POSTInspection[Fixture Wattage '[P']],MATCH(Table_RetroSummary[[#This Row],[Line Item]],Table_POSTInspection[Line],0)),Table_POSTInfo[[#This Row],[Fixture Wattage '[P']]]),\"\"),\"\")","v":""},{"$f":"IFERROR(Table_RetroSummary[[#This Row],[Total '# Lamps '[P']]]+Table_RetroSummary[[#This Row],[Proposed Fixture Wattage]],\"\")","v":""},{"$f":"IFERROR(Table_RetroSummary[[#This Row],[Proposed Fixture Wattage]]/1000*Table_RetroSummary[[#This Row],[OpHrs]]*Table_RetroSummary[[#This Row],[P. Qty]],\"\")","v":""},{"$f":"IFERROR(IF(Table_RetroSummary[[#This Row],[IsActive]],IFERROR(VLOOKUP(RIGHT(Table_RetroSummary[[#This Row],[Proposed Fixture]],LEN(Table_RetroSummary[[#This Row],[Proposed Fixture]])-FIND(\" - \",Table_RetroSummary[[#This Row],[Proposed Fixture]],FIND(\"]\",Table_RetroSummary[[#This Row],[Proposed Fixture]],1))-2),Table_ControlType[],3, FALSE),0),\"\"),\"\")","v":""},{"$f":"IFERROR(IF(Table_RetroSummary[[#This Row],[IsActive]],IFERROR(Table_RetroSummary[[#This Row],[Proposed Fixture Wattage]]/1000*Table_RetroSummary[[#This Row],[OpHrs]]*Table_RetroSummary[[#This Row],[P. Qty]]*Table_RetroSummary[[#This Row],[Existing CSF]]*(-1),0),\"\"),\"\")","v":""},{"$f":"IFERROR(Table_RetroSummary[[#This Row],[Proposed Fixture kWh]]+Table_RetroSummary[[#This Row],[Proposed Fixture (Existing Controls) kWh]],\"\")","v":""},{"$f":"IFERROR(IF(Table_RetroSummary[[#This Row],[IsActive]],IFERROR(Table_RetroSummary[[#This Row],[Proposed Fixture Wattage]]/1000*Table_RetroSummary[[#This Row],[OpHrs]]*Table_RetroSummary[[#This Row],[P. Qty]]*Table_RetroSummary[[#This Row],[Proposed CSF]]*(-1),0),\"\"),\"\")","v":""},{"$f":"IFERROR(Table_RetroSummary[[#This Row],[Proposed Fixture kWh]]+Table_RetroSummary[[#This Row],[Proposed Fixture (Proposed Controls) kWh]],\"\")","v":""},{"$f":"IFERROR(IF(Table_RetroSummary[[#This Row],[IsActive]],IF(ISNUMBER(MATCH(Table_POSTInfo[[#This Row],[Line]],Table_POSTInspection[Line],0)),INDEX(Table_POSTInspection[DLC or ES Certification '[P']],MATCH(Table_RetroSummary[[#This Row],[Line Item]],Table_POSTInspection[Line],0)),Table_POSTInfo[[#This Row],[DLC or ES Certification '[P']]]),\"\"),\"\")","v":""},null,{"$f":"IFERROR(IF(Table_RetroSummary[[#This Row],[IsActive]],\nIF(AND(RIGHT(Table_RetroSummary[[#This Row],[Existing Fixture]],LEN(Table_RetroSummary[[#This Row],[Existing Fixture]])-FIND(\":\",Table_RetroSummary[[#This Row],[Existing Fixture]],1)-1)<>Table_RetroSummary[[#This Row],[Proposed Fixture]],MID(Table_RetroSummary[[#This Row],[Existing Fixture]],FIND(\": \",Table_RetroSummary[[#This Row],[Existing Fixture]],1)+2,FIND(\"]\",Table_RetroSummary[[#This Row],[Existing Fixture]],1))=LEFT(Table_RetroSummary[[#This Row],[Proposed Fixture]],FIND(\"]\",Table_RetroSummary[[#This Row],[Proposed Fixture]],1))),\n  \"Controls Only\",\n  IF(Table_POSTInfo[[#This Row],[DLC or ES Certification '[P']]]<>\"\",\n    IF(ISNUMBER(FIND(\"LED Tube\",Table_RetroSummary[[#This Row],[Proposed Fixture]],1)),\n      \"LED Re-Lamp\",\n      IF(AND(Table_RetroSummary[[#This Row],[Existing Overall kWh]]>Table_RetroSummary[[#This Row],[Proposed Overall kWh (Existing Controls)]],ISNUMBER(FIND(\"LED\",Table_RetroSummary[[#This Row],[Proposed Fixture]],1))),\n        IF(Table_POSTInfo[[#This Row],[Interior/ Exterior]]=\"Exterior\",\n          \"Exterior LED Fixture\",\n          \"Interior LED Fixture\"),\n        \"Ineligible Fixture\")),\n    \"Ineligible Fixture\")),\n\"\"),\"\")","v":""},{"$f":"IFERROR(VLOOKUP(Table_RetroSummary[[#This Row],[Fixture Measure Description]],Table_FixtureRate[],2,FALSE),\"\")","v":""},{"$f":"IFERROR(IF(Table_RetroSummary[[#This Row],[IsActive]],IF(Table_RetroSummary[[#This Row],[Fixture Measure Description]]=\"Ineligible Fixture\",0,ROUND(Table_RetroSummary[[#This Row],[Fixture Rebate (per kW)]]*(Table_RetroSummary[[#This Row],[Existing Fixture Wattage]]*Table_RetroSummary[[#This Row],[E. Qty]]-Table_RetroSummary[[#This Row],[Proposed Fixture Wattage]]*Table_RetroSummary[[#This Row],[P. Qty]])/1000,2)),\"\"),\"\")","v":""},{"$f":"IFERROR(IF(Table_RetroSummary[[#This Row],[Fixture Measure Description]]=\"Ineligible Fixture\",0,ROUND(IF(ProjectCost_Total=0,300000,ProjectCost_Total)*Table_RetroSummary[[#This Row],[Fixture Rebate]]/SUM(Table_RetroSummary[Fixture Rebate],Table_RetroSummary[Controls Rebate]),2)),\"\")","v":""},{"$f":"IFERROR(IF(Table_RetroSummary[[#This Row],[IsActive]],IF(Table_RetroSummary[[#This Row],[Fixture Measure Description]]=\"Ineligible Fixture\",0,Table_RetroSummary[[#This Row],[Existing Overall kWh]]-Table_RetroSummary[[#This Row],[Proposed Overall kWh (Existing Controls)]]),\"\"),\"\")","v":""},{"$f":"IFERROR(IF(Table_RetroSummary[[#This Row],[IsActive]],IF(Table_RetroSummary[[#This Row],[Fixture Measure Description]]=\"Ineligible Fixture\",0,(Table_RetroSummary[[#This Row],[Existing Fixture kWh]]-Table_RetroSummary[[#This Row],[Proposed Fixture kWh]])/Table_RetroSummary[[#This Row],[OpHrs]]*Table_RetroSummary[[#This Row],[CF (Ltg)]]*Table_RetroSummary[[#This Row],[DF (Ltg)]]),\"\"),\"\")","v":""},null,{"$f":"IFERROR(\n  IF(OR(Table_RetroSummary[[#This Row],[Fixture Measure Description]]=\"\",Table_RetroSummary[[#This Row],[Fixture Measure Description]]=\"Ineligible Fixture\"),\n    \"\",\n    IFERROR(VLOOKUP(RIGHT(Table_RetroSummary[[#This Row],[Existing Fixture]],LEN(Table_RetroSummary[[#This Row],[Existing Fixture]])-FIND(\" - \",Table_RetroSummary[[#This Row],[Existing Fixture]],FIND(\"]\",Table_RetroSummary[[#This Row],[Existing Fixture]],1))-2),Table_ControlType[],2,FALSE),\"None\")\n    & \" - \" &\n    IFERROR(VLOOKUP(RIGHT(Table_RetroSummary[[#This Row],[Proposed Fixture]],LEN(Table_RetroSummary[[#This Row],[Proposed Fixture]])-FIND(\" - \",Table_RetroSummary[[#This Row],[Proposed Fixture]],FIND(\"]\",Table_RetroSummary[[#This Row],[Proposed Fixture]],1))-2),Table_ControlType[],2, FALSE),None)),\n\"\")","v":""},{"$f":"IFERROR(VLOOKUP(Table_RetroSummary[[#This Row],[Controls Measure Description]],Table_ControlRate[],2,FALSE),\"\")","v":""},{"$f":"IFERROR(IF(Table_RetroSummary[[#This Row],[IsActive]],IF(Table_RetroSummary[[#This Row],[Controls Measure Description]]=\"\",0,ROUND(Table_RetroSummary[[#This Row],[Controls Rebate (per Fixt Watt)]]*Table_RetroSummary[[#This Row],[Proposed Fixture Wattage]]*Table_RetroSummary[[#This Row],[P. Qty]],2)),\"\"),\"\")","v":""},{"$f":"IFERROR(IF(Table_RetroSummary[[#This Row],[Fixture Measure Description]]=\"Ineligible Fixture\",0,ROUND(IF(ProjectCost_Total=0,300000,ProjectCost_Total)*Table_RetroSummary[[#This Row],[Controls Rebate]]/SUM(Table_RetroSummary[Fixture Rebate],Table_RetroSummary[Controls Rebate]),2)),\"\")","v":""},{"$f":"IFERROR(IF(Table_RetroSummary[[#This Row],[IsActive]],IF(Table_RetroSummary[[#This Row],[Controls Measure Description]]=\"\",0,(Table_RetroSummary[[#This Row],[Proposed Fixture (Existing Controls) kWh]]-Table_RetroSummary[[#This Row],[Proposed Fixture (Proposed Controls) kWh]])),\"\"),\"\")","v":""},{"$f":"IFERROR(IF(Table_RetroSummary[[#This Row],[IsActive]],IF(Table_RetroSummary[[#This Row],[Controls Measure Description]]=\"\",0,(Table_RetroSummary[[#This Row],[Proposed Fixture (Existing Controls) kWh]]-Table_RetroSummary[[#This Row],[Proposed Fixture (Proposed Controls) kWh]])/Table_RetroSummary[[#This Row],[OpHrs]]*Table_RetroSummary[[#This Row],[CF (Ltg)]]*Table_RetroSummary[[#This Row],[DF (Ltg)]]),\"\"),\"\")","v":""},null,{"$f":"IFERROR(IF(NOT(ISNUMBER(Table_RetroSummary[[#This Row],[Fixture Rebate]])),\"\",IF(MIN(IF(SUM(Table_RetroSummary[Fixture Cost],Table_RetroSummary[Controls Cost])<0,0,SUM(Table_RetroSummary[Fixture Cost],Table_RetroSummary[Controls Cost])),SUM(Table_RetroSummary[Fixture Rebate],Table_RetroSummary[Controls Rebate]))>300000,300000/MIN(IF(SUM(Table_RetroSummary[Fixture Cost],Table_RetroSummary[Controls Cost])<0,0,SUM(Table_RetroSummary[Fixture Cost],Table_RetroSummary[Controls Cost])),SUM(Table_RetroSummary[Fixture Rebate],Table_RetroSummary[Controls Rebate]))*MIN(IF(SUM(Table_RetroSummary[Fixture Cost],Table_RetroSummary[Controls Cost])<0,0,SUM(Table_RetroSummary[Fixture Cost],Table_RetroSummary[Controls Cost])),Table_RetroSummary[[#This Row],[Fixture Rebate]]+IF(Table_RetroSummary[[#This Row],[Controls Rebate]]=\"\",0,Table_RetroSummary[[#This Row],[Controls Rebate]])),MIN(IF(SUM(Table_RetroSummary[Fixture Cost],Table_RetroSummary[Controls Cost])<0,0,SUM(Table_RetroSummary[Fixture Cost],Table_RetroSummary[Controls Cost])),Table_RetroSummary[[#This Row],[Fixture Rebate]]+IF(Table_RetroSummary[[#This Row],[Controls Rebate]]=\"\",0,Table_RetroSummary[[#This Row],[Controls Rebate]])))),\"\")","v":""},{"$f":"IFERROR(IF(Table_RetroSummary[[#This Row],[Fixture Cost]]=\"\",\"\",Table_RetroSummary[[#This Row],[Fixture Cost]]+IF(Table_RetroSummary[[#This Row],[Controls Cost]]=\"\",0,Table_RetroSummary[[#This Row],[Controls Cost]])),\"\")","v":""},{"$f":"IFERROR(IF(Table_RetroSummary[[#This Row],[IsActive]],IF(Table_POSTInfo[[#This Row],[Interior/ Exterior]]=\"Interior\",IFERROR((Table_RetroSummary[[#This Row],[Annual Fixture Savings (kWh)]]+Table_RetroSummary[[#This Row],[Annual Control Savings (kWh)]])*(Table_RetroSummary[[#This Row],[EIF]]-1),0),0),\"\"),\"\")","v":""},{"$f":"IFERROR(IF(Table_RetroSummary[[#This Row],[IsActive]],IF(Table_POSTInfo[[#This Row],[Interior/ Exterior]]=\"Interior\",IFERROR((Table_RetroSummary[[#This Row],[Fixture kW Reduction]]+Table_RetroSummary[[#This Row],[Control kW Reduction]]/(Table_RetroSummary[[#This Row],[CF (Ltg)]]*Table_RetroSummary[[#This Row],[DF (Ltg)]]))*(Table_RetroSummary[[#This Row],[DIF]]-1)*Table_RetroSummary[[#This Row],[CF (HVAC)]]*Table_RetroSummary[[#This Row],[DF (HVAC)]],0),0),\"\"),\"\")","v":""},{"$f":"IFERROR(IF(Table_RetroSummary[[#This Row],[IsActive]],IF(NOT(ISNUMBER(Table_RetroSummary[[#This Row],[Fixture Rebate]])),\"\",ROUND(Table_RetroSummary[[#This Row],[Annual Fixture Savings (kWh)]]+Table_RetroSummary[[#This Row],[Annual Control Savings (kWh)]],0)),\"\"),\"\")","v":""},{"$f":"IFERROR(IF(Table_RetroSummary[[#This Row],[IsActive]],IF(NOT(ISNUMBER(Table_RetroSummary[[#This Row],[Fixture Rebate]])),\"\",ROUND(Table_RetroSummary[[#This Row],[Fixture kW Reduction]]+Table_RetroSummary[[#This Row],[Control kW Reduction]],3)),\"\"),\"\")","v":""},{"$f":"IFERROR(IF(Table_RetroSummary[[#This Row],[IsActive]],IF(NOT(ISNUMBER(Table_RetroSummary[[#This Row],[Fixture Rebate]])),\"\",ROUND(Table_RetroSummary[[#This Row],[Fixture Energy Savings (kWh)]]+Table_RetroSummary[[#This Row],[Induced HVAC Energy Savings (kWh)]],0)),\"\"),\"\")","v":""},{"$f":"IFERROR(IF(Table_RetroSummary[[#This Row],[IsActive]],IF(NOT(ISNUMBER(Table_RetroSummary[[#This Row],[Fixture Rebate]])),\"\",ROUND(Table_RetroSummary[[#This Row],[Fixture Demand Savings (kW)]]+Table_RetroSummary[[#This Row],[Induced HVAC Demand Savings (kW)]],3)),\"\"),\"\")","v":""}]
[{"$f":"IFERROR(Table_POSTInfo[[#This Row],[Line]],\"\")","v":12},{"$f":"IFERROR(Table_POSTInfo[[#This Row],[IsActive]],\"\")","v":false},{"$f":"IFERROR(IF(Table_RetroSummary[[#This Row],[IsActive]],CONCATENATE(Table_RetroSummary[[#This Row],[Existing Fixture]],\" | \",Table_RetroSummary[[#This Row],[Proposed Fixture]]),\"\"),\"\")","v":""},{"$f":"IFERROR(IF(Table_RetroSummary[[#This Row],[IsActive]],VLOOKUP(IF(ISNUMBER(MATCH(Table_POSTInfo[[#This Row],[Line]],Table_POSTInspection[Line],0)),INDEX(Table_POSTInspection[Schedule],MATCH(Table_RetroSummary[[#This Row],[Line Item]],Table_POSTInspection[Line],0)),Table_POSTInfo[[#This Row],[Schedule]]),'Customer Information'!$S$27:$T$34,2,FALSE),\"\"),\"\")","v":""},{"$f":"IFERROR(IF(Table_RetroSummary[[#This Row],[IsActive]],IF(IF(ISNUMBER(MATCH(Table_RetroSummary[[#This Row],[Line Item]],Table_POSTInspection[Line],0)),INDEX(Table_POSTInspection[Interior/ Exterior],MATCH(Table_RetroSummary[[#This Row],[Line Item]],Table_POSTInfo[[#This Row],[Line]],0)),Table_POSTInfo[[#This Row],[Interior/ Exterior]])=\"Interior\",'Customer Information'!$S$25,0),\"\"),\"\")","v":""},{"$f":"IFERROR(IF(Table_RetroSummary[[#This Row],[IsActive]],IF(IF(ISNUMBER(MATCH(Table_RetroSummary[[#This Row],[Line Item]],Table_POSTInspection[Line],0)),INDEX(Table_POSTInspection[Interior/ Exterior],MATCH(Table_RetroSummary[[#This Row],[Line Item]],Table_POSTInfo[[#This Row],[Line]],0)),Table_POSTInfo[[#This Row],[Interior/ Exterior]])=\"Interior\",'Customer Information'!$T$25,0),\"\"),\"\")","v":""},{"$f":"IFERROR(IF(Table_RetroSummary[[#This Row],[IsActive]],IF(IF(ISNUMBER(MATCH(Table_RetroSummary[[#This Row],[Line Item]],Table_POSTInspection[Line],0)),INDEX(Table_POSTInspection[Interior/ Exterior],MATCH(Table_RetroSummary[[#This Row],[Line Item]],Table_POSTInfo[[#This Row],[Line]],0)),Table_POSTInfo[[#This Row],[Interior/ Exterior]])=\"Interior\",'Customer Information'!$U$25,0),\"\"),\"\")","v":""},{"$f":"IFERROR(IF(Table_RetroSummary[[#This Row],[IsActive]],IF(IF(ISNUMBER(MATCH(Table_RetroSummary[[#This Row],[Line Item]],Table_POSTInspection[Line],0)),INDEX(Table_POSTInspection[Interior/ Exterior],MATCH(Table_RetroSummary[[#This Row],[Line Item]],Table_POSTInfo[[#This Row],[Line]],0)),Table_POSTInfo[[#This Row],[Interior/ Exterior]])=\"Interior\",'Customer Information'!$V$25,0),\"\"),\"\")","v":""},{"$f":"IFERROR(IF(Table_RetroSummary[[#This Row],[IsActive]],IF(IF(ISNUMBER(MATCH(Table_RetroSummary[[#This Row],[Line Item]],Table_POSTInspection[Line],0)),INDEX(Table_POSTInspection[Interior/ Exterior],MATCH(Table_RetroSummary[[#This Row],[Line Item]],Table_POSTInfo[[#This Row],[Line]],0)),Table_POSTInfo[[#This Row],[Interior/ Exterior]])=\"Interior\",'Customer Information'!$W$25,0),\"\"),\"\")","v":""},{"$f":"IFERROR(IF(Table_RetroSummary[[#This Row],[IsActive]],IF(IF(ISNUMBER(MATCH(Table_RetroSummary[[#This Row],[Line Item]],Table_POSTInspection[Line],0)),INDEX(Table_POSTInspection[Interior/ Exterior],MATCH(Table_RetroSummary[[#This Row],[Line Item]],Table_POSTInfo[[#This Row],[Line]],0)),Table_POSTInfo[[#This Row],[Interior/ Exterior]])=\"Interior\",'Customer Information'!$X$25,0),\"\"),\"\")","v":""},{"$f":"IFERROR(IF(Table_RetroSummary[[#This Row],[IsActive]],\nCONCATENATE(\nIF(ISNUMBER(MATCH(Table_POSTInfo[[#This Row],[Line]],Table_POSTInspection[Line],0)),INDEX(Table_POSTInspection[Interior/ Exterior],MATCH(Table_RetroSummary[[#This Row],[Line Item]],Table_POSTInspection[Line],0)),Table_POSTInfo[[#This Row],[Interior/ Exterior]]),\n\" - \",\nIF(ISNUMBER(MATCH(Table_POSTInfo[[#This Row],[Line]],Table_POSTInspection[Line],0)),INDEX(Table_POSTInspection[Space Description],MATCH(Table_RetroSummary[[#This Row],[Line Item]],Table_POSTInspection[Line],0)),Table_POSTInfo[[#This Row],[Space Description]])),\n \"\"),\"\")","v":""},{"$f":"IFERROR(IF(Table_RetroSummary[[#This Row],[IsActive]]=\"\",\"\",Table_POSTInfo[[#This Row],[Fixture Description '[E']]]),\"\")","v":""},{"$f":"IFERROR(IF(Table_RetroSummary[[#This Row],[IsActive]]=\"\",\"\",Table_POSTInfo[[#This Row],['# Lamps/ Fixture '[E']]]),\"\")","v":""},{"$f":"IFERROR(IF(Table_RetroSummary[[#This Row],[IsActive]]=\"\",\"\",Table_POSTInfo[[#This Row],[Fixture/ Lamp Wattage '[E']]]),\"\")","v":""},{"$f":"IFERROR(IF(Table_RetroSummary[[#This Row],[IsActive]]=\"\",\"\",Table_POSTInfo[[#This Row],[Fixture Qty '[E']]]),\"\")","v":""},{"$f":"IFERROR(IF(Table_RetroSummary[[#This Row],[IsActive]],Table_RetroSummary[[#This Row],[Fixture/ Lamp Wattage '[E']]]*Table_RetroSummary[[#This Row],[E. Qty]],\"\"),\"\")","v":""},{"$f":"IFERROR(IF(Table_RetroSummary[[#This Row],[IsActive]]=\"\",\"\",Table_POSTInfo[[#This Row],[Fixture Wattage '[E']]]),\"\")","v":""},{"$f":"IFERROR(IF(Table_RetroSummary[[#This Row],[IsActive]],IFERROR(Table_RetroSummary[[#This Row],[Existing Fixture Wattage]]/1000*Table_RetroSummary[[#This Row],[OpHrs]]*Table_RetroSummary[[#This Row],[E. Qty]],0),\"\"),\"\")","v":""},{"$f":"IFERROR(IF(Table_RetroSummary[[#This Row],[IsActive]],IFERROR(VLOOKUP(RIGHT(Table_RetroSummary[[#This Row],[Existing Fixture]],LEN(Table_RetroSummary[[#This Row],[Existing Fixture]])-FIND(\" - \",Table_RetroSummary[[#This Row],[Existing Fixture]],FIND(\"]\",Table_RetroSummary[[#This Row],[Existing Fixture]],1))-2),Table_ControlType[],3,FALSE),0),\"\"),\"\")","v":""},{"$f":"IFERROR(IF(Table_RetroSummary[[#This Row],[IsActive]],IFERROR(Table_RetroSummary[[#This Row],[Existing Fixture Wattage]]/1000*Table_RetroSummary[[#This Row],[OpHrs]]*Table_RetroSummary[[#This Row],[E. Qty]]*Table_RetroSummary[[#This Row],[Existing CSF]]*(-1),0),\"\"),\"\")","v":""},{"$f":"IFERROR(Table_RetroSummary[[#This Row],[Existing Fixture kWh]]+Table_RetroSummary[[#This Row],[Existing Fixture (Existing Controls) kWh]],\"\")","v":""},{"$f":"IFERROR(IF(Table_RetroSummary[[#This Row],[IsActive]],IF(ISNUMBER(MATCH(Table_POSTInfo[[#This Row],[Line]],Table_POSTInspection[Line],0)),INDEX(Table_POSTInspection[Fixture Description '[P']],MATCH(Table_RetroSummary[[#This Row],[Line Item]],Table_POSTInspection[Line],0)),Table_POSTInfo[[#This Row],[Fixture Description '[P']]]),\"\"),\"\")","v":""},{"$f":"IFERROR(IF(Table_RetroSummary[[#This Row],[IsActive]],IF(ISNUMBER(MATCH(Table_POSTInfo[[#This Row],[Line]],Table_POSTInspection[Line],0)),INDEX(Table_POSTInspection['# Lamps/ Fixture '[P']],MATCH(Table_RetroSummary[[#This Row],[Line Item]],Table_POSTInspection[Line],0)),Table_POSTInfo[[#This Row],['# Lamps/ Fixture '[P']]]),\"\"),\"\")","v":""},{"$f":"IFERROR(IF(Table_RetroSummary[[#This Row],[IsActive]],IF(ISNUMBER(MATCH(Table_POSTInfo[[#This Row],[Line]],Table_POSTInspection[Line],0)),INDEX(Table_POSTInspection[Fixture/ Lamp Wattage '[P']],MATCH(Table_RetroSummary[[#This Row],[Line Item]],Table_POSTInspection[Line],0)),Table_POSTInfo[[#This Row],[Fixture/ Lamp Wattage '[P']]]),\"\"),\"\")","v":""},{"$f":"IFERROR(IF(Table_RetroSummary[[#This Row],[IsActive]],IF(ISNUMBER(MATCH(Table_POSTInfo[[#This Row],[Line]],Table_POSTInspection[Line],0)),INDEX(Table_POSTInspection[Fixture Qty '[P']],MATCH(Table_RetroSummary[[#This Row],[Line Item]],Table_POSTInspection[Line],0)),Table_POSTInfo[[#This Row],[Fixture Qty '[P']]]),\"\"),\"\")","v":""},{"$f":"IFERROR(IF(Table_RetroSummary[[#This Row],[IsActive]],Table_RetroSummary[[#This Row],[Fixture/ Lamp Wattage '[P']]]*Table_RetroSummary[[#This Row],[P. Qty]],\"\"),\"\")","v":""},{"$f":"IFERROR(IF(Table_RetroSummary[[#This Row],[IsActive]],IF(ISNUMBER(MATCH(Table_POSTInfo[[#This Row],[Line]],Table_POSTInspection[Line],0)),INDEX(Table_POSTInspection[Fixture Wattage '[P']],MATCH(Table_RetroSummary[[#This Row],[Line Item]],Table_POSTInspection[Line],0)),Table_POSTInfo[[#This Row],[Fixture Wattage '[P']]]),\"\"),\"\")","v":""},{"$f":"IFERROR(Table_RetroSummary[[#This Row],[Total '# Lamps '[P']]]+Table_RetroSummary[[#This Row],[Proposed Fixture Wattage]],\"\")","v":""},{"$f":"IFERROR(Table_RetroSummary[[#This Row],[Proposed Fixture Wattage]]/1000*Table_RetroSummary[[#This Row],[OpHrs]]*Table_RetroSummary[[#This Row],[P. Qty]],\"\")","v":""},{"$f":"IFERROR(IF(Table_RetroSummary[[#This Row],[IsActive]],IFERROR(VLOOKUP(RIGHT(Table_RetroSummary[[#This Row],[Proposed Fixture]],LEN(Table_RetroSummary[[#This Row],[Proposed Fixture]])-FIND(\" - \",Table_RetroSummary[[#This Row],[Proposed Fixture]],FIND(\"]\",Table_RetroSummary[[#This Row],[Proposed Fixture]],1))-2),Table_ControlType[],3, FALSE),0),\"\"),\"\")","v":""},{"$f":"IFERROR(IF(Table_RetroSummary[[#This Row],[IsActive]],IFERROR(Table_RetroSummary[[#This Row],[Proposed Fixture Wattage]]/1000*Table_RetroSummary[[#This Row],[OpHrs]]*Table_RetroSummary[[#This Row],[P. Qty]]*Table_RetroSummary[[#This Row],[Existing CSF]]*(-1),0),\"\"),\"\")","v":""},{"$f":"IFERROR(Table_RetroSummary[[#This Row],[Proposed Fixture kWh]]+Table_RetroSummary[[#This Row],[Proposed Fixture (Existing Controls) kWh]],\"\")","v":""},{"$f":"IFERROR(IF(Table_RetroSummary[[#This Row],[IsActive]],IFERROR(Table_RetroSummary[[#This Row],[Proposed Fixture Wattage]]/1000*Table_RetroSummary[[#This Row],[OpHrs]]*Table_RetroSummary[[#This Row],[P. Qty]]*Table_RetroSummary[[#This Row],[Proposed CSF]]*(-1),0),\"\"),\"\")","v":""},{"$f":"IFERROR(Table_RetroSummary[[#This Row],[Proposed Fixture kWh]]+Table_RetroSummary[[#This Row],[Proposed Fixture (Proposed Controls) kWh]],\"\")","v":""},{"$f":"IFERROR(IF(Table_RetroSummary[[#This Row],[IsActive]],IF(ISNUMBER(MATCH(Table_POSTInfo[[#This Row],[Line]],Table_POSTInspection[Line],0)),INDEX(Table_POSTInspection[DLC or ES Certification '[P']],MATCH(Table_RetroSummary[[#This Row],[Line Item]],Table_POSTInspection[Line],0)),Table_POSTInfo[[#This Row],[DLC or ES Certification '[P']]]),\"\"),\"\")","v":""},null,{"$f":"IFERROR(IF(Table_RetroSummary[[#This Row],[IsActive]],\nIF(AND(RIGHT(Table_RetroSummary[[#This Row],[Existing Fixture]],LEN(Table_RetroSummary[[#This Row],[Existing Fixture]])-FIND(\":\",Table_RetroSummary[[#This Row],[Existing Fixture]],1)-1)<>Table_RetroSummary[[#This Row],[Proposed Fixture]],MID(Table_RetroSummary[[#This Row],[Existing Fixture]],FIND(\": \",Table_RetroSummary[[#This Row],[Existing Fixture]],1)+2,FIND(\"]\",Table_RetroSummary[[#This Row],[Existing Fixture]],1))=LEFT(Table_RetroSummary[[#This Row],[Proposed Fixture]],FIND(\"]\",Table_RetroSummary[[#This Row],[Proposed Fixture]],1))),\n  \"Controls Only\",\n  IF(Table_POSTInfo[[#This Row],[DLC or ES Certification '[P']]]<>\"\",\n    IF(ISNUMBER(FIND(\"LED Tube\",Table_RetroSummary[[#This Row],[Proposed Fixture]],1)),\n      \"LED Re-Lamp\",\n      IF(AND(Table_RetroSummary[[#This Row],[Existing Overall kWh]]>Table_RetroSummary[[#This Row],[Proposed Overall kWh (Existing Controls)]],ISNUMBER(FIND(\"LED\",Table_RetroSummary[[#This Row],[Proposed Fixture]],1))),\n        IF(Table_POSTInfo[[#This Row],[Interior/ Exterior]]=\"Exterior\",\n          \"Exterior LED Fixture\",\n          \"Interior LED Fixture\"),\n        \"Ineligible Fixture\")),\n    \"Ineligible Fixture\")),\n\"\"),\"\")","v":""},{"$f":"IFERROR(VLOOKUP(Table_RetroSummary[[#This Row],[Fixture Measure Description]],Table_FixtureRate[],2,FALSE),\"\")","v":""},{"$f":"IFERROR(IF(Table_RetroSummary[[#This Row],[IsActive]],IF(Table_RetroSummary[[#This Row],[Fixture Measure Description]]=\"Ineligible Fixture\",0,ROUND(Table_RetroSummary[[#This Row],[Fixture Rebate (per kW)]]*(Table_RetroSummary[[#This Row],[Existing Fixture Wattage]]*Table_RetroSummary[[#This Row],[E. Qty]]-Table_RetroSummary[[#This Row],[Proposed Fixture Wattage]]*Table_RetroSummary[[#This Row],[P. Qty]])/1000,2)),\"\"),\"\")","v":""},{"$f":"IFERROR(IF(Table_RetroSummary[[#This Row],[Fixture Measure Description]]=\"Ineligible Fixture\",0,ROUND(IF(ProjectCost_Total=0,300000,ProjectCost_Total)*Table_RetroSummary[[#This Row],[Fixture Rebate]]/SUM(Table_RetroSummary[Fixture Rebate],Table_RetroSummary[Controls Rebate]),2)),\"\")","v":""},{"$f":"IFERROR(IF(Table_RetroSummary[[#This Row],[IsActive]],IF(Table_RetroSummary[[#This Row],[Fixture Measure Description]]=\"Ineligible Fixture\",0,Table_RetroSummary[[#This Row],[Existing Overall kWh]]-Table_RetroSummary[[#This Row],[Proposed Overall kWh (Existing Controls)]]),\"\"),\"\")","v":""},{"$f":"IFERROR(IF(Table_RetroSummary[[#This Row],[IsActive]],IF(Table_RetroSummary[[#This Row],[Fixture Measure Description]]=\"Ineligible Fixture\",0,(Table_RetroSummary[[#This Row],[Existing Fixture kWh]]-Table_RetroSummary[[#This Row],[Proposed Fixture kWh]])/Table_RetroSummary[[#This Row],[OpHrs]]*Table_RetroSummary[[#This Row],[CF (Ltg)]]*Table_RetroSummary[[#This Row],[DF (Ltg)]]),\"\"),\"\")","v":""},null,{"$f":"IFERROR(\n  IF(OR(Table_RetroSummary[[#This Row],[Fixture Measure Description]]=\"\",Table_RetroSummary[[#This Row],[Fixture Measure Description]]=\"Ineligible Fixture\"),\n    \"\",\n    IFERROR(VLOOKUP(RIGHT(Table_RetroSummary[[#This Row],[Existing Fixture]],LEN(Table_RetroSummary[[#This Row],[Existing Fixture]])-FIND(\" - \",Table_RetroSummary[[#This Row],[Existing Fixture]],FIND(\"]\",Table_RetroSummary[[#This Row],[Existing Fixture]],1))-2),Table_ControlType[],2,FALSE),\"None\")\n    & \" - \" &\n    IFERROR(VLOOKUP(RIGHT(Table_RetroSummary[[#This Row],[Proposed Fixture]],LEN(Table_RetroSummary[[#This Row],[Proposed Fixture]])-FIND(\" - \",Table_RetroSummary[[#This Row],[Proposed Fixture]],FIND(\"]\",Table_RetroSummary[[#This Row],[Proposed Fixture]],1))-2),Table_ControlType[],2, FALSE),None)),\n\"\")","v":""},{"$f":"IFERROR(VLOOKUP(Table_RetroSummary[[#This Row],[Controls Measure Description]],Table_ControlRate[],2,FALSE),\"\")","v":""},{"$f":"IFERROR(IF(Table_RetroSummary[[#This Row],[IsActive]],IF(Table_RetroSummary[[#This Row],[Controls Measure Description]]=\"\",0,ROUND(Table_RetroSummary[[#This Row],[Controls Rebate (per Fixt Watt)]]*Table_RetroSummary[[#This Row],[Proposed Fixture Wattage]]*Table_RetroSummary[[#This Row],[P. Qty]],2)),\"\"),\"\")","v":""},{"$f":"IFERROR(IF(Table_RetroSummary[[#This Row],[Fixture Measure Description]]=\"Ineligible Fixture\",0,ROUND(IF(ProjectCost_Total=0,300000,ProjectCost_Total)*Table_RetroSummary[[#This Row],[Controls Rebate]]/SUM(Table_RetroSummary[Fixture Rebate],Table_RetroSummary[Controls Rebate]),2)),\"\")","v":""},{"$f":"IFERROR(IF(Table_RetroSummary[[#This Row],[IsActive]],IF(Table_RetroSummary[[#This Row],[Controls Measure Description]]=\"\",0,(Table_RetroSummary[[#This Row],[Proposed Fixture (Existing Controls) kWh]]-Table_RetroSummary[[#This Row],[Proposed Fixture (Proposed Controls) kWh]])),\"\"),\"\")","v":""},{"$f":"IFERROR(IF(Table_RetroSummary[[#This Row],[IsActive]],IF(Table_RetroSummary[[#This Row],[Controls Measure Description]]=\"\",0,(Table_RetroSummary[[#This Row],[Proposed Fixture (Existing Controls) kWh]]-Table_RetroSummary[[#This Row],[Proposed Fixture (Proposed Controls) kWh]])/Table_RetroSummary[[#This Row],[OpHrs]]*Table_RetroSummary[[#This Row],[CF (Ltg)]]*Table_RetroSummary[[#This Row],[DF (Ltg)]]),\"\"),\"\")","v":""},null,{"$f":"IFERROR(IF(NOT(ISNUMBER(Table_RetroSummary[[#This Row],[Fixture Rebate]])),\"\",IF(MIN(IF(SUM(Table_RetroSummary[Fixture Cost],Table_RetroSummary[Controls Cost])<0,0,SUM(Table_RetroSummary[Fixture Cost],Table_RetroSummary[Controls Cost])),SUM(Table_RetroSummary[Fixture Rebate],Table_RetroSummary[Controls Rebate]))>300000,300000/MIN(IF(SUM(Table_RetroSummary[Fixture Cost],Table_RetroSummary[Controls Cost])<0,0,SUM(Table_RetroSummary[Fixture Cost],Table_RetroSummary[Controls Cost])),SUM(Table_RetroSummary[Fixture Rebate],Table_RetroSummary[Controls Rebate]))*MIN(IF(SUM(Table_RetroSummary[Fixture Cost],Table_RetroSummary[Controls Cost])<0,0,SUM(Table_RetroSummary[Fixture Cost],Table_RetroSummary[Controls Cost])),Table_RetroSummary[[#This Row],[Fixture Rebate]]+IF(Table_RetroSummary[[#This Row],[Controls Rebate]]=\"\",0,Table_RetroSummary[[#This Row],[Controls Rebate]])),MIN(IF(SUM(Table_RetroSummary[Fixture Cost],Table_RetroSummary[Controls Cost])<0,0,SUM(Table_RetroSummary[Fixture Cost],Table_RetroSummary[Controls Cost])),Table_RetroSummary[[#This Row],[Fixture Rebate]]+IF(Table_RetroSummary[[#This Row],[Controls Rebate]]=\"\",0,Table_RetroSummary[[#This Row],[Controls Rebate]])))),\"\")","v":""},{"$f":"IFERROR(IF(Table_RetroSummary[[#This Row],[Fixture Cost]]=\"\",\"\",Table_RetroSummary[[#This Row],[Fixture Cost]]+IF(Table_RetroSummary[[#This Row],[Controls Cost]]=\"\",0,Table_RetroSummary[[#This Row],[Controls Cost]])),\"\")","v":""},{"$f":"IFERROR(IF(Table_RetroSummary[[#This Row],[IsActive]],IF(Table_POSTInfo[[#This Row],[Interior/ Exterior]]=\"Interior\",IFERROR((Table_RetroSummary[[#This Row],[Annual Fixture Savings (kWh)]]+Table_RetroSummary[[#This Row],[Annual Control Savings (kWh)]])*(Table_RetroSummary[[#This Row],[EIF]]-1),0),0),\"\"),\"\")","v":""},{"$f":"IFERROR(IF(Table_RetroSummary[[#This Row],[IsActive]],IF(Table_POSTInfo[[#This Row],[Interior/ Exterior]]=\"Interior\",IFERROR((Table_RetroSummary[[#This Row],[Fixture kW Reduction]]+Table_RetroSummary[[#This Row],[Control kW Reduction]]/(Table_RetroSummary[[#This Row],[CF (Ltg)]]*Table_RetroSummary[[#This Row],[DF (Ltg)]]))*(Table_RetroSummary[[#This Row],[DIF]]-1)*Table_RetroSummary[[#This Row],[CF (HVAC)]]*Table_RetroSummary[[#This Row],[DF (HVAC)]],0),0),\"\"),\"\")","v":""},{"$f":"IFERROR(IF(Table_RetroSummary[[#This Row],[IsActive]],IF(NOT(ISNUMBER(Table_RetroSummary[[#This Row],[Fixture Rebate]])),\"\",ROUND(Table_RetroSummary[[#This Row],[Annual Fixture Savings (kWh)]]+Table_RetroSummary[[#This Row],[Annual Control Savings (kWh)]],0)),\"\"),\"\")","v":""},{"$f":"IFERROR(IF(Table_RetroSummary[[#This Row],[IsActive]],IF(NOT(ISNUMBER(Table_RetroSummary[[#This Row],[Fixture Rebate]])),\"\",ROUND(Table_RetroSummary[[#This Row],[Fixture kW Reduction]]+Table_RetroSummary[[#This Row],[Control kW Reduction]],3)),\"\"),\"\")","v":""},{"$f":"IFERROR(IF(Table_RetroSummary[[#This Row],[IsActive]],IF(NOT(ISNUMBER(Table_RetroSummary[[#This Row],[Fixture Rebate]])),\"\",ROUND(Table_RetroSummary[[#This Row],[Fixture Energy Savings (kWh)]]+Table_RetroSummary[[#This Row],[Induced HVAC Energy Savings (kWh)]],0)),\"\"),\"\")","v":""},{"$f":"IFERROR(IF(Table_RetroSummary[[#This Row],[IsActive]],IF(NOT(ISNUMBER(Table_RetroSummary[[#This Row],[Fixture Rebate]])),\"\",ROUND(Table_RetroSummary[[#This Row],[Fixture Demand Savings (kW)]]+Table_RetroSummary[[#This Row],[Induced HVAC Demand Savings (kW)]],3)),\"\"),\"\")","v":""}]
[{"$f":"IFERROR(Table_POSTInfo[[#This Row],[Line]],\"\")","v":13},{"$f":"IFERROR(Table_POSTInfo[[#This Row],[IsActive]],\"\")","v":false},{"$f":"IFERROR(IF(Table_RetroSummary[[#This Row],[IsActive]],CONCATENATE(Table_RetroSummary[[#This Row],[Existing Fixture]],\" | \",Table_RetroSummary[[#This Row],[Proposed Fixture]]),\"\"),\"\")","v":""},{"$f":"IFERROR(IF(Table_RetroSummary[[#This Row],[IsActive]],VLOOKUP(IF(ISNUMBER(MATCH(Table_POSTInfo[[#This Row],[Line]],Table_POSTInspection[Line],0)),INDEX(Table_POSTInspection[Schedule],MATCH(Table_RetroSummary[[#This Row],[Line Item]],Table_POSTInspection[Line],0)),Table_POSTInfo[[#This Row],[Schedule]]),'Customer Information'!$S$27:$T$34,2,FALSE),\"\"),\"\")","v":""},{"$f":"IFERROR(IF(Table_RetroSummary[[#This Row],[IsActive]],IF(IF(ISNUMBER(MATCH(Table_RetroSummary[[#This Row],[Line Item]],Table_POSTInspection[Line],0)),INDEX(Table_POSTInspection[Interior/ Exterior],MATCH(Table_RetroSummary[[#This Row],[Line Item]],Table_POSTInfo[[#This Row],[Line]],0)),Table_POSTInfo[[#This Row],[Interior/ Exterior]])=\"Interior\",'Customer Information'!$S$25,0),\"\"),\"\")","v":""},{"$f":"IFERROR(IF(Table_RetroSummary[[#This Row],[IsActive]],IF(IF(ISNUMBER(MATCH(Table_RetroSummary[[#This Row],[Line Item]],Table_POSTInspection[Line],0)),INDEX(Table_POSTInspection[Interior/ Exterior],MATCH(Table_RetroSummary[[#This Row],[Line Item]],Table_POSTInfo[[#This Row],[Line]],0)),Table_POSTInfo[[#This Row],[Interior/ Exterior]])=\"Interior\",'Customer Information'!$T$25,0),\"\"),\"\")","v":""},{"$f":"IFERROR(IF(Table_RetroSummary[[#This Row],[IsActive]],IF(IF(ISNUMBER(MATCH(Table_RetroSummary[[#This Row],[Line Item]],Table_POSTInspection[Line],0)),INDEX(Table_POSTInspection[Interior/ Exterior],MATCH(Table_RetroSummary[[#This Row],[Line Item]],Table_POSTInfo[[#This Row],[Line]],0)),Table_POSTInfo[[#This Row],[Interior/ Exterior]])=\"Interior\",'Customer Information'!$U$25,0),\"\"),\"\")","v":""},{"$f":"IFERROR(IF(Table_RetroSummary[[#This Row],[IsActive]],IF(IF(ISNUMBER(MATCH(Table_RetroSummary[[#This Row],[Line Item]],Table_POSTInspection[Line],0)),INDEX(Table_POSTInspection[Interior/ Exterior],MATCH(Table_RetroSummary[[#This Row],[Line Item]],Table_POSTInfo[[#This Row],[Line]],0)),Table_POSTInfo[[#This Row],[Interior/ Exterior]])=\"Interior\",'Customer Information'!$V$25,0),\"\"),\"\")","v":""},{"$f":"IFERROR(IF(Table_RetroSummary[[#This Row],[IsActive]],IF(IF(ISNUMBER(MATCH(Table_RetroSummary[[#This Row],[Line Item]],Table_POSTInspection[Line],0)),INDEX(Table_POSTInspection[Interior/ Exterior],MATCH(Table_RetroSummary[[#This Row],[Line Item]],Table_POSTInfo[[#This Row],[Line]],0)),Table_POSTInfo[[#This Row],[Interior/ Exterior]])=\"Interior\",'Customer Information'!$W$25,0),\"\"),\"\")","v":""},{"$f":"IFERROR(IF(Table_RetroSummary[[#This Row],[IsActive]],IF(IF(ISNUMBER(MATCH(Table_RetroSummary[[#This Row],[Line Item]],Table_POSTInspection[Line],0)),INDEX(Table_POSTInspection[Interior/ Exterior],MATCH(Table_RetroSummary[[#This Row],[Line Item]],Table_POSTInfo[[#This Row],[Line]],0)),Table_POSTInfo[[#This Row],[Interior/ Exterior]])=\"Interior\",'Customer Information'!$X$25,0),\"\"),\"\")","v":""},{"$f":"IFERROR(IF(Table_RetroSummary[[#This Row],[IsActive]],\nCONCATENATE(\nIF(ISNUMBER(MATCH(Table_POSTInfo[[#This Row],[Line]],Table_POSTInspection[Line],0)),INDEX(Table_POSTInspection[Interior/ Exterior],MATCH(Table_RetroSummary[[#This Row],[Line Item]],Table_POSTInspection[Line],0)),Table_POSTInfo[[#This Row],[Interior/ Exterior]]),\n\" - \",\nIF(ISNUMBER(MATCH(Table_POSTInfo[[#This Row],[Line]],Table_POSTInspection[Line],0)),INDEX(Table_POSTInspection[Space Description],MATCH(Table_RetroSummary[[#This Row],[Line Item]],Table_POSTInspection[Line],0)),Table_POSTInfo[[#This Row],[Space Description]])),\n \"\"),\"\")","v":""},{"$f":"IFERROR(IF(Table_RetroSummary[[#This Row],[IsActive]]=\"\",\"\",Table_POSTInfo[[#This Row],[Fixture Description '[E']]]),\"\")","v":""},{"$f":"IFERROR(IF(Table_RetroSummary[[#This Row],[IsActive]]=\"\",\"\",Table_POSTInfo[[#This Row],['# Lamps/ Fixture '[E']]]),\"\")","v":""},{"$f":"IFERROR(IF(Table_RetroSummary[[#This Row],[IsActive]]=\"\",\"\",Table_POSTInfo[[#This Row],[Fixture/ Lamp Wattage '[E']]]),\"\")","v":""},{"$f":"IFERROR(IF(Table_RetroSummary[[#This Row],[IsActive]]=\"\",\"\",Table_POSTInfo[[#This Row],[Fixture Qty '[E']]]),\"\")","v":""},{"$f":"IFERROR(IF(Table_RetroSummary[[#This Row],[IsActive]],Table_RetroSummary[[#This Row],[Fixture/ Lamp Wattage '[E']]]*Table_RetroSummary[[#This Row],[E. Qty]],\"\"),\"\")","v":""},{"$f":"IFERROR(IF(Table_RetroSummary[[#This Row],[IsActive]]=\"\",\"\",Table_POSTInfo[[#This Row],[Fixture Wattage '[E']]]),\"\")","v":""},{"$f":"IFERROR(IF(Table_RetroSummary[[#This Row],[IsActive]],IFERROR(Table_RetroSummary[[#This Row],[Existing Fixture Wattage]]/1000*Table_RetroSummary[[#This Row],[OpHrs]]*Table_RetroSummary[[#This Row],[E. Qty]],0),\"\"),\"\")","v":""},{"$f":"IFERROR(IF(Table_RetroSummary[[#This Row],[IsActive]],IFERROR(VLOOKUP(RIGHT(Table_RetroSummary[[#This Row],[Existing Fixture]],LEN(Table_RetroSummary[[#This Row],[Existing Fixture]])-FIND(\" - \",Table_RetroSummary[[#This Row],[Existing Fixture]],FIND(\"]\",Table_RetroSummary[[#This Row],[Existing Fixture]],1))-2),Table_ControlType[],3,FALSE),0),\"\"),\"\")","v":""},{"$f":"IFERROR(IF(Table_RetroSummary[[#This Row],[IsActive]],IFERROR(Table_RetroSummary[[#This Row],[Existing Fixture Wattage]]/1000*Table_RetroSummary[[#This Row],[OpHrs]]*Table_RetroSummary[[#This Row],[E. Qty]]*Table_RetroSummary[[#This Row],[Existing CSF]]*(-1),0),\"\"),\"\")","v":""},{"$f":"IFERROR(Table_RetroSummary[[#This Row],[Existing Fixture kWh]]+Table_RetroSummary[[#This Row],[Existing Fixture (Existing Controls) kWh]],\"\")","v":""},{"$f":"IFERROR(IF(Table_RetroSummary[[#This Row],[IsActive]],IF(ISNUMBER(MATCH(Table_POSTInfo[[#This Row],[Line]],Table_POSTInspection[Line],0)),INDEX(Table_POSTInspection[Fixture Description '[P']],MATCH(Table_RetroSummary[[#This Row],[Line Item]],Table_POSTInspection[Line],0)),Table_POSTInfo[[#This Row],[Fixture Description '[P']]]),\"\"),\"\")","v":""},{"$f":"IFERROR(IF(Table_RetroSummary[[#This Row],[IsActive]],IF(ISNUMBER(MATCH(Table_POSTInfo[[#This Row],[Line]],Table_POSTInspection[Line],0)),INDEX(Table_POSTInspection['# Lamps/ Fixture '[P']],MATCH(Table_RetroSummary[[#This Row],[Line Item]],Table_POSTInspection[Line],0)),Table_POSTInfo[[#This Row],['# Lamps/ Fixture '[P']]]),\"\"),\"\")","v":""},{"$f":"IFERROR(IF(Table_RetroSummary[[#This Row],[IsActive]],IF(ISNUMBER(MATCH(Table_POSTInfo[[#This Row],[Line]],Table_POSTInspection[Line],0)),INDEX(Table_POSTInspection[Fixture/ Lamp Wattage '[P']],MATCH(Table_RetroSummary[[#This Row],[Line Item]],Table_POSTInspection[Line],0)),Table_POSTInfo[[#This Row],[Fixture/ Lamp Wattage '[P']]]),\"\"),\"\")","v":""},{"$f":"IFERROR(IF(Table_RetroSummary[[#This Row],[IsActive]],IF(ISNUMBER(MATCH(Table_POSTInfo[[#This Row],[Line]],Table_POSTInspection[Line],0)),INDEX(Table_POSTInspection[Fixture Qty '[P']],MATCH(Table_RetroSummary[[#This Row],[Line Item]],Table_POSTInspection[Line],0)),Table_POSTInfo[[#This Row],[Fixture Qty '[P']]]),\"\"),\"\")","v":""},{"$f":"IFERROR(IF(Table_RetroSummary[[#This Row],[IsActive]],Table_RetroSummary[[#This Row],[Fixture/ Lamp Wattage '[P']]]*Table_RetroSummary[[#This Row],[P. Qty]],\"\"),\"\")","v":""},{"$f":"IFERROR(IF(Table_RetroSummary[[#This Row],[IsActive]],IF(ISNUMBER(MATCH(Table_POSTInfo[[#This Row],[Line]],Table_POSTInspection[Line],0)),INDEX(Table_POSTInspection[Fixture Wattage '[P']],MATCH(Table_RetroSummary[[#This Row],[Line Item]],Table_POSTInspection[Line],0)),Table_POSTInfo[[#This Row],[Fixture Wattage '[P']]]),\"\"),\"\")","v":""},{"$f":"IFERROR(Table_RetroSummary[[#This Row],[Total '# Lamps '[P']]]+Table_RetroSummary[[#This Row],[Proposed Fixture Wattage]],\"\")","v":""},{"$f":"IFERROR(Table_RetroSummary[[#This Row],[Proposed Fixture Wattage]]/1000*Table_RetroSummary[[#This Row],[OpHrs]]*Table_RetroSummary[[#This Row],[P. Qty]],\"\")","v":""},{"$f":"IFERROR(IF(Table_RetroSummary[[#This Row],[IsActive]],IFERROR(VLOOKUP(RIGHT(Table_RetroSummary[[#This Row],[Proposed Fixture]],LEN(Table_RetroSummary[[#This Row],[Proposed Fixture]])-FIND(\" - \",Table_RetroSummary[[#This Row],[Proposed Fixture]],FIND(\"]\",Table_RetroSummary[[#This Row],[Proposed Fixture]],1))-2),Table_ControlType[],3, FALSE),0),\"\"),\"\")","v":""},{"$f":"IFERROR(IF(Table_RetroSummary[[#This Row],[IsActive]],IFERROR(Table_RetroSummary[[#This Row],[Proposed Fixture Wattage]]/1000*Table_RetroSummary[[#This Row],[OpHrs]]*Table_RetroSummary[[#This Row],[P. Qty]]*Table_RetroSummary[[#This Row],[Existing CSF]]*(-1),0),\"\"),\"\")","v":""},{"$f":"IFERROR(Table_RetroSummary[[#This Row],[Proposed Fixture kWh]]+Table_RetroSummary[[#This Row],[Proposed Fixture (Existing Controls) kWh]],\"\")","v":""},{"$f":"IFERROR(IF(Table_RetroSummary[[#This Row],[IsActive]],IFERROR(Table_RetroSummary[[#This Row],[Proposed Fixture Wattage]]/1000*Table_RetroSummary[[#This Row],[OpHrs]]*Table_RetroSummary[[#This Row],[P. Qty]]*Table_RetroSummary[[#This Row],[Proposed CSF]]*(-1),0),\"\"),\"\")","v":""},{"$f":"IFERROR(Table_RetroSummary[[#This Row],[Proposed Fixture kWh]]+Table_RetroSummary[[#This Row],[Proposed Fixture (Proposed Controls) kWh]],\"\")","v":""},{"$f":"IFERROR(IF(Table_RetroSummary[[#This Row],[IsActive]],IF(ISNUMBER(MATCH(Table_POSTInfo[[#This Row],[Line]],Table_POSTInspection[Line],0)),INDEX(Table_POSTInspection[DLC or ES Certification '[P']],MATCH(Table_RetroSummary[[#This Row],[Line Item]],Table_POSTInspection[Line],0)),Table_POSTInfo[[#This Row],[DLC or ES Certification '[P']]]),\"\"),\"\")","v":""},null,{"$f":"IFERROR(IF(Table_RetroSummary[[#This Row],[IsActive]],\nIF(AND(RIGHT(Table_RetroSummary[[#This Row],[Existing Fixture]],LEN(Table_RetroSummary[[#This Row],[Existing Fixture]])-FIND(\":\",Table_RetroSummary[[#This Row],[Existing Fixture]],1)-1)<>Table_RetroSummary[[#This Row],[Proposed Fixture]],MID(Table_RetroSummary[[#This Row],[Existing Fixture]],FIND(\": \",Table_RetroSummary[[#This Row],[Existing Fixture]],1)+2,FIND(\"]\",Table_RetroSummary[[#This Row],[Existing Fixture]],1))=LEFT(Table_RetroSummary[[#This Row],[Proposed Fixture]],FIND(\"]\",Table_RetroSummary[[#This Row],[Proposed Fixture]],1))),\n  \"Controls Only\",\n  IF(Table_POSTInfo[[#This Row],[DLC or ES Certification '[P']]]<>\"\",\n    IF(ISNUMBER(FIND(\"LED Tube\",Table_RetroSummary[[#This Row],[Proposed Fixture]],1)),\n      \"LED Re-Lamp\",\n      IF(AND(Table_RetroSummary[[#This Row],[Existing Overall kWh]]>Table_RetroSummary[[#This Row],[Proposed Overall kWh (Existing Controls)]],ISNUMBER(FIND(\"LED\",Table_RetroSummary[[#This Row],[Proposed Fixture]],1))),\n        IF(Table_POSTInfo[[#This Row],[Interior/ Exterior]]=\"Exterior\",\n          \"Exterior LED Fixture\",\n          \"Interior LED Fixture\"),\n        \"Ineligible Fixture\")),\n    \"Ineligible Fixture\")),\n\"\"),\"\")","v":""},{"$f":"IFERROR(VLOOKUP(Table_RetroSummary[[#This Row],[Fixture Measure Description]],Table_FixtureRate[],2,FALSE),\"\")","v":""},{"$f":"IFERROR(IF(Table_RetroSummary[[#This Row],[IsActive]],IF(Table_RetroSummary[[#This Row],[Fixture Measure Description]]=\"Ineligible Fixture\",0,ROUND(Table_RetroSummary[[#This Row],[Fixture Rebate (per kW)]]*(Table_RetroSummary[[#This Row],[Existing Fixture Wattage]]*Table_RetroSummary[[#This Row],[E. Qty]]-Table_RetroSummary[[#This Row],[Proposed Fixture Wattage]]*Table_RetroSummary[[#This Row],[P. Qty]])/1000,2)),\"\"),\"\")","v":""},{"$f":"IFERROR(IF(Table_RetroSummary[[#This Row],[Fixture Measure Description]]=\"Ineligible Fixture\",0,ROUND(IF(ProjectCost_Total=0,300000,ProjectCost_Total)*Table_RetroSummary[[#This Row],[Fixture Rebate]]/SUM(Table_RetroSummary[Fixture Rebate],Table_RetroSummary[Controls Rebate]),2)),\"\")","v":""},{"$f":"IFERROR(IF(Table_RetroSummary[[#This Row],[IsActive]],IF(Table_RetroSummary[[#This Row],[Fixture Measure Description]]=\"Ineligible Fixture\",0,Table_RetroSummary[[#This Row],[Existing Overall kWh]]-Table_RetroSummary[[#This Row],[Proposed Overall kWh (Existing Controls)]]),\"\"),\"\")","v":""},{"$f":"IFERROR(IF(Table_RetroSummary[[#This Row],[IsActive]],IF(Table_RetroSummary[[#This Row],[Fixture Measure Description]]=\"Ineligible Fixture\",0,(Table_RetroSummary[[#This Row],[Existing Fixture kWh]]-Table_RetroSummary[[#This Row],[Proposed Fixture kWh]])/Table_RetroSummary[[#This Row],[OpHrs]]*Table_RetroSummary[[#This Row],[CF (Ltg)]]*Table_RetroSummary[[#This Row],[DF (Ltg)]]),\"\"),\"\")","v":""},null,{"$f":"IFERROR(\n  IF(OR(Table_RetroSummary[[#This Row],[Fixture Measure Description]]=\"\",Table_RetroSummary[[#This Row],[Fixture Measure Description]]=\"Ineligible Fixture\"),\n    \"\",\n    IFERROR(VLOOKUP(RIGHT(Table_RetroSummary[[#This Row],[Existing Fixture]],LEN(Table_RetroSummary[[#This Row],[Existing Fixture]])-FIND(\" - \",Table_RetroSummary[[#This Row],[Existing Fixture]],FIND(\"]\",Table_RetroSummary[[#This Row],[Existing Fixture]],1))-2),Table_ControlType[],2,FALSE),\"None\")\n    & \" - \" &\n    IFERROR(VLOOKUP(RIGHT(Table_RetroSummary[[#This Row],[Proposed Fixture]],LEN(Table_RetroSummary[[#This Row],[Proposed Fixture]])-FIND(\" - \",Table_RetroSummary[[#This Row],[Proposed Fixture]],FIND(\"]\",Table_RetroSummary[[#This Row],[Proposed Fixture]],1))-2),Table_ControlType[],2, FALSE),None)),\n\"\")","v":""},{"$f":"IFERROR(VLOOKUP(Table_RetroSummary[[#This Row],[Controls Measure Description]],Table_ControlRate[],2,FALSE),\"\")","v":""},{"$f":"IFERROR(IF(Table_RetroSummary[[#This Row],[IsActive]],IF(Table_RetroSummary[[#This Row],[Controls Measure Description]]=\"\",0,ROUND(Table_RetroSummary[[#This Row],[Controls Rebate (per Fixt Watt)]]*Table_RetroSummary[[#This Row],[Proposed Fixture Wattage]]*Table_RetroSummary[[#This Row],[P. Qty]],2)),\"\"),\"\")","v":""},{"$f":"IFERROR(IF(Table_RetroSummary[[#This Row],[Fixture Measure Description]]=\"Ineligible Fixture\",0,ROUND(IF(ProjectCost_Total=0,300000,ProjectCost_Total)*Table_RetroSummary[[#This Row],[Controls Rebate]]/SUM(Table_RetroSummary[Fixture Rebate],Table_RetroSummary[Controls Rebate]),2)),\"\")","v":""},{"$f":"IFERROR(IF(Table_RetroSummary[[#This Row],[IsActive]],IF(Table_RetroSummary[[#This Row],[Controls Measure Description]]=\"\",0,(Table_RetroSummary[[#This Row],[Proposed Fixture (Existing Controls) kWh]]-Table_RetroSummary[[#This Row],[Proposed Fixture (Proposed Controls) kWh]])),\"\"),\"\")","v":""},{"$f":"IFERROR(IF(Table_RetroSummary[[#This Row],[IsActive]],IF(Table_RetroSummary[[#This Row],[Controls Measure Description]]=\"\",0,(Table_RetroSummary[[#This Row],[Proposed Fixture (Existing Controls) kWh]]-Table_RetroSummary[[#This Row],[Proposed Fixture (Proposed Controls) kWh]])/Table_RetroSummary[[#This Row],[OpHrs]]*Table_RetroSummary[[#This Row],[CF (Ltg)]]*Table_RetroSummary[[#This Row],[DF (Ltg)]]),\"\"),\"\")","v":""},null,{"$f":"IFERROR(IF(NOT(ISNUMBER(Table_RetroSummary[[#This Row],[Fixture Rebate]])),\"\",IF(MIN(IF(SUM(Table_RetroSummary[Fixture Cost],Table_RetroSummary[Controls Cost])<0,0,SUM(Table_RetroSummary[Fixture Cost],Table_RetroSummary[Controls Cost])),SUM(Table_RetroSummary[Fixture Rebate],Table_RetroSummary[Controls Rebate]))>300000,300000/MIN(IF(SUM(Table_RetroSummary[Fixture Cost],Table_RetroSummary[Controls Cost])<0,0,SUM(Table_RetroSummary[Fixture Cost],Table_RetroSummary[Controls Cost])),SUM(Table_RetroSummary[Fixture Rebate],Table_RetroSummary[Controls Rebate]))*MIN(IF(SUM(Table_RetroSummary[Fixture Cost],Table_RetroSummary[Controls Cost])<0,0,SUM(Table_RetroSummary[Fixture Cost],Table_RetroSummary[Controls Cost])),Table_RetroSummary[[#This Row],[Fixture Rebate]]+IF(Table_RetroSummary[[#This Row],[Controls Rebate]]=\"\",0,Table_RetroSummary[[#This Row],[Controls Rebate]])),MIN(IF(SUM(Table_RetroSummary[Fixture Cost],Table_RetroSummary[Controls Cost])<0,0,SUM(Table_RetroSummary[Fixture Cost],Table_RetroSummary[Controls Cost])),Table_RetroSummary[[#This Row],[Fixture Rebate]]+IF(Table_RetroSummary[[#This Row],[Controls Rebate]]=\"\",0,Table_RetroSummary[[#This Row],[Controls Rebate]])))),\"\")","v":""},{"$f":"IFERROR(IF(Table_RetroSummary[[#This Row],[Fixture Cost]]=\"\",\"\",Table_RetroSummary[[#This Row],[Fixture Cost]]+IF(Table_RetroSummary[[#This Row],[Controls Cost]]=\"\",0,Table_RetroSummary[[#This Row],[Controls Cost]])),\"\")","v":""},{"$f":"IFERROR(IF(Table_RetroSummary[[#This Row],[IsActive]],IF(Table_POSTInfo[[#This Row],[Interior/ Exterior]]=\"Interior\",IFERROR((Table_RetroSummary[[#This Row],[Annual Fixture Savings (kWh)]]+Table_RetroSummary[[#This Row],[Annual Control Savings (kWh)]])*(Table_RetroSummary[[#This Row],[EIF]]-1),0),0),\"\"),\"\")","v":""},{"$f":"IFERROR(IF(Table_RetroSummary[[#This Row],[IsActive]],IF(Table_POSTInfo[[#This Row],[Interior/ Exterior]]=\"Interior\",IFERROR((Table_RetroSummary[[#This Row],[Fixture kW Reduction]]+Table_RetroSummary[[#This Row],[Control kW Reduction]]/(Table_RetroSummary[[#This Row],[CF (Ltg)]]*Table_RetroSummary[[#This Row],[DF (Ltg)]]))*(Table_RetroSummary[[#This Row],[DIF]]-1)*Table_RetroSummary[[#This Row],[CF (HVAC)]]*Table_RetroSummary[[#This Row],[DF (HVAC)]],0),0),\"\"),\"\")","v":""},{"$f":"IFERROR(IF(Table_RetroSummary[[#This Row],[IsActive]],IF(NOT(ISNUMBER(Table_RetroSummary[[#This Row],[Fixture Rebate]])),\"\",ROUND(Table_RetroSummary[[#This Row],[Annual Fixture Savings (kWh)]]+Table_RetroSummary[[#This Row],[Annual Control Savings (kWh)]],0)),\"\"),\"\")","v":""},{"$f":"IFERROR(IF(Table_RetroSummary[[#This Row],[IsActive]],IF(NOT(ISNUMBER(Table_RetroSummary[[#This Row],[Fixture Rebate]])),\"\",ROUND(Table_RetroSummary[[#This Row],[Fixture kW Reduction]]+Table_RetroSummary[[#This Row],[Control kW Reduction]],3)),\"\"),\"\")","v":""},{"$f":"IFERROR(IF(Table_RetroSummary[[#This Row],[IsActive]],IF(NOT(ISNUMBER(Table_RetroSummary[[#This Row],[Fixture Rebate]])),\"\",ROUND(Table_RetroSummary[[#This Row],[Fixture Energy Savings (kWh)]]+Table_RetroSummary[[#This Row],[Induced HVAC Energy Savings (kWh)]],0)),\"\"),\"\")","v":""},{"$f":"IFERROR(IF(Table_RetroSummary[[#This Row],[IsActive]],IF(NOT(ISNUMBER(Table_RetroSummary[[#This Row],[Fixture Rebate]])),\"\",ROUND(Table_RetroSummary[[#This Row],[Fixture Demand Savings (kW)]]+Table_RetroSummary[[#This Row],[Induced HVAC Demand Savings (kW)]],3)),\"\"),\"\")","v":""}]
[{"$f":"IFERROR(Table_POSTInfo[[#This Row],[Line]],\"\")","v":14},{"$f":"IFERROR(Table_POSTInfo[[#This Row],[IsActive]],\"\")","v":false},{"$f":"IFERROR(IF(Table_RetroSummary[[#This Row],[IsActive]],CONCATENATE(Table_RetroSummary[[#This Row],[Existing Fixture]],\" | \",Table_RetroSummary[[#This Row],[Proposed Fixture]]),\"\"),\"\")","v":""},{"$f":"IFERROR(IF(Table_RetroSummary[[#This Row],[IsActive]],VLOOKUP(IF(ISNUMBER(MATCH(Table_POSTInfo[[#This Row],[Line]],Table_POSTInspection[Line],0)),INDEX(Table_POSTInspection[Schedule],MATCH(Table_RetroSummary[[#This Row],[Line Item]],Table_POSTInspection[Line],0)),Table_POSTInfo[[#This Row],[Schedule]]),'Customer Information'!$S$27:$T$34,2,FALSE),\"\"),\"\")","v":""},{"$f":"IFERROR(IF(Table_RetroSummary[[#This Row],[IsActive]],IF(IF(ISNUMBER(MATCH(Table_RetroSummary[[#This Row],[Line Item]],Table_POSTInspection[Line],0)),INDEX(Table_POSTInspection[Interior/ Exterior],MATCH(Table_RetroSummary[[#This Row],[Line Item]],Table_POSTInfo[[#This Row],[Line]],0)),Table_POSTInfo[[#This Row],[Interior/ Exterior]])=\"Interior\",'Customer Information'!$S$25,0),\"\"),\"\")","v":""},{"$f":"IFERROR(IF(Table_RetroSummary[[#This Row],[IsActive]],IF(IF(ISNUMBER(MATCH(Table_RetroSummary[[#This Row],[Line Item]],Table_POSTInspection[Line],0)),INDEX(Table_POSTInspection[Interior/ Exterior],MATCH(Table_RetroSummary[[#This Row],[Line Item]],Table_POSTInfo[[#This Row],[Line]],0)),Table_POSTInfo[[#This Row],[Interior/ Exterior]])=\"Interior\",'Customer Information'!$T$25,0),\"\"),\"\")","v":""},{"$f":"IFERROR(IF(Table_RetroSummary[[#This Row],[IsActive]],IF(IF(ISNUMBER(MATCH(Table_RetroSummary[[#This Row],[Line Item]],Table_POSTInspection[Line],0)),INDEX(Table_POSTInspection[Interior/ Exterior],MATCH(Table_RetroSummary[[#This Row],[Line Item]],Table_POSTInfo[[#This Row],[Line]],0)),Table_POSTInfo[[#This Row],[Interior/ Exterior]])=\"Interior\",'Customer Information'!$U$25,0),\"\"),\"\")","v":""},{"$f":"IFERROR(IF(Table_RetroSummary[[#This Row],[IsActive]],IF(IF(ISNUMBER(MATCH(Table_RetroSummary[[#This Row],[Line Item]],Table_POSTInspection[Line],0)),INDEX(Table_POSTInspection[Interior/ Exterior],MATCH(Table_RetroSummary[[#This Row],[Line Item]],Table_POSTInfo[[#This Row],[Line]],0)),Table_POSTInfo[[#This Row],[Interior/ Exterior]])=\"Interior\",'Customer Information'!$V$25,0),\"\"),\"\")","v":""},{"$f":"IFERROR(IF(Table_RetroSummary[[#This Row],[IsActive]],IF(IF(ISNUMBER(MATCH(Table_RetroSummary[[#This Row],[Line Item]],Table_POSTInspection[Line],0)),INDEX(Table_POSTInspection[Interior/ Exterior],MATCH(Table_RetroSummary[[#This Row],[Line Item]],Table_POSTInfo[[#This Row],[Line]],0)),Table_POSTInfo[[#This Row],[Interior/ Exterior]])=\"Interior\",'Customer Information'!$W$25,0),\"\"),\"\")","v":""},{"$f":"IFERROR(IF(Table_RetroSummary[[#This Row],[IsActive]],IF(IF(ISNUMBER(MATCH(Table_RetroSummary[[#This Row],[Line Item]],Table_POSTInspection[Line],0)),INDEX(Table_POSTInspection[Interior/ Exterior],MATCH(Table_RetroSummary[[#This Row],[Line Item]],Table_POSTInfo[[#This Row],[Line]],0)),Table_POSTInfo[[#This Row],[Interior/ Exterior]])=\"Interior\",'Customer Information'!$X$25,0),\"\"),\"\")","v":""},{"$f":"IFERROR(IF(Table_RetroSummary[[#This Row],[IsActive]],\nCONCATENATE(\nIF(ISNUMBER(MATCH(Table_POSTInfo[[#This Row],[Line]],Table_POSTInspection[Line],0)),INDEX(Table_POSTInspection[Interior/ Exterior],MATCH(Table_RetroSummary[[#This Row],[Line Item]],Table_POSTInspection[Line],0)),Table_POSTInfo[[#This Row],[Interior/ Exterior]]),\n\" - \",\nIF(ISNUMBER(MATCH(Table_POSTInfo[[#This Row],[Line]],Table_POSTInspection[Line],0)),INDEX(Table_POSTInspection[Space Description],MATCH(Table_RetroSummary[[#This Row],[Line Item]],Table_POSTInspection[Line],0)),Table_POSTInfo[[#This Row],[Space Description]])),\n \"\"),\"\")","v":""},{"$f":"IFERROR(IF(Table_RetroSummary[[#This Row],[IsActive]]=\"\",\"\",Table_POSTInfo[[#This Row],[Fixture Description '[E']]]),\"\")","v":""},{"$f":"IFERROR(IF(Table_RetroSummary[[#This Row],[IsActive]]=\"\",\"\",Table_POSTInfo[[#This Row],['# Lamps/ Fixture '[E']]]),\"\")","v":""},{"$f":"IFERROR(IF(Table_RetroSummary[[#This Row],[IsActive]]=\"\",\"\",Table_POSTInfo[[#This Row],[Fixture/ Lamp Wattage '[E']]]),\"\")","v":""},{"$f":"IFERROR(IF(Table_RetroSummary[[#This Row],[IsActive]]=\"\",\"\",Table_POSTInfo[[#This Row],[Fixture Qty '[E']]]),\"\")","v":""},{"$f":"IFERROR(IF(Table_RetroSummary[[#This Row],[IsActive]],Table_RetroSummary[[#This Row],[Fixture/ Lamp Wattage '[E']]]*Table_RetroSummary[[#This Row],[E. Qty]],\"\"),\"\")","v":""},{"$f":"IFERROR(IF(Table_RetroSummary[[#This Row],[IsActive]]=\"\",\"\",Table_POSTInfo[[#This Row],[Fixture Wattage '[E']]]),\"\")","v":""},{"$f":"IFERROR(IF(Table_RetroSummary[[#This Row],[IsActive]],IFERROR(Table_RetroSummary[[#This Row],[Existing Fixture Wattage]]/1000*Table_RetroSummary[[#This Row],[OpHrs]]*Table_RetroSummary[[#This Row],[E. Qty]],0),\"\"),\"\")","v":""},{"$f":"IFERROR(IF(Table_RetroSummary[[#This Row],[IsActive]],IFERROR(VLOOKUP(RIGHT(Table_RetroSummary[[#This Row],[Existing Fixture]],LEN(Table_RetroSummary[[#This Row],[Existing Fixture]])-FIND(\" - \",Table_RetroSummary[[#This Row],[Existing Fixture]],FIND(\"]\",Table_RetroSummary[[#This Row],[Existing Fixture]],1))-2),Table_ControlType[],3,FALSE),0),\"\"),\"\")","v":""},{"$f":"IFERROR(IF(Table_RetroSummary[[#This Row],[IsActive]],IFERROR(Table_RetroSummary[[#This Row],[Existing Fixture Wattage]]/1000*Table_RetroSummary[[#This Row],[OpHrs]]*Table_RetroSummary[[#This Row],[E. Qty]]*Table_RetroSummary[[#This Row],[Existing CSF]]*(-1),0),\"\"),\"\")","v":""},{"$f":"IFERROR(Table_RetroSummary[[#This Row],[Existing Fixture kWh]]+Table_RetroSummary[[#This Row],[Existing Fixture (Existing Controls) kWh]],\"\")","v":""},{"$f":"IFERROR(IF(Table_RetroSummary[[#This Row],[IsActive]],IF(ISNUMBER(MATCH(Table_POSTInfo[[#This Row],[Line]],Table_POSTInspection[Line],0)),INDEX(Table_POSTInspection[Fixture Description '[P']],MATCH(Table_RetroSummary[[#This Row],[Line Item]],Table_POSTInspection[Line],0)),Table_POSTInfo[[#This Row],[Fixture Description '[P']]]),\"\"),\"\")","v":""},{"$f":"IFERROR(IF(Table_RetroSummary[[#This Row],[IsActive]],IF(ISNUMBER(MATCH(Table_POSTInfo[[#This Row],[Line]],Table_POSTInspection[Line],0)),INDEX(Table_POSTInspection['# Lamps/ Fixture '[P']],MATCH(Table_RetroSummary[[#This Row],[Line Item]],Table_POSTInspection[Line],0)),Table_POSTInfo[[#This Row],['# Lamps/ Fixture '[P']]]),\"\"),\"\")","v":""},{"$f":"IFERROR(IF(Table_RetroSummary[[#This Row],[IsActive]],IF(ISNUMBER(MATCH(Table_POSTInfo[[#This Row],[Line]],Table_POSTInspection[Line],0)),INDEX(Table_POSTInspection[Fixture/ Lamp Wattage '[P']],MATCH(Table_RetroSummary[[#This Row],[Line Item]],Table_POSTInspection[Line],0)),Table_POSTInfo[[#This Row],[Fixture/ Lamp Wattage '[P']]]),\"\"),\"\")","v":""},{"$f":"IFERROR(IF(Table_RetroSummary[[#This Row],[IsActive]],IF(ISNUMBER(MATCH(Table_POSTInfo[[#This Row],[Line]],Table_POSTInspection[Line],0)),INDEX(Table_POSTInspection[Fixture Qty '[P']],MATCH(Table_RetroSummary[[#This Row],[Line Item]],Table_POSTInspection[Line],0)),Table_POSTInfo[[#This Row],[Fixture Qty '[P']]]),\"\"),\"\")","v":""},{"$f":"IFERROR(IF(Table_RetroSummary[[#This Row],[IsActive]],Table_RetroSummary[[#This Row],[Fixture/ Lamp Wattage '[P']]]*Table_RetroSummary[[#This Row],[P. Qty]],\"\"),\"\")","v":""},{"$f":"IFERROR(IF(Table_RetroSummary[[#This Row],[IsActive]],IF(ISNUMBER(MATCH(Table_POSTInfo[[#This Row],[Line]],Table_POSTInspection[Line],0)),INDEX(Table_POSTInspection[Fixture Wattage '[P']],MATCH(Table_RetroSummary[[#This Row],[Line Item]],Table_POSTInspection[Line],0)),Table_POSTInfo[[#This Row],[Fixture Wattage '[P']]]),\"\"),\"\")","v":""},{"$f":"IFERROR(Table_RetroSummary[[#This Row],[Total '# Lamps '[P']]]+Table_RetroSummary[[#This Row],[Proposed Fixture Wattage]],\"\")","v":""},{"$f":"IFERROR(Table_RetroSummary[[#This Row],[Proposed Fixture Wattage]]/1000*Table_RetroSummary[[#This Row],[OpHrs]]*Table_RetroSummary[[#This Row],[P. Qty]],\"\")","v":""},{"$f":"IFERROR(IF(Table_RetroSummary[[#This Row],[IsActive]],IFERROR(VLOOKUP(RIGHT(Table_RetroSummary[[#This Row],[Proposed Fixture]],LEN(Table_RetroSummary[[#This Row],[Proposed Fixture]])-FIND(\" - \",Table_RetroSummary[[#This Row],[Proposed Fixture]],FIND(\"]\",Table_RetroSummary[[#This Row],[Proposed Fixture]],1))-2),Table_ControlType[],3, FALSE),0),\"\"),\"\")","v":""},{"$f":"IFERROR(IF(Table_RetroSummary[[#This Row],[IsActive]],IFERROR(Table_RetroSummary[[#This Row],[Proposed Fixture Wattage]]/1000*Table_RetroSummary[[#This Row],[OpHrs]]*Table_RetroSummary[[#This Row],[P. Qty]]*Table_RetroSummary[[#This Row],[Existing CSF]]*(-1),0),\"\"),\"\")","v":""},{"$f":"IFERROR(Table_RetroSummary[[#This Row],[Proposed Fixture kWh]]+Table_RetroSummary[[#This Row],[Proposed Fixture (Existing Controls) kWh]],\"\")","v":""},{"$f":"IFERROR(IF(Table_RetroSummary[[#This Row],[IsActive]],IFERROR(Table_RetroSummary[[#This Row],[Proposed Fixture Wattage]]/1000*Table_RetroSummary[[#This Row],[OpHrs]]*Table_RetroSummary[[#This Row],[P. Qty]]*Table_RetroSummary[[#This Row],[Proposed CSF]]*(-1),0),\"\"),\"\")","v":""},{"$f":"IFERROR(Table_RetroSummary[[#This Row],[Proposed Fixture kWh]]+Table_RetroSummary[[#This Row],[Proposed Fixture (Proposed Controls) kWh]],\"\")","v":""},{"$f":"IFERROR(IF(Table_RetroSummary[[#This Row],[IsActive]],IF(ISNUMBER(MATCH(Table_POSTInfo[[#This Row],[Line]],Table_POSTInspection[Line],0)),INDEX(Table_POSTInspection[DLC or ES Certification '[P']],MATCH(Table_RetroSummary[[#This Row],[Line Item]],Table_POSTInspection[Line],0)),Table_POSTInfo[[#This Row],[DLC or ES Certification '[P']]]),\"\"),\"\")","v":""},null,{"$f":"IFERROR(IF(Table_RetroSummary[[#This Row],[IsActive]],\nIF(AND(RIGHT(Table_RetroSummary[[#This Row],[Existing Fixture]],LEN(Table_RetroSummary[[#This Row],[Existing Fixture]])-FIND(\":\",Table_RetroSummary[[#This Row],[Existing Fixture]],1)-1)<>Table_RetroSummary[[#This Row],[Proposed Fixture]],MID(Table_RetroSummary[[#This Row],[Existing Fixture]],FIND(\": \",Table_RetroSummary[[#This Row],[Existing Fixture]],1)+2,FIND(\"]\",Table_RetroSummary[[#This Row],[Existing Fixture]],1))=LEFT(Table_RetroSummary[[#This Row],[Proposed Fixture]],FIND(\"]\",Table_RetroSummary[[#This Row],[Proposed Fixture]],1))),\n  \"Controls Only\",\n  IF(Table_POSTInfo[[#This Row],[DLC or ES Certification '[P']]]<>\"\",\n    IF(ISNUMBER(FIND(\"LED Tube\",Table_RetroSummary[[#This Row],[Proposed Fixture]],1)),\n      \"LED Re-Lamp\",\n      IF(AND(Table_RetroSummary[[#This Row],[Existing Overall kWh]]>Table_RetroSummary[[#This Row],[Proposed Overall kWh (Existing Controls)]],ISNUMBER(FIND(\"LED\",Table_RetroSummary[[#This Row],[Proposed Fixture]],1))),\n        IF(Table_POSTInfo[[#This Row],[Interior/ Exterior]]=\"Exterior\",\n          \"Exterior LED Fixture\",\n          \"Interior LED Fixture\"),\n        \"Ineligible Fixture\")),\n    \"Ineligible Fixture\")),\n\"\"),\"\")","v":""},{"$f":"IFERROR(VLOOKUP(Table_RetroSummary[[#This Row],[Fixture Measure Description]],Table_FixtureRate[],2,FALSE),\"\")","v":""},{"$f":"IFERROR(IF(Table_RetroSummary[[#This Row],[IsActive]],IF(Table_RetroSummary[[#This Row],[Fixture Measure Description]]=\"Ineligible Fixture\",0,ROUND(Table_RetroSummary[[#This Row],[Fixture Rebate (per kW)]]*(Table_RetroSummary[[#This Row],[Existing Fixture Wattage]]*Table_RetroSummary[[#This Row],[E. Qty]]-Table_RetroSummary[[#This Row],[Proposed Fixture Wattage]]*Table_RetroSummary[[#This Row],[P. Qty]])/1000,2)),\"\"),\"\")","v":""},{"$f":"IFERROR(IF(Table_RetroSummary[[#This Row],[Fixture Measure Description]]=\"Ineligible Fixture\",0,ROUND(IF(ProjectCost_Total=0,300000,ProjectCost_Total)*Table_RetroSummary[[#This Row],[Fixture Rebate]]/SUM(Table_RetroSummary[Fixture Rebate],Table_RetroSummary[Controls Rebate]),2)),\"\")","v":""},{"$f":"IFERROR(IF(Table_RetroSummary[[#This Row],[IsActive]],IF(Table_RetroSummary[[#This Row],[Fixture Measure Description]]=\"Ineligible Fixture\",0,Table_RetroSummary[[#This Row],[Existing Overall kWh]]-Table_RetroSummary[[#This Row],[Proposed Overall kWh (Existing Controls)]]),\"\"),\"\")","v":""},{"$f":"IFERROR(IF(Table_RetroSummary[[#This Row],[IsActive]],IF(Table_RetroSummary[[#This Row],[Fixture Measure Description]]=\"Ineligible Fixture\",0,(Table_RetroSummary[[#This Row],[Existing Fixture kWh]]-Table_RetroSummary[[#This Row],[Proposed Fixture kWh]])/Table_RetroSummary[[#This Row],[OpHrs]]*Table_RetroSummary[[#This Row],[CF (Ltg)]]*Table_RetroSummary[[#This Row],[DF (Ltg)]]),\"\"),\"\")","v":""},null,{"$f":"IFERROR(\n  IF(OR(Table_RetroSummary[[#This Row],[Fixture Measure Description]]=\"\",Table_RetroSummary[[#This Row],[Fixture Measure Description]]=\"Ineligible Fixture\"),\n    \"\",\n    IFERROR(VLOOKUP(RIGHT(Table_RetroSummary[[#This Row],[Existing Fixture]],LEN(Table_RetroSummary[[#This Row],[Existing Fixture]])-FIND(\" - \",Table_RetroSummary[[#This Row],[Existing Fixture]],FIND(\"]\",Table_RetroSummary[[#This Row],[Existing Fixture]],1))-2),Table_ControlType[],2,FALSE),\"None\")\n    & \" - \" &\n    IFERROR(VLOOKUP(RIGHT(Table_RetroSummary[[#This Row],[Proposed Fixture]],LEN(Table_RetroSummary[[#This Row],[Proposed Fixture]])-FIND(\" - \",Table_RetroSummary[[#This Row],[Proposed Fixture]],FIND(\"]\",Table_RetroSummary[[#This Row],[Proposed Fixture]],1))-2),Table_ControlType[],2, FALSE),None)),\n\"\")","v":""},{"$f":"IFERROR(VLOOKUP(Table_RetroSummary[[#This Row],[Controls Measure Description]],Table_ControlRate[],2,FALSE),\"\")","v":""},{"$f":"IFERROR(IF(Table_RetroSummary[[#This Row],[IsActive]],IF(Table_RetroSummary[[#This Row],[Controls Measure Description]]=\"\",0,ROUND(Table_RetroSummary[[#This Row],[Controls Rebate (per Fixt Watt)]]*Table_RetroSummary[[#This Row],[Proposed Fixture Wattage]]*Table_RetroSummary[[#This Row],[P. Qty]],2)),\"\"),\"\")","v":""},{"$f":"IFERROR(IF(Table_RetroSummary[[#This Row],[Fixture Measure Description]]=\"Ineligible Fixture\",0,ROUND(IF(ProjectCost_Total=0,300000,ProjectCost_Total)*Table_RetroSummary[[#This Row],[Controls Rebate]]/SUM(Table_RetroSummary[Fixture Rebate],Table_RetroSummary[Controls Rebate]),2)),\"\")","v":""},{"$f":"IFERROR(IF(Table_RetroSummary[[#This Row],[IsActive]],IF(Table_RetroSummary[[#This Row],[Controls Measure Description]]=\"\",0,(Table_RetroSummary[[#This Row],[Proposed Fixture (Existing Controls) kWh]]-Table_RetroSummary[[#This Row],[Proposed Fixture (Proposed Controls) kWh]])),\"\"),\"\")","v":""},{"$f":"IFERROR(IF(Table_RetroSummary[[#This Row],[IsActive]],IF(Table_RetroSummary[[#This Row],[Controls Measure Description]]=\"\",0,(Table_RetroSummary[[#This Row],[Proposed Fixture (Existing Controls) kWh]]-Table_RetroSummary[[#This Row],[Proposed Fixture (Proposed Controls) kWh]])/Table_RetroSummary[[#This Row],[OpHrs]]*Table_RetroSummary[[#This Row],[CF (Ltg)]]*Table_RetroSummary[[#This Row],[DF (Ltg)]]),\"\"),\"\")","v":""},null,{"$f":"IFERROR(IF(NOT(ISNUMBER(Table_RetroSummary[[#This Row],[Fixture Rebate]])),\"\",IF(MIN(IF(SUM(Table_RetroSummary[Fixture Cost],Table_RetroSummary[Controls Cost])<0,0,SUM(Table_RetroSummary[Fixture Cost],Table_RetroSummary[Controls Cost])),SUM(Table_RetroSummary[Fixture Rebate],Table_RetroSummary[Controls Rebate]))>300000,300000/MIN(IF(SUM(Table_RetroSummary[Fixture Cost],Table_RetroSummary[Controls Cost])<0,0,SUM(Table_RetroSummary[Fixture Cost],Table_RetroSummary[Controls Cost])),SUM(Table_RetroSummary[Fixture Rebate],Table_RetroSummary[Controls Rebate]))*MIN(IF(SUM(Table_RetroSummary[Fixture Cost],Table_RetroSummary[Controls Cost])<0,0,SUM(Table_RetroSummary[Fixture Cost],Table_RetroSummary[Controls Cost])),Table_RetroSummary[[#This Row],[Fixture Rebate]]+IF(Table_RetroSummary[[#This Row],[Controls Rebate]]=\"\",0,Table_RetroSummary[[#This Row],[Controls Rebate]])),MIN(IF(SUM(Table_RetroSummary[Fixture Cost],Table_RetroSummary[Controls Cost])<0,0,SUM(Table_RetroSummary[Fixture Cost],Table_RetroSummary[Controls Cost])),Table_RetroSummary[[#This Row],[Fixture Rebate]]+IF(Table_RetroSummary[[#This Row],[Controls Rebate]]=\"\",0,Table_RetroSummary[[#This Row],[Controls Rebate]])))),\"\")","v":""},{"$f":"IFERROR(IF(Table_RetroSummary[[#This Row],[Fixture Cost]]=\"\",\"\",Table_RetroSummary[[#This Row],[Fixture Cost]]+IF(Table_RetroSummary[[#This Row],[Controls Cost]]=\"\",0,Table_RetroSummary[[#This Row],[Controls Cost]])),\"\")","v":""},{"$f":"IFERROR(IF(Table_RetroSummary[[#This Row],[IsActive]],IF(Table_POSTInfo[[#This Row],[Interior/ Exterior]]=\"Interior\",IFERROR((Table_RetroSummary[[#This Row],[Annual Fixture Savings (kWh)]]+Table_RetroSummary[[#This Row],[Annual Control Savings (kWh)]])*(Table_RetroSummary[[#This Row],[EIF]]-1),0),0),\"\"),\"\")","v":""},{"$f":"IFERROR(IF(Table_RetroSummary[[#This Row],[IsActive]],IF(Table_POSTInfo[[#This Row],[Interior/ Exterior]]=\"Interior\",IFERROR((Table_RetroSummary[[#This Row],[Fixture kW Reduction]]+Table_RetroSummary[[#This Row],[Control kW Reduction]]/(Table_RetroSummary[[#This Row],[CF (Ltg)]]*Table_RetroSummary[[#This Row],[DF (Ltg)]]))*(Table_RetroSummary[[#This Row],[DIF]]-1)*Table_RetroSummary[[#This Row],[CF (HVAC)]]*Table_RetroSummary[[#This Row],[DF (HVAC)]],0),0),\"\"),\"\")","v":""},{"$f":"IFERROR(IF(Table_RetroSummary[[#This Row],[IsActive]],IF(NOT(ISNUMBER(Table_RetroSummary[[#This Row],[Fixture Rebate]])),\"\",ROUND(Table_RetroSummary[[#This Row],[Annual Fixture Savings (kWh)]]+Table_RetroSummary[[#This Row],[Annual Control Savings (kWh)]],0)),\"\"),\"\")","v":""},{"$f":"IFERROR(IF(Table_RetroSummary[[#This Row],[IsActive]],IF(NOT(ISNUMBER(Table_RetroSummary[[#This Row],[Fixture Rebate]])),\"\",ROUND(Table_RetroSummary[[#This Row],[Fixture kW Reduction]]+Table_RetroSummary[[#This Row],[Control kW Reduction]],3)),\"\"),\"\")","v":""},{"$f":"IFERROR(IF(Table_RetroSummary[[#This Row],[IsActive]],IF(NOT(ISNUMBER(Table_RetroSummary[[#This Row],[Fixture Rebate]])),\"\",ROUND(Table_RetroSummary[[#This Row],[Fixture Energy Savings (kWh)]]+Table_RetroSummary[[#This Row],[Induced HVAC Energy Savings (kWh)]],0)),\"\"),\"\")","v":""},{"$f":"IFERROR(IF(Table_RetroSummary[[#This Row],[IsActive]],IF(NOT(ISNUMBER(Table_RetroSummary[[#This Row],[Fixture Rebate]])),\"\",ROUND(Table_RetroSummary[[#This Row],[Fixture Demand Savings (kW)]]+Table_RetroSummary[[#This Row],[Induced HVAC Demand Savings (kW)]],3)),\"\"),\"\")","v":""}]
[{"$f":"IFERROR(Table_POSTInfo[[#This Row],[Line]],\"\")","v":15},{"$f":"IFERROR(Table_POSTInfo[[#This Row],[IsActive]],\"\")","v":false},{"$f":"IFERROR(IF(Table_RetroSummary[[#This Row],[IsActive]],CONCATENATE(Table_RetroSummary[[#This Row],[Existing Fixture]],\" | \",Table_RetroSummary[[#This Row],[Proposed Fixture]]),\"\"),\"\")","v":""},{"$f":"IFERROR(IF(Table_RetroSummary[[#This Row],[IsActive]],VLOOKUP(IF(ISNUMBER(MATCH(Table_POSTInfo[[#This Row],[Line]],Table_POSTInspection[Line],0)),INDEX(Table_POSTInspection[Schedule],MATCH(Table_RetroSummary[[#This Row],[Line Item]],Table_POSTInspection[Line],0)),Table_POSTInfo[[#This Row],[Schedule]]),'Customer Information'!$S$27:$T$34,2,FALSE),\"\"),\"\")","v":""},{"$f":"IFERROR(IF(Table_RetroSummary[[#This Row],[IsActive]],IF(IF(ISNUMBER(MATCH(Table_RetroSummary[[#This Row],[Line Item]],Table_POSTInspection[Line],0)),INDEX(Table_POSTInspection[Interior/ Exterior],MATCH(Table_RetroSummary[[#This Row],[Line Item]],Table_POSTInfo[[#This Row],[Line]],0)),Table_POSTInfo[[#This Row],[Interior/ Exterior]])=\"Interior\",'Customer Information'!$S$25,0),\"\"),\"\")","v":""},{"$f":"IFERROR(IF(Table_RetroSummary[[#This Row],[IsActive]],IF(IF(ISNUMBER(MATCH(Table_RetroSummary[[#This Row],[Line Item]],Table_POSTInspection[Line],0)),INDEX(Table_POSTInspection[Interior/ Exterior],MATCH(Table_RetroSummary[[#This Row],[Line Item]],Table_POSTInfo[[#This Row],[Line]],0)),Table_POSTInfo[[#This Row],[Interior/ Exterior]])=\"Interior\",'Customer Information'!$T$25,0),\"\"),\"\")","v":""},{"$f":"IFERROR(IF(Table_RetroSummary[[#This Row],[IsActive]],IF(IF(ISNUMBER(MATCH(Table_RetroSummary[[#This Row],[Line Item]],Table_POSTInspection[Line],0)),INDEX(Table_POSTInspection[Interior/ Exterior],MATCH(Table_RetroSummary[[#This Row],[Line Item]],Table_POSTInfo[[#This Row],[Line]],0)),Table_POSTInfo[[#This Row],[Interior/ Exterior]])=\"Interior\",'Customer Information'!$U$25,0),\"\"),\"\")","v":""},{"$f":"IFERROR(IF(Table_RetroSummary[[#This Row],[IsActive]],IF(IF(ISNUMBER(MATCH(Table_RetroSummary[[#This Row],[Line Item]],Table_POSTInspection[Line],0)),INDEX(Table_POSTInspection[Interior/ Exterior],MATCH(Table_RetroSummary[[#This Row],[Line Item]],Table_POSTInfo[[#This Row],[Line]],0)),Table_POSTInfo[[#This Row],[Interior/ Exterior]])=\"Interior\",'Customer Information'!$V$25,0),\"\"),\"\")","v":""},{"$f":"IFERROR(IF(Table_RetroSummary[[#This Row],[IsActive]],IF(IF(ISNUMBER(MATCH(Table_RetroSummary[[#This Row],[Line Item]],Table_POSTInspection[Line],0)),INDEX(Table_POSTInspection[Interior/ Exterior],MATCH(Table_RetroSummary[[#This Row],[Line Item]],Table_POSTInfo[[#This Row],[Line]],0)),Table_POSTInfo[[#This Row],[Interior/ Exterior]])=\"Interior\",'Customer Information'!$W$25,0),\"\"),\"\")","v":""},{"$f":"IFERROR(IF(Table_RetroSummary[[#This Row],[IsActive]],IF(IF(ISNUMBER(MATCH(Table_RetroSummary[[#This Row],[Line Item]],Table_POSTInspection[Line],0)),INDEX(Table_POSTInspection[Interior/ Exterior],MATCH(Table_RetroSummary[[#This Row],[Line Item]],Table_POSTInfo[[#This Row],[Line]],0)),Table_POSTInfo[[#This Row],[Interior/ Exterior]])=\"Interior\",'Customer Information'!$X$25,0),\"\"),\"\")","v":""},{"$f":"IFERROR(IF(Table_RetroSummary[[#This Row],[IsActive]],\nCONCATENATE(\nIF(ISNUMBER(MATCH(Table_POSTInfo[[#This Row],[Line]],Table_POSTInspection[Line],0)),INDEX(Table_POSTInspection[Interior/ Exterior],MATCH(Table_RetroSummary[[#This Row],[Line Item]],Table_POSTInspection[Line],0)),Table_POSTInfo[[#This Row],[Interior/ Exterior]]),\n\" - \",\nIF(ISNUMBER(MATCH(Table_POSTInfo[[#This Row],[Line]],Table_POSTInspection[Line],0)),INDEX(Table_POSTInspection[Space Description],MATCH(Table_RetroSummary[[#This Row],[Line Item]],Table_POSTInspection[Line],0)),Table_POSTInfo[[#This Row],[Space Description]])),\n \"\"),\"\")","v":""},{"$f":"IFERROR(IF(Table_RetroSummary[[#This Row],[IsActive]]=\"\",\"\",Table_POSTInfo[[#This Row],[Fixture Description '[E']]]),\"\")","v":""},{"$f":"IFERROR(IF(Table_RetroSummary[[#This Row],[IsActive]]=\"\",\"\",Table_POSTInfo[[#This Row],['# Lamps/ Fixture '[E']]]),\"\")","v":""},{"$f":"IFERROR(IF(Table_RetroSummary[[#This Row],[IsActive]]=\"\",\"\",Table_POSTInfo[[#This Row],[Fixture/ Lamp Wattage '[E']]]),\"\")","v":""},{"$f":"IFERROR(IF(Table_RetroSummary[[#This Row],[IsActive]]=\"\",\"\",Table_POSTInfo[[#This Row],[Fixture Qty '[E']]]),\"\")","v":""},{"$f":"IFERROR(IF(Table_RetroSummary[[#This Row],[IsActive]],Table_RetroSummary[[#This Row],[Fixture/ Lamp Wattage '[E']]]*Table_RetroSummary[[#This Row],[E. Qty]],\"\"),\"\")","v":""},{"$f":"IFERROR(IF(Table_RetroSummary[[#This Row],[IsActive]]=\"\",\"\",Table_POSTInfo[[#This Row],[Fixture Wattage '[E']]]),\"\")","v":""},{"$f":"IFERROR(IF(Table_RetroSummary[[#This Row],[IsActive]],IFERROR(Table_RetroSummary[[#This Row],[Existing Fixture Wattage]]/1000*Table_RetroSummary[[#This Row],[OpHrs]]*Table_RetroSummary[[#This Row],[E. Qty]],0),\"\"),\"\")","v":""},{"$f":"IFERROR(IF(Table_RetroSummary[[#This Row],[IsActive]],IFERROR(VLOOKUP(RIGHT(Table_RetroSummary[[#This Row],[Existing Fixture]],LEN(Table_RetroSummary[[#This Row],[Existing Fixture]])-FIND(\" - \",Table_RetroSummary[[#This Row],[Existing Fixture]],FIND(\"]\",Table_RetroSummary[[#This Row],[Existing Fixture]],1))-2),Table_ControlType[],3,FALSE),0),\"\"),\"\")","v":""},{"$f":"IFERROR(IF(Table_RetroSummary[[#This Row],[IsActive]],IFERROR(Table_RetroSummary[[#This Row],[Existing Fixture Wattage]]/1000*Table_RetroSummary[[#This Row],[OpHrs]]*Table_RetroSummary[[#This Row],[E. Qty]]*Table_RetroSummary[[#This Row],[Existing CSF]]*(-1),0),\"\"),\"\")","v":""},{"$f":"IFERROR(Table_RetroSummary[[#This Row],[Existing Fixture kWh]]+Table_RetroSummary[[#This Row],[Existing Fixture (Existing Controls) kWh]],\"\")","v":""},{"$f":"IFERROR(IF(Table_RetroSummary[[#This Row],[IsActive]],IF(ISNUMBER(MATCH(Table_POSTInfo[[#This Row],[Line]],Table_POSTInspection[Line],0)),INDEX(Table_POSTInspection[Fixture Description '[P']],MATCH(Table_RetroSummary[[#This Row],[Line Item]],Table_POSTInspection[Line],0)),Table_POSTInfo[[#This Row],[Fixture Description '[P']]]),\"\"),\"\")","v":""},{"$f":"IFERROR(IF(Table_RetroSummary[[#This Row],[IsActive]],IF(ISNUMBER(MATCH(Table_POSTInfo[[#This Row],[Line]],Table_POSTInspection[Line],0)),INDEX(Table_POSTInspection['# Lamps/ Fixture '[P']],MATCH(Table_RetroSummary[[#This Row],[Line Item]],Table_POSTInspection[Line],0)),Table_POSTInfo[[#This Row],['# Lamps/ Fixture '[P']]]),\"\"),\"\")","v":""},{"$f":"IFERROR(IF(Table_RetroSummary[[#This Row],[IsActive]],IF(ISNUMBER(MATCH(Table_POSTInfo[[#This Row],[Line]],Table_POSTInspection[Line],0)),INDEX(Table_POSTInspection[Fixture/ Lamp Wattage '[P']],MATCH(Table_RetroSummary[[#This Row],[Line Item]],Table_POSTInspection[Line],0)),Table_POSTInfo[[#This Row],[Fixture/ Lamp Wattage '[P']]]),\"\"),\"\")","v":""},{"$f":"IFERROR(IF(Table_RetroSummary[[#This Row],[IsActive]],IF(ISNUMBER(MATCH(Table_POSTInfo[[#This Row],[Line]],Table_POSTInspection[Line],0)),INDEX(Table_POSTInspection[Fixture Qty '[P']],MATCH(Table_RetroSummary[[#This Row],[Line Item]],Table_POSTInspection[Line],0)),Table_POSTInfo[[#This Row],[Fixture Qty '[P']]]),\"\"),\"\")","v":""},{"$f":"IFERROR(IF(Table_RetroSummary[[#This Row],[IsActive]],Table_RetroSummary[[#This Row],[Fixture/ Lamp Wattage '[P']]]*Table_RetroSummary[[#This Row],[P. Qty]],\"\"),\"\")","v":""},{"$f":"IFERROR(IF(Table_RetroSummary[[#This Row],[IsActive]],IF(ISNUMBER(MATCH(Table_POSTInfo[[#This Row],[Line]],Table_POSTInspection[Line],0)),INDEX(Table_POSTInspection[Fixture Wattage '[P']],MATCH(Table_RetroSummary[[#This Row],[Line Item]],Table_POSTInspection[Line],0)),Table_POSTInfo[[#This Row],[Fixture Wattage '[P']]]),\"\"),\"\")","v":""},{"$f":"IFERROR(Table_RetroSummary[[#This Row],[Total '# Lamps '[P']]]+Table_RetroSummary[[#This Row],[Proposed Fixture Wattage]],\"\")","v":""},{"$f":"IFERROR(Table_RetroSummary[[#This Row],[Proposed Fixture Wattage]]/1000*Table_RetroSummary[[#This Row],[OpHrs]]*Table_RetroSummary[[#This Row],[P. Qty]],\"\")","v":""},{"$f":"IFERROR(IF(Table_RetroSummary[[#This Row],[IsActive]],IFERROR(VLOOKUP(RIGHT(Table_RetroSummary[[#This Row],[Proposed Fixture]],LEN(Table_RetroSummary[[#This Row],[Proposed Fixture]])-FIND(\" - \",Table_RetroSummary[[#This Row],[Proposed Fixture]],FIND(\"]\",Table_RetroSummary[[#This Row],[Proposed Fixture]],1))-2),Table_ControlType[],3, FALSE),0),\"\"),\"\")","v":""},{"$f":"IFERROR(IF(Table_RetroSummary[[#This Row],[IsActive]],IFERROR(Table_RetroSummary[[#This Row],[Proposed Fixture Wattage]]/1000*Table_RetroSummary[[#This Row],[OpHrs]]*Table_RetroSummary[[#This Row],[P. Qty]]*Table_RetroSummary[[#This Row],[Existing CSF]]*(-1),0),\"\"),\"\")","v":""},{"$f":"IFERROR(Table_RetroSummary[[#This Row],[Proposed Fixture kWh]]+Table_RetroSummary[[#This Row],[Proposed Fixture (Existing Controls) kWh]],\"\")","v":""},{"$f":"IFERROR(IF(Table_RetroSummary[[#This Row],[IsActive]],IFERROR(Table_RetroSummary[[#This Row],[Proposed Fixture Wattage]]/1000*Table_RetroSummary[[#This Row],[OpHrs]]*Table_RetroSummary[[#This Row],[P. Qty]]*Table_RetroSummary[[#This Row],[Proposed CSF]]*(-1),0),\"\"),\"\")","v":""},{"$f":"IFERROR(Table_RetroSummary[[#This Row],[Proposed Fixture kWh]]+Table_RetroSummary[[#This Row],[Proposed Fixture (Proposed Controls) kWh]],\"\")","v":""},{"$f":"IFERROR(IF(Table_RetroSummary[[#This Row],[IsActive]],IF(ISNUMBER(MATCH(Table_POSTInfo[[#This Row],[Line]],Table_POSTInspection[Line],0)),INDEX(Table_POSTInspection[DLC or ES Certification '[P']],MATCH(Table_RetroSummary[[#This Row],[Line Item]],Table_POSTInspection[Line],0)),Table_POSTInfo[[#This Row],[DLC or ES Certification '[P']]]),\"\"),\"\")","v":""},null,{"$f":"IFERROR(IF(Table_RetroSummary[[#This Row],[IsActive]],\nIF(AND(RIGHT(Table_RetroSummary[[#This Row],[Existing Fixture]],LEN(Table_RetroSummary[[#This Row],[Existing Fixture]])-FIND(\":\",Table_RetroSummary[[#This Row],[Existing Fixture]],1)-1)<>Table_RetroSummary[[#This Row],[Proposed Fixture]],MID(Table_RetroSummary[[#This Row],[Existing Fixture]],FIND(\": \",Table_RetroSummary[[#This Row],[Existing Fixture]],1)+2,FIND(\"]\",Table_RetroSummary[[#This Row],[Existing Fixture]],1))=LEFT(Table_RetroSummary[[#This Row],[Proposed Fixture]],FIND(\"]\",Table_RetroSummary[[#This Row],[Proposed Fixture]],1))),\n  \"Controls Only\",\n  IF(Table_POSTInfo[[#This Row],[DLC or ES Certification '[P']]]<>\"\",\n    IF(ISNUMBER(FIND(\"LED Tube\",Table_RetroSummary[[#This Row],[Proposed Fixture]],1)),\n      \"LED Re-Lamp\",\n      IF(AND(Table_RetroSummary[[#This Row],[Existing Overall kWh]]>Table_RetroSummary[[#This Row],[Proposed Overall kWh (Existing Controls)]],ISNUMBER(FIND(\"LED\",Table_RetroSummary[[#This Row],[Proposed Fixture]],1))),\n        IF(Table_POSTInfo[[#This Row],[Interior/ Exterior]]=\"Exterior\",\n          \"Exterior LED Fixture\",\n          \"Interior LED Fixture\"),\n        \"Ineligible Fixture\")),\n    \"Ineligible Fixture\")),\n\"\"),\"\")","v":""},{"$f":"IFERROR(VLOOKUP(Table_RetroSummary[[#This Row],[Fixture Measure Description]],Table_FixtureRate[],2,FALSE),\"\")","v":""},{"$f":"IFERROR(IF(Table_RetroSummary[[#This Row],[IsActive]],IF(Table_RetroSummary[[#This Row],[Fixture Measure Description]]=\"Ineligible Fixture\",0,ROUND(Table_RetroSummary[[#This Row],[Fixture Rebate (per kW)]]*(Table_RetroSummary[[#This Row],[Existing Fixture Wattage]]*Table_RetroSummary[[#This Row],[E. Qty]]-Table_RetroSummary[[#This Row],[Proposed Fixture Wattage]]*Table_RetroSummary[[#This Row],[P. Qty]])/1000,2)),\"\"),\"\")","v":""},{"$f":"IFERROR(IF(Table_RetroSummary[[#This Row],[Fixture Measure Description]]=\"Ineligible Fixture\",0,ROUND(IF(ProjectCost_Total=0,300000,ProjectCost_Total)*Table_RetroSummary[[#This Row],[Fixture Rebate]]/SUM(Table_RetroSummary[Fixture Rebate],Table_RetroSummary[Controls Rebate]),2)),\"\")","v":""},{"$f":"IFERROR(IF(Table_RetroSummary[[#This Row],[IsActive]],IF(Table_RetroSummary[[#This Row],[Fixture Measure Description]]=\"Ineligible Fixture\",0,Table_RetroSummary[[#This Row],[Existing Overall kWh]]-Table_RetroSummary[[#This Row],[Proposed Overall kWh (Existing Controls)]]),\"\"),\"\")","v":""},{"$f":"IFERROR(IF(Table_RetroSummary[[#This Row],[IsActive]],IF(Table_RetroSummary[[#This Row],[Fixture Measure Description]]=\"Ineligible Fixture\",0,(Table_RetroSummary[[#This Row],[Existing Fixture kWh]]-Table_RetroSummary[[#This Row],[Proposed Fixture kWh]])/Table_RetroSummary[[#This Row],[OpHrs]]*Table_RetroSummary[[#This Row],[CF (Ltg)]]*Table_RetroSummary[[#This Row],[DF (Ltg)]]),\"\"),\"\")","v":""},null,{"$f":"IFERROR(\n  IF(OR(Table_RetroSummary[[#This Row],[Fixture Measure Description]]=\"\",Table_RetroSummary[[#This Row],[Fixture Measure Description]]=\"Ineligible Fixture\"),\n    \"\",\n    IFERROR(VLOOKUP(RIGHT(Table_RetroSummary[[#This Row],[Existing Fixture]],LEN(Table_RetroSummary[[#This Row],[Existing Fixture]])-FIND(\" - \",Table_RetroSummary[[#This Row],[Existing Fixture]],FIND(\"]\",Table_RetroSummary[[#This Row],[Existing Fixture]],1))-2),Table_ControlType[],2,FALSE),\"None\")\n    & \" - \" &\n    IFERROR(VLOOKUP(RIGHT(Table_RetroSummary[[#This Row],[Proposed Fixture]],LEN(Table_RetroSummary[[#This Row],[Proposed Fixture]])-FIND(\" - \",Table_RetroSummary[[#This Row],[Proposed Fixture]],FIND(\"]\",Table_RetroSummary[[#This Row],[Proposed Fixture]],1))-2),Table_ControlType[],2, FALSE),None)),\n\"\")","v":""},{"$f":"IFERROR(VLOOKUP(Table_RetroSummary[[#This Row],[Controls Measure Description]],Table_ControlRate[],2,FALSE),\"\")","v":""},{"$f":"IFERROR(IF(Table_RetroSummary[[#This Row],[IsActive]],IF(Table_RetroSummary[[#This Row],[Controls Measure Description]]=\"\",0,ROUND(Table_RetroSummary[[#This Row],[Controls Rebate (per Fixt Watt)]]*Table_RetroSummary[[#This Row],[Proposed Fixture Wattage]]*Table_RetroSummary[[#This Row],[P. Qty]],2)),\"\"),\"\")","v":""},{"$f":"IFERROR(IF(Table_RetroSummary[[#This Row],[Fixture Measure Description]]=\"Ineligible Fixture\",0,ROUND(IF(ProjectCost_Total=0,300000,ProjectCost_Total)*Table_RetroSummary[[#This Row],[Controls Rebate]]/SUM(Table_RetroSummary[Fixture Rebate],Table_RetroSummary[Controls Rebate]),2)),\"\")","v":""},{"$f":"IFERROR(IF(Table_RetroSummary[[#This Row],[IsActive]],IF(Table_RetroSummary[[#This Row],[Controls Measure Description]]=\"\",0,(Table_RetroSummary[[#This Row],[Proposed Fixture (Existing Controls) kWh]]-Table_RetroSummary[[#This Row],[Proposed Fixture (Proposed Controls) kWh]])),\"\"),\"\")","v":""},{"$f":"IFERROR(IF(Table_RetroSummary[[#This Row],[IsActive]],IF(Table_RetroSummary[[#This Row],[Controls Measure Description]]=\"\",0,(Table_RetroSummary[[#This Row],[Proposed Fixture (Existing Controls) kWh]]-Table_RetroSummary[[#This Row],[Proposed Fixture (Proposed Controls) kWh]])/Table_RetroSummary[[#This Row],[OpHrs]]*Table_RetroSummary[[#This Row],[CF (Ltg)]]*Table_RetroSummary[[#This Row],[DF (Ltg)]]),\"\"),\"\")","v":""},null,{"$f":"IFERROR(IF(NOT(ISNUMBER(Table_RetroSummary[[#This Row],[Fixture Rebate]])),\"\",IF(MIN(IF(SUM(Table_RetroSummary[Fixture Cost],Table_RetroSummary[Controls Cost])<0,0,SUM(Table_RetroSummary[Fixture Cost],Table_RetroSummary[Controls Cost])),SUM(Table_RetroSummary[Fixture Rebate],Table_RetroSummary[Controls Rebate]))>300000,300000/MIN(IF(SUM(Table_RetroSummary[Fixture Cost],Table_RetroSummary[Controls Cost])<0,0,SUM(Table_RetroSummary[Fixture Cost],Table_RetroSummary[Controls Cost])),SUM(Table_RetroSummary[Fixture Rebate],Table_RetroSummary[Controls Rebate]))*MIN(IF(SUM(Table_RetroSummary[Fixture Cost],Table_RetroSummary[Controls Cost])<0,0,SUM(Table_RetroSummary[Fixture Cost],Table_RetroSummary[Controls Cost])),Table_RetroSummary[[#This Row],[Fixture Rebate]]+IF(Table_RetroSummary[[#This Row],[Controls Rebate]]=\"\",0,Table_RetroSummary[[#This Row],[Controls Rebate]])),MIN(IF(SUM(Table_RetroSummary[Fixture Cost],Table_RetroSummary[Controls Cost])<0,0,SUM(Table_RetroSummary[Fixture Cost],Table_RetroSummary[Controls Cost])),Table_RetroSummary[[#This Row],[Fixture Rebate]]+IF(Table_RetroSummary[[#This Row],[Controls Rebate]]=\"\",0,Table_RetroSummary[[#This Row],[Controls Rebate]])))),\"\")","v":""},{"$f":"IFERROR(IF(Table_RetroSummary[[#This Row],[Fixture Cost]]=\"\",\"\",Table_RetroSummary[[#This Row],[Fixture Cost]]+IF(Table_RetroSummary[[#This Row],[Controls Cost]]=\"\",0,Table_RetroSummary[[#This Row],[Controls Cost]])),\"\")","v":""},{"$f":"IFERROR(IF(Table_RetroSummary[[#This Row],[IsActive]],IF(Table_POSTInfo[[#This Row],[Interior/ Exterior]]=\"Interior\",IFERROR((Table_RetroSummary[[#This Row],[Annual Fixture Savings (kWh)]]+Table_RetroSummary[[#This Row],[Annual Control Savings (kWh)]])*(Table_RetroSummary[[#This Row],[EIF]]-1),0),0),\"\"),\"\")","v":""},{"$f":"IFERROR(IF(Table_RetroSummary[[#This Row],[IsActive]],IF(Table_POSTInfo[[#This Row],[Interior/ Exterior]]=\"Interior\",IFERROR((Table_RetroSummary[[#This Row],[Fixture kW Reduction]]+Table_RetroSummary[[#This Row],[Control kW Reduction]]/(Table_RetroSummary[[#This Row],[CF (Ltg)]]*Table_RetroSummary[[#This Row],[DF (Ltg)]]))*(Table_RetroSummary[[#This Row],[DIF]]-1)*Table_RetroSummary[[#This Row],[CF (HVAC)]]*Table_RetroSummary[[#This Row],[DF (HVAC)]],0),0),\"\"),\"\")","v":""},{"$f":"IFERROR(IF(Table_RetroSummary[[#This Row],[IsActive]],IF(NOT(ISNUMBER(Table_RetroSummary[[#This Row],[Fixture Rebate]])),\"\",ROUND(Table_RetroSummary[[#This Row],[Annual Fixture Savings (kWh)]]+Table_RetroSummary[[#This Row],[Annual Control Savings (kWh)]],0)),\"\"),\"\")","v":""},{"$f":"IFERROR(IF(Table_RetroSummary[[#This Row],[IsActive]],IF(NOT(ISNUMBER(Table_RetroSummary[[#This Row],[Fixture Rebate]])),\"\",ROUND(Table_RetroSummary[[#This Row],[Fixture kW Reduction]]+Table_RetroSummary[[#This Row],[Control kW Reduction]],3)),\"\"),\"\")","v":""},{"$f":"IFERROR(IF(Table_RetroSummary[[#This Row],[IsActive]],IF(NOT(ISNUMBER(Table_RetroSummary[[#This Row],[Fixture Rebate]])),\"\",ROUND(Table_RetroSummary[[#This Row],[Fixture Energy Savings (kWh)]]+Table_RetroSummary[[#This Row],[Induced HVAC Energy Savings (kWh)]],0)),\"\"),\"\")","v":""},{"$f":"IFERROR(IF(Table_RetroSummary[[#This Row],[IsActive]],IF(NOT(ISNUMBER(Table_RetroSummary[[#This Row],[Fixture Rebate]])),\"\",ROUND(Table_RetroSummary[[#This Row],[Fixture Demand Savings (kW)]]+Table_RetroSummary[[#This Row],[Induced HVAC Demand Savings (kW)]],3)),\"\"),\"\")","v":""}]
[{"$f":"IFERROR(Table_POSTInfo[[#This Row],[Line]],\"\")","v":16},{"$f":"IFERROR(Table_POSTInfo[[#This Row],[IsActive]],\"\")","v":false},{"$f":"IFERROR(IF(Table_RetroSummary[[#This Row],[IsActive]],CONCATENATE(Table_RetroSummary[[#This Row],[Existing Fixture]],\" | \",Table_RetroSummary[[#This Row],[Proposed Fixture]]),\"\"),\"\")","v":""},{"$f":"IFERROR(IF(Table_RetroSummary[[#This Row],[IsActive]],VLOOKUP(IF(ISNUMBER(MATCH(Table_POSTInfo[[#This Row],[Line]],Table_POSTInspection[Line],0)),INDEX(Table_POSTInspection[Schedule],MATCH(Table_RetroSummary[[#This Row],[Line Item]],Table_POSTInspection[Line],0)),Table_POSTInfo[[#This Row],[Schedule]]),'Customer Information'!$S$27:$T$34,2,FALSE),\"\"),\"\")","v":""},{"$f":"IFERROR(IF(Table_RetroSummary[[#This Row],[IsActive]],IF(IF(ISNUMBER(MATCH(Table_RetroSummary[[#This Row],[Line Item]],Table_POSTInspection[Line],0)),INDEX(Table_POSTInspection[Interior/ Exterior],MATCH(Table_RetroSummary[[#This Row],[Line Item]],Table_POSTInfo[[#This Row],[Line]],0)),Table_POSTInfo[[#This Row],[Interior/ Exterior]])=\"Interior\",'Customer Information'!$S$25,0),\"\"),\"\")","v":""},{"$f":"IFERROR(IF(Table_RetroSummary[[#This Row],[IsActive]],IF(IF(ISNUMBER(MATCH(Table_RetroSummary[[#This Row],[Line Item]],Table_POSTInspection[Line],0)),INDEX(Table_POSTInspection[Interior/ Exterior],MATCH(Table_RetroSummary[[#This Row],[Line Item]],Table_POSTInfo[[#This Row],[Line]],0)),Table_POSTInfo[[#This Row],[Interior/ Exterior]])=\"Interior\",'Customer Information'!$T$25,0),\"\"),\"\")","v":""},{"$f":"IFERROR(IF(Table_RetroSummary[[#This Row],[IsActive]],IF(IF(ISNUMBER(MATCH(Table_RetroSummary[[#This Row],[Line Item]],Table_POSTInspection[Line],0)),INDEX(Table_POSTInspection[Interior/ Exterior],MATCH(Table_RetroSummary[[#This Row],[Line Item]],Table_POSTInfo[[#This Row],[Line]],0)),Table_POSTInfo[[#This Row],[Interior/ Exterior]])=\"Interior\",'Customer Information'!$U$25,0),\"\"),\"\")","v":""},{"$f":"IFERROR(IF(Table_RetroSummary[[#This Row],[IsActive]],IF(IF(ISNUMBER(MATCH(Table_RetroSummary[[#This Row],[Line Item]],Table_POSTInspection[Line],0)),INDEX(Table_POSTInspection[Interior/ Exterior],MATCH(Table_RetroSummary[[#This Row],[Line Item]],Table_POSTInfo[[#This Row],[Line]],0)),Table_POSTInfo[[#This Row],[Interior/ Exterior]])=\"Interior\",'Customer Information'!$V$25,0),\"\"),\"\")","v":""},{"$f":"IFERROR(IF(Table_RetroSummary[[#This Row],[IsActive]],IF(IF(ISNUMBER(MATCH(Table_RetroSummary[[#This Row],[Line Item]],Table_POSTInspection[Line],0)),INDEX(Table_POSTInspection[Interior/ Exterior],MATCH(Table_RetroSummary[[#This Row],[Line Item]],Table_POSTInfo[[#This Row],[Line]],0)),Table_POSTInfo[[#This Row],[Interior/ Exterior]])=\"Interior\",'Customer Information'!$W$25,0),\"\"),\"\")","v":""},{"$f":"IFERROR(IF(Table_RetroSummary[[#This Row],[IsActive]],IF(IF(ISNUMBER(MATCH(Table_RetroSummary[[#This Row],[Line Item]],Table_POSTInspection[Line],0)),INDEX(Table_POSTInspection[Interior/ Exterior],MATCH(Table_RetroSummary[[#This Row],[Line Item]],Table_POSTInfo[[#This Row],[Line]],0)),Table_POSTInfo[[#This Row],[Interior/ Exterior]])=\"Interior\",'Customer Information'!$X$25,0),\"\"),\"\")","v":""},{"$f":"IFERROR(IF(Table_RetroSummary[[#This Row],[IsActive]],\nCONCATENATE(\nIF(ISNUMBER(MATCH(Table_POSTInfo[[#This Row],[Line]],Table_POSTInspection[Line],0)),INDEX(Table_POSTInspection[Interior/ Exterior],MATCH(Table_RetroSummary[[#This Row],[Line Item]],Table_POSTInspection[Line],0)),Table_POSTInfo[[#This Row],[Interior/ Exterior]]),\n\" - \",\nIF(ISNUMBER(MATCH(Table_POSTInfo[[#This Row],[Line]],Table_POSTInspection[Line],0)),INDEX(Table_POSTInspection[Space Description],MATCH(Table_RetroSummary[[#This Row],[Line Item]],Table_POSTInspection[Line],0)),Table_POSTInfo[[#This Row],[Space Description]])),\n \"\"),\"\")","v":""},{"$f":"IFERROR(IF(Table_RetroSummary[[#This Row],[IsActive]]=\"\",\"\",Table_POSTInfo[[#This Row],[Fixture Description '[E']]]),\"\")","v":""},{"$f":"IFERROR(IF(Table_RetroSummary[[#This Row],[IsActive]]=\"\",\"\",Table_POSTInfo[[#This Row],['# Lamps/ Fixture '[E']]]),\"\")","v":""},{"$f":"IFERROR(IF(Table_RetroSummary[[#This Row],[IsActive]]=\"\",\"\",Table_POSTInfo[[#This Row],[Fixture/ Lamp Wattage '[E']]]),\"\")","v":""},{"$f":"IFERROR(IF(Table_RetroSummary[[#This Row],[IsActive]]=\"\",\"\",Table_POSTInfo[[#This Row],[Fixture Qty '[E']]]),\"\")","v":""},{"$f":"IFERROR(IF(Table_RetroSummary[[#This Row],[IsActive]],Table_RetroSummary[[#This Row],[Fixture/ Lamp Wattage '[E']]]*Table_RetroSummary[[#This Row],[E. Qty]],\"\"),\"\")","v":""},{"$f":"IFERROR(IF(Table_RetroSummary[[#This Row],[IsActive]]=\"\",\"\",Table_POSTInfo[[#This Row],[Fixture Wattage '[E']]]),\"\")","v":""},{"$f":"IFERROR(IF(Table_RetroSummary[[#This Row],[IsActive]],IFERROR(Table_RetroSummary[[#This Row],[Existing Fixture Wattage]]/1000*Table_RetroSummary[[#This Row],[OpHrs]]*Table_RetroSummary[[#This Row],[E. Qty]],0),\"\"),\"\")","v":""},{"$f":"IFERROR(IF(Table_RetroSummary[[#This Row],[IsActive]],IFERROR(VLOOKUP(RIGHT(Table_RetroSummary[[#This Row],[Existing Fixture]],LEN(Table_RetroSummary[[#This Row],[Existing Fixture]])-FIND(\" - \",Table_RetroSummary[[#This Row],[Existing Fixture]],FIND(\"]\",Table_RetroSummary[[#This Row],[Existing Fixture]],1))-2),Table_ControlType[],3,FALSE),0),\"\"),\"\")","v":""},{"$f":"IFERROR(IF(Table_RetroSummary[[#This Row],[IsActive]],IFERROR(Table_RetroSummary[[#This Row],[Existing Fixture Wattage]]/1000*Table_RetroSummary[[#This Row],[OpHrs]]*Table_RetroSummary[[#This Row],[E. Qty]]*Table_RetroSummary[[#This Row],[Existing CSF]]*(-1),0),\"\"),\"\")","v":""},{"$f":"IFERROR(Table_RetroSummary[[#This Row],[Existing Fixture kWh]]+Table_RetroSummary[[#This Row],[Existing Fixture (Existing Controls) kWh]],\"\")","v":""},{"$f":"IFERROR(IF(Table_RetroSummary[[#This Row],[IsActive]],IF(ISNUMBER(MATCH(Table_POSTInfo[[#This Row],[Line]],Table_POSTInspection[Line],0)),INDEX(Table_POSTInspection[Fixture Description '[P']],MATCH(Table_RetroSummary[[#This Row],[Line Item]],Table_POSTInspection[Line],0)),Table_POSTInfo[[#This Row],[Fixture Description '[P']]]),\"\"),\"\")","v":""},{"$f":"IFERROR(IF(Table_RetroSummary[[#This Row],[IsActive]],IF(ISNUMBER(MATCH(Table_POSTInfo[[#This Row],[Line]],Table_POSTInspection[Line],0)),INDEX(Table_POSTInspection['# Lamps/ Fixture '[P']],MATCH(Table_RetroSummary[[#This Row],[Line Item]],Table_POSTInspection[Line],0)),Table_POSTInfo[[#This Row],['# Lamps/ Fixture '[P']]]),\"\"),\"\")","v":""},{"$f":"IFERROR(IF(Table_RetroSummary[[#This Row],[IsActive]],IF(ISNUMBER(MATCH(Table_POSTInfo[[#This Row],[Line]],Table_POSTInspection[Line],0)),INDEX(Table_POSTInspection[Fixture/ Lamp Wattage '[P']],MATCH(Table_RetroSummary[[#This Row],[Line Item]],Table_POSTInspection[Line],0)),Table_POSTInfo[[#This Row],[Fixture/ Lamp Wattage '[P']]]),\"\"),\"\")","v":""},{"$f":"IFERROR(IF(Table_RetroSummary[[#This Row],[IsActive]],IF(ISNUMBER(MATCH(Table_POSTInfo[[#This Row],[Line]],Table_POSTInspection[Line],0)),INDEX(Table_POSTInspection[Fixture Qty '[P']],MATCH(Table_RetroSummary[[#This Row],[Line Item]],Table_POSTInspection[Line],0)),Table_POSTInfo[[#This Row],[Fixture Qty '[P']]]),\"\"),\"\")","v":""},{"$f":"IFERROR(IF(Table_RetroSummary[[#This Row],[IsActive]],Table_RetroSummary[[#This Row],[Fixture/ Lamp Wattage '[P']]]*Table_RetroSummary[[#This Row],[P. Qty]],\"\"),\"\")","v":""},{"$f":"IFERROR(IF(Table_RetroSummary[[#This Row],[IsActive]],IF(ISNUMBER(MATCH(Table_POSTInfo[[#This Row],[Line]],Table_POSTInspection[Line],0)),INDEX(Table_POSTInspection[Fixture Wattage '[P']],MATCH(Table_RetroSummary[[#This Row],[Line Item]],Table_POSTInspection[Line],0)),Table_POSTInfo[[#This Row],[Fixture Wattage '[P']]]),\"\"),\"\")","v":""},{"$f":"IFERROR(Table_RetroSummary[[#This Row],[Total '# Lamps '[P']]]+Table_RetroSummary[[#This Row],[Proposed Fixture Wattage]],\"\")","v":""},{"$f":"IFERROR(Table_RetroSummary[[#This Row],[Proposed Fixture Wattage]]/1000*Table_RetroSummary[[#This Row],[OpHrs]]*Table_RetroSummary[[#This Row],[P. Qty]],\"\")","v":""},{"$f":"IFERROR(IF(Table_RetroSummary[[#This Row],[IsActive]],IFERROR(VLOOKUP(RIGHT(Table_RetroSummary[[#This Row],[Proposed Fixture]],LEN(Table_RetroSummary[[#This Row],[Proposed Fixture]])-FIND(\" - \",Table_RetroSummary[[#This Row],[Proposed Fixture]],FIND(\"]\",Table_RetroSummary[[#This Row],[Proposed Fixture]],1))-2),Table_ControlType[],3, FALSE),0),\"\"),\"\")","v":""},{"$f":"IFERROR(IF(Table_RetroSummary[[#This Row],[IsActive]],IFERROR(Table_RetroSummary[[#This Row],[Proposed Fixture Wattage]]/1000*Table_RetroSummary[[#This Row],[OpHrs]]*Table_RetroSummary[[#This Row],[P. Qty]]*Table_RetroSummary[[#This Row],[Existing CSF]]*(-1),0),\"\"),\"\")","v":""},{"$f":"IFERROR(Table_RetroSummary[[#This Row],[Proposed Fixture kWh]]+Table_RetroSummary[[#This Row],[Proposed Fixture (Existing Controls) kWh]],\"\")","v":""},{"$f":"IFERROR(IF(Table_RetroSummary[[#This Row],[IsActive]],IFERROR(Table_RetroSummary[[#This Row],[Proposed Fixture Wattage]]/1000*Table_RetroSummary[[#This Row],[OpHrs]]*Table_RetroSummary[[#This Row],[P. Qty]]*Table_RetroSummary[[#This Row],[Proposed CSF]]*(-1),0),\"\"),\"\")","v":""},{"$f":"IFERROR(Table_RetroSummary[[#This Row],[Proposed Fixture kWh]]+Table_RetroSummary[[#This Row],[Proposed Fixture (Proposed Controls) kWh]],\"\")","v":""},{"$f":"IFERROR(IF(Table_RetroSummary[[#This Row],[IsActive]],IF(ISNUMBER(MATCH(Table_POSTInfo[[#This Row],[Line]],Table_POSTInspection[Line],0)),INDEX(Table_POSTInspection[DLC or ES Certification '[P']],MATCH(Table_RetroSummary[[#This Row],[Line Item]],Table_POSTInspection[Line],0)),Table_POSTInfo[[#This Row],[DLC or ES Certification '[P']]]),\"\"),\"\")","v":""},null,{"$f":"IFERROR(IF(Table_RetroSummary[[#This Row],[IsActive]],\nIF(AND(RIGHT(Table_RetroSummary[[#This Row],[Existing Fixture]],LEN(Table_RetroSummary[[#This Row],[Existing Fixture]])-FIND(\":\",Table_RetroSummary[[#This Row],[Existing Fixture]],1)-1)<>Table_RetroSummary[[#This Row],[Proposed Fixture]],MID(Table_RetroSummary[[#This Row],[Existing Fixture]],FIND(\": \",Table_RetroSummary[[#This Row],[Existing Fixture]],1)+2,FIND(\"]\",Table_RetroSummary[[#This Row],[Existing Fixture]],1))=LEFT(Table_RetroSummary[[#This Row],[Proposed Fixture]],FIND(\"]\",Table_RetroSummary[[#This Row],[Proposed Fixture]],1))),\n  \"Controls Only\",\n  IF(Table_POSTInfo[[#This Row],[DLC or ES Certification '[P']]]<>\"\",\n    IF(ISNUMBER(FIND(\"LED Tube\",Table_RetroSummary[[#This Row],[Proposed Fixture]],1)),\n      \"LED Re-Lamp\",\n      IF(AND(Table_RetroSummary[[#This Row],[Existing Overall kWh]]>Table_RetroSummary[[#This Row],[Proposed Overall kWh (Existing Controls)]],ISNUMBER(FIND(\"LED\",Table_RetroSummary[[#This Row],[Proposed Fixture]],1))),\n        IF(Table_POSTInfo[[#This Row],[Interior/ Exterior]]=\"Exterior\",\n          \"Exterior LED Fixture\",\n          \"Interior LED Fixture\"),\n        \"Ineligible Fixture\")),\n    \"Ineligible Fixture\")),\n\"\"),\"\")","v":""},{"$f":"IFERROR(VLOOKUP(Table_RetroSummary[[#This Row],[Fixture Measure Description]],Table_FixtureRate[],2,FALSE),\"\")","v":""},{"$f":"IFERROR(IF(Table_RetroSummary[[#This Row],[IsActive]],IF(Table_RetroSummary[[#This Row],[Fixture Measure Description]]=\"Ineligible Fixture\",0,ROUND(Table_RetroSummary[[#This Row],[Fixture Rebate (per kW)]]*(Table_RetroSummary[[#This Row],[Existing Fixture Wattage]]*Table_RetroSummary[[#This Row],[E. Qty]]-Table_RetroSummary[[#This Row],[Proposed Fixture Wattage]]*Table_RetroSummary[[#This Row],[P. Qty]])/1000,2)),\"\"),\"\")","v":""},{"$f":"IFERROR(IF(Table_RetroSummary[[#This Row],[Fixture Measure Description]]=\"Ineligible Fixture\",0,ROUND(IF(ProjectCost_Total=0,300000,ProjectCost_Total)*Table_RetroSummary[[#This Row],[Fixture Rebate]]/SUM(Table_RetroSummary[Fixture Rebate],Table_RetroSummary[Controls Rebate]),2)),\"\")","v":""},{"$f":"IFERROR(IF(Table_RetroSummary[[#This Row],[IsActive]],IF(Table_RetroSummary[[#This Row],[Fixture Measure Description]]=\"Ineligible Fixture\",0,Table_RetroSummary[[#This Row],[Existing Overall kWh]]-Table_RetroSummary[[#This Row],[Proposed Overall kWh (Existing Controls)]]),\"\"),\"\")","v":""},{"$f":"IFERROR(IF(Table_RetroSummary[[#This Row],[IsActive]],IF(Table_RetroSummary[[#This Row],[Fixture Measure Description]]=\"Ineligible Fixture\",0,(Table_RetroSummary[[#This Row],[Existing Fixture kWh]]-Table_RetroSummary[[#This Row],[Proposed Fixture kWh]])/Table_RetroSummary[[#This Row],[OpHrs]]*Table_RetroSummary[[#This Row],[CF (Ltg)]]*Table_RetroSummary[[#This Row],[DF (Ltg)]]),\"\"),\"\")","v":""},null,{"$f":"IFERROR(\n  IF(OR(Table_RetroSummary[[#This Row],[Fixture Measure Description]]=\"\",Table_RetroSummary[[#This Row],[Fixture Measure Description]]=\"Ineligible Fixture\"),\n    \"\",\n    IFERROR(VLOOKUP(RIGHT(Table_RetroSummary[[#This Row],[Existing Fixture]],LEN(Table_RetroSummary[[#This Row],[Existing Fixture]])-FIND(\" - \",Table_RetroSummary[[#This Row],[Existing Fixture]],FIND(\"]\",Table_RetroSummary[[#This Row],[Existing Fixture]],1))-2),Table_ControlType[],2,FALSE),\"None\")\n    & \" - \" &\n    IFERROR(VLOOKUP(RIGHT(Table_RetroSummary[[#This Row],[Proposed Fixture]],LEN(Table_RetroSummary[[#This Row],[Proposed Fixture]])-FIND(\" - \",Table_RetroSummary[[#This Row],[Proposed Fixture]],FIND(\"]\",Table_RetroSummary[[#This Row],[Proposed Fixture]],1))-2),Table_ControlType[],2, FALSE),None)),\n\"\")","v":""},{"$f":"IFERROR(VLOOKUP(Table_RetroSummary[[#This Row],[Controls Measure Description]],Table_ControlRate[],2,FALSE),\"\")","v":""},{"$f":"IFERROR(IF(Table_RetroSummary[[#This Row],[IsActive]],IF(Table_RetroSummary[[#This Row],[Controls Measure Description]]=\"\",0,ROUND(Table_RetroSummary[[#This Row],[Controls Rebate (per Fixt Watt)]]*Table_RetroSummary[[#This Row],[Proposed Fixture Wattage]]*Table_RetroSummary[[#This Row],[P. Qty]],2)),\"\"),\"\")","v":""},{"$f":"IFERROR(IF(Table_RetroSummary[[#This Row],[Fixture Measure Description]]=\"Ineligible Fixture\",0,ROUND(IF(ProjectCost_Total=0,300000,ProjectCost_Total)*Table_RetroSummary[[#This Row],[Controls Rebate]]/SUM(Table_RetroSummary[Fixture Rebate],Table_RetroSummary[Controls Rebate]),2)),\"\")","v":""},{"$f":"IFERROR(IF(Table_RetroSummary[[#This Row],[IsActive]],IF(Table_RetroSummary[[#This Row],[Controls Measure Description]]=\"\",0,(Table_RetroSummary[[#This Row],[Proposed Fixture (Existing Controls) kWh]]-Table_RetroSummary[[#This Row],[Proposed Fixture (Proposed Controls) kWh]])),\"\"),\"\")","v":""},{"$f":"IFERROR(IF(Table_RetroSummary[[#This Row],[IsActive]],IF(Table_RetroSummary[[#This Row],[Controls Measure Description]]=\"\",0,(Table_RetroSummary[[#This Row],[Proposed Fixture (Existing Controls) kWh]]-Table_RetroSummary[[#This Row],[Proposed Fixture (Proposed Controls) kWh]])/Table_RetroSummary[[#This Row],[OpHrs]]*Table_RetroSummary[[#This Row],[CF (Ltg)]]*Table_RetroSummary[[#This Row],[DF (Ltg)]]),\"\"),\"\")","v":""},null,{"$f":"IFERROR(IF(NOT(ISNUMBER(Table_RetroSummary[[#This Row],[Fixture Rebate]])),\"\",IF(MIN(IF(SUM(Table_RetroSummary[Fixture Cost],Table_RetroSummary[Controls Cost])<0,0,SUM(Table_RetroSummary[Fixture Cost],Table_RetroSummary[Controls Cost])),SUM(Table_RetroSummary[Fixture Rebate],Table_RetroSummary[Controls Rebate]))>300000,300000/MIN(IF(SUM(Table_RetroSummary[Fixture Cost],Table_RetroSummary[Controls Cost])<0,0,SUM(Table_RetroSummary[Fixture Cost],Table_RetroSummary[Controls Cost])),SUM(Table_RetroSummary[Fixture Rebate],Table_RetroSummary[Controls Rebate]))*MIN(IF(SUM(Table_RetroSummary[Fixture Cost],Table_RetroSummary[Controls Cost])<0,0,SUM(Table_RetroSummary[Fixture Cost],Table_RetroSummary[Controls Cost])),Table_RetroSummary[[#This Row],[Fixture Rebate]]+IF(Table_RetroSummary[[#This Row],[Controls Rebate]]=\"\",0,Table_RetroSummary[[#This Row],[Controls Rebate]])),MIN(IF(SUM(Table_RetroSummary[Fixture Cost],Table_RetroSummary[Controls Cost])<0,0,SUM(Table_RetroSummary[Fixture Cost],Table_RetroSummary[Controls Cost])),Table_RetroSummary[[#This Row],[Fixture Rebate]]+IF(Table_RetroSummary[[#This Row],[Controls Rebate]]=\"\",0,Table_RetroSummary[[#This Row],[Controls Rebate]])))),\"\")","v":""},{"$f":"IFERROR(IF(Table_RetroSummary[[#This Row],[Fixture Cost]]=\"\",\"\",Table_RetroSummary[[#This Row],[Fixture Cost]]+IF(Table_RetroSummary[[#This Row],[Controls Cost]]=\"\",0,Table_RetroSummary[[#This Row],[Controls Cost]])),\"\")","v":""},{"$f":"IFERROR(IF(Table_RetroSummary[[#This Row],[IsActive]],IF(Table_POSTInfo[[#This Row],[Interior/ Exterior]]=\"Interior\",IFERROR((Table_RetroSummary[[#This Row],[Annual Fixture Savings (kWh)]]+Table_RetroSummary[[#This Row],[Annual Control Savings (kWh)]])*(Table_RetroSummary[[#This Row],[EIF]]-1),0),0),\"\"),\"\")","v":""},{"$f":"IFERROR(IF(Table_RetroSummary[[#This Row],[IsActive]],IF(Table_POSTInfo[[#This Row],[Interior/ Exterior]]=\"Interior\",IFERROR((Table_RetroSummary[[#This Row],[Fixture kW Reduction]]+Table_RetroSummary[[#This Row],[Control kW Reduction]]/(Table_RetroSummary[[#This Row],[CF (Ltg)]]*Table_RetroSummary[[#This Row],[DF (Ltg)]]))*(Table_RetroSummary[[#This Row],[DIF]]-1)*Table_RetroSummary[[#This Row],[CF (HVAC)]]*Table_RetroSummary[[#This Row],[DF (HVAC)]],0),0),\"\"),\"\")","v":""},{"$f":"IFERROR(IF(Table_RetroSummary[[#This Row],[IsActive]],IF(NOT(ISNUMBER(Table_RetroSummary[[#This Row],[Fixture Rebate]])),\"\",ROUND(Table_RetroSummary[[#This Row],[Annual Fixture Savings (kWh)]]+Table_RetroSummary[[#This Row],[Annual Control Savings (kWh)]],0)),\"\"),\"\")","v":""},{"$f":"IFERROR(IF(Table_RetroSummary[[#This Row],[IsActive]],IF(NOT(ISNUMBER(Table_RetroSummary[[#This Row],[Fixture Rebate]])),\"\",ROUND(Table_RetroSummary[[#This Row],[Fixture kW Reduction]]+Table_RetroSummary[[#This Row],[Control kW Reduction]],3)),\"\"),\"\")","v":""},{"$f":"IFERROR(IF(Table_RetroSummary[[#This Row],[IsActive]],IF(NOT(ISNUMBER(Table_RetroSummary[[#This Row],[Fixture Rebate]])),\"\",ROUND(Table_RetroSummary[[#This Row],[Fixture Energy Savings (kWh)]]+Table_RetroSummary[[#This Row],[Induced HVAC Energy Savings (kWh)]],0)),\"\"),\"\")","v":""},{"$f":"IFERROR(IF(Table_RetroSummary[[#This Row],[IsActive]],IF(NOT(ISNUMBER(Table_RetroSummary[[#This Row],[Fixture Rebate]])),\"\",ROUND(Table_RetroSummary[[#This Row],[Fixture Demand Savings (kW)]]+Table_RetroSummary[[#This Row],[Induced HVAC Demand Savings (kW)]],3)),\"\"),\"\")","v":""}]
[{"$f":"IFERROR(Table_POSTInfo[[#This Row],[Line]],\"\")","v":17},{"$f":"IFERROR(Table_POSTInfo[[#This Row],[IsActive]],\"\")","v":false},{"$f":"IFERROR(IF(Table_RetroSummary[[#This Row],[IsActive]],CONCATENATE(Table_RetroSummary[[#This Row],[Existing Fixture]],\" | \",Table_RetroSummary[[#This Row],[Proposed Fixture]]),\"\"),\"\")","v":""},{"$f":"IFERROR(IF(Table_RetroSummary[[#This Row],[IsActive]],VLOOKUP(IF(ISNUMBER(MATCH(Table_POSTInfo[[#This Row],[Line]],Table_POSTInspection[Line],0)),INDEX(Table_POSTInspection[Schedule],MATCH(Table_RetroSummary[[#This Row],[Line Item]],Table_POSTInspection[Line],0)),Table_POSTInfo[[#This Row],[Schedule]]),'Customer Information'!$S$27:$T$34,2,FALSE),\"\"),\"\")","v":""},{"$f":"IFERROR(IF(Table_RetroSummary[[#This Row],[IsActive]],IF(IF(ISNUMBER(MATCH(Table_RetroSummary[[#This Row],[Line Item]],Table_POSTInspection[Line],0)),INDEX(Table_POSTInspection[Interior/ Exterior],MATCH(Table_RetroSummary[[#This Row],[Line Item]],Table_POSTInfo[[#This Row],[Line]],0)),Table_POSTInfo[[#This Row],[Interior/ Exterior]])=\"Interior\",'Customer Information'!$S$25,0),\"\"),\"\")","v":""},{"$f":"IFERROR(IF(Table_RetroSummary[[#This Row],[IsActive]],IF(IF(ISNUMBER(MATCH(Table_RetroSummary[[#This Row],[Line Item]],Table_POSTInspection[Line],0)),INDEX(Table_POSTInspection[Interior/ Exterior],MATCH(Table_RetroSummary[[#This Row],[Line Item]],Table_POSTInfo[[#This Row],[Line]],0)),Table_POSTInfo[[#This Row],[Interior/ Exterior]])=\"Interior\",'Customer Information'!$T$25,0),\"\"),\"\")","v":""},{"$f":"IFERROR(IF(Table_RetroSummary[[#This Row],[IsActive]],IF(IF(ISNUMBER(MATCH(Table_RetroSummary[[#This Row],[Line Item]],Table_POSTInspection[Line],0)),INDEX(Table_POSTInspection[Interior/ Exterior],MATCH(Table_RetroSummary[[#This Row],[Line Item]],Table_POSTInfo[[#This Row],[Line]],0)),Table_POSTInfo[[#This Row],[Interior/ Exterior]])=\"Interior\",'Customer Information'!$U$25,0),\"\"),\"\")","v":""},{"$f":"IFERROR(IF(Table_RetroSummary[[#This Row],[IsActive]],IF(IF(ISNUMBER(MATCH(Table_RetroSummary[[#This Row],[Line Item]],Table_POSTInspection[Line],0)),INDEX(Table_POSTInspection[Interior/ Exterior],MATCH(Table_RetroSummary[[#This Row],[Line Item]],Table_POSTInfo[[#This Row],[Line]],0)),Table_POSTInfo[[#This Row],[Interior/ Exterior]])=\"Interior\",'Customer Information'!$V$25,0),\"\"),\"\")","v":""},{"$f":"IFERROR(IF(Table_RetroSummary[[#This Row],[IsActive]],IF(IF(ISNUMBER(MATCH(Table_RetroSummary[[#This Row],[Line Item]],Table_POSTInspection[Line],0)),INDEX(Table_POSTInspection[Interior/ Exterior],MATCH(Table_RetroSummary[[#This Row],[Line Item]],Table_POSTInfo[[#This Row],[Line]],0)),Table_POSTInfo[[#This Row],[Interior/ Exterior]])=\"Interior\",'Customer Information'!$W$25,0),\"\"),\"\")","v":""},{"$f":"IFERROR(IF(Table_RetroSummary[[#This Row],[IsActive]],IF(IF(ISNUMBER(MATCH(Table_RetroSummary[[#This Row],[Line Item]],Table_POSTInspection[Line],0)),INDEX(Table_POSTInspection[Interior/ Exterior],MATCH(Table_RetroSummary[[#This Row],[Line Item]],Table_POSTInfo[[#This Row],[Line]],0)),Table_POSTInfo[[#This Row],[Interior/ Exterior]])=\"Interior\",'Customer Information'!$X$25,0),\"\"),\"\")","v":""},{"$f":"IFERROR(IF(Table_RetroSummary[[#This Row],[IsActive]],\nCONCATENATE(\nIF(ISNUMBER(MATCH(Table_POSTInfo[[#This Row],[Line]],Table_POSTInspection[Line],0)),INDEX(Table_POSTInspection[Interior/ Exterior],MATCH(Table_RetroSummary[[#This Row],[Line Item]],Table_POSTInspection[Line],0)),Table_POSTInfo[[#This Row],[Interior/ Exterior]]),\n\" - \",\nIF(ISNUMBER(MATCH(Table_POSTInfo[[#This Row],[Line]],Table_POSTInspection[Line],0)),INDEX(Table_POSTInspection[Space Description],MATCH(Table_RetroSummary[[#This Row],[Line Item]],Table_POSTInspection[Line],0)),Table_POSTInfo[[#This Row],[Space Description]])),\n \"\"),\"\")","v":""},{"$f":"IFERROR(IF(Table_RetroSummary[[#This Row],[IsActive]]=\"\",\"\",Table_POSTInfo[[#This Row],[Fixture Description '[E']]]),\"\")","v":""},{"$f":"IFERROR(IF(Table_RetroSummary[[#This Row],[IsActive]]=\"\",\"\",Table_POSTInfo[[#This Row],['# Lamps/ Fixture '[E']]]),\"\")","v":""},{"$f":"IFERROR(IF(Table_RetroSummary[[#This Row],[IsActive]]=\"\",\"\",Table_POSTInfo[[#This Row],[Fixture/ Lamp Wattage '[E']]]),\"\")","v":""},{"$f":"IFERROR(IF(Table_RetroSummary[[#This Row],[IsActive]]=\"\",\"\",Table_POSTInfo[[#This Row],[Fixture Qty '[E']]]),\"\")","v":""},{"$f":"IFERROR(IF(Table_RetroSummary[[#This Row],[IsActive]],Table_RetroSummary[[#This Row],[Fixture/ Lamp Wattage '[E']]]*Table_RetroSummary[[#This Row],[E. Qty]],\"\"),\"\")","v":""},{"$f":"IFERROR(IF(Table_RetroSummary[[#This Row],[IsActive]]=\"\",\"\",Table_POSTInfo[[#This Row],[Fixture Wattage '[E']]]),\"\")","v":""},{"$f":"IFERROR(IF(Table_RetroSummary[[#This Row],[IsActive]],IFERROR(Table_RetroSummary[[#This Row],[Existing Fixture Wattage]]/1000*Table_RetroSummary[[#This Row],[OpHrs]]*Table_RetroSummary[[#This Row],[E. Qty]],0),\"\"),\"\")","v":""},{"$f":"IFERROR(IF(Table_RetroSummary[[#This Row],[IsActive]],IFERROR(VLOOKUP(RIGHT(Table_RetroSummary[[#This Row],[Existing Fixture]],LEN(Table_RetroSummary[[#This Row],[Existing Fixture]])-FIND(\" - \",Table_RetroSummary[[#This Row],[Existing Fixture]],FIND(\"]\",Table_RetroSummary[[#This Row],[Existing Fixture]],1))-2),Table_ControlType[],3,FALSE),0),\"\"),\"\")","v":""},{"$f":"IFERROR(IF(Table_RetroSummary[[#This Row],[IsActive]],IFERROR(Table_RetroSummary[[#This Row],[Existing Fixture Wattage]]/1000*Table_RetroSummary[[#This Row],[OpHrs]]*Table_RetroSummary[[#This Row],[E. Qty]]*Table_RetroSummary[[#This Row],[Existing CSF]]*(-1),0),\"\"),\"\")","v":""},{"$f":"IFERROR(Table_RetroSummary[[#This Row],[Existing Fixture kWh]]+Table_RetroSummary[[#This Row],[Existing Fixture (Existing Controls) kWh]],\"\")","v":""},{"$f":"IFERROR(IF(Table_RetroSummary[[#This Row],[IsActive]],IF(ISNUMBER(MATCH(Table_POSTInfo[[#This Row],[Line]],Table_POSTInspection[Line],0)),INDEX(Table_POSTInspection[Fixture Description '[P']],MATCH(Table_RetroSummary[[#This Row],[Line Item]],Table_POSTInspection[Line],0)),Table_POSTInfo[[#This Row],[Fixture Description '[P']]]),\"\"),\"\")","v":""},{"$f":"IFERROR(IF(Table_RetroSummary[[#This Row],[IsActive]],IF(ISNUMBER(MATCH(Table_POSTInfo[[#This Row],[Line]],Table_POSTInspection[Line],0)),INDEX(Table_POSTInspection['# Lamps/ Fixture '[P']],MATCH(Table_RetroSummary[[#This Row],[Line Item]],Table_POSTInspection[Line],0)),Table_POSTInfo[[#This Row],['# Lamps/ Fixture '[P']]]),\"\"),\"\")","v":""},{"$f":"IFERROR(IF(Table_RetroSummary[[#This Row],[IsActive]],IF(ISNUMBER(MATCH(Table_POSTInfo[[#This Row],[Line]],Table_POSTInspection[Line],0)),INDEX(Table_POSTInspection[Fixture/ Lamp Wattage '[P']],MATCH(Table_RetroSummary[[#This Row],[Line Item]],Table_POSTInspection[Line],0)),Table_POSTInfo[[#This Row],[Fixture/ Lamp Wattage '[P']]]),\"\"),\"\")","v":""},{"$f":"IFERROR(IF(Table_RetroSummary[[#This Row],[IsActive]],IF(ISNUMBER(MATCH(Table_POSTInfo[[#This Row],[Line]],Table_POSTInspection[Line],0)),INDEX(Table_POSTInspection[Fixture Qty '[P']],MATCH(Table_RetroSummary[[#This Row],[Line Item]],Table_POSTInspection[Line],0)),Table_POSTInfo[[#This Row],[Fixture Qty '[P']]]),\"\"),\"\")","v":""},{"$f":"IFERROR(IF(Table_RetroSummary[[#This Row],[IsActive]],Table_RetroSummary[[#This Row],[Fixture/ Lamp Wattage '[P']]]*Table_RetroSummary[[#This Row],[P. Qty]],\"\"),\"\")","v":""},{"$f":"IFERROR(IF(Table_RetroSummary[[#This Row],[IsActive]],IF(ISNUMBER(MATCH(Table_POSTInfo[[#This Row],[Line]],Table_POSTInspection[Line],0)),INDEX(Table_POSTInspection[Fixture Wattage '[P']],MATCH(Table_RetroSummary[[#This Row],[Line Item]],Table_POSTInspection[Line],0)),Table_POSTInfo[[#This Row],[Fixture Wattage '[P']]]),\"\"),\"\")","v":""},{"$f":"IFERROR(Table_RetroSummary[[#This Row],[Total '# Lamps '[P']]]+Table_RetroSummary[[#This Row],[Proposed Fixture Wattage]],\"\")","v":""},{"$f":"IFERROR(Table_RetroSummary[[#This Row],[Proposed Fixture Wattage]]/1000*Table_RetroSummary[[#This Row],[OpHrs]]*Table_RetroSummary[[#This Row],[P. Qty]],\"\")","v":""},{"$f":"IFERROR(IF(Table_RetroSummary[[#This Row],[IsActive]],IFERROR(VLOOKUP(RIGHT(Table_RetroSummary[[#This Row],[Proposed Fixture]],LEN(Table_RetroSummary[[#This Row],[Proposed Fixture]])-FIND(\" - \",Table_RetroSummary[[#This Row],[Proposed Fixture]],FIND(\"]\",Table_RetroSummary[[#This Row],[Proposed Fixture]],1))-2),Table_ControlType[],3, FALSE),0),\"\"),\"\")","v":""},{"$f":"IFERROR(IF(Table_RetroSummary[[#This Row],[IsActive]],IFERROR(Table_RetroSummary[[#This Row],[Proposed Fixture Wattage]]/1000*Table_RetroSummary[[#This Row],[OpHrs]]*Table_RetroSummary[[#This Row],[P. Qty]]*Table_RetroSummary[[#This Row],[Existing CSF]]*(-1),0),\"\"),\"\")","v":""},{"$f":"IFERROR(Table_RetroSummary[[#This Row],[Proposed Fixture kWh]]+Table_RetroSummary[[#This Row],[Proposed Fixture (Existing Controls) kWh]],\"\")","v":""},{"$f":"IFERROR(IF(Table_RetroSummary[[#This Row],[IsActive]],IFERROR(Table_RetroSummary[[#This Row],[Proposed Fixture Wattage]]/1000*Table_RetroSummary[[#This Row],[OpHrs]]*Table_RetroSummary[[#This Row],[P. Qty]]*Table_RetroSummary[[#This Row],[Proposed CSF]]*(-1),0),\"\"),\"\")","v":""},{"$f":"IFERROR(Table_RetroSummary[[#This Row],[Proposed Fixture kWh]]+Table_RetroSummary[[#This Row],[Proposed Fixture (Proposed Controls) kWh]],\"\")","v":""},{"$f":"IFERROR(IF(Table_RetroSummary[[#This Row],[IsActive]],IF(ISNUMBER(MATCH(Table_POSTInfo[[#This Row],[Line]],Table_POSTInspection[Line],0)),INDEX(Table_POSTInspection[DLC or ES Certification '[P']],MATCH(Table_RetroSummary[[#This Row],[Line Item]],Table_POSTInspection[Line],0)),Table_POSTInfo[[#This Row],[DLC or ES Certification '[P']]]),\"\"),\"\")","v":""},null,{"$f":"IFERROR(IF(Table_RetroSummary[[#This Row],[IsActive]],\nIF(AND(RIGHT(Table_RetroSummary[[#This Row],[Existing Fixture]],LEN(Table_RetroSummary[[#This Row],[Existing Fixture]])-FIND(\":\",Table_RetroSummary[[#This Row],[Existing Fixture]],1)-1)<>Table_RetroSummary[[#This Row],[Proposed Fixture]],MID(Table_RetroSummary[[#This Row],[Existing Fixture]],FIND(\": \",Table_RetroSummary[[#This Row],[Existing Fixture]],1)+2,FIND(\"]\",Table_RetroSummary[[#This Row],[Existing Fixture]],1))=LEFT(Table_RetroSummary[[#This Row],[Proposed Fixture]],FIND(\"]\",Table_RetroSummary[[#This Row],[Proposed Fixture]],1))),\n  \"Controls Only\",\n  IF(Table_POSTInfo[[#This Row],[DLC or ES Certification '[P']]]<>\"\",\n    IF(ISNUMBER(FIND(\"LED Tube\",Table_RetroSummary[[#This Row],[Proposed Fixture]],1)),\n      \"LED Re-Lamp\",\n      IF(AND(Table_RetroSummary[[#This Row],[Existing Overall kWh]]>Table_RetroSummary[[#This Row],[Proposed Overall kWh (Existing Controls)]],ISNUMBER(FIND(\"LED\",Table_RetroSummary[[#This Row],[Proposed Fixture]],1))),\n        IF(Table_POSTInfo[[#This Row],[Interior/ Exterior]]=\"Exterior\",\n          \"Exterior LED Fixture\",\n          \"Interior LED Fixture\"),\n        \"Ineligible Fixture\")),\n    \"Ineligible Fixture\")),\n\"\"),\"\")","v":""},{"$f":"IFERROR(VLOOKUP(Table_RetroSummary[[#This Row],[Fixture Measure Description]],Table_FixtureRate[],2,FALSE),\"\")","v":""},{"$f":"IFERROR(IF(Table_RetroSummary[[#This Row],[IsActive]],IF(Table_RetroSummary[[#This Row],[Fixture Measure Description]]=\"Ineligible Fixture\",0,ROUND(Table_RetroSummary[[#This Row],[Fixture Rebate (per kW)]]*(Table_RetroSummary[[#This Row],[Existing Fixture Wattage]]*Table_RetroSummary[[#This Row],[E. Qty]]-Table_RetroSummary[[#This Row],[Proposed Fixture Wattage]]*Table_RetroSummary[[#This Row],[P. Qty]])/1000,2)),\"\"),\"\")","v":""},{"$f":"IFERROR(IF(Table_RetroSummary[[#This Row],[Fixture Measure Description]]=\"Ineligible Fixture\",0,ROUND(IF(ProjectCost_Total=0,300000,ProjectCost_Total)*Table_RetroSummary[[#This Row],[Fixture Rebate]]/SUM(Table_RetroSummary[Fixture Rebate],Table_RetroSummary[Controls Rebate]),2)),\"\")","v":""},{"$f":"IFERROR(IF(Table_RetroSummary[[#This Row],[IsActive]],IF(Table_RetroSummary[[#This Row],[Fixture Measure Description]]=\"Ineligible Fixture\",0,Table_RetroSummary[[#This Row],[Existing Overall kWh]]-Table_RetroSummary[[#This Row],[Proposed Overall kWh (Existing Controls)]]),\"\"),\"\")","v":""},{"$f":"IFERROR(IF(Table_RetroSummary[[#This Row],[IsActive]],IF(Table_RetroSummary[[#This Row],[Fixture Measure Description]]=\"Ineligible Fixture\",0,(Table_RetroSummary[[#This Row],[Existing Fixture kWh]]-Table_RetroSummary[[#This Row],[Proposed Fixture kWh]])/Table_RetroSummary[[#This Row],[OpHrs]]*Table_RetroSummary[[#This Row],[CF (Ltg)]]*Table_RetroSummary[[#This Row],[DF (Ltg)]]),\"\"),\"\")","v":""},null,{"$f":"IFERROR(\n  IF(OR(Table_RetroSummary[[#This Row],[Fixture Measure Description]]=\"\",Table_RetroSummary[[#This Row],[Fixture Measure Description]]=\"Ineligible Fixture\"),\n    \"\",\n    IFERROR(VLOOKUP(RIGHT(Table_RetroSummary[[#This Row],[Existing Fixture]],LEN(Table_RetroSummary[[#This Row],[Existing Fixture]])-FIND(\" - \",Table_RetroSummary[[#This Row],[Existing Fixture]],FIND(\"]\",Table_RetroSummary[[#This Row],[Existing Fixture]],1))-2),Table_ControlType[],2,FALSE),\"None\")\n    & \" - \" &\n    IFERROR(VLOOKUP(RIGHT(Table_RetroSummary[[#This Row],[Proposed Fixture]],LEN(Table_RetroSummary[[#This Row],[Proposed Fixture]])-FIND(\" - \",Table_RetroSummary[[#This Row],[Proposed Fixture]],FIND(\"]\",Table_RetroSummary[[#This Row],[Proposed Fixture]],1))-2),Table_ControlType[],2, FALSE),None)),\n\"\")","v":""},{"$f":"IFERROR(VLOOKUP(Table_RetroSummary[[#This Row],[Controls Measure Description]],Table_ControlRate[],2,FALSE),\"\")","v":""},{"$f":"IFERROR(IF(Table_RetroSummary[[#This Row],[IsActive]],IF(Table_RetroSummary[[#This Row],[Controls Measure Description]]=\"\",0,ROUND(Table_RetroSummary[[#This Row],[Controls Rebate (per Fixt Watt)]]*Table_RetroSummary[[#This Row],[Proposed Fixture Wattage]]*Table_RetroSummary[[#This Row],[P. Qty]],2)),\"\"),\"\")","v":""},{"$f":"IFERROR(IF(Table_RetroSummary[[#This Row],[Fixture Measure Description]]=\"Ineligible Fixture\",0,ROUND(IF(ProjectCost_Total=0,300000,ProjectCost_Total)*Table_RetroSummary[[#This Row],[Controls Rebate]]/SUM(Table_RetroSummary[Fixture Rebate],Table_RetroSummary[Controls Rebate]),2)),\"\")","v":""},{"$f":"IFERROR(IF(Table_RetroSummary[[#This Row],[IsActive]],IF(Table_RetroSummary[[#This Row],[Controls Measure Description]]=\"\",0,(Table_RetroSummary[[#This Row],[Proposed Fixture (Existing Controls) kWh]]-Table_RetroSummary[[#This Row],[Proposed Fixture (Proposed Controls) kWh]])),\"\"),\"\")","v":""},{"$f":"IFERROR(IF(Table_RetroSummary[[#This Row],[IsActive]],IF(Table_RetroSummary[[#This Row],[Controls Measure Description]]=\"\",0,(Table_RetroSummary[[#This Row],[Proposed Fixture (Existing Controls) kWh]]-Table_RetroSummary[[#This Row],[Proposed Fixture (Proposed Controls) kWh]])/Table_RetroSummary[[#This Row],[OpHrs]]*Table_RetroSummary[[#This Row],[CF (Ltg)]]*Table_RetroSummary[[#This Row],[DF (Ltg)]]),\"\"),\"\")","v":""},null,{"$f":"IFERROR(IF(NOT(ISNUMBER(Table_RetroSummary[[#This Row],[Fixture Rebate]])),\"\",IF(MIN(IF(SUM(Table_RetroSummary[Fixture Cost],Table_RetroSummary[Controls Cost])<0,0,SUM(Table_RetroSummary[Fixture Cost],Table_RetroSummary[Controls Cost])),SUM(Table_RetroSummary[Fixture Rebate],Table_RetroSummary[Controls Rebate]))>300000,300000/MIN(IF(SUM(Table_RetroSummary[Fixture Cost],Table_RetroSummary[Controls Cost])<0,0,SUM(Table_RetroSummary[Fixture Cost],Table_RetroSummary[Controls Cost])),SUM(Table_RetroSummary[Fixture Rebate],Table_RetroSummary[Controls Rebate]))*MIN(IF(SUM(Table_RetroSummary[Fixture Cost],Table_RetroSummary[Controls Cost])<0,0,SUM(Table_RetroSummary[Fixture Cost],Table_RetroSummary[Controls Cost])),Table_RetroSummary[[#This Row],[Fixture Rebate]]+IF(Table_RetroSummary[[#This Row],[Controls Rebate]]=\"\",0,Table_RetroSummary[[#This Row],[Controls Rebate]])),MIN(IF(SUM(Table_RetroSummary[Fixture Cost],Table_RetroSummary[Controls Cost])<0,0,SUM(Table_RetroSummary[Fixture Cost],Table_RetroSummary[Controls Cost])),Table_RetroSummary[[#This Row],[Fixture Rebate]]+IF(Table_RetroSummary[[#This Row],[Controls Rebate]]=\"\",0,Table_RetroSummary[[#This Row],[Controls Rebate]])))),\"\")","v":""},{"$f":"IFERROR(IF(Table_RetroSummary[[#This Row],[Fixture Cost]]=\"\",\"\",Table_RetroSummary[[#This Row],[Fixture Cost]]+IF(Table_RetroSummary[[#This Row],[Controls Cost]]=\"\",0,Table_RetroSummary[[#This Row],[Controls Cost]])),\"\")","v":""},{"$f":"IFERROR(IF(Table_RetroSummary[[#This Row],[IsActive]],IF(Table_POSTInfo[[#This Row],[Interior/ Exterior]]=\"Interior\",IFERROR((Table_RetroSummary[[#This Row],[Annual Fixture Savings (kWh)]]+Table_RetroSummary[[#This Row],[Annual Control Savings (kWh)]])*(Table_RetroSummary[[#This Row],[EIF]]-1),0),0),\"\"),\"\")","v":""},{"$f":"IFERROR(IF(Table_RetroSummary[[#This Row],[IsActive]],IF(Table_POSTInfo[[#This Row],[Interior/ Exterior]]=\"Interior\",IFERROR((Table_RetroSummary[[#This Row],[Fixture kW Reduction]]+Table_RetroSummary[[#This Row],[Control kW Reduction]]/(Table_RetroSummary[[#This Row],[CF (Ltg)]]*Table_RetroSummary[[#This Row],[DF (Ltg)]]))*(Table_RetroSummary[[#This Row],[DIF]]-1)*Table_RetroSummary[[#This Row],[CF (HVAC)]]*Table_RetroSummary[[#This Row],[DF (HVAC)]],0),0),\"\"),\"\")","v":""},{"$f":"IFERROR(IF(Table_RetroSummary[[#This Row],[IsActive]],IF(NOT(ISNUMBER(Table_RetroSummary[[#This Row],[Fixture Rebate]])),\"\",ROUND(Table_RetroSummary[[#This Row],[Annual Fixture Savings (kWh)]]+Table_RetroSummary[[#This Row],[Annual Control Savings (kWh)]],0)),\"\"),\"\")","v":""},{"$f":"IFERROR(IF(Table_RetroSummary[[#This Row],[IsActive]],IF(NOT(ISNUMBER(Table_RetroSummary[[#This Row],[Fixture Rebate]])),\"\",ROUND(Table_RetroSummary[[#This Row],[Fixture kW Reduction]]+Table_RetroSummary[[#This Row],[Control kW Reduction]],3)),\"\"),\"\")","v":""},{"$f":"IFERROR(IF(Table_RetroSummary[[#This Row],[IsActive]],IF(NOT(ISNUMBER(Table_RetroSummary[[#This Row],[Fixture Rebate]])),\"\",ROUND(Table_RetroSummary[[#This Row],[Fixture Energy Savings (kWh)]]+Table_RetroSummary[[#This Row],[Induced HVAC Energy Savings (kWh)]],0)),\"\"),\"\")","v":""},{"$f":"IFERROR(IF(Table_RetroSummary[[#This Row],[IsActive]],IF(NOT(ISNUMBER(Table_RetroSummary[[#This Row],[Fixture Rebate]])),\"\",ROUND(Table_RetroSummary[[#This Row],[Fixture Demand Savings (kW)]]+Table_RetroSummary[[#This Row],[Induced HVAC Demand Savings (kW)]],3)),\"\"),\"\")","v":""}]
[{"$f":"IFERROR(Table_POSTInfo[[#This Row],[Line]],\"\")","v":18},{"$f":"IFERROR(Table_POSTInfo[[#This Row],[IsActive]],\"\")","v":false},{"$f":"IFERROR(IF(Table_RetroSummary[[#This Row],[IsActive]],CONCATENATE(Table_RetroSummary[[#This Row],[Existing Fixture]],\" | \",Table_RetroSummary[[#This Row],[Proposed Fixture]]),\"\"),\"\")","v":""},{"$f":"IFERROR(IF(Table_RetroSummary[[#This Row],[IsActive]],VLOOKUP(IF(ISNUMBER(MATCH(Table_POSTInfo[[#This Row],[Line]],Table_POSTInspection[Line],0)),INDEX(Table_POSTInspection[Schedule],MATCH(Table_RetroSummary[[#This Row],[Line Item]],Table_POSTInspection[Line],0)),Table_POSTInfo[[#This Row],[Schedule]]),'Customer Information'!$S$27:$T$34,2,FALSE),\"\"),\"\")","v":""},{"$f":"IFERROR(IF(Table_RetroSummary[[#This Row],[IsActive]],IF(IF(ISNUMBER(MATCH(Table_RetroSummary[[#This Row],[Line Item]],Table_POSTInspection[Line],0)),INDEX(Table_POSTInspection[Interior/ Exterior],MATCH(Table_RetroSummary[[#This Row],[Line Item]],Table_POSTInfo[[#This Row],[Line]],0)),Table_POSTInfo[[#This Row],[Interior/ Exterior]])=\"Interior\",'Customer Information'!$S$25,0),\"\"),\"\")","v":""},{"$f":"IFERROR(IF(Table_RetroSummary[[#This Row],[IsActive]],IF(IF(ISNUMBER(MATCH(Table_RetroSummary[[#This Row],[Line Item]],Table_POSTInspection[Line],0)),INDEX(Table_POSTInspection[Interior/ Exterior],MATCH(Table_RetroSummary[[#This Row],[Line Item]],Table_POSTInfo[[#This Row],[Line]],0)),Table_POSTInfo[[#This Row],[Interior/ Exterior]])=\"Interior\",'Customer Information'!$T$25,0),\"\"),\"\")","v":""},{"$f":"IFERROR(IF(Table_RetroSummary[[#This Row],[IsActive]],IF(IF(ISNUMBER(MATCH(Table_RetroSummary[[#This Row],[Line Item]],Table_POSTInspection[Line],0)),INDEX(Table_POSTInspection[Interior/ Exterior],MATCH(Table_RetroSummary[[#This Row],[Line Item]],Table_POSTInfo[[#This Row],[Line]],0)),Table_POSTInfo[[#This Row],[Interior/ Exterior]])=\"Interior\",'Customer Information'!$U$25,0),\"\"),\"\")","v":""},{"$f":"IFERROR(IF(Table_RetroSummary[[#This Row],[IsActive]],IF(IF(ISNUMBER(MATCH(Table_RetroSummary[[#This Row],[Line Item]],Table_POSTInspection[Line],0)),INDEX(Table_POSTInspection[Interior/ Exterior],MATCH(Table_RetroSummary[[#This Row],[Line Item]],Table_POSTInfo[[#This Row],[Line]],0)),Table_POSTInfo[[#This Row],[Interior/ Exterior]])=\"Interior\",'Customer Information'!$V$25,0),\"\"),\"\")","v":""},{"$f":"IFERROR(IF(Table_RetroSummary[[#This Row],[IsActive]],IF(IF(ISNUMBER(MATCH(Table_RetroSummary[[#This Row],[Line Item]],Table_POSTInspection[Line],0)),INDEX(Table_POSTInspection[Interior/ Exterior],MATCH(Table_RetroSummary[[#This Row],[Line Item]],Table_POSTInfo[[#This Row],[Line]],0)),Table_POSTInfo[[#This Row],[Interior/ Exterior]])=\"Interior\",'Customer Information'!$W$25,0),\"\"),\"\")","v":""},{"$f":"IFERROR(IF(Table_RetroSummary[[#This Row],[IsActive]],IF(IF(ISNUMBER(MATCH(Table_RetroSummary[[#This Row],[Line Item]],Table_POSTInspection[Line],0)),INDEX(Table_POSTInspection[Interior/ Exterior],MATCH(Table_RetroSummary[[#This Row],[Line Item]],Table_POSTInfo[[#This Row],[Line]],0)),Table_POSTInfo[[#This Row],[Interior/ Exterior]])=\"Interior\",'Customer Information'!$X$25,0),\"\"),\"\")","v":""},{"$f":"IFERROR(IF(Table_RetroSummary[[#This Row],[IsActive]],\nCONCATENATE(\nIF(ISNUMBER(MATCH(Table_POSTInfo[[#This Row],[Line]],Table_POSTInspection[Line],0)),INDEX(Table_POSTInspection[Interior/ Exterior],MATCH(Table_RetroSummary[[#This Row],[Line Item]],Table_POSTInspection[Line],0)),Table_POSTInfo[[#This Row],[Interior/ Exterior]]),\n\" - \",\nIF(ISNUMBER(MATCH(Table_POSTInfo[[#This Row],[Line]],Table_POSTInspection[Line],0)),INDEX(Table_POSTInspection[Space Description],MATCH(Table_RetroSummary[[#This Row],[Line Item]],Table_POSTInspection[Line],0)),Table_POSTInfo[[#This Row],[Space Description]])),\n \"\"),\"\")","v":""},{"$f":"IFERROR(IF(Table_RetroSummary[[#This Row],[IsActive]]=\"\",\"\",Table_POSTInfo[[#This Row],[Fixture Description '[E']]]),\"\")","v":""},{"$f":"IFERROR(IF(Table_RetroSummary[[#This Row],[IsActive]]=\"\",\"\",Table_POSTInfo[[#This Row],['# Lamps/ Fixture '[E']]]),\"\")","v":""},{"$f":"IFERROR(IF(Table_RetroSummary[[#This Row],[IsActive]]=\"\",\"\",Table_POSTInfo[[#This Row],[Fixture/ Lamp Wattage '[E']]]),\"\")","v":""},{"$f":"IFERROR(IF(Table_RetroSummary[[#This Row],[IsActive]]=\"\",\"\",Table_POSTInfo[[#This Row],[Fixture Qty '[E']]]),\"\")","v":""},{"$f":"IFERROR(IF(Table_RetroSummary[[#This Row],[IsActive]],Table_RetroSummary[[#This Row],[Fixture/ Lamp Wattage '[E']]]*Table_RetroSummary[[#This Row],[E. Qty]],\"\"),\"\")","v":""},{"$f":"IFERROR(IF(Table_RetroSummary[[#This Row],[IsActive]]=\"\",\"\",Table_POSTInfo[[#This Row],[Fixture Wattage '[E']]]),\"\")","v":""},{"$f":"IFERROR(IF(Table_RetroSummary[[#This Row],[IsActive]],IFERROR(Table_RetroSummary[[#This Row],[Existing Fixture Wattage]]/1000*Table_RetroSummary[[#This Row],[OpHrs]]*Table_RetroSummary[[#This Row],[E. Qty]],0),\"\"),\"\")","v":""},{"$f":"IFERROR(IF(Table_RetroSummary[[#This Row],[IsActive]],IFERROR(VLOOKUP(RIGHT(Table_RetroSummary[[#This Row],[Existing Fixture]],LEN(Table_RetroSummary[[#This Row],[Existing Fixture]])-FIND(\" - \",Table_RetroSummary[[#This Row],[Existing Fixture]],FIND(\"]\",Table_RetroSummary[[#This Row],[Existing Fixture]],1))-2),Table_ControlType[],3,FALSE),0),\"\"),\"\")","v":""},{"$f":"IFERROR(IF(Table_RetroSummary[[#This Row],[IsActive]],IFERROR(Table_RetroSummary[[#This Row],[Existing Fixture Wattage]]/1000*Table_RetroSummary[[#This Row],[OpHrs]]*Table_RetroSummary[[#This Row],[E. Qty]]*Table_RetroSummary[[#This Row],[Existing CSF]]*(-1),0),\"\"),\"\")","v":""},{"$f":"IFERROR(Table_RetroSummary[[#This Row],[Existing Fixture kWh]]+Table_RetroSummary[[#This Row],[Existing Fixture (Existing Controls) kWh]],\"\")","v":""},{"$f":"IFERROR(IF(Table_RetroSummary[[#This Row],[IsActive]],IF(ISNUMBER(MATCH(Table_POSTInfo[[#This Row],[Line]],Table_POSTInspection[Line],0)),INDEX(Table_POSTInspection[Fixture Description '[P']],MATCH(Table_RetroSummary[[#This Row],[Line Item]],Table_POSTInspection[Line],0)),Table_POSTInfo[[#This Row],[Fixture Description '[P']]]),\"\"),\"\")","v":""},{"$f":"IFERROR(IF(Table_RetroSummary[[#This Row],[IsActive]],IF(ISNUMBER(MATCH(Table_POSTInfo[[#This Row],[Line]],Table_POSTInspection[Line],0)),INDEX(Table_POSTInspection['# Lamps/ Fixture '[P']],MATCH(Table_RetroSummary[[#This Row],[Line Item]],Table_POSTInspection[Line],0)),Table_POSTInfo[[#This Row],['# Lamps/ Fixture '[P']]]),\"\"),\"\")","v":""},{"$f":"IFERROR(IF(Table_RetroSummary[[#This Row],[IsActive]],IF(ISNUMBER(MATCH(Table_POSTInfo[[#This Row],[Line]],Table_POSTInspection[Line],0)),INDEX(Table_POSTInspection[Fixture/ Lamp Wattage '[P']],MATCH(Table_RetroSummary[[#This Row],[Line Item]],Table_POSTInspection[Line],0)),Table_POSTInfo[[#This Row],[Fixture/ Lamp Wattage '[P']]]),\"\"),\"\")","v":""},{"$f":"IFERROR(IF(Table_RetroSummary[[#This Row],[IsActive]],IF(ISNUMBER(MATCH(Table_POSTInfo[[#This Row],[Line]],Table_POSTInspection[Line],0)),INDEX(Table_POSTInspection[Fixture Qty '[P']],MATCH(Table_RetroSummary[[#This Row],[Line Item]],Table_POSTInspection[Line],0)),Table_POSTInfo[[#This Row],[Fixture Qty '[P']]]),\"\"),\"\")","v":""},{"$f":"IFERROR(IF(Table_RetroSummary[[#This Row],[IsActive]],Table_RetroSummary[[#This Row],[Fixture/ Lamp Wattage '[P']]]*Table_RetroSummary[[#This Row],[P. Qty]],\"\"),\"\")","v":""},{"$f":"IFERROR(IF(Table_RetroSummary[[#This Row],[IsActive]],IF(ISNUMBER(MATCH(Table_POSTInfo[[#This Row],[Line]],Table_POSTInspection[Line],0)),INDEX(Table_POSTInspection[Fixture Wattage '[P']],MATCH(Table_RetroSummary[[#This Row],[Line Item]],Table_POSTInspection[Line],0)),Table_POSTInfo[[#This Row],[Fixture Wattage '[P']]]),\"\"),\"\")","v":""},{"$f":"IFERROR(Table_RetroSummary[[#This Row],[Total '# Lamps '[P']]]+Table_RetroSummary[[#This Row],[Proposed Fixture Wattage]],\"\")","v":""},{"$f":"IFERROR(Table_RetroSummary[[#This Row],[Proposed Fixture Wattage]]/1000*Table_RetroSummary[[#This Row],[OpHrs]]*Table_RetroSummary[[#This Row],[P. Qty]],\"\")","v":""},{"$f":"IFERROR(IF(Table_RetroSummary[[#This Row],[IsActive]],IFERROR(VLOOKUP(RIGHT(Table_RetroSummary[[#This Row],[Proposed Fixture]],LEN(Table_RetroSummary[[#This Row],[Proposed Fixture]])-FIND(\" - \",Table_RetroSummary[[#This Row],[Proposed Fixture]],FIND(\"]\",Table_RetroSummary[[#This Row],[Proposed Fixture]],1))-2),Table_ControlType[],3, FALSE),0),\"\"),\"\")","v":""},{"$f":"IFERROR(IF(Table_RetroSummary[[#This Row],[IsActive]],IFERROR(Table_RetroSummary[[#This Row],[Proposed Fixture Wattage]]/1000*Table_RetroSummary[[#This Row],[OpHrs]]*Table_RetroSummary[[#This Row],[P. Qty]]*Table_RetroSummary[[#This Row],[Existing CSF]]*(-1),0),\"\"),\"\")","v":""},{"$f":"IFERROR(Table_RetroSummary[[#This Row],[Proposed Fixture kWh]]+Table_RetroSummary[[#This Row],[Proposed Fixture (Existing Controls) kWh]],\"\")","v":""},{"$f":"IFERROR(IF(Table_RetroSummary[[#This Row],[IsActive]],IFERROR(Table_RetroSummary[[#This Row],[Proposed Fixture Wattage]]/1000*Table_RetroSummary[[#This Row],[OpHrs]]*Table_RetroSummary[[#This Row],[P. Qty]]*Table_RetroSummary[[#This Row],[Proposed CSF]]*(-1),0),\"\"),\"\")","v":""},{"$f":"IFERROR(Table_RetroSummary[[#This Row],[Proposed Fixture kWh]]+Table_RetroSummary[[#This Row],[Proposed Fixture (Proposed Controls) kWh]],\"\")","v":""},{"$f":"IFERROR(IF(Table_RetroSummary[[#This Row],[IsActive]],IF(ISNUMBER(MATCH(Table_POSTInfo[[#This Row],[Line]],Table_POSTInspection[Line],0)),INDEX(Table_POSTInspection[DLC or ES Certification '[P']],MATCH(Table_RetroSummary[[#This Row],[Line Item]],Table_POSTInspection[Line],0)),Table_POSTInfo[[#This Row],[DLC or ES Certification '[P']]]),\"\"),\"\")","v":""},null,{"$f":"IFERROR(IF(Table_RetroSummary[[#This Row],[IsActive]],\nIF(AND(RIGHT(Table_RetroSummary[[#This Row],[Existing Fixture]],LEN(Table_RetroSummary[[#This Row],[Existing Fixture]])-FIND(\":\",Table_RetroSummary[[#This Row],[Existing Fixture]],1)-1)<>Table_RetroSummary[[#This Row],[Proposed Fixture]],MID(Table_RetroSummary[[#This Row],[Existing Fixture]],FIND(\": \",Table_RetroSummary[[#This Row],[Existing Fixture]],1)+2,FIND(\"]\",Table_RetroSummary[[#This Row],[Existing Fixture]],1))=LEFT(Table_RetroSummary[[#This Row],[Proposed Fixture]],FIND(\"]\",Table_RetroSummary[[#This Row],[Proposed Fixture]],1))),\n  \"Controls Only\",\n  IF(Table_POSTInfo[[#This Row],[DLC or ES Certification '[P']]]<>\"\",\n    IF(ISNUMBER(FIND(\"LED Tube\",Table_RetroSummary[[#This Row],[Proposed Fixture]],1)),\n      \"LED Re-Lamp\",\n      IF(AND(Table_RetroSummary[[#This Row],[Existing Overall kWh]]>Table_RetroSummary[[#This Row],[Proposed Overall kWh (Existing Controls)]],ISNUMBER(FIND(\"LED\",Table_RetroSummary[[#This Row],[Proposed Fixture]],1))),\n        IF(Table_POSTInfo[[#This Row],[Interior/ Exterior]]=\"Exterior\",\n          \"Exterior LED Fixture\",\n          \"Interior LED Fixture\"),\n        \"Ineligible Fixture\")),\n    \"Ineligible Fixture\")),\n\"\"),\"\")","v":""},{"$f":"IFERROR(VLOOKUP(Table_RetroSummary[[#This Row],[Fixture Measure Description]],Table_FixtureRate[],2,FALSE),\"\")","v":""},{"$f":"IFERROR(IF(Table_RetroSummary[[#This Row],[IsActive]],IF(Table_RetroSummary[[#This Row],[Fixture Measure Description]]=\"Ineligible Fixture\",0,ROUND(Table_RetroSummary[[#This Row],[Fixture Rebate (per kW)]]*(Table_RetroSummary[[#This Row],[Existing Fixture Wattage]]*Table_RetroSummary[[#This Row],[E. Qty]]-Table_RetroSummary[[#This Row],[Proposed Fixture Wattage]]*Table_RetroSummary[[#This Row],[P. Qty]])/1000,2)),\"\"),\"\")","v":""},{"$f":"IFERROR(IF(Table_RetroSummary[[#This Row],[Fixture Measure Description]]=\"Ineligible Fixture\",0,ROUND(IF(ProjectCost_Total=0,300000,ProjectCost_Total)*Table_RetroSummary[[#This Row],[Fixture Rebate]]/SUM(Table_RetroSummary[Fixture Rebate],Table_RetroSummary[Controls Rebate]),2)),\"\")","v":""},{"$f":"IFERROR(IF(Table_RetroSummary[[#This Row],[IsActive]],IF(Table_RetroSummary[[#This Row],[Fixture Measure Description]]=\"Ineligible Fixture\",0,Table_RetroSummary[[#This Row],[Existing Overall kWh]]-Table_RetroSummary[[#This Row],[Proposed Overall kWh (Existing Controls)]]),\"\"),\"\")","v":""},{"$f":"IFERROR(IF(Table_RetroSummary[[#This Row],[IsActive]],IF(Table_RetroSummary[[#This Row],[Fixture Measure Description]]=\"Ineligible Fixture\",0,(Table_RetroSummary[[#This Row],[Existing Fixture kWh]]-Table_RetroSummary[[#This Row],[Proposed Fixture kWh]])/Table_RetroSummary[[#This Row],[OpHrs]]*Table_RetroSummary[[#This Row],[CF (Ltg)]]*Table_RetroSummary[[#This Row],[DF (Ltg)]]),\"\"),\"\")","v":""},null,{"$f":"IFERROR(\n  IF(OR(Table_RetroSummary[[#This Row],[Fixture Measure Description]]=\"\",Table_RetroSummary[[#This Row],[Fixture Measure Description]]=\"Ineligible Fixture\"),\n    \"\",\n    IFERROR(VLOOKUP(RIGHT(Table_RetroSummary[[#This Row],[Existing Fixture]],LEN(Table_RetroSummary[[#This Row],[Existing Fixture]])-FIND(\" - \",Table_RetroSummary[[#This Row],[Existing Fixture]],FIND(\"]\",Table_RetroSummary[[#This Row],[Existing Fixture]],1))-2),Table_ControlType[],2,FALSE),\"None\")\n    & \" - \" &\n    IFERROR(VLOOKUP(RIGHT(Table_RetroSummary[[#This Row],[Proposed Fixture]],LEN(Table_RetroSummary[[#This Row],[Proposed Fixture]])-FIND(\" - \",Table_RetroSummary[[#This Row],[Proposed Fixture]],FIND(\"]\",Table_RetroSummary[[#This Row],[Proposed Fixture]],1))-2),Table_ControlType[],2, FALSE),None)),\n\"\")","v":""},{"$f":"IFERROR(VLOOKUP(Table_RetroSummary[[#This Row],[Controls Measure Description]],Table_ControlRate[],2,FALSE),\"\")","v":""},{"$f":"IFERROR(IF(Table_RetroSummary[[#This Row],[IsActive]],IF(Table_RetroSummary[[#This Row],[Controls Measure Description]]=\"\",0,ROUND(Table_RetroSummary[[#This Row],[Controls Rebate (per Fixt Watt)]]*Table_RetroSummary[[#This Row],[Proposed Fixture Wattage]]*Table_RetroSummary[[#This Row],[P. Qty]],2)),\"\"),\"\")","v":""},{"$f":"IFERROR(IF(Table_RetroSummary[[#This Row],[Fixture Measure Description]]=\"Ineligible Fixture\",0,ROUND(IF(ProjectCost_Total=0,300000,ProjectCost_Total)*Table_RetroSummary[[#This Row],[Controls Rebate]]/SUM(Table_RetroSummary[Fixture Rebate],Table_RetroSummary[Controls Rebate]),2)),\"\")","v":""},{"$f":"IFERROR(IF(Table_RetroSummary[[#This Row],[IsActive]],IF(Table_RetroSummary[[#This Row],[Controls Measure Description]]=\"\",0,(Table_RetroSummary[[#This Row],[Proposed Fixture (Existing Controls) kWh]]-Table_RetroSummary[[#This Row],[Proposed Fixture (Proposed Controls) kWh]])),\"\"),\"\")","v":""},{"$f":"IFERROR(IF(Table_RetroSummary[[#This Row],[IsActive]],IF(Table_RetroSummary[[#This Row],[Controls Measure Description]]=\"\",0,(Table_RetroSummary[[#This Row],[Proposed Fixture (Existing Controls) kWh]]-Table_RetroSummary[[#This Row],[Proposed Fixture (Proposed Controls) kWh]])/Table_RetroSummary[[#This Row],[OpHrs]]*Table_RetroSummary[[#This Row],[CF (Ltg)]]*Table_RetroSummary[[#This Row],[DF (Ltg)]]),\"\"),\"\")","v":""},null,{"$f":"IFERROR(IF(NOT(ISNUMBER(Table_RetroSummary[[#This Row],[Fixture Rebate]])),\"\",IF(MIN(IF(SUM(Table_RetroSummary[Fixture Cost],Table_RetroSummary[Controls Cost])<0,0,SUM(Table_RetroSummary[Fixture Cost],Table_RetroSummary[Controls Cost])),SUM(Table_RetroSummary[Fixture Rebate],Table_RetroSummary[Controls Rebate]))>300000,300000/MIN(IF(SUM(Table_RetroSummary[Fixture Cost],Table_RetroSummary[Controls Cost])<0,0,SUM(Table_RetroSummary[Fixture Cost],Table_RetroSummary[Controls Cost])),SUM(Table_RetroSummary[Fixture Rebate],Table_RetroSummary[Controls Rebate]))*MIN(IF(SUM(Table_RetroSummary[Fixture Cost],Table_RetroSummary[Controls Cost])<0,0,SUM(Table_RetroSummary[Fixture Cost],Table_RetroSummary[Controls Cost])),Table_RetroSummary[[#This Row],[Fixture Rebate]]+IF(Table_RetroSummary[[#This Row],[Controls Rebate]]=\"\",0,Table_RetroSummary[[#This Row],[Controls Rebate]])),MIN(IF(SUM(Table_RetroSummary[Fixture Cost],Table_RetroSummary[Controls Cost])<0,0,SUM(Table_RetroSummary[Fixture Cost],Table_RetroSummary[Controls Cost])),Table_RetroSummary[[#This Row],[Fixture Rebate]]+IF(Table_RetroSummary[[#This Row],[Controls Rebate]]=\"\",0,Table_RetroSummary[[#This Row],[Controls Rebate]])))),\"\")","v":""},{"$f":"IFERROR(IF(Table_RetroSummary[[#This Row],[Fixture Cost]]=\"\",\"\",Table_RetroSummary[[#This Row],[Fixture Cost]]+IF(Table_RetroSummary[[#This Row],[Controls Cost]]=\"\",0,Table_RetroSummary[[#This Row],[Controls Cost]])),\"\")","v":""},{"$f":"IFERROR(IF(Table_RetroSummary[[#This Row],[IsActive]],IF(Table_POSTInfo[[#This Row],[Interior/ Exterior]]=\"Interior\",IFERROR((Table_RetroSummary[[#This Row],[Annual Fixture Savings (kWh)]]+Table_RetroSummary[[#This Row],[Annual Control Savings (kWh)]])*(Table_RetroSummary[[#This Row],[EIF]]-1),0),0),\"\"),\"\")","v":""},{"$f":"IFERROR(IF(Table_RetroSummary[[#This Row],[IsActive]],IF(Table_POSTInfo[[#This Row],[Interior/ Exterior]]=\"Interior\",IFERROR((Table_RetroSummary[[#This Row],[Fixture kW Reduction]]+Table_RetroSummary[[#This Row],[Control kW Reduction]]/(Table_RetroSummary[[#This Row],[CF (Ltg)]]*Table_RetroSummary[[#This Row],[DF (Ltg)]]))*(Table_RetroSummary[[#This Row],[DIF]]-1)*Table_RetroSummary[[#This Row],[CF (HVAC)]]*Table_RetroSummary[[#This Row],[DF (HVAC)]],0),0),\"\"),\"\")","v":""},{"$f":"IFERROR(IF(Table_RetroSummary[[#This Row],[IsActive]],IF(NOT(ISNUMBER(Table_RetroSummary[[#This Row],[Fixture Rebate]])),\"\",ROUND(Table_RetroSummary[[#This Row],[Annual Fixture Savings (kWh)]]+Table_RetroSummary[[#This Row],[Annual Control Savings (kWh)]],0)),\"\"),\"\")","v":""},{"$f":"IFERROR(IF(Table_RetroSummary[[#This Row],[IsActive]],IF(NOT(ISNUMBER(Table_RetroSummary[[#This Row],[Fixture Rebate]])),\"\",ROUND(Table_RetroSummary[[#This Row],[Fixture kW Reduction]]+Table_RetroSummary[[#This Row],[Control kW Reduction]],3)),\"\"),\"\")","v":""},{"$f":"IFERROR(IF(Table_RetroSummary[[#This Row],[IsActive]],IF(NOT(ISNUMBER(Table_RetroSummary[[#This Row],[Fixture Rebate]])),\"\",ROUND(Table_RetroSummary[[#This Row],[Fixture Energy Savings (kWh)]]+Table_RetroSummary[[#This Row],[Induced HVAC Energy Savings (kWh)]],0)),\"\"),\"\")","v":""},{"$f":"IFERROR(IF(Table_RetroSummary[[#This Row],[IsActive]],IF(NOT(ISNUMBER(Table_RetroSummary[[#This Row],[Fixture Rebate]])),\"\",ROUND(Table_RetroSummary[[#This Row],[Fixture Demand Savings (kW)]]+Table_RetroSummary[[#This Row],[Induced HVAC Demand Savings (kW)]],3)),\"\"),\"\")","v":""}]
[{"$f":"IFERROR(Table_POSTInfo[[#This Row],[Line]],\"\")","v":19},{"$f":"IFERROR(Table_POSTInfo[[#This Row],[IsActive]],\"\")","v":false},{"$f":"IFERROR(IF(Table_RetroSummary[[#This Row],[IsActive]],CONCATENATE(Table_RetroSummary[[#This Row],[Existing Fixture]],\" | \",Table_RetroSummary[[#This Row],[Proposed Fixture]]),\"\"),\"\")","v":""},{"$f":"IFERROR(IF(Table_RetroSummary[[#This Row],[IsActive]],VLOOKUP(IF(ISNUMBER(MATCH(Table_POSTInfo[[#This Row],[Line]],Table_POSTInspection[Line],0)),INDEX(Table_POSTInspection[Schedule],MATCH(Table_RetroSummary[[#This Row],[Line Item]],Table_POSTInspection[Line],0)),Table_POSTInfo[[#This Row],[Schedule]]),'Customer Information'!$S$27:$T$34,2,FALSE),\"\"),\"\")","v":""},{"$f":"IFERROR(IF(Table_RetroSummary[[#This Row],[IsActive]],IF(IF(ISNUMBER(MATCH(Table_RetroSummary[[#This Row],[Line Item]],Table_POSTInspection[Line],0)),INDEX(Table_POSTInspection[Interior/ Exterior],MATCH(Table_RetroSummary[[#This Row],[Line Item]],Table_POSTInfo[[#This Row],[Line]],0)),Table_POSTInfo[[#This Row],[Interior/ Exterior]])=\"Interior\",'Customer Information'!$S$25,0),\"\"),\"\")","v":""},{"$f":"IFERROR(IF(Table_RetroSummary[[#This Row],[IsActive]],IF(IF(ISNUMBER(MATCH(Table_RetroSummary[[#This Row],[Line Item]],Table_POSTInspection[Line],0)),INDEX(Table_POSTInspection[Interior/ Exterior],MATCH(Table_RetroSummary[[#This Row],[Line Item]],Table_POSTInfo[[#This Row],[Line]],0)),Table_POSTInfo[[#This Row],[Interior/ Exterior]])=\"Interior\",'Customer Information'!$T$25,0),\"\"),\"\")","v":""},{"$f":"IFERROR(IF(Table_RetroSummary[[#This Row],[IsActive]],IF(IF(ISNUMBER(MATCH(Table_RetroSummary[[#This Row],[Line Item]],Table_POSTInspection[Line],0)),INDEX(Table_POSTInspection[Interior/ Exterior],MATCH(Table_RetroSummary[[#This Row],[Line Item]],Table_POSTInfo[[#This Row],[Line]],0)),Table_POSTInfo[[#This Row],[Interior/ Exterior]])=\"Interior\",'Customer Information'!$U$25,0),\"\"),\"\")","v":""},{"$f":"IFERROR(IF(Table_RetroSummary[[#This Row],[IsActive]],IF(IF(ISNUMBER(MATCH(Table_RetroSummary[[#This Row],[Line Item]],Table_POSTInspection[Line],0)),INDEX(Table_POSTInspection[Interior/ Exterior],MATCH(Table_RetroSummary[[#This Row],[Line Item]],Table_POSTInfo[[#This Row],[Line]],0)),Table_POSTInfo[[#This Row],[Interior/ Exterior]])=\"Interior\",'Customer Information'!$V$25,0),\"\"),\"\")","v":""},{"$f":"IFERROR(IF(Table_RetroSummary[[#This Row],[IsActive]],IF(IF(ISNUMBER(MATCH(Table_RetroSummary[[#This Row],[Line Item]],Table_POSTInspection[Line],0)),INDEX(Table_POSTInspection[Interior/ Exterior],MATCH(Table_RetroSummary[[#This Row],[Line Item]],Table_POSTInfo[[#This Row],[Line]],0)),Table_POSTInfo[[#This Row],[Interior/ Exterior]])=\"Interior\",'Customer Information'!$W$25,0),\"\"),\"\")","v":""},{"$f":"IFERROR(IF(Table_RetroSummary[[#This Row],[IsActive]],IF(IF(ISNUMBER(MATCH(Table_RetroSummary[[#This Row],[Line Item]],Table_POSTInspection[Line],0)),INDEX(Table_POSTInspection[Interior/ Exterior],MATCH(Table_RetroSummary[[#This Row],[Line Item]],Table_POSTInfo[[#This Row],[Line]],0)),Table_POSTInfo[[#This Row],[Interior/ Exterior]])=\"Interior\",'Customer Information'!$X$25,0),\"\"),\"\")","v":""},{"$f":"IFERROR(IF(Table_RetroSummary[[#This Row],[IsActive]],\nCONCATENATE(\nIF(ISNUMBER(MATCH(Table_POSTInfo[[#This Row],[Line]],Table_POSTInspection[Line],0)),INDEX(Table_POSTInspection[Interior/ Exterior],MATCH(Table_RetroSummary[[#This Row],[Line Item]],Table_POSTInspection[Line],0)),Table_POSTInfo[[#This Row],[Interior/ Exterior]]),\n\" - \",\nIF(ISNUMBER(MATCH(Table_POSTInfo[[#This Row],[Line]],Table_POSTInspection[Line],0)),INDEX(Table_POSTInspection[Space Description],MATCH(Table_RetroSummary[[#This Row],[Line Item]],Table_POSTInspection[Line],0)),Table_POSTInfo[[#This Row],[Space Description]])),\n \"\"),\"\")","v":""},{"$f":"IFERROR(IF(Table_RetroSummary[[#This Row],[IsActive]]=\"\",\"\",Table_POSTInfo[[#This Row],[Fixture Description '[E']]]),\"\")","v":""},{"$f":"IFERROR(IF(Table_RetroSummary[[#This Row],[IsActive]]=\"\",\"\",Table_POSTInfo[[#This Row],['# Lamps/ Fixture '[E']]]),\"\")","v":""},{"$f":"IFERROR(IF(Table_RetroSummary[[#This Row],[IsActive]]=\"\",\"\",Table_POSTInfo[[#This Row],[Fixture/ Lamp Wattage '[E']]]),\"\")","v":""},{"$f":"IFERROR(IF(Table_RetroSummary[[#This Row],[IsActive]]=\"\",\"\",Table_POSTInfo[[#This Row],[Fixture Qty '[E']]]),\"\")","v":""},{"$f":"IFERROR(IF(Table_RetroSummary[[#This Row],[IsActive]],Table_RetroSummary[[#This Row],[Fixture/ Lamp Wattage '[E']]]*Table_RetroSummary[[#This Row],[E. Qty]],\"\"),\"\")","v":""},{"$f":"IFERROR(IF(Table_RetroSummary[[#This Row],[IsActive]]=\"\",\"\",Table_POSTInfo[[#This Row],[Fixture Wattage '[E']]]),\"\")","v":""},{"$f":"IFERROR(IF(Table_RetroSummary[[#This Row],[IsActive]],IFERROR(Table_RetroSummary[[#This Row],[Existing Fixture Wattage]]/1000*Table_RetroSummary[[#This Row],[OpHrs]]*Table_RetroSummary[[#This Row],[E. Qty]],0),\"\"),\"\")","v":""},{"$f":"IFERROR(IF(Table_RetroSummary[[#This Row],[IsActive]],IFERROR(VLOOKUP(RIGHT(Table_RetroSummary[[#This Row],[Existing Fixture]],LEN(Table_RetroSummary[[#This Row],[Existing Fixture]])-FIND(\" - \",Table_RetroSummary[[#This Row],[Existing Fixture]],FIND(\"]\",Table_RetroSummary[[#This Row],[Existing Fixture]],1))-2),Table_ControlType[],3,FALSE),0),\"\"),\"\")","v":""},{"$f":"IFERROR(IF(Table_RetroSummary[[#This Row],[IsActive]],IFERROR(Table_RetroSummary[[#This Row],[Existing Fixture Wattage]]/1000*Table_RetroSummary[[#This Row],[OpHrs]]*Table_RetroSummary[[#This Row],[E. Qty]]*Table_RetroSummary[[#This Row],[Existing CSF]]*(-1),0),\"\"),\"\")","v":""},{"$f":"IFERROR(Table_RetroSummary[[#This Row],[Existing Fixture kWh]]+Table_RetroSummary[[#This Row],[Existing Fixture (Existing Controls) kWh]],\"\")","v":""},{"$f":"IFERROR(IF(Table_RetroSummary[[#This Row],[IsActive]],IF(ISNUMBER(MATCH(Table_POSTInfo[[#This Row],[Line]],Table_POSTInspection[Line],0)),INDEX(Table_POSTInspection[Fixture Description '[P']],MATCH(Table_RetroSummary[[#This Row],[Line Item]],Table_POSTInspection[Line],0)),Table_POSTInfo[[#This Row],[Fixture Description '[P']]]),\"\"),\"\")","v":""},{"$f":"IFERROR(IF(Table_RetroSummary[[#This Row],[IsActive]],IF(ISNUMBER(MATCH(Table_POSTInfo[[#This Row],[Line]],Table_POSTInspection[Line],0)),INDEX(Table_POSTInspection['# Lamps/ Fixture '[P']],MATCH(Table_RetroSummary[[#This Row],[Line Item]],Table_POSTInspection[Line],0)),Table_POSTInfo[[#This Row],['# Lamps/ Fixture '[P']]]),\"\"),\"\")","v":""},{"$f":"IFERROR(IF(Table_RetroSummary[[#This Row],[IsActive]],IF(ISNUMBER(MATCH(Table_POSTInfo[[#This Row],[Line]],Table_POSTInspection[Line],0)),INDEX(Table_POSTInspection[Fixture/ Lamp Wattage '[P']],MATCH(Table_RetroSummary[[#This Row],[Line Item]],Table_POSTInspection[Line],0)),Table_POSTInfo[[#This Row],[Fixture/ Lamp Wattage '[P']]]),\"\"),\"\")","v":""},{"$f":"IFERROR(IF(Table_RetroSummary[[#This Row],[IsActive]],IF(ISNUMBER(MATCH(Table_POSTInfo[[#This Row],[Line]],Table_POSTInspection[Line],0)),INDEX(Table_POSTInspection[Fixture Qty '[P']],MATCH(Table_RetroSummary[[#This Row],[Line Item]],Table_POSTInspection[Line],0)),Table_POSTInfo[[#This Row],[Fixture Qty '[P']]]),\"\"),\"\")","v":""},{"$f":"IFERROR(IF(Table_RetroSummary[[#This Row],[IsActive]],Table_RetroSummary[[#This Row],[Fixture/ Lamp Wattage '[P']]]*Table_RetroSummary[[#This Row],[P. Qty]],\"\"),\"\")","v":""},{"$f":"IFERROR(IF(Table_RetroSummary[[#This Row],[IsActive]],IF(ISNUMBER(MATCH(Table_POSTInfo[[#This Row],[Line]],Table_POSTInspection[Line],0)),INDEX(Table_POSTInspection[Fixture Wattage '[P']],MATCH(Table_RetroSummary[[#This Row],[Line Item]],Table_POSTInspection[Line],0)),Table_POSTInfo[[#This Row],[Fixture Wattage '[P']]]),\"\"),\"\")","v":""},{"$f":"IFERROR(Table_RetroSummary[[#This Row],[Total '# Lamps '[P']]]+Table_RetroSummary[[#This Row],[Proposed Fixture Wattage]],\"\")","v":""},{"$f":"IFERROR(Table_RetroSummary[[#This Row],[Proposed Fixture Wattage]]/1000*Table_RetroSummary[[#This Row],[OpHrs]]*Table_RetroSummary[[#This Row],[P. Qty]],\"\")","v":""},{"$f":"IFERROR(IF(Table_RetroSummary[[#This Row],[IsActive]],IFERROR(VLOOKUP(RIGHT(Table_RetroSummary[[#This Row],[Proposed Fixture]],LEN(Table_RetroSummary[[#This Row],[Proposed Fixture]])-FIND(\" - \",Table_RetroSummary[[#This Row],[Proposed Fixture]],FIND(\"]\",Table_RetroSummary[[#This Row],[Proposed Fixture]],1))-2),Table_ControlType[],3, FALSE),0),\"\"),\"\")","v":""},{"$f":"IFERROR(IF(Table_RetroSummary[[#This Row],[IsActive]],IFERROR(Table_RetroSummary[[#This Row],[Proposed Fixture Wattage]]/1000*Table_RetroSummary[[#This Row],[OpHrs]]*Table_RetroSummary[[#This Row],[P. Qty]]*Table_RetroSummary[[#This Row],[Existing CSF]]*(-1),0),\"\"),\"\")","v":""},{"$f":"IFERROR(Table_RetroSummary[[#This Row],[Proposed Fixture kWh]]+Table_RetroSummary[[#This Row],[Proposed Fixture (Existing Controls) kWh]],\"\")","v":""},{"$f":"IFERROR(IF(Table_RetroSummary[[#This Row],[IsActive]],IFERROR(Table_RetroSummary[[#This Row],[Proposed Fixture Wattage]]/1000*Table_RetroSummary[[#This Row],[OpHrs]]*Table_RetroSummary[[#This Row],[P. Qty]]*Table_RetroSummary[[#This Row],[Proposed CSF]]*(-1),0),\"\"),\"\")","v":""},{"$f":"IFERROR(Table_RetroSummary[[#This Row],[Proposed Fixture kWh]]+Table_RetroSummary[[#This Row],[Proposed Fixture (Proposed Controls) kWh]],\"\")","v":""},{"$f":"IFERROR(IF(Table_RetroSummary[[#This Row],[IsActive]],IF(ISNUMBER(MATCH(Table_POSTInfo[[#This Row],[Line]],Table_POSTInspection[Line],0)),INDEX(Table_POSTInspection[DLC or ES Certification '[P']],MATCH(Table_RetroSummary[[#This Row],[Line Item]],Table_POSTInspection[Line],0)),Table_POSTInfo[[#This Row],[DLC or ES Certification '[P']]]),\"\"),\"\")","v":""},null,{"$f":"IFERROR(IF(Table_RetroSummary[[#This Row],[IsActive]],\nIF(AND(RIGHT(Table_RetroSummary[[#This Row],[Existing Fixture]],LEN(Table_RetroSummary[[#This Row],[Existing Fixture]])-FIND(\":\",Table_RetroSummary[[#This Row],[Existing Fixture]],1)-1)<>Table_RetroSummary[[#This Row],[Proposed Fixture]],MID(Table_RetroSummary[[#This Row],[Existing Fixture]],FIND(\": \",Table_RetroSummary[[#This Row],[Existing Fixture]],1)+2,FIND(\"]\",Table_RetroSummary[[#This Row],[Existing Fixture]],1))=LEFT(Table_RetroSummary[[#This Row],[Proposed Fixture]],FIND(\"]\",Table_RetroSummary[[#This Row],[Proposed Fixture]],1))),\n  \"Controls Only\",\n  IF(Table_POSTInfo[[#This Row],[DLC or ES Certification '[P']]]<>\"\",\n    IF(ISNUMBER(FIND(\"LED Tube\",Table_RetroSummary[[#This Row],[Proposed Fixture]],1)),\n      \"LED Re-Lamp\",\n      IF(AND(Table_RetroSummary[[#This Row],[Existing Overall kWh]]>Table_RetroSummary[[#This Row],[Proposed Overall kWh (Existing Controls)]],ISNUMBER(FIND(\"LED\",Table_RetroSummary[[#This Row],[Proposed Fixture]],1))),\n        IF(Table_POSTInfo[[#This Row],[Interior/ Exterior]]=\"Exterior\",\n          \"Exterior LED Fixture\",\n          \"Interior LED Fixture\"),\n        \"Ineligible Fixture\")),\n    \"Ineligible Fixture\")),\n\"\"),\"\")","v":""},{"$f":"IFERROR(VLOOKUP(Table_RetroSummary[[#This Row],[Fixture Measure Description]],Table_FixtureRate[],2,FALSE),\"\")","v":""},{"$f":"IFERROR(IF(Table_RetroSummary[[#This Row],[IsActive]],IF(Table_RetroSummary[[#This Row],[Fixture Measure Description]]=\"Ineligible Fixture\",0,ROUND(Table_RetroSummary[[#This Row],[Fixture Rebate (per kW)]]*(Table_RetroSummary[[#This Row],[Existing Fixture Wattage]]*Table_RetroSummary[[#This Row],[E. Qty]]-Table_RetroSummary[[#This Row],[Proposed Fixture Wattage]]*Table_RetroSummary[[#This Row],[P. Qty]])/1000,2)),\"\"),\"\")","v":""},{"$f":"IFERROR(IF(Table_RetroSummary[[#This Row],[Fixture Measure Description]]=\"Ineligible Fixture\",0,ROUND(IF(ProjectCost_Total=0,300000,ProjectCost_Total)*Table_RetroSummary[[#This Row],[Fixture Rebate]]/SUM(Table_RetroSummary[Fixture Rebate],Table_RetroSummary[Controls Rebate]),2)),\"\")","v":""},{"$f":"IFERROR(IF(Table_RetroSummary[[#This Row],[IsActive]],IF(Table_RetroSummary[[#This Row],[Fixture Measure Description]]=\"Ineligible Fixture\",0,Table_RetroSummary[[#This Row],[Existing Overall kWh]]-Table_RetroSummary[[#This Row],[Proposed Overall kWh (Existing Controls)]]),\"\"),\"\")","v":""},{"$f":"IFERROR(IF(Table_RetroSummary[[#This Row],[IsActive]],IF(Table_RetroSummary[[#This Row],[Fixture Measure Description]]=\"Ineligible Fixture\",0,(Table_RetroSummary[[#This Row],[Existing Fixture kWh]]-Table_RetroSummary[[#This Row],[Proposed Fixture kWh]])/Table_RetroSummary[[#This Row],[OpHrs]]*Table_RetroSummary[[#This Row],[CF (Ltg)]]*Table_RetroSummary[[#This Row],[DF (Ltg)]]),\"\"),\"\")","v":""},null,{"$f":"IFERROR(\n  IF(OR(Table_RetroSummary[[#This Row],[Fixture Measure Description]]=\"\",Table_RetroSummary[[#This Row],[Fixture Measure Description]]=\"Ineligible Fixture\"),\n    \"\",\n    IFERROR(VLOOKUP(RIGHT(Table_RetroSummary[[#This Row],[Existing Fixture]],LEN(Table_RetroSummary[[#This Row],[Existing Fixture]])-FIND(\" - \",Table_RetroSummary[[#This Row],[Existing Fixture]],FIND(\"]\",Table_RetroSummary[[#This Row],[Existing Fixture]],1))-2),Table_ControlType[],2,FALSE),\"None\")\n    & \" - \" &\n    IFERROR(VLOOKUP(RIGHT(Table_RetroSummary[[#This Row],[Proposed Fixture]],LEN(Table_RetroSummary[[#This Row],[Proposed Fixture]])-FIND(\" - \",Table_RetroSummary[[#This Row],[Proposed Fixture]],FIND(\"]\",Table_RetroSummary[[#This Row],[Proposed Fixture]],1))-2),Table_ControlType[],2, FALSE),None)),\n\"\")","v":""},{"$f":"IFERROR(VLOOKUP(Table_RetroSummary[[#This Row],[Controls Measure Description]],Table_ControlRate[],2,FALSE),\"\")","v":""},{"$f":"IFERROR(IF(Table_RetroSummary[[#This Row],[IsActive]],IF(Table_RetroSummary[[#This Row],[Controls Measure Description]]=\"\",0,ROUND(Table_RetroSummary[[#This Row],[Controls Rebate (per Fixt Watt)]]*Table_RetroSummary[[#This Row],[Proposed Fixture Wattage]]*Table_RetroSummary[[#This Row],[P. Qty]],2)),\"\"),\"\")","v":""},{"$f":"IFERROR(IF(Table_RetroSummary[[#This Row],[Fixture Measure Description]]=\"Ineligible Fixture\",0,ROUND(IF(ProjectCost_Total=0,300000,ProjectCost_Total)*Table_RetroSummary[[#This Row],[Controls Rebate]]/SUM(Table_RetroSummary[Fixture Rebate],Table_RetroSummary[Controls Rebate]),2)),\"\")","v":""},{"$f":"IFERROR(IF(Table_RetroSummary[[#This Row],[IsActive]],IF(Table_RetroSummary[[#This Row],[Controls Measure Description]]=\"\",0,(Table_RetroSummary[[#This Row],[Proposed Fixture (Existing Controls) kWh]]-Table_RetroSummary[[#This Row],[Proposed Fixture (Proposed Controls) kWh]])),\"\"),\"\")","v":""},{"$f":"IFERROR(IF(Table_RetroSummary[[#This Row],[IsActive]],IF(Table_RetroSummary[[#This Row],[Controls Measure Description]]=\"\",0,(Table_RetroSummary[[#This Row],[Proposed Fixture (Existing Controls) kWh]]-Table_RetroSummary[[#This Row],[Proposed Fixture (Proposed Controls) kWh]])/Table_RetroSummary[[#This Row],[OpHrs]]*Table_RetroSummary[[#This Row],[CF (Ltg)]]*Table_RetroSummary[[#This Row],[DF (Ltg)]]),\"\"),\"\")","v":""},null,{"$f":"IFERROR(IF(NOT(ISNUMBER(Table_RetroSummary[[#This Row],[Fixture Rebate]])),\"\",IF(MIN(IF(SUM(Table_RetroSummary[Fixture Cost],Table_RetroSummary[Controls Cost])<0,0,SUM(Table_RetroSummary[Fixture Cost],Table_RetroSummary[Controls Cost])),SUM(Table_RetroSummary[Fixture Rebate],Table_RetroSummary[Controls Rebate]))>300000,300000/MIN(IF(SUM(Table_RetroSummary[Fixture Cost],Table_RetroSummary[Controls Cost])<0,0,SUM(Table_RetroSummary[Fixture Cost],Table_RetroSummary[Controls Cost])),SUM(Table_RetroSummary[Fixture Rebate],Table_RetroSummary[Controls Rebate]))*MIN(IF(SUM(Table_RetroSummary[Fixture Cost],Table_RetroSummary[Controls Cost])<0,0,SUM(Table_RetroSummary[Fixture Cost],Table_RetroSummary[Controls Cost])),Table_RetroSummary[[#This Row],[Fixture Rebate]]+IF(Table_RetroSummary[[#This Row],[Controls Rebate]]=\"\",0,Table_RetroSummary[[#This Row],[Controls Rebate]])),MIN(IF(SUM(Table_RetroSummary[Fixture Cost],Table_RetroSummary[Controls Cost])<0,0,SUM(Table_RetroSummary[Fixture Cost],Table_RetroSummary[Controls Cost])),Table_RetroSummary[[#This Row],[Fixture Rebate]]+IF(Table_RetroSummary[[#This Row],[Controls Rebate]]=\"\",0,Table_RetroSummary[[#This Row],[Controls Rebate]])))),\"\")","v":""},{"$f":"IFERROR(IF(Table_RetroSummary[[#This Row],[Fixture Cost]]=\"\",\"\",Table_RetroSummary[[#This Row],[Fixture Cost]]+IF(Table_RetroSummary[[#This Row],[Controls Cost]]=\"\",0,Table_RetroSummary[[#This Row],[Controls Cost]])),\"\")","v":""},{"$f":"IFERROR(IF(Table_RetroSummary[[#This Row],[IsActive]],IF(Table_POSTInfo[[#This Row],[Interior/ Exterior]]=\"Interior\",IFERROR((Table_RetroSummary[[#This Row],[Annual Fixture Savings (kWh)]]+Table_RetroSummary[[#This Row],[Annual Control Savings (kWh)]])*(Table_RetroSummary[[#This Row],[EIF]]-1),0),0),\"\"),\"\")","v":""},{"$f":"IFERROR(IF(Table_RetroSummary[[#This Row],[IsActive]],IF(Table_POSTInfo[[#This Row],[Interior/ Exterior]]=\"Interior\",IFERROR((Table_RetroSummary[[#This Row],[Fixture kW Reduction]]+Table_RetroSummary[[#This Row],[Control kW Reduction]]/(Table_RetroSummary[[#This Row],[CF (Ltg)]]*Table_RetroSummary[[#This Row],[DF (Ltg)]]))*(Table_RetroSummary[[#This Row],[DIF]]-1)*Table_RetroSummary[[#This Row],[CF (HVAC)]]*Table_RetroSummary[[#This Row],[DF (HVAC)]],0),0),\"\"),\"\")","v":""},{"$f":"IFERROR(IF(Table_RetroSummary[[#This Row],[IsActive]],IF(NOT(ISNUMBER(Table_RetroSummary[[#This Row],[Fixture Rebate]])),\"\",ROUND(Table_RetroSummary[[#This Row],[Annual Fixture Savings (kWh)]]+Table_RetroSummary[[#This Row],[Annual Control Savings (kWh)]],0)),\"\"),\"\")","v":""},{"$f":"IFERROR(IF(Table_RetroSummary[[#This Row],[IsActive]],IF(NOT(ISNUMBER(Table_RetroSummary[[#This Row],[Fixture Rebate]])),\"\",ROUND(Table_RetroSummary[[#This Row],[Fixture kW Reduction]]+Table_RetroSummary[[#This Row],[Control kW Reduction]],3)),\"\"),\"\")","v":""},{"$f":"IFERROR(IF(Table_RetroSummary[[#This Row],[IsActive]],IF(NOT(ISNUMBER(Table_RetroSummary[[#This Row],[Fixture Rebate]])),\"\",ROUND(Table_RetroSummary[[#This Row],[Fixture Energy Savings (kWh)]]+Table_RetroSummary[[#This Row],[Induced HVAC Energy Savings (kWh)]],0)),\"\"),\"\")","v":""},{"$f":"IFERROR(IF(Table_RetroSummary[[#This Row],[IsActive]],IF(NOT(ISNUMBER(Table_RetroSummary[[#This Row],[Fixture Rebate]])),\"\",ROUND(Table_RetroSummary[[#This Row],[Fixture Demand Savings (kW)]]+Table_RetroSummary[[#This Row],[Induced HVAC Demand Savings (kW)]],3)),\"\"),\"\")","v":""}]
[{"$f":"IFERROR(Table_POSTInfo[[#This Row],[Line]],\"\")","v":20},{"$f":"IFERROR(Table_POSTInfo[[#This Row],[IsActive]],\"\")","v":false},{"$f":"IFERROR(IF(Table_RetroSummary[[#This Row],[IsActive]],CONCATENATE(Table_RetroSummary[[#This Row],[Existing Fixture]],\" | \",Table_RetroSummary[[#This Row],[Proposed Fixture]]),\"\"),\"\")","v":""},{"$f":"IFERROR(IF(Table_RetroSummary[[#This Row],[IsActive]],VLOOKUP(IF(ISNUMBER(MATCH(Table_POSTInfo[[#This Row],[Line]],Table_POSTInspection[Line],0)),INDEX(Table_POSTInspection[Schedule],MATCH(Table_RetroSummary[[#This Row],[Line Item]],Table_POSTInspection[Line],0)),Table_POSTInfo[[#This Row],[Schedule]]),'Customer Information'!$S$27:$T$34,2,FALSE),\"\"),\"\")","v":""},{"$f":"IFERROR(IF(Table_RetroSummary[[#This Row],[IsActive]],IF(IF(ISNUMBER(MATCH(Table_RetroSummary[[#This Row],[Line Item]],Table_POSTInspection[Line],0)),INDEX(Table_POSTInspection[Interior/ Exterior],MATCH(Table_RetroSummary[[#This Row],[Line Item]],Table_POSTInfo[[#This Row],[Line]],0)),Table_POSTInfo[[#This Row],[Interior/ Exterior]])=\"Interior\",'Customer Information'!$S$25,0),\"\"),\"\")","v":""},{"$f":"IFERROR(IF(Table_RetroSummary[[#This Row],[IsActive]],IF(IF(ISNUMBER(MATCH(Table_RetroSummary[[#This Row],[Line Item]],Table_POSTInspection[Line],0)),INDEX(Table_POSTInspection[Interior/ Exterior],MATCH(Table_RetroSummary[[#This Row],[Line Item]],Table_POSTInfo[[#This Row],[Line]],0)),Table_POSTInfo[[#This Row],[Interior/ Exterior]])=\"Interior\",'Customer Information'!$T$25,0),\"\"),\"\")","v":""},{"$f":"IFERROR(IF(Table_RetroSummary[[#This Row],[IsActive]],IF(IF(ISNUMBER(MATCH(Table_RetroSummary[[#This Row],[Line Item]],Table_POSTInspection[Line],0)),INDEX(Table_POSTInspection[Interior/ Exterior],MATCH(Table_RetroSummary[[#This Row],[Line Item]],Table_POSTInfo[[#This Row],[Line]],0)),Table_POSTInfo[[#This Row],[Interior/ Exterior]])=\"Interior\",'Customer Information'!$U$25,0),\"\"),\"\")","v":""},{"$f":"IFERROR(IF(Table_RetroSummary[[#This Row],[IsActive]],IF(IF(ISNUMBER(MATCH(Table_RetroSummary[[#This Row],[Line Item]],Table_POSTInspection[Line],0)),INDEX(Table_POSTInspection[Interior/ Exterior],MATCH(Table_RetroSummary[[#This Row],[Line Item]],Table_POSTInfo[[#This Row],[Line]],0)),Table_POSTInfo[[#This Row],[Interior/ Exterior]])=\"Interior\",'Customer Information'!$V$25,0),\"\"),\"\")","v":""},{"$f":"IFERROR(IF(Table_RetroSummary[[#This Row],[IsActive]],IF(IF(ISNUMBER(MATCH(Table_RetroSummary[[#This Row],[Line Item]],Table_POSTInspection[Line],0)),INDEX(Table_POSTInspection[Interior/ Exterior],MATCH(Table_RetroSummary[[#This Row],[Line Item]],Table_POSTInfo[[#This Row],[Line]],0)),Table_POSTInfo[[#This Row],[Interior/ Exterior]])=\"Interior\",'Customer Information'!$W$25,0),\"\"),\"\")","v":""},{"$f":"IFERROR(IF(Table_RetroSummary[[#This Row],[IsActive]],IF(IF(ISNUMBER(MATCH(Table_RetroSummary[[#This Row],[Line Item]],Table_POSTInspection[Line],0)),INDEX(Table_POSTInspection[Interior/ Exterior],MATCH(Table_RetroSummary[[#This Row],[Line Item]],Table_POSTInfo[[#This Row],[Line]],0)),Table_POSTInfo[[#This Row],[Interior/ Exterior]])=\"Interior\",'Customer Information'!$X$25,0),\"\"),\"\")","v":""},{"$f":"IFERROR(IF(Table_RetroSummary[[#This Row],[IsActive]],\nCONCATENATE(\nIF(ISNUMBER(MATCH(Table_POSTInfo[[#This Row],[Line]],Table_POSTInspection[Line],0)),INDEX(Table_POSTInspection[Interior/ Exterior],MATCH(Table_RetroSummary[[#This Row],[Line Item]],Table_POSTInspection[Line],0)),Table_POSTInfo[[#This Row],[Interior/ Exterior]]),\n\" - \",\nIF(ISNUMBER(MATCH(Table_POSTInfo[[#This Row],[Line]],Table_POSTInspection[Line],0)),INDEX(Table_POSTInspection[Space Description],MATCH(Table_RetroSummary[[#This Row],[Line Item]],Table_POSTInspection[Line],0)),Table_POSTInfo[[#This Row],[Space Description]])),\n \"\"),\"\")","v":""},{"$f":"IFERROR(IF(Table_RetroSummary[[#This Row],[IsActive]]=\"\",\"\",Table_POSTInfo[[#This Row],[Fixture Description '[E']]]),\"\")","v":""},{"$f":"IFERROR(IF(Table_RetroSummary[[#This Row],[IsActive]]=\"\",\"\",Table_POSTInfo[[#This Row],['# Lamps/ Fixture '[E']]]),\"\")","v":""},{"$f":"IFERROR(IF(Table_RetroSummary[[#This Row],[IsActive]]=\"\",\"\",Table_POSTInfo[[#This Row],[Fixture/ Lamp Wattage '[E']]]),\"\")","v":""},{"$f":"IFERROR(IF(Table_RetroSummary[[#This Row],[IsActive]]=\"\",\"\",Table_POSTInfo[[#This Row],[Fixture Qty '[E']]]),\"\")","v":""},{"$f":"IFERROR(IF(Table_RetroSummary[[#This Row],[IsActive]],Table_RetroSummary[[#This Row],[Fixture/ Lamp Wattage '[E']]]*Table_RetroSummary[[#This Row],[E. Qty]],\"\"),\"\")","v":""},{"$f":"IFERROR(IF(Table_RetroSummary[[#This Row],[IsActive]]=\"\",\"\",Table_POSTInfo[[#This Row],[Fixture Wattage '[E']]]),\"\")","v":""},{"$f":"IFERROR(IF(Table_RetroSummary[[#This Row],[IsActive]],IFERROR(Table_RetroSummary[[#This Row],[Existing Fixture Wattage]]/1000*Table_RetroSummary[[#This Row],[OpHrs]]*Table_RetroSummary[[#This Row],[E. Qty]],0),\"\"),\"\")","v":""},{"$f":"IFERROR(IF(Table_RetroSummary[[#This Row],[IsActive]],IFERROR(VLOOKUP(RIGHT(Table_RetroSummary[[#This Row],[Existing Fixture]],LEN(Table_RetroSummary[[#This Row],[Existing Fixture]])-FIND(\" - \",Table_RetroSummary[[#This Row],[Existing Fixture]],FIND(\"]\",Table_RetroSummary[[#This Row],[Existing Fixture]],1))-2),Table_ControlType[],3,FALSE),0),\"\"),\"\")","v":""},{"$f":"IFERROR(IF(Table_RetroSummary[[#This Row],[IsActive]],IFERROR(Table_RetroSummary[[#This Row],[Existing Fixture Wattage]]/1000*Table_RetroSummary[[#This Row],[OpHrs]]*Table_RetroSummary[[#This Row],[E. Qty]]*Table_RetroSummary[[#This Row],[Existing CSF]]*(-1),0),\"\"),\"\")","v":""},{"$f":"IFERROR(Table_RetroSummary[[#This Row],[Existing Fixture kWh]]+Table_RetroSummary[[#This Row],[Existing Fixture (Existing Controls) kWh]],\"\")","v":""},{"$f":"IFERROR(IF(Table_RetroSummary[[#This Row],[IsActive]],IF(ISNUMBER(MATCH(Table_POSTInfo[[#This Row],[Line]],Table_POSTInspection[Line],0)),INDEX(Table_POSTInspection[Fixture Description '[P']],MATCH(Table_RetroSummary[[#This Row],[Line Item]],Table_POSTInspection[Line],0)),Table_POSTInfo[[#This Row],[Fixture Description '[P']]]),\"\"),\"\")","v":""},{"$f":"IFERROR(IF(Table_RetroSummary[[#This Row],[IsActive]],IF(ISNUMBER(MATCH(Table_POSTInfo[[#This Row],[Line]],Table_POSTInspection[Line],0)),INDEX(Table_POSTInspection['# Lamps/ Fixture '[P']],MATCH(Table_RetroSummary[[#This Row],[Line Item]],Table_POSTInspection[Line],0)),Table_POSTInfo[[#This Row],['# Lamps/ Fixture '[P']]]),\"\"),\"\")","v":""},{"$f":"IFERROR(IF(Table_RetroSummary[[#This Row],[IsActive]],IF(ISNUMBER(MATCH(Table_POSTInfo[[#This Row],[Line]],Table_POSTInspection[Line],0)),INDEX(Table_POSTInspection[Fixture/ Lamp Wattage '[P']],MATCH(Table_RetroSummary[[#This Row],[Line Item]],Table_POSTInspection[Line],0)),Table_POSTInfo[[#This Row],[Fixture/ Lamp Wattage '[P']]]),\"\"),\"\")","v":""},{"$f":"IFERROR(IF(Table_RetroSummary[[#This Row],[IsActive]],IF(ISNUMBER(MATCH(Table_POSTInfo[[#This Row],[Line]],Table_POSTInspection[Line],0)),INDEX(Table_POSTInspection[Fixture Qty '[P']],MATCH(Table_RetroSummary[[#This Row],[Line Item]],Table_POSTInspection[Line],0)),Table_POSTInfo[[#This Row],[Fixture Qty '[P']]]),\"\"),\"\")","v":""},{"$f":"IFERROR(IF(Table_RetroSummary[[#This Row],[IsActive]],Table_RetroSummary[[#This Row],[Fixture/ Lamp Wattage '[P']]]*Table_RetroSummary[[#This Row],[P. Qty]],\"\"),\"\")","v":""},{"$f":"IFERROR(IF(Table_RetroSummary[[#This Row],[IsActive]],IF(ISNUMBER(MATCH(Table_POSTInfo[[#This Row],[Line]],Table_POSTInspection[Line],0)),INDEX(Table_POSTInspection[Fixture Wattage '[P']],MATCH(Table_RetroSummary[[#This Row],[Line Item]],Table_POSTInspection[Line],0)),Table_POSTInfo[[#This Row],[Fixture Wattage '[P']]]),\"\"),\"\")","v":""},{"$f":"IFERROR(Table_RetroSummary[[#This Row],[Total '# Lamps '[P']]]+Table_RetroSummary[[#This Row],[Proposed Fixture Wattage]],\"\")","v":""},{"$f":"IFERROR(Table_RetroSummary[[#This Row],[Proposed Fixture Wattage]]/1000*Table_RetroSummary[[#This Row],[OpHrs]]*Table_RetroSummary[[#This Row],[P. Qty]],\"\")","v":""},{"$f":"IFERROR(IF(Table_RetroSummary[[#This Row],[IsActive]],IFERROR(VLOOKUP(RIGHT(Table_RetroSummary[[#This Row],[Proposed Fixture]],LEN(Table_RetroSummary[[#This Row],[Proposed Fixture]])-FIND(\" - \",Table_RetroSummary[[#This Row],[Proposed Fixture]],FIND(\"]\",Table_RetroSummary[[#This Row],[Proposed Fixture]],1))-2),Table_ControlType[],3, FALSE),0),\"\"),\"\")","v":""},{"$f":"IFERROR(IF(Table_RetroSummary[[#This Row],[IsActive]],IFERROR(Table_RetroSummary[[#This Row],[Proposed Fixture Wattage]]/1000*Table_RetroSummary[[#This Row],[OpHrs]]*Table_RetroSummary[[#This Row],[P. Qty]]*Table_RetroSummary[[#This Row],[Existing CSF]]*(-1),0),\"\"),\"\")","v":""},{"$f":"IFERROR(Table_RetroSummary[[#This Row],[Proposed Fixture kWh]]+Table_RetroSummary[[#This Row],[Proposed Fixture (Existing Controls) kWh]],\"\")","v":""},{"$f":"IFERROR(IF(Table_RetroSummary[[#This Row],[IsActive]],IFERROR(Table_RetroSummary[[#This Row],[Proposed Fixture Wattage]]/1000*Table_RetroSummary[[#This Row],[OpHrs]]*Table_RetroSummary[[#This Row],[P. Qty]]*Table_RetroSummary[[#This Row],[Proposed CSF]]*(-1),0),\"\"),\"\")","v":""},{"$f":"IFERROR(Table_RetroSummary[[#This Row],[Proposed Fixture kWh]]+Table_RetroSummary[[#This Row],[Proposed Fixture (Proposed Controls) kWh]],\"\")","v":""},{"$f":"IFERROR(IF(Table_RetroSummary[[#This Row],[IsActive]],IF(ISNUMBER(MATCH(Table_POSTInfo[[#This Row],[Line]],Table_POSTInspection[Line],0)),INDEX(Table_POSTInspection[DLC or ES Certification '[P']],MATCH(Table_RetroSummary[[#This Row],[Line Item]],Table_POSTInspection[Line],0)),Table_POSTInfo[[#This Row],[DLC or ES Certification '[P']]]),\"\"),\"\")","v":""},null,{"$f":"IFERROR(IF(Table_RetroSummary[[#This Row],[IsActive]],\nIF(AND(RIGHT(Table_RetroSummary[[#This Row],[Existing Fixture]],LEN(Table_RetroSummary[[#This Row],[Existing Fixture]])-FIND(\":\",Table_RetroSummary[[#This Row],[Existing Fixture]],1)-1)<>Table_RetroSummary[[#This Row],[Proposed Fixture]],MID(Table_RetroSummary[[#This Row],[Existing Fixture]],FIND(\": \",Table_RetroSummary[[#This Row],[Existing Fixture]],1)+2,FIND(\"]\",Table_RetroSummary[[#This Row],[Existing Fixture]],1))=LEFT(Table_RetroSummary[[#This Row],[Proposed Fixture]],FIND(\"]\",Table_RetroSummary[[#This Row],[Proposed Fixture]],1))),\n  \"Controls Only\",\n  IF(Table_POSTInfo[[#This Row],[DLC or ES Certification '[P']]]<>\"\",\n    IF(ISNUMBER(FIND(\"LED Tube\",Table_RetroSummary[[#This Row],[Proposed Fixture]],1)),\n      \"LED Re-Lamp\",\n      IF(AND(Table_RetroSummary[[#This Row],[Existing Overall kWh]]>Table_RetroSummary[[#This Row],[Proposed Overall kWh (Existing Controls)]],ISNUMBER(FIND(\"LED\",Table_RetroSummary[[#This Row],[Proposed Fixture]],1))),\n        IF(Table_POSTInfo[[#This Row],[Interior/ Exterior]]=\"Exterior\",\n          \"Exterior LED Fixture\",\n          \"Interior LED Fixture\"),\n        \"Ineligible Fixture\")),\n    \"Ineligible Fixture\")),\n\"\"),\"\")","v":""},{"$f":"IFERROR(VLOOKUP(Table_RetroSummary[[#This Row],[Fixture Measure Description]],Table_FixtureRate[],2,FALSE),\"\")","v":""},{"$f":"IFERROR(IF(Table_RetroSummary[[#This Row],[IsActive]],IF(Table_RetroSummary[[#This Row],[Fixture Measure Description]]=\"Ineligible Fixture\",0,ROUND(Table_RetroSummary[[#This Row],[Fixture Rebate (per kW)]]*(Table_RetroSummary[[#This Row],[Existing Fixture Wattage]]*Table_RetroSummary[[#This Row],[E. Qty]]-Table_RetroSummary[[#This Row],[Proposed Fixture Wattage]]*Table_RetroSummary[[#This Row],[P. Qty]])/1000,2)),\"\"),\"\")","v":""},{"$f":"IFERROR(IF(Table_RetroSummary[[#This Row],[Fixture Measure Description]]=\"Ineligible Fixture\",0,ROUND(IF(ProjectCost_Total=0,300000,ProjectCost_Total)*Table_RetroSummary[[#This Row],[Fixture Rebate]]/SUM(Table_RetroSummary[Fixture Rebate],Table_RetroSummary[Controls Rebate]),2)),\"\")","v":""},{"$f":"IFERROR(IF(Table_RetroSummary[[#This Row],[IsActive]],IF(Table_RetroSummary[[#This Row],[Fixture Measure Description]]=\"Ineligible Fixture\",0,Table_RetroSummary[[#This Row],[Existing Overall kWh]]-Table_RetroSummary[[#This Row],[Proposed Overall kWh (Existing Controls)]]),\"\"),\"\")","v":""},{"$f":"IFERROR(IF(Table_RetroSummary[[#This Row],[IsActive]],IF(Table_RetroSummary[[#This Row],[Fixture Measure Description]]=\"Ineligible Fixture\",0,(Table_RetroSummary[[#This Row],[Existing Fixture kWh]]-Table_RetroSummary[[#This Row],[Proposed Fixture kWh]])/Table_RetroSummary[[#This Row],[OpHrs]]*Table_RetroSummary[[#This Row],[CF (Ltg)]]*Table_RetroSummary[[#This Row],[DF (Ltg)]]),\"\"),\"\")","v":""},null,{"$f":"IFERROR(\n  IF(OR(Table_RetroSummary[[#This Row],[Fixture Measure Description]]=\"\",Table_RetroSummary[[#This Row],[Fixture Measure Description]]=\"Ineligible Fixture\"),\n    \"\",\n    IFERROR(VLOOKUP(RIGHT(Table_RetroSummary[[#This Row],[Existing Fixture]],LEN(Table_RetroSummary[[#This Row],[Existing Fixture]])-FIND(\" - \",Table_RetroSummary[[#This Row],[Existing Fixture]],FIND(\"]\",Table_RetroSummary[[#This Row],[Existing Fixture]],1))-2),Table_ControlType[],2,FALSE),\"None\")\n    & \" - \" &\n    IFERROR(VLOOKUP(RIGHT(Table_RetroSummary[[#This Row],[Proposed Fixture]],LEN(Table_RetroSummary[[#This Row],[Proposed Fixture]])-FIND(\" - \",Table_RetroSummary[[#This Row],[Proposed Fixture]],FIND(\"]\",Table_RetroSummary[[#This Row],[Proposed Fixture]],1))-2),Table_ControlType[],2, FALSE),None)),\n\"\")","v":""},{"$f":"IFERROR(VLOOKUP(Table_RetroSummary[[#This Row],[Controls Measure Description]],Table_ControlRate[],2,FALSE),\"\")","v":""},{"$f":"IFERROR(IF(Table_RetroSummary[[#This Row],[IsActive]],IF(Table_RetroSummary[[#This Row],[Controls Measure Description]]=\"\",0,ROUND(Table_RetroSummary[[#This Row],[Controls Rebate (per Fixt Watt)]]*Table_RetroSummary[[#This Row],[Proposed Fixture Wattage]]*Table_RetroSummary[[#This Row],[P. Qty]],2)),\"\"),\"\")","v":""},{"$f":"IFERROR(IF(Table_RetroSummary[[#This Row],[Fixture Measure Description]]=\"Ineligible Fixture\",0,ROUND(IF(ProjectCost_Total=0,300000,ProjectCost_Total)*Table_RetroSummary[[#This Row],[Controls Rebate]]/SUM(Table_RetroSummary[Fixture Rebate],Table_RetroSummary[Controls Rebate]),2)),\"\")","v":""},{"$f":"IFERROR(IF(Table_RetroSummary[[#This Row],[IsActive]],IF(Table_RetroSummary[[#This Row],[Controls Measure Description]]=\"\",0,(Table_RetroSummary[[#This Row],[Proposed Fixture (Existing Controls) kWh]]-Table_RetroSummary[[#This Row],[Proposed Fixture (Proposed Controls) kWh]])),\"\"),\"\")","v":""},{"$f":"IFERROR(IF(Table_RetroSummary[[#This Row],[IsActive]],IF(Table_RetroSummary[[#This Row],[Controls Measure Description]]=\"\",0,(Table_RetroSummary[[#This Row],[Proposed Fixture (Existing Controls) kWh]]-Table_RetroSummary[[#This Row],[Proposed Fixture (Proposed Controls) kWh]])/Table_RetroSummary[[#This Row],[OpHrs]]*Table_RetroSummary[[#This Row],[CF (Ltg)]]*Table_RetroSummary[[#This Row],[DF (Ltg)]]),\"\"),\"\")","v":""},null,{"$f":"IFERROR(IF(NOT(ISNUMBER(Table_RetroSummary[[#This Row],[Fixture Rebate]])),\"\",IF(MIN(IF(SUM(Table_RetroSummary[Fixture Cost],Table_RetroSummary[Controls Cost])<0,0,SUM(Table_RetroSummary[Fixture Cost],Table_RetroSummary[Controls Cost])),SUM(Table_RetroSummary[Fixture Rebate],Table_RetroSummary[Controls Rebate]))>300000,300000/MIN(IF(SUM(Table_RetroSummary[Fixture Cost],Table_RetroSummary[Controls Cost])<0,0,SUM(Table_RetroSummary[Fixture Cost],Table_RetroSummary[Controls Cost])),SUM(Table_RetroSummary[Fixture Rebate],Table_RetroSummary[Controls Rebate]))*MIN(IF(SUM(Table_RetroSummary[Fixture Cost],Table_RetroSummary[Controls Cost])<0,0,SUM(Table_RetroSummary[Fixture Cost],Table_RetroSummary[Controls Cost])),Table_RetroSummary[[#This Row],[Fixture Rebate]]+IF(Table_RetroSummary[[#This Row],[Controls Rebate]]=\"\",0,Table_RetroSummary[[#This Row],[Controls Rebate]])),MIN(IF(SUM(Table_RetroSummary[Fixture Cost],Table_RetroSummary[Controls Cost])<0,0,SUM(Table_RetroSummary[Fixture Cost],Table_RetroSummary[Controls Cost])),Table_RetroSummary[[#This Row],[Fixture Rebate]]+IF(Table_RetroSummary[[#This Row],[Controls Rebate]]=\"\",0,Table_RetroSummary[[#This Row],[Controls Rebate]])))),\"\")","v":""},{"$f":"IFERROR(IF(Table_RetroSummary[[#This Row],[Fixture Cost]]=\"\",\"\",Table_RetroSummary[[#This Row],[Fixture Cost]]+IF(Table_RetroSummary[[#This Row],[Controls Cost]]=\"\",0,Table_RetroSummary[[#This Row],[Controls Cost]])),\"\")","v":""},{"$f":"IFERROR(IF(Table_RetroSummary[[#This Row],[IsActive]],IF(Table_POSTInfo[[#This Row],[Interior/ Exterior]]=\"Interior\",IFERROR((Table_RetroSummary[[#This Row],[Annual Fixture Savings (kWh)]]+Table_RetroSummary[[#This Row],[Annual Control Savings (kWh)]])*(Table_RetroSummary[[#This Row],[EIF]]-1),0),0),\"\"),\"\")","v":""},{"$f":"IFERROR(IF(Table_RetroSummary[[#This Row],[IsActive]],IF(Table_POSTInfo[[#This Row],[Interior/ Exterior]]=\"Interior\",IFERROR((Table_RetroSummary[[#This Row],[Fixture kW Reduction]]+Table_RetroSummary[[#This Row],[Control kW Reduction]]/(Table_RetroSummary[[#This Row],[CF (Ltg)]]*Table_RetroSummary[[#This Row],[DF (Ltg)]]))*(Table_RetroSummary[[#This Row],[DIF]]-1)*Table_RetroSummary[[#This Row],[CF (HVAC)]]*Table_RetroSummary[[#This Row],[DF (HVAC)]],0),0),\"\"),\"\")","v":""},{"$f":"IFERROR(IF(Table_RetroSummary[[#This Row],[IsActive]],IF(NOT(ISNUMBER(Table_RetroSummary[[#This Row],[Fixture Rebate]])),\"\",ROUND(Table_RetroSummary[[#This Row],[Annual Fixture Savings (kWh)]]+Table_RetroSummary[[#This Row],[Annual Control Savings (kWh)]],0)),\"\"),\"\")","v":""},{"$f":"IFERROR(IF(Table_RetroSummary[[#This Row],[IsActive]],IF(NOT(ISNUMBER(Table_RetroSummary[[#This Row],[Fixture Rebate]])),\"\",ROUND(Table_RetroSummary[[#This Row],[Fixture kW Reduction]]+Table_RetroSummary[[#This Row],[Control kW Reduction]],3)),\"\"),\"\")","v":""},{"$f":"IFERROR(IF(Table_RetroSummary[[#This Row],[IsActive]],IF(NOT(ISNUMBER(Table_RetroSummary[[#This Row],[Fixture Rebate]])),\"\",ROUND(Table_RetroSummary[[#This Row],[Fixture Energy Savings (kWh)]]+Table_RetroSummary[[#This Row],[Induced HVAC Energy Savings (kWh)]],0)),\"\"),\"\")","v":""},{"$f":"IFERROR(IF(Table_RetroSummary[[#This Row],[IsActive]],IF(NOT(ISNUMBER(Table_RetroSummary[[#This Row],[Fixture Rebate]])),\"\",ROUND(Table_RetroSummary[[#This Row],[Fixture Demand Savings (kW)]]+Table_RetroSummary[[#This Row],[Induced HVAC Demand Savings (kW)]],3)),\"\"),\"\")","v":""}]
[{"$f":"IFERROR(Table_POSTInfo[[#This Row],[Line]],\"\")","v":21},{"$f":"IFERROR(Table_POSTInfo[[#This Row],[IsActive]],\"\")","v":false},{"$f":"IFERROR(IF(Table_RetroSummary[[#This Row],[IsActive]],CONCATENATE(Table_RetroSummary[[#This Row],[Existing Fixture]],\" | \",Table_RetroSummary[[#This Row],[Proposed Fixture]]),\"\"),\"\")","v":""},{"$f":"IFERROR(IF(Table_RetroSummary[[#This Row],[IsActive]],VLOOKUP(IF(ISNUMBER(MATCH(Table_POSTInfo[[#This Row],[Line]],Table_POSTInspection[Line],0)),INDEX(Table_POSTInspection[Schedule],MATCH(Table_RetroSummary[[#This Row],[Line Item]],Table_POSTInspection[Line],0)),Table_POSTInfo[[#This Row],[Schedule]]),'Customer Information'!$S$27:$T$34,2,FALSE),\"\"),\"\")","v":""},{"$f":"IFERROR(IF(Table_RetroSummary[[#This Row],[IsActive]],IF(IF(ISNUMBER(MATCH(Table_RetroSummary[[#This Row],[Line Item]],Table_POSTInspection[Line],0)),INDEX(Table_POSTInspection[Interior/ Exterior],MATCH(Table_RetroSummary[[#This Row],[Line Item]],Table_POSTInfo[[#This Row],[Line]],0)),Table_POSTInfo[[#This Row],[Interior/ Exterior]])=\"Interior\",'Customer Information'!$S$25,0),\"\"),\"\")","v":""},{"$f":"IFERROR(IF(Table_RetroSummary[[#This Row],[IsActive]],IF(IF(ISNUMBER(MATCH(Table_RetroSummary[[#This Row],[Line Item]],Table_POSTInspection[Line],0)),INDEX(Table_POSTInspection[Interior/ Exterior],MATCH(Table_RetroSummary[[#This Row],[Line Item]],Table_POSTInfo[[#This Row],[Line]],0)),Table_POSTInfo[[#This Row],[Interior/ Exterior]])=\"Interior\",'Customer Information'!$T$25,0),\"\"),\"\")","v":""},{"$f":"IFERROR(IF(Table_RetroSummary[[#This Row],[IsActive]],IF(IF(ISNUMBER(MATCH(Table_RetroSummary[[#This Row],[Line Item]],Table_POSTInspection[Line],0)),INDEX(Table_POSTInspection[Interior/ Exterior],MATCH(Table_RetroSummary[[#This Row],[Line Item]],Table_POSTInfo[[#This Row],[Line]],0)),Table_POSTInfo[[#This Row],[Interior/ Exterior]])=\"Interior\",'Customer Information'!$U$25,0),\"\"),\"\")","v":""},{"$f":"IFERROR(IF(Table_RetroSummary[[#This Row],[IsActive]],IF(IF(ISNUMBER(MATCH(Table_RetroSummary[[#This Row],[Line Item]],Table_POSTInspection[Line],0)),INDEX(Table_POSTInspection[Interior/ Exterior],MATCH(Table_RetroSummary[[#This Row],[Line Item]],Table_POSTInfo[[#This Row],[Line]],0)),Table_POSTInfo[[#This Row],[Interior/ Exterior]])=\"Interior\",'Customer Information'!$V$25,0),\"\"),\"\")","v":""},{"$f":"IFERROR(IF(Table_RetroSummary[[#This Row],[IsActive]],IF(IF(ISNUMBER(MATCH(Table_RetroSummary[[#This Row],[Line Item]],Table_POSTInspection[Line],0)),INDEX(Table_POSTInspection[Interior/ Exterior],MATCH(Table_RetroSummary[[#This Row],[Line Item]],Table_POSTInfo[[#This Row],[Line]],0)),Table_POSTInfo[[#This Row],[Interior/ Exterior]])=\"Interior\",'Customer Information'!$W$25,0),\"\"),\"\")","v":""},{"$f":"IFERROR(IF(Table_RetroSummary[[#This Row],[IsActive]],IF(IF(ISNUMBER(MATCH(Table_RetroSummary[[#This Row],[Line Item]],Table_POSTInspection[Line],0)),INDEX(Table_POSTInspection[Interior/ Exterior],MATCH(Table_RetroSummary[[#This Row],[Line Item]],Table_POSTInfo[[#This Row],[Line]],0)),Table_POSTInfo[[#This Row],[Interior/ Exterior]])=\"Interior\",'Customer Information'!$X$25,0),\"\"),\"\")","v":""},{"$f":"IFERROR(IF(Table_RetroSummary[[#This Row],[IsActive]],\nCONCATENATE(\nIF(ISNUMBER(MATCH(Table_POSTInfo[[#This Row],[Line]],Table_POSTInspection[Line],0)),INDEX(Table_POSTInspection[Interior/ Exterior],MATCH(Table_RetroSummary[[#This Row],[Line Item]],Table_POSTInspection[Line],0)),Table_POSTInfo[[#This Row],[Interior/ Exterior]]),\n\" - \",\nIF(ISNUMBER(MATCH(Table_POSTInfo[[#This Row],[Line]],Table_POSTInspection[Line],0)),INDEX(Table_POSTInspection[Space Description],MATCH(Table_RetroSummary[[#This Row],[Line Item]],Table_POSTInspection[Line],0)),Table_POSTInfo[[#This Row],[Space Description]])),\n \"\"),\"\")","v":""},{"$f":"IFERROR(IF(Table_RetroSummary[[#This Row],[IsActive]]=\"\",\"\",Table_POSTInfo[[#This Row],[Fixture Description '[E']]]),\"\")","v":""},{"$f":"IFERROR(IF(Table_RetroSummary[[#This Row],[IsActive]]=\"\",\"\",Table_POSTInfo[[#This Row],['# Lamps/ Fixture '[E']]]),\"\")","v":""},{"$f":"IFERROR(IF(Table_RetroSummary[[#This Row],[IsActive]]=\"\",\"\",Table_POSTInfo[[#This Row],[Fixture/ Lamp Wattage '[E']]]),\"\")","v":""},{"$f":"IFERROR(IF(Table_RetroSummary[[#This Row],[IsActive]]=\"\",\"\",Table_POSTInfo[[#This Row],[Fixture Qty '[E']]]),\"\")","v":""},{"$f":"IFERROR(IF(Table_RetroSummary[[#This Row],[IsActive]],Table_RetroSummary[[#This Row],[Fixture/ Lamp Wattage '[E']]]*Table_RetroSummary[[#This Row],[E. Qty]],\"\"),\"\")","v":""},{"$f":"IFERROR(IF(Table_RetroSummary[[#This Row],[IsActive]]=\"\",\"\",Table_POSTInfo[[#This Row],[Fixture Wattage '[E']]]),\"\")","v":""},{"$f":"IFERROR(IF(Table_RetroSummary[[#This Row],[IsActive]],IFERROR(Table_RetroSummary[[#This Row],[Existing Fixture Wattage]]/1000*Table_RetroSummary[[#This Row],[OpHrs]]*Table_RetroSummary[[#This Row],[E. Qty]],0),\"\"),\"\")","v":""},{"$f":"IFERROR(IF(Table_RetroSummary[[#This Row],[IsActive]],IFERROR(VLOOKUP(RIGHT(Table_RetroSummary[[#This Row],[Existing Fixture]],LEN(Table_RetroSummary[[#This Row],[Existing Fixture]])-FIND(\" - \",Table_RetroSummary[[#This Row],[Existing Fixture]],FIND(\"]\",Table_RetroSummary[[#This Row],[Existing Fixture]],1))-2),Table_ControlType[],3,FALSE),0),\"\"),\"\")","v":""},{"$f":"IFERROR(IF(Table_RetroSummary[[#This Row],[IsActive]],IFERROR(Table_RetroSummary[[#This Row],[Existing Fixture Wattage]]/1000*Table_RetroSummary[[#This Row],[OpHrs]]*Table_RetroSummary[[#This Row],[E. Qty]]*Table_RetroSummary[[#This Row],[Existing CSF]]*(-1),0),\"\"),\"\")","v":""},{"$f":"IFERROR(Table_RetroSummary[[#This Row],[Existing Fixture kWh]]+Table_RetroSummary[[#This Row],[Existing Fixture (Existing Controls) kWh]],\"\")","v":""},{"$f":"IFERROR(IF(Table_RetroSummary[[#This Row],[IsActive]],IF(ISNUMBER(MATCH(Table_POSTInfo[[#This Row],[Line]],Table_POSTInspection[Line],0)),INDEX(Table_POSTInspection[Fixture Description '[P']],MATCH(Table_RetroSummary[[#This Row],[Line Item]],Table_POSTInspection[Line],0)),Table_POSTInfo[[#This Row],[Fixture Description '[P']]]),\"\"),\"\")","v":""},{"$f":"IFERROR(IF(Table_RetroSummary[[#This Row],[IsActive]],IF(ISNUMBER(MATCH(Table_POSTInfo[[#This Row],[Line]],Table_POSTInspection[Line],0)),INDEX(Table_POSTInspection['# Lamps/ Fixture '[P']],MATCH(Table_RetroSummary[[#This Row],[Line Item]],Table_POSTInspection[Line],0)),Table_POSTInfo[[#This Row],['# Lamps/ Fixture '[P']]]),\"\"),\"\")","v":""},{"$f":"IFERROR(IF(Table_RetroSummary[[#This Row],[IsActive]],IF(ISNUMBER(MATCH(Table_POSTInfo[[#This Row],[Line]],Table_POSTInspection[Line],0)),INDEX(Table_POSTInspection[Fixture/ Lamp Wattage '[P']],MATCH(Table_RetroSummary[[#This Row],[Line Item]],Table_POSTInspection[Line],0)),Table_POSTInfo[[#This Row],[Fixture/ Lamp Wattage '[P']]]),\"\"),\"\")","v":""},{"$f":"IFERROR(IF(Table_RetroSummary[[#This Row],[IsActive]],IF(ISNUMBER(MATCH(Table_POSTInfo[[#This Row],[Line]],Table_POSTInspection[Line],0)),INDEX(Table_POSTInspection[Fixture Qty '[P']],MATCH(Table_RetroSummary[[#This Row],[Line Item]],Table_POSTInspection[Line],0)),Table_POSTInfo[[#This Row],[Fixture Qty '[P']]]),\"\"),\"\")","v":""},{"$f":"IFERROR(IF(Table_RetroSummary[[#This Row],[IsActive]],Table_RetroSummary[[#This Row],[Fixture/ Lamp Wattage '[P']]]*Table_RetroSummary[[#This Row],[P. Qty]],\"\"),\"\")","v":""},{"$f":"IFERROR(IF(Table_RetroSummary[[#This Row],[IsActive]],IF(ISNUMBER(MATCH(Table_POSTInfo[[#This Row],[Line]],Table_POSTInspection[Line],0)),INDEX(Table_POSTInspection[Fixture Wattage '[P']],MATCH(Table_RetroSummary[[#This Row],[Line Item]],Table_POSTInspection[Line],0)),Table_POSTInfo[[#This Row],[Fixture Wattage '[P']]]),\"\"),\"\")","v":""},{"$f":"IFERROR(Table_RetroSummary[[#This Row],[Total '# Lamps '[P']]]+Table_RetroSummary[[#This Row],[Proposed Fixture Wattage]],\"\")","v":""},{"$f":"IFERROR(Table_RetroSummary[[#This Row],[Proposed Fixture Wattage]]/1000*Table_RetroSummary[[#This Row],[OpHrs]]*Table_RetroSummary[[#This Row],[P. Qty]],\"\")","v":""},{"$f":"IFERROR(IF(Table_RetroSummary[[#This Row],[IsActive]],IFERROR(VLOOKUP(RIGHT(Table_RetroSummary[[#This Row],[Proposed Fixture]],LEN(Table_RetroSummary[[#This Row],[Proposed Fixture]])-FIND(\" - \",Table_RetroSummary[[#This Row],[Proposed Fixture]],FIND(\"]\",Table_RetroSummary[[#This Row],[Proposed Fixture]],1))-2),Table_ControlType[],3, FALSE),0),\"\"),\"\")","v":""},{"$f":"IFERROR(IF(Table_RetroSummary[[#This Row],[IsActive]],IFERROR(Table_RetroSummary[[#This Row],[Proposed Fixture Wattage]]/1000*Table_RetroSummary[[#This Row],[OpHrs]]*Table_RetroSummary[[#This Row],[P. Qty]]*Table_RetroSummary[[#This Row],[Existing CSF]]*(-1),0),\"\"),\"\")","v":""},{"$f":"IFERROR(Table_RetroSummary[[#This Row],[Proposed Fixture kWh]]+Table_RetroSummary[[#This Row],[Proposed Fixture (Existing Controls) kWh]],\"\")","v":""},{"$f":"IFERROR(IF(Table_RetroSummary[[#This Row],[IsActive]],IFERROR(Table_RetroSummary[[#This Row],[Proposed Fixture Wattage]]/1000*Table_RetroSummary[[#This Row],[OpHrs]]*Table_RetroSummary[[#This Row],[P. Qty]]*Table_RetroSummary[[#This Row],[Proposed CSF]]*(-1),0),\"\"),\"\")","v":""},{"$f":"IFERROR(Table_RetroSummary[[#This Row],[Proposed Fixture kWh]]+Table_RetroSummary[[#This Row],[Proposed Fixture (Proposed Controls) kWh]],\"\")","v":""},{"$f":"IFERROR(IF(Table_RetroSummary[[#This Row],[IsActive]],IF(ISNUMBER(MATCH(Table_POSTInfo[[#This Row],[Line]],Table_POSTInspection[Line],0)),INDEX(Table_POSTInspection[DLC or ES Certification '[P']],MATCH(Table_RetroSummary[[#This Row],[Line Item]],Table_POSTInspection[Line],0)),Table_POSTInfo[[#This Row],[DLC or ES Certification '[P']]]),\"\"),\"\")","v":""},null,{"$f":"IFERROR(IF(Table_RetroSummary[[#This Row],[IsActive]],\nIF(AND(RIGHT(Table_RetroSummary[[#This Row],[Existing Fixture]],LEN(Table_RetroSummary[[#This Row],[Existing Fixture]])-FIND(\":\",Table_RetroSummary[[#This Row],[Existing Fixture]],1)-1)<>Table_RetroSummary[[#This Row],[Proposed Fixture]],MID(Table_RetroSummary[[#This Row],[Existing Fixture]],FIND(\": \",Table_RetroSummary[[#This Row],[Existing Fixture]],1)+2,FIND(\"]\",Table_RetroSummary[[#This Row],[Existing Fixture]],1))=LEFT(Table_RetroSummary[[#This Row],[Proposed Fixture]],FIND(\"]\",Table_RetroSummary[[#This Row],[Proposed Fixture]],1))),\n  \"Controls Only\",\n  IF(Table_POSTInfo[[#This Row],[DLC or ES Certification '[P']]]<>\"\",\n    IF(ISNUMBER(FIND(\"LED Tube\",Table_RetroSummary[[#This Row],[Proposed Fixture]],1)),\n      \"LED Re-Lamp\",\n      IF(AND(Table_RetroSummary[[#This Row],[Existing Overall kWh]]>Table_RetroSummary[[#This Row],[Proposed Overall kWh (Existing Controls)]],ISNUMBER(FIND(\"LED\",Table_RetroSummary[[#This Row],[Proposed Fixture]],1))),\n        IF(Table_POSTInfo[[#This Row],[Interior/ Exterior]]=\"Exterior\",\n          \"Exterior LED Fixture\",\n          \"Interior LED Fixture\"),\n        \"Ineligible Fixture\")),\n    \"Ineligible Fixture\")),\n\"\"),\"\")","v":""},{"$f":"IFERROR(VLOOKUP(Table_RetroSummary[[#This Row],[Fixture Measure Description]],Table_FixtureRate[],2,FALSE),\"\")","v":""},{"$f":"IFERROR(IF(Table_RetroSummary[[#This Row],[IsActive]],IF(Table_RetroSummary[[#This Row],[Fixture Measure Description]]=\"Ineligible Fixture\",0,ROUND(Table_RetroSummary[[#This Row],[Fixture Rebate (per kW)]]*(Table_RetroSummary[[#This Row],[Existing Fixture Wattage]]*Table_RetroSummary[[#This Row],[E. Qty]]-Table_RetroSummary[[#This Row],[Proposed Fixture Wattage]]*Table_RetroSummary[[#This Row],[P. Qty]])/1000,2)),\"\"),\"\")","v":""},{"$f":"IFERROR(IF(Table_RetroSummary[[#This Row],[Fixture Measure Description]]=\"Ineligible Fixture\",0,ROUND(IF(ProjectCost_Total=0,300000,ProjectCost_Total)*Table_RetroSummary[[#This Row],[Fixture Rebate]]/SUM(Table_RetroSummary[Fixture Rebate],Table_RetroSummary[Controls Rebate]),2)),\"\")","v":""},{"$f":"IFERROR(IF(Table_RetroSummary[[#This Row],[IsActive]],IF(Table_RetroSummary[[#This Row],[Fixture Measure Description]]=\"Ineligible Fixture\",0,Table_RetroSummary[[#This Row],[Existing Overall kWh]]-Table_RetroSummary[[#This Row],[Proposed Overall kWh (Existing Controls)]]),\"\"),\"\")","v":""},{"$f":"IFERROR(IF(Table_RetroSummary[[#This Row],[IsActive]],IF(Table_RetroSummary[[#This Row],[Fixture Measure Description]]=\"Ineligible Fixture\",0,(Table_RetroSummary[[#This Row],[Existing Fixture kWh]]-Table_RetroSummary[[#This Row],[Proposed Fixture kWh]])/Table_RetroSummary[[#This Row],[OpHrs]]*Table_RetroSummary[[#This Row],[CF (Ltg)]]*Table_RetroSummary[[#This Row],[DF (Ltg)]]),\"\"),\"\")","v":""},null,{"$f":"IFERROR(\n  IF(OR(Table_RetroSummary[[#This Row],[Fixture Measure Description]]=\"\",Table_RetroSummary[[#This Row],[Fixture Measure Description]]=\"Ineligible Fixture\"),\n    \"\",\n    IFERROR(VLOOKUP(RIGHT(Table_RetroSummary[[#This Row],[Existing Fixture]],LEN(Table_RetroSummary[[#This Row],[Existing Fixture]])-FIND(\" - \",Table_RetroSummary[[#This Row],[Existing Fixture]],FIND(\"]\",Table_RetroSummary[[#This Row],[Existing Fixture]],1))-2),Table_ControlType[],2,FALSE),\"None\")\n    & \" - \" &\n    IFERROR(VLOOKUP(RIGHT(Table_RetroSummary[[#This Row],[Proposed Fixture]],LEN(Table_RetroSummary[[#This Row],[Proposed Fixture]])-FIND(\" - \",Table_RetroSummary[[#This Row],[Proposed Fixture]],FIND(\"]\",Table_RetroSummary[[#This Row],[Proposed Fixture]],1))-2),Table_ControlType[],2, FALSE),None)),\n\"\")","v":""},{"$f":"IFERROR(VLOOKUP(Table_RetroSummary[[#This Row],[Controls Measure Description]],Table_ControlRate[],2,FALSE),\"\")","v":""},{"$f":"IFERROR(IF(Table_RetroSummary[[#This Row],[IsActive]],IF(Table_RetroSummary[[#This Row],[Controls Measure Description]]=\"\",0,ROUND(Table_RetroSummary[[#This Row],[Controls Rebate (per Fixt Watt)]]*Table_RetroSummary[[#This Row],[Proposed Fixture Wattage]]*Table_RetroSummary[[#This Row],[P. Qty]],2)),\"\"),\"\")","v":""},{"$f":"IFERROR(IF(Table_RetroSummary[[#This Row],[Fixture Measure Description]]=\"Ineligible Fixture\",0,ROUND(IF(ProjectCost_Total=0,300000,ProjectCost_Total)*Table_RetroSummary[[#This Row],[Controls Rebate]]/SUM(Table_RetroSummary[Fixture Rebate],Table_RetroSummary[Controls Rebate]),2)),\"\")","v":""},{"$f":"IFERROR(IF(Table_RetroSummary[[#This Row],[IsActive]],IF(Table_RetroSummary[[#This Row],[Controls Measure Description]]=\"\",0,(Table_RetroSummary[[#This Row],[Proposed Fixture (Existing Controls) kWh]]-Table_RetroSummary[[#This Row],[Proposed Fixture (Proposed Controls) kWh]])),\"\"),\"\")","v":""},{"$f":"IFERROR(IF(Table_RetroSummary[[#This Row],[IsActive]],IF(Table_RetroSummary[[#This Row],[Controls Measure Description]]=\"\",0,(Table_RetroSummary[[#This Row],[Proposed Fixture (Existing Controls) kWh]]-Table_RetroSummary[[#This Row],[Proposed Fixture (Proposed Controls) kWh]])/Table_RetroSummary[[#This Row],[OpHrs]]*Table_RetroSummary[[#This Row],[CF (Ltg)]]*Table_RetroSummary[[#This Row],[DF (Ltg)]]),\"\"),\"\")","v":""},null,{"$f":"IFERROR(IF(NOT(ISNUMBER(Table_RetroSummary[[#This Row],[Fixture Rebate]])),\"\",IF(MIN(IF(SUM(Table_RetroSummary[Fixture Cost],Table_RetroSummary[Controls Cost])<0,0,SUM(Table_RetroSummary[Fixture Cost],Table_RetroSummary[Controls Cost])),SUM(Table_RetroSummary[Fixture Rebate],Table_RetroSummary[Controls Rebate]))>300000,300000/MIN(IF(SUM(Table_RetroSummary[Fixture Cost],Table_RetroSummary[Controls Cost])<0,0,SUM(Table_RetroSummary[Fixture Cost],Table_RetroSummary[Controls Cost])),SUM(Table_RetroSummary[Fixture Rebate],Table_RetroSummary[Controls Rebate]))*MIN(IF(SUM(Table_RetroSummary[Fixture Cost],Table_RetroSummary[Controls Cost])<0,0,SUM(Table_RetroSummary[Fixture Cost],Table_RetroSummary[Controls Cost])),Table_RetroSummary[[#This Row],[Fixture Rebate]]+IF(Table_RetroSummary[[#This Row],[Controls Rebate]]=\"\",0,Table_RetroSummary[[#This Row],[Controls Rebate]])),MIN(IF(SUM(Table_RetroSummary[Fixture Cost],Table_RetroSummary[Controls Cost])<0,0,SUM(Table_RetroSummary[Fixture Cost],Table_RetroSummary[Controls Cost])),Table_RetroSummary[[#This Row],[Fixture Rebate]]+IF(Table_RetroSummary[[#This Row],[Controls Rebate]]=\"\",0,Table_RetroSummary[[#This Row],[Controls Rebate]])))),\"\")","v":""},{"$f":"IFERROR(IF(Table_RetroSummary[[#This Row],[Fixture Cost]]=\"\",\"\",Table_RetroSummary[[#This Row],[Fixture Cost]]+IF(Table_RetroSummary[[#This Row],[Controls Cost]]=\"\",0,Table_RetroSummary[[#This Row],[Controls Cost]])),\"\")","v":""},{"$f":"IFERROR(IF(Table_RetroSummary[[#This Row],[IsActive]],IF(Table_POSTInfo[[#This Row],[Interior/ Exterior]]=\"Interior\",IFERROR((Table_RetroSummary[[#This Row],[Annual Fixture Savings (kWh)]]+Table_RetroSummary[[#This Row],[Annual Control Savings (kWh)]])*(Table_RetroSummary[[#This Row],[EIF]]-1),0),0),\"\"),\"\")","v":""},{"$f":"IFERROR(IF(Table_RetroSummary[[#This Row],[IsActive]],IF(Table_POSTInfo[[#This Row],[Interior/ Exterior]]=\"Interior\",IFERROR((Table_RetroSummary[[#This Row],[Fixture kW Reduction]]+Table_RetroSummary[[#This Row],[Control kW Reduction]]/(Table_RetroSummary[[#This Row],[CF (Ltg)]]*Table_RetroSummary[[#This Row],[DF (Ltg)]]))*(Table_RetroSummary[[#This Row],[DIF]]-1)*Table_RetroSummary[[#This Row],[CF (HVAC)]]*Table_RetroSummary[[#This Row],[DF (HVAC)]],0),0),\"\"),\"\")","v":""},{"$f":"IFERROR(IF(Table_RetroSummary[[#This Row],[IsActive]],IF(NOT(ISNUMBER(Table_RetroSummary[[#This Row],[Fixture Rebate]])),\"\",ROUND(Table_RetroSummary[[#This Row],[Annual Fixture Savings (kWh)]]+Table_RetroSummary[[#This Row],[Annual Control Savings (kWh)]],0)),\"\"),\"\")","v":""},{"$f":"IFERROR(IF(Table_RetroSummary[[#This Row],[IsActive]],IF(NOT(ISNUMBER(Table_RetroSummary[[#This Row],[Fixture Rebate]])),\"\",ROUND(Table_RetroSummary[[#This Row],[Fixture kW Reduction]]+Table_RetroSummary[[#This Row],[Control kW Reduction]],3)),\"\"),\"\")","v":""},{"$f":"IFERROR(IF(Table_RetroSummary[[#This Row],[IsActive]],IF(NOT(ISNUMBER(Table_RetroSummary[[#This Row],[Fixture Rebate]])),\"\",ROUND(Table_RetroSummary[[#This Row],[Fixture Energy Savings (kWh)]]+Table_RetroSummary[[#This Row],[Induced HVAC Energy Savings (kWh)]],0)),\"\"),\"\")","v":""},{"$f":"IFERROR(IF(Table_RetroSummary[[#This Row],[IsActive]],IF(NOT(ISNUMBER(Table_RetroSummary[[#This Row],[Fixture Rebate]])),\"\",ROUND(Table_RetroSummary[[#This Row],[Fixture Demand Savings (kW)]]+Table_RetroSummary[[#This Row],[Induced HVAC Demand Savings (kW)]],3)),\"\"),\"\")","v":""}]
[{"$f":"IFERROR(Table_POSTInfo[[#This Row],[Line]],\"\")","v":22},{"$f":"IFERROR(Table_POSTInfo[[#This Row],[IsActive]],\"\")","v":false},{"$f":"IFERROR(IF(Table_RetroSummary[[#This Row],[IsActive]],CONCATENATE(Table_RetroSummary[[#This Row],[Existing Fixture]],\" | \",Table_RetroSummary[[#This Row],[Proposed Fixture]]),\"\"),\"\")","v":""},{"$f":"IFERROR(IF(Table_RetroSummary[[#This Row],[IsActive]],VLOOKUP(IF(ISNUMBER(MATCH(Table_POSTInfo[[#This Row],[Line]],Table_POSTInspection[Line],0)),INDEX(Table_POSTInspection[Schedule],MATCH(Table_RetroSummary[[#This Row],[Line Item]],Table_POSTInspection[Line],0)),Table_POSTInfo[[#This Row],[Schedule]]),'Customer Information'!$S$27:$T$34,2,FALSE),\"\"),\"\")","v":""},{"$f":"IFERROR(IF(Table_RetroSummary[[#This Row],[IsActive]],IF(IF(ISNUMBER(MATCH(Table_RetroSummary[[#This Row],[Line Item]],Table_POSTInspection[Line],0)),INDEX(Table_POSTInspection[Interior/ Exterior],MATCH(Table_RetroSummary[[#This Row],[Line Item]],Table_POSTInfo[[#This Row],[Line]],0)),Table_POSTInfo[[#This Row],[Interior/ Exterior]])=\"Interior\",'Customer Information'!$S$25,0),\"\"),\"\")","v":""},{"$f":"IFERROR(IF(Table_RetroSummary[[#This Row],[IsActive]],IF(IF(ISNUMBER(MATCH(Table_RetroSummary[[#This Row],[Line Item]],Table_POSTInspection[Line],0)),INDEX(Table_POSTInspection[Interior/ Exterior],MATCH(Table_RetroSummary[[#This Row],[Line Item]],Table_POSTInfo[[#This Row],[Line]],0)),Table_POSTInfo[[#This Row],[Interior/ Exterior]])=\"Interior\",'Customer Information'!$T$25,0),\"\"),\"\")","v":""},{"$f":"IFERROR(IF(Table_RetroSummary[[#This Row],[IsActive]],IF(IF(ISNUMBER(MATCH(Table_RetroSummary[[#This Row],[Line Item]],Table_POSTInspection[Line],0)),INDEX(Table_POSTInspection[Interior/ Exterior],MATCH(Table_RetroSummary[[#This Row],[Line Item]],Table_POSTInfo[[#This Row],[Line]],0)),Table_POSTInfo[[#This Row],[Interior/ Exterior]])=\"Interior\",'Customer Information'!$U$25,0),\"\"),\"\")","v":""},{"$f":"IFERROR(IF(Table_RetroSummary[[#This Row],[IsActive]],IF(IF(ISNUMBER(MATCH(Table_RetroSummary[[#This Row],[Line Item]],Table_POSTInspection[Line],0)),INDEX(Table_POSTInspection[Interior/ Exterior],MATCH(Table_RetroSummary[[#This Row],[Line Item]],Table_POSTInfo[[#This Row],[Line]],0)),Table_POSTInfo[[#This Row],[Interior/ Exterior]])=\"Interior\",'Customer Information'!$V$25,0),\"\"),\"\")","v":""},{"$f":"IFERROR(IF(Table_RetroSummary[[#This Row],[IsActive]],IF(IF(ISNUMBER(MATCH(Table_RetroSummary[[#This Row],[Line Item]],Table_POSTInspection[Line],0)),INDEX(Table_POSTInspection[Interior/ Exterior],MATCH(Table_RetroSummary[[#This Row],[Line Item]],Table_POSTInfo[[#This Row],[Line]],0)),Table_POSTInfo[[#This Row],[Interior/ Exterior]])=\"Interior\",'Customer Information'!$W$25,0),\"\"),\"\")","v":""},{"$f":"IFERROR(IF(Table_RetroSummary[[#This Row],[IsActive]],IF(IF(ISNUMBER(MATCH(Table_RetroSummary[[#This Row],[Line Item]],Table_POSTInspection[Line],0)),INDEX(Table_POSTInspection[Interior/ Exterior],MATCH(Table_RetroSummary[[#This Row],[Line Item]],Table_POSTInfo[[#This Row],[Line]],0)),Table_POSTInfo[[#This Row],[Interior/ Exterior]])=\"Interior\",'Customer Information'!$X$25,0),\"\"),\"\")","v":""},{"$f":"IFERROR(IF(Table_RetroSummary[[#This Row],[IsActive]],\nCONCATENATE(\nIF(ISNUMBER(MATCH(Table_POSTInfo[[#This Row],[Line]],Table_POSTInspection[Line],0)),INDEX(Table_POSTInspection[Interior/ Exterior],MATCH(Table_RetroSummary[[#This Row],[Line Item]],Table_POSTInspection[Line],0)),Table_POSTInfo[[#This Row],[Interior/ Exterior]]),\n\" - \",\nIF(ISNUMBER(MATCH(Table_POSTInfo[[#This Row],[Line]],Table_POSTInspection[Line],0)),INDEX(Table_POSTInspection[Space Description],MATCH(Table_RetroSummary[[#This Row],[Line Item]],Table_POSTInspection[Line],0)),Table_POSTInfo[[#This Row],[Space Description]])),\n \"\"),\"\")","v":""},{"$f":"IFERROR(IF(Table_RetroSummary[[#This Row],[IsActive]]=\"\",\"\",Table_POSTInfo[[#This Row],[Fixture Description '[E']]]),\"\")","v":""},{"$f":"IFERROR(IF(Table_RetroSummary[[#This Row],[IsActive]]=\"\",\"\",Table_POSTInfo[[#This Row],['# Lamps/ Fixture '[E']]]),\"\")","v":""},{"$f":"IFERROR(IF(Table_RetroSummary[[#This Row],[IsActive]]=\"\",\"\",Table_POSTInfo[[#This Row],[Fixture/ Lamp Wattage '[E']]]),\"\")","v":""},{"$f":"IFERROR(IF(Table_RetroSummary[[#This Row],[IsActive]]=\"\",\"\",Table_POSTInfo[[#This Row],[Fixture Qty '[E']]]),\"\")","v":""},{"$f":"IFERROR(IF(Table_RetroSummary[[#This Row],[IsActive]],Table_RetroSummary[[#This Row],[Fixture/ Lamp Wattage '[E']]]*Table_RetroSummary[[#This Row],[E. Qty]],\"\"),\"\")","v":""},{"$f":"IFERROR(IF(Table_RetroSummary[[#This Row],[IsActive]]=\"\",\"\",Table_POSTInfo[[#This Row],[Fixture Wattage '[E']]]),\"\")","v":""},{"$f":"IFERROR(IF(Table_RetroSummary[[#This Row],[IsActive]],IFERROR(Table_RetroSummary[[#This Row],[Existing Fixture Wattage]]/1000*Table_RetroSummary[[#This Row],[OpHrs]]*Table_RetroSummary[[#This Row],[E. Qty]],0),\"\"),\"\")","v":""},{"$f":"IFERROR(IF(Table_RetroSummary[[#This Row],[IsActive]],IFERROR(VLOOKUP(RIGHT(Table_RetroSummary[[#This Row],[Existing Fixture]],LEN(Table_RetroSummary[[#This Row],[Existing Fixture]])-FIND(\" - \",Table_RetroSummary[[#This Row],[Existing Fixture]],FIND(\"]\",Table_RetroSummary[[#This Row],[Existing Fixture]],1))-2),Table_ControlType[],3,FALSE),0),\"\"),\"\")","v":""},{"$f":"IFERROR(IF(Table_RetroSummary[[#This Row],[IsActive]],IFERROR(Table_RetroSummary[[#This Row],[Existing Fixture Wattage]]/1000*Table_RetroSummary[[#This Row],[OpHrs]]*Table_RetroSummary[[#This Row],[E. Qty]]*Table_RetroSummary[[#This Row],[Existing CSF]]*(-1),0),\"\"),\"\")","v":""},{"$f":"IFERROR(Table_RetroSummary[[#This Row],[Existing Fixture kWh]]+Table_RetroSummary[[#This Row],[Existing Fixture (Existing Controls) kWh]],\"\")","v":""},{"$f":"IFERROR(IF(Table_RetroSummary[[#This Row],[IsActive]],IF(ISNUMBER(MATCH(Table_POSTInfo[[#This Row],[Line]],Table_POSTInspection[Line],0)),INDEX(Table_POSTInspection[Fixture Description '[P']],MATCH(Table_RetroSummary[[#This Row],[Line Item]],Table_POSTInspection[Line],0)),Table_POSTInfo[[#This Row],[Fixture Description '[P']]]),\"\"),\"\")","v":""},{"$f":"IFERROR(IF(Table_RetroSummary[[#This Row],[IsActive]],IF(ISNUMBER(MATCH(Table_POSTInfo[[#This Row],[Line]],Table_POSTInspection[Line],0)),INDEX(Table_POSTInspection['# Lamps/ Fixture '[P']],MATCH(Table_RetroSummary[[#This Row],[Line Item]],Table_POSTInspection[Line],0)),Table_POSTInfo[[#This Row],['# Lamps/ Fixture '[P']]]),\"\"),\"\")","v":""},{"$f":"IFERROR(IF(Table_RetroSummary[[#This Row],[IsActive]],IF(ISNUMBER(MATCH(Table_POSTInfo[[#This Row],[Line]],Table_POSTInspection[Line],0)),INDEX(Table_POSTInspection[Fixture/ Lamp Wattage '[P']],MATCH(Table_RetroSummary[[#This Row],[Line Item]],Table_POSTInspection[Line],0)),Table_POSTInfo[[#This Row],[Fixture/ Lamp Wattage '[P']]]),\"\"),\"\")","v":""},{"$f":"IFERROR(IF(Table_RetroSummary[[#This Row],[IsActive]],IF(ISNUMBER(MATCH(Table_POSTInfo[[#This Row],[Line]],Table_POSTInspection[Line],0)),INDEX(Table_POSTInspection[Fixture Qty '[P']],MATCH(Table_RetroSummary[[#This Row],[Line Item]],Table_POSTInspection[Line],0)),Table_POSTInfo[[#This Row],[Fixture Qty '[P']]]),\"\"),\"\")","v":""},{"$f":"IFERROR(IF(Table_RetroSummary[[#This Row],[IsActive]],Table_RetroSummary[[#This Row],[Fixture/ Lamp Wattage '[P']]]*Table_RetroSummary[[#This Row],[P. Qty]],\"\"),\"\")","v":""},{"$f":"IFERROR(IF(Table_RetroSummary[[#This Row],[IsActive]],IF(ISNUMBER(MATCH(Table_POSTInfo[[#This Row],[Line]],Table_POSTInspection[Line],0)),INDEX(Table_POSTInspection[Fixture Wattage '[P']],MATCH(Table_RetroSummary[[#This Row],[Line Item]],Table_POSTInspection[Line],0)),Table_POSTInfo[[#This Row],[Fixture Wattage '[P']]]),\"\"),\"\")","v":""},{"$f":"IFERROR(Table_RetroSummary[[#This Row],[Total '# Lamps '[P']]]+Table_RetroSummary[[#This Row],[Proposed Fixture Wattage]],\"\")","v":""},{"$f":"IFERROR(Table_RetroSummary[[#This Row],[Proposed Fixture Wattage]]/1000*Table_RetroSummary[[#This Row],[OpHrs]]*Table_RetroSummary[[#This Row],[P. Qty]],\"\")","v":""},{"$f":"IFERROR(IF(Table_RetroSummary[[#This Row],[IsActive]],IFERROR(VLOOKUP(RIGHT(Table_RetroSummary[[#This Row],[Proposed Fixture]],LEN(Table_RetroSummary[[#This Row],[Proposed Fixture]])-FIND(\" - \",Table_RetroSummary[[#This Row],[Proposed Fixture]],FIND(\"]\",Table_RetroSummary[[#This Row],[Proposed Fixture]],1))-2),Table_ControlType[],3, FALSE),0),\"\"),\"\")","v":""},{"$f":"IFERROR(IF(Table_RetroSummary[[#This Row],[IsActive]],IFERROR(Table_RetroSummary[[#This Row],[Proposed Fixture Wattage]]/1000*Table_RetroSummary[[#This Row],[OpHrs]]*Table_RetroSummary[[#This Row],[P. Qty]]*Table_RetroSummary[[#This Row],[Existing CSF]]*(-1),0),\"\"),\"\")","v":""},{"$f":"IFERROR(Table_RetroSummary[[#This Row],[Proposed Fixture kWh]]+Table_RetroSummary[[#This Row],[Proposed Fixture (Existing Controls) kWh]],\"\")","v":""},{"$f":"IFERROR(IF(Table_RetroSummary[[#This Row],[IsActive]],IFERROR(Table_RetroSummary[[#This Row],[Proposed Fixture Wattage]]/1000*Table_RetroSummary[[#This Row],[OpHrs]]*Table_RetroSummary[[#This Row],[P. Qty]]*Table_RetroSummary[[#This Row],[Proposed CSF]]*(-1),0),\"\"),\"\")","v":""},{"$f":"IFERROR(Table_RetroSummary[[#This Row],[Proposed Fixture kWh]]+Table_RetroSummary[[#This Row],[Proposed Fixture (Proposed Controls) kWh]],\"\")","v":""},{"$f":"IFERROR(IF(Table_RetroSummary[[#This Row],[IsActive]],IF(ISNUMBER(MATCH(Table_POSTInfo[[#This Row],[Line]],Table_POSTInspection[Line],0)),INDEX(Table_POSTInspection[DLC or ES Certification '[P']],MATCH(Table_RetroSummary[[#This Row],[Line Item]],Table_POSTInspection[Line],0)),Table_POSTInfo[[#This Row],[DLC or ES Certification '[P']]]),\"\"),\"\")","v":""},null,{"$f":"IFERROR(IF(Table_RetroSummary[[#This Row],[IsActive]],\nIF(AND(RIGHT(Table_RetroSummary[[#This Row],[Existing Fixture]],LEN(Table_RetroSummary[[#This Row],[Existing Fixture]])-FIND(\":\",Table_RetroSummary[[#This Row],[Existing Fixture]],1)-1)<>Table_RetroSummary[[#This Row],[Proposed Fixture]],MID(Table_RetroSummary[[#This Row],[Existing Fixture]],FIND(\": \",Table_RetroSummary[[#This Row],[Existing Fixture]],1)+2,FIND(\"]\",Table_RetroSummary[[#This Row],[Existing Fixture]],1))=LEFT(Table_RetroSummary[[#This Row],[Proposed Fixture]],FIND(\"]\",Table_RetroSummary[[#This Row],[Proposed Fixture]],1))),\n  \"Controls Only\",\n  IF(Table_POSTInfo[[#This Row],[DLC or ES Certification '[P']]]<>\"\",\n    IF(ISNUMBER(FIND(\"LED Tube\",Table_RetroSummary[[#This Row],[Proposed Fixture]],1)),\n      \"LED Re-Lamp\",\n      IF(AND(Table_RetroSummary[[#This Row],[Existing Overall kWh]]>Table_RetroSummary[[#This Row],[Proposed Overall kWh (Existing Controls)]],ISNUMBER(FIND(\"LED\",Table_RetroSummary[[#This Row],[Proposed Fixture]],1))),\n        IF(Table_POSTInfo[[#This Row],[Interior/ Exterior]]=\"Exterior\",\n          \"Exterior LED Fixture\",\n          \"Interior LED Fixture\"),\n        \"Ineligible Fixture\")),\n    \"Ineligible Fixture\")),\n\"\"),\"\")","v":""},{"$f":"IFERROR(VLOOKUP(Table_RetroSummary[[#This Row],[Fixture Measure Description]],Table_FixtureRate[],2,FALSE),\"\")","v":""},{"$f":"IFERROR(IF(Table_RetroSummary[[#This Row],[IsActive]],IF(Table_RetroSummary[[#This Row],[Fixture Measure Description]]=\"Ineligible Fixture\",0,ROUND(Table_RetroSummary[[#This Row],[Fixture Rebate (per kW)]]*(Table_RetroSummary[[#This Row],[Existing Fixture Wattage]]*Table_RetroSummary[[#This Row],[E. Qty]]-Table_RetroSummary[[#This Row],[Proposed Fixture Wattage]]*Table_RetroSummary[[#This Row],[P. Qty]])/1000,2)),\"\"),\"\")","v":""},{"$f":"IFERROR(IF(Table_RetroSummary[[#This Row],[Fixture Measure Description]]=\"Ineligible Fixture\",0,ROUND(IF(ProjectCost_Total=0,300000,ProjectCost_Total)*Table_RetroSummary[[#This Row],[Fixture Rebate]]/SUM(Table_RetroSummary[Fixture Rebate],Table_RetroSummary[Controls Rebate]),2)),\"\")","v":""},{"$f":"IFERROR(IF(Table_RetroSummary[[#This Row],[IsActive]],IF(Table_RetroSummary[[#This Row],[Fixture Measure Description]]=\"Ineligible Fixture\",0,Table_RetroSummary[[#This Row],[Existing Overall kWh]]-Table_RetroSummary[[#This Row],[Proposed Overall kWh (Existing Controls)]]),\"\"),\"\")","v":""},{"$f":"IFERROR(IF(Table_RetroSummary[[#This Row],[IsActive]],IF(Table_RetroSummary[[#This Row],[Fixture Measure Description]]=\"Ineligible Fixture\",0,(Table_RetroSummary[[#This Row],[Existing Fixture kWh]]-Table_RetroSummary[[#This Row],[Proposed Fixture kWh]])/Table_RetroSummary[[#This Row],[OpHrs]]*Table_RetroSummary[[#This Row],[CF (Ltg)]]*Table_RetroSummary[[#This Row],[DF (Ltg)]]),\"\"),\"\")","v":""},null,{"$f":"IFERROR(\n  IF(OR(Table_RetroSummary[[#This Row],[Fixture Measure Description]]=\"\",Table_RetroSummary[[#This Row],[Fixture Measure Description]]=\"Ineligible Fixture\"),\n    \"\",\n    IFERROR(VLOOKUP(RIGHT(Table_RetroSummary[[#This Row],[Existing Fixture]],LEN(Table_RetroSummary[[#This Row],[Existing Fixture]])-FIND(\" - \",Table_RetroSummary[[#This Row],[Existing Fixture]],FIND(\"]\",Table_RetroSummary[[#This Row],[Existing Fixture]],1))-2),Table_ControlType[],2,FALSE),\"None\")\n    & \" - \" &\n    IFERROR(VLOOKUP(RIGHT(Table_RetroSummary[[#This Row],[Proposed Fixture]],LEN(Table_RetroSummary[[#This Row],[Proposed Fixture]])-FIND(\" - \",Table_RetroSummary[[#This Row],[Proposed Fixture]],FIND(\"]\",Table_RetroSummary[[#This Row],[Proposed Fixture]],1))-2),Table_ControlType[],2, FALSE),None)),\n\"\")","v":""},{"$f":"IFERROR(VLOOKUP(Table_RetroSummary[[#This Row],[Controls Measure Description]],Table_ControlRate[],2,FALSE),\"\")","v":""},{"$f":"IFERROR(IF(Table_RetroSummary[[#This Row],[IsActive]],IF(Table_RetroSummary[[#This Row],[Controls Measure Description]]=\"\",0,ROUND(Table_RetroSummary[[#This Row],[Controls Rebate (per Fixt Watt)]]*Table_RetroSummary[[#This Row],[Proposed Fixture Wattage]]*Table_RetroSummary[[#This Row],[P. Qty]],2)),\"\"),\"\")","v":""},{"$f":"IFERROR(IF(Table_RetroSummary[[#This Row],[Fixture Measure Description]]=\"Ineligible Fixture\",0,ROUND(IF(ProjectCost_Total=0,300000,ProjectCost_Total)*Table_RetroSummary[[#This Row],[Controls Rebate]]/SUM(Table_RetroSummary[Fixture Rebate],Table_RetroSummary[Controls Rebate]),2)),\"\")","v":""},{"$f":"IFERROR(IF(Table_RetroSummary[[#This Row],[IsActive]],IF(Table_RetroSummary[[#This Row],[Controls Measure Description]]=\"\",0,(Table_RetroSummary[[#This Row],[Proposed Fixture (Existing Controls) kWh]]-Table_RetroSummary[[#This Row],[Proposed Fixture (Proposed Controls) kWh]])),\"\"),\"\")","v":""},{"$f":"IFERROR(IF(Table_RetroSummary[[#This Row],[IsActive]],IF(Table_RetroSummary[[#This Row],[Controls Measure Description]]=\"\",0,(Table_RetroSummary[[#This Row],[Proposed Fixture (Existing Controls) kWh]]-Table_RetroSummary[[#This Row],[Proposed Fixture (Proposed Controls) kWh]])/Table_RetroSummary[[#This Row],[OpHrs]]*Table_RetroSummary[[#This Row],[CF (Ltg)]]*Table_RetroSummary[[#This Row],[DF (Ltg)]]),\"\"),\"\")","v":""},null,{"$f":"IFERROR(IF(NOT(ISNUMBER(Table_RetroSummary[[#This Row],[Fixture Rebate]])),\"\",IF(MIN(IF(SUM(Table_RetroSummary[Fixture Cost],Table_RetroSummary[Controls Cost])<0,0,SUM(Table_RetroSummary[Fixture Cost],Table_RetroSummary[Controls Cost])),SUM(Table_RetroSummary[Fixture Rebate],Table_RetroSummary[Controls Rebate]))>300000,300000/MIN(IF(SUM(Table_RetroSummary[Fixture Cost],Table_RetroSummary[Controls Cost])<0,0,SUM(Table_RetroSummary[Fixture Cost],Table_RetroSummary[Controls Cost])),SUM(Table_RetroSummary[Fixture Rebate],Table_RetroSummary[Controls Rebate]))*MIN(IF(SUM(Table_RetroSummary[Fixture Cost],Table_RetroSummary[Controls Cost])<0,0,SUM(Table_RetroSummary[Fixture Cost],Table_RetroSummary[Controls Cost])),Table_RetroSummary[[#This Row],[Fixture Rebate]]+IF(Table_RetroSummary[[#This Row],[Controls Rebate]]=\"\",0,Table_RetroSummary[[#This Row],[Controls Rebate]])),MIN(IF(SUM(Table_RetroSummary[Fixture Cost],Table_RetroSummary[Controls Cost])<0,0,SUM(Table_RetroSummary[Fixture Cost],Table_RetroSummary[Controls Cost])),Table_RetroSummary[[#This Row],[Fixture Rebate]]+IF(Table_RetroSummary[[#This Row],[Controls Rebate]]=\"\",0,Table_RetroSummary[[#This Row],[Controls Rebate]])))),\"\")","v":""},{"$f":"IFERROR(IF(Table_RetroSummary[[#This Row],[Fixture Cost]]=\"\",\"\",Table_RetroSummary[[#This Row],[Fixture Cost]]+IF(Table_RetroSummary[[#This Row],[Controls Cost]]=\"\",0,Table_RetroSummary[[#This Row],[Controls Cost]])),\"\")","v":""},{"$f":"IFERROR(IF(Table_RetroSummary[[#This Row],[IsActive]],IF(Table_POSTInfo[[#This Row],[Interior/ Exterior]]=\"Interior\",IFERROR((Table_RetroSummary[[#This Row],[Annual Fixture Savings (kWh)]]+Table_RetroSummary[[#This Row],[Annual Control Savings (kWh)]])*(Table_RetroSummary[[#This Row],[EIF]]-1),0),0),\"\"),\"\")","v":""},{"$f":"IFERROR(IF(Table_RetroSummary[[#This Row],[IsActive]],IF(Table_POSTInfo[[#This Row],[Interior/ Exterior]]=\"Interior\",IFERROR((Table_RetroSummary[[#This Row],[Fixture kW Reduction]]+Table_RetroSummary[[#This Row],[Control kW Reduction]]/(Table_RetroSummary[[#This Row],[CF (Ltg)]]*Table_RetroSummary[[#This Row],[DF (Ltg)]]))*(Table_RetroSummary[[#This Row],[DIF]]-1)*Table_RetroSummary[[#This Row],[CF (HVAC)]]*Table_RetroSummary[[#This Row],[DF (HVAC)]],0),0),\"\"),\"\")","v":""},{"$f":"IFERROR(IF(Table_RetroSummary[[#This Row],[IsActive]],IF(NOT(ISNUMBER(Table_RetroSummary[[#This Row],[Fixture Rebate]])),\"\",ROUND(Table_RetroSummary[[#This Row],[Annual Fixture Savings (kWh)]]+Table_RetroSummary[[#This Row],[Annual Control Savings (kWh)]],0)),\"\"),\"\")","v":""},{"$f":"IFERROR(IF(Table_RetroSummary[[#This Row],[IsActive]],IF(NOT(ISNUMBER(Table_RetroSummary[[#This Row],[Fixture Rebate]])),\"\",ROUND(Table_RetroSummary[[#This Row],[Fixture kW Reduction]]+Table_RetroSummary[[#This Row],[Control kW Reduction]],3)),\"\"),\"\")","v":""},{"$f":"IFERROR(IF(Table_RetroSummary[[#This Row],[IsActive]],IF(NOT(ISNUMBER(Table_RetroSummary[[#This Row],[Fixture Rebate]])),\"\",ROUND(Table_RetroSummary[[#This Row],[Fixture Energy Savings (kWh)]]+Table_RetroSummary[[#This Row],[Induced HVAC Energy Savings (kWh)]],0)),\"\"),\"\")","v":""},{"$f":"IFERROR(IF(Table_RetroSummary[[#This Row],[IsActive]],IF(NOT(ISNUMBER(Table_RetroSummary[[#This Row],[Fixture Rebate]])),\"\",ROUND(Table_RetroSummary[[#This Row],[Fixture Demand Savings (kW)]]+Table_RetroSummary[[#This Row],[Induced HVAC Demand Savings (kW)]],3)),\"\"),\"\")","v":""}]
[{"$f":"IFERROR(Table_POSTInfo[[#This Row],[Line]],\"\")","v":23},{"$f":"IFERROR(Table_POSTInfo[[#This Row],[IsActive]],\"\")","v":false},{"$f":"IFERROR(IF(Table_RetroSummary[[#This Row],[IsActive]],CONCATENATE(Table_RetroSummary[[#This Row],[Existing Fixture]],\" | \",Table_RetroSummary[[#This Row],[Proposed Fixture]]),\"\"),\"\")","v":""},{"$f":"IFERROR(IF(Table_RetroSummary[[#This Row],[IsActive]],VLOOKUP(IF(ISNUMBER(MATCH(Table_POSTInfo[[#This Row],[Line]],Table_POSTInspection[Line],0)),INDEX(Table_POSTInspection[Schedule],MATCH(Table_RetroSummary[[#This Row],[Line Item]],Table_POSTInspection[Line],0)),Table_POSTInfo[[#This Row],[Schedule]]),'Customer Information'!$S$27:$T$34,2,FALSE),\"\"),\"\")","v":""},{"$f":"IFERROR(IF(Table_RetroSummary[[#This Row],[IsActive]],IF(IF(ISNUMBER(MATCH(Table_RetroSummary[[#This Row],[Line Item]],Table_POSTInspection[Line],0)),INDEX(Table_POSTInspection[Interior/ Exterior],MATCH(Table_RetroSummary[[#This Row],[Line Item]],Table_POSTInfo[[#This Row],[Line]],0)),Table_POSTInfo[[#This Row],[Interior/ Exterior]])=\"Interior\",'Customer Information'!$S$25,0),\"\"),\"\")","v":""},{"$f":"IFERROR(IF(Table_RetroSummary[[#This Row],[IsActive]],IF(IF(ISNUMBER(MATCH(Table_RetroSummary[[#This Row],[Line Item]],Table_POSTInspection[Line],0)),INDEX(Table_POSTInspection[Interior/ Exterior],MATCH(Table_RetroSummary[[#This Row],[Line Item]],Table_POSTInfo[[#This Row],[Line]],0)),Table_POSTInfo[[#This Row],[Interior/ Exterior]])=\"Interior\",'Customer Information'!$T$25,0),\"\"),\"\")","v":""},{"$f":"IFERROR(IF(Table_RetroSummary[[#This Row],[IsActive]],IF(IF(ISNUMBER(MATCH(Table_RetroSummary[[#This Row],[Line Item]],Table_POSTInspection[Line],0)),INDEX(Table_POSTInspection[Interior/ Exterior],MATCH(Table_RetroSummary[[#This Row],[Line Item]],Table_POSTInfo[[#This Row],[Line]],0)),Table_POSTInfo[[#This Row],[Interior/ Exterior]])=\"Interior\",'Customer Information'!$U$25,0),\"\"),\"\")","v":""},{"$f":"IFERROR(IF(Table_RetroSummary[[#This Row],[IsActive]],IF(IF(ISNUMBER(MATCH(Table_RetroSummary[[#This Row],[Line Item]],Table_POSTInspection[Line],0)),INDEX(Table_POSTInspection[Interior/ Exterior],MATCH(Table_RetroSummary[[#This Row],[Line Item]],Table_POSTInfo[[#This Row],[Line]],0)),Table_POSTInfo[[#This Row],[Interior/ Exterior]])=\"Interior\",'Customer Information'!$V$25,0),\"\"),\"\")","v":""},{"$f":"IFERROR(IF(Table_RetroSummary[[#This Row],[IsActive]],IF(IF(ISNUMBER(MATCH(Table_RetroSummary[[#This Row],[Line Item]],Table_POSTInspection[Line],0)),INDEX(Table_POSTInspection[Interior/ Exterior],MATCH(Table_RetroSummary[[#This Row],[Line Item]],Table_POSTInfo[[#This Row],[Line]],0)),Table_POSTInfo[[#This Row],[Interior/ Exterior]])=\"Interior\",'Customer Information'!$W$25,0),\"\"),\"\")","v":""},{"$f":"IFERROR(IF(Table_RetroSummary[[#This Row],[IsActive]],IF(IF(ISNUMBER(MATCH(Table_RetroSummary[[#This Row],[Line Item]],Table_POSTInspection[Line],0)),INDEX(Table_POSTInspection[Interior/ Exterior],MATCH(Table_RetroSummary[[#This Row],[Line Item]],Table_POSTInfo[[#This Row],[Line]],0)),Table_POSTInfo[[#This Row],[Interior/ Exterior]])=\"Interior\",'Customer Information'!$X$25,0),\"\"),\"\")","v":""},{"$f":"IFERROR(IF(Table_RetroSummary[[#This Row],[IsActive]],\nCONCATENATE(\nIF(ISNUMBER(MATCH(Table_POSTInfo[[#This Row],[Line]],Table_POSTInspection[Line],0)),INDEX(Table_POSTInspection[Interior/ Exterior],MATCH(Table_RetroSummary[[#This Row],[Line Item]],Table_POSTInspection[Line],0)),Table_POSTInfo[[#This Row],[Interior/ Exterior]]),\n\" - \",\nIF(ISNUMBER(MATCH(Table_POSTInfo[[#This Row],[Line]],Table_POSTInspection[Line],0)),INDEX(Table_POSTInspection[Space Description],MATCH(Table_RetroSummary[[#This Row],[Line Item]],Table_POSTInspection[Line],0)),Table_POSTInfo[[#This Row],[Space Description]])),\n \"\"),\"\")","v":""},{"$f":"IFERROR(IF(Table_RetroSummary[[#This Row],[IsActive]]=\"\",\"\",Table_POSTInfo[[#This Row],[Fixture Description '[E']]]),\"\")","v":""},{"$f":"IFERROR(IF(Table_RetroSummary[[#This Row],[IsActive]]=\"\",\"\",Table_POSTInfo[[#This Row],['# Lamps/ Fixture '[E']]]),\"\")","v":""},{"$f":"IFERROR(IF(Table_RetroSummary[[#This Row],[IsActive]]=\"\",\"\",Table_POSTInfo[[#This Row],[Fixture/ Lamp Wattage '[E']]]),\"\")","v":""},{"$f":"IFERROR(IF(Table_RetroSummary[[#This Row],[IsActive]]=\"\",\"\",Table_POSTInfo[[#This Row],[Fixture Qty '[E']]]),\"\")","v":""},{"$f":"IFERROR(IF(Table_RetroSummary[[#This Row],[IsActive]],Table_RetroSummary[[#This Row],[Fixture/ Lamp Wattage '[E']]]*Table_RetroSummary[[#This Row],[E. Qty]],\"\"),\"\")","v":""},{"$f":"IFERROR(IF(Table_RetroSummary[[#This Row],[IsActive]]=\"\",\"\",Table_POSTInfo[[#This Row],[Fixture Wattage '[E']]]),\"\")","v":""},{"$f":"IFERROR(IF(Table_RetroSummary[[#This Row],[IsActive]],IFERROR(Table_RetroSummary[[#This Row],[Existing Fixture Wattage]]/1000*Table_RetroSummary[[#This Row],[OpHrs]]*Table_RetroSummary[[#This Row],[E. Qty]],0),\"\"),\"\")","v":""},{"$f":"IFERROR(IF(Table_RetroSummary[[#This Row],[IsActive]],IFERROR(VLOOKUP(RIGHT(Table_RetroSummary[[#This Row],[Existing Fixture]],LEN(Table_RetroSummary[[#This Row],[Existing Fixture]])-FIND(\" - \",Table_RetroSummary[[#This Row],[Existing Fixture]],FIND(\"]\",Table_RetroSummary[[#This Row],[Existing Fixture]],1))-2),Table_ControlType[],3,FALSE),0),\"\"),\"\")","v":""},{"$f":"IFERROR(IF(Table_RetroSummary[[#This Row],[IsActive]],IFERROR(Table_RetroSummary[[#This Row],[Existing Fixture Wattage]]/1000*Table_RetroSummary[[#This Row],[OpHrs]]*Table_RetroSummary[[#This Row],[E. Qty]]*Table_RetroSummary[[#This Row],[Existing CSF]]*(-1),0),\"\"),\"\")","v":""},{"$f":"IFERROR(Table_RetroSummary[[#This Row],[Existing Fixture kWh]]+Table_RetroSummary[[#This Row],[Existing Fixture (Existing Controls) kWh]],\"\")","v":""},{"$f":"IFERROR(IF(Table_RetroSummary[[#This Row],[IsActive]],IF(ISNUMBER(MATCH(Table_POSTInfo[[#This Row],[Line]],Table_POSTInspection[Line],0)),INDEX(Table_POSTInspection[Fixture Description '[P']],MATCH(Table_RetroSummary[[#This Row],[Line Item]],Table_POSTInspection[Line],0)),Table_POSTInfo[[#This Row],[Fixture Description '[P']]]),\"\"),\"\")","v":""},{"$f":"IFERROR(IF(Table_RetroSummary[[#This Row],[IsActive]],IF(ISNUMBER(MATCH(Table_POSTInfo[[#This Row],[Line]],Table_POSTInspection[Line],0)),INDEX(Table_POSTInspection['# Lamps/ Fixture '[P']],MATCH(Table_RetroSummary[[#This Row],[Line Item]],Table_POSTInspection[Line],0)),Table_POSTInfo[[#This Row],['# Lamps/ Fixture '[P']]]),\"\"),\"\")","v":""},{"$f":"IFERROR(IF(Table_RetroSummary[[#This Row],[IsActive]],IF(ISNUMBER(MATCH(Table_POSTInfo[[#This Row],[Line]],Table_POSTInspection[Line],0)),INDEX(Table_POSTInspection[Fixture/ Lamp Wattage '[P']],MATCH(Table_RetroSummary[[#This Row],[Line Item]],Table_POSTInspection[Line],0)),Table_POSTInfo[[#This Row],[Fixture/ Lamp Wattage '[P']]]),\"\"),\"\")","v":""},{"$f":"IFERROR(IF(Table_RetroSummary[[#This Row],[IsActive]],IF(ISNUMBER(MATCH(Table_POSTInfo[[#This Row],[Line]],Table_POSTInspection[Line],0)),INDEX(Table_POSTInspection[Fixture Qty '[P']],MATCH(Table_RetroSummary[[#This Row],[Line Item]],Table_POSTInspection[Line],0)),Table_POSTInfo[[#This Row],[Fixture Qty '[P']]]),\"\"),\"\")","v":""},{"$f":"IFERROR(IF(Table_RetroSummary[[#This Row],[IsActive]],Table_RetroSummary[[#This Row],[Fixture/ Lamp Wattage '[P']]]*Table_RetroSummary[[#This Row],[P. Qty]],\"\"),\"\")","v":""},{"$f":"IFERROR(IF(Table_RetroSummary[[#This Row],[IsActive]],IF(ISNUMBER(MATCH(Table_POSTInfo[[#This Row],[Line]],Table_POSTInspection[Line],0)),INDEX(Table_POSTInspection[Fixture Wattage '[P']],MATCH(Table_RetroSummary[[#This Row],[Line Item]],Table_POSTInspection[Line],0)),Table_POSTInfo[[#This Row],[Fixture Wattage '[P']]]),\"\"),\"\")","v":""},{"$f":"IFERROR(Table_RetroSummary[[#This Row],[Total '# Lamps '[P']]]+Table_RetroSummary[[#This Row],[Proposed Fixture Wattage]],\"\")","v":""},{"$f":"IFERROR(Table_RetroSummary[[#This Row],[Proposed Fixture Wattage]]/1000*Table_RetroSummary[[#This Row],[OpHrs]]*Table_RetroSummary[[#This Row],[P. Qty]],\"\")","v":""},{"$f":"IFERROR(IF(Table_RetroSummary[[#This Row],[IsActive]],IFERROR(VLOOKUP(RIGHT(Table_RetroSummary[[#This Row],[Proposed Fixture]],LEN(Table_RetroSummary[[#This Row],[Proposed Fixture]])-FIND(\" - \",Table_RetroSummary[[#This Row],[Proposed Fixture]],FIND(\"]\",Table_RetroSummary[[#This Row],[Proposed Fixture]],1))-2),Table_ControlType[],3, FALSE),0),\"\"),\"\")","v":""},{"$f":"IFERROR(IF(Table_RetroSummary[[#This Row],[IsActive]],IFERROR(Table_RetroSummary[[#This Row],[Proposed Fixture Wattage]]/1000*Table_RetroSummary[[#This Row],[OpHrs]]*Table_RetroSummary[[#This Row],[P. Qty]]*Table_RetroSummary[[#This Row],[Existing CSF]]*(-1),0),\"\"),\"\")","v":""},{"$f":"IFERROR(Table_RetroSummary[[#This Row],[Proposed Fixture kWh]]+Table_RetroSummary[[#This Row],[Proposed Fixture (Existing Controls) kWh]],\"\")","v":""},{"$f":"IFERROR(IF(Table_RetroSummary[[#This Row],[IsActive]],IFERROR(Table_RetroSummary[[#This Row],[Proposed Fixture Wattage]]/1000*Table_RetroSummary[[#This Row],[OpHrs]]*Table_RetroSummary[[#This Row],[P. Qty]]*Table_RetroSummary[[#This Row],[Proposed CSF]]*(-1),0),\"\"),\"\")","v":""},{"$f":"IFERROR(Table_RetroSummary[[#This Row],[Proposed Fixture kWh]]+Table_RetroSummary[[#This Row],[Proposed Fixture (Proposed Controls) kWh]],\"\")","v":""},{"$f":"IFERROR(IF(Table_RetroSummary[[#This Row],[IsActive]],IF(ISNUMBER(MATCH(Table_POSTInfo[[#This Row],[Line]],Table_POSTInspection[Line],0)),INDEX(Table_POSTInspection[DLC or ES Certification '[P']],MATCH(Table_RetroSummary[[#This Row],[Line Item]],Table_POSTInspection[Line],0)),Table_POSTInfo[[#This Row],[DLC or ES Certification '[P']]]),\"\"),\"\")","v":""},null,{"$f":"IFERROR(IF(Table_RetroSummary[[#This Row],[IsActive]],\nIF(AND(RIGHT(Table_RetroSummary[[#This Row],[Existing Fixture]],LEN(Table_RetroSummary[[#This Row],[Existing Fixture]])-FIND(\":\",Table_RetroSummary[[#This Row],[Existing Fixture]],1)-1)<>Table_RetroSummary[[#This Row],[Proposed Fixture]],MID(Table_RetroSummary[[#This Row],[Existing Fixture]],FIND(\": \",Table_RetroSummary[[#This Row],[Existing Fixture]],1)+2,FIND(\"]\",Table_RetroSummary[[#This Row],[Existing Fixture]],1))=LEFT(Table_RetroSummary[[#This Row],[Proposed Fixture]],FIND(\"]\",Table_RetroSummary[[#This Row],[Proposed Fixture]],1))),\n  \"Controls Only\",\n  IF(Table_POSTInfo[[#This Row],[DLC or ES Certification '[P']]]<>\"\",\n    IF(ISNUMBER(FIND(\"LED Tube\",Table_RetroSummary[[#This Row],[Proposed Fixture]],1)),\n      \"LED Re-Lamp\",\n      IF(AND(Table_RetroSummary[[#This Row],[Existing Overall kWh]]>Table_RetroSummary[[#This Row],[Proposed Overall kWh (Existing Controls)]],ISNUMBER(FIND(\"LED\",Table_RetroSummary[[#This Row],[Proposed Fixture]],1))),\n        IF(Table_POSTInfo[[#This Row],[Interior/ Exterior]]=\"Exterior\",\n          \"Exterior LED Fixture\",\n          \"Interior LED Fixture\"),\n        \"Ineligible Fixture\")),\n    \"Ineligible Fixture\")),\n\"\"),\"\")","v":""},{"$f":"IFERROR(VLOOKUP(Table_RetroSummary[[#This Row],[Fixture Measure Description]],Table_FixtureRate[],2,FALSE),\"\")","v":""},{"$f":"IFERROR(IF(Table_RetroSummary[[#This Row],[IsActive]],IF(Table_RetroSummary[[#This Row],[Fixture Measure Description]]=\"Ineligible Fixture\",0,ROUND(Table_RetroSummary[[#This Row],[Fixture Rebate (per kW)]]*(Table_RetroSummary[[#This Row],[Existing Fixture Wattage]]*Table_RetroSummary[[#This Row],[E. Qty]]-Table_RetroSummary[[#This Row],[Proposed Fixture Wattage]]*Table_RetroSummary[[#This Row],[P. Qty]])/1000,2)),\"\"),\"\")","v":""},{"$f":"IFERROR(IF(Table_RetroSummary[[#This Row],[Fixture Measure Description]]=\"Ineligible Fixture\",0,ROUND(IF(ProjectCost_Total=0,300000,ProjectCost_Total)*Table_RetroSummary[[#This Row],[Fixture Rebate]]/SUM(Table_RetroSummary[Fixture Rebate],Table_RetroSummary[Controls Rebate]),2)),\"\")","v":""},{"$f":"IFERROR(IF(Table_RetroSummary[[#This Row],[IsActive]],IF(Table_RetroSummary[[#This Row],[Fixture Measure Description]]=\"Ineligible Fixture\",0,Table_RetroSummary[[#This Row],[Existing Overall kWh]]-Table_RetroSummary[[#This Row],[Proposed Overall kWh (Existing Controls)]]),\"\"),\"\")","v":""},{"$f":"IFERROR(IF(Table_RetroSummary[[#This Row],[IsActive]],IF(Table_RetroSummary[[#This Row],[Fixture Measure Description]]=\"Ineligible Fixture\",0,(Table_RetroSummary[[#This Row],[Existing Fixture kWh]]-Table_RetroSummary[[#This Row],[Proposed Fixture kWh]])/Table_RetroSummary[[#This Row],[OpHrs]]*Table_RetroSummary[[#This Row],[CF (Ltg)]]*Table_RetroSummary[[#This Row],[DF (Ltg)]]),\"\"),\"\")","v":""},null,{"$f":"IFERROR(\n  IF(OR(Table_RetroSummary[[#This Row],[Fixture Measure Description]]=\"\",Table_RetroSummary[[#This Row],[Fixture Measure Description]]=\"Ineligible Fixture\"),\n    \"\",\n    IFERROR(VLOOKUP(RIGHT(Table_RetroSummary[[#This Row],[Existing Fixture]],LEN(Table_RetroSummary[[#This Row],[Existing Fixture]])-FIND(\" - \",Table_RetroSummary[[#This Row],[Existing Fixture]],FIND(\"]\",Table_RetroSummary[[#This Row],[Existing Fixture]],1))-2),Table_ControlType[],2,FALSE),\"None\")\n    & \" - \" &\n    IFERROR(VLOOKUP(RIGHT(Table_RetroSummary[[#This Row],[Proposed Fixture]],LEN(Table_RetroSummary[[#This Row],[Proposed Fixture]])-FIND(\" - \",Table_RetroSummary[[#This Row],[Proposed Fixture]],FIND(\"]\",Table_RetroSummary[[#This Row],[Proposed Fixture]],1))-2),Table_ControlType[],2, FALSE),None)),\n\"\")","v":""},{"$f":"IFERROR(VLOOKUP(Table_RetroSummary[[#This Row],[Controls Measure Description]],Table_ControlRate[],2,FALSE),\"\")","v":""},{"$f":"IFERROR(IF(Table_RetroSummary[[#This Row],[IsActive]],IF(Table_RetroSummary[[#This Row],[Controls Measure Description]]=\"\",0,ROUND(Table_RetroSummary[[#This Row],[Controls Rebate (per Fixt Watt)]]*Table_RetroSummary[[#This Row],[Proposed Fixture Wattage]]*Table_RetroSummary[[#This Row],[P. Qty]],2)),\"\"),\"\")","v":""},{"$f":"IFERROR(IF(Table_RetroSummary[[#This Row],[Fixture Measure Description]]=\"Ineligible Fixture\",0,ROUND(IF(ProjectCost_Total=0,300000,ProjectCost_Total)*Table_RetroSummary[[#This Row],[Controls Rebate]]/SUM(Table_RetroSummary[Fixture Rebate],Table_RetroSummary[Controls Rebate]),2)),\"\")","v":""},{"$f":"IFERROR(IF(Table_RetroSummary[[#This Row],[IsActive]],IF(Table_RetroSummary[[#This Row],[Controls Measure Description]]=\"\",0,(Table_RetroSummary[[#This Row],[Proposed Fixture (Existing Controls) kWh]]-Table_RetroSummary[[#This Row],[Proposed Fixture (Proposed Controls) kWh]])),\"\"),\"\")","v":""},{"$f":"IFERROR(IF(Table_RetroSummary[[#This Row],[IsActive]],IF(Table_RetroSummary[[#This Row],[Controls Measure Description]]=\"\",0,(Table_RetroSummary[[#This Row],[Proposed Fixture (Existing Controls) kWh]]-Table_RetroSummary[[#This Row],[Proposed Fixture (Proposed Controls) kWh]])/Table_RetroSummary[[#This Row],[OpHrs]]*Table_RetroSummary[[#This Row],[CF (Ltg)]]*Table_RetroSummary[[#This Row],[DF (Ltg)]]),\"\"),\"\")","v":""},null,{"$f":"IFERROR(IF(NOT(ISNUMBER(Table_RetroSummary[[#This Row],[Fixture Rebate]])),\"\",IF(MIN(IF(SUM(Table_RetroSummary[Fixture Cost],Table_RetroSummary[Controls Cost])<0,0,SUM(Table_RetroSummary[Fixture Cost],Table_RetroSummary[Controls Cost])),SUM(Table_RetroSummary[Fixture Rebate],Table_RetroSummary[Controls Rebate]))>300000,300000/MIN(IF(SUM(Table_RetroSummary[Fixture Cost],Table_RetroSummary[Controls Cost])<0,0,SUM(Table_RetroSummary[Fixture Cost],Table_RetroSummary[Controls Cost])),SUM(Table_RetroSummary[Fixture Rebate],Table_RetroSummary[Controls Rebate]))*MIN(IF(SUM(Table_RetroSummary[Fixture Cost],Table_RetroSummary[Controls Cost])<0,0,SUM(Table_RetroSummary[Fixture Cost],Table_RetroSummary[Controls Cost])),Table_RetroSummary[[#This Row],[Fixture Rebate]]+IF(Table_RetroSummary[[#This Row],[Controls Rebate]]=\"\",0,Table_RetroSummary[[#This Row],[Controls Rebate]])),MIN(IF(SUM(Table_RetroSummary[Fixture Cost],Table_RetroSummary[Controls Cost])<0,0,SUM(Table_RetroSummary[Fixture Cost],Table_RetroSummary[Controls Cost])),Table_RetroSummary[[#This Row],[Fixture Rebate]]+IF(Table_RetroSummary[[#This Row],[Controls Rebate]]=\"\",0,Table_RetroSummary[[#This Row],[Controls Rebate]])))),\"\")","v":""},{"$f":"IFERROR(IF(Table_RetroSummary[[#This Row],[Fixture Cost]]=\"\",\"\",Table_RetroSummary[[#This Row],[Fixture Cost]]+IF(Table_RetroSummary[[#This Row],[Controls Cost]]=\"\",0,Table_RetroSummary[[#This Row],[Controls Cost]])),\"\")","v":""},{"$f":"IFERROR(IF(Table_RetroSummary[[#This Row],[IsActive]],IF(Table_POSTInfo[[#This Row],[Interior/ Exterior]]=\"Interior\",IFERROR((Table_RetroSummary[[#This Row],[Annual Fixture Savings (kWh)]]+Table_RetroSummary[[#This Row],[Annual Control Savings (kWh)]])*(Table_RetroSummary[[#This Row],[EIF]]-1),0),0),\"\"),\"\")","v":""},{"$f":"IFERROR(IF(Table_RetroSummary[[#This Row],[IsActive]],IF(Table_POSTInfo[[#This Row],[Interior/ Exterior]]=\"Interior\",IFERROR((Table_RetroSummary[[#This Row],[Fixture kW Reduction]]+Table_RetroSummary[[#This Row],[Control kW Reduction]]/(Table_RetroSummary[[#This Row],[CF (Ltg)]]*Table_RetroSummary[[#This Row],[DF (Ltg)]]))*(Table_RetroSummary[[#This Row],[DIF]]-1)*Table_RetroSummary[[#This Row],[CF (HVAC)]]*Table_RetroSummary[[#This Row],[DF (HVAC)]],0),0),\"\"),\"\")","v":""},{"$f":"IFERROR(IF(Table_RetroSummary[[#This Row],[IsActive]],IF(NOT(ISNUMBER(Table_RetroSummary[[#This Row],[Fixture Rebate]])),\"\",ROUND(Table_RetroSummary[[#This Row],[Annual Fixture Savings (kWh)]]+Table_RetroSummary[[#This Row],[Annual Control Savings (kWh)]],0)),\"\"),\"\")","v":""},{"$f":"IFERROR(IF(Table_RetroSummary[[#This Row],[IsActive]],IF(NOT(ISNUMBER(Table_RetroSummary[[#This Row],[Fixture Rebate]])),\"\",ROUND(Table_RetroSummary[[#This Row],[Fixture kW Reduction]]+Table_RetroSummary[[#This Row],[Control kW Reduction]],3)),\"\"),\"\")","v":""},{"$f":"IFERROR(IF(Table_RetroSummary[[#This Row],[IsActive]],IF(NOT(ISNUMBER(Table_RetroSummary[[#This Row],[Fixture Rebate]])),\"\",ROUND(Table_RetroSummary[[#This Row],[Fixture Energy Savings (kWh)]]+Table_RetroSummary[[#This Row],[Induced HVAC Energy Savings (kWh)]],0)),\"\"),\"\")","v":""},{"$f":"IFERROR(IF(Table_RetroSummary[[#This Row],[IsActive]],IF(NOT(ISNUMBER(Table_RetroSummary[[#This Row],[Fixture Rebate]])),\"\",ROUND(Table_RetroSummary[[#This Row],[Fixture Demand Savings (kW)]]+Table_RetroSummary[[#This Row],[Induced HVAC Demand Savings (kW)]],3)),\"\"),\"\")","v":""}]
[{"$f":"IFERROR(Table_POSTInfo[[#This Row],[Line]],\"\")","v":24},{"$f":"IFERROR(Table_POSTInfo[[#This Row],[IsActive]],\"\")","v":false},{"$f":"IFERROR(IF(Table_RetroSummary[[#This Row],[IsActive]],CONCATENATE(Table_RetroSummary[[#This Row],[Existing Fixture]],\" | \",Table_RetroSummary[[#This Row],[Proposed Fixture]]),\"\"),\"\")","v":""},{"$f":"IFERROR(IF(Table_RetroSummary[[#This Row],[IsActive]],VLOOKUP(IF(ISNUMBER(MATCH(Table_POSTInfo[[#This Row],[Line]],Table_POSTInspection[Line],0)),INDEX(Table_POSTInspection[Schedule],MATCH(Table_RetroSummary[[#This Row],[Line Item]],Table_POSTInspection[Line],0)),Table_POSTInfo[[#This Row],[Schedule]]),'Customer Information'!$S$27:$T$34,2,FALSE),\"\"),\"\")","v":""},{"$f":"IFERROR(IF(Table_RetroSummary[[#This Row],[IsActive]],IF(IF(ISNUMBER(MATCH(Table_RetroSummary[[#This Row],[Line Item]],Table_POSTInspection[Line],0)),INDEX(Table_POSTInspection[Interior/ Exterior],MATCH(Table_RetroSummary[[#This Row],[Line Item]],Table_POSTInfo[[#This Row],[Line]],0)),Table_POSTInfo[[#This Row],[Interior/ Exterior]])=\"Interior\",'Customer Information'!$S$25,0),\"\"),\"\")","v":""},{"$f":"IFERROR(IF(Table_RetroSummary[[#This Row],[IsActive]],IF(IF(ISNUMBER(MATCH(Table_RetroSummary[[#This Row],[Line Item]],Table_POSTInspection[Line],0)),INDEX(Table_POSTInspection[Interior/ Exterior],MATCH(Table_RetroSummary[[#This Row],[Line Item]],Table_POSTInfo[[#This Row],[Line]],0)),Table_POSTInfo[[#This Row],[Interior/ Exterior]])=\"Interior\",'Customer Information'!$T$25,0),\"\"),\"\")","v":""},{"$f":"IFERROR(IF(Table_RetroSummary[[#This Row],[IsActive]],IF(IF(ISNUMBER(MATCH(Table_RetroSummary[[#This Row],[Line Item]],Table_POSTInspection[Line],0)),INDEX(Table_POSTInspection[Interior/ Exterior],MATCH(Table_RetroSummary[[#This Row],[Line Item]],Table_POSTInfo[[#This Row],[Line]],0)),Table_POSTInfo[[#This Row],[Interior/ Exterior]])=\"Interior\",'Customer Information'!$U$25,0),\"\"),\"\")","v":""},{"$f":"IFERROR(IF(Table_RetroSummary[[#This Row],[IsActive]],IF(IF(ISNUMBER(MATCH(Table_RetroSummary[[#This Row],[Line Item]],Table_POSTInspection[Line],0)),INDEX(Table_POSTInspection[Interior/ Exterior],MATCH(Table_RetroSummary[[#This Row],[Line Item]],Table_POSTInfo[[#This Row],[Line]],0)),Table_POSTInfo[[#This Row],[Interior/ Exterior]])=\"Interior\",'Customer Information'!$V$25,0),\"\"),\"\")","v":""},{"$f":"IFERROR(IF(Table_RetroSummary[[#This Row],[IsActive]],IF(IF(ISNUMBER(MATCH(Table_RetroSummary[[#This Row],[Line Item]],Table_POSTInspection[Line],0)),INDEX(Table_POSTInspection[Interior/ Exterior],MATCH(Table_RetroSummary[[#This Row],[Line Item]],Table_POSTInfo[[#This Row],[Line]],0)),Table_POSTInfo[[#This Row],[Interior/ Exterior]])=\"Interior\",'Customer Information'!$W$25,0),\"\"),\"\")","v":""},{"$f":"IFERROR(IF(Table_RetroSummary[[#This Row],[IsActive]],IF(IF(ISNUMBER(MATCH(Table_RetroSummary[[#This Row],[Line Item]],Table_POSTInspection[Line],0)),INDEX(Table_POSTInspection[Interior/ Exterior],MATCH(Table_RetroSummary[[#This Row],[Line Item]],Table_POSTInfo[[#This Row],[Line]],0)),Table_POSTInfo[[#This Row],[Interior/ Exterior]])=\"Interior\",'Customer Information'!$X$25,0),\"\"),\"\")","v":""},{"$f":"IFERROR(IF(Table_RetroSummary[[#This Row],[IsActive]],\nCONCATENATE(\nIF(ISNUMBER(MATCH(Table_POSTInfo[[#This Row],[Line]],Table_POSTInspection[Line],0)),INDEX(Table_POSTInspection[Interior/ Exterior],MATCH(Table_RetroSummary[[#This Row],[Line Item]],Table_POSTInspection[Line],0)),Table_POSTInfo[[#This Row],[Interior/ Exterior]]),\n\" - \",\nIF(ISNUMBER(MATCH(Table_POSTInfo[[#This Row],[Line]],Table_POSTInspection[Line],0)),INDEX(Table_POSTInspection[Space Description],MATCH(Table_RetroSummary[[#This Row],[Line Item]],Table_POSTInspection[Line],0)),Table_POSTInfo[[#This Row],[Space Description]])),\n \"\"),\"\")","v":""},{"$f":"IFERROR(IF(Table_RetroSummary[[#This Row],[IsActive]]=\"\",\"\",Table_POSTInfo[[#This Row],[Fixture Description '[E']]]),\"\")","v":""},{"$f":"IFERROR(IF(Table_RetroSummary[[#This Row],[IsActive]]=\"\",\"\",Table_POSTInfo[[#This Row],['# Lamps/ Fixture '[E']]]),\"\")","v":""},{"$f":"IFERROR(IF(Table_RetroSummary[[#This Row],[IsActive]]=\"\",\"\",Table_POSTInfo[[#This Row],[Fixture/ Lamp Wattage '[E']]]),\"\")","v":""},{"$f":"IFERROR(IF(Table_RetroSummary[[#This Row],[IsActive]]=\"\",\"\",Table_POSTInfo[[#This Row],[Fixture Qty '[E']]]),\"\")","v":""},{"$f":"IFERROR(IF(Table_RetroSummary[[#This Row],[IsActive]],Table_RetroSummary[[#This Row],[Fixture/ Lamp Wattage '[E']]]*Table_RetroSummary[[#This Row],[E. Qty]],\"\"),\"\")","v":""},{"$f":"IFERROR(IF(Table_RetroSummary[[#This Row],[IsActive]]=\"\",\"\",Table_POSTInfo[[#This Row],[Fixture Wattage '[E']]]),\"\")","v":""},{"$f":"IFERROR(IF(Table_RetroSummary[[#This Row],[IsActive]],IFERROR(Table_RetroSummary[[#This Row],[Existing Fixture Wattage]]/1000*Table_RetroSummary[[#This Row],[OpHrs]]*Table_RetroSummary[[#This Row],[E. Qty]],0),\"\"),\"\")","v":""},{"$f":"IFERROR(IF(Table_RetroSummary[[#This Row],[IsActive]],IFERROR(VLOOKUP(RIGHT(Table_RetroSummary[[#This Row],[Existing Fixture]],LEN(Table_RetroSummary[[#This Row],[Existing Fixture]])-FIND(\" - \",Table_RetroSummary[[#This Row],[Existing Fixture]],FIND(\"]\",Table_RetroSummary[[#This Row],[Existing Fixture]],1))-2),Table_ControlType[],3,FALSE),0),\"\"),\"\")","v":""},{"$f":"IFERROR(IF(Table_RetroSummary[[#This Row],[IsActive]],IFERROR(Table_RetroSummary[[#This Row],[Existing Fixture Wattage]]/1000*Table_RetroSummary[[#This Row],[OpHrs]]*Table_RetroSummary[[#This Row],[E. Qty]]*Table_RetroSummary[[#This Row],[Existing CSF]]*(-1),0),\"\"),\"\")","v":""},{"$f":"IFERROR(Table_RetroSummary[[#This Row],[Existing Fixture kWh]]+Table_RetroSummary[[#This Row],[Existing Fixture (Existing Controls) kWh]],\"\")","v":""},{"$f":"IFERROR(IF(Table_RetroSummary[[#This Row],[IsActive]],IF(ISNUMBER(MATCH(Table_POSTInfo[[#This Row],[Line]],Table_POSTInspection[Line],0)),INDEX(Table_POSTInspection[Fixture Description '[P']],MATCH(Table_RetroSummary[[#This Row],[Line Item]],Table_POSTInspection[Line],0)),Table_POSTInfo[[#This Row],[Fixture Description '[P']]]),\"\"),\"\")","v":""},{"$f":"IFERROR(IF(Table_RetroSummary[[#This Row],[IsActive]],IF(ISNUMBER(MATCH(Table_POSTInfo[[#This Row],[Line]],Table_POSTInspection[Line],0)),INDEX(Table_POSTInspection['# Lamps/ Fixture '[P']],MATCH(Table_RetroSummary[[#This Row],[Line Item]],Table_POSTInspection[Line],0)),Table_POSTInfo[[#This Row],['# Lamps/ Fixture '[P']]]),\"\"),\"\")","v":""},{"$f":"IFERROR(IF(Table_RetroSummary[[#This Row],[IsActive]],IF(ISNUMBER(MATCH(Table_POSTInfo[[#This Row],[Line]],Table_POSTInspection[Line],0)),INDEX(Table_POSTInspection[Fixture/ Lamp Wattage '[P']],MATCH(Table_RetroSummary[[#This Row],[Line Item]],Table_POSTInspection[Line],0)),Table_POSTInfo[[#This Row],[Fixture/ Lamp Wattage '[P']]]),\"\"),\"\")","v":""},{"$f":"IFERROR(IF(Table_RetroSummary[[#This Row],[IsActive]],IF(ISNUMBER(MATCH(Table_POSTInfo[[#This Row],[Line]],Table_POSTInspection[Line],0)),INDEX(Table_POSTInspection[Fixture Qty '[P']],MATCH(Table_RetroSummary[[#This Row],[Line Item]],Table_POSTInspection[Line],0)),Table_POSTInfo[[#This Row],[Fixture Qty '[P']]]),\"\"),\"\")","v":""},{"$f":"IFERROR(IF(Table_RetroSummary[[#This Row],[IsActive]],Table_RetroSummary[[#This Row],[Fixture/ Lamp Wattage '[P']]]*Table_RetroSummary[[#This Row],[P. Qty]],\"\"),\"\")","v":""},{"$f":"IFERROR(IF(Table_RetroSummary[[#This Row],[IsActive]],IF(ISNUMBER(MATCH(Table_POSTInfo[[#This Row],[Line]],Table_POSTInspection[Line],0)),INDEX(Table_POSTInspection[Fixture Wattage '[P']],MATCH(Table_RetroSummary[[#This Row],[Line Item]],Table_POSTInspection[Line],0)),Table_POSTInfo[[#This Row],[Fixture Wattage '[P']]]),\"\"),\"\")","v":""},{"$f":"IFERROR(Table_RetroSummary[[#This Row],[Total '# Lamps '[P']]]+Table_RetroSummary[[#This Row],[Proposed Fixture Wattage]],\"\")","v":""},{"$f":"IFERROR(Table_RetroSummary[[#This Row],[Proposed Fixture Wattage]]/1000*Table_RetroSummary[[#This Row],[OpHrs]]*Table_RetroSummary[[#This Row],[P. Qty]],\"\")","v":""},{"$f":"IFERROR(IF(Table_RetroSummary[[#This Row],[IsActive]],IFERROR(VLOOKUP(RIGHT(Table_RetroSummary[[#This Row],[Proposed Fixture]],LEN(Table_RetroSummary[[#This Row],[Proposed Fixture]])-FIND(\" - \",Table_RetroSummary[[#This Row],[Proposed Fixture]],FIND(\"]\",Table_RetroSummary[[#This Row],[Proposed Fixture]],1))-2),Table_ControlType[],3, FALSE),0),\"\"),\"\")","v":""},{"$f":"IFERROR(IF(Table_RetroSummary[[#This Row],[IsActive]],IFERROR(Table_RetroSummary[[#This Row],[Proposed Fixture Wattage]]/1000*Table_RetroSummary[[#This Row],[OpHrs]]*Table_RetroSummary[[#This Row],[P. Qty]]*Table_RetroSummary[[#This Row],[Existing CSF]]*(-1),0),\"\"),\"\")","v":""},{"$f":"IFERROR(Table_RetroSummary[[#This Row],[Proposed Fixture kWh]]+Table_RetroSummary[[#This Row],[Proposed Fixture (Existing Controls) kWh]],\"\")","v":""},{"$f":"IFERROR(IF(Table_RetroSummary[[#This Row],[IsActive]],IFERROR(Table_RetroSummary[[#This Row],[Proposed Fixture Wattage]]/1000*Table_RetroSummary[[#This Row],[OpHrs]]*Table_RetroSummary[[#This Row],[P. Qty]]*Table_RetroSummary[[#This Row],[Proposed CSF]]*(-1),0),\"\"),\"\")","v":""},{"$f":"IFERROR(Table_RetroSummary[[#This Row],[Proposed Fixture kWh]]+Table_RetroSummary[[#This Row],[Proposed Fixture (Proposed Controls) kWh]],\"\")","v":""},{"$f":"IFERROR(IF(Table_RetroSummary[[#This Row],[IsActive]],IF(ISNUMBER(MATCH(Table_POSTInfo[[#This Row],[Line]],Table_POSTInspection[Line],0)),INDEX(Table_POSTInspection[DLC or ES Certification '[P']],MATCH(Table_RetroSummary[[#This Row],[Line Item]],Table_POSTInspection[Line],0)),Table_POSTInfo[[#This Row],[DLC or ES Certification '[P']]]),\"\"),\"\")","v":""},null,{"$f":"IFERROR(IF(Table_RetroSummary[[#This Row],[IsActive]],\nIF(AND(RIGHT(Table_RetroSummary[[#This Row],[Existing Fixture]],LEN(Table_RetroSummary[[#This Row],[Existing Fixture]])-FIND(\":\",Table_RetroSummary[[#This Row],[Existing Fixture]],1)-1)<>Table_RetroSummary[[#This Row],[Proposed Fixture]],MID(Table_RetroSummary[[#This Row],[Existing Fixture]],FIND(\": \",Table_RetroSummary[[#This Row],[Existing Fixture]],1)+2,FIND(\"]\",Table_RetroSummary[[#This Row],[Existing Fixture]],1))=LEFT(Table_RetroSummary[[#This Row],[Proposed Fixture]],FIND(\"]\",Table_RetroSummary[[#This Row],[Proposed Fixture]],1))),\n  \"Controls Only\",\n  IF(Table_POSTInfo[[#This Row],[DLC or ES Certification '[P']]]<>\"\",\n    IF(ISNUMBER(FIND(\"LED Tube\",Table_RetroSummary[[#This Row],[Proposed Fixture]],1)),\n      \"LED Re-Lamp\",\n      IF(AND(Table_RetroSummary[[#This Row],[Existing Overall kWh]]>Table_RetroSummary[[#This Row],[Proposed Overall kWh (Existing Controls)]],ISNUMBER(FIND(\"LED\",Table_RetroSummary[[#This Row],[Proposed Fixture]],1))),\n        IF(Table_POSTInfo[[#This Row],[Interior/ Exterior]]=\"Exterior\",\n          \"Exterior LED Fixture\",\n          \"Interior LED Fixture\"),\n        \"Ineligible Fixture\")),\n    \"Ineligible Fixture\")),\n\"\"),\"\")","v":""},{"$f":"IFERROR(VLOOKUP(Table_RetroSummary[[#This Row],[Fixture Measure Description]],Table_FixtureRate[],2,FALSE),\"\")","v":""},{"$f":"IFERROR(IF(Table_RetroSummary[[#This Row],[IsActive]],IF(Table_RetroSummary[[#This Row],[Fixture Measure Description]]=\"Ineligible Fixture\",0,ROUND(Table_RetroSummary[[#This Row],[Fixture Rebate (per kW)]]*(Table_RetroSummary[[#This Row],[Existing Fixture Wattage]]*Table_RetroSummary[[#This Row],[E. Qty]]-Table_RetroSummary[[#This Row],[Proposed Fixture Wattage]]*Table_RetroSummary[[#This Row],[P. Qty]])/1000,2)),\"\"),\"\")","v":""},{"$f":"IFERROR(IF(Table_RetroSummary[[#This Row],[Fixture Measure Description]]=\"Ineligible Fixture\",0,ROUND(IF(ProjectCost_Total=0,300000,ProjectCost_Total)*Table_RetroSummary[[#This Row],[Fixture Rebate]]/SUM(Table_RetroSummary[Fixture Rebate],Table_RetroSummary[Controls Rebate]),2)),\"\")","v":""},{"$f":"IFERROR(IF(Table_RetroSummary[[#This Row],[IsActive]],IF(Table_RetroSummary[[#This Row],[Fixture Measure Description]]=\"Ineligible Fixture\",0,Table_RetroSummary[[#This Row],[Existing Overall kWh]]-Table_RetroSummary[[#This Row],[Proposed Overall kWh (Existing Controls)]]),\"\"),\"\")","v":""},{"$f":"IFERROR(IF(Table_RetroSummary[[#This Row],[IsActive]],IF(Table_RetroSummary[[#This Row],[Fixture Measure Description]]=\"Ineligible Fixture\",0,(Table_RetroSummary[[#This Row],[Existing Fixture kWh]]-Table_RetroSummary[[#This Row],[Proposed Fixture kWh]])/Table_RetroSummary[[#This Row],[OpHrs]]*Table_RetroSummary[[#This Row],[CF (Ltg)]]*Table_RetroSummary[[#This Row],[DF (Ltg)]]),\"\"),\"\")","v":""},null,{"$f":"IFERROR(\n  IF(OR(Table_RetroSummary[[#This Row],[Fixture Measure Description]]=\"\",Table_RetroSummary[[#This Row],[Fixture Measure Description]]=\"Ineligible Fixture\"),\n    \"\",\n    IFERROR(VLOOKUP(RIGHT(Table_RetroSummary[[#This Row],[Existing Fixture]],LEN(Table_RetroSummary[[#This Row],[Existing Fixture]])-FIND(\" - \",Table_RetroSummary[[#This Row],[Existing Fixture]],FIND(\"]\",Table_RetroSummary[[#This Row],[Existing Fixture]],1))-2),Table_ControlType[],2,FALSE),\"None\")\n    & \" - \" &\n    IFERROR(VLOOKUP(RIGHT(Table_RetroSummary[[#This Row],[Proposed Fixture]],LEN(Table_RetroSummary[[#This Row],[Proposed Fixture]])-FIND(\" - \",Table_RetroSummary[[#This Row],[Proposed Fixture]],FIND(\"]\",Table_RetroSummary[[#This Row],[Proposed Fixture]],1))-2),Table_ControlType[],2, FALSE),None)),\n\"\")","v":""},{"$f":"IFERROR(VLOOKUP(Table_RetroSummary[[#This Row],[Controls Measure Description]],Table_ControlRate[],2,FALSE),\"\")","v":""},{"$f":"IFERROR(IF(Table_RetroSummary[[#This Row],[IsActive]],IF(Table_RetroSummary[[#This Row],[Controls Measure Description]]=\"\",0,ROUND(Table_RetroSummary[[#This Row],[Controls Rebate (per Fixt Watt)]]*Table_RetroSummary[[#This Row],[Proposed Fixture Wattage]]*Table_RetroSummary[[#This Row],[P. Qty]],2)),\"\"),\"\")","v":""},{"$f":"IFERROR(IF(Table_RetroSummary[[#This Row],[Fixture Measure Description]]=\"Ineligible Fixture\",0,ROUND(IF(ProjectCost_Total=0,300000,ProjectCost_Total)*Table_RetroSummary[[#This Row],[Controls Rebate]]/SUM(Table_RetroSummary[Fixture Rebate],Table_RetroSummary[Controls Rebate]),2)),\"\")","v":""},{"$f":"IFERROR(IF(Table_RetroSummary[[#This Row],[IsActive]],IF(Table_RetroSummary[[#This Row],[Controls Measure Description]]=\"\",0,(Table_RetroSummary[[#This Row],[Proposed Fixture (Existing Controls) kWh]]-Table_RetroSummary[[#This Row],[Proposed Fixture (Proposed Controls) kWh]])),\"\"),\"\")","v":""},{"$f":"IFERROR(IF(Table_RetroSummary[[#This Row],[IsActive]],IF(Table_RetroSummary[[#This Row],[Controls Measure Description]]=\"\",0,(Table_RetroSummary[[#This Row],[Proposed Fixture (Existing Controls) kWh]]-Table_RetroSummary[[#This Row],[Proposed Fixture (Proposed Controls) kWh]])/Table_RetroSummary[[#This Row],[OpHrs]]*Table_RetroSummary[[#This Row],[CF (Ltg)]]*Table_RetroSummary[[#This Row],[DF (Ltg)]]),\"\"),\"\")","v":""},null,{"$f":"IFERROR(IF(NOT(ISNUMBER(Table_RetroSummary[[#This Row],[Fixture Rebate]])),\"\",IF(MIN(IF(SUM(Table_RetroSummary[Fixture Cost],Table_RetroSummary[Controls Cost])<0,0,SUM(Table_RetroSummary[Fixture Cost],Table_RetroSummary[Controls Cost])),SUM(Table_RetroSummary[Fixture Rebate],Table_RetroSummary[Controls Rebate]))>300000,300000/MIN(IF(SUM(Table_RetroSummary[Fixture Cost],Table_RetroSummary[Controls Cost])<0,0,SUM(Table_RetroSummary[Fixture Cost],Table_RetroSummary[Controls Cost])),SUM(Table_RetroSummary[Fixture Rebate],Table_RetroSummary[Controls Rebate]))*MIN(IF(SUM(Table_RetroSummary[Fixture Cost],Table_RetroSummary[Controls Cost])<0,0,SUM(Table_RetroSummary[Fixture Cost],Table_RetroSummary[Controls Cost])),Table_RetroSummary[[#This Row],[Fixture Rebate]]+IF(Table_RetroSummary[[#This Row],[Controls Rebate]]=\"\",0,Table_RetroSummary[[#This Row],[Controls Rebate]])),MIN(IF(SUM(Table_RetroSummary[Fixture Cost],Table_RetroSummary[Controls Cost])<0,0,SUM(Table_RetroSummary[Fixture Cost],Table_RetroSummary[Controls Cost])),Table_RetroSummary[[#This Row],[Fixture Rebate]]+IF(Table_RetroSummary[[#This Row],[Controls Rebate]]=\"\",0,Table_RetroSummary[[#This Row],[Controls Rebate]])))),\"\")","v":""},{"$f":"IFERROR(IF(Table_RetroSummary[[#This Row],[Fixture Cost]]=\"\",\"\",Table_RetroSummary[[#This Row],[Fixture Cost]]+IF(Table_RetroSummary[[#This Row],[Controls Cost]]=\"\",0,Table_RetroSummary[[#This Row],[Controls Cost]])),\"\")","v":""},{"$f":"IFERROR(IF(Table_RetroSummary[[#This Row],[IsActive]],IF(Table_POSTInfo[[#This Row],[Interior/ Exterior]]=\"Interior\",IFERROR((Table_RetroSummary[[#This Row],[Annual Fixture Savings (kWh)]]+Table_RetroSummary[[#This Row],[Annual Control Savings (kWh)]])*(Table_RetroSummary[[#This Row],[EIF]]-1),0),0),\"\"),\"\")","v":""},{"$f":"IFERROR(IF(Table_RetroSummary[[#This Row],[IsActive]],IF(Table_POSTInfo[[#This Row],[Interior/ Exterior]]=\"Interior\",IFERROR((Table_RetroSummary[[#This Row],[Fixture kW Reduction]]+Table_RetroSummary[[#This Row],[Control kW Reduction]]/(Table_RetroSummary[[#This Row],[CF (Ltg)]]*Table_RetroSummary[[#This Row],[DF (Ltg)]]))*(Table_RetroSummary[[#This Row],[DIF]]-1)*Table_RetroSummary[[#This Row],[CF (HVAC)]]*Table_RetroSummary[[#This Row],[DF (HVAC)]],0),0),\"\"),\"\")","v":""},{"$f":"IFERROR(IF(Table_RetroSummary[[#This Row],[IsActive]],IF(NOT(ISNUMBER(Table_RetroSummary[[#This Row],[Fixture Rebate]])),\"\",ROUND(Table_RetroSummary[[#This Row],[Annual Fixture Savings (kWh)]]+Table_RetroSummary[[#This Row],[Annual Control Savings (kWh)]],0)),\"\"),\"\")","v":""},{"$f":"IFERROR(IF(Table_RetroSummary[[#This Row],[IsActive]],IF(NOT(ISNUMBER(Table_RetroSummary[[#This Row],[Fixture Rebate]])),\"\",ROUND(Table_RetroSummary[[#This Row],[Fixture kW Reduction]]+Table_RetroSummary[[#This Row],[Control kW Reduction]],3)),\"\"),\"\")","v":""},{"$f":"IFERROR(IF(Table_RetroSummary[[#This Row],[IsActive]],IF(NOT(ISNUMBER(Table_RetroSummary[[#This Row],[Fixture Rebate]])),\"\",ROUND(Table_RetroSummary[[#This Row],[Fixture Energy Savings (kWh)]]+Table_RetroSummary[[#This Row],[Induced HVAC Energy Savings (kWh)]],0)),\"\"),\"\")","v":""},{"$f":"IFERROR(IF(Table_RetroSummary[[#This Row],[IsActive]],IF(NOT(ISNUMBER(Table_RetroSummary[[#This Row],[Fixture Rebate]])),\"\",ROUND(Table_RetroSummary[[#This Row],[Fixture Demand Savings (kW)]]+Table_RetroSummary[[#This Row],[Induced HVAC Demand Savings (kW)]],3)),\"\"),\"\")","v":""}]
[{"$f":"IFERROR(Table_POSTInfo[[#This Row],[Line]],\"\")","v":25},{"$f":"IFERROR(Table_POSTInfo[[#This Row],[IsActive]],\"\")","v":false},{"$f":"IFERROR(IF(Table_RetroSummary[[#This Row],[IsActive]],CONCATENATE(Table_RetroSummary[[#This Row],[Existing Fixture]],\" | \",Table_RetroSummary[[#This Row],[Proposed Fixture]]),\"\"),\"\")","v":""},{"$f":"IFERROR(IF(Table_RetroSummary[[#This Row],[IsActive]],VLOOKUP(IF(ISNUMBER(MATCH(Table_POSTInfo[[#This Row],[Line]],Table_POSTInspection[Line],0)),INDEX(Table_POSTInspection[Schedule],MATCH(Table_RetroSummary[[#This Row],[Line Item]],Table_POSTInspection[Line],0)),Table_POSTInfo[[#This Row],[Schedule]]),'Customer Information'!$S$27:$T$34,2,FALSE),\"\"),\"\")","v":""},{"$f":"IFERROR(IF(Table_RetroSummary[[#This Row],[IsActive]],IF(IF(ISNUMBER(MATCH(Table_RetroSummary[[#This Row],[Line Item]],Table_POSTInspection[Line],0)),INDEX(Table_POSTInspection[Interior/ Exterior],MATCH(Table_RetroSummary[[#This Row],[Line Item]],Table_POSTInfo[[#This Row],[Line]],0)),Table_POSTInfo[[#This Row],[Interior/ Exterior]])=\"Interior\",'Customer Information'!$S$25,0),\"\"),\"\")","v":""},{"$f":"IFERROR(IF(Table_RetroSummary[[#This Row],[IsActive]],IF(IF(ISNUMBER(MATCH(Table_RetroSummary[[#This Row],[Line Item]],Table_POSTInspection[Line],0)),INDEX(Table_POSTInspection[Interior/ Exterior],MATCH(Table_RetroSummary[[#This Row],[Line Item]],Table_POSTInfo[[#This Row],[Line]],0)),Table_POSTInfo[[#This Row],[Interior/ Exterior]])=\"Interior\",'Customer Information'!$T$25,0),\"\"),\"\")","v":""},{"$f":"IFERROR(IF(Table_RetroSummary[[#This Row],[IsActive]],IF(IF(ISNUMBER(MATCH(Table_RetroSummary[[#This Row],[Line Item]],Table_POSTInspection[Line],0)),INDEX(Table_POSTInspection[Interior/ Exterior],MATCH(Table_RetroSummary[[#This Row],[Line Item]],Table_POSTInfo[[#This Row],[Line]],0)),Table_POSTInfo[[#This Row],[Interior/ Exterior]])=\"Interior\",'Customer Information'!$U$25,0),\"\"),\"\")","v":""},{"$f":"IFERROR(IF(Table_RetroSummary[[#This Row],[IsActive]],IF(IF(ISNUMBER(MATCH(Table_RetroSummary[[#This Row],[Line Item]],Table_POSTInspection[Line],0)),INDEX(Table_POSTInspection[Interior/ Exterior],MATCH(Table_RetroSummary[[#This Row],[Line Item]],Table_POSTInfo[[#This Row],[Line]],0)),Table_POSTInfo[[#This Row],[Interior/ Exterior]])=\"Interior\",'Customer Information'!$V$25,0),\"\"),\"\")","v":""},{"$f":"IFERROR(IF(Table_RetroSummary[[#This Row],[IsActive]],IF(IF(ISNUMBER(MATCH(Table_RetroSummary[[#This Row],[Line Item]],Table_POSTInspection[Line],0)),INDEX(Table_POSTInspection[Interior/ Exterior],MATCH(Table_RetroSummary[[#This Row],[Line Item]],Table_POSTInfo[[#This Row],[Line]],0)),Table_POSTInfo[[#This Row],[Interior/ Exterior]])=\"Interior\",'Customer Information'!$W$25,0),\"\"),\"\")","v":""},{"$f":"IFERROR(IF(Table_RetroSummary[[#This Row],[IsActive]],IF(IF(ISNUMBER(MATCH(Table_RetroSummary[[#This Row],[Line Item]],Table_POSTInspection[Line],0)),INDEX(Table_POSTInspection[Interior/ Exterior],MATCH(Table_RetroSummary[[#This Row],[Line Item]],Table_POSTInfo[[#This Row],[Line]],0)),Table_POSTInfo[[#This Row],[Interior/ Exterior]])=\"Interior\",'Customer Information'!$X$25,0),\"\"),\"\")","v":""},{"$f":"IFERROR(IF(Table_RetroSummary[[#This Row],[IsActive]],\nCONCATENATE(\nIF(ISNUMBER(MATCH(Table_POSTInfo[[#This Row],[Line]],Table_POSTInspection[Line],0)),INDEX(Table_POSTInspection[Interior/ Exterior],MATCH(Table_RetroSummary[[#This Row],[Line Item]],Table_POSTInspection[Line],0)),Table_POSTInfo[[#This Row],[Interior/ Exterior]]),\n\" - \",\nIF(ISNUMBER(MATCH(Table_POSTInfo[[#This Row],[Line]],Table_POSTInspection[Line],0)),INDEX(Table_POSTInspection[Space Description],MATCH(Table_RetroSummary[[#This Row],[Line Item]],Table_POSTInspection[Line],0)),Table_POSTInfo[[#This Row],[Space Description]])),\n \"\"),\"\")","v":""},{"$f":"IFERROR(IF(Table_RetroSummary[[#This Row],[IsActive]]=\"\",\"\",Table_POSTInfo[[#This Row],[Fixture Description '[E']]]),\"\")","v":""},{"$f":"IFERROR(IF(Table_RetroSummary[[#This Row],[IsActive]]=\"\",\"\",Table_POSTInfo[[#This Row],['# Lamps/ Fixture '[E']]]),\"\")","v":""},{"$f":"IFERROR(IF(Table_RetroSummary[[#This Row],[IsActive]]=\"\",\"\",Table_POSTInfo[[#This Row],[Fixture/ Lamp Wattage '[E']]]),\"\")","v":""},{"$f":"IFERROR(IF(Table_RetroSummary[[#This Row],[IsActive]]=\"\",\"\",Table_POSTInfo[[#This Row],[Fixture Qty '[E']]]),\"\")","v":""},{"$f":"IFERROR(IF(Table_RetroSummary[[#This Row],[IsActive]],Table_RetroSummary[[#This Row],[Fixture/ Lamp Wattage '[E']]]*Table_RetroSummary[[#This Row],[E. Qty]],\"\"),\"\")","v":""},{"$f":"IFERROR(IF(Table_RetroSummary[[#This Row],[IsActive]]=\"\",\"\",Table_POSTInfo[[#This Row],[Fixture Wattage '[E']]]),\"\")","v":""},{"$f":"IFERROR(IF(Table_RetroSummary[[#This Row],[IsActive]],IFERROR(Table_RetroSummary[[#This Row],[Existing Fixture Wattage]]/1000*Table_RetroSummary[[#This Row],[OpHrs]]*Table_RetroSummary[[#This Row],[E. Qty]],0),\"\"),\"\")","v":""},{"$f":"IFERROR(IF(Table_RetroSummary[[#This Row],[IsActive]],IFERROR(VLOOKUP(RIGHT(Table_RetroSummary[[#This Row],[Existing Fixture]],LEN(Table_RetroSummary[[#This Row],[Existing Fixture]])-FIND(\" - \",Table_RetroSummary[[#This Row],[Existing Fixture]],FIND(\"]\",Table_RetroSummary[[#This Row],[Existing Fixture]],1))-2),Table_ControlType[],3,FALSE),0),\"\"),\"\")","v":""},{"$f":"IFERROR(IF(Table_RetroSummary[[#This Row],[IsActive]],IFERROR(Table_RetroSummary[[#This Row],[Existing Fixture Wattage]]/1000*Table_RetroSummary[[#This Row],[OpHrs]]*Table_RetroSummary[[#This Row],[E. Qty]]*Table_RetroSummary[[#This Row],[Existing CSF]]*(-1),0),\"\"),\"\")","v":""},{"$f":"IFERROR(Table_RetroSummary[[#This Row],[Existing Fixture kWh]]+Table_RetroSummary[[#This Row],[Existing Fixture (Existing Controls) kWh]],\"\")","v":""},{"$f":"IFERROR(IF(Table_RetroSummary[[#This Row],[IsActive]],IF(ISNUMBER(MATCH(Table_POSTInfo[[#This Row],[Line]],Table_POSTInspection[Line],0)),INDEX(Table_POSTInspection[Fixture Description '[P']],MATCH(Table_RetroSummary[[#This Row],[Line Item]],Table_POSTInspection[Line],0)),Table_POSTInfo[[#This Row],[Fixture Description '[P']]]),\"\"),\"\")","v":""},{"$f":"IFERROR(IF(Table_RetroSummary[[#This Row],[IsActive]],IF(ISNUMBER(MATCH(Table_POSTInfo[[#This Row],[Line]],Table_POSTInspection[Line],0)),INDEX(Table_POSTInspection['# Lamps/ Fixture '[P']],MATCH(Table_RetroSummary[[#This Row],[Line Item]],Table_POSTInspection[Line],0)),Table_POSTInfo[[#This Row],['# Lamps/ Fixture '[P']]]),\"\"),\"\")","v":""},{"$f":"IFERROR(IF(Table_RetroSummary[[#This Row],[IsActive]],IF(ISNUMBER(MATCH(Table_POSTInfo[[#This Row],[Line]],Table_POSTInspection[Line],0)),INDEX(Table_POSTInspection[Fixture/ Lamp Wattage '[P']],MATCH(Table_RetroSummary[[#This Row],[Line Item]],Table_POSTInspection[Line],0)),Table_POSTInfo[[#This Row],[Fixture/ Lamp Wattage '[P']]]),\"\"),\"\")","v":""},{"$f":"IFERROR(IF(Table_RetroSummary[[#This Row],[IsActive]],IF(ISNUMBER(MATCH(Table_POSTInfo[[#This Row],[Line]],Table_POSTInspection[Line],0)),INDEX(Table_POSTInspection[Fixture Qty '[P']],MATCH(Table_RetroSummary[[#This Row],[Line Item]],Table_POSTInspection[Line],0)),Table_POSTInfo[[#This Row],[Fixture Qty '[P']]]),\"\"),\"\")","v":""},{"$f":"IFERROR(IF(Table_RetroSummary[[#This Row],[IsActive]],Table_RetroSummary[[#This Row],[Fixture/ Lamp Wattage '[P']]]*Table_RetroSummary[[#This Row],[P. Qty]],\"\"),\"\")","v":""},{"$f":"IFERROR(IF(Table_RetroSummary[[#This Row],[IsActive]],IF(ISNUMBER(MATCH(Table_POSTInfo[[#This Row],[Line]],Table_POSTInspection[Line],0)),INDEX(Table_POSTInspection[Fixture Wattage '[P']],MATCH(Table_RetroSummary[[#This Row],[Line Item]],Table_POSTInspection[Line],0)),Table_POSTInfo[[#This Row],[Fixture Wattage '[P']]]),\"\"),\"\")","v":""},{"$f":"IFERROR(Table_RetroSummary[[#This Row],[Total '# Lamps '[P']]]+Table_RetroSummary[[#This Row],[Proposed Fixture Wattage]],\"\")","v":""},{"$f":"IFERROR(Table_RetroSummary[[#This Row],[Proposed Fixture Wattage]]/1000*Table_RetroSummary[[#This Row],[OpHrs]]*Table_RetroSummary[[#This Row],[P. Qty]],\"\")","v":""},{"$f":"IFERROR(IF(Table_RetroSummary[[#This Row],[IsActive]],IFERROR(VLOOKUP(RIGHT(Table_RetroSummary[[#This Row],[Proposed Fixture]],LEN(Table_RetroSummary[[#This Row],[Proposed Fixture]])-FIND(\" - \",Table_RetroSummary[[#This Row],[Proposed Fixture]],FIND(\"]\",Table_RetroSummary[[#This Row],[Proposed Fixture]],1))-2),Table_ControlType[],3, FALSE),0),\"\"),\"\")","v":""},{"$f":"IFERROR(IF(Table_RetroSummary[[#This Row],[IsActive]],IFERROR(Table_RetroSummary[[#This Row],[Proposed Fixture Wattage]]/1000*Table_RetroSummary[[#This Row],[OpHrs]]*Table_RetroSummary[[#This Row],[P. Qty]]*Table_RetroSummary[[#This Row],[Existing CSF]]*(-1),0),\"\"),\"\")","v":""},{"$f":"IFERROR(Table_RetroSummary[[#This Row],[Proposed Fixture kWh]]+Table_RetroSummary[[#This Row],[Proposed Fixture (Existing Controls) kWh]],\"\")","v":""},{"$f":"IFERROR(IF(Table_RetroSummary[[#This Row],[IsActive]],IFERROR(Table_RetroSummary[[#This Row],[Proposed Fixture Wattage]]/1000*Table_RetroSummary[[#This Row],[OpHrs]]*Table_RetroSummary[[#This Row],[P. Qty]]*Table_RetroSummary[[#This Row],[Proposed CSF]]*(-1),0),\"\"),\"\")","v":""},{"$f":"IFERROR(Table_RetroSummary[[#This Row],[Proposed Fixture kWh]]+Table_RetroSummary[[#This Row],[Proposed Fixture (Proposed Controls) kWh]],\"\")","v":""},{"$f":"IFERROR(IF(Table_RetroSummary[[#This Row],[IsActive]],IF(ISNUMBER(MATCH(Table_POSTInfo[[#This Row],[Line]],Table_POSTInspection[Line],0)),INDEX(Table_POSTInspection[DLC or ES Certification '[P']],MATCH(Table_RetroSummary[[#This Row],[Line Item]],Table_POSTInspection[Line],0)),Table_POSTInfo[[#This Row],[DLC or ES Certification '[P']]]),\"\"),\"\")","v":""},null,{"$f":"IFERROR(IF(Table_RetroSummary[[#This Row],[IsActive]],\nIF(AND(RIGHT(Table_RetroSummary[[#This Row],[Existing Fixture]],LEN(Table_RetroSummary[[#This Row],[Existing Fixture]])-FIND(\":\",Table_RetroSummary[[#This Row],[Existing Fixture]],1)-1)<>Table_RetroSummary[[#This Row],[Proposed Fixture]],MID(Table_RetroSummary[[#This Row],[Existing Fixture]],FIND(\": \",Table_RetroSummary[[#This Row],[Existing Fixture]],1)+2,FIND(\"]\",Table_RetroSummary[[#This Row],[Existing Fixture]],1))=LEFT(Table_RetroSummary[[#This Row],[Proposed Fixture]],FIND(\"]\",Table_RetroSummary[[#This Row],[Proposed Fixture]],1))),\n  \"Controls Only\",\n  IF(Table_POSTInfo[[#This Row],[DLC or ES Certification '[P']]]<>\"\",\n    IF(ISNUMBER(FIND(\"LED Tube\",Table_RetroSummary[[#This Row],[Proposed Fixture]],1)),\n      \"LED Re-Lamp\",\n      IF(AND(Table_RetroSummary[[#This Row],[Existing Overall kWh]]>Table_RetroSummary[[#This Row],[Proposed Overall kWh (Existing Controls)]],ISNUMBER(FIND(\"LED\",Table_RetroSummary[[#This Row],[Proposed Fixture]],1))),\n        IF(Table_POSTInfo[[#This Row],[Interior/ Exterior]]=\"Exterior\",\n          \"Exterior LED Fixture\",\n          \"Interior LED Fixture\"),\n        \"Ineligible Fixture\")),\n    \"Ineligible Fixture\")),\n\"\"),\"\")","v":""},{"$f":"IFERROR(VLOOKUP(Table_RetroSummary[[#This Row],[Fixture Measure Description]],Table_FixtureRate[],2,FALSE),\"\")","v":""},{"$f":"IFERROR(IF(Table_RetroSummary[[#This Row],[IsActive]],IF(Table_RetroSummary[[#This Row],[Fixture Measure Description]]=\"Ineligible Fixture\",0,ROUND(Table_RetroSummary[[#This Row],[Fixture Rebate (per kW)]]*(Table_RetroSummary[[#This Row],[Existing Fixture Wattage]]*Table_RetroSummary[[#This Row],[E. Qty]]-Table_RetroSummary[[#This Row],[Proposed Fixture Wattage]]*Table_RetroSummary[[#This Row],[P. Qty]])/1000,2)),\"\"),\"\")","v":""},{"$f":"IFERROR(IF(Table_RetroSummary[[#This Row],[Fixture Measure Description]]=\"Ineligible Fixture\",0,ROUND(IF(ProjectCost_Total=0,300000,ProjectCost_Total)*Table_RetroSummary[[#This Row],[Fixture Rebate]]/SUM(Table_RetroSummary[Fixture Rebate],Table_RetroSummary[Controls Rebate]),2)),\"\")","v":""},{"$f":"IFERROR(IF(Table_RetroSummary[[#This Row],[IsActive]],IF(Table_RetroSummary[[#This Row],[Fixture Measure Description]]=\"Ineligible Fixture\",0,Table_RetroSummary[[#This Row],[Existing Overall kWh]]-Table_RetroSummary[[#This Row],[Proposed Overall kWh (Existing Controls)]]),\"\"),\"\")","v":""},{"$f":"IFERROR(IF(Table_RetroSummary[[#This Row],[IsActive]],IF(Table_RetroSummary[[#This Row],[Fixture Measure Description]]=\"Ineligible Fixture\",0,(Table_RetroSummary[[#This Row],[Existing Fixture kWh]]-Table_RetroSummary[[#This Row],[Proposed Fixture kWh]])/Table_RetroSummary[[#This Row],[OpHrs]]*Table_RetroSummary[[#This Row],[CF (Ltg)]]*Table_RetroSummary[[#This Row],[DF (Ltg)]]),\"\"),\"\")","v":""},null,{"$f":"IFERROR(\n  IF(OR(Table_RetroSummary[[#This Row],[Fixture Measure Description]]=\"\",Table_RetroSummary[[#This Row],[Fixture Measure Description]]=\"Ineligible Fixture\"),\n    \"\",\n    IFERROR(VLOOKUP(RIGHT(Table_RetroSummary[[#This Row],[Existing Fixture]],LEN(Table_RetroSummary[[#This Row],[Existing Fixture]])-FIND(\" - \",Table_RetroSummary[[#This Row],[Existing Fixture]],FIND(\"]\",Table_RetroSummary[[#This Row],[Existing Fixture]],1))-2),Table_ControlType[],2,FALSE),\"None\")\n    & \" - \" &\n    IFERROR(VLOOKUP(RIGHT(Table_RetroSummary[[#This Row],[Proposed Fixture]],LEN(Table_RetroSummary[[#This Row],[Proposed Fixture]])-FIND(\" - \",Table_RetroSummary[[#This Row],[Proposed Fixture]],FIND(\"]\",Table_RetroSummary[[#This Row],[Proposed Fixture]],1))-2),Table_ControlType[],2, FALSE),None)),\n\"\")","v":""},{"$f":"IFERROR(VLOOKUP(Table_RetroSummary[[#This Row],[Controls Measure Description]],Table_ControlRate[],2,FALSE),\"\")","v":""},{"$f":"IFERROR(IF(Table_RetroSummary[[#This Row],[IsActive]],IF(Table_RetroSummary[[#This Row],[Controls Measure Description]]=\"\",0,ROUND(Table_RetroSummary[[#This Row],[Controls Rebate (per Fixt Watt)]]*Table_RetroSummary[[#This Row],[Proposed Fixture Wattage]]*Table_RetroSummary[[#This Row],[P. Qty]],2)),\"\"),\"\")","v":""},{"$f":"IFERROR(IF(Table_RetroSummary[[#This Row],[Fixture Measure Description]]=\"Ineligible Fixture\",0,ROUND(IF(ProjectCost_Total=0,300000,ProjectCost_Total)*Table_RetroSummary[[#This Row],[Controls Rebate]]/SUM(Table_RetroSummary[Fixture Rebate],Table_RetroSummary[Controls Rebate]),2)),\"\")","v":""},{"$f":"IFERROR(IF(Table_RetroSummary[[#This Row],[IsActive]],IF(Table_RetroSummary[[#This Row],[Controls Measure Description]]=\"\",0,(Table_RetroSummary[[#This Row],[Proposed Fixture (Existing Controls) kWh]]-Table_RetroSummary[[#This Row],[Proposed Fixture (Proposed Controls) kWh]])),\"\"),\"\")","v":""},{"$f":"IFERROR(IF(Table_RetroSummary[[#This Row],[IsActive]],IF(Table_RetroSummary[[#This Row],[Controls Measure Description]]=\"\",0,(Table_RetroSummary[[#This Row],[Proposed Fixture (Existing Controls) kWh]]-Table_RetroSummary[[#This Row],[Proposed Fixture (Proposed Controls) kWh]])/Table_RetroSummary[[#This Row],[OpHrs]]*Table_RetroSummary[[#This Row],[CF (Ltg)]]*Table_RetroSummary[[#This Row],[DF (Ltg)]]),\"\"),\"\")","v":""},null,{"$f":"IFERROR(IF(NOT(ISNUMBER(Table_RetroSummary[[#This Row],[Fixture Rebate]])),\"\",IF(MIN(IF(SUM(Table_RetroSummary[Fixture Cost],Table_RetroSummary[Controls Cost])<0,0,SUM(Table_RetroSummary[Fixture Cost],Table_RetroSummary[Controls Cost])),SUM(Table_RetroSummary[Fixture Rebate],Table_RetroSummary[Controls Rebate]))>300000,300000/MIN(IF(SUM(Table_RetroSummary[Fixture Cost],Table_RetroSummary[Controls Cost])<0,0,SUM(Table_RetroSummary[Fixture Cost],Table_RetroSummary[Controls Cost])),SUM(Table_RetroSummary[Fixture Rebate],Table_RetroSummary[Controls Rebate]))*MIN(IF(SUM(Table_RetroSummary[Fixture Cost],Table_RetroSummary[Controls Cost])<0,0,SUM(Table_RetroSummary[Fixture Cost],Table_RetroSummary[Controls Cost])),Table_RetroSummary[[#This Row],[Fixture Rebate]]+IF(Table_RetroSummary[[#This Row],[Controls Rebate]]=\"\",0,Table_RetroSummary[[#This Row],[Controls Rebate]])),MIN(IF(SUM(Table_RetroSummary[Fixture Cost],Table_RetroSummary[Controls Cost])<0,0,SUM(Table_RetroSummary[Fixture Cost],Table_RetroSummary[Controls Cost])),Table_RetroSummary[[#This Row],[Fixture Rebate]]+IF(Table_RetroSummary[[#This Row],[Controls Rebate]]=\"\",0,Table_RetroSummary[[#This Row],[Controls Rebate]])))),\"\")","v":""},{"$f":"IFERROR(IF(Table_RetroSummary[[#This Row],[Fixture Cost]]=\"\",\"\",Table_RetroSummary[[#This Row],[Fixture Cost]]+IF(Table_RetroSummary[[#This Row],[Controls Cost]]=\"\",0,Table_RetroSummary[[#This Row],[Controls Cost]])),\"\")","v":""},{"$f":"IFERROR(IF(Table_RetroSummary[[#This Row],[IsActive]],IF(Table_POSTInfo[[#This Row],[Interior/ Exterior]]=\"Interior\",IFERROR((Table_RetroSummary[[#This Row],[Annual Fixture Savings (kWh)]]+Table_RetroSummary[[#This Row],[Annual Control Savings (kWh)]])*(Table_RetroSummary[[#This Row],[EIF]]-1),0),0),\"\"),\"\")","v":""},{"$f":"IFERROR(IF(Table_RetroSummary[[#This Row],[IsActive]],IF(Table_POSTInfo[[#This Row],[Interior/ Exterior]]=\"Interior\",IFERROR((Table_RetroSummary[[#This Row],[Fixture kW Reduction]]+Table_RetroSummary[[#This Row],[Control kW Reduction]]/(Table_RetroSummary[[#This Row],[CF (Ltg)]]*Table_RetroSummary[[#This Row],[DF (Ltg)]]))*(Table_RetroSummary[[#This Row],[DIF]]-1)*Table_RetroSummary[[#This Row],[CF (HVAC)]]*Table_RetroSummary[[#This Row],[DF (HVAC)]],0),0),\"\"),\"\")","v":""},{"$f":"IFERROR(IF(Table_RetroSummary[[#This Row],[IsActive]],IF(NOT(ISNUMBER(Table_RetroSummary[[#This Row],[Fixture Rebate]])),\"\",ROUND(Table_RetroSummary[[#This Row],[Annual Fixture Savings (kWh)]]+Table_RetroSummary[[#This Row],[Annual Control Savings (kWh)]],0)),\"\"),\"\")","v":""},{"$f":"IFERROR(IF(Table_RetroSummary[[#This Row],[IsActive]],IF(NOT(ISNUMBER(Table_RetroSummary[[#This Row],[Fixture Rebate]])),\"\",ROUND(Table_RetroSummary[[#This Row],[Fixture kW Reduction]]+Table_RetroSummary[[#This Row],[Control kW Reduction]],3)),\"\"),\"\")","v":""},{"$f":"IFERROR(IF(Table_RetroSummary[[#This Row],[IsActive]],IF(NOT(ISNUMBER(Table_RetroSummary[[#This Row],[Fixture Rebate]])),\"\",ROUND(Table_RetroSummary[[#This Row],[Fixture Energy Savings (kWh)]]+Table_RetroSummary[[#This Row],[Induced HVAC Energy Savings (kWh)]],0)),\"\"),\"\")","v":""},{"$f":"IFERROR(IF(Table_RetroSummary[[#This Row],[IsActive]],IF(NOT(ISNUMBER(Table_RetroSummary[[#This Row],[Fixture Rebate]])),\"\",ROUND(Table_RetroSummary[[#This Row],[Fixture Demand Savings (kW)]]+Table_RetroSummary[[#This Row],[Induced HVAC Demand Savings (kW)]],3)),\"\"),\"\")","v":""}]
[{"$f":"IFERROR(Table_POSTInfo[[#This Row],[Line]],\"\")","v":26},{"$f":"IFERROR(Table_POSTInfo[[#This Row],[IsActive]],\"\")","v":false},{"$f":"IFERROR(IF(Table_RetroSummary[[#This Row],[IsActive]],CONCATENATE(Table_RetroSummary[[#This Row],[Existing Fixture]],\" | \",Table_RetroSummary[[#This Row],[Proposed Fixture]]),\"\"),\"\")","v":""},{"$f":"IFERROR(IF(Table_RetroSummary[[#This Row],[IsActive]],VLOOKUP(IF(ISNUMBER(MATCH(Table_POSTInfo[[#This Row],[Line]],Table_POSTInspection[Line],0)),INDEX(Table_POSTInspection[Schedule],MATCH(Table_RetroSummary[[#This Row],[Line Item]],Table_POSTInspection[Line],0)),Table_POSTInfo[[#This Row],[Schedule]]),'Customer Information'!$S$27:$T$34,2,FALSE),\"\"),\"\")","v":""},{"$f":"IFERROR(IF(Table_RetroSummary[[#This Row],[IsActive]],IF(IF(ISNUMBER(MATCH(Table_RetroSummary[[#This Row],[Line Item]],Table_POSTInspection[Line],0)),INDEX(Table_POSTInspection[Interior/ Exterior],MATCH(Table_RetroSummary[[#This Row],[Line Item]],Table_POSTInfo[[#This Row],[Line]],0)),Table_POSTInfo[[#This Row],[Interior/ Exterior]])=\"Interior\",'Customer Information'!$S$25,0),\"\"),\"\")","v":""},{"$f":"IFERROR(IF(Table_RetroSummary[[#This Row],[IsActive]],IF(IF(ISNUMBER(MATCH(Table_RetroSummary[[#This Row],[Line Item]],Table_POSTInspection[Line],0)),INDEX(Table_POSTInspection[Interior/ Exterior],MATCH(Table_RetroSummary[[#This Row],[Line Item]],Table_POSTInfo[[#This Row],[Line]],0)),Table_POSTInfo[[#This Row],[Interior/ Exterior]])=\"Interior\",'Customer Information'!$T$25,0),\"\"),\"\")","v":""},{"$f":"IFERROR(IF(Table_RetroSummary[[#This Row],[IsActive]],IF(IF(ISNUMBER(MATCH(Table_RetroSummary[[#This Row],[Line Item]],Table_POSTInspection[Line],0)),INDEX(Table_POSTInspection[Interior/ Exterior],MATCH(Table_RetroSummary[[#This Row],[Line Item]],Table_POSTInfo[[#This Row],[Line]],0)),Table_POSTInfo[[#This Row],[Interior/ Exterior]])=\"Interior\",'Customer Information'!$U$25,0),\"\"),\"\")","v":""},{"$f":"IFERROR(IF(Table_RetroSummary[[#This Row],[IsActive]],IF(IF(ISNUMBER(MATCH(Table_RetroSummary[[#This Row],[Line Item]],Table_POSTInspection[Line],0)),INDEX(Table_POSTInspection[Interior/ Exterior],MATCH(Table_RetroSummary[[#This Row],[Line Item]],Table_POSTInfo[[#This Row],[Line]],0)),Table_POSTInfo[[#This Row],[Interior/ Exterior]])=\"Interior\",'Customer Information'!$V$25,0),\"\"),\"\")","v":""},{"$f":"IFERROR(IF(Table_RetroSummary[[#This Row],[IsActive]],IF(IF(ISNUMBER(MATCH(Table_RetroSummary[[#This Row],[Line Item]],Table_POSTInspection[Line],0)),INDEX(Table_POSTInspection[Interior/ Exterior],MATCH(Table_RetroSummary[[#This Row],[Line Item]],Table_POSTInfo[[#This Row],[Line]],0)),Table_POSTInfo[[#This Row],[Interior/ Exterior]])=\"Interior\",'Customer Information'!$W$25,0),\"\"),\"\")","v":""},{"$f":"IFERROR(IF(Table_RetroSummary[[#This Row],[IsActive]],IF(IF(ISNUMBER(MATCH(Table_RetroSummary[[#This Row],[Line Item]],Table_POSTInspection[Line],0)),INDEX(Table_POSTInspection[Interior/ Exterior],MATCH(Table_RetroSummary[[#This Row],[Line Item]],Table_POSTInfo[[#This Row],[Line]],0)),Table_POSTInfo[[#This Row],[Interior/ Exterior]])=\"Interior\",'Customer Information'!$X$25,0),\"\"),\"\")","v":""},{"$f":"IFERROR(IF(Table_RetroSummary[[#This Row],[IsActive]],\nCONCATENATE(\nIF(ISNUMBER(MATCH(Table_POSTInfo[[#This Row],[Line]],Table_POSTInspection[Line],0)),INDEX(Table_POSTInspection[Interior/ Exterior],MATCH(Table_RetroSummary[[#This Row],[Line Item]],Table_POSTInspection[Line],0)),Table_POSTInfo[[#This Row],[Interior/ Exterior]]),\n\" - \",\nIF(ISNUMBER(MATCH(Table_POSTInfo[[#This Row],[Line]],Table_POSTInspection[Line],0)),INDEX(Table_POSTInspection[Space Description],MATCH(Table_RetroSummary[[#This Row],[Line Item]],Table_POSTInspection[Line],0)),Table_POSTInfo[[#This Row],[Space Description]])),\n \"\"),\"\")","v":""},{"$f":"IFERROR(IF(Table_RetroSummary[[#This Row],[IsActive]]=\"\",\"\",Table_POSTInfo[[#This Row],[Fixture Description '[E']]]),\"\")","v":""},{"$f":"IFERROR(IF(Table_RetroSummary[[#This Row],[IsActive]]=\"\",\"\",Table_POSTInfo[[#This Row],['# Lamps/ Fixture '[E']]]),\"\")","v":""},{"$f":"IFERROR(IF(Table_RetroSummary[[#This Row],[IsActive]]=\"\",\"\",Table_POSTInfo[[#This Row],[Fixture/ Lamp Wattage '[E']]]),\"\")","v":""},{"$f":"IFERROR(IF(Table_RetroSummary[[#This Row],[IsActive]]=\"\",\"\",Table_POSTInfo[[#This Row],[Fixture Qty '[E']]]),\"\")","v":""},{"$f":"IFERROR(IF(Table_RetroSummary[[#This Row],[IsActive]],Table_RetroSummary[[#This Row],[Fixture/ Lamp Wattage '[E']]]*Table_RetroSummary[[#This Row],[E. Qty]],\"\"),\"\")","v":""},{"$f":"IFERROR(IF(Table_RetroSummary[[#This Row],[IsActive]]=\"\",\"\",Table_POSTInfo[[#This Row],[Fixture Wattage '[E']]]),\"\")","v":""},{"$f":"IFERROR(IF(Table_RetroSummary[[#This Row],[IsActive]],IFERROR(Table_RetroSummary[[#This Row],[Existing Fixture Wattage]]/1000*Table_RetroSummary[[#This Row],[OpHrs]]*Table_RetroSummary[[#This Row],[E. Qty]],0),\"\"),\"\")","v":""},{"$f":"IFERROR(IF(Table_RetroSummary[[#This Row],[IsActive]],IFERROR(VLOOKUP(RIGHT(Table_RetroSummary[[#This Row],[Existing Fixture]],LEN(Table_RetroSummary[[#This Row],[Existing Fixture]])-FIND(\" - \",Table_RetroSummary[[#This Row],[Existing Fixture]],FIND(\"]\",Table_RetroSummary[[#This Row],[Existing Fixture]],1))-2),Table_ControlType[],3,FALSE),0),\"\"),\"\")","v":""},{"$f":"IFERROR(IF(Table_RetroSummary[[#This Row],[IsActive]],IFERROR(Table_RetroSummary[[#This Row],[Existing Fixture Wattage]]/1000*Table_RetroSummary[[#This Row],[OpHrs]]*Table_RetroSummary[[#This Row],[E. Qty]]*Table_RetroSummary[[#This Row],[Existing CSF]]*(-1),0),\"\"),\"\")","v":""},{"$f":"IFERROR(Table_RetroSummary[[#This Row],[Existing Fixture kWh]]+Table_RetroSummary[[#This Row],[Existing Fixture (Existing Controls) kWh]],\"\")","v":""},{"$f":"IFERROR(IF(Table_RetroSummary[[#This Row],[IsActive]],IF(ISNUMBER(MATCH(Table_POSTInfo[[#This Row],[Line]],Table_POSTInspection[Line],0)),INDEX(Table_POSTInspection[Fixture Description '[P']],MATCH(Table_RetroSummary[[#This Row],[Line Item]],Table_POSTInspection[Line],0)),Table_POSTInfo[[#This Row],[Fixture Description '[P']]]),\"\"),\"\")","v":""},{"$f":"IFERROR(IF(Table_RetroSummary[[#This Row],[IsActive]],IF(ISNUMBER(MATCH(Table_POSTInfo[[#This Row],[Line]],Table_POSTInspection[Line],0)),INDEX(Table_POSTInspection['# Lamps/ Fixture '[P']],MATCH(Table_RetroSummary[[#This Row],[Line Item]],Table_POSTInspection[Line],0)),Table_POSTInfo[[#This Row],['# Lamps/ Fixture '[P']]]),\"\"),\"\")","v":""},{"$f":"IFERROR(IF(Table_RetroSummary[[#This Row],[IsActive]],IF(ISNUMBER(MATCH(Table_POSTInfo[[#This Row],[Line]],Table_POSTInspection[Line],0)),INDEX(Table_POSTInspection[Fixture/ Lamp Wattage '[P']],MATCH(Table_RetroSummary[[#This Row],[Line Item]],Table_POSTInspection[Line],0)),Table_POSTInfo[[#This Row],[Fixture/ Lamp Wattage '[P']]]),\"\"),\"\")","v":""},{"$f":"IFERROR(IF(Table_RetroSummary[[#This Row],[IsActive]],IF(ISNUMBER(MATCH(Table_POSTInfo[[#This Row],[Line]],Table_POSTInspection[Line],0)),INDEX(Table_POSTInspection[Fixture Qty '[P']],MATCH(Table_RetroSummary[[#This Row],[Line Item]],Table_POSTInspection[Line],0)),Table_POSTInfo[[#This Row],[Fixture Qty '[P']]]),\"\"),\"\")","v":""},{"$f":"IFERROR(IF(Table_RetroSummary[[#This Row],[IsActive]],Table_RetroSummary[[#This Row],[Fixture/ Lamp Wattage '[P']]]*Table_RetroSummary[[#This Row],[P. Qty]],\"\"),\"\")","v":""},{"$f":"IFERROR(IF(Table_RetroSummary[[#This Row],[IsActive]],IF(ISNUMBER(MATCH(Table_POSTInfo[[#This Row],[Line]],Table_POSTInspection[Line],0)),INDEX(Table_POSTInspection[Fixture Wattage '[P']],MATCH(Table_RetroSummary[[#This Row],[Line Item]],Table_POSTInspection[Line],0)),Table_POSTInfo[[#This Row],[Fixture Wattage '[P']]]),\"\"),\"\")","v":""},{"$f":"IFERROR(Table_RetroSummary[[#This Row],[Total '# Lamps '[P']]]+Table_RetroSummary[[#This Row],[Proposed Fixture Wattage]],\"\")","v":""},{"$f":"IFERROR(Table_RetroSummary[[#This Row],[Proposed Fixture Wattage]]/1000*Table_RetroSummary[[#This Row],[OpHrs]]*Table_RetroSummary[[#This Row],[P. Qty]],\"\")","v":""},{"$f":"IFERROR(IF(Table_RetroSummary[[#This Row],[IsActive]],IFERROR(VLOOKUP(RIGHT(Table_RetroSummary[[#This Row],[Proposed Fixture]],LEN(Table_RetroSummary[[#This Row],[Proposed Fixture]])-FIND(\" - \",Table_RetroSummary[[#This Row],[Proposed Fixture]],FIND(\"]\",Table_RetroSummary[[#This Row],[Proposed Fixture]],1))-2),Table_ControlType[],3, FALSE),0),\"\"),\"\")","v":""},{"$f":"IFERROR(IF(Table_RetroSummary[[#This Row],[IsActive]],IFERROR(Table_RetroSummary[[#This Row],[Proposed Fixture Wattage]]/1000*Table_RetroSummary[[#This Row],[OpHrs]]*Table_RetroSummary[[#This Row],[P. Qty]]*Table_RetroSummary[[#This Row],[Existing CSF]]*(-1),0),\"\"),\"\")","v":""},{"$f":"IFERROR(Table_RetroSummary[[#This Row],[Proposed Fixture kWh]]+Table_RetroSummary[[#This Row],[Proposed Fixture (Existing Controls) kWh]],\"\")","v":""},{"$f":"IFERROR(IF(Table_RetroSummary[[#This Row],[IsActive]],IFERROR(Table_RetroSummary[[#This Row],[Proposed Fixture Wattage]]/1000*Table_RetroSummary[[#This Row],[OpHrs]]*Table_RetroSummary[[#This Row],[P. Qty]]*Table_RetroSummary[[#This Row],[Proposed CSF]]*(-1),0),\"\"),\"\")","v":""},{"$f":"IFERROR(Table_RetroSummary[[#This Row],[Proposed Fixture kWh]]+Table_RetroSummary[[#This Row],[Proposed Fixture (Proposed Controls) kWh]],\"\")","v":""},{"$f":"IFERROR(IF(Table_RetroSummary[[#This Row],[IsActive]],IF(ISNUMBER(MATCH(Table_POSTInfo[[#This Row],[Line]],Table_POSTInspection[Line],0)),INDEX(Table_POSTInspection[DLC or ES Certification '[P']],MATCH(Table_RetroSummary[[#This Row],[Line Item]],Table_POSTInspection[Line],0)),Table_POSTInfo[[#This Row],[DLC or ES Certification '[P']]]),\"\"),\"\")","v":""},null,{"$f":"IFERROR(IF(Table_RetroSummary[[#This Row],[IsActive]],\nIF(AND(RIGHT(Table_RetroSummary[[#This Row],[Existing Fixture]],LEN(Table_RetroSummary[[#This Row],[Existing Fixture]])-FIND(\":\",Table_RetroSummary[[#This Row],[Existing Fixture]],1)-1)<>Table_RetroSummary[[#This Row],[Proposed Fixture]],MID(Table_RetroSummary[[#This Row],[Existing Fixture]],FIND(\": \",Table_RetroSummary[[#This Row],[Existing Fixture]],1)+2,FIND(\"]\",Table_RetroSummary[[#This Row],[Existing Fixture]],1))=LEFT(Table_RetroSummary[[#This Row],[Proposed Fixture]],FIND(\"]\",Table_RetroSummary[[#This Row],[Proposed Fixture]],1))),\n  \"Controls Only\",\n  IF(Table_POSTInfo[[#This Row],[DLC or ES Certification '[P']]]<>\"\",\n    IF(ISNUMBER(FIND(\"LED Tube\",Table_RetroSummary[[#This Row],[Proposed Fixture]],1)),\n      \"LED Re-Lamp\",\n      IF(AND(Table_RetroSummary[[#This Row],[Existing Overall kWh]]>Table_RetroSummary[[#This Row],[Proposed Overall kWh (Existing Controls)]],ISNUMBER(FIND(\"LED\",Table_RetroSummary[[#This Row],[Proposed Fixture]],1))),\n        IF(Table_POSTInfo[[#This Row],[Interior/ Exterior]]=\"Exterior\",\n          \"Exterior LED Fixture\",\n          \"Interior LED Fixture\"),\n        \"Ineligible Fixture\")),\n    \"Ineligible Fixture\")),\n\"\"),\"\")","v":""},{"$f":"IFERROR(VLOOKUP(Table_RetroSummary[[#This Row],[Fixture Measure Description]],Table_FixtureRate[],2,FALSE),\"\")","v":""},{"$f":"IFERROR(IF(Table_RetroSummary[[#This Row],[IsActive]],IF(Table_RetroSummary[[#This Row],[Fixture Measure Description]]=\"Ineligible Fixture\",0,ROUND(Table_RetroSummary[[#This Row],[Fixture Rebate (per kW)]]*(Table_RetroSummary[[#This Row],[Existing Fixture Wattage]]*Table_RetroSummary[[#This Row],[E. Qty]]-Table_RetroSummary[[#This Row],[Proposed Fixture Wattage]]*Table_RetroSummary[[#This Row],[P. Qty]])/1000,2)),\"\"),\"\")","v":""},{"$f":"IFERROR(IF(Table_RetroSummary[[#This Row],[Fixture Measure Description]]=\"Ineligible Fixture\",0,ROUND(IF(ProjectCost_Total=0,300000,ProjectCost_Total)*Table_RetroSummary[[#This Row],[Fixture Rebate]]/SUM(Table_RetroSummary[Fixture Rebate],Table_RetroSummary[Controls Rebate]),2)),\"\")","v":""},{"$f":"IFERROR(IF(Table_RetroSummary[[#This Row],[IsActive]],IF(Table_RetroSummary[[#This Row],[Fixture Measure Description]]=\"Ineligible Fixture\",0,Table_RetroSummary[[#This Row],[Existing Overall kWh]]-Table_RetroSummary[[#This Row],[Proposed Overall kWh (Existing Controls)]]),\"\"),\"\")","v":""},{"$f":"IFERROR(IF(Table_RetroSummary[[#This Row],[IsActive]],IF(Table_RetroSummary[[#This Row],[Fixture Measure Description]]=\"Ineligible Fixture\",0,(Table_RetroSummary[[#This Row],[Existing Fixture kWh]]-Table_RetroSummary[[#This Row],[Proposed Fixture kWh]])/Table_RetroSummary[[#This Row],[OpHrs]]*Table_RetroSummary[[#This Row],[CF (Ltg)]]*Table_RetroSummary[[#This Row],[DF (Ltg)]]),\"\"),\"\")","v":""},null,{"$f":"IFERROR(\n  IF(OR(Table_RetroSummary[[#This Row],[Fixture Measure Description]]=\"\",Table_RetroSummary[[#This Row],[Fixture Measure Description]]=\"Ineligible Fixture\"),\n    \"\",\n    IFERROR(VLOOKUP(RIGHT(Table_RetroSummary[[#This Row],[Existing Fixture]],LEN(Table_RetroSummary[[#This Row],[Existing Fixture]])-FIND(\" - \",Table_RetroSummary[[#This Row],[Existing Fixture]],FIND(\"]\",Table_RetroSummary[[#This Row],[Existing Fixture]],1))-2),Table_ControlType[],2,FALSE),\"None\")\n    & \" - \" &\n    IFERROR(VLOOKUP(RIGHT(Table_RetroSummary[[#This Row],[Proposed Fixture]],LEN(Table_RetroSummary[[#This Row],[Proposed Fixture]])-FIND(\" - \",Table_RetroSummary[[#This Row],[Proposed Fixture]],FIND(\"]\",Table_RetroSummary[[#This Row],[Proposed Fixture]],1))-2),Table_ControlType[],2, FALSE),None)),\n\"\")","v":""},{"$f":"IFERROR(VLOOKUP(Table_RetroSummary[[#This Row],[Controls Measure Description]],Table_ControlRate[],2,FALSE),\"\")","v":""},{"$f":"IFERROR(IF(Table_RetroSummary[[#This Row],[IsActive]],IF(Table_RetroSummary[[#This Row],[Controls Measure Description]]=\"\",0,ROUND(Table_RetroSummary[[#This Row],[Controls Rebate (per Fixt Watt)]]*Table_RetroSummary[[#This Row],[Proposed Fixture Wattage]]*Table_RetroSummary[[#This Row],[P. Qty]],2)),\"\"),\"\")","v":""},{"$f":"IFERROR(IF(Table_RetroSummary[[#This Row],[Fixture Measure Description]]=\"Ineligible Fixture\",0,ROUND(IF(ProjectCost_Total=0,300000,ProjectCost_Total)*Table_RetroSummary[[#This Row],[Controls Rebate]]/SUM(Table_RetroSummary[Fixture Rebate],Table_RetroSummary[Controls Rebate]),2)),\"\")","v":""},{"$f":"IFERROR(IF(Table_RetroSummary[[#This Row],[IsActive]],IF(Table_RetroSummary[[#This Row],[Controls Measure Description]]=\"\",0,(Table_RetroSummary[[#This Row],[Proposed Fixture (Existing Controls) kWh]]-Table_RetroSummary[[#This Row],[Proposed Fixture (Proposed Controls) kWh]])),\"\"),\"\")","v":""},{"$f":"IFERROR(IF(Table_RetroSummary[[#This Row],[IsActive]],IF(Table_RetroSummary[[#This Row],[Controls Measure Description]]=\"\",0,(Table_RetroSummary[[#This Row],[Proposed Fixture (Existing Controls) kWh]]-Table_RetroSummary[[#This Row],[Proposed Fixture (Proposed Controls) kWh]])/Table_RetroSummary[[#This Row],[OpHrs]]*Table_RetroSummary[[#This Row],[CF (Ltg)]]*Table_RetroSummary[[#This Row],[DF (Ltg)]]),\"\"),\"\")","v":""},null,{"$f":"IFERROR(IF(NOT(ISNUMBER(Table_RetroSummary[[#This Row],[Fixture Rebate]])),\"\",IF(MIN(IF(SUM(Table_RetroSummary[Fixture Cost],Table_RetroSummary[Controls Cost])<0,0,SUM(Table_RetroSummary[Fixture Cost],Table_RetroSummary[Controls Cost])),SUM(Table_RetroSummary[Fixture Rebate],Table_RetroSummary[Controls Rebate]))>300000,300000/MIN(IF(SUM(Table_RetroSummary[Fixture Cost],Table_RetroSummary[Controls Cost])<0,0,SUM(Table_RetroSummary[Fixture Cost],Table_RetroSummary[Controls Cost])),SUM(Table_RetroSummary[Fixture Rebate],Table_RetroSummary[Controls Rebate]))*MIN(IF(SUM(Table_RetroSummary[Fixture Cost],Table_RetroSummary[Controls Cost])<0,0,SUM(Table_RetroSummary[Fixture Cost],Table_RetroSummary[Controls Cost])),Table_RetroSummary[[#This Row],[Fixture Rebate]]+IF(Table_RetroSummary[[#This Row],[Controls Rebate]]=\"\",0,Table_RetroSummary[[#This Row],[Controls Rebate]])),MIN(IF(SUM(Table_RetroSummary[Fixture Cost],Table_RetroSummary[Controls Cost])<0,0,SUM(Table_RetroSummary[Fixture Cost],Table_RetroSummary[Controls Cost])),Table_RetroSummary[[#This Row],[Fixture Rebate]]+IF(Table_RetroSummary[[#This Row],[Controls Rebate]]=\"\",0,Table_RetroSummary[[#This Row],[Controls Rebate]])))),\"\")","v":""},{"$f":"IFERROR(IF(Table_RetroSummary[[#This Row],[Fixture Cost]]=\"\",\"\",Table_RetroSummary[[#This Row],[Fixture Cost]]+IF(Table_RetroSummary[[#This Row],[Controls Cost]]=\"\",0,Table_RetroSummary[[#This Row],[Controls Cost]])),\"\")","v":""},{"$f":"IFERROR(IF(Table_RetroSummary[[#This Row],[IsActive]],IF(Table_POSTInfo[[#This Row],[Interior/ Exterior]]=\"Interior\",IFERROR((Table_RetroSummary[[#This Row],[Annual Fixture Savings (kWh)]]+Table_RetroSummary[[#This Row],[Annual Control Savings (kWh)]])*(Table_RetroSummary[[#This Row],[EIF]]-1),0),0),\"\"),\"\")","v":""},{"$f":"IFERROR(IF(Table_RetroSummary[[#This Row],[IsActive]],IF(Table_POSTInfo[[#This Row],[Interior/ Exterior]]=\"Interior\",IFERROR((Table_RetroSummary[[#This Row],[Fixture kW Reduction]]+Table_RetroSummary[[#This Row],[Control kW Reduction]]/(Table_RetroSummary[[#This Row],[CF (Ltg)]]*Table_RetroSummary[[#This Row],[DF (Ltg)]]))*(Table_RetroSummary[[#This Row],[DIF]]-1)*Table_RetroSummary[[#This Row],[CF (HVAC)]]*Table_RetroSummary[[#This Row],[DF (HVAC)]],0),0),\"\"),\"\")","v":""},{"$f":"IFERROR(IF(Table_RetroSummary[[#This Row],[IsActive]],IF(NOT(ISNUMBER(Table_RetroSummary[[#This Row],[Fixture Rebate]])),\"\",ROUND(Table_RetroSummary[[#This Row],[Annual Fixture Savings (kWh)]]+Table_RetroSummary[[#This Row],[Annual Control Savings (kWh)]],0)),\"\"),\"\")","v":""},{"$f":"IFERROR(IF(Table_RetroSummary[[#This Row],[IsActive]],IF(NOT(ISNUMBER(Table_RetroSummary[[#This Row],[Fixture Rebate]])),\"\",ROUND(Table_RetroSummary[[#This Row],[Fixture kW Reduction]]+Table_RetroSummary[[#This Row],[Control kW Reduction]],3)),\"\"),\"\")","v":""},{"$f":"IFERROR(IF(Table_RetroSummary[[#This Row],[IsActive]],IF(NOT(ISNUMBER(Table_RetroSummary[[#This Row],[Fixture Rebate]])),\"\",ROUND(Table_RetroSummary[[#This Row],[Fixture Energy Savings (kWh)]]+Table_RetroSummary[[#This Row],[Induced HVAC Energy Savings (kWh)]],0)),\"\"),\"\")","v":""},{"$f":"IFERROR(IF(Table_RetroSummary[[#This Row],[IsActive]],IF(NOT(ISNUMBER(Table_RetroSummary[[#This Row],[Fixture Rebate]])),\"\",ROUND(Table_RetroSummary[[#This Row],[Fixture Demand Savings (kW)]]+Table_RetroSummary[[#This Row],[Induced HVAC Demand Savings (kW)]],3)),\"\"),\"\")","v":""}]
[{"$f":"IFERROR(Table_POSTInfo[[#This Row],[Line]],\"\")","v":27},{"$f":"IFERROR(Table_POSTInfo[[#This Row],[IsActive]],\"\")","v":false},{"$f":"IFERROR(IF(Table_RetroSummary[[#This Row],[IsActive]],CONCATENATE(Table_RetroSummary[[#This Row],[Existing Fixture]],\" | \",Table_RetroSummary[[#This Row],[Proposed Fixture]]),\"\"),\"\")","v":""},{"$f":"IFERROR(IF(Table_RetroSummary[[#This Row],[IsActive]],VLOOKUP(IF(ISNUMBER(MATCH(Table_POSTInfo[[#This Row],[Line]],Table_POSTInspection[Line],0)),INDEX(Table_POSTInspection[Schedule],MATCH(Table_RetroSummary[[#This Row],[Line Item]],Table_POSTInspection[Line],0)),Table_POSTInfo[[#This Row],[Schedule]]),'Customer Information'!$S$27:$T$34,2,FALSE),\"\"),\"\")","v":""},{"$f":"IFERROR(IF(Table_RetroSummary[[#This Row],[IsActive]],IF(IF(ISNUMBER(MATCH(Table_RetroSummary[[#This Row],[Line Item]],Table_POSTInspection[Line],0)),INDEX(Table_POSTInspection[Interior/ Exterior],MATCH(Table_RetroSummary[[#This Row],[Line Item]],Table_POSTInfo[[#This Row],[Line]],0)),Table_POSTInfo[[#This Row],[Interior/ Exterior]])=\"Interior\",'Customer Information'!$S$25,0),\"\"),\"\")","v":""},{"$f":"IFERROR(IF(Table_RetroSummary[[#This Row],[IsActive]],IF(IF(ISNUMBER(MATCH(Table_RetroSummary[[#This Row],[Line Item]],Table_POSTInspection[Line],0)),INDEX(Table_POSTInspection[Interior/ Exterior],MATCH(Table_RetroSummary[[#This Row],[Line Item]],Table_POSTInfo[[#This Row],[Line]],0)),Table_POSTInfo[[#This Row],[Interior/ Exterior]])=\"Interior\",'Customer Information'!$T$25,0),\"\"),\"\")","v":""},{"$f":"IFERROR(IF(Table_RetroSummary[[#This Row],[IsActive]],IF(IF(ISNUMBER(MATCH(Table_RetroSummary[[#This Row],[Line Item]],Table_POSTInspection[Line],0)),INDEX(Table_POSTInspection[Interior/ Exterior],MATCH(Table_RetroSummary[[#This Row],[Line Item]],Table_POSTInfo[[#This Row],[Line]],0)),Table_POSTInfo[[#This Row],[Interior/ Exterior]])=\"Interior\",'Customer Information'!$U$25,0),\"\"),\"\")","v":""},{"$f":"IFERROR(IF(Table_RetroSummary[[#This Row],[IsActive]],IF(IF(ISNUMBER(MATCH(Table_RetroSummary[[#This Row],[Line Item]],Table_POSTInspection[Line],0)),INDEX(Table_POSTInspection[Interior/ Exterior],MATCH(Table_RetroSummary[[#This Row],[Line Item]],Table_POSTInfo[[#This Row],[Line]],0)),Table_POSTInfo[[#This Row],[Interior/ Exterior]])=\"Interior\",'Customer Information'!$V$25,0),\"\"),\"\")","v":""},{"$f":"IFERROR(IF(Table_RetroSummary[[#This Row],[IsActive]],IF(IF(ISNUMBER(MATCH(Table_RetroSummary[[#This Row],[Line Item]],Table_POSTInspection[Line],0)),INDEX(Table_POSTInspection[Interior/ Exterior],MATCH(Table_RetroSummary[[#This Row],[Line Item]],Table_POSTInfo[[#This Row],[Line]],0)),Table_POSTInfo[[#This Row],[Interior/ Exterior]])=\"Interior\",'Customer Information'!$W$25,0),\"\"),\"\")","v":""},{"$f":"IFERROR(IF(Table_RetroSummary[[#This Row],[IsActive]],IF(IF(ISNUMBER(MATCH(Table_RetroSummary[[#This Row],[Line Item]],Table_POSTInspection[Line],0)),INDEX(Table_POSTInspection[Interior/ Exterior],MATCH(Table_RetroSummary[[#This Row],[Line Item]],Table_POSTInfo[[#This Row],[Line]],0)),Table_POSTInfo[[#This Row],[Interior/ Exterior]])=\"Interior\",'Customer Information'!$X$25,0),\"\"),\"\")","v":""},{"$f":"IFERROR(IF(Table_RetroSummary[[#This Row],[IsActive]],\nCONCATENATE(\nIF(ISNUMBER(MATCH(Table_POSTInfo[[#This Row],[Line]],Table_POSTInspection[Line],0)),INDEX(Table_POSTInspection[Interior/ Exterior],MATCH(Table_RetroSummary[[#This Row],[Line Item]],Table_POSTInspection[Line],0)),Table_POSTInfo[[#This Row],[Interior/ Exterior]]),\n\" - \",\nIF(ISNUMBER(MATCH(Table_POSTInfo[[#This Row],[Line]],Table_POSTInspection[Line],0)),INDEX(Table_POSTInspection[Space Description],MATCH(Table_RetroSummary[[#This Row],[Line Item]],Table_POSTInspection[Line],0)),Table_POSTInfo[[#This Row],[Space Description]])),\n \"\"),\"\")","v":""},{"$f":"IFERROR(IF(Table_RetroSummary[[#This Row],[IsActive]]=\"\",\"\",Table_POSTInfo[[#This Row],[Fixture Description '[E']]]),\"\")","v":""},{"$f":"IFERROR(IF(Table_RetroSummary[[#This Row],[IsActive]]=\"\",\"\",Table_POSTInfo[[#This Row],['# Lamps/ Fixture '[E']]]),\"\")","v":""},{"$f":"IFERROR(IF(Table_RetroSummary[[#This Row],[IsActive]]=\"\",\"\",Table_POSTInfo[[#This Row],[Fixture/ Lamp Wattage '[E']]]),\"\")","v":""},{"$f":"IFERROR(IF(Table_RetroSummary[[#This Row],[IsActive]]=\"\",\"\",Table_POSTInfo[[#This Row],[Fixture Qty '[E']]]),\"\")","v":""},{"$f":"IFERROR(IF(Table_RetroSummary[[#This Row],[IsActive]],Table_RetroSummary[[#This Row],[Fixture/ Lamp Wattage '[E']]]*Table_RetroSummary[[#This Row],[E. Qty]],\"\"),\"\")","v":""},{"$f":"IFERROR(IF(Table_RetroSummary[[#This Row],[IsActive]]=\"\",\"\",Table_POSTInfo[[#This Row],[Fixture Wattage '[E']]]),\"\")","v":""},{"$f":"IFERROR(IF(Table_RetroSummary[[#This Row],[IsActive]],IFERROR(Table_RetroSummary[[#This Row],[Existing Fixture Wattage]]/1000*Table_RetroSummary[[#This Row],[OpHrs]]*Table_RetroSummary[[#This Row],[E. Qty]],0),\"\"),\"\")","v":""},{"$f":"IFERROR(IF(Table_RetroSummary[[#This Row],[IsActive]],IFERROR(VLOOKUP(RIGHT(Table_RetroSummary[[#This Row],[Existing Fixture]],LEN(Table_RetroSummary[[#This Row],[Existing Fixture]])-FIND(\" - \",Table_RetroSummary[[#This Row],[Existing Fixture]],FIND(\"]\",Table_RetroSummary[[#This Row],[Existing Fixture]],1))-2),Table_ControlType[],3,FALSE),0),\"\"),\"\")","v":""},{"$f":"IFERROR(IF(Table_RetroSummary[[#This Row],[IsActive]],IFERROR(Table_RetroSummary[[#This Row],[Existing Fixture Wattage]]/1000*Table_RetroSummary[[#This Row],[OpHrs]]*Table_RetroSummary[[#This Row],[E. Qty]]*Table_RetroSummary[[#This Row],[Existing CSF]]*(-1),0),\"\"),\"\")","v":""},{"$f":"IFERROR(Table_RetroSummary[[#This Row],[Existing Fixture kWh]]+Table_RetroSummary[[#This Row],[Existing Fixture (Existing Controls) kWh]],\"\")","v":""},{"$f":"IFERROR(IF(Table_RetroSummary[[#This Row],[IsActive]],IF(ISNUMBER(MATCH(Table_POSTInfo[[#This Row],[Line]],Table_POSTInspection[Line],0)),INDEX(Table_POSTInspection[Fixture Description '[P']],MATCH(Table_RetroSummary[[#This Row],[Line Item]],Table_POSTInspection[Line],0)),Table_POSTInfo[[#This Row],[Fixture Description '[P']]]),\"\"),\"\")","v":""},{"$f":"IFERROR(IF(Table_RetroSummary[[#This Row],[IsActive]],IF(ISNUMBER(MATCH(Table_POSTInfo[[#This Row],[Line]],Table_POSTInspection[Line],0)),INDEX(Table_POSTInspection['# Lamps/ Fixture '[P']],MATCH(Table_RetroSummary[[#This Row],[Line Item]],Table_POSTInspection[Line],0)),Table_POSTInfo[[#This Row],['# Lamps/ Fixture '[P']]]),\"\"),\"\")","v":""},{"$f":"IFERROR(IF(Table_RetroSummary[[#This Row],[IsActive]],IF(ISNUMBER(MATCH(Table_POSTInfo[[#This Row],[Line]],Table_POSTInspection[Line],0)),INDEX(Table_POSTInspection[Fixture/ Lamp Wattage '[P']],MATCH(Table_RetroSummary[[#This Row],[Line Item]],Table_POSTInspection[Line],0)),Table_POSTInfo[[#This Row],[Fixture/ Lamp Wattage '[P']]]),\"\"),\"\")","v":""},{"$f":"IFERROR(IF(Table_RetroSummary[[#This Row],[IsActive]],IF(ISNUMBER(MATCH(Table_POSTInfo[[#This Row],[Line]],Table_POSTInspection[Line],0)),INDEX(Table_POSTInspection[Fixture Qty '[P']],MATCH(Table_RetroSummary[[#This Row],[Line Item]],Table_POSTInspection[Line],0)),Table_POSTInfo[[#This Row],[Fixture Qty '[P']]]),\"\"),\"\")","v":""},{"$f":"IFERROR(IF(Table_RetroSummary[[#This Row],[IsActive]],Table_RetroSummary[[#This Row],[Fixture/ Lamp Wattage '[P']]]*Table_RetroSummary[[#This Row],[P. Qty]],\"\"),\"\")","v":""},{"$f":"IFERROR(IF(Table_RetroSummary[[#This Row],[IsActive]],IF(ISNUMBER(MATCH(Table_POSTInfo[[#This Row],[Line]],Table_POSTInspection[Line],0)),INDEX(Table_POSTInspection[Fixture Wattage '[P']],MATCH(Table_RetroSummary[[#This Row],[Line Item]],Table_POSTInspection[Line],0)),Table_POSTInfo[[#This Row],[Fixture Wattage '[P']]]),\"\"),\"\")","v":""},{"$f":"IFERROR(Table_RetroSummary[[#This Row],[Total '# Lamps '[P']]]+Table_RetroSummary[[#This Row],[Proposed Fixture Wattage]],\"\")","v":""},{"$f":"IFERROR(Table_RetroSummary[[#This Row],[Proposed Fixture Wattage]]/1000*Table_RetroSummary[[#This Row],[OpHrs]]*Table_RetroSummary[[#This Row],[P. Qty]],\"\")","v":""},{"$f":"IFERROR(IF(Table_RetroSummary[[#This Row],[IsActive]],IFERROR(VLOOKUP(RIGHT(Table_RetroSummary[[#This Row],[Proposed Fixture]],LEN(Table_RetroSummary[[#This Row],[Proposed Fixture]])-FIND(\" - \",Table_RetroSummary[[#This Row],[Proposed Fixture]],FIND(\"]\",Table_RetroSummary[[#This Row],[Proposed Fixture]],1))-2),Table_ControlType[],3, FALSE),0),\"\"),\"\")","v":""},{"$f":"IFERROR(IF(Table_RetroSummary[[#This Row],[IsActive]],IFERROR(Table_RetroSummary[[#This Row],[Proposed Fixture Wattage]]/1000*Table_RetroSummary[[#This Row],[OpHrs]]*Table_RetroSummary[[#This Row],[P. Qty]]*Table_RetroSummary[[#This Row],[Existing CSF]]*(-1),0),\"\"),\"\")","v":""},{"$f":"IFERROR(Table_RetroSummary[[#This Row],[Proposed Fixture kWh]]+Table_RetroSummary[[#This Row],[Proposed Fixture (Existing Controls) kWh]],\"\")","v":""},{"$f":"IFERROR(IF(Table_RetroSummary[[#This Row],[IsActive]],IFERROR(Table_RetroSummary[[#This Row],[Proposed Fixture Wattage]]/1000*Table_RetroSummary[[#This Row],[OpHrs]]*Table_RetroSummary[[#This Row],[P. Qty]]*Table_RetroSummary[[#This Row],[Proposed CSF]]*(-1),0),\"\"),\"\")","v":""},{"$f":"IFERROR(Table_RetroSummary[[#This Row],[Proposed Fixture kWh]]+Table_RetroSummary[[#This Row],[Proposed Fixture (Proposed Controls) kWh]],\"\")","v":""},{"$f":"IFERROR(IF(Table_RetroSummary[[#This Row],[IsActive]],IF(ISNUMBER(MATCH(Table_POSTInfo[[#This Row],[Line]],Table_POSTInspection[Line],0)),INDEX(Table_POSTInspection[DLC or ES Certification '[P']],MATCH(Table_RetroSummary[[#This Row],[Line Item]],Table_POSTInspection[Line],0)),Table_POSTInfo[[#This Row],[DLC or ES Certification '[P']]]),\"\"),\"\")","v":""},null,{"$f":"IFERROR(IF(Table_RetroSummary[[#This Row],[IsActive]],\nIF(AND(RIGHT(Table_RetroSummary[[#This Row],[Existing Fixture]],LEN(Table_RetroSummary[[#This Row],[Existing Fixture]])-FIND(\":\",Table_RetroSummary[[#This Row],[Existing Fixture]],1)-1)<>Table_RetroSummary[[#This Row],[Proposed Fixture]],MID(Table_RetroSummary[[#This Row],[Existing Fixture]],FIND(\": \",Table_RetroSummary[[#This Row],[Existing Fixture]],1)+2,FIND(\"]\",Table_RetroSummary[[#This Row],[Existing Fixture]],1))=LEFT(Table_RetroSummary[[#This Row],[Proposed Fixture]],FIND(\"]\",Table_RetroSummary[[#This Row],[Proposed Fixture]],1))),\n  \"Controls Only\",\n  IF(Table_POSTInfo[[#This Row],[DLC or ES Certification '[P']]]<>\"\",\n    IF(ISNUMBER(FIND(\"LED Tube\",Table_RetroSummary[[#This Row],[Proposed Fixture]],1)),\n      \"LED Re-Lamp\",\n      IF(AND(Table_RetroSummary[[#This Row],[Existing Overall kWh]]>Table_RetroSummary[[#This Row],[Proposed Overall kWh (Existing Controls)]],ISNUMBER(FIND(\"LED\",Table_RetroSummary[[#This Row],[Proposed Fixture]],1))),\n        IF(Table_POSTInfo[[#This Row],[Interior/ Exterior]]=\"Exterior\",\n          \"Exterior LED Fixture\",\n          \"Interior LED Fixture\"),\n        \"Ineligible Fixture\")),\n    \"Ineligible Fixture\")),\n\"\"),\"\")","v":""},{"$f":"IFERROR(VLOOKUP(Table_RetroSummary[[#This Row],[Fixture Measure Description]],Table_FixtureRate[],2,FALSE),\"\")","v":""},{"$f":"IFERROR(IF(Table_RetroSummary[[#This Row],[IsActive]],IF(Table_RetroSummary[[#This Row],[Fixture Measure Description]]=\"Ineligible Fixture\",0,ROUND(Table_RetroSummary[[#This Row],[Fixture Rebate (per kW)]]*(Table_RetroSummary[[#This Row],[Existing Fixture Wattage]]*Table_RetroSummary[[#This Row],[E. Qty]]-Table_RetroSummary[[#This Row],[Proposed Fixture Wattage]]*Table_RetroSummary[[#This Row],[P. Qty]])/1000,2)),\"\"),\"\")","v":""},{"$f":"IFERROR(IF(Table_RetroSummary[[#This Row],[Fixture Measure Description]]=\"Ineligible Fixture\",0,ROUND(IF(ProjectCost_Total=0,300000,ProjectCost_Total)*Table_RetroSummary[[#This Row],[Fixture Rebate]]/SUM(Table_RetroSummary[Fixture Rebate],Table_RetroSummary[Controls Rebate]),2)),\"\")","v":""},{"$f":"IFERROR(IF(Table_RetroSummary[[#This Row],[IsActive]],IF(Table_RetroSummary[[#This Row],[Fixture Measure Description]]=\"Ineligible Fixture\",0,Table_RetroSummary[[#This Row],[Existing Overall kWh]]-Table_RetroSummary[[#This Row],[Proposed Overall kWh (Existing Controls)]]),\"\"),\"\")","v":""},{"$f":"IFERROR(IF(Table_RetroSummary[[#This Row],[IsActive]],IF(Table_RetroSummary[[#This Row],[Fixture Measure Description]]=\"Ineligible Fixture\",0,(Table_RetroSummary[[#This Row],[Existing Fixture kWh]]-Table_RetroSummary[[#This Row],[Proposed Fixture kWh]])/Table_RetroSummary[[#This Row],[OpHrs]]*Table_RetroSummary[[#This Row],[CF (Ltg)]]*Table_RetroSummary[[#This Row],[DF (Ltg)]]),\"\"),\"\")","v":""},null,{"$f":"IFERROR(\n  IF(OR(Table_RetroSummary[[#This Row],[Fixture Measure Description]]=\"\",Table_RetroSummary[[#This Row],[Fixture Measure Description]]=\"Ineligible Fixture\"),\n    \"\",\n    IFERROR(VLOOKUP(RIGHT(Table_RetroSummary[[#This Row],[Existing Fixture]],LEN(Table_RetroSummary[[#This Row],[Existing Fixture]])-FIND(\" - \",Table_RetroSummary[[#This Row],[Existing Fixture]],FIND(\"]\",Table_RetroSummary[[#This Row],[Existing Fixture]],1))-2),Table_ControlType[],2,FALSE),\"None\")\n    & \" - \" &\n    IFERROR(VLOOKUP(RIGHT(Table_RetroSummary[[#This Row],[Proposed Fixture]],LEN(Table_RetroSummary[[#This Row],[Proposed Fixture]])-FIND(\" - \",Table_RetroSummary[[#This Row],[Proposed Fixture]],FIND(\"]\",Table_RetroSummary[[#This Row],[Proposed Fixture]],1))-2),Table_ControlType[],2, FALSE),None)),\n\"\")","v":""},{"$f":"IFERROR(VLOOKUP(Table_RetroSummary[[#This Row],[Controls Measure Description]],Table_ControlRate[],2,FALSE),\"\")","v":""},{"$f":"IFERROR(IF(Table_RetroSummary[[#This Row],[IsActive]],IF(Table_RetroSummary[[#This Row],[Controls Measure Description]]=\"\",0,ROUND(Table_RetroSummary[[#This Row],[Controls Rebate (per Fixt Watt)]]*Table_RetroSummary[[#This Row],[Proposed Fixture Wattage]]*Table_RetroSummary[[#This Row],[P. Qty]],2)),\"\"),\"\")","v":""},{"$f":"IFERROR(IF(Table_RetroSummary[[#This Row],[Fixture Measure Description]]=\"Ineligible Fixture\",0,ROUND(IF(ProjectCost_Total=0,300000,ProjectCost_Total)*Table_RetroSummary[[#This Row],[Controls Rebate]]/SUM(Table_RetroSummary[Fixture Rebate],Table_RetroSummary[Controls Rebate]),2)),\"\")","v":""},{"$f":"IFERROR(IF(Table_RetroSummary[[#This Row],[IsActive]],IF(Table_RetroSummary[[#This Row],[Controls Measure Description]]=\"\",0,(Table_RetroSummary[[#This Row],[Proposed Fixture (Existing Controls) kWh]]-Table_RetroSummary[[#This Row],[Proposed Fixture (Proposed Controls) kWh]])),\"\"),\"\")","v":""},{"$f":"IFERROR(IF(Table_RetroSummary[[#This Row],[IsActive]],IF(Table_RetroSummary[[#This Row],[Controls Measure Description]]=\"\",0,(Table_RetroSummary[[#This Row],[Proposed Fixture (Existing Controls) kWh]]-Table_RetroSummary[[#This Row],[Proposed Fixture (Proposed Controls) kWh]])/Table_RetroSummary[[#This Row],[OpHrs]]*Table_RetroSummary[[#This Row],[CF (Ltg)]]*Table_RetroSummary[[#This Row],[DF (Ltg)]]),\"\"),\"\")","v":""},null,{"$f":"IFERROR(IF(NOT(ISNUMBER(Table_RetroSummary[[#This Row],[Fixture Rebate]])),\"\",IF(MIN(IF(SUM(Table_RetroSummary[Fixture Cost],Table_RetroSummary[Controls Cost])<0,0,SUM(Table_RetroSummary[Fixture Cost],Table_RetroSummary[Controls Cost])),SUM(Table_RetroSummary[Fixture Rebate],Table_RetroSummary[Controls Rebate]))>300000,300000/MIN(IF(SUM(Table_RetroSummary[Fixture Cost],Table_RetroSummary[Controls Cost])<0,0,SUM(Table_RetroSummary[Fixture Cost],Table_RetroSummary[Controls Cost])),SUM(Table_RetroSummary[Fixture Rebate],Table_RetroSummary[Controls Rebate]))*MIN(IF(SUM(Table_RetroSummary[Fixture Cost],Table_RetroSummary[Controls Cost])<0,0,SUM(Table_RetroSummary[Fixture Cost],Table_RetroSummary[Controls Cost])),Table_RetroSummary[[#This Row],[Fixture Rebate]]+IF(Table_RetroSummary[[#This Row],[Controls Rebate]]=\"\",0,Table_RetroSummary[[#This Row],[Controls Rebate]])),MIN(IF(SUM(Table_RetroSummary[Fixture Cost],Table_RetroSummary[Controls Cost])<0,0,SUM(Table_RetroSummary[Fixture Cost],Table_RetroSummary[Controls Cost])),Table_RetroSummary[[#This Row],[Fixture Rebate]]+IF(Table_RetroSummary[[#This Row],[Controls Rebate]]=\"\",0,Table_RetroSummary[[#This Row],[Controls Rebate]])))),\"\")","v":""},{"$f":"IFERROR(IF(Table_RetroSummary[[#This Row],[Fixture Cost]]=\"\",\"\",Table_RetroSummary[[#This Row],[Fixture Cost]]+IF(Table_RetroSummary[[#This Row],[Controls Cost]]=\"\",0,Table_RetroSummary[[#This Row],[Controls Cost]])),\"\")","v":""},{"$f":"IFERROR(IF(Table_RetroSummary[[#This Row],[IsActive]],IF(Table_POSTInfo[[#This Row],[Interior/ Exterior]]=\"Interior\",IFERROR((Table_RetroSummary[[#This Row],[Annual Fixture Savings (kWh)]]+Table_RetroSummary[[#This Row],[Annual Control Savings (kWh)]])*(Table_RetroSummary[[#This Row],[EIF]]-1),0),0),\"\"),\"\")","v":""},{"$f":"IFERROR(IF(Table_RetroSummary[[#This Row],[IsActive]],IF(Table_POSTInfo[[#This Row],[Interior/ Exterior]]=\"Interior\",IFERROR((Table_RetroSummary[[#This Row],[Fixture kW Reduction]]+Table_RetroSummary[[#This Row],[Control kW Reduction]]/(Table_RetroSummary[[#This Row],[CF (Ltg)]]*Table_RetroSummary[[#This Row],[DF (Ltg)]]))*(Table_RetroSummary[[#This Row],[DIF]]-1)*Table_RetroSummary[[#This Row],[CF (HVAC)]]*Table_RetroSummary[[#This Row],[DF (HVAC)]],0),0),\"\"),\"\")","v":""},{"$f":"IFERROR(IF(Table_RetroSummary[[#This Row],[IsActive]],IF(NOT(ISNUMBER(Table_RetroSummary[[#This Row],[Fixture Rebate]])),\"\",ROUND(Table_RetroSummary[[#This Row],[Annual Fixture Savings (kWh)]]+Table_RetroSummary[[#This Row],[Annual Control Savings (kWh)]],0)),\"\"),\"\")","v":""},{"$f":"IFERROR(IF(Table_RetroSummary[[#This Row],[IsActive]],IF(NOT(ISNUMBER(Table_RetroSummary[[#This Row],[Fixture Rebate]])),\"\",ROUND(Table_RetroSummary[[#This Row],[Fixture kW Reduction]]+Table_RetroSummary[[#This Row],[Control kW Reduction]],3)),\"\"),\"\")","v":""},{"$f":"IFERROR(IF(Table_RetroSummary[[#This Row],[IsActive]],IF(NOT(ISNUMBER(Table_RetroSummary[[#This Row],[Fixture Rebate]])),\"\",ROUND(Table_RetroSummary[[#This Row],[Fixture Energy Savings (kWh)]]+Table_RetroSummary[[#This Row],[Induced HVAC Energy Savings (kWh)]],0)),\"\"),\"\")","v":""},{"$f":"IFERROR(IF(Table_RetroSummary[[#This Row],[IsActive]],IF(NOT(ISNUMBER(Table_RetroSummary[[#This Row],[Fixture Rebate]])),\"\",ROUND(Table_RetroSummary[[#This Row],[Fixture Demand Savings (kW)]]+Table_RetroSummary[[#This Row],[Induced HVAC Demand Savings (kW)]],3)),\"\"),\"\")","v":""}]
[{"$f":"IFERROR(Table_POSTInfo[[#This Row],[Line]],\"\")","v":28},{"$f":"IFERROR(Table_POSTInfo[[#This Row],[IsActive]],\"\")","v":false},{"$f":"IFERROR(IF(Table_RetroSummary[[#This Row],[IsActive]],CONCATENATE(Table_RetroSummary[[#This Row],[Existing Fixture]],\" | \",Table_RetroSummary[[#This Row],[Proposed Fixture]]),\"\"),\"\")","v":""},{"$f":"IFERROR(IF(Table_RetroSummary[[#This Row],[IsActive]],VLOOKUP(IF(ISNUMBER(MATCH(Table_POSTInfo[[#This Row],[Line]],Table_POSTInspection[Line],0)),INDEX(Table_POSTInspection[Schedule],MATCH(Table_RetroSummary[[#This Row],[Line Item]],Table_POSTInspection[Line],0)),Table_POSTInfo[[#This Row],[Schedule]]),'Customer Information'!$S$27:$T$34,2,FALSE),\"\"),\"\")","v":""},{"$f":"IFERROR(IF(Table_RetroSummary[[#This Row],[IsActive]],IF(IF(ISNUMBER(MATCH(Table_RetroSummary[[#This Row],[Line Item]],Table_POSTInspection[Line],0)),INDEX(Table_POSTInspection[Interior/ Exterior],MATCH(Table_RetroSummary[[#This Row],[Line Item]],Table_POSTInfo[[#This Row],[Line]],0)),Table_POSTInfo[[#This Row],[Interior/ Exterior]])=\"Interior\",'Customer Information'!$S$25,0),\"\"),\"\")","v":""},{"$f":"IFERROR(IF(Table_RetroSummary[[#This Row],[IsActive]],IF(IF(ISNUMBER(MATCH(Table_RetroSummary[[#This Row],[Line Item]],Table_POSTInspection[Line],0)),INDEX(Table_POSTInspection[Interior/ Exterior],MATCH(Table_RetroSummary[[#This Row],[Line Item]],Table_POSTInfo[[#This Row],[Line]],0)),Table_POSTInfo[[#This Row],[Interior/ Exterior]])=\"Interior\",'Customer Information'!$T$25,0),\"\"),\"\")","v":""},{"$f":"IFERROR(IF(Table_RetroSummary[[#This Row],[IsActive]],IF(IF(ISNUMBER(MATCH(Table_RetroSummary[[#This Row],[Line Item]],Table_POSTInspection[Line],0)),INDEX(Table_POSTInspection[Interior/ Exterior],MATCH(Table_RetroSummary[[#This Row],[Line Item]],Table_POSTInfo[[#This Row],[Line]],0)),Table_POSTInfo[[#This Row],[Interior/ Exterior]])=\"Interior\",'Customer Information'!$U$25,0),\"\"),\"\")","v":""},{"$f":"IFERROR(IF(Table_RetroSummary[[#This Row],[IsActive]],IF(IF(ISNUMBER(MATCH(Table_RetroSummary[[#This Row],[Line Item]],Table_POSTInspection[Line],0)),INDEX(Table_POSTInspection[Interior/ Exterior],MATCH(Table_RetroSummary[[#This Row],[Line Item]],Table_POSTInfo[[#This Row],[Line]],0)),Table_POSTInfo[[#This Row],[Interior/ Exterior]])=\"Interior\",'Customer Information'!$V$25,0),\"\"),\"\")","v":""},{"$f":"IFERROR(IF(Table_RetroSummary[[#This Row],[IsActive]],IF(IF(ISNUMBER(MATCH(Table_RetroSummary[[#This Row],[Line Item]],Table_POSTInspection[Line],0)),INDEX(Table_POSTInspection[Interior/ Exterior],MATCH(Table_RetroSummary[[#This Row],[Line Item]],Table_POSTInfo[[#This Row],[Line]],0)),Table_POSTInfo[[#This Row],[Interior/ Exterior]])=\"Interior\",'Customer Information'!$W$25,0),\"\"),\"\")","v":""},{"$f":"IFERROR(IF(Table_RetroSummary[[#This Row],[IsActive]],IF(IF(ISNUMBER(MATCH(Table_RetroSummary[[#This Row],[Line Item]],Table_POSTInspection[Line],0)),INDEX(Table_POSTInspection[Interior/ Exterior],MATCH(Table_RetroSummary[[#This Row],[Line Item]],Table_POSTInfo[[#This Row],[Line]],0)),Table_POSTInfo[[#This Row],[Interior/ Exterior]])=\"Interior\",'Customer Information'!$X$25,0),\"\"),\"\")","v":""},{"$f":"IFERROR(IF(Table_RetroSummary[[#This Row],[IsActive]],\nCONCATENATE(\nIF(ISNUMBER(MATCH(Table_POSTInfo[[#This Row],[Line]],Table_POSTInspection[Line],0)),INDEX(Table_POSTInspection[Interior/ Exterior],MATCH(Table_RetroSummary[[#This Row],[Line Item]],Table_POSTInspection[Line],0)),Table_POSTInfo[[#This Row],[Interior/ Exterior]]),\n\" - \",\nIF(ISNUMBER(MATCH(Table_POSTInfo[[#This Row],[Line]],Table_POSTInspection[Line],0)),INDEX(Table_POSTInspection[Space Description],MATCH(Table_RetroSummary[[#This Row],[Line Item]],Table_POSTInspection[Line],0)),Table_POSTInfo[[#This Row],[Space Description]])),\n \"\"),\"\")","v":""},{"$f":"IFERROR(IF(Table_RetroSummary[[#This Row],[IsActive]]=\"\",\"\",Table_POSTInfo[[#This Row],[Fixture Description '[E']]]),\"\")","v":""},{"$f":"IFERROR(IF(Table_RetroSummary[[#This Row],[IsActive]]=\"\",\"\",Table_POSTInfo[[#This Row],['# Lamps/ Fixture '[E']]]),\"\")","v":""},{"$f":"IFERROR(IF(Table_RetroSummary[[#This Row],[IsActive]]=\"\",\"\",Table_POSTInfo[[#This Row],[Fixture/ Lamp Wattage '[E']]]),\"\")","v":""},{"$f":"IFERROR(IF(Table_RetroSummary[[#This Row],[IsActive]]=\"\",\"\",Table_POSTInfo[[#This Row],[Fixture Qty '[E']]]),\"\")","v":""},{"$f":"IFERROR(IF(Table_RetroSummary[[#This Row],[IsActive]],Table_RetroSummary[[#This Row],[Fixture/ Lamp Wattage '[E']]]*Table_RetroSummary[[#This Row],[E. Qty]],\"\"),\"\")","v":""},{"$f":"IFERROR(IF(Table_RetroSummary[[#This Row],[IsActive]]=\"\",\"\",Table_POSTInfo[[#This Row],[Fixture Wattage '[E']]]),\"\")","v":""},{"$f":"IFERROR(IF(Table_RetroSummary[[#This Row],[IsActive]],IFERROR(Table_RetroSummary[[#This Row],[Existing Fixture Wattage]]/1000*Table_RetroSummary[[#This Row],[OpHrs]]*Table_RetroSummary[[#This Row],[E. Qty]],0),\"\"),\"\")","v":""},{"$f":"IFERROR(IF(Table_RetroSummary[[#This Row],[IsActive]],IFERROR(VLOOKUP(RIGHT(Table_RetroSummary[[#This Row],[Existing Fixture]],LEN(Table_RetroSummary[[#This Row],[Existing Fixture]])-FIND(\" - \",Table_RetroSummary[[#This Row],[Existing Fixture]],FIND(\"]\",Table_RetroSummary[[#This Row],[Existing Fixture]],1))-2),Table_ControlType[],3,FALSE),0),\"\"),\"\")","v":""},{"$f":"IFERROR(IF(Table_RetroSummary[[#This Row],[IsActive]],IFERROR(Table_RetroSummary[[#This Row],[Existing Fixture Wattage]]/1000*Table_RetroSummary[[#This Row],[OpHrs]]*Table_RetroSummary[[#This Row],[E. Qty]]*Table_RetroSummary[[#This Row],[Existing CSF]]*(-1),0),\"\"),\"\")","v":""},{"$f":"IFERROR(Table_RetroSummary[[#This Row],[Existing Fixture kWh]]+Table_RetroSummary[[#This Row],[Existing Fixture (Existing Controls) kWh]],\"\")","v":""},{"$f":"IFERROR(IF(Table_RetroSummary[[#This Row],[IsActive]],IF(ISNUMBER(MATCH(Table_POSTInfo[[#This Row],[Line]],Table_POSTInspection[Line],0)),INDEX(Table_POSTInspection[Fixture Description '[P']],MATCH(Table_RetroSummary[[#This Row],[Line Item]],Table_POSTInspection[Line],0)),Table_POSTInfo[[#This Row],[Fixture Description '[P']]]),\"\"),\"\")","v":""},{"$f":"IFERROR(IF(Table_RetroSummary[[#This Row],[IsActive]],IF(ISNUMBER(MATCH(Table_POSTInfo[[#This Row],[Line]],Table_POSTInspection[Line],0)),INDEX(Table_POSTInspection['# Lamps/ Fixture '[P']],MATCH(Table_RetroSummary[[#This Row],[Line Item]],Table_POSTInspection[Line],0)),Table_POSTInfo[[#This Row],['# Lamps/ Fixture '[P']]]),\"\"),\"\")","v":""},{"$f":"IFERROR(IF(Table_RetroSummary[[#This Row],[IsActive]],IF(ISNUMBER(MATCH(Table_POSTInfo[[#This Row],[Line]],Table_POSTInspection[Line],0)),INDEX(Table_POSTInspection[Fixture/ Lamp Wattage '[P']],MATCH(Table_RetroSummary[[#This Row],[Line Item]],Table_POSTInspection[Line],0)),Table_POSTInfo[[#This Row],[Fixture/ Lamp Wattage '[P']]]),\"\"),\"\")","v":""},{"$f":"IFERROR(IF(Table_RetroSummary[[#This Row],[IsActive]],IF(ISNUMBER(MATCH(Table_POSTInfo[[#This Row],[Line]],Table_POSTInspection[Line],0)),INDEX(Table_POSTInspection[Fixture Qty '[P']],MATCH(Table_RetroSummary[[#This Row],[Line Item]],Table_POSTInspection[Line],0)),Table_POSTInfo[[#This Row],[Fixture Qty '[P']]]),\"\"),\"\")","v":""},{"$f":"IFERROR(IF(Table_RetroSummary[[#This Row],[IsActive]],Table_RetroSummary[[#This Row],[Fixture/ Lamp Wattage '[P']]]*Table_RetroSummary[[#This Row],[P. Qty]],\"\"),\"\")","v":""},{"$f":"IFERROR(IF(Table_RetroSummary[[#This Row],[IsActive]],IF(ISNUMBER(MATCH(Table_POSTInfo[[#This Row],[Line]],Table_POSTInspection[Line],0)),INDEX(Table_POSTInspection[Fixture Wattage '[P']],MATCH(Table_RetroSummary[[#This Row],[Line Item]],Table_POSTInspection[Line],0)),Table_POSTInfo[[#This Row],[Fixture Wattage '[P']]]),\"\"),\"\")","v":""},{"$f":"IFERROR(Table_RetroSummary[[#This Row],[Total '# Lamps '[P']]]+Table_RetroSummary[[#This Row],[Proposed Fixture Wattage]],\"\")","v":""},{"$f":"IFERROR(Table_RetroSummary[[#This Row],[Proposed Fixture Wattage]]/1000*Table_RetroSummary[[#This Row],[OpHrs]]*Table_RetroSummary[[#This Row],[P. Qty]],\"\")","v":""},{"$f":"IFERROR(IF(Table_RetroSummary[[#This Row],[IsActive]],IFERROR(VLOOKUP(RIGHT(Table_RetroSummary[[#This Row],[Proposed Fixture]],LEN(Table_RetroSummary[[#This Row],[Proposed Fixture]])-FIND(\" - \",Table_RetroSummary[[#This Row],[Proposed Fixture]],FIND(\"]\",Table_RetroSummary[[#This Row],[Proposed Fixture]],1))-2),Table_ControlType[],3, FALSE),0),\"\"),\"\")","v":""},{"$f":"IFERROR(IF(Table_RetroSummary[[#This Row],[IsActive]],IFERROR(Table_RetroSummary[[#This Row],[Proposed Fixture Wattage]]/1000*Table_RetroSummary[[#This Row],[OpHrs]]*Table_RetroSummary[[#This Row],[P. Qty]]*Table_RetroSummary[[#This Row],[Existing CSF]]*(-1),0),\"\"),\"\")","v":""},{"$f":"IFERROR(Table_RetroSummary[[#This Row],[Proposed Fixture kWh]]+Table_RetroSummary[[#This Row],[Proposed Fixture (Existing Controls) kWh]],\"\")","v":""},{"$f":"IFERROR(IF(Table_RetroSummary[[#This Row],[IsActive]],IFERROR(Table_RetroSummary[[#This Row],[Proposed Fixture Wattage]]/1000*Table_RetroSummary[[#This Row],[OpHrs]]*Table_RetroSummary[[#This Row],[P. Qty]]*Table_RetroSummary[[#This Row],[Proposed CSF]]*(-1),0),\"\"),\"\")","v":""},{"$f":"IFERROR(Table_RetroSummary[[#This Row],[Proposed Fixture kWh]]+Table_RetroSummary[[#This Row],[Proposed Fixture (Proposed Controls) kWh]],\"\")","v":""},{"$f":"IFERROR(IF(Table_RetroSummary[[#This Row],[IsActive]],IF(ISNUMBER(MATCH(Table_POSTInfo[[#This Row],[Line]],Table_POSTInspection[Line],0)),INDEX(Table_POSTInspection[DLC or ES Certification '[P']],MATCH(Table_RetroSummary[[#This Row],[Line Item]],Table_POSTInspection[Line],0)),Table_POSTInfo[[#This Row],[DLC or ES Certification '[P']]]),\"\"),\"\")","v":""},null,{"$f":"IFERROR(IF(Table_RetroSummary[[#This Row],[IsActive]],\nIF(AND(RIGHT(Table_RetroSummary[[#This Row],[Existing Fixture]],LEN(Table_RetroSummary[[#This Row],[Existing Fixture]])-FIND(\":\",Table_RetroSummary[[#This Row],[Existing Fixture]],1)-1)<>Table_RetroSummary[[#This Row],[Proposed Fixture]],MID(Table_RetroSummary[[#This Row],[Existing Fixture]],FIND(\": \",Table_RetroSummary[[#This Row],[Existing Fixture]],1)+2,FIND(\"]\",Table_RetroSummary[[#This Row],[Existing Fixture]],1))=LEFT(Table_RetroSummary[[#This Row],[Proposed Fixture]],FIND(\"]\",Table_RetroSummary[[#This Row],[Proposed Fixture]],1))),\n  \"Controls Only\",\n  IF(Table_POSTInfo[[#This Row],[DLC or ES Certification '[P']]]<>\"\",\n    IF(ISNUMBER(FIND(\"LED Tube\",Table_RetroSummary[[#This Row],[Proposed Fixture]],1)),\n      \"LED Re-Lamp\",\n      IF(AND(Table_RetroSummary[[#This Row],[Existing Overall kWh]]>Table_RetroSummary[[#This Row],[Proposed Overall kWh (Existing Controls)]],ISNUMBER(FIND(\"LED\",Table_RetroSummary[[#This Row],[Proposed Fixture]],1))),\n        IF(Table_POSTInfo[[#This Row],[Interior/ Exterior]]=\"Exterior\",\n          \"Exterior LED Fixture\",\n          \"Interior LED Fixture\"),\n        \"Ineligible Fixture\")),\n    \"Ineligible Fixture\")),\n\"\"),\"\")","v":""},{"$f":"IFERROR(VLOOKUP(Table_RetroSummary[[#This Row],[Fixture Measure Description]],Table_FixtureRate[],2,FALSE),\"\")","v":""},{"$f":"IFERROR(IF(Table_RetroSummary[[#This Row],[IsActive]],IF(Table_RetroSummary[[#This Row],[Fixture Measure Description]]=\"Ineligible Fixture\",0,ROUND(Table_RetroSummary[[#This Row],[Fixture Rebate (per kW)]]*(Table_RetroSummary[[#This Row],[Existing Fixture Wattage]]*Table_RetroSummary[[#This Row],[E. Qty]]-Table_RetroSummary[[#This Row],[Proposed Fixture Wattage]]*Table_RetroSummary[[#This Row],[P. Qty]])/1000,2)),\"\"),\"\")","v":""},{"$f":"IFERROR(IF(Table_RetroSummary[[#This Row],[Fixture Measure Description]]=\"Ineligible Fixture\",0,ROUND(IF(ProjectCost_Total=0,300000,ProjectCost_Total)*Table_RetroSummary[[#This Row],[Fixture Rebate]]/SUM(Table_RetroSummary[Fixture Rebate],Table_RetroSummary[Controls Rebate]),2)),\"\")","v":""},{"$f":"IFERROR(IF(Table_RetroSummary[[#This Row],[IsActive]],IF(Table_RetroSummary[[#This Row],[Fixture Measure Description]]=\"Ineligible Fixture\",0,Table_RetroSummary[[#This Row],[Existing Overall kWh]]-Table_RetroSummary[[#This Row],[Proposed Overall kWh (Existing Controls)]]),\"\"),\"\")","v":""},{"$f":"IFERROR(IF(Table_RetroSummary[[#This Row],[IsActive]],IF(Table_RetroSummary[[#This Row],[Fixture Measure Description]]=\"Ineligible Fixture\",0,(Table_RetroSummary[[#This Row],[Existing Fixture kWh]]-Table_RetroSummary[[#This Row],[Proposed Fixture kWh]])/Table_RetroSummary[[#This Row],[OpHrs]]*Table_RetroSummary[[#This Row],[CF (Ltg)]]*Table_RetroSummary[[#This Row],[DF (Ltg)]]),\"\"),\"\")","v":""},null,{"$f":"IFERROR(\n  IF(OR(Table_RetroSummary[[#This Row],[Fixture Measure Description]]=\"\",Table_RetroSummary[[#This Row],[Fixture Measure Description]]=\"Ineligible Fixture\"),\n    \"\",\n    IFERROR(VLOOKUP(RIGHT(Table_RetroSummary[[#This Row],[Existing Fixture]],LEN(Table_RetroSummary[[#This Row],[Existing Fixture]])-FIND(\" - \",Table_RetroSummary[[#This Row],[Existing Fixture]],FIND(\"]\",Table_RetroSummary[[#This Row],[Existing Fixture]],1))-2),Table_ControlType[],2,FALSE),\"None\")\n    & \" - \" &\n    IFERROR(VLOOKUP(RIGHT(Table_RetroSummary[[#This Row],[Proposed Fixture]],LEN(Table_RetroSummary[[#This Row],[Proposed Fixture]])-FIND(\" - \",Table_RetroSummary[[#This Row],[Proposed Fixture]],FIND(\"]\",Table_RetroSummary[[#This Row],[Proposed Fixture]],1))-2),Table_ControlType[],2, FALSE),None)),\n\"\")","v":""},{"$f":"IFERROR(VLOOKUP(Table_RetroSummary[[#This Row],[Controls Measure Description]],Table_ControlRate[],2,FALSE),\"\")","v":""},{"$f":"IFERROR(IF(Table_RetroSummary[[#This Row],[IsActive]],IF(Table_RetroSummary[[#This Row],[Controls Measure Description]]=\"\",0,ROUND(Table_RetroSummary[[#This Row],[Controls Rebate (per Fixt Watt)]]*Table_RetroSummary[[#This Row],[Proposed Fixture Wattage]]*Table_RetroSummary[[#This Row],[P. Qty]],2)),\"\"),\"\")","v":""},{"$f":"IFERROR(IF(Table_RetroSummary[[#This Row],[Fixture Measure Description]]=\"Ineligible Fixture\",0,ROUND(IF(ProjectCost_Total=0,300000,ProjectCost_Total)*Table_RetroSummary[[#This Row],[Controls Rebate]]/SUM(Table_RetroSummary[Fixture Rebate],Table_RetroSummary[Controls Rebate]),2)),\"\")","v":""},{"$f":"IFERROR(IF(Table_RetroSummary[[#This Row],[IsActive]],IF(Table_RetroSummary[[#This Row],[Controls Measure Description]]=\"\",0,(Table_RetroSummary[[#This Row],[Proposed Fixture (Existing Controls) kWh]]-Table_RetroSummary[[#This Row],[Proposed Fixture (Proposed Controls) kWh]])),\"\"),\"\")","v":""},{"$f":"IFERROR(IF(Table_RetroSummary[[#This Row],[IsActive]],IF(Table_RetroSummary[[#This Row],[Controls Measure Description]]=\"\",0,(Table_RetroSummary[[#This Row],[Proposed Fixture (Existing Controls) kWh]]-Table_RetroSummary[[#This Row],[Proposed Fixture (Proposed Controls) kWh]])/Table_RetroSummary[[#This Row],[OpHrs]]*Table_RetroSummary[[#This Row],[CF (Ltg)]]*Table_RetroSummary[[#This Row],[DF (Ltg)]]),\"\"),\"\")","v":""},null,{"$f":"IFERROR(IF(NOT(ISNUMBER(Table_RetroSummary[[#This Row],[Fixture Rebate]])),\"\",IF(MIN(IF(SUM(Table_RetroSummary[Fixture Cost],Table_RetroSummary[Controls Cost])<0,0,SUM(Table_RetroSummary[Fixture Cost],Table_RetroSummary[Controls Cost])),SUM(Table_RetroSummary[Fixture Rebate],Table_RetroSummary[Controls Rebate]))>300000,300000/MIN(IF(SUM(Table_RetroSummary[Fixture Cost],Table_RetroSummary[Controls Cost])<0,0,SUM(Table_RetroSummary[Fixture Cost],Table_RetroSummary[Controls Cost])),SUM(Table_RetroSummary[Fixture Rebate],Table_RetroSummary[Controls Rebate]))*MIN(IF(SUM(Table_RetroSummary[Fixture Cost],Table_RetroSummary[Controls Cost])<0,0,SUM(Table_RetroSummary[Fixture Cost],Table_RetroSummary[Controls Cost])),Table_RetroSummary[[#This Row],[Fixture Rebate]]+IF(Table_RetroSummary[[#This Row],[Controls Rebate]]=\"\",0,Table_RetroSummary[[#This Row],[Controls Rebate]])),MIN(IF(SUM(Table_RetroSummary[Fixture Cost],Table_RetroSummary[Controls Cost])<0,0,SUM(Table_RetroSummary[Fixture Cost],Table_RetroSummary[Controls Cost])),Table_RetroSummary[[#This Row],[Fixture Rebate]]+IF(Table_RetroSummary[[#This Row],[Controls Rebate]]=\"\",0,Table_RetroSummary[[#This Row],[Controls Rebate]])))),\"\")","v":""},{"$f":"IFERROR(IF(Table_RetroSummary[[#This Row],[Fixture Cost]]=\"\",\"\",Table_RetroSummary[[#This Row],[Fixture Cost]]+IF(Table_RetroSummary[[#This Row],[Controls Cost]]=\"\",0,Table_RetroSummary[[#This Row],[Controls Cost]])),\"\")","v":""},{"$f":"IFERROR(IF(Table_RetroSummary[[#This Row],[IsActive]],IF(Table_POSTInfo[[#This Row],[Interior/ Exterior]]=\"Interior\",IFERROR((Table_RetroSummary[[#This Row],[Annual Fixture Savings (kWh)]]+Table_RetroSummary[[#This Row],[Annual Control Savings (kWh)]])*(Table_RetroSummary[[#This Row],[EIF]]-1),0),0),\"\"),\"\")","v":""},{"$f":"IFERROR(IF(Table_RetroSummary[[#This Row],[IsActive]],IF(Table_POSTInfo[[#This Row],[Interior/ Exterior]]=\"Interior\",IFERROR((Table_RetroSummary[[#This Row],[Fixture kW Reduction]]+Table_RetroSummary[[#This Row],[Control kW Reduction]]/(Table_RetroSummary[[#This Row],[CF (Ltg)]]*Table_RetroSummary[[#This Row],[DF (Ltg)]]))*(Table_RetroSummary[[#This Row],[DIF]]-1)*Table_RetroSummary[[#This Row],[CF (HVAC)]]*Table_RetroSummary[[#This Row],[DF (HVAC)]],0),0),\"\"),\"\")","v":""},{"$f":"IFERROR(IF(Table_RetroSummary[[#This Row],[IsActive]],IF(NOT(ISNUMBER(Table_RetroSummary[[#This Row],[Fixture Rebate]])),\"\",ROUND(Table_RetroSummary[[#This Row],[Annual Fixture Savings (kWh)]]+Table_RetroSummary[[#This Row],[Annual Control Savings (kWh)]],0)),\"\"),\"\")","v":""},{"$f":"IFERROR(IF(Table_RetroSummary[[#This Row],[IsActive]],IF(NOT(ISNUMBER(Table_RetroSummary[[#This Row],[Fixture Rebate]])),\"\",ROUND(Table_RetroSummary[[#This Row],[Fixture kW Reduction]]+Table_RetroSummary[[#This Row],[Control kW Reduction]],3)),\"\"),\"\")","v":""},{"$f":"IFERROR(IF(Table_RetroSummary[[#This Row],[IsActive]],IF(NOT(ISNUMBER(Table_RetroSummary[[#This Row],[Fixture Rebate]])),\"\",ROUND(Table_RetroSummary[[#This Row],[Fixture Energy Savings (kWh)]]+Table_RetroSummary[[#This Row],[Induced HVAC Energy Savings (kWh)]],0)),\"\"),\"\")","v":""},{"$f":"IFERROR(IF(Table_RetroSummary[[#This Row],[IsActive]],IF(NOT(ISNUMBER(Table_RetroSummary[[#This Row],[Fixture Rebate]])),\"\",ROUND(Table_RetroSummary[[#This Row],[Fixture Demand Savings (kW)]]+Table_RetroSummary[[#This Row],[Induced HVAC Demand Savings (kW)]],3)),\"\"),\"\")","v":""}]
[{"$f":"IFERROR(Table_POSTInfo[[#This Row],[Line]],\"\")","v":29},{"$f":"IFERROR(Table_POSTInfo[[#This Row],[IsActive]],\"\")","v":false},{"$f":"IFERROR(IF(Table_RetroSummary[[#This Row],[IsActive]],CONCATENATE(Table_RetroSummary[[#This Row],[Existing Fixture]],\" | \",Table_RetroSummary[[#This Row],[Proposed Fixture]]),\"\"),\"\")","v":""},{"$f":"IFERROR(IF(Table_RetroSummary[[#This Row],[IsActive]],VLOOKUP(IF(ISNUMBER(MATCH(Table_POSTInfo[[#This Row],[Line]],Table_POSTInspection[Line],0)),INDEX(Table_POSTInspection[Schedule],MATCH(Table_RetroSummary[[#This Row],[Line Item]],Table_POSTInspection[Line],0)),Table_POSTInfo[[#This Row],[Schedule]]),'Customer Information'!$S$27:$T$34,2,FALSE),\"\"),\"\")","v":""},{"$f":"IFERROR(IF(Table_RetroSummary[[#This Row],[IsActive]],IF(IF(ISNUMBER(MATCH(Table_RetroSummary[[#This Row],[Line Item]],Table_POSTInspection[Line],0)),INDEX(Table_POSTInspection[Interior/ Exterior],MATCH(Table_RetroSummary[[#This Row],[Line Item]],Table_POSTInfo[[#This Row],[Line]],0)),Table_POSTInfo[[#This Row],[Interior/ Exterior]])=\"Interior\",'Customer Information'!$S$25,0),\"\"),\"\")","v":""},{"$f":"IFERROR(IF(Table_RetroSummary[[#This Row],[IsActive]],IF(IF(ISNUMBER(MATCH(Table_RetroSummary[[#This Row],[Line Item]],Table_POSTInspection[Line],0)),INDEX(Table_POSTInspection[Interior/ Exterior],MATCH(Table_RetroSummary[[#This Row],[Line Item]],Table_POSTInfo[[#This Row],[Line]],0)),Table_POSTInfo[[#This Row],[Interior/ Exterior]])=\"Interior\",'Customer Information'!$T$25,0),\"\"),\"\")","v":""},{"$f":"IFERROR(IF(Table_RetroSummary[[#This Row],[IsActive]],IF(IF(ISNUMBER(MATCH(Table_RetroSummary[[#This Row],[Line Item]],Table_POSTInspection[Line],0)),INDEX(Table_POSTInspection[Interior/ Exterior],MATCH(Table_RetroSummary[[#This Row],[Line Item]],Table_POSTInfo[[#This Row],[Line]],0)),Table_POSTInfo[[#This Row],[Interior/ Exterior]])=\"Interior\",'Customer Information'!$U$25,0),\"\"),\"\")","v":""},{"$f":"IFERROR(IF(Table_RetroSummary[[#This Row],[IsActive]],IF(IF(ISNUMBER(MATCH(Table_RetroSummary[[#This Row],[Line Item]],Table_POSTInspection[Line],0)),INDEX(Table_POSTInspection[Interior/ Exterior],MATCH(Table_RetroSummary[[#This Row],[Line Item]],Table_POSTInfo[[#This Row],[Line]],0)),Table_POSTInfo[[#This Row],[Interior/ Exterior]])=\"Interior\",'Customer Information'!$V$25,0),\"\"),\"\")","v":""},{"$f":"IFERROR(IF(Table_RetroSummary[[#This Row],[IsActive]],IF(IF(ISNUMBER(MATCH(Table_RetroSummary[[#This Row],[Line Item]],Table_POSTInspection[Line],0)),INDEX(Table_POSTInspection[Interior/ Exterior],MATCH(Table_RetroSummary[[#This Row],[Line Item]],Table_POSTInfo[[#This Row],[Line]],0)),Table_POSTInfo[[#This Row],[Interior/ Exterior]])=\"Interior\",'Customer Information'!$W$25,0),\"\"),\"\")","v":""},{"$f":"IFERROR(IF(Table_RetroSummary[[#This Row],[IsActive]],IF(IF(ISNUMBER(MATCH(Table_RetroSummary[[#This Row],[Line Item]],Table_POSTInspection[Line],0)),INDEX(Table_POSTInspection[Interior/ Exterior],MATCH(Table_RetroSummary[[#This Row],[Line Item]],Table_POSTInfo[[#This Row],[Line]],0)),Table_POSTInfo[[#This Row],[Interior/ Exterior]])=\"Interior\",'Customer Information'!$X$25,0),\"\"),\"\")","v":""},{"$f":"IFERROR(IF(Table_RetroSummary[[#This Row],[IsActive]],\nCONCATENATE(\nIF(ISNUMBER(MATCH(Table_POSTInfo[[#This Row],[Line]],Table_POSTInspection[Line],0)),INDEX(Table_POSTInspection[Interior/ Exterior],MATCH(Table_RetroSummary[[#This Row],[Line Item]],Table_POSTInspection[Line],0)),Table_POSTInfo[[#This Row],[Interior/ Exterior]]),\n\" - \",\nIF(ISNUMBER(MATCH(Table_POSTInfo[[#This Row],[Line]],Table_POSTInspection[Line],0)),INDEX(Table_POSTInspection[Space Description],MATCH(Table_RetroSummary[[#This Row],[Line Item]],Table_POSTInspection[Line],0)),Table_POSTInfo[[#This Row],[Space Description]])),\n \"\"),\"\")","v":""},{"$f":"IFERROR(IF(Table_RetroSummary[[#This Row],[IsActive]]=\"\",\"\",Table_POSTInfo[[#This Row],[Fixture Description '[E']]]),\"\")","v":""},{"$f":"IFERROR(IF(Table_RetroSummary[[#This Row],[IsActive]]=\"\",\"\",Table_POSTInfo[[#This Row],['# Lamps/ Fixture '[E']]]),\"\")","v":""},{"$f":"IFERROR(IF(Table_RetroSummary[[#This Row],[IsActive]]=\"\",\"\",Table_POSTInfo[[#This Row],[Fixture/ Lamp Wattage '[E']]]),\"\")","v":""},{"$f":"IFERROR(IF(Table_RetroSummary[[#This Row],[IsActive]]=\"\",\"\",Table_POSTInfo[[#This Row],[Fixture Qty '[E']]]),\"\")","v":""},{"$f":"IFERROR(IF(Table_RetroSummary[[#This Row],[IsActive]],Table_RetroSummary[[#This Row],[Fixture/ Lamp Wattage '[E']]]*Table_RetroSummary[[#This Row],[E. Qty]],\"\"),\"\")","v":""},{"$f":"IFERROR(IF(Table_RetroSummary[[#This Row],[IsActive]]=\"\",\"\",Table_POSTInfo[[#This Row],[Fixture Wattage '[E']]]),\"\")","v":""},{"$f":"IFERROR(IF(Table_RetroSummary[[#This Row],[IsActive]],IFERROR(Table_RetroSummary[[#This Row],[Existing Fixture Wattage]]/1000*Table_RetroSummary[[#This Row],[OpHrs]]*Table_RetroSummary[[#This Row],[E. Qty]],0),\"\"),\"\")","v":""},{"$f":"IFERROR(IF(Table_RetroSummary[[#This Row],[IsActive]],IFERROR(VLOOKUP(RIGHT(Table_RetroSummary[[#This Row],[Existing Fixture]],LEN(Table_RetroSummary[[#This Row],[Existing Fixture]])-FIND(\" - \",Table_RetroSummary[[#This Row],[Existing Fixture]],FIND(\"]\",Table_RetroSummary[[#This Row],[Existing Fixture]],1))-2),Table_ControlType[],3,FALSE),0),\"\"),\"\")","v":""},{"$f":"IFERROR(IF(Table_RetroSummary[[#This Row],[IsActive]],IFERROR(Table_RetroSummary[[#This Row],[Existing Fixture Wattage]]/1000*Table_RetroSummary[[#This Row],[OpHrs]]*Table_RetroSummary[[#This Row],[E. Qty]]*Table_RetroSummary[[#This Row],[Existing CSF]]*(-1),0),\"\"),\"\")","v":""},{"$f":"IFERROR(Table_RetroSummary[[#This Row],[Existing Fixture kWh]]+Table_RetroSummary[[#This Row],[Existing Fixture (Existing Controls) kWh]],\"\")","v":""},{"$f":"IFERROR(IF(Table_RetroSummary[[#This Row],[IsActive]],IF(ISNUMBER(MATCH(Table_POSTInfo[[#This Row],[Line]],Table_POSTInspection[Line],0)),INDEX(Table_POSTInspection[Fixture Description '[P']],MATCH(Table_RetroSummary[[#This Row],[Line Item]],Table_POSTInspection[Line],0)),Table_POSTInfo[[#This Row],[Fixture Description '[P']]]),\"\"),\"\")","v":""},{"$f":"IFERROR(IF(Table_RetroSummary[[#This Row],[IsActive]],IF(ISNUMBER(MATCH(Table_POSTInfo[[#This Row],[Line]],Table_POSTInspection[Line],0)),INDEX(Table_POSTInspection['# Lamps/ Fixture '[P']],MATCH(Table_RetroSummary[[#This Row],[Line Item]],Table_POSTInspection[Line],0)),Table_POSTInfo[[#This Row],['# Lamps/ Fixture '[P']]]),\"\"),\"\")","v":""},{"$f":"IFERROR(IF(Table_RetroSummary[[#This Row],[IsActive]],IF(ISNUMBER(MATCH(Table_POSTInfo[[#This Row],[Line]],Table_POSTInspection[Line],0)),INDEX(Table_POSTInspection[Fixture/ Lamp Wattage '[P']],MATCH(Table_RetroSummary[[#This Row],[Line Item]],Table_POSTInspection[Line],0)),Table_POSTInfo[[#This Row],[Fixture/ Lamp Wattage '[P']]]),\"\"),\"\")","v":""},{"$f":"IFERROR(IF(Table_RetroSummary[[#This Row],[IsActive]],IF(ISNUMBER(MATCH(Table_POSTInfo[[#This Row],[Line]],Table_POSTInspection[Line],0)),INDEX(Table_POSTInspection[Fixture Qty '[P']],MATCH(Table_RetroSummary[[#This Row],[Line Item]],Table_POSTInspection[Line],0)),Table_POSTInfo[[#This Row],[Fixture Qty '[P']]]),\"\"),\"\")","v":""},{"$f":"IFERROR(IF(Table_RetroSummary[[#This Row],[IsActive]],Table_RetroSummary[[#This Row],[Fixture/ Lamp Wattage '[P']]]*Table_RetroSummary[[#This Row],[P. Qty]],\"\"),\"\")","v":""},{"$f":"IFERROR(IF(Table_RetroSummary[[#This Row],[IsActive]],IF(ISNUMBER(MATCH(Table_POSTInfo[[#This Row],[Line]],Table_POSTInspection[Line],0)),INDEX(Table_POSTInspection[Fixture Wattage '[P']],MATCH(Table_RetroSummary[[#This Row],[Line Item]],Table_POSTInspection[Line],0)),Table_POSTInfo[[#This Row],[Fixture Wattage '[P']]]),\"\"),\"\")","v":""},{"$f":"IFERROR(Table_RetroSummary[[#This Row],[Total '# Lamps '[P']]]+Table_RetroSummary[[#This Row],[Proposed Fixture Wattage]],\"\")","v":""},{"$f":"IFERROR(Table_RetroSummary[[#This Row],[Proposed Fixture Wattage]]/1000*Table_RetroSummary[[#This Row],[OpHrs]]*Table_RetroSummary[[#This Row],[P. Qty]],\"\")","v":""},{"$f":"IFERROR(IF(Table_RetroSummary[[#This Row],[IsActive]],IFERROR(VLOOKUP(RIGHT(Table_RetroSummary[[#This Row],[Proposed Fixture]],LEN(Table_RetroSummary[[#This Row],[Proposed Fixture]])-FIND(\" - \",Table_RetroSummary[[#This Row],[Proposed Fixture]],FIND(\"]\",Table_RetroSummary[[#This Row],[Proposed Fixture]],1))-2),Table_ControlType[],3, FALSE),0),\"\"),\"\")","v":""},{"$f":"IFERROR(IF(Table_RetroSummary[[#This Row],[IsActive]],IFERROR(Table_RetroSummary[[#This Row],[Proposed Fixture Wattage]]/1000*Table_RetroSummary[[#This Row],[OpHrs]]*Table_RetroSummary[[#This Row],[P. Qty]]*Table_RetroSummary[[#This Row],[Existing CSF]]*(-1),0),\"\"),\"\")","v":""},{"$f":"IFERROR(Table_RetroSummary[[#This Row],[Proposed Fixture kWh]]+Table_RetroSummary[[#This Row],[Proposed Fixture (Existing Controls) kWh]],\"\")","v":""},{"$f":"IFERROR(IF(Table_RetroSummary[[#This Row],[IsActive]],IFERROR(Table_RetroSummary[[#This Row],[Proposed Fixture Wattage]]/1000*Table_RetroSummary[[#This Row],[OpHrs]]*Table_RetroSummary[[#This Row],[P. Qty]]*Table_RetroSummary[[#This Row],[Proposed CSF]]*(-1),0),\"\"),\"\")","v":""},{"$f":"IFERROR(Table_RetroSummary[[#This Row],[Proposed Fixture kWh]]+Table_RetroSummary[[#This Row],[Proposed Fixture (Proposed Controls) kWh]],\"\")","v":""},{"$f":"IFERROR(IF(Table_RetroSummary[[#This Row],[IsActive]],IF(ISNUMBER(MATCH(Table_POSTInfo[[#This Row],[Line]],Table_POSTInspection[Line],0)),INDEX(Table_POSTInspection[DLC or ES Certification '[P']],MATCH(Table_RetroSummary[[#This Row],[Line Item]],Table_POSTInspection[Line],0)),Table_POSTInfo[[#This Row],[DLC or ES Certification '[P']]]),\"\"),\"\")","v":""},null,{"$f":"IFERROR(IF(Table_RetroSummary[[#This Row],[IsActive]],\nIF(AND(RIGHT(Table_RetroSummary[[#This Row],[Existing Fixture]],LEN(Table_RetroSummary[[#This Row],[Existing Fixture]])-FIND(\":\",Table_RetroSummary[[#This Row],[Existing Fixture]],1)-1)<>Table_RetroSummary[[#This Row],[Proposed Fixture]],MID(Table_RetroSummary[[#This Row],[Existing Fixture]],FIND(\": \",Table_RetroSummary[[#This Row],[Existing Fixture]],1)+2,FIND(\"]\",Table_RetroSummary[[#This Row],[Existing Fixture]],1))=LEFT(Table_RetroSummary[[#This Row],[Proposed Fixture]],FIND(\"]\",Table_RetroSummary[[#This Row],[Proposed Fixture]],1))),\n  \"Controls Only\",\n  IF(Table_POSTInfo[[#This Row],[DLC or ES Certification '[P']]]<>\"\",\n    IF(ISNUMBER(FIND(\"LED Tube\",Table_RetroSummary[[#This Row],[Proposed Fixture]],1)),\n      \"LED Re-Lamp\",\n      IF(AND(Table_RetroSummary[[#This Row],[Existing Overall kWh]]>Table_RetroSummary[[#This Row],[Proposed Overall kWh (Existing Controls)]],ISNUMBER(FIND(\"LED\",Table_RetroSummary[[#This Row],[Proposed Fixture]],1))),\n        IF(Table_POSTInfo[[#This Row],[Interior/ Exterior]]=\"Exterior\",\n          \"Exterior LED Fixture\",\n          \"Interior LED Fixture\"),\n        \"Ineligible Fixture\")),\n    \"Ineligible Fixture\")),\n\"\"),\"\")","v":""},{"$f":"IFERROR(VLOOKUP(Table_RetroSummary[[#This Row],[Fixture Measure Description]],Table_FixtureRate[],2,FALSE),\"\")","v":""},{"$f":"IFERROR(IF(Table_RetroSummary[[#This Row],[IsActive]],IF(Table_RetroSummary[[#This Row],[Fixture Measure Description]]=\"Ineligible Fixture\",0,ROUND(Table_RetroSummary[[#This Row],[Fixture Rebate (per kW)]]*(Table_RetroSummary[[#This Row],[Existing Fixture Wattage]]*Table_RetroSummary[[#This Row],[E. Qty]]-Table_RetroSummary[[#This Row],[Proposed Fixture Wattage]]*Table_RetroSummary[[#This Row],[P. Qty]])/1000,2)),\"\"),\"\")","v":""},{"$f":"IFERROR(IF(Table_RetroSummary[[#This Row],[Fixture Measure Description]]=\"Ineligible Fixture\",0,ROUND(IF(ProjectCost_Total=0,300000,ProjectCost_Total)*Table_RetroSummary[[#This Row],[Fixture Rebate]]/SUM(Table_RetroSummary[Fixture Rebate],Table_RetroSummary[Controls Rebate]),2)),\"\")","v":""},{"$f":"IFERROR(IF(Table_RetroSummary[[#This Row],[IsActive]],IF(Table_RetroSummary[[#This Row],[Fixture Measure Description]]=\"Ineligible Fixture\",0,Table_RetroSummary[[#This Row],[Existing Overall kWh]]-Table_RetroSummary[[#This Row],[Proposed Overall kWh (Existing Controls)]]),\"\"),\"\")","v":""},{"$f":"IFERROR(IF(Table_RetroSummary[[#This Row],[IsActive]],IF(Table_RetroSummary[[#This Row],[Fixture Measure Description]]=\"Ineligible Fixture\",0,(Table_RetroSummary[[#This Row],[Existing Fixture kWh]]-Table_RetroSummary[[#This Row],[Proposed Fixture kWh]])/Table_RetroSummary[[#This Row],[OpHrs]]*Table_RetroSummary[[#This Row],[CF (Ltg)]]*Table_RetroSummary[[#This Row],[DF (Ltg)]]),\"\"),\"\")","v":""},null,{"$f":"IFERROR(\n  IF(OR(Table_RetroSummary[[#This Row],[Fixture Measure Description]]=\"\",Table_RetroSummary[[#This Row],[Fixture Measure Description]]=\"Ineligible Fixture\"),\n    \"\",\n    IFERROR(VLOOKUP(RIGHT(Table_RetroSummary[[#This Row],[Existing Fixture]],LEN(Table_RetroSummary[[#This Row],[Existing Fixture]])-FIND(\" - \",Table_RetroSummary[[#This Row],[Existing Fixture]],FIND(\"]\",Table_RetroSummary[[#This Row],[Existing Fixture]],1))-2),Table_ControlType[],2,FALSE),\"None\")\n    & \" - \" &\n    IFERROR(VLOOKUP(RIGHT(Table_RetroSummary[[#This Row],[Proposed Fixture]],LEN(Table_RetroSummary[[#This Row],[Proposed Fixture]])-FIND(\" - \",Table_RetroSummary[[#This Row],[Proposed Fixture]],FIND(\"]\",Table_RetroSummary[[#This Row],[Proposed Fixture]],1))-2),Table_ControlType[],2, FALSE),None)),\n\"\")","v":""},{"$f":"IFERROR(VLOOKUP(Table_RetroSummary[[#This Row],[Controls Measure Description]],Table_ControlRate[],2,FALSE),\"\")","v":""},{"$f":"IFERROR(IF(Table_RetroSummary[[#This Row],[IsActive]],IF(Table_RetroSummary[[#This Row],[Controls Measure Description]]=\"\",0,ROUND(Table_RetroSummary[[#This Row],[Controls Rebate (per Fixt Watt)]]*Table_RetroSummary[[#This Row],[Proposed Fixture Wattage]]*Table_RetroSummary[[#This Row],[P. Qty]],2)),\"\"),\"\")","v":""},{"$f":"IFERROR(IF(Table_RetroSummary[[#This Row],[Fixture Measure Description]]=\"Ineligible Fixture\",0,ROUND(IF(ProjectCost_Total=0,300000,ProjectCost_Total)*Table_RetroSummary[[#This Row],[Controls Rebate]]/SUM(Table_RetroSummary[Fixture Rebate],Table_RetroSummary[Controls Rebate]),2)),\"\")","v":""},{"$f":"IFERROR(IF(Table_RetroSummary[[#This Row],[IsActive]],IF(Table_RetroSummary[[#This Row],[Controls Measure Description]]=\"\",0,(Table_RetroSummary[[#This Row],[Proposed Fixture (Existing Controls) kWh]]-Table_RetroSummary[[#This Row],[Proposed Fixture (Proposed Controls) kWh]])),\"\"),\"\")","v":""},{"$f":"IFERROR(IF(Table_RetroSummary[[#This Row],[IsActive]],IF(Table_RetroSummary[[#This Row],[Controls Measure Description]]=\"\",0,(Table_RetroSummary[[#This Row],[Proposed Fixture (Existing Controls) kWh]]-Table_RetroSummary[[#This Row],[Proposed Fixture (Proposed Controls) kWh]])/Table_RetroSummary[[#This Row],[OpHrs]]*Table_RetroSummary[[#This Row],[CF (Ltg)]]*Table_RetroSummary[[#This Row],[DF (Ltg)]]),\"\"),\"\")","v":""},null,{"$f":"IFERROR(IF(NOT(ISNUMBER(Table_RetroSummary[[#This Row],[Fixture Rebate]])),\"\",IF(MIN(IF(SUM(Table_RetroSummary[Fixture Cost],Table_RetroSummary[Controls Cost])<0,0,SUM(Table_RetroSummary[Fixture Cost],Table_RetroSummary[Controls Cost])),SUM(Table_RetroSummary[Fixture Rebate],Table_RetroSummary[Controls Rebate]))>300000,300000/MIN(IF(SUM(Table_RetroSummary[Fixture Cost],Table_RetroSummary[Controls Cost])<0,0,SUM(Table_RetroSummary[Fixture Cost],Table_RetroSummary[Controls Cost])),SUM(Table_RetroSummary[Fixture Rebate],Table_RetroSummary[Controls Rebate]))*MIN(IF(SUM(Table_RetroSummary[Fixture Cost],Table_RetroSummary[Controls Cost])<0,0,SUM(Table_RetroSummary[Fixture Cost],Table_RetroSummary[Controls Cost])),Table_RetroSummary[[#This Row],[Fixture Rebate]]+IF(Table_RetroSummary[[#This Row],[Controls Rebate]]=\"\",0,Table_RetroSummary[[#This Row],[Controls Rebate]])),MIN(IF(SUM(Table_RetroSummary[Fixture Cost],Table_RetroSummary[Controls Cost])<0,0,SUM(Table_RetroSummary[Fixture Cost],Table_RetroSummary[Controls Cost])),Table_RetroSummary[[#This Row],[Fixture Rebate]]+IF(Table_RetroSummary[[#This Row],[Controls Rebate]]=\"\",0,Table_RetroSummary[[#This Row],[Controls Rebate]])))),\"\")","v":""},{"$f":"IFERROR(IF(Table_RetroSummary[[#This Row],[Fixture Cost]]=\"\",\"\",Table_RetroSummary[[#This Row],[Fixture Cost]]+IF(Table_RetroSummary[[#This Row],[Controls Cost]]=\"\",0,Table_RetroSummary[[#This Row],[Controls Cost]])),\"\")","v":""},{"$f":"IFERROR(IF(Table_RetroSummary[[#This Row],[IsActive]],IF(Table_POSTInfo[[#This Row],[Interior/ Exterior]]=\"Interior\",IFERROR((Table_RetroSummary[[#This Row],[Annual Fixture Savings (kWh)]]+Table_RetroSummary[[#This Row],[Annual Control Savings (kWh)]])*(Table_RetroSummary[[#This Row],[EIF]]-1),0),0),\"\"),\"\")","v":""},{"$f":"IFERROR(IF(Table_RetroSummary[[#This Row],[IsActive]],IF(Table_POSTInfo[[#This Row],[Interior/ Exterior]]=\"Interior\",IFERROR((Table_RetroSummary[[#This Row],[Fixture kW Reduction]]+Table_RetroSummary[[#This Row],[Control kW Reduction]]/(Table_RetroSummary[[#This Row],[CF (Ltg)]]*Table_RetroSummary[[#This Row],[DF (Ltg)]]))*(Table_RetroSummary[[#This Row],[DIF]]-1)*Table_RetroSummary[[#This Row],[CF (HVAC)]]*Table_RetroSummary[[#This Row],[DF (HVAC)]],0),0),\"\"),\"\")","v":""},{"$f":"IFERROR(IF(Table_RetroSummary[[#This Row],[IsActive]],IF(NOT(ISNUMBER(Table_RetroSummary[[#This Row],[Fixture Rebate]])),\"\",ROUND(Table_RetroSummary[[#This Row],[Annual Fixture Savings (kWh)]]+Table_RetroSummary[[#This Row],[Annual Control Savings (kWh)]],0)),\"\"),\"\")","v":""},{"$f":"IFERROR(IF(Table_RetroSummary[[#This Row],[IsActive]],IF(NOT(ISNUMBER(Table_RetroSummary[[#This Row],[Fixture Rebate]])),\"\",ROUND(Table_RetroSummary[[#This Row],[Fixture kW Reduction]]+Table_RetroSummary[[#This Row],[Control kW Reduction]],3)),\"\"),\"\")","v":""},{"$f":"IFERROR(IF(Table_RetroSummary[[#This Row],[IsActive]],IF(NOT(ISNUMBER(Table_RetroSummary[[#This Row],[Fixture Rebate]])),\"\",ROUND(Table_RetroSummary[[#This Row],[Fixture Energy Savings (kWh)]]+Table_RetroSummary[[#This Row],[Induced HVAC Energy Savings (kWh)]],0)),\"\"),\"\")","v":""},{"$f":"IFERROR(IF(Table_RetroSummary[[#This Row],[IsActive]],IF(NOT(ISNUMBER(Table_RetroSummary[[#This Row],[Fixture Rebate]])),\"\",ROUND(Table_RetroSummary[[#This Row],[Fixture Demand Savings (kW)]]+Table_RetroSummary[[#This Row],[Induced HVAC Demand Savings (kW)]],3)),\"\"),\"\")","v":""}]
[{"$f":"IFERROR(Table_POSTInfo[[#This Row],[Line]],\"\")","v":30},{"$f":"IFERROR(Table_POSTInfo[[#This Row],[IsActive]],\"\")","v":false},{"$f":"IFERROR(IF(Table_RetroSummary[[#This Row],[IsActive]],CONCATENATE(Table_RetroSummary[[#This Row],[Existing Fixture]],\" | \",Table_RetroSummary[[#This Row],[Proposed Fixture]]),\"\"),\"\")","v":""},{"$f":"IFERROR(IF(Table_RetroSummary[[#This Row],[IsActive]],VLOOKUP(IF(ISNUMBER(MATCH(Table_POSTInfo[[#This Row],[Line]],Table_POSTInspection[Line],0)),INDEX(Table_POSTInspection[Schedule],MATCH(Table_RetroSummary[[#This Row],[Line Item]],Table_POSTInspection[Line],0)),Table_POSTInfo[[#This Row],[Schedule]]),'Customer Information'!$S$27:$T$34,2,FALSE),\"\"),\"\")","v":""},{"$f":"IFERROR(IF(Table_RetroSummary[[#This Row],[IsActive]],IF(IF(ISNUMBER(MATCH(Table_RetroSummary[[#This Row],[Line Item]],Table_POSTInspection[Line],0)),INDEX(Table_POSTInspection[Interior/ Exterior],MATCH(Table_RetroSummary[[#This Row],[Line Item]],Table_POSTInfo[[#This Row],[Line]],0)),Table_POSTInfo[[#This Row],[Interior/ Exterior]])=\"Interior\",'Customer Information'!$S$25,0),\"\"),\"\")","v":""},{"$f":"IFERROR(IF(Table_RetroSummary[[#This Row],[IsActive]],IF(IF(ISNUMBER(MATCH(Table_RetroSummary[[#This Row],[Line Item]],Table_POSTInspection[Line],0)),INDEX(Table_POSTInspection[Interior/ Exterior],MATCH(Table_RetroSummary[[#This Row],[Line Item]],Table_POSTInfo[[#This Row],[Line]],0)),Table_POSTInfo[[#This Row],[Interior/ Exterior]])=\"Interior\",'Customer Information'!$T$25,0),\"\"),\"\")","v":""},{"$f":"IFERROR(IF(Table_RetroSummary[[#This Row],[IsActive]],IF(IF(ISNUMBER(MATCH(Table_RetroSummary[[#This Row],[Line Item]],Table_POSTInspection[Line],0)),INDEX(Table_POSTInspection[Interior/ Exterior],MATCH(Table_RetroSummary[[#This Row],[Line Item]],Table_POSTInfo[[#This Row],[Line]],0)),Table_POSTInfo[[#This Row],[Interior/ Exterior]])=\"Interior\",'Customer Information'!$U$25,0),\"\"),\"\")","v":""},{"$f":"IFERROR(IF(Table_RetroSummary[[#This Row],[IsActive]],IF(IF(ISNUMBER(MATCH(Table_RetroSummary[[#This Row],[Line Item]],Table_POSTInspection[Line],0)),INDEX(Table_POSTInspection[Interior/ Exterior],MATCH(Table_RetroSummary[[#This Row],[Line Item]],Table_POSTInfo[[#This Row],[Line]],0)),Table_POSTInfo[[#This Row],[Interior/ Exterior]])=\"Interior\",'Customer Information'!$V$25,0),\"\"),\"\")","v":""},{"$f":"IFERROR(IF(Table_RetroSummary[[#This Row],[IsActive]],IF(IF(ISNUMBER(MATCH(Table_RetroSummary[[#This Row],[Line Item]],Table_POSTInspection[Line],0)),INDEX(Table_POSTInspection[Interior/ Exterior],MATCH(Table_RetroSummary[[#This Row],[Line Item]],Table_POSTInfo[[#This Row],[Line]],0)),Table_POSTInfo[[#This Row],[Interior/ Exterior]])=\"Interior\",'Customer Information'!$W$25,0),\"\"),\"\")","v":""},{"$f":"IFERROR(IF(Table_RetroSummary[[#This Row],[IsActive]],IF(IF(ISNUMBER(MATCH(Table_RetroSummary[[#This Row],[Line Item]],Table_POSTInspection[Line],0)),INDEX(Table_POSTInspection[Interior/ Exterior],MATCH(Table_RetroSummary[[#This Row],[Line Item]],Table_POSTInfo[[#This Row],[Line]],0)),Table_POSTInfo[[#This Row],[Interior/ Exterior]])=\"Interior\",'Customer Information'!$X$25,0),\"\"),\"\")","v":""},{"$f":"IFERROR(IF(Table_RetroSummary[[#This Row],[IsActive]],\nCONCATENATE(\nIF(ISNUMBER(MATCH(Table_POSTInfo[[#This Row],[Line]],Table_POSTInspection[Line],0)),INDEX(Table_POSTInspection[Interior/ Exterior],MATCH(Table_RetroSummary[[#This Row],[Line Item]],Table_POSTInspection[Line],0)),Table_POSTInfo[[#This Row],[Interior/ Exterior]]),\n\" - \",\nIF(ISNUMBER(MATCH(Table_POSTInfo[[#This Row],[Line]],Table_POSTInspection[Line],0)),INDEX(Table_POSTInspection[Space Description],MATCH(Table_RetroSummary[[#This Row],[Line Item]],Table_POSTInspection[Line],0)),Table_POSTInfo[[#This Row],[Space Description]])),\n \"\"),\"\")","v":""},{"$f":"IFERROR(IF(Table_RetroSummary[[#This Row],[IsActive]]=\"\",\"\",Table_POSTInfo[[#This Row],[Fixture Description '[E']]]),\"\")","v":""},{"$f":"IFERROR(IF(Table_RetroSummary[[#This Row],[IsActive]]=\"\",\"\",Table_POSTInfo[[#This Row],['# Lamps/ Fixture '[E']]]),\"\")","v":""},{"$f":"IFERROR(IF(Table_RetroSummary[[#This Row],[IsActive]]=\"\",\"\",Table_POSTInfo[[#This Row],[Fixture/ Lamp Wattage '[E']]]),\"\")","v":""},{"$f":"IFERROR(IF(Table_RetroSummary[[#This Row],[IsActive]]=\"\",\"\",Table_POSTInfo[[#This Row],[Fixture Qty '[E']]]),\"\")","v":""},{"$f":"IFERROR(IF(Table_RetroSummary[[#This Row],[IsActive]],Table_RetroSummary[[#This Row],[Fixture/ Lamp Wattage '[E']]]*Table_RetroSummary[[#This Row],[E. Qty]],\"\"),\"\")","v":""},{"$f":"IFERROR(IF(Table_RetroSummary[[#This Row],[IsActive]]=\"\",\"\",Table_POSTInfo[[#This Row],[Fixture Wattage '[E']]]),\"\")","v":""},{"$f":"IFERROR(IF(Table_RetroSummary[[#This Row],[IsActive]],IFERROR(Table_RetroSummary[[#This Row],[Existing Fixture Wattage]]/1000*Table_RetroSummary[[#This Row],[OpHrs]]*Table_RetroSummary[[#This Row],[E. Qty]],0),\"\"),\"\")","v":""},{"$f":"IFERROR(IF(Table_RetroSummary[[#This Row],[IsActive]],IFERROR(VLOOKUP(RIGHT(Table_RetroSummary[[#This Row],[Existing Fixture]],LEN(Table_RetroSummary[[#This Row],[Existing Fixture]])-FIND(\" - \",Table_RetroSummary[[#This Row],[Existing Fixture]],FIND(\"]\",Table_RetroSummary[[#This Row],[Existing Fixture]],1))-2),Table_ControlType[],3,FALSE),0),\"\"),\"\")","v":""},{"$f":"IFERROR(IF(Table_RetroSummary[[#This Row],[IsActive]],IFERROR(Table_RetroSummary[[#This Row],[Existing Fixture Wattage]]/1000*Table_RetroSummary[[#This Row],[OpHrs]]*Table_RetroSummary[[#This Row],[E. Qty]]*Table_RetroSummary[[#This Row],[Existing CSF]]*(-1),0),\"\"),\"\")","v":""},{"$f":"IFERROR(Table_RetroSummary[[#This Row],[Existing Fixture kWh]]+Table_RetroSummary[[#This Row],[Existing Fixture (Existing Controls) kWh]],\"\")","v":""},{"$f":"IFERROR(IF(Table_RetroSummary[[#This Row],[IsActive]],IF(ISNUMBER(MATCH(Table_POSTInfo[[#This Row],[Line]],Table_POSTInspection[Line],0)),INDEX(Table_POSTInspection[Fixture Description '[P']],MATCH(Table_RetroSummary[[#This Row],[Line Item]],Table_POSTInspection[Line],0)),Table_POSTInfo[[#This Row],[Fixture Description '[P']]]),\"\"),\"\")","v":""},{"$f":"IFERROR(IF(Table_RetroSummary[[#This Row],[IsActive]],IF(ISNUMBER(MATCH(Table_POSTInfo[[#This Row],[Line]],Table_POSTInspection[Line],0)),INDEX(Table_POSTInspection['# Lamps/ Fixture '[P']],MATCH(Table_RetroSummary[[#This Row],[Line Item]],Table_POSTInspection[Line],0)),Table_POSTInfo[[#This Row],['# Lamps/ Fixture '[P']]]),\"\"),\"\")","v":""},{"$f":"IFERROR(IF(Table_RetroSummary[[#This Row],[IsActive]],IF(ISNUMBER(MATCH(Table_POSTInfo[[#This Row],[Line]],Table_POSTInspection[Line],0)),INDEX(Table_POSTInspection[Fixture/ Lamp Wattage '[P']],MATCH(Table_RetroSummary[[#This Row],[Line Item]],Table_POSTInspection[Line],0)),Table_POSTInfo[[#This Row],[Fixture/ Lamp Wattage '[P']]]),\"\"),\"\")","v":""},{"$f":"IFERROR(IF(Table_RetroSummary[[#This Row],[IsActive]],IF(ISNUMBER(MATCH(Table_POSTInfo[[#This Row],[Line]],Table_POSTInspection[Line],0)),INDEX(Table_POSTInspection[Fixture Qty '[P']],MATCH(Table_RetroSummary[[#This Row],[Line Item]],Table_POSTInspection[Line],0)),Table_POSTInfo[[#This Row],[Fixture Qty '[P']]]),\"\"),\"\")","v":""},{"$f":"IFERROR(IF(Table_RetroSummary[[#This Row],[IsActive]],Table_RetroSummary[[#This Row],[Fixture/ Lamp Wattage '[P']]]*Table_RetroSummary[[#This Row],[P. Qty]],\"\"),\"\")","v":""},{"$f":"IFERROR(IF(Table_RetroSummary[[#This Row],[IsActive]],IF(ISNUMBER(MATCH(Table_POSTInfo[[#This Row],[Line]],Table_POSTInspection[Line],0)),INDEX(Table_POSTInspection[Fixture Wattage '[P']],MATCH(Table_RetroSummary[[#This Row],[Line Item]],Table_POSTInspection[Line],0)),Table_POSTInfo[[#This Row],[Fixture Wattage '[P']]]),\"\"),\"\")","v":""},{"$f":"IFERROR(Table_RetroSummary[[#This Row],[Total '# Lamps '[P']]]+Table_RetroSummary[[#This Row],[Proposed Fixture Wattage]],\"\")","v":""},{"$f":"IFERROR(Table_RetroSummary[[#This Row],[Proposed Fixture Wattage]]/1000*Table_RetroSummary[[#This Row],[OpHrs]]*Table_RetroSummary[[#This Row],[P. Qty]],\"\")","v":""},{"$f":"IFERROR(IF(Table_RetroSummary[[#This Row],[IsActive]],IFERROR(VLOOKUP(RIGHT(Table_RetroSummary[[#This Row],[Proposed Fixture]],LEN(Table_RetroSummary[[#This Row],[Proposed Fixture]])-FIND(\" - \",Table_RetroSummary[[#This Row],[Proposed Fixture]],FIND(\"]\",Table_RetroSummary[[#This Row],[Proposed Fixture]],1))-2),Table_ControlType[],3, FALSE),0),\"\"),\"\")","v":""},{"$f":"IFERROR(IF(Table_RetroSummary[[#This Row],[IsActive]],IFERROR(Table_RetroSummary[[#This Row],[Proposed Fixture Wattage]]/1000*Table_RetroSummary[[#This Row],[OpHrs]]*Table_RetroSummary[[#This Row],[P. Qty]]*Table_RetroSummary[[#This Row],[Existing CSF]]*(-1),0),\"\"),\"\")","v":""},{"$f":"IFERROR(Table_RetroSummary[[#This Row],[Proposed Fixture kWh]]+Table_RetroSummary[[#This Row],[Proposed Fixture (Existing Controls) kWh]],\"\")","v":""},{"$f":"IFERROR(IF(Table_RetroSummary[[#This Row],[IsActive]],IFERROR(Table_RetroSummary[[#This Row],[Proposed Fixture Wattage]]/1000*Table_RetroSummary[[#This Row],[OpHrs]]*Table_RetroSummary[[#This Row],[P. Qty]]*Table_RetroSummary[[#This Row],[Proposed CSF]]*(-1),0),\"\"),\"\")","v":""},{"$f":"IFERROR(Table_RetroSummary[[#This Row],[Proposed Fixture kWh]]+Table_RetroSummary[[#This Row],[Proposed Fixture (Proposed Controls) kWh]],\"\")","v":""},{"$f":"IFERROR(IF(Table_RetroSummary[[#This Row],[IsActive]],IF(ISNUMBER(MATCH(Table_POSTInfo[[#This Row],[Line]],Table_POSTInspection[Line],0)),INDEX(Table_POSTInspection[DLC or ES Certification '[P']],MATCH(Table_RetroSummary[[#This Row],[Line Item]],Table_POSTInspection[Line],0)),Table_POSTInfo[[#This Row],[DLC or ES Certification '[P']]]),\"\"),\"\")","v":""},null,{"$f":"IFERROR(IF(Table_RetroSummary[[#This Row],[IsActive]],\nIF(AND(RIGHT(Table_RetroSummary[[#This Row],[Existing Fixture]],LEN(Table_RetroSummary[[#This Row],[Existing Fixture]])-FIND(\":\",Table_RetroSummary[[#This Row],[Existing Fixture]],1)-1)<>Table_RetroSummary[[#This Row],[Proposed Fixture]],MID(Table_RetroSummary[[#This Row],[Existing Fixture]],FIND(\": \",Table_RetroSummary[[#This Row],[Existing Fixture]],1)+2,FIND(\"]\",Table_RetroSummary[[#This Row],[Existing Fixture]],1))=LEFT(Table_RetroSummary[[#This Row],[Proposed Fixture]],FIND(\"]\",Table_RetroSummary[[#This Row],[Proposed Fixture]],1))),\n  \"Controls Only\",\n  IF(Table_POSTInfo[[#This Row],[DLC or ES Certification '[P']]]<>\"\",\n    IF(ISNUMBER(FIND(\"LED Tube\",Table_RetroSummary[[#This Row],[Proposed Fixture]],1)),\n      \"LED Re-Lamp\",\n      IF(AND(Table_RetroSummary[[#This Row],[Existing Overall kWh]]>Table_RetroSummary[[#This Row],[Proposed Overall kWh (Existing Controls)]],ISNUMBER(FIND(\"LED\",Table_RetroSummary[[#This Row],[Proposed Fixture]],1))),\n        IF(Table_POSTInfo[[#This Row],[Interior/ Exterior]]=\"Exterior\",\n          \"Exterior LED Fixture\",\n          \"Interior LED Fixture\"),\n        \"Ineligible Fixture\")),\n    \"Ineligible Fixture\")),\n\"\"),\"\")","v":""},{"$f":"IFERROR(VLOOKUP(Table_RetroSummary[[#This Row],[Fixture Measure Description]],Table_FixtureRate[],2,FALSE),\"\")","v":""},{"$f":"IFERROR(IF(Table_RetroSummary[[#This Row],[IsActive]],IF(Table_RetroSummary[[#This Row],[Fixture Measure Description]]=\"Ineligible Fixture\",0,ROUND(Table_RetroSummary[[#This Row],[Fixture Rebate (per kW)]]*(Table_RetroSummary[[#This Row],[Existing Fixture Wattage]]*Table_RetroSummary[[#This Row],[E. Qty]]-Table_RetroSummary[[#This Row],[Proposed Fixture Wattage]]*Table_RetroSummary[[#This Row],[P. Qty]])/1000,2)),\"\"),\"\")","v":""},{"$f":"IFERROR(IF(Table_RetroSummary[[#This Row],[Fixture Measure Description]]=\"Ineligible Fixture\",0,ROUND(IF(ProjectCost_Total=0,300000,ProjectCost_Total)*Table_RetroSummary[[#This Row],[Fixture Rebate]]/SUM(Table_RetroSummary[Fixture Rebate],Table_RetroSummary[Controls Rebate]),2)),\"\")","v":""},{"$f":"IFERROR(IF(Table_RetroSummary[[#This Row],[IsActive]],IF(Table_RetroSummary[[#This Row],[Fixture Measure Description]]=\"Ineligible Fixture\",0,Table_RetroSummary[[#This Row],[Existing Overall kWh]]-Table_RetroSummary[[#This Row],[Proposed Overall kWh (Existing Controls)]]),\"\"),\"\")","v":""},{"$f":"IFERROR(IF(Table_RetroSummary[[#This Row],[IsActive]],IF(Table_RetroSummary[[#This Row],[Fixture Measure Description]]=\"Ineligible Fixture\",0,(Table_RetroSummary[[#This Row],[Existing Fixture kWh]]-Table_RetroSummary[[#This Row],[Proposed Fixture kWh]])/Table_RetroSummary[[#This Row],[OpHrs]]*Table_RetroSummary[[#This Row],[CF (Ltg)]]*Table_RetroSummary[[#This Row],[DF (Ltg)]]),\"\"),\"\")","v":""},null,{"$f":"IFERROR(\n  IF(OR(Table_RetroSummary[[#This Row],[Fixture Measure Description]]=\"\",Table_RetroSummary[[#This Row],[Fixture Measure Description]]=\"Ineligible Fixture\"),\n    \"\",\n    IFERROR(VLOOKUP(RIGHT(Table_RetroSummary[[#This Row],[Existing Fixture]],LEN(Table_RetroSummary[[#This Row],[Existing Fixture]])-FIND(\" - \",Table_RetroSummary[[#This Row],[Existing Fixture]],FIND(\"]\",Table_RetroSummary[[#This Row],[Existing Fixture]],1))-2),Table_ControlType[],2,FALSE),\"None\")\n    & \" - \" &\n    IFERROR(VLOOKUP(RIGHT(Table_RetroSummary[[#This Row],[Proposed Fixture]],LEN(Table_RetroSummary[[#This Row],[Proposed Fixture]])-FIND(\" - \",Table_RetroSummary[[#This Row],[Proposed Fixture]],FIND(\"]\",Table_RetroSummary[[#This Row],[Proposed Fixture]],1))-2),Table_ControlType[],2, FALSE),None)),\n\"\")","v":""},{"$f":"IFERROR(VLOOKUP(Table_RetroSummary[[#This Row],[Controls Measure Description]],Table_ControlRate[],2,FALSE),\"\")","v":""},{"$f":"IFERROR(IF(Table_RetroSummary[[#This Row],[IsActive]],IF(Table_RetroSummary[[#This Row],[Controls Measure Description]]=\"\",0,ROUND(Table_RetroSummary[[#This Row],[Controls Rebate (per Fixt Watt)]]*Table_RetroSummary[[#This Row],[Proposed Fixture Wattage]]*Table_RetroSummary[[#This Row],[P. Qty]],2)),\"\"),\"\")","v":""},{"$f":"IFERROR(IF(Table_RetroSummary[[#This Row],[Fixture Measure Description]]=\"Ineligible Fixture\",0,ROUND(IF(ProjectCost_Total=0,300000,ProjectCost_Total)*Table_RetroSummary[[#This Row],[Controls Rebate]]/SUM(Table_RetroSummary[Fixture Rebate],Table_RetroSummary[Controls Rebate]),2)),\"\")","v":""},{"$f":"IFERROR(IF(Table_RetroSummary[[#This Row],[IsActive]],IF(Table_RetroSummary[[#This Row],[Controls Measure Description]]=\"\",0,(Table_RetroSummary[[#This Row],[Proposed Fixture (Existing Controls) kWh]]-Table_RetroSummary[[#This Row],[Proposed Fixture (Proposed Controls) kWh]])),\"\"),\"\")","v":""},{"$f":"IFERROR(IF(Table_RetroSummary[[#This Row],[IsActive]],IF(Table_RetroSummary[[#This Row],[Controls Measure Description]]=\"\",0,(Table_RetroSummary[[#This Row],[Proposed Fixture (Existing Controls) kWh]]-Table_RetroSummary[[#This Row],[Proposed Fixture (Proposed Controls) kWh]])/Table_RetroSummary[[#This Row],[OpHrs]]*Table_RetroSummary[[#This Row],[CF (Ltg)]]*Table_RetroSummary[[#This Row],[DF (Ltg)]]),\"\"),\"\")","v":""},null,{"$f":"IFERROR(IF(NOT(ISNUMBER(Table_RetroSummary[[#This Row],[Fixture Rebate]])),\"\",IF(MIN(IF(SUM(Table_RetroSummary[Fixture Cost],Table_RetroSummary[Controls Cost])<0,0,SUM(Table_RetroSummary[Fixture Cost],Table_RetroSummary[Controls Cost])),SUM(Table_RetroSummary[Fixture Rebate],Table_RetroSummary[Controls Rebate]))>300000,300000/MIN(IF(SUM(Table_RetroSummary[Fixture Cost],Table_RetroSummary[Controls Cost])<0,0,SUM(Table_RetroSummary[Fixture Cost],Table_RetroSummary[Controls Cost])),SUM(Table_RetroSummary[Fixture Rebate],Table_RetroSummary[Controls Rebate]))*MIN(IF(SUM(Table_RetroSummary[Fixture Cost],Table_RetroSummary[Controls Cost])<0,0,SUM(Table_RetroSummary[Fixture Cost],Table_RetroSummary[Controls Cost])),Table_RetroSummary[[#This Row],[Fixture Rebate]]+IF(Table_RetroSummary[[#This Row],[Controls Rebate]]=\"\",0,Table_RetroSummary[[#This Row],[Controls Rebate]])),MIN(IF(SUM(Table_RetroSummary[Fixture Cost],Table_RetroSummary[Controls Cost])<0,0,SUM(Table_RetroSummary[Fixture Cost],Table_RetroSummary[Controls Cost])),Table_RetroSummary[[#This Row],[Fixture Rebate]]+IF(Table_RetroSummary[[#This Row],[Controls Rebate]]=\"\",0,Table_RetroSummary[[#This Row],[Controls Rebate]])))),\"\")","v":""},{"$f":"IFERROR(IF(Table_RetroSummary[[#This Row],[Fixture Cost]]=\"\",\"\",Table_RetroSummary[[#This Row],[Fixture Cost]]+IF(Table_RetroSummary[[#This Row],[Controls Cost]]=\"\",0,Table_RetroSummary[[#This Row],[Controls Cost]])),\"\")","v":""},{"$f":"IFERROR(IF(Table_RetroSummary[[#This Row],[IsActive]],IF(Table_POSTInfo[[#This Row],[Interior/ Exterior]]=\"Interior\",IFERROR((Table_RetroSummary[[#This Row],[Annual Fixture Savings (kWh)]]+Table_RetroSummary[[#This Row],[Annual Control Savings (kWh)]])*(Table_RetroSummary[[#This Row],[EIF]]-1),0),0),\"\"),\"\")","v":""},{"$f":"IFERROR(IF(Table_RetroSummary[[#This Row],[IsActive]],IF(Table_POSTInfo[[#This Row],[Interior/ Exterior]]=\"Interior\",IFERROR((Table_RetroSummary[[#This Row],[Fixture kW Reduction]]+Table_RetroSummary[[#This Row],[Control kW Reduction]]/(Table_RetroSummary[[#This Row],[CF (Ltg)]]*Table_RetroSummary[[#This Row],[DF (Ltg)]]))*(Table_RetroSummary[[#This Row],[DIF]]-1)*Table_RetroSummary[[#This Row],[CF (HVAC)]]*Table_RetroSummary[[#This Row],[DF (HVAC)]],0),0),\"\"),\"\")","v":""},{"$f":"IFERROR(IF(Table_RetroSummary[[#This Row],[IsActive]],IF(NOT(ISNUMBER(Table_RetroSummary[[#This Row],[Fixture Rebate]])),\"\",ROUND(Table_RetroSummary[[#This Row],[Annual Fixture Savings (kWh)]]+Table_RetroSummary[[#This Row],[Annual Control Savings (kWh)]],0)),\"\"),\"\")","v":""},{"$f":"IFERROR(IF(Table_RetroSummary[[#This Row],[IsActive]],IF(NOT(ISNUMBER(Table_RetroSummary[[#This Row],[Fixture Rebate]])),\"\",ROUND(Table_RetroSummary[[#This Row],[Fixture kW Reduction]]+Table_RetroSummary[[#This Row],[Control kW Reduction]],3)),\"\"),\"\")","v":""},{"$f":"IFERROR(IF(Table_RetroSummary[[#This Row],[IsActive]],IF(NOT(ISNUMBER(Table_RetroSummary[[#This Row],[Fixture Rebate]])),\"\",ROUND(Table_RetroSummary[[#This Row],[Fixture Energy Savings (kWh)]]+Table_RetroSummary[[#This Row],[Induced HVAC Energy Savings (kWh)]],0)),\"\"),\"\")","v":""},{"$f":"IFERROR(IF(Table_RetroSummary[[#This Row],[IsActive]],IF(NOT(ISNUMBER(Table_RetroSummary[[#This Row],[Fixture Rebate]])),\"\",ROUND(Table_RetroSummary[[#This Row],[Fixture Demand Savings (kW)]]+Table_RetroSummary[[#This Row],[Induced HVAC Demand Savings (kW)]],3)),\"\"),\"\")","v":""}]
[{"$f":"IFERROR(Table_POSTInfo[[#This Row],[Line]],\"\")","v":31},{"$f":"IFERROR(Table_POSTInfo[[#This Row],[IsActive]],\"\")","v":false},{"$f":"IFERROR(IF(Table_RetroSummary[[#This Row],[IsActive]],CONCATENATE(Table_RetroSummary[[#This Row],[Existing Fixture]],\" | \",Table_RetroSummary[[#This Row],[Proposed Fixture]]),\"\"),\"\")","v":""},{"$f":"IFERROR(IF(Table_RetroSummary[[#This Row],[IsActive]],VLOOKUP(IF(ISNUMBER(MATCH(Table_POSTInfo[[#This Row],[Line]],Table_POSTInspection[Line],0)),INDEX(Table_POSTInspection[Schedule],MATCH(Table_RetroSummary[[#This Row],[Line Item]],Table_POSTInspection[Line],0)),Table_POSTInfo[[#This Row],[Schedule]]),'Customer Information'!$S$27:$T$34,2,FALSE),\"\"),\"\")","v":""},{"$f":"IFERROR(IF(Table_RetroSummary[[#This Row],[IsActive]],IF(IF(ISNUMBER(MATCH(Table_RetroSummary[[#This Row],[Line Item]],Table_POSTInspection[Line],0)),INDEX(Table_POSTInspection[Interior/ Exterior],MATCH(Table_RetroSummary[[#This Row],[Line Item]],Table_POSTInfo[[#This Row],[Line]],0)),Table_POSTInfo[[#This Row],[Interior/ Exterior]])=\"Interior\",'Customer Information'!$S$25,0),\"\"),\"\")","v":""},{"$f":"IFERROR(IF(Table_RetroSummary[[#This Row],[IsActive]],IF(IF(ISNUMBER(MATCH(Table_RetroSummary[[#This Row],[Line Item]],Table_POSTInspection[Line],0)),INDEX(Table_POSTInspection[Interior/ Exterior],MATCH(Table_RetroSummary[[#This Row],[Line Item]],Table_POSTInfo[[#This Row],[Line]],0)),Table_POSTInfo[[#This Row],[Interior/ Exterior]])=\"Interior\",'Customer Information'!$T$25,0),\"\"),\"\")","v":""},{"$f":"IFERROR(IF(Table_RetroSummary[[#This Row],[IsActive]],IF(IF(ISNUMBER(MATCH(Table_RetroSummary[[#This Row],[Line Item]],Table_POSTInspection[Line],0)),INDEX(Table_POSTInspection[Interior/ Exterior],MATCH(Table_RetroSummary[[#This Row],[Line Item]],Table_POSTInfo[[#This Row],[Line]],0)),Table_POSTInfo[[#This Row],[Interior/ Exterior]])=\"Interior\",'Customer Information'!$U$25,0),\"\"),\"\")","v":""},{"$f":"IFERROR(IF(Table_RetroSummary[[#This Row],[IsActive]],IF(IF(ISNUMBER(MATCH(Table_RetroSummary[[#This Row],[Line Item]],Table_POSTInspection[Line],0)),INDEX(Table_POSTInspection[Interior/ Exterior],MATCH(Table_RetroSummary[[#This Row],[Line Item]],Table_POSTInfo[[#This Row],[Line]],0)),Table_POSTInfo[[#This Row],[Interior/ Exterior]])=\"Interior\",'Customer Information'!$V$25,0),\"\"),\"\")","v":""},{"$f":"IFERROR(IF(Table_RetroSummary[[#This Row],[IsActive]],IF(IF(ISNUMBER(MATCH(Table_RetroSummary[[#This Row],[Line Item]],Table_POSTInspection[Line],0)),INDEX(Table_POSTInspection[Interior/ Exterior],MATCH(Table_RetroSummary[[#This Row],[Line Item]],Table_POSTInfo[[#This Row],[Line]],0)),Table_POSTInfo[[#This Row],[Interior/ Exterior]])=\"Interior\",'Customer Information'!$W$25,0),\"\"),\"\")","v":""},{"$f":"IFERROR(IF(Table_RetroSummary[[#This Row],[IsActive]],IF(IF(ISNUMBER(MATCH(Table_RetroSummary[[#This Row],[Line Item]],Table_POSTInspection[Line],0)),INDEX(Table_POSTInspection[Interior/ Exterior],MATCH(Table_RetroSummary[[#This Row],[Line Item]],Table_POSTInfo[[#This Row],[Line]],0)),Table_POSTInfo[[#This Row],[Interior/ Exterior]])=\"Interior\",'Customer Information'!$X$25,0),\"\"),\"\")","v":""},{"$f":"IFERROR(IF(Table_RetroSummary[[#This Row],[IsActive]],\nCONCATENATE(\nIF(ISNUMBER(MATCH(Table_POSTInfo[[#This Row],[Line]],Table_POSTInspection[Line],0)),INDEX(Table_POSTInspection[Interior/ Exterior],MATCH(Table_RetroSummary[[#This Row],[Line Item]],Table_POSTInspection[Line],0)),Table_POSTInfo[[#This Row],[Interior/ Exterior]]),\n\" - \",\nIF(ISNUMBER(MATCH(Table_POSTInfo[[#This Row],[Line]],Table_POSTInspection[Line],0)),INDEX(Table_POSTInspection[Space Description],MATCH(Table_RetroSummary[[#This Row],[Line Item]],Table_POSTInspection[Line],0)),Table_POSTInfo[[#This Row],[Space Description]])),\n \"\"),\"\")","v":""},{"$f":"IFERROR(IF(Table_RetroSummary[[#This Row],[IsActive]]=\"\",\"\",Table_POSTInfo[[#This Row],[Fixture Description '[E']]]),\"\")","v":""},{"$f":"IFERROR(IF(Table_RetroSummary[[#This Row],[IsActive]]=\"\",\"\",Table_POSTInfo[[#This Row],['# Lamps/ Fixture '[E']]]),\"\")","v":""},{"$f":"IFERROR(IF(Table_RetroSummary[[#This Row],[IsActive]]=\"\",\"\",Table_POSTInfo[[#This Row],[Fixture/ Lamp Wattage '[E']]]),\"\")","v":""},{"$f":"IFERROR(IF(Table_RetroSummary[[#This Row],[IsActive]]=\"\",\"\",Table_POSTInfo[[#This Row],[Fixture Qty '[E']]]),\"\")","v":""},{"$f":"IFERROR(IF(Table_RetroSummary[[#This Row],[IsActive]],Table_RetroSummary[[#This Row],[Fixture/ Lamp Wattage '[E']]]*Table_RetroSummary[[#This Row],[E. Qty]],\"\"),\"\")","v":""},{"$f":"IFERROR(IF(Table_RetroSummary[[#This Row],[IsActive]]=\"\",\"\",Table_POSTInfo[[#This Row],[Fixture Wattage '[E']]]),\"\")","v":""},{"$f":"IFERROR(IF(Table_RetroSummary[[#This Row],[IsActive]],IFERROR(Table_RetroSummary[[#This Row],[Existing Fixture Wattage]]/1000*Table_RetroSummary[[#This Row],[OpHrs]]*Table_RetroSummary[[#This Row],[E. Qty]],0),\"\"),\"\")","v":""},{"$f":"IFERROR(IF(Table_RetroSummary[[#This Row],[IsActive]],IFERROR(VLOOKUP(RIGHT(Table_RetroSummary[[#This Row],[Existing Fixture]],LEN(Table_RetroSummary[[#This Row],[Existing Fixture]])-FIND(\" - \",Table_RetroSummary[[#This Row],[Existing Fixture]],FIND(\"]\",Table_RetroSummary[[#This Row],[Existing Fixture]],1))-2),Table_ControlType[],3,FALSE),0),\"\"),\"\")","v":""},{"$f":"IFERROR(IF(Table_RetroSummary[[#This Row],[IsActive]],IFERROR(Table_RetroSummary[[#This Row],[Existing Fixture Wattage]]/1000*Table_RetroSummary[[#This Row],[OpHrs]]*Table_RetroSummary[[#This Row],[E. Qty]]*Table_RetroSummary[[#This Row],[Existing CSF]]*(-1),0),\"\"),\"\")","v":""},{"$f":"IFERROR(Table_RetroSummary[[#This Row],[Existing Fixture kWh]]+Table_RetroSummary[[#This Row],[Existing Fixture (Existing Controls) kWh]],\"\")","v":""},{"$f":"IFERROR(IF(Table_RetroSummary[[#This Row],[IsActive]],IF(ISNUMBER(MATCH(Table_POSTInfo[[#This Row],[Line]],Table_POSTInspection[Line],0)),INDEX(Table_POSTInspection[Fixture Description '[P']],MATCH(Table_RetroSummary[[#This Row],[Line Item]],Table_POSTInspection[Line],0)),Table_POSTInfo[[#This Row],[Fixture Description '[P']]]),\"\"),\"\")","v":""},{"$f":"IFERROR(IF(Table_RetroSummary[[#This Row],[IsActive]],IF(ISNUMBER(MATCH(Table_POSTInfo[[#This Row],[Line]],Table_POSTInspection[Line],0)),INDEX(Table_POSTInspection['# Lamps/ Fixture '[P']],MATCH(Table_RetroSummary[[#This Row],[Line Item]],Table_POSTInspection[Line],0)),Table_POSTInfo[[#This Row],['# Lamps/ Fixture '[P']]]),\"\"),\"\")","v":""},{"$f":"IFERROR(IF(Table_RetroSummary[[#This Row],[IsActive]],IF(ISNUMBER(MATCH(Table_POSTInfo[[#This Row],[Line]],Table_POSTInspection[Line],0)),INDEX(Table_POSTInspection[Fixture/ Lamp Wattage '[P']],MATCH(Table_RetroSummary[[#This Row],[Line Item]],Table_POSTInspection[Line],0)),Table_POSTInfo[[#This Row],[Fixture/ Lamp Wattage '[P']]]),\"\"),\"\")","v":""},{"$f":"IFERROR(IF(Table_RetroSummary[[#This Row],[IsActive]],IF(ISNUMBER(MATCH(Table_POSTInfo[[#This Row],[Line]],Table_POSTInspection[Line],0)),INDEX(Table_POSTInspection[Fixture Qty '[P']],MATCH(Table_RetroSummary[[#This Row],[Line Item]],Table_POSTInspection[Line],0)),Table_POSTInfo[[#This Row],[Fixture Qty '[P']]]),\"\"),\"\")","v":""},{"$f":"IFERROR(IF(Table_RetroSummary[[#This Row],[IsActive]],Table_RetroSummary[[#This Row],[Fixture/ Lamp Wattage '[P']]]*Table_RetroSummary[[#This Row],[P. Qty]],\"\"),\"\")","v":""},{"$f":"IFERROR(IF(Table_RetroSummary[[#This Row],[IsActive]],IF(ISNUMBER(MATCH(Table_POSTInfo[[#This Row],[Line]],Table_POSTInspection[Line],0)),INDEX(Table_POSTInspection[Fixture Wattage '[P']],MATCH(Table_RetroSummary[[#This Row],[Line Item]],Table_POSTInspection[Line],0)),Table_POSTInfo[[#This Row],[Fixture Wattage '[P']]]),\"\"),\"\")","v":""},{"$f":"IFERROR(Table_RetroSummary[[#This Row],[Total '# Lamps '[P']]]+Table_RetroSummary[[#This Row],[Proposed Fixture Wattage]],\"\")","v":""},{"$f":"IFERROR(Table_RetroSummary[[#This Row],[Proposed Fixture Wattage]]/1000*Table_RetroSummary[[#This Row],[OpHrs]]*Table_RetroSummary[[#This Row],[P. Qty]],\"\")","v":""},{"$f":"IFERROR(IF(Table_RetroSummary[[#This Row],[IsActive]],IFERROR(VLOOKUP(RIGHT(Table_RetroSummary[[#This Row],[Proposed Fixture]],LEN(Table_RetroSummary[[#This Row],[Proposed Fixture]])-FIND(\" - \",Table_RetroSummary[[#This Row],[Proposed Fixture]],FIND(\"]\",Table_RetroSummary[[#This Row],[Proposed Fixture]],1))-2),Table_ControlType[],3, FALSE),0),\"\"),\"\")","v":""},{"$f":"IFERROR(IF(Table_RetroSummary[[#This Row],[IsActive]],IFERROR(Table_RetroSummary[[#This Row],[Proposed Fixture Wattage]]/1000*Table_RetroSummary[[#This Row],[OpHrs]]*Table_RetroSummary[[#This Row],[P. Qty]]*Table_RetroSummary[[#This Row],[Existing CSF]]*(-1),0),\"\"),\"\")","v":""},{"$f":"IFERROR(Table_RetroSummary[[#This Row],[Proposed Fixture kWh]]+Table_RetroSummary[[#This Row],[Proposed Fixture (Existing Controls) kWh]],\"\")","v":""},{"$f":"IFERROR(IF(Table_RetroSummary[[#This Row],[IsActive]],IFERROR(Table_RetroSummary[[#This Row],[Proposed Fixture Wattage]]/1000*Table_RetroSummary[[#This Row],[OpHrs]]*Table_RetroSummary[[#This Row],[P. Qty]]*Table_RetroSummary[[#This Row],[Proposed CSF]]*(-1),0),\"\"),\"\")","v":""},{"$f":"IFERROR(Table_RetroSummary[[#This Row],[Proposed Fixture kWh]]+Table_RetroSummary[[#This Row],[Proposed Fixture (Proposed Controls) kWh]],\"\")","v":""},{"$f":"IFERROR(IF(Table_RetroSummary[[#This Row],[IsActive]],IF(ISNUMBER(MATCH(Table_POSTInfo[[#This Row],[Line]],Table_POSTInspection[Line],0)),INDEX(Table_POSTInspection[DLC or ES Certification '[P']],MATCH(Table_RetroSummary[[#This Row],[Line Item]],Table_POSTInspection[Line],0)),Table_POSTInfo[[#This Row],[DLC or ES Certification '[P']]]),\"\"),\"\")","v":""},null,{"$f":"IFERROR(IF(Table_RetroSummary[[#This Row],[IsActive]],\nIF(AND(RIGHT(Table_RetroSummary[[#This Row],[Existing Fixture]],LEN(Table_RetroSummary[[#This Row],[Existing Fixture]])-FIND(\":\",Table_RetroSummary[[#This Row],[Existing Fixture]],1)-1)<>Table_RetroSummary[[#This Row],[Proposed Fixture]],MID(Table_RetroSummary[[#This Row],[Existing Fixture]],FIND(\": \",Table_RetroSummary[[#This Row],[Existing Fixture]],1)+2,FIND(\"]\",Table_RetroSummary[[#This Row],[Existing Fixture]],1))=LEFT(Table_RetroSummary[[#This Row],[Proposed Fixture]],FIND(\"]\",Table_RetroSummary[[#This Row],[Proposed Fixture]],1))),\n  \"Controls Only\",\n  IF(Table_POSTInfo[[#This Row],[DLC or ES Certification '[P']]]<>\"\",\n    IF(ISNUMBER(FIND(\"LED Tube\",Table_RetroSummary[[#This Row],[Proposed Fixture]],1)),\n      \"LED Re-Lamp\",\n      IF(AND(Table_RetroSummary[[#This Row],[Existing Overall kWh]]>Table_RetroSummary[[#This Row],[Proposed Overall kWh (Existing Controls)]],ISNUMBER(FIND(\"LED\",Table_RetroSummary[[#This Row],[Proposed Fixture]],1))),\n        IF(Table_POSTInfo[[#This Row],[Interior/ Exterior]]=\"Exterior\",\n          \"Exterior LED Fixture\",\n          \"Interior LED Fixture\"),\n        \"Ineligible Fixture\")),\n    \"Ineligible Fixture\")),\n\"\"),\"\")","v":""},{"$f":"IFERROR(VLOOKUP(Table_RetroSummary[[#This Row],[Fixture Measure Description]],Table_FixtureRate[],2,FALSE),\"\")","v":""},{"$f":"IFERROR(IF(Table_RetroSummary[[#This Row],[IsActive]],IF(Table_RetroSummary[[#This Row],[Fixture Measure Description]]=\"Ineligible Fixture\",0,ROUND(Table_RetroSummary[[#This Row],[Fixture Rebate (per kW)]]*(Table_RetroSummary[[#This Row],[Existing Fixture Wattage]]*Table_RetroSummary[[#This Row],[E. Qty]]-Table_RetroSummary[[#This Row],[Proposed Fixture Wattage]]*Table_RetroSummary[[#This Row],[P. Qty]])/1000,2)),\"\"),\"\")","v":""},{"$f":"IFERROR(IF(Table_RetroSummary[[#This Row],[Fixture Measure Description]]=\"Ineligible Fixture\",0,ROUND(IF(ProjectCost_Total=0,300000,ProjectCost_Total)*Table_RetroSummary[[#This Row],[Fixture Rebate]]/SUM(Table_RetroSummary[Fixture Rebate],Table_RetroSummary[Controls Rebate]),2)),\"\")","v":""},{"$f":"IFERROR(IF(Table_RetroSummary[[#This Row],[IsActive]],IF(Table_RetroSummary[[#This Row],[Fixture Measure Description]]=\"Ineligible Fixture\",0,Table_RetroSummary[[#This Row],[Existing Overall kWh]]-Table_RetroSummary[[#This Row],[Proposed Overall kWh (Existing Controls)]]),\"\"),\"\")","v":""},{"$f":"IFERROR(IF(Table_RetroSummary[[#This Row],[IsActive]],IF(Table_RetroSummary[[#This Row],[Fixture Measure Description]]=\"Ineligible Fixture\",0,(Table_RetroSummary[[#This Row],[Existing Fixture kWh]]-Table_RetroSummary[[#This Row],[Proposed Fixture kWh]])/Table_RetroSummary[[#This Row],[OpHrs]]*Table_RetroSummary[[#This Row],[CF (Ltg)]]*Table_RetroSummary[[#This Row],[DF (Ltg)]]),\"\"),\"\")","v":""},null,{"$f":"IFERROR(\n  IF(OR(Table_RetroSummary[[#This Row],[Fixture Measure Description]]=\"\",Table_RetroSummary[[#This Row],[Fixture Measure Description]]=\"Ineligible Fixture\"),\n    \"\",\n    IFERROR(VLOOKUP(RIGHT(Table_RetroSummary[[#This Row],[Existing Fixture]],LEN(Table_RetroSummary[[#This Row],[Existing Fixture]])-FIND(\" - \",Table_RetroSummary[[#This Row],[Existing Fixture]],FIND(\"]\",Table_RetroSummary[[#This Row],[Existing Fixture]],1))-2),Table_ControlType[],2,FALSE),\"None\")\n    & \" - \" &\n    IFERROR(VLOOKUP(RIGHT(Table_RetroSummary[[#This Row],[Proposed Fixture]],LEN(Table_RetroSummary[[#This Row],[Proposed Fixture]])-FIND(\" - \",Table_RetroSummary[[#This Row],[Proposed Fixture]],FIND(\"]\",Table_RetroSummary[[#This Row],[Proposed Fixture]],1))-2),Table_ControlType[],2, FALSE),None)),\n\"\")","v":""},{"$f":"IFERROR(VLOOKUP(Table_RetroSummary[[#This Row],[Controls Measure Description]],Table_ControlRate[],2,FALSE),\"\")","v":""},{"$f":"IFERROR(IF(Table_RetroSummary[[#This Row],[IsActive]],IF(Table_RetroSummary[[#This Row],[Controls Measure Description]]=\"\",0,ROUND(Table_RetroSummary[[#This Row],[Controls Rebate (per Fixt Watt)]]*Table_RetroSummary[[#This Row],[Proposed Fixture Wattage]]*Table_RetroSummary[[#This Row],[P. Qty]],2)),\"\"),\"\")","v":""},{"$f":"IFERROR(IF(Table_RetroSummary[[#This Row],[Fixture Measure Description]]=\"Ineligible Fixture\",0,ROUND(IF(ProjectCost_Total=0,300000,ProjectCost_Total)*Table_RetroSummary[[#This Row],[Controls Rebate]]/SUM(Table_RetroSummary[Fixture Rebate],Table_RetroSummary[Controls Rebate]),2)),\"\")","v":""},{"$f":"IFERROR(IF(Table_RetroSummary[[#This Row],[IsActive]],IF(Table_RetroSummary[[#This Row],[Controls Measure Description]]=\"\",0,(Table_RetroSummary[[#This Row],[Proposed Fixture (Existing Controls) kWh]]-Table_RetroSummary[[#This Row],[Proposed Fixture (Proposed Controls) kWh]])),\"\"),\"\")","v":""},{"$f":"IFERROR(IF(Table_RetroSummary[[#This Row],[IsActive]],IF(Table_RetroSummary[[#This Row],[Controls Measure Description]]=\"\",0,(Table_RetroSummary[[#This Row],[Proposed Fixture (Existing Controls) kWh]]-Table_RetroSummary[[#This Row],[Proposed Fixture (Proposed Controls) kWh]])/Table_RetroSummary[[#This Row],[OpHrs]]*Table_RetroSummary[[#This Row],[CF (Ltg)]]*Table_RetroSummary[[#This Row],[DF (Ltg)]]),\"\"),\"\")","v":""},null,{"$f":"IFERROR(IF(NOT(ISNUMBER(Table_RetroSummary[[#This Row],[Fixture Rebate]])),\"\",IF(MIN(IF(SUM(Table_RetroSummary[Fixture Cost],Table_RetroSummary[Controls Cost])<0,0,SUM(Table_RetroSummary[Fixture Cost],Table_RetroSummary[Controls Cost])),SUM(Table_RetroSummary[Fixture Rebate],Table_RetroSummary[Controls Rebate]))>300000,300000/MIN(IF(SUM(Table_RetroSummary[Fixture Cost],Table_RetroSummary[Controls Cost])<0,0,SUM(Table_RetroSummary[Fixture Cost],Table_RetroSummary[Controls Cost])),SUM(Table_RetroSummary[Fixture Rebate],Table_RetroSummary[Controls Rebate]))*MIN(IF(SUM(Table_RetroSummary[Fixture Cost],Table_RetroSummary[Controls Cost])<0,0,SUM(Table_RetroSummary[Fixture Cost],Table_RetroSummary[Controls Cost])),Table_RetroSummary[[#This Row],[Fixture Rebate]]+IF(Table_RetroSummary[[#This Row],[Controls Rebate]]=\"\",0,Table_RetroSummary[[#This Row],[Controls Rebate]])),MIN(IF(SUM(Table_RetroSummary[Fixture Cost],Table_RetroSummary[Controls Cost])<0,0,SUM(Table_RetroSummary[Fixture Cost],Table_RetroSummary[Controls Cost])),Table_RetroSummary[[#This Row],[Fixture Rebate]]+IF(Table_RetroSummary[[#This Row],[Controls Rebate]]=\"\",0,Table_RetroSummary[[#This Row],[Controls Rebate]])))),\"\")","v":""},{"$f":"IFERROR(IF(Table_RetroSummary[[#This Row],[Fixture Cost]]=\"\",\"\",Table_RetroSummary[[#This Row],[Fixture Cost]]+IF(Table_RetroSummary[[#This Row],[Controls Cost]]=\"\",0,Table_RetroSummary[[#This Row],[Controls Cost]])),\"\")","v":""},{"$f":"IFERROR(IF(Table_RetroSummary[[#This Row],[IsActive]],IF(Table_POSTInfo[[#This Row],[Interior/ Exterior]]=\"Interior\",IFERROR((Table_RetroSummary[[#This Row],[Annual Fixture Savings (kWh)]]+Table_RetroSummary[[#This Row],[Annual Control Savings (kWh)]])*(Table_RetroSummary[[#This Row],[EIF]]-1),0),0),\"\"),\"\")","v":""},{"$f":"IFERROR(IF(Table_RetroSummary[[#This Row],[IsActive]],IF(Table_POSTInfo[[#This Row],[Interior/ Exterior]]=\"Interior\",IFERROR((Table_RetroSummary[[#This Row],[Fixture kW Reduction]]+Table_RetroSummary[[#This Row],[Control kW Reduction]]/(Table_RetroSummary[[#This Row],[CF (Ltg)]]*Table_RetroSummary[[#This Row],[DF (Ltg)]]))*(Table_RetroSummary[[#This Row],[DIF]]-1)*Table_RetroSummary[[#This Row],[CF (HVAC)]]*Table_RetroSummary[[#This Row],[DF (HVAC)]],0),0),\"\"),\"\")","v":""},{"$f":"IFERROR(IF(Table_RetroSummary[[#This Row],[IsActive]],IF(NOT(ISNUMBER(Table_RetroSummary[[#This Row],[Fixture Rebate]])),\"\",ROUND(Table_RetroSummary[[#This Row],[Annual Fixture Savings (kWh)]]+Table_RetroSummary[[#This Row],[Annual Control Savings (kWh)]],0)),\"\"),\"\")","v":""},{"$f":"IFERROR(IF(Table_RetroSummary[[#This Row],[IsActive]],IF(NOT(ISNUMBER(Table_RetroSummary[[#This Row],[Fixture Rebate]])),\"\",ROUND(Table_RetroSummary[[#This Row],[Fixture kW Reduction]]+Table_RetroSummary[[#This Row],[Control kW Reduction]],3)),\"\"),\"\")","v":""},{"$f":"IFERROR(IF(Table_RetroSummary[[#This Row],[IsActive]],IF(NOT(ISNUMBER(Table_RetroSummary[[#This Row],[Fixture Rebate]])),\"\",ROUND(Table_RetroSummary[[#This Row],[Fixture Energy Savings (kWh)]]+Table_RetroSummary[[#This Row],[Induced HVAC Energy Savings (kWh)]],0)),\"\"),\"\")","v":""},{"$f":"IFERROR(IF(Table_RetroSummary[[#This Row],[IsActive]],IF(NOT(ISNUMBER(Table_RetroSummary[[#This Row],[Fixture Rebate]])),\"\",ROUND(Table_RetroSummary[[#This Row],[Fixture Demand Savings (kW)]]+Table_RetroSummary[[#This Row],[Induced HVAC Demand Savings (kW)]],3)),\"\"),\"\")","v":""}]
[{"$f":"IFERROR(Table_POSTInfo[[#This Row],[Line]],\"\")","v":32},{"$f":"IFERROR(Table_POSTInfo[[#This Row],[IsActive]],\"\")","v":false},{"$f":"IFERROR(IF(Table_RetroSummary[[#This Row],[IsActive]],CONCATENATE(Table_RetroSummary[[#This Row],[Existing Fixture]],\" | \",Table_RetroSummary[[#This Row],[Proposed Fixture]]),\"\"),\"\")","v":""},{"$f":"IFERROR(IF(Table_RetroSummary[[#This Row],[IsActive]],VLOOKUP(IF(ISNUMBER(MATCH(Table_POSTInfo[[#This Row],[Line]],Table_POSTInspection[Line],0)),INDEX(Table_POSTInspection[Schedule],MATCH(Table_RetroSummary[[#This Row],[Line Item]],Table_POSTInspection[Line],0)),Table_POSTInfo[[#This Row],[Schedule]]),'Customer Information'!$S$27:$T$34,2,FALSE),\"\"),\"\")","v":""},{"$f":"IFERROR(IF(Table_RetroSummary[[#This Row],[IsActive]],IF(IF(ISNUMBER(MATCH(Table_RetroSummary[[#This Row],[Line Item]],Table_POSTInspection[Line],0)),INDEX(Table_POSTInspection[Interior/ Exterior],MATCH(Table_RetroSummary[[#This Row],[Line Item]],Table_POSTInfo[[#This Row],[Line]],0)),Table_POSTInfo[[#This Row],[Interior/ Exterior]])=\"Interior\",'Customer Information'!$S$25,0),\"\"),\"\")","v":""},{"$f":"IFERROR(IF(Table_RetroSummary[[#This Row],[IsActive]],IF(IF(ISNUMBER(MATCH(Table_RetroSummary[[#This Row],[Line Item]],Table_POSTInspection[Line],0)),INDEX(Table_POSTInspection[Interior/ Exterior],MATCH(Table_RetroSummary[[#This Row],[Line Item]],Table_POSTInfo[[#This Row],[Line]],0)),Table_POSTInfo[[#This Row],[Interior/ Exterior]])=\"Interior\",'Customer Information'!$T$25,0),\"\"),\"\")","v":""},{"$f":"IFERROR(IF(Table_RetroSummary[[#This Row],[IsActive]],IF(IF(ISNUMBER(MATCH(Table_RetroSummary[[#This Row],[Line Item]],Table_POSTInspection[Line],0)),INDEX(Table_POSTInspection[Interior/ Exterior],MATCH(Table_RetroSummary[[#This Row],[Line Item]],Table_POSTInfo[[#This Row],[Line]],0)),Table_POSTInfo[[#This Row],[Interior/ Exterior]])=\"Interior\",'Customer Information'!$U$25,0),\"\"),\"\")","v":""},{"$f":"IFERROR(IF(Table_RetroSummary[[#This Row],[IsActive]],IF(IF(ISNUMBER(MATCH(Table_RetroSummary[[#This Row],[Line Item]],Table_POSTInspection[Line],0)),INDEX(Table_POSTInspection[Interior/ Exterior],MATCH(Table_RetroSummary[[#This Row],[Line Item]],Table_POSTInfo[[#This Row],[Line]],0)),Table_POSTInfo[[#This Row],[Interior/ Exterior]])=\"Interior\",'Customer Information'!$V$25,0),\"\"),\"\")","v":""},{"$f":"IFERROR(IF(Table_RetroSummary[[#This Row],[IsActive]],IF(IF(ISNUMBER(MATCH(Table_RetroSummary[[#This Row],[Line Item]],Table_POSTInspection[Line],0)),INDEX(Table_POSTInspection[Interior/ Exterior],MATCH(Table_RetroSummary[[#This Row],[Line Item]],Table_POSTInfo[[#This Row],[Line]],0)),Table_POSTInfo[[#This Row],[Interior/ Exterior]])=\"Interior\",'Customer Information'!$W$25,0),\"\"),\"\")","v":""},{"$f":"IFERROR(IF(Table_RetroSummary[[#This Row],[IsActive]],IF(IF(ISNUMBER(MATCH(Table_RetroSummary[[#This Row],[Line Item]],Table_POSTInspection[Line],0)),INDEX(Table_POSTInspection[Interior/ Exterior],MATCH(Table_RetroSummary[[#This Row],[Line Item]],Table_POSTInfo[[#This Row],[Line]],0)),Table_POSTInfo[[#This Row],[Interior/ Exterior]])=\"Interior\",'Customer Information'!$X$25,0),\"\"),\"\")","v":""},{"$f":"IFERROR(IF(Table_RetroSummary[[#This Row],[IsActive]],\nCONCATENATE(\nIF(ISNUMBER(MATCH(Table_POSTInfo[[#This Row],[Line]],Table_POSTInspection[Line],0)),INDEX(Table_POSTInspection[Interior/ Exterior],MATCH(Table_RetroSummary[[#This Row],[Line Item]],Table_POSTInspection[Line],0)),Table_POSTInfo[[#This Row],[Interior/ Exterior]]),\n\" - \",\nIF(ISNUMBER(MATCH(Table_POSTInfo[[#This Row],[Line]],Table_POSTInspection[Line],0)),INDEX(Table_POSTInspection[Space Description],MATCH(Table_RetroSummary[[#This Row],[Line Item]],Table_POSTInspection[Line],0)),Table_POSTInfo[[#This Row],[Space Description]])),\n \"\"),\"\")","v":""},{"$f":"IFERROR(IF(Table_RetroSummary[[#This Row],[IsActive]]=\"\",\"\",Table_POSTInfo[[#This Row],[Fixture Description '[E']]]),\"\")","v":""},{"$f":"IFERROR(IF(Table_RetroSummary[[#This Row],[IsActive]]=\"\",\"\",Table_POSTInfo[[#This Row],['# Lamps/ Fixture '[E']]]),\"\")","v":""},{"$f":"IFERROR(IF(Table_RetroSummary[[#This Row],[IsActive]]=\"\",\"\",Table_POSTInfo[[#This Row],[Fixture/ Lamp Wattage '[E']]]),\"\")","v":""},{"$f":"IFERROR(IF(Table_RetroSummary[[#This Row],[IsActive]]=\"\",\"\",Table_POSTInfo[[#This Row],[Fixture Qty '[E']]]),\"\")","v":""},{"$f":"IFERROR(IF(Table_RetroSummary[[#This Row],[IsActive]],Table_RetroSummary[[#This Row],[Fixture/ Lamp Wattage '[E']]]*Table_RetroSummary[[#This Row],[E. Qty]],\"\"),\"\")","v":""},{"$f":"IFERROR(IF(Table_RetroSummary[[#This Row],[IsActive]]=\"\",\"\",Table_POSTInfo[[#This Row],[Fixture Wattage '[E']]]),\"\")","v":""},{"$f":"IFERROR(IF(Table_RetroSummary[[#This Row],[IsActive]],IFERROR(Table_RetroSummary[[#This Row],[Existing Fixture Wattage]]/1000*Table_RetroSummary[[#This Row],[OpHrs]]*Table_RetroSummary[[#This Row],[E. Qty]],0),\"\"),\"\")","v":""},{"$f":"IFERROR(IF(Table_RetroSummary[[#This Row],[IsActive]],IFERROR(VLOOKUP(RIGHT(Table_RetroSummary[[#This Row],[Existing Fixture]],LEN(Table_RetroSummary[[#This Row],[Existing Fixture]])-FIND(\" - \",Table_RetroSummary[[#This Row],[Existing Fixture]],FIND(\"]\",Table_RetroSummary[[#This Row],[Existing Fixture]],1))-2),Table_ControlType[],3,FALSE),0),\"\"),\"\")","v":""},{"$f":"IFERROR(IF(Table_RetroSummary[[#This Row],[IsActive]],IFERROR(Table_RetroSummary[[#This Row],[Existing Fixture Wattage]]/1000*Table_RetroSummary[[#This Row],[OpHrs]]*Table_RetroSummary[[#This Row],[E. Qty]]*Table_RetroSummary[[#This Row],[Existing CSF]]*(-1),0),\"\"),\"\")","v":""},{"$f":"IFERROR(Table_RetroSummary[[#This Row],[Existing Fixture kWh]]+Table_RetroSummary[[#This Row],[Existing Fixture (Existing Controls) kWh]],\"\")","v":""},{"$f":"IFERROR(IF(Table_RetroSummary[[#This Row],[IsActive]],IF(ISNUMBER(MATCH(Table_POSTInfo[[#This Row],[Line]],Table_POSTInspection[Line],0)),INDEX(Table_POSTInspection[Fixture Description '[P']],MATCH(Table_RetroSummary[[#This Row],[Line Item]],Table_POSTInspection[Line],0)),Table_POSTInfo[[#This Row],[Fixture Description '[P']]]),\"\"),\"\")","v":""},{"$f":"IFERROR(IF(Table_RetroSummary[[#This Row],[IsActive]],IF(ISNUMBER(MATCH(Table_POSTInfo[[#This Row],[Line]],Table_POSTInspection[Line],0)),INDEX(Table_POSTInspection['# Lamps/ Fixture '[P']],MATCH(Table_RetroSummary[[#This Row],[Line Item]],Table_POSTInspection[Line],0)),Table_POSTInfo[[#This Row],['# Lamps/ Fixture '[P']]]),\"\"),\"\")","v":""},{"$f":"IFERROR(IF(Table_RetroSummary[[#This Row],[IsActive]],IF(ISNUMBER(MATCH(Table_POSTInfo[[#This Row],[Line]],Table_POSTInspection[Line],0)),INDEX(Table_POSTInspection[Fixture/ Lamp Wattage '[P']],MATCH(Table_RetroSummary[[#This Row],[Line Item]],Table_POSTInspection[Line],0)),Table_POSTInfo[[#This Row],[Fixture/ Lamp Wattage '[P']]]),\"\"),\"\")","v":""},{"$f":"IFERROR(IF(Table_RetroSummary[[#This Row],[IsActive]],IF(ISNUMBER(MATCH(Table_POSTInfo[[#This Row],[Line]],Table_POSTInspection[Line],0)),INDEX(Table_POSTInspection[Fixture Qty '[P']],MATCH(Table_RetroSummary[[#This Row],[Line Item]],Table_POSTInspection[Line],0)),Table_POSTInfo[[#This Row],[Fixture Qty '[P']]]),\"\"),\"\")","v":""},{"$f":"IFERROR(IF(Table_RetroSummary[[#This Row],[IsActive]],Table_RetroSummary[[#This Row],[Fixture/ Lamp Wattage '[P']]]*Table_RetroSummary[[#This Row],[P. Qty]],\"\"),\"\")","v":""},{"$f":"IFERROR(IF(Table_RetroSummary[[#This Row],[IsActive]],IF(ISNUMBER(MATCH(Table_POSTInfo[[#This Row],[Line]],Table_POSTInspection[Line],0)),INDEX(Table_POSTInspection[Fixture Wattage '[P']],MATCH(Table_RetroSummary[[#This Row],[Line Item]],Table_POSTInspection[Line],0)),Table_POSTInfo[[#This Row],[Fixture Wattage '[P']]]),\"\"),\"\")","v":""},{"$f":"IFERROR(Table_RetroSummary[[#This Row],[Total '# Lamps '[P']]]+Table_RetroSummary[[#This Row],[Proposed Fixture Wattage]],\"\")","v":""},{"$f":"IFERROR(Table_RetroSummary[[#This Row],[Proposed Fixture Wattage]]/1000*Table_RetroSummary[[#This Row],[OpHrs]]*Table_RetroSummary[[#This Row],[P. Qty]],\"\")","v":""},{"$f":"IFERROR(IF(Table_RetroSummary[[#This Row],[IsActive]],IFERROR(VLOOKUP(RIGHT(Table_RetroSummary[[#This Row],[Proposed Fixture]],LEN(Table_RetroSummary[[#This Row],[Proposed Fixture]])-FIND(\" - \",Table_RetroSummary[[#This Row],[Proposed Fixture]],FIND(\"]\",Table_RetroSummary[[#This Row],[Proposed Fixture]],1))-2),Table_ControlType[],3, FALSE),0),\"\"),\"\")","v":""},{"$f":"IFERROR(IF(Table_RetroSummary[[#This Row],[IsActive]],IFERROR(Table_RetroSummary[[#This Row],[Proposed Fixture Wattage]]/1000*Table_RetroSummary[[#This Row],[OpHrs]]*Table_RetroSummary[[#This Row],[P. Qty]]*Table_RetroSummary[[#This Row],[Existing CSF]]*(-1),0),\"\"),\"\")","v":""},{"$f":"IFERROR(Table_RetroSummary[[#This Row],[Proposed Fixture kWh]]+Table_RetroSummary[[#This Row],[Proposed Fixture (Existing Controls) kWh]],\"\")","v":""},{"$f":"IFERROR(IF(Table_RetroSummary[[#This Row],[IsActive]],IFERROR(Table_RetroSummary[[#This Row],[Proposed Fixture Wattage]]/1000*Table_RetroSummary[[#This Row],[OpHrs]]*Table_RetroSummary[[#This Row],[P. Qty]]*Table_RetroSummary[[#This Row],[Proposed CSF]]*(-1),0),\"\"),\"\")","v":""},{"$f":"IFERROR(Table_RetroSummary[[#This Row],[Proposed Fixture kWh]]+Table_RetroSummary[[#This Row],[Proposed Fixture (Proposed Controls) kWh]],\"\")","v":""},{"$f":"IFERROR(IF(Table_RetroSummary[[#This Row],[IsActive]],IF(ISNUMBER(MATCH(Table_POSTInfo[[#This Row],[Line]],Table_POSTInspection[Line],0)),INDEX(Table_POSTInspection[DLC or ES Certification '[P']],MATCH(Table_RetroSummary[[#This Row],[Line Item]],Table_POSTInspection[Line],0)),Table_POSTInfo[[#This Row],[DLC or ES Certification '[P']]]),\"\"),\"\")","v":""},null,{"$f":"IFERROR(IF(Table_RetroSummary[[#This Row],[IsActive]],\nIF(AND(RIGHT(Table_RetroSummary[[#This Row],[Existing Fixture]],LEN(Table_RetroSummary[[#This Row],[Existing Fixture]])-FIND(\":\",Table_RetroSummary[[#This Row],[Existing Fixture]],1)-1)<>Table_RetroSummary[[#This Row],[Proposed Fixture]],MID(Table_RetroSummary[[#This Row],[Existing Fixture]],FIND(\": \",Table_RetroSummary[[#This Row],[Existing Fixture]],1)+2,FIND(\"]\",Table_RetroSummary[[#This Row],[Existing Fixture]],1))=LEFT(Table_RetroSummary[[#This Row],[Proposed Fixture]],FIND(\"]\",Table_RetroSummary[[#This Row],[Proposed Fixture]],1))),\n  \"Controls Only\",\n  IF(Table_POSTInfo[[#This Row],[DLC or ES Certification '[P']]]<>\"\",\n    IF(ISNUMBER(FIND(\"LED Tube\",Table_RetroSummary[[#This Row],[Proposed Fixture]],1)),\n      \"LED Re-Lamp\",\n      IF(AND(Table_RetroSummary[[#This Row],[Existing Overall kWh]]>Table_RetroSummary[[#This Row],[Proposed Overall kWh (Existing Controls)]],ISNUMBER(FIND(\"LED\",Table_RetroSummary[[#This Row],[Proposed Fixture]],1))),\n        IF(Table_POSTInfo[[#This Row],[Interior/ Exterior]]=\"Exterior\",\n          \"Exterior LED Fixture\",\n          \"Interior LED Fixture\"),\n        \"Ineligible Fixture\")),\n    \"Ineligible Fixture\")),\n\"\"),\"\")","v":""},{"$f":"IFERROR(VLOOKUP(Table_RetroSummary[[#This Row],[Fixture Measure Description]],Table_FixtureRate[],2,FALSE),\"\")","v":""},{"$f":"IFERROR(IF(Table_RetroSummary[[#This Row],[IsActive]],IF(Table_RetroSummary[[#This Row],[Fixture Measure Description]]=\"Ineligible Fixture\",0,ROUND(Table_RetroSummary[[#This Row],[Fixture Rebate (per kW)]]*(Table_RetroSummary[[#This Row],[Existing Fixture Wattage]]*Table_RetroSummary[[#This Row],[E. Qty]]-Table_RetroSummary[[#This Row],[Proposed Fixture Wattage]]*Table_RetroSummary[[#This Row],[P. Qty]])/1000,2)),\"\"),\"\")","v":""},{"$f":"IFERROR(IF(Table_RetroSummary[[#This Row],[Fixture Measure Description]]=\"Ineligible Fixture\",0,ROUND(IF(ProjectCost_Total=0,300000,ProjectCost_Total)*Table_RetroSummary[[#This Row],[Fixture Rebate]]/SUM(Table_RetroSummary[Fixture Rebate],Table_RetroSummary[Controls Rebate]),2)),\"\")","v":""},{"$f":"IFERROR(IF(Table_RetroSummary[[#This Row],[IsActive]],IF(Table_RetroSummary[[#This Row],[Fixture Measure Description]]=\"Ineligible Fixture\",0,Table_RetroSummary[[#This Row],[Existing Overall kWh]]-Table_RetroSummary[[#This Row],[Proposed Overall kWh (Existing Controls)]]),\"\"),\"\")","v":""},{"$f":"IFERROR(IF(Table_RetroSummary[[#This Row],[IsActive]],IF(Table_RetroSummary[[#This Row],[Fixture Measure Description]]=\"Ineligible Fixture\",0,(Table_RetroSummary[[#This Row],[Existing Fixture kWh]]-Table_RetroSummary[[#This Row],[Proposed Fixture kWh]])/Table_RetroSummary[[#This Row],[OpHrs]]*Table_RetroSummary[[#This Row],[CF (Ltg)]]*Table_RetroSummary[[#This Row],[DF (Ltg)]]),\"\"),\"\")","v":""},null,{"$f":"IFERROR(\n  IF(OR(Table_RetroSummary[[#This Row],[Fixture Measure Description]]=\"\",Table_RetroSummary[[#This Row],[Fixture Measure Description]]=\"Ineligible Fixture\"),\n    \"\",\n    IFERROR(VLOOKUP(RIGHT(Table_RetroSummary[[#This Row],[Existing Fixture]],LEN(Table_RetroSummary[[#This Row],[Existing Fixture]])-FIND(\" - \",Table_RetroSummary[[#This Row],[Existing Fixture]],FIND(\"]\",Table_RetroSummary[[#This Row],[Existing Fixture]],1))-2),Table_ControlType[],2,FALSE),\"None\")\n    & \" - \" &\n    IFERROR(VLOOKUP(RIGHT(Table_RetroSummary[[#This Row],[Proposed Fixture]],LEN(Table_RetroSummary[[#This Row],[Proposed Fixture]])-FIND(\" - \",Table_RetroSummary[[#This Row],[Proposed Fixture]],FIND(\"]\",Table_RetroSummary[[#This Row],[Proposed Fixture]],1))-2),Table_ControlType[],2, FALSE),None)),\n\"\")","v":""},{"$f":"IFERROR(VLOOKUP(Table_RetroSummary[[#This Row],[Controls Measure Description]],Table_ControlRate[],2,FALSE),\"\")","v":""},{"$f":"IFERROR(IF(Table_RetroSummary[[#This Row],[IsActive]],IF(Table_RetroSummary[[#This Row],[Controls Measure Description]]=\"\",0,ROUND(Table_RetroSummary[[#This Row],[Controls Rebate (per Fixt Watt)]]*Table_RetroSummary[[#This Row],[Proposed Fixture Wattage]]*Table_RetroSummary[[#This Row],[P. Qty]],2)),\"\"),\"\")","v":""},{"$f":"IFERROR(IF(Table_RetroSummary[[#This Row],[Fixture Measure Description]]=\"Ineligible Fixture\",0,ROUND(IF(ProjectCost_Total=0,300000,ProjectCost_Total)*Table_RetroSummary[[#This Row],[Controls Rebate]]/SUM(Table_RetroSummary[Fixture Rebate],Table_RetroSummary[Controls Rebate]),2)),\"\")","v":""},{"$f":"IFERROR(IF(Table_RetroSummary[[#This Row],[IsActive]],IF(Table_RetroSummary[[#This Row],[Controls Measure Description]]=\"\",0,(Table_RetroSummary[[#This Row],[Proposed Fixture (Existing Controls) kWh]]-Table_RetroSummary[[#This Row],[Proposed Fixture (Proposed Controls) kWh]])),\"\"),\"\")","v":""},{"$f":"IFERROR(IF(Table_RetroSummary[[#This Row],[IsActive]],IF(Table_RetroSummary[[#This Row],[Controls Measure Description]]=\"\",0,(Table_RetroSummary[[#This Row],[Proposed Fixture (Existing Controls) kWh]]-Table_RetroSummary[[#This Row],[Proposed Fixture (Proposed Controls) kWh]])/Table_RetroSummary[[#This Row],[OpHrs]]*Table_RetroSummary[[#This Row],[CF (Ltg)]]*Table_RetroSummary[[#This Row],[DF (Ltg)]]),\"\"),\"\")","v":""},null,{"$f":"IFERROR(IF(NOT(ISNUMBER(Table_RetroSummary[[#This Row],[Fixture Rebate]])),\"\",IF(MIN(IF(SUM(Table_RetroSummary[Fixture Cost],Table_RetroSummary[Controls Cost])<0,0,SUM(Table_RetroSummary[Fixture Cost],Table_RetroSummary[Controls Cost])),SUM(Table_RetroSummary[Fixture Rebate],Table_RetroSummary[Controls Rebate]))>300000,300000/MIN(IF(SUM(Table_RetroSummary[Fixture Cost],Table_RetroSummary[Controls Cost])<0,0,SUM(Table_RetroSummary[Fixture Cost],Table_RetroSummary[Controls Cost])),SUM(Table_RetroSummary[Fixture Rebate],Table_RetroSummary[Controls Rebate]))*MIN(IF(SUM(Table_RetroSummary[Fixture Cost],Table_RetroSummary[Controls Cost])<0,0,SUM(Table_RetroSummary[Fixture Cost],Table_RetroSummary[Controls Cost])),Table_RetroSummary[[#This Row],[Fixture Rebate]]+IF(Table_RetroSummary[[#This Row],[Controls Rebate]]=\"\",0,Table_RetroSummary[[#This Row],[Controls Rebate]])),MIN(IF(SUM(Table_RetroSummary[Fixture Cost],Table_RetroSummary[Controls Cost])<0,0,SUM(Table_RetroSummary[Fixture Cost],Table_RetroSummary[Controls Cost])),Table_RetroSummary[[#This Row],[Fixture Rebate]]+IF(Table_RetroSummary[[#This Row],[Controls Rebate]]=\"\",0,Table_RetroSummary[[#This Row],[Controls Rebate]])))),\"\")","v":""},{"$f":"IFERROR(IF(Table_RetroSummary[[#This Row],[Fixture Cost]]=\"\",\"\",Table_RetroSummary[[#This Row],[Fixture Cost]]+IF(Table_RetroSummary[[#This Row],[Controls Cost]]=\"\",0,Table_RetroSummary[[#This Row],[Controls Cost]])),\"\")","v":""},{"$f":"IFERROR(IF(Table_RetroSummary[[#This Row],[IsActive]],IF(Table_POSTInfo[[#This Row],[Interior/ Exterior]]=\"Interior\",IFERROR((Table_RetroSummary[[#This Row],[Annual Fixture Savings (kWh)]]+Table_RetroSummary[[#This Row],[Annual Control Savings (kWh)]])*(Table_RetroSummary[[#This Row],[EIF]]-1),0),0),\"\"),\"\")","v":""},{"$f":"IFERROR(IF(Table_RetroSummary[[#This Row],[IsActive]],IF(Table_POSTInfo[[#This Row],[Interior/ Exterior]]=\"Interior\",IFERROR((Table_RetroSummary[[#This Row],[Fixture kW Reduction]]+Table_RetroSummary[[#This Row],[Control kW Reduction]]/(Table_RetroSummary[[#This Row],[CF (Ltg)]]*Table_RetroSummary[[#This Row],[DF (Ltg)]]))*(Table_RetroSummary[[#This Row],[DIF]]-1)*Table_RetroSummary[[#This Row],[CF (HVAC)]]*Table_RetroSummary[[#This Row],[DF (HVAC)]],0),0),\"\"),\"\")","v":""},{"$f":"IFERROR(IF(Table_RetroSummary[[#This Row],[IsActive]],IF(NOT(ISNUMBER(Table_RetroSummary[[#This Row],[Fixture Rebate]])),\"\",ROUND(Table_RetroSummary[[#This Row],[Annual Fixture Savings (kWh)]]+Table_RetroSummary[[#This Row],[Annual Control Savings (kWh)]],0)),\"\"),\"\")","v":""},{"$f":"IFERROR(IF(Table_RetroSummary[[#This Row],[IsActive]],IF(NOT(ISNUMBER(Table_RetroSummary[[#This Row],[Fixture Rebate]])),\"\",ROUND(Table_RetroSummary[[#This Row],[Fixture kW Reduction]]+Table_RetroSummary[[#This Row],[Control kW Reduction]],3)),\"\"),\"\")","v":""},{"$f":"IFERROR(IF(Table_RetroSummary[[#This Row],[IsActive]],IF(NOT(ISNUMBER(Table_RetroSummary[[#This Row],[Fixture Rebate]])),\"\",ROUND(Table_RetroSummary[[#This Row],[Fixture Energy Savings (kWh)]]+Table_RetroSummary[[#This Row],[Induced HVAC Energy Savings (kWh)]],0)),\"\"),\"\")","v":""},{"$f":"IFERROR(IF(Table_RetroSummary[[#This Row],[IsActive]],IF(NOT(ISNUMBER(Table_RetroSummary[[#This Row],[Fixture Rebate]])),\"\",ROUND(Table_RetroSummary[[#This Row],[Fixture Demand Savings (kW)]]+Table_RetroSummary[[#This Row],[Induced HVAC Demand Savings (kW)]],3)),\"\"),\"\")","v":""}]
[{"$f":"IFERROR(Table_POSTInfo[[#This Row],[Line]],\"\")","v":33},{"$f":"IFERROR(Table_POSTInfo[[#This Row],[IsActive]],\"\")","v":false},{"$f":"IFERROR(IF(Table_RetroSummary[[#This Row],[IsActive]],CONCATENATE(Table_RetroSummary[[#This Row],[Existing Fixture]],\" | \",Table_RetroSummary[[#This Row],[Proposed Fixture]]),\"\"),\"\")","v":""},{"$f":"IFERROR(IF(Table_RetroSummary[[#This Row],[IsActive]],VLOOKUP(IF(ISNUMBER(MATCH(Table_POSTInfo[[#This Row],[Line]],Table_POSTInspection[Line],0)),INDEX(Table_POSTInspection[Schedule],MATCH(Table_RetroSummary[[#This Row],[Line Item]],Table_POSTInspection[Line],0)),Table_POSTInfo[[#This Row],[Schedule]]),'Customer Information'!$S$27:$T$34,2,FALSE),\"\"),\"\")","v":""},{"$f":"IFERROR(IF(Table_RetroSummary[[#This Row],[IsActive]],IF(IF(ISNUMBER(MATCH(Table_RetroSummary[[#This Row],[Line Item]],Table_POSTInspection[Line],0)),INDEX(Table_POSTInspection[Interior/ Exterior],MATCH(Table_RetroSummary[[#This Row],[Line Item]],Table_POSTInfo[[#This Row],[Line]],0)),Table_POSTInfo[[#This Row],[Interior/ Exterior]])=\"Interior\",'Customer Information'!$S$25,0),\"\"),\"\")","v":""},{"$f":"IFERROR(IF(Table_RetroSummary[[#This Row],[IsActive]],IF(IF(ISNUMBER(MATCH(Table_RetroSummary[[#This Row],[Line Item]],Table_POSTInspection[Line],0)),INDEX(Table_POSTInspection[Interior/ Exterior],MATCH(Table_RetroSummary[[#This Row],[Line Item]],Table_POSTInfo[[#This Row],[Line]],0)),Table_POSTInfo[[#This Row],[Interior/ Exterior]])=\"Interior\",'Customer Information'!$T$25,0),\"\"),\"\")","v":""},{"$f":"IFERROR(IF(Table_RetroSummary[[#This Row],[IsActive]],IF(IF(ISNUMBER(MATCH(Table_RetroSummary[[#This Row],[Line Item]],Table_POSTInspection[Line],0)),INDEX(Table_POSTInspection[Interior/ Exterior],MATCH(Table_RetroSummary[[#This Row],[Line Item]],Table_POSTInfo[[#This Row],[Line]],0)),Table_POSTInfo[[#This Row],[Interior/ Exterior]])=\"Interior\",'Customer Information'!$U$25,0),\"\"),\"\")","v":""},{"$f":"IFERROR(IF(Table_RetroSummary[[#This Row],[IsActive]],IF(IF(ISNUMBER(MATCH(Table_RetroSummary[[#This Row],[Line Item]],Table_POSTInspection[Line],0)),INDEX(Table_POSTInspection[Interior/ Exterior],MATCH(Table_RetroSummary[[#This Row],[Line Item]],Table_POSTInfo[[#This Row],[Line]],0)),Table_POSTInfo[[#This Row],[Interior/ Exterior]])=\"Interior\",'Customer Information'!$V$25,0),\"\"),\"\")","v":""},{"$f":"IFERROR(IF(Table_RetroSummary[[#This Row],[IsActive]],IF(IF(ISNUMBER(MATCH(Table_RetroSummary[[#This Row],[Line Item]],Table_POSTInspection[Line],0)),INDEX(Table_POSTInspection[Interior/ Exterior],MATCH(Table_RetroSummary[[#This Row],[Line Item]],Table_POSTInfo[[#This Row],[Line]],0)),Table_POSTInfo[[#This Row],[Interior/ Exterior]])=\"Interior\",'Customer Information'!$W$25,0),\"\"),\"\")","v":""},{"$f":"IFERROR(IF(Table_RetroSummary[[#This Row],[IsActive]],IF(IF(ISNUMBER(MATCH(Table_RetroSummary[[#This Row],[Line Item]],Table_POSTInspection[Line],0)),INDEX(Table_POSTInspection[Interior/ Exterior],MATCH(Table_RetroSummary[[#This Row],[Line Item]],Table_POSTInfo[[#This Row],[Line]],0)),Table_POSTInfo[[#This Row],[Interior/ Exterior]])=\"Interior\",'Customer Information'!$X$25,0),\"\"),\"\")","v":""},{"$f":"IFERROR(IF(Table_RetroSummary[[#This Row],[IsActive]],\nCONCATENATE(\nIF(ISNUMBER(MATCH(Table_POSTInfo[[#This Row],[Line]],Table_POSTInspection[Line],0)),INDEX(Table_POSTInspection[Interior/ Exterior],MATCH(Table_RetroSummary[[#This Row],[Line Item]],Table_POSTInspection[Line],0)),Table_POSTInfo[[#This Row],[Interior/ Exterior]]),\n\" - \",\nIF(ISNUMBER(MATCH(Table_POSTInfo[[#This Row],[Line]],Table_POSTInspection[Line],0)),INDEX(Table_POSTInspection[Space Description],MATCH(Table_RetroSummary[[#This Row],[Line Item]],Table_POSTInspection[Line],0)),Table_POSTInfo[[#This Row],[Space Description]])),\n \"\"),\"\")","v":""},{"$f":"IFERROR(IF(Table_RetroSummary[[#This Row],[IsActive]]=\"\",\"\",Table_POSTInfo[[#This Row],[Fixture Description '[E']]]),\"\")","v":""},{"$f":"IFERROR(IF(Table_RetroSummary[[#This Row],[IsActive]]=\"\",\"\",Table_POSTInfo[[#This Row],['# Lamps/ Fixture '[E']]]),\"\")","v":""},{"$f":"IFERROR(IF(Table_RetroSummary[[#This Row],[IsActive]]=\"\",\"\",Table_POSTInfo[[#This Row],[Fixture/ Lamp Wattage '[E']]]),\"\")","v":""},{"$f":"IFERROR(IF(Table_RetroSummary[[#This Row],[IsActive]]=\"\",\"\",Table_POSTInfo[[#This Row],[Fixture Qty '[E']]]),\"\")","v":""},{"$f":"IFERROR(IF(Table_RetroSummary[[#This Row],[IsActive]],Table_RetroSummary[[#This Row],[Fixture/ Lamp Wattage '[E']]]*Table_RetroSummary[[#This Row],[E. Qty]],\"\"),\"\")","v":""},{"$f":"IFERROR(IF(Table_RetroSummary[[#This Row],[IsActive]]=\"\",\"\",Table_POSTInfo[[#This Row],[Fixture Wattage '[E']]]),\"\")","v":""},{"$f":"IFERROR(IF(Table_RetroSummary[[#This Row],[IsActive]],IFERROR(Table_RetroSummary[[#This Row],[Existing Fixture Wattage]]/1000*Table_RetroSummary[[#This Row],[OpHrs]]*Table_RetroSummary[[#This Row],[E. Qty]],0),\"\"),\"\")","v":""},{"$f":"IFERROR(IF(Table_RetroSummary[[#This Row],[IsActive]],IFERROR(VLOOKUP(RIGHT(Table_RetroSummary[[#This Row],[Existing Fixture]],LEN(Table_RetroSummary[[#This Row],[Existing Fixture]])-FIND(\" - \",Table_RetroSummary[[#This Row],[Existing Fixture]],FIND(\"]\",Table_RetroSummary[[#This Row],[Existing Fixture]],1))-2),Table_ControlType[],3,FALSE),0),\"\"),\"\")","v":""},{"$f":"IFERROR(IF(Table_RetroSummary[[#This Row],[IsActive]],IFERROR(Table_RetroSummary[[#This Row],[Existing Fixture Wattage]]/1000*Table_RetroSummary[[#This Row],[OpHrs]]*Table_RetroSummary[[#This Row],[E. Qty]]*Table_RetroSummary[[#This Row],[Existing CSF]]*(-1),0),\"\"),\"\")","v":""},{"$f":"IFERROR(Table_RetroSummary[[#This Row],[Existing Fixture kWh]]+Table_RetroSummary[[#This Row],[Existing Fixture (Existing Controls) kWh]],\"\")","v":""},{"$f":"IFERROR(IF(Table_RetroSummary[[#This Row],[IsActive]],IF(ISNUMBER(MATCH(Table_POSTInfo[[#This Row],[Line]],Table_POSTInspection[Line],0)),INDEX(Table_POSTInspection[Fixture Description '[P']],MATCH(Table_RetroSummary[[#This Row],[Line Item]],Table_POSTInspection[Line],0)),Table_POSTInfo[[#This Row],[Fixture Description '[P']]]),\"\"),\"\")","v":""},{"$f":"IFERROR(IF(Table_RetroSummary[[#This Row],[IsActive]],IF(ISNUMBER(MATCH(Table_POSTInfo[[#This Row],[Line]],Table_POSTInspection[Line],0)),INDEX(Table_POSTInspection['# Lamps/ Fixture '[P']],MATCH(Table_RetroSummary[[#This Row],[Line Item]],Table_POSTInspection[Line],0)),Table_POSTInfo[[#This Row],['# Lamps/ Fixture '[P']]]),\"\"),\"\")","v":""},{"$f":"IFERROR(IF(Table_RetroSummary[[#This Row],[IsActive]],IF(ISNUMBER(MATCH(Table_POSTInfo[[#This Row],[Line]],Table_POSTInspection[Line],0)),INDEX(Table_POSTInspection[Fixture/ Lamp Wattage '[P']],MATCH(Table_RetroSummary[[#This Row],[Line Item]],Table_POSTInspection[Line],0)),Table_POSTInfo[[#This Row],[Fixture/ Lamp Wattage '[P']]]),\"\"),\"\")","v":""},{"$f":"IFERROR(IF(Table_RetroSummary[[#This Row],[IsActive]],IF(ISNUMBER(MATCH(Table_POSTInfo[[#This Row],[Line]],Table_POSTInspection[Line],0)),INDEX(Table_POSTInspection[Fixture Qty '[P']],MATCH(Table_RetroSummary[[#This Row],[Line Item]],Table_POSTInspection[Line],0)),Table_POSTInfo[[#This Row],[Fixture Qty '[P']]]),\"\"),\"\")","v":""},{"$f":"IFERROR(IF(Table_RetroSummary[[#This Row],[IsActive]],Table_RetroSummary[[#This Row],[Fixture/ Lamp Wattage '[P']]]*Table_RetroSummary[[#This Row],[P. Qty]],\"\"),\"\")","v":""},{"$f":"IFERROR(IF(Table_RetroSummary[[#This Row],[IsActive]],IF(ISNUMBER(MATCH(Table_POSTInfo[[#This Row],[Line]],Table_POSTInspection[Line],0)),INDEX(Table_POSTInspection[Fixture Wattage '[P']],MATCH(Table_RetroSummary[[#This Row],[Line Item]],Table_POSTInspection[Line],0)),Table_POSTInfo[[#This Row],[Fixture Wattage '[P']]]),\"\"),\"\")","v":""},{"$f":"IFERROR(Table_RetroSummary[[#This Row],[Total '# Lamps '[P']]]+Table_RetroSummary[[#This Row],[Proposed Fixture Wattage]],\"\")","v":""},{"$f":"IFERROR(Table_RetroSummary[[#This Row],[Proposed Fixture Wattage]]/1000*Table_RetroSummary[[#This Row],[OpHrs]]*Table_RetroSummary[[#This Row],[P. Qty]],\"\")","v":""},{"$f":"IFERROR(IF(Table_RetroSummary[[#This Row],[IsActive]],IFERROR(VLOOKUP(RIGHT(Table_RetroSummary[[#This Row],[Proposed Fixture]],LEN(Table_RetroSummary[[#This Row],[Proposed Fixture]])-FIND(\" - \",Table_RetroSummary[[#This Row],[Proposed Fixture]],FIND(\"]\",Table_RetroSummary[[#This Row],[Proposed Fixture]],1))-2),Table_ControlType[],3, FALSE),0),\"\"),\"\")","v":""},{"$f":"IFERROR(IF(Table_RetroSummary[[#This Row],[IsActive]],IFERROR(Table_RetroSummary[[#This Row],[Proposed Fixture Wattage]]/1000*Table_RetroSummary[[#This Row],[OpHrs]]*Table_RetroSummary[[#This Row],[P. Qty]]*Table_RetroSummary[[#This Row],[Existing CSF]]*(-1),0),\"\"),\"\")","v":""},{"$f":"IFERROR(Table_RetroSummary[[#This Row],[Proposed Fixture kWh]]+Table_RetroSummary[[#This Row],[Proposed Fixture (Existing Controls) kWh]],\"\")","v":""},{"$f":"IFERROR(IF(Table_RetroSummary[[#This Row],[IsActive]],IFERROR(Table_RetroSummary[[#This Row],[Proposed Fixture Wattage]]/1000*Table_RetroSummary[[#This Row],[OpHrs]]*Table_RetroSummary[[#This Row],[P. Qty]]*Table_RetroSummary[[#This Row],[Proposed CSF]]*(-1),0),\"\"),\"\")","v":""},{"$f":"IFERROR(Table_RetroSummary[[#This Row],[Proposed Fixture kWh]]+Table_RetroSummary[[#This Row],[Proposed Fixture (Proposed Controls) kWh]],\"\")","v":""},{"$f":"IFERROR(IF(Table_RetroSummary[[#This Row],[IsActive]],IF(ISNUMBER(MATCH(Table_POSTInfo[[#This Row],[Line]],Table_POSTInspection[Line],0)),INDEX(Table_POSTInspection[DLC or ES Certification '[P']],MATCH(Table_RetroSummary[[#This Row],[Line Item]],Table_POSTInspection[Line],0)),Table_POSTInfo[[#This Row],[DLC or ES Certification '[P']]]),\"\"),\"\")","v":""},null,{"$f":"IFERROR(IF(Table_RetroSummary[[#This Row],[IsActive]],\nIF(AND(RIGHT(Table_RetroSummary[[#This Row],[Existing Fixture]],LEN(Table_RetroSummary[[#This Row],[Existing Fixture]])-FIND(\":\",Table_RetroSummary[[#This Row],[Existing Fixture]],1)-1)<>Table_RetroSummary[[#This Row],[Proposed Fixture]],MID(Table_RetroSummary[[#This Row],[Existing Fixture]],FIND(\": \",Table_RetroSummary[[#This Row],[Existing Fixture]],1)+2,FIND(\"]\",Table_RetroSummary[[#This Row],[Existing Fixture]],1))=LEFT(Table_RetroSummary[[#This Row],[Proposed Fixture]],FIND(\"]\",Table_RetroSummary[[#This Row],[Proposed Fixture]],1))),\n  \"Controls Only\",\n  IF(Table_POSTInfo[[#This Row],[DLC or ES Certification '[P']]]<>\"\",\n    IF(ISNUMBER(FIND(\"LED Tube\",Table_RetroSummary[[#This Row],[Proposed Fixture]],1)),\n      \"LED Re-Lamp\",\n      IF(AND(Table_RetroSummary[[#This Row],[Existing Overall kWh]]>Table_RetroSummary[[#This Row],[Proposed Overall kWh (Existing Controls)]],ISNUMBER(FIND(\"LED\",Table_RetroSummary[[#This Row],[Proposed Fixture]],1))),\n        IF(Table_POSTInfo[[#This Row],[Interior/ Exterior]]=\"Exterior\",\n          \"Exterior LED Fixture\",\n          \"Interior LED Fixture\"),\n        \"Ineligible Fixture\")),\n    \"Ineligible Fixture\")),\n\"\"),\"\")","v":""},{"$f":"IFERROR(VLOOKUP(Table_RetroSummary[[#This Row],[Fixture Measure Description]],Table_FixtureRate[],2,FALSE),\"\")","v":""},{"$f":"IFERROR(IF(Table_RetroSummary[[#This Row],[IsActive]],IF(Table_RetroSummary[[#This Row],[Fixture Measure Description]]=\"Ineligible Fixture\",0,ROUND(Table_RetroSummary[[#This Row],[Fixture Rebate (per kW)]]*(Table_RetroSummary[[#This Row],[Existing Fixture Wattage]]*Table_RetroSummary[[#This Row],[E. Qty]]-Table_RetroSummary[[#This Row],[Proposed Fixture Wattage]]*Table_RetroSummary[[#This Row],[P. Qty]])/1000,2)),\"\"),\"\")","v":""},{"$f":"IFERROR(IF(Table_RetroSummary[[#This Row],[Fixture Measure Description]]=\"Ineligible Fixture\",0,ROUND(IF(ProjectCost_Total=0,300000,ProjectCost_Total)*Table_RetroSummary[[#This Row],[Fixture Rebate]]/SUM(Table_RetroSummary[Fixture Rebate],Table_RetroSummary[Controls Rebate]),2)),\"\")","v":""},{"$f":"IFERROR(IF(Table_RetroSummary[[#This Row],[IsActive]],IF(Table_RetroSummary[[#This Row],[Fixture Measure Description]]=\"Ineligible Fixture\",0,Table_RetroSummary[[#This Row],[Existing Overall kWh]]-Table_RetroSummary[[#This Row],[Proposed Overall kWh (Existing Controls)]]),\"\"),\"\")","v":""},{"$f":"IFERROR(IF(Table_RetroSummary[[#This Row],[IsActive]],IF(Table_RetroSummary[[#This Row],[Fixture Measure Description]]=\"Ineligible Fixture\",0,(Table_RetroSummary[[#This Row],[Existing Fixture kWh]]-Table_RetroSummary[[#This Row],[Proposed Fixture kWh]])/Table_RetroSummary[[#This Row],[OpHrs]]*Table_RetroSummary[[#This Row],[CF (Ltg)]]*Table_RetroSummary[[#This Row],[DF (Ltg)]]),\"\"),\"\")","v":""},null,{"$f":"IFERROR(\n  IF(OR(Table_RetroSummary[[#This Row],[Fixture Measure Description]]=\"\",Table_RetroSummary[[#This Row],[Fixture Measure Description]]=\"Ineligible Fixture\"),\n    \"\",\n    IFERROR(VLOOKUP(RIGHT(Table_RetroSummary[[#This Row],[Existing Fixture]],LEN(Table_RetroSummary[[#This Row],[Existing Fixture]])-FIND(\" - \",Table_RetroSummary[[#This Row],[Existing Fixture]],FIND(\"]\",Table_RetroSummary[[#This Row],[Existing Fixture]],1))-2),Table_ControlType[],2,FALSE),\"None\")\n    & \" - \" &\n    IFERROR(VLOOKUP(RIGHT(Table_RetroSummary[[#This Row],[Proposed Fixture]],LEN(Table_RetroSummary[[#This Row],[Proposed Fixture]])-FIND(\" - \",Table_RetroSummary[[#This Row],[Proposed Fixture]],FIND(\"]\",Table_RetroSummary[[#This Row],[Proposed Fixture]],1))-2),Table_ControlType[],2, FALSE),None)),\n\"\")","v":""},{"$f":"IFERROR(VLOOKUP(Table_RetroSummary[[#This Row],[Controls Measure Description]],Table_ControlRate[],2,FALSE),\"\")","v":""},{"$f":"IFERROR(IF(Table_RetroSummary[[#This Row],[IsActive]],IF(Table_RetroSummary[[#This Row],[Controls Measure Description]]=\"\",0,ROUND(Table_RetroSummary[[#This Row],[Controls Rebate (per Fixt Watt)]]*Table_RetroSummary[[#This Row],[Proposed Fixture Wattage]]*Table_RetroSummary[[#This Row],[P. Qty]],2)),\"\"),\"\")","v":""},{"$f":"IFERROR(IF(Table_RetroSummary[[#This Row],[Fixture Measure Description]]=\"Ineligible Fixture\",0,ROUND(IF(ProjectCost_Total=0,300000,ProjectCost_Total)*Table_RetroSummary[[#This Row],[Controls Rebate]]/SUM(Table_RetroSummary[Fixture Rebate],Table_RetroSummary[Controls Rebate]),2)),\"\")","v":""},{"$f":"IFERROR(IF(Table_RetroSummary[[#This Row],[IsActive]],IF(Table_RetroSummary[[#This Row],[Controls Measure Description]]=\"\",0,(Table_RetroSummary[[#This Row],[Proposed Fixture (Existing Controls) kWh]]-Table_RetroSummary[[#This Row],[Proposed Fixture (Proposed Controls) kWh]])),\"\"),\"\")","v":""},{"$f":"IFERROR(IF(Table_RetroSummary[[#This Row],[IsActive]],IF(Table_RetroSummary[[#This Row],[Controls Measure Description]]=\"\",0,(Table_RetroSummary[[#This Row],[Proposed Fixture (Existing Controls) kWh]]-Table_RetroSummary[[#This Row],[Proposed Fixture (Proposed Controls) kWh]])/Table_RetroSummary[[#This Row],[OpHrs]]*Table_RetroSummary[[#This Row],[CF (Ltg)]]*Table_RetroSummary[[#This Row],[DF (Ltg)]]),\"\"),\"\")","v":""},null,{"$f":"IFERROR(IF(NOT(ISNUMBER(Table_RetroSummary[[#This Row],[Fixture Rebate]])),\"\",IF(MIN(IF(SUM(Table_RetroSummary[Fixture Cost],Table_RetroSummary[Controls Cost])<0,0,SUM(Table_RetroSummary[Fixture Cost],Table_RetroSummary[Controls Cost])),SUM(Table_RetroSummary[Fixture Rebate],Table_RetroSummary[Controls Rebate]))>300000,300000/MIN(IF(SUM(Table_RetroSummary[Fixture Cost],Table_RetroSummary[Controls Cost])<0,0,SUM(Table_RetroSummary[Fixture Cost],Table_RetroSummary[Controls Cost])),SUM(Table_RetroSummary[Fixture Rebate],Table_RetroSummary[Controls Rebate]))*MIN(IF(SUM(Table_RetroSummary[Fixture Cost],Table_RetroSummary[Controls Cost])<0,0,SUM(Table_RetroSummary[Fixture Cost],Table_RetroSummary[Controls Cost])),Table_RetroSummary[[#This Row],[Fixture Rebate]]+IF(Table_RetroSummary[[#This Row],[Controls Rebate]]=\"\",0,Table_RetroSummary[[#This Row],[Controls Rebate]])),MIN(IF(SUM(Table_RetroSummary[Fixture Cost],Table_RetroSummary[Controls Cost])<0,0,SUM(Table_RetroSummary[Fixture Cost],Table_RetroSummary[Controls Cost])),Table_RetroSummary[[#This Row],[Fixture Rebate]]+IF(Table_RetroSummary[[#This Row],[Controls Rebate]]=\"\",0,Table_RetroSummary[[#This Row],[Controls Rebate]])))),\"\")","v":""},{"$f":"IFERROR(IF(Table_RetroSummary[[#This Row],[Fixture Cost]]=\"\",\"\",Table_RetroSummary[[#This Row],[Fixture Cost]]+IF(Table_RetroSummary[[#This Row],[Controls Cost]]=\"\",0,Table_RetroSummary[[#This Row],[Controls Cost]])),\"\")","v":""},{"$f":"IFERROR(IF(Table_RetroSummary[[#This Row],[IsActive]],IF(Table_POSTInfo[[#This Row],[Interior/ Exterior]]=\"Interior\",IFERROR((Table_RetroSummary[[#This Row],[Annual Fixture Savings (kWh)]]+Table_RetroSummary[[#This Row],[Annual Control Savings (kWh)]])*(Table_RetroSummary[[#This Row],[EIF]]-1),0),0),\"\"),\"\")","v":""},{"$f":"IFERROR(IF(Table_RetroSummary[[#This Row],[IsActive]],IF(Table_POSTInfo[[#This Row],[Interior/ Exterior]]=\"Interior\",IFERROR((Table_RetroSummary[[#This Row],[Fixture kW Reduction]]+Table_RetroSummary[[#This Row],[Control kW Reduction]]/(Table_RetroSummary[[#This Row],[CF (Ltg)]]*Table_RetroSummary[[#This Row],[DF (Ltg)]]))*(Table_RetroSummary[[#This Row],[DIF]]-1)*Table_RetroSummary[[#This Row],[CF (HVAC)]]*Table_RetroSummary[[#This Row],[DF (HVAC)]],0),0),\"\"),\"\")","v":""},{"$f":"IFERROR(IF(Table_RetroSummary[[#This Row],[IsActive]],IF(NOT(ISNUMBER(Table_RetroSummary[[#This Row],[Fixture Rebate]])),\"\",ROUND(Table_RetroSummary[[#This Row],[Annual Fixture Savings (kWh)]]+Table_RetroSummary[[#This Row],[Annual Control Savings (kWh)]],0)),\"\"),\"\")","v":""},{"$f":"IFERROR(IF(Table_RetroSummary[[#This Row],[IsActive]],IF(NOT(ISNUMBER(Table_RetroSummary[[#This Row],[Fixture Rebate]])),\"\",ROUND(Table_RetroSummary[[#This Row],[Fixture kW Reduction]]+Table_RetroSummary[[#This Row],[Control kW Reduction]],3)),\"\"),\"\")","v":""},{"$f":"IFERROR(IF(Table_RetroSummary[[#This Row],[IsActive]],IF(NOT(ISNUMBER(Table_RetroSummary[[#This Row],[Fixture Rebate]])),\"\",ROUND(Table_RetroSummary[[#This Row],[Fixture Energy Savings (kWh)]]+Table_RetroSummary[[#This Row],[Induced HVAC Energy Savings (kWh)]],0)),\"\"),\"\")","v":""},{"$f":"IFERROR(IF(Table_RetroSummary[[#This Row],[IsActive]],IF(NOT(ISNUMBER(Table_RetroSummary[[#This Row],[Fixture Rebate]])),\"\",ROUND(Table_RetroSummary[[#This Row],[Fixture Demand Savings (kW)]]+Table_RetroSummary[[#This Row],[Induced HVAC Demand Savings (kW)]],3)),\"\"),\"\")","v":""}]
[{"$f":"IFERROR(Table_POSTInfo[[#This Row],[Line]],\"\")","v":34},{"$f":"IFERROR(Table_POSTInfo[[#This Row],[IsActive]],\"\")","v":false},{"$f":"IFERROR(IF(Table_RetroSummary[[#This Row],[IsActive]],CONCATENATE(Table_RetroSummary[[#This Row],[Existing Fixture]],\" | \",Table_RetroSummary[[#This Row],[Proposed Fixture]]),\"\"),\"\")","v":""},{"$f":"IFERROR(IF(Table_RetroSummary[[#This Row],[IsActive]],VLOOKUP(IF(ISNUMBER(MATCH(Table_POSTInfo[[#This Row],[Line]],Table_POSTInspection[Line],0)),INDEX(Table_POSTInspection[Schedule],MATCH(Table_RetroSummary[[#This Row],[Line Item]],Table_POSTInspection[Line],0)),Table_POSTInfo[[#This Row],[Schedule]]),'Customer Information'!$S$27:$T$34,2,FALSE),\"\"),\"\")","v":""},{"$f":"IFERROR(IF(Table_RetroSummary[[#This Row],[IsActive]],IF(IF(ISNUMBER(MATCH(Table_RetroSummary[[#This Row],[Line Item]],Table_POSTInspection[Line],0)),INDEX(Table_POSTInspection[Interior/ Exterior],MATCH(Table_RetroSummary[[#This Row],[Line Item]],Table_POSTInfo[[#This Row],[Line]],0)),Table_POSTInfo[[#This Row],[Interior/ Exterior]])=\"Interior\",'Customer Information'!$S$25,0),\"\"),\"\")","v":""},{"$f":"IFERROR(IF(Table_RetroSummary[[#This Row],[IsActive]],IF(IF(ISNUMBER(MATCH(Table_RetroSummary[[#This Row],[Line Item]],Table_POSTInspection[Line],0)),INDEX(Table_POSTInspection[Interior/ Exterior],MATCH(Table_RetroSummary[[#This Row],[Line Item]],Table_POSTInfo[[#This Row],[Line]],0)),Table_POSTInfo[[#This Row],[Interior/ Exterior]])=\"Interior\",'Customer Information'!$T$25,0),\"\"),\"\")","v":""},{"$f":"IFERROR(IF(Table_RetroSummary[[#This Row],[IsActive]],IF(IF(ISNUMBER(MATCH(Table_RetroSummary[[#This Row],[Line Item]],Table_POSTInspection[Line],0)),INDEX(Table_POSTInspection[Interior/ Exterior],MATCH(Table_RetroSummary[[#This Row],[Line Item]],Table_POSTInfo[[#This Row],[Line]],0)),Table_POSTInfo[[#This Row],[Interior/ Exterior]])=\"Interior\",'Customer Information'!$U$25,0),\"\"),\"\")","v":""},{"$f":"IFERROR(IF(Table_RetroSummary[[#This Row],[IsActive]],IF(IF(ISNUMBER(MATCH(Table_RetroSummary[[#This Row],[Line Item]],Table_POSTInspection[Line],0)),INDEX(Table_POSTInspection[Interior/ Exterior],MATCH(Table_RetroSummary[[#This Row],[Line Item]],Table_POSTInfo[[#This Row],[Line]],0)),Table_POSTInfo[[#This Row],[Interior/ Exterior]])=\"Interior\",'Customer Information'!$V$25,0),\"\"),\"\")","v":""},{"$f":"IFERROR(IF(Table_RetroSummary[[#This Row],[IsActive]],IF(IF(ISNUMBER(MATCH(Table_RetroSummary[[#This Row],[Line Item]],Table_POSTInspection[Line],0)),INDEX(Table_POSTInspection[Interior/ Exterior],MATCH(Table_RetroSummary[[#This Row],[Line Item]],Table_POSTInfo[[#This Row],[Line]],0)),Table_POSTInfo[[#This Row],[Interior/ Exterior]])=\"Interior\",'Customer Information'!$W$25,0),\"\"),\"\")","v":""},{"$f":"IFERROR(IF(Table_RetroSummary[[#This Row],[IsActive]],IF(IF(ISNUMBER(MATCH(Table_RetroSummary[[#This Row],[Line Item]],Table_POSTInspection[Line],0)),INDEX(Table_POSTInspection[Interior/ Exterior],MATCH(Table_RetroSummary[[#This Row],[Line Item]],Table_POSTInfo[[#This Row],[Line]],0)),Table_POSTInfo[[#This Row],[Interior/ Exterior]])=\"Interior\",'Customer Information'!$X$25,0),\"\"),\"\")","v":""},{"$f":"IFERROR(IF(Table_RetroSummary[[#This Row],[IsActive]],\nCONCATENATE(\nIF(ISNUMBER(MATCH(Table_POSTInfo[[#This Row],[Line]],Table_POSTInspection[Line],0)),INDEX(Table_POSTInspection[Interior/ Exterior],MATCH(Table_RetroSummary[[#This Row],[Line Item]],Table_POSTInspection[Line],0)),Table_POSTInfo[[#This Row],[Interior/ Exterior]]),\n\" - \",\nIF(ISNUMBER(MATCH(Table_POSTInfo[[#This Row],[Line]],Table_POSTInspection[Line],0)),INDEX(Table_POSTInspection[Space Description],MATCH(Table_RetroSummary[[#This Row],[Line Item]],Table_POSTInspection[Line],0)),Table_POSTInfo[[#This Row],[Space Description]])),\n \"\"),\"\")","v":""},{"$f":"IFERROR(IF(Table_RetroSummary[[#This Row],[IsActive]]=\"\",\"\",Table_POSTInfo[[#This Row],[Fixture Description '[E']]]),\"\")","v":""},{"$f":"IFERROR(IF(Table_RetroSummary[[#This Row],[IsActive]]=\"\",\"\",Table_POSTInfo[[#This Row],['# Lamps/ Fixture '[E']]]),\"\")","v":""},{"$f":"IFERROR(IF(Table_RetroSummary[[#This Row],[IsActive]]=\"\",\"\",Table_POSTInfo[[#This Row],[Fixture/ Lamp Wattage '[E']]]),\"\")","v":""},{"$f":"IFERROR(IF(Table_RetroSummary[[#This Row],[IsActive]]=\"\",\"\",Table_POSTInfo[[#This Row],[Fixture Qty '[E']]]),\"\")","v":""},{"$f":"IFERROR(IF(Table_RetroSummary[[#This Row],[IsActive]],Table_RetroSummary[[#This Row],[Fixture/ Lamp Wattage '[E']]]*Table_RetroSummary[[#This Row],[E. Qty]],\"\"),\"\")","v":""},{"$f":"IFERROR(IF(Table_RetroSummary[[#This Row],[IsActive]]=\"\",\"\",Table_POSTInfo[[#This Row],[Fixture Wattage '[E']]]),\"\")","v":""},{"$f":"IFERROR(IF(Table_RetroSummary[[#This Row],[IsActive]],IFERROR(Table_RetroSummary[[#This Row],[Existing Fixture Wattage]]/1000*Table_RetroSummary[[#This Row],[OpHrs]]*Table_RetroSummary[[#This Row],[E. Qty]],0),\"\"),\"\")","v":""},{"$f":"IFERROR(IF(Table_RetroSummary[[#This Row],[IsActive]],IFERROR(VLOOKUP(RIGHT(Table_RetroSummary[[#This Row],[Existing Fixture]],LEN(Table_RetroSummary[[#This Row],[Existing Fixture]])-FIND(\" - \",Table_RetroSummary[[#This Row],[Existing Fixture]],FIND(\"]\",Table_RetroSummary[[#This Row],[Existing Fixture]],1))-2),Table_ControlType[],3,FALSE),0),\"\"),\"\")","v":""},{"$f":"IFERROR(IF(Table_RetroSummary[[#This Row],[IsActive]],IFERROR(Table_RetroSummary[[#This Row],[Existing Fixture Wattage]]/1000*Table_RetroSummary[[#This Row],[OpHrs]]*Table_RetroSummary[[#This Row],[E. Qty]]*Table_RetroSummary[[#This Row],[Existing CSF]]*(-1),0),\"\"),\"\")","v":""},{"$f":"IFERROR(Table_RetroSummary[[#This Row],[Existing Fixture kWh]]+Table_RetroSummary[[#This Row],[Existing Fixture (Existing Controls) kWh]],\"\")","v":""},{"$f":"IFERROR(IF(Table_RetroSummary[[#This Row],[IsActive]],IF(ISNUMBER(MATCH(Table_POSTInfo[[#This Row],[Line]],Table_POSTInspection[Line],0)),INDEX(Table_POSTInspection[Fixture Description '[P']],MATCH(Table_RetroSummary[[#This Row],[Line Item]],Table_POSTInspection[Line],0)),Table_POSTInfo[[#This Row],[Fixture Description '[P']]]),\"\"),\"\")","v":""},{"$f":"IFERROR(IF(Table_RetroSummary[[#This Row],[IsActive]],IF(ISNUMBER(MATCH(Table_POSTInfo[[#This Row],[Line]],Table_POSTInspection[Line],0)),INDEX(Table_POSTInspection['# Lamps/ Fixture '[P']],MATCH(Table_RetroSummary[[#This Row],[Line Item]],Table_POSTInspection[Line],0)),Table_POSTInfo[[#This Row],['# Lamps/ Fixture '[P']]]),\"\"),\"\")","v":""},{"$f":"IFERROR(IF(Table_RetroSummary[[#This Row],[IsActive]],IF(ISNUMBER(MATCH(Table_POSTInfo[[#This Row],[Line]],Table_POSTInspection[Line],0)),INDEX(Table_POSTInspection[Fixture/ Lamp Wattage '[P']],MATCH(Table_RetroSummary[[#This Row],[Line Item]],Table_POSTInspection[Line],0)),Table_POSTInfo[[#This Row],[Fixture/ Lamp Wattage '[P']]]),\"\"),\"\")","v":""},{"$f":"IFERROR(IF(Table_RetroSummary[[#This Row],[IsActive]],IF(ISNUMBER(MATCH(Table_POSTInfo[[#This Row],[Line]],Table_POSTInspection[Line],0)),INDEX(Table_POSTInspection[Fixture Qty '[P']],MATCH(Table_RetroSummary[[#This Row],[Line Item]],Table_POSTInspection[Line],0)),Table_POSTInfo[[#This Row],[Fixture Qty '[P']]]),\"\"),\"\")","v":""},{"$f":"IFERROR(IF(Table_RetroSummary[[#This Row],[IsActive]],Table_RetroSummary[[#This Row],[Fixture/ Lamp Wattage '[P']]]*Table_RetroSummary[[#This Row],[P. Qty]],\"\"),\"\")","v":""},{"$f":"IFERROR(IF(Table_RetroSummary[[#This Row],[IsActive]],IF(ISNUMBER(MATCH(Table_POSTInfo[[#This Row],[Line]],Table_POSTInspection[Line],0)),INDEX(Table_POSTInspection[Fixture Wattage '[P']],MATCH(Table_RetroSummary[[#This Row],[Line Item]],Table_POSTInspection[Line],0)),Table_POSTInfo[[#This Row],[Fixture Wattage '[P']]]),\"\"),\"\")","v":""},{"$f":"IFERROR(Table_RetroSummary[[#This Row],[Total '# Lamps '[P']]]+Table_RetroSummary[[#This Row],[Proposed Fixture Wattage]],\"\")","v":""},{"$f":"IFERROR(Table_RetroSummary[[#This Row],[Proposed Fixture Wattage]]/1000*Table_RetroSummary[[#This Row],[OpHrs]]*Table_RetroSummary[[#This Row],[P. Qty]],\"\")","v":""},{"$f":"IFERROR(IF(Table_RetroSummary[[#This Row],[IsActive]],IFERROR(VLOOKUP(RIGHT(Table_RetroSummary[[#This Row],[Proposed Fixture]],LEN(Table_RetroSummary[[#This Row],[Proposed Fixture]])-FIND(\" - \",Table_RetroSummary[[#This Row],[Proposed Fixture]],FIND(\"]\",Table_RetroSummary[[#This Row],[Proposed Fixture]],1))-2),Table_ControlType[],3, FALSE),0),\"\"),\"\")","v":""},{"$f":"IFERROR(IF(Table_RetroSummary[[#This Row],[IsActive]],IFERROR(Table_RetroSummary[[#This Row],[Proposed Fixture Wattage]]/1000*Table_RetroSummary[[#This Row],[OpHrs]]*Table_RetroSummary[[#This Row],[P. Qty]]*Table_RetroSummary[[#This Row],[Existing CSF]]*(-1),0),\"\"),\"\")","v":""},{"$f":"IFERROR(Table_RetroSummary[[#This Row],[Proposed Fixture kWh]]+Table_RetroSummary[[#This Row],[Proposed Fixture (Existing Controls) kWh]],\"\")","v":""},{"$f":"IFERROR(IF(Table_RetroSummary[[#This Row],[IsActive]],IFERROR(Table_RetroSummary[[#This Row],[Proposed Fixture Wattage]]/1000*Table_RetroSummary[[#This Row],[OpHrs]]*Table_RetroSummary[[#This Row],[P. Qty]]*Table_RetroSummary[[#This Row],[Proposed CSF]]*(-1),0),\"\"),\"\")","v":""},{"$f":"IFERROR(Table_RetroSummary[[#This Row],[Proposed Fixture kWh]]+Table_RetroSummary[[#This Row],[Proposed Fixture (Proposed Controls) kWh]],\"\")","v":""},{"$f":"IFERROR(IF(Table_RetroSummary[[#This Row],[IsActive]],IF(ISNUMBER(MATCH(Table_POSTInfo[[#This Row],[Line]],Table_POSTInspection[Line],0)),INDEX(Table_POSTInspection[DLC or ES Certification '[P']],MATCH(Table_RetroSummary[[#This Row],[Line Item]],Table_POSTInspection[Line],0)),Table_POSTInfo[[#This Row],[DLC or ES Certification '[P']]]),\"\"),\"\")","v":""},null,{"$f":"IFERROR(IF(Table_RetroSummary[[#This Row],[IsActive]],\nIF(AND(RIGHT(Table_RetroSummary[[#This Row],[Existing Fixture]],LEN(Table_RetroSummary[[#This Row],[Existing Fixture]])-FIND(\":\",Table_RetroSummary[[#This Row],[Existing Fixture]],1)-1)<>Table_RetroSummary[[#This Row],[Proposed Fixture]],MID(Table_RetroSummary[[#This Row],[Existing Fixture]],FIND(\": \",Table_RetroSummary[[#This Row],[Existing Fixture]],1)+2,FIND(\"]\",Table_RetroSummary[[#This Row],[Existing Fixture]],1))=LEFT(Table_RetroSummary[[#This Row],[Proposed Fixture]],FIND(\"]\",Table_RetroSummary[[#This Row],[Proposed Fixture]],1))),\n  \"Controls Only\",\n  IF(Table_POSTInfo[[#This Row],[DLC or ES Certification '[P']]]<>\"\",\n    IF(ISNUMBER(FIND(\"LED Tube\",Table_RetroSummary[[#This Row],[Proposed Fixture]],1)),\n      \"LED Re-Lamp\",\n      IF(AND(Table_RetroSummary[[#This Row],[Existing Overall kWh]]>Table_RetroSummary[[#This Row],[Proposed Overall kWh (Existing Controls)]],ISNUMBER(FIND(\"LED\",Table_RetroSummary[[#This Row],[Proposed Fixture]],1))),\n        IF(Table_POSTInfo[[#This Row],[Interior/ Exterior]]=\"Exterior\",\n          \"Exterior LED Fixture\",\n          \"Interior LED Fixture\"),\n        \"Ineligible Fixture\")),\n    \"Ineligible Fixture\")),\n\"\"),\"\")","v":""},{"$f":"IFERROR(VLOOKUP(Table_RetroSummary[[#This Row],[Fixture Measure Description]],Table_FixtureRate[],2,FALSE),\"\")","v":""},{"$f":"IFERROR(IF(Table_RetroSummary[[#This Row],[IsActive]],IF(Table_RetroSummary[[#This Row],[Fixture Measure Description]]=\"Ineligible Fixture\",0,ROUND(Table_RetroSummary[[#This Row],[Fixture Rebate (per kW)]]*(Table_RetroSummary[[#This Row],[Existing Fixture Wattage]]*Table_RetroSummary[[#This Row],[E. Qty]]-Table_RetroSummary[[#This Row],[Proposed Fixture Wattage]]*Table_RetroSummary[[#This Row],[P. Qty]])/1000,2)),\"\"),\"\")","v":""},{"$f":"IFERROR(IF(Table_RetroSummary[[#This Row],[Fixture Measure Description]]=\"Ineligible Fixture\",0,ROUND(IF(ProjectCost_Total=0,300000,ProjectCost_Total)*Table_RetroSummary[[#This Row],[Fixture Rebate]]/SUM(Table_RetroSummary[Fixture Rebate],Table_RetroSummary[Controls Rebate]),2)),\"\")","v":""},{"$f":"IFERROR(IF(Table_RetroSummary[[#This Row],[IsActive]],IF(Table_RetroSummary[[#This Row],[Fixture Measure Description]]=\"Ineligible Fixture\",0,Table_RetroSummary[[#This Row],[Existing Overall kWh]]-Table_RetroSummary[[#This Row],[Proposed Overall kWh (Existing Controls)]]),\"\"),\"\")","v":""},{"$f":"IFERROR(IF(Table_RetroSummary[[#This Row],[IsActive]],IF(Table_RetroSummary[[#This Row],[Fixture Measure Description]]=\"Ineligible Fixture\",0,(Table_RetroSummary[[#This Row],[Existing Fixture kWh]]-Table_RetroSummary[[#This Row],[Proposed Fixture kWh]])/Table_RetroSummary[[#This Row],[OpHrs]]*Table_RetroSummary[[#This Row],[CF (Ltg)]]*Table_RetroSummary[[#This Row],[DF (Ltg)]]),\"\"),\"\")","v":""},null,{"$f":"IFERROR(\n  IF(OR(Table_RetroSummary[[#This Row],[Fixture Measure Description]]=\"\",Table_RetroSummary[[#This Row],[Fixture Measure Description]]=\"Ineligible Fixture\"),\n    \"\",\n    IFERROR(VLOOKUP(RIGHT(Table_RetroSummary[[#This Row],[Existing Fixture]],LEN(Table_RetroSummary[[#This Row],[Existing Fixture]])-FIND(\" - \",Table_RetroSummary[[#This Row],[Existing Fixture]],FIND(\"]\",Table_RetroSummary[[#This Row],[Existing Fixture]],1))-2),Table_ControlType[],2,FALSE),\"None\")\n    & \" - \" &\n    IFERROR(VLOOKUP(RIGHT(Table_RetroSummary[[#This Row],[Proposed Fixture]],LEN(Table_RetroSummary[[#This Row],[Proposed Fixture]])-FIND(\" - \",Table_RetroSummary[[#This Row],[Proposed Fixture]],FIND(\"]\",Table_RetroSummary[[#This Row],[Proposed Fixture]],1))-2),Table_ControlType[],2, FALSE),None)),\n\"\")","v":""},{"$f":"IFERROR(VLOOKUP(Table_RetroSummary[[#This Row],[Controls Measure Description]],Table_ControlRate[],2,FALSE),\"\")","v":""},{"$f":"IFERROR(IF(Table_RetroSummary[[#This Row],[IsActive]],IF(Table_RetroSummary[[#This Row],[Controls Measure Description]]=\"\",0,ROUND(Table_RetroSummary[[#This Row],[Controls Rebate (per Fixt Watt)]]*Table_RetroSummary[[#This Row],[Proposed Fixture Wattage]]*Table_RetroSummary[[#This Row],[P. Qty]],2)),\"\"),\"\")","v":""},{"$f":"IFERROR(IF(Table_RetroSummary[[#This Row],[Fixture Measure Description]]=\"Ineligible Fixture\",0,ROUND(IF(ProjectCost_Total=0,300000,ProjectCost_Total)*Table_RetroSummary[[#This Row],[Controls Rebate]]/SUM(Table_RetroSummary[Fixture Rebate],Table_RetroSummary[Controls Rebate]),2)),\"\")","v":""},{"$f":"IFERROR(IF(Table_RetroSummary[[#This Row],[IsActive]],IF(Table_RetroSummary[[#This Row],[Controls Measure Description]]=\"\",0,(Table_RetroSummary[[#This Row],[Proposed Fixture (Existing Controls) kWh]]-Table_RetroSummary[[#This Row],[Proposed Fixture (Proposed Controls) kWh]])),\"\"),\"\")","v":""},{"$f":"IFERROR(IF(Table_RetroSummary[[#This Row],[IsActive]],IF(Table_RetroSummary[[#This Row],[Controls Measure Description]]=\"\",0,(Table_RetroSummary[[#This Row],[Proposed Fixture (Existing Controls) kWh]]-Table_RetroSummary[[#This Row],[Proposed Fixture (Proposed Controls) kWh]])/Table_RetroSummary[[#This Row],[OpHrs]]*Table_RetroSummary[[#This Row],[CF (Ltg)]]*Table_RetroSummary[[#This Row],[DF (Ltg)]]),\"\"),\"\")","v":""},null,{"$f":"IFERROR(IF(NOT(ISNUMBER(Table_RetroSummary[[#This Row],[Fixture Rebate]])),\"\",IF(MIN(IF(SUM(Table_RetroSummary[Fixture Cost],Table_RetroSummary[Controls Cost])<0,0,SUM(Table_RetroSummary[Fixture Cost],Table_RetroSummary[Controls Cost])),SUM(Table_RetroSummary[Fixture Rebate],Table_RetroSummary[Controls Rebate]))>300000,300000/MIN(IF(SUM(Table_RetroSummary[Fixture Cost],Table_RetroSummary[Controls Cost])<0,0,SUM(Table_RetroSummary[Fixture Cost],Table_RetroSummary[Controls Cost])),SUM(Table_RetroSummary[Fixture Rebate],Table_RetroSummary[Controls Rebate]))*MIN(IF(SUM(Table_RetroSummary[Fixture Cost],Table_RetroSummary[Controls Cost])<0,0,SUM(Table_RetroSummary[Fixture Cost],Table_RetroSummary[Controls Cost])),Table_RetroSummary[[#This Row],[Fixture Rebate]]+IF(Table_RetroSummary[[#This Row],[Controls Rebate]]=\"\",0,Table_RetroSummary[[#This Row],[Controls Rebate]])),MIN(IF(SUM(Table_RetroSummary[Fixture Cost],Table_RetroSummary[Controls Cost])<0,0,SUM(Table_RetroSummary[Fixture Cost],Table_RetroSummary[Controls Cost])),Table_RetroSummary[[#This Row],[Fixture Rebate]]+IF(Table_RetroSummary[[#This Row],[Controls Rebate]]=\"\",0,Table_RetroSummary[[#This Row],[Controls Rebate]])))),\"\")","v":""},{"$f":"IFERROR(IF(Table_RetroSummary[[#This Row],[Fixture Cost]]=\"\",\"\",Table_RetroSummary[[#This Row],[Fixture Cost]]+IF(Table_RetroSummary[[#This Row],[Controls Cost]]=\"\",0,Table_RetroSummary[[#This Row],[Controls Cost]])),\"\")","v":""},{"$f":"IFERROR(IF(Table_RetroSummary[[#This Row],[IsActive]],IF(Table_POSTInfo[[#This Row],[Interior/ Exterior]]=\"Interior\",IFERROR((Table_RetroSummary[[#This Row],[Annual Fixture Savings (kWh)]]+Table_RetroSummary[[#This Row],[Annual Control Savings (kWh)]])*(Table_RetroSummary[[#This Row],[EIF]]-1),0),0),\"\"),\"\")","v":""},{"$f":"IFERROR(IF(Table_RetroSummary[[#This Row],[IsActive]],IF(Table_POSTInfo[[#This Row],[Interior/ Exterior]]=\"Interior\",IFERROR((Table_RetroSummary[[#This Row],[Fixture kW Reduction]]+Table_RetroSummary[[#This Row],[Control kW Reduction]]/(Table_RetroSummary[[#This Row],[CF (Ltg)]]*Table_RetroSummary[[#This Row],[DF (Ltg)]]))*(Table_RetroSummary[[#This Row],[DIF]]-1)*Table_RetroSummary[[#This Row],[CF (HVAC)]]*Table_RetroSummary[[#This Row],[DF (HVAC)]],0),0),\"\"),\"\")","v":""},{"$f":"IFERROR(IF(Table_RetroSummary[[#This Row],[IsActive]],IF(NOT(ISNUMBER(Table_RetroSummary[[#This Row],[Fixture Rebate]])),\"\",ROUND(Table_RetroSummary[[#This Row],[Annual Fixture Savings (kWh)]]+Table_RetroSummary[[#This Row],[Annual Control Savings (kWh)]],0)),\"\"),\"\")","v":""},{"$f":"IFERROR(IF(Table_RetroSummary[[#This Row],[IsActive]],IF(NOT(ISNUMBER(Table_RetroSummary[[#This Row],[Fixture Rebate]])),\"\",ROUND(Table_RetroSummary[[#This Row],[Fixture kW Reduction]]+Table_RetroSummary[[#This Row],[Control kW Reduction]],3)),\"\"),\"\")","v":""},{"$f":"IFERROR(IF(Table_RetroSummary[[#This Row],[IsActive]],IF(NOT(ISNUMBER(Table_RetroSummary[[#This Row],[Fixture Rebate]])),\"\",ROUND(Table_RetroSummary[[#This Row],[Fixture Energy Savings (kWh)]]+Table_RetroSummary[[#This Row],[Induced HVAC Energy Savings (kWh)]],0)),\"\"),\"\")","v":""},{"$f":"IFERROR(IF(Table_RetroSummary[[#This Row],[IsActive]],IF(NOT(ISNUMBER(Table_RetroSummary[[#This Row],[Fixture Rebate]])),\"\",ROUND(Table_RetroSummary[[#This Row],[Fixture Demand Savings (kW)]]+Table_RetroSummary[[#This Row],[Induced HVAC Demand Savings (kW)]],3)),\"\"),\"\")","v":""}]
[{"$f":"IFERROR(Table_POSTInfo[[#This Row],[Line]],\"\")","v":35},{"$f":"IFERROR(Table_POSTInfo[[#This Row],[IsActive]],\"\")","v":false},{"$f":"IFERROR(IF(Table_RetroSummary[[#This Row],[IsActive]],CONCATENATE(Table_RetroSummary[[#This Row],[Existing Fixture]],\" | \",Table_RetroSummary[[#This Row],[Proposed Fixture]]),\"\"),\"\")","v":""},{"$f":"IFERROR(IF(Table_RetroSummary[[#This Row],[IsActive]],VLOOKUP(IF(ISNUMBER(MATCH(Table_POSTInfo[[#This Row],[Line]],Table_POSTInspection[Line],0)),INDEX(Table_POSTInspection[Schedule],MATCH(Table_RetroSummary[[#This Row],[Line Item]],Table_POSTInspection[Line],0)),Table_POSTInfo[[#This Row],[Schedule]]),'Customer Information'!$S$27:$T$34,2,FALSE),\"\"),\"\")","v":""},{"$f":"IFERROR(IF(Table_RetroSummary[[#This Row],[IsActive]],IF(IF(ISNUMBER(MATCH(Table_RetroSummary[[#This Row],[Line Item]],Table_POSTInspection[Line],0)),INDEX(Table_POSTInspection[Interior/ Exterior],MATCH(Table_RetroSummary[[#This Row],[Line Item]],Table_POSTInfo[[#This Row],[Line]],0)),Table_POSTInfo[[#This Row],[Interior/ Exterior]])=\"Interior\",'Customer Information'!$S$25,0),\"\"),\"\")","v":""},{"$f":"IFERROR(IF(Table_RetroSummary[[#This Row],[IsActive]],IF(IF(ISNUMBER(MATCH(Table_RetroSummary[[#This Row],[Line Item]],Table_POSTInspection[Line],0)),INDEX(Table_POSTInspection[Interior/ Exterior],MATCH(Table_RetroSummary[[#This Row],[Line Item]],Table_POSTInfo[[#This Row],[Line]],0)),Table_POSTInfo[[#This Row],[Interior/ Exterior]])=\"Interior\",'Customer Information'!$T$25,0),\"\"),\"\")","v":""},{"$f":"IFERROR(IF(Table_RetroSummary[[#This Row],[IsActive]],IF(IF(ISNUMBER(MATCH(Table_RetroSummary[[#This Row],[Line Item]],Table_POSTInspection[Line],0)),INDEX(Table_POSTInspection[Interior/ Exterior],MATCH(Table_RetroSummary[[#This Row],[Line Item]],Table_POSTInfo[[#This Row],[Line]],0)),Table_POSTInfo[[#This Row],[Interior/ Exterior]])=\"Interior\",'Customer Information'!$U$25,0),\"\"),\"\")","v":""},{"$f":"IFERROR(IF(Table_RetroSummary[[#This Row],[IsActive]],IF(IF(ISNUMBER(MATCH(Table_RetroSummary[[#This Row],[Line Item]],Table_POSTInspection[Line],0)),INDEX(Table_POSTInspection[Interior/ Exterior],MATCH(Table_RetroSummary[[#This Row],[Line Item]],Table_POSTInfo[[#This Row],[Line]],0)),Table_POSTInfo[[#This Row],[Interior/ Exterior]])=\"Interior\",'Customer Information'!$V$25,0),\"\"),\"\")","v":""},{"$f":"IFERROR(IF(Table_RetroSummary[[#This Row],[IsActive]],IF(IF(ISNUMBER(MATCH(Table_RetroSummary[[#This Row],[Line Item]],Table_POSTInspection[Line],0)),INDEX(Table_POSTInspection[Interior/ Exterior],MATCH(Table_RetroSummary[[#This Row],[Line Item]],Table_POSTInfo[[#This Row],[Line]],0)),Table_POSTInfo[[#This Row],[Interior/ Exterior]])=\"Interior\",'Customer Information'!$W$25,0),\"\"),\"\")","v":""},{"$f":"IFERROR(IF(Table_RetroSummary[[#This Row],[IsActive]],IF(IF(ISNUMBER(MATCH(Table_RetroSummary[[#This Row],[Line Item]],Table_POSTInspection[Line],0)),INDEX(Table_POSTInspection[Interior/ Exterior],MATCH(Table_RetroSummary[[#This Row],[Line Item]],Table_POSTInfo[[#This Row],[Line]],0)),Table_POSTInfo[[#This Row],[Interior/ Exterior]])=\"Interior\",'Customer Information'!$X$25,0),\"\"),\"\")","v":""},{"$f":"IFERROR(IF(Table_RetroSummary[[#This Row],[IsActive]],\nCONCATENATE(\nIF(ISNUMBER(MATCH(Table_POSTInfo[[#This Row],[Line]],Table_POSTInspection[Line],0)),INDEX(Table_POSTInspection[Interior/ Exterior],MATCH(Table_RetroSummary[[#This Row],[Line Item]],Table_POSTInspection[Line],0)),Table_POSTInfo[[#This Row],[Interior/ Exterior]]),\n\" - \",\nIF(ISNUMBER(MATCH(Table_POSTInfo[[#This Row],[Line]],Table_POSTInspection[Line],0)),INDEX(Table_POSTInspection[Space Description],MATCH(Table_RetroSummary[[#This Row],[Line Item]],Table_POSTInspection[Line],0)),Table_POSTInfo[[#This Row],[Space Description]])),\n \"\"),\"\")","v":""},{"$f":"IFERROR(IF(Table_RetroSummary[[#This Row],[IsActive]]=\"\",\"\",Table_POSTInfo[[#This Row],[Fixture Description '[E']]]),\"\")","v":""},{"$f":"IFERROR(IF(Table_RetroSummary[[#This Row],[IsActive]]=\"\",\"\",Table_POSTInfo[[#This Row],['# Lamps/ Fixture '[E']]]),\"\")","v":""},{"$f":"IFERROR(IF(Table_RetroSummary[[#This Row],[IsActive]]=\"\",\"\",Table_POSTInfo[[#This Row],[Fixture/ Lamp Wattage '[E']]]),\"\")","v":""},{"$f":"IFERROR(IF(Table_RetroSummary[[#This Row],[IsActive]]=\"\",\"\",Table_POSTInfo[[#This Row],[Fixture Qty '[E']]]),\"\")","v":""},{"$f":"IFERROR(IF(Table_RetroSummary[[#This Row],[IsActive]],Table_RetroSummary[[#This Row],[Fixture/ Lamp Wattage '[E']]]*Table_RetroSummary[[#This Row],[E. Qty]],\"\"),\"\")","v":""},{"$f":"IFERROR(IF(Table_RetroSummary[[#This Row],[IsActive]]=\"\",\"\",Table_POSTInfo[[#This Row],[Fixture Wattage '[E']]]),\"\")","v":""},{"$f":"IFERROR(IF(Table_RetroSummary[[#This Row],[IsActive]],IFERROR(Table_RetroSummary[[#This Row],[Existing Fixture Wattage]]/1000*Table_RetroSummary[[#This Row],[OpHrs]]*Table_RetroSummary[[#This Row],[E. Qty]],0),\"\"),\"\")","v":""},{"$f":"IFERROR(IF(Table_RetroSummary[[#This Row],[IsActive]],IFERROR(VLOOKUP(RIGHT(Table_RetroSummary[[#This Row],[Existing Fixture]],LEN(Table_RetroSummary[[#This Row],[Existing Fixture]])-FIND(\" - \",Table_RetroSummary[[#This Row],[Existing Fixture]],FIND(\"]\",Table_RetroSummary[[#This Row],[Existing Fixture]],1))-2),Table_ControlType[],3,FALSE),0),\"\"),\"\")","v":""},{"$f":"IFERROR(IF(Table_RetroSummary[[#This Row],[IsActive]],IFERROR(Table_RetroSummary[[#This Row],[Existing Fixture Wattage]]/1000*Table_RetroSummary[[#This Row],[OpHrs]]*Table_RetroSummary[[#This Row],[E. Qty]]*Table_RetroSummary[[#This Row],[Existing CSF]]*(-1),0),\"\"),\"\")","v":""},{"$f":"IFERROR(Table_RetroSummary[[#This Row],[Existing Fixture kWh]]+Table_RetroSummary[[#This Row],[Existing Fixture (Existing Controls) kWh]],\"\")","v":""},{"$f":"IFERROR(IF(Table_RetroSummary[[#This Row],[IsActive]],IF(ISNUMBER(MATCH(Table_POSTInfo[[#This Row],[Line]],Table_POSTInspection[Line],0)),INDEX(Table_POSTInspection[Fixture Description '[P']],MATCH(Table_RetroSummary[[#This Row],[Line Item]],Table_POSTInspection[Line],0)),Table_POSTInfo[[#This Row],[Fixture Description '[P']]]),\"\"),\"\")","v":""},{"$f":"IFERROR(IF(Table_RetroSummary[[#This Row],[IsActive]],IF(ISNUMBER(MATCH(Table_POSTInfo[[#This Row],[Line]],Table_POSTInspection[Line],0)),INDEX(Table_POSTInspection['# Lamps/ Fixture '[P']],MATCH(Table_RetroSummary[[#This Row],[Line Item]],Table_POSTInspection[Line],0)),Table_POSTInfo[[#This Row],['# Lamps/ Fixture '[P']]]),\"\"),\"\")","v":""},{"$f":"IFERROR(IF(Table_RetroSummary[[#This Row],[IsActive]],IF(ISNUMBER(MATCH(Table_POSTInfo[[#This Row],[Line]],Table_POSTInspection[Line],0)),INDEX(Table_POSTInspection[Fixture/ Lamp Wattage '[P']],MATCH(Table_RetroSummary[[#This Row],[Line Item]],Table_POSTInspection[Line],0)),Table_POSTInfo[[#This Row],[Fixture/ Lamp Wattage '[P']]]),\"\"),\"\")","v":""},{"$f":"IFERROR(IF(Table_RetroSummary[[#This Row],[IsActive]],IF(ISNUMBER(MATCH(Table_POSTInfo[[#This Row],[Line]],Table_POSTInspection[Line],0)),INDEX(Table_POSTInspection[Fixture Qty '[P']],MATCH(Table_RetroSummary[[#This Row],[Line Item]],Table_POSTInspection[Line],0)),Table_POSTInfo[[#This Row],[Fixture Qty '[P']]]),\"\"),\"\")","v":""},{"$f":"IFERROR(IF(Table_RetroSummary[[#This Row],[IsActive]],Table_RetroSummary[[#This Row],[Fixture/ Lamp Wattage '[P']]]*Table_RetroSummary[[#This Row],[P. Qty]],\"\"),\"\")","v":""},{"$f":"IFERROR(IF(Table_RetroSummary[[#This Row],[IsActive]],IF(ISNUMBER(MATCH(Table_POSTInfo[[#This Row],[Line]],Table_POSTInspection[Line],0)),INDEX(Table_POSTInspection[Fixture Wattage '[P']],MATCH(Table_RetroSummary[[#This Row],[Line Item]],Table_POSTInspection[Line],0)),Table_POSTInfo[[#This Row],[Fixture Wattage '[P']]]),\"\"),\"\")","v":""},{"$f":"IFERROR(Table_RetroSummary[[#This Row],[Total '# Lamps '[P']]]+Table_RetroSummary[[#This Row],[Proposed Fixture Wattage]],\"\")","v":""},{"$f":"IFERROR(Table_RetroSummary[[#This Row],[Proposed Fixture Wattage]]/1000*Table_RetroSummary[[#This Row],[OpHrs]]*Table_RetroSummary[[#This Row],[P. Qty]],\"\")","v":""},{"$f":"IFERROR(IF(Table_RetroSummary[[#This Row],[IsActive]],IFERROR(VLOOKUP(RIGHT(Table_RetroSummary[[#This Row],[Proposed Fixture]],LEN(Table_RetroSummary[[#This Row],[Proposed Fixture]])-FIND(\" - \",Table_RetroSummary[[#This Row],[Proposed Fixture]],FIND(\"]\",Table_RetroSummary[[#This Row],[Proposed Fixture]],1))-2),Table_ControlType[],3, FALSE),0),\"\"),\"\")","v":""},{"$f":"IFERROR(IF(Table_RetroSummary[[#This Row],[IsActive]],IFERROR(Table_RetroSummary[[#This Row],[Proposed Fixture Wattage]]/1000*Table_RetroSummary[[#This Row],[OpHrs]]*Table_RetroSummary[[#This Row],[P. Qty]]*Table_RetroSummary[[#This Row],[Existing CSF]]*(-1),0),\"\"),\"\")","v":""},{"$f":"IFERROR(Table_RetroSummary[[#This Row],[Proposed Fixture kWh]]+Table_RetroSummary[[#This Row],[Proposed Fixture (Existing Controls) kWh]],\"\")","v":""},{"$f":"IFERROR(IF(Table_RetroSummary[[#This Row],[IsActive]],IFERROR(Table_RetroSummary[[#This Row],[Proposed Fixture Wattage]]/1000*Table_RetroSummary[[#This Row],[OpHrs]]*Table_RetroSummary[[#This Row],[P. Qty]]*Table_RetroSummary[[#This Row],[Proposed CSF]]*(-1),0),\"\"),\"\")","v":""},{"$f":"IFERROR(Table_RetroSummary[[#This Row],[Proposed Fixture kWh]]+Table_RetroSummary[[#This Row],[Proposed Fixture (Proposed Controls) kWh]],\"\")","v":""},{"$f":"IFERROR(IF(Table_RetroSummary[[#This Row],[IsActive]],IF(ISNUMBER(MATCH(Table_POSTInfo[[#This Row],[Line]],Table_POSTInspection[Line],0)),INDEX(Table_POSTInspection[DLC or ES Certification '[P']],MATCH(Table_RetroSummary[[#This Row],[Line Item]],Table_POSTInspection[Line],0)),Table_POSTInfo[[#This Row],[DLC or ES Certification '[P']]]),\"\"),\"\")","v":""},null,{"$f":"IFERROR(IF(Table_RetroSummary[[#This Row],[IsActive]],\nIF(AND(RIGHT(Table_RetroSummary[[#This Row],[Existing Fixture]],LEN(Table_RetroSummary[[#This Row],[Existing Fixture]])-FIND(\":\",Table_RetroSummary[[#This Row],[Existing Fixture]],1)-1)<>Table_RetroSummary[[#This Row],[Proposed Fixture]],MID(Table_RetroSummary[[#This Row],[Existing Fixture]],FIND(\": \",Table_RetroSummary[[#This Row],[Existing Fixture]],1)+2,FIND(\"]\",Table_RetroSummary[[#This Row],[Existing Fixture]],1))=LEFT(Table_RetroSummary[[#This Row],[Proposed Fixture]],FIND(\"]\",Table_RetroSummary[[#This Row],[Proposed Fixture]],1))),\n  \"Controls Only\",\n  IF(Table_POSTInfo[[#This Row],[DLC or ES Certification '[P']]]<>\"\",\n    IF(ISNUMBER(FIND(\"LED Tube\",Table_RetroSummary[[#This Row],[Proposed Fixture]],1)),\n      \"LED Re-Lamp\",\n      IF(AND(Table_RetroSummary[[#This Row],[Existing Overall kWh]]>Table_RetroSummary[[#This Row],[Proposed Overall kWh (Existing Controls)]],ISNUMBER(FIND(\"LED\",Table_RetroSummary[[#This Row],[Proposed Fixture]],1))),\n        IF(Table_POSTInfo[[#This Row],[Interior/ Exterior]]=\"Exterior\",\n          \"Exterior LED Fixture\",\n          \"Interior LED Fixture\"),\n        \"Ineligible Fixture\")),\n    \"Ineligible Fixture\")),\n\"\"),\"\")","v":""},{"$f":"IFERROR(VLOOKUP(Table_RetroSummary[[#This Row],[Fixture Measure Description]],Table_FixtureRate[],2,FALSE),\"\")","v":""},{"$f":"IFERROR(IF(Table_RetroSummary[[#This Row],[IsActive]],IF(Table_RetroSummary[[#This Row],[Fixture Measure Description]]=\"Ineligible Fixture\",0,ROUND(Table_RetroSummary[[#This Row],[Fixture Rebate (per kW)]]*(Table_RetroSummary[[#This Row],[Existing Fixture Wattage]]*Table_RetroSummary[[#This Row],[E. Qty]]-Table_RetroSummary[[#This Row],[Proposed Fixture Wattage]]*Table_RetroSummary[[#This Row],[P. Qty]])/1000,2)),\"\"),\"\")","v":""},{"$f":"IFERROR(IF(Table_RetroSummary[[#This Row],[Fixture Measure Description]]=\"Ineligible Fixture\",0,ROUND(IF(ProjectCost_Total=0,300000,ProjectCost_Total)*Table_RetroSummary[[#This Row],[Fixture Rebate]]/SUM(Table_RetroSummary[Fixture Rebate],Table_RetroSummary[Controls Rebate]),2)),\"\")","v":""},{"$f":"IFERROR(IF(Table_RetroSummary[[#This Row],[IsActive]],IF(Table_RetroSummary[[#This Row],[Fixture Measure Description]]=\"Ineligible Fixture\",0,Table_RetroSummary[[#This Row],[Existing Overall kWh]]-Table_RetroSummary[[#This Row],[Proposed Overall kWh (Existing Controls)]]),\"\"),\"\")","v":""},{"$f":"IFERROR(IF(Table_RetroSummary[[#This Row],[IsActive]],IF(Table_RetroSummary[[#This Row],[Fixture Measure Description]]=\"Ineligible Fixture\",0,(Table_RetroSummary[[#This Row],[Existing Fixture kWh]]-Table_RetroSummary[[#This Row],[Proposed Fixture kWh]])/Table_RetroSummary[[#This Row],[OpHrs]]*Table_RetroSummary[[#This Row],[CF (Ltg)]]*Table_RetroSummary[[#This Row],[DF (Ltg)]]),\"\"),\"\")","v":""},null,{"$f":"IFERROR(\n  IF(OR(Table_RetroSummary[[#This Row],[Fixture Measure Description]]=\"\",Table_RetroSummary[[#This Row],[Fixture Measure Description]]=\"Ineligible Fixture\"),\n    \"\",\n    IFERROR(VLOOKUP(RIGHT(Table_RetroSummary[[#This Row],[Existing Fixture]],LEN(Table_RetroSummary[[#This Row],[Existing Fixture]])-FIND(\" - \",Table_RetroSummary[[#This Row],[Existing Fixture]],FIND(\"]\",Table_RetroSummary[[#This Row],[Existing Fixture]],1))-2),Table_ControlType[],2,FALSE),\"None\")\n    & \" - \" &\n    IFERROR(VLOOKUP(RIGHT(Table_RetroSummary[[#This Row],[Proposed Fixture]],LEN(Table_RetroSummary[[#This Row],[Proposed Fixture]])-FIND(\" - \",Table_RetroSummary[[#This Row],[Proposed Fixture]],FIND(\"]\",Table_RetroSummary[[#This Row],[Proposed Fixture]],1))-2),Table_ControlType[],2, FALSE),None)),\n\"\")","v":""},{"$f":"IFERROR(VLOOKUP(Table_RetroSummary[[#This Row],[Controls Measure Description]],Table_ControlRate[],2,FALSE),\"\")","v":""},{"$f":"IFERROR(IF(Table_RetroSummary[[#This Row],[IsActive]],IF(Table_RetroSummary[[#This Row],[Controls Measure Description]]=\"\",0,ROUND(Table_RetroSummary[[#This Row],[Controls Rebate (per Fixt Watt)]]*Table_RetroSummary[[#This Row],[Proposed Fixture Wattage]]*Table_RetroSummary[[#This Row],[P. Qty]],2)),\"\"),\"\")","v":""},{"$f":"IFERROR(IF(Table_RetroSummary[[#This Row],[Fixture Measure Description]]=\"Ineligible Fixture\",0,ROUND(IF(ProjectCost_Total=0,300000,ProjectCost_Total)*Table_RetroSummary[[#This Row],[Controls Rebate]]/SUM(Table_RetroSummary[Fixture Rebate],Table_RetroSummary[Controls Rebate]),2)),\"\")","v":""},{"$f":"IFERROR(IF(Table_RetroSummary[[#This Row],[IsActive]],IF(Table_RetroSummary[[#This Row],[Controls Measure Description]]=\"\",0,(Table_RetroSummary[[#This Row],[Proposed Fixture (Existing Controls) kWh]]-Table_RetroSummary[[#This Row],[Proposed Fixture (Proposed Controls) kWh]])),\"\"),\"\")","v":""},{"$f":"IFERROR(IF(Table_RetroSummary[[#This Row],[IsActive]],IF(Table_RetroSummary[[#This Row],[Controls Measure Description]]=\"\",0,(Table_RetroSummary[[#This Row],[Proposed Fixture (Existing Controls) kWh]]-Table_RetroSummary[[#This Row],[Proposed Fixture (Proposed Controls) kWh]])/Table_RetroSummary[[#This Row],[OpHrs]]*Table_RetroSummary[[#This Row],[CF (Ltg)]]*Table_RetroSummary[[#This Row],[DF (Ltg)]]),\"\"),\"\")","v":""},null,{"$f":"IFERROR(IF(NOT(ISNUMBER(Table_RetroSummary[[#This Row],[Fixture Rebate]])),\"\",IF(MIN(IF(SUM(Table_RetroSummary[Fixture Cost],Table_RetroSummary[Controls Cost])<0,0,SUM(Table_RetroSummary[Fixture Cost],Table_RetroSummary[Controls Cost])),SUM(Table_RetroSummary[Fixture Rebate],Table_RetroSummary[Controls Rebate]))>300000,300000/MIN(IF(SUM(Table_RetroSummary[Fixture Cost],Table_RetroSummary[Controls Cost])<0,0,SUM(Table_RetroSummary[Fixture Cost],Table_RetroSummary[Controls Cost])),SUM(Table_RetroSummary[Fixture Rebate],Table_RetroSummary[Controls Rebate]))*MIN(IF(SUM(Table_RetroSummary[Fixture Cost],Table_RetroSummary[Controls Cost])<0,0,SUM(Table_RetroSummary[Fixture Cost],Table_RetroSummary[Controls Cost])),Table_RetroSummary[[#This Row],[Fixture Rebate]]+IF(Table_RetroSummary[[#This Row],[Controls Rebate]]=\"\",0,Table_RetroSummary[[#This Row],[Controls Rebate]])),MIN(IF(SUM(Table_RetroSummary[Fixture Cost],Table_RetroSummary[Controls Cost])<0,0,SUM(Table_RetroSummary[Fixture Cost],Table_RetroSummary[Controls Cost])),Table_RetroSummary[[#This Row],[Fixture Rebate]]+IF(Table_RetroSummary[[#This Row],[Controls Rebate]]=\"\",0,Table_RetroSummary[[#This Row],[Controls Rebate]])))),\"\")","v":""},{"$f":"IFERROR(IF(Table_RetroSummary[[#This Row],[Fixture Cost]]=\"\",\"\",Table_RetroSummary[[#This Row],[Fixture Cost]]+IF(Table_RetroSummary[[#This Row],[Controls Cost]]=\"\",0,Table_RetroSummary[[#This Row],[Controls Cost]])),\"\")","v":""},{"$f":"IFERROR(IF(Table_RetroSummary[[#This Row],[IsActive]],IF(Table_POSTInfo[[#This Row],[Interior/ Exterior]]=\"Interior\",IFERROR((Table_RetroSummary[[#This Row],[Annual Fixture Savings (kWh)]]+Table_RetroSummary[[#This Row],[Annual Control Savings (kWh)]])*(Table_RetroSummary[[#This Row],[EIF]]-1),0),0),\"\"),\"\")","v":""},{"$f":"IFERROR(IF(Table_RetroSummary[[#This Row],[IsActive]],IF(Table_POSTInfo[[#This Row],[Interior/ Exterior]]=\"Interior\",IFERROR((Table_RetroSummary[[#This Row],[Fixture kW Reduction]]+Table_RetroSummary[[#This Row],[Control kW Reduction]]/(Table_RetroSummary[[#This Row],[CF (Ltg)]]*Table_RetroSummary[[#This Row],[DF (Ltg)]]))*(Table_RetroSummary[[#This Row],[DIF]]-1)*Table_RetroSummary[[#This Row],[CF (HVAC)]]*Table_RetroSummary[[#This Row],[DF (HVAC)]],0),0),\"\"),\"\")","v":""},{"$f":"IFERROR(IF(Table_RetroSummary[[#This Row],[IsActive]],IF(NOT(ISNUMBER(Table_RetroSummary[[#This Row],[Fixture Rebate]])),\"\",ROUND(Table_RetroSummary[[#This Row],[Annual Fixture Savings (kWh)]]+Table_RetroSummary[[#This Row],[Annual Control Savings (kWh)]],0)),\"\"),\"\")","v":""},{"$f":"IFERROR(IF(Table_RetroSummary[[#This Row],[IsActive]],IF(NOT(ISNUMBER(Table_RetroSummary[[#This Row],[Fixture Rebate]])),\"\",ROUND(Table_RetroSummary[[#This Row],[Fixture kW Reduction]]+Table_RetroSummary[[#This Row],[Control kW Reduction]],3)),\"\"),\"\")","v":""},{"$f":"IFERROR(IF(Table_RetroSummary[[#This Row],[IsActive]],IF(NOT(ISNUMBER(Table_RetroSummary[[#This Row],[Fixture Rebate]])),\"\",ROUND(Table_RetroSummary[[#This Row],[Fixture Energy Savings (kWh)]]+Table_RetroSummary[[#This Row],[Induced HVAC Energy Savings (kWh)]],0)),\"\"),\"\")","v":""},{"$f":"IFERROR(IF(Table_RetroSummary[[#This Row],[IsActive]],IF(NOT(ISNUMBER(Table_RetroSummary[[#This Row],[Fixture Rebate]])),\"\",ROUND(Table_RetroSummary[[#This Row],[Fixture Demand Savings (kW)]]+Table_RetroSummary[[#This Row],[Induced HVAC Demand Savings (kW)]],3)),\"\"),\"\")","v":""}]
[{"$f":"IFERROR(Table_POSTInfo[[#This Row],[Line]],\"\")","v":36},{"$f":"IFERROR(Table_POSTInfo[[#This Row],[IsActive]],\"\")","v":false},{"$f":"IFERROR(IF(Table_RetroSummary[[#This Row],[IsActive]],CONCATENATE(Table_RetroSummary[[#This Row],[Existing Fixture]],\" | \",Table_RetroSummary[[#This Row],[Proposed Fixture]]),\"\"),\"\")","v":""},{"$f":"IFERROR(IF(Table_RetroSummary[[#This Row],[IsActive]],VLOOKUP(IF(ISNUMBER(MATCH(Table_POSTInfo[[#This Row],[Line]],Table_POSTInspection[Line],0)),INDEX(Table_POSTInspection[Schedule],MATCH(Table_RetroSummary[[#This Row],[Line Item]],Table_POSTInspection[Line],0)),Table_POSTInfo[[#This Row],[Schedule]]),'Customer Information'!$S$27:$T$34,2,FALSE),\"\"),\"\")","v":""},{"$f":"IFERROR(IF(Table_RetroSummary[[#This Row],[IsActive]],IF(IF(ISNUMBER(MATCH(Table_RetroSummary[[#This Row],[Line Item]],Table_POSTInspection[Line],0)),INDEX(Table_POSTInspection[Interior/ Exterior],MATCH(Table_RetroSummary[[#This Row],[Line Item]],Table_POSTInfo[[#This Row],[Line]],0)),Table_POSTInfo[[#This Row],[Interior/ Exterior]])=\"Interior\",'Customer Information'!$S$25,0),\"\"),\"\")","v":""},{"$f":"IFERROR(IF(Table_RetroSummary[[#This Row],[IsActive]],IF(IF(ISNUMBER(MATCH(Table_RetroSummary[[#This Row],[Line Item]],Table_POSTInspection[Line],0)),INDEX(Table_POSTInspection[Interior/ Exterior],MATCH(Table_RetroSummary[[#This Row],[Line Item]],Table_POSTInfo[[#This Row],[Line]],0)),Table_POSTInfo[[#This Row],[Interior/ Exterior]])=\"Interior\",'Customer Information'!$T$25,0),\"\"),\"\")","v":""},{"$f":"IFERROR(IF(Table_RetroSummary[[#This Row],[IsActive]],IF(IF(ISNUMBER(MATCH(Table_RetroSummary[[#This Row],[Line Item]],Table_POSTInspection[Line],0)),INDEX(Table_POSTInspection[Interior/ Exterior],MATCH(Table_RetroSummary[[#This Row],[Line Item]],Table_POSTInfo[[#This Row],[Line]],0)),Table_POSTInfo[[#This Row],[Interior/ Exterior]])=\"Interior\",'Customer Information'!$U$25,0),\"\"),\"\")","v":""},{"$f":"IFERROR(IF(Table_RetroSummary[[#This Row],[IsActive]],IF(IF(ISNUMBER(MATCH(Table_RetroSummary[[#This Row],[Line Item]],Table_POSTInspection[Line],0)),INDEX(Table_POSTInspection[Interior/ Exterior],MATCH(Table_RetroSummary[[#This Row],[Line Item]],Table_POSTInfo[[#This Row],[Line]],0)),Table_POSTInfo[[#This Row],[Interior/ Exterior]])=\"Interior\",'Customer Information'!$V$25,0),\"\"),\"\")","v":""},{"$f":"IFERROR(IF(Table_RetroSummary[[#This Row],[IsActive]],IF(IF(ISNUMBER(MATCH(Table_RetroSummary[[#This Row],[Line Item]],Table_POSTInspection[Line],0)),INDEX(Table_POSTInspection[Interior/ Exterior],MATCH(Table_RetroSummary[[#This Row],[Line Item]],Table_POSTInfo[[#This Row],[Line]],0)),Table_POSTInfo[[#This Row],[Interior/ Exterior]])=\"Interior\",'Customer Information'!$W$25,0),\"\"),\"\")","v":""},{"$f":"IFERROR(IF(Table_RetroSummary[[#This Row],[IsActive]],IF(IF(ISNUMBER(MATCH(Table_RetroSummary[[#This Row],[Line Item]],Table_POSTInspection[Line],0)),INDEX(Table_POSTInspection[Interior/ Exterior],MATCH(Table_RetroSummary[[#This Row],[Line Item]],Table_POSTInfo[[#This Row],[Line]],0)),Table_POSTInfo[[#This Row],[Interior/ Exterior]])=\"Interior\",'Customer Information'!$X$25,0),\"\"),\"\")","v":""},{"$f":"IFERROR(IF(Table_RetroSummary[[#This Row],[IsActive]],\nCONCATENATE(\nIF(ISNUMBER(MATCH(Table_POSTInfo[[#This Row],[Line]],Table_POSTInspection[Line],0)),INDEX(Table_POSTInspection[Interior/ Exterior],MATCH(Table_RetroSummary[[#This Row],[Line Item]],Table_POSTInspection[Line],0)),Table_POSTInfo[[#This Row],[Interior/ Exterior]]),\n\" - \",\nIF(ISNUMBER(MATCH(Table_POSTInfo[[#This Row],[Line]],Table_POSTInspection[Line],0)),INDEX(Table_POSTInspection[Space Description],MATCH(Table_RetroSummary[[#This Row],[Line Item]],Table_POSTInspection[Line],0)),Table_POSTInfo[[#This Row],[Space Description]])),\n \"\"),\"\")","v":""},{"$f":"IFERROR(IF(Table_RetroSummary[[#This Row],[IsActive]]=\"\",\"\",Table_POSTInfo[[#This Row],[Fixture Description '[E']]]),\"\")","v":""},{"$f":"IFERROR(IF(Table_RetroSummary[[#This Row],[IsActive]]=\"\",\"\",Table_POSTInfo[[#This Row],['# Lamps/ Fixture '[E']]]),\"\")","v":""},{"$f":"IFERROR(IF(Table_RetroSummary[[#This Row],[IsActive]]=\"\",\"\",Table_POSTInfo[[#This Row],[Fixture/ Lamp Wattage '[E']]]),\"\")","v":""},{"$f":"IFERROR(IF(Table_RetroSummary[[#This Row],[IsActive]]=\"\",\"\",Table_POSTInfo[[#This Row],[Fixture Qty '[E']]]),\"\")","v":""},{"$f":"IFERROR(IF(Table_RetroSummary[[#This Row],[IsActive]],Table_RetroSummary[[#This Row],[Fixture/ Lamp Wattage '[E']]]*Table_RetroSummary[[#This Row],[E. Qty]],\"\"),\"\")","v":""},{"$f":"IFERROR(IF(Table_RetroSummary[[#This Row],[IsActive]]=\"\",\"\",Table_POSTInfo[[#This Row],[Fixture Wattage '[E']]]),\"\")","v":""},{"$f":"IFERROR(IF(Table_RetroSummary[[#This Row],[IsActive]],IFERROR(Table_RetroSummary[[#This Row],[Existing Fixture Wattage]]/1000*Table_RetroSummary[[#This Row],[OpHrs]]*Table_RetroSummary[[#This Row],[E. Qty]],0),\"\"),\"\")","v":""},{"$f":"IFERROR(IF(Table_RetroSummary[[#This Row],[IsActive]],IFERROR(VLOOKUP(RIGHT(Table_RetroSummary[[#This Row],[Existing Fixture]],LEN(Table_RetroSummary[[#This Row],[Existing Fixture]])-FIND(\" - \",Table_RetroSummary[[#This Row],[Existing Fixture]],FIND(\"]\",Table_RetroSummary[[#This Row],[Existing Fixture]],1))-2),Table_ControlType[],3,FALSE),0),\"\"),\"\")","v":""},{"$f":"IFERROR(IF(Table_RetroSummary[[#This Row],[IsActive]],IFERROR(Table_RetroSummary[[#This Row],[Existing Fixture Wattage]]/1000*Table_RetroSummary[[#This Row],[OpHrs]]*Table_RetroSummary[[#This Row],[E. Qty]]*Table_RetroSummary[[#This Row],[Existing CSF]]*(-1),0),\"\"),\"\")","v":""},{"$f":"IFERROR(Table_RetroSummary[[#This Row],[Existing Fixture kWh]]+Table_RetroSummary[[#This Row],[Existing Fixture (Existing Controls) kWh]],\"\")","v":""},{"$f":"IFERROR(IF(Table_RetroSummary[[#This Row],[IsActive]],IF(ISNUMBER(MATCH(Table_POSTInfo[[#This Row],[Line]],Table_POSTInspection[Line],0)),INDEX(Table_POSTInspection[Fixture Description '[P']],MATCH(Table_RetroSummary[[#This Row],[Line Item]],Table_POSTInspection[Line],0)),Table_POSTInfo[[#This Row],[Fixture Description '[P']]]),\"\"),\"\")","v":""},{"$f":"IFERROR(IF(Table_RetroSummary[[#This Row],[IsActive]],IF(ISNUMBER(MATCH(Table_POSTInfo[[#This Row],[Line]],Table_POSTInspection[Line],0)),INDEX(Table_POSTInspection['# Lamps/ Fixture '[P']],MATCH(Table_RetroSummary[[#This Row],[Line Item]],Table_POSTInspection[Line],0)),Table_POSTInfo[[#This Row],['# Lamps/ Fixture '[P']]]),\"\"),\"\")","v":""},{"$f":"IFERROR(IF(Table_RetroSummary[[#This Row],[IsActive]],IF(ISNUMBER(MATCH(Table_POSTInfo[[#This Row],[Line]],Table_POSTInspection[Line],0)),INDEX(Table_POSTInspection[Fixture/ Lamp Wattage '[P']],MATCH(Table_RetroSummary[[#This Row],[Line Item]],Table_POSTInspection[Line],0)),Table_POSTInfo[[#This Row],[Fixture/ Lamp Wattage '[P']]]),\"\"),\"\")","v":""},{"$f":"IFERROR(IF(Table_RetroSummary[[#This Row],[IsActive]],IF(ISNUMBER(MATCH(Table_POSTInfo[[#This Row],[Line]],Table_POSTInspection[Line],0)),INDEX(Table_POSTInspection[Fixture Qty '[P']],MATCH(Table_RetroSummary[[#This Row],[Line Item]],Table_POSTInspection[Line],0)),Table_POSTInfo[[#This Row],[Fixture Qty '[P']]]),\"\"),\"\")","v":""},{"$f":"IFERROR(IF(Table_RetroSummary[[#This Row],[IsActive]],Table_RetroSummary[[#This Row],[Fixture/ Lamp Wattage '[P']]]*Table_RetroSummary[[#This Row],[P. Qty]],\"\"),\"\")","v":""},{"$f":"IFERROR(IF(Table_RetroSummary[[#This Row],[IsActive]],IF(ISNUMBER(MATCH(Table_POSTInfo[[#This Row],[Line]],Table_POSTInspection[Line],0)),INDEX(Table_POSTInspection[Fixture Wattage '[P']],MATCH(Table_RetroSummary[[#This Row],[Line Item]],Table_POSTInspection[Line],0)),Table_POSTInfo[[#This Row],[Fixture Wattage '[P']]]),\"\"),\"\")","v":""},{"$f":"IFERROR(Table_RetroSummary[[#This Row],[Total '# Lamps '[P']]]+Table_RetroSummary[[#This Row],[Proposed Fixture Wattage]],\"\")","v":""},{"$f":"IFERROR(Table_RetroSummary[[#This Row],[Proposed Fixture Wattage]]/1000*Table_RetroSummary[[#This Row],[OpHrs]]*Table_RetroSummary[[#This Row],[P. Qty]],\"\")","v":""},{"$f":"IFERROR(IF(Table_RetroSummary[[#This Row],[IsActive]],IFERROR(VLOOKUP(RIGHT(Table_RetroSummary[[#This Row],[Proposed Fixture]],LEN(Table_RetroSummary[[#This Row],[Proposed Fixture]])-FIND(\" - \",Table_RetroSummary[[#This Row],[Proposed Fixture]],FIND(\"]\",Table_RetroSummary[[#This Row],[Proposed Fixture]],1))-2),Table_ControlType[],3, FALSE),0),\"\"),\"\")","v":""},{"$f":"IFERROR(IF(Table_RetroSummary[[#This Row],[IsActive]],IFERROR(Table_RetroSummary[[#This Row],[Proposed Fixture Wattage]]/1000*Table_RetroSummary[[#This Row],[OpHrs]]*Table_RetroSummary[[#This Row],[P. Qty]]*Table_RetroSummary[[#This Row],[Existing CSF]]*(-1),0),\"\"),\"\")","v":""},{"$f":"IFERROR(Table_RetroSummary[[#This Row],[Proposed Fixture kWh]]+Table_RetroSummary[[#This Row],[Proposed Fixture (Existing Controls) kWh]],\"\")","v":""},{"$f":"IFERROR(IF(Table_RetroSummary[[#This Row],[IsActive]],IFERROR(Table_RetroSummary[[#This Row],[Proposed Fixture Wattage]]/1000*Table_RetroSummary[[#This Row],[OpHrs]]*Table_RetroSummary[[#This Row],[P. Qty]]*Table_RetroSummary[[#This Row],[Proposed CSF]]*(-1),0),\"\"),\"\")","v":""},{"$f":"IFERROR(Table_RetroSummary[[#This Row],[Proposed Fixture kWh]]+Table_RetroSummary[[#This Row],[Proposed Fixture (Proposed Controls) kWh]],\"\")","v":""},{"$f":"IFERROR(IF(Table_RetroSummary[[#This Row],[IsActive]],IF(ISNUMBER(MATCH(Table_POSTInfo[[#This Row],[Line]],Table_POSTInspection[Line],0)),INDEX(Table_POSTInspection[DLC or ES Certification '[P']],MATCH(Table_RetroSummary[[#This Row],[Line Item]],Table_POSTInspection[Line],0)),Table_POSTInfo[[#This Row],[DLC or ES Certification '[P']]]),\"\"),\"\")","v":""},null,{"$f":"IFERROR(IF(Table_RetroSummary[[#This Row],[IsActive]],\nIF(AND(RIGHT(Table_RetroSummary[[#This Row],[Existing Fixture]],LEN(Table_RetroSummary[[#This Row],[Existing Fixture]])-FIND(\":\",Table_RetroSummary[[#This Row],[Existing Fixture]],1)-1)<>Table_RetroSummary[[#This Row],[Proposed Fixture]],MID(Table_RetroSummary[[#This Row],[Existing Fixture]],FIND(\": \",Table_RetroSummary[[#This Row],[Existing Fixture]],1)+2,FIND(\"]\",Table_RetroSummary[[#This Row],[Existing Fixture]],1))=LEFT(Table_RetroSummary[[#This Row],[Proposed Fixture]],FIND(\"]\",Table_RetroSummary[[#This Row],[Proposed Fixture]],1))),\n  \"Controls Only\",\n  IF(Table_POSTInfo[[#This Row],[DLC or ES Certification '[P']]]<>\"\",\n    IF(ISNUMBER(FIND(\"LED Tube\",Table_RetroSummary[[#This Row],[Proposed Fixture]],1)),\n      \"LED Re-Lamp\",\n      IF(AND(Table_RetroSummary[[#This Row],[Existing Overall kWh]]>Table_RetroSummary[[#This Row],[Proposed Overall kWh (Existing Controls)]],ISNUMBER(FIND(\"LED\",Table_RetroSummary[[#This Row],[Proposed Fixture]],1))),\n        IF(Table_POSTInfo[[#This Row],[Interior/ Exterior]]=\"Exterior\",\n          \"Exterior LED Fixture\",\n          \"Interior LED Fixture\"),\n        \"Ineligible Fixture\")),\n    \"Ineligible Fixture\")),\n\"\"),\"\")","v":""},{"$f":"IFERROR(VLOOKUP(Table_RetroSummary[[#This Row],[Fixture Measure Description]],Table_FixtureRate[],2,FALSE),\"\")","v":""},{"$f":"IFERROR(IF(Table_RetroSummary[[#This Row],[IsActive]],IF(Table_RetroSummary[[#This Row],[Fixture Measure Description]]=\"Ineligible Fixture\",0,ROUND(Table_RetroSummary[[#This Row],[Fixture Rebate (per kW)]]*(Table_RetroSummary[[#This Row],[Existing Fixture Wattage]]*Table_RetroSummary[[#This Row],[E. Qty]]-Table_RetroSummary[[#This Row],[Proposed Fixture Wattage]]*Table_RetroSummary[[#This Row],[P. Qty]])/1000,2)),\"\"),\"\")","v":""},{"$f":"IFERROR(IF(Table_RetroSummary[[#This Row],[Fixture Measure Description]]=\"Ineligible Fixture\",0,ROUND(IF(ProjectCost_Total=0,300000,ProjectCost_Total)*Table_RetroSummary[[#This Row],[Fixture Rebate]]/SUM(Table_RetroSummary[Fixture Rebate],Table_RetroSummary[Controls Rebate]),2)),\"\")","v":""},{"$f":"IFERROR(IF(Table_RetroSummary[[#This Row],[IsActive]],IF(Table_RetroSummary[[#This Row],[Fixture Measure Description]]=\"Ineligible Fixture\",0,Table_RetroSummary[[#This Row],[Existing Overall kWh]]-Table_RetroSummary[[#This Row],[Proposed Overall kWh (Existing Controls)]]),\"\"),\"\")","v":""},{"$f":"IFERROR(IF(Table_RetroSummary[[#This Row],[IsActive]],IF(Table_RetroSummary[[#This Row],[Fixture Measure Description]]=\"Ineligible Fixture\",0,(Table_RetroSummary[[#This Row],[Existing Fixture kWh]]-Table_RetroSummary[[#This Row],[Proposed Fixture kWh]])/Table_RetroSummary[[#This Row],[OpHrs]]*Table_RetroSummary[[#This Row],[CF (Ltg)]]*Table_RetroSummary[[#This Row],[DF (Ltg)]]),\"\"),\"\")","v":""},null,{"$f":"IFERROR(\n  IF(OR(Table_RetroSummary[[#This Row],[Fixture Measure Description]]=\"\",Table_RetroSummary[[#This Row],[Fixture Measure Description]]=\"Ineligible Fixture\"),\n    \"\",\n    IFERROR(VLOOKUP(RIGHT(Table_RetroSummary[[#This Row],[Existing Fixture]],LEN(Table_RetroSummary[[#This Row],[Existing Fixture]])-FIND(\" - \",Table_RetroSummary[[#This Row],[Existing Fixture]],FIND(\"]\",Table_RetroSummary[[#This Row],[Existing Fixture]],1))-2),Table_ControlType[],2,FALSE),\"None\")\n    & \" - \" &\n    IFERROR(VLOOKUP(RIGHT(Table_RetroSummary[[#This Row],[Proposed Fixture]],LEN(Table_RetroSummary[[#This Row],[Proposed Fixture]])-FIND(\" - \",Table_RetroSummary[[#This Row],[Proposed Fixture]],FIND(\"]\",Table_RetroSummary[[#This Row],[Proposed Fixture]],1))-2),Table_ControlType[],2, FALSE),None)),\n\"\")","v":""},{"$f":"IFERROR(VLOOKUP(Table_RetroSummary[[#This Row],[Controls Measure Description]],Table_ControlRate[],2,FALSE),\"\")","v":""},{"$f":"IFERROR(IF(Table_RetroSummary[[#This Row],[IsActive]],IF(Table_RetroSummary[[#This Row],[Controls Measure Description]]=\"\",0,ROUND(Table_RetroSummary[[#This Row],[Controls Rebate (per Fixt Watt)]]*Table_RetroSummary[[#This Row],[Proposed Fixture Wattage]]*Table_RetroSummary[[#This Row],[P. Qty]],2)),\"\"),\"\")","v":""},{"$f":"IFERROR(IF(Table_RetroSummary[[#This Row],[Fixture Measure Description]]=\"Ineligible Fixture\",0,ROUND(IF(ProjectCost_Total=0,300000,ProjectCost_Total)*Table_RetroSummary[[#This Row],[Controls Rebate]]/SUM(Table_RetroSummary[Fixture Rebate],Table_RetroSummary[Controls Rebate]),2)),\"\")","v":""},{"$f":"IFERROR(IF(Table_RetroSummary[[#This Row],[IsActive]],IF(Table_RetroSummary[[#This Row],[Controls Measure Description]]=\"\",0,(Table_RetroSummary[[#This Row],[Proposed Fixture (Existing Controls) kWh]]-Table_RetroSummary[[#This Row],[Proposed Fixture (Proposed Controls) kWh]])),\"\"),\"\")","v":""},{"$f":"IFERROR(IF(Table_RetroSummary[[#This Row],[IsActive]],IF(Table_RetroSummary[[#This Row],[Controls Measure Description]]=\"\",0,(Table_RetroSummary[[#This Row],[Proposed Fixture (Existing Controls) kWh]]-Table_RetroSummary[[#This Row],[Proposed Fixture (Proposed Controls) kWh]])/Table_RetroSummary[[#This Row],[OpHrs]]*Table_RetroSummary[[#This Row],[CF (Ltg)]]*Table_RetroSummary[[#This Row],[DF (Ltg)]]),\"\"),\"\")","v":""},null,{"$f":"IFERROR(IF(NOT(ISNUMBER(Table_RetroSummary[[#This Row],[Fixture Rebate]])),\"\",IF(MIN(IF(SUM(Table_RetroSummary[Fixture Cost],Table_RetroSummary[Controls Cost])<0,0,SUM(Table_RetroSummary[Fixture Cost],Table_RetroSummary[Controls Cost])),SUM(Table_RetroSummary[Fixture Rebate],Table_RetroSummary[Controls Rebate]))>300000,300000/MIN(IF(SUM(Table_RetroSummary[Fixture Cost],Table_RetroSummary[Controls Cost])<0,0,SUM(Table_RetroSummary[Fixture Cost],Table_RetroSummary[Controls Cost])),SUM(Table_RetroSummary[Fixture Rebate],Table_RetroSummary[Controls Rebate]))*MIN(IF(SUM(Table_RetroSummary[Fixture Cost],Table_RetroSummary[Controls Cost])<0,0,SUM(Table_RetroSummary[Fixture Cost],Table_RetroSummary[Controls Cost])),Table_RetroSummary[[#This Row],[Fixture Rebate]]+IF(Table_RetroSummary[[#This Row],[Controls Rebate]]=\"\",0,Table_RetroSummary[[#This Row],[Controls Rebate]])),MIN(IF(SUM(Table_RetroSummary[Fixture Cost],Table_RetroSummary[Controls Cost])<0,0,SUM(Table_RetroSummary[Fixture Cost],Table_RetroSummary[Controls Cost])),Table_RetroSummary[[#This Row],[Fixture Rebate]]+IF(Table_RetroSummary[[#This Row],[Controls Rebate]]=\"\",0,Table_RetroSummary[[#This Row],[Controls Rebate]])))),\"\")","v":""},{"$f":"IFERROR(IF(Table_RetroSummary[[#This Row],[Fixture Cost]]=\"\",\"\",Table_RetroSummary[[#This Row],[Fixture Cost]]+IF(Table_RetroSummary[[#This Row],[Controls Cost]]=\"\",0,Table_RetroSummary[[#This Row],[Controls Cost]])),\"\")","v":""},{"$f":"IFERROR(IF(Table_RetroSummary[[#This Row],[IsActive]],IF(Table_POSTInfo[[#This Row],[Interior/ Exterior]]=\"Interior\",IFERROR((Table_RetroSummary[[#This Row],[Annual Fixture Savings (kWh)]]+Table_RetroSummary[[#This Row],[Annual Control Savings (kWh)]])*(Table_RetroSummary[[#This Row],[EIF]]-1),0),0),\"\"),\"\")","v":""},{"$f":"IFERROR(IF(Table_RetroSummary[[#This Row],[IsActive]],IF(Table_POSTInfo[[#This Row],[Interior/ Exterior]]=\"Interior\",IFERROR((Table_RetroSummary[[#This Row],[Fixture kW Reduction]]+Table_RetroSummary[[#This Row],[Control kW Reduction]]/(Table_RetroSummary[[#This Row],[CF (Ltg)]]*Table_RetroSummary[[#This Row],[DF (Ltg)]]))*(Table_RetroSummary[[#This Row],[DIF]]-1)*Table_RetroSummary[[#This Row],[CF (HVAC)]]*Table_RetroSummary[[#This Row],[DF (HVAC)]],0),0),\"\"),\"\")","v":""},{"$f":"IFERROR(IF(Table_RetroSummary[[#This Row],[IsActive]],IF(NOT(ISNUMBER(Table_RetroSummary[[#This Row],[Fixture Rebate]])),\"\",ROUND(Table_RetroSummary[[#This Row],[Annual Fixture Savings (kWh)]]+Table_RetroSummary[[#This Row],[Annual Control Savings (kWh)]],0)),\"\"),\"\")","v":""},{"$f":"IFERROR(IF(Table_RetroSummary[[#This Row],[IsActive]],IF(NOT(ISNUMBER(Table_RetroSummary[[#This Row],[Fixture Rebate]])),\"\",ROUND(Table_RetroSummary[[#This Row],[Fixture kW Reduction]]+Table_RetroSummary[[#This Row],[Control kW Reduction]],3)),\"\"),\"\")","v":""},{"$f":"IFERROR(IF(Table_RetroSummary[[#This Row],[IsActive]],IF(NOT(ISNUMBER(Table_RetroSummary[[#This Row],[Fixture Rebate]])),\"\",ROUND(Table_RetroSummary[[#This Row],[Fixture Energy Savings (kWh)]]+Table_RetroSummary[[#This Row],[Induced HVAC Energy Savings (kWh)]],0)),\"\"),\"\")","v":""},{"$f":"IFERROR(IF(Table_RetroSummary[[#This Row],[IsActive]],IF(NOT(ISNUMBER(Table_RetroSummary[[#This Row],[Fixture Rebate]])),\"\",ROUND(Table_RetroSummary[[#This Row],[Fixture Demand Savings (kW)]]+Table_RetroSummary[[#This Row],[Induced HVAC Demand Savings (kW)]],3)),\"\"),\"\")","v":""}]
[{"$f":"IFERROR(Table_POSTInfo[[#This Row],[Line]],\"\")","v":37},{"$f":"IFERROR(Table_POSTInfo[[#This Row],[IsActive]],\"\")","v":false},{"$f":"IFERROR(IF(Table_RetroSummary[[#This Row],[IsActive]],CONCATENATE(Table_RetroSummary[[#This Row],[Existing Fixture]],\" | \",Table_RetroSummary[[#This Row],[Proposed Fixture]]),\"\"),\"\")","v":""},{"$f":"IFERROR(IF(Table_RetroSummary[[#This Row],[IsActive]],VLOOKUP(IF(ISNUMBER(MATCH(Table_POSTInfo[[#This Row],[Line]],Table_POSTInspection[Line],0)),INDEX(Table_POSTInspection[Schedule],MATCH(Table_RetroSummary[[#This Row],[Line Item]],Table_POSTInspection[Line],0)),Table_POSTInfo[[#This Row],[Schedule]]),'Customer Information'!$S$27:$T$34,2,FALSE),\"\"),\"\")","v":""},{"$f":"IFERROR(IF(Table_RetroSummary[[#This Row],[IsActive]],IF(IF(ISNUMBER(MATCH(Table_RetroSummary[[#This Row],[Line Item]],Table_POSTInspection[Line],0)),INDEX(Table_POSTInspection[Interior/ Exterior],MATCH(Table_RetroSummary[[#This Row],[Line Item]],Table_POSTInfo[[#This Row],[Line]],0)),Table_POSTInfo[[#This Row],[Interior/ Exterior]])=\"Interior\",'Customer Information'!$S$25,0),\"\"),\"\")","v":""},{"$f":"IFERROR(IF(Table_RetroSummary[[#This Row],[IsActive]],IF(IF(ISNUMBER(MATCH(Table_RetroSummary[[#This Row],[Line Item]],Table_POSTInspection[Line],0)),INDEX(Table_POSTInspection[Interior/ Exterior],MATCH(Table_RetroSummary[[#This Row],[Line Item]],Table_POSTInfo[[#This Row],[Line]],0)),Table_POSTInfo[[#This Row],[Interior/ Exterior]])=\"Interior\",'Customer Information'!$T$25,0),\"\"),\"\")","v":""},{"$f":"IFERROR(IF(Table_RetroSummary[[#This Row],[IsActive]],IF(IF(ISNUMBER(MATCH(Table_RetroSummary[[#This Row],[Line Item]],Table_POSTInspection[Line],0)),INDEX(Table_POSTInspection[Interior/ Exterior],MATCH(Table_RetroSummary[[#This Row],[Line Item]],Table_POSTInfo[[#This Row],[Line]],0)),Table_POSTInfo[[#This Row],[Interior/ Exterior]])=\"Interior\",'Customer Information'!$U$25,0),\"\"),\"\")","v":""},{"$f":"IFERROR(IF(Table_RetroSummary[[#This Row],[IsActive]],IF(IF(ISNUMBER(MATCH(Table_RetroSummary[[#This Row],[Line Item]],Table_POSTInspection[Line],0)),INDEX(Table_POSTInspection[Interior/ Exterior],MATCH(Table_RetroSummary[[#This Row],[Line Item]],Table_POSTInfo[[#This Row],[Line]],0)),Table_POSTInfo[[#This Row],[Interior/ Exterior]])=\"Interior\",'Customer Information'!$V$25,0),\"\"),\"\")","v":""},{"$f":"IFERROR(IF(Table_RetroSummary[[#This Row],[IsActive]],IF(IF(ISNUMBER(MATCH(Table_RetroSummary[[#This Row],[Line Item]],Table_POSTInspection[Line],0)),INDEX(Table_POSTInspection[Interior/ Exterior],MATCH(Table_RetroSummary[[#This Row],[Line Item]],Table_POSTInfo[[#This Row],[Line]],0)),Table_POSTInfo[[#This Row],[Interior/ Exterior]])=\"Interior\",'Customer Information'!$W$25,0),\"\"),\"\")","v":""},{"$f":"IFERROR(IF(Table_RetroSummary[[#This Row],[IsActive]],IF(IF(ISNUMBER(MATCH(Table_RetroSummary[[#This Row],[Line Item]],Table_POSTInspection[Line],0)),INDEX(Table_POSTInspection[Interior/ Exterior],MATCH(Table_RetroSummary[[#This Row],[Line Item]],Table_POSTInfo[[#This Row],[Line]],0)),Table_POSTInfo[[#This Row],[Interior/ Exterior]])=\"Interior\",'Customer Information'!$X$25,0),\"\"),\"\")","v":""},{"$f":"IFERROR(IF(Table_RetroSummary[[#This Row],[IsActive]],\nCONCATENATE(\nIF(ISNUMBER(MATCH(Table_POSTInfo[[#This Row],[Line]],Table_POSTInspection[Line],0)),INDEX(Table_POSTInspection[Interior/ Exterior],MATCH(Table_RetroSummary[[#This Row],[Line Item]],Table_POSTInspection[Line],0)),Table_POSTInfo[[#This Row],[Interior/ Exterior]]),\n\" - \",\nIF(ISNUMBER(MATCH(Table_POSTInfo[[#This Row],[Line]],Table_POSTInspection[Line],0)),INDEX(Table_POSTInspection[Space Description],MATCH(Table_RetroSummary[[#This Row],[Line Item]],Table_POSTInspection[Line],0)),Table_POSTInfo[[#This Row],[Space Description]])),\n \"\"),\"\")","v":""},{"$f":"IFERROR(IF(Table_RetroSummary[[#This Row],[IsActive]]=\"\",\"\",Table_POSTInfo[[#This Row],[Fixture Description '[E']]]),\"\")","v":""},{"$f":"IFERROR(IF(Table_RetroSummary[[#This Row],[IsActive]]=\"\",\"\",Table_POSTInfo[[#This Row],['# Lamps/ Fixture '[E']]]),\"\")","v":""},{"$f":"IFERROR(IF(Table_RetroSummary[[#This Row],[IsActive]]=\"\",\"\",Table_POSTInfo[[#This Row],[Fixture/ Lamp Wattage '[E']]]),\"\")","v":""},{"$f":"IFERROR(IF(Table_RetroSummary[[#This Row],[IsActive]]=\"\",\"\",Table_POSTInfo[[#This Row],[Fixture Qty '[E']]]),\"\")","v":""},{"$f":"IFERROR(IF(Table_RetroSummary[[#This Row],[IsActive]],Table_RetroSummary[[#This Row],[Fixture/ Lamp Wattage '[E']]]*Table_RetroSummary[[#This Row],[E. Qty]],\"\"),\"\")","v":""},{"$f":"IFERROR(IF(Table_RetroSummary[[#This Row],[IsActive]]=\"\",\"\",Table_POSTInfo[[#This Row],[Fixture Wattage '[E']]]),\"\")","v":""},{"$f":"IFERROR(IF(Table_RetroSummary[[#This Row],[IsActive]],IFERROR(Table_RetroSummary[[#This Row],[Existing Fixture Wattage]]/1000*Table_RetroSummary[[#This Row],[OpHrs]]*Table_RetroSummary[[#This Row],[E. Qty]],0),\"\"),\"\")","v":""},{"$f":"IFERROR(IF(Table_RetroSummary[[#This Row],[IsActive]],IFERROR(VLOOKUP(RIGHT(Table_RetroSummary[[#This Row],[Existing Fixture]],LEN(Table_RetroSummary[[#This Row],[Existing Fixture]])-FIND(\" - \",Table_RetroSummary[[#This Row],[Existing Fixture]],FIND(\"]\",Table_RetroSummary[[#This Row],[Existing Fixture]],1))-2),Table_ControlType[],3,FALSE),0),\"\"),\"\")","v":""},{"$f":"IFERROR(IF(Table_RetroSummary[[#This Row],[IsActive]],IFERROR(Table_RetroSummary[[#This Row],[Existing Fixture Wattage]]/1000*Table_RetroSummary[[#This Row],[OpHrs]]*Table_RetroSummary[[#This Row],[E. Qty]]*Table_RetroSummary[[#This Row],[Existing CSF]]*(-1),0),\"\"),\"\")","v":""},{"$f":"IFERROR(Table_RetroSummary[[#This Row],[Existing Fixture kWh]]+Table_RetroSummary[[#This Row],[Existing Fixture (Existing Controls) kWh]],\"\")","v":""},{"$f":"IFERROR(IF(Table_RetroSummary[[#This Row],[IsActive]],IF(ISNUMBER(MATCH(Table_POSTInfo[[#This Row],[Line]],Table_POSTInspection[Line],0)),INDEX(Table_POSTInspection[Fixture Description '[P']],MATCH(Table_RetroSummary[[#This Row],[Line Item]],Table_POSTInspection[Line],0)),Table_POSTInfo[[#This Row],[Fixture Description '[P']]]),\"\"),\"\")","v":""},{"$f":"IFERROR(IF(Table_RetroSummary[[#This Row],[IsActive]],IF(ISNUMBER(MATCH(Table_POSTInfo[[#This Row],[Line]],Table_POSTInspection[Line],0)),INDEX(Table_POSTInspection['# Lamps/ Fixture '[P']],MATCH(Table_RetroSummary[[#This Row],[Line Item]],Table_POSTInspection[Line],0)),Table_POSTInfo[[#This Row],['# Lamps/ Fixture '[P']]]),\"\"),\"\")","v":""},{"$f":"IFERROR(IF(Table_RetroSummary[[#This Row],[IsActive]],IF(ISNUMBER(MATCH(Table_POSTInfo[[#This Row],[Line]],Table_POSTInspection[Line],0)),INDEX(Table_POSTInspection[Fixture/ Lamp Wattage '[P']],MATCH(Table_RetroSummary[[#This Row],[Line Item]],Table_POSTInspection[Line],0)),Table_POSTInfo[[#This Row],[Fixture/ Lamp Wattage '[P']]]),\"\"),\"\")","v":""},{"$f":"IFERROR(IF(Table_RetroSummary[[#This Row],[IsActive]],IF(ISNUMBER(MATCH(Table_POSTInfo[[#This Row],[Line]],Table_POSTInspection[Line],0)),INDEX(Table_POSTInspection[Fixture Qty '[P']],MATCH(Table_RetroSummary[[#This Row],[Line Item]],Table_POSTInspection[Line],0)),Table_POSTInfo[[#This Row],[Fixture Qty '[P']]]),\"\"),\"\")","v":""},{"$f":"IFERROR(IF(Table_RetroSummary[[#This Row],[IsActive]],Table_RetroSummary[[#This Row],[Fixture/ Lamp Wattage '[P']]]*Table_RetroSummary[[#This Row],[P. Qty]],\"\"),\"\")","v":""},{"$f":"IFERROR(IF(Table_RetroSummary[[#This Row],[IsActive]],IF(ISNUMBER(MATCH(Table_POSTInfo[[#This Row],[Line]],Table_POSTInspection[Line],0)),INDEX(Table_POSTInspection[Fixture Wattage '[P']],MATCH(Table_RetroSummary[[#This Row],[Line Item]],Table_POSTInspection[Line],0)),Table_POSTInfo[[#This Row],[Fixture Wattage '[P']]]),\"\"),\"\")","v":""},{"$f":"IFERROR(Table_RetroSummary[[#This Row],[Total '# Lamps '[P']]]+Table_RetroSummary[[#This Row],[Proposed Fixture Wattage]],\"\")","v":""},{"$f":"IFERROR(Table_RetroSummary[[#This Row],[Proposed Fixture Wattage]]/1000*Table_RetroSummary[[#This Row],[OpHrs]]*Table_RetroSummary[[#This Row],[P. Qty]],\"\")","v":""},{"$f":"IFERROR(IF(Table_RetroSummary[[#This Row],[IsActive]],IFERROR(VLOOKUP(RIGHT(Table_RetroSummary[[#This Row],[Proposed Fixture]],LEN(Table_RetroSummary[[#This Row],[Proposed Fixture]])-FIND(\" - \",Table_RetroSummary[[#This Row],[Proposed Fixture]],FIND(\"]\",Table_RetroSummary[[#This Row],[Proposed Fixture]],1))-2),Table_ControlType[],3, FALSE),0),\"\"),\"\")","v":""},{"$f":"IFERROR(IF(Table_RetroSummary[[#This Row],[IsActive]],IFERROR(Table_RetroSummary[[#This Row],[Proposed Fixture Wattage]]/1000*Table_RetroSummary[[#This Row],[OpHrs]]*Table_RetroSummary[[#This Row],[P. Qty]]*Table_RetroSummary[[#This Row],[Existing CSF]]*(-1),0),\"\"),\"\")","v":""},{"$f":"IFERROR(Table_RetroSummary[[#This Row],[Proposed Fixture kWh]]+Table_RetroSummary[[#This Row],[Proposed Fixture (Existing Controls) kWh]],\"\")","v":""},{"$f":"IFERROR(IF(Table_RetroSummary[[#This Row],[IsActive]],IFERROR(Table_RetroSummary[[#This Row],[Proposed Fixture Wattage]]/1000*Table_RetroSummary[[#This Row],[OpHrs]]*Table_RetroSummary[[#This Row],[P. Qty]]*Table_RetroSummary[[#This Row],[Proposed CSF]]*(-1),0),\"\"),\"\")","v":""},{"$f":"IFERROR(Table_RetroSummary[[#This Row],[Proposed Fixture kWh]]+Table_RetroSummary[[#This Row],[Proposed Fixture (Proposed Controls) kWh]],\"\")","v":""},{"$f":"IFERROR(IF(Table_RetroSummary[[#This Row],[IsActive]],IF(ISNUMBER(MATCH(Table_POSTInfo[[#This Row],[Line]],Table_POSTInspection[Line],0)),INDEX(Table_POSTInspection[DLC or ES Certification '[P']],MATCH(Table_RetroSummary[[#This Row],[Line Item]],Table_POSTInspection[Line],0)),Table_POSTInfo[[#This Row],[DLC or ES Certification '[P']]]),\"\"),\"\")","v":""},null,{"$f":"IFERROR(IF(Table_RetroSummary[[#This Row],[IsActive]],\nIF(AND(RIGHT(Table_RetroSummary[[#This Row],[Existing Fixture]],LEN(Table_RetroSummary[[#This Row],[Existing Fixture]])-FIND(\":\",Table_RetroSummary[[#This Row],[Existing Fixture]],1)-1)<>Table_RetroSummary[[#This Row],[Proposed Fixture]],MID(Table_RetroSummary[[#This Row],[Existing Fixture]],FIND(\": \",Table_RetroSummary[[#This Row],[Existing Fixture]],1)+2,FIND(\"]\",Table_RetroSummary[[#This Row],[Existing Fixture]],1))=LEFT(Table_RetroSummary[[#This Row],[Proposed Fixture]],FIND(\"]\",Table_RetroSummary[[#This Row],[Proposed Fixture]],1))),\n  \"Controls Only\",\n  IF(Table_POSTInfo[[#This Row],[DLC or ES Certification '[P']]]<>\"\",\n    IF(ISNUMBER(FIND(\"LED Tube\",Table_RetroSummary[[#This Row],[Proposed Fixture]],1)),\n      \"LED Re-Lamp\",\n      IF(AND(Table_RetroSummary[[#This Row],[Existing Overall kWh]]>Table_RetroSummary[[#This Row],[Proposed Overall kWh (Existing Controls)]],ISNUMBER(FIND(\"LED\",Table_RetroSummary[[#This Row],[Proposed Fixture]],1))),\n        IF(Table_POSTInfo[[#This Row],[Interior/ Exterior]]=\"Exterior\",\n          \"Exterior LED Fixture\",\n          \"Interior LED Fixture\"),\n        \"Ineligible Fixture\")),\n    \"Ineligible Fixture\")),\n\"\"),\"\")","v":""},{"$f":"IFERROR(VLOOKUP(Table_RetroSummary[[#This Row],[Fixture Measure Description]],Table_FixtureRate[],2,FALSE),\"\")","v":""},{"$f":"IFERROR(IF(Table_RetroSummary[[#This Row],[IsActive]],IF(Table_RetroSummary[[#This Row],[Fixture Measure Description]]=\"Ineligible Fixture\",0,ROUND(Table_RetroSummary[[#This Row],[Fixture Rebate (per kW)]]*(Table_RetroSummary[[#This Row],[Existing Fixture Wattage]]*Table_RetroSummary[[#This Row],[E. Qty]]-Table_RetroSummary[[#This Row],[Proposed Fixture Wattage]]*Table_RetroSummary[[#This Row],[P. Qty]])/1000,2)),\"\"),\"\")","v":""},{"$f":"IFERROR(IF(Table_RetroSummary[[#This Row],[Fixture Measure Description]]=\"Ineligible Fixture\",0,ROUND(IF(ProjectCost_Total=0,300000,ProjectCost_Total)*Table_RetroSummary[[#This Row],[Fixture Rebate]]/SUM(Table_RetroSummary[Fixture Rebate],Table_RetroSummary[Controls Rebate]),2)),\"\")","v":""},{"$f":"IFERROR(IF(Table_RetroSummary[[#This Row],[IsActive]],IF(Table_RetroSummary[[#This Row],[Fixture Measure Description]]=\"Ineligible Fixture\",0,Table_RetroSummary[[#This Row],[Existing Overall kWh]]-Table_RetroSummary[[#This Row],[Proposed Overall kWh (Existing Controls)]]),\"\"),\"\")","v":""},{"$f":"IFERROR(IF(Table_RetroSummary[[#This Row],[IsActive]],IF(Table_RetroSummary[[#This Row],[Fixture Measure Description]]=\"Ineligible Fixture\",0,(Table_RetroSummary[[#This Row],[Existing Fixture kWh]]-Table_RetroSummary[[#This Row],[Proposed Fixture kWh]])/Table_RetroSummary[[#This Row],[OpHrs]]*Table_RetroSummary[[#This Row],[CF (Ltg)]]*Table_RetroSummary[[#This Row],[DF (Ltg)]]),\"\"),\"\")","v":""},null,{"$f":"IFERROR(\n  IF(OR(Table_RetroSummary[[#This Row],[Fixture Measure Description]]=\"\",Table_RetroSummary[[#This Row],[Fixture Measure Description]]=\"Ineligible Fixture\"),\n    \"\",\n    IFERROR(VLOOKUP(RIGHT(Table_RetroSummary[[#This Row],[Existing Fixture]],LEN(Table_RetroSummary[[#This Row],[Existing Fixture]])-FIND(\" - \",Table_RetroSummary[[#This Row],[Existing Fixture]],FIND(\"]\",Table_RetroSummary[[#This Row],[Existing Fixture]],1))-2),Table_ControlType[],2,FALSE),\"None\")\n    & \" - \" &\n    IFERROR(VLOOKUP(RIGHT(Table_RetroSummary[[#This Row],[Proposed Fixture]],LEN(Table_RetroSummary[[#This Row],[Proposed Fixture]])-FIND(\" - \",Table_RetroSummary[[#This Row],[Proposed Fixture]],FIND(\"]\",Table_RetroSummary[[#This Row],[Proposed Fixture]],1))-2),Table_ControlType[],2, FALSE),None)),\n\"\")","v":""},{"$f":"IFERROR(VLOOKUP(Table_RetroSummary[[#This Row],[Controls Measure Description]],Table_ControlRate[],2,FALSE),\"\")","v":""},{"$f":"IFERROR(IF(Table_RetroSummary[[#This Row],[IsActive]],IF(Table_RetroSummary[[#This Row],[Controls Measure Description]]=\"\",0,ROUND(Table_RetroSummary[[#This Row],[Controls Rebate (per Fixt Watt)]]*Table_RetroSummary[[#This Row],[Proposed Fixture Wattage]]*Table_RetroSummary[[#This Row],[P. Qty]],2)),\"\"),\"\")","v":""},{"$f":"IFERROR(IF(Table_RetroSummary[[#This Row],[Fixture Measure Description]]=\"Ineligible Fixture\",0,ROUND(IF(ProjectCost_Total=0,300000,ProjectCost_Total)*Table_RetroSummary[[#This Row],[Controls Rebate]]/SUM(Table_RetroSummary[Fixture Rebate],Table_RetroSummary[Controls Rebate]),2)),\"\")","v":""},{"$f":"IFERROR(IF(Table_RetroSummary[[#This Row],[IsActive]],IF(Table_RetroSummary[[#This Row],[Controls Measure Description]]=\"\",0,(Table_RetroSummary[[#This Row],[Proposed Fixture (Existing Controls) kWh]]-Table_RetroSummary[[#This Row],[Proposed Fixture (Proposed Controls) kWh]])),\"\"),\"\")","v":""},{"$f":"IFERROR(IF(Table_RetroSummary[[#This Row],[IsActive]],IF(Table_RetroSummary[[#This Row],[Controls Measure Description]]=\"\",0,(Table_RetroSummary[[#This Row],[Proposed Fixture (Existing Controls) kWh]]-Table_RetroSummary[[#This Row],[Proposed Fixture (Proposed Controls) kWh]])/Table_RetroSummary[[#This Row],[OpHrs]]*Table_RetroSummary[[#This Row],[CF (Ltg)]]*Table_RetroSummary[[#This Row],[DF (Ltg)]]),\"\"),\"\")","v":""},null,{"$f":"IFERROR(IF(NOT(ISNUMBER(Table_RetroSummary[[#This Row],[Fixture Rebate]])),\"\",IF(MIN(IF(SUM(Table_RetroSummary[Fixture Cost],Table_RetroSummary[Controls Cost])<0,0,SUM(Table_RetroSummary[Fixture Cost],Table_RetroSummary[Controls Cost])),SUM(Table_RetroSummary[Fixture Rebate],Table_RetroSummary[Controls Rebate]))>300000,300000/MIN(IF(SUM(Table_RetroSummary[Fixture Cost],Table_RetroSummary[Controls Cost])<0,0,SUM(Table_RetroSummary[Fixture Cost],Table_RetroSummary[Controls Cost])),SUM(Table_RetroSummary[Fixture Rebate],Table_RetroSummary[Controls Rebate]))*MIN(IF(SUM(Table_RetroSummary[Fixture Cost],Table_RetroSummary[Controls Cost])<0,0,SUM(Table_RetroSummary[Fixture Cost],Table_RetroSummary[Controls Cost])),Table_RetroSummary[[#This Row],[Fixture Rebate]]+IF(Table_RetroSummary[[#This Row],[Controls Rebate]]=\"\",0,Table_RetroSummary[[#This Row],[Controls Rebate]])),MIN(IF(SUM(Table_RetroSummary[Fixture Cost],Table_RetroSummary[Controls Cost])<0,0,SUM(Table_RetroSummary[Fixture Cost],Table_RetroSummary[Controls Cost])),Table_RetroSummary[[#This Row],[Fixture Rebate]]+IF(Table_RetroSummary[[#This Row],[Controls Rebate]]=\"\",0,Table_RetroSummary[[#This Row],[Controls Rebate]])))),\"\")","v":""},{"$f":"IFERROR(IF(Table_RetroSummary[[#This Row],[Fixture Cost]]=\"\",\"\",Table_RetroSummary[[#This Row],[Fixture Cost]]+IF(Table_RetroSummary[[#This Row],[Controls Cost]]=\"\",0,Table_RetroSummary[[#This Row],[Controls Cost]])),\"\")","v":""},{"$f":"IFERROR(IF(Table_RetroSummary[[#This Row],[IsActive]],IF(Table_POSTInfo[[#This Row],[Interior/ Exterior]]=\"Interior\",IFERROR((Table_RetroSummary[[#This Row],[Annual Fixture Savings (kWh)]]+Table_RetroSummary[[#This Row],[Annual Control Savings (kWh)]])*(Table_RetroSummary[[#This Row],[EIF]]-1),0),0),\"\"),\"\")","v":""},{"$f":"IFERROR(IF(Table_RetroSummary[[#This Row],[IsActive]],IF(Table_POSTInfo[[#This Row],[Interior/ Exterior]]=\"Interior\",IFERROR((Table_RetroSummary[[#This Row],[Fixture kW Reduction]]+Table_RetroSummary[[#This Row],[Control kW Reduction]]/(Table_RetroSummary[[#This Row],[CF (Ltg)]]*Table_RetroSummary[[#This Row],[DF (Ltg)]]))*(Table_RetroSummary[[#This Row],[DIF]]-1)*Table_RetroSummary[[#This Row],[CF (HVAC)]]*Table_RetroSummary[[#This Row],[DF (HVAC)]],0),0),\"\"),\"\")","v":""},{"$f":"IFERROR(IF(Table_RetroSummary[[#This Row],[IsActive]],IF(NOT(ISNUMBER(Table_RetroSummary[[#This Row],[Fixture Rebate]])),\"\",ROUND(Table_RetroSummary[[#This Row],[Annual Fixture Savings (kWh)]]+Table_RetroSummary[[#This Row],[Annual Control Savings (kWh)]],0)),\"\"),\"\")","v":""},{"$f":"IFERROR(IF(Table_RetroSummary[[#This Row],[IsActive]],IF(NOT(ISNUMBER(Table_RetroSummary[[#This Row],[Fixture Rebate]])),\"\",ROUND(Table_RetroSummary[[#This Row],[Fixture kW Reduction]]+Table_RetroSummary[[#This Row],[Control kW Reduction]],3)),\"\"),\"\")","v":""},{"$f":"IFERROR(IF(Table_RetroSummary[[#This Row],[IsActive]],IF(NOT(ISNUMBER(Table_RetroSummary[[#This Row],[Fixture Rebate]])),\"\",ROUND(Table_RetroSummary[[#This Row],[Fixture Energy Savings (kWh)]]+Table_RetroSummary[[#This Row],[Induced HVAC Energy Savings (kWh)]],0)),\"\"),\"\")","v":""},{"$f":"IFERROR(IF(Table_RetroSummary[[#This Row],[IsActive]],IF(NOT(ISNUMBER(Table_RetroSummary[[#This Row],[Fixture Rebate]])),\"\",ROUND(Table_RetroSummary[[#This Row],[Fixture Demand Savings (kW)]]+Table_RetroSummary[[#This Row],[Induced HVAC Demand Savings (kW)]],3)),\"\"),\"\")","v":""}]
[{"$f":"IFERROR(Table_POSTInfo[[#This Row],[Line]],\"\")","v":38},{"$f":"IFERROR(Table_POSTInfo[[#This Row],[IsActive]],\"\")","v":false},{"$f":"IFERROR(IF(Table_RetroSummary[[#This Row],[IsActive]],CONCATENATE(Table_RetroSummary[[#This Row],[Existing Fixture]],\" | \",Table_RetroSummary[[#This Row],[Proposed Fixture]]),\"\"),\"\")","v":""},{"$f":"IFERROR(IF(Table_RetroSummary[[#This Row],[IsActive]],VLOOKUP(IF(ISNUMBER(MATCH(Table_POSTInfo[[#This Row],[Line]],Table_POSTInspection[Line],0)),INDEX(Table_POSTInspection[Schedule],MATCH(Table_RetroSummary[[#This Row],[Line Item]],Table_POSTInspection[Line],0)),Table_POSTInfo[[#This Row],[Schedule]]),'Customer Information'!$S$27:$T$34,2,FALSE),\"\"),\"\")","v":""},{"$f":"IFERROR(IF(Table_RetroSummary[[#This Row],[IsActive]],IF(IF(ISNUMBER(MATCH(Table_RetroSummary[[#This Row],[Line Item]],Table_POSTInspection[Line],0)),INDEX(Table_POSTInspection[Interior/ Exterior],MATCH(Table_RetroSummary[[#This Row],[Line Item]],Table_POSTInfo[[#This Row],[Line]],0)),Table_POSTInfo[[#This Row],[Interior/ Exterior]])=\"Interior\",'Customer Information'!$S$25,0),\"\"),\"\")","v":""},{"$f":"IFERROR(IF(Table_RetroSummary[[#This Row],[IsActive]],IF(IF(ISNUMBER(MATCH(Table_RetroSummary[[#This Row],[Line Item]],Table_POSTInspection[Line],0)),INDEX(Table_POSTInspection[Interior/ Exterior],MATCH(Table_RetroSummary[[#This Row],[Line Item]],Table_POSTInfo[[#This Row],[Line]],0)),Table_POSTInfo[[#This Row],[Interior/ Exterior]])=\"Interior\",'Customer Information'!$T$25,0),\"\"),\"\")","v":""},{"$f":"IFERROR(IF(Table_RetroSummary[[#This Row],[IsActive]],IF(IF(ISNUMBER(MATCH(Table_RetroSummary[[#This Row],[Line Item]],Table_POSTInspection[Line],0)),INDEX(Table_POSTInspection[Interior/ Exterior],MATCH(Table_RetroSummary[[#This Row],[Line Item]],Table_POSTInfo[[#This Row],[Line]],0)),Table_POSTInfo[[#This Row],[Interior/ Exterior]])=\"Interior\",'Customer Information'!$U$25,0),\"\"),\"\")","v":""},{"$f":"IFERROR(IF(Table_RetroSummary[[#This Row],[IsActive]],IF(IF(ISNUMBER(MATCH(Table_RetroSummary[[#This Row],[Line Item]],Table_POSTInspection[Line],0)),INDEX(Table_POSTInspection[Interior/ Exterior],MATCH(Table_RetroSummary[[#This Row],[Line Item]],Table_POSTInfo[[#This Row],[Line]],0)),Table_POSTInfo[[#This Row],[Interior/ Exterior]])=\"Interior\",'Customer Information'!$V$25,0),\"\"),\"\")","v":""},{"$f":"IFERROR(IF(Table_RetroSummary[[#This Row],[IsActive]],IF(IF(ISNUMBER(MATCH(Table_RetroSummary[[#This Row],[Line Item]],Table_POSTInspection[Line],0)),INDEX(Table_POSTInspection[Interior/ Exterior],MATCH(Table_RetroSummary[[#This Row],[Line Item]],Table_POSTInfo[[#This Row],[Line]],0)),Table_POSTInfo[[#This Row],[Interior/ Exterior]])=\"Interior\",'Customer Information'!$W$25,0),\"\"),\"\")","v":""},{"$f":"IFERROR(IF(Table_RetroSummary[[#This Row],[IsActive]],IF(IF(ISNUMBER(MATCH(Table_RetroSummary[[#This Row],[Line Item]],Table_POSTInspection[Line],0)),INDEX(Table_POSTInspection[Interior/ Exterior],MATCH(Table_RetroSummary[[#This Row],[Line Item]],Table_POSTInfo[[#This Row],[Line]],0)),Table_POSTInfo[[#This Row],[Interior/ Exterior]])=\"Interior\",'Customer Information'!$X$25,0),\"\"),\"\")","v":""},{"$f":"IFERROR(IF(Table_RetroSummary[[#This Row],[IsActive]],\nCONCATENATE(\nIF(ISNUMBER(MATCH(Table_POSTInfo[[#This Row],[Line]],Table_POSTInspection[Line],0)),INDEX(Table_POSTInspection[Interior/ Exterior],MATCH(Table_RetroSummary[[#This Row],[Line Item]],Table_POSTInspection[Line],0)),Table_POSTInfo[[#This Row],[Interior/ Exterior]]),\n\" - \",\nIF(ISNUMBER(MATCH(Table_POSTInfo[[#This Row],[Line]],Table_POSTInspection[Line],0)),INDEX(Table_POSTInspection[Space Description],MATCH(Table_RetroSummary[[#This Row],[Line Item]],Table_POSTInspection[Line],0)),Table_POSTInfo[[#This Row],[Space Description]])),\n \"\"),\"\")","v":""},{"$f":"IFERROR(IF(Table_RetroSummary[[#This Row],[IsActive]]=\"\",\"\",Table_POSTInfo[[#This Row],[Fixture Description '[E']]]),\"\")","v":""},{"$f":"IFERROR(IF(Table_RetroSummary[[#This Row],[IsActive]]=\"\",\"\",Table_POSTInfo[[#This Row],['# Lamps/ Fixture '[E']]]),\"\")","v":""},{"$f":"IFERROR(IF(Table_RetroSummary[[#This Row],[IsActive]]=\"\",\"\",Table_POSTInfo[[#This Row],[Fixture/ Lamp Wattage '[E']]]),\"\")","v":""},{"$f":"IFERROR(IF(Table_RetroSummary[[#This Row],[IsActive]]=\"\",\"\",Table_POSTInfo[[#This Row],[Fixture Qty '[E']]]),\"\")","v":""},{"$f":"IFERROR(IF(Table_RetroSummary[[#This Row],[IsActive]],Table_RetroSummary[[#This Row],[Fixture/ Lamp Wattage '[E']]]*Table_RetroSummary[[#This Row],[E. Qty]],\"\"),\"\")","v":""},{"$f":"IFERROR(IF(Table_RetroSummary[[#This Row],[IsActive]]=\"\",\"\",Table_POSTInfo[[#This Row],[Fixture Wattage '[E']]]),\"\")","v":""},{"$f":"IFERROR(IF(Table_RetroSummary[[#This Row],[IsActive]],IFERROR(Table_RetroSummary[[#This Row],[Existing Fixture Wattage]]/1000*Table_RetroSummary[[#This Row],[OpHrs]]*Table_RetroSummary[[#This Row],[E. Qty]],0),\"\"),\"\")","v":""},{"$f":"IFERROR(IF(Table_RetroSummary[[#This Row],[IsActive]],IFERROR(VLOOKUP(RIGHT(Table_RetroSummary[[#This Row],[Existing Fixture]],LEN(Table_RetroSummary[[#This Row],[Existing Fixture]])-FIND(\" - \",Table_RetroSummary[[#This Row],[Existing Fixture]],FIND(\"]\",Table_RetroSummary[[#This Row],[Existing Fixture]],1))-2),Table_ControlType[],3,FALSE),0),\"\"),\"\")","v":""},{"$f":"IFERROR(IF(Table_RetroSummary[[#This Row],[IsActive]],IFERROR(Table_RetroSummary[[#This Row],[Existing Fixture Wattage]]/1000*Table_RetroSummary[[#This Row],[OpHrs]]*Table_RetroSummary[[#This Row],[E. Qty]]*Table_RetroSummary[[#This Row],[Existing CSF]]*(-1),0),\"\"),\"\")","v":""},{"$f":"IFERROR(Table_RetroSummary[[#This Row],[Existing Fixture kWh]]+Table_RetroSummary[[#This Row],[Existing Fixture (Existing Controls) kWh]],\"\")","v":""},{"$f":"IFERROR(IF(Table_RetroSummary[[#This Row],[IsActive]],IF(ISNUMBER(MATCH(Table_POSTInfo[[#This Row],[Line]],Table_POSTInspection[Line],0)),INDEX(Table_POSTInspection[Fixture Description '[P']],MATCH(Table_RetroSummary[[#This Row],[Line Item]],Table_POSTInspection[Line],0)),Table_POSTInfo[[#This Row],[Fixture Description '[P']]]),\"\"),\"\")","v":""},{"$f":"IFERROR(IF(Table_RetroSummary[[#This Row],[IsActive]],IF(ISNUMBER(MATCH(Table_POSTInfo[[#This Row],[Line]],Table_POSTInspection[Line],0)),INDEX(Table_POSTInspection['# Lamps/ Fixture '[P']],MATCH(Table_RetroSummary[[#This Row],[Line Item]],Table_POSTInspection[Line],0)),Table_POSTInfo[[#This Row],['# Lamps/ Fixture '[P']]]),\"\"),\"\")","v":""},{"$f":"IFERROR(IF(Table_RetroSummary[[#This Row],[IsActive]],IF(ISNUMBER(MATCH(Table_POSTInfo[[#This Row],[Line]],Table_POSTInspection[Line],0)),INDEX(Table_POSTInspection[Fixture/ Lamp Wattage '[P']],MATCH(Table_RetroSummary[[#This Row],[Line Item]],Table_POSTInspection[Line],0)),Table_POSTInfo[[#This Row],[Fixture/ Lamp Wattage '[P']]]),\"\"),\"\")","v":""},{"$f":"IFERROR(IF(Table_RetroSummary[[#This Row],[IsActive]],IF(ISNUMBER(MATCH(Table_POSTInfo[[#This Row],[Line]],Table_POSTInspection[Line],0)),INDEX(Table_POSTInspection[Fixture Qty '[P']],MATCH(Table_RetroSummary[[#This Row],[Line Item]],Table_POSTInspection[Line],0)),Table_POSTInfo[[#This Row],[Fixture Qty '[P']]]),\"\"),\"\")","v":""},{"$f":"IFERROR(IF(Table_RetroSummary[[#This Row],[IsActive]],Table_RetroSummary[[#This Row],[Fixture/ Lamp Wattage '[P']]]*Table_RetroSummary[[#This Row],[P. Qty]],\"\"),\"\")","v":""},{"$f":"IFERROR(IF(Table_RetroSummary[[#This Row],[IsActive]],IF(ISNUMBER(MATCH(Table_POSTInfo[[#This Row],[Line]],Table_POSTInspection[Line],0)),INDEX(Table_POSTInspection[Fixture Wattage '[P']],MATCH(Table_RetroSummary[[#This Row],[Line Item]],Table_POSTInspection[Line],0)),Table_POSTInfo[[#This Row],[Fixture Wattage '[P']]]),\"\"),\"\")","v":""},{"$f":"IFERROR(Table_RetroSummary[[#This Row],[Total '# Lamps '[P']]]+Table_RetroSummary[[#This Row],[Proposed Fixture Wattage]],\"\")","v":""},{"$f":"IFERROR(Table_RetroSummary[[#This Row],[Proposed Fixture Wattage]]/1000*Table_RetroSummary[[#This Row],[OpHrs]]*Table_RetroSummary[[#This Row],[P. Qty]],\"\")","v":""},{"$f":"IFERROR(IF(Table_RetroSummary[[#This Row],[IsActive]],IFERROR(VLOOKUP(RIGHT(Table_RetroSummary[[#This Row],[Proposed Fixture]],LEN(Table_RetroSummary[[#This Row],[Proposed Fixture]])-FIND(\" - \",Table_RetroSummary[[#This Row],[Proposed Fixture]],FIND(\"]\",Table_RetroSummary[[#This Row],[Proposed Fixture]],1))-2),Table_ControlType[],3, FALSE),0),\"\"),\"\")","v":""},{"$f":"IFERROR(IF(Table_RetroSummary[[#This Row],[IsActive]],IFERROR(Table_RetroSummary[[#This Row],[Proposed Fixture Wattage]]/1000*Table_RetroSummary[[#This Row],[OpHrs]]*Table_RetroSummary[[#This Row],[P. Qty]]*Table_RetroSummary[[#This Row],[Existing CSF]]*(-1),0),\"\"),\"\")","v":""},{"$f":"IFERROR(Table_RetroSummary[[#This Row],[Proposed Fixture kWh]]+Table_RetroSummary[[#This Row],[Proposed Fixture (Existing Controls) kWh]],\"\")","v":""},{"$f":"IFERROR(IF(Table_RetroSummary[[#This Row],[IsActive]],IFERROR(Table_RetroSummary[[#This Row],[Proposed Fixture Wattage]]/1000*Table_RetroSummary[[#This Row],[OpHrs]]*Table_RetroSummary[[#This Row],[P. Qty]]*Table_RetroSummary[[#This Row],[Proposed CSF]]*(-1),0),\"\"),\"\")","v":""},{"$f":"IFERROR(Table_RetroSummary[[#This Row],[Proposed Fixture kWh]]+Table_RetroSummary[[#This Row],[Proposed Fixture (Proposed Controls) kWh]],\"\")","v":""},{"$f":"IFERROR(IF(Table_RetroSummary[[#This Row],[IsActive]],IF(ISNUMBER(MATCH(Table_POSTInfo[[#This Row],[Line]],Table_POSTInspection[Line],0)),INDEX(Table_POSTInspection[DLC or ES Certification '[P']],MATCH(Table_RetroSummary[[#This Row],[Line Item]],Table_POSTInspection[Line],0)),Table_POSTInfo[[#This Row],[DLC or ES Certification '[P']]]),\"\"),\"\")","v":""},null,{"$f":"IFERROR(IF(Table_RetroSummary[[#This Row],[IsActive]],\nIF(AND(RIGHT(Table_RetroSummary[[#This Row],[Existing Fixture]],LEN(Table_RetroSummary[[#This Row],[Existing Fixture]])-FIND(\":\",Table_RetroSummary[[#This Row],[Existing Fixture]],1)-1)<>Table_RetroSummary[[#This Row],[Proposed Fixture]],MID(Table_RetroSummary[[#This Row],[Existing Fixture]],FIND(\": \",Table_RetroSummary[[#This Row],[Existing Fixture]],1)+2,FIND(\"]\",Table_RetroSummary[[#This Row],[Existing Fixture]],1))=LEFT(Table_RetroSummary[[#This Row],[Proposed Fixture]],FIND(\"]\",Table_RetroSummary[[#This Row],[Proposed Fixture]],1))),\n  \"Controls Only\",\n  IF(Table_POSTInfo[[#This Row],[DLC or ES Certification '[P']]]<>\"\",\n    IF(ISNUMBER(FIND(\"LED Tube\",Table_RetroSummary[[#This Row],[Proposed Fixture]],1)),\n      \"LED Re-Lamp\",\n      IF(AND(Table_RetroSummary[[#This Row],[Existing Overall kWh]]>Table_RetroSummary[[#This Row],[Proposed Overall kWh (Existing Controls)]],ISNUMBER(FIND(\"LED\",Table_RetroSummary[[#This Row],[Proposed Fixture]],1))),\n        IF(Table_POSTInfo[[#This Row],[Interior/ Exterior]]=\"Exterior\",\n          \"Exterior LED Fixture\",\n          \"Interior LED Fixture\"),\n        \"Ineligible Fixture\")),\n    \"Ineligible Fixture\")),\n\"\"),\"\")","v":""},{"$f":"IFERROR(VLOOKUP(Table_RetroSummary[[#This Row],[Fixture Measure Description]],Table_FixtureRate[],2,FALSE),\"\")","v":""},{"$f":"IFERROR(IF(Table_RetroSummary[[#This Row],[IsActive]],IF(Table_RetroSummary[[#This Row],[Fixture Measure Description]]=\"Ineligible Fixture\",0,ROUND(Table_RetroSummary[[#This Row],[Fixture Rebate (per kW)]]*(Table_RetroSummary[[#This Row],[Existing Fixture Wattage]]*Table_RetroSummary[[#This Row],[E. Qty]]-Table_RetroSummary[[#This Row],[Proposed Fixture Wattage]]*Table_RetroSummary[[#This Row],[P. Qty]])/1000,2)),\"\"),\"\")","v":""},{"$f":"IFERROR(IF(Table_RetroSummary[[#This Row],[Fixture Measure Description]]=\"Ineligible Fixture\",0,ROUND(IF(ProjectCost_Total=0,300000,ProjectCost_Total)*Table_RetroSummary[[#This Row],[Fixture Rebate]]/SUM(Table_RetroSummary[Fixture Rebate],Table_RetroSummary[Controls Rebate]),2)),\"\")","v":""},{"$f":"IFERROR(IF(Table_RetroSummary[[#This Row],[IsActive]],IF(Table_RetroSummary[[#This Row],[Fixture Measure Description]]=\"Ineligible Fixture\",0,Table_RetroSummary[[#This Row],[Existing Overall kWh]]-Table_RetroSummary[[#This Row],[Proposed Overall kWh (Existing Controls)]]),\"\"),\"\")","v":""},{"$f":"IFERROR(IF(Table_RetroSummary[[#This Row],[IsActive]],IF(Table_RetroSummary[[#This Row],[Fixture Measure Description]]=\"Ineligible Fixture\",0,(Table_RetroSummary[[#This Row],[Existing Fixture kWh]]-Table_RetroSummary[[#This Row],[Proposed Fixture kWh]])/Table_RetroSummary[[#This Row],[OpHrs]]*Table_RetroSummary[[#This Row],[CF (Ltg)]]*Table_RetroSummary[[#This Row],[DF (Ltg)]]),\"\"),\"\")","v":""},null,{"$f":"IFERROR(\n  IF(OR(Table_RetroSummary[[#This Row],[Fixture Measure Description]]=\"\",Table_RetroSummary[[#This Row],[Fixture Measure Description]]=\"Ineligible Fixture\"),\n    \"\",\n    IFERROR(VLOOKUP(RIGHT(Table_RetroSummary[[#This Row],[Existing Fixture]],LEN(Table_RetroSummary[[#This Row],[Existing Fixture]])-FIND(\" - \",Table_RetroSummary[[#This Row],[Existing Fixture]],FIND(\"]\",Table_RetroSummary[[#This Row],[Existing Fixture]],1))-2),Table_ControlType[],2,FALSE),\"None\")\n    & \" - \" &\n    IFERROR(VLOOKUP(RIGHT(Table_RetroSummary[[#This Row],[Proposed Fixture]],LEN(Table_RetroSummary[[#This Row],[Proposed Fixture]])-FIND(\" - \",Table_RetroSummary[[#This Row],[Proposed Fixture]],FIND(\"]\",Table_RetroSummary[[#This Row],[Proposed Fixture]],1))-2),Table_ControlType[],2, FALSE),None)),\n\"\")","v":""},{"$f":"IFERROR(VLOOKUP(Table_RetroSummary[[#This Row],[Controls Measure Description]],Table_ControlRate[],2,FALSE),\"\")","v":""},{"$f":"IFERROR(IF(Table_RetroSummary[[#This Row],[IsActive]],IF(Table_RetroSummary[[#This Row],[Controls Measure Description]]=\"\",0,ROUND(Table_RetroSummary[[#This Row],[Controls Rebate (per Fixt Watt)]]*Table_RetroSummary[[#This Row],[Proposed Fixture Wattage]]*Table_RetroSummary[[#This Row],[P. Qty]],2)),\"\"),\"\")","v":""},{"$f":"IFERROR(IF(Table_RetroSummary[[#This Row],[Fixture Measure Description]]=\"Ineligible Fixture\",0,ROUND(IF(ProjectCost_Total=0,300000,ProjectCost_Total)*Table_RetroSummary[[#This Row],[Controls Rebate]]/SUM(Table_RetroSummary[Fixture Rebate],Table_RetroSummary[Controls Rebate]),2)),\"\")","v":""},{"$f":"IFERROR(IF(Table_RetroSummary[[#This Row],[IsActive]],IF(Table_RetroSummary[[#This Row],[Controls Measure Description]]=\"\",0,(Table_RetroSummary[[#This Row],[Proposed Fixture (Existing Controls) kWh]]-Table_RetroSummary[[#This Row],[Proposed Fixture (Proposed Controls) kWh]])),\"\"),\"\")","v":""},{"$f":"IFERROR(IF(Table_RetroSummary[[#This Row],[IsActive]],IF(Table_RetroSummary[[#This Row],[Controls Measure Description]]=\"\",0,(Table_RetroSummary[[#This Row],[Proposed Fixture (Existing Controls) kWh]]-Table_RetroSummary[[#This Row],[Proposed Fixture (Proposed Controls) kWh]])/Table_RetroSummary[[#This Row],[OpHrs]]*Table_RetroSummary[[#This Row],[CF (Ltg)]]*Table_RetroSummary[[#This Row],[DF (Ltg)]]),\"\"),\"\")","v":""},null,{"$f":"IFERROR(IF(NOT(ISNUMBER(Table_RetroSummary[[#This Row],[Fixture Rebate]])),\"\",IF(MIN(IF(SUM(Table_RetroSummary[Fixture Cost],Table_RetroSummary[Controls Cost])<0,0,SUM(Table_RetroSummary[Fixture Cost],Table_RetroSummary[Controls Cost])),SUM(Table_RetroSummary[Fixture Rebate],Table_RetroSummary[Controls Rebate]))>300000,300000/MIN(IF(SUM(Table_RetroSummary[Fixture Cost],Table_RetroSummary[Controls Cost])<0,0,SUM(Table_RetroSummary[Fixture Cost],Table_RetroSummary[Controls Cost])),SUM(Table_RetroSummary[Fixture Rebate],Table_RetroSummary[Controls Rebate]))*MIN(IF(SUM(Table_RetroSummary[Fixture Cost],Table_RetroSummary[Controls Cost])<0,0,SUM(Table_RetroSummary[Fixture Cost],Table_RetroSummary[Controls Cost])),Table_RetroSummary[[#This Row],[Fixture Rebate]]+IF(Table_RetroSummary[[#This Row],[Controls Rebate]]=\"\",0,Table_RetroSummary[[#This Row],[Controls Rebate]])),MIN(IF(SUM(Table_RetroSummary[Fixture Cost],Table_RetroSummary[Controls Cost])<0,0,SUM(Table_RetroSummary[Fixture Cost],Table_RetroSummary[Controls Cost])),Table_RetroSummary[[#This Row],[Fixture Rebate]]+IF(Table_RetroSummary[[#This Row],[Controls Rebate]]=\"\",0,Table_RetroSummary[[#This Row],[Controls Rebate]])))),\"\")","v":""},{"$f":"IFERROR(IF(Table_RetroSummary[[#This Row],[Fixture Cost]]=\"\",\"\",Table_RetroSummary[[#This Row],[Fixture Cost]]+IF(Table_RetroSummary[[#This Row],[Controls Cost]]=\"\",0,Table_RetroSummary[[#This Row],[Controls Cost]])),\"\")","v":""},{"$f":"IFERROR(IF(Table_RetroSummary[[#This Row],[IsActive]],IF(Table_POSTInfo[[#This Row],[Interior/ Exterior]]=\"Interior\",IFERROR((Table_RetroSummary[[#This Row],[Annual Fixture Savings (kWh)]]+Table_RetroSummary[[#This Row],[Annual Control Savings (kWh)]])*(Table_RetroSummary[[#This Row],[EIF]]-1),0),0),\"\"),\"\")","v":""},{"$f":"IFERROR(IF(Table_RetroSummary[[#This Row],[IsActive]],IF(Table_POSTInfo[[#This Row],[Interior/ Exterior]]=\"Interior\",IFERROR((Table_RetroSummary[[#This Row],[Fixture kW Reduction]]+Table_RetroSummary[[#This Row],[Control kW Reduction]]/(Table_RetroSummary[[#This Row],[CF (Ltg)]]*Table_RetroSummary[[#This Row],[DF (Ltg)]]))*(Table_RetroSummary[[#This Row],[DIF]]-1)*Table_RetroSummary[[#This Row],[CF (HVAC)]]*Table_RetroSummary[[#This Row],[DF (HVAC)]],0),0),\"\"),\"\")","v":""},{"$f":"IFERROR(IF(Table_RetroSummary[[#This Row],[IsActive]],IF(NOT(ISNUMBER(Table_RetroSummary[[#This Row],[Fixture Rebate]])),\"\",ROUND(Table_RetroSummary[[#This Row],[Annual Fixture Savings (kWh)]]+Table_RetroSummary[[#This Row],[Annual Control Savings (kWh)]],0)),\"\"),\"\")","v":""},{"$f":"IFERROR(IF(Table_RetroSummary[[#This Row],[IsActive]],IF(NOT(ISNUMBER(Table_RetroSummary[[#This Row],[Fixture Rebate]])),\"\",ROUND(Table_RetroSummary[[#This Row],[Fixture kW Reduction]]+Table_RetroSummary[[#This Row],[Control kW Reduction]],3)),\"\"),\"\")","v":""},{"$f":"IFERROR(IF(Table_RetroSummary[[#This Row],[IsActive]],IF(NOT(ISNUMBER(Table_RetroSummary[[#This Row],[Fixture Rebate]])),\"\",ROUND(Table_RetroSummary[[#This Row],[Fixture Energy Savings (kWh)]]+Table_RetroSummary[[#This Row],[Induced HVAC Energy Savings (kWh)]],0)),\"\"),\"\")","v":""},{"$f":"IFERROR(IF(Table_RetroSummary[[#This Row],[IsActive]],IF(NOT(ISNUMBER(Table_RetroSummary[[#This Row],[Fixture Rebate]])),\"\",ROUND(Table_RetroSummary[[#This Row],[Fixture Demand Savings (kW)]]+Table_RetroSummary[[#This Row],[Induced HVAC Demand Savings (kW)]],3)),\"\"),\"\")","v":""}]
[{"$f":"IFERROR(Table_POSTInfo[[#This Row],[Line]],\"\")","v":39},{"$f":"IFERROR(Table_POSTInfo[[#This Row],[IsActive]],\"\")","v":false},{"$f":"IFERROR(IF(Table_RetroSummary[[#This Row],[IsActive]],CONCATENATE(Table_RetroSummary[[#This Row],[Existing Fixture]],\" | \",Table_RetroSummary[[#This Row],[Proposed Fixture]]),\"\"),\"\")","v":""},{"$f":"IFERROR(IF(Table_RetroSummary[[#This Row],[IsActive]],VLOOKUP(IF(ISNUMBER(MATCH(Table_POSTInfo[[#This Row],[Line]],Table_POSTInspection[Line],0)),INDEX(Table_POSTInspection[Schedule],MATCH(Table_RetroSummary[[#This Row],[Line Item]],Table_POSTInspection[Line],0)),Table_POSTInfo[[#This Row],[Schedule]]),'Customer Information'!$S$27:$T$34,2,FALSE),\"\"),\"\")","v":""},{"$f":"IFERROR(IF(Table_RetroSummary[[#This Row],[IsActive]],IF(IF(ISNUMBER(MATCH(Table_RetroSummary[[#This Row],[Line Item]],Table_POSTInspection[Line],0)),INDEX(Table_POSTInspection[Interior/ Exterior],MATCH(Table_RetroSummary[[#This Row],[Line Item]],Table_POSTInfo[[#This Row],[Line]],0)),Table_POSTInfo[[#This Row],[Interior/ Exterior]])=\"Interior\",'Customer Information'!$S$25,0),\"\"),\"\")","v":""},{"$f":"IFERROR(IF(Table_RetroSummary[[#This Row],[IsActive]],IF(IF(ISNUMBER(MATCH(Table_RetroSummary[[#This Row],[Line Item]],Table_POSTInspection[Line],0)),INDEX(Table_POSTInspection[Interior/ Exterior],MATCH(Table_RetroSummary[[#This Row],[Line Item]],Table_POSTInfo[[#This Row],[Line]],0)),Table_POSTInfo[[#This Row],[Interior/ Exterior]])=\"Interior\",'Customer Information'!$T$25,0),\"\"),\"\")","v":""},{"$f":"IFERROR(IF(Table_RetroSummary[[#This Row],[IsActive]],IF(IF(ISNUMBER(MATCH(Table_RetroSummary[[#This Row],[Line Item]],Table_POSTInspection[Line],0)),INDEX(Table_POSTInspection[Interior/ Exterior],MATCH(Table_RetroSummary[[#This Row],[Line Item]],Table_POSTInfo[[#This Row],[Line]],0)),Table_POSTInfo[[#This Row],[Interior/ Exterior]])=\"Interior\",'Customer Information'!$U$25,0),\"\"),\"\")","v":""},{"$f":"IFERROR(IF(Table_RetroSummary[[#This Row],[IsActive]],IF(IF(ISNUMBER(MATCH(Table_RetroSummary[[#This Row],[Line Item]],Table_POSTInspection[Line],0)),INDEX(Table_POSTInspection[Interior/ Exterior],MATCH(Table_RetroSummary[[#This Row],[Line Item]],Table_POSTInfo[[#This Row],[Line]],0)),Table_POSTInfo[[#This Row],[Interior/ Exterior]])=\"Interior\",'Customer Information'!$V$25,0),\"\"),\"\")","v":""},{"$f":"IFERROR(IF(Table_RetroSummary[[#This Row],[IsActive]],IF(IF(ISNUMBER(MATCH(Table_RetroSummary[[#This Row],[Line Item]],Table_POSTInspection[Line],0)),INDEX(Table_POSTInspection[Interior/ Exterior],MATCH(Table_RetroSummary[[#This Row],[Line Item]],Table_POSTInfo[[#This Row],[Line]],0)),Table_POSTInfo[[#This Row],[Interior/ Exterior]])=\"Interior\",'Customer Information'!$W$25,0),\"\"),\"\")","v":""},{"$f":"IFERROR(IF(Table_RetroSummary[[#This Row],[IsActive]],IF(IF(ISNUMBER(MATCH(Table_RetroSummary[[#This Row],[Line Item]],Table_POSTInspection[Line],0)),INDEX(Table_POSTInspection[Interior/ Exterior],MATCH(Table_RetroSummary[[#This Row],[Line Item]],Table_POSTInfo[[#This Row],[Line]],0)),Table_POSTInfo[[#This Row],[Interior/ Exterior]])=\"Interior\",'Customer Information'!$X$25,0),\"\"),\"\")","v":""},{"$f":"IFERROR(IF(Table_RetroSummary[[#This Row],[IsActive]],\nCONCATENATE(\nIF(ISNUMBER(MATCH(Table_POSTInfo[[#This Row],[Line]],Table_POSTInspection[Line],0)),INDEX(Table_POSTInspection[Interior/ Exterior],MATCH(Table_RetroSummary[[#This Row],[Line Item]],Table_POSTInspection[Line],0)),Table_POSTInfo[[#This Row],[Interior/ Exterior]]),\n\" - \",\nIF(ISNUMBER(MATCH(Table_POSTInfo[[#This Row],[Line]],Table_POSTInspection[Line],0)),INDEX(Table_POSTInspection[Space Description],MATCH(Table_RetroSummary[[#This Row],[Line Item]],Table_POSTInspection[Line],0)),Table_POSTInfo[[#This Row],[Space Description]])),\n \"\"),\"\")","v":""},{"$f":"IFERROR(IF(Table_RetroSummary[[#This Row],[IsActive]]=\"\",\"\",Table_POSTInfo[[#This Row],[Fixture Description '[E']]]),\"\")","v":""},{"$f":"IFERROR(IF(Table_RetroSummary[[#This Row],[IsActive]]=\"\",\"\",Table_POSTInfo[[#This Row],['# Lamps/ Fixture '[E']]]),\"\")","v":""},{"$f":"IFERROR(IF(Table_RetroSummary[[#This Row],[IsActive]]=\"\",\"\",Table_POSTInfo[[#This Row],[Fixture/ Lamp Wattage '[E']]]),\"\")","v":""},{"$f":"IFERROR(IF(Table_RetroSummary[[#This Row],[IsActive]]=\"\",\"\",Table_POSTInfo[[#This Row],[Fixture Qty '[E']]]),\"\")","v":""},{"$f":"IFERROR(IF(Table_RetroSummary[[#This Row],[IsActive]],Table_RetroSummary[[#This Row],[Fixture/ Lamp Wattage '[E']]]*Table_RetroSummary[[#This Row],[E. Qty]],\"\"),\"\")","v":""},{"$f":"IFERROR(IF(Table_RetroSummary[[#This Row],[IsActive]]=\"\",\"\",Table_POSTInfo[[#This Row],[Fixture Wattage '[E']]]),\"\")","v":""},{"$f":"IFERROR(IF(Table_RetroSummary[[#This Row],[IsActive]],IFERROR(Table_RetroSummary[[#This Row],[Existing Fixture Wattage]]/1000*Table_RetroSummary[[#This Row],[OpHrs]]*Table_RetroSummary[[#This Row],[E. Qty]],0),\"\"),\"\")","v":""},{"$f":"IFERROR(IF(Table_RetroSummary[[#This Row],[IsActive]],IFERROR(VLOOKUP(RIGHT(Table_RetroSummary[[#This Row],[Existing Fixture]],LEN(Table_RetroSummary[[#This Row],[Existing Fixture]])-FIND(\" - \",Table_RetroSummary[[#This Row],[Existing Fixture]],FIND(\"]\",Table_RetroSummary[[#This Row],[Existing Fixture]],1))-2),Table_ControlType[],3,FALSE),0),\"\"),\"\")","v":""},{"$f":"IFERROR(IF(Table_RetroSummary[[#This Row],[IsActive]],IFERROR(Table_RetroSummary[[#This Row],[Existing Fixture Wattage]]/1000*Table_RetroSummary[[#This Row],[OpHrs]]*Table_RetroSummary[[#This Row],[E. Qty]]*Table_RetroSummary[[#This Row],[Existing CSF]]*(-1),0),\"\"),\"\")","v":""},{"$f":"IFERROR(Table_RetroSummary[[#This Row],[Existing Fixture kWh]]+Table_RetroSummary[[#This Row],[Existing Fixture (Existing Controls) kWh]],\"\")","v":""},{"$f":"IFERROR(IF(Table_RetroSummary[[#This Row],[IsActive]],IF(ISNUMBER(MATCH(Table_POSTInfo[[#This Row],[Line]],Table_POSTInspection[Line],0)),INDEX(Table_POSTInspection[Fixture Description '[P']],MATCH(Table_RetroSummary[[#This Row],[Line Item]],Table_POSTInspection[Line],0)),Table_POSTInfo[[#This Row],[Fixture Description '[P']]]),\"\"),\"\")","v":""},{"$f":"IFERROR(IF(Table_RetroSummary[[#This Row],[IsActive]],IF(ISNUMBER(MATCH(Table_POSTInfo[[#This Row],[Line]],Table_POSTInspection[Line],0)),INDEX(Table_POSTInspection['# Lamps/ Fixture '[P']],MATCH(Table_RetroSummary[[#This Row],[Line Item]],Table_POSTInspection[Line],0)),Table_POSTInfo[[#This Row],['# Lamps/ Fixture '[P']]]),\"\"),\"\")","v":""},{"$f":"IFERROR(IF(Table_RetroSummary[[#This Row],[IsActive]],IF(ISNUMBER(MATCH(Table_POSTInfo[[#This Row],[Line]],Table_POSTInspection[Line],0)),INDEX(Table_POSTInspection[Fixture/ Lamp Wattage '[P']],MATCH(Table_RetroSummary[[#This Row],[Line Item]],Table_POSTInspection[Line],0)),Table_POSTInfo[[#This Row],[Fixture/ Lamp Wattage '[P']]]),\"\"),\"\")","v":""},{"$f":"IFERROR(IF(Table_RetroSummary[[#This Row],[IsActive]],IF(ISNUMBER(MATCH(Table_POSTInfo[[#This Row],[Line]],Table_POSTInspection[Line],0)),INDEX(Table_POSTInspection[Fixture Qty '[P']],MATCH(Table_RetroSummary[[#This Row],[Line Item]],Table_POSTInspection[Line],0)),Table_POSTInfo[[#This Row],[Fixture Qty '[P']]]),\"\"),\"\")","v":""},{"$f":"IFERROR(IF(Table_RetroSummary[[#This Row],[IsActive]],Table_RetroSummary[[#This Row],[Fixture/ Lamp Wattage '[P']]]*Table_RetroSummary[[#This Row],[P. Qty]],\"\"),\"\")","v":""},{"$f":"IFERROR(IF(Table_RetroSummary[[#This Row],[IsActive]],IF(ISNUMBER(MATCH(Table_POSTInfo[[#This Row],[Line]],Table_POSTInspection[Line],0)),INDEX(Table_POSTInspection[Fixture Wattage '[P']],MATCH(Table_RetroSummary[[#This Row],[Line Item]],Table_POSTInspection[Line],0)),Table_POSTInfo[[#This Row],[Fixture Wattage '[P']]]),\"\"),\"\")","v":""},{"$f":"IFERROR(Table_RetroSummary[[#This Row],[Total '# Lamps '[P']]]+Table_RetroSummary[[#This Row],[Proposed Fixture Wattage]],\"\")","v":""},{"$f":"IFERROR(Table_RetroSummary[[#This Row],[Proposed Fixture Wattage]]/1000*Table_RetroSummary[[#This Row],[OpHrs]]*Table_RetroSummary[[#This Row],[P. Qty]],\"\")","v":""},{"$f":"IFERROR(IF(Table_RetroSummary[[#This Row],[IsActive]],IFERROR(VLOOKUP(RIGHT(Table_RetroSummary[[#This Row],[Proposed Fixture]],LEN(Table_RetroSummary[[#This Row],[Proposed Fixture]])-FIND(\" - \",Table_RetroSummary[[#This Row],[Proposed Fixture]],FIND(\"]\",Table_RetroSummary[[#This Row],[Proposed Fixture]],1))-2),Table_ControlType[],3, FALSE),0),\"\"),\"\")","v":""},{"$f":"IFERROR(IF(Table_RetroSummary[[#This Row],[IsActive]],IFERROR(Table_RetroSummary[[#This Row],[Proposed Fixture Wattage]]/1000*Table_RetroSummary[[#This Row],[OpHrs]]*Table_RetroSummary[[#This Row],[P. Qty]]*Table_RetroSummary[[#This Row],[Existing CSF]]*(-1),0),\"\"),\"\")","v":""},{"$f":"IFERROR(Table_RetroSummary[[#This Row],[Proposed Fixture kWh]]+Table_RetroSummary[[#This Row],[Proposed Fixture (Existing Controls) kWh]],\"\")","v":""},{"$f":"IFERROR(IF(Table_RetroSummary[[#This Row],[IsActive]],IFERROR(Table_RetroSummary[[#This Row],[Proposed Fixture Wattage]]/1000*Table_RetroSummary[[#This Row],[OpHrs]]*Table_RetroSummary[[#This Row],[P. Qty]]*Table_RetroSummary[[#This Row],[Proposed CSF]]*(-1),0),\"\"),\"\")","v":""},{"$f":"IFERROR(Table_RetroSummary[[#This Row],[Proposed Fixture kWh]]+Table_RetroSummary[[#This Row],[Proposed Fixture (Proposed Controls) kWh]],\"\")","v":""},{"$f":"IFERROR(IF(Table_RetroSummary[[#This Row],[IsActive]],IF(ISNUMBER(MATCH(Table_POSTInfo[[#This Row],[Line]],Table_POSTInspection[Line],0)),INDEX(Table_POSTInspection[DLC or ES Certification '[P']],MATCH(Table_RetroSummary[[#This Row],[Line Item]],Table_POSTInspection[Line],0)),Table_POSTInfo[[#This Row],[DLC or ES Certification '[P']]]),\"\"),\"\")","v":""},null,{"$f":"IFERROR(IF(Table_RetroSummary[[#This Row],[IsActive]],\nIF(AND(RIGHT(Table_RetroSummary[[#This Row],[Existing Fixture]],LEN(Table_RetroSummary[[#This Row],[Existing Fixture]])-FIND(\":\",Table_RetroSummary[[#This Row],[Existing Fixture]],1)-1)<>Table_RetroSummary[[#This Row],[Proposed Fixture]],MID(Table_RetroSummary[[#This Row],[Existing Fixture]],FIND(\": \",Table_RetroSummary[[#This Row],[Existing Fixture]],1)+2,FIND(\"]\",Table_RetroSummary[[#This Row],[Existing Fixture]],1))=LEFT(Table_RetroSummary[[#This Row],[Proposed Fixture]],FIND(\"]\",Table_RetroSummary[[#This Row],[Proposed Fixture]],1))),\n  \"Controls Only\",\n  IF(Table_POSTInfo[[#This Row],[DLC or ES Certification '[P']]]<>\"\",\n    IF(ISNUMBER(FIND(\"LED Tube\",Table_RetroSummary[[#This Row],[Proposed Fixture]],1)),\n      \"LED Re-Lamp\",\n      IF(AND(Table_RetroSummary[[#This Row],[Existing Overall kWh]]>Table_RetroSummary[[#This Row],[Proposed Overall kWh (Existing Controls)]],ISNUMBER(FIND(\"LED\",Table_RetroSummary[[#This Row],[Proposed Fixture]],1))),\n        IF(Table_POSTInfo[[#This Row],[Interior/ Exterior]]=\"Exterior\",\n          \"Exterior LED Fixture\",\n          \"Interior LED Fixture\"),\n        \"Ineligible Fixture\")),\n    \"Ineligible Fixture\")),\n\"\"),\"\")","v":""},{"$f":"IFERROR(VLOOKUP(Table_RetroSummary[[#This Row],[Fixture Measure Description]],Table_FixtureRate[],2,FALSE),\"\")","v":""},{"$f":"IFERROR(IF(Table_RetroSummary[[#This Row],[IsActive]],IF(Table_RetroSummary[[#This Row],[Fixture Measure Description]]=\"Ineligible Fixture\",0,ROUND(Table_RetroSummary[[#This Row],[Fixture Rebate (per kW)]]*(Table_RetroSummary[[#This Row],[Existing Fixture Wattage]]*Table_RetroSummary[[#This Row],[E. Qty]]-Table_RetroSummary[[#This Row],[Proposed Fixture Wattage]]*Table_RetroSummary[[#This Row],[P. Qty]])/1000,2)),\"\"),\"\")","v":""},{"$f":"IFERROR(IF(Table_RetroSummary[[#This Row],[Fixture Measure Description]]=\"Ineligible Fixture\",0,ROUND(IF(ProjectCost_Total=0,300000,ProjectCost_Total)*Table_RetroSummary[[#This Row],[Fixture Rebate]]/SUM(Table_RetroSummary[Fixture Rebate],Table_RetroSummary[Controls Rebate]),2)),\"\")","v":""},{"$f":"IFERROR(IF(Table_RetroSummary[[#This Row],[IsActive]],IF(Table_RetroSummary[[#This Row],[Fixture Measure Description]]=\"Ineligible Fixture\",0,Table_RetroSummary[[#This Row],[Existing Overall kWh]]-Table_RetroSummary[[#This Row],[Proposed Overall kWh (Existing Controls)]]),\"\"),\"\")","v":""},{"$f":"IFERROR(IF(Table_RetroSummary[[#This Row],[IsActive]],IF(Table_RetroSummary[[#This Row],[Fixture Measure Description]]=\"Ineligible Fixture\",0,(Table_RetroSummary[[#This Row],[Existing Fixture kWh]]-Table_RetroSummary[[#This Row],[Proposed Fixture kWh]])/Table_RetroSummary[[#This Row],[OpHrs]]*Table_RetroSummary[[#This Row],[CF (Ltg)]]*Table_RetroSummary[[#This Row],[DF (Ltg)]]),\"\"),\"\")","v":""},null,{"$f":"IFERROR(\n  IF(OR(Table_RetroSummary[[#This Row],[Fixture Measure Description]]=\"\",Table_RetroSummary[[#This Row],[Fixture Measure Description]]=\"Ineligible Fixture\"),\n    \"\",\n    IFERROR(VLOOKUP(RIGHT(Table_RetroSummary[[#This Row],[Existing Fixture]],LEN(Table_RetroSummary[[#This Row],[Existing Fixture]])-FIND(\" - \",Table_RetroSummary[[#This Row],[Existing Fixture]],FIND(\"]\",Table_RetroSummary[[#This Row],[Existing Fixture]],1))-2),Table_ControlType[],2,FALSE),\"None\")\n    & \" - \" &\n    IFERROR(VLOOKUP(RIGHT(Table_RetroSummary[[#This Row],[Proposed Fixture]],LEN(Table_RetroSummary[[#This Row],[Proposed Fixture]])-FIND(\" - \",Table_RetroSummary[[#This Row],[Proposed Fixture]],FIND(\"]\",Table_RetroSummary[[#This Row],[Proposed Fixture]],1))-2),Table_ControlType[],2, FALSE),None)),\n\"\")","v":""},{"$f":"IFERROR(VLOOKUP(Table_RetroSummary[[#This Row],[Controls Measure Description]],Table_ControlRate[],2,FALSE),\"\")","v":""},{"$f":"IFERROR(IF(Table_RetroSummary[[#This Row],[IsActive]],IF(Table_RetroSummary[[#This Row],[Controls Measure Description]]=\"\",0,ROUND(Table_RetroSummary[[#This Row],[Controls Rebate (per Fixt Watt)]]*Table_RetroSummary[[#This Row],[Proposed Fixture Wattage]]*Table_RetroSummary[[#This Row],[P. Qty]],2)),\"\"),\"\")","v":""},{"$f":"IFERROR(IF(Table_RetroSummary[[#This Row],[Fixture Measure Description]]=\"Ineligible Fixture\",0,ROUND(IF(ProjectCost_Total=0,300000,ProjectCost_Total)*Table_RetroSummary[[#This Row],[Controls Rebate]]/SUM(Table_RetroSummary[Fixture Rebate],Table_RetroSummary[Controls Rebate]),2)),\"\")","v":""},{"$f":"IFERROR(IF(Table_RetroSummary[[#This Row],[IsActive]],IF(Table_RetroSummary[[#This Row],[Controls Measure Description]]=\"\",0,(Table_RetroSummary[[#This Row],[Proposed Fixture (Existing Controls) kWh]]-Table_RetroSummary[[#This Row],[Proposed Fixture (Proposed Controls) kWh]])),\"\"),\"\")","v":""},{"$f":"IFERROR(IF(Table_RetroSummary[[#This Row],[IsActive]],IF(Table_RetroSummary[[#This Row],[Controls Measure Description]]=\"\",0,(Table_RetroSummary[[#This Row],[Proposed Fixture (Existing Controls) kWh]]-Table_RetroSummary[[#This Row],[Proposed Fixture (Proposed Controls) kWh]])/Table_RetroSummary[[#This Row],[OpHrs]]*Table_RetroSummary[[#This Row],[CF (Ltg)]]*Table_RetroSummary[[#This Row],[DF (Ltg)]]),\"\"),\"\")","v":""},null,{"$f":"IFERROR(IF(NOT(ISNUMBER(Table_RetroSummary[[#This Row],[Fixture Rebate]])),\"\",IF(MIN(IF(SUM(Table_RetroSummary[Fixture Cost],Table_RetroSummary[Controls Cost])<0,0,SUM(Table_RetroSummary[Fixture Cost],Table_RetroSummary[Controls Cost])),SUM(Table_RetroSummary[Fixture Rebate],Table_RetroSummary[Controls Rebate]))>300000,300000/MIN(IF(SUM(Table_RetroSummary[Fixture Cost],Table_RetroSummary[Controls Cost])<0,0,SUM(Table_RetroSummary[Fixture Cost],Table_RetroSummary[Controls Cost])),SUM(Table_RetroSummary[Fixture Rebate],Table_RetroSummary[Controls Rebate]))*MIN(IF(SUM(Table_RetroSummary[Fixture Cost],Table_RetroSummary[Controls Cost])<0,0,SUM(Table_RetroSummary[Fixture Cost],Table_RetroSummary[Controls Cost])),Table_RetroSummary[[#This Row],[Fixture Rebate]]+IF(Table_RetroSummary[[#This Row],[Controls Rebate]]=\"\",0,Table_RetroSummary[[#This Row],[Controls Rebate]])),MIN(IF(SUM(Table_RetroSummary[Fixture Cost],Table_RetroSummary[Controls Cost])<0,0,SUM(Table_RetroSummary[Fixture Cost],Table_RetroSummary[Controls Cost])),Table_RetroSummary[[#This Row],[Fixture Rebate]]+IF(Table_RetroSummary[[#This Row],[Controls Rebate]]=\"\",0,Table_RetroSummary[[#This Row],[Controls Rebate]])))),\"\")","v":""},{"$f":"IFERROR(IF(Table_RetroSummary[[#This Row],[Fixture Cost]]=\"\",\"\",Table_RetroSummary[[#This Row],[Fixture Cost]]+IF(Table_RetroSummary[[#This Row],[Controls Cost]]=\"\",0,Table_RetroSummary[[#This Row],[Controls Cost]])),\"\")","v":""},{"$f":"IFERROR(IF(Table_RetroSummary[[#This Row],[IsActive]],IF(Table_POSTInfo[[#This Row],[Interior/ Exterior]]=\"Interior\",IFERROR((Table_RetroSummary[[#This Row],[Annual Fixture Savings (kWh)]]+Table_RetroSummary[[#This Row],[Annual Control Savings (kWh)]])*(Table_RetroSummary[[#This Row],[EIF]]-1),0),0),\"\"),\"\")","v":""},{"$f":"IFERROR(IF(Table_RetroSummary[[#This Row],[IsActive]],IF(Table_POSTInfo[[#This Row],[Interior/ Exterior]]=\"Interior\",IFERROR((Table_RetroSummary[[#This Row],[Fixture kW Reduction]]+Table_RetroSummary[[#This Row],[Control kW Reduction]]/(Table_RetroSummary[[#This Row],[CF (Ltg)]]*Table_RetroSummary[[#This Row],[DF (Ltg)]]))*(Table_RetroSummary[[#This Row],[DIF]]-1)*Table_RetroSummary[[#This Row],[CF (HVAC)]]*Table_RetroSummary[[#This Row],[DF (HVAC)]],0),0),\"\"),\"\")","v":""},{"$f":"IFERROR(IF(Table_RetroSummary[[#This Row],[IsActive]],IF(NOT(ISNUMBER(Table_RetroSummary[[#This Row],[Fixture Rebate]])),\"\",ROUND(Table_RetroSummary[[#This Row],[Annual Fixture Savings (kWh)]]+Table_RetroSummary[[#This Row],[Annual Control Savings (kWh)]],0)),\"\"),\"\")","v":""},{"$f":"IFERROR(IF(Table_RetroSummary[[#This Row],[IsActive]],IF(NOT(ISNUMBER(Table_RetroSummary[[#This Row],[Fixture Rebate]])),\"\",ROUND(Table_RetroSummary[[#This Row],[Fixture kW Reduction]]+Table_RetroSummary[[#This Row],[Control kW Reduction]],3)),\"\"),\"\")","v":""},{"$f":"IFERROR(IF(Table_RetroSummary[[#This Row],[IsActive]],IF(NOT(ISNUMBER(Table_RetroSummary[[#This Row],[Fixture Rebate]])),\"\",ROUND(Table_RetroSummary[[#This Row],[Fixture Energy Savings (kWh)]]+Table_RetroSummary[[#This Row],[Induced HVAC Energy Savings (kWh)]],0)),\"\"),\"\")","v":""},{"$f":"IFERROR(IF(Table_RetroSummary[[#This Row],[IsActive]],IF(NOT(ISNUMBER(Table_RetroSummary[[#This Row],[Fixture Rebate]])),\"\",ROUND(Table_RetroSummary[[#This Row],[Fixture Demand Savings (kW)]]+Table_RetroSummary[[#This Row],[Induced HVAC Demand Savings (kW)]],3)),\"\"),\"\")","v":""}]
[{"$f":"IFERROR(Table_POSTInfo[[#This Row],[Line]],\"\")","v":40},{"$f":"IFERROR(Table_POSTInfo[[#This Row],[IsActive]],\"\")","v":false},{"$f":"IFERROR(IF(Table_RetroSummary[[#This Row],[IsActive]],CONCATENATE(Table_RetroSummary[[#This Row],[Existing Fixture]],\" | \",Table_RetroSummary[[#This Row],[Proposed Fixture]]),\"\"),\"\")","v":""},{"$f":"IFERROR(IF(Table_RetroSummary[[#This Row],[IsActive]],VLOOKUP(IF(ISNUMBER(MATCH(Table_POSTInfo[[#This Row],[Line]],Table_POSTInspection[Line],0)),INDEX(Table_POSTInspection[Schedule],MATCH(Table_RetroSummary[[#This Row],[Line Item]],Table_POSTInspection[Line],0)),Table_POSTInfo[[#This Row],[Schedule]]),'Customer Information'!$S$27:$T$34,2,FALSE),\"\"),\"\")","v":""},{"$f":"IFERROR(IF(Table_RetroSummary[[#This Row],[IsActive]],IF(IF(ISNUMBER(MATCH(Table_RetroSummary[[#This Row],[Line Item]],Table_POSTInspection[Line],0)),INDEX(Table_POSTInspection[Interior/ Exterior],MATCH(Table_RetroSummary[[#This Row],[Line Item]],Table_POSTInfo[[#This Row],[Line]],0)),Table_POSTInfo[[#This Row],[Interior/ Exterior]])=\"Interior\",'Customer Information'!$S$25,0),\"\"),\"\")","v":""},{"$f":"IFERROR(IF(Table_RetroSummary[[#This Row],[IsActive]],IF(IF(ISNUMBER(MATCH(Table_RetroSummary[[#This Row],[Line Item]],Table_POSTInspection[Line],0)),INDEX(Table_POSTInspection[Interior/ Exterior],MATCH(Table_RetroSummary[[#This Row],[Line Item]],Table_POSTInfo[[#This Row],[Line]],0)),Table_POSTInfo[[#This Row],[Interior/ Exterior]])=\"Interior\",'Customer Information'!$T$25,0),\"\"),\"\")","v":""},{"$f":"IFERROR(IF(Table_RetroSummary[[#This Row],[IsActive]],IF(IF(ISNUMBER(MATCH(Table_RetroSummary[[#This Row],[Line Item]],Table_POSTInspection[Line],0)),INDEX(Table_POSTInspection[Interior/ Exterior],MATCH(Table_RetroSummary[[#This Row],[Line Item]],Table_POSTInfo[[#This Row],[Line]],0)),Table_POSTInfo[[#This Row],[Interior/ Exterior]])=\"Interior\",'Customer Information'!$U$25,0),\"\"),\"\")","v":""},{"$f":"IFERROR(IF(Table_RetroSummary[[#This Row],[IsActive]],IF(IF(ISNUMBER(MATCH(Table_RetroSummary[[#This Row],[Line Item]],Table_POSTInspection[Line],0)),INDEX(Table_POSTInspection[Interior/ Exterior],MATCH(Table_RetroSummary[[#This Row],[Line Item]],Table_POSTInfo[[#This Row],[Line]],0)),Table_POSTInfo[[#This Row],[Interior/ Exterior]])=\"Interior\",'Customer Information'!$V$25,0),\"\"),\"\")","v":""},{"$f":"IFERROR(IF(Table_RetroSummary[[#This Row],[IsActive]],IF(IF(ISNUMBER(MATCH(Table_RetroSummary[[#This Row],[Line Item]],Table_POSTInspection[Line],0)),INDEX(Table_POSTInspection[Interior/ Exterior],MATCH(Table_RetroSummary[[#This Row],[Line Item]],Table_POSTInfo[[#This Row],[Line]],0)),Table_POSTInfo[[#This Row],[Interior/ Exterior]])=\"Interior\",'Customer Information'!$W$25,0),\"\"),\"\")","v":""},{"$f":"IFERROR(IF(Table_RetroSummary[[#This Row],[IsActive]],IF(IF(ISNUMBER(MATCH(Table_RetroSummary[[#This Row],[Line Item]],Table_POSTInspection[Line],0)),INDEX(Table_POSTInspection[Interior/ Exterior],MATCH(Table_RetroSummary[[#This Row],[Line Item]],Table_POSTInfo[[#This Row],[Line]],0)),Table_POSTInfo[[#This Row],[Interior/ Exterior]])=\"Interior\",'Customer Information'!$X$25,0),\"\"),\"\")","v":""},{"$f":"IFERROR(IF(Table_RetroSummary[[#This Row],[IsActive]],\nCONCATENATE(\nIF(ISNUMBER(MATCH(Table_POSTInfo[[#This Row],[Line]],Table_POSTInspection[Line],0)),INDEX(Table_POSTInspection[Interior/ Exterior],MATCH(Table_RetroSummary[[#This Row],[Line Item]],Table_POSTInspection[Line],0)),Table_POSTInfo[[#This Row],[Interior/ Exterior]]),\n\" - \",\nIF(ISNUMBER(MATCH(Table_POSTInfo[[#This Row],[Line]],Table_POSTInspection[Line],0)),INDEX(Table_POSTInspection[Space Description],MATCH(Table_RetroSummary[[#This Row],[Line Item]],Table_POSTInspection[Line],0)),Table_POSTInfo[[#This Row],[Space Description]])),\n \"\"),\"\")","v":""},{"$f":"IFERROR(IF(Table_RetroSummary[[#This Row],[IsActive]]=\"\",\"\",Table_POSTInfo[[#This Row],[Fixture Description '[E']]]),\"\")","v":""},{"$f":"IFERROR(IF(Table_RetroSummary[[#This Row],[IsActive]]=\"\",\"\",Table_POSTInfo[[#This Row],['# Lamps/ Fixture '[E']]]),\"\")","v":""},{"$f":"IFERROR(IF(Table_RetroSummary[[#This Row],[IsActive]]=\"\",\"\",Table_POSTInfo[[#This Row],[Fixture/ Lamp Wattage '[E']]]),\"\")","v":""},{"$f":"IFERROR(IF(Table_RetroSummary[[#This Row],[IsActive]]=\"\",\"\",Table_POSTInfo[[#This Row],[Fixture Qty '[E']]]),\"\")","v":""},{"$f":"IFERROR(IF(Table_RetroSummary[[#This Row],[IsActive]],Table_RetroSummary[[#This Row],[Fixture/ Lamp Wattage '[E']]]*Table_RetroSummary[[#This Row],[E. Qty]],\"\"),\"\")","v":""},{"$f":"IFERROR(IF(Table_RetroSummary[[#This Row],[IsActive]]=\"\",\"\",Table_POSTInfo[[#This Row],[Fixture Wattage '[E']]]),\"\")","v":""},{"$f":"IFERROR(IF(Table_RetroSummary[[#This Row],[IsActive]],IFERROR(Table_RetroSummary[[#This Row],[Existing Fixture Wattage]]/1000*Table_RetroSummary[[#This Row],[OpHrs]]*Table_RetroSummary[[#This Row],[E. Qty]],0),\"\"),\"\")","v":""},{"$f":"IFERROR(IF(Table_RetroSummary[[#This Row],[IsActive]],IFERROR(VLOOKUP(RIGHT(Table_RetroSummary[[#This Row],[Existing Fixture]],LEN(Table_RetroSummary[[#This Row],[Existing Fixture]])-FIND(\" - \",Table_RetroSummary[[#This Row],[Existing Fixture]],FIND(\"]\",Table_RetroSummary[[#This Row],[Existing Fixture]],1))-2),Table_ControlType[],3,FALSE),0),\"\"),\"\")","v":""},{"$f":"IFERROR(IF(Table_RetroSummary[[#This Row],[IsActive]],IFERROR(Table_RetroSummary[[#This Row],[Existing Fixture Wattage]]/1000*Table_RetroSummary[[#This Row],[OpHrs]]*Table_RetroSummary[[#This Row],[E. Qty]]*Table_RetroSummary[[#This Row],[Existing CSF]]*(-1),0),\"\"),\"\")","v":""},{"$f":"IFERROR(Table_RetroSummary[[#This Row],[Existing Fixture kWh]]+Table_RetroSummary[[#This Row],[Existing Fixture (Existing Controls) kWh]],\"\")","v":""},{"$f":"IFERROR(IF(Table_RetroSummary[[#This Row],[IsActive]],IF(ISNUMBER(MATCH(Table_POSTInfo[[#This Row],[Line]],Table_POSTInspection[Line],0)),INDEX(Table_POSTInspection[Fixture Description '[P']],MATCH(Table_RetroSummary[[#This Row],[Line Item]],Table_POSTInspection[Line],0)),Table_POSTInfo[[#This Row],[Fixture Description '[P']]]),\"\"),\"\")","v":""},{"$f":"IFERROR(IF(Table_RetroSummary[[#This Row],[IsActive]],IF(ISNUMBER(MATCH(Table_POSTInfo[[#This Row],[Line]],Table_POSTInspection[Line],0)),INDEX(Table_POSTInspection['# Lamps/ Fixture '[P']],MATCH(Table_RetroSummary[[#This Row],[Line Item]],Table_POSTInspection[Line],0)),Table_POSTInfo[[#This Row],['# Lamps/ Fixture '[P']]]),\"\"),\"\")","v":""},{"$f":"IFERROR(IF(Table_RetroSummary[[#This Row],[IsActive]],IF(ISNUMBER(MATCH(Table_POSTInfo[[#This Row],[Line]],Table_POSTInspection[Line],0)),INDEX(Table_POSTInspection[Fixture/ Lamp Wattage '[P']],MATCH(Table_RetroSummary[[#This Row],[Line Item]],Table_POSTInspection[Line],0)),Table_POSTInfo[[#This Row],[Fixture/ Lamp Wattage '[P']]]),\"\"),\"\")","v":""},{"$f":"IFERROR(IF(Table_RetroSummary[[#This Row],[IsActive]],IF(ISNUMBER(MATCH(Table_POSTInfo[[#This Row],[Line]],Table_POSTInspection[Line],0)),INDEX(Table_POSTInspection[Fixture Qty '[P']],MATCH(Table_RetroSummary[[#This Row],[Line Item]],Table_POSTInspection[Line],0)),Table_POSTInfo[[#This Row],[Fixture Qty '[P']]]),\"\"),\"\")","v":""},{"$f":"IFERROR(IF(Table_RetroSummary[[#This Row],[IsActive]],Table_RetroSummary[[#This Row],[Fixture/ Lamp Wattage '[P']]]*Table_RetroSummary[[#This Row],[P. Qty]],\"\"),\"\")","v":""},{"$f":"IFERROR(IF(Table_RetroSummary[[#This Row],[IsActive]],IF(ISNUMBER(MATCH(Table_POSTInfo[[#This Row],[Line]],Table_POSTInspection[Line],0)),INDEX(Table_POSTInspection[Fixture Wattage '[P']],MATCH(Table_RetroSummary[[#This Row],[Line Item]],Table_POSTInspection[Line],0)),Table_POSTInfo[[#This Row],[Fixture Wattage '[P']]]),\"\"),\"\")","v":""},{"$f":"IFERROR(Table_RetroSummary[[#This Row],[Total '# Lamps '[P']]]+Table_RetroSummary[[#This Row],[Proposed Fixture Wattage]],\"\")","v":""},{"$f":"IFERROR(Table_RetroSummary[[#This Row],[Proposed Fixture Wattage]]/1000*Table_RetroSummary[[#This Row],[OpHrs]]*Table_RetroSummary[[#This Row],[P. Qty]],\"\")","v":""},{"$f":"IFERROR(IF(Table_RetroSummary[[#This Row],[IsActive]],IFERROR(VLOOKUP(RIGHT(Table_RetroSummary[[#This Row],[Proposed Fixture]],LEN(Table_RetroSummary[[#This Row],[Proposed Fixture]])-FIND(\" - \",Table_RetroSummary[[#This Row],[Proposed Fixture]],FIND(\"]\",Table_RetroSummary[[#This Row],[Proposed Fixture]],1))-2),Table_ControlType[],3, FALSE),0),\"\"),\"\")","v":""},{"$f":"IFERROR(IF(Table_RetroSummary[[#This Row],[IsActive]],IFERROR(Table_RetroSummary[[#This Row],[Proposed Fixture Wattage]]/1000*Table_RetroSummary[[#This Row],[OpHrs]]*Table_RetroSummary[[#This Row],[P. Qty]]*Table_RetroSummary[[#This Row],[Existing CSF]]*(-1),0),\"\"),\"\")","v":""},{"$f":"IFERROR(Table_RetroSummary[[#This Row],[Proposed Fixture kWh]]+Table_RetroSummary[[#This Row],[Proposed Fixture (Existing Controls) kWh]],\"\")","v":""},{"$f":"IFERROR(IF(Table_RetroSummary[[#This Row],[IsActive]],IFERROR(Table_RetroSummary[[#This Row],[Proposed Fixture Wattage]]/1000*Table_RetroSummary[[#This Row],[OpHrs]]*Table_RetroSummary[[#This Row],[P. Qty]]*Table_RetroSummary[[#This Row],[Proposed CSF]]*(-1),0),\"\"),\"\")","v":""},{"$f":"IFERROR(Table_RetroSummary[[#This Row],[Proposed Fixture kWh]]+Table_RetroSummary[[#This Row],[Proposed Fixture (Proposed Controls) kWh]],\"\")","v":""},{"$f":"IFERROR(IF(Table_RetroSummary[[#This Row],[IsActive]],IF(ISNUMBER(MATCH(Table_POSTInfo[[#This Row],[Line]],Table_POSTInspection[Line],0)),INDEX(Table_POSTInspection[DLC or ES Certification '[P']],MATCH(Table_RetroSummary[[#This Row],[Line Item]],Table_POSTInspection[Line],0)),Table_POSTInfo[[#This Row],[DLC or ES Certification '[P']]]),\"\"),\"\")","v":""},null,{"$f":"IFERROR(IF(Table_RetroSummary[[#This Row],[IsActive]],\nIF(AND(RIGHT(Table_RetroSummary[[#This Row],[Existing Fixture]],LEN(Table_RetroSummary[[#This Row],[Existing Fixture]])-FIND(\":\",Table_RetroSummary[[#This Row],[Existing Fixture]],1)-1)<>Table_RetroSummary[[#This Row],[Proposed Fixture]],MID(Table_RetroSummary[[#This Row],[Existing Fixture]],FIND(\": \",Table_RetroSummary[[#This Row],[Existing Fixture]],1)+2,FIND(\"]\",Table_RetroSummary[[#This Row],[Existing Fixture]],1))=LEFT(Table_RetroSummary[[#This Row],[Proposed Fixture]],FIND(\"]\",Table_RetroSummary[[#This Row],[Proposed Fixture]],1))),\n  \"Controls Only\",\n  IF(Table_POSTInfo[[#This Row],[DLC or ES Certification '[P']]]<>\"\",\n    IF(ISNUMBER(FIND(\"LED Tube\",Table_RetroSummary[[#This Row],[Proposed Fixture]],1)),\n      \"LED Re-Lamp\",\n      IF(AND(Table_RetroSummary[[#This Row],[Existing Overall kWh]]>Table_RetroSummary[[#This Row],[Proposed Overall kWh (Existing Controls)]],ISNUMBER(FIND(\"LED\",Table_RetroSummary[[#This Row],[Proposed Fixture]],1))),\n        IF(Table_POSTInfo[[#This Row],[Interior/ Exterior]]=\"Exterior\",\n          \"Exterior LED Fixture\",\n          \"Interior LED Fixture\"),\n        \"Ineligible Fixture\")),\n    \"Ineligible Fixture\")),\n\"\"),\"\")","v":""},{"$f":"IFERROR(VLOOKUP(Table_RetroSummary[[#This Row],[Fixture Measure Description]],Table_FixtureRate[],2,FALSE),\"\")","v":""},{"$f":"IFERROR(IF(Table_RetroSummary[[#This Row],[IsActive]],IF(Table_RetroSummary[[#This Row],[Fixture Measure Description]]=\"Ineligible Fixture\",0,ROUND(Table_RetroSummary[[#This Row],[Fixture Rebate (per kW)]]*(Table_RetroSummary[[#This Row],[Existing Fixture Wattage]]*Table_RetroSummary[[#This Row],[E. Qty]]-Table_RetroSummary[[#This Row],[Proposed Fixture Wattage]]*Table_RetroSummary[[#This Row],[P. Qty]])/1000,2)),\"\"),\"\")","v":""},{"$f":"IFERROR(IF(Table_RetroSummary[[#This Row],[Fixture Measure Description]]=\"Ineligible Fixture\",0,ROUND(IF(ProjectCost_Total=0,300000,ProjectCost_Total)*Table_RetroSummary[[#This Row],[Fixture Rebate]]/SUM(Table_RetroSummary[Fixture Rebate],Table_RetroSummary[Controls Rebate]),2)),\"\")","v":""},{"$f":"IFERROR(IF(Table_RetroSummary[[#This Row],[IsActive]],IF(Table_RetroSummary[[#This Row],[Fixture Measure Description]]=\"Ineligible Fixture\",0,Table_RetroSummary[[#This Row],[Existing Overall kWh]]-Table_RetroSummary[[#This Row],[Proposed Overall kWh (Existing Controls)]]),\"\"),\"\")","v":""},{"$f":"IFERROR(IF(Table_RetroSummary[[#This Row],[IsActive]],IF(Table_RetroSummary[[#This Row],[Fixture Measure Description]]=\"Ineligible Fixture\",0,(Table_RetroSummary[[#This Row],[Existing Fixture kWh]]-Table_RetroSummary[[#This Row],[Proposed Fixture kWh]])/Table_RetroSummary[[#This Row],[OpHrs]]*Table_RetroSummary[[#This Row],[CF (Ltg)]]*Table_RetroSummary[[#This Row],[DF (Ltg)]]),\"\"),\"\")","v":""},null,{"$f":"IFERROR(\n  IF(OR(Table_RetroSummary[[#This Row],[Fixture Measure Description]]=\"\",Table_RetroSummary[[#This Row],[Fixture Measure Description]]=\"Ineligible Fixture\"),\n    \"\",\n    IFERROR(VLOOKUP(RIGHT(Table_RetroSummary[[#This Row],[Existing Fixture]],LEN(Table_RetroSummary[[#This Row],[Existing Fixture]])-FIND(\" - \",Table_RetroSummary[[#This Row],[Existing Fixture]],FIND(\"]\",Table_RetroSummary[[#This Row],[Existing Fixture]],1))-2),Table_ControlType[],2,FALSE),\"None\")\n    & \" - \" &\n    IFERROR(VLOOKUP(RIGHT(Table_RetroSummary[[#This Row],[Proposed Fixture]],LEN(Table_RetroSummary[[#This Row],[Proposed Fixture]])-FIND(\" - \",Table_RetroSummary[[#This Row],[Proposed Fixture]],FIND(\"]\",Table_RetroSummary[[#This Row],[Proposed Fixture]],1))-2),Table_ControlType[],2, FALSE),None)),\n\"\")","v":""},{"$f":"IFERROR(VLOOKUP(Table_RetroSummary[[#This Row],[Controls Measure Description]],Table_ControlRate[],2,FALSE),\"\")","v":""},{"$f":"IFERROR(IF(Table_RetroSummary[[#This Row],[IsActive]],IF(Table_RetroSummary[[#This Row],[Controls Measure Description]]=\"\",0,ROUND(Table_RetroSummary[[#This Row],[Controls Rebate (per Fixt Watt)]]*Table_RetroSummary[[#This Row],[Proposed Fixture Wattage]]*Table_RetroSummary[[#This Row],[P. Qty]],2)),\"\"),\"\")","v":""},{"$f":"IFERROR(IF(Table_RetroSummary[[#This Row],[Fixture Measure Description]]=\"Ineligible Fixture\",0,ROUND(IF(ProjectCost_Total=0,300000,ProjectCost_Total)*Table_RetroSummary[[#This Row],[Controls Rebate]]/SUM(Table_RetroSummary[Fixture Rebate],Table_RetroSummary[Controls Rebate]),2)),\"\")","v":""},{"$f":"IFERROR(IF(Table_RetroSummary[[#This Row],[IsActive]],IF(Table_RetroSummary[[#This Row],[Controls Measure Description]]=\"\",0,(Table_RetroSummary[[#This Row],[Proposed Fixture (Existing Controls) kWh]]-Table_RetroSummary[[#This Row],[Proposed Fixture (Proposed Controls) kWh]])),\"\"),\"\")","v":""},{"$f":"IFERROR(IF(Table_RetroSummary[[#This Row],[IsActive]],IF(Table_RetroSummary[[#This Row],[Controls Measure Description]]=\"\",0,(Table_RetroSummary[[#This Row],[Proposed Fixture (Existing Controls) kWh]]-Table_RetroSummary[[#This Row],[Proposed Fixture (Proposed Controls) kWh]])/Table_RetroSummary[[#This Row],[OpHrs]]*Table_RetroSummary[[#This Row],[CF (Ltg)]]*Table_RetroSummary[[#This Row],[DF (Ltg)]]),\"\"),\"\")","v":""},null,{"$f":"IFERROR(IF(NOT(ISNUMBER(Table_RetroSummary[[#This Row],[Fixture Rebate]])),\"\",IF(MIN(IF(SUM(Table_RetroSummary[Fixture Cost],Table_RetroSummary[Controls Cost])<0,0,SUM(Table_RetroSummary[Fixture Cost],Table_RetroSummary[Controls Cost])),SUM(Table_RetroSummary[Fixture Rebate],Table_RetroSummary[Controls Rebate]))>300000,300000/MIN(IF(SUM(Table_RetroSummary[Fixture Cost],Table_RetroSummary[Controls Cost])<0,0,SUM(Table_RetroSummary[Fixture Cost],Table_RetroSummary[Controls Cost])),SUM(Table_RetroSummary[Fixture Rebate],Table_RetroSummary[Controls Rebate]))*MIN(IF(SUM(Table_RetroSummary[Fixture Cost],Table_RetroSummary[Controls Cost])<0,0,SUM(Table_RetroSummary[Fixture Cost],Table_RetroSummary[Controls Cost])),Table_RetroSummary[[#This Row],[Fixture Rebate]]+IF(Table_RetroSummary[[#This Row],[Controls Rebate]]=\"\",0,Table_RetroSummary[[#This Row],[Controls Rebate]])),MIN(IF(SUM(Table_RetroSummary[Fixture Cost],Table_RetroSummary[Controls Cost])<0,0,SUM(Table_RetroSummary[Fixture Cost],Table_RetroSummary[Controls Cost])),Table_RetroSummary[[#This Row],[Fixture Rebate]]+IF(Table_RetroSummary[[#This Row],[Controls Rebate]]=\"\",0,Table_RetroSummary[[#This Row],[Controls Rebate]])))),\"\")","v":""},{"$f":"IFERROR(IF(Table_RetroSummary[[#This Row],[Fixture Cost]]=\"\",\"\",Table_RetroSummary[[#This Row],[Fixture Cost]]+IF(Table_RetroSummary[[#This Row],[Controls Cost]]=\"\",0,Table_RetroSummary[[#This Row],[Controls Cost]])),\"\")","v":""},{"$f":"IFERROR(IF(Table_RetroSummary[[#This Row],[IsActive]],IF(Table_POSTInfo[[#This Row],[Interior/ Exterior]]=\"Interior\",IFERROR((Table_RetroSummary[[#This Row],[Annual Fixture Savings (kWh)]]+Table_RetroSummary[[#This Row],[Annual Control Savings (kWh)]])*(Table_RetroSummary[[#This Row],[EIF]]-1),0),0),\"\"),\"\")","v":""},{"$f":"IFERROR(IF(Table_RetroSummary[[#This Row],[IsActive]],IF(Table_POSTInfo[[#This Row],[Interior/ Exterior]]=\"Interior\",IFERROR((Table_RetroSummary[[#This Row],[Fixture kW Reduction]]+Table_RetroSummary[[#This Row],[Control kW Reduction]]/(Table_RetroSummary[[#This Row],[CF (Ltg)]]*Table_RetroSummary[[#This Row],[DF (Ltg)]]))*(Table_RetroSummary[[#This Row],[DIF]]-1)*Table_RetroSummary[[#This Row],[CF (HVAC)]]*Table_RetroSummary[[#This Row],[DF (HVAC)]],0),0),\"\"),\"\")","v":""},{"$f":"IFERROR(IF(Table_RetroSummary[[#This Row],[IsActive]],IF(NOT(ISNUMBER(Table_RetroSummary[[#This Row],[Fixture Rebate]])),\"\",ROUND(Table_RetroSummary[[#This Row],[Annual Fixture Savings (kWh)]]+Table_RetroSummary[[#This Row],[Annual Control Savings (kWh)]],0)),\"\"),\"\")","v":""},{"$f":"IFERROR(IF(Table_RetroSummary[[#This Row],[IsActive]],IF(NOT(ISNUMBER(Table_RetroSummary[[#This Row],[Fixture Rebate]])),\"\",ROUND(Table_RetroSummary[[#This Row],[Fixture kW Reduction]]+Table_RetroSummary[[#This Row],[Control kW Reduction]],3)),\"\"),\"\")","v":""},{"$f":"IFERROR(IF(Table_RetroSummary[[#This Row],[IsActive]],IF(NOT(ISNUMBER(Table_RetroSummary[[#This Row],[Fixture Rebate]])),\"\",ROUND(Table_RetroSummary[[#This Row],[Fixture Energy Savings (kWh)]]+Table_RetroSummary[[#This Row],[Induced HVAC Energy Savings (kWh)]],0)),\"\"),\"\")","v":""},{"$f":"IFERROR(IF(Table_RetroSummary[[#This Row],[IsActive]],IF(NOT(ISNUMBER(Table_RetroSummary[[#This Row],[Fixture Rebate]])),\"\",ROUND(Table_RetroSummary[[#This Row],[Fixture Demand Savings (kW)]]+Table_RetroSummary[[#This Row],[Induced HVAC Demand Savings (kW)]],3)),\"\"),\"\")","v":""}]

{"sheet":"Retrofit Processing","index":18,"n_rows":6,"n_cols":37,"rows_kept":6,"cut":false,"hidden":true,"merged":[]}
[{"$f":"'Project Retrofit Summary'!AK1","v":"MeasureName"},"skip",{"$f":"'Project Retrofit Summary'!AR1","v":"LtgControl_Name"},{"$f":"'Project Retrofit Summary'!L1","v":"Existing_Fixture_Name"},{"$f":"'Project Retrofit Summary'!V1","v":"Proposed_Fixture_Name"},{"$f":"'Project Retrofit Summary'!AI1","v":"Model#"},{"$f":"'Project Retrofit Summary'!D1","v":"AnnualOperatingHours  "},{"$f":"'Project Retrofit Summary'!E1","v":"InteractiveFactor"},{"$f":"'Project Retrofit Summary'!F1","v":"Demand Interactive Factor"},{"$f":"'Project Retrofit Summary'!G1","v":"CoincidenceFactor"},{"$f":"'Project Retrofit Summary'!H1","v":"Diversity Factor"},{"$f":"'Project Retrofit Summary'!I1","v":"CFhvac"},{"$f":"'Project Retrofit Summary'!J1","v":"DFhvac"},{"$f":"'Project Retrofit Summary'!M1","v":"Existing_Lamp_Qty"},{"$f":"'Project Retrofit Summary'!N1","v":"Existing_Lamp_Wattage"},{"$f":"'Project Retrofit Summary'!O1","v":"Existing_Fixture_Qty"},{"$f":"'Project Retrofit Summary'!Q1","v":"Existing_Fixture_Wattage"},{"$f":"'Project Retrofit Summary'!R1","v":"Existing_Space_kWh"},{"$f":"'Project Retrofit Summary'!W1","v":"Proposed_Lamp_Qty"},{"$f":"'Project Retrofit Summary'!X1","v":"Proposed_Lamp_Wattage"},{"$f":"'Project Retrofit Summary'!Y1","v":"Proposed_Fixture_Qty"},{"$f":"'Project Retrofit Summary'!AA1","v":"Proposed_Fixture_Wattage"},{"$f":"'Project Retrofit Summary'!AC1","v":"Proposed_Space_kWh"},{"$f":"'Project Retrofit Summary'!AM1","v":"LtgFixture_Rebate"},{"$f":"'Project Retrofit Summary'!AN1","v":"LtgFixture_Inc_Cost"},{"$f":"'Project Retrofit Summary'!AO1","v":"LtgFixture_kWh_Savings"},{"$f":"'Project Retrofit Summary'!AT1","v":"LtgControl_Rebate"},{"$f":"'Project Retrofit Summary'!AU1","v":"LtgControl_Inc_Cost"},{"$f":"'Project Retrofit Summary'!AV1","v":"LtgControl_kWh_Savings"},{"$f":"'Project Retrofit Summary'!AY1","v":"Incentive_Customer"},{"$f":"'Project Retrofit Summary'!AZ1","v":"MeasureCost"},{"$f":"'Project Retrofit Summary'!BC1","v":"Ltg_Measure_kWh_Savings"},{"$f":"'Project Retrofit Summary'!BD1","v":"Ltg_Measure_kW_Savings"},{"$f":"'Project Retrofit Summary'!BA1","v":"INTERIOR KWH SAVINGS"},{"$f":"'Project Retrofit Summary'!BB1","v":"INTERIOR KW SAVINGS"},{"$f":"'Project Retrofit Summary'!BE1","v":"kWhSavings"},{"$f":"'Project Retrofit Summary'!BF1","v":"DemandSavingskW"}]
["IsActive","FALSE"]
[1,2,3,4,5,6,7,8,9,10,11,12,13,14,15,16,17,18,19,20,21,22,23,24,25,26,27,28,29,30,31,32,33,34,35,36,37]
["Fixture Measure Description","Complete Fixture Name","Controls Measure Description","Existing Fixture","Proposed Fixture","DLC or Energy Star Certification","Average of OpHrs","Average of EIF","Average of DIF","Average of CF (Ltg)","Average of DF (Ltg)","Average of CF (HVAC)","Average of DF (HVAC)","Average of # Lamps/ Fixture [E]","Average of Fixture/ Lamp Wattage [E]","Sum of E. Qty","Average of Existing Fixture Wattage","Sum of Existing Fixture kWh","Average of # Lamps/ Fixture [P]","Average of Fixture/ Lamp Wattage [P]","Sum of P. Qty","Average of Proposed Fixture Wattage","Sum of Proposed Fixture kWh","Sum of Fixture Rebate","Sum of Fixture Cost","Sum of Annual Fixture Savings (kWh)","Sum of Controls Rebate","Sum of Controls Cost","Sum of Annual Control Savings (kWh)","Sum of Total Rebate","Sum of Total Cost","Sum of Fixture Energy Savings (kWh)","Sum of Fixture Demand Savings (kW)","Sum of Induced HVAC Energy Savings (kWh)","Sum of Induced HVAC Demand Savings (kW)","Sum of Total Energy Savings (kWh)"]
["","","","","",null,{"$error":"#DIV/0!"},{"$error":"#DIV/0!"},{"$error":"#DIV/0!"},{"$error":"#DIV/0!"},{"$error":"#DIV/0!"},{"$error":"#DIV/0!"},{"$error":"#DIV/0!"},{"$error":"#DIV/0!"},{"$error":"#DIV/0!"},0,{"$error":"#DIV/0!"},0,{"$error":"#DIV/0!"},{"$error":"#DIV/0!"},0,{"$error":"#DIV/0!"},0,0,0,0,0,0,0,0,0,0,0,0,0,0]
["Grand Total",null,null,null,null,null,{"$error":"#DIV/0!"},{"$error":"#DIV/0!"},{"$error":"#DIV/0!"},{"$error":"#DIV/0!"},{"$error":"#DIV/0!"},{"$error":"#DIV/0!"},{"$error":"#DIV/0!"},{"$error":"#DIV/0!"},{"$error":"#DIV/0!"},0,{"$error":"#DIV/0!"},0,{"$error":"#DIV/0!"},{"$error":"#DIV/0!"},0,{"$error":"#DIV/0!"},0,0,0,0,0,0,0,0,0,0,0,0,0,0]

{"sheet":"COMMON -->","index":19,"n_rows":0,"n_cols":0,"rows_kept":0,"cut":false,"hidden":true,"merged":[]}

{"sheet":"Inspection Photos","index":20,"n_rows":437,"n_cols":23,"rows_kept":437,"cut":false,"hidden":true,"merged":[[4,21,18,26],[4,0,18,0],[4,1,18,6],[4,7,18,12],[4,14,18,14],[4,15,18,20],[3,1,3,2],[3,3,3,6],[3,8,3,12],[3,15,3,16],[3,17,3,20],[3,22,3,26],[56,22,56,26],[56,3,56,6],[56,8,56,12],[56,17,56,20],[57,1,57,2],[57,3,57,6],[57,8,57,12],[57,15,57,16],[57,17,57,20],[57,22,57,26],[76,21,90,26],[92,22,92,26],[92,3,92,6],[92,8,92,12],[92,17,92,20],[93,1,93,2],[93,22,93,26],[74,22,74,26],[74,3,74,6],[74,8,74,12],[74,17,74,20],[75,1,75,2],[112,21,126,26],[128,22,128,26],[128,3,128,6],[128,8,128,12],[128,17,128,20],[129,1,129,2],[129,22,129,26],[110,22,110,26],[110,3,110,6],[110,8,110,12],[110,17,110,20],[111,1,111,2],[148,21,162,26],[164,22,164,26],[164,3,164,6],[164,8,164,12],[164,17,164,20],[165,1,165,2],[165,22,165,26],[146,22,146,26],[146,3,146,6],[146,8,146,12],[146,17,146,20],[147,1,147,2],[184,21,198,26],[200,22,200,26],[200,3,200,6],[200,8,200,12],[200,17,200,20],[201,1,201,2],[201,22,201,26],[182,22,182,26],[182,3,182,6],[182,8,182,12],[182,17,182,20],[183,1,183,2],[254,22,254,26],[254,3,254,6],[254,8,254,12],[254,17,254,20],[255,1,255,2],[220,21,234,26],[236,22,236,26],[236,3,236,6],[236,8,236,12],[236,17,236,20],[237,1,237,2],[237,22,237,26],[310,21,324,26],[310,0,324,0],[310,1,324,6],[310,7,324,12],[310,14,324,14],[310,15,324,20],[292,0,306,0],[292,1,306,6],[292,7,306,12],[292,14,306,14],[309,1,309,2],[309,3,309,6],[309,8,309,12],[309,15,309,16],[309,17,309,20],[309,22,309,26],[292,15,306,20],[292,21,306,26],[308,3,308,6],[308,8,308,12],[308,17,308,20],[308,22,308,26],[362,22,362,26],[362,3,362,6],[362,8,362,12],[362,17,362,20],[363,1,363,2],[363,3,363,6],[363,8,363,12],[363,15,363,16],[363,17,363,20],[363,22,363,26],[0,1,0,4],[0,15,0,18],[2,3,2,6],[2,8,2,12],[2,17,2,20],[2,22,2,26],[418,21,432,26],[434,22,434,26],[436,21,450,26],[434,3,434,6],[434,8,434,12],[434,17,434,20],[435,1,435,2],[400,21,414,26],[416,22,416,26],[416,3,416,6],[416,8,416,12],[416,17,416,20],[417,1,417,2],[382,21,396,26],[398,22,398,26],[398,3,398,6],[398,8,398,12],[398,17,398,20],[20,3,20,6],[20,8,20,12],[20,17,20,20],[20,22,20,26],[21,1,21,2],[21,3,21,6],[21,8,21,12],[21,15,21,16],[21,17,21,20],[21,22,21,26],[39,17,39,20],[39,22,39,26],[40,0,54,0],[40,1,54,6],[40,7,54,12],[40,14,54,14],[40,15,54,20],[40,21,54,26],[22,15,36,20],[22,21,36,26],[38,3,38,6],[38,8,38,12],[38,17,38,20],[38,22,38,26],[39,1,39,2],[39,3,39,6],[39,8,39,12],[39,15,39,16],[22,0,36,0],[22,1,36,6],[22,7,36,12],[22,14,36,14],[58,0,72,0],[58,1,72,6],[58,7,72,12],[58,14,72,14],[58,15,72,20],[58,21,72,26],[75,3,75,6],[75,8,75,12],[75,15,75,16],[75,17,75,20],[75,22,75,26],[76,0,90,0],[76,1,90,6],[76,7,90,12],[76,14,90,14],[76,15,90,20],[93,3,93,6],[93,8,93,12],[93,15,93,16],[93,17,93,20],[94,0,108,0],[94,1,108,6],[94,7,108,12],[94,14,108,14],[94,15,108,20],[94,21,108,26],[111,3,111,6],[111,8,111,12],[111,15,111,16],[111,17,111,20],[111,22,111,26],[112,0,126,0],[112,1,126,6],[112,7,126,12],[112,14,126,14],[112,15,126,20],[129,3,129,6],[129,8,129,12],[129,15,129,16],[129,17,129,20],[130,0,144,0],[130,1,144,6],[130,7,144,12],[130,14,144,14],[130,15,144,20],[130,21,144,26],[147,3,147,6],[147,8,147,12],[147,15,147,16],[147,17,147,20],[147,22,147,26],[148,0,162,0],[148,1,162,6],[148,7,162,12],[148,14,162,14],[148,15,162,20],[165,3,165,6],[165,8,165,12],[165,15,165,16],[165,17,165,20],[166,0,180,0],[166,1,180,6],[166,7,180,12],[166,14,180,14],[166,15,180,20],[166,21,180,26],[183,3,183,6],[183,8,183,12],[183,15,183,16],[183,17,183,20],[183,22,183,26],[184,0,198,0],[184,1,198,6],[184,7,198,12],[184,14,198,14],[184,15,198,20],[201,3,201,6],[201,8,201,12],[201,15,201,16],[201,17,201,20],[202,0,216,0],[202,1,216,6],[202,7,216,12],[202,14,216,14],[202,15,216,20],[202,21,216,26],[219,3,219,6],[219,8,219,12],[219,15,219,16],[219,17,219,20],[219,22,219,26],[218,22,218,26],[218,3,218,6],[218,8,218,12],[218,17,218,20],[219,1,219,2],[220,0,234,0],[220,1,234,6],[220,7,234,12],[220,14,234,14],[220,15,234,20],[237,3,237,6],[237,8,237,12],[237,15,237,16],[237,17,237,20],[238,0,252,0],[238,1,252,6],[238,7,252,12],[238,14,252,14],[238,15,252,20],[238,21,252,26],[274,0,288,0],[274,1,288,6],[274,7,288,12],[274,15,288,20],[255,3,255,6],[255,8,255,12],[255,15,255,16],[255,17,255,20],[255,22,255,26],[256,0,270,0],[256,1,270,6],[256,7,270,12],[256,14,270,14],[256,15,270,20],[274,21,288,26],[274,14,288,14],[273,22,273,26],[256,21,270,26],[272,22,272,26],[272,3,272,6],[272,8,272,12],[272,17,272,20],[273,1,273,2],[291,1,291,2],[291,3,291,6],[291,8,291,12],[291,15,291,16],[291,17,291,20],[291,22,291,26],[273,3,273,6],[273,8,273,12],[273,15,273,16],[273,17,273,20],[290,22,290,26],[290,3,290,6],[290,8,290,12],[290,17,290,20],[326,3,326,6],[326,8,326,12],[326,17,326,20],[326,22,326,26],[327,1,327,2],[327,3,327,6],[327,8,327,12],[327,15,327,16],[327,17,327,20],[327,22,327,26],[345,17,345,20],[345,22,345,26],[346,0,360,0],[346,1,360,6],[346,7,360,12],[346,14,360,14],[346,15,360,20],[346,21,360,26],[328,15,342,20],[328,21,342,26],[344,3,344,6],[344,8,344,12],[344,17,344,20],[344,22,344,26],[345,1,345,2],[345,3,345,6],[345,8,345,12],[345,15,345,16],[328,0,342,0],[328,1,342,6],[328,7,342,12],[328,14,342,14],[364,0,378,0],[364,1,378,6],[364,7,378,12],[364,14,378,14],[364,15,378,20],[364,21,378,26],[399,15,399,16],[399,17,399,20],[399,22,399,26],[381,22,381,26],[380,22,380,26],[380,3,380,6],[380,8,380,12],[380,17,380,20],[381,1,381,2],[400,0,414,0],[400,1,414,6],[400,7,414,12],[400,14,414,14],[400,15,414,20],[381,3,381,6],[381,8,381,12],[381,15,381,16],[381,17,381,20],[382,0,396,0],[382,1,396,6],[382,7,396,12],[382,14,396,14],[382,15,396,20],[399,1,399,2],[0,19,0,26],[0,5,0,12],[435,3,435,6],[435,8,435,12],[435,15,435,16],[435,17,435,20],[435,22,435,26],[436,0,450,0],[436,1,450,6],[436,7,450,12],[436,14,450,14],[436,15,450,20],[417,3,417,6],[417,8,417,12],[417,15,417,16],[417,17,417,20],[417,22,417,26],[418,0,432,0],[418,1,432,6],[418,7,432,12],[418,14,432,14],[418,15,432,20],[399,3,399,6],[399,8,399,12]]}
[null,"Select Measures",null,null,null,"Lighting Pre-Photos",null,null,null,null,null,null,null,null,null,"Select Measures",null,null,null,"Lighting Post-Photos"]
[]
[null,null,null,"Location",null,null,null,"Qty","Fixture Description",null,null,null,null,null,null,null,null,"Location",null,null,null,"Qty","Fixture Description"]
["Line",null,null,{"$f":"IF(OR($A5=\"\",$A5=\"#\"),\"\",IF($B$1=\"Pre-Submitted Lighting Measures\",_xlfn.XLOOKUP($A5,Table_PREInfo[Line],Table_PREInfo[Space Description]),IF($B$1=\"Pre-Approved Lighting Measures\",_xlfn.XLOOKUP($A5,Table_PREInspection[Line],Table_PREInspection[Space Description]),\"\")))","v":""},{"$f":"IF($A5=\"\",\"\",IF($B$1=\"Pre-Submitted Lighting Measures\",VLOOKUP($A5,#REF!,6,FALSE),\"\"))","v":""},{"$f":"IF($A5=\"\",\"\",IF($B$1=\"Pre-Submitted Lighting Measures\",VLOOKUP($A5,#REF!,6,FALSE),\"\"))","v":""},{"$f":"IF($A5=\"\",\"\",IF($B$1=\"Pre-Submitted Lighting Measures\",VLOOKUP($A5,#REF!,6,FALSE),\"\"))","v":""},{"$f":"IF(OR($A5=\"\",$A5=\"#\"),\"\",IF($B$1=\"Pre-Submitted Lighting Measures\",_xlfn.XLOOKUP($A5,Table_PREInfo[Line],Table_PREInfo[Fixture Qty '[E']]),IF($B$1=\"Pre-Approved Lighting Measures\",_xlfn.XLOOKUP($A5,Table_PREInspection[Line],Table_PREInspection[Fixture Qty '[E']]),\"\")))","v":""},{"$f":"IF(OR($A5=\"\",$A5=\"#\"),\"\",IF($B$1=\"Pre-Submitted Lighting Measures\",_xlfn.XLOOKUP($A5,Table_PREInfo[Line],Table_PREInfo[Fixture Description '[E']]),IF($B$1=\"Pre-Approved Lighting Measures\",_xlfn.XLOOKUP($A5,Table_PREInspection[Line],Table_PREInspection[Fixture Description '[E']]),\"\")))","v":""},null,null,null,null,null,"Line",null,null,{"$f":"IF(OR($O5=\"\",$O5=\"#\"),\"\",IF($P$1=\"Post-Submitted Lighting Measures\",_xlfn.XLOOKUP($O5,Table_POSTInfo[Line],Table_POSTInfo[Space Description]),IF($P$1=\"Post-Approved Lighting Measures\",_xlfn.XLOOKUP($O5,Table_POSTInspection[Line],Table_POSTInspection[Space Description]),\"\")))","v":""},{"$f":"IF($A5=\"\",\"\",IF($B$1=\"Pre-Submitted Lighting Measures\",VLOOKUP($A5,#REF!,6,FALSE),\"\"))","v":""},{"$f":"IF($A5=\"\",\"\",IF($B$1=\"Pre-Submitted Lighting Measures\",VLOOKUP($A5,#REF!,6,FALSE),\"\"))","v":""},{"$f":"IF($A5=\"\",\"\",IF($B$1=\"Pre-Submitted Lighting Measures\",VLOOKUP($A5,#REF!,6,FALSE),\"\"))","v":""},{"$f":"IF(OR($O5=\"\",$O5=\"#\"),\"\",IF($P$1=\"Post-Submitted Lighting Measures\",_xlfn.XLOOKUP($O5,Table_POSTInfo[Line],Table_POSTInfo[Fixture Qty '[P']]),IF($P$1=\"Post-Approved Lighting Measures\",_xlfn.XLOOKUP($A5,Table_POSTInspection[Line],Table_POSTInspection[Fixture Qty '[P']]),\"\")))","v":""},{"$f":"IF(OR($O5=\"\",$O5=\"#\"),\"\",IF($P$1=\"Post-Submitted Lighting Measures\",_xlfn.XLOOKUP($O5,Table_POSTInfo[Line],Table_POSTInfo[Fixture Description '[P']]),IF($P$1=\"Post-Approved Lighting Measures\",_xlfn.XLOOKUP($O5,Table_POSTInspection[Line],Table_POSTInspection[Fixture Description '[P']]),\"\")))","v":""}]
["#",null,null,null,null,null,null,null,null,null,null,null,null,null,{"$f":"A5","v":"#"}]
[]
[]
[]
[]
[]
[]
[]
[]
[]
[]
[]
[]
[]
[]
[]
[null,null,null,"Location",null,null,null,"Qty","Fixture Description",null,null,null,null,null,null,null,null,"Location",null,null,null,"Qty","Fixture Description"]
["Line",null,null,{"$f":"IF(OR($A23=\"\",$A23=\"#\"),\"\",IF($B$1=\"Pre-Submitted Lighting Measures\",_xlfn.XLOOKUP($A23,Table_PREInfo[Line],Table_PREInfo[Space Description]),IF($B$1=\"Pre-Approved Lighting Measures\",_xlfn.XLOOKUP($A23,Table_PREInspection[Line],Table_PREInspection[Space Description]),\"\")))","v":""},{"$f":"IF($A23=\"\",\"\",IF($B$1=\"Pre-Submitted Lighting Measures\",VLOOKUP($A23,#REF!,6,FALSE),\"\"))","v":""},{"$f":"IF($A23=\"\",\"\",IF($B$1=\"Pre-Submitted Lighting Measures\",VLOOKUP($A23,#REF!,6,FALSE),\"\"))","v":""},{"$f":"IF($A23=\"\",\"\",IF($B$1=\"Pre-Submitted Lighting Measures\",VLOOKUP($A23,#REF!,6,FALSE),\"\"))","v":""},{"$f":"IF(OR($A23=\"\",$A23=\"#\"),\"\",IF($B$1=\"Pre-Submitted Lighting Measures\",_xlfn.XLOOKUP($A23,Table_PREInfo[Line],Table_PREInfo[Fixture Qty '[E']]),IF($B$1=\"Pre-Approved Lighting Measures\",_xlfn.XLOOKUP($A23,Table_PREInspection[Line],Table_PREInspection[Fixture Qty '[E']]),\"\")))","v":""},{"$f":"IF(OR($A23=\"\",$A23=\"#\"),\"\",IF($B$1=\"Pre-Submitted Lighting Measures\",_xlfn.XLOOKUP($A23,Table_PREInfo[Line],Table_PREInfo[Fixture Description '[E']]),IF($B$1=\"Pre-Approved Lighting Measures\",_xlfn.XLOOKUP($A23,Table_PREInspection[Line],Table_PREInspection[Fixture Description '[E']]),\"\")))","v":""},null,null,null,null,null,"Line",null,null,{"$f":"IF(OR($O23=\"\",$O23=\"#\"),\"\",IF($P$1=\"Post-Submitted Lighting Measures\",_xlfn.XLOOKUP($O23,Table_POSTInfo[Line],Table_POSTInfo[Space Description]),IF($P$1=\"Post-Approved Lighting Measures\",_xlfn.XLOOKUP($O23,Table_POSTInspection[Line],Table_POSTInspection[Space Description]),\"\")))","v":""},{"$f":"IF($A23=\"\",\"\",IF($B$1=\"Pre-Submitted Lighting Measures\",VLOOKUP($A23,#REF!,6,FALSE),\"\"))","v":""},{"$f":"IF($A23=\"\",\"\",IF($B$1=\"Pre-Submitted Lighting Measures\",VLOOKUP($A23,#REF!,6,FALSE),\"\"))","v":""},{"$f":"IF($A23=\"\",\"\",IF($B$1=\"Pre-Submitted Lighting Measures\",VLOOKUP($A23,#REF!,6,FALSE),\"\"))","v":""},{"$f":"IF(OR($O23=\"\",$O23=\"#\"),\"\",IF($P$1=\"Post-Submitted Lighting Measures\",_xlfn.XLOOKUP($O23,Table_POSTInfo[Line],Table_POSTInfo[Fixture Qty '[P']]),IF($P$1=\"Post-Approved Lighting Measures\",_xlfn.XLOOKUP($A23,Table_POSTInspection[Line],Table_POSTInspection[Fixture Qty '[P']]),\"\")))","v":""},{"$f":"IF(OR($O23=\"\",$O23=\"#\"),\"\",IF($P$1=\"Post-Submitted Lighting Measures\",_xlfn.XLOOKUP($O23,Table_POSTInfo[Line],Table_POSTInfo[Fixture Description '[P']]),IF($P$1=\"Post-Approved Lighting Measures\",_xlfn.XLOOKUP($O23,Table_POSTInspection[Line],Table_POSTInspection[Fixture Description '[P']]),\"\")))","v":""}]
["#",null,null,null,null,null,null,null,null,null,null,null,null,null,{"$f":"A23","v":"#"}]
[]
[]
[]
[]
[]
[]
[]
[]
[]
[]
[]
[]
[]
[]
[]
[null,null,null,"Location",null,null,null,"Qty","Fixture Description",null,null,null,null,null,null,null,null,"Location",null,null,null,"Qty","Fixture Description"]
["Line",null,null,{"$f":"IF(OR($A41=\"\",$A41=\"#\"),\"\",IF($B$1=\"Pre-Submitted Lighting Measures\",_xlfn.XLOOKUP($A41,Table_PREInfo[Line],Table_PREInfo[Space Description]),IF($B$1=\"Pre-Approved Lighting Measures\",_xlfn.XLOOKUP($A41,Table_PREInspection[Line],Table_PREInspection[Space Description]),\"\")))","v":""},{"$f":"IF($A41=\"\",\"\",IF($B$1=\"Pre-Submitted Lighting Measures\",VLOOKUP($A41,#REF!,6,FALSE),\"\"))","v":""},{"$f":"IF($A41=\"\",\"\",IF($B$1=\"Pre-Submitted Lighting Measures\",VLOOKUP($A41,#REF!,6,FALSE),\"\"))","v":""},{"$f":"IF($A41=\"\",\"\",IF($B$1=\"Pre-Submitted Lighting Measures\",VLOOKUP($A41,#REF!,6,FALSE),\"\"))","v":""},{"$f":"IF(OR($A41=\"\",$A41=\"#\"),\"\",IF($B$1=\"Pre-Submitted Lighting Measures\",_xlfn.XLOOKUP($A41,Table_PREInfo[Line],Table_PREInfo[Fixture Qty '[E']]),IF($B$1=\"Pre-Approved Lighting Measures\",_xlfn.XLOOKUP($A41,Table_PREInspection[Line],Table_PREInspection[Fixture Qty '[E']]),\"\")))","v":""},{"$f":"IF(OR($A41=\"\",$A41=\"#\"),\"\",IF($B$1=\"Pre-Submitted Lighting Measures\",_xlfn.XLOOKUP($A41,Table_PREInfo[Line],Table_PREInfo[Fixture Description '[E']]),IF($B$1=\"Pre-Approved Lighting Measures\",_xlfn.XLOOKUP($A41,Table_PREInspection[Line],Table_PREInspection[Fixture Description '[E']]),\"\")))","v":""},null,null,null,null,null,"Line",null,null,{"$f":"IF(OR($O41=\"\",$O41=\"#\"),\"\",IF($P$1=\"Post-Submitted Lighting Measures\",_xlfn.XLOOKUP($O41,Table_POSTInfo[Line],Table_POSTInfo[Space Description]),IF($P$1=\"Post-Approved Lighting Measures\",_xlfn.XLOOKUP($O41,Table_POSTInspection[Line],Table_POSTInspection[Space Description]),\"\")))","v":""},{"$f":"IF($A41=\"\",\"\",IF($B$1=\"Pre-Submitted Lighting Measures\",VLOOKUP($A41,#REF!,6,FALSE),\"\"))","v":""},{"$f":"IF($A41=\"\",\"\",IF($B$1=\"Pre-Submitted Lighting Measures\",VLOOKUP($A41,#REF!,6,FALSE),\"\"))","v":""},{"$f":"IF($A41=\"\",\"\",IF($B$1=\"Pre-Submitted Lighting Measures\",VLOOKUP($A41,#REF!,6,FALSE),\"\"))","v":""},{"$f":"IF(OR($O41=\"\",$O41=\"#\"),\"\",IF($P$1=\"Post-Submitted Lighting Measures\",_xlfn.XLOOKUP($O41,Table_POSTInfo[Line],Table_POSTInfo[Fixture Qty '[P']]),IF($P$1=\"Post-Approved Lighting Measures\",_xlfn.XLOOKUP($A41,Table_POSTInspection[Line],Table_POSTInspection[Fixture Qty '[P']]),\"\")))","v":""},{"$f":"IF(OR($O41=\"\",$O41=\"#\"),\"\",IF($P$1=\"Post-Submitted Lighting Measures\",_xlfn.XLOOKUP($O41,Table_POSTInfo[Line],Table_POSTInfo[Fixture Description '[P']]),IF($P$1=\"Post-Approved Lighting Measures\",_xlfn.XLOOKUP($O41,Table_POSTInspection[Line],Table_POSTInspection[Fixture Description '[P']]),\"\")))","v":""}]
["#",null,null,null,null,null,null,null,null,null,null,null,null,null,{"$f":"A41","v":"#"}]
[]
[]
[]
[]
[]
[]
[]
[]
[]
[]
[]
[]
[]
[]
[]
[null,null,null,"Location",null,null,null,"Qty","Fixture Description",null,null,null,null,null,null,null,null,"Location",null,null,null,"Qty","Fixture Description"]
["Line",null,null,{"$f":"IF(OR($A59=\"\",$A59=\"#\"),\"\",IF($B$1=\"Pre-Submitted Lighting Measures\",_xlfn.XLOOKUP($A59,Table_PREInfo[Line],Table_PREInfo[Space Description]),IF($B$1=\"Pre-Approved Lighting Measures\",_xlfn.XLOOKUP($A59,Table_PREInspection[Line],Table_PREInspection[Space Description]),\"\")))","v":""},{"$f":"IF($A59=\"\",\"\",IF($B$1=\"Pre-Submitted Lighting Measures\",VLOOKUP($A59,#REF!,6,FALSE),\"\"))","v":""},{"$f":"IF($A59=\"\",\"\",IF($B$1=\"Pre-Submitted Lighting Measures\",VLOOKUP($A59,#REF!,6,FALSE),\"\"))","v":""},{"$f":"IF($A59=\"\",\"\",IF($B$1=\"Pre-Submitted Lighting Measures\",VLOOKUP($A59,#REF!,6,FALSE),\"\"))","v":""},{"$f":"IF(OR($A59=\"\",$A59=\"#\"),\"\",IF($B$1=\"Pre-Submitted Lighting Measures\",_xlfn.XLOOKUP($A59,Table_PREInfo[Line],Table_PREInfo[Fixture Qty '[E']]),IF($B$1=\"Pre-Approved Lighting Measures\",_xlfn.XLOOKUP($A59,Table_PREInspection[Line],Table_PREInspection[Fixture Qty '[E']]),\"\")))","v":""},{"$f":"IF(OR($A59=\"\",$A59=\"#\"),\"\",IF($B$1=\"Pre-Submitted Lighting Measures\",_xlfn.XLOOKUP($A59,Table_PREInfo[Line],Table_PREInfo[Fixture Description '[E']]),IF($B$1=\"Pre-Approved Lighting Measures\",_xlfn.XLOOKUP($A59,Table_PREInspection[Line],Table_PREInspection[Fixture Description '[E']]),\"\")))","v":""},null,null,null,null,null,"Line",null,null,{"$f":"IF(OR($O59=\"\",$O59=\"#\"),\"\",IF($P$1=\"Post-Submitted Lighting Measures\",_xlfn.XLOOKUP($O59,Table_POSTInfo[Line],Table_POSTInfo[Space Description]),IF($P$1=\"Post-Approved Lighting Measures\",_xlfn.XLOOKUP($O59,Table_POSTInspection[Line],Table_POSTInspection[Space Description]),\"\")))","v":""},{"$f":"IF($A59=\"\",\"\",IF($B$1=\"Pre-Submitted Lighting Measures\",VLOOKUP($A59,#REF!,6,FALSE),\"\"))","v":""},{"$f":"IF($A59=\"\",\"\",IF($B$1=\"Pre-Submitted Lighting Measures\",VLOOKUP($A59,#REF!,6,FALSE),\"\"))","v":""},{"$f":"IF($A59=\"\",\"\",IF($B$1=\"Pre-Submitted Lighting Measures\",VLOOKUP($A59,#REF!,6,FALSE),\"\"))","v":""},{"$f":"IF(OR($O59=\"\",$O59=\"#\"),\"\",IF($P$1=\"Post-Submitted Lighting Measures\",_xlfn.XLOOKUP($O59,Table_POSTInfo[Line],Table_POSTInfo[Fixture Qty '[P']]),IF($P$1=\"Post-Approved Lighting Measures\",_xlfn.XLOOKUP($A59,Table_POSTInspection[Line],Table_POSTInspection[Fixture Qty '[P']]),\"\")))","v":""},{"$f":"IF(OR($O59=\"\",$O59=\"#\"),\"\",IF($P$1=\"Post-Submitted Lighting Measures\",_xlfn.XLOOKUP($O59,Table_POSTInfo[Line],Table_POSTInfo[Fixture Description '[P']]),IF($P$1=\"Post-Approved Lighting Measures\",_xlfn.XLOOKUP($O59,Table_POSTInspection[Line],Table_POSTInspection[Fixture Description '[P']]),\"\")))","v":""}]
["#",null,null,null,null,null,null,null,null,null,null,null,null,null,{"$f":"A59","v":"#"}]
[]
[]
[]
[]
[]
[]
[]
[]
[]
[]
[]
[]
[]
[]
[]
[null,null,null,"Location",null,null,null,"Qty","Fixture Description",null,null,null,null,null,null,null,null,"Location",null,null,null,"Qty","Fixture Description"]
["Line",null,null,{"$f":"IF(OR($A77=\"\",$A77=\"#\"),\"\",IF($B$1=\"Pre-Submitted Lighting Measures\",_xlfn.XLOOKUP($A77,Table_PREInfo[Line],Table_PREInfo[Space Description]),IF($B$1=\"Pre-Approved Lighting Measures\",_xlfn.XLOOKUP($A77,Table_PREInspection[Line],Table_PREInspection[Space Description]),\"\")))","v":""},{"$f":"IF($A77=\"\",\"\",IF($B$1=\"Pre-Submitted Lighting Measures\",VLOOKUP($A77,#REF!,6,FALSE),\"\"))","v":""},{"$f":"IF($A77=\"\",\"\",IF($B$1=\"Pre-Submitted Lighting Measures\",VLOOKUP($A77,#REF!,6,FALSE),\"\"))","v":""},{"$f":"IF($A77=\"\",\"\",IF($B$1=\"Pre-Submitted Lighting Measures\",VLOOKUP($A77,#REF!,6,FALSE),\"\"))","v":""},{"$f":"IF(OR($A77=\"\",$A77=\"#\"),\"\",IF($B$1=\"Pre-Submitted Lighting Measures\",_xlfn.XLOOKUP($A77,Table_PREInfo[Line],Table_PREInfo[Fixture Qty '[E']]),IF($B$1=\"Pre-Approved Lighting Measures\",_xlfn.XLOOKUP($A77,Table_PREInspection[Line],Table_PREInspection[Fixture Qty '[E']]),\"\")))","v":""},{"$f":"IF(OR($A77=\"\",$A77=\"#\"),\"\",IF($B$1=\"Pre-Submitted Lighting Measures\",_xlfn.XLOOKUP($A77,Table_PREInfo[Line],Table_PREInfo[Fixture Description '[E']]),IF($B$1=\"Pre-Approved Lighting Measures\",_xlfn.XLOOKUP($A77,Table_PREInspection[Line],Table_PREInspection[Fixture Description '[E']]),\"\")))","v":""},null,null,null,null,null,"Line",null,null,{"$f":"IF(OR($O77=\"\",$O77=\"#\"),\"\",IF($P$1=\"Post-Submitted Lighting Measures\",_xlfn.XLOOKUP($O77,Table_POSTInfo[Line],Table_POSTInfo[Space Description]),IF($P$1=\"Post-Approved Lighting Measures\",_xlfn.XLOOKUP($O77,Table_POSTInspection[Line],Table_POSTInspection[Space Description]),\"\")))","v":""},{"$f":"IF($A77=\"\",\"\",IF($B$1=\"Pre-Submitted Lighting Measures\",VLOOKUP($A77,#REF!,6,FALSE),\"\"))","v":""},{"$f":"IF($A77=\"\",\"\",IF($B$1=\"Pre-Submitted Lighting Measures\",VLOOKUP($A77,#REF!,6,FALSE),\"\"))","v":""},{"$f":"IF($A77=\"\",\"\",IF($B$1=\"Pre-Submitted Lighting Measures\",VLOOKUP($A77,#REF!,6,FALSE),\"\"))","v":""},{"$f":"IF(OR($O77=\"\",$O77=\"#\"),\"\",IF($P$1=\"Post-Submitted Lighting Measures\",_xlfn.XLOOKUP($O77,Table_POSTInfo[Line],Table_POSTInfo[Fixture Qty '[P']]),IF($P$1=\"Post-Approved Lighting Measures\",_xlfn.XLOOKUP($A77,Table_POSTInspection[Line],Table_POSTInspection[Fixture Qty '[P']]),\"\")))","v":""},{"$f":"IF(OR($O77=\"\",$O77=\"#\"),\"\",IF($P$1=\"Post-Submitted Lighting Measures\",_xlfn.XLOOKUP($O77,Table_POSTInfo[Line],Table_POSTInfo[Fixture Description '[P']]),IF($P$1=\"Post-Approved Lighting Measures\",_xlfn.XLOOKUP($O77,Table_POSTInspection[Line],Table_POSTInspection[Fixture Description '[P']]),\"\")))","v":""}]
["#",null,null,null,null,null,null,null,null,null,null,null,null,null,{"$f":"A77","v":"#"}]
[]
[]
[]
[]
[]
[]
[]
[]
[]
[]
[]
[]
[]
[]
[]
[null,null,null,"Location",null,null,null,"Qty","Fixture Description",null,null,null,null,null,null,null,null,"Location",null,null,null,"Qty","Fixture Description"]
["Line",null,null,{"$f":"IF(OR($A95=\"\",$A95=\"#\"),\"\",IF($B$1=\"Pre-Submitted Lighting Measures\",_xlfn.XLOOKUP($A95,Table_PREInfo[Line],Table_PREInfo[Space Description]),IF($B$1=\"Pre-Approved Lighting Measures\",_xlfn.XLOOKUP($A95,Table_PREInspection[Line],Table_PREInspection[Space Description]),\"\")))","v":""},{"$f":"IF($A95=\"\",\"\",IF($B$1=\"Pre-Submitted Lighting Measures\",VLOOKUP($A95,#REF!,6,FALSE),\"\"))","v":""},{"$f":"IF($A95=\"\",\"\",IF($B$1=\"Pre-Submitted Lighting Measures\",VLOOKUP($A95,#REF!,6,FALSE),\"\"))","v":""},{"$f":"IF($A95=\"\",\"\",IF($B$1=\"Pre-Submitted Lighting Measures\",VLOOKUP($A95,#REF!,6,FALSE),\"\"))","v":""},{"$f":"IF(OR($A95=\"\",$A95=\"#\"),\"\",IF($B$1=\"Pre-Submitted Lighting Measures\",_xlfn.XLOOKUP($A95,Table_PREInfo[Line],Table_PREInfo[Fixture Qty '[E']]),IF($B$1=\"Pre-Approved Lighting Measures\",_xlfn.XLOOKUP($A95,Table_PREInspection[Line],Table_PREInspection[Fixture Qty '[E']]),\"\")))","v":""},{"$f":"IF(OR($A95=\"\",$A95=\"#\"),\"\",IF($B$1=\"Pre-Submitted Lighting Measures\",_xlfn.XLOOKUP($A95,Table_PREInfo[Line],Table_PREInfo[Fixture Description '[E']]),IF($B$1=\"Pre-Approved Lighting Measures\",_xlfn.XLOOKUP($A95,Table_PREInspection[Line],Table_PREInspection[Fixture Description '[E']]),\"\")))","v":""},null,null,null,null,null,"Line",null,null,{"$f":"IF(OR($O95=\"\",$O95=\"#\"),\"\",IF($P$1=\"Post-Submitted Lighting Measures\",_xlfn.XLOOKUP($O95,Table_POSTInfo[Line],Table_POSTInfo[Space Description]),IF($P$1=\"Post-Approved Lighting Measures\",_xlfn.XLOOKUP($O95,Table_POSTInspection[Line],Table_POSTInspection[Space Description]),\"\")))","v":""},{"$f":"IF($A95=\"\",\"\",IF($B$1=\"Pre-Submitted Lighting Measures\",VLOOKUP($A95,#REF!,6,FALSE),\"\"))","v":""},{"$f":"IF($A95=\"\",\"\",IF($B$1=\"Pre-Submitted Lighting Measures\",VLOOKUP($A95,#REF!,6,FALSE),\"\"))","v":""},{"$f":"IF($A95=\"\",\"\",IF($B$1=\"Pre-Submitted Lighting Measures\",VLOOKUP($A95,#REF!,6,FALSE),\"\"))","v":""},{"$f":"IF(OR($O95=\"\",$O95=\"#\"),\"\",IF($P$1=\"Post-Submitted Lighting Measures\",_xlfn.XLOOKUP($O95,Table_POSTInfo[Line],Table_POSTInfo[Fixture Qty '[P']]),IF($P$1=\"Post-Approved Lighting Measures\",_xlfn.XLOOKUP($A95,Table_POSTInspection[Line],Table_POSTInspection[Fixture Qty '[P']]),\"\")))","v":""},{"$f":"IF(OR($O95=\"\",$O95=\"#\"),\"\",IF($P$1=\"Post-Submitted Lighting Measures\",_xlfn.XLOOKUP($O95,Table_POSTInfo[Line],Table_POSTInfo[Fixture Description '[P']]),IF($P$1=\"Post-Approved Lighting Measures\",_xlfn.XLOOKUP($O95,Table_POSTInspection[Line],Table_POSTInspection[Fixture Description '[P']]),\"\")))","v":""}]
["#",null,null,null,null,null,null,null,null,null,null,null,null,null,{"$f":"A95","v":"#"}]
[]
[]
[]
[]
[]
[]
[]
[]
[]
[]
[]
[]
[]
[]
[]
[null,null,null,"Location",null,null,null,"Qty","Fixture Description",null,null,null,null,null,null,null,null,"Location",null,null,null,"Qty","Fixture Description"]
["Line",null,null,{"$f":"IF(OR($A113=\"\",$A113=\"#\"),\"\",IF($B$1=\"Pre-Submitted Lighting Measures\",_xlfn.XLOOKUP($A113,Table_PREInfo[Line],Table_PREInfo[Space Description]),IF($B$1=\"Pre-Approved Lighting Measures\",_xlfn.XLOOKUP($A113,Table_PREInspection[Line],Table_PREInspection[Space Description]),\"\")))","v":""},{"$f":"IF($A113=\"\",\"\",IF($B$1=\"Pre-Submitted Lighting Measures\",VLOOKUP($A113,#REF!,6,FALSE),\"\"))","v":""},{"$f":"IF($A113=\"\",\"\",IF($B$1=\"Pre-Submitted Lighting Measures\",VLOOKUP($A113,#REF!,6,FALSE),\"\"))","v":""},{"$f":"IF($A113=\"\",\"\",IF($B$1=\"Pre-Submitted Lighting Measures\",VLOOKUP($A113,#REF!,6,FALSE),\"\"))","v":""},{"$f":"IF(OR($A113=\"\",$A113=\"#\"),\"\",IF($B$1=\"Pre-Submitted Lighting Measures\",_xlfn.XLOOKUP($A113,Table_PREInfo[Line],Table_PREInfo[Fixture Qty '[E']]),IF($B$1=\"Pre-Approved Lighting Measures\",_xlfn.XLOOKUP($A113,Table_PREInspection[Line],Table_PREInspection[Fixture Qty '[E']]),\"\")))","v":""},{"$f":"IF(OR($A113=\"\",$A113=\"#\"),\"\",IF($B$1=\"Pre-Submitted Lighting Measures\",_xlfn.XLOOKUP($A113,Table_PREInfo[Line],Table_PREInfo[Fixture Description '[E']]),IF($B$1=\"Pre-Approved Lighting Measures\",_xlfn.XLOOKUP($A113,Table_PREInspection[Line],Table_PREInspection[Fixture Description '[E']]),\"\")))","v":""},null,null,null,null,null,"Line",null,null,{"$f":"IF(OR($O113=\"\",$O113=\"#\"),\"\",IF($P$1=\"Post-Submitted Lighting Measures\",_xlfn.XLOOKUP($O113,Table_POSTInfo[Line],Table_POSTInfo[Space Description]),IF($P$1=\"Post-Approved Lighting Measures\",_xlfn.XLOOKUP($O113,Table_POSTInspection[Line],Table_POSTInspection[Space Description]),\"\")))","v":""},{"$f":"IF($A113=\"\",\"\",IF($B$1=\"Pre-Submitted Lighting Measures\",VLOOKUP($A113,#REF!,6,FALSE),\"\"))","v":""},{"$f":"IF($A113=\"\",\"\",IF($B$1=\"Pre-Submitted Lighting Measures\",VLOOKUP($A113,#REF!,6,FALSE),\"\"))","v":""},{"$f":"IF($A113=\"\",\"\",IF($B$1=\"Pre-Submitted Lighting Measures\",VLOOKUP($A113,#REF!,6,FALSE),\"\"))","v":""},{"$f":"IF(OR($O113=\"\",$O113=\"#\"),\"\",IF($P$1=\"Post-Submitted Lighting Measures\",_xlfn.XLOOKUP($O113,Table_POSTInfo[Line],Table_POSTInfo[Fixture Qty '[P']]),IF($P$1=\"Post-Approved Lighting Measures\",_xlfn.XLOOKUP($A113,Table_POSTInspection[Line],Table_POSTInspection[Fixture Qty '[P']]),\"\")))","v":""},{"$f":"IF(OR($O113=\"\",$O113=\"#\"),\"\",IF($P$1=\"Post-Submitted Lighting Measures\",_xlfn.XLOOKUP($O113,Table_POSTInfo[Line],Table_POSTInfo[Fixture Description '[P']]),IF($P$1=\"Post-Approved Lighting Measures\",_xlfn.XLOOKUP($O113,Table_POSTInspection[Line],Table_POSTInspection[Fixture Description '[P']]),\"\")))","v":""}]
["#",null,null,null,null,null,null,null,null,null,null,null,null,null,{"$f":"A113","v":"#"}]
[]
[]
[]
[]
[]
[]
[]
[]
[]
[]
[]
[]
[]
[]
[]
[null,null,null,"Location",null,null,null,"Qty","Fixture Description",null,null,null,null,null,null,null,null,"Location",null,null,null,"Qty","Fixture Description"]
["Line",null,null,{"$f":"IF(OR($A131=\"\",$A131=\"#\"),\"\",IF($B$1=\"Pre-Submitted Lighting Measures\",_xlfn.XLOOKUP($A131,Table_PREInfo[Line],Table_PREInfo[Space Description]),IF($B$1=\"Pre-Approved Lighting Measures\",_xlfn.XLOOKUP($A131,Table_PREInspection[Line],Table_PREInspection[Space Description]),\"\")))","v":""},{"$f":"IF($A131=\"\",\"\",IF($B$1=\"Pre-Submitted Lighting Measures\",VLOOKUP($A131,#REF!,6,FALSE),\"\"))","v":""},{"$f":"IF($A131=\"\",\"\",IF($B$1=\"Pre-Submitted Lighting Measures\",VLOOKUP($A131,#REF!,6,FALSE),\"\"))","v":""},{"$f":"IF($A131=\"\",\"\",IF($B$1=\"Pre-Submitted Lighting Measures\",VLOOKUP($A131,#REF!,6,FALSE),\"\"))","v":""},{"$f":"IF(OR($A131=\"\",$A131=\"#\"),\"\",IF($B$1=\"Pre-Submitted Lighting Measures\",_xlfn.XLOOKUP($A131,Table_PREInfo[Line],Table_PREInfo[Fixture Qty '[E']]),IF($B$1=\"Pre-Approved Lighting Measures\",_xlfn.XLOOKUP($A131,Table_PREInspection[Line],Table_PREInspection[Fixture Qty '[E']]),\"\")))","v":""},{"$f":"IF(OR($A131=\"\",$A131=\"#\"),\"\",IF($B$1=\"Pre-Submitted Lighting Measures\",_xlfn.XLOOKUP($A131,Table_PREInfo[Line],Table_PREInfo[Fixture Description '[E']]),IF($B$1=\"Pre-Approved Lighting Measures\",_xlfn.XLOOKUP($A131,Table_PREInspection[Line],Table_PREInspection[Fixture Description '[E']]),\"\")))","v":""},null,null,null,null,null,"Line",null,null,{"$f":"IF(OR($O131=\"\",$O131=\"#\"),\"\",IF($P$1=\"Post-Submitted Lighting Measures\",_xlfn.XLOOKUP($O131,Table_POSTInfo[Line],Table_POSTInfo[Space Description]),IF($P$1=\"Post-Approved Lighting Measures\",_xlfn.XLOOKUP($O131,Table_POSTInspection[Line],Table_POSTInspection[Space Description]),\"\")))","v":""},{"$f":"IF($A131=\"\",\"\",IF($B$1=\"Pre-Submitted Lighting Measures\",VLOOKUP($A131,#REF!,6,FALSE),\"\"))","v":""},{"$f":"IF($A131=\"\",\"\",IF($B$1=\"Pre-Submitted Lighting Measures\",VLOOKUP($A131,#REF!,6,FALSE),\"\"))","v":""},{"$f":"IF($A131=\"\",\"\",IF($B$1=\"Pre-Submitted Lighting Measures\",VLOOKUP($A131,#REF!,6,FALSE),\"\"))","v":""},{"$f":"IF(OR($O131=\"\",$O131=\"#\"),\"\",IF($P$1=\"Post-Submitted Lighting Measures\",_xlfn.XLOOKUP($O131,Table_POSTInfo[Line],Table_POSTInfo[Fixture Qty '[P']]),IF($P$1=\"Post-Approved Lighting Measures\",_xlfn.XLOOKUP($A131,Table_POSTInspection[Line],Table_POSTInspection[Fixture Qty '[P']]),\"\")))","v":""},{"$f":"IF(OR($O131=\"\",$O131=\"#\"),\"\",IF($P$1=\"Post-Submitted Lighting Measures\",_xlfn.XLOOKUP($O131,Table_POSTInfo[Line],Table_POSTInfo[Fixture Description '[P']]),IF($P$1=\"Post-Approved Lighting Measures\",_xlfn.XLOOKUP($O131,Table_POSTInspection[Line],Table_POSTInspection[Fixture Description '[P']]),\"\")))","v":""}]
["#",null,null,null,null,null,null,null,null,null,null,null,null,null,{"$f":"A131","v":"#"}]
[]
[]
[]
[]
[]
[]
[]
[]
[]
[]
[]
[]
[]
[]
[]
[null,null,null,"Location",null,null,null,"Qty","Fixture Description",null,null,null,null,null,null,null,null,"Location",null,null,null,"Qty","Fixture Description"]
["Line",null,null,{"$f":"IF(OR($A149=\"\",$A149=\"#\"),\"\",IF($B$1=\"Pre-Submitted Lighting Measures\",_xlfn.XLOOKUP($A149,Table_PREInfo[Line],Table_PREInfo[Space Description]),IF($B$1=\"Pre-Approved Lighting Measures\",_xlfn.XLOOKUP($A149,Table_PREInspection[Line],Table_PREInspection[Space Description]),\"\")))","v":""},{"$f":"IF($A149=\"\",\"\",IF($B$1=\"Pre-Submitted Lighting Measures\",VLOOKUP($A149,#REF!,6,FALSE),\"\"))","v":""},{"$f":"IF($A149=\"\",\"\",IF($B$1=\"Pre-Submitted Lighting Measures\",VLOOKUP($A149,#REF!,6,FALSE),\"\"))","v":""},{"$f":"IF($A149=\"\",\"\",IF($B$1=\"Pre-Submitted Lighting Measures\",VLOOKUP($A149,#REF!,6,FALSE),\"\"))","v":""},{"$f":"IF(OR($A149=\"\",$A149=\"#\"),\"\",IF($B$1=\"Pre-Submitted Lighting Measures\",_xlfn.XLOOKUP($A149,Table_PREInfo[Line],Table_PREInfo[Fixture Qty '[E']]),IF($B$1=\"Pre-Approved Lighting Measures\",_xlfn.XLOOKUP($A149,Table_PREInspection[Line],Table_PREInspection[Fixture Qty '[E']]),\"\")))","v":""},{"$f":"IF(OR($A149=\"\",$A149=\"#\"),\"\",IF($B$1=\"Pre-Submitted Lighting Measures\",_xlfn.XLOOKUP($A149,Table_PREInfo[Line],Table_PREInfo[Fixture Description '[E']]),IF($B$1=\"Pre-Approved Lighting Measures\",_xlfn.XLOOKUP($A149,Table_PREInspection[Line],Table_PREInspection[Fixture Description '[E']]),\"\")))","v":""},null,null,null,null,null,"Line",null,null,{"$f":"IF(OR($O149=\"\",$O149=\"#\"),\"\",IF($P$1=\"Post-Submitted Lighting Measures\",_xlfn.XLOOKUP($O149,Table_POSTInfo[Line],Table_POSTInfo[Space Description]),IF($P$1=\"Post-Approved Lighting Measures\",_xlfn.XLOOKUP($O149,Table_POSTInspection[Line],Table_POSTInspection[Space Description]),\"\")))","v":""},{"$f":"IF($A149=\"\",\"\",IF($B$1=\"Pre-Submitted Lighting Measures\",VLOOKUP($A149,#REF!,6,FALSE),\"\"))","v":""},{"$f":"IF($A149=\"\",\"\",IF($B$1=\"Pre-Submitted Lighting Measures\",VLOOKUP($A149,#REF!,6,FALSE),\"\"))","v":""},{"$f":"IF($A149=\"\",\"\",IF($B$1=\"Pre-Submitted Lighting Measures\",VLOOKUP($A149,#REF!,6,FALSE),\"\"))","v":""},{"$f":"IF(OR($O149=\"\",$O149=\"#\"),\"\",IF($P$1=\"Post-Submitted Lighting Measures\",_xlfn.XLOOKUP($O149,Table_POSTInfo[Line],Table_POSTInfo[Fixture Qty '[P']]),IF($P$1=\"Post-Approved Lighting Measures\",_xlfn.XLOOKUP($A149,Table_POSTInspection[Line],Table_POSTInspection[Fixture Qty '[P']]),\"\")))","v":""},{"$f":"IF(OR($O149=\"\",$O149=\"#\"),\"\",IF($P$1=\"Post-Submitted Lighting Measures\",_xlfn.XLOOKUP($O149,Table_POSTInfo[Line],Table_POSTInfo[Fixture Description '[P']]),IF($P$1=\"Post-Approved Lighting Measures\",_xlfn.XLOOKUP($O149,Table_POSTInspection[Line],Table_POSTInspection[Fixture Description '[P']]),\"\")))","v":""}]
["#",null,null,null,null,null,null,null,null,null,null,null,null,null,{"$f":"A149","v":"#"}]
[]
[]
[]
[]
[]
[]
[]
[]
[]
[]
[]
[]
[]
[]
[]
[null,null,null,"Location",null,null,null,"Qty","Fixture Description",null,null,null,null,null,null,null,null,"Location",null,null,null,"Qty","Fixture Description"]
["Line",null,null,{"$f":"IF(OR($A167=\"\",$A167=\"#\"),\"\",IF($B$1=\"Pre-Submitted Lighting Measures\",_xlfn.XLOOKUP($A167,Table_PREInfo[Line],Table_PREInfo[Space Description]),IF($B$1=\"Pre-Approved Lighting Measures\",_xlfn.XLOOKUP($A167,Table_PREInspection[Line],Table_PREInspection[Space Description]),\"\")))","v":""},{"$f":"IF($A167=\"\",\"\",IF($B$1=\"Pre-Submitted Lighting Measures\",VLOOKUP($A167,#REF!,6,FALSE),\"\"))","v":""},{"$f":"IF($A167=\"\",\"\",IF($B$1=\"Pre-Submitted Lighting Measures\",VLOOKUP($A167,#REF!,6,FALSE),\"\"))","v":""},{"$f":"IF($A167=\"\",\"\",IF($B$1=\"Pre-Submitted Lighting Measures\",VLOOKUP($A167,#REF!,6,FALSE),\"\"))","v":""},{"$f":"IF(OR($A167=\"\",$A167=\"#\"),\"\",IF($B$1=\"Pre-Submitted Lighting Measures\",_xlfn.XLOOKUP($A167,Table_PREInfo[Line],Table_PREInfo[Fixture Qty '[E']]),IF($B$1=\"Pre-Approved Lighting Measures\",_xlfn.XLOOKUP($A167,Table_PREInspection[Line],Table_PREInspection[Fixture Qty '[E']]),\"\")))","v":""},{"$f":"IF(OR($A167=\"\",$A167=\"#\"),\"\",IF($B$1=\"Pre-Submitted Lighting Measures\",_xlfn.XLOOKUP($A167,Table_PREInfo[Line],Table_PREInfo[Fixture Description '[E']]),IF($B$1=\"Pre-Approved Lighting Measures\",_xlfn.XLOOKUP($A167,Table_PREInspection[Line],Table_PREInspection[Fixture Description '[E']]),\"\")))","v":""},null,null,null,null,null,"Line",null,null,{"$f":"IF(OR($O167=\"\",$O167=\"#\"),\"\",IF($P$1=\"Post-Submitted Lighting Measures\",_xlfn.XLOOKUP($O167,Table_POSTInfo[Line],Table_POSTInfo[Space Description]),IF($P$1=\"Post-Approved Lighting Measures\",_xlfn.XLOOKUP($O167,Table_POSTInspection[Line],Table_POSTInspection[Space Description]),\"\")))","v":""},{"$f":"IF($A167=\"\",\"\",IF($B$1=\"Pre-Submitted Lighting Measures\",VLOOKUP($A167,#REF!,6,FALSE),\"\"))","v":""},{"$f":"IF($A167=\"\",\"\",IF($B$1=\"Pre-Submitted Lighting Measures\",VLOOKUP($A167,#REF!,6,FALSE),\"\"))","v":""},{"$f":"IF($A167=\"\",\"\",IF($B$1=\"Pre-Submitted Lighting Measures\",VLOOKUP($A167,#REF!,6,FALSE),\"\"))","v":""},{"$f":"IF(OR($O167=\"\",$O167=\"#\"),\"\",IF($P$1=\"Post-Submitted Lighting Measures\",_xlfn.XLOOKUP($O167,Table_POSTInfo[Line],Table_POSTInfo[Fixture Qty '[P']]),IF($P$1=\"Post-Approved Lighting Measures\",_xlfn.XLOOKUP($A167,Table_POSTInspection[Line],Table_POSTInspection[Fixture Qty '[P']]),\"\")))","v":""},{"$f":"IF(OR($O167=\"\",$O167=\"#\"),\"\",IF($P$1=\"Post-Submitted Lighting Measures\",_xlfn.XLOOKUP($O167,Table_POSTInfo[Line],Table_POSTInfo[Fixture Description '[P']]),IF($P$1=\"Post-Approved Lighting Measures\",_xlfn.XLOOKUP($O167,Table_POSTInspection[Line],Table_POSTInspection[Fixture Description '[P']]),\"\")))","v":""}]
["#",null,null,null,null,null,null,null,null,null,null,null,null,null,{"$f":"A167","v":"#"}]
[]
[]
[]
[]
[]
[]
[]
[]
[]
[]
[]
[]
[]
[]
[]
[null,null,null,"Location",null,null,null,"Qty","Fixture Description",null,null,null,null,null,null,null,null,"Location",null,null,null,"Qty","Fixture Description"]
["Line",null,null,{"$f":"IF(OR($A185=\"\",$A185=\"#\"),\"\",IF($B$1=\"Pre-Submitted Lighting Measures\",_xlfn.XLOOKUP($A185,Table_PREInfo[Line],Table_PREInfo[Space Description]),IF($B$1=\"Pre-Approved Lighting Measures\",_xlfn.XLOOKUP($A185,Table_PREInspection[Line],Table_PREInspection[Space Description]),\"\")))","v":""},{"$f":"IF($A185=\"\",\"\",IF($B$1=\"Pre-Submitted Lighting Measures\",VLOOKUP($A185,#REF!,6,FALSE),\"\"))","v":""},{"$f":"IF($A185=\"\",\"\",IF($B$1=\"Pre-Submitted Lighting Measures\",VLOOKUP($A185,#REF!,6,FALSE),\"\"))","v":""},{"$f":"IF($A185=\"\",\"\",IF($B$1=\"Pre-Submitted Lighting Measures\",VLOOKUP($A185,#REF!,6,FALSE),\"\"))","v":""},{"$f":"IF(OR($A185=\"\",$A185=\"#\"),\"\",IF($B$1=\"Pre-Submitted Lighting Measures\",_xlfn.XLOOKUP($A185,Table_PREInfo[Line],Table_PREInfo[Fixture Qty '[E']]),IF($B$1=\"Pre-Approved Lighting Measures\",_xlfn.XLOOKUP($A185,Table_PREInspection[Line],Table_PREInspection[Fixture Qty '[E']]),\"\")))","v":""},{"$f":"IF(OR($A185=\"\",$A185=\"#\"),\"\",IF($B$1=\"Pre-Submitted Lighting Measures\",_xlfn.XLOOKUP($A185,Table_PREInfo[Line],Table_PREInfo[Fixture Description '[E']]),IF($B$1=\"Pre-Approved Lighting Measures\",_xlfn.XLOOKUP($A185,Table_PREInspection[Line],Table_PREInspection[Fixture Description '[E']]),\"\")))","v":""},null,null,null,null,null,"Line",null,null,{"$f":"IF(OR($O185=\"\",$O185=\"#\"),\"\",IF($P$1=\"Post-Submitted Lighting Measures\",_xlfn.XLOOKUP($O185,Table_POSTInfo[Line],Table_POSTInfo[Space Description]),IF($P$1=\"Post-Approved Lighting Measures\",_xlfn.XLOOKUP($O185,Table_POSTInspection[Line],Table_POSTInspection[Space Description]),\"\")))","v":""},{"$f":"IF($A185=\"\",\"\",IF($B$1=\"Pre-Submitted Lighting Measures\",VLOOKUP($A185,#REF!,6,FALSE),\"\"))","v":""},{"$f":"IF($A185=\"\",\"\",IF($B$1=\"Pre-Submitted Lighting Measures\",VLOOKUP($A185,#REF!,6,FALSE),\"\"))","v":""},{"$f":"IF($A185=\"\",\"\",IF($B$1=\"Pre-Submitted Lighting Measures\",VLOOKUP($A185,#REF!,6,FALSE),\"\"))","v":""},{"$f":"IF(OR($O185=\"\",$O185=\"#\"),\"\",IF($P$1=\"Post-Submitted Lighting Measures\",_xlfn.XLOOKUP($O185,Table_POSTInfo[Line],Table_POSTInfo[Fixture Qty '[P']]),IF($P$1=\"Post-Approved Lighting Measures\",_xlfn.XLOOKUP($A185,Table_POSTInspection[Line],Table_POSTInspection[Fixture Qty '[P']]),\"\")))","v":""},{"$f":"IF(OR($O185=\"\",$O185=\"#\"),\"\",IF($P$1=\"Post-Submitted Lighting Measures\",_xlfn.XLOOKUP($O185,Table_POSTInfo[Line],Table_POSTInfo[Fixture Description '[P']]),IF($P$1=\"Post-Approved Lighting Measures\",_xlfn.XLOOKUP($O185,Table_POSTInspection[Line],Table_POSTInspection[Fixture Description '[P']]),\"\")))","v":""}]
["#",null,null,null,null,null,null,null,null,null,null,null,null,null,{"$f":"A185","v":"#"}]
[]
[]
[]
[]
[]
[]
[]
[]
[]
[]
[]
[]
[]
[]
[]
[null,null,null,"Location",null,null,null,"Qty","Fixture Description",null,null,null,null,null,null,null,null,"Location",null,null,null,"Qty","Fixture Description"]
["Line",null,null,{"$f":"IF(OR($A203=\"\",$A203=\"#\"),\"\",IF($B$1=\"Pre-Submitted Lighting Measures\",_xlfn.XLOOKUP($A203,Table_PREInfo[Line],Table_PREInfo[Space Description]),IF($B$1=\"Pre-Approved Lighting Measures\",_xlfn.XLOOKUP($A203,Table_PREInspection[Line],Table_PREInspection[Space Description]),\"\")))","v":""},{"$f":"IF($A203=\"\",\"\",IF($B$1=\"Pre-Submitted Lighting Measures\",VLOOKUP($A203,#REF!,6,FALSE),\"\"))","v":""},{"$f":"IF($A203=\"\",\"\",IF($B$1=\"Pre-Submitted Lighting Measures\",VLOOKUP($A203,#REF!,6,FALSE),\"\"))","v":""},{"$f":"IF($A203=\"\",\"\",IF($B$1=\"Pre-Submitted Lighting Measures\",VLOOKUP($A203,#REF!,6,FALSE),\"\"))","v":""},{"$f":"IF(OR($A203=\"\",$A203=\"#\"),\"\",IF($B$1=\"Pre-Submitted Lighting Measures\",_xlfn.XLOOKUP($A203,Table_PREInfo[Line],Table_PREInfo[Fixture Qty '[E']]),IF($B$1=\"Pre-Approved Lighting Measures\",_xlfn.XLOOKUP($A203,Table_PREInspection[Line],Table_PREInspection[Fixture Qty '[E']]),\"\")))","v":""},{"$f":"IF(OR($A203=\"\",$A203=\"#\"),\"\",IF($B$1=\"Pre-Submitted Lighting Measures\",_xlfn.XLOOKUP($A203,Table_PREInfo[Line],Table_PREInfo[Fixture Description '[E']]),IF($B$1=\"Pre-Approved Lighting Measures\",_xlfn.XLOOKUP($A203,Table_PREInspection[Line],Table_PREInspection[Fixture Description '[E']]),\"\")))","v":""},null,null,null,null,null,"Line",null,null,{"$f":"IF(OR($O203=\"\",$O203=\"#\"),\"\",IF($P$1=\"Post-Submitted Lighting Measures\",_xlfn.XLOOKUP($O203,Table_POSTInfo[Line],Table_POSTInfo[Space Description]),IF($P$1=\"Post-Approved Lighting Measures\",_xlfn.XLOOKUP($O203,Table_POSTInspection[Line],Table_POSTInspection[Space Description]),\"\")))","v":""},{"$f":"IF($A203=\"\",\"\",IF($B$1=\"Pre-Submitted Lighting Measures\",VLOOKUP($A203,#REF!,6,FALSE),\"\"))","v":""},{"$f":"IF($A203=\"\",\"\",IF($B$1=\"Pre-Submitted Lighting Measures\",VLOOKUP($A203,#REF!,6,FALSE),\"\"))","v":""},{"$f":"IF($A203=\"\",\"\",IF($B$1=\"Pre-Submitted Lighting Measures\",VLOOKUP($A203,#REF!,6,FALSE),\"\"))","v":""},{"$f":"IF(OR($O203=\"\",$O203=\"#\"),\"\",IF($P$1=\"Post-Submitted Lighting Measures\",_xlfn.XLOOKUP($O203,Table_POSTInfo[Line],Table_POSTInfo[Fixture Qty '[P']]),IF($P$1=\"Post-Approved Lighting Measures\",_xlfn.XLOOKUP($A203,Table_POSTInspection[Line],Table_POSTInspection[Fixture Qty '[P']]),\"\")))","v":""},{"$f":"IF(OR($O203=\"\",$O203=\"#\"),\"\",IF($P$1=\"Post-Submitted Lighting Measures\",_xlfn.XLOOKUP($O203,Table_POSTInfo[Line],Table_POSTInfo[Fixture Description '[P']]),IF($P$1=\"Post-Approved Lighting Measures\",_xlfn.XLOOKUP($O203,Table_POSTInspection[Line],Table_POSTInspection[Fixture Description '[P']]),\"\")))","v":""}]
["#",null,null,null,null,null,null,null,null,null,null,null,null,null,{"$f":"A203","v":"#"}]
[]
[]
[]
[]
[]
[]
[]
[]
[]
[]
[]
[]
[]
[]
[]
[null,null,null,"Location",null,null,null,"Qty","Fixture Description",null,null,null,null,null,null,null,null,"Location",null,null,null,"Qty","Fixture Description"]
["Line",null,null,{"$f":"IF(OR($A221=\"\",$A221=\"#\"),\"\",IF($B$1=\"Pre-Submitted Lighting Measures\",_xlfn.XLOOKUP($A221,Table_PREInfo[Line],Table_PREInfo[Space Description]),IF($B$1=\"Pre-Approved Lighting Measures\",_xlfn.XLOOKUP($A221,Table_PREInspection[Line],Table_PREInspection[Space Description]),\"\")))","v":""},{"$f":"IF($A221=\"\",\"\",IF($B$1=\"Pre-Submitted Lighting Measures\",VLOOKUP($A221,#REF!,6,FALSE),\"\"))","v":""},{"$f":"IF($A221=\"\",\"\",IF($B$1=\"Pre-Submitted Lighting Measures\",VLOOKUP($A221,#REF!,6,FALSE),\"\"))","v":""},{"$f":"IF($A221=\"\",\"\",IF($B$1=\"Pre-Submitted Lighting Measures\",VLOOKUP($A221,#REF!,6,FALSE),\"\"))","v":""},{"$f":"IF(OR($A221=\"\",$A221=\"#\"),\"\",IF($B$1=\"Pre-Submitted Lighting Measures\",_xlfn.XLOOKUP($A221,Table_PREInfo[Line],Table_PREInfo[Fixture Qty '[E']]),IF($B$1=\"Pre-Approved Lighting Measures\",_xlfn.XLOOKUP($A221,Table_PREInspection[Line],Table_PREInspection[Fixture Qty '[E']]),\"\")))","v":""},{"$f":"IF(OR($A221=\"\",$A221=\"#\"),\"\",IF($B$1=\"Pre-Submitted Lighting Measures\",_xlfn.XLOOKUP($A221,Table_PREInfo[Line],Table_PREInfo[Fixture Description '[E']]),IF($B$1=\"Pre-Approved Lighting Measures\",_xlfn.XLOOKUP($A221,Table_PREInspection[Line],Table_PREInspection[Fixture Description '[E']]),\"\")))","v":""},null,null,null,null,null,"Line",null,null,{"$f":"IF(OR($O221=\"\",$O221=\"#\"),\"\",IF($P$1=\"Post-Submitted Lighting Measures\",_xlfn.XLOOKUP($O221,Table_POSTInfo[Line],Table_POSTInfo[Space Description]),IF($P$1=\"Post-Approved Lighting Measures\",_xlfn.XLOOKUP($O221,Table_POSTInspection[Line],Table_POSTInspection[Space Description]),\"\")))","v":""},{"$f":"IF($A221=\"\",\"\",IF($B$1=\"Pre-Submitted Lighting Measures\",VLOOKUP($A221,#REF!,6,FALSE),\"\"))","v":""},{"$f":"IF($A221=\"\",\"\",IF($B$1=\"Pre-Submitted Lighting Measures\",VLOOKUP($A221,#REF!,6,FALSE),\"\"))","v":""},{"$f":"IF($A221=\"\",\"\",IF($B$1=\"Pre-Submitted Lighting Measures\",VLOOKUP($A221,#REF!,6,FALSE),\"\"))","v":""},{"$f":"IF(OR($O221=\"\",$O221=\"#\"),\"\",IF($P$1=\"Post-Submitted Lighting Measures\",_xlfn.XLOOKUP($O221,Table_POSTInfo[Line],Table_POSTInfo[Fixture Qty '[P']]),IF($P$1=\"Post-Approved Lighting Measures\",_xlfn.XLOOKUP($A221,Table_POSTInspection[Line],Table_POSTInspection[Fixture Qty '[P']]),\"\")))","v":""},{"$f":"IF(OR($O221=\"\",$O221=\"#\"),\"\",IF($P$1=\"Post-Submitted Lighting Measures\",_xlfn.XLOOKUP($O221,Table_POSTInfo[Line],Table_POSTInfo[Fixture Description '[P']]),IF($P$1=\"Post-Approved Lighting Measures\",_xlfn.XLOOKUP($O221,Table_POSTInspection[Line],Table_POSTInspection[Fixture Description '[P']]),\"\")))","v":""}]
["#",null,null,null,null,null,null,null,null,null,null,null,null,null,{"$f":"A221","v":"#"}]
[]
[]
[]
[]
[]
[]
[]
[]
[]
[]
[]
[]
[]
[]
[]
[null,null,null,"Location",null,null,null,"Qty","Fixture Description",null,null,null,null,null,null,null,null,"Location",null,null,null,"Qty","Fixture Description"]
["Line",null,null,{"$f":"IF(OR($A239=\"\",$A239=\"#\"),\"\",IF($B$1=\"Pre-Submitted Lighting Measures\",_xlfn.XLOOKUP($A239,Table_PREInfo[Line],Table_PREInfo[Space Description]),IF($B$1=\"Pre-Approved Lighting Measures\",_xlfn.XLOOKUP($A239,Table_PREInspection[Line],Table_PREInspection[Space Description]),\"\")))","v":""},{"$f":"IF($A239=\"\",\"\",IF($B$1=\"Pre-Submitted Lighting Measures\",VLOOKUP($A239,#REF!,6,FALSE),\"\"))","v":""},{"$f":"IF($A239=\"\",\"\",IF($B$1=\"Pre-Submitted Lighting Measures\",VLOOKUP($A239,#REF!,6,FALSE),\"\"))","v":""},{"$f":"IF($A239=\"\",\"\",IF($B$1=\"Pre-Submitted Lighting Measures\",VLOOKUP($A239,#REF!,6,FALSE),\"\"))","v":""},{"$f":"IF(OR($A239=\"\",$A239=\"#\"),\"\",IF($B$1=\"Pre-Submitted Lighting Measures\",_xlfn.XLOOKUP($A239,Table_PREInfo[Line],Table_PREInfo[Fixture Qty '[E']]),IF($B$1=\"Pre-Approved Lighting Measures\",_xlfn.XLOOKUP($A239,Table_PREInspection[Line],Table_PREInspection[Fixture Qty '[E']]),\"\")))","v":""},{"$f":"IF(OR($A239=\"\",$A239=\"#\"),\"\",IF($B$1=\"Pre-Submitted Lighting Measures\",_xlfn.XLOOKUP($A239,Table_PREInfo[Line],Table_PREInfo[Fixture Description '[E']]),IF($B$1=\"Pre-Approved Lighting Measures\",_xlfn.XLOOKUP($A239,Table_PREInspection[Line],Table_PREInspection[Fixture Description '[E']]),\"\")))","v":""},null,null,null,null,null,"Line",null,null,{"$f":"IF(OR($O239=\"\",$O239=\"#\"),\"\",IF($P$1=\"Post-Submitted Lighting Measures\",_xlfn.XLOOKUP($O239,Table_POSTInfo[Line],Table_POSTInfo[Space Description]),IF($P$1=\"Post-Approved Lighting Measures\",_xlfn.XLOOKUP($O239,Table_POSTInspection[Line],Table_POSTInspection[Space Description]),\"\")))","v":""},{"$f":"IF($A239=\"\",\"\",IF($B$1=\"Pre-Submitted Lighting Measures\",VLOOKUP($A239,#REF!,6,FALSE),\"\"))","v":""},{"$f":"IF($A239=\"\",\"\",IF($B$1=\"Pre-Submitted Lighting Measures\",VLOOKUP($A239,#REF!,6,FALSE),\"\"))","v":""},{"$f":"IF($A239=\"\",\"\",IF($B$1=\"Pre-Submitted Lighting Measures\",VLOOKUP($A239,#REF!,6,FALSE),\"\"))","v":""},{"$f":"IF(OR($O239=\"\",$O239=\"#\"),\"\",IF($P$1=\"Post-Submitted Lighting Measures\",_xlfn.XLOOKUP($O239,Table_POSTInfo[Line],Table_POSTInfo[Fixture Qty '[P']]),IF($P$1=\"Post-Approved Lighting Measures\",_xlfn.XLOOKUP($A239,Table_POSTInspection[Line],Table_POSTInspection[Fixture Qty '[P']]),\"\")))","v":""},{"$f":"IF(OR($O239=\"\",$O239=\"#\"),\"\",IF($P$1=\"Post-Submitted Lighting Measures\",_xlfn.XLOOKUP($O239,Table_POSTInfo[Line],Table_POSTInfo[Fixture Description '[P']]),IF($P$1=\"Post-Approved Lighting Measures\",_xlfn.XLOOKUP($O239,Table_POSTInspection[Line],Table_POSTInspection[Fixture Description '[P']]),\"\")))","v":""}]
["#",null,null,null,null,null,null,null,null,null,null,null,null,null,{"$f":"A239","v":"#"}]
[]
[]
[]
[]
[]
[]
[]
[]
[]
[]
[]
[]
[]
[]
[]
[null,null,null,"Location",null,null,null,"Qty","Fixture Description",null,null,null,null,null,null,null,null,"Location",null,null,null,"Qty","Fixture Description"]
["Line",null,null,{"$f":"IF(OR($A257=\"\",$A257=\"#\"),\"\",IF($B$1=\"Pre-Submitted Lighting Measures\",_xlfn.XLOOKUP($A257,Table_PREInfo[Line],Table_PREInfo[Space Description]),IF($B$1=\"Pre-Approved Lighting Measures\",_xlfn.XLOOKUP($A257,Table_PREInspection[Line],Table_PREInspection[Space Description]),\"\")))","v":""},{"$f":"IF($A257=\"\",\"\",IF($B$1=\"Pre-Submitted Lighting Measures\",VLOOKUP($A257,#REF!,6,FALSE),\"\"))","v":""},{"$f":"IF($A257=\"\",\"\",IF($B$1=\"Pre-Submitted Lighting Measures\",VLOOKUP($A257,#REF!,6,FALSE),\"\"))","v":""},{"$f":"IF($A257=\"\",\"\",IF($B$1=\"Pre-Submitted Lighting Measures\",VLOOKUP($A257,#REF!,6,FALSE),\"\"))","v":""},{"$f":"IF(OR($A257=\"\",$A257=\"#\"),\"\",IF($B$1=\"Pre-Submitted Lighting Measures\",_xlfn.XLOOKUP($A257,Table_PREInfo[Line],Table_PREInfo[Fixture Qty '[E']]),IF($B$1=\"Pre-Approved Lighting Measures\",_xlfn.XLOOKUP($A257,Table_PREInspection[Line],Table_PREInspection[Fixture Qty '[E']]),\"\")))","v":""},{"$f":"IF(OR($A257=\"\",$A257=\"#\"),\"\",IF($B$1=\"Pre-Submitted Lighting Measures\",_xlfn.XLOOKUP($A257,Table_PREInfo[Line],Table_PREInfo[Fixture Description '[E']]),IF($B$1=\"Pre-Approved Lighting Measures\",_xlfn.XLOOKUP($A257,Table_PREInspection[Line],Table_PREInspection[Fixture Description '[E']]),\"\")))","v":""},null,null,null,null,null,"Line",null,null,{"$f":"IF(OR($O257=\"\",$O257=\"#\"),\"\",IF($P$1=\"Post-Submitted Lighting Measures\",_xlfn.XLOOKUP($O257,Table_POSTInfo[Line],Table_POSTInfo[Space Description]),IF($P$1=\"Post-Approved Lighting Measures\",_xlfn.XLOOKUP($O257,Table_POSTInspection[Line],Table_POSTInspection[Space Description]),\"\")))","v":""},{"$f":"IF($A257=\"\",\"\",IF($B$1=\"Pre-Submitted Lighting Measures\",VLOOKUP($A257,#REF!,6,FALSE),\"\"))","v":""},{"$f":"IF($A257=\"\",\"\",IF($B$1=\"Pre-Submitted Lighting Measures\",VLOOKUP($A257,#REF!,6,FALSE),\"\"))","v":""},{"$f":"IF($A257=\"\",\"\",IF($B$1=\"Pre-Submitted Lighting Measures\",VLOOKUP($A257,#REF!,6,FALSE),\"\"))","v":""},{"$f":"IF(OR($O257=\"\",$O257=\"#\"),\"\",IF($P$1=\"Post-Submitted Lighting Measures\",_xlfn.XLOOKUP($O257,Table_POSTInfo[Line],Table_POSTInfo[Fixture Qty '[P']]),IF($P$1=\"Post-Approved Lighting Measures\",_xlfn.XLOOKUP($A257,Table_POSTInspection[Line],Table_POSTInspection[Fixture Qty '[P']]),\"\")))","v":""},{"$f":"IF(OR($O257=\"\",$O257=\"#\"),\"\",IF($P$1=\"Post-Submitted Lighting Measures\",_xlfn.XLOOKUP($O257,Table_POSTInfo[Line],Table_POSTInfo[Fixture Description '[P']]),IF($P$1=\"Post-Approved Lighting Measures\",_xlfn.XLOOKUP($O257,Table_POSTInspection[Line],Table_POSTInspection[Fixture Description '[P']]),\"\")))","v":""}]
["#",null,null,null,null,null,null,null,null,null,null,null,null,null,{"$f":"A257","v":"#"}]
[]
[]
[]
[]
[]
[]
[]
[]
[]
[]
[]
[]
[]
[]
[]
[null,null,null,"Location",null,null,null,"Qty","Fixture Description",null,null,null,null,null,null,null,null,"Location",null,null,null,"Qty","Fixture Description"]
["Line",null,null,{"$f":"IF(OR($A275=\"\",$A275=\"#\"),\"\",IF($B$1=\"Pre-Submitted Lighting Measures\",_xlfn.XLOOKUP($A275,Table_PREInfo[Line],Table_PREInfo[Space Description]),IF($B$1=\"Pre-Approved Lighting Measures\",_xlfn.XLOOKUP($A275,Table_PREInspection[Line],Table_PREInspection[Space Description]),\"\")))","v":""},{"$f":"IF($A275=\"\",\"\",IF($B$1=\"Pre-Submitted Lighting Measures\",VLOOKUP($A275,#REF!,6,FALSE),\"\"))","v":""},{"$f":"IF($A275=\"\",\"\",IF($B$1=\"Pre-Submitted Lighting Measures\",VLOOKUP($A275,#REF!,6,FALSE),\"\"))","v":""},{"$f":"IF($A275=\"\",\"\",IF($B$1=\"Pre-Submitted Lighting Measures\",VLOOKUP($A275,#REF!,6,FALSE),\"\"))","v":""},{"$f":"IF(OR($A275=\"\",$A275=\"#\"),\"\",IF($B$1=\"Pre-Submitted Lighting Measures\",_xlfn.XLOOKUP($A275,Table_PREInfo[Line],Table_PREInfo[Fixture Qty '[E']]),IF($B$1=\"Pre-Approved Lighting Measures\",_xlfn.XLOOKUP($A275,Table_PREInspection[Line],Table_PREInspection[Fixture Qty '[E']]),\"\")))","v":""},{"$f":"IF(OR($A275=\"\",$A275=\"#\"),\"\",IF($B$1=\"Pre-Submitted Lighting Measures\",_xlfn.XLOOKUP($A275,Table_PREInfo[Line],Table_PREInfo[Fixture Description '[E']]),IF($B$1=\"Pre-Approved Lighting Measures\",_xlfn.XLOOKUP($A275,Table_PREInspection[Line],Table_PREInspection[Fixture Description '[E']]),\"\")))","v":""},null,null,null,null,null,"Line",null,null,{"$f":"IF(OR($O275=\"\",$O275=\"#\"),\"\",IF($P$1=\"Post-Submitted Lighting Measures\",_xlfn.XLOOKUP($O275,Table_POSTInfo[Line],Table_POSTInfo[Space Description]),IF($P$1=\"Post-Approved Lighting Measures\",_xlfn.XLOOKUP($O275,Table_POSTInspection[Line],Table_POSTInspection[Space Description]),\"\")))","v":""},{"$f":"IF($A275=\"\",\"\",IF($B$1=\"Pre-Submitted Lighting Measures\",VLOOKUP($A275,#REF!,6,FALSE),\"\"))","v":""},{"$f":"IF($A275=\"\",\"\",IF($B$1=\"Pre-Submitted Lighting Measures\",VLOOKUP($A275,#REF!,6,FALSE),\"\"))","v":""},{"$f":"IF($A275=\"\",\"\",IF($B$1=\"Pre-Submitted Lighting Measures\",VLOOKUP($A275,#REF!,6,FALSE),\"\"))","v":""},{"$f":"IF(OR($O275=\"\",$O275=\"#\"),\"\",IF($P$1=\"Post-Submitted Lighting Measures\",_xlfn.XLOOKUP($O275,Table_POSTInfo[Line],Table_POSTInfo[Fixture Qty '[P']]),IF($P$1=\"Post-Approved Lighting Measures\",_xlfn.XLOOKUP($A275,Table_POSTInspection[Line],Table_POSTInspection[Fixture Qty '[P']]),\"\")))","v":""},{"$f":"IF(OR($O275=\"\",$O275=\"#\"),\"\",IF($P$1=\"Post-Submitted Lighting Measures\",_xlfn.XLOOKUP($O275,Table_POSTInfo[Line],Table_POSTInfo[Fixture Description '[P']]),IF($P$1=\"Post-Approved Lighting Measures\",_xlfn.XLOOKUP($O275,Table_POSTInspection[Line],Table_POSTInspection[Fixture Description '[P']]),\"\")))","v":""}]
["#",null,null,null,null,null,null,null,null,null,null,null,null,null,{"$f":"A275","v":"#"}]
[]
[]
[]
[]
[]
[]
[]
[]
[]
[]
[]
[]
[]
[]
[]
[null,null,null,"Location",null,null,null,"Qty","Fixture Description",null,null,null,null,null,null,null,null,"Location",null,null,null,"Qty","Fixture Description"]
["Line",null,null,{"$f":"IF(OR($A293=\"\",$A293=\"#\"),\"\",IF($B$1=\"Pre-Submitted Lighting Measures\",_xlfn.XLOOKUP($A293,Table_PREInfo[Line],Table_PREInfo[Space Description]),IF($B$1=\"Pre-Approved Lighting Measures\",_xlfn.XLOOKUP($A293,Table_PREInspection[Line],Table_PREInspection[Space Description]),\"\")))","v":""},{"$f":"IF($A293=\"\",\"\",IF($B$1=\"Pre-Submitted Lighting Measures\",VLOOKUP($A293,#REF!,6,FALSE),\"\"))","v":""},{"$f":"IF($A293=\"\",\"\",IF($B$1=\"Pre-Submitted Lighting Measures\",VLOOKUP($A293,#REF!,6,FALSE),\"\"))","v":""},{"$f":"IF($A293=\"\",\"\",IF($B$1=\"Pre-Submitted Lighting Measures\",VLOOKUP($A293,#REF!,6,FALSE),\"\"))","v":""},{"$f":"IF(OR($A293=\"\",$A293=\"#\"),\"\",IF($B$1=\"Pre-Submitted Lighting Measures\",_xlfn.XLOOKUP($A293,Table_PREInfo[Line],Table_PREInfo[Fixture Qty '[E']]),IF($B$1=\"Pre-Approved Lighting Measures\",_xlfn.XLOOKUP($A293,Table_PREInspection[Line],Table_PREInspection[Fixture Qty '[E']]),\"\")))","v":""},{"$f":"IF(OR($A293=\"\",$A293=\"#\"),\"\",IF($B$1=\"Pre-Submitted Lighting Measures\",_xlfn.XLOOKUP($A293,Table_PREInfo[Line],Table_PREInfo[Fixture Description '[E']]),IF($B$1=\"Pre-Approved Lighting Measures\",_xlfn.XLOOKUP($A293,Table_PREInspection[Line],Table_PREInspection[Fixture Description '[E']]),\"\")))","v":""},null,null,null,null,null,"Line",null,null,{"$f":"IF(OR($O293=\"\",$O293=\"#\"),\"\",IF($P$1=\"Post-Submitted Lighting Measures\",_xlfn.XLOOKUP($O293,Table_POSTInfo[Line],Table_POSTInfo[Space Description]),IF($P$1=\"Post-Approved Lighting Measures\",_xlfn.XLOOKUP($O293,Table_POSTInspection[Line],Table_POSTInspection[Space Description]),\"\")))","v":""},{"$f":"IF($A293=\"\",\"\",IF($B$1=\"Pre-Submitted Lighting Measures\",VLOOKUP($A293,#REF!,6,FALSE),\"\"))","v":""},{"$f":"IF($A293=\"\",\"\",IF($B$1=\"Pre-Submitted Lighting Measures\",VLOOKUP($A293,#REF!,6,FALSE),\"\"))","v":""},{"$f":"IF($A293=\"\",\"\",IF($B$1=\"Pre-Submitted Lighting Measures\",VLOOKUP($A293,#REF!,6,FALSE),\"\"))","v":""},{"$f":"IF(OR($O293=\"\",$O293=\"#\"),\"\",IF($P$1=\"Post-Submitted Lighting Measures\",_xlfn.XLOOKUP($O293,Table_POSTInfo[Line],Table_POSTInfo[Fixture Qty '[P']]),IF($P$1=\"Post-Approved Lighting Measures\",_xlfn.XLOOKUP($A293,Table_POSTInspection[Line],Table_POSTInspection[Fixture Qty '[P']]),\"\")))","v":""},{"$f":"IF(OR($O293=\"\",$O293=\"#\"),\"\",IF($P$1=\"Post-Submitted Lighting Measures\",_xlfn.XLOOKUP($O293,Table_POSTInfo[Line],Table_POSTInfo[Fixture Description '[P']]),IF($P$1=\"Post-Approved Lighting Measures\",_xlfn.XLOOKUP($O293,Table_POSTInspection[Line],Table_POSTInspection[Fixture Description '[P']]),\"\")))","v":""}]
["#",null,null,null,null,null,null,null,null,null,null,null,null,null,{"$f":"A293","v":"#"}]
[]
[]
[]
[]
[]
[]
[]
[]
[]
[]
[]
[]
[]
[]
[]
[null,null,null,"Location",null,null,null,"Qty","Fixture Description",null,null,null,null,null,null,null,null,"Location",null,null,null,"Qty","Fixture Description"]
["Line",null,null,{"$f":"IF(OR($A311=\"\",$A311=\"#\"),\"\",IF($B$1=\"Pre-Submitted Lighting Measures\",_xlfn.XLOOKUP($A311,Table_PREInfo[Line],Table_PREInfo[Space Description]),IF($B$1=\"Pre-Approved Lighting Measures\",_xlfn.XLOOKUP($A311,Table_PREInspection[Line],Table_PREInspection[Space Description]),\"\")))","v":""},{"$f":"IF($A311=\"\",\"\",IF($B$1=\"Pre-Submitted Lighting Measures\",VLOOKUP($A311,#REF!,6,FALSE),\"\"))","v":""},{"$f":"IF($A311=\"\",\"\",IF($B$1=\"Pre-Submitted Lighting Measures\",VLOOKUP($A311,#REF!,6,FALSE),\"\"))","v":""},{"$f":"IF($A311=\"\",\"\",IF($B$1=\"Pre-Submitted Lighting Measures\",VLOOKUP($A311,#REF!,6,FALSE),\"\"))","v":""},{"$f":"IF(OR($A311=\"\",$A311=\"#\"),\"\",IF($B$1=\"Pre-Submitted Lighting Measures\",_xlfn.XLOOKUP($A311,Table_PREInfo[Line],Table_PREInfo[Fixture Qty '[E']]),IF($B$1=\"Pre-Approved Lighting Measures\",_xlfn.XLOOKUP($A311,Table_PREInspection[Line],Table_PREInspection[Fixture Qty '[E']]),\"\")))","v":""},{"$f":"IF(OR($A311=\"\",$A311=\"#\"),\"\",IF($B$1=\"Pre-Submitted Lighting Measures\",_xlfn.XLOOKUP($A311,Table_PREInfo[Line],Table_PREInfo[Fixture Description '[E']]),IF($B$1=\"Pre-Approved Lighting Measures\",_xlfn.XLOOKUP($A311,Table_PREInspection[Line],Table_PREInspection[Fixture Description '[E']]),\"\")))","v":""},null,null,null,null,null,"Line",null,null,{"$f":"IF(OR($O311=\"\",$O311=\"#\"),\"\",IF($P$1=\"Post-Submitted Lighting Measures\",_xlfn.XLOOKUP($O311,Table_POSTInfo[Line],Table_POSTInfo[Space Description]),IF($P$1=\"Post-Approved Lighting Measures\",_xlfn.XLOOKUP($O311,Table_POSTInspection[Line],Table_POSTInspection[Space Description]),\"\")))","v":""},{"$f":"IF($A311=\"\",\"\",IF($B$1=\"Pre-Submitted Lighting Measures\",VLOOKUP($A311,#REF!,6,FALSE),\"\"))","v":""},{"$f":"IF($A311=\"\",\"\",IF($B$1=\"Pre-Submitted Lighting Measures\",VLOOKUP($A311,#REF!,6,FALSE),\"\"))","v":""},{"$f":"IF($A311=\"\",\"\",IF($B$1=\"Pre-Submitted Lighting Measures\",VLOOKUP($A311,#REF!,6,FALSE),\"\"))","v":""},{"$f":"IF(OR($O311=\"\",$O311=\"#\"),\"\",IF($P$1=\"Post-Submitted Lighting Measures\",_xlfn.XLOOKUP($O311,Table_POSTInfo[Line],Table_POSTInfo[Fixture Qty '[P']]),IF($P$1=\"Post-Approved Lighting Measures\",_xlfn.XLOOKUP($A311,Table_POSTInspection[Line],Table_POSTInspection[Fixture Qty '[P']]),\"\")))","v":""},{"$f":"IF(OR($O311=\"\",$O311=\"#\"),\"\",IF($P$1=\"Post-Submitted Lighting Measures\",_xlfn.XLOOKUP($O311,Table_POSTInfo[Line],Table_POSTInfo[Fixture Description '[P']]),IF($P$1=\"Post-Approved Lighting Measures\",_xlfn.XLOOKUP($O311,Table_POSTInspection[Line],Table_POSTInspection[Fixture Description '[P']]),\"\")))","v":""}]
["#",null,null,null,null,null,null,null,null,null,null,null,null,null,{"$f":"A311","v":"#"}]
[]
[]
[]
[]
[]
[]
[]
[]
[]
[]
[]
[]
[]
[]
[]
[null,null,null,"Location",null,null,null,"Qty","Fixture Description",null,null,null,null,null,null,null,null,"Location",null,null,null,"Qty","Fixture Description"]
["Line",null,null,{"$f":"IF(OR($A329=\"\",$A329=\"#\"),\"\",IF($B$1=\"Pre-Submitted Lighting Measures\",_xlfn.XLOOKUP($A329,Table_PREInfo[Line],Table_PREInfo[Space Description]),IF($B$1=\"Pre-Approved Lighting Measures\",_xlfn.XLOOKUP($A329,Table_PREInspection[Line],Table_PREInspection[Space Description]),\"\")))","v":""},{"$f":"IF($A329=\"\",\"\",IF($B$1=\"Pre-Submitted Lighting Measures\",VLOOKUP($A329,#REF!,6,FALSE),\"\"))","v":""},{"$f":"IF($A329=\"\",\"\",IF($B$1=\"Pre-Submitted Lighting Measures\",VLOOKUP($A329,#REF!,6,FALSE),\"\"))","v":""},{"$f":"IF($A329=\"\",\"\",IF($B$1=\"Pre-Submitted Lighting Measures\",VLOOKUP($A329,#REF!,6,FALSE),\"\"))","v":""},{"$f":"IF(OR($A329=\"\",$A329=\"#\"),\"\",IF($B$1=\"Pre-Submitted Lighting Measures\",_xlfn.XLOOKUP($A329,Table_PREInfo[Line],Table_PREInfo[Fixture Qty '[E']]),IF($B$1=\"Pre-Approved Lighting Measures\",_xlfn.XLOOKUP($A329,Table_PREInspection[Line],Table_PREInspection[Fixture Qty '[E']]),\"\")))","v":""},{"$f":"IF(OR($A329=\"\",$A329=\"#\"),\"\",IF($B$1=\"Pre-Submitted Lighting Measures\",_xlfn.XLOOKUP($A329,Table_PREInfo[Line],Table_PREInfo[Fixture Description '[E']]),IF($B$1=\"Pre-Approved Lighting Measures\",_xlfn.XLOOKUP($A329,Table_PREInspection[Line],Table_PREInspection[Fixture Description '[E']]),\"\")))","v":""},null,null,null,null,null,"Line",null,null,{"$f":"IF(OR($O329=\"\",$O329=\"#\"),\"\",IF($P$1=\"Post-Submitted Lighting Measures\",_xlfn.XLOOKUP($O329,Table_POSTInfo[Line],Table_POSTInfo[Space Description]),IF($P$1=\"Post-Approved Lighting Measures\",_xlfn.XLOOKUP($O329,Table_POSTInspection[Line],Table_POSTInspection[Space Description]),\"\")))","v":""},{"$f":"IF($A329=\"\",\"\",IF($B$1=\"Pre-Submitted Lighting Measures\",VLOOKUP($A329,#REF!,6,FALSE),\"\"))","v":""},{"$f":"IF($A329=\"\",\"\",IF($B$1=\"Pre-Submitted Lighting Measures\",VLOOKUP($A329,#REF!,6,FALSE),\"\"))","v":""},{"$f":"IF($A329=\"\",\"\",IF($B$1=\"Pre-Submitted Lighting Measures\",VLOOKUP($A329,#REF!,6,FALSE),\"\"))","v":""},{"$f":"IF(OR($O329=\"\",$O329=\"#\"),\"\",IF($P$1=\"Post-Submitted Lighting Measures\",_xlfn.XLOOKUP($O329,Table_POSTInfo[Line],Table_POSTInfo[Fixture Qty '[P']]),IF($P$1=\"Post-Approved Lighting Measures\",_xlfn.XLOOKUP($A329,Table_POSTInspection[Line],Table_POSTInspection[Fixture Qty '[P']]),\"\")))","v":""},{"$f":"IF(OR($O329=\"\",$O329=\"#\"),\"\",IF($P$1=\"Post-Submitted Lighting Measures\",_xlfn.XLOOKUP($O329,Table_POSTInfo[Line],Table_POSTInfo[Fixture Description '[P']]),IF($P$1=\"Post-Approved Lighting Measures\",_xlfn.XLOOKUP($O329,Table_POSTInspection[Line],Table_POSTInspection[Fixture Description '[P']]),\"\")))","v":""}]
["#",null,null,null,null,null,null,null,null,null,null,null,null,null,{"$f":"A329","v":"#"}]
[]
[]
[]
[]
[]
[]
[]
[]
[]
[]
[]
[]
[]
[]
[]
[null,null,null,"Location",null,null,null,"Qty","Fixture Description",null,null,null,null,null,null,null,null,"Location",null,null,null,"Qty","Fixture Description"]
["Line",null,null,{"$f":"IF(OR($A347=\"\",$A347=\"#\"),\"\",IF($B$1=\"Pre-Submitted Lighting Measures\",_xlfn.XLOOKUP($A347,Table_PREInfo[Line],Table_PREInfo[Space Description]),IF($B$1=\"Pre-Approved Lighting Measures\",_xlfn.XLOOKUP($A347,Table_PREInspection[Line],Table_PREInspection[Space Description]),\"\")))","v":""},{"$f":"IF($A347=\"\",\"\",IF($B$1=\"Pre-Submitted Lighting Measures\",VLOOKUP($A347,#REF!,6,FALSE),\"\"))","v":""},{"$f":"IF($A347=\"\",\"\",IF($B$1=\"Pre-Submitted Lighting Measures\",VLOOKUP($A347,#REF!,6,FALSE),\"\"))","v":""},{"$f":"IF($A347=\"\",\"\",IF($B$1=\"Pre-Submitted Lighting Measures\",VLOOKUP($A347,#REF!,6,FALSE),\"\"))","v":""},{"$f":"IF(OR($A347=\"\",$A347=\"#\"),\"\",IF($B$1=\"Pre-Submitted Lighting Measures\",_xlfn.XLOOKUP($A347,Table_PREInfo[Line],Table_PREInfo[Fixture Qty '[E']]),IF($B$1=\"Pre-Approved Lighting Measures\",_xlfn.XLOOKUP($A347,Table_PREInspection[Line],Table_PREInspection[Fixture Qty '[E']]),\"\")))","v":""},{"$f":"IF(OR($A347=\"\",$A347=\"#\"),\"\",IF($B$1=\"Pre-Submitted Lighting Measures\",_xlfn.XLOOKUP($A347,Table_PREInfo[Line],Table_PREInfo[Fixture Description '[E']]),IF($B$1=\"Pre-Approved Lighting Measures\",_xlfn.XLOOKUP($A347,Table_PREInspection[Line],Table_PREInspection[Fixture Description '[E']]),\"\")))","v":""},null,null,null,null,null,"Line",null,null,{"$f":"IF(OR($O347=\"\",$O347=\"#\"),\"\",IF($P$1=\"Post-Submitted Lighting Measures\",_xlfn.XLOOKUP($O347,Table_POSTInfo[Line],Table_POSTInfo[Space Description]),IF($P$1=\"Post-Approved Lighting Measures\",_xlfn.XLOOKUP($O347,Table_POSTInspection[Line],Table_POSTInspection[Space Description]),\"\")))","v":""},{"$f":"IF($A347=\"\",\"\",IF($B$1=\"Pre-Submitted Lighting Measures\",VLOOKUP($A347,#REF!,6,FALSE),\"\"))","v":""},{"$f":"IF($A347=\"\",\"\",IF($B$1=\"Pre-Submitted Lighting Measures\",VLOOKUP($A347,#REF!,6,FALSE),\"\"))","v":""},{"$f":"IF($A347=\"\",\"\",IF($B$1=\"Pre-Submitted Lighting Measures\",VLOOKUP($A347,#REF!,6,FALSE),\"\"))","v":""},{"$f":"IF(OR($O347=\"\",$O347=\"#\"),\"\",IF($P$1=\"Post-Submitted Lighting Measures\",_xlfn.XLOOKUP($O347,Table_POSTInfo[Line],Table_POSTInfo[Fixture Qty '[P']]),IF($P$1=\"Post-Approved Lighting Measures\",_xlfn.XLOOKUP($A347,Table_POSTInspection[Line],Table_POSTInspection[Fixture Qty '[P']]),\"\")))","v":""},{"$f":"IF(OR($O347=\"\",$O347=\"#\"),\"\",IF($P$1=\"Post-Submitted Lighting Measures\",_xlfn.XLOOKUP($O347,Table_POSTInfo[Line],Table_POSTInfo[Fixture Description '[P']]),IF($P$1=\"Post-Approved Lighting Measures\",_xlfn.XLOOKUP($O347,Table_POSTInspection[Line],Table_POSTInspection[Fixture Description '[P']]),\"\")))","v":""}]
["#",null,null,null,null,null,null,null,null,null,null,null,null,null,{"$f":"A347","v":"#"}]
[]
[]
[]
[]
[]
[]
[]
[]
[]
[]
[]
[]
[]
[]
[]
[null,null,null,"Location",null,null,null,"Qty","Fixture Description",null,null,null,null,null,null,null,null,"Location",null,null,null,"Qty","Fixture Description"]
["Line",null,null,{"$f":"IF(OR($A365=\"\",$A365=\"#\"),\"\",IF($B$1=\"Pre-Submitted Lighting Measures\",_xlfn.XLOOKUP($A365,Table_PREInfo[Line],Table_PREInfo[Space Description]),IF($B$1=\"Pre-Approved Lighting Measures\",_xlfn.XLOOKUP($A365,Table_PREInspection[Line],Table_PREInspection[Space Description]),\"\")))","v":""},{"$f":"IF($A365=\"\",\"\",IF($B$1=\"Pre-Submitted Lighting Measures\",VLOOKUP($A365,#REF!,6,FALSE),\"\"))","v":""},{"$f":"IF($A365=\"\",\"\",IF($B$1=\"Pre-Submitted Lighting Measures\",VLOOKUP($A365,#REF!,6,FALSE),\"\"))","v":""},{"$f":"IF($A365=\"\",\"\",IF($B$1=\"Pre-Submitted Lighting Measures\",VLOOKUP($A365,#REF!,6,FALSE),\"\"))","v":""},{"$f":"IF(OR($A365=\"\",$A365=\"#\"),\"\",IF($B$1=\"Pre-Submitted Lighting Measures\",_xlfn.XLOOKUP($A365,Table_PREInfo[Line],Table_PREInfo[Fixture Qty '[E']]),IF($B$1=\"Pre-Approved Lighting Measures\",_xlfn.XLOOKUP($A365,Table_PREInspection[Line],Table_PREInspection[Fixture Qty '[E']]),\"\")))","v":""},{"$f":"IF(OR($A365=\"\",$A365=\"#\"),\"\",IF($B$1=\"Pre-Submitted Lighting Measures\",_xlfn.XLOOKUP($A365,Table_PREInfo[Line],Table_PREInfo[Fixture Description '[E']]),IF($B$1=\"Pre-Approved Lighting Measures\",_xlfn.XLOOKUP($A365,Table_PREInspection[Line],Table_PREInspection[Fixture Description '[E']]),\"\")))","v":""},null,null,null,null,null,"Line",null,null,{"$f":"IF(OR($O365=\"\",$O365=\"#\"),\"\",IF($P$1=\"Post-Submitted Lighting Measures\",_xlfn.XLOOKUP($O365,Table_POSTInfo[Line],Table_POSTInfo[Space Description]),IF($P$1=\"Post-Approved Lighting Measures\",_xlfn.XLOOKUP($O365,Table_POSTInspection[Line],Table_POSTInspection[Space Description]),\"\")))","v":""},{"$f":"IF($A365=\"\",\"\",IF($B$1=\"Pre-Submitted Lighting Measures\",VLOOKUP($A365,#REF!,6,FALSE),\"\"))","v":""},{"$f":"IF($A365=\"\",\"\",IF($B$1=\"Pre-Submitted Lighting Measures\",VLOOKUP($A365,#REF!,6,FALSE),\"\"))","v":""},{"$f":"IF($A365=\"\",\"\",IF($B$1=\"Pre-Submitted Lighting Measures\",VLOOKUP($A365,#REF!,6,FALSE),\"\"))","v":""},{"$f":"IF(OR($O365=\"\",$O365=\"#\"),\"\",IF($P$1=\"Post-Submitted Lighting Measures\",_xlfn.XLOOKUP($O365,Table_POSTInfo[Line],Table_POSTInfo[Fixture Qty '[P']]),IF($P$1=\"Post-Approved Lighting Measures\",_xlfn.XLOOKUP($A365,Table_POSTInspection[Line],Table_POSTInspection[Fixture Qty '[P']]),\"\")))","v":""},{"$f":"IF(OR($O365=\"\",$O365=\"#\"),\"\",IF($P$1=\"Post-Submitted Lighting Measures\",_xlfn.XLOOKUP($O365,Table_POSTInfo[Line],Table_POSTInfo[Fixture Description '[P']]),IF($P$1=\"Post-Approved Lighting Measures\",_xlfn.XLOOKUP($O365,Table_POSTInspection[Line],Table_POSTInspection[Fixture Description '[P']]),\"\")))","v":""}]
["#",null,null,null,null,null,null,null,null,null,null,null,null,null,{"$f":"A365","v":"#"}]
[]
[]
[]
[]
[]
[]
[]
[]
[]
[]
[]
[]
[]
[]
[]
[null,null,null,"Location",null,null,null,"Qty","Fixture Description",null,null,null,null,null,null,null,null,"Location",null,null,null,"Qty","Fixture Description"]
["Line",null,null,{"$f":"IF(OR($A383=\"\",$A383=\"#\"),\"\",IF($B$1=\"Pre-Submitted Lighting Measures\",_xlfn.XLOOKUP($A383,Table_PREInfo[Line],Table_PREInfo[Space Description]),IF($B$1=\"Pre-Approved Lighting Measures\",_xlfn.XLOOKUP($A383,Table_PREInspection[Line],Table_PREInspection[Space Description]),\"\")))","v":""},{"$f":"IF($A383=\"\",\"\",IF($B$1=\"Pre-Submitted Lighting Measures\",VLOOKUP($A383,#REF!,6,FALSE),\"\"))","v":""},{"$f":"IF($A383=\"\",\"\",IF($B$1=\"Pre-Submitted Lighting Measures\",VLOOKUP($A383,#REF!,6,FALSE),\"\"))","v":""},{"$f":"IF($A383=\"\",\"\",IF($B$1=\"Pre-Submitted Lighting Measures\",VLOOKUP($A383,#REF!,6,FALSE),\"\"))","v":""},{"$f":"IF(OR($A383=\"\",$A383=\"#\"),\"\",IF($B$1=\"Pre-Submitted Lighting Measures\",_xlfn.XLOOKUP($A383,Table_PREInfo[Line],Table_PREInfo[Fixture Qty '[E']]),IF($B$1=\"Pre-Approved Lighting Measures\",_xlfn.XLOOKUP($A383,Table_PREInspection[Line],Table_PREInspection[Fixture Qty '[E']]),\"\")))","v":""},{"$f":"IF(OR($A383=\"\",$A383=\"#\"),\"\",IF($B$1=\"Pre-Submitted Lighting Measures\",_xlfn.XLOOKUP($A383,Table_PREInfo[Line],Table_PREInfo[Fixture Description '[E']]),IF($B$1=\"Pre-Approved Lighting Measures\",_xlfn.XLOOKUP($A383,Table_PREInspection[Line],Table_PREInspection[Fixture Description '[E']]),\"\")))","v":""},null,null,null,null,null,"Line",null,null,{"$f":"IF(OR($O383=\"\",$O383=\"#\"),\"\",IF($P$1=\"Post-Submitted Lighting Measures\",_xlfn.XLOOKUP($O383,Table_POSTInfo[Line],Table_POSTInfo[Space Description]),IF($P$1=\"Post-Approved Lighting Measures\",_xlfn.XLOOKUP($O383,Table_POSTInspection[Line],Table_POSTInspection[Space Description]),\"\")))","v":""},{"$f":"IF($A383=\"\",\"\",IF($B$1=\"Pre-Submitted Lighting Measures\",VLOOKUP($A383,#REF!,6,FALSE),\"\"))","v":""},{"$f":"IF($A383=\"\",\"\",IF($B$1=\"Pre-Submitted Lighting Measures\",VLOOKUP($A383,#REF!,6,FALSE),\"\"))","v":""},{"$f":"IF($A383=\"\",\"\",IF($B$1=\"Pre-Submitted Lighting Measures\",VLOOKUP($A383,#REF!,6,FALSE),\"\"))","v":""},{"$f":"IF(OR($O383=\"\",$O383=\"#\"),\"\",IF($P$1=\"Post-Submitted Lighting Measures\",_xlfn.XLOOKUP($O383,Table_POSTInfo[Line],Table_POSTInfo[Fixture Qty '[P']]),IF($P$1=\"Post-Approved Lighting Measures\",_xlfn.XLOOKUP($A383,Table_POSTInspection[Line],Table_POSTInspection[Fixture Qty '[P']]),\"\")))","v":""},{"$f":"IF(OR($O383=\"\",$O383=\"#\"),\"\",IF($P$1=\"Post-Submitted Lighting Measures\",_xlfn.XLOOKUP($O383,Table_POSTInfo[Line],Table_POSTInfo[Fixture Description '[P']]),IF($P$1=\"Post-Approved Lighting Measures\",_xlfn.XLOOKUP($O383,Table_POSTInspection[Line],Table_POSTInspection[Fixture Description '[P']]),\"\")))","v":""}]
["#",null,null,null,null,null,null,null,null,null,null,null,null,null,{"$f":"A383","v":"#"}]
[]
[]
[]
[]
[]
[]
[]
[]
[]
[]
[]
[]
[]
[]
[]
[null,null,null,"Location",null,null,null,"Qty","Fixture Description",null,null,null,null,null,null,null,null,"Location",null,null,null,"Qty","Fixture Description"]
["Line",null,null,{"$f":"IF(OR($A401=\"\",$A401=\"#\"),\"\",IF($B$1=\"Pre-Submitted Lighting Measures\",_xlfn.XLOOKUP($A401,Table_PREInfo[Line],Table_PREInfo[Space Description]),IF($B$1=\"Pre-Approved Lighting Measures\",_xlfn.XLOOKUP($A401,Table_PREInspection[Line],Table_PREInspection[Space Description]),\"\")))","v":""},{"$f":"IF($A401=\"\",\"\",IF($B$1=\"Pre-Submitted Lighting Measures\",VLOOKUP($A401,#REF!,6,FALSE),\"\"))","v":""},{"$f":"IF($A401=\"\",\"\",IF($B$1=\"Pre-Submitted Lighting Measures\",VLOOKUP($A401,#REF!,6,FALSE),\"\"))","v":""},{"$f":"IF($A401=\"\",\"\",IF($B$1=\"Pre-Submitted Lighting Measures\",VLOOKUP($A401,#REF!,6,FALSE),\"\"))","v":""},{"$f":"IF(OR($A401=\"\",$A401=\"#\"),\"\",IF($B$1=\"Pre-Submitted Lighting Measures\",_xlfn.XLOOKUP($A401,Table_PREInfo[Line],Table_PREInfo[Fixture Qty '[E']]),IF($B$1=\"Pre-Approved Lighting Measures\",_xlfn.XLOOKUP($A401,Table_PREInspection[Line],Table_PREInspection[Fixture Qty '[E']]),\"\")))","v":""},{"$f":"IF(OR($A401=\"\",$A401=\"#\"),\"\",IF($B$1=\"Pre-Submitted Lighting Measures\",_xlfn.XLOOKUP($A401,Table_PREInfo[Line],Table_PREInfo[Fixture Description '[E']]),IF($B$1=\"Pre-Approved Lighting Measures\",_xlfn.XLOOKUP($A401,Table_PREInspection[Line],Table_PREInspection[Fixture Description '[E']]),\"\")))","v":""},null,null,null,null,null,"Line",null,null,{"$f":"IF(OR($O401=\"\",$O401=\"#\"),\"\",IF($P$1=\"Post-Submitted Lighting Measures\",_xlfn.XLOOKUP($O401,Table_POSTInfo[Line],Table_POSTInfo[Space Description]),IF($P$1=\"Post-Approved Lighting Measures\",_xlfn.XLOOKUP($O401,Table_POSTInspection[Line],Table_POSTInspection[Space Description]),\"\")))","v":""},{"$f":"IF($A401=\"\",\"\",IF($B$1=\"Pre-Submitted Lighting Measures\",VLOOKUP($A401,#REF!,6,FALSE),\"\"))","v":""},{"$f":"IF($A401=\"\",\"\",IF($B$1=\"Pre-Submitted Lighting Measures\",VLOOKUP($A401,#REF!,6,FALSE),\"\"))","v":""},{"$f":"IF($A401=\"\",\"\",IF($B$1=\"Pre-Submitted Lighting Measures\",VLOOKUP($A401,#REF!,6,FALSE),\"\"))","v":""},{"$f":"IF(OR($O401=\"\",$O401=\"#\"),\"\",IF($P$1=\"Post-Submitted Lighting Measures\",_xlfn.XLOOKUP($O401,Table_POSTInfo[Line],Table_POSTInfo[Fixture Qty '[P']]),IF($P$1=\"Post-Approved Lighting Measures\",_xlfn.XLOOKUP($A401,Table_POSTInspection[Line],Table_POSTInspection[Fixture Qty '[P']]),\"\")))","v":""},{"$f":"IF(OR($O401=\"\",$O401=\"#\"),\"\",IF($P$1=\"Post-Submitted Lighting Measures\",_xlfn.XLOOKUP($O401,Table_POSTInfo[Line],Table_POSTInfo[Fixture Description '[P']]),IF($P$1=\"Post-Approved Lighting Measures\",_xlfn.XLOOKUP($O401,Table_POSTInspection[Line],Table_POSTInspection[Fixture Description '[P']]),\"\")))","v":""}]
["#",null,null,null,null,null,null,null,null,null,null,null,null,null,{"$f":"A401","v":"#"}]
[]
[]
[]
[]
[]
[]
[]
[]
[]
[]
[]
[]
[]
[]
[]
[null,null,null,"Location",null,null,null,"Qty","Fixture Description",null,null,null,null,null,null,null,null,"Location",null,null,null,"Qty","Fixture Description"]
["Line",null,null,{"$f":"IF(OR($A419=\"\",$A419=\"#\"),\"\",IF($B$1=\"Pre-Submitted Lighting Measures\",_xlfn.XLOOKUP($A419,Table_PREInfo[Line],Table_PREInfo[Space Description]),IF($B$1=\"Pre-Approved Lighting Measures\",_xlfn.XLOOKUP($A419,Table_PREInspection[Line],Table_PREInspection[Space Description]),\"\")))","v":""},{"$f":"IF($A419=\"\",\"\",IF($B$1=\"Pre-Submitted Lighting Measures\",VLOOKUP($A419,#REF!,6,FALSE),\"\"))","v":""},{"$f":"IF($A419=\"\",\"\",IF($B$1=\"Pre-Submitted Lighting Measures\",VLOOKUP($A419,#REF!,6,FALSE),\"\"))","v":""},{"$f":"IF($A419=\"\",\"\",IF($B$1=\"Pre-Submitted Lighting Measures\",VLOOKUP($A419,#REF!,6,FALSE),\"\"))","v":""},{"$f":"IF(OR($A419=\"\",$A419=\"#\"),\"\",IF($B$1=\"Pre-Submitted Lighting Measures\",_xlfn.XLOOKUP($A419,Table_PREInfo[Line],Table_PREInfo[Fixture Qty '[E']]),IF($B$1=\"Pre-Approved Lighting Measures\",_xlfn.XLOOKUP($A419,Table_PREInspection[Line],Table_PREInspection[Fixture Qty '[E']]),\"\")))","v":""},{"$f":"IF(OR($A419=\"\",$A419=\"#\"),\"\",IF($B$1=\"Pre-Submitted Lighting Measures\",_xlfn.XLOOKUP($A419,Table_PREInfo[Line],Table_PREInfo[Fixture Description '[E']]),IF($B$1=\"Pre-Approved Lighting Measures\",_xlfn.XLOOKUP($A419,Table_PREInspection[Line],Table_PREInspection[Fixture Description '[E']]),\"\")))","v":""},null,null,null,null,null,"Line",null,null,{"$f":"IF(OR($O419=\"\",$O419=\"#\"),\"\",IF($P$1=\"Post-Submitted Lighting Measures\",_xlfn.XLOOKUP($O419,Table_POSTInfo[Line],Table_POSTInfo[Space Description]),IF($P$1=\"Post-Approved Lighting Measures\",_xlfn.XLOOKUP($O419,Table_POSTInspection[Line],Table_POSTInspection[Space Description]),\"\")))","v":""},{"$f":"IF($A419=\"\",\"\",IF($B$1=\"Pre-Submitted Lighting Measures\",VLOOKUP($A419,#REF!,6,FALSE),\"\"))","v":""},{"$f":"IF($A419=\"\",\"\",IF($B$1=\"Pre-Submitted Lighting Measures\",VLOOKUP($A419,#REF!,6,FALSE),\"\"))","v":""},{"$f":"IF($A419=\"\",\"\",IF($B$1=\"Pre-Submitted Lighting Measures\",VLOOKUP($A419,#REF!,6,FALSE),\"\"))","v":""},{"$f":"IF(OR($O419=\"\",$O419=\"#\"),\"\",IF($P$1=\"Post-Submitted Lighting Measures\",_xlfn.XLOOKUP($O419,Table_POSTInfo[Line],Table_POSTInfo[Fixture Qty '[P']]),IF($P$1=\"Post-Approved Lighting Measures\",_xlfn.XLOOKUP($A419,Table_POSTInspection[Line],Table_POSTInspection[Fixture Qty '[P']]),\"\")))","v":""},{"$f":"IF(OR($O419=\"\",$O419=\"#\"),\"\",IF($P$1=\"Post-Submitted Lighting Measures\",_xlfn.XLOOKUP($O419,Table_POSTInfo[Line],Table_POSTInfo[Fixture Description '[P']]),IF($P$1=\"Post-Approved Lighting Measures\",_xlfn.XLOOKUP($O419,Table_POSTInspection[Line],Table_POSTInspection[Fixture Description '[P']]),\"\")))","v":""}]
["#",null,null,null,null,null,null,null,null,null,null,null,null,null,{"$f":"A419","v":"#"}]
[]
[]
[]
[]
[]
[]
[]
[]
[]
[]
[]
[]
[]
[]
[]
[null,null,null,"Location",null,null,null,"Qty","Fixture Description",null,null,null,null,null,null,null,null,"Location",null,null,null,"Qty","Fixture Description"]
["Line",null,null,{"$f":"IF(OR($A437=\"\",$A437=\"#\"),\"\",IF($B$1=\"Pre-Submitted Lighting Measures\",_xlfn.XLOOKUP($A437,Table_PREInfo[Line],Table_PREInfo[Space Description]),IF($B$1=\"Pre-Approved Lighting Measures\",_xlfn.XLOOKUP($A437,Table_PREInspection[Line],Table_PREInspection[Space Description]),\"\")))","v":""},{"$f":"IF($A437=\"\",\"\",IF($B$1=\"Pre-Submitted Lighting Measures\",VLOOKUP($A437,#REF!,6,FALSE),\"\"))","v":""},{"$f":"IF($A437=\"\",\"\",IF($B$1=\"Pre-Submitted Lighting Measures\",VLOOKUP($A437,#REF!,6,FALSE),\"\"))","v":""},{"$f":"IF($A437=\"\",\"\",IF($B$1=\"Pre-Submitted Lighting Measures\",VLOOKUP($A437,#REF!,6,FALSE),\"\"))","v":""},{"$f":"IF(OR($A437=\"\",$A437=\"#\"),\"\",IF($B$1=\"Pre-Submitted Lighting Measures\",_xlfn.XLOOKUP($A437,Table_PREInfo[Line],Table_PREInfo[Fixture Qty '[E']]),IF($B$1=\"Pre-Approved Lighting Measures\",_xlfn.XLOOKUP($A437,Table_PREInspection[Line],Table_PREInspection[Fixture Qty '[E']]),\"\")))","v":""},{"$f":"IF(OR($A437=\"\",$A437=\"#\"),\"\",IF($B$1=\"Pre-Submitted Lighting Measures\",_xlfn.XLOOKUP($A437,Table_PREInfo[Line],Table_PREInfo[Fixture Description '[E']]),IF($B$1=\"Pre-Approved Lighting Measures\",_xlfn.XLOOKUP($A437,Table_PREInspection[Line],Table_PREInspection[Fixture Description '[E']]),\"\")))","v":""},null,null,null,null,null,"Line",null,null,{"$f":"IF(OR($O437=\"\",$O437=\"#\"),\"\",IF($P$1=\"Post-Submitted Lighting Measures\",_xlfn.XLOOKUP($O437,Table_POSTInfo[Line],Table_POSTInfo[Space Description]),IF($P$1=\"Post-Approved Lighting Measures\",_xlfn.XLOOKUP($O437,Table_POSTInspection[Line],Table_POSTInspection[Space Description]),\"\")))","v":""},{"$f":"IF($A437=\"\",\"\",IF($B$1=\"Pre-Submitted Lighting Measures\",VLOOKUP($A437,#REF!,6,FALSE),\"\"))","v":""},{"$f":"IF($A437=\"\",\"\",IF($B$1=\"Pre-Submitted Lighting Measures\",VLOOKUP($A437,#REF!,6,FALSE),\"\"))","v":""},{"$f":"IF($A437=\"\",\"\",IF($B$1=\"Pre-Submitted Lighting Measures\",VLOOKUP($A437,#REF!,6,FALSE),\"\"))","v":""},{"$f":"IF(OR($O437=\"\",$O437=\"#\"),\"\",IF($P$1=\"Post-Submitted Lighting Measures\",_xlfn.XLOOKUP($O437,Table_POSTInfo[Line],Table_POSTInfo[Fixture Qty '[P']]),IF($P$1=\"Post-Approved Lighting Measures\",_xlfn.XLOOKUP($A437,Table_POSTInspection[Line],Table_POSTInspection[Fixture Qty '[P']]),\"\")))","v":""},{"$f":"IF(OR($O437=\"\",$O437=\"#\"),\"\",IF($P$1=\"Post-Submitted Lighting Measures\",_xlfn.XLOOKUP($O437,Table_POSTInfo[Line],Table_POSTInfo[Fixture Description '[P']]),IF($P$1=\"Post-Approved Lighting Measures\",_xlfn.XLOOKUP($O437,Table_POSTInspection[Line],Table_POSTInspection[Fixture Description '[P']]),\"\")))","v":""}]
["#",null,null,null,null,null,null,null,null,null,null,null,null,null,{"$f":"A437","v":"#"}]

{"sheet":"Project Report","index":21,"n_rows":58,"n_cols":24,"rows_kept":58,"cut":false,"hidden":false,"merged":[[52,3,52,12],[53,3,53,12],[54,3,54,12],[55,3,55,12],[57,3,58,12],[51,3,51,12],[35,7,36,8],[38,4,39,6],[38,7,39,8],[38,10,38,11],[38,12,38,13],[39,10,40,11],[39,12,40,13],[40,4,41,6],[40,7,41,8],[34,10,35,11],[34,12,35,13],[35,4,36,6],[42,2,42,12],[43,2,43,12],[44,2,44,12],[19,7,22,8],[19,11,19,13],[2,16,2,23],[15,16,15,23],[47,2,48,13],[45,2,45,12],[24,4,27,6],[24,7,27,8],[28,3,30,12],[32,4,34,6],[32,7,34,8],[33,10,33,11],[33,12,33,13],[15,2,16,13],[18,11,18,13],[19,4,22,6]]}
[null,{"$f":"Version_ID & \" - \" & Date_ID","v":"FY26.3.5 - Version 20250811"},null,null,null,null,null,null,null,null,null,null,null,null,null,null,"HIDE","HIDE","HIDE","HIDE","HIDE","HIDE","HIDE","HIDE"]
[]
[null,null,null,null,null,null,null,null,null,null,null,null,null,{"$f":"'Customer Information'!P3","v":"FY26 SRP Standard Business Solutions Lighting"},null,null,"CO2 Calculations"]
[null,null,null,null,null,null,null,null,null,null,null,null,null,"Measure Report",null,null,922,"lbs. CO2 / MWh",null,null,{"$f":"Q4*Q5/1000","v":4.1821645650004535E-4},"Tons CO2 / kWh"]
[null,null,null,null,null,null,null,null,null,null,null,null,null,{"$f":"Version_ID","v":"FY26.3.5"},null,null,{"$f":"1/2204.6","v":4.5359702440351992E-4},"Tons / lbs."]
[]
[null,null,"Participant Information",null,null,null,"Vendor Information",null,null,null,"Project Information",null,null,null,null,null,8887,"grams CO2 / gal Gasoline",null,null,{"$f":"Q7/1000000","v":8.8870000000000008E-3},"Tons CO2 / gal Gasoline"]
[null,null,{"$f":"IF(Participant_Name=\"\",\"\",Participant_Name)","v":""},null,null,null,{"$f":"IF(TA_Name=\"\",\"\",TA_Name)","v":""},null,null,null,{"$f":"IF(ProjectID_DSMC=\"\",\"\",ProjectID_DSMC & \" \") & IF(Project_SBSName=\"\",\"\",Project_SBSName)","v":""},null,null,null,null,null,22.3,"MPG",null,null,{"$f":"Q9/Q8*U7*1/0.989","v":4.6275083315574461},"Tons CO2 / Vehicle/yr."]
[null,null,{"$f":"IF(Participant_Name=\"\",\"\",Participant_Name)&IF(Participant_Phone=\"\",\"\",\", \"&TEXT(Participant_Phone,\"(000) 000-0000\"))","v":""},null,null,null,{"$f":"IF(TA_Contact=\"\",\"\",TA_Contact)&IF(TA_Phone=\"\",\"\",\", \"&TEXT(TA_Phone,\"(000) 000-0000\"))","v":""},null,null,null,{"$f":"IF(Project_InstallDate=\"\",\"\",\"Installation Date: \"&TEXT(Project_InstallDate,\"mm/dd/yyyy\"))","v":""},null,null,null,null,null,11484,"Annual Vehicle Miles Traveled",null,null,{"$f":"(1/U8)/(1/U4)","v":9.037616499747917E-5},"Vehicles/yr. / kWh"]
[null,null,{"$f":"IF(Participant_Email=\"\",\"\",Participant_Email)","v":""},null,null,null,{"$f":"IF(TA_Email=\"\",\"\",TA_Email)","v":""},null,null,null,{"$f":"IF(Project_Type=\"\",\"\",\"Project Type: \"&Project_Type)","v":"Project Type: Retrofit"}]
[null,null,null,null,null,null,null,null,null,null,{"$f":"IF(Project_Stage=\"\",\"\",\"Project Stage: \"&Project_Stage)","v":"Project Stage: (Pre-Install)"},null,null,null,null,null,{"$f":"0.11*23.2","v":2.552},"lbs. Carbon / Tree (Coniferous)",null,null,{"$f":"Q5","v":4.5359702440351992E-4},"Tons / lbs."]
[null,null,{"$f":"IF(Project_Address1=\"\",\"\",Project_Address1)","v":""},null,null,null,{"$f":"IF(TA_Address1=\"\",\"\",TA_Address1)","v":""},null,null,null,null,null,null,null,null,null,{"$f":"0.89*38","v":33.82},"lbs. Carbon / Tree (Deciduous)",null,null,{"$f":"(Q11+Q12)*Q13*U11","v":6.0493513562551032E-2},"Tons CO2 Sequestered / Tree"]
[null,null,{"$f":"IF(Project_Address2=\"\",\"\",Project_Address2)&IF(Project_Address3=\"\",\"\",\", \"&Project_Address3)&IF(Project_Address4=\"\",\"\",\"  \"&Project_Address4)","v":", AZ"},null,null,null,{"$f":"IF(TA_Address2=\"\",\"\",TA_Address2)&IF(TA_Address3=\"\",\"\",\", \"&TA_Address3)&IF(TA_Address4=\"\",\"\",\"  \"&TA_Address4)","v":""},null,null,null,null,null,null,null,null,null,{"$f":"44/12","v":3.6666666666666665},"CO2 / Carbon (Units)",null,null,{"$f":"(1/U12)/(1/U4)","v":6.9134099157193837E-3},"# Seedlings grown for 10 yrs. / kWh"]
[null,null,{"$f":"IF(Project_AcctNum=\"\",\"\",\"Account #: \"&Project_AcctNum)&IF(Project_Rate=\"\",\"\",\"       Price Plan: \"&Project_Rate)","v":""},null,null,null,null,null,null,null,null,null,null,null,null,null,"Reference: https://www.epa.gov/energy/greenhouse-gases-equivalencies-calculator-calculations-and-references"]
[]
[null,null,"Lighting Assessment Summary",null,null,null,null,null,null,null,null,null,null,null,null,null,"N3O Calculations"]
[null,null,null,null,null,null,null,null,null,null,null,null,null,null,null,null,0.7,"lbs. N3O / MWh",null,null,{"$f":"Q17*Q18/1000","v":3.1752E-7},"Tons N3O / kWh"]
[null,null,null,null,null,null,null,null,null,null,null,null,null,null,null,null,4.5360000000000002E-4,"Tons / lbs."]
[null,null,"Electric Cost Savingsa",null,null,null,null,null,null,null,null,"Total Project Cost"]
[null,null,null,null,{"$f":"IF($E$33=0,0,ROUND($E$33*$Q$25+$E$36*$R$25,2))","v":0},null,null,"Per Year",null,null,null,{"$f":"IF(ProjectCost_Total=\"\",\"\",ProjectCost_Total)","v":0},null,null,null,null,"Reference: https://www.epa.gov/sites/production/files/2018-12/documents/power_profiler_terms_calculations_and_data_sources_12-1-2018.pdf"]
[]
[]
[null,null,null,null,null,null,null,null,null,null,null,null,null,null,null,null,"$/kWh","$/kW"]
[null,null,"Total Project Rebatesa"]
[null,null,null,null,{"$f":"IFERROR(IF(Project_Type=\"Retrofit\",IF(SUM(Table_RetroSummary[Total Rebate])=0,0,MIN(L20,300000,SUM(Table_RetroSummary[Total Rebate]))),IF(SUM(Table_NCSummary[Total Rebate])=0,0,MIN(L20,300000,SUM(Table_NCSummary[Total Rebate])))),0)","v":0},null,null,null,null,null,null,null,null,null,null,null,{"$f":"VLOOKUP(IF(Project_Rate<>\"\",Project_Rate,\"E-36\"),Table_BillingRate[],2,FALSE)","v":0.1138},{"$f":"VLOOKUP(IF(Project_Rate<>\"\",Project_Rate,\"E-36\"),Table_BillingRate[],3,FALSE)","v":0.12809999999999999}]
[]
[]
[]
[null,null,null," Payment of rebates is subject to Customer's continued compliance with the current fiscal year's Program Terms and Conditions signed by the customer. Customer may request a copy of its signed Terms and Conditions by submitting a request to the SRP Business Solutions Program Administrators (Resource Innovations)."]
[]
[]
[null,null,"Energy Savingsa, b",null,null,null,null,null,null,"Simple Paybacka"]
[null,null,null,null,{"$f":"IF(Project_Type=\"Retrofit\",IF(SUM(Table_RetroSummary[Total Energy Savings (kWh)])=0,0,SUM(Table_RetroSummary[Total Energy Savings (kWh)])),IF(SUM(Table_NCSummary[Total Energy Savings (kWh)])=0,0,SUM(Table_NCSummary[Total Energy Savings (kWh)])))","v":0},null,null,"kWh/year\nEnergy Savings"]
[null,null,null,null,null,null,null,null,null,null,{"$f":"IF($E$25=0,0,(ProjectCost_Total-E25)/$E$20)","v":0},null,"with rebates"]
[null,null,null,null,null,null,null,null,null,null,{"$f":"IF($E$25=0,0,ProjectCost_Total/$E$20)","v":0},null,"without rebates"]
[null,null,null,null,{"$f":"IF(Project_Type=\"Retrofit\",IF(SUM(Table_RetroSummary[Total Demand Savings (kW)])=0,0,SUM(Table_RetroSummary[Total Demand Savings (kW)])),IF(SUM(Table_NCSummary[Total Demand Savings (kW)])=0,0,SUM(Table_NCSummary[Total Demand Savings (kW)])))","v":0},null,null,"kW/month\nDemand Reduction"]
[]
[null,null,"Environmental Impact",null,null,null,null,null,null,"Return on Investment (ROI)"]
[null,null,null,null,{"$f":"IF($E$33=0,0,$E$33*$U$9)","v":0},null,null,"Equivalent # of Cars\nremoved per year",null,null,{"$f":"IF($E$25=0,0,($E$20+$E$25)/ProjectCost_Total)","v":0},null,"with rebates"]
[null,null,null,null,null,null,null,null,null,null,{"$f":"IF($E$25=0,0,($E$20)/ProjectCost_Total)","v":0},null,"with out rebates"]
[null,null,null,null,{"$f":"IF($E$33=0,0,$E$33*$U$13)","v":0},null,null,"Equivalent # of Trees planted & grow for 10yrs"]
[]
[null,null,"a Energy savings, electric cost savings, and total project rebates are estimates only and intended solely for SRP lighting projects. Savings may be adjusted for heating/cooling factors based on region and space type. Rebates paid are based upon approved as-installed equipment, operating conditions, and project costs. "]
[null,null,"b Energy savings shown above are estimated actual savings at the customer meter. Incentives are calculated using stipulated fixture savings of"]
[null,null,{"$f":"TEXT(IF(Project_Type=\"Retrofit\",SUM(Table_RetroSummary[Annual Fixture Savings (kWh)]),SUM(Table_NCSummary[Annual Fixture Savings (kWh)])),\"#,##0\") & \" kWh/yr, and a controls savings of \" & TEXT(IF(Project_Type=\"Retrofit\",SUM(Table_RetroSummary[Annual Control Savings (kWh)]),SUM(Table_NCSummary[Annual Control Savings (kWh)])),\"#,##0\")&\" kWh/yr.\"","v":"0 kWh/yr, and a controls savings of 0 kWh/yr."}]
[null,null,{"$f":"\"* Project-Level Lighting Power Density (watts per square foot): Existing (\" &\nTEXT(IF(Project_Type=\"Retrofit\",\n  IFERROR(SUMPRODUCT(Table_RetroSummary[E. Qty],Table_RetroSummary[Existing Fixture Wattage])/SUM('Customer Information'!$N$21:$N$25),0),\n  IFERROR(SUMPRODUCT(Table_IntInputs[LPD],Table_IntInputs[Area Sq Ft])/SUM(Table_IntInputs[Area Sq Ft]),0)),\n\"0.000\") &\n\") / Proposed (\" &\nTEXT(IF(Project_Type=\"Retrofit\",\n  IFERROR(SUMPRODUCT(Table_RetroSummary[P. Qty],Table_RetroSummary[Proposed Fixture Wattage])/SUM('Customer Information'!$N$21:$N$25),0),\n  IFERROR(SUMPRODUCT(Table_NCSummary[P. Qty],Table_NCSummary[Proposed Fixture Wattage])/SUM(Table_IntInputs[Area Sq Ft]),0)),\n\"0.000\")&\")\"","v":"* Project-Level Lighting Power Density (watts per square foot): Existing (0.000) / Proposed (0.000)"}]
[]
[null,null,"Lighting Project Next Steps"]
[]
[null,null,"ü  Review this assessment report with your auditor."]
[null,null,"ü  Steps for typical \"Retrofit\" lighting incentives"]
[null,null,"1.","Before you start your project, submit a completed Excel application along with a signed copy of the Terms and Conditions and the Screen Shots from DLC or Energy Star to savewithsrpbiz@srpnet.com or have your contractor submit it. We may need to verify existing equipment through an inspection."]
[null,null,"2.","After we review your application, we will provide an approval email/letter. If you do not have an approval email/letter, you will not be able to receive an incentive. Wait until you receive your approval email/letter before you purchase and/or install any new lighting measures.  "]
[null,null,"3.","Upgrade your lighting. "]
[null,null,"4.","Submit project cost documentation including invoices with a breakdown of materials and labor per the terms outlined in the approval email/letter. A post-installation inspection may be required."]
[null,null,"5.","Receive incentive check within 45 days of completion of step 4."]
[null,null,"ü  Steps for \"New Construction\" lighting incentives"]
[null,null,"1.","If you install qualifying LED fixtures in your new building, you do not have to submit an application for pre-approval. You can submit your application along with the signed Terms and Conditions,  copies of your project cost documentation and required screen shots of fixtured installed from DLC or Energy Star. A post-installation inspection may be required. "]

{"sheet":"Eligibility Requirements","index":22,"n_rows":104,"n_cols":7,"rows_kept":104,"cut":false,"hidden":false,"merged":[[6,2,8,6],[11,2,11,6],[103,2,103,6],[89,2,94,2],[63,2,65,6],[60,2,62,6],[83,2,84,6],[85,2,85,6],[73,2,73,6],[74,2,74,6],[75,2,75,6],[76,2,76,6],[67,2,67,6],[71,2,71,6],[72,2,72,6],[42,2,45,6],[2,2,2,6],[4,2,4,5],[5,2,5,6],[52,2,52,6],[53,2,53,6],[46,2,46,6],[51,2,51,6],[47,2,49,6],[14,2,14,6],[15,2,15,6],[17,2,17,6],[3,2,3,6],[9,2,9,6],[10,2,10,6],[12,2,12,6],[13,2,13,6],[86,2,88,2],[86,3,88,3],[86,4,88,4],[86,5,88,5],[86,6,88,6],[68,2,70,6],[77,2,78,6],[79,2,80,6],[81,2,82,6],[57,2,57,6],[58,2,58,6],[59,2,59,6],[89,6,90,6],[89,5,90,5],[89,4,90,4],[89,3,90,3],[91,6,92,6],[91,5,92,5],[91,4,92,4],[91,3,92,3],[95,2,95,6],[97,2,99,6],[100,2,102,6],[93,6,94,6],[93,5,94,5],[96,2,96,6],[93,4,94,4],[93,3,94,3],[54,2,56,6],[18,2,19,6],[40,2,41,6],[38,2,39,6],[36,2,37,6],[29,2,29,6],[30,2,30,6],[33,2,35,6],[31,2,32,6],[27,2,28,6],[20,2,20,6],[21,2,21,6],[22,2,22,6],[26,2,26,6],[23,2,25,6]]}
[null,{"$f":"Version_ID & \" - \" & Date_ID","v":"FY26.3.5 - Version 20250811"}]
[]
[null,null,{"$f":"'Customer Information'!$P$3","v":"FY26 SRP Standard Business Solutions Lighting"}]
[null,null,"Equipment Eligibility"]
[]
[null,null,"LIGHTING MEASURES"]
[null,null,"This Lighting Equipment Eligibility describes the eligibility requirements for retrofit lighting, new construction lighting, and lighting controls equipment to qualify for rebates through the SRP Business Solutions Standard Program (“SBS Program”). Please read this catalog carefully to ensure that you purchase and install qualifying equipment. "]
[]
[]
[null,null,"For more information about the SBS Program and for general inquiries, visit our website at, www.savewithsrpbiz.com."]
[null,null,"On our website you will find:"]
[null,null,"•  Information about other SRP energy efficiency programs and rebates that may be available to you"]
[null,null,"•  The SBS Program Manual containing detailed information on the program rules and requirements"]
[null,null,"•  Lighting Applications  "]
[null,null,"•  Current rebate availability"]
[null,null,"You can also email us at savewithsrpbiz@srpnet.com, or contact the SRP Business Solutions hotline at 602-236-3054."]
[]
[null,null,"RETROFIT LIGHTING"]
[null,null,"Measure Description: Lighting equipment installed as part of a retrofit project (See the Lighting Controls section for equipment eligibility and rebate details pertaining to controls)."]
[]
[null,null,"Equipment Eligibility:"]
[null,null,"•  Equipment must be new and installed in a manner that meets or exceeds code regulations."]
[null,null,"•  Only LED fixtures and lamps are eligible for rebate. Excludes E-39 Mogul Base and/or HID replacements."]
[null,null,"•  To be eligible to receive the fixture retrofit/qualified retrofit kit rebate, equipment must be either a new replacement fixture or qualified retrofit kits that replace existing lamps, sockets, driver, and includes new optics (lighting distribution) and not rely on existing reflectors or lenses."]
[]
[]
[null,null,"•  Free standing light fixtures powered by plug in receptacles are not eligible for rebate."]
[null,null,"•  LED fixtures and lamps (except exit signs) must be UL-rated, and on one of the following qualified product listings at time of application approval: ENERGY STAR, or the Design Lights Consortium (DLC)."]
[]
[null,null,"•  Eligibility of Linear LED Tubes:"]
[null,null,"UL Type A – Linear LED tubes (AKA “Plug & Play” tubes) that operate off of existing lamp holders and ballasts "]
[null,null,"UL Type B – Internal Driver/Line Voltage Lamp-Style Retrofit Kits: Linear LED tubes, with an internal driver, that operate off of existing lamp holders but require existing ballasts be bypassed to deliver a line voltage directly to the LED tube"]
[]
[null,null,"UL Type C – External Driver Lamp-Style Retrofit Kits: Linear LED tubes that operate off of existing lamp holders but require existing ballasts be replaced with an external LED driver which receives line voltage and then delivers low voltage to the existing lamp holders and LED tube."]
[]
[]
[null,null,"•  Retrofits involving de-lamping within a fixture are eligible; provided that tombstones are removed from the de-lamped fixtures AND that the fixture is upgraded to new qualifying lamps and ballast/driver."]
[]
[null,null,"•  All retrofitted lighting products containing any trace amounts of mercury shall be removed from the customer site and properly recycled through an EPA approved recycling firm.  Products include all fluorescent, HID, induction, CFL and any other products containing mercury."]
[]
[null,null,"•  All retrofitted magnetic ballasts shall be removed from the customer site.  Ballasts containing PCB's shall be identified, separated and properly recycled through an EPA approved recycling firm. "]
[]
[null,null,"•  Rebates for retrofit lighting projects are intended to offset the costs associated with the one-to-one retrofit of fixtures. Existing (pre-retrofit) fixtures that are being decommissioned but left in place will be excluded from the kW savings calculation that is used to determine the rebate. Note: When completing the room-by-room audit on the Project Information tab, be sure to include ALL existing fixtures; the workbook will handle the savings calculation appropriately."]
[]
[]
[]
[null,null,"•  In order to be eligible for rebate, the lighting project must result in a verifiable demand reduction as calculated by the Lighting Application. "]
[null,null,"Rebate: Rebates for interior LED lighting re-lamps are paid at $250.00 per kilowatt (kW) of reduced demand. Rebates for interior LED lighting fixtures and qualified retrofit kits are paid at $350.00 per kilowatt (kW) of reduced demand. Rebates for exterior LED lighting equipment are paid at $150.00 per kilowatt (kW) of reduced demand. Additional information on rebate calculations can be found in the SBS Program Manual."]
[]
[]
[]
[null,null,"NEW CONSTRUCTION LIGHTING"]
[null,null,"Measure Description: Lighting equipment installed as part of a new construction project."]
[null,null,"Equipment Eligibility: "]
[null,null,{"$f":"\"•  Equipment must be purchased on or after May 1, \" & 1999 +RIGHT(Curr_FY,2) & \". Applications for new construction projects with fixtures purchased after May 1, \" & 1999 +RIGHT(Curr_FY,2) & \" must be received no later than July 31, \" & 2000 +RIGHT(Curr_FY,2) & \" to be eligible for rebates (subject to rebate availability). Rebate eligibility is determined based on the eligibility rules in place on the purchase date.\"","v":"•  Equipment must be purchased on or after May 1, 2025. Applications for new construction projects with fixtures purchased after May 1, 2025 must be received no later than July 31, 2026 to be eligible for rebates (subject to rebate availability). Rebate eligibility is determined based on the eligibility rules in place on the purchase date."}]
[]
[]
[null,null,"•  Equipment must be new and installed in a manner that meets or exceeds code regulations"]
[null,null,"•  Only LED fixtures and lamps are eligible for rebate."]
[null,null,"•  LED fixtures and lamps (except exit signs) must be UL-rated."]
[null,null,"•  In order to be eligible for rebate, the lighting project must produce a 10% or greater installed demand reduction from ASHRAE 90.1-2016 lighting power density specifications by building type, as calculated by the Standard Business Solutions Lighting Application. Additional information on rebate calculations can be found in the SBS Program Manual."]
[]
[]
[null,null,"Rebate: Rebates for interior LED lighting equipment are paid at $250.00 per kilowatt (kW) of reduced demand. Rebates for exterior LED lighting equipment are paid at $150.00 per kilowatt (kW) of reduced demand. Additional information on rebate calculations can be found in the SBS Program Manual."]
[]
[]
[]
[null,null,"LIGHTING CONTROLS"]
[null,null,"Measure Description: Lighting controls that reduce electrical energy consumption by automatically executing one or more control strategies (depending on the control type) such as turning off and/or dimming interior lighting equipment in response to occupancy and/or daylight levels, performing top end trimming, task tuning."]
[]
[]
[null,null,"Equipment Eligibility: "]
[null,null,"•  Exterior lighting controls are not eligible for rebate."]
[null,null,"•  Control equipment must be new and installed in a manner that meets or exceeds code regulations and manufacturer’s specifications."]
[null,null,"•  Sensors may be wall, fixture, or ceiling-mounted. "]
[null,null,"•  Prescriptive rebates are available for three types of lighting controls:"]
[null,null,"◦  Occupancy sensors (including vacancy sensors) -- must be passive infrared, ultrasonic, microphonic, or dual technology."]
[null,null,"◦  Daylighting controls -- must control interior fixtures with Continuous, Stepped, or Bi-level ballast or automated control that dims fixture by 50% or more in response to exterior ambient light (must be installed within daylighting zones)."]
[]
[null,null,"◦  Networked Lighting Controls -- must be on the DesignLights Consortium Networked Lighting Controls Qualified Products List at time of application pre-approval. "]
[]
[null,null,"•  In New Construction projects, only Networked Lighting Control systems that meet the eligibility requirements described above are eligible for rebate."]
[]
[null,null,"Rebates: Rebates for qualifying lighting controls are paid based on a dollar-per-watt-controlled basis, where “watt controlled” refers to the total wattage of lighting fixtures down circuit from the control. Table 1 lists the eligible retrofit scenarios and the associated rebate rate."]
[]
[null,null,"Table 1. Lighting Controls Rebates "]
[null,null,"Measure","Existing Control Type","New Control Type","Rebate per Watt Controlled","Rebate per Watt Controlled : New Construction Projects"]
[]
[]
[null,null,"Lighting Control on Interior Fixture(s)","None","Occupancy and/or Daylighting Controls",0.15,"n/a"]
[]
[null,null,null,"None","Networked Lighting Controls",0.4,0.25]
[]
[null,null,null,"Occupancy and/or Daylighting Control","Networked Lighting Controls",0.25,"n/a"]
[]
[]
[null,null,"CAPS, LIMITATIONS, AND RESTRICTIONS"]
[null,null,"Program Caps: Customers are subject to a maximum rebate of $450,000 from May 1 through April 30 for all SRP programs, with separate program area caps of $300,000 for Energy Efficiency programs, $300,000 for Business EV programs, and $100,000 for Beneficial Electrification programs."]
[]
[]
[null,null,"Limitations and Restrictions: Program- or technology-based limits may also be applicable, based on program terms and conditions. A customer is defined as all accounts under a single customer, even if these accounts are at multiple sites. There is a minimum rebate amount of $100.00 for lighting projects ($50.00 for mechanical & more) required for participation in the SRP Business Solutions Standard Program."]
[]
[]
[null,null,"Program Year: SRP reserves the right to determine at their sole discretion the program year to which a rebate is attributed."]

{"sheet":"F.A.Q.","index":23,"n_rows":194,"n_cols":4,"rows_kept":194,"cut":false,"hidden":false,"merged":[[10,2,11,3],[15,2,15,3],[31,2,32,3],[48,2,48,3],[64,2,64,3],[67,2,67,3],[82,2,82,3],[130,2,130,3],[131,2,131,3],[107,2,107,3],[103,2,103,3],[99,2,99,3],[68,2,69,3],[71,2,73,3],[85,2,86,3],[83,2,83,3],[81,2,81,3],[70,2,70,3],[84,2,84,3],[87,2,89,3],[91,2,93,3],[94,2,96,3],[97,2,98,3],[101,2,101,3],[90,2,90,3],[190,2,191,3],[127,2,128,3],[134,2,134,3],[182,2,184,3],[186,2,188,3],[170,2,170,3],[124,2,124,3],[108,2,108,3],[109,2,109,3],[152,2,152,3],[145,2,145,3],[147,2,147,3],[193,2,196,3],[13,2,13,3],[14,2,14,3],[192,2,192,3],[189,2,189,3],[185,2,185,3],[181,2,181,3],[132,2,133,3],[135,2,135,3],[136,2,136,3],[171,2,175,3],[177,2,180,3],[176,2,176,3],[66,2,66,3],[169,2,169,3],[126,2,126,3],[148,2,148,3],[142,2,142,3],[151,2,151,3],[149,2,150,3],[125,2,125,3],[144,2,144,3],[141,2,141,3],[143,2,143,3],[137,2,137,3],[139,2,140,3],[138,2,138,3],[119,2,119,3],[120,2,122,3],[110,2,110,3],[111,2,111,3],[105,2,106,3],[115,2,115,3],[117,2,117,3],[113,2,113,3],[114,2,114,3],[116,2,116,3],[118,2,118,3],[74,2,74,3],[75,2,80,3],[166,2,167,3],[163,2,163,3],[164,2,164,3],[156,2,157,3],[165,2,165,3],[161,2,162,3],[153,2,153,3],[154,2,154,3],[155,2,155,3],[158,2,159,3],[160,2,160,3],[100,2,100,3],[102,2,102,3],[104,2,104,3]]}
[null,{"$f":"Version_ID & \" - \" & Date_ID","v":"FY26.3.5 - Version 20250811"}]
[]
[null,null,null,{"$f":"'Customer Information'!$P$3","v":"FY26 SRP Standard Business Solutions Lighting"}]
[null,null,null,"Help & Notes"]
[]
[]
[null,null,"yellow cells indicate input is required"]
[null,null,"light gray cells indicate auto-calculation based on other inputs"]
[null,null,"Red text or fields indicates an issue needing attention"]
[]
[null,null,"Note: Macros are not required for this application to function correctly; however, some features may be unavailable to users while macros are disabled or unavailable."]
[]
[]
[null,null,"Blocked Content: Macros in this document have been disabled"]
[null,null,"How to Enable Macros"]
[null,null,"1. Navigate to File > Options > Trust Center and click on \"Trust Center Settings...\""]
[]
[]
[]
[]
[]
[]
[]
[]
[]
[]
[]
[]
[]
[]
[]
[null,null,"2. Go to \"Macro Settings\" and verify either \"Disable VBA macros with notification or Enable VBA macros is selected. Click \"OK,\" then close and reopen the application to check if this fixes the issue."]
[]
[]
[]
[]
[]
[]
[]
[]
[]
[]
[]
[]
[]
[]
[]
[]
[null,null,"3. If the last step did not fix the issue, navigate to \"Trusted Locations\", follow the prompts to select (or create) a new trusted location (\"Add new location…\"), [optional] and select the box to allow Subfolders to also be trusted. Save the application to the new trusted location, then reopen the application to check if this fixes the issue."]
[]
[]
[]
[]
[]
[]
[]
[]
[]
[]
[]
[]
[]
[]
[]
[null,null,"4. If you continue to have issues, contact us at savewithsrpbiz@srpnet.com or reach out to your SRP representative."]
[]
[null,null,"Customer Information Page"]
[null,null,"Project & Participant Information"]
[null,null,"Enter the specific details of the location for which the project is being performed. Rate Schedule is required to populate the project summary. Account information can be found on the customer utility bill."]
[]
[null,null,"Payee Information"]
[null,null,"Enter the payment recipient information. Incentive recipient can be the project's contact, the building owner or tenant, or a third-party trade ally (with a valid Payment Assignment Release form filled out and signed by the customer for the third-party recipient OR a valid Letter of Authorization authorizing payments to be made to the third-party recipient)."]
[]
[]
[null,null,"Rebate Limits (Maximum and Minimum)"]
[null,null,"Customers are subject to a maximum rebate of $450,000 from May 1 through April 30 for all SRP programs, with separate program area caps of $300,000 for Energy Efficiency programs, $300,000 for Business EV programs, and $100,000 for Beneficial Electrification programs. Program- or technology-based limits may also be applicable, based on program terms and conditions. A customer is defined as all accounts under a single customer, even if these accounts are at multiple sites. There is a minimum rebate amount of $100.00 for lighting projects ($50.00 for mechanical & more) required for participation in the SRP Business Solutions Standard Program. SRP reserves the right to determine at their sole discretion the program year to which a rebate is attributed."]
[]
[]
[]
[]
[]
[null,null,"Contractor/Trade Ally Information"]
[null,null,"Enter the information for the Contractor/Trade Ally involved in the project."]
[null,null,"Project Type"]
[null,null,"Retrofit:"]
[null,null,"Lighting equipment is installed in a pre-existing facility as an upgrade from an old lighting type to a newer more efficient lighting type. (Pre-Approval is Required before Purchasing and Installing Equipment)"]
[]
[null,null,"(Note: Major Renovations qualify under Retrofit lighting project types) Lighting equipment is installed in a facility use type where the existing system will not meet Owner/Customer projected requirements within existing facility square footage. (Pre-Approval is Required before Purchasing and Installing Equipment)"]
[]
[]
[null,null,"New Construction:"]
[null,null,"Building Area: Lighting equipment installed in a newly constructed facility or in newly constructed square footage added to an existing facility. Building allowances (under the Facility Information tab) are used to establish baseline conditions. (Application is submitted after installation with final invoices) "]
[]
[]
[null,null,"Space-by-Space: Lighting equipment installed in a newly constructed facility or in newly constructed square footage added to an existing facility. Individual zone allowances (under the Facility Information tab) are used to establish baseline conditions. (Application is submitted after installation with final invoices) "]
[]
[]
[null,null,"Note: The lighting tool cannot be used to calculate savings or incentive for new construction or major renovation space types where energy code does not apply. Please contact your project coordinator for additional information."]
[]
[null,null,"Project Costs (Must enter this information for tool to calculate pay-back)"]
[null,null,"Material: Enter the costs of all installed lighting equipment (fixtures, lamps, ballasts, controls)."]
[null,null,"Labor: Enter the costs of all labor. If the project is self-installed, please provide hours of work performed and billing rate per hour. "]
[null,null,"Other: Enter all other applicable costs (sales tax, permit and disposal fees, equipment rentals)."]
[null,null,"Facility Information (Retrofits only)"]
[null,null,"Space Type: Enter the facility type for the project. For New Construction, please refer to the Facility Information tab."]
[null,null,"Square Footage: Enter the applicable square footage for each selected space type. For New Construction, please refer to the Facility Information tab."]
[]
[null,null,"Operation Schedule"]
[null,null,"# Holidays Closed: This refers to nationally observed holidays during which federal institutions are closed. "]
[null,null,"Weeks per Year: Enter the weeks per year the facility is in operation. "]
[null,null,"Schedule 'X': Use this schedule for 24/7 emergency lighting (i.e. exit signs)."]
[null,null,"Schedule 'Y': Use this schedule for night only lighting."]
[]
[null,null,"Facility Information (New Construction)"]
[null,null,"Building Area & Space-by-Space"]
[null,null,"Space Type: Enter the facility type for the project. Each major zone can be separated by different building area types."]
[null,null,"Area Sq Ft: Enter the applicable square footage for each selected space type."]
[null,null,"Space-by-Space Only"]
[null,null,"Windows: Enter if a space has a window to the exterior of the facility."]
[null,null,"Additional Controls: Enter if an eligible space has additional dimming, workstation, or secondary daylighting controls."]
[null,null,"Fixtures: For each line item, select an existing or proposed equipment field and then click the light bulb icon in the column header. This will launch the fixture builder where you can select the applicable components, including controls, for the equipment you wish to add or update. Once you've added the equipment, enter the appropriate fixture quantity."]
[]
[]
[]
[null,null,"Exterior Information (New Construction)"]
[null,null,"Zone Type: Enter the city zoning type (0-4) based on the descriptions provided."]
[null,null,"Tradeable Surfaces: Enter the square footage for any surfaces that apply."]
[null,null,"Non-Tradeable Surfaces: Surfaces or areas that apply may not be used for any other tradeable or non-tradeable surface type. Enter the square footage for any surfaces that apply."]
[]
[]
[null,null,"Project Information Page (New Construction)"]
[null,null,"Facility Information"]
[null,null,"Schedule: For each line item, select from the schedules (A, B, C, D, E, S, X, or Y) that were input on the Customer Information tab."]
[]
[null,null,"Interior/Exterior: For each line item, select if a fixture is inside or outside of the facility."]
[null,null,"Zone Description: For each line item, select from the list of zones that the fixture for this line item can be found."]
[null,null,"Space Description: For each line item, provide a unique description for the specific location of the fixtures."]
[null,null,"Fixture Information"]
[null,null,"Fixture Qty: For each line item, provide a unique description for the specific location of the fixtures."]
[null,null,"Fixture Technology: For each line item, select the type of fixture being used. (The application needs to be filled out with all fixtures being used in the facility to accurately calculate incentives and savings)"]
[]
[null,null,"#Lamps/Fixture: For each line item, provide a unique description for the specific location of the fixtures."]
[null,null,"Fixture/Lamp Wattage: For each line item, provide a unique description for the specific location of the fixtures."]
[null,null,"Fixture Type: For each line item, provide a unique description for the specific location of the fixtures."]
[null,null,"Controls: For each line item, provide a unique description for the specific location of the fixtures."]
[null,null,"Manufacturer/Model: For each line item, provide a unique description for the specific location of the fixtures."]
[]
[null,null,"Project Information Page (Retrofit)"]
[null,null,"Facility Information"]
[null,null,"Schedule: For each line item, select from the schedules (A, B, C, D, E, S, X, or Y) that were input on the Customer Information tab."]
[]
[null,null,"Interior/Exterior: For each line item, select if a fixture is inside or outside of the facility."]
[null,null,"Zone Description: For each line item, select from the list of zones that the fixture for this line item can be found."]
[null,null,"Space Description: For each line item, provide a unique description for the specific location of the fixtures."]
[null,null,"Fixture Information"]
[null,null,"Fixture Qty: For each line item, provide a unique description for the specific location of the fixtures."]
[null,null,"Note: For major renovations, update both the existing and proposed fixture quantities to reflect what is being changed out. Each line item must have at least one fixture in order to calculate correctly."]
[]
[null,null,"Fixture Technology: For each line item, select the type of fixture being used. (Only proposed LED's qualify for incentives and will calculate savings)"]
[]
[null,null,"#Lamps/Fixture: For each line item, if a fixture has lamps, select the number of lamps in this fixture."]
[null,null,"Fixture/Lamp Wattage: For each line item, if a fixture has lamps, select the lamp wattage this fixture. If a fixture does not have lamps, enter in the fixture wattage."]
[]
[null,null,"Fixture Type: For each line item, select the fixture type."]
[null,null,"Controls: For each line item, select the type of controls for the fixture."]
[null,null,"Manufacturer/Model: For each line item, provide the manufacturer and model information for the proposed fixture."]
[null,null,"DLC/ES Certification: For each line item, provide the DesignLights Consortium (DLC) or Energy Star (ES) certification information for the proposed fixture."]
[]
[]
[null,null,"Lighting Savings Methodology"]
[null,null,"Lighting Energy Savings Calculations"]
[null,null,"For each line in the tool (generally indicative of an individual space in a building), annual lighting savings (kWh/yr) are calculated by subtracting the proposed space energy use  (proposed fixture wattage multiplied by the quantity of proposed fixtures, multiplied  by the annual operating hours, and then dividing by 1000) from the baseline space energy use (baseline fixture wattage multiplied by the quantity of baseline fixtures, multiplied  by the annual operating hours, and then dividing by 1000). This is then multiplied by an applicable heating/cooling factor based on region and space type selections."]
[]
[]
[]
[]
[null,null,"Lighting Demand Savings Calculations"]
[null,null,"For each line in the tool, demand savings (kW) are calculated by subtracting the proposed space wattage (proposed fixture wattage multiplied by the quantity of proposed fixtures, and then dividing by 1000) from the baseline space wattage consumption (baseline fixture wattage multiplied by the quantity of baseline fixtures, and then dividing by 1000). The resultant kW reduction is then multiplied by an appropriate demand diversity factor."]
[]
[]
[]
[null,null,"Baseline Wattage"]
[null,null,"The baseline wattage is generally the actual fixture wattage, except for fixtures/lamps that are regulated by federal efficacy standards, in which case the baseline wattage is a stipulated wattage consistent with a fixture/lamp that is minimally compliant with the efficacy standard. "]
[]
[]
[null,null,"Project Savings Calculations"]
[null,null,"The calculated lighting savings (kWh/yr) from each line in the tool are summed to determine the project savings.  Project savings are utilized with reported customer costs to determine the project simple payback and ROI. Project savings must be positive for the project to be eligible to receive incentives."]
[]
[]
[null,null,"Ineligible Fixture Savings Calculations"]
[null,null,"The savings calculation procedure is applied uniformly across all fixture combinations entered into the tool, regardless of whether the installed fixtures are eligible to receive incentives."]
[]
[null,null,"Control Energy Savings Calculations"]
[null,null,"Control savings are calculated by multiplying the lighting consumption calculated above for existing or proposed fixtures by a fixed percentage based on the control type.  For lighting projects replacing existing controls, the net control savings are estimated by subtracting the existing control savings from the proposed control savings for each space/line item in the tool. No demand savings are calculated for lighting controls. (See Eligibility tab for more information on Control Rebates.)"]

{"sheet":"CI Table","index":24,"n_rows":54,"n_cols":7,"rows_kept":54,"cut":false,"hidden":true,"merged":[]}
[]
["List_State","List_OpWks","List_Holidays",null,"List_ProjectType","List_HeardAbout"]
["AK",52,11]
["AL",51,10,null,"New Construction","SRP Web Site"]
["AR",50,9,null,"Retrofit","SRP Account Manager"]
["AZ",49,8,null,"List_ProjectStage","Radio"]
["CA",48,7,null,null,"TV"]
["CO",47,6,null,{"$f":"IF(Project_Type=\"\",\"\",IF(Project_Type=\"Retrofit\",\"(Pre-Install)\",\"(Evaluation)\"))","v":"(Pre-Install)"},"Mail"]
["CT",46,5,null,{"$f":"IF(Project_Type=\"\",\"\",IF(Project_Type=\"Retrofit\",\"(Post-Install)\",\"(Reservation)\"))","v":"(Post-Install)"},"E-Mail"]
["DE",45,4,null,{"$f":"IF(Project_Type=\"\",\"\",IF(Project_Type=\"Retrofit\",\"\",\"(Installed)\"))","v":""},"Trade Show"]
["FL",44,3,null,"List_PreparedBy","Newspaper / Magazine"]
["GA",43,2,null,null,"Bill / Bill Insert / Contact"]
["HI",42,1,null,"Customer","Internet / Online Advertising"]
["IA",41,0,null,"Installer/Trade Ally","SRP Call"]
["ID",40,null,null,"Distributer","SRP Representative"]
["IL",39,null,null,"SRP Representative","SRP Electronic Newsletter"]
["IN",38,null,null,"Other","Industry Event"]
["KS",37,null,null,"List_AddressedTo","SRP Event"]
["KY",36,null,null,null,"Contractor / Vendor"]
["LA",35,null,null,"Installation Address","Colleague / Word Of Mouth"]
["MA",34,null,null,"Participant Address","Don't Know"]
["MD",33,null,null,"Trade Ally Address"]
["ME",32,null,null,"Other: Please Specify"]
["MI",31,null,null,"List_ApplicantIs"]
["MN",30]
["MO",29,null,null,"Account Holder"]
["MS",28,null,null,"Facility Owner"]
["MT",27,null,null,"Project Manager"]
["NC",26]
["ND",25,null,null,"List_BillingRate","List_BillingkWh","List_BillingkW"]
["NE",24,null,null,"E-31",{"$f":"F32","v":0.1106},{"$f":"G32","v":0.1245}]
["NH",23,null,null,"E-32",0.1106,0.1245]
["NJ",22,null,null,"E-33",{"$f":"F32","v":0.1106},{"$f":"G32","v":0.1245}]
["NM",21,null,null,"E-34",{"$f":"F32","v":0.1106},{"$f":"G32","v":0.1245}]
["NV",20,null,null,"E-36",0.1138,0.12809999999999999]
["NY",19,null,null,"E-47",0.1103,0.1305]
["OH",18,null,null,"E-48",0.1123,0.1173]
["OK",17,null,null,"E-61",9.6199999999999994E-2,0.1227]
["OR",16,null,null,"E-63",9.6299999999999997E-2,0.1232]
["PA",15,null,null,"E-65",7.9299999999999995E-2,0.1094]
["RI",14,null,null,"E-66",7.0000000000000007E-2,6.7500000000000004E-2]
["SC",13,null,null,"E-67",8.0299999999999996E-2,0.1108]
["SD",12]
["TN",11]
["TX",10]
["UT",9]
["VA",8]
["VT",7]
["WA",6]
["WI",5]
["WV",4]
["WY",3]
[null,2]
[null,1]

{"sheet":"Measure Tables","index":25,"n_rows":348,"n_cols":24,"rows_kept":348,"cut":false,"hidden":true,"merged":[[0,16,0,21]]}
["Controls Type","Description","CSF",null,"Fixture Type",null,"Facility Type","EIF","DIF","CFltg","DFltg ","CFhvac","DFhvac",null,null,null,"Actual Wattages"]
[null,"No Controls",0,null,null,null,"Assisted Living Facility",1.1562950021788232,1.3363751295530513,0.53012037010916413,0.99999952084591115,0.73282020442730067,0.53179053762336792,null,null,null,1,2,3,4,6,8]
["No Controls","No Controls",0,null,"Bollard",null,"Automotive Facility",1.1718913769829171,1.368682607988212,1,0.85000000000000009,0.85654213427503234,0.98482786323936855,null,"Technology","Typical Wattage","1L","2L","3L","4L","6L","8L"]
["Occupancy","Occupancy Sensor",0.24,null,"Case Lighting",null,"Casino",1.2392863132867036,1.4659622602529223,1,0.89999344200521281,0.74518887744668294,0.78616759619058807,null,"CFL Pin-Based",5,{"$f":"P4","v":5},{"$f":"$Q4*R$2","v":10},15,20,30,40]
["Daylight Harvesting","Daylight Harvesting",0.28000000000000003,null,"Canopy/Soffit",null,"Convention Center",1.3596047624859784,1.4424029787838604,0.41770335162957012,0.98182537728101948,0.74518887744668294,0.78616759619058807,null,"CFL Pin-Based",7,7,14,21,28,42,56]
["Occupancy + Daylight","Occupancy Sensor + Daylight Harvesting",0.38,null,"Direct/Indirect",null,"Court House",1.2508938185921956,1.3383812392286822,1,0.90000025140266449,0.95662193767187742,0.69495194330343235,null,"CFL Pin-Based",9,9,18,27,36,54,72]
["Networked","Networked Lighting Control",0.38,null,"Downlight",null,"Data Center",1.2032633428349651,1.3628272179964855,0.97371480739857841,0.77528274152008492,0.87976728716678998,0.9317735308259727,null,"CFL Pin-Based",13,13,26,39,52,78,104]
[null,null,null,null,"Exit Sign",null,"Dining: Bar Lounge/Leisure",1.2392863132867036,1.4659622602529223,1,0.89999344200521281,0.78152306438710439,0.89463851626418944,null,"CFL Pin-Based",15,15,30,45,60,90,120]
["Rank","Category","Technology",null,"Flood ",null,"Dining: Cafeteria/Fast Food",1.2180076731585909,1.6278933494822945,1,0.89999678496716984,0.78413578216333957,0.87834147539486851,null,"CFL Pin-Based",18,18,36,54,72,108,144]
[0,null,null,null,"High/Low Bay",null,"Dining: Family",1.2392863132867036,1.4659622602529223,1,0.89999344200521281,0.78152306438710439,0.89463851626418944,null,"CFL Pin-Based",22,22,44,66,88,132,176]
[null,"LED","LED Fixture",null,"Integral Track Head",null,"Dormitory",1.3596047624859784,1.4424029787838604,0.41770335162957012,0.98182537728101948,0.69665769505049935,0.791973458683493,null,"CFL Pin-Based",24,24,48,72,96,144,192]
[null,"LED","LED Retrofit Kit",null,"Pole Mount ",null,"Exercise Center",1.2180076731585909,1.6278933494822945,1,0.89999678496716984,0.78413578216333957,0.87834147539486851,null,"CFL Pin-Based",26,26,52,78,104,156,208]
[null,"LED","LED Tube (Type A)",null,"Sconce/Wall Wash",null,"Fire Station",1.3596047624859784,1.4424029787838604,0.41770335162957012,0.98182537728101948,0.69665769505049935,0.791973458683493,null,"CFL Pin-Based",28,28,{"$f":"$Q13*R$2","v":56},84,112,168,224]
[null,"LED","LED Tube (Type B)",null,"Screw-In/Pin-Based",null,"Grow Facility",1.2963313630169873,1.4875625260009731,1,0.84999985001685796,0.82691209389654485,0.96258935444166838,null,"CFL Pin-Based",36,36,72,108,144,216,288]
[null,"LED","LED Tube (Type C)",null,"Strip/Wrap",null,"Gymnasium",1.2180076731585909,1.6278933494822945,1,0.89999678496716984,0.78413578216333957,0.87834147539486851,null,"CFL Pin-Based",40,40,80,120,160,240,320]
[null,"Fluorescent - Compact","CFL Pin-Based",null,"Surface Mount",null,"Health Care - Clinic",1.2032633428349651,1.3628272179964855,0.97371480739857841,0.77528274152008492,0.82858191859104668,0.67356825465299586,null,"CFL Pin-Based",50,50,100,150,200,300,400]
[null,"Fluorescent - Compact","CFL Screw-In",null,"Troffer",null,"Health Care - Hospital",1.2032633428349651,1.3628272179964855,0.97371480739857841,0.77528274152008492,0.82858191859104668,0.67356825465299586,null,"CFL Pin-Based",60,60,120,180,240,360,480]
[null,"Fluorescent - Induction","Induction Fixture",null,"Wall Pack",null,"Hotel",1.3596047624859784,1.4424029787838604,0.41770335162957012,0.98182537728101948,0.74518887744668294,0.78616759619058807,null,"CFL Screw-In",5,5,10,15,20,30,40]
[null,"Fluorescent - T12","FLT12 - 2 Ft",null,"n/a",null,"Laboratory",1.2963313630169873,1.4875625260009731,1,0.84999985001685796,0.82691209389654485,0.96258935444166838,null,"CFL Screw-In",7,7,14,21,28,42,56]
[null,"Fluorescent - T12","FLT12 - 3 Ft",null,null,null,"Library",1.2350704200957396,1.5044126707298549,1,0.89998827836271755,0.93642955632510283,0.86709451162918505,null,"CFL Screw-In",9,9,18,27,36,54,72]
[null,"Fluorescent - T12","FLT12 - 4 Ft",null,"Ballast[FLT5]",null,"Manufacturing Facility",1.2963313630169873,1.4875625260009731,1,0.84999985001685796,0.82691209389654485,0.96258935444166838,null,"CFL Screw-In",9.5,9.5,19,28.5,38,57,76]
[null,"Fluorescent - T12","FLT12 - 6 Ft",null,null,null,"Motel",1.3757817519847171,1.5041947935012208,0.53584793814863918,0.9780982721553636,0.74518887744668294,0.78616759619058807,null,"CFL Screw-In",11,11,22,33,44,66,88]
[null,"Fluorescent - T12","FLT12 - 8 Ft",null,"RS/PRS",null,"Motion Picture Theater",1.2180076731585909,1.6278933494822945,1,0.89999678496716984,0.78413578216333957,0.87834147539486851,null,"CFL Screw-In",14,14,{"$f":"$Q23*R$2","v":28},42,56,84,112]
[null,"Fluorescent - T12","FLT12HO - 4 Ft",null,null,null,"Multi-Family Housing",1.1562950021788232,1.3363751295530513,0.53012037010916413,0.99999952084591115,0.73282020442730067,0.53179053762336792,null,"CFL Screw-In",15,15,30,45,60,90,120]
[null,"Fluorescent - T12","FLT12HO - 6 Ft",null,"Ballast[FLT8]",null,"Museum",1.2350704200957396,1.5044126707298549,1,0.89998827836271755,0.93642955632510283,0.86709451162918505,null,"CFL Screw-In",20,20,40,60,80,120,160]
[null,"Fluorescent - T12","FLT12HO - 8 Ft",null,null,null,"Office, Large",1.2508938185921956,1.3383812392286822,1,0.90000025140266449,0.81035172290338142,0.55707121661632597,null,"CFL Screw-In",23,23,46,69,92,138,184]
[null,"Fluorescent - T12","FUT12 - 2 Ft",null,"IS L",null,"Office, Small",1.2350704200957396,1.5044126707298549,1,0.89998827836271755,0.93642955632510283,0.86709451162918505,null,"CFL Screw-In",24,24,48,72,96,144,192]
[null,"Fluorescent - T5","FLT5 - 2 Ft",null,"IS N",null,"Parking Garage",1.2350704200957396,1.5044126707298549,1,0.89998827836271755,0.93642955632510283,0.86709451162918505,null,"CFL Screw-In",25,25,50,75,100,150,200]
[null,"Fluorescent - T5","FLT5 - 3 Ft",null,"IS H",null,"Penitentiary",1.1562950021788232,1.3363751295530513,0.53012037010916413,0.99999952084591115,0.73282020442730067,0.53179053762336792,null,"CFL Screw-In",25,25,50,75,100,150,200]
[null,"Fluorescent - T5","FLT5 - 4 Ft",null,"RS/PRS L",null,"Performing Arts Theater",1.2396620156609925,1.2253227962367013,0.55555521231856131,0.89999979480935366,0.78514709812911909,0.94316935119732148,null,"CFL Screw-In",40,40,80,120,160,240,320]
[null,"Fluorescent - T5","FLT5HO - 2 Ft",null,"RS/PRS N",null,"Police Station",1.3596047624859784,1.4424029787838604,0.41770335162957012,0.98182537728101948,0.69665769505049935,0.791973458683493,null,"CFL Screw-In",40,40,80,120,160,240,320]
[null,"Fluorescent - T5","FLT5HO - 3 Ft",null,"RS/PRS H",null,"Post Office",1.2350704200957396,1.5044126707298549,1,0.89998827836271755,0.93642955632510283,0.86709451162918505,null,"CFL Screw-In",60,60,120,180,240,360,480]
[null,"Fluorescent - T5","FLT5HO - 4 Ft",null,null,null,"Religious Building",1.2495772912168774,1.4583371512037846,1,0.64999889383361431,0.70879583615908681,1.0342307244400808,null,"CFL Screw-In",65,65,{"$f":"$Q33*R$2","v":130},195,260,390,520]
[null,"Fluorescent - T8","FLT8 - 2 Ft",null,"Ballast[FLT12]",null,"Retail, Food/Grocery",1.3079904888074227,1.506782823143078,1,0.90000245176601834,0.75292522920299365,1.1028298044779137,null,"CFL Screw-In",105,105,210,315,420,630,840]
[null,"Fluorescent - T8","FLT8 - 3 Ft",null,null,null,"Retail, Commodity",1.3080699470390706,1.4995730939115921,1,0.89999971487646002,0.75292522920299365,1.1028298044779137,null,"FLT12 - 2 Ft - IS N",20,25.5,{"$f":"Table_TypWattage[[#This Row],[1L]]*R$2","v":51},{"$f":"Table_TypWattage[[#This Row],[1L]]*S$2","v":76.5},{"$f":"Table_TypWattage[[#This Row],[1L]]*T$2","v":102},{"$f":"Table_TypWattage[[#This Row],[1L]]*U$2","v":153},{"$f":"Table_TypWattage[[#This Row],[1L]]*V$2","v":204},null,"<-- CHECK"]
[null,"Fluorescent - T8","FLT8 - 4 Ft",null,"MG",null,"Retail, Specialty",1.3080699470390706,1.4995730939115921,1,0.89999971487646002,0.75292522920299365,1.1028298044779137,null,"FLT12 - 3 Ft - IS N",30,33,{"$f":"Table_TypWattage[[#This Row],[1L]]*R$2","v":66},104,{"$f":"Table_TypWattage[[#This Row],[1L]]*T$2","v":132},{"$f":"Table_TypWattage[[#This Row],[1L]]*U$2","v":198},{"$f":"Table_TypWattage[[#This Row],[1L]]*V$2","v":264},null,"<-- CHECK"]
[null,"Fluorescent - T8","FLT8 - 6 Ft",null,null,null,"Primary School",1.2302585277564499,1.5303353951869703,0.55555526705538694,0.89999911761693552,0.75292522920299365,1.1028298044779137,null,"FLT12 - 4 Ft - IS N",34,43,72,115,144,216,{"$f":"ROUND(Table_TypWattage[[#This Row],[6L]]/6/Table_TypWattage[[#This Row],[Typical Wattage]]*Table_TypWattage[[#This Row],[Typical Wattage]]*$V$2,)","v":288},null,"<-- CHECK"]
[null,"Fluorescent - T8","FLT8 - 8 Ft",null,"Ballast[HID]",null,"Sec. School",1.2396620156609925,1.2253227962367013,0.55555521231856131,0.89999979480935366,0.75292522920299365,1.1028298044779137,null,"FLT12 - 4 Ft - IS N",40,{"$f":"ROUND(Q37/$P$51*$P$52,)","v":51},{"$f":"ROUND(R37/$P$51*$P$52,)","v":85},{"$f":"ROUND(S37/$P$51*$P$52,)","v":135},{"$f":"ROUND(T37/$P$51*$P$52,)","v":169},{"$f":"ROUND(U37/$P$51*$P$52,)","v":254},{"$f":"ROUND(V37/$P$51*$P$52,)","v":339},null,"<-- CHECK"]
[null,"Fluorescent - T8","FUT8 - 2 Ft",null,null,null,"University",1.2867193160524046,1.0125375343666601,0.94991699402651275,0.76673070649249553,0.70879583615908681,1.0342307244400808,null,"FLT12 - 6 Ft - IS N",50,70,{"$f":"ROUND(SLOPE($R$65:$U$65,$R$2:$U$2)/$Q$65*Table_TypWattage[[#This Row],[1L]]*R$2+INTERCEPT($R$65:$U$65,$R$2:$U$2)/$Q$65*Table_TypWattage[[#This Row],[1L]],0)","v":122},{"$f":"ROUND(SLOPE($R$65:$U$65,$R$2:$U$2)/$Q$65*Table_TypWattage[[#This Row],[1L]]*S$2+INTERCEPT($R$65:$U$65,$R$2:$U$2)/$Q$65*Table_TypWattage[[#This Row],[1L]],0)","v":179},{"$f":"ROUND(SLOPE($R$65:$U$65,$R$2:$U$2)/$Q$65*Table_TypWattage[[#This Row],[1L]]*T$2+INTERCEPT($R$65:$U$65,$R$2:$U$2)/$Q$65*Table_TypWattage[[#This Row],[1L]],0)","v":237},{"$f":"ROUND(SLOPE($R$65:$U$65,$R$2:$U$2)/$Q$65*Table_TypWattage[[#This Row],[1L]]*U$2+INTERCEPT($R$65:$U$65,$R$2:$U$2)/$Q$65*Table_TypWattage[[#This Row],[1L]],0)","v":352},{"$f":"ROUND(SLOPE($R$65:$U$65,$R$2:$U$2)/$Q$65*Table_TypWattage[[#This Row],[1L]]*V$2+INTERCEPT($R$65:$U$65,$R$2:$U$2)/$Q$65*Table_TypWattage[[#This Row],[1L]],0)","v":468},null,"<-- CHECK"]
[null,"HID","Low Pressure Sodium",null,"Magnetic",null,"Sports Arena",1.2396620156609925,1.2253227962367013,0.55555521231856131,0.89999979480935366,0.70284943487331952,0.89786538891568113,null,"FLT12 - 6 Ft - IS N",55,76,{"$f":"ROUND(SLOPE($R$65:$U$65,$R$2:$U$2)/$Q$65*Table_TypWattage[[#This Row],[1L]]*R$2+INTERCEPT($R$65:$U$65,$R$2:$U$2)/$Q$65*Table_TypWattage[[#This Row],[1L]],0)","v":132},{"$f":"ROUND(SLOPE($R$65:$U$65,$R$2:$U$2)/$Q$65*Table_TypWattage[[#This Row],[1L]]*S$2+INTERCEPT($R$65:$U$65,$R$2:$U$2)/$Q$65*Table_TypWattage[[#This Row],[1L]],0)","v":195},{"$f":"ROUND(SLOPE($R$65:$U$65,$R$2:$U$2)/$Q$65*Table_TypWattage[[#This Row],[1L]]*T$2+INTERCEPT($R$65:$U$65,$R$2:$U$2)/$Q$65*Table_TypWattage[[#This Row],[1L]],0)","v":257},{"$f":"ROUND(SLOPE($R$65:$U$65,$R$2:$U$2)/$Q$65*Table_TypWattage[[#This Row],[1L]]*U$2+INTERCEPT($R$65:$U$65,$R$2:$U$2)/$Q$65*Table_TypWattage[[#This Row],[1L]],0)","v":382},{"$f":"ROUND(SLOPE($R$65:$U$65,$R$2:$U$2)/$Q$65*Table_TypWattage[[#This Row],[1L]]*V$2+INTERCEPT($R$65:$U$65,$R$2:$U$2)/$Q$65*Table_TypWattage[[#This Row],[1L]],0)","v":508},null,"<-- CHECK"]
[null,"HID","High Pressure Sodium",null,"Electronic",null,"Town Hall",1.2350704200957396,1.5044126707298549,1,0.89998827836271755,0.93642955632510283,0.86709451162918505,null,"FLT12 - 8 Ft - IS N",60,61,{"$f":"Table_TypWattage[[#This Row],[1L]]*R$2","v":122},210,246,{"$f":"Table_TypWattage[[#This Row],[1L]]*U$2","v":366},{"$f":"Table_TypWattage[[#This Row],[1L]]*V$2","v":488},null,"<-- CHECK"]
[null,"HID","Mercury Vapor",null,"n/a",null,"Transportation",1.2350704200957396,1.5044126707298549,1,0.89998827836271755,0.93642955632510283,0.86709451162918505,null,"FLT12 - 8 Ft - IS N",75,76,{"$f":"Table_TypWattage[[#This Row],[1L]]*R$2","v":152},{"$f":"Table_TypWattage[[#This Row],[1L]]*S$2","v":228},{"$f":"Table_TypWattage[[#This Row],[1L]]*T$2","v":304},{"$f":"Table_TypWattage[[#This Row],[1L]]*U$2","v":456},{"$f":"Table_TypWattage[[#This Row],[1L]]*V$2","v":608},null,"<-- CHECK"]
[null,"HID","Metal Halide",null,null,null,"Warehouse, Refrigerated",1.0047951244751567,1.0119143741927885,1,0.42,0.88420655684298222,0.91741034071781868,null,"FLT12HO - 4 Ft - IS N",60,85,145,{"$f":"ROUND(AVERAGE(Table_TypWattage[[#This Row],[2L]],Table_TypWattage[[#This Row],[4L]]),0)","v":218},290,{"$f":"ROUND(SLOPE(Table_TypWattage[[#This Row],[1L]:[4L]],$Q$2:$T$2)*U$2+INTERCEPT(Table_TypWattage[[#This Row],[1L]:[4L]],$Q$2:$T$2),0)","v":425},{"$f":"ROUND(SLOPE(Table_TypWattage[[#This Row],[1L]:[4L]],$Q$2:$T$2)*V$2+INTERCEPT(Table_TypWattage[[#This Row],[1L]:[4L]],$Q$2:$T$2),0)","v":563},null,"<-- CHECK"]
[null,"HID","Metal Halide (Ceramic)",null,"List_HID",null,"Warehouse, Commercial",1.3332238223999997,1.6904411452966506,1,0.89999967792923119,0.8433864273803382,0.84732554020676287,null,"FLT12HO - 4 Ft - IS N",75,105,{"$f":"ROUND(R43/$Q$71*Table_TypWattage[[#This Row],[1L]],0)","v":179},{"$f":"ROUND(S43/$Q$71*Table_TypWattage[[#This Row],[1L]],0)","v":269},{"$f":"ROUND(T43/$Q$71*Table_TypWattage[[#This Row],[1L]],0)","v":358},{"$f":"ROUND(U43/$Q$71*Table_TypWattage[[#This Row],[1L]],0)","v":525},{"$f":"ROUND(V43/$Q$71*Table_TypWattage[[#This Row],[1L]],0)","v":695},null,"<-- CHECK"]
[null,"HID","Metal Halide (Pulse Start)",null,"Low Pressure Sodium",null,"Warehouse, Industrial",1.3332238223999997,1.6904411452966506,1,0.89999967792923119,0.8433864273803382,0.84732554020676287,null,"FLT12HO - 6 Ft - IS N",80,{"$f":"ROUND(Q46/P46*Table_TypWattage[[#This Row],[Typical Wattage]],0)","v":113},{"$f":"Table_TypWattage[[#This Row],[1L]]*R$2","v":226},{"$f":"Table_TypWattage[[#This Row],[1L]]*S$2","v":339},{"$f":"Table_TypWattage[[#This Row],[1L]]*T$2","v":452},{"$f":"Table_TypWattage[[#This Row],[1L]]*U$2","v":678},{"$f":"Table_TypWattage[[#This Row],[1L]]*V$2","v":904},null,"<-- CHECK"]
[null,"Incandescent","Halogen",null,"High Pressure Sodium",null,"Workshop",1.2801205907372701,1.468908872943522,1,0.84999835437104576,0.92415131745595724,0.92215004338869955,null,"FLT12HO - 6 Ft - IS N",85,120,{"$f":"Table_TypWattage[[#This Row],[1L]]*R$2","v":240},{"$f":"Table_TypWattage[[#This Row],[1L]]*S$2","v":360},{"$f":"Table_TypWattage[[#This Row],[1L]]*T$2","v":480},{"$f":"Table_TypWattage[[#This Row],[1L]]*U$2","v":720},{"$f":"Table_TypWattage[[#This Row],[1L]]*V$2","v":960},null,"<-- CHECK"]
[null,"Incandescent","Incandescent",null,"Mercury Vapor",null,"Exterior",0,0,0,0,0,0,null,"FLT12HO - 8 Ft - IS N",95,125,207,{"$f":"ROUND(SLOPE($Q$75:$R$75,$Q$2:$R$2)*S$2+INTERCEPT($Q$75:$R$75,$Q$2:$R$2),0)","v":289},{"$f":"ROUND(SLOPE($Q$75:$R$75,$Q$2:$R$2)*T$2+INTERCEPT($Q$75:$R$75,$Q$2:$R$2),0)","v":371},{"$f":"ROUND(SLOPE($Q$75:$R$75,$Q$2:$R$2)*U$2+INTERCEPT($Q$75:$R$75,$Q$2:$R$2),0)","v":535},{"$f":"ROUND(SLOPE($Q$75:$R$75,$Q$2:$R$2)*V$2+INTERCEPT($Q$75:$R$75,$Q$2:$R$2),0)","v":699},null,"<-- CHECK"]
[null,null,null,null,"Metal Halide",null,null,null,null,null,null,null,null,null,"FLT12HO - 8 Ft - IS N",110,{"$f":"Table_TypWattage[[#This Row],[2L]]/2","v":121},242,{"$f":"Table_TypWattage[[#This Row],[1L]]*S$2","v":363},{"$f":"Table_TypWattage[[#This Row],[1L]]*T$2","v":484},{"$f":"Table_TypWattage[[#This Row],[1L]]*U$2","v":726},{"$f":"Table_TypWattage[[#This Row],[1L]]*V$2","v":968},null,"<-- CHECK"]
["Fixture Description","Rebate (per kW)",null,null,"Metal Halide (Ceramic)",null,null,null,null,null,null,null,null,null,"FLT12 - 2 Ft - MG",20,25.5,{"$f":"Table_TypWattage[[#This Row],[1L]]*R$2","v":51},{"$f":"Table_TypWattage[[#This Row],[1L]]*S$2","v":76.5},{"$f":"Table_TypWattage[[#This Row],[1L]]*T$2","v":102},{"$f":"Table_TypWattage[[#This Row],[1L]]*U$2","v":153},{"$f":"Table_TypWattage[[#This Row],[1L]]*V$2","v":204},null,"<-- CHECK"]
["New Construction Interior LED Fixture",250,null,null,"Metal Halide (Pulse Start)",null,null,null,null,null,null,null,null,null,"FLT12 - 3 Ft - MG",30,33,{"$f":"Table_TypWattage[[#This Row],[1L]]*R$2","v":66},104,{"$f":"Table_TypWattage[[#This Row],[1L]]*T$2","v":132},{"$f":"Table_TypWattage[[#This Row],[1L]]*U$2","v":198},{"$f":"Table_TypWattage[[#This Row],[1L]]*V$2","v":264},null,"<-- CHECK"]
["New Construction Exterior LED Fixture",150,null,null,null,null,null,null,null,null,null,null,null,null,"FLT12 - 4 Ft - MG",34,43,72,115,144,216,{"$f":"ROUND(Table_TypWattage[[#This Row],[6L]]/6/Table_TypWattage[[#This Row],[Typical Wattage]]*Table_TypWattage[[#This Row],[Typical Wattage]]*$V$2,)","v":288},null,"<-- CHECK"]
["Interior LED Fixture",350,null,null,null,null,null,null,null,null,null,null,null,null,"FLT12 - 4 Ft - MG",40,{"$f":"ROUND(Q51/$P$51*$P$52,)","v":51},{"$f":"ROUND(R51/$P$51*$P$52,)","v":85},135,169,254,339,null,"<-- CHECK"]
["LED Re-Lamp",250,null,null,null,null,null,null,null,null,null,null,null,null,"FLT12 - 6 Ft - MG",50,70,{"$f":"ROUND(SLOPE($R$65:$U$65,$R$2:$U$2)/$Q$65*Table_TypWattage[[#This Row],[1L]]*R$2+INTERCEPT($R$65:$U$65,$R$2:$U$2)/$Q$65*Table_TypWattage[[#This Row],[1L]],0)","v":122},{"$f":"ROUND(SLOPE($R$65:$U$65,$R$2:$U$2)/$Q$65*Table_TypWattage[[#This Row],[1L]]*S$2+INTERCEPT($R$65:$U$65,$R$2:$U$2)/$Q$65*Table_TypWattage[[#This Row],[1L]],0)","v":179},{"$f":"ROUND(SLOPE($R$65:$U$65,$R$2:$U$2)/$Q$65*Table_TypWattage[[#This Row],[1L]]*T$2+INTERCEPT($R$65:$U$65,$R$2:$U$2)/$Q$65*Table_TypWattage[[#This Row],[1L]],0)","v":237},{"$f":"ROUND(SLOPE($R$65:$U$65,$R$2:$U$2)/$Q$65*Table_TypWattage[[#This Row],[1L]]*U$2+INTERCEPT($R$65:$U$65,$R$2:$U$2)/$Q$65*Table_TypWattage[[#This Row],[1L]],0)","v":352},{"$f":"ROUND(SLOPE($R$65:$U$65,$R$2:$U$2)/$Q$65*Table_TypWattage[[#This Row],[1L]]*V$2+INTERCEPT($R$65:$U$65,$R$2:$U$2)/$Q$65*Table_TypWattage[[#This Row],[1L]],0)","v":468},null,"<-- CHECK"]
["Exterior LED Fixture",150,null,null,null,null,null,null,null,null,null,null,null,null,"FLT12 - 6 Ft - MG",55,76,{"$f":"ROUND(SLOPE($R$65:$U$65,$R$2:$U$2)/$Q$65*Table_TypWattage[[#This Row],[1L]]*R$2+INTERCEPT($R$65:$U$65,$R$2:$U$2)/$Q$65*Table_TypWattage[[#This Row],[1L]],0)","v":132},{"$f":"ROUND(SLOPE($R$65:$U$65,$R$2:$U$2)/$Q$65*Table_TypWattage[[#This Row],[1L]]*S$2+INTERCEPT($R$65:$U$65,$R$2:$U$2)/$Q$65*Table_TypWattage[[#This Row],[1L]],0)","v":195},{"$f":"ROUND(SLOPE($R$65:$U$65,$R$2:$U$2)/$Q$65*Table_TypWattage[[#This Row],[1L]]*T$2+INTERCEPT($R$65:$U$65,$R$2:$U$2)/$Q$65*Table_TypWattage[[#This Row],[1L]],0)","v":257},{"$f":"ROUND(SLOPE($R$65:$U$65,$R$2:$U$2)/$Q$65*Table_TypWattage[[#This Row],[1L]]*U$2+INTERCEPT($R$65:$U$65,$R$2:$U$2)/$Q$65*Table_TypWattage[[#This Row],[1L]],0)","v":382},{"$f":"ROUND(SLOPE($R$65:$U$65,$R$2:$U$2)/$Q$65*Table_TypWattage[[#This Row],[1L]]*V$2+INTERCEPT($R$65:$U$65,$R$2:$U$2)/$Q$65*Table_TypWattage[[#This Row],[1L]],0)","v":508},null,"<-- CHECK"]
["Controls Only",0,null,null,null,null,null,null,null,null,null,null,null,null,"FLT12 - 8 Ft - MG",60,61,{"$f":"Table_TypWattage[[#This Row],[1L]]*R$2","v":122},210,246,{"$f":"Table_TypWattage[[#This Row],[1L]]*U$2","v":366},{"$f":"Table_TypWattage[[#This Row],[1L]]*V$2","v":488},null,"<-- CHECK"]
["Ineligible Fixture",0,null,null,null,null,null,null,null,null,null,null,null,null,"FLT12 - 8 Ft - MG",75,76,{"$f":"Table_TypWattage[[#This Row],[1L]]*R$2","v":152},{"$f":"Table_TypWattage[[#This Row],[1L]]*S$2","v":228},{"$f":"Table_TypWattage[[#This Row],[1L]]*T$2","v":304},{"$f":"Table_TypWattage[[#This Row],[1L]]*U$2","v":456},{"$f":"Table_TypWattage[[#This Row],[1L]]*V$2","v":608},null,"<-- CHECK"]
[null,null,null,null,null,null,null,null,null,null,null,null,null,null,"FLT12HO - 4 Ft - MG",60,85,145,{"$f":"ROUND(AVERAGE(Table_TypWattage[[#This Row],[2L]],Table_TypWattage[[#This Row],[4L]]),0)","v":218},290,{"$f":"ROUND(SLOPE(Table_TypWattage[[#This Row],[1L]:[4L]],$Q$2:$T$2)*U$2+INTERCEPT(Table_TypWattage[[#This Row],[1L]:[4L]],$Q$2:$T$2),0)","v":425},{"$f":"ROUND(SLOPE(Table_TypWattage[[#This Row],[1L]:[4L]],$Q$2:$T$2)*V$2+INTERCEPT(Table_TypWattage[[#This Row],[1L]:[4L]],$Q$2:$T$2),0)","v":563},null,"<-- CHECK"]
["Control Description","Rebate (per Fixt kW)",null,null,null,null,null,null,null,null,null,null,null,null,"FLT12HO - 4 Ft - MG",75,105,{"$f":"ROUND(R57/$Q$71*Table_TypWattage[[#This Row],[1L]],0)","v":179},{"$f":"ROUND(S57/$Q$71*Table_TypWattage[[#This Row],[1L]],0)","v":269},{"$f":"ROUND(T57/$Q$71*Table_TypWattage[[#This Row],[1L]],0)","v":358},{"$f":"ROUND(U57/$Q$71*Table_TypWattage[[#This Row],[1L]],0)","v":525},{"$f":"ROUND(V57/$Q$71*Table_TypWattage[[#This Row],[1L]],0)","v":695},null,"<-- CHECK"]
["New Construction - None",0,null,null,null,null,null,null,null,null,null,null,null,null,"FLT12HO - 6 Ft - MG",80,{"$f":"ROUND(Q60/P60*Table_TypWattage[[#This Row],[Typical Wattage]],0)","v":113},{"$f":"Table_TypWattage[[#This Row],[1L]]*R$2","v":226},{"$f":"Table_TypWattage[[#This Row],[1L]]*S$2","v":339},{"$f":"Table_TypWattage[[#This Row],[1L]]*T$2","v":452},{"$f":"Table_TypWattage[[#This Row],[1L]]*U$2","v":678},{"$f":"Table_TypWattage[[#This Row],[1L]]*V$2","v":904},null,"<-- CHECK"]
["New Construction - Occupancy Sensor",0,null,null,null,null,null,null,null,null,null,null,null,null,"FLT12HO - 6 Ft - MG",85,120,{"$f":"Table_TypWattage[[#This Row],[1L]]*R$2","v":240},{"$f":"Table_TypWattage[[#This Row],[1L]]*S$2","v":360},{"$f":"Table_TypWattage[[#This Row],[1L]]*T$2","v":480},{"$f":"Table_TypWattage[[#This Row],[1L]]*U$2","v":720},{"$f":"Table_TypWattage[[#This Row],[1L]]*V$2","v":960},null,"<-- CHECK"]
["New Construction - Daylight Harvesting",0,null,null,null,null,null,null,null,null,null,null,null,null,"FLT12HO - 8 Ft - MG",95,125,207,{"$f":"ROUND(SLOPE($Q$75:$R$75,$Q$2:$R$2)*S$2+INTERCEPT($Q$75:$R$75,$Q$2:$R$2),0)","v":289},{"$f":"ROUND(SLOPE($Q$75:$R$75,$Q$2:$R$2)*T$2+INTERCEPT($Q$75:$R$75,$Q$2:$R$2),0)","v":371},{"$f":"ROUND(SLOPE($Q$75:$R$75,$Q$2:$R$2)*U$2+INTERCEPT($Q$75:$R$75,$Q$2:$R$2),0)","v":535},{"$f":"ROUND(SLOPE($Q$75:$R$75,$Q$2:$R$2)*V$2+INTERCEPT($Q$75:$R$75,$Q$2:$R$2),0)","v":699},null,"<-- CHECK"]
["New Construction - Occupancy Sensor + Daylight Harvesting",0,null,null,null,null,null,null,null,null,null,null,null,null,"FLT12HO - 8 Ft - MG",110,{"$f":"Table_TypWattage[[#This Row],[2L]]/2","v":121},242,{"$f":"Table_TypWattage[[#This Row],[1L]]*S$2","v":363},{"$f":"Table_TypWattage[[#This Row],[1L]]*T$2","v":484},{"$f":"Table_TypWattage[[#This Row],[1L]]*U$2","v":726},{"$f":"Table_TypWattage[[#This Row],[1L]]*V$2","v":968},null,"<-- CHECK"]
["New Construction - Networked Lighting Control",0.25,null,null,null,null,null,null,null,null,null,null,null,null,"FLT12 - 2 Ft - RS/PRS N",20,25.5,{"$f":"Table_TypWattage[[#This Row],[1L]]*R$2","v":51},{"$f":"Table_TypWattage[[#This Row],[1L]]*S$2","v":76.5},{"$f":"Table_TypWattage[[#This Row],[1L]]*T$2","v":102},{"$f":"Table_TypWattage[[#This Row],[1L]]*U$2","v":153},{"$f":"Table_TypWattage[[#This Row],[1L]]*V$2","v":204},null,"<-- CHECK"]
["None - None",0,null,null,null,null,null,null,null,null,null,null,null,null,"FLT12 - 3 Ft - RS/PRS N",30,33,{"$f":"Table_TypWattage[[#This Row],[1L]]*R$2","v":66},104,{"$f":"Table_TypWattage[[#This Row],[1L]]*T$2","v":132},{"$f":"Table_TypWattage[[#This Row],[1L]]*U$2","v":198},{"$f":"Table_TypWattage[[#This Row],[1L]]*V$2","v":264},null,"<-- CHECK"]
["None - Occupancy Sensor",0.15,null,null,null,null,null,null,null,null,null,null,null,null,"FLT12 - 4 Ft - RS/PRS N",34,43,72,115,144,216,{"$f":"ROUND(Table_TypWattage[[#This Row],[6L]]/6/Table_TypWattage[[#This Row],[Typical Wattage]]*Table_TypWattage[[#This Row],[Typical Wattage]]*$V$2,)","v":288},null,"<-- CHECK"]
["None - Daylight Harvesting",0.15,null,null,null,null,null,null,null,null,null,null,null,null,"FLT12 - 4 Ft - RS/PRS N",40,{"$f":"ROUND(Q65/$P$65*$P$66,)","v":51},{"$f":"ROUND(R65/$P$65*$P$66,)","v":85},135,169,254,339,null,"<-- CHECK"]
["None - Occupancy Sensor + Daylight Harvesting",0.25,null,null,null,null,null,null,null,null,null,null,null,null,"FLT12 - 6 Ft - RS/PRS N",50,70,{"$f":"ROUND(SLOPE($R$65:$U$65,$R$2:$U$2)/$Q$65*Table_TypWattage[[#This Row],[1L]]*R$2+INTERCEPT($R$65:$U$65,$R$2:$U$2)/$Q$65*Table_TypWattage[[#This Row],[1L]],0)","v":122},{"$f":"ROUND(SLOPE($R$65:$U$65,$R$2:$U$2)/$Q$65*Table_TypWattage[[#This Row],[1L]]*S$2+INTERCEPT($R$65:$U$65,$R$2:$U$2)/$Q$65*Table_TypWattage[[#This Row],[1L]],0)","v":179},{"$f":"ROUND(SLOPE($R$65:$U$65,$R$2:$U$2)/$Q$65*Table_TypWattage[[#This Row],[1L]]*T$2+INTERCEPT($R$65:$U$65,$R$2:$U$2)/$Q$65*Table_TypWattage[[#This Row],[1L]],0)","v":237},{"$f":"ROUND(SLOPE($R$65:$U$65,$R$2:$U$2)/$Q$65*Table_TypWattage[[#This Row],[1L]]*U$2+INTERCEPT($R$65:$U$65,$R$2:$U$2)/$Q$65*Table_TypWattage[[#This Row],[1L]],0)","v":352},{"$f":"ROUND(SLOPE($R$65:$U$65,$R$2:$U$2)/$Q$65*Table_TypWattage[[#This Row],[1L]]*V$2+INTERCEPT($R$65:$U$65,$R$2:$U$2)/$Q$65*Table_TypWattage[[#This Row],[1L]],0)","v":468},null,"<-- CHECK"]
["None - Networked Lighting Control",0.4,null,null,null,null,null,null,null,null,null,null,null,null,"FLT12 - 6 Ft - RS/PRS N",55,76,{"$f":"ROUND(SLOPE($R$65:$U$65,$R$2:$U$2)/$Q$65*Table_TypWattage[[#This Row],[1L]]*R$2+INTERCEPT($R$65:$U$65,$R$2:$U$2)/$Q$65*Table_TypWattage[[#This Row],[1L]],0)","v":132},{"$f":"ROUND(SLOPE($R$65:$U$65,$R$2:$U$2)/$Q$65*Table_TypWattage[[#This Row],[1L]]*S$2+INTERCEPT($R$65:$U$65,$R$2:$U$2)/$Q$65*Table_TypWattage[[#This Row],[1L]],0)","v":195},{"$f":"ROUND(SLOPE($R$65:$U$65,$R$2:$U$2)/$Q$65*Table_TypWattage[[#This Row],[1L]]*T$2+INTERCEPT($R$65:$U$65,$R$2:$U$2)/$Q$65*Table_TypWattage[[#This Row],[1L]],0)","v":257},{"$f":"ROUND(SLOPE($R$65:$U$65,$R$2:$U$2)/$Q$65*Table_TypWattage[[#This Row],[1L]]*U$2+INTERCEPT($R$65:$U$65,$R$2:$U$2)/$Q$65*Table_TypWattage[[#This Row],[1L]],0)","v":382},{"$f":"ROUND(SLOPE($R$65:$U$65,$R$2:$U$2)/$Q$65*Table_TypWattage[[#This Row],[1L]]*V$2+INTERCEPT($R$65:$U$65,$R$2:$U$2)/$Q$65*Table_TypWattage[[#This Row],[1L]],0)","v":508},null,"<-- CHECK"]
["Occupancy Sensor - Occupancy Sensor",0,null,null,null,null,null,null,null,null,null,null,null,null,"FLT12 - 8 Ft - RS/PRS N",60,61,{"$f":"Table_TypWattage[[#This Row],[1L]]*R$2","v":122},210,246,{"$f":"Table_TypWattage[[#This Row],[1L]]*U$2","v":366},{"$f":"Table_TypWattage[[#This Row],[1L]]*V$2","v":488},null,"<-- CHECK"]
["Occupancy Sensor - Daylight Harvesting",0,null,null,null,null,null,null,null,null,null,null,null,null,"FLT12 - 8 Ft - RS/PRS N",75,76,{"$f":"Table_TypWattage[[#This Row],[1L]]*R$2","v":152},{"$f":"Table_TypWattage[[#This Row],[1L]]*S$2","v":228},{"$f":"Table_TypWattage[[#This Row],[1L]]*T$2","v":304},{"$f":"Table_TypWattage[[#This Row],[1L]]*U$2","v":456},{"$f":"Table_TypWattage[[#This Row],[1L]]*V$2","v":608},null,"<-- CHECK"]
["Occupancy Sensor - Occupancy Sensor + Daylight Harvesting",0,null,null,null,null,null,null,null,null,null,null,null,null,"FLT12HO - 4 Ft - RS/PRS N",60,85,145,{"$f":"ROUND(AVERAGE(Table_TypWattage[[#This Row],[2L]],Table_TypWattage[[#This Row],[4L]]),0)","v":218},290,{"$f":"ROUND(SLOPE(Table_TypWattage[[#This Row],[1L]:[4L]],$Q$2:$T$2)*U$2+INTERCEPT(Table_TypWattage[[#This Row],[1L]:[4L]],$Q$2:$T$2),0)","v":425},{"$f":"ROUND(SLOPE(Table_TypWattage[[#This Row],[1L]:[4L]],$Q$2:$T$2)*V$2+INTERCEPT(Table_TypWattage[[#This Row],[1L]:[4L]],$Q$2:$T$2),0)","v":563},null,"<-- CHECK"]
["Occupancy Sensor - Networked Lighting Control",0.25,null,null,null,null,null,null,null,null,null,null,null,null,"FLT12HO - 4 Ft - RS/PRS N",75,105,{"$f":"ROUND(R71/$Q$71*Table_TypWattage[[#This Row],[1L]],0)","v":179},{"$f":"ROUND(S71/$Q$71*Table_TypWattage[[#This Row],[1L]],0)","v":269},{"$f":"ROUND(T71/$Q$71*Table_TypWattage[[#This Row],[1L]],0)","v":358},{"$f":"ROUND(U71/$Q$71*Table_TypWattage[[#This Row],[1L]],0)","v":525},{"$f":"ROUND(V71/$Q$71*Table_TypWattage[[#This Row],[1L]],0)","v":695},null,"<-- CHECK"]
["Daylight Harvesting - Occupancy Sensor",0,null,null,null,null,null,null,null,null,null,null,null,null,"FLT12HO - 6 Ft - RS/PRS N",80,{"$f":"ROUND(Q74/P74*Table_TypWattage[[#This Row],[Typical Wattage]],0)","v":113},{"$f":"Table_TypWattage[[#This Row],[1L]]*R$2","v":226},{"$f":"Table_TypWattage[[#This Row],[1L]]*S$2","v":339},{"$f":"Table_TypWattage[[#This Row],[1L]]*T$2","v":452},{"$f":"Table_TypWattage[[#This Row],[1L]]*U$2","v":678},{"$f":"Table_TypWattage[[#This Row],[1L]]*V$2","v":904},null,"<-- CHECK"]
["Daylight Harvesting - Daylight Harvesting",0,null,null,null,null,null,null,null,null,null,null,null,null,"FLT12HO - 6 Ft - RS/PRS N",85,120,{"$f":"Table_TypWattage[[#This Row],[1L]]*R$2","v":240},{"$f":"Table_TypWattage[[#This Row],[1L]]*S$2","v":360},{"$f":"Table_TypWattage[[#This Row],[1L]]*T$2","v":480},{"$f":"Table_TypWattage[[#This Row],[1L]]*U$2","v":720},{"$f":"Table_TypWattage[[#This Row],[1L]]*V$2","v":960},null,"<-- CHECK"]
["Daylight Harvesting - Occupancy Sensor + Daylight Harvesting",0,null,null,null,null,null,null,null,null,null,null,null,null,"FLT12HO - 8 Ft - RS/PRS N",95,125,207,{"$f":"ROUND(SLOPE($Q$75:$R$75,$Q$2:$R$2)*S$2+INTERCEPT($Q$75:$R$75,$Q$2:$R$2),0)","v":289},{"$f":"ROUND(SLOPE($Q$75:$R$75,$Q$2:$R$2)*T$2+INTERCEPT($Q$75:$R$75,$Q$2:$R$2),0)","v":371},{"$f":"ROUND(SLOPE($Q$75:$R$75,$Q$2:$R$2)*U$2+INTERCEPT($Q$75:$R$75,$Q$2:$R$2),0)","v":535},{"$f":"ROUND(SLOPE($Q$75:$R$75,$Q$2:$R$2)*V$2+INTERCEPT($Q$75:$R$75,$Q$2:$R$2),0)","v":699},null,"<-- CHECK"]
["Daylight Harvesting - Networked Lighting Control",0.25,null,null,null,null,null,null,null,null,null,null,null,null,"FLT12HO - 8 Ft - RS/PRS N",110,{"$f":"Table_TypWattage[[#This Row],[2L]]/2","v":121},242,{"$f":"Table_TypWattage[[#This Row],[1L]]*S$2","v":363},{"$f":"Table_TypWattage[[#This Row],[1L]]*T$2","v":484},{"$f":"Table_TypWattage[[#This Row],[1L]]*U$2","v":726},{"$f":"Table_TypWattage[[#This Row],[1L]]*V$2","v":968},null,"<-- CHECK"]
["Occupancy Sensor + Daylight Harvesting - Occupancy Sensor",0,null,null,null,null,null,null,null,null,null,null,null,null,"FLT5 - 2 Ft - RS/PRS",13,{"$f":"ROUND($Q$80/$P$80*Table_TypWattage[[#This Row],[Typical Wattage]],1)","v":14.6},{"$f":"Table_TypWattage[[#This Row],[1L]]*R$2","v":29.2},{"$f":"Table_TypWattage[[#This Row],[1L]]*S$2","v":43.8},{"$f":"Table_TypWattage[[#This Row],[1L]]*T$2","v":58.4},{"$f":"Table_TypWattage[[#This Row],[1L]]*U$2","v":87.6},{"$f":"Table_TypWattage[[#This Row],[1L]]*V$2","v":116.8},null,"<-- CHECK"]
["Occupancy Sensor + Daylight Harvesting - Daylight Harvesting",0,null,null,null,null,null,null,null,null,null,null,null,null,"FLT5 - 2 Ft - RS/PRS",14,{"$f":"ROUND($Q$80/$P$80*Table_TypWattage[[#This Row],[Typical Wattage]],1)","v":15.8},{"$f":"Table_TypWattage[[#This Row],[1L]]*R$2","v":31.6},{"$f":"Table_TypWattage[[#This Row],[1L]]*S$2","v":47.400000000000006},{"$f":"Table_TypWattage[[#This Row],[1L]]*T$2","v":63.2},{"$f":"Table_TypWattage[[#This Row],[1L]]*U$2","v":94.800000000000011},{"$f":"Table_TypWattage[[#This Row],[1L]]*V$2","v":126.4},null,"<-- CHECK"]
["Occupancy Sensor + Daylight Harvesting - Occupancy Sensor + Daylight Harvesting",0,null,null,null,null,null,null,null,null,null,null,null,null,"FLT5 - 3 Ft - RS/PRS",21,{"$f":"ROUND($Q$80/$P$80*Table_TypWattage[[#This Row],[Typical Wattage]],1)","v":23.6},{"$f":"Table_TypWattage[[#This Row],[1L]]*R$2","v":47.2},{"$f":"Table_TypWattage[[#This Row],[1L]]*S$2","v":70.800000000000011},{"$f":"Table_TypWattage[[#This Row],[1L]]*T$2","v":94.4},{"$f":"Table_TypWattage[[#This Row],[1L]]*U$2","v":141.60000000000002},{"$f":"Table_TypWattage[[#This Row],[1L]]*V$2","v":188.8},null,"<-- CHECK"]
["Occupancy Sensor + Daylight Harvesting - Networked Lighting Control",0.25,null,null,null,null,null,null,null,null,null,null,null,null,"FLT5 - 4 Ft - RS/PRS",28,31.5,{"$f":"Table_TypWattage[[#This Row],[1L]]*R$2","v":63},{"$f":"Table_TypWattage[[#This Row],[1L]]*S$2","v":94.5},{"$f":"Table_TypWattage[[#This Row],[1L]]*T$2","v":126},{"$f":"Table_TypWattage[[#This Row],[1L]]*U$2","v":189},{"$f":"Table_TypWattage[[#This Row],[1L]]*V$2","v":252},null,"<-- CHECK"]
["Networked Lighting Control - Occupancy Sensor",0,null,null,null,null,null,null,null,null,null,null,null,null,"FLT5HO - 2 Ft - RS/PRS",24,{"$f":"ROUND($Q$80/$P$80*Table_TypWattage[[#This Row],[Typical Wattage]],1)","v":27},{"$f":"Table_TypWattage[[#This Row],[1L]]*R$2","v":54},{"$f":"Table_TypWattage[[#This Row],[1L]]*S$2","v":81},{"$f":"Table_TypWattage[[#This Row],[1L]]*T$2","v":108},{"$f":"Table_TypWattage[[#This Row],[1L]]*U$2","v":162},{"$f":"Table_TypWattage[[#This Row],[1L]]*V$2","v":216},null,"<-- CHECK"]
["Networked Lighting Control - Daylight Harvesting",0,null,null,null,null,null,null,null,null,null,null,null,null,"FLT5HO - 3 Ft - RS/PRS",37,{"$f":"ROUND($Q$80/$P$80*Table_TypWattage[[#This Row],[Typical Wattage]],0)","v":42},{"$f":"Table_TypWattage[[#This Row],[1L]]*R$2","v":84},{"$f":"Table_TypWattage[[#This Row],[1L]]*S$2","v":126},{"$f":"Table_TypWattage[[#This Row],[1L]]*T$2","v":168},{"$f":"Table_TypWattage[[#This Row],[1L]]*U$2","v":252},{"$f":"Table_TypWattage[[#This Row],[1L]]*V$2","v":336},null,"<-- CHECK"]
["Networked Lighting Control - Occupancy Sensor + Daylight Harvesting",0,null,null,null,null,null,null,null,null,null,null,null,null,"FLT5HO - 3 Ft - RS/PRS",39,{"$f":"ROUND($Q$80/$P$80*Table_TypWattage[[#This Row],[Typical Wattage]],0)","v":44},{"$f":"Table_TypWattage[[#This Row],[1L]]*R$2","v":88},{"$f":"Table_TypWattage[[#This Row],[1L]]*S$2","v":132},{"$f":"Table_TypWattage[[#This Row],[1L]]*T$2","v":176},{"$f":"Table_TypWattage[[#This Row],[1L]]*U$2","v":264},{"$f":"Table_TypWattage[[#This Row],[1L]]*V$2","v":352},null,"<-- CHECK"]
["Networked Lighting Control - Networked Lighting Control",0,null,null,null,null,null,null,null,null,null,null,null,null,"FLT5HO - 4 Ft - RS/PRS",49,57,107,{"$f":"ROUND(SLOPE(Table_TypWattage[[#This Row],[1L]:[2L]],$Q$2:$R$2)*S$2+INTERCEPT(Table_TypWattage[[#This Row],[1L]:[2L]],$Q$2:$R$2),0)","v":157},211,{"$f":"ROUND(SLOPE(Table_TypWattage[[#This Row],[1L]:[4L]],$Q$2:$T$2)*U$2+INTERCEPT(Table_TypWattage[[#This Row],[1L]:[4L]],$Q$2:$T$2),0)","v":312},{"$f":"ROUND(SLOPE(Table_TypWattage[[#This Row],[1L]:[4L]],$Q$2:$T$2)*V$2+INTERCEPT(Table_TypWattage[[#This Row],[1L]:[4L]],$Q$2:$T$2),0)","v":415},null,"<-- CHECK"]
[null,null,null,null,null,null,null,null,null,null,null,null,null,null,"FLT5HO - 4 Ft - RS/PRS",54,58.5,{"$f":"Table_TypWattage[[#This Row],[1L]]*R$2","v":117},{"$f":"Table_TypWattage[[#This Row],[1L]]*S$2","v":175.5},{"$f":"Table_TypWattage[[#This Row],[1L]]*T$2","v":234},{"$f":"Table_TypWattage[[#This Row],[1L]]*U$2","v":351},{"$f":"Table_TypWattage[[#This Row],[1L]]*V$2","v":468},null,"<-- CHECK"]
[null,null,null,null,null,null,null,null,null,null,null,null,null,null,"FLT8 - 2 Ft - IS L",14,{"$f":"P86","v":14},{"$f":"Table_TypWattage[[#This Row],[1L]]*R$2","v":28},{"$f":"Table_TypWattage[[#This Row],[1L]]*S$2","v":42},{"$f":"Table_TypWattage[[#This Row],[1L]]*T$2","v":56},{"$f":"Table_TypWattage[[#This Row],[1L]]*U$2","v":84},{"$f":"Table_TypWattage[[#This Row],[1L]]*V$2","v":112},null,"<-- NEEDS INPUT"]
[null,null,null,null,null,null,null,null,null,null,null,null,null,null,"FLT8 - 2 Ft - IS L",15,15,{"$f":"Table_TypWattage[[#This Row],[1L]]*R$2","v":30},{"$f":"Table_TypWattage[[#This Row],[1L]]*S$2","v":45},{"$f":"Table_TypWattage[[#This Row],[1L]]*T$2","v":60},{"$f":"Table_TypWattage[[#This Row],[1L]]*U$2","v":90},{"$f":"Table_TypWattage[[#This Row],[1L]]*V$2","v":120},null,"<-- NEEDS INPUT"]
[null,null,null,null,null,null,null,null,null,null,null,null,null,null,"FLT8 - 2 Ft - IS L",17,17,{"$f":"Table_TypWattage[[#This Row],[1L]]*R$2","v":34},{"$f":"Table_TypWattage[[#This Row],[1L]]*S$2","v":51},{"$f":"Table_TypWattage[[#This Row],[1L]]*T$2","v":68},{"$f":"Table_TypWattage[[#This Row],[1L]]*U$2","v":102},{"$f":"Table_TypWattage[[#This Row],[1L]]*V$2","v":136},null,"<-- NEEDS INPUT"]
[null,null,null,null,null,null,null,null,null,null,null,null,null,null,"FLT8 - 3 Ft - IS L",25,25,{"$f":"Table_TypWattage[[#This Row],[1L]]*R$2","v":50},{"$f":"Table_TypWattage[[#This Row],[1L]]*S$2","v":75},{"$f":"Table_TypWattage[[#This Row],[1L]]*T$2","v":100},{"$f":"Table_TypWattage[[#This Row],[1L]]*U$2","v":150},{"$f":"Table_TypWattage[[#This Row],[1L]]*V$2","v":200},null,"<-- NEEDS INPUT"]
[null,null,null,null,null,null,null,null,null,null,null,null,null,null,"FLT8 - 3 Ft - IS L",30,30,{"$f":"Table_TypWattage[[#This Row],[1L]]*R$2","v":60},{"$f":"Table_TypWattage[[#This Row],[1L]]*S$2","v":90},{"$f":"Table_TypWattage[[#This Row],[1L]]*T$2","v":120},{"$f":"Table_TypWattage[[#This Row],[1L]]*U$2","v":180},{"$f":"Table_TypWattage[[#This Row],[1L]]*V$2","v":240},null,"<-- NEEDS INPUT"]
[null,null,null,null,null,null,null,null,null,null,null,null,null,null,"FLT8 - 4 Ft - IS L",28,28,{"$f":"Table_TypWattage[[#This Row],[1L]]*R$2","v":56},{"$f":"Table_TypWattage[[#This Row],[1L]]*S$2","v":84},{"$f":"Table_TypWattage[[#This Row],[1L]]*T$2","v":112},{"$f":"Table_TypWattage[[#This Row],[1L]]*U$2","v":168},{"$f":"Table_TypWattage[[#This Row],[1L]]*V$2","v":224},null,"<-- NEEDS INPUT"]
[null,null,null,null,null,null,null,null,null,null,null,null,null,null,"FLT8 - 4 Ft - IS L",32,25,{"$f":"Table_TypWattage[[#This Row],[1L]]*R$2","v":50},{"$f":"Table_TypWattage[[#This Row],[1L]]*S$2","v":75},{"$f":"Table_TypWattage[[#This Row],[1L]]*T$2","v":100},{"$f":"Table_TypWattage[[#This Row],[1L]]*U$2","v":150},{"$f":"Table_TypWattage[[#This Row],[1L]]*V$2","v":200},null,"<-- NEEDS INPUT"]
[null,null,null,null,null,null,null,null,null,null,null,null,null,null,"FLT8 - 4 Ft - IS L",36,36,{"$f":"Table_TypWattage[[#This Row],[1L]]*R$2","v":72},{"$f":"Table_TypWattage[[#This Row],[1L]]*S$2","v":108},{"$f":"Table_TypWattage[[#This Row],[1L]]*T$2","v":144},{"$f":"Table_TypWattage[[#This Row],[1L]]*U$2","v":216},{"$f":"Table_TypWattage[[#This Row],[1L]]*V$2","v":288},null,"<-- NEEDS INPUT"]
[null,null,null,null,null,null,null,null,null,null,null,null,null,null,"FLT8 - 6 Ft - IS L",40,40,{"$f":"Table_TypWattage[[#This Row],[1L]]*R$2","v":80},{"$f":"Table_TypWattage[[#This Row],[1L]]*S$2","v":120},{"$f":"Table_TypWattage[[#This Row],[1L]]*T$2","v":160},{"$f":"Table_TypWattage[[#This Row],[1L]]*U$2","v":240},{"$f":"Table_TypWattage[[#This Row],[1L]]*V$2","v":320},null,"<-- NEEDS INPUT"]
[null,null,null,null,null,null,null,null,null,null,null,null,null,null,"FLT8 - 8 Ft - IS L",59,49,{"$f":"Table_TypWattage[[#This Row],[1L]]*R$2","v":98},{"$f":"Table_TypWattage[[#This Row],[1L]]*S$2","v":147},{"$f":"Table_TypWattage[[#This Row],[1L]]*T$2","v":196},{"$f":"Table_TypWattage[[#This Row],[1L]]*U$2","v":294},{"$f":"Table_TypWattage[[#This Row],[1L]]*V$2","v":392},null,"<-- NEEDS INPUT"]
[null,null,null,null,null,null,null,null,null,null,null,null,null,null,"FLT8 - 8 Ft - IS L",70,70,{"$f":"Table_TypWattage[[#This Row],[1L]]*R$2","v":140},{"$f":"Table_TypWattage[[#This Row],[1L]]*S$2","v":210},{"$f":"Table_TypWattage[[#This Row],[1L]]*T$2","v":280},{"$f":"Table_TypWattage[[#This Row],[1L]]*U$2","v":420},{"$f":"Table_TypWattage[[#This Row],[1L]]*V$2","v":560},null,"<-- NEEDS INPUT"]
[null,null,null,null,null,null,null,null,null,null,null,null,null,null,"FLT8 - 2 Ft - IS N",14,14,{"$f":"Table_TypWattage[[#This Row],[1L]]*R$2","v":28},{"$f":"Table_TypWattage[[#This Row],[1L]]*S$2","v":42},{"$f":"Table_TypWattage[[#This Row],[1L]]*T$2","v":56},{"$f":"Table_TypWattage[[#This Row],[1L]]*U$2","v":84},{"$f":"Table_TypWattage[[#This Row],[1L]]*V$2","v":112},null,"<-- NEEDS INPUT"]
[null,null,null,null,null,null,null,null,null,null,null,null,null,null,"FLT8 - 2 Ft - IS N",15,15,{"$f":"Table_TypWattage[[#This Row],[1L]]*R$2","v":30},{"$f":"Table_TypWattage[[#This Row],[1L]]*S$2","v":45},{"$f":"Table_TypWattage[[#This Row],[1L]]*T$2","v":60},{"$f":"Table_TypWattage[[#This Row],[1L]]*U$2","v":90},{"$f":"Table_TypWattage[[#This Row],[1L]]*V$2","v":120},null,"<-- NEEDS INPUT"]
[null,null,null,null,null,null,null,null,null,null,null,null,null,null,"FLT8 - 2 Ft - IS N",17,17,{"$f":"Table_TypWattage[[#This Row],[1L]]*R$2","v":34},{"$f":"Table_TypWattage[[#This Row],[1L]]*S$2","v":51},{"$f":"Table_TypWattage[[#This Row],[1L]]*T$2","v":68},{"$f":"Table_TypWattage[[#This Row],[1L]]*U$2","v":102},{"$f":"Table_TypWattage[[#This Row],[1L]]*V$2","v":136},null,"<-- NEEDS INPUT"]
[null,null,null,null,null,null,null,null,null,null,null,null,null,null,"FLT8 - 3 Ft - IS N",25,25,{"$f":"Table_TypWattage[[#This Row],[1L]]*R$2","v":50},{"$f":"Table_TypWattage[[#This Row],[1L]]*S$2","v":75},{"$f":"Table_TypWattage[[#This Row],[1L]]*T$2","v":100},{"$f":"Table_TypWattage[[#This Row],[1L]]*U$2","v":150},{"$f":"Table_TypWattage[[#This Row],[1L]]*V$2","v":200},null,"<-- NEEDS INPUT"]
[null,null,null,null,null,null,null,null,null,null,null,null,null,null,"FLT8 - 3 Ft - IS N",30,30,{"$f":"Table_TypWattage[[#This Row],[1L]]*R$2","v":60},{"$f":"Table_TypWattage[[#This Row],[1L]]*S$2","v":90},{"$f":"Table_TypWattage[[#This Row],[1L]]*T$2","v":120},{"$f":"Table_TypWattage[[#This Row],[1L]]*U$2","v":180},{"$f":"Table_TypWattage[[#This Row],[1L]]*V$2","v":240},null,"<-- NEEDS INPUT"]
[null,null,null,null,null,null,null,null,null,null,null,null,null,null,"FLT8 - 4 Ft - IS N",28,28,{"$f":"Table_TypWattage[[#This Row],[1L]]*R$2","v":56},{"$f":"Table_TypWattage[[#This Row],[1L]]*S$2","v":84},{"$f":"Table_TypWattage[[#This Row],[1L]]*T$2","v":112},{"$f":"Table_TypWattage[[#This Row],[1L]]*U$2","v":168},{"$f":"Table_TypWattage[[#This Row],[1L]]*V$2","v":224},null,"<-- NEEDS INPUT"]
[null,null,null,null,null,null,null,null,null,null,null,null,null,null,"FLT8 - 4 Ft - IS N",32,30,58,85,116,144,170,null,"<-- NEEDS INPUT"]
[null,null,null,null,null,null,null,null,null,null,null,null,null,null,"FLT8 - 4 Ft - IS N",36,36,{"$f":"Table_TypWattage[[#This Row],[1L]]*R$2","v":72},{"$f":"Table_TypWattage[[#This Row],[1L]]*S$2","v":108},{"$f":"Table_TypWattage[[#This Row],[1L]]*T$2","v":144},{"$f":"Table_TypWattage[[#This Row],[1L]]*U$2","v":216},{"$f":"Table_TypWattage[[#This Row],[1L]]*V$2","v":288},null,"<-- NEEDS INPUT"]
[null,null,null,null,null,null,null,null,null,null,null,null,null,null,"FLT8 - 6 Ft - IS N",40,40,{"$f":"Table_TypWattage[[#This Row],[1L]]*R$2","v":80},{"$f":"Table_TypWattage[[#This Row],[1L]]*S$2","v":120},{"$f":"Table_TypWattage[[#This Row],[1L]]*T$2","v":160},{"$f":"Table_TypWattage[[#This Row],[1L]]*U$2","v":240},{"$f":"Table_TypWattage[[#This Row],[1L]]*V$2","v":320},null,"<-- NEEDS INPUT"]
[null,null,null,null,null,null,null,null,null,null,null,null,null,null,"FLT8 - 8 Ft - IS N",59,55,{"$f":"Table_TypWattage[[#This Row],[1L]]*R$2","v":110},{"$f":"Table_TypWattage[[#This Row],[1L]]*S$2","v":165},{"$f":"Table_TypWattage[[#This Row],[1L]]*T$2","v":220},{"$f":"Table_TypWattage[[#This Row],[1L]]*U$2","v":330},{"$f":"Table_TypWattage[[#This Row],[1L]]*V$2","v":440},null,"<-- NEEDS INPUT"]
[null,null,null,null,null,null,null,null,null,null,null,null,null,null,"FLT8 - 8 Ft - IS N",70,70,{"$f":"Table_TypWattage[[#This Row],[1L]]*R$2","v":140},{"$f":"Table_TypWattage[[#This Row],[1L]]*S$2","v":210},{"$f":"Table_TypWattage[[#This Row],[1L]]*T$2","v":280},{"$f":"Table_TypWattage[[#This Row],[1L]]*U$2","v":420},{"$f":"Table_TypWattage[[#This Row],[1L]]*V$2","v":560},null,"<-- NEEDS INPUT"]
[null,null,null,null,null,null,null,null,null,null,null,null,null,null,"FLT8 - 2 Ft - IS H",14,14,{"$f":"Table_TypWattage[[#This Row],[1L]]*R$2","v":28},{"$f":"Table_TypWattage[[#This Row],[1L]]*S$2","v":42},{"$f":"Table_TypWattage[[#This Row],[1L]]*T$2","v":56},{"$f":"Table_TypWattage[[#This Row],[1L]]*U$2","v":84},{"$f":"Table_TypWattage[[#This Row],[1L]]*V$2","v":112},null,"<-- NEEDS INPUT"]
[null,null,null,null,null,null,null,null,null,null,null,null,null,null,"FLT8 - 2 Ft - IS H",15,15,{"$f":"Table_TypWattage[[#This Row],[1L]]*R$2","v":30},{"$f":"Table_TypWattage[[#This Row],[1L]]*S$2","v":45},{"$f":"Table_TypWattage[[#This Row],[1L]]*T$2","v":60},{"$f":"Table_TypWattage[[#This Row],[1L]]*U$2","v":90},{"$f":"Table_TypWattage[[#This Row],[1L]]*V$2","v":120},null,"<-- NEEDS INPUT"]
[null,null,null,null,null,null,null,null,null,null,null,null,null,null,"FLT8 - 2 Ft - IS H",17,17,{"$f":"Table_TypWattage[[#This Row],[1L]]*R$2","v":34},{"$f":"Table_TypWattage[[#This Row],[1L]]*S$2","v":51},{"$f":"Table_TypWattage[[#This Row],[1L]]*T$2","v":68},{"$f":"Table_TypWattage[[#This Row],[1L]]*U$2","v":102},{"$f":"Table_TypWattage[[#This Row],[1L]]*V$2","v":136},null,"<-- NEEDS INPUT"]
[null,null,null,null,null,null,null,null,null,null,null,null,null,null,"FLT8 - 3 Ft - IS H",25,25,{"$f":"Table_TypWattage[[#This Row],[1L]]*R$2","v":50},{"$f":"Table_TypWattage[[#This Row],[1L]]*S$2","v":75},{"$f":"Table_TypWattage[[#This Row],[1L]]*T$2","v":100},{"$f":"Table_TypWattage[[#This Row],[1L]]*U$2","v":150},{"$f":"Table_TypWattage[[#This Row],[1L]]*V$2","v":200},null,"<-- NEEDS INPUT"]
[null,null,null,null,null,null,null,null,null,null,null,null,null,null,"FLT8 - 3 Ft - IS H",30,30,{"$f":"Table_TypWattage[[#This Row],[1L]]*R$2","v":60},{"$f":"Table_TypWattage[[#This Row],[1L]]*S$2","v":90},{"$f":"Table_TypWattage[[#This Row],[1L]]*T$2","v":120},{"$f":"Table_TypWattage[[#This Row],[1L]]*U$2","v":180},{"$f":"Table_TypWattage[[#This Row],[1L]]*V$2","v":240},null,"<-- NEEDS INPUT"]
[null,null,null,null,null,null,null,null,null,null,null,null,null,null,"FLT8 - 4 Ft - IS H",28,28,{"$f":"Table_TypWattage[[#This Row],[1L]]*R$2","v":56},{"$f":"Table_TypWattage[[#This Row],[1L]]*S$2","v":84},{"$f":"Table_TypWattage[[#This Row],[1L]]*T$2","v":112},{"$f":"Table_TypWattage[[#This Row],[1L]]*U$2","v":168},{"$f":"Table_TypWattage[[#This Row],[1L]]*V$2","v":224},null,"<-- NEEDS INPUT"]
[null,null,null,null,null,null,null,null,null,null,null,null,null,null,"FLT8 - 4 Ft - IS H",32,33,64,95,150,198,290,null,"<-- NEEDS INPUT"]
[null,null,null,null,null,null,null,null,null,null,null,null,null,null,"FLT8 - 4 Ft - IS H",36,36,{"$f":"Table_TypWattage[[#This Row],[1L]]*R$2","v":72},{"$f":"Table_TypWattage[[#This Row],[1L]]*S$2","v":108},{"$f":"Table_TypWattage[[#This Row],[1L]]*T$2","v":144},{"$f":"Table_TypWattage[[#This Row],[1L]]*U$2","v":216},{"$f":"Table_TypWattage[[#This Row],[1L]]*V$2","v":288},null,"<-- NEEDS INPUT"]
[null,null,null,null,null,null,null,null,null,null,null,null,null,null,"FLT8 - 6 Ft - IS H",40,40,{"$f":"Table_TypWattage[[#This Row],[1L]]*R$2","v":80},{"$f":"Table_TypWattage[[#This Row],[1L]]*S$2","v":120},{"$f":"Table_TypWattage[[#This Row],[1L]]*T$2","v":160},{"$f":"Table_TypWattage[[#This Row],[1L]]*U$2","v":240},{"$f":"Table_TypWattage[[#This Row],[1L]]*V$2","v":320},null,"<-- NEEDS INPUT"]
[null,null,null,null,null,null,null,null,null,null,null,null,null,null,"FLT8 - 8 Ft - IS H",59,63,{"$f":"Table_TypWattage[[#This Row],[1L]]*R$2","v":126},{"$f":"Table_TypWattage[[#This Row],[1L]]*S$2","v":189},{"$f":"Table_TypWattage[[#This Row],[1L]]*T$2","v":252},{"$f":"Table_TypWattage[[#This Row],[1L]]*U$2","v":378},{"$f":"Table_TypWattage[[#This Row],[1L]]*V$2","v":504},null,"<-- NEEDS INPUT"]
[null,null,null,null,null,null,null,null,null,null,null,null,null,null,"FLT8 - 8 Ft - IS H",70,70,{"$f":"Table_TypWattage[[#This Row],[1L]]*R$2","v":140},{"$f":"Table_TypWattage[[#This Row],[1L]]*S$2","v":210},{"$f":"Table_TypWattage[[#This Row],[1L]]*T$2","v":280},{"$f":"Table_TypWattage[[#This Row],[1L]]*U$2","v":420},{"$f":"Table_TypWattage[[#This Row],[1L]]*V$2","v":560},null,"<-- NEEDS INPUT"]
[null,null,null,null,null,null,null,null,null,null,null,null,null,null,"FLT8 - 2 Ft - RS/PRS L",14,14,{"$f":"Table_TypWattage[[#This Row],[1L]]*R$2","v":28},{"$f":"Table_TypWattage[[#This Row],[1L]]*S$2","v":42},{"$f":"Table_TypWattage[[#This Row],[1L]]*T$2","v":56},{"$f":"Table_TypWattage[[#This Row],[1L]]*U$2","v":84},{"$f":"Table_TypWattage[[#This Row],[1L]]*V$2","v":112},null,"<-- NEEDS INPUT"]
[null,null,null,null,null,null,null,null,null,null,null,null,null,null,"FLT8 - 2 Ft - RS/PRS L",15,15,{"$f":"Table_TypWattage[[#This Row],[1L]]*R$2","v":30},{"$f":"Table_TypWattage[[#This Row],[1L]]*S$2","v":45},{"$f":"Table_TypWattage[[#This Row],[1L]]*T$2","v":60},{"$f":"Table_TypWattage[[#This Row],[1L]]*U$2","v":90},{"$f":"Table_TypWattage[[#This Row],[1L]]*V$2","v":120},null,"<-- NEEDS INPUT"]
[null,null,null,null,null,null,null,null,null,null,null,null,null,null,"FLT8 - 2 Ft - RS/PRS L",17,17,{"$f":"Table_TypWattage[[#This Row],[1L]]*R$2","v":34},{"$f":"Table_TypWattage[[#This Row],[1L]]*S$2","v":51},{"$f":"Table_TypWattage[[#This Row],[1L]]*T$2","v":68},{"$f":"Table_TypWattage[[#This Row],[1L]]*U$2","v":102},{"$f":"Table_TypWattage[[#This Row],[1L]]*V$2","v":136},null,"<-- NEEDS INPUT"]
[null,null,null,null,null,null,null,null,null,null,null,null,null,null,"FLT8 - 3 Ft - RS/PRS L",25,25,{"$f":"Table_TypWattage[[#This Row],[1L]]*R$2","v":50},{"$f":"Table_TypWattage[[#This Row],[1L]]*S$2","v":75},{"$f":"Table_TypWattage[[#This Row],[1L]]*T$2","v":100},{"$f":"Table_TypWattage[[#This Row],[1L]]*U$2","v":150},{"$f":"Table_TypWattage[[#This Row],[1L]]*V$2","v":200},null,"<-- NEEDS INPUT"]
[null,null,null,null,null,null,null,null,null,null,null,null,null,null,"FLT8 - 3 Ft - RS/PRS L",30,30,{"$f":"Table_TypWattage[[#This Row],[1L]]*R$2","v":60},{"$f":"Table_TypWattage[[#This Row],[1L]]*S$2","v":90},{"$f":"Table_TypWattage[[#This Row],[1L]]*T$2","v":120},{"$f":"Table_TypWattage[[#This Row],[1L]]*U$2","v":180},{"$f":"Table_TypWattage[[#This Row],[1L]]*V$2","v":240},null,"<-- NEEDS INPUT"]
[null,null,null,null,null,null,null,null,null,null,null,null,null,null,"FLT8 - 4 Ft - RS/PRS L",28,22,{"$f":"Table_TypWattage[[#This Row],[1L]]*R$2","v":44},{"$f":"Table_TypWattage[[#This Row],[1L]]*S$2","v":66},{"$f":"Table_TypWattage[[#This Row],[1L]]*T$2","v":88},{"$f":"Table_TypWattage[[#This Row],[1L]]*U$2","v":132},{"$f":"Table_TypWattage[[#This Row],[1L]]*V$2","v":176},null,"<-- NEEDS INPUT"]
[null,null,null,null,null,null,null,null,null,null,null,null,null,null,"FLT8 - 4 Ft - RS/PRS L",32,25,{"$f":"Table_TypWattage[[#This Row],[1L]]*R$2","v":50},{"$f":"Table_TypWattage[[#This Row],[1L]]*S$2","v":75},{"$f":"Table_TypWattage[[#This Row],[1L]]*T$2","v":100},{"$f":"Table_TypWattage[[#This Row],[1L]]*U$2","v":150},{"$f":"Table_TypWattage[[#This Row],[1L]]*V$2","v":200},null,"<-- NEEDS INPUT"]
[null,null,null,null,null,null,null,null,null,null,null,null,null,null,"FLT8 - 4 Ft - RS/PRS L",36,36,{"$f":"Table_TypWattage[[#This Row],[1L]]*R$2","v":72},{"$f":"Table_TypWattage[[#This Row],[1L]]*S$2","v":108},{"$f":"Table_TypWattage[[#This Row],[1L]]*T$2","v":144},{"$f":"Table_TypWattage[[#This Row],[1L]]*U$2","v":216},{"$f":"Table_TypWattage[[#This Row],[1L]]*V$2","v":288},null,"<-- NEEDS INPUT"]
[null,null,null,null,null,null,null,null,null,null,null,null,null,null,"FLT8 - 6 Ft - RS/PRS L",40,40,{"$f":"Table_TypWattage[[#This Row],[1L]]*R$2","v":80},{"$f":"Table_TypWattage[[#This Row],[1L]]*S$2","v":120},{"$f":"Table_TypWattage[[#This Row],[1L]]*T$2","v":160},{"$f":"Table_TypWattage[[#This Row],[1L]]*U$2","v":240},{"$f":"Table_TypWattage[[#This Row],[1L]]*V$2","v":320},null,"<-- NEEDS INPUT"]
[null,null,null,null,null,null,null,null,null,null,null,null,null,null,"FLT8 - 8 Ft - RS/PRS L",59,49,{"$f":"Table_TypWattage[[#This Row],[1L]]*R$2","v":98},{"$f":"Table_TypWattage[[#This Row],[1L]]*S$2","v":147},{"$f":"Table_TypWattage[[#This Row],[1L]]*T$2","v":196},{"$f":"Table_TypWattage[[#This Row],[1L]]*U$2","v":294},{"$f":"Table_TypWattage[[#This Row],[1L]]*V$2","v":392},null,"<-- NEEDS INPUT"]
[null,null,null,null,null,null,null,null,null,null,null,null,null,null,"FLT8 - 8 Ft - RS/PRS L",70,70,{"$f":"Table_TypWattage[[#This Row],[1L]]*R$2","v":140},{"$f":"Table_TypWattage[[#This Row],[1L]]*S$2","v":210},{"$f":"Table_TypWattage[[#This Row],[1L]]*T$2","v":280},{"$f":"Table_TypWattage[[#This Row],[1L]]*U$2","v":420},{"$f":"Table_TypWattage[[#This Row],[1L]]*V$2","v":560},null,"<-- NEEDS INPUT"]
[null,null,null,null,null,null,null,null,null,null,null,null,null,null,"FLT8 - 2 Ft - RS/PRS N",14,14,{"$f":"Table_TypWattage[[#This Row],[1L]]*R$2","v":28},{"$f":"Table_TypWattage[[#This Row],[1L]]*S$2","v":42},{"$f":"Table_TypWattage[[#This Row],[1L]]*T$2","v":56},{"$f":"Table_TypWattage[[#This Row],[1L]]*U$2","v":84},{"$f":"Table_TypWattage[[#This Row],[1L]]*V$2","v":112},null,"<-- NEEDS INPUT"]
[null,null,null,null,null,null,null,null,null,null,null,null,null,null,"FLT8 - 2 Ft - RS/PRS N",15,15,{"$f":"Table_TypWattage[[#This Row],[1L]]*R$2","v":30},{"$f":"Table_TypWattage[[#This Row],[1L]]*S$2","v":45},{"$f":"Table_TypWattage[[#This Row],[1L]]*T$2","v":60},{"$f":"Table_TypWattage[[#This Row],[1L]]*U$2","v":90},{"$f":"Table_TypWattage[[#This Row],[1L]]*V$2","v":120},null,"<-- NEEDS INPUT"]
[null,null,null,null,null,null,null,null,null,null,null,null,null,null,"FLT8 - 2 Ft - RS/PRS N",17,17,{"$f":"Table_TypWattage[[#This Row],[1L]]*R$2","v":34},{"$f":"Table_TypWattage[[#This Row],[1L]]*S$2","v":51},{"$f":"Table_TypWattage[[#This Row],[1L]]*T$2","v":68},{"$f":"Table_TypWattage[[#This Row],[1L]]*U$2","v":102},{"$f":"Table_TypWattage[[#This Row],[1L]]*V$2","v":136},null,"<-- NEEDS INPUT"]
[null,null,null,null,null,null,null,null,null,null,null,null,null,null,"FLT8 - 3 Ft - RS/PRS N",25,25,{"$f":"Table_TypWattage[[#This Row],[1L]]*R$2","v":50},{"$f":"Table_TypWattage[[#This Row],[1L]]*S$2","v":75},{"$f":"Table_TypWattage[[#This Row],[1L]]*T$2","v":100},{"$f":"Table_TypWattage[[#This Row],[1L]]*U$2","v":150},{"$f":"Table_TypWattage[[#This Row],[1L]]*V$2","v":200},null,"<-- NEEDS INPUT"]
[null,null,null,null,null,null,null,null,null,null,null,null,null,null,"FLT8 - 3 Ft - RS/PRS N",30,30,{"$f":"Table_TypWattage[[#This Row],[1L]]*R$2","v":60},{"$f":"Table_TypWattage[[#This Row],[1L]]*S$2","v":90},{"$f":"Table_TypWattage[[#This Row],[1L]]*T$2","v":120},{"$f":"Table_TypWattage[[#This Row],[1L]]*U$2","v":180},{"$f":"Table_TypWattage[[#This Row],[1L]]*V$2","v":240},null,"<-- NEEDS INPUT"]
[null,null,null,null,null,null,null,null,null,null,null,null,null,null,"FLT8 - 4 Ft - RS/PRS N",28,28,{"$f":"Table_TypWattage[[#This Row],[1L]]*R$2","v":56},{"$f":"Table_TypWattage[[#This Row],[1L]]*S$2","v":84},{"$f":"Table_TypWattage[[#This Row],[1L]]*T$2","v":112},{"$f":"Table_TypWattage[[#This Row],[1L]]*U$2","v":168},{"$f":"Table_TypWattage[[#This Row],[1L]]*V$2","v":224},null,"<-- NEEDS INPUT"]
[null,null,null,null,null,null,null,null,null,null,null,null,null,null,"FLT8 - 4 Ft - RS/PRS N",32,30,58,85,116,144,170,null,"<-- NEEDS INPUT"]
[null,null,null,null,null,null,null,null,null,null,null,null,null,null,"FLT8 - 4 Ft - RS/PRS N",36,36,{"$f":"Table_TypWattage[[#This Row],[1L]]*R$2","v":72},{"$f":"Table_TypWattage[[#This Row],[1L]]*S$2","v":108},{"$f":"Table_TypWattage[[#This Row],[1L]]*T$2","v":144},{"$f":"Table_TypWattage[[#This Row],[1L]]*U$2","v":216},{"$f":"Table_TypWattage[[#This Row],[1L]]*V$2","v":288},null,"<-- NEEDS INPUT"]
[null,null,null,null,null,null,null,null,null,null,null,null,null,null,"FLT8 - 6 Ft - RS/PRS N",40,40,{"$f":"Table_TypWattage[[#This Row],[1L]]*R$2","v":80},{"$f":"Table_TypWattage[[#This Row],[1L]]*S$2","v":120},{"$f":"Table_TypWattage[[#This Row],[1L]]*T$2","v":160},{"$f":"Table_TypWattage[[#This Row],[1L]]*U$2","v":240},{"$f":"Table_TypWattage[[#This Row],[1L]]*V$2","v":320},null,"<-- NEEDS INPUT"]
[null,null,null,null,null,null,null,null,null,null,null,null,null,null,"FLT8 - 8 Ft - RS/PRS N",59,55,{"$f":"Table_TypWattage[[#This Row],[1L]]*R$2","v":110},{"$f":"Table_TypWattage[[#This Row],[1L]]*S$2","v":165},{"$f":"Table_TypWattage[[#This Row],[1L]]*T$2","v":220},{"$f":"Table_TypWattage[[#This Row],[1L]]*U$2","v":330},{"$f":"Table_TypWattage[[#This Row],[1L]]*V$2","v":440},null,"<-- NEEDS INPUT"]
[null,null,null,null,null,null,null,null,null,null,null,null,null,null,"FLT8 - 8 Ft - RS/PRS N",70,70,{"$f":"Table_TypWattage[[#This Row],[1L]]*R$2","v":140},{"$f":"Table_TypWattage[[#This Row],[1L]]*S$2","v":210},{"$f":"Table_TypWattage[[#This Row],[1L]]*T$2","v":280},{"$f":"Table_TypWattage[[#This Row],[1L]]*U$2","v":420},{"$f":"Table_TypWattage[[#This Row],[1L]]*V$2","v":560},null,"<-- NEEDS INPUT"]
[null,null,null,null,null,null,null,null,null,null,null,null,null,null,"FLT8 - 2 Ft - RS/PRS H",14,{"$f":"P141","v":14},{"$f":"Table_TypWattage[[#This Row],[1L]]*R$2","v":28},{"$f":"Table_TypWattage[[#This Row],[1L]]*S$2","v":42},{"$f":"Table_TypWattage[[#This Row],[1L]]*T$2","v":56},{"$f":"Table_TypWattage[[#This Row],[1L]]*U$2","v":84},{"$f":"Table_TypWattage[[#This Row],[1L]]*V$2","v":112},null,"<-- NEEDS INPUT"]
[null,null,null,null,null,null,null,null,null,null,null,null,null,null,"FLT8 - 2 Ft - RS/PRS H",15,15,{"$f":"Table_TypWattage[[#This Row],[1L]]*R$2","v":30},{"$f":"Table_TypWattage[[#This Row],[1L]]*S$2","v":45},{"$f":"Table_TypWattage[[#This Row],[1L]]*T$2","v":60},{"$f":"Table_TypWattage[[#This Row],[1L]]*U$2","v":90},{"$f":"Table_TypWattage[[#This Row],[1L]]*V$2","v":120},null,"<-- NEEDS INPUT"]
[null,null,null,null,null,null,null,null,null,null,null,null,null,null,"FLT8 - 2 Ft - RS/PRS H",17,17,{"$f":"Table_TypWattage[[#This Row],[1L]]*R$2","v":34},{"$f":"Table_TypWattage[[#This Row],[1L]]*S$2","v":51},{"$f":"Table_TypWattage[[#This Row],[1L]]*T$2","v":68},{"$f":"Table_TypWattage[[#This Row],[1L]]*U$2","v":102},{"$f":"Table_TypWattage[[#This Row],[1L]]*V$2","v":136},null,"<-- NEEDS INPUT"]
[null,null,null,null,null,null,null,null,null,null,null,null,null,null,"FLT8 - 3 Ft - RS/PRS H",25,25,{"$f":"Table_TypWattage[[#This Row],[1L]]*R$2","v":50},{"$f":"Table_TypWattage[[#This Row],[1L]]*S$2","v":75},{"$f":"Table_TypWattage[[#This Row],[1L]]*T$2","v":100},{"$f":"Table_TypWattage[[#This Row],[1L]]*U$2","v":150},{"$f":"Table_TypWattage[[#This Row],[1L]]*V$2","v":200},null,"<-- NEEDS INPUT"]
[null,null,null,null,null,null,null,null,null,null,null,null,null,null,"FLT8 - 3 Ft - RS/PRS H",30,30,{"$f":"Table_TypWattage[[#This Row],[1L]]*R$2","v":60},{"$f":"Table_TypWattage[[#This Row],[1L]]*S$2","v":90},{"$f":"Table_TypWattage[[#This Row],[1L]]*T$2","v":120},{"$f":"Table_TypWattage[[#This Row],[1L]]*U$2","v":180},{"$f":"Table_TypWattage[[#This Row],[1L]]*V$2","v":240},null,"<-- NEEDS INPUT"]
[null,null,null,null,null,null,null,null,null,null,null,null,null,null,"FLT8 - 4 Ft - RS/PRS H",28,32,{"$f":"Table_TypWattage[[#This Row],[1L]]*R$2","v":64},{"$f":"Table_TypWattage[[#This Row],[1L]]*S$2","v":96},{"$f":"Table_TypWattage[[#This Row],[1L]]*T$2","v":128},{"$f":"Table_TypWattage[[#This Row],[1L]]*U$2","v":192},{"$f":"Table_TypWattage[[#This Row],[1L]]*V$2","v":256},null,"<-- NEEDS INPUT"]
[null,null,null,null,null,null,null,null,null,null,null,null,null,null,"FLT8 - 4 Ft - RS/PRS H",32,33,64,95,150,198,290,null,"<-- NEEDS INPUT"]
[null,null,null,null,null,null,null,null,null,null,null,null,null,null,"FLT8 - 4 Ft - RS/PRS H",36,36,{"$f":"Table_TypWattage[[#This Row],[1L]]*R$2","v":72},{"$f":"Table_TypWattage[[#This Row],[1L]]*S$2","v":108},{"$f":"Table_TypWattage[[#This Row],[1L]]*T$2","v":144},{"$f":"Table_TypWattage[[#This Row],[1L]]*U$2","v":216},{"$f":"Table_TypWattage[[#This Row],[1L]]*V$2","v":288},null,"<-- NEEDS INPUT"]
[null,null,null,null,null,null,null,null,null,null,null,null,null,null,"FLT8 - 6 Ft - RS/PRS H",40,40,{"$f":"Table_TypWattage[[#This Row],[1L]]*R$2","v":80},{"$f":"Table_TypWattage[[#This Row],[1L]]*S$2","v":120},{"$f":"Table_TypWattage[[#This Row],[1L]]*T$2","v":160},{"$f":"Table_TypWattage[[#This Row],[1L]]*U$2","v":240},{"$f":"Table_TypWattage[[#This Row],[1L]]*V$2","v":320},null,"<-- NEEDS INPUT"]
[null,null,null,null,null,null,null,null,null,null,null,null,null,null,"FLT8 - 8 Ft - RS/PRS H",59,63,{"$f":"Table_TypWattage[[#This Row],[1L]]*R$2","v":126},{"$f":"Table_TypWattage[[#This Row],[1L]]*S$2","v":189},{"$f":"Table_TypWattage[[#This Row],[1L]]*T$2","v":252},{"$f":"Table_TypWattage[[#This Row],[1L]]*U$2","v":378},{"$f":"Table_TypWattage[[#This Row],[1L]]*V$2","v":504},null,"<-- NEEDS INPUT"]
[null,null,null,null,null,null,null,null,null,null,null,null,null,null,"FLT8 - 8 Ft - RS/PRS H",70,70,{"$f":"Table_TypWattage[[#This Row],[1L]]*R$2","v":140},{"$f":"Table_TypWattage[[#This Row],[1L]]*S$2","v":210},{"$f":"Table_TypWattage[[#This Row],[1L]]*T$2","v":280},{"$f":"Table_TypWattage[[#This Row],[1L]]*U$2","v":420},{"$f":"Table_TypWattage[[#This Row],[1L]]*V$2","v":560},null,"<-- NEEDS INPUT"]
[null,null,null,null,null,null,null,null,null,null,null,null,null,null,"FUT12 - 2 Ft - IS N",40,40,{"$f":"Table_TypWattage[[#This Row],[1L]]*R$2","v":80},{"$f":"Table_TypWattage[[#This Row],[1L]]*S$2","v":120},{"$f":"Table_TypWattage[[#This Row],[1L]]*T$2","v":160},{"$f":"Table_TypWattage[[#This Row],[1L]]*U$2","v":240},{"$f":"Table_TypWattage[[#This Row],[1L]]*V$2","v":320},null,"<-- NEEDS INPUT"]
[null,null,null,null,null,null,null,null,null,null,null,null,null,null,"FUT12 - 2 Ft - MG",40,40,{"$f":"Table_TypWattage[[#This Row],[1L]]*R$2","v":80},{"$f":"Table_TypWattage[[#This Row],[1L]]*S$2","v":120},{"$f":"Table_TypWattage[[#This Row],[1L]]*T$2","v":160},{"$f":"Table_TypWattage[[#This Row],[1L]]*U$2","v":240},{"$f":"Table_TypWattage[[#This Row],[1L]]*V$2","v":320},null,"<-- NEEDS INPUT"]
[null,null,null,null,null,null,null,null,null,null,null,null,null,null,"FUT12 - 2 Ft - RS/PRS N",40,40,{"$f":"Table_TypWattage[[#This Row],[1L]]*R$2","v":80},{"$f":"Table_TypWattage[[#This Row],[1L]]*S$2","v":120},{"$f":"Table_TypWattage[[#This Row],[1L]]*T$2","v":160},{"$f":"Table_TypWattage[[#This Row],[1L]]*U$2","v":240},{"$f":"Table_TypWattage[[#This Row],[1L]]*V$2","v":320},null,"<-- NEEDS INPUT"]
[null,null,null,null,null,null,null,null,null,null,null,null,null,null,"FUT8 - 2 Ft - IS L",31,32,59,{"$f":"ROUND(SLOPE($Q$155:$R$155,$Q$2:$R$2)*S$2+INTERCEPT($Q$155:$R$155,$Q$2:$R$2),0)","v":86},113,167,221,null,"<-- NEEDS INPUT"]
[null,null,null,null,null,null,null,null,null,null,null,null,null,null,"FUT8 - 2 Ft - IS N",31,32,59,86,113,167,221,null,"<-- NEEDS INPUT"]
[null,null,null,null,null,null,null,null,null,null,null,null,null,null,"FUT8 - 2 Ft - IS H",31,32,59,86,113,167,221,null,"<-- NEEDS INPUT"]
[null,null,null,null,null,null,null,null,null,null,null,null,null,null,"FUT8 - 2 Ft - RS/PRS L",31,32,59,86,113,167,221,null,"<-- NEEDS INPUT"]
[null,null,null,null,null,null,null,null,null,null,null,null,null,null,"FUT8 - 2 Ft - RS/PRS N",31,32,59,86,113,167,221,null,"<-- NEEDS INPUT"]
[null,null,null,null,null,null,null,null,null,null,null,null,null,null,"FUT8 - 2 Ft - RS/PRS H",31,32,59,86,113,167,221,null,"<-- NEEDS INPUT"]
[null,null,null,null,null,null,null,null,null,null,null,null,null,null,"FUT8 - 2 Ft - IS L",32,25,59,86,113,167,221,null,"<-- NEEDS INPUT"]
[null,null,null,null,null,null,null,null,null,null,null,null,null,null,"FUT8 - 2 Ft - IS N",32,30,58,85,116,144,170,null,"<-- NEEDS INPUT"]
[null,null,null,null,null,null,null,null,null,null,null,null,null,null,"FUT8 - 2 Ft - IS H",32,33,64,95,150,198,290,null,"<-- NEEDS INPUT"]
[null,null,null,null,null,null,null,null,null,null,null,null,null,null,"FUT8 - 2 Ft - RS/PRS L",32,25,59,86,113,167,221,null,"<-- NEEDS INPUT"]
[null,null,null,null,null,null,null,null,null,null,null,null,null,null,"FUT8 - 2 Ft - RS/PRS N",32,30,58,85,116,144,170,null,"<-- NEEDS INPUT"]
[null,null,null,null,null,null,null,null,null,null,null,null,null,null,"FUT8 - 2 Ft - RS/PRS H",32,33,64,95,150,198,290,null,"<-- NEEDS INPUT"]
[null,null,null,null,null,null,null,null,null,null,null,null,null,null,"Halogen",40,40,{"$f":"Table_TypWattage[[#This Row],[1L]]*R$2","v":80},{"$f":"Table_TypWattage[[#This Row],[1L]]*S$2","v":120},{"$f":"Table_TypWattage[[#This Row],[1L]]*T$2","v":160},{"$f":"Table_TypWattage[[#This Row],[1L]]*U$2","v":240},{"$f":"Table_TypWattage[[#This Row],[1L]]*V$2","v":320}]
[null,null,null,null,null,null,null,null,null,null,null,null,null,null,"Halogen",60,60,{"$f":"Table_TypWattage[[#This Row],[1L]]*R$2","v":120},{"$f":"Table_TypWattage[[#This Row],[1L]]*S$2","v":180},{"$f":"Table_TypWattage[[#This Row],[1L]]*T$2","v":240},{"$f":"Table_TypWattage[[#This Row],[1L]]*U$2","v":360},{"$f":"Table_TypWattage[[#This Row],[1L]]*V$2","v":480}]
[null,null,null,null,null,null,null,null,null,null,null,null,null,null,"Halogen",75,75,{"$f":"Table_TypWattage[[#This Row],[1L]]*R$2","v":150},{"$f":"Table_TypWattage[[#This Row],[1L]]*S$2","v":225},{"$f":"Table_TypWattage[[#This Row],[1L]]*T$2","v":300},{"$f":"Table_TypWattage[[#This Row],[1L]]*U$2","v":450},{"$f":"Table_TypWattage[[#This Row],[1L]]*V$2","v":600}]
[null,null,null,null,null,null,null,null,null,null,null,null,null,null,"Halogen",90,90,{"$f":"Table_TypWattage[[#This Row],[1L]]*R$2","v":180},{"$f":"Table_TypWattage[[#This Row],[1L]]*S$2","v":270},{"$f":"Table_TypWattage[[#This Row],[1L]]*T$2","v":360},{"$f":"Table_TypWattage[[#This Row],[1L]]*U$2","v":540},{"$f":"Table_TypWattage[[#This Row],[1L]]*V$2","v":720}]
[null,null,null,null,null,null,null,null,null,null,null,null,null,null,"Halogen",100,100,{"$f":"Table_TypWattage[[#This Row],[1L]]*R$2","v":200},{"$f":"Table_TypWattage[[#This Row],[1L]]*S$2","v":300},{"$f":"Table_TypWattage[[#This Row],[1L]]*T$2","v":400},{"$f":"Table_TypWattage[[#This Row],[1L]]*U$2","v":600},{"$f":"Table_TypWattage[[#This Row],[1L]]*V$2","v":800}]
[null,null,null,null,null,null,null,null,null,null,null,null,null,null,"Halogen",150,150,{"$f":"Table_TypWattage[[#This Row],[1L]]*R$2","v":300},{"$f":"Table_TypWattage[[#This Row],[1L]]*S$2","v":450},{"$f":"Table_TypWattage[[#This Row],[1L]]*T$2","v":600},{"$f":"Table_TypWattage[[#This Row],[1L]]*U$2","v":900},{"$f":"Table_TypWattage[[#This Row],[1L]]*V$2","v":1200}]
[null,null,null,null,null,null,null,null,null,null,null,null,null,null,"Halogen",200,200,{"$f":"Table_TypWattage[[#This Row],[1L]]*R$2","v":400},{"$f":"Table_TypWattage[[#This Row],[1L]]*S$2","v":600},{"$f":"Table_TypWattage[[#This Row],[1L]]*T$2","v":800},{"$f":"Table_TypWattage[[#This Row],[1L]]*U$2","v":1200},{"$f":"Table_TypWattage[[#This Row],[1L]]*V$2","v":1600}]
[null,null,null,null,null,null,null,null,null,null,null,null,null,null,"Halogen",300,300,{"$f":"Table_TypWattage[[#This Row],[1L]]*R$2","v":600},{"$f":"Table_TypWattage[[#This Row],[1L]]*S$2","v":900},{"$f":"Table_TypWattage[[#This Row],[1L]]*T$2","v":1200},{"$f":"Table_TypWattage[[#This Row],[1L]]*U$2","v":1800},{"$f":"Table_TypWattage[[#This Row],[1L]]*V$2","v":2400}]
[null,null,null,null,null,null,null,null,null,null,null,null,null,null,"Halogen",500,500,{"$f":"Table_TypWattage[[#This Row],[1L]]*R$2","v":1000},{"$f":"Table_TypWattage[[#This Row],[1L]]*S$2","v":1500},{"$f":"Table_TypWattage[[#This Row],[1L]]*T$2","v":2000},{"$f":"Table_TypWattage[[#This Row],[1L]]*U$2","v":3000},{"$f":"Table_TypWattage[[#This Row],[1L]]*V$2","v":4000}]
[null,null,null,null,null,null,null,null,null,null,null,null,null,null,"Halogen",1000,1000,{"$f":"Table_TypWattage[[#This Row],[1L]]*R$2","v":2000},{"$f":"Table_TypWattage[[#This Row],[1L]]*S$2","v":3000},{"$f":"Table_TypWattage[[#This Row],[1L]]*T$2","v":4000},{"$f":"Table_TypWattage[[#This Row],[1L]]*U$2","v":6000},{"$f":"Table_TypWattage[[#This Row],[1L]]*V$2","v":8000}]
[null,null,null,null,null,null,null,null,null,null,null,null,null,null,"Halogen",1500,1500,{"$f":"Table_TypWattage[[#This Row],[1L]]*R$2","v":3000},{"$f":"Table_TypWattage[[#This Row],[1L]]*S$2","v":4500},{"$f":"Table_TypWattage[[#This Row],[1L]]*T$2","v":6000},{"$f":"Table_TypWattage[[#This Row],[1L]]*U$2","v":9000},{"$f":"Table_TypWattage[[#This Row],[1L]]*V$2","v":12000}]
[null,null,null,null,null,null,null,null,null,null,null,null,null,null,"High Pressure Sodium - n/a",35,46,{"$f":"Table_TypWattage[[#This Row],[1L]]*R$2","v":92},{"$f":"Table_TypWattage[[#This Row],[1L]]*S$2","v":138},{"$f":"Table_TypWattage[[#This Row],[1L]]*T$2","v":184},{"$f":"Table_TypWattage[[#This Row],[1L]]*U$2","v":276},{"$f":"Table_TypWattage[[#This Row],[1L]]*V$2","v":368},null,"<-- CHECK"]
[null,null,null,null,null,null,null,null,null,null,null,null,null,null,"High Pressure Sodium - n/a",50,66,{"$f":"Table_TypWattage[[#This Row],[1L]]*R$2","v":132},{"$f":"Table_TypWattage[[#This Row],[1L]]*S$2","v":198},{"$f":"Table_TypWattage[[#This Row],[1L]]*T$2","v":264},{"$f":"Table_TypWattage[[#This Row],[1L]]*U$2","v":396},{"$f":"Table_TypWattage[[#This Row],[1L]]*V$2","v":528},null,"<-- CHECK"]
[null,null,null,null,null,null,null,null,null,null,null,null,null,null,"High Pressure Sodium - n/a",70,95,{"$f":"Table_TypWattage[[#This Row],[1L]]*R$2","v":190},{"$f":"Table_TypWattage[[#This Row],[1L]]*S$2","v":285},{"$f":"Table_TypWattage[[#This Row],[1L]]*T$2","v":380},{"$f":"Table_TypWattage[[#This Row],[1L]]*U$2","v":570},{"$f":"Table_TypWattage[[#This Row],[1L]]*V$2","v":760},null,"<-- CHECK"]
[null,null,null,null,null,null,null,null,null,null,null,null,null,null,"High Pressure Sodium - n/a",100,138,{"$f":"Table_TypWattage[[#This Row],[1L]]*R$2","v":276},{"$f":"Table_TypWattage[[#This Row],[1L]]*S$2","v":414},{"$f":"Table_TypWattage[[#This Row],[1L]]*T$2","v":552},{"$f":"Table_TypWattage[[#This Row],[1L]]*U$2","v":828},{"$f":"Table_TypWattage[[#This Row],[1L]]*V$2","v":1104},null,"<-- CHECK"]
[null,null,null,null,null,null,null,null,null,null,null,null,null,null,"High Pressure Sodium - n/a",150,188,{"$f":"Table_TypWattage[[#This Row],[1L]]*R$2","v":376},{"$f":"Table_TypWattage[[#This Row],[1L]]*S$2","v":564},{"$f":"Table_TypWattage[[#This Row],[1L]]*T$2","v":752},{"$f":"Table_TypWattage[[#This Row],[1L]]*U$2","v":1128},{"$f":"Table_TypWattage[[#This Row],[1L]]*V$2","v":1504},null,"<-- CHECK"]
[null,null,null,null,null,null,null,null,null,null,null,null,null,null,"High Pressure Sodium - n/a",200,250,{"$f":"Table_TypWattage[[#This Row],[1L]]*R$2","v":500},{"$f":"Table_TypWattage[[#This Row],[1L]]*S$2","v":750},{"$f":"Table_TypWattage[[#This Row],[1L]]*T$2","v":1000},{"$f":"Table_TypWattage[[#This Row],[1L]]*U$2","v":1500},{"$f":"Table_TypWattage[[#This Row],[1L]]*V$2","v":2000},null,"<-- CHECK"]
[null,null,null,null,null,null,null,null,null,null,null,null,null,null,"High Pressure Sodium - n/a",250,295,{"$f":"Table_TypWattage[[#This Row],[1L]]*R$2","v":590},{"$f":"Table_TypWattage[[#This Row],[1L]]*S$2","v":885},{"$f":"Table_TypWattage[[#This Row],[1L]]*T$2","v":1180},{"$f":"Table_TypWattage[[#This Row],[1L]]*U$2","v":1770},{"$f":"Table_TypWattage[[#This Row],[1L]]*V$2","v":2360},null,"<-- CHECK"]
[null,null,null,null,null,null,null,null,null,null,null,null,null,null,"High Pressure Sodium - n/a",400,465,{"$f":"Table_TypWattage[[#This Row],[1L]]*R$2","v":930},{"$f":"Table_TypWattage[[#This Row],[1L]]*S$2","v":1395},{"$f":"Table_TypWattage[[#This Row],[1L]]*T$2","v":1860},{"$f":"Table_TypWattage[[#This Row],[1L]]*U$2","v":2790},{"$f":"Table_TypWattage[[#This Row],[1L]]*V$2","v":3720},null,"<-- CHECK"]
[null,null,null,null,null,null,null,null,null,null,null,null,null,null,"High Pressure Sodium - n/a",600,{"$f":"ROUND(SLOPE($Q$198:$Q$205,$P$198:$P$205)*P186+INTERCEPT($Q$198:$Q$205,$P$198:$P$205),0)","v":696},{"$f":"Table_TypWattage[[#This Row],[1L]]*R$2","v":1392},{"$f":"Table_TypWattage[[#This Row],[1L]]*S$2","v":2088},{"$f":"Table_TypWattage[[#This Row],[1L]]*T$2","v":2784},{"$f":"Table_TypWattage[[#This Row],[1L]]*U$2","v":4176},{"$f":"Table_TypWattage[[#This Row],[1L]]*V$2","v":5568},null,"<-- CHECK"]
[null,null,null,null,null,null,null,null,null,null,null,null,null,null,"High Pressure Sodium - n/a",1000,1151,{"$f":"Table_TypWattage[[#This Row],[1L]]*R$2","v":2302},{"$f":"Table_TypWattage[[#This Row],[1L]]*S$2","v":3453},{"$f":"Table_TypWattage[[#This Row],[1L]]*T$2","v":4604},{"$f":"Table_TypWattage[[#This Row],[1L]]*U$2","v":6906},{"$f":"Table_TypWattage[[#This Row],[1L]]*V$2","v":9208},null,"<-- CHECK"]
[null,null,null,null,null,null,null,null,null,null,null,null,null,null,"High Pressure Sodium - Electronic",35,46,{"$f":"Table_TypWattage[[#This Row],[1L]]*R$2","v":92},{"$f":"Table_TypWattage[[#This Row],[1L]]*S$2","v":138},{"$f":"Table_TypWattage[[#This Row],[1L]]*T$2","v":184},{"$f":"Table_TypWattage[[#This Row],[1L]]*U$2","v":276},{"$f":"Table_TypWattage[[#This Row],[1L]]*V$2","v":368},null,"<-- NEEDS INPUT"]
[null,null,null,null,null,null,null,null,null,null,null,null,null,null,"High Pressure Sodium - Electronic",50,66,{"$f":"Table_TypWattage[[#This Row],[1L]]*R$2","v":132},{"$f":"Table_TypWattage[[#This Row],[1L]]*S$2","v":198},{"$f":"Table_TypWattage[[#This Row],[1L]]*T$2","v":264},{"$f":"Table_TypWattage[[#This Row],[1L]]*U$2","v":396},{"$f":"Table_TypWattage[[#This Row],[1L]]*V$2","v":528},null,"<-- NEEDS INPUT"]
[null,null,null,null,null,null,null,null,null,null,null,null,null,null,"High Pressure Sodium - Electronic",70,95,{"$f":"Table_TypWattage[[#This Row],[1L]]*R$2","v":190},{"$f":"Table_TypWattage[[#This Row],[1L]]*S$2","v":285},{"$f":"Table_TypWattage[[#This Row],[1L]]*T$2","v":380},{"$f":"Table_TypWattage[[#This Row],[1L]]*U$2","v":570},{"$f":"Table_TypWattage[[#This Row],[1L]]*V$2","v":760},null,"<-- NEEDS INPUT"]
[null,null,null,null,null,null,null,null,null,null,null,null,null,null,"High Pressure Sodium - Electronic",100,138,{"$f":"Table_TypWattage[[#This Row],[1L]]*R$2","v":276},{"$f":"Table_TypWattage[[#This Row],[1L]]*S$2","v":414},{"$f":"Table_TypWattage[[#This Row],[1L]]*T$2","v":552},{"$f":"Table_TypWattage[[#This Row],[1L]]*U$2","v":828},{"$f":"Table_TypWattage[[#This Row],[1L]]*V$2","v":1104},null,"<-- NEEDS INPUT"]
[null,null,null,null,null,null,null,null,null,null,null,null,null,null,"High Pressure Sodium - Electronic",150,188,{"$f":"Table_TypWattage[[#This Row],[1L]]*R$2","v":376},{"$f":"Table_TypWattage[[#This Row],[1L]]*S$2","v":564},{"$f":"Table_TypWattage[[#This Row],[1L]]*T$2","v":752},{"$f":"Table_TypWattage[[#This Row],[1L]]*U$2","v":1128},{"$f":"Table_TypWattage[[#This Row],[1L]]*V$2","v":1504},null,"<-- NEEDS INPUT"]
[null,null,null,null,null,null,null,null,null,null,null,null,null,null,"High Pressure Sodium - Electronic",200,250,{"$f":"Table_TypWattage[[#This Row],[1L]]*R$2","v":500},{"$f":"Table_TypWattage[[#This Row],[1L]]*S$2","v":750},{"$f":"Table_TypWattage[[#This Row],[1L]]*T$2","v":1000},{"$f":"Table_TypWattage[[#This Row],[1L]]*U$2","v":1500},{"$f":"Table_TypWattage[[#This Row],[1L]]*V$2","v":2000},null,"<-- NEEDS INPUT"]
[null,null,null,null,null,null,null,null,null,null,null,null,null,null,"High Pressure Sodium - Electronic",250,295,{"$f":"Table_TypWattage[[#This Row],[1L]]*R$2","v":590},{"$f":"Table_TypWattage[[#This Row],[1L]]*S$2","v":885},{"$f":"Table_TypWattage[[#This Row],[1L]]*T$2","v":1180},{"$f":"Table_TypWattage[[#This Row],[1L]]*U$2","v":1770},{"$f":"Table_TypWattage[[#This Row],[1L]]*V$2","v":2360},null,"<-- NEEDS INPUT"]
[null,null,null,null,null,null,null,null,null,null,null,null,null,null,"High Pressure Sodium - Electronic",400,465,{"$f":"Table_TypWattage[[#This Row],[1L]]*R$2","v":930},{"$f":"Table_TypWattage[[#This Row],[1L]]*S$2","v":1395},{"$f":"Table_TypWattage[[#This Row],[1L]]*T$2","v":1860},{"$f":"Table_TypWattage[[#This Row],[1L]]*U$2","v":2790},{"$f":"Table_TypWattage[[#This Row],[1L]]*V$2","v":3720},null,"<-- NEEDS INPUT"]
[null,null,null,null,null,null,null,null,null,null,null,null,null,null,"High Pressure Sodium - Electronic",600,{"$f":"ROUND(SLOPE($Q$198:$Q$205,$P$198:$P$205)*P196+INTERCEPT($Q$198:$Q$205,$P$198:$P$205),0)","v":696},{"$f":"Table_TypWattage[[#This Row],[1L]]*R$2","v":1392},{"$f":"Table_TypWattage[[#This Row],[1L]]*S$2","v":2088},{"$f":"Table_TypWattage[[#This Row],[1L]]*T$2","v":2784},{"$f":"Table_TypWattage[[#This Row],[1L]]*U$2","v":4176},{"$f":"Table_TypWattage[[#This Row],[1L]]*V$2","v":5568},null,"<-- NEEDS INPUT"]
[null,null,null,null,null,null,null,null,null,null,null,null,null,null,"High Pressure Sodium - Electronic",1000,1151,{"$f":"Table_TypWattage[[#This Row],[1L]]*R$2","v":2302},{"$f":"Table_TypWattage[[#This Row],[1L]]*S$2","v":3453},{"$f":"Table_TypWattage[[#This Row],[1L]]*T$2","v":4604},{"$f":"Table_TypWattage[[#This Row],[1L]]*U$2","v":6906},{"$f":"Table_TypWattage[[#This Row],[1L]]*V$2","v":9208},null,"<-- NEEDS INPUT"]
[null,null,null,null,null,null,null,null,null,null,null,null,null,null,"High Pressure Sodium - Magnetic",35,46,{"$f":"Table_TypWattage[[#This Row],[1L]]*R$2","v":92},{"$f":"Table_TypWattage[[#This Row],[1L]]*S$2","v":138},{"$f":"Table_TypWattage[[#This Row],[1L]]*T$2","v":184},{"$f":"Table_TypWattage[[#This Row],[1L]]*U$2","v":276},{"$f":"Table_TypWattage[[#This Row],[1L]]*V$2","v":368},null,"<-- NEEDS INPUT"]
[null,null,null,null,null,null,null,null,null,null,null,null,null,null,"High Pressure Sodium - Magnetic",50,66,{"$f":"Table_TypWattage[[#This Row],[1L]]*R$2","v":132},{"$f":"Table_TypWattage[[#This Row],[1L]]*S$2","v":198},{"$f":"Table_TypWattage[[#This Row],[1L]]*T$2","v":264},{"$f":"Table_TypWattage[[#This Row],[1L]]*U$2","v":396},{"$f":"Table_TypWattage[[#This Row],[1L]]*V$2","v":528},null,"<-- NEEDS INPUT"]
[null,null,null,null,null,null,null,null,null,null,null,null,null,null,"High Pressure Sodium - Magnetic",70,95,{"$f":"Table_TypWattage[[#This Row],[1L]]*R$2","v":190},{"$f":"Table_TypWattage[[#This Row],[1L]]*S$2","v":285},{"$f":"Table_TypWattage[[#This Row],[1L]]*T$2","v":380},{"$f":"Table_TypWattage[[#This Row],[1L]]*U$2","v":570},{"$f":"Table_TypWattage[[#This Row],[1L]]*V$2","v":760},null,"<-- NEEDS INPUT"]
[null,null,null,null,null,null,null,null,null,null,null,null,null,null,"High Pressure Sodium - Magnetic",100,138,{"$f":"Table_TypWattage[[#This Row],[1L]]*R$2","v":276},{"$f":"Table_TypWattage[[#This Row],[1L]]*S$2","v":414},{"$f":"Table_TypWattage[[#This Row],[1L]]*T$2","v":552},{"$f":"Table_TypWattage[[#This Row],[1L]]*U$2","v":828},{"$f":"Table_TypWattage[[#This Row],[1L]]*V$2","v":1104},null,"<-- NEEDS INPUT"]
[null,null,null,null,null,null,null,null,null,null,null,null,null,null,"High Pressure Sodium - Magnetic",150,188,{"$f":"Table_TypWattage[[#This Row],[1L]]*R$2","v":376},{"$f":"Table_TypWattage[[#This Row],[1L]]*S$2","v":564},{"$f":"Table_TypWattage[[#This Row],[1L]]*T$2","v":752},{"$f":"Table_TypWattage[[#This Row],[1L]]*U$2","v":1128},{"$f":"Table_TypWattage[[#This Row],[1L]]*V$2","v":1504},null,"<-- NEEDS INPUT"]
[null,null,null,null,null,null,null,null,null,null,null,null,null,null,"High Pressure Sodium - Magnetic",200,250,{"$f":"Table_TypWattage[[#This Row],[1L]]*R$2","v":500},{"$f":"Table_TypWattage[[#This Row],[1L]]*S$2","v":750},{"$f":"Table_TypWattage[[#This Row],[1L]]*T$2","v":1000},{"$f":"Table_TypWattage[[#This Row],[1L]]*U$2","v":1500},{"$f":"Table_TypWattage[[#This Row],[1L]]*V$2","v":2000},null,"<-- NEEDS INPUT"]
[null,null,null,null,null,null,null,null,null,null,null,null,null,null,"High Pressure Sodium - Magnetic",250,295,{"$f":"Table_TypWattage[[#This Row],[1L]]*R$2","v":590},{"$f":"Table_TypWattage[[#This Row],[1L]]*S$2","v":885},{"$f":"Table_TypWattage[[#This Row],[1L]]*T$2","v":1180},{"$f":"Table_TypWattage[[#This Row],[1L]]*U$2","v":1770},{"$f":"Table_TypWattage[[#This Row],[1L]]*V$2","v":2360},null,"<-- NEEDS INPUT"]
[null,null,null,null,null,null,null,null,null,null,null,null,null,null,"High Pressure Sodium - Magnetic",400,465,{"$f":"Table_TypWattage[[#This Row],[1L]]*R$2","v":930},{"$f":"Table_TypWattage[[#This Row],[1L]]*S$2","v":1395},{"$f":"Table_TypWattage[[#This Row],[1L]]*T$2","v":1860},{"$f":"Table_TypWattage[[#This Row],[1L]]*U$2","v":2790},{"$f":"Table_TypWattage[[#This Row],[1L]]*V$2","v":3720},null,"<-- NEEDS INPUT"]
[null,null,null,null,null,null,null,null,null,null,null,null,null,null,"High Pressure Sodium - Magnetic",600,{"$f":"ROUND(SLOPE($Q$198:$Q$205,$P$198:$P$205)*P206+INTERCEPT($Q$198:$Q$205,$P$198:$P$205),0)","v":696},{"$f":"Table_TypWattage[[#This Row],[1L]]*R$2","v":1392},{"$f":"Table_TypWattage[[#This Row],[1L]]*S$2","v":2088},{"$f":"Table_TypWattage[[#This Row],[1L]]*T$2","v":2784},{"$f":"Table_TypWattage[[#This Row],[1L]]*U$2","v":4176},{"$f":"Table_TypWattage[[#This Row],[1L]]*V$2","v":5568},null,"<-- NEEDS INPUT"]
[null,null,null,null,null,null,null,null,null,null,null,null,null,null,"High Pressure Sodium - Magnetic",1000,{"$f":"ROUND(SLOPE($Q$198:$Q$205,$P$198:$P$205)*P207+INTERCEPT($Q$198:$Q$205,$P$198:$P$205),0)","v":1151},{"$f":"Table_TypWattage[[#This Row],[1L]]*R$2","v":2302},{"$f":"Table_TypWattage[[#This Row],[1L]]*S$2","v":3453},{"$f":"Table_TypWattage[[#This Row],[1L]]*T$2","v":4604},{"$f":"Table_TypWattage[[#This Row],[1L]]*U$2","v":6906},{"$f":"Table_TypWattage[[#This Row],[1L]]*V$2","v":9208},null,"<-- NEEDS INPUT"]
[null,null,null,null,null,null,null,null,null,null,null,null,null,null,"Incandescent",20,{"$f":"P208","v":20},{"$f":"Table_TypWattage[[#This Row],[1L]]*R$2","v":40},{"$f":"Table_TypWattage[[#This Row],[1L]]*S$2","v":60},{"$f":"Table_TypWattage[[#This Row],[1L]]*T$2","v":80},{"$f":"Table_TypWattage[[#This Row],[1L]]*U$2","v":120},{"$f":"Table_TypWattage[[#This Row],[1L]]*V$2","v":160}]
[null,null,null,null,null,null,null,null,null,null,null,null,null,null,"Incandescent",30,30,{"$f":"Table_TypWattage[[#This Row],[1L]]*R$2","v":60},{"$f":"Table_TypWattage[[#This Row],[1L]]*S$2","v":90},{"$f":"Table_TypWattage[[#This Row],[1L]]*T$2","v":120},{"$f":"Table_TypWattage[[#This Row],[1L]]*U$2","v":180},{"$f":"Table_TypWattage[[#This Row],[1L]]*V$2","v":240}]
[null,null,null,null,null,null,null,null,null,null,null,null,null,null,"Incandescent",40,40,{"$f":"Table_TypWattage[[#This Row],[1L]]*R$2","v":80},{"$f":"Table_TypWattage[[#This Row],[1L]]*S$2","v":120},{"$f":"Table_TypWattage[[#This Row],[1L]]*T$2","v":160},{"$f":"Table_TypWattage[[#This Row],[1L]]*U$2","v":240},{"$f":"Table_TypWattage[[#This Row],[1L]]*V$2","v":320}]
[null,null,null,null,null,null,null,null,null,null,null,null,null,null,"Incandescent",50,50,{"$f":"Table_TypWattage[[#This Row],[1L]]*R$2","v":100},{"$f":"Table_TypWattage[[#This Row],[1L]]*S$2","v":150},{"$f":"Table_TypWattage[[#This Row],[1L]]*T$2","v":200},{"$f":"Table_TypWattage[[#This Row],[1L]]*U$2","v":300},{"$f":"Table_TypWattage[[#This Row],[1L]]*V$2","v":400}]
[null,null,null,null,null,null,null,null,null,null,null,null,null,null,"Incandescent",60,60,{"$f":"Table_TypWattage[[#This Row],[1L]]*R$2","v":120},{"$f":"Table_TypWattage[[#This Row],[1L]]*S$2","v":180},{"$f":"Table_TypWattage[[#This Row],[1L]]*T$2","v":240},{"$f":"Table_TypWattage[[#This Row],[1L]]*U$2","v":360},{"$f":"Table_TypWattage[[#This Row],[1L]]*V$2","v":480}]
[null,null,null,null,null,null,null,null,null,null,null,null,null,null,"Incandescent",75,75,{"$f":"Table_TypWattage[[#This Row],[1L]]*R$2","v":150},{"$f":"Table_TypWattage[[#This Row],[1L]]*S$2","v":225},{"$f":"Table_TypWattage[[#This Row],[1L]]*T$2","v":300},{"$f":"Table_TypWattage[[#This Row],[1L]]*U$2","v":450},{"$f":"Table_TypWattage[[#This Row],[1L]]*V$2","v":600}]
[null,null,null,null,null,null,null,null,null,null,null,null,null,null,"Incandescent",100,100,{"$f":"Table_TypWattage[[#This Row],[1L]]*R$2","v":200},{"$f":"Table_TypWattage[[#This Row],[1L]]*S$2","v":300},{"$f":"Table_TypWattage[[#This Row],[1L]]*T$2","v":400},{"$f":"Table_TypWattage[[#This Row],[1L]]*U$2","v":600},{"$f":"Table_TypWattage[[#This Row],[1L]]*V$2","v":800}]
[null,null,null,null,null,null,null,null,null,null,null,null,null,null,"Incandescent",150,150,{"$f":"Table_TypWattage[[#This Row],[1L]]*R$2","v":300},{"$f":"Table_TypWattage[[#This Row],[1L]]*S$2","v":450},{"$f":"Table_TypWattage[[#This Row],[1L]]*T$2","v":600},{"$f":"Table_TypWattage[[#This Row],[1L]]*U$2","v":900},{"$f":"Table_TypWattage[[#This Row],[1L]]*V$2","v":1200}]
[null,null,null,null,null,null,null,null,null,null,null,null,null,null,"Induction Fixture",85,{"$f":"ROUND(SLOPE($Q$198:$Q$205,$P$198:$P$205)*P216+INTERCEPT($Q$198:$Q$205,$P$198:$P$205),0)","v":111},{"$f":"Table_TypWattage[[#This Row],[1L]]*R$2","v":222},{"$f":"Table_TypWattage[[#This Row],[1L]]*S$2","v":333},{"$f":"Table_TypWattage[[#This Row],[1L]]*T$2","v":444},{"$f":"Table_TypWattage[[#This Row],[1L]]*U$2","v":666},{"$f":"Table_TypWattage[[#This Row],[1L]]*V$2","v":888}]
[null,null,null,null,null,null,null,null,null,null,null,null,null,null,"Induction Fixture",120,{"$f":"ROUND(SLOPE($Q$198:$Q$205,$P$198:$P$205)*P217+INTERCEPT($Q$198:$Q$205,$P$198:$P$205),0)","v":151},{"$f":"Table_TypWattage[[#This Row],[1L]]*R$2","v":302},{"$f":"Table_TypWattage[[#This Row],[1L]]*S$2","v":453},{"$f":"Table_TypWattage[[#This Row],[1L]]*T$2","v":604},{"$f":"Table_TypWattage[[#This Row],[1L]]*U$2","v":906},{"$f":"Table_TypWattage[[#This Row],[1L]]*V$2","v":1208}]
[null,null,null,null,null,null,null,null,null,null,null,null,null,null,"Induction Fixture",150,185,{"$f":"Table_TypWattage[[#This Row],[1L]]*R$2","v":370},{"$f":"Table_TypWattage[[#This Row],[1L]]*S$2","v":555},{"$f":"Table_TypWattage[[#This Row],[1L]]*T$2","v":740},{"$f":"Table_TypWattage[[#This Row],[1L]]*U$2","v":1110},{"$f":"Table_TypWattage[[#This Row],[1L]]*V$2","v":1480}]
[null,null,null,null,null,null,null,null,null,null,null,null,null,null,"Induction Fixture",200,242,{"$f":"Table_TypWattage[[#This Row],[1L]]*R$2","v":484},{"$f":"Table_TypWattage[[#This Row],[1L]]*S$2","v":726},{"$f":"Table_TypWattage[[#This Row],[1L]]*T$2","v":968},{"$f":"Table_TypWattage[[#This Row],[1L]]*U$2","v":1452},{"$f":"Table_TypWattage[[#This Row],[1L]]*V$2","v":1936}]
[null,null,null,null,null,null,null,null,null,null,null,null,null,null,"Induction Fixture",250,299,{"$f":"Table_TypWattage[[#This Row],[1L]]*R$2","v":598},{"$f":"Table_TypWattage[[#This Row],[1L]]*S$2","v":897},{"$f":"Table_TypWattage[[#This Row],[1L]]*T$2","v":1196},{"$f":"Table_TypWattage[[#This Row],[1L]]*U$2","v":1794},{"$f":"Table_TypWattage[[#This Row],[1L]]*V$2","v":2392}]
[null,null,null,null,null,null,null,null,null,null,null,null,null,null,"Induction Fixture",300,355,{"$f":"Table_TypWattage[[#This Row],[1L]]*R$2","v":710},{"$f":"Table_TypWattage[[#This Row],[1L]]*S$2","v":1065},{"$f":"Table_TypWattage[[#This Row],[1L]]*T$2","v":1420},{"$f":"Table_TypWattage[[#This Row],[1L]]*U$2","v":2130},{"$f":"Table_TypWattage[[#This Row],[1L]]*V$2","v":2840}]
[null,null,null,null,null,null,null,null,null,null,null,null,null,null,"Induction Fixture",400,469,{"$f":"Table_TypWattage[[#This Row],[1L]]*R$2","v":938},{"$f":"Table_TypWattage[[#This Row],[1L]]*S$2","v":1407},{"$f":"Table_TypWattage[[#This Row],[1L]]*T$2","v":1876},{"$f":"Table_TypWattage[[#This Row],[1L]]*U$2","v":2814},{"$f":"Table_TypWattage[[#This Row],[1L]]*V$2","v":3752}]
[null,null,null,null,null,null,null,null,null,null,null,null,null,null,"Low Pressure Sodium - n/a",18,35,{"$f":"Table_TypWattage[[#This Row],[1L]]*R$2","v":70},{"$f":"Table_TypWattage[[#This Row],[1L]]*S$2","v":105},{"$f":"Table_TypWattage[[#This Row],[1L]]*T$2","v":140},{"$f":"Table_TypWattage[[#This Row],[1L]]*U$2","v":210},{"$f":"Table_TypWattage[[#This Row],[1L]]*V$2","v":280},null,"<-- CHECK"]
[null,null,null,null,null,null,null,null,null,null,null,null,null,null,"Low Pressure Sodium - n/a",35,46,{"$f":"Table_TypWattage[[#This Row],[1L]]*R$2","v":92},{"$f":"Table_TypWattage[[#This Row],[1L]]*S$2","v":138},{"$f":"Table_TypWattage[[#This Row],[1L]]*T$2","v":184},{"$f":"Table_TypWattage[[#This Row],[1L]]*U$2","v":276},{"$f":"Table_TypWattage[[#This Row],[1L]]*V$2","v":368},null,"<-- CHECK"]
[null,null,null,null,null,null,null,null,null,null,null,null,null,null,"Low Pressure Sodium - n/a",50,66,{"$f":"Table_TypWattage[[#This Row],[1L]]*R$2","v":132},{"$f":"Table_TypWattage[[#This Row],[1L]]*S$2","v":198},{"$f":"Table_TypWattage[[#This Row],[1L]]*T$2","v":264},{"$f":"Table_TypWattage[[#This Row],[1L]]*U$2","v":396},{"$f":"Table_TypWattage[[#This Row],[1L]]*V$2","v":528},null,"<-- CHECK"]
[null,null,null,null,null,null,null,null,null,null,null,null,null,null,"Low Pressure Sodium - n/a",70,95,{"$f":"Table_TypWattage[[#This Row],[1L]]*R$2","v":190},{"$f":"Table_TypWattage[[#This Row],[1L]]*S$2","v":285},{"$f":"Table_TypWattage[[#This Row],[1L]]*T$2","v":380},{"$f":"Table_TypWattage[[#This Row],[1L]]*U$2","v":570},{"$f":"Table_TypWattage[[#This Row],[1L]]*V$2","v":760},null,"<-- CHECK"]
[null,null,null,null,null,null,null,null,null,null,null,null,null,null,"Low Pressure Sodium - n/a",90,{"$f":"ROUND(SLOPE($Q$198:$Q$205,$P$198:$P$205)*P227+INTERCEPT($Q$198:$Q$205,$P$198:$P$205),0)","v":117},{"$f":"Table_TypWattage[[#This Row],[1L]]*R$2","v":234},{"$f":"Table_TypWattage[[#This Row],[1L]]*S$2","v":351},{"$f":"Table_TypWattage[[#This Row],[1L]]*T$2","v":468},{"$f":"Table_TypWattage[[#This Row],[1L]]*U$2","v":702},{"$f":"Table_TypWattage[[#This Row],[1L]]*V$2","v":936},null,"<-- CHECK"]
[null,null,null,null,null,null,null,null,null,null,null,null,null,null,"Low Pressure Sodium - n/a",150,188,{"$f":"Table_TypWattage[[#This Row],[1L]]*R$2","v":376},{"$f":"Table_TypWattage[[#This Row],[1L]]*S$2","v":564},{"$f":"Table_TypWattage[[#This Row],[1L]]*T$2","v":752},{"$f":"Table_TypWattage[[#This Row],[1L]]*U$2","v":1128},{"$f":"Table_TypWattage[[#This Row],[1L]]*V$2","v":1504},null,"<-- CHECK"]
[null,null,null,null,null,null,null,null,null,null,null,null,null,null,"Low Pressure Sodium - Electronic",18,{"$f":"ROUND(SLOPE($Q$198:$Q$205,$P$198:$P$205)*P229+INTERCEPT($Q$198:$Q$205,$P$198:$P$205),0)","v":35},{"$f":"Table_TypWattage[[#This Row],[1L]]*R$2","v":70},{"$f":"Table_TypWattage[[#This Row],[1L]]*S$2","v":105},{"$f":"Table_TypWattage[[#This Row],[1L]]*T$2","v":140},{"$f":"Table_TypWattage[[#This Row],[1L]]*U$2","v":210},{"$f":"Table_TypWattage[[#This Row],[1L]]*V$2","v":280},null,"<-- NEEDS INPUT"]
[null,null,null,null,null,null,null,null,null,null,null,null,null,null,"Low Pressure Sodium - Electronic",35,46,{"$f":"Table_TypWattage[[#This Row],[1L]]*R$2","v":92},{"$f":"Table_TypWattage[[#This Row],[1L]]*S$2","v":138},{"$f":"Table_TypWattage[[#This Row],[1L]]*T$2","v":184},{"$f":"Table_TypWattage[[#This Row],[1L]]*U$2","v":276},{"$f":"Table_TypWattage[[#This Row],[1L]]*V$2","v":368},null,"<-- NEEDS INPUT"]
[null,null,null,null,null,null,null,null,null,null,null,null,null,null,"Low Pressure Sodium - Electronic",50,66,{"$f":"Table_TypWattage[[#This Row],[1L]]*R$2","v":132},{"$f":"Table_TypWattage[[#This Row],[1L]]*S$2","v":198},{"$f":"Table_TypWattage[[#This Row],[1L]]*T$2","v":264},{"$f":"Table_TypWattage[[#This Row],[1L]]*U$2","v":396},{"$f":"Table_TypWattage[[#This Row],[1L]]*V$2","v":528},null,"<-- NEEDS INPUT"]
[null,null,null,null,null,null,null,null,null,null,null,null,null,null,"Low Pressure Sodium - Electronic",70,95,{"$f":"Table_TypWattage[[#This Row],[1L]]*R$2","v":190},{"$f":"Table_TypWattage[[#This Row],[1L]]*S$2","v":285},{"$f":"Table_TypWattage[[#This Row],[1L]]*T$2","v":380},{"$f":"Table_TypWattage[[#This Row],[1L]]*U$2","v":570},{"$f":"Table_TypWattage[[#This Row],[1L]]*V$2","v":760},null,"<-- NEEDS INPUT"]
[null,null,null,null,null,null,null,null,null,null,null,null,null,null,"Low Pressure Sodium - Electronic",90,{"$f":"ROUND(SLOPE($Q$198:$Q$205,$P$198:$P$205)*P233+INTERCEPT($Q$198:$Q$205,$P$198:$P$205),0)","v":117},{"$f":"Table_TypWattage[[#This Row],[1L]]*R$2","v":234},{"$f":"Table_TypWattage[[#This Row],[1L]]*S$2","v":351},{"$f":"Table_TypWattage[[#This Row],[1L]]*T$2","v":468},{"$f":"Table_TypWattage[[#This Row],[1L]]*U$2","v":702},{"$f":"Table_TypWattage[[#This Row],[1L]]*V$2","v":936},null,"<-- NEEDS INPUT"]
[null,null,null,null,null,null,null,null,null,null,null,null,null,null,"Low Pressure Sodium - Electronic",150,188,{"$f":"Table_TypWattage[[#This Row],[1L]]*R$2","v":376},{"$f":"Table_TypWattage[[#This Row],[1L]]*S$2","v":564},{"$f":"Table_TypWattage[[#This Row],[1L]]*T$2","v":752},{"$f":"Table_TypWattage[[#This Row],[1L]]*U$2","v":1128},{"$f":"Table_TypWattage[[#This Row],[1L]]*V$2","v":1504},null,"<-- NEEDS INPUT"]
[null,null,null,null,null,null,null,null,null,null,null,null,null,null,"Low Pressure Sodium - Magnetic",18,{"$f":"ROUND(SLOPE($Q$198:$Q$205,$P$198:$P$205)*P235+INTERCEPT($Q$198:$Q$205,$P$198:$P$205),0)","v":35},{"$f":"Table_TypWattage[[#This Row],[1L]]*R$2","v":70},{"$f":"Table_TypWattage[[#This Row],[1L]]*S$2","v":105},{"$f":"Table_TypWattage[[#This Row],[1L]]*T$2","v":140},{"$f":"Table_TypWattage[[#This Row],[1L]]*U$2","v":210},{"$f":"Table_TypWattage[[#This Row],[1L]]*V$2","v":280},null,"<-- NEEDS INPUT"]
[null,null,null,null,null,null,null,null,null,null,null,null,null,null,"Low Pressure Sodium - Magnetic",35,46,{"$f":"Table_TypWattage[[#This Row],[1L]]*R$2","v":92},{"$f":"Table_TypWattage[[#This Row],[1L]]*S$2","v":138},{"$f":"Table_TypWattage[[#This Row],[1L]]*T$2","v":184},{"$f":"Table_TypWattage[[#This Row],[1L]]*U$2","v":276},{"$f":"Table_TypWattage[[#This Row],[1L]]*V$2","v":368},null,"<-- NEEDS INPUT"]
[null,null,null,null,null,null,null,null,null,null,null,null,null,null,"Low Pressure Sodium - Magnetic",50,66,{"$f":"Table_TypWattage[[#This Row],[1L]]*R$2","v":132},{"$f":"Table_TypWattage[[#This Row],[1L]]*S$2","v":198},{"$f":"Table_TypWattage[[#This Row],[1L]]*T$2","v":264},{"$f":"Table_TypWattage[[#This Row],[1L]]*U$2","v":396},{"$f":"Table_TypWattage[[#This Row],[1L]]*V$2","v":528},null,"<-- NEEDS INPUT"]
[null,null,null,null,null,null,null,null,null,null,null,null,null,null,"Low Pressure Sodium - Magnetic",70,95,{"$f":"Table_TypWattage[[#This Row],[1L]]*R$2","v":190},{"$f":"Table_TypWattage[[#This Row],[1L]]*S$2","v":285},{"$f":"Table_TypWattage[[#This Row],[1L]]*T$2","v":380},{"$f":"Table_TypWattage[[#This Row],[1L]]*U$2","v":570},{"$f":"Table_TypWattage[[#This Row],[1L]]*V$2","v":760},null,"<-- NEEDS INPUT"]
[null,null,null,null,null,null,null,null,null,null,null,null,null,null,"Low Pressure Sodium - Magnetic",90,{"$f":"ROUND(SLOPE($Q$198:$Q$205,$P$198:$P$205)*P239+INTERCEPT($Q$198:$Q$205,$P$198:$P$205),0)","v":117},{"$f":"Table_TypWattage[[#This Row],[1L]]*R$2","v":234},{"$f":"Table_TypWattage[[#This Row],[1L]]*S$2","v":351},{"$f":"Table_TypWattage[[#This Row],[1L]]*T$2","v":468},{"$f":"Table_TypWattage[[#This Row],[1L]]*U$2","v":702},{"$f":"Table_TypWattage[[#This Row],[1L]]*V$2","v":936},null,"<-- NEEDS INPUT"]
[null,null,null,null,null,null,null,null,null,null,null,null,null,null,"Low Pressure Sodium - Magnetic",150,188,{"$f":"Table_TypWattage[[#This Row],[1L]]*R$2","v":376},{"$f":"Table_TypWattage[[#This Row],[1L]]*S$2","v":564},{"$f":"Table_TypWattage[[#This Row],[1L]]*T$2","v":752},{"$f":"Table_TypWattage[[#This Row],[1L]]*U$2","v":1128},{"$f":"Table_TypWattage[[#This Row],[1L]]*V$2","v":1504},null,"<-- NEEDS INPUT"]
[null,null,null,null,null,null,null,null,null,null,null,null,null,null,"Mercury Vapor - n/a",40,50,{"$f":"Table_TypWattage[[#This Row],[1L]]*R$2","v":100},{"$f":"Table_TypWattage[[#This Row],[1L]]*S$2","v":150},{"$f":"Table_TypWattage[[#This Row],[1L]]*T$2","v":200},{"$f":"Table_TypWattage[[#This Row],[1L]]*U$2","v":300},{"$f":"Table_TypWattage[[#This Row],[1L]]*V$2","v":400}]
[null,null,null,null,null,null,null,null,null,null,null,null,null,null,"Mercury Vapor - n/a",50,74,{"$f":"Table_TypWattage[[#This Row],[1L]]*R$2","v":148},{"$f":"Table_TypWattage[[#This Row],[1L]]*S$2","v":222},{"$f":"Table_TypWattage[[#This Row],[1L]]*T$2","v":296},{"$f":"Table_TypWattage[[#This Row],[1L]]*U$2","v":444},{"$f":"Table_TypWattage[[#This Row],[1L]]*V$2","v":592}]
[null,null,null,null,null,null,null,null,null,null,null,null,null,null,"Mercury Vapor - n/a",75,93,{"$f":"Table_TypWattage[[#This Row],[1L]]*R$2","v":186},{"$f":"Table_TypWattage[[#This Row],[1L]]*S$2","v":279},{"$f":"Table_TypWattage[[#This Row],[1L]]*T$2","v":372},{"$f":"Table_TypWattage[[#This Row],[1L]]*U$2","v":558},{"$f":"Table_TypWattage[[#This Row],[1L]]*V$2","v":744}]
[null,null,null,null,null,null,null,null,null,null,null,null,null,null,"Mercury Vapor - n/a",100,125,{"$f":"Table_TypWattage[[#This Row],[1L]]*R$2","v":250},{"$f":"Table_TypWattage[[#This Row],[1L]]*S$2","v":375},{"$f":"Table_TypWattage[[#This Row],[1L]]*T$2","v":500},{"$f":"Table_TypWattage[[#This Row],[1L]]*U$2","v":750},{"$f":"Table_TypWattage[[#This Row],[1L]]*V$2","v":1000}]
[null,null,null,null,null,null,null,null,null,null,null,null,null,null,"Mercury Vapor - n/a",175,205,{"$f":"Table_TypWattage[[#This Row],[1L]]*R$2","v":410},{"$f":"Table_TypWattage[[#This Row],[1L]]*S$2","v":615},{"$f":"Table_TypWattage[[#This Row],[1L]]*T$2","v":820},{"$f":"Table_TypWattage[[#This Row],[1L]]*U$2","v":1230},{"$f":"Table_TypWattage[[#This Row],[1L]]*V$2","v":1640}]
[null,null,null,null,null,null,null,null,null,null,null,null,null,null,"Mercury Vapor - n/a",250,290,{"$f":"Table_TypWattage[[#This Row],[1L]]*R$2","v":580},{"$f":"Table_TypWattage[[#This Row],[1L]]*S$2","v":870},{"$f":"Table_TypWattage[[#This Row],[1L]]*T$2","v":1160},{"$f":"Table_TypWattage[[#This Row],[1L]]*U$2","v":1740},{"$f":"Table_TypWattage[[#This Row],[1L]]*V$2","v":2320}]
[null,null,null,null,null,null,null,null,null,null,null,null,null,null,"Mercury Vapor - n/a",400,455,{"$f":"Table_TypWattage[[#This Row],[1L]]*R$2","v":910},{"$f":"Table_TypWattage[[#This Row],[1L]]*S$2","v":1365},{"$f":"Table_TypWattage[[#This Row],[1L]]*T$2","v":1820},{"$f":"Table_TypWattage[[#This Row],[1L]]*U$2","v":2730},{"$f":"Table_TypWattage[[#This Row],[1L]]*V$2","v":3640}]
[null,null,null,null,null,null,null,null,null,null,null,null,null,null,"Mercury Vapor - n/a",700,780,{"$f":"Table_TypWattage[[#This Row],[1L]]*R$2","v":1560},{"$f":"Table_TypWattage[[#This Row],[1L]]*S$2","v":2340},{"$f":"Table_TypWattage[[#This Row],[1L]]*T$2","v":3120},{"$f":"Table_TypWattage[[#This Row],[1L]]*U$2","v":4680},{"$f":"Table_TypWattage[[#This Row],[1L]]*V$2","v":6240}]
[null,null,null,null,null,null,null,null,null,null,null,null,null,null,"Mercury Vapor - n/a",1000,1075,{"$f":"Table_TypWattage[[#This Row],[1L]]*R$2","v":2150},{"$f":"Table_TypWattage[[#This Row],[1L]]*S$2","v":3225},{"$f":"Table_TypWattage[[#This Row],[1L]]*T$2","v":4300},{"$f":"Table_TypWattage[[#This Row],[1L]]*U$2","v":6450},{"$f":"Table_TypWattage[[#This Row],[1L]]*V$2","v":8600}]
[null,null,null,null,null,null,null,null,null,null,null,null,null,null,"Metal Halide - n/a",50,72,{"$f":"Table_TypWattage[[#This Row],[1L]]*R$2","v":144},{"$f":"Table_TypWattage[[#This Row],[1L]]*S$2","v":216},{"$f":"Table_TypWattage[[#This Row],[1L]]*T$2","v":288},{"$f":"Table_TypWattage[[#This Row],[1L]]*U$2","v":432},{"$f":"Table_TypWattage[[#This Row],[1L]]*V$2","v":576}]
[null,null,null,null,null,null,null,null,null,null,null,null,null,null,"Metal Halide - n/a",70,95,{"$f":"Table_TypWattage[[#This Row],[1L]]*R$2","v":190},{"$f":"Table_TypWattage[[#This Row],[1L]]*S$2","v":285},{"$f":"Table_TypWattage[[#This Row],[1L]]*T$2","v":380},{"$f":"Table_TypWattage[[#This Row],[1L]]*U$2","v":570},{"$f":"Table_TypWattage[[#This Row],[1L]]*V$2","v":760}]
[null,null,null,null,null,null,null,null,null,null,null,null,null,null,"Metal Halide - n/a",100,128,{"$f":"Table_TypWattage[[#This Row],[1L]]*R$2","v":256},{"$f":"Table_TypWattage[[#This Row],[1L]]*S$2","v":384},{"$f":"Table_TypWattage[[#This Row],[1L]]*T$2","v":512},{"$f":"Table_TypWattage[[#This Row],[1L]]*U$2","v":768},{"$f":"Table_TypWattage[[#This Row],[1L]]*V$2","v":1024}]
[null,null,null,null,null,null,null,null,null,null,null,null,null,null,"Metal Halide - n/a",150,190,{"$f":"Table_TypWattage[[#This Row],[1L]]*R$2","v":380},{"$f":"Table_TypWattage[[#This Row],[1L]]*S$2","v":570},{"$f":"Table_TypWattage[[#This Row],[1L]]*T$2","v":760},{"$f":"Table_TypWattage[[#This Row],[1L]]*U$2","v":1140},{"$f":"Table_TypWattage[[#This Row],[1L]]*V$2","v":1520}]
[null,null,null,null,null,null,null,null,null,null,null,null,null,null,"Metal Halide - n/a",175,215,{"$f":"Table_TypWattage[[#This Row],[1L]]*R$2","v":430},{"$f":"Table_TypWattage[[#This Row],[1L]]*S$2","v":645},{"$f":"Table_TypWattage[[#This Row],[1L]]*T$2","v":860},{"$f":"Table_TypWattage[[#This Row],[1L]]*U$2","v":1290},{"$f":"Table_TypWattage[[#This Row],[1L]]*V$2","v":1720}]
[null,null,null,null,null,null,null,null,null,null,null,null,null,null,"Metal Halide - n/a",250,295,{"$f":"Table_TypWattage[[#This Row],[1L]]*R$2","v":590},{"$f":"Table_TypWattage[[#This Row],[1L]]*S$2","v":885},{"$f":"Table_TypWattage[[#This Row],[1L]]*T$2","v":1180},{"$f":"Table_TypWattage[[#This Row],[1L]]*U$2","v":1770},{"$f":"Table_TypWattage[[#This Row],[1L]]*V$2","v":2360}]
[null,null,null,null,null,null,null,null,null,null,null,null,null,null,"Metal Halide - n/a",300,342,{"$f":"Table_TypWattage[[#This Row],[1L]]*R$2","v":684},{"$f":"Table_TypWattage[[#This Row],[1L]]*S$2","v":1026},{"$f":"Table_TypWattage[[#This Row],[1L]]*T$2","v":1368},{"$f":"Table_TypWattage[[#This Row],[1L]]*U$2","v":2052},{"$f":"Table_TypWattage[[#This Row],[1L]]*V$2","v":2736}]
[null,null,null,null,null,null,null,null,null,null,null,null,null,null,"Metal Halide - n/a",325,375,{"$f":"Table_TypWattage[[#This Row],[1L]]*R$2","v":750},{"$f":"Table_TypWattage[[#This Row],[1L]]*S$2","v":1125},{"$f":"Table_TypWattage[[#This Row],[1L]]*T$2","v":1500},{"$f":"Table_TypWattage[[#This Row],[1L]]*U$2","v":2250},{"$f":"Table_TypWattage[[#This Row],[1L]]*V$2","v":3000}]
[null,null,null,null,null,null,null,null,null,null,null,null,null,null,"Metal Halide - n/a",360,430,{"$f":"Table_TypWattage[[#This Row],[1L]]*R$2","v":860},{"$f":"Table_TypWattage[[#This Row],[1L]]*S$2","v":1290},{"$f":"Table_TypWattage[[#This Row],[1L]]*T$2","v":1720},{"$f":"Table_TypWattage[[#This Row],[1L]]*U$2","v":2580},{"$f":"Table_TypWattage[[#This Row],[1L]]*V$2","v":3440}]
[null,null,null,null,null,null,null,null,null,null,null,null,null,null,"Metal Halide - n/a",400,458,{"$f":"Table_TypWattage[[#This Row],[1L]]*R$2","v":916},{"$f":"Table_TypWattage[[#This Row],[1L]]*S$2","v":1374},{"$f":"Table_TypWattage[[#This Row],[1L]]*T$2","v":1832},{"$f":"Table_TypWattage[[#This Row],[1L]]*U$2","v":2748},{"$f":"Table_TypWattage[[#This Row],[1L]]*V$2","v":3664}]
[null,null,null,null,null,null,null,null,null,null,null,null,null,null,"Metal Halide - n/a",750,850,{"$f":"Table_TypWattage[[#This Row],[1L]]*R$2","v":1700},{"$f":"Table_TypWattage[[#This Row],[1L]]*S$2","v":2550},{"$f":"Table_TypWattage[[#This Row],[1L]]*T$2","v":3400},{"$f":"Table_TypWattage[[#This Row],[1L]]*U$2","v":5100},{"$f":"Table_TypWattage[[#This Row],[1L]]*V$2","v":6800}]
[null,null,null,null,null,null,null,null,null,null,null,null,null,null,"Metal Halide - n/a",1000,1080,{"$f":"Table_TypWattage[[#This Row],[1L]]*R$2","v":2160},{"$f":"Table_TypWattage[[#This Row],[1L]]*S$2","v":3240},{"$f":"Table_TypWattage[[#This Row],[1L]]*T$2","v":4320},{"$f":"Table_TypWattage[[#This Row],[1L]]*U$2","v":6480},{"$f":"Table_TypWattage[[#This Row],[1L]]*V$2","v":8640}]
[null,null,null,null,null,null,null,null,null,null,null,null,null,null,"Metal Halide - n/a",1500,1610,{"$f":"Table_TypWattage[[#This Row],[1L]]*R$2","v":3220},{"$f":"Table_TypWattage[[#This Row],[1L]]*S$2","v":4830},{"$f":"Table_TypWattage[[#This Row],[1L]]*T$2","v":6440},{"$f":"Table_TypWattage[[#This Row],[1L]]*U$2","v":9660},{"$f":"Table_TypWattage[[#This Row],[1L]]*V$2","v":12880}]
[null,null,null,null,null,null,null,null,null,null,null,null,null,null,"Metal Halide (Ceramic) - n/a",100,128,{"$f":"Table_TypWattage[[#This Row],[1L]]*R$2","v":256},{"$f":"Table_TypWattage[[#This Row],[1L]]*S$2","v":384},{"$f":"Table_TypWattage[[#This Row],[1L]]*T$2","v":512},{"$f":"Table_TypWattage[[#This Row],[1L]]*U$2","v":768},{"$f":"Table_TypWattage[[#This Row],[1L]]*V$2","v":1024}]
[null,null,null,null,null,null,null,null,null,null,null,null,null,null,"Metal Halide (Ceramic) - n/a",150,190,{"$f":"Table_TypWattage[[#This Row],[1L]]*R$2","v":380},{"$f":"Table_TypWattage[[#This Row],[1L]]*S$2","v":570},{"$f":"Table_TypWattage[[#This Row],[1L]]*T$2","v":760},{"$f":"Table_TypWattage[[#This Row],[1L]]*U$2","v":1140},{"$f":"Table_TypWattage[[#This Row],[1L]]*V$2","v":1520}]
[null,null,null,null,null,null,null,null,null,null,null,null,null,null,"Metal Halide (Ceramic) - n/a",175,215,{"$f":"Table_TypWattage[[#This Row],[1L]]*R$2","v":430},{"$f":"Table_TypWattage[[#This Row],[1L]]*S$2","v":645},{"$f":"Table_TypWattage[[#This Row],[1L]]*T$2","v":860},{"$f":"Table_TypWattage[[#This Row],[1L]]*U$2","v":1290},{"$f":"Table_TypWattage[[#This Row],[1L]]*V$2","v":1720}]
[null,null,null,null,null,null,null,null,null,null,null,null,null,null,"Metal Halide (Ceramic) - n/a",250,295,{"$f":"Table_TypWattage[[#This Row],[1L]]*R$2","v":590},{"$f":"Table_TypWattage[[#This Row],[1L]]*S$2","v":885},{"$f":"Table_TypWattage[[#This Row],[1L]]*T$2","v":1180},{"$f":"Table_TypWattage[[#This Row],[1L]]*U$2","v":1770},{"$f":"Table_TypWattage[[#This Row],[1L]]*V$2","v":2360}]
[null,null,null,null,null,null,null,null,null,null,null,null,null,null,"Metal Halide (Ceramic) - n/a",400,458,{"$f":"Table_TypWattage[[#This Row],[1L]]*R$2","v":916},{"$f":"Table_TypWattage[[#This Row],[1L]]*S$2","v":1374},{"$f":"Table_TypWattage[[#This Row],[1L]]*T$2","v":1832},{"$f":"Table_TypWattage[[#This Row],[1L]]*U$2","v":2748},{"$f":"Table_TypWattage[[#This Row],[1L]]*V$2","v":3664}]
[null,null,null,null,null,null,null,null,null,null,null,null,null,null,"Metal Halide (Ceramic) - n/a",1000,1080,{"$f":"Table_TypWattage[[#This Row],[1L]]*R$2","v":2160},{"$f":"Table_TypWattage[[#This Row],[1L]]*S$2","v":3240},{"$f":"Table_TypWattage[[#This Row],[1L]]*T$2","v":4320},{"$f":"Table_TypWattage[[#This Row],[1L]]*U$2","v":6480},{"$f":"Table_TypWattage[[#This Row],[1L]]*V$2","v":8640}]
[null,null,null,null,null,null,null,null,null,null,null,null,null,null,"Metal Halide (Ceramic) - n/a",1500,1610,{"$f":"Table_TypWattage[[#This Row],[1L]]*R$2","v":3220},{"$f":"Table_TypWattage[[#This Row],[1L]]*S$2","v":4830},{"$f":"Table_TypWattage[[#This Row],[1L]]*T$2","v":6440},{"$f":"Table_TypWattage[[#This Row],[1L]]*U$2","v":9660},{"$f":"Table_TypWattage[[#This Row],[1L]]*V$2","v":12880}]
[null,null,null,null,null,null,null,null,null,null,null,null,null,null,"Metal Halide (Pulse Start) - n/a",20,{"$f":"ROUND(SLOPE($Q$322:$Q$334,$P$322:$P$334)*P270+INTERCEPT($Q$322:$Q$334,$P$322:$P$334),0)","v":51},{"$f":"Table_TypWattage[[#This Row],[1L]]*R$2","v":102},{"$f":"Table_TypWattage[[#This Row],[1L]]*S$2","v":153},{"$f":"Table_TypWattage[[#This Row],[1L]]*T$2","v":204},{"$f":"Table_TypWattage[[#This Row],[1L]]*U$2","v":306},{"$f":"Table_TypWattage[[#This Row],[1L]]*V$2","v":408}]
[null,null,null,null,null,null,null,null,null,null,null,null,null,null,"Metal Halide (Pulse Start) - n/a",35,67,{"$f":"Table_TypWattage[[#This Row],[1L]]*R$2","v":134},{"$f":"Table_TypWattage[[#This Row],[1L]]*S$2","v":201},{"$f":"Table_TypWattage[[#This Row],[1L]]*T$2","v":268},{"$f":"Table_TypWattage[[#This Row],[1L]]*U$2","v":402},{"$f":"Table_TypWattage[[#This Row],[1L]]*V$2","v":536}]
[null,null,null,null,null,null,null,null,null,null,null,null,null,null,"Metal Halide (Pulse Start) - n/a",39,71,{"$f":"Table_TypWattage[[#This Row],[1L]]*R$2","v":142},{"$f":"Table_TypWattage[[#This Row],[1L]]*S$2","v":213},{"$f":"Table_TypWattage[[#This Row],[1L]]*T$2","v":284},{"$f":"Table_TypWattage[[#This Row],[1L]]*U$2","v":426},{"$f":"Table_TypWattage[[#This Row],[1L]]*V$2","v":568}]
[null,null,null,null,null,null,null,null,null,null,null,null,null,null,"Metal Halide (Pulse Start) - n/a",40,72,{"$f":"Table_TypWattage[[#This Row],[1L]]*R$2","v":144},{"$f":"Table_TypWattage[[#This Row],[1L]]*S$2","v":216},{"$f":"Table_TypWattage[[#This Row],[1L]]*T$2","v":288},{"$f":"Table_TypWattage[[#This Row],[1L]]*U$2","v":432},{"$f":"Table_TypWattage[[#This Row],[1L]]*V$2","v":576}]
[null,null,null,null,null,null,null,null,null,null,null,null,null,null,"Metal Halide (Pulse Start) - n/a",70,104,{"$f":"Table_TypWattage[[#This Row],[1L]]*R$2","v":208},{"$f":"Table_TypWattage[[#This Row],[1L]]*S$2","v":312},{"$f":"Table_TypWattage[[#This Row],[1L]]*T$2","v":416},{"$f":"Table_TypWattage[[#This Row],[1L]]*U$2","v":624},{"$f":"Table_TypWattage[[#This Row],[1L]]*V$2","v":832}]
[null,null,null,null,null,null,null,null,null,null,null,null,null,null,"Metal Halide (Pulse Start) - n/a",100,128,{"$f":"Table_TypWattage[[#This Row],[1L]]*R$2","v":256},{"$f":"Table_TypWattage[[#This Row],[1L]]*S$2","v":384},{"$f":"Table_TypWattage[[#This Row],[1L]]*T$2","v":512},{"$f":"Table_TypWattage[[#This Row],[1L]]*U$2","v":768},{"$f":"Table_TypWattage[[#This Row],[1L]]*V$2","v":1024}]
[null,null,null,null,null,null,null,null,null,null,null,null,null,null,"Metal Halide (Pulse Start) - n/a",150,190,{"$f":"Table_TypWattage[[#This Row],[1L]]*R$2","v":380},{"$f":"Table_TypWattage[[#This Row],[1L]]*S$2","v":570},{"$f":"Table_TypWattage[[#This Row],[1L]]*T$2","v":760},{"$f":"Table_TypWattage[[#This Row],[1L]]*U$2","v":1140},{"$f":"Table_TypWattage[[#This Row],[1L]]*V$2","v":1520}]
[null,null,null,null,null,null,null,null,null,null,null,null,null,null,"Mercury Vapor - Electronic",40,50,{"$f":"Table_TypWattage[[#This Row],[1L]]*R$2","v":100},{"$f":"Table_TypWattage[[#This Row],[1L]]*S$2","v":150},{"$f":"Table_TypWattage[[#This Row],[1L]]*T$2","v":200},{"$f":"Table_TypWattage[[#This Row],[1L]]*U$2","v":300},{"$f":"Table_TypWattage[[#This Row],[1L]]*V$2","v":400},null,"<-- NEEDS INPUT"]
[null,null,null,null,null,null,null,null,null,null,null,null,null,null,"Mercury Vapor - Electronic",50,74,{"$f":"Table_TypWattage[[#This Row],[1L]]*R$2","v":148},{"$f":"Table_TypWattage[[#This Row],[1L]]*S$2","v":222},{"$f":"Table_TypWattage[[#This Row],[1L]]*T$2","v":296},{"$f":"Table_TypWattage[[#This Row],[1L]]*U$2","v":444},{"$f":"Table_TypWattage[[#This Row],[1L]]*V$2","v":592},null,"<-- NEEDS INPUT"]
[null,null,null,null,null,null,null,null,null,null,null,null,null,null,"Mercury Vapor - Electronic",75,93,{"$f":"Table_TypWattage[[#This Row],[1L]]*R$2","v":186},{"$f":"Table_TypWattage[[#This Row],[1L]]*S$2","v":279},{"$f":"Table_TypWattage[[#This Row],[1L]]*T$2","v":372},{"$f":"Table_TypWattage[[#This Row],[1L]]*U$2","v":558},{"$f":"Table_TypWattage[[#This Row],[1L]]*V$2","v":744},null,"<-- NEEDS INPUT"]
[null,null,null,null,null,null,null,null,null,null,null,null,null,null,"Mercury Vapor - Electronic",100,125,{"$f":"Table_TypWattage[[#This Row],[1L]]*R$2","v":250},{"$f":"Table_TypWattage[[#This Row],[1L]]*S$2","v":375},{"$f":"Table_TypWattage[[#This Row],[1L]]*T$2","v":500},{"$f":"Table_TypWattage[[#This Row],[1L]]*U$2","v":750},{"$f":"Table_TypWattage[[#This Row],[1L]]*V$2","v":1000},null,"<-- NEEDS INPUT"]
[null,null,null,null,null,null,null,null,null,null,null,null,null,null,"Mercury Vapor - Electronic",175,205,{"$f":"Table_TypWattage[[#This Row],[1L]]*R$2","v":410},{"$f":"Table_TypWattage[[#This Row],[1L]]*S$2","v":615},{"$f":"Table_TypWattage[[#This Row],[1L]]*T$2","v":820},{"$f":"Table_TypWattage[[#This Row],[1L]]*U$2","v":1230},{"$f":"Table_TypWattage[[#This Row],[1L]]*V$2","v":1640},null,"<-- NEEDS INPUT"]
[null,null,null,null,null,null,null,null,null,null,null,null,null,null,"Mercury Vapor - Electronic",250,290,{"$f":"Table_TypWattage[[#This Row],[1L]]*R$2","v":580},{"$f":"Table_TypWattage[[#This Row],[1L]]*S$2","v":870},{"$f":"Table_TypWattage[[#This Row],[1L]]*T$2","v":1160},{"$f":"Table_TypWattage[[#This Row],[1L]]*U$2","v":1740},{"$f":"Table_TypWattage[[#This Row],[1L]]*V$2","v":2320},null,"<-- NEEDS INPUT"]
[null,null,null,null,null,null,null,null,null,null,null,null,null,null,"Mercury Vapor - Electronic",400,455,{"$f":"Table_TypWattage[[#This Row],[1L]]*R$2","v":910},{"$f":"Table_TypWattage[[#This Row],[1L]]*S$2","v":1365},{"$f":"Table_TypWattage[[#This Row],[1L]]*T$2","v":1820},{"$f":"Table_TypWattage[[#This Row],[1L]]*U$2","v":2730},{"$f":"Table_TypWattage[[#This Row],[1L]]*V$2","v":3640},null,"<-- NEEDS INPUT"]
[null,null,null,null,null,null,null,null,null,null,null,null,null,null,"Mercury Vapor - Electronic",700,780,{"$f":"Table_TypWattage[[#This Row],[1L]]*R$2","v":1560},{"$f":"Table_TypWattage[[#This Row],[1L]]*S$2","v":2340},{"$f":"Table_TypWattage[[#This Row],[1L]]*T$2","v":3120},{"$f":"Table_TypWattage[[#This Row],[1L]]*U$2","v":4680},{"$f":"Table_TypWattage[[#This Row],[1L]]*V$2","v":6240},null,"<-- NEEDS INPUT"]
[null,null,null,null,null,null,null,null,null,null,null,null,null,null,"Mercury Vapor - Electronic",1000,1075,{"$f":"Table_TypWattage[[#This Row],[1L]]*R$2","v":2150},{"$f":"Table_TypWattage[[#This Row],[1L]]*S$2","v":3225},{"$f":"Table_TypWattage[[#This Row],[1L]]*T$2","v":4300},{"$f":"Table_TypWattage[[#This Row],[1L]]*U$2","v":6450},{"$f":"Table_TypWattage[[#This Row],[1L]]*V$2","v":8600},null,"<-- NEEDS INPUT"]
[null,null,null,null,null,null,null,null,null,null,null,null,null,null,"Metal Halide - Electronic",50,72,{"$f":"Table_TypWattage[[#This Row],[1L]]*R$2","v":144},{"$f":"Table_TypWattage[[#This Row],[1L]]*S$2","v":216},{"$f":"Table_TypWattage[[#This Row],[1L]]*T$2","v":288},{"$f":"Table_TypWattage[[#This Row],[1L]]*U$2","v":432},{"$f":"Table_TypWattage[[#This Row],[1L]]*V$2","v":576},null,"<-- NEEDS INPUT"]
[null,null,null,null,null,null,null,null,null,null,null,null,null,null,"Metal Halide - Electronic",70,95,{"$f":"Table_TypWattage[[#This Row],[1L]]*R$2","v":190},{"$f":"Table_TypWattage[[#This Row],[1L]]*S$2","v":285},{"$f":"Table_TypWattage[[#This Row],[1L]]*T$2","v":380},{"$f":"Table_TypWattage[[#This Row],[1L]]*U$2","v":570},{"$f":"Table_TypWattage[[#This Row],[1L]]*V$2","v":760},null,"<-- NEEDS INPUT"]
[null,null,null,null,null,null,null,null,null,null,null,null,null,null,"Metal Halide - Electronic",100,128,{"$f":"Table_TypWattage[[#This Row],[1L]]*R$2","v":256},{"$f":"Table_TypWattage[[#This Row],[1L]]*S$2","v":384},{"$f":"Table_TypWattage[[#This Row],[1L]]*T$2","v":512},{"$f":"Table_TypWattage[[#This Row],[1L]]*U$2","v":768},{"$f":"Table_TypWattage[[#This Row],[1L]]*V$2","v":1024},null,"<-- NEEDS INPUT"]
[null,null,null,null,null,null,null,null,null,null,null,null,null,null,"Metal Halide - Electronic",150,190,{"$f":"Table_TypWattage[[#This Row],[1L]]*R$2","v":380},{"$f":"Table_TypWattage[[#This Row],[1L]]*S$2","v":570},{"$f":"Table_TypWattage[[#This Row],[1L]]*T$2","v":760},{"$f":"Table_TypWattage[[#This Row],[1L]]*U$2","v":1140},{"$f":"Table_TypWattage[[#This Row],[1L]]*V$2","v":1520},null,"<-- NEEDS INPUT"]
[null,null,null,null,null,null,null,null,null,null,null,null,null,null,"Metal Halide - Electronic",175,215,{"$f":"Table_TypWattage[[#This Row],[1L]]*R$2","v":430},{"$f":"Table_TypWattage[[#This Row],[1L]]*S$2","v":645},{"$f":"Table_TypWattage[[#This Row],[1L]]*T$2","v":860},{"$f":"Table_TypWattage[[#This Row],[1L]]*U$2","v":1290},{"$f":"Table_TypWattage[[#This Row],[1L]]*V$2","v":1720},null,"<-- NEEDS INPUT"]
[null,null,null,null,null,null,null,null,null,null,null,null,null,null,"Metal Halide - Electronic",250,295,{"$f":"Table_TypWattage[[#This Row],[1L]]*R$2","v":590},{"$f":"Table_TypWattage[[#This Row],[1L]]*S$2","v":885},{"$f":"Table_TypWattage[[#This Row],[1L]]*T$2","v":1180},{"$f":"Table_TypWattage[[#This Row],[1L]]*U$2","v":1770},{"$f":"Table_TypWattage[[#This Row],[1L]]*V$2","v":2360},null,"<-- NEEDS INPUT"]
[null,null,null,null,null,null,null,null,null,null,null,null,null,null,"Metal Halide - Electronic",300,342,{"$f":"Table_TypWattage[[#This Row],[1L]]*R$2","v":684},{"$f":"Table_TypWattage[[#This Row],[1L]]*S$2","v":1026},{"$f":"Table_TypWattage[[#This Row],[1L]]*T$2","v":1368},{"$f":"Table_TypWattage[[#This Row],[1L]]*U$2","v":2052},{"$f":"Table_TypWattage[[#This Row],[1L]]*V$2","v":2736},null,"<-- NEEDS INPUT"]
[null,null,null,null,null,null,null,null,null,null,null,null,null,null,"Metal Halide - Electronic",325,375,{"$f":"Table_TypWattage[[#This Row],[1L]]*R$2","v":750},{"$f":"Table_TypWattage[[#This Row],[1L]]*S$2","v":1125},{"$f":"Table_TypWattage[[#This Row],[1L]]*T$2","v":1500},{"$f":"Table_TypWattage[[#This Row],[1L]]*U$2","v":2250},{"$f":"Table_TypWattage[[#This Row],[1L]]*V$2","v":3000},null,"<-- NEEDS INPUT"]
[null,null,null,null,null,null,null,null,null,null,null,null,null,null,"Metal Halide - Electronic",360,430,{"$f":"Table_TypWattage[[#This Row],[1L]]*R$2","v":860},{"$f":"Table_TypWattage[[#This Row],[1L]]*S$2","v":1290},{"$f":"Table_TypWattage[[#This Row],[1L]]*T$2","v":1720},{"$f":"Table_TypWattage[[#This Row],[1L]]*U$2","v":2580},{"$f":"Table_TypWattage[[#This Row],[1L]]*V$2","v":3440},null,"<-- NEEDS INPUT"]
[null,null,null,null,null,null,null,null,null,null,null,null,null,null,"Metal Halide - Electronic",400,458,{"$f":"Table_TypWattage[[#This Row],[1L]]*R$2","v":916},{"$f":"Table_TypWattage[[#This Row],[1L]]*S$2","v":1374},{"$f":"Table_TypWattage[[#This Row],[1L]]*T$2","v":1832},{"$f":"Table_TypWattage[[#This Row],[1L]]*U$2","v":2748},{"$f":"Table_TypWattage[[#This Row],[1L]]*V$2","v":3664},null,"<-- NEEDS INPUT"]
[null,null,null,null,null,null,null,null,null,null,null,null,null,null,"Metal Halide - Electronic",750,850,{"$f":"Table_TypWattage[[#This Row],[1L]]*R$2","v":1700},{"$f":"Table_TypWattage[[#This Row],[1L]]*S$2","v":2550},{"$f":"Table_TypWattage[[#This Row],[1L]]*T$2","v":3400},{"$f":"Table_TypWattage[[#This Row],[1L]]*U$2","v":5100},{"$f":"Table_TypWattage[[#This Row],[1L]]*V$2","v":6800},null,"<-- NEEDS INPUT"]
[null,null,null,null,null,null,null,null,null,null,null,null,null,null,"Metal Halide - Electronic",1000,1080,{"$f":"Table_TypWattage[[#This Row],[1L]]*R$2","v":2160},{"$f":"Table_TypWattage[[#This Row],[1L]]*S$2","v":3240},{"$f":"Table_TypWattage[[#This Row],[1L]]*T$2","v":4320},{"$f":"Table_TypWattage[[#This Row],[1L]]*U$2","v":6480},{"$f":"Table_TypWattage[[#This Row],[1L]]*V$2","v":8640},null,"<-- NEEDS INPUT"]
[null,null,null,null,null,null,null,null,null,null,null,null,null,null,"Metal Halide - Electronic",1500,1610,{"$f":"Table_TypWattage[[#This Row],[1L]]*R$2","v":3220},{"$f":"Table_TypWattage[[#This Row],[1L]]*S$2","v":4830},{"$f":"Table_TypWattage[[#This Row],[1L]]*T$2","v":6440},{"$f":"Table_TypWattage[[#This Row],[1L]]*U$2","v":9660},{"$f":"Table_TypWattage[[#This Row],[1L]]*V$2","v":12880},null,"<-- NEEDS INPUT"]
[null,null,null,null,null,null,null,null,null,null,null,null,null,null,"Metal Halide (Ceramic) - Electronic",100,128,{"$f":"Table_TypWattage[[#This Row],[1L]]*R$2","v":256},{"$f":"Table_TypWattage[[#This Row],[1L]]*S$2","v":384},{"$f":"Table_TypWattage[[#This Row],[1L]]*T$2","v":512},{"$f":"Table_TypWattage[[#This Row],[1L]]*U$2","v":768},{"$f":"Table_TypWattage[[#This Row],[1L]]*V$2","v":1024},null,"<-- NEEDS INPUT"]
[null,null,null,null,null,null,null,null,null,null,null,null,null,null,"Metal Halide (Ceramic) - Electronic",150,190,{"$f":"Table_TypWattage[[#This Row],[1L]]*R$2","v":380},{"$f":"Table_TypWattage[[#This Row],[1L]]*S$2","v":570},{"$f":"Table_TypWattage[[#This Row],[1L]]*T$2","v":760},{"$f":"Table_TypWattage[[#This Row],[1L]]*U$2","v":1140},{"$f":"Table_TypWattage[[#This Row],[1L]]*V$2","v":1520},null,"<-- NEEDS INPUT"]
[null,null,null,null,null,null,null,null,null,null,null,null,null,null,"Metal Halide (Ceramic) - Electronic",175,215,{"$f":"Table_TypWattage[[#This Row],[1L]]*R$2","v":430},{"$f":"Table_TypWattage[[#This Row],[1L]]*S$2","v":645},{"$f":"Table_TypWattage[[#This Row],[1L]]*T$2","v":860},{"$f":"Table_TypWattage[[#This Row],[1L]]*U$2","v":1290},{"$f":"Table_TypWattage[[#This Row],[1L]]*V$2","v":1720},null,"<-- NEEDS INPUT"]
[null,null,null,null,null,null,null,null,null,null,null,null,null,null,"Metal Halide (Ceramic) - Electronic",250,295,{"$f":"Table_TypWattage[[#This Row],[1L]]*R$2","v":590},{"$f":"Table_TypWattage[[#This Row],[1L]]*S$2","v":885},{"$f":"Table_TypWattage[[#This Row],[1L]]*T$2","v":1180},{"$f":"Table_TypWattage[[#This Row],[1L]]*U$2","v":1770},{"$f":"Table_TypWattage[[#This Row],[1L]]*V$2","v":2360},null,"<-- NEEDS INPUT"]
[null,null,null,null,null,null,null,null,null,null,null,null,null,null,"Metal Halide (Ceramic) - Electronic",400,458,{"$f":"Table_TypWattage[[#This Row],[1L]]*R$2","v":916},{"$f":"Table_TypWattage[[#This Row],[1L]]*S$2","v":1374},{"$f":"Table_TypWattage[[#This Row],[1L]]*T$2","v":1832},{"$f":"Table_TypWattage[[#This Row],[1L]]*U$2","v":2748},{"$f":"Table_TypWattage[[#This Row],[1L]]*V$2","v":3664},null,"<-- NEEDS INPUT"]
[null,null,null,null,null,null,null,null,null,null,null,null,null,null,"Metal Halide (Ceramic) - Electronic",1000,1080,{"$f":"Table_TypWattage[[#This Row],[1L]]*R$2","v":2160},{"$f":"Table_TypWattage[[#This Row],[1L]]*S$2","v":3240},{"$f":"Table_TypWattage[[#This Row],[1L]]*T$2","v":4320},{"$f":"Table_TypWattage[[#This Row],[1L]]*U$2","v":6480},{"$f":"Table_TypWattage[[#This Row],[1L]]*V$2","v":8640},null,"<-- NEEDS INPUT"]
[null,null,null,null,null,null,null,null,null,null,null,null,null,null,"Metal Halide (Ceramic) - Electronic",1500,1610,{"$f":"Table_TypWattage[[#This Row],[1L]]*R$2","v":3220},{"$f":"Table_TypWattage[[#This Row],[1L]]*S$2","v":4830},{"$f":"Table_TypWattage[[#This Row],[1L]]*T$2","v":6440},{"$f":"Table_TypWattage[[#This Row],[1L]]*U$2","v":9660},{"$f":"Table_TypWattage[[#This Row],[1L]]*V$2","v":12880},null,"<-- NEEDS INPUT"]
[null,null,null,null,null,null,null,null,null,null,null,null,null,null,"Metal Halide (Pulse Start) - Electronic",20,{"$f":"ROUND(SLOPE($Q$322:$Q$334,$P$322:$P$334)*P306+INTERCEPT($Q$322:$Q$334,$P$322:$P$334),0)","v":51},{"$f":"Table_TypWattage[[#This Row],[1L]]*R$2","v":102},{"$f":"Table_TypWattage[[#This Row],[1L]]*S$2","v":153},{"$f":"Table_TypWattage[[#This Row],[1L]]*T$2","v":204},{"$f":"Table_TypWattage[[#This Row],[1L]]*U$2","v":306},{"$f":"Table_TypWattage[[#This Row],[1L]]*V$2","v":408},null,"<-- NEEDS INPUT"]
[null,null,null,null,null,null,null,null,null,null,null,null,null,null,"Metal Halide (Pulse Start) - Electronic",35,67,{"$f":"Table_TypWattage[[#This Row],[1L]]*R$2","v":134},{"$f":"Table_TypWattage[[#This Row],[1L]]*S$2","v":201},{"$f":"Table_TypWattage[[#This Row],[1L]]*T$2","v":268},{"$f":"Table_TypWattage[[#This Row],[1L]]*U$2","v":402},{"$f":"Table_TypWattage[[#This Row],[1L]]*V$2","v":536},null,"<-- NEEDS INPUT"]
[null,null,null,null,null,null,null,null,null,null,null,null,null,null,"Metal Halide (Pulse Start) - Electronic",39,71,{"$f":"Table_TypWattage[[#This Row],[1L]]*R$2","v":142},{"$f":"Table_TypWattage[[#This Row],[1L]]*S$2","v":213},{"$f":"Table_TypWattage[[#This Row],[1L]]*T$2","v":284},{"$f":"Table_TypWattage[[#This Row],[1L]]*U$2","v":426},{"$f":"Table_TypWattage[[#This Row],[1L]]*V$2","v":568},null,"<-- NEEDS INPUT"]
[null,null,null,null,null,null,null,null,null,null,null,null,null,null,"Metal Halide (Pulse Start) - Electronic",40,72,{"$f":"Table_TypWattage[[#This Row],[1L]]*R$2","v":144},{"$f":"Table_TypWattage[[#This Row],[1L]]*S$2","v":216},{"$f":"Table_TypWattage[[#This Row],[1L]]*T$2","v":288},{"$f":"Table_TypWattage[[#This Row],[1L]]*U$2","v":432},{"$f":"Table_TypWattage[[#This Row],[1L]]*V$2","v":576},null,"<-- NEEDS INPUT"]
[null,null,null,null,null,null,null,null,null,null,null,null,null,null,"Metal Halide (Pulse Start) - Electronic",70,104,{"$f":"Table_TypWattage[[#This Row],[1L]]*R$2","v":208},{"$f":"Table_TypWattage[[#This Row],[1L]]*S$2","v":312},{"$f":"Table_TypWattage[[#This Row],[1L]]*T$2","v":416},{"$f":"Table_TypWattage[[#This Row],[1L]]*U$2","v":624},{"$f":"Table_TypWattage[[#This Row],[1L]]*V$2","v":832},null,"<-- NEEDS INPUT"]
[null,null,null,null,null,null,null,null,null,null,null,null,null,null,"Metal Halide (Pulse Start) - Electronic",100,128,{"$f":"Table_TypWattage[[#This Row],[1L]]*R$2","v":256},{"$f":"Table_TypWattage[[#This Row],[1L]]*S$2","v":384},{"$f":"Table_TypWattage[[#This Row],[1L]]*T$2","v":512},{"$f":"Table_TypWattage[[#This Row],[1L]]*U$2","v":768},{"$f":"Table_TypWattage[[#This Row],[1L]]*V$2","v":1024},null,"<-- NEEDS INPUT"]
[null,null,null,null,null,null,null,null,null,null,null,null,null,null,"Metal Halide (Pulse Start) - Electronic",150,190,{"$f":"Table_TypWattage[[#This Row],[1L]]*R$2","v":380},{"$f":"Table_TypWattage[[#This Row],[1L]]*S$2","v":570},{"$f":"Table_TypWattage[[#This Row],[1L]]*T$2","v":760},{"$f":"Table_TypWattage[[#This Row],[1L]]*U$2","v":1140},{"$f":"Table_TypWattage[[#This Row],[1L]]*V$2","v":1520},null,"<-- NEEDS INPUT"]
[null,null,null,null,null,null,null,null,null,null,null,null,null,null,"Mercury Vapor - Magnetic",40,50,{"$f":"Table_TypWattage[[#This Row],[1L]]*R$2","v":100},{"$f":"Table_TypWattage[[#This Row],[1L]]*S$2","v":150},{"$f":"Table_TypWattage[[#This Row],[1L]]*T$2","v":200},{"$f":"Table_TypWattage[[#This Row],[1L]]*U$2","v":300},{"$f":"Table_TypWattage[[#This Row],[1L]]*V$2","v":400},null,"<-- NEEDS INPUT"]
[null,null,null,null,null,null,null,null,null,null,null,null,null,null,"Mercury Vapor - Magnetic",50,74,{"$f":"Table_TypWattage[[#This Row],[1L]]*R$2","v":148},{"$f":"Table_TypWattage[[#This Row],[1L]]*S$2","v":222},{"$f":"Table_TypWattage[[#This Row],[1L]]*T$2","v":296},{"$f":"Table_TypWattage[[#This Row],[1L]]*U$2","v":444},{"$f":"Table_TypWattage[[#This Row],[1L]]*V$2","v":592},null,"<-- NEEDS INPUT"]
[null,null,null,null,null,null,null,null,null,null,null,null,null,null,"Mercury Vapor - Magnetic",75,93,{"$f":"Table_TypWattage[[#This Row],[1L]]*R$2","v":186},{"$f":"Table_TypWattage[[#This Row],[1L]]*S$2","v":279},{"$f":"Table_TypWattage[[#This Row],[1L]]*T$2","v":372},{"$f":"Table_TypWattage[[#This Row],[1L]]*U$2","v":558},{"$f":"Table_TypWattage[[#This Row],[1L]]*V$2","v":744},null,"<-- NEEDS INPUT"]
[null,null,null,null,null,null,null,null,null,null,null,null,null,null,"Mercury Vapor - Magnetic",100,125,{"$f":"Table_TypWattage[[#This Row],[1L]]*R$2","v":250},{"$f":"Table_TypWattage[[#This Row],[1L]]*S$2","v":375},{"$f":"Table_TypWattage[[#This Row],[1L]]*T$2","v":500},{"$f":"Table_TypWattage[[#This Row],[1L]]*U$2","v":750},{"$f":"Table_TypWattage[[#This Row],[1L]]*V$2","v":1000},null,"<-- NEEDS INPUT"]
[null,null,null,null,null,null,null,null,null,null,null,null,null,null,"Mercury Vapor - Magnetic",175,205,{"$f":"Table_TypWattage[[#This Row],[1L]]*R$2","v":410},{"$f":"Table_TypWattage[[#This Row],[1L]]*S$2","v":615},{"$f":"Table_TypWattage[[#This Row],[1L]]*T$2","v":820},{"$f":"Table_TypWattage[[#This Row],[1L]]*U$2","v":1230},{"$f":"Table_TypWattage[[#This Row],[1L]]*V$2","v":1640},null,"<-- NEEDS INPUT"]
[null,null,null,null,null,null,null,null,null,null,null,null,null,null,"Mercury Vapor - Magnetic",250,290,{"$f":"Table_TypWattage[[#This Row],[1L]]*R$2","v":580},{"$f":"Table_TypWattage[[#This Row],[1L]]*S$2","v":870},{"$f":"Table_TypWattage[[#This Row],[1L]]*T$2","v":1160},{"$f":"Table_TypWattage[[#This Row],[1L]]*U$2","v":1740},{"$f":"Table_TypWattage[[#This Row],[1L]]*V$2","v":2320},null,"<-- NEEDS INPUT"]
[null,null,null,null,null,null,null,null,null,null,null,null,null,null,"Mercury Vapor - Magnetic",400,455,{"$f":"Table_TypWattage[[#This Row],[1L]]*R$2","v":910},{"$f":"Table_TypWattage[[#This Row],[1L]]*S$2","v":1365},{"$f":"Table_TypWattage[[#This Row],[1L]]*T$2","v":1820},{"$f":"Table_TypWattage[[#This Row],[1L]]*U$2","v":2730},{"$f":"Table_TypWattage[[#This Row],[1L]]*V$2","v":3640},null,"<-- NEEDS INPUT"]
[null,null,null,null,null,null,null,null,null,null,null,null,null,null,"Mercury Vapor - Magnetic",700,780,{"$f":"Table_TypWattage[[#This Row],[1L]]*R$2","v":1560},{"$f":"Table_TypWattage[[#This Row],[1L]]*S$2","v":2340},{"$f":"Table_TypWattage[[#This Row],[1L]]*T$2","v":3120},{"$f":"Table_TypWattage[[#This Row],[1L]]*U$2","v":4680},{"$f":"Table_TypWattage[[#This Row],[1L]]*V$2","v":6240},null,"<-- NEEDS INPUT"]
[null,null,null,null,null,null,null,null,null,null,null,null,null,null,"Mercury Vapor - Magnetic",1000,1075,{"$f":"Table_TypWattage[[#This Row],[1L]]*R$2","v":2150},{"$f":"Table_TypWattage[[#This Row],[1L]]*S$2","v":3225},{"$f":"Table_TypWattage[[#This Row],[1L]]*T$2","v":4300},{"$f":"Table_TypWattage[[#This Row],[1L]]*U$2","v":6450},{"$f":"Table_TypWattage[[#This Row],[1L]]*V$2","v":8600},null,"<-- NEEDS INPUT"]
[null,null,null,null,null,null,null,null,null,null,null,null,null,null,"Metal Halide - Magnetic",50,72,{"$f":"Table_TypWattage[[#This Row],[1L]]*R$2","v":144},{"$f":"Table_TypWattage[[#This Row],[1L]]*S$2","v":216},{"$f":"Table_TypWattage[[#This Row],[1L]]*T$2","v":288},{"$f":"Table_TypWattage[[#This Row],[1L]]*U$2","v":432},{"$f":"Table_TypWattage[[#This Row],[1L]]*V$2","v":576},null,"<-- NEEDS INPUT"]
[null,null,null,null,null,null,null,null,null,null,null,null,null,null,"Metal Halide - Magnetic",70,95,{"$f":"Table_TypWattage[[#This Row],[1L]]*R$2","v":190},{"$f":"Table_TypWattage[[#This Row],[1L]]*S$2","v":285},{"$f":"Table_TypWattage[[#This Row],[1L]]*T$2","v":380},{"$f":"Table_TypWattage[[#This Row],[1L]]*U$2","v":570},{"$f":"Table_TypWattage[[#This Row],[1L]]*V$2","v":760},null,"<-- NEEDS INPUT"]
[null,null,null,null,null,null,null,null,null,null,null,null,null,null,"Metal Halide - Magnetic",100,128,{"$f":"Table_TypWattage[[#This Row],[1L]]*R$2","v":256},{"$f":"Table_TypWattage[[#This Row],[1L]]*S$2","v":384},{"$f":"Table_TypWattage[[#This Row],[1L]]*T$2","v":512},{"$f":"Table_TypWattage[[#This Row],[1L]]*U$2","v":768},{"$f":"Table_TypWattage[[#This Row],[1L]]*V$2","v":1024},null,"<-- NEEDS INPUT"]
[null,null,null,null,null,null,null,null,null,null,null,null,null,null,"Metal Halide - Magnetic",150,190,{"$f":"Table_TypWattage[[#This Row],[1L]]*R$2","v":380},{"$f":"Table_TypWattage[[#This Row],[1L]]*S$2","v":570},{"$f":"Table_TypWattage[[#This Row],[1L]]*T$2","v":760},{"$f":"Table_TypWattage[[#This Row],[1L]]*U$2","v":1140},{"$f":"Table_TypWattage[[#This Row],[1L]]*V$2","v":1520},null,"<-- NEEDS INPUT"]
[null,null,null,null,null,null,null,null,null,null,null,null,null,null,"Metal Halide - Magnetic",175,215,{"$f":"Table_TypWattage[[#This Row],[1L]]*R$2","v":430},{"$f":"Table_TypWattage[[#This Row],[1L]]*S$2","v":645},{"$f":"Table_TypWattage[[#This Row],[1L]]*T$2","v":860},{"$f":"Table_TypWattage[[#This Row],[1L]]*U$2","v":1290},{"$f":"Table_TypWattage[[#This Row],[1L]]*V$2","v":1720},null,"<-- NEEDS INPUT"]
[null,null,null,null,null,null,null,null,null,null,null,null,null,null,"Metal Halide - Magnetic",250,295,{"$f":"Table_TypWattage[[#This Row],[1L]]*R$2","v":590},{"$f":"Table_TypWattage[[#This Row],[1L]]*S$2","v":885},{"$f":"Table_TypWattage[[#This Row],[1L]]*T$2","v":1180},{"$f":"Table_TypWattage[[#This Row],[1L]]*U$2","v":1770},{"$f":"Table_TypWattage[[#This Row],[1L]]*V$2","v":2360},null,"<-- NEEDS INPUT"]
[null,null,null,null,null,null,null,null,null,null,null,null,null,null,"Metal Halide - Magnetic",300,342,{"$f":"Table_TypWattage[[#This Row],[1L]]*R$2","v":684},{"$f":"Table_TypWattage[[#This Row],[1L]]*S$2","v":1026},{"$f":"Table_TypWattage[[#This Row],[1L]]*T$2","v":1368},{"$f":"Table_TypWattage[[#This Row],[1L]]*U$2","v":2052},{"$f":"Table_TypWattage[[#This Row],[1L]]*V$2","v":2736},null,"<-- NEEDS INPUT"]
[null,null,null,null,null,null,null,null,null,null,null,null,null,null,"Metal Halide - Magnetic",325,375,{"$f":"Table_TypWattage[[#This Row],[1L]]*R$2","v":750},{"$f":"Table_TypWattage[[#This Row],[1L]]*S$2","v":1125},{"$f":"Table_TypWattage[[#This Row],[1L]]*T$2","v":1500},{"$f":"Table_TypWattage[[#This Row],[1L]]*U$2","v":2250},{"$f":"Table_TypWattage[[#This Row],[1L]]*V$2","v":3000},null,"<-- NEEDS INPUT"]
[null,null,null,null,null,null,null,null,null,null,null,null,null,null,"Metal Halide - Magnetic",360,430,{"$f":"Table_TypWattage[[#This Row],[1L]]*R$2","v":860},{"$f":"Table_TypWattage[[#This Row],[1L]]*S$2","v":1290},{"$f":"Table_TypWattage[[#This Row],[1L]]*T$2","v":1720},{"$f":"Table_TypWattage[[#This Row],[1L]]*U$2","v":2580},{"$f":"Table_TypWattage[[#This Row],[1L]]*V$2","v":3440},null,"<-- NEEDS INPUT"]
[null,null,null,null,null,null,null,null,null,null,null,null,null,null,"Metal Halide - Magnetic",400,458,{"$f":"Table_TypWattage[[#This Row],[1L]]*R$2","v":916},{"$f":"Table_TypWattage[[#This Row],[1L]]*S$2","v":1374},{"$f":"Table_TypWattage[[#This Row],[1L]]*T$2","v":1832},{"$f":"Table_TypWattage[[#This Row],[1L]]*U$2","v":2748},{"$f":"Table_TypWattage[[#This Row],[1L]]*V$2","v":3664},null,"<-- NEEDS INPUT"]
[null,null,null,null,null,null,null,null,null,null,null,null,null,null,"Metal Halide - Magnetic",750,850,{"$f":"Table_TypWattage[[#This Row],[1L]]*R$2","v":1700},{"$f":"Table_TypWattage[[#This Row],[1L]]*S$2","v":2550},{"$f":"Table_TypWattage[[#This Row],[1L]]*T$2","v":3400},{"$f":"Table_TypWattage[[#This Row],[1L]]*U$2","v":5100},{"$f":"Table_TypWattage[[#This Row],[1L]]*V$2","v":6800},null,"<-- NEEDS INPUT"]
[null,null,null,null,null,null,null,null,null,null,null,null,null,null,"Metal Halide - Magnetic",1000,1080,{"$f":"Table_TypWattage[[#This Row],[1L]]*R$2","v":2160},{"$f":"Table_TypWattage[[#This Row],[1L]]*S$2","v":3240},{"$f":"Table_TypWattage[[#This Row],[1L]]*T$2","v":4320},{"$f":"Table_TypWattage[[#This Row],[1L]]*U$2","v":6480},{"$f":"Table_TypWattage[[#This Row],[1L]]*V$2","v":8640},null,"<-- NEEDS INPUT"]
[null,null,null,null,null,null,null,null,null,null,null,null,null,null,"Metal Halide - Magnetic",1500,1610,{"$f":"Table_TypWattage[[#This Row],[1L]]*R$2","v":3220},{"$f":"Table_TypWattage[[#This Row],[1L]]*S$2","v":4830},{"$f":"Table_TypWattage[[#This Row],[1L]]*T$2","v":6440},{"$f":"Table_TypWattage[[#This Row],[1L]]*U$2","v":9660},{"$f":"Table_TypWattage[[#This Row],[1L]]*V$2","v":12880},null,"<-- NEEDS INPUT"]
[null,null,null,null,null,null,null,null,null,null,null,null,null,null,"Metal Halide (Ceramic) - Magnetic",100,128,{"$f":"Table_TypWattage[[#This Row],[1L]]*R$2","v":256},{"$f":"Table_TypWattage[[#This Row],[1L]]*S$2","v":384},{"$f":"Table_TypWattage[[#This Row],[1L]]*T$2","v":512},{"$f":"Table_TypWattage[[#This Row],[1L]]*U$2","v":768},{"$f":"Table_TypWattage[[#This Row],[1L]]*V$2","v":1024},null,"<-- NEEDS INPUT"]
[null,null,null,null,null,null,null,null,null,null,null,null,null,null,"Metal Halide (Ceramic) - Magnetic",150,190,{"$f":"Table_TypWattage[[#This Row],[1L]]*R$2","v":380},{"$f":"Table_TypWattage[[#This Row],[1L]]*S$2","v":570},{"$f":"Table_TypWattage[[#This Row],[1L]]*T$2","v":760},{"$f":"Table_TypWattage[[#This Row],[1L]]*U$2","v":1140},{"$f":"Table_TypWattage[[#This Row],[1L]]*V$2","v":1520},null,"<-- NEEDS INPUT"]
[null,null,null,null,null,null,null,null,null,null,null,null,null,null,"Metal Halide (Ceramic) - Magnetic",175,215,{"$f":"Table_TypWattage[[#This Row],[1L]]*R$2","v":430},{"$f":"Table_TypWattage[[#This Row],[1L]]*S$2","v":645},{"$f":"Table_TypWattage[[#This Row],[1L]]*T$2","v":860},{"$f":"Table_TypWattage[[#This Row],[1L]]*U$2","v":1290},{"$f":"Table_TypWattage[[#This Row],[1L]]*V$2","v":1720},null,"<-- NEEDS INPUT"]
[null,null,null,null,null,null,null,null,null,null,null,null,null,null,"Metal Halide (Ceramic) - Magnetic",250,295,{"$f":"Table_TypWattage[[#This Row],[1L]]*R$2","v":590},{"$f":"Table_TypWattage[[#This Row],[1L]]*S$2","v":885},{"$f":"Table_TypWattage[[#This Row],[1L]]*T$2","v":1180},{"$f":"Table_TypWattage[[#This Row],[1L]]*U$2","v":1770},{"$f":"Table_TypWattage[[#This Row],[1L]]*V$2","v":2360},null,"<-- NEEDS INPUT"]
[null,null,null,null,null,null,null,null,null,null,null,null,null,null,"Metal Halide (Ceramic) - Magnetic",400,458,{"$f":"Table_TypWattage[[#This Row],[1L]]*R$2","v":916},{"$f":"Table_TypWattage[[#This Row],[1L]]*S$2","v":1374},{"$f":"Table_TypWattage[[#This Row],[1L]]*T$2","v":1832},{"$f":"Table_TypWattage[[#This Row],[1L]]*U$2","v":2748},{"$f":"Table_TypWattage[[#This Row],[1L]]*V$2","v":3664},null,"<-- NEEDS INPUT"]
[null,null,null,null,null,null,null,null,null,null,null,null,null,null,"Metal Halide (Ceramic) - Magnetic",1000,1080,{"$f":"Table_TypWattage[[#This Row],[1L]]*R$2","v":2160},{"$f":"Table_TypWattage[[#This Row],[1L]]*S$2","v":3240},{"$f":"Table_TypWattage[[#This Row],[1L]]*T$2","v":4320},{"$f":"Table_TypWattage[[#This Row],[1L]]*U$2","v":6480},{"$f":"Table_TypWattage[[#This Row],[1L]]*V$2","v":8640},null,"<-- NEEDS INPUT"]
[null,null,null,null,null,null,null,null,null,null,null,null,null,null,"Metal Halide (Ceramic) - Magnetic",1500,1610,{"$f":"Table_TypWattage[[#This Row],[1L]]*R$2","v":3220},{"$f":"Table_TypWattage[[#This Row],[1L]]*S$2","v":4830},{"$f":"Table_TypWattage[[#This Row],[1L]]*T$2","v":6440},{"$f":"Table_TypWattage[[#This Row],[1L]]*U$2","v":9660},{"$f":"Table_TypWattage[[#This Row],[1L]]*V$2","v":12880},null,"<-- NEEDS INPUT"]
[null,null,null,null,null,null,null,null,null,null,null,null,null,null,"Metal Halide (Pulse Start) - Magnetic",20,{"$f":"ROUND(SLOPE($Q$322:$Q$334,$P$322:$P$334)*P342+INTERCEPT($Q$322:$Q$334,$P$322:$P$334),0)","v":51},{"$f":"Table_TypWattage[[#This Row],[1L]]*R$2","v":102},{"$f":"Table_TypWattage[[#This Row],[1L]]*S$2","v":153},{"$f":"Table_TypWattage[[#This Row],[1L]]*T$2","v":204},{"$f":"Table_TypWattage[[#This Row],[1L]]*U$2","v":306},{"$f":"Table_TypWattage[[#This Row],[1L]]*V$2","v":408},null,"<-- NEEDS INPUT"]
[null,null,null,null,null,null,null,null,null,null,null,null,null,null,"Metal Halide (Pulse Start) - Magnetic",35,{"$f":"ROUND(SLOPE($Q$322:$Q$334,$P$322:$P$334)*P343+INTERCEPT($Q$322:$Q$334,$P$322:$P$334),0)","v":67},{"$f":"Table_TypWattage[[#This Row],[1L]]*R$2","v":134},{"$f":"Table_TypWattage[[#This Row],[1L]]*S$2","v":201},{"$f":"Table_TypWattage[[#This Row],[1L]]*T$2","v":268},{"$f":"Table_TypWattage[[#This Row],[1L]]*U$2","v":402},{"$f":"Table_TypWattage[[#This Row],[1L]]*V$2","v":536},null,"<-- NEEDS INPUT"]
[null,null,null,null,null,null,null,null,null,null,null,null,null,null,"Metal Halide (Pulse Start) - Magnetic",39,{"$f":"ROUND(SLOPE($Q$322:$Q$334,$P$322:$P$334)*P344+INTERCEPT($Q$322:$Q$334,$P$322:$P$334),0)","v":71},{"$f":"Table_TypWattage[[#This Row],[1L]]*R$2","v":142},{"$f":"Table_TypWattage[[#This Row],[1L]]*S$2","v":213},{"$f":"Table_TypWattage[[#This Row],[1L]]*T$2","v":284},{"$f":"Table_TypWattage[[#This Row],[1L]]*U$2","v":426},{"$f":"Table_TypWattage[[#This Row],[1L]]*V$2","v":568},null,"<-- NEEDS INPUT"]
[null,null,null,null,null,null,null,null,null,null,null,null,null,null,"Metal Halide (Pulse Start) - Magnetic",40,{"$f":"ROUND(SLOPE($Q$322:$Q$334,$P$322:$P$334)*P345+INTERCEPT($Q$322:$Q$334,$P$322:$P$334),0)","v":72},{"$f":"Table_TypWattage[[#This Row],[1L]]*R$2","v":144},{"$f":"Table_TypWattage[[#This Row],[1L]]*S$2","v":216},{"$f":"Table_TypWattage[[#This Row],[1L]]*T$2","v":288},{"$f":"Table_TypWattage[[#This Row],[1L]]*U$2","v":432},{"$f":"Table_TypWattage[[#This Row],[1L]]*V$2","v":576},null,"<-- NEEDS INPUT"]
[null,null,null,null,null,null,null,null,null,null,null,null,null,null,"Metal Halide (Pulse Start) - Magnetic",70,{"$f":"ROUND(SLOPE($Q$322:$Q$334,$P$322:$P$334)*P346+INTERCEPT($Q$322:$Q$334,$P$322:$P$334),0)","v":104},{"$f":"Table_TypWattage[[#This Row],[1L]]*R$2","v":208},{"$f":"Table_TypWattage[[#This Row],[1L]]*S$2","v":312},{"$f":"Table_TypWattage[[#This Row],[1L]]*T$2","v":416},{"$f":"Table_TypWattage[[#This Row],[1L]]*U$2","v":624},{"$f":"Table_TypWattage[[#This Row],[1L]]*V$2","v":832},null,"<-- NEEDS INPUT"]
[null,null,null,null,null,null,null,null,null,null,null,null,null,null,"Metal Halide (Pulse Start) - Magnetic",100,128,{"$f":"Table_TypWattage[[#This Row],[1L]]*R$2","v":256},{"$f":"Table_TypWattage[[#This Row],[1L]]*S$2","v":384},{"$f":"Table_TypWattage[[#This Row],[1L]]*T$2","v":512},{"$f":"Table_TypWattage[[#This Row],[1L]]*U$2","v":768},{"$f":"Table_TypWattage[[#This Row],[1L]]*V$2","v":1024},null,"<-- NEEDS INPUT"]
[null,null,null,null,null,null,null,null,null,null,null,null,null,null,"Metal Halide (Pulse Start) - Magnetic",150,190,{"$f":"Table_TypWattage[[#This Row],[1L]]*R$2","v":380},{"$f":"Table_TypWattage[[#This Row],[1L]]*S$2","v":570},{"$f":"Table_TypWattage[[#This Row],[1L]]*T$2","v":760},{"$f":"Table_TypWattage[[#This Row],[1L]]*U$2","v":1140},{"$f":"Table_TypWattage[[#This Row],[1L]]*V$2","v":1520},null,"<-- NEEDS INPUT"]

{"sheet":"ASHRAE 90.1-2013 Interior","index":26,"n_rows":117,"n_cols":32,"rows_kept":117,"cut":false,"hidden":true,"merged":[[35,25,35,27],[42,26,42,27],[40,26,41,27],[38,26,39,27],[36,26,37,27],[40,25,41,25],[36,25,37,25],[38,25,39,25]]}
[]
[]
["TABLE 9.5.1 Lighting Power Densities Using the Building Area Method",null,null,null,null,"TABLE 9.6.1 Lighting Power Density Allowances Using the Space-by-Space Method and Minimum Control Requirements Using Either Method",null,null,null,null,null,null,null,null,null,null,null,null,null,null,null,null,null,null,null,"TABLE 9.6.3 Control Factors Used in Calculating Additional Interior Lighting Power Allowance"]
["Building Area Type","LPD (W/ft2)","Units","B. CSF",null,"Space-By-Space Area Type","LPD","Units","RCR Threshold","Max Width","Minimum Lighting Control","B. CSF","%DL","B. CSF (No Wndws)","B. CSF (Wndws)","Local Control","Manual ON","Partial Automatic ON","Bilevel Lighting Control","Automatic Daylighting Control","Automatic Partial OFF","Automatic Full OFF","Scheduled Shutoff",null,null,"Facility Type","None","Dimming Control (Manual/Simple)","Dimming Control (Programmable Time Scheduling)","Workstation Occupancy Control","Workstation Occupancy Control + Manual Dimming","Secondary Daylighting Controls"]
["Assisted Living Facility",1.29,"W/ft2",{"$f":"L19*0.005 + L22*0.025 + L25*0.01 + L29*0.02 + L31*0.05 + L39*0.01 + L40*0.04 + L52*0.58 + L111*0.1 + L112 * 0.08 + L113 * 0.02 + L114*0.05 + L115*0.01","v":0.11525500000000001},null,"Atrium, first 20ft",0.03,"W/ft-ft2",0,0,{"$f":"IF(AND(SpaceBySpace_2013[[#This Row],[Automatic Daylighting Control]]=\"REQ\",OR(SpaceBySpace_2013[[#This Row],[Automatic Partial OFF]]=\"REQ\",SpaceBySpace_2013[[#This Row],[Partial Automatic ON]]=\"REQ\",SpaceBySpace_2013[[#This Row],[Automatic Full OFF]]=\"REQ\",COUNTIF(SpaceBySpace_2013[[#This Row],[Automatic Partial OFF]:[Scheduled Shutoff]],\"ADD*\")>0)),\"Occupancy + Daylight\",\nIF(SpaceBySpace_2013[[#This Row],[Automatic Daylighting Control]]=\"REQ\",\"Daylight Harvesting\",\nIF(OR(SpaceBySpace_2013[[#This Row],[Partial Automatic ON]]=\"REQ\",SpaceBySpace_2013[[#This Row],[Automatic Partial OFF]]=\"REQ\",SpaceBySpace_2013[[#This Row],[Automatic Full OFF]]=\"REQ\",COUNTIF(SpaceBySpace_2013[[#This Row],[Automatic Partial OFF]:[Scheduled Shutoff]],\"ADD*\")>0),\"Occupancy\",\"\")))","v":"Occupancy + Daylight"},{"$f":"SpaceBySpace_2013[[#This Row],[%DL]]*SpaceBySpace_2013[[#This Row],[B. CSF (Wndws)]]+(1-SpaceBySpace_2013[[#This Row],[%DL]])*SpaceBySpace_2013[[#This Row],[B. CSF (No Wndws)]]","v":0.38},1,{"$f":"IF(SpaceBySpace_2013[[#This Row],[B. CSF (Wndws)]]=0.38,0.24,0)","v":0.24},{"$f":"VLOOKUP(K5,'Measure Tables'!$A$2:$C$7,3,FALSE)","v":0.38},"REQ","ADD1","ADD1",null,"REQ",null,"ADD2","ADD2",null,null,{"$f":"F33","v":"Office, Open Plan"},0,0.05,0.05,0.25,0.3,0.1]
["Automotive Facility",0.8,"W/ft2",{"$f":"L15*0.05 + L19*0.02 + L26*0.01 + L30*0.02 + L31*0.05 + L33*0.15 + L35*0.02 + L380*0.02 + L41*0.25 + M95*0.41","v":0.21279000000000001},null,"Atrium, 20-40ft",0.03,"W/ft-ft2",0,0,{"$f":"IF(AND(SpaceBySpace_2013[[#This Row],[Automatic Daylighting Control]]=\"REQ\",OR(SpaceBySpace_2013[[#This Row],[Automatic Partial OFF]]=\"REQ\",SpaceBySpace_2013[[#This Row],[Partial Automatic ON]]=\"REQ\",SpaceBySpace_2013[[#This Row],[Automatic Full OFF]]=\"REQ\",COUNTIF(SpaceBySpace_2013[[#This Row],[Automatic Partial OFF]:[Scheduled Shutoff]],\"ADD*\")>0)),\"Occupancy + Daylight\",\nIF(SpaceBySpace_2013[[#This Row],[Automatic Daylighting Control]]=\"REQ\",\"Daylight Harvesting\",\nIF(OR(SpaceBySpace_2013[[#This Row],[Partial Automatic ON]]=\"REQ\",SpaceBySpace_2013[[#This Row],[Automatic Partial OFF]]=\"REQ\",SpaceBySpace_2013[[#This Row],[Automatic Full OFF]]=\"REQ\",COUNTIF(SpaceBySpace_2013[[#This Row],[Automatic Partial OFF]:[Scheduled Shutoff]],\"ADD*\")>0),\"Occupancy\",\"\")))","v":"Occupancy + Daylight"},{"$f":"SpaceBySpace_2013[[#This Row],[%DL]]*SpaceBySpace_2013[[#This Row],[B. CSF (Wndws)]]+(1-SpaceBySpace_2013[[#This Row],[%DL]])*SpaceBySpace_2013[[#This Row],[B. CSF (No Wndws)]]","v":0.38},1,{"$f":"IF(SpaceBySpace_2013[[#This Row],[B. CSF (Wndws)]]=0.38,0.24,0)","v":0.24},{"$f":"VLOOKUP(K6,'Measure Tables'!$A$2:$C$7,3,FALSE)","v":0.38},"REQ","ADD1","ADD1","REQ","REQ",null,"ADD2","ADD2",null,null,{"$f":"F31","v":"Office, Enclosed ≤250 ft2"},0,0.05,0.05,0,0,0.1]
["Casino",{"$f":"ROUND((339544.63*0.663+399488*0.945)/SUM(339544.63,399488),2)","v":0.82},"W/ft2",{"$f":"L10*0.5 + L12*0.02 + L15*0.15 + L19*0.01 + L20*0.02 + L22*0.07 + L26*0.1 + L31*0.08 + L35*0.01 + L39*0.04","v":0.27227000000000001},null,"Atrium, above 40ft","0.40 + 0.02/ft","W/ft2",0,0,{"$f":"IF(AND(SpaceBySpace_2013[[#This Row],[Automatic Daylighting Control]]=\"REQ\",OR(SpaceBySpace_2013[[#This Row],[Automatic Partial OFF]]=\"REQ\",SpaceBySpace_2013[[#This Row],[Partial Automatic ON]]=\"REQ\",SpaceBySpace_2013[[#This Row],[Automatic Full OFF]]=\"REQ\",COUNTIF(SpaceBySpace_2013[[#This Row],[Automatic Partial OFF]:[Scheduled Shutoff]],\"ADD*\")>0)),\"Occupancy + Daylight\",\nIF(SpaceBySpace_2013[[#This Row],[Automatic Daylighting Control]]=\"REQ\",\"Daylight Harvesting\",\nIF(OR(SpaceBySpace_2013[[#This Row],[Partial Automatic ON]]=\"REQ\",SpaceBySpace_2013[[#This Row],[Automatic Partial OFF]]=\"REQ\",SpaceBySpace_2013[[#This Row],[Automatic Full OFF]]=\"REQ\",COUNTIF(SpaceBySpace_2013[[#This Row],[Automatic Partial OFF]:[Scheduled Shutoff]],\"ADD*\")>0),\"Occupancy\",\"\")))","v":"Occupancy + Daylight"},{"$f":"SpaceBySpace_2013[[#This Row],[%DL]]*SpaceBySpace_2013[[#This Row],[B. CSF (Wndws)]]+(1-SpaceBySpace_2013[[#This Row],[%DL]])*SpaceBySpace_2013[[#This Row],[B. CSF (No Wndws)]]","v":0.38},1,{"$f":"IF(SpaceBySpace_2013[[#This Row],[B. CSF (Wndws)]]=0.38,0.24,0)","v":0.24},{"$f":"VLOOKUP(K7,'Measure Tables'!$A$2:$C$7,3,FALSE)","v":0.38},"REQ","ADD1","ADD1","REQ","REQ",null,"ADD2","ADD2",null,null,{"$f":"F32","v":"Office, Enclosed >250 ft2"},0,0.05,0.05,0,0,0.1]
["Convention Center",1.01,"W/ft2",{"$f":"L44*0.05 + L45*0.45 + L12*0.02 + L15*0.15 + L19*0.01 + L20*0.02 + L22*0.07 + L26*0.1 + L31*0.08 + L35*0.01 + L39*0.04","v":0.26877000000000001},null,"Audience/Seating Area (Auditorium)",0.63,"W/ft2",6,0,{"$f":"IF(AND(SpaceBySpace_2013[[#This Row],[Automatic Daylighting Control]]=\"REQ\",OR(SpaceBySpace_2013[[#This Row],[Automatic Partial OFF]]=\"REQ\",SpaceBySpace_2013[[#This Row],[Partial Automatic ON]]=\"REQ\",SpaceBySpace_2013[[#This Row],[Automatic Full OFF]]=\"REQ\",COUNTIF(SpaceBySpace_2013[[#This Row],[Automatic Partial OFF]:[Scheduled Shutoff]],\"ADD*\")>0)),\"Occupancy + Daylight\",\nIF(SpaceBySpace_2013[[#This Row],[Automatic Daylighting Control]]=\"REQ\",\"Daylight Harvesting\",\nIF(OR(SpaceBySpace_2013[[#This Row],[Partial Automatic ON]]=\"REQ\",SpaceBySpace_2013[[#This Row],[Automatic Partial OFF]]=\"REQ\",SpaceBySpace_2013[[#This Row],[Automatic Full OFF]]=\"REQ\",COUNTIF(SpaceBySpace_2013[[#This Row],[Automatic Partial OFF]:[Scheduled Shutoff]],\"ADD*\")>0),\"Occupancy\",\"\")))","v":"Occupancy + Daylight"},{"$f":"SpaceBySpace_2013[[#This Row],[%DL]]*SpaceBySpace_2013[[#This Row],[B. CSF (Wndws)]]+(1-SpaceBySpace_2013[[#This Row],[%DL]])*SpaceBySpace_2013[[#This Row],[B. CSF (No Wndws)]]","v":0.24},0,{"$f":"IF(SpaceBySpace_2013[[#This Row],[B. CSF (Wndws)]]=0.38,0.24,0)","v":0.24},{"$f":"VLOOKUP(K8,'Measure Tables'!$A$2:$C$7,3,FALSE)","v":0.38},"REQ","ADD1","ADD1","REQ","REQ",null,"ADD2","ADD2",null,null,{"$f":"F11","v":"Classroom/Lecture/Training"},0,0.1,0.1,0,0,0.1]
["Court House",1.01,"W/ft2",{"$f":"L5*0.01 + L19*0.01 + L31*0.05 + L35*0.03 + L38*0.02 + L46*0.45 + L47*0.1 + L48*0.13 + L49*0.2","v":0.27639999999999998},null,"Audience/Seating Area (Other)",0.43,"W/ft2",4,0,{"$f":"IF(AND(SpaceBySpace_2013[[#This Row],[Automatic Daylighting Control]]=\"REQ\",OR(SpaceBySpace_2013[[#This Row],[Automatic Partial OFF]]=\"REQ\",SpaceBySpace_2013[[#This Row],[Partial Automatic ON]]=\"REQ\",SpaceBySpace_2013[[#This Row],[Automatic Full OFF]]=\"REQ\",COUNTIF(SpaceBySpace_2013[[#This Row],[Automatic Partial OFF]:[Scheduled Shutoff]],\"ADD*\")>0)),\"Occupancy + Daylight\",\nIF(SpaceBySpace_2013[[#This Row],[Automatic Daylighting Control]]=\"REQ\",\"Daylight Harvesting\",\nIF(OR(SpaceBySpace_2013[[#This Row],[Partial Automatic ON]]=\"REQ\",SpaceBySpace_2013[[#This Row],[Automatic Partial OFF]]=\"REQ\",SpaceBySpace_2013[[#This Row],[Automatic Full OFF]]=\"REQ\",COUNTIF(SpaceBySpace_2013[[#This Row],[Automatic Partial OFF]:[Scheduled Shutoff]],\"ADD*\")>0),\"Occupancy\",\"\")))","v":"Occupancy + Daylight"},{"$f":"SpaceBySpace_2013[[#This Row],[%DL]]*SpaceBySpace_2013[[#This Row],[B. CSF (Wndws)]]+(1-SpaceBySpace_2013[[#This Row],[%DL]])*SpaceBySpace_2013[[#This Row],[B. CSF (No Wndws)]]","v":0.24},0,{"$f":"IF(SpaceBySpace_2013[[#This Row],[B. CSF (Wndws)]]=0.38,0.24,0)","v":0.24},{"$f":"VLOOKUP(K9,'Measure Tables'!$A$2:$C$7,3,FALSE)","v":0.38},"REQ","ADD1","ADD1",null,"REQ",null,"ADD2","ADD2",null,null,{"$f":"F12","v":"Conference/Meeting/Multipurpose"},0,0.1,0.1,0,0,0.1]
["Data Center",{"$f":"G13","v":1.71},"W/ft2",{"$f":"L12*0.02 + L13*0.65 + L15*0.15 + L19*0.1 + M26*0.01 + L31*0.02 + L33*0.04 + L35*0.005 + L39*0.005","v":0.25653999999999993},null,"Casino Floor",{"$f":"G11","v":1.24},"W/ft2",6,0,{"$f":"IF(AND(SpaceBySpace_2013[[#This Row],[Automatic Daylighting Control]]=\"REQ\",OR(SpaceBySpace_2013[[#This Row],[Automatic Partial OFF]]=\"REQ\",SpaceBySpace_2013[[#This Row],[Partial Automatic ON]]=\"REQ\",SpaceBySpace_2013[[#This Row],[Automatic Full OFF]]=\"REQ\",COUNTIF(SpaceBySpace_2013[[#This Row],[Automatic Partial OFF]:[Scheduled Shutoff]],\"ADD*\")>0)),\"Occupancy + Daylight\",\nIF(SpaceBySpace_2013[[#This Row],[Automatic Daylighting Control]]=\"REQ\",\"Daylight Harvesting\",\nIF(OR(SpaceBySpace_2013[[#This Row],[Partial Automatic ON]]=\"REQ\",SpaceBySpace_2013[[#This Row],[Automatic Partial OFF]]=\"REQ\",SpaceBySpace_2013[[#This Row],[Automatic Full OFF]]=\"REQ\",COUNTIF(SpaceBySpace_2013[[#This Row],[Automatic Partial OFF]:[Scheduled Shutoff]],\"ADD*\")>0),\"Occupancy\",\"\")))","v":"Occupancy + Daylight"},{"$f":"SpaceBySpace_2013[[#This Row],[%DL]]*SpaceBySpace_2013[[#This Row],[B. CSF (Wndws)]]+(1-SpaceBySpace_2013[[#This Row],[%DL]])*SpaceBySpace_2013[[#This Row],[B. CSF (No Wndws)]]","v":0.247},0.05,{"$f":"IF(SpaceBySpace_2013[[#This Row],[B. CSF (Wndws)]]=0.38,0.24,0)","v":0.24},{"$f":"VLOOKUP(K10,'Measure Tables'!$A$2:$C$7,3,FALSE)","v":0.38},"REQ","ADD1","ADD1","REQ","REQ",null,"REQ",null,null,null,{"$f":"F95","v":"Retail, Sales Area"},0,0.1,0.1,0,0,0.1]
["Dining: Bar Lounge/Leisure",1.01,"W/ft2",{"$f":"L16","v":0.27500000000000002},null,"Classroom/Lecture/Training",1.24,"W/ft2",4,0,{"$f":"IF(AND(SpaceBySpace_2013[[#This Row],[Automatic Daylighting Control]]=\"REQ\",OR(SpaceBySpace_2013[[#This Row],[Automatic Partial OFF]]=\"REQ\",SpaceBySpace_2013[[#This Row],[Partial Automatic ON]]=\"REQ\",SpaceBySpace_2013[[#This Row],[Automatic Full OFF]]=\"REQ\",COUNTIF(SpaceBySpace_2013[[#This Row],[Automatic Partial OFF]:[Scheduled Shutoff]],\"ADD*\")>0)),\"Occupancy + Daylight\",\nIF(SpaceBySpace_2013[[#This Row],[Automatic Daylighting Control]]=\"REQ\",\"Daylight Harvesting\",\nIF(OR(SpaceBySpace_2013[[#This Row],[Partial Automatic ON]]=\"REQ\",SpaceBySpace_2013[[#This Row],[Automatic Partial OFF]]=\"REQ\",SpaceBySpace_2013[[#This Row],[Automatic Full OFF]]=\"REQ\",COUNTIF(SpaceBySpace_2013[[#This Row],[Automatic Partial OFF]:[Scheduled Shutoff]],\"ADD*\")>0),\"Occupancy\",\"\")))","v":"Occupancy + Daylight"},{"$f":"SpaceBySpace_2013[[#This Row],[%DL]]*SpaceBySpace_2013[[#This Row],[B. CSF (Wndws)]]+(1-SpaceBySpace_2013[[#This Row],[%DL]])*SpaceBySpace_2013[[#This Row],[B. CSF (No Wndws)]]","v":0.26800000000000002},0.2,{"$f":"IF(SpaceBySpace_2013[[#This Row],[B. CSF (Wndws)]]=0.38,0.24,0)","v":0.24},{"$f":"VLOOKUP(K11,'Measure Tables'!$A$2:$C$7,3,FALSE)","v":0.38},"REQ","ADD1","ADD1","REQ","REQ",null,"REQ",null,null,null,{"$f":"F5","v":"Atrium, first 20ft"},0,0,0.1,0,0,0.1]
["Dining: Cafeteria/Fast Food",0.9,"W/ft2",{"$f":"L18","v":0.27500000000000002},null,"Conference/Meeting/Multipurpose",1.23,"W/ft2",6,0,{"$f":"IF(AND(SpaceBySpace_2013[[#This Row],[Automatic Daylighting Control]]=\"REQ\",OR(SpaceBySpace_2013[[#This Row],[Automatic Partial OFF]]=\"REQ\",SpaceBySpace_2013[[#This Row],[Partial Automatic ON]]=\"REQ\",SpaceBySpace_2013[[#This Row],[Automatic Full OFF]]=\"REQ\",COUNTIF(SpaceBySpace_2013[[#This Row],[Automatic Partial OFF]:[Scheduled Shutoff]],\"ADD*\")>0)),\"Occupancy + Daylight\",\nIF(SpaceBySpace_2013[[#This Row],[Automatic Daylighting Control]]=\"REQ\",\"Daylight Harvesting\",\nIF(OR(SpaceBySpace_2013[[#This Row],[Partial Automatic ON]]=\"REQ\",SpaceBySpace_2013[[#This Row],[Automatic Partial OFF]]=\"REQ\",SpaceBySpace_2013[[#This Row],[Automatic Full OFF]]=\"REQ\",COUNTIF(SpaceBySpace_2013[[#This Row],[Automatic Partial OFF]:[Scheduled Shutoff]],\"ADD*\")>0),\"Occupancy\",\"\")))","v":"Occupancy + Daylight"},{"$f":"SpaceBySpace_2013[[#This Row],[%DL]]*SpaceBySpace_2013[[#This Row],[B. CSF (Wndws)]]+(1-SpaceBySpace_2013[[#This Row],[%DL]])*SpaceBySpace_2013[[#This Row],[B. CSF (No Wndws)]]","v":0.38},1,{"$f":"IF(SpaceBySpace_2013[[#This Row],[B. CSF (Wndws)]]=0.38,0.24,0)","v":0.24},{"$f":"VLOOKUP(K12,'Measure Tables'!$A$2:$C$7,3,FALSE)","v":0.38},"REQ","ADD1","ADD1","REQ","REQ",null,"REQ",null,null,null,{"$f":"F6","v":"Atrium, 20-40ft"},0,0,0.1,0,0,0.1]
["Dining: Family",0.95,"W/ft2",{"$f":"L17","v":0.27500000000000002},null,"Computer Room",1.71,"W/ft2",4,0,{"$f":"IF(AND(SpaceBySpace_2013[[#This Row],[Automatic Daylighting Control]]=\"REQ\",OR(SpaceBySpace_2013[[#This Row],[Automatic Partial OFF]]=\"REQ\",SpaceBySpace_2013[[#This Row],[Partial Automatic ON]]=\"REQ\",SpaceBySpace_2013[[#This Row],[Automatic Full OFF]]=\"REQ\",COUNTIF(SpaceBySpace_2013[[#This Row],[Automatic Partial OFF]:[Scheduled Shutoff]],\"ADD*\")>0)),\"Occupancy + Daylight\",\nIF(SpaceBySpace_2013[[#This Row],[Automatic Daylighting Control]]=\"REQ\",\"Daylight Harvesting\",\nIF(OR(SpaceBySpace_2013[[#This Row],[Partial Automatic ON]]=\"REQ\",SpaceBySpace_2013[[#This Row],[Automatic Partial OFF]]=\"REQ\",SpaceBySpace_2013[[#This Row],[Automatic Full OFF]]=\"REQ\",COUNTIF(SpaceBySpace_2013[[#This Row],[Automatic Partial OFF]:[Scheduled Shutoff]],\"ADD*\")>0),\"Occupancy\",\"\")))","v":"Occupancy + Daylight"},{"$f":"SpaceBySpace_2013[[#This Row],[%DL]]*SpaceBySpace_2013[[#This Row],[B. CSF (Wndws)]]+(1-SpaceBySpace_2013[[#This Row],[%DL]])*SpaceBySpace_2013[[#This Row],[B. CSF (No Wndws)]]","v":0.24},0,{"$f":"IF(SpaceBySpace_2013[[#This Row],[B. CSF (Wndws)]]=0.38,0.24,0)","v":0.24},{"$f":"VLOOKUP(K13,'Measure Tables'!$A$2:$C$7,3,FALSE)","v":0.38},"REQ","ADD1","ADD1","REQ","REQ",null,"ADD2","ADD2",null,null,{"$f":"F7","v":"Atrium, above 40ft"},0,0,0.1,0,0,0.1]
["Dormitory",0.56999999999999995,"W/ft2",{"$f":"L19*0.01 + L25*0.02 + L26*0.02 + L30*0.08 + L31*0.02 + L35*0.01 + L40*0.05 + L15*0.15 + L52*0.64","v":0.10250000000000001},null,"Copy/Print Room",0.72,"W/ft2",6,0,{"$f":"IF(AND(SpaceBySpace_2013[[#This Row],[Automatic Daylighting Control]]=\"REQ\",OR(SpaceBySpace_2013[[#This Row],[Automatic Partial OFF]]=\"REQ\",SpaceBySpace_2013[[#This Row],[Partial Automatic ON]]=\"REQ\",SpaceBySpace_2013[[#This Row],[Automatic Full OFF]]=\"REQ\",COUNTIF(SpaceBySpace_2013[[#This Row],[Automatic Partial OFF]:[Scheduled Shutoff]],\"ADD*\")>0)),\"Occupancy + Daylight\",\nIF(SpaceBySpace_2013[[#This Row],[Automatic Daylighting Control]]=\"REQ\",\"Daylight Harvesting\",\nIF(OR(SpaceBySpace_2013[[#This Row],[Partial Automatic ON]]=\"REQ\",SpaceBySpace_2013[[#This Row],[Automatic Partial OFF]]=\"REQ\",SpaceBySpace_2013[[#This Row],[Automatic Full OFF]]=\"REQ\",COUNTIF(SpaceBySpace_2013[[#This Row],[Automatic Partial OFF]:[Scheduled Shutoff]],\"ADD*\")>0),\"Occupancy\",\"\")))","v":"Occupancy + Daylight"},{"$f":"SpaceBySpace_2013[[#This Row],[%DL]]*SpaceBySpace_2013[[#This Row],[B. CSF (Wndws)]]+(1-SpaceBySpace_2013[[#This Row],[%DL]])*SpaceBySpace_2013[[#This Row],[B. CSF (No Wndws)]]","v":0.24},0,{"$f":"IF(SpaceBySpace_2013[[#This Row],[B. CSF (Wndws)]]=0.38,0.24,0)","v":0.24},{"$f":"VLOOKUP(K14,'Measure Tables'!$A$2:$C$7,3,FALSE)","v":0.38},"REQ","ADD1","ADD1","REQ","REQ",null,"REQ",null,null,null,{"$f":"F25","v":"Lobby (Elevator)"},0,0,0.1,0,0,0.1]
["Exercise Center",0.84,"W/ft2",{"$f":"L15*0.1 + L19*0.04 + L26*0.05 + L27*0.15 + L30*0.05 + L31*0.03 + L35*0.02 + L39*0.02 + L55*0.05 + L56*0.6","v":0.29999999999999993},null,"Corridor/Transition (Other)",0.66,"W/ft2",0,8,{"$f":"IF(AND(SpaceBySpace_2013[[#This Row],[Automatic Daylighting Control]]=\"REQ\",OR(SpaceBySpace_2013[[#This Row],[Automatic Partial OFF]]=\"REQ\",SpaceBySpace_2013[[#This Row],[Partial Automatic ON]]=\"REQ\",SpaceBySpace_2013[[#This Row],[Automatic Full OFF]]=\"REQ\",COUNTIF(SpaceBySpace_2013[[#This Row],[Automatic Partial OFF]:[Scheduled Shutoff]],\"ADD*\")>0)),\"Occupancy + Daylight\",\nIF(SpaceBySpace_2013[[#This Row],[Automatic Daylighting Control]]=\"REQ\",\"Daylight Harvesting\",\nIF(OR(SpaceBySpace_2013[[#This Row],[Partial Automatic ON]]=\"REQ\",SpaceBySpace_2013[[#This Row],[Automatic Partial OFF]]=\"REQ\",SpaceBySpace_2013[[#This Row],[Automatic Full OFF]]=\"REQ\",COUNTIF(SpaceBySpace_2013[[#This Row],[Automatic Partial OFF]:[Scheduled Shutoff]],\"ADD*\")>0),\"Occupancy\",\"\")))","v":"Occupancy + Daylight"},{"$f":"SpaceBySpace_2013[[#This Row],[%DL]]*SpaceBySpace_2013[[#This Row],[B. CSF (Wndws)]]+(1-SpaceBySpace_2013[[#This Row],[%DL]])*SpaceBySpace_2013[[#This Row],[B. CSF (No Wndws)]]","v":0.31},0.5,{"$f":"IF(SpaceBySpace_2013[[#This Row],[B. CSF (Wndws)]]=0.38,0.24,0)","v":0.24},{"$f":"VLOOKUP(K15,'Measure Tables'!$A$2:$C$7,3,FALSE)","v":0.38},"REQ",null,null,null,"REQ","REQ","ADD2","ADD2",null,null,{"$f":"F26","v":"Lobby (Other)"},0,0,0.1,0,0,0.1]
["Fire Station",0.67100000000000004,"W/ft2",{"$f":"L12*0.05 + L15*0.15 + L18*0.08 + L19*0.02 + L53*0.4 + L27*0.05 + L35*0.02 + L40*0.13 + L54*0.1","v":0.23630000000000004},null,"Dining Area (Bar Lounge/Leisure)",1.07,"W/ft2",4,0,{"$f":"IF(AND(SpaceBySpace_2013[[#This Row],[Automatic Daylighting Control]]=\"REQ\",OR(SpaceBySpace_2013[[#This Row],[Automatic Partial OFF]]=\"REQ\",SpaceBySpace_2013[[#This Row],[Partial Automatic ON]]=\"REQ\",SpaceBySpace_2013[[#This Row],[Automatic Full OFF]]=\"REQ\",COUNTIF(SpaceBySpace_2013[[#This Row],[Automatic Partial OFF]:[Scheduled Shutoff]],\"ADD*\")>0)),\"Occupancy + Daylight\",\nIF(SpaceBySpace_2013[[#This Row],[Automatic Daylighting Control]]=\"REQ\",\"Daylight Harvesting\",\nIF(OR(SpaceBySpace_2013[[#This Row],[Partial Automatic ON]]=\"REQ\",SpaceBySpace_2013[[#This Row],[Automatic Partial OFF]]=\"REQ\",SpaceBySpace_2013[[#This Row],[Automatic Full OFF]]=\"REQ\",COUNTIF(SpaceBySpace_2013[[#This Row],[Automatic Partial OFF]:[Scheduled Shutoff]],\"ADD*\")>0),\"Occupancy\",\"\")))","v":"Occupancy + Daylight"},{"$f":"SpaceBySpace_2013[[#This Row],[%DL]]*SpaceBySpace_2013[[#This Row],[B. CSF (Wndws)]]+(1-SpaceBySpace_2013[[#This Row],[%DL]])*SpaceBySpace_2013[[#This Row],[B. CSF (No Wndws)]]","v":0.27500000000000002},0.25,{"$f":"IF(SpaceBySpace_2013[[#This Row],[B. CSF (Wndws)]]=0.38,0.24,0)","v":0.24},{"$f":"VLOOKUP(K16,'Measure Tables'!$A$2:$C$7,3,FALSE)","v":0.38},"REQ","ADD1","ADD1","REQ","REQ",null,"ADD2","ADD2",null,null,{"$f":"F71","v":"Hotel/Motel, Lobby"},0,0,0.1,0,0,0.1]
["Grow Facility",1,"W/ft2",{"$f":"L5*0.02 + L12*0.05 + L15*0.1 + L24*0.1 + L26*0.04 + L29*0.02 + L31*0.03 + L35*0.02 + L39*0.04 + L76*0.14 + L77*0.08 + L80*0.25 + L117*0.15","v":0.27171999999999996},null,"Dining Area (Family)",0.89,"W/ft2",4,0,{"$f":"IF(AND(SpaceBySpace_2013[[#This Row],[Automatic Daylighting Control]]=\"REQ\",OR(SpaceBySpace_2013[[#This Row],[Automatic Partial OFF]]=\"REQ\",SpaceBySpace_2013[[#This Row],[Partial Automatic ON]]=\"REQ\",SpaceBySpace_2013[[#This Row],[Automatic Full OFF]]=\"REQ\",COUNTIF(SpaceBySpace_2013[[#This Row],[Automatic Partial OFF]:[Scheduled Shutoff]],\"ADD*\")>0)),\"Occupancy + Daylight\",\nIF(SpaceBySpace_2013[[#This Row],[Automatic Daylighting Control]]=\"REQ\",\"Daylight Harvesting\",\nIF(OR(SpaceBySpace_2013[[#This Row],[Partial Automatic ON]]=\"REQ\",SpaceBySpace_2013[[#This Row],[Automatic Partial OFF]]=\"REQ\",SpaceBySpace_2013[[#This Row],[Automatic Full OFF]]=\"REQ\",COUNTIF(SpaceBySpace_2013[[#This Row],[Automatic Partial OFF]:[Scheduled Shutoff]],\"ADD*\")>0),\"Occupancy\",\"\")))","v":"Occupancy + Daylight"},{"$f":"SpaceBySpace_2013[[#This Row],[%DL]]*SpaceBySpace_2013[[#This Row],[B. CSF (Wndws)]]+(1-SpaceBySpace_2013[[#This Row],[%DL]])*SpaceBySpace_2013[[#This Row],[B. CSF (No Wndws)]]","v":0.27500000000000002},0.25,{"$f":"IF(SpaceBySpace_2013[[#This Row],[B. CSF (Wndws)]]=0.38,0.24,0)","v":0.24},{"$f":"VLOOKUP(K17,'Measure Tables'!$A$2:$C$7,3,FALSE)","v":0.38},"REQ","ADD1","ADD1","REQ","REQ",null,"ADD2","ADD2",null,null,{"$f":"F82","v":"Motion Picture Theater, Lobby"},0,0,0.1,0,0,0.1]
["Gymnasium",0.94,"W/ft2",{"$f":"L15*0.1 + L19*0.04 + L26*0.05 + L27*0.15 + L30*0.05 + L31*0.03 + L35*0.02 + L39*0.02 + L55*0.15 + L57*0.5","v":0.31189999999999996},null,"Dining Area (Other)",0.65,"W/ft2",4,0,{"$f":"IF(AND(SpaceBySpace_2013[[#This Row],[Automatic Daylighting Control]]=\"REQ\",OR(SpaceBySpace_2013[[#This Row],[Automatic Partial OFF]]=\"REQ\",SpaceBySpace_2013[[#This Row],[Partial Automatic ON]]=\"REQ\",SpaceBySpace_2013[[#This Row],[Automatic Full OFF]]=\"REQ\",COUNTIF(SpaceBySpace_2013[[#This Row],[Automatic Partial OFF]:[Scheduled Shutoff]],\"ADD*\")>0)),\"Occupancy + Daylight\",\nIF(SpaceBySpace_2013[[#This Row],[Automatic Daylighting Control]]=\"REQ\",\"Daylight Harvesting\",\nIF(OR(SpaceBySpace_2013[[#This Row],[Partial Automatic ON]]=\"REQ\",SpaceBySpace_2013[[#This Row],[Automatic Partial OFF]]=\"REQ\",SpaceBySpace_2013[[#This Row],[Automatic Full OFF]]=\"REQ\",COUNTIF(SpaceBySpace_2013[[#This Row],[Automatic Partial OFF]:[Scheduled Shutoff]],\"ADD*\")>0),\"Occupancy\",\"\")))","v":"Occupancy + Daylight"},{"$f":"SpaceBySpace_2013[[#This Row],[%DL]]*SpaceBySpace_2013[[#This Row],[B. CSF (Wndws)]]+(1-SpaceBySpace_2013[[#This Row],[%DL]])*SpaceBySpace_2013[[#This Row],[B. CSF (No Wndws)]]","v":0.27500000000000002},0.25,{"$f":"IF(SpaceBySpace_2013[[#This Row],[B. CSF (Wndws)]]=0.38,0.24,0)","v":0.24},{"$f":"VLOOKUP(K18,'Measure Tables'!$A$2:$C$7,3,FALSE)","v":0.38},"REQ","ADD1","ADD1","REQ","REQ",null,"ADD2","ADD2",null,null,{"$f":"F88","v":"Performing Arts Theater, Lobby"},0,0,0.1,0,0,0.1]
["Health Care - Clinic",0.9,"W/ft2",{"$f":"L5*0.02 + L19*0.03 + L24*0.05 + L26*0.05 + L31*0.02 + L35*0.04 + L38*0.04 + L58*0.15 + L60*0.15 + L61*0.05 + L62*0.1 + L64*0.04 + L66*0.2 + L68*0.06","v":0.2666},null,"Electrical/Mechanical",0.42,"W/ft2",6,0,"Occupancy",{"$f":"SpaceBySpace_2013[[#This Row],[%DL]]*SpaceBySpace_2013[[#This Row],[B. CSF (Wndws)]]+(1-SpaceBySpace_2013[[#This Row],[%DL]])*SpaceBySpace_2013[[#This Row],[B. CSF (No Wndws)]]","v":0.24},0,0.24,0.24,"REQ","ADD1","ADD1",null,"REQ",null,null,null,null,null,{"$f":"F113","v":"Visually Impaired, Lobby"},0,0,0.1,0,0,0.1]
["Health Care - Hospital",1.05,"W/ft2",{"$f":"L5*0.005 + L19*0.04 + L24*0.025 + L26*0.03 + L31*0.05 + L35*0.02 + L40*0.03 + L58*0.15 + L59*0.08 + L60*0.12 + L61*0.02 + L62*0.05 + L64*0.03 + L65*0.08 + L66*0.15 + L67*0.03 + L68*0.02 + L69*0.07","v":0.26954},null,"Loading Dock",0.47,"W/ft2",6,0,{"$f":"IF(AND(SpaceBySpace_2013[[#This Row],[Automatic Daylighting Control]]=\"REQ\",OR(SpaceBySpace_2013[[#This Row],[Automatic Partial OFF]]=\"REQ\",SpaceBySpace_2013[[#This Row],[Partial Automatic ON]]=\"REQ\",SpaceBySpace_2013[[#This Row],[Automatic Full OFF]]=\"REQ\",COUNTIF(SpaceBySpace_2013[[#This Row],[Automatic Partial OFF]:[Scheduled Shutoff]],\"ADD*\")>0)),\"Occupancy + Daylight\",\nIF(SpaceBySpace_2013[[#This Row],[Automatic Daylighting Control]]=\"REQ\",\"Daylight Harvesting\",\nIF(OR(SpaceBySpace_2013[[#This Row],[Partial Automatic ON]]=\"REQ\",SpaceBySpace_2013[[#This Row],[Automatic Partial OFF]]=\"REQ\",SpaceBySpace_2013[[#This Row],[Automatic Full OFF]]=\"REQ\",COUNTIF(SpaceBySpace_2013[[#This Row],[Automatic Partial OFF]:[Scheduled Shutoff]],\"ADD*\")>0),\"Occupancy\",\"\")))","v":"Occupancy + Daylight"},{"$f":"SpaceBySpace_2013[[#This Row],[%DL]]*SpaceBySpace_2013[[#This Row],[B. CSF (Wndws)]]+(1-SpaceBySpace_2013[[#This Row],[%DL]])*SpaceBySpace_2013[[#This Row],[B. CSF (No Wndws)]]","v":0.24},0,{"$f":"IF(SpaceBySpace_2013[[#This Row],[B. CSF (Wndws)]]=0.38,0.24,0)","v":0.24},{"$f":"VLOOKUP(K20,'Measure Tables'!$A$2:$C$7,3,FALSE)","v":0.38},"REQ","ADD1","ADD1",null,"REQ",null,"ADD2","ADD2",null,null,{"$f":"F15","v":"Corridor/Transition (Other)"},0,0,0.1,0,0,0.1]
["Hotel",0.87,"W/ft2",{"$f":"L5*0.005 + L12*0.045 + L15*0.15 + L19*0.02 + L20 * 0.015 + L22*0.025 + L25*0.03 + L30*0.025 + L35*0.015 + L28*0.55 + L70*0.08 + L71*0.04","v":0.26208500000000001},null,"Emergency Vehicle Garage",0.56000000000000005,"W/ft2",4,0,{"$f":"IF(AND(SpaceBySpace_2013[[#This Row],[Automatic Daylighting Control]]=\"REQ\",OR(SpaceBySpace_2013[[#This Row],[Automatic Partial OFF]]=\"REQ\",SpaceBySpace_2013[[#This Row],[Partial Automatic ON]]=\"REQ\",SpaceBySpace_2013[[#This Row],[Automatic Full OFF]]=\"REQ\",COUNTIF(SpaceBySpace_2013[[#This Row],[Automatic Partial OFF]:[Scheduled Shutoff]],\"ADD*\")>0)),\"Occupancy + Daylight\",\nIF(SpaceBySpace_2013[[#This Row],[Automatic Daylighting Control]]=\"REQ\",\"Daylight Harvesting\",\nIF(OR(SpaceBySpace_2013[[#This Row],[Partial Automatic ON]]=\"REQ\",SpaceBySpace_2013[[#This Row],[Automatic Partial OFF]]=\"REQ\",SpaceBySpace_2013[[#This Row],[Automatic Full OFF]]=\"REQ\",COUNTIF(SpaceBySpace_2013[[#This Row],[Automatic Partial OFF]:[Scheduled Shutoff]],\"ADD*\")>0),\"Occupancy\",\"\")))","v":"Occupancy + Daylight"},{"$f":"SpaceBySpace_2013[[#This Row],[%DL]]*SpaceBySpace_2013[[#This Row],[B. CSF (Wndws)]]+(1-SpaceBySpace_2013[[#This Row],[%DL]])*SpaceBySpace_2013[[#This Row],[B. CSF (No Wndws)]]","v":0.24},0,{"$f":"IF(SpaceBySpace_2013[[#This Row],[B. CSF (Wndws)]]=0.38,0.24,0)","v":0.24},{"$f":"VLOOKUP(K21,'Measure Tables'!$A$2:$C$7,3,FALSE)","v":0.38},"REQ","ADD1","ADD1",null,"REQ",null,"ADD2","ADD2",null,null,{"$f":"F58","v":"Hospital/Healthcare, Corridor/Transition"},0,0,0.1,0,0,0.1]
["Laboratory",{"$f":"G24","v":1.81},"W/ft2",{"$f":"L12*0.05 + L15*0.1 + L19*0.02 + L24*0.5 + L26*0.03 + L27*0.06 + L29*0.1 + L31*0.04 + L35*0.025 + L40*0.075","v":0.26044},null,"Food Preparation",1.21,"W/ft2",6,0,{"$f":"IF(AND(SpaceBySpace_2013[[#This Row],[Automatic Daylighting Control]]=\"REQ\",OR(SpaceBySpace_2013[[#This Row],[Automatic Partial OFF]]=\"REQ\",SpaceBySpace_2013[[#This Row],[Partial Automatic ON]]=\"REQ\",SpaceBySpace_2013[[#This Row],[Automatic Full OFF]]=\"REQ\",COUNTIF(SpaceBySpace_2013[[#This Row],[Automatic Partial OFF]:[Scheduled Shutoff]],\"ADD*\")>0)),\"Occupancy + Daylight\",\nIF(SpaceBySpace_2013[[#This Row],[Automatic Daylighting Control]]=\"REQ\",\"Daylight Harvesting\",\nIF(OR(SpaceBySpace_2013[[#This Row],[Partial Automatic ON]]=\"REQ\",SpaceBySpace_2013[[#This Row],[Automatic Partial OFF]]=\"REQ\",SpaceBySpace_2013[[#This Row],[Automatic Full OFF]]=\"REQ\",COUNTIF(SpaceBySpace_2013[[#This Row],[Automatic Partial OFF]:[Scheduled Shutoff]],\"ADD*\")>0),\"Occupancy\",\"\")))","v":"Occupancy + Daylight"},{"$f":"SpaceBySpace_2013[[#This Row],[%DL]]*SpaceBySpace_2013[[#This Row],[B. CSF (Wndws)]]+(1-SpaceBySpace_2013[[#This Row],[%DL]])*SpaceBySpace_2013[[#This Row],[B. CSF (No Wndws)]]","v":0.26100000000000001},0.15,{"$f":"IF(SpaceBySpace_2013[[#This Row],[B. CSF (Wndws)]]=0.38,0.24,0)","v":0.24},{"$f":"VLOOKUP(K22,'Measure Tables'!$A$2:$C$7,3,FALSE)","v":0.38},"REQ","ADD1","ADD1","REQ","REQ",null,"ADD2","ADD2",null,null,{"$f":"F75","v":"Manufacturing, Corridor/Transition"},0,0,0.1,0,0,0.1]
["Library",1.19,"W/ft2",{"$f":"L11*0.05 + L12*0.02 + L13*0.05 + L15*0.08 + L19*0.01 + L31*0.02 + L35*0.02 + L40*0.03 + L72*0.05 + L73*0.12 + L74*0.55","v":0.26197999999999999},null,"Laboratory (Classroom)",1.43,"W/ft2",6,0,{"$f":"IF(AND(SpaceBySpace_2013[[#This Row],[Automatic Daylighting Control]]=\"REQ\",OR(SpaceBySpace_2013[[#This Row],[Automatic Partial OFF]]=\"REQ\",SpaceBySpace_2013[[#This Row],[Partial Automatic ON]]=\"REQ\",SpaceBySpace_2013[[#This Row],[Automatic Full OFF]]=\"REQ\",COUNTIF(SpaceBySpace_2013[[#This Row],[Automatic Partial OFF]:[Scheduled Shutoff]],\"ADD*\")>0)),\"Occupancy + Daylight\",\nIF(SpaceBySpace_2013[[#This Row],[Automatic Daylighting Control]]=\"REQ\",\"Daylight Harvesting\",\nIF(OR(SpaceBySpace_2013[[#This Row],[Partial Automatic ON]]=\"REQ\",SpaceBySpace_2013[[#This Row],[Automatic Partial OFF]]=\"REQ\",SpaceBySpace_2013[[#This Row],[Automatic Full OFF]]=\"REQ\",COUNTIF(SpaceBySpace_2013[[#This Row],[Automatic Partial OFF]:[Scheduled Shutoff]],\"ADD*\")>0),\"Occupancy\",\"\")))","v":"Occupancy + Daylight"},{"$f":"SpaceBySpace_2013[[#This Row],[%DL]]*SpaceBySpace_2013[[#This Row],[B. CSF (Wndws)]]+(1-SpaceBySpace_2013[[#This Row],[%DL]])*SpaceBySpace_2013[[#This Row],[B. CSF (No Wndws)]]","v":0.24},0,{"$f":"IF(SpaceBySpace_2013[[#This Row],[B. CSF (Wndws)]]=0.38,0.24,0)","v":0.24},{"$f":"VLOOKUP(K23,'Measure Tables'!$A$2:$C$7,3,FALSE)","v":0.38},"REQ","ADD1","ADD1","REQ","REQ","REQ","ADD2","ADD2",null,null,{"$f":"F111","v":"Visually Impaired, Corridor/Transition"},0,0,0.1,0,0,0.1]
["Manufacturing Facility",1.17,"W/ft2",{"$f":"L12*0.03 + L20*0.1 + L26*0.03 + L31*0.02 + L33*0.05 + L35*0.02 + L40*0.01 + L75*0.08 + L76*0.15 + L77*0.05 + L79*0.22 + L80*0.15 + L116*0.09","v":0.24889000000000003},null,"Laboratory (Other)",1.81,"W/ft2",6,0,{"$f":"IF(AND(SpaceBySpace_2013[[#This Row],[Automatic Daylighting Control]]=\"REQ\",OR(SpaceBySpace_2013[[#This Row],[Automatic Partial OFF]]=\"REQ\",SpaceBySpace_2013[[#This Row],[Partial Automatic ON]]=\"REQ\",SpaceBySpace_2013[[#This Row],[Automatic Full OFF]]=\"REQ\",COUNTIF(SpaceBySpace_2013[[#This Row],[Automatic Partial OFF]:[Scheduled Shutoff]],\"ADD*\")>0)),\"Occupancy + Daylight\",\nIF(SpaceBySpace_2013[[#This Row],[Automatic Daylighting Control]]=\"REQ\",\"Daylight Harvesting\",\nIF(OR(SpaceBySpace_2013[[#This Row],[Partial Automatic ON]]=\"REQ\",SpaceBySpace_2013[[#This Row],[Automatic Partial OFF]]=\"REQ\",SpaceBySpace_2013[[#This Row],[Automatic Full OFF]]=\"REQ\",COUNTIF(SpaceBySpace_2013[[#This Row],[Automatic Partial OFF]:[Scheduled Shutoff]],\"ADD*\")>0),\"Occupancy\",\"\")))","v":"Occupancy + Daylight"},{"$f":"SpaceBySpace_2013[[#This Row],[%DL]]*SpaceBySpace_2013[[#This Row],[B. CSF (Wndws)]]+(1-SpaceBySpace_2013[[#This Row],[%DL]])*SpaceBySpace_2013[[#This Row],[B. CSF (No Wndws)]]","v":0.24},0,{"$f":"IF(SpaceBySpace_2013[[#This Row],[B. CSF (Wndws)]]=0.38,0.24,0)","v":0.24},{"$f":"VLOOKUP(K24,'Measure Tables'!$A$2:$C$7,3,FALSE)","v":0.38},"REQ","ADD1","ADD1","REQ","REQ",null,"ADD2","ADD2",null,null,{"$f":"F16","v":"Dining Area (Bar Lounge/Leisure)"},0,0,0.1,0,0,0.1]
["Motel",0.87,"W/ft2",{"$f":"L15*0.15 + L19*0.01 + L26*0.1 + L28*0.65 + L29*0.02 + L31*0.01 + L35*0.01 + L38*0.05","v":0.25470000000000004},null,"Lobby (Elevator)",0.64,"W/ft2",4,0,{"$f":"IF(AND(SpaceBySpace_2013[[#This Row],[Automatic Daylighting Control]]=\"REQ\",OR(SpaceBySpace_2013[[#This Row],[Automatic Partial OFF]]=\"REQ\",SpaceBySpace_2013[[#This Row],[Partial Automatic ON]]=\"REQ\",SpaceBySpace_2013[[#This Row],[Automatic Full OFF]]=\"REQ\",COUNTIF(SpaceBySpace_2013[[#This Row],[Automatic Partial OFF]:[Scheduled Shutoff]],\"ADD*\")>0)),\"Occupancy + Daylight\",\nIF(SpaceBySpace_2013[[#This Row],[Automatic Daylighting Control]]=\"REQ\",\"Daylight Harvesting\",\nIF(OR(SpaceBySpace_2013[[#This Row],[Partial Automatic ON]]=\"REQ\",SpaceBySpace_2013[[#This Row],[Automatic Partial OFF]]=\"REQ\",SpaceBySpace_2013[[#This Row],[Automatic Full OFF]]=\"REQ\",COUNTIF(SpaceBySpace_2013[[#This Row],[Automatic Partial OFF]:[Scheduled Shutoff]],\"ADD*\")>0),\"Occupancy\",\"\")))","v":"Occupancy + Daylight"},{"$f":"SpaceBySpace_2013[[#This Row],[%DL]]*SpaceBySpace_2013[[#This Row],[B. CSF (Wndws)]]+(1-SpaceBySpace_2013[[#This Row],[%DL]])*SpaceBySpace_2013[[#This Row],[B. CSF (No Wndws)]]","v":0.24},0,{"$f":"IF(SpaceBySpace_2013[[#This Row],[B. CSF (Wndws)]]=0.38,0.24,0)","v":0.24},{"$f":"VLOOKUP(K25,'Measure Tables'!$A$2:$C$7,3,FALSE)","v":0.38},"REQ",null,null,null,"REQ",null,"ADD2","ADD2",null,null,{"$f":"F17","v":"Dining Area (Family)"},0,0,0.1,0,0,0.1]
["Motion Picture Theater",0.76,"W/ft2",{"$f":"L15*0.1 + L22*0.05 + L31*0.02 + L19*0.01 + L35*0.02 + L40*0.05 + L81*0.63 + L82*0.12","v":0.26765},null,"Lobby (Other)",0.9,"W/ft2",6,0,{"$f":"IF(AND(SpaceBySpace_2013[[#This Row],[Automatic Daylighting Control]]=\"REQ\",OR(SpaceBySpace_2013[[#This Row],[Automatic Partial OFF]]=\"REQ\",SpaceBySpace_2013[[#This Row],[Partial Automatic ON]]=\"REQ\",SpaceBySpace_2013[[#This Row],[Automatic Full OFF]]=\"REQ\",COUNTIF(SpaceBySpace_2013[[#This Row],[Automatic Partial OFF]:[Scheduled Shutoff]],\"ADD*\")>0)),\"Occupancy + Daylight\",\nIF(SpaceBySpace_2013[[#This Row],[Automatic Daylighting Control]]=\"REQ\",\"Daylight Harvesting\",\nIF(OR(SpaceBySpace_2013[[#This Row],[Partial Automatic ON]]=\"REQ\",SpaceBySpace_2013[[#This Row],[Automatic Partial OFF]]=\"REQ\",SpaceBySpace_2013[[#This Row],[Automatic Full OFF]]=\"REQ\",COUNTIF(SpaceBySpace_2013[[#This Row],[Automatic Partial OFF]:[Scheduled Shutoff]],\"ADD*\")>0),\"Occupancy\",\"\")))","v":"Occupancy + Daylight"},{"$f":"SpaceBySpace_2013[[#This Row],[%DL]]*SpaceBySpace_2013[[#This Row],[B. CSF (Wndws)]]+(1-SpaceBySpace_2013[[#This Row],[%DL]])*SpaceBySpace_2013[[#This Row],[B. CSF (No Wndws)]]","v":0.26800000000000002},0.2,{"$f":"IF(SpaceBySpace_2013[[#This Row],[B. CSF (Wndws)]]=0.38,0.24,0)","v":0.24},{"$f":"VLOOKUP(K26,'Measure Tables'!$A$2:$C$7,3,FALSE)","v":0.38},"REQ",null,null,null,"REQ","REQ","ADD2","ADD2",null,null,{"$f":"F18","v":"Dining Area (Other)"},0,0,0.1,0,0,0.1]
["Multi-Family Housing",0.51,"W/ft2",{"$f":"L12*0.045 + L15*0.15 + L19*0.02 + L20 * 0.015 + L22*0.025 + L25*0.03 + L26*0.05 + L30*0.03 + L35*0.015 + L40*0.02 + L28*0.6","v":0.25956500000000005},null,"Locker Room",0.75,"W/ft2",4,0,"Occupancy",{"$f":"SpaceBySpace_2013[[#This Row],[%DL]]*SpaceBySpace_2013[[#This Row],[B. CSF (Wndws)]]+(1-SpaceBySpace_2013[[#This Row],[%DL]])*SpaceBySpace_2013[[#This Row],[B. CSF (No Wndws)]]","v":0.24},0,0.24,0.24,"REQ","ADD1","ADD1","REQ","REQ",null,"REQ",null,null,null,{"$f":"F70","v":"Hotel/Motel, Dining"},0,0,0.1,0,0,0.1]
["Museum",1.02,"W/ft2",{"$f":"L5*0.01 + L12*0.005 + L15*0.05 + L18*0.03 + L19*0.01 + L22*0.03 + L26*0.06 + L31*0.015 + L35*0.02 + L39*0.04 + L83*0.65 + L84*0.08","v":0.25106000000000001},null,"Guest Room",0.91,"W/ft2",6,0,"Occupancy",{"$f":"SpaceBySpace_2013[[#This Row],[%DL]]*SpaceBySpace_2013[[#This Row],[B. CSF (Wndws)]]+(1-SpaceBySpace_2013[[#This Row],[%DL]])*SpaceBySpace_2013[[#This Row],[B. CSF (No Wndws)]]","v":0.24},0,0.24,0.24,"REQ","ADD1","ADD1","REQ","REQ",null,"ADD2","ADD2",null,null,{"$f":"F51","v":"Pentitentiary, Dining"},0,0,0.1,0,0,0.1]
["Office, Large",0.82,"W/ft2",{"$f":"L12*0.05 + L19*0.02 + L26*0.08 + L30*0.02 + L31*0.1 + L33*0.58 + L35*0.03 + L37*0.02 + L38*0.1","v":0.27598000000000006},null,"Laundry/Washing Area",0.6,"W/ft2",4,0,{"$f":"IF(AND(SpaceBySpace_2013[[#This Row],[Automatic Daylighting Control]]=\"REQ\",OR(SpaceBySpace_2013[[#This Row],[Automatic Partial OFF]]=\"REQ\",SpaceBySpace_2013[[#This Row],[Partial Automatic ON]]=\"REQ\",SpaceBySpace_2013[[#This Row],[Automatic Full OFF]]=\"REQ\",COUNTIF(SpaceBySpace_2013[[#This Row],[Automatic Partial OFF]:[Scheduled Shutoff]],\"ADD*\")>0)),\"Occupancy + Daylight\",\nIF(SpaceBySpace_2013[[#This Row],[Automatic Daylighting Control]]=\"REQ\",\"Daylight Harvesting\",\nIF(OR(SpaceBySpace_2013[[#This Row],[Partial Automatic ON]]=\"REQ\",SpaceBySpace_2013[[#This Row],[Automatic Partial OFF]]=\"REQ\",SpaceBySpace_2013[[#This Row],[Automatic Full OFF]]=\"REQ\",COUNTIF(SpaceBySpace_2013[[#This Row],[Automatic Partial OFF]:[Scheduled Shutoff]],\"ADD*\")>0),\"Occupancy\",\"\")))","v":"Occupancy + Daylight"},{"$f":"SpaceBySpace_2013[[#This Row],[%DL]]*SpaceBySpace_2013[[#This Row],[B. CSF (Wndws)]]+(1-SpaceBySpace_2013[[#This Row],[%DL]])*SpaceBySpace_2013[[#This Row],[B. CSF (No Wndws)]]","v":0.24},0,{"$f":"IF(SpaceBySpace_2013[[#This Row],[B. CSF (Wndws)]]=0.38,0.24,0)","v":0.24},{"$f":"VLOOKUP(K29,'Measure Tables'!$A$2:$C$7,3,FALSE)","v":0.38},"REQ","ADD1","ADD1",null,"REQ",null,"ADD2","ADD2",null,null,{"$f":"F112","v":"Visually Impaired, Dining Area"},0,0,0.1,0,0,0.1]
["Office, Small",0.82,"W/ft2",{"$f":"L12*0.08 + L19*0.04 + L26*0.05 + L30*0.02 + L31*0.1 + L33*0.56 + L35*0.05 + L38*0.1","v":0.27892000000000006},null,"Lounge/Recreation",0.73,"W/ft2",6,0,{"$f":"IF(AND(SpaceBySpace_2013[[#This Row],[Automatic Daylighting Control]]=\"REQ\",OR(SpaceBySpace_2013[[#This Row],[Automatic Partial OFF]]=\"REQ\",SpaceBySpace_2013[[#This Row],[Partial Automatic ON]]=\"REQ\",SpaceBySpace_2013[[#This Row],[Automatic Full OFF]]=\"REQ\",COUNTIF(SpaceBySpace_2013[[#This Row],[Automatic Partial OFF]:[Scheduled Shutoff]],\"ADD*\")>0)),\"Occupancy + Daylight\",\nIF(SpaceBySpace_2013[[#This Row],[Automatic Daylighting Control]]=\"REQ\",\"Daylight Harvesting\",\nIF(OR(SpaceBySpace_2013[[#This Row],[Partial Automatic ON]]=\"REQ\",SpaceBySpace_2013[[#This Row],[Automatic Partial OFF]]=\"REQ\",SpaceBySpace_2013[[#This Row],[Automatic Full OFF]]=\"REQ\",COUNTIF(SpaceBySpace_2013[[#This Row],[Automatic Partial OFF]:[Scheduled Shutoff]],\"ADD*\")>0),\"Occupancy\",\"\")))","v":"Occupancy + Daylight"},{"$f":"SpaceBySpace_2013[[#This Row],[%DL]]*SpaceBySpace_2013[[#This Row],[B. CSF (Wndws)]]+(1-SpaceBySpace_2013[[#This Row],[%DL]])*SpaceBySpace_2013[[#This Row],[B. CSF (No Wndws)]]","v":0.26800000000000002},0.2,{"$f":"IF(SpaceBySpace_2013[[#This Row],[B. CSF (Wndws)]]=0.38,0.24,0)","v":0.24},{"$f":"VLOOKUP(K30,'Measure Tables'!$A$2:$C$7,3,FALSE)","v":0.38},"REQ","ADD1","ADD1","REQ","REQ",null,"REQ",null,null,null,{"$f":"F56","v":"Gymnasium/Fitness Center, Exercise Area"},0,0,0.1,0,0,0.1]
["Parking Garage",0.21,"W/ft2",{"$f":"L19*0.01 + L25*0.02 + L37*0.07 + L85*0.9","v":0.27150000000000002},null,"Office, Enclosed ≤250 ft2",1.1100000000000001,"W/ft2",8,0,{"$f":"IF(AND(SpaceBySpace_2013[[#This Row],[Automatic Daylighting Control]]=\"REQ\",OR(SpaceBySpace_2013[[#This Row],[Automatic Partial OFF]]=\"REQ\",SpaceBySpace_2013[[#This Row],[Partial Automatic ON]]=\"REQ\",SpaceBySpace_2013[[#This Row],[Automatic Full OFF]]=\"REQ\",COUNTIF(SpaceBySpace_2013[[#This Row],[Automatic Partial OFF]:[Scheduled Shutoff]],\"ADD*\")>0)),\"Occupancy + Daylight\",\nIF(SpaceBySpace_2013[[#This Row],[Automatic Daylighting Control]]=\"REQ\",\"Daylight Harvesting\",\nIF(OR(SpaceBySpace_2013[[#This Row],[Partial Automatic ON]]=\"REQ\",SpaceBySpace_2013[[#This Row],[Automatic Partial OFF]]=\"REQ\",SpaceBySpace_2013[[#This Row],[Automatic Full OFF]]=\"REQ\",COUNTIF(SpaceBySpace_2013[[#This Row],[Automatic Partial OFF]:[Scheduled Shutoff]],\"ADD*\")>0),\"Occupancy\",\"\")))","v":"Occupancy + Daylight"},{"$f":"SpaceBySpace_2013[[#This Row],[%DL]]*SpaceBySpace_2013[[#This Row],[B. CSF (Wndws)]]+(1-SpaceBySpace_2013[[#This Row],[%DL]])*SpaceBySpace_2013[[#This Row],[B. CSF (No Wndws)]]","v":0.38},1,{"$f":"IF(SpaceBySpace_2013[[#This Row],[B. CSF (Wndws)]]=0.38,0.24,0)","v":0.24},{"$f":"VLOOKUP(K31,'Measure Tables'!$A$2:$C$7,3,FALSE)","v":0.38},"REQ","ADD1","ADD1","REQ","REQ",null,"REQ",null,null,null,{"$f":"F57","v":"Gymnasium/Fitness Center, Playing Area"},0,0,0.1,0,0,0.1]
["Penitentiary",0.81,"W/ft2",{"$f":"L15*0.1 + L19*0.01 + L22*0.02 + L27*0.02 + L31*0.03 + L35*0.02 + L40*0.01 + L47*0.6 + L49*0.04 + L50*0.03 + L51*0.12","v":0.26183999999999996},null,"Office, Enclosed >250 ft2",1.1100000000000001,"W/ft2",8,0,{"$f":"IF(AND(SpaceBySpace_2013[[#This Row],[Automatic Daylighting Control]]=\"REQ\",OR(SpaceBySpace_2013[[#This Row],[Automatic Partial OFF]]=\"REQ\",SpaceBySpace_2013[[#This Row],[Partial Automatic ON]]=\"REQ\",SpaceBySpace_2013[[#This Row],[Automatic Full OFF]]=\"REQ\",COUNTIF(SpaceBySpace_2013[[#This Row],[Automatic Partial OFF]:[Scheduled Shutoff]],\"ADD*\")>0)),\"Occupancy + Daylight\",\nIF(SpaceBySpace_2013[[#This Row],[Automatic Daylighting Control]]=\"REQ\",\"Daylight Harvesting\",\nIF(OR(SpaceBySpace_2013[[#This Row],[Partial Automatic ON]]=\"REQ\",SpaceBySpace_2013[[#This Row],[Automatic Partial OFF]]=\"REQ\",SpaceBySpace_2013[[#This Row],[Automatic Full OFF]]=\"REQ\",COUNTIF(SpaceBySpace_2013[[#This Row],[Automatic Partial OFF]:[Scheduled Shutoff]],\"ADD*\")>0),\"Occupancy\",\"\")))","v":"Occupancy + Daylight"},{"$f":"SpaceBySpace_2013[[#This Row],[%DL]]*SpaceBySpace_2013[[#This Row],[B. CSF (Wndws)]]+(1-SpaceBySpace_2013[[#This Row],[%DL]])*SpaceBySpace_2013[[#This Row],[B. CSF (No Wndws)]]","v":0.38},1,{"$f":"IF(SpaceBySpace_2013[[#This Row],[B. CSF (Wndws)]]=0.38,0.24,0)","v":0.24},{"$f":"VLOOKUP(K32,'Measure Tables'!$A$2:$C$7,3,FALSE)","v":0.38},"REQ","ADD1","ADD1","REQ","REQ",null,"ADD2","ADD2",null,null,{"$f":"$F$94","v":"Retail, Mall Concourse"},0,0,0.1,0,0,0.1]
["Performing Arts Theater",1.39,"W/ft2",{"$f":"L15*0.1 + L19*0.01 + L31*0.04 + L35*0.02 + L40*0.05 + L86*0.5 + L87*0.05 + L88*0.15","v":0.24390000000000001},null,"Office, Open Plan",0.98,"W/ft2",4,0,{"$f":"IF(AND(SpaceBySpace_2013[[#This Row],[Automatic Daylighting Control]]=\"REQ\",OR(SpaceBySpace_2013[[#This Row],[Automatic Partial OFF]]=\"REQ\",SpaceBySpace_2013[[#This Row],[Partial Automatic ON]]=\"REQ\",SpaceBySpace_2013[[#This Row],[Automatic Full OFF]]=\"REQ\",COUNTIF(SpaceBySpace_2013[[#This Row],[Automatic Partial OFF]:[Scheduled Shutoff]],\"ADD*\")>0)),\"Occupancy + Daylight\",\nIF(SpaceBySpace_2013[[#This Row],[Automatic Daylighting Control]]=\"REQ\",\"Daylight Harvesting\",\nIF(OR(SpaceBySpace_2013[[#This Row],[Partial Automatic ON]]=\"REQ\",SpaceBySpace_2013[[#This Row],[Automatic Partial OFF]]=\"REQ\",SpaceBySpace_2013[[#This Row],[Automatic Full OFF]]=\"REQ\",COUNTIF(SpaceBySpace_2013[[#This Row],[Automatic Partial OFF]:[Scheduled Shutoff]],\"ADD*\")>0),\"Occupancy\",\"\")))","v":"Occupancy + Daylight"},{"$f":"SpaceBySpace_2013[[#This Row],[%DL]]*SpaceBySpace_2013[[#This Row],[B. CSF (Wndws)]]+(1-SpaceBySpace_2013[[#This Row],[%DL]])*SpaceBySpace_2013[[#This Row],[B. CSF (No Wndws)]]","v":0.26100000000000001},0.15,{"$f":"IF(SpaceBySpace_2013[[#This Row],[B. CSF (Wndws)]]=0.38,0.24,0)","v":0.24},{"$f":"VLOOKUP(K33,'Measure Tables'!$A$2:$C$7,3,FALSE)","v":0.38},"REQ","ADD1","ADD1","REQ","REQ",null,"ADD2","ADD2",null,null,{"$f":"$F$85","v":"Parking Garage, Interior"},0,0,0.1,0,0,0.1]
["Police Station",0.87,"W/ft2",{"$f":"L15*0.1 + L19*0.01 + L31*0.04 + L35*0.02 + L40*0.05 + L86*0.5 + L87*0.05 + L88*0.15 * 0*0.08","v":0.19740000000000002},null,"Pharmacy Area",1.68,"W/ft2",6,0,{"$f":"IF(AND(SpaceBySpace_2013[[#This Row],[Automatic Daylighting Control]]=\"REQ\",OR(SpaceBySpace_2013[[#This Row],[Automatic Partial OFF]]=\"REQ\",SpaceBySpace_2013[[#This Row],[Partial Automatic ON]]=\"REQ\",SpaceBySpace_2013[[#This Row],[Automatic Full OFF]]=\"REQ\",COUNTIF(SpaceBySpace_2013[[#This Row],[Automatic Partial OFF]:[Scheduled Shutoff]],\"ADD*\")>0)),\"Occupancy + Daylight\",\nIF(SpaceBySpace_2013[[#This Row],[Automatic Daylighting Control]]=\"REQ\",\"Daylight Harvesting\",\nIF(OR(SpaceBySpace_2013[[#This Row],[Partial Automatic ON]]=\"REQ\",SpaceBySpace_2013[[#This Row],[Automatic Partial OFF]]=\"REQ\",SpaceBySpace_2013[[#This Row],[Automatic Full OFF]]=\"REQ\",COUNTIF(SpaceBySpace_2013[[#This Row],[Automatic Partial OFF]:[Scheduled Shutoff]],\"ADD*\")>0),\"Occupancy\",\"\")))","v":"Occupancy + Daylight"},{"$f":"SpaceBySpace_2013[[#This Row],[%DL]]*SpaceBySpace_2013[[#This Row],[B. CSF (Wndws)]]+(1-SpaceBySpace_2013[[#This Row],[%DL]])*SpaceBySpace_2013[[#This Row],[B. CSF (No Wndws)]]","v":0.24},0,{"$f":"IF(SpaceBySpace_2013[[#This Row],[B. CSF (Wndws)]]=0.38,0.24,0)","v":0.24},{"$f":"VLOOKUP(K34,'Measure Tables'!$A$2:$C$7,3,FALSE)","v":0.38},"REQ","ADD1","ADD1","REQ","REQ",null,"ADD2","ADD2"]
["Post Office",0.87,"W/ft2",{"$f":"L14*0.1 + L15*0.05 + L19*0.02 + L26*0.15 + L31*0.02 + L35*0.03 + L38*0.03 + L89*0.6","v":0.25049999999999994},null,"Restroom (Other)",0.98,"W/ft2",8,0,"Occupancy",{"$f":"SpaceBySpace_2013[[#This Row],[%DL]]*SpaceBySpace_2013[[#This Row],[B. CSF (Wndws)]]+(1-SpaceBySpace_2013[[#This Row],[%DL]])*SpaceBySpace_2013[[#This Row],[B. CSF (No Wndws)]]","v":0.24},0,0.24,0.24,"REQ",null,null,null,"REQ",null,"REQ"]
["Religious Building",1,"W/ft2",{"$f":"L5*0.01 + L11*0.08 + L15*0.08 + L19*0.01 + L31*0.02 + L35*0.03 + L39*0.05 + L90*0.5 + L91*0.12 + L92*0.1","v":0.30944000000000005},null,"Seating Area",0.54,"W/ft2",4,0,{"$f":"IF(AND(SpaceBySpace_2013[[#This Row],[Automatic Daylighting Control]]=\"REQ\",OR(SpaceBySpace_2013[[#This Row],[Automatic Partial OFF]]=\"REQ\",SpaceBySpace_2013[[#This Row],[Partial Automatic ON]]=\"REQ\",SpaceBySpace_2013[[#This Row],[Automatic Full OFF]]=\"REQ\",COUNTIF(SpaceBySpace_2013[[#This Row],[Automatic Partial OFF]:[Scheduled Shutoff]],\"ADD*\")>0)),\"Occupancy + Daylight\",\nIF(SpaceBySpace_2013[[#This Row],[Automatic Daylighting Control]]=\"REQ\",\"Daylight Harvesting\",\nIF(OR(SpaceBySpace_2013[[#This Row],[Partial Automatic ON]]=\"REQ\",SpaceBySpace_2013[[#This Row],[Automatic Partial OFF]]=\"REQ\",SpaceBySpace_2013[[#This Row],[Automatic Full OFF]]=\"REQ\",COUNTIF(SpaceBySpace_2013[[#This Row],[Automatic Partial OFF]:[Scheduled Shutoff]],\"ADD*\")>0),\"Occupancy\",\"\")))","v":"Occupancy + Daylight"},{"$f":"SpaceBySpace_2013[[#This Row],[%DL]]*SpaceBySpace_2013[[#This Row],[B. CSF (Wndws)]]+(1-SpaceBySpace_2013[[#This Row],[%DL]])*SpaceBySpace_2013[[#This Row],[B. CSF (No Wndws)]]","v":0.38},1,{"$f":"IF(SpaceBySpace_2013[[#This Row],[B. CSF (Wndws)]]=0.38,0.24,0)","v":0.24},{"$f":"VLOOKUP(K36,'Measure Tables'!$A$2:$C$7,3,FALSE)","v":0.38},"REQ","ADD1","ADD1",null,"REQ",null,"ADD2","ADD2",null,null,"KEY"]
["Retail, Food/Grocery",1.26,"W/ft2",{"$f":"L12*0.03 + L15*0.02 + L19*0.05 + L20*0.08 + L22*0.1 + L31*0.03 + L34*0.05 + L35*0.02 + L39*0.04 + L95*0.58","v":0.26407999999999998},null,"Stairwell",0.69,"W/ft2",10,0,"Occupancy",{"$f":"SpaceBySpace_2013[[#This Row],[%DL]]*SpaceBySpace_2013[[#This Row],[B. CSF (Wndws)]]+(1-SpaceBySpace_2013[[#This Row],[%DL]])*SpaceBySpace_2013[[#This Row],[B. CSF (No Wndws)]]","v":0.24},0,0.24,0.24,"REQ",null,null,"REQ","REQ","REQ","ADD2","ADD2",null,null,null,"Daylighting Required (If windows are present)"]
["Retail, Commodity",1.26,"W/ft2",{"$f":"L5*0.02 + L15*0.03 + L19*0.01 + L20*0.05 + L31*0.02 + L35*0.02 + L39*0.15 + L93*0.05 + L95*0.65","v":0.26135000000000003},null,"Storage (<50 ft2)",1.24,"W/ft2",6,0,{"$f":"IF(AND(SpaceBySpace_2013[[#This Row],[Automatic Daylighting Control]]=\"REQ\",OR(SpaceBySpace_2013[[#This Row],[Automatic Partial OFF]]=\"REQ\",SpaceBySpace_2013[[#This Row],[Partial Automatic ON]]=\"REQ\",SpaceBySpace_2013[[#This Row],[Automatic Full OFF]]=\"REQ\",COUNTIF(SpaceBySpace_2013[[#This Row],[Automatic Partial OFF]:[Scheduled Shutoff]],\"ADD*\")>0)),\"Occupancy + Daylight\",\nIF(SpaceBySpace_2013[[#This Row],[Automatic Daylighting Control]]=\"REQ\",\"Daylight Harvesting\",\nIF(OR(SpaceBySpace_2013[[#This Row],[Partial Automatic ON]]=\"REQ\",SpaceBySpace_2013[[#This Row],[Automatic Partial OFF]]=\"REQ\",SpaceBySpace_2013[[#This Row],[Automatic Full OFF]]=\"REQ\",COUNTIF(SpaceBySpace_2013[[#This Row],[Automatic Partial OFF]:[Scheduled Shutoff]],\"ADD*\")>0),\"Occupancy\",\"\")))","v":"Occupancy"},{"$f":"SpaceBySpace_2013[[#This Row],[%DL]]*SpaceBySpace_2013[[#This Row],[B. CSF (Wndws)]]+(1-SpaceBySpace_2013[[#This Row],[%DL]])*SpaceBySpace_2013[[#This Row],[B. CSF (No Wndws)]]","v":0.24},0,0.24,{"$f":"VLOOKUP(K38,'Measure Tables'!$A$2:$C$7,3,FALSE)","v":0.24},"REQ",null,null,null,null,null,"ADD2","ADD2"]
["Retail, Specialty",1.26,"W/ft2",{"$f":"L5*0.02 + L15*0.03 + L19*0.01 + L20*0.05 + L31*0.02 + L35*0.02 + L39*0.15 + L95*0.7","v":0.26239999999999997},null,"Storage (≥50ft2, ≤1000 ft2)",0.63,"W/ft2",6,0,"Occupancy",{"$f":"SpaceBySpace_2013[[#This Row],[%DL]]*SpaceBySpace_2013[[#This Row],[B. CSF (Wndws)]]+(1-SpaceBySpace_2013[[#This Row],[%DL]])*SpaceBySpace_2013[[#This Row],[B. CSF (No Wndws)]]","v":0.24},0,0.24,0.24,"REQ","ADD1","ADD1","REQ","REQ",null,"ADD2","ADD2",null,null,null,"Implies that Occupancy Controls are Required"]
["Primary School",0.87,"W/ft2",{"$f":"L11*0.5 + D23*0.12 + L23*0.04 + D33*0.08 + L18*0.06 + L22*0.04 + D30*0.08 + L15*0.03 + L35*0.02 + L19*0.01 * L38*0.02","v":0.25791472000000004},null,"Storage (Other)",0.63,"W/ft2",6,0,"Occupancy",{"$f":"SpaceBySpace_2013[[#This Row],[%DL]]*SpaceBySpace_2013[[#This Row],[B. CSF (Wndws)]]+(1-SpaceBySpace_2013[[#This Row],[%DL]])*SpaceBySpace_2013[[#This Row],[B. CSF (No Wndws)]]","v":0.24},0,0.24,0.24,"REQ","ADD1","ADD1","REQ","REQ","REQ","ADD2","ADD2"]
["Sec. School",0.87,"W/ft2",{"$f":"D40","v":0.25791472000000004},null,"Vehicular Maintenance Area",0.67,"W/ft2",4,0,{"$f":"IF(AND(SpaceBySpace_2013[[#This Row],[Automatic Daylighting Control]]=\"REQ\",OR(SpaceBySpace_2013[[#This Row],[Automatic Partial OFF]]=\"REQ\",SpaceBySpace_2013[[#This Row],[Partial Automatic ON]]=\"REQ\",SpaceBySpace_2013[[#This Row],[Automatic Full OFF]]=\"REQ\",COUNTIF(SpaceBySpace_2013[[#This Row],[Automatic Partial OFF]:[Scheduled Shutoff]],\"ADD*\")>0)),\"Occupancy + Daylight\",\nIF(SpaceBySpace_2013[[#This Row],[Automatic Daylighting Control]]=\"REQ\",\"Daylight Harvesting\",\nIF(OR(SpaceBySpace_2013[[#This Row],[Partial Automatic ON]]=\"REQ\",SpaceBySpace_2013[[#This Row],[Automatic Partial OFF]]=\"REQ\",SpaceBySpace_2013[[#This Row],[Automatic Full OFF]]=\"REQ\",COUNTIF(SpaceBySpace_2013[[#This Row],[Automatic Partial OFF]:[Scheduled Shutoff]],\"ADD*\")>0),\"Occupancy\",\"\")))","v":"Occupancy + Daylight"},{"$f":"SpaceBySpace_2013[[#This Row],[%DL]]*SpaceBySpace_2013[[#This Row],[B. CSF (Wndws)]]+(1-SpaceBySpace_2013[[#This Row],[%DL]])*SpaceBySpace_2013[[#This Row],[B. CSF (No Wndws)]]","v":0.24},0,{"$f":"IF(SpaceBySpace_2013[[#This Row],[B. CSF (Wndws)]]=0.38,0.24,0)","v":0.24},{"$f":"VLOOKUP(K41,'Measure Tables'!$A$2:$C$7,3,FALSE)","v":0.38},"REQ","ADD1","ADD1","REQ","REQ",null,"ADD2","ADD2",null,null,null,"May imply that occupancy controls are required (IF REQ or in combination with Automatic OFF)"]
["University",0.87,"W/ft2",{"$f":"D41","v":0.25791472000000004},null,"Workshop",1.59,"W/ft2",6,0,{"$f":"IF(AND(SpaceBySpace_2013[[#This Row],[Automatic Daylighting Control]]=\"REQ\",OR(SpaceBySpace_2013[[#This Row],[Automatic Partial OFF]]=\"REQ\",SpaceBySpace_2013[[#This Row],[Partial Automatic ON]]=\"REQ\",SpaceBySpace_2013[[#This Row],[Automatic Full OFF]]=\"REQ\",COUNTIF(SpaceBySpace_2013[[#This Row],[Automatic Partial OFF]:[Scheduled Shutoff]],\"ADD*\")>0)),\"Occupancy + Daylight\",\nIF(SpaceBySpace_2013[[#This Row],[Automatic Daylighting Control]]=\"REQ\",\"Daylight Harvesting\",\nIF(OR(SpaceBySpace_2013[[#This Row],[Partial Automatic ON]]=\"REQ\",SpaceBySpace_2013[[#This Row],[Automatic Partial OFF]]=\"REQ\",SpaceBySpace_2013[[#This Row],[Automatic Full OFF]]=\"REQ\",COUNTIF(SpaceBySpace_2013[[#This Row],[Automatic Partial OFF]:[Scheduled Shutoff]],\"ADD*\")>0),\"Occupancy\",\"\")))","v":"Occupancy + Daylight"},{"$f":"SpaceBySpace_2013[[#This Row],[%DL]]*SpaceBySpace_2013[[#This Row],[B. CSF (Wndws)]]+(1-SpaceBySpace_2013[[#This Row],[%DL]])*SpaceBySpace_2013[[#This Row],[B. CSF (No Wndws)]]","v":0.24},0,{"$f":"IF(SpaceBySpace_2013[[#This Row],[B. CSF (Wndws)]]=0.38,0.24,0)","v":0.24},{"$f":"VLOOKUP(K42,'Measure Tables'!$A$2:$C$7,3,FALSE)","v":0.38},"REQ","ADD1","ADD1","REQ","REQ",null,"ADD2","ADD2"]
["Sports Arena",0.91,"W/ft2",{"$f":"L26*0.1 + D30*0.05 + L100*0.45 + L101*0.2 + D12*0.08 + D11*0.12","v":0.25174599999999997},null,"Bank/Office, Banking Activity Area",1.01,"W/ft2",4,0,{"$f":"IF(AND(SpaceBySpace_2013[[#This Row],[Automatic Daylighting Control]]=\"REQ\",OR(SpaceBySpace_2013[[#This Row],[Automatic Partial OFF]]=\"REQ\",SpaceBySpace_2013[[#This Row],[Partial Automatic ON]]=\"REQ\",SpaceBySpace_2013[[#This Row],[Automatic Full OFF]]=\"REQ\",COUNTIF(SpaceBySpace_2013[[#This Row],[Automatic Partial OFF]:[Scheduled Shutoff]],\"ADD*\")>0)),\"Occupancy + Daylight\",\nIF(SpaceBySpace_2013[[#This Row],[Automatic Daylighting Control]]=\"REQ\",\"Daylight Harvesting\",\nIF(OR(SpaceBySpace_2013[[#This Row],[Partial Automatic ON]]=\"REQ\",SpaceBySpace_2013[[#This Row],[Automatic Partial OFF]]=\"REQ\",SpaceBySpace_2013[[#This Row],[Automatic Full OFF]]=\"REQ\",COUNTIF(SpaceBySpace_2013[[#This Row],[Automatic Partial OFF]:[Scheduled Shutoff]],\"ADD*\")>0),\"Occupancy\",\"\")))","v":"Occupancy + Daylight"},{"$f":"SpaceBySpace_2013[[#This Row],[%DL]]*SpaceBySpace_2013[[#This Row],[B. CSF (Wndws)]]+(1-SpaceBySpace_2013[[#This Row],[%DL]])*SpaceBySpace_2013[[#This Row],[B. CSF (No Wndws)]]","v":0.24},0,{"$f":"IF(SpaceBySpace_2013[[#This Row],[B. CSF (Wndws)]]=0.38,0.24,0)","v":0.24},{"$f":"VLOOKUP(K43,'Measure Tables'!$A$2:$C$7,3,FALSE)","v":0.38},"REQ","ADD1","ADD1","REQ","REQ",null,"ADD2","ADD2",null,null,null,"Has no implications"]
["Town Hall",0.89,"W/ft2",{"$f":"D8","v":0.26877000000000001},null,"Convention Center, Audience Seating",0.82,"W/ft2",6,0,{"$f":"IF(AND(SpaceBySpace_2013[[#This Row],[Automatic Daylighting Control]]=\"REQ\",OR(SpaceBySpace_2013[[#This Row],[Automatic Partial OFF]]=\"REQ\",SpaceBySpace_2013[[#This Row],[Partial Automatic ON]]=\"REQ\",SpaceBySpace_2013[[#This Row],[Automatic Full OFF]]=\"REQ\",COUNTIF(SpaceBySpace_2013[[#This Row],[Automatic Partial OFF]:[Scheduled Shutoff]],\"ADD*\")>0)),\"Occupancy + Daylight\",\nIF(SpaceBySpace_2013[[#This Row],[Automatic Daylighting Control]]=\"REQ\",\"Daylight Harvesting\",\nIF(OR(SpaceBySpace_2013[[#This Row],[Partial Automatic ON]]=\"REQ\",SpaceBySpace_2013[[#This Row],[Automatic Partial OFF]]=\"REQ\",SpaceBySpace_2013[[#This Row],[Automatic Full OFF]]=\"REQ\",COUNTIF(SpaceBySpace_2013[[#This Row],[Automatic Partial OFF]:[Scheduled Shutoff]],\"ADD*\")>0),\"Occupancy\",\"\")))","v":"Occupancy + Daylight"},{"$f":"SpaceBySpace_2013[[#This Row],[%DL]]*SpaceBySpace_2013[[#This Row],[B. CSF (Wndws)]]+(1-SpaceBySpace_2013[[#This Row],[%DL]])*SpaceBySpace_2013[[#This Row],[B. CSF (No Wndws)]]","v":0.24},0,{"$f":"IF(SpaceBySpace_2013[[#This Row],[B. CSF (Wndws)]]=0.38,0.24,0)","v":0.24},{"$f":"VLOOKUP(K44,'Measure Tables'!$A$2:$C$7,3,FALSE)","v":0.38},"REQ","ADD1","ADD1","REQ","REQ",null,"ADD2","ADD2"]
["Transportation",0.7,"W/ft2",{"$f":"D6","v":0.21279000000000001},null,"Convention Center, Exhibit Space",1.45,"W/ft2",4,0,{"$f":"IF(AND(SpaceBySpace_2013[[#This Row],[Automatic Daylighting Control]]=\"REQ\",OR(SpaceBySpace_2013[[#This Row],[Automatic Partial OFF]]=\"REQ\",SpaceBySpace_2013[[#This Row],[Partial Automatic ON]]=\"REQ\",SpaceBySpace_2013[[#This Row],[Automatic Full OFF]]=\"REQ\",COUNTIF(SpaceBySpace_2013[[#This Row],[Automatic Partial OFF]:[Scheduled Shutoff]],\"ADD*\")>0)),\"Occupancy + Daylight\",\nIF(SpaceBySpace_2013[[#This Row],[Automatic Daylighting Control]]=\"REQ\",\"Daylight Harvesting\",\nIF(OR(SpaceBySpace_2013[[#This Row],[Partial Automatic ON]]=\"REQ\",SpaceBySpace_2013[[#This Row],[Automatic Partial OFF]]=\"REQ\",SpaceBySpace_2013[[#This Row],[Automatic Full OFF]]=\"REQ\",COUNTIF(SpaceBySpace_2013[[#This Row],[Automatic Partial OFF]:[Scheduled Shutoff]],\"ADD*\")>0),\"Occupancy\",\"\")))","v":"Occupancy + Daylight"},{"$f":"SpaceBySpace_2013[[#This Row],[%DL]]*SpaceBySpace_2013[[#This Row],[B. CSF (Wndws)]]+(1-SpaceBySpace_2013[[#This Row],[%DL]])*SpaceBySpace_2013[[#This Row],[B. CSF (No Wndws)]]","v":0.24},0,{"$f":"IF(SpaceBySpace_2013[[#This Row],[B. CSF (Wndws)]]=0.38,0.24,0)","v":0.24},{"$f":"VLOOKUP(K45,'Measure Tables'!$A$2:$C$7,3,FALSE)","v":0.38},"REQ","ADD1","ADD1","REQ","REQ",null,"ADD2","ADD2"]
["Warehouse, Refrigerated",0.66,"W/ft2",{"$f":"L116*0.1+L117*0.85 + D30*0.05","v":0.24194599999999999},null,"Courthouse/Police Station/Pentitentiary, Courtroom",1.72,"W/ft2",6,0,{"$f":"IF(AND(SpaceBySpace_2013[[#This Row],[Automatic Daylighting Control]]=\"REQ\",OR(SpaceBySpace_2013[[#This Row],[Automatic Partial OFF]]=\"REQ\",SpaceBySpace_2013[[#This Row],[Partial Automatic ON]]=\"REQ\",SpaceBySpace_2013[[#This Row],[Automatic Full OFF]]=\"REQ\",COUNTIF(SpaceBySpace_2013[[#This Row],[Automatic Partial OFF]:[Scheduled Shutoff]],\"ADD*\")>0)),\"Occupancy + Daylight\",\nIF(SpaceBySpace_2013[[#This Row],[Automatic Daylighting Control]]=\"REQ\",\"Daylight Harvesting\",\nIF(OR(SpaceBySpace_2013[[#This Row],[Partial Automatic ON]]=\"REQ\",SpaceBySpace_2013[[#This Row],[Automatic Partial OFF]]=\"REQ\",SpaceBySpace_2013[[#This Row],[Automatic Full OFF]]=\"REQ\",COUNTIF(SpaceBySpace_2013[[#This Row],[Automatic Partial OFF]:[Scheduled Shutoff]],\"ADD*\")>0),\"Occupancy\",\"\")))","v":"Occupancy + Daylight"},{"$f":"SpaceBySpace_2013[[#This Row],[%DL]]*SpaceBySpace_2013[[#This Row],[B. CSF (Wndws)]]+(1-SpaceBySpace_2013[[#This Row],[%DL]])*SpaceBySpace_2013[[#This Row],[B. CSF (No Wndws)]]","v":0.24},0,{"$f":"IF(SpaceBySpace_2013[[#This Row],[B. CSF (Wndws)]]=0.38,0.24,0)","v":0.24},{"$f":"VLOOKUP(K46,'Measure Tables'!$A$2:$C$7,3,FALSE)","v":0.38},"REQ","ADD1","ADD1","REQ","REQ",null,"ADD2","ADD2"]
["Warehouse, Commercial",0.66,"W/ft2",{"$f":"D46","v":0.24194599999999999},null,"Courthouse/Police Station/Pentitentiary, Confinement Cells",0.81,"W/ft2",6,0,{"$f":"IF(AND(SpaceBySpace_2013[[#This Row],[Automatic Daylighting Control]]=\"REQ\",OR(SpaceBySpace_2013[[#This Row],[Automatic Partial OFF]]=\"REQ\",SpaceBySpace_2013[[#This Row],[Partial Automatic ON]]=\"REQ\",SpaceBySpace_2013[[#This Row],[Automatic Full OFF]]=\"REQ\",COUNTIF(SpaceBySpace_2013[[#This Row],[Automatic Partial OFF]:[Scheduled Shutoff]],\"ADD*\")>0)),\"Occupancy + Daylight\",\nIF(SpaceBySpace_2013[[#This Row],[Automatic Daylighting Control]]=\"REQ\",\"Daylight Harvesting\",\nIF(OR(SpaceBySpace_2013[[#This Row],[Partial Automatic ON]]=\"REQ\",SpaceBySpace_2013[[#This Row],[Automatic Partial OFF]]=\"REQ\",SpaceBySpace_2013[[#This Row],[Automatic Full OFF]]=\"REQ\",COUNTIF(SpaceBySpace_2013[[#This Row],[Automatic Partial OFF]:[Scheduled Shutoff]],\"ADD*\")>0),\"Occupancy\",\"\")))","v":"Occupancy + Daylight"},{"$f":"SpaceBySpace_2013[[#This Row],[%DL]]*SpaceBySpace_2013[[#This Row],[B. CSF (Wndws)]]+(1-SpaceBySpace_2013[[#This Row],[%DL]])*SpaceBySpace_2013[[#This Row],[B. CSF (No Wndws)]]","v":0.24},0,{"$f":"IF(SpaceBySpace_2013[[#This Row],[B. CSF (Wndws)]]=0.38,0.24,0)","v":0.24},{"$f":"VLOOKUP(K47,'Measure Tables'!$A$2:$C$7,3,FALSE)","v":0.38},"REQ","ADD1","ADD1","REQ","REQ",null,"ADD2","ADD2"]
["Warehouse, Industrial",0.66,"W/ft2",0.24194599999999999,null,"Courthouse/Police Station/Pentitentiary, Judges' Chambers",1.17,"W/ft2",8,0,{"$f":"IF(AND(SpaceBySpace_2013[[#This Row],[Automatic Daylighting Control]]=\"REQ\",OR(SpaceBySpace_2013[[#This Row],[Automatic Partial OFF]]=\"REQ\",SpaceBySpace_2013[[#This Row],[Partial Automatic ON]]=\"REQ\",SpaceBySpace_2013[[#This Row],[Automatic Full OFF]]=\"REQ\",COUNTIF(SpaceBySpace_2013[[#This Row],[Automatic Partial OFF]:[Scheduled Shutoff]],\"ADD*\")>0)),\"Occupancy + Daylight\",\nIF(SpaceBySpace_2013[[#This Row],[Automatic Daylighting Control]]=\"REQ\",\"Daylight Harvesting\",\nIF(OR(SpaceBySpace_2013[[#This Row],[Partial Automatic ON]]=\"REQ\",SpaceBySpace_2013[[#This Row],[Automatic Partial OFF]]=\"REQ\",SpaceBySpace_2013[[#This Row],[Automatic Full OFF]]=\"REQ\",COUNTIF(SpaceBySpace_2013[[#This Row],[Automatic Partial OFF]:[Scheduled Shutoff]],\"ADD*\")>0),\"Occupancy\",\"\")))","v":"Occupancy + Daylight"},{"$f":"SpaceBySpace_2013[[#This Row],[%DL]]*SpaceBySpace_2013[[#This Row],[B. CSF (Wndws)]]+(1-SpaceBySpace_2013[[#This Row],[%DL]])*SpaceBySpace_2013[[#This Row],[B. CSF (No Wndws)]]","v":0.24},0,{"$f":"IF(SpaceBySpace_2013[[#This Row],[B. CSF (Wndws)]]=0.38,0.24,0)","v":0.24},{"$f":"VLOOKUP(K48,'Measure Tables'!$A$2:$C$7,3,FALSE)","v":0.38},"REQ","ADD1","ADD1","REQ","REQ",null,"ADD2","ADD2"]
["Workshop",1.19,"W/ft2",{"$f":"L12*0.02 + L15*0.05 + L19*0.01 + L26*0.04 + L31*0.02 + L35*0.03 + L40*0.03 + L117*0.8","v":0.25022},null,"Pentitentiary, Audience Seating",0.28000000000000003,"W/ft2",4,0,{"$f":"IF(AND(SpaceBySpace_2013[[#This Row],[Automatic Daylighting Control]]=\"REQ\",OR(SpaceBySpace_2013[[#This Row],[Automatic Partial OFF]]=\"REQ\",SpaceBySpace_2013[[#This Row],[Partial Automatic ON]]=\"REQ\",SpaceBySpace_2013[[#This Row],[Automatic Full OFF]]=\"REQ\",COUNTIF(SpaceBySpace_2013[[#This Row],[Automatic Partial OFF]:[Scheduled Shutoff]],\"ADD*\")>0)),\"Occupancy + Daylight\",\nIF(SpaceBySpace_2013[[#This Row],[Automatic Daylighting Control]]=\"REQ\",\"Daylight Harvesting\",\nIF(OR(SpaceBySpace_2013[[#This Row],[Partial Automatic ON]]=\"REQ\",SpaceBySpace_2013[[#This Row],[Automatic Partial OFF]]=\"REQ\",SpaceBySpace_2013[[#This Row],[Automatic Full OFF]]=\"REQ\",COUNTIF(SpaceBySpace_2013[[#This Row],[Automatic Partial OFF]:[Scheduled Shutoff]],\"ADD*\")>0),\"Occupancy\",\"\")))","v":"Occupancy + Daylight"},{"$f":"SpaceBySpace_2013[[#This Row],[%DL]]*SpaceBySpace_2013[[#This Row],[B. CSF (Wndws)]]+(1-SpaceBySpace_2013[[#This Row],[%DL]])*SpaceBySpace_2013[[#This Row],[B. CSF (No Wndws)]]","v":0.38},1,{"$f":"IF(SpaceBySpace_2013[[#This Row],[B. CSF (Wndws)]]=0.38,0.24,0)","v":0.24},{"$f":"VLOOKUP(K49,'Measure Tables'!$A$2:$C$7,3,FALSE)","v":0.38},"REQ","ADD1","ADD1",null,"REQ",null,"ADD2","ADD2"]
[null,null,null,null,null,"Pentitentiary, Classrooms/Lecture/Training",1.34,"W/ft2",4,0,{"$f":"IF(AND(SpaceBySpace_2013[[#This Row],[Automatic Daylighting Control]]=\"REQ\",OR(SpaceBySpace_2013[[#This Row],[Automatic Partial OFF]]=\"REQ\",SpaceBySpace_2013[[#This Row],[Partial Automatic ON]]=\"REQ\",SpaceBySpace_2013[[#This Row],[Automatic Full OFF]]=\"REQ\",COUNTIF(SpaceBySpace_2013[[#This Row],[Automatic Partial OFF]:[Scheduled Shutoff]],\"ADD*\")>0)),\"Occupancy + Daylight\",\nIF(SpaceBySpace_2013[[#This Row],[Automatic Daylighting Control]]=\"REQ\",\"Daylight Harvesting\",\nIF(OR(SpaceBySpace_2013[[#This Row],[Partial Automatic ON]]=\"REQ\",SpaceBySpace_2013[[#This Row],[Automatic Partial OFF]]=\"REQ\",SpaceBySpace_2013[[#This Row],[Automatic Full OFF]]=\"REQ\",COUNTIF(SpaceBySpace_2013[[#This Row],[Automatic Partial OFF]:[Scheduled Shutoff]],\"ADD*\")>0),\"Occupancy\",\"\")))","v":"Occupancy + Daylight"},{"$f":"SpaceBySpace_2013[[#This Row],[%DL]]*SpaceBySpace_2013[[#This Row],[B. CSF (Wndws)]]+(1-SpaceBySpace_2013[[#This Row],[%DL]])*SpaceBySpace_2013[[#This Row],[B. CSF (No Wndws)]]","v":0.31},0.5,{"$f":"IF(SpaceBySpace_2013[[#This Row],[B. CSF (Wndws)]]=0.38,0.24,0)","v":0.24},{"$f":"VLOOKUP(K50,'Measure Tables'!$A$2:$C$7,3,FALSE)","v":0.38},"REQ","ADD1","ADD1","REQ","REQ",null,"REQ"]
[null,null,null,null,null,"Pentitentiary, Dining",0.96,"W/ft2",6,0,{"$f":"IF(AND(SpaceBySpace_2013[[#This Row],[Automatic Daylighting Control]]=\"REQ\",OR(SpaceBySpace_2013[[#This Row],[Automatic Partial OFF]]=\"REQ\",SpaceBySpace_2013[[#This Row],[Partial Automatic ON]]=\"REQ\",SpaceBySpace_2013[[#This Row],[Automatic Full OFF]]=\"REQ\",COUNTIF(SpaceBySpace_2013[[#This Row],[Automatic Partial OFF]:[Scheduled Shutoff]],\"ADD*\")>0)),\"Occupancy + Daylight\",\nIF(SpaceBySpace_2013[[#This Row],[Automatic Daylighting Control]]=\"REQ\",\"Daylight Harvesting\",\nIF(OR(SpaceBySpace_2013[[#This Row],[Partial Automatic ON]]=\"REQ\",SpaceBySpace_2013[[#This Row],[Automatic Partial OFF]]=\"REQ\",SpaceBySpace_2013[[#This Row],[Automatic Full OFF]]=\"REQ\",COUNTIF(SpaceBySpace_2013[[#This Row],[Automatic Partial OFF]:[Scheduled Shutoff]],\"ADD*\")>0),\"Occupancy\",\"\")))","v":"Occupancy + Daylight"},{"$f":"SpaceBySpace_2013[[#This Row],[%DL]]*SpaceBySpace_2013[[#This Row],[B. CSF (Wndws)]]+(1-SpaceBySpace_2013[[#This Row],[%DL]])*SpaceBySpace_2013[[#This Row],[B. CSF (No Wndws)]]","v":0.26100000000000001},0.15,{"$f":"IF(SpaceBySpace_2013[[#This Row],[B. CSF (Wndws)]]=0.38,0.24,0)","v":0.24},{"$f":"VLOOKUP(K51,'Measure Tables'!$A$2:$C$7,3,FALSE)","v":0.38},"REQ","ADD1","ADD1","REQ","REQ",null,"ADD2","ADD2"]
[null,null,null,null,null,"Dormitory, Living Quarters",0.38,"W/ft2",8,0,"No Controls",{"$f":"SpaceBySpace_2013[[#This Row],[%DL]]*SpaceBySpace_2013[[#This Row],[B. CSF (Wndws)]]+(1-SpaceBySpace_2013[[#This Row],[%DL]])*SpaceBySpace_2013[[#This Row],[B. CSF (No Wndws)]]","v":0},0,0,0,"REQ"]
[null,null,null,null,null,"Fire Station, Engine Room",0.67,"W/ft2",4,0,{"$f":"IF(AND(SpaceBySpace_2013[[#This Row],[Automatic Daylighting Control]]=\"REQ\",OR(SpaceBySpace_2013[[#This Row],[Automatic Partial OFF]]=\"REQ\",SpaceBySpace_2013[[#This Row],[Partial Automatic ON]]=\"REQ\",SpaceBySpace_2013[[#This Row],[Automatic Full OFF]]=\"REQ\",COUNTIF(SpaceBySpace_2013[[#This Row],[Automatic Partial OFF]:[Scheduled Shutoff]],\"ADD*\")>0)),\"Occupancy + Daylight\",\nIF(SpaceBySpace_2013[[#This Row],[Automatic Daylighting Control]]=\"REQ\",\"Daylight Harvesting\",\nIF(OR(SpaceBySpace_2013[[#This Row],[Partial Automatic ON]]=\"REQ\",SpaceBySpace_2013[[#This Row],[Automatic Partial OFF]]=\"REQ\",SpaceBySpace_2013[[#This Row],[Automatic Full OFF]]=\"REQ\",COUNTIF(SpaceBySpace_2013[[#This Row],[Automatic Partial OFF]:[Scheduled Shutoff]],\"ADD*\")>0),\"Occupancy\",\"\")))","v":"Occupancy + Daylight"},{"$f":"SpaceBySpace_2013[[#This Row],[%DL]]*SpaceBySpace_2013[[#This Row],[B. CSF (Wndws)]]+(1-SpaceBySpace_2013[[#This Row],[%DL]])*SpaceBySpace_2013[[#This Row],[B. CSF (No Wndws)]]","v":0.24},0,{"$f":"IF(SpaceBySpace_2013[[#This Row],[B. CSF (Wndws)]]=0.38,0.24,0)","v":0.24},{"$f":"VLOOKUP(K53,'Measure Tables'!$A$2:$C$7,3,FALSE)","v":0.38},"REQ","ADD1","ADD1","REQ","REQ",null,"ADD2","ADD2"]
[null,null,null,null,null,"Fire Station, Sleeping Quarters",0.22,"W/ft2",6,0,"No Controls",{"$f":"SpaceBySpace_2013[[#This Row],[%DL]]*SpaceBySpace_2013[[#This Row],[B. CSF (Wndws)]]+(1-SpaceBySpace_2013[[#This Row],[%DL]])*SpaceBySpace_2013[[#This Row],[B. CSF (No Wndws)]]","v":0},0,0,0,"REQ",null,null,null,"REQ",null,"ADD2","ADD2"]
[null,null,null,null,null,"Gymnasium, Audience Seating",0.65,"W/ft2",6,0,"Occupancy + Daylight",{"$f":"SpaceBySpace_2013[[#This Row],[%DL]]*SpaceBySpace_2013[[#This Row],[B. CSF (Wndws)]]+(1-SpaceBySpace_2013[[#This Row],[%DL]])*SpaceBySpace_2013[[#This Row],[B. CSF (No Wndws)]]","v":0.38},1,0.24,0.38,"REQ","ADD1","ADD1","REQ"]
[null,null,null,null,null,"Gymnasium/Fitness Center, Exercise Area",0.72,"W/ft2",4,0,{"$f":"IF(AND(SpaceBySpace_2013[[#This Row],[Automatic Daylighting Control]]=\"REQ\",OR(SpaceBySpace_2013[[#This Row],[Automatic Partial OFF]]=\"REQ\",SpaceBySpace_2013[[#This Row],[Partial Automatic ON]]=\"REQ\",SpaceBySpace_2013[[#This Row],[Automatic Full OFF]]=\"REQ\",COUNTIF(SpaceBySpace_2013[[#This Row],[Automatic Partial OFF]:[Scheduled Shutoff]],\"ADD*\")>0)),\"Occupancy + Daylight\",\nIF(SpaceBySpace_2013[[#This Row],[Automatic Daylighting Control]]=\"REQ\",\"Daylight Harvesting\",\nIF(OR(SpaceBySpace_2013[[#This Row],[Partial Automatic ON]]=\"REQ\",SpaceBySpace_2013[[#This Row],[Automatic Partial OFF]]=\"REQ\",SpaceBySpace_2013[[#This Row],[Automatic Full OFF]]=\"REQ\",COUNTIF(SpaceBySpace_2013[[#This Row],[Automatic Partial OFF]:[Scheduled Shutoff]],\"ADD*\")>0),\"Occupancy\",\"\")))","v":"Occupancy + Daylight"},{"$f":"SpaceBySpace_2013[[#This Row],[%DL]]*SpaceBySpace_2013[[#This Row],[B. CSF (Wndws)]]+(1-SpaceBySpace_2013[[#This Row],[%DL]])*SpaceBySpace_2013[[#This Row],[B. CSF (No Wndws)]]","v":0.26100000000000001},0.15,{"$f":"IF(SpaceBySpace_2013[[#This Row],[B. CSF (Wndws)]]=0.38,0.24,0)","v":0.24},{"$f":"VLOOKUP(K56,'Measure Tables'!$A$2:$C$7,3,FALSE)","v":0.38},"REQ","ADD1","ADD1","REQ","REQ",null,"ADD2","ADD2"]
[null,null,null,null,null,"Gymnasium/Fitness Center, Playing Area",1.2,"W/ft2",4,0,{"$f":"IF(AND(SpaceBySpace_2013[[#This Row],[Automatic Daylighting Control]]=\"REQ\",OR(SpaceBySpace_2013[[#This Row],[Automatic Partial OFF]]=\"REQ\",SpaceBySpace_2013[[#This Row],[Partial Automatic ON]]=\"REQ\",SpaceBySpace_2013[[#This Row],[Automatic Full OFF]]=\"REQ\",COUNTIF(SpaceBySpace_2013[[#This Row],[Automatic Partial OFF]:[Scheduled Shutoff]],\"ADD*\")>0)),\"Occupancy + Daylight\",\nIF(SpaceBySpace_2013[[#This Row],[Automatic Daylighting Control]]=\"REQ\",\"Daylight Harvesting\",\nIF(OR(SpaceBySpace_2013[[#This Row],[Partial Automatic ON]]=\"REQ\",SpaceBySpace_2013[[#This Row],[Automatic Partial OFF]]=\"REQ\",SpaceBySpace_2013[[#This Row],[Automatic Full OFF]]=\"REQ\",COUNTIF(SpaceBySpace_2013[[#This Row],[Automatic Partial OFF]:[Scheduled Shutoff]],\"ADD*\")>0),\"Occupancy\",\"\")))","v":"Occupancy + Daylight"},{"$f":"SpaceBySpace_2013[[#This Row],[%DL]]*SpaceBySpace_2013[[#This Row],[B. CSF (Wndws)]]+(1-SpaceBySpace_2013[[#This Row],[%DL]])*SpaceBySpace_2013[[#This Row],[B. CSF (No Wndws)]]","v":0.26100000000000001},0.15,{"$f":"IF(SpaceBySpace_2013[[#This Row],[B. CSF (Wndws)]]=0.38,0.24,0)","v":0.24},{"$f":"VLOOKUP(K57,'Measure Tables'!$A$2:$C$7,3,FALSE)","v":0.38},"REQ","ADD1","ADD1","REQ","REQ",null,"ADD2","ADD2"]
[null,null,null,null,null,"Hospital/Healthcare, Corridor/Transition",0.99,"W/ft2",0,8,{"$f":"IF(AND(SpaceBySpace_2013[[#This Row],[Automatic Daylighting Control]]=\"REQ\",OR(SpaceBySpace_2013[[#This Row],[Automatic Partial OFF]]=\"REQ\",SpaceBySpace_2013[[#This Row],[Partial Automatic ON]]=\"REQ\",SpaceBySpace_2013[[#This Row],[Automatic Full OFF]]=\"REQ\",COUNTIF(SpaceBySpace_2013[[#This Row],[Automatic Partial OFF]:[Scheduled Shutoff]],\"ADD*\")>0)),\"Occupancy + Daylight\",\nIF(SpaceBySpace_2013[[#This Row],[Automatic Daylighting Control]]=\"REQ\",\"Daylight Harvesting\",\nIF(OR(SpaceBySpace_2013[[#This Row],[Partial Automatic ON]]=\"REQ\",SpaceBySpace_2013[[#This Row],[Automatic Partial OFF]]=\"REQ\",SpaceBySpace_2013[[#This Row],[Automatic Full OFF]]=\"REQ\",COUNTIF(SpaceBySpace_2013[[#This Row],[Automatic Partial OFF]:[Scheduled Shutoff]],\"ADD*\")>0),\"Occupancy\",\"\")))","v":"Occupancy + Daylight"},{"$f":"SpaceBySpace_2013[[#This Row],[%DL]]*SpaceBySpace_2013[[#This Row],[B. CSF (Wndws)]]+(1-SpaceBySpace_2013[[#This Row],[%DL]])*SpaceBySpace_2013[[#This Row],[B. CSF (No Wndws)]]","v":0.254},0.1,{"$f":"IF(SpaceBySpace_2013[[#This Row],[B. CSF (Wndws)]]=0.38,0.24,0)","v":0.24},{"$f":"VLOOKUP(K58,'Measure Tables'!$A$2:$C$7,3,FALSE)","v":0.38},"REQ",null,null,null,"REQ","ADD2","ADD2","ADD2"]
[null,null,null,null,null,"Hospital/Healthcare, Emergency",2.2599999999999998,"W/ft2",6,0,"Occupancy",{"$f":"SpaceBySpace_2013[[#This Row],[%DL]]*SpaceBySpace_2013[[#This Row],[B. CSF (Wndws)]]+(1-SpaceBySpace_2013[[#This Row],[%DL]])*SpaceBySpace_2013[[#This Row],[B. CSF (No Wndws)]]","v":0.24},0,0.24,{"$f":"VLOOKUP(K59,'Measure Tables'!$A$2:$C$7,3,FALSE)","v":0.24},"REQ",null,null,"REQ","REQ",null,"ADD2","ADD2"]
[null,null,null,null,null,"Hospital/Healthcare, Exam/Treatment",1.66,"W/ft2",8,0,"Occupancy",{"$f":"SpaceBySpace_2013[[#This Row],[%DL]]*SpaceBySpace_2013[[#This Row],[B. CSF (Wndws)]]+(1-SpaceBySpace_2013[[#This Row],[%DL]])*SpaceBySpace_2013[[#This Row],[B. CSF (No Wndws)]]","v":0.24},0,0.24,{"$f":"VLOOKUP(K60,'Measure Tables'!$A$2:$C$7,3,FALSE)","v":0.24},"REQ",null,null,"REQ","REQ",null,"ADD2","ADD2"]
[null,null,null,null,null,"Hospital/Healthcare, Lounge/Recreation",0.92,"W/ft2",6,0,{"$f":"IF(AND(SpaceBySpace_2013[[#This Row],[Automatic Daylighting Control]]=\"REQ\",OR(SpaceBySpace_2013[[#This Row],[Automatic Partial OFF]]=\"REQ\",SpaceBySpace_2013[[#This Row],[Partial Automatic ON]]=\"REQ\",SpaceBySpace_2013[[#This Row],[Automatic Full OFF]]=\"REQ\",COUNTIF(SpaceBySpace_2013[[#This Row],[Automatic Partial OFF]:[Scheduled Shutoff]],\"ADD*\")>0)),\"Occupancy + Daylight\",\nIF(SpaceBySpace_2013[[#This Row],[Automatic Daylighting Control]]=\"REQ\",\"Daylight Harvesting\",\nIF(OR(SpaceBySpace_2013[[#This Row],[Partial Automatic ON]]=\"REQ\",SpaceBySpace_2013[[#This Row],[Automatic Partial OFF]]=\"REQ\",SpaceBySpace_2013[[#This Row],[Automatic Full OFF]]=\"REQ\",COUNTIF(SpaceBySpace_2013[[#This Row],[Automatic Partial OFF]:[Scheduled Shutoff]],\"ADD*\")>0),\"Occupancy\",\"\")))","v":"Occupancy + Daylight"},{"$f":"SpaceBySpace_2013[[#This Row],[%DL]]*SpaceBySpace_2013[[#This Row],[B. CSF (Wndws)]]+(1-SpaceBySpace_2013[[#This Row],[%DL]])*SpaceBySpace_2013[[#This Row],[B. CSF (No Wndws)]]","v":0.31},0.5,{"$f":"IF(SpaceBySpace_2013[[#This Row],[B. CSF (Wndws)]]=0.38,0.24,0)","v":0.24},{"$f":"VLOOKUP(K61,'Measure Tables'!$A$2:$C$7,3,FALSE)","v":0.38},"REQ",null,null,"REQ","REQ",null,"REQ"]
[null,null,null,null,null,"Hospital/Healthcare, Medical Supply",1.27,"W/ft2",6,0,"Occupancy",{"$f":"SpaceBySpace_2013[[#This Row],[%DL]]*SpaceBySpace_2013[[#This Row],[B. CSF (Wndws)]]+(1-SpaceBySpace_2013[[#This Row],[%DL]])*SpaceBySpace_2013[[#This Row],[B. CSF (No Wndws)]]","v":0.24},0,0.24,{"$f":"VLOOKUP(K62,'Measure Tables'!$A$2:$C$7,3,FALSE)","v":0.24},"REQ",null,null,"REQ","REQ","REQ","ADD2","ADD2"]
[null,null,null,null,null,"Hospital/Healthcare, Nursery",0.88,"W/ft2",6,0,{"$f":"IF(AND(SpaceBySpace_2013[[#This Row],[Automatic Daylighting Control]]=\"REQ\",OR(SpaceBySpace_2013[[#This Row],[Automatic Partial OFF]]=\"REQ\",SpaceBySpace_2013[[#This Row],[Partial Automatic ON]]=\"REQ\",SpaceBySpace_2013[[#This Row],[Automatic Full OFF]]=\"REQ\",COUNTIF(SpaceBySpace_2013[[#This Row],[Automatic Partial OFF]:[Scheduled Shutoff]],\"ADD*\")>0)),\"Occupancy + Daylight\",\nIF(SpaceBySpace_2013[[#This Row],[Automatic Daylighting Control]]=\"REQ\",\"Daylight Harvesting\",\nIF(OR(SpaceBySpace_2013[[#This Row],[Partial Automatic ON]]=\"REQ\",SpaceBySpace_2013[[#This Row],[Automatic Partial OFF]]=\"REQ\",SpaceBySpace_2013[[#This Row],[Automatic Full OFF]]=\"REQ\",COUNTIF(SpaceBySpace_2013[[#This Row],[Automatic Partial OFF]:[Scheduled Shutoff]],\"ADD*\")>0),\"Occupancy\",\"\")))","v":"Occupancy + Daylight"},{"$f":"SpaceBySpace_2013[[#This Row],[%DL]]*SpaceBySpace_2013[[#This Row],[B. CSF (Wndws)]]+(1-SpaceBySpace_2013[[#This Row],[%DL]])*SpaceBySpace_2013[[#This Row],[B. CSF (No Wndws)]]","v":0.31},0.5,{"$f":"IF(SpaceBySpace_2013[[#This Row],[B. CSF (Wndws)]]=0.38,0.24,0)","v":0.24},{"$f":"VLOOKUP(K63,'Measure Tables'!$A$2:$C$7,3,FALSE)","v":0.38},"REQ",null,null,"REQ","REQ",null,"ADD2","ADD2"]
[null,null,null,null,null,"Hospital/Healthcare, Nurses' Station",0.71,"W/ft2",6,0,"Occupancy",{"$f":"SpaceBySpace_2013[[#This Row],[%DL]]*SpaceBySpace_2013[[#This Row],[B. CSF (Wndws)]]+(1-SpaceBySpace_2013[[#This Row],[%DL]])*SpaceBySpace_2013[[#This Row],[B. CSF (No Wndws)]]","v":0.24},0,0.24,{"$f":"VLOOKUP(K64,'Measure Tables'!$A$2:$C$7,3,FALSE)","v":0.24},"REQ",null,null,"REQ","REQ",null,"ADD2","ADD2"]
[null,null,null,null,null,"Hospital/Healthcare, Operating Room",2.48,"W/ft2",6,0,{"$f":"IF(AND(SpaceBySpace_2013[[#This Row],[Automatic Daylighting Control]]=\"REQ\",OR(SpaceBySpace_2013[[#This Row],[Automatic Partial OFF]]=\"REQ\",SpaceBySpace_2013[[#This Row],[Partial Automatic ON]]=\"REQ\",SpaceBySpace_2013[[#This Row],[Automatic Full OFF]]=\"REQ\",COUNTIF(SpaceBySpace_2013[[#This Row],[Automatic Partial OFF]:[Scheduled Shutoff]],\"ADD*\")>0)),\"Occupancy + Daylight\",\nIF(SpaceBySpace_2013[[#This Row],[Automatic Daylighting Control]]=\"REQ\",\"Daylight Harvesting\",\nIF(OR(SpaceBySpace_2013[[#This Row],[Partial Automatic ON]]=\"REQ\",SpaceBySpace_2013[[#This Row],[Automatic Partial OFF]]=\"REQ\",SpaceBySpace_2013[[#This Row],[Automatic Full OFF]]=\"REQ\",COUNTIF(SpaceBySpace_2013[[#This Row],[Automatic Partial OFF]:[Scheduled Shutoff]],\"ADD*\")>0),\"Occupancy\",\"\")))","v":"Occupancy"},{"$f":"SpaceBySpace_2013[[#This Row],[%DL]]*SpaceBySpace_2013[[#This Row],[B. CSF (Wndws)]]+(1-SpaceBySpace_2013[[#This Row],[%DL]])*SpaceBySpace_2013[[#This Row],[B. CSF (No Wndws)]]","v":0.24},0,0.24,{"$f":"VLOOKUP(K65,'Measure Tables'!$A$2:$C$7,3,FALSE)","v":0.24},"REQ",null,null,"REQ",null,null,"ADD2","ADD2"]
[null,null,null,null,null,"Hospital/Healthcare, Patient Room",0.62,"W/ft2",6,0,{"$f":"IF(AND(SpaceBySpace_2013[[#This Row],[Automatic Daylighting Control]]=\"REQ\",OR(SpaceBySpace_2013[[#This Row],[Automatic Partial OFF]]=\"REQ\",SpaceBySpace_2013[[#This Row],[Partial Automatic ON]]=\"REQ\",SpaceBySpace_2013[[#This Row],[Automatic Full OFF]]=\"REQ\",COUNTIF(SpaceBySpace_2013[[#This Row],[Automatic Partial OFF]:[Scheduled Shutoff]],\"ADD*\")>0)),\"Occupancy + Daylight\",\nIF(SpaceBySpace_2013[[#This Row],[Automatic Daylighting Control]]=\"REQ\",\"Daylight Harvesting\",\nIF(OR(SpaceBySpace_2013[[#This Row],[Partial Automatic ON]]=\"REQ\",SpaceBySpace_2013[[#This Row],[Automatic Partial OFF]]=\"REQ\",SpaceBySpace_2013[[#This Row],[Automatic Full OFF]]=\"REQ\",COUNTIF(SpaceBySpace_2013[[#This Row],[Automatic Partial OFF]:[Scheduled Shutoff]],\"ADD*\")>0),\"Occupancy\",\"\")))","v":"Occupancy + Daylight"},{"$f":"SpaceBySpace_2013[[#This Row],[%DL]]*SpaceBySpace_2013[[#This Row],[B. CSF (Wndws)]]+(1-SpaceBySpace_2013[[#This Row],[%DL]])*SpaceBySpace_2013[[#This Row],[B. CSF (No Wndws)]]","v":0.31},0.5,{"$f":"IF(SpaceBySpace_2013[[#This Row],[B. CSF (Wndws)]]=0.38,0.24,0)","v":0.24},{"$f":"VLOOKUP(K66,'Measure Tables'!$A$2:$C$7,3,FALSE)","v":0.38},"REQ",null,null,"REQ","REQ",null,"ADD2","ADD2"]
[null,null,null,null,null,"Hospital/Healthcare, Physical Therapy",0.91,"W/ft2",6,0,{"$f":"IF(AND(SpaceBySpace_2013[[#This Row],[Automatic Daylighting Control]]=\"REQ\",OR(SpaceBySpace_2013[[#This Row],[Automatic Partial OFF]]=\"REQ\",SpaceBySpace_2013[[#This Row],[Partial Automatic ON]]=\"REQ\",SpaceBySpace_2013[[#This Row],[Automatic Full OFF]]=\"REQ\",COUNTIF(SpaceBySpace_2013[[#This Row],[Automatic Partial OFF]:[Scheduled Shutoff]],\"ADD*\")>0)),\"Occupancy + Daylight\",\nIF(SpaceBySpace_2013[[#This Row],[Automatic Daylighting Control]]=\"REQ\",\"Daylight Harvesting\",\nIF(OR(SpaceBySpace_2013[[#This Row],[Partial Automatic ON]]=\"REQ\",SpaceBySpace_2013[[#This Row],[Automatic Partial OFF]]=\"REQ\",SpaceBySpace_2013[[#This Row],[Automatic Full OFF]]=\"REQ\",COUNTIF(SpaceBySpace_2013[[#This Row],[Automatic Partial OFF]:[Scheduled Shutoff]],\"ADD*\")>0),\"Occupancy\",\"\")))","v":"Occupancy + Daylight"},{"$f":"SpaceBySpace_2013[[#This Row],[%DL]]*SpaceBySpace_2013[[#This Row],[B. CSF (Wndws)]]+(1-SpaceBySpace_2013[[#This Row],[%DL]])*SpaceBySpace_2013[[#This Row],[B. CSF (No Wndws)]]","v":0.31},0.5,{"$f":"IF(SpaceBySpace_2013[[#This Row],[B. CSF (Wndws)]]=0.38,0.24,0)","v":0.24},{"$f":"VLOOKUP(K67,'Measure Tables'!$A$2:$C$7,3,FALSE)","v":0.38},"REQ",null,null,"REQ","REQ",null,"ADD2","ADD2"]
[null,null,null,null,null,"Hospital/Healthcare, Radiology/Imaging",1.51,"W/ft2",6,0,{"$f":"IF(AND(SpaceBySpace_2013[[#This Row],[Automatic Daylighting Control]]=\"REQ\",OR(SpaceBySpace_2013[[#This Row],[Automatic Partial OFF]]=\"REQ\",SpaceBySpace_2013[[#This Row],[Partial Automatic ON]]=\"REQ\",SpaceBySpace_2013[[#This Row],[Automatic Full OFF]]=\"REQ\",COUNTIF(SpaceBySpace_2013[[#This Row],[Automatic Partial OFF]:[Scheduled Shutoff]],\"ADD*\")>0)),\"Occupancy + Daylight\",\nIF(SpaceBySpace_2013[[#This Row],[Automatic Daylighting Control]]=\"REQ\",\"Daylight Harvesting\",\nIF(OR(SpaceBySpace_2013[[#This Row],[Partial Automatic ON]]=\"REQ\",SpaceBySpace_2013[[#This Row],[Automatic Partial OFF]]=\"REQ\",SpaceBySpace_2013[[#This Row],[Automatic Full OFF]]=\"REQ\",COUNTIF(SpaceBySpace_2013[[#This Row],[Automatic Partial OFF]:[Scheduled Shutoff]],\"ADD*\")>0),\"Occupancy\",\"\")))","v":"Occupancy"},{"$f":"SpaceBySpace_2013[[#This Row],[%DL]]*SpaceBySpace_2013[[#This Row],[B. CSF (Wndws)]]+(1-SpaceBySpace_2013[[#This Row],[%DL]])*SpaceBySpace_2013[[#This Row],[B. CSF (No Wndws)]]","v":0.24},0,0.24,{"$f":"VLOOKUP(K68,'Measure Tables'!$A$2:$C$7,3,FALSE)","v":0.24},"REQ",null,null,"REQ",null,null,"ADD2","ADD2"]
[null,null,null,null,null,"Hospital/Healthcare, Recovery",1.1499999999999999,"W/ft2",6,0,{"$f":"IF(AND(SpaceBySpace_2013[[#This Row],[Automatic Daylighting Control]]=\"REQ\",OR(SpaceBySpace_2013[[#This Row],[Automatic Partial OFF]]=\"REQ\",SpaceBySpace_2013[[#This Row],[Partial Automatic ON]]=\"REQ\",SpaceBySpace_2013[[#This Row],[Automatic Full OFF]]=\"REQ\",COUNTIF(SpaceBySpace_2013[[#This Row],[Automatic Partial OFF]:[Scheduled Shutoff]],\"ADD*\")>0)),\"Occupancy + Daylight\",\nIF(SpaceBySpace_2013[[#This Row],[Automatic Daylighting Control]]=\"REQ\",\"Daylight Harvesting\",\nIF(OR(SpaceBySpace_2013[[#This Row],[Partial Automatic ON]]=\"REQ\",SpaceBySpace_2013[[#This Row],[Automatic Partial OFF]]=\"REQ\",SpaceBySpace_2013[[#This Row],[Automatic Full OFF]]=\"REQ\",COUNTIF(SpaceBySpace_2013[[#This Row],[Automatic Partial OFF]:[Scheduled Shutoff]],\"ADD*\")>0),\"Occupancy\",\"\")))","v":"Occupancy + Daylight"},{"$f":"SpaceBySpace_2013[[#This Row],[%DL]]*SpaceBySpace_2013[[#This Row],[B. CSF (Wndws)]]+(1-SpaceBySpace_2013[[#This Row],[%DL]])*SpaceBySpace_2013[[#This Row],[B. CSF (No Wndws)]]","v":0.31},0.5,{"$f":"IF(SpaceBySpace_2013[[#This Row],[B. CSF (Wndws)]]=0.38,0.24,0)","v":0.24},{"$f":"VLOOKUP(K69,'Measure Tables'!$A$2:$C$7,3,FALSE)","v":0.38},"REQ",null,null,"REQ","REQ",null,"ADD2","ADD2"]
[null,null,null,null,null,"Hotel/Motel, Dining",0.65,"W/ft2",4,0,{"$f":"IF(AND(SpaceBySpace_2013[[#This Row],[Automatic Daylighting Control]]=\"REQ\",OR(SpaceBySpace_2013[[#This Row],[Automatic Partial OFF]]=\"REQ\",SpaceBySpace_2013[[#This Row],[Partial Automatic ON]]=\"REQ\",SpaceBySpace_2013[[#This Row],[Automatic Full OFF]]=\"REQ\",COUNTIF(SpaceBySpace_2013[[#This Row],[Automatic Partial OFF]:[Scheduled Shutoff]],\"ADD*\")>0)),\"Occupancy + Daylight\",\nIF(SpaceBySpace_2013[[#This Row],[Automatic Daylighting Control]]=\"REQ\",\"Daylight Harvesting\",\nIF(OR(SpaceBySpace_2013[[#This Row],[Partial Automatic ON]]=\"REQ\",SpaceBySpace_2013[[#This Row],[Automatic Partial OFF]]=\"REQ\",SpaceBySpace_2013[[#This Row],[Automatic Full OFF]]=\"REQ\",COUNTIF(SpaceBySpace_2013[[#This Row],[Automatic Partial OFF]:[Scheduled Shutoff]],\"ADD*\")>0),\"Occupancy\",\"\")))","v":"Occupancy + Daylight"},{"$f":"SpaceBySpace_2013[[#This Row],[%DL]]*SpaceBySpace_2013[[#This Row],[B. CSF (Wndws)]]+(1-SpaceBySpace_2013[[#This Row],[%DL]])*SpaceBySpace_2013[[#This Row],[B. CSF (No Wndws)]]","v":0.26800000000000002},0.2,{"$f":"IF(SpaceBySpace_2013[[#This Row],[B. CSF (Wndws)]]=0.38,0.24,0)","v":0.24},{"$f":"VLOOKUP(K70,'Measure Tables'!$A$2:$C$7,3,FALSE)","v":0.38},"REQ","ADD1","ADD1","REQ","REQ",null,"ADD2","ADD2"]
[null,null,null,null,null,"Hotel/Motel, Lobby",1.06,"W/ft2",4,0,{"$f":"IF(AND(SpaceBySpace_2013[[#This Row],[Automatic Daylighting Control]]=\"REQ\",OR(SpaceBySpace_2013[[#This Row],[Automatic Partial OFF]]=\"REQ\",SpaceBySpace_2013[[#This Row],[Partial Automatic ON]]=\"REQ\",SpaceBySpace_2013[[#This Row],[Automatic Full OFF]]=\"REQ\",COUNTIF(SpaceBySpace_2013[[#This Row],[Automatic Partial OFF]:[Scheduled Shutoff]],\"ADD*\")>0)),\"Occupancy + Daylight\",\nIF(SpaceBySpace_2013[[#This Row],[Automatic Daylighting Control]]=\"REQ\",\"Daylight Harvesting\",\nIF(OR(SpaceBySpace_2013[[#This Row],[Partial Automatic ON]]=\"REQ\",SpaceBySpace_2013[[#This Row],[Automatic Partial OFF]]=\"REQ\",SpaceBySpace_2013[[#This Row],[Automatic Full OFF]]=\"REQ\",COUNTIF(SpaceBySpace_2013[[#This Row],[Automatic Partial OFF]:[Scheduled Shutoff]],\"ADD*\")>0),\"Occupancy\",\"\")))","v":"Occupancy + Daylight"},{"$f":"SpaceBySpace_2013[[#This Row],[%DL]]*SpaceBySpace_2013[[#This Row],[B. CSF (Wndws)]]+(1-SpaceBySpace_2013[[#This Row],[%DL]])*SpaceBySpace_2013[[#This Row],[B. CSF (No Wndws)]]","v":0.26800000000000002},0.2,{"$f":"IF(SpaceBySpace_2013[[#This Row],[B. CSF (Wndws)]]=0.38,0.24,0)","v":0.24},{"$f":"VLOOKUP(K71,'Measure Tables'!$A$2:$C$7,3,FALSE)","v":0.38},"REQ",null,null,null,"REQ",null,"ADD2","ADD2"]
[null,null,null,null,null,"Library, Card File/Catologing",0.72,"W/ft2",4,0,{"$f":"IF(AND(SpaceBySpace_2013[[#This Row],[Automatic Daylighting Control]]=\"REQ\",OR(SpaceBySpace_2013[[#This Row],[Automatic Partial OFF]]=\"REQ\",SpaceBySpace_2013[[#This Row],[Partial Automatic ON]]=\"REQ\",SpaceBySpace_2013[[#This Row],[Automatic Full OFF]]=\"REQ\",COUNTIF(SpaceBySpace_2013[[#This Row],[Automatic Partial OFF]:[Scheduled Shutoff]],\"ADD*\")>0)),\"Occupancy + Daylight\",\nIF(SpaceBySpace_2013[[#This Row],[Automatic Daylighting Control]]=\"REQ\",\"Daylight Harvesting\",\nIF(OR(SpaceBySpace_2013[[#This Row],[Partial Automatic ON]]=\"REQ\",SpaceBySpace_2013[[#This Row],[Automatic Partial OFF]]=\"REQ\",SpaceBySpace_2013[[#This Row],[Automatic Full OFF]]=\"REQ\",COUNTIF(SpaceBySpace_2013[[#This Row],[Automatic Partial OFF]:[Scheduled Shutoff]],\"ADD*\")>0),\"Occupancy\",\"\")))","v":"Occupancy + Daylight"},{"$f":"SpaceBySpace_2013[[#This Row],[%DL]]*SpaceBySpace_2013[[#This Row],[B. CSF (Wndws)]]+(1-SpaceBySpace_2013[[#This Row],[%DL]])*SpaceBySpace_2013[[#This Row],[B. CSF (No Wndws)]]","v":0.24},0,{"$f":"IF(SpaceBySpace_2013[[#This Row],[B. CSF (Wndws)]]=0.38,0.24,0)","v":0.24},{"$f":"VLOOKUP(K72,'Measure Tables'!$A$2:$C$7,3,FALSE)","v":0.38},"REQ","ADD1","ADD1","REQ","REQ",null,"ADD2","ADD2"]
[null,null,null,null,null,"Library, Reading Area",1.06,"W/ft2",4,0,{"$f":"IF(AND(SpaceBySpace_2013[[#This Row],[Automatic Daylighting Control]]=\"REQ\",OR(SpaceBySpace_2013[[#This Row],[Automatic Partial OFF]]=\"REQ\",SpaceBySpace_2013[[#This Row],[Partial Automatic ON]]=\"REQ\",SpaceBySpace_2013[[#This Row],[Automatic Full OFF]]=\"REQ\",COUNTIF(SpaceBySpace_2013[[#This Row],[Automatic Partial OFF]:[Scheduled Shutoff]],\"ADD*\")>0)),\"Occupancy + Daylight\",\nIF(SpaceBySpace_2013[[#This Row],[Automatic Daylighting Control]]=\"REQ\",\"Daylight Harvesting\",\nIF(OR(SpaceBySpace_2013[[#This Row],[Partial Automatic ON]]=\"REQ\",SpaceBySpace_2013[[#This Row],[Automatic Partial OFF]]=\"REQ\",SpaceBySpace_2013[[#This Row],[Automatic Full OFF]]=\"REQ\",COUNTIF(SpaceBySpace_2013[[#This Row],[Automatic Partial OFF]:[Scheduled Shutoff]],\"ADD*\")>0),\"Occupancy\",\"\")))","v":"Occupancy + Daylight"},{"$f":"SpaceBySpace_2013[[#This Row],[%DL]]*SpaceBySpace_2013[[#This Row],[B. CSF (Wndws)]]+(1-SpaceBySpace_2013[[#This Row],[%DL]])*SpaceBySpace_2013[[#This Row],[B. CSF (No Wndws)]]","v":0.254},0.1,{"$f":"IF(SpaceBySpace_2013[[#This Row],[B. CSF (Wndws)]]=0.38,0.24,0)","v":0.24},{"$f":"VLOOKUP(K73,'Measure Tables'!$A$2:$C$7,3,FALSE)","v":0.38},"REQ","ADD1","ADD1","REQ","REQ",null,"ADD2","ADD2"]
[null,null,null,null,null,"Library, Stacks",1.71,"W/ft2",4,0,{"$f":"IF(AND(SpaceBySpace_2013[[#This Row],[Automatic Daylighting Control]]=\"REQ\",OR(SpaceBySpace_2013[[#This Row],[Automatic Partial OFF]]=\"REQ\",SpaceBySpace_2013[[#This Row],[Partial Automatic ON]]=\"REQ\",SpaceBySpace_2013[[#This Row],[Automatic Full OFF]]=\"REQ\",COUNTIF(SpaceBySpace_2013[[#This Row],[Automatic Partial OFF]:[Scheduled Shutoff]],\"ADD*\")>0)),\"Occupancy + Daylight\",\nIF(SpaceBySpace_2013[[#This Row],[Automatic Daylighting Control]]=\"REQ\",\"Daylight Harvesting\",\nIF(OR(SpaceBySpace_2013[[#This Row],[Partial Automatic ON]]=\"REQ\",SpaceBySpace_2013[[#This Row],[Automatic Partial OFF]]=\"REQ\",SpaceBySpace_2013[[#This Row],[Automatic Full OFF]]=\"REQ\",COUNTIF(SpaceBySpace_2013[[#This Row],[Automatic Partial OFF]:[Scheduled Shutoff]],\"ADD*\")>0),\"Occupancy\",\"\")))","v":"Occupancy + Daylight"},{"$f":"SpaceBySpace_2013[[#This Row],[%DL]]*SpaceBySpace_2013[[#This Row],[B. CSF (Wndws)]]+(1-SpaceBySpace_2013[[#This Row],[%DL]])*SpaceBySpace_2013[[#This Row],[B. CSF (No Wndws)]]","v":0.254},0.1,{"$f":"IF(SpaceBySpace_2013[[#This Row],[B. CSF (Wndws)]]=0.38,0.24,0)","v":0.24},{"$f":"VLOOKUP(K74,'Measure Tables'!$A$2:$C$7,3,FALSE)","v":0.38},"REQ","ADD1","ADD1","REQ","REQ","REQ","ADD2","ADD2"]
[null,null,null,null,null,"Manufacturing, Corridor/Transition",0.41,"W/ft2",0,8,{"$f":"IF(AND(SpaceBySpace_2013[[#This Row],[Automatic Daylighting Control]]=\"REQ\",OR(SpaceBySpace_2013[[#This Row],[Automatic Partial OFF]]=\"REQ\",SpaceBySpace_2013[[#This Row],[Partial Automatic ON]]=\"REQ\",SpaceBySpace_2013[[#This Row],[Automatic Full OFF]]=\"REQ\",COUNTIF(SpaceBySpace_2013[[#This Row],[Automatic Partial OFF]:[Scheduled Shutoff]],\"ADD*\")>0)),\"Occupancy + Daylight\",\nIF(SpaceBySpace_2013[[#This Row],[Automatic Daylighting Control]]=\"REQ\",\"Daylight Harvesting\",\nIF(OR(SpaceBySpace_2013[[#This Row],[Partial Automatic ON]]=\"REQ\",SpaceBySpace_2013[[#This Row],[Automatic Partial OFF]]=\"REQ\",SpaceBySpace_2013[[#This Row],[Automatic Full OFF]]=\"REQ\",COUNTIF(SpaceBySpace_2013[[#This Row],[Automatic Partial OFF]:[Scheduled Shutoff]],\"ADD*\")>0),\"Occupancy\",\"\")))","v":"Occupancy + Daylight"},{"$f":"SpaceBySpace_2013[[#This Row],[%DL]]*SpaceBySpace_2013[[#This Row],[B. CSF (Wndws)]]+(1-SpaceBySpace_2013[[#This Row],[%DL]])*SpaceBySpace_2013[[#This Row],[B. CSF (No Wndws)]]","v":0.24},0,{"$f":"IF(SpaceBySpace_2013[[#This Row],[B. CSF (Wndws)]]=0.38,0.24,0)","v":0.24},{"$f":"VLOOKUP(K75,'Measure Tables'!$A$2:$C$7,3,FALSE)","v":0.38},"REQ",null,null,null,"REQ",null,"ADD2","ADD2"]
[null,null,null,null,null,"Manufacturing, Detailed Manufacturing",1.29,"W/ft2",4,0,{"$f":"IF(AND(SpaceBySpace_2013[[#This Row],[Automatic Daylighting Control]]=\"REQ\",OR(SpaceBySpace_2013[[#This Row],[Automatic Partial OFF]]=\"REQ\",SpaceBySpace_2013[[#This Row],[Partial Automatic ON]]=\"REQ\",SpaceBySpace_2013[[#This Row],[Automatic Full OFF]]=\"REQ\",COUNTIF(SpaceBySpace_2013[[#This Row],[Automatic Partial OFF]:[Scheduled Shutoff]],\"ADD*\")>0)),\"Occupancy + Daylight\",\nIF(SpaceBySpace_2013[[#This Row],[Automatic Daylighting Control]]=\"REQ\",\"Daylight Harvesting\",\nIF(OR(SpaceBySpace_2013[[#This Row],[Partial Automatic ON]]=\"REQ\",SpaceBySpace_2013[[#This Row],[Automatic Partial OFF]]=\"REQ\",SpaceBySpace_2013[[#This Row],[Automatic Full OFF]]=\"REQ\",COUNTIF(SpaceBySpace_2013[[#This Row],[Automatic Partial OFF]:[Scheduled Shutoff]],\"ADD*\")>0),\"Occupancy\",\"\")))","v":"Occupancy + Daylight"},{"$f":"SpaceBySpace_2013[[#This Row],[%DL]]*SpaceBySpace_2013[[#This Row],[B. CSF (Wndws)]]+(1-SpaceBySpace_2013[[#This Row],[%DL]])*SpaceBySpace_2013[[#This Row],[B. CSF (No Wndws)]]","v":0.24},0,{"$f":"IF(SpaceBySpace_2013[[#This Row],[B. CSF (Wndws)]]=0.38,0.24,0)","v":0.24},{"$f":"VLOOKUP(K76,'Measure Tables'!$A$2:$C$7,3,FALSE)","v":0.38},"REQ","ADD1","ADD1","REQ","REQ",null,"ADD2","ADD2"]
[null,null,null,null,null,"Manufacturing, Equipment Room",0.74,"W/ft2",6,0,"Occupancy",{"$f":"SpaceBySpace_2013[[#This Row],[%DL]]*SpaceBySpace_2013[[#This Row],[B. CSF (Wndws)]]+(1-SpaceBySpace_2013[[#This Row],[%DL]])*SpaceBySpace_2013[[#This Row],[B. CSF (No Wndws)]]","v":0.24},0,0.24,{"$f":"VLOOKUP(K77,'Measure Tables'!$A$2:$C$7,3,FALSE)","v":0.24},"REQ","ADD1","ADD1","REQ","REQ",null,"ADD2","ADD2"]
[null,null,null,null,null,"Manufacturing, Extra High Bay (>50ft)",1.05,"W/ft2",4,0,{"$f":"IF(AND(SpaceBySpace_2013[[#This Row],[Automatic Daylighting Control]]=\"REQ\",OR(SpaceBySpace_2013[[#This Row],[Automatic Partial OFF]]=\"REQ\",SpaceBySpace_2013[[#This Row],[Partial Automatic ON]]=\"REQ\",SpaceBySpace_2013[[#This Row],[Automatic Full OFF]]=\"REQ\",COUNTIF(SpaceBySpace_2013[[#This Row],[Automatic Partial OFF]:[Scheduled Shutoff]],\"ADD*\")>0)),\"Occupancy + Daylight\",\nIF(SpaceBySpace_2013[[#This Row],[Automatic Daylighting Control]]=\"REQ\",\"Daylight Harvesting\",\nIF(OR(SpaceBySpace_2013[[#This Row],[Partial Automatic ON]]=\"REQ\",SpaceBySpace_2013[[#This Row],[Automatic Partial OFF]]=\"REQ\",SpaceBySpace_2013[[#This Row],[Automatic Full OFF]]=\"REQ\",COUNTIF(SpaceBySpace_2013[[#This Row],[Automatic Partial OFF]:[Scheduled Shutoff]],\"ADD*\")>0),\"Occupancy\",\"\")))","v":"Occupancy + Daylight"},{"$f":"SpaceBySpace_2013[[#This Row],[%DL]]*SpaceBySpace_2013[[#This Row],[B. CSF (Wndws)]]+(1-SpaceBySpace_2013[[#This Row],[%DL]])*SpaceBySpace_2013[[#This Row],[B. CSF (No Wndws)]]","v":0.24},0,{"$f":"IF(SpaceBySpace_2013[[#This Row],[B. CSF (Wndws)]]=0.38,0.24,0)","v":0.24},{"$f":"VLOOKUP(K78,'Measure Tables'!$A$2:$C$7,3,FALSE)","v":0.38},"REQ","ADD1","ADD1","REQ","REQ",null,"ADD2","ADD2"]
[null,null,null,null,null,"Manufacturing, High Bay (25-50ft)",1.23,"W/ft2",4,0,{"$f":"IF(AND(SpaceBySpace_2013[[#This Row],[Automatic Daylighting Control]]=\"REQ\",OR(SpaceBySpace_2013[[#This Row],[Automatic Partial OFF]]=\"REQ\",SpaceBySpace_2013[[#This Row],[Partial Automatic ON]]=\"REQ\",SpaceBySpace_2013[[#This Row],[Automatic Full OFF]]=\"REQ\",COUNTIF(SpaceBySpace_2013[[#This Row],[Automatic Partial OFF]:[Scheduled Shutoff]],\"ADD*\")>0)),\"Occupancy + Daylight\",\nIF(SpaceBySpace_2013[[#This Row],[Automatic Daylighting Control]]=\"REQ\",\"Daylight Harvesting\",\nIF(OR(SpaceBySpace_2013[[#This Row],[Partial Automatic ON]]=\"REQ\",SpaceBySpace_2013[[#This Row],[Automatic Partial OFF]]=\"REQ\",SpaceBySpace_2013[[#This Row],[Automatic Full OFF]]=\"REQ\",COUNTIF(SpaceBySpace_2013[[#This Row],[Automatic Partial OFF]:[Scheduled Shutoff]],\"ADD*\")>0),\"Occupancy\",\"\")))","v":"Occupancy + Daylight"},{"$f":"SpaceBySpace_2013[[#This Row],[%DL]]*SpaceBySpace_2013[[#This Row],[B. CSF (Wndws)]]+(1-SpaceBySpace_2013[[#This Row],[%DL]])*SpaceBySpace_2013[[#This Row],[B. CSF (No Wndws)]]","v":0.24},0,{"$f":"IF(SpaceBySpace_2013[[#This Row],[B. CSF (Wndws)]]=0.38,0.24,0)","v":0.24},{"$f":"VLOOKUP(K79,'Measure Tables'!$A$2:$C$7,3,FALSE)","v":0.38},"REQ","ADD1","ADD1","REQ","REQ",null,"ADD2","ADD2"]
[null,null,null,null,null,"Manufacturing, Low Bay (<25ft)",1.19,"W/ft2",4,0,{"$f":"IF(AND(SpaceBySpace_2013[[#This Row],[Automatic Daylighting Control]]=\"REQ\",OR(SpaceBySpace_2013[[#This Row],[Automatic Partial OFF]]=\"REQ\",SpaceBySpace_2013[[#This Row],[Partial Automatic ON]]=\"REQ\",SpaceBySpace_2013[[#This Row],[Automatic Full OFF]]=\"REQ\",COUNTIF(SpaceBySpace_2013[[#This Row],[Automatic Partial OFF]:[Scheduled Shutoff]],\"ADD*\")>0)),\"Occupancy + Daylight\",\nIF(SpaceBySpace_2013[[#This Row],[Automatic Daylighting Control]]=\"REQ\",\"Daylight Harvesting\",\nIF(OR(SpaceBySpace_2013[[#This Row],[Partial Automatic ON]]=\"REQ\",SpaceBySpace_2013[[#This Row],[Automatic Partial OFF]]=\"REQ\",SpaceBySpace_2013[[#This Row],[Automatic Full OFF]]=\"REQ\",COUNTIF(SpaceBySpace_2013[[#This Row],[Automatic Partial OFF]:[Scheduled Shutoff]],\"ADD*\")>0),\"Occupancy\",\"\")))","v":"Occupancy + Daylight"},{"$f":"SpaceBySpace_2013[[#This Row],[%DL]]*SpaceBySpace_2013[[#This Row],[B. CSF (Wndws)]]+(1-SpaceBySpace_2013[[#This Row],[%DL]])*SpaceBySpace_2013[[#This Row],[B. CSF (No Wndws)]]","v":0.24},0,{"$f":"IF(SpaceBySpace_2013[[#This Row],[B. CSF (Wndws)]]=0.38,0.24,0)","v":0.24},{"$f":"VLOOKUP(K80,'Measure Tables'!$A$2:$C$7,3,FALSE)","v":0.38},"REQ","ADD1","ADD1","REQ","REQ",null,"ADD2","ADD2"]
[null,null,null,null,null,"Motion Picture Theater, Audience Seating",1.1399999999999999,"W/ft2",4,0,"Occupancy",{"$f":"SpaceBySpace_2013[[#This Row],[%DL]]*SpaceBySpace_2013[[#This Row],[B. CSF (Wndws)]]+(1-SpaceBySpace_2013[[#This Row],[%DL]])*SpaceBySpace_2013[[#This Row],[B. CSF (No Wndws)]]","v":0.24},0,0.24,{"$f":"VLOOKUP(K81,'Measure Tables'!$A$2:$C$7,3,FALSE)","v":0.24},"REQ","ADD1","ADD1","REQ","REQ",null,"ADD2","ADD2"]
[null,null,null,null,null,"Motion Picture Theater, Lobby",0.59,"W/ft2",6,0,{"$f":"IF(AND(SpaceBySpace_2013[[#This Row],[Automatic Daylighting Control]]=\"REQ\",OR(SpaceBySpace_2013[[#This Row],[Automatic Partial OFF]]=\"REQ\",SpaceBySpace_2013[[#This Row],[Partial Automatic ON]]=\"REQ\",SpaceBySpace_2013[[#This Row],[Automatic Full OFF]]=\"REQ\",COUNTIF(SpaceBySpace_2013[[#This Row],[Automatic Partial OFF]:[Scheduled Shutoff]],\"ADD*\")>0)),\"Occupancy + Daylight\",\nIF(SpaceBySpace_2013[[#This Row],[Automatic Daylighting Control]]=\"REQ\",\"Daylight Harvesting\",\nIF(OR(SpaceBySpace_2013[[#This Row],[Partial Automatic ON]]=\"REQ\",SpaceBySpace_2013[[#This Row],[Automatic Partial OFF]]=\"REQ\",SpaceBySpace_2013[[#This Row],[Automatic Full OFF]]=\"REQ\",COUNTIF(SpaceBySpace_2013[[#This Row],[Automatic Partial OFF]:[Scheduled Shutoff]],\"ADD*\")>0),\"Occupancy\",\"\")))","v":"Occupancy + Daylight"},{"$f":"SpaceBySpace_2013[[#This Row],[%DL]]*SpaceBySpace_2013[[#This Row],[B. CSF (Wndws)]]+(1-SpaceBySpace_2013[[#This Row],[%DL]])*SpaceBySpace_2013[[#This Row],[B. CSF (No Wndws)]]","v":0.38},1,{"$f":"IF(SpaceBySpace_2013[[#This Row],[B. CSF (Wndws)]]=0.38,0.24,0)","v":0.24},{"$f":"VLOOKUP(K82,'Measure Tables'!$A$2:$C$7,3,FALSE)","v":0.38},"REQ",null,null,null,"REQ",null,"ADD2","ADD2"]
[null,null,null,null,null,"Museum, General Exhibition",1.05,"W/ft2",6,0,{"$f":"IF(AND(SpaceBySpace_2013[[#This Row],[Automatic Daylighting Control]]=\"REQ\",OR(SpaceBySpace_2013[[#This Row],[Automatic Partial OFF]]=\"REQ\",SpaceBySpace_2013[[#This Row],[Partial Automatic ON]]=\"REQ\",SpaceBySpace_2013[[#This Row],[Automatic Full OFF]]=\"REQ\",COUNTIF(SpaceBySpace_2013[[#This Row],[Automatic Partial OFF]:[Scheduled Shutoff]],\"ADD*\")>0)),\"Occupancy + Daylight\",\nIF(SpaceBySpace_2013[[#This Row],[Automatic Daylighting Control]]=\"REQ\",\"Daylight Harvesting\",\nIF(OR(SpaceBySpace_2013[[#This Row],[Partial Automatic ON]]=\"REQ\",SpaceBySpace_2013[[#This Row],[Automatic Partial OFF]]=\"REQ\",SpaceBySpace_2013[[#This Row],[Automatic Full OFF]]=\"REQ\",COUNTIF(SpaceBySpace_2013[[#This Row],[Automatic Partial OFF]:[Scheduled Shutoff]],\"ADD*\")>0),\"Occupancy\",\"\")))","v":"Occupancy + Daylight"},{"$f":"SpaceBySpace_2013[[#This Row],[%DL]]*SpaceBySpace_2013[[#This Row],[B. CSF (Wndws)]]+(1-SpaceBySpace_2013[[#This Row],[%DL]])*SpaceBySpace_2013[[#This Row],[B. CSF (No Wndws)]]","v":0.24},0,{"$f":"IF(SpaceBySpace_2013[[#This Row],[B. CSF (Wndws)]]=0.38,0.24,0)","v":0.24},{"$f":"VLOOKUP(K83,'Measure Tables'!$A$2:$C$7,3,FALSE)","v":0.38},"REQ","ADD1","ADD1","REQ","REQ",null,"ADD2","ADD2"]
[null,null,null,null,null,"Museum, Restoration",1.02,"W/ft2",6,0,{"$f":"IF(AND(SpaceBySpace_2013[[#This Row],[Automatic Daylighting Control]]=\"REQ\",OR(SpaceBySpace_2013[[#This Row],[Automatic Partial OFF]]=\"REQ\",SpaceBySpace_2013[[#This Row],[Partial Automatic ON]]=\"REQ\",SpaceBySpace_2013[[#This Row],[Automatic Full OFF]]=\"REQ\",COUNTIF(SpaceBySpace_2013[[#This Row],[Automatic Partial OFF]:[Scheduled Shutoff]],\"ADD*\")>0)),\"Occupancy + Daylight\",\nIF(SpaceBySpace_2013[[#This Row],[Automatic Daylighting Control]]=\"REQ\",\"Daylight Harvesting\",\nIF(OR(SpaceBySpace_2013[[#This Row],[Partial Automatic ON]]=\"REQ\",SpaceBySpace_2013[[#This Row],[Automatic Partial OFF]]=\"REQ\",SpaceBySpace_2013[[#This Row],[Automatic Full OFF]]=\"REQ\",COUNTIF(SpaceBySpace_2013[[#This Row],[Automatic Partial OFF]:[Scheduled Shutoff]],\"ADD*\")>0),\"Occupancy\",\"\")))","v":"Occupancy + Daylight"},{"$f":"SpaceBySpace_2013[[#This Row],[%DL]]*SpaceBySpace_2013[[#This Row],[B. CSF (Wndws)]]+(1-SpaceBySpace_2013[[#This Row],[%DL]])*SpaceBySpace_2013[[#This Row],[B. CSF (No Wndws)]]","v":0.24},0,{"$f":"IF(SpaceBySpace_2013[[#This Row],[B. CSF (Wndws)]]=0.38,0.24,0)","v":0.24},{"$f":"VLOOKUP(K84,'Measure Tables'!$A$2:$C$7,3,FALSE)","v":0.38},"REQ","ADD1","ADD1","REQ","REQ",null,"ADD2","ADD2"]
[null,null,null,null,null,"Parking Garage, Interior",0.19,"W/ft2",4,0,{"$f":"IF(AND(SpaceBySpace_2013[[#This Row],[Automatic Daylighting Control]]=\"REQ\",OR(SpaceBySpace_2013[[#This Row],[Automatic Partial OFF]]=\"REQ\",SpaceBySpace_2013[[#This Row],[Partial Automatic ON]]=\"REQ\",SpaceBySpace_2013[[#This Row],[Automatic Full OFF]]=\"REQ\",COUNTIF(SpaceBySpace_2013[[#This Row],[Automatic Partial OFF]:[Scheduled Shutoff]],\"ADD*\")>0)),\"Occupancy + Daylight\",\nIF(SpaceBySpace_2013[[#This Row],[Automatic Daylighting Control]]=\"REQ\",\"Daylight Harvesting\",\nIF(OR(SpaceBySpace_2013[[#This Row],[Partial Automatic ON]]=\"REQ\",SpaceBySpace_2013[[#This Row],[Automatic Partial OFF]]=\"REQ\",SpaceBySpace_2013[[#This Row],[Automatic Full OFF]]=\"REQ\",COUNTIF(SpaceBySpace_2013[[#This Row],[Automatic Partial OFF]:[Scheduled Shutoff]],\"ADD*\")>0),\"Occupancy\",\"\")))","v":"Occupancy + Daylight"},{"$f":"SpaceBySpace_2013[[#This Row],[%DL]]*SpaceBySpace_2013[[#This Row],[B. CSF (Wndws)]]+(1-SpaceBySpace_2013[[#This Row],[%DL]])*SpaceBySpace_2013[[#This Row],[B. CSF (No Wndws)]]","v":0.27500000000000002},0.25,{"$f":"IF(SpaceBySpace_2013[[#This Row],[B. CSF (Wndws)]]=0.38,0.24,0)","v":0.24},{"$f":"VLOOKUP(K85,'Measure Tables'!$A$2:$C$7,3,FALSE)","v":0.38},"REQ","ADD1","ADD1","REQ","REQ",null,"ADD2","ADD2"]
[null,null,null,null,null,"Performing Arts Theater, Audience Seating",2.4300000000000002,"W/ft2",8,0,"Occupancy",{"$f":"SpaceBySpace_2013[[#This Row],[%DL]]*SpaceBySpace_2013[[#This Row],[B. CSF (Wndws)]]+(1-SpaceBySpace_2013[[#This Row],[%DL]])*SpaceBySpace_2013[[#This Row],[B. CSF (No Wndws)]]","v":0.24},0,0.24,{"$f":"VLOOKUP(K86,'Measure Tables'!$A$2:$C$7,3,FALSE)","v":0.24},"REQ","ADD1","ADD1","REQ","REQ",null,"ADD2","ADD2"]
[null,null,null,null,null,"Performing Arts Theater, Dressing/Fitting Room",0.61,"W/ft2",6,0,"Occupancy",{"$f":"SpaceBySpace_2013[[#This Row],[%DL]]*SpaceBySpace_2013[[#This Row],[B. CSF (Wndws)]]+(1-SpaceBySpace_2013[[#This Row],[%DL]])*SpaceBySpace_2013[[#This Row],[B. CSF (No Wndws)]]","v":0.24},0,0.24,{"$f":"VLOOKUP(K87,'Measure Tables'!$A$2:$C$7,3,FALSE)","v":0.24},"REQ","ADD1","ADD1","REQ","REQ",null,"REQ"]
[null,null,null,null,null,"Performing Arts Theater, Lobby",2,"W/ft2",6,0,{"$f":"IF(AND(SpaceBySpace_2013[[#This Row],[Automatic Daylighting Control]]=\"REQ\",OR(SpaceBySpace_2013[[#This Row],[Automatic Partial OFF]]=\"REQ\",SpaceBySpace_2013[[#This Row],[Partial Automatic ON]]=\"REQ\",SpaceBySpace_2013[[#This Row],[Automatic Full OFF]]=\"REQ\",COUNTIF(SpaceBySpace_2013[[#This Row],[Automatic Partial OFF]:[Scheduled Shutoff]],\"ADD*\")>0)),\"Occupancy + Daylight\",\nIF(SpaceBySpace_2013[[#This Row],[Automatic Daylighting Control]]=\"REQ\",\"Daylight Harvesting\",\nIF(OR(SpaceBySpace_2013[[#This Row],[Partial Automatic ON]]=\"REQ\",SpaceBySpace_2013[[#This Row],[Automatic Partial OFF]]=\"REQ\",SpaceBySpace_2013[[#This Row],[Automatic Full OFF]]=\"REQ\",COUNTIF(SpaceBySpace_2013[[#This Row],[Automatic Partial OFF]:[Scheduled Shutoff]],\"ADD*\")>0),\"Occupancy\",\"\")))","v":"Occupancy + Daylight"},{"$f":"SpaceBySpace_2013[[#This Row],[%DL]]*SpaceBySpace_2013[[#This Row],[B. CSF (Wndws)]]+(1-SpaceBySpace_2013[[#This Row],[%DL]])*SpaceBySpace_2013[[#This Row],[B. CSF (No Wndws)]]","v":0.31},0.5,{"$f":"IF(SpaceBySpace_2013[[#This Row],[B. CSF (Wndws)]]=0.38,0.24,0)","v":0.24},{"$f":"VLOOKUP(K88,'Measure Tables'!$A$2:$C$7,3,FALSE)","v":0.38},"REQ",null,null,null,"REQ","REQ","ADD2","ADD2"]
[null,null,null,null,null,"Post Office, Sorting Area",0.94,"W/ft2",4,0,"Occupancy",{"$f":"SpaceBySpace_2013[[#This Row],[%DL]]*SpaceBySpace_2013[[#This Row],[B. CSF (Wndws)]]+(1-SpaceBySpace_2013[[#This Row],[%DL]])*SpaceBySpace_2013[[#This Row],[B. CSF (No Wndws)]]","v":0.24},0,0.24,{"$f":"VLOOKUP(K89,'Measure Tables'!$A$2:$C$7,3,FALSE)","v":0.24},"REQ","ADD1","ADD1","REQ","REQ","REQ","ADD2","ADD2"]
[null,null,null,null,null,"Religious Building, Audience Seating",1.53,"W/ft2",4,0,{"$f":"IF(AND(SpaceBySpace_2013[[#This Row],[Automatic Daylighting Control]]=\"REQ\",OR(SpaceBySpace_2013[[#This Row],[Automatic Partial OFF]]=\"REQ\",SpaceBySpace_2013[[#This Row],[Partial Automatic ON]]=\"REQ\",SpaceBySpace_2013[[#This Row],[Automatic Full OFF]]=\"REQ\",COUNTIF(SpaceBySpace_2013[[#This Row],[Automatic Partial OFF]:[Scheduled Shutoff]],\"ADD*\")>0)),\"Occupancy + Daylight\",\nIF(SpaceBySpace_2013[[#This Row],[Automatic Daylighting Control]]=\"REQ\",\"Daylight Harvesting\",\nIF(OR(SpaceBySpace_2013[[#This Row],[Partial Automatic ON]]=\"REQ\",SpaceBySpace_2013[[#This Row],[Automatic Partial OFF]]=\"REQ\",SpaceBySpace_2013[[#This Row],[Automatic Full OFF]]=\"REQ\",COUNTIF(SpaceBySpace_2013[[#This Row],[Automatic Partial OFF]:[Scheduled Shutoff]],\"ADD*\")>0),\"Occupancy\",\"\")))","v":"Occupancy + Daylight"},{"$f":"SpaceBySpace_2013[[#This Row],[%DL]]*SpaceBySpace_2013[[#This Row],[B. CSF (Wndws)]]+(1-SpaceBySpace_2013[[#This Row],[%DL]])*SpaceBySpace_2013[[#This Row],[B. CSF (No Wndws)]]","v":0.31},0.5,{"$f":"IF(SpaceBySpace_2013[[#This Row],[B. CSF (Wndws)]]=0.38,0.24,0)","v":0.24},{"$f":"VLOOKUP(K90,'Measure Tables'!$A$2:$C$7,3,FALSE)","v":0.38},"REQ","ADD1","ADD1","REQ","REQ",null,"ADD2","ADD2"]
[null,null,null,null,null,"Religious Building, Fellowship Hall",0.64,"W/ft2",4,0,{"$f":"IF(AND(SpaceBySpace_2013[[#This Row],[Automatic Daylighting Control]]=\"REQ\",OR(SpaceBySpace_2013[[#This Row],[Automatic Partial OFF]]=\"REQ\",SpaceBySpace_2013[[#This Row],[Partial Automatic ON]]=\"REQ\",SpaceBySpace_2013[[#This Row],[Automatic Full OFF]]=\"REQ\",COUNTIF(SpaceBySpace_2013[[#This Row],[Automatic Partial OFF]:[Scheduled Shutoff]],\"ADD*\")>0)),\"Occupancy + Daylight\",\nIF(SpaceBySpace_2013[[#This Row],[Automatic Daylighting Control]]=\"REQ\",\"Daylight Harvesting\",\nIF(OR(SpaceBySpace_2013[[#This Row],[Partial Automatic ON]]=\"REQ\",SpaceBySpace_2013[[#This Row],[Automatic Partial OFF]]=\"REQ\",SpaceBySpace_2013[[#This Row],[Automatic Full OFF]]=\"REQ\",COUNTIF(SpaceBySpace_2013[[#This Row],[Automatic Partial OFF]:[Scheduled Shutoff]],\"ADD*\")>0),\"Occupancy\",\"\")))","v":"Occupancy + Daylight"},{"$f":"SpaceBySpace_2013[[#This Row],[%DL]]*SpaceBySpace_2013[[#This Row],[B. CSF (Wndws)]]+(1-SpaceBySpace_2013[[#This Row],[%DL]])*SpaceBySpace_2013[[#This Row],[B. CSF (No Wndws)]]","v":0.31},0.5,{"$f":"IF(SpaceBySpace_2013[[#This Row],[B. CSF (Wndws)]]=0.38,0.24,0)","v":0.24},{"$f":"VLOOKUP(K91,'Measure Tables'!$A$2:$C$7,3,FALSE)","v":0.38},"REQ","ADD1","ADD1","REQ","REQ",null,"ADD2","ADD2"]
[null,null,null,null,null,"Religious Building, Worship Pulpit/Choir",1.53,"W/ft2",4,0,{"$f":"IF(AND(SpaceBySpace_2013[[#This Row],[Automatic Daylighting Control]]=\"REQ\",OR(SpaceBySpace_2013[[#This Row],[Automatic Partial OFF]]=\"REQ\",SpaceBySpace_2013[[#This Row],[Partial Automatic ON]]=\"REQ\",SpaceBySpace_2013[[#This Row],[Automatic Full OFF]]=\"REQ\",COUNTIF(SpaceBySpace_2013[[#This Row],[Automatic Partial OFF]:[Scheduled Shutoff]],\"ADD*\")>0)),\"Occupancy + Daylight\",\nIF(SpaceBySpace_2013[[#This Row],[Automatic Daylighting Control]]=\"REQ\",\"Daylight Harvesting\",\nIF(OR(SpaceBySpace_2013[[#This Row],[Partial Automatic ON]]=\"REQ\",SpaceBySpace_2013[[#This Row],[Automatic Partial OFF]]=\"REQ\",SpaceBySpace_2013[[#This Row],[Automatic Full OFF]]=\"REQ\",COUNTIF(SpaceBySpace_2013[[#This Row],[Automatic Partial OFF]:[Scheduled Shutoff]],\"ADD*\")>0),\"Occupancy\",\"\")))","v":"Occupancy + Daylight"},{"$f":"SpaceBySpace_2013[[#This Row],[%DL]]*SpaceBySpace_2013[[#This Row],[B. CSF (Wndws)]]+(1-SpaceBySpace_2013[[#This Row],[%DL]])*SpaceBySpace_2013[[#This Row],[B. CSF (No Wndws)]]","v":0.38},1,{"$f":"IF(SpaceBySpace_2013[[#This Row],[B. CSF (Wndws)]]=0.38,0.24,0)","v":0.24},{"$f":"VLOOKUP(K92,'Measure Tables'!$A$2:$C$7,3,FALSE)","v":0.38},"REQ","ADD1","ADD1","REQ","REQ",null,"ADD2","ADD2"]
[null,null,null,null,null,"Retail, Dressing/Fitting Room",0.71,"W/ft2",8,0,"Occupancy",{"$f":"SpaceBySpace_2013[[#This Row],[%DL]]*SpaceBySpace_2013[[#This Row],[B. CSF (Wndws)]]+(1-SpaceBySpace_2013[[#This Row],[%DL]])*SpaceBySpace_2013[[#This Row],[B. CSF (No Wndws)]]","v":0.24},0,0.24,{"$f":"VLOOKUP(K93,'Measure Tables'!$A$2:$C$7,3,FALSE)","v":0.24},"REQ","ADD1","ADD1","REQ","REQ",null,"REQ"]
[null,null,null,null,null,"Retail, Mall Concourse",1.1000000000000001,"W/ft2",4,0,{"$f":"IF(AND(SpaceBySpace_2013[[#This Row],[Automatic Daylighting Control]]=\"REQ\",OR(SpaceBySpace_2013[[#This Row],[Automatic Partial OFF]]=\"REQ\",SpaceBySpace_2013[[#This Row],[Partial Automatic ON]]=\"REQ\",SpaceBySpace_2013[[#This Row],[Automatic Full OFF]]=\"REQ\",COUNTIF(SpaceBySpace_2013[[#This Row],[Automatic Partial OFF]:[Scheduled Shutoff]],\"ADD*\")>0)),\"Occupancy + Daylight\",\nIF(SpaceBySpace_2013[[#This Row],[Automatic Daylighting Control]]=\"REQ\",\"Daylight Harvesting\",\nIF(OR(SpaceBySpace_2013[[#This Row],[Partial Automatic ON]]=\"REQ\",SpaceBySpace_2013[[#This Row],[Automatic Partial OFF]]=\"REQ\",SpaceBySpace_2013[[#This Row],[Automatic Full OFF]]=\"REQ\",COUNTIF(SpaceBySpace_2013[[#This Row],[Automatic Partial OFF]:[Scheduled Shutoff]],\"ADD*\")>0),\"Occupancy\",\"\")))","v":"Occupancy + Daylight"},{"$f":"SpaceBySpace_2013[[#This Row],[%DL]]*SpaceBySpace_2013[[#This Row],[B. CSF (Wndws)]]+(1-SpaceBySpace_2013[[#This Row],[%DL]])*SpaceBySpace_2013[[#This Row],[B. CSF (No Wndws)]]","v":0.254},0.1,{"$f":"IF(SpaceBySpace_2013[[#This Row],[B. CSF (Wndws)]]=0.38,0.24,0)","v":0.24},{"$f":"VLOOKUP(K94,'Measure Tables'!$A$2:$C$7,3,FALSE)","v":0.38},"REQ","ADD1","ADD1","REQ","REQ",null,"ADD2","ADD2"]
[null,null,null,null,null,"Retail, Sales Area",1.44,"W/ft2",6,0,{"$f":"IF(AND(SpaceBySpace_2013[[#This Row],[Automatic Daylighting Control]]=\"REQ\",OR(SpaceBySpace_2013[[#This Row],[Automatic Partial OFF]]=\"REQ\",SpaceBySpace_2013[[#This Row],[Partial Automatic ON]]=\"REQ\",SpaceBySpace_2013[[#This Row],[Automatic Full OFF]]=\"REQ\",COUNTIF(SpaceBySpace_2013[[#This Row],[Automatic Partial OFF]:[Scheduled Shutoff]],\"ADD*\")>0)),\"Occupancy + Daylight\",\nIF(SpaceBySpace_2013[[#This Row],[Automatic Daylighting Control]]=\"REQ\",\"Daylight Harvesting\",\nIF(OR(SpaceBySpace_2013[[#This Row],[Partial Automatic ON]]=\"REQ\",SpaceBySpace_2013[[#This Row],[Automatic Partial OFF]]=\"REQ\",SpaceBySpace_2013[[#This Row],[Automatic Full OFF]]=\"REQ\",COUNTIF(SpaceBySpace_2013[[#This Row],[Automatic Partial OFF]:[Scheduled Shutoff]],\"ADD*\")>0),\"Occupancy\",\"\")))","v":"Occupancy + Daylight"},{"$f":"SpaceBySpace_2013[[#This Row],[%DL]]*SpaceBySpace_2013[[#This Row],[B. CSF (Wndws)]]+(1-SpaceBySpace_2013[[#This Row],[%DL]])*SpaceBySpace_2013[[#This Row],[B. CSF (No Wndws)]]","v":0.26100000000000001},0.15,{"$f":"IF(SpaceBySpace_2013[[#This Row],[B. CSF (Wndws)]]=0.38,0.24,0)","v":0.24},{"$f":"VLOOKUP(K95,'Measure Tables'!$A$2:$C$7,3,FALSE)","v":0.38},"REQ","ADD1","ADD1","REQ","REQ",null,"ADD2","ADD2"]
[null,null,null,null,null,"Retail, Sales Area (Accent: Vehicles/Sporting Goods/Electronics)",0.6,"W/ft2",6,0,"No Controls",{"$f":"SpaceBySpace_2013[[#This Row],[%DL]]*SpaceBySpace_2013[[#This Row],[B. CSF (Wndws)]]+(1-SpaceBySpace_2013[[#This Row],[%DL]])*SpaceBySpace_2013[[#This Row],[B. CSF (No Wndws)]]","v":0},0,0,0,"REQ","ADD1","ADD1"]
[null,null,null,null,null,"Retail, Sales Area (Accent: Furniture/Clothing/Cosmetics/Artwork)",1.4,"W/ft2",6,0,"No Controls",{"$f":"SpaceBySpace_2013[[#This Row],[%DL]]*SpaceBySpace_2013[[#This Row],[B. CSF (Wndws)]]+(1-SpaceBySpace_2013[[#This Row],[%DL]])*SpaceBySpace_2013[[#This Row],[B. CSF (No Wndws)]]","v":0},0,0,0,"REQ","ADD1","ADD1"]
[null,null,null,null,null,"Retail, Sales Area (Accent: Jewelry/Dishware)",2.5,"W/ft2",6,0,"No Controls",{"$f":"SpaceBySpace_2013[[#This Row],[%DL]]*SpaceBySpace_2013[[#This Row],[B. CSF (Wndws)]]+(1-SpaceBySpace_2013[[#This Row],[%DL]])*SpaceBySpace_2013[[#This Row],[B. CSF (No Wndws)]]","v":0},0,0,0,"REQ","ADD1","ADD1"]
[null,null,null,null,null,"Retail, Sales Area (Accent: Other)",0.6,"W/ft2",6,0,"No Controls",{"$f":"SpaceBySpace_2013[[#This Row],[%DL]]*SpaceBySpace_2013[[#This Row],[B. CSF (Wndws)]]+(1-SpaceBySpace_2013[[#This Row],[%DL]])*SpaceBySpace_2013[[#This Row],[B. CSF (No Wndws)]]","v":0},0,0,0,"REQ","ADD1","ADD1"]
[null,null,null,null,null,"Sports Arena, Audience Seating",0.43,"W/ft2",4,0,{"$f":"IF(AND(SpaceBySpace_2013[[#This Row],[Automatic Daylighting Control]]=\"REQ\",OR(SpaceBySpace_2013[[#This Row],[Automatic Partial OFF]]=\"REQ\",SpaceBySpace_2013[[#This Row],[Partial Automatic ON]]=\"REQ\",SpaceBySpace_2013[[#This Row],[Automatic Full OFF]]=\"REQ\",COUNTIF(SpaceBySpace_2013[[#This Row],[Automatic Partial OFF]:[Scheduled Shutoff]],\"ADD*\")>0)),\"Occupancy + Daylight\",\nIF(SpaceBySpace_2013[[#This Row],[Automatic Daylighting Control]]=\"REQ\",\"Daylight Harvesting\",\nIF(OR(SpaceBySpace_2013[[#This Row],[Partial Automatic ON]]=\"REQ\",SpaceBySpace_2013[[#This Row],[Automatic Partial OFF]]=\"REQ\",SpaceBySpace_2013[[#This Row],[Automatic Full OFF]]=\"REQ\",COUNTIF(SpaceBySpace_2013[[#This Row],[Automatic Partial OFF]:[Scheduled Shutoff]],\"ADD*\")>0),\"Occupancy\",\"\")))","v":"Occupancy + Daylight"},{"$f":"SpaceBySpace_2013[[#This Row],[%DL]]*SpaceBySpace_2013[[#This Row],[B. CSF (Wndws)]]+(1-SpaceBySpace_2013[[#This Row],[%DL]])*SpaceBySpace_2013[[#This Row],[B. CSF (No Wndws)]]","v":0.24},0,{"$f":"IF(SpaceBySpace_2013[[#This Row],[B. CSF (Wndws)]]=0.38,0.24,0)","v":0.24},{"$f":"VLOOKUP(K100,'Measure Tables'!$A$2:$C$7,3,FALSE)","v":0.38},"REQ","ADD1","ADD1",null,"REQ",null,"ADD2","ADD2"]
[null,null,null,null,null,"Sports Arena, Court (Class 4)",1.2,"W/ft2",4,0,{"$f":"IF(AND(SpaceBySpace_2013[[#This Row],[Automatic Daylighting Control]]=\"REQ\",OR(SpaceBySpace_2013[[#This Row],[Automatic Partial OFF]]=\"REQ\",SpaceBySpace_2013[[#This Row],[Partial Automatic ON]]=\"REQ\",SpaceBySpace_2013[[#This Row],[Automatic Full OFF]]=\"REQ\",COUNTIF(SpaceBySpace_2013[[#This Row],[Automatic Partial OFF]:[Scheduled Shutoff]],\"ADD*\")>0)),\"Occupancy + Daylight\",\nIF(SpaceBySpace_2013[[#This Row],[Automatic Daylighting Control]]=\"REQ\",\"Daylight Harvesting\",\nIF(OR(SpaceBySpace_2013[[#This Row],[Partial Automatic ON]]=\"REQ\",SpaceBySpace_2013[[#This Row],[Automatic Partial OFF]]=\"REQ\",SpaceBySpace_2013[[#This Row],[Automatic Full OFF]]=\"REQ\",COUNTIF(SpaceBySpace_2013[[#This Row],[Automatic Partial OFF]:[Scheduled Shutoff]],\"ADD*\")>0),\"Occupancy\",\"\")))","v":"Occupancy + Daylight"},{"$f":"SpaceBySpace_2013[[#This Row],[%DL]]*SpaceBySpace_2013[[#This Row],[B. CSF (Wndws)]]+(1-SpaceBySpace_2013[[#This Row],[%DL]])*SpaceBySpace_2013[[#This Row],[B. CSF (No Wndws)]]","v":0.24},0,{"$f":"IF(SpaceBySpace_2013[[#This Row],[B. CSF (Wndws)]]=0.38,0.24,0)","v":0.24},{"$f":"VLOOKUP(K101,'Measure Tables'!$A$2:$C$7,3,FALSE)","v":0.38},"REQ","ADD1","ADD1","REQ","REQ",null,"ADD2","ADD2"]
[null,null,null,null,null,"Sports Arena, Court (Class 3)",1.8,"W/ft2",4,0,{"$f":"IF(AND(SpaceBySpace_2013[[#This Row],[Automatic Daylighting Control]]=\"REQ\",OR(SpaceBySpace_2013[[#This Row],[Automatic Partial OFF]]=\"REQ\",SpaceBySpace_2013[[#This Row],[Partial Automatic ON]]=\"REQ\",SpaceBySpace_2013[[#This Row],[Automatic Full OFF]]=\"REQ\",COUNTIF(SpaceBySpace_2013[[#This Row],[Automatic Partial OFF]:[Scheduled Shutoff]],\"ADD*\")>0)),\"Occupancy + Daylight\",\nIF(SpaceBySpace_2013[[#This Row],[Automatic Daylighting Control]]=\"REQ\",\"Daylight Harvesting\",\nIF(OR(SpaceBySpace_2013[[#This Row],[Partial Automatic ON]]=\"REQ\",SpaceBySpace_2013[[#This Row],[Automatic Partial OFF]]=\"REQ\",SpaceBySpace_2013[[#This Row],[Automatic Full OFF]]=\"REQ\",COUNTIF(SpaceBySpace_2013[[#This Row],[Automatic Partial OFF]:[Scheduled Shutoff]],\"ADD*\")>0),\"Occupancy\",\"\")))","v":"Occupancy + Daylight"},{"$f":"SpaceBySpace_2013[[#This Row],[%DL]]*SpaceBySpace_2013[[#This Row],[B. CSF (Wndws)]]+(1-SpaceBySpace_2013[[#This Row],[%DL]])*SpaceBySpace_2013[[#This Row],[B. CSF (No Wndws)]]","v":0.24},0,{"$f":"IF(SpaceBySpace_2013[[#This Row],[B. CSF (Wndws)]]=0.38,0.24,0)","v":0.24},{"$f":"VLOOKUP(K102,'Measure Tables'!$A$2:$C$7,3,FALSE)","v":0.38},"REQ","ADD1","ADD1","REQ","REQ",null,"ADD2","ADD2"]
[null,null,null,null,null,"Sports Arena, Court (Class 2)",2.4,"W/ft2",4,0,{"$f":"IF(AND(SpaceBySpace_2013[[#This Row],[Automatic Daylighting Control]]=\"REQ\",OR(SpaceBySpace_2013[[#This Row],[Automatic Partial OFF]]=\"REQ\",SpaceBySpace_2013[[#This Row],[Partial Automatic ON]]=\"REQ\",SpaceBySpace_2013[[#This Row],[Automatic Full OFF]]=\"REQ\",COUNTIF(SpaceBySpace_2013[[#This Row],[Automatic Partial OFF]:[Scheduled Shutoff]],\"ADD*\")>0)),\"Occupancy + Daylight\",\nIF(SpaceBySpace_2013[[#This Row],[Automatic Daylighting Control]]=\"REQ\",\"Daylight Harvesting\",\nIF(OR(SpaceBySpace_2013[[#This Row],[Partial Automatic ON]]=\"REQ\",SpaceBySpace_2013[[#This Row],[Automatic Partial OFF]]=\"REQ\",SpaceBySpace_2013[[#This Row],[Automatic Full OFF]]=\"REQ\",COUNTIF(SpaceBySpace_2013[[#This Row],[Automatic Partial OFF]:[Scheduled Shutoff]],\"ADD*\")>0),\"Occupancy\",\"\")))","v":"Occupancy + Daylight"},{"$f":"SpaceBySpace_2013[[#This Row],[%DL]]*SpaceBySpace_2013[[#This Row],[B. CSF (Wndws)]]+(1-SpaceBySpace_2013[[#This Row],[%DL]])*SpaceBySpace_2013[[#This Row],[B. CSF (No Wndws)]]","v":0.24},0,{"$f":"IF(SpaceBySpace_2013[[#This Row],[B. CSF (Wndws)]]=0.38,0.24,0)","v":0.24},{"$f":"VLOOKUP(K103,'Measure Tables'!$A$2:$C$7,3,FALSE)","v":0.38},"REQ","ADD1","ADD1","REQ","REQ",null,"ADD2","ADD2"]
[null,null,null,null,null,"Sports Arena, Court (Class 1)",3.68,"W/ft2",4,0,{"$f":"IF(AND(SpaceBySpace_2013[[#This Row],[Automatic Daylighting Control]]=\"REQ\",OR(SpaceBySpace_2013[[#This Row],[Automatic Partial OFF]]=\"REQ\",SpaceBySpace_2013[[#This Row],[Partial Automatic ON]]=\"REQ\",SpaceBySpace_2013[[#This Row],[Automatic Full OFF]]=\"REQ\",COUNTIF(SpaceBySpace_2013[[#This Row],[Automatic Partial OFF]:[Scheduled Shutoff]],\"ADD*\")>0)),\"Occupancy + Daylight\",\nIF(SpaceBySpace_2013[[#This Row],[Automatic Daylighting Control]]=\"REQ\",\"Daylight Harvesting\",\nIF(OR(SpaceBySpace_2013[[#This Row],[Partial Automatic ON]]=\"REQ\",SpaceBySpace_2013[[#This Row],[Automatic Partial OFF]]=\"REQ\",SpaceBySpace_2013[[#This Row],[Automatic Full OFF]]=\"REQ\",COUNTIF(SpaceBySpace_2013[[#This Row],[Automatic Partial OFF]:[Scheduled Shutoff]],\"ADD*\")>0),\"Occupancy\",\"\")))","v":"Occupancy + Daylight"},{"$f":"SpaceBySpace_2013[[#This Row],[%DL]]*SpaceBySpace_2013[[#This Row],[B. CSF (Wndws)]]+(1-SpaceBySpace_2013[[#This Row],[%DL]])*SpaceBySpace_2013[[#This Row],[B. CSF (No Wndws)]]","v":0.24},0,{"$f":"IF(SpaceBySpace_2013[[#This Row],[B. CSF (Wndws)]]=0.38,0.24,0)","v":0.24},{"$f":"VLOOKUP(K104,'Measure Tables'!$A$2:$C$7,3,FALSE)","v":0.38},"REQ","ADD1","ADD1","REQ","REQ",null,"ADD2","ADD2"]
[null,null,null,null,null,"Sports Arena, Ring Arena",2.68,"W/ft2",4,0,{"$f":"IF(AND(SpaceBySpace_2013[[#This Row],[Automatic Daylighting Control]]=\"REQ\",OR(SpaceBySpace_2013[[#This Row],[Automatic Partial OFF]]=\"REQ\",SpaceBySpace_2013[[#This Row],[Partial Automatic ON]]=\"REQ\",SpaceBySpace_2013[[#This Row],[Automatic Full OFF]]=\"REQ\",COUNTIF(SpaceBySpace_2013[[#This Row],[Automatic Partial OFF]:[Scheduled Shutoff]],\"ADD*\")>0)),\"Occupancy + Daylight\",\nIF(SpaceBySpace_2013[[#This Row],[Automatic Daylighting Control]]=\"REQ\",\"Daylight Harvesting\",\nIF(OR(SpaceBySpace_2013[[#This Row],[Partial Automatic ON]]=\"REQ\",SpaceBySpace_2013[[#This Row],[Automatic Partial OFF]]=\"REQ\",SpaceBySpace_2013[[#This Row],[Automatic Full OFF]]=\"REQ\",COUNTIF(SpaceBySpace_2013[[#This Row],[Automatic Partial OFF]:[Scheduled Shutoff]],\"ADD*\")>0),\"Occupancy\",\"\")))","v":"Occupancy + Daylight"},{"$f":"SpaceBySpace_2013[[#This Row],[%DL]]*SpaceBySpace_2013[[#This Row],[B. CSF (Wndws)]]+(1-SpaceBySpace_2013[[#This Row],[%DL]])*SpaceBySpace_2013[[#This Row],[B. CSF (No Wndws)]]","v":0.24},0,{"$f":"IF(SpaceBySpace_2013[[#This Row],[B. CSF (Wndws)]]=0.38,0.24,0)","v":0.24},{"$f":"VLOOKUP(K105,'Measure Tables'!$A$2:$C$7,3,FALSE)","v":0.38},"REQ","ADD1","ADD1","REQ","REQ",null,"ADD2","ADD2"]
[null,null,null,null,null,"Transportation, Air/Train/Bus Baggage Area",0.53,"W/ft2",4,0,{"$f":"IF(AND(SpaceBySpace_2013[[#This Row],[Automatic Daylighting Control]]=\"REQ\",OR(SpaceBySpace_2013[[#This Row],[Automatic Partial OFF]]=\"REQ\",SpaceBySpace_2013[[#This Row],[Partial Automatic ON]]=\"REQ\",SpaceBySpace_2013[[#This Row],[Automatic Full OFF]]=\"REQ\",COUNTIF(SpaceBySpace_2013[[#This Row],[Automatic Partial OFF]:[Scheduled Shutoff]],\"ADD*\")>0)),\"Occupancy + Daylight\",\nIF(SpaceBySpace_2013[[#This Row],[Automatic Daylighting Control]]=\"REQ\",\"Daylight Harvesting\",\nIF(OR(SpaceBySpace_2013[[#This Row],[Partial Automatic ON]]=\"REQ\",SpaceBySpace_2013[[#This Row],[Automatic Partial OFF]]=\"REQ\",SpaceBySpace_2013[[#This Row],[Automatic Full OFF]]=\"REQ\",COUNTIF(SpaceBySpace_2013[[#This Row],[Automatic Partial OFF]:[Scheduled Shutoff]],\"ADD*\")>0),\"Occupancy\",\"\")))","v":"Occupancy + Daylight"},{"$f":"SpaceBySpace_2013[[#This Row],[%DL]]*SpaceBySpace_2013[[#This Row],[B. CSF (Wndws)]]+(1-SpaceBySpace_2013[[#This Row],[%DL]])*SpaceBySpace_2013[[#This Row],[B. CSF (No Wndws)]]","v":0.24},0,{"$f":"IF(SpaceBySpace_2013[[#This Row],[B. CSF (Wndws)]]=0.38,0.24,0)","v":0.24},{"$f":"VLOOKUP(K106,'Measure Tables'!$A$2:$C$7,3,FALSE)","v":0.38},"REQ","ADD1","ADD1",null,"REQ",null,"ADD2","ADD2"]
[null,null,null,null,null,"Transportation, Airport Concourse",0.36,"W/ft2",4,0,{"$f":"IF(AND(SpaceBySpace_2013[[#This Row],[Automatic Daylighting Control]]=\"REQ\",OR(SpaceBySpace_2013[[#This Row],[Automatic Partial OFF]]=\"REQ\",SpaceBySpace_2013[[#This Row],[Partial Automatic ON]]=\"REQ\",SpaceBySpace_2013[[#This Row],[Automatic Full OFF]]=\"REQ\",COUNTIF(SpaceBySpace_2013[[#This Row],[Automatic Partial OFF]:[Scheduled Shutoff]],\"ADD*\")>0)),\"Occupancy + Daylight\",\nIF(SpaceBySpace_2013[[#This Row],[Automatic Daylighting Control]]=\"REQ\",\"Daylight Harvesting\",\nIF(OR(SpaceBySpace_2013[[#This Row],[Partial Automatic ON]]=\"REQ\",SpaceBySpace_2013[[#This Row],[Automatic Partial OFF]]=\"REQ\",SpaceBySpace_2013[[#This Row],[Automatic Full OFF]]=\"REQ\",COUNTIF(SpaceBySpace_2013[[#This Row],[Automatic Partial OFF]:[Scheduled Shutoff]],\"ADD*\")>0),\"Occupancy\",\"\")))","v":"Occupancy + Daylight"},{"$f":"SpaceBySpace_2013[[#This Row],[%DL]]*SpaceBySpace_2013[[#This Row],[B. CSF (Wndws)]]+(1-SpaceBySpace_2013[[#This Row],[%DL]])*SpaceBySpace_2013[[#This Row],[B. CSF (No Wndws)]]","v":0.26100000000000001},0.15,{"$f":"IF(SpaceBySpace_2013[[#This Row],[B. CSF (Wndws)]]=0.38,0.24,0)","v":0.24},{"$f":"VLOOKUP(K107,'Measure Tables'!$A$2:$C$7,3,FALSE)","v":0.38},"REQ","ADD1","ADD1",null,"REQ",null,"ADD2","ADD2"]
[null,null,null,null,null,"Transportation, Audience Seating",0.54,"W/ft2",4,0,{"$f":"IF(AND(SpaceBySpace_2013[[#This Row],[Automatic Daylighting Control]]=\"REQ\",OR(SpaceBySpace_2013[[#This Row],[Automatic Partial OFF]]=\"REQ\",SpaceBySpace_2013[[#This Row],[Partial Automatic ON]]=\"REQ\",SpaceBySpace_2013[[#This Row],[Automatic Full OFF]]=\"REQ\",COUNTIF(SpaceBySpace_2013[[#This Row],[Automatic Partial OFF]:[Scheduled Shutoff]],\"ADD*\")>0)),\"Occupancy + Daylight\",\nIF(SpaceBySpace_2013[[#This Row],[Automatic Daylighting Control]]=\"REQ\",\"Daylight Harvesting\",\nIF(OR(SpaceBySpace_2013[[#This Row],[Partial Automatic ON]]=\"REQ\",SpaceBySpace_2013[[#This Row],[Automatic Partial OFF]]=\"REQ\",SpaceBySpace_2013[[#This Row],[Automatic Full OFF]]=\"REQ\",COUNTIF(SpaceBySpace_2013[[#This Row],[Automatic Partial OFF]:[Scheduled Shutoff]],\"ADD*\")>0),\"Occupancy\",\"\")))","v":"Occupancy + Daylight"},{"$f":"SpaceBySpace_2013[[#This Row],[%DL]]*SpaceBySpace_2013[[#This Row],[B. CSF (Wndws)]]+(1-SpaceBySpace_2013[[#This Row],[%DL]])*SpaceBySpace_2013[[#This Row],[B. CSF (No Wndws)]]","v":0.38},1,{"$f":"IF(SpaceBySpace_2013[[#This Row],[B. CSF (Wndws)]]=0.38,0.24,0)","v":0.24},{"$f":"VLOOKUP(K108,'Measure Tables'!$A$2:$C$7,3,FALSE)","v":0.38},"REQ","ADD1","ADD1","REQ","REQ",null,"ADD2","ADD2"]
[null,null,null,null,null,"Transportation, Terminal Ticketing Counter",0.8,"W/ft2",4,0,{"$f":"IF(AND(SpaceBySpace_2013[[#This Row],[Automatic Daylighting Control]]=\"REQ\",OR(SpaceBySpace_2013[[#This Row],[Automatic Partial OFF]]=\"REQ\",SpaceBySpace_2013[[#This Row],[Partial Automatic ON]]=\"REQ\",SpaceBySpace_2013[[#This Row],[Automatic Full OFF]]=\"REQ\",COUNTIF(SpaceBySpace_2013[[#This Row],[Automatic Partial OFF]:[Scheduled Shutoff]],\"ADD*\")>0)),\"Occupancy + Daylight\",\nIF(SpaceBySpace_2013[[#This Row],[Automatic Daylighting Control]]=\"REQ\",\"Daylight Harvesting\",\nIF(OR(SpaceBySpace_2013[[#This Row],[Partial Automatic ON]]=\"REQ\",SpaceBySpace_2013[[#This Row],[Automatic Partial OFF]]=\"REQ\",SpaceBySpace_2013[[#This Row],[Automatic Full OFF]]=\"REQ\",COUNTIF(SpaceBySpace_2013[[#This Row],[Automatic Partial OFF]:[Scheduled Shutoff]],\"ADD*\")>0),\"Occupancy\",\"\")))","v":"Occupancy + Daylight"},{"$f":"SpaceBySpace_2013[[#This Row],[%DL]]*SpaceBySpace_2013[[#This Row],[B. CSF (Wndws)]]+(1-SpaceBySpace_2013[[#This Row],[%DL]])*SpaceBySpace_2013[[#This Row],[B. CSF (No Wndws)]]","v":0.24},0,{"$f":"IF(SpaceBySpace_2013[[#This Row],[B. CSF (Wndws)]]=0.38,0.24,0)","v":0.24},{"$f":"VLOOKUP(K109,'Measure Tables'!$A$2:$C$7,3,FALSE)","v":0.38},"REQ","ADD1","ADD1","REQ","REQ",null,"ADD2","ADD2"]
[null,null,null,null,null,"Visually Impaired, Chapel",2.21,"W/ft2",4,0,{"$f":"IF(AND(SpaceBySpace_2013[[#This Row],[Automatic Daylighting Control]]=\"REQ\",OR(SpaceBySpace_2013[[#This Row],[Automatic Partial OFF]]=\"REQ\",SpaceBySpace_2013[[#This Row],[Partial Automatic ON]]=\"REQ\",SpaceBySpace_2013[[#This Row],[Automatic Full OFF]]=\"REQ\",COUNTIF(SpaceBySpace_2013[[#This Row],[Automatic Partial OFF]:[Scheduled Shutoff]],\"ADD*\")>0)),\"Occupancy + Daylight\",\nIF(SpaceBySpace_2013[[#This Row],[Automatic Daylighting Control]]=\"REQ\",\"Daylight Harvesting\",\nIF(OR(SpaceBySpace_2013[[#This Row],[Partial Automatic ON]]=\"REQ\",SpaceBySpace_2013[[#This Row],[Automatic Partial OFF]]=\"REQ\",SpaceBySpace_2013[[#This Row],[Automatic Full OFF]]=\"REQ\",COUNTIF(SpaceBySpace_2013[[#This Row],[Automatic Partial OFF]:[Scheduled Shutoff]],\"ADD*\")>0),\"Occupancy\",\"\")))","v":"Occupancy + Daylight"},{"$f":"SpaceBySpace_2013[[#This Row],[%DL]]*SpaceBySpace_2013[[#This Row],[B. CSF (Wndws)]]+(1-SpaceBySpace_2013[[#This Row],[%DL]])*SpaceBySpace_2013[[#This Row],[B. CSF (No Wndws)]]","v":0.31},0.5,{"$f":"IF(SpaceBySpace_2013[[#This Row],[B. CSF (Wndws)]]=0.38,0.24,0)","v":0.24},{"$f":"VLOOKUP(K110,'Measure Tables'!$A$2:$C$7,3,FALSE)","v":0.38},"REQ","ADD1","ADD1","REQ","REQ",null,"ADD2","ADD2"]
[null,null,null,null,null,"Visually Impaired, Corridor/Transition",0.92,"W/ft2",0,8,{"$f":"IF(AND(SpaceBySpace_2013[[#This Row],[Automatic Daylighting Control]]=\"REQ\",OR(SpaceBySpace_2013[[#This Row],[Automatic Partial OFF]]=\"REQ\",SpaceBySpace_2013[[#This Row],[Partial Automatic ON]]=\"REQ\",SpaceBySpace_2013[[#This Row],[Automatic Full OFF]]=\"REQ\",COUNTIF(SpaceBySpace_2013[[#This Row],[Automatic Partial OFF]:[Scheduled Shutoff]],\"ADD*\")>0)),\"Occupancy + Daylight\",\nIF(SpaceBySpace_2013[[#This Row],[Automatic Daylighting Control]]=\"REQ\",\"Daylight Harvesting\",\nIF(OR(SpaceBySpace_2013[[#This Row],[Partial Automatic ON]]=\"REQ\",SpaceBySpace_2013[[#This Row],[Automatic Partial OFF]]=\"REQ\",SpaceBySpace_2013[[#This Row],[Automatic Full OFF]]=\"REQ\",COUNTIF(SpaceBySpace_2013[[#This Row],[Automatic Partial OFF]:[Scheduled Shutoff]],\"ADD*\")>0),\"Occupancy\",\"\")))","v":"Occupancy + Daylight"},{"$f":"SpaceBySpace_2013[[#This Row],[%DL]]*SpaceBySpace_2013[[#This Row],[B. CSF (Wndws)]]+(1-SpaceBySpace_2013[[#This Row],[%DL]])*SpaceBySpace_2013[[#This Row],[B. CSF (No Wndws)]]","v":0.26100000000000001},0.15,{"$f":"IF(SpaceBySpace_2013[[#This Row],[B. CSF (Wndws)]]=0.38,0.24,0)","v":0.24},{"$f":"VLOOKUP(K111,'Measure Tables'!$A$2:$C$7,3,FALSE)","v":0.38},"REQ",null,null,null,"REQ","REQ","ADD2","ADD2"]
[null,null,null,null,null,"Visually Impaired, Dining Area",2.65,"W/ft2",4,0,{"$f":"IF(AND(SpaceBySpace_2013[[#This Row],[Automatic Daylighting Control]]=\"REQ\",OR(SpaceBySpace_2013[[#This Row],[Automatic Partial OFF]]=\"REQ\",SpaceBySpace_2013[[#This Row],[Partial Automatic ON]]=\"REQ\",SpaceBySpace_2013[[#This Row],[Automatic Full OFF]]=\"REQ\",COUNTIF(SpaceBySpace_2013[[#This Row],[Automatic Partial OFF]:[Scheduled Shutoff]],\"ADD*\")>0)),\"Occupancy + Daylight\",\nIF(SpaceBySpace_2013[[#This Row],[Automatic Daylighting Control]]=\"REQ\",\"Daylight Harvesting\",\nIF(OR(SpaceBySpace_2013[[#This Row],[Partial Automatic ON]]=\"REQ\",SpaceBySpace_2013[[#This Row],[Automatic Partial OFF]]=\"REQ\",SpaceBySpace_2013[[#This Row],[Automatic Full OFF]]=\"REQ\",COUNTIF(SpaceBySpace_2013[[#This Row],[Automatic Partial OFF]:[Scheduled Shutoff]],\"ADD*\")>0),\"Occupancy\",\"\")))","v":"Occupancy + Daylight"},{"$f":"SpaceBySpace_2013[[#This Row],[%DL]]*SpaceBySpace_2013[[#This Row],[B. CSF (Wndws)]]+(1-SpaceBySpace_2013[[#This Row],[%DL]])*SpaceBySpace_2013[[#This Row],[B. CSF (No Wndws)]]","v":0.26100000000000001},0.15,{"$f":"IF(SpaceBySpace_2013[[#This Row],[B. CSF (Wndws)]]=0.38,0.24,0)","v":0.24},{"$f":"VLOOKUP(K112,'Measure Tables'!$A$2:$C$7,3,FALSE)","v":0.38},"REQ","ADD1","ADD1","REQ","REQ",null,"ADD2","ADD2"]
[null,null,null,null,null,"Visually Impaired, Lobby",1.8,"W/ft2",4,0,{"$f":"IF(AND(SpaceBySpace_2013[[#This Row],[Automatic Daylighting Control]]=\"REQ\",OR(SpaceBySpace_2013[[#This Row],[Automatic Partial OFF]]=\"REQ\",SpaceBySpace_2013[[#This Row],[Partial Automatic ON]]=\"REQ\",SpaceBySpace_2013[[#This Row],[Automatic Full OFF]]=\"REQ\",COUNTIF(SpaceBySpace_2013[[#This Row],[Automatic Partial OFF]:[Scheduled Shutoff]],\"ADD*\")>0)),\"Occupancy + Daylight\",\nIF(SpaceBySpace_2013[[#This Row],[Automatic Daylighting Control]]=\"REQ\",\"Daylight Harvesting\",\nIF(OR(SpaceBySpace_2013[[#This Row],[Partial Automatic ON]]=\"REQ\",SpaceBySpace_2013[[#This Row],[Automatic Partial OFF]]=\"REQ\",SpaceBySpace_2013[[#This Row],[Automatic Full OFF]]=\"REQ\",COUNTIF(SpaceBySpace_2013[[#This Row],[Automatic Partial OFF]:[Scheduled Shutoff]],\"ADD*\")>0),\"Occupancy\",\"\")))","v":"Occupancy + Daylight"},{"$f":"SpaceBySpace_2013[[#This Row],[%DL]]*SpaceBySpace_2013[[#This Row],[B. CSF (Wndws)]]+(1-SpaceBySpace_2013[[#This Row],[%DL]])*SpaceBySpace_2013[[#This Row],[B. CSF (No Wndws)]]","v":0.31},0.5,{"$f":"IF(SpaceBySpace_2013[[#This Row],[B. CSF (Wndws)]]=0.38,0.24,0)","v":0.24},{"$f":"VLOOKUP(K113,'Measure Tables'!$A$2:$C$7,3,FALSE)","v":0.38},"REQ",null,null,null,"REQ","REQ","ADD2","ADD2"]
[null,null,null,null,null,"Visually Impaired, Recreation/Common Area",2.41,"W/ft2",6,0,"Occupancy + Daylight",{"$f":"SpaceBySpace_2013[[#This Row],[%DL]]*SpaceBySpace_2013[[#This Row],[B. CSF (Wndws)]]+(1-SpaceBySpace_2013[[#This Row],[%DL]])*SpaceBySpace_2013[[#This Row],[B. CSF (No Wndws)]]","v":0.27500000000000002},0.25,0.24,0.38]
[null,null,null,null,null,"Visually Impaired, Restroom",1.21,"W/ft2",8,0,"Occupancy",{"$f":"SpaceBySpace_2013[[#This Row],[%DL]]*SpaceBySpace_2013[[#This Row],[B. CSF (Wndws)]]+(1-SpaceBySpace_2013[[#This Row],[%DL]])*SpaceBySpace_2013[[#This Row],[B. CSF (No Wndws)]]","v":0.24},0,0.24,{"$f":"VLOOKUP(K115,'Measure Tables'!$A$2:$C$7,3,FALSE)","v":0.24},"REQ",null,null,null,"REQ",null,"REQ"]
[null,null,null,null,null,"Warehouse, Fine Material Storage",0.95,"W/ft2",6,0,{"$f":"IF(AND(SpaceBySpace_2013[[#This Row],[Automatic Daylighting Control]]=\"REQ\",OR(SpaceBySpace_2013[[#This Row],[Automatic Partial OFF]]=\"REQ\",SpaceBySpace_2013[[#This Row],[Partial Automatic ON]]=\"REQ\",SpaceBySpace_2013[[#This Row],[Automatic Full OFF]]=\"REQ\",COUNTIF(SpaceBySpace_2013[[#This Row],[Automatic Partial OFF]:[Scheduled Shutoff]],\"ADD*\")>0)),\"Occupancy + Daylight\",\nIF(SpaceBySpace_2013[[#This Row],[Automatic Daylighting Control]]=\"REQ\",\"Daylight Harvesting\",\nIF(OR(SpaceBySpace_2013[[#This Row],[Partial Automatic ON]]=\"REQ\",SpaceBySpace_2013[[#This Row],[Automatic Partial OFF]]=\"REQ\",SpaceBySpace_2013[[#This Row],[Automatic Full OFF]]=\"REQ\",COUNTIF(SpaceBySpace_2013[[#This Row],[Automatic Partial OFF]:[Scheduled Shutoff]],\"ADD*\")>0),\"Occupancy\",\"\")))","v":"Occupancy + Daylight"},{"$f":"SpaceBySpace_2013[[#This Row],[%DL]]*SpaceBySpace_2013[[#This Row],[B. CSF (Wndws)]]+(1-SpaceBySpace_2013[[#This Row],[%DL]])*SpaceBySpace_2013[[#This Row],[B. CSF (No Wndws)]]","v":0.24},0,{"$f":"IF(SpaceBySpace_2013[[#This Row],[B. CSF (Wndws)]]=0.38,0.24,0)","v":0.24},{"$f":"VLOOKUP(K116,'Measure Tables'!$A$2:$C$7,3,FALSE)","v":0.38},"REQ","ADD1","ADD1","REQ","REQ","REQ","ADD2","ADD2"]
[null,null,null,null,null,"Warehouse, Medium/Bulky Material Storage",0.57999999999999996,"W/ft2",4,0,{"$f":"IF(AND(SpaceBySpace_2013[[#This Row],[Automatic Daylighting Control]]=\"REQ\",OR(SpaceBySpace_2013[[#This Row],[Automatic Partial OFF]]=\"REQ\",SpaceBySpace_2013[[#This Row],[Partial Automatic ON]]=\"REQ\",SpaceBySpace_2013[[#This Row],[Automatic Full OFF]]=\"REQ\",COUNTIF(SpaceBySpace_2013[[#This Row],[Automatic Partial OFF]:[Scheduled Shutoff]],\"ADD*\")>0)),\"Occupancy + Daylight\",\nIF(SpaceBySpace_2013[[#This Row],[Automatic Daylighting Control]]=\"REQ\",\"Daylight Harvesting\",\nIF(OR(SpaceBySpace_2013[[#This Row],[Partial Automatic ON]]=\"REQ\",SpaceBySpace_2013[[#This Row],[Automatic Partial OFF]]=\"REQ\",SpaceBySpace_2013[[#This Row],[Automatic Full OFF]]=\"REQ\",COUNTIF(SpaceBySpace_2013[[#This Row],[Automatic Partial OFF]:[Scheduled Shutoff]],\"ADD*\")>0),\"Occupancy\",\"\")))","v":"Occupancy + Daylight"},{"$f":"SpaceBySpace_2013[[#This Row],[%DL]]*SpaceBySpace_2013[[#This Row],[B. CSF (Wndws)]]+(1-SpaceBySpace_2013[[#This Row],[%DL]])*SpaceBySpace_2013[[#This Row],[B. CSF (No Wndws)]]","v":0.24},0,{"$f":"IF(SpaceBySpace_2013[[#This Row],[B. CSF (Wndws)]]=0.38,0.24,0)","v":0.24},{"$f":"VLOOKUP(K117,'Measure Tables'!$A$2:$C$7,3,FALSE)","v":0.38},"REQ","ADD1","ADD1","REQ","REQ","REQ","ADD2","ADD2"]

{"sheet":"ASHRAE 90.1-2013 Exterior","index":27,"n_rows":37,"n_cols":9,"rows_kept":37,"cut":false,"hidden":true,"merged":[[33,6,34,6],[5,0,25,0],[5,1,5,7],[6,1,7,1],[6,2,7,2],[6,3,7,3],[33,7,34,7],[6,6,7,6],[6,7,7,7],[28,0,36,0],[30,2,31,2],[33,1,34,1],[33,2,34,2],[33,3,34,3],[33,4,34,4],[33,5,34,5],[6,4,7,4],[6,5,7,5],[23,1,23,7],[21,1,21,7],[16,1,16,7],[8,1,8,7]]}
["TABLE 9.4.2-2 Individual Lighting Power Allowances for Building Exteriors"]
[]
[null,null,"Zone 0","Zone 1","Zone 2","Zone 3","Zone 4","Units"]
[null,"Base Allowance","No Allowance",500,600,750,1300,"Per Site"]
[]
["Tradeable Surfaces (Lighting power densities for uncovered parking areas, building grounds, building entrances and eits, canopies and overhangs, and otdoor sales areas may be traded.)                                                   ","Uncovered Parking Areas"]
[null,"Parking Lots and drives","No Allowance",0.04,0.06,0.1,0.13,"W/ft²"]
[]
[null,"Building Grounds"]
[null,"Walkways less than 10 feet wide","No Allowance",0.7,0.7,0.8,0.8,"W/ft"]
[null,"Walkways 10 feet wide or greater","No Allowance",0.14000000000000001,0.14000000000000001,0.16,0.2]
[null,"Plaza areas","No Allowance",0.14000000000000001,0.14000000000000001,0.16,0.2,"W/ft²"]
[null,"Special Feature areas","No Allowance",0.14000000000000001,0.14000000000000001,0.16,0.2]
[null,"Stairways","No Allowance",0.75,1,1,1,"W/ft²"]
[null,"Pedestrian Tunnels","No Allowance",0.15,0.15,0.2,0.2,"W/ft²"]
[null,"Landscaping","No Allowance",0.04,0.05,0.05,0.05,"W/ft²"]
[null,"Building Entrances and Exits"]
[null,"Main entries","No Allowance",20,20,30,30,"W/ft"]
[null,"Other doors","No Allowance",20,20,20,20,"W/ft"]
[null,"Entry Canopies","No Allowance",0.25,0.25,0.4,0.4,"W/ft²"]
[null,"Loading Docks","No Allowance",0.5,0.5,0.5,0.5,"W/ft²"]
[null,"Sales Canopies"]
[null,"Canopies (free standing and attached)","No Allowance",0.6,0.6,0.8,1,"W/ft²"]
[null,"Outdoor Sales"]
[null,"Open areas (including vehicle sales lots)","No Allowance",0.25,0.25,0.5,0.7,"W/ft²"]
[null,"Street frontage for vehicle sales lots in addition to \"open area\" allowance","No Allowance","No Allowance",10,10,30,"W/ft"]
[]
[]
["Non-Tradable Surfaces (Lighting power density calculations for the following applications can be used only for the specific application and cannot be traded between surfaces or with other exterior lighting.  The following allowances are in addition to any allowance otherwise permitted in the \"tradeable surfaces\" section of this table.)","Building Facades","No Allowance","No Allowance",0.1,0.15,0.2,"W/ft²","Square Feet"]
[null,null,"No Allowance","No Allowance",2.5,3.75,5,"W/ft","Linear Feet"]
[null,"Automated teller machines and night depositories (per facility)","No Allowance",270,270,270,270]
[null,"Automated teller machines and night depositories (additional ATM)",null,90,90,90,90,"Each"]
[null,"Entrances and gatehouse inspection station at guarded facilities","No Allowance",0.75,0.75,0.75,0.75,"W/ft²"]
[null,"Loading areas for law enforcement, fire, ambulance, and other emergency service vehicles","No Allowance",0.5,0.5,0.5,0.5,"W/ft²"]
[]
[null,"Drive up windows at fast food restaurants","No Allowance",400,400,400,400,"Each"]
[null,"Parking near 24-hour retail entrances","No Allowance",800,800,800,800,"Each"]

{"sheet":"ASHRAE 90.1-2016 Interior","index":28,"n_rows":117,"n_cols":32,"rows_kept":117,"cut":false,"hidden":true,"merged":[[39,25,40,25],[39,26,40,27],[41,26,41,27],[34,25,34,27],[35,25,36,25],[35,26,36,27],[37,25,38,25],[37,26,38,27]]}
[]
[]
["TABLE 9.5.1 Lighting Power Densities Using the Building Area Method",null,null,null,null,"TABLE 9.6.1 Lighting Power Density Allowances Using the Space-by-Space Method and Minimum Control Requirements Using Either Method",null,null,null,null,null,null,null,null,null,null,null,null,null,null,null,null,null,null,null,"TABLE 9.6.3 Control Factors Used in Calculating Additional Interior Lighting Power Allowance"]
["Building Area Type","LPD (W/ft2)","Units","B. CSF",null,"Space-By-Space Area Type","LPD","Units","RCR Threshold","Max Width","Minimum Lighting Control","B. CSF","%DL","B. CSF (No Wndws)","B. CSF (Wndws)","Local Control","Manual ON","Partial Automatic ON","Bilevel Lighting Control","Automatic Daylighting Control","Automatic Partial OFF","Automatic Full OFF","Scheduled Shutoff",null,null,"Facility Type","None","Dimming Control (Manual/Simple)","Dimming Control (Programmable Time Scheduling)","Workstation Occupancy Control","Workstation Occupancy Control + Manual Dimming","Secondary Daylighting Controls"]
["Assisted Living Facility",1.29,"W/ft2",{"$f":"L19*0.005 + L22*0.025 + L25*0.01 + L29*0.02 + L31*0.05 + L39*0.01 + L40*0.04 + L52*0.58 + L111*0.1 + L112 * 0.08 + L113 * 0.02 + L114*0.05 + L115*0.01","v":0.11525500000000001},null,"Atrium, first 20ft",0.03,"W/ft-ft2",0,0,{"$f":"IF(AND(SpaceBySpace_2013[[#This Row],[Automatic Daylighting Control]]=\"REQ\",OR(SpaceBySpace_2013[[#This Row],[Automatic Partial OFF]]=\"REQ\",SpaceBySpace_2013[[#This Row],[Partial Automatic ON]]=\"REQ\",SpaceBySpace_2013[[#This Row],[Automatic Full OFF]]=\"REQ\",COUNTIF(SpaceBySpace_2013[[#This Row],[Automatic Partial OFF]:[Scheduled Shutoff]],\"ADD*\")>0)),\"Occupancy + Daylight\",\nIF(SpaceBySpace_2013[[#This Row],[Automatic Daylighting Control]]=\"REQ\",\"Daylight Harvesting\",\nIF(OR(SpaceBySpace_2013[[#This Row],[Partial Automatic ON]]=\"REQ\",SpaceBySpace_2013[[#This Row],[Automatic Partial OFF]]=\"REQ\",SpaceBySpace_2013[[#This Row],[Automatic Full OFF]]=\"REQ\",COUNTIF(SpaceBySpace_2013[[#This Row],[Automatic Partial OFF]:[Scheduled Shutoff]],\"ADD*\")>0),\"Occupancy\",\"\")))","v":"Occupancy + Daylight"},{"$f":"SpaceBySpace_2013[[#This Row],[%DL]]*SpaceBySpace_2013[[#This Row],[B. CSF (Wndws)]]+(1-SpaceBySpace_2013[[#This Row],[%DL]])*SpaceBySpace_2013[[#This Row],[B. CSF (No Wndws)]]","v":0.38},1,{"$f":"IF(SpaceBySpace_2013[[#This Row],[B. CSF (Wndws)]]=0.38,0.24,0)","v":0.24},{"$f":"VLOOKUP(K5,'Measure Tables'!$A$2:$C$7,3,FALSE)","v":0.38},"REQ","ADD1","ADD1",null,"REQ",null,"ADD2","ADD2",null,null,{"$f":"F33","v":"Office, Open Plan"},0,0.05,0.05,0.25,0.3,0.1]
["Automotive Facility",0.71,"W/ft2",{"$f":"L15*0.05 + L19*0.02 + L26*0.01 + L30*0.02 + L31*0.05 + L33*0.15 + L35*0.02 + L380*0.02 + L41*0.25 + M95*0.41","v":0.21279000000000001},null,"Atrium, 20-40ft",0.03,"W/ft-ft2",0,0,{"$f":"IF(AND(SpaceBySpace_2013[[#This Row],[Automatic Daylighting Control]]=\"REQ\",OR(SpaceBySpace_2013[[#This Row],[Automatic Partial OFF]]=\"REQ\",SpaceBySpace_2013[[#This Row],[Partial Automatic ON]]=\"REQ\",SpaceBySpace_2013[[#This Row],[Automatic Full OFF]]=\"REQ\",COUNTIF(SpaceBySpace_2013[[#This Row],[Automatic Partial OFF]:[Scheduled Shutoff]],\"ADD*\")>0)),\"Occupancy + Daylight\",\nIF(SpaceBySpace_2013[[#This Row],[Automatic Daylighting Control]]=\"REQ\",\"Daylight Harvesting\",\nIF(OR(SpaceBySpace_2013[[#This Row],[Partial Automatic ON]]=\"REQ\",SpaceBySpace_2013[[#This Row],[Automatic Partial OFF]]=\"REQ\",SpaceBySpace_2013[[#This Row],[Automatic Full OFF]]=\"REQ\",COUNTIF(SpaceBySpace_2013[[#This Row],[Automatic Partial OFF]:[Scheduled Shutoff]],\"ADD*\")>0),\"Occupancy\",\"\")))","v":"Occupancy + Daylight"},{"$f":"SpaceBySpace_2013[[#This Row],[%DL]]*SpaceBySpace_2013[[#This Row],[B. CSF (Wndws)]]+(1-SpaceBySpace_2013[[#This Row],[%DL]])*SpaceBySpace_2013[[#This Row],[B. CSF (No Wndws)]]","v":0.38},1,{"$f":"IF(SpaceBySpace_2013[[#This Row],[B. CSF (Wndws)]]=0.38,0.24,0)","v":0.24},{"$f":"VLOOKUP(K6,'Measure Tables'!$A$2:$C$7,3,FALSE)","v":0.38},"REQ","ADD1","ADD1","REQ","REQ",null,"ADD2","ADD2",null,null,{"$f":"F31","v":"Office, Enclosed ≤250 ft2"},0,0.05,0.05,0,0,0.1]
["Casino",{"$f":"ROUND((339544.63*0.663+399488*0.945)/SUM(339544.63,399488),2)","v":0.82},"W/ft2",{"$f":"L10*0.5 + L12*0.02 + L15*0.15 + L19*0.01 + L20*0.02 + L22*0.07 + L26*0.1 + L31*0.08 + L35*0.01 + L39*0.04","v":0.27227000000000001},null,"Atrium, above 40ft","0.40 + 0.02/ft","W/ft2",0,0,{"$f":"IF(AND(SpaceBySpace_2013[[#This Row],[Automatic Daylighting Control]]=\"REQ\",OR(SpaceBySpace_2013[[#This Row],[Automatic Partial OFF]]=\"REQ\",SpaceBySpace_2013[[#This Row],[Partial Automatic ON]]=\"REQ\",SpaceBySpace_2013[[#This Row],[Automatic Full OFF]]=\"REQ\",COUNTIF(SpaceBySpace_2013[[#This Row],[Automatic Partial OFF]:[Scheduled Shutoff]],\"ADD*\")>0)),\"Occupancy + Daylight\",\nIF(SpaceBySpace_2013[[#This Row],[Automatic Daylighting Control]]=\"REQ\",\"Daylight Harvesting\",\nIF(OR(SpaceBySpace_2013[[#This Row],[Partial Automatic ON]]=\"REQ\",SpaceBySpace_2013[[#This Row],[Automatic Partial OFF]]=\"REQ\",SpaceBySpace_2013[[#This Row],[Automatic Full OFF]]=\"REQ\",COUNTIF(SpaceBySpace_2013[[#This Row],[Automatic Partial OFF]:[Scheduled Shutoff]],\"ADD*\")>0),\"Occupancy\",\"\")))","v":"Occupancy + Daylight"},{"$f":"SpaceBySpace_2013[[#This Row],[%DL]]*SpaceBySpace_2013[[#This Row],[B. CSF (Wndws)]]+(1-SpaceBySpace_2013[[#This Row],[%DL]])*SpaceBySpace_2013[[#This Row],[B. CSF (No Wndws)]]","v":0.38},1,{"$f":"IF(SpaceBySpace_2013[[#This Row],[B. CSF (Wndws)]]=0.38,0.24,0)","v":0.24},{"$f":"VLOOKUP(K7,'Measure Tables'!$A$2:$C$7,3,FALSE)","v":0.38},"REQ","ADD1","ADD1","REQ","REQ",null,"ADD2","ADD2",null,null,{"$f":"F32","v":"Office, Enclosed >250 ft2"},0,0.05,0.05,0,0,0.1]
["Convention Center",0.76,"W/ft2",{"$f":"L44*0.05 + L45*0.45 + L12*0.02 + L15*0.15 + L19*0.01 + L20*0.02 + L22*0.07 + L26*0.1 + L31*0.08 + L35*0.01 + L39*0.04","v":0.26877000000000001},null,"Audience/Seating Area (Auditorium)",0.63,"W/ft2",6,0,{"$f":"IF(AND(SpaceBySpace_2013[[#This Row],[Automatic Daylighting Control]]=\"REQ\",OR(SpaceBySpace_2013[[#This Row],[Automatic Partial OFF]]=\"REQ\",SpaceBySpace_2013[[#This Row],[Partial Automatic ON]]=\"REQ\",SpaceBySpace_2013[[#This Row],[Automatic Full OFF]]=\"REQ\",COUNTIF(SpaceBySpace_2013[[#This Row],[Automatic Partial OFF]:[Scheduled Shutoff]],\"ADD*\")>0)),\"Occupancy + Daylight\",\nIF(SpaceBySpace_2013[[#This Row],[Automatic Daylighting Control]]=\"REQ\",\"Daylight Harvesting\",\nIF(OR(SpaceBySpace_2013[[#This Row],[Partial Automatic ON]]=\"REQ\",SpaceBySpace_2013[[#This Row],[Automatic Partial OFF]]=\"REQ\",SpaceBySpace_2013[[#This Row],[Automatic Full OFF]]=\"REQ\",COUNTIF(SpaceBySpace_2013[[#This Row],[Automatic Partial OFF]:[Scheduled Shutoff]],\"ADD*\")>0),\"Occupancy\",\"\")))","v":"Occupancy + Daylight"},{"$f":"SpaceBySpace_2013[[#This Row],[%DL]]*SpaceBySpace_2013[[#This Row],[B. CSF (Wndws)]]+(1-SpaceBySpace_2013[[#This Row],[%DL]])*SpaceBySpace_2013[[#This Row],[B. CSF (No Wndws)]]","v":0.24},0,{"$f":"IF(SpaceBySpace_2013[[#This Row],[B. CSF (Wndws)]]=0.38,0.24,0)","v":0.24},{"$f":"VLOOKUP(K8,'Measure Tables'!$A$2:$C$7,3,FALSE)","v":0.38},"REQ","ADD1","ADD1","REQ","REQ",null,"ADD2","ADD2",null,null,{"$f":"F11","v":"Classroom/Lecture/Training"},0,0.1,0.1,0,0,0.1]
["Court House",0.9,"W/ft2",{"$f":"L5*0.01 + L19*0.01 + L31*0.05 + L35*0.03 + L38*0.02 + L46*0.45 + L47*0.1 + L48*0.13 + L49*0.2","v":0.27639999999999998},null,"Audience/Seating Area (Other)",0.43,"W/ft2",4,0,{"$f":"IF(AND(SpaceBySpace_2013[[#This Row],[Automatic Daylighting Control]]=\"REQ\",OR(SpaceBySpace_2013[[#This Row],[Automatic Partial OFF]]=\"REQ\",SpaceBySpace_2013[[#This Row],[Partial Automatic ON]]=\"REQ\",SpaceBySpace_2013[[#This Row],[Automatic Full OFF]]=\"REQ\",COUNTIF(SpaceBySpace_2013[[#This Row],[Automatic Partial OFF]:[Scheduled Shutoff]],\"ADD*\")>0)),\"Occupancy + Daylight\",\nIF(SpaceBySpace_2013[[#This Row],[Automatic Daylighting Control]]=\"REQ\",\"Daylight Harvesting\",\nIF(OR(SpaceBySpace_2013[[#This Row],[Partial Automatic ON]]=\"REQ\",SpaceBySpace_2013[[#This Row],[Automatic Partial OFF]]=\"REQ\",SpaceBySpace_2013[[#This Row],[Automatic Full OFF]]=\"REQ\",COUNTIF(SpaceBySpace_2013[[#This Row],[Automatic Partial OFF]:[Scheduled Shutoff]],\"ADD*\")>0),\"Occupancy\",\"\")))","v":"Occupancy + Daylight"},{"$f":"SpaceBySpace_2013[[#This Row],[%DL]]*SpaceBySpace_2013[[#This Row],[B. CSF (Wndws)]]+(1-SpaceBySpace_2013[[#This Row],[%DL]])*SpaceBySpace_2013[[#This Row],[B. CSF (No Wndws)]]","v":0.24},0,{"$f":"IF(SpaceBySpace_2013[[#This Row],[B. CSF (Wndws)]]=0.38,0.24,0)","v":0.24},{"$f":"VLOOKUP(K9,'Measure Tables'!$A$2:$C$7,3,FALSE)","v":0.38},"REQ","ADD1","ADD1",null,"REQ",null,"ADD2","ADD2",null,null,{"$f":"F12","v":"Conference/Meeting/Multipurpose"},0,0.1,0.1,0,0,0.1]
["Data Center",{"$f":"G6","v":0.03},"W/ft2",{"$f":"L12*0.02 + L13*0.65 + L15*0.15 + L19*0.1 + M26*0.01 + L31*0.02 + L33*0.04 + L35*0.005 + L39*0.005","v":0.25653999999999993},null,"Casino Floor",{"$f":"G11","v":0.92},"W/ft2",6,0,{"$f":"IF(AND(SpaceBySpace_2013[[#This Row],[Automatic Daylighting Control]]=\"REQ\",OR(SpaceBySpace_2013[[#This Row],[Automatic Partial OFF]]=\"REQ\",SpaceBySpace_2013[[#This Row],[Partial Automatic ON]]=\"REQ\",SpaceBySpace_2013[[#This Row],[Automatic Full OFF]]=\"REQ\",COUNTIF(SpaceBySpace_2013[[#This Row],[Automatic Partial OFF]:[Scheduled Shutoff]],\"ADD*\")>0)),\"Occupancy + Daylight\",\nIF(SpaceBySpace_2013[[#This Row],[Automatic Daylighting Control]]=\"REQ\",\"Daylight Harvesting\",\nIF(OR(SpaceBySpace_2013[[#This Row],[Partial Automatic ON]]=\"REQ\",SpaceBySpace_2013[[#This Row],[Automatic Partial OFF]]=\"REQ\",SpaceBySpace_2013[[#This Row],[Automatic Full OFF]]=\"REQ\",COUNTIF(SpaceBySpace_2013[[#This Row],[Automatic Partial OFF]:[Scheduled Shutoff]],\"ADD*\")>0),\"Occupancy\",\"\")))","v":"Occupancy + Daylight"},{"$f":"SpaceBySpace_2013[[#This Row],[%DL]]*SpaceBySpace_2013[[#This Row],[B. CSF (Wndws)]]+(1-SpaceBySpace_2013[[#This Row],[%DL]])*SpaceBySpace_2013[[#This Row],[B. CSF (No Wndws)]]","v":0.247},0.05,{"$f":"IF(SpaceBySpace_2013[[#This Row],[B. CSF (Wndws)]]=0.38,0.24,0)","v":0.24},{"$f":"VLOOKUP(K10,'Measure Tables'!$A$2:$C$7,3,FALSE)","v":0.38},"REQ","ADD1","ADD1","REQ","REQ",null,"REQ",null,null,null,{"$f":"F95","v":"Retail, Sales Area"},0,0.1,0.1,0,0,0.1]
["Dining: Bar Lounge/Leisure",0.78,"W/ft2",{"$f":"L16","v":0.27500000000000002},null,"Classroom/Lecture/Training",0.92,"W/ft2",4,0,{"$f":"IF(AND(SpaceBySpace_2013[[#This Row],[Automatic Daylighting Control]]=\"REQ\",OR(SpaceBySpace_2013[[#This Row],[Automatic Partial OFF]]=\"REQ\",SpaceBySpace_2013[[#This Row],[Partial Automatic ON]]=\"REQ\",SpaceBySpace_2013[[#This Row],[Automatic Full OFF]]=\"REQ\",COUNTIF(SpaceBySpace_2013[[#This Row],[Automatic Partial OFF]:[Scheduled Shutoff]],\"ADD*\")>0)),\"Occupancy + Daylight\",\nIF(SpaceBySpace_2013[[#This Row],[Automatic Daylighting Control]]=\"REQ\",\"Daylight Harvesting\",\nIF(OR(SpaceBySpace_2013[[#This Row],[Partial Automatic ON]]=\"REQ\",SpaceBySpace_2013[[#This Row],[Automatic Partial OFF]]=\"REQ\",SpaceBySpace_2013[[#This Row],[Automatic Full OFF]]=\"REQ\",COUNTIF(SpaceBySpace_2013[[#This Row],[Automatic Partial OFF]:[Scheduled Shutoff]],\"ADD*\")>0),\"Occupancy\",\"\")))","v":"Occupancy + Daylight"},{"$f":"SpaceBySpace_2013[[#This Row],[%DL]]*SpaceBySpace_2013[[#This Row],[B. CSF (Wndws)]]+(1-SpaceBySpace_2013[[#This Row],[%DL]])*SpaceBySpace_2013[[#This Row],[B. CSF (No Wndws)]]","v":0.26800000000000002},0.2,{"$f":"IF(SpaceBySpace_2013[[#This Row],[B. CSF (Wndws)]]=0.38,0.24,0)","v":0.24},{"$f":"VLOOKUP(K11,'Measure Tables'!$A$2:$C$7,3,FALSE)","v":0.38},"REQ","ADD1","ADD1","REQ","REQ",null,"REQ",null,null,null,{"$f":"F5","v":"Atrium, first 20ft"},0,0,0.1,0,0,0.1]
["Dining: Cafeteria/Fast Food",0.78,"W/ft2",{"$f":"L18","v":0.27500000000000002},null,"Conference/Meeting/Multipurpose",1.07,"W/ft2",6,0,{"$f":"IF(AND(SpaceBySpace_2013[[#This Row],[Automatic Daylighting Control]]=\"REQ\",OR(SpaceBySpace_2013[[#This Row],[Automatic Partial OFF]]=\"REQ\",SpaceBySpace_2013[[#This Row],[Partial Automatic ON]]=\"REQ\",SpaceBySpace_2013[[#This Row],[Automatic Full OFF]]=\"REQ\",COUNTIF(SpaceBySpace_2013[[#This Row],[Automatic Partial OFF]:[Scheduled Shutoff]],\"ADD*\")>0)),\"Occupancy + Daylight\",\nIF(SpaceBySpace_2013[[#This Row],[Automatic Daylighting Control]]=\"REQ\",\"Daylight Harvesting\",\nIF(OR(SpaceBySpace_2013[[#This Row],[Partial Automatic ON]]=\"REQ\",SpaceBySpace_2013[[#This Row],[Automatic Partial OFF]]=\"REQ\",SpaceBySpace_2013[[#This Row],[Automatic Full OFF]]=\"REQ\",COUNTIF(SpaceBySpace_2013[[#This Row],[Automatic Partial OFF]:[Scheduled Shutoff]],\"ADD*\")>0),\"Occupancy\",\"\")))","v":"Occupancy + Daylight"},{"$f":"SpaceBySpace_2013[[#This Row],[%DL]]*SpaceBySpace_2013[[#This Row],[B. CSF (Wndws)]]+(1-SpaceBySpace_2013[[#This Row],[%DL]])*SpaceBySpace_2013[[#This Row],[B. CSF (No Wndws)]]","v":0.38},1,{"$f":"IF(SpaceBySpace_2013[[#This Row],[B. CSF (Wndws)]]=0.38,0.24,0)","v":0.24},{"$f":"VLOOKUP(K12,'Measure Tables'!$A$2:$C$7,3,FALSE)","v":0.38},"REQ","ADD1","ADD1","REQ","REQ",null,"REQ",null,null,null,{"$f":"F6","v":"Atrium, 20-40ft"},0,0,0.1,0,0,0.1]
["Dining: Family",0.78,"W/ft2",{"$f":"L17","v":0.27500000000000002},null,"Computer Room",1.33,"W/ft2",4,0,{"$f":"IF(AND(SpaceBySpace_2013[[#This Row],[Automatic Daylighting Control]]=\"REQ\",OR(SpaceBySpace_2013[[#This Row],[Automatic Partial OFF]]=\"REQ\",SpaceBySpace_2013[[#This Row],[Partial Automatic ON]]=\"REQ\",SpaceBySpace_2013[[#This Row],[Automatic Full OFF]]=\"REQ\",COUNTIF(SpaceBySpace_2013[[#This Row],[Automatic Partial OFF]:[Scheduled Shutoff]],\"ADD*\")>0)),\"Occupancy + Daylight\",\nIF(SpaceBySpace_2013[[#This Row],[Automatic Daylighting Control]]=\"REQ\",\"Daylight Harvesting\",\nIF(OR(SpaceBySpace_2013[[#This Row],[Partial Automatic ON]]=\"REQ\",SpaceBySpace_2013[[#This Row],[Automatic Partial OFF]]=\"REQ\",SpaceBySpace_2013[[#This Row],[Automatic Full OFF]]=\"REQ\",COUNTIF(SpaceBySpace_2013[[#This Row],[Automatic Partial OFF]:[Scheduled Shutoff]],\"ADD*\")>0),\"Occupancy\",\"\")))","v":"Occupancy + Daylight"},{"$f":"SpaceBySpace_2013[[#This Row],[%DL]]*SpaceBySpace_2013[[#This Row],[B. CSF (Wndws)]]+(1-SpaceBySpace_2013[[#This Row],[%DL]])*SpaceBySpace_2013[[#This Row],[B. CSF (No Wndws)]]","v":0.24},0,{"$f":"IF(SpaceBySpace_2013[[#This Row],[B. CSF (Wndws)]]=0.38,0.24,0)","v":0.24},{"$f":"VLOOKUP(K13,'Measure Tables'!$A$2:$C$7,3,FALSE)","v":0.38},"REQ","ADD1","ADD1","REQ","REQ",null,"ADD2","ADD2",null,null,{"$f":"F7","v":"Atrium, above 40ft"},0,0,0.1,0,0,0.1]
["Dormitory",0.61,"W/ft2",{"$f":"L19*0.01 + L25*0.02 + L26*0.02 + L30*0.08 + L31*0.02 + L35*0.01 + L40*0.05 + L15*0.15 + L52*0.64","v":0.10250000000000001},null,"Copy/Print Room",0.56000000000000005,"W/ft2",6,0,{"$f":"IF(AND(SpaceBySpace_2013[[#This Row],[Automatic Daylighting Control]]=\"REQ\",OR(SpaceBySpace_2013[[#This Row],[Automatic Partial OFF]]=\"REQ\",SpaceBySpace_2013[[#This Row],[Partial Automatic ON]]=\"REQ\",SpaceBySpace_2013[[#This Row],[Automatic Full OFF]]=\"REQ\",COUNTIF(SpaceBySpace_2013[[#This Row],[Automatic Partial OFF]:[Scheduled Shutoff]],\"ADD*\")>0)),\"Occupancy + Daylight\",\nIF(SpaceBySpace_2013[[#This Row],[Automatic Daylighting Control]]=\"REQ\",\"Daylight Harvesting\",\nIF(OR(SpaceBySpace_2013[[#This Row],[Partial Automatic ON]]=\"REQ\",SpaceBySpace_2013[[#This Row],[Automatic Partial OFF]]=\"REQ\",SpaceBySpace_2013[[#This Row],[Automatic Full OFF]]=\"REQ\",COUNTIF(SpaceBySpace_2013[[#This Row],[Automatic Partial OFF]:[Scheduled Shutoff]],\"ADD*\")>0),\"Occupancy\",\"\")))","v":"Occupancy + Daylight"},{"$f":"SpaceBySpace_2013[[#This Row],[%DL]]*SpaceBySpace_2013[[#This Row],[B. CSF (Wndws)]]+(1-SpaceBySpace_2013[[#This Row],[%DL]])*SpaceBySpace_2013[[#This Row],[B. CSF (No Wndws)]]","v":0.24},0,{"$f":"IF(SpaceBySpace_2013[[#This Row],[B. CSF (Wndws)]]=0.38,0.24,0)","v":0.24},{"$f":"VLOOKUP(K14,'Measure Tables'!$A$2:$C$7,3,FALSE)","v":0.38},"REQ","ADD1","ADD1","REQ","REQ",null,"REQ",null,null,null,{"$f":"F25","v":"Lobby (Elevator)"},0,0,0.1,0,0,0.1]
["Exercise Center",0.65,"W/ft2",{"$f":"L15*0.1 + L19*0.04 + L26*0.05 + L27*0.15 + L30*0.05 + L31*0.03 + L35*0.02 + L39*0.02 + L55*0.05 + L56*0.6","v":0.29999999999999993},null,"Corridor/Transition (Other)",0.66,"W/ft2",0,8,{"$f":"IF(AND(SpaceBySpace_2013[[#This Row],[Automatic Daylighting Control]]=\"REQ\",OR(SpaceBySpace_2013[[#This Row],[Automatic Partial OFF]]=\"REQ\",SpaceBySpace_2013[[#This Row],[Partial Automatic ON]]=\"REQ\",SpaceBySpace_2013[[#This Row],[Automatic Full OFF]]=\"REQ\",COUNTIF(SpaceBySpace_2013[[#This Row],[Automatic Partial OFF]:[Scheduled Shutoff]],\"ADD*\")>0)),\"Occupancy + Daylight\",\nIF(SpaceBySpace_2013[[#This Row],[Automatic Daylighting Control]]=\"REQ\",\"Daylight Harvesting\",\nIF(OR(SpaceBySpace_2013[[#This Row],[Partial Automatic ON]]=\"REQ\",SpaceBySpace_2013[[#This Row],[Automatic Partial OFF]]=\"REQ\",SpaceBySpace_2013[[#This Row],[Automatic Full OFF]]=\"REQ\",COUNTIF(SpaceBySpace_2013[[#This Row],[Automatic Partial OFF]:[Scheduled Shutoff]],\"ADD*\")>0),\"Occupancy\",\"\")))","v":"Occupancy + Daylight"},{"$f":"SpaceBySpace_2013[[#This Row],[%DL]]*SpaceBySpace_2013[[#This Row],[B. CSF (Wndws)]]+(1-SpaceBySpace_2013[[#This Row],[%DL]])*SpaceBySpace_2013[[#This Row],[B. CSF (No Wndws)]]","v":0.31},0.5,{"$f":"IF(SpaceBySpace_2013[[#This Row],[B. CSF (Wndws)]]=0.38,0.24,0)","v":0.24},{"$f":"VLOOKUP(K15,'Measure Tables'!$A$2:$C$7,3,FALSE)","v":0.38},"REQ",null,null,null,"REQ","REQ","ADD2","ADD2",null,null,{"$f":"F26","v":"Lobby (Other)"},0,0,0.1,0,0,0.1]
["Fire Station",0.53,"W/ft2",{"$f":"L12*0.05 + L15*0.15 + L18*0.08 + L19*0.02 + L53*0.4 + L27*0.05 + L35*0.02 + L40*0.13 + L54*0.1","v":0.23630000000000004},null,"Dining Area (Bar Lounge/Leisure)",0.93,"W/ft2",4,0,{"$f":"IF(AND(SpaceBySpace_2013[[#This Row],[Automatic Daylighting Control]]=\"REQ\",OR(SpaceBySpace_2013[[#This Row],[Automatic Partial OFF]]=\"REQ\",SpaceBySpace_2013[[#This Row],[Partial Automatic ON]]=\"REQ\",SpaceBySpace_2013[[#This Row],[Automatic Full OFF]]=\"REQ\",COUNTIF(SpaceBySpace_2013[[#This Row],[Automatic Partial OFF]:[Scheduled Shutoff]],\"ADD*\")>0)),\"Occupancy + Daylight\",\nIF(SpaceBySpace_2013[[#This Row],[Automatic Daylighting Control]]=\"REQ\",\"Daylight Harvesting\",\nIF(OR(SpaceBySpace_2013[[#This Row],[Partial Automatic ON]]=\"REQ\",SpaceBySpace_2013[[#This Row],[Automatic Partial OFF]]=\"REQ\",SpaceBySpace_2013[[#This Row],[Automatic Full OFF]]=\"REQ\",COUNTIF(SpaceBySpace_2013[[#This Row],[Automatic Partial OFF]:[Scheduled Shutoff]],\"ADD*\")>0),\"Occupancy\",\"\")))","v":"Occupancy + Daylight"},{"$f":"SpaceBySpace_2013[[#This Row],[%DL]]*SpaceBySpace_2013[[#This Row],[B. CSF (Wndws)]]+(1-SpaceBySpace_2013[[#This Row],[%DL]])*SpaceBySpace_2013[[#This Row],[B. CSF (No Wndws)]]","v":0.27500000000000002},0.25,{"$f":"IF(SpaceBySpace_2013[[#This Row],[B. CSF (Wndws)]]=0.38,0.24,0)","v":0.24},{"$f":"VLOOKUP(K16,'Measure Tables'!$A$2:$C$7,3,FALSE)","v":0.38},"REQ","ADD1","ADD1","REQ","REQ",null,"ADD2","ADD2",null,null,{"$f":"F71","v":"Hotel/Motel, Lobby"},0,0,0.1,0,0,0.1]
["Grow Facility",1,"W/ft2",{"$f":"L5*0.02 + L12*0.05 + L15*0.1 + L24*0.1 + L26*0.04 + L29*0.02 + L31*0.03 + L35*0.02 + L39*0.04 + L76*0.14 + L77*0.08 + L80*0.25 + L117*0.15","v":0.27171999999999996},null,"Dining Area (Family)",0.71,"W/ft2",4,0,{"$f":"IF(AND(SpaceBySpace_2013[[#This Row],[Automatic Daylighting Control]]=\"REQ\",OR(SpaceBySpace_2013[[#This Row],[Automatic Partial OFF]]=\"REQ\",SpaceBySpace_2013[[#This Row],[Partial Automatic ON]]=\"REQ\",SpaceBySpace_2013[[#This Row],[Automatic Full OFF]]=\"REQ\",COUNTIF(SpaceBySpace_2013[[#This Row],[Automatic Partial OFF]:[Scheduled Shutoff]],\"ADD*\")>0)),\"Occupancy + Daylight\",\nIF(SpaceBySpace_2013[[#This Row],[Automatic Daylighting Control]]=\"REQ\",\"Daylight Harvesting\",\nIF(OR(SpaceBySpace_2013[[#This Row],[Partial Automatic ON]]=\"REQ\",SpaceBySpace_2013[[#This Row],[Automatic Partial OFF]]=\"REQ\",SpaceBySpace_2013[[#This Row],[Automatic Full OFF]]=\"REQ\",COUNTIF(SpaceBySpace_2013[[#This Row],[Automatic Partial OFF]:[Scheduled Shutoff]],\"ADD*\")>0),\"Occupancy\",\"\")))","v":"Occupancy + Daylight"},{"$f":"SpaceBySpace_2013[[#This Row],[%DL]]*SpaceBySpace_2013[[#This Row],[B. CSF (Wndws)]]+(1-SpaceBySpace_2013[[#This Row],[%DL]])*SpaceBySpace_2013[[#This Row],[B. CSF (No Wndws)]]","v":0.27500000000000002},0.25,{"$f":"IF(SpaceBySpace_2013[[#This Row],[B. CSF (Wndws)]]=0.38,0.24,0)","v":0.24},{"$f":"VLOOKUP(K17,'Measure Tables'!$A$2:$C$7,3,FALSE)","v":0.38},"REQ","ADD1","ADD1","REQ","REQ",null,"ADD2","ADD2",null,null,{"$f":"F82","v":"Motion Picture Theater, Lobby"},0,0,0.1,0,0,0.1]
["Gymnasium",0.68,"W/ft2",{"$f":"L15*0.1 + L19*0.04 + L26*0.05 + L27*0.15 + L30*0.05 + L31*0.03 + L35*0.02 + L39*0.02 + L55*0.15 + L57*0.5","v":0.31189999999999996},null,"Dining Area (Other)",0.63,"W/ft2",4,0,{"$f":"IF(AND(SpaceBySpace_2013[[#This Row],[Automatic Daylighting Control]]=\"REQ\",OR(SpaceBySpace_2013[[#This Row],[Automatic Partial OFF]]=\"REQ\",SpaceBySpace_2013[[#This Row],[Partial Automatic ON]]=\"REQ\",SpaceBySpace_2013[[#This Row],[Automatic Full OFF]]=\"REQ\",COUNTIF(SpaceBySpace_2013[[#This Row],[Automatic Partial OFF]:[Scheduled Shutoff]],\"ADD*\")>0)),\"Occupancy + Daylight\",\nIF(SpaceBySpace_2013[[#This Row],[Automatic Daylighting Control]]=\"REQ\",\"Daylight Harvesting\",\nIF(OR(SpaceBySpace_2013[[#This Row],[Partial Automatic ON]]=\"REQ\",SpaceBySpace_2013[[#This Row],[Automatic Partial OFF]]=\"REQ\",SpaceBySpace_2013[[#This Row],[Automatic Full OFF]]=\"REQ\",COUNTIF(SpaceBySpace_2013[[#This Row],[Automatic Partial OFF]:[Scheduled Shutoff]],\"ADD*\")>0),\"Occupancy\",\"\")))","v":"Occupancy + Daylight"},{"$f":"SpaceBySpace_2013[[#This Row],[%DL]]*SpaceBySpace_2013[[#This Row],[B. CSF (Wndws)]]+(1-SpaceBySpace_2013[[#This Row],[%DL]])*SpaceBySpace_2013[[#This Row],[B. CSF (No Wndws)]]","v":0.27500000000000002},0.25,{"$f":"IF(SpaceBySpace_2013[[#This Row],[B. CSF (Wndws)]]=0.38,0.24,0)","v":0.24},{"$f":"VLOOKUP(K18,'Measure Tables'!$A$2:$C$7,3,FALSE)","v":0.38},"REQ","ADD1","ADD1","REQ","REQ",null,"ADD2","ADD2",null,null,{"$f":"F88","v":"Performing Arts Theater, Lobby"},0,0,0.1,0,0,0.1]
["Health Care - Clinic",0.82,"W/ft2",{"$f":"L5*0.02 + L19*0.03 + L24*0.05 + L26*0.05 + L31*0.02 + L35*0.04 + L38*0.04 + L58*0.15 + L60*0.15 + L61*0.05 + L62*0.1 + L64*0.04 + L66*0.2 + L68*0.06","v":0.2666},null,"Electrical/Mechanical",0.43,"W/ft2",6,0,"Occupancy",{"$f":"SpaceBySpace_2013[[#This Row],[%DL]]*SpaceBySpace_2013[[#This Row],[B. CSF (Wndws)]]+(1-SpaceBySpace_2013[[#This Row],[%DL]])*SpaceBySpace_2013[[#This Row],[B. CSF (No Wndws)]]","v":0.24},0,0.24,0.24,"REQ","ADD1","ADD1",null,"REQ",null,null,null,null,null,{"$f":"F113","v":"Visually Impaired, Lobby"},0,0,0.1,0,0,0.1]
["Health Care - Hospital",1.05,"W/ft2",{"$f":"L5*0.005 + L19*0.04 + L24*0.025 + L26*0.03 + L31*0.05 + L35*0.02 + L40*0.03 + L58*0.15 + L59*0.08 + L60*0.12 + L61*0.02 + L62*0.05 + L64*0.03 + L65*0.08 + L66*0.15 + L67*0.03 + L68*0.02 + L69*0.07","v":0.26954},null,"Loading Dock",0.57999999999999996,"W/ft2",6,0,{"$f":"IF(AND(SpaceBySpace_2013[[#This Row],[Automatic Daylighting Control]]=\"REQ\",OR(SpaceBySpace_2013[[#This Row],[Automatic Partial OFF]]=\"REQ\",SpaceBySpace_2013[[#This Row],[Partial Automatic ON]]=\"REQ\",SpaceBySpace_2013[[#This Row],[Automatic Full OFF]]=\"REQ\",COUNTIF(SpaceBySpace_2013[[#This Row],[Automatic Partial OFF]:[Scheduled Shutoff]],\"ADD*\")>0)),\"Occupancy + Daylight\",\nIF(SpaceBySpace_2013[[#This Row],[Automatic Daylighting Control]]=\"REQ\",\"Daylight Harvesting\",\nIF(OR(SpaceBySpace_2013[[#This Row],[Partial Automatic ON]]=\"REQ\",SpaceBySpace_2013[[#This Row],[Automatic Partial OFF]]=\"REQ\",SpaceBySpace_2013[[#This Row],[Automatic Full OFF]]=\"REQ\",COUNTIF(SpaceBySpace_2013[[#This Row],[Automatic Partial OFF]:[Scheduled Shutoff]],\"ADD*\")>0),\"Occupancy\",\"\")))","v":"Occupancy + Daylight"},{"$f":"SpaceBySpace_2013[[#This Row],[%DL]]*SpaceBySpace_2013[[#This Row],[B. CSF (Wndws)]]+(1-SpaceBySpace_2013[[#This Row],[%DL]])*SpaceBySpace_2013[[#This Row],[B. CSF (No Wndws)]]","v":0.24},0,{"$f":"IF(SpaceBySpace_2013[[#This Row],[B. CSF (Wndws)]]=0.38,0.24,0)","v":0.24},{"$f":"VLOOKUP(K20,'Measure Tables'!$A$2:$C$7,3,FALSE)","v":0.38},"REQ","ADD1","ADD1",null,"REQ",null,"ADD2","ADD2",null,null,{"$f":"F15","v":"Corridor/Transition (Other)"},0,0,0.1,0,0,0.1]
["Hotel",0.75,"W/ft2",{"$f":"L5*0.005 + L12*0.045 + L15*0.15 + L19*0.02 + L20 * 0.015 + L22*0.025 + L25*0.03 + L30*0.025 + L35*0.015 + L28*0.55 + L70*0.08 + L71*0.04","v":0.26208500000000001},null,"Emergency Vehicle Garage",0.41,"W/ft2",4,0,{"$f":"IF(AND(SpaceBySpace_2013[[#This Row],[Automatic Daylighting Control]]=\"REQ\",OR(SpaceBySpace_2013[[#This Row],[Automatic Partial OFF]]=\"REQ\",SpaceBySpace_2013[[#This Row],[Partial Automatic ON]]=\"REQ\",SpaceBySpace_2013[[#This Row],[Automatic Full OFF]]=\"REQ\",COUNTIF(SpaceBySpace_2013[[#This Row],[Automatic Partial OFF]:[Scheduled Shutoff]],\"ADD*\")>0)),\"Occupancy + Daylight\",\nIF(SpaceBySpace_2013[[#This Row],[Automatic Daylighting Control]]=\"REQ\",\"Daylight Harvesting\",\nIF(OR(SpaceBySpace_2013[[#This Row],[Partial Automatic ON]]=\"REQ\",SpaceBySpace_2013[[#This Row],[Automatic Partial OFF]]=\"REQ\",SpaceBySpace_2013[[#This Row],[Automatic Full OFF]]=\"REQ\",COUNTIF(SpaceBySpace_2013[[#This Row],[Automatic Partial OFF]:[Scheduled Shutoff]],\"ADD*\")>0),\"Occupancy\",\"\")))","v":"Occupancy + Daylight"},{"$f":"SpaceBySpace_2013[[#This Row],[%DL]]*SpaceBySpace_2013[[#This Row],[B. CSF (Wndws)]]+(1-SpaceBySpace_2013[[#This Row],[%DL]])*SpaceBySpace_2013[[#This Row],[B. CSF (No Wndws)]]","v":0.24},0,{"$f":"IF(SpaceBySpace_2013[[#This Row],[B. CSF (Wndws)]]=0.38,0.24,0)","v":0.24},{"$f":"VLOOKUP(K21,'Measure Tables'!$A$2:$C$7,3,FALSE)","v":0.38},"REQ","ADD1","ADD1",null,"REQ",null,"ADD2","ADD2",null,null,{"$f":"F58","v":"Hospital/Healthcare, Corridor/Transition"},0,0,0.1,0,0,0.1]
["Laboratory",{"$f":"ROUND(AVERAGE(G16:G17),2)","v":0.82},"W/ft2",{"$f":"L12*0.05 + L15*0.1 + L19*0.02 + L24*0.5 + L26*0.03 + L27*0.06 + L29*0.1 + L31*0.04 + L35*0.025 + L40*0.075","v":0.26044},null,"Food Preparation",1.06,"W/ft2",6,0,{"$f":"IF(AND(SpaceBySpace_2013[[#This Row],[Automatic Daylighting Control]]=\"REQ\",OR(SpaceBySpace_2013[[#This Row],[Automatic Partial OFF]]=\"REQ\",SpaceBySpace_2013[[#This Row],[Partial Automatic ON]]=\"REQ\",SpaceBySpace_2013[[#This Row],[Automatic Full OFF]]=\"REQ\",COUNTIF(SpaceBySpace_2013[[#This Row],[Automatic Partial OFF]:[Scheduled Shutoff]],\"ADD*\")>0)),\"Occupancy + Daylight\",\nIF(SpaceBySpace_2013[[#This Row],[Automatic Daylighting Control]]=\"REQ\",\"Daylight Harvesting\",\nIF(OR(SpaceBySpace_2013[[#This Row],[Partial Automatic ON]]=\"REQ\",SpaceBySpace_2013[[#This Row],[Automatic Partial OFF]]=\"REQ\",SpaceBySpace_2013[[#This Row],[Automatic Full OFF]]=\"REQ\",COUNTIF(SpaceBySpace_2013[[#This Row],[Automatic Partial OFF]:[Scheduled Shutoff]],\"ADD*\")>0),\"Occupancy\",\"\")))","v":"Occupancy + Daylight"},{"$f":"SpaceBySpace_2013[[#This Row],[%DL]]*SpaceBySpace_2013[[#This Row],[B. CSF (Wndws)]]+(1-SpaceBySpace_2013[[#This Row],[%DL]])*SpaceBySpace_2013[[#This Row],[B. CSF (No Wndws)]]","v":0.26100000000000001},0.15,{"$f":"IF(SpaceBySpace_2013[[#This Row],[B. CSF (Wndws)]]=0.38,0.24,0)","v":0.24},{"$f":"VLOOKUP(K22,'Measure Tables'!$A$2:$C$7,3,FALSE)","v":0.38},"REQ","ADD1","ADD1","REQ","REQ",null,"ADD2","ADD2",null,null,{"$f":"F75","v":"Manufacturing, Corridor/Transition"},0,0,0.1,0,0,0.1]
["Library",0.78,"W/ft2",{"$f":"L11*0.05 + L12*0.02 + L13*0.05 + L15*0.08 + L19*0.01 + L31*0.02 + L35*0.02 + L40*0.03 + L72*0.05 + L73*0.12 + L74*0.55","v":0.26197999999999999},null,"Laboratory (Classroom)",1.2,"W/ft2",6,0,{"$f":"IF(AND(SpaceBySpace_2013[[#This Row],[Automatic Daylighting Control]]=\"REQ\",OR(SpaceBySpace_2013[[#This Row],[Automatic Partial OFF]]=\"REQ\",SpaceBySpace_2013[[#This Row],[Partial Automatic ON]]=\"REQ\",SpaceBySpace_2013[[#This Row],[Automatic Full OFF]]=\"REQ\",COUNTIF(SpaceBySpace_2013[[#This Row],[Automatic Partial OFF]:[Scheduled Shutoff]],\"ADD*\")>0)),\"Occupancy + Daylight\",\nIF(SpaceBySpace_2013[[#This Row],[Automatic Daylighting Control]]=\"REQ\",\"Daylight Harvesting\",\nIF(OR(SpaceBySpace_2013[[#This Row],[Partial Automatic ON]]=\"REQ\",SpaceBySpace_2013[[#This Row],[Automatic Partial OFF]]=\"REQ\",SpaceBySpace_2013[[#This Row],[Automatic Full OFF]]=\"REQ\",COUNTIF(SpaceBySpace_2013[[#This Row],[Automatic Partial OFF]:[Scheduled Shutoff]],\"ADD*\")>0),\"Occupancy\",\"\")))","v":"Occupancy + Daylight"},{"$f":"SpaceBySpace_2013[[#This Row],[%DL]]*SpaceBySpace_2013[[#This Row],[B. CSF (Wndws)]]+(1-SpaceBySpace_2013[[#This Row],[%DL]])*SpaceBySpace_2013[[#This Row],[B. CSF (No Wndws)]]","v":0.24},0,{"$f":"IF(SpaceBySpace_2013[[#This Row],[B. CSF (Wndws)]]=0.38,0.24,0)","v":0.24},{"$f":"VLOOKUP(K23,'Measure Tables'!$A$2:$C$7,3,FALSE)","v":0.38},"REQ","ADD1","ADD1","REQ","REQ","REQ","ADD2","ADD2",null,null,{"$f":"F111","v":"Visually Impaired, Corridor/Transition"},0,0,0.1,0,0,0.1]
["Manufacturing Facility",0.9,"W/ft2",{"$f":"L12*0.03 + L20*0.1 + L26*0.03 + L31*0.02 + L33*0.05 + L35*0.02 + L40*0.01 + L75*0.08 + L76*0.15 + L77*0.05 + L79*0.22 + L80*0.15 + L116*0.09","v":0.24889000000000003},null,"Laboratory (Other)",1.45,"W/ft2",6,0,{"$f":"IF(AND(SpaceBySpace_2013[[#This Row],[Automatic Daylighting Control]]=\"REQ\",OR(SpaceBySpace_2013[[#This Row],[Automatic Partial OFF]]=\"REQ\",SpaceBySpace_2013[[#This Row],[Partial Automatic ON]]=\"REQ\",SpaceBySpace_2013[[#This Row],[Automatic Full OFF]]=\"REQ\",COUNTIF(SpaceBySpace_2013[[#This Row],[Automatic Partial OFF]:[Scheduled Shutoff]],\"ADD*\")>0)),\"Occupancy + Daylight\",\nIF(SpaceBySpace_2013[[#This Row],[Automatic Daylighting Control]]=\"REQ\",\"Daylight Harvesting\",\nIF(OR(SpaceBySpace_2013[[#This Row],[Partial Automatic ON]]=\"REQ\",SpaceBySpace_2013[[#This Row],[Automatic Partial OFF]]=\"REQ\",SpaceBySpace_2013[[#This Row],[Automatic Full OFF]]=\"REQ\",COUNTIF(SpaceBySpace_2013[[#This Row],[Automatic Partial OFF]:[Scheduled Shutoff]],\"ADD*\")>0),\"Occupancy\",\"\")))","v":"Occupancy + Daylight"},{"$f":"SpaceBySpace_2013[[#This Row],[%DL]]*SpaceBySpace_2013[[#This Row],[B. CSF (Wndws)]]+(1-SpaceBySpace_2013[[#This Row],[%DL]])*SpaceBySpace_2013[[#This Row],[B. CSF (No Wndws)]]","v":0.24},0,{"$f":"IF(SpaceBySpace_2013[[#This Row],[B. CSF (Wndws)]]=0.38,0.24,0)","v":0.24},{"$f":"VLOOKUP(K24,'Measure Tables'!$A$2:$C$7,3,FALSE)","v":0.38},"REQ","ADD1","ADD1","REQ","REQ",null,"ADD2","ADD2",null,null,{"$f":"F16","v":"Dining Area (Bar Lounge/Leisure)"},0,0,0.1,0,0,0.1]
["Motel",0.75,"W/ft2",{"$f":"L15*0.15 + L19*0.01 + L26*0.1 + L28*0.65 + L29*0.02 + L31*0.01 + L35*0.01 + L38*0.05","v":0.25470000000000004},null,"Lobby (Elevator)",0.69,"W/ft2",4,0,{"$f":"IF(AND(SpaceBySpace_2013[[#This Row],[Automatic Daylighting Control]]=\"REQ\",OR(SpaceBySpace_2013[[#This Row],[Automatic Partial OFF]]=\"REQ\",SpaceBySpace_2013[[#This Row],[Partial Automatic ON]]=\"REQ\",SpaceBySpace_2013[[#This Row],[Automatic Full OFF]]=\"REQ\",COUNTIF(SpaceBySpace_2013[[#This Row],[Automatic Partial OFF]:[Scheduled Shutoff]],\"ADD*\")>0)),\"Occupancy + Daylight\",\nIF(SpaceBySpace_2013[[#This Row],[Automatic Daylighting Control]]=\"REQ\",\"Daylight Harvesting\",\nIF(OR(SpaceBySpace_2013[[#This Row],[Partial Automatic ON]]=\"REQ\",SpaceBySpace_2013[[#This Row],[Automatic Partial OFF]]=\"REQ\",SpaceBySpace_2013[[#This Row],[Automatic Full OFF]]=\"REQ\",COUNTIF(SpaceBySpace_2013[[#This Row],[Automatic Partial OFF]:[Scheduled Shutoff]],\"ADD*\")>0),\"Occupancy\",\"\")))","v":"Occupancy + Daylight"},{"$f":"SpaceBySpace_2013[[#This Row],[%DL]]*SpaceBySpace_2013[[#This Row],[B. CSF (Wndws)]]+(1-SpaceBySpace_2013[[#This Row],[%DL]])*SpaceBySpace_2013[[#This Row],[B. CSF (No Wndws)]]","v":0.24},0,{"$f":"IF(SpaceBySpace_2013[[#This Row],[B. CSF (Wndws)]]=0.38,0.24,0)","v":0.24},{"$f":"VLOOKUP(K25,'Measure Tables'!$A$2:$C$7,3,FALSE)","v":0.38},"REQ",null,null,null,"REQ",null,"ADD2","ADD2",null,null,{"$f":"F17","v":"Dining Area (Family)"},0,0,0.1,0,0,0.1]
["Motion Picture Theater",0.83,"W/ft2",{"$f":"L15*0.1 + L22*0.05 + L31*0.02 + L19*0.01 + L35*0.02 + L40*0.05 + L81*0.63 + L82*0.12","v":0.26765},null,"Lobby (Other)",1,"W/ft2",6,0,{"$f":"IF(AND(SpaceBySpace_2013[[#This Row],[Automatic Daylighting Control]]=\"REQ\",OR(SpaceBySpace_2013[[#This Row],[Automatic Partial OFF]]=\"REQ\",SpaceBySpace_2013[[#This Row],[Partial Automatic ON]]=\"REQ\",SpaceBySpace_2013[[#This Row],[Automatic Full OFF]]=\"REQ\",COUNTIF(SpaceBySpace_2013[[#This Row],[Automatic Partial OFF]:[Scheduled Shutoff]],\"ADD*\")>0)),\"Occupancy + Daylight\",\nIF(SpaceBySpace_2013[[#This Row],[Automatic Daylighting Control]]=\"REQ\",\"Daylight Harvesting\",\nIF(OR(SpaceBySpace_2013[[#This Row],[Partial Automatic ON]]=\"REQ\",SpaceBySpace_2013[[#This Row],[Automatic Partial OFF]]=\"REQ\",SpaceBySpace_2013[[#This Row],[Automatic Full OFF]]=\"REQ\",COUNTIF(SpaceBySpace_2013[[#This Row],[Automatic Partial OFF]:[Scheduled Shutoff]],\"ADD*\")>0),\"Occupancy\",\"\")))","v":"Occupancy + Daylight"},{"$f":"SpaceBySpace_2013[[#This Row],[%DL]]*SpaceBySpace_2013[[#This Row],[B. CSF (Wndws)]]+(1-SpaceBySpace_2013[[#This Row],[%DL]])*SpaceBySpace_2013[[#This Row],[B. CSF (No Wndws)]]","v":0.26800000000000002},0.2,{"$f":"IF(SpaceBySpace_2013[[#This Row],[B. CSF (Wndws)]]=0.38,0.24,0)","v":0.24},{"$f":"VLOOKUP(K26,'Measure Tables'!$A$2:$C$7,3,FALSE)","v":0.38},"REQ",null,null,null,"REQ","REQ","ADD2","ADD2",null,null,{"$f":"F18","v":"Dining Area (Other)"},0,0,0.1,0,0,0.1]
["Multi-Family Housing",0.68,"W/ft2",{"$f":"L12*0.045 + L15*0.15 + L19*0.02 + L20 * 0.015 + L22*0.025 + L25*0.03 + L26*0.05 + L30*0.03 + L35*0.015 + L40*0.02 + L28*0.6","v":0.25956500000000005},null,"Locker Room",0.48,"W/ft2",4,0,"Occupancy",{"$f":"SpaceBySpace_2013[[#This Row],[%DL]]*SpaceBySpace_2013[[#This Row],[B. CSF (Wndws)]]+(1-SpaceBySpace_2013[[#This Row],[%DL]])*SpaceBySpace_2013[[#This Row],[B. CSF (No Wndws)]]","v":0.24},0,0.24,0.24,"REQ","ADD1","ADD1","REQ","REQ",null,"REQ",null,null,null,{"$f":"F70","v":"Hotel/Motel, Dining"},0,0,0.1,0,0,0.1]
["Museum",1.06,"W/ft2",{"$f":"L5*0.01 + L12*0.005 + L15*0.05 + L18*0.03 + L19*0.01 + L22*0.03 + L26*0.06 + L31*0.015 + L35*0.02 + L39*0.04 + L83*0.65 + L84*0.08","v":0.25106000000000001},null,"Guest Room",0.77,"W/ft2",6,0,"Occupancy",{"$f":"SpaceBySpace_2013[[#This Row],[%DL]]*SpaceBySpace_2013[[#This Row],[B. CSF (Wndws)]]+(1-SpaceBySpace_2013[[#This Row],[%DL]])*SpaceBySpace_2013[[#This Row],[B. CSF (No Wndws)]]","v":0.24},0,0.24,0.24,"REQ","ADD1","ADD1","REQ","REQ",null,"ADD2","ADD2",null,null,{"$f":"F51","v":"Pentitentiary, Dining"},0,0,0.1,0,0,0.1]
["Office, Large",0.79,"W/ft2",{"$f":"L12*0.05 + L19*0.02 + L26*0.08 + L30*0.02 + L31*0.1 + L33*0.58 + L35*0.03 + L37*0.02 + L38*0.1","v":0.27598000000000006},null,"Laundry/Washing Area",0.43,"W/ft2",4,0,{"$f":"IF(AND(SpaceBySpace_2013[[#This Row],[Automatic Daylighting Control]]=\"REQ\",OR(SpaceBySpace_2013[[#This Row],[Automatic Partial OFF]]=\"REQ\",SpaceBySpace_2013[[#This Row],[Partial Automatic ON]]=\"REQ\",SpaceBySpace_2013[[#This Row],[Automatic Full OFF]]=\"REQ\",COUNTIF(SpaceBySpace_2013[[#This Row],[Automatic Partial OFF]:[Scheduled Shutoff]],\"ADD*\")>0)),\"Occupancy + Daylight\",\nIF(SpaceBySpace_2013[[#This Row],[Automatic Daylighting Control]]=\"REQ\",\"Daylight Harvesting\",\nIF(OR(SpaceBySpace_2013[[#This Row],[Partial Automatic ON]]=\"REQ\",SpaceBySpace_2013[[#This Row],[Automatic Partial OFF]]=\"REQ\",SpaceBySpace_2013[[#This Row],[Automatic Full OFF]]=\"REQ\",COUNTIF(SpaceBySpace_2013[[#This Row],[Automatic Partial OFF]:[Scheduled Shutoff]],\"ADD*\")>0),\"Occupancy\",\"\")))","v":"Occupancy + Daylight"},{"$f":"SpaceBySpace_2013[[#This Row],[%DL]]*SpaceBySpace_2013[[#This Row],[B. CSF (Wndws)]]+(1-SpaceBySpace_2013[[#This Row],[%DL]])*SpaceBySpace_2013[[#This Row],[B. CSF (No Wndws)]]","v":0.24},0,{"$f":"IF(SpaceBySpace_2013[[#This Row],[B. CSF (Wndws)]]=0.38,0.24,0)","v":0.24},{"$f":"VLOOKUP(K29,'Measure Tables'!$A$2:$C$7,3,FALSE)","v":0.38},"REQ","ADD1","ADD1",null,"REQ",null,"ADD2","ADD2",null,null,{"$f":"F112","v":"Visually Impaired, Dining Area"},0,0,0.1,0,0,0.1]
["Office, Small",0.79,"W/ft2",{"$f":"L12*0.08 + L19*0.04 + L26*0.05 + L30*0.02 + L31*0.1 + L33*0.56 + L35*0.05 + L38*0.1","v":0.27892000000000006},null,"Lounge/Recreation",0.62,"W/ft2",6,0,{"$f":"IF(AND(SpaceBySpace_2013[[#This Row],[Automatic Daylighting Control]]=\"REQ\",OR(SpaceBySpace_2013[[#This Row],[Automatic Partial OFF]]=\"REQ\",SpaceBySpace_2013[[#This Row],[Partial Automatic ON]]=\"REQ\",SpaceBySpace_2013[[#This Row],[Automatic Full OFF]]=\"REQ\",COUNTIF(SpaceBySpace_2013[[#This Row],[Automatic Partial OFF]:[Scheduled Shutoff]],\"ADD*\")>0)),\"Occupancy + Daylight\",\nIF(SpaceBySpace_2013[[#This Row],[Automatic Daylighting Control]]=\"REQ\",\"Daylight Harvesting\",\nIF(OR(SpaceBySpace_2013[[#This Row],[Partial Automatic ON]]=\"REQ\",SpaceBySpace_2013[[#This Row],[Automatic Partial OFF]]=\"REQ\",SpaceBySpace_2013[[#This Row],[Automatic Full OFF]]=\"REQ\",COUNTIF(SpaceBySpace_2013[[#This Row],[Automatic Partial OFF]:[Scheduled Shutoff]],\"ADD*\")>0),\"Occupancy\",\"\")))","v":"Occupancy + Daylight"},{"$f":"SpaceBySpace_2013[[#This Row],[%DL]]*SpaceBySpace_2013[[#This Row],[B. CSF (Wndws)]]+(1-SpaceBySpace_2013[[#This Row],[%DL]])*SpaceBySpace_2013[[#This Row],[B. CSF (No Wndws)]]","v":0.26800000000000002},0.2,{"$f":"IF(SpaceBySpace_2013[[#This Row],[B. CSF (Wndws)]]=0.38,0.24,0)","v":0.24},{"$f":"VLOOKUP(K30,'Measure Tables'!$A$2:$C$7,3,FALSE)","v":0.38},"REQ","ADD1","ADD1","REQ","REQ",null,"REQ",null,null,null,{"$f":"F56","v":"Gymnasium/Fitness Center, Exercise Area"},0,0,0.1,0,0,0.1]
["Parking Garage",0.15,"W/ft2",{"$f":"L19*0.01 + L25*0.02 + L37*0.07 + L85*0.9","v":0.27150000000000002},null,"Office, Enclosed ≤250 ft2",0.93,"W/ft2",8,0,{"$f":"IF(AND(SpaceBySpace_2013[[#This Row],[Automatic Daylighting Control]]=\"REQ\",OR(SpaceBySpace_2013[[#This Row],[Automatic Partial OFF]]=\"REQ\",SpaceBySpace_2013[[#This Row],[Partial Automatic ON]]=\"REQ\",SpaceBySpace_2013[[#This Row],[Automatic Full OFF]]=\"REQ\",COUNTIF(SpaceBySpace_2013[[#This Row],[Automatic Partial OFF]:[Scheduled Shutoff]],\"ADD*\")>0)),\"Occupancy + Daylight\",\nIF(SpaceBySpace_2013[[#This Row],[Automatic Daylighting Control]]=\"REQ\",\"Daylight Harvesting\",\nIF(OR(SpaceBySpace_2013[[#This Row],[Partial Automatic ON]]=\"REQ\",SpaceBySpace_2013[[#This Row],[Automatic Partial OFF]]=\"REQ\",SpaceBySpace_2013[[#This Row],[Automatic Full OFF]]=\"REQ\",COUNTIF(SpaceBySpace_2013[[#This Row],[Automatic Partial OFF]:[Scheduled Shutoff]],\"ADD*\")>0),\"Occupancy\",\"\")))","v":"Occupancy + Daylight"},{"$f":"SpaceBySpace_2013[[#This Row],[%DL]]*SpaceBySpace_2013[[#This Row],[B. CSF (Wndws)]]+(1-SpaceBySpace_2013[[#This Row],[%DL]])*SpaceBySpace_2013[[#This Row],[B. CSF (No Wndws)]]","v":0.38},1,{"$f":"IF(SpaceBySpace_2013[[#This Row],[B. CSF (Wndws)]]=0.38,0.24,0)","v":0.24},{"$f":"VLOOKUP(K31,'Measure Tables'!$A$2:$C$7,3,FALSE)","v":0.38},"REQ","ADD1","ADD1","REQ","REQ",null,"REQ",null,null,null,{"$f":"F57","v":"Gymnasium/Fitness Center, Playing Area"},0,0,0.1,0,0,0.1]
["Penitentiary",0.75,"W/ft2",{"$f":"L15*0.1 + L19*0.01 + L22*0.02 + L27*0.02 + L31*0.03 + L35*0.02 + L40*0.01 + L47*0.6 + L49*0.04 + L50*0.03 + L51*0.12","v":0.26183999999999996},null,"Office, Enclosed >250 ft2",0.93,"W/ft2",8,0,{"$f":"IF(AND(SpaceBySpace_2013[[#This Row],[Automatic Daylighting Control]]=\"REQ\",OR(SpaceBySpace_2013[[#This Row],[Automatic Partial OFF]]=\"REQ\",SpaceBySpace_2013[[#This Row],[Partial Automatic ON]]=\"REQ\",SpaceBySpace_2013[[#This Row],[Automatic Full OFF]]=\"REQ\",COUNTIF(SpaceBySpace_2013[[#This Row],[Automatic Partial OFF]:[Scheduled Shutoff]],\"ADD*\")>0)),\"Occupancy + Daylight\",\nIF(SpaceBySpace_2013[[#This Row],[Automatic Daylighting Control]]=\"REQ\",\"Daylight Harvesting\",\nIF(OR(SpaceBySpace_2013[[#This Row],[Partial Automatic ON]]=\"REQ\",SpaceBySpace_2013[[#This Row],[Automatic Partial OFF]]=\"REQ\",SpaceBySpace_2013[[#This Row],[Automatic Full OFF]]=\"REQ\",COUNTIF(SpaceBySpace_2013[[#This Row],[Automatic Partial OFF]:[Scheduled Shutoff]],\"ADD*\")>0),\"Occupancy\",\"\")))","v":"Occupancy + Daylight"},{"$f":"SpaceBySpace_2013[[#This Row],[%DL]]*SpaceBySpace_2013[[#This Row],[B. CSF (Wndws)]]+(1-SpaceBySpace_2013[[#This Row],[%DL]])*SpaceBySpace_2013[[#This Row],[B. CSF (No Wndws)]]","v":0.38},1,{"$f":"IF(SpaceBySpace_2013[[#This Row],[B. CSF (Wndws)]]=0.38,0.24,0)","v":0.24},{"$f":"VLOOKUP(K32,'Measure Tables'!$A$2:$C$7,3,FALSE)","v":0.38},"REQ","ADD1","ADD1","REQ","REQ",null,"ADD2","ADD2",null,null,{"$f":"$F$94","v":"Retail, Mall Concourse"},0,0,0.1,0,0,0.1]
["Performing Arts Theater",1.18,"W/ft2",{"$f":"L15*0.1 + L19*0.01 + L31*0.04 + L35*0.02 + L40*0.05 + L86*0.5 + L87*0.05 + L88*0.15","v":0.24390000000000001},null,"Office, Open Plan",0.81,"W/ft2",4,0,{"$f":"IF(AND(SpaceBySpace_2013[[#This Row],[Automatic Daylighting Control]]=\"REQ\",OR(SpaceBySpace_2013[[#This Row],[Automatic Partial OFF]]=\"REQ\",SpaceBySpace_2013[[#This Row],[Partial Automatic ON]]=\"REQ\",SpaceBySpace_2013[[#This Row],[Automatic Full OFF]]=\"REQ\",COUNTIF(SpaceBySpace_2013[[#This Row],[Automatic Partial OFF]:[Scheduled Shutoff]],\"ADD*\")>0)),\"Occupancy + Daylight\",\nIF(SpaceBySpace_2013[[#This Row],[Automatic Daylighting Control]]=\"REQ\",\"Daylight Harvesting\",\nIF(OR(SpaceBySpace_2013[[#This Row],[Partial Automatic ON]]=\"REQ\",SpaceBySpace_2013[[#This Row],[Automatic Partial OFF]]=\"REQ\",SpaceBySpace_2013[[#This Row],[Automatic Full OFF]]=\"REQ\",COUNTIF(SpaceBySpace_2013[[#This Row],[Automatic Partial OFF]:[Scheduled Shutoff]],\"ADD*\")>0),\"Occupancy\",\"\")))","v":"Occupancy + Daylight"},{"$f":"SpaceBySpace_2013[[#This Row],[%DL]]*SpaceBySpace_2013[[#This Row],[B. CSF (Wndws)]]+(1-SpaceBySpace_2013[[#This Row],[%DL]])*SpaceBySpace_2013[[#This Row],[B. CSF (No Wndws)]]","v":0.26100000000000001},0.15,{"$f":"IF(SpaceBySpace_2013[[#This Row],[B. CSF (Wndws)]]=0.38,0.24,0)","v":0.24},{"$f":"VLOOKUP(K33,'Measure Tables'!$A$2:$C$7,3,FALSE)","v":0.38},"REQ","ADD1","ADD1","REQ","REQ",null,"ADD2","ADD2",null,null,{"$f":"$F$85","v":"Parking Garage, Interior"},0,0,0.1,0,0,0.1]
["Police Station",0.8,"W/ft2",{"$f":"L15*0.1 + L19*0.01 + L31*0.04 + L35*0.02 + L40*0.05 + L86*0.5 + L87*0.05 + L88*0.15 * 0*0.08","v":0.19740000000000002},null,"Pharmacy Area",1.34,"W/ft2",6,0,{"$f":"IF(AND(SpaceBySpace_2013[[#This Row],[Automatic Daylighting Control]]=\"REQ\",OR(SpaceBySpace_2013[[#This Row],[Automatic Partial OFF]]=\"REQ\",SpaceBySpace_2013[[#This Row],[Partial Automatic ON]]=\"REQ\",SpaceBySpace_2013[[#This Row],[Automatic Full OFF]]=\"REQ\",COUNTIF(SpaceBySpace_2013[[#This Row],[Automatic Partial OFF]:[Scheduled Shutoff]],\"ADD*\")>0)),\"Occupancy + Daylight\",\nIF(SpaceBySpace_2013[[#This Row],[Automatic Daylighting Control]]=\"REQ\",\"Daylight Harvesting\",\nIF(OR(SpaceBySpace_2013[[#This Row],[Partial Automatic ON]]=\"REQ\",SpaceBySpace_2013[[#This Row],[Automatic Partial OFF]]=\"REQ\",SpaceBySpace_2013[[#This Row],[Automatic Full OFF]]=\"REQ\",COUNTIF(SpaceBySpace_2013[[#This Row],[Automatic Partial OFF]:[Scheduled Shutoff]],\"ADD*\")>0),\"Occupancy\",\"\")))","v":"Occupancy + Daylight"},{"$f":"SpaceBySpace_2013[[#This Row],[%DL]]*SpaceBySpace_2013[[#This Row],[B. CSF (Wndws)]]+(1-SpaceBySpace_2013[[#This Row],[%DL]])*SpaceBySpace_2013[[#This Row],[B. CSF (No Wndws)]]","v":0.24},0,{"$f":"IF(SpaceBySpace_2013[[#This Row],[B. CSF (Wndws)]]=0.38,0.24,0)","v":0.24},{"$f":"VLOOKUP(K34,'Measure Tables'!$A$2:$C$7,3,FALSE)","v":0.38},"REQ","ADD1","ADD1","REQ","REQ",null,"ADD2","ADD2"]
["Post Office",0.67,"W/ft2",{"$f":"L14*0.1 + L15*0.05 + L19*0.02 + L26*0.15 + L31*0.02 + L35*0.03 + L38*0.03 + L89*0.6","v":0.25049999999999994},null,"Restroom (Other)",0.85,"W/ft2",8,0,"Occupancy",{"$f":"SpaceBySpace_2013[[#This Row],[%DL]]*SpaceBySpace_2013[[#This Row],[B. CSF (Wndws)]]+(1-SpaceBySpace_2013[[#This Row],[%DL]])*SpaceBySpace_2013[[#This Row],[B. CSF (No Wndws)]]","v":0.24},0,0.24,0.24,"REQ",null,null,null,"REQ",null,"REQ",null,null,null,"KEY"]
["Religious Building",0.94,"W/ft2",{"$f":"L5*0.01 + L11*0.08 + L15*0.08 + L19*0.01 + L31*0.02 + L35*0.03 + L39*0.05 + L90*0.5 + L91*0.12 + L92*0.1","v":0.30944000000000005},null,"Seating Area",0.42,"W/ft2",4,0,{"$f":"IF(AND(SpaceBySpace_2013[[#This Row],[Automatic Daylighting Control]]=\"REQ\",OR(SpaceBySpace_2013[[#This Row],[Automatic Partial OFF]]=\"REQ\",SpaceBySpace_2013[[#This Row],[Partial Automatic ON]]=\"REQ\",SpaceBySpace_2013[[#This Row],[Automatic Full OFF]]=\"REQ\",COUNTIF(SpaceBySpace_2013[[#This Row],[Automatic Partial OFF]:[Scheduled Shutoff]],\"ADD*\")>0)),\"Occupancy + Daylight\",\nIF(SpaceBySpace_2013[[#This Row],[Automatic Daylighting Control]]=\"REQ\",\"Daylight Harvesting\",\nIF(OR(SpaceBySpace_2013[[#This Row],[Partial Automatic ON]]=\"REQ\",SpaceBySpace_2013[[#This Row],[Automatic Partial OFF]]=\"REQ\",SpaceBySpace_2013[[#This Row],[Automatic Full OFF]]=\"REQ\",COUNTIF(SpaceBySpace_2013[[#This Row],[Automatic Partial OFF]:[Scheduled Shutoff]],\"ADD*\")>0),\"Occupancy\",\"\")))","v":"Occupancy + Daylight"},{"$f":"SpaceBySpace_2013[[#This Row],[%DL]]*SpaceBySpace_2013[[#This Row],[B. CSF (Wndws)]]+(1-SpaceBySpace_2013[[#This Row],[%DL]])*SpaceBySpace_2013[[#This Row],[B. CSF (No Wndws)]]","v":0.38},1,{"$f":"IF(SpaceBySpace_2013[[#This Row],[B. CSF (Wndws)]]=0.38,0.24,0)","v":0.24},{"$f":"VLOOKUP(K36,'Measure Tables'!$A$2:$C$7,3,FALSE)","v":0.38},"REQ","ADD1","ADD1",null,"REQ",null,"ADD2","ADD2",null,null,null,"Daylighting Required (If windows are present)"]
["Retail, Food/Grocery",1.06,"W/ft2",{"$f":"L12*0.03 + L15*0.02 + L19*0.05 + L20*0.08 + L22*0.1 + L31*0.03 + L34*0.05 + L35*0.02 + L39*0.04 + L95*0.58","v":0.26407999999999998},null,"Stairwell",0.57999999999999996,"W/ft2",10,0,"Occupancy",{"$f":"SpaceBySpace_2013[[#This Row],[%DL]]*SpaceBySpace_2013[[#This Row],[B. CSF (Wndws)]]+(1-SpaceBySpace_2013[[#This Row],[%DL]])*SpaceBySpace_2013[[#This Row],[B. CSF (No Wndws)]]","v":0.24},0,0.24,0.24,"REQ",null,null,"REQ","REQ","REQ","ADD2","ADD2"]
["Retail, Commodity",1.06,"W/ft2",{"$f":"L5*0.02 + L15*0.03 + L19*0.01 + L20*0.05 + L31*0.02 + L35*0.02 + L39*0.15 + L93*0.05 + L95*0.65","v":0.26135000000000003},null,"Storage (<50 ft2)",0.97,"W/ft2",6,0,{"$f":"IF(AND(SpaceBySpace_2013[[#This Row],[Automatic Daylighting Control]]=\"REQ\",OR(SpaceBySpace_2013[[#This Row],[Automatic Partial OFF]]=\"REQ\",SpaceBySpace_2013[[#This Row],[Partial Automatic ON]]=\"REQ\",SpaceBySpace_2013[[#This Row],[Automatic Full OFF]]=\"REQ\",COUNTIF(SpaceBySpace_2013[[#This Row],[Automatic Partial OFF]:[Scheduled Shutoff]],\"ADD*\")>0)),\"Occupancy + Daylight\",\nIF(SpaceBySpace_2013[[#This Row],[Automatic Daylighting Control]]=\"REQ\",\"Daylight Harvesting\",\nIF(OR(SpaceBySpace_2013[[#This Row],[Partial Automatic ON]]=\"REQ\",SpaceBySpace_2013[[#This Row],[Automatic Partial OFF]]=\"REQ\",SpaceBySpace_2013[[#This Row],[Automatic Full OFF]]=\"REQ\",COUNTIF(SpaceBySpace_2013[[#This Row],[Automatic Partial OFF]:[Scheduled Shutoff]],\"ADD*\")>0),\"Occupancy\",\"\")))","v":"Occupancy"},{"$f":"SpaceBySpace_2013[[#This Row],[%DL]]*SpaceBySpace_2013[[#This Row],[B. CSF (Wndws)]]+(1-SpaceBySpace_2013[[#This Row],[%DL]])*SpaceBySpace_2013[[#This Row],[B. CSF (No Wndws)]]","v":0.24},0,0.24,{"$f":"VLOOKUP(K38,'Measure Tables'!$A$2:$C$7,3,FALSE)","v":0.24},"REQ",null,null,null,null,null,"ADD2","ADD2",null,null,null,"Implies that Occupancy Controls are Required"]
["Retail, Specialty",1.06,"W/ft2",{"$f":"L5*0.02 + L15*0.03 + L19*0.01 + L20*0.05 + L31*0.02 + L35*0.02 + L39*0.15 + L95*0.7","v":0.26239999999999997},null,"Storage (≥50ft2, ≤1000 ft2)",0.46,"W/ft2",6,0,"Occupancy",{"$f":"SpaceBySpace_2013[[#This Row],[%DL]]*SpaceBySpace_2013[[#This Row],[B. CSF (Wndws)]]+(1-SpaceBySpace_2013[[#This Row],[%DL]])*SpaceBySpace_2013[[#This Row],[B. CSF (No Wndws)]]","v":0.24},0,0.24,0.24,"REQ","ADD1","ADD1","REQ","REQ",null,"ADD2","ADD2"]
["Primary School",0.81,"W/ft2",{"$f":"L11*0.5 + D23*0.12 + L23*0.04 + D33*0.08 + L18*0.06 + L22*0.04 + D30*0.08 + L15*0.03 + L35*0.02 + L19*0.01 * L38*0.02","v":0.25791472000000004},null,"Storage (Other)",0.46,"W/ft2",6,0,"Occupancy",{"$f":"SpaceBySpace_2013[[#This Row],[%DL]]*SpaceBySpace_2013[[#This Row],[B. CSF (Wndws)]]+(1-SpaceBySpace_2013[[#This Row],[%DL]])*SpaceBySpace_2013[[#This Row],[B. CSF (No Wndws)]]","v":0.24},0,0.24,0.24,"REQ","ADD1","ADD1","REQ","REQ","REQ","ADD2","ADD2",null,null,null,"May imply that occupancy controls are required (IF REQ or in combination with Automatic OFF)"]
["Sec. School",0.81,"W/ft2",{"$f":"D40","v":0.25791472000000004},null,"Vehicular Maintenance Area",0.56000000000000005,"W/ft2",4,0,{"$f":"IF(AND(SpaceBySpace_2013[[#This Row],[Automatic Daylighting Control]]=\"REQ\",OR(SpaceBySpace_2013[[#This Row],[Automatic Partial OFF]]=\"REQ\",SpaceBySpace_2013[[#This Row],[Partial Automatic ON]]=\"REQ\",SpaceBySpace_2013[[#This Row],[Automatic Full OFF]]=\"REQ\",COUNTIF(SpaceBySpace_2013[[#This Row],[Automatic Partial OFF]:[Scheduled Shutoff]],\"ADD*\")>0)),\"Occupancy + Daylight\",\nIF(SpaceBySpace_2013[[#This Row],[Automatic Daylighting Control]]=\"REQ\",\"Daylight Harvesting\",\nIF(OR(SpaceBySpace_2013[[#This Row],[Partial Automatic ON]]=\"REQ\",SpaceBySpace_2013[[#This Row],[Automatic Partial OFF]]=\"REQ\",SpaceBySpace_2013[[#This Row],[Automatic Full OFF]]=\"REQ\",COUNTIF(SpaceBySpace_2013[[#This Row],[Automatic Partial OFF]:[Scheduled Shutoff]],\"ADD*\")>0),\"Occupancy\",\"\")))","v":"Occupancy + Daylight"},{"$f":"SpaceBySpace_2013[[#This Row],[%DL]]*SpaceBySpace_2013[[#This Row],[B. CSF (Wndws)]]+(1-SpaceBySpace_2013[[#This Row],[%DL]])*SpaceBySpace_2013[[#This Row],[B. CSF (No Wndws)]]","v":0.24},0,{"$f":"IF(SpaceBySpace_2013[[#This Row],[B. CSF (Wndws)]]=0.38,0.24,0)","v":0.24},{"$f":"VLOOKUP(K41,'Measure Tables'!$A$2:$C$7,3,FALSE)","v":0.38},"REQ","ADD1","ADD1","REQ","REQ",null,"ADD2","ADD2"]
["University",0.81,"W/ft2",{"$f":"D41","v":0.25791472000000004},null,"Workshop",1.1399999999999999,"W/ft2",6,0,{"$f":"IF(AND(SpaceBySpace_2013[[#This Row],[Automatic Daylighting Control]]=\"REQ\",OR(SpaceBySpace_2013[[#This Row],[Automatic Partial OFF]]=\"REQ\",SpaceBySpace_2013[[#This Row],[Partial Automatic ON]]=\"REQ\",SpaceBySpace_2013[[#This Row],[Automatic Full OFF]]=\"REQ\",COUNTIF(SpaceBySpace_2013[[#This Row],[Automatic Partial OFF]:[Scheduled Shutoff]],\"ADD*\")>0)),\"Occupancy + Daylight\",\nIF(SpaceBySpace_2013[[#This Row],[Automatic Daylighting Control]]=\"REQ\",\"Daylight Harvesting\",\nIF(OR(SpaceBySpace_2013[[#This Row],[Partial Automatic ON]]=\"REQ\",SpaceBySpace_2013[[#This Row],[Automatic Partial OFF]]=\"REQ\",SpaceBySpace_2013[[#This Row],[Automatic Full OFF]]=\"REQ\",COUNTIF(SpaceBySpace_2013[[#This Row],[Automatic Partial OFF]:[Scheduled Shutoff]],\"ADD*\")>0),\"Occupancy\",\"\")))","v":"Occupancy + Daylight"},{"$f":"SpaceBySpace_2013[[#This Row],[%DL]]*SpaceBySpace_2013[[#This Row],[B. CSF (Wndws)]]+(1-SpaceBySpace_2013[[#This Row],[%DL]])*SpaceBySpace_2013[[#This Row],[B. CSF (No Wndws)]]","v":0.24},0,{"$f":"IF(SpaceBySpace_2013[[#This Row],[B. CSF (Wndws)]]=0.38,0.24,0)","v":0.24},{"$f":"VLOOKUP(K42,'Measure Tables'!$A$2:$C$7,3,FALSE)","v":0.38},"REQ","ADD1","ADD1","REQ","REQ",null,"ADD2","ADD2",null,null,null,"Has no implications"]
["Sports Arena",0.87,"W/ft2",{"$f":"L26*0.1 + D30*0.05 + L100*0.45 + L101*0.2 + D12*0.08 + D11*0.12","v":0.25174599999999997},null,"Bank/Office, Banking Activity Area",0.96,"W/ft2",4,0,{"$f":"IF(AND(SpaceBySpace_2013[[#This Row],[Automatic Daylighting Control]]=\"REQ\",OR(SpaceBySpace_2013[[#This Row],[Automatic Partial OFF]]=\"REQ\",SpaceBySpace_2013[[#This Row],[Partial Automatic ON]]=\"REQ\",SpaceBySpace_2013[[#This Row],[Automatic Full OFF]]=\"REQ\",COUNTIF(SpaceBySpace_2013[[#This Row],[Automatic Partial OFF]:[Scheduled Shutoff]],\"ADD*\")>0)),\"Occupancy + Daylight\",\nIF(SpaceBySpace_2013[[#This Row],[Automatic Daylighting Control]]=\"REQ\",\"Daylight Harvesting\",\nIF(OR(SpaceBySpace_2013[[#This Row],[Partial Automatic ON]]=\"REQ\",SpaceBySpace_2013[[#This Row],[Automatic Partial OFF]]=\"REQ\",SpaceBySpace_2013[[#This Row],[Automatic Full OFF]]=\"REQ\",COUNTIF(SpaceBySpace_2013[[#This Row],[Automatic Partial OFF]:[Scheduled Shutoff]],\"ADD*\")>0),\"Occupancy\",\"\")))","v":"Occupancy + Daylight"},{"$f":"SpaceBySpace_2013[[#This Row],[%DL]]*SpaceBySpace_2013[[#This Row],[B. CSF (Wndws)]]+(1-SpaceBySpace_2013[[#This Row],[%DL]])*SpaceBySpace_2013[[#This Row],[B. CSF (No Wndws)]]","v":0.24},0,{"$f":"IF(SpaceBySpace_2013[[#This Row],[B. CSF (Wndws)]]=0.38,0.24,0)","v":0.24},{"$f":"VLOOKUP(K43,'Measure Tables'!$A$2:$C$7,3,FALSE)","v":0.38},"REQ","ADD1","ADD1","REQ","REQ",null,"ADD2","ADD2"]
["Town Hall",0.8,"W/ft2",{"$f":"D8","v":0.26877000000000001},null,"Convention Center, Audience Seating",0.82,"W/ft2",6,0,{"$f":"IF(AND(SpaceBySpace_2013[[#This Row],[Automatic Daylighting Control]]=\"REQ\",OR(SpaceBySpace_2013[[#This Row],[Automatic Partial OFF]]=\"REQ\",SpaceBySpace_2013[[#This Row],[Partial Automatic ON]]=\"REQ\",SpaceBySpace_2013[[#This Row],[Automatic Full OFF]]=\"REQ\",COUNTIF(SpaceBySpace_2013[[#This Row],[Automatic Partial OFF]:[Scheduled Shutoff]],\"ADD*\")>0)),\"Occupancy + Daylight\",\nIF(SpaceBySpace_2013[[#This Row],[Automatic Daylighting Control]]=\"REQ\",\"Daylight Harvesting\",\nIF(OR(SpaceBySpace_2013[[#This Row],[Partial Automatic ON]]=\"REQ\",SpaceBySpace_2013[[#This Row],[Automatic Partial OFF]]=\"REQ\",SpaceBySpace_2013[[#This Row],[Automatic Full OFF]]=\"REQ\",COUNTIF(SpaceBySpace_2013[[#This Row],[Automatic Partial OFF]:[Scheduled Shutoff]],\"ADD*\")>0),\"Occupancy\",\"\")))","v":"Occupancy + Daylight"},{"$f":"SpaceBySpace_2013[[#This Row],[%DL]]*SpaceBySpace_2013[[#This Row],[B. CSF (Wndws)]]+(1-SpaceBySpace_2013[[#This Row],[%DL]])*SpaceBySpace_2013[[#This Row],[B. CSF (No Wndws)]]","v":0.24},0,{"$f":"IF(SpaceBySpace_2013[[#This Row],[B. CSF (Wndws)]]=0.38,0.24,0)","v":0.24},{"$f":"VLOOKUP(K44,'Measure Tables'!$A$2:$C$7,3,FALSE)","v":0.38},"REQ","ADD1","ADD1","REQ","REQ",null,"ADD2","ADD2"]
["Transportation",0.61,"W/ft2",{"$f":"D6","v":0.21279000000000001},null,"Convention Center, Exhibit Space",0.88,"W/ft2",4,0,{"$f":"IF(AND(SpaceBySpace_2013[[#This Row],[Automatic Daylighting Control]]=\"REQ\",OR(SpaceBySpace_2013[[#This Row],[Automatic Partial OFF]]=\"REQ\",SpaceBySpace_2013[[#This Row],[Partial Automatic ON]]=\"REQ\",SpaceBySpace_2013[[#This Row],[Automatic Full OFF]]=\"REQ\",COUNTIF(SpaceBySpace_2013[[#This Row],[Automatic Partial OFF]:[Scheduled Shutoff]],\"ADD*\")>0)),\"Occupancy + Daylight\",\nIF(SpaceBySpace_2013[[#This Row],[Automatic Daylighting Control]]=\"REQ\",\"Daylight Harvesting\",\nIF(OR(SpaceBySpace_2013[[#This Row],[Partial Automatic ON]]=\"REQ\",SpaceBySpace_2013[[#This Row],[Automatic Partial OFF]]=\"REQ\",SpaceBySpace_2013[[#This Row],[Automatic Full OFF]]=\"REQ\",COUNTIF(SpaceBySpace_2013[[#This Row],[Automatic Partial OFF]:[Scheduled Shutoff]],\"ADD*\")>0),\"Occupancy\",\"\")))","v":"Occupancy + Daylight"},{"$f":"SpaceBySpace_2013[[#This Row],[%DL]]*SpaceBySpace_2013[[#This Row],[B. CSF (Wndws)]]+(1-SpaceBySpace_2013[[#This Row],[%DL]])*SpaceBySpace_2013[[#This Row],[B. CSF (No Wndws)]]","v":0.24},0,{"$f":"IF(SpaceBySpace_2013[[#This Row],[B. CSF (Wndws)]]=0.38,0.24,0)","v":0.24},{"$f":"VLOOKUP(K45,'Measure Tables'!$A$2:$C$7,3,FALSE)","v":0.38},"REQ","ADD1","ADD1","REQ","REQ",null,"ADD2","ADD2"]
["Warehouse, Refrigerated",0.48,"W/ft2",{"$f":"L116*0.1+L117*0.85 + D30*0.05","v":0.24194599999999999},null,"Courthouse/Police Station/Pentitentiary, Courtroom",1.39,"W/ft2",6,0,{"$f":"IF(AND(SpaceBySpace_2013[[#This Row],[Automatic Daylighting Control]]=\"REQ\",OR(SpaceBySpace_2013[[#This Row],[Automatic Partial OFF]]=\"REQ\",SpaceBySpace_2013[[#This Row],[Partial Automatic ON]]=\"REQ\",SpaceBySpace_2013[[#This Row],[Automatic Full OFF]]=\"REQ\",COUNTIF(SpaceBySpace_2013[[#This Row],[Automatic Partial OFF]:[Scheduled Shutoff]],\"ADD*\")>0)),\"Occupancy + Daylight\",\nIF(SpaceBySpace_2013[[#This Row],[Automatic Daylighting Control]]=\"REQ\",\"Daylight Harvesting\",\nIF(OR(SpaceBySpace_2013[[#This Row],[Partial Automatic ON]]=\"REQ\",SpaceBySpace_2013[[#This Row],[Automatic Partial OFF]]=\"REQ\",SpaceBySpace_2013[[#This Row],[Automatic Full OFF]]=\"REQ\",COUNTIF(SpaceBySpace_2013[[#This Row],[Automatic Partial OFF]:[Scheduled Shutoff]],\"ADD*\")>0),\"Occupancy\",\"\")))","v":"Occupancy + Daylight"},{"$f":"SpaceBySpace_2013[[#This Row],[%DL]]*SpaceBySpace_2013[[#This Row],[B. CSF (Wndws)]]+(1-SpaceBySpace_2013[[#This Row],[%DL]])*SpaceBySpace_2013[[#This Row],[B. CSF (No Wndws)]]","v":0.24},0,{"$f":"IF(SpaceBySpace_2013[[#This Row],[B. CSF (Wndws)]]=0.38,0.24,0)","v":0.24},{"$f":"VLOOKUP(K46,'Measure Tables'!$A$2:$C$7,3,FALSE)","v":0.38},"REQ","ADD1","ADD1","REQ","REQ",null,"ADD2","ADD2"]
["Warehouse, Commercial",0.48,"W/ft2",{"$f":"D46","v":0.24194599999999999},null,"Courthouse/Police Station/Pentitentiary, Confinement Cells",0.81,"W/ft2",6,0,{"$f":"IF(AND(SpaceBySpace_2013[[#This Row],[Automatic Daylighting Control]]=\"REQ\",OR(SpaceBySpace_2013[[#This Row],[Automatic Partial OFF]]=\"REQ\",SpaceBySpace_2013[[#This Row],[Partial Automatic ON]]=\"REQ\",SpaceBySpace_2013[[#This Row],[Automatic Full OFF]]=\"REQ\",COUNTIF(SpaceBySpace_2013[[#This Row],[Automatic Partial OFF]:[Scheduled Shutoff]],\"ADD*\")>0)),\"Occupancy + Daylight\",\nIF(SpaceBySpace_2013[[#This Row],[Automatic Daylighting Control]]=\"REQ\",\"Daylight Harvesting\",\nIF(OR(SpaceBySpace_2013[[#This Row],[Partial Automatic ON]]=\"REQ\",SpaceBySpace_2013[[#This Row],[Automatic Partial OFF]]=\"REQ\",SpaceBySpace_2013[[#This Row],[Automatic Full OFF]]=\"REQ\",COUNTIF(SpaceBySpace_2013[[#This Row],[Automatic Partial OFF]:[Scheduled Shutoff]],\"ADD*\")>0),\"Occupancy\",\"\")))","v":"Occupancy + Daylight"},{"$f":"SpaceBySpace_2013[[#This Row],[%DL]]*SpaceBySpace_2013[[#This Row],[B. CSF (Wndws)]]+(1-SpaceBySpace_2013[[#This Row],[%DL]])*SpaceBySpace_2013[[#This Row],[B. CSF (No Wndws)]]","v":0.24},0,{"$f":"IF(SpaceBySpace_2013[[#This Row],[B. CSF (Wndws)]]=0.38,0.24,0)","v":0.24},{"$f":"VLOOKUP(K47,'Measure Tables'!$A$2:$C$7,3,FALSE)","v":0.38},"REQ","ADD1","ADD1","REQ","REQ",null,"ADD2","ADD2"]
["Warehouse, Industrial",0.48,"W/ft2",0.24194599999999999,null,"Courthouse/Police Station/Pentitentiary, Judges' Chambers",{"$f":"G32","v":0.93},"W/ft2",8,0,{"$f":"IF(AND(SpaceBySpace_2013[[#This Row],[Automatic Daylighting Control]]=\"REQ\",OR(SpaceBySpace_2013[[#This Row],[Automatic Partial OFF]]=\"REQ\",SpaceBySpace_2013[[#This Row],[Partial Automatic ON]]=\"REQ\",SpaceBySpace_2013[[#This Row],[Automatic Full OFF]]=\"REQ\",COUNTIF(SpaceBySpace_2013[[#This Row],[Automatic Partial OFF]:[Scheduled Shutoff]],\"ADD*\")>0)),\"Occupancy + Daylight\",\nIF(SpaceBySpace_2013[[#This Row],[Automatic Daylighting Control]]=\"REQ\",\"Daylight Harvesting\",\nIF(OR(SpaceBySpace_2013[[#This Row],[Partial Automatic ON]]=\"REQ\",SpaceBySpace_2013[[#This Row],[Automatic Partial OFF]]=\"REQ\",SpaceBySpace_2013[[#This Row],[Automatic Full OFF]]=\"REQ\",COUNTIF(SpaceBySpace_2013[[#This Row],[Automatic Partial OFF]:[Scheduled Shutoff]],\"ADD*\")>0),\"Occupancy\",\"\")))","v":"Occupancy + Daylight"},{"$f":"SpaceBySpace_2013[[#This Row],[%DL]]*SpaceBySpace_2013[[#This Row],[B. CSF (Wndws)]]+(1-SpaceBySpace_2013[[#This Row],[%DL]])*SpaceBySpace_2013[[#This Row],[B. CSF (No Wndws)]]","v":0.24},0,{"$f":"IF(SpaceBySpace_2013[[#This Row],[B. CSF (Wndws)]]=0.38,0.24,0)","v":0.24},{"$f":"VLOOKUP(K48,'Measure Tables'!$A$2:$C$7,3,FALSE)","v":0.38},"REQ","ADD1","ADD1","REQ","REQ",null,"ADD2","ADD2"]
["Workshop",0.9,"W/ft2",{"$f":"L12*0.02 + L15*0.05 + L19*0.01 + L26*0.04 + L31*0.02 + L35*0.03 + L40*0.03 + L117*0.8","v":0.25022},null,"Pentitentiary, Audience Seating",0.28000000000000003,"W/ft2",4,0,{"$f":"IF(AND(SpaceBySpace_2013[[#This Row],[Automatic Daylighting Control]]=\"REQ\",OR(SpaceBySpace_2013[[#This Row],[Automatic Partial OFF]]=\"REQ\",SpaceBySpace_2013[[#This Row],[Partial Automatic ON]]=\"REQ\",SpaceBySpace_2013[[#This Row],[Automatic Full OFF]]=\"REQ\",COUNTIF(SpaceBySpace_2013[[#This Row],[Automatic Partial OFF]:[Scheduled Shutoff]],\"ADD*\")>0)),\"Occupancy + Daylight\",\nIF(SpaceBySpace_2013[[#This Row],[Automatic Daylighting Control]]=\"REQ\",\"Daylight Harvesting\",\nIF(OR(SpaceBySpace_2013[[#This Row],[Partial Automatic ON]]=\"REQ\",SpaceBySpace_2013[[#This Row],[Automatic Partial OFF]]=\"REQ\",SpaceBySpace_2013[[#This Row],[Automatic Full OFF]]=\"REQ\",COUNTIF(SpaceBySpace_2013[[#This Row],[Automatic Partial OFF]:[Scheduled Shutoff]],\"ADD*\")>0),\"Occupancy\",\"\")))","v":"Occupancy + Daylight"},{"$f":"SpaceBySpace_2013[[#This Row],[%DL]]*SpaceBySpace_2013[[#This Row],[B. CSF (Wndws)]]+(1-SpaceBySpace_2013[[#This Row],[%DL]])*SpaceBySpace_2013[[#This Row],[B. CSF (No Wndws)]]","v":0.38},1,{"$f":"IF(SpaceBySpace_2013[[#This Row],[B. CSF (Wndws)]]=0.38,0.24,0)","v":0.24},{"$f":"VLOOKUP(K49,'Measure Tables'!$A$2:$C$7,3,FALSE)","v":0.38},"REQ","ADD1","ADD1",null,"REQ",null,"ADD2","ADD2"]
[null,null,null,null,null,"Pentitentiary, Classrooms/Lecture/Training",1.34,"W/ft2",4,0,{"$f":"IF(AND(SpaceBySpace_2013[[#This Row],[Automatic Daylighting Control]]=\"REQ\",OR(SpaceBySpace_2013[[#This Row],[Automatic Partial OFF]]=\"REQ\",SpaceBySpace_2013[[#This Row],[Partial Automatic ON]]=\"REQ\",SpaceBySpace_2013[[#This Row],[Automatic Full OFF]]=\"REQ\",COUNTIF(SpaceBySpace_2013[[#This Row],[Automatic Partial OFF]:[Scheduled Shutoff]],\"ADD*\")>0)),\"Occupancy + Daylight\",\nIF(SpaceBySpace_2013[[#This Row],[Automatic Daylighting Control]]=\"REQ\",\"Daylight Harvesting\",\nIF(OR(SpaceBySpace_2013[[#This Row],[Partial Automatic ON]]=\"REQ\",SpaceBySpace_2013[[#This Row],[Automatic Partial OFF]]=\"REQ\",SpaceBySpace_2013[[#This Row],[Automatic Full OFF]]=\"REQ\",COUNTIF(SpaceBySpace_2013[[#This Row],[Automatic Partial OFF]:[Scheduled Shutoff]],\"ADD*\")>0),\"Occupancy\",\"\")))","v":"Occupancy + Daylight"},{"$f":"SpaceBySpace_2013[[#This Row],[%DL]]*SpaceBySpace_2013[[#This Row],[B. CSF (Wndws)]]+(1-SpaceBySpace_2013[[#This Row],[%DL]])*SpaceBySpace_2013[[#This Row],[B. CSF (No Wndws)]]","v":0.31},0.5,{"$f":"IF(SpaceBySpace_2013[[#This Row],[B. CSF (Wndws)]]=0.38,0.24,0)","v":0.24},{"$f":"VLOOKUP(K50,'Measure Tables'!$A$2:$C$7,3,FALSE)","v":0.38},"REQ","ADD1","ADD1","REQ","REQ",null,"REQ"]
[null,null,null,null,null,"Pentitentiary, Dining",0.96,"W/ft2",6,0,{"$f":"IF(AND(SpaceBySpace_2013[[#This Row],[Automatic Daylighting Control]]=\"REQ\",OR(SpaceBySpace_2013[[#This Row],[Automatic Partial OFF]]=\"REQ\",SpaceBySpace_2013[[#This Row],[Partial Automatic ON]]=\"REQ\",SpaceBySpace_2013[[#This Row],[Automatic Full OFF]]=\"REQ\",COUNTIF(SpaceBySpace_2013[[#This Row],[Automatic Partial OFF]:[Scheduled Shutoff]],\"ADD*\")>0)),\"Occupancy + Daylight\",\nIF(SpaceBySpace_2013[[#This Row],[Automatic Daylighting Control]]=\"REQ\",\"Daylight Harvesting\",\nIF(OR(SpaceBySpace_2013[[#This Row],[Partial Automatic ON]]=\"REQ\",SpaceBySpace_2013[[#This Row],[Automatic Partial OFF]]=\"REQ\",SpaceBySpace_2013[[#This Row],[Automatic Full OFF]]=\"REQ\",COUNTIF(SpaceBySpace_2013[[#This Row],[Automatic Partial OFF]:[Scheduled Shutoff]],\"ADD*\")>0),\"Occupancy\",\"\")))","v":"Occupancy + Daylight"},{"$f":"SpaceBySpace_2013[[#This Row],[%DL]]*SpaceBySpace_2013[[#This Row],[B. CSF (Wndws)]]+(1-SpaceBySpace_2013[[#This Row],[%DL]])*SpaceBySpace_2013[[#This Row],[B. CSF (No Wndws)]]","v":0.26100000000000001},0.15,{"$f":"IF(SpaceBySpace_2013[[#This Row],[B. CSF (Wndws)]]=0.38,0.24,0)","v":0.24},{"$f":"VLOOKUP(K51,'Measure Tables'!$A$2:$C$7,3,FALSE)","v":0.38},"REQ","ADD1","ADD1","REQ","REQ",null,"ADD2","ADD2"]
[null,null,null,null,null,"Dormitory, Living Quarters",0.54,"W/ft2",8,0,"No Controls",{"$f":"SpaceBySpace_2013[[#This Row],[%DL]]*SpaceBySpace_2013[[#This Row],[B. CSF (Wndws)]]+(1-SpaceBySpace_2013[[#This Row],[%DL]])*SpaceBySpace_2013[[#This Row],[B. CSF (No Wndws)]]","v":0},0,0,0,"REQ"]
[null,null,null,null,null,"Fire Station, Engine Room",{"$f":"G21","v":0.41},"W/ft2",4,0,{"$f":"IF(AND(SpaceBySpace_2013[[#This Row],[Automatic Daylighting Control]]=\"REQ\",OR(SpaceBySpace_2013[[#This Row],[Automatic Partial OFF]]=\"REQ\",SpaceBySpace_2013[[#This Row],[Partial Automatic ON]]=\"REQ\",SpaceBySpace_2013[[#This Row],[Automatic Full OFF]]=\"REQ\",COUNTIF(SpaceBySpace_2013[[#This Row],[Automatic Partial OFF]:[Scheduled Shutoff]],\"ADD*\")>0)),\"Occupancy + Daylight\",\nIF(SpaceBySpace_2013[[#This Row],[Automatic Daylighting Control]]=\"REQ\",\"Daylight Harvesting\",\nIF(OR(SpaceBySpace_2013[[#This Row],[Partial Automatic ON]]=\"REQ\",SpaceBySpace_2013[[#This Row],[Automatic Partial OFF]]=\"REQ\",SpaceBySpace_2013[[#This Row],[Automatic Full OFF]]=\"REQ\",COUNTIF(SpaceBySpace_2013[[#This Row],[Automatic Partial OFF]:[Scheduled Shutoff]],\"ADD*\")>0),\"Occupancy\",\"\")))","v":"Occupancy + Daylight"},{"$f":"SpaceBySpace_2013[[#This Row],[%DL]]*SpaceBySpace_2013[[#This Row],[B. CSF (Wndws)]]+(1-SpaceBySpace_2013[[#This Row],[%DL]])*SpaceBySpace_2013[[#This Row],[B. CSF (No Wndws)]]","v":0.24},0,{"$f":"IF(SpaceBySpace_2013[[#This Row],[B. CSF (Wndws)]]=0.38,0.24,0)","v":0.24},{"$f":"VLOOKUP(K53,'Measure Tables'!$A$2:$C$7,3,FALSE)","v":0.38},"REQ","ADD1","ADD1","REQ","REQ",null,"ADD2","ADD2"]
[null,null,null,null,null,"Fire Station, Sleeping Quarters",0.2,"W/ft2",6,0,"No Controls",{"$f":"SpaceBySpace_2013[[#This Row],[%DL]]*SpaceBySpace_2013[[#This Row],[B. CSF (Wndws)]]+(1-SpaceBySpace_2013[[#This Row],[%DL]])*SpaceBySpace_2013[[#This Row],[B. CSF (No Wndws)]]","v":0},0,0,0,"REQ",null,null,null,"REQ",null,"ADD2","ADD2"]
[null,null,null,null,null,"Gymnasium, Audience Seating",0.65,"W/ft2",6,0,"Occupancy + Daylight",{"$f":"SpaceBySpace_2013[[#This Row],[%DL]]*SpaceBySpace_2013[[#This Row],[B. CSF (Wndws)]]+(1-SpaceBySpace_2013[[#This Row],[%DL]])*SpaceBySpace_2013[[#This Row],[B. CSF (No Wndws)]]","v":0.38},1,0.24,0.38,"REQ","ADD1","ADD1","REQ"]
[null,null,null,null,null,"Gymnasium/Fitness Center, Exercise Area",0.5,"W/ft2",4,0,{"$f":"IF(AND(SpaceBySpace_2013[[#This Row],[Automatic Daylighting Control]]=\"REQ\",OR(SpaceBySpace_2013[[#This Row],[Automatic Partial OFF]]=\"REQ\",SpaceBySpace_2013[[#This Row],[Partial Automatic ON]]=\"REQ\",SpaceBySpace_2013[[#This Row],[Automatic Full OFF]]=\"REQ\",COUNTIF(SpaceBySpace_2013[[#This Row],[Automatic Partial OFF]:[Scheduled Shutoff]],\"ADD*\")>0)),\"Occupancy + Daylight\",\nIF(SpaceBySpace_2013[[#This Row],[Automatic Daylighting Control]]=\"REQ\",\"Daylight Harvesting\",\nIF(OR(SpaceBySpace_2013[[#This Row],[Partial Automatic ON]]=\"REQ\",SpaceBySpace_2013[[#This Row],[Automatic Partial OFF]]=\"REQ\",SpaceBySpace_2013[[#This Row],[Automatic Full OFF]]=\"REQ\",COUNTIF(SpaceBySpace_2013[[#This Row],[Automatic Partial OFF]:[Scheduled Shutoff]],\"ADD*\")>0),\"Occupancy\",\"\")))","v":"Occupancy + Daylight"},{"$f":"SpaceBySpace_2013[[#This Row],[%DL]]*SpaceBySpace_2013[[#This Row],[B. CSF (Wndws)]]+(1-SpaceBySpace_2013[[#This Row],[%DL]])*SpaceBySpace_2013[[#This Row],[B. CSF (No Wndws)]]","v":0.26100000000000001},0.15,{"$f":"IF(SpaceBySpace_2013[[#This Row],[B. CSF (Wndws)]]=0.38,0.24,0)","v":0.24},{"$f":"VLOOKUP(K56,'Measure Tables'!$A$2:$C$7,3,FALSE)","v":0.38},"REQ","ADD1","ADD1","REQ","REQ",null,"ADD2","ADD2"]
[null,null,null,null,null,"Gymnasium/Fitness Center, Playing Area",0.82,"W/ft2",4,0,{"$f":"IF(AND(SpaceBySpace_2013[[#This Row],[Automatic Daylighting Control]]=\"REQ\",OR(SpaceBySpace_2013[[#This Row],[Automatic Partial OFF]]=\"REQ\",SpaceBySpace_2013[[#This Row],[Partial Automatic ON]]=\"REQ\",SpaceBySpace_2013[[#This Row],[Automatic Full OFF]]=\"REQ\",COUNTIF(SpaceBySpace_2013[[#This Row],[Automatic Partial OFF]:[Scheduled Shutoff]],\"ADD*\")>0)),\"Occupancy + Daylight\",\nIF(SpaceBySpace_2013[[#This Row],[Automatic Daylighting Control]]=\"REQ\",\"Daylight Harvesting\",\nIF(OR(SpaceBySpace_2013[[#This Row],[Partial Automatic ON]]=\"REQ\",SpaceBySpace_2013[[#This Row],[Automatic Partial OFF]]=\"REQ\",SpaceBySpace_2013[[#This Row],[Automatic Full OFF]]=\"REQ\",COUNTIF(SpaceBySpace_2013[[#This Row],[Automatic Partial OFF]:[Scheduled Shutoff]],\"ADD*\")>0),\"Occupancy\",\"\")))","v":"Occupancy + Daylight"},{"$f":"SpaceBySpace_2013[[#This Row],[%DL]]*SpaceBySpace_2013[[#This Row],[B. CSF (Wndws)]]+(1-SpaceBySpace_2013[[#This Row],[%DL]])*SpaceBySpace_2013[[#This Row],[B. CSF (No Wndws)]]","v":0.26100000000000001},0.15,{"$f":"IF(SpaceBySpace_2013[[#This Row],[B. CSF (Wndws)]]=0.38,0.24,0)","v":0.24},{"$f":"VLOOKUP(K57,'Measure Tables'!$A$2:$C$7,3,FALSE)","v":0.38},"REQ","ADD1","ADD1","REQ","REQ",null,"ADD2","ADD2"]
[null,null,null,null,null,"Hospital/Healthcare, Corridor/Transition",0.99,"W/ft2",0,8,{"$f":"IF(AND(SpaceBySpace_2013[[#This Row],[Automatic Daylighting Control]]=\"REQ\",OR(SpaceBySpace_2013[[#This Row],[Automatic Partial OFF]]=\"REQ\",SpaceBySpace_2013[[#This Row],[Partial Automatic ON]]=\"REQ\",SpaceBySpace_2013[[#This Row],[Automatic Full OFF]]=\"REQ\",COUNTIF(SpaceBySpace_2013[[#This Row],[Automatic Partial OFF]:[Scheduled Shutoff]],\"ADD*\")>0)),\"Occupancy + Daylight\",\nIF(SpaceBySpace_2013[[#This Row],[Automatic Daylighting Control]]=\"REQ\",\"Daylight Harvesting\",\nIF(OR(SpaceBySpace_2013[[#This Row],[Partial Automatic ON]]=\"REQ\",SpaceBySpace_2013[[#This Row],[Automatic Partial OFF]]=\"REQ\",SpaceBySpace_2013[[#This Row],[Automatic Full OFF]]=\"REQ\",COUNTIF(SpaceBySpace_2013[[#This Row],[Automatic Partial OFF]:[Scheduled Shutoff]],\"ADD*\")>0),\"Occupancy\",\"\")))","v":"Occupancy + Daylight"},{"$f":"SpaceBySpace_2013[[#This Row],[%DL]]*SpaceBySpace_2013[[#This Row],[B. CSF (Wndws)]]+(1-SpaceBySpace_2013[[#This Row],[%DL]])*SpaceBySpace_2013[[#This Row],[B. CSF (No Wndws)]]","v":0.254},0.1,{"$f":"IF(SpaceBySpace_2013[[#This Row],[B. CSF (Wndws)]]=0.38,0.24,0)","v":0.24},{"$f":"VLOOKUP(K58,'Measure Tables'!$A$2:$C$7,3,FALSE)","v":0.38},"REQ",null,null,null,"REQ","ADD2","ADD2","ADD2"]
[null,null,null,null,null,"Hospital/Healthcare, Emergency",{"$f":"G60","v":1.68},"W/ft2",6,0,"Occupancy",{"$f":"SpaceBySpace_2013[[#This Row],[%DL]]*SpaceBySpace_2013[[#This Row],[B. CSF (Wndws)]]+(1-SpaceBySpace_2013[[#This Row],[%DL]])*SpaceBySpace_2013[[#This Row],[B. CSF (No Wndws)]]","v":0.24},0,0.24,{"$f":"VLOOKUP(K59,'Measure Tables'!$A$2:$C$7,3,FALSE)","v":0.24},"REQ",null,null,"REQ","REQ",null,"ADD2","ADD2"]
[null,null,null,null,null,"Hospital/Healthcare, Exam/Treatment",1.68,"W/ft2",8,0,"Occupancy",{"$f":"SpaceBySpace_2013[[#This Row],[%DL]]*SpaceBySpace_2013[[#This Row],[B. CSF (Wndws)]]+(1-SpaceBySpace_2013[[#This Row],[%DL]])*SpaceBySpace_2013[[#This Row],[B. CSF (No Wndws)]]","v":0.24},0,0.24,{"$f":"VLOOKUP(K60,'Measure Tables'!$A$2:$C$7,3,FALSE)","v":0.24},"REQ",null,null,"REQ","REQ",null,"ADD2","ADD2"]
[null,null,null,null,null,"Hospital/Healthcare, Lounge/Recreation",0.78,"W/ft2",6,0,{"$f":"IF(AND(SpaceBySpace_2013[[#This Row],[Automatic Daylighting Control]]=\"REQ\",OR(SpaceBySpace_2013[[#This Row],[Automatic Partial OFF]]=\"REQ\",SpaceBySpace_2013[[#This Row],[Partial Automatic ON]]=\"REQ\",SpaceBySpace_2013[[#This Row],[Automatic Full OFF]]=\"REQ\",COUNTIF(SpaceBySpace_2013[[#This Row],[Automatic Partial OFF]:[Scheduled Shutoff]],\"ADD*\")>0)),\"Occupancy + Daylight\",\nIF(SpaceBySpace_2013[[#This Row],[Automatic Daylighting Control]]=\"REQ\",\"Daylight Harvesting\",\nIF(OR(SpaceBySpace_2013[[#This Row],[Partial Automatic ON]]=\"REQ\",SpaceBySpace_2013[[#This Row],[Automatic Partial OFF]]=\"REQ\",SpaceBySpace_2013[[#This Row],[Automatic Full OFF]]=\"REQ\",COUNTIF(SpaceBySpace_2013[[#This Row],[Automatic Partial OFF]:[Scheduled Shutoff]],\"ADD*\")>0),\"Occupancy\",\"\")))","v":"Occupancy + Daylight"},{"$f":"SpaceBySpace_2013[[#This Row],[%DL]]*SpaceBySpace_2013[[#This Row],[B. CSF (Wndws)]]+(1-SpaceBySpace_2013[[#This Row],[%DL]])*SpaceBySpace_2013[[#This Row],[B. CSF (No Wndws)]]","v":0.31},0.5,{"$f":"IF(SpaceBySpace_2013[[#This Row],[B. CSF (Wndws)]]=0.38,0.24,0)","v":0.24},{"$f":"VLOOKUP(K61,'Measure Tables'!$A$2:$C$7,3,FALSE)","v":0.38},"REQ",null,null,"REQ","REQ",null,"REQ"]
[null,null,null,null,null,"Hospital/Healthcare, Medical Supply",0.54,"W/ft2",6,0,"Occupancy",{"$f":"SpaceBySpace_2013[[#This Row],[%DL]]*SpaceBySpace_2013[[#This Row],[B. CSF (Wndws)]]+(1-SpaceBySpace_2013[[#This Row],[%DL]])*SpaceBySpace_2013[[#This Row],[B. CSF (No Wndws)]]","v":0.24},0,0.24,{"$f":"VLOOKUP(K62,'Measure Tables'!$A$2:$C$7,3,FALSE)","v":0.24},"REQ",null,null,"REQ","REQ","REQ","ADD2","ADD2"]
[null,null,null,null,null,"Hospital/Healthcare, Nursery",1,"W/ft2",6,0,{"$f":"IF(AND(SpaceBySpace_2013[[#This Row],[Automatic Daylighting Control]]=\"REQ\",OR(SpaceBySpace_2013[[#This Row],[Automatic Partial OFF]]=\"REQ\",SpaceBySpace_2013[[#This Row],[Partial Automatic ON]]=\"REQ\",SpaceBySpace_2013[[#This Row],[Automatic Full OFF]]=\"REQ\",COUNTIF(SpaceBySpace_2013[[#This Row],[Automatic Partial OFF]:[Scheduled Shutoff]],\"ADD*\")>0)),\"Occupancy + Daylight\",\nIF(SpaceBySpace_2013[[#This Row],[Automatic Daylighting Control]]=\"REQ\",\"Daylight Harvesting\",\nIF(OR(SpaceBySpace_2013[[#This Row],[Partial Automatic ON]]=\"REQ\",SpaceBySpace_2013[[#This Row],[Automatic Partial OFF]]=\"REQ\",SpaceBySpace_2013[[#This Row],[Automatic Full OFF]]=\"REQ\",COUNTIF(SpaceBySpace_2013[[#This Row],[Automatic Partial OFF]:[Scheduled Shutoff]],\"ADD*\")>0),\"Occupancy\",\"\")))","v":"Occupancy + Daylight"},{"$f":"SpaceBySpace_2013[[#This Row],[%DL]]*SpaceBySpace_2013[[#This Row],[B. CSF (Wndws)]]+(1-SpaceBySpace_2013[[#This Row],[%DL]])*SpaceBySpace_2013[[#This Row],[B. CSF (No Wndws)]]","v":0.31},0.5,{"$f":"IF(SpaceBySpace_2013[[#This Row],[B. CSF (Wndws)]]=0.38,0.24,0)","v":0.24},{"$f":"VLOOKUP(K63,'Measure Tables'!$A$2:$C$7,3,FALSE)","v":0.38},"REQ",null,null,"REQ","REQ",null,"ADD2","ADD2"]
[null,null,null,null,null,"Hospital/Healthcare, Nurses' Station",0.81,"W/ft2",6,0,"Occupancy",{"$f":"SpaceBySpace_2013[[#This Row],[%DL]]*SpaceBySpace_2013[[#This Row],[B. CSF (Wndws)]]+(1-SpaceBySpace_2013[[#This Row],[%DL]])*SpaceBySpace_2013[[#This Row],[B. CSF (No Wndws)]]","v":0.24},0,0.24,{"$f":"VLOOKUP(K64,'Measure Tables'!$A$2:$C$7,3,FALSE)","v":0.24},"REQ",null,null,"REQ","REQ",null,"ADD2","ADD2"]
[null,null,null,null,null,"Hospital/Healthcare, Operating Room",2.17,"W/ft2",6,0,{"$f":"IF(AND(SpaceBySpace_2013[[#This Row],[Automatic Daylighting Control]]=\"REQ\",OR(SpaceBySpace_2013[[#This Row],[Automatic Partial OFF]]=\"REQ\",SpaceBySpace_2013[[#This Row],[Partial Automatic ON]]=\"REQ\",SpaceBySpace_2013[[#This Row],[Automatic Full OFF]]=\"REQ\",COUNTIF(SpaceBySpace_2013[[#This Row],[Automatic Partial OFF]:[Scheduled Shutoff]],\"ADD*\")>0)),\"Occupancy + Daylight\",\nIF(SpaceBySpace_2013[[#This Row],[Automatic Daylighting Control]]=\"REQ\",\"Daylight Harvesting\",\nIF(OR(SpaceBySpace_2013[[#This Row],[Partial Automatic ON]]=\"REQ\",SpaceBySpace_2013[[#This Row],[Automatic Partial OFF]]=\"REQ\",SpaceBySpace_2013[[#This Row],[Automatic Full OFF]]=\"REQ\",COUNTIF(SpaceBySpace_2013[[#This Row],[Automatic Partial OFF]:[Scheduled Shutoff]],\"ADD*\")>0),\"Occupancy\",\"\")))","v":"Occupancy"},{"$f":"SpaceBySpace_2013[[#This Row],[%DL]]*SpaceBySpace_2013[[#This Row],[B. CSF (Wndws)]]+(1-SpaceBySpace_2013[[#This Row],[%DL]])*SpaceBySpace_2013[[#This Row],[B. CSF (No Wndws)]]","v":0.24},0,0.24,{"$f":"VLOOKUP(K65,'Measure Tables'!$A$2:$C$7,3,FALSE)","v":0.24},"REQ",null,null,"REQ",null,null,"ADD2","ADD2"]
[null,null,null,null,null,"Hospital/Healthcare, Patient Room",0.62,"W/ft2",6,0,{"$f":"IF(AND(SpaceBySpace_2013[[#This Row],[Automatic Daylighting Control]]=\"REQ\",OR(SpaceBySpace_2013[[#This Row],[Automatic Partial OFF]]=\"REQ\",SpaceBySpace_2013[[#This Row],[Partial Automatic ON]]=\"REQ\",SpaceBySpace_2013[[#This Row],[Automatic Full OFF]]=\"REQ\",COUNTIF(SpaceBySpace_2013[[#This Row],[Automatic Partial OFF]:[Scheduled Shutoff]],\"ADD*\")>0)),\"Occupancy + Daylight\",\nIF(SpaceBySpace_2013[[#This Row],[Automatic Daylighting Control]]=\"REQ\",\"Daylight Harvesting\",\nIF(OR(SpaceBySpace_2013[[#This Row],[Partial Automatic ON]]=\"REQ\",SpaceBySpace_2013[[#This Row],[Automatic Partial OFF]]=\"REQ\",SpaceBySpace_2013[[#This Row],[Automatic Full OFF]]=\"REQ\",COUNTIF(SpaceBySpace_2013[[#This Row],[Automatic Partial OFF]:[Scheduled Shutoff]],\"ADD*\")>0),\"Occupancy\",\"\")))","v":"Occupancy + Daylight"},{"$f":"SpaceBySpace_2013[[#This Row],[%DL]]*SpaceBySpace_2013[[#This Row],[B. CSF (Wndws)]]+(1-SpaceBySpace_2013[[#This Row],[%DL]])*SpaceBySpace_2013[[#This Row],[B. CSF (No Wndws)]]","v":0.31},0.5,{"$f":"IF(SpaceBySpace_2013[[#This Row],[B. CSF (Wndws)]]=0.38,0.24,0)","v":0.24},{"$f":"VLOOKUP(K66,'Measure Tables'!$A$2:$C$7,3,FALSE)","v":0.38},"REQ",null,null,"REQ","REQ",null,"ADD2","ADD2"]
[null,null,null,null,null,"Hospital/Healthcare, Physical Therapy",0.84,"W/ft2",6,0,{"$f":"IF(AND(SpaceBySpace_2013[[#This Row],[Automatic Daylighting Control]]=\"REQ\",OR(SpaceBySpace_2013[[#This Row],[Automatic Partial OFF]]=\"REQ\",SpaceBySpace_2013[[#This Row],[Partial Automatic ON]]=\"REQ\",SpaceBySpace_2013[[#This Row],[Automatic Full OFF]]=\"REQ\",COUNTIF(SpaceBySpace_2013[[#This Row],[Automatic Partial OFF]:[Scheduled Shutoff]],\"ADD*\")>0)),\"Occupancy + Daylight\",\nIF(SpaceBySpace_2013[[#This Row],[Automatic Daylighting Control]]=\"REQ\",\"Daylight Harvesting\",\nIF(OR(SpaceBySpace_2013[[#This Row],[Partial Automatic ON]]=\"REQ\",SpaceBySpace_2013[[#This Row],[Automatic Partial OFF]]=\"REQ\",SpaceBySpace_2013[[#This Row],[Automatic Full OFF]]=\"REQ\",COUNTIF(SpaceBySpace_2013[[#This Row],[Automatic Partial OFF]:[Scheduled Shutoff]],\"ADD*\")>0),\"Occupancy\",\"\")))","v":"Occupancy + Daylight"},{"$f":"SpaceBySpace_2013[[#This Row],[%DL]]*SpaceBySpace_2013[[#This Row],[B. CSF (Wndws)]]+(1-SpaceBySpace_2013[[#This Row],[%DL]])*SpaceBySpace_2013[[#This Row],[B. CSF (No Wndws)]]","v":0.31},0.5,{"$f":"IF(SpaceBySpace_2013[[#This Row],[B. CSF (Wndws)]]=0.38,0.24,0)","v":0.24},{"$f":"VLOOKUP(K67,'Measure Tables'!$A$2:$C$7,3,FALSE)","v":0.38},"REQ",null,null,"REQ","REQ",null,"ADD2","ADD2"]
[null,null,null,null,null,"Hospital/Healthcare, Radiology/Imaging",1.06,"W/ft2",6,0,{"$f":"IF(AND(SpaceBySpace_2013[[#This Row],[Automatic Daylighting Control]]=\"REQ\",OR(SpaceBySpace_2013[[#This Row],[Automatic Partial OFF]]=\"REQ\",SpaceBySpace_2013[[#This Row],[Partial Automatic ON]]=\"REQ\",SpaceBySpace_2013[[#This Row],[Automatic Full OFF]]=\"REQ\",COUNTIF(SpaceBySpace_2013[[#This Row],[Automatic Partial OFF]:[Scheduled Shutoff]],\"ADD*\")>0)),\"Occupancy + Daylight\",\nIF(SpaceBySpace_2013[[#This Row],[Automatic Daylighting Control]]=\"REQ\",\"Daylight Harvesting\",\nIF(OR(SpaceBySpace_2013[[#This Row],[Partial Automatic ON]]=\"REQ\",SpaceBySpace_2013[[#This Row],[Automatic Partial OFF]]=\"REQ\",SpaceBySpace_2013[[#This Row],[Automatic Full OFF]]=\"REQ\",COUNTIF(SpaceBySpace_2013[[#This Row],[Automatic Partial OFF]:[Scheduled Shutoff]],\"ADD*\")>0),\"Occupancy\",\"\")))","v":"Occupancy"},{"$f":"SpaceBySpace_2013[[#This Row],[%DL]]*SpaceBySpace_2013[[#This Row],[B. CSF (Wndws)]]+(1-SpaceBySpace_2013[[#This Row],[%DL]])*SpaceBySpace_2013[[#This Row],[B. CSF (No Wndws)]]","v":0.24},0,0.24,{"$f":"VLOOKUP(K68,'Measure Tables'!$A$2:$C$7,3,FALSE)","v":0.24},"REQ",null,null,"REQ",null,null,"ADD2","ADD2"]
[null,null,null,null,null,"Hospital/Healthcare, Recovery",1.03,"W/ft2",6,0,{"$f":"IF(AND(SpaceBySpace_2013[[#This Row],[Automatic Daylighting Control]]=\"REQ\",OR(SpaceBySpace_2013[[#This Row],[Automatic Partial OFF]]=\"REQ\",SpaceBySpace_2013[[#This Row],[Partial Automatic ON]]=\"REQ\",SpaceBySpace_2013[[#This Row],[Automatic Full OFF]]=\"REQ\",COUNTIF(SpaceBySpace_2013[[#This Row],[Automatic Partial OFF]:[Scheduled Shutoff]],\"ADD*\")>0)),\"Occupancy + Daylight\",\nIF(SpaceBySpace_2013[[#This Row],[Automatic Daylighting Control]]=\"REQ\",\"Daylight Harvesting\",\nIF(OR(SpaceBySpace_2013[[#This Row],[Partial Automatic ON]]=\"REQ\",SpaceBySpace_2013[[#This Row],[Automatic Partial OFF]]=\"REQ\",SpaceBySpace_2013[[#This Row],[Automatic Full OFF]]=\"REQ\",COUNTIF(SpaceBySpace_2013[[#This Row],[Automatic Partial OFF]:[Scheduled Shutoff]],\"ADD*\")>0),\"Occupancy\",\"\")))","v":"Occupancy + Daylight"},{"$f":"SpaceBySpace_2013[[#This Row],[%DL]]*SpaceBySpace_2013[[#This Row],[B. CSF (Wndws)]]+(1-SpaceBySpace_2013[[#This Row],[%DL]])*SpaceBySpace_2013[[#This Row],[B. CSF (No Wndws)]]","v":0.31},0.5,{"$f":"IF(SpaceBySpace_2013[[#This Row],[B. CSF (Wndws)]]=0.38,0.24,0)","v":0.24},{"$f":"VLOOKUP(K69,'Measure Tables'!$A$2:$C$7,3,FALSE)","v":0.38},"REQ",null,null,"REQ","REQ",null,"ADD2","ADD2"]
[null,null,null,null,null,"Hotel/Motel, Dining",0.65,"W/ft2",4,0,{"$f":"IF(AND(SpaceBySpace_2013[[#This Row],[Automatic Daylighting Control]]=\"REQ\",OR(SpaceBySpace_2013[[#This Row],[Automatic Partial OFF]]=\"REQ\",SpaceBySpace_2013[[#This Row],[Partial Automatic ON]]=\"REQ\",SpaceBySpace_2013[[#This Row],[Automatic Full OFF]]=\"REQ\",COUNTIF(SpaceBySpace_2013[[#This Row],[Automatic Partial OFF]:[Scheduled Shutoff]],\"ADD*\")>0)),\"Occupancy + Daylight\",\nIF(SpaceBySpace_2013[[#This Row],[Automatic Daylighting Control]]=\"REQ\",\"Daylight Harvesting\",\nIF(OR(SpaceBySpace_2013[[#This Row],[Partial Automatic ON]]=\"REQ\",SpaceBySpace_2013[[#This Row],[Automatic Partial OFF]]=\"REQ\",SpaceBySpace_2013[[#This Row],[Automatic Full OFF]]=\"REQ\",COUNTIF(SpaceBySpace_2013[[#This Row],[Automatic Partial OFF]:[Scheduled Shutoff]],\"ADD*\")>0),\"Occupancy\",\"\")))","v":"Occupancy + Daylight"},{"$f":"SpaceBySpace_2013[[#This Row],[%DL]]*SpaceBySpace_2013[[#This Row],[B. CSF (Wndws)]]+(1-SpaceBySpace_2013[[#This Row],[%DL]])*SpaceBySpace_2013[[#This Row],[B. CSF (No Wndws)]]","v":0.26800000000000002},0.2,{"$f":"IF(SpaceBySpace_2013[[#This Row],[B. CSF (Wndws)]]=0.38,0.24,0)","v":0.24},{"$f":"VLOOKUP(K70,'Measure Tables'!$A$2:$C$7,3,FALSE)","v":0.38},"REQ","ADD1","ADD1","REQ","REQ",null,"ADD2","ADD2"]
[null,null,null,null,null,"Hotel/Motel, Lobby",1.06,"W/ft2",4,0,{"$f":"IF(AND(SpaceBySpace_2013[[#This Row],[Automatic Daylighting Control]]=\"REQ\",OR(SpaceBySpace_2013[[#This Row],[Automatic Partial OFF]]=\"REQ\",SpaceBySpace_2013[[#This Row],[Partial Automatic ON]]=\"REQ\",SpaceBySpace_2013[[#This Row],[Automatic Full OFF]]=\"REQ\",COUNTIF(SpaceBySpace_2013[[#This Row],[Automatic Partial OFF]:[Scheduled Shutoff]],\"ADD*\")>0)),\"Occupancy + Daylight\",\nIF(SpaceBySpace_2013[[#This Row],[Automatic Daylighting Control]]=\"REQ\",\"Daylight Harvesting\",\nIF(OR(SpaceBySpace_2013[[#This Row],[Partial Automatic ON]]=\"REQ\",SpaceBySpace_2013[[#This Row],[Automatic Partial OFF]]=\"REQ\",SpaceBySpace_2013[[#This Row],[Automatic Full OFF]]=\"REQ\",COUNTIF(SpaceBySpace_2013[[#This Row],[Automatic Partial OFF]:[Scheduled Shutoff]],\"ADD*\")>0),\"Occupancy\",\"\")))","v":"Occupancy + Daylight"},{"$f":"SpaceBySpace_2013[[#This Row],[%DL]]*SpaceBySpace_2013[[#This Row],[B. CSF (Wndws)]]+(1-SpaceBySpace_2013[[#This Row],[%DL]])*SpaceBySpace_2013[[#This Row],[B. CSF (No Wndws)]]","v":0.26800000000000002},0.2,{"$f":"IF(SpaceBySpace_2013[[#This Row],[B. CSF (Wndws)]]=0.38,0.24,0)","v":0.24},{"$f":"VLOOKUP(K71,'Measure Tables'!$A$2:$C$7,3,FALSE)","v":0.38},"REQ",null,null,null,"REQ",null,"ADD2","ADD2"]
[null,null,null,null,null,"Library, Card File/Catologing",{"$f":"G109","v":0.62},"W/ft2",4,0,{"$f":"IF(AND(SpaceBySpace_2013[[#This Row],[Automatic Daylighting Control]]=\"REQ\",OR(SpaceBySpace_2013[[#This Row],[Automatic Partial OFF]]=\"REQ\",SpaceBySpace_2013[[#This Row],[Partial Automatic ON]]=\"REQ\",SpaceBySpace_2013[[#This Row],[Automatic Full OFF]]=\"REQ\",COUNTIF(SpaceBySpace_2013[[#This Row],[Automatic Partial OFF]:[Scheduled Shutoff]],\"ADD*\")>0)),\"Occupancy + Daylight\",\nIF(SpaceBySpace_2013[[#This Row],[Automatic Daylighting Control]]=\"REQ\",\"Daylight Harvesting\",\nIF(OR(SpaceBySpace_2013[[#This Row],[Partial Automatic ON]]=\"REQ\",SpaceBySpace_2013[[#This Row],[Automatic Partial OFF]]=\"REQ\",SpaceBySpace_2013[[#This Row],[Automatic Full OFF]]=\"REQ\",COUNTIF(SpaceBySpace_2013[[#This Row],[Automatic Partial OFF]:[Scheduled Shutoff]],\"ADD*\")>0),\"Occupancy\",\"\")))","v":"Occupancy + Daylight"},{"$f":"SpaceBySpace_2013[[#This Row],[%DL]]*SpaceBySpace_2013[[#This Row],[B. CSF (Wndws)]]+(1-SpaceBySpace_2013[[#This Row],[%DL]])*SpaceBySpace_2013[[#This Row],[B. CSF (No Wndws)]]","v":0.24},0,{"$f":"IF(SpaceBySpace_2013[[#This Row],[B. CSF (Wndws)]]=0.38,0.24,0)","v":0.24},{"$f":"VLOOKUP(K72,'Measure Tables'!$A$2:$C$7,3,FALSE)","v":0.38},"REQ","ADD1","ADD1","REQ","REQ",null,"ADD2","ADD2"]
[null,null,null,null,null,"Library, Reading Area",0.82,"W/ft2",4,0,{"$f":"IF(AND(SpaceBySpace_2013[[#This Row],[Automatic Daylighting Control]]=\"REQ\",OR(SpaceBySpace_2013[[#This Row],[Automatic Partial OFF]]=\"REQ\",SpaceBySpace_2013[[#This Row],[Partial Automatic ON]]=\"REQ\",SpaceBySpace_2013[[#This Row],[Automatic Full OFF]]=\"REQ\",COUNTIF(SpaceBySpace_2013[[#This Row],[Automatic Partial OFF]:[Scheduled Shutoff]],\"ADD*\")>0)),\"Occupancy + Daylight\",\nIF(SpaceBySpace_2013[[#This Row],[Automatic Daylighting Control]]=\"REQ\",\"Daylight Harvesting\",\nIF(OR(SpaceBySpace_2013[[#This Row],[Partial Automatic ON]]=\"REQ\",SpaceBySpace_2013[[#This Row],[Automatic Partial OFF]]=\"REQ\",SpaceBySpace_2013[[#This Row],[Automatic Full OFF]]=\"REQ\",COUNTIF(SpaceBySpace_2013[[#This Row],[Automatic Partial OFF]:[Scheduled Shutoff]],\"ADD*\")>0),\"Occupancy\",\"\")))","v":"Occupancy + Daylight"},{"$f":"SpaceBySpace_2013[[#This Row],[%DL]]*SpaceBySpace_2013[[#This Row],[B. CSF (Wndws)]]+(1-SpaceBySpace_2013[[#This Row],[%DL]])*SpaceBySpace_2013[[#This Row],[B. CSF (No Wndws)]]","v":0.254},0.1,{"$f":"IF(SpaceBySpace_2013[[#This Row],[B. CSF (Wndws)]]=0.38,0.24,0)","v":0.24},{"$f":"VLOOKUP(K73,'Measure Tables'!$A$2:$C$7,3,FALSE)","v":0.38},"REQ","ADD1","ADD1","REQ","REQ",null,"ADD2","ADD2"]
[null,null,null,null,null,"Library, Stacks",1.2,"W/ft2",4,0,{"$f":"IF(AND(SpaceBySpace_2013[[#This Row],[Automatic Daylighting Control]]=\"REQ\",OR(SpaceBySpace_2013[[#This Row],[Automatic Partial OFF]]=\"REQ\",SpaceBySpace_2013[[#This Row],[Partial Automatic ON]]=\"REQ\",SpaceBySpace_2013[[#This Row],[Automatic Full OFF]]=\"REQ\",COUNTIF(SpaceBySpace_2013[[#This Row],[Automatic Partial OFF]:[Scheduled Shutoff]],\"ADD*\")>0)),\"Occupancy + Daylight\",\nIF(SpaceBySpace_2013[[#This Row],[Automatic Daylighting Control]]=\"REQ\",\"Daylight Harvesting\",\nIF(OR(SpaceBySpace_2013[[#This Row],[Partial Automatic ON]]=\"REQ\",SpaceBySpace_2013[[#This Row],[Automatic Partial OFF]]=\"REQ\",SpaceBySpace_2013[[#This Row],[Automatic Full OFF]]=\"REQ\",COUNTIF(SpaceBySpace_2013[[#This Row],[Automatic Partial OFF]:[Scheduled Shutoff]],\"ADD*\")>0),\"Occupancy\",\"\")))","v":"Occupancy + Daylight"},{"$f":"SpaceBySpace_2013[[#This Row],[%DL]]*SpaceBySpace_2013[[#This Row],[B. CSF (Wndws)]]+(1-SpaceBySpace_2013[[#This Row],[%DL]])*SpaceBySpace_2013[[#This Row],[B. CSF (No Wndws)]]","v":0.254},0.1,{"$f":"IF(SpaceBySpace_2013[[#This Row],[B. CSF (Wndws)]]=0.38,0.24,0)","v":0.24},{"$f":"VLOOKUP(K74,'Measure Tables'!$A$2:$C$7,3,FALSE)","v":0.38},"REQ","ADD1","ADD1","REQ","REQ","REQ","ADD2","ADD2"]
[null,null,null,null,null,"Manufacturing, Corridor/Transition",0.28999999999999998,"W/ft2",0,8,{"$f":"IF(AND(SpaceBySpace_2013[[#This Row],[Automatic Daylighting Control]]=\"REQ\",OR(SpaceBySpace_2013[[#This Row],[Automatic Partial OFF]]=\"REQ\",SpaceBySpace_2013[[#This Row],[Partial Automatic ON]]=\"REQ\",SpaceBySpace_2013[[#This Row],[Automatic Full OFF]]=\"REQ\",COUNTIF(SpaceBySpace_2013[[#This Row],[Automatic Partial OFF]:[Scheduled Shutoff]],\"ADD*\")>0)),\"Occupancy + Daylight\",\nIF(SpaceBySpace_2013[[#This Row],[Automatic Daylighting Control]]=\"REQ\",\"Daylight Harvesting\",\nIF(OR(SpaceBySpace_2013[[#This Row],[Partial Automatic ON]]=\"REQ\",SpaceBySpace_2013[[#This Row],[Automatic Partial OFF]]=\"REQ\",SpaceBySpace_2013[[#This Row],[Automatic Full OFF]]=\"REQ\",COUNTIF(SpaceBySpace_2013[[#This Row],[Automatic Partial OFF]:[Scheduled Shutoff]],\"ADD*\")>0),\"Occupancy\",\"\")))","v":"Occupancy + Daylight"},{"$f":"SpaceBySpace_2013[[#This Row],[%DL]]*SpaceBySpace_2013[[#This Row],[B. CSF (Wndws)]]+(1-SpaceBySpace_2013[[#This Row],[%DL]])*SpaceBySpace_2013[[#This Row],[B. CSF (No Wndws)]]","v":0.24},0,{"$f":"IF(SpaceBySpace_2013[[#This Row],[B. CSF (Wndws)]]=0.38,0.24,0)","v":0.24},{"$f":"VLOOKUP(K75,'Measure Tables'!$A$2:$C$7,3,FALSE)","v":0.38},"REQ",null,null,null,"REQ",null,"ADD2","ADD2"]
[null,null,null,null,null,"Manufacturing, Detailed Manufacturing",0.93,"W/ft2",4,0,{"$f":"IF(AND(SpaceBySpace_2013[[#This Row],[Automatic Daylighting Control]]=\"REQ\",OR(SpaceBySpace_2013[[#This Row],[Automatic Partial OFF]]=\"REQ\",SpaceBySpace_2013[[#This Row],[Partial Automatic ON]]=\"REQ\",SpaceBySpace_2013[[#This Row],[Automatic Full OFF]]=\"REQ\",COUNTIF(SpaceBySpace_2013[[#This Row],[Automatic Partial OFF]:[Scheduled Shutoff]],\"ADD*\")>0)),\"Occupancy + Daylight\",\nIF(SpaceBySpace_2013[[#This Row],[Automatic Daylighting Control]]=\"REQ\",\"Daylight Harvesting\",\nIF(OR(SpaceBySpace_2013[[#This Row],[Partial Automatic ON]]=\"REQ\",SpaceBySpace_2013[[#This Row],[Automatic Partial OFF]]=\"REQ\",SpaceBySpace_2013[[#This Row],[Automatic Full OFF]]=\"REQ\",COUNTIF(SpaceBySpace_2013[[#This Row],[Automatic Partial OFF]:[Scheduled Shutoff]],\"ADD*\")>0),\"Occupancy\",\"\")))","v":"Occupancy + Daylight"},{"$f":"SpaceBySpace_2013[[#This Row],[%DL]]*SpaceBySpace_2013[[#This Row],[B. CSF (Wndws)]]+(1-SpaceBySpace_2013[[#This Row],[%DL]])*SpaceBySpace_2013[[#This Row],[B. CSF (No Wndws)]]","v":0.24},0,{"$f":"IF(SpaceBySpace_2013[[#This Row],[B. CSF (Wndws)]]=0.38,0.24,0)","v":0.24},{"$f":"VLOOKUP(K76,'Measure Tables'!$A$2:$C$7,3,FALSE)","v":0.38},"REQ","ADD1","ADD1","REQ","REQ",null,"ADD2","ADD2"]
[null,null,null,null,null,"Manufacturing, Equipment Room",0.65,"W/ft2",6,0,"Occupancy",{"$f":"SpaceBySpace_2013[[#This Row],[%DL]]*SpaceBySpace_2013[[#This Row],[B. CSF (Wndws)]]+(1-SpaceBySpace_2013[[#This Row],[%DL]])*SpaceBySpace_2013[[#This Row],[B. CSF (No Wndws)]]","v":0.24},0,0.24,{"$f":"VLOOKUP(K77,'Measure Tables'!$A$2:$C$7,3,FALSE)","v":0.24},"REQ","ADD1","ADD1","REQ","REQ",null,"ADD2","ADD2"]
[null,null,null,null,null,"Manufacturing, Extra High Bay (>50ft)",1.05,"W/ft2",4,0,{"$f":"IF(AND(SpaceBySpace_2013[[#This Row],[Automatic Daylighting Control]]=\"REQ\",OR(SpaceBySpace_2013[[#This Row],[Automatic Partial OFF]]=\"REQ\",SpaceBySpace_2013[[#This Row],[Partial Automatic ON]]=\"REQ\",SpaceBySpace_2013[[#This Row],[Automatic Full OFF]]=\"REQ\",COUNTIF(SpaceBySpace_2013[[#This Row],[Automatic Partial OFF]:[Scheduled Shutoff]],\"ADD*\")>0)),\"Occupancy + Daylight\",\nIF(SpaceBySpace_2013[[#This Row],[Automatic Daylighting Control]]=\"REQ\",\"Daylight Harvesting\",\nIF(OR(SpaceBySpace_2013[[#This Row],[Partial Automatic ON]]=\"REQ\",SpaceBySpace_2013[[#This Row],[Automatic Partial OFF]]=\"REQ\",SpaceBySpace_2013[[#This Row],[Automatic Full OFF]]=\"REQ\",COUNTIF(SpaceBySpace_2013[[#This Row],[Automatic Partial OFF]:[Scheduled Shutoff]],\"ADD*\")>0),\"Occupancy\",\"\")))","v":"Occupancy + Daylight"},{"$f":"SpaceBySpace_2013[[#This Row],[%DL]]*SpaceBySpace_2013[[#This Row],[B. CSF (Wndws)]]+(1-SpaceBySpace_2013[[#This Row],[%DL]])*SpaceBySpace_2013[[#This Row],[B. CSF (No Wndws)]]","v":0.24},0,{"$f":"IF(SpaceBySpace_2013[[#This Row],[B. CSF (Wndws)]]=0.38,0.24,0)","v":0.24},{"$f":"VLOOKUP(K78,'Measure Tables'!$A$2:$C$7,3,FALSE)","v":0.38},"REQ","ADD1","ADD1","REQ","REQ",null,"ADD2","ADD2"]
[null,null,null,null,null,"Manufacturing, High Bay (25-50ft)",0.78,"W/ft2",4,0,{"$f":"IF(AND(SpaceBySpace_2013[[#This Row],[Automatic Daylighting Control]]=\"REQ\",OR(SpaceBySpace_2013[[#This Row],[Automatic Partial OFF]]=\"REQ\",SpaceBySpace_2013[[#This Row],[Partial Automatic ON]]=\"REQ\",SpaceBySpace_2013[[#This Row],[Automatic Full OFF]]=\"REQ\",COUNTIF(SpaceBySpace_2013[[#This Row],[Automatic Partial OFF]:[Scheduled Shutoff]],\"ADD*\")>0)),\"Occupancy + Daylight\",\nIF(SpaceBySpace_2013[[#This Row],[Automatic Daylighting Control]]=\"REQ\",\"Daylight Harvesting\",\nIF(OR(SpaceBySpace_2013[[#This Row],[Partial Automatic ON]]=\"REQ\",SpaceBySpace_2013[[#This Row],[Automatic Partial OFF]]=\"REQ\",SpaceBySpace_2013[[#This Row],[Automatic Full OFF]]=\"REQ\",COUNTIF(SpaceBySpace_2013[[#This Row],[Automatic Partial OFF]:[Scheduled Shutoff]],\"ADD*\")>0),\"Occupancy\",\"\")))","v":"Occupancy + Daylight"},{"$f":"SpaceBySpace_2013[[#This Row],[%DL]]*SpaceBySpace_2013[[#This Row],[B. CSF (Wndws)]]+(1-SpaceBySpace_2013[[#This Row],[%DL]])*SpaceBySpace_2013[[#This Row],[B. CSF (No Wndws)]]","v":0.24},0,{"$f":"IF(SpaceBySpace_2013[[#This Row],[B. CSF (Wndws)]]=0.38,0.24,0)","v":0.24},{"$f":"VLOOKUP(K79,'Measure Tables'!$A$2:$C$7,3,FALSE)","v":0.38},"REQ","ADD1","ADD1","REQ","REQ",null,"ADD2","ADD2"]
[null,null,null,null,null,"Manufacturing, Low Bay (<25ft)",0.96,"W/ft2",4,0,{"$f":"IF(AND(SpaceBySpace_2013[[#This Row],[Automatic Daylighting Control]]=\"REQ\",OR(SpaceBySpace_2013[[#This Row],[Automatic Partial OFF]]=\"REQ\",SpaceBySpace_2013[[#This Row],[Partial Automatic ON]]=\"REQ\",SpaceBySpace_2013[[#This Row],[Automatic Full OFF]]=\"REQ\",COUNTIF(SpaceBySpace_2013[[#This Row],[Automatic Partial OFF]:[Scheduled Shutoff]],\"ADD*\")>0)),\"Occupancy + Daylight\",\nIF(SpaceBySpace_2013[[#This Row],[Automatic Daylighting Control]]=\"REQ\",\"Daylight Harvesting\",\nIF(OR(SpaceBySpace_2013[[#This Row],[Partial Automatic ON]]=\"REQ\",SpaceBySpace_2013[[#This Row],[Automatic Partial OFF]]=\"REQ\",SpaceBySpace_2013[[#This Row],[Automatic Full OFF]]=\"REQ\",COUNTIF(SpaceBySpace_2013[[#This Row],[Automatic Partial OFF]:[Scheduled Shutoff]],\"ADD*\")>0),\"Occupancy\",\"\")))","v":"Occupancy + Daylight"},{"$f":"SpaceBySpace_2013[[#This Row],[%DL]]*SpaceBySpace_2013[[#This Row],[B. CSF (Wndws)]]+(1-SpaceBySpace_2013[[#This Row],[%DL]])*SpaceBySpace_2013[[#This Row],[B. CSF (No Wndws)]]","v":0.24},0,{"$f":"IF(SpaceBySpace_2013[[#This Row],[B. CSF (Wndws)]]=0.38,0.24,0)","v":0.24},{"$f":"VLOOKUP(K80,'Measure Tables'!$A$2:$C$7,3,FALSE)","v":0.38},"REQ","ADD1","ADD1","REQ","REQ",null,"ADD2","ADD2"]
[null,null,null,null,null,"Motion Picture Theater, Audience Seating",1.1399999999999999,"W/ft2",4,0,"Occupancy",{"$f":"SpaceBySpace_2013[[#This Row],[%DL]]*SpaceBySpace_2013[[#This Row],[B. CSF (Wndws)]]+(1-SpaceBySpace_2013[[#This Row],[%DL]])*SpaceBySpace_2013[[#This Row],[B. CSF (No Wndws)]]","v":0.24},0,0.24,{"$f":"VLOOKUP(K81,'Measure Tables'!$A$2:$C$7,3,FALSE)","v":0.24},"REQ","ADD1","ADD1","REQ","REQ",null,"ADD2","ADD2"]
[null,null,null,null,null,"Motion Picture Theater, Lobby",0.45,"W/ft2",6,0,{"$f":"IF(AND(SpaceBySpace_2013[[#This Row],[Automatic Daylighting Control]]=\"REQ\",OR(SpaceBySpace_2013[[#This Row],[Automatic Partial OFF]]=\"REQ\",SpaceBySpace_2013[[#This Row],[Partial Automatic ON]]=\"REQ\",SpaceBySpace_2013[[#This Row],[Automatic Full OFF]]=\"REQ\",COUNTIF(SpaceBySpace_2013[[#This Row],[Automatic Partial OFF]:[Scheduled Shutoff]],\"ADD*\")>0)),\"Occupancy + Daylight\",\nIF(SpaceBySpace_2013[[#This Row],[Automatic Daylighting Control]]=\"REQ\",\"Daylight Harvesting\",\nIF(OR(SpaceBySpace_2013[[#This Row],[Partial Automatic ON]]=\"REQ\",SpaceBySpace_2013[[#This Row],[Automatic Partial OFF]]=\"REQ\",SpaceBySpace_2013[[#This Row],[Automatic Full OFF]]=\"REQ\",COUNTIF(SpaceBySpace_2013[[#This Row],[Automatic Partial OFF]:[Scheduled Shutoff]],\"ADD*\")>0),\"Occupancy\",\"\")))","v":"Occupancy + Daylight"},{"$f":"SpaceBySpace_2013[[#This Row],[%DL]]*SpaceBySpace_2013[[#This Row],[B. CSF (Wndws)]]+(1-SpaceBySpace_2013[[#This Row],[%DL]])*SpaceBySpace_2013[[#This Row],[B. CSF (No Wndws)]]","v":0.38},1,{"$f":"IF(SpaceBySpace_2013[[#This Row],[B. CSF (Wndws)]]=0.38,0.24,0)","v":0.24},{"$f":"VLOOKUP(K82,'Measure Tables'!$A$2:$C$7,3,FALSE)","v":0.38},"REQ",null,null,null,"REQ",null,"ADD2","ADD2"]
[null,null,null,null,null,"Museum, General Exhibition",1.05,"W/ft2",6,0,{"$f":"IF(AND(SpaceBySpace_2013[[#This Row],[Automatic Daylighting Control]]=\"REQ\",OR(SpaceBySpace_2013[[#This Row],[Automatic Partial OFF]]=\"REQ\",SpaceBySpace_2013[[#This Row],[Partial Automatic ON]]=\"REQ\",SpaceBySpace_2013[[#This Row],[Automatic Full OFF]]=\"REQ\",COUNTIF(SpaceBySpace_2013[[#This Row],[Automatic Partial OFF]:[Scheduled Shutoff]],\"ADD*\")>0)),\"Occupancy + Daylight\",\nIF(SpaceBySpace_2013[[#This Row],[Automatic Daylighting Control]]=\"REQ\",\"Daylight Harvesting\",\nIF(OR(SpaceBySpace_2013[[#This Row],[Partial Automatic ON]]=\"REQ\",SpaceBySpace_2013[[#This Row],[Automatic Partial OFF]]=\"REQ\",SpaceBySpace_2013[[#This Row],[Automatic Full OFF]]=\"REQ\",COUNTIF(SpaceBySpace_2013[[#This Row],[Automatic Partial OFF]:[Scheduled Shutoff]],\"ADD*\")>0),\"Occupancy\",\"\")))","v":"Occupancy + Daylight"},{"$f":"SpaceBySpace_2013[[#This Row],[%DL]]*SpaceBySpace_2013[[#This Row],[B. CSF (Wndws)]]+(1-SpaceBySpace_2013[[#This Row],[%DL]])*SpaceBySpace_2013[[#This Row],[B. CSF (No Wndws)]]","v":0.24},0,{"$f":"IF(SpaceBySpace_2013[[#This Row],[B. CSF (Wndws)]]=0.38,0.24,0)","v":0.24},{"$f":"VLOOKUP(K83,'Measure Tables'!$A$2:$C$7,3,FALSE)","v":0.38},"REQ","ADD1","ADD1","REQ","REQ",null,"ADD2","ADD2"]
[null,null,null,null,null,"Museum, Restoration",0.85,"W/ft2",6,0,{"$f":"IF(AND(SpaceBySpace_2013[[#This Row],[Automatic Daylighting Control]]=\"REQ\",OR(SpaceBySpace_2013[[#This Row],[Automatic Partial OFF]]=\"REQ\",SpaceBySpace_2013[[#This Row],[Partial Automatic ON]]=\"REQ\",SpaceBySpace_2013[[#This Row],[Automatic Full OFF]]=\"REQ\",COUNTIF(SpaceBySpace_2013[[#This Row],[Automatic Partial OFF]:[Scheduled Shutoff]],\"ADD*\")>0)),\"Occupancy + Daylight\",\nIF(SpaceBySpace_2013[[#This Row],[Automatic Daylighting Control]]=\"REQ\",\"Daylight Harvesting\",\nIF(OR(SpaceBySpace_2013[[#This Row],[Partial Automatic ON]]=\"REQ\",SpaceBySpace_2013[[#This Row],[Automatic Partial OFF]]=\"REQ\",SpaceBySpace_2013[[#This Row],[Automatic Full OFF]]=\"REQ\",COUNTIF(SpaceBySpace_2013[[#This Row],[Automatic Partial OFF]:[Scheduled Shutoff]],\"ADD*\")>0),\"Occupancy\",\"\")))","v":"Occupancy + Daylight"},{"$f":"SpaceBySpace_2013[[#This Row],[%DL]]*SpaceBySpace_2013[[#This Row],[B. CSF (Wndws)]]+(1-SpaceBySpace_2013[[#This Row],[%DL]])*SpaceBySpace_2013[[#This Row],[B. CSF (No Wndws)]]","v":0.24},0,{"$f":"IF(SpaceBySpace_2013[[#This Row],[B. CSF (Wndws)]]=0.38,0.24,0)","v":0.24},{"$f":"VLOOKUP(K84,'Measure Tables'!$A$2:$C$7,3,FALSE)","v":0.38},"REQ","ADD1","ADD1","REQ","REQ",null,"ADD2","ADD2"]
[null,null,null,null,null,"Parking Garage, Interior",0.14000000000000001,"W/ft2",4,0,{"$f":"IF(AND(SpaceBySpace_2013[[#This Row],[Automatic Daylighting Control]]=\"REQ\",OR(SpaceBySpace_2013[[#This Row],[Automatic Partial OFF]]=\"REQ\",SpaceBySpace_2013[[#This Row],[Partial Automatic ON]]=\"REQ\",SpaceBySpace_2013[[#This Row],[Automatic Full OFF]]=\"REQ\",COUNTIF(SpaceBySpace_2013[[#This Row],[Automatic Partial OFF]:[Scheduled Shutoff]],\"ADD*\")>0)),\"Occupancy + Daylight\",\nIF(SpaceBySpace_2013[[#This Row],[Automatic Daylighting Control]]=\"REQ\",\"Daylight Harvesting\",\nIF(OR(SpaceBySpace_2013[[#This Row],[Partial Automatic ON]]=\"REQ\",SpaceBySpace_2013[[#This Row],[Automatic Partial OFF]]=\"REQ\",SpaceBySpace_2013[[#This Row],[Automatic Full OFF]]=\"REQ\",COUNTIF(SpaceBySpace_2013[[#This Row],[Automatic Partial OFF]:[Scheduled Shutoff]],\"ADD*\")>0),\"Occupancy\",\"\")))","v":"Occupancy + Daylight"},{"$f":"SpaceBySpace_2013[[#This Row],[%DL]]*SpaceBySpace_2013[[#This Row],[B. CSF (Wndws)]]+(1-SpaceBySpace_2013[[#This Row],[%DL]])*SpaceBySpace_2013[[#This Row],[B. CSF (No Wndws)]]","v":0.27500000000000002},0.25,{"$f":"IF(SpaceBySpace_2013[[#This Row],[B. CSF (Wndws)]]=0.38,0.24,0)","v":0.24},{"$f":"VLOOKUP(K85,'Measure Tables'!$A$2:$C$7,3,FALSE)","v":0.38},"REQ","ADD1","ADD1","REQ","REQ",null,"ADD2","ADD2"]
[null,null,null,null,null,"Performing Arts Theater, Audience Seating",2.0299999999999998,"W/ft2",8,0,"Occupancy",{"$f":"SpaceBySpace_2013[[#This Row],[%DL]]*SpaceBySpace_2013[[#This Row],[B. CSF (Wndws)]]+(1-SpaceBySpace_2013[[#This Row],[%DL]])*SpaceBySpace_2013[[#This Row],[B. CSF (No Wndws)]]","v":0.24},0,0.24,{"$f":"VLOOKUP(K86,'Measure Tables'!$A$2:$C$7,3,FALSE)","v":0.24},"REQ","ADD1","ADD1","REQ","REQ",null,"ADD2","ADD2"]
[null,null,null,null,null,"Performing Arts Theater, Dressing/Fitting Room",0.36,"W/ft2",6,0,"Occupancy",{"$f":"SpaceBySpace_2013[[#This Row],[%DL]]*SpaceBySpace_2013[[#This Row],[B. CSF (Wndws)]]+(1-SpaceBySpace_2013[[#This Row],[%DL]])*SpaceBySpace_2013[[#This Row],[B. CSF (No Wndws)]]","v":0.24},0,0.24,{"$f":"VLOOKUP(K87,'Measure Tables'!$A$2:$C$7,3,FALSE)","v":0.24},"REQ","ADD1","ADD1","REQ","REQ",null,"REQ"]
[null,null,null,null,null,"Performing Arts Theater, Lobby",1.7,"W/ft2",6,0,{"$f":"IF(AND(SpaceBySpace_2013[[#This Row],[Automatic Daylighting Control]]=\"REQ\",OR(SpaceBySpace_2013[[#This Row],[Automatic Partial OFF]]=\"REQ\",SpaceBySpace_2013[[#This Row],[Partial Automatic ON]]=\"REQ\",SpaceBySpace_2013[[#This Row],[Automatic Full OFF]]=\"REQ\",COUNTIF(SpaceBySpace_2013[[#This Row],[Automatic Partial OFF]:[Scheduled Shutoff]],\"ADD*\")>0)),\"Occupancy + Daylight\",\nIF(SpaceBySpace_2013[[#This Row],[Automatic Daylighting Control]]=\"REQ\",\"Daylight Harvesting\",\nIF(OR(SpaceBySpace_2013[[#This Row],[Partial Automatic ON]]=\"REQ\",SpaceBySpace_2013[[#This Row],[Automatic Partial OFF]]=\"REQ\",SpaceBySpace_2013[[#This Row],[Automatic Full OFF]]=\"REQ\",COUNTIF(SpaceBySpace_2013[[#This Row],[Automatic Partial OFF]:[Scheduled Shutoff]],\"ADD*\")>0),\"Occupancy\",\"\")))","v":"Occupancy + Daylight"},{"$f":"SpaceBySpace_2013[[#This Row],[%DL]]*SpaceBySpace_2013[[#This Row],[B. CSF (Wndws)]]+(1-SpaceBySpace_2013[[#This Row],[%DL]])*SpaceBySpace_2013[[#This Row],[B. CSF (No Wndws)]]","v":0.31},0.5,{"$f":"IF(SpaceBySpace_2013[[#This Row],[B. CSF (Wndws)]]=0.38,0.24,0)","v":0.24},{"$f":"VLOOKUP(K88,'Measure Tables'!$A$2:$C$7,3,FALSE)","v":0.38},"REQ",null,null,null,"REQ","REQ","ADD2","ADD2"]
[null,null,null,null,null,"Post Office, Sorting Area",0.68,"W/ft2",4,0,"Occupancy",{"$f":"SpaceBySpace_2013[[#This Row],[%DL]]*SpaceBySpace_2013[[#This Row],[B. CSF (Wndws)]]+(1-SpaceBySpace_2013[[#This Row],[%DL]])*SpaceBySpace_2013[[#This Row],[B. CSF (No Wndws)]]","v":0.24},0,0.24,{"$f":"VLOOKUP(K89,'Measure Tables'!$A$2:$C$7,3,FALSE)","v":0.24},"REQ","ADD1","ADD1","REQ","REQ","REQ","ADD2","ADD2"]
[null,null,null,null,null,"Religious Building, Audience Seating",1.53,"W/ft2",4,0,{"$f":"IF(AND(SpaceBySpace_2013[[#This Row],[Automatic Daylighting Control]]=\"REQ\",OR(SpaceBySpace_2013[[#This Row],[Automatic Partial OFF]]=\"REQ\",SpaceBySpace_2013[[#This Row],[Partial Automatic ON]]=\"REQ\",SpaceBySpace_2013[[#This Row],[Automatic Full OFF]]=\"REQ\",COUNTIF(SpaceBySpace_2013[[#This Row],[Automatic Partial OFF]:[Scheduled Shutoff]],\"ADD*\")>0)),\"Occupancy + Daylight\",\nIF(SpaceBySpace_2013[[#This Row],[Automatic Daylighting Control]]=\"REQ\",\"Daylight Harvesting\",\nIF(OR(SpaceBySpace_2013[[#This Row],[Partial Automatic ON]]=\"REQ\",SpaceBySpace_2013[[#This Row],[Automatic Partial OFF]]=\"REQ\",SpaceBySpace_2013[[#This Row],[Automatic Full OFF]]=\"REQ\",COUNTIF(SpaceBySpace_2013[[#This Row],[Automatic Partial OFF]:[Scheduled Shutoff]],\"ADD*\")>0),\"Occupancy\",\"\")))","v":"Occupancy + Daylight"},{"$f":"SpaceBySpace_2013[[#This Row],[%DL]]*SpaceBySpace_2013[[#This Row],[B. CSF (Wndws)]]+(1-SpaceBySpace_2013[[#This Row],[%DL]])*SpaceBySpace_2013[[#This Row],[B. CSF (No Wndws)]]","v":0.31},0.5,{"$f":"IF(SpaceBySpace_2013[[#This Row],[B. CSF (Wndws)]]=0.38,0.24,0)","v":0.24},{"$f":"VLOOKUP(K90,'Measure Tables'!$A$2:$C$7,3,FALSE)","v":0.38},"REQ","ADD1","ADD1","REQ","REQ",null,"ADD2","ADD2"]
[null,null,null,null,null,"Religious Building, Fellowship Hall",0.55000000000000004,"W/ft2",4,0,{"$f":"IF(AND(SpaceBySpace_2013[[#This Row],[Automatic Daylighting Control]]=\"REQ\",OR(SpaceBySpace_2013[[#This Row],[Automatic Partial OFF]]=\"REQ\",SpaceBySpace_2013[[#This Row],[Partial Automatic ON]]=\"REQ\",SpaceBySpace_2013[[#This Row],[Automatic Full OFF]]=\"REQ\",COUNTIF(SpaceBySpace_2013[[#This Row],[Automatic Partial OFF]:[Scheduled Shutoff]],\"ADD*\")>0)),\"Occupancy + Daylight\",\nIF(SpaceBySpace_2013[[#This Row],[Automatic Daylighting Control]]=\"REQ\",\"Daylight Harvesting\",\nIF(OR(SpaceBySpace_2013[[#This Row],[Partial Automatic ON]]=\"REQ\",SpaceBySpace_2013[[#This Row],[Automatic Partial OFF]]=\"REQ\",SpaceBySpace_2013[[#This Row],[Automatic Full OFF]]=\"REQ\",COUNTIF(SpaceBySpace_2013[[#This Row],[Automatic Partial OFF]:[Scheduled Shutoff]],\"ADD*\")>0),\"Occupancy\",\"\")))","v":"Occupancy + Daylight"},{"$f":"SpaceBySpace_2013[[#This Row],[%DL]]*SpaceBySpace_2013[[#This Row],[B. CSF (Wndws)]]+(1-SpaceBySpace_2013[[#This Row],[%DL]])*SpaceBySpace_2013[[#This Row],[B. CSF (No Wndws)]]","v":0.31},0.5,{"$f":"IF(SpaceBySpace_2013[[#This Row],[B. CSF (Wndws)]]=0.38,0.24,0)","v":0.24},{"$f":"VLOOKUP(K91,'Measure Tables'!$A$2:$C$7,3,FALSE)","v":0.38},"REQ","ADD1","ADD1","REQ","REQ",null,"ADD2","ADD2"]
[null,null,null,null,null,"Religious Building, Worship Pulpit/Choir",1.53,"W/ft2",4,0,{"$f":"IF(AND(SpaceBySpace_2013[[#This Row],[Automatic Daylighting Control]]=\"REQ\",OR(SpaceBySpace_2013[[#This Row],[Automatic Partial OFF]]=\"REQ\",SpaceBySpace_2013[[#This Row],[Partial Automatic ON]]=\"REQ\",SpaceBySpace_2013[[#This Row],[Automatic Full OFF]]=\"REQ\",COUNTIF(SpaceBySpace_2013[[#This Row],[Automatic Partial OFF]:[Scheduled Shutoff]],\"ADD*\")>0)),\"Occupancy + Daylight\",\nIF(SpaceBySpace_2013[[#This Row],[Automatic Daylighting Control]]=\"REQ\",\"Daylight Harvesting\",\nIF(OR(SpaceBySpace_2013[[#This Row],[Partial Automatic ON]]=\"REQ\",SpaceBySpace_2013[[#This Row],[Automatic Partial OFF]]=\"REQ\",SpaceBySpace_2013[[#This Row],[Automatic Full OFF]]=\"REQ\",COUNTIF(SpaceBySpace_2013[[#This Row],[Automatic Partial OFF]:[Scheduled Shutoff]],\"ADD*\")>0),\"Occupancy\",\"\")))","v":"Occupancy + Daylight"},{"$f":"SpaceBySpace_2013[[#This Row],[%DL]]*SpaceBySpace_2013[[#This Row],[B. CSF (Wndws)]]+(1-SpaceBySpace_2013[[#This Row],[%DL]])*SpaceBySpace_2013[[#This Row],[B. CSF (No Wndws)]]","v":0.38},1,{"$f":"IF(SpaceBySpace_2013[[#This Row],[B. CSF (Wndws)]]=0.38,0.24,0)","v":0.24},{"$f":"VLOOKUP(K92,'Measure Tables'!$A$2:$C$7,3,FALSE)","v":0.38},"REQ","ADD1","ADD1","REQ","REQ",null,"ADD2","ADD2"]
[null,null,null,null,null,"Retail, Dressing/Fitting Room",0.5,"W/ft2",8,0,"Occupancy",{"$f":"SpaceBySpace_2013[[#This Row],[%DL]]*SpaceBySpace_2013[[#This Row],[B. CSF (Wndws)]]+(1-SpaceBySpace_2013[[#This Row],[%DL]])*SpaceBySpace_2013[[#This Row],[B. CSF (No Wndws)]]","v":0.24},0,0.24,{"$f":"VLOOKUP(K93,'Measure Tables'!$A$2:$C$7,3,FALSE)","v":0.24},"REQ","ADD1","ADD1","REQ","REQ",null,"REQ"]
[null,null,null,null,null,"Retail, Mall Concourse",0.9,"W/ft2",4,0,{"$f":"IF(AND(SpaceBySpace_2013[[#This Row],[Automatic Daylighting Control]]=\"REQ\",OR(SpaceBySpace_2013[[#This Row],[Automatic Partial OFF]]=\"REQ\",SpaceBySpace_2013[[#This Row],[Partial Automatic ON]]=\"REQ\",SpaceBySpace_2013[[#This Row],[Automatic Full OFF]]=\"REQ\",COUNTIF(SpaceBySpace_2013[[#This Row],[Automatic Partial OFF]:[Scheduled Shutoff]],\"ADD*\")>0)),\"Occupancy + Daylight\",\nIF(SpaceBySpace_2013[[#This Row],[Automatic Daylighting Control]]=\"REQ\",\"Daylight Harvesting\",\nIF(OR(SpaceBySpace_2013[[#This Row],[Partial Automatic ON]]=\"REQ\",SpaceBySpace_2013[[#This Row],[Automatic Partial OFF]]=\"REQ\",SpaceBySpace_2013[[#This Row],[Automatic Full OFF]]=\"REQ\",COUNTIF(SpaceBySpace_2013[[#This Row],[Automatic Partial OFF]:[Scheduled Shutoff]],\"ADD*\")>0),\"Occupancy\",\"\")))","v":"Occupancy + Daylight"},{"$f":"SpaceBySpace_2013[[#This Row],[%DL]]*SpaceBySpace_2013[[#This Row],[B. CSF (Wndws)]]+(1-SpaceBySpace_2013[[#This Row],[%DL]])*SpaceBySpace_2013[[#This Row],[B. CSF (No Wndws)]]","v":0.254},0.1,{"$f":"IF(SpaceBySpace_2013[[#This Row],[B. CSF (Wndws)]]=0.38,0.24,0)","v":0.24},{"$f":"VLOOKUP(K94,'Measure Tables'!$A$2:$C$7,3,FALSE)","v":0.38},"REQ","ADD1","ADD1","REQ","REQ",null,"ADD2","ADD2"]
[null,null,null,null,null,"Retail, Sales Area",1.22,"W/ft2",6,0,{"$f":"IF(AND(SpaceBySpace_2013[[#This Row],[Automatic Daylighting Control]]=\"REQ\",OR(SpaceBySpace_2013[[#This Row],[Automatic Partial OFF]]=\"REQ\",SpaceBySpace_2013[[#This Row],[Partial Automatic ON]]=\"REQ\",SpaceBySpace_2013[[#This Row],[Automatic Full OFF]]=\"REQ\",COUNTIF(SpaceBySpace_2013[[#This Row],[Automatic Partial OFF]:[Scheduled Shutoff]],\"ADD*\")>0)),\"Occupancy + Daylight\",\nIF(SpaceBySpace_2013[[#This Row],[Automatic Daylighting Control]]=\"REQ\",\"Daylight Harvesting\",\nIF(OR(SpaceBySpace_2013[[#This Row],[Partial Automatic ON]]=\"REQ\",SpaceBySpace_2013[[#This Row],[Automatic Partial OFF]]=\"REQ\",SpaceBySpace_2013[[#This Row],[Automatic Full OFF]]=\"REQ\",COUNTIF(SpaceBySpace_2013[[#This Row],[Automatic Partial OFF]:[Scheduled Shutoff]],\"ADD*\")>0),\"Occupancy\",\"\")))","v":"Occupancy + Daylight"},{"$f":"SpaceBySpace_2013[[#This Row],[%DL]]*SpaceBySpace_2013[[#This Row],[B. CSF (Wndws)]]+(1-SpaceBySpace_2013[[#This Row],[%DL]])*SpaceBySpace_2013[[#This Row],[B. CSF (No Wndws)]]","v":0.26100000000000001},0.15,{"$f":"IF(SpaceBySpace_2013[[#This Row],[B. CSF (Wndws)]]=0.38,0.24,0)","v":0.24},{"$f":"VLOOKUP(K95,'Measure Tables'!$A$2:$C$7,3,FALSE)","v":0.38},"REQ","ADD1","ADD1","REQ","REQ",null,"ADD2","ADD2"]
[null,null,null,null,null,"Retail, Sales Area (Accent: Vehicles/Sporting Goods/Electronics)",0.45,"W/ft2",6,0,"No Controls",{"$f":"SpaceBySpace_2013[[#This Row],[%DL]]*SpaceBySpace_2013[[#This Row],[B. CSF (Wndws)]]+(1-SpaceBySpace_2013[[#This Row],[%DL]])*SpaceBySpace_2013[[#This Row],[B. CSF (No Wndws)]]","v":0},0,0,0,"REQ","ADD1","ADD1"]
[null,null,null,null,null,"Retail, Sales Area (Accent: Furniture/Clothing/Cosmetics/Artwork)",1.05,"W/ft2",6,0,"No Controls",{"$f":"SpaceBySpace_2013[[#This Row],[%DL]]*SpaceBySpace_2013[[#This Row],[B. CSF (Wndws)]]+(1-SpaceBySpace_2013[[#This Row],[%DL]])*SpaceBySpace_2013[[#This Row],[B. CSF (No Wndws)]]","v":0},0,0,0,"REQ","ADD1","ADD1"]
[null,null,null,null,null,"Retail, Sales Area (Accent: Jewelry/Dishware)",1.88,"W/ft2",6,0,"No Controls",{"$f":"SpaceBySpace_2013[[#This Row],[%DL]]*SpaceBySpace_2013[[#This Row],[B. CSF (Wndws)]]+(1-SpaceBySpace_2013[[#This Row],[%DL]])*SpaceBySpace_2013[[#This Row],[B. CSF (No Wndws)]]","v":0},0,0,0,"REQ","ADD1","ADD1"]
[null,null,null,null,null,"Retail, Sales Area (Accent: Other)",0.45,"W/ft2",6,0,"No Controls",{"$f":"SpaceBySpace_2013[[#This Row],[%DL]]*SpaceBySpace_2013[[#This Row],[B. CSF (Wndws)]]+(1-SpaceBySpace_2013[[#This Row],[%DL]])*SpaceBySpace_2013[[#This Row],[B. CSF (No Wndws)]]","v":0},0,0,0,"REQ","ADD1","ADD1"]
[null,null,null,null,null,"Sports Arena, Audience Seating",0.43,"W/ft2",4,0,{"$f":"IF(AND(SpaceBySpace_2013[[#This Row],[Automatic Daylighting Control]]=\"REQ\",OR(SpaceBySpace_2013[[#This Row],[Automatic Partial OFF]]=\"REQ\",SpaceBySpace_2013[[#This Row],[Partial Automatic ON]]=\"REQ\",SpaceBySpace_2013[[#This Row],[Automatic Full OFF]]=\"REQ\",COUNTIF(SpaceBySpace_2013[[#This Row],[Automatic Partial OFF]:[Scheduled Shutoff]],\"ADD*\")>0)),\"Occupancy + Daylight\",\nIF(SpaceBySpace_2013[[#This Row],[Automatic Daylighting Control]]=\"REQ\",\"Daylight Harvesting\",\nIF(OR(SpaceBySpace_2013[[#This Row],[Partial Automatic ON]]=\"REQ\",SpaceBySpace_2013[[#This Row],[Automatic Partial OFF]]=\"REQ\",SpaceBySpace_2013[[#This Row],[Automatic Full OFF]]=\"REQ\",COUNTIF(SpaceBySpace_2013[[#This Row],[Automatic Partial OFF]:[Scheduled Shutoff]],\"ADD*\")>0),\"Occupancy\",\"\")))","v":"Occupancy + Daylight"},{"$f":"SpaceBySpace_2013[[#This Row],[%DL]]*SpaceBySpace_2013[[#This Row],[B. CSF (Wndws)]]+(1-SpaceBySpace_2013[[#This Row],[%DL]])*SpaceBySpace_2013[[#This Row],[B. CSF (No Wndws)]]","v":0.24},0,{"$f":"IF(SpaceBySpace_2013[[#This Row],[B. CSF (Wndws)]]=0.38,0.24,0)","v":0.24},{"$f":"VLOOKUP(K100,'Measure Tables'!$A$2:$C$7,3,FALSE)","v":0.38},"REQ","ADD1","ADD1",null,"REQ",null,"ADD2","ADD2"]
[null,null,null,null,null,"Sports Arena, Court (Class 4)",1.1299999999999999,"W/ft2",4,0,{"$f":"IF(AND(SpaceBySpace_2013[[#This Row],[Automatic Daylighting Control]]=\"REQ\",OR(SpaceBySpace_2013[[#This Row],[Automatic Partial OFF]]=\"REQ\",SpaceBySpace_2013[[#This Row],[Partial Automatic ON]]=\"REQ\",SpaceBySpace_2013[[#This Row],[Automatic Full OFF]]=\"REQ\",COUNTIF(SpaceBySpace_2013[[#This Row],[Automatic Partial OFF]:[Scheduled Shutoff]],\"ADD*\")>0)),\"Occupancy + Daylight\",\nIF(SpaceBySpace_2013[[#This Row],[Automatic Daylighting Control]]=\"REQ\",\"Daylight Harvesting\",\nIF(OR(SpaceBySpace_2013[[#This Row],[Partial Automatic ON]]=\"REQ\",SpaceBySpace_2013[[#This Row],[Automatic Partial OFF]]=\"REQ\",SpaceBySpace_2013[[#This Row],[Automatic Full OFF]]=\"REQ\",COUNTIF(SpaceBySpace_2013[[#This Row],[Automatic Partial OFF]:[Scheduled Shutoff]],\"ADD*\")>0),\"Occupancy\",\"\")))","v":"Occupancy + Daylight"},{"$f":"SpaceBySpace_2013[[#This Row],[%DL]]*SpaceBySpace_2013[[#This Row],[B. CSF (Wndws)]]+(1-SpaceBySpace_2013[[#This Row],[%DL]])*SpaceBySpace_2013[[#This Row],[B. CSF (No Wndws)]]","v":0.24},0,{"$f":"IF(SpaceBySpace_2013[[#This Row],[B. CSF (Wndws)]]=0.38,0.24,0)","v":0.24},{"$f":"VLOOKUP(K101,'Measure Tables'!$A$2:$C$7,3,FALSE)","v":0.38},"REQ","ADD1","ADD1","REQ","REQ",null,"ADD2","ADD2"]
[null,null,null,null,null,"Sports Arena, Court (Class 3)",1.7,"W/ft2",4,0,{"$f":"IF(AND(SpaceBySpace_2013[[#This Row],[Automatic Daylighting Control]]=\"REQ\",OR(SpaceBySpace_2013[[#This Row],[Automatic Partial OFF]]=\"REQ\",SpaceBySpace_2013[[#This Row],[Partial Automatic ON]]=\"REQ\",SpaceBySpace_2013[[#This Row],[Automatic Full OFF]]=\"REQ\",COUNTIF(SpaceBySpace_2013[[#This Row],[Automatic Partial OFF]:[Scheduled Shutoff]],\"ADD*\")>0)),\"Occupancy + Daylight\",\nIF(SpaceBySpace_2013[[#This Row],[Automatic Daylighting Control]]=\"REQ\",\"Daylight Harvesting\",\nIF(OR(SpaceBySpace_2013[[#This Row],[Partial Automatic ON]]=\"REQ\",SpaceBySpace_2013[[#This Row],[Automatic Partial OFF]]=\"REQ\",SpaceBySpace_2013[[#This Row],[Automatic Full OFF]]=\"REQ\",COUNTIF(SpaceBySpace_2013[[#This Row],[Automatic Partial OFF]:[Scheduled Shutoff]],\"ADD*\")>0),\"Occupancy\",\"\")))","v":"Occupancy + Daylight"},{"$f":"SpaceBySpace_2013[[#This Row],[%DL]]*SpaceBySpace_2013[[#This Row],[B. CSF (Wndws)]]+(1-SpaceBySpace_2013[[#This Row],[%DL]])*SpaceBySpace_2013[[#This Row],[B. CSF (No Wndws)]]","v":0.24},0,{"$f":"IF(SpaceBySpace_2013[[#This Row],[B. CSF (Wndws)]]=0.38,0.24,0)","v":0.24},{"$f":"VLOOKUP(K102,'Measure Tables'!$A$2:$C$7,3,FALSE)","v":0.38},"REQ","ADD1","ADD1","REQ","REQ",null,"ADD2","ADD2"]
[null,null,null,null,null,"Sports Arena, Court (Class 2)",1.96,"W/ft2",4,0,{"$f":"IF(AND(SpaceBySpace_2013[[#This Row],[Automatic Daylighting Control]]=\"REQ\",OR(SpaceBySpace_2013[[#This Row],[Automatic Partial OFF]]=\"REQ\",SpaceBySpace_2013[[#This Row],[Partial Automatic ON]]=\"REQ\",SpaceBySpace_2013[[#This Row],[Automatic Full OFF]]=\"REQ\",COUNTIF(SpaceBySpace_2013[[#This Row],[Automatic Partial OFF]:[Scheduled Shutoff]],\"ADD*\")>0)),\"Occupancy + Daylight\",\nIF(SpaceBySpace_2013[[#This Row],[Automatic Daylighting Control]]=\"REQ\",\"Daylight Harvesting\",\nIF(OR(SpaceBySpace_2013[[#This Row],[Partial Automatic ON]]=\"REQ\",SpaceBySpace_2013[[#This Row],[Automatic Partial OFF]]=\"REQ\",SpaceBySpace_2013[[#This Row],[Automatic Full OFF]]=\"REQ\",COUNTIF(SpaceBySpace_2013[[#This Row],[Automatic Partial OFF]:[Scheduled Shutoff]],\"ADD*\")>0),\"Occupancy\",\"\")))","v":"Occupancy + Daylight"},{"$f":"SpaceBySpace_2013[[#This Row],[%DL]]*SpaceBySpace_2013[[#This Row],[B. CSF (Wndws)]]+(1-SpaceBySpace_2013[[#This Row],[%DL]])*SpaceBySpace_2013[[#This Row],[B. CSF (No Wndws)]]","v":0.24},0,{"$f":"IF(SpaceBySpace_2013[[#This Row],[B. CSF (Wndws)]]=0.38,0.24,0)","v":0.24},{"$f":"VLOOKUP(K103,'Measure Tables'!$A$2:$C$7,3,FALSE)","v":0.38},"REQ","ADD1","ADD1","REQ","REQ",null,"ADD2","ADD2"]
[null,null,null,null,null,"Sports Arena, Court (Class 1)",2.4700000000000002,"W/ft2",4,0,{"$f":"IF(AND(SpaceBySpace_2013[[#This Row],[Automatic Daylighting Control]]=\"REQ\",OR(SpaceBySpace_2013[[#This Row],[Automatic Partial OFF]]=\"REQ\",SpaceBySpace_2013[[#This Row],[Partial Automatic ON]]=\"REQ\",SpaceBySpace_2013[[#This Row],[Automatic Full OFF]]=\"REQ\",COUNTIF(SpaceBySpace_2013[[#This Row],[Automatic Partial OFF]:[Scheduled Shutoff]],\"ADD*\")>0)),\"Occupancy + Daylight\",\nIF(SpaceBySpace_2013[[#This Row],[Automatic Daylighting Control]]=\"REQ\",\"Daylight Harvesting\",\nIF(OR(SpaceBySpace_2013[[#This Row],[Partial Automatic ON]]=\"REQ\",SpaceBySpace_2013[[#This Row],[Automatic Partial OFF]]=\"REQ\",SpaceBySpace_2013[[#This Row],[Automatic Full OFF]]=\"REQ\",COUNTIF(SpaceBySpace_2013[[#This Row],[Automatic Partial OFF]:[Scheduled Shutoff]],\"ADD*\")>0),\"Occupancy\",\"\")))","v":"Occupancy + Daylight"},{"$f":"SpaceBySpace_2013[[#This Row],[%DL]]*SpaceBySpace_2013[[#This Row],[B. CSF (Wndws)]]+(1-SpaceBySpace_2013[[#This Row],[%DL]])*SpaceBySpace_2013[[#This Row],[B. CSF (No Wndws)]]","v":0.24},0,{"$f":"IF(SpaceBySpace_2013[[#This Row],[B. CSF (Wndws)]]=0.38,0.24,0)","v":0.24},{"$f":"VLOOKUP(K104,'Measure Tables'!$A$2:$C$7,3,FALSE)","v":0.38},"REQ","ADD1","ADD1","REQ","REQ",null,"ADD2","ADD2"]
[null,null,null,null,null,"Sports Arena, Ring Arena",{"$f":"G104","v":2.4700000000000002},"W/ft2",4,0,{"$f":"IF(AND(SpaceBySpace_2013[[#This Row],[Automatic Daylighting Control]]=\"REQ\",OR(SpaceBySpace_2013[[#This Row],[Automatic Partial OFF]]=\"REQ\",SpaceBySpace_2013[[#This Row],[Partial Automatic ON]]=\"REQ\",SpaceBySpace_2013[[#This Row],[Automatic Full OFF]]=\"REQ\",COUNTIF(SpaceBySpace_2013[[#This Row],[Automatic Partial OFF]:[Scheduled Shutoff]],\"ADD*\")>0)),\"Occupancy + Daylight\",\nIF(SpaceBySpace_2013[[#This Row],[Automatic Daylighting Control]]=\"REQ\",\"Daylight Harvesting\",\nIF(OR(SpaceBySpace_2013[[#This Row],[Partial Automatic ON]]=\"REQ\",SpaceBySpace_2013[[#This Row],[Automatic Partial OFF]]=\"REQ\",SpaceBySpace_2013[[#This Row],[Automatic Full OFF]]=\"REQ\",COUNTIF(SpaceBySpace_2013[[#This Row],[Automatic Partial OFF]:[Scheduled Shutoff]],\"ADD*\")>0),\"Occupancy\",\"\")))","v":"Occupancy + Daylight"},{"$f":"SpaceBySpace_2013[[#This Row],[%DL]]*SpaceBySpace_2013[[#This Row],[B. CSF (Wndws)]]+(1-SpaceBySpace_2013[[#This Row],[%DL]])*SpaceBySpace_2013[[#This Row],[B. CSF (No Wndws)]]","v":0.24},0,{"$f":"IF(SpaceBySpace_2013[[#This Row],[B. CSF (Wndws)]]=0.38,0.24,0)","v":0.24},{"$f":"VLOOKUP(K105,'Measure Tables'!$A$2:$C$7,3,FALSE)","v":0.38},"REQ","ADD1","ADD1","REQ","REQ",null,"ADD2","ADD2"]
[null,null,null,null,null,"Transportation, Air/Train/Bus Baggage Area",0.45,"W/ft2",4,0,{"$f":"IF(AND(SpaceBySpace_2013[[#This Row],[Automatic Daylighting Control]]=\"REQ\",OR(SpaceBySpace_2013[[#This Row],[Automatic Partial OFF]]=\"REQ\",SpaceBySpace_2013[[#This Row],[Partial Automatic ON]]=\"REQ\",SpaceBySpace_2013[[#This Row],[Automatic Full OFF]]=\"REQ\",COUNTIF(SpaceBySpace_2013[[#This Row],[Automatic Partial OFF]:[Scheduled Shutoff]],\"ADD*\")>0)),\"Occupancy + Daylight\",\nIF(SpaceBySpace_2013[[#This Row],[Automatic Daylighting Control]]=\"REQ\",\"Daylight Harvesting\",\nIF(OR(SpaceBySpace_2013[[#This Row],[Partial Automatic ON]]=\"REQ\",SpaceBySpace_2013[[#This Row],[Automatic Partial OFF]]=\"REQ\",SpaceBySpace_2013[[#This Row],[Automatic Full OFF]]=\"REQ\",COUNTIF(SpaceBySpace_2013[[#This Row],[Automatic Partial OFF]:[Scheduled Shutoff]],\"ADD*\")>0),\"Occupancy\",\"\")))","v":"Occupancy + Daylight"},{"$f":"SpaceBySpace_2013[[#This Row],[%DL]]*SpaceBySpace_2013[[#This Row],[B. CSF (Wndws)]]+(1-SpaceBySpace_2013[[#This Row],[%DL]])*SpaceBySpace_2013[[#This Row],[B. CSF (No Wndws)]]","v":0.24},0,{"$f":"IF(SpaceBySpace_2013[[#This Row],[B. CSF (Wndws)]]=0.38,0.24,0)","v":0.24},{"$f":"VLOOKUP(K106,'Measure Tables'!$A$2:$C$7,3,FALSE)","v":0.38},"REQ","ADD1","ADD1",null,"REQ",null,"ADD2","ADD2"]
[null,null,null,null,null,"Transportation, Airport Concourse",0.31,"W/ft2",4,0,{"$f":"IF(AND(SpaceBySpace_2013[[#This Row],[Automatic Daylighting Control]]=\"REQ\",OR(SpaceBySpace_2013[[#This Row],[Automatic Partial OFF]]=\"REQ\",SpaceBySpace_2013[[#This Row],[Partial Automatic ON]]=\"REQ\",SpaceBySpace_2013[[#This Row],[Automatic Full OFF]]=\"REQ\",COUNTIF(SpaceBySpace_2013[[#This Row],[Automatic Partial OFF]:[Scheduled Shutoff]],\"ADD*\")>0)),\"Occupancy + Daylight\",\nIF(SpaceBySpace_2013[[#This Row],[Automatic Daylighting Control]]=\"REQ\",\"Daylight Harvesting\",\nIF(OR(SpaceBySpace_2013[[#This Row],[Partial Automatic ON]]=\"REQ\",SpaceBySpace_2013[[#This Row],[Automatic Partial OFF]]=\"REQ\",SpaceBySpace_2013[[#This Row],[Automatic Full OFF]]=\"REQ\",COUNTIF(SpaceBySpace_2013[[#This Row],[Automatic Partial OFF]:[Scheduled Shutoff]],\"ADD*\")>0),\"Occupancy\",\"\")))","v":"Occupancy + Daylight"},{"$f":"SpaceBySpace_2013[[#This Row],[%DL]]*SpaceBySpace_2013[[#This Row],[B. CSF (Wndws)]]+(1-SpaceBySpace_2013[[#This Row],[%DL]])*SpaceBySpace_2013[[#This Row],[B. CSF (No Wndws)]]","v":0.26100000000000001},0.15,{"$f":"IF(SpaceBySpace_2013[[#This Row],[B. CSF (Wndws)]]=0.38,0.24,0)","v":0.24},{"$f":"VLOOKUP(K107,'Measure Tables'!$A$2:$C$7,3,FALSE)","v":0.38},"REQ","ADD1","ADD1",null,"REQ",null,"ADD2","ADD2"]
[null,null,null,null,null,"Transportation, Audience Seating",0.43,"W/ft2",4,0,{"$f":"IF(AND(SpaceBySpace_2013[[#This Row],[Automatic Daylighting Control]]=\"REQ\",OR(SpaceBySpace_2013[[#This Row],[Automatic Partial OFF]]=\"REQ\",SpaceBySpace_2013[[#This Row],[Partial Automatic ON]]=\"REQ\",SpaceBySpace_2013[[#This Row],[Automatic Full OFF]]=\"REQ\",COUNTIF(SpaceBySpace_2013[[#This Row],[Automatic Partial OFF]:[Scheduled Shutoff]],\"ADD*\")>0)),\"Occupancy + Daylight\",\nIF(SpaceBySpace_2013[[#This Row],[Automatic Daylighting Control]]=\"REQ\",\"Daylight Harvesting\",\nIF(OR(SpaceBySpace_2013[[#This Row],[Partial Automatic ON]]=\"REQ\",SpaceBySpace_2013[[#This Row],[Automatic Partial OFF]]=\"REQ\",SpaceBySpace_2013[[#This Row],[Automatic Full OFF]]=\"REQ\",COUNTIF(SpaceBySpace_2013[[#This Row],[Automatic Partial OFF]:[Scheduled Shutoff]],\"ADD*\")>0),\"Occupancy\",\"\")))","v":"Occupancy + Daylight"},{"$f":"SpaceBySpace_2013[[#This Row],[%DL]]*SpaceBySpace_2013[[#This Row],[B. CSF (Wndws)]]+(1-SpaceBySpace_2013[[#This Row],[%DL]])*SpaceBySpace_2013[[#This Row],[B. CSF (No Wndws)]]","v":0.38},1,{"$f":"IF(SpaceBySpace_2013[[#This Row],[B. CSF (Wndws)]]=0.38,0.24,0)","v":0.24},{"$f":"VLOOKUP(K108,'Measure Tables'!$A$2:$C$7,3,FALSE)","v":0.38},"REQ","ADD1","ADD1","REQ","REQ",null,"ADD2","ADD2"]
[null,null,null,null,null,"Transportation, Terminal Ticketing Counter",0.62,"W/ft2",4,0,{"$f":"IF(AND(SpaceBySpace_2013[[#This Row],[Automatic Daylighting Control]]=\"REQ\",OR(SpaceBySpace_2013[[#This Row],[Automatic Partial OFF]]=\"REQ\",SpaceBySpace_2013[[#This Row],[Partial Automatic ON]]=\"REQ\",SpaceBySpace_2013[[#This Row],[Automatic Full OFF]]=\"REQ\",COUNTIF(SpaceBySpace_2013[[#This Row],[Automatic Partial OFF]:[Scheduled Shutoff]],\"ADD*\")>0)),\"Occupancy + Daylight\",\nIF(SpaceBySpace_2013[[#This Row],[Automatic Daylighting Control]]=\"REQ\",\"Daylight Harvesting\",\nIF(OR(SpaceBySpace_2013[[#This Row],[Partial Automatic ON]]=\"REQ\",SpaceBySpace_2013[[#This Row],[Automatic Partial OFF]]=\"REQ\",SpaceBySpace_2013[[#This Row],[Automatic Full OFF]]=\"REQ\",COUNTIF(SpaceBySpace_2013[[#This Row],[Automatic Partial OFF]:[Scheduled Shutoff]],\"ADD*\")>0),\"Occupancy\",\"\")))","v":"Occupancy + Daylight"},{"$f":"SpaceBySpace_2013[[#This Row],[%DL]]*SpaceBySpace_2013[[#This Row],[B. CSF (Wndws)]]+(1-SpaceBySpace_2013[[#This Row],[%DL]])*SpaceBySpace_2013[[#This Row],[B. CSF (No Wndws)]]","v":0.24},0,{"$f":"IF(SpaceBySpace_2013[[#This Row],[B. CSF (Wndws)]]=0.38,0.24,0)","v":0.24},{"$f":"VLOOKUP(K109,'Measure Tables'!$A$2:$C$7,3,FALSE)","v":0.38},"REQ","ADD1","ADD1","REQ","REQ",null,"ADD2","ADD2"]
[null,null,null,null,null,"Visually Impaired, Chapel",1.06,"W/ft2",4,0,{"$f":"IF(AND(SpaceBySpace_2013[[#This Row],[Automatic Daylighting Control]]=\"REQ\",OR(SpaceBySpace_2013[[#This Row],[Automatic Partial OFF]]=\"REQ\",SpaceBySpace_2013[[#This Row],[Partial Automatic ON]]=\"REQ\",SpaceBySpace_2013[[#This Row],[Automatic Full OFF]]=\"REQ\",COUNTIF(SpaceBySpace_2013[[#This Row],[Automatic Partial OFF]:[Scheduled Shutoff]],\"ADD*\")>0)),\"Occupancy + Daylight\",\nIF(SpaceBySpace_2013[[#This Row],[Automatic Daylighting Control]]=\"REQ\",\"Daylight Harvesting\",\nIF(OR(SpaceBySpace_2013[[#This Row],[Partial Automatic ON]]=\"REQ\",SpaceBySpace_2013[[#This Row],[Automatic Partial OFF]]=\"REQ\",SpaceBySpace_2013[[#This Row],[Automatic Full OFF]]=\"REQ\",COUNTIF(SpaceBySpace_2013[[#This Row],[Automatic Partial OFF]:[Scheduled Shutoff]],\"ADD*\")>0),\"Occupancy\",\"\")))","v":"Occupancy + Daylight"},{"$f":"SpaceBySpace_2013[[#This Row],[%DL]]*SpaceBySpace_2013[[#This Row],[B. CSF (Wndws)]]+(1-SpaceBySpace_2013[[#This Row],[%DL]])*SpaceBySpace_2013[[#This Row],[B. CSF (No Wndws)]]","v":0.31},0.5,{"$f":"IF(SpaceBySpace_2013[[#This Row],[B. CSF (Wndws)]]=0.38,0.24,0)","v":0.24},{"$f":"VLOOKUP(K110,'Measure Tables'!$A$2:$C$7,3,FALSE)","v":0.38},"REQ","ADD1","ADD1","REQ","REQ",null,"ADD2","ADD2"]
[null,null,null,null,null,"Visually Impaired, Corridor/Transition",0.92,"W/ft2",0,8,{"$f":"IF(AND(SpaceBySpace_2013[[#This Row],[Automatic Daylighting Control]]=\"REQ\",OR(SpaceBySpace_2013[[#This Row],[Automatic Partial OFF]]=\"REQ\",SpaceBySpace_2013[[#This Row],[Partial Automatic ON]]=\"REQ\",SpaceBySpace_2013[[#This Row],[Automatic Full OFF]]=\"REQ\",COUNTIF(SpaceBySpace_2013[[#This Row],[Automatic Partial OFF]:[Scheduled Shutoff]],\"ADD*\")>0)),\"Occupancy + Daylight\",\nIF(SpaceBySpace_2013[[#This Row],[Automatic Daylighting Control]]=\"REQ\",\"Daylight Harvesting\",\nIF(OR(SpaceBySpace_2013[[#This Row],[Partial Automatic ON]]=\"REQ\",SpaceBySpace_2013[[#This Row],[Automatic Partial OFF]]=\"REQ\",SpaceBySpace_2013[[#This Row],[Automatic Full OFF]]=\"REQ\",COUNTIF(SpaceBySpace_2013[[#This Row],[Automatic Partial OFF]:[Scheduled Shutoff]],\"ADD*\")>0),\"Occupancy\",\"\")))","v":"Occupancy + Daylight"},{"$f":"SpaceBySpace_2013[[#This Row],[%DL]]*SpaceBySpace_2013[[#This Row],[B. CSF (Wndws)]]+(1-SpaceBySpace_2013[[#This Row],[%DL]])*SpaceBySpace_2013[[#This Row],[B. CSF (No Wndws)]]","v":0.26100000000000001},0.15,{"$f":"IF(SpaceBySpace_2013[[#This Row],[B. CSF (Wndws)]]=0.38,0.24,0)","v":0.24},{"$f":"VLOOKUP(K111,'Measure Tables'!$A$2:$C$7,3,FALSE)","v":0.38},"REQ",null,null,null,"REQ","REQ","ADD2","ADD2"]
[null,null,null,null,null,"Visually Impaired, Dining Area",2,"W/ft2",4,0,{"$f":"IF(AND(SpaceBySpace_2013[[#This Row],[Automatic Daylighting Control]]=\"REQ\",OR(SpaceBySpace_2013[[#This Row],[Automatic Partial OFF]]=\"REQ\",SpaceBySpace_2013[[#This Row],[Partial Automatic ON]]=\"REQ\",SpaceBySpace_2013[[#This Row],[Automatic Full OFF]]=\"REQ\",COUNTIF(SpaceBySpace_2013[[#This Row],[Automatic Partial OFF]:[Scheduled Shutoff]],\"ADD*\")>0)),\"Occupancy + Daylight\",\nIF(SpaceBySpace_2013[[#This Row],[Automatic Daylighting Control]]=\"REQ\",\"Daylight Harvesting\",\nIF(OR(SpaceBySpace_2013[[#This Row],[Partial Automatic ON]]=\"REQ\",SpaceBySpace_2013[[#This Row],[Automatic Partial OFF]]=\"REQ\",SpaceBySpace_2013[[#This Row],[Automatic Full OFF]]=\"REQ\",COUNTIF(SpaceBySpace_2013[[#This Row],[Automatic Partial OFF]:[Scheduled Shutoff]],\"ADD*\")>0),\"Occupancy\",\"\")))","v":"Occupancy + Daylight"},{"$f":"SpaceBySpace_2013[[#This Row],[%DL]]*SpaceBySpace_2013[[#This Row],[B. CSF (Wndws)]]+(1-SpaceBySpace_2013[[#This Row],[%DL]])*SpaceBySpace_2013[[#This Row],[B. CSF (No Wndws)]]","v":0.26100000000000001},0.15,{"$f":"IF(SpaceBySpace_2013[[#This Row],[B. CSF (Wndws)]]=0.38,0.24,0)","v":0.24},{"$f":"VLOOKUP(K112,'Measure Tables'!$A$2:$C$7,3,FALSE)","v":0.38},"REQ","ADD1","ADD1","REQ","REQ",null,"ADD2","ADD2"]
[null,null,null,null,null,"Visually Impaired, Lobby",2.0299999999999998,"W/ft2",4,0,{"$f":"IF(AND(SpaceBySpace_2013[[#This Row],[Automatic Daylighting Control]]=\"REQ\",OR(SpaceBySpace_2013[[#This Row],[Automatic Partial OFF]]=\"REQ\",SpaceBySpace_2013[[#This Row],[Partial Automatic ON]]=\"REQ\",SpaceBySpace_2013[[#This Row],[Automatic Full OFF]]=\"REQ\",COUNTIF(SpaceBySpace_2013[[#This Row],[Automatic Partial OFF]:[Scheduled Shutoff]],\"ADD*\")>0)),\"Occupancy + Daylight\",\nIF(SpaceBySpace_2013[[#This Row],[Automatic Daylighting Control]]=\"REQ\",\"Daylight Harvesting\",\nIF(OR(SpaceBySpace_2013[[#This Row],[Partial Automatic ON]]=\"REQ\",SpaceBySpace_2013[[#This Row],[Automatic Partial OFF]]=\"REQ\",SpaceBySpace_2013[[#This Row],[Automatic Full OFF]]=\"REQ\",COUNTIF(SpaceBySpace_2013[[#This Row],[Automatic Partial OFF]:[Scheduled Shutoff]],\"ADD*\")>0),\"Occupancy\",\"\")))","v":"Occupancy + Daylight"},{"$f":"SpaceBySpace_2013[[#This Row],[%DL]]*SpaceBySpace_2013[[#This Row],[B. CSF (Wndws)]]+(1-SpaceBySpace_2013[[#This Row],[%DL]])*SpaceBySpace_2013[[#This Row],[B. CSF (No Wndws)]]","v":0.31},0.5,{"$f":"IF(SpaceBySpace_2013[[#This Row],[B. CSF (Wndws)]]=0.38,0.24,0)","v":0.24},{"$f":"VLOOKUP(K113,'Measure Tables'!$A$2:$C$7,3,FALSE)","v":0.38},"REQ",null,null,null,"REQ","REQ","ADD2","ADD2"]
[null,null,null,null,null,"Visually Impaired, Recreation/Common Area",1.8,"W/ft2",6,0,"Occupancy + Daylight",{"$f":"SpaceBySpace_2013[[#This Row],[%DL]]*SpaceBySpace_2013[[#This Row],[B. CSF (Wndws)]]+(1-SpaceBySpace_2013[[#This Row],[%DL]])*SpaceBySpace_2013[[#This Row],[B. CSF (No Wndws)]]","v":0.27500000000000002},0.25,0.24,0.38]
[null,null,null,null,null,"Visually Impaired, Restroom",0.96,"W/ft2",8,0,"Occupancy",{"$f":"SpaceBySpace_2013[[#This Row],[%DL]]*SpaceBySpace_2013[[#This Row],[B. CSF (Wndws)]]+(1-SpaceBySpace_2013[[#This Row],[%DL]])*SpaceBySpace_2013[[#This Row],[B. CSF (No Wndws)]]","v":0.24},0,0.24,{"$f":"VLOOKUP(K115,'Measure Tables'!$A$2:$C$7,3,FALSE)","v":0.24},"REQ",null,null,null,"REQ",null,"REQ"]
[null,null,null,null,null,"Warehouse, Fine Material Storage",0.69,"W/ft2",6,0,{"$f":"IF(AND(SpaceBySpace_2013[[#This Row],[Automatic Daylighting Control]]=\"REQ\",OR(SpaceBySpace_2013[[#This Row],[Automatic Partial OFF]]=\"REQ\",SpaceBySpace_2013[[#This Row],[Partial Automatic ON]]=\"REQ\",SpaceBySpace_2013[[#This Row],[Automatic Full OFF]]=\"REQ\",COUNTIF(SpaceBySpace_2013[[#This Row],[Automatic Partial OFF]:[Scheduled Shutoff]],\"ADD*\")>0)),\"Occupancy + Daylight\",\nIF(SpaceBySpace_2013[[#This Row],[Automatic Daylighting Control]]=\"REQ\",\"Daylight Harvesting\",\nIF(OR(SpaceBySpace_2013[[#This Row],[Partial Automatic ON]]=\"REQ\",SpaceBySpace_2013[[#This Row],[Automatic Partial OFF]]=\"REQ\",SpaceBySpace_2013[[#This Row],[Automatic Full OFF]]=\"REQ\",COUNTIF(SpaceBySpace_2013[[#This Row],[Automatic Partial OFF]:[Scheduled Shutoff]],\"ADD*\")>0),\"Occupancy\",\"\")))","v":"Occupancy + Daylight"},{"$f":"SpaceBySpace_2013[[#This Row],[%DL]]*SpaceBySpace_2013[[#This Row],[B. CSF (Wndws)]]+(1-SpaceBySpace_2013[[#This Row],[%DL]])*SpaceBySpace_2013[[#This Row],[B. CSF (No Wndws)]]","v":0.24},0,{"$f":"IF(SpaceBySpace_2013[[#This Row],[B. CSF (Wndws)]]=0.38,0.24,0)","v":0.24},{"$f":"VLOOKUP(K116,'Measure Tables'!$A$2:$C$7,3,FALSE)","v":0.38},"REQ","ADD1","ADD1","REQ","REQ","REQ","ADD2","ADD2"]
[null,null,null,null,null,"Warehouse, Medium/Bulky Material Storage",0.35,"W/ft2",4,0,{"$f":"IF(AND(SpaceBySpace_2013[[#This Row],[Automatic Daylighting Control]]=\"REQ\",OR(SpaceBySpace_2013[[#This Row],[Automatic Partial OFF]]=\"REQ\",SpaceBySpace_2013[[#This Row],[Partial Automatic ON]]=\"REQ\",SpaceBySpace_2013[[#This Row],[Automatic Full OFF]]=\"REQ\",COUNTIF(SpaceBySpace_2013[[#This Row],[Automatic Partial OFF]:[Scheduled Shutoff]],\"ADD*\")>0)),\"Occupancy + Daylight\",\nIF(SpaceBySpace_2013[[#This Row],[Automatic Daylighting Control]]=\"REQ\",\"Daylight Harvesting\",\nIF(OR(SpaceBySpace_2013[[#This Row],[Partial Automatic ON]]=\"REQ\",SpaceBySpace_2013[[#This Row],[Automatic Partial OFF]]=\"REQ\",SpaceBySpace_2013[[#This Row],[Automatic Full OFF]]=\"REQ\",COUNTIF(SpaceBySpace_2013[[#This Row],[Automatic Partial OFF]:[Scheduled Shutoff]],\"ADD*\")>0),\"Occupancy\",\"\")))","v":"Occupancy + Daylight"},{"$f":"SpaceBySpace_2013[[#This Row],[%DL]]*SpaceBySpace_2013[[#This Row],[B. CSF (Wndws)]]+(1-SpaceBySpace_2013[[#This Row],[%DL]])*SpaceBySpace_2013[[#This Row],[B. CSF (No Wndws)]]","v":0.24},0,{"$f":"IF(SpaceBySpace_2013[[#This Row],[B. CSF (Wndws)]]=0.38,0.24,0)","v":0.24},{"$f":"VLOOKUP(K117,'Measure Tables'!$A$2:$C$7,3,FALSE)","v":0.38},"REQ","ADD1","ADD1","REQ","REQ","REQ","ADD2","ADD2"]

{"sheet":"ASHRAE 90.1-2016 Exterior","index":29,"n_rows":39,"n_cols":8,"rows_kept":39,"cut":false,"hidden":true,"merged":[[34,7,35,7],[6,6,7,6],[6,7,7,7],[29,0,38,0],[31,2,32,2],[34,1,35,1],[34,2,35,2],[34,3,35,3],[34,4,35,4],[34,5,35,5],[24,1,24,7],[22,1,22,7],[17,1,17,7],[8,1,8,7],[34,6,35,6],[5,0,26,0],[5,1,5,7],[6,1,7,1],[6,2,7,2],[6,3,7,3],[6,4,7,4],[6,5,7,5]]}
["TABLE 9.4.2-2 Individual Lighting Power Allowances for Building Exteriors"]
[]
[null,null,"Zone 0","Zone 1","Zone 2","Zone 3","Zone 4","Units"]
[null,"Base Allowance","No Allowance",350,400,500,900,"Per Site"]
[]
["Tradeable Surfaces (Lighting power densities for uncovered parking areas, building grounds, building entrances and eits, canopies and overhangs, and otdoor sales areas may be traded.)                                                   ","Uncovered Parking Areas"]
[null,"Parking Lots and drives","No Allowance",0.03,0.04,0.06,0.08,"W/ft²"]
[]
[null,"Building Grounds"]
[null,"Walkways less than 10 feet wide","No Allowance",0.5,0.5,0.6,0.7,"W/ft"]
[null,"Walkways 10 feet wide or greater","No Allowance",0.1,0.1,0.11,0.14000000000000001,"W/ft²"]
[null,"Plaza areas","No Allowance",0.1,0.1,0.11,0.14000000000000001,"W/ft²"]
[null,"Special Feature areas","No Allowance",0.1,0.1,0.11,0.14000000000000001,"W/ft²"]
[null,"Dining areas","No Allowance",0.65,0.65,0.75,0.95,"W/ft²"]
[null,"Stairways","No Allowance",0.6,0.7,0.7,0.7,"W/ft²"]
[null,"Pedestrian Tunnels","No Allowance",0.12,0.12,0.14000000000000001,0.21,"W/ft²"]
[null,"Landscaping","No Allowance",0.03,0.04,0.04,0.04,"W/ft²"]
[null,"Building Entrances and Exits"]
[null,"Main entries","No Allowance",14,14,21,21,"W/ft"]
[null,"Other doors","No Allowance",14,14,21,21,"W/ft"]
[null,"Entry Canopies","No Allowance",0.2,0.25,0.4,0.4,"W/ft²"]
[null,"Loading Docks","No Allowance",0.35,0.35,0.35,0.35,"W/ft²"]
[null,"Sales Canopies"]
[null,"Canopies (free standing and attached)","No Allowance",0.4,0.4,0.6,0.7,"W/ft²"]
[null,"Outdoor Sales"]
[null,"Open areas (including vehicle sales lots)","No Allowance",0.2,0.2,0.35,0.5,"W/ft²"]
[null,"Street frontage for vehicle sales lots in addition to \"open area\" allowance","No Allowance","No Allowance",7,7,21,"W/ft"]
[]
[]
["Non-Tradable Surfaces (Lighting power density calculations for the following applications can be used only for the specific application and cannot be traded between surfaces or with other exterior lighting.  The following allowances are in addition to any allowance otherwise permitted in the \"tradeable surfaces\" section of this table.)","Building Facades","No Allowance","No Allowance",0.1,0.15,0.2,"W/ft²"]
[null,null,"No Allowance","No Allowance",2.5,3.75,5,"W/ft"]
[null,"Automated teller machines and night depositories (per facility)","No Allowance",135,135,135,135]
[null,"Automated teller machines and night depositories (additional ATM)",null,45,45,45,45,"Each"]
[null,"Uncovered entrances and gatehouse inspection station at guarded facilities","No Allowance",0.5,0.5,0.5,0.5,"W/ft²"]
[null,"Uncovered loading areas for law enforcement, fire, ambulance, and other emergency service vehicles","No Allowance",0.35,0.35,0.35,0.35,"W/ft²"]
[]
[null,"Drive-through windows/doors","No Allowance",200,200,200,200,"Each"]
[null,"Parking near 24-hour retail entrances","No Allowance",400,400,400,400,"Each"]
[null,"Roadway/parking entry, trail head, and toilet facility, or other locations approved by the authority having jurisdiction.",25,"No Allowance","No Allowance","No Allowance","No Allowance","Each"]

{"sheet":"Ref","index":30,"n_rows":119,"n_cols":16,"rows_kept":119,"cut":false,"hidden":true,"merged":[[100,0,101,0],[100,1,101,2],[100,3,101,13],[94,0,95,0],[94,1,95,2],[94,3,95,13],[91,0,93,0],[91,1,93,2],[91,3,93,13],[84,3,85,13],[78,0,79,0],[37,0,38,0],[37,1,38,2],[37,3,38,13],[39,0,41,0],[52,1,52,2],[80,3,80,13],[81,1,81,2],[81,3,81,13],[55,1,56,2],[68,3,69,13],[76,1,76,2],[76,3,76,13],[70,1,70,2],[70,3,70,13],[84,0,86,0],[84,1,86,2],[68,0,69,0],[53,0,54,0],[68,1,69,2],[63,0,67,0],[63,1,67,2],[72,0,74,0],[53,1,54,2],[53,3,54,13],[30,3,36,13],[23,1,29,2],[23,3,29,13],[71,1,71,2],[71,3,71,13],[75,1,75,2],[75,3,75,13],[55,3,56,13],[59,1,61,2],[59,3,61,13],[72,1,74,2],[72,3,74,13],[31,15,31,25],[32,15,32,25],[63,3,67,13],[21,15,21,25],[22,15,22,25],[23,15,23,25],[24,15,24,25],[25,15,25,25],[26,15,26,25],[27,15,27,25],[28,15,28,25],[29,15,29,25],[86,3,86,13],[87,1,87,2],[87,3,87,13],[88,1,88,2],[88,3,88,13],[83,1,83,2],[83,3,83,13],[12,15,12,25],[13,15,13,25],[14,15,14,25],[15,15,15,25],[16,15,16,25],[17,15,17,25],[18,15,18,25],[19,15,19,25],[20,15,20,25],[82,1,82,2],[82,3,82,13],[77,1,77,2],[77,3,77,13],[80,1,80,2],[78,3,79,13],[78,1,79,2],[30,15,30,25],[89,1,89,2],[89,3,89,13],[90,1,90,2],[90,3,90,13],[109,1,109,2],[109,3,109,13],[102,1,102,2],[102,3,102,13],[103,1,103,2],[103,3,103,13],[98,1,98,2],[98,3,98,13],[99,1,99,2],[99,3,99,13],[116,1,116,2],[116,3,116,13],[117,1,117,2],[117,3,117,13],[113,1,113,2],[113,3,113,13],[114,1,114,2],[114,3,114,13],[115,1,115,2],[115,3,115,13],[112,1,112,2],[112,3,112,13],[96,1,96,2],[96,3,96,13],[97,1,97,2],[97,3,97,13],[104,1,104,2],[104,3,104,13],[105,1,105,2],[105,3,105,13],[106,1,106,2],[106,3,106,13],[110,1,110,2],[110,3,110,13],[111,1,111,2],[111,3,111,13],[107,1,107,2],[107,3,107,13],[108,1,108,2],[108,3,108,13],[0,1,0,2],[1,1,1,2],[12,1,12,2],[12,3,12,13],[13,1,13,2],[13,3,13,13],[3,1,3,2],[4,1,4,2],[5,1,5,2],[7,1,7,2],[9,1,9,2],[10,1,10,2],[14,1,22,2],[14,3,22,13],[14,0,22,0],[62,1,62,2],[62,3,62,13],[48,1,48,2],[39,3,41,13],[39,1,41,2],[49,0,51,0],[49,1,51,2],[49,3,51,13],[57,0,58,0],[57,1,58,2],[57,3,58,13],[55,0,56,0],[42,0,47,0],[42,1,47,2],[42,3,47,13],[59,0,61,0],[52,3,52,13],[48,3,48,13],[23,0,29,0],[30,0,36,0],[30,1,36,2]]}
["Version_ID",{"$f":"OFFSET(A13,MATCH(MAX($B$14:$B$118),$B$14:$B$118,0),0)","v":"FY26.3.5"}]
["Date_ID",{"$f":"\"Version \"&CONCATENATE(\nTEXT(YEAR(OFFSET(B13,MATCH(MAX($B$14:$B$118),$B$14:$B$118,0),0)),\"0000\"),\nTEXT(MONTH(OFFSET(B13,MATCH(MAX($B$14:$B$118),$B$14:$B$118,0),0)),\"00\"),\nTEXT(DAY(OFFSET(B13,MATCH(MAX($B$14:$B$118),$B$14:$B$118,0),0)),\"00\"))","v":"Version 20250811"}]
[]
["Launch_Date","2026-05-01"]
["Prev_FY",{"$f":"\"FY\"&RIGHT(YEAR(B4),2)-1","v":"FY25"}]
["Curr_FY",{"$f":"\"FY\"&RIGHT(YEAR(B4),2)","v":"FY26"}]
[]
["AuthUL",false]
[]
["LastRow",{"$f":"IF(Project_Type=\"New Construction\",MATCH(\"Grand Total\",'NC Processing'!$A:$A,0),MATCH(\"Grand Total\",'Retrofit Processing'!$A:$A,0))-1","v":5}]
["LastCol",{"$f":"IF(Project_Type=\"New Construction\",MAX('NC Processing'!3:3),MAX('Retrofit Processing'!3:3))","v":37}]
[]
["Version_ID","Date",null,"Version Notes",null,null,null,null,null,null,null,null,null,null,null,"To Be Done"]
["FY26.0.0","2024-10-28",null,"Proof of Concept",null,null,null,null,null,null,null,null,null,null,null,"Favourited proposed fixture list"]
["FY26.0.1","2025-01-07",null,"Customer Information:\n- Added EIF-DIF-CF-DF lookups and weighted average calculation for the facility information.\nREMOVED \"Existing Fixture Information\" (Moved data entry onto the \"Project Information\" tab).\nREMOVED \"Proposed Fixture Information\" (Moved data entry onto the \"Project Information\" tab).\nProject Information:\n- Removed \"Existing Technology\" and \"Existing Type\" columns, replaced with data entry for existing fixture information.\n- Removed \"Proposed Technology\" and \"Proposed Type\" columns, replaced with data entry for proposed fixture information.\nSummary:\n- \"Existing Fixture\" column updated to concatenate based on entered information from Project Information tab.\n- \"Proposed Fixture\" column updated to concatenate based on entered information from Project Information tab.\n- Revised calculation methodology for Existing Fixtures and Proposed Fixtures sections:\n    - Added CSF lookup directly to each section and calculation of Fixture+Control kWh.\n        - Proposed Fixture usage also includes \"Proposed Fixture (Existing Controls) kWh\" to calculate Control Savings in the Controls section.\n- Added Control and Fixture sections to calculate and summarize:\n    - Rebate eligibility and rebate amounts\n    - Demand kW (calculated with CF and DF)\n        - Exterior Demand kW = 0\n    - Annual energy savings kWh\n- Added Total section to calculate and summarize:\n    - Total rebate amount\n    - Induced HVAC kW and kWh\n    - Total kWh and Demand kW (Zero'd out if fixture is ineligible)"]
[]
[]
[]
[]
[]
[]
[]
[]
["FY26.0.2","2025-01-13",null,"Customer Information:\n- Swapped DIF and CF lookup columns to match headers/cell references.\n- Added Op Sch lookup list with dependencies on what is filled out.\nProject Information:\n- Redid the color theme to match current SBS themes.\n- Updated conditional formatting:\n    - On all input columns: if line is started (IsActive), highlight required cells yellow.\n    - On filled cells, highlight the cell blue.\n    - For #lamps and lamp wattage, highlight dark blue if it's a non-standard wattage (check typ. wattage lookups).\n- Added lookups for #lamps and lamp wattage from typical wattage list.\n- Corrected fixture wattage formula to use either a lookup of multiplier of #lamps * wattage (if #lamps>1) or entered wattage.\n- Added Project summary section showing rebates and savings amounts from the Summary table.\nProject Report:\n- Copied formatting from the existing lighting workbook and repurposed it (updated formatting and formulas).\nSummary:\n- Reconnected and revised formulas, as needed.\nMeasure Tables:\n- Added new lookups to fixture technology (missing fluorescent lengths, LED Tubes, etc.).\n- Added new typical wattage table based on #lamps and typical wattages."]
[]
[]
[]
[]
[]
[]
["FY26.0.3","2025-01-17",null,"Pre-Install Inspection, Post-Install Inspection:\n    - References Existing/Proposed Equipment information respectively using Index.\n    - Line is fillable and pulls in the referenced line # information.\n    - Added conditional formatting to cells to highlight cells that were updated on the inspection.\nProject Information/Pre-Istall/Post Install tabs:\n- Updated calculated existing/proposed fixture wattages to calculate on each tab.\nProject Info Summary:\n- Updated references for existing/proposed section information to reflect inspection findings.\n- Fixture wattage reflects updated fixture wattages from pre-post inspection information).\nProject Information/Post-Install Inspection:\n- Updated #lamps, fixt/lamp wattage column conditional formatting to check for LED's (highlight).\nTypical Wattage:\n- Measure Tables: Updated the typical wattage lookup table with different entries for different ballasts.\n- Project Information: Updated Fixture Wattage lookups to concatenate Technology and Ballast Driver.\nProject Info Summary:\n- Revised all calculations to use Post-Install Information and Post-Install Inspection references.\n    - Project information cascades from Pre-Install Info > Pre-Install Inspection > Post-Install Info > Post-Install\n    Inspection > Project Info Summary.\n- Added conditional formatting to show changes from Pre-Install Information to any changes added between Pre-Install Inspection, Post-Install Information, and Post-Install Inspection (highlight blue).\n- Calculations updated to check for IsActive flag from Post-Install Information to do conditional equations."]
[]
[]
[]
[]
[]
[]
["FY26.0.4","2025-01-21",null,"New Construction:\n- Added in Facility Information, Exterior Information, Project Information, and New Construction Inspection, and Project Summary tabs. Renamed \"Project Info Summary\" to \"Project Retrofit Summary.\"\n- Changed calculation methods on Summary tab to align with NC methodology.\n- Various bug fixes and updates to NC calcs, formulas, formatting.\n    - Fixed Named Ranges that were populating from other sheets or linked to worksheets, not the workbook."]
[]
["FY26.0.5","2025-01-24",null,"VBA:\n- Added DSMC modules, JSON Converter, Importing, LkUnlk, and PublicStuff.\n- Added DSMC_Password_Prompt form.\n- Updated LkUnlk codenames, functionality.\n    - Added Hide_Unhide_Info function to hide specific rows and columns.\n- Added 3 levels of lock/unlock for external users, internal authorized users, and development.\n    - External users are limited to general information tabs, project entry, and summary/reports.\n    - Internal auth users additionally can see the inspection tabs.\n    - Auth developers have access to all hidden tabs."]
[]
[]
["FY26.0.6","2025-01-27",null,"- Post-Install Information: Fixed Interior/Exterior dropdown.\n- Inspection Photos: Fixed formulas in proposed (blue) Qty and Description to refer to column O.\n- Added T&C, Pay Assignment, Elig Reqs, FAQ tabs.\n- Updated Hide_Unhide_Info() andHide_Unhide_Sheets() for Project Information/Summary (NC & Retro), T&C, Pay Assignment, Eligibility Requirements, and FAQ tabs.\n- VBA > Customer Information > Worksheet_Change(): Added hide/unhide information from Instructions & FAQ tabs. Using Lockdown() to hide/unhide sheets.\nProject Summary, Project Retrofit Summary:\n- Added Fixture Cost, Controls Cost, Total Cost columns.\n- Added #Lamps/Fixture, Fixture/Lamp Wattage columns.\n- Added formulas for new columns, corrected some formula issues with existing equipment (Project Retrofit Summary).\nInstructions:\n- Updated Instructions tab to the lighting WB instructions tab, reconnected formulas and cond. formatting.\nF.A.Q.:\n- Added New Construction vs Retrofit tab information."]
[]
[]
[]
[]
[]
["FY26.0.7","2025-01-31",null,"- VBA > DSMC_API_ProjectCalls: Updated DSMCUpdate() to export measures according to new summaries.\n- Fixed issue with Ballast dropdowns for HIDs"]
["FY26.0.8","2025-02-03",null,"- Project Retrofit Summary: updated with \"Complete Fixture Name\" column to concatenate existing/proposed for pivot table.\n- Added NC and Retro Pivot Tables for exporting.\n- DSMC_API_ProjectCalls > DSMCUpdate(): Updated to incorporate pivot tables; fixed issues with JSON packet creation.\n- Security > HideUnHideSheets(): Added Debug, NC Processing, and Retrofit Processing tabs to sheet lists by permission."]
[]
[]
["FY26.0.9","2025-03-07",null,"- Updated instructions with additional language about inspections.\n    - Updated Hide/Unhide rows for Customer Information > Worksheet_Change().\n- Fixed issue with formulas for NC Project Information."]
["FY26.0.10","2025-03-19",null,"- Added subroutines that add or remove rows to the project entry tabs (Project Information, Pre-/Post-Install Information, and the summary sheets).\n    - Set minimum # of rows to 40.\n    - Separate caller subroutine to use for pressing a button vs calling the functions directly.\n- Begin writing ImportApp() function."]
[]
["FY26.0.11","2025-03-21",null,"- Import Function:\n    - Implemented CI_Info(): Copy customer information by app version.\n    - Implemented Fixt_Info(): Take old fixture nomenclature and convert to new format (Old format only).\n        - Check nomenclature for some fixtures (marked ***)"]
[]
["FY26.0.12","2025-03-27",null,"Import:\n- Fixt_Info(): Completed remaining fixture conversions.\n- new_import(): Begin updating code to import Project Information (Pre-/Post-Install Information).\n    - Modified Edit_Rows/Add_Rows/Remove_Rows to ask to run the summary tabs.\n    - Updated r_edit to be a global variable (stores values between runs).\n    - Initial testing to make sure Customer Information copies over correctly."]
[]
["FY26.0.13","2025-04-03",null,"Import:\n- Added code to import NC Facility Information/Exterior Information/Project Information\n- Added code to import Retro Pre-Install Information/Post-Install Information\nGeneral > Edit_Rows and Add_/Remove_Rows:\n- Updated code to use Table1 and Table2 references instead of Table and NC_Retro to update paired tables.\n\n-Updated \"Facility Information\" to \"Zone Information\" on Project/Pre-Install/Post-Install Information tabs."]
[]
[]
["FY26.0.13","2025-04-09",null,"- Updated Retrofit stages to \"Pre-/Post-Install\" and New Construction, added \"Evaluation\"\n- Updated Hide_Unhide_Sheets() to use new project type/stage combinations."]
["FY26.1.0","2025-04-16",null,"Application prepared for launch.\n- Disabled Import function Project Information until it is completed.\n- Fixed reference errors for Watts dropdowns in the inspection tabs.\n- Added iferror to inspection table formulas.\n- Added a show/hide row reference to Row 6 in Facility Information (hides \"Exterior\" reference).\n- Updated Add/RemoveRows macros:\n    - Updated Post-Install Information references to \"R2\" codename.\n    - Added Facility Information (NC1) tables with modified ranges (starts on row 6 instead of 5).\n    - Added Edit Rows button to Facility Information tab.\n\nVBA:\n- Updated Hide_Unide_Info() to check if info is already hidden or unhidden and switch the attribute.\n- Added IF Project_Stage is blank on close, set it to \"(Pre-Install).\"\n- Added DisplayAlerts = False on Lockdown for Authorization = 0 or 1.\n- Skip protecting sheets for NC Processing and Retro Processing sheets to prevent issues with data refresh."]
[]
[]
[]
[]
["FY26.1.1","2025-04-18",null,"Customer Information: Added dropdown for states, added \"(Optional)\" to Contractor/TA section title, Processing Information cells unlocked for editing.\nPre/Post-Install\n- Retrofit Wattages dropdowns: revised Metal Halide (Ceramic) and (Pulse Start) named ranges to match new formatting for indirect references.\n- Added \"Networked\" to controls list (+ Project Information)."]
[]
["FY26.1.2","2025-04-29",null,"- Added Year Built and Total Sq Ft to the CI tab. Updated import to function with adding YearBuilt.\n- Revised the processing table for Retrofit to function as expected (switched to only active rows).\n- Fixed issues with JSON packet adding a comma into the start of the measure fields section."]
["FY26.1.3","2025-04-30",null,"- RETRO: Fixed rebate calculation to include quantities (total kW reduction).\n'-  NC/Retro Processing: swapped labels for kW and kWh in a couple places. Added separate lighting fixture savings and total savings calculations for reporting. Updated attribute names."]
["FY26.1.4","2025-05-05",null,"General > ClearApp:\n- Fixed naming convention for Retrofit Processing tab (entered as \"Retro Processing\").\n- Added Formula for \"FiscalYear\" range.\nImport:\n- CI_Info: Separated FY26 Import ranges from old named ranges.\n- Tested out new_import(), fixed a few issues with .Copy functions to make it fully functional for both NC and Retro projects.\n\n- Fixed various issues with calculations after importing."]
[]
[]
["FY26.1.5","2025-05-09",null,"- Updated .Copy functions to use .PasteSpecial xlPasteValues.\n'- Minor fix to conditional formatting in the Contractor/Trade Ally Information section.\n'- Enabled new fixture imports (FY26 to FY26)."]
["FY26.1.6","2025-05-13",null,"- Added updates to the old import functions for NC/Retrofit.\n- Removed Stage Check for old import since it doesn't impact the methodology.\n- Testing, overhaul of the fixture conversion formula with corrections, missing fixture declarations, etc."]
["FY26.1.7","2025-05-14",null,"- Added switch for NC/Retro Processing filter (IsActive == TRUE) before refresh.\n- Added Application.Calculation = xlCalculationAutomatic to turn on calculations at the end (fixes the issue when they sometimes get turned to manual for no reason)."]
["FY26.1.8","2025-05-15",null,"Import > CI_Info():\n- Added version ID check for YearBuilt (only available in versions 26.1.2 and later or FY25 applications) for new measure import.\n- Added delineations from FY25 project types for \"Retrofit - System Redesign\", \"New Construction - Reservation\", and \"New Construction - Space-by-Space.\"\n- Added additional corrections for Project Stage from FY25 that separates NC from Retro."]
[]
["FY26.2.0","2025-05-16",null,"Finished fixing exports:\n- Moved LastRow/LastCol, verification of # of measures to after the pivot table refresh."]
["FY26.2.1","2025-05-20",null,"Import > CI_Info():\n- Added version ID check for Op Schedule range (only available in versions 26.1.2 and later or FY25 applications) for new measure import."]
["FY26.2.2","2025-05-28",null,"Import:\n- Added Application.Calulation = xlCalculationAutomatic to prevent the workbook from switching to Manual during import."]
["FY26.2.3","2025-06-05",null,"- Updated some of the normative wattages for fluorescent based on the FY25 application.\n- Added cost capping to the rebate calculation:\n    - Checks for minimum of 300,000 / Project Cost / Rebate Total, then scales the rebate by that amount."]
["FY26.2.4","2025-06-09",null,"General > ClearApps():\n- Updated formulas checking for table counts from \".rows.count\" to \".rows.count + 4\" to capture the end of the tables (fixed error where last 4 rows were not cleared).\n- Updated the section for NC Inpsection to overwrite the formulas.\n- Updated NC, Pre-, and Post-Inspection sections to include IFERROR(...,\"\"\"\") to remove any errors at the end of the table."]
[]
[null,null,null,"Tables:\n- Removed \"Hidden\" element from fillable cells to allow for editing earlier entries."]
["FY26.2.5","2025-06-13",null,"- DSMC Export: Fixed section for square footage to export total SqFt."]
["FY26.2.6","2025-06-24",null,"New Construction:\n- Added check for 10% savings threshold, per eligibility requirements."]
["FY26.2.6","2025-06-26",null,"Retrofit: Removed EIF from existing controls kWh formula (column S)"]
["FY26.2.7","2025-06-27",null,"Import to Retrofit (Post-Install):\n- Removed ListObject(\"\") from With statements, which was causing a runtime error.\n- Fixed ranges on Post-Install page for proposed fixture ranges."]
["FY26.3.0","2025-07-10",null,"- Added back in Prost-Install formula for Proposed Fixture Nomenclature (had been overwritten due to previous errors).\n- Added Total # Lamps to both project summary tabs for reference.\n- Added Sustainability questionaire to CI tab, Check Memo to the Payee section, and conditional formatting for Invoice Date and Project Cost when the project isn't installed.\n- If the Project Cost = 0, use a dummy cost of $300,000 to calculate total cost in the summary tabs.\n- [VBA] Shifted the ranges for importing and clearing information to the latest version to the CI tab due to adding the Check Memo and sustainability questionaire.\n- [VBA] Updated columns for NC and Retrofit Summary pages for Add/Remove Rows functions."]
[]
[]
["FY26.3.1","2025-07-18",null,"[VBA] Import:\n  - Updated range for Add/Remove_Rows for Retrofit Summary sheet from BD to BE.\n  - Added UnProWS/ProWS for sheets during importing.\n  - Updated LastRow to import_LastRow once Add/Remove_Rows executes to pull in all of the data for the sheet.\n- [VBA] ClearApp: Updated range for TA/Contractor section from row 25 to 26 (was missing a row).\n"]
[]
["FY26.3.2","2025-07-23",null,"- Fixed isssue with Summary pages showing #REF error."]
["FY26.3.3","2025-07-28",null,"Post-Install Information:\n- Fixed issue where proposed fixture quantity wasn't referring to the Pre-Install proposed fixture quantity before checking the post-install existing quantity. (Updated ClearApp() to check add the same formula)"]
["FY26.3.3","2025-07-29",null,"- (NC) Project Summary: Fixed conditional highlighting for P. Qty and Fixture Wattage.\n- Exterior Information: Corrected the references for ASHRAE 90.1-2016 Exterior."]
["FY26.3.4","2025-07-31",null,"- Project Summary: Fixed calculation for Fixture Controls Rebate (was missing the proposed quanitity)."]
["FY26.3.5","2025-08-11",null,"- Added Proposed Wattage Column to Summary sheets.\n- [VBA] > Security > Hide_Unide_Info(): Shifted cells to accommodate additional column.\n- Updated Total Rebate calculation to zero out negative Fixture Cost (in cases where Rebates are negative) to correctly calculate Total Rebate."]
[]
[]
[]
[]
[]
[]
[]
[]
[]
[]
[]
[]
[]
[]
[]
[]
[]
["end","end","end","end","end","end","end","end","end","end","end","end","end","end"]

{"sheet":"Debug","index":31,"n_rows":5,"n_cols":2,"rows_kept":5,"cut":false,"hidden":true,"merged":[]}
["Project Header:","Measure Info:"]
[]
["Measure Fields:"]
[]
["JSON Packet:"]